{"text_format":"1","workbook":"xlsx","n_sheets":21,"sheets":["Welcome","Notes","Pivot % growth","Pivot_T","Service delivery impact","Performance impact","Pivot Infra impact","Pivot Personnel impact","Pivot HRBP","Data","Summary","SRT1","SRT2","SRT3","SRT4","Other reallocations","Reductions","Metadata","Sheet1","HRBP_Data","Tables"],"not_rendered":{"charts":16,"images":6,"macros":1,"external_links":2,"defined_names":132,"comments":0,"pivot_tables":5},"unopened":[],"bounds":{"document_bytes":16777216,"sheet_cells":100000,"rows_first":2000,"rows_last":500,"rows_between":2000,"halvings":0,"cell_chars":16384,"cell_head_chars":4096},"cells_cut":0,"cells_raw":0,"read":"whole","date_system":"1900"}

{"sheet":"Welcome","index":0,"n_rows":48,"n_cols":54,"rows_kept":48,"cut":false,"hidden":false,"merged":[[9,1,9,3],[9,5,9,6],[9,8,10,13],[6,2,6,5]]}
[null,null,null,null,null,null,null,null,null,null,null,null,null,null,null,null,null,null,null,null,null,null,null,null,null,null,40,{"$f":"INDEX(AB$4:AB$45,MATCH(MyVoteNo,$AA$4:$AA$45,0))","v":"Transport"},{"$f":"INDEX(AC$4:AC$45,MATCH(MyVoteNo,$AA$4:$AA$45,0))","v":"Pebetse Maleka"},null,{"$f":"INDEX(AE$4:AE$45,MATCH(MyVoteNo,$AA$4:$AA$45,0))","v":"Pebetse.Maleka@treasury.gov.za"},{"$f":"INDEX(AF$4:AF$45,MATCH(MyVoteNo,$AA$4:$AA$45,0))","v":"Luyolo Ntlangula "},null,{"$f":"INDEX(AH$4:AH$45,MATCH(MyVoteNo,$AA$4:$AA$45,0))","v":"luyolo.ntangula@treasury.gov.za"}]
[null,null,null,null,"2025 MTEF Workbook - National departments",null,null,null,null,null,null,null,null,null,null,null,null,null,null,null,null,null,null,null,null,null,null,null,null,null,null,null,null,null,"Dept Ceilings",null,null,"CoE Ceilings",null,null,null,null,null,null,"Departmental Ceilings",{"$f":"SUM(AT4:AT45)","v":2209924475},2308222249,2413260677,null,null,"Compensation Ceilings",{"$f":"SUM(AZ4:AZ45)","v":216918553},226908885,237169849]
[null,null,null,null,null,null,null,null,null,null,null,null,null,null,null,null,null,null,null,null,null,null,null,null,null,"Dept Index No.","Vote No.","Department","Contact Person","Tel","email","Contact Person","Tel","email",{"$f":"MyYear5","v":"2025/26"},{"$f":"MyYear6","v":"2026/27"},{"$f":"MyYear7","v":"2027/28"},{"$f":"AI3","v":"2025/26"},"2026/27","2027/28",null,null,null,null,"Department",{"$f":"AI3","v":"2025/26"},"2026/27","2027/28",null,null,"Department",{"$f":"AI3","v":"2025/26"},"2026/27","2027/28"]
[null,null,null,null,null,null,null,null,null,null,null,null,null,null,null,null,null,null,null,null,null,null,null,null,null,1,29,"Agriculture, Land Reform and Rural Development","Bothwell Deka","(012) 395 6784","Bothwell.Deka@treasury.gov.za","Nico Likhethe","(012) 315 5558","Nico.Likhethe@treasury.gov.za",{"$f":"IFERROR(INDEX((AT$4:AT$45),MATCH($AB4,$AS$4:$AS$45,0)),0)","v":17371111},{"$f":"IFERROR(INDEX((AU$4:AU$45),MATCH($AB4,$AS$4:$AS$45,0)),0)","v":18122954},{"$f":"IFERROR(INDEX((AV$4:AV$45),MATCH($AB4,$AS$4:$AS$45,0)),0)","v":18942491},{"$f":"IFERROR(INDEX((AZ$4:AZ$45),MATCH($AB4,$AY$4:$AY$45,0)),0)","v":4306747},{"$f":"IFERROR(INDEX((BA$4:BA$45),MATCH($AB4,$AY$4:$AY$45,0)),0)","v":4463341},{"$f":"IFERROR(INDEX((BB$4:BB$45),MATCH($AB4,$AY$4:$AY$45,0)),0)","v":4665177},null,null,null,null,"Agriculture, Land Reform and Rural Development",17371111,18122954,18942491,null,null,"Agriculture, Land Reform and Rural Development",4306747,4463341,4665177]
[null,null,null,null,null,null,null,null,null,null,null,null,null,null,null,null,null,null,null,null,null,null,null,null,null,2,16,"Basic Education","Spencer Janari","(012) 315 5436","Spencer.Janari@treasury.gov.za","Shaneel Ragoo","(012) 315 5323","shaneel.ragoo@treasury.gov.za",34014578,35058615,36643983,663644,693664,725032,null,null,null,null,"Basic Education",34014578,35058615,36643983,null,null,"Basic Education",663644,693664,725032]
[null,null,null,null,null,null,null,null,null,null,null,null,null,null,null,null,null,null,null,null,null,null,null,null,null,3,42,"Centre for Public Service Innovation","George Tembo","(012) 315 5514","George.Tembo@treasury.gov.za","Uvadhya Singh","(012) 406 9030","Uvadhya.Singh@treasury.gov.za",{"$f":"IFERROR(INDEX((AT$4:AT$45),MATCH($AB6,$AS$4:$AS$45,0)),0)","v":50071},{"$f":"IFERROR(INDEX((AU$4:AU$45),MATCH($AB6,$AS$4:$AS$45,0)),0)","v":52367},{"$f":"IFERROR(INDEX((AV$4:AV$45),MATCH($AB6,$AS$4:$AS$45,0)),0)","v":54737},{"$f":"IFERROR(INDEX((AZ$4:AZ$45),MATCH($AB6,$AY$4:$AY$45,0)),0)","v":29889},{"$f":"IFERROR(INDEX((BA$4:BA$45),MATCH($AB6,$AY$4:$AY$45,0)),0)","v":31242},{"$f":"IFERROR(INDEX((BB$4:BB$45),MATCH($AB6,$AY$4:$AY$45,0)),0)","v":32656},null,null,null,null,"Centre for Public Service Innovation",50071,52367,54737,null,null,"Centre for Public Service Innovation",29889,31242,32656]
[null,{"$f":"\"VOTE \" &$AA$1&\": \"","v":"VOTE 40: "},{"$f":"MyDeptName","v":"Transport"},null,null,null,null,null,null,null,null,null,null,null,null,null,null,null,null,null,null,null,null,null,null,4,21,"Civilian Secretariat for the Police Service","Velisubuhle Buti","(012) 395 6709","Velisubuhle.Buti@treasury.gov.za","Ntombizodwa Dingiswayo","(012) 315 5112","Ntombizodwa.Dingiswayo@treasury.gov.za",163058,170762,178485,129851,133705,139752,null,null,null,null,"Civilian Secretariat for the Police Service",163058,170762,178485,null,null,"Civilian Secretariat for the Police Service",129851,133705,139752]
[null,null,null,null,null,null,null,null,null,null,null,null,null,null,null,null,null,null,null,null,null,null,null,null,null,5,30,"Communications and Digital Technologies","Rezah Atcha","(012) 315 5287","Rezah.Atcha@treasury.gov.za","Keitumetse Motshegwe","(012) 395 6750","keitumetse.motshegwe@treasury.gov.za",2440863,2554223,2669721,329082,344162,359727,null,null,null,null,"Communications and Digital Technologies",2440863,2554223,2669721,null,null,"Communications and Digital Technologies",329082,344162,359727]
[null,null,null,null,null,null,null,null,null,null,null,null,null,null,null,null,null,null,null,null,null,null,null,null,null,6,3,"Cooperative Governance","Werner Krause","(012) 315 5211","Werner.Krause@treasury.gov.za","Portia Thebe","(012) 315 5855","Portia.Thebe@treasury.gov.za",131125395,136796296,142982317,377695,394999,412862,null,null,null,null,"Cooperative Governance",131125395,136796296,142982317,null,null,"Cooperative Governance",377695,394999,412862]
[null,"Enquiries",null,null,null,"Department Contact Details ",null,null,"PLEASE CLICK THE BUTTON BELOW TO SUBMIT AN INPUT… (Note: Input can not be submitted if ceilings on the 'Data' sheet are exceeded.)",null,null,null,null,null,null,null,null,null,null,null,null,null,null,null,null,7,22,"Correctional Services","Elvis Ramafamba","(012) 315 5204","Elvis.Ramafamba@treasury.gov.za","Yolanda Matiwane","(012) 315 5012","Yolanda.Matiwane@treasury.gov.za",28989646,30316701,31687643,20291815,21220790,22180406,null,null,null,null,"Correctional Services",28989646,30316701,31687643,null,null,"Correctional Services",20291815,21220790,22180406]
[null,{"$f":"AC1","v":"Pebetse Maleka"},null,{"$f":"AE1","v":"Pebetse.Maleka@treasury.gov.za"},null,"Name:",null,null,null,null,null,null,null,null,null,null,null,null,null,null,null,null,null,null,null,8,23,"Defence","Mashudu Bidzha","(012) 315 5344","Mashudu.Bidzha@treasury.gov.za","Lesiba Ledwaba","(012) 395 6660","Lesiba.Ledwaba@treasury.gov.za",53775574,56237353,58780420,35652587,37284103,38970112,null,null,null,null,"Defence",53775574,56237353,58780420,null,null,"Defence",35652587,37284103,38970112]
[null,{"$f":"IF(AF1=B11,\"\",AF1)","v":"Luyolo Ntlangula "},null,{"$f":"IF(AH1=D11,\"\",AH1)","v":"luyolo.ntangula@treasury.gov.za"},null,"Email:",null,null,null,null,null,null,null,null,null,null,null,null,null,null,null,null,null,null,null,9,31,"Employment and Labour","Judy Naidoo","(012) 315 5269","Judy.Naidoo@treasury.gov.za","Nkosana Mphafa","(012) 315 5119","Nkosana.Mphafa@treasury.gov.za",3777012,3955939,4134826,1546907,1617779,1690935,null,null,null,null,"Employment and Labour",3777012,3955939,4134826,null,null,"Employment and Labour",1546907,1617779,1690935]
[null,null,null,null,null,"Telephone number:",null,null,null,null,null,null,null,null,null,null,null,null,null,null,null,null,null,null,null,10,32,"Forestry, Fisheries and the Environment","Humbelani Ramuedzisi","(012) 315 5320","Humbelani.Ramuedzisi@treasury.gov.za","Ashley Ramasimu","(012) 315 5166","Ashley.Ramasimu@treasury.gov.za",8922897,9339846,9762188,2337008,2442568,2553019,null,null,null,null,"Forestry, Fisheries and the Environment",8922897,9339846,9762188,null,null,"Forestry, Fisheries and the Environment",2337008,2442568,2553019]
[null,null,null,null,null,"Mobile (optional):",null,null,null,null,null,null,null,null,null,null,null,null,null,null,null,null,null,null,null,11,4,"Government Communication and Information System","Mokgatla Tema","(012) 315 5948","Mokgatla.Tema@treasury.gov.za","Viwe Sobudula ","(012) 315 5015 ","Viwe.Sobudula@treasury.gov.za",768574,802785,839089,308313,321571,336112,null,null,null,null,"Government Communication and Information System",768574,802785,839089,null,null,"Government Communication and Information System",308313,321571,336112]
[null,null,null,null,null,null,null,null,null,null,null,null,null,null,null,null,null,null,null,null,null,null,null,null,null,12,18,"Health","Refiloe Thokoa","(012) 395 6559","Refiloe.thokoa@treasury.gov.za","Aisha Khoele","(012) 395 6722","Aisha.Khoele@treasury.gov.za ",63696348,66397459,69604111,727569,761003,795419,null,null,null,null,"Health",63696348,66397459,69604111,null,null,"Health",727569,761003,795419]
[null,null,null,null,null,null,null,null,null,null,null,null,null,null,null,null,null,null,null,null,null,null,null,null,null,13,17,"Higher Education and Training","Spencer Janari","(012) 315 5436","Spencer.Janari@treasury.gov.za","Barileng Khumisi","(012) 406 9069","barileng.khumisi@treasury.gov.za",142838048,150398761,158289164,12411156,13122727,13716144,null,null,null,null,"Higher Education and Training",142838048,150398761,158289164,null,null,"Higher Education and Training",12411156,13122727,13716144]
[null,null,null,null,null,null,null,null,null,null,null,null,null,null,null,null,null,null,null,null,null,null,null,null,null,14,5,"Home Affairs","Maggy Mokoka","(012) 315 5468","Maggy.Mokoka@treasury.gov.za","Pindi Masiso","(012) 315 5722","Pindi.Masiso@treasury.gov.za",10738821,11227644,11735357,4191412,4368820,4566382,null,null,null,null,"Home Affairs",10738821,11227644,11735357,null,null,"Home Affairs",4191412,4368820,4566382]
[null,null,null,null,null,null,null,null,null,null,null,null,null,null,null,null,null,null,null,null,null,null,null,null,null,15,33,"Human Settlements","Katlego Moilwa","(012) 315 5812","Katlego.Moilwa@treasury.gov.za","Lindiwe Ngcongwane","(012) 315 5357","Lindiwe.Ngcongwane@treasury.gov.za",34037798,33312368,33882582,452340,473064,494456,null,null,null,null,"Human Settlements",34037798,33312368,33882582,null,null,"Human Settlements",452340,473064,494456]
[null,null,null,null,null,null,null,null,null,null,null,null,null,null,null,null,null,null,null,null,null,null,null,null,null,16,24,"Independent Police Investigative Directorate","Velisubuhle Buti","(012) 395 6709","Velisubuhle.Buti@treasury.gov.za","Ntombizodwa Dingiswayo","(012) 315 5112","Ntombizodwa.Dingiswayo@treasury.gov.za",387413,405613,423951,268159,280466,293148,null,null,null,null,"Independent Police Investigative Directorate",387413,405613,423951,null,null,"Independent Police Investigative Directorate",268159,280466,293148]
[null,null,null,null,null,null,null,null,null,null,null,null,null,null,null,null,null,null,null,null,null,null,null,null,null,17,6,"International Relations and Cooperation","George Tembo","(012) 315 5514","George.Tembo@treasury.gov.za","Mercy Mhlophe","(012) 315 5598","mercy.mhlope@treasury.gov.za",6835305,7160718,7484535,3207531,3354507,3506201,null,null,null,null,"International Relations and Cooperation",6835305,7160718,7484535,null,null,"International Relations and Cooperation",3207531,3354507,3506201]
[null,null,null,null,null,null,null,null,null,null,null,null,null,null,null,null,null,null,null,null,null,null,null,null,null,18,25,"Justice and Constitutional Development","Werner Krause","(012) 315 5211","Werner.Krause@treasury.gov.za","Siphamandla Khumalo","(012)315 5759","siphamandla.khumalo@treasury.gov.za",25164491,26316684,27506744,15699701,16395516,17136932,null,null,null,null,"Justice and Constitutional Development",25164491,26316684,27506744,null,null,"Justice and Constitutional Development",15699701,16395516,17136932]
[null,null,null,null,null,null,null,null,null,null,null,null,null,null,null,null,null,null,null,null,null,null,null,null,null,19,26,"Military Veterans","Mashudu Bidzha","(012) 315 5344","Mashudu.Bidzha@treasury.gov.za","Lesiba Ledwaba","(012) 395 6660","Lesiba.Ledwaba@treasury.gov.za",937280,979921,1024229,146550,153263,160194,null,null,null,null,"Military Veterans",937280,979921,1024229,null,null,"Military Veterans",146550,153263,160194]
[null,null,null,null,null,null,null,null,null,null,null,null,null,null,null,null,null,null,null,null,null,null,null,null,null,20,34,"Mineral Resources and Energy","Rezah Atcha","(012) 315 5287","Rezah.Atcha@treasury.gov.za","Nomagugu Madikane","(012) 315 5312","Nomagugu.Madikane@treasury.gov.za",8948377,9113750,9525875,1162586,1215852,1270835,null,null,null,null,"Mineral Resources and Energy",8948377,9113750,9525875,null,null,"Mineral Resources and Energy",1162586,1215852,1270835]
[null,null,null,null,null,null,null,null,null,null,null,null,null,null,null,null,null,null,null,null,null,null,null,null,null,21,7,"National School of Government","George Tembo","(012) 315 5514","George.Tembo@treasury.gov.za","Mercy Mhlophe","(012) 315 5598","Mercy.Mhlophe@treasury.gov.za",228114,238820,249619,65890,68908,72025,null,null,null,null,"National School of Government",228114,238820,249619,null,null,"National School of Government",65890,68908,72025]
[null,null,null,null,null,null,null,null,null,null,null,null,null,null,null,null,null,null,null,null,null,null,null,null,null,22,8,"National Treasury","Mokgatla Tema","(012) 315 5948","Mokgatla.Tema@treasury.gov.za","Rhoda Marais","(012) 315 5906","Rhoda.Marais@treasury.gov.za",1096007433,1151125785,1207294369,973298,1017834,1063861,null,null,null,null,"National Treasury",1096007433,1151125785,1207294369,null,null,"National Treasury",973298,1017834,1063861]
[null,null,null,null,null,null,null,null,null,null,null,null,null,null,null,null,null,null,null,null,null,null,null,null,null,23,27,"Office of the Chief Justice","Elvis Ramafamba","(012) 315 5204","Elvis.Ramafamba@treasury.gov.za","Keabetswe Matlwa","(012) 395 6678","Keabetswe.Matlwa@treasury.gov.za",2493370,2615156,2733406,1998728,2089173,2183646,null,null,null,null,"Office of the Chief Justice",2493370,2615156,2733406,null,null,"Office of the Chief Justice",1998728,2089173,2183646]
[null,null,null,null,null,null,null,null,null,null,null,null,null,null,null,null,null,null,null,null,null,null,null,null,null,24,2,"Parliament","Maggy Mokoka","(012) 315 5468","Maggy.Mokoka@treasury.gov.za","Pindi Masiso","(012) 315 5722","Pindi.Masiso@treasury.gov.za",3382640,3072997,3211965,1566258,1638015,1712086,null,null,null,null,"Parliament",3382640,3072997,3211965,null,null,"Parliament",1566258,1638015,1712086]
[null,null,null,null,null,null,null,null,null,null,null,null,null,null,null,null,null,null,null,null,null,null,null,null,null,25,9,"Planning, Monitoring and Evaluation","Mokgatla Tema","(012) 315 5948","Mokgatla.Tema@treasury.gov.za","Viwe Sobudula ","(012) 315 5015 ","Viwe.Sobudula@treasury.gov.za",470298,495360,517765,351632,367740,384372,null,null,null,null,"Planning, Monitoring and Evaluation",470298,495360,517765,null,null,"Planning, Monitoring and Evaluation",351632,367740,384372]
[null,null,null,null,null,null,null,null,null,null,null,null,null,null,null,null,null,null,null,null,null,null,null,null,null,26,28,"Police","Velisubuhle Buti","(012) 395 6709","Velisubuhle.Buti@treasury.gov.za","Ntombizodwa Dingiswayo","(012) 315 5112","Ntombizodwa.Dingiswayo@treasury.gov.za",119367897,124832929,130477952,98026789,102512383,107148056,null,null,null,null,"Police",119367897,124832929,130477952,null,null,"Police",98026789,102512383,107148056]
[null,null,null,null,null,null,null,null,null,null,null,null,null,null,null,null,null,null,null,null,null,null,null,null,null,27,10,"Public Enterprises","Isaac Kurasha","(012) 315 5213","Isaac.Kurasha@treasury.gov.za","Tumelo Movare","(012) 315 5279","Tumelo.Movare@treasury.gov.za",308630,323543,338172,183972,192304,201000,null,null,null,null,"Public Enterprises",308630,323543,338172,null,null,"Public Enterprises",183972,192304,201000]
[null,null,null,null,null,null,null,null,null,null,null,null,null,null,null,null,null,null,null,null,null,null,null,null,null,28,11,"Public Service and Administration","George Tembo","(012) 315 5514","George.Tembo@treasury.gov.za","Uvadhya Singh","(012) 315 9030","Uvadhya.Singh@treasury.gov.za",561804,588792,615412,305169,319157,333589,null,null,null,null,"Public Service and Administration",561804,588792,615412,null,null,"Public Service and Administration",305169,319157,333589]
[null,null,null,null,null,null,null,null,null,null,null,null,null,null,null,null,null,null,null,null,null,null,null,null,null,29,12,"Public Service Commission","George Tembo","(012) 315 5514","George.Tembo@treasury.gov.za","Mercy Mhlophe","(012) 315 5598","mercy.mhlope@treasury.gov.za",300049,314718,328946,226003,237051,247768,null,null,null,null,"Public Service Commission",300049,314718,328946,null,null,"Public Service Commission",226003,237051,247768]
[null,null,null,null,null,null,null,null,null,null,null,null,null,null,null,null,null,null,null,null,null,null,null,null,null,30,13,"Public Works and Infrastructure","George Tembo","(012) 315 5514","George.Tembo@treasury.gov.za","Uvadhya Singh","(012) 315 9030","Uvadhya.Singh@treasury.gov.za",7904595,8268498,8642409,640502,669847,700136,null,null,null,null,"Public Works and Infrastructure",7904595,8268498,8642409,null,null,"Public Works and Infrastructure",640502,669847,700136]
[null,null,null,null,null,null,null,null,null,null,null,null,null,null,null,null,null,null,null,null,null,null,null,null,null,31,35,"Science and Innovation","Humbelani Ramuedzisi","(012) 315 5320","Humbelani.Ramuedzisi@treasury.gov.za","Jabulani Mahlangu","(012) 315 5166","Jabulani.Mahlangu@treasury.gov.za",9089124,9510088,9940128,403758,422257,441352,null,null,null,null,"Science and Innovation",9089124,9510088,9940128,null,null,"Science and Innovation",403758,422257,441352]
[null,null,null,null,null,null,null,null,null,null,null,null,null,null,null,null,null,null,null,null,null,null,null,null,null,32,36,"Small Business Development","Bothwell Deka","(012) 395 6784","Bothwell.Deka@treasury.gov.za","Nico Likhethe","(012) 315 5558","Nico.Likhethe@treasury.gov.za",2544287,2661856,2782226,262751,274743,287166,null,null,null,null,"Small Business Development",2544287,2661856,2782226,null,null,"Small Business Development",262751,274743,287166]
[null,null,null,null,null,null,null,null,null,null,null,null,null,null,null,null,null,null,null,null,null,null,null,null,null,33,19,"Social Development","Pebetse Maleka","(012) 315 5566","Pebetse.Maleka@treasury.gov.za","Yusuf Mayet","(012) 315 5189","Yusuf.Mayet@treasury.gov.za",257407647,269195655,281368845,559929,585583,612065,null,null,null,null,"Social Development",257407647,269195655,281368845,null,null,"Social Development",559929,585583,612065]
[null,null,null,null,null,null,null,null,null,null,null,null,null,null,null,null,null,null,null,null,null,null,null,null,null,34,37,"Sport, Arts and Culture","Judy Naidoo","(012) 315 5269","Judy.Naidoo@treasury.gov.za","Mabele Mdhluli","(012) 315 5573","Mabele.Mdhluli@treasury.gov.za",5949647,6223833,6505272,419708,438959,458808,null,null,null,null,"Sport, Arts and Culture",5949647,6223833,6505272,null,null,"Sport, Arts and Culture",419708,438959,458808]
[null,null,null,null,null,null,null,null,null,null,null,null,null,null,null,null,null,null,null,null,null,null,null,null,null,35,14,"Statistics South Africa","Mokgatla Tema","(012) 315 5948","Mokgatla.Tema@treasury.gov.za","Thobeka Mbonambi","(012) 395 6719","Thobeka.Mbonambi@treasury.gov.za",2754523,2887645,3018224,1809186,1892077,1977641,null,null,null,null,"Statistics South Africa",2754523,2887645,3018224,null,null,"Statistics South Africa",1809186,1892077,1977641]
[null,null,null,null,null,null,null,null,null,null,null,null,null,null,null,null,null,null,null,null,null,null,null,null,null,36,1,"The Presidency","Timothy Murwa","(012) 315 5002","Timothy.Murwa@treasury.gov.za","Maggy Mokoka","(012) 315 5468","Maggy.Mokoka@treasury.gov.za",637092,667910,698110,406750,427554,446888,null,null,null,null,"The Presidency",637092,667910,698110,null,null,"The Presidency",406750,427554,446888]
[null,null,null,null,null,null,null,null,null,null,null,null,null,null,null,null,null,null,null,null,null,null,null,null,null,37,38,"Tourism","Humbelani Ramuedzisi","(012) 315 5320","Humbelani.Ramuedzisi@treasury.gov.za","Ashley Ramasimu","(012) 315 5166","Ashley.Ramasimu@treasury.gov.za",2502652,2618870,2737292,429134,447824,468073,null,null,null,null,"Tourism",2502652,2618870,2737292,null,null,"Tourism",429134,447824,468073]
[null,null,null,null,null,null,null,null,null,null,null,null,null,null,null,null,null,null,null,null,null,null,null,null,null,38,39,"Trade, Industry and Competition","Isaac Kurasha","(012) 315 5213","Isaac.Kurasha@treasury.gov.za","Rudzani Sikhwari","(012) 315 5823","rudzani.sikhwari@treasury.gov.za",10023794,10487340,10961580,1128561,1180267,1233641,null,null,null,null,"Trade, Industry and Competition",10023794,10487340,10961580,null,null,"Trade, Industry and Competition",1128561,1180267,1233641]
[null,null,null,null,null,null,null,null,null,null,null,null,null,null,null,null,null,null,null,null,null,null,null,null,null,39,15,"Traditional Affairs","Werner Krause","(012) 315 5211","Werner.Krause@treasury.gov.za","Portia Thebe","(012) 315 5855","Portia.Thebe@treasury.gov.za",194650,203971,213196,105440,110272,115260,null,null,null,null,"Traditional Affairs",194650,203971,213196,null,null,"Traditional Affairs",105440,110272,115260]
[null,null,null,null,null,null,null,null,null,null,null,null,null,null,null,null,null,null,null,null,null,null,null,null,null,40,40,"Transport","Pebetse Maleka","(012) 315 5566","Pebetse.Maleka@treasury.gov.za","Luyolo Ntlangula ","(012) 315 5571","luyolo.ntangula@treasury.gov.za",86868222,88591488,91072660,596765,624104,652327,null,null,null,null,"Transport",86868222,88591488,91072660,null,null,"Transport",596765,624104,652327]
[null,null,null,null,null,null,null,null,null,null,null,null,null,null,null,null,null,null,null,null,null,null,null,null,null,41,41,"Water and Sanitation","Werner Krause","(012) 315 5211","Werner.Krause@treasury.gov.za","Iqbal Mahomed Alli","(012) 315 5809","Iqbal.Mahomed-Alli@treasury.gov.za",25159941,23754548,22541843,2079498,2175064,2273421,null,null,null,null,"Water and Sanitation",25159941,23754548,22541843,null,null,"Water and Sanitation",2079498,2175064,2273421]
[null,null,null,null,null,null,null,null,null,null,null,null,null,null,null,null,null,null,null,null,null,null,null,null,null,42,20,"Women, Youth and Persons with Disabilities","Pebetse Maleka","(012) 315 5566","Pebetse.Maleka@treasury.gov.za","Desire Mathibe","(012) 395 6720","Desire.Mathibe@treasury.gov.za",785406,821688,858838,138290,144627,151167,null,null,null,null,"Women, Youth and Persons with Disabilities",785406,821688,858838,null,null,"Women, Youth and Persons with Disabilities",138290,144627,151167]
[]
[]
[null,null,null,null,null,null,null,null,null,null,null,null,null,null,null,null,null,null,null,null,null,null,null,null,null,null,null,null,null,null,null,null,null,null,{"$f":"SUM(AI4:AI45)","v":2209924475},2308222249,2413260677,216918553,226908885,237169849]

{"sheet":"Notes","index":1,"n_rows":72,"n_cols":18,"rows_kept":72,"cut":false,"hidden":false,"merged":[[42,1,42,15]]}
[]
[]
[]
[]
[]
[]
[]
[]
[]
[]
[]
[]
[]
[]
[]
[]
[]
[]
[]
[]
[]
[]
[]
[]
[]
[]
[]
[]
[]
[]
[]
[]
[]
[]
[]
[]
[]
[]
[]
[]
[]
[null,"Link to 2025 MTEF Guidelines"]
[null,"http://www.treasury.gov.za/publications/guidelines/default.aspx"]
[]
[]
[]
[]
[]
[]
[]
[]
[]
[]
[]
[]
[]
[null,null,null,null,null,null,null,null,null,null,null,null,null,null,null,null,null,"Click \"Enable Content\""]
[]
[]
[]
[]
[]
[]
[]
[]
[]
[]
[]
[null,null,null,null,null,null,null,null,null,null,null,null,null,null,null,null,null,"Tick \"Ignore Privacy Levels\" box"]
[]
[]
[null,null,null,null,null,null,null,null,null,null,null,null,null,null,null,null,null,"Click \"Save\""]

{"sheet":"Pivot % growth","index":2,"n_rows":68,"n_cols":17,"rows_kept":68,"cut":false,"hidden":false,"merged":[]}
[]
[]
[]
[]
[]
[]
[]
[]
[]
[]
[]
[]
[null,"Econ3","(All)"]
[null,"Econ2","(All)"]
[]
[null,"Row Labels"," 2024/25 Baseline"," 2025/26 Revised baseline"," 2026/27 Revised baseline"," 2027/28 Revised baseline"," 2025/26 adjustment"," 2026/27 adjustment"," 2027/28 adjustment","% YoY 2025/26","% YoY 2026/27","% YoY 2027/28"," Ave Ann growth History"," Ave Ann growth MTEF"," 2025/26 % adjustment"," 2026/27 % adjustment"," 2027/28 % adjustment"]
[null,"Administration",545025,576398,603000,630265,0,0,0,5.7562497133158974E-2,4.6152137932470305E-2,4.5215588723051425E-2,7.4325901256423688E-2,4.9628438622114412E-2,0,0,0]
[null,"Direct charge against the National Revenue Fund",13128,13716,14344,14993,0,0,0,4.4789762340036621E-2,4.5785943423738651E-2,4.5245398773006151E-2,0.57315072233828523,4.5273622206627229E-2,0,0,0]
[null,"Integrated Transport Planning",91665,95543,100666,105217,0,0,0,4.2306223749522642E-2,5.3619836094742634E-2,4.5208908668269432E-2,0.12290655203873913,4.7034014625165321E-2,0,0,0]
[null,"Rail Transport",19489974,20360660,21294646,22257601,0,0,0,4.4673533171465385E-2,4.5872088625810825E-2,4.5220521627830745E-2,5.1417302020864808E-2,4.5255266326617472E-2,0,0,0]
[null,"Road Transport",43728300,48037839,48816636,51024152,0,0,0,9.8552630676244091E-2,1.6212157253784776E-2,4.522056784084838E-2,8.6180979645528177E-2,5.2780261845598586E-2,0,0,0]
[null,"Civil Aviation",538475,567183,364369,380841,0,0,0,5.331352430474956E-2,-0.35758123921203566,4.5206919359221054E-2,-4.6341226407253799E-3,-0.10903758471788094,0,0,0]
[null,"Maritime Transport",189433,195232,430404,449866,0,0,0,3.0612406497283917E-2,1.204577118505163,4.5217981245527561E-2,0.1789605352450272,0.33416387780793877,0,0,0]
[null,"Public Transport",16038269,17021651,16967423,16209725,0,0,0,6.1314721682246276E-2,-3.1858249237984859E-3,-4.465604470401896E-2,7.6801525989148356E-2,3.5508533483541438E-3,0,0,0]
[null,"Grand Total",80634269,86868222,88591488,91072660,0,0,0,7.7311459225853474E-2,1.9837703136136531E-2,2.8006889330044915E-2,7.5004185242896648E-2,4.1412507763076034E-2,0,0,0]
[]
[]
[]
[]
[]
[]
[]
[]
[]
[]
[]
[]
[]
[]
[]
[]
[]
[]
[]
[]
[]
[]
[]
[]
[]
[]
[]
[]
[]
[]
[]
[]
[]
[]
[]
[]
[]
[]
[]
[]
[]
[null,null,null,{"$f":"E65-D65","v":0},1106425925.8410571,null,10433580.886867164]
[null,null,null,null,{"$f":"E65-E67","v":-1106425925.8410571},null,{"$f":"G67-G65","v":10433580.886867164}]

{"sheet":"Pivot_T","index":3,"n_rows":27,"n_cols":10,"rows_kept":27,"cut":false,"hidden":false,"merged":[]}
[]
[]
[]
[]
[]
[]
[]
[]
[]
[]
[null,"Econ4","(All)"]
[null,"Econ2","(All)"]
[null,"DOR","(All)"]
[null,"Econ3","(All)"]
[]
[null," Value","Column Labels"]
[null,null,"2024/25",null,"2025/26",null,"2026/27",null,"2027/28"]
[null,"Row Labels","Baseline","Revised baseline","Baseline","Revised baseline","Baseline","Revised baseline","Baseline","Revised baseline"]
[null,"Administration",545025,545025,576398,576398,603000,603000,630265,630265]
[null,"Direct charge against the National Revenue Fund",13128,13128,13716,13716,14344,14344,14993,14993]
[null,"Integrated Transport Planning",91665,91665,95543,95543,100666,100666,105217,105217]
[null,"Rail Transport",19489974,19489974,20360660,20360660,21294646,21294646,22257601,22257601]
[null,"Road Transport",43728300,43728300,48037839,48037839,48816636,48816636,51024152,51024152]
[null,"Civil Aviation",538475,538475,567183,567183,364369,364369,380841,380841]
[null,"Maritime Transport",189433,189433,195232,195232,430404,430404,449866,449866]
[null,"Public Transport",16038269,16038269,17021651,17021651,16967423,16967423,16209725,16209725]
[null,"Grand Total",80634269,80634269,86868222,86868222,88591488,88591488,91072660,91072660]

{"sheet":"Service delivery impact","index":4,"n_rows":17,"n_cols":5,"rows_kept":17,"cut":false,"hidden":false,"merged":[[14,1,14,4]]}
[]
[]
[]
[]
[]
[]
[]
[]
[]
[]
[]
[]
[]
[]
[null,"Note: Data in the table below is sourced from the individual SRT sheets. Any adjustments should be made on the SRT sheets. Ajustments made directly on this table will be over-written when the data is refreshed! …remember to refresh."]
[]
[null,"Impact area","Unit no","Unit name","Comment"]

{"sheet":"Performance impact","index":5,"n_rows":17,"n_cols":18,"rows_kept":17,"cut":false,"hidden":false,"merged":[[14,1,14,8]]}
[]
[]
[]
[]
[]
[]
[]
[]
[]
[]
[]
[]
[]
[]
[null,"Note: Data in the table below is sourced from the individual SRT sheets. Any adjustments should be made on the SRT sheets. Ajustments made directly on this table will be over-written when the data is refreshed!  …remember to refresh."]
[]
[null,"Impact area","Unit no","Unit name","Performance indicator","2024/25 Current performance","2024/25 Performance @ benchmark level","2024/25 Change","2025/26 Original target","2025/26 Revised target","2025/26 Change","2026/27 Original target","2026/27 Revised target","2026/27 Change","2027/28 Original target","2027/28 Revised target","2027/28 Change","Comment"]

{"sheet":"Pivot Infra impact","index":6,"n_rows":20,"n_cols":10,"rows_kept":20,"cut":false,"hidden":false,"merged":[]}
[]
[]
[]
[]
[]
[]
[]
[]
[]
[]
[]
[]
[]
[null,"Impact area","(All)"]
[]
[null," Value","Column Labels"]
[null,null,"2024/25",null,"2025/26",null,"2026/27",null,"2027/28"]
[null,"Row Labels","Current Number","Change","Original amount","Change","Original amount","Change","Original amount","Change"]
[null,"(blank)",0,0,0,0,0,0,0,0]
[null,"Grand Total",0,0,0,0,0,0,0,0]

{"sheet":"Pivot Personnel impact","index":7,"n_rows":23,"n_cols":6,"rows_kept":23,"cut":false,"hidden":false,"merged":[]}
[]
[]
[]
[]
[]
[]
[]
[]
[]
[]
[]
[]
[]
[]
[]
[null," Value","Column Labels"]
[null,null,"2024/25","2025/26","2026/27","2027/28"]
[null,"Row Labels","Change in number","Change in number","Change in number","Change in number"]
[null,"Levels 01 - 06",0,0,0,0]
[null,"Levels 07 - 12",0,0,0,0]
[null,"Levels 13 - 16",0,0,0,0]
[null,"Other",0,0,0,0]
[null,"Grand Total",0,0,0,0]

{"sheet":"Pivot HRBP","index":8,"n_rows":22,"n_cols":44,"rows_kept":22,"cut":false,"hidden":false,"merged":[]}
[]
[]
[]
[]
[]
[]
[]
[]
[]
[]
[]
[null,"Salary level","(All)"]
[null,"Programme No","(All)"]
[]
[null," Number","Columns"]
[null,null,"2023/24",null,null,null,null,null,"2024/25",null,null,null,null,null,null,null,null,"2025/26",null,null,null,null,null,null,null,null,"2026/27",null,null,null,null,null,null,null,null,"2027/28"]
[null,"Row Labels","Unit Costs","Once-off Payments per person","Establishment: Number of funded posts as at 31 March 2024","Establishment: Number of funded posts additional to the establishment","FTE Headcount","Estimated Outcome","Initial Headcount","Unit Costs","Once-off Payments per person","Vacant funded posts to be filled","Headcount reductions to be made","Revised Headcount","Cost of vacant posts to be filled","Savings from headcount reductions","Revised Estimate","Initial Headcount","Unit Costs","Once-off Payments per person","Vacant funded posts to be filled","Headcount reductions to be made","Revised Headcount","Cost of vacant posts to be filled","Savings from headcount reductions","MTEF Estimate","Initial Headcount","Unit Costs","Once-off Payments per person","Vacant funded posts to be filled","Headcount reductions to be made","Revised Headcount","Cost of vacant posts to be filled","Savings from headcount reductions","MTEF Estimate","Initial Headcount","Unit Costs","Once-off Payments per person","Vacant funded posts to be filled","Headcount reductions to be made","Revised Headcount","Cost of vacant posts to be filled","Savings from headcount reductions","MTEF Estimate"]
[null,"Levels 01 - 06",0,0,0,0,0,0,0,0,0,0,0,0,0,0,0,0,0,0,0,0,0,0,0,0,0,0,0,0,0,0,0,0,0,0,0,0,0,0,0,0,0,0]
[null,"Levels 07 - 12",0,0,0,0,0,0,0,0,0,0,0,0,0,0,0,0,0,0,0,0,0,0,0,0,0,0,0,0,0,0,0,0,0,0,0,0,0,0,0,0,0,0]
[null,"Levels 13 - 16",0,0,0,0,0,0,0,0,0,0,0,0,0,0,0,0,0,0,0,0,0,0,0,0,0,0,0,0,0,0,0,0,0,0,0,0,0,0,0,0,0,0]
[null,"Other",0,0,0,0,0,0,0,0,0,0,0,0,0,0,0,0,0,0,0,0,0,0,0,0,0,0,0,0,0,0,0,0,0,0,0,0,0,0,0,0,0,0]
[null,"Grand Total",0,0,0,0,0,0,0,0,0,0,0,0,0,0,0,0,0,0,0,0,0,0,0,0,0,0,0,0,0,0,0,0,0,0,0,0,0,0,0,0,0,0]

{"sheet":"Data","index":9,"n_rows":2045,"n_cols":109,"rows_kept":562,"cut":true,"hidden":false,"merged":[[16,96,16,108],[1,46,1,47],[2,46,2,47],[3,46,3,47],[4,46,4,47],[5,46,5,47]],"bounds":{"rows_first":250,"rows_last":62,"rows_between":250,"halvings":3}}
[null,null,null,null,null,null,null,null,null,null,null,null,null,null,null,null,null,null,null,null,null,null,null,null,null,null,null,null,null,null,null,null,null,null,null,null,null,null,null,null,null,null,null,null,null,null,null,null,null,null,null,null,null,null,null,null,null,null,null,null,null,null,null,null,null,null,null,null,null,null,null,null,null,null,null,null,null,null,null,null,null,null,null,null,null,null,null,null,null,null,null,{"$f":"SUM(CO1:CR1)","v":0},{"$f":"COUNTIF(Dataset[2024/25 Revised baseline],\"<0\")","v":0},{"$f":"COUNTIF(Dataset[2025/26 Revised baseline],\"<0\")","v":0},{"$f":"COUNTIF(Dataset[2026/27 Revised baseline],\"<0\")","v":0},{"$f":"COUNTIF(Dataset[2027/28 Revised baseline],\"<0\")","v":0}]
[null,null,null,null,null,null,null,null,null,null,null,null,null,null,null,null,null,null,null,null,null,null,null,null,null,null,null,null,null,null,null,null,null,null,null,null,null,null,null,null,null,null,null,null,null,null,"Spending review topics…"]
[null,null,null,null,null,null,null,null,null,null,null,null,null,null,null,null,null,null,null,null,null,null,null,null,null,null,null,null,null,null,null,null,null,null,null,null,null,null,null,null,null,null,null,null,null,1,"Spending review topic 1",null,null,null,null,null,null,null,null,null,null,null,null,null,null,null,null,null,null,null,null,null,null,null,null,null,null,null,null,null,null,null,null,null,null,null,null,null,null,null,null,null,null,null,null,null,null,{"$f":"COUNTIF(Dataset[2025/26 Revised baseline],\"<0\")","v":0},{"$f":"COUNTIF(Dataset[2026/27 Revised baseline],\"<0\")","v":0},{"$f":"COUNTIF(Dataset[2027/28 Revised baseline],\"<0\")","v":0}]
[null,null,null,null,null,null,null,null,null,null,null,null,null,null,null,null,null,null,null,null,null,null,null,null,null,null,null,null,null,null,null,null,null,null,null,null,null,null,null,null,null,null,null,null,null,2,"Spending review topic 2"]
[null,null,null,null,null,null,null,null,null,null,null,null,null,null,null,null,null,null,null,null,null,null,null,null,null,null,null,null,null,null,null,null,null,null,null,null,null,null,null,null,null,null,null,null,null,3,"Spending review topic 3"]
[null,null,null,null,null,null,null,null,null,null,null,null,null,null,null,null,null,null,null,null,null,null,null,null,null,null,null,null,null,null,null,null,null,null,null,null,null,null,null,null,null,null,null,null,null,4,"Spending review topic 4",null,null,null,null,null,null,null,null,null,null,null,null,null,null,null,null,null,null,null,null,null,null,null,null,null,null,null,null,null,null,null,null,null,null,null,null,null,null,null,null,null,null,null,null,null,null,{"$f":"MyYear5","v":"2025/26"},{"$f":"MyYear6","v":"2026/27"},{"$f":"MyYear7","v":"2027/28"}]
[]
[null,null,null,null,null,null,null,null,null,null,null,null,null,null,null,null,null,null,null,null,null,null,null,null,null,null,null,null,null,null,null,null,null,null,null,null,null,null,null,null,null,null,null,null,null,null,null,null,null,null,null,null,null,null,null,null,null,null,null,null,null,null,null,null,null,null,null,null,null,null,null,null,null,null,null,null,null,null,null,null,null,null,null,null,null,null,null,null,null,null,null,"Baseline ceiling:",null,{"$f":"INDEX(DeptCeiling,MATCH(MyVoteNo,VoteNoList,0),1)","v":86868222},{"$f":"INDEX(DeptCeiling,MATCH(MyVoteNo,VoteNoList,0),2)","v":88591488},{"$f":"INDEX(DeptCeiling,MATCH(MyVoteNo,VoteNoList,0),3)","v":91072660}]
[null,null,null,null,null,null,null,null,null,null,null,null,null,null,null,null,null,null,null,null,null,null,null,null,null,null,null,null,null,null,null,null,null,null,null,null,null,null,null,null,null,null,null,null,null,null,null,null,null,null,null,null,null,null,null,null,null,null,null,null,null,null,null,null,null,null,null,null,null,null,null,null,null,null,null,null,null,null,null,null,null,null,null,null,null,null,null,null,null,null,null,"(Over)/Under",null,{"$f":"CP8-SUM(Dataset[2025/26 Revised baseline])","v":0},{"$f":"CQ8-SUM(Dataset[2026/27 Revised baseline])","v":0},{"$f":"CR8-SUM(Dataset[2027/28 Revised baseline])","v":0}]
[]
[null,null,null,null,null,null,null,null,null,null,null,null,null,null,null,null,null,null,null,null,null,null,null,null,null,null,null,null,null,null,null,null,null,null,null,null,null,null,null,null,null,null,null,null,null,null,null,null,null,null,null,null,null,null,null,null,null,null,null,null,null,null,null,null,null,null,null,null,null,null,null,null,null,null,null,null,null,null,null,null,null,null,null,null,null,null,null,null,null,null,null,"CoE ceiling:",null,{"$f":"INDEX(CoECeiling,MATCH(MyVoteNo,VoteNoList,0),1)","v":596765},{"$f":"INDEX(CoECeiling,MATCH(MyVoteNo,VoteNoList,0),2)","v":624104},{"$f":"INDEX(CoECeiling,MATCH(MyVoteNo,VoteNoList,0),3)","v":652327}]
[null,null,null,null,null,null,null,null,null,null,null,null,null,null,null,null,null,null,null,null,null,null,null,null,null,null,null,null,null,null,null,null,null,null,null,null,null,null,null,null,null,null,null,null,null,null,null,null,null,null,null,null,null,null,null,null,null,null,null,null,null,null,null,null,null,null,null,null,null,null,null,null,null,null,null,null,null,null,null,null,null,null,null,null,null,null,null,null,null,null,null,"(Over)/Under",null,{"$f":"CP11-SUMIF(Dataset[Econ3],\"Compensation of employees\",Dataset[2025/26 Revised baseline])","v":0},{"$f":"CQ11-SUMIF(Dataset[Econ3],\"Compensation of employees\",Dataset[2026/27 Revised baseline])","v":0},{"$f":"CR11-SUMIF(Dataset[Econ3],\"Compensation of employees\",Dataset[2027/28 Revised baseline])","v":0}]
[]
[]
[null,null,null,null,null,null,null,null,null,null,null,null,null,null,null,null,null,null,null,null,null,null,null,null,null,null,null,null,null,null,null,null,null,null,{"$f":"AI18","v":"2020/21"},"2021/22","2022/23","2023/24 Main appropriation","2023/24 Adjusted appropriation","2023/24 Revised estimate","2023/24 Preliminary outcome","2024/25 Baseline","2025/26 Baseline","2026/27 Baseline","2027/28 Baseline","2025/26 From - Spending review Topic 1","2026/27 From - Spending review Topic 1","2027/28 From - Spending review Topic 1","2025/26 To - Spending review Topic 1","2026/27 To - Spending review Topic 1","2027/28 To - Spending review Topic 1","2025/26 From - Spending review Topic 2","2026/27 From - Spending review Topic 2","2027/28 From - Spending review Topic 2","2025/26 To - Spending review Topic 2","2026/27 To - Spending review Topic 2","2027/28 To - Spending review Topic 2","2025/26 From - Spending review Topic 3","2026/27 From - Spending review Topic 3","2027/28 From - Spending review Topic 3","2025/26 To - Spending review Topic 3","2026/27 To - Spending review Topic 3","2027/28 To - Spending review Topic 3","2025/26 From - Spending review Topic 4","2026/27 From - Spending review Topic 4","2027/28 From - Spending review Topic 4",{"$f":"BO18","v":"2025/26 To - Spending review Topic 4"},"2026/27 To - Spending review Topic 4","2027/28 To - Spending review Topic 4","2025/26 From - Other reallocations","2026/27 From - Other reallocations","2027/28 From - Other reallocations","2025/26 To - Other reallocations","2026/27 To - Other reallocations","2027/28 To - Other reallocations","2024/25 Reduction","2025/26 Reduction","2026/27 Reduction","2027/28 Reduction","2025/26 From - Total","2026/27 From - Total","2027/28 From - Total","2025/26 To - Total","2026/27 To - Total","2027/28 To - Total","2025/26 Total decrease","2026/27 Total decrease","2027/28 Total decrease","2024/25 Total change","2025/26 Total change","2026/27 Total change","2027/28 Total change","2024/25 Revised baseline","2025/26 Revised baseline","2026/27 Revised baseline","2027/28 Revised baseline"]
[null,null,null,null,null,null,null,null,null,null,null,null,null,null,null,null,null,null,null,null,null,null,null,null,null,null,null,null,null,null,null,null,null,"Subtotal:  ",{"$f":"SUBTOTAL(9,Dataset[2020/21])","v":57073815},{"$f":"SUBTOTAL(9,Dataset[2021/22])","v":64906649},{"$f":"SUBTOTAL(9,Dataset[2022/23])","v":94544753},{"$f":"SUBTOTAL(9,Dataset[2023/24 Main appropriation])","v":79565011},{"$f":"SUBTOTAL(9,Dataset[2023/24 Adjusted appropriation])","v":78295011},{"$f":"SUBTOTAL(9,Dataset[2023/24 Revised estimate])","v":78220011},{"$f":"SUBTOTAL(9,Dataset[2023/24 Preliminary outcome])","v":1383996},{"$f":"SUBTOTAL(9,Dataset[2024/25 Baseline])","v":80634269},{"$f":"SUBTOTAL(9,Dataset[2025/26 Baseline])","v":86868222},{"$f":"SUBTOTAL(9,Dataset[2026/27 Baseline])","v":88591488},{"$f":"SUBTOTAL(9,Dataset[2027/28 Baseline])","v":91072660},{"$f":"SUBTOTAL(9,Dataset[2025/26 From - Spending review Topic 1])","v":0},{"$f":"SUBTOTAL(9,Dataset[2026/27 From - Spending review Topic 1])","v":0},{"$f":"SUBTOTAL(9,Dataset[2027/28 From - Spending review Topic 1])","v":0},{"$f":"SUBTOTAL(9,Dataset[2025/26 To - Spending review Topic 1])","v":0},{"$f":"SUBTOTAL(9,Dataset[2026/27 To - Spending review Topic 1])","v":0},{"$f":"SUBTOTAL(9,Dataset[2027/28 To - Spending review Topic 1])","v":0},{"$f":"SUBTOTAL(9,Dataset[2025/26 From - Spending review Topic 2])","v":0},{"$f":"SUBTOTAL(9,Dataset[2026/27 From - Spending review Topic 2])","v":0},{"$f":"SUBTOTAL(9,Dataset[2027/28 From - Spending review Topic 2])","v":0},{"$f":"SUBTOTAL(9,Dataset[2025/26 To - Spending review Topic 2])","v":0},{"$f":"SUBTOTAL(9,Dataset[2026/27 To - Spending review Topic 2])","v":0},{"$f":"SUBTOTAL(9,Dataset[2027/28 To - Spending review Topic 2])","v":0},{"$f":"SUBTOTAL(9,Dataset[2025/26 From - Spending review Topic 3])","v":0},{"$f":"SUBTOTAL(9,Dataset[2026/27 From - Spending review Topic 3])","v":0},{"$f":"SUBTOTAL(9,Dataset[2027/28 From - Spending review Topic 3])","v":0},{"$f":"SUBTOTAL(9,Dataset[2025/26 To - Spending review Topic 3])","v":0},{"$f":"SUBTOTAL(9,Dataset[2026/27 To - Spending review Topic 3])","v":0},{"$f":"SUBTOTAL(9,Dataset[2027/28 To - Spending review Topic 3])","v":0},{"$f":"SUBTOTAL(9,Dataset[2025/26 From - Spending review Topic 4])","v":0},{"$f":"SUBTOTAL(9,Dataset[2026/27 From - Spending review Topic 4])","v":0},{"$f":"SUBTOTAL(9,Dataset[2027/28 From - Spending review Topic 4])","v":0},{"$f":"SUBTOTAL(9,Dataset[2025/26 To - Spending review Topic 4])","v":0},{"$f":"SUBTOTAL(9,Dataset[2026/27 To - Spending review Topic 4])","v":0},{"$f":"SUBTOTAL(9,Dataset[2027/28 To - Spending review Topic 4])","v":0},{"$f":"SUBTOTAL(9,Dataset[2025/26 From - Other reallocations])","v":0},{"$f":"SUBTOTAL(9,Dataset[2026/27 From - Other reallocations])","v":0},{"$f":"SUBTOTAL(9,Dataset[2027/28 From - Other reallocations])","v":0},{"$f":"SUBTOTAL(9,Dataset[2025/26 To - Other reallocations])","v":0},{"$f":"SUBTOTAL(9,Dataset[2026/27 To - Other reallocations])","v":0},{"$f":"SUBTOTAL(9,Dataset[2027/28 To - Other reallocations])","v":0},{"$f":"SUBTOTAL(9,Dataset[2024/25 Reduction])","v":0},{"$f":"SUBTOTAL(9,Dataset[2025/26 Reduction])","v":0},{"$f":"SUBTOTAL(9,Dataset[2026/27 Reduction])","v":0},{"$f":"SUBTOTAL(9,Dataset[2027/28 Reduction])","v":0},{"$f":"SUBTOTAL(9,Dataset[2025/26 From - Total])","v":0},{"$f":"SUBTOTAL(9,Dataset[2026/27 From - Total])","v":0},{"$f":"SUBTOTAL(9,Dataset[2027/28 From - Total])","v":0},{"$f":"SUBTOTAL(9,Dataset[2025/26 To - Total])","v":0},{"$f":"SUBTOTAL(9,Dataset[2026/27 To - Total])","v":0},{"$f":"SUBTOTAL(9,Dataset[2027/28 To - Total])","v":0},{"$f":"SUBTOTAL(9,Dataset[2025/26 Total decrease])","v":0},{"$f":"SUBTOTAL(9,Dataset[2026/27 Total decrease])","v":0},{"$f":"SUBTOTAL(9,Dataset[2027/28 Total decrease])","v":0},{"$f":"SUBTOTAL(9,Dataset[2024/25 Total change])","v":0},{"$f":"SUBTOTAL(9,Dataset[2025/26 Total change])","v":0},{"$f":"SUBTOTAL(9,Dataset[2026/27 Total change])","v":0},{"$f":"SUBTOTAL(9,Dataset[2027/28 Total change])","v":0},{"$f":"SUBTOTAL(9,Dataset[2024/25 Revised baseline])","v":80634269},{"$f":"SUBTOTAL(9,Dataset[2025/26 Revised baseline])","v":86868222},{"$f":"SUBTOTAL(9,Dataset[2026/27 Revised baseline])","v":88591488},{"$f":"SUBTOTAL(9,Dataset[2027/28 Revised baseline])","v":91072660},{"$f":"SUBTOTAL(9,Dataset[2020/21 PEI Budget])","v":0},{"$f":"SUBTOTAL(9,Dataset[2020/21 PEI Actual])","v":0},{"$f":"SUBTOTAL(9,Dataset[2021/22 PEI Budget])","v":0},{"$f":"SUBTOTAL(9,Dataset[2021/22 PEI Actual])","v":0},{"$f":"SUBTOTAL(9,Dataset[2022/23 PEI Budget])","v":0},{"$f":"SUBTOTAL(9,Dataset[2022/23 PEI Actual])","v":0},{"$f":"SUBTOTAL(9,Dataset[2023/24 PEI Main appropriation])","v":0},{"$f":"SUBTOTAL(9,Dataset[2023/24 PEI Adjusted appropriation])","v":0},{"$f":"SUBTOTAL(9,Dataset[2023/24 PEI Preliminary outcome])","v":0},{"$f":"SUBTOTAL(9,Dataset[2024/25 PEI Baseline])","v":0},{"$f":"SUBTOTAL(9,Dataset[2025/26 PEI Baseline])","v":0},{"$f":"SUBTOTAL(9,Dataset[2026/27 PEI Baseline])","v":0},{"$f":"SUBTOTAL(9,Dataset[2027/28 PEI Baseline])","v":0}]
[null,null,null,null,null,null,null,null,null,null,null,null,null,null,null,null,null,null,null,null,null,null,null,null,null,null,null,null,null,null,null,null,null,null,null,null,null,null,null,null,null,null,null,null,null,{"$f":"\"…\"&SRTopic1","v":"…Spending review topic 1"},null,null,null,null,null,{"$f":"\"…\"&SRTopic2","v":"…Spending review topic 2"},null,null,null,null,null,{"$f":"\"…\"&SRTopic3","v":"…Spending review topic 3"},null,null,null,null,null,{"$f":"\"…\"&SRTopic4","v":"…Spending review topic 4"},null,null,null,null,null,"…Reallocations other than spending reviews",null,null,null,null,null,"…Reductions",null,null,null,null,null,null,null,null,null,null,null,null,null,null,null,"…red shaded cells below indicate negative budgets.",{"$f":"IF(CO1<>0,\"Negative budgets\",\"\")","v":""},"","","","Presidential Employment Initiative (PEI)"]
["Combo_DoR","Combo_Econ","Budget Year","Process","Vote No. - N","Programme No. - N","Subprogramme No. - N","Index - N","Index - N2","Vote No.","Programme No.","Subprogramme No.","Index","Index2","UID","Econ1_IDn","Econ2_IDn","Econ3_IDn","Econ4_IDn","Econ5_IDn","Econ_UID","Province","Department","Programme","Subprogramme","Transfers and subsidies / Payments for financial assets detail","Econ1","Econ2","Econ3","Econ4","Econ5","Function group","Technical group","DOR","2020/21","2021/22","2022/23","2023/24 Main appropriation","2023/24 Adjusted appropriation","2023/24 Revised estimate","2023/24 Preliminary outcome","2024/25 Baseline","2025/26 Baseline","2026/27 Baseline","2027/28 Baseline","2025/26 From - Spending review Topic 1","2026/27 From - Spending review Topic 1","2027/28 From - Spending review Topic 1","2025/26 To - Spending review Topic 1","2026/27 To - Spending review Topic 1","2027/28 To - Spending review Topic 1","2025/26 From - Spending review Topic 2","2026/27 From - Spending review Topic 2","2027/28 From - Spending review Topic 2","2025/26 To - Spending review Topic 2","2026/27 To - Spending review Topic 2","2027/28 To - Spending review Topic 2","2025/26 From - Spending review Topic 3","2026/27 From - Spending review Topic 3","2027/28 From - Spending review Topic 3","2025/26 To - Spending review Topic 3","2026/27 To - Spending review Topic 3","2027/28 To - Spending review Topic 3","2025/26 From - Spending review Topic 4","2026/27 From - Spending review Topic 4","2027/28 From - Spending review Topic 4","2025/26 To - Spending review Topic 4","2026/27 To - Spending review Topic 4","2027/28 To - Spending review Topic 4","2025/26 From - Other reallocations","2026/27 From - Other reallocations","2027/28 From - Other reallocations","2025/26 To - Other reallocations","2026/27 To - Other reallocations","2027/28 To - Other reallocations","2024/25 Reduction","2025/26 Reduction","2026/27 Reduction","2027/28 Reduction","2025/26 From - Total","2026/27 From - Total","2027/28 From - Total","2025/26 To - Total","2026/27 To - Total","2027/28 To - Total","2025/26 Total decrease","2026/27 Total decrease","2027/28 Total decrease","2024/25 Total change","2025/26 Total change","2026/27 Total change","2027/28 Total change","2024/25 Revised baseline","2025/26 Revised baseline","2026/27 Revised baseline","2027/28 Revised baseline","2020/21 PEI Budget","2020/21 PEI Actual","2021/22 PEI Budget","2021/22 PEI Actual","2022/23 PEI Budget","2022/23 PEI Actual","2023/24 PEI Main appropriation","2023/24 PEI Adjusted appropriation","2023/24 PEI Preliminary outcome","2024/25 PEI Baseline","2025/26 PEI Baseline","2026/27 PEI Baseline","2027/28 PEI Baseline"]
["NAT|Non-transfer item","40|Salaries and wages","2025_26","MTEC2025",40,1,1,51273,1,"40","01","01","051273","000001","40|01|01|000001","01","01","01","01","01","01|01|01|01|01","National","Transport","Administration","Ministry","Non-transfer item","Current","Current payments","Compensation of employees","Salaries and wages","Salaries and wages","Economic development","Economic regulation and infrastructure","NAT",22456,20079,18866,17142,17924,17924,16520,18002,18807,19667,20556,null,null,null,null,null,null,null,null,null,null,null,null,null,null,null,null,null,null,null,null,null,null,null,null,null,null,null,null,null,null,null,null,null,null,{"$f":"Dataset[[#This Row],[2025/26 From - Spending review Topic 1]]+Dataset[[#This Row],[2025/26 From - Spending review Topic 2]]+Dataset[[#This Row],[2025/26 From - Spending review Topic 3]]+Dataset[[#This Row],[2025/26 From - Spending review Topic 4]]+Dataset[[#This Row],[2025/26 From - Other reallocations]]","v":0},{"$f":"Dataset[[#This Row],[2026/27 From - Spending review Topic 1]]+Dataset[[#This Row],[2026/27 From - Spending review Topic 2]]+Dataset[[#This Row],[2026/27 From - Spending review Topic 3]]+Dataset[[#This Row],[2026/27 From - Spending review Topic 4]]+Dataset[[#This Row],[2026/27 From - Other reallocations]]","v":0},{"$f":"Dataset[[#This Row],[2027/28 From - Spending review Topic 1]]+Dataset[[#This Row],[2027/28 From - Spending review Topic 2]]+Dataset[[#This Row],[2027/28 From - Spending review Topic 3]]+Dataset[[#This Row],[2027/28 From - Spending review Topic 4]]+Dataset[[#This Row],[2027/28 From - Other reallocations]]","v":0},{"$f":"Dataset[[#This Row],[2025/26 To - Spending review Topic 1]]+Dataset[[#This Row],[2025/26 To - Spending review Topic 2]]+Dataset[[#This Row],[2025/26 To - Spending review Topic 3]]+Dataset[[#This Row],[2025/26 To - Spending review Topic 4]]+Dataset[[#This Row],[2025/26 To - Other reallocations]]","v":0},{"$f":"Dataset[[#This Row],[2026/27 To - Spending review Topic 1]]+Dataset[[#This Row],[2026/27 To - Spending review Topic 2]]+Dataset[[#This Row],[2026/27 To - Spending review Topic 3]]+Dataset[[#This Row],[2026/27 To - Spending review Topic 4]]+Dataset[[#This Row],[2026/27 To - Other reallocations]]","v":0},{"$f":"Dataset[[#This Row],[2027/28 To - Spending review Topic 1]]+Dataset[[#This Row],[2027/28 To - Spending review Topic 2]]+Dataset[[#This Row],[2027/28 To - Spending review Topic 3]]+Dataset[[#This Row],[2027/28 To - Spending review Topic 4]]+Dataset[[#This Row],[2027/28 To - Other reallocations]]","v":0},{"$f":"Dataset[[#This Row],[2025/26 Reduction]]+Dataset[[#This Row],[2025/26 From - Total]]","v":0},{"$f":"Dataset[[#This Row],[2026/27 Reduction]]+Dataset[[#This Row],[2026/27 From - Total]]","v":0},{"$f":"Dataset[[#This Row],[2027/28 Reduction]]+Dataset[[#This Row],[2027/28 From - Total]]","v":0},{"$f":"Dataset[[#This Row],[2024/25 Reduction]]","v":0},{"$f":"SUM(Dataset[[#This Row],[2025/26 Reduction]],Dataset[[#This Row],[2025/26 From - Total]],Dataset[[#This Row],[2025/26 To - Total]])","v":0},{"$f":"SUM(Dataset[[#This Row],[2026/27 Reduction]],Dataset[[#This Row],[2026/27 From - Total]],Dataset[[#This Row],[2026/27 To - Total]])","v":0},{"$f":"SUM(Dataset[[#This Row],[2027/28 Reduction]],Dataset[[#This Row],[2027/28 From - Total]],Dataset[[#This Row],[2027/28 To - Total]])","v":0},{"$f":"Dataset[[#This Row],[2024/25 Baseline]]+Dataset[[#This Row],[2024/25 Total change]]","v":18002},{"$f":"Dataset[[#This Row],[2025/26 Baseline]]+Dataset[[#This Row],[2025/26 Total change]]","v":18807},{"$f":"Dataset[[#This Row],[2026/27 Baseline]]+Dataset[[#This Row],[2026/27 Total change]]","v":19667},{"$f":"Dataset[[#This Row],[2027/28 Baseline]]+Dataset[[#This Row],[2027/28 Total change]]","v":20556}]
["NAT|Non-transfer item","40|Social contributions","2025_26","MTEC2025",40,1,1,51274,2,"40","01","01","051274","000002","40|01|01|000002","01","01","01","02","02","01|01|01|02|02","National","Transport","Administration","Ministry","Non-transfer item","Current","Current payments","Compensation of employees","Social contributions","Social contributions","Economic development","Economic regulation and infrastructure","NAT",1679,1524,1483,1583,1583,1583,1085,1583,1653,1730,1808,null,null,null,null,null,null,null,null,null,null,null,null,null,null,null,null,null,null,null,null,null,null,null,null,null,null,null,null,null,null,null,null,null,null,{"$f":"Dataset[[#This Row],[2025/26 From - Spending review Topic 1]]+Dataset[[#This Row],[2025/26 From - Spending review Topic 2]]+Dataset[[#This Row],[2025/26 From - Spending review Topic 3]]+Dataset[[#This Row],[2025/26 From - Spending review Topic 4]]+Dataset[[#This Row],[2025/26 From - Other reallocations]]","v":0},{"$f":"Dataset[[#This Row],[2026/27 From - Spending review Topic 1]]+Dataset[[#This Row],[2026/27 From - Spending review Topic 2]]+Dataset[[#This Row],[2026/27 From - Spending review Topic 3]]+Dataset[[#This Row],[2026/27 From - Spending review Topic 4]]+Dataset[[#This Row],[2026/27 From - Other reallocations]]","v":0},{"$f":"Dataset[[#This Row],[2027/28 From - Spending review Topic 1]]+Dataset[[#This Row],[2027/28 From - Spending review Topic 2]]+Dataset[[#This Row],[2027/28 From - Spending review Topic 3]]+Dataset[[#This Row],[2027/28 From - Spending review Topic 4]]+Dataset[[#This Row],[2027/28 From - Other reallocations]]","v":0},{"$f":"Dataset[[#This Row],[2025/26 To - Spending review Topic 1]]+Dataset[[#This Row],[2025/26 To - Spending review Topic 2]]+Dataset[[#This Row],[2025/26 To - Spending review Topic 3]]+Dataset[[#This Row],[2025/26 To - Spending review Topic 4]]+Dataset[[#This Row],[2025/26 To - Other reallocations]]","v":0},{"$f":"Dataset[[#This Row],[2026/27 To - Spending review Topic 1]]+Dataset[[#This Row],[2026/27 To - Spending review Topic 2]]+Dataset[[#This Row],[2026/27 To - Spending review Topic 3]]+Dataset[[#This Row],[2026/27 To - Spending review Topic 4]]+Dataset[[#This Row],[2026/27 To - Other reallocations]]","v":0},{"$f":"Dataset[[#This Row],[2027/28 To - Spending review Topic 1]]+Dataset[[#This Row],[2027/28 To - Spending review Topic 2]]+Dataset[[#This Row],[2027/28 To - Spending review Topic 3]]+Dataset[[#This Row],[2027/28 To - Spending review Topic 4]]+Dataset[[#This Row],[2027/28 To - Other reallocations]]","v":0},{"$f":"Dataset[[#This Row],[2025/26 Reduction]]+Dataset[[#This Row],[2025/26 From - Total]]","v":0},{"$f":"Dataset[[#This Row],[2026/27 Reduction]]+Dataset[[#This Row],[2026/27 From - Total]]","v":0},{"$f":"Dataset[[#This Row],[2027/28 Reduction]]+Dataset[[#This Row],[2027/28 From - Total]]","v":0},{"$f":"Dataset[[#This Row],[2024/25 Reduction]]","v":0},{"$f":"SUM(Dataset[[#This Row],[2025/26 Reduction]],Dataset[[#This Row],[2025/26 From - Total]],Dataset[[#This Row],[2025/26 To - Total]])","v":0},{"$f":"SUM(Dataset[[#This Row],[2026/27 Reduction]],Dataset[[#This Row],[2026/27 From - Total]],Dataset[[#This Row],[2026/27 To - Total]])","v":0},{"$f":"SUM(Dataset[[#This Row],[2027/28 Reduction]],Dataset[[#This Row],[2027/28 From - Total]],Dataset[[#This Row],[2027/28 To - Total]])","v":0},{"$f":"Dataset[[#This Row],[2024/25 Baseline]]+Dataset[[#This Row],[2024/25 Total change]]","v":1583},{"$f":"Dataset[[#This Row],[2025/26 Baseline]]+Dataset[[#This Row],[2025/26 Total change]]","v":1653},{"$f":"Dataset[[#This Row],[2026/27 Baseline]]+Dataset[[#This Row],[2026/27 Total change]]","v":1730},{"$f":"Dataset[[#This Row],[2027/28 Baseline]]+Dataset[[#This Row],[2027/28 Total change]]","v":1808}]
["NAT|Non-transfer item","40|Administrative fees","2025_26","MTEC2025",40,1,1,51275,3,"40","01","01","051275","000003","40|01|01|000003","01","01","02","03","03","01|01|02|03|03","National","Transport","Administration","Ministry","Non-transfer item","Current","Current payments","Goods and services","Administrative fees","Administrative fees","Economic development","Economic regulation and infrastructure","NAT",9,80,17,23,23,23,16,23,24,25,26,null,null,null,null,null,null,null,null,null,null,null,null,null,null,null,null,null,null,null,null,null,null,null,null,null,null,null,null,null,null,null,null,null,null,{"$f":"Dataset[[#This Row],[2025/26 From - Spending review Topic 1]]+Dataset[[#This Row],[2025/26 From - Spending review Topic 2]]+Dataset[[#This Row],[2025/26 From - Spending review Topic 3]]+Dataset[[#This Row],[2025/26 From - Spending review Topic 4]]+Dataset[[#This Row],[2025/26 From - Other reallocations]]","v":0},{"$f":"Dataset[[#This Row],[2026/27 From - Spending review Topic 1]]+Dataset[[#This Row],[2026/27 From - Spending review Topic 2]]+Dataset[[#This Row],[2026/27 From - Spending review Topic 3]]+Dataset[[#This Row],[2026/27 From - Spending review Topic 4]]+Dataset[[#This Row],[2026/27 From - Other reallocations]]","v":0},{"$f":"Dataset[[#This Row],[2027/28 From - Spending review Topic 1]]+Dataset[[#This Row],[2027/28 From - Spending review Topic 2]]+Dataset[[#This Row],[2027/28 From - Spending review Topic 3]]+Dataset[[#This Row],[2027/28 From - Spending review Topic 4]]+Dataset[[#This Row],[2027/28 From - Other reallocations]]","v":0},{"$f":"Dataset[[#This Row],[2025/26 To - Spending review Topic 1]]+Dataset[[#This Row],[2025/26 To - Spending review Topic 2]]+Dataset[[#This Row],[2025/26 To - Spending review Topic 3]]+Dataset[[#This Row],[2025/26 To - Spending review Topic 4]]+Dataset[[#This Row],[2025/26 To - Other reallocations]]","v":0},{"$f":"Dataset[[#This Row],[2026/27 To - Spending review Topic 1]]+Dataset[[#This Row],[2026/27 To - Spending review Topic 2]]+Dataset[[#This Row],[2026/27 To - Spending review Topic 3]]+Dataset[[#This Row],[2026/27 To - Spending review Topic 4]]+Dataset[[#This Row],[2026/27 To - Other reallocations]]","v":0},{"$f":"Dataset[[#This Row],[2027/28 To - Spending review Topic 1]]+Dataset[[#This Row],[2027/28 To - Spending review Topic 2]]+Dataset[[#This Row],[2027/28 To - Spending review Topic 3]]+Dataset[[#This Row],[2027/28 To - Spending review Topic 4]]+Dataset[[#This Row],[2027/28 To - Other reallocations]]","v":0},{"$f":"Dataset[[#This Row],[2025/26 Reduction]]+Dataset[[#This Row],[2025/26 From - Total]]","v":0},{"$f":"Dataset[[#This Row],[2026/27 Reduction]]+Dataset[[#This Row],[2026/27 From - Total]]","v":0},{"$f":"Dataset[[#This Row],[2027/28 Reduction]]+Dataset[[#This Row],[2027/28 From - Total]]","v":0},{"$f":"Dataset[[#This Row],[2024/25 Reduction]]","v":0},{"$f":"SUM(Dataset[[#This Row],[2025/26 Reduction]],Dataset[[#This Row],[2025/26 From - Total]],Dataset[[#This Row],[2025/26 To - Total]])","v":0},{"$f":"SUM(Dataset[[#This Row],[2026/27 Reduction]],Dataset[[#This Row],[2026/27 From - Total]],Dataset[[#This Row],[2026/27 To - Total]])","v":0},{"$f":"SUM(Dataset[[#This Row],[2027/28 Reduction]],Dataset[[#This Row],[2027/28 From - Total]],Dataset[[#This Row],[2027/28 To - Total]])","v":0},{"$f":"Dataset[[#This Row],[2024/25 Baseline]]+Dataset[[#This Row],[2024/25 Total change]]","v":23},{"$f":"Dataset[[#This Row],[2025/26 Baseline]]+Dataset[[#This Row],[2025/26 Total change]]","v":24},{"$f":"Dataset[[#This Row],[2026/27 Baseline]]+Dataset[[#This Row],[2026/27 Total change]]","v":25},{"$f":"Dataset[[#This Row],[2027/28 Baseline]]+Dataset[[#This Row],[2027/28 Total change]]","v":26}]
["NAT|Non-transfer item","40|Advertising","2025_26","MTEC2025",40,1,1,51276,4,"40","01","01","051276","000004","40|01|01|000004","01","01","02","04","04","01|01|02|04|04","National","Transport","Administration","Ministry","Non-transfer item","Current","Current payments","Goods and services","Advertising","Advertising","Economic development","Economic regulation and infrastructure","NAT",0,0,0,0,0,0,285,0,0,0,0,null,null,null,null,null,null,null,null,null,null,null,null,null,null,null,null,null,null,null,null,null,null,null,null,null,null,null,null,null,null,null,null,null,null,{"$f":"Dataset[[#This Row],[2025/26 From - Spending review Topic 1]]+Dataset[[#This Row],[2025/26 From - Spending review Topic 2]]+Dataset[[#This Row],[2025/26 From - Spending review Topic 3]]+Dataset[[#This Row],[2025/26 From - Spending review Topic 4]]+Dataset[[#This Row],[2025/26 From - Other reallocations]]","v":0},{"$f":"Dataset[[#This Row],[2026/27 From - Spending review Topic 1]]+Dataset[[#This Row],[2026/27 From - Spending review Topic 2]]+Dataset[[#This Row],[2026/27 From - Spending review Topic 3]]+Dataset[[#This Row],[2026/27 From - Spending review Topic 4]]+Dataset[[#This Row],[2026/27 From - Other reallocations]]","v":0},{"$f":"Dataset[[#This Row],[2027/28 From - Spending review Topic 1]]+Dataset[[#This Row],[2027/28 From - Spending review Topic 2]]+Dataset[[#This Row],[2027/28 From - Spending review Topic 3]]+Dataset[[#This Row],[2027/28 From - Spending review Topic 4]]+Dataset[[#This Row],[2027/28 From - Other reallocations]]","v":0},{"$f":"Dataset[[#This Row],[2025/26 To - Spending review Topic 1]]+Dataset[[#This Row],[2025/26 To - Spending review Topic 2]]+Dataset[[#This Row],[2025/26 To - Spending review Topic 3]]+Dataset[[#This Row],[2025/26 To - Spending review Topic 4]]+Dataset[[#This Row],[2025/26 To - Other reallocations]]","v":0},{"$f":"Dataset[[#This Row],[2026/27 To - Spending review Topic 1]]+Dataset[[#This Row],[2026/27 To - Spending review Topic 2]]+Dataset[[#This Row],[2026/27 To - Spending review Topic 3]]+Dataset[[#This Row],[2026/27 To - Spending review Topic 4]]+Dataset[[#This Row],[2026/27 To - Other reallocations]]","v":0},{"$f":"Dataset[[#This Row],[2027/28 To - Spending review Topic 1]]+Dataset[[#This Row],[2027/28 To - Spending review Topic 2]]+Dataset[[#This Row],[2027/28 To - Spending review Topic 3]]+Dataset[[#This Row],[2027/28 To - Spending review Topic 4]]+Dataset[[#This Row],[2027/28 To - Other reallocations]]","v":0},{"$f":"Dataset[[#This Row],[2025/26 Reduction]]+Dataset[[#This Row],[2025/26 From - Total]]","v":0},{"$f":"Dataset[[#This Row],[2026/27 Reduction]]+Dataset[[#This Row],[2026/27 From - Total]]","v":0},{"$f":"Dataset[[#This Row],[2027/28 Reduction]]+Dataset[[#This Row],[2027/28 From - Total]]","v":0},{"$f":"Dataset[[#This Row],[2024/25 Reduction]]","v":0},{"$f":"SUM(Dataset[[#This Row],[2025/26 Reduction]],Dataset[[#This Row],[2025/26 From - Total]],Dataset[[#This Row],[2025/26 To - Total]])","v":0},{"$f":"SUM(Dataset[[#This Row],[2026/27 Reduction]],Dataset[[#This Row],[2026/27 From - Total]],Dataset[[#This Row],[2026/27 To - Total]])","v":0},{"$f":"SUM(Dataset[[#This Row],[2027/28 Reduction]],Dataset[[#This Row],[2027/28 From - Total]],Dataset[[#This Row],[2027/28 To - Total]])","v":0},{"$f":"Dataset[[#This Row],[2024/25 Baseline]]+Dataset[[#This Row],[2024/25 Total change]]","v":0},{"$f":"Dataset[[#This Row],[2025/26 Baseline]]+Dataset[[#This Row],[2025/26 Total change]]","v":0},{"$f":"Dataset[[#This Row],[2026/27 Baseline]]+Dataset[[#This Row],[2026/27 Total change]]","v":0},{"$f":"Dataset[[#This Row],[2027/28 Baseline]]+Dataset[[#This Row],[2027/28 Total change]]","v":0}]
["NAT|Non-transfer item","40|Minor assets","2025_26","MTEC2025",40,1,1,51277,5,"40","01","01","051277","000005","40|01|01|000005","01","01","02","05","05","01|01|02|05|05","National","Transport","Administration","Ministry","Non-transfer item","Current","Current payments","Goods and services","Minor assets","Minor assets","Economic development","Economic regulation and infrastructure","NAT",5,0,22,52,52,52,8,52,55,57,60,null,null,null,null,null,null,null,null,null,null,null,null,null,null,null,null,null,null,null,null,null,null,null,null,null,null,null,null,null,null,null,null,null,null,{"$f":"Dataset[[#This Row],[2025/26 From - Spending review Topic 1]]+Dataset[[#This Row],[2025/26 From - Spending review Topic 2]]+Dataset[[#This Row],[2025/26 From - Spending review Topic 3]]+Dataset[[#This Row],[2025/26 From - Spending review Topic 4]]+Dataset[[#This Row],[2025/26 From - Other reallocations]]","v":0},{"$f":"Dataset[[#This Row],[2026/27 From - Spending review Topic 1]]+Dataset[[#This Row],[2026/27 From - Spending review Topic 2]]+Dataset[[#This Row],[2026/27 From - Spending review Topic 3]]+Dataset[[#This Row],[2026/27 From - Spending review Topic 4]]+Dataset[[#This Row],[2026/27 From - Other reallocations]]","v":0},{"$f":"Dataset[[#This Row],[2027/28 From - Spending review Topic 1]]+Dataset[[#This Row],[2027/28 From - Spending review Topic 2]]+Dataset[[#This Row],[2027/28 From - Spending review Topic 3]]+Dataset[[#This Row],[2027/28 From - Spending review Topic 4]]+Dataset[[#This Row],[2027/28 From - Other reallocations]]","v":0},{"$f":"Dataset[[#This Row],[2025/26 To - Spending review Topic 1]]+Dataset[[#This Row],[2025/26 To - Spending review Topic 2]]+Dataset[[#This Row],[2025/26 To - Spending review Topic 3]]+Dataset[[#This Row],[2025/26 To - Spending review Topic 4]]+Dataset[[#This Row],[2025/26 To - Other reallocations]]","v":0},{"$f":"Dataset[[#This Row],[2026/27 To - Spending review Topic 1]]+Dataset[[#This Row],[2026/27 To - Spending review Topic 2]]+Dataset[[#This Row],[2026/27 To - Spending review Topic 3]]+Dataset[[#This Row],[2026/27 To - Spending review Topic 4]]+Dataset[[#This Row],[2026/27 To - Other reallocations]]","v":0},{"$f":"Dataset[[#This Row],[2027/28 To - Spending review Topic 1]]+Dataset[[#This Row],[2027/28 To - Spending review Topic 2]]+Dataset[[#This Row],[2027/28 To - Spending review Topic 3]]+Dataset[[#This Row],[2027/28 To - Spending review Topic 4]]+Dataset[[#This Row],[2027/28 To - Other reallocations]]","v":0},{"$f":"Dataset[[#This Row],[2025/26 Reduction]]+Dataset[[#This Row],[2025/26 From - Total]]","v":0},{"$f":"Dataset[[#This Row],[2026/27 Reduction]]+Dataset[[#This Row],[2026/27 From - Total]]","v":0},{"$f":"Dataset[[#This Row],[2027/28 Reduction]]+Dataset[[#This Row],[2027/28 From - Total]]","v":0},{"$f":"Dataset[[#This Row],[2024/25 Reduction]]","v":0},{"$f":"SUM(Dataset[[#This Row],[2025/26 Reduction]],Dataset[[#This Row],[2025/26 From - Total]],Dataset[[#This Row],[2025/26 To - Total]])","v":0},{"$f":"SUM(Dataset[[#This Row],[2026/27 Reduction]],Dataset[[#This Row],[2026/27 From - Total]],Dataset[[#This Row],[2026/27 To - Total]])","v":0},{"$f":"SUM(Dataset[[#This Row],[2027/28 Reduction]],Dataset[[#This Row],[2027/28 From - Total]],Dataset[[#This Row],[2027/28 To - Total]])","v":0},{"$f":"Dataset[[#This Row],[2024/25 Baseline]]+Dataset[[#This Row],[2024/25 Total change]]","v":52},{"$f":"Dataset[[#This Row],[2025/26 Baseline]]+Dataset[[#This Row],[2025/26 Total change]]","v":55},{"$f":"Dataset[[#This Row],[2026/27 Baseline]]+Dataset[[#This Row],[2026/27 Total change]]","v":57},{"$f":"Dataset[[#This Row],[2027/28 Baseline]]+Dataset[[#This Row],[2027/28 Total change]]","v":60}]
["NAT|Non-transfer item","40|Audit costs: External","2025_26","MTEC2025",40,1,1,51278,6,"40","01","01","051278","000006","40|01|01|000006","01","01","02","06","06","01|01|02|06|06","National","Transport","Administration","Ministry","Non-transfer item","Current","Current payments","Goods and services","Audit costs: External","Audit costs: External","Economic development","Economic regulation and infrastructure","NAT",0,0,0,0,0,0,null,0,0,0,0,null,null,null,null,null,null,null,null,null,null,null,null,null,null,null,null,null,null,null,null,null,null,null,null,null,null,null,null,null,null,null,null,null,null,{"$f":"Dataset[[#This Row],[2025/26 From - Spending review Topic 1]]+Dataset[[#This Row],[2025/26 From - Spending review Topic 2]]+Dataset[[#This Row],[2025/26 From - Spending review Topic 3]]+Dataset[[#This Row],[2025/26 From - Spending review Topic 4]]+Dataset[[#This Row],[2025/26 From - Other reallocations]]","v":0},{"$f":"Dataset[[#This Row],[2026/27 From - Spending review Topic 1]]+Dataset[[#This Row],[2026/27 From - Spending review Topic 2]]+Dataset[[#This Row],[2026/27 From - Spending review Topic 3]]+Dataset[[#This Row],[2026/27 From - Spending review Topic 4]]+Dataset[[#This Row],[2026/27 From - Other reallocations]]","v":0},{"$f":"Dataset[[#This Row],[2027/28 From - Spending review Topic 1]]+Dataset[[#This Row],[2027/28 From - Spending review Topic 2]]+Dataset[[#This Row],[2027/28 From - Spending review Topic 3]]+Dataset[[#This Row],[2027/28 From - Spending review Topic 4]]+Dataset[[#This Row],[2027/28 From - Other reallocations]]","v":0},{"$f":"Dataset[[#This Row],[2025/26 To - Spending review Topic 1]]+Dataset[[#This Row],[2025/26 To - Spending review Topic 2]]+Dataset[[#This Row],[2025/26 To - Spending review Topic 3]]+Dataset[[#This Row],[2025/26 To - Spending review Topic 4]]+Dataset[[#This Row],[2025/26 To - Other reallocations]]","v":0},{"$f":"Dataset[[#This Row],[2026/27 To - Spending review Topic 1]]+Dataset[[#This Row],[2026/27 To - Spending review Topic 2]]+Dataset[[#This Row],[2026/27 To - Spending review Topic 3]]+Dataset[[#This Row],[2026/27 To - Spending review Topic 4]]+Dataset[[#This Row],[2026/27 To - Other reallocations]]","v":0},{"$f":"Dataset[[#This Row],[2027/28 To - Spending review Topic 1]]+Dataset[[#This Row],[2027/28 To - Spending review Topic 2]]+Dataset[[#This Row],[2027/28 To - Spending review Topic 3]]+Dataset[[#This Row],[2027/28 To - Spending review Topic 4]]+Dataset[[#This Row],[2027/28 To - Other reallocations]]","v":0},{"$f":"Dataset[[#This Row],[2025/26 Reduction]]+Dataset[[#This Row],[2025/26 From - Total]]","v":0},{"$f":"Dataset[[#This Row],[2026/27 Reduction]]+Dataset[[#This Row],[2026/27 From - Total]]","v":0},{"$f":"Dataset[[#This Row],[2027/28 Reduction]]+Dataset[[#This Row],[2027/28 From - Total]]","v":0},{"$f":"Dataset[[#This Row],[2024/25 Reduction]]","v":0},{"$f":"SUM(Dataset[[#This Row],[2025/26 Reduction]],Dataset[[#This Row],[2025/26 From - Total]],Dataset[[#This Row],[2025/26 To - Total]])","v":0},{"$f":"SUM(Dataset[[#This Row],[2026/27 Reduction]],Dataset[[#This Row],[2026/27 From - Total]],Dataset[[#This Row],[2026/27 To - Total]])","v":0},{"$f":"SUM(Dataset[[#This Row],[2027/28 Reduction]],Dataset[[#This Row],[2027/28 From - Total]],Dataset[[#This Row],[2027/28 To - Total]])","v":0},{"$f":"Dataset[[#This Row],[2024/25 Baseline]]+Dataset[[#This Row],[2024/25 Total change]]","v":0},{"$f":"Dataset[[#This Row],[2025/26 Baseline]]+Dataset[[#This Row],[2025/26 Total change]]","v":0},{"$f":"Dataset[[#This Row],[2026/27 Baseline]]+Dataset[[#This Row],[2026/27 Total change]]","v":0},{"$f":"Dataset[[#This Row],[2027/28 Baseline]]+Dataset[[#This Row],[2027/28 Total change]]","v":0}]
["NAT|Non-transfer item","40|Bursaries: Employees","2025_26","MTEC2025",40,1,1,51279,7,"40","01","01","051279","000007","40|01|01|000007","01","01","02","07","07","01|01|02|07|07","National","Transport","Administration","Ministry","Non-transfer item","Current","Current payments","Goods and services","Bursaries: Employees","Bursaries: Employees","Economic development","Economic regulation and infrastructure","NAT",0,0,0,0,0,0,null,0,0,0,0,null,null,null,null,null,null,null,null,null,null,null,null,null,null,null,null,null,null,null,null,null,null,null,null,null,null,null,null,null,null,null,null,null,null,{"$f":"Dataset[[#This Row],[2025/26 From - Spending review Topic 1]]+Dataset[[#This Row],[2025/26 From - Spending review Topic 2]]+Dataset[[#This Row],[2025/26 From - Spending review Topic 3]]+Dataset[[#This Row],[2025/26 From - Spending review Topic 4]]+Dataset[[#This Row],[2025/26 From - Other reallocations]]","v":0},{"$f":"Dataset[[#This Row],[2026/27 From - Spending review Topic 1]]+Dataset[[#This Row],[2026/27 From - Spending review Topic 2]]+Dataset[[#This Row],[2026/27 From - Spending review Topic 3]]+Dataset[[#This Row],[2026/27 From - Spending review Topic 4]]+Dataset[[#This Row],[2026/27 From - Other reallocations]]","v":0},{"$f":"Dataset[[#This Row],[2027/28 From - Spending review Topic 1]]+Dataset[[#This Row],[2027/28 From - Spending review Topic 2]]+Dataset[[#This Row],[2027/28 From - Spending review Topic 3]]+Dataset[[#This Row],[2027/28 From - Spending review Topic 4]]+Dataset[[#This Row],[2027/28 From - Other reallocations]]","v":0},{"$f":"Dataset[[#This Row],[2025/26 To - Spending review Topic 1]]+Dataset[[#This Row],[2025/26 To - Spending review Topic 2]]+Dataset[[#This Row],[2025/26 To - Spending review Topic 3]]+Dataset[[#This Row],[2025/26 To - Spending review Topic 4]]+Dataset[[#This Row],[2025/26 To - Other reallocations]]","v":0},{"$f":"Dataset[[#This Row],[2026/27 To - Spending review Topic 1]]+Dataset[[#This Row],[2026/27 To - Spending review Topic 2]]+Dataset[[#This Row],[2026/27 To - Spending review Topic 3]]+Dataset[[#This Row],[2026/27 To - Spending review Topic 4]]+Dataset[[#This Row],[2026/27 To - Other reallocations]]","v":0},{"$f":"Dataset[[#This Row],[2027/28 To - Spending review Topic 1]]+Dataset[[#This Row],[2027/28 To - Spending review Topic 2]]+Dataset[[#This Row],[2027/28 To - Spending review Topic 3]]+Dataset[[#This Row],[2027/28 To - Spending review Topic 4]]+Dataset[[#This Row],[2027/28 To - Other reallocations]]","v":0},{"$f":"Dataset[[#This Row],[2025/26 Reduction]]+Dataset[[#This Row],[2025/26 From - Total]]","v":0},{"$f":"Dataset[[#This Row],[2026/27 Reduction]]+Dataset[[#This Row],[2026/27 From - Total]]","v":0},{"$f":"Dataset[[#This Row],[2027/28 Reduction]]+Dataset[[#This Row],[2027/28 From - Total]]","v":0},{"$f":"Dataset[[#This Row],[2024/25 Reduction]]","v":0},{"$f":"SUM(Dataset[[#This Row],[2025/26 Reduction]],Dataset[[#This Row],[2025/26 From - Total]],Dataset[[#This Row],[2025/26 To - Total]])","v":0},{"$f":"SUM(Dataset[[#This Row],[2026/27 Reduction]],Dataset[[#This Row],[2026/27 From - Total]],Dataset[[#This Row],[2026/27 To - Total]])","v":0},{"$f":"SUM(Dataset[[#This Row],[2027/28 Reduction]],Dataset[[#This Row],[2027/28 From - Total]],Dataset[[#This Row],[2027/28 To - Total]])","v":0},{"$f":"Dataset[[#This Row],[2024/25 Baseline]]+Dataset[[#This Row],[2024/25 Total change]]","v":0},{"$f":"Dataset[[#This Row],[2025/26 Baseline]]+Dataset[[#This Row],[2025/26 Total change]]","v":0},{"$f":"Dataset[[#This Row],[2026/27 Baseline]]+Dataset[[#This Row],[2026/27 Total change]]","v":0},{"$f":"Dataset[[#This Row],[2027/28 Baseline]]+Dataset[[#This Row],[2027/28 Total change]]","v":0}]
["NAT|Non-transfer item","40|Catering: Departmental activities","2025_26","MTEC2025",40,1,1,51280,8,"40","01","01","051280","000008","40|01|01|000008","01","01","02","08","08","01|01|02|08|08","National","Transport","Administration","Ministry","Non-transfer item","Current","Current payments","Goods and services","Catering: Departmental activities","Catering: Departmental activities","Economic development","Economic regulation and infrastructure","NAT",13,31,82,320,320,320,216,407,428,447,467,null,null,null,null,null,null,null,null,null,null,null,null,null,null,null,null,null,null,null,null,null,null,null,null,null,null,null,null,null,null,null,null,null,null,{"$f":"Dataset[[#This Row],[2025/26 From - Spending review Topic 1]]+Dataset[[#This Row],[2025/26 From - Spending review Topic 2]]+Dataset[[#This Row],[2025/26 From - Spending review Topic 3]]+Dataset[[#This Row],[2025/26 From - Spending review Topic 4]]+Dataset[[#This Row],[2025/26 From - Other reallocations]]","v":0},{"$f":"Dataset[[#This Row],[2026/27 From - Spending review Topic 1]]+Dataset[[#This Row],[2026/27 From - Spending review Topic 2]]+Dataset[[#This Row],[2026/27 From - Spending review Topic 3]]+Dataset[[#This Row],[2026/27 From - Spending review Topic 4]]+Dataset[[#This Row],[2026/27 From - Other reallocations]]","v":0},{"$f":"Dataset[[#This Row],[2027/28 From - Spending review Topic 1]]+Dataset[[#This Row],[2027/28 From - Spending review Topic 2]]+Dataset[[#This Row],[2027/28 From - Spending review Topic 3]]+Dataset[[#This Row],[2027/28 From - Spending review Topic 4]]+Dataset[[#This Row],[2027/28 From - Other reallocations]]","v":0},{"$f":"Dataset[[#This Row],[2025/26 To - Spending review Topic 1]]+Dataset[[#This Row],[2025/26 To - Spending review Topic 2]]+Dataset[[#This Row],[2025/26 To - Spending review Topic 3]]+Dataset[[#This Row],[2025/26 To - Spending review Topic 4]]+Dataset[[#This Row],[2025/26 To - Other reallocations]]","v":0},{"$f":"Dataset[[#This Row],[2026/27 To - Spending review Topic 1]]+Dataset[[#This Row],[2026/27 To - Spending review Topic 2]]+Dataset[[#This Row],[2026/27 To - Spending review Topic 3]]+Dataset[[#This Row],[2026/27 To - Spending review Topic 4]]+Dataset[[#This Row],[2026/27 To - Other reallocations]]","v":0},{"$f":"Dataset[[#This Row],[2027/28 To - Spending review Topic 1]]+Dataset[[#This Row],[2027/28 To - Spending review Topic 2]]+Dataset[[#This Row],[2027/28 To - Spending review Topic 3]]+Dataset[[#This Row],[2027/28 To - Spending review Topic 4]]+Dataset[[#This Row],[2027/28 To - Other reallocations]]","v":0},{"$f":"Dataset[[#This Row],[2025/26 Reduction]]+Dataset[[#This Row],[2025/26 From - Total]]","v":0},{"$f":"Dataset[[#This Row],[2026/27 Reduction]]+Dataset[[#This Row],[2026/27 From - Total]]","v":0},{"$f":"Dataset[[#This Row],[2027/28 Reduction]]+Dataset[[#This Row],[2027/28 From - Total]]","v":0},{"$f":"Dataset[[#This Row],[2024/25 Reduction]]","v":0},{"$f":"SUM(Dataset[[#This Row],[2025/26 Reduction]],Dataset[[#This Row],[2025/26 From - Total]],Dataset[[#This Row],[2025/26 To - Total]])","v":0},{"$f":"SUM(Dataset[[#This Row],[2026/27 Reduction]],Dataset[[#This Row],[2026/27 From - Total]],Dataset[[#This Row],[2026/27 To - Total]])","v":0},{"$f":"SUM(Dataset[[#This Row],[2027/28 Reduction]],Dataset[[#This Row],[2027/28 From - Total]],Dataset[[#This Row],[2027/28 To - Total]])","v":0},{"$f":"Dataset[[#This Row],[2024/25 Baseline]]+Dataset[[#This Row],[2024/25 Total change]]","v":407},{"$f":"Dataset[[#This Row],[2025/26 Baseline]]+Dataset[[#This Row],[2025/26 Total change]]","v":428},{"$f":"Dataset[[#This Row],[2026/27 Baseline]]+Dataset[[#This Row],[2026/27 Total change]]","v":447},{"$f":"Dataset[[#This Row],[2027/28 Baseline]]+Dataset[[#This Row],[2027/28 Total change]]","v":467}]
["NAT|Non-transfer item","40|Communication (G&S)","2025_26","MTEC2025",40,1,1,51281,9,"40","01","01","051281","000009","40|01|01|000009","01","01","02","09","09","01|01|02|09|09","National","Transport","Administration","Ministry","Non-transfer item","Current","Current payments","Goods and services","Communication (G&S)","Communication (G&S)","Economic development","Economic regulation and infrastructure","NAT",1443,977,1095,1430,1430,1430,902,1430,1503,1572,1643,null,null,null,null,null,null,null,null,null,null,null,null,null,null,null,null,null,null,null,null,null,null,null,null,null,null,null,null,null,null,null,null,null,null,{"$f":"Dataset[[#This Row],[2025/26 From - Spending review Topic 1]]+Dataset[[#This Row],[2025/26 From - Spending review Topic 2]]+Dataset[[#This Row],[2025/26 From - Spending review Topic 3]]+Dataset[[#This Row],[2025/26 From - Spending review Topic 4]]+Dataset[[#This Row],[2025/26 From - Other reallocations]]","v":0},{"$f":"Dataset[[#This Row],[2026/27 From - Spending review Topic 1]]+Dataset[[#This Row],[2026/27 From - Spending review Topic 2]]+Dataset[[#This Row],[2026/27 From - Spending review Topic 3]]+Dataset[[#This Row],[2026/27 From - Spending review Topic 4]]+Dataset[[#This Row],[2026/27 From - Other reallocations]]","v":0},{"$f":"Dataset[[#This Row],[2027/28 From - Spending review Topic 1]]+Dataset[[#This Row],[2027/28 From - Spending review Topic 2]]+Dataset[[#This Row],[2027/28 From - Spending review Topic 3]]+Dataset[[#This Row],[2027/28 From - Spending review Topic 4]]+Dataset[[#This Row],[2027/28 From - Other reallocations]]","v":0},{"$f":"Dataset[[#This Row],[2025/26 To - Spending review Topic 1]]+Dataset[[#This Row],[2025/26 To - Spending review Topic 2]]+Dataset[[#This Row],[2025/26 To - Spending review Topic 3]]+Dataset[[#This Row],[2025/26 To - Spending review Topic 4]]+Dataset[[#This Row],[2025/26 To - Other reallocations]]","v":0},{"$f":"Dataset[[#This Row],[2026/27 To - Spending review Topic 1]]+Dataset[[#This Row],[2026/27 To - Spending review Topic 2]]+Dataset[[#This Row],[2026/27 To - Spending review Topic 3]]+Dataset[[#This Row],[2026/27 To - Spending review Topic 4]]+Dataset[[#This Row],[2026/27 To - Other reallocations]]","v":0},{"$f":"Dataset[[#This Row],[2027/28 To - Spending review Topic 1]]+Dataset[[#This Row],[2027/28 To - Spending review Topic 2]]+Dataset[[#This Row],[2027/28 To - Spending review Topic 3]]+Dataset[[#This Row],[2027/28 To - Spending review Topic 4]]+Dataset[[#This Row],[2027/28 To - Other reallocations]]","v":0},{"$f":"Dataset[[#This Row],[2025/26 Reduction]]+Dataset[[#This Row],[2025/26 From - Total]]","v":0},{"$f":"Dataset[[#This Row],[2026/27 Reduction]]+Dataset[[#This Row],[2026/27 From - Total]]","v":0},{"$f":"Dataset[[#This Row],[2027/28 Reduction]]+Dataset[[#This Row],[2027/28 From - Total]]","v":0},{"$f":"Dataset[[#This Row],[2024/25 Reduction]]","v":0},{"$f":"SUM(Dataset[[#This Row],[2025/26 Reduction]],Dataset[[#This Row],[2025/26 From - Total]],Dataset[[#This Row],[2025/26 To - Total]])","v":0},{"$f":"SUM(Dataset[[#This Row],[2026/27 Reduction]],Dataset[[#This Row],[2026/27 From - Total]],Dataset[[#This Row],[2026/27 To - Total]])","v":0},{"$f":"SUM(Dataset[[#This Row],[2027/28 Reduction]],Dataset[[#This Row],[2027/28 From - Total]],Dataset[[#This Row],[2027/28 To - Total]])","v":0},{"$f":"Dataset[[#This Row],[2024/25 Baseline]]+Dataset[[#This Row],[2024/25 Total change]]","v":1430},{"$f":"Dataset[[#This Row],[2025/26 Baseline]]+Dataset[[#This Row],[2025/26 Total change]]","v":1503},{"$f":"Dataset[[#This Row],[2026/27 Baseline]]+Dataset[[#This Row],[2026/27 Total change]]","v":1572},{"$f":"Dataset[[#This Row],[2027/28 Baseline]]+Dataset[[#This Row],[2027/28 Total change]]","v":1643}]
["NAT|Non-transfer item","40|Computer services","2025_26","MTEC2025",40,1,1,51282,10,"40","01","01","051282","000010","40|01|01|000010","01","01","02","10","10","01|01|02|10|10","National","Transport","Administration","Ministry","Non-transfer item","Current","Current payments","Goods and services","Computer services","Computer services","Economic development","Economic regulation and infrastructure","NAT",40,0,0,0,0,0,null,0,0,0,0,null,null,null,null,null,null,null,null,null,null,null,null,null,null,null,null,null,null,null,null,null,null,null,null,null,null,null,null,null,null,null,null,null,null,{"$f":"Dataset[[#This Row],[2025/26 From - Spending review Topic 1]]+Dataset[[#This Row],[2025/26 From - Spending review Topic 2]]+Dataset[[#This Row],[2025/26 From - Spending review Topic 3]]+Dataset[[#This Row],[2025/26 From - Spending review Topic 4]]+Dataset[[#This Row],[2025/26 From - Other reallocations]]","v":0},{"$f":"Dataset[[#This Row],[2026/27 From - Spending review Topic 1]]+Dataset[[#This Row],[2026/27 From - Spending review Topic 2]]+Dataset[[#This Row],[2026/27 From - Spending review Topic 3]]+Dataset[[#This Row],[2026/27 From - Spending review Topic 4]]+Dataset[[#This Row],[2026/27 From - Other reallocations]]","v":0},{"$f":"Dataset[[#This Row],[2027/28 From - Spending review Topic 1]]+Dataset[[#This Row],[2027/28 From - Spending review Topic 2]]+Dataset[[#This Row],[2027/28 From - Spending review Topic 3]]+Dataset[[#This Row],[2027/28 From - Spending review Topic 4]]+Dataset[[#This Row],[2027/28 From - Other reallocations]]","v":0},{"$f":"Dataset[[#This Row],[2025/26 To - Spending review Topic 1]]+Dataset[[#This Row],[2025/26 To - Spending review Topic 2]]+Dataset[[#This Row],[2025/26 To - Spending review Topic 3]]+Dataset[[#This Row],[2025/26 To - Spending review Topic 4]]+Dataset[[#This Row],[2025/26 To - Other reallocations]]","v":0},{"$f":"Dataset[[#This Row],[2026/27 To - Spending review Topic 1]]+Dataset[[#This Row],[2026/27 To - Spending review Topic 2]]+Dataset[[#This Row],[2026/27 To - Spending review Topic 3]]+Dataset[[#This Row],[2026/27 To - Spending review Topic 4]]+Dataset[[#This Row],[2026/27 To - Other reallocations]]","v":0},{"$f":"Dataset[[#This Row],[2027/28 To - Spending review Topic 1]]+Dataset[[#This Row],[2027/28 To - Spending review Topic 2]]+Dataset[[#This Row],[2027/28 To - Spending review Topic 3]]+Dataset[[#This Row],[2027/28 To - Spending review Topic 4]]+Dataset[[#This Row],[2027/28 To - Other reallocations]]","v":0},{"$f":"Dataset[[#This Row],[2025/26 Reduction]]+Dataset[[#This Row],[2025/26 From - Total]]","v":0},{"$f":"Dataset[[#This Row],[2026/27 Reduction]]+Dataset[[#This Row],[2026/27 From - Total]]","v":0},{"$f":"Dataset[[#This Row],[2027/28 Reduction]]+Dataset[[#This Row],[2027/28 From - Total]]","v":0},{"$f":"Dataset[[#This Row],[2024/25 Reduction]]","v":0},{"$f":"SUM(Dataset[[#This Row],[2025/26 Reduction]],Dataset[[#This Row],[2025/26 From - Total]],Dataset[[#This Row],[2025/26 To - Total]])","v":0},{"$f":"SUM(Dataset[[#This Row],[2026/27 Reduction]],Dataset[[#This Row],[2026/27 From - Total]],Dataset[[#This Row],[2026/27 To - Total]])","v":0},{"$f":"SUM(Dataset[[#This Row],[2027/28 Reduction]],Dataset[[#This Row],[2027/28 From - Total]],Dataset[[#This Row],[2027/28 To - Total]])","v":0},{"$f":"Dataset[[#This Row],[2024/25 Baseline]]+Dataset[[#This Row],[2024/25 Total change]]","v":0},{"$f":"Dataset[[#This Row],[2025/26 Baseline]]+Dataset[[#This Row],[2025/26 Total change]]","v":0},{"$f":"Dataset[[#This Row],[2026/27 Baseline]]+Dataset[[#This Row],[2026/27 Total change]]","v":0},{"$f":"Dataset[[#This Row],[2027/28 Baseline]]+Dataset[[#This Row],[2027/28 Total change]]","v":0}]
["NAT|Non-transfer item","40|Consultants: Business and advisory services","2025_26","MTEC2025",40,1,1,51283,11,"40","01","01","051283","000011","40|01|01|000011","01","01","02","11","11","01|01|02|11|11","National","Transport","Administration","Ministry","Non-transfer item","Current","Current payments","Goods and services","Consultants: Business and advisory services","Consultants: Business and advisory services","Economic development","Economic regulation and infrastructure","NAT",0,0,0,0,0,0,null,0,0,0,0,null,null,null,null,null,null,null,null,null,null,null,null,null,null,null,null,null,null,null,null,null,null,null,null,null,null,null,null,null,null,null,null,null,null,{"$f":"Dataset[[#This Row],[2025/26 From - Spending review Topic 1]]+Dataset[[#This Row],[2025/26 From - Spending review Topic 2]]+Dataset[[#This Row],[2025/26 From - Spending review Topic 3]]+Dataset[[#This Row],[2025/26 From - Spending review Topic 4]]+Dataset[[#This Row],[2025/26 From - Other reallocations]]","v":0},{"$f":"Dataset[[#This Row],[2026/27 From - Spending review Topic 1]]+Dataset[[#This Row],[2026/27 From - Spending review Topic 2]]+Dataset[[#This Row],[2026/27 From - Spending review Topic 3]]+Dataset[[#This Row],[2026/27 From - Spending review Topic 4]]+Dataset[[#This Row],[2026/27 From - Other reallocations]]","v":0},{"$f":"Dataset[[#This Row],[2027/28 From - Spending review Topic 1]]+Dataset[[#This Row],[2027/28 From - Spending review Topic 2]]+Dataset[[#This Row],[2027/28 From - Spending review Topic 3]]+Dataset[[#This Row],[2027/28 From - Spending review Topic 4]]+Dataset[[#This Row],[2027/28 From - Other reallocations]]","v":0},{"$f":"Dataset[[#This Row],[2025/26 To - Spending review Topic 1]]+Dataset[[#This Row],[2025/26 To - Spending review Topic 2]]+Dataset[[#This Row],[2025/26 To - Spending review Topic 3]]+Dataset[[#This Row],[2025/26 To - Spending review Topic 4]]+Dataset[[#This Row],[2025/26 To - Other reallocations]]","v":0},{"$f":"Dataset[[#This Row],[2026/27 To - Spending review Topic 1]]+Dataset[[#This Row],[2026/27 To - Spending review Topic 2]]+Dataset[[#This Row],[2026/27 To - Spending review Topic 3]]+Dataset[[#This Row],[2026/27 To - Spending review Topic 4]]+Dataset[[#This Row],[2026/27 To - Other reallocations]]","v":0},{"$f":"Dataset[[#This Row],[2027/28 To - Spending review Topic 1]]+Dataset[[#This Row],[2027/28 To - Spending review Topic 2]]+Dataset[[#This Row],[2027/28 To - Spending review Topic 3]]+Dataset[[#This Row],[2027/28 To - Spending review Topic 4]]+Dataset[[#This Row],[2027/28 To - Other reallocations]]","v":0},{"$f":"Dataset[[#This Row],[2025/26 Reduction]]+Dataset[[#This Row],[2025/26 From - Total]]","v":0},{"$f":"Dataset[[#This Row],[2026/27 Reduction]]+Dataset[[#This Row],[2026/27 From - Total]]","v":0},{"$f":"Dataset[[#This Row],[2027/28 Reduction]]+Dataset[[#This Row],[2027/28 From - Total]]","v":0},{"$f":"Dataset[[#This Row],[2024/25 Reduction]]","v":0},{"$f":"SUM(Dataset[[#This Row],[2025/26 Reduction]],Dataset[[#This Row],[2025/26 From - Total]],Dataset[[#This Row],[2025/26 To - Total]])","v":0},{"$f":"SUM(Dataset[[#This Row],[2026/27 Reduction]],Dataset[[#This Row],[2026/27 From - Total]],Dataset[[#This Row],[2026/27 To - Total]])","v":0},{"$f":"SUM(Dataset[[#This Row],[2027/28 Reduction]],Dataset[[#This Row],[2027/28 From - Total]],Dataset[[#This Row],[2027/28 To - Total]])","v":0},{"$f":"Dataset[[#This Row],[2024/25 Baseline]]+Dataset[[#This Row],[2024/25 Total change]]","v":0},{"$f":"Dataset[[#This Row],[2025/26 Baseline]]+Dataset[[#This Row],[2025/26 Total change]]","v":0},{"$f":"Dataset[[#This Row],[2026/27 Baseline]]+Dataset[[#This Row],[2026/27 Total change]]","v":0},{"$f":"Dataset[[#This Row],[2027/28 Baseline]]+Dataset[[#This Row],[2027/28 Total change]]","v":0}]
["NAT|Non-transfer item","40|Infrastructure and planning services","2025_26","MTEC2025",40,1,1,51284,12,"40","01","01","051284","000012","40|01|01|000012","01","01","02","12","12","01|01|02|12|12","National","Transport","Administration","Ministry","Non-transfer item","Current","Current payments","Goods and services","Infrastructure and planning services","Infrastructure and planning services","Economic development","Economic regulation and infrastructure","NAT",0,0,0,0,0,0,null,0,0,0,0,null,null,null,null,null,null,null,null,null,null,null,null,null,null,null,null,null,null,null,null,null,null,null,null,null,null,null,null,null,null,null,null,null,null,{"$f":"Dataset[[#This Row],[2025/26 From - Spending review Topic 1]]+Dataset[[#This Row],[2025/26 From - Spending review Topic 2]]+Dataset[[#This Row],[2025/26 From - Spending review Topic 3]]+Dataset[[#This Row],[2025/26 From - Spending review Topic 4]]+Dataset[[#This Row],[2025/26 From - Other reallocations]]","v":0},{"$f":"Dataset[[#This Row],[2026/27 From - Spending review Topic 1]]+Dataset[[#This Row],[2026/27 From - Spending review Topic 2]]+Dataset[[#This Row],[2026/27 From - Spending review Topic 3]]+Dataset[[#This Row],[2026/27 From - Spending review Topic 4]]+Dataset[[#This Row],[2026/27 From - Other reallocations]]","v":0},{"$f":"Dataset[[#This Row],[2027/28 From - Spending review Topic 1]]+Dataset[[#This Row],[2027/28 From - Spending review Topic 2]]+Dataset[[#This Row],[2027/28 From - Spending review Topic 3]]+Dataset[[#This Row],[2027/28 From - Spending review Topic 4]]+Dataset[[#This Row],[2027/28 From - Other reallocations]]","v":0},{"$f":"Dataset[[#This Row],[2025/26 To - Spending review Topic 1]]+Dataset[[#This Row],[2025/26 To - Spending review Topic 2]]+Dataset[[#This Row],[2025/26 To - Spending review Topic 3]]+Dataset[[#This Row],[2025/26 To - Spending review Topic 4]]+Dataset[[#This Row],[2025/26 To - Other reallocations]]","v":0},{"$f":"Dataset[[#This Row],[2026/27 To - Spending review Topic 1]]+Dataset[[#This Row],[2026/27 To - Spending review Topic 2]]+Dataset[[#This Row],[2026/27 To - Spending review Topic 3]]+Dataset[[#This Row],[2026/27 To - Spending review Topic 4]]+Dataset[[#This Row],[2026/27 To - Other reallocations]]","v":0},{"$f":"Dataset[[#This Row],[2027/28 To - Spending review Topic 1]]+Dataset[[#This Row],[2027/28 To - Spending review Topic 2]]+Dataset[[#This Row],[2027/28 To - Spending review Topic 3]]+Dataset[[#This Row],[2027/28 To - Spending review Topic 4]]+Dataset[[#This Row],[2027/28 To - Other reallocations]]","v":0},{"$f":"Dataset[[#This Row],[2025/26 Reduction]]+Dataset[[#This Row],[2025/26 From - Total]]","v":0},{"$f":"Dataset[[#This Row],[2026/27 Reduction]]+Dataset[[#This Row],[2026/27 From - Total]]","v":0},{"$f":"Dataset[[#This Row],[2027/28 Reduction]]+Dataset[[#This Row],[2027/28 From - Total]]","v":0},{"$f":"Dataset[[#This Row],[2024/25 Reduction]]","v":0},{"$f":"SUM(Dataset[[#This Row],[2025/26 Reduction]],Dataset[[#This Row],[2025/26 From - Total]],Dataset[[#This Row],[2025/26 To - Total]])","v":0},{"$f":"SUM(Dataset[[#This Row],[2026/27 Reduction]],Dataset[[#This Row],[2026/27 From - Total]],Dataset[[#This Row],[2026/27 To - Total]])","v":0},{"$f":"SUM(Dataset[[#This Row],[2027/28 Reduction]],Dataset[[#This Row],[2027/28 From - Total]],Dataset[[#This Row],[2027/28 To - Total]])","v":0},{"$f":"Dataset[[#This Row],[2024/25 Baseline]]+Dataset[[#This Row],[2024/25 Total change]]","v":0},{"$f":"Dataset[[#This Row],[2025/26 Baseline]]+Dataset[[#This Row],[2025/26 Total change]]","v":0},{"$f":"Dataset[[#This Row],[2026/27 Baseline]]+Dataset[[#This Row],[2026/27 Total change]]","v":0},{"$f":"Dataset[[#This Row],[2027/28 Baseline]]+Dataset[[#This Row],[2027/28 Total change]]","v":0}]
["NAT|Non-transfer item","40|Laboratory services","2025_26","MTEC2025",40,1,1,51285,13,"40","01","01","051285","000013","40|01|01|000013","01","01","02","13","13","01|01|02|13|13","National","Transport","Administration","Ministry","Non-transfer item","Current","Current payments","Goods and services","Laboratory services","Laboratory services","Economic development","Economic regulation and infrastructure","NAT",0,0,0,0,0,0,null,0,0,0,0,null,null,null,null,null,null,null,null,null,null,null,null,null,null,null,null,null,null,null,null,null,null,null,null,null,null,null,null,null,null,null,null,null,null,{"$f":"Dataset[[#This Row],[2025/26 From - Spending review Topic 1]]+Dataset[[#This Row],[2025/26 From - Spending review Topic 2]]+Dataset[[#This Row],[2025/26 From - Spending review Topic 3]]+Dataset[[#This Row],[2025/26 From - Spending review Topic 4]]+Dataset[[#This Row],[2025/26 From - Other reallocations]]","v":0},{"$f":"Dataset[[#This Row],[2026/27 From - Spending review Topic 1]]+Dataset[[#This Row],[2026/27 From - Spending review Topic 2]]+Dataset[[#This Row],[2026/27 From - Spending review Topic 3]]+Dataset[[#This Row],[2026/27 From - Spending review Topic 4]]+Dataset[[#This Row],[2026/27 From - Other reallocations]]","v":0},{"$f":"Dataset[[#This Row],[2027/28 From - Spending review Topic 1]]+Dataset[[#This Row],[2027/28 From - Spending review Topic 2]]+Dataset[[#This Row],[2027/28 From - Spending review Topic 3]]+Dataset[[#This Row],[2027/28 From - Spending review Topic 4]]+Dataset[[#This Row],[2027/28 From - Other reallocations]]","v":0},{"$f":"Dataset[[#This Row],[2025/26 To - Spending review Topic 1]]+Dataset[[#This Row],[2025/26 To - Spending review Topic 2]]+Dataset[[#This Row],[2025/26 To - Spending review Topic 3]]+Dataset[[#This Row],[2025/26 To - Spending review Topic 4]]+Dataset[[#This Row],[2025/26 To - Other reallocations]]","v":0},{"$f":"Dataset[[#This Row],[2026/27 To - Spending review Topic 1]]+Dataset[[#This Row],[2026/27 To - Spending review Topic 2]]+Dataset[[#This Row],[2026/27 To - Spending review Topic 3]]+Dataset[[#This Row],[2026/27 To - Spending review Topic 4]]+Dataset[[#This Row],[2026/27 To - Other reallocations]]","v":0},{"$f":"Dataset[[#This Row],[2027/28 To - Spending review Topic 1]]+Dataset[[#This Row],[2027/28 To - Spending review Topic 2]]+Dataset[[#This Row],[2027/28 To - Spending review Topic 3]]+Dataset[[#This Row],[2027/28 To - Spending review Topic 4]]+Dataset[[#This Row],[2027/28 To - Other reallocations]]","v":0},{"$f":"Dataset[[#This Row],[2025/26 Reduction]]+Dataset[[#This Row],[2025/26 From - Total]]","v":0},{"$f":"Dataset[[#This Row],[2026/27 Reduction]]+Dataset[[#This Row],[2026/27 From - Total]]","v":0},{"$f":"Dataset[[#This Row],[2027/28 Reduction]]+Dataset[[#This Row],[2027/28 From - Total]]","v":0},{"$f":"Dataset[[#This Row],[2024/25 Reduction]]","v":0},{"$f":"SUM(Dataset[[#This Row],[2025/26 Reduction]],Dataset[[#This Row],[2025/26 From - Total]],Dataset[[#This Row],[2025/26 To - Total]])","v":0},{"$f":"SUM(Dataset[[#This Row],[2026/27 Reduction]],Dataset[[#This Row],[2026/27 From - Total]],Dataset[[#This Row],[2026/27 To - Total]])","v":0},{"$f":"SUM(Dataset[[#This Row],[2027/28 Reduction]],Dataset[[#This Row],[2027/28 From - Total]],Dataset[[#This Row],[2027/28 To - Total]])","v":0},{"$f":"Dataset[[#This Row],[2024/25 Baseline]]+Dataset[[#This Row],[2024/25 Total change]]","v":0},{"$f":"Dataset[[#This Row],[2025/26 Baseline]]+Dataset[[#This Row],[2025/26 Total change]]","v":0},{"$f":"Dataset[[#This Row],[2026/27 Baseline]]+Dataset[[#This Row],[2026/27 Total change]]","v":0},{"$f":"Dataset[[#This Row],[2027/28 Baseline]]+Dataset[[#This Row],[2027/28 Total change]]","v":0}]
["NAT|Non-transfer item","40|Legal services (G&S)","2025_26","MTEC2025",40,1,1,51286,14,"40","01","01","051286","000014","40|01|01|000014","01","01","02","14","14","01|01|02|14|14","National","Transport","Administration","Ministry","Non-transfer item","Current","Current payments","Goods and services","Legal services (G&S)","Legal services (G&S)","Economic development","Economic regulation and infrastructure","NAT",0,0,0,0,0,0,null,0,0,0,0,null,null,null,null,null,null,null,null,null,null,null,null,null,null,null,null,null,null,null,null,null,null,null,null,null,null,null,null,null,null,null,null,null,null,{"$f":"Dataset[[#This Row],[2025/26 From - Spending review Topic 1]]+Dataset[[#This Row],[2025/26 From - Spending review Topic 2]]+Dataset[[#This Row],[2025/26 From - Spending review Topic 3]]+Dataset[[#This Row],[2025/26 From - Spending review Topic 4]]+Dataset[[#This Row],[2025/26 From - Other reallocations]]","v":0},{"$f":"Dataset[[#This Row],[2026/27 From - Spending review Topic 1]]+Dataset[[#This Row],[2026/27 From - Spending review Topic 2]]+Dataset[[#This Row],[2026/27 From - Spending review Topic 3]]+Dataset[[#This Row],[2026/27 From - Spending review Topic 4]]+Dataset[[#This Row],[2026/27 From - Other reallocations]]","v":0},{"$f":"Dataset[[#This Row],[2027/28 From - Spending review Topic 1]]+Dataset[[#This Row],[2027/28 From - Spending review Topic 2]]+Dataset[[#This Row],[2027/28 From - Spending review Topic 3]]+Dataset[[#This Row],[2027/28 From - Spending review Topic 4]]+Dataset[[#This Row],[2027/28 From - Other reallocations]]","v":0},{"$f":"Dataset[[#This Row],[2025/26 To - Spending review Topic 1]]+Dataset[[#This Row],[2025/26 To - Spending review Topic 2]]+Dataset[[#This Row],[2025/26 To - Spending review Topic 3]]+Dataset[[#This Row],[2025/26 To - Spending review Topic 4]]+Dataset[[#This Row],[2025/26 To - Other reallocations]]","v":0},{"$f":"Dataset[[#This Row],[2026/27 To - Spending review Topic 1]]+Dataset[[#This Row],[2026/27 To - Spending review Topic 2]]+Dataset[[#This Row],[2026/27 To - Spending review Topic 3]]+Dataset[[#This Row],[2026/27 To - Spending review Topic 4]]+Dataset[[#This Row],[2026/27 To - Other reallocations]]","v":0},{"$f":"Dataset[[#This Row],[2027/28 To - Spending review Topic 1]]+Dataset[[#This Row],[2027/28 To - Spending review Topic 2]]+Dataset[[#This Row],[2027/28 To - Spending review Topic 3]]+Dataset[[#This Row],[2027/28 To - Spending review Topic 4]]+Dataset[[#This Row],[2027/28 To - Other reallocations]]","v":0},{"$f":"Dataset[[#This Row],[2025/26 Reduction]]+Dataset[[#This Row],[2025/26 From - Total]]","v":0},{"$f":"Dataset[[#This Row],[2026/27 Reduction]]+Dataset[[#This Row],[2026/27 From - Total]]","v":0},{"$f":"Dataset[[#This Row],[2027/28 Reduction]]+Dataset[[#This Row],[2027/28 From - Total]]","v":0},{"$f":"Dataset[[#This Row],[2024/25 Reduction]]","v":0},{"$f":"SUM(Dataset[[#This Row],[2025/26 Reduction]],Dataset[[#This Row],[2025/26 From - Total]],Dataset[[#This Row],[2025/26 To - Total]])","v":0},{"$f":"SUM(Dataset[[#This Row],[2026/27 Reduction]],Dataset[[#This Row],[2026/27 From - Total]],Dataset[[#This Row],[2026/27 To - Total]])","v":0},{"$f":"SUM(Dataset[[#This Row],[2027/28 Reduction]],Dataset[[#This Row],[2027/28 From - Total]],Dataset[[#This Row],[2027/28 To - Total]])","v":0},{"$f":"Dataset[[#This Row],[2024/25 Baseline]]+Dataset[[#This Row],[2024/25 Total change]]","v":0},{"$f":"Dataset[[#This Row],[2025/26 Baseline]]+Dataset[[#This Row],[2025/26 Total change]]","v":0},{"$f":"Dataset[[#This Row],[2026/27 Baseline]]+Dataset[[#This Row],[2026/27 Total change]]","v":0},{"$f":"Dataset[[#This Row],[2027/28 Baseline]]+Dataset[[#This Row],[2027/28 Total change]]","v":0}]
["NAT|Non-transfer item","40|Science and technological services","2025_26","MTEC2025",40,1,1,51287,15,"40","01","01","051287","000015","40|01|01|000015","01","01","02","15","15","01|01|02|15|15","National","Transport","Administration","Ministry","Non-transfer item","Current","Current payments","Goods and services","Science and technological services","Science and technological services","Economic development","Economic regulation and infrastructure","NAT",0,0,0,0,0,0,null,0,0,0,0,null,null,null,null,null,null,null,null,null,null,null,null,null,null,null,null,null,null,null,null,null,null,null,null,null,null,null,null,null,null,null,null,null,null,{"$f":"Dataset[[#This Row],[2025/26 From - Spending review Topic 1]]+Dataset[[#This Row],[2025/26 From - Spending review Topic 2]]+Dataset[[#This Row],[2025/26 From - Spending review Topic 3]]+Dataset[[#This Row],[2025/26 From - Spending review Topic 4]]+Dataset[[#This Row],[2025/26 From - Other reallocations]]","v":0},{"$f":"Dataset[[#This Row],[2026/27 From - Spending review Topic 1]]+Dataset[[#This Row],[2026/27 From - Spending review Topic 2]]+Dataset[[#This Row],[2026/27 From - Spending review Topic 3]]+Dataset[[#This Row],[2026/27 From - Spending review Topic 4]]+Dataset[[#This Row],[2026/27 From - Other reallocations]]","v":0},{"$f":"Dataset[[#This Row],[2027/28 From - Spending review Topic 1]]+Dataset[[#This Row],[2027/28 From - Spending review Topic 2]]+Dataset[[#This Row],[2027/28 From - Spending review Topic 3]]+Dataset[[#This Row],[2027/28 From - Spending review Topic 4]]+Dataset[[#This Row],[2027/28 From - Other reallocations]]","v":0},{"$f":"Dataset[[#This Row],[2025/26 To - Spending review Topic 1]]+Dataset[[#This Row],[2025/26 To - Spending review Topic 2]]+Dataset[[#This Row],[2025/26 To - Spending review Topic 3]]+Dataset[[#This Row],[2025/26 To - Spending review Topic 4]]+Dataset[[#This Row],[2025/26 To - Other reallocations]]","v":0},{"$f":"Dataset[[#This Row],[2026/27 To - Spending review Topic 1]]+Dataset[[#This Row],[2026/27 To - Spending review Topic 2]]+Dataset[[#This Row],[2026/27 To - Spending review Topic 3]]+Dataset[[#This Row],[2026/27 To - Spending review Topic 4]]+Dataset[[#This Row],[2026/27 To - Other reallocations]]","v":0},{"$f":"Dataset[[#This Row],[2027/28 To - Spending review Topic 1]]+Dataset[[#This Row],[2027/28 To - Spending review Topic 2]]+Dataset[[#This Row],[2027/28 To - Spending review Topic 3]]+Dataset[[#This Row],[2027/28 To - Spending review Topic 4]]+Dataset[[#This Row],[2027/28 To - Other reallocations]]","v":0},{"$f":"Dataset[[#This Row],[2025/26 Reduction]]+Dataset[[#This Row],[2025/26 From - Total]]","v":0},{"$f":"Dataset[[#This Row],[2026/27 Reduction]]+Dataset[[#This Row],[2026/27 From - Total]]","v":0},{"$f":"Dataset[[#This Row],[2027/28 Reduction]]+Dataset[[#This Row],[2027/28 From - Total]]","v":0},{"$f":"Dataset[[#This Row],[2024/25 Reduction]]","v":0},{"$f":"SUM(Dataset[[#This Row],[2025/26 Reduction]],Dataset[[#This Row],[2025/26 From - Total]],Dataset[[#This Row],[2025/26 To - Total]])","v":0},{"$f":"SUM(Dataset[[#This Row],[2026/27 Reduction]],Dataset[[#This Row],[2026/27 From - Total]],Dataset[[#This Row],[2026/27 To - Total]])","v":0},{"$f":"SUM(Dataset[[#This Row],[2027/28 Reduction]],Dataset[[#This Row],[2027/28 From - Total]],Dataset[[#This Row],[2027/28 To - Total]])","v":0},{"$f":"Dataset[[#This Row],[2024/25 Baseline]]+Dataset[[#This Row],[2024/25 Total change]]","v":0},{"$f":"Dataset[[#This Row],[2025/26 Baseline]]+Dataset[[#This Row],[2025/26 Total change]]","v":0},{"$f":"Dataset[[#This Row],[2026/27 Baseline]]+Dataset[[#This Row],[2026/27 Total change]]","v":0},{"$f":"Dataset[[#This Row],[2027/28 Baseline]]+Dataset[[#This Row],[2027/28 Total change]]","v":0}]
["NAT|Non-transfer item","40|Contractors","2025_26","MTEC2025",40,1,1,51288,16,"40","01","01","051288","000016","40|01|01|000016","01","01","02","16","16","01|01|02|16|16","National","Transport","Administration","Ministry","Non-transfer item","Current","Current payments","Goods and services","Contractors","Contractors","Economic development","Economic regulation and infrastructure","NAT",43,249,134,50,50,50,120,50,53,55,57,null,null,null,null,null,null,null,null,null,null,null,null,null,null,null,null,null,null,null,null,null,null,null,null,null,null,null,null,null,null,null,null,null,null,{"$f":"Dataset[[#This Row],[2025/26 From - Spending review Topic 1]]+Dataset[[#This Row],[2025/26 From - Spending review Topic 2]]+Dataset[[#This Row],[2025/26 From - Spending review Topic 3]]+Dataset[[#This Row],[2025/26 From - Spending review Topic 4]]+Dataset[[#This Row],[2025/26 From - Other reallocations]]","v":0},{"$f":"Dataset[[#This Row],[2026/27 From - Spending review Topic 1]]+Dataset[[#This Row],[2026/27 From - Spending review Topic 2]]+Dataset[[#This Row],[2026/27 From - Spending review Topic 3]]+Dataset[[#This Row],[2026/27 From - Spending review Topic 4]]+Dataset[[#This Row],[2026/27 From - Other reallocations]]","v":0},{"$f":"Dataset[[#This Row],[2027/28 From - Spending review Topic 1]]+Dataset[[#This Row],[2027/28 From - Spending review Topic 2]]+Dataset[[#This Row],[2027/28 From - Spending review Topic 3]]+Dataset[[#This Row],[2027/28 From - Spending review Topic 4]]+Dataset[[#This Row],[2027/28 From - Other reallocations]]","v":0},{"$f":"Dataset[[#This Row],[2025/26 To - Spending review Topic 1]]+Dataset[[#This Row],[2025/26 To - Spending review Topic 2]]+Dataset[[#This Row],[2025/26 To - Spending review Topic 3]]+Dataset[[#This Row],[2025/26 To - Spending review Topic 4]]+Dataset[[#This Row],[2025/26 To - Other reallocations]]","v":0},{"$f":"Dataset[[#This Row],[2026/27 To - Spending review Topic 1]]+Dataset[[#This Row],[2026/27 To - Spending review Topic 2]]+Dataset[[#This Row],[2026/27 To - Spending review Topic 3]]+Dataset[[#This Row],[2026/27 To - Spending review Topic 4]]+Dataset[[#This Row],[2026/27 To - Other reallocations]]","v":0},{"$f":"Dataset[[#This Row],[2027/28 To - Spending review Topic 1]]+Dataset[[#This Row],[2027/28 To - Spending review Topic 2]]+Dataset[[#This Row],[2027/28 To - Spending review Topic 3]]+Dataset[[#This Row],[2027/28 To - Spending review Topic 4]]+Dataset[[#This Row],[2027/28 To - Other reallocations]]","v":0},{"$f":"Dataset[[#This Row],[2025/26 Reduction]]+Dataset[[#This Row],[2025/26 From - Total]]","v":0},{"$f":"Dataset[[#This Row],[2026/27 Reduction]]+Dataset[[#This Row],[2026/27 From - Total]]","v":0},{"$f":"Dataset[[#This Row],[2027/28 Reduction]]+Dataset[[#This Row],[2027/28 From - Total]]","v":0},{"$f":"Dataset[[#This Row],[2024/25 Reduction]]","v":0},{"$f":"SUM(Dataset[[#This Row],[2025/26 Reduction]],Dataset[[#This Row],[2025/26 From - Total]],Dataset[[#This Row],[2025/26 To - Total]])","v":0},{"$f":"SUM(Dataset[[#This Row],[2026/27 Reduction]],Dataset[[#This Row],[2026/27 From - Total]],Dataset[[#This Row],[2026/27 To - Total]])","v":0},{"$f":"SUM(Dataset[[#This Row],[2027/28 Reduction]],Dataset[[#This Row],[2027/28 From - Total]],Dataset[[#This Row],[2027/28 To - Total]])","v":0},{"$f":"Dataset[[#This Row],[2024/25 Baseline]]+Dataset[[#This Row],[2024/25 Total change]]","v":50},{"$f":"Dataset[[#This Row],[2025/26 Baseline]]+Dataset[[#This Row],[2025/26 Total change]]","v":53},{"$f":"Dataset[[#This Row],[2026/27 Baseline]]+Dataset[[#This Row],[2026/27 Total change]]","v":55},{"$f":"Dataset[[#This Row],[2027/28 Baseline]]+Dataset[[#This Row],[2027/28 Total change]]","v":57}]
["NAT|Non-transfer item","40|Agency and support/outsourced services","2025_26","MTEC2025",40,1,1,51289,17,"40","01","01","051289","000017","40|01|01|000017","01","01","02","17","17","01|01|02|17|17","National","Transport","Administration","Ministry","Non-transfer item","Current","Current payments","Goods and services","Agency and support/outsourced services","Agency and support/outsourced services","Economic development","Economic regulation and infrastructure","NAT",0,0,0,0,0,0,null,0,0,0,0,null,null,null,null,null,null,null,null,null,null,null,null,null,null,null,null,null,null,null,null,null,null,null,null,null,null,null,null,null,null,null,null,null,null,{"$f":"Dataset[[#This Row],[2025/26 From - Spending review Topic 1]]+Dataset[[#This Row],[2025/26 From - Spending review Topic 2]]+Dataset[[#This Row],[2025/26 From - Spending review Topic 3]]+Dataset[[#This Row],[2025/26 From - Spending review Topic 4]]+Dataset[[#This Row],[2025/26 From - Other reallocations]]","v":0},{"$f":"Dataset[[#This Row],[2026/27 From - Spending review Topic 1]]+Dataset[[#This Row],[2026/27 From - Spending review Topic 2]]+Dataset[[#This Row],[2026/27 From - Spending review Topic 3]]+Dataset[[#This Row],[2026/27 From - Spending review Topic 4]]+Dataset[[#This Row],[2026/27 From - Other reallocations]]","v":0},{"$f":"Dataset[[#This Row],[2027/28 From - Spending review Topic 1]]+Dataset[[#This Row],[2027/28 From - Spending review Topic 2]]+Dataset[[#This Row],[2027/28 From - Spending review Topic 3]]+Dataset[[#This Row],[2027/28 From - Spending review Topic 4]]+Dataset[[#This Row],[2027/28 From - Other reallocations]]","v":0},{"$f":"Dataset[[#This Row],[2025/26 To - Spending review Topic 1]]+Dataset[[#This Row],[2025/26 To - Spending review Topic 2]]+Dataset[[#This Row],[2025/26 To - Spending review Topic 3]]+Dataset[[#This Row],[2025/26 To - Spending review Topic 4]]+Dataset[[#This Row],[2025/26 To - Other reallocations]]","v":0},{"$f":"Dataset[[#This Row],[2026/27 To - Spending review Topic 1]]+Dataset[[#This Row],[2026/27 To - Spending review Topic 2]]+Dataset[[#This Row],[2026/27 To - Spending review Topic 3]]+Dataset[[#This Row],[2026/27 To - Spending review Topic 4]]+Dataset[[#This Row],[2026/27 To - Other reallocations]]","v":0},{"$f":"Dataset[[#This Row],[2027/28 To - Spending review Topic 1]]+Dataset[[#This Row],[2027/28 To - Spending review Topic 2]]+Dataset[[#This Row],[2027/28 To - Spending review Topic 3]]+Dataset[[#This Row],[2027/28 To - Spending review Topic 4]]+Dataset[[#This Row],[2027/28 To - Other reallocations]]","v":0},{"$f":"Dataset[[#This Row],[2025/26 Reduction]]+Dataset[[#This Row],[2025/26 From - Total]]","v":0},{"$f":"Dataset[[#This Row],[2026/27 Reduction]]+Dataset[[#This Row],[2026/27 From - Total]]","v":0},{"$f":"Dataset[[#This Row],[2027/28 Reduction]]+Dataset[[#This Row],[2027/28 From - Total]]","v":0},{"$f":"Dataset[[#This Row],[2024/25 Reduction]]","v":0},{"$f":"SUM(Dataset[[#This Row],[2025/26 Reduction]],Dataset[[#This Row],[2025/26 From - Total]],Dataset[[#This Row],[2025/26 To - Total]])","v":0},{"$f":"SUM(Dataset[[#This Row],[2026/27 Reduction]],Dataset[[#This Row],[2026/27 From - Total]],Dataset[[#This Row],[2026/27 To - Total]])","v":0},{"$f":"SUM(Dataset[[#This Row],[2027/28 Reduction]],Dataset[[#This Row],[2027/28 From - Total]],Dataset[[#This Row],[2027/28 To - Total]])","v":0},{"$f":"Dataset[[#This Row],[2024/25 Baseline]]+Dataset[[#This Row],[2024/25 Total change]]","v":0},{"$f":"Dataset[[#This Row],[2025/26 Baseline]]+Dataset[[#This Row],[2025/26 Total change]]","v":0},{"$f":"Dataset[[#This Row],[2026/27 Baseline]]+Dataset[[#This Row],[2026/27 Total change]]","v":0},{"$f":"Dataset[[#This Row],[2027/28 Baseline]]+Dataset[[#This Row],[2027/28 Total change]]","v":0}]
["NAT|Non-transfer item","40|Entertainment","2025_26","MTEC2025",40,1,1,51290,18,"40","01","01","051290","000018","40|01|01|000018","01","01","02","18","18","01|01|02|18|18","National","Transport","Administration","Ministry","Non-transfer item","Current","Current payments","Goods and services","Entertainment","Entertainment","Economic development","Economic regulation and infrastructure","NAT",0,0,0,0,0,0,null,0,0,0,0,null,null,null,null,null,null,null,null,null,null,null,null,null,null,null,null,null,null,null,null,null,null,null,null,null,null,null,null,null,null,null,null,null,null,{"$f":"Dataset[[#This Row],[2025/26 From - Spending review Topic 1]]+Dataset[[#This Row],[2025/26 From - Spending review Topic 2]]+Dataset[[#This Row],[2025/26 From - Spending review Topic 3]]+Dataset[[#This Row],[2025/26 From - Spending review Topic 4]]+Dataset[[#This Row],[2025/26 From - Other reallocations]]","v":0},{"$f":"Dataset[[#This Row],[2026/27 From - Spending review Topic 1]]+Dataset[[#This Row],[2026/27 From - Spending review Topic 2]]+Dataset[[#This Row],[2026/27 From - Spending review Topic 3]]+Dataset[[#This Row],[2026/27 From - Spending review Topic 4]]+Dataset[[#This Row],[2026/27 From - Other reallocations]]","v":0},{"$f":"Dataset[[#This Row],[2027/28 From - Spending review Topic 1]]+Dataset[[#This Row],[2027/28 From - Spending review Topic 2]]+Dataset[[#This Row],[2027/28 From - Spending review Topic 3]]+Dataset[[#This Row],[2027/28 From - Spending review Topic 4]]+Dataset[[#This Row],[2027/28 From - Other reallocations]]","v":0},{"$f":"Dataset[[#This Row],[2025/26 To - Spending review Topic 1]]+Dataset[[#This Row],[2025/26 To - Spending review Topic 2]]+Dataset[[#This Row],[2025/26 To - Spending review Topic 3]]+Dataset[[#This Row],[2025/26 To - Spending review Topic 4]]+Dataset[[#This Row],[2025/26 To - Other reallocations]]","v":0},{"$f":"Dataset[[#This Row],[2026/27 To - Spending review Topic 1]]+Dataset[[#This Row],[2026/27 To - Spending review Topic 2]]+Dataset[[#This Row],[2026/27 To - Spending review Topic 3]]+Dataset[[#This Row],[2026/27 To - Spending review Topic 4]]+Dataset[[#This Row],[2026/27 To - Other reallocations]]","v":0},{"$f":"Dataset[[#This Row],[2027/28 To - Spending review Topic 1]]+Dataset[[#This Row],[2027/28 To - Spending review Topic 2]]+Dataset[[#This Row],[2027/28 To - Spending review Topic 3]]+Dataset[[#This Row],[2027/28 To - Spending review Topic 4]]+Dataset[[#This Row],[2027/28 To - Other reallocations]]","v":0},{"$f":"Dataset[[#This Row],[2025/26 Reduction]]+Dataset[[#This Row],[2025/26 From - Total]]","v":0},{"$f":"Dataset[[#This Row],[2026/27 Reduction]]+Dataset[[#This Row],[2026/27 From - Total]]","v":0},{"$f":"Dataset[[#This Row],[2027/28 Reduction]]+Dataset[[#This Row],[2027/28 From - Total]]","v":0},{"$f":"Dataset[[#This Row],[2024/25 Reduction]]","v":0},{"$f":"SUM(Dataset[[#This Row],[2025/26 Reduction]],Dataset[[#This Row],[2025/26 From - Total]],Dataset[[#This Row],[2025/26 To - Total]])","v":0},{"$f":"SUM(Dataset[[#This Row],[2026/27 Reduction]],Dataset[[#This Row],[2026/27 From - Total]],Dataset[[#This Row],[2026/27 To - Total]])","v":0},{"$f":"SUM(Dataset[[#This Row],[2027/28 Reduction]],Dataset[[#This Row],[2027/28 From - Total]],Dataset[[#This Row],[2027/28 To - Total]])","v":0},{"$f":"Dataset[[#This Row],[2024/25 Baseline]]+Dataset[[#This Row],[2024/25 Total change]]","v":0},{"$f":"Dataset[[#This Row],[2025/26 Baseline]]+Dataset[[#This Row],[2025/26 Total change]]","v":0},{"$f":"Dataset[[#This Row],[2026/27 Baseline]]+Dataset[[#This Row],[2026/27 Total change]]","v":0},{"$f":"Dataset[[#This Row],[2027/28 Baseline]]+Dataset[[#This Row],[2027/28 Total change]]","v":0}]
["NAT|Non-transfer item","40|Fleet services (including government motor transport)","2025_26","MTEC2025",40,1,1,51291,19,"40","01","01","051291","000019","40|01|01|000019","01","01","02","19","19","01|01|02|19|19","National","Transport","Administration","Ministry","Non-transfer item","Current","Current payments","Goods and services","Fleet services (including government motor transport)","Fleet services (including government motor transport)","Economic development","Economic regulation and infrastructure","NAT",310,424,969,800,800,800,263,700,736,769,804,null,null,null,null,null,null,null,null,null,null,null,null,null,null,null,null,null,null,null,null,null,null,null,null,null,null,null,null,null,null,null,null,null,null,{"$f":"Dataset[[#This Row],[2025/26 From - Spending review Topic 1]]+Dataset[[#This Row],[2025/26 From - Spending review Topic 2]]+Dataset[[#This Row],[2025/26 From - Spending review Topic 3]]+Dataset[[#This Row],[2025/26 From - Spending review Topic 4]]+Dataset[[#This Row],[2025/26 From - Other reallocations]]","v":0},{"$f":"Dataset[[#This Row],[2026/27 From - Spending review Topic 1]]+Dataset[[#This Row],[2026/27 From - Spending review Topic 2]]+Dataset[[#This Row],[2026/27 From - Spending review Topic 3]]+Dataset[[#This Row],[2026/27 From - Spending review Topic 4]]+Dataset[[#This Row],[2026/27 From - Other reallocations]]","v":0},{"$f":"Dataset[[#This Row],[2027/28 From - Spending review Topic 1]]+Dataset[[#This Row],[2027/28 From - Spending review Topic 2]]+Dataset[[#This Row],[2027/28 From - Spending review Topic 3]]+Dataset[[#This Row],[2027/28 From - Spending review Topic 4]]+Dataset[[#This Row],[2027/28 From - Other reallocations]]","v":0},{"$f":"Dataset[[#This Row],[2025/26 To - Spending review Topic 1]]+Dataset[[#This Row],[2025/26 To - Spending review Topic 2]]+Dataset[[#This Row],[2025/26 To - Spending review Topic 3]]+Dataset[[#This Row],[2025/26 To - Spending review Topic 4]]+Dataset[[#This Row],[2025/26 To - Other reallocations]]","v":0},{"$f":"Dataset[[#This Row],[2026/27 To - Spending review Topic 1]]+Dataset[[#This Row],[2026/27 To - Spending review Topic 2]]+Dataset[[#This Row],[2026/27 To - Spending review Topic 3]]+Dataset[[#This Row],[2026/27 To - Spending review Topic 4]]+Dataset[[#This Row],[2026/27 To - Other reallocations]]","v":0},{"$f":"Dataset[[#This Row],[2027/28 To - Spending review Topic 1]]+Dataset[[#This Row],[2027/28 To - Spending review Topic 2]]+Dataset[[#This Row],[2027/28 To - Spending review Topic 3]]+Dataset[[#This Row],[2027/28 To - Spending review Topic 4]]+Dataset[[#This Row],[2027/28 To - Other reallocations]]","v":0},{"$f":"Dataset[[#This Row],[2025/26 Reduction]]+Dataset[[#This Row],[2025/26 From - Total]]","v":0},{"$f":"Dataset[[#This Row],[2026/27 Reduction]]+Dataset[[#This Row],[2026/27 From - Total]]","v":0},{"$f":"Dataset[[#This Row],[2027/28 Reduction]]+Dataset[[#This Row],[2027/28 From - Total]]","v":0},{"$f":"Dataset[[#This Row],[2024/25 Reduction]]","v":0},{"$f":"SUM(Dataset[[#This Row],[2025/26 Reduction]],Dataset[[#This Row],[2025/26 From - Total]],Dataset[[#This Row],[2025/26 To - Total]])","v":0},{"$f":"SUM(Dataset[[#This Row],[2026/27 Reduction]],Dataset[[#This Row],[2026/27 From - Total]],Dataset[[#This Row],[2026/27 To - Total]])","v":0},{"$f":"SUM(Dataset[[#This Row],[2027/28 Reduction]],Dataset[[#This Row],[2027/28 From - Total]],Dataset[[#This Row],[2027/28 To - Total]])","v":0},{"$f":"Dataset[[#This Row],[2024/25 Baseline]]+Dataset[[#This Row],[2024/25 Total change]]","v":700},{"$f":"Dataset[[#This Row],[2025/26 Baseline]]+Dataset[[#This Row],[2025/26 Total change]]","v":736},{"$f":"Dataset[[#This Row],[2026/27 Baseline]]+Dataset[[#This Row],[2026/27 Total change]]","v":769},{"$f":"Dataset[[#This Row],[2027/28 Baseline]]+Dataset[[#This Row],[2027/28 Total change]]","v":804}]
["NAT|Non-transfer item","40|Housing","2025_26","MTEC2025",40,1,1,51292,20,"40","01","01","051292","000020","40|01|01|000020","01","01","02","20","20","01|01|02|20|20","National","Transport","Administration","Ministry","Non-transfer item","Current","Current payments","Goods and services","Housing","Housing","Economic development","Economic regulation and infrastructure","NAT",0,0,0,0,0,0,null,0,0,0,0,null,null,null,null,null,null,null,null,null,null,null,null,null,null,null,null,null,null,null,null,null,null,null,null,null,null,null,null,null,null,null,null,null,null,{"$f":"Dataset[[#This Row],[2025/26 From - Spending review Topic 1]]+Dataset[[#This Row],[2025/26 From - Spending review Topic 2]]+Dataset[[#This Row],[2025/26 From - Spending review Topic 3]]+Dataset[[#This Row],[2025/26 From - Spending review Topic 4]]+Dataset[[#This Row],[2025/26 From - Other reallocations]]","v":0},{"$f":"Dataset[[#This Row],[2026/27 From - Spending review Topic 1]]+Dataset[[#This Row],[2026/27 From - Spending review Topic 2]]+Dataset[[#This Row],[2026/27 From - Spending review Topic 3]]+Dataset[[#This Row],[2026/27 From - Spending review Topic 4]]+Dataset[[#This Row],[2026/27 From - Other reallocations]]","v":0},{"$f":"Dataset[[#This Row],[2027/28 From - Spending review Topic 1]]+Dataset[[#This Row],[2027/28 From - Spending review Topic 2]]+Dataset[[#This Row],[2027/28 From - Spending review Topic 3]]+Dataset[[#This Row],[2027/28 From - Spending review Topic 4]]+Dataset[[#This Row],[2027/28 From - Other reallocations]]","v":0},{"$f":"Dataset[[#This Row],[2025/26 To - Spending review Topic 1]]+Dataset[[#This Row],[2025/26 To - Spending review Topic 2]]+Dataset[[#This Row],[2025/26 To - Spending review Topic 3]]+Dataset[[#This Row],[2025/26 To - Spending review Topic 4]]+Dataset[[#This Row],[2025/26 To - Other reallocations]]","v":0},{"$f":"Dataset[[#This Row],[2026/27 To - Spending review Topic 1]]+Dataset[[#This Row],[2026/27 To - Spending review Topic 2]]+Dataset[[#This Row],[2026/27 To - Spending review Topic 3]]+Dataset[[#This Row],[2026/27 To - Spending review Topic 4]]+Dataset[[#This Row],[2026/27 To - Other reallocations]]","v":0},{"$f":"Dataset[[#This Row],[2027/28 To - Spending review Topic 1]]+Dataset[[#This Row],[2027/28 To - Spending review Topic 2]]+Dataset[[#This Row],[2027/28 To - Spending review Topic 3]]+Dataset[[#This Row],[2027/28 To - Spending review Topic 4]]+Dataset[[#This Row],[2027/28 To - Other reallocations]]","v":0},{"$f":"Dataset[[#This Row],[2025/26 Reduction]]+Dataset[[#This Row],[2025/26 From - Total]]","v":0},{"$f":"Dataset[[#This Row],[2026/27 Reduction]]+Dataset[[#This Row],[2026/27 From - Total]]","v":0},{"$f":"Dataset[[#This Row],[2027/28 Reduction]]+Dataset[[#This Row],[2027/28 From - Total]]","v":0},{"$f":"Dataset[[#This Row],[2024/25 Reduction]]","v":0},{"$f":"SUM(Dataset[[#This Row],[2025/26 Reduction]],Dataset[[#This Row],[2025/26 From - Total]],Dataset[[#This Row],[2025/26 To - Total]])","v":0},{"$f":"SUM(Dataset[[#This Row],[2026/27 Reduction]],Dataset[[#This Row],[2026/27 From - Total]],Dataset[[#This Row],[2026/27 To - Total]])","v":0},{"$f":"SUM(Dataset[[#This Row],[2027/28 Reduction]],Dataset[[#This Row],[2027/28 From - Total]],Dataset[[#This Row],[2027/28 To - Total]])","v":0},{"$f":"Dataset[[#This Row],[2024/25 Baseline]]+Dataset[[#This Row],[2024/25 Total change]]","v":0},{"$f":"Dataset[[#This Row],[2025/26 Baseline]]+Dataset[[#This Row],[2025/26 Total change]]","v":0},{"$f":"Dataset[[#This Row],[2026/27 Baseline]]+Dataset[[#This Row],[2026/27 Total change]]","v":0},{"$f":"Dataset[[#This Row],[2027/28 Baseline]]+Dataset[[#This Row],[2027/28 Total change]]","v":0}]
["NAT|Non-transfer item","40|Inventory: Clothing material and accessories","2025_26","MTEC2025",40,1,1,51293,21,"40","01","01","051293","000021","40|01|01|000021","01","01","02","21","21","01|01|02|21|21","National","Transport","Administration","Ministry","Non-transfer item","Current","Current payments","Goods and services","Inventory: Clothing material and accessories","Inventory: Clothing material and accessories","Economic development","Economic regulation and infrastructure","NAT",0,0,0,0,0,0,null,0,0,0,0,null,null,null,null,null,null,null,null,null,null,null,null,null,null,null,null,null,null,null,null,null,null,null,null,null,null,null,null,null,null,null,null,null,null,{"$f":"Dataset[[#This Row],[2025/26 From - Spending review Topic 1]]+Dataset[[#This Row],[2025/26 From - Spending review Topic 2]]+Dataset[[#This Row],[2025/26 From - Spending review Topic 3]]+Dataset[[#This Row],[2025/26 From - Spending review Topic 4]]+Dataset[[#This Row],[2025/26 From - Other reallocations]]","v":0},{"$f":"Dataset[[#This Row],[2026/27 From - Spending review Topic 1]]+Dataset[[#This Row],[2026/27 From - Spending review Topic 2]]+Dataset[[#This Row],[2026/27 From - Spending review Topic 3]]+Dataset[[#This Row],[2026/27 From - Spending review Topic 4]]+Dataset[[#This Row],[2026/27 From - Other reallocations]]","v":0},{"$f":"Dataset[[#This Row],[2027/28 From - Spending review Topic 1]]+Dataset[[#This Row],[2027/28 From - Spending review Topic 2]]+Dataset[[#This Row],[2027/28 From - Spending review Topic 3]]+Dataset[[#This Row],[2027/28 From - Spending review Topic 4]]+Dataset[[#This Row],[2027/28 From - Other reallocations]]","v":0},{"$f":"Dataset[[#This Row],[2025/26 To - Spending review Topic 1]]+Dataset[[#This Row],[2025/26 To - Spending review Topic 2]]+Dataset[[#This Row],[2025/26 To - Spending review Topic 3]]+Dataset[[#This Row],[2025/26 To - Spending review Topic 4]]+Dataset[[#This Row],[2025/26 To - Other reallocations]]","v":0},{"$f":"Dataset[[#This Row],[2026/27 To - Spending review Topic 1]]+Dataset[[#This Row],[2026/27 To - Spending review Topic 2]]+Dataset[[#This Row],[2026/27 To - Spending review Topic 3]]+Dataset[[#This Row],[2026/27 To - Spending review Topic 4]]+Dataset[[#This Row],[2026/27 To - Other reallocations]]","v":0},{"$f":"Dataset[[#This Row],[2027/28 To - Spending review Topic 1]]+Dataset[[#This Row],[2027/28 To - Spending review Topic 2]]+Dataset[[#This Row],[2027/28 To - Spending review Topic 3]]+Dataset[[#This Row],[2027/28 To - Spending review Topic 4]]+Dataset[[#This Row],[2027/28 To - Other reallocations]]","v":0},{"$f":"Dataset[[#This Row],[2025/26 Reduction]]+Dataset[[#This Row],[2025/26 From - Total]]","v":0},{"$f":"Dataset[[#This Row],[2026/27 Reduction]]+Dataset[[#This Row],[2026/27 From - Total]]","v":0},{"$f":"Dataset[[#This Row],[2027/28 Reduction]]+Dataset[[#This Row],[2027/28 From - Total]]","v":0},{"$f":"Dataset[[#This Row],[2024/25 Reduction]]","v":0},{"$f":"SUM(Dataset[[#This Row],[2025/26 Reduction]],Dataset[[#This Row],[2025/26 From - Total]],Dataset[[#This Row],[2025/26 To - Total]])","v":0},{"$f":"SUM(Dataset[[#This Row],[2026/27 Reduction]],Dataset[[#This Row],[2026/27 From - Total]],Dataset[[#This Row],[2026/27 To - Total]])","v":0},{"$f":"SUM(Dataset[[#This Row],[2027/28 Reduction]],Dataset[[#This Row],[2027/28 From - Total]],Dataset[[#This Row],[2027/28 To - Total]])","v":0},{"$f":"Dataset[[#This Row],[2024/25 Baseline]]+Dataset[[#This Row],[2024/25 Total change]]","v":0},{"$f":"Dataset[[#This Row],[2025/26 Baseline]]+Dataset[[#This Row],[2025/26 Total change]]","v":0},{"$f":"Dataset[[#This Row],[2026/27 Baseline]]+Dataset[[#This Row],[2026/27 Total change]]","v":0},{"$f":"Dataset[[#This Row],[2027/28 Baseline]]+Dataset[[#This Row],[2027/28 Total change]]","v":0}]
["NAT|Non-transfer item","40|Inventory: Farming supplies","2025_26","MTEC2025",40,1,1,51294,22,"40","01","01","051294","000022","40|01|01|000022","01","01","02","22","22","01|01|02|22|22","National","Transport","Administration","Ministry","Non-transfer item","Current","Current payments","Goods and services","Inventory: Farming supplies","Inventory: Farming supplies","Economic development","Economic regulation and infrastructure","NAT",0,0,0,0,0,0,null,0,0,0,0,null,null,null,null,null,null,null,null,null,null,null,null,null,null,null,null,null,null,null,null,null,null,null,null,null,null,null,null,null,null,null,null,null,null,{"$f":"Dataset[[#This Row],[2025/26 From - Spending review Topic 1]]+Dataset[[#This Row],[2025/26 From - Spending review Topic 2]]+Dataset[[#This Row],[2025/26 From - Spending review Topic 3]]+Dataset[[#This Row],[2025/26 From - Spending review Topic 4]]+Dataset[[#This Row],[2025/26 From - Other reallocations]]","v":0},{"$f":"Dataset[[#This Row],[2026/27 From - Spending review Topic 1]]+Dataset[[#This Row],[2026/27 From - Spending review Topic 2]]+Dataset[[#This Row],[2026/27 From - Spending review Topic 3]]+Dataset[[#This Row],[2026/27 From - Spending review Topic 4]]+Dataset[[#This Row],[2026/27 From - Other reallocations]]","v":0},{"$f":"Dataset[[#This Row],[2027/28 From - Spending review Topic 1]]+Dataset[[#This Row],[2027/28 From - Spending review Topic 2]]+Dataset[[#This Row],[2027/28 From - Spending review Topic 3]]+Dataset[[#This Row],[2027/28 From - Spending review Topic 4]]+Dataset[[#This Row],[2027/28 From - Other reallocations]]","v":0},{"$f":"Dataset[[#This Row],[2025/26 To - Spending review Topic 1]]+Dataset[[#This Row],[2025/26 To - Spending review Topic 2]]+Dataset[[#This Row],[2025/26 To - Spending review Topic 3]]+Dataset[[#This Row],[2025/26 To - Spending review Topic 4]]+Dataset[[#This Row],[2025/26 To - Other reallocations]]","v":0},{"$f":"Dataset[[#This Row],[2026/27 To - Spending review Topic 1]]+Dataset[[#This Row],[2026/27 To - Spending review Topic 2]]+Dataset[[#This Row],[2026/27 To - Spending review Topic 3]]+Dataset[[#This Row],[2026/27 To - Spending review Topic 4]]+Dataset[[#This Row],[2026/27 To - Other reallocations]]","v":0},{"$f":"Dataset[[#This Row],[2027/28 To - Spending review Topic 1]]+Dataset[[#This Row],[2027/28 To - Spending review Topic 2]]+Dataset[[#This Row],[2027/28 To - Spending review Topic 3]]+Dataset[[#This Row],[2027/28 To - Spending review Topic 4]]+Dataset[[#This Row],[2027/28 To - Other reallocations]]","v":0},{"$f":"Dataset[[#This Row],[2025/26 Reduction]]+Dataset[[#This Row],[2025/26 From - Total]]","v":0},{"$f":"Dataset[[#This Row],[2026/27 Reduction]]+Dataset[[#This Row],[2026/27 From - Total]]","v":0},{"$f":"Dataset[[#This Row],[2027/28 Reduction]]+Dataset[[#This Row],[2027/28 From - Total]]","v":0},{"$f":"Dataset[[#This Row],[2024/25 Reduction]]","v":0},{"$f":"SUM(Dataset[[#This Row],[2025/26 Reduction]],Dataset[[#This Row],[2025/26 From - Total]],Dataset[[#This Row],[2025/26 To - Total]])","v":0},{"$f":"SUM(Dataset[[#This Row],[2026/27 Reduction]],Dataset[[#This Row],[2026/27 From - Total]],Dataset[[#This Row],[2026/27 To - Total]])","v":0},{"$f":"SUM(Dataset[[#This Row],[2027/28 Reduction]],Dataset[[#This Row],[2027/28 From - Total]],Dataset[[#This Row],[2027/28 To - Total]])","v":0},{"$f":"Dataset[[#This Row],[2024/25 Baseline]]+Dataset[[#This Row],[2024/25 Total change]]","v":0},{"$f":"Dataset[[#This Row],[2025/26 Baseline]]+Dataset[[#This Row],[2025/26 Total change]]","v":0},{"$f":"Dataset[[#This Row],[2026/27 Baseline]]+Dataset[[#This Row],[2026/27 Total change]]","v":0},{"$f":"Dataset[[#This Row],[2027/28 Baseline]]+Dataset[[#This Row],[2027/28 Total change]]","v":0}]
["NAT|Non-transfer item","40|Inventory: Food and food supplies","2025_26","MTEC2025",40,1,1,51295,23,"40","01","01","051295","000023","40|01|01|000023","01","01","02","23","23","01|01|02|23|23","National","Transport","Administration","Ministry","Non-transfer item","Current","Current payments","Goods and services","Inventory: Food and food supplies","Inventory: Food and food supplies","Economic development","Economic regulation and infrastructure","NAT",0,0,0,0,0,0,null,0,0,0,0,null,null,null,null,null,null,null,null,null,null,null,null,null,null,null,null,null,null,null,null,null,null,null,null,null,null,null,null,null,null,null,null,null,null,{"$f":"Dataset[[#This Row],[2025/26 From - Spending review Topic 1]]+Dataset[[#This Row],[2025/26 From - Spending review Topic 2]]+Dataset[[#This Row],[2025/26 From - Spending review Topic 3]]+Dataset[[#This Row],[2025/26 From - Spending review Topic 4]]+Dataset[[#This Row],[2025/26 From - Other reallocations]]","v":0},{"$f":"Dataset[[#This Row],[2026/27 From - Spending review Topic 1]]+Dataset[[#This Row],[2026/27 From - Spending review Topic 2]]+Dataset[[#This Row],[2026/27 From - Spending review Topic 3]]+Dataset[[#This Row],[2026/27 From - Spending review Topic 4]]+Dataset[[#This Row],[2026/27 From - Other reallocations]]","v":0},{"$f":"Dataset[[#This Row],[2027/28 From - Spending review Topic 1]]+Dataset[[#This Row],[2027/28 From - Spending review Topic 2]]+Dataset[[#This Row],[2027/28 From - Spending review Topic 3]]+Dataset[[#This Row],[2027/28 From - Spending review Topic 4]]+Dataset[[#This Row],[2027/28 From - Other reallocations]]","v":0},{"$f":"Dataset[[#This Row],[2025/26 To - Spending review Topic 1]]+Dataset[[#This Row],[2025/26 To - Spending review Topic 2]]+Dataset[[#This Row],[2025/26 To - Spending review Topic 3]]+Dataset[[#This Row],[2025/26 To - Spending review Topic 4]]+Dataset[[#This Row],[2025/26 To - Other reallocations]]","v":0},{"$f":"Dataset[[#This Row],[2026/27 To - Spending review Topic 1]]+Dataset[[#This Row],[2026/27 To - Spending review Topic 2]]+Dataset[[#This Row],[2026/27 To - Spending review Topic 3]]+Dataset[[#This Row],[2026/27 To - Spending review Topic 4]]+Dataset[[#This Row],[2026/27 To - Other reallocations]]","v":0},{"$f":"Dataset[[#This Row],[2027/28 To - Spending review Topic 1]]+Dataset[[#This Row],[2027/28 To - Spending review Topic 2]]+Dataset[[#This Row],[2027/28 To - Spending review Topic 3]]+Dataset[[#This Row],[2027/28 To - Spending review Topic 4]]+Dataset[[#This Row],[2027/28 To - Other reallocations]]","v":0},{"$f":"Dataset[[#This Row],[2025/26 Reduction]]+Dataset[[#This Row],[2025/26 From - Total]]","v":0},{"$f":"Dataset[[#This Row],[2026/27 Reduction]]+Dataset[[#This Row],[2026/27 From - Total]]","v":0},{"$f":"Dataset[[#This Row],[2027/28 Reduction]]+Dataset[[#This Row],[2027/28 From - Total]]","v":0},{"$f":"Dataset[[#This Row],[2024/25 Reduction]]","v":0},{"$f":"SUM(Dataset[[#This Row],[2025/26 Reduction]],Dataset[[#This Row],[2025/26 From - Total]],Dataset[[#This Row],[2025/26 To - Total]])","v":0},{"$f":"SUM(Dataset[[#This Row],[2026/27 Reduction]],Dataset[[#This Row],[2026/27 From - Total]],Dataset[[#This Row],[2026/27 To - Total]])","v":0},{"$f":"SUM(Dataset[[#This Row],[2027/28 Reduction]],Dataset[[#This Row],[2027/28 From - Total]],Dataset[[#This Row],[2027/28 To - Total]])","v":0},{"$f":"Dataset[[#This Row],[2024/25 Baseline]]+Dataset[[#This Row],[2024/25 Total change]]","v":0},{"$f":"Dataset[[#This Row],[2025/26 Baseline]]+Dataset[[#This Row],[2025/26 Total change]]","v":0},{"$f":"Dataset[[#This Row],[2026/27 Baseline]]+Dataset[[#This Row],[2026/27 Total change]]","v":0},{"$f":"Dataset[[#This Row],[2027/28 Baseline]]+Dataset[[#This Row],[2027/28 Total change]]","v":0}]
["NAT|Non-transfer item","40|Inventory: Fuel, oil and gas","2025_26","MTEC2025",40,1,1,51296,24,"40","01","01","051296","000024","40|01|01|000024","01","01","02","24","24","01|01|02|24|24","National","Transport","Administration","Ministry","Non-transfer item","Current","Current payments","Goods and services","Inventory: Fuel, oil and gas","Inventory: Fuel, oil and gas","Economic development","Economic regulation and infrastructure","NAT",0,0,0,0,0,0,null,0,0,0,0,null,null,null,null,null,null,null,null,null,null,null,null,null,null,null,null,null,null,null,null,null,null,null,null,null,null,null,null,null,null,null,null,null,null,{"$f":"Dataset[[#This Row],[2025/26 From - Spending review Topic 1]]+Dataset[[#This Row],[2025/26 From - Spending review Topic 2]]+Dataset[[#This Row],[2025/26 From - Spending review Topic 3]]+Dataset[[#This Row],[2025/26 From - Spending review Topic 4]]+Dataset[[#This Row],[2025/26 From - Other reallocations]]","v":0},{"$f":"Dataset[[#This Row],[2026/27 From - Spending review Topic 1]]+Dataset[[#This Row],[2026/27 From - Spending review Topic 2]]+Dataset[[#This Row],[2026/27 From - Spending review Topic 3]]+Dataset[[#This Row],[2026/27 From - Spending review Topic 4]]+Dataset[[#This Row],[2026/27 From - Other reallocations]]","v":0},{"$f":"Dataset[[#This Row],[2027/28 From - Spending review Topic 1]]+Dataset[[#This Row],[2027/28 From - Spending review Topic 2]]+Dataset[[#This Row],[2027/28 From - Spending review Topic 3]]+Dataset[[#This Row],[2027/28 From - Spending review Topic 4]]+Dataset[[#This Row],[2027/28 From - Other reallocations]]","v":0},{"$f":"Dataset[[#This Row],[2025/26 To - Spending review Topic 1]]+Dataset[[#This Row],[2025/26 To - Spending review Topic 2]]+Dataset[[#This Row],[2025/26 To - Spending review Topic 3]]+Dataset[[#This Row],[2025/26 To - Spending review Topic 4]]+Dataset[[#This Row],[2025/26 To - Other reallocations]]","v":0},{"$f":"Dataset[[#This Row],[2026/27 To - Spending review Topic 1]]+Dataset[[#This Row],[2026/27 To - Spending review Topic 2]]+Dataset[[#This Row],[2026/27 To - Spending review Topic 3]]+Dataset[[#This Row],[2026/27 To - Spending review Topic 4]]+Dataset[[#This Row],[2026/27 To - Other reallocations]]","v":0},{"$f":"Dataset[[#This Row],[2027/28 To - Spending review Topic 1]]+Dataset[[#This Row],[2027/28 To - Spending review Topic 2]]+Dataset[[#This Row],[2027/28 To - Spending review Topic 3]]+Dataset[[#This Row],[2027/28 To - Spending review Topic 4]]+Dataset[[#This Row],[2027/28 To - Other reallocations]]","v":0},{"$f":"Dataset[[#This Row],[2025/26 Reduction]]+Dataset[[#This Row],[2025/26 From - Total]]","v":0},{"$f":"Dataset[[#This Row],[2026/27 Reduction]]+Dataset[[#This Row],[2026/27 From - Total]]","v":0},{"$f":"Dataset[[#This Row],[2027/28 Reduction]]+Dataset[[#This Row],[2027/28 From - Total]]","v":0},{"$f":"Dataset[[#This Row],[2024/25 Reduction]]","v":0},{"$f":"SUM(Dataset[[#This Row],[2025/26 Reduction]],Dataset[[#This Row],[2025/26 From - Total]],Dataset[[#This Row],[2025/26 To - Total]])","v":0},{"$f":"SUM(Dataset[[#This Row],[2026/27 Reduction]],Dataset[[#This Row],[2026/27 From - Total]],Dataset[[#This Row],[2026/27 To - Total]])","v":0},{"$f":"SUM(Dataset[[#This Row],[2027/28 Reduction]],Dataset[[#This Row],[2027/28 From - Total]],Dataset[[#This Row],[2027/28 To - Total]])","v":0},{"$f":"Dataset[[#This Row],[2024/25 Baseline]]+Dataset[[#This Row],[2024/25 Total change]]","v":0},{"$f":"Dataset[[#This Row],[2025/26 Baseline]]+Dataset[[#This Row],[2025/26 Total change]]","v":0},{"$f":"Dataset[[#This Row],[2026/27 Baseline]]+Dataset[[#This Row],[2026/27 Total change]]","v":0},{"$f":"Dataset[[#This Row],[2027/28 Baseline]]+Dataset[[#This Row],[2027/28 Total change]]","v":0}]
["NAT|Non-transfer item","40|Inventory: Learner and teacher support material","2025_26","MTEC2025",40,1,1,51297,25,"40","01","01","051297","000025","40|01|01|000025","01","01","02","25","25","01|01|02|25|25","National","Transport","Administration","Ministry","Non-transfer item","Current","Current payments","Goods and services","Inventory: Learner and teacher support material","Inventory: Learner and teacher support material","Economic development","Economic regulation and infrastructure","NAT",0,0,0,0,0,0,null,0,0,0,0,null,null,null,null,null,null,null,null,null,null,null,null,null,null,null,null,null,null,null,null,null,null,null,null,null,null,null,null,null,null,null,null,null,null,{"$f":"Dataset[[#This Row],[2025/26 From - Spending review Topic 1]]+Dataset[[#This Row],[2025/26 From - Spending review Topic 2]]+Dataset[[#This Row],[2025/26 From - Spending review Topic 3]]+Dataset[[#This Row],[2025/26 From - Spending review Topic 4]]+Dataset[[#This Row],[2025/26 From - Other reallocations]]","v":0},{"$f":"Dataset[[#This Row],[2026/27 From - Spending review Topic 1]]+Dataset[[#This Row],[2026/27 From - Spending review Topic 2]]+Dataset[[#This Row],[2026/27 From - Spending review Topic 3]]+Dataset[[#This Row],[2026/27 From - Spending review Topic 4]]+Dataset[[#This Row],[2026/27 From - Other reallocations]]","v":0},{"$f":"Dataset[[#This Row],[2027/28 From - Spending review Topic 1]]+Dataset[[#This Row],[2027/28 From - Spending review Topic 2]]+Dataset[[#This Row],[2027/28 From - Spending review Topic 3]]+Dataset[[#This Row],[2027/28 From - Spending review Topic 4]]+Dataset[[#This Row],[2027/28 From - Other reallocations]]","v":0},{"$f":"Dataset[[#This Row],[2025/26 To - Spending review Topic 1]]+Dataset[[#This Row],[2025/26 To - Spending review Topic 2]]+Dataset[[#This Row],[2025/26 To - Spending review Topic 3]]+Dataset[[#This Row],[2025/26 To - Spending review Topic 4]]+Dataset[[#This Row],[2025/26 To - Other reallocations]]","v":0},{"$f":"Dataset[[#This Row],[2026/27 To - Spending review Topic 1]]+Dataset[[#This Row],[2026/27 To - Spending review Topic 2]]+Dataset[[#This Row],[2026/27 To - Spending review Topic 3]]+Dataset[[#This Row],[2026/27 To - Spending review Topic 4]]+Dataset[[#This Row],[2026/27 To - Other reallocations]]","v":0},{"$f":"Dataset[[#This Row],[2027/28 To - Spending review Topic 1]]+Dataset[[#This Row],[2027/28 To - Spending review Topic 2]]+Dataset[[#This Row],[2027/28 To - Spending review Topic 3]]+Dataset[[#This Row],[2027/28 To - Spending review Topic 4]]+Dataset[[#This Row],[2027/28 To - Other reallocations]]","v":0},{"$f":"Dataset[[#This Row],[2025/26 Reduction]]+Dataset[[#This Row],[2025/26 From - Total]]","v":0},{"$f":"Dataset[[#This Row],[2026/27 Reduction]]+Dataset[[#This Row],[2026/27 From - Total]]","v":0},{"$f":"Dataset[[#This Row],[2027/28 Reduction]]+Dataset[[#This Row],[2027/28 From - Total]]","v":0},{"$f":"Dataset[[#This Row],[2024/25 Reduction]]","v":0},{"$f":"SUM(Dataset[[#This Row],[2025/26 Reduction]],Dataset[[#This Row],[2025/26 From - Total]],Dataset[[#This Row],[2025/26 To - Total]])","v":0},{"$f":"SUM(Dataset[[#This Row],[2026/27 Reduction]],Dataset[[#This Row],[2026/27 From - Total]],Dataset[[#This Row],[2026/27 To - Total]])","v":0},{"$f":"SUM(Dataset[[#This Row],[2027/28 Reduction]],Dataset[[#This Row],[2027/28 From - Total]],Dataset[[#This Row],[2027/28 To - Total]])","v":0},{"$f":"Dataset[[#This Row],[2024/25 Baseline]]+Dataset[[#This Row],[2024/25 Total change]]","v":0},{"$f":"Dataset[[#This Row],[2025/26 Baseline]]+Dataset[[#This Row],[2025/26 Total change]]","v":0},{"$f":"Dataset[[#This Row],[2026/27 Baseline]]+Dataset[[#This Row],[2026/27 Total change]]","v":0},{"$f":"Dataset[[#This Row],[2027/28 Baseline]]+Dataset[[#This Row],[2027/28 Total change]]","v":0}]
["NAT|Non-transfer item","40|Inventory: Materials and supplies","2025_26","MTEC2025",40,1,1,51298,26,"40","01","01","051298","000026","40|01|01|000026","01","01","02","26","26","01|01|02|26|26","National","Transport","Administration","Ministry","Non-transfer item","Current","Current payments","Goods and services","Inventory: Materials and supplies","Inventory: Materials and supplies","Economic development","Economic regulation and infrastructure","NAT",0,0,0,0,0,0,null,0,0,0,0,null,null,null,null,null,null,null,null,null,null,null,null,null,null,null,null,null,null,null,null,null,null,null,null,null,null,null,null,null,null,null,null,null,null,{"$f":"Dataset[[#This Row],[2025/26 From - Spending review Topic 1]]+Dataset[[#This Row],[2025/26 From - Spending review Topic 2]]+Dataset[[#This Row],[2025/26 From - Spending review Topic 3]]+Dataset[[#This Row],[2025/26 From - Spending review Topic 4]]+Dataset[[#This Row],[2025/26 From - Other reallocations]]","v":0},{"$f":"Dataset[[#This Row],[2026/27 From - Spending review Topic 1]]+Dataset[[#This Row],[2026/27 From - Spending review Topic 2]]+Dataset[[#This Row],[2026/27 From - Spending review Topic 3]]+Dataset[[#This Row],[2026/27 From - Spending review Topic 4]]+Dataset[[#This Row],[2026/27 From - Other reallocations]]","v":0},{"$f":"Dataset[[#This Row],[2027/28 From - Spending review Topic 1]]+Dataset[[#This Row],[2027/28 From - Spending review Topic 2]]+Dataset[[#This Row],[2027/28 From - Spending review Topic 3]]+Dataset[[#This Row],[2027/28 From - Spending review Topic 4]]+Dataset[[#This Row],[2027/28 From - Other reallocations]]","v":0},{"$f":"Dataset[[#This Row],[2025/26 To - Spending review Topic 1]]+Dataset[[#This Row],[2025/26 To - Spending review Topic 2]]+Dataset[[#This Row],[2025/26 To - Spending review Topic 3]]+Dataset[[#This Row],[2025/26 To - Spending review Topic 4]]+Dataset[[#This Row],[2025/26 To - Other reallocations]]","v":0},{"$f":"Dataset[[#This Row],[2026/27 To - Spending review Topic 1]]+Dataset[[#This Row],[2026/27 To - Spending review Topic 2]]+Dataset[[#This Row],[2026/27 To - Spending review Topic 3]]+Dataset[[#This Row],[2026/27 To - Spending review Topic 4]]+Dataset[[#This Row],[2026/27 To - Other reallocations]]","v":0},{"$f":"Dataset[[#This Row],[2027/28 To - Spending review Topic 1]]+Dataset[[#This Row],[2027/28 To - Spending review Topic 2]]+Dataset[[#This Row],[2027/28 To - Spending review Topic 3]]+Dataset[[#This Row],[2027/28 To - Spending review Topic 4]]+Dataset[[#This Row],[2027/28 To - Other reallocations]]","v":0},{"$f":"Dataset[[#This Row],[2025/26 Reduction]]+Dataset[[#This Row],[2025/26 From - Total]]","v":0},{"$f":"Dataset[[#This Row],[2026/27 Reduction]]+Dataset[[#This Row],[2026/27 From - Total]]","v":0},{"$f":"Dataset[[#This Row],[2027/28 Reduction]]+Dataset[[#This Row],[2027/28 From - Total]]","v":0},{"$f":"Dataset[[#This Row],[2024/25 Reduction]]","v":0},{"$f":"SUM(Dataset[[#This Row],[2025/26 Reduction]],Dataset[[#This Row],[2025/26 From - Total]],Dataset[[#This Row],[2025/26 To - Total]])","v":0},{"$f":"SUM(Dataset[[#This Row],[2026/27 Reduction]],Dataset[[#This Row],[2026/27 From - Total]],Dataset[[#This Row],[2026/27 To - Total]])","v":0},{"$f":"SUM(Dataset[[#This Row],[2027/28 Reduction]],Dataset[[#This Row],[2027/28 From - Total]],Dataset[[#This Row],[2027/28 To - Total]])","v":0},{"$f":"Dataset[[#This Row],[2024/25 Baseline]]+Dataset[[#This Row],[2024/25 Total change]]","v":0},{"$f":"Dataset[[#This Row],[2025/26 Baseline]]+Dataset[[#This Row],[2025/26 Total change]]","v":0},{"$f":"Dataset[[#This Row],[2026/27 Baseline]]+Dataset[[#This Row],[2026/27 Total change]]","v":0},{"$f":"Dataset[[#This Row],[2027/28 Baseline]]+Dataset[[#This Row],[2027/28 Total change]]","v":0}]
["NAT|Non-transfer item","40|Inventory: Medical supplies","2025_26","MTEC2025",40,1,1,51299,27,"40","01","01","051299","000027","40|01|01|000027","01","01","02","27","27","01|01|02|27|27","National","Transport","Administration","Ministry","Non-transfer item","Current","Current payments","Goods and services","Inventory: Medical supplies","Inventory: Medical supplies","Economic development","Economic regulation and infrastructure","NAT",0,0,0,0,0,0,null,0,0,0,0,null,null,null,null,null,null,null,null,null,null,null,null,null,null,null,null,null,null,null,null,null,null,null,null,null,null,null,null,null,null,null,null,null,null,{"$f":"Dataset[[#This Row],[2025/26 From - Spending review Topic 1]]+Dataset[[#This Row],[2025/26 From - Spending review Topic 2]]+Dataset[[#This Row],[2025/26 From - Spending review Topic 3]]+Dataset[[#This Row],[2025/26 From - Spending review Topic 4]]+Dataset[[#This Row],[2025/26 From - Other reallocations]]","v":0},{"$f":"Dataset[[#This Row],[2026/27 From - Spending review Topic 1]]+Dataset[[#This Row],[2026/27 From - Spending review Topic 2]]+Dataset[[#This Row],[2026/27 From - Spending review Topic 3]]+Dataset[[#This Row],[2026/27 From - Spending review Topic 4]]+Dataset[[#This Row],[2026/27 From - Other reallocations]]","v":0},{"$f":"Dataset[[#This Row],[2027/28 From - Spending review Topic 1]]+Dataset[[#This Row],[2027/28 From - Spending review Topic 2]]+Dataset[[#This Row],[2027/28 From - Spending review Topic 3]]+Dataset[[#This Row],[2027/28 From - Spending review Topic 4]]+Dataset[[#This Row],[2027/28 From - Other reallocations]]","v":0},{"$f":"Dataset[[#This Row],[2025/26 To - Spending review Topic 1]]+Dataset[[#This Row],[2025/26 To - Spending review Topic 2]]+Dataset[[#This Row],[2025/26 To - Spending review Topic 3]]+Dataset[[#This Row],[2025/26 To - Spending review Topic 4]]+Dataset[[#This Row],[2025/26 To - Other reallocations]]","v":0},{"$f":"Dataset[[#This Row],[2026/27 To - Spending review Topic 1]]+Dataset[[#This Row],[2026/27 To - Spending review Topic 2]]+Dataset[[#This Row],[2026/27 To - Spending review Topic 3]]+Dataset[[#This Row],[2026/27 To - Spending review Topic 4]]+Dataset[[#This Row],[2026/27 To - Other reallocations]]","v":0},{"$f":"Dataset[[#This Row],[2027/28 To - Spending review Topic 1]]+Dataset[[#This Row],[2027/28 To - Spending review Topic 2]]+Dataset[[#This Row],[2027/28 To - Spending review Topic 3]]+Dataset[[#This Row],[2027/28 To - Spending review Topic 4]]+Dataset[[#This Row],[2027/28 To - Other reallocations]]","v":0},{"$f":"Dataset[[#This Row],[2025/26 Reduction]]+Dataset[[#This Row],[2025/26 From - Total]]","v":0},{"$f":"Dataset[[#This Row],[2026/27 Reduction]]+Dataset[[#This Row],[2026/27 From - Total]]","v":0},{"$f":"Dataset[[#This Row],[2027/28 Reduction]]+Dataset[[#This Row],[2027/28 From - Total]]","v":0},{"$f":"Dataset[[#This Row],[2024/25 Reduction]]","v":0},{"$f":"SUM(Dataset[[#This Row],[2025/26 Reduction]],Dataset[[#This Row],[2025/26 From - Total]],Dataset[[#This Row],[2025/26 To - Total]])","v":0},{"$f":"SUM(Dataset[[#This Row],[2026/27 Reduction]],Dataset[[#This Row],[2026/27 From - Total]],Dataset[[#This Row],[2026/27 To - Total]])","v":0},{"$f":"SUM(Dataset[[#This Row],[2027/28 Reduction]],Dataset[[#This Row],[2027/28 From - Total]],Dataset[[#This Row],[2027/28 To - Total]])","v":0},{"$f":"Dataset[[#This Row],[2024/25 Baseline]]+Dataset[[#This Row],[2024/25 Total change]]","v":0},{"$f":"Dataset[[#This Row],[2025/26 Baseline]]+Dataset[[#This Row],[2025/26 Total change]]","v":0},{"$f":"Dataset[[#This Row],[2026/27 Baseline]]+Dataset[[#This Row],[2026/27 Total change]]","v":0},{"$f":"Dataset[[#This Row],[2027/28 Baseline]]+Dataset[[#This Row],[2027/28 Total change]]","v":0}]
["NAT|Non-transfer item","40|Inventory: Medicine","2025_26","MTEC2025",40,1,1,51300,28,"40","01","01","051300","000028","40|01|01|000028","01","01","02","28","28","01|01|02|28|28","National","Transport","Administration","Ministry","Non-transfer item","Current","Current payments","Goods and services","Inventory: Medicine","Inventory: Medicine","Economic development","Economic regulation and infrastructure","NAT",0,0,0,0,0,0,null,0,0,0,0,null,null,null,null,null,null,null,null,null,null,null,null,null,null,null,null,null,null,null,null,null,null,null,null,null,null,null,null,null,null,null,null,null,null,{"$f":"Dataset[[#This Row],[2025/26 From - Spending review Topic 1]]+Dataset[[#This Row],[2025/26 From - Spending review Topic 2]]+Dataset[[#This Row],[2025/26 From - Spending review Topic 3]]+Dataset[[#This Row],[2025/26 From - Spending review Topic 4]]+Dataset[[#This Row],[2025/26 From - Other reallocations]]","v":0},{"$f":"Dataset[[#This Row],[2026/27 From - Spending review Topic 1]]+Dataset[[#This Row],[2026/27 From - Spending review Topic 2]]+Dataset[[#This Row],[2026/27 From - Spending review Topic 3]]+Dataset[[#This Row],[2026/27 From - Spending review Topic 4]]+Dataset[[#This Row],[2026/27 From - Other reallocations]]","v":0},{"$f":"Dataset[[#This Row],[2027/28 From - Spending review Topic 1]]+Dataset[[#This Row],[2027/28 From - Spending review Topic 2]]+Dataset[[#This Row],[2027/28 From - Spending review Topic 3]]+Dataset[[#This Row],[2027/28 From - Spending review Topic 4]]+Dataset[[#This Row],[2027/28 From - Other reallocations]]","v":0},{"$f":"Dataset[[#This Row],[2025/26 To - Spending review Topic 1]]+Dataset[[#This Row],[2025/26 To - Spending review Topic 2]]+Dataset[[#This Row],[2025/26 To - Spending review Topic 3]]+Dataset[[#This Row],[2025/26 To - Spending review Topic 4]]+Dataset[[#This Row],[2025/26 To - Other reallocations]]","v":0},{"$f":"Dataset[[#This Row],[2026/27 To - Spending review Topic 1]]+Dataset[[#This Row],[2026/27 To - Spending review Topic 2]]+Dataset[[#This Row],[2026/27 To - Spending review Topic 3]]+Dataset[[#This Row],[2026/27 To - Spending review Topic 4]]+Dataset[[#This Row],[2026/27 To - Other reallocations]]","v":0},{"$f":"Dataset[[#This Row],[2027/28 To - Spending review Topic 1]]+Dataset[[#This Row],[2027/28 To - Spending review Topic 2]]+Dataset[[#This Row],[2027/28 To - Spending review Topic 3]]+Dataset[[#This Row],[2027/28 To - Spending review Topic 4]]+Dataset[[#This Row],[2027/28 To - Other reallocations]]","v":0},{"$f":"Dataset[[#This Row],[2025/26 Reduction]]+Dataset[[#This Row],[2025/26 From - Total]]","v":0},{"$f":"Dataset[[#This Row],[2026/27 Reduction]]+Dataset[[#This Row],[2026/27 From - Total]]","v":0},{"$f":"Dataset[[#This Row],[2027/28 Reduction]]+Dataset[[#This Row],[2027/28 From - Total]]","v":0},{"$f":"Dataset[[#This Row],[2024/25 Reduction]]","v":0},{"$f":"SUM(Dataset[[#This Row],[2025/26 Reduction]],Dataset[[#This Row],[2025/26 From - Total]],Dataset[[#This Row],[2025/26 To - Total]])","v":0},{"$f":"SUM(Dataset[[#This Row],[2026/27 Reduction]],Dataset[[#This Row],[2026/27 From - Total]],Dataset[[#This Row],[2026/27 To - Total]])","v":0},{"$f":"SUM(Dataset[[#This Row],[2027/28 Reduction]],Dataset[[#This Row],[2027/28 From - Total]],Dataset[[#This Row],[2027/28 To - Total]])","v":0},{"$f":"Dataset[[#This Row],[2024/25 Baseline]]+Dataset[[#This Row],[2024/25 Total change]]","v":0},{"$f":"Dataset[[#This Row],[2025/26 Baseline]]+Dataset[[#This Row],[2025/26 Total change]]","v":0},{"$f":"Dataset[[#This Row],[2026/27 Baseline]]+Dataset[[#This Row],[2026/27 Total change]]","v":0},{"$f":"Dataset[[#This Row],[2027/28 Baseline]]+Dataset[[#This Row],[2027/28 Total change]]","v":0}]
["NAT|Non-transfer item","40|Medsas inventory interface","2025_26","MTEC2025",40,1,1,51301,29,"40","01","01","051301","000029","40|01|01|000029","01","01","02","29","29","01|01|02|29|29","National","Transport","Administration","Ministry","Non-transfer item","Current","Current payments","Goods and services","Medsas inventory interface","Medsas inventory interface","Economic development","Economic regulation and infrastructure","NAT",0,0,0,0,0,0,null,0,0,0,0,null,null,null,null,null,null,null,null,null,null,null,null,null,null,null,null,null,null,null,null,null,null,null,null,null,null,null,null,null,null,null,null,null,null,{"$f":"Dataset[[#This Row],[2025/26 From - Spending review Topic 1]]+Dataset[[#This Row],[2025/26 From - Spending review Topic 2]]+Dataset[[#This Row],[2025/26 From - Spending review Topic 3]]+Dataset[[#This Row],[2025/26 From - Spending review Topic 4]]+Dataset[[#This Row],[2025/26 From - Other reallocations]]","v":0},{"$f":"Dataset[[#This Row],[2026/27 From - Spending review Topic 1]]+Dataset[[#This Row],[2026/27 From - Spending review Topic 2]]+Dataset[[#This Row],[2026/27 From - Spending review Topic 3]]+Dataset[[#This Row],[2026/27 From - Spending review Topic 4]]+Dataset[[#This Row],[2026/27 From - Other reallocations]]","v":0},{"$f":"Dataset[[#This Row],[2027/28 From - Spending review Topic 1]]+Dataset[[#This Row],[2027/28 From - Spending review Topic 2]]+Dataset[[#This Row],[2027/28 From - Spending review Topic 3]]+Dataset[[#This Row],[2027/28 From - Spending review Topic 4]]+Dataset[[#This Row],[2027/28 From - Other reallocations]]","v":0},{"$f":"Dataset[[#This Row],[2025/26 To - Spending review Topic 1]]+Dataset[[#This Row],[2025/26 To - Spending review Topic 2]]+Dataset[[#This Row],[2025/26 To - Spending review Topic 3]]+Dataset[[#This Row],[2025/26 To - Spending review Topic 4]]+Dataset[[#This Row],[2025/26 To - Other reallocations]]","v":0},{"$f":"Dataset[[#This Row],[2026/27 To - Spending review Topic 1]]+Dataset[[#This Row],[2026/27 To - Spending review Topic 2]]+Dataset[[#This Row],[2026/27 To - Spending review Topic 3]]+Dataset[[#This Row],[2026/27 To - Spending review Topic 4]]+Dataset[[#This Row],[2026/27 To - Other reallocations]]","v":0},{"$f":"Dataset[[#This Row],[2027/28 To - Spending review Topic 1]]+Dataset[[#This Row],[2027/28 To - Spending review Topic 2]]+Dataset[[#This Row],[2027/28 To - Spending review Topic 3]]+Dataset[[#This Row],[2027/28 To - Spending review Topic 4]]+Dataset[[#This Row],[2027/28 To - Other reallocations]]","v":0},{"$f":"Dataset[[#This Row],[2025/26 Reduction]]+Dataset[[#This Row],[2025/26 From - Total]]","v":0},{"$f":"Dataset[[#This Row],[2026/27 Reduction]]+Dataset[[#This Row],[2026/27 From - Total]]","v":0},{"$f":"Dataset[[#This Row],[2027/28 Reduction]]+Dataset[[#This Row],[2027/28 From - Total]]","v":0},{"$f":"Dataset[[#This Row],[2024/25 Reduction]]","v":0},{"$f":"SUM(Dataset[[#This Row],[2025/26 Reduction]],Dataset[[#This Row],[2025/26 From - Total]],Dataset[[#This Row],[2025/26 To - Total]])","v":0},{"$f":"SUM(Dataset[[#This Row],[2026/27 Reduction]],Dataset[[#This Row],[2026/27 From - Total]],Dataset[[#This Row],[2026/27 To - Total]])","v":0},{"$f":"SUM(Dataset[[#This Row],[2027/28 Reduction]],Dataset[[#This Row],[2027/28 From - Total]],Dataset[[#This Row],[2027/28 To - Total]])","v":0},{"$f":"Dataset[[#This Row],[2024/25 Baseline]]+Dataset[[#This Row],[2024/25 Total change]]","v":0},{"$f":"Dataset[[#This Row],[2025/26 Baseline]]+Dataset[[#This Row],[2025/26 Total change]]","v":0},{"$f":"Dataset[[#This Row],[2026/27 Baseline]]+Dataset[[#This Row],[2026/27 Total change]]","v":0},{"$f":"Dataset[[#This Row],[2027/28 Baseline]]+Dataset[[#This Row],[2027/28 Total change]]","v":0}]
["NAT|Non-transfer item","40|Inventory: Other supplies","2025_26","MTEC2025",40,1,1,51302,30,"40","01","01","051302","000030","40|01|01|000030","01","01","02","30","30","01|01|02|30|30","National","Transport","Administration","Ministry","Non-transfer item","Current","Current payments","Goods and services","Inventory: Other supplies","Inventory: Other supplies","Economic development","Economic regulation and infrastructure","NAT",0,0,0,0,0,0,null,0,0,0,0,null,null,null,null,null,null,null,null,null,null,null,null,null,null,null,null,null,null,null,null,null,null,null,null,null,null,null,null,null,null,null,null,null,null,{"$f":"Dataset[[#This Row],[2025/26 From - Spending review Topic 1]]+Dataset[[#This Row],[2025/26 From - Spending review Topic 2]]+Dataset[[#This Row],[2025/26 From - Spending review Topic 3]]+Dataset[[#This Row],[2025/26 From - Spending review Topic 4]]+Dataset[[#This Row],[2025/26 From - Other reallocations]]","v":0},{"$f":"Dataset[[#This Row],[2026/27 From - Spending review Topic 1]]+Dataset[[#This Row],[2026/27 From - Spending review Topic 2]]+Dataset[[#This Row],[2026/27 From - Spending review Topic 3]]+Dataset[[#This Row],[2026/27 From - Spending review Topic 4]]+Dataset[[#This Row],[2026/27 From - Other reallocations]]","v":0},{"$f":"Dataset[[#This Row],[2027/28 From - Spending review Topic 1]]+Dataset[[#This Row],[2027/28 From - Spending review Topic 2]]+Dataset[[#This Row],[2027/28 From - Spending review Topic 3]]+Dataset[[#This Row],[2027/28 From - Spending review Topic 4]]+Dataset[[#This Row],[2027/28 From - Other reallocations]]","v":0},{"$f":"Dataset[[#This Row],[2025/26 To - Spending review Topic 1]]+Dataset[[#This Row],[2025/26 To - Spending review Topic 2]]+Dataset[[#This Row],[2025/26 To - Spending review Topic 3]]+Dataset[[#This Row],[2025/26 To - Spending review Topic 4]]+Dataset[[#This Row],[2025/26 To - Other reallocations]]","v":0},{"$f":"Dataset[[#This Row],[2026/27 To - Spending review Topic 1]]+Dataset[[#This Row],[2026/27 To - Spending review Topic 2]]+Dataset[[#This Row],[2026/27 To - Spending review Topic 3]]+Dataset[[#This Row],[2026/27 To - Spending review Topic 4]]+Dataset[[#This Row],[2026/27 To - Other reallocations]]","v":0},{"$f":"Dataset[[#This Row],[2027/28 To - Spending review Topic 1]]+Dataset[[#This Row],[2027/28 To - Spending review Topic 2]]+Dataset[[#This Row],[2027/28 To - Spending review Topic 3]]+Dataset[[#This Row],[2027/28 To - Spending review Topic 4]]+Dataset[[#This Row],[2027/28 To - Other reallocations]]","v":0},{"$f":"Dataset[[#This Row],[2025/26 Reduction]]+Dataset[[#This Row],[2025/26 From - Total]]","v":0},{"$f":"Dataset[[#This Row],[2026/27 Reduction]]+Dataset[[#This Row],[2026/27 From - Total]]","v":0},{"$f":"Dataset[[#This Row],[2027/28 Reduction]]+Dataset[[#This Row],[2027/28 From - Total]]","v":0},{"$f":"Dataset[[#This Row],[2024/25 Reduction]]","v":0},{"$f":"SUM(Dataset[[#This Row],[2025/26 Reduction]],Dataset[[#This Row],[2025/26 From - Total]],Dataset[[#This Row],[2025/26 To - Total]])","v":0},{"$f":"SUM(Dataset[[#This Row],[2026/27 Reduction]],Dataset[[#This Row],[2026/27 From - Total]],Dataset[[#This Row],[2026/27 To - Total]])","v":0},{"$f":"SUM(Dataset[[#This Row],[2027/28 Reduction]],Dataset[[#This Row],[2027/28 From - Total]],Dataset[[#This Row],[2027/28 To - Total]])","v":0},{"$f":"Dataset[[#This Row],[2024/25 Baseline]]+Dataset[[#This Row],[2024/25 Total change]]","v":0},{"$f":"Dataset[[#This Row],[2025/26 Baseline]]+Dataset[[#This Row],[2025/26 Total change]]","v":0},{"$f":"Dataset[[#This Row],[2026/27 Baseline]]+Dataset[[#This Row],[2026/27 Total change]]","v":0},{"$f":"Dataset[[#This Row],[2027/28 Baseline]]+Dataset[[#This Row],[2027/28 Total change]]","v":0}]
["NAT|Non-transfer item","40|Consumable supplies","2025_26","MTEC2025",40,1,1,51303,31,"40","01","01","051303","000031","40|01|01|000031","01","01","02","31","31","01|01|02|31|31","National","Transport","Administration","Ministry","Non-transfer item","Current","Current payments","Goods and services","Consumable supplies","Consumable supplies","Economic development","Economic regulation and infrastructure","NAT",317,107,17,60,60,60,213,60,63,66,69,null,null,null,null,null,null,null,null,null,null,null,null,null,null,null,null,null,null,null,null,null,null,null,null,null,null,null,null,null,null,null,null,null,null,{"$f":"Dataset[[#This Row],[2025/26 From - Spending review Topic 1]]+Dataset[[#This Row],[2025/26 From - Spending review Topic 2]]+Dataset[[#This Row],[2025/26 From - Spending review Topic 3]]+Dataset[[#This Row],[2025/26 From - Spending review Topic 4]]+Dataset[[#This Row],[2025/26 From - Other reallocations]]","v":0},{"$f":"Dataset[[#This Row],[2026/27 From - Spending review Topic 1]]+Dataset[[#This Row],[2026/27 From - Spending review Topic 2]]+Dataset[[#This Row],[2026/27 From - Spending review Topic 3]]+Dataset[[#This Row],[2026/27 From - Spending review Topic 4]]+Dataset[[#This Row],[2026/27 From - Other reallocations]]","v":0},{"$f":"Dataset[[#This Row],[2027/28 From - Spending review Topic 1]]+Dataset[[#This Row],[2027/28 From - Spending review Topic 2]]+Dataset[[#This Row],[2027/28 From - Spending review Topic 3]]+Dataset[[#This Row],[2027/28 From - Spending review Topic 4]]+Dataset[[#This Row],[2027/28 From - Other reallocations]]","v":0},{"$f":"Dataset[[#This Row],[2025/26 To - Spending review Topic 1]]+Dataset[[#This Row],[2025/26 To - Spending review Topic 2]]+Dataset[[#This Row],[2025/26 To - Spending review Topic 3]]+Dataset[[#This Row],[2025/26 To - Spending review Topic 4]]+Dataset[[#This Row],[2025/26 To - Other reallocations]]","v":0},{"$f":"Dataset[[#This Row],[2026/27 To - Spending review Topic 1]]+Dataset[[#This Row],[2026/27 To - Spending review Topic 2]]+Dataset[[#This Row],[2026/27 To - Spending review Topic 3]]+Dataset[[#This Row],[2026/27 To - Spending review Topic 4]]+Dataset[[#This Row],[2026/27 To - Other reallocations]]","v":0},{"$f":"Dataset[[#This Row],[2027/28 To - Spending review Topic 1]]+Dataset[[#This Row],[2027/28 To - Spending review Topic 2]]+Dataset[[#This Row],[2027/28 To - Spending review Topic 3]]+Dataset[[#This Row],[2027/28 To - Spending review Topic 4]]+Dataset[[#This Row],[2027/28 To - Other reallocations]]","v":0},{"$f":"Dataset[[#This Row],[2025/26 Reduction]]+Dataset[[#This Row],[2025/26 From - Total]]","v":0},{"$f":"Dataset[[#This Row],[2026/27 Reduction]]+Dataset[[#This Row],[2026/27 From - Total]]","v":0},{"$f":"Dataset[[#This Row],[2027/28 Reduction]]+Dataset[[#This Row],[2027/28 From - Total]]","v":0},{"$f":"Dataset[[#This Row],[2024/25 Reduction]]","v":0},{"$f":"SUM(Dataset[[#This Row],[2025/26 Reduction]],Dataset[[#This Row],[2025/26 From - Total]],Dataset[[#This Row],[2025/26 To - Total]])","v":0},{"$f":"SUM(Dataset[[#This Row],[2026/27 Reduction]],Dataset[[#This Row],[2026/27 From - Total]],Dataset[[#This Row],[2026/27 To - Total]])","v":0},{"$f":"SUM(Dataset[[#This Row],[2027/28 Reduction]],Dataset[[#This Row],[2027/28 From - Total]],Dataset[[#This Row],[2027/28 To - Total]])","v":0},{"$f":"Dataset[[#This Row],[2024/25 Baseline]]+Dataset[[#This Row],[2024/25 Total change]]","v":60},{"$f":"Dataset[[#This Row],[2025/26 Baseline]]+Dataset[[#This Row],[2025/26 Total change]]","v":63},{"$f":"Dataset[[#This Row],[2026/27 Baseline]]+Dataset[[#This Row],[2026/27 Total change]]","v":66},{"$f":"Dataset[[#This Row],[2027/28 Baseline]]+Dataset[[#This Row],[2027/28 Total change]]","v":69}]
["NAT|Non-transfer item","40|Consumables: Stationery, printing and office supplies","2025_26","MTEC2025",40,1,1,51304,32,"40","01","01","051304","000032","40|01|01|000032","01","01","02","32","32","01|01|02|32|32","National","Transport","Administration","Ministry","Non-transfer item","Current","Current payments","Goods and services","Consumables: Stationery, printing and office supplies","Consumables: Stationery, printing and office supplies","Economic development","Economic regulation and infrastructure","NAT",231,225,151,380,380,380,312,380,399,418,437,null,null,null,null,null,null,null,null,null,null,null,null,null,null,null,null,null,null,null,null,null,null,null,null,null,null,null,null,null,null,null,null,null,null,{"$f":"Dataset[[#This Row],[2025/26 From - Spending review Topic 1]]+Dataset[[#This Row],[2025/26 From - Spending review Topic 2]]+Dataset[[#This Row],[2025/26 From - Spending review Topic 3]]+Dataset[[#This Row],[2025/26 From - Spending review Topic 4]]+Dataset[[#This Row],[2025/26 From - Other reallocations]]","v":0},{"$f":"Dataset[[#This Row],[2026/27 From - Spending review Topic 1]]+Dataset[[#This Row],[2026/27 From - Spending review Topic 2]]+Dataset[[#This Row],[2026/27 From - Spending review Topic 3]]+Dataset[[#This Row],[2026/27 From - Spending review Topic 4]]+Dataset[[#This Row],[2026/27 From - Other reallocations]]","v":0},{"$f":"Dataset[[#This Row],[2027/28 From - Spending review Topic 1]]+Dataset[[#This Row],[2027/28 From - Spending review Topic 2]]+Dataset[[#This Row],[2027/28 From - Spending review Topic 3]]+Dataset[[#This Row],[2027/28 From - Spending review Topic 4]]+Dataset[[#This Row],[2027/28 From - Other reallocations]]","v":0},{"$f":"Dataset[[#This Row],[2025/26 To - Spending review Topic 1]]+Dataset[[#This Row],[2025/26 To - Spending review Topic 2]]+Dataset[[#This Row],[2025/26 To - Spending review Topic 3]]+Dataset[[#This Row],[2025/26 To - Spending review Topic 4]]+Dataset[[#This Row],[2025/26 To - Other reallocations]]","v":0},{"$f":"Dataset[[#This Row],[2026/27 To - Spending review Topic 1]]+Dataset[[#This Row],[2026/27 To - Spending review Topic 2]]+Dataset[[#This Row],[2026/27 To - Spending review Topic 3]]+Dataset[[#This Row],[2026/27 To - Spending review Topic 4]]+Dataset[[#This Row],[2026/27 To - Other reallocations]]","v":0},{"$f":"Dataset[[#This Row],[2027/28 To - Spending review Topic 1]]+Dataset[[#This Row],[2027/28 To - Spending review Topic 2]]+Dataset[[#This Row],[2027/28 To - Spending review Topic 3]]+Dataset[[#This Row],[2027/28 To - Spending review Topic 4]]+Dataset[[#This Row],[2027/28 To - Other reallocations]]","v":0},{"$f":"Dataset[[#This Row],[2025/26 Reduction]]+Dataset[[#This Row],[2025/26 From - Total]]","v":0},{"$f":"Dataset[[#This Row],[2026/27 Reduction]]+Dataset[[#This Row],[2026/27 From - Total]]","v":0},{"$f":"Dataset[[#This Row],[2027/28 Reduction]]+Dataset[[#This Row],[2027/28 From - Total]]","v":0},{"$f":"Dataset[[#This Row],[2024/25 Reduction]]","v":0},{"$f":"SUM(Dataset[[#This Row],[2025/26 Reduction]],Dataset[[#This Row],[2025/26 From - Total]],Dataset[[#This Row],[2025/26 To - Total]])","v":0},{"$f":"SUM(Dataset[[#This Row],[2026/27 Reduction]],Dataset[[#This Row],[2026/27 From - Total]],Dataset[[#This Row],[2026/27 To - Total]])","v":0},{"$f":"SUM(Dataset[[#This Row],[2027/28 Reduction]],Dataset[[#This Row],[2027/28 From - Total]],Dataset[[#This Row],[2027/28 To - Total]])","v":0},{"$f":"Dataset[[#This Row],[2024/25 Baseline]]+Dataset[[#This Row],[2024/25 Total change]]","v":380},{"$f":"Dataset[[#This Row],[2025/26 Baseline]]+Dataset[[#This Row],[2025/26 Total change]]","v":399},{"$f":"Dataset[[#This Row],[2026/27 Baseline]]+Dataset[[#This Row],[2026/27 Total change]]","v":418},{"$f":"Dataset[[#This Row],[2027/28 Baseline]]+Dataset[[#This Row],[2027/28 Total change]]","v":437}]
["NAT|Non-transfer item","40|Operating leases","2025_26","MTEC2025",40,1,1,51305,33,"40","01","01","051305","000033","40|01|01|000033","01","01","02","33","33","01|01|02|33|33","National","Transport","Administration","Ministry","Non-transfer item","Current","Current payments","Goods and services","Operating leases","Operating leases","Economic development","Economic regulation and infrastructure","NAT",0,0,0,0,0,0,null,0,0,0,0,null,null,null,null,null,null,null,null,null,null,null,null,null,null,null,null,null,null,null,null,null,null,null,null,null,null,null,null,null,null,null,null,null,null,{"$f":"Dataset[[#This Row],[2025/26 From - Spending review Topic 1]]+Dataset[[#This Row],[2025/26 From - Spending review Topic 2]]+Dataset[[#This Row],[2025/26 From - Spending review Topic 3]]+Dataset[[#This Row],[2025/26 From - Spending review Topic 4]]+Dataset[[#This Row],[2025/26 From - Other reallocations]]","v":0},{"$f":"Dataset[[#This Row],[2026/27 From - Spending review Topic 1]]+Dataset[[#This Row],[2026/27 From - Spending review Topic 2]]+Dataset[[#This Row],[2026/27 From - Spending review Topic 3]]+Dataset[[#This Row],[2026/27 From - Spending review Topic 4]]+Dataset[[#This Row],[2026/27 From - Other reallocations]]","v":0},{"$f":"Dataset[[#This Row],[2027/28 From - Spending review Topic 1]]+Dataset[[#This Row],[2027/28 From - Spending review Topic 2]]+Dataset[[#This Row],[2027/28 From - Spending review Topic 3]]+Dataset[[#This Row],[2027/28 From - Spending review Topic 4]]+Dataset[[#This Row],[2027/28 From - Other reallocations]]","v":0},{"$f":"Dataset[[#This Row],[2025/26 To - Spending review Topic 1]]+Dataset[[#This Row],[2025/26 To - Spending review Topic 2]]+Dataset[[#This Row],[2025/26 To - Spending review Topic 3]]+Dataset[[#This Row],[2025/26 To - Spending review Topic 4]]+Dataset[[#This Row],[2025/26 To - Other reallocations]]","v":0},{"$f":"Dataset[[#This Row],[2026/27 To - Spending review Topic 1]]+Dataset[[#This Row],[2026/27 To - Spending review Topic 2]]+Dataset[[#This Row],[2026/27 To - Spending review Topic 3]]+Dataset[[#This Row],[2026/27 To - Spending review Topic 4]]+Dataset[[#This Row],[2026/27 To - Other reallocations]]","v":0},{"$f":"Dataset[[#This Row],[2027/28 To - Spending review Topic 1]]+Dataset[[#This Row],[2027/28 To - Spending review Topic 2]]+Dataset[[#This Row],[2027/28 To - Spending review Topic 3]]+Dataset[[#This Row],[2027/28 To - Spending review Topic 4]]+Dataset[[#This Row],[2027/28 To - Other reallocations]]","v":0},{"$f":"Dataset[[#This Row],[2025/26 Reduction]]+Dataset[[#This Row],[2025/26 From - Total]]","v":0},{"$f":"Dataset[[#This Row],[2026/27 Reduction]]+Dataset[[#This Row],[2026/27 From - Total]]","v":0},{"$f":"Dataset[[#This Row],[2027/28 Reduction]]+Dataset[[#This Row],[2027/28 From - Total]]","v":0},{"$f":"Dataset[[#This Row],[2024/25 Reduction]]","v":0},{"$f":"SUM(Dataset[[#This Row],[2025/26 Reduction]],Dataset[[#This Row],[2025/26 From - Total]],Dataset[[#This Row],[2025/26 To - Total]])","v":0},{"$f":"SUM(Dataset[[#This Row],[2026/27 Reduction]],Dataset[[#This Row],[2026/27 From - Total]],Dataset[[#This Row],[2026/27 To - Total]])","v":0},{"$f":"SUM(Dataset[[#This Row],[2027/28 Reduction]],Dataset[[#This Row],[2027/28 From - Total]],Dataset[[#This Row],[2027/28 To - Total]])","v":0},{"$f":"Dataset[[#This Row],[2024/25 Baseline]]+Dataset[[#This Row],[2024/25 Total change]]","v":0},{"$f":"Dataset[[#This Row],[2025/26 Baseline]]+Dataset[[#This Row],[2025/26 Total change]]","v":0},{"$f":"Dataset[[#This Row],[2026/27 Baseline]]+Dataset[[#This Row],[2026/27 Total change]]","v":0},{"$f":"Dataset[[#This Row],[2027/28 Baseline]]+Dataset[[#This Row],[2027/28 Total change]]","v":0}]
["NAT|Non-transfer item","40|Rental and hiring","2025_26","MTEC2025",40,1,1,51306,34,"40","01","01","051306","000034","40|01|01|000034","01","01","02","34","34","01|01|02|34|34","National","Transport","Administration","Ministry","Non-transfer item","Current","Current payments","Goods and services","Rental and hiring","Rental and hiring","Economic development","Economic regulation and infrastructure","NAT",0,0,0,0,0,0,null,0,0,0,0,null,null,null,null,null,null,null,null,null,null,null,null,null,null,null,null,null,null,null,null,null,null,null,null,null,null,null,null,null,null,null,null,null,null,{"$f":"Dataset[[#This Row],[2025/26 From - Spending review Topic 1]]+Dataset[[#This Row],[2025/26 From - Spending review Topic 2]]+Dataset[[#This Row],[2025/26 From - Spending review Topic 3]]+Dataset[[#This Row],[2025/26 From - Spending review Topic 4]]+Dataset[[#This Row],[2025/26 From - Other reallocations]]","v":0},{"$f":"Dataset[[#This Row],[2026/27 From - Spending review Topic 1]]+Dataset[[#This Row],[2026/27 From - Spending review Topic 2]]+Dataset[[#This Row],[2026/27 From - Spending review Topic 3]]+Dataset[[#This Row],[2026/27 From - Spending review Topic 4]]+Dataset[[#This Row],[2026/27 From - Other reallocations]]","v":0},{"$f":"Dataset[[#This Row],[2027/28 From - Spending review Topic 1]]+Dataset[[#This Row],[2027/28 From - Spending review Topic 2]]+Dataset[[#This Row],[2027/28 From - Spending review Topic 3]]+Dataset[[#This Row],[2027/28 From - Spending review Topic 4]]+Dataset[[#This Row],[2027/28 From - Other reallocations]]","v":0},{"$f":"Dataset[[#This Row],[2025/26 To - Spending review Topic 1]]+Dataset[[#This Row],[2025/26 To - Spending review Topic 2]]+Dataset[[#This Row],[2025/26 To - Spending review Topic 3]]+Dataset[[#This Row],[2025/26 To - Spending review Topic 4]]+Dataset[[#This Row],[2025/26 To - Other reallocations]]","v":0},{"$f":"Dataset[[#This Row],[2026/27 To - Spending review Topic 1]]+Dataset[[#This Row],[2026/27 To - Spending review Topic 2]]+Dataset[[#This Row],[2026/27 To - Spending review Topic 3]]+Dataset[[#This Row],[2026/27 To - Spending review Topic 4]]+Dataset[[#This Row],[2026/27 To - Other reallocations]]","v":0},{"$f":"Dataset[[#This Row],[2027/28 To - Spending review Topic 1]]+Dataset[[#This Row],[2027/28 To - Spending review Topic 2]]+Dataset[[#This Row],[2027/28 To - Spending review Topic 3]]+Dataset[[#This Row],[2027/28 To - Spending review Topic 4]]+Dataset[[#This Row],[2027/28 To - Other reallocations]]","v":0},{"$f":"Dataset[[#This Row],[2025/26 Reduction]]+Dataset[[#This Row],[2025/26 From - Total]]","v":0},{"$f":"Dataset[[#This Row],[2026/27 Reduction]]+Dataset[[#This Row],[2026/27 From - Total]]","v":0},{"$f":"Dataset[[#This Row],[2027/28 Reduction]]+Dataset[[#This Row],[2027/28 From - Total]]","v":0},{"$f":"Dataset[[#This Row],[2024/25 Reduction]]","v":0},{"$f":"SUM(Dataset[[#This Row],[2025/26 Reduction]],Dataset[[#This Row],[2025/26 From - Total]],Dataset[[#This Row],[2025/26 To - Total]])","v":0},{"$f":"SUM(Dataset[[#This Row],[2026/27 Reduction]],Dataset[[#This Row],[2026/27 From - Total]],Dataset[[#This Row],[2026/27 To - Total]])","v":0},{"$f":"SUM(Dataset[[#This Row],[2027/28 Reduction]],Dataset[[#This Row],[2027/28 From - Total]],Dataset[[#This Row],[2027/28 To - Total]])","v":0},{"$f":"Dataset[[#This Row],[2024/25 Baseline]]+Dataset[[#This Row],[2024/25 Total change]]","v":0},{"$f":"Dataset[[#This Row],[2025/26 Baseline]]+Dataset[[#This Row],[2025/26 Total change]]","v":0},{"$f":"Dataset[[#This Row],[2026/27 Baseline]]+Dataset[[#This Row],[2026/27 Total change]]","v":0},{"$f":"Dataset[[#This Row],[2027/28 Baseline]]+Dataset[[#This Row],[2027/28 Total change]]","v":0}]
["NAT|Non-transfer item","40|Property payments","2025_26","MTEC2025",40,1,1,51307,35,"40","01","01","051307","000035","40|01|01|000035","01","01","02","35","35","01|01|02|35|35","National","Transport","Administration","Ministry","Non-transfer item","Current","Current payments","Goods and services","Property payments","Property payments","Economic development","Economic regulation and infrastructure","NAT",0,0,0,0,0,0,247,0,0,0,0,null,null,null,null,null,null,null,null,null,null,null,null,null,null,null,null,null,null,null,null,null,null,null,null,null,null,null,null,null,null,null,null,null,null,{"$f":"Dataset[[#This Row],[2025/26 From - Spending review Topic 1]]+Dataset[[#This Row],[2025/26 From - Spending review Topic 2]]+Dataset[[#This Row],[2025/26 From - Spending review Topic 3]]+Dataset[[#This Row],[2025/26 From - Spending review Topic 4]]+Dataset[[#This Row],[2025/26 From - Other reallocations]]","v":0},{"$f":"Dataset[[#This Row],[2026/27 From - Spending review Topic 1]]+Dataset[[#This Row],[2026/27 From - Spending review Topic 2]]+Dataset[[#This Row],[2026/27 From - Spending review Topic 3]]+Dataset[[#This Row],[2026/27 From - Spending review Topic 4]]+Dataset[[#This Row],[2026/27 From - Other reallocations]]","v":0},{"$f":"Dataset[[#This Row],[2027/28 From - Spending review Topic 1]]+Dataset[[#This Row],[2027/28 From - Spending review Topic 2]]+Dataset[[#This Row],[2027/28 From - Spending review Topic 3]]+Dataset[[#This Row],[2027/28 From - Spending review Topic 4]]+Dataset[[#This Row],[2027/28 From - Other reallocations]]","v":0},{"$f":"Dataset[[#This Row],[2025/26 To - Spending review Topic 1]]+Dataset[[#This Row],[2025/26 To - Spending review Topic 2]]+Dataset[[#This Row],[2025/26 To - Spending review Topic 3]]+Dataset[[#This Row],[2025/26 To - Spending review Topic 4]]+Dataset[[#This Row],[2025/26 To - Other reallocations]]","v":0},{"$f":"Dataset[[#This Row],[2026/27 To - Spending review Topic 1]]+Dataset[[#This Row],[2026/27 To - Spending review Topic 2]]+Dataset[[#This Row],[2026/27 To - Spending review Topic 3]]+Dataset[[#This Row],[2026/27 To - Spending review Topic 4]]+Dataset[[#This Row],[2026/27 To - Other reallocations]]","v":0},{"$f":"Dataset[[#This Row],[2027/28 To - Spending review Topic 1]]+Dataset[[#This Row],[2027/28 To - Spending review Topic 2]]+Dataset[[#This Row],[2027/28 To - Spending review Topic 3]]+Dataset[[#This Row],[2027/28 To - Spending review Topic 4]]+Dataset[[#This Row],[2027/28 To - Other reallocations]]","v":0},{"$f":"Dataset[[#This Row],[2025/26 Reduction]]+Dataset[[#This Row],[2025/26 From - Total]]","v":0},{"$f":"Dataset[[#This Row],[2026/27 Reduction]]+Dataset[[#This Row],[2026/27 From - Total]]","v":0},{"$f":"Dataset[[#This Row],[2027/28 Reduction]]+Dataset[[#This Row],[2027/28 From - Total]]","v":0},{"$f":"Dataset[[#This Row],[2024/25 Reduction]]","v":0},{"$f":"SUM(Dataset[[#This Row],[2025/26 Reduction]],Dataset[[#This Row],[2025/26 From - Total]],Dataset[[#This Row],[2025/26 To - Total]])","v":0},{"$f":"SUM(Dataset[[#This Row],[2026/27 Reduction]],Dataset[[#This Row],[2026/27 From - Total]],Dataset[[#This Row],[2026/27 To - Total]])","v":0},{"$f":"SUM(Dataset[[#This Row],[2027/28 Reduction]],Dataset[[#This Row],[2027/28 From - Total]],Dataset[[#This Row],[2027/28 To - Total]])","v":0},{"$f":"Dataset[[#This Row],[2024/25 Baseline]]+Dataset[[#This Row],[2024/25 Total change]]","v":0},{"$f":"Dataset[[#This Row],[2025/26 Baseline]]+Dataset[[#This Row],[2025/26 Total change]]","v":0},{"$f":"Dataset[[#This Row],[2026/27 Baseline]]+Dataset[[#This Row],[2026/27 Total change]]","v":0},{"$f":"Dataset[[#This Row],[2027/28 Baseline]]+Dataset[[#This Row],[2027/28 Total change]]","v":0}]
["NAT|Non-transfer item","40|Transport provided: Departmental activity","2025_26","MTEC2025",40,1,1,51308,36,"40","01","01","051308","000036","40|01|01|000036","01","01","02","36","36","01|01|02|36|36","National","Transport","Administration","Ministry","Non-transfer item","Current","Current payments","Goods and services","Transport provided: Departmental activity","Transport provided: Departmental activity","Economic development","Economic regulation and infrastructure","NAT",0,0,0,0,0,0,null,0,0,0,0,null,null,null,null,null,null,null,null,null,null,null,null,null,null,null,null,null,null,null,null,null,null,null,null,null,null,null,null,null,null,null,null,null,null,{"$f":"Dataset[[#This Row],[2025/26 From - Spending review Topic 1]]+Dataset[[#This Row],[2025/26 From - Spending review Topic 2]]+Dataset[[#This Row],[2025/26 From - Spending review Topic 3]]+Dataset[[#This Row],[2025/26 From - Spending review Topic 4]]+Dataset[[#This Row],[2025/26 From - Other reallocations]]","v":0},{"$f":"Dataset[[#This Row],[2026/27 From - Spending review Topic 1]]+Dataset[[#This Row],[2026/27 From - Spending review Topic 2]]+Dataset[[#This Row],[2026/27 From - Spending review Topic 3]]+Dataset[[#This Row],[2026/27 From - Spending review Topic 4]]+Dataset[[#This Row],[2026/27 From - Other reallocations]]","v":0},{"$f":"Dataset[[#This Row],[2027/28 From - Spending review Topic 1]]+Dataset[[#This Row],[2027/28 From - Spending review Topic 2]]+Dataset[[#This Row],[2027/28 From - Spending review Topic 3]]+Dataset[[#This Row],[2027/28 From - Spending review Topic 4]]+Dataset[[#This Row],[2027/28 From - Other reallocations]]","v":0},{"$f":"Dataset[[#This Row],[2025/26 To - Spending review Topic 1]]+Dataset[[#This Row],[2025/26 To - Spending review Topic 2]]+Dataset[[#This Row],[2025/26 To - Spending review Topic 3]]+Dataset[[#This Row],[2025/26 To - Spending review Topic 4]]+Dataset[[#This Row],[2025/26 To - Other reallocations]]","v":0},{"$f":"Dataset[[#This Row],[2026/27 To - Spending review Topic 1]]+Dataset[[#This Row],[2026/27 To - Spending review Topic 2]]+Dataset[[#This Row],[2026/27 To - Spending review Topic 3]]+Dataset[[#This Row],[2026/27 To - Spending review Topic 4]]+Dataset[[#This Row],[2026/27 To - Other reallocations]]","v":0},{"$f":"Dataset[[#This Row],[2027/28 To - Spending review Topic 1]]+Dataset[[#This Row],[2027/28 To - Spending review Topic 2]]+Dataset[[#This Row],[2027/28 To - Spending review Topic 3]]+Dataset[[#This Row],[2027/28 To - Spending review Topic 4]]+Dataset[[#This Row],[2027/28 To - Other reallocations]]","v":0},{"$f":"Dataset[[#This Row],[2025/26 Reduction]]+Dataset[[#This Row],[2025/26 From - Total]]","v":0},{"$f":"Dataset[[#This Row],[2026/27 Reduction]]+Dataset[[#This Row],[2026/27 From - Total]]","v":0},{"$f":"Dataset[[#This Row],[2027/28 Reduction]]+Dataset[[#This Row],[2027/28 From - Total]]","v":0},{"$f":"Dataset[[#This Row],[2024/25 Reduction]]","v":0},{"$f":"SUM(Dataset[[#This Row],[2025/26 Reduction]],Dataset[[#This Row],[2025/26 From - Total]],Dataset[[#This Row],[2025/26 To - Total]])","v":0},{"$f":"SUM(Dataset[[#This Row],[2026/27 Reduction]],Dataset[[#This Row],[2026/27 From - Total]],Dataset[[#This Row],[2026/27 To - Total]])","v":0},{"$f":"SUM(Dataset[[#This Row],[2027/28 Reduction]],Dataset[[#This Row],[2027/28 From - Total]],Dataset[[#This Row],[2027/28 To - Total]])","v":0},{"$f":"Dataset[[#This Row],[2024/25 Baseline]]+Dataset[[#This Row],[2024/25 Total change]]","v":0},{"$f":"Dataset[[#This Row],[2025/26 Baseline]]+Dataset[[#This Row],[2025/26 Total change]]","v":0},{"$f":"Dataset[[#This Row],[2026/27 Baseline]]+Dataset[[#This Row],[2026/27 Total change]]","v":0},{"$f":"Dataset[[#This Row],[2027/28 Baseline]]+Dataset[[#This Row],[2027/28 Total change]]","v":0}]
["NAT|Non-transfer item","40|Travel and subsistence","2025_26","MTEC2025",40,1,1,51309,37,"40","01","01","051309","000037","40|01|01|000037","01","01","02","37","37","01|01|02|37|37","National","Transport","Administration","Ministry","Non-transfer item","Current","Current payments","Goods and services","Travel and subsistence","Travel and subsistence","Economic development","Economic regulation and infrastructure","NAT",4742,9766,13881,17103,17103,17103,24743,18103,19028,19901,20801,null,null,null,null,null,null,null,null,null,null,null,null,null,null,null,null,null,null,null,null,null,null,null,null,null,null,null,null,null,null,null,null,null,null,{"$f":"Dataset[[#This Row],[2025/26 From - Spending review Topic 1]]+Dataset[[#This Row],[2025/26 From - Spending review Topic 2]]+Dataset[[#This Row],[2025/26 From - Spending review Topic 3]]+Dataset[[#This Row],[2025/26 From - Spending review Topic 4]]+Dataset[[#This Row],[2025/26 From - Other reallocations]]","v":0},{"$f":"Dataset[[#This Row],[2026/27 From - Spending review Topic 1]]+Dataset[[#This Row],[2026/27 From - Spending review Topic 2]]+Dataset[[#This Row],[2026/27 From - Spending review Topic 3]]+Dataset[[#This Row],[2026/27 From - Spending review Topic 4]]+Dataset[[#This Row],[2026/27 From - Other reallocations]]","v":0},{"$f":"Dataset[[#This Row],[2027/28 From - Spending review Topic 1]]+Dataset[[#This Row],[2027/28 From - Spending review Topic 2]]+Dataset[[#This Row],[2027/28 From - Spending review Topic 3]]+Dataset[[#This Row],[2027/28 From - Spending review Topic 4]]+Dataset[[#This Row],[2027/28 From - Other reallocations]]","v":0},{"$f":"Dataset[[#This Row],[2025/26 To - Spending review Topic 1]]+Dataset[[#This Row],[2025/26 To - Spending review Topic 2]]+Dataset[[#This Row],[2025/26 To - Spending review Topic 3]]+Dataset[[#This Row],[2025/26 To - Spending review Topic 4]]+Dataset[[#This Row],[2025/26 To - Other reallocations]]","v":0},{"$f":"Dataset[[#This Row],[2026/27 To - Spending review Topic 1]]+Dataset[[#This Row],[2026/27 To - Spending review Topic 2]]+Dataset[[#This Row],[2026/27 To - Spending review Topic 3]]+Dataset[[#This Row],[2026/27 To - Spending review Topic 4]]+Dataset[[#This Row],[2026/27 To - Other reallocations]]","v":0},{"$f":"Dataset[[#This Row],[2027/28 To - Spending review Topic 1]]+Dataset[[#This Row],[2027/28 To - Spending review Topic 2]]+Dataset[[#This Row],[2027/28 To - Spending review Topic 3]]+Dataset[[#This Row],[2027/28 To - Spending review Topic 4]]+Dataset[[#This Row],[2027/28 To - Other reallocations]]","v":0},{"$f":"Dataset[[#This Row],[2025/26 Reduction]]+Dataset[[#This Row],[2025/26 From - Total]]","v":0},{"$f":"Dataset[[#This Row],[2026/27 Reduction]]+Dataset[[#This Row],[2026/27 From - Total]]","v":0},{"$f":"Dataset[[#This Row],[2027/28 Reduction]]+Dataset[[#This Row],[2027/28 From - Total]]","v":0},{"$f":"Dataset[[#This Row],[2024/25 Reduction]]","v":0},{"$f":"SUM(Dataset[[#This Row],[2025/26 Reduction]],Dataset[[#This Row],[2025/26 From - Total]],Dataset[[#This Row],[2025/26 To - Total]])","v":0},{"$f":"SUM(Dataset[[#This Row],[2026/27 Reduction]],Dataset[[#This Row],[2026/27 From - Total]],Dataset[[#This Row],[2026/27 To - Total]])","v":0},{"$f":"SUM(Dataset[[#This Row],[2027/28 Reduction]],Dataset[[#This Row],[2027/28 From - Total]],Dataset[[#This Row],[2027/28 To - Total]])","v":0},{"$f":"Dataset[[#This Row],[2024/25 Baseline]]+Dataset[[#This Row],[2024/25 Total change]]","v":18103},{"$f":"Dataset[[#This Row],[2025/26 Baseline]]+Dataset[[#This Row],[2025/26 Total change]]","v":19028},{"$f":"Dataset[[#This Row],[2026/27 Baseline]]+Dataset[[#This Row],[2026/27 Total change]]","v":19901},{"$f":"Dataset[[#This Row],[2027/28 Baseline]]+Dataset[[#This Row],[2027/28 Total change]]","v":20801}]
["NAT|Non-transfer item","40|Training and development","2025_26","MTEC2025",40,1,1,51310,38,"40","01","01","051310","000038","40|01|01|000038","01","01","02","38","38","01|01|02|38|38","National","Transport","Administration","Ministry","Non-transfer item","Current","Current payments","Goods and services","Training and development","Training and development","Economic development","Economic regulation and infrastructure","NAT",0,0,0,0,0,0,null,0,0,0,0,null,null,null,null,null,null,null,null,null,null,null,null,null,null,null,null,null,null,null,null,null,null,null,null,null,null,null,null,null,null,null,null,null,null,{"$f":"Dataset[[#This Row],[2025/26 From - Spending review Topic 1]]+Dataset[[#This Row],[2025/26 From - Spending review Topic 2]]+Dataset[[#This Row],[2025/26 From - Spending review Topic 3]]+Dataset[[#This Row],[2025/26 From - Spending review Topic 4]]+Dataset[[#This Row],[2025/26 From - Other reallocations]]","v":0},{"$f":"Dataset[[#This Row],[2026/27 From - Spending review Topic 1]]+Dataset[[#This Row],[2026/27 From - Spending review Topic 2]]+Dataset[[#This Row],[2026/27 From - Spending review Topic 3]]+Dataset[[#This Row],[2026/27 From - Spending review Topic 4]]+Dataset[[#This Row],[2026/27 From - Other reallocations]]","v":0},{"$f":"Dataset[[#This Row],[2027/28 From - Spending review Topic 1]]+Dataset[[#This Row],[2027/28 From - Spending review Topic 2]]+Dataset[[#This Row],[2027/28 From - Spending review Topic 3]]+Dataset[[#This Row],[2027/28 From - Spending review Topic 4]]+Dataset[[#This Row],[2027/28 From - Other reallocations]]","v":0},{"$f":"Dataset[[#This Row],[2025/26 To - Spending review Topic 1]]+Dataset[[#This Row],[2025/26 To - Spending review Topic 2]]+Dataset[[#This Row],[2025/26 To - Spending review Topic 3]]+Dataset[[#This Row],[2025/26 To - Spending review Topic 4]]+Dataset[[#This Row],[2025/26 To - Other reallocations]]","v":0},{"$f":"Dataset[[#This Row],[2026/27 To - Spending review Topic 1]]+Dataset[[#This Row],[2026/27 To - Spending review Topic 2]]+Dataset[[#This Row],[2026/27 To - Spending review Topic 3]]+Dataset[[#This Row],[2026/27 To - Spending review Topic 4]]+Dataset[[#This Row],[2026/27 To - Other reallocations]]","v":0},{"$f":"Dataset[[#This Row],[2027/28 To - Spending review Topic 1]]+Dataset[[#This Row],[2027/28 To - Spending review Topic 2]]+Dataset[[#This Row],[2027/28 To - Spending review Topic 3]]+Dataset[[#This Row],[2027/28 To - Spending review Topic 4]]+Dataset[[#This Row],[2027/28 To - Other reallocations]]","v":0},{"$f":"Dataset[[#This Row],[2025/26 Reduction]]+Dataset[[#This Row],[2025/26 From - Total]]","v":0},{"$f":"Dataset[[#This Row],[2026/27 Reduction]]+Dataset[[#This Row],[2026/27 From - Total]]","v":0},{"$f":"Dataset[[#This Row],[2027/28 Reduction]]+Dataset[[#This Row],[2027/28 From - Total]]","v":0},{"$f":"Dataset[[#This Row],[2024/25 Reduction]]","v":0},{"$f":"SUM(Dataset[[#This Row],[2025/26 Reduction]],Dataset[[#This Row],[2025/26 From - Total]],Dataset[[#This Row],[2025/26 To - Total]])","v":0},{"$f":"SUM(Dataset[[#This Row],[2026/27 Reduction]],Dataset[[#This Row],[2026/27 From - Total]],Dataset[[#This Row],[2026/27 To - Total]])","v":0},{"$f":"SUM(Dataset[[#This Row],[2027/28 Reduction]],Dataset[[#This Row],[2027/28 From - Total]],Dataset[[#This Row],[2027/28 To - Total]])","v":0},{"$f":"Dataset[[#This Row],[2024/25 Baseline]]+Dataset[[#This Row],[2024/25 Total change]]","v":0},{"$f":"Dataset[[#This Row],[2025/26 Baseline]]+Dataset[[#This Row],[2025/26 Total change]]","v":0},{"$f":"Dataset[[#This Row],[2026/27 Baseline]]+Dataset[[#This Row],[2026/27 Total change]]","v":0},{"$f":"Dataset[[#This Row],[2027/28 Baseline]]+Dataset[[#This Row],[2027/28 Total change]]","v":0}]
["NAT|Non-transfer item","40|Operating payments","2025_26","MTEC2025",40,1,1,51311,39,"40","01","01","051311","000039","40|01|01|000039","01","01","02","39","39","01|01|02|39|39","National","Transport","Administration","Ministry","Non-transfer item","Current","Current payments","Goods and services","Operating payments","Operating payments","Economic development","Economic regulation and infrastructure","NAT",37,30,22,50,50,50,85,50,53,55,57,null,null,null,null,null,null,null,null,null,null,null,null,null,null,null,null,null,null,null,null,null,null,null,null,null,null,null,null,null,null,null,null,null,null,{"$f":"Dataset[[#This Row],[2025/26 From - Spending review Topic 1]]+Dataset[[#This Row],[2025/26 From - Spending review Topic 2]]+Dataset[[#This Row],[2025/26 From - Spending review Topic 3]]+Dataset[[#This Row],[2025/26 From - Spending review Topic 4]]+Dataset[[#This Row],[2025/26 From - Other reallocations]]","v":0},{"$f":"Dataset[[#This Row],[2026/27 From - Spending review Topic 1]]+Dataset[[#This Row],[2026/27 From - Spending review Topic 2]]+Dataset[[#This Row],[2026/27 From - Spending review Topic 3]]+Dataset[[#This Row],[2026/27 From - Spending review Topic 4]]+Dataset[[#This Row],[2026/27 From - Other reallocations]]","v":0},{"$f":"Dataset[[#This Row],[2027/28 From - Spending review Topic 1]]+Dataset[[#This Row],[2027/28 From - Spending review Topic 2]]+Dataset[[#This Row],[2027/28 From - Spending review Topic 3]]+Dataset[[#This Row],[2027/28 From - Spending review Topic 4]]+Dataset[[#This Row],[2027/28 From - Other reallocations]]","v":0},{"$f":"Dataset[[#This Row],[2025/26 To - Spending review Topic 1]]+Dataset[[#This Row],[2025/26 To - Spending review Topic 2]]+Dataset[[#This Row],[2025/26 To - Spending review Topic 3]]+Dataset[[#This Row],[2025/26 To - Spending review Topic 4]]+Dataset[[#This Row],[2025/26 To - Other reallocations]]","v":0},{"$f":"Dataset[[#This Row],[2026/27 To - Spending review Topic 1]]+Dataset[[#This Row],[2026/27 To - Spending review Topic 2]]+Dataset[[#This Row],[2026/27 To - Spending review Topic 3]]+Dataset[[#This Row],[2026/27 To - Spending review Topic 4]]+Dataset[[#This Row],[2026/27 To - Other reallocations]]","v":0},{"$f":"Dataset[[#This Row],[2027/28 To - Spending review Topic 1]]+Dataset[[#This Row],[2027/28 To - Spending review Topic 2]]+Dataset[[#This Row],[2027/28 To - Spending review Topic 3]]+Dataset[[#This Row],[2027/28 To - Spending review Topic 4]]+Dataset[[#This Row],[2027/28 To - Other reallocations]]","v":0},{"$f":"Dataset[[#This Row],[2025/26 Reduction]]+Dataset[[#This Row],[2025/26 From - Total]]","v":0},{"$f":"Dataset[[#This Row],[2026/27 Reduction]]+Dataset[[#This Row],[2026/27 From - Total]]","v":0},{"$f":"Dataset[[#This Row],[2027/28 Reduction]]+Dataset[[#This Row],[2027/28 From - Total]]","v":0},{"$f":"Dataset[[#This Row],[2024/25 Reduction]]","v":0},{"$f":"SUM(Dataset[[#This Row],[2025/26 Reduction]],Dataset[[#This Row],[2025/26 From - Total]],Dataset[[#This Row],[2025/26 To - Total]])","v":0},{"$f":"SUM(Dataset[[#This Row],[2026/27 Reduction]],Dataset[[#This Row],[2026/27 From - Total]],Dataset[[#This Row],[2026/27 To - Total]])","v":0},{"$f":"SUM(Dataset[[#This Row],[2027/28 Reduction]],Dataset[[#This Row],[2027/28 From - Total]],Dataset[[#This Row],[2027/28 To - Total]])","v":0},{"$f":"Dataset[[#This Row],[2024/25 Baseline]]+Dataset[[#This Row],[2024/25 Total change]]","v":50},{"$f":"Dataset[[#This Row],[2025/26 Baseline]]+Dataset[[#This Row],[2025/26 Total change]]","v":53},{"$f":"Dataset[[#This Row],[2026/27 Baseline]]+Dataset[[#This Row],[2026/27 Total change]]","v":55},{"$f":"Dataset[[#This Row],[2027/28 Baseline]]+Dataset[[#This Row],[2027/28 Total change]]","v":57}]
["NAT|Non-transfer item","40|Venues and facilities","2025_26","MTEC2025",40,1,1,51312,40,"40","01","01","051312","000040","40|01|01|000040","01","01","02","40","40","01|01|02|40|40","National","Transport","Administration","Ministry","Non-transfer item","Current","Current payments","Goods and services","Venues and facilities","Venues and facilities","Economic development","Economic regulation and infrastructure","NAT",120,120,136,800,800,800,107,800,841,879,919,null,null,null,null,null,null,null,null,null,null,null,null,null,null,null,null,null,null,null,null,null,null,null,null,null,null,null,null,null,null,null,null,null,null,{"$f":"Dataset[[#This Row],[2025/26 From - Spending review Topic 1]]+Dataset[[#This Row],[2025/26 From - Spending review Topic 2]]+Dataset[[#This Row],[2025/26 From - Spending review Topic 3]]+Dataset[[#This Row],[2025/26 From - Spending review Topic 4]]+Dataset[[#This Row],[2025/26 From - Other reallocations]]","v":0},{"$f":"Dataset[[#This Row],[2026/27 From - Spending review Topic 1]]+Dataset[[#This Row],[2026/27 From - Spending review Topic 2]]+Dataset[[#This Row],[2026/27 From - Spending review Topic 3]]+Dataset[[#This Row],[2026/27 From - Spending review Topic 4]]+Dataset[[#This Row],[2026/27 From - Other reallocations]]","v":0},{"$f":"Dataset[[#This Row],[2027/28 From - Spending review Topic 1]]+Dataset[[#This Row],[2027/28 From - Spending review Topic 2]]+Dataset[[#This Row],[2027/28 From - Spending review Topic 3]]+Dataset[[#This Row],[2027/28 From - Spending review Topic 4]]+Dataset[[#This Row],[2027/28 From - Other reallocations]]","v":0},{"$f":"Dataset[[#This Row],[2025/26 To - Spending review Topic 1]]+Dataset[[#This Row],[2025/26 To - Spending review Topic 2]]+Dataset[[#This Row],[2025/26 To - Spending review Topic 3]]+Dataset[[#This Row],[2025/26 To - Spending review Topic 4]]+Dataset[[#This Row],[2025/26 To - Other reallocations]]","v":0},{"$f":"Dataset[[#This Row],[2026/27 To - Spending review Topic 1]]+Dataset[[#This Row],[2026/27 To - Spending review Topic 2]]+Dataset[[#This Row],[2026/27 To - Spending review Topic 3]]+Dataset[[#This Row],[2026/27 To - Spending review Topic 4]]+Dataset[[#This Row],[2026/27 To - Other reallocations]]","v":0},{"$f":"Dataset[[#This Row],[2027/28 To - Spending review Topic 1]]+Dataset[[#This Row],[2027/28 To - Spending review Topic 2]]+Dataset[[#This Row],[2027/28 To - Spending review Topic 3]]+Dataset[[#This Row],[2027/28 To - Spending review Topic 4]]+Dataset[[#This Row],[2027/28 To - Other reallocations]]","v":0},{"$f":"Dataset[[#This Row],[2025/26 Reduction]]+Dataset[[#This Row],[2025/26 From - Total]]","v":0},{"$f":"Dataset[[#This Row],[2026/27 Reduction]]+Dataset[[#This Row],[2026/27 From - Total]]","v":0},{"$f":"Dataset[[#This Row],[2027/28 Reduction]]+Dataset[[#This Row],[2027/28 From - Total]]","v":0},{"$f":"Dataset[[#This Row],[2024/25 Reduction]]","v":0},{"$f":"SUM(Dataset[[#This Row],[2025/26 Reduction]],Dataset[[#This Row],[2025/26 From - Total]],Dataset[[#This Row],[2025/26 To - Total]])","v":0},{"$f":"SUM(Dataset[[#This Row],[2026/27 Reduction]],Dataset[[#This Row],[2026/27 From - Total]],Dataset[[#This Row],[2026/27 To - Total]])","v":0},{"$f":"SUM(Dataset[[#This Row],[2027/28 Reduction]],Dataset[[#This Row],[2027/28 From - Total]],Dataset[[#This Row],[2027/28 To - Total]])","v":0},{"$f":"Dataset[[#This Row],[2024/25 Baseline]]+Dataset[[#This Row],[2024/25 Total change]]","v":800},{"$f":"Dataset[[#This Row],[2025/26 Baseline]]+Dataset[[#This Row],[2025/26 Total change]]","v":841},{"$f":"Dataset[[#This Row],[2026/27 Baseline]]+Dataset[[#This Row],[2026/27 Total change]]","v":879},{"$f":"Dataset[[#This Row],[2027/28 Baseline]]+Dataset[[#This Row],[2027/28 Total change]]","v":919}]
["NAT|Non-transfer item","40|Interest (Incl. interest on unitary payments (PPP))","2025_26","MTEC2025",40,1,1,51313,41,"40","01","01","051313","000041","40|01|01|000041","01","01","03","41","41","01|01|03|41|41","National","Transport","Administration","Ministry","Non-transfer item","Current","Current payments","Interest and rent on land","Interest (Incl. interest on unitary payments (PPP))","Interest (Incl. interest on unitary payments (PPP))","Economic development","Economic regulation and infrastructure","NAT",0,0,0,0,0,0,null,0,0,0,0,null,null,null,null,null,null,null,null,null,null,null,null,null,null,null,null,null,null,null,null,null,null,null,null,null,null,null,null,null,null,null,null,null,null,{"$f":"Dataset[[#This Row],[2025/26 From - Spending review Topic 1]]+Dataset[[#This Row],[2025/26 From - Spending review Topic 2]]+Dataset[[#This Row],[2025/26 From - Spending review Topic 3]]+Dataset[[#This Row],[2025/26 From - Spending review Topic 4]]+Dataset[[#This Row],[2025/26 From - Other reallocations]]","v":0},{"$f":"Dataset[[#This Row],[2026/27 From - Spending review Topic 1]]+Dataset[[#This Row],[2026/27 From - Spending review Topic 2]]+Dataset[[#This Row],[2026/27 From - Spending review Topic 3]]+Dataset[[#This Row],[2026/27 From - Spending review Topic 4]]+Dataset[[#This Row],[2026/27 From - Other reallocations]]","v":0},{"$f":"Dataset[[#This Row],[2027/28 From - Spending review Topic 1]]+Dataset[[#This Row],[2027/28 From - Spending review Topic 2]]+Dataset[[#This Row],[2027/28 From - Spending review Topic 3]]+Dataset[[#This Row],[2027/28 From - Spending review Topic 4]]+Dataset[[#This Row],[2027/28 From - Other reallocations]]","v":0},{"$f":"Dataset[[#This Row],[2025/26 To - Spending review Topic 1]]+Dataset[[#This Row],[2025/26 To - Spending review Topic 2]]+Dataset[[#This Row],[2025/26 To - Spending review Topic 3]]+Dataset[[#This Row],[2025/26 To - Spending review Topic 4]]+Dataset[[#This Row],[2025/26 To - Other reallocations]]","v":0},{"$f":"Dataset[[#This Row],[2026/27 To - Spending review Topic 1]]+Dataset[[#This Row],[2026/27 To - Spending review Topic 2]]+Dataset[[#This Row],[2026/27 To - Spending review Topic 3]]+Dataset[[#This Row],[2026/27 To - Spending review Topic 4]]+Dataset[[#This Row],[2026/27 To - Other reallocations]]","v":0},{"$f":"Dataset[[#This Row],[2027/28 To - Spending review Topic 1]]+Dataset[[#This Row],[2027/28 To - Spending review Topic 2]]+Dataset[[#This Row],[2027/28 To - Spending review Topic 3]]+Dataset[[#This Row],[2027/28 To - Spending review Topic 4]]+Dataset[[#This Row],[2027/28 To - Other reallocations]]","v":0},{"$f":"Dataset[[#This Row],[2025/26 Reduction]]+Dataset[[#This Row],[2025/26 From - Total]]","v":0},{"$f":"Dataset[[#This Row],[2026/27 Reduction]]+Dataset[[#This Row],[2026/27 From - Total]]","v":0},{"$f":"Dataset[[#This Row],[2027/28 Reduction]]+Dataset[[#This Row],[2027/28 From - Total]]","v":0},{"$f":"Dataset[[#This Row],[2024/25 Reduction]]","v":0},{"$f":"SUM(Dataset[[#This Row],[2025/26 Reduction]],Dataset[[#This Row],[2025/26 From - Total]],Dataset[[#This Row],[2025/26 To - Total]])","v":0},{"$f":"SUM(Dataset[[#This Row],[2026/27 Reduction]],Dataset[[#This Row],[2026/27 From - Total]],Dataset[[#This Row],[2026/27 To - Total]])","v":0},{"$f":"SUM(Dataset[[#This Row],[2027/28 Reduction]],Dataset[[#This Row],[2027/28 From - Total]],Dataset[[#This Row],[2027/28 To - Total]])","v":0},{"$f":"Dataset[[#This Row],[2024/25 Baseline]]+Dataset[[#This Row],[2024/25 Total change]]","v":0},{"$f":"Dataset[[#This Row],[2025/26 Baseline]]+Dataset[[#This Row],[2025/26 Total change]]","v":0},{"$f":"Dataset[[#This Row],[2026/27 Baseline]]+Dataset[[#This Row],[2026/27 Total change]]","v":0},{"$f":"Dataset[[#This Row],[2027/28 Baseline]]+Dataset[[#This Row],[2027/28 Total change]]","v":0}]
["NAT|Non-transfer item","40|Rent on land","2025_26","MTEC2025",40,1,1,51314,42,"40","01","01","051314","000042","40|01|01|000042","01","01","03","42","42","01|01|03|42|42","National","Transport","Administration","Ministry","Non-transfer item","Current","Current payments","Interest and rent on land","Rent on land","Rent on land","Economic development","Economic regulation and infrastructure","NAT",0,0,0,0,0,0,null,0,0,0,0,null,null,null,null,null,null,null,null,null,null,null,null,null,null,null,null,null,null,null,null,null,null,null,null,null,null,null,null,null,null,null,null,null,null,{"$f":"Dataset[[#This Row],[2025/26 From - Spending review Topic 1]]+Dataset[[#This Row],[2025/26 From - Spending review Topic 2]]+Dataset[[#This Row],[2025/26 From - Spending review Topic 3]]+Dataset[[#This Row],[2025/26 From - Spending review Topic 4]]+Dataset[[#This Row],[2025/26 From - Other reallocations]]","v":0},{"$f":"Dataset[[#This Row],[2026/27 From - Spending review Topic 1]]+Dataset[[#This Row],[2026/27 From - Spending review Topic 2]]+Dataset[[#This Row],[2026/27 From - Spending review Topic 3]]+Dataset[[#This Row],[2026/27 From - Spending review Topic 4]]+Dataset[[#This Row],[2026/27 From - Other reallocations]]","v":0},{"$f":"Dataset[[#This Row],[2027/28 From - Spending review Topic 1]]+Dataset[[#This Row],[2027/28 From - Spending review Topic 2]]+Dataset[[#This Row],[2027/28 From - Spending review Topic 3]]+Dataset[[#This Row],[2027/28 From - Spending review Topic 4]]+Dataset[[#This Row],[2027/28 From - Other reallocations]]","v":0},{"$f":"Dataset[[#This Row],[2025/26 To - Spending review Topic 1]]+Dataset[[#This Row],[2025/26 To - Spending review Topic 2]]+Dataset[[#This Row],[2025/26 To - Spending review Topic 3]]+Dataset[[#This Row],[2025/26 To - Spending review Topic 4]]+Dataset[[#This Row],[2025/26 To - Other reallocations]]","v":0},{"$f":"Dataset[[#This Row],[2026/27 To - Spending review Topic 1]]+Dataset[[#This Row],[2026/27 To - Spending review Topic 2]]+Dataset[[#This Row],[2026/27 To - Spending review Topic 3]]+Dataset[[#This Row],[2026/27 To - Spending review Topic 4]]+Dataset[[#This Row],[2026/27 To - Other reallocations]]","v":0},{"$f":"Dataset[[#This Row],[2027/28 To - Spending review Topic 1]]+Dataset[[#This Row],[2027/28 To - Spending review Topic 2]]+Dataset[[#This Row],[2027/28 To - Spending review Topic 3]]+Dataset[[#This Row],[2027/28 To - Spending review Topic 4]]+Dataset[[#This Row],[2027/28 To - Other reallocations]]","v":0},{"$f":"Dataset[[#This Row],[2025/26 Reduction]]+Dataset[[#This Row],[2025/26 From - Total]]","v":0},{"$f":"Dataset[[#This Row],[2026/27 Reduction]]+Dataset[[#This Row],[2026/27 From - Total]]","v":0},{"$f":"Dataset[[#This Row],[2027/28 Reduction]]+Dataset[[#This Row],[2027/28 From - Total]]","v":0},{"$f":"Dataset[[#This Row],[2024/25 Reduction]]","v":0},{"$f":"SUM(Dataset[[#This Row],[2025/26 Reduction]],Dataset[[#This Row],[2025/26 From - Total]],Dataset[[#This Row],[2025/26 To - Total]])","v":0},{"$f":"SUM(Dataset[[#This Row],[2026/27 Reduction]],Dataset[[#This Row],[2026/27 From - Total]],Dataset[[#This Row],[2026/27 To - Total]])","v":0},{"$f":"SUM(Dataset[[#This Row],[2027/28 Reduction]],Dataset[[#This Row],[2027/28 From - Total]],Dataset[[#This Row],[2027/28 To - Total]])","v":0},{"$f":"Dataset[[#This Row],[2024/25 Baseline]]+Dataset[[#This Row],[2024/25 Total change]]","v":0},{"$f":"Dataset[[#This Row],[2025/26 Baseline]]+Dataset[[#This Row],[2025/26 Total change]]","v":0},{"$f":"Dataset[[#This Row],[2026/27 Baseline]]+Dataset[[#This Row],[2026/27 Total change]]","v":0},{"$f":"Dataset[[#This Row],[2027/28 Baseline]]+Dataset[[#This Row],[2027/28 Total change]]","v":0}]
["NAT|Municipal agencies and funds","40|Municipal bank accounts","2025_26","MTEC2025",40,1,1,51315,43,"40","01","01","051315","000043","40|01|01|000043","01","02","04","44","45","01|02|04|44|45","National","Transport","Administration","Ministry","Municipal agencies and funds","Current","Transfers and subsidies","Provinces and municipalities","Municipalities","Municipal bank accounts","Economic development","Economic regulation and infrastructure","NAT",0,2,2,0,0,0,null,0,0,0,0,null,null,null,null,null,null,null,null,null,null,null,null,null,null,null,null,null,null,null,null,null,null,null,null,null,null,null,null,null,null,null,null,null,null,{"$f":"Dataset[[#This Row],[2025/26 From - Spending review Topic 1]]+Dataset[[#This Row],[2025/26 From - Spending review Topic 2]]+Dataset[[#This Row],[2025/26 From - Spending review Topic 3]]+Dataset[[#This Row],[2025/26 From - Spending review Topic 4]]+Dataset[[#This Row],[2025/26 From - Other reallocations]]","v":0},{"$f":"Dataset[[#This Row],[2026/27 From - Spending review Topic 1]]+Dataset[[#This Row],[2026/27 From - Spending review Topic 2]]+Dataset[[#This Row],[2026/27 From - Spending review Topic 3]]+Dataset[[#This Row],[2026/27 From - Spending review Topic 4]]+Dataset[[#This Row],[2026/27 From - Other reallocations]]","v":0},{"$f":"Dataset[[#This Row],[2027/28 From - Spending review Topic 1]]+Dataset[[#This Row],[2027/28 From - Spending review Topic 2]]+Dataset[[#This Row],[2027/28 From - Spending review Topic 3]]+Dataset[[#This Row],[2027/28 From - Spending review Topic 4]]+Dataset[[#This Row],[2027/28 From - Other reallocations]]","v":0},{"$f":"Dataset[[#This Row],[2025/26 To - Spending review Topic 1]]+Dataset[[#This Row],[2025/26 To - Spending review Topic 2]]+Dataset[[#This Row],[2025/26 To - Spending review Topic 3]]+Dataset[[#This Row],[2025/26 To - Spending review Topic 4]]+Dataset[[#This Row],[2025/26 To - Other reallocations]]","v":0},{"$f":"Dataset[[#This Row],[2026/27 To - Spending review Topic 1]]+Dataset[[#This Row],[2026/27 To - Spending review Topic 2]]+Dataset[[#This Row],[2026/27 To - Spending review Topic 3]]+Dataset[[#This Row],[2026/27 To - Spending review Topic 4]]+Dataset[[#This Row],[2026/27 To - Other reallocations]]","v":0},{"$f":"Dataset[[#This Row],[2027/28 To - Spending review Topic 1]]+Dataset[[#This Row],[2027/28 To - Spending review Topic 2]]+Dataset[[#This Row],[2027/28 To - Spending review Topic 3]]+Dataset[[#This Row],[2027/28 To - Spending review Topic 4]]+Dataset[[#This Row],[2027/28 To - Other reallocations]]","v":0},{"$f":"Dataset[[#This Row],[2025/26 Reduction]]+Dataset[[#This Row],[2025/26 From - Total]]","v":0},{"$f":"Dataset[[#This Row],[2026/27 Reduction]]+Dataset[[#This Row],[2026/27 From - Total]]","v":0},{"$f":"Dataset[[#This Row],[2027/28 Reduction]]+Dataset[[#This Row],[2027/28 From - Total]]","v":0},{"$f":"Dataset[[#This Row],[2024/25 Reduction]]","v":0},{"$f":"SUM(Dataset[[#This Row],[2025/26 Reduction]],Dataset[[#This Row],[2025/26 From - Total]],Dataset[[#This Row],[2025/26 To - Total]])","v":0},{"$f":"SUM(Dataset[[#This Row],[2026/27 Reduction]],Dataset[[#This Row],[2026/27 From - Total]],Dataset[[#This Row],[2026/27 To - Total]])","v":0},{"$f":"SUM(Dataset[[#This Row],[2027/28 Reduction]],Dataset[[#This Row],[2027/28 From - Total]],Dataset[[#This Row],[2027/28 To - Total]])","v":0},{"$f":"Dataset[[#This Row],[2024/25 Baseline]]+Dataset[[#This Row],[2024/25 Total change]]","v":0},{"$f":"Dataset[[#This Row],[2025/26 Baseline]]+Dataset[[#This Row],[2025/26 Total change]]","v":0},{"$f":"Dataset[[#This Row],[2026/27 Baseline]]+Dataset[[#This Row],[2026/27 Total change]]","v":0},{"$f":"Dataset[[#This Row],[2027/28 Baseline]]+Dataset[[#This Row],[2027/28 Total change]]","v":0}]
["NAT|Employee social benefits","40|Social benefits","2025_26","MTEC2025",40,1,1,51316,44,"40","01","01","051316","000044","40|01|01|000044","01","02","10","52","56","01|02|10|52|56","National","Transport","Administration","Ministry","Employee social benefits","Current","Transfers and subsidies","Households","Social benefits","Social benefits","Economic development","Economic regulation and infrastructure","NAT",197,67,173,0,0,0,null,0,0,0,0,null,null,null,null,null,null,null,null,null,null,null,null,null,null,null,null,null,null,null,null,null,null,null,null,null,null,null,null,null,null,null,null,null,null,{"$f":"Dataset[[#This Row],[2025/26 From - Spending review Topic 1]]+Dataset[[#This Row],[2025/26 From - Spending review Topic 2]]+Dataset[[#This Row],[2025/26 From - Spending review Topic 3]]+Dataset[[#This Row],[2025/26 From - Spending review Topic 4]]+Dataset[[#This Row],[2025/26 From - Other reallocations]]","v":0},{"$f":"Dataset[[#This Row],[2026/27 From - Spending review Topic 1]]+Dataset[[#This Row],[2026/27 From - Spending review Topic 2]]+Dataset[[#This Row],[2026/27 From - Spending review Topic 3]]+Dataset[[#This Row],[2026/27 From - Spending review Topic 4]]+Dataset[[#This Row],[2026/27 From - Other reallocations]]","v":0},{"$f":"Dataset[[#This Row],[2027/28 From - Spending review Topic 1]]+Dataset[[#This Row],[2027/28 From - Spending review Topic 2]]+Dataset[[#This Row],[2027/28 From - Spending review Topic 3]]+Dataset[[#This Row],[2027/28 From - Spending review Topic 4]]+Dataset[[#This Row],[2027/28 From - Other reallocations]]","v":0},{"$f":"Dataset[[#This Row],[2025/26 To - Spending review Topic 1]]+Dataset[[#This Row],[2025/26 To - Spending review Topic 2]]+Dataset[[#This Row],[2025/26 To - Spending review Topic 3]]+Dataset[[#This Row],[2025/26 To - Spending review Topic 4]]+Dataset[[#This Row],[2025/26 To - Other reallocations]]","v":0},{"$f":"Dataset[[#This Row],[2026/27 To - Spending review Topic 1]]+Dataset[[#This Row],[2026/27 To - Spending review Topic 2]]+Dataset[[#This Row],[2026/27 To - Spending review Topic 3]]+Dataset[[#This Row],[2026/27 To - Spending review Topic 4]]+Dataset[[#This Row],[2026/27 To - Other reallocations]]","v":0},{"$f":"Dataset[[#This Row],[2027/28 To - Spending review Topic 1]]+Dataset[[#This Row],[2027/28 To - Spending review Topic 2]]+Dataset[[#This Row],[2027/28 To - Spending review Topic 3]]+Dataset[[#This Row],[2027/28 To - Spending review Topic 4]]+Dataset[[#This Row],[2027/28 To - Other reallocations]]","v":0},{"$f":"Dataset[[#This Row],[2025/26 Reduction]]+Dataset[[#This Row],[2025/26 From - Total]]","v":0},{"$f":"Dataset[[#This Row],[2026/27 Reduction]]+Dataset[[#This Row],[2026/27 From - Total]]","v":0},{"$f":"Dataset[[#This Row],[2027/28 Reduction]]+Dataset[[#This Row],[2027/28 From - Total]]","v":0},{"$f":"Dataset[[#This Row],[2024/25 Reduction]]","v":0},{"$f":"SUM(Dataset[[#This Row],[2025/26 Reduction]],Dataset[[#This Row],[2025/26 From - Total]],Dataset[[#This Row],[2025/26 To - Total]])","v":0},{"$f":"SUM(Dataset[[#This Row],[2026/27 Reduction]],Dataset[[#This Row],[2026/27 From - Total]],Dataset[[#This Row],[2026/27 To - Total]])","v":0},{"$f":"SUM(Dataset[[#This Row],[2027/28 Reduction]],Dataset[[#This Row],[2027/28 From - Total]],Dataset[[#This Row],[2027/28 To - Total]])","v":0},{"$f":"Dataset[[#This Row],[2024/25 Baseline]]+Dataset[[#This Row],[2024/25 Total change]]","v":0},{"$f":"Dataset[[#This Row],[2025/26 Baseline]]+Dataset[[#This Row],[2025/26 Total change]]","v":0},{"$f":"Dataset[[#This Row],[2026/27 Baseline]]+Dataset[[#This Row],[2026/27 Total change]]","v":0},{"$f":"Dataset[[#This Row],[2027/28 Baseline]]+Dataset[[#This Row],[2027/28 Total change]]","v":0}]
["NAT|Non-transfer item","40|Buildings","2025_26","MTEC2025",40,1,1,51317,45,"40","01","01","051317","000045","40|01|01|000045","02","03","11","54","58","02|03|11|54|58","National","Transport","Administration","Ministry","Non-transfer item","Capital","Payments for capital assets","Buildings and other fixed structures","Buildings","Buildings","Economic development","Economic regulation and infrastructure","NAT",0,0,0,0,0,0,null,0,0,0,0,null,null,null,null,null,null,null,null,null,null,null,null,null,null,null,null,null,null,null,null,null,null,null,null,null,null,null,null,null,null,null,null,null,null,{"$f":"Dataset[[#This Row],[2025/26 From - Spending review Topic 1]]+Dataset[[#This Row],[2025/26 From - Spending review Topic 2]]+Dataset[[#This Row],[2025/26 From - Spending review Topic 3]]+Dataset[[#This Row],[2025/26 From - Spending review Topic 4]]+Dataset[[#This Row],[2025/26 From - Other reallocations]]","v":0},{"$f":"Dataset[[#This Row],[2026/27 From - Spending review Topic 1]]+Dataset[[#This Row],[2026/27 From - Spending review Topic 2]]+Dataset[[#This Row],[2026/27 From - Spending review Topic 3]]+Dataset[[#This Row],[2026/27 From - Spending review Topic 4]]+Dataset[[#This Row],[2026/27 From - Other reallocations]]","v":0},{"$f":"Dataset[[#This Row],[2027/28 From - Spending review Topic 1]]+Dataset[[#This Row],[2027/28 From - Spending review Topic 2]]+Dataset[[#This Row],[2027/28 From - Spending review Topic 3]]+Dataset[[#This Row],[2027/28 From - Spending review Topic 4]]+Dataset[[#This Row],[2027/28 From - Other reallocations]]","v":0},{"$f":"Dataset[[#This Row],[2025/26 To - Spending review Topic 1]]+Dataset[[#This Row],[2025/26 To - Spending review Topic 2]]+Dataset[[#This Row],[2025/26 To - Spending review Topic 3]]+Dataset[[#This Row],[2025/26 To - Spending review Topic 4]]+Dataset[[#This Row],[2025/26 To - Other reallocations]]","v":0},{"$f":"Dataset[[#This Row],[2026/27 To - Spending review Topic 1]]+Dataset[[#This Row],[2026/27 To - Spending review Topic 2]]+Dataset[[#This Row],[2026/27 To - Spending review Topic 3]]+Dataset[[#This Row],[2026/27 To - Spending review Topic 4]]+Dataset[[#This Row],[2026/27 To - Other reallocations]]","v":0},{"$f":"Dataset[[#This Row],[2027/28 To - Spending review Topic 1]]+Dataset[[#This Row],[2027/28 To - Spending review Topic 2]]+Dataset[[#This Row],[2027/28 To - Spending review Topic 3]]+Dataset[[#This Row],[2027/28 To - Spending review Topic 4]]+Dataset[[#This Row],[2027/28 To - Other reallocations]]","v":0},{"$f":"Dataset[[#This Row],[2025/26 Reduction]]+Dataset[[#This Row],[2025/26 From - Total]]","v":0},{"$f":"Dataset[[#This Row],[2026/27 Reduction]]+Dataset[[#This Row],[2026/27 From - Total]]","v":0},{"$f":"Dataset[[#This Row],[2027/28 Reduction]]+Dataset[[#This Row],[2027/28 From - Total]]","v":0},{"$f":"Dataset[[#This Row],[2024/25 Reduction]]","v":0},{"$f":"SUM(Dataset[[#This Row],[2025/26 Reduction]],Dataset[[#This Row],[2025/26 From - Total]],Dataset[[#This Row],[2025/26 To - Total]])","v":0},{"$f":"SUM(Dataset[[#This Row],[2026/27 Reduction]],Dataset[[#This Row],[2026/27 From - Total]],Dataset[[#This Row],[2026/27 To - Total]])","v":0},{"$f":"SUM(Dataset[[#This Row],[2027/28 Reduction]],Dataset[[#This Row],[2027/28 From - Total]],Dataset[[#This Row],[2027/28 To - Total]])","v":0},{"$f":"Dataset[[#This Row],[2024/25 Baseline]]+Dataset[[#This Row],[2024/25 Total change]]","v":0},{"$f":"Dataset[[#This Row],[2025/26 Baseline]]+Dataset[[#This Row],[2025/26 Total change]]","v":0},{"$f":"Dataset[[#This Row],[2026/27 Baseline]]+Dataset[[#This Row],[2026/27 Total change]]","v":0},{"$f":"Dataset[[#This Row],[2027/28 Baseline]]+Dataset[[#This Row],[2027/28 Total change]]","v":0}]
["NAT|Non-transfer item","40|Other fixed structures","2025_26","MTEC2025",40,1,1,51318,46,"40","01","01","051318","000046","40|01|01|000046","02","03","11","55","59","02|03|11|55|59","National","Transport","Administration","Ministry","Non-transfer item","Capital","Payments for capital assets","Buildings and other fixed structures","Other fixed structures","Other fixed structures","Economic development","Economic regulation and infrastructure","NAT",0,0,0,0,0,0,null,0,0,0,0,null,null,null,null,null,null,null,null,null,null,null,null,null,null,null,null,null,null,null,null,null,null,null,null,null,null,null,null,null,null,null,null,null,null,{"$f":"Dataset[[#This Row],[2025/26 From - Spending review Topic 1]]+Dataset[[#This Row],[2025/26 From - Spending review Topic 2]]+Dataset[[#This Row],[2025/26 From - Spending review Topic 3]]+Dataset[[#This Row],[2025/26 From - Spending review Topic 4]]+Dataset[[#This Row],[2025/26 From - Other reallocations]]","v":0},{"$f":"Dataset[[#This Row],[2026/27 From - Spending review Topic 1]]+Dataset[[#This Row],[2026/27 From - Spending review Topic 2]]+Dataset[[#This Row],[2026/27 From - Spending review Topic 3]]+Dataset[[#This Row],[2026/27 From - Spending review Topic 4]]+Dataset[[#This Row],[2026/27 From - Other reallocations]]","v":0},{"$f":"Dataset[[#This Row],[2027/28 From - Spending review Topic 1]]+Dataset[[#This Row],[2027/28 From - Spending review Topic 2]]+Dataset[[#This Row],[2027/28 From - Spending review Topic 3]]+Dataset[[#This Row],[2027/28 From - Spending review Topic 4]]+Dataset[[#This Row],[2027/28 From - Other reallocations]]","v":0},{"$f":"Dataset[[#This Row],[2025/26 To - Spending review Topic 1]]+Dataset[[#This Row],[2025/26 To - Spending review Topic 2]]+Dataset[[#This Row],[2025/26 To - Spending review Topic 3]]+Dataset[[#This Row],[2025/26 To - Spending review Topic 4]]+Dataset[[#This Row],[2025/26 To - Other reallocations]]","v":0},{"$f":"Dataset[[#This Row],[2026/27 To - Spending review Topic 1]]+Dataset[[#This Row],[2026/27 To - Spending review Topic 2]]+Dataset[[#This Row],[2026/27 To - Spending review Topic 3]]+Dataset[[#This Row],[2026/27 To - Spending review Topic 4]]+Dataset[[#This Row],[2026/27 To - Other reallocations]]","v":0},{"$f":"Dataset[[#This Row],[2027/28 To - Spending review Topic 1]]+Dataset[[#This Row],[2027/28 To - Spending review Topic 2]]+Dataset[[#This Row],[2027/28 To - Spending review Topic 3]]+Dataset[[#This Row],[2027/28 To - Spending review Topic 4]]+Dataset[[#This Row],[2027/28 To - Other reallocations]]","v":0},{"$f":"Dataset[[#This Row],[2025/26 Reduction]]+Dataset[[#This Row],[2025/26 From - Total]]","v":0},{"$f":"Dataset[[#This Row],[2026/27 Reduction]]+Dataset[[#This Row],[2026/27 From - Total]]","v":0},{"$f":"Dataset[[#This Row],[2027/28 Reduction]]+Dataset[[#This Row],[2027/28 From - Total]]","v":0},{"$f":"Dataset[[#This Row],[2024/25 Reduction]]","v":0},{"$f":"SUM(Dataset[[#This Row],[2025/26 Reduction]],Dataset[[#This Row],[2025/26 From - Total]],Dataset[[#This Row],[2025/26 To - Total]])","v":0},{"$f":"SUM(Dataset[[#This Row],[2026/27 Reduction]],Dataset[[#This Row],[2026/27 From - Total]],Dataset[[#This Row],[2026/27 To - Total]])","v":0},{"$f":"SUM(Dataset[[#This Row],[2027/28 Reduction]],Dataset[[#This Row],[2027/28 From - Total]],Dataset[[#This Row],[2027/28 To - Total]])","v":0},{"$f":"Dataset[[#This Row],[2024/25 Baseline]]+Dataset[[#This Row],[2024/25 Total change]]","v":0},{"$f":"Dataset[[#This Row],[2025/26 Baseline]]+Dataset[[#This Row],[2025/26 Total change]]","v":0},{"$f":"Dataset[[#This Row],[2026/27 Baseline]]+Dataset[[#This Row],[2026/27 Total change]]","v":0},{"$f":"Dataset[[#This Row],[2027/28 Baseline]]+Dataset[[#This Row],[2027/28 Total change]]","v":0}]
["NAT|Non-transfer item","40|Transport equipment","2025_26","MTEC2025",40,1,1,51319,47,"40","01","01","051319","000047","40|01|01|000047","02","03","12","56","60","02|03|12|56|60","National","Transport","Administration","Ministry","Non-transfer item","Capital","Payments for capital assets","Machinery and equipment","Transport equipment","Transport equipment","Economic development","Economic regulation and infrastructure","NAT",0,749,0,0,0,0,null,0,0,0,0,null,null,null,null,null,null,null,null,null,null,null,null,null,null,null,null,null,null,null,null,null,null,null,null,null,null,null,null,null,null,null,null,null,null,{"$f":"Dataset[[#This Row],[2025/26 From - Spending review Topic 1]]+Dataset[[#This Row],[2025/26 From - Spending review Topic 2]]+Dataset[[#This Row],[2025/26 From - Spending review Topic 3]]+Dataset[[#This Row],[2025/26 From - Spending review Topic 4]]+Dataset[[#This Row],[2025/26 From - Other reallocations]]","v":0},{"$f":"Dataset[[#This Row],[2026/27 From - Spending review Topic 1]]+Dataset[[#This Row],[2026/27 From - Spending review Topic 2]]+Dataset[[#This Row],[2026/27 From - Spending review Topic 3]]+Dataset[[#This Row],[2026/27 From - Spending review Topic 4]]+Dataset[[#This Row],[2026/27 From - Other reallocations]]","v":0},{"$f":"Dataset[[#This Row],[2027/28 From - Spending review Topic 1]]+Dataset[[#This Row],[2027/28 From - Spending review Topic 2]]+Dataset[[#This Row],[2027/28 From - Spending review Topic 3]]+Dataset[[#This Row],[2027/28 From - Spending review Topic 4]]+Dataset[[#This Row],[2027/28 From - Other reallocations]]","v":0},{"$f":"Dataset[[#This Row],[2025/26 To - Spending review Topic 1]]+Dataset[[#This Row],[2025/26 To - Spending review Topic 2]]+Dataset[[#This Row],[2025/26 To - Spending review Topic 3]]+Dataset[[#This Row],[2025/26 To - Spending review Topic 4]]+Dataset[[#This Row],[2025/26 To - Other reallocations]]","v":0},{"$f":"Dataset[[#This Row],[2026/27 To - Spending review Topic 1]]+Dataset[[#This Row],[2026/27 To - Spending review Topic 2]]+Dataset[[#This Row],[2026/27 To - Spending review Topic 3]]+Dataset[[#This Row],[2026/27 To - Spending review Topic 4]]+Dataset[[#This Row],[2026/27 To - Other reallocations]]","v":0},{"$f":"Dataset[[#This Row],[2027/28 To - Spending review Topic 1]]+Dataset[[#This Row],[2027/28 To - Spending review Topic 2]]+Dataset[[#This Row],[2027/28 To - Spending review Topic 3]]+Dataset[[#This Row],[2027/28 To - Spending review Topic 4]]+Dataset[[#This Row],[2027/28 To - Other reallocations]]","v":0},{"$f":"Dataset[[#This Row],[2025/26 Reduction]]+Dataset[[#This Row],[2025/26 From - Total]]","v":0},{"$f":"Dataset[[#This Row],[2026/27 Reduction]]+Dataset[[#This Row],[2026/27 From - Total]]","v":0},{"$f":"Dataset[[#This Row],[2027/28 Reduction]]+Dataset[[#This Row],[2027/28 From - Total]]","v":0},{"$f":"Dataset[[#This Row],[2024/25 Reduction]]","v":0},{"$f":"SUM(Dataset[[#This Row],[2025/26 Reduction]],Dataset[[#This Row],[2025/26 From - Total]],Dataset[[#This Row],[2025/26 To - Total]])","v":0},{"$f":"SUM(Dataset[[#This Row],[2026/27 Reduction]],Dataset[[#This Row],[2026/27 From - Total]],Dataset[[#This Row],[2026/27 To - Total]])","v":0},{"$f":"SUM(Dataset[[#This Row],[2027/28 Reduction]],Dataset[[#This Row],[2027/28 From - Total]],Dataset[[#This Row],[2027/28 To - Total]])","v":0},{"$f":"Dataset[[#This Row],[2024/25 Baseline]]+Dataset[[#This Row],[2024/25 Total change]]","v":0},{"$f":"Dataset[[#This Row],[2025/26 Baseline]]+Dataset[[#This Row],[2025/26 Total change]]","v":0},{"$f":"Dataset[[#This Row],[2026/27 Baseline]]+Dataset[[#This Row],[2026/27 Total change]]","v":0},{"$f":"Dataset[[#This Row],[2027/28 Baseline]]+Dataset[[#This Row],[2027/28 Total change]]","v":0}]
["NAT|Non-transfer item","40|Other machinery and equipment","2025_26","MTEC2025",40,1,1,51320,48,"40","01","01","051320","000048","40|01|01|000048","02","03","12","57","61","02|03|12|57|61","National","Transport","Administration","Ministry","Non-transfer item","Capital","Payments for capital assets","Machinery and equipment","Other machinery and equipment","Other machinery and equipment","Economic development","Economic regulation and infrastructure","NAT",237,120,569,587,587,587,804,613,640,670,700,null,null,null,null,null,null,null,null,null,null,null,null,null,null,null,null,null,null,null,null,null,null,null,null,null,null,null,null,null,null,null,null,null,null,{"$f":"Dataset[[#This Row],[2025/26 From - Spending review Topic 1]]+Dataset[[#This Row],[2025/26 From - Spending review Topic 2]]+Dataset[[#This Row],[2025/26 From - Spending review Topic 3]]+Dataset[[#This Row],[2025/26 From - Spending review Topic 4]]+Dataset[[#This Row],[2025/26 From - Other reallocations]]","v":0},{"$f":"Dataset[[#This Row],[2026/27 From - Spending review Topic 1]]+Dataset[[#This Row],[2026/27 From - Spending review Topic 2]]+Dataset[[#This Row],[2026/27 From - Spending review Topic 3]]+Dataset[[#This Row],[2026/27 From - Spending review Topic 4]]+Dataset[[#This Row],[2026/27 From - Other reallocations]]","v":0},{"$f":"Dataset[[#This Row],[2027/28 From - Spending review Topic 1]]+Dataset[[#This Row],[2027/28 From - Spending review Topic 2]]+Dataset[[#This Row],[2027/28 From - Spending review Topic 3]]+Dataset[[#This Row],[2027/28 From - Spending review Topic 4]]+Dataset[[#This Row],[2027/28 From - Other reallocations]]","v":0},{"$f":"Dataset[[#This Row],[2025/26 To - Spending review Topic 1]]+Dataset[[#This Row],[2025/26 To - Spending review Topic 2]]+Dataset[[#This Row],[2025/26 To - Spending review Topic 3]]+Dataset[[#This Row],[2025/26 To - Spending review Topic 4]]+Dataset[[#This Row],[2025/26 To - Other reallocations]]","v":0},{"$f":"Dataset[[#This Row],[2026/27 To - Spending review Topic 1]]+Dataset[[#This Row],[2026/27 To - Spending review Topic 2]]+Dataset[[#This Row],[2026/27 To - Spending review Topic 3]]+Dataset[[#This Row],[2026/27 To - Spending review Topic 4]]+Dataset[[#This Row],[2026/27 To - Other reallocations]]","v":0},{"$f":"Dataset[[#This Row],[2027/28 To - Spending review Topic 1]]+Dataset[[#This Row],[2027/28 To - Spending review Topic 2]]+Dataset[[#This Row],[2027/28 To - Spending review Topic 3]]+Dataset[[#This Row],[2027/28 To - Spending review Topic 4]]+Dataset[[#This Row],[2027/28 To - Other reallocations]]","v":0},{"$f":"Dataset[[#This Row],[2025/26 Reduction]]+Dataset[[#This Row],[2025/26 From - Total]]","v":0},{"$f":"Dataset[[#This Row],[2026/27 Reduction]]+Dataset[[#This Row],[2026/27 From - Total]]","v":0},{"$f":"Dataset[[#This Row],[2027/28 Reduction]]+Dataset[[#This Row],[2027/28 From - Total]]","v":0},{"$f":"Dataset[[#This Row],[2024/25 Reduction]]","v":0},{"$f":"SUM(Dataset[[#This Row],[2025/26 Reduction]],Dataset[[#This Row],[2025/26 From - Total]],Dataset[[#This Row],[2025/26 To - Total]])","v":0},{"$f":"SUM(Dataset[[#This Row],[2026/27 Reduction]],Dataset[[#This Row],[2026/27 From - Total]],Dataset[[#This Row],[2026/27 To - Total]])","v":0},{"$f":"SUM(Dataset[[#This Row],[2027/28 Reduction]],Dataset[[#This Row],[2027/28 From - Total]],Dataset[[#This Row],[2027/28 To - Total]])","v":0},{"$f":"Dataset[[#This Row],[2024/25 Baseline]]+Dataset[[#This Row],[2024/25 Total change]]","v":613},{"$f":"Dataset[[#This Row],[2025/26 Baseline]]+Dataset[[#This Row],[2025/26 Total change]]","v":640},{"$f":"Dataset[[#This Row],[2026/27 Baseline]]+Dataset[[#This Row],[2026/27 Total change]]","v":670},{"$f":"Dataset[[#This Row],[2027/28 Baseline]]+Dataset[[#This Row],[2027/28 Total change]]","v":700}]
["NAT|Non-transfer item","40|Heritage assets","2025_26","MTEC2025",40,1,1,51321,49,"40","01","01","051321","000049","40|01|01|000049","02","03","13","58","62","02|03|13|58|62","National","Transport","Administration","Ministry","Non-transfer item","Capital","Payments for capital assets","Heritage assets","Heritage assets","Heritage assets","Economic development","Economic regulation and infrastructure","NAT",0,0,0,0,0,0,null,0,0,0,0,null,null,null,null,null,null,null,null,null,null,null,null,null,null,null,null,null,null,null,null,null,null,null,null,null,null,null,null,null,null,null,null,null,null,{"$f":"Dataset[[#This Row],[2025/26 From - Spending review Topic 1]]+Dataset[[#This Row],[2025/26 From - Spending review Topic 2]]+Dataset[[#This Row],[2025/26 From - Spending review Topic 3]]+Dataset[[#This Row],[2025/26 From - Spending review Topic 4]]+Dataset[[#This Row],[2025/26 From - Other reallocations]]","v":0},{"$f":"Dataset[[#This Row],[2026/27 From - Spending review Topic 1]]+Dataset[[#This Row],[2026/27 From - Spending review Topic 2]]+Dataset[[#This Row],[2026/27 From - Spending review Topic 3]]+Dataset[[#This Row],[2026/27 From - Spending review Topic 4]]+Dataset[[#This Row],[2026/27 From - Other reallocations]]","v":0},{"$f":"Dataset[[#This Row],[2027/28 From - Spending review Topic 1]]+Dataset[[#This Row],[2027/28 From - Spending review Topic 2]]+Dataset[[#This Row],[2027/28 From - Spending review Topic 3]]+Dataset[[#This Row],[2027/28 From - Spending review Topic 4]]+Dataset[[#This Row],[2027/28 From - Other reallocations]]","v":0},{"$f":"Dataset[[#This Row],[2025/26 To - Spending review Topic 1]]+Dataset[[#This Row],[2025/26 To - Spending review Topic 2]]+Dataset[[#This Row],[2025/26 To - Spending review Topic 3]]+Dataset[[#This Row],[2025/26 To - Spending review Topic 4]]+Dataset[[#This Row],[2025/26 To - Other reallocations]]","v":0},{"$f":"Dataset[[#This Row],[2026/27 To - Spending review Topic 1]]+Dataset[[#This Row],[2026/27 To - Spending review Topic 2]]+Dataset[[#This Row],[2026/27 To - Spending review Topic 3]]+Dataset[[#This Row],[2026/27 To - Spending review Topic 4]]+Dataset[[#This Row],[2026/27 To - Other reallocations]]","v":0},{"$f":"Dataset[[#This Row],[2027/28 To - Spending review Topic 1]]+Dataset[[#This Row],[2027/28 To - Spending review Topic 2]]+Dataset[[#This Row],[2027/28 To - Spending review Topic 3]]+Dataset[[#This Row],[2027/28 To - Spending review Topic 4]]+Dataset[[#This Row],[2027/28 To - Other reallocations]]","v":0},{"$f":"Dataset[[#This Row],[2025/26 Reduction]]+Dataset[[#This Row],[2025/26 From - Total]]","v":0},{"$f":"Dataset[[#This Row],[2026/27 Reduction]]+Dataset[[#This Row],[2026/27 From - Total]]","v":0},{"$f":"Dataset[[#This Row],[2027/28 Reduction]]+Dataset[[#This Row],[2027/28 From - Total]]","v":0},{"$f":"Dataset[[#This Row],[2024/25 Reduction]]","v":0},{"$f":"SUM(Dataset[[#This Row],[2025/26 Reduction]],Dataset[[#This Row],[2025/26 From - Total]],Dataset[[#This Row],[2025/26 To - Total]])","v":0},{"$f":"SUM(Dataset[[#This Row],[2026/27 Reduction]],Dataset[[#This Row],[2026/27 From - Total]],Dataset[[#This Row],[2026/27 To - Total]])","v":0},{"$f":"SUM(Dataset[[#This Row],[2027/28 Reduction]],Dataset[[#This Row],[2027/28 From - Total]],Dataset[[#This Row],[2027/28 To - Total]])","v":0},{"$f":"Dataset[[#This Row],[2024/25 Baseline]]+Dataset[[#This Row],[2024/25 Total change]]","v":0},{"$f":"Dataset[[#This Row],[2025/26 Baseline]]+Dataset[[#This Row],[2025/26 Total change]]","v":0},{"$f":"Dataset[[#This Row],[2026/27 Baseline]]+Dataset[[#This Row],[2026/27 Total change]]","v":0},{"$f":"Dataset[[#This Row],[2027/28 Baseline]]+Dataset[[#This Row],[2027/28 Total change]]","v":0}]
["NAT|Non-transfer item","40|Specialised military assets","2025_26","MTEC2025",40,1,1,51322,50,"40","01","01","051322","000050","40|01|01|000050","02","03","14","59","63","02|03|14|59|63","National","Transport","Administration","Ministry","Non-transfer item","Capital","Payments for capital assets","Specialised military assets","Specialised military assets","Specialised military assets","Economic development","Economic regulation and infrastructure","NAT",0,0,0,0,0,0,null,0,0,0,0,null,null,null,null,null,null,null,null,null,null,null,null,null,null,null,null,null,null,null,null,null,null,null,null,null,null,null,null,null,null,null,null,null,null,{"$f":"Dataset[[#This Row],[2025/26 From - Spending review Topic 1]]+Dataset[[#This Row],[2025/26 From - Spending review Topic 2]]+Dataset[[#This Row],[2025/26 From - Spending review Topic 3]]+Dataset[[#This Row],[2025/26 From - Spending review Topic 4]]+Dataset[[#This Row],[2025/26 From - Other reallocations]]","v":0},{"$f":"Dataset[[#This Row],[2026/27 From - Spending review Topic 1]]+Dataset[[#This Row],[2026/27 From - Spending review Topic 2]]+Dataset[[#This Row],[2026/27 From - Spending review Topic 3]]+Dataset[[#This Row],[2026/27 From - Spending review Topic 4]]+Dataset[[#This Row],[2026/27 From - Other reallocations]]","v":0},{"$f":"Dataset[[#This Row],[2027/28 From - Spending review Topic 1]]+Dataset[[#This Row],[2027/28 From - Spending review Topic 2]]+Dataset[[#This Row],[2027/28 From - Spending review Topic 3]]+Dataset[[#This Row],[2027/28 From - Spending review Topic 4]]+Dataset[[#This Row],[2027/28 From - Other reallocations]]","v":0},{"$f":"Dataset[[#This Row],[2025/26 To - Spending review Topic 1]]+Dataset[[#This Row],[2025/26 To - Spending review Topic 2]]+Dataset[[#This Row],[2025/26 To - Spending review Topic 3]]+Dataset[[#This Row],[2025/26 To - Spending review Topic 4]]+Dataset[[#This Row],[2025/26 To - Other reallocations]]","v":0},{"$f":"Dataset[[#This Row],[2026/27 To - Spending review Topic 1]]+Dataset[[#This Row],[2026/27 To - Spending review Topic 2]]+Dataset[[#This Row],[2026/27 To - Spending review Topic 3]]+Dataset[[#This Row],[2026/27 To - Spending review Topic 4]]+Dataset[[#This Row],[2026/27 To - Other reallocations]]","v":0},{"$f":"Dataset[[#This Row],[2027/28 To - Spending review Topic 1]]+Dataset[[#This Row],[2027/28 To - Spending review Topic 2]]+Dataset[[#This Row],[2027/28 To - Spending review Topic 3]]+Dataset[[#This Row],[2027/28 To - Spending review Topic 4]]+Dataset[[#This Row],[2027/28 To - Other reallocations]]","v":0},{"$f":"Dataset[[#This Row],[2025/26 Reduction]]+Dataset[[#This Row],[2025/26 From - Total]]","v":0},{"$f":"Dataset[[#This Row],[2026/27 Reduction]]+Dataset[[#This Row],[2026/27 From - Total]]","v":0},{"$f":"Dataset[[#This Row],[2027/28 Reduction]]+Dataset[[#This Row],[2027/28 From - Total]]","v":0},{"$f":"Dataset[[#This Row],[2024/25 Reduction]]","v":0},{"$f":"SUM(Dataset[[#This Row],[2025/26 Reduction]],Dataset[[#This Row],[2025/26 From - Total]],Dataset[[#This Row],[2025/26 To - Total]])","v":0},{"$f":"SUM(Dataset[[#This Row],[2026/27 Reduction]],Dataset[[#This Row],[2026/27 From - Total]],Dataset[[#This Row],[2026/27 To - Total]])","v":0},{"$f":"SUM(Dataset[[#This Row],[2027/28 Reduction]],Dataset[[#This Row],[2027/28 From - Total]],Dataset[[#This Row],[2027/28 To - Total]])","v":0},{"$f":"Dataset[[#This Row],[2024/25 Baseline]]+Dataset[[#This Row],[2024/25 Total change]]","v":0},{"$f":"Dataset[[#This Row],[2025/26 Baseline]]+Dataset[[#This Row],[2025/26 Total change]]","v":0},{"$f":"Dataset[[#This Row],[2026/27 Baseline]]+Dataset[[#This Row],[2026/27 Total change]]","v":0},{"$f":"Dataset[[#This Row],[2027/28 Baseline]]+Dataset[[#This Row],[2027/28 Total change]]","v":0}]
["NAT|Non-transfer item","40|Biological assets","2025_26","MTEC2025",40,1,1,51323,51,"40","01","01","051323","000051","40|01|01|000051","02","03","15","60","64","02|03|15|60|64","National","Transport","Administration","Ministry","Non-transfer item","Capital","Payments for capital assets","Biological assets","Biological assets","Biological assets","Economic development","Economic regulation and infrastructure","NAT",0,0,0,0,0,0,null,0,0,0,0,null,null,null,null,null,null,null,null,null,null,null,null,null,null,null,null,null,null,null,null,null,null,null,null,null,null,null,null,null,null,null,null,null,null,{"$f":"Dataset[[#This Row],[2025/26 From - Spending review Topic 1]]+Dataset[[#This Row],[2025/26 From - Spending review Topic 2]]+Dataset[[#This Row],[2025/26 From - Spending review Topic 3]]+Dataset[[#This Row],[2025/26 From - Spending review Topic 4]]+Dataset[[#This Row],[2025/26 From - Other reallocations]]","v":0},{"$f":"Dataset[[#This Row],[2026/27 From - Spending review Topic 1]]+Dataset[[#This Row],[2026/27 From - Spending review Topic 2]]+Dataset[[#This Row],[2026/27 From - Spending review Topic 3]]+Dataset[[#This Row],[2026/27 From - Spending review Topic 4]]+Dataset[[#This Row],[2026/27 From - Other reallocations]]","v":0},{"$f":"Dataset[[#This Row],[2027/28 From - Spending review Topic 1]]+Dataset[[#This Row],[2027/28 From - Spending review Topic 2]]+Dataset[[#This Row],[2027/28 From - Spending review Topic 3]]+Dataset[[#This Row],[2027/28 From - Spending review Topic 4]]+Dataset[[#This Row],[2027/28 From - Other reallocations]]","v":0},{"$f":"Dataset[[#This Row],[2025/26 To - Spending review Topic 1]]+Dataset[[#This Row],[2025/26 To - Spending review Topic 2]]+Dataset[[#This Row],[2025/26 To - Spending review Topic 3]]+Dataset[[#This Row],[2025/26 To - Spending review Topic 4]]+Dataset[[#This Row],[2025/26 To - Other reallocations]]","v":0},{"$f":"Dataset[[#This Row],[2026/27 To - Spending review Topic 1]]+Dataset[[#This Row],[2026/27 To - Spending review Topic 2]]+Dataset[[#This Row],[2026/27 To - Spending review Topic 3]]+Dataset[[#This Row],[2026/27 To - Spending review Topic 4]]+Dataset[[#This Row],[2026/27 To - Other reallocations]]","v":0},{"$f":"Dataset[[#This Row],[2027/28 To - Spending review Topic 1]]+Dataset[[#This Row],[2027/28 To - Spending review Topic 2]]+Dataset[[#This Row],[2027/28 To - Spending review Topic 3]]+Dataset[[#This Row],[2027/28 To - Spending review Topic 4]]+Dataset[[#This Row],[2027/28 To - Other reallocations]]","v":0},{"$f":"Dataset[[#This Row],[2025/26 Reduction]]+Dataset[[#This Row],[2025/26 From - Total]]","v":0},{"$f":"Dataset[[#This Row],[2026/27 Reduction]]+Dataset[[#This Row],[2026/27 From - Total]]","v":0},{"$f":"Dataset[[#This Row],[2027/28 Reduction]]+Dataset[[#This Row],[2027/28 From - Total]]","v":0},{"$f":"Dataset[[#This Row],[2024/25 Reduction]]","v":0},{"$f":"SUM(Dataset[[#This Row],[2025/26 Reduction]],Dataset[[#This Row],[2025/26 From - Total]],Dataset[[#This Row],[2025/26 To - Total]])","v":0},{"$f":"SUM(Dataset[[#This Row],[2026/27 Reduction]],Dataset[[#This Row],[2026/27 From - Total]],Dataset[[#This Row],[2026/27 To - Total]])","v":0},{"$f":"SUM(Dataset[[#This Row],[2027/28 Reduction]],Dataset[[#This Row],[2027/28 From - Total]],Dataset[[#This Row],[2027/28 To - Total]])","v":0},{"$f":"Dataset[[#This Row],[2024/25 Baseline]]+Dataset[[#This Row],[2024/25 Total change]]","v":0},{"$f":"Dataset[[#This Row],[2025/26 Baseline]]+Dataset[[#This Row],[2025/26 Total change]]","v":0},{"$f":"Dataset[[#This Row],[2026/27 Baseline]]+Dataset[[#This Row],[2026/27 Total change]]","v":0},{"$f":"Dataset[[#This Row],[2027/28 Baseline]]+Dataset[[#This Row],[2027/28 Total change]]","v":0}]
["NAT|Non-transfer item","40|Land and sub-soil assets","2025_26","MTEC2025",40,1,1,51324,52,"40","01","01","051324","000052","40|01|01|000052","02","03","16","61","65","02|03|16|61|65","National","Transport","Administration","Ministry","Non-transfer item","Capital","Payments for capital assets","Land and sub-soil assets","Land and sub-soil assets","Land and sub-soil assets","Economic development","Economic regulation and infrastructure","NAT",0,0,0,0,0,0,null,0,0,0,0,null,null,null,null,null,null,null,null,null,null,null,null,null,null,null,null,null,null,null,null,null,null,null,null,null,null,null,null,null,null,null,null,null,null,{"$f":"Dataset[[#This Row],[2025/26 From - Spending review Topic 1]]+Dataset[[#This Row],[2025/26 From - Spending review Topic 2]]+Dataset[[#This Row],[2025/26 From - Spending review Topic 3]]+Dataset[[#This Row],[2025/26 From - Spending review Topic 4]]+Dataset[[#This Row],[2025/26 From - Other reallocations]]","v":0},{"$f":"Dataset[[#This Row],[2026/27 From - Spending review Topic 1]]+Dataset[[#This Row],[2026/27 From - Spending review Topic 2]]+Dataset[[#This Row],[2026/27 From - Spending review Topic 3]]+Dataset[[#This Row],[2026/27 From - Spending review Topic 4]]+Dataset[[#This Row],[2026/27 From - Other reallocations]]","v":0},{"$f":"Dataset[[#This Row],[2027/28 From - Spending review Topic 1]]+Dataset[[#This Row],[2027/28 From - Spending review Topic 2]]+Dataset[[#This Row],[2027/28 From - Spending review Topic 3]]+Dataset[[#This Row],[2027/28 From - Spending review Topic 4]]+Dataset[[#This Row],[2027/28 From - Other reallocations]]","v":0},{"$f":"Dataset[[#This Row],[2025/26 To - Spending review Topic 1]]+Dataset[[#This Row],[2025/26 To - Spending review Topic 2]]+Dataset[[#This Row],[2025/26 To - Spending review Topic 3]]+Dataset[[#This Row],[2025/26 To - Spending review Topic 4]]+Dataset[[#This Row],[2025/26 To - Other reallocations]]","v":0},{"$f":"Dataset[[#This Row],[2026/27 To - Spending review Topic 1]]+Dataset[[#This Row],[2026/27 To - Spending review Topic 2]]+Dataset[[#This Row],[2026/27 To - Spending review Topic 3]]+Dataset[[#This Row],[2026/27 To - Spending review Topic 4]]+Dataset[[#This Row],[2026/27 To - Other reallocations]]","v":0},{"$f":"Dataset[[#This Row],[2027/28 To - Spending review Topic 1]]+Dataset[[#This Row],[2027/28 To - Spending review Topic 2]]+Dataset[[#This Row],[2027/28 To - Spending review Topic 3]]+Dataset[[#This Row],[2027/28 To - Spending review Topic 4]]+Dataset[[#This Row],[2027/28 To - Other reallocations]]","v":0},{"$f":"Dataset[[#This Row],[2025/26 Reduction]]+Dataset[[#This Row],[2025/26 From - Total]]","v":0},{"$f":"Dataset[[#This Row],[2026/27 Reduction]]+Dataset[[#This Row],[2026/27 From - Total]]","v":0},{"$f":"Dataset[[#This Row],[2027/28 Reduction]]+Dataset[[#This Row],[2027/28 From - Total]]","v":0},{"$f":"Dataset[[#This Row],[2024/25 Reduction]]","v":0},{"$f":"SUM(Dataset[[#This Row],[2025/26 Reduction]],Dataset[[#This Row],[2025/26 From - Total]],Dataset[[#This Row],[2025/26 To - Total]])","v":0},{"$f":"SUM(Dataset[[#This Row],[2026/27 Reduction]],Dataset[[#This Row],[2026/27 From - Total]],Dataset[[#This Row],[2026/27 To - Total]])","v":0},{"$f":"SUM(Dataset[[#This Row],[2027/28 Reduction]],Dataset[[#This Row],[2027/28 From - Total]],Dataset[[#This Row],[2027/28 To - Total]])","v":0},{"$f":"Dataset[[#This Row],[2024/25 Baseline]]+Dataset[[#This Row],[2024/25 Total change]]","v":0},{"$f":"Dataset[[#This Row],[2025/26 Baseline]]+Dataset[[#This Row],[2025/26 Total change]]","v":0},{"$f":"Dataset[[#This Row],[2026/27 Baseline]]+Dataset[[#This Row],[2026/27 Total change]]","v":0},{"$f":"Dataset[[#This Row],[2027/28 Baseline]]+Dataset[[#This Row],[2027/28 Total change]]","v":0}]
["NAT|Non-transfer item","40|Software and other intangible assets","2025_26","MTEC2025",40,1,1,51325,53,"40","01","01","051325","000053","40|01|01|000053","02","03","17","62","66","02|03|17|62|66","National","Transport","Administration","Ministry","Non-transfer item","Capital","Payments for capital assets","Software and other intangible assets","Software and other intangible assets","Software and other intangible assets","Economic development","Economic regulation and infrastructure","NAT",0,0,0,0,0,0,null,0,0,0,0,null,null,null,null,null,null,null,null,null,null,null,null,null,null,null,null,null,null,null,null,null,null,null,null,null,null,null,null,null,null,null,null,null,null,{"$f":"Dataset[[#This Row],[2025/26 From - Spending review Topic 1]]+Dataset[[#This Row],[2025/26 From - Spending review Topic 2]]+Dataset[[#This Row],[2025/26 From - Spending review Topic 3]]+Dataset[[#This Row],[2025/26 From - Spending review Topic 4]]+Dataset[[#This Row],[2025/26 From - Other reallocations]]","v":0},{"$f":"Dataset[[#This Row],[2026/27 From - Spending review Topic 1]]+Dataset[[#This Row],[2026/27 From - Spending review Topic 2]]+Dataset[[#This Row],[2026/27 From - Spending review Topic 3]]+Dataset[[#This Row],[2026/27 From - Spending review Topic 4]]+Dataset[[#This Row],[2026/27 From - Other reallocations]]","v":0},{"$f":"Dataset[[#This Row],[2027/28 From - Spending review Topic 1]]+Dataset[[#This Row],[2027/28 From - Spending review Topic 2]]+Dataset[[#This Row],[2027/28 From - Spending review Topic 3]]+Dataset[[#This Row],[2027/28 From - Spending review Topic 4]]+Dataset[[#This Row],[2027/28 From - Other reallocations]]","v":0},{"$f":"Dataset[[#This Row],[2025/26 To - Spending review Topic 1]]+Dataset[[#This Row],[2025/26 To - Spending review Topic 2]]+Dataset[[#This Row],[2025/26 To - Spending review Topic 3]]+Dataset[[#This Row],[2025/26 To - Spending review Topic 4]]+Dataset[[#This Row],[2025/26 To - Other reallocations]]","v":0},{"$f":"Dataset[[#This Row],[2026/27 To - Spending review Topic 1]]+Dataset[[#This Row],[2026/27 To - Spending review Topic 2]]+Dataset[[#This Row],[2026/27 To - Spending review Topic 3]]+Dataset[[#This Row],[2026/27 To - Spending review Topic 4]]+Dataset[[#This Row],[2026/27 To - Other reallocations]]","v":0},{"$f":"Dataset[[#This Row],[2027/28 To - Spending review Topic 1]]+Dataset[[#This Row],[2027/28 To - Spending review Topic 2]]+Dataset[[#This Row],[2027/28 To - Spending review Topic 3]]+Dataset[[#This Row],[2027/28 To - Spending review Topic 4]]+Dataset[[#This Row],[2027/28 To - Other reallocations]]","v":0},{"$f":"Dataset[[#This Row],[2025/26 Reduction]]+Dataset[[#This Row],[2025/26 From - Total]]","v":0},{"$f":"Dataset[[#This Row],[2026/27 Reduction]]+Dataset[[#This Row],[2026/27 From - Total]]","v":0},{"$f":"Dataset[[#This Row],[2027/28 Reduction]]+Dataset[[#This Row],[2027/28 From - Total]]","v":0},{"$f":"Dataset[[#This Row],[2024/25 Reduction]]","v":0},{"$f":"SUM(Dataset[[#This Row],[2025/26 Reduction]],Dataset[[#This Row],[2025/26 From - Total]],Dataset[[#This Row],[2025/26 To - Total]])","v":0},{"$f":"SUM(Dataset[[#This Row],[2026/27 Reduction]],Dataset[[#This Row],[2026/27 From - Total]],Dataset[[#This Row],[2026/27 To - Total]])","v":0},{"$f":"SUM(Dataset[[#This Row],[2027/28 Reduction]],Dataset[[#This Row],[2027/28 From - Total]],Dataset[[#This Row],[2027/28 To - Total]])","v":0},{"$f":"Dataset[[#This Row],[2024/25 Baseline]]+Dataset[[#This Row],[2024/25 Total change]]","v":0},{"$f":"Dataset[[#This Row],[2025/26 Baseline]]+Dataset[[#This Row],[2025/26 Total change]]","v":0},{"$f":"Dataset[[#This Row],[2026/27 Baseline]]+Dataset[[#This Row],[2026/27 Total change]]","v":0},{"$f":"Dataset[[#This Row],[2027/28 Baseline]]+Dataset[[#This Row],[2027/28 Total change]]","v":0}]
["NAT|Thefts and losses","40|Payments for financial assets","2025_26","MTEC2025",40,1,1,51326,54,"40","01","01","051326","000054","40|01|01|000054","03","04","18","63","67","03|04|18|63|67","National","Transport","Administration","Ministry","Thefts and losses","Payments for financial assets","Payments for financial assets","Payments for financial assets","Payments for financial assets","Payments for financial assets","Economic development","Economic regulation and infrastructure","NAT",0,41,68,0,0,0,null,0,0,0,0,null,null,null,null,null,null,null,null,null,null,null,null,null,null,null,null,null,null,null,null,null,null,null,null,null,null,null,null,null,null,null,null,null,null,{"$f":"Dataset[[#This Row],[2025/26 From - Spending review Topic 1]]+Dataset[[#This Row],[2025/26 From - Spending review Topic 2]]+Dataset[[#This Row],[2025/26 From - Spending review Topic 3]]+Dataset[[#This Row],[2025/26 From - Spending review Topic 4]]+Dataset[[#This Row],[2025/26 From - Other reallocations]]","v":0},{"$f":"Dataset[[#This Row],[2026/27 From - Spending review Topic 1]]+Dataset[[#This Row],[2026/27 From - Spending review Topic 2]]+Dataset[[#This Row],[2026/27 From - Spending review Topic 3]]+Dataset[[#This Row],[2026/27 From - Spending review Topic 4]]+Dataset[[#This Row],[2026/27 From - Other reallocations]]","v":0},{"$f":"Dataset[[#This Row],[2027/28 From - Spending review Topic 1]]+Dataset[[#This Row],[2027/28 From - Spending review Topic 2]]+Dataset[[#This Row],[2027/28 From - Spending review Topic 3]]+Dataset[[#This Row],[2027/28 From - Spending review Topic 4]]+Dataset[[#This Row],[2027/28 From - Other reallocations]]","v":0},{"$f":"Dataset[[#This Row],[2025/26 To - Spending review Topic 1]]+Dataset[[#This Row],[2025/26 To - Spending review Topic 2]]+Dataset[[#This Row],[2025/26 To - Spending review Topic 3]]+Dataset[[#This Row],[2025/26 To - Spending review Topic 4]]+Dataset[[#This Row],[2025/26 To - Other reallocations]]","v":0},{"$f":"Dataset[[#This Row],[2026/27 To - Spending review Topic 1]]+Dataset[[#This Row],[2026/27 To - Spending review Topic 2]]+Dataset[[#This Row],[2026/27 To - Spending review Topic 3]]+Dataset[[#This Row],[2026/27 To - Spending review Topic 4]]+Dataset[[#This Row],[2026/27 To - Other reallocations]]","v":0},{"$f":"Dataset[[#This Row],[2027/28 To - Spending review Topic 1]]+Dataset[[#This Row],[2027/28 To - Spending review Topic 2]]+Dataset[[#This Row],[2027/28 To - Spending review Topic 3]]+Dataset[[#This Row],[2027/28 To - Spending review Topic 4]]+Dataset[[#This Row],[2027/28 To - Other reallocations]]","v":0},{"$f":"Dataset[[#This Row],[2025/26 Reduction]]+Dataset[[#This Row],[2025/26 From - Total]]","v":0},{"$f":"Dataset[[#This Row],[2026/27 Reduction]]+Dataset[[#This Row],[2026/27 From - Total]]","v":0},{"$f":"Dataset[[#This Row],[2027/28 Reduction]]+Dataset[[#This Row],[2027/28 From - Total]]","v":0},{"$f":"Dataset[[#This Row],[2024/25 Reduction]]","v":0},{"$f":"SUM(Dataset[[#This Row],[2025/26 Reduction]],Dataset[[#This Row],[2025/26 From - Total]],Dataset[[#This Row],[2025/26 To - Total]])","v":0},{"$f":"SUM(Dataset[[#This Row],[2026/27 Reduction]],Dataset[[#This Row],[2026/27 From - Total]],Dataset[[#This Row],[2026/27 To - Total]])","v":0},{"$f":"SUM(Dataset[[#This Row],[2027/28 Reduction]],Dataset[[#This Row],[2027/28 From - Total]],Dataset[[#This Row],[2027/28 To - Total]])","v":0},{"$f":"Dataset[[#This Row],[2024/25 Baseline]]+Dataset[[#This Row],[2024/25 Total change]]","v":0},{"$f":"Dataset[[#This Row],[2025/26 Baseline]]+Dataset[[#This Row],[2025/26 Total change]]","v":0},{"$f":"Dataset[[#This Row],[2026/27 Baseline]]+Dataset[[#This Row],[2026/27 Total change]]","v":0},{"$f":"Dataset[[#This Row],[2027/28 Baseline]]+Dataset[[#This Row],[2027/28 Total change]]","v":0}]
["NAT|Non-transfer item","40|Salaries and wages","2025_26","MTEC2025",40,1,2,51327,55,"40","01","02","051327","000055","40|01|02|000055","01","01","01","01","01","01|01|01|01|01","National","Transport","Administration","Management","Non-transfer item","Current","Current payments","Compensation of employees","Salaries and wages","Salaries and wages","Economic development","Economic regulation and infrastructure","NAT",38889,43675,53336,64143,64143,64143,57585,67063,70067,73277,76591,null,null,null,null,null,null,null,null,null,null,null,null,null,null,null,null,null,null,null,null,null,null,null,null,null,null,null,null,null,null,null,null,null,null,{"$f":"Dataset[[#This Row],[2025/26 From - Spending review Topic 1]]+Dataset[[#This Row],[2025/26 From - Spending review Topic 2]]+Dataset[[#This Row],[2025/26 From - Spending review Topic 3]]+Dataset[[#This Row],[2025/26 From - Spending review Topic 4]]+Dataset[[#This Row],[2025/26 From - Other reallocations]]","v":0},{"$f":"Dataset[[#This Row],[2026/27 From - Spending review Topic 1]]+Dataset[[#This Row],[2026/27 From - Spending review Topic 2]]+Dataset[[#This Row],[2026/27 From - Spending review Topic 3]]+Dataset[[#This Row],[2026/27 From - Spending review Topic 4]]+Dataset[[#This Row],[2026/27 From - Other reallocations]]","v":0},{"$f":"Dataset[[#This Row],[2027/28 From - Spending review Topic 1]]+Dataset[[#This Row],[2027/28 From - Spending review Topic 2]]+Dataset[[#This Row],[2027/28 From - Spending review Topic 3]]+Dataset[[#This Row],[2027/28 From - Spending review Topic 4]]+Dataset[[#This Row],[2027/28 From - Other reallocations]]","v":0},{"$f":"Dataset[[#This Row],[2025/26 To - Spending review Topic 1]]+Dataset[[#This Row],[2025/26 To - Spending review Topic 2]]+Dataset[[#This Row],[2025/26 To - Spending review Topic 3]]+Dataset[[#This Row],[2025/26 To - Spending review Topic 4]]+Dataset[[#This Row],[2025/26 To - Other reallocations]]","v":0},{"$f":"Dataset[[#This Row],[2026/27 To - Spending review Topic 1]]+Dataset[[#This Row],[2026/27 To - Spending review Topic 2]]+Dataset[[#This Row],[2026/27 To - Spending review Topic 3]]+Dataset[[#This Row],[2026/27 To - Spending review Topic 4]]+Dataset[[#This Row],[2026/27 To - Other reallocations]]","v":0},{"$f":"Dataset[[#This Row],[2027/28 To - Spending review Topic 1]]+Dataset[[#This Row],[2027/28 To - Spending review Topic 2]]+Dataset[[#This Row],[2027/28 To - Spending review Topic 3]]+Dataset[[#This Row],[2027/28 To - Spending review Topic 4]]+Dataset[[#This Row],[2027/28 To - Other reallocations]]","v":0},{"$f":"Dataset[[#This Row],[2025/26 Reduction]]+Dataset[[#This Row],[2025/26 From - Total]]","v":0},{"$f":"Dataset[[#This Row],[2026/27 Reduction]]+Dataset[[#This Row],[2026/27 From - Total]]","v":0},{"$f":"Dataset[[#This Row],[2027/28 Reduction]]+Dataset[[#This Row],[2027/28 From - Total]]","v":0},{"$f":"Dataset[[#This Row],[2024/25 Reduction]]","v":0},{"$f":"SUM(Dataset[[#This Row],[2025/26 Reduction]],Dataset[[#This Row],[2025/26 From - Total]],Dataset[[#This Row],[2025/26 To - Total]])","v":0},{"$f":"SUM(Dataset[[#This Row],[2026/27 Reduction]],Dataset[[#This Row],[2026/27 From - Total]],Dataset[[#This Row],[2026/27 To - Total]])","v":0},{"$f":"SUM(Dataset[[#This Row],[2027/28 Reduction]],Dataset[[#This Row],[2027/28 From - Total]],Dataset[[#This Row],[2027/28 To - Total]])","v":0},{"$f":"Dataset[[#This Row],[2024/25 Baseline]]+Dataset[[#This Row],[2024/25 Total change]]","v":67063},{"$f":"Dataset[[#This Row],[2025/26 Baseline]]+Dataset[[#This Row],[2025/26 Total change]]","v":70067},{"$f":"Dataset[[#This Row],[2026/27 Baseline]]+Dataset[[#This Row],[2026/27 Total change]]","v":73277},{"$f":"Dataset[[#This Row],[2027/28 Baseline]]+Dataset[[#This Row],[2027/28 Total change]]","v":76591}]
["NAT|Non-transfer item","40|Social contributions","2025_26","MTEC2025",40,1,2,51328,56,"40","01","02","051328","000056","40|01|02|000056","01","01","01","02","02","01|01|01|02|02","National","Transport","Administration","Management","Non-transfer item","Current","Current payments","Compensation of employees","Social contributions","Social contributions","Economic development","Economic regulation and infrastructure","NAT",5259,5640,7032,7100,7100,7100,7458,7380,7711,8064,8429,null,null,null,null,null,null,null,null,null,null,null,null,null,null,null,null,null,null,null,null,null,null,null,null,null,null,null,null,null,null,null,null,null,null,{"$f":"Dataset[[#This Row],[2025/26 From - Spending review Topic 1]]+Dataset[[#This Row],[2025/26 From - Spending review Topic 2]]+Dataset[[#This Row],[2025/26 From - Spending review Topic 3]]+Dataset[[#This Row],[2025/26 From - Spending review Topic 4]]+Dataset[[#This Row],[2025/26 From - Other reallocations]]","v":0},{"$f":"Dataset[[#This Row],[2026/27 From - Spending review Topic 1]]+Dataset[[#This Row],[2026/27 From - Spending review Topic 2]]+Dataset[[#This Row],[2026/27 From - Spending review Topic 3]]+Dataset[[#This Row],[2026/27 From - Spending review Topic 4]]+Dataset[[#This Row],[2026/27 From - Other reallocations]]","v":0},{"$f":"Dataset[[#This Row],[2027/28 From - Spending review Topic 1]]+Dataset[[#This Row],[2027/28 From - Spending review Topic 2]]+Dataset[[#This Row],[2027/28 From - Spending review Topic 3]]+Dataset[[#This Row],[2027/28 From - Spending review Topic 4]]+Dataset[[#This Row],[2027/28 From - Other reallocations]]","v":0},{"$f":"Dataset[[#This Row],[2025/26 To - Spending review Topic 1]]+Dataset[[#This Row],[2025/26 To - Spending review Topic 2]]+Dataset[[#This Row],[2025/26 To - Spending review Topic 3]]+Dataset[[#This Row],[2025/26 To - Spending review Topic 4]]+Dataset[[#This Row],[2025/26 To - Other reallocations]]","v":0},{"$f":"Dataset[[#This Row],[2026/27 To - Spending review Topic 1]]+Dataset[[#This Row],[2026/27 To - Spending review Topic 2]]+Dataset[[#This Row],[2026/27 To - Spending review Topic 3]]+Dataset[[#This Row],[2026/27 To - Spending review Topic 4]]+Dataset[[#This Row],[2026/27 To - Other reallocations]]","v":0},{"$f":"Dataset[[#This Row],[2027/28 To - Spending review Topic 1]]+Dataset[[#This Row],[2027/28 To - Spending review Topic 2]]+Dataset[[#This Row],[2027/28 To - Spending review Topic 3]]+Dataset[[#This Row],[2027/28 To - Spending review Topic 4]]+Dataset[[#This Row],[2027/28 To - Other reallocations]]","v":0},{"$f":"Dataset[[#This Row],[2025/26 Reduction]]+Dataset[[#This Row],[2025/26 From - Total]]","v":0},{"$f":"Dataset[[#This Row],[2026/27 Reduction]]+Dataset[[#This Row],[2026/27 From - Total]]","v":0},{"$f":"Dataset[[#This Row],[2027/28 Reduction]]+Dataset[[#This Row],[2027/28 From - Total]]","v":0},{"$f":"Dataset[[#This Row],[2024/25 Reduction]]","v":0},{"$f":"SUM(Dataset[[#This Row],[2025/26 Reduction]],Dataset[[#This Row],[2025/26 From - Total]],Dataset[[#This Row],[2025/26 To - Total]])","v":0},{"$f":"SUM(Dataset[[#This Row],[2026/27 Reduction]],Dataset[[#This Row],[2026/27 From - Total]],Dataset[[#This Row],[2026/27 To - Total]])","v":0},{"$f":"SUM(Dataset[[#This Row],[2027/28 Reduction]],Dataset[[#This Row],[2027/28 From - Total]],Dataset[[#This Row],[2027/28 To - Total]])","v":0},{"$f":"Dataset[[#This Row],[2024/25 Baseline]]+Dataset[[#This Row],[2024/25 Total change]]","v":7380},{"$f":"Dataset[[#This Row],[2025/26 Baseline]]+Dataset[[#This Row],[2025/26 Total change]]","v":7711},{"$f":"Dataset[[#This Row],[2026/27 Baseline]]+Dataset[[#This Row],[2026/27 Total change]]","v":8064},{"$f":"Dataset[[#This Row],[2027/28 Baseline]]+Dataset[[#This Row],[2027/28 Total change]]","v":8429}]
["NAT|Non-transfer item","40|Administrative fees","2025_26","MTEC2025",40,1,2,51329,57,"40","01","02","051329","000057","40|01|02|000057","01","01","02","03","03","01|01|02|03|03","National","Transport","Administration","Management","Non-transfer item","Current","Current payments","Goods and services","Administrative fees","Administrative fees","Economic development","Economic regulation and infrastructure","NAT",1,4,4,10,10,10,-1,3,3,4,4,null,null,null,null,null,null,null,null,null,null,null,null,null,null,null,null,null,null,null,null,null,null,null,null,null,null,null,null,null,null,null,null,null,null,{"$f":"Dataset[[#This Row],[2025/26 From - Spending review Topic 1]]+Dataset[[#This Row],[2025/26 From - Spending review Topic 2]]+Dataset[[#This Row],[2025/26 From - Spending review Topic 3]]+Dataset[[#This Row],[2025/26 From - Spending review Topic 4]]+Dataset[[#This Row],[2025/26 From - Other reallocations]]","v":0},{"$f":"Dataset[[#This Row],[2026/27 From - Spending review Topic 1]]+Dataset[[#This Row],[2026/27 From - Spending review Topic 2]]+Dataset[[#This Row],[2026/27 From - Spending review Topic 3]]+Dataset[[#This Row],[2026/27 From - Spending review Topic 4]]+Dataset[[#This Row],[2026/27 From - Other reallocations]]","v":0},{"$f":"Dataset[[#This Row],[2027/28 From - Spending review Topic 1]]+Dataset[[#This Row],[2027/28 From - Spending review Topic 2]]+Dataset[[#This Row],[2027/28 From - Spending review Topic 3]]+Dataset[[#This Row],[2027/28 From - Spending review Topic 4]]+Dataset[[#This Row],[2027/28 From - Other reallocations]]","v":0},{"$f":"Dataset[[#This Row],[2025/26 To - Spending review Topic 1]]+Dataset[[#This Row],[2025/26 To - Spending review Topic 2]]+Dataset[[#This Row],[2025/26 To - Spending review Topic 3]]+Dataset[[#This Row],[2025/26 To - Spending review Topic 4]]+Dataset[[#This Row],[2025/26 To - Other reallocations]]","v":0},{"$f":"Dataset[[#This Row],[2026/27 To - Spending review Topic 1]]+Dataset[[#This Row],[2026/27 To - Spending review Topic 2]]+Dataset[[#This Row],[2026/27 To - Spending review Topic 3]]+Dataset[[#This Row],[2026/27 To - Spending review Topic 4]]+Dataset[[#This Row],[2026/27 To - Other reallocations]]","v":0},{"$f":"Dataset[[#This Row],[2027/28 To - Spending review Topic 1]]+Dataset[[#This Row],[2027/28 To - Spending review Topic 2]]+Dataset[[#This Row],[2027/28 To - Spending review Topic 3]]+Dataset[[#This Row],[2027/28 To - Spending review Topic 4]]+Dataset[[#This Row],[2027/28 To - Other reallocations]]","v":0},{"$f":"Dataset[[#This Row],[2025/26 Reduction]]+Dataset[[#This Row],[2025/26 From - Total]]","v":0},{"$f":"Dataset[[#This Row],[2026/27 Reduction]]+Dataset[[#This Row],[2026/27 From - Total]]","v":0},{"$f":"Dataset[[#This Row],[2027/28 Reduction]]+Dataset[[#This Row],[2027/28 From - Total]]","v":0},{"$f":"Dataset[[#This Row],[2024/25 Reduction]]","v":0},{"$f":"SUM(Dataset[[#This Row],[2025/26 Reduction]],Dataset[[#This Row],[2025/26 From - Total]],Dataset[[#This Row],[2025/26 To - Total]])","v":0},{"$f":"SUM(Dataset[[#This Row],[2026/27 Reduction]],Dataset[[#This Row],[2026/27 From - Total]],Dataset[[#This Row],[2026/27 To - Total]])","v":0},{"$f":"SUM(Dataset[[#This Row],[2027/28 Reduction]],Dataset[[#This Row],[2027/28 From - Total]],Dataset[[#This Row],[2027/28 To - Total]])","v":0},{"$f":"Dataset[[#This Row],[2024/25 Baseline]]+Dataset[[#This Row],[2024/25 Total change]]","v":3},{"$f":"Dataset[[#This Row],[2025/26 Baseline]]+Dataset[[#This Row],[2025/26 Total change]]","v":3},{"$f":"Dataset[[#This Row],[2026/27 Baseline]]+Dataset[[#This Row],[2026/27 Total change]]","v":4},{"$f":"Dataset[[#This Row],[2027/28 Baseline]]+Dataset[[#This Row],[2027/28 Total change]]","v":4}]
["NAT|Non-transfer item","40|Advertising","2025_26","MTEC2025",40,1,2,51330,58,"40","01","02","051330","000058","40|01|02|000058","01","01","02","04","04","01|01|02|04|04","National","Transport","Administration","Management","Non-transfer item","Current","Current payments","Goods and services","Advertising","Advertising","Economic development","Economic regulation and infrastructure","NAT",109,0,333,1468,1568,1568,734,984,1127,1179,1232,null,null,null,null,null,null,null,null,null,null,null,null,null,null,null,null,null,null,null,null,null,null,null,null,null,null,null,null,null,null,null,null,null,null,{"$f":"Dataset[[#This Row],[2025/26 From - Spending review Topic 1]]+Dataset[[#This Row],[2025/26 From - Spending review Topic 2]]+Dataset[[#This Row],[2025/26 From - Spending review Topic 3]]+Dataset[[#This Row],[2025/26 From - Spending review Topic 4]]+Dataset[[#This Row],[2025/26 From - Other reallocations]]","v":0},{"$f":"Dataset[[#This Row],[2026/27 From - Spending review Topic 1]]+Dataset[[#This Row],[2026/27 From - Spending review Topic 2]]+Dataset[[#This Row],[2026/27 From - Spending review Topic 3]]+Dataset[[#This Row],[2026/27 From - Spending review Topic 4]]+Dataset[[#This Row],[2026/27 From - Other reallocations]]","v":0},{"$f":"Dataset[[#This Row],[2027/28 From - Spending review Topic 1]]+Dataset[[#This Row],[2027/28 From - Spending review Topic 2]]+Dataset[[#This Row],[2027/28 From - Spending review Topic 3]]+Dataset[[#This Row],[2027/28 From - Spending review Topic 4]]+Dataset[[#This Row],[2027/28 From - Other reallocations]]","v":0},{"$f":"Dataset[[#This Row],[2025/26 To - Spending review Topic 1]]+Dataset[[#This Row],[2025/26 To - Spending review Topic 2]]+Dataset[[#This Row],[2025/26 To - Spending review Topic 3]]+Dataset[[#This Row],[2025/26 To - Spending review Topic 4]]+Dataset[[#This Row],[2025/26 To - Other reallocations]]","v":0},{"$f":"Dataset[[#This Row],[2026/27 To - Spending review Topic 1]]+Dataset[[#This Row],[2026/27 To - Spending review Topic 2]]+Dataset[[#This Row],[2026/27 To - Spending review Topic 3]]+Dataset[[#This Row],[2026/27 To - Spending review Topic 4]]+Dataset[[#This Row],[2026/27 To - Other reallocations]]","v":0},{"$f":"Dataset[[#This Row],[2027/28 To - Spending review Topic 1]]+Dataset[[#This Row],[2027/28 To - Spending review Topic 2]]+Dataset[[#This Row],[2027/28 To - Spending review Topic 3]]+Dataset[[#This Row],[2027/28 To - Spending review Topic 4]]+Dataset[[#This Row],[2027/28 To - Other reallocations]]","v":0},{"$f":"Dataset[[#This Row],[2025/26 Reduction]]+Dataset[[#This Row],[2025/26 From - Total]]","v":0},{"$f":"Dataset[[#This Row],[2026/27 Reduction]]+Dataset[[#This Row],[2026/27 From - Total]]","v":0},{"$f":"Dataset[[#This Row],[2027/28 Reduction]]+Dataset[[#This Row],[2027/28 From - Total]]","v":0},{"$f":"Dataset[[#This Row],[2024/25 Reduction]]","v":0},{"$f":"SUM(Dataset[[#This Row],[2025/26 Reduction]],Dataset[[#This Row],[2025/26 From - Total]],Dataset[[#This Row],[2025/26 To - Total]])","v":0},{"$f":"SUM(Dataset[[#This Row],[2026/27 Reduction]],Dataset[[#This Row],[2026/27 From - Total]],Dataset[[#This Row],[2026/27 To - Total]])","v":0},{"$f":"SUM(Dataset[[#This Row],[2027/28 Reduction]],Dataset[[#This Row],[2027/28 From - Total]],Dataset[[#This Row],[2027/28 To - Total]])","v":0},{"$f":"Dataset[[#This Row],[2024/25 Baseline]]+Dataset[[#This Row],[2024/25 Total change]]","v":984},{"$f":"Dataset[[#This Row],[2025/26 Baseline]]+Dataset[[#This Row],[2025/26 Total change]]","v":1127},{"$f":"Dataset[[#This Row],[2026/27 Baseline]]+Dataset[[#This Row],[2026/27 Total change]]","v":1179},{"$f":"Dataset[[#This Row],[2027/28 Baseline]]+Dataset[[#This Row],[2027/28 Total change]]","v":1232}]
["NAT|Non-transfer item","40|Minor assets","2025_26","MTEC2025",40,1,2,51331,59,"40","01","02","051331","000059","40|01|02|000059","01","01","02","05","05","01|01|02|05|05","National","Transport","Administration","Management","Non-transfer item","Current","Current payments","Goods and services","Minor assets","Minor assets","Economic development","Economic regulation and infrastructure","NAT",45,50,71,120,120,120,104,115,132,138,144,null,null,null,null,null,null,null,null,null,null,null,null,null,null,null,null,null,null,null,null,null,null,null,null,null,null,null,null,null,null,null,null,null,null,{"$f":"Dataset[[#This Row],[2025/26 From - Spending review Topic 1]]+Dataset[[#This Row],[2025/26 From - Spending review Topic 2]]+Dataset[[#This Row],[2025/26 From - Spending review Topic 3]]+Dataset[[#This Row],[2025/26 From - Spending review Topic 4]]+Dataset[[#This Row],[2025/26 From - Other reallocations]]","v":0},{"$f":"Dataset[[#This Row],[2026/27 From - Spending review Topic 1]]+Dataset[[#This Row],[2026/27 From - Spending review Topic 2]]+Dataset[[#This Row],[2026/27 From - Spending review Topic 3]]+Dataset[[#This Row],[2026/27 From - Spending review Topic 4]]+Dataset[[#This Row],[2026/27 From - Other reallocations]]","v":0},{"$f":"Dataset[[#This Row],[2027/28 From - Spending review Topic 1]]+Dataset[[#This Row],[2027/28 From - Spending review Topic 2]]+Dataset[[#This Row],[2027/28 From - Spending review Topic 3]]+Dataset[[#This Row],[2027/28 From - Spending review Topic 4]]+Dataset[[#This Row],[2027/28 From - Other reallocations]]","v":0},{"$f":"Dataset[[#This Row],[2025/26 To - Spending review Topic 1]]+Dataset[[#This Row],[2025/26 To - Spending review Topic 2]]+Dataset[[#This Row],[2025/26 To - Spending review Topic 3]]+Dataset[[#This Row],[2025/26 To - Spending review Topic 4]]+Dataset[[#This Row],[2025/26 To - Other reallocations]]","v":0},{"$f":"Dataset[[#This Row],[2026/27 To - Spending review Topic 1]]+Dataset[[#This Row],[2026/27 To - Spending review Topic 2]]+Dataset[[#This Row],[2026/27 To - Spending review Topic 3]]+Dataset[[#This Row],[2026/27 To - Spending review Topic 4]]+Dataset[[#This Row],[2026/27 To - Other reallocations]]","v":0},{"$f":"Dataset[[#This Row],[2027/28 To - Spending review Topic 1]]+Dataset[[#This Row],[2027/28 To - Spending review Topic 2]]+Dataset[[#This Row],[2027/28 To - Spending review Topic 3]]+Dataset[[#This Row],[2027/28 To - Spending review Topic 4]]+Dataset[[#This Row],[2027/28 To - Other reallocations]]","v":0},{"$f":"Dataset[[#This Row],[2025/26 Reduction]]+Dataset[[#This Row],[2025/26 From - Total]]","v":0},{"$f":"Dataset[[#This Row],[2026/27 Reduction]]+Dataset[[#This Row],[2026/27 From - Total]]","v":0},{"$f":"Dataset[[#This Row],[2027/28 Reduction]]+Dataset[[#This Row],[2027/28 From - Total]]","v":0},{"$f":"Dataset[[#This Row],[2024/25 Reduction]]","v":0},{"$f":"SUM(Dataset[[#This Row],[2025/26 Reduction]],Dataset[[#This Row],[2025/26 From - Total]],Dataset[[#This Row],[2025/26 To - Total]])","v":0},{"$f":"SUM(Dataset[[#This Row],[2026/27 Reduction]],Dataset[[#This Row],[2026/27 From - Total]],Dataset[[#This Row],[2026/27 To - Total]])","v":0},{"$f":"SUM(Dataset[[#This Row],[2027/28 Reduction]],Dataset[[#This Row],[2027/28 From - Total]],Dataset[[#This Row],[2027/28 To - Total]])","v":0},{"$f":"Dataset[[#This Row],[2024/25 Baseline]]+Dataset[[#This Row],[2024/25 Total change]]","v":115},{"$f":"Dataset[[#This Row],[2025/26 Baseline]]+Dataset[[#This Row],[2025/26 Total change]]","v":132},{"$f":"Dataset[[#This Row],[2026/27 Baseline]]+Dataset[[#This Row],[2026/27 Total change]]","v":138},{"$f":"Dataset[[#This Row],[2027/28 Baseline]]+Dataset[[#This Row],[2027/28 Total change]]","v":144}]
["NAT|Non-transfer item","40|Audit costs: External","2025_26","MTEC2025",40,1,2,51332,60,"40","01","02","051332","000060","40|01|02|000060","01","01","02","06","06","01|01|02|06|06","National","Transport","Administration","Management","Non-transfer item","Current","Current payments","Goods and services","Audit costs: External","Audit costs: External","Economic development","Economic regulation and infrastructure","NAT",0,0,0,0,0,0,null,0,0,0,0,null,null,null,null,null,null,null,null,null,null,null,null,null,null,null,null,null,null,null,null,null,null,null,null,null,null,null,null,null,null,null,null,null,null,{"$f":"Dataset[[#This Row],[2025/26 From - Spending review Topic 1]]+Dataset[[#This Row],[2025/26 From - Spending review Topic 2]]+Dataset[[#This Row],[2025/26 From - Spending review Topic 3]]+Dataset[[#This Row],[2025/26 From - Spending review Topic 4]]+Dataset[[#This Row],[2025/26 From - Other reallocations]]","v":0},{"$f":"Dataset[[#This Row],[2026/27 From - Spending review Topic 1]]+Dataset[[#This Row],[2026/27 From - Spending review Topic 2]]+Dataset[[#This Row],[2026/27 From - Spending review Topic 3]]+Dataset[[#This Row],[2026/27 From - Spending review Topic 4]]+Dataset[[#This Row],[2026/27 From - Other reallocations]]","v":0},{"$f":"Dataset[[#This Row],[2027/28 From - Spending review Topic 1]]+Dataset[[#This Row],[2027/28 From - Spending review Topic 2]]+Dataset[[#This Row],[2027/28 From - Spending review Topic 3]]+Dataset[[#This Row],[2027/28 From - Spending review Topic 4]]+Dataset[[#This Row],[2027/28 From - Other reallocations]]","v":0},{"$f":"Dataset[[#This Row],[2025/26 To - Spending review Topic 1]]+Dataset[[#This Row],[2025/26 To - Spending review Topic 2]]+Dataset[[#This Row],[2025/26 To - Spending review Topic 3]]+Dataset[[#This Row],[2025/26 To - Spending review Topic 4]]+Dataset[[#This Row],[2025/26 To - Other reallocations]]","v":0},{"$f":"Dataset[[#This Row],[2026/27 To - Spending review Topic 1]]+Dataset[[#This Row],[2026/27 To - Spending review Topic 2]]+Dataset[[#This Row],[2026/27 To - Spending review Topic 3]]+Dataset[[#This Row],[2026/27 To - Spending review Topic 4]]+Dataset[[#This Row],[2026/27 To - Other reallocations]]","v":0},{"$f":"Dataset[[#This Row],[2027/28 To - Spending review Topic 1]]+Dataset[[#This Row],[2027/28 To - Spending review Topic 2]]+Dataset[[#This Row],[2027/28 To - Spending review Topic 3]]+Dataset[[#This Row],[2027/28 To - Spending review Topic 4]]+Dataset[[#This Row],[2027/28 To - Other reallocations]]","v":0},{"$f":"Dataset[[#This Row],[2025/26 Reduction]]+Dataset[[#This Row],[2025/26 From - Total]]","v":0},{"$f":"Dataset[[#This Row],[2026/27 Reduction]]+Dataset[[#This Row],[2026/27 From - Total]]","v":0},{"$f":"Dataset[[#This Row],[2027/28 Reduction]]+Dataset[[#This Row],[2027/28 From - Total]]","v":0},{"$f":"Dataset[[#This Row],[2024/25 Reduction]]","v":0},{"$f":"SUM(Dataset[[#This Row],[2025/26 Reduction]],Dataset[[#This Row],[2025/26 From - Total]],Dataset[[#This Row],[2025/26 To - Total]])","v":0},{"$f":"SUM(Dataset[[#This Row],[2026/27 Reduction]],Dataset[[#This Row],[2026/27 From - Total]],Dataset[[#This Row],[2026/27 To - Total]])","v":0},{"$f":"SUM(Dataset[[#This Row],[2027/28 Reduction]],Dataset[[#This Row],[2027/28 From - Total]],Dataset[[#This Row],[2027/28 To - Total]])","v":0},{"$f":"Dataset[[#This Row],[2024/25 Baseline]]+Dataset[[#This Row],[2024/25 Total change]]","v":0},{"$f":"Dataset[[#This Row],[2025/26 Baseline]]+Dataset[[#This Row],[2025/26 Total change]]","v":0},{"$f":"Dataset[[#This Row],[2026/27 Baseline]]+Dataset[[#This Row],[2026/27 Total change]]","v":0},{"$f":"Dataset[[#This Row],[2027/28 Baseline]]+Dataset[[#This Row],[2027/28 Total change]]","v":0}]
["NAT|Non-transfer item","40|Bursaries: Employees","2025_26","MTEC2025",40,1,2,51333,61,"40","01","02","051333","000061","40|01|02|000061","01","01","02","07","07","01|01|02|07|07","National","Transport","Administration","Management","Non-transfer item","Current","Current payments","Goods and services","Bursaries: Employees","Bursaries: Employees","Economic development","Economic regulation and infrastructure","NAT",0,0,0,0,0,0,null,0,0,0,0,null,null,null,null,null,null,null,null,null,null,null,null,null,null,null,null,null,null,null,null,null,null,null,null,null,null,null,null,null,null,null,null,null,null,{"$f":"Dataset[[#This Row],[2025/26 From - Spending review Topic 1]]+Dataset[[#This Row],[2025/26 From - Spending review Topic 2]]+Dataset[[#This Row],[2025/26 From - Spending review Topic 3]]+Dataset[[#This Row],[2025/26 From - Spending review Topic 4]]+Dataset[[#This Row],[2025/26 From - Other reallocations]]","v":0},{"$f":"Dataset[[#This Row],[2026/27 From - Spending review Topic 1]]+Dataset[[#This Row],[2026/27 From - Spending review Topic 2]]+Dataset[[#This Row],[2026/27 From - Spending review Topic 3]]+Dataset[[#This Row],[2026/27 From - Spending review Topic 4]]+Dataset[[#This Row],[2026/27 From - Other reallocations]]","v":0},{"$f":"Dataset[[#This Row],[2027/28 From - Spending review Topic 1]]+Dataset[[#This Row],[2027/28 From - Spending review Topic 2]]+Dataset[[#This Row],[2027/28 From - Spending review Topic 3]]+Dataset[[#This Row],[2027/28 From - Spending review Topic 4]]+Dataset[[#This Row],[2027/28 From - Other reallocations]]","v":0},{"$f":"Dataset[[#This Row],[2025/26 To - Spending review Topic 1]]+Dataset[[#This Row],[2025/26 To - Spending review Topic 2]]+Dataset[[#This Row],[2025/26 To - Spending review Topic 3]]+Dataset[[#This Row],[2025/26 To - Spending review Topic 4]]+Dataset[[#This Row],[2025/26 To - Other reallocations]]","v":0},{"$f":"Dataset[[#This Row],[2026/27 To - Spending review Topic 1]]+Dataset[[#This Row],[2026/27 To - Spending review Topic 2]]+Dataset[[#This Row],[2026/27 To - Spending review Topic 3]]+Dataset[[#This Row],[2026/27 To - Spending review Topic 4]]+Dataset[[#This Row],[2026/27 To - Other reallocations]]","v":0},{"$f":"Dataset[[#This Row],[2027/28 To - Spending review Topic 1]]+Dataset[[#This Row],[2027/28 To - Spending review Topic 2]]+Dataset[[#This Row],[2027/28 To - Spending review Topic 3]]+Dataset[[#This Row],[2027/28 To - Spending review Topic 4]]+Dataset[[#This Row],[2027/28 To - Other reallocations]]","v":0},{"$f":"Dataset[[#This Row],[2025/26 Reduction]]+Dataset[[#This Row],[2025/26 From - Total]]","v":0},{"$f":"Dataset[[#This Row],[2026/27 Reduction]]+Dataset[[#This Row],[2026/27 From - Total]]","v":0},{"$f":"Dataset[[#This Row],[2027/28 Reduction]]+Dataset[[#This Row],[2027/28 From - Total]]","v":0},{"$f":"Dataset[[#This Row],[2024/25 Reduction]]","v":0},{"$f":"SUM(Dataset[[#This Row],[2025/26 Reduction]],Dataset[[#This Row],[2025/26 From - Total]],Dataset[[#This Row],[2025/26 To - Total]])","v":0},{"$f":"SUM(Dataset[[#This Row],[2026/27 Reduction]],Dataset[[#This Row],[2026/27 From - Total]],Dataset[[#This Row],[2026/27 To - Total]])","v":0},{"$f":"SUM(Dataset[[#This Row],[2027/28 Reduction]],Dataset[[#This Row],[2027/28 From - Total]],Dataset[[#This Row],[2027/28 To - Total]])","v":0},{"$f":"Dataset[[#This Row],[2024/25 Baseline]]+Dataset[[#This Row],[2024/25 Total change]]","v":0},{"$f":"Dataset[[#This Row],[2025/26 Baseline]]+Dataset[[#This Row],[2025/26 Total change]]","v":0},{"$f":"Dataset[[#This Row],[2026/27 Baseline]]+Dataset[[#This Row],[2026/27 Total change]]","v":0},{"$f":"Dataset[[#This Row],[2027/28 Baseline]]+Dataset[[#This Row],[2027/28 Total change]]","v":0}]
["NAT|Non-transfer item","40|Catering: Departmental activities","2025_26","MTEC2025",40,1,2,51334,62,"40","01","02","051334","000062","40|01|02|000062","01","01","02","08","08","01|01|02|08|08","National","Transport","Administration","Management","Non-transfer item","Current","Current payments","Goods and services","Catering: Departmental activities","Catering: Departmental activities","Economic development","Economic regulation and infrastructure","NAT",4,39,222,411,411,411,108,335,384,401,419,null,null,null,null,null,null,null,null,null,null,null,null,null,null,null,null,null,null,null,null,null,null,null,null,null,null,null,null,null,null,null,null,null,null,{"$f":"Dataset[[#This Row],[2025/26 From - Spending review Topic 1]]+Dataset[[#This Row],[2025/26 From - Spending review Topic 2]]+Dataset[[#This Row],[2025/26 From - Spending review Topic 3]]+Dataset[[#This Row],[2025/26 From - Spending review Topic 4]]+Dataset[[#This Row],[2025/26 From - Other reallocations]]","v":0},{"$f":"Dataset[[#This Row],[2026/27 From - Spending review Topic 1]]+Dataset[[#This Row],[2026/27 From - Spending review Topic 2]]+Dataset[[#This Row],[2026/27 From - Spending review Topic 3]]+Dataset[[#This Row],[2026/27 From - Spending review Topic 4]]+Dataset[[#This Row],[2026/27 From - Other reallocations]]","v":0},{"$f":"Dataset[[#This Row],[2027/28 From - Spending review Topic 1]]+Dataset[[#This Row],[2027/28 From - Spending review Topic 2]]+Dataset[[#This Row],[2027/28 From - Spending review Topic 3]]+Dataset[[#This Row],[2027/28 From - Spending review Topic 4]]+Dataset[[#This Row],[2027/28 From - Other reallocations]]","v":0},{"$f":"Dataset[[#This Row],[2025/26 To - Spending review Topic 1]]+Dataset[[#This Row],[2025/26 To - Spending review Topic 2]]+Dataset[[#This Row],[2025/26 To - Spending review Topic 3]]+Dataset[[#This Row],[2025/26 To - Spending review Topic 4]]+Dataset[[#This Row],[2025/26 To - Other reallocations]]","v":0},{"$f":"Dataset[[#This Row],[2026/27 To - Spending review Topic 1]]+Dataset[[#This Row],[2026/27 To - Spending review Topic 2]]+Dataset[[#This Row],[2026/27 To - Spending review Topic 3]]+Dataset[[#This Row],[2026/27 To - Spending review Topic 4]]+Dataset[[#This Row],[2026/27 To - Other reallocations]]","v":0},{"$f":"Dataset[[#This Row],[2027/28 To - Spending review Topic 1]]+Dataset[[#This Row],[2027/28 To - Spending review Topic 2]]+Dataset[[#This Row],[2027/28 To - Spending review Topic 3]]+Dataset[[#This Row],[2027/28 To - Spending review Topic 4]]+Dataset[[#This Row],[2027/28 To - Other reallocations]]","v":0},{"$f":"Dataset[[#This Row],[2025/26 Reduction]]+Dataset[[#This Row],[2025/26 From - Total]]","v":0},{"$f":"Dataset[[#This Row],[2026/27 Reduction]]+Dataset[[#This Row],[2026/27 From - Total]]","v":0},{"$f":"Dataset[[#This Row],[2027/28 Reduction]]+Dataset[[#This Row],[2027/28 From - Total]]","v":0},{"$f":"Dataset[[#This Row],[2024/25 Reduction]]","v":0},{"$f":"SUM(Dataset[[#This Row],[2025/26 Reduction]],Dataset[[#This Row],[2025/26 From - Total]],Dataset[[#This Row],[2025/26 To - Total]])","v":0},{"$f":"SUM(Dataset[[#This Row],[2026/27 Reduction]],Dataset[[#This Row],[2026/27 From - Total]],Dataset[[#This Row],[2026/27 To - Total]])","v":0},{"$f":"SUM(Dataset[[#This Row],[2027/28 Reduction]],Dataset[[#This Row],[2027/28 From - Total]],Dataset[[#This Row],[2027/28 To - Total]])","v":0},{"$f":"Dataset[[#This Row],[2024/25 Baseline]]+Dataset[[#This Row],[2024/25 Total change]]","v":335},{"$f":"Dataset[[#This Row],[2025/26 Baseline]]+Dataset[[#This Row],[2025/26 Total change]]","v":384},{"$f":"Dataset[[#This Row],[2026/27 Baseline]]+Dataset[[#This Row],[2026/27 Total change]]","v":401},{"$f":"Dataset[[#This Row],[2027/28 Baseline]]+Dataset[[#This Row],[2027/28 Total change]]","v":419}]
["NAT|Non-transfer item","40|Communication (G&S)","2025_26","MTEC2025",40,1,2,51335,63,"40","01","02","051335","000063","40|01|02|000063","01","01","02","09","09","01|01|02|09|09","National","Transport","Administration","Management","Non-transfer item","Current","Current payments","Goods and services","Communication (G&S)","Communication (G&S)","Economic development","Economic regulation and infrastructure","NAT",728,870,1079,1256,1256,1256,1356,1589,1820,1903,1989,null,null,null,null,null,null,null,null,null,null,null,null,null,null,null,null,null,null,null,null,null,null,null,null,null,null,null,null,null,null,null,null,null,null,{"$f":"Dataset[[#This Row],[2025/26 From - Spending review Topic 1]]+Dataset[[#This Row],[2025/26 From - Spending review Topic 2]]+Dataset[[#This Row],[2025/26 From - Spending review Topic 3]]+Dataset[[#This Row],[2025/26 From - Spending review Topic 4]]+Dataset[[#This Row],[2025/26 From - Other reallocations]]","v":0},{"$f":"Dataset[[#This Row],[2026/27 From - Spending review Topic 1]]+Dataset[[#This Row],[2026/27 From - Spending review Topic 2]]+Dataset[[#This Row],[2026/27 From - Spending review Topic 3]]+Dataset[[#This Row],[2026/27 From - Spending review Topic 4]]+Dataset[[#This Row],[2026/27 From - Other reallocations]]","v":0},{"$f":"Dataset[[#This Row],[2027/28 From - Spending review Topic 1]]+Dataset[[#This Row],[2027/28 From - Spending review Topic 2]]+Dataset[[#This Row],[2027/28 From - Spending review Topic 3]]+Dataset[[#This Row],[2027/28 From - Spending review Topic 4]]+Dataset[[#This Row],[2027/28 From - Other reallocations]]","v":0},{"$f":"Dataset[[#This Row],[2025/26 To - Spending review Topic 1]]+Dataset[[#This Row],[2025/26 To - Spending review Topic 2]]+Dataset[[#This Row],[2025/26 To - Spending review Topic 3]]+Dataset[[#This Row],[2025/26 To - Spending review Topic 4]]+Dataset[[#This Row],[2025/26 To - Other reallocations]]","v":0},{"$f":"Dataset[[#This Row],[2026/27 To - Spending review Topic 1]]+Dataset[[#This Row],[2026/27 To - Spending review Topic 2]]+Dataset[[#This Row],[2026/27 To - Spending review Topic 3]]+Dataset[[#This Row],[2026/27 To - Spending review Topic 4]]+Dataset[[#This Row],[2026/27 To - Other reallocations]]","v":0},{"$f":"Dataset[[#This Row],[2027/28 To - Spending review Topic 1]]+Dataset[[#This Row],[2027/28 To - Spending review Topic 2]]+Dataset[[#This Row],[2027/28 To - Spending review Topic 3]]+Dataset[[#This Row],[2027/28 To - Spending review Topic 4]]+Dataset[[#This Row],[2027/28 To - Other reallocations]]","v":0},{"$f":"Dataset[[#This Row],[2025/26 Reduction]]+Dataset[[#This Row],[2025/26 From - Total]]","v":0},{"$f":"Dataset[[#This Row],[2026/27 Reduction]]+Dataset[[#This Row],[2026/27 From - Total]]","v":0},{"$f":"Dataset[[#This Row],[2027/28 Reduction]]+Dataset[[#This Row],[2027/28 From - Total]]","v":0},{"$f":"Dataset[[#This Row],[2024/25 Reduction]]","v":0},{"$f":"SUM(Dataset[[#This Row],[2025/26 Reduction]],Dataset[[#This Row],[2025/26 From - Total]],Dataset[[#This Row],[2025/26 To - Total]])","v":0},{"$f":"SUM(Dataset[[#This Row],[2026/27 Reduction]],Dataset[[#This Row],[2026/27 From - Total]],Dataset[[#This Row],[2026/27 To - Total]])","v":0},{"$f":"SUM(Dataset[[#This Row],[2027/28 Reduction]],Dataset[[#This Row],[2027/28 From - Total]],Dataset[[#This Row],[2027/28 To - Total]])","v":0},{"$f":"Dataset[[#This Row],[2024/25 Baseline]]+Dataset[[#This Row],[2024/25 Total change]]","v":1589},{"$f":"Dataset[[#This Row],[2025/26 Baseline]]+Dataset[[#This Row],[2025/26 Total change]]","v":1820},{"$f":"Dataset[[#This Row],[2026/27 Baseline]]+Dataset[[#This Row],[2026/27 Total change]]","v":1903},{"$f":"Dataset[[#This Row],[2027/28 Baseline]]+Dataset[[#This Row],[2027/28 Total change]]","v":1989}]
["NAT|Non-transfer item","40|Computer services","2025_26","MTEC2025",40,1,2,51336,64,"40","01","02","051336","000064","40|01|02|000064","01","01","02","10","10","01|01|02|10|10","National","Transport","Administration","Management","Non-transfer item","Current","Current payments","Goods and services","Computer services","Computer services","Economic development","Economic regulation and infrastructure","NAT",300,23,0,310,1681,1681,2,236,270,283,296,null,null,null,null,null,null,null,null,null,null,null,null,null,null,null,null,null,null,null,null,null,null,null,null,null,null,null,null,null,null,null,null,null,null,{"$f":"Dataset[[#This Row],[2025/26 From - Spending review Topic 1]]+Dataset[[#This Row],[2025/26 From - Spending review Topic 2]]+Dataset[[#This Row],[2025/26 From - Spending review Topic 3]]+Dataset[[#This Row],[2025/26 From - Spending review Topic 4]]+Dataset[[#This Row],[2025/26 From - Other reallocations]]","v":0},{"$f":"Dataset[[#This Row],[2026/27 From - Spending review Topic 1]]+Dataset[[#This Row],[2026/27 From - Spending review Topic 2]]+Dataset[[#This Row],[2026/27 From - Spending review Topic 3]]+Dataset[[#This Row],[2026/27 From - Spending review Topic 4]]+Dataset[[#This Row],[2026/27 From - Other reallocations]]","v":0},{"$f":"Dataset[[#This Row],[2027/28 From - Spending review Topic 1]]+Dataset[[#This Row],[2027/28 From - Spending review Topic 2]]+Dataset[[#This Row],[2027/28 From - Spending review Topic 3]]+Dataset[[#This Row],[2027/28 From - Spending review Topic 4]]+Dataset[[#This Row],[2027/28 From - Other reallocations]]","v":0},{"$f":"Dataset[[#This Row],[2025/26 To - Spending review Topic 1]]+Dataset[[#This Row],[2025/26 To - Spending review Topic 2]]+Dataset[[#This Row],[2025/26 To - Spending review Topic 3]]+Dataset[[#This Row],[2025/26 To - Spending review Topic 4]]+Dataset[[#This Row],[2025/26 To - Other reallocations]]","v":0},{"$f":"Dataset[[#This Row],[2026/27 To - Spending review Topic 1]]+Dataset[[#This Row],[2026/27 To - Spending review Topic 2]]+Dataset[[#This Row],[2026/27 To - Spending review Topic 3]]+Dataset[[#This Row],[2026/27 To - Spending review Topic 4]]+Dataset[[#This Row],[2026/27 To - Other reallocations]]","v":0},{"$f":"Dataset[[#This Row],[2027/28 To - Spending review Topic 1]]+Dataset[[#This Row],[2027/28 To - Spending review Topic 2]]+Dataset[[#This Row],[2027/28 To - Spending review Topic 3]]+Dataset[[#This Row],[2027/28 To - Spending review Topic 4]]+Dataset[[#This Row],[2027/28 To - Other reallocations]]","v":0},{"$f":"Dataset[[#This Row],[2025/26 Reduction]]+Dataset[[#This Row],[2025/26 From - Total]]","v":0},{"$f":"Dataset[[#This Row],[2026/27 Reduction]]+Dataset[[#This Row],[2026/27 From - Total]]","v":0},{"$f":"Dataset[[#This Row],[2027/28 Reduction]]+Dataset[[#This Row],[2027/28 From - Total]]","v":0},{"$f":"Dataset[[#This Row],[2024/25 Reduction]]","v":0},{"$f":"SUM(Dataset[[#This Row],[2025/26 Reduction]],Dataset[[#This Row],[2025/26 From - Total]],Dataset[[#This Row],[2025/26 To - Total]])","v":0},{"$f":"SUM(Dataset[[#This Row],[2026/27 Reduction]],Dataset[[#This Row],[2026/27 From - Total]],Dataset[[#This Row],[2026/27 To - Total]])","v":0},{"$f":"SUM(Dataset[[#This Row],[2027/28 Reduction]],Dataset[[#This Row],[2027/28 From - Total]],Dataset[[#This Row],[2027/28 To - Total]])","v":0},{"$f":"Dataset[[#This Row],[2024/25 Baseline]]+Dataset[[#This Row],[2024/25 Total change]]","v":236},{"$f":"Dataset[[#This Row],[2025/26 Baseline]]+Dataset[[#This Row],[2025/26 Total change]]","v":270},{"$f":"Dataset[[#This Row],[2026/27 Baseline]]+Dataset[[#This Row],[2026/27 Total change]]","v":283},{"$f":"Dataset[[#This Row],[2027/28 Baseline]]+Dataset[[#This Row],[2027/28 Total change]]","v":296}]
["NAT|Non-transfer item","40|Consultants: Business and advisory services","2025_26","MTEC2025",40,1,2,51337,65,"40","01","02","051337","000065","40|01|02|000065","01","01","02","11","11","01|01|02|11|11","National","Transport","Administration","Management","Non-transfer item","Current","Current payments","Goods and services","Consultants: Business and advisory services","Consultants: Business and advisory services","Economic development","Economic regulation and infrastructure","NAT",974,724,4737,7568,6097,6097,1597,10869,12450,13021,13610,null,null,null,null,null,null,null,null,null,null,null,null,null,null,null,null,null,null,null,null,null,null,null,null,null,null,null,null,null,null,null,null,null,null,{"$f":"Dataset[[#This Row],[2025/26 From - Spending review Topic 1]]+Dataset[[#This Row],[2025/26 From - Spending review Topic 2]]+Dataset[[#This Row],[2025/26 From - Spending review Topic 3]]+Dataset[[#This Row],[2025/26 From - Spending review Topic 4]]+Dataset[[#This Row],[2025/26 From - Other reallocations]]","v":0},{"$f":"Dataset[[#This Row],[2026/27 From - Spending review Topic 1]]+Dataset[[#This Row],[2026/27 From - Spending review Topic 2]]+Dataset[[#This Row],[2026/27 From - Spending review Topic 3]]+Dataset[[#This Row],[2026/27 From - Spending review Topic 4]]+Dataset[[#This Row],[2026/27 From - Other reallocations]]","v":0},{"$f":"Dataset[[#This Row],[2027/28 From - Spending review Topic 1]]+Dataset[[#This Row],[2027/28 From - Spending review Topic 2]]+Dataset[[#This Row],[2027/28 From - Spending review Topic 3]]+Dataset[[#This Row],[2027/28 From - Spending review Topic 4]]+Dataset[[#This Row],[2027/28 From - Other reallocations]]","v":0},{"$f":"Dataset[[#This Row],[2025/26 To - Spending review Topic 1]]+Dataset[[#This Row],[2025/26 To - Spending review Topic 2]]+Dataset[[#This Row],[2025/26 To - Spending review Topic 3]]+Dataset[[#This Row],[2025/26 To - Spending review Topic 4]]+Dataset[[#This Row],[2025/26 To - Other reallocations]]","v":0},{"$f":"Dataset[[#This Row],[2026/27 To - Spending review Topic 1]]+Dataset[[#This Row],[2026/27 To - Spending review Topic 2]]+Dataset[[#This Row],[2026/27 To - Spending review Topic 3]]+Dataset[[#This Row],[2026/27 To - Spending review Topic 4]]+Dataset[[#This Row],[2026/27 To - Other reallocations]]","v":0},{"$f":"Dataset[[#This Row],[2027/28 To - Spending review Topic 1]]+Dataset[[#This Row],[2027/28 To - Spending review Topic 2]]+Dataset[[#This Row],[2027/28 To - Spending review Topic 3]]+Dataset[[#This Row],[2027/28 To - Spending review Topic 4]]+Dataset[[#This Row],[2027/28 To - Other reallocations]]","v":0},{"$f":"Dataset[[#This Row],[2025/26 Reduction]]+Dataset[[#This Row],[2025/26 From - Total]]","v":0},{"$f":"Dataset[[#This Row],[2026/27 Reduction]]+Dataset[[#This Row],[2026/27 From - Total]]","v":0},{"$f":"Dataset[[#This Row],[2027/28 Reduction]]+Dataset[[#This Row],[2027/28 From - Total]]","v":0},{"$f":"Dataset[[#This Row],[2024/25 Reduction]]","v":0},{"$f":"SUM(Dataset[[#This Row],[2025/26 Reduction]],Dataset[[#This Row],[2025/26 From - Total]],Dataset[[#This Row],[2025/26 To - Total]])","v":0},{"$f":"SUM(Dataset[[#This Row],[2026/27 Reduction]],Dataset[[#This Row],[2026/27 From - Total]],Dataset[[#This Row],[2026/27 To - Total]])","v":0},{"$f":"SUM(Dataset[[#This Row],[2027/28 Reduction]],Dataset[[#This Row],[2027/28 From - Total]],Dataset[[#This Row],[2027/28 To - Total]])","v":0},{"$f":"Dataset[[#This Row],[2024/25 Baseline]]+Dataset[[#This Row],[2024/25 Total change]]","v":10869},{"$f":"Dataset[[#This Row],[2025/26 Baseline]]+Dataset[[#This Row],[2025/26 Total change]]","v":12450},{"$f":"Dataset[[#This Row],[2026/27 Baseline]]+Dataset[[#This Row],[2026/27 Total change]]","v":13021},{"$f":"Dataset[[#This Row],[2027/28 Baseline]]+Dataset[[#This Row],[2027/28 Total change]]","v":13610}]
["NAT|Non-transfer item","40|Infrastructure and planning services","2025_26","MTEC2025",40,1,2,51338,66,"40","01","02","051338","000066","40|01|02|000066","01","01","02","12","12","01|01|02|12|12","National","Transport","Administration","Management","Non-transfer item","Current","Current payments","Goods and services","Infrastructure and planning services","Infrastructure and planning services","Economic development","Economic regulation and infrastructure","NAT",0,0,0,0,0,0,null,0,0,0,0,null,null,null,null,null,null,null,null,null,null,null,null,null,null,null,null,null,null,null,null,null,null,null,null,null,null,null,null,null,null,null,null,null,null,{"$f":"Dataset[[#This Row],[2025/26 From - Spending review Topic 1]]+Dataset[[#This Row],[2025/26 From - Spending review Topic 2]]+Dataset[[#This Row],[2025/26 From - Spending review Topic 3]]+Dataset[[#This Row],[2025/26 From - Spending review Topic 4]]+Dataset[[#This Row],[2025/26 From - Other reallocations]]","v":0},{"$f":"Dataset[[#This Row],[2026/27 From - Spending review Topic 1]]+Dataset[[#This Row],[2026/27 From - Spending review Topic 2]]+Dataset[[#This Row],[2026/27 From - Spending review Topic 3]]+Dataset[[#This Row],[2026/27 From - Spending review Topic 4]]+Dataset[[#This Row],[2026/27 From - Other reallocations]]","v":0},{"$f":"Dataset[[#This Row],[2027/28 From - Spending review Topic 1]]+Dataset[[#This Row],[2027/28 From - Spending review Topic 2]]+Dataset[[#This Row],[2027/28 From - Spending review Topic 3]]+Dataset[[#This Row],[2027/28 From - Spending review Topic 4]]+Dataset[[#This Row],[2027/28 From - Other reallocations]]","v":0},{"$f":"Dataset[[#This Row],[2025/26 To - Spending review Topic 1]]+Dataset[[#This Row],[2025/26 To - Spending review Topic 2]]+Dataset[[#This Row],[2025/26 To - Spending review Topic 3]]+Dataset[[#This Row],[2025/26 To - Spending review Topic 4]]+Dataset[[#This Row],[2025/26 To - Other reallocations]]","v":0},{"$f":"Dataset[[#This Row],[2026/27 To - Spending review Topic 1]]+Dataset[[#This Row],[2026/27 To - Spending review Topic 2]]+Dataset[[#This Row],[2026/27 To - Spending review Topic 3]]+Dataset[[#This Row],[2026/27 To - Spending review Topic 4]]+Dataset[[#This Row],[2026/27 To - Other reallocations]]","v":0},{"$f":"Dataset[[#This Row],[2027/28 To - Spending review Topic 1]]+Dataset[[#This Row],[2027/28 To - Spending review Topic 2]]+Dataset[[#This Row],[2027/28 To - Spending review Topic 3]]+Dataset[[#This Row],[2027/28 To - Spending review Topic 4]]+Dataset[[#This Row],[2027/28 To - Other reallocations]]","v":0},{"$f":"Dataset[[#This Row],[2025/26 Reduction]]+Dataset[[#This Row],[2025/26 From - Total]]","v":0},{"$f":"Dataset[[#This Row],[2026/27 Reduction]]+Dataset[[#This Row],[2026/27 From - Total]]","v":0},{"$f":"Dataset[[#This Row],[2027/28 Reduction]]+Dataset[[#This Row],[2027/28 From - Total]]","v":0},{"$f":"Dataset[[#This Row],[2024/25 Reduction]]","v":0},{"$f":"SUM(Dataset[[#This Row],[2025/26 Reduction]],Dataset[[#This Row],[2025/26 From - Total]],Dataset[[#This Row],[2025/26 To - Total]])","v":0},{"$f":"SUM(Dataset[[#This Row],[2026/27 Reduction]],Dataset[[#This Row],[2026/27 From - Total]],Dataset[[#This Row],[2026/27 To - Total]])","v":0},{"$f":"SUM(Dataset[[#This Row],[2027/28 Reduction]],Dataset[[#This Row],[2027/28 From - Total]],Dataset[[#This Row],[2027/28 To - Total]])","v":0},{"$f":"Dataset[[#This Row],[2024/25 Baseline]]+Dataset[[#This Row],[2024/25 Total change]]","v":0},{"$f":"Dataset[[#This Row],[2025/26 Baseline]]+Dataset[[#This Row],[2025/26 Total change]]","v":0},{"$f":"Dataset[[#This Row],[2026/27 Baseline]]+Dataset[[#This Row],[2026/27 Total change]]","v":0},{"$f":"Dataset[[#This Row],[2027/28 Baseline]]+Dataset[[#This Row],[2027/28 Total change]]","v":0}]
["NAT|Non-transfer item","40|Laboratory services","2025_26","MTEC2025",40,1,2,51339,67,"40","01","02","051339","000067","40|01|02|000067","01","01","02","13","13","01|01|02|13|13","National","Transport","Administration","Management","Non-transfer item","Current","Current payments","Goods and services","Laboratory services","Laboratory services","Economic development","Economic regulation and infrastructure","NAT",0,0,0,0,0,0,null,0,0,0,0,null,null,null,null,null,null,null,null,null,null,null,null,null,null,null,null,null,null,null,null,null,null,null,null,null,null,null,null,null,null,null,null,null,null,{"$f":"Dataset[[#This Row],[2025/26 From - Spending review Topic 1]]+Dataset[[#This Row],[2025/26 From - Spending review Topic 2]]+Dataset[[#This Row],[2025/26 From - Spending review Topic 3]]+Dataset[[#This Row],[2025/26 From - Spending review Topic 4]]+Dataset[[#This Row],[2025/26 From - Other reallocations]]","v":0},{"$f":"Dataset[[#This Row],[2026/27 From - Spending review Topic 1]]+Dataset[[#This Row],[2026/27 From - Spending review Topic 2]]+Dataset[[#This Row],[2026/27 From - Spending review Topic 3]]+Dataset[[#This Row],[2026/27 From - Spending review Topic 4]]+Dataset[[#This Row],[2026/27 From - Other reallocations]]","v":0},{"$f":"Dataset[[#This Row],[2027/28 From - Spending review Topic 1]]+Dataset[[#This Row],[2027/28 From - Spending review Topic 2]]+Dataset[[#This Row],[2027/28 From - Spending review Topic 3]]+Dataset[[#This Row],[2027/28 From - Spending review Topic 4]]+Dataset[[#This Row],[2027/28 From - Other reallocations]]","v":0},{"$f":"Dataset[[#This Row],[2025/26 To - Spending review Topic 1]]+Dataset[[#This Row],[2025/26 To - Spending review Topic 2]]+Dataset[[#This Row],[2025/26 To - Spending review Topic 3]]+Dataset[[#This Row],[2025/26 To - Spending review Topic 4]]+Dataset[[#This Row],[2025/26 To - Other reallocations]]","v":0},{"$f":"Dataset[[#This Row],[2026/27 To - Spending review Topic 1]]+Dataset[[#This Row],[2026/27 To - Spending review Topic 2]]+Dataset[[#This Row],[2026/27 To - Spending review Topic 3]]+Dataset[[#This Row],[2026/27 To - Spending review Topic 4]]+Dataset[[#This Row],[2026/27 To - Other reallocations]]","v":0},{"$f":"Dataset[[#This Row],[2027/28 To - Spending review Topic 1]]+Dataset[[#This Row],[2027/28 To - Spending review Topic 2]]+Dataset[[#This Row],[2027/28 To - Spending review Topic 3]]+Dataset[[#This Row],[2027/28 To - Spending review Topic 4]]+Dataset[[#This Row],[2027/28 To - Other reallocations]]","v":0},{"$f":"Dataset[[#This Row],[2025/26 Reduction]]+Dataset[[#This Row],[2025/26 From - Total]]","v":0},{"$f":"Dataset[[#This Row],[2026/27 Reduction]]+Dataset[[#This Row],[2026/27 From - Total]]","v":0},{"$f":"Dataset[[#This Row],[2027/28 Reduction]]+Dataset[[#This Row],[2027/28 From - Total]]","v":0},{"$f":"Dataset[[#This Row],[2024/25 Reduction]]","v":0},{"$f":"SUM(Dataset[[#This Row],[2025/26 Reduction]],Dataset[[#This Row],[2025/26 From - Total]],Dataset[[#This Row],[2025/26 To - Total]])","v":0},{"$f":"SUM(Dataset[[#This Row],[2026/27 Reduction]],Dataset[[#This Row],[2026/27 From - Total]],Dataset[[#This Row],[2026/27 To - Total]])","v":0},{"$f":"SUM(Dataset[[#This Row],[2027/28 Reduction]],Dataset[[#This Row],[2027/28 From - Total]],Dataset[[#This Row],[2027/28 To - Total]])","v":0},{"$f":"Dataset[[#This Row],[2024/25 Baseline]]+Dataset[[#This Row],[2024/25 Total change]]","v":0},{"$f":"Dataset[[#This Row],[2025/26 Baseline]]+Dataset[[#This Row],[2025/26 Total change]]","v":0},{"$f":"Dataset[[#This Row],[2026/27 Baseline]]+Dataset[[#This Row],[2026/27 Total change]]","v":0},{"$f":"Dataset[[#This Row],[2027/28 Baseline]]+Dataset[[#This Row],[2027/28 Total change]]","v":0}]
["NAT|Non-transfer item","40|Legal services (G&S)","2025_26","MTEC2025",40,1,2,51340,68,"40","01","02","051340","000068","40|01|02|000068","01","01","02","14","14","01|01|02|14|14","National","Transport","Administration","Management","Non-transfer item","Current","Current payments","Goods and services","Legal services (G&S)","Legal services (G&S)","Economic development","Economic regulation and infrastructure","NAT",191,0,0,0,0,0,null,0,0,0,0,null,null,null,null,null,null,null,null,null,null,null,null,null,null,null,null,null,null,null,null,null,null,null,null,null,null,null,null,null,null,null,null,null,null,{"$f":"Dataset[[#This Row],[2025/26 From - Spending review Topic 1]]+Dataset[[#This Row],[2025/26 From - Spending review Topic 2]]+Dataset[[#This Row],[2025/26 From - Spending review Topic 3]]+Dataset[[#This Row],[2025/26 From - Spending review Topic 4]]+Dataset[[#This Row],[2025/26 From - Other reallocations]]","v":0},{"$f":"Dataset[[#This Row],[2026/27 From - Spending review Topic 1]]+Dataset[[#This Row],[2026/27 From - Spending review Topic 2]]+Dataset[[#This Row],[2026/27 From - Spending review Topic 3]]+Dataset[[#This Row],[2026/27 From - Spending review Topic 4]]+Dataset[[#This Row],[2026/27 From - Other reallocations]]","v":0},{"$f":"Dataset[[#This Row],[2027/28 From - Spending review Topic 1]]+Dataset[[#This Row],[2027/28 From - Spending review Topic 2]]+Dataset[[#This Row],[2027/28 From - Spending review Topic 3]]+Dataset[[#This Row],[2027/28 From - Spending review Topic 4]]+Dataset[[#This Row],[2027/28 From - Other reallocations]]","v":0},{"$f":"Dataset[[#This Row],[2025/26 To - Spending review Topic 1]]+Dataset[[#This Row],[2025/26 To - Spending review Topic 2]]+Dataset[[#This Row],[2025/26 To - Spending review Topic 3]]+Dataset[[#This Row],[2025/26 To - Spending review Topic 4]]+Dataset[[#This Row],[2025/26 To - Other reallocations]]","v":0},{"$f":"Dataset[[#This Row],[2026/27 To - Spending review Topic 1]]+Dataset[[#This Row],[2026/27 To - Spending review Topic 2]]+Dataset[[#This Row],[2026/27 To - Spending review Topic 3]]+Dataset[[#This Row],[2026/27 To - Spending review Topic 4]]+Dataset[[#This Row],[2026/27 To - Other reallocations]]","v":0},{"$f":"Dataset[[#This Row],[2027/28 To - Spending review Topic 1]]+Dataset[[#This Row],[2027/28 To - Spending review Topic 2]]+Dataset[[#This Row],[2027/28 To - Spending review Topic 3]]+Dataset[[#This Row],[2027/28 To - Spending review Topic 4]]+Dataset[[#This Row],[2027/28 To - Other reallocations]]","v":0},{"$f":"Dataset[[#This Row],[2025/26 Reduction]]+Dataset[[#This Row],[2025/26 From - Total]]","v":0},{"$f":"Dataset[[#This Row],[2026/27 Reduction]]+Dataset[[#This Row],[2026/27 From - Total]]","v":0},{"$f":"Dataset[[#This Row],[2027/28 Reduction]]+Dataset[[#This Row],[2027/28 From - Total]]","v":0},{"$f":"Dataset[[#This Row],[2024/25 Reduction]]","v":0},{"$f":"SUM(Dataset[[#This Row],[2025/26 Reduction]],Dataset[[#This Row],[2025/26 From - Total]],Dataset[[#This Row],[2025/26 To - Total]])","v":0},{"$f":"SUM(Dataset[[#This Row],[2026/27 Reduction]],Dataset[[#This Row],[2026/27 From - Total]],Dataset[[#This Row],[2026/27 To - Total]])","v":0},{"$f":"SUM(Dataset[[#This Row],[2027/28 Reduction]],Dataset[[#This Row],[2027/28 From - Total]],Dataset[[#This Row],[2027/28 To - Total]])","v":0},{"$f":"Dataset[[#This Row],[2024/25 Baseline]]+Dataset[[#This Row],[2024/25 Total change]]","v":0},{"$f":"Dataset[[#This Row],[2025/26 Baseline]]+Dataset[[#This Row],[2025/26 Total change]]","v":0},{"$f":"Dataset[[#This Row],[2026/27 Baseline]]+Dataset[[#This Row],[2026/27 Total change]]","v":0},{"$f":"Dataset[[#This Row],[2027/28 Baseline]]+Dataset[[#This Row],[2027/28 Total change]]","v":0}]
["NAT|Non-transfer item","40|Science and technological services","2025_26","MTEC2025",40,1,2,51341,69,"40","01","02","051341","000069","40|01|02|000069","01","01","02","15","15","01|01|02|15|15","National","Transport","Administration","Management","Non-transfer item","Current","Current payments","Goods and services","Science and technological services","Science and technological services","Economic development","Economic regulation and infrastructure","NAT",0,0,0,0,0,0,null,0,0,0,0,null,null,null,null,null,null,null,null,null,null,null,null,null,null,null,null,null,null,null,null,null,null,null,null,null,null,null,null,null,null,null,null,null,null,{"$f":"Dataset[[#This Row],[2025/26 From - Spending review Topic 1]]+Dataset[[#This Row],[2025/26 From - Spending review Topic 2]]+Dataset[[#This Row],[2025/26 From - Spending review Topic 3]]+Dataset[[#This Row],[2025/26 From - Spending review Topic 4]]+Dataset[[#This Row],[2025/26 From - Other reallocations]]","v":0},{"$f":"Dataset[[#This Row],[2026/27 From - Spending review Topic 1]]+Dataset[[#This Row],[2026/27 From - Spending review Topic 2]]+Dataset[[#This Row],[2026/27 From - Spending review Topic 3]]+Dataset[[#This Row],[2026/27 From - Spending review Topic 4]]+Dataset[[#This Row],[2026/27 From - Other reallocations]]","v":0},{"$f":"Dataset[[#This Row],[2027/28 From - Spending review Topic 1]]+Dataset[[#This Row],[2027/28 From - Spending review Topic 2]]+Dataset[[#This Row],[2027/28 From - Spending review Topic 3]]+Dataset[[#This Row],[2027/28 From - Spending review Topic 4]]+Dataset[[#This Row],[2027/28 From - Other reallocations]]","v":0},{"$f":"Dataset[[#This Row],[2025/26 To - Spending review Topic 1]]+Dataset[[#This Row],[2025/26 To - Spending review Topic 2]]+Dataset[[#This Row],[2025/26 To - Spending review Topic 3]]+Dataset[[#This Row],[2025/26 To - Spending review Topic 4]]+Dataset[[#This Row],[2025/26 To - Other reallocations]]","v":0},{"$f":"Dataset[[#This Row],[2026/27 To - Spending review Topic 1]]+Dataset[[#This Row],[2026/27 To - Spending review Topic 2]]+Dataset[[#This Row],[2026/27 To - Spending review Topic 3]]+Dataset[[#This Row],[2026/27 To - Spending review Topic 4]]+Dataset[[#This Row],[2026/27 To - Other reallocations]]","v":0},{"$f":"Dataset[[#This Row],[2027/28 To - Spending review Topic 1]]+Dataset[[#This Row],[2027/28 To - Spending review Topic 2]]+Dataset[[#This Row],[2027/28 To - Spending review Topic 3]]+Dataset[[#This Row],[2027/28 To - Spending review Topic 4]]+Dataset[[#This Row],[2027/28 To - Other reallocations]]","v":0},{"$f":"Dataset[[#This Row],[2025/26 Reduction]]+Dataset[[#This Row],[2025/26 From - Total]]","v":0},{"$f":"Dataset[[#This Row],[2026/27 Reduction]]+Dataset[[#This Row],[2026/27 From - Total]]","v":0},{"$f":"Dataset[[#This Row],[2027/28 Reduction]]+Dataset[[#This Row],[2027/28 From - Total]]","v":0},{"$f":"Dataset[[#This Row],[2024/25 Reduction]]","v":0},{"$f":"SUM(Dataset[[#This Row],[2025/26 Reduction]],Dataset[[#This Row],[2025/26 From - Total]],Dataset[[#This Row],[2025/26 To - Total]])","v":0},{"$f":"SUM(Dataset[[#This Row],[2026/27 Reduction]],Dataset[[#This Row],[2026/27 From - Total]],Dataset[[#This Row],[2026/27 To - Total]])","v":0},{"$f":"SUM(Dataset[[#This Row],[2027/28 Reduction]],Dataset[[#This Row],[2027/28 From - Total]],Dataset[[#This Row],[2027/28 To - Total]])","v":0},{"$f":"Dataset[[#This Row],[2024/25 Baseline]]+Dataset[[#This Row],[2024/25 Total change]]","v":0},{"$f":"Dataset[[#This Row],[2025/26 Baseline]]+Dataset[[#This Row],[2025/26 Total change]]","v":0},{"$f":"Dataset[[#This Row],[2026/27 Baseline]]+Dataset[[#This Row],[2026/27 Total change]]","v":0},{"$f":"Dataset[[#This Row],[2027/28 Baseline]]+Dataset[[#This Row],[2027/28 Total change]]","v":0}]
["NAT|Non-transfer item","40|Contractors","2025_26","MTEC2025",40,1,2,51342,70,"40","01","02","051342","000070","40|01|02|000070","01","01","02","16","16","01|01|02|16|16","National","Transport","Administration","Management","Non-transfer item","Current","Current payments","Goods and services","Contractors","Contractors","Economic development","Economic regulation and infrastructure","NAT",0,64,113,302,302,302,201,228,261,273,285,null,null,null,null,null,null,null,null,null,null,null,null,null,null,null,null,null,null,null,null,null,null,null,null,null,null,null,null,null,null,null,null,null,null,{"$f":"Dataset[[#This Row],[2025/26 From - Spending review Topic 1]]+Dataset[[#This Row],[2025/26 From - Spending review Topic 2]]+Dataset[[#This Row],[2025/26 From - Spending review Topic 3]]+Dataset[[#This Row],[2025/26 From - Spending review Topic 4]]+Dataset[[#This Row],[2025/26 From - Other reallocations]]","v":0},{"$f":"Dataset[[#This Row],[2026/27 From - Spending review Topic 1]]+Dataset[[#This Row],[2026/27 From - Spending review Topic 2]]+Dataset[[#This Row],[2026/27 From - Spending review Topic 3]]+Dataset[[#This Row],[2026/27 From - Spending review Topic 4]]+Dataset[[#This Row],[2026/27 From - Other reallocations]]","v":0},{"$f":"Dataset[[#This Row],[2027/28 From - Spending review Topic 1]]+Dataset[[#This Row],[2027/28 From - Spending review Topic 2]]+Dataset[[#This Row],[2027/28 From - Spending review Topic 3]]+Dataset[[#This Row],[2027/28 From - Spending review Topic 4]]+Dataset[[#This Row],[2027/28 From - Other reallocations]]","v":0},{"$f":"Dataset[[#This Row],[2025/26 To - Spending review Topic 1]]+Dataset[[#This Row],[2025/26 To - Spending review Topic 2]]+Dataset[[#This Row],[2025/26 To - Spending review Topic 3]]+Dataset[[#This Row],[2025/26 To - Spending review Topic 4]]+Dataset[[#This Row],[2025/26 To - Other reallocations]]","v":0},{"$f":"Dataset[[#This Row],[2026/27 To - Spending review Topic 1]]+Dataset[[#This Row],[2026/27 To - Spending review Topic 2]]+Dataset[[#This Row],[2026/27 To - Spending review Topic 3]]+Dataset[[#This Row],[2026/27 To - Spending review Topic 4]]+Dataset[[#This Row],[2026/27 To - Other reallocations]]","v":0},{"$f":"Dataset[[#This Row],[2027/28 To - Spending review Topic 1]]+Dataset[[#This Row],[2027/28 To - Spending review Topic 2]]+Dataset[[#This Row],[2027/28 To - Spending review Topic 3]]+Dataset[[#This Row],[2027/28 To - Spending review Topic 4]]+Dataset[[#This Row],[2027/28 To - Other reallocations]]","v":0},{"$f":"Dataset[[#This Row],[2025/26 Reduction]]+Dataset[[#This Row],[2025/26 From - Total]]","v":0},{"$f":"Dataset[[#This Row],[2026/27 Reduction]]+Dataset[[#This Row],[2026/27 From - Total]]","v":0},{"$f":"Dataset[[#This Row],[2027/28 Reduction]]+Dataset[[#This Row],[2027/28 From - Total]]","v":0},{"$f":"Dataset[[#This Row],[2024/25 Reduction]]","v":0},{"$f":"SUM(Dataset[[#This Row],[2025/26 Reduction]],Dataset[[#This Row],[2025/26 From - Total]],Dataset[[#This Row],[2025/26 To - Total]])","v":0},{"$f":"SUM(Dataset[[#This Row],[2026/27 Reduction]],Dataset[[#This Row],[2026/27 From - Total]],Dataset[[#This Row],[2026/27 To - Total]])","v":0},{"$f":"SUM(Dataset[[#This Row],[2027/28 Reduction]],Dataset[[#This Row],[2027/28 From - Total]],Dataset[[#This Row],[2027/28 To - Total]])","v":0},{"$f":"Dataset[[#This Row],[2024/25 Baseline]]+Dataset[[#This Row],[2024/25 Total change]]","v":228},{"$f":"Dataset[[#This Row],[2025/26 Baseline]]+Dataset[[#This Row],[2025/26 Total change]]","v":261},{"$f":"Dataset[[#This Row],[2026/27 Baseline]]+Dataset[[#This Row],[2026/27 Total change]]","v":273},{"$f":"Dataset[[#This Row],[2027/28 Baseline]]+Dataset[[#This Row],[2027/28 Total change]]","v":285}]
["NAT|Non-transfer item","40|Agency and support/outsourced services","2025_26","MTEC2025",40,1,2,51343,71,"40","01","02","051343","000071","40|01|02|000071","01","01","02","17","17","01|01|02|17|17","National","Transport","Administration","Management","Non-transfer item","Current","Current payments","Goods and services","Agency and support/outsourced services","Agency and support/outsourced services","Economic development","Economic regulation and infrastructure","NAT",0,0,0,0,0,0,null,0,0,0,0,null,null,null,null,null,null,null,null,null,null,null,null,null,null,null,null,null,null,null,null,null,null,null,null,null,null,null,null,null,null,null,null,null,null,{"$f":"Dataset[[#This Row],[2025/26 From - Spending review Topic 1]]+Dataset[[#This Row],[2025/26 From - Spending review Topic 2]]+Dataset[[#This Row],[2025/26 From - Spending review Topic 3]]+Dataset[[#This Row],[2025/26 From - Spending review Topic 4]]+Dataset[[#This Row],[2025/26 From - Other reallocations]]","v":0},{"$f":"Dataset[[#This Row],[2026/27 From - Spending review Topic 1]]+Dataset[[#This Row],[2026/27 From - Spending review Topic 2]]+Dataset[[#This Row],[2026/27 From - Spending review Topic 3]]+Dataset[[#This Row],[2026/27 From - Spending review Topic 4]]+Dataset[[#This Row],[2026/27 From - Other reallocations]]","v":0},{"$f":"Dataset[[#This Row],[2027/28 From - Spending review Topic 1]]+Dataset[[#This Row],[2027/28 From - Spending review Topic 2]]+Dataset[[#This Row],[2027/28 From - Spending review Topic 3]]+Dataset[[#This Row],[2027/28 From - Spending review Topic 4]]+Dataset[[#This Row],[2027/28 From - Other reallocations]]","v":0},{"$f":"Dataset[[#This Row],[2025/26 To - Spending review Topic 1]]+Dataset[[#This Row],[2025/26 To - Spending review Topic 2]]+Dataset[[#This Row],[2025/26 To - Spending review Topic 3]]+Dataset[[#This Row],[2025/26 To - Spending review Topic 4]]+Dataset[[#This Row],[2025/26 To - Other reallocations]]","v":0},{"$f":"Dataset[[#This Row],[2026/27 To - Spending review Topic 1]]+Dataset[[#This Row],[2026/27 To - Spending review Topic 2]]+Dataset[[#This Row],[2026/27 To - Spending review Topic 3]]+Dataset[[#This Row],[2026/27 To - Spending review Topic 4]]+Dataset[[#This Row],[2026/27 To - Other reallocations]]","v":0},{"$f":"Dataset[[#This Row],[2027/28 To - Spending review Topic 1]]+Dataset[[#This Row],[2027/28 To - Spending review Topic 2]]+Dataset[[#This Row],[2027/28 To - Spending review Topic 3]]+Dataset[[#This Row],[2027/28 To - Spending review Topic 4]]+Dataset[[#This Row],[2027/28 To - Other reallocations]]","v":0},{"$f":"Dataset[[#This Row],[2025/26 Reduction]]+Dataset[[#This Row],[2025/26 From - Total]]","v":0},{"$f":"Dataset[[#This Row],[2026/27 Reduction]]+Dataset[[#This Row],[2026/27 From - Total]]","v":0},{"$f":"Dataset[[#This Row],[2027/28 Reduction]]+Dataset[[#This Row],[2027/28 From - Total]]","v":0},{"$f":"Dataset[[#This Row],[2024/25 Reduction]]","v":0},{"$f":"SUM(Dataset[[#This Row],[2025/26 Reduction]],Dataset[[#This Row],[2025/26 From - Total]],Dataset[[#This Row],[2025/26 To - Total]])","v":0},{"$f":"SUM(Dataset[[#This Row],[2026/27 Reduction]],Dataset[[#This Row],[2026/27 From - Total]],Dataset[[#This Row],[2026/27 To - Total]])","v":0},{"$f":"SUM(Dataset[[#This Row],[2027/28 Reduction]],Dataset[[#This Row],[2027/28 From - Total]],Dataset[[#This Row],[2027/28 To - Total]])","v":0},{"$f":"Dataset[[#This Row],[2024/25 Baseline]]+Dataset[[#This Row],[2024/25 Total change]]","v":0},{"$f":"Dataset[[#This Row],[2025/26 Baseline]]+Dataset[[#This Row],[2025/26 Total change]]","v":0},{"$f":"Dataset[[#This Row],[2026/27 Baseline]]+Dataset[[#This Row],[2026/27 Total change]]","v":0},{"$f":"Dataset[[#This Row],[2027/28 Baseline]]+Dataset[[#This Row],[2027/28 Total change]]","v":0}]
["NAT|Non-transfer item","40|Entertainment","2025_26","MTEC2025",40,1,2,51344,72,"40","01","02","051344","000072","40|01|02|000072","01","01","02","18","18","01|01|02|18|18","National","Transport","Administration","Management","Non-transfer item","Current","Current payments","Goods and services","Entertainment","Entertainment","Economic development","Economic regulation and infrastructure","NAT",0,0,0,0,0,0,null,0,0,0,0,null,null,null,null,null,null,null,null,null,null,null,null,null,null,null,null,null,null,null,null,null,null,null,null,null,null,null,null,null,null,null,null,null,null,{"$f":"Dataset[[#This Row],[2025/26 From - Spending review Topic 1]]+Dataset[[#This Row],[2025/26 From - Spending review Topic 2]]+Dataset[[#This Row],[2025/26 From - Spending review Topic 3]]+Dataset[[#This Row],[2025/26 From - Spending review Topic 4]]+Dataset[[#This Row],[2025/26 From - Other reallocations]]","v":0},{"$f":"Dataset[[#This Row],[2026/27 From - Spending review Topic 1]]+Dataset[[#This Row],[2026/27 From - Spending review Topic 2]]+Dataset[[#This Row],[2026/27 From - Spending review Topic 3]]+Dataset[[#This Row],[2026/27 From - Spending review Topic 4]]+Dataset[[#This Row],[2026/27 From - Other reallocations]]","v":0},{"$f":"Dataset[[#This Row],[2027/28 From - Spending review Topic 1]]+Dataset[[#This Row],[2027/28 From - Spending review Topic 2]]+Dataset[[#This Row],[2027/28 From - Spending review Topic 3]]+Dataset[[#This Row],[2027/28 From - Spending review Topic 4]]+Dataset[[#This Row],[2027/28 From - Other reallocations]]","v":0},{"$f":"Dataset[[#This Row],[2025/26 To - Spending review Topic 1]]+Dataset[[#This Row],[2025/26 To - Spending review Topic 2]]+Dataset[[#This Row],[2025/26 To - Spending review Topic 3]]+Dataset[[#This Row],[2025/26 To - Spending review Topic 4]]+Dataset[[#This Row],[2025/26 To - Other reallocations]]","v":0},{"$f":"Dataset[[#This Row],[2026/27 To - Spending review Topic 1]]+Dataset[[#This Row],[2026/27 To - Spending review Topic 2]]+Dataset[[#This Row],[2026/27 To - Spending review Topic 3]]+Dataset[[#This Row],[2026/27 To - Spending review Topic 4]]+Dataset[[#This Row],[2026/27 To - Other reallocations]]","v":0},{"$f":"Dataset[[#This Row],[2027/28 To - Spending review Topic 1]]+Dataset[[#This Row],[2027/28 To - Spending review Topic 2]]+Dataset[[#This Row],[2027/28 To - Spending review Topic 3]]+Dataset[[#This Row],[2027/28 To - Spending review Topic 4]]+Dataset[[#This Row],[2027/28 To - Other reallocations]]","v":0},{"$f":"Dataset[[#This Row],[2025/26 Reduction]]+Dataset[[#This Row],[2025/26 From - Total]]","v":0},{"$f":"Dataset[[#This Row],[2026/27 Reduction]]+Dataset[[#This Row],[2026/27 From - Total]]","v":0},{"$f":"Dataset[[#This Row],[2027/28 Reduction]]+Dataset[[#This Row],[2027/28 From - Total]]","v":0},{"$f":"Dataset[[#This Row],[2024/25 Reduction]]","v":0},{"$f":"SUM(Dataset[[#This Row],[2025/26 Reduction]],Dataset[[#This Row],[2025/26 From - Total]],Dataset[[#This Row],[2025/26 To - Total]])","v":0},{"$f":"SUM(Dataset[[#This Row],[2026/27 Reduction]],Dataset[[#This Row],[2026/27 From - Total]],Dataset[[#This Row],[2026/27 To - Total]])","v":0},{"$f":"SUM(Dataset[[#This Row],[2027/28 Reduction]],Dataset[[#This Row],[2027/28 From - Total]],Dataset[[#This Row],[2027/28 To - Total]])","v":0},{"$f":"Dataset[[#This Row],[2024/25 Baseline]]+Dataset[[#This Row],[2024/25 Total change]]","v":0},{"$f":"Dataset[[#This Row],[2025/26 Baseline]]+Dataset[[#This Row],[2025/26 Total change]]","v":0},{"$f":"Dataset[[#This Row],[2026/27 Baseline]]+Dataset[[#This Row],[2026/27 Total change]]","v":0},{"$f":"Dataset[[#This Row],[2027/28 Baseline]]+Dataset[[#This Row],[2027/28 Total change]]","v":0}]
["NAT|Non-transfer item","40|Fleet services (including government motor transport)","2025_26","MTEC2025",40,1,2,51345,73,"40","01","02","051345","000073","40|01|02|000073","01","01","02","19","19","01|01|02|19|19","National","Transport","Administration","Management","Non-transfer item","Current","Current payments","Goods and services","Fleet services (including government motor transport)","Fleet services (including government motor transport)","Economic development","Economic regulation and infrastructure","NAT",0,0,0,0,0,0,null,0,0,0,0,null,null,null,null,null,null,null,null,null,null,null,null,null,null,null,null,null,null,null,null,null,null,null,null,null,null,null,null,null,null,null,null,null,null,{"$f":"Dataset[[#This Row],[2025/26 From - Spending review Topic 1]]+Dataset[[#This Row],[2025/26 From - Spending review Topic 2]]+Dataset[[#This Row],[2025/26 From - Spending review Topic 3]]+Dataset[[#This Row],[2025/26 From - Spending review Topic 4]]+Dataset[[#This Row],[2025/26 From - Other reallocations]]","v":0},{"$f":"Dataset[[#This Row],[2026/27 From - Spending review Topic 1]]+Dataset[[#This Row],[2026/27 From - Spending review Topic 2]]+Dataset[[#This Row],[2026/27 From - Spending review Topic 3]]+Dataset[[#This Row],[2026/27 From - Spending review Topic 4]]+Dataset[[#This Row],[2026/27 From - Other reallocations]]","v":0},{"$f":"Dataset[[#This Row],[2027/28 From - Spending review Topic 1]]+Dataset[[#This Row],[2027/28 From - Spending review Topic 2]]+Dataset[[#This Row],[2027/28 From - Spending review Topic 3]]+Dataset[[#This Row],[2027/28 From - Spending review Topic 4]]+Dataset[[#This Row],[2027/28 From - Other reallocations]]","v":0},{"$f":"Dataset[[#This Row],[2025/26 To - Spending review Topic 1]]+Dataset[[#This Row],[2025/26 To - Spending review Topic 2]]+Dataset[[#This Row],[2025/26 To - Spending review Topic 3]]+Dataset[[#This Row],[2025/26 To - Spending review Topic 4]]+Dataset[[#This Row],[2025/26 To - Other reallocations]]","v":0},{"$f":"Dataset[[#This Row],[2026/27 To - Spending review Topic 1]]+Dataset[[#This Row],[2026/27 To - Spending review Topic 2]]+Dataset[[#This Row],[2026/27 To - Spending review Topic 3]]+Dataset[[#This Row],[2026/27 To - Spending review Topic 4]]+Dataset[[#This Row],[2026/27 To - Other reallocations]]","v":0},{"$f":"Dataset[[#This Row],[2027/28 To - Spending review Topic 1]]+Dataset[[#This Row],[2027/28 To - Spending review Topic 2]]+Dataset[[#This Row],[2027/28 To - Spending review Topic 3]]+Dataset[[#This Row],[2027/28 To - Spending review Topic 4]]+Dataset[[#This Row],[2027/28 To - Other reallocations]]","v":0},{"$f":"Dataset[[#This Row],[2025/26 Reduction]]+Dataset[[#This Row],[2025/26 From - Total]]","v":0},{"$f":"Dataset[[#This Row],[2026/27 Reduction]]+Dataset[[#This Row],[2026/27 From - Total]]","v":0},{"$f":"Dataset[[#This Row],[2027/28 Reduction]]+Dataset[[#This Row],[2027/28 From - Total]]","v":0},{"$f":"Dataset[[#This Row],[2024/25 Reduction]]","v":0},{"$f":"SUM(Dataset[[#This Row],[2025/26 Reduction]],Dataset[[#This Row],[2025/26 From - Total]],Dataset[[#This Row],[2025/26 To - Total]])","v":0},{"$f":"SUM(Dataset[[#This Row],[2026/27 Reduction]],Dataset[[#This Row],[2026/27 From - Total]],Dataset[[#This Row],[2026/27 To - Total]])","v":0},{"$f":"SUM(Dataset[[#This Row],[2027/28 Reduction]],Dataset[[#This Row],[2027/28 From - Total]],Dataset[[#This Row],[2027/28 To - Total]])","v":0},{"$f":"Dataset[[#This Row],[2024/25 Baseline]]+Dataset[[#This Row],[2024/25 Total change]]","v":0},{"$f":"Dataset[[#This Row],[2025/26 Baseline]]+Dataset[[#This Row],[2025/26 Total change]]","v":0},{"$f":"Dataset[[#This Row],[2026/27 Baseline]]+Dataset[[#This Row],[2026/27 Total change]]","v":0},{"$f":"Dataset[[#This Row],[2027/28 Baseline]]+Dataset[[#This Row],[2027/28 Total change]]","v":0}]
["NAT|Non-transfer item","40|Housing","2025_26","MTEC2025",40,1,2,51346,74,"40","01","02","051346","000074","40|01|02|000074","01","01","02","20","20","01|01|02|20|20","National","Transport","Administration","Management","Non-transfer item","Current","Current payments","Goods and services","Housing","Housing","Economic development","Economic regulation and infrastructure","NAT",0,0,0,0,0,0,null,0,0,0,0,null,null,null,null,null,null,null,null,null,null,null,null,null,null,null,null,null,null,null,null,null,null,null,null,null,null,null,null,null,null,null,null,null,null,{"$f":"Dataset[[#This Row],[2025/26 From - Spending review Topic 1]]+Dataset[[#This Row],[2025/26 From - Spending review Topic 2]]+Dataset[[#This Row],[2025/26 From - Spending review Topic 3]]+Dataset[[#This Row],[2025/26 From - Spending review Topic 4]]+Dataset[[#This Row],[2025/26 From - Other reallocations]]","v":0},{"$f":"Dataset[[#This Row],[2026/27 From - Spending review Topic 1]]+Dataset[[#This Row],[2026/27 From - Spending review Topic 2]]+Dataset[[#This Row],[2026/27 From - Spending review Topic 3]]+Dataset[[#This Row],[2026/27 From - Spending review Topic 4]]+Dataset[[#This Row],[2026/27 From - Other reallocations]]","v":0},{"$f":"Dataset[[#This Row],[2027/28 From - Spending review Topic 1]]+Dataset[[#This Row],[2027/28 From - Spending review Topic 2]]+Dataset[[#This Row],[2027/28 From - Spending review Topic 3]]+Dataset[[#This Row],[2027/28 From - Spending review Topic 4]]+Dataset[[#This Row],[2027/28 From - Other reallocations]]","v":0},{"$f":"Dataset[[#This Row],[2025/26 To - Spending review Topic 1]]+Dataset[[#This Row],[2025/26 To - Spending review Topic 2]]+Dataset[[#This Row],[2025/26 To - Spending review Topic 3]]+Dataset[[#This Row],[2025/26 To - Spending review Topic 4]]+Dataset[[#This Row],[2025/26 To - Other reallocations]]","v":0},{"$f":"Dataset[[#This Row],[2026/27 To - Spending review Topic 1]]+Dataset[[#This Row],[2026/27 To - Spending review Topic 2]]+Dataset[[#This Row],[2026/27 To - Spending review Topic 3]]+Dataset[[#This Row],[2026/27 To - Spending review Topic 4]]+Dataset[[#This Row],[2026/27 To - Other reallocations]]","v":0},{"$f":"Dataset[[#This Row],[2027/28 To - Spending review Topic 1]]+Dataset[[#This Row],[2027/28 To - Spending review Topic 2]]+Dataset[[#This Row],[2027/28 To - Spending review Topic 3]]+Dataset[[#This Row],[2027/28 To - Spending review Topic 4]]+Dataset[[#This Row],[2027/28 To - Other reallocations]]","v":0},{"$f":"Dataset[[#This Row],[2025/26 Reduction]]+Dataset[[#This Row],[2025/26 From - Total]]","v":0},{"$f":"Dataset[[#This Row],[2026/27 Reduction]]+Dataset[[#This Row],[2026/27 From - Total]]","v":0},{"$f":"Dataset[[#This Row],[2027/28 Reduction]]+Dataset[[#This Row],[2027/28 From - Total]]","v":0},{"$f":"Dataset[[#This Row],[2024/25 Reduction]]","v":0},{"$f":"SUM(Dataset[[#This Row],[2025/26 Reduction]],Dataset[[#This Row],[2025/26 From - Total]],Dataset[[#This Row],[2025/26 To - Total]])","v":0},{"$f":"SUM(Dataset[[#This Row],[2026/27 Reduction]],Dataset[[#This Row],[2026/27 From - Total]],Dataset[[#This Row],[2026/27 To - Total]])","v":0},{"$f":"SUM(Dataset[[#This Row],[2027/28 Reduction]],Dataset[[#This Row],[2027/28 From - Total]],Dataset[[#This Row],[2027/28 To - Total]])","v":0},{"$f":"Dataset[[#This Row],[2024/25 Baseline]]+Dataset[[#This Row],[2024/25 Total change]]","v":0},{"$f":"Dataset[[#This Row],[2025/26 Baseline]]+Dataset[[#This Row],[2025/26 Total change]]","v":0},{"$f":"Dataset[[#This Row],[2026/27 Baseline]]+Dataset[[#This Row],[2026/27 Total change]]","v":0},{"$f":"Dataset[[#This Row],[2027/28 Baseline]]+Dataset[[#This Row],[2027/28 Total change]]","v":0}]
["NAT|Non-transfer item","40|Inventory: Clothing material and accessories","2025_26","MTEC2025",40,1,2,51347,75,"40","01","02","051347","000075","40|01|02|000075","01","01","02","21","21","01|01|02|21|21","National","Transport","Administration","Management","Non-transfer item","Current","Current payments","Goods and services","Inventory: Clothing material and accessories","Inventory: Clothing material and accessories","Economic development","Economic regulation and infrastructure","NAT",0,0,0,0,0,0,null,0,0,0,0,null,null,null,null,null,null,null,null,null,null,null,null,null,null,null,null,null,null,null,null,null,null,null,null,null,null,null,null,null,null,null,null,null,null,{"$f":"Dataset[[#This Row],[2025/26 From - Spending review Topic 1]]+Dataset[[#This Row],[2025/26 From - Spending review Topic 2]]+Dataset[[#This Row],[2025/26 From - Spending review Topic 3]]+Dataset[[#This Row],[2025/26 From - Spending review Topic 4]]+Dataset[[#This Row],[2025/26 From - Other reallocations]]","v":0},{"$f":"Dataset[[#This Row],[2026/27 From - Spending review Topic 1]]+Dataset[[#This Row],[2026/27 From - Spending review Topic 2]]+Dataset[[#This Row],[2026/27 From - Spending review Topic 3]]+Dataset[[#This Row],[2026/27 From - Spending review Topic 4]]+Dataset[[#This Row],[2026/27 From - Other reallocations]]","v":0},{"$f":"Dataset[[#This Row],[2027/28 From - Spending review Topic 1]]+Dataset[[#This Row],[2027/28 From - Spending review Topic 2]]+Dataset[[#This Row],[2027/28 From - Spending review Topic 3]]+Dataset[[#This Row],[2027/28 From - Spending review Topic 4]]+Dataset[[#This Row],[2027/28 From - Other reallocations]]","v":0},{"$f":"Dataset[[#This Row],[2025/26 To - Spending review Topic 1]]+Dataset[[#This Row],[2025/26 To - Spending review Topic 2]]+Dataset[[#This Row],[2025/26 To - Spending review Topic 3]]+Dataset[[#This Row],[2025/26 To - Spending review Topic 4]]+Dataset[[#This Row],[2025/26 To - Other reallocations]]","v":0},{"$f":"Dataset[[#This Row],[2026/27 To - Spending review Topic 1]]+Dataset[[#This Row],[2026/27 To - Spending review Topic 2]]+Dataset[[#This Row],[2026/27 To - Spending review Topic 3]]+Dataset[[#This Row],[2026/27 To - Spending review Topic 4]]+Dataset[[#This Row],[2026/27 To - Other reallocations]]","v":0},{"$f":"Dataset[[#This Row],[2027/28 To - Spending review Topic 1]]+Dataset[[#This Row],[2027/28 To - Spending review Topic 2]]+Dataset[[#This Row],[2027/28 To - Spending review Topic 3]]+Dataset[[#This Row],[2027/28 To - Spending review Topic 4]]+Dataset[[#This Row],[2027/28 To - Other reallocations]]","v":0},{"$f":"Dataset[[#This Row],[2025/26 Reduction]]+Dataset[[#This Row],[2025/26 From - Total]]","v":0},{"$f":"Dataset[[#This Row],[2026/27 Reduction]]+Dataset[[#This Row],[2026/27 From - Total]]","v":0},{"$f":"Dataset[[#This Row],[2027/28 Reduction]]+Dataset[[#This Row],[2027/28 From - Total]]","v":0},{"$f":"Dataset[[#This Row],[2024/25 Reduction]]","v":0},{"$f":"SUM(Dataset[[#This Row],[2025/26 Reduction]],Dataset[[#This Row],[2025/26 From - Total]],Dataset[[#This Row],[2025/26 To - Total]])","v":0},{"$f":"SUM(Dataset[[#This Row],[2026/27 Reduction]],Dataset[[#This Row],[2026/27 From - Total]],Dataset[[#This Row],[2026/27 To - Total]])","v":0},{"$f":"SUM(Dataset[[#This Row],[2027/28 Reduction]],Dataset[[#This Row],[2027/28 From - Total]],Dataset[[#This Row],[2027/28 To - Total]])","v":0},{"$f":"Dataset[[#This Row],[2024/25 Baseline]]+Dataset[[#This Row],[2024/25 Total change]]","v":0},{"$f":"Dataset[[#This Row],[2025/26 Baseline]]+Dataset[[#This Row],[2025/26 Total change]]","v":0},{"$f":"Dataset[[#This Row],[2026/27 Baseline]]+Dataset[[#This Row],[2026/27 Total change]]","v":0},{"$f":"Dataset[[#This Row],[2027/28 Baseline]]+Dataset[[#This Row],[2027/28 Total change]]","v":0}]
["NAT|Non-transfer item","40|Inventory: Farming supplies","2025_26","MTEC2025",40,1,2,51348,76,"40","01","02","051348","000076","40|01|02|000076","01","01","02","22","22","01|01|02|22|22","National","Transport","Administration","Management","Non-transfer item","Current","Current payments","Goods and services","Inventory: Farming supplies","Inventory: Farming supplies","Economic development","Economic regulation and infrastructure","NAT",0,0,0,0,0,0,null,0,0,0,0,null,null,null,null,null,null,null,null,null,null,null,null,null,null,null,null,null,null,null,null,null,null,null,null,null,null,null,null,null,null,null,null,null,null,{"$f":"Dataset[[#This Row],[2025/26 From - Spending review Topic 1]]+Dataset[[#This Row],[2025/26 From - Spending review Topic 2]]+Dataset[[#This Row],[2025/26 From - Spending review Topic 3]]+Dataset[[#This Row],[2025/26 From - Spending review Topic 4]]+Dataset[[#This Row],[2025/26 From - Other reallocations]]","v":0},{"$f":"Dataset[[#This Row],[2026/27 From - Spending review Topic 1]]+Dataset[[#This Row],[2026/27 From - Spending review Topic 2]]+Dataset[[#This Row],[2026/27 From - Spending review Topic 3]]+Dataset[[#This Row],[2026/27 From - Spending review Topic 4]]+Dataset[[#This Row],[2026/27 From - Other reallocations]]","v":0},{"$f":"Dataset[[#This Row],[2027/28 From - Spending review Topic 1]]+Dataset[[#This Row],[2027/28 From - Spending review Topic 2]]+Dataset[[#This Row],[2027/28 From - Spending review Topic 3]]+Dataset[[#This Row],[2027/28 From - Spending review Topic 4]]+Dataset[[#This Row],[2027/28 From - Other reallocations]]","v":0},{"$f":"Dataset[[#This Row],[2025/26 To - Spending review Topic 1]]+Dataset[[#This Row],[2025/26 To - Spending review Topic 2]]+Dataset[[#This Row],[2025/26 To - Spending review Topic 3]]+Dataset[[#This Row],[2025/26 To - Spending review Topic 4]]+Dataset[[#This Row],[2025/26 To - Other reallocations]]","v":0},{"$f":"Dataset[[#This Row],[2026/27 To - Spending review Topic 1]]+Dataset[[#This Row],[2026/27 To - Spending review Topic 2]]+Dataset[[#This Row],[2026/27 To - Spending review Topic 3]]+Dataset[[#This Row],[2026/27 To - Spending review Topic 4]]+Dataset[[#This Row],[2026/27 To - Other reallocations]]","v":0},{"$f":"Dataset[[#This Row],[2027/28 To - Spending review Topic 1]]+Dataset[[#This Row],[2027/28 To - Spending review Topic 2]]+Dataset[[#This Row],[2027/28 To - Spending review Topic 3]]+Dataset[[#This Row],[2027/28 To - Spending review Topic 4]]+Dataset[[#This Row],[2027/28 To - Other reallocations]]","v":0},{"$f":"Dataset[[#This Row],[2025/26 Reduction]]+Dataset[[#This Row],[2025/26 From - Total]]","v":0},{"$f":"Dataset[[#This Row],[2026/27 Reduction]]+Dataset[[#This Row],[2026/27 From - Total]]","v":0},{"$f":"Dataset[[#This Row],[2027/28 Reduction]]+Dataset[[#This Row],[2027/28 From - Total]]","v":0},{"$f":"Dataset[[#This Row],[2024/25 Reduction]]","v":0},{"$f":"SUM(Dataset[[#This Row],[2025/26 Reduction]],Dataset[[#This Row],[2025/26 From - Total]],Dataset[[#This Row],[2025/26 To - Total]])","v":0},{"$f":"SUM(Dataset[[#This Row],[2026/27 Reduction]],Dataset[[#This Row],[2026/27 From - Total]],Dataset[[#This Row],[2026/27 To - Total]])","v":0},{"$f":"SUM(Dataset[[#This Row],[2027/28 Reduction]],Dataset[[#This Row],[2027/28 From - Total]],Dataset[[#This Row],[2027/28 To - Total]])","v":0},{"$f":"Dataset[[#This Row],[2024/25 Baseline]]+Dataset[[#This Row],[2024/25 Total change]]","v":0},{"$f":"Dataset[[#This Row],[2025/26 Baseline]]+Dataset[[#This Row],[2025/26 Total change]]","v":0},{"$f":"Dataset[[#This Row],[2026/27 Baseline]]+Dataset[[#This Row],[2026/27 Total change]]","v":0},{"$f":"Dataset[[#This Row],[2027/28 Baseline]]+Dataset[[#This Row],[2027/28 Total change]]","v":0}]
["NAT|Non-transfer item","40|Inventory: Food and food supplies","2025_26","MTEC2025",40,1,2,51349,77,"40","01","02","051349","000077","40|01|02|000077","01","01","02","23","23","01|01|02|23|23","National","Transport","Administration","Management","Non-transfer item","Current","Current payments","Goods and services","Inventory: Food and food supplies","Inventory: Food and food supplies","Economic development","Economic regulation and infrastructure","NAT",0,0,0,0,0,0,null,0,0,0,0,null,null,null,null,null,null,null,null,null,null,null,null,null,null,null,null,null,null,null,null,null,null,null,null,null,null,null,null,null,null,null,null,null,null,{"$f":"Dataset[[#This Row],[2025/26 From - Spending review Topic 1]]+Dataset[[#This Row],[2025/26 From - Spending review Topic 2]]+Dataset[[#This Row],[2025/26 From - Spending review Topic 3]]+Dataset[[#This Row],[2025/26 From - Spending review Topic 4]]+Dataset[[#This Row],[2025/26 From - Other reallocations]]","v":0},{"$f":"Dataset[[#This Row],[2026/27 From - Spending review Topic 1]]+Dataset[[#This Row],[2026/27 From - Spending review Topic 2]]+Dataset[[#This Row],[2026/27 From - Spending review Topic 3]]+Dataset[[#This Row],[2026/27 From - Spending review Topic 4]]+Dataset[[#This Row],[2026/27 From - Other reallocations]]","v":0},{"$f":"Dataset[[#This Row],[2027/28 From - Spending review Topic 1]]+Dataset[[#This Row],[2027/28 From - Spending review Topic 2]]+Dataset[[#This Row],[2027/28 From - Spending review Topic 3]]+Dataset[[#This Row],[2027/28 From - Spending review Topic 4]]+Dataset[[#This Row],[2027/28 From - Other reallocations]]","v":0},{"$f":"Dataset[[#This Row],[2025/26 To - Spending review Topic 1]]+Dataset[[#This Row],[2025/26 To - Spending review Topic 2]]+Dataset[[#This Row],[2025/26 To - Spending review Topic 3]]+Dataset[[#This Row],[2025/26 To - Spending review Topic 4]]+Dataset[[#This Row],[2025/26 To - Other reallocations]]","v":0},{"$f":"Dataset[[#This Row],[2026/27 To - Spending review Topic 1]]+Dataset[[#This Row],[2026/27 To - Spending review Topic 2]]+Dataset[[#This Row],[2026/27 To - Spending review Topic 3]]+Dataset[[#This Row],[2026/27 To - Spending review Topic 4]]+Dataset[[#This Row],[2026/27 To - Other reallocations]]","v":0},{"$f":"Dataset[[#This Row],[2027/28 To - Spending review Topic 1]]+Dataset[[#This Row],[2027/28 To - Spending review Topic 2]]+Dataset[[#This Row],[2027/28 To - Spending review Topic 3]]+Dataset[[#This Row],[2027/28 To - Spending review Topic 4]]+Dataset[[#This Row],[2027/28 To - Other reallocations]]","v":0},{"$f":"Dataset[[#This Row],[2025/26 Reduction]]+Dataset[[#This Row],[2025/26 From - Total]]","v":0},{"$f":"Dataset[[#This Row],[2026/27 Reduction]]+Dataset[[#This Row],[2026/27 From - Total]]","v":0},{"$f":"Dataset[[#This Row],[2027/28 Reduction]]+Dataset[[#This Row],[2027/28 From - Total]]","v":0},{"$f":"Dataset[[#This Row],[2024/25 Reduction]]","v":0},{"$f":"SUM(Dataset[[#This Row],[2025/26 Reduction]],Dataset[[#This Row],[2025/26 From - Total]],Dataset[[#This Row],[2025/26 To - Total]])","v":0},{"$f":"SUM(Dataset[[#This Row],[2026/27 Reduction]],Dataset[[#This Row],[2026/27 From - Total]],Dataset[[#This Row],[2026/27 To - Total]])","v":0},{"$f":"SUM(Dataset[[#This Row],[2027/28 Reduction]],Dataset[[#This Row],[2027/28 From - Total]],Dataset[[#This Row],[2027/28 To - Total]])","v":0},{"$f":"Dataset[[#This Row],[2024/25 Baseline]]+Dataset[[#This Row],[2024/25 Total change]]","v":0},{"$f":"Dataset[[#This Row],[2025/26 Baseline]]+Dataset[[#This Row],[2025/26 Total change]]","v":0},{"$f":"Dataset[[#This Row],[2026/27 Baseline]]+Dataset[[#This Row],[2026/27 Total change]]","v":0},{"$f":"Dataset[[#This Row],[2027/28 Baseline]]+Dataset[[#This Row],[2027/28 Total change]]","v":0}]
["NAT|Non-transfer item","40|Inventory: Fuel, oil and gas","2025_26","MTEC2025",40,1,2,51350,78,"40","01","02","051350","000078","40|01|02|000078","01","01","02","24","24","01|01|02|24|24","National","Transport","Administration","Management","Non-transfer item","Current","Current payments","Goods and services","Inventory: Fuel, oil and gas","Inventory: Fuel, oil and gas","Economic development","Economic regulation and infrastructure","NAT",0,0,0,0,0,0,null,0,0,0,0,null,null,null,null,null,null,null,null,null,null,null,null,null,null,null,null,null,null,null,null,null,null,null,null,null,null,null,null,null,null,null,null,null,null,{"$f":"Dataset[[#This Row],[2025/26 From - Spending review Topic 1]]+Dataset[[#This Row],[2025/26 From - Spending review Topic 2]]+Dataset[[#This Row],[2025/26 From - Spending review Topic 3]]+Dataset[[#This Row],[2025/26 From - Spending review Topic 4]]+Dataset[[#This Row],[2025/26 From - Other reallocations]]","v":0},{"$f":"Dataset[[#This Row],[2026/27 From - Spending review Topic 1]]+Dataset[[#This Row],[2026/27 From - Spending review Topic 2]]+Dataset[[#This Row],[2026/27 From - Spending review Topic 3]]+Dataset[[#This Row],[2026/27 From - Spending review Topic 4]]+Dataset[[#This Row],[2026/27 From - Other reallocations]]","v":0},{"$f":"Dataset[[#This Row],[2027/28 From - Spending review Topic 1]]+Dataset[[#This Row],[2027/28 From - Spending review Topic 2]]+Dataset[[#This Row],[2027/28 From - Spending review Topic 3]]+Dataset[[#This Row],[2027/28 From - Spending review Topic 4]]+Dataset[[#This Row],[2027/28 From - Other reallocations]]","v":0},{"$f":"Dataset[[#This Row],[2025/26 To - Spending review Topic 1]]+Dataset[[#This Row],[2025/26 To - Spending review Topic 2]]+Dataset[[#This Row],[2025/26 To - Spending review Topic 3]]+Dataset[[#This Row],[2025/26 To - Spending review Topic 4]]+Dataset[[#This Row],[2025/26 To - Other reallocations]]","v":0},{"$f":"Dataset[[#This Row],[2026/27 To - Spending review Topic 1]]+Dataset[[#This Row],[2026/27 To - Spending review Topic 2]]+Dataset[[#This Row],[2026/27 To - Spending review Topic 3]]+Dataset[[#This Row],[2026/27 To - Spending review Topic 4]]+Dataset[[#This Row],[2026/27 To - Other reallocations]]","v":0},{"$f":"Dataset[[#This Row],[2027/28 To - Spending review Topic 1]]+Dataset[[#This Row],[2027/28 To - Spending review Topic 2]]+Dataset[[#This Row],[2027/28 To - Spending review Topic 3]]+Dataset[[#This Row],[2027/28 To - Spending review Topic 4]]+Dataset[[#This Row],[2027/28 To - Other reallocations]]","v":0},{"$f":"Dataset[[#This Row],[2025/26 Reduction]]+Dataset[[#This Row],[2025/26 From - Total]]","v":0},{"$f":"Dataset[[#This Row],[2026/27 Reduction]]+Dataset[[#This Row],[2026/27 From - Total]]","v":0},{"$f":"Dataset[[#This Row],[2027/28 Reduction]]+Dataset[[#This Row],[2027/28 From - Total]]","v":0},{"$f":"Dataset[[#This Row],[2024/25 Reduction]]","v":0},{"$f":"SUM(Dataset[[#This Row],[2025/26 Reduction]],Dataset[[#This Row],[2025/26 From - Total]],Dataset[[#This Row],[2025/26 To - Total]])","v":0},{"$f":"SUM(Dataset[[#This Row],[2026/27 Reduction]],Dataset[[#This Row],[2026/27 From - Total]],Dataset[[#This Row],[2026/27 To - Total]])","v":0},{"$f":"SUM(Dataset[[#This Row],[2027/28 Reduction]],Dataset[[#This Row],[2027/28 From - Total]],Dataset[[#This Row],[2027/28 To - Total]])","v":0},{"$f":"Dataset[[#This Row],[2024/25 Baseline]]+Dataset[[#This Row],[2024/25 Total change]]","v":0},{"$f":"Dataset[[#This Row],[2025/26 Baseline]]+Dataset[[#This Row],[2025/26 Total change]]","v":0},{"$f":"Dataset[[#This Row],[2026/27 Baseline]]+Dataset[[#This Row],[2026/27 Total change]]","v":0},{"$f":"Dataset[[#This Row],[2027/28 Baseline]]+Dataset[[#This Row],[2027/28 Total change]]","v":0}]
["NAT|Non-transfer item","40|Inventory: Learner and teacher support material","2025_26","MTEC2025",40,1,2,51351,79,"40","01","02","051351","000079","40|01|02|000079","01","01","02","25","25","01|01|02|25|25","National","Transport","Administration","Management","Non-transfer item","Current","Current payments","Goods and services","Inventory: Learner and teacher support material","Inventory: Learner and teacher support material","Economic development","Economic regulation and infrastructure","NAT",0,0,0,0,0,0,null,0,0,0,0,null,null,null,null,null,null,null,null,null,null,null,null,null,null,null,null,null,null,null,null,null,null,null,null,null,null,null,null,null,null,null,null,null,null,{"$f":"Dataset[[#This Row],[2025/26 From - Spending review Topic 1]]+Dataset[[#This Row],[2025/26 From - Spending review Topic 2]]+Dataset[[#This Row],[2025/26 From - Spending review Topic 3]]+Dataset[[#This Row],[2025/26 From - Spending review Topic 4]]+Dataset[[#This Row],[2025/26 From - Other reallocations]]","v":0},{"$f":"Dataset[[#This Row],[2026/27 From - Spending review Topic 1]]+Dataset[[#This Row],[2026/27 From - Spending review Topic 2]]+Dataset[[#This Row],[2026/27 From - Spending review Topic 3]]+Dataset[[#This Row],[2026/27 From - Spending review Topic 4]]+Dataset[[#This Row],[2026/27 From - Other reallocations]]","v":0},{"$f":"Dataset[[#This Row],[2027/28 From - Spending review Topic 1]]+Dataset[[#This Row],[2027/28 From - Spending review Topic 2]]+Dataset[[#This Row],[2027/28 From - Spending review Topic 3]]+Dataset[[#This Row],[2027/28 From - Spending review Topic 4]]+Dataset[[#This Row],[2027/28 From - Other reallocations]]","v":0},{"$f":"Dataset[[#This Row],[2025/26 To - Spending review Topic 1]]+Dataset[[#This Row],[2025/26 To - Spending review Topic 2]]+Dataset[[#This Row],[2025/26 To - Spending review Topic 3]]+Dataset[[#This Row],[2025/26 To - Spending review Topic 4]]+Dataset[[#This Row],[2025/26 To - Other reallocations]]","v":0},{"$f":"Dataset[[#This Row],[2026/27 To - Spending review Topic 1]]+Dataset[[#This Row],[2026/27 To - Spending review Topic 2]]+Dataset[[#This Row],[2026/27 To - Spending review Topic 3]]+Dataset[[#This Row],[2026/27 To - Spending review Topic 4]]+Dataset[[#This Row],[2026/27 To - Other reallocations]]","v":0},{"$f":"Dataset[[#This Row],[2027/28 To - Spending review Topic 1]]+Dataset[[#This Row],[2027/28 To - Spending review Topic 2]]+Dataset[[#This Row],[2027/28 To - Spending review Topic 3]]+Dataset[[#This Row],[2027/28 To - Spending review Topic 4]]+Dataset[[#This Row],[2027/28 To - Other reallocations]]","v":0},{"$f":"Dataset[[#This Row],[2025/26 Reduction]]+Dataset[[#This Row],[2025/26 From - Total]]","v":0},{"$f":"Dataset[[#This Row],[2026/27 Reduction]]+Dataset[[#This Row],[2026/27 From - Total]]","v":0},{"$f":"Dataset[[#This Row],[2027/28 Reduction]]+Dataset[[#This Row],[2027/28 From - Total]]","v":0},{"$f":"Dataset[[#This Row],[2024/25 Reduction]]","v":0},{"$f":"SUM(Dataset[[#This Row],[2025/26 Reduction]],Dataset[[#This Row],[2025/26 From - Total]],Dataset[[#This Row],[2025/26 To - Total]])","v":0},{"$f":"SUM(Dataset[[#This Row],[2026/27 Reduction]],Dataset[[#This Row],[2026/27 From - Total]],Dataset[[#This Row],[2026/27 To - Total]])","v":0},{"$f":"SUM(Dataset[[#This Row],[2027/28 Reduction]],Dataset[[#This Row],[2027/28 From - Total]],Dataset[[#This Row],[2027/28 To - Total]])","v":0},{"$f":"Dataset[[#This Row],[2024/25 Baseline]]+Dataset[[#This Row],[2024/25 Total change]]","v":0},{"$f":"Dataset[[#This Row],[2025/26 Baseline]]+Dataset[[#This Row],[2025/26 Total change]]","v":0},{"$f":"Dataset[[#This Row],[2026/27 Baseline]]+Dataset[[#This Row],[2026/27 Total change]]","v":0},{"$f":"Dataset[[#This Row],[2027/28 Baseline]]+Dataset[[#This Row],[2027/28 Total change]]","v":0}]
["NAT|Non-transfer item","40|Inventory: Materials and supplies","2025_26","MTEC2025",40,1,2,51352,80,"40","01","02","051352","000080","40|01|02|000080","01","01","02","26","26","01|01|02|26|26","National","Transport","Administration","Management","Non-transfer item","Current","Current payments","Goods and services","Inventory: Materials and supplies","Inventory: Materials and supplies","Economic development","Economic regulation and infrastructure","NAT",0,0,0,0,0,0,null,0,0,0,0,null,null,null,null,null,null,null,null,null,null,null,null,null,null,null,null,null,null,null,null,null,null,null,null,null,null,null,null,null,null,null,null,null,null,{"$f":"Dataset[[#This Row],[2025/26 From - Spending review Topic 1]]+Dataset[[#This Row],[2025/26 From - Spending review Topic 2]]+Dataset[[#This Row],[2025/26 From - Spending review Topic 3]]+Dataset[[#This Row],[2025/26 From - Spending review Topic 4]]+Dataset[[#This Row],[2025/26 From - Other reallocations]]","v":0},{"$f":"Dataset[[#This Row],[2026/27 From - Spending review Topic 1]]+Dataset[[#This Row],[2026/27 From - Spending review Topic 2]]+Dataset[[#This Row],[2026/27 From - Spending review Topic 3]]+Dataset[[#This Row],[2026/27 From - Spending review Topic 4]]+Dataset[[#This Row],[2026/27 From - Other reallocations]]","v":0},{"$f":"Dataset[[#This Row],[2027/28 From - Spending review Topic 1]]+Dataset[[#This Row],[2027/28 From - Spending review Topic 2]]+Dataset[[#This Row],[2027/28 From - Spending review Topic 3]]+Dataset[[#This Row],[2027/28 From - Spending review Topic 4]]+Dataset[[#This Row],[2027/28 From - Other reallocations]]","v":0},{"$f":"Dataset[[#This Row],[2025/26 To - Spending review Topic 1]]+Dataset[[#This Row],[2025/26 To - Spending review Topic 2]]+Dataset[[#This Row],[2025/26 To - Spending review Topic 3]]+Dataset[[#This Row],[2025/26 To - Spending review Topic 4]]+Dataset[[#This Row],[2025/26 To - Other reallocations]]","v":0},{"$f":"Dataset[[#This Row],[2026/27 To - Spending review Topic 1]]+Dataset[[#This Row],[2026/27 To - Spending review Topic 2]]+Dataset[[#This Row],[2026/27 To - Spending review Topic 3]]+Dataset[[#This Row],[2026/27 To - Spending review Topic 4]]+Dataset[[#This Row],[2026/27 To - Other reallocations]]","v":0},{"$f":"Dataset[[#This Row],[2027/28 To - Spending review Topic 1]]+Dataset[[#This Row],[2027/28 To - Spending review Topic 2]]+Dataset[[#This Row],[2027/28 To - Spending review Topic 3]]+Dataset[[#This Row],[2027/28 To - Spending review Topic 4]]+Dataset[[#This Row],[2027/28 To - Other reallocations]]","v":0},{"$f":"Dataset[[#This Row],[2025/26 Reduction]]+Dataset[[#This Row],[2025/26 From - Total]]","v":0},{"$f":"Dataset[[#This Row],[2026/27 Reduction]]+Dataset[[#This Row],[2026/27 From - Total]]","v":0},{"$f":"Dataset[[#This Row],[2027/28 Reduction]]+Dataset[[#This Row],[2027/28 From - Total]]","v":0},{"$f":"Dataset[[#This Row],[2024/25 Reduction]]","v":0},{"$f":"SUM(Dataset[[#This Row],[2025/26 Reduction]],Dataset[[#This Row],[2025/26 From - Total]],Dataset[[#This Row],[2025/26 To - Total]])","v":0},{"$f":"SUM(Dataset[[#This Row],[2026/27 Reduction]],Dataset[[#This Row],[2026/27 From - Total]],Dataset[[#This Row],[2026/27 To - Total]])","v":0},{"$f":"SUM(Dataset[[#This Row],[2027/28 Reduction]],Dataset[[#This Row],[2027/28 From - Total]],Dataset[[#This Row],[2027/28 To - Total]])","v":0},{"$f":"Dataset[[#This Row],[2024/25 Baseline]]+Dataset[[#This Row],[2024/25 Total change]]","v":0},{"$f":"Dataset[[#This Row],[2025/26 Baseline]]+Dataset[[#This Row],[2025/26 Total change]]","v":0},{"$f":"Dataset[[#This Row],[2026/27 Baseline]]+Dataset[[#This Row],[2026/27 Total change]]","v":0},{"$f":"Dataset[[#This Row],[2027/28 Baseline]]+Dataset[[#This Row],[2027/28 Total change]]","v":0}]
["NAT|Non-transfer item","40|Inventory: Medical supplies","2025_26","MTEC2025",40,1,2,51353,81,"40","01","02","051353","000081","40|01|02|000081","01","01","02","27","27","01|01|02|27|27","National","Transport","Administration","Management","Non-transfer item","Current","Current payments","Goods and services","Inventory: Medical supplies","Inventory: Medical supplies","Economic development","Economic regulation and infrastructure","NAT",0,0,0,0,0,0,null,0,0,0,0,null,null,null,null,null,null,null,null,null,null,null,null,null,null,null,null,null,null,null,null,null,null,null,null,null,null,null,null,null,null,null,null,null,null,{"$f":"Dataset[[#This Row],[2025/26 From - Spending review Topic 1]]+Dataset[[#This Row],[2025/26 From - Spending review Topic 2]]+Dataset[[#This Row],[2025/26 From - Spending review Topic 3]]+Dataset[[#This Row],[2025/26 From - Spending review Topic 4]]+Dataset[[#This Row],[2025/26 From - Other reallocations]]","v":0},{"$f":"Dataset[[#This Row],[2026/27 From - Spending review Topic 1]]+Dataset[[#This Row],[2026/27 From - Spending review Topic 2]]+Dataset[[#This Row],[2026/27 From - Spending review Topic 3]]+Dataset[[#This Row],[2026/27 From - Spending review Topic 4]]+Dataset[[#This Row],[2026/27 From - Other reallocations]]","v":0},{"$f":"Dataset[[#This Row],[2027/28 From - Spending review Topic 1]]+Dataset[[#This Row],[2027/28 From - Spending review Topic 2]]+Dataset[[#This Row],[2027/28 From - Spending review Topic 3]]+Dataset[[#This Row],[2027/28 From - Spending review Topic 4]]+Dataset[[#This Row],[2027/28 From - Other reallocations]]","v":0},{"$f":"Dataset[[#This Row],[2025/26 To - Spending review Topic 1]]+Dataset[[#This Row],[2025/26 To - Spending review Topic 2]]+Dataset[[#This Row],[2025/26 To - Spending review Topic 3]]+Dataset[[#This Row],[2025/26 To - Spending review Topic 4]]+Dataset[[#This Row],[2025/26 To - Other reallocations]]","v":0},{"$f":"Dataset[[#This Row],[2026/27 To - Spending review Topic 1]]+Dataset[[#This Row],[2026/27 To - Spending review Topic 2]]+Dataset[[#This Row],[2026/27 To - Spending review Topic 3]]+Dataset[[#This Row],[2026/27 To - Spending review Topic 4]]+Dataset[[#This Row],[2026/27 To - Other reallocations]]","v":0},{"$f":"Dataset[[#This Row],[2027/28 To - Spending review Topic 1]]+Dataset[[#This Row],[2027/28 To - Spending review Topic 2]]+Dataset[[#This Row],[2027/28 To - Spending review Topic 3]]+Dataset[[#This Row],[2027/28 To - Spending review Topic 4]]+Dataset[[#This Row],[2027/28 To - Other reallocations]]","v":0},{"$f":"Dataset[[#This Row],[2025/26 Reduction]]+Dataset[[#This Row],[2025/26 From - Total]]","v":0},{"$f":"Dataset[[#This Row],[2026/27 Reduction]]+Dataset[[#This Row],[2026/27 From - Total]]","v":0},{"$f":"Dataset[[#This Row],[2027/28 Reduction]]+Dataset[[#This Row],[2027/28 From - Total]]","v":0},{"$f":"Dataset[[#This Row],[2024/25 Reduction]]","v":0},{"$f":"SUM(Dataset[[#This Row],[2025/26 Reduction]],Dataset[[#This Row],[2025/26 From - Total]],Dataset[[#This Row],[2025/26 To - Total]])","v":0},{"$f":"SUM(Dataset[[#This Row],[2026/27 Reduction]],Dataset[[#This Row],[2026/27 From - Total]],Dataset[[#This Row],[2026/27 To - Total]])","v":0},{"$f":"SUM(Dataset[[#This Row],[2027/28 Reduction]],Dataset[[#This Row],[2027/28 From - Total]],Dataset[[#This Row],[2027/28 To - Total]])","v":0},{"$f":"Dataset[[#This Row],[2024/25 Baseline]]+Dataset[[#This Row],[2024/25 Total change]]","v":0},{"$f":"Dataset[[#This Row],[2025/26 Baseline]]+Dataset[[#This Row],[2025/26 Total change]]","v":0},{"$f":"Dataset[[#This Row],[2026/27 Baseline]]+Dataset[[#This Row],[2026/27 Total change]]","v":0},{"$f":"Dataset[[#This Row],[2027/28 Baseline]]+Dataset[[#This Row],[2027/28 Total change]]","v":0}]
["NAT|Non-transfer item","40|Inventory: Medicine","2025_26","MTEC2025",40,1,2,51354,82,"40","01","02","051354","000082","40|01|02|000082","01","01","02","28","28","01|01|02|28|28","National","Transport","Administration","Management","Non-transfer item","Current","Current payments","Goods and services","Inventory: Medicine","Inventory: Medicine","Economic development","Economic regulation and infrastructure","NAT",0,0,0,0,0,0,null,0,0,0,0,null,null,null,null,null,null,null,null,null,null,null,null,null,null,null,null,null,null,null,null,null,null,null,null,null,null,null,null,null,null,null,null,null,null,{"$f":"Dataset[[#This Row],[2025/26 From - Spending review Topic 1]]+Dataset[[#This Row],[2025/26 From - Spending review Topic 2]]+Dataset[[#This Row],[2025/26 From - Spending review Topic 3]]+Dataset[[#This Row],[2025/26 From - Spending review Topic 4]]+Dataset[[#This Row],[2025/26 From - Other reallocations]]","v":0},{"$f":"Dataset[[#This Row],[2026/27 From - Spending review Topic 1]]+Dataset[[#This Row],[2026/27 From - Spending review Topic 2]]+Dataset[[#This Row],[2026/27 From - Spending review Topic 3]]+Dataset[[#This Row],[2026/27 From - Spending review Topic 4]]+Dataset[[#This Row],[2026/27 From - Other reallocations]]","v":0},{"$f":"Dataset[[#This Row],[2027/28 From - Spending review Topic 1]]+Dataset[[#This Row],[2027/28 From - Spending review Topic 2]]+Dataset[[#This Row],[2027/28 From - Spending review Topic 3]]+Dataset[[#This Row],[2027/28 From - Spending review Topic 4]]+Dataset[[#This Row],[2027/28 From - Other reallocations]]","v":0},{"$f":"Dataset[[#This Row],[2025/26 To - Spending review Topic 1]]+Dataset[[#This Row],[2025/26 To - Spending review Topic 2]]+Dataset[[#This Row],[2025/26 To - Spending review Topic 3]]+Dataset[[#This Row],[2025/26 To - Spending review Topic 4]]+Dataset[[#This Row],[2025/26 To - Other reallocations]]","v":0},{"$f":"Dataset[[#This Row],[2026/27 To - Spending review Topic 1]]+Dataset[[#This Row],[2026/27 To - Spending review Topic 2]]+Dataset[[#This Row],[2026/27 To - Spending review Topic 3]]+Dataset[[#This Row],[2026/27 To - Spending review Topic 4]]+Dataset[[#This Row],[2026/27 To - Other reallocations]]","v":0},{"$f":"Dataset[[#This Row],[2027/28 To - Spending review Topic 1]]+Dataset[[#This Row],[2027/28 To - Spending review Topic 2]]+Dataset[[#This Row],[2027/28 To - Spending review Topic 3]]+Dataset[[#This Row],[2027/28 To - Spending review Topic 4]]+Dataset[[#This Row],[2027/28 To - Other reallocations]]","v":0},{"$f":"Dataset[[#This Row],[2025/26 Reduction]]+Dataset[[#This Row],[2025/26 From - Total]]","v":0},{"$f":"Dataset[[#This Row],[2026/27 Reduction]]+Dataset[[#This Row],[2026/27 From - Total]]","v":0},{"$f":"Dataset[[#This Row],[2027/28 Reduction]]+Dataset[[#This Row],[2027/28 From - Total]]","v":0},{"$f":"Dataset[[#This Row],[2024/25 Reduction]]","v":0},{"$f":"SUM(Dataset[[#This Row],[2025/26 Reduction]],Dataset[[#This Row],[2025/26 From - Total]],Dataset[[#This Row],[2025/26 To - Total]])","v":0},{"$f":"SUM(Dataset[[#This Row],[2026/27 Reduction]],Dataset[[#This Row],[2026/27 From - Total]],Dataset[[#This Row],[2026/27 To - Total]])","v":0},{"$f":"SUM(Dataset[[#This Row],[2027/28 Reduction]],Dataset[[#This Row],[2027/28 From - Total]],Dataset[[#This Row],[2027/28 To - Total]])","v":0},{"$f":"Dataset[[#This Row],[2024/25 Baseline]]+Dataset[[#This Row],[2024/25 Total change]]","v":0},{"$f":"Dataset[[#This Row],[2025/26 Baseline]]+Dataset[[#This Row],[2025/26 Total change]]","v":0},{"$f":"Dataset[[#This Row],[2026/27 Baseline]]+Dataset[[#This Row],[2026/27 Total change]]","v":0},{"$f":"Dataset[[#This Row],[2027/28 Baseline]]+Dataset[[#This Row],[2027/28 Total change]]","v":0}]
["NAT|Non-transfer item","40|Medsas inventory interface","2025_26","MTEC2025",40,1,2,51355,83,"40","01","02","051355","000083","40|01|02|000083","01","01","02","29","29","01|01|02|29|29","National","Transport","Administration","Management","Non-transfer item","Current","Current payments","Goods and services","Medsas inventory interface","Medsas inventory interface","Economic development","Economic regulation and infrastructure","NAT",0,0,0,0,0,0,null,0,0,0,0,null,null,null,null,null,null,null,null,null,null,null,null,null,null,null,null,null,null,null,null,null,null,null,null,null,null,null,null,null,null,null,null,null,null,{"$f":"Dataset[[#This Row],[2025/26 From - Spending review Topic 1]]+Dataset[[#This Row],[2025/26 From - Spending review Topic 2]]+Dataset[[#This Row],[2025/26 From - Spending review Topic 3]]+Dataset[[#This Row],[2025/26 From - Spending review Topic 4]]+Dataset[[#This Row],[2025/26 From - Other reallocations]]","v":0},{"$f":"Dataset[[#This Row],[2026/27 From - Spending review Topic 1]]+Dataset[[#This Row],[2026/27 From - Spending review Topic 2]]+Dataset[[#This Row],[2026/27 From - Spending review Topic 3]]+Dataset[[#This Row],[2026/27 From - Spending review Topic 4]]+Dataset[[#This Row],[2026/27 From - Other reallocations]]","v":0},{"$f":"Dataset[[#This Row],[2027/28 From - Spending review Topic 1]]+Dataset[[#This Row],[2027/28 From - Spending review Topic 2]]+Dataset[[#This Row],[2027/28 From - Spending review Topic 3]]+Dataset[[#This Row],[2027/28 From - Spending review Topic 4]]+Dataset[[#This Row],[2027/28 From - Other reallocations]]","v":0},{"$f":"Dataset[[#This Row],[2025/26 To - Spending review Topic 1]]+Dataset[[#This Row],[2025/26 To - Spending review Topic 2]]+Dataset[[#This Row],[2025/26 To - Spending review Topic 3]]+Dataset[[#This Row],[2025/26 To - Spending review Topic 4]]+Dataset[[#This Row],[2025/26 To - Other reallocations]]","v":0},{"$f":"Dataset[[#This Row],[2026/27 To - Spending review Topic 1]]+Dataset[[#This Row],[2026/27 To - Spending review Topic 2]]+Dataset[[#This Row],[2026/27 To - Spending review Topic 3]]+Dataset[[#This Row],[2026/27 To - Spending review Topic 4]]+Dataset[[#This Row],[2026/27 To - Other reallocations]]","v":0},{"$f":"Dataset[[#This Row],[2027/28 To - Spending review Topic 1]]+Dataset[[#This Row],[2027/28 To - Spending review Topic 2]]+Dataset[[#This Row],[2027/28 To - Spending review Topic 3]]+Dataset[[#This Row],[2027/28 To - Spending review Topic 4]]+Dataset[[#This Row],[2027/28 To - Other reallocations]]","v":0},{"$f":"Dataset[[#This Row],[2025/26 Reduction]]+Dataset[[#This Row],[2025/26 From - Total]]","v":0},{"$f":"Dataset[[#This Row],[2026/27 Reduction]]+Dataset[[#This Row],[2026/27 From - Total]]","v":0},{"$f":"Dataset[[#This Row],[2027/28 Reduction]]+Dataset[[#This Row],[2027/28 From - Total]]","v":0},{"$f":"Dataset[[#This Row],[2024/25 Reduction]]","v":0},{"$f":"SUM(Dataset[[#This Row],[2025/26 Reduction]],Dataset[[#This Row],[2025/26 From - Total]],Dataset[[#This Row],[2025/26 To - Total]])","v":0},{"$f":"SUM(Dataset[[#This Row],[2026/27 Reduction]],Dataset[[#This Row],[2026/27 From - Total]],Dataset[[#This Row],[2026/27 To - Total]])","v":0},{"$f":"SUM(Dataset[[#This Row],[2027/28 Reduction]],Dataset[[#This Row],[2027/28 From - Total]],Dataset[[#This Row],[2027/28 To - Total]])","v":0},{"$f":"Dataset[[#This Row],[2024/25 Baseline]]+Dataset[[#This Row],[2024/25 Total change]]","v":0},{"$f":"Dataset[[#This Row],[2025/26 Baseline]]+Dataset[[#This Row],[2025/26 Total change]]","v":0},{"$f":"Dataset[[#This Row],[2026/27 Baseline]]+Dataset[[#This Row],[2026/27 Total change]]","v":0},{"$f":"Dataset[[#This Row],[2027/28 Baseline]]+Dataset[[#This Row],[2027/28 Total change]]","v":0}]
["NAT|Non-transfer item","40|Inventory: Other supplies","2025_26","MTEC2025",40,1,2,51356,84,"40","01","02","051356","000084","40|01|02|000084","01","01","02","30","30","01|01|02|30|30","National","Transport","Administration","Management","Non-transfer item","Current","Current payments","Goods and services","Inventory: Other supplies","Inventory: Other supplies","Economic development","Economic regulation and infrastructure","NAT",0,0,0,0,0,0,null,0,0,0,0,null,null,null,null,null,null,null,null,null,null,null,null,null,null,null,null,null,null,null,null,null,null,null,null,null,null,null,null,null,null,null,null,null,null,{"$f":"Dataset[[#This Row],[2025/26 From - Spending review Topic 1]]+Dataset[[#This Row],[2025/26 From - Spending review Topic 2]]+Dataset[[#This Row],[2025/26 From - Spending review Topic 3]]+Dataset[[#This Row],[2025/26 From - Spending review Topic 4]]+Dataset[[#This Row],[2025/26 From - Other reallocations]]","v":0},{"$f":"Dataset[[#This Row],[2026/27 From - Spending review Topic 1]]+Dataset[[#This Row],[2026/27 From - Spending review Topic 2]]+Dataset[[#This Row],[2026/27 From - Spending review Topic 3]]+Dataset[[#This Row],[2026/27 From - Spending review Topic 4]]+Dataset[[#This Row],[2026/27 From - Other reallocations]]","v":0},{"$f":"Dataset[[#This Row],[2027/28 From - Spending review Topic 1]]+Dataset[[#This Row],[2027/28 From - Spending review Topic 2]]+Dataset[[#This Row],[2027/28 From - Spending review Topic 3]]+Dataset[[#This Row],[2027/28 From - Spending review Topic 4]]+Dataset[[#This Row],[2027/28 From - Other reallocations]]","v":0},{"$f":"Dataset[[#This Row],[2025/26 To - Spending review Topic 1]]+Dataset[[#This Row],[2025/26 To - Spending review Topic 2]]+Dataset[[#This Row],[2025/26 To - Spending review Topic 3]]+Dataset[[#This Row],[2025/26 To - Spending review Topic 4]]+Dataset[[#This Row],[2025/26 To - Other reallocations]]","v":0},{"$f":"Dataset[[#This Row],[2026/27 To - Spending review Topic 1]]+Dataset[[#This Row],[2026/27 To - Spending review Topic 2]]+Dataset[[#This Row],[2026/27 To - Spending review Topic 3]]+Dataset[[#This Row],[2026/27 To - Spending review Topic 4]]+Dataset[[#This Row],[2026/27 To - Other reallocations]]","v":0},{"$f":"Dataset[[#This Row],[2027/28 To - Spending review Topic 1]]+Dataset[[#This Row],[2027/28 To - Spending review Topic 2]]+Dataset[[#This Row],[2027/28 To - Spending review Topic 3]]+Dataset[[#This Row],[2027/28 To - Spending review Topic 4]]+Dataset[[#This Row],[2027/28 To - Other reallocations]]","v":0},{"$f":"Dataset[[#This Row],[2025/26 Reduction]]+Dataset[[#This Row],[2025/26 From - Total]]","v":0},{"$f":"Dataset[[#This Row],[2026/27 Reduction]]+Dataset[[#This Row],[2026/27 From - Total]]","v":0},{"$f":"Dataset[[#This Row],[2027/28 Reduction]]+Dataset[[#This Row],[2027/28 From - Total]]","v":0},{"$f":"Dataset[[#This Row],[2024/25 Reduction]]","v":0},{"$f":"SUM(Dataset[[#This Row],[2025/26 Reduction]],Dataset[[#This Row],[2025/26 From - Total]],Dataset[[#This Row],[2025/26 To - Total]])","v":0},{"$f":"SUM(Dataset[[#This Row],[2026/27 Reduction]],Dataset[[#This Row],[2026/27 From - Total]],Dataset[[#This Row],[2026/27 To - Total]])","v":0},{"$f":"SUM(Dataset[[#This Row],[2027/28 Reduction]],Dataset[[#This Row],[2027/28 From - Total]],Dataset[[#This Row],[2027/28 To - Total]])","v":0},{"$f":"Dataset[[#This Row],[2024/25 Baseline]]+Dataset[[#This Row],[2024/25 Total change]]","v":0},{"$f":"Dataset[[#This Row],[2025/26 Baseline]]+Dataset[[#This Row],[2025/26 Total change]]","v":0},{"$f":"Dataset[[#This Row],[2026/27 Baseline]]+Dataset[[#This Row],[2026/27 Total change]]","v":0},{"$f":"Dataset[[#This Row],[2027/28 Baseline]]+Dataset[[#This Row],[2027/28 Total change]]","v":0}]
["NAT|Non-transfer item","40|Consumable supplies","2025_26","MTEC2025",40,1,2,51357,85,"40","01","02","051357","000085","40|01|02|000085","01","01","02","31","31","01|01|02|31|31","National","Transport","Administration","Management","Non-transfer item","Current","Current payments","Goods and services","Consumable supplies","Consumable supplies","Economic development","Economic regulation and infrastructure","NAT",17,10,29,142,142,142,89,48,55,57,60,null,null,null,null,null,null,null,null,null,null,null,null,null,null,null,null,null,null,null,null,null,null,null,null,null,null,null,null,null,null,null,null,null,null,{"$f":"Dataset[[#This Row],[2025/26 From - Spending review Topic 1]]+Dataset[[#This Row],[2025/26 From - Spending review Topic 2]]+Dataset[[#This Row],[2025/26 From - Spending review Topic 3]]+Dataset[[#This Row],[2025/26 From - Spending review Topic 4]]+Dataset[[#This Row],[2025/26 From - Other reallocations]]","v":0},{"$f":"Dataset[[#This Row],[2026/27 From - Spending review Topic 1]]+Dataset[[#This Row],[2026/27 From - Spending review Topic 2]]+Dataset[[#This Row],[2026/27 From - Spending review Topic 3]]+Dataset[[#This Row],[2026/27 From - Spending review Topic 4]]+Dataset[[#This Row],[2026/27 From - Other reallocations]]","v":0},{"$f":"Dataset[[#This Row],[2027/28 From - Spending review Topic 1]]+Dataset[[#This Row],[2027/28 From - Spending review Topic 2]]+Dataset[[#This Row],[2027/28 From - Spending review Topic 3]]+Dataset[[#This Row],[2027/28 From - Spending review Topic 4]]+Dataset[[#This Row],[2027/28 From - Other reallocations]]","v":0},{"$f":"Dataset[[#This Row],[2025/26 To - Spending review Topic 1]]+Dataset[[#This Row],[2025/26 To - Spending review Topic 2]]+Dataset[[#This Row],[2025/26 To - Spending review Topic 3]]+Dataset[[#This Row],[2025/26 To - Spending review Topic 4]]+Dataset[[#This Row],[2025/26 To - Other reallocations]]","v":0},{"$f":"Dataset[[#This Row],[2026/27 To - Spending review Topic 1]]+Dataset[[#This Row],[2026/27 To - Spending review Topic 2]]+Dataset[[#This Row],[2026/27 To - Spending review Topic 3]]+Dataset[[#This Row],[2026/27 To - Spending review Topic 4]]+Dataset[[#This Row],[2026/27 To - Other reallocations]]","v":0},{"$f":"Dataset[[#This Row],[2027/28 To - Spending review Topic 1]]+Dataset[[#This Row],[2027/28 To - Spending review Topic 2]]+Dataset[[#This Row],[2027/28 To - Spending review Topic 3]]+Dataset[[#This Row],[2027/28 To - Spending review Topic 4]]+Dataset[[#This Row],[2027/28 To - Other reallocations]]","v":0},{"$f":"Dataset[[#This Row],[2025/26 Reduction]]+Dataset[[#This Row],[2025/26 From - Total]]","v":0},{"$f":"Dataset[[#This Row],[2026/27 Reduction]]+Dataset[[#This Row],[2026/27 From - Total]]","v":0},{"$f":"Dataset[[#This Row],[2027/28 Reduction]]+Dataset[[#This Row],[2027/28 From - Total]]","v":0},{"$f":"Dataset[[#This Row],[2024/25 Reduction]]","v":0},{"$f":"SUM(Dataset[[#This Row],[2025/26 Reduction]],Dataset[[#This Row],[2025/26 From - Total]],Dataset[[#This Row],[2025/26 To - Total]])","v":0},{"$f":"SUM(Dataset[[#This Row],[2026/27 Reduction]],Dataset[[#This Row],[2026/27 From - Total]],Dataset[[#This Row],[2026/27 To - Total]])","v":0},{"$f":"SUM(Dataset[[#This Row],[2027/28 Reduction]],Dataset[[#This Row],[2027/28 From - Total]],Dataset[[#This Row],[2027/28 To - Total]])","v":0},{"$f":"Dataset[[#This Row],[2024/25 Baseline]]+Dataset[[#This Row],[2024/25 Total change]]","v":48},{"$f":"Dataset[[#This Row],[2025/26 Baseline]]+Dataset[[#This Row],[2025/26 Total change]]","v":55},{"$f":"Dataset[[#This Row],[2026/27 Baseline]]+Dataset[[#This Row],[2026/27 Total change]]","v":57},{"$f":"Dataset[[#This Row],[2027/28 Baseline]]+Dataset[[#This Row],[2027/28 Total change]]","v":60}]
["NAT|Non-transfer item","40|Consumables: Stationery, printing and office supplies","2025_26","MTEC2025",40,1,2,51358,86,"40","01","02","051358","000086","40|01|02|000086","01","01","02","32","32","01|01|02|32|32","National","Transport","Administration","Management","Non-transfer item","Current","Current payments","Goods and services","Consumables: Stationery, printing and office supplies","Consumables: Stationery, printing and office supplies","Economic development","Economic regulation and infrastructure","NAT",208,169,431,1202,1202,1202,507,950,1088,1138,1189,null,null,null,null,null,null,null,null,null,null,null,null,null,null,null,null,null,null,null,null,null,null,null,null,null,null,null,null,null,null,null,null,null,null,{"$f":"Dataset[[#This Row],[2025/26 From - Spending review Topic 1]]+Dataset[[#This Row],[2025/26 From - Spending review Topic 2]]+Dataset[[#This Row],[2025/26 From - Spending review Topic 3]]+Dataset[[#This Row],[2025/26 From - Spending review Topic 4]]+Dataset[[#This Row],[2025/26 From - Other reallocations]]","v":0},{"$f":"Dataset[[#This Row],[2026/27 From - Spending review Topic 1]]+Dataset[[#This Row],[2026/27 From - Spending review Topic 2]]+Dataset[[#This Row],[2026/27 From - Spending review Topic 3]]+Dataset[[#This Row],[2026/27 From - Spending review Topic 4]]+Dataset[[#This Row],[2026/27 From - Other reallocations]]","v":0},{"$f":"Dataset[[#This Row],[2027/28 From - Spending review Topic 1]]+Dataset[[#This Row],[2027/28 From - Spending review Topic 2]]+Dataset[[#This Row],[2027/28 From - Spending review Topic 3]]+Dataset[[#This Row],[2027/28 From - Spending review Topic 4]]+Dataset[[#This Row],[2027/28 From - Other reallocations]]","v":0},{"$f":"Dataset[[#This Row],[2025/26 To - Spending review Topic 1]]+Dataset[[#This Row],[2025/26 To - Spending review Topic 2]]+Dataset[[#This Row],[2025/26 To - Spending review Topic 3]]+Dataset[[#This Row],[2025/26 To - Spending review Topic 4]]+Dataset[[#This Row],[2025/26 To - Other reallocations]]","v":0},{"$f":"Dataset[[#This Row],[2026/27 To - Spending review Topic 1]]+Dataset[[#This Row],[2026/27 To - Spending review Topic 2]]+Dataset[[#This Row],[2026/27 To - Spending review Topic 3]]+Dataset[[#This Row],[2026/27 To - Spending review Topic 4]]+Dataset[[#This Row],[2026/27 To - Other reallocations]]","v":0},{"$f":"Dataset[[#This Row],[2027/28 To - Spending review Topic 1]]+Dataset[[#This Row],[2027/28 To - Spending review Topic 2]]+Dataset[[#This Row],[2027/28 To - Spending review Topic 3]]+Dataset[[#This Row],[2027/28 To - Spending review Topic 4]]+Dataset[[#This Row],[2027/28 To - Other reallocations]]","v":0},{"$f":"Dataset[[#This Row],[2025/26 Reduction]]+Dataset[[#This Row],[2025/26 From - Total]]","v":0},{"$f":"Dataset[[#This Row],[2026/27 Reduction]]+Dataset[[#This Row],[2026/27 From - Total]]","v":0},{"$f":"Dataset[[#This Row],[2027/28 Reduction]]+Dataset[[#This Row],[2027/28 From - Total]]","v":0},{"$f":"Dataset[[#This Row],[2024/25 Reduction]]","v":0},{"$f":"SUM(Dataset[[#This Row],[2025/26 Reduction]],Dataset[[#This Row],[2025/26 From - Total]],Dataset[[#This Row],[2025/26 To - Total]])","v":0},{"$f":"SUM(Dataset[[#This Row],[2026/27 Reduction]],Dataset[[#This Row],[2026/27 From - Total]],Dataset[[#This Row],[2026/27 To - Total]])","v":0},{"$f":"SUM(Dataset[[#This Row],[2027/28 Reduction]],Dataset[[#This Row],[2027/28 From - Total]],Dataset[[#This Row],[2027/28 To - Total]])","v":0},{"$f":"Dataset[[#This Row],[2024/25 Baseline]]+Dataset[[#This Row],[2024/25 Total change]]","v":950},{"$f":"Dataset[[#This Row],[2025/26 Baseline]]+Dataset[[#This Row],[2025/26 Total change]]","v":1088},{"$f":"Dataset[[#This Row],[2026/27 Baseline]]+Dataset[[#This Row],[2026/27 Total change]]","v":1138},{"$f":"Dataset[[#This Row],[2027/28 Baseline]]+Dataset[[#This Row],[2027/28 Total change]]","v":1189}]
["NAT|Non-transfer item","40|Operating leases","2025_26","MTEC2025",40,1,2,51359,87,"40","01","02","051359","000087","40|01|02|000087","01","01","02","33","33","01|01|02|33|33","National","Transport","Administration","Management","Non-transfer item","Current","Current payments","Goods and services","Operating leases","Operating leases","Economic development","Economic regulation and infrastructure","NAT",0,0,0,0,0,0,null,0,0,0,0,null,null,null,null,null,null,null,null,null,null,null,null,null,null,null,null,null,null,null,null,null,null,null,null,null,null,null,null,null,null,null,null,null,null,{"$f":"Dataset[[#This Row],[2025/26 From - Spending review Topic 1]]+Dataset[[#This Row],[2025/26 From - Spending review Topic 2]]+Dataset[[#This Row],[2025/26 From - Spending review Topic 3]]+Dataset[[#This Row],[2025/26 From - Spending review Topic 4]]+Dataset[[#This Row],[2025/26 From - Other reallocations]]","v":0},{"$f":"Dataset[[#This Row],[2026/27 From - Spending review Topic 1]]+Dataset[[#This Row],[2026/27 From - Spending review Topic 2]]+Dataset[[#This Row],[2026/27 From - Spending review Topic 3]]+Dataset[[#This Row],[2026/27 From - Spending review Topic 4]]+Dataset[[#This Row],[2026/27 From - Other reallocations]]","v":0},{"$f":"Dataset[[#This Row],[2027/28 From - Spending review Topic 1]]+Dataset[[#This Row],[2027/28 From - Spending review Topic 2]]+Dataset[[#This Row],[2027/28 From - Spending review Topic 3]]+Dataset[[#This Row],[2027/28 From - Spending review Topic 4]]+Dataset[[#This Row],[2027/28 From - Other reallocations]]","v":0},{"$f":"Dataset[[#This Row],[2025/26 To - Spending review Topic 1]]+Dataset[[#This Row],[2025/26 To - Spending review Topic 2]]+Dataset[[#This Row],[2025/26 To - Spending review Topic 3]]+Dataset[[#This Row],[2025/26 To - Spending review Topic 4]]+Dataset[[#This Row],[2025/26 To - Other reallocations]]","v":0},{"$f":"Dataset[[#This Row],[2026/27 To - Spending review Topic 1]]+Dataset[[#This Row],[2026/27 To - Spending review Topic 2]]+Dataset[[#This Row],[2026/27 To - Spending review Topic 3]]+Dataset[[#This Row],[2026/27 To - Spending review Topic 4]]+Dataset[[#This Row],[2026/27 To - Other reallocations]]","v":0},{"$f":"Dataset[[#This Row],[2027/28 To - Spending review Topic 1]]+Dataset[[#This Row],[2027/28 To - Spending review Topic 2]]+Dataset[[#This Row],[2027/28 To - Spending review Topic 3]]+Dataset[[#This Row],[2027/28 To - Spending review Topic 4]]+Dataset[[#This Row],[2027/28 To - Other reallocations]]","v":0},{"$f":"Dataset[[#This Row],[2025/26 Reduction]]+Dataset[[#This Row],[2025/26 From - Total]]","v":0},{"$f":"Dataset[[#This Row],[2026/27 Reduction]]+Dataset[[#This Row],[2026/27 From - Total]]","v":0},{"$f":"Dataset[[#This Row],[2027/28 Reduction]]+Dataset[[#This Row],[2027/28 From - Total]]","v":0},{"$f":"Dataset[[#This Row],[2024/25 Reduction]]","v":0},{"$f":"SUM(Dataset[[#This Row],[2025/26 Reduction]],Dataset[[#This Row],[2025/26 From - Total]],Dataset[[#This Row],[2025/26 To - Total]])","v":0},{"$f":"SUM(Dataset[[#This Row],[2026/27 Reduction]],Dataset[[#This Row],[2026/27 From - Total]],Dataset[[#This Row],[2026/27 To - Total]])","v":0},{"$f":"SUM(Dataset[[#This Row],[2027/28 Reduction]],Dataset[[#This Row],[2027/28 From - Total]],Dataset[[#This Row],[2027/28 To - Total]])","v":0},{"$f":"Dataset[[#This Row],[2024/25 Baseline]]+Dataset[[#This Row],[2024/25 Total change]]","v":0},{"$f":"Dataset[[#This Row],[2025/26 Baseline]]+Dataset[[#This Row],[2025/26 Total change]]","v":0},{"$f":"Dataset[[#This Row],[2026/27 Baseline]]+Dataset[[#This Row],[2026/27 Total change]]","v":0},{"$f":"Dataset[[#This Row],[2027/28 Baseline]]+Dataset[[#This Row],[2027/28 Total change]]","v":0}]
["NAT|Non-transfer item","40|Rental and hiring","2025_26","MTEC2025",40,1,2,51360,88,"40","01","02","051360","000088","40|01|02|000088","01","01","02","34","34","01|01|02|34|34","National","Transport","Administration","Management","Non-transfer item","Current","Current payments","Goods and services","Rental and hiring","Rental and hiring","Economic development","Economic regulation and infrastructure","NAT",13,0,0,0,0,0,null,0,0,0,0,null,null,null,null,null,null,null,null,null,null,null,null,null,null,null,null,null,null,null,null,null,null,null,null,null,null,null,null,null,null,null,null,null,null,{"$f":"Dataset[[#This Row],[2025/26 From - Spending review Topic 1]]+Dataset[[#This Row],[2025/26 From - Spending review Topic 2]]+Dataset[[#This Row],[2025/26 From - Spending review Topic 3]]+Dataset[[#This Row],[2025/26 From - Spending review Topic 4]]+Dataset[[#This Row],[2025/26 From - Other reallocations]]","v":0},{"$f":"Dataset[[#This Row],[2026/27 From - Spending review Topic 1]]+Dataset[[#This Row],[2026/27 From - Spending review Topic 2]]+Dataset[[#This Row],[2026/27 From - Spending review Topic 3]]+Dataset[[#This Row],[2026/27 From - Spending review Topic 4]]+Dataset[[#This Row],[2026/27 From - Other reallocations]]","v":0},{"$f":"Dataset[[#This Row],[2027/28 From - Spending review Topic 1]]+Dataset[[#This Row],[2027/28 From - Spending review Topic 2]]+Dataset[[#This Row],[2027/28 From - Spending review Topic 3]]+Dataset[[#This Row],[2027/28 From - Spending review Topic 4]]+Dataset[[#This Row],[2027/28 From - Other reallocations]]","v":0},{"$f":"Dataset[[#This Row],[2025/26 To - Spending review Topic 1]]+Dataset[[#This Row],[2025/26 To - Spending review Topic 2]]+Dataset[[#This Row],[2025/26 To - Spending review Topic 3]]+Dataset[[#This Row],[2025/26 To - Spending review Topic 4]]+Dataset[[#This Row],[2025/26 To - Other reallocations]]","v":0},{"$f":"Dataset[[#This Row],[2026/27 To - Spending review Topic 1]]+Dataset[[#This Row],[2026/27 To - Spending review Topic 2]]+Dataset[[#This Row],[2026/27 To - Spending review Topic 3]]+Dataset[[#This Row],[2026/27 To - Spending review Topic 4]]+Dataset[[#This Row],[2026/27 To - Other reallocations]]","v":0},{"$f":"Dataset[[#This Row],[2027/28 To - Spending review Topic 1]]+Dataset[[#This Row],[2027/28 To - Spending review Topic 2]]+Dataset[[#This Row],[2027/28 To - Spending review Topic 3]]+Dataset[[#This Row],[2027/28 To - Spending review Topic 4]]+Dataset[[#This Row],[2027/28 To - Other reallocations]]","v":0},{"$f":"Dataset[[#This Row],[2025/26 Reduction]]+Dataset[[#This Row],[2025/26 From - Total]]","v":0},{"$f":"Dataset[[#This Row],[2026/27 Reduction]]+Dataset[[#This Row],[2026/27 From - Total]]","v":0},{"$f":"Dataset[[#This Row],[2027/28 Reduction]]+Dataset[[#This Row],[2027/28 From - Total]]","v":0},{"$f":"Dataset[[#This Row],[2024/25 Reduction]]","v":0},{"$f":"SUM(Dataset[[#This Row],[2025/26 Reduction]],Dataset[[#This Row],[2025/26 From - Total]],Dataset[[#This Row],[2025/26 To - Total]])","v":0},{"$f":"SUM(Dataset[[#This Row],[2026/27 Reduction]],Dataset[[#This Row],[2026/27 From - Total]],Dataset[[#This Row],[2026/27 To - Total]])","v":0},{"$f":"SUM(Dataset[[#This Row],[2027/28 Reduction]],Dataset[[#This Row],[2027/28 From - Total]],Dataset[[#This Row],[2027/28 To - Total]])","v":0},{"$f":"Dataset[[#This Row],[2024/25 Baseline]]+Dataset[[#This Row],[2024/25 Total change]]","v":0},{"$f":"Dataset[[#This Row],[2025/26 Baseline]]+Dataset[[#This Row],[2025/26 Total change]]","v":0},{"$f":"Dataset[[#This Row],[2026/27 Baseline]]+Dataset[[#This Row],[2026/27 Total change]]","v":0},{"$f":"Dataset[[#This Row],[2027/28 Baseline]]+Dataset[[#This Row],[2027/28 Total change]]","v":0}]
["NAT|Non-transfer item","40|Property payments","2025_26","MTEC2025",40,1,2,51361,89,"40","01","02","051361","000089","40|01|02|000089","01","01","02","35","35","01|01|02|35|35","National","Transport","Administration","Management","Non-transfer item","Current","Current payments","Goods and services","Property payments","Property payments","Economic development","Economic regulation and infrastructure","NAT",68,0,0,0,0,0,null,0,0,0,0,null,null,null,null,null,null,null,null,null,null,null,null,null,null,null,null,null,null,null,null,null,null,null,null,null,null,null,null,null,null,null,null,null,null,{"$f":"Dataset[[#This Row],[2025/26 From - Spending review Topic 1]]+Dataset[[#This Row],[2025/26 From - Spending review Topic 2]]+Dataset[[#This Row],[2025/26 From - Spending review Topic 3]]+Dataset[[#This Row],[2025/26 From - Spending review Topic 4]]+Dataset[[#This Row],[2025/26 From - Other reallocations]]","v":0},{"$f":"Dataset[[#This Row],[2026/27 From - Spending review Topic 1]]+Dataset[[#This Row],[2026/27 From - Spending review Topic 2]]+Dataset[[#This Row],[2026/27 From - Spending review Topic 3]]+Dataset[[#This Row],[2026/27 From - Spending review Topic 4]]+Dataset[[#This Row],[2026/27 From - Other reallocations]]","v":0},{"$f":"Dataset[[#This Row],[2027/28 From - Spending review Topic 1]]+Dataset[[#This Row],[2027/28 From - Spending review Topic 2]]+Dataset[[#This Row],[2027/28 From - Spending review Topic 3]]+Dataset[[#This Row],[2027/28 From - Spending review Topic 4]]+Dataset[[#This Row],[2027/28 From - Other reallocations]]","v":0},{"$f":"Dataset[[#This Row],[2025/26 To - Spending review Topic 1]]+Dataset[[#This Row],[2025/26 To - Spending review Topic 2]]+Dataset[[#This Row],[2025/26 To - Spending review Topic 3]]+Dataset[[#This Row],[2025/26 To - Spending review Topic 4]]+Dataset[[#This Row],[2025/26 To - Other reallocations]]","v":0},{"$f":"Dataset[[#This Row],[2026/27 To - Spending review Topic 1]]+Dataset[[#This Row],[2026/27 To - Spending review Topic 2]]+Dataset[[#This Row],[2026/27 To - Spending review Topic 3]]+Dataset[[#This Row],[2026/27 To - Spending review Topic 4]]+Dataset[[#This Row],[2026/27 To - Other reallocations]]","v":0},{"$f":"Dataset[[#This Row],[2027/28 To - Spending review Topic 1]]+Dataset[[#This Row],[2027/28 To - Spending review Topic 2]]+Dataset[[#This Row],[2027/28 To - Spending review Topic 3]]+Dataset[[#This Row],[2027/28 To - Spending review Topic 4]]+Dataset[[#This Row],[2027/28 To - Other reallocations]]","v":0},{"$f":"Dataset[[#This Row],[2025/26 Reduction]]+Dataset[[#This Row],[2025/26 From - Total]]","v":0},{"$f":"Dataset[[#This Row],[2026/27 Reduction]]+Dataset[[#This Row],[2026/27 From - Total]]","v":0},{"$f":"Dataset[[#This Row],[2027/28 Reduction]]+Dataset[[#This Row],[2027/28 From - Total]]","v":0},{"$f":"Dataset[[#This Row],[2024/25 Reduction]]","v":0},{"$f":"SUM(Dataset[[#This Row],[2025/26 Reduction]],Dataset[[#This Row],[2025/26 From - Total]],Dataset[[#This Row],[2025/26 To - Total]])","v":0},{"$f":"SUM(Dataset[[#This Row],[2026/27 Reduction]],Dataset[[#This Row],[2026/27 From - Total]],Dataset[[#This Row],[2026/27 To - Total]])","v":0},{"$f":"SUM(Dataset[[#This Row],[2027/28 Reduction]],Dataset[[#This Row],[2027/28 From - Total]],Dataset[[#This Row],[2027/28 To - Total]])","v":0},{"$f":"Dataset[[#This Row],[2024/25 Baseline]]+Dataset[[#This Row],[2024/25 Total change]]","v":0},{"$f":"Dataset[[#This Row],[2025/26 Baseline]]+Dataset[[#This Row],[2025/26 Total change]]","v":0},{"$f":"Dataset[[#This Row],[2026/27 Baseline]]+Dataset[[#This Row],[2026/27 Total change]]","v":0},{"$f":"Dataset[[#This Row],[2027/28 Baseline]]+Dataset[[#This Row],[2027/28 Total change]]","v":0}]
["NAT|Non-transfer item","40|Transport provided: Departmental activity","2025_26","MTEC2025",40,1,2,51362,90,"40","01","02","051362","000090","40|01|02|000090","01","01","02","36","36","01|01|02|36|36","National","Transport","Administration","Management","Non-transfer item","Current","Current payments","Goods and services","Transport provided: Departmental activity","Transport provided: Departmental activity","Economic development","Economic regulation and infrastructure","NAT",0,0,0,0,0,0,null,0,0,0,0,null,null,null,null,null,null,null,null,null,null,null,null,null,null,null,null,null,null,null,null,null,null,null,null,null,null,null,null,null,null,null,null,null,null,{"$f":"Dataset[[#This Row],[2025/26 From - Spending review Topic 1]]+Dataset[[#This Row],[2025/26 From - Spending review Topic 2]]+Dataset[[#This Row],[2025/26 From - Spending review Topic 3]]+Dataset[[#This Row],[2025/26 From - Spending review Topic 4]]+Dataset[[#This Row],[2025/26 From - Other reallocations]]","v":0},{"$f":"Dataset[[#This Row],[2026/27 From - Spending review Topic 1]]+Dataset[[#This Row],[2026/27 From - Spending review Topic 2]]+Dataset[[#This Row],[2026/27 From - Spending review Topic 3]]+Dataset[[#This Row],[2026/27 From - Spending review Topic 4]]+Dataset[[#This Row],[2026/27 From - Other reallocations]]","v":0},{"$f":"Dataset[[#This Row],[2027/28 From - Spending review Topic 1]]+Dataset[[#This Row],[2027/28 From - Spending review Topic 2]]+Dataset[[#This Row],[2027/28 From - Spending review Topic 3]]+Dataset[[#This Row],[2027/28 From - Spending review Topic 4]]+Dataset[[#This Row],[2027/28 From - Other reallocations]]","v":0},{"$f":"Dataset[[#This Row],[2025/26 To - Spending review Topic 1]]+Dataset[[#This Row],[2025/26 To - Spending review Topic 2]]+Dataset[[#This Row],[2025/26 To - Spending review Topic 3]]+Dataset[[#This Row],[2025/26 To - Spending review Topic 4]]+Dataset[[#This Row],[2025/26 To - Other reallocations]]","v":0},{"$f":"Dataset[[#This Row],[2026/27 To - Spending review Topic 1]]+Dataset[[#This Row],[2026/27 To - Spending review Topic 2]]+Dataset[[#This Row],[2026/27 To - Spending review Topic 3]]+Dataset[[#This Row],[2026/27 To - Spending review Topic 4]]+Dataset[[#This Row],[2026/27 To - Other reallocations]]","v":0},{"$f":"Dataset[[#This Row],[2027/28 To - Spending review Topic 1]]+Dataset[[#This Row],[2027/28 To - Spending review Topic 2]]+Dataset[[#This Row],[2027/28 To - Spending review Topic 3]]+Dataset[[#This Row],[2027/28 To - Spending review Topic 4]]+Dataset[[#This Row],[2027/28 To - Other reallocations]]","v":0},{"$f":"Dataset[[#This Row],[2025/26 Reduction]]+Dataset[[#This Row],[2025/26 From - Total]]","v":0},{"$f":"Dataset[[#This Row],[2026/27 Reduction]]+Dataset[[#This Row],[2026/27 From - Total]]","v":0},{"$f":"Dataset[[#This Row],[2027/28 Reduction]]+Dataset[[#This Row],[2027/28 From - Total]]","v":0},{"$f":"Dataset[[#This Row],[2024/25 Reduction]]","v":0},{"$f":"SUM(Dataset[[#This Row],[2025/26 Reduction]],Dataset[[#This Row],[2025/26 From - Total]],Dataset[[#This Row],[2025/26 To - Total]])","v":0},{"$f":"SUM(Dataset[[#This Row],[2026/27 Reduction]],Dataset[[#This Row],[2026/27 From - Total]],Dataset[[#This Row],[2026/27 To - Total]])","v":0},{"$f":"SUM(Dataset[[#This Row],[2027/28 Reduction]],Dataset[[#This Row],[2027/28 From - Total]],Dataset[[#This Row],[2027/28 To - Total]])","v":0},{"$f":"Dataset[[#This Row],[2024/25 Baseline]]+Dataset[[#This Row],[2024/25 Total change]]","v":0},{"$f":"Dataset[[#This Row],[2025/26 Baseline]]+Dataset[[#This Row],[2025/26 Total change]]","v":0},{"$f":"Dataset[[#This Row],[2026/27 Baseline]]+Dataset[[#This Row],[2026/27 Total change]]","v":0},{"$f":"Dataset[[#This Row],[2027/28 Baseline]]+Dataset[[#This Row],[2027/28 Total change]]","v":0}]
["NAT|Non-transfer item","40|Travel and subsistence","2025_26","MTEC2025",40,1,2,51363,91,"40","01","02","051363","000091","40|01|02|000091","01","01","02","37","37","01|01|02|37|37","National","Transport","Administration","Management","Non-transfer item","Current","Current payments","Goods and services","Travel and subsistence","Travel and subsistence","Economic development","Economic regulation and infrastructure","NAT",973,1674,3805,8089,8089,8089,6259,6483,7426,7766,8117,null,null,null,null,null,null,null,null,null,null,null,null,null,null,null,null,null,null,null,null,null,null,null,null,null,null,null,null,null,null,null,null,null,null,{"$f":"Dataset[[#This Row],[2025/26 From - Spending review Topic 1]]+Dataset[[#This Row],[2025/26 From - Spending review Topic 2]]+Dataset[[#This Row],[2025/26 From - Spending review Topic 3]]+Dataset[[#This Row],[2025/26 From - Spending review Topic 4]]+Dataset[[#This Row],[2025/26 From - Other reallocations]]","v":0},{"$f":"Dataset[[#This Row],[2026/27 From - Spending review Topic 1]]+Dataset[[#This Row],[2026/27 From - Spending review Topic 2]]+Dataset[[#This Row],[2026/27 From - Spending review Topic 3]]+Dataset[[#This Row],[2026/27 From - Spending review Topic 4]]+Dataset[[#This Row],[2026/27 From - Other reallocations]]","v":0},{"$f":"Dataset[[#This Row],[2027/28 From - Spending review Topic 1]]+Dataset[[#This Row],[2027/28 From - Spending review Topic 2]]+Dataset[[#This Row],[2027/28 From - Spending review Topic 3]]+Dataset[[#This Row],[2027/28 From - Spending review Topic 4]]+Dataset[[#This Row],[2027/28 From - Other reallocations]]","v":0},{"$f":"Dataset[[#This Row],[2025/26 To - Spending review Topic 1]]+Dataset[[#This Row],[2025/26 To - Spending review Topic 2]]+Dataset[[#This Row],[2025/26 To - Spending review Topic 3]]+Dataset[[#This Row],[2025/26 To - Spending review Topic 4]]+Dataset[[#This Row],[2025/26 To - Other reallocations]]","v":0},{"$f":"Dataset[[#This Row],[2026/27 To - Spending review Topic 1]]+Dataset[[#This Row],[2026/27 To - Spending review Topic 2]]+Dataset[[#This Row],[2026/27 To - Spending review Topic 3]]+Dataset[[#This Row],[2026/27 To - Spending review Topic 4]]+Dataset[[#This Row],[2026/27 To - Other reallocations]]","v":0},{"$f":"Dataset[[#This Row],[2027/28 To - Spending review Topic 1]]+Dataset[[#This Row],[2027/28 To - Spending review Topic 2]]+Dataset[[#This Row],[2027/28 To - Spending review Topic 3]]+Dataset[[#This Row],[2027/28 To - Spending review Topic 4]]+Dataset[[#This Row],[2027/28 To - Other reallocations]]","v":0},{"$f":"Dataset[[#This Row],[2025/26 Reduction]]+Dataset[[#This Row],[2025/26 From - Total]]","v":0},{"$f":"Dataset[[#This Row],[2026/27 Reduction]]+Dataset[[#This Row],[2026/27 From - Total]]","v":0},{"$f":"Dataset[[#This Row],[2027/28 Reduction]]+Dataset[[#This Row],[2027/28 From - Total]]","v":0},{"$f":"Dataset[[#This Row],[2024/25 Reduction]]","v":0},{"$f":"SUM(Dataset[[#This Row],[2025/26 Reduction]],Dataset[[#This Row],[2025/26 From - Total]],Dataset[[#This Row],[2025/26 To - Total]])","v":0},{"$f":"SUM(Dataset[[#This Row],[2026/27 Reduction]],Dataset[[#This Row],[2026/27 From - Total]],Dataset[[#This Row],[2026/27 To - Total]])","v":0},{"$f":"SUM(Dataset[[#This Row],[2027/28 Reduction]],Dataset[[#This Row],[2027/28 From - Total]],Dataset[[#This Row],[2027/28 To - Total]])","v":0},{"$f":"Dataset[[#This Row],[2024/25 Baseline]]+Dataset[[#This Row],[2024/25 Total change]]","v":6483},{"$f":"Dataset[[#This Row],[2025/26 Baseline]]+Dataset[[#This Row],[2025/26 Total change]]","v":7426},{"$f":"Dataset[[#This Row],[2026/27 Baseline]]+Dataset[[#This Row],[2026/27 Total change]]","v":7766},{"$f":"Dataset[[#This Row],[2027/28 Baseline]]+Dataset[[#This Row],[2027/28 Total change]]","v":8117}]
["NAT|Non-transfer item","40|Training and development","2025_26","MTEC2025",40,1,2,51364,92,"40","01","02","051364","000092","40|01|02|000092","01","01","02","38","38","01|01|02|38|38","National","Transport","Administration","Management","Non-transfer item","Current","Current payments","Goods and services","Training and development","Training and development","Economic development","Economic regulation and infrastructure","NAT",118,100,34,143,143,143,null,70,80,84,88,null,null,null,null,null,null,null,null,null,null,null,null,null,null,null,null,null,null,null,null,null,null,null,null,null,null,null,null,null,null,null,null,null,null,{"$f":"Dataset[[#This Row],[2025/26 From - Spending review Topic 1]]+Dataset[[#This Row],[2025/26 From - Spending review Topic 2]]+Dataset[[#This Row],[2025/26 From - Spending review Topic 3]]+Dataset[[#This Row],[2025/26 From - Spending review Topic 4]]+Dataset[[#This Row],[2025/26 From - Other reallocations]]","v":0},{"$f":"Dataset[[#This Row],[2026/27 From - Spending review Topic 1]]+Dataset[[#This Row],[2026/27 From - Spending review Topic 2]]+Dataset[[#This Row],[2026/27 From - Spending review Topic 3]]+Dataset[[#This Row],[2026/27 From - Spending review Topic 4]]+Dataset[[#This Row],[2026/27 From - Other reallocations]]","v":0},{"$f":"Dataset[[#This Row],[2027/28 From - Spending review Topic 1]]+Dataset[[#This Row],[2027/28 From - Spending review Topic 2]]+Dataset[[#This Row],[2027/28 From - Spending review Topic 3]]+Dataset[[#This Row],[2027/28 From - Spending review Topic 4]]+Dataset[[#This Row],[2027/28 From - Other reallocations]]","v":0},{"$f":"Dataset[[#This Row],[2025/26 To - Spending review Topic 1]]+Dataset[[#This Row],[2025/26 To - Spending review Topic 2]]+Dataset[[#This Row],[2025/26 To - Spending review Topic 3]]+Dataset[[#This Row],[2025/26 To - Spending review Topic 4]]+Dataset[[#This Row],[2025/26 To - Other reallocations]]","v":0},{"$f":"Dataset[[#This Row],[2026/27 To - Spending review Topic 1]]+Dataset[[#This Row],[2026/27 To - Spending review Topic 2]]+Dataset[[#This Row],[2026/27 To - Spending review Topic 3]]+Dataset[[#This Row],[2026/27 To - Spending review Topic 4]]+Dataset[[#This Row],[2026/27 To - Other reallocations]]","v":0},{"$f":"Dataset[[#This Row],[2027/28 To - Spending review Topic 1]]+Dataset[[#This Row],[2027/28 To - Spending review Topic 2]]+Dataset[[#This Row],[2027/28 To - Spending review Topic 3]]+Dataset[[#This Row],[2027/28 To - Spending review Topic 4]]+Dataset[[#This Row],[2027/28 To - Other reallocations]]","v":0},{"$f":"Dataset[[#This Row],[2025/26 Reduction]]+Dataset[[#This Row],[2025/26 From - Total]]","v":0},{"$f":"Dataset[[#This Row],[2026/27 Reduction]]+Dataset[[#This Row],[2026/27 From - Total]]","v":0},{"$f":"Dataset[[#This Row],[2027/28 Reduction]]+Dataset[[#This Row],[2027/28 From - Total]]","v":0},{"$f":"Dataset[[#This Row],[2024/25 Reduction]]","v":0},{"$f":"SUM(Dataset[[#This Row],[2025/26 Reduction]],Dataset[[#This Row],[2025/26 From - Total]],Dataset[[#This Row],[2025/26 To - Total]])","v":0},{"$f":"SUM(Dataset[[#This Row],[2026/27 Reduction]],Dataset[[#This Row],[2026/27 From - Total]],Dataset[[#This Row],[2026/27 To - Total]])","v":0},{"$f":"SUM(Dataset[[#This Row],[2027/28 Reduction]],Dataset[[#This Row],[2027/28 From - Total]],Dataset[[#This Row],[2027/28 To - Total]])","v":0},{"$f":"Dataset[[#This Row],[2024/25 Baseline]]+Dataset[[#This Row],[2024/25 Total change]]","v":70},{"$f":"Dataset[[#This Row],[2025/26 Baseline]]+Dataset[[#This Row],[2025/26 Total change]]","v":80},{"$f":"Dataset[[#This Row],[2026/27 Baseline]]+Dataset[[#This Row],[2026/27 Total change]]","v":84},{"$f":"Dataset[[#This Row],[2027/28 Baseline]]+Dataset[[#This Row],[2027/28 Total change]]","v":88}]
["NAT|Non-transfer item","40|Operating payments","2025_26","MTEC2025",40,1,2,51365,93,"40","01","02","051365","000093","40|01|02|000093","01","01","02","39","39","01|01|02|39|39","National","Transport","Administration","Management","Non-transfer item","Current","Current payments","Goods and services","Operating payments","Operating payments","Economic development","Economic regulation and infrastructure","NAT",124,125,350,583,583,583,368,590,676,707,739,null,null,null,null,null,null,null,null,null,null,null,null,null,null,null,null,null,null,null,null,null,null,null,null,null,null,null,null,null,null,null,null,null,null,{"$f":"Dataset[[#This Row],[2025/26 From - Spending review Topic 1]]+Dataset[[#This Row],[2025/26 From - Spending review Topic 2]]+Dataset[[#This Row],[2025/26 From - Spending review Topic 3]]+Dataset[[#This Row],[2025/26 From - Spending review Topic 4]]+Dataset[[#This Row],[2025/26 From - Other reallocations]]","v":0},{"$f":"Dataset[[#This Row],[2026/27 From - Spending review Topic 1]]+Dataset[[#This Row],[2026/27 From - Spending review Topic 2]]+Dataset[[#This Row],[2026/27 From - Spending review Topic 3]]+Dataset[[#This Row],[2026/27 From - Spending review Topic 4]]+Dataset[[#This Row],[2026/27 From - Other reallocations]]","v":0},{"$f":"Dataset[[#This Row],[2027/28 From - Spending review Topic 1]]+Dataset[[#This Row],[2027/28 From - Spending review Topic 2]]+Dataset[[#This Row],[2027/28 From - Spending review Topic 3]]+Dataset[[#This Row],[2027/28 From - Spending review Topic 4]]+Dataset[[#This Row],[2027/28 From - Other reallocations]]","v":0},{"$f":"Dataset[[#This Row],[2025/26 To - Spending review Topic 1]]+Dataset[[#This Row],[2025/26 To - Spending review Topic 2]]+Dataset[[#This Row],[2025/26 To - Spending review Topic 3]]+Dataset[[#This Row],[2025/26 To - Spending review Topic 4]]+Dataset[[#This Row],[2025/26 To - Other reallocations]]","v":0},{"$f":"Dataset[[#This Row],[2026/27 To - Spending review Topic 1]]+Dataset[[#This Row],[2026/27 To - Spending review Topic 2]]+Dataset[[#This Row],[2026/27 To - Spending review Topic 3]]+Dataset[[#This Row],[2026/27 To - Spending review Topic 4]]+Dataset[[#This Row],[2026/27 To - Other reallocations]]","v":0},{"$f":"Dataset[[#This Row],[2027/28 To - Spending review Topic 1]]+Dataset[[#This Row],[2027/28 To - Spending review Topic 2]]+Dataset[[#This Row],[2027/28 To - Spending review Topic 3]]+Dataset[[#This Row],[2027/28 To - Spending review Topic 4]]+Dataset[[#This Row],[2027/28 To - Other reallocations]]","v":0},{"$f":"Dataset[[#This Row],[2025/26 Reduction]]+Dataset[[#This Row],[2025/26 From - Total]]","v":0},{"$f":"Dataset[[#This Row],[2026/27 Reduction]]+Dataset[[#This Row],[2026/27 From - Total]]","v":0},{"$f":"Dataset[[#This Row],[2027/28 Reduction]]+Dataset[[#This Row],[2027/28 From - Total]]","v":0},{"$f":"Dataset[[#This Row],[2024/25 Reduction]]","v":0},{"$f":"SUM(Dataset[[#This Row],[2025/26 Reduction]],Dataset[[#This Row],[2025/26 From - Total]],Dataset[[#This Row],[2025/26 To - Total]])","v":0},{"$f":"SUM(Dataset[[#This Row],[2026/27 Reduction]],Dataset[[#This Row],[2026/27 From - Total]],Dataset[[#This Row],[2026/27 To - Total]])","v":0},{"$f":"SUM(Dataset[[#This Row],[2027/28 Reduction]],Dataset[[#This Row],[2027/28 From - Total]],Dataset[[#This Row],[2027/28 To - Total]])","v":0},{"$f":"Dataset[[#This Row],[2024/25 Baseline]]+Dataset[[#This Row],[2024/25 Total change]]","v":590},{"$f":"Dataset[[#This Row],[2025/26 Baseline]]+Dataset[[#This Row],[2025/26 Total change]]","v":676},{"$f":"Dataset[[#This Row],[2026/27 Baseline]]+Dataset[[#This Row],[2026/27 Total change]]","v":707},{"$f":"Dataset[[#This Row],[2027/28 Baseline]]+Dataset[[#This Row],[2027/28 Total change]]","v":739}]
["NAT|Non-transfer item","40|Venues and facilities","2025_26","MTEC2025",40,1,2,51366,94,"40","01","02","051366","000094","40|01|02|000094","01","01","02","40","40","01|01|02|40|40","National","Transport","Administration","Management","Non-transfer item","Current","Current payments","Goods and services","Venues and facilities","Venues and facilities","Economic development","Economic regulation and infrastructure","NAT",11,335,101,2390,2490,2490,1204,1952,2236,2338,2444,null,null,null,null,null,null,null,null,null,null,null,null,null,null,null,null,null,null,null,null,null,null,null,null,null,null,null,null,null,null,null,null,null,null,{"$f":"Dataset[[#This Row],[2025/26 From - Spending review Topic 1]]+Dataset[[#This Row],[2025/26 From - Spending review Topic 2]]+Dataset[[#This Row],[2025/26 From - Spending review Topic 3]]+Dataset[[#This Row],[2025/26 From - Spending review Topic 4]]+Dataset[[#This Row],[2025/26 From - Other reallocations]]","v":0},{"$f":"Dataset[[#This Row],[2026/27 From - Spending review Topic 1]]+Dataset[[#This Row],[2026/27 From - Spending review Topic 2]]+Dataset[[#This Row],[2026/27 From - Spending review Topic 3]]+Dataset[[#This Row],[2026/27 From - Spending review Topic 4]]+Dataset[[#This Row],[2026/27 From - Other reallocations]]","v":0},{"$f":"Dataset[[#This Row],[2027/28 From - Spending review Topic 1]]+Dataset[[#This Row],[2027/28 From - Spending review Topic 2]]+Dataset[[#This Row],[2027/28 From - Spending review Topic 3]]+Dataset[[#This Row],[2027/28 From - Spending review Topic 4]]+Dataset[[#This Row],[2027/28 From - Other reallocations]]","v":0},{"$f":"Dataset[[#This Row],[2025/26 To - Spending review Topic 1]]+Dataset[[#This Row],[2025/26 To - Spending review Topic 2]]+Dataset[[#This Row],[2025/26 To - Spending review Topic 3]]+Dataset[[#This Row],[2025/26 To - Spending review Topic 4]]+Dataset[[#This Row],[2025/26 To - Other reallocations]]","v":0},{"$f":"Dataset[[#This Row],[2026/27 To - Spending review Topic 1]]+Dataset[[#This Row],[2026/27 To - Spending review Topic 2]]+Dataset[[#This Row],[2026/27 To - Spending review Topic 3]]+Dataset[[#This Row],[2026/27 To - Spending review Topic 4]]+Dataset[[#This Row],[2026/27 To - Other reallocations]]","v":0},{"$f":"Dataset[[#This Row],[2027/28 To - Spending review Topic 1]]+Dataset[[#This Row],[2027/28 To - Spending review Topic 2]]+Dataset[[#This Row],[2027/28 To - Spending review Topic 3]]+Dataset[[#This Row],[2027/28 To - Spending review Topic 4]]+Dataset[[#This Row],[2027/28 To - Other reallocations]]","v":0},{"$f":"Dataset[[#This Row],[2025/26 Reduction]]+Dataset[[#This Row],[2025/26 From - Total]]","v":0},{"$f":"Dataset[[#This Row],[2026/27 Reduction]]+Dataset[[#This Row],[2026/27 From - Total]]","v":0},{"$f":"Dataset[[#This Row],[2027/28 Reduction]]+Dataset[[#This Row],[2027/28 From - Total]]","v":0},{"$f":"Dataset[[#This Row],[2024/25 Reduction]]","v":0},{"$f":"SUM(Dataset[[#This Row],[2025/26 Reduction]],Dataset[[#This Row],[2025/26 From - Total]],Dataset[[#This Row],[2025/26 To - Total]])","v":0},{"$f":"SUM(Dataset[[#This Row],[2026/27 Reduction]],Dataset[[#This Row],[2026/27 From - Total]],Dataset[[#This Row],[2026/27 To - Total]])","v":0},{"$f":"SUM(Dataset[[#This Row],[2027/28 Reduction]],Dataset[[#This Row],[2027/28 From - Total]],Dataset[[#This Row],[2027/28 To - Total]])","v":0},{"$f":"Dataset[[#This Row],[2024/25 Baseline]]+Dataset[[#This Row],[2024/25 Total change]]","v":1952},{"$f":"Dataset[[#This Row],[2025/26 Baseline]]+Dataset[[#This Row],[2025/26 Total change]]","v":2236},{"$f":"Dataset[[#This Row],[2026/27 Baseline]]+Dataset[[#This Row],[2026/27 Total change]]","v":2338},{"$f":"Dataset[[#This Row],[2027/28 Baseline]]+Dataset[[#This Row],[2027/28 Total change]]","v":2444}]
["NAT|Non-transfer item","40|Interest (Incl. interest on unitary payments (PPP))","2025_26","MTEC2025",40,1,2,51367,95,"40","01","02","051367","000095","40|01|02|000095","01","01","03","41","41","01|01|03|41|41","National","Transport","Administration","Management","Non-transfer item","Current","Current payments","Interest and rent on land","Interest (Incl. interest on unitary payments (PPP))","Interest (Incl. interest on unitary payments (PPP))","Economic development","Economic regulation and infrastructure","NAT",0,0,0,0,0,0,null,0,0,0,0,null,null,null,null,null,null,null,null,null,null,null,null,null,null,null,null,null,null,null,null,null,null,null,null,null,null,null,null,null,null,null,null,null,null,{"$f":"Dataset[[#This Row],[2025/26 From - Spending review Topic 1]]+Dataset[[#This Row],[2025/26 From - Spending review Topic 2]]+Dataset[[#This Row],[2025/26 From - Spending review Topic 3]]+Dataset[[#This Row],[2025/26 From - Spending review Topic 4]]+Dataset[[#This Row],[2025/26 From - Other reallocations]]","v":0},{"$f":"Dataset[[#This Row],[2026/27 From - Spending review Topic 1]]+Dataset[[#This Row],[2026/27 From - Spending review Topic 2]]+Dataset[[#This Row],[2026/27 From - Spending review Topic 3]]+Dataset[[#This Row],[2026/27 From - Spending review Topic 4]]+Dataset[[#This Row],[2026/27 From - Other reallocations]]","v":0},{"$f":"Dataset[[#This Row],[2027/28 From - Spending review Topic 1]]+Dataset[[#This Row],[2027/28 From - Spending review Topic 2]]+Dataset[[#This Row],[2027/28 From - Spending review Topic 3]]+Dataset[[#This Row],[2027/28 From - Spending review Topic 4]]+Dataset[[#This Row],[2027/28 From - Other reallocations]]","v":0},{"$f":"Dataset[[#This Row],[2025/26 To - Spending review Topic 1]]+Dataset[[#This Row],[2025/26 To - Spending review Topic 2]]+Dataset[[#This Row],[2025/26 To - Spending review Topic 3]]+Dataset[[#This Row],[2025/26 To - Spending review Topic 4]]+Dataset[[#This Row],[2025/26 To - Other reallocations]]","v":0},{"$f":"Dataset[[#This Row],[2026/27 To - Spending review Topic 1]]+Dataset[[#This Row],[2026/27 To - Spending review Topic 2]]+Dataset[[#This Row],[2026/27 To - Spending review Topic 3]]+Dataset[[#This Row],[2026/27 To - Spending review Topic 4]]+Dataset[[#This Row],[2026/27 To - Other reallocations]]","v":0},{"$f":"Dataset[[#This Row],[2027/28 To - Spending review Topic 1]]+Dataset[[#This Row],[2027/28 To - Spending review Topic 2]]+Dataset[[#This Row],[2027/28 To - Spending review Topic 3]]+Dataset[[#This Row],[2027/28 To - Spending review Topic 4]]+Dataset[[#This Row],[2027/28 To - Other reallocations]]","v":0},{"$f":"Dataset[[#This Row],[2025/26 Reduction]]+Dataset[[#This Row],[2025/26 From - Total]]","v":0},{"$f":"Dataset[[#This Row],[2026/27 Reduction]]+Dataset[[#This Row],[2026/27 From - Total]]","v":0},{"$f":"Dataset[[#This Row],[2027/28 Reduction]]+Dataset[[#This Row],[2027/28 From - Total]]","v":0},{"$f":"Dataset[[#This Row],[2024/25 Reduction]]","v":0},{"$f":"SUM(Dataset[[#This Row],[2025/26 Reduction]],Dataset[[#This Row],[2025/26 From - Total]],Dataset[[#This Row],[2025/26 To - Total]])","v":0},{"$f":"SUM(Dataset[[#This Row],[2026/27 Reduction]],Dataset[[#This Row],[2026/27 From - Total]],Dataset[[#This Row],[2026/27 To - Total]])","v":0},{"$f":"SUM(Dataset[[#This Row],[2027/28 Reduction]],Dataset[[#This Row],[2027/28 From - Total]],Dataset[[#This Row],[2027/28 To - Total]])","v":0},{"$f":"Dataset[[#This Row],[2024/25 Baseline]]+Dataset[[#This Row],[2024/25 Total change]]","v":0},{"$f":"Dataset[[#This Row],[2025/26 Baseline]]+Dataset[[#This Row],[2025/26 Total change]]","v":0},{"$f":"Dataset[[#This Row],[2026/27 Baseline]]+Dataset[[#This Row],[2026/27 Total change]]","v":0},{"$f":"Dataset[[#This Row],[2027/28 Baseline]]+Dataset[[#This Row],[2027/28 Total change]]","v":0}]
["NAT|Non-transfer item","40|Rent on land","2025_26","MTEC2025",40,1,2,51368,96,"40","01","02","051368","000096","40|01|02|000096","01","01","03","42","42","01|01|03|42|42","National","Transport","Administration","Management","Non-transfer item","Current","Current payments","Interest and rent on land","Rent on land","Rent on land","Economic development","Economic regulation and infrastructure","NAT",0,0,0,0,0,0,null,0,0,0,0,null,null,null,null,null,null,null,null,null,null,null,null,null,null,null,null,null,null,null,null,null,null,null,null,null,null,null,null,null,null,null,null,null,null,{"$f":"Dataset[[#This Row],[2025/26 From - Spending review Topic 1]]+Dataset[[#This Row],[2025/26 From - Spending review Topic 2]]+Dataset[[#This Row],[2025/26 From - Spending review Topic 3]]+Dataset[[#This Row],[2025/26 From - Spending review Topic 4]]+Dataset[[#This Row],[2025/26 From - Other reallocations]]","v":0},{"$f":"Dataset[[#This Row],[2026/27 From - Spending review Topic 1]]+Dataset[[#This Row],[2026/27 From - Spending review Topic 2]]+Dataset[[#This Row],[2026/27 From - Spending review Topic 3]]+Dataset[[#This Row],[2026/27 From - Spending review Topic 4]]+Dataset[[#This Row],[2026/27 From - Other reallocations]]","v":0},{"$f":"Dataset[[#This Row],[2027/28 From - Spending review Topic 1]]+Dataset[[#This Row],[2027/28 From - Spending review Topic 2]]+Dataset[[#This Row],[2027/28 From - Spending review Topic 3]]+Dataset[[#This Row],[2027/28 From - Spending review Topic 4]]+Dataset[[#This Row],[2027/28 From - Other reallocations]]","v":0},{"$f":"Dataset[[#This Row],[2025/26 To - Spending review Topic 1]]+Dataset[[#This Row],[2025/26 To - Spending review Topic 2]]+Dataset[[#This Row],[2025/26 To - Spending review Topic 3]]+Dataset[[#This Row],[2025/26 To - Spending review Topic 4]]+Dataset[[#This Row],[2025/26 To - Other reallocations]]","v":0},{"$f":"Dataset[[#This Row],[2026/27 To - Spending review Topic 1]]+Dataset[[#This Row],[2026/27 To - Spending review Topic 2]]+Dataset[[#This Row],[2026/27 To - Spending review Topic 3]]+Dataset[[#This Row],[2026/27 To - Spending review Topic 4]]+Dataset[[#This Row],[2026/27 To - Other reallocations]]","v":0},{"$f":"Dataset[[#This Row],[2027/28 To - Spending review Topic 1]]+Dataset[[#This Row],[2027/28 To - Spending review Topic 2]]+Dataset[[#This Row],[2027/28 To - Spending review Topic 3]]+Dataset[[#This Row],[2027/28 To - Spending review Topic 4]]+Dataset[[#This Row],[2027/28 To - Other reallocations]]","v":0},{"$f":"Dataset[[#This Row],[2025/26 Reduction]]+Dataset[[#This Row],[2025/26 From - Total]]","v":0},{"$f":"Dataset[[#This Row],[2026/27 Reduction]]+Dataset[[#This Row],[2026/27 From - Total]]","v":0},{"$f":"Dataset[[#This Row],[2027/28 Reduction]]+Dataset[[#This Row],[2027/28 From - Total]]","v":0},{"$f":"Dataset[[#This Row],[2024/25 Reduction]]","v":0},{"$f":"SUM(Dataset[[#This Row],[2025/26 Reduction]],Dataset[[#This Row],[2025/26 From - Total]],Dataset[[#This Row],[2025/26 To - Total]])","v":0},{"$f":"SUM(Dataset[[#This Row],[2026/27 Reduction]],Dataset[[#This Row],[2026/27 From - Total]],Dataset[[#This Row],[2026/27 To - Total]])","v":0},{"$f":"SUM(Dataset[[#This Row],[2027/28 Reduction]],Dataset[[#This Row],[2027/28 From - Total]],Dataset[[#This Row],[2027/28 To - Total]])","v":0},{"$f":"Dataset[[#This Row],[2024/25 Baseline]]+Dataset[[#This Row],[2024/25 Total change]]","v":0},{"$f":"Dataset[[#This Row],[2025/26 Baseline]]+Dataset[[#This Row],[2025/26 Total change]]","v":0},{"$f":"Dataset[[#This Row],[2026/27 Baseline]]+Dataset[[#This Row],[2026/27 Total change]]","v":0},{"$f":"Dataset[[#This Row],[2027/28 Baseline]]+Dataset[[#This Row],[2027/28 Total change]]","v":0}]
["NAT|Employee social benefits","40|Social benefits","2025_26","MTEC2025",40,1,2,51369,97,"40","01","02","051369","000097","40|01|02|000097","01","02","10","52","56","01|02|10|52|56","National","Transport","Administration","Management","Employee social benefits","Current","Transfers and subsidies","Households","Social benefits","Social benefits","Economic development","Economic regulation and infrastructure","NAT",336,265,143,0,0,0,null,0,0,0,0,null,null,null,null,null,null,null,null,null,null,null,null,null,null,null,null,null,null,null,null,null,null,null,null,null,null,null,null,null,null,null,null,null,null,{"$f":"Dataset[[#This Row],[2025/26 From - Spending review Topic 1]]+Dataset[[#This Row],[2025/26 From - Spending review Topic 2]]+Dataset[[#This Row],[2025/26 From - Spending review Topic 3]]+Dataset[[#This Row],[2025/26 From - Spending review Topic 4]]+Dataset[[#This Row],[2025/26 From - Other reallocations]]","v":0},{"$f":"Dataset[[#This Row],[2026/27 From - Spending review Topic 1]]+Dataset[[#This Row],[2026/27 From - Spending review Topic 2]]+Dataset[[#This Row],[2026/27 From - Spending review Topic 3]]+Dataset[[#This Row],[2026/27 From - Spending review Topic 4]]+Dataset[[#This Row],[2026/27 From - Other reallocations]]","v":0},{"$f":"Dataset[[#This Row],[2027/28 From - Spending review Topic 1]]+Dataset[[#This Row],[2027/28 From - Spending review Topic 2]]+Dataset[[#This Row],[2027/28 From - Spending review Topic 3]]+Dataset[[#This Row],[2027/28 From - Spending review Topic 4]]+Dataset[[#This Row],[2027/28 From - Other reallocations]]","v":0},{"$f":"Dataset[[#This Row],[2025/26 To - Spending review Topic 1]]+Dataset[[#This Row],[2025/26 To - Spending review Topic 2]]+Dataset[[#This Row],[2025/26 To - Spending review Topic 3]]+Dataset[[#This Row],[2025/26 To - Spending review Topic 4]]+Dataset[[#This Row],[2025/26 To - Other reallocations]]","v":0},{"$f":"Dataset[[#This Row],[2026/27 To - Spending review Topic 1]]+Dataset[[#This Row],[2026/27 To - Spending review Topic 2]]+Dataset[[#This Row],[2026/27 To - Spending review Topic 3]]+Dataset[[#This Row],[2026/27 To - Spending review Topic 4]]+Dataset[[#This Row],[2026/27 To - Other reallocations]]","v":0},{"$f":"Dataset[[#This Row],[2027/28 To - Spending review Topic 1]]+Dataset[[#This Row],[2027/28 To - Spending review Topic 2]]+Dataset[[#This Row],[2027/28 To - Spending review Topic 3]]+Dataset[[#This Row],[2027/28 To - Spending review Topic 4]]+Dataset[[#This Row],[2027/28 To - Other reallocations]]","v":0},{"$f":"Dataset[[#This Row],[2025/26 Reduction]]+Dataset[[#This Row],[2025/26 From - Total]]","v":0},{"$f":"Dataset[[#This Row],[2026/27 Reduction]]+Dataset[[#This Row],[2026/27 From - Total]]","v":0},{"$f":"Dataset[[#This Row],[2027/28 Reduction]]+Dataset[[#This Row],[2027/28 From - Total]]","v":0},{"$f":"Dataset[[#This Row],[2024/25 Reduction]]","v":0},{"$f":"SUM(Dataset[[#This Row],[2025/26 Reduction]],Dataset[[#This Row],[2025/26 From - Total]],Dataset[[#This Row],[2025/26 To - Total]])","v":0},{"$f":"SUM(Dataset[[#This Row],[2026/27 Reduction]],Dataset[[#This Row],[2026/27 From - Total]],Dataset[[#This Row],[2026/27 To - Total]])","v":0},{"$f":"SUM(Dataset[[#This Row],[2027/28 Reduction]],Dataset[[#This Row],[2027/28 From - Total]],Dataset[[#This Row],[2027/28 To - Total]])","v":0},{"$f":"Dataset[[#This Row],[2024/25 Baseline]]+Dataset[[#This Row],[2024/25 Total change]]","v":0},{"$f":"Dataset[[#This Row],[2025/26 Baseline]]+Dataset[[#This Row],[2025/26 Total change]]","v":0},{"$f":"Dataset[[#This Row],[2026/27 Baseline]]+Dataset[[#This Row],[2026/27 Total change]]","v":0},{"$f":"Dataset[[#This Row],[2027/28 Baseline]]+Dataset[[#This Row],[2027/28 Total change]]","v":0}]
["NAT|Non-transfer item","40|Buildings","2025_26","MTEC2025",40,1,2,51370,98,"40","01","02","051370","000098","40|01|02|000098","02","03","11","54","58","02|03|11|54|58","National","Transport","Administration","Management","Non-transfer item","Capital","Payments for capital assets","Buildings and other fixed structures","Buildings","Buildings","Economic development","Economic regulation and infrastructure","NAT",0,0,0,0,0,0,null,0,0,0,0,null,null,null,null,null,null,null,null,null,null,null,null,null,null,null,null,null,null,null,null,null,null,null,null,null,null,null,null,null,null,null,null,null,null,{"$f":"Dataset[[#This Row],[2025/26 From - Spending review Topic 1]]+Dataset[[#This Row],[2025/26 From - Spending review Topic 2]]+Dataset[[#This Row],[2025/26 From - Spending review Topic 3]]+Dataset[[#This Row],[2025/26 From - Spending review Topic 4]]+Dataset[[#This Row],[2025/26 From - Other reallocations]]","v":0},{"$f":"Dataset[[#This Row],[2026/27 From - Spending review Topic 1]]+Dataset[[#This Row],[2026/27 From - Spending review Topic 2]]+Dataset[[#This Row],[2026/27 From - Spending review Topic 3]]+Dataset[[#This Row],[2026/27 From - Spending review Topic 4]]+Dataset[[#This Row],[2026/27 From - Other reallocations]]","v":0},{"$f":"Dataset[[#This Row],[2027/28 From - Spending review Topic 1]]+Dataset[[#This Row],[2027/28 From - Spending review Topic 2]]+Dataset[[#This Row],[2027/28 From - Spending review Topic 3]]+Dataset[[#This Row],[2027/28 From - Spending review Topic 4]]+Dataset[[#This Row],[2027/28 From - Other reallocations]]","v":0},{"$f":"Dataset[[#This Row],[2025/26 To - Spending review Topic 1]]+Dataset[[#This Row],[2025/26 To - Spending review Topic 2]]+Dataset[[#This Row],[2025/26 To - Spending review Topic 3]]+Dataset[[#This Row],[2025/26 To - Spending review Topic 4]]+Dataset[[#This Row],[2025/26 To - Other reallocations]]","v":0},{"$f":"Dataset[[#This Row],[2026/27 To - Spending review Topic 1]]+Dataset[[#This Row],[2026/27 To - Spending review Topic 2]]+Dataset[[#This Row],[2026/27 To - Spending review Topic 3]]+Dataset[[#This Row],[2026/27 To - Spending review Topic 4]]+Dataset[[#This Row],[2026/27 To - Other reallocations]]","v":0},{"$f":"Dataset[[#This Row],[2027/28 To - Spending review Topic 1]]+Dataset[[#This Row],[2027/28 To - Spending review Topic 2]]+Dataset[[#This Row],[2027/28 To - Spending review Topic 3]]+Dataset[[#This Row],[2027/28 To - Spending review Topic 4]]+Dataset[[#This Row],[2027/28 To - Other reallocations]]","v":0},{"$f":"Dataset[[#This Row],[2025/26 Reduction]]+Dataset[[#This Row],[2025/26 From - Total]]","v":0},{"$f":"Dataset[[#This Row],[2026/27 Reduction]]+Dataset[[#This Row],[2026/27 From - Total]]","v":0},{"$f":"Dataset[[#This Row],[2027/28 Reduction]]+Dataset[[#This Row],[2027/28 From - Total]]","v":0},{"$f":"Dataset[[#This Row],[2024/25 Reduction]]","v":0},{"$f":"SUM(Dataset[[#This Row],[2025/26 Reduction]],Dataset[[#This Row],[2025/26 From - Total]],Dataset[[#This Row],[2025/26 To - Total]])","v":0},{"$f":"SUM(Dataset[[#This Row],[2026/27 Reduction]],Dataset[[#This Row],[2026/27 From - Total]],Dataset[[#This Row],[2026/27 To - Total]])","v":0},{"$f":"SUM(Dataset[[#This Row],[2027/28 Reduction]],Dataset[[#This Row],[2027/28 From - Total]],Dataset[[#This Row],[2027/28 To - Total]])","v":0},{"$f":"Dataset[[#This Row],[2024/25 Baseline]]+Dataset[[#This Row],[2024/25 Total change]]","v":0},{"$f":"Dataset[[#This Row],[2025/26 Baseline]]+Dataset[[#This Row],[2025/26 Total change]]","v":0},{"$f":"Dataset[[#This Row],[2026/27 Baseline]]+Dataset[[#This Row],[2026/27 Total change]]","v":0},{"$f":"Dataset[[#This Row],[2027/28 Baseline]]+Dataset[[#This Row],[2027/28 Total change]]","v":0}]
["NAT|Non-transfer item","40|Other fixed structures","2025_26","MTEC2025",40,1,2,51371,99,"40","01","02","051371","000099","40|01|02|000099","02","03","11","55","59","02|03|11|55|59","National","Transport","Administration","Management","Non-transfer item","Capital","Payments for capital assets","Buildings and other fixed structures","Other fixed structures","Other fixed structures","Economic development","Economic regulation and infrastructure","NAT",0,0,0,0,0,0,null,0,0,0,0,null,null,null,null,null,null,null,null,null,null,null,null,null,null,null,null,null,null,null,null,null,null,null,null,null,null,null,null,null,null,null,null,null,null,{"$f":"Dataset[[#This Row],[2025/26 From - Spending review Topic 1]]+Dataset[[#This Row],[2025/26 From - Spending review Topic 2]]+Dataset[[#This Row],[2025/26 From - Spending review Topic 3]]+Dataset[[#This Row],[2025/26 From - Spending review Topic 4]]+Dataset[[#This Row],[2025/26 From - Other reallocations]]","v":0},{"$f":"Dataset[[#This Row],[2026/27 From - Spending review Topic 1]]+Dataset[[#This Row],[2026/27 From - Spending review Topic 2]]+Dataset[[#This Row],[2026/27 From - Spending review Topic 3]]+Dataset[[#This Row],[2026/27 From - Spending review Topic 4]]+Dataset[[#This Row],[2026/27 From - Other reallocations]]","v":0},{"$f":"Dataset[[#This Row],[2027/28 From - Spending review Topic 1]]+Dataset[[#This Row],[2027/28 From - Spending review Topic 2]]+Dataset[[#This Row],[2027/28 From - Spending review Topic 3]]+Dataset[[#This Row],[2027/28 From - Spending review Topic 4]]+Dataset[[#This Row],[2027/28 From - Other reallocations]]","v":0},{"$f":"Dataset[[#This Row],[2025/26 To - Spending review Topic 1]]+Dataset[[#This Row],[2025/26 To - Spending review Topic 2]]+Dataset[[#This Row],[2025/26 To - Spending review Topic 3]]+Dataset[[#This Row],[2025/26 To - Spending review Topic 4]]+Dataset[[#This Row],[2025/26 To - Other reallocations]]","v":0},{"$f":"Dataset[[#This Row],[2026/27 To - Spending review Topic 1]]+Dataset[[#This Row],[2026/27 To - Spending review Topic 2]]+Dataset[[#This Row],[2026/27 To - Spending review Topic 3]]+Dataset[[#This Row],[2026/27 To - Spending review Topic 4]]+Dataset[[#This Row],[2026/27 To - Other reallocations]]","v":0},{"$f":"Dataset[[#This Row],[2027/28 To - Spending review Topic 1]]+Dataset[[#This Row],[2027/28 To - Spending review Topic 2]]+Dataset[[#This Row],[2027/28 To - Spending review Topic 3]]+Dataset[[#This Row],[2027/28 To - Spending review Topic 4]]+Dataset[[#This Row],[2027/28 To - Other reallocations]]","v":0},{"$f":"Dataset[[#This Row],[2025/26 Reduction]]+Dataset[[#This Row],[2025/26 From - Total]]","v":0},{"$f":"Dataset[[#This Row],[2026/27 Reduction]]+Dataset[[#This Row],[2026/27 From - Total]]","v":0},{"$f":"Dataset[[#This Row],[2027/28 Reduction]]+Dataset[[#This Row],[2027/28 From - Total]]","v":0},{"$f":"Dataset[[#This Row],[2024/25 Reduction]]","v":0},{"$f":"SUM(Dataset[[#This Row],[2025/26 Reduction]],Dataset[[#This Row],[2025/26 From - Total]],Dataset[[#This Row],[2025/26 To - Total]])","v":0},{"$f":"SUM(Dataset[[#This Row],[2026/27 Reduction]],Dataset[[#This Row],[2026/27 From - Total]],Dataset[[#This Row],[2026/27 To - Total]])","v":0},{"$f":"SUM(Dataset[[#This Row],[2027/28 Reduction]],Dataset[[#This Row],[2027/28 From - Total]],Dataset[[#This Row],[2027/28 To - Total]])","v":0},{"$f":"Dataset[[#This Row],[2024/25 Baseline]]+Dataset[[#This Row],[2024/25 Total change]]","v":0},{"$f":"Dataset[[#This Row],[2025/26 Baseline]]+Dataset[[#This Row],[2025/26 Total change]]","v":0},{"$f":"Dataset[[#This Row],[2026/27 Baseline]]+Dataset[[#This Row],[2026/27 Total change]]","v":0},{"$f":"Dataset[[#This Row],[2027/28 Baseline]]+Dataset[[#This Row],[2027/28 Total change]]","v":0}]
["NAT|Non-transfer item","40|Transport equipment","2025_26","MTEC2025",40,1,2,51372,100,"40","01","02","051372","000100","40|01|02|000100","02","03","12","56","60","02|03|12|56|60","National","Transport","Administration","Management","Non-transfer item","Capital","Payments for capital assets","Machinery and equipment","Transport equipment","Transport equipment","Economic development","Economic regulation and infrastructure","NAT",0,0,0,0,0,0,null,0,0,0,0,null,null,null,null,null,null,null,null,null,null,null,null,null,null,null,null,null,null,null,null,null,null,null,null,null,null,null,null,null,null,null,null,null,null,{"$f":"Dataset[[#This Row],[2025/26 From - Spending review Topic 1]]+Dataset[[#This Row],[2025/26 From - Spending review Topic 2]]+Dataset[[#This Row],[2025/26 From - Spending review Topic 3]]+Dataset[[#This Row],[2025/26 From - Spending review Topic 4]]+Dataset[[#This Row],[2025/26 From - Other reallocations]]","v":0},{"$f":"Dataset[[#This Row],[2026/27 From - Spending review Topic 1]]+Dataset[[#This Row],[2026/27 From - Spending review Topic 2]]+Dataset[[#This Row],[2026/27 From - Spending review Topic 3]]+Dataset[[#This Row],[2026/27 From - Spending review Topic 4]]+Dataset[[#This Row],[2026/27 From - Other reallocations]]","v":0},{"$f":"Dataset[[#This Row],[2027/28 From - Spending review Topic 1]]+Dataset[[#This Row],[2027/28 From - Spending review Topic 2]]+Dataset[[#This Row],[2027/28 From - Spending review Topic 3]]+Dataset[[#This Row],[2027/28 From - Spending review Topic 4]]+Dataset[[#This Row],[2027/28 From - Other reallocations]]","v":0},{"$f":"Dataset[[#This Row],[2025/26 To - Spending review Topic 1]]+Dataset[[#This Row],[2025/26 To - Spending review Topic 2]]+Dataset[[#This Row],[2025/26 To - Spending review Topic 3]]+Dataset[[#This Row],[2025/26 To - Spending review Topic 4]]+Dataset[[#This Row],[2025/26 To - Other reallocations]]","v":0},{"$f":"Dataset[[#This Row],[2026/27 To - Spending review Topic 1]]+Dataset[[#This Row],[2026/27 To - Spending review Topic 2]]+Dataset[[#This Row],[2026/27 To - Spending review Topic 3]]+Dataset[[#This Row],[2026/27 To - Spending review Topic 4]]+Dataset[[#This Row],[2026/27 To - Other reallocations]]","v":0},{"$f":"Dataset[[#This Row],[2027/28 To - Spending review Topic 1]]+Dataset[[#This Row],[2027/28 To - Spending review Topic 2]]+Dataset[[#This Row],[2027/28 To - Spending review Topic 3]]+Dataset[[#This Row],[2027/28 To - Spending review Topic 4]]+Dataset[[#This Row],[2027/28 To - Other reallocations]]","v":0},{"$f":"Dataset[[#This Row],[2025/26 Reduction]]+Dataset[[#This Row],[2025/26 From - Total]]","v":0},{"$f":"Dataset[[#This Row],[2026/27 Reduction]]+Dataset[[#This Row],[2026/27 From - Total]]","v":0},{"$f":"Dataset[[#This Row],[2027/28 Reduction]]+Dataset[[#This Row],[2027/28 From - Total]]","v":0},{"$f":"Dataset[[#This Row],[2024/25 Reduction]]","v":0},{"$f":"SUM(Dataset[[#This Row],[2025/26 Reduction]],Dataset[[#This Row],[2025/26 From - Total]],Dataset[[#This Row],[2025/26 To - Total]])","v":0},{"$f":"SUM(Dataset[[#This Row],[2026/27 Reduction]],Dataset[[#This Row],[2026/27 From - Total]],Dataset[[#This Row],[2026/27 To - Total]])","v":0},{"$f":"SUM(Dataset[[#This Row],[2027/28 Reduction]],Dataset[[#This Row],[2027/28 From - Total]],Dataset[[#This Row],[2027/28 To - Total]])","v":0},{"$f":"Dataset[[#This Row],[2024/25 Baseline]]+Dataset[[#This Row],[2024/25 Total change]]","v":0},{"$f":"Dataset[[#This Row],[2025/26 Baseline]]+Dataset[[#This Row],[2025/26 Total change]]","v":0},{"$f":"Dataset[[#This Row],[2026/27 Baseline]]+Dataset[[#This Row],[2026/27 Total change]]","v":0},{"$f":"Dataset[[#This Row],[2027/28 Baseline]]+Dataset[[#This Row],[2027/28 Total change]]","v":0}]
["NAT|Non-transfer item","40|Other machinery and equipment","2025_26","MTEC2025",40,1,2,51373,101,"40","01","02","051373","000101","40|01|02|000101","02","03","12","57","61","02|03|12|57|61","National","Transport","Administration","Management","Non-transfer item","Capital","Payments for capital assets","Machinery and equipment","Other machinery and equipment","Other machinery and equipment","Economic development","Economic regulation and infrastructure","NAT",1495,778,1970,877,877,877,1529,916,957,1001,1046,null,null,null,null,null,null,null,null,null,null,null,null,null,null,null,null,null,null,null,null,null,null,null,null,null,null,null,null,null,null,null,null,null,null,{"$f":"Dataset[[#This Row],[2025/26 From - Spending review Topic 1]]+Dataset[[#This Row],[2025/26 From - Spending review Topic 2]]+Dataset[[#This Row],[2025/26 From - Spending review Topic 3]]+Dataset[[#This Row],[2025/26 From - Spending review Topic 4]]+Dataset[[#This Row],[2025/26 From - Other reallocations]]","v":0},{"$f":"Dataset[[#This Row],[2026/27 From - Spending review Topic 1]]+Dataset[[#This Row],[2026/27 From - Spending review Topic 2]]+Dataset[[#This Row],[2026/27 From - Spending review Topic 3]]+Dataset[[#This Row],[2026/27 From - Spending review Topic 4]]+Dataset[[#This Row],[2026/27 From - Other reallocations]]","v":0},{"$f":"Dataset[[#This Row],[2027/28 From - Spending review Topic 1]]+Dataset[[#This Row],[2027/28 From - Spending review Topic 2]]+Dataset[[#This Row],[2027/28 From - Spending review Topic 3]]+Dataset[[#This Row],[2027/28 From - Spending review Topic 4]]+Dataset[[#This Row],[2027/28 From - Other reallocations]]","v":0},{"$f":"Dataset[[#This Row],[2025/26 To - Spending review Topic 1]]+Dataset[[#This Row],[2025/26 To - Spending review Topic 2]]+Dataset[[#This Row],[2025/26 To - Spending review Topic 3]]+Dataset[[#This Row],[2025/26 To - Spending review Topic 4]]+Dataset[[#This Row],[2025/26 To - Other reallocations]]","v":0},{"$f":"Dataset[[#This Row],[2026/27 To - Spending review Topic 1]]+Dataset[[#This Row],[2026/27 To - Spending review Topic 2]]+Dataset[[#This Row],[2026/27 To - Spending review Topic 3]]+Dataset[[#This Row],[2026/27 To - Spending review Topic 4]]+Dataset[[#This Row],[2026/27 To - Other reallocations]]","v":0},{"$f":"Dataset[[#This Row],[2027/28 To - Spending review Topic 1]]+Dataset[[#This Row],[2027/28 To - Spending review Topic 2]]+Dataset[[#This Row],[2027/28 To - Spending review Topic 3]]+Dataset[[#This Row],[2027/28 To - Spending review Topic 4]]+Dataset[[#This Row],[2027/28 To - Other reallocations]]","v":0},{"$f":"Dataset[[#This Row],[2025/26 Reduction]]+Dataset[[#This Row],[2025/26 From - Total]]","v":0},{"$f":"Dataset[[#This Row],[2026/27 Reduction]]+Dataset[[#This Row],[2026/27 From - Total]]","v":0},{"$f":"Dataset[[#This Row],[2027/28 Reduction]]+Dataset[[#This Row],[2027/28 From - Total]]","v":0},{"$f":"Dataset[[#This Row],[2024/25 Reduction]]","v":0},{"$f":"SUM(Dataset[[#This Row],[2025/26 Reduction]],Dataset[[#This Row],[2025/26 From - Total]],Dataset[[#This Row],[2025/26 To - Total]])","v":0},{"$f":"SUM(Dataset[[#This Row],[2026/27 Reduction]],Dataset[[#This Row],[2026/27 From - Total]],Dataset[[#This Row],[2026/27 To - Total]])","v":0},{"$f":"SUM(Dataset[[#This Row],[2027/28 Reduction]],Dataset[[#This Row],[2027/28 From - Total]],Dataset[[#This Row],[2027/28 To - Total]])","v":0},{"$f":"Dataset[[#This Row],[2024/25 Baseline]]+Dataset[[#This Row],[2024/25 Total change]]","v":916},{"$f":"Dataset[[#This Row],[2025/26 Baseline]]+Dataset[[#This Row],[2025/26 Total change]]","v":957},{"$f":"Dataset[[#This Row],[2026/27 Baseline]]+Dataset[[#This Row],[2026/27 Total change]]","v":1001},{"$f":"Dataset[[#This Row],[2027/28 Baseline]]+Dataset[[#This Row],[2027/28 Total change]]","v":1046}]
["NAT|Non-transfer item","40|Heritage assets","2025_26","MTEC2025",40,1,2,51374,102,"40","01","02","051374","000102","40|01|02|000102","02","03","13","58","62","02|03|13|58|62","National","Transport","Administration","Management","Non-transfer item","Capital","Payments for capital assets","Heritage assets","Heritage assets","Heritage assets","Economic development","Economic regulation and infrastructure","NAT",0,0,0,0,0,0,null,0,0,0,0,null,null,null,null,null,null,null,null,null,null,null,null,null,null,null,null,null,null,null,null,null,null,null,null,null,null,null,null,null,null,null,null,null,null,{"$f":"Dataset[[#This Row],[2025/26 From - Spending review Topic 1]]+Dataset[[#This Row],[2025/26 From - Spending review Topic 2]]+Dataset[[#This Row],[2025/26 From - Spending review Topic 3]]+Dataset[[#This Row],[2025/26 From - Spending review Topic 4]]+Dataset[[#This Row],[2025/26 From - Other reallocations]]","v":0},{"$f":"Dataset[[#This Row],[2026/27 From - Spending review Topic 1]]+Dataset[[#This Row],[2026/27 From - Spending review Topic 2]]+Dataset[[#This Row],[2026/27 From - Spending review Topic 3]]+Dataset[[#This Row],[2026/27 From - Spending review Topic 4]]+Dataset[[#This Row],[2026/27 From - Other reallocations]]","v":0},{"$f":"Dataset[[#This Row],[2027/28 From - Spending review Topic 1]]+Dataset[[#This Row],[2027/28 From - Spending review Topic 2]]+Dataset[[#This Row],[2027/28 From - Spending review Topic 3]]+Dataset[[#This Row],[2027/28 From - Spending review Topic 4]]+Dataset[[#This Row],[2027/28 From - Other reallocations]]","v":0},{"$f":"Dataset[[#This Row],[2025/26 To - Spending review Topic 1]]+Dataset[[#This Row],[2025/26 To - Spending review Topic 2]]+Dataset[[#This Row],[2025/26 To - Spending review Topic 3]]+Dataset[[#This Row],[2025/26 To - Spending review Topic 4]]+Dataset[[#This Row],[2025/26 To - Other reallocations]]","v":0},{"$f":"Dataset[[#This Row],[2026/27 To - Spending review Topic 1]]+Dataset[[#This Row],[2026/27 To - Spending review Topic 2]]+Dataset[[#This Row],[2026/27 To - Spending review Topic 3]]+Dataset[[#This Row],[2026/27 To - Spending review Topic 4]]+Dataset[[#This Row],[2026/27 To - Other reallocations]]","v":0},{"$f":"Dataset[[#This Row],[2027/28 To - Spending review Topic 1]]+Dataset[[#This Row],[2027/28 To - Spending review Topic 2]]+Dataset[[#This Row],[2027/28 To - Spending review Topic 3]]+Dataset[[#This Row],[2027/28 To - Spending review Topic 4]]+Dataset[[#This Row],[2027/28 To - Other reallocations]]","v":0},{"$f":"Dataset[[#This Row],[2025/26 Reduction]]+Dataset[[#This Row],[2025/26 From - Total]]","v":0},{"$f":"Dataset[[#This Row],[2026/27 Reduction]]+Dataset[[#This Row],[2026/27 From - Total]]","v":0},{"$f":"Dataset[[#This Row],[2027/28 Reduction]]+Dataset[[#This Row],[2027/28 From - Total]]","v":0},{"$f":"Dataset[[#This Row],[2024/25 Reduction]]","v":0},{"$f":"SUM(Dataset[[#This Row],[2025/26 Reduction]],Dataset[[#This Row],[2025/26 From - Total]],Dataset[[#This Row],[2025/26 To - Total]])","v":0},{"$f":"SUM(Dataset[[#This Row],[2026/27 Reduction]],Dataset[[#This Row],[2026/27 From - Total]],Dataset[[#This Row],[2026/27 To - Total]])","v":0},{"$f":"SUM(Dataset[[#This Row],[2027/28 Reduction]],Dataset[[#This Row],[2027/28 From - Total]],Dataset[[#This Row],[2027/28 To - Total]])","v":0},{"$f":"Dataset[[#This Row],[2024/25 Baseline]]+Dataset[[#This Row],[2024/25 Total change]]","v":0},{"$f":"Dataset[[#This Row],[2025/26 Baseline]]+Dataset[[#This Row],[2025/26 Total change]]","v":0},{"$f":"Dataset[[#This Row],[2026/27 Baseline]]+Dataset[[#This Row],[2026/27 Total change]]","v":0},{"$f":"Dataset[[#This Row],[2027/28 Baseline]]+Dataset[[#This Row],[2027/28 Total change]]","v":0}]
["NAT|Non-transfer item","40|Specialised military assets","2025_26","MTEC2025",40,1,2,51375,103,"40","01","02","051375","000103","40|01|02|000103","02","03","14","59","63","02|03|14|59|63","National","Transport","Administration","Management","Non-transfer item","Capital","Payments for capital assets","Specialised military assets","Specialised military assets","Specialised military assets","Economic development","Economic regulation and infrastructure","NAT",0,0,0,0,0,0,null,0,0,0,0,null,null,null,null,null,null,null,null,null,null,null,null,null,null,null,null,null,null,null,null,null,null,null,null,null,null,null,null,null,null,null,null,null,null,{"$f":"Dataset[[#This Row],[2025/26 From - Spending review Topic 1]]+Dataset[[#This Row],[2025/26 From - Spending review Topic 2]]+Dataset[[#This Row],[2025/26 From - Spending review Topic 3]]+Dataset[[#This Row],[2025/26 From - Spending review Topic 4]]+Dataset[[#This Row],[2025/26 From - Other reallocations]]","v":0},{"$f":"Dataset[[#This Row],[2026/27 From - Spending review Topic 1]]+Dataset[[#This Row],[2026/27 From - Spending review Topic 2]]+Dataset[[#This Row],[2026/27 From - Spending review Topic 3]]+Dataset[[#This Row],[2026/27 From - Spending review Topic 4]]+Dataset[[#This Row],[2026/27 From - Other reallocations]]","v":0},{"$f":"Dataset[[#This Row],[2027/28 From - Spending review Topic 1]]+Dataset[[#This Row],[2027/28 From - Spending review Topic 2]]+Dataset[[#This Row],[2027/28 From - Spending review Topic 3]]+Dataset[[#This Row],[2027/28 From - Spending review Topic 4]]+Dataset[[#This Row],[2027/28 From - Other reallocations]]","v":0},{"$f":"Dataset[[#This Row],[2025/26 To - Spending review Topic 1]]+Dataset[[#This Row],[2025/26 To - Spending review Topic 2]]+Dataset[[#This Row],[2025/26 To - Spending review Topic 3]]+Dataset[[#This Row],[2025/26 To - Spending review Topic 4]]+Dataset[[#This Row],[2025/26 To - Other reallocations]]","v":0},{"$f":"Dataset[[#This Row],[2026/27 To - Spending review Topic 1]]+Dataset[[#This Row],[2026/27 To - Spending review Topic 2]]+Dataset[[#This Row],[2026/27 To - Spending review Topic 3]]+Dataset[[#This Row],[2026/27 To - Spending review Topic 4]]+Dataset[[#This Row],[2026/27 To - Other reallocations]]","v":0},{"$f":"Dataset[[#This Row],[2027/28 To - Spending review Topic 1]]+Dataset[[#This Row],[2027/28 To - Spending review Topic 2]]+Dataset[[#This Row],[2027/28 To - Spending review Topic 3]]+Dataset[[#This Row],[2027/28 To - Spending review Topic 4]]+Dataset[[#This Row],[2027/28 To - Other reallocations]]","v":0},{"$f":"Dataset[[#This Row],[2025/26 Reduction]]+Dataset[[#This Row],[2025/26 From - Total]]","v":0},{"$f":"Dataset[[#This Row],[2026/27 Reduction]]+Dataset[[#This Row],[2026/27 From - Total]]","v":0},{"$f":"Dataset[[#This Row],[2027/28 Reduction]]+Dataset[[#This Row],[2027/28 From - Total]]","v":0},{"$f":"Dataset[[#This Row],[2024/25 Reduction]]","v":0},{"$f":"SUM(Dataset[[#This Row],[2025/26 Reduction]],Dataset[[#This Row],[2025/26 From - Total]],Dataset[[#This Row],[2025/26 To - Total]])","v":0},{"$f":"SUM(Dataset[[#This Row],[2026/27 Reduction]],Dataset[[#This Row],[2026/27 From - Total]],Dataset[[#This Row],[2026/27 To - Total]])","v":0},{"$f":"SUM(Dataset[[#This Row],[2027/28 Reduction]],Dataset[[#This Row],[2027/28 From - Total]],Dataset[[#This Row],[2027/28 To - Total]])","v":0},{"$f":"Dataset[[#This Row],[2024/25 Baseline]]+Dataset[[#This Row],[2024/25 Total change]]","v":0},{"$f":"Dataset[[#This Row],[2025/26 Baseline]]+Dataset[[#This Row],[2025/26 Total change]]","v":0},{"$f":"Dataset[[#This Row],[2026/27 Baseline]]+Dataset[[#This Row],[2026/27 Total change]]","v":0},{"$f":"Dataset[[#This Row],[2027/28 Baseline]]+Dataset[[#This Row],[2027/28 Total change]]","v":0}]
["NAT|Non-transfer item","40|Biological assets","2025_26","MTEC2025",40,1,2,51376,104,"40","01","02","051376","000104","40|01|02|000104","02","03","15","60","64","02|03|15|60|64","National","Transport","Administration","Management","Non-transfer item","Capital","Payments for capital assets","Biological assets","Biological assets","Biological assets","Economic development","Economic regulation and infrastructure","NAT",0,0,0,0,0,0,null,0,0,0,0,null,null,null,null,null,null,null,null,null,null,null,null,null,null,null,null,null,null,null,null,null,null,null,null,null,null,null,null,null,null,null,null,null,null,{"$f":"Dataset[[#This Row],[2025/26 From - Spending review Topic 1]]+Dataset[[#This Row],[2025/26 From - Spending review Topic 2]]+Dataset[[#This Row],[2025/26 From - Spending review Topic 3]]+Dataset[[#This Row],[2025/26 From - Spending review Topic 4]]+Dataset[[#This Row],[2025/26 From - Other reallocations]]","v":0},{"$f":"Dataset[[#This Row],[2026/27 From - Spending review Topic 1]]+Dataset[[#This Row],[2026/27 From - Spending review Topic 2]]+Dataset[[#This Row],[2026/27 From - Spending review Topic 3]]+Dataset[[#This Row],[2026/27 From - Spending review Topic 4]]+Dataset[[#This Row],[2026/27 From - Other reallocations]]","v":0},{"$f":"Dataset[[#This Row],[2027/28 From - Spending review Topic 1]]+Dataset[[#This Row],[2027/28 From - Spending review Topic 2]]+Dataset[[#This Row],[2027/28 From - Spending review Topic 3]]+Dataset[[#This Row],[2027/28 From - Spending review Topic 4]]+Dataset[[#This Row],[2027/28 From - Other reallocations]]","v":0},{"$f":"Dataset[[#This Row],[2025/26 To - Spending review Topic 1]]+Dataset[[#This Row],[2025/26 To - Spending review Topic 2]]+Dataset[[#This Row],[2025/26 To - Spending review Topic 3]]+Dataset[[#This Row],[2025/26 To - Spending review Topic 4]]+Dataset[[#This Row],[2025/26 To - Other reallocations]]","v":0},{"$f":"Dataset[[#This Row],[2026/27 To - Spending review Topic 1]]+Dataset[[#This Row],[2026/27 To - Spending review Topic 2]]+Dataset[[#This Row],[2026/27 To - Spending review Topic 3]]+Dataset[[#This Row],[2026/27 To - Spending review Topic 4]]+Dataset[[#This Row],[2026/27 To - Other reallocations]]","v":0},{"$f":"Dataset[[#This Row],[2027/28 To - Spending review Topic 1]]+Dataset[[#This Row],[2027/28 To - Spending review Topic 2]]+Dataset[[#This Row],[2027/28 To - Spending review Topic 3]]+Dataset[[#This Row],[2027/28 To - Spending review Topic 4]]+Dataset[[#This Row],[2027/28 To - Other reallocations]]","v":0},{"$f":"Dataset[[#This Row],[2025/26 Reduction]]+Dataset[[#This Row],[2025/26 From - Total]]","v":0},{"$f":"Dataset[[#This Row],[2026/27 Reduction]]+Dataset[[#This Row],[2026/27 From - Total]]","v":0},{"$f":"Dataset[[#This Row],[2027/28 Reduction]]+Dataset[[#This Row],[2027/28 From - Total]]","v":0},{"$f":"Dataset[[#This Row],[2024/25 Reduction]]","v":0},{"$f":"SUM(Dataset[[#This Row],[2025/26 Reduction]],Dataset[[#This Row],[2025/26 From - Total]],Dataset[[#This Row],[2025/26 To - Total]])","v":0},{"$f":"SUM(Dataset[[#This Row],[2026/27 Reduction]],Dataset[[#This Row],[2026/27 From - Total]],Dataset[[#This Row],[2026/27 To - Total]])","v":0},{"$f":"SUM(Dataset[[#This Row],[2027/28 Reduction]],Dataset[[#This Row],[2027/28 From - Total]],Dataset[[#This Row],[2027/28 To - Total]])","v":0},{"$f":"Dataset[[#This Row],[2024/25 Baseline]]+Dataset[[#This Row],[2024/25 Total change]]","v":0},{"$f":"Dataset[[#This Row],[2025/26 Baseline]]+Dataset[[#This Row],[2025/26 Total change]]","v":0},{"$f":"Dataset[[#This Row],[2026/27 Baseline]]+Dataset[[#This Row],[2026/27 Total change]]","v":0},{"$f":"Dataset[[#This Row],[2027/28 Baseline]]+Dataset[[#This Row],[2027/28 Total change]]","v":0}]
["NAT|Non-transfer item","40|Land and sub-soil assets","2025_26","MTEC2025",40,1,2,51377,105,"40","01","02","051377","000105","40|01|02|000105","02","03","16","61","65","02|03|16|61|65","National","Transport","Administration","Management","Non-transfer item","Capital","Payments for capital assets","Land and sub-soil assets","Land and sub-soil assets","Land and sub-soil assets","Economic development","Economic regulation and infrastructure","NAT",0,0,0,0,0,0,null,0,0,0,0,null,null,null,null,null,null,null,null,null,null,null,null,null,null,null,null,null,null,null,null,null,null,null,null,null,null,null,null,null,null,null,null,null,null,{"$f":"Dataset[[#This Row],[2025/26 From - Spending review Topic 1]]+Dataset[[#This Row],[2025/26 From - Spending review Topic 2]]+Dataset[[#This Row],[2025/26 From - Spending review Topic 3]]+Dataset[[#This Row],[2025/26 From - Spending review Topic 4]]+Dataset[[#This Row],[2025/26 From - Other reallocations]]","v":0},{"$f":"Dataset[[#This Row],[2026/27 From - Spending review Topic 1]]+Dataset[[#This Row],[2026/27 From - Spending review Topic 2]]+Dataset[[#This Row],[2026/27 From - Spending review Topic 3]]+Dataset[[#This Row],[2026/27 From - Spending review Topic 4]]+Dataset[[#This Row],[2026/27 From - Other reallocations]]","v":0},{"$f":"Dataset[[#This Row],[2027/28 From - Spending review Topic 1]]+Dataset[[#This Row],[2027/28 From - Spending review Topic 2]]+Dataset[[#This Row],[2027/28 From - Spending review Topic 3]]+Dataset[[#This Row],[2027/28 From - Spending review Topic 4]]+Dataset[[#This Row],[2027/28 From - Other reallocations]]","v":0},{"$f":"Dataset[[#This Row],[2025/26 To - Spending review Topic 1]]+Dataset[[#This Row],[2025/26 To - Spending review Topic 2]]+Dataset[[#This Row],[2025/26 To - Spending review Topic 3]]+Dataset[[#This Row],[2025/26 To - Spending review Topic 4]]+Dataset[[#This Row],[2025/26 To - Other reallocations]]","v":0},{"$f":"Dataset[[#This Row],[2026/27 To - Spending review Topic 1]]+Dataset[[#This Row],[2026/27 To - Spending review Topic 2]]+Dataset[[#This Row],[2026/27 To - Spending review Topic 3]]+Dataset[[#This Row],[2026/27 To - Spending review Topic 4]]+Dataset[[#This Row],[2026/27 To - Other reallocations]]","v":0},{"$f":"Dataset[[#This Row],[2027/28 To - Spending review Topic 1]]+Dataset[[#This Row],[2027/28 To - Spending review Topic 2]]+Dataset[[#This Row],[2027/28 To - Spending review Topic 3]]+Dataset[[#This Row],[2027/28 To - Spending review Topic 4]]+Dataset[[#This Row],[2027/28 To - Other reallocations]]","v":0},{"$f":"Dataset[[#This Row],[2025/26 Reduction]]+Dataset[[#This Row],[2025/26 From - Total]]","v":0},{"$f":"Dataset[[#This Row],[2026/27 Reduction]]+Dataset[[#This Row],[2026/27 From - Total]]","v":0},{"$f":"Dataset[[#This Row],[2027/28 Reduction]]+Dataset[[#This Row],[2027/28 From - Total]]","v":0},{"$f":"Dataset[[#This Row],[2024/25 Reduction]]","v":0},{"$f":"SUM(Dataset[[#This Row],[2025/26 Reduction]],Dataset[[#This Row],[2025/26 From - Total]],Dataset[[#This Row],[2025/26 To - Total]])","v":0},{"$f":"SUM(Dataset[[#This Row],[2026/27 Reduction]],Dataset[[#This Row],[2026/27 From - Total]],Dataset[[#This Row],[2026/27 To - Total]])","v":0},{"$f":"SUM(Dataset[[#This Row],[2027/28 Reduction]],Dataset[[#This Row],[2027/28 From - Total]],Dataset[[#This Row],[2027/28 To - Total]])","v":0},{"$f":"Dataset[[#This Row],[2024/25 Baseline]]+Dataset[[#This Row],[2024/25 Total change]]","v":0},{"$f":"Dataset[[#This Row],[2025/26 Baseline]]+Dataset[[#This Row],[2025/26 Total change]]","v":0},{"$f":"Dataset[[#This Row],[2026/27 Baseline]]+Dataset[[#This Row],[2026/27 Total change]]","v":0},{"$f":"Dataset[[#This Row],[2027/28 Baseline]]+Dataset[[#This Row],[2027/28 Total change]]","v":0}]
["NAT|Non-transfer item","40|Software and other intangible assets","2025_26","MTEC2025",40,1,2,51378,106,"40","01","02","051378","000106","40|01|02|000106","02","03","17","62","66","02|03|17|62|66","National","Transport","Administration","Management","Non-transfer item","Capital","Payments for capital assets","Software and other intangible assets","Software and other intangible assets","Software and other intangible assets","Economic development","Economic regulation and infrastructure","NAT",0,0,0,0,0,0,null,0,0,0,0,null,null,null,null,null,null,null,null,null,null,null,null,null,null,null,null,null,null,null,null,null,null,null,null,null,null,null,null,null,null,null,null,null,null,{"$f":"Dataset[[#This Row],[2025/26 From - Spending review Topic 1]]+Dataset[[#This Row],[2025/26 From - Spending review Topic 2]]+Dataset[[#This Row],[2025/26 From - Spending review Topic 3]]+Dataset[[#This Row],[2025/26 From - Spending review Topic 4]]+Dataset[[#This Row],[2025/26 From - Other reallocations]]","v":0},{"$f":"Dataset[[#This Row],[2026/27 From - Spending review Topic 1]]+Dataset[[#This Row],[2026/27 From - Spending review Topic 2]]+Dataset[[#This Row],[2026/27 From - Spending review Topic 3]]+Dataset[[#This Row],[2026/27 From - Spending review Topic 4]]+Dataset[[#This Row],[2026/27 From - Other reallocations]]","v":0},{"$f":"Dataset[[#This Row],[2027/28 From - Spending review Topic 1]]+Dataset[[#This Row],[2027/28 From - Spending review Topic 2]]+Dataset[[#This Row],[2027/28 From - Spending review Topic 3]]+Dataset[[#This Row],[2027/28 From - Spending review Topic 4]]+Dataset[[#This Row],[2027/28 From - Other reallocations]]","v":0},{"$f":"Dataset[[#This Row],[2025/26 To - Spending review Topic 1]]+Dataset[[#This Row],[2025/26 To - Spending review Topic 2]]+Dataset[[#This Row],[2025/26 To - Spending review Topic 3]]+Dataset[[#This Row],[2025/26 To - Spending review Topic 4]]+Dataset[[#This Row],[2025/26 To - Other reallocations]]","v":0},{"$f":"Dataset[[#This Row],[2026/27 To - Spending review Topic 1]]+Dataset[[#This Row],[2026/27 To - Spending review Topic 2]]+Dataset[[#This Row],[2026/27 To - Spending review Topic 3]]+Dataset[[#This Row],[2026/27 To - Spending review Topic 4]]+Dataset[[#This Row],[2026/27 To - Other reallocations]]","v":0},{"$f":"Dataset[[#This Row],[2027/28 To - Spending review Topic 1]]+Dataset[[#This Row],[2027/28 To - Spending review Topic 2]]+Dataset[[#This Row],[2027/28 To - Spending review Topic 3]]+Dataset[[#This Row],[2027/28 To - Spending review Topic 4]]+Dataset[[#This Row],[2027/28 To - Other reallocations]]","v":0},{"$f":"Dataset[[#This Row],[2025/26 Reduction]]+Dataset[[#This Row],[2025/26 From - Total]]","v":0},{"$f":"Dataset[[#This Row],[2026/27 Reduction]]+Dataset[[#This Row],[2026/27 From - Total]]","v":0},{"$f":"Dataset[[#This Row],[2027/28 Reduction]]+Dataset[[#This Row],[2027/28 From - Total]]","v":0},{"$f":"Dataset[[#This Row],[2024/25 Reduction]]","v":0},{"$f":"SUM(Dataset[[#This Row],[2025/26 Reduction]],Dataset[[#This Row],[2025/26 From - Total]],Dataset[[#This Row],[2025/26 To - Total]])","v":0},{"$f":"SUM(Dataset[[#This Row],[2026/27 Reduction]],Dataset[[#This Row],[2026/27 From - Total]],Dataset[[#This Row],[2026/27 To - Total]])","v":0},{"$f":"SUM(Dataset[[#This Row],[2027/28 Reduction]],Dataset[[#This Row],[2027/28 From - Total]],Dataset[[#This Row],[2027/28 To - Total]])","v":0},{"$f":"Dataset[[#This Row],[2024/25 Baseline]]+Dataset[[#This Row],[2024/25 Total change]]","v":0},{"$f":"Dataset[[#This Row],[2025/26 Baseline]]+Dataset[[#This Row],[2025/26 Total change]]","v":0},{"$f":"Dataset[[#This Row],[2026/27 Baseline]]+Dataset[[#This Row],[2026/27 Total change]]","v":0},{"$f":"Dataset[[#This Row],[2027/28 Baseline]]+Dataset[[#This Row],[2027/28 Total change]]","v":0}]
["NAT|Thefts and losses","40|Payments for financial assets","2025_26","MTEC2025",40,1,2,51379,107,"40","01","02","051379","000107","40|01|02|000107","03","04","18","63","67","03|04|18|63|67","National","Transport","Administration","Management","Thefts and losses","Payments for financial assets","Payments for financial assets","Payments for financial assets","Payments for financial assets","Payments for financial assets","Economic development","Economic regulation and infrastructure","NAT",2,8,2,0,0,0,null,0,0,0,0,null,null,null,null,null,null,null,null,null,null,null,null,null,null,null,null,null,null,null,null,null,null,null,null,null,null,null,null,null,null,null,null,null,null,{"$f":"Dataset[[#This Row],[2025/26 From - Spending review Topic 1]]+Dataset[[#This Row],[2025/26 From - Spending review Topic 2]]+Dataset[[#This Row],[2025/26 From - Spending review Topic 3]]+Dataset[[#This Row],[2025/26 From - Spending review Topic 4]]+Dataset[[#This Row],[2025/26 From - Other reallocations]]","v":0},{"$f":"Dataset[[#This Row],[2026/27 From - Spending review Topic 1]]+Dataset[[#This Row],[2026/27 From - Spending review Topic 2]]+Dataset[[#This Row],[2026/27 From - Spending review Topic 3]]+Dataset[[#This Row],[2026/27 From - Spending review Topic 4]]+Dataset[[#This Row],[2026/27 From - Other reallocations]]","v":0},{"$f":"Dataset[[#This Row],[2027/28 From - Spending review Topic 1]]+Dataset[[#This Row],[2027/28 From - Spending review Topic 2]]+Dataset[[#This Row],[2027/28 From - Spending review Topic 3]]+Dataset[[#This Row],[2027/28 From - Spending review Topic 4]]+Dataset[[#This Row],[2027/28 From - Other reallocations]]","v":0},{"$f":"Dataset[[#This Row],[2025/26 To - Spending review Topic 1]]+Dataset[[#This Row],[2025/26 To - Spending review Topic 2]]+Dataset[[#This Row],[2025/26 To - Spending review Topic 3]]+Dataset[[#This Row],[2025/26 To - Spending review Topic 4]]+Dataset[[#This Row],[2025/26 To - Other reallocations]]","v":0},{"$f":"Dataset[[#This Row],[2026/27 To - Spending review Topic 1]]+Dataset[[#This Row],[2026/27 To - Spending review Topic 2]]+Dataset[[#This Row],[2026/27 To - Spending review Topic 3]]+Dataset[[#This Row],[2026/27 To - Spending review Topic 4]]+Dataset[[#This Row],[2026/27 To - Other reallocations]]","v":0},{"$f":"Dataset[[#This Row],[2027/28 To - Spending review Topic 1]]+Dataset[[#This Row],[2027/28 To - Spending review Topic 2]]+Dataset[[#This Row],[2027/28 To - Spending review Topic 3]]+Dataset[[#This Row],[2027/28 To - Spending review Topic 4]]+Dataset[[#This Row],[2027/28 To - Other reallocations]]","v":0},{"$f":"Dataset[[#This Row],[2025/26 Reduction]]+Dataset[[#This Row],[2025/26 From - Total]]","v":0},{"$f":"Dataset[[#This Row],[2026/27 Reduction]]+Dataset[[#This Row],[2026/27 From - Total]]","v":0},{"$f":"Dataset[[#This Row],[2027/28 Reduction]]+Dataset[[#This Row],[2027/28 From - Total]]","v":0},{"$f":"Dataset[[#This Row],[2024/25 Reduction]]","v":0},{"$f":"SUM(Dataset[[#This Row],[2025/26 Reduction]],Dataset[[#This Row],[2025/26 From - Total]],Dataset[[#This Row],[2025/26 To - Total]])","v":0},{"$f":"SUM(Dataset[[#This Row],[2026/27 Reduction]],Dataset[[#This Row],[2026/27 From - Total]],Dataset[[#This Row],[2026/27 To - Total]])","v":0},{"$f":"SUM(Dataset[[#This Row],[2027/28 Reduction]],Dataset[[#This Row],[2027/28 From - Total]],Dataset[[#This Row],[2027/28 To - Total]])","v":0},{"$f":"Dataset[[#This Row],[2024/25 Baseline]]+Dataset[[#This Row],[2024/25 Total change]]","v":0},{"$f":"Dataset[[#This Row],[2025/26 Baseline]]+Dataset[[#This Row],[2025/26 Total change]]","v":0},{"$f":"Dataset[[#This Row],[2026/27 Baseline]]+Dataset[[#This Row],[2026/27 Total change]]","v":0},{"$f":"Dataset[[#This Row],[2027/28 Baseline]]+Dataset[[#This Row],[2027/28 Total change]]","v":0}]
["NAT|Non-transfer item","40|Salaries and wages","2025_26","MTEC2025",40,1,3,51380,108,"40","01","03","051380","000108","40|01|03|000108","01","01","01","01","01","01|01|01|01|01","National","Transport","Administration","Corporate Services","Non-transfer item","Current","Current payments","Compensation of employees","Salaries and wages","Salaries and wages","Economic development","Economic regulation and infrastructure","NAT",110546,115312,117361,129528,129528,129528,125876,135696,141768,148265,154970,null,null,null,null,null,null,null,null,null,null,null,null,null,null,null,null,null,null,null,null,null,null,null,null,null,null,null,null,null,null,null,null,null,null,{"$f":"Dataset[[#This Row],[2025/26 From - Spending review Topic 1]]+Dataset[[#This Row],[2025/26 From - Spending review Topic 2]]+Dataset[[#This Row],[2025/26 From - Spending review Topic 3]]+Dataset[[#This Row],[2025/26 From - Spending review Topic 4]]+Dataset[[#This Row],[2025/26 From - Other reallocations]]","v":0},{"$f":"Dataset[[#This Row],[2026/27 From - Spending review Topic 1]]+Dataset[[#This Row],[2026/27 From - Spending review Topic 2]]+Dataset[[#This Row],[2026/27 From - Spending review Topic 3]]+Dataset[[#This Row],[2026/27 From - Spending review Topic 4]]+Dataset[[#This Row],[2026/27 From - Other reallocations]]","v":0},{"$f":"Dataset[[#This Row],[2027/28 From - Spending review Topic 1]]+Dataset[[#This Row],[2027/28 From - Spending review Topic 2]]+Dataset[[#This Row],[2027/28 From - Spending review Topic 3]]+Dataset[[#This Row],[2027/28 From - Spending review Topic 4]]+Dataset[[#This Row],[2027/28 From - Other reallocations]]","v":0},{"$f":"Dataset[[#This Row],[2025/26 To - Spending review Topic 1]]+Dataset[[#This Row],[2025/26 To - Spending review Topic 2]]+Dataset[[#This Row],[2025/26 To - Spending review Topic 3]]+Dataset[[#This Row],[2025/26 To - Spending review Topic 4]]+Dataset[[#This Row],[2025/26 To - Other reallocations]]","v":0},{"$f":"Dataset[[#This Row],[2026/27 To - Spending review Topic 1]]+Dataset[[#This Row],[2026/27 To - Spending review Topic 2]]+Dataset[[#This Row],[2026/27 To - Spending review Topic 3]]+Dataset[[#This Row],[2026/27 To - Spending review Topic 4]]+Dataset[[#This Row],[2026/27 To - Other reallocations]]","v":0},{"$f":"Dataset[[#This Row],[2027/28 To - Spending review Topic 1]]+Dataset[[#This Row],[2027/28 To - Spending review Topic 2]]+Dataset[[#This Row],[2027/28 To - Spending review Topic 3]]+Dataset[[#This Row],[2027/28 To - Spending review Topic 4]]+Dataset[[#This Row],[2027/28 To - Other reallocations]]","v":0},{"$f":"Dataset[[#This Row],[2025/26 Reduction]]+Dataset[[#This Row],[2025/26 From - Total]]","v":0},{"$f":"Dataset[[#This Row],[2026/27 Reduction]]+Dataset[[#This Row],[2026/27 From - Total]]","v":0},{"$f":"Dataset[[#This Row],[2027/28 Reduction]]+Dataset[[#This Row],[2027/28 From - Total]]","v":0},{"$f":"Dataset[[#This Row],[2024/25 Reduction]]","v":0},{"$f":"SUM(Dataset[[#This Row],[2025/26 Reduction]],Dataset[[#This Row],[2025/26 From - Total]],Dataset[[#This Row],[2025/26 To - Total]])","v":0},{"$f":"SUM(Dataset[[#This Row],[2026/27 Reduction]],Dataset[[#This Row],[2026/27 From - Total]],Dataset[[#This Row],[2026/27 To - Total]])","v":0},{"$f":"SUM(Dataset[[#This Row],[2027/28 Reduction]],Dataset[[#This Row],[2027/28 From - Total]],Dataset[[#This Row],[2027/28 To - Total]])","v":0},{"$f":"Dataset[[#This Row],[2024/25 Baseline]]+Dataset[[#This Row],[2024/25 Total change]]","v":135696},{"$f":"Dataset[[#This Row],[2025/26 Baseline]]+Dataset[[#This Row],[2025/26 Total change]]","v":141768},{"$f":"Dataset[[#This Row],[2026/27 Baseline]]+Dataset[[#This Row],[2026/27 Total change]]","v":148265},{"$f":"Dataset[[#This Row],[2027/28 Baseline]]+Dataset[[#This Row],[2027/28 Total change]]","v":154970}]
["NAT|Non-transfer item","40|Social contributions","2025_26","MTEC2025",40,1,3,51381,109,"40","01","03","051381","000109","40|01|03|000109","01","01","01","02","02","01|01|01|02|02","National","Transport","Administration","Corporate Services","Non-transfer item","Current","Current payments","Compensation of employees","Social contributions","Social contributions","Economic development","Economic regulation and infrastructure","NAT",16235,16654,17129,17166,17166,17166,18705,17577,18362,19204,20072,null,null,null,null,null,null,null,null,null,null,null,null,null,null,null,null,null,null,null,null,null,null,null,null,null,null,null,null,null,null,null,null,null,null,{"$f":"Dataset[[#This Row],[2025/26 From - Spending review Topic 1]]+Dataset[[#This Row],[2025/26 From - Spending review Topic 2]]+Dataset[[#This Row],[2025/26 From - Spending review Topic 3]]+Dataset[[#This Row],[2025/26 From - Spending review Topic 4]]+Dataset[[#This Row],[2025/26 From - Other reallocations]]","v":0},{"$f":"Dataset[[#This Row],[2026/27 From - Spending review Topic 1]]+Dataset[[#This Row],[2026/27 From - Spending review Topic 2]]+Dataset[[#This Row],[2026/27 From - Spending review Topic 3]]+Dataset[[#This Row],[2026/27 From - Spending review Topic 4]]+Dataset[[#This Row],[2026/27 From - Other reallocations]]","v":0},{"$f":"Dataset[[#This Row],[2027/28 From - Spending review Topic 1]]+Dataset[[#This Row],[2027/28 From - Spending review Topic 2]]+Dataset[[#This Row],[2027/28 From - Spending review Topic 3]]+Dataset[[#This Row],[2027/28 From - Spending review Topic 4]]+Dataset[[#This Row],[2027/28 From - Other reallocations]]","v":0},{"$f":"Dataset[[#This Row],[2025/26 To - Spending review Topic 1]]+Dataset[[#This Row],[2025/26 To - Spending review Topic 2]]+Dataset[[#This Row],[2025/26 To - Spending review Topic 3]]+Dataset[[#This Row],[2025/26 To - Spending review Topic 4]]+Dataset[[#This Row],[2025/26 To - Other reallocations]]","v":0},{"$f":"Dataset[[#This Row],[2026/27 To - Spending review Topic 1]]+Dataset[[#This Row],[2026/27 To - Spending review Topic 2]]+Dataset[[#This Row],[2026/27 To - Spending review Topic 3]]+Dataset[[#This Row],[2026/27 To - Spending review Topic 4]]+Dataset[[#This Row],[2026/27 To - Other reallocations]]","v":0},{"$f":"Dataset[[#This Row],[2027/28 To - Spending review Topic 1]]+Dataset[[#This Row],[2027/28 To - Spending review Topic 2]]+Dataset[[#This Row],[2027/28 To - Spending review Topic 3]]+Dataset[[#This Row],[2027/28 To - Spending review Topic 4]]+Dataset[[#This Row],[2027/28 To - Other reallocations]]","v":0},{"$f":"Dataset[[#This Row],[2025/26 Reduction]]+Dataset[[#This Row],[2025/26 From - Total]]","v":0},{"$f":"Dataset[[#This Row],[2026/27 Reduction]]+Dataset[[#This Row],[2026/27 From - Total]]","v":0},{"$f":"Dataset[[#This Row],[2027/28 Reduction]]+Dataset[[#This Row],[2027/28 From - Total]]","v":0},{"$f":"Dataset[[#This Row],[2024/25 Reduction]]","v":0},{"$f":"SUM(Dataset[[#This Row],[2025/26 Reduction]],Dataset[[#This Row],[2025/26 From - Total]],Dataset[[#This Row],[2025/26 To - Total]])","v":0},{"$f":"SUM(Dataset[[#This Row],[2026/27 Reduction]],Dataset[[#This Row],[2026/27 From - Total]],Dataset[[#This Row],[2026/27 To - Total]])","v":0},{"$f":"SUM(Dataset[[#This Row],[2027/28 Reduction]],Dataset[[#This Row],[2027/28 From - Total]],Dataset[[#This Row],[2027/28 To - Total]])","v":0},{"$f":"Dataset[[#This Row],[2024/25 Baseline]]+Dataset[[#This Row],[2024/25 Total change]]","v":17577},{"$f":"Dataset[[#This Row],[2025/26 Baseline]]+Dataset[[#This Row],[2025/26 Total change]]","v":18362},{"$f":"Dataset[[#This Row],[2026/27 Baseline]]+Dataset[[#This Row],[2026/27 Total change]]","v":19204},{"$f":"Dataset[[#This Row],[2027/28 Baseline]]+Dataset[[#This Row],[2027/28 Total change]]","v":20072}]
["NAT|Non-transfer item","40|Administrative fees","2025_26","MTEC2025",40,1,3,51382,110,"40","01","03","051382","000110","40|01|03|000110","01","01","02","03","03","01|01|02|03|03","National","Transport","Administration","Corporate Services","Non-transfer item","Current","Current payments","Goods and services","Administrative fees","Administrative fees","Economic development","Economic regulation and infrastructure","NAT",1678,252,1764,2234,2234,2234,1345,2241,2417,2528,2642,null,null,null,null,null,null,null,null,null,null,null,null,null,null,null,null,null,null,null,null,null,null,null,null,null,null,null,null,null,null,null,null,null,null,{"$f":"Dataset[[#This Row],[2025/26 From - Spending review Topic 1]]+Dataset[[#This Row],[2025/26 From - Spending review Topic 2]]+Dataset[[#This Row],[2025/26 From - Spending review Topic 3]]+Dataset[[#This Row],[2025/26 From - Spending review Topic 4]]+Dataset[[#This Row],[2025/26 From - Other reallocations]]","v":0},{"$f":"Dataset[[#This Row],[2026/27 From - Spending review Topic 1]]+Dataset[[#This Row],[2026/27 From - Spending review Topic 2]]+Dataset[[#This Row],[2026/27 From - Spending review Topic 3]]+Dataset[[#This Row],[2026/27 From - Spending review Topic 4]]+Dataset[[#This Row],[2026/27 From - Other reallocations]]","v":0},{"$f":"Dataset[[#This Row],[2027/28 From - Spending review Topic 1]]+Dataset[[#This Row],[2027/28 From - Spending review Topic 2]]+Dataset[[#This Row],[2027/28 From - Spending review Topic 3]]+Dataset[[#This Row],[2027/28 From - Spending review Topic 4]]+Dataset[[#This Row],[2027/28 From - Other reallocations]]","v":0},{"$f":"Dataset[[#This Row],[2025/26 To - Spending review Topic 1]]+Dataset[[#This Row],[2025/26 To - Spending review Topic 2]]+Dataset[[#This Row],[2025/26 To - Spending review Topic 3]]+Dataset[[#This Row],[2025/26 To - Spending review Topic 4]]+Dataset[[#This Row],[2025/26 To - Other reallocations]]","v":0},{"$f":"Dataset[[#This Row],[2026/27 To - Spending review Topic 1]]+Dataset[[#This Row],[2026/27 To - Spending review Topic 2]]+Dataset[[#This Row],[2026/27 To - Spending review Topic 3]]+Dataset[[#This Row],[2026/27 To - Spending review Topic 4]]+Dataset[[#This Row],[2026/27 To - Other reallocations]]","v":0},{"$f":"Dataset[[#This Row],[2027/28 To - Spending review Topic 1]]+Dataset[[#This Row],[2027/28 To - Spending review Topic 2]]+Dataset[[#This Row],[2027/28 To - Spending review Topic 3]]+Dataset[[#This Row],[2027/28 To - Spending review Topic 4]]+Dataset[[#This Row],[2027/28 To - Other reallocations]]","v":0},{"$f":"Dataset[[#This Row],[2025/26 Reduction]]+Dataset[[#This Row],[2025/26 From - Total]]","v":0},{"$f":"Dataset[[#This Row],[2026/27 Reduction]]+Dataset[[#This Row],[2026/27 From - Total]]","v":0},{"$f":"Dataset[[#This Row],[2027/28 Reduction]]+Dataset[[#This Row],[2027/28 From - Total]]","v":0},{"$f":"Dataset[[#This Row],[2024/25 Reduction]]","v":0},{"$f":"SUM(Dataset[[#This Row],[2025/26 Reduction]],Dataset[[#This Row],[2025/26 From - Total]],Dataset[[#This Row],[2025/26 To - Total]])","v":0},{"$f":"SUM(Dataset[[#This Row],[2026/27 Reduction]],Dataset[[#This Row],[2026/27 From - Total]],Dataset[[#This Row],[2026/27 To - Total]])","v":0},{"$f":"SUM(Dataset[[#This Row],[2027/28 Reduction]],Dataset[[#This Row],[2027/28 From - Total]],Dataset[[#This Row],[2027/28 To - Total]])","v":0},{"$f":"Dataset[[#This Row],[2024/25 Baseline]]+Dataset[[#This Row],[2024/25 Total change]]","v":2241},{"$f":"Dataset[[#This Row],[2025/26 Baseline]]+Dataset[[#This Row],[2025/26 Total change]]","v":2417},{"$f":"Dataset[[#This Row],[2026/27 Baseline]]+Dataset[[#This Row],[2026/27 Total change]]","v":2528},{"$f":"Dataset[[#This Row],[2027/28 Baseline]]+Dataset[[#This Row],[2027/28 Total change]]","v":2642}]
["NAT|Non-transfer item","40|Advertising","2025_26","MTEC2025",40,1,3,51383,111,"40","01","03","051383","000111","40|01|03|000111","01","01","02","04","04","01|01|02|04|04","National","Transport","Administration","Corporate Services","Non-transfer item","Current","Current payments","Goods and services","Advertising","Advertising","Economic development","Economic regulation and infrastructure","NAT",1900,3467,2393,2893,2982,2982,1983,2758,2975,3111,3252,null,null,null,null,null,null,null,null,null,null,null,null,null,null,null,null,null,null,null,null,null,null,null,null,null,null,null,null,null,null,null,null,null,null,{"$f":"Dataset[[#This Row],[2025/26 From - Spending review Topic 1]]+Dataset[[#This Row],[2025/26 From - Spending review Topic 2]]+Dataset[[#This Row],[2025/26 From - Spending review Topic 3]]+Dataset[[#This Row],[2025/26 From - Spending review Topic 4]]+Dataset[[#This Row],[2025/26 From - Other reallocations]]","v":0},{"$f":"Dataset[[#This Row],[2026/27 From - Spending review Topic 1]]+Dataset[[#This Row],[2026/27 From - Spending review Topic 2]]+Dataset[[#This Row],[2026/27 From - Spending review Topic 3]]+Dataset[[#This Row],[2026/27 From - Spending review Topic 4]]+Dataset[[#This Row],[2026/27 From - Other reallocations]]","v":0},{"$f":"Dataset[[#This Row],[2027/28 From - Spending review Topic 1]]+Dataset[[#This Row],[2027/28 From - Spending review Topic 2]]+Dataset[[#This Row],[2027/28 From - Spending review Topic 3]]+Dataset[[#This Row],[2027/28 From - Spending review Topic 4]]+Dataset[[#This Row],[2027/28 From - Other reallocations]]","v":0},{"$f":"Dataset[[#This Row],[2025/26 To - Spending review Topic 1]]+Dataset[[#This Row],[2025/26 To - Spending review Topic 2]]+Dataset[[#This Row],[2025/26 To - Spending review Topic 3]]+Dataset[[#This Row],[2025/26 To - Spending review Topic 4]]+Dataset[[#This Row],[2025/26 To - Other reallocations]]","v":0},{"$f":"Dataset[[#This Row],[2026/27 To - Spending review Topic 1]]+Dataset[[#This Row],[2026/27 To - Spending review Topic 2]]+Dataset[[#This Row],[2026/27 To - Spending review Topic 3]]+Dataset[[#This Row],[2026/27 To - Spending review Topic 4]]+Dataset[[#This Row],[2026/27 To - Other reallocations]]","v":0},{"$f":"Dataset[[#This Row],[2027/28 To - Spending review Topic 1]]+Dataset[[#This Row],[2027/28 To - Spending review Topic 2]]+Dataset[[#This Row],[2027/28 To - Spending review Topic 3]]+Dataset[[#This Row],[2027/28 To - Spending review Topic 4]]+Dataset[[#This Row],[2027/28 To - Other reallocations]]","v":0},{"$f":"Dataset[[#This Row],[2025/26 Reduction]]+Dataset[[#This Row],[2025/26 From - Total]]","v":0},{"$f":"Dataset[[#This Row],[2026/27 Reduction]]+Dataset[[#This Row],[2026/27 From - Total]]","v":0},{"$f":"Dataset[[#This Row],[2027/28 Reduction]]+Dataset[[#This Row],[2027/28 From - Total]]","v":0},{"$f":"Dataset[[#This Row],[2024/25 Reduction]]","v":0},{"$f":"SUM(Dataset[[#This Row],[2025/26 Reduction]],Dataset[[#This Row],[2025/26 From - Total]],Dataset[[#This Row],[2025/26 To - Total]])","v":0},{"$f":"SUM(Dataset[[#This Row],[2026/27 Reduction]],Dataset[[#This Row],[2026/27 From - Total]],Dataset[[#This Row],[2026/27 To - Total]])","v":0},{"$f":"SUM(Dataset[[#This Row],[2027/28 Reduction]],Dataset[[#This Row],[2027/28 From - Total]],Dataset[[#This Row],[2027/28 To - Total]])","v":0},{"$f":"Dataset[[#This Row],[2024/25 Baseline]]+Dataset[[#This Row],[2024/25 Total change]]","v":2758},{"$f":"Dataset[[#This Row],[2025/26 Baseline]]+Dataset[[#This Row],[2025/26 Total change]]","v":2975},{"$f":"Dataset[[#This Row],[2026/27 Baseline]]+Dataset[[#This Row],[2026/27 Total change]]","v":3111},{"$f":"Dataset[[#This Row],[2027/28 Baseline]]+Dataset[[#This Row],[2027/28 Total change]]","v":3252}]
["NAT|Non-transfer item","40|Minor assets","2025_26","MTEC2025",40,1,3,51384,112,"40","01","03","051384","000112","40|01|03|000112","01","01","02","05","05","01|01|02|05|05","National","Transport","Administration","Corporate Services","Non-transfer item","Current","Current payments","Goods and services","Minor assets","Minor assets","Economic development","Economic regulation and infrastructure","NAT",91,266,443,801,832,832,375,993,1071,1120,1171,null,null,null,null,null,null,null,null,null,null,null,null,null,null,null,null,null,null,null,null,null,null,null,null,null,null,null,null,null,null,null,null,null,null,{"$f":"Dataset[[#This Row],[2025/26 From - Spending review Topic 1]]+Dataset[[#This Row],[2025/26 From - Spending review Topic 2]]+Dataset[[#This Row],[2025/26 From - Spending review Topic 3]]+Dataset[[#This Row],[2025/26 From - Spending review Topic 4]]+Dataset[[#This Row],[2025/26 From - Other reallocations]]","v":0},{"$f":"Dataset[[#This Row],[2026/27 From - Spending review Topic 1]]+Dataset[[#This Row],[2026/27 From - Spending review Topic 2]]+Dataset[[#This Row],[2026/27 From - Spending review Topic 3]]+Dataset[[#This Row],[2026/27 From - Spending review Topic 4]]+Dataset[[#This Row],[2026/27 From - Other reallocations]]","v":0},{"$f":"Dataset[[#This Row],[2027/28 From - Spending review Topic 1]]+Dataset[[#This Row],[2027/28 From - Spending review Topic 2]]+Dataset[[#This Row],[2027/28 From - Spending review Topic 3]]+Dataset[[#This Row],[2027/28 From - Spending review Topic 4]]+Dataset[[#This Row],[2027/28 From - Other reallocations]]","v":0},{"$f":"Dataset[[#This Row],[2025/26 To - Spending review Topic 1]]+Dataset[[#This Row],[2025/26 To - Spending review Topic 2]]+Dataset[[#This Row],[2025/26 To - Spending review Topic 3]]+Dataset[[#This Row],[2025/26 To - Spending review Topic 4]]+Dataset[[#This Row],[2025/26 To - Other reallocations]]","v":0},{"$f":"Dataset[[#This Row],[2026/27 To - Spending review Topic 1]]+Dataset[[#This Row],[2026/27 To - Spending review Topic 2]]+Dataset[[#This Row],[2026/27 To - Spending review Topic 3]]+Dataset[[#This Row],[2026/27 To - Spending review Topic 4]]+Dataset[[#This Row],[2026/27 To - Other reallocations]]","v":0},{"$f":"Dataset[[#This Row],[2027/28 To - Spending review Topic 1]]+Dataset[[#This Row],[2027/28 To - Spending review Topic 2]]+Dataset[[#This Row],[2027/28 To - Spending review Topic 3]]+Dataset[[#This Row],[2027/28 To - Spending review Topic 4]]+Dataset[[#This Row],[2027/28 To - Other reallocations]]","v":0},{"$f":"Dataset[[#This Row],[2025/26 Reduction]]+Dataset[[#This Row],[2025/26 From - Total]]","v":0},{"$f":"Dataset[[#This Row],[2026/27 Reduction]]+Dataset[[#This Row],[2026/27 From - Total]]","v":0},{"$f":"Dataset[[#This Row],[2027/28 Reduction]]+Dataset[[#This Row],[2027/28 From - Total]]","v":0},{"$f":"Dataset[[#This Row],[2024/25 Reduction]]","v":0},{"$f":"SUM(Dataset[[#This Row],[2025/26 Reduction]],Dataset[[#This Row],[2025/26 From - Total]],Dataset[[#This Row],[2025/26 To - Total]])","v":0},{"$f":"SUM(Dataset[[#This Row],[2026/27 Reduction]],Dataset[[#This Row],[2026/27 From - Total]],Dataset[[#This Row],[2026/27 To - Total]])","v":0},{"$f":"SUM(Dataset[[#This Row],[2027/28 Reduction]],Dataset[[#This Row],[2027/28 From - Total]],Dataset[[#This Row],[2027/28 To - Total]])","v":0},{"$f":"Dataset[[#This Row],[2024/25 Baseline]]+Dataset[[#This Row],[2024/25 Total change]]","v":993},{"$f":"Dataset[[#This Row],[2025/26 Baseline]]+Dataset[[#This Row],[2025/26 Total change]]","v":1071},{"$f":"Dataset[[#This Row],[2026/27 Baseline]]+Dataset[[#This Row],[2026/27 Total change]]","v":1120},{"$f":"Dataset[[#This Row],[2027/28 Baseline]]+Dataset[[#This Row],[2027/28 Total change]]","v":1171}]
["NAT|Non-transfer item","40|Audit costs: External","2025_26","MTEC2025",40,1,3,51385,113,"40","01","03","051385","000113","40|01|03|000113","01","01","02","06","06","01|01|02|06|06","National","Transport","Administration","Corporate Services","Non-transfer item","Current","Current payments","Goods and services","Audit costs: External","Audit costs: External","Economic development","Economic regulation and infrastructure","NAT",5941,7739,7542,8876,8876,8876,8116,9463,10208,10675,11158,null,null,null,null,null,null,null,null,null,null,null,null,null,null,null,null,null,null,null,null,null,null,null,null,null,null,null,null,null,null,null,null,null,null,{"$f":"Dataset[[#This Row],[2025/26 From - Spending review Topic 1]]+Dataset[[#This Row],[2025/26 From - Spending review Topic 2]]+Dataset[[#This Row],[2025/26 From - Spending review Topic 3]]+Dataset[[#This Row],[2025/26 From - Spending review Topic 4]]+Dataset[[#This Row],[2025/26 From - Other reallocations]]","v":0},{"$f":"Dataset[[#This Row],[2026/27 From - Spending review Topic 1]]+Dataset[[#This Row],[2026/27 From - Spending review Topic 2]]+Dataset[[#This Row],[2026/27 From - Spending review Topic 3]]+Dataset[[#This Row],[2026/27 From - Spending review Topic 4]]+Dataset[[#This Row],[2026/27 From - Other reallocations]]","v":0},{"$f":"Dataset[[#This Row],[2027/28 From - Spending review Topic 1]]+Dataset[[#This Row],[2027/28 From - Spending review Topic 2]]+Dataset[[#This Row],[2027/28 From - Spending review Topic 3]]+Dataset[[#This Row],[2027/28 From - Spending review Topic 4]]+Dataset[[#This Row],[2027/28 From - Other reallocations]]","v":0},{"$f":"Dataset[[#This Row],[2025/26 To - Spending review Topic 1]]+Dataset[[#This Row],[2025/26 To - Spending review Topic 2]]+Dataset[[#This Row],[2025/26 To - Spending review Topic 3]]+Dataset[[#This Row],[2025/26 To - Spending review Topic 4]]+Dataset[[#This Row],[2025/26 To - Other reallocations]]","v":0},{"$f":"Dataset[[#This Row],[2026/27 To - Spending review Topic 1]]+Dataset[[#This Row],[2026/27 To - Spending review Topic 2]]+Dataset[[#This Row],[2026/27 To - Spending review Topic 3]]+Dataset[[#This Row],[2026/27 To - Spending review Topic 4]]+Dataset[[#This Row],[2026/27 To - Other reallocations]]","v":0},{"$f":"Dataset[[#This Row],[2027/28 To - Spending review Topic 1]]+Dataset[[#This Row],[2027/28 To - Spending review Topic 2]]+Dataset[[#This Row],[2027/28 To - Spending review Topic 3]]+Dataset[[#This Row],[2027/28 To - Spending review Topic 4]]+Dataset[[#This Row],[2027/28 To - Other reallocations]]","v":0},{"$f":"Dataset[[#This Row],[2025/26 Reduction]]+Dataset[[#This Row],[2025/26 From - Total]]","v":0},{"$f":"Dataset[[#This Row],[2026/27 Reduction]]+Dataset[[#This Row],[2026/27 From - Total]]","v":0},{"$f":"Dataset[[#This Row],[2027/28 Reduction]]+Dataset[[#This Row],[2027/28 From - Total]]","v":0},{"$f":"Dataset[[#This Row],[2024/25 Reduction]]","v":0},{"$f":"SUM(Dataset[[#This Row],[2025/26 Reduction]],Dataset[[#This Row],[2025/26 From - Total]],Dataset[[#This Row],[2025/26 To - Total]])","v":0},{"$f":"SUM(Dataset[[#This Row],[2026/27 Reduction]],Dataset[[#This Row],[2026/27 From - Total]],Dataset[[#This Row],[2026/27 To - Total]])","v":0},{"$f":"SUM(Dataset[[#This Row],[2027/28 Reduction]],Dataset[[#This Row],[2027/28 From - Total]],Dataset[[#This Row],[2027/28 To - Total]])","v":0},{"$f":"Dataset[[#This Row],[2024/25 Baseline]]+Dataset[[#This Row],[2024/25 Total change]]","v":9463},{"$f":"Dataset[[#This Row],[2025/26 Baseline]]+Dataset[[#This Row],[2025/26 Total change]]","v":10208},{"$f":"Dataset[[#This Row],[2026/27 Baseline]]+Dataset[[#This Row],[2026/27 Total change]]","v":10675},{"$f":"Dataset[[#This Row],[2027/28 Baseline]]+Dataset[[#This Row],[2027/28 Total change]]","v":11158}]
["NAT|Non-transfer item","40|Bursaries: Employees","2025_26","MTEC2025",40,1,3,51386,114,"40","01","03","051386","000114","40|01|03|000114","01","01","02","07","07","01|01|02|07|07","National","Transport","Administration","Corporate Services","Non-transfer item","Current","Current payments","Goods and services","Bursaries: Employees","Bursaries: Employees","Economic development","Economic regulation and infrastructure","NAT",1730,2028,1749,3351,3351,3351,2355,3501,3777,3949,4128,null,null,null,null,null,null,null,null,null,null,null,null,null,null,null,null,null,null,null,null,null,null,null,null,null,null,null,null,null,null,null,null,null,null,{"$f":"Dataset[[#This Row],[2025/26 From - Spending review Topic 1]]+Dataset[[#This Row],[2025/26 From - Spending review Topic 2]]+Dataset[[#This Row],[2025/26 From - Spending review Topic 3]]+Dataset[[#This Row],[2025/26 From - Spending review Topic 4]]+Dataset[[#This Row],[2025/26 From - Other reallocations]]","v":0},{"$f":"Dataset[[#This Row],[2026/27 From - Spending review Topic 1]]+Dataset[[#This Row],[2026/27 From - Spending review Topic 2]]+Dataset[[#This Row],[2026/27 From - Spending review Topic 3]]+Dataset[[#This Row],[2026/27 From - Spending review Topic 4]]+Dataset[[#This Row],[2026/27 From - Other reallocations]]","v":0},{"$f":"Dataset[[#This Row],[2027/28 From - Spending review Topic 1]]+Dataset[[#This Row],[2027/28 From - Spending review Topic 2]]+Dataset[[#This Row],[2027/28 From - Spending review Topic 3]]+Dataset[[#This Row],[2027/28 From - Spending review Topic 4]]+Dataset[[#This Row],[2027/28 From - Other reallocations]]","v":0},{"$f":"Dataset[[#This Row],[2025/26 To - Spending review Topic 1]]+Dataset[[#This Row],[2025/26 To - Spending review Topic 2]]+Dataset[[#This Row],[2025/26 To - Spending review Topic 3]]+Dataset[[#This Row],[2025/26 To - Spending review Topic 4]]+Dataset[[#This Row],[2025/26 To - Other reallocations]]","v":0},{"$f":"Dataset[[#This Row],[2026/27 To - Spending review Topic 1]]+Dataset[[#This Row],[2026/27 To - Spending review Topic 2]]+Dataset[[#This Row],[2026/27 To - Spending review Topic 3]]+Dataset[[#This Row],[2026/27 To - Spending review Topic 4]]+Dataset[[#This Row],[2026/27 To - Other reallocations]]","v":0},{"$f":"Dataset[[#This Row],[2027/28 To - Spending review Topic 1]]+Dataset[[#This Row],[2027/28 To - Spending review Topic 2]]+Dataset[[#This Row],[2027/28 To - Spending review Topic 3]]+Dataset[[#This Row],[2027/28 To - Spending review Topic 4]]+Dataset[[#This Row],[2027/28 To - Other reallocations]]","v":0},{"$f":"Dataset[[#This Row],[2025/26 Reduction]]+Dataset[[#This Row],[2025/26 From - Total]]","v":0},{"$f":"Dataset[[#This Row],[2026/27 Reduction]]+Dataset[[#This Row],[2026/27 From - Total]]","v":0},{"$f":"Dataset[[#This Row],[2027/28 Reduction]]+Dataset[[#This Row],[2027/28 From - Total]]","v":0},{"$f":"Dataset[[#This Row],[2024/25 Reduction]]","v":0},{"$f":"SUM(Dataset[[#This Row],[2025/26 Reduction]],Dataset[[#This Row],[2025/26 From - Total]],Dataset[[#This Row],[2025/26 To - Total]])","v":0},{"$f":"SUM(Dataset[[#This Row],[2026/27 Reduction]],Dataset[[#This Row],[2026/27 From - Total]],Dataset[[#This Row],[2026/27 To - Total]])","v":0},{"$f":"SUM(Dataset[[#This Row],[2027/28 Reduction]],Dataset[[#This Row],[2027/28 From - Total]],Dataset[[#This Row],[2027/28 To - Total]])","v":0},{"$f":"Dataset[[#This Row],[2024/25 Baseline]]+Dataset[[#This Row],[2024/25 Total change]]","v":3501},{"$f":"Dataset[[#This Row],[2025/26 Baseline]]+Dataset[[#This Row],[2025/26 Total change]]","v":3777},{"$f":"Dataset[[#This Row],[2026/27 Baseline]]+Dataset[[#This Row],[2026/27 Total change]]","v":3949},{"$f":"Dataset[[#This Row],[2027/28 Baseline]]+Dataset[[#This Row],[2027/28 Total change]]","v":4128}]
["NAT|Non-transfer item","40|Catering: Departmental activities","2025_26","MTEC2025",40,1,3,51387,115,"40","01","03","051387","000115","40|01|03|000115","01","01","02","08","08","01|01|02|08|08","National","Transport","Administration","Corporate Services","Non-transfer item","Current","Current payments","Goods and services","Catering: Departmental activities","Catering: Departmental activities","Economic development","Economic regulation and infrastructure","NAT",381,368,1064,510,1025,1025,809,840,906,948,991,null,null,null,null,null,null,null,null,null,null,null,null,null,null,null,null,null,null,null,null,null,null,null,null,null,null,null,null,null,null,null,null,null,null,{"$f":"Dataset[[#This Row],[2025/26 From - Spending review Topic 1]]+Dataset[[#This Row],[2025/26 From - Spending review Topic 2]]+Dataset[[#This Row],[2025/26 From - Spending review Topic 3]]+Dataset[[#This Row],[2025/26 From - Spending review Topic 4]]+Dataset[[#This Row],[2025/26 From - Other reallocations]]","v":0},{"$f":"Dataset[[#This Row],[2026/27 From - Spending review Topic 1]]+Dataset[[#This Row],[2026/27 From - Spending review Topic 2]]+Dataset[[#This Row],[2026/27 From - Spending review Topic 3]]+Dataset[[#This Row],[2026/27 From - Spending review Topic 4]]+Dataset[[#This Row],[2026/27 From - Other reallocations]]","v":0},{"$f":"Dataset[[#This Row],[2027/28 From - Spending review Topic 1]]+Dataset[[#This Row],[2027/28 From - Spending review Topic 2]]+Dataset[[#This Row],[2027/28 From - Spending review Topic 3]]+Dataset[[#This Row],[2027/28 From - Spending review Topic 4]]+Dataset[[#This Row],[2027/28 From - Other reallocations]]","v":0},{"$f":"Dataset[[#This Row],[2025/26 To - Spending review Topic 1]]+Dataset[[#This Row],[2025/26 To - Spending review Topic 2]]+Dataset[[#This Row],[2025/26 To - Spending review Topic 3]]+Dataset[[#This Row],[2025/26 To - Spending review Topic 4]]+Dataset[[#This Row],[2025/26 To - Other reallocations]]","v":0},{"$f":"Dataset[[#This Row],[2026/27 To - Spending review Topic 1]]+Dataset[[#This Row],[2026/27 To - Spending review Topic 2]]+Dataset[[#This Row],[2026/27 To - Spending review Topic 3]]+Dataset[[#This Row],[2026/27 To - Spending review Topic 4]]+Dataset[[#This Row],[2026/27 To - Other reallocations]]","v":0},{"$f":"Dataset[[#This Row],[2027/28 To - Spending review Topic 1]]+Dataset[[#This Row],[2027/28 To - Spending review Topic 2]]+Dataset[[#This Row],[2027/28 To - Spending review Topic 3]]+Dataset[[#This Row],[2027/28 To - Spending review Topic 4]]+Dataset[[#This Row],[2027/28 To - Other reallocations]]","v":0},{"$f":"Dataset[[#This Row],[2025/26 Reduction]]+Dataset[[#This Row],[2025/26 From - Total]]","v":0},{"$f":"Dataset[[#This Row],[2026/27 Reduction]]+Dataset[[#This Row],[2026/27 From - Total]]","v":0},{"$f":"Dataset[[#This Row],[2027/28 Reduction]]+Dataset[[#This Row],[2027/28 From - Total]]","v":0},{"$f":"Dataset[[#This Row],[2024/25 Reduction]]","v":0},{"$f":"SUM(Dataset[[#This Row],[2025/26 Reduction]],Dataset[[#This Row],[2025/26 From - Total]],Dataset[[#This Row],[2025/26 To - Total]])","v":0},{"$f":"SUM(Dataset[[#This Row],[2026/27 Reduction]],Dataset[[#This Row],[2026/27 From - Total]],Dataset[[#This Row],[2026/27 To - Total]])","v":0},{"$f":"SUM(Dataset[[#This Row],[2027/28 Reduction]],Dataset[[#This Row],[2027/28 From - Total]],Dataset[[#This Row],[2027/28 To - Total]])","v":0},{"$f":"Dataset[[#This Row],[2024/25 Baseline]]+Dataset[[#This Row],[2024/25 Total change]]","v":840},{"$f":"Dataset[[#This Row],[2025/26 Baseline]]+Dataset[[#This Row],[2025/26 Total change]]","v":906},{"$f":"Dataset[[#This Row],[2026/27 Baseline]]+Dataset[[#This Row],[2026/27 Total change]]","v":948},{"$f":"Dataset[[#This Row],[2027/28 Baseline]]+Dataset[[#This Row],[2027/28 Total change]]","v":991}]
["NAT|Non-transfer item","40|Communication (G&S)","2025_26","MTEC2025",40,1,3,51388,116,"40","01","03","051388","000116","40|01|03|000116","01","01","02","09","09","01|01|02|09|09","National","Transport","Administration","Corporate Services","Non-transfer item","Current","Current payments","Goods and services","Communication (G&S)","Communication (G&S)","Economic development","Economic regulation and infrastructure","NAT",2955,3137,2656,2765,2817,2817,2664,2904,3133,3276,3424,null,null,null,null,null,null,null,null,null,null,null,null,null,null,null,null,null,null,null,null,null,null,null,null,null,null,null,null,null,null,null,null,null,null,{"$f":"Dataset[[#This Row],[2025/26 From - Spending review Topic 1]]+Dataset[[#This Row],[2025/26 From - Spending review Topic 2]]+Dataset[[#This Row],[2025/26 From - Spending review Topic 3]]+Dataset[[#This Row],[2025/26 From - Spending review Topic 4]]+Dataset[[#This Row],[2025/26 From - Other reallocations]]","v":0},{"$f":"Dataset[[#This Row],[2026/27 From - Spending review Topic 1]]+Dataset[[#This Row],[2026/27 From - Spending review Topic 2]]+Dataset[[#This Row],[2026/27 From - Spending review Topic 3]]+Dataset[[#This Row],[2026/27 From - Spending review Topic 4]]+Dataset[[#This Row],[2026/27 From - Other reallocations]]","v":0},{"$f":"Dataset[[#This Row],[2027/28 From - Spending review Topic 1]]+Dataset[[#This Row],[2027/28 From - Spending review Topic 2]]+Dataset[[#This Row],[2027/28 From - Spending review Topic 3]]+Dataset[[#This Row],[2027/28 From - Spending review Topic 4]]+Dataset[[#This Row],[2027/28 From - Other reallocations]]","v":0},{"$f":"Dataset[[#This Row],[2025/26 To - Spending review Topic 1]]+Dataset[[#This Row],[2025/26 To - Spending review Topic 2]]+Dataset[[#This Row],[2025/26 To - Spending review Topic 3]]+Dataset[[#This Row],[2025/26 To - Spending review Topic 4]]+Dataset[[#This Row],[2025/26 To - Other reallocations]]","v":0},{"$f":"Dataset[[#This Row],[2026/27 To - Spending review Topic 1]]+Dataset[[#This Row],[2026/27 To - Spending review Topic 2]]+Dataset[[#This Row],[2026/27 To - Spending review Topic 3]]+Dataset[[#This Row],[2026/27 To - Spending review Topic 4]]+Dataset[[#This Row],[2026/27 To - Other reallocations]]","v":0},{"$f":"Dataset[[#This Row],[2027/28 To - Spending review Topic 1]]+Dataset[[#This Row],[2027/28 To - Spending review Topic 2]]+Dataset[[#This Row],[2027/28 To - Spending review Topic 3]]+Dataset[[#This Row],[2027/28 To - Spending review Topic 4]]+Dataset[[#This Row],[2027/28 To - Other reallocations]]","v":0},{"$f":"Dataset[[#This Row],[2025/26 Reduction]]+Dataset[[#This Row],[2025/26 From - Total]]","v":0},{"$f":"Dataset[[#This Row],[2026/27 Reduction]]+Dataset[[#This Row],[2026/27 From - Total]]","v":0},{"$f":"Dataset[[#This Row],[2027/28 Reduction]]+Dataset[[#This Row],[2027/28 From - Total]]","v":0},{"$f":"Dataset[[#This Row],[2024/25 Reduction]]","v":0},{"$f":"SUM(Dataset[[#This Row],[2025/26 Reduction]],Dataset[[#This Row],[2025/26 From - Total]],Dataset[[#This Row],[2025/26 To - Total]])","v":0},{"$f":"SUM(Dataset[[#This Row],[2026/27 Reduction]],Dataset[[#This Row],[2026/27 From - Total]],Dataset[[#This Row],[2026/27 To - Total]])","v":0},{"$f":"SUM(Dataset[[#This Row],[2027/28 Reduction]],Dataset[[#This Row],[2027/28 From - Total]],Dataset[[#This Row],[2027/28 To - Total]])","v":0},{"$f":"Dataset[[#This Row],[2024/25 Baseline]]+Dataset[[#This Row],[2024/25 Total change]]","v":2904},{"$f":"Dataset[[#This Row],[2025/26 Baseline]]+Dataset[[#This Row],[2025/26 Total change]]","v":3133},{"$f":"Dataset[[#This Row],[2026/27 Baseline]]+Dataset[[#This Row],[2026/27 Total change]]","v":3276},{"$f":"Dataset[[#This Row],[2027/28 Baseline]]+Dataset[[#This Row],[2027/28 Total change]]","v":3424}]
["NAT|Non-transfer item","40|Computer services","2025_26","MTEC2025",40,1,3,51389,117,"40","01","03","051389","000117","40|01|03|000117","01","01","02","10","10","01|01|02|10|10","National","Transport","Administration","Corporate Services","Non-transfer item","Current","Current payments","Goods and services","Computer services","Computer services","Economic development","Economic regulation and infrastructure","NAT",13920,13698,16726,22375,22315,22315,31400,20004,21575,22567,23587,null,null,null,null,null,null,null,null,null,null,null,null,null,null,null,null,null,null,null,null,null,null,null,null,null,null,null,null,null,null,null,null,null,null,{"$f":"Dataset[[#This Row],[2025/26 From - Spending review Topic 1]]+Dataset[[#This Row],[2025/26 From - Spending review Topic 2]]+Dataset[[#This Row],[2025/26 From - Spending review Topic 3]]+Dataset[[#This Row],[2025/26 From - Spending review Topic 4]]+Dataset[[#This Row],[2025/26 From - Other reallocations]]","v":0},{"$f":"Dataset[[#This Row],[2026/27 From - Spending review Topic 1]]+Dataset[[#This Row],[2026/27 From - Spending review Topic 2]]+Dataset[[#This Row],[2026/27 From - Spending review Topic 3]]+Dataset[[#This Row],[2026/27 From - Spending review Topic 4]]+Dataset[[#This Row],[2026/27 From - Other reallocations]]","v":0},{"$f":"Dataset[[#This Row],[2027/28 From - Spending review Topic 1]]+Dataset[[#This Row],[2027/28 From - Spending review Topic 2]]+Dataset[[#This Row],[2027/28 From - Spending review Topic 3]]+Dataset[[#This Row],[2027/28 From - Spending review Topic 4]]+Dataset[[#This Row],[2027/28 From - Other reallocations]]","v":0},{"$f":"Dataset[[#This Row],[2025/26 To - Spending review Topic 1]]+Dataset[[#This Row],[2025/26 To - Spending review Topic 2]]+Dataset[[#This Row],[2025/26 To - Spending review Topic 3]]+Dataset[[#This Row],[2025/26 To - Spending review Topic 4]]+Dataset[[#This Row],[2025/26 To - Other reallocations]]","v":0},{"$f":"Dataset[[#This Row],[2026/27 To - Spending review Topic 1]]+Dataset[[#This Row],[2026/27 To - Spending review Topic 2]]+Dataset[[#This Row],[2026/27 To - Spending review Topic 3]]+Dataset[[#This Row],[2026/27 To - Spending review Topic 4]]+Dataset[[#This Row],[2026/27 To - Other reallocations]]","v":0},{"$f":"Dataset[[#This Row],[2027/28 To - Spending review Topic 1]]+Dataset[[#This Row],[2027/28 To - Spending review Topic 2]]+Dataset[[#This Row],[2027/28 To - Spending review Topic 3]]+Dataset[[#This Row],[2027/28 To - Spending review Topic 4]]+Dataset[[#This Row],[2027/28 To - Other reallocations]]","v":0},{"$f":"Dataset[[#This Row],[2025/26 Reduction]]+Dataset[[#This Row],[2025/26 From - Total]]","v":0},{"$f":"Dataset[[#This Row],[2026/27 Reduction]]+Dataset[[#This Row],[2026/27 From - Total]]","v":0},{"$f":"Dataset[[#This Row],[2027/28 Reduction]]+Dataset[[#This Row],[2027/28 From - Total]]","v":0},{"$f":"Dataset[[#This Row],[2024/25 Reduction]]","v":0},{"$f":"SUM(Dataset[[#This Row],[2025/26 Reduction]],Dataset[[#This Row],[2025/26 From - Total]],Dataset[[#This Row],[2025/26 To - Total]])","v":0},{"$f":"SUM(Dataset[[#This Row],[2026/27 Reduction]],Dataset[[#This Row],[2026/27 From - Total]],Dataset[[#This Row],[2026/27 To - Total]])","v":0},{"$f":"SUM(Dataset[[#This Row],[2027/28 Reduction]],Dataset[[#This Row],[2027/28 From - Total]],Dataset[[#This Row],[2027/28 To - Total]])","v":0},{"$f":"Dataset[[#This Row],[2024/25 Baseline]]+Dataset[[#This Row],[2024/25 Total change]]","v":20004},{"$f":"Dataset[[#This Row],[2025/26 Baseline]]+Dataset[[#This Row],[2025/26 Total change]]","v":21575},{"$f":"Dataset[[#This Row],[2026/27 Baseline]]+Dataset[[#This Row],[2026/27 Total change]]","v":22567},{"$f":"Dataset[[#This Row],[2027/28 Baseline]]+Dataset[[#This Row],[2027/28 Total change]]","v":23587}]
["NAT|Non-transfer item","40|Consultants: Business and advisory services","2025_26","MTEC2025",40,1,3,51390,118,"40","01","03","051390","000118","40|01|03|000118","01","01","02","11","11","01|01|02|11|11","National","Transport","Administration","Corporate Services","Non-transfer item","Current","Current payments","Goods and services","Consultants: Business and advisory services","Consultants: Business and advisory services","Economic development","Economic regulation and infrastructure","NAT",389,381,952,3117,3117,3117,2120,2954,3186,3333,3484,null,null,null,null,null,null,null,null,null,null,null,null,null,null,null,null,null,null,null,null,null,null,null,null,null,null,null,null,null,null,null,null,null,null,{"$f":"Dataset[[#This Row],[2025/26 From - Spending review Topic 1]]+Dataset[[#This Row],[2025/26 From - Spending review Topic 2]]+Dataset[[#This Row],[2025/26 From - Spending review Topic 3]]+Dataset[[#This Row],[2025/26 From - Spending review Topic 4]]+Dataset[[#This Row],[2025/26 From - Other reallocations]]","v":0},{"$f":"Dataset[[#This Row],[2026/27 From - Spending review Topic 1]]+Dataset[[#This Row],[2026/27 From - Spending review Topic 2]]+Dataset[[#This Row],[2026/27 From - Spending review Topic 3]]+Dataset[[#This Row],[2026/27 From - Spending review Topic 4]]+Dataset[[#This Row],[2026/27 From - Other reallocations]]","v":0},{"$f":"Dataset[[#This Row],[2027/28 From - Spending review Topic 1]]+Dataset[[#This Row],[2027/28 From - Spending review Topic 2]]+Dataset[[#This Row],[2027/28 From - Spending review Topic 3]]+Dataset[[#This Row],[2027/28 From - Spending review Topic 4]]+Dataset[[#This Row],[2027/28 From - Other reallocations]]","v":0},{"$f":"Dataset[[#This Row],[2025/26 To - Spending review Topic 1]]+Dataset[[#This Row],[2025/26 To - Spending review Topic 2]]+Dataset[[#This Row],[2025/26 To - Spending review Topic 3]]+Dataset[[#This Row],[2025/26 To - Spending review Topic 4]]+Dataset[[#This Row],[2025/26 To - Other reallocations]]","v":0},{"$f":"Dataset[[#This Row],[2026/27 To - Spending review Topic 1]]+Dataset[[#This Row],[2026/27 To - Spending review Topic 2]]+Dataset[[#This Row],[2026/27 To - Spending review Topic 3]]+Dataset[[#This Row],[2026/27 To - Spending review Topic 4]]+Dataset[[#This Row],[2026/27 To - Other reallocations]]","v":0},{"$f":"Dataset[[#This Row],[2027/28 To - Spending review Topic 1]]+Dataset[[#This Row],[2027/28 To - Spending review Topic 2]]+Dataset[[#This Row],[2027/28 To - Spending review Topic 3]]+Dataset[[#This Row],[2027/28 To - Spending review Topic 4]]+Dataset[[#This Row],[2027/28 To - Other reallocations]]","v":0},{"$f":"Dataset[[#This Row],[2025/26 Reduction]]+Dataset[[#This Row],[2025/26 From - Total]]","v":0},{"$f":"Dataset[[#This Row],[2026/27 Reduction]]+Dataset[[#This Row],[2026/27 From - Total]]","v":0},{"$f":"Dataset[[#This Row],[2027/28 Reduction]]+Dataset[[#This Row],[2027/28 From - Total]]","v":0},{"$f":"Dataset[[#This Row],[2024/25 Reduction]]","v":0},{"$f":"SUM(Dataset[[#This Row],[2025/26 Reduction]],Dataset[[#This Row],[2025/26 From - Total]],Dataset[[#This Row],[2025/26 To - Total]])","v":0},{"$f":"SUM(Dataset[[#This Row],[2026/27 Reduction]],Dataset[[#This Row],[2026/27 From - Total]],Dataset[[#This Row],[2026/27 To - Total]])","v":0},{"$f":"SUM(Dataset[[#This Row],[2027/28 Reduction]],Dataset[[#This Row],[2027/28 From - Total]],Dataset[[#This Row],[2027/28 To - Total]])","v":0},{"$f":"Dataset[[#This Row],[2024/25 Baseline]]+Dataset[[#This Row],[2024/25 Total change]]","v":2954},{"$f":"Dataset[[#This Row],[2025/26 Baseline]]+Dataset[[#This Row],[2025/26 Total change]]","v":3186},{"$f":"Dataset[[#This Row],[2026/27 Baseline]]+Dataset[[#This Row],[2026/27 Total change]]","v":3333},{"$f":"Dataset[[#This Row],[2027/28 Baseline]]+Dataset[[#This Row],[2027/28 Total change]]","v":3484}]
["NAT|Non-transfer item","40|Infrastructure and planning services","2025_26","MTEC2025",40,1,3,51391,119,"40","01","03","051391","000119","40|01|03|000119","01","01","02","12","12","01|01|02|12|12","National","Transport","Administration","Corporate Services","Non-transfer item","Current","Current payments","Goods and services","Infrastructure and planning services","Infrastructure and planning services","Economic development","Economic regulation and infrastructure","NAT",0,0,0,0,0,0,null,0,0,0,0,null,null,null,null,null,null,null,null,null,null,null,null,null,null,null,null,null,null,null,null,null,null,null,null,null,null,null,null,null,null,null,null,null,null,{"$f":"Dataset[[#This Row],[2025/26 From - Spending review Topic 1]]+Dataset[[#This Row],[2025/26 From - Spending review Topic 2]]+Dataset[[#This Row],[2025/26 From - Spending review Topic 3]]+Dataset[[#This Row],[2025/26 From - Spending review Topic 4]]+Dataset[[#This Row],[2025/26 From - Other reallocations]]","v":0},{"$f":"Dataset[[#This Row],[2026/27 From - Spending review Topic 1]]+Dataset[[#This Row],[2026/27 From - Spending review Topic 2]]+Dataset[[#This Row],[2026/27 From - Spending review Topic 3]]+Dataset[[#This Row],[2026/27 From - Spending review Topic 4]]+Dataset[[#This Row],[2026/27 From - Other reallocations]]","v":0},{"$f":"Dataset[[#This Row],[2027/28 From - Spending review Topic 1]]+Dataset[[#This Row],[2027/28 From - Spending review Topic 2]]+Dataset[[#This Row],[2027/28 From - Spending review Topic 3]]+Dataset[[#This Row],[2027/28 From - Spending review Topic 4]]+Dataset[[#This Row],[2027/28 From - Other reallocations]]","v":0},{"$f":"Dataset[[#This Row],[2025/26 To - Spending review Topic 1]]+Dataset[[#This Row],[2025/26 To - Spending review Topic 2]]+Dataset[[#This Row],[2025/26 To - Spending review Topic 3]]+Dataset[[#This Row],[2025/26 To - Spending review Topic 4]]+Dataset[[#This Row],[2025/26 To - Other reallocations]]","v":0},{"$f":"Dataset[[#This Row],[2026/27 To - Spending review Topic 1]]+Dataset[[#This Row],[2026/27 To - Spending review Topic 2]]+Dataset[[#This Row],[2026/27 To - Spending review Topic 3]]+Dataset[[#This Row],[2026/27 To - Spending review Topic 4]]+Dataset[[#This Row],[2026/27 To - Other reallocations]]","v":0},{"$f":"Dataset[[#This Row],[2027/28 To - Spending review Topic 1]]+Dataset[[#This Row],[2027/28 To - Spending review Topic 2]]+Dataset[[#This Row],[2027/28 To - Spending review Topic 3]]+Dataset[[#This Row],[2027/28 To - Spending review Topic 4]]+Dataset[[#This Row],[2027/28 To - Other reallocations]]","v":0},{"$f":"Dataset[[#This Row],[2025/26 Reduction]]+Dataset[[#This Row],[2025/26 From - Total]]","v":0},{"$f":"Dataset[[#This Row],[2026/27 Reduction]]+Dataset[[#This Row],[2026/27 From - Total]]","v":0},{"$f":"Dataset[[#This Row],[2027/28 Reduction]]+Dataset[[#This Row],[2027/28 From - Total]]","v":0},{"$f":"Dataset[[#This Row],[2024/25 Reduction]]","v":0},{"$f":"SUM(Dataset[[#This Row],[2025/26 Reduction]],Dataset[[#This Row],[2025/26 From - Total]],Dataset[[#This Row],[2025/26 To - Total]])","v":0},{"$f":"SUM(Dataset[[#This Row],[2026/27 Reduction]],Dataset[[#This Row],[2026/27 From - Total]],Dataset[[#This Row],[2026/27 To - Total]])","v":0},{"$f":"SUM(Dataset[[#This Row],[2027/28 Reduction]],Dataset[[#This Row],[2027/28 From - Total]],Dataset[[#This Row],[2027/28 To - Total]])","v":0},{"$f":"Dataset[[#This Row],[2024/25 Baseline]]+Dataset[[#This Row],[2024/25 Total change]]","v":0},{"$f":"Dataset[[#This Row],[2025/26 Baseline]]+Dataset[[#This Row],[2025/26 Total change]]","v":0},{"$f":"Dataset[[#This Row],[2026/27 Baseline]]+Dataset[[#This Row],[2026/27 Total change]]","v":0},{"$f":"Dataset[[#This Row],[2027/28 Baseline]]+Dataset[[#This Row],[2027/28 Total change]]","v":0}]
["NAT|Non-transfer item","40|Laboratory services","2025_26","MTEC2025",40,1,3,51392,120,"40","01","03","051392","000120","40|01|03|000120","01","01","02","13","13","01|01|02|13|13","National","Transport","Administration","Corporate Services","Non-transfer item","Current","Current payments","Goods and services","Laboratory services","Laboratory services","Economic development","Economic regulation and infrastructure","NAT",0,0,0,0,0,0,null,0,0,0,0,null,null,null,null,null,null,null,null,null,null,null,null,null,null,null,null,null,null,null,null,null,null,null,null,null,null,null,null,null,null,null,null,null,null,{"$f":"Dataset[[#This Row],[2025/26 From - Spending review Topic 1]]+Dataset[[#This Row],[2025/26 From - Spending review Topic 2]]+Dataset[[#This Row],[2025/26 From - Spending review Topic 3]]+Dataset[[#This Row],[2025/26 From - Spending review Topic 4]]+Dataset[[#This Row],[2025/26 From - Other reallocations]]","v":0},{"$f":"Dataset[[#This Row],[2026/27 From - Spending review Topic 1]]+Dataset[[#This Row],[2026/27 From - Spending review Topic 2]]+Dataset[[#This Row],[2026/27 From - Spending review Topic 3]]+Dataset[[#This Row],[2026/27 From - Spending review Topic 4]]+Dataset[[#This Row],[2026/27 From - Other reallocations]]","v":0},{"$f":"Dataset[[#This Row],[2027/28 From - Spending review Topic 1]]+Dataset[[#This Row],[2027/28 From - Spending review Topic 2]]+Dataset[[#This Row],[2027/28 From - Spending review Topic 3]]+Dataset[[#This Row],[2027/28 From - Spending review Topic 4]]+Dataset[[#This Row],[2027/28 From - Other reallocations]]","v":0},{"$f":"Dataset[[#This Row],[2025/26 To - Spending review Topic 1]]+Dataset[[#This Row],[2025/26 To - Spending review Topic 2]]+Dataset[[#This Row],[2025/26 To - Spending review Topic 3]]+Dataset[[#This Row],[2025/26 To - Spending review Topic 4]]+Dataset[[#This Row],[2025/26 To - Other reallocations]]","v":0},{"$f":"Dataset[[#This Row],[2026/27 To - Spending review Topic 1]]+Dataset[[#This Row],[2026/27 To - Spending review Topic 2]]+Dataset[[#This Row],[2026/27 To - Spending review Topic 3]]+Dataset[[#This Row],[2026/27 To - Spending review Topic 4]]+Dataset[[#This Row],[2026/27 To - Other reallocations]]","v":0},{"$f":"Dataset[[#This Row],[2027/28 To - Spending review Topic 1]]+Dataset[[#This Row],[2027/28 To - Spending review Topic 2]]+Dataset[[#This Row],[2027/28 To - Spending review Topic 3]]+Dataset[[#This Row],[2027/28 To - Spending review Topic 4]]+Dataset[[#This Row],[2027/28 To - Other reallocations]]","v":0},{"$f":"Dataset[[#This Row],[2025/26 Reduction]]+Dataset[[#This Row],[2025/26 From - Total]]","v":0},{"$f":"Dataset[[#This Row],[2026/27 Reduction]]+Dataset[[#This Row],[2026/27 From - Total]]","v":0},{"$f":"Dataset[[#This Row],[2027/28 Reduction]]+Dataset[[#This Row],[2027/28 From - Total]]","v":0},{"$f":"Dataset[[#This Row],[2024/25 Reduction]]","v":0},{"$f":"SUM(Dataset[[#This Row],[2025/26 Reduction]],Dataset[[#This Row],[2025/26 From - Total]],Dataset[[#This Row],[2025/26 To - Total]])","v":0},{"$f":"SUM(Dataset[[#This Row],[2026/27 Reduction]],Dataset[[#This Row],[2026/27 From - Total]],Dataset[[#This Row],[2026/27 To - Total]])","v":0},{"$f":"SUM(Dataset[[#This Row],[2027/28 Reduction]],Dataset[[#This Row],[2027/28 From - Total]],Dataset[[#This Row],[2027/28 To - Total]])","v":0},{"$f":"Dataset[[#This Row],[2024/25 Baseline]]+Dataset[[#This Row],[2024/25 Total change]]","v":0},{"$f":"Dataset[[#This Row],[2025/26 Baseline]]+Dataset[[#This Row],[2025/26 Total change]]","v":0},{"$f":"Dataset[[#This Row],[2026/27 Baseline]]+Dataset[[#This Row],[2026/27 Total change]]","v":0},{"$f":"Dataset[[#This Row],[2027/28 Baseline]]+Dataset[[#This Row],[2027/28 Total change]]","v":0}]
["NAT|Non-transfer item","40|Legal services (G&S)","2025_26","MTEC2025",40,1,3,51393,121,"40","01","03","051393","000121","40|01|03|000121","01","01","02","14","14","01|01|02|14|14","National","Transport","Administration","Corporate Services","Non-transfer item","Current","Current payments","Goods and services","Legal services (G&S)","Legal services (G&S)","Economic development","Economic regulation and infrastructure","NAT",2627,12883,5853,9587,9387,9387,9259,9101,9817,10267,10731,null,null,null,null,null,null,null,null,null,null,null,null,null,null,null,null,null,null,null,null,null,null,null,null,null,null,null,null,null,null,null,null,null,null,{"$f":"Dataset[[#This Row],[2025/26 From - Spending review Topic 1]]+Dataset[[#This Row],[2025/26 From - Spending review Topic 2]]+Dataset[[#This Row],[2025/26 From - Spending review Topic 3]]+Dataset[[#This Row],[2025/26 From - Spending review Topic 4]]+Dataset[[#This Row],[2025/26 From - Other reallocations]]","v":0},{"$f":"Dataset[[#This Row],[2026/27 From - Spending review Topic 1]]+Dataset[[#This Row],[2026/27 From - Spending review Topic 2]]+Dataset[[#This Row],[2026/27 From - Spending review Topic 3]]+Dataset[[#This Row],[2026/27 From - Spending review Topic 4]]+Dataset[[#This Row],[2026/27 From - Other reallocations]]","v":0},{"$f":"Dataset[[#This Row],[2027/28 From - Spending review Topic 1]]+Dataset[[#This Row],[2027/28 From - Spending review Topic 2]]+Dataset[[#This Row],[2027/28 From - Spending review Topic 3]]+Dataset[[#This Row],[2027/28 From - Spending review Topic 4]]+Dataset[[#This Row],[2027/28 From - Other reallocations]]","v":0},{"$f":"Dataset[[#This Row],[2025/26 To - Spending review Topic 1]]+Dataset[[#This Row],[2025/26 To - Spending review Topic 2]]+Dataset[[#This Row],[2025/26 To - Spending review Topic 3]]+Dataset[[#This Row],[2025/26 To - Spending review Topic 4]]+Dataset[[#This Row],[2025/26 To - Other reallocations]]","v":0},{"$f":"Dataset[[#This Row],[2026/27 To - Spending review Topic 1]]+Dataset[[#This Row],[2026/27 To - Spending review Topic 2]]+Dataset[[#This Row],[2026/27 To - Spending review Topic 3]]+Dataset[[#This Row],[2026/27 To - Spending review Topic 4]]+Dataset[[#This Row],[2026/27 To - Other reallocations]]","v":0},{"$f":"Dataset[[#This Row],[2027/28 To - Spending review Topic 1]]+Dataset[[#This Row],[2027/28 To - Spending review Topic 2]]+Dataset[[#This Row],[2027/28 To - Spending review Topic 3]]+Dataset[[#This Row],[2027/28 To - Spending review Topic 4]]+Dataset[[#This Row],[2027/28 To - Other reallocations]]","v":0},{"$f":"Dataset[[#This Row],[2025/26 Reduction]]+Dataset[[#This Row],[2025/26 From - Total]]","v":0},{"$f":"Dataset[[#This Row],[2026/27 Reduction]]+Dataset[[#This Row],[2026/27 From - Total]]","v":0},{"$f":"Dataset[[#This Row],[2027/28 Reduction]]+Dataset[[#This Row],[2027/28 From - Total]]","v":0},{"$f":"Dataset[[#This Row],[2024/25 Reduction]]","v":0},{"$f":"SUM(Dataset[[#This Row],[2025/26 Reduction]],Dataset[[#This Row],[2025/26 From - Total]],Dataset[[#This Row],[2025/26 To - Total]])","v":0},{"$f":"SUM(Dataset[[#This Row],[2026/27 Reduction]],Dataset[[#This Row],[2026/27 From - Total]],Dataset[[#This Row],[2026/27 To - Total]])","v":0},{"$f":"SUM(Dataset[[#This Row],[2027/28 Reduction]],Dataset[[#This Row],[2027/28 From - Total]],Dataset[[#This Row],[2027/28 To - Total]])","v":0},{"$f":"Dataset[[#This Row],[2024/25 Baseline]]+Dataset[[#This Row],[2024/25 Total change]]","v":9101},{"$f":"Dataset[[#This Row],[2025/26 Baseline]]+Dataset[[#This Row],[2025/26 Total change]]","v":9817},{"$f":"Dataset[[#This Row],[2026/27 Baseline]]+Dataset[[#This Row],[2026/27 Total change]]","v":10267},{"$f":"Dataset[[#This Row],[2027/28 Baseline]]+Dataset[[#This Row],[2027/28 Total change]]","v":10731}]
["NAT|Non-transfer item","40|Science and technological services","2025_26","MTEC2025",40,1,3,51394,122,"40","01","03","051394","000122","40|01|03|000122","01","01","02","15","15","01|01|02|15|15","National","Transport","Administration","Corporate Services","Non-transfer item","Current","Current payments","Goods and services","Science and technological services","Science and technological services","Economic development","Economic regulation and infrastructure","NAT",0,0,0,0,0,0,null,0,0,0,0,null,null,null,null,null,null,null,null,null,null,null,null,null,null,null,null,null,null,null,null,null,null,null,null,null,null,null,null,null,null,null,null,null,null,{"$f":"Dataset[[#This Row],[2025/26 From - Spending review Topic 1]]+Dataset[[#This Row],[2025/26 From - Spending review Topic 2]]+Dataset[[#This Row],[2025/26 From - Spending review Topic 3]]+Dataset[[#This Row],[2025/26 From - Spending review Topic 4]]+Dataset[[#This Row],[2025/26 From - Other reallocations]]","v":0},{"$f":"Dataset[[#This Row],[2026/27 From - Spending review Topic 1]]+Dataset[[#This Row],[2026/27 From - Spending review Topic 2]]+Dataset[[#This Row],[2026/27 From - Spending review Topic 3]]+Dataset[[#This Row],[2026/27 From - Spending review Topic 4]]+Dataset[[#This Row],[2026/27 From - Other reallocations]]","v":0},{"$f":"Dataset[[#This Row],[2027/28 From - Spending review Topic 1]]+Dataset[[#This Row],[2027/28 From - Spending review Topic 2]]+Dataset[[#This Row],[2027/28 From - Spending review Topic 3]]+Dataset[[#This Row],[2027/28 From - Spending review Topic 4]]+Dataset[[#This Row],[2027/28 From - Other reallocations]]","v":0},{"$f":"Dataset[[#This Row],[2025/26 To - Spending review Topic 1]]+Dataset[[#This Row],[2025/26 To - Spending review Topic 2]]+Dataset[[#This Row],[2025/26 To - Spending review Topic 3]]+Dataset[[#This Row],[2025/26 To - Spending review Topic 4]]+Dataset[[#This Row],[2025/26 To - Other reallocations]]","v":0},{"$f":"Dataset[[#This Row],[2026/27 To - Spending review Topic 1]]+Dataset[[#This Row],[2026/27 To - Spending review Topic 2]]+Dataset[[#This Row],[2026/27 To - Spending review Topic 3]]+Dataset[[#This Row],[2026/27 To - Spending review Topic 4]]+Dataset[[#This Row],[2026/27 To - Other reallocations]]","v":0},{"$f":"Dataset[[#This Row],[2027/28 To - Spending review Topic 1]]+Dataset[[#This Row],[2027/28 To - Spending review Topic 2]]+Dataset[[#This Row],[2027/28 To - Spending review Topic 3]]+Dataset[[#This Row],[2027/28 To - Spending review Topic 4]]+Dataset[[#This Row],[2027/28 To - Other reallocations]]","v":0},{"$f":"Dataset[[#This Row],[2025/26 Reduction]]+Dataset[[#This Row],[2025/26 From - Total]]","v":0},{"$f":"Dataset[[#This Row],[2026/27 Reduction]]+Dataset[[#This Row],[2026/27 From - Total]]","v":0},{"$f":"Dataset[[#This Row],[2027/28 Reduction]]+Dataset[[#This Row],[2027/28 From - Total]]","v":0},{"$f":"Dataset[[#This Row],[2024/25 Reduction]]","v":0},{"$f":"SUM(Dataset[[#This Row],[2025/26 Reduction]],Dataset[[#This Row],[2025/26 From - Total]],Dataset[[#This Row],[2025/26 To - Total]])","v":0},{"$f":"SUM(Dataset[[#This Row],[2026/27 Reduction]],Dataset[[#This Row],[2026/27 From - Total]],Dataset[[#This Row],[2026/27 To - Total]])","v":0},{"$f":"SUM(Dataset[[#This Row],[2027/28 Reduction]],Dataset[[#This Row],[2027/28 From - Total]],Dataset[[#This Row],[2027/28 To - Total]])","v":0},{"$f":"Dataset[[#This Row],[2024/25 Baseline]]+Dataset[[#This Row],[2024/25 Total change]]","v":0},{"$f":"Dataset[[#This Row],[2025/26 Baseline]]+Dataset[[#This Row],[2025/26 Total change]]","v":0},{"$f":"Dataset[[#This Row],[2026/27 Baseline]]+Dataset[[#This Row],[2026/27 Total change]]","v":0},{"$f":"Dataset[[#This Row],[2027/28 Baseline]]+Dataset[[#This Row],[2027/28 Total change]]","v":0}]
["NAT|Non-transfer item","40|Contractors","2025_26","MTEC2025",40,1,3,51395,123,"40","01","03","051395","000123","40|01|03|000123","01","01","02","16","16","01|01|02|16|16","National","Transport","Administration","Corporate Services","Non-transfer item","Current","Current payments","Goods and services","Contractors","Contractors","Economic development","Economic regulation and infrastructure","NAT",2424,2958,750,4373,3951,3951,582,4734,5107,5340,5581,null,null,null,null,null,null,null,null,null,null,null,null,null,null,null,null,null,null,null,null,null,null,null,null,null,null,null,null,null,null,null,null,null,null,{"$f":"Dataset[[#This Row],[2025/26 From - Spending review Topic 1]]+Dataset[[#This Row],[2025/26 From - Spending review Topic 2]]+Dataset[[#This Row],[2025/26 From - Spending review Topic 3]]+Dataset[[#This Row],[2025/26 From - Spending review Topic 4]]+Dataset[[#This Row],[2025/26 From - Other reallocations]]","v":0},{"$f":"Dataset[[#This Row],[2026/27 From - Spending review Topic 1]]+Dataset[[#This Row],[2026/27 From - Spending review Topic 2]]+Dataset[[#This Row],[2026/27 From - Spending review Topic 3]]+Dataset[[#This Row],[2026/27 From - Spending review Topic 4]]+Dataset[[#This Row],[2026/27 From - Other reallocations]]","v":0},{"$f":"Dataset[[#This Row],[2027/28 From - Spending review Topic 1]]+Dataset[[#This Row],[2027/28 From - Spending review Topic 2]]+Dataset[[#This Row],[2027/28 From - Spending review Topic 3]]+Dataset[[#This Row],[2027/28 From - Spending review Topic 4]]+Dataset[[#This Row],[2027/28 From - Other reallocations]]","v":0},{"$f":"Dataset[[#This Row],[2025/26 To - Spending review Topic 1]]+Dataset[[#This Row],[2025/26 To - Spending review Topic 2]]+Dataset[[#This Row],[2025/26 To - Spending review Topic 3]]+Dataset[[#This Row],[2025/26 To - Spending review Topic 4]]+Dataset[[#This Row],[2025/26 To - Other reallocations]]","v":0},{"$f":"Dataset[[#This Row],[2026/27 To - Spending review Topic 1]]+Dataset[[#This Row],[2026/27 To - Spending review Topic 2]]+Dataset[[#This Row],[2026/27 To - Spending review Topic 3]]+Dataset[[#This Row],[2026/27 To - Spending review Topic 4]]+Dataset[[#This Row],[2026/27 To - Other reallocations]]","v":0},{"$f":"Dataset[[#This Row],[2027/28 To - Spending review Topic 1]]+Dataset[[#This Row],[2027/28 To - Spending review Topic 2]]+Dataset[[#This Row],[2027/28 To - Spending review Topic 3]]+Dataset[[#This Row],[2027/28 To - Spending review Topic 4]]+Dataset[[#This Row],[2027/28 To - Other reallocations]]","v":0},{"$f":"Dataset[[#This Row],[2025/26 Reduction]]+Dataset[[#This Row],[2025/26 From - Total]]","v":0},{"$f":"Dataset[[#This Row],[2026/27 Reduction]]+Dataset[[#This Row],[2026/27 From - Total]]","v":0},{"$f":"Dataset[[#This Row],[2027/28 Reduction]]+Dataset[[#This Row],[2027/28 From - Total]]","v":0},{"$f":"Dataset[[#This Row],[2024/25 Reduction]]","v":0},{"$f":"SUM(Dataset[[#This Row],[2025/26 Reduction]],Dataset[[#This Row],[2025/26 From - Total]],Dataset[[#This Row],[2025/26 To - Total]])","v":0},{"$f":"SUM(Dataset[[#This Row],[2026/27 Reduction]],Dataset[[#This Row],[2026/27 From - Total]],Dataset[[#This Row],[2026/27 To - Total]])","v":0},{"$f":"SUM(Dataset[[#This Row],[2027/28 Reduction]],Dataset[[#This Row],[2027/28 From - Total]],Dataset[[#This Row],[2027/28 To - Total]])","v":0},{"$f":"Dataset[[#This Row],[2024/25 Baseline]]+Dataset[[#This Row],[2024/25 Total change]]","v":4734},{"$f":"Dataset[[#This Row],[2025/26 Baseline]]+Dataset[[#This Row],[2025/26 Total change]]","v":5107},{"$f":"Dataset[[#This Row],[2026/27 Baseline]]+Dataset[[#This Row],[2026/27 Total change]]","v":5340},{"$f":"Dataset[[#This Row],[2027/28 Baseline]]+Dataset[[#This Row],[2027/28 Total change]]","v":5581}]
["NAT|Non-transfer item","40|Agency and support/outsourced services","2025_26","MTEC2025",40,1,3,51396,124,"40","01","03","051396","000124","40|01|03|000124","01","01","02","17","17","01|01|02|17|17","National","Transport","Administration","Corporate Services","Non-transfer item","Current","Current payments","Goods and services","Agency and support/outsourced services","Agency and support/outsourced services","Economic development","Economic regulation and infrastructure","NAT",203,292,95,180,180,180,10,100,108,113,118,null,null,null,null,null,null,null,null,null,null,null,null,null,null,null,null,null,null,null,null,null,null,null,null,null,null,null,null,null,null,null,null,null,null,{"$f":"Dataset[[#This Row],[2025/26 From - Spending review Topic 1]]+Dataset[[#This Row],[2025/26 From - Spending review Topic 2]]+Dataset[[#This Row],[2025/26 From - Spending review Topic 3]]+Dataset[[#This Row],[2025/26 From - Spending review Topic 4]]+Dataset[[#This Row],[2025/26 From - Other reallocations]]","v":0},{"$f":"Dataset[[#This Row],[2026/27 From - Spending review Topic 1]]+Dataset[[#This Row],[2026/27 From - Spending review Topic 2]]+Dataset[[#This Row],[2026/27 From - Spending review Topic 3]]+Dataset[[#This Row],[2026/27 From - Spending review Topic 4]]+Dataset[[#This Row],[2026/27 From - Other reallocations]]","v":0},{"$f":"Dataset[[#This Row],[2027/28 From - Spending review Topic 1]]+Dataset[[#This Row],[2027/28 From - Spending review Topic 2]]+Dataset[[#This Row],[2027/28 From - Spending review Topic 3]]+Dataset[[#This Row],[2027/28 From - Spending review Topic 4]]+Dataset[[#This Row],[2027/28 From - Other reallocations]]","v":0},{"$f":"Dataset[[#This Row],[2025/26 To - Spending review Topic 1]]+Dataset[[#This Row],[2025/26 To - Spending review Topic 2]]+Dataset[[#This Row],[2025/26 To - Spending review Topic 3]]+Dataset[[#This Row],[2025/26 To - Spending review Topic 4]]+Dataset[[#This Row],[2025/26 To - Other reallocations]]","v":0},{"$f":"Dataset[[#This Row],[2026/27 To - Spending review Topic 1]]+Dataset[[#This Row],[2026/27 To - Spending review Topic 2]]+Dataset[[#This Row],[2026/27 To - Spending review Topic 3]]+Dataset[[#This Row],[2026/27 To - Spending review Topic 4]]+Dataset[[#This Row],[2026/27 To - Other reallocations]]","v":0},{"$f":"Dataset[[#This Row],[2027/28 To - Spending review Topic 1]]+Dataset[[#This Row],[2027/28 To - Spending review Topic 2]]+Dataset[[#This Row],[2027/28 To - Spending review Topic 3]]+Dataset[[#This Row],[2027/28 To - Spending review Topic 4]]+Dataset[[#This Row],[2027/28 To - Other reallocations]]","v":0},{"$f":"Dataset[[#This Row],[2025/26 Reduction]]+Dataset[[#This Row],[2025/26 From - Total]]","v":0},{"$f":"Dataset[[#This Row],[2026/27 Reduction]]+Dataset[[#This Row],[2026/27 From - Total]]","v":0},{"$f":"Dataset[[#This Row],[2027/28 Reduction]]+Dataset[[#This Row],[2027/28 From - Total]]","v":0},{"$f":"Dataset[[#This Row],[2024/25 Reduction]]","v":0},{"$f":"SUM(Dataset[[#This Row],[2025/26 Reduction]],Dataset[[#This Row],[2025/26 From - Total]],Dataset[[#This Row],[2025/26 To - Total]])","v":0},{"$f":"SUM(Dataset[[#This Row],[2026/27 Reduction]],Dataset[[#This Row],[2026/27 From - Total]],Dataset[[#This Row],[2026/27 To - Total]])","v":0},{"$f":"SUM(Dataset[[#This Row],[2027/28 Reduction]],Dataset[[#This Row],[2027/28 From - Total]],Dataset[[#This Row],[2027/28 To - Total]])","v":0},{"$f":"Dataset[[#This Row],[2024/25 Baseline]]+Dataset[[#This Row],[2024/25 Total change]]","v":100},{"$f":"Dataset[[#This Row],[2025/26 Baseline]]+Dataset[[#This Row],[2025/26 Total change]]","v":108},{"$f":"Dataset[[#This Row],[2026/27 Baseline]]+Dataset[[#This Row],[2026/27 Total change]]","v":113},{"$f":"Dataset[[#This Row],[2027/28 Baseline]]+Dataset[[#This Row],[2027/28 Total change]]","v":118}]
["NAT|Non-transfer item","40|Entertainment","2025_26","MTEC2025",40,1,3,51397,125,"40","01","03","051397","000125","40|01|03|000125","01","01","02","18","18","01|01|02|18|18","National","Transport","Administration","Corporate Services","Non-transfer item","Current","Current payments","Goods and services","Entertainment","Entertainment","Economic development","Economic regulation and infrastructure","NAT",90,158,256,860,460,460,301,899,970,1014,1060,null,null,null,null,null,null,null,null,null,null,null,null,null,null,null,null,null,null,null,null,null,null,null,null,null,null,null,null,null,null,null,null,null,null,{"$f":"Dataset[[#This Row],[2025/26 From - Spending review Topic 1]]+Dataset[[#This Row],[2025/26 From - Spending review Topic 2]]+Dataset[[#This Row],[2025/26 From - Spending review Topic 3]]+Dataset[[#This Row],[2025/26 From - Spending review Topic 4]]+Dataset[[#This Row],[2025/26 From - Other reallocations]]","v":0},{"$f":"Dataset[[#This Row],[2026/27 From - Spending review Topic 1]]+Dataset[[#This Row],[2026/27 From - Spending review Topic 2]]+Dataset[[#This Row],[2026/27 From - Spending review Topic 3]]+Dataset[[#This Row],[2026/27 From - Spending review Topic 4]]+Dataset[[#This Row],[2026/27 From - Other reallocations]]","v":0},{"$f":"Dataset[[#This Row],[2027/28 From - Spending review Topic 1]]+Dataset[[#This Row],[2027/28 From - Spending review Topic 2]]+Dataset[[#This Row],[2027/28 From - Spending review Topic 3]]+Dataset[[#This Row],[2027/28 From - Spending review Topic 4]]+Dataset[[#This Row],[2027/28 From - Other reallocations]]","v":0},{"$f":"Dataset[[#This Row],[2025/26 To - Spending review Topic 1]]+Dataset[[#This Row],[2025/26 To - Spending review Topic 2]]+Dataset[[#This Row],[2025/26 To - Spending review Topic 3]]+Dataset[[#This Row],[2025/26 To - Spending review Topic 4]]+Dataset[[#This Row],[2025/26 To - Other reallocations]]","v":0},{"$f":"Dataset[[#This Row],[2026/27 To - Spending review Topic 1]]+Dataset[[#This Row],[2026/27 To - Spending review Topic 2]]+Dataset[[#This Row],[2026/27 To - Spending review Topic 3]]+Dataset[[#This Row],[2026/27 To - Spending review Topic 4]]+Dataset[[#This Row],[2026/27 To - Other reallocations]]","v":0},{"$f":"Dataset[[#This Row],[2027/28 To - Spending review Topic 1]]+Dataset[[#This Row],[2027/28 To - Spending review Topic 2]]+Dataset[[#This Row],[2027/28 To - Spending review Topic 3]]+Dataset[[#This Row],[2027/28 To - Spending review Topic 4]]+Dataset[[#This Row],[2027/28 To - Other reallocations]]","v":0},{"$f":"Dataset[[#This Row],[2025/26 Reduction]]+Dataset[[#This Row],[2025/26 From - Total]]","v":0},{"$f":"Dataset[[#This Row],[2026/27 Reduction]]+Dataset[[#This Row],[2026/27 From - Total]]","v":0},{"$f":"Dataset[[#This Row],[2027/28 Reduction]]+Dataset[[#This Row],[2027/28 From - Total]]","v":0},{"$f":"Dataset[[#This Row],[2024/25 Reduction]]","v":0},{"$f":"SUM(Dataset[[#This Row],[2025/26 Reduction]],Dataset[[#This Row],[2025/26 From - Total]],Dataset[[#This Row],[2025/26 To - Total]])","v":0},{"$f":"SUM(Dataset[[#This Row],[2026/27 Reduction]],Dataset[[#This Row],[2026/27 From - Total]],Dataset[[#This Row],[2026/27 To - Total]])","v":0},{"$f":"SUM(Dataset[[#This Row],[2027/28 Reduction]],Dataset[[#This Row],[2027/28 From - Total]],Dataset[[#This Row],[2027/28 To - Total]])","v":0},{"$f":"Dataset[[#This Row],[2024/25 Baseline]]+Dataset[[#This Row],[2024/25 Total change]]","v":899},{"$f":"Dataset[[#This Row],[2025/26 Baseline]]+Dataset[[#This Row],[2025/26 Total change]]","v":970},{"$f":"Dataset[[#This Row],[2026/27 Baseline]]+Dataset[[#This Row],[2026/27 Total change]]","v":1014},{"$f":"Dataset[[#This Row],[2027/28 Baseline]]+Dataset[[#This Row],[2027/28 Total change]]","v":1060}]
["NAT|Non-transfer item","40|Fleet services (including government motor transport)","2025_26","MTEC2025",40,1,3,51398,126,"40","01","03","051398","000126","40|01|03|000126","01","01","02","19","19","01|01|02|19|19","National","Transport","Administration","Corporate Services","Non-transfer item","Current","Current payments","Goods and services","Fleet services (including government motor transport)","Fleet services (including government motor transport)","Economic development","Economic regulation and infrastructure","NAT",2,11,7,138,147,147,31,144,155,162,169,null,null,null,null,null,null,null,null,null,null,null,null,null,null,null,null,null,null,null,null,null,null,null,null,null,null,null,null,null,null,null,null,null,null,{"$f":"Dataset[[#This Row],[2025/26 From - Spending review Topic 1]]+Dataset[[#This Row],[2025/26 From - Spending review Topic 2]]+Dataset[[#This Row],[2025/26 From - Spending review Topic 3]]+Dataset[[#This Row],[2025/26 From - Spending review Topic 4]]+Dataset[[#This Row],[2025/26 From - Other reallocations]]","v":0},{"$f":"Dataset[[#This Row],[2026/27 From - Spending review Topic 1]]+Dataset[[#This Row],[2026/27 From - Spending review Topic 2]]+Dataset[[#This Row],[2026/27 From - Spending review Topic 3]]+Dataset[[#This Row],[2026/27 From - Spending review Topic 4]]+Dataset[[#This Row],[2026/27 From - Other reallocations]]","v":0},{"$f":"Dataset[[#This Row],[2027/28 From - Spending review Topic 1]]+Dataset[[#This Row],[2027/28 From - Spending review Topic 2]]+Dataset[[#This Row],[2027/28 From - Spending review Topic 3]]+Dataset[[#This Row],[2027/28 From - Spending review Topic 4]]+Dataset[[#This Row],[2027/28 From - Other reallocations]]","v":0},{"$f":"Dataset[[#This Row],[2025/26 To - Spending review Topic 1]]+Dataset[[#This Row],[2025/26 To - Spending review Topic 2]]+Dataset[[#This Row],[2025/26 To - Spending review Topic 3]]+Dataset[[#This Row],[2025/26 To - Spending review Topic 4]]+Dataset[[#This Row],[2025/26 To - Other reallocations]]","v":0},{"$f":"Dataset[[#This Row],[2026/27 To - Spending review Topic 1]]+Dataset[[#This Row],[2026/27 To - Spending review Topic 2]]+Dataset[[#This Row],[2026/27 To - Spending review Topic 3]]+Dataset[[#This Row],[2026/27 To - Spending review Topic 4]]+Dataset[[#This Row],[2026/27 To - Other reallocations]]","v":0},{"$f":"Dataset[[#This Row],[2027/28 To - Spending review Topic 1]]+Dataset[[#This Row],[2027/28 To - Spending review Topic 2]]+Dataset[[#This Row],[2027/28 To - Spending review Topic 3]]+Dataset[[#This Row],[2027/28 To - Spending review Topic 4]]+Dataset[[#This Row],[2027/28 To - Other reallocations]]","v":0},{"$f":"Dataset[[#This Row],[2025/26 Reduction]]+Dataset[[#This Row],[2025/26 From - Total]]","v":0},{"$f":"Dataset[[#This Row],[2026/27 Reduction]]+Dataset[[#This Row],[2026/27 From - Total]]","v":0},{"$f":"Dataset[[#This Row],[2027/28 Reduction]]+Dataset[[#This Row],[2027/28 From - Total]]","v":0},{"$f":"Dataset[[#This Row],[2024/25 Reduction]]","v":0},{"$f":"SUM(Dataset[[#This Row],[2025/26 Reduction]],Dataset[[#This Row],[2025/26 From - Total]],Dataset[[#This Row],[2025/26 To - Total]])","v":0},{"$f":"SUM(Dataset[[#This Row],[2026/27 Reduction]],Dataset[[#This Row],[2026/27 From - Total]],Dataset[[#This Row],[2026/27 To - Total]])","v":0},{"$f":"SUM(Dataset[[#This Row],[2027/28 Reduction]],Dataset[[#This Row],[2027/28 From - Total]],Dataset[[#This Row],[2027/28 To - Total]])","v":0},{"$f":"Dataset[[#This Row],[2024/25 Baseline]]+Dataset[[#This Row],[2024/25 Total change]]","v":144},{"$f":"Dataset[[#This Row],[2025/26 Baseline]]+Dataset[[#This Row],[2025/26 Total change]]","v":155},{"$f":"Dataset[[#This Row],[2026/27 Baseline]]+Dataset[[#This Row],[2026/27 Total change]]","v":162},{"$f":"Dataset[[#This Row],[2027/28 Baseline]]+Dataset[[#This Row],[2027/28 Total change]]","v":169}]
["NAT|Non-transfer item","40|Housing","2025_26","MTEC2025",40,1,3,51399,127,"40","01","03","051399","000127","40|01|03|000127","01","01","02","20","20","01|01|02|20|20","National","Transport","Administration","Corporate Services","Non-transfer item","Current","Current payments","Goods and services","Housing","Housing","Economic development","Economic regulation and infrastructure","NAT",0,0,0,0,0,0,null,0,0,0,0,null,null,null,null,null,null,null,null,null,null,null,null,null,null,null,null,null,null,null,null,null,null,null,null,null,null,null,null,null,null,null,null,null,null,{"$f":"Dataset[[#This Row],[2025/26 From - Spending review Topic 1]]+Dataset[[#This Row],[2025/26 From - Spending review Topic 2]]+Dataset[[#This Row],[2025/26 From - Spending review Topic 3]]+Dataset[[#This Row],[2025/26 From - Spending review Topic 4]]+Dataset[[#This Row],[2025/26 From - Other reallocations]]","v":0},{"$f":"Dataset[[#This Row],[2026/27 From - Spending review Topic 1]]+Dataset[[#This Row],[2026/27 From - Spending review Topic 2]]+Dataset[[#This Row],[2026/27 From - Spending review Topic 3]]+Dataset[[#This Row],[2026/27 From - Spending review Topic 4]]+Dataset[[#This Row],[2026/27 From - Other reallocations]]","v":0},{"$f":"Dataset[[#This Row],[2027/28 From - Spending review Topic 1]]+Dataset[[#This Row],[2027/28 From - Spending review Topic 2]]+Dataset[[#This Row],[2027/28 From - Spending review Topic 3]]+Dataset[[#This Row],[2027/28 From - Spending review Topic 4]]+Dataset[[#This Row],[2027/28 From - Other reallocations]]","v":0},{"$f":"Dataset[[#This Row],[2025/26 To - Spending review Topic 1]]+Dataset[[#This Row],[2025/26 To - Spending review Topic 2]]+Dataset[[#This Row],[2025/26 To - Spending review Topic 3]]+Dataset[[#This Row],[2025/26 To - Spending review Topic 4]]+Dataset[[#This Row],[2025/26 To - Other reallocations]]","v":0},{"$f":"Dataset[[#This Row],[2026/27 To - Spending review Topic 1]]+Dataset[[#This Row],[2026/27 To - Spending review Topic 2]]+Dataset[[#This Row],[2026/27 To - Spending review Topic 3]]+Dataset[[#This Row],[2026/27 To - Spending review Topic 4]]+Dataset[[#This Row],[2026/27 To - Other reallocations]]","v":0},{"$f":"Dataset[[#This Row],[2027/28 To - Spending review Topic 1]]+Dataset[[#This Row],[2027/28 To - Spending review Topic 2]]+Dataset[[#This Row],[2027/28 To - Spending review Topic 3]]+Dataset[[#This Row],[2027/28 To - Spending review Topic 4]]+Dataset[[#This Row],[2027/28 To - Other reallocations]]","v":0},{"$f":"Dataset[[#This Row],[2025/26 Reduction]]+Dataset[[#This Row],[2025/26 From - Total]]","v":0},{"$f":"Dataset[[#This Row],[2026/27 Reduction]]+Dataset[[#This Row],[2026/27 From - Total]]","v":0},{"$f":"Dataset[[#This Row],[2027/28 Reduction]]+Dataset[[#This Row],[2027/28 From - Total]]","v":0},{"$f":"Dataset[[#This Row],[2024/25 Reduction]]","v":0},{"$f":"SUM(Dataset[[#This Row],[2025/26 Reduction]],Dataset[[#This Row],[2025/26 From - Total]],Dataset[[#This Row],[2025/26 To - Total]])","v":0},{"$f":"SUM(Dataset[[#This Row],[2026/27 Reduction]],Dataset[[#This Row],[2026/27 From - Total]],Dataset[[#This Row],[2026/27 To - Total]])","v":0},{"$f":"SUM(Dataset[[#This Row],[2027/28 Reduction]],Dataset[[#This Row],[2027/28 From - Total]],Dataset[[#This Row],[2027/28 To - Total]])","v":0},{"$f":"Dataset[[#This Row],[2024/25 Baseline]]+Dataset[[#This Row],[2024/25 Total change]]","v":0},{"$f":"Dataset[[#This Row],[2025/26 Baseline]]+Dataset[[#This Row],[2025/26 Total change]]","v":0},{"$f":"Dataset[[#This Row],[2026/27 Baseline]]+Dataset[[#This Row],[2026/27 Total change]]","v":0},{"$f":"Dataset[[#This Row],[2027/28 Baseline]]+Dataset[[#This Row],[2027/28 Total change]]","v":0}]
["NAT|Non-transfer item","40|Inventory: Clothing material and accessories","2025_26","MTEC2025",40,1,3,51400,128,"40","01","03","051400","000128","40|01|03|000128","01","01","02","21","21","01|01|02|21|21","National","Transport","Administration","Corporate Services","Non-transfer item","Current","Current payments","Goods and services","Inventory: Clothing material and accessories","Inventory: Clothing material and accessories","Economic development","Economic regulation and infrastructure","NAT",277,0,25,0,0,0,411,0,0,0,0,null,null,null,null,null,null,null,null,null,null,null,null,null,null,null,null,null,null,null,null,null,null,null,null,null,null,null,null,null,null,null,null,null,null,{"$f":"Dataset[[#This Row],[2025/26 From - Spending review Topic 1]]+Dataset[[#This Row],[2025/26 From - Spending review Topic 2]]+Dataset[[#This Row],[2025/26 From - Spending review Topic 3]]+Dataset[[#This Row],[2025/26 From - Spending review Topic 4]]+Dataset[[#This Row],[2025/26 From - Other reallocations]]","v":0},{"$f":"Dataset[[#This Row],[2026/27 From - Spending review Topic 1]]+Dataset[[#This Row],[2026/27 From - Spending review Topic 2]]+Dataset[[#This Row],[2026/27 From - Spending review Topic 3]]+Dataset[[#This Row],[2026/27 From - Spending review Topic 4]]+Dataset[[#This Row],[2026/27 From - Other reallocations]]","v":0},{"$f":"Dataset[[#This Row],[2027/28 From - Spending review Topic 1]]+Dataset[[#This Row],[2027/28 From - Spending review Topic 2]]+Dataset[[#This Row],[2027/28 From - Spending review Topic 3]]+Dataset[[#This Row],[2027/28 From - Spending review Topic 4]]+Dataset[[#This Row],[2027/28 From - Other reallocations]]","v":0},{"$f":"Dataset[[#This Row],[2025/26 To - Spending review Topic 1]]+Dataset[[#This Row],[2025/26 To - Spending review Topic 2]]+Dataset[[#This Row],[2025/26 To - Spending review Topic 3]]+Dataset[[#This Row],[2025/26 To - Spending review Topic 4]]+Dataset[[#This Row],[2025/26 To - Other reallocations]]","v":0},{"$f":"Dataset[[#This Row],[2026/27 To - Spending review Topic 1]]+Dataset[[#This Row],[2026/27 To - Spending review Topic 2]]+Dataset[[#This Row],[2026/27 To - Spending review Topic 3]]+Dataset[[#This Row],[2026/27 To - Spending review Topic 4]]+Dataset[[#This Row],[2026/27 To - Other reallocations]]","v":0},{"$f":"Dataset[[#This Row],[2027/28 To - Spending review Topic 1]]+Dataset[[#This Row],[2027/28 To - Spending review Topic 2]]+Dataset[[#This Row],[2027/28 To - Spending review Topic 3]]+Dataset[[#This Row],[2027/28 To - Spending review Topic 4]]+Dataset[[#This Row],[2027/28 To - Other reallocations]]","v":0},{"$f":"Dataset[[#This Row],[2025/26 Reduction]]+Dataset[[#This Row],[2025/26 From - Total]]","v":0},{"$f":"Dataset[[#This Row],[2026/27 Reduction]]+Dataset[[#This Row],[2026/27 From - Total]]","v":0},{"$f":"Dataset[[#This Row],[2027/28 Reduction]]+Dataset[[#This Row],[2027/28 From - Total]]","v":0},{"$f":"Dataset[[#This Row],[2024/25 Reduction]]","v":0},{"$f":"SUM(Dataset[[#This Row],[2025/26 Reduction]],Dataset[[#This Row],[2025/26 From - Total]],Dataset[[#This Row],[2025/26 To - Total]])","v":0},{"$f":"SUM(Dataset[[#This Row],[2026/27 Reduction]],Dataset[[#This Row],[2026/27 From - Total]],Dataset[[#This Row],[2026/27 To - Total]])","v":0},{"$f":"SUM(Dataset[[#This Row],[2027/28 Reduction]],Dataset[[#This Row],[2027/28 From - Total]],Dataset[[#This Row],[2027/28 To - Total]])","v":0},{"$f":"Dataset[[#This Row],[2024/25 Baseline]]+Dataset[[#This Row],[2024/25 Total change]]","v":0},{"$f":"Dataset[[#This Row],[2025/26 Baseline]]+Dataset[[#This Row],[2025/26 Total change]]","v":0},{"$f":"Dataset[[#This Row],[2026/27 Baseline]]+Dataset[[#This Row],[2026/27 Total change]]","v":0},{"$f":"Dataset[[#This Row],[2027/28 Baseline]]+Dataset[[#This Row],[2027/28 Total change]]","v":0}]
["NAT|Non-transfer item","40|Inventory: Farming supplies","2025_26","MTEC2025",40,1,3,51401,129,"40","01","03","051401","000129","40|01|03|000129","01","01","02","22","22","01|01|02|22|22","National","Transport","Administration","Corporate Services","Non-transfer item","Current","Current payments","Goods and services","Inventory: Farming supplies","Inventory: Farming supplies","Economic development","Economic regulation and infrastructure","NAT",0,0,0,0,0,0,null,0,0,0,0,null,null,null,null,null,null,null,null,null,null,null,null,null,null,null,null,null,null,null,null,null,null,null,null,null,null,null,null,null,null,null,null,null,null,{"$f":"Dataset[[#This Row],[2025/26 From - Spending review Topic 1]]+Dataset[[#This Row],[2025/26 From - Spending review Topic 2]]+Dataset[[#This Row],[2025/26 From - Spending review Topic 3]]+Dataset[[#This Row],[2025/26 From - Spending review Topic 4]]+Dataset[[#This Row],[2025/26 From - Other reallocations]]","v":0},{"$f":"Dataset[[#This Row],[2026/27 From - Spending review Topic 1]]+Dataset[[#This Row],[2026/27 From - Spending review Topic 2]]+Dataset[[#This Row],[2026/27 From - Spending review Topic 3]]+Dataset[[#This Row],[2026/27 From - Spending review Topic 4]]+Dataset[[#This Row],[2026/27 From - Other reallocations]]","v":0},{"$f":"Dataset[[#This Row],[2027/28 From - Spending review Topic 1]]+Dataset[[#This Row],[2027/28 From - Spending review Topic 2]]+Dataset[[#This Row],[2027/28 From - Spending review Topic 3]]+Dataset[[#This Row],[2027/28 From - Spending review Topic 4]]+Dataset[[#This Row],[2027/28 From - Other reallocations]]","v":0},{"$f":"Dataset[[#This Row],[2025/26 To - Spending review Topic 1]]+Dataset[[#This Row],[2025/26 To - Spending review Topic 2]]+Dataset[[#This Row],[2025/26 To - Spending review Topic 3]]+Dataset[[#This Row],[2025/26 To - Spending review Topic 4]]+Dataset[[#This Row],[2025/26 To - Other reallocations]]","v":0},{"$f":"Dataset[[#This Row],[2026/27 To - Spending review Topic 1]]+Dataset[[#This Row],[2026/27 To - Spending review Topic 2]]+Dataset[[#This Row],[2026/27 To - Spending review Topic 3]]+Dataset[[#This Row],[2026/27 To - Spending review Topic 4]]+Dataset[[#This Row],[2026/27 To - Other reallocations]]","v":0},{"$f":"Dataset[[#This Row],[2027/28 To - Spending review Topic 1]]+Dataset[[#This Row],[2027/28 To - Spending review Topic 2]]+Dataset[[#This Row],[2027/28 To - Spending review Topic 3]]+Dataset[[#This Row],[2027/28 To - Spending review Topic 4]]+Dataset[[#This Row],[2027/28 To - Other reallocations]]","v":0},{"$f":"Dataset[[#This Row],[2025/26 Reduction]]+Dataset[[#This Row],[2025/26 From - Total]]","v":0},{"$f":"Dataset[[#This Row],[2026/27 Reduction]]+Dataset[[#This Row],[2026/27 From - Total]]","v":0},{"$f":"Dataset[[#This Row],[2027/28 Reduction]]+Dataset[[#This Row],[2027/28 From - Total]]","v":0},{"$f":"Dataset[[#This Row],[2024/25 Reduction]]","v":0},{"$f":"SUM(Dataset[[#This Row],[2025/26 Reduction]],Dataset[[#This Row],[2025/26 From - Total]],Dataset[[#This Row],[2025/26 To - Total]])","v":0},{"$f":"SUM(Dataset[[#This Row],[2026/27 Reduction]],Dataset[[#This Row],[2026/27 From - Total]],Dataset[[#This Row],[2026/27 To - Total]])","v":0},{"$f":"SUM(Dataset[[#This Row],[2027/28 Reduction]],Dataset[[#This Row],[2027/28 From - Total]],Dataset[[#This Row],[2027/28 To - Total]])","v":0},{"$f":"Dataset[[#This Row],[2024/25 Baseline]]+Dataset[[#This Row],[2024/25 Total change]]","v":0},{"$f":"Dataset[[#This Row],[2025/26 Baseline]]+Dataset[[#This Row],[2025/26 Total change]]","v":0},{"$f":"Dataset[[#This Row],[2026/27 Baseline]]+Dataset[[#This Row],[2026/27 Total change]]","v":0},{"$f":"Dataset[[#This Row],[2027/28 Baseline]]+Dataset[[#This Row],[2027/28 Total change]]","v":0}]
["NAT|Non-transfer item","40|Inventory: Food and food supplies","2025_26","MTEC2025",40,1,3,51402,130,"40","01","03","051402","000130","40|01|03|000130","01","01","02","23","23","01|01|02|23|23","National","Transport","Administration","Corporate Services","Non-transfer item","Current","Current payments","Goods and services","Inventory: Food and food supplies","Inventory: Food and food supplies","Economic development","Economic regulation and infrastructure","NAT",0,0,0,0,0,0,null,0,0,0,0,null,null,null,null,null,null,null,null,null,null,null,null,null,null,null,null,null,null,null,null,null,null,null,null,null,null,null,null,null,null,null,null,null,null,{"$f":"Dataset[[#This Row],[2025/26 From - Spending review Topic 1]]+Dataset[[#This Row],[2025/26 From - Spending review Topic 2]]+Dataset[[#This Row],[2025/26 From - Spending review Topic 3]]+Dataset[[#This Row],[2025/26 From - Spending review Topic 4]]+Dataset[[#This Row],[2025/26 From - Other reallocations]]","v":0},{"$f":"Dataset[[#This Row],[2026/27 From - Spending review Topic 1]]+Dataset[[#This Row],[2026/27 From - Spending review Topic 2]]+Dataset[[#This Row],[2026/27 From - Spending review Topic 3]]+Dataset[[#This Row],[2026/27 From - Spending review Topic 4]]+Dataset[[#This Row],[2026/27 From - Other reallocations]]","v":0},{"$f":"Dataset[[#This Row],[2027/28 From - Spending review Topic 1]]+Dataset[[#This Row],[2027/28 From - Spending review Topic 2]]+Dataset[[#This Row],[2027/28 From - Spending review Topic 3]]+Dataset[[#This Row],[2027/28 From - Spending review Topic 4]]+Dataset[[#This Row],[2027/28 From - Other reallocations]]","v":0},{"$f":"Dataset[[#This Row],[2025/26 To - Spending review Topic 1]]+Dataset[[#This Row],[2025/26 To - Spending review Topic 2]]+Dataset[[#This Row],[2025/26 To - Spending review Topic 3]]+Dataset[[#This Row],[2025/26 To - Spending review Topic 4]]+Dataset[[#This Row],[2025/26 To - Other reallocations]]","v":0},{"$f":"Dataset[[#This Row],[2026/27 To - Spending review Topic 1]]+Dataset[[#This Row],[2026/27 To - Spending review Topic 2]]+Dataset[[#This Row],[2026/27 To - Spending review Topic 3]]+Dataset[[#This Row],[2026/27 To - Spending review Topic 4]]+Dataset[[#This Row],[2026/27 To - Other reallocations]]","v":0},{"$f":"Dataset[[#This Row],[2027/28 To - Spending review Topic 1]]+Dataset[[#This Row],[2027/28 To - Spending review Topic 2]]+Dataset[[#This Row],[2027/28 To - Spending review Topic 3]]+Dataset[[#This Row],[2027/28 To - Spending review Topic 4]]+Dataset[[#This Row],[2027/28 To - Other reallocations]]","v":0},{"$f":"Dataset[[#This Row],[2025/26 Reduction]]+Dataset[[#This Row],[2025/26 From - Total]]","v":0},{"$f":"Dataset[[#This Row],[2026/27 Reduction]]+Dataset[[#This Row],[2026/27 From - Total]]","v":0},{"$f":"Dataset[[#This Row],[2027/28 Reduction]]+Dataset[[#This Row],[2027/28 From - Total]]","v":0},{"$f":"Dataset[[#This Row],[2024/25 Reduction]]","v":0},{"$f":"SUM(Dataset[[#This Row],[2025/26 Reduction]],Dataset[[#This Row],[2025/26 From - Total]],Dataset[[#This Row],[2025/26 To - Total]])","v":0},{"$f":"SUM(Dataset[[#This Row],[2026/27 Reduction]],Dataset[[#This Row],[2026/27 From - Total]],Dataset[[#This Row],[2026/27 To - Total]])","v":0},{"$f":"SUM(Dataset[[#This Row],[2027/28 Reduction]],Dataset[[#This Row],[2027/28 From - Total]],Dataset[[#This Row],[2027/28 To - Total]])","v":0},{"$f":"Dataset[[#This Row],[2024/25 Baseline]]+Dataset[[#This Row],[2024/25 Total change]]","v":0},{"$f":"Dataset[[#This Row],[2025/26 Baseline]]+Dataset[[#This Row],[2025/26 Total change]]","v":0},{"$f":"Dataset[[#This Row],[2026/27 Baseline]]+Dataset[[#This Row],[2026/27 Total change]]","v":0},{"$f":"Dataset[[#This Row],[2027/28 Baseline]]+Dataset[[#This Row],[2027/28 Total change]]","v":0}]
["NAT|Non-transfer item","40|Inventory: Fuel, oil and gas","2025_26","MTEC2025",40,1,3,51403,131,"40","01","03","051403","000131","40|01|03|000131","01","01","02","24","24","01|01|02|24|24","National","Transport","Administration","Corporate Services","Non-transfer item","Current","Current payments","Goods and services","Inventory: Fuel, oil and gas","Inventory: Fuel, oil and gas","Economic development","Economic regulation and infrastructure","NAT",0,0,0,0,0,0,null,0,0,0,0,null,null,null,null,null,null,null,null,null,null,null,null,null,null,null,null,null,null,null,null,null,null,null,null,null,null,null,null,null,null,null,null,null,null,{"$f":"Dataset[[#This Row],[2025/26 From - Spending review Topic 1]]+Dataset[[#This Row],[2025/26 From - Spending review Topic 2]]+Dataset[[#This Row],[2025/26 From - Spending review Topic 3]]+Dataset[[#This Row],[2025/26 From - Spending review Topic 4]]+Dataset[[#This Row],[2025/26 From - Other reallocations]]","v":0},{"$f":"Dataset[[#This Row],[2026/27 From - Spending review Topic 1]]+Dataset[[#This Row],[2026/27 From - Spending review Topic 2]]+Dataset[[#This Row],[2026/27 From - Spending review Topic 3]]+Dataset[[#This Row],[2026/27 From - Spending review Topic 4]]+Dataset[[#This Row],[2026/27 From - Other reallocations]]","v":0},{"$f":"Dataset[[#This Row],[2027/28 From - Spending review Topic 1]]+Dataset[[#This Row],[2027/28 From - Spending review Topic 2]]+Dataset[[#This Row],[2027/28 From - Spending review Topic 3]]+Dataset[[#This Row],[2027/28 From - Spending review Topic 4]]+Dataset[[#This Row],[2027/28 From - Other reallocations]]","v":0},{"$f":"Dataset[[#This Row],[2025/26 To - Spending review Topic 1]]+Dataset[[#This Row],[2025/26 To - Spending review Topic 2]]+Dataset[[#This Row],[2025/26 To - Spending review Topic 3]]+Dataset[[#This Row],[2025/26 To - Spending review Topic 4]]+Dataset[[#This Row],[2025/26 To - Other reallocations]]","v":0},{"$f":"Dataset[[#This Row],[2026/27 To - Spending review Topic 1]]+Dataset[[#This Row],[2026/27 To - Spending review Topic 2]]+Dataset[[#This Row],[2026/27 To - Spending review Topic 3]]+Dataset[[#This Row],[2026/27 To - Spending review Topic 4]]+Dataset[[#This Row],[2026/27 To - Other reallocations]]","v":0},{"$f":"Dataset[[#This Row],[2027/28 To - Spending review Topic 1]]+Dataset[[#This Row],[2027/28 To - Spending review Topic 2]]+Dataset[[#This Row],[2027/28 To - Spending review Topic 3]]+Dataset[[#This Row],[2027/28 To - Spending review Topic 4]]+Dataset[[#This Row],[2027/28 To - Other reallocations]]","v":0},{"$f":"Dataset[[#This Row],[2025/26 Reduction]]+Dataset[[#This Row],[2025/26 From - Total]]","v":0},{"$f":"Dataset[[#This Row],[2026/27 Reduction]]+Dataset[[#This Row],[2026/27 From - Total]]","v":0},{"$f":"Dataset[[#This Row],[2027/28 Reduction]]+Dataset[[#This Row],[2027/28 From - Total]]","v":0},{"$f":"Dataset[[#This Row],[2024/25 Reduction]]","v":0},{"$f":"SUM(Dataset[[#This Row],[2025/26 Reduction]],Dataset[[#This Row],[2025/26 From - Total]],Dataset[[#This Row],[2025/26 To - Total]])","v":0},{"$f":"SUM(Dataset[[#This Row],[2026/27 Reduction]],Dataset[[#This Row],[2026/27 From - Total]],Dataset[[#This Row],[2026/27 To - Total]])","v":0},{"$f":"SUM(Dataset[[#This Row],[2027/28 Reduction]],Dataset[[#This Row],[2027/28 From - Total]],Dataset[[#This Row],[2027/28 To - Total]])","v":0},{"$f":"Dataset[[#This Row],[2024/25 Baseline]]+Dataset[[#This Row],[2024/25 Total change]]","v":0},{"$f":"Dataset[[#This Row],[2025/26 Baseline]]+Dataset[[#This Row],[2025/26 Total change]]","v":0},{"$f":"Dataset[[#This Row],[2026/27 Baseline]]+Dataset[[#This Row],[2026/27 Total change]]","v":0},{"$f":"Dataset[[#This Row],[2027/28 Baseline]]+Dataset[[#This Row],[2027/28 Total change]]","v":0}]
["NAT|Non-transfer item","40|Inventory: Learner and teacher support material","2025_26","MTEC2025",40,1,3,51404,132,"40","01","03","051404","000132","40|01|03|000132","01","01","02","25","25","01|01|02|25|25","National","Transport","Administration","Corporate Services","Non-transfer item","Current","Current payments","Goods and services","Inventory: Learner and teacher support material","Inventory: Learner and teacher support material","Economic development","Economic regulation and infrastructure","NAT",0,0,0,0,0,0,null,0,0,0,0,null,null,null,null,null,null,null,null,null,null,null,null,null,null,null,null,null,null,null,null,null,null,null,null,null,null,null,null,null,null,null,null,null,null,{"$f":"Dataset[[#This Row],[2025/26 From - Spending review Topic 1]]+Dataset[[#This Row],[2025/26 From - Spending review Topic 2]]+Dataset[[#This Row],[2025/26 From - Spending review Topic 3]]+Dataset[[#This Row],[2025/26 From - Spending review Topic 4]]+Dataset[[#This Row],[2025/26 From - Other reallocations]]","v":0},{"$f":"Dataset[[#This Row],[2026/27 From - Spending review Topic 1]]+Dataset[[#This Row],[2026/27 From - Spending review Topic 2]]+Dataset[[#This Row],[2026/27 From - Spending review Topic 3]]+Dataset[[#This Row],[2026/27 From - Spending review Topic 4]]+Dataset[[#This Row],[2026/27 From - Other reallocations]]","v":0},{"$f":"Dataset[[#This Row],[2027/28 From - Spending review Topic 1]]+Dataset[[#This Row],[2027/28 From - Spending review Topic 2]]+Dataset[[#This Row],[2027/28 From - Spending review Topic 3]]+Dataset[[#This Row],[2027/28 From - Spending review Topic 4]]+Dataset[[#This Row],[2027/28 From - Other reallocations]]","v":0},{"$f":"Dataset[[#This Row],[2025/26 To - Spending review Topic 1]]+Dataset[[#This Row],[2025/26 To - Spending review Topic 2]]+Dataset[[#This Row],[2025/26 To - Spending review Topic 3]]+Dataset[[#This Row],[2025/26 To - Spending review Topic 4]]+Dataset[[#This Row],[2025/26 To - Other reallocations]]","v":0},{"$f":"Dataset[[#This Row],[2026/27 To - Spending review Topic 1]]+Dataset[[#This Row],[2026/27 To - Spending review Topic 2]]+Dataset[[#This Row],[2026/27 To - Spending review Topic 3]]+Dataset[[#This Row],[2026/27 To - Spending review Topic 4]]+Dataset[[#This Row],[2026/27 To - Other reallocations]]","v":0},{"$f":"Dataset[[#This Row],[2027/28 To - Spending review Topic 1]]+Dataset[[#This Row],[2027/28 To - Spending review Topic 2]]+Dataset[[#This Row],[2027/28 To - Spending review Topic 3]]+Dataset[[#This Row],[2027/28 To - Spending review Topic 4]]+Dataset[[#This Row],[2027/28 To - Other reallocations]]","v":0},{"$f":"Dataset[[#This Row],[2025/26 Reduction]]+Dataset[[#This Row],[2025/26 From - Total]]","v":0},{"$f":"Dataset[[#This Row],[2026/27 Reduction]]+Dataset[[#This Row],[2026/27 From - Total]]","v":0},{"$f":"Dataset[[#This Row],[2027/28 Reduction]]+Dataset[[#This Row],[2027/28 From - Total]]","v":0},{"$f":"Dataset[[#This Row],[2024/25 Reduction]]","v":0},{"$f":"SUM(Dataset[[#This Row],[2025/26 Reduction]],Dataset[[#This Row],[2025/26 From - Total]],Dataset[[#This Row],[2025/26 To - Total]])","v":0},{"$f":"SUM(Dataset[[#This Row],[2026/27 Reduction]],Dataset[[#This Row],[2026/27 From - Total]],Dataset[[#This Row],[2026/27 To - Total]])","v":0},{"$f":"SUM(Dataset[[#This Row],[2027/28 Reduction]],Dataset[[#This Row],[2027/28 From - Total]],Dataset[[#This Row],[2027/28 To - Total]])","v":0},{"$f":"Dataset[[#This Row],[2024/25 Baseline]]+Dataset[[#This Row],[2024/25 Total change]]","v":0},{"$f":"Dataset[[#This Row],[2025/26 Baseline]]+Dataset[[#This Row],[2025/26 Total change]]","v":0},{"$f":"Dataset[[#This Row],[2026/27 Baseline]]+Dataset[[#This Row],[2026/27 Total change]]","v":0},{"$f":"Dataset[[#This Row],[2027/28 Baseline]]+Dataset[[#This Row],[2027/28 Total change]]","v":0}]
["NAT|Non-transfer item","40|Inventory: Materials and supplies","2025_26","MTEC2025",40,1,3,51405,133,"40","01","03","051405","000133","40|01|03|000133","01","01","02","26","26","01|01|02|26|26","National","Transport","Administration","Corporate Services","Non-transfer item","Current","Current payments","Goods and services","Inventory: Materials and supplies","Inventory: Materials and supplies","Economic development","Economic regulation and infrastructure","NAT",0,0,0,0,0,0,null,0,0,0,0,null,null,null,null,null,null,null,null,null,null,null,null,null,null,null,null,null,null,null,null,null,null,null,null,null,null,null,null,null,null,null,null,null,null,{"$f":"Dataset[[#This Row],[2025/26 From - Spending review Topic 1]]+Dataset[[#This Row],[2025/26 From - Spending review Topic 2]]+Dataset[[#This Row],[2025/26 From - Spending review Topic 3]]+Dataset[[#This Row],[2025/26 From - Spending review Topic 4]]+Dataset[[#This Row],[2025/26 From - Other reallocations]]","v":0},{"$f":"Dataset[[#This Row],[2026/27 From - Spending review Topic 1]]+Dataset[[#This Row],[2026/27 From - Spending review Topic 2]]+Dataset[[#This Row],[2026/27 From - Spending review Topic 3]]+Dataset[[#This Row],[2026/27 From - Spending review Topic 4]]+Dataset[[#This Row],[2026/27 From - Other reallocations]]","v":0},{"$f":"Dataset[[#This Row],[2027/28 From - Spending review Topic 1]]+Dataset[[#This Row],[2027/28 From - Spending review Topic 2]]+Dataset[[#This Row],[2027/28 From - Spending review Topic 3]]+Dataset[[#This Row],[2027/28 From - Spending review Topic 4]]+Dataset[[#This Row],[2027/28 From - Other reallocations]]","v":0},{"$f":"Dataset[[#This Row],[2025/26 To - Spending review Topic 1]]+Dataset[[#This Row],[2025/26 To - Spending review Topic 2]]+Dataset[[#This Row],[2025/26 To - Spending review Topic 3]]+Dataset[[#This Row],[2025/26 To - Spending review Topic 4]]+Dataset[[#This Row],[2025/26 To - Other reallocations]]","v":0},{"$f":"Dataset[[#This Row],[2026/27 To - Spending review Topic 1]]+Dataset[[#This Row],[2026/27 To - Spending review Topic 2]]+Dataset[[#This Row],[2026/27 To - Spending review Topic 3]]+Dataset[[#This Row],[2026/27 To - Spending review Topic 4]]+Dataset[[#This Row],[2026/27 To - Other reallocations]]","v":0},{"$f":"Dataset[[#This Row],[2027/28 To - Spending review Topic 1]]+Dataset[[#This Row],[2027/28 To - Spending review Topic 2]]+Dataset[[#This Row],[2027/28 To - Spending review Topic 3]]+Dataset[[#This Row],[2027/28 To - Spending review Topic 4]]+Dataset[[#This Row],[2027/28 To - Other reallocations]]","v":0},{"$f":"Dataset[[#This Row],[2025/26 Reduction]]+Dataset[[#This Row],[2025/26 From - Total]]","v":0},{"$f":"Dataset[[#This Row],[2026/27 Reduction]]+Dataset[[#This Row],[2026/27 From - Total]]","v":0},{"$f":"Dataset[[#This Row],[2027/28 Reduction]]+Dataset[[#This Row],[2027/28 From - Total]]","v":0},{"$f":"Dataset[[#This Row],[2024/25 Reduction]]","v":0},{"$f":"SUM(Dataset[[#This Row],[2025/26 Reduction]],Dataset[[#This Row],[2025/26 From - Total]],Dataset[[#This Row],[2025/26 To - Total]])","v":0},{"$f":"SUM(Dataset[[#This Row],[2026/27 Reduction]],Dataset[[#This Row],[2026/27 From - Total]],Dataset[[#This Row],[2026/27 To - Total]])","v":0},{"$f":"SUM(Dataset[[#This Row],[2027/28 Reduction]],Dataset[[#This Row],[2027/28 From - Total]],Dataset[[#This Row],[2027/28 To - Total]])","v":0},{"$f":"Dataset[[#This Row],[2024/25 Baseline]]+Dataset[[#This Row],[2024/25 Total change]]","v":0},{"$f":"Dataset[[#This Row],[2025/26 Baseline]]+Dataset[[#This Row],[2025/26 Total change]]","v":0},{"$f":"Dataset[[#This Row],[2026/27 Baseline]]+Dataset[[#This Row],[2026/27 Total change]]","v":0},{"$f":"Dataset[[#This Row],[2027/28 Baseline]]+Dataset[[#This Row],[2027/28 Total change]]","v":0}]
["NAT|Non-transfer item","40|Inventory: Medical supplies","2025_26","MTEC2025",40,1,3,51406,134,"40","01","03","051406","000134","40|01|03|000134","01","01","02","27","27","01|01|02|27|27","National","Transport","Administration","Corporate Services","Non-transfer item","Current","Current payments","Goods and services","Inventory: Medical supplies","Inventory: Medical supplies","Economic development","Economic regulation and infrastructure","NAT",0,0,0,0,0,0,null,0,0,0,0,null,null,null,null,null,null,null,null,null,null,null,null,null,null,null,null,null,null,null,null,null,null,null,null,null,null,null,null,null,null,null,null,null,null,{"$f":"Dataset[[#This Row],[2025/26 From - Spending review Topic 1]]+Dataset[[#This Row],[2025/26 From - Spending review Topic 2]]+Dataset[[#This Row],[2025/26 From - Spending review Topic 3]]+Dataset[[#This Row],[2025/26 From - Spending review Topic 4]]+Dataset[[#This Row],[2025/26 From - Other reallocations]]","v":0},{"$f":"Dataset[[#This Row],[2026/27 From - Spending review Topic 1]]+Dataset[[#This Row],[2026/27 From - Spending review Topic 2]]+Dataset[[#This Row],[2026/27 From - Spending review Topic 3]]+Dataset[[#This Row],[2026/27 From - Spending review Topic 4]]+Dataset[[#This Row],[2026/27 From - Other reallocations]]","v":0},{"$f":"Dataset[[#This Row],[2027/28 From - Spending review Topic 1]]+Dataset[[#This Row],[2027/28 From - Spending review Topic 2]]+Dataset[[#This Row],[2027/28 From - Spending review Topic 3]]+Dataset[[#This Row],[2027/28 From - Spending review Topic 4]]+Dataset[[#This Row],[2027/28 From - Other reallocations]]","v":0},{"$f":"Dataset[[#This Row],[2025/26 To - Spending review Topic 1]]+Dataset[[#This Row],[2025/26 To - Spending review Topic 2]]+Dataset[[#This Row],[2025/26 To - Spending review Topic 3]]+Dataset[[#This Row],[2025/26 To - Spending review Topic 4]]+Dataset[[#This Row],[2025/26 To - Other reallocations]]","v":0},{"$f":"Dataset[[#This Row],[2026/27 To - Spending review Topic 1]]+Dataset[[#This Row],[2026/27 To - Spending review Topic 2]]+Dataset[[#This Row],[2026/27 To - Spending review Topic 3]]+Dataset[[#This Row],[2026/27 To - Spending review Topic 4]]+Dataset[[#This Row],[2026/27 To - Other reallocations]]","v":0},{"$f":"Dataset[[#This Row],[2027/28 To - Spending review Topic 1]]+Dataset[[#This Row],[2027/28 To - Spending review Topic 2]]+Dataset[[#This Row],[2027/28 To - Spending review Topic 3]]+Dataset[[#This Row],[2027/28 To - Spending review Topic 4]]+Dataset[[#This Row],[2027/28 To - Other reallocations]]","v":0},{"$f":"Dataset[[#This Row],[2025/26 Reduction]]+Dataset[[#This Row],[2025/26 From - Total]]","v":0},{"$f":"Dataset[[#This Row],[2026/27 Reduction]]+Dataset[[#This Row],[2026/27 From - Total]]","v":0},{"$f":"Dataset[[#This Row],[2027/28 Reduction]]+Dataset[[#This Row],[2027/28 From - Total]]","v":0},{"$f":"Dataset[[#This Row],[2024/25 Reduction]]","v":0},{"$f":"SUM(Dataset[[#This Row],[2025/26 Reduction]],Dataset[[#This Row],[2025/26 From - Total]],Dataset[[#This Row],[2025/26 To - Total]])","v":0},{"$f":"SUM(Dataset[[#This Row],[2026/27 Reduction]],Dataset[[#This Row],[2026/27 From - Total]],Dataset[[#This Row],[2026/27 To - Total]])","v":0},{"$f":"SUM(Dataset[[#This Row],[2027/28 Reduction]],Dataset[[#This Row],[2027/28 From - Total]],Dataset[[#This Row],[2027/28 To - Total]])","v":0},{"$f":"Dataset[[#This Row],[2024/25 Baseline]]+Dataset[[#This Row],[2024/25 Total change]]","v":0},{"$f":"Dataset[[#This Row],[2025/26 Baseline]]+Dataset[[#This Row],[2025/26 Total change]]","v":0},{"$f":"Dataset[[#This Row],[2026/27 Baseline]]+Dataset[[#This Row],[2026/27 Total change]]","v":0},{"$f":"Dataset[[#This Row],[2027/28 Baseline]]+Dataset[[#This Row],[2027/28 Total change]]","v":0}]
["NAT|Non-transfer item","40|Inventory: Medicine","2025_26","MTEC2025",40,1,3,51407,135,"40","01","03","051407","000135","40|01|03|000135","01","01","02","28","28","01|01|02|28|28","National","Transport","Administration","Corporate Services","Non-transfer item","Current","Current payments","Goods and services","Inventory: Medicine","Inventory: Medicine","Economic development","Economic regulation and infrastructure","NAT",0,0,0,0,0,0,null,0,0,0,0,null,null,null,null,null,null,null,null,null,null,null,null,null,null,null,null,null,null,null,null,null,null,null,null,null,null,null,null,null,null,null,null,null,null,{"$f":"Dataset[[#This Row],[2025/26 From - Spending review Topic 1]]+Dataset[[#This Row],[2025/26 From - Spending review Topic 2]]+Dataset[[#This Row],[2025/26 From - Spending review Topic 3]]+Dataset[[#This Row],[2025/26 From - Spending review Topic 4]]+Dataset[[#This Row],[2025/26 From - Other reallocations]]","v":0},{"$f":"Dataset[[#This Row],[2026/27 From - Spending review Topic 1]]+Dataset[[#This Row],[2026/27 From - Spending review Topic 2]]+Dataset[[#This Row],[2026/27 From - Spending review Topic 3]]+Dataset[[#This Row],[2026/27 From - Spending review Topic 4]]+Dataset[[#This Row],[2026/27 From - Other reallocations]]","v":0},{"$f":"Dataset[[#This Row],[2027/28 From - Spending review Topic 1]]+Dataset[[#This Row],[2027/28 From - Spending review Topic 2]]+Dataset[[#This Row],[2027/28 From - Spending review Topic 3]]+Dataset[[#This Row],[2027/28 From - Spending review Topic 4]]+Dataset[[#This Row],[2027/28 From - Other reallocations]]","v":0},{"$f":"Dataset[[#This Row],[2025/26 To - Spending review Topic 1]]+Dataset[[#This Row],[2025/26 To - Spending review Topic 2]]+Dataset[[#This Row],[2025/26 To - Spending review Topic 3]]+Dataset[[#This Row],[2025/26 To - Spending review Topic 4]]+Dataset[[#This Row],[2025/26 To - Other reallocations]]","v":0},{"$f":"Dataset[[#This Row],[2026/27 To - Spending review Topic 1]]+Dataset[[#This Row],[2026/27 To - Spending review Topic 2]]+Dataset[[#This Row],[2026/27 To - Spending review Topic 3]]+Dataset[[#This Row],[2026/27 To - Spending review Topic 4]]+Dataset[[#This Row],[2026/27 To - Other reallocations]]","v":0},{"$f":"Dataset[[#This Row],[2027/28 To - Spending review Topic 1]]+Dataset[[#This Row],[2027/28 To - Spending review Topic 2]]+Dataset[[#This Row],[2027/28 To - Spending review Topic 3]]+Dataset[[#This Row],[2027/28 To - Spending review Topic 4]]+Dataset[[#This Row],[2027/28 To - Other reallocations]]","v":0},{"$f":"Dataset[[#This Row],[2025/26 Reduction]]+Dataset[[#This Row],[2025/26 From - Total]]","v":0},{"$f":"Dataset[[#This Row],[2026/27 Reduction]]+Dataset[[#This Row],[2026/27 From - Total]]","v":0},{"$f":"Dataset[[#This Row],[2027/28 Reduction]]+Dataset[[#This Row],[2027/28 From - Total]]","v":0},{"$f":"Dataset[[#This Row],[2024/25 Reduction]]","v":0},{"$f":"SUM(Dataset[[#This Row],[2025/26 Reduction]],Dataset[[#This Row],[2025/26 From - Total]],Dataset[[#This Row],[2025/26 To - Total]])","v":0},{"$f":"SUM(Dataset[[#This Row],[2026/27 Reduction]],Dataset[[#This Row],[2026/27 From - Total]],Dataset[[#This Row],[2026/27 To - Total]])","v":0},{"$f":"SUM(Dataset[[#This Row],[2027/28 Reduction]],Dataset[[#This Row],[2027/28 From - Total]],Dataset[[#This Row],[2027/28 To - Total]])","v":0},{"$f":"Dataset[[#This Row],[2024/25 Baseline]]+Dataset[[#This Row],[2024/25 Total change]]","v":0},{"$f":"Dataset[[#This Row],[2025/26 Baseline]]+Dataset[[#This Row],[2025/26 Total change]]","v":0},{"$f":"Dataset[[#This Row],[2026/27 Baseline]]+Dataset[[#This Row],[2026/27 Total change]]","v":0},{"$f":"Dataset[[#This Row],[2027/28 Baseline]]+Dataset[[#This Row],[2027/28 Total change]]","v":0}]
["NAT|Non-transfer item","40|Medsas inventory interface","2025_26","MTEC2025",40,1,3,51408,136,"40","01","03","051408","000136","40|01|03|000136","01","01","02","29","29","01|01|02|29|29","National","Transport","Administration","Corporate Services","Non-transfer item","Current","Current payments","Goods and services","Medsas inventory interface","Medsas inventory interface","Economic development","Economic regulation and infrastructure","NAT",0,0,0,0,0,0,null,0,0,0,0,null,null,null,null,null,null,null,null,null,null,null,null,null,null,null,null,null,null,null,null,null,null,null,null,null,null,null,null,null,null,null,null,null,null,{"$f":"Dataset[[#This Row],[2025/26 From - Spending review Topic 1]]+Dataset[[#This Row],[2025/26 From - Spending review Topic 2]]+Dataset[[#This Row],[2025/26 From - Spending review Topic 3]]+Dataset[[#This Row],[2025/26 From - Spending review Topic 4]]+Dataset[[#This Row],[2025/26 From - Other reallocations]]","v":0},{"$f":"Dataset[[#This Row],[2026/27 From - Spending review Topic 1]]+Dataset[[#This Row],[2026/27 From - Spending review Topic 2]]+Dataset[[#This Row],[2026/27 From - Spending review Topic 3]]+Dataset[[#This Row],[2026/27 From - Spending review Topic 4]]+Dataset[[#This Row],[2026/27 From - Other reallocations]]","v":0},{"$f":"Dataset[[#This Row],[2027/28 From - Spending review Topic 1]]+Dataset[[#This Row],[2027/28 From - Spending review Topic 2]]+Dataset[[#This Row],[2027/28 From - Spending review Topic 3]]+Dataset[[#This Row],[2027/28 From - Spending review Topic 4]]+Dataset[[#This Row],[2027/28 From - Other reallocations]]","v":0},{"$f":"Dataset[[#This Row],[2025/26 To - Spending review Topic 1]]+Dataset[[#This Row],[2025/26 To - Spending review Topic 2]]+Dataset[[#This Row],[2025/26 To - Spending review Topic 3]]+Dataset[[#This Row],[2025/26 To - Spending review Topic 4]]+Dataset[[#This Row],[2025/26 To - Other reallocations]]","v":0},{"$f":"Dataset[[#This Row],[2026/27 To - Spending review Topic 1]]+Dataset[[#This Row],[2026/27 To - Spending review Topic 2]]+Dataset[[#This Row],[2026/27 To - Spending review Topic 3]]+Dataset[[#This Row],[2026/27 To - Spending review Topic 4]]+Dataset[[#This Row],[2026/27 To - Other reallocations]]","v":0},{"$f":"Dataset[[#This Row],[2027/28 To - Spending review Topic 1]]+Dataset[[#This Row],[2027/28 To - Spending review Topic 2]]+Dataset[[#This Row],[2027/28 To - Spending review Topic 3]]+Dataset[[#This Row],[2027/28 To - Spending review Topic 4]]+Dataset[[#This Row],[2027/28 To - Other reallocations]]","v":0},{"$f":"Dataset[[#This Row],[2025/26 Reduction]]+Dataset[[#This Row],[2025/26 From - Total]]","v":0},{"$f":"Dataset[[#This Row],[2026/27 Reduction]]+Dataset[[#This Row],[2026/27 From - Total]]","v":0},{"$f":"Dataset[[#This Row],[2027/28 Reduction]]+Dataset[[#This Row],[2027/28 From - Total]]","v":0},{"$f":"Dataset[[#This Row],[2024/25 Reduction]]","v":0},{"$f":"SUM(Dataset[[#This Row],[2025/26 Reduction]],Dataset[[#This Row],[2025/26 From - Total]],Dataset[[#This Row],[2025/26 To - Total]])","v":0},{"$f":"SUM(Dataset[[#This Row],[2026/27 Reduction]],Dataset[[#This Row],[2026/27 From - Total]],Dataset[[#This Row],[2026/27 To - Total]])","v":0},{"$f":"SUM(Dataset[[#This Row],[2027/28 Reduction]],Dataset[[#This Row],[2027/28 From - Total]],Dataset[[#This Row],[2027/28 To - Total]])","v":0},{"$f":"Dataset[[#This Row],[2024/25 Baseline]]+Dataset[[#This Row],[2024/25 Total change]]","v":0},{"$f":"Dataset[[#This Row],[2025/26 Baseline]]+Dataset[[#This Row],[2025/26 Total change]]","v":0},{"$f":"Dataset[[#This Row],[2026/27 Baseline]]+Dataset[[#This Row],[2026/27 Total change]]","v":0},{"$f":"Dataset[[#This Row],[2027/28 Baseline]]+Dataset[[#This Row],[2027/28 Total change]]","v":0}]
["NAT|Non-transfer item","40|Inventory: Other supplies","2025_26","MTEC2025",40,1,3,51409,137,"40","01","03","051409","000137","40|01|03|000137","01","01","02","30","30","01|01|02|30|30","National","Transport","Administration","Corporate Services","Non-transfer item","Current","Current payments","Goods and services","Inventory: Other supplies","Inventory: Other supplies","Economic development","Economic regulation and infrastructure","NAT",0,0,0,0,0,0,null,0,0,0,0,null,null,null,null,null,null,null,null,null,null,null,null,null,null,null,null,null,null,null,null,null,null,null,null,null,null,null,null,null,null,null,null,null,null,{"$f":"Dataset[[#This Row],[2025/26 From - Spending review Topic 1]]+Dataset[[#This Row],[2025/26 From - Spending review Topic 2]]+Dataset[[#This Row],[2025/26 From - Spending review Topic 3]]+Dataset[[#This Row],[2025/26 From - Spending review Topic 4]]+Dataset[[#This Row],[2025/26 From - Other reallocations]]","v":0},{"$f":"Dataset[[#This Row],[2026/27 From - Spending review Topic 1]]+Dataset[[#This Row],[2026/27 From - Spending review Topic 2]]+Dataset[[#This Row],[2026/27 From - Spending review Topic 3]]+Dataset[[#This Row],[2026/27 From - Spending review Topic 4]]+Dataset[[#This Row],[2026/27 From - Other reallocations]]","v":0},{"$f":"Dataset[[#This Row],[2027/28 From - Spending review Topic 1]]+Dataset[[#This Row],[2027/28 From - Spending review Topic 2]]+Dataset[[#This Row],[2027/28 From - Spending review Topic 3]]+Dataset[[#This Row],[2027/28 From - Spending review Topic 4]]+Dataset[[#This Row],[2027/28 From - Other reallocations]]","v":0},{"$f":"Dataset[[#This Row],[2025/26 To - Spending review Topic 1]]+Dataset[[#This Row],[2025/26 To - Spending review Topic 2]]+Dataset[[#This Row],[2025/26 To - Spending review Topic 3]]+Dataset[[#This Row],[2025/26 To - Spending review Topic 4]]+Dataset[[#This Row],[2025/26 To - Other reallocations]]","v":0},{"$f":"Dataset[[#This Row],[2026/27 To - Spending review Topic 1]]+Dataset[[#This Row],[2026/27 To - Spending review Topic 2]]+Dataset[[#This Row],[2026/27 To - Spending review Topic 3]]+Dataset[[#This Row],[2026/27 To - Spending review Topic 4]]+Dataset[[#This Row],[2026/27 To - Other reallocations]]","v":0},{"$f":"Dataset[[#This Row],[2027/28 To - Spending review Topic 1]]+Dataset[[#This Row],[2027/28 To - Spending review Topic 2]]+Dataset[[#This Row],[2027/28 To - Spending review Topic 3]]+Dataset[[#This Row],[2027/28 To - Spending review Topic 4]]+Dataset[[#This Row],[2027/28 To - Other reallocations]]","v":0},{"$f":"Dataset[[#This Row],[2025/26 Reduction]]+Dataset[[#This Row],[2025/26 From - Total]]","v":0},{"$f":"Dataset[[#This Row],[2026/27 Reduction]]+Dataset[[#This Row],[2026/27 From - Total]]","v":0},{"$f":"Dataset[[#This Row],[2027/28 Reduction]]+Dataset[[#This Row],[2027/28 From - Total]]","v":0},{"$f":"Dataset[[#This Row],[2024/25 Reduction]]","v":0},{"$f":"SUM(Dataset[[#This Row],[2025/26 Reduction]],Dataset[[#This Row],[2025/26 From - Total]],Dataset[[#This Row],[2025/26 To - Total]])","v":0},{"$f":"SUM(Dataset[[#This Row],[2026/27 Reduction]],Dataset[[#This Row],[2026/27 From - Total]],Dataset[[#This Row],[2026/27 To - Total]])","v":0},{"$f":"SUM(Dataset[[#This Row],[2027/28 Reduction]],Dataset[[#This Row],[2027/28 From - Total]],Dataset[[#This Row],[2027/28 To - Total]])","v":0},{"$f":"Dataset[[#This Row],[2024/25 Baseline]]+Dataset[[#This Row],[2024/25 Total change]]","v":0},{"$f":"Dataset[[#This Row],[2025/26 Baseline]]+Dataset[[#This Row],[2025/26 Total change]]","v":0},{"$f":"Dataset[[#This Row],[2026/27 Baseline]]+Dataset[[#This Row],[2026/27 Total change]]","v":0},{"$f":"Dataset[[#This Row],[2027/28 Baseline]]+Dataset[[#This Row],[2027/28 Total change]]","v":0}]
["NAT|Non-transfer item","40|Consumable supplies","2025_26","MTEC2025",40,1,3,51410,138,"40","01","03","051410","000138","40|01|03|000138","01","01","02","31","31","01|01|02|31|31","National","Transport","Administration","Corporate Services","Non-transfer item","Current","Current payments","Goods and services","Consumable supplies","Consumable supplies","Economic development","Economic regulation and infrastructure","NAT",2537,679,1132,469,669,669,953,482,520,544,569,null,null,null,null,null,null,null,null,null,null,null,null,null,null,null,null,null,null,null,null,null,null,null,null,null,null,null,null,null,null,null,null,null,null,{"$f":"Dataset[[#This Row],[2025/26 From - Spending review Topic 1]]+Dataset[[#This Row],[2025/26 From - Spending review Topic 2]]+Dataset[[#This Row],[2025/26 From - Spending review Topic 3]]+Dataset[[#This Row],[2025/26 From - Spending review Topic 4]]+Dataset[[#This Row],[2025/26 From - Other reallocations]]","v":0},{"$f":"Dataset[[#This Row],[2026/27 From - Spending review Topic 1]]+Dataset[[#This Row],[2026/27 From - Spending review Topic 2]]+Dataset[[#This Row],[2026/27 From - Spending review Topic 3]]+Dataset[[#This Row],[2026/27 From - Spending review Topic 4]]+Dataset[[#This Row],[2026/27 From - Other reallocations]]","v":0},{"$f":"Dataset[[#This Row],[2027/28 From - Spending review Topic 1]]+Dataset[[#This Row],[2027/28 From - Spending review Topic 2]]+Dataset[[#This Row],[2027/28 From - Spending review Topic 3]]+Dataset[[#This Row],[2027/28 From - Spending review Topic 4]]+Dataset[[#This Row],[2027/28 From - Other reallocations]]","v":0},{"$f":"Dataset[[#This Row],[2025/26 To - Spending review Topic 1]]+Dataset[[#This Row],[2025/26 To - Spending review Topic 2]]+Dataset[[#This Row],[2025/26 To - Spending review Topic 3]]+Dataset[[#This Row],[2025/26 To - Spending review Topic 4]]+Dataset[[#This Row],[2025/26 To - Other reallocations]]","v":0},{"$f":"Dataset[[#This Row],[2026/27 To - Spending review Topic 1]]+Dataset[[#This Row],[2026/27 To - Spending review Topic 2]]+Dataset[[#This Row],[2026/27 To - Spending review Topic 3]]+Dataset[[#This Row],[2026/27 To - Spending review Topic 4]]+Dataset[[#This Row],[2026/27 To - Other reallocations]]","v":0},{"$f":"Dataset[[#This Row],[2027/28 To - Spending review Topic 1]]+Dataset[[#This Row],[2027/28 To - Spending review Topic 2]]+Dataset[[#This Row],[2027/28 To - Spending review Topic 3]]+Dataset[[#This Row],[2027/28 To - Spending review Topic 4]]+Dataset[[#This Row],[2027/28 To - Other reallocations]]","v":0},{"$f":"Dataset[[#This Row],[2025/26 Reduction]]+Dataset[[#This Row],[2025/26 From - Total]]","v":0},{"$f":"Dataset[[#This Row],[2026/27 Reduction]]+Dataset[[#This Row],[2026/27 From - Total]]","v":0},{"$f":"Dataset[[#This Row],[2027/28 Reduction]]+Dataset[[#This Row],[2027/28 From - Total]]","v":0},{"$f":"Dataset[[#This Row],[2024/25 Reduction]]","v":0},{"$f":"SUM(Dataset[[#This Row],[2025/26 Reduction]],Dataset[[#This Row],[2025/26 From - Total]],Dataset[[#This Row],[2025/26 To - Total]])","v":0},{"$f":"SUM(Dataset[[#This Row],[2026/27 Reduction]],Dataset[[#This Row],[2026/27 From - Total]],Dataset[[#This Row],[2026/27 To - Total]])","v":0},{"$f":"SUM(Dataset[[#This Row],[2027/28 Reduction]],Dataset[[#This Row],[2027/28 From - Total]],Dataset[[#This Row],[2027/28 To - Total]])","v":0},{"$f":"Dataset[[#This Row],[2024/25 Baseline]]+Dataset[[#This Row],[2024/25 Total change]]","v":482},{"$f":"Dataset[[#This Row],[2025/26 Baseline]]+Dataset[[#This Row],[2025/26 Total change]]","v":520},{"$f":"Dataset[[#This Row],[2026/27 Baseline]]+Dataset[[#This Row],[2026/27 Total change]]","v":544},{"$f":"Dataset[[#This Row],[2027/28 Baseline]]+Dataset[[#This Row],[2027/28 Total change]]","v":569}]
["NAT|Non-transfer item","40|Consumables: Stationery, printing and office supplies","2025_26","MTEC2025",40,1,3,51411,139,"40","01","03","051411","000139","40|01|03|000139","01","01","02","32","32","01|01|02|32|32","National","Transport","Administration","Corporate Services","Non-transfer item","Current","Current payments","Goods and services","Consumables: Stationery, printing and office supplies","Consumables: Stationery, printing and office supplies","Economic development","Economic regulation and infrastructure","NAT",834,904,1036,1969,2142,2142,757,2073,2236,2339,2445,null,null,null,null,null,null,null,null,null,null,null,null,null,null,null,null,null,null,null,null,null,null,null,null,null,null,null,null,null,null,null,null,null,null,{"$f":"Dataset[[#This Row],[2025/26 From - Spending review Topic 1]]+Dataset[[#This Row],[2025/26 From - Spending review Topic 2]]+Dataset[[#This Row],[2025/26 From - Spending review Topic 3]]+Dataset[[#This Row],[2025/26 From - Spending review Topic 4]]+Dataset[[#This Row],[2025/26 From - Other reallocations]]","v":0},{"$f":"Dataset[[#This Row],[2026/27 From - Spending review Topic 1]]+Dataset[[#This Row],[2026/27 From - Spending review Topic 2]]+Dataset[[#This Row],[2026/27 From - Spending review Topic 3]]+Dataset[[#This Row],[2026/27 From - Spending review Topic 4]]+Dataset[[#This Row],[2026/27 From - Other reallocations]]","v":0},{"$f":"Dataset[[#This Row],[2027/28 From - Spending review Topic 1]]+Dataset[[#This Row],[2027/28 From - Spending review Topic 2]]+Dataset[[#This Row],[2027/28 From - Spending review Topic 3]]+Dataset[[#This Row],[2027/28 From - Spending review Topic 4]]+Dataset[[#This Row],[2027/28 From - Other reallocations]]","v":0},{"$f":"Dataset[[#This Row],[2025/26 To - Spending review Topic 1]]+Dataset[[#This Row],[2025/26 To - Spending review Topic 2]]+Dataset[[#This Row],[2025/26 To - Spending review Topic 3]]+Dataset[[#This Row],[2025/26 To - Spending review Topic 4]]+Dataset[[#This Row],[2025/26 To - Other reallocations]]","v":0},{"$f":"Dataset[[#This Row],[2026/27 To - Spending review Topic 1]]+Dataset[[#This Row],[2026/27 To - Spending review Topic 2]]+Dataset[[#This Row],[2026/27 To - Spending review Topic 3]]+Dataset[[#This Row],[2026/27 To - Spending review Topic 4]]+Dataset[[#This Row],[2026/27 To - Other reallocations]]","v":0},{"$f":"Dataset[[#This Row],[2027/28 To - Spending review Topic 1]]+Dataset[[#This Row],[2027/28 To - Spending review Topic 2]]+Dataset[[#This Row],[2027/28 To - Spending review Topic 3]]+Dataset[[#This Row],[2027/28 To - Spending review Topic 4]]+Dataset[[#This Row],[2027/28 To - Other reallocations]]","v":0},{"$f":"Dataset[[#This Row],[2025/26 Reduction]]+Dataset[[#This Row],[2025/26 From - Total]]","v":0},{"$f":"Dataset[[#This Row],[2026/27 Reduction]]+Dataset[[#This Row],[2026/27 From - Total]]","v":0},{"$f":"Dataset[[#This Row],[2027/28 Reduction]]+Dataset[[#This Row],[2027/28 From - Total]]","v":0},{"$f":"Dataset[[#This Row],[2024/25 Reduction]]","v":0},{"$f":"SUM(Dataset[[#This Row],[2025/26 Reduction]],Dataset[[#This Row],[2025/26 From - Total]],Dataset[[#This Row],[2025/26 To - Total]])","v":0},{"$f":"SUM(Dataset[[#This Row],[2026/27 Reduction]],Dataset[[#This Row],[2026/27 From - Total]],Dataset[[#This Row],[2026/27 To - Total]])","v":0},{"$f":"SUM(Dataset[[#This Row],[2027/28 Reduction]],Dataset[[#This Row],[2027/28 From - Total]],Dataset[[#This Row],[2027/28 To - Total]])","v":0},{"$f":"Dataset[[#This Row],[2024/25 Baseline]]+Dataset[[#This Row],[2024/25 Total change]]","v":2073},{"$f":"Dataset[[#This Row],[2025/26 Baseline]]+Dataset[[#This Row],[2025/26 Total change]]","v":2236},{"$f":"Dataset[[#This Row],[2026/27 Baseline]]+Dataset[[#This Row],[2026/27 Total change]]","v":2339},{"$f":"Dataset[[#This Row],[2027/28 Baseline]]+Dataset[[#This Row],[2027/28 Total change]]","v":2445}]
["NAT|Non-transfer item","40|Operating leases","2025_26","MTEC2025",40,1,3,51412,140,"40","01","03","051412","000140","40|01|03|000140","01","01","02","33","33","01|01|02|33|33","National","Transport","Administration","Corporate Services","Non-transfer item","Current","Current payments","Goods and services","Operating leases","Operating leases","Economic development","Economic regulation and infrastructure","NAT",0,0,384,0,600,600,114,0,0,0,0,null,null,null,null,null,null,null,null,null,null,null,null,null,null,null,null,null,null,null,null,null,null,null,null,null,null,null,null,null,null,null,null,null,null,{"$f":"Dataset[[#This Row],[2025/26 From - Spending review Topic 1]]+Dataset[[#This Row],[2025/26 From - Spending review Topic 2]]+Dataset[[#This Row],[2025/26 From - Spending review Topic 3]]+Dataset[[#This Row],[2025/26 From - Spending review Topic 4]]+Dataset[[#This Row],[2025/26 From - Other reallocations]]","v":0},{"$f":"Dataset[[#This Row],[2026/27 From - Spending review Topic 1]]+Dataset[[#This Row],[2026/27 From - Spending review Topic 2]]+Dataset[[#This Row],[2026/27 From - Spending review Topic 3]]+Dataset[[#This Row],[2026/27 From - Spending review Topic 4]]+Dataset[[#This Row],[2026/27 From - Other reallocations]]","v":0},{"$f":"Dataset[[#This Row],[2027/28 From - Spending review Topic 1]]+Dataset[[#This Row],[2027/28 From - Spending review Topic 2]]+Dataset[[#This Row],[2027/28 From - Spending review Topic 3]]+Dataset[[#This Row],[2027/28 From - Spending review Topic 4]]+Dataset[[#This Row],[2027/28 From - Other reallocations]]","v":0},{"$f":"Dataset[[#This Row],[2025/26 To - Spending review Topic 1]]+Dataset[[#This Row],[2025/26 To - Spending review Topic 2]]+Dataset[[#This Row],[2025/26 To - Spending review Topic 3]]+Dataset[[#This Row],[2025/26 To - Spending review Topic 4]]+Dataset[[#This Row],[2025/26 To - Other reallocations]]","v":0},{"$f":"Dataset[[#This Row],[2026/27 To - Spending review Topic 1]]+Dataset[[#This Row],[2026/27 To - Spending review Topic 2]]+Dataset[[#This Row],[2026/27 To - Spending review Topic 3]]+Dataset[[#This Row],[2026/27 To - Spending review Topic 4]]+Dataset[[#This Row],[2026/27 To - Other reallocations]]","v":0},{"$f":"Dataset[[#This Row],[2027/28 To - Spending review Topic 1]]+Dataset[[#This Row],[2027/28 To - Spending review Topic 2]]+Dataset[[#This Row],[2027/28 To - Spending review Topic 3]]+Dataset[[#This Row],[2027/28 To - Spending review Topic 4]]+Dataset[[#This Row],[2027/28 To - Other reallocations]]","v":0},{"$f":"Dataset[[#This Row],[2025/26 Reduction]]+Dataset[[#This Row],[2025/26 From - Total]]","v":0},{"$f":"Dataset[[#This Row],[2026/27 Reduction]]+Dataset[[#This Row],[2026/27 From - Total]]","v":0},{"$f":"Dataset[[#This Row],[2027/28 Reduction]]+Dataset[[#This Row],[2027/28 From - Total]]","v":0},{"$f":"Dataset[[#This Row],[2024/25 Reduction]]","v":0},{"$f":"SUM(Dataset[[#This Row],[2025/26 Reduction]],Dataset[[#This Row],[2025/26 From - Total]],Dataset[[#This Row],[2025/26 To - Total]])","v":0},{"$f":"SUM(Dataset[[#This Row],[2026/27 Reduction]],Dataset[[#This Row],[2026/27 From - Total]],Dataset[[#This Row],[2026/27 To - Total]])","v":0},{"$f":"SUM(Dataset[[#This Row],[2027/28 Reduction]],Dataset[[#This Row],[2027/28 From - Total]],Dataset[[#This Row],[2027/28 To - Total]])","v":0},{"$f":"Dataset[[#This Row],[2024/25 Baseline]]+Dataset[[#This Row],[2024/25 Total change]]","v":0},{"$f":"Dataset[[#This Row],[2025/26 Baseline]]+Dataset[[#This Row],[2025/26 Total change]]","v":0},{"$f":"Dataset[[#This Row],[2026/27 Baseline]]+Dataset[[#This Row],[2026/27 Total change]]","v":0},{"$f":"Dataset[[#This Row],[2027/28 Baseline]]+Dataset[[#This Row],[2027/28 Total change]]","v":0}]
["NAT|Non-transfer item","40|Rental and hiring","2025_26","MTEC2025",40,1,3,51413,141,"40","01","03","051413","000141","40|01|03|000141","01","01","02","34","34","01|01|02|34|34","National","Transport","Administration","Corporate Services","Non-transfer item","Current","Current payments","Goods and services","Rental and hiring","Rental and hiring","Economic development","Economic regulation and infrastructure","NAT",0,0,241,0,0,0,null,0,0,0,0,null,null,null,null,null,null,null,null,null,null,null,null,null,null,null,null,null,null,null,null,null,null,null,null,null,null,null,null,null,null,null,null,null,null,{"$f":"Dataset[[#This Row],[2025/26 From - Spending review Topic 1]]+Dataset[[#This Row],[2025/26 From - Spending review Topic 2]]+Dataset[[#This Row],[2025/26 From - Spending review Topic 3]]+Dataset[[#This Row],[2025/26 From - Spending review Topic 4]]+Dataset[[#This Row],[2025/26 From - Other reallocations]]","v":0},{"$f":"Dataset[[#This Row],[2026/27 From - Spending review Topic 1]]+Dataset[[#This Row],[2026/27 From - Spending review Topic 2]]+Dataset[[#This Row],[2026/27 From - Spending review Topic 3]]+Dataset[[#This Row],[2026/27 From - Spending review Topic 4]]+Dataset[[#This Row],[2026/27 From - Other reallocations]]","v":0},{"$f":"Dataset[[#This Row],[2027/28 From - Spending review Topic 1]]+Dataset[[#This Row],[2027/28 From - Spending review Topic 2]]+Dataset[[#This Row],[2027/28 From - Spending review Topic 3]]+Dataset[[#This Row],[2027/28 From - Spending review Topic 4]]+Dataset[[#This Row],[2027/28 From - Other reallocations]]","v":0},{"$f":"Dataset[[#This Row],[2025/26 To - Spending review Topic 1]]+Dataset[[#This Row],[2025/26 To - Spending review Topic 2]]+Dataset[[#This Row],[2025/26 To - Spending review Topic 3]]+Dataset[[#This Row],[2025/26 To - Spending review Topic 4]]+Dataset[[#This Row],[2025/26 To - Other reallocations]]","v":0},{"$f":"Dataset[[#This Row],[2026/27 To - Spending review Topic 1]]+Dataset[[#This Row],[2026/27 To - Spending review Topic 2]]+Dataset[[#This Row],[2026/27 To - Spending review Topic 3]]+Dataset[[#This Row],[2026/27 To - Spending review Topic 4]]+Dataset[[#This Row],[2026/27 To - Other reallocations]]","v":0},{"$f":"Dataset[[#This Row],[2027/28 To - Spending review Topic 1]]+Dataset[[#This Row],[2027/28 To - Spending review Topic 2]]+Dataset[[#This Row],[2027/28 To - Spending review Topic 3]]+Dataset[[#This Row],[2027/28 To - Spending review Topic 4]]+Dataset[[#This Row],[2027/28 To - Other reallocations]]","v":0},{"$f":"Dataset[[#This Row],[2025/26 Reduction]]+Dataset[[#This Row],[2025/26 From - Total]]","v":0},{"$f":"Dataset[[#This Row],[2026/27 Reduction]]+Dataset[[#This Row],[2026/27 From - Total]]","v":0},{"$f":"Dataset[[#This Row],[2027/28 Reduction]]+Dataset[[#This Row],[2027/28 From - Total]]","v":0},{"$f":"Dataset[[#This Row],[2024/25 Reduction]]","v":0},{"$f":"SUM(Dataset[[#This Row],[2025/26 Reduction]],Dataset[[#This Row],[2025/26 From - Total]],Dataset[[#This Row],[2025/26 To - Total]])","v":0},{"$f":"SUM(Dataset[[#This Row],[2026/27 Reduction]],Dataset[[#This Row],[2026/27 From - Total]],Dataset[[#This Row],[2026/27 To - Total]])","v":0},{"$f":"SUM(Dataset[[#This Row],[2027/28 Reduction]],Dataset[[#This Row],[2027/28 From - Total]],Dataset[[#This Row],[2027/28 To - Total]])","v":0},{"$f":"Dataset[[#This Row],[2024/25 Baseline]]+Dataset[[#This Row],[2024/25 Total change]]","v":0},{"$f":"Dataset[[#This Row],[2025/26 Baseline]]+Dataset[[#This Row],[2025/26 Total change]]","v":0},{"$f":"Dataset[[#This Row],[2026/27 Baseline]]+Dataset[[#This Row],[2026/27 Total change]]","v":0},{"$f":"Dataset[[#This Row],[2027/28 Baseline]]+Dataset[[#This Row],[2027/28 Total change]]","v":0}]
["NAT|Non-transfer item","40|Property payments","2025_26","MTEC2025",40,1,3,51414,142,"40","01","03","051414","000142","40|01|03|000142","01","01","02","35","35","01|01|02|35|35","National","Transport","Administration","Corporate Services","Non-transfer item","Current","Current payments","Goods and services","Property payments","Property payments","Economic development","Economic regulation and infrastructure","NAT",5028,3811,6379,12232,10357,10357,7209,12396,13372,13984,14616,null,null,null,null,null,null,null,null,null,null,null,null,null,null,null,null,null,null,null,null,null,null,null,null,null,null,null,null,null,null,null,null,null,null,{"$f":"Dataset[[#This Row],[2025/26 From - Spending review Topic 1]]+Dataset[[#This Row],[2025/26 From - Spending review Topic 2]]+Dataset[[#This Row],[2025/26 From - Spending review Topic 3]]+Dataset[[#This Row],[2025/26 From - Spending review Topic 4]]+Dataset[[#This Row],[2025/26 From - Other reallocations]]","v":0},{"$f":"Dataset[[#This Row],[2026/27 From - Spending review Topic 1]]+Dataset[[#This Row],[2026/27 From - Spending review Topic 2]]+Dataset[[#This Row],[2026/27 From - Spending review Topic 3]]+Dataset[[#This Row],[2026/27 From - Spending review Topic 4]]+Dataset[[#This Row],[2026/27 From - Other reallocations]]","v":0},{"$f":"Dataset[[#This Row],[2027/28 From - Spending review Topic 1]]+Dataset[[#This Row],[2027/28 From - Spending review Topic 2]]+Dataset[[#This Row],[2027/28 From - Spending review Topic 3]]+Dataset[[#This Row],[2027/28 From - Spending review Topic 4]]+Dataset[[#This Row],[2027/28 From - Other reallocations]]","v":0},{"$f":"Dataset[[#This Row],[2025/26 To - Spending review Topic 1]]+Dataset[[#This Row],[2025/26 To - Spending review Topic 2]]+Dataset[[#This Row],[2025/26 To - Spending review Topic 3]]+Dataset[[#This Row],[2025/26 To - Spending review Topic 4]]+Dataset[[#This Row],[2025/26 To - Other reallocations]]","v":0},{"$f":"Dataset[[#This Row],[2026/27 To - Spending review Topic 1]]+Dataset[[#This Row],[2026/27 To - Spending review Topic 2]]+Dataset[[#This Row],[2026/27 To - Spending review Topic 3]]+Dataset[[#This Row],[2026/27 To - Spending review Topic 4]]+Dataset[[#This Row],[2026/27 To - Other reallocations]]","v":0},{"$f":"Dataset[[#This Row],[2027/28 To - Spending review Topic 1]]+Dataset[[#This Row],[2027/28 To - Spending review Topic 2]]+Dataset[[#This Row],[2027/28 To - Spending review Topic 3]]+Dataset[[#This Row],[2027/28 To - Spending review Topic 4]]+Dataset[[#This Row],[2027/28 To - Other reallocations]]","v":0},{"$f":"Dataset[[#This Row],[2025/26 Reduction]]+Dataset[[#This Row],[2025/26 From - Total]]","v":0},{"$f":"Dataset[[#This Row],[2026/27 Reduction]]+Dataset[[#This Row],[2026/27 From - Total]]","v":0},{"$f":"Dataset[[#This Row],[2027/28 Reduction]]+Dataset[[#This Row],[2027/28 From - Total]]","v":0},{"$f":"Dataset[[#This Row],[2024/25 Reduction]]","v":0},{"$f":"SUM(Dataset[[#This Row],[2025/26 Reduction]],Dataset[[#This Row],[2025/26 From - Total]],Dataset[[#This Row],[2025/26 To - Total]])","v":0},{"$f":"SUM(Dataset[[#This Row],[2026/27 Reduction]],Dataset[[#This Row],[2026/27 From - Total]],Dataset[[#This Row],[2026/27 To - Total]])","v":0},{"$f":"SUM(Dataset[[#This Row],[2027/28 Reduction]],Dataset[[#This Row],[2027/28 From - Total]],Dataset[[#This Row],[2027/28 To - Total]])","v":0},{"$f":"Dataset[[#This Row],[2024/25 Baseline]]+Dataset[[#This Row],[2024/25 Total change]]","v":12396},{"$f":"Dataset[[#This Row],[2025/26 Baseline]]+Dataset[[#This Row],[2025/26 Total change]]","v":13372},{"$f":"Dataset[[#This Row],[2026/27 Baseline]]+Dataset[[#This Row],[2026/27 Total change]]","v":13984},{"$f":"Dataset[[#This Row],[2027/28 Baseline]]+Dataset[[#This Row],[2027/28 Total change]]","v":14616}]
["NAT|Non-transfer item","40|Transport provided: Departmental activity","2025_26","MTEC2025",40,1,3,51415,143,"40","01","03","051415","000143","40|01|03|000143","01","01","02","36","36","01|01|02|36|36","National","Transport","Administration","Corporate Services","Non-transfer item","Current","Current payments","Goods and services","Transport provided: Departmental activity","Transport provided: Departmental activity","Economic development","Economic regulation and infrastructure","NAT",0,0,0,0,0,0,null,0,0,0,0,null,null,null,null,null,null,null,null,null,null,null,null,null,null,null,null,null,null,null,null,null,null,null,null,null,null,null,null,null,null,null,null,null,null,{"$f":"Dataset[[#This Row],[2025/26 From - Spending review Topic 1]]+Dataset[[#This Row],[2025/26 From - Spending review Topic 2]]+Dataset[[#This Row],[2025/26 From - Spending review Topic 3]]+Dataset[[#This Row],[2025/26 From - Spending review Topic 4]]+Dataset[[#This Row],[2025/26 From - Other reallocations]]","v":0},{"$f":"Dataset[[#This Row],[2026/27 From - Spending review Topic 1]]+Dataset[[#This Row],[2026/27 From - Spending review Topic 2]]+Dataset[[#This Row],[2026/27 From - Spending review Topic 3]]+Dataset[[#This Row],[2026/27 From - Spending review Topic 4]]+Dataset[[#This Row],[2026/27 From - Other reallocations]]","v":0},{"$f":"Dataset[[#This Row],[2027/28 From - Spending review Topic 1]]+Dataset[[#This Row],[2027/28 From - Spending review Topic 2]]+Dataset[[#This Row],[2027/28 From - Spending review Topic 3]]+Dataset[[#This Row],[2027/28 From - Spending review Topic 4]]+Dataset[[#This Row],[2027/28 From - Other reallocations]]","v":0},{"$f":"Dataset[[#This Row],[2025/26 To - Spending review Topic 1]]+Dataset[[#This Row],[2025/26 To - Spending review Topic 2]]+Dataset[[#This Row],[2025/26 To - Spending review Topic 3]]+Dataset[[#This Row],[2025/26 To - Spending review Topic 4]]+Dataset[[#This Row],[2025/26 To - Other reallocations]]","v":0},{"$f":"Dataset[[#This Row],[2026/27 To - Spending review Topic 1]]+Dataset[[#This Row],[2026/27 To - Spending review Topic 2]]+Dataset[[#This Row],[2026/27 To - Spending review Topic 3]]+Dataset[[#This Row],[2026/27 To - Spending review Topic 4]]+Dataset[[#This Row],[2026/27 To - Other reallocations]]","v":0},{"$f":"Dataset[[#This Row],[2027/28 To - Spending review Topic 1]]+Dataset[[#This Row],[2027/28 To - Spending review Topic 2]]+Dataset[[#This Row],[2027/28 To - Spending review Topic 3]]+Dataset[[#This Row],[2027/28 To - Spending review Topic 4]]+Dataset[[#This Row],[2027/28 To - Other reallocations]]","v":0},{"$f":"Dataset[[#This Row],[2025/26 Reduction]]+Dataset[[#This Row],[2025/26 From - Total]]","v":0},{"$f":"Dataset[[#This Row],[2026/27 Reduction]]+Dataset[[#This Row],[2026/27 From - Total]]","v":0},{"$f":"Dataset[[#This Row],[2027/28 Reduction]]+Dataset[[#This Row],[2027/28 From - Total]]","v":0},{"$f":"Dataset[[#This Row],[2024/25 Reduction]]","v":0},{"$f":"SUM(Dataset[[#This Row],[2025/26 Reduction]],Dataset[[#This Row],[2025/26 From - Total]],Dataset[[#This Row],[2025/26 To - Total]])","v":0},{"$f":"SUM(Dataset[[#This Row],[2026/27 Reduction]],Dataset[[#This Row],[2026/27 From - Total]],Dataset[[#This Row],[2026/27 To - Total]])","v":0},{"$f":"SUM(Dataset[[#This Row],[2027/28 Reduction]],Dataset[[#This Row],[2027/28 From - Total]],Dataset[[#This Row],[2027/28 To - Total]])","v":0},{"$f":"Dataset[[#This Row],[2024/25 Baseline]]+Dataset[[#This Row],[2024/25 Total change]]","v":0},{"$f":"Dataset[[#This Row],[2025/26 Baseline]]+Dataset[[#This Row],[2025/26 Total change]]","v":0},{"$f":"Dataset[[#This Row],[2026/27 Baseline]]+Dataset[[#This Row],[2026/27 Total change]]","v":0},{"$f":"Dataset[[#This Row],[2027/28 Baseline]]+Dataset[[#This Row],[2027/28 Total change]]","v":0}]
["NAT|Non-transfer item","40|Travel and subsistence","2025_26","MTEC2025",40,1,3,51416,144,"40","01","03","051416","000144","40|01|03|000144","01","01","02","37","37","01|01|02|37|37","National","Transport","Administration","Corporate Services","Non-transfer item","Current","Current payments","Goods and services","Travel and subsistence","Travel and subsistence","Economic development","Economic regulation and infrastructure","NAT",1462,3402,3701,8714,18548,18548,20507,7419,8003,8369,8747,null,null,null,null,null,null,null,null,null,null,null,null,null,null,null,null,null,null,null,null,null,null,null,null,null,null,null,null,null,null,null,null,null,null,{"$f":"Dataset[[#This Row],[2025/26 From - Spending review Topic 1]]+Dataset[[#This Row],[2025/26 From - Spending review Topic 2]]+Dataset[[#This Row],[2025/26 From - Spending review Topic 3]]+Dataset[[#This Row],[2025/26 From - Spending review Topic 4]]+Dataset[[#This Row],[2025/26 From - Other reallocations]]","v":0},{"$f":"Dataset[[#This Row],[2026/27 From - Spending review Topic 1]]+Dataset[[#This Row],[2026/27 From - Spending review Topic 2]]+Dataset[[#This Row],[2026/27 From - Spending review Topic 3]]+Dataset[[#This Row],[2026/27 From - Spending review Topic 4]]+Dataset[[#This Row],[2026/27 From - Other reallocations]]","v":0},{"$f":"Dataset[[#This Row],[2027/28 From - Spending review Topic 1]]+Dataset[[#This Row],[2027/28 From - Spending review Topic 2]]+Dataset[[#This Row],[2027/28 From - Spending review Topic 3]]+Dataset[[#This Row],[2027/28 From - Spending review Topic 4]]+Dataset[[#This Row],[2027/28 From - Other reallocations]]","v":0},{"$f":"Dataset[[#This Row],[2025/26 To - Spending review Topic 1]]+Dataset[[#This Row],[2025/26 To - Spending review Topic 2]]+Dataset[[#This Row],[2025/26 To - Spending review Topic 3]]+Dataset[[#This Row],[2025/26 To - Spending review Topic 4]]+Dataset[[#This Row],[2025/26 To - Other reallocations]]","v":0},{"$f":"Dataset[[#This Row],[2026/27 To - Spending review Topic 1]]+Dataset[[#This Row],[2026/27 To - Spending review Topic 2]]+Dataset[[#This Row],[2026/27 To - Spending review Topic 3]]+Dataset[[#This Row],[2026/27 To - Spending review Topic 4]]+Dataset[[#This Row],[2026/27 To - Other reallocations]]","v":0},{"$f":"Dataset[[#This Row],[2027/28 To - Spending review Topic 1]]+Dataset[[#This Row],[2027/28 To - Spending review Topic 2]]+Dataset[[#This Row],[2027/28 To - Spending review Topic 3]]+Dataset[[#This Row],[2027/28 To - Spending review Topic 4]]+Dataset[[#This Row],[2027/28 To - Other reallocations]]","v":0},{"$f":"Dataset[[#This Row],[2025/26 Reduction]]+Dataset[[#This Row],[2025/26 From - Total]]","v":0},{"$f":"Dataset[[#This Row],[2026/27 Reduction]]+Dataset[[#This Row],[2026/27 From - Total]]","v":0},{"$f":"Dataset[[#This Row],[2027/28 Reduction]]+Dataset[[#This Row],[2027/28 From - Total]]","v":0},{"$f":"Dataset[[#This Row],[2024/25 Reduction]]","v":0},{"$f":"SUM(Dataset[[#This Row],[2025/26 Reduction]],Dataset[[#This Row],[2025/26 From - Total]],Dataset[[#This Row],[2025/26 To - Total]])","v":0},{"$f":"SUM(Dataset[[#This Row],[2026/27 Reduction]],Dataset[[#This Row],[2026/27 From - Total]],Dataset[[#This Row],[2026/27 To - Total]])","v":0},{"$f":"SUM(Dataset[[#This Row],[2027/28 Reduction]],Dataset[[#This Row],[2027/28 From - Total]],Dataset[[#This Row],[2027/28 To - Total]])","v":0},{"$f":"Dataset[[#This Row],[2024/25 Baseline]]+Dataset[[#This Row],[2024/25 Total change]]","v":7419},{"$f":"Dataset[[#This Row],[2025/26 Baseline]]+Dataset[[#This Row],[2025/26 Total change]]","v":8003},{"$f":"Dataset[[#This Row],[2026/27 Baseline]]+Dataset[[#This Row],[2026/27 Total change]]","v":8369},{"$f":"Dataset[[#This Row],[2027/28 Baseline]]+Dataset[[#This Row],[2027/28 Total change]]","v":8747}]
["NAT|Non-transfer item","40|Training and development","2025_26","MTEC2025",40,1,3,51417,145,"40","01","03","051417","000145","40|01|03|000145","01","01","02","38","38","01|01|02|38|38","National","Transport","Administration","Corporate Services","Non-transfer item","Current","Current payments","Goods and services","Training and development","Training and development","Economic development","Economic regulation and infrastructure","NAT",613,2361,5187,7036,7036,7036,3729,6694,7221,7552,7894,null,null,null,null,null,null,null,null,null,null,null,null,null,null,null,null,null,null,null,null,null,null,null,null,null,null,null,null,null,null,null,null,null,null,{"$f":"Dataset[[#This Row],[2025/26 From - Spending review Topic 1]]+Dataset[[#This Row],[2025/26 From - Spending review Topic 2]]+Dataset[[#This Row],[2025/26 From - Spending review Topic 3]]+Dataset[[#This Row],[2025/26 From - Spending review Topic 4]]+Dataset[[#This Row],[2025/26 From - Other reallocations]]","v":0},{"$f":"Dataset[[#This Row],[2026/27 From - Spending review Topic 1]]+Dataset[[#This Row],[2026/27 From - Spending review Topic 2]]+Dataset[[#This Row],[2026/27 From - Spending review Topic 3]]+Dataset[[#This Row],[2026/27 From - Spending review Topic 4]]+Dataset[[#This Row],[2026/27 From - Other reallocations]]","v":0},{"$f":"Dataset[[#This Row],[2027/28 From - Spending review Topic 1]]+Dataset[[#This Row],[2027/28 From - Spending review Topic 2]]+Dataset[[#This Row],[2027/28 From - Spending review Topic 3]]+Dataset[[#This Row],[2027/28 From - Spending review Topic 4]]+Dataset[[#This Row],[2027/28 From - Other reallocations]]","v":0},{"$f":"Dataset[[#This Row],[2025/26 To - Spending review Topic 1]]+Dataset[[#This Row],[2025/26 To - Spending review Topic 2]]+Dataset[[#This Row],[2025/26 To - Spending review Topic 3]]+Dataset[[#This Row],[2025/26 To - Spending review Topic 4]]+Dataset[[#This Row],[2025/26 To - Other reallocations]]","v":0},{"$f":"Dataset[[#This Row],[2026/27 To - Spending review Topic 1]]+Dataset[[#This Row],[2026/27 To - Spending review Topic 2]]+Dataset[[#This Row],[2026/27 To - Spending review Topic 3]]+Dataset[[#This Row],[2026/27 To - Spending review Topic 4]]+Dataset[[#This Row],[2026/27 To - Other reallocations]]","v":0},{"$f":"Dataset[[#This Row],[2027/28 To - Spending review Topic 1]]+Dataset[[#This Row],[2027/28 To - Spending review Topic 2]]+Dataset[[#This Row],[2027/28 To - Spending review Topic 3]]+Dataset[[#This Row],[2027/28 To - Spending review Topic 4]]+Dataset[[#This Row],[2027/28 To - Other reallocations]]","v":0},{"$f":"Dataset[[#This Row],[2025/26 Reduction]]+Dataset[[#This Row],[2025/26 From - Total]]","v":0},{"$f":"Dataset[[#This Row],[2026/27 Reduction]]+Dataset[[#This Row],[2026/27 From - Total]]","v":0},{"$f":"Dataset[[#This Row],[2027/28 Reduction]]+Dataset[[#This Row],[2027/28 From - Total]]","v":0},{"$f":"Dataset[[#This Row],[2024/25 Reduction]]","v":0},{"$f":"SUM(Dataset[[#This Row],[2025/26 Reduction]],Dataset[[#This Row],[2025/26 From - Total]],Dataset[[#This Row],[2025/26 To - Total]])","v":0},{"$f":"SUM(Dataset[[#This Row],[2026/27 Reduction]],Dataset[[#This Row],[2026/27 From - Total]],Dataset[[#This Row],[2026/27 To - Total]])","v":0},{"$f":"SUM(Dataset[[#This Row],[2027/28 Reduction]],Dataset[[#This Row],[2027/28 From - Total]],Dataset[[#This Row],[2027/28 To - Total]])","v":0},{"$f":"Dataset[[#This Row],[2024/25 Baseline]]+Dataset[[#This Row],[2024/25 Total change]]","v":6694},{"$f":"Dataset[[#This Row],[2025/26 Baseline]]+Dataset[[#This Row],[2025/26 Total change]]","v":7221},{"$f":"Dataset[[#This Row],[2026/27 Baseline]]+Dataset[[#This Row],[2026/27 Total change]]","v":7552},{"$f":"Dataset[[#This Row],[2027/28 Baseline]]+Dataset[[#This Row],[2027/28 Total change]]","v":7894}]
["NAT|Non-transfer item","40|Operating payments","2025_26","MTEC2025",40,1,3,51418,146,"40","01","03","051418","000146","40|01|03|000146","01","01","02","39","39","01|01|02|39|39","National","Transport","Administration","Corporate Services","Non-transfer item","Current","Current payments","Goods and services","Operating payments","Operating payments","Economic development","Economic regulation and infrastructure","NAT",410,518,501,1066,1129,1129,1050,1243,1341,1402,1465,null,null,null,null,null,null,null,null,null,null,null,null,null,null,null,null,null,null,null,null,null,null,null,null,null,null,null,null,null,null,null,null,null,null,{"$f":"Dataset[[#This Row],[2025/26 From - Spending review Topic 1]]+Dataset[[#This Row],[2025/26 From - Spending review Topic 2]]+Dataset[[#This Row],[2025/26 From - Spending review Topic 3]]+Dataset[[#This Row],[2025/26 From - Spending review Topic 4]]+Dataset[[#This Row],[2025/26 From - Other reallocations]]","v":0},{"$f":"Dataset[[#This Row],[2026/27 From - Spending review Topic 1]]+Dataset[[#This Row],[2026/27 From - Spending review Topic 2]]+Dataset[[#This Row],[2026/27 From - Spending review Topic 3]]+Dataset[[#This Row],[2026/27 From - Spending review Topic 4]]+Dataset[[#This Row],[2026/27 From - Other reallocations]]","v":0},{"$f":"Dataset[[#This Row],[2027/28 From - Spending review Topic 1]]+Dataset[[#This Row],[2027/28 From - Spending review Topic 2]]+Dataset[[#This Row],[2027/28 From - Spending review Topic 3]]+Dataset[[#This Row],[2027/28 From - Spending review Topic 4]]+Dataset[[#This Row],[2027/28 From - Other reallocations]]","v":0},{"$f":"Dataset[[#This Row],[2025/26 To - Spending review Topic 1]]+Dataset[[#This Row],[2025/26 To - Spending review Topic 2]]+Dataset[[#This Row],[2025/26 To - Spending review Topic 3]]+Dataset[[#This Row],[2025/26 To - Spending review Topic 4]]+Dataset[[#This Row],[2025/26 To - Other reallocations]]","v":0},{"$f":"Dataset[[#This Row],[2026/27 To - Spending review Topic 1]]+Dataset[[#This Row],[2026/27 To - Spending review Topic 2]]+Dataset[[#This Row],[2026/27 To - Spending review Topic 3]]+Dataset[[#This Row],[2026/27 To - Spending review Topic 4]]+Dataset[[#This Row],[2026/27 To - Other reallocations]]","v":0},{"$f":"Dataset[[#This Row],[2027/28 To - Spending review Topic 1]]+Dataset[[#This Row],[2027/28 To - Spending review Topic 2]]+Dataset[[#This Row],[2027/28 To - Spending review Topic 3]]+Dataset[[#This Row],[2027/28 To - Spending review Topic 4]]+Dataset[[#This Row],[2027/28 To - Other reallocations]]","v":0},{"$f":"Dataset[[#This Row],[2025/26 Reduction]]+Dataset[[#This Row],[2025/26 From - Total]]","v":0},{"$f":"Dataset[[#This Row],[2026/27 Reduction]]+Dataset[[#This Row],[2026/27 From - Total]]","v":0},{"$f":"Dataset[[#This Row],[2027/28 Reduction]]+Dataset[[#This Row],[2027/28 From - Total]]","v":0},{"$f":"Dataset[[#This Row],[2024/25 Reduction]]","v":0},{"$f":"SUM(Dataset[[#This Row],[2025/26 Reduction]],Dataset[[#This Row],[2025/26 From - Total]],Dataset[[#This Row],[2025/26 To - Total]])","v":0},{"$f":"SUM(Dataset[[#This Row],[2026/27 Reduction]],Dataset[[#This Row],[2026/27 From - Total]],Dataset[[#This Row],[2026/27 To - Total]])","v":0},{"$f":"SUM(Dataset[[#This Row],[2027/28 Reduction]],Dataset[[#This Row],[2027/28 From - Total]],Dataset[[#This Row],[2027/28 To - Total]])","v":0},{"$f":"Dataset[[#This Row],[2024/25 Baseline]]+Dataset[[#This Row],[2024/25 Total change]]","v":1243},{"$f":"Dataset[[#This Row],[2025/26 Baseline]]+Dataset[[#This Row],[2025/26 Total change]]","v":1341},{"$f":"Dataset[[#This Row],[2026/27 Baseline]]+Dataset[[#This Row],[2026/27 Total change]]","v":1402},{"$f":"Dataset[[#This Row],[2027/28 Baseline]]+Dataset[[#This Row],[2027/28 Total change]]","v":1465}]
["NAT|Non-transfer item","40|Venues and facilities","2025_26","MTEC2025",40,1,3,51419,147,"40","01","03","051419","000147","40|01|03|000147","01","01","02","40","40","01|01|02|40|40","National","Transport","Administration","Corporate Services","Non-transfer item","Current","Current payments","Goods and services","Venues and facilities","Venues and facilities","Economic development","Economic regulation and infrastructure","NAT",0,185,55,1683,1083,1083,37,1322,1426,1491,1558,null,null,null,null,null,null,null,null,null,null,null,null,null,null,null,null,null,null,null,null,null,null,null,null,null,null,null,null,null,null,null,null,null,null,{"$f":"Dataset[[#This Row],[2025/26 From - Spending review Topic 1]]+Dataset[[#This Row],[2025/26 From - Spending review Topic 2]]+Dataset[[#This Row],[2025/26 From - Spending review Topic 3]]+Dataset[[#This Row],[2025/26 From - Spending review Topic 4]]+Dataset[[#This Row],[2025/26 From - Other reallocations]]","v":0},{"$f":"Dataset[[#This Row],[2026/27 From - Spending review Topic 1]]+Dataset[[#This Row],[2026/27 From - Spending review Topic 2]]+Dataset[[#This Row],[2026/27 From - Spending review Topic 3]]+Dataset[[#This Row],[2026/27 From - Spending review Topic 4]]+Dataset[[#This Row],[2026/27 From - Other reallocations]]","v":0},{"$f":"Dataset[[#This Row],[2027/28 From - Spending review Topic 1]]+Dataset[[#This Row],[2027/28 From - Spending review Topic 2]]+Dataset[[#This Row],[2027/28 From - Spending review Topic 3]]+Dataset[[#This Row],[2027/28 From - Spending review Topic 4]]+Dataset[[#This Row],[2027/28 From - Other reallocations]]","v":0},{"$f":"Dataset[[#This Row],[2025/26 To - Spending review Topic 1]]+Dataset[[#This Row],[2025/26 To - Spending review Topic 2]]+Dataset[[#This Row],[2025/26 To - Spending review Topic 3]]+Dataset[[#This Row],[2025/26 To - Spending review Topic 4]]+Dataset[[#This Row],[2025/26 To - Other reallocations]]","v":0},{"$f":"Dataset[[#This Row],[2026/27 To - Spending review Topic 1]]+Dataset[[#This Row],[2026/27 To - Spending review Topic 2]]+Dataset[[#This Row],[2026/27 To - Spending review Topic 3]]+Dataset[[#This Row],[2026/27 To - Spending review Topic 4]]+Dataset[[#This Row],[2026/27 To - Other reallocations]]","v":0},{"$f":"Dataset[[#This Row],[2027/28 To - Spending review Topic 1]]+Dataset[[#This Row],[2027/28 To - Spending review Topic 2]]+Dataset[[#This Row],[2027/28 To - Spending review Topic 3]]+Dataset[[#This Row],[2027/28 To - Spending review Topic 4]]+Dataset[[#This Row],[2027/28 To - Other reallocations]]","v":0},{"$f":"Dataset[[#This Row],[2025/26 Reduction]]+Dataset[[#This Row],[2025/26 From - Total]]","v":0},{"$f":"Dataset[[#This Row],[2026/27 Reduction]]+Dataset[[#This Row],[2026/27 From - Total]]","v":0},{"$f":"Dataset[[#This Row],[2027/28 Reduction]]+Dataset[[#This Row],[2027/28 From - Total]]","v":0},{"$f":"Dataset[[#This Row],[2024/25 Reduction]]","v":0},{"$f":"SUM(Dataset[[#This Row],[2025/26 Reduction]],Dataset[[#This Row],[2025/26 From - Total]],Dataset[[#This Row],[2025/26 To - Total]])","v":0},{"$f":"SUM(Dataset[[#This Row],[2026/27 Reduction]],Dataset[[#This Row],[2026/27 From - Total]],Dataset[[#This Row],[2026/27 To - Total]])","v":0},{"$f":"SUM(Dataset[[#This Row],[2027/28 Reduction]],Dataset[[#This Row],[2027/28 From - Total]],Dataset[[#This Row],[2027/28 To - Total]])","v":0},{"$f":"Dataset[[#This Row],[2024/25 Baseline]]+Dataset[[#This Row],[2024/25 Total change]]","v":1322},{"$f":"Dataset[[#This Row],[2025/26 Baseline]]+Dataset[[#This Row],[2025/26 Total change]]","v":1426},{"$f":"Dataset[[#This Row],[2026/27 Baseline]]+Dataset[[#This Row],[2026/27 Total change]]","v":1491},{"$f":"Dataset[[#This Row],[2027/28 Baseline]]+Dataset[[#This Row],[2027/28 Total change]]","v":1558}]
["NAT|Non-transfer item","40|Interest (Incl. interest on unitary payments (PPP))","2025_26","MTEC2025",40,1,3,51420,148,"40","01","03","051420","000148","40|01|03|000148","01","01","03","41","41","01|01|03|41|41","National","Transport","Administration","Corporate Services","Non-transfer item","Current","Current payments","Interest and rent on land","Interest (Incl. interest on unitary payments (PPP))","Interest (Incl. interest on unitary payments (PPP))","Economic development","Economic regulation and infrastructure","NAT",0,0,0,0,0,0,null,0,0,0,0,null,null,null,null,null,null,null,null,null,null,null,null,null,null,null,null,null,null,null,null,null,null,null,null,null,null,null,null,null,null,null,null,null,null,{"$f":"Dataset[[#This Row],[2025/26 From - Spending review Topic 1]]+Dataset[[#This Row],[2025/26 From - Spending review Topic 2]]+Dataset[[#This Row],[2025/26 From - Spending review Topic 3]]+Dataset[[#This Row],[2025/26 From - Spending review Topic 4]]+Dataset[[#This Row],[2025/26 From - Other reallocations]]","v":0},{"$f":"Dataset[[#This Row],[2026/27 From - Spending review Topic 1]]+Dataset[[#This Row],[2026/27 From - Spending review Topic 2]]+Dataset[[#This Row],[2026/27 From - Spending review Topic 3]]+Dataset[[#This Row],[2026/27 From - Spending review Topic 4]]+Dataset[[#This Row],[2026/27 From - Other reallocations]]","v":0},{"$f":"Dataset[[#This Row],[2027/28 From - Spending review Topic 1]]+Dataset[[#This Row],[2027/28 From - Spending review Topic 2]]+Dataset[[#This Row],[2027/28 From - Spending review Topic 3]]+Dataset[[#This Row],[2027/28 From - Spending review Topic 4]]+Dataset[[#This Row],[2027/28 From - Other reallocations]]","v":0},{"$f":"Dataset[[#This Row],[2025/26 To - Spending review Topic 1]]+Dataset[[#This Row],[2025/26 To - Spending review Topic 2]]+Dataset[[#This Row],[2025/26 To - Spending review Topic 3]]+Dataset[[#This Row],[2025/26 To - Spending review Topic 4]]+Dataset[[#This Row],[2025/26 To - Other reallocations]]","v":0},{"$f":"Dataset[[#This Row],[2026/27 To - Spending review Topic 1]]+Dataset[[#This Row],[2026/27 To - Spending review Topic 2]]+Dataset[[#This Row],[2026/27 To - Spending review Topic 3]]+Dataset[[#This Row],[2026/27 To - Spending review Topic 4]]+Dataset[[#This Row],[2026/27 To - Other reallocations]]","v":0},{"$f":"Dataset[[#This Row],[2027/28 To - Spending review Topic 1]]+Dataset[[#This Row],[2027/28 To - Spending review Topic 2]]+Dataset[[#This Row],[2027/28 To - Spending review Topic 3]]+Dataset[[#This Row],[2027/28 To - Spending review Topic 4]]+Dataset[[#This Row],[2027/28 To - Other reallocations]]","v":0},{"$f":"Dataset[[#This Row],[2025/26 Reduction]]+Dataset[[#This Row],[2025/26 From - Total]]","v":0},{"$f":"Dataset[[#This Row],[2026/27 Reduction]]+Dataset[[#This Row],[2026/27 From - Total]]","v":0},{"$f":"Dataset[[#This Row],[2027/28 Reduction]]+Dataset[[#This Row],[2027/28 From - Total]]","v":0},{"$f":"Dataset[[#This Row],[2024/25 Reduction]]","v":0},{"$f":"SUM(Dataset[[#This Row],[2025/26 Reduction]],Dataset[[#This Row],[2025/26 From - Total]],Dataset[[#This Row],[2025/26 To - Total]])","v":0},{"$f":"SUM(Dataset[[#This Row],[2026/27 Reduction]],Dataset[[#This Row],[2026/27 From - Total]],Dataset[[#This Row],[2026/27 To - Total]])","v":0},{"$f":"SUM(Dataset[[#This Row],[2027/28 Reduction]],Dataset[[#This Row],[2027/28 From - Total]],Dataset[[#This Row],[2027/28 To - Total]])","v":0},{"$f":"Dataset[[#This Row],[2024/25 Baseline]]+Dataset[[#This Row],[2024/25 Total change]]","v":0},{"$f":"Dataset[[#This Row],[2025/26 Baseline]]+Dataset[[#This Row],[2025/26 Total change]]","v":0},{"$f":"Dataset[[#This Row],[2026/27 Baseline]]+Dataset[[#This Row],[2026/27 Total change]]","v":0},{"$f":"Dataset[[#This Row],[2027/28 Baseline]]+Dataset[[#This Row],[2027/28 Total change]]","v":0}]
["NAT|Non-transfer item","40|Rent on land","2025_26","MTEC2025",40,1,3,51421,149,"40","01","03","051421","000149","40|01|03|000149","01","01","03","42","42","01|01|03|42|42","National","Transport","Administration","Corporate Services","Non-transfer item","Current","Current payments","Interest and rent on land","Rent on land","Rent on land","Economic development","Economic regulation and infrastructure","NAT",0,0,0,0,0,0,null,0,0,0,0,null,null,null,null,null,null,null,null,null,null,null,null,null,null,null,null,null,null,null,null,null,null,null,null,null,null,null,null,null,null,null,null,null,null,{"$f":"Dataset[[#This Row],[2025/26 From - Spending review Topic 1]]+Dataset[[#This Row],[2025/26 From - Spending review Topic 2]]+Dataset[[#This Row],[2025/26 From - Spending review Topic 3]]+Dataset[[#This Row],[2025/26 From - Spending review Topic 4]]+Dataset[[#This Row],[2025/26 From - Other reallocations]]","v":0},{"$f":"Dataset[[#This Row],[2026/27 From - Spending review Topic 1]]+Dataset[[#This Row],[2026/27 From - Spending review Topic 2]]+Dataset[[#This Row],[2026/27 From - Spending review Topic 3]]+Dataset[[#This Row],[2026/27 From - Spending review Topic 4]]+Dataset[[#This Row],[2026/27 From - Other reallocations]]","v":0},{"$f":"Dataset[[#This Row],[2027/28 From - Spending review Topic 1]]+Dataset[[#This Row],[2027/28 From - Spending review Topic 2]]+Dataset[[#This Row],[2027/28 From - Spending review Topic 3]]+Dataset[[#This Row],[2027/28 From - Spending review Topic 4]]+Dataset[[#This Row],[2027/28 From - Other reallocations]]","v":0},{"$f":"Dataset[[#This Row],[2025/26 To - Spending review Topic 1]]+Dataset[[#This Row],[2025/26 To - Spending review Topic 2]]+Dataset[[#This Row],[2025/26 To - Spending review Topic 3]]+Dataset[[#This Row],[2025/26 To - Spending review Topic 4]]+Dataset[[#This Row],[2025/26 To - Other reallocations]]","v":0},{"$f":"Dataset[[#This Row],[2026/27 To - Spending review Topic 1]]+Dataset[[#This Row],[2026/27 To - Spending review Topic 2]]+Dataset[[#This Row],[2026/27 To - Spending review Topic 3]]+Dataset[[#This Row],[2026/27 To - Spending review Topic 4]]+Dataset[[#This Row],[2026/27 To - Other reallocations]]","v":0},{"$f":"Dataset[[#This Row],[2027/28 To - Spending review Topic 1]]+Dataset[[#This Row],[2027/28 To - Spending review Topic 2]]+Dataset[[#This Row],[2027/28 To - Spending review Topic 3]]+Dataset[[#This Row],[2027/28 To - Spending review Topic 4]]+Dataset[[#This Row],[2027/28 To - Other reallocations]]","v":0},{"$f":"Dataset[[#This Row],[2025/26 Reduction]]+Dataset[[#This Row],[2025/26 From - Total]]","v":0},{"$f":"Dataset[[#This Row],[2026/27 Reduction]]+Dataset[[#This Row],[2026/27 From - Total]]","v":0},{"$f":"Dataset[[#This Row],[2027/28 Reduction]]+Dataset[[#This Row],[2027/28 From - Total]]","v":0},{"$f":"Dataset[[#This Row],[2024/25 Reduction]]","v":0},{"$f":"SUM(Dataset[[#This Row],[2025/26 Reduction]],Dataset[[#This Row],[2025/26 From - Total]],Dataset[[#This Row],[2025/26 To - Total]])","v":0},{"$f":"SUM(Dataset[[#This Row],[2026/27 Reduction]],Dataset[[#This Row],[2026/27 From - Total]],Dataset[[#This Row],[2026/27 To - Total]])","v":0},{"$f":"SUM(Dataset[[#This Row],[2027/28 Reduction]],Dataset[[#This Row],[2027/28 From - Total]],Dataset[[#This Row],[2027/28 To - Total]])","v":0},{"$f":"Dataset[[#This Row],[2024/25 Baseline]]+Dataset[[#This Row],[2024/25 Total change]]","v":0},{"$f":"Dataset[[#This Row],[2025/26 Baseline]]+Dataset[[#This Row],[2025/26 Total change]]","v":0},{"$f":"Dataset[[#This Row],[2026/27 Baseline]]+Dataset[[#This Row],[2026/27 Total change]]","v":0},{"$f":"Dataset[[#This Row],[2027/28 Baseline]]+Dataset[[#This Row],[2027/28 Total change]]","v":0}]
["NAT|Municipal agencies and funds","40|Municipal bank accounts","2025_26","MTEC2025",40,1,3,51422,150,"40","01","03","051422","000150","40|01|03|000150","01","02","04","44","45","01|02|04|44|45","National","Transport","Administration","Corporate Services","Municipal agencies and funds","Current","Transfers and subsidies","Provinces and municipalities","Municipalities","Municipal bank accounts","Economic development","Economic regulation and infrastructure","NAT",0,13,0,0,0,0,null,0,0,0,0,null,null,null,null,null,null,null,null,null,null,null,null,null,null,null,null,null,null,null,null,null,null,null,null,null,null,null,null,null,null,null,null,null,null,{"$f":"Dataset[[#This Row],[2025/26 From - Spending review Topic 1]]+Dataset[[#This Row],[2025/26 From - Spending review Topic 2]]+Dataset[[#This Row],[2025/26 From - Spending review Topic 3]]+Dataset[[#This Row],[2025/26 From - Spending review Topic 4]]+Dataset[[#This Row],[2025/26 From - Other reallocations]]","v":0},{"$f":"Dataset[[#This Row],[2026/27 From - Spending review Topic 1]]+Dataset[[#This Row],[2026/27 From - Spending review Topic 2]]+Dataset[[#This Row],[2026/27 From - Spending review Topic 3]]+Dataset[[#This Row],[2026/27 From - Spending review Topic 4]]+Dataset[[#This Row],[2026/27 From - Other reallocations]]","v":0},{"$f":"Dataset[[#This Row],[2027/28 From - Spending review Topic 1]]+Dataset[[#This Row],[2027/28 From - Spending review Topic 2]]+Dataset[[#This Row],[2027/28 From - Spending review Topic 3]]+Dataset[[#This Row],[2027/28 From - Spending review Topic 4]]+Dataset[[#This Row],[2027/28 From - Other reallocations]]","v":0},{"$f":"Dataset[[#This Row],[2025/26 To - Spending review Topic 1]]+Dataset[[#This Row],[2025/26 To - Spending review Topic 2]]+Dataset[[#This Row],[2025/26 To - Spending review Topic 3]]+Dataset[[#This Row],[2025/26 To - Spending review Topic 4]]+Dataset[[#This Row],[2025/26 To - Other reallocations]]","v":0},{"$f":"Dataset[[#This Row],[2026/27 To - Spending review Topic 1]]+Dataset[[#This Row],[2026/27 To - Spending review Topic 2]]+Dataset[[#This Row],[2026/27 To - Spending review Topic 3]]+Dataset[[#This Row],[2026/27 To - Spending review Topic 4]]+Dataset[[#This Row],[2026/27 To - Other reallocations]]","v":0},{"$f":"Dataset[[#This Row],[2027/28 To - Spending review Topic 1]]+Dataset[[#This Row],[2027/28 To - Spending review Topic 2]]+Dataset[[#This Row],[2027/28 To - Spending review Topic 3]]+Dataset[[#This Row],[2027/28 To - Spending review Topic 4]]+Dataset[[#This Row],[2027/28 To - Other reallocations]]","v":0},{"$f":"Dataset[[#This Row],[2025/26 Reduction]]+Dataset[[#This Row],[2025/26 From - Total]]","v":0},{"$f":"Dataset[[#This Row],[2026/27 Reduction]]+Dataset[[#This Row],[2026/27 From - Total]]","v":0},{"$f":"Dataset[[#This Row],[2027/28 Reduction]]+Dataset[[#This Row],[2027/28 From - Total]]","v":0},{"$f":"Dataset[[#This Row],[2024/25 Reduction]]","v":0},{"$f":"SUM(Dataset[[#This Row],[2025/26 Reduction]],Dataset[[#This Row],[2025/26 From - Total]],Dataset[[#This Row],[2025/26 To - Total]])","v":0},{"$f":"SUM(Dataset[[#This Row],[2026/27 Reduction]],Dataset[[#This Row],[2026/27 From - Total]],Dataset[[#This Row],[2026/27 To - Total]])","v":0},{"$f":"SUM(Dataset[[#This Row],[2027/28 Reduction]],Dataset[[#This Row],[2027/28 From - Total]],Dataset[[#This Row],[2027/28 To - Total]])","v":0},{"$f":"Dataset[[#This Row],[2024/25 Baseline]]+Dataset[[#This Row],[2024/25 Total change]]","v":0},{"$f":"Dataset[[#This Row],[2025/26 Baseline]]+Dataset[[#This Row],[2025/26 Total change]]","v":0},{"$f":"Dataset[[#This Row],[2026/27 Baseline]]+Dataset[[#This Row],[2026/27 Total change]]","v":0},{"$f":"Dataset[[#This Row],[2027/28 Baseline]]+Dataset[[#This Row],[2027/28 Total change]]","v":0}]
["NAT|Transport Education and Training Authority","40|Departmental agencies (non-business entities)","2025_26","MTEC2025",40,1,3,51423,151,"40","01","03","051423","000151","40|01|03|000151","01","02","05","46","48","01|02|05|46|48","National","Transport","Administration","Corporate Services","Transport Education and Training Authority","Current","Transfers and subsidies","Departmental agencies and accounts","Departmental agencies (non-business entities)","Departmental agencies (non-business entities)","Economic development","Economic regulation and infrastructure","NAT",1368,1443,1515,1582,1582,1582,null,1653,1727,1806,1888,null,null,null,null,null,null,null,null,null,null,null,null,null,null,null,null,null,null,null,null,null,null,null,null,null,null,null,null,null,null,null,null,null,null,{"$f":"Dataset[[#This Row],[2025/26 From - Spending review Topic 1]]+Dataset[[#This Row],[2025/26 From - Spending review Topic 2]]+Dataset[[#This Row],[2025/26 From - Spending review Topic 3]]+Dataset[[#This Row],[2025/26 From - Spending review Topic 4]]+Dataset[[#This Row],[2025/26 From - Other reallocations]]","v":0},{"$f":"Dataset[[#This Row],[2026/27 From - Spending review Topic 1]]+Dataset[[#This Row],[2026/27 From - Spending review Topic 2]]+Dataset[[#This Row],[2026/27 From - Spending review Topic 3]]+Dataset[[#This Row],[2026/27 From - Spending review Topic 4]]+Dataset[[#This Row],[2026/27 From - Other reallocations]]","v":0},{"$f":"Dataset[[#This Row],[2027/28 From - Spending review Topic 1]]+Dataset[[#This Row],[2027/28 From - Spending review Topic 2]]+Dataset[[#This Row],[2027/28 From - Spending review Topic 3]]+Dataset[[#This Row],[2027/28 From - Spending review Topic 4]]+Dataset[[#This Row],[2027/28 From - Other reallocations]]","v":0},{"$f":"Dataset[[#This Row],[2025/26 To - Spending review Topic 1]]+Dataset[[#This Row],[2025/26 To - Spending review Topic 2]]+Dataset[[#This Row],[2025/26 To - Spending review Topic 3]]+Dataset[[#This Row],[2025/26 To - Spending review Topic 4]]+Dataset[[#This Row],[2025/26 To - Other reallocations]]","v":0},{"$f":"Dataset[[#This Row],[2026/27 To - Spending review Topic 1]]+Dataset[[#This Row],[2026/27 To - Spending review Topic 2]]+Dataset[[#This Row],[2026/27 To - Spending review Topic 3]]+Dataset[[#This Row],[2026/27 To - Spending review Topic 4]]+Dataset[[#This Row],[2026/27 To - Other reallocations]]","v":0},{"$f":"Dataset[[#This Row],[2027/28 To - Spending review Topic 1]]+Dataset[[#This Row],[2027/28 To - Spending review Topic 2]]+Dataset[[#This Row],[2027/28 To - Spending review Topic 3]]+Dataset[[#This Row],[2027/28 To - Spending review Topic 4]]+Dataset[[#This Row],[2027/28 To - Other reallocations]]","v":0},{"$f":"Dataset[[#This Row],[2025/26 Reduction]]+Dataset[[#This Row],[2025/26 From - Total]]","v":0},{"$f":"Dataset[[#This Row],[2026/27 Reduction]]+Dataset[[#This Row],[2026/27 From - Total]]","v":0},{"$f":"Dataset[[#This Row],[2027/28 Reduction]]+Dataset[[#This Row],[2027/28 From - Total]]","v":0},{"$f":"Dataset[[#This Row],[2024/25 Reduction]]","v":0},{"$f":"SUM(Dataset[[#This Row],[2025/26 Reduction]],Dataset[[#This Row],[2025/26 From - Total]],Dataset[[#This Row],[2025/26 To - Total]])","v":0},{"$f":"SUM(Dataset[[#This Row],[2026/27 Reduction]],Dataset[[#This Row],[2026/27 From - Total]],Dataset[[#This Row],[2026/27 To - Total]])","v":0},{"$f":"SUM(Dataset[[#This Row],[2027/28 Reduction]],Dataset[[#This Row],[2027/28 From - Total]],Dataset[[#This Row],[2027/28 To - Total]])","v":0},{"$f":"Dataset[[#This Row],[2024/25 Baseline]]+Dataset[[#This Row],[2024/25 Total change]]","v":1653},{"$f":"Dataset[[#This Row],[2025/26 Baseline]]+Dataset[[#This Row],[2025/26 Total change]]","v":1727},{"$f":"Dataset[[#This Row],[2026/27 Baseline]]+Dataset[[#This Row],[2026/27 Total change]]","v":1806},{"$f":"Dataset[[#This Row],[2027/28 Baseline]]+Dataset[[#This Row],[2027/28 Total change]]","v":1888}]
["NAT|Employee social benefits","40|Social benefits","2025_26","MTEC2025",40,1,3,51424,152,"40","01","03","051424","000152","40|01|03|000152","01","02","10","52","56","01|02|10|52|56","National","Transport","Administration","Corporate Services","Employee social benefits","Current","Transfers and subsidies","Households","Social benefits","Social benefits","Economic development","Economic regulation and infrastructure","NAT",1044,432,789,256,256,256,null,267,279,292,305,null,null,null,null,null,null,null,null,null,null,null,null,null,null,null,null,null,null,null,null,null,null,null,null,null,null,null,null,null,null,null,null,null,null,{"$f":"Dataset[[#This Row],[2025/26 From - Spending review Topic 1]]+Dataset[[#This Row],[2025/26 From - Spending review Topic 2]]+Dataset[[#This Row],[2025/26 From - Spending review Topic 3]]+Dataset[[#This Row],[2025/26 From - Spending review Topic 4]]+Dataset[[#This Row],[2025/26 From - Other reallocations]]","v":0},{"$f":"Dataset[[#This Row],[2026/27 From - Spending review Topic 1]]+Dataset[[#This Row],[2026/27 From - Spending review Topic 2]]+Dataset[[#This Row],[2026/27 From - Spending review Topic 3]]+Dataset[[#This Row],[2026/27 From - Spending review Topic 4]]+Dataset[[#This Row],[2026/27 From - Other reallocations]]","v":0},{"$f":"Dataset[[#This Row],[2027/28 From - Spending review Topic 1]]+Dataset[[#This Row],[2027/28 From - Spending review Topic 2]]+Dataset[[#This Row],[2027/28 From - Spending review Topic 3]]+Dataset[[#This Row],[2027/28 From - Spending review Topic 4]]+Dataset[[#This Row],[2027/28 From - Other reallocations]]","v":0},{"$f":"Dataset[[#This Row],[2025/26 To - Spending review Topic 1]]+Dataset[[#This Row],[2025/26 To - Spending review Topic 2]]+Dataset[[#This Row],[2025/26 To - Spending review Topic 3]]+Dataset[[#This Row],[2025/26 To - Spending review Topic 4]]+Dataset[[#This Row],[2025/26 To - Other reallocations]]","v":0},{"$f":"Dataset[[#This Row],[2026/27 To - Spending review Topic 1]]+Dataset[[#This Row],[2026/27 To - Spending review Topic 2]]+Dataset[[#This Row],[2026/27 To - Spending review Topic 3]]+Dataset[[#This Row],[2026/27 To - Spending review Topic 4]]+Dataset[[#This Row],[2026/27 To - Other reallocations]]","v":0},{"$f":"Dataset[[#This Row],[2027/28 To - Spending review Topic 1]]+Dataset[[#This Row],[2027/28 To - Spending review Topic 2]]+Dataset[[#This Row],[2027/28 To - Spending review Topic 3]]+Dataset[[#This Row],[2027/28 To - Spending review Topic 4]]+Dataset[[#This Row],[2027/28 To - Other reallocations]]","v":0},{"$f":"Dataset[[#This Row],[2025/26 Reduction]]+Dataset[[#This Row],[2025/26 From - Total]]","v":0},{"$f":"Dataset[[#This Row],[2026/27 Reduction]]+Dataset[[#This Row],[2026/27 From - Total]]","v":0},{"$f":"Dataset[[#This Row],[2027/28 Reduction]]+Dataset[[#This Row],[2027/28 From - Total]]","v":0},{"$f":"Dataset[[#This Row],[2024/25 Reduction]]","v":0},{"$f":"SUM(Dataset[[#This Row],[2025/26 Reduction]],Dataset[[#This Row],[2025/26 From - Total]],Dataset[[#This Row],[2025/26 To - Total]])","v":0},{"$f":"SUM(Dataset[[#This Row],[2026/27 Reduction]],Dataset[[#This Row],[2026/27 From - Total]],Dataset[[#This Row],[2026/27 To - Total]])","v":0},{"$f":"SUM(Dataset[[#This Row],[2027/28 Reduction]],Dataset[[#This Row],[2027/28 From - Total]],Dataset[[#This Row],[2027/28 To - Total]])","v":0},{"$f":"Dataset[[#This Row],[2024/25 Baseline]]+Dataset[[#This Row],[2024/25 Total change]]","v":267},{"$f":"Dataset[[#This Row],[2025/26 Baseline]]+Dataset[[#This Row],[2025/26 Total change]]","v":279},{"$f":"Dataset[[#This Row],[2026/27 Baseline]]+Dataset[[#This Row],[2026/27 Total change]]","v":292},{"$f":"Dataset[[#This Row],[2027/28 Baseline]]+Dataset[[#This Row],[2027/28 Total change]]","v":305}]
["NAT|Bursaries for non-employees","40|Other transfers to households","2025_26","MTEC2025",40,1,3,51425,153,"40","01","03","051425","000153","40|01|03|000153","01","02","10","53","57","01|02|10|53|57","National","Transport","Administration","Corporate Services","Bursaries for non-employees","Current","Transfers and subsidies","Households","Other transfers to households","Other transfers to households","Economic development","Economic regulation and infrastructure","NAT",10526,9542,11135,12815,12815,12815,null,13391,13991,14632,15294,null,null,null,null,null,null,null,null,null,null,null,null,null,null,null,null,null,null,null,null,null,null,null,null,null,null,null,null,null,null,null,null,null,null,{"$f":"Dataset[[#This Row],[2025/26 From - Spending review Topic 1]]+Dataset[[#This Row],[2025/26 From - Spending review Topic 2]]+Dataset[[#This Row],[2025/26 From - Spending review Topic 3]]+Dataset[[#This Row],[2025/26 From - Spending review Topic 4]]+Dataset[[#This Row],[2025/26 From - Other reallocations]]","v":0},{"$f":"Dataset[[#This Row],[2026/27 From - Spending review Topic 1]]+Dataset[[#This Row],[2026/27 From - Spending review Topic 2]]+Dataset[[#This Row],[2026/27 From - Spending review Topic 3]]+Dataset[[#This Row],[2026/27 From - Spending review Topic 4]]+Dataset[[#This Row],[2026/27 From - Other reallocations]]","v":0},{"$f":"Dataset[[#This Row],[2027/28 From - Spending review Topic 1]]+Dataset[[#This Row],[2027/28 From - Spending review Topic 2]]+Dataset[[#This Row],[2027/28 From - Spending review Topic 3]]+Dataset[[#This Row],[2027/28 From - Spending review Topic 4]]+Dataset[[#This Row],[2027/28 From - Other reallocations]]","v":0},{"$f":"Dataset[[#This Row],[2025/26 To - Spending review Topic 1]]+Dataset[[#This Row],[2025/26 To - Spending review Topic 2]]+Dataset[[#This Row],[2025/26 To - Spending review Topic 3]]+Dataset[[#This Row],[2025/26 To - Spending review Topic 4]]+Dataset[[#This Row],[2025/26 To - Other reallocations]]","v":0},{"$f":"Dataset[[#This Row],[2026/27 To - Spending review Topic 1]]+Dataset[[#This Row],[2026/27 To - Spending review Topic 2]]+Dataset[[#This Row],[2026/27 To - Spending review Topic 3]]+Dataset[[#This Row],[2026/27 To - Spending review Topic 4]]+Dataset[[#This Row],[2026/27 To - Other reallocations]]","v":0},{"$f":"Dataset[[#This Row],[2027/28 To - Spending review Topic 1]]+Dataset[[#This Row],[2027/28 To - Spending review Topic 2]]+Dataset[[#This Row],[2027/28 To - Spending review Topic 3]]+Dataset[[#This Row],[2027/28 To - Spending review Topic 4]]+Dataset[[#This Row],[2027/28 To - Other reallocations]]","v":0},{"$f":"Dataset[[#This Row],[2025/26 Reduction]]+Dataset[[#This Row],[2025/26 From - Total]]","v":0},{"$f":"Dataset[[#This Row],[2026/27 Reduction]]+Dataset[[#This Row],[2026/27 From - Total]]","v":0},{"$f":"Dataset[[#This Row],[2027/28 Reduction]]+Dataset[[#This Row],[2027/28 From - Total]]","v":0},{"$f":"Dataset[[#This Row],[2024/25 Reduction]]","v":0},{"$f":"SUM(Dataset[[#This Row],[2025/26 Reduction]],Dataset[[#This Row],[2025/26 From - Total]],Dataset[[#This Row],[2025/26 To - Total]])","v":0},{"$f":"SUM(Dataset[[#This Row],[2026/27 Reduction]],Dataset[[#This Row],[2026/27 From - Total]],Dataset[[#This Row],[2026/27 To - Total]])","v":0},{"$f":"SUM(Dataset[[#This Row],[2027/28 Reduction]],Dataset[[#This Row],[2027/28 From - Total]],Dataset[[#This Row],[2027/28 To - Total]])","v":0},{"$f":"Dataset[[#This Row],[2024/25 Baseline]]+Dataset[[#This Row],[2024/25 Total change]]","v":13391},{"$f":"Dataset[[#This Row],[2025/26 Baseline]]+Dataset[[#This Row],[2025/26 Total change]]","v":13991},{"$f":"Dataset[[#This Row],[2026/27 Baseline]]+Dataset[[#This Row],[2026/27 Total change]]","v":14632},{"$f":"Dataset[[#This Row],[2027/28 Baseline]]+Dataset[[#This Row],[2027/28 Total change]]","v":15294}]
["NAT|Non-transfer item","40|Buildings","2025_26","MTEC2025",40,1,3,51426,154,"40","01","03","051426","000154","40|01|03|000154","02","03","11","54","58","02|03|11|54|58","National","Transport","Administration","Corporate Services","Non-transfer item","Capital","Payments for capital assets","Buildings and other fixed structures","Buildings","Buildings","Economic development","Economic regulation and infrastructure","NAT",0,0,0,0,0,0,null,0,0,0,0,null,null,null,null,null,null,null,null,null,null,null,null,null,null,null,null,null,null,null,null,null,null,null,null,null,null,null,null,null,null,null,null,null,null,{"$f":"Dataset[[#This Row],[2025/26 From - Spending review Topic 1]]+Dataset[[#This Row],[2025/26 From - Spending review Topic 2]]+Dataset[[#This Row],[2025/26 From - Spending review Topic 3]]+Dataset[[#This Row],[2025/26 From - Spending review Topic 4]]+Dataset[[#This Row],[2025/26 From - Other reallocations]]","v":0},{"$f":"Dataset[[#This Row],[2026/27 From - Spending review Topic 1]]+Dataset[[#This Row],[2026/27 From - Spending review Topic 2]]+Dataset[[#This Row],[2026/27 From - Spending review Topic 3]]+Dataset[[#This Row],[2026/27 From - Spending review Topic 4]]+Dataset[[#This Row],[2026/27 From - Other reallocations]]","v":0},{"$f":"Dataset[[#This Row],[2027/28 From - Spending review Topic 1]]+Dataset[[#This Row],[2027/28 From - Spending review Topic 2]]+Dataset[[#This Row],[2027/28 From - Spending review Topic 3]]+Dataset[[#This Row],[2027/28 From - Spending review Topic 4]]+Dataset[[#This Row],[2027/28 From - Other reallocations]]","v":0},{"$f":"Dataset[[#This Row],[2025/26 To - Spending review Topic 1]]+Dataset[[#This Row],[2025/26 To - Spending review Topic 2]]+Dataset[[#This Row],[2025/26 To - Spending review Topic 3]]+Dataset[[#This Row],[2025/26 To - Spending review Topic 4]]+Dataset[[#This Row],[2025/26 To - Other reallocations]]","v":0},{"$f":"Dataset[[#This Row],[2026/27 To - Spending review Topic 1]]+Dataset[[#This Row],[2026/27 To - Spending review Topic 2]]+Dataset[[#This Row],[2026/27 To - Spending review Topic 3]]+Dataset[[#This Row],[2026/27 To - Spending review Topic 4]]+Dataset[[#This Row],[2026/27 To - Other reallocations]]","v":0},{"$f":"Dataset[[#This Row],[2027/28 To - Spending review Topic 1]]+Dataset[[#This Row],[2027/28 To - Spending review Topic 2]]+Dataset[[#This Row],[2027/28 To - Spending review Topic 3]]+Dataset[[#This Row],[2027/28 To - Spending review Topic 4]]+Dataset[[#This Row],[2027/28 To - Other reallocations]]","v":0},{"$f":"Dataset[[#This Row],[2025/26 Reduction]]+Dataset[[#This Row],[2025/26 From - Total]]","v":0},{"$f":"Dataset[[#This Row],[2026/27 Reduction]]+Dataset[[#This Row],[2026/27 From - Total]]","v":0},{"$f":"Dataset[[#This Row],[2027/28 Reduction]]+Dataset[[#This Row],[2027/28 From - Total]]","v":0},{"$f":"Dataset[[#This Row],[2024/25 Reduction]]","v":0},{"$f":"SUM(Dataset[[#This Row],[2025/26 Reduction]],Dataset[[#This Row],[2025/26 From - Total]],Dataset[[#This Row],[2025/26 To - Total]])","v":0},{"$f":"SUM(Dataset[[#This Row],[2026/27 Reduction]],Dataset[[#This Row],[2026/27 From - Total]],Dataset[[#This Row],[2026/27 To - Total]])","v":0},{"$f":"SUM(Dataset[[#This Row],[2027/28 Reduction]],Dataset[[#This Row],[2027/28 From - Total]],Dataset[[#This Row],[2027/28 To - Total]])","v":0},{"$f":"Dataset[[#This Row],[2024/25 Baseline]]+Dataset[[#This Row],[2024/25 Total change]]","v":0},{"$f":"Dataset[[#This Row],[2025/26 Baseline]]+Dataset[[#This Row],[2025/26 Total change]]","v":0},{"$f":"Dataset[[#This Row],[2026/27 Baseline]]+Dataset[[#This Row],[2026/27 Total change]]","v":0},{"$f":"Dataset[[#This Row],[2027/28 Baseline]]+Dataset[[#This Row],[2027/28 Total change]]","v":0}]
["NAT|Non-transfer item","40|Other fixed structures","2025_26","MTEC2025",40,1,3,51427,155,"40","01","03","051427","000155","40|01|03|000155","02","03","11","55","59","02|03|11|55|59","National","Transport","Administration","Corporate Services","Non-transfer item","Capital","Payments for capital assets","Buildings and other fixed structures","Other fixed structures","Other fixed structures","Economic development","Economic regulation and infrastructure","NAT",0,0,99,0,0,0,null,0,0,0,0,null,null,null,null,null,null,null,null,null,null,null,null,null,null,null,null,null,null,null,null,null,null,null,null,null,null,null,null,null,null,null,null,null,null,{"$f":"Dataset[[#This Row],[2025/26 From - Spending review Topic 1]]+Dataset[[#This Row],[2025/26 From - Spending review Topic 2]]+Dataset[[#This Row],[2025/26 From - Spending review Topic 3]]+Dataset[[#This Row],[2025/26 From - Spending review Topic 4]]+Dataset[[#This Row],[2025/26 From - Other reallocations]]","v":0},{"$f":"Dataset[[#This Row],[2026/27 From - Spending review Topic 1]]+Dataset[[#This Row],[2026/27 From - Spending review Topic 2]]+Dataset[[#This Row],[2026/27 From - Spending review Topic 3]]+Dataset[[#This Row],[2026/27 From - Spending review Topic 4]]+Dataset[[#This Row],[2026/27 From - Other reallocations]]","v":0},{"$f":"Dataset[[#This Row],[2027/28 From - Spending review Topic 1]]+Dataset[[#This Row],[2027/28 From - Spending review Topic 2]]+Dataset[[#This Row],[2027/28 From - Spending review Topic 3]]+Dataset[[#This Row],[2027/28 From - Spending review Topic 4]]+Dataset[[#This Row],[2027/28 From - Other reallocations]]","v":0},{"$f":"Dataset[[#This Row],[2025/26 To - Spending review Topic 1]]+Dataset[[#This Row],[2025/26 To - Spending review Topic 2]]+Dataset[[#This Row],[2025/26 To - Spending review Topic 3]]+Dataset[[#This Row],[2025/26 To - Spending review Topic 4]]+Dataset[[#This Row],[2025/26 To - Other reallocations]]","v":0},{"$f":"Dataset[[#This Row],[2026/27 To - Spending review Topic 1]]+Dataset[[#This Row],[2026/27 To - Spending review Topic 2]]+Dataset[[#This Row],[2026/27 To - Spending review Topic 3]]+Dataset[[#This Row],[2026/27 To - Spending review Topic 4]]+Dataset[[#This Row],[2026/27 To - Other reallocations]]","v":0},{"$f":"Dataset[[#This Row],[2027/28 To - Spending review Topic 1]]+Dataset[[#This Row],[2027/28 To - Spending review Topic 2]]+Dataset[[#This Row],[2027/28 To - Spending review Topic 3]]+Dataset[[#This Row],[2027/28 To - Spending review Topic 4]]+Dataset[[#This Row],[2027/28 To - Other reallocations]]","v":0},{"$f":"Dataset[[#This Row],[2025/26 Reduction]]+Dataset[[#This Row],[2025/26 From - Total]]","v":0},{"$f":"Dataset[[#This Row],[2026/27 Reduction]]+Dataset[[#This Row],[2026/27 From - Total]]","v":0},{"$f":"Dataset[[#This Row],[2027/28 Reduction]]+Dataset[[#This Row],[2027/28 From - Total]]","v":0},{"$f":"Dataset[[#This Row],[2024/25 Reduction]]","v":0},{"$f":"SUM(Dataset[[#This Row],[2025/26 Reduction]],Dataset[[#This Row],[2025/26 From - Total]],Dataset[[#This Row],[2025/26 To - Total]])","v":0},{"$f":"SUM(Dataset[[#This Row],[2026/27 Reduction]],Dataset[[#This Row],[2026/27 From - Total]],Dataset[[#This Row],[2026/27 To - Total]])","v":0},{"$f":"SUM(Dataset[[#This Row],[2027/28 Reduction]],Dataset[[#This Row],[2027/28 From - Total]],Dataset[[#This Row],[2027/28 To - Total]])","v":0},{"$f":"Dataset[[#This Row],[2024/25 Baseline]]+Dataset[[#This Row],[2024/25 Total change]]","v":0},{"$f":"Dataset[[#This Row],[2025/26 Baseline]]+Dataset[[#This Row],[2025/26 Total change]]","v":0},{"$f":"Dataset[[#This Row],[2026/27 Baseline]]+Dataset[[#This Row],[2026/27 Total change]]","v":0},{"$f":"Dataset[[#This Row],[2027/28 Baseline]]+Dataset[[#This Row],[2027/28 Total change]]","v":0}]
["NAT|Non-transfer item","40|Transport equipment","2025_26","MTEC2025",40,1,3,51428,156,"40","01","03","051428","000156","40|01|03|000156","02","03","12","56","60","02|03|12|56|60","National","Transport","Administration","Corporate Services","Non-transfer item","Capital","Payments for capital assets","Machinery and equipment","Transport equipment","Transport equipment","Economic development","Economic regulation and infrastructure","NAT",0,0,0,0,0,0,null,0,0,0,0,null,null,null,null,null,null,null,null,null,null,null,null,null,null,null,null,null,null,null,null,null,null,null,null,null,null,null,null,null,null,null,null,null,null,{"$f":"Dataset[[#This Row],[2025/26 From - Spending review Topic 1]]+Dataset[[#This Row],[2025/26 From - Spending review Topic 2]]+Dataset[[#This Row],[2025/26 From - Spending review Topic 3]]+Dataset[[#This Row],[2025/26 From - Spending review Topic 4]]+Dataset[[#This Row],[2025/26 From - Other reallocations]]","v":0},{"$f":"Dataset[[#This Row],[2026/27 From - Spending review Topic 1]]+Dataset[[#This Row],[2026/27 From - Spending review Topic 2]]+Dataset[[#This Row],[2026/27 From - Spending review Topic 3]]+Dataset[[#This Row],[2026/27 From - Spending review Topic 4]]+Dataset[[#This Row],[2026/27 From - Other reallocations]]","v":0},{"$f":"Dataset[[#This Row],[2027/28 From - Spending review Topic 1]]+Dataset[[#This Row],[2027/28 From - Spending review Topic 2]]+Dataset[[#This Row],[2027/28 From - Spending review Topic 3]]+Dataset[[#This Row],[2027/28 From - Spending review Topic 4]]+Dataset[[#This Row],[2027/28 From - Other reallocations]]","v":0},{"$f":"Dataset[[#This Row],[2025/26 To - Spending review Topic 1]]+Dataset[[#This Row],[2025/26 To - Spending review Topic 2]]+Dataset[[#This Row],[2025/26 To - Spending review Topic 3]]+Dataset[[#This Row],[2025/26 To - Spending review Topic 4]]+Dataset[[#This Row],[2025/26 To - Other reallocations]]","v":0},{"$f":"Dataset[[#This Row],[2026/27 To - Spending review Topic 1]]+Dataset[[#This Row],[2026/27 To - Spending review Topic 2]]+Dataset[[#This Row],[2026/27 To - Spending review Topic 3]]+Dataset[[#This Row],[2026/27 To - Spending review Topic 4]]+Dataset[[#This Row],[2026/27 To - Other reallocations]]","v":0},{"$f":"Dataset[[#This Row],[2027/28 To - Spending review Topic 1]]+Dataset[[#This Row],[2027/28 To - Spending review Topic 2]]+Dataset[[#This Row],[2027/28 To - Spending review Topic 3]]+Dataset[[#This Row],[2027/28 To - Spending review Topic 4]]+Dataset[[#This Row],[2027/28 To - Other reallocations]]","v":0},{"$f":"Dataset[[#This Row],[2025/26 Reduction]]+Dataset[[#This Row],[2025/26 From - Total]]","v":0},{"$f":"Dataset[[#This Row],[2026/27 Reduction]]+Dataset[[#This Row],[2026/27 From - Total]]","v":0},{"$f":"Dataset[[#This Row],[2027/28 Reduction]]+Dataset[[#This Row],[2027/28 From - Total]]","v":0},{"$f":"Dataset[[#This Row],[2024/25 Reduction]]","v":0},{"$f":"SUM(Dataset[[#This Row],[2025/26 Reduction]],Dataset[[#This Row],[2025/26 From - Total]],Dataset[[#This Row],[2025/26 To - Total]])","v":0},{"$f":"SUM(Dataset[[#This Row],[2026/27 Reduction]],Dataset[[#This Row],[2026/27 From - Total]],Dataset[[#This Row],[2026/27 To - Total]])","v":0},{"$f":"SUM(Dataset[[#This Row],[2027/28 Reduction]],Dataset[[#This Row],[2027/28 From - Total]],Dataset[[#This Row],[2027/28 To - Total]])","v":0},{"$f":"Dataset[[#This Row],[2024/25 Baseline]]+Dataset[[#This Row],[2024/25 Total change]]","v":0},{"$f":"Dataset[[#This Row],[2025/26 Baseline]]+Dataset[[#This Row],[2025/26 Total change]]","v":0},{"$f":"Dataset[[#This Row],[2026/27 Baseline]]+Dataset[[#This Row],[2026/27 Total change]]","v":0},{"$f":"Dataset[[#This Row],[2027/28 Baseline]]+Dataset[[#This Row],[2027/28 Total change]]","v":0}]
["NAT|Non-transfer item","40|Other machinery and equipment","2025_26","MTEC2025",40,1,3,51429,157,"40","01","03","051429","000157","40|01|03|000157","02","03","12","57","61","02|03|12|57|61","National","Transport","Administration","Corporate Services","Non-transfer item","Capital","Payments for capital assets","Machinery and equipment","Other machinery and equipment","Other machinery and equipment","Economic development","Economic regulation and infrastructure","NAT",2687,1487,3343,1498,3493,3493,13150,1565,1635,1710,1787,null,null,null,null,null,null,null,null,null,null,null,null,null,null,null,null,null,null,null,null,null,null,null,null,null,null,null,null,null,null,null,null,null,null,{"$f":"Dataset[[#This Row],[2025/26 From - Spending review Topic 1]]+Dataset[[#This Row],[2025/26 From - Spending review Topic 2]]+Dataset[[#This Row],[2025/26 From - Spending review Topic 3]]+Dataset[[#This Row],[2025/26 From - Spending review Topic 4]]+Dataset[[#This Row],[2025/26 From - Other reallocations]]","v":0},{"$f":"Dataset[[#This Row],[2026/27 From - Spending review Topic 1]]+Dataset[[#This Row],[2026/27 From - Spending review Topic 2]]+Dataset[[#This Row],[2026/27 From - Spending review Topic 3]]+Dataset[[#This Row],[2026/27 From - Spending review Topic 4]]+Dataset[[#This Row],[2026/27 From - Other reallocations]]","v":0},{"$f":"Dataset[[#This Row],[2027/28 From - Spending review Topic 1]]+Dataset[[#This Row],[2027/28 From - Spending review Topic 2]]+Dataset[[#This Row],[2027/28 From - Spending review Topic 3]]+Dataset[[#This Row],[2027/28 From - Spending review Topic 4]]+Dataset[[#This Row],[2027/28 From - Other reallocations]]","v":0},{"$f":"Dataset[[#This Row],[2025/26 To - Spending review Topic 1]]+Dataset[[#This Row],[2025/26 To - Spending review Topic 2]]+Dataset[[#This Row],[2025/26 To - Spending review Topic 3]]+Dataset[[#This Row],[2025/26 To - Spending review Topic 4]]+Dataset[[#This Row],[2025/26 To - Other reallocations]]","v":0},{"$f":"Dataset[[#This Row],[2026/27 To - Spending review Topic 1]]+Dataset[[#This Row],[2026/27 To - Spending review Topic 2]]+Dataset[[#This Row],[2026/27 To - Spending review Topic 3]]+Dataset[[#This Row],[2026/27 To - Spending review Topic 4]]+Dataset[[#This Row],[2026/27 To - Other reallocations]]","v":0},{"$f":"Dataset[[#This Row],[2027/28 To - Spending review Topic 1]]+Dataset[[#This Row],[2027/28 To - Spending review Topic 2]]+Dataset[[#This Row],[2027/28 To - Spending review Topic 3]]+Dataset[[#This Row],[2027/28 To - Spending review Topic 4]]+Dataset[[#This Row],[2027/28 To - Other reallocations]]","v":0},{"$f":"Dataset[[#This Row],[2025/26 Reduction]]+Dataset[[#This Row],[2025/26 From - Total]]","v":0},{"$f":"Dataset[[#This Row],[2026/27 Reduction]]+Dataset[[#This Row],[2026/27 From - Total]]","v":0},{"$f":"Dataset[[#This Row],[2027/28 Reduction]]+Dataset[[#This Row],[2027/28 From - Total]]","v":0},{"$f":"Dataset[[#This Row],[2024/25 Reduction]]","v":0},{"$f":"SUM(Dataset[[#This Row],[2025/26 Reduction]],Dataset[[#This Row],[2025/26 From - Total]],Dataset[[#This Row],[2025/26 To - Total]])","v":0},{"$f":"SUM(Dataset[[#This Row],[2026/27 Reduction]],Dataset[[#This Row],[2026/27 From - Total]],Dataset[[#This Row],[2026/27 To - Total]])","v":0},{"$f":"SUM(Dataset[[#This Row],[2027/28 Reduction]],Dataset[[#This Row],[2027/28 From - Total]],Dataset[[#This Row],[2027/28 To - Total]])","v":0},{"$f":"Dataset[[#This Row],[2024/25 Baseline]]+Dataset[[#This Row],[2024/25 Total change]]","v":1565},{"$f":"Dataset[[#This Row],[2025/26 Baseline]]+Dataset[[#This Row],[2025/26 Total change]]","v":1635},{"$f":"Dataset[[#This Row],[2026/27 Baseline]]+Dataset[[#This Row],[2026/27 Total change]]","v":1710},{"$f":"Dataset[[#This Row],[2027/28 Baseline]]+Dataset[[#This Row],[2027/28 Total change]]","v":1787}]
["NAT|Non-transfer item","40|Heritage assets","2025_26","MTEC2025",40,1,3,51430,158,"40","01","03","051430","000158","40|01|03|000158","02","03","13","58","62","02|03|13|58|62","National","Transport","Administration","Corporate Services","Non-transfer item","Capital","Payments for capital assets","Heritage assets","Heritage assets","Heritage assets","Economic development","Economic regulation and infrastructure","NAT",0,0,0,0,0,0,null,0,0,0,0,null,null,null,null,null,null,null,null,null,null,null,null,null,null,null,null,null,null,null,null,null,null,null,null,null,null,null,null,null,null,null,null,null,null,{"$f":"Dataset[[#This Row],[2025/26 From - Spending review Topic 1]]+Dataset[[#This Row],[2025/26 From - Spending review Topic 2]]+Dataset[[#This Row],[2025/26 From - Spending review Topic 3]]+Dataset[[#This Row],[2025/26 From - Spending review Topic 4]]+Dataset[[#This Row],[2025/26 From - Other reallocations]]","v":0},{"$f":"Dataset[[#This Row],[2026/27 From - Spending review Topic 1]]+Dataset[[#This Row],[2026/27 From - Spending review Topic 2]]+Dataset[[#This Row],[2026/27 From - Spending review Topic 3]]+Dataset[[#This Row],[2026/27 From - Spending review Topic 4]]+Dataset[[#This Row],[2026/27 From - Other reallocations]]","v":0},{"$f":"Dataset[[#This Row],[2027/28 From - Spending review Topic 1]]+Dataset[[#This Row],[2027/28 From - Spending review Topic 2]]+Dataset[[#This Row],[2027/28 From - Spending review Topic 3]]+Dataset[[#This Row],[2027/28 From - Spending review Topic 4]]+Dataset[[#This Row],[2027/28 From - Other reallocations]]","v":0},{"$f":"Dataset[[#This Row],[2025/26 To - Spending review Topic 1]]+Dataset[[#This Row],[2025/26 To - Spending review Topic 2]]+Dataset[[#This Row],[2025/26 To - Spending review Topic 3]]+Dataset[[#This Row],[2025/26 To - Spending review Topic 4]]+Dataset[[#This Row],[2025/26 To - Other reallocations]]","v":0},{"$f":"Dataset[[#This Row],[2026/27 To - Spending review Topic 1]]+Dataset[[#This Row],[2026/27 To - Spending review Topic 2]]+Dataset[[#This Row],[2026/27 To - Spending review Topic 3]]+Dataset[[#This Row],[2026/27 To - Spending review Topic 4]]+Dataset[[#This Row],[2026/27 To - Other reallocations]]","v":0},{"$f":"Dataset[[#This Row],[2027/28 To - Spending review Topic 1]]+Dataset[[#This Row],[2027/28 To - Spending review Topic 2]]+Dataset[[#This Row],[2027/28 To - Spending review Topic 3]]+Dataset[[#This Row],[2027/28 To - Spending review Topic 4]]+Dataset[[#This Row],[2027/28 To - Other reallocations]]","v":0},{"$f":"Dataset[[#This Row],[2025/26 Reduction]]+Dataset[[#This Row],[2025/26 From - Total]]","v":0},{"$f":"Dataset[[#This Row],[2026/27 Reduction]]+Dataset[[#This Row],[2026/27 From - Total]]","v":0},{"$f":"Dataset[[#This Row],[2027/28 Reduction]]+Dataset[[#This Row],[2027/28 From - Total]]","v":0},{"$f":"Dataset[[#This Row],[2024/25 Reduction]]","v":0},{"$f":"SUM(Dataset[[#This Row],[2025/26 Reduction]],Dataset[[#This Row],[2025/26 From - Total]],Dataset[[#This Row],[2025/26 To - Total]])","v":0},{"$f":"SUM(Dataset[[#This Row],[2026/27 Reduction]],Dataset[[#This Row],[2026/27 From - Total]],Dataset[[#This Row],[2026/27 To - Total]])","v":0},{"$f":"SUM(Dataset[[#This Row],[2027/28 Reduction]],Dataset[[#This Row],[2027/28 From - Total]],Dataset[[#This Row],[2027/28 To - Total]])","v":0},{"$f":"Dataset[[#This Row],[2024/25 Baseline]]+Dataset[[#This Row],[2024/25 Total change]]","v":0},{"$f":"Dataset[[#This Row],[2025/26 Baseline]]+Dataset[[#This Row],[2025/26 Total change]]","v":0},{"$f":"Dataset[[#This Row],[2026/27 Baseline]]+Dataset[[#This Row],[2026/27 Total change]]","v":0},{"$f":"Dataset[[#This Row],[2027/28 Baseline]]+Dataset[[#This Row],[2027/28 Total change]]","v":0}]
["NAT|Non-transfer item","40|Specialised military assets","2025_26","MTEC2025",40,1,3,51431,159,"40","01","03","051431","000159","40|01|03|000159","02","03","14","59","63","02|03|14|59|63","National","Transport","Administration","Corporate Services","Non-transfer item","Capital","Payments for capital assets","Specialised military assets","Specialised military assets","Specialised military assets","Economic development","Economic regulation and infrastructure","NAT",0,0,0,0,0,0,null,0,0,0,0,null,null,null,null,null,null,null,null,null,null,null,null,null,null,null,null,null,null,null,null,null,null,null,null,null,null,null,null,null,null,null,null,null,null,{"$f":"Dataset[[#This Row],[2025/26 From - Spending review Topic 1]]+Dataset[[#This Row],[2025/26 From - Spending review Topic 2]]+Dataset[[#This Row],[2025/26 From - Spending review Topic 3]]+Dataset[[#This Row],[2025/26 From - Spending review Topic 4]]+Dataset[[#This Row],[2025/26 From - Other reallocations]]","v":0},{"$f":"Dataset[[#This Row],[2026/27 From - Spending review Topic 1]]+Dataset[[#This Row],[2026/27 From - Spending review Topic 2]]+Dataset[[#This Row],[2026/27 From - Spending review Topic 3]]+Dataset[[#This Row],[2026/27 From - Spending review Topic 4]]+Dataset[[#This Row],[2026/27 From - Other reallocations]]","v":0},{"$f":"Dataset[[#This Row],[2027/28 From - Spending review Topic 1]]+Dataset[[#This Row],[2027/28 From - Spending review Topic 2]]+Dataset[[#This Row],[2027/28 From - Spending review Topic 3]]+Dataset[[#This Row],[2027/28 From - Spending review Topic 4]]+Dataset[[#This Row],[2027/28 From - Other reallocations]]","v":0},{"$f":"Dataset[[#This Row],[2025/26 To - Spending review Topic 1]]+Dataset[[#This Row],[2025/26 To - Spending review Topic 2]]+Dataset[[#This Row],[2025/26 To - Spending review Topic 3]]+Dataset[[#This Row],[2025/26 To - Spending review Topic 4]]+Dataset[[#This Row],[2025/26 To - Other reallocations]]","v":0},{"$f":"Dataset[[#This Row],[2026/27 To - Spending review Topic 1]]+Dataset[[#This Row],[2026/27 To - Spending review Topic 2]]+Dataset[[#This Row],[2026/27 To - Spending review Topic 3]]+Dataset[[#This Row],[2026/27 To - Spending review Topic 4]]+Dataset[[#This Row],[2026/27 To - Other reallocations]]","v":0},{"$f":"Dataset[[#This Row],[2027/28 To - Spending review Topic 1]]+Dataset[[#This Row],[2027/28 To - Spending review Topic 2]]+Dataset[[#This Row],[2027/28 To - Spending review Topic 3]]+Dataset[[#This Row],[2027/28 To - Spending review Topic 4]]+Dataset[[#This Row],[2027/28 To - Other reallocations]]","v":0},{"$f":"Dataset[[#This Row],[2025/26 Reduction]]+Dataset[[#This Row],[2025/26 From - Total]]","v":0},{"$f":"Dataset[[#This Row],[2026/27 Reduction]]+Dataset[[#This Row],[2026/27 From - Total]]","v":0},{"$f":"Dataset[[#This Row],[2027/28 Reduction]]+Dataset[[#This Row],[2027/28 From - Total]]","v":0},{"$f":"Dataset[[#This Row],[2024/25 Reduction]]","v":0},{"$f":"SUM(Dataset[[#This Row],[2025/26 Reduction]],Dataset[[#This Row],[2025/26 From - Total]],Dataset[[#This Row],[2025/26 To - Total]])","v":0},{"$f":"SUM(Dataset[[#This Row],[2026/27 Reduction]],Dataset[[#This Row],[2026/27 From - Total]],Dataset[[#This Row],[2026/27 To - Total]])","v":0},{"$f":"SUM(Dataset[[#This Row],[2027/28 Reduction]],Dataset[[#This Row],[2027/28 From - Total]],Dataset[[#This Row],[2027/28 To - Total]])","v":0},{"$f":"Dataset[[#This Row],[2024/25 Baseline]]+Dataset[[#This Row],[2024/25 Total change]]","v":0},{"$f":"Dataset[[#This Row],[2025/26 Baseline]]+Dataset[[#This Row],[2025/26 Total change]]","v":0},{"$f":"Dataset[[#This Row],[2026/27 Baseline]]+Dataset[[#This Row],[2026/27 Total change]]","v":0},{"$f":"Dataset[[#This Row],[2027/28 Baseline]]+Dataset[[#This Row],[2027/28 Total change]]","v":0}]
["NAT|Non-transfer item","40|Biological assets","2025_26","MTEC2025",40,1,3,51432,160,"40","01","03","051432","000160","40|01|03|000160","02","03","15","60","64","02|03|15|60|64","National","Transport","Administration","Corporate Services","Non-transfer item","Capital","Payments for capital assets","Biological assets","Biological assets","Biological assets","Economic development","Economic regulation and infrastructure","NAT",0,0,0,0,0,0,null,0,0,0,0,null,null,null,null,null,null,null,null,null,null,null,null,null,null,null,null,null,null,null,null,null,null,null,null,null,null,null,null,null,null,null,null,null,null,{"$f":"Dataset[[#This Row],[2025/26 From - Spending review Topic 1]]+Dataset[[#This Row],[2025/26 From - Spending review Topic 2]]+Dataset[[#This Row],[2025/26 From - Spending review Topic 3]]+Dataset[[#This Row],[2025/26 From - Spending review Topic 4]]+Dataset[[#This Row],[2025/26 From - Other reallocations]]","v":0},{"$f":"Dataset[[#This Row],[2026/27 From - Spending review Topic 1]]+Dataset[[#This Row],[2026/27 From - Spending review Topic 2]]+Dataset[[#This Row],[2026/27 From - Spending review Topic 3]]+Dataset[[#This Row],[2026/27 From - Spending review Topic 4]]+Dataset[[#This Row],[2026/27 From - Other reallocations]]","v":0},{"$f":"Dataset[[#This Row],[2027/28 From - Spending review Topic 1]]+Dataset[[#This Row],[2027/28 From - Spending review Topic 2]]+Dataset[[#This Row],[2027/28 From - Spending review Topic 3]]+Dataset[[#This Row],[2027/28 From - Spending review Topic 4]]+Dataset[[#This Row],[2027/28 From - Other reallocations]]","v":0},{"$f":"Dataset[[#This Row],[2025/26 To - Spending review Topic 1]]+Dataset[[#This Row],[2025/26 To - Spending review Topic 2]]+Dataset[[#This Row],[2025/26 To - Spending review Topic 3]]+Dataset[[#This Row],[2025/26 To - Spending review Topic 4]]+Dataset[[#This Row],[2025/26 To - Other reallocations]]","v":0},{"$f":"Dataset[[#This Row],[2026/27 To - Spending review Topic 1]]+Dataset[[#This Row],[2026/27 To - Spending review Topic 2]]+Dataset[[#This Row],[2026/27 To - Spending review Topic 3]]+Dataset[[#This Row],[2026/27 To - Spending review Topic 4]]+Dataset[[#This Row],[2026/27 To - Other reallocations]]","v":0},{"$f":"Dataset[[#This Row],[2027/28 To - Spending review Topic 1]]+Dataset[[#This Row],[2027/28 To - Spending review Topic 2]]+Dataset[[#This Row],[2027/28 To - Spending review Topic 3]]+Dataset[[#This Row],[2027/28 To - Spending review Topic 4]]+Dataset[[#This Row],[2027/28 To - Other reallocations]]","v":0},{"$f":"Dataset[[#This Row],[2025/26 Reduction]]+Dataset[[#This Row],[2025/26 From - Total]]","v":0},{"$f":"Dataset[[#This Row],[2026/27 Reduction]]+Dataset[[#This Row],[2026/27 From - Total]]","v":0},{"$f":"Dataset[[#This Row],[2027/28 Reduction]]+Dataset[[#This Row],[2027/28 From - Total]]","v":0},{"$f":"Dataset[[#This Row],[2024/25 Reduction]]","v":0},{"$f":"SUM(Dataset[[#This Row],[2025/26 Reduction]],Dataset[[#This Row],[2025/26 From - Total]],Dataset[[#This Row],[2025/26 To - Total]])","v":0},{"$f":"SUM(Dataset[[#This Row],[2026/27 Reduction]],Dataset[[#This Row],[2026/27 From - Total]],Dataset[[#This Row],[2026/27 To - Total]])","v":0},{"$f":"SUM(Dataset[[#This Row],[2027/28 Reduction]],Dataset[[#This Row],[2027/28 From - Total]],Dataset[[#This Row],[2027/28 To - Total]])","v":0},{"$f":"Dataset[[#This Row],[2024/25 Baseline]]+Dataset[[#This Row],[2024/25 Total change]]","v":0},{"$f":"Dataset[[#This Row],[2025/26 Baseline]]+Dataset[[#This Row],[2025/26 Total change]]","v":0},{"$f":"Dataset[[#This Row],[2026/27 Baseline]]+Dataset[[#This Row],[2026/27 Total change]]","v":0},{"$f":"Dataset[[#This Row],[2027/28 Baseline]]+Dataset[[#This Row],[2027/28 Total change]]","v":0}]
["NAT|Non-transfer item","40|Land and sub-soil assets","2025_26","MTEC2025",40,1,3,51433,161,"40","01","03","051433","000161","40|01|03|000161","02","03","16","61","65","02|03|16|61|65","National","Transport","Administration","Corporate Services","Non-transfer item","Capital","Payments for capital assets","Land and sub-soil assets","Land and sub-soil assets","Land and sub-soil assets","Economic development","Economic regulation and infrastructure","NAT",0,0,0,0,0,0,null,0,0,0,0,null,null,null,null,null,null,null,null,null,null,null,null,null,null,null,null,null,null,null,null,null,null,null,null,null,null,null,null,null,null,null,null,null,null,{"$f":"Dataset[[#This Row],[2025/26 From - Spending review Topic 1]]+Dataset[[#This Row],[2025/26 From - Spending review Topic 2]]+Dataset[[#This Row],[2025/26 From - Spending review Topic 3]]+Dataset[[#This Row],[2025/26 From - Spending review Topic 4]]+Dataset[[#This Row],[2025/26 From - Other reallocations]]","v":0},{"$f":"Dataset[[#This Row],[2026/27 From - Spending review Topic 1]]+Dataset[[#This Row],[2026/27 From - Spending review Topic 2]]+Dataset[[#This Row],[2026/27 From - Spending review Topic 3]]+Dataset[[#This Row],[2026/27 From - Spending review Topic 4]]+Dataset[[#This Row],[2026/27 From - Other reallocations]]","v":0},{"$f":"Dataset[[#This Row],[2027/28 From - Spending review Topic 1]]+Dataset[[#This Row],[2027/28 From - Spending review Topic 2]]+Dataset[[#This Row],[2027/28 From - Spending review Topic 3]]+Dataset[[#This Row],[2027/28 From - Spending review Topic 4]]+Dataset[[#This Row],[2027/28 From - Other reallocations]]","v":0},{"$f":"Dataset[[#This Row],[2025/26 To - Spending review Topic 1]]+Dataset[[#This Row],[2025/26 To - Spending review Topic 2]]+Dataset[[#This Row],[2025/26 To - Spending review Topic 3]]+Dataset[[#This Row],[2025/26 To - Spending review Topic 4]]+Dataset[[#This Row],[2025/26 To - Other reallocations]]","v":0},{"$f":"Dataset[[#This Row],[2026/27 To - Spending review Topic 1]]+Dataset[[#This Row],[2026/27 To - Spending review Topic 2]]+Dataset[[#This Row],[2026/27 To - Spending review Topic 3]]+Dataset[[#This Row],[2026/27 To - Spending review Topic 4]]+Dataset[[#This Row],[2026/27 To - Other reallocations]]","v":0},{"$f":"Dataset[[#This Row],[2027/28 To - Spending review Topic 1]]+Dataset[[#This Row],[2027/28 To - Spending review Topic 2]]+Dataset[[#This Row],[2027/28 To - Spending review Topic 3]]+Dataset[[#This Row],[2027/28 To - Spending review Topic 4]]+Dataset[[#This Row],[2027/28 To - Other reallocations]]","v":0},{"$f":"Dataset[[#This Row],[2025/26 Reduction]]+Dataset[[#This Row],[2025/26 From - Total]]","v":0},{"$f":"Dataset[[#This Row],[2026/27 Reduction]]+Dataset[[#This Row],[2026/27 From - Total]]","v":0},{"$f":"Dataset[[#This Row],[2027/28 Reduction]]+Dataset[[#This Row],[2027/28 From - Total]]","v":0},{"$f":"Dataset[[#This Row],[2024/25 Reduction]]","v":0},{"$f":"SUM(Dataset[[#This Row],[2025/26 Reduction]],Dataset[[#This Row],[2025/26 From - Total]],Dataset[[#This Row],[2025/26 To - Total]])","v":0},{"$f":"SUM(Dataset[[#This Row],[2026/27 Reduction]],Dataset[[#This Row],[2026/27 From - Total]],Dataset[[#This Row],[2026/27 To - Total]])","v":0},{"$f":"SUM(Dataset[[#This Row],[2027/28 Reduction]],Dataset[[#This Row],[2027/28 From - Total]],Dataset[[#This Row],[2027/28 To - Total]])","v":0},{"$f":"Dataset[[#This Row],[2024/25 Baseline]]+Dataset[[#This Row],[2024/25 Total change]]","v":0},{"$f":"Dataset[[#This Row],[2025/26 Baseline]]+Dataset[[#This Row],[2025/26 Total change]]","v":0},{"$f":"Dataset[[#This Row],[2026/27 Baseline]]+Dataset[[#This Row],[2026/27 Total change]]","v":0},{"$f":"Dataset[[#This Row],[2027/28 Baseline]]+Dataset[[#This Row],[2027/28 Total change]]","v":0}]
["NAT|Non-transfer item","40|Software and other intangible assets","2025_26","MTEC2025",40,1,3,51434,162,"40","01","03","051434","000162","40|01|03|000162","02","03","17","62","66","02|03|17|62|66","National","Transport","Administration","Corporate Services","Non-transfer item","Capital","Payments for capital assets","Software and other intangible assets","Software and other intangible assets","Software and other intangible assets","Economic development","Economic regulation and infrastructure","NAT",0,0,0,0,0,0,null,0,0,0,0,null,null,null,null,null,null,null,null,null,null,null,null,null,null,null,null,null,null,null,null,null,null,null,null,null,null,null,null,null,null,null,null,null,null,{"$f":"Dataset[[#This Row],[2025/26 From - Spending review Topic 1]]+Dataset[[#This Row],[2025/26 From - Spending review Topic 2]]+Dataset[[#This Row],[2025/26 From - Spending review Topic 3]]+Dataset[[#This Row],[2025/26 From - Spending review Topic 4]]+Dataset[[#This Row],[2025/26 From - Other reallocations]]","v":0},{"$f":"Dataset[[#This Row],[2026/27 From - Spending review Topic 1]]+Dataset[[#This Row],[2026/27 From - Spending review Topic 2]]+Dataset[[#This Row],[2026/27 From - Spending review Topic 3]]+Dataset[[#This Row],[2026/27 From - Spending review Topic 4]]+Dataset[[#This Row],[2026/27 From - Other reallocations]]","v":0},{"$f":"Dataset[[#This Row],[2027/28 From - Spending review Topic 1]]+Dataset[[#This Row],[2027/28 From - Spending review Topic 2]]+Dataset[[#This Row],[2027/28 From - Spending review Topic 3]]+Dataset[[#This Row],[2027/28 From - Spending review Topic 4]]+Dataset[[#This Row],[2027/28 From - Other reallocations]]","v":0},{"$f":"Dataset[[#This Row],[2025/26 To - Spending review Topic 1]]+Dataset[[#This Row],[2025/26 To - Spending review Topic 2]]+Dataset[[#This Row],[2025/26 To - Spending review Topic 3]]+Dataset[[#This Row],[2025/26 To - Spending review Topic 4]]+Dataset[[#This Row],[2025/26 To - Other reallocations]]","v":0},{"$f":"Dataset[[#This Row],[2026/27 To - Spending review Topic 1]]+Dataset[[#This Row],[2026/27 To - Spending review Topic 2]]+Dataset[[#This Row],[2026/27 To - Spending review Topic 3]]+Dataset[[#This Row],[2026/27 To - Spending review Topic 4]]+Dataset[[#This Row],[2026/27 To - Other reallocations]]","v":0},{"$f":"Dataset[[#This Row],[2027/28 To - Spending review Topic 1]]+Dataset[[#This Row],[2027/28 To - Spending review Topic 2]]+Dataset[[#This Row],[2027/28 To - Spending review Topic 3]]+Dataset[[#This Row],[2027/28 To - Spending review Topic 4]]+Dataset[[#This Row],[2027/28 To - Other reallocations]]","v":0},{"$f":"Dataset[[#This Row],[2025/26 Reduction]]+Dataset[[#This Row],[2025/26 From - Total]]","v":0},{"$f":"Dataset[[#This Row],[2026/27 Reduction]]+Dataset[[#This Row],[2026/27 From - Total]]","v":0},{"$f":"Dataset[[#This Row],[2027/28 Reduction]]+Dataset[[#This Row],[2027/28 From - Total]]","v":0},{"$f":"Dataset[[#This Row],[2024/25 Reduction]]","v":0},{"$f":"SUM(Dataset[[#This Row],[2025/26 Reduction]],Dataset[[#This Row],[2025/26 From - Total]],Dataset[[#This Row],[2025/26 To - Total]])","v":0},{"$f":"SUM(Dataset[[#This Row],[2026/27 Reduction]],Dataset[[#This Row],[2026/27 From - Total]],Dataset[[#This Row],[2026/27 To - Total]])","v":0},{"$f":"SUM(Dataset[[#This Row],[2027/28 Reduction]],Dataset[[#This Row],[2027/28 From - Total]],Dataset[[#This Row],[2027/28 To - Total]])","v":0},{"$f":"Dataset[[#This Row],[2024/25 Baseline]]+Dataset[[#This Row],[2024/25 Total change]]","v":0},{"$f":"Dataset[[#This Row],[2025/26 Baseline]]+Dataset[[#This Row],[2025/26 Total change]]","v":0},{"$f":"Dataset[[#This Row],[2026/27 Baseline]]+Dataset[[#This Row],[2026/27 Total change]]","v":0},{"$f":"Dataset[[#This Row],[2027/28 Baseline]]+Dataset[[#This Row],[2027/28 Total change]]","v":0}]
["NAT|Thefts and losses","40|Payments for financial assets","2025_26","MTEC2025",40,1,3,51435,163,"40","01","03","051435","000163","40|01|03|000163","03","04","18","63","67","03|04|18|63|67","National","Transport","Administration","Corporate Services","Thefts and losses","Payments for financial assets","Payments for financial assets","Payments for financial assets","Payments for financial assets","Payments for financial assets","Economic development","Economic regulation and infrastructure","NAT",0,6,33,0,0,0,null,0,0,0,0,null,null,null,null,null,null,null,null,null,null,null,null,null,null,null,null,null,null,null,null,null,null,null,null,null,null,null,null,null,null,null,null,null,null,{"$f":"Dataset[[#This Row],[2025/26 From - Spending review Topic 1]]+Dataset[[#This Row],[2025/26 From - Spending review Topic 2]]+Dataset[[#This Row],[2025/26 From - Spending review Topic 3]]+Dataset[[#This Row],[2025/26 From - Spending review Topic 4]]+Dataset[[#This Row],[2025/26 From - Other reallocations]]","v":0},{"$f":"Dataset[[#This Row],[2026/27 From - Spending review Topic 1]]+Dataset[[#This Row],[2026/27 From - Spending review Topic 2]]+Dataset[[#This Row],[2026/27 From - Spending review Topic 3]]+Dataset[[#This Row],[2026/27 From - Spending review Topic 4]]+Dataset[[#This Row],[2026/27 From - Other reallocations]]","v":0},{"$f":"Dataset[[#This Row],[2027/28 From - Spending review Topic 1]]+Dataset[[#This Row],[2027/28 From - Spending review Topic 2]]+Dataset[[#This Row],[2027/28 From - Spending review Topic 3]]+Dataset[[#This Row],[2027/28 From - Spending review Topic 4]]+Dataset[[#This Row],[2027/28 From - Other reallocations]]","v":0},{"$f":"Dataset[[#This Row],[2025/26 To - Spending review Topic 1]]+Dataset[[#This Row],[2025/26 To - Spending review Topic 2]]+Dataset[[#This Row],[2025/26 To - Spending review Topic 3]]+Dataset[[#This Row],[2025/26 To - Spending review Topic 4]]+Dataset[[#This Row],[2025/26 To - Other reallocations]]","v":0},{"$f":"Dataset[[#This Row],[2026/27 To - Spending review Topic 1]]+Dataset[[#This Row],[2026/27 To - Spending review Topic 2]]+Dataset[[#This Row],[2026/27 To - Spending review Topic 3]]+Dataset[[#This Row],[2026/27 To - Spending review Topic 4]]+Dataset[[#This Row],[2026/27 To - Other reallocations]]","v":0},{"$f":"Dataset[[#This Row],[2027/28 To - Spending review Topic 1]]+Dataset[[#This Row],[2027/28 To - Spending review Topic 2]]+Dataset[[#This Row],[2027/28 To - Spending review Topic 3]]+Dataset[[#This Row],[2027/28 To - Spending review Topic 4]]+Dataset[[#This Row],[2027/28 To - Other reallocations]]","v":0},{"$f":"Dataset[[#This Row],[2025/26 Reduction]]+Dataset[[#This Row],[2025/26 From - Total]]","v":0},{"$f":"Dataset[[#This Row],[2026/27 Reduction]]+Dataset[[#This Row],[2026/27 From - Total]]","v":0},{"$f":"Dataset[[#This Row],[2027/28 Reduction]]+Dataset[[#This Row],[2027/28 From - Total]]","v":0},{"$f":"Dataset[[#This Row],[2024/25 Reduction]]","v":0},{"$f":"SUM(Dataset[[#This Row],[2025/26 Reduction]],Dataset[[#This Row],[2025/26 From - Total]],Dataset[[#This Row],[2025/26 To - Total]])","v":0},{"$f":"SUM(Dataset[[#This Row],[2026/27 Reduction]],Dataset[[#This Row],[2026/27 From - Total]],Dataset[[#This Row],[2026/27 To - Total]])","v":0},{"$f":"SUM(Dataset[[#This Row],[2027/28 Reduction]],Dataset[[#This Row],[2027/28 From - Total]],Dataset[[#This Row],[2027/28 To - Total]])","v":0},{"$f":"Dataset[[#This Row],[2024/25 Baseline]]+Dataset[[#This Row],[2024/25 Total change]]","v":0},{"$f":"Dataset[[#This Row],[2025/26 Baseline]]+Dataset[[#This Row],[2025/26 Total change]]","v":0},{"$f":"Dataset[[#This Row],[2026/27 Baseline]]+Dataset[[#This Row],[2026/27 Total change]]","v":0},{"$f":"Dataset[[#This Row],[2027/28 Baseline]]+Dataset[[#This Row],[2027/28 Total change]]","v":0}]
["NAT|Non-transfer item","40|Salaries and wages","2025_26","MTEC2025",40,1,4,51436,164,"40","01","04","051436","000164","40|01|04|000164","01","01","01","01","01","01|01|01|01|01","National","Transport","Administration","Communications","Non-transfer item","Current","Current payments","Compensation of employees","Salaries and wages","Salaries and wages","Economic development","Economic regulation and infrastructure","NAT",10655,11274,13465,13910,13910,13910,12941,14476,15102,15794,16508,null,null,null,null,null,null,null,null,null,null,null,null,null,null,null,null,null,null,null,null,null,null,null,null,null,null,null,null,null,null,null,null,null,null,{"$f":"Dataset[[#This Row],[2025/26 From - Spending review Topic 1]]+Dataset[[#This Row],[2025/26 From - Spending review Topic 2]]+Dataset[[#This Row],[2025/26 From - Spending review Topic 3]]+Dataset[[#This Row],[2025/26 From - Spending review Topic 4]]+Dataset[[#This Row],[2025/26 From - Other reallocations]]","v":0},{"$f":"Dataset[[#This Row],[2026/27 From - Spending review Topic 1]]+Dataset[[#This Row],[2026/27 From - Spending review Topic 2]]+Dataset[[#This Row],[2026/27 From - Spending review Topic 3]]+Dataset[[#This Row],[2026/27 From - Spending review Topic 4]]+Dataset[[#This Row],[2026/27 From - Other reallocations]]","v":0},{"$f":"Dataset[[#This Row],[2027/28 From - Spending review Topic 1]]+Dataset[[#This Row],[2027/28 From - Spending review Topic 2]]+Dataset[[#This Row],[2027/28 From - Spending review Topic 3]]+Dataset[[#This Row],[2027/28 From - Spending review Topic 4]]+Dataset[[#This Row],[2027/28 From - Other reallocations]]","v":0},{"$f":"Dataset[[#This Row],[2025/26 To - Spending review Topic 1]]+Dataset[[#This Row],[2025/26 To - Spending review Topic 2]]+Dataset[[#This Row],[2025/26 To - Spending review Topic 3]]+Dataset[[#This Row],[2025/26 To - Spending review Topic 4]]+Dataset[[#This Row],[2025/26 To - Other reallocations]]","v":0},{"$f":"Dataset[[#This Row],[2026/27 To - Spending review Topic 1]]+Dataset[[#This Row],[2026/27 To - Spending review Topic 2]]+Dataset[[#This Row],[2026/27 To - Spending review Topic 3]]+Dataset[[#This Row],[2026/27 To - Spending review Topic 4]]+Dataset[[#This Row],[2026/27 To - Other reallocations]]","v":0},{"$f":"Dataset[[#This Row],[2027/28 To - Spending review Topic 1]]+Dataset[[#This Row],[2027/28 To - Spending review Topic 2]]+Dataset[[#This Row],[2027/28 To - Spending review Topic 3]]+Dataset[[#This Row],[2027/28 To - Spending review Topic 4]]+Dataset[[#This Row],[2027/28 To - Other reallocations]]","v":0},{"$f":"Dataset[[#This Row],[2025/26 Reduction]]+Dataset[[#This Row],[2025/26 From - Total]]","v":0},{"$f":"Dataset[[#This Row],[2026/27 Reduction]]+Dataset[[#This Row],[2026/27 From - Total]]","v":0},{"$f":"Dataset[[#This Row],[2027/28 Reduction]]+Dataset[[#This Row],[2027/28 From - Total]]","v":0},{"$f":"Dataset[[#This Row],[2024/25 Reduction]]","v":0},{"$f":"SUM(Dataset[[#This Row],[2025/26 Reduction]],Dataset[[#This Row],[2025/26 From - Total]],Dataset[[#This Row],[2025/26 To - Total]])","v":0},{"$f":"SUM(Dataset[[#This Row],[2026/27 Reduction]],Dataset[[#This Row],[2026/27 From - Total]],Dataset[[#This Row],[2026/27 To - Total]])","v":0},{"$f":"SUM(Dataset[[#This Row],[2027/28 Reduction]],Dataset[[#This Row],[2027/28 From - Total]],Dataset[[#This Row],[2027/28 To - Total]])","v":0},{"$f":"Dataset[[#This Row],[2024/25 Baseline]]+Dataset[[#This Row],[2024/25 Total change]]","v":14476},{"$f":"Dataset[[#This Row],[2025/26 Baseline]]+Dataset[[#This Row],[2025/26 Total change]]","v":15102},{"$f":"Dataset[[#This Row],[2026/27 Baseline]]+Dataset[[#This Row],[2026/27 Total change]]","v":15794},{"$f":"Dataset[[#This Row],[2027/28 Baseline]]+Dataset[[#This Row],[2027/28 Total change]]","v":16508}]
["NAT|Non-transfer item","40|Social contributions","2025_26","MTEC2025",40,1,4,51437,165,"40","01","04","051437","000165","40|01|04|000165","01","01","01","02","02","01|01|01|02|02","National","Transport","Administration","Communications","Non-transfer item","Current","Current payments","Compensation of employees","Social contributions","Social contributions","Economic development","Economic regulation and infrastructure","NAT",1172,1189,1417,1466,1466,1466,1499,1566,1634,1709,1786,null,null,null,null,null,null,null,null,null,null,null,null,null,null,null,null,null,null,null,null,null,null,null,null,null,null,null,null,null,null,null,null,null,null,{"$f":"Dataset[[#This Row],[2025/26 From - Spending review Topic 1]]+Dataset[[#This Row],[2025/26 From - Spending review Topic 2]]+Dataset[[#This Row],[2025/26 From - Spending review Topic 3]]+Dataset[[#This Row],[2025/26 From - Spending review Topic 4]]+Dataset[[#This Row],[2025/26 From - Other reallocations]]","v":0},{"$f":"Dataset[[#This Row],[2026/27 From - Spending review Topic 1]]+Dataset[[#This Row],[2026/27 From - Spending review Topic 2]]+Dataset[[#This Row],[2026/27 From - Spending review Topic 3]]+Dataset[[#This Row],[2026/27 From - Spending review Topic 4]]+Dataset[[#This Row],[2026/27 From - Other reallocations]]","v":0},{"$f":"Dataset[[#This Row],[2027/28 From - Spending review Topic 1]]+Dataset[[#This Row],[2027/28 From - Spending review Topic 2]]+Dataset[[#This Row],[2027/28 From - Spending review Topic 3]]+Dataset[[#This Row],[2027/28 From - Spending review Topic 4]]+Dataset[[#This Row],[2027/28 From - Other reallocations]]","v":0},{"$f":"Dataset[[#This Row],[2025/26 To - Spending review Topic 1]]+Dataset[[#This Row],[2025/26 To - Spending review Topic 2]]+Dataset[[#This Row],[2025/26 To - Spending review Topic 3]]+Dataset[[#This Row],[2025/26 To - Spending review Topic 4]]+Dataset[[#This Row],[2025/26 To - Other reallocations]]","v":0},{"$f":"Dataset[[#This Row],[2026/27 To - Spending review Topic 1]]+Dataset[[#This Row],[2026/27 To - Spending review Topic 2]]+Dataset[[#This Row],[2026/27 To - Spending review Topic 3]]+Dataset[[#This Row],[2026/27 To - Spending review Topic 4]]+Dataset[[#This Row],[2026/27 To - Other reallocations]]","v":0},{"$f":"Dataset[[#This Row],[2027/28 To - Spending review Topic 1]]+Dataset[[#This Row],[2027/28 To - Spending review Topic 2]]+Dataset[[#This Row],[2027/28 To - Spending review Topic 3]]+Dataset[[#This Row],[2027/28 To - Spending review Topic 4]]+Dataset[[#This Row],[2027/28 To - Other reallocations]]","v":0},{"$f":"Dataset[[#This Row],[2025/26 Reduction]]+Dataset[[#This Row],[2025/26 From - Total]]","v":0},{"$f":"Dataset[[#This Row],[2026/27 Reduction]]+Dataset[[#This Row],[2026/27 From - Total]]","v":0},{"$f":"Dataset[[#This Row],[2027/28 Reduction]]+Dataset[[#This Row],[2027/28 From - Total]]","v":0},{"$f":"Dataset[[#This Row],[2024/25 Reduction]]","v":0},{"$f":"SUM(Dataset[[#This Row],[2025/26 Reduction]],Dataset[[#This Row],[2025/26 From - Total]],Dataset[[#This Row],[2025/26 To - Total]])","v":0},{"$f":"SUM(Dataset[[#This Row],[2026/27 Reduction]],Dataset[[#This Row],[2026/27 From - Total]],Dataset[[#This Row],[2026/27 To - Total]])","v":0},{"$f":"SUM(Dataset[[#This Row],[2027/28 Reduction]],Dataset[[#This Row],[2027/28 From - Total]],Dataset[[#This Row],[2027/28 To - Total]])","v":0},{"$f":"Dataset[[#This Row],[2024/25 Baseline]]+Dataset[[#This Row],[2024/25 Total change]]","v":1566},{"$f":"Dataset[[#This Row],[2025/26 Baseline]]+Dataset[[#This Row],[2025/26 Total change]]","v":1634},{"$f":"Dataset[[#This Row],[2026/27 Baseline]]+Dataset[[#This Row],[2026/27 Total change]]","v":1709},{"$f":"Dataset[[#This Row],[2027/28 Baseline]]+Dataset[[#This Row],[2027/28 Total change]]","v":1786}]
["NAT|Non-transfer item","40|Administrative fees","2025_26","MTEC2025",40,1,4,51438,166,"40","01","04","051438","000166","40|01|04|000166","01","01","02","03","03","01|01|02|03|03","National","Transport","Administration","Communications","Non-transfer item","Current","Current payments","Goods and services","Administrative fees","Administrative fees","Economic development","Economic regulation and infrastructure","NAT",4,8,4,3,3,3,1,3,3,3,3,null,null,null,null,null,null,null,null,null,null,null,null,null,null,null,null,null,null,null,null,null,null,null,null,null,null,null,null,null,null,null,null,null,null,{"$f":"Dataset[[#This Row],[2025/26 From - Spending review Topic 1]]+Dataset[[#This Row],[2025/26 From - Spending review Topic 2]]+Dataset[[#This Row],[2025/26 From - Spending review Topic 3]]+Dataset[[#This Row],[2025/26 From - Spending review Topic 4]]+Dataset[[#This Row],[2025/26 From - Other reallocations]]","v":0},{"$f":"Dataset[[#This Row],[2026/27 From - Spending review Topic 1]]+Dataset[[#This Row],[2026/27 From - Spending review Topic 2]]+Dataset[[#This Row],[2026/27 From - Spending review Topic 3]]+Dataset[[#This Row],[2026/27 From - Spending review Topic 4]]+Dataset[[#This Row],[2026/27 From - Other reallocations]]","v":0},{"$f":"Dataset[[#This Row],[2027/28 From - Spending review Topic 1]]+Dataset[[#This Row],[2027/28 From - Spending review Topic 2]]+Dataset[[#This Row],[2027/28 From - Spending review Topic 3]]+Dataset[[#This Row],[2027/28 From - Spending review Topic 4]]+Dataset[[#This Row],[2027/28 From - Other reallocations]]","v":0},{"$f":"Dataset[[#This Row],[2025/26 To - Spending review Topic 1]]+Dataset[[#This Row],[2025/26 To - Spending review Topic 2]]+Dataset[[#This Row],[2025/26 To - Spending review Topic 3]]+Dataset[[#This Row],[2025/26 To - Spending review Topic 4]]+Dataset[[#This Row],[2025/26 To - Other reallocations]]","v":0},{"$f":"Dataset[[#This Row],[2026/27 To - Spending review Topic 1]]+Dataset[[#This Row],[2026/27 To - Spending review Topic 2]]+Dataset[[#This Row],[2026/27 To - Spending review Topic 3]]+Dataset[[#This Row],[2026/27 To - Spending review Topic 4]]+Dataset[[#This Row],[2026/27 To - Other reallocations]]","v":0},{"$f":"Dataset[[#This Row],[2027/28 To - Spending review Topic 1]]+Dataset[[#This Row],[2027/28 To - Spending review Topic 2]]+Dataset[[#This Row],[2027/28 To - Spending review Topic 3]]+Dataset[[#This Row],[2027/28 To - Spending review Topic 4]]+Dataset[[#This Row],[2027/28 To - Other reallocations]]","v":0},{"$f":"Dataset[[#This Row],[2025/26 Reduction]]+Dataset[[#This Row],[2025/26 From - Total]]","v":0},{"$f":"Dataset[[#This Row],[2026/27 Reduction]]+Dataset[[#This Row],[2026/27 From - Total]]","v":0},{"$f":"Dataset[[#This Row],[2027/28 Reduction]]+Dataset[[#This Row],[2027/28 From - Total]]","v":0},{"$f":"Dataset[[#This Row],[2024/25 Reduction]]","v":0},{"$f":"SUM(Dataset[[#This Row],[2025/26 Reduction]],Dataset[[#This Row],[2025/26 From - Total]],Dataset[[#This Row],[2025/26 To - Total]])","v":0},{"$f":"SUM(Dataset[[#This Row],[2026/27 Reduction]],Dataset[[#This Row],[2026/27 From - Total]],Dataset[[#This Row],[2026/27 To - Total]])","v":0},{"$f":"SUM(Dataset[[#This Row],[2027/28 Reduction]],Dataset[[#This Row],[2027/28 From - Total]],Dataset[[#This Row],[2027/28 To - Total]])","v":0},{"$f":"Dataset[[#This Row],[2024/25 Baseline]]+Dataset[[#This Row],[2024/25 Total change]]","v":3},{"$f":"Dataset[[#This Row],[2025/26 Baseline]]+Dataset[[#This Row],[2025/26 Total change]]","v":3},{"$f":"Dataset[[#This Row],[2026/27 Baseline]]+Dataset[[#This Row],[2026/27 Total change]]","v":3},{"$f":"Dataset[[#This Row],[2027/28 Baseline]]+Dataset[[#This Row],[2027/28 Total change]]","v":3}]
["NAT|Non-transfer item","40|Advertising","2025_26","MTEC2025",40,1,4,51439,167,"40","01","04","051439","000167","40|01|04|000167","01","01","02","04","04","01|01|02|04|04","National","Transport","Administration","Communications","Non-transfer item","Current","Current payments","Goods and services","Advertising","Advertising","Economic development","Economic regulation and infrastructure","NAT",6532,18168,16881,19030,14612,14612,6853,18262,19781,20793,21733,null,null,null,null,null,null,null,null,null,null,null,null,null,null,null,null,null,null,null,null,null,null,null,null,null,null,null,null,null,null,null,null,null,null,{"$f":"Dataset[[#This Row],[2025/26 From - Spending review Topic 1]]+Dataset[[#This Row],[2025/26 From - Spending review Topic 2]]+Dataset[[#This Row],[2025/26 From - Spending review Topic 3]]+Dataset[[#This Row],[2025/26 From - Spending review Topic 4]]+Dataset[[#This Row],[2025/26 From - Other reallocations]]","v":0},{"$f":"Dataset[[#This Row],[2026/27 From - Spending review Topic 1]]+Dataset[[#This Row],[2026/27 From - Spending review Topic 2]]+Dataset[[#This Row],[2026/27 From - Spending review Topic 3]]+Dataset[[#This Row],[2026/27 From - Spending review Topic 4]]+Dataset[[#This Row],[2026/27 From - Other reallocations]]","v":0},{"$f":"Dataset[[#This Row],[2027/28 From - Spending review Topic 1]]+Dataset[[#This Row],[2027/28 From - Spending review Topic 2]]+Dataset[[#This Row],[2027/28 From - Spending review Topic 3]]+Dataset[[#This Row],[2027/28 From - Spending review Topic 4]]+Dataset[[#This Row],[2027/28 From - Other reallocations]]","v":0},{"$f":"Dataset[[#This Row],[2025/26 To - Spending review Topic 1]]+Dataset[[#This Row],[2025/26 To - Spending review Topic 2]]+Dataset[[#This Row],[2025/26 To - Spending review Topic 3]]+Dataset[[#This Row],[2025/26 To - Spending review Topic 4]]+Dataset[[#This Row],[2025/26 To - Other reallocations]]","v":0},{"$f":"Dataset[[#This Row],[2026/27 To - Spending review Topic 1]]+Dataset[[#This Row],[2026/27 To - Spending review Topic 2]]+Dataset[[#This Row],[2026/27 To - Spending review Topic 3]]+Dataset[[#This Row],[2026/27 To - Spending review Topic 4]]+Dataset[[#This Row],[2026/27 To - Other reallocations]]","v":0},{"$f":"Dataset[[#This Row],[2027/28 To - Spending review Topic 1]]+Dataset[[#This Row],[2027/28 To - Spending review Topic 2]]+Dataset[[#This Row],[2027/28 To - Spending review Topic 3]]+Dataset[[#This Row],[2027/28 To - Spending review Topic 4]]+Dataset[[#This Row],[2027/28 To - Other reallocations]]","v":0},{"$f":"Dataset[[#This Row],[2025/26 Reduction]]+Dataset[[#This Row],[2025/26 From - Total]]","v":0},{"$f":"Dataset[[#This Row],[2026/27 Reduction]]+Dataset[[#This Row],[2026/27 From - Total]]","v":0},{"$f":"Dataset[[#This Row],[2027/28 Reduction]]+Dataset[[#This Row],[2027/28 From - Total]]","v":0},{"$f":"Dataset[[#This Row],[2024/25 Reduction]]","v":0},{"$f":"SUM(Dataset[[#This Row],[2025/26 Reduction]],Dataset[[#This Row],[2025/26 From - Total]],Dataset[[#This Row],[2025/26 To - Total]])","v":0},{"$f":"SUM(Dataset[[#This Row],[2026/27 Reduction]],Dataset[[#This Row],[2026/27 From - Total]],Dataset[[#This Row],[2026/27 To - Total]])","v":0},{"$f":"SUM(Dataset[[#This Row],[2027/28 Reduction]],Dataset[[#This Row],[2027/28 From - Total]],Dataset[[#This Row],[2027/28 To - Total]])","v":0},{"$f":"Dataset[[#This Row],[2024/25 Baseline]]+Dataset[[#This Row],[2024/25 Total change]]","v":18262},{"$f":"Dataset[[#This Row],[2025/26 Baseline]]+Dataset[[#This Row],[2025/26 Total change]]","v":19781},{"$f":"Dataset[[#This Row],[2026/27 Baseline]]+Dataset[[#This Row],[2026/27 Total change]]","v":20793},{"$f":"Dataset[[#This Row],[2027/28 Baseline]]+Dataset[[#This Row],[2027/28 Total change]]","v":21733}]
["NAT|Non-transfer item","40|Minor assets","2025_26","MTEC2025",40,1,4,51440,168,"40","01","04","051440","000168","40|01|04|000168","01","01","02","05","05","01|01|02|05|05","National","Transport","Administration","Communications","Non-transfer item","Current","Current payments","Goods and services","Minor assets","Minor assets","Economic development","Economic regulation and infrastructure","NAT",7,38,0,0,0,0,40,0,0,0,0,null,null,null,null,null,null,null,null,null,null,null,null,null,null,null,null,null,null,null,null,null,null,null,null,null,null,null,null,null,null,null,null,null,null,{"$f":"Dataset[[#This Row],[2025/26 From - Spending review Topic 1]]+Dataset[[#This Row],[2025/26 From - Spending review Topic 2]]+Dataset[[#This Row],[2025/26 From - Spending review Topic 3]]+Dataset[[#This Row],[2025/26 From - Spending review Topic 4]]+Dataset[[#This Row],[2025/26 From - Other reallocations]]","v":0},{"$f":"Dataset[[#This Row],[2026/27 From - Spending review Topic 1]]+Dataset[[#This Row],[2026/27 From - Spending review Topic 2]]+Dataset[[#This Row],[2026/27 From - Spending review Topic 3]]+Dataset[[#This Row],[2026/27 From - Spending review Topic 4]]+Dataset[[#This Row],[2026/27 From - Other reallocations]]","v":0},{"$f":"Dataset[[#This Row],[2027/28 From - Spending review Topic 1]]+Dataset[[#This Row],[2027/28 From - Spending review Topic 2]]+Dataset[[#This Row],[2027/28 From - Spending review Topic 3]]+Dataset[[#This Row],[2027/28 From - Spending review Topic 4]]+Dataset[[#This Row],[2027/28 From - Other reallocations]]","v":0},{"$f":"Dataset[[#This Row],[2025/26 To - Spending review Topic 1]]+Dataset[[#This Row],[2025/26 To - Spending review Topic 2]]+Dataset[[#This Row],[2025/26 To - Spending review Topic 3]]+Dataset[[#This Row],[2025/26 To - Spending review Topic 4]]+Dataset[[#This Row],[2025/26 To - Other reallocations]]","v":0},{"$f":"Dataset[[#This Row],[2026/27 To - Spending review Topic 1]]+Dataset[[#This Row],[2026/27 To - Spending review Topic 2]]+Dataset[[#This Row],[2026/27 To - Spending review Topic 3]]+Dataset[[#This Row],[2026/27 To - Spending review Topic 4]]+Dataset[[#This Row],[2026/27 To - Other reallocations]]","v":0},{"$f":"Dataset[[#This Row],[2027/28 To - Spending review Topic 1]]+Dataset[[#This Row],[2027/28 To - Spending review Topic 2]]+Dataset[[#This Row],[2027/28 To - Spending review Topic 3]]+Dataset[[#This Row],[2027/28 To - Spending review Topic 4]]+Dataset[[#This Row],[2027/28 To - Other reallocations]]","v":0},{"$f":"Dataset[[#This Row],[2025/26 Reduction]]+Dataset[[#This Row],[2025/26 From - Total]]","v":0},{"$f":"Dataset[[#This Row],[2026/27 Reduction]]+Dataset[[#This Row],[2026/27 From - Total]]","v":0},{"$f":"Dataset[[#This Row],[2027/28 Reduction]]+Dataset[[#This Row],[2027/28 From - Total]]","v":0},{"$f":"Dataset[[#This Row],[2024/25 Reduction]]","v":0},{"$f":"SUM(Dataset[[#This Row],[2025/26 Reduction]],Dataset[[#This Row],[2025/26 From - Total]],Dataset[[#This Row],[2025/26 To - Total]])","v":0},{"$f":"SUM(Dataset[[#This Row],[2026/27 Reduction]],Dataset[[#This Row],[2026/27 From - Total]],Dataset[[#This Row],[2026/27 To - Total]])","v":0},{"$f":"SUM(Dataset[[#This Row],[2027/28 Reduction]],Dataset[[#This Row],[2027/28 From - Total]],Dataset[[#This Row],[2027/28 To - Total]])","v":0},{"$f":"Dataset[[#This Row],[2024/25 Baseline]]+Dataset[[#This Row],[2024/25 Total change]]","v":0},{"$f":"Dataset[[#This Row],[2025/26 Baseline]]+Dataset[[#This Row],[2025/26 Total change]]","v":0},{"$f":"Dataset[[#This Row],[2026/27 Baseline]]+Dataset[[#This Row],[2026/27 Total change]]","v":0},{"$f":"Dataset[[#This Row],[2027/28 Baseline]]+Dataset[[#This Row],[2027/28 Total change]]","v":0}]
["NAT|Non-transfer item","40|Audit costs: External","2025_26","MTEC2025",40,1,4,51441,169,"40","01","04","051441","000169","40|01|04|000169","01","01","02","06","06","01|01|02|06|06","National","Transport","Administration","Communications","Non-transfer item","Current","Current payments","Goods and services","Audit costs: External","Audit costs: External","Economic development","Economic regulation and infrastructure","NAT",0,0,0,0,0,0,null,0,0,0,0,null,null,null,null,null,null,null,null,null,null,null,null,null,null,null,null,null,null,null,null,null,null,null,null,null,null,null,null,null,null,null,null,null,null,{"$f":"Dataset[[#This Row],[2025/26 From - Spending review Topic 1]]+Dataset[[#This Row],[2025/26 From - Spending review Topic 2]]+Dataset[[#This Row],[2025/26 From - Spending review Topic 3]]+Dataset[[#This Row],[2025/26 From - Spending review Topic 4]]+Dataset[[#This Row],[2025/26 From - Other reallocations]]","v":0},{"$f":"Dataset[[#This Row],[2026/27 From - Spending review Topic 1]]+Dataset[[#This Row],[2026/27 From - Spending review Topic 2]]+Dataset[[#This Row],[2026/27 From - Spending review Topic 3]]+Dataset[[#This Row],[2026/27 From - Spending review Topic 4]]+Dataset[[#This Row],[2026/27 From - Other reallocations]]","v":0},{"$f":"Dataset[[#This Row],[2027/28 From - Spending review Topic 1]]+Dataset[[#This Row],[2027/28 From - Spending review Topic 2]]+Dataset[[#This Row],[2027/28 From - Spending review Topic 3]]+Dataset[[#This Row],[2027/28 From - Spending review Topic 4]]+Dataset[[#This Row],[2027/28 From - Other reallocations]]","v":0},{"$f":"Dataset[[#This Row],[2025/26 To - Spending review Topic 1]]+Dataset[[#This Row],[2025/26 To - Spending review Topic 2]]+Dataset[[#This Row],[2025/26 To - Spending review Topic 3]]+Dataset[[#This Row],[2025/26 To - Spending review Topic 4]]+Dataset[[#This Row],[2025/26 To - Other reallocations]]","v":0},{"$f":"Dataset[[#This Row],[2026/27 To - Spending review Topic 1]]+Dataset[[#This Row],[2026/27 To - Spending review Topic 2]]+Dataset[[#This Row],[2026/27 To - Spending review Topic 3]]+Dataset[[#This Row],[2026/27 To - Spending review Topic 4]]+Dataset[[#This Row],[2026/27 To - Other reallocations]]","v":0},{"$f":"Dataset[[#This Row],[2027/28 To - Spending review Topic 1]]+Dataset[[#This Row],[2027/28 To - Spending review Topic 2]]+Dataset[[#This Row],[2027/28 To - Spending review Topic 3]]+Dataset[[#This Row],[2027/28 To - Spending review Topic 4]]+Dataset[[#This Row],[2027/28 To - Other reallocations]]","v":0},{"$f":"Dataset[[#This Row],[2025/26 Reduction]]+Dataset[[#This Row],[2025/26 From - Total]]","v":0},{"$f":"Dataset[[#This Row],[2026/27 Reduction]]+Dataset[[#This Row],[2026/27 From - Total]]","v":0},{"$f":"Dataset[[#This Row],[2027/28 Reduction]]+Dataset[[#This Row],[2027/28 From - Total]]","v":0},{"$f":"Dataset[[#This Row],[2024/25 Reduction]]","v":0},{"$f":"SUM(Dataset[[#This Row],[2025/26 Reduction]],Dataset[[#This Row],[2025/26 From - Total]],Dataset[[#This Row],[2025/26 To - Total]])","v":0},{"$f":"SUM(Dataset[[#This Row],[2026/27 Reduction]],Dataset[[#This Row],[2026/27 From - Total]],Dataset[[#This Row],[2026/27 To - Total]])","v":0},{"$f":"SUM(Dataset[[#This Row],[2027/28 Reduction]],Dataset[[#This Row],[2027/28 From - Total]],Dataset[[#This Row],[2027/28 To - Total]])","v":0},{"$f":"Dataset[[#This Row],[2024/25 Baseline]]+Dataset[[#This Row],[2024/25 Total change]]","v":0},{"$f":"Dataset[[#This Row],[2025/26 Baseline]]+Dataset[[#This Row],[2025/26 Total change]]","v":0},{"$f":"Dataset[[#This Row],[2026/27 Baseline]]+Dataset[[#This Row],[2026/27 Total change]]","v":0},{"$f":"Dataset[[#This Row],[2027/28 Baseline]]+Dataset[[#This Row],[2027/28 Total change]]","v":0}]
["NAT|Non-transfer item","40|Bursaries: Employees","2025_26","MTEC2025",40,1,4,51442,170,"40","01","04","051442","000170","40|01|04|000170","01","01","02","07","07","01|01|02|07|07","National","Transport","Administration","Communications","Non-transfer item","Current","Current payments","Goods and services","Bursaries: Employees","Bursaries: Employees","Economic development","Economic regulation and infrastructure","NAT",0,0,0,0,0,0,null,0,0,0,0,null,null,null,null,null,null,null,null,null,null,null,null,null,null,null,null,null,null,null,null,null,null,null,null,null,null,null,null,null,null,null,null,null,null,{"$f":"Dataset[[#This Row],[2025/26 From - Spending review Topic 1]]+Dataset[[#This Row],[2025/26 From - Spending review Topic 2]]+Dataset[[#This Row],[2025/26 From - Spending review Topic 3]]+Dataset[[#This Row],[2025/26 From - Spending review Topic 4]]+Dataset[[#This Row],[2025/26 From - Other reallocations]]","v":0},{"$f":"Dataset[[#This Row],[2026/27 From - Spending review Topic 1]]+Dataset[[#This Row],[2026/27 From - Spending review Topic 2]]+Dataset[[#This Row],[2026/27 From - Spending review Topic 3]]+Dataset[[#This Row],[2026/27 From - Spending review Topic 4]]+Dataset[[#This Row],[2026/27 From - Other reallocations]]","v":0},{"$f":"Dataset[[#This Row],[2027/28 From - Spending review Topic 1]]+Dataset[[#This Row],[2027/28 From - Spending review Topic 2]]+Dataset[[#This Row],[2027/28 From - Spending review Topic 3]]+Dataset[[#This Row],[2027/28 From - Spending review Topic 4]]+Dataset[[#This Row],[2027/28 From - Other reallocations]]","v":0},{"$f":"Dataset[[#This Row],[2025/26 To - Spending review Topic 1]]+Dataset[[#This Row],[2025/26 To - Spending review Topic 2]]+Dataset[[#This Row],[2025/26 To - Spending review Topic 3]]+Dataset[[#This Row],[2025/26 To - Spending review Topic 4]]+Dataset[[#This Row],[2025/26 To - Other reallocations]]","v":0},{"$f":"Dataset[[#This Row],[2026/27 To - Spending review Topic 1]]+Dataset[[#This Row],[2026/27 To - Spending review Topic 2]]+Dataset[[#This Row],[2026/27 To - Spending review Topic 3]]+Dataset[[#This Row],[2026/27 To - Spending review Topic 4]]+Dataset[[#This Row],[2026/27 To - Other reallocations]]","v":0},{"$f":"Dataset[[#This Row],[2027/28 To - Spending review Topic 1]]+Dataset[[#This Row],[2027/28 To - Spending review Topic 2]]+Dataset[[#This Row],[2027/28 To - Spending review Topic 3]]+Dataset[[#This Row],[2027/28 To - Spending review Topic 4]]+Dataset[[#This Row],[2027/28 To - Other reallocations]]","v":0},{"$f":"Dataset[[#This Row],[2025/26 Reduction]]+Dataset[[#This Row],[2025/26 From - Total]]","v":0},{"$f":"Dataset[[#This Row],[2026/27 Reduction]]+Dataset[[#This Row],[2026/27 From - Total]]","v":0},{"$f":"Dataset[[#This Row],[2027/28 Reduction]]+Dataset[[#This Row],[2027/28 From - Total]]","v":0},{"$f":"Dataset[[#This Row],[2024/25 Reduction]]","v":0},{"$f":"SUM(Dataset[[#This Row],[2025/26 Reduction]],Dataset[[#This Row],[2025/26 From - Total]],Dataset[[#This Row],[2025/26 To - Total]])","v":0},{"$f":"SUM(Dataset[[#This Row],[2026/27 Reduction]],Dataset[[#This Row],[2026/27 From - Total]],Dataset[[#This Row],[2026/27 To - Total]])","v":0},{"$f":"SUM(Dataset[[#This Row],[2027/28 Reduction]],Dataset[[#This Row],[2027/28 From - Total]],Dataset[[#This Row],[2027/28 To - Total]])","v":0},{"$f":"Dataset[[#This Row],[2024/25 Baseline]]+Dataset[[#This Row],[2024/25 Total change]]","v":0},{"$f":"Dataset[[#This Row],[2025/26 Baseline]]+Dataset[[#This Row],[2025/26 Total change]]","v":0},{"$f":"Dataset[[#This Row],[2026/27 Baseline]]+Dataset[[#This Row],[2026/27 Total change]]","v":0},{"$f":"Dataset[[#This Row],[2027/28 Baseline]]+Dataset[[#This Row],[2027/28 Total change]]","v":0}]
["NAT|Non-transfer item","40|Catering: Departmental activities","2025_26","MTEC2025",40,1,4,51443,171,"40","01","04","051443","000171","40|01|04|000171","01","01","02","08","08","01|01|02|08|08","National","Transport","Administration","Communications","Non-transfer item","Current","Current payments","Goods and services","Catering: Departmental activities","Catering: Departmental activities","Economic development","Economic regulation and infrastructure","NAT",0,0,216,70,70,70,null,70,76,80,84,null,null,null,null,null,null,null,null,null,null,null,null,null,null,null,null,null,null,null,null,null,null,null,null,null,null,null,null,null,null,null,null,null,null,{"$f":"Dataset[[#This Row],[2025/26 From - Spending review Topic 1]]+Dataset[[#This Row],[2025/26 From - Spending review Topic 2]]+Dataset[[#This Row],[2025/26 From - Spending review Topic 3]]+Dataset[[#This Row],[2025/26 From - Spending review Topic 4]]+Dataset[[#This Row],[2025/26 From - Other reallocations]]","v":0},{"$f":"Dataset[[#This Row],[2026/27 From - Spending review Topic 1]]+Dataset[[#This Row],[2026/27 From - Spending review Topic 2]]+Dataset[[#This Row],[2026/27 From - Spending review Topic 3]]+Dataset[[#This Row],[2026/27 From - Spending review Topic 4]]+Dataset[[#This Row],[2026/27 From - Other reallocations]]","v":0},{"$f":"Dataset[[#This Row],[2027/28 From - Spending review Topic 1]]+Dataset[[#This Row],[2027/28 From - Spending review Topic 2]]+Dataset[[#This Row],[2027/28 From - Spending review Topic 3]]+Dataset[[#This Row],[2027/28 From - Spending review Topic 4]]+Dataset[[#This Row],[2027/28 From - Other reallocations]]","v":0},{"$f":"Dataset[[#This Row],[2025/26 To - Spending review Topic 1]]+Dataset[[#This Row],[2025/26 To - Spending review Topic 2]]+Dataset[[#This Row],[2025/26 To - Spending review Topic 3]]+Dataset[[#This Row],[2025/26 To - Spending review Topic 4]]+Dataset[[#This Row],[2025/26 To - Other reallocations]]","v":0},{"$f":"Dataset[[#This Row],[2026/27 To - Spending review Topic 1]]+Dataset[[#This Row],[2026/27 To - Spending review Topic 2]]+Dataset[[#This Row],[2026/27 To - Spending review Topic 3]]+Dataset[[#This Row],[2026/27 To - Spending review Topic 4]]+Dataset[[#This Row],[2026/27 To - Other reallocations]]","v":0},{"$f":"Dataset[[#This Row],[2027/28 To - Spending review Topic 1]]+Dataset[[#This Row],[2027/28 To - Spending review Topic 2]]+Dataset[[#This Row],[2027/28 To - Spending review Topic 3]]+Dataset[[#This Row],[2027/28 To - Spending review Topic 4]]+Dataset[[#This Row],[2027/28 To - Other reallocations]]","v":0},{"$f":"Dataset[[#This Row],[2025/26 Reduction]]+Dataset[[#This Row],[2025/26 From - Total]]","v":0},{"$f":"Dataset[[#This Row],[2026/27 Reduction]]+Dataset[[#This Row],[2026/27 From - Total]]","v":0},{"$f":"Dataset[[#This Row],[2027/28 Reduction]]+Dataset[[#This Row],[2027/28 From - Total]]","v":0},{"$f":"Dataset[[#This Row],[2024/25 Reduction]]","v":0},{"$f":"SUM(Dataset[[#This Row],[2025/26 Reduction]],Dataset[[#This Row],[2025/26 From - Total]],Dataset[[#This Row],[2025/26 To - Total]])","v":0},{"$f":"SUM(Dataset[[#This Row],[2026/27 Reduction]],Dataset[[#This Row],[2026/27 From - Total]],Dataset[[#This Row],[2026/27 To - Total]])","v":0},{"$f":"SUM(Dataset[[#This Row],[2027/28 Reduction]],Dataset[[#This Row],[2027/28 From - Total]],Dataset[[#This Row],[2027/28 To - Total]])","v":0},{"$f":"Dataset[[#This Row],[2024/25 Baseline]]+Dataset[[#This Row],[2024/25 Total change]]","v":70},{"$f":"Dataset[[#This Row],[2025/26 Baseline]]+Dataset[[#This Row],[2025/26 Total change]]","v":76},{"$f":"Dataset[[#This Row],[2026/27 Baseline]]+Dataset[[#This Row],[2026/27 Total change]]","v":80},{"$f":"Dataset[[#This Row],[2027/28 Baseline]]+Dataset[[#This Row],[2027/28 Total change]]","v":84}]
["NAT|Non-transfer item","40|Communication (G&S)","2025_26","MTEC2025",40,1,4,51444,172,"40","01","04","051444","000172","40|01|04|000172","01","01","02","09","09","01|01|02|09|09","National","Transport","Administration","Communications","Non-transfer item","Current","Current payments","Goods and services","Communication (G&S)","Communication (G&S)","Economic development","Economic regulation and infrastructure","NAT",89,101,120,287,4287,4287,14271,7787,8435,8867,9268,null,null,null,null,null,null,null,null,null,null,null,null,null,null,null,null,null,null,null,null,null,null,null,null,null,null,null,null,null,null,null,null,null,null,{"$f":"Dataset[[#This Row],[2025/26 From - Spending review Topic 1]]+Dataset[[#This Row],[2025/26 From - Spending review Topic 2]]+Dataset[[#This Row],[2025/26 From - Spending review Topic 3]]+Dataset[[#This Row],[2025/26 From - Spending review Topic 4]]+Dataset[[#This Row],[2025/26 From - Other reallocations]]","v":0},{"$f":"Dataset[[#This Row],[2026/27 From - Spending review Topic 1]]+Dataset[[#This Row],[2026/27 From - Spending review Topic 2]]+Dataset[[#This Row],[2026/27 From - Spending review Topic 3]]+Dataset[[#This Row],[2026/27 From - Spending review Topic 4]]+Dataset[[#This Row],[2026/27 From - Other reallocations]]","v":0},{"$f":"Dataset[[#This Row],[2027/28 From - Spending review Topic 1]]+Dataset[[#This Row],[2027/28 From - Spending review Topic 2]]+Dataset[[#This Row],[2027/28 From - Spending review Topic 3]]+Dataset[[#This Row],[2027/28 From - Spending review Topic 4]]+Dataset[[#This Row],[2027/28 From - Other reallocations]]","v":0},{"$f":"Dataset[[#This Row],[2025/26 To - Spending review Topic 1]]+Dataset[[#This Row],[2025/26 To - Spending review Topic 2]]+Dataset[[#This Row],[2025/26 To - Spending review Topic 3]]+Dataset[[#This Row],[2025/26 To - Spending review Topic 4]]+Dataset[[#This Row],[2025/26 To - Other reallocations]]","v":0},{"$f":"Dataset[[#This Row],[2026/27 To - Spending review Topic 1]]+Dataset[[#This Row],[2026/27 To - Spending review Topic 2]]+Dataset[[#This Row],[2026/27 To - Spending review Topic 3]]+Dataset[[#This Row],[2026/27 To - Spending review Topic 4]]+Dataset[[#This Row],[2026/27 To - Other reallocations]]","v":0},{"$f":"Dataset[[#This Row],[2027/28 To - Spending review Topic 1]]+Dataset[[#This Row],[2027/28 To - Spending review Topic 2]]+Dataset[[#This Row],[2027/28 To - Spending review Topic 3]]+Dataset[[#This Row],[2027/28 To - Spending review Topic 4]]+Dataset[[#This Row],[2027/28 To - Other reallocations]]","v":0},{"$f":"Dataset[[#This Row],[2025/26 Reduction]]+Dataset[[#This Row],[2025/26 From - Total]]","v":0},{"$f":"Dataset[[#This Row],[2026/27 Reduction]]+Dataset[[#This Row],[2026/27 From - Total]]","v":0},{"$f":"Dataset[[#This Row],[2027/28 Reduction]]+Dataset[[#This Row],[2027/28 From - Total]]","v":0},{"$f":"Dataset[[#This Row],[2024/25 Reduction]]","v":0},{"$f":"SUM(Dataset[[#This Row],[2025/26 Reduction]],Dataset[[#This Row],[2025/26 From - Total]],Dataset[[#This Row],[2025/26 To - Total]])","v":0},{"$f":"SUM(Dataset[[#This Row],[2026/27 Reduction]],Dataset[[#This Row],[2026/27 From - Total]],Dataset[[#This Row],[2026/27 To - Total]])","v":0},{"$f":"SUM(Dataset[[#This Row],[2027/28 Reduction]],Dataset[[#This Row],[2027/28 From - Total]],Dataset[[#This Row],[2027/28 To - Total]])","v":0},{"$f":"Dataset[[#This Row],[2024/25 Baseline]]+Dataset[[#This Row],[2024/25 Total change]]","v":7787},{"$f":"Dataset[[#This Row],[2025/26 Baseline]]+Dataset[[#This Row],[2025/26 Total change]]","v":8435},{"$f":"Dataset[[#This Row],[2026/27 Baseline]]+Dataset[[#This Row],[2026/27 Total change]]","v":8867},{"$f":"Dataset[[#This Row],[2027/28 Baseline]]+Dataset[[#This Row],[2027/28 Total change]]","v":9268}]
["NAT|Non-transfer item","40|Computer services","2025_26","MTEC2025",40,1,4,51445,173,"40","01","04","051445","000173","40|01|04|000173","01","01","02","10","10","01|01|02|10|10","National","Transport","Administration","Communications","Non-transfer item","Current","Current payments","Goods and services","Computer services","Computer services","Economic development","Economic regulation and infrastructure","NAT",0,0,0,0,0,0,null,0,0,0,0,null,null,null,null,null,null,null,null,null,null,null,null,null,null,null,null,null,null,null,null,null,null,null,null,null,null,null,null,null,null,null,null,null,null,{"$f":"Dataset[[#This Row],[2025/26 From - Spending review Topic 1]]+Dataset[[#This Row],[2025/26 From - Spending review Topic 2]]+Dataset[[#This Row],[2025/26 From - Spending review Topic 3]]+Dataset[[#This Row],[2025/26 From - Spending review Topic 4]]+Dataset[[#This Row],[2025/26 From - Other reallocations]]","v":0},{"$f":"Dataset[[#This Row],[2026/27 From - Spending review Topic 1]]+Dataset[[#This Row],[2026/27 From - Spending review Topic 2]]+Dataset[[#This Row],[2026/27 From - Spending review Topic 3]]+Dataset[[#This Row],[2026/27 From - Spending review Topic 4]]+Dataset[[#This Row],[2026/27 From - Other reallocations]]","v":0},{"$f":"Dataset[[#This Row],[2027/28 From - Spending review Topic 1]]+Dataset[[#This Row],[2027/28 From - Spending review Topic 2]]+Dataset[[#This Row],[2027/28 From - Spending review Topic 3]]+Dataset[[#This Row],[2027/28 From - Spending review Topic 4]]+Dataset[[#This Row],[2027/28 From - Other reallocations]]","v":0},{"$f":"Dataset[[#This Row],[2025/26 To - Spending review Topic 1]]+Dataset[[#This Row],[2025/26 To - Spending review Topic 2]]+Dataset[[#This Row],[2025/26 To - Spending review Topic 3]]+Dataset[[#This Row],[2025/26 To - Spending review Topic 4]]+Dataset[[#This Row],[2025/26 To - Other reallocations]]","v":0},{"$f":"Dataset[[#This Row],[2026/27 To - Spending review Topic 1]]+Dataset[[#This Row],[2026/27 To - Spending review Topic 2]]+Dataset[[#This Row],[2026/27 To - Spending review Topic 3]]+Dataset[[#This Row],[2026/27 To - Spending review Topic 4]]+Dataset[[#This Row],[2026/27 To - Other reallocations]]","v":0},{"$f":"Dataset[[#This Row],[2027/28 To - Spending review Topic 1]]+Dataset[[#This Row],[2027/28 To - Spending review Topic 2]]+Dataset[[#This Row],[2027/28 To - Spending review Topic 3]]+Dataset[[#This Row],[2027/28 To - Spending review Topic 4]]+Dataset[[#This Row],[2027/28 To - Other reallocations]]","v":0},{"$f":"Dataset[[#This Row],[2025/26 Reduction]]+Dataset[[#This Row],[2025/26 From - Total]]","v":0},{"$f":"Dataset[[#This Row],[2026/27 Reduction]]+Dataset[[#This Row],[2026/27 From - Total]]","v":0},{"$f":"Dataset[[#This Row],[2027/28 Reduction]]+Dataset[[#This Row],[2027/28 From - Total]]","v":0},{"$f":"Dataset[[#This Row],[2024/25 Reduction]]","v":0},{"$f":"SUM(Dataset[[#This Row],[2025/26 Reduction]],Dataset[[#This Row],[2025/26 From - Total]],Dataset[[#This Row],[2025/26 To - Total]])","v":0},{"$f":"SUM(Dataset[[#This Row],[2026/27 Reduction]],Dataset[[#This Row],[2026/27 From - Total]],Dataset[[#This Row],[2026/27 To - Total]])","v":0},{"$f":"SUM(Dataset[[#This Row],[2027/28 Reduction]],Dataset[[#This Row],[2027/28 From - Total]],Dataset[[#This Row],[2027/28 To - Total]])","v":0},{"$f":"Dataset[[#This Row],[2024/25 Baseline]]+Dataset[[#This Row],[2024/25 Total change]]","v":0},{"$f":"Dataset[[#This Row],[2025/26 Baseline]]+Dataset[[#This Row],[2025/26 Total change]]","v":0},{"$f":"Dataset[[#This Row],[2026/27 Baseline]]+Dataset[[#This Row],[2026/27 Total change]]","v":0},{"$f":"Dataset[[#This Row],[2027/28 Baseline]]+Dataset[[#This Row],[2027/28 Total change]]","v":0}]
["NAT|Non-transfer item","40|Consultants: Business and advisory services","2025_26","MTEC2025",40,1,4,51446,174,"40","01","04","051446","000174","40|01|04|000174","01","01","02","11","11","01|01|02|11|11","National","Transport","Administration","Communications","Non-transfer item","Current","Current payments","Goods and services","Consultants: Business and advisory services","Consultants: Business and advisory services","Economic development","Economic regulation and infrastructure","NAT",63,0,0,0,0,0,null,0,0,0,0,null,null,null,null,null,null,null,null,null,null,null,null,null,null,null,null,null,null,null,null,null,null,null,null,null,null,null,null,null,null,null,null,null,null,{"$f":"Dataset[[#This Row],[2025/26 From - Spending review Topic 1]]+Dataset[[#This Row],[2025/26 From - Spending review Topic 2]]+Dataset[[#This Row],[2025/26 From - Spending review Topic 3]]+Dataset[[#This Row],[2025/26 From - Spending review Topic 4]]+Dataset[[#This Row],[2025/26 From - Other reallocations]]","v":0},{"$f":"Dataset[[#This Row],[2026/27 From - Spending review Topic 1]]+Dataset[[#This Row],[2026/27 From - Spending review Topic 2]]+Dataset[[#This Row],[2026/27 From - Spending review Topic 3]]+Dataset[[#This Row],[2026/27 From - Spending review Topic 4]]+Dataset[[#This Row],[2026/27 From - Other reallocations]]","v":0},{"$f":"Dataset[[#This Row],[2027/28 From - Spending review Topic 1]]+Dataset[[#This Row],[2027/28 From - Spending review Topic 2]]+Dataset[[#This Row],[2027/28 From - Spending review Topic 3]]+Dataset[[#This Row],[2027/28 From - Spending review Topic 4]]+Dataset[[#This Row],[2027/28 From - Other reallocations]]","v":0},{"$f":"Dataset[[#This Row],[2025/26 To - Spending review Topic 1]]+Dataset[[#This Row],[2025/26 To - Spending review Topic 2]]+Dataset[[#This Row],[2025/26 To - Spending review Topic 3]]+Dataset[[#This Row],[2025/26 To - Spending review Topic 4]]+Dataset[[#This Row],[2025/26 To - Other reallocations]]","v":0},{"$f":"Dataset[[#This Row],[2026/27 To - Spending review Topic 1]]+Dataset[[#This Row],[2026/27 To - Spending review Topic 2]]+Dataset[[#This Row],[2026/27 To - Spending review Topic 3]]+Dataset[[#This Row],[2026/27 To - Spending review Topic 4]]+Dataset[[#This Row],[2026/27 To - Other reallocations]]","v":0},{"$f":"Dataset[[#This Row],[2027/28 To - Spending review Topic 1]]+Dataset[[#This Row],[2027/28 To - Spending review Topic 2]]+Dataset[[#This Row],[2027/28 To - Spending review Topic 3]]+Dataset[[#This Row],[2027/28 To - Spending review Topic 4]]+Dataset[[#This Row],[2027/28 To - Other reallocations]]","v":0},{"$f":"Dataset[[#This Row],[2025/26 Reduction]]+Dataset[[#This Row],[2025/26 From - Total]]","v":0},{"$f":"Dataset[[#This Row],[2026/27 Reduction]]+Dataset[[#This Row],[2026/27 From - Total]]","v":0},{"$f":"Dataset[[#This Row],[2027/28 Reduction]]+Dataset[[#This Row],[2027/28 From - Total]]","v":0},{"$f":"Dataset[[#This Row],[2024/25 Reduction]]","v":0},{"$f":"SUM(Dataset[[#This Row],[2025/26 Reduction]],Dataset[[#This Row],[2025/26 From - Total]],Dataset[[#This Row],[2025/26 To - Total]])","v":0},{"$f":"SUM(Dataset[[#This Row],[2026/27 Reduction]],Dataset[[#This Row],[2026/27 From - Total]],Dataset[[#This Row],[2026/27 To - Total]])","v":0},{"$f":"SUM(Dataset[[#This Row],[2027/28 Reduction]],Dataset[[#This Row],[2027/28 From - Total]],Dataset[[#This Row],[2027/28 To - Total]])","v":0},{"$f":"Dataset[[#This Row],[2024/25 Baseline]]+Dataset[[#This Row],[2024/25 Total change]]","v":0},{"$f":"Dataset[[#This Row],[2025/26 Baseline]]+Dataset[[#This Row],[2025/26 Total change]]","v":0},{"$f":"Dataset[[#This Row],[2026/27 Baseline]]+Dataset[[#This Row],[2026/27 Total change]]","v":0},{"$f":"Dataset[[#This Row],[2027/28 Baseline]]+Dataset[[#This Row],[2027/28 Total change]]","v":0}]
["NAT|Non-transfer item","40|Infrastructure and planning services","2025_26","MTEC2025",40,1,4,51447,175,"40","01","04","051447","000175","40|01|04|000175","01","01","02","12","12","01|01|02|12|12","National","Transport","Administration","Communications","Non-transfer item","Current","Current payments","Goods and services","Infrastructure and planning services","Infrastructure and planning services","Economic development","Economic regulation and infrastructure","NAT",0,0,0,0,0,0,null,0,0,0,0,null,null,null,null,null,null,null,null,null,null,null,null,null,null,null,null,null,null,null,null,null,null,null,null,null,null,null,null,null,null,null,null,null,null,{"$f":"Dataset[[#This Row],[2025/26 From - Spending review Topic 1]]+Dataset[[#This Row],[2025/26 From - Spending review Topic 2]]+Dataset[[#This Row],[2025/26 From - Spending review Topic 3]]+Dataset[[#This Row],[2025/26 From - Spending review Topic 4]]+Dataset[[#This Row],[2025/26 From - Other reallocations]]","v":0},{"$f":"Dataset[[#This Row],[2026/27 From - Spending review Topic 1]]+Dataset[[#This Row],[2026/27 From - Spending review Topic 2]]+Dataset[[#This Row],[2026/27 From - Spending review Topic 3]]+Dataset[[#This Row],[2026/27 From - Spending review Topic 4]]+Dataset[[#This Row],[2026/27 From - Other reallocations]]","v":0},{"$f":"Dataset[[#This Row],[2027/28 From - Spending review Topic 1]]+Dataset[[#This Row],[2027/28 From - Spending review Topic 2]]+Dataset[[#This Row],[2027/28 From - Spending review Topic 3]]+Dataset[[#This Row],[2027/28 From - Spending review Topic 4]]+Dataset[[#This Row],[2027/28 From - Other reallocations]]","v":0},{"$f":"Dataset[[#This Row],[2025/26 To - Spending review Topic 1]]+Dataset[[#This Row],[2025/26 To - Spending review Topic 2]]+Dataset[[#This Row],[2025/26 To - Spending review Topic 3]]+Dataset[[#This Row],[2025/26 To - Spending review Topic 4]]+Dataset[[#This Row],[2025/26 To - Other reallocations]]","v":0},{"$f":"Dataset[[#This Row],[2026/27 To - Spending review Topic 1]]+Dataset[[#This Row],[2026/27 To - Spending review Topic 2]]+Dataset[[#This Row],[2026/27 To - Spending review Topic 3]]+Dataset[[#This Row],[2026/27 To - Spending review Topic 4]]+Dataset[[#This Row],[2026/27 To - Other reallocations]]","v":0},{"$f":"Dataset[[#This Row],[2027/28 To - Spending review Topic 1]]+Dataset[[#This Row],[2027/28 To - Spending review Topic 2]]+Dataset[[#This Row],[2027/28 To - Spending review Topic 3]]+Dataset[[#This Row],[2027/28 To - Spending review Topic 4]]+Dataset[[#This Row],[2027/28 To - Other reallocations]]","v":0},{"$f":"Dataset[[#This Row],[2025/26 Reduction]]+Dataset[[#This Row],[2025/26 From - Total]]","v":0},{"$f":"Dataset[[#This Row],[2026/27 Reduction]]+Dataset[[#This Row],[2026/27 From - Total]]","v":0},{"$f":"Dataset[[#This Row],[2027/28 Reduction]]+Dataset[[#This Row],[2027/28 From - Total]]","v":0},{"$f":"Dataset[[#This Row],[2024/25 Reduction]]","v":0},{"$f":"SUM(Dataset[[#This Row],[2025/26 Reduction]],Dataset[[#This Row],[2025/26 From - Total]],Dataset[[#This Row],[2025/26 To - Total]])","v":0},{"$f":"SUM(Dataset[[#This Row],[2026/27 Reduction]],Dataset[[#This Row],[2026/27 From - Total]],Dataset[[#This Row],[2026/27 To - Total]])","v":0},{"$f":"SUM(Dataset[[#This Row],[2027/28 Reduction]],Dataset[[#This Row],[2027/28 From - Total]],Dataset[[#This Row],[2027/28 To - Total]])","v":0},{"$f":"Dataset[[#This Row],[2024/25 Baseline]]+Dataset[[#This Row],[2024/25 Total change]]","v":0},{"$f":"Dataset[[#This Row],[2025/26 Baseline]]+Dataset[[#This Row],[2025/26 Total change]]","v":0},{"$f":"Dataset[[#This Row],[2026/27 Baseline]]+Dataset[[#This Row],[2026/27 Total change]]","v":0},{"$f":"Dataset[[#This Row],[2027/28 Baseline]]+Dataset[[#This Row],[2027/28 Total change]]","v":0}]
["NAT|Non-transfer item","40|Laboratory services","2025_26","MTEC2025",40,1,4,51448,176,"40","01","04","051448","000176","40|01|04|000176","01","01","02","13","13","01|01|02|13|13","National","Transport","Administration","Communications","Non-transfer item","Current","Current payments","Goods and services","Laboratory services","Laboratory services","Economic development","Economic regulation and infrastructure","NAT",0,0,0,0,0,0,null,0,0,0,0,null,null,null,null,null,null,null,null,null,null,null,null,null,null,null,null,null,null,null,null,null,null,null,null,null,null,null,null,null,null,null,null,null,null,{"$f":"Dataset[[#This Row],[2025/26 From - Spending review Topic 1]]+Dataset[[#This Row],[2025/26 From - Spending review Topic 2]]+Dataset[[#This Row],[2025/26 From - Spending review Topic 3]]+Dataset[[#This Row],[2025/26 From - Spending review Topic 4]]+Dataset[[#This Row],[2025/26 From - Other reallocations]]","v":0},{"$f":"Dataset[[#This Row],[2026/27 From - Spending review Topic 1]]+Dataset[[#This Row],[2026/27 From - Spending review Topic 2]]+Dataset[[#This Row],[2026/27 From - Spending review Topic 3]]+Dataset[[#This Row],[2026/27 From - Spending review Topic 4]]+Dataset[[#This Row],[2026/27 From - Other reallocations]]","v":0},{"$f":"Dataset[[#This Row],[2027/28 From - Spending review Topic 1]]+Dataset[[#This Row],[2027/28 From - Spending review Topic 2]]+Dataset[[#This Row],[2027/28 From - Spending review Topic 3]]+Dataset[[#This Row],[2027/28 From - Spending review Topic 4]]+Dataset[[#This Row],[2027/28 From - Other reallocations]]","v":0},{"$f":"Dataset[[#This Row],[2025/26 To - Spending review Topic 1]]+Dataset[[#This Row],[2025/26 To - Spending review Topic 2]]+Dataset[[#This Row],[2025/26 To - Spending review Topic 3]]+Dataset[[#This Row],[2025/26 To - Spending review Topic 4]]+Dataset[[#This Row],[2025/26 To - Other reallocations]]","v":0},{"$f":"Dataset[[#This Row],[2026/27 To - Spending review Topic 1]]+Dataset[[#This Row],[2026/27 To - Spending review Topic 2]]+Dataset[[#This Row],[2026/27 To - Spending review Topic 3]]+Dataset[[#This Row],[2026/27 To - Spending review Topic 4]]+Dataset[[#This Row],[2026/27 To - Other reallocations]]","v":0},{"$f":"Dataset[[#This Row],[2027/28 To - Spending review Topic 1]]+Dataset[[#This Row],[2027/28 To - Spending review Topic 2]]+Dataset[[#This Row],[2027/28 To - Spending review Topic 3]]+Dataset[[#This Row],[2027/28 To - Spending review Topic 4]]+Dataset[[#This Row],[2027/28 To - Other reallocations]]","v":0},{"$f":"Dataset[[#This Row],[2025/26 Reduction]]+Dataset[[#This Row],[2025/26 From - Total]]","v":0},{"$f":"Dataset[[#This Row],[2026/27 Reduction]]+Dataset[[#This Row],[2026/27 From - Total]]","v":0},{"$f":"Dataset[[#This Row],[2027/28 Reduction]]+Dataset[[#This Row],[2027/28 From - Total]]","v":0},{"$f":"Dataset[[#This Row],[2024/25 Reduction]]","v":0},{"$f":"SUM(Dataset[[#This Row],[2025/26 Reduction]],Dataset[[#This Row],[2025/26 From - Total]],Dataset[[#This Row],[2025/26 To - Total]])","v":0},{"$f":"SUM(Dataset[[#This Row],[2026/27 Reduction]],Dataset[[#This Row],[2026/27 From - Total]],Dataset[[#This Row],[2026/27 To - Total]])","v":0},{"$f":"SUM(Dataset[[#This Row],[2027/28 Reduction]],Dataset[[#This Row],[2027/28 From - Total]],Dataset[[#This Row],[2027/28 To - Total]])","v":0},{"$f":"Dataset[[#This Row],[2024/25 Baseline]]+Dataset[[#This Row],[2024/25 Total change]]","v":0},{"$f":"Dataset[[#This Row],[2025/26 Baseline]]+Dataset[[#This Row],[2025/26 Total change]]","v":0},{"$f":"Dataset[[#This Row],[2026/27 Baseline]]+Dataset[[#This Row],[2026/27 Total change]]","v":0},{"$f":"Dataset[[#This Row],[2027/28 Baseline]]+Dataset[[#This Row],[2027/28 Total change]]","v":0}]
["NAT|Non-transfer item","40|Legal services (G&S)","2025_26","MTEC2025",40,1,4,51449,177,"40","01","04","051449","000177","40|01|04|000177","01","01","02","14","14","01|01|02|14|14","National","Transport","Administration","Communications","Non-transfer item","Current","Current payments","Goods and services","Legal services (G&S)","Legal services (G&S)","Economic development","Economic regulation and infrastructure","NAT",0,0,0,0,0,0,null,0,0,0,0,null,null,null,null,null,null,null,null,null,null,null,null,null,null,null,null,null,null,null,null,null,null,null,null,null,null,null,null,null,null,null,null,null,null,{"$f":"Dataset[[#This Row],[2025/26 From - Spending review Topic 1]]+Dataset[[#This Row],[2025/26 From - Spending review Topic 2]]+Dataset[[#This Row],[2025/26 From - Spending review Topic 3]]+Dataset[[#This Row],[2025/26 From - Spending review Topic 4]]+Dataset[[#This Row],[2025/26 From - Other reallocations]]","v":0},{"$f":"Dataset[[#This Row],[2026/27 From - Spending review Topic 1]]+Dataset[[#This Row],[2026/27 From - Spending review Topic 2]]+Dataset[[#This Row],[2026/27 From - Spending review Topic 3]]+Dataset[[#This Row],[2026/27 From - Spending review Topic 4]]+Dataset[[#This Row],[2026/27 From - Other reallocations]]","v":0},{"$f":"Dataset[[#This Row],[2027/28 From - Spending review Topic 1]]+Dataset[[#This Row],[2027/28 From - Spending review Topic 2]]+Dataset[[#This Row],[2027/28 From - Spending review Topic 3]]+Dataset[[#This Row],[2027/28 From - Spending review Topic 4]]+Dataset[[#This Row],[2027/28 From - Other reallocations]]","v":0},{"$f":"Dataset[[#This Row],[2025/26 To - Spending review Topic 1]]+Dataset[[#This Row],[2025/26 To - Spending review Topic 2]]+Dataset[[#This Row],[2025/26 To - Spending review Topic 3]]+Dataset[[#This Row],[2025/26 To - Spending review Topic 4]]+Dataset[[#This Row],[2025/26 To - Other reallocations]]","v":0},{"$f":"Dataset[[#This Row],[2026/27 To - Spending review Topic 1]]+Dataset[[#This Row],[2026/27 To - Spending review Topic 2]]+Dataset[[#This Row],[2026/27 To - Spending review Topic 3]]+Dataset[[#This Row],[2026/27 To - Spending review Topic 4]]+Dataset[[#This Row],[2026/27 To - Other reallocations]]","v":0},{"$f":"Dataset[[#This Row],[2027/28 To - Spending review Topic 1]]+Dataset[[#This Row],[2027/28 To - Spending review Topic 2]]+Dataset[[#This Row],[2027/28 To - Spending review Topic 3]]+Dataset[[#This Row],[2027/28 To - Spending review Topic 4]]+Dataset[[#This Row],[2027/28 To - Other reallocations]]","v":0},{"$f":"Dataset[[#This Row],[2025/26 Reduction]]+Dataset[[#This Row],[2025/26 From - Total]]","v":0},{"$f":"Dataset[[#This Row],[2026/27 Reduction]]+Dataset[[#This Row],[2026/27 From - Total]]","v":0},{"$f":"Dataset[[#This Row],[2027/28 Reduction]]+Dataset[[#This Row],[2027/28 From - Total]]","v":0},{"$f":"Dataset[[#This Row],[2024/25 Reduction]]","v":0},{"$f":"SUM(Dataset[[#This Row],[2025/26 Reduction]],Dataset[[#This Row],[2025/26 From - Total]],Dataset[[#This Row],[2025/26 To - Total]])","v":0},{"$f":"SUM(Dataset[[#This Row],[2026/27 Reduction]],Dataset[[#This Row],[2026/27 From - Total]],Dataset[[#This Row],[2026/27 To - Total]])","v":0},{"$f":"SUM(Dataset[[#This Row],[2027/28 Reduction]],Dataset[[#This Row],[2027/28 From - Total]],Dataset[[#This Row],[2027/28 To - Total]])","v":0},{"$f":"Dataset[[#This Row],[2024/25 Baseline]]+Dataset[[#This Row],[2024/25 Total change]]","v":0},{"$f":"Dataset[[#This Row],[2025/26 Baseline]]+Dataset[[#This Row],[2025/26 Total change]]","v":0},{"$f":"Dataset[[#This Row],[2026/27 Baseline]]+Dataset[[#This Row],[2026/27 Total change]]","v":0},{"$f":"Dataset[[#This Row],[2027/28 Baseline]]+Dataset[[#This Row],[2027/28 Total change]]","v":0}]
["NAT|Non-transfer item","40|Science and technological services","2025_26","MTEC2025",40,1,4,51450,178,"40","01","04","051450","000178","40|01|04|000178","01","01","02","15","15","01|01|02|15|15","National","Transport","Administration","Communications","Non-transfer item","Current","Current payments","Goods and services","Science and technological services","Science and technological services","Economic development","Economic regulation and infrastructure","NAT",0,0,0,0,0,0,null,0,0,0,0,null,null,null,null,null,null,null,null,null,null,null,null,null,null,null,null,null,null,null,null,null,null,null,null,null,null,null,null,null,null,null,null,null,null,{"$f":"Dataset[[#This Row],[2025/26 From - Spending review Topic 1]]+Dataset[[#This Row],[2025/26 From - Spending review Topic 2]]+Dataset[[#This Row],[2025/26 From - Spending review Topic 3]]+Dataset[[#This Row],[2025/26 From - Spending review Topic 4]]+Dataset[[#This Row],[2025/26 From - Other reallocations]]","v":0},{"$f":"Dataset[[#This Row],[2026/27 From - Spending review Topic 1]]+Dataset[[#This Row],[2026/27 From - Spending review Topic 2]]+Dataset[[#This Row],[2026/27 From - Spending review Topic 3]]+Dataset[[#This Row],[2026/27 From - Spending review Topic 4]]+Dataset[[#This Row],[2026/27 From - Other reallocations]]","v":0},{"$f":"Dataset[[#This Row],[2027/28 From - Spending review Topic 1]]+Dataset[[#This Row],[2027/28 From - Spending review Topic 2]]+Dataset[[#This Row],[2027/28 From - Spending review Topic 3]]+Dataset[[#This Row],[2027/28 From - Spending review Topic 4]]+Dataset[[#This Row],[2027/28 From - Other reallocations]]","v":0},{"$f":"Dataset[[#This Row],[2025/26 To - Spending review Topic 1]]+Dataset[[#This Row],[2025/26 To - Spending review Topic 2]]+Dataset[[#This Row],[2025/26 To - Spending review Topic 3]]+Dataset[[#This Row],[2025/26 To - Spending review Topic 4]]+Dataset[[#This Row],[2025/26 To - Other reallocations]]","v":0},{"$f":"Dataset[[#This Row],[2026/27 To - Spending review Topic 1]]+Dataset[[#This Row],[2026/27 To - Spending review Topic 2]]+Dataset[[#This Row],[2026/27 To - Spending review Topic 3]]+Dataset[[#This Row],[2026/27 To - Spending review Topic 4]]+Dataset[[#This Row],[2026/27 To - Other reallocations]]","v":0},{"$f":"Dataset[[#This Row],[2027/28 To - Spending review Topic 1]]+Dataset[[#This Row],[2027/28 To - Spending review Topic 2]]+Dataset[[#This Row],[2027/28 To - Spending review Topic 3]]+Dataset[[#This Row],[2027/28 To - Spending review Topic 4]]+Dataset[[#This Row],[2027/28 To - Other reallocations]]","v":0},{"$f":"Dataset[[#This Row],[2025/26 Reduction]]+Dataset[[#This Row],[2025/26 From - Total]]","v":0},{"$f":"Dataset[[#This Row],[2026/27 Reduction]]+Dataset[[#This Row],[2026/27 From - Total]]","v":0},{"$f":"Dataset[[#This Row],[2027/28 Reduction]]+Dataset[[#This Row],[2027/28 From - Total]]","v":0},{"$f":"Dataset[[#This Row],[2024/25 Reduction]]","v":0},{"$f":"SUM(Dataset[[#This Row],[2025/26 Reduction]],Dataset[[#This Row],[2025/26 From - Total]],Dataset[[#This Row],[2025/26 To - Total]])","v":0},{"$f":"SUM(Dataset[[#This Row],[2026/27 Reduction]],Dataset[[#This Row],[2026/27 From - Total]],Dataset[[#This Row],[2026/27 To - Total]])","v":0},{"$f":"SUM(Dataset[[#This Row],[2027/28 Reduction]],Dataset[[#This Row],[2027/28 From - Total]],Dataset[[#This Row],[2027/28 To - Total]])","v":0},{"$f":"Dataset[[#This Row],[2024/25 Baseline]]+Dataset[[#This Row],[2024/25 Total change]]","v":0},{"$f":"Dataset[[#This Row],[2025/26 Baseline]]+Dataset[[#This Row],[2025/26 Total change]]","v":0},{"$f":"Dataset[[#This Row],[2026/27 Baseline]]+Dataset[[#This Row],[2026/27 Total change]]","v":0},{"$f":"Dataset[[#This Row],[2027/28 Baseline]]+Dataset[[#This Row],[2027/28 Total change]]","v":0}]
["NAT|Non-transfer item","40|Contractors","2025_26","MTEC2025",40,1,4,51451,179,"40","01","04","051451","000179","40|01|04|000179","01","01","02","16","16","01|01|02|16|16","National","Transport","Administration","Communications","Non-transfer item","Current","Current payments","Goods and services","Contractors","Contractors","Economic development","Economic regulation and infrastructure","NAT",220,50,109,330,1330,1330,3412,800,867,911,952,null,null,null,null,null,null,null,null,null,null,null,null,null,null,null,null,null,null,null,null,null,null,null,null,null,null,null,null,null,null,null,null,null,null,{"$f":"Dataset[[#This Row],[2025/26 From - Spending review Topic 1]]+Dataset[[#This Row],[2025/26 From - Spending review Topic 2]]+Dataset[[#This Row],[2025/26 From - Spending review Topic 3]]+Dataset[[#This Row],[2025/26 From - Spending review Topic 4]]+Dataset[[#This Row],[2025/26 From - Other reallocations]]","v":0},{"$f":"Dataset[[#This Row],[2026/27 From - Spending review Topic 1]]+Dataset[[#This Row],[2026/27 From - Spending review Topic 2]]+Dataset[[#This Row],[2026/27 From - Spending review Topic 3]]+Dataset[[#This Row],[2026/27 From - Spending review Topic 4]]+Dataset[[#This Row],[2026/27 From - Other reallocations]]","v":0},{"$f":"Dataset[[#This Row],[2027/28 From - Spending review Topic 1]]+Dataset[[#This Row],[2027/28 From - Spending review Topic 2]]+Dataset[[#This Row],[2027/28 From - Spending review Topic 3]]+Dataset[[#This Row],[2027/28 From - Spending review Topic 4]]+Dataset[[#This Row],[2027/28 From - Other reallocations]]","v":0},{"$f":"Dataset[[#This Row],[2025/26 To - Spending review Topic 1]]+Dataset[[#This Row],[2025/26 To - Spending review Topic 2]]+Dataset[[#This Row],[2025/26 To - Spending review Topic 3]]+Dataset[[#This Row],[2025/26 To - Spending review Topic 4]]+Dataset[[#This Row],[2025/26 To - Other reallocations]]","v":0},{"$f":"Dataset[[#This Row],[2026/27 To - Spending review Topic 1]]+Dataset[[#This Row],[2026/27 To - Spending review Topic 2]]+Dataset[[#This Row],[2026/27 To - Spending review Topic 3]]+Dataset[[#This Row],[2026/27 To - Spending review Topic 4]]+Dataset[[#This Row],[2026/27 To - Other reallocations]]","v":0},{"$f":"Dataset[[#This Row],[2027/28 To - Spending review Topic 1]]+Dataset[[#This Row],[2027/28 To - Spending review Topic 2]]+Dataset[[#This Row],[2027/28 To - Spending review Topic 3]]+Dataset[[#This Row],[2027/28 To - Spending review Topic 4]]+Dataset[[#This Row],[2027/28 To - Other reallocations]]","v":0},{"$f":"Dataset[[#This Row],[2025/26 Reduction]]+Dataset[[#This Row],[2025/26 From - Total]]","v":0},{"$f":"Dataset[[#This Row],[2026/27 Reduction]]+Dataset[[#This Row],[2026/27 From - Total]]","v":0},{"$f":"Dataset[[#This Row],[2027/28 Reduction]]+Dataset[[#This Row],[2027/28 From - Total]]","v":0},{"$f":"Dataset[[#This Row],[2024/25 Reduction]]","v":0},{"$f":"SUM(Dataset[[#This Row],[2025/26 Reduction]],Dataset[[#This Row],[2025/26 From - Total]],Dataset[[#This Row],[2025/26 To - Total]])","v":0},{"$f":"SUM(Dataset[[#This Row],[2026/27 Reduction]],Dataset[[#This Row],[2026/27 From - Total]],Dataset[[#This Row],[2026/27 To - Total]])","v":0},{"$f":"SUM(Dataset[[#This Row],[2027/28 Reduction]],Dataset[[#This Row],[2027/28 From - Total]],Dataset[[#This Row],[2027/28 To - Total]])","v":0},{"$f":"Dataset[[#This Row],[2024/25 Baseline]]+Dataset[[#This Row],[2024/25 Total change]]","v":800},{"$f":"Dataset[[#This Row],[2025/26 Baseline]]+Dataset[[#This Row],[2025/26 Total change]]","v":867},{"$f":"Dataset[[#This Row],[2026/27 Baseline]]+Dataset[[#This Row],[2026/27 Total change]]","v":911},{"$f":"Dataset[[#This Row],[2027/28 Baseline]]+Dataset[[#This Row],[2027/28 Total change]]","v":952}]
["NAT|Non-transfer item","40|Agency and support/outsourced services","2025_26","MTEC2025",40,1,4,51452,180,"40","01","04","051452","000180","40|01|04|000180","01","01","02","17","17","01|01|02|17|17","National","Transport","Administration","Communications","Non-transfer item","Current","Current payments","Goods and services","Agency and support/outsourced services","Agency and support/outsourced services","Economic development","Economic regulation and infrastructure","NAT",0,0,0,0,0,0,null,0,0,0,0,null,null,null,null,null,null,null,null,null,null,null,null,null,null,null,null,null,null,null,null,null,null,null,null,null,null,null,null,null,null,null,null,null,null,{"$f":"Dataset[[#This Row],[2025/26 From - Spending review Topic 1]]+Dataset[[#This Row],[2025/26 From - Spending review Topic 2]]+Dataset[[#This Row],[2025/26 From - Spending review Topic 3]]+Dataset[[#This Row],[2025/26 From - Spending review Topic 4]]+Dataset[[#This Row],[2025/26 From - Other reallocations]]","v":0},{"$f":"Dataset[[#This Row],[2026/27 From - Spending review Topic 1]]+Dataset[[#This Row],[2026/27 From - Spending review Topic 2]]+Dataset[[#This Row],[2026/27 From - Spending review Topic 3]]+Dataset[[#This Row],[2026/27 From - Spending review Topic 4]]+Dataset[[#This Row],[2026/27 From - Other reallocations]]","v":0},{"$f":"Dataset[[#This Row],[2027/28 From - Spending review Topic 1]]+Dataset[[#This Row],[2027/28 From - Spending review Topic 2]]+Dataset[[#This Row],[2027/28 From - Spending review Topic 3]]+Dataset[[#This Row],[2027/28 From - Spending review Topic 4]]+Dataset[[#This Row],[2027/28 From - Other reallocations]]","v":0},{"$f":"Dataset[[#This Row],[2025/26 To - Spending review Topic 1]]+Dataset[[#This Row],[2025/26 To - Spending review Topic 2]]+Dataset[[#This Row],[2025/26 To - Spending review Topic 3]]+Dataset[[#This Row],[2025/26 To - Spending review Topic 4]]+Dataset[[#This Row],[2025/26 To - Other reallocations]]","v":0},{"$f":"Dataset[[#This Row],[2026/27 To - Spending review Topic 1]]+Dataset[[#This Row],[2026/27 To - Spending review Topic 2]]+Dataset[[#This Row],[2026/27 To - Spending review Topic 3]]+Dataset[[#This Row],[2026/27 To - Spending review Topic 4]]+Dataset[[#This Row],[2026/27 To - Other reallocations]]","v":0},{"$f":"Dataset[[#This Row],[2027/28 To - Spending review Topic 1]]+Dataset[[#This Row],[2027/28 To - Spending review Topic 2]]+Dataset[[#This Row],[2027/28 To - Spending review Topic 3]]+Dataset[[#This Row],[2027/28 To - Spending review Topic 4]]+Dataset[[#This Row],[2027/28 To - Other reallocations]]","v":0},{"$f":"Dataset[[#This Row],[2025/26 Reduction]]+Dataset[[#This Row],[2025/26 From - Total]]","v":0},{"$f":"Dataset[[#This Row],[2026/27 Reduction]]+Dataset[[#This Row],[2026/27 From - Total]]","v":0},{"$f":"Dataset[[#This Row],[2027/28 Reduction]]+Dataset[[#This Row],[2027/28 From - Total]]","v":0},{"$f":"Dataset[[#This Row],[2024/25 Reduction]]","v":0},{"$f":"SUM(Dataset[[#This Row],[2025/26 Reduction]],Dataset[[#This Row],[2025/26 From - Total]],Dataset[[#This Row],[2025/26 To - Total]])","v":0},{"$f":"SUM(Dataset[[#This Row],[2026/27 Reduction]],Dataset[[#This Row],[2026/27 From - Total]],Dataset[[#This Row],[2026/27 To - Total]])","v":0},{"$f":"SUM(Dataset[[#This Row],[2027/28 Reduction]],Dataset[[#This Row],[2027/28 From - Total]],Dataset[[#This Row],[2027/28 To - Total]])","v":0},{"$f":"Dataset[[#This Row],[2024/25 Baseline]]+Dataset[[#This Row],[2024/25 Total change]]","v":0},{"$f":"Dataset[[#This Row],[2025/26 Baseline]]+Dataset[[#This Row],[2025/26 Total change]]","v":0},{"$f":"Dataset[[#This Row],[2026/27 Baseline]]+Dataset[[#This Row],[2026/27 Total change]]","v":0},{"$f":"Dataset[[#This Row],[2027/28 Baseline]]+Dataset[[#This Row],[2027/28 Total change]]","v":0}]
["NAT|Non-transfer item","40|Entertainment","2025_26","MTEC2025",40,1,4,51453,181,"40","01","04","051453","000181","40|01|04|000181","01","01","02","18","18","01|01|02|18|18","National","Transport","Administration","Communications","Non-transfer item","Current","Current payments","Goods and services","Entertainment","Entertainment","Economic development","Economic regulation and infrastructure","NAT",0,0,0,0,0,0,null,0,0,0,0,null,null,null,null,null,null,null,null,null,null,null,null,null,null,null,null,null,null,null,null,null,null,null,null,null,null,null,null,null,null,null,null,null,null,{"$f":"Dataset[[#This Row],[2025/26 From - Spending review Topic 1]]+Dataset[[#This Row],[2025/26 From - Spending review Topic 2]]+Dataset[[#This Row],[2025/26 From - Spending review Topic 3]]+Dataset[[#This Row],[2025/26 From - Spending review Topic 4]]+Dataset[[#This Row],[2025/26 From - Other reallocations]]","v":0},{"$f":"Dataset[[#This Row],[2026/27 From - Spending review Topic 1]]+Dataset[[#This Row],[2026/27 From - Spending review Topic 2]]+Dataset[[#This Row],[2026/27 From - Spending review Topic 3]]+Dataset[[#This Row],[2026/27 From - Spending review Topic 4]]+Dataset[[#This Row],[2026/27 From - Other reallocations]]","v":0},{"$f":"Dataset[[#This Row],[2027/28 From - Spending review Topic 1]]+Dataset[[#This Row],[2027/28 From - Spending review Topic 2]]+Dataset[[#This Row],[2027/28 From - Spending review Topic 3]]+Dataset[[#This Row],[2027/28 From - Spending review Topic 4]]+Dataset[[#This Row],[2027/28 From - Other reallocations]]","v":0},{"$f":"Dataset[[#This Row],[2025/26 To - Spending review Topic 1]]+Dataset[[#This Row],[2025/26 To - Spending review Topic 2]]+Dataset[[#This Row],[2025/26 To - Spending review Topic 3]]+Dataset[[#This Row],[2025/26 To - Spending review Topic 4]]+Dataset[[#This Row],[2025/26 To - Other reallocations]]","v":0},{"$f":"Dataset[[#This Row],[2026/27 To - Spending review Topic 1]]+Dataset[[#This Row],[2026/27 To - Spending review Topic 2]]+Dataset[[#This Row],[2026/27 To - Spending review Topic 3]]+Dataset[[#This Row],[2026/27 To - Spending review Topic 4]]+Dataset[[#This Row],[2026/27 To - Other reallocations]]","v":0},{"$f":"Dataset[[#This Row],[2027/28 To - Spending review Topic 1]]+Dataset[[#This Row],[2027/28 To - Spending review Topic 2]]+Dataset[[#This Row],[2027/28 To - Spending review Topic 3]]+Dataset[[#This Row],[2027/28 To - Spending review Topic 4]]+Dataset[[#This Row],[2027/28 To - Other reallocations]]","v":0},{"$f":"Dataset[[#This Row],[2025/26 Reduction]]+Dataset[[#This Row],[2025/26 From - Total]]","v":0},{"$f":"Dataset[[#This Row],[2026/27 Reduction]]+Dataset[[#This Row],[2026/27 From - Total]]","v":0},{"$f":"Dataset[[#This Row],[2027/28 Reduction]]+Dataset[[#This Row],[2027/28 From - Total]]","v":0},{"$f":"Dataset[[#This Row],[2024/25 Reduction]]","v":0},{"$f":"SUM(Dataset[[#This Row],[2025/26 Reduction]],Dataset[[#This Row],[2025/26 From - Total]],Dataset[[#This Row],[2025/26 To - Total]])","v":0},{"$f":"SUM(Dataset[[#This Row],[2026/27 Reduction]],Dataset[[#This Row],[2026/27 From - Total]],Dataset[[#This Row],[2026/27 To - Total]])","v":0},{"$f":"SUM(Dataset[[#This Row],[2027/28 Reduction]],Dataset[[#This Row],[2027/28 From - Total]],Dataset[[#This Row],[2027/28 To - Total]])","v":0},{"$f":"Dataset[[#This Row],[2024/25 Baseline]]+Dataset[[#This Row],[2024/25 Total change]]","v":0},{"$f":"Dataset[[#This Row],[2025/26 Baseline]]+Dataset[[#This Row],[2025/26 Total change]]","v":0},{"$f":"Dataset[[#This Row],[2026/27 Baseline]]+Dataset[[#This Row],[2026/27 Total change]]","v":0},{"$f":"Dataset[[#This Row],[2027/28 Baseline]]+Dataset[[#This Row],[2027/28 Total change]]","v":0}]
["NAT|Non-transfer item","40|Fleet services (including government motor transport)","2025_26","MTEC2025",40,1,4,51454,182,"40","01","04","051454","000182","40|01|04|000182","01","01","02","19","19","01|01|02|19|19","National","Transport","Administration","Communications","Non-transfer item","Current","Current payments","Goods and services","Fleet services (including government motor transport)","Fleet services (including government motor transport)","Economic development","Economic regulation and infrastructure","NAT",0,0,0,0,0,0,null,0,0,0,0,null,null,null,null,null,null,null,null,null,null,null,null,null,null,null,null,null,null,null,null,null,null,null,null,null,null,null,null,null,null,null,null,null,null,{"$f":"Dataset[[#This Row],[2025/26 From - Spending review Topic 1]]+Dataset[[#This Row],[2025/26 From - Spending review Topic 2]]+Dataset[[#This Row],[2025/26 From - Spending review Topic 3]]+Dataset[[#This Row],[2025/26 From - Spending review Topic 4]]+Dataset[[#This Row],[2025/26 From - Other reallocations]]","v":0},{"$f":"Dataset[[#This Row],[2026/27 From - Spending review Topic 1]]+Dataset[[#This Row],[2026/27 From - Spending review Topic 2]]+Dataset[[#This Row],[2026/27 From - Spending review Topic 3]]+Dataset[[#This Row],[2026/27 From - Spending review Topic 4]]+Dataset[[#This Row],[2026/27 From - Other reallocations]]","v":0},{"$f":"Dataset[[#This Row],[2027/28 From - Spending review Topic 1]]+Dataset[[#This Row],[2027/28 From - Spending review Topic 2]]+Dataset[[#This Row],[2027/28 From - Spending review Topic 3]]+Dataset[[#This Row],[2027/28 From - Spending review Topic 4]]+Dataset[[#This Row],[2027/28 From - Other reallocations]]","v":0},{"$f":"Dataset[[#This Row],[2025/26 To - Spending review Topic 1]]+Dataset[[#This Row],[2025/26 To - Spending review Topic 2]]+Dataset[[#This Row],[2025/26 To - Spending review Topic 3]]+Dataset[[#This Row],[2025/26 To - Spending review Topic 4]]+Dataset[[#This Row],[2025/26 To - Other reallocations]]","v":0},{"$f":"Dataset[[#This Row],[2026/27 To - Spending review Topic 1]]+Dataset[[#This Row],[2026/27 To - Spending review Topic 2]]+Dataset[[#This Row],[2026/27 To - Spending review Topic 3]]+Dataset[[#This Row],[2026/27 To - Spending review Topic 4]]+Dataset[[#This Row],[2026/27 To - Other reallocations]]","v":0},{"$f":"Dataset[[#This Row],[2027/28 To - Spending review Topic 1]]+Dataset[[#This Row],[2027/28 To - Spending review Topic 2]]+Dataset[[#This Row],[2027/28 To - Spending review Topic 3]]+Dataset[[#This Row],[2027/28 To - Spending review Topic 4]]+Dataset[[#This Row],[2027/28 To - Other reallocations]]","v":0},{"$f":"Dataset[[#This Row],[2025/26 Reduction]]+Dataset[[#This Row],[2025/26 From - Total]]","v":0},{"$f":"Dataset[[#This Row],[2026/27 Reduction]]+Dataset[[#This Row],[2026/27 From - Total]]","v":0},{"$f":"Dataset[[#This Row],[2027/28 Reduction]]+Dataset[[#This Row],[2027/28 From - Total]]","v":0},{"$f":"Dataset[[#This Row],[2024/25 Reduction]]","v":0},{"$f":"SUM(Dataset[[#This Row],[2025/26 Reduction]],Dataset[[#This Row],[2025/26 From - Total]],Dataset[[#This Row],[2025/26 To - Total]])","v":0},{"$f":"SUM(Dataset[[#This Row],[2026/27 Reduction]],Dataset[[#This Row],[2026/27 From - Total]],Dataset[[#This Row],[2026/27 To - Total]])","v":0},{"$f":"SUM(Dataset[[#This Row],[2027/28 Reduction]],Dataset[[#This Row],[2027/28 From - Total]],Dataset[[#This Row],[2027/28 To - Total]])","v":0},{"$f":"Dataset[[#This Row],[2024/25 Baseline]]+Dataset[[#This Row],[2024/25 Total change]]","v":0},{"$f":"Dataset[[#This Row],[2025/26 Baseline]]+Dataset[[#This Row],[2025/26 Total change]]","v":0},{"$f":"Dataset[[#This Row],[2026/27 Baseline]]+Dataset[[#This Row],[2026/27 Total change]]","v":0},{"$f":"Dataset[[#This Row],[2027/28 Baseline]]+Dataset[[#This Row],[2027/28 Total change]]","v":0}]
["NAT|Non-transfer item","40|Housing","2025_26","MTEC2025",40,1,4,51455,183,"40","01","04","051455","000183","40|01|04|000183","01","01","02","20","20","01|01|02|20|20","National","Transport","Administration","Communications","Non-transfer item","Current","Current payments","Goods and services","Housing","Housing","Economic development","Economic regulation and infrastructure","NAT",0,0,0,0,0,0,null,0,0,0,0,null,null,null,null,null,null,null,null,null,null,null,null,null,null,null,null,null,null,null,null,null,null,null,null,null,null,null,null,null,null,null,null,null,null,{"$f":"Dataset[[#This Row],[2025/26 From - Spending review Topic 1]]+Dataset[[#This Row],[2025/26 From - Spending review Topic 2]]+Dataset[[#This Row],[2025/26 From - Spending review Topic 3]]+Dataset[[#This Row],[2025/26 From - Spending review Topic 4]]+Dataset[[#This Row],[2025/26 From - Other reallocations]]","v":0},{"$f":"Dataset[[#This Row],[2026/27 From - Spending review Topic 1]]+Dataset[[#This Row],[2026/27 From - Spending review Topic 2]]+Dataset[[#This Row],[2026/27 From - Spending review Topic 3]]+Dataset[[#This Row],[2026/27 From - Spending review Topic 4]]+Dataset[[#This Row],[2026/27 From - Other reallocations]]","v":0},{"$f":"Dataset[[#This Row],[2027/28 From - Spending review Topic 1]]+Dataset[[#This Row],[2027/28 From - Spending review Topic 2]]+Dataset[[#This Row],[2027/28 From - Spending review Topic 3]]+Dataset[[#This Row],[2027/28 From - Spending review Topic 4]]+Dataset[[#This Row],[2027/28 From - Other reallocations]]","v":0},{"$f":"Dataset[[#This Row],[2025/26 To - Spending review Topic 1]]+Dataset[[#This Row],[2025/26 To - Spending review Topic 2]]+Dataset[[#This Row],[2025/26 To - Spending review Topic 3]]+Dataset[[#This Row],[2025/26 To - Spending review Topic 4]]+Dataset[[#This Row],[2025/26 To - Other reallocations]]","v":0},{"$f":"Dataset[[#This Row],[2026/27 To - Spending review Topic 1]]+Dataset[[#This Row],[2026/27 To - Spending review Topic 2]]+Dataset[[#This Row],[2026/27 To - Spending review Topic 3]]+Dataset[[#This Row],[2026/27 To - Spending review Topic 4]]+Dataset[[#This Row],[2026/27 To - Other reallocations]]","v":0},{"$f":"Dataset[[#This Row],[2027/28 To - Spending review Topic 1]]+Dataset[[#This Row],[2027/28 To - Spending review Topic 2]]+Dataset[[#This Row],[2027/28 To - Spending review Topic 3]]+Dataset[[#This Row],[2027/28 To - Spending review Topic 4]]+Dataset[[#This Row],[2027/28 To - Other reallocations]]","v":0},{"$f":"Dataset[[#This Row],[2025/26 Reduction]]+Dataset[[#This Row],[2025/26 From - Total]]","v":0},{"$f":"Dataset[[#This Row],[2026/27 Reduction]]+Dataset[[#This Row],[2026/27 From - Total]]","v":0},{"$f":"Dataset[[#This Row],[2027/28 Reduction]]+Dataset[[#This Row],[2027/28 From - Total]]","v":0},{"$f":"Dataset[[#This Row],[2024/25 Reduction]]","v":0},{"$f":"SUM(Dataset[[#This Row],[2025/26 Reduction]],Dataset[[#This Row],[2025/26 From - Total]],Dataset[[#This Row],[2025/26 To - Total]])","v":0},{"$f":"SUM(Dataset[[#This Row],[2026/27 Reduction]],Dataset[[#This Row],[2026/27 From - Total]],Dataset[[#This Row],[2026/27 To - Total]])","v":0},{"$f":"SUM(Dataset[[#This Row],[2027/28 Reduction]],Dataset[[#This Row],[2027/28 From - Total]],Dataset[[#This Row],[2027/28 To - Total]])","v":0},{"$f":"Dataset[[#This Row],[2024/25 Baseline]]+Dataset[[#This Row],[2024/25 Total change]]","v":0},{"$f":"Dataset[[#This Row],[2025/26 Baseline]]+Dataset[[#This Row],[2025/26 Total change]]","v":0},{"$f":"Dataset[[#This Row],[2026/27 Baseline]]+Dataset[[#This Row],[2026/27 Total change]]","v":0},{"$f":"Dataset[[#This Row],[2027/28 Baseline]]+Dataset[[#This Row],[2027/28 Total change]]","v":0}]
["NAT|Non-transfer item","40|Inventory: Clothing material and accessories","2025_26","MTEC2025",40,1,4,51456,184,"40","01","04","051456","000184","40|01|04|000184","01","01","02","21","21","01|01|02|21|21","National","Transport","Administration","Communications","Non-transfer item","Current","Current payments","Goods and services","Inventory: Clothing material and accessories","Inventory: Clothing material and accessories","Economic development","Economic regulation and infrastructure","NAT",0,0,0,0,0,0,null,0,0,0,0,null,null,null,null,null,null,null,null,null,null,null,null,null,null,null,null,null,null,null,null,null,null,null,null,null,null,null,null,null,null,null,null,null,null,{"$f":"Dataset[[#This Row],[2025/26 From - Spending review Topic 1]]+Dataset[[#This Row],[2025/26 From - Spending review Topic 2]]+Dataset[[#This Row],[2025/26 From - Spending review Topic 3]]+Dataset[[#This Row],[2025/26 From - Spending review Topic 4]]+Dataset[[#This Row],[2025/26 From - Other reallocations]]","v":0},{"$f":"Dataset[[#This Row],[2026/27 From - Spending review Topic 1]]+Dataset[[#This Row],[2026/27 From - Spending review Topic 2]]+Dataset[[#This Row],[2026/27 From - Spending review Topic 3]]+Dataset[[#This Row],[2026/27 From - Spending review Topic 4]]+Dataset[[#This Row],[2026/27 From - Other reallocations]]","v":0},{"$f":"Dataset[[#This Row],[2027/28 From - Spending review Topic 1]]+Dataset[[#This Row],[2027/28 From - Spending review Topic 2]]+Dataset[[#This Row],[2027/28 From - Spending review Topic 3]]+Dataset[[#This Row],[2027/28 From - Spending review Topic 4]]+Dataset[[#This Row],[2027/28 From - Other reallocations]]","v":0},{"$f":"Dataset[[#This Row],[2025/26 To - Spending review Topic 1]]+Dataset[[#This Row],[2025/26 To - Spending review Topic 2]]+Dataset[[#This Row],[2025/26 To - Spending review Topic 3]]+Dataset[[#This Row],[2025/26 To - Spending review Topic 4]]+Dataset[[#This Row],[2025/26 To - Other reallocations]]","v":0},{"$f":"Dataset[[#This Row],[2026/27 To - Spending review Topic 1]]+Dataset[[#This Row],[2026/27 To - Spending review Topic 2]]+Dataset[[#This Row],[2026/27 To - Spending review Topic 3]]+Dataset[[#This Row],[2026/27 To - Spending review Topic 4]]+Dataset[[#This Row],[2026/27 To - Other reallocations]]","v":0},{"$f":"Dataset[[#This Row],[2027/28 To - Spending review Topic 1]]+Dataset[[#This Row],[2027/28 To - Spending review Topic 2]]+Dataset[[#This Row],[2027/28 To - Spending review Topic 3]]+Dataset[[#This Row],[2027/28 To - Spending review Topic 4]]+Dataset[[#This Row],[2027/28 To - Other reallocations]]","v":0},{"$f":"Dataset[[#This Row],[2025/26 Reduction]]+Dataset[[#This Row],[2025/26 From - Total]]","v":0},{"$f":"Dataset[[#This Row],[2026/27 Reduction]]+Dataset[[#This Row],[2026/27 From - Total]]","v":0},{"$f":"Dataset[[#This Row],[2027/28 Reduction]]+Dataset[[#This Row],[2027/28 From - Total]]","v":0},{"$f":"Dataset[[#This Row],[2024/25 Reduction]]","v":0},{"$f":"SUM(Dataset[[#This Row],[2025/26 Reduction]],Dataset[[#This Row],[2025/26 From - Total]],Dataset[[#This Row],[2025/26 To - Total]])","v":0},{"$f":"SUM(Dataset[[#This Row],[2026/27 Reduction]],Dataset[[#This Row],[2026/27 From - Total]],Dataset[[#This Row],[2026/27 To - Total]])","v":0},{"$f":"SUM(Dataset[[#This Row],[2027/28 Reduction]],Dataset[[#This Row],[2027/28 From - Total]],Dataset[[#This Row],[2027/28 To - Total]])","v":0},{"$f":"Dataset[[#This Row],[2024/25 Baseline]]+Dataset[[#This Row],[2024/25 Total change]]","v":0},{"$f":"Dataset[[#This Row],[2025/26 Baseline]]+Dataset[[#This Row],[2025/26 Total change]]","v":0},{"$f":"Dataset[[#This Row],[2026/27 Baseline]]+Dataset[[#This Row],[2026/27 Total change]]","v":0},{"$f":"Dataset[[#This Row],[2027/28 Baseline]]+Dataset[[#This Row],[2027/28 Total change]]","v":0}]
["NAT|Non-transfer item","40|Inventory: Farming supplies","2025_26","MTEC2025",40,1,4,51457,185,"40","01","04","051457","000185","40|01|04|000185","01","01","02","22","22","01|01|02|22|22","National","Transport","Administration","Communications","Non-transfer item","Current","Current payments","Goods and services","Inventory: Farming supplies","Inventory: Farming supplies","Economic development","Economic regulation and infrastructure","NAT",0,0,0,0,0,0,null,0,0,0,0,null,null,null,null,null,null,null,null,null,null,null,null,null,null,null,null,null,null,null,null,null,null,null,null,null,null,null,null,null,null,null,null,null,null,{"$f":"Dataset[[#This Row],[2025/26 From - Spending review Topic 1]]+Dataset[[#This Row],[2025/26 From - Spending review Topic 2]]+Dataset[[#This Row],[2025/26 From - Spending review Topic 3]]+Dataset[[#This Row],[2025/26 From - Spending review Topic 4]]+Dataset[[#This Row],[2025/26 From - Other reallocations]]","v":0},{"$f":"Dataset[[#This Row],[2026/27 From - Spending review Topic 1]]+Dataset[[#This Row],[2026/27 From - Spending review Topic 2]]+Dataset[[#This Row],[2026/27 From - Spending review Topic 3]]+Dataset[[#This Row],[2026/27 From - Spending review Topic 4]]+Dataset[[#This Row],[2026/27 From - Other reallocations]]","v":0},{"$f":"Dataset[[#This Row],[2027/28 From - Spending review Topic 1]]+Dataset[[#This Row],[2027/28 From - Spending review Topic 2]]+Dataset[[#This Row],[2027/28 From - Spending review Topic 3]]+Dataset[[#This Row],[2027/28 From - Spending review Topic 4]]+Dataset[[#This Row],[2027/28 From - Other reallocations]]","v":0},{"$f":"Dataset[[#This Row],[2025/26 To - Spending review Topic 1]]+Dataset[[#This Row],[2025/26 To - Spending review Topic 2]]+Dataset[[#This Row],[2025/26 To - Spending review Topic 3]]+Dataset[[#This Row],[2025/26 To - Spending review Topic 4]]+Dataset[[#This Row],[2025/26 To - Other reallocations]]","v":0},{"$f":"Dataset[[#This Row],[2026/27 To - Spending review Topic 1]]+Dataset[[#This Row],[2026/27 To - Spending review Topic 2]]+Dataset[[#This Row],[2026/27 To - Spending review Topic 3]]+Dataset[[#This Row],[2026/27 To - Spending review Topic 4]]+Dataset[[#This Row],[2026/27 To - Other reallocations]]","v":0},{"$f":"Dataset[[#This Row],[2027/28 To - Spending review Topic 1]]+Dataset[[#This Row],[2027/28 To - Spending review Topic 2]]+Dataset[[#This Row],[2027/28 To - Spending review Topic 3]]+Dataset[[#This Row],[2027/28 To - Spending review Topic 4]]+Dataset[[#This Row],[2027/28 To - Other reallocations]]","v":0},{"$f":"Dataset[[#This Row],[2025/26 Reduction]]+Dataset[[#This Row],[2025/26 From - Total]]","v":0},{"$f":"Dataset[[#This Row],[2026/27 Reduction]]+Dataset[[#This Row],[2026/27 From - Total]]","v":0},{"$f":"Dataset[[#This Row],[2027/28 Reduction]]+Dataset[[#This Row],[2027/28 From - Total]]","v":0},{"$f":"Dataset[[#This Row],[2024/25 Reduction]]","v":0},{"$f":"SUM(Dataset[[#This Row],[2025/26 Reduction]],Dataset[[#This Row],[2025/26 From - Total]],Dataset[[#This Row],[2025/26 To - Total]])","v":0},{"$f":"SUM(Dataset[[#This Row],[2026/27 Reduction]],Dataset[[#This Row],[2026/27 From - Total]],Dataset[[#This Row],[2026/27 To - Total]])","v":0},{"$f":"SUM(Dataset[[#This Row],[2027/28 Reduction]],Dataset[[#This Row],[2027/28 From - Total]],Dataset[[#This Row],[2027/28 To - Total]])","v":0},{"$f":"Dataset[[#This Row],[2024/25 Baseline]]+Dataset[[#This Row],[2024/25 Total change]]","v":0},{"$f":"Dataset[[#This Row],[2025/26 Baseline]]+Dataset[[#This Row],[2025/26 Total change]]","v":0},{"$f":"Dataset[[#This Row],[2026/27 Baseline]]+Dataset[[#This Row],[2026/27 Total change]]","v":0},{"$f":"Dataset[[#This Row],[2027/28 Baseline]]+Dataset[[#This Row],[2027/28 Total change]]","v":0}]
["NAT|Non-transfer item","40|Inventory: Food and food supplies","2025_26","MTEC2025",40,1,4,51458,186,"40","01","04","051458","000186","40|01|04|000186","01","01","02","23","23","01|01|02|23|23","National","Transport","Administration","Communications","Non-transfer item","Current","Current payments","Goods and services","Inventory: Food and food supplies","Inventory: Food and food supplies","Economic development","Economic regulation and infrastructure","NAT",0,0,0,0,0,0,null,0,0,0,0,null,null,null,null,null,null,null,null,null,null,null,null,null,null,null,null,null,null,null,null,null,null,null,null,null,null,null,null,null,null,null,null,null,null,{"$f":"Dataset[[#This Row],[2025/26 From - Spending review Topic 1]]+Dataset[[#This Row],[2025/26 From - Spending review Topic 2]]+Dataset[[#This Row],[2025/26 From - Spending review Topic 3]]+Dataset[[#This Row],[2025/26 From - Spending review Topic 4]]+Dataset[[#This Row],[2025/26 From - Other reallocations]]","v":0},{"$f":"Dataset[[#This Row],[2026/27 From - Spending review Topic 1]]+Dataset[[#This Row],[2026/27 From - Spending review Topic 2]]+Dataset[[#This Row],[2026/27 From - Spending review Topic 3]]+Dataset[[#This Row],[2026/27 From - Spending review Topic 4]]+Dataset[[#This Row],[2026/27 From - Other reallocations]]","v":0},{"$f":"Dataset[[#This Row],[2027/28 From - Spending review Topic 1]]+Dataset[[#This Row],[2027/28 From - Spending review Topic 2]]+Dataset[[#This Row],[2027/28 From - Spending review Topic 3]]+Dataset[[#This Row],[2027/28 From - Spending review Topic 4]]+Dataset[[#This Row],[2027/28 From - Other reallocations]]","v":0},{"$f":"Dataset[[#This Row],[2025/26 To - Spending review Topic 1]]+Dataset[[#This Row],[2025/26 To - Spending review Topic 2]]+Dataset[[#This Row],[2025/26 To - Spending review Topic 3]]+Dataset[[#This Row],[2025/26 To - Spending review Topic 4]]+Dataset[[#This Row],[2025/26 To - Other reallocations]]","v":0},{"$f":"Dataset[[#This Row],[2026/27 To - Spending review Topic 1]]+Dataset[[#This Row],[2026/27 To - Spending review Topic 2]]+Dataset[[#This Row],[2026/27 To - Spending review Topic 3]]+Dataset[[#This Row],[2026/27 To - Spending review Topic 4]]+Dataset[[#This Row],[2026/27 To - Other reallocations]]","v":0},{"$f":"Dataset[[#This Row],[2027/28 To - Spending review Topic 1]]+Dataset[[#This Row],[2027/28 To - Spending review Topic 2]]+Dataset[[#This Row],[2027/28 To - Spending review Topic 3]]+Dataset[[#This Row],[2027/28 To - Spending review Topic 4]]+Dataset[[#This Row],[2027/28 To - Other reallocations]]","v":0},{"$f":"Dataset[[#This Row],[2025/26 Reduction]]+Dataset[[#This Row],[2025/26 From - Total]]","v":0},{"$f":"Dataset[[#This Row],[2026/27 Reduction]]+Dataset[[#This Row],[2026/27 From - Total]]","v":0},{"$f":"Dataset[[#This Row],[2027/28 Reduction]]+Dataset[[#This Row],[2027/28 From - Total]]","v":0},{"$f":"Dataset[[#This Row],[2024/25 Reduction]]","v":0},{"$f":"SUM(Dataset[[#This Row],[2025/26 Reduction]],Dataset[[#This Row],[2025/26 From - Total]],Dataset[[#This Row],[2025/26 To - Total]])","v":0},{"$f":"SUM(Dataset[[#This Row],[2026/27 Reduction]],Dataset[[#This Row],[2026/27 From - Total]],Dataset[[#This Row],[2026/27 To - Total]])","v":0},{"$f":"SUM(Dataset[[#This Row],[2027/28 Reduction]],Dataset[[#This Row],[2027/28 From - Total]],Dataset[[#This Row],[2027/28 To - Total]])","v":0},{"$f":"Dataset[[#This Row],[2024/25 Baseline]]+Dataset[[#This Row],[2024/25 Total change]]","v":0},{"$f":"Dataset[[#This Row],[2025/26 Baseline]]+Dataset[[#This Row],[2025/26 Total change]]","v":0},{"$f":"Dataset[[#This Row],[2026/27 Baseline]]+Dataset[[#This Row],[2026/27 Total change]]","v":0},{"$f":"Dataset[[#This Row],[2027/28 Baseline]]+Dataset[[#This Row],[2027/28 Total change]]","v":0}]
["NAT|Non-transfer item","40|Inventory: Fuel, oil and gas","2025_26","MTEC2025",40,1,4,51459,187,"40","01","04","051459","000187","40|01|04|000187","01","01","02","24","24","01|01|02|24|24","National","Transport","Administration","Communications","Non-transfer item","Current","Current payments","Goods and services","Inventory: Fuel, oil and gas","Inventory: Fuel, oil and gas","Economic development","Economic regulation and infrastructure","NAT",0,0,0,0,0,0,null,0,0,0,0,null,null,null,null,null,null,null,null,null,null,null,null,null,null,null,null,null,null,null,null,null,null,null,null,null,null,null,null,null,null,null,null,null,null,{"$f":"Dataset[[#This Row],[2025/26 From - Spending review Topic 1]]+Dataset[[#This Row],[2025/26 From - Spending review Topic 2]]+Dataset[[#This Row],[2025/26 From - Spending review Topic 3]]+Dataset[[#This Row],[2025/26 From - Spending review Topic 4]]+Dataset[[#This Row],[2025/26 From - Other reallocations]]","v":0},{"$f":"Dataset[[#This Row],[2026/27 From - Spending review Topic 1]]+Dataset[[#This Row],[2026/27 From - Spending review Topic 2]]+Dataset[[#This Row],[2026/27 From - Spending review Topic 3]]+Dataset[[#This Row],[2026/27 From - Spending review Topic 4]]+Dataset[[#This Row],[2026/27 From - Other reallocations]]","v":0},{"$f":"Dataset[[#This Row],[2027/28 From - Spending review Topic 1]]+Dataset[[#This Row],[2027/28 From - Spending review Topic 2]]+Dataset[[#This Row],[2027/28 From - Spending review Topic 3]]+Dataset[[#This Row],[2027/28 From - Spending review Topic 4]]+Dataset[[#This Row],[2027/28 From - Other reallocations]]","v":0},{"$f":"Dataset[[#This Row],[2025/26 To - Spending review Topic 1]]+Dataset[[#This Row],[2025/26 To - Spending review Topic 2]]+Dataset[[#This Row],[2025/26 To - Spending review Topic 3]]+Dataset[[#This Row],[2025/26 To - Spending review Topic 4]]+Dataset[[#This Row],[2025/26 To - Other reallocations]]","v":0},{"$f":"Dataset[[#This Row],[2026/27 To - Spending review Topic 1]]+Dataset[[#This Row],[2026/27 To - Spending review Topic 2]]+Dataset[[#This Row],[2026/27 To - Spending review Topic 3]]+Dataset[[#This Row],[2026/27 To - Spending review Topic 4]]+Dataset[[#This Row],[2026/27 To - Other reallocations]]","v":0},{"$f":"Dataset[[#This Row],[2027/28 To - Spending review Topic 1]]+Dataset[[#This Row],[2027/28 To - Spending review Topic 2]]+Dataset[[#This Row],[2027/28 To - Spending review Topic 3]]+Dataset[[#This Row],[2027/28 To - Spending review Topic 4]]+Dataset[[#This Row],[2027/28 To - Other reallocations]]","v":0},{"$f":"Dataset[[#This Row],[2025/26 Reduction]]+Dataset[[#This Row],[2025/26 From - Total]]","v":0},{"$f":"Dataset[[#This Row],[2026/27 Reduction]]+Dataset[[#This Row],[2026/27 From - Total]]","v":0},{"$f":"Dataset[[#This Row],[2027/28 Reduction]]+Dataset[[#This Row],[2027/28 From - Total]]","v":0},{"$f":"Dataset[[#This Row],[2024/25 Reduction]]","v":0},{"$f":"SUM(Dataset[[#This Row],[2025/26 Reduction]],Dataset[[#This Row],[2025/26 From - Total]],Dataset[[#This Row],[2025/26 To - Total]])","v":0},{"$f":"SUM(Dataset[[#This Row],[2026/27 Reduction]],Dataset[[#This Row],[2026/27 From - Total]],Dataset[[#This Row],[2026/27 To - Total]])","v":0},{"$f":"SUM(Dataset[[#This Row],[2027/28 Reduction]],Dataset[[#This Row],[2027/28 From - Total]],Dataset[[#This Row],[2027/28 To - Total]])","v":0},{"$f":"Dataset[[#This Row],[2024/25 Baseline]]+Dataset[[#This Row],[2024/25 Total change]]","v":0},{"$f":"Dataset[[#This Row],[2025/26 Baseline]]+Dataset[[#This Row],[2025/26 Total change]]","v":0},{"$f":"Dataset[[#This Row],[2026/27 Baseline]]+Dataset[[#This Row],[2026/27 Total change]]","v":0},{"$f":"Dataset[[#This Row],[2027/28 Baseline]]+Dataset[[#This Row],[2027/28 Total change]]","v":0}]
["NAT|Non-transfer item","40|Inventory: Learner and teacher support material","2025_26","MTEC2025",40,1,4,51460,188,"40","01","04","051460","000188","40|01|04|000188","01","01","02","25","25","01|01|02|25|25","National","Transport","Administration","Communications","Non-transfer item","Current","Current payments","Goods and services","Inventory: Learner and teacher support material","Inventory: Learner and teacher support material","Economic development","Economic regulation and infrastructure","NAT",0,0,0,0,0,0,null,0,0,0,0,null,null,null,null,null,null,null,null,null,null,null,null,null,null,null,null,null,null,null,null,null,null,null,null,null,null,null,null,null,null,null,null,null,null,{"$f":"Dataset[[#This Row],[2025/26 From - Spending review Topic 1]]+Dataset[[#This Row],[2025/26 From - Spending review Topic 2]]+Dataset[[#This Row],[2025/26 From - Spending review Topic 3]]+Dataset[[#This Row],[2025/26 From - Spending review Topic 4]]+Dataset[[#This Row],[2025/26 From - Other reallocations]]","v":0},{"$f":"Dataset[[#This Row],[2026/27 From - Spending review Topic 1]]+Dataset[[#This Row],[2026/27 From - Spending review Topic 2]]+Dataset[[#This Row],[2026/27 From - Spending review Topic 3]]+Dataset[[#This Row],[2026/27 From - Spending review Topic 4]]+Dataset[[#This Row],[2026/27 From - Other reallocations]]","v":0},{"$f":"Dataset[[#This Row],[2027/28 From - Spending review Topic 1]]+Dataset[[#This Row],[2027/28 From - Spending review Topic 2]]+Dataset[[#This Row],[2027/28 From - Spending review Topic 3]]+Dataset[[#This Row],[2027/28 From - Spending review Topic 4]]+Dataset[[#This Row],[2027/28 From - Other reallocations]]","v":0},{"$f":"Dataset[[#This Row],[2025/26 To - Spending review Topic 1]]+Dataset[[#This Row],[2025/26 To - Spending review Topic 2]]+Dataset[[#This Row],[2025/26 To - Spending review Topic 3]]+Dataset[[#This Row],[2025/26 To - Spending review Topic 4]]+Dataset[[#This Row],[2025/26 To - Other reallocations]]","v":0},{"$f":"Dataset[[#This Row],[2026/27 To - Spending review Topic 1]]+Dataset[[#This Row],[2026/27 To - Spending review Topic 2]]+Dataset[[#This Row],[2026/27 To - Spending review Topic 3]]+Dataset[[#This Row],[2026/27 To - Spending review Topic 4]]+Dataset[[#This Row],[2026/27 To - Other reallocations]]","v":0},{"$f":"Dataset[[#This Row],[2027/28 To - Spending review Topic 1]]+Dataset[[#This Row],[2027/28 To - Spending review Topic 2]]+Dataset[[#This Row],[2027/28 To - Spending review Topic 3]]+Dataset[[#This Row],[2027/28 To - Spending review Topic 4]]+Dataset[[#This Row],[2027/28 To - Other reallocations]]","v":0},{"$f":"Dataset[[#This Row],[2025/26 Reduction]]+Dataset[[#This Row],[2025/26 From - Total]]","v":0},{"$f":"Dataset[[#This Row],[2026/27 Reduction]]+Dataset[[#This Row],[2026/27 From - Total]]","v":0},{"$f":"Dataset[[#This Row],[2027/28 Reduction]]+Dataset[[#This Row],[2027/28 From - Total]]","v":0},{"$f":"Dataset[[#This Row],[2024/25 Reduction]]","v":0},{"$f":"SUM(Dataset[[#This Row],[2025/26 Reduction]],Dataset[[#This Row],[2025/26 From - Total]],Dataset[[#This Row],[2025/26 To - Total]])","v":0},{"$f":"SUM(Dataset[[#This Row],[2026/27 Reduction]],Dataset[[#This Row],[2026/27 From - Total]],Dataset[[#This Row],[2026/27 To - Total]])","v":0},{"$f":"SUM(Dataset[[#This Row],[2027/28 Reduction]],Dataset[[#This Row],[2027/28 From - Total]],Dataset[[#This Row],[2027/28 To - Total]])","v":0},{"$f":"Dataset[[#This Row],[2024/25 Baseline]]+Dataset[[#This Row],[2024/25 Total change]]","v":0},{"$f":"Dataset[[#This Row],[2025/26 Baseline]]+Dataset[[#This Row],[2025/26 Total change]]","v":0},{"$f":"Dataset[[#This Row],[2026/27 Baseline]]+Dataset[[#This Row],[2026/27 Total change]]","v":0},{"$f":"Dataset[[#This Row],[2027/28 Baseline]]+Dataset[[#This Row],[2027/28 Total change]]","v":0}]
["NAT|Non-transfer item","40|Inventory: Materials and supplies","2025_26","MTEC2025",40,1,4,51461,189,"40","01","04","051461","000189","40|01|04|000189","01","01","02","26","26","01|01|02|26|26","National","Transport","Administration","Communications","Non-transfer item","Current","Current payments","Goods and services","Inventory: Materials and supplies","Inventory: Materials and supplies","Economic development","Economic regulation and infrastructure","NAT",0,0,0,0,0,0,null,0,0,0,0,null,null,null,null,null,null,null,null,null,null,null,null,null,null,null,null,null,null,null,null,null,null,null,null,null,null,null,null,null,null,null,null,null,null,{"$f":"Dataset[[#This Row],[2025/26 From - Spending review Topic 1]]+Dataset[[#This Row],[2025/26 From - Spending review Topic 2]]+Dataset[[#This Row],[2025/26 From - Spending review Topic 3]]+Dataset[[#This Row],[2025/26 From - Spending review Topic 4]]+Dataset[[#This Row],[2025/26 From - Other reallocations]]","v":0},{"$f":"Dataset[[#This Row],[2026/27 From - Spending review Topic 1]]+Dataset[[#This Row],[2026/27 From - Spending review Topic 2]]+Dataset[[#This Row],[2026/27 From - Spending review Topic 3]]+Dataset[[#This Row],[2026/27 From - Spending review Topic 4]]+Dataset[[#This Row],[2026/27 From - Other reallocations]]","v":0},{"$f":"Dataset[[#This Row],[2027/28 From - Spending review Topic 1]]+Dataset[[#This Row],[2027/28 From - Spending review Topic 2]]+Dataset[[#This Row],[2027/28 From - Spending review Topic 3]]+Dataset[[#This Row],[2027/28 From - Spending review Topic 4]]+Dataset[[#This Row],[2027/28 From - Other reallocations]]","v":0},{"$f":"Dataset[[#This Row],[2025/26 To - Spending review Topic 1]]+Dataset[[#This Row],[2025/26 To - Spending review Topic 2]]+Dataset[[#This Row],[2025/26 To - Spending review Topic 3]]+Dataset[[#This Row],[2025/26 To - Spending review Topic 4]]+Dataset[[#This Row],[2025/26 To - Other reallocations]]","v":0},{"$f":"Dataset[[#This Row],[2026/27 To - Spending review Topic 1]]+Dataset[[#This Row],[2026/27 To - Spending review Topic 2]]+Dataset[[#This Row],[2026/27 To - Spending review Topic 3]]+Dataset[[#This Row],[2026/27 To - Spending review Topic 4]]+Dataset[[#This Row],[2026/27 To - Other reallocations]]","v":0},{"$f":"Dataset[[#This Row],[2027/28 To - Spending review Topic 1]]+Dataset[[#This Row],[2027/28 To - Spending review Topic 2]]+Dataset[[#This Row],[2027/28 To - Spending review Topic 3]]+Dataset[[#This Row],[2027/28 To - Spending review Topic 4]]+Dataset[[#This Row],[2027/28 To - Other reallocations]]","v":0},{"$f":"Dataset[[#This Row],[2025/26 Reduction]]+Dataset[[#This Row],[2025/26 From - Total]]","v":0},{"$f":"Dataset[[#This Row],[2026/27 Reduction]]+Dataset[[#This Row],[2026/27 From - Total]]","v":0},{"$f":"Dataset[[#This Row],[2027/28 Reduction]]+Dataset[[#This Row],[2027/28 From - Total]]","v":0},{"$f":"Dataset[[#This Row],[2024/25 Reduction]]","v":0},{"$f":"SUM(Dataset[[#This Row],[2025/26 Reduction]],Dataset[[#This Row],[2025/26 From - Total]],Dataset[[#This Row],[2025/26 To - Total]])","v":0},{"$f":"SUM(Dataset[[#This Row],[2026/27 Reduction]],Dataset[[#This Row],[2026/27 From - Total]],Dataset[[#This Row],[2026/27 To - Total]])","v":0},{"$f":"SUM(Dataset[[#This Row],[2027/28 Reduction]],Dataset[[#This Row],[2027/28 From - Total]],Dataset[[#This Row],[2027/28 To - Total]])","v":0},{"$f":"Dataset[[#This Row],[2024/25 Baseline]]+Dataset[[#This Row],[2024/25 Total change]]","v":0},{"$f":"Dataset[[#This Row],[2025/26 Baseline]]+Dataset[[#This Row],[2025/26 Total change]]","v":0},{"$f":"Dataset[[#This Row],[2026/27 Baseline]]+Dataset[[#This Row],[2026/27 Total change]]","v":0},{"$f":"Dataset[[#This Row],[2027/28 Baseline]]+Dataset[[#This Row],[2027/28 Total change]]","v":0}]
["NAT|Non-transfer item","40|Inventory: Medical supplies","2025_26","MTEC2025",40,1,4,51462,190,"40","01","04","051462","000190","40|01|04|000190","01","01","02","27","27","01|01|02|27|27","National","Transport","Administration","Communications","Non-transfer item","Current","Current payments","Goods and services","Inventory: Medical supplies","Inventory: Medical supplies","Economic development","Economic regulation and infrastructure","NAT",0,0,0,0,0,0,null,0,0,0,0,null,null,null,null,null,null,null,null,null,null,null,null,null,null,null,null,null,null,null,null,null,null,null,null,null,null,null,null,null,null,null,null,null,null,{"$f":"Dataset[[#This Row],[2025/26 From - Spending review Topic 1]]+Dataset[[#This Row],[2025/26 From - Spending review Topic 2]]+Dataset[[#This Row],[2025/26 From - Spending review Topic 3]]+Dataset[[#This Row],[2025/26 From - Spending review Topic 4]]+Dataset[[#This Row],[2025/26 From - Other reallocations]]","v":0},{"$f":"Dataset[[#This Row],[2026/27 From - Spending review Topic 1]]+Dataset[[#This Row],[2026/27 From - Spending review Topic 2]]+Dataset[[#This Row],[2026/27 From - Spending review Topic 3]]+Dataset[[#This Row],[2026/27 From - Spending review Topic 4]]+Dataset[[#This Row],[2026/27 From - Other reallocations]]","v":0},{"$f":"Dataset[[#This Row],[2027/28 From - Spending review Topic 1]]+Dataset[[#This Row],[2027/28 From - Spending review Topic 2]]+Dataset[[#This Row],[2027/28 From - Spending review Topic 3]]+Dataset[[#This Row],[2027/28 From - Spending review Topic 4]]+Dataset[[#This Row],[2027/28 From - Other reallocations]]","v":0},{"$f":"Dataset[[#This Row],[2025/26 To - Spending review Topic 1]]+Dataset[[#This Row],[2025/26 To - Spending review Topic 2]]+Dataset[[#This Row],[2025/26 To - Spending review Topic 3]]+Dataset[[#This Row],[2025/26 To - Spending review Topic 4]]+Dataset[[#This Row],[2025/26 To - Other reallocations]]","v":0},{"$f":"Dataset[[#This Row],[2026/27 To - Spending review Topic 1]]+Dataset[[#This Row],[2026/27 To - Spending review Topic 2]]+Dataset[[#This Row],[2026/27 To - Spending review Topic 3]]+Dataset[[#This Row],[2026/27 To - Spending review Topic 4]]+Dataset[[#This Row],[2026/27 To - Other reallocations]]","v":0},{"$f":"Dataset[[#This Row],[2027/28 To - Spending review Topic 1]]+Dataset[[#This Row],[2027/28 To - Spending review Topic 2]]+Dataset[[#This Row],[2027/28 To - Spending review Topic 3]]+Dataset[[#This Row],[2027/28 To - Spending review Topic 4]]+Dataset[[#This Row],[2027/28 To - Other reallocations]]","v":0},{"$f":"Dataset[[#This Row],[2025/26 Reduction]]+Dataset[[#This Row],[2025/26 From - Total]]","v":0},{"$f":"Dataset[[#This Row],[2026/27 Reduction]]+Dataset[[#This Row],[2026/27 From - Total]]","v":0},{"$f":"Dataset[[#This Row],[2027/28 Reduction]]+Dataset[[#This Row],[2027/28 From - Total]]","v":0},{"$f":"Dataset[[#This Row],[2024/25 Reduction]]","v":0},{"$f":"SUM(Dataset[[#This Row],[2025/26 Reduction]],Dataset[[#This Row],[2025/26 From - Total]],Dataset[[#This Row],[2025/26 To - Total]])","v":0},{"$f":"SUM(Dataset[[#This Row],[2026/27 Reduction]],Dataset[[#This Row],[2026/27 From - Total]],Dataset[[#This Row],[2026/27 To - Total]])","v":0},{"$f":"SUM(Dataset[[#This Row],[2027/28 Reduction]],Dataset[[#This Row],[2027/28 From - Total]],Dataset[[#This Row],[2027/28 To - Total]])","v":0},{"$f":"Dataset[[#This Row],[2024/25 Baseline]]+Dataset[[#This Row],[2024/25 Total change]]","v":0},{"$f":"Dataset[[#This Row],[2025/26 Baseline]]+Dataset[[#This Row],[2025/26 Total change]]","v":0},{"$f":"Dataset[[#This Row],[2026/27 Baseline]]+Dataset[[#This Row],[2026/27 Total change]]","v":0},{"$f":"Dataset[[#This Row],[2027/28 Baseline]]+Dataset[[#This Row],[2027/28 Total change]]","v":0}]
["NAT|Non-transfer item","40|Inventory: Medicine","2025_26","MTEC2025",40,1,4,51463,191,"40","01","04","051463","000191","40|01|04|000191","01","01","02","28","28","01|01|02|28|28","National","Transport","Administration","Communications","Non-transfer item","Current","Current payments","Goods and services","Inventory: Medicine","Inventory: Medicine","Economic development","Economic regulation and infrastructure","NAT",0,0,0,0,0,0,null,0,0,0,0,null,null,null,null,null,null,null,null,null,null,null,null,null,null,null,null,null,null,null,null,null,null,null,null,null,null,null,null,null,null,null,null,null,null,{"$f":"Dataset[[#This Row],[2025/26 From - Spending review Topic 1]]+Dataset[[#This Row],[2025/26 From - Spending review Topic 2]]+Dataset[[#This Row],[2025/26 From - Spending review Topic 3]]+Dataset[[#This Row],[2025/26 From - Spending review Topic 4]]+Dataset[[#This Row],[2025/26 From - Other reallocations]]","v":0},{"$f":"Dataset[[#This Row],[2026/27 From - Spending review Topic 1]]+Dataset[[#This Row],[2026/27 From - Spending review Topic 2]]+Dataset[[#This Row],[2026/27 From - Spending review Topic 3]]+Dataset[[#This Row],[2026/27 From - Spending review Topic 4]]+Dataset[[#This Row],[2026/27 From - Other reallocations]]","v":0},{"$f":"Dataset[[#This Row],[2027/28 From - Spending review Topic 1]]+Dataset[[#This Row],[2027/28 From - Spending review Topic 2]]+Dataset[[#This Row],[2027/28 From - Spending review Topic 3]]+Dataset[[#This Row],[2027/28 From - Spending review Topic 4]]+Dataset[[#This Row],[2027/28 From - Other reallocations]]","v":0},{"$f":"Dataset[[#This Row],[2025/26 To - Spending review Topic 1]]+Dataset[[#This Row],[2025/26 To - Spending review Topic 2]]+Dataset[[#This Row],[2025/26 To - Spending review Topic 3]]+Dataset[[#This Row],[2025/26 To - Spending review Topic 4]]+Dataset[[#This Row],[2025/26 To - Other reallocations]]","v":0},{"$f":"Dataset[[#This Row],[2026/27 To - Spending review Topic 1]]+Dataset[[#This Row],[2026/27 To - Spending review Topic 2]]+Dataset[[#This Row],[2026/27 To - Spending review Topic 3]]+Dataset[[#This Row],[2026/27 To - Spending review Topic 4]]+Dataset[[#This Row],[2026/27 To - Other reallocations]]","v":0},{"$f":"Dataset[[#This Row],[2027/28 To - Spending review Topic 1]]+Dataset[[#This Row],[2027/28 To - Spending review Topic 2]]+Dataset[[#This Row],[2027/28 To - Spending review Topic 3]]+Dataset[[#This Row],[2027/28 To - Spending review Topic 4]]+Dataset[[#This Row],[2027/28 To - Other reallocations]]","v":0},{"$f":"Dataset[[#This Row],[2025/26 Reduction]]+Dataset[[#This Row],[2025/26 From - Total]]","v":0},{"$f":"Dataset[[#This Row],[2026/27 Reduction]]+Dataset[[#This Row],[2026/27 From - Total]]","v":0},{"$f":"Dataset[[#This Row],[2027/28 Reduction]]+Dataset[[#This Row],[2027/28 From - Total]]","v":0},{"$f":"Dataset[[#This Row],[2024/25 Reduction]]","v":0},{"$f":"SUM(Dataset[[#This Row],[2025/26 Reduction]],Dataset[[#This Row],[2025/26 From - Total]],Dataset[[#This Row],[2025/26 To - Total]])","v":0},{"$f":"SUM(Dataset[[#This Row],[2026/27 Reduction]],Dataset[[#This Row],[2026/27 From - Total]],Dataset[[#This Row],[2026/27 To - Total]])","v":0},{"$f":"SUM(Dataset[[#This Row],[2027/28 Reduction]],Dataset[[#This Row],[2027/28 From - Total]],Dataset[[#This Row],[2027/28 To - Total]])","v":0},{"$f":"Dataset[[#This Row],[2024/25 Baseline]]+Dataset[[#This Row],[2024/25 Total change]]","v":0},{"$f":"Dataset[[#This Row],[2025/26 Baseline]]+Dataset[[#This Row],[2025/26 Total change]]","v":0},{"$f":"Dataset[[#This Row],[2026/27 Baseline]]+Dataset[[#This Row],[2026/27 Total change]]","v":0},{"$f":"Dataset[[#This Row],[2027/28 Baseline]]+Dataset[[#This Row],[2027/28 Total change]]","v":0}]
["NAT|Non-transfer item","40|Medsas inventory interface","2025_26","MTEC2025",40,1,4,51464,192,"40","01","04","051464","000192","40|01|04|000192","01","01","02","29","29","01|01|02|29|29","National","Transport","Administration","Communications","Non-transfer item","Current","Current payments","Goods and services","Medsas inventory interface","Medsas inventory interface","Economic development","Economic regulation and infrastructure","NAT",0,0,0,0,0,0,null,0,0,0,0,null,null,null,null,null,null,null,null,null,null,null,null,null,null,null,null,null,null,null,null,null,null,null,null,null,null,null,null,null,null,null,null,null,null,{"$f":"Dataset[[#This Row],[2025/26 From - Spending review Topic 1]]+Dataset[[#This Row],[2025/26 From - Spending review Topic 2]]+Dataset[[#This Row],[2025/26 From - Spending review Topic 3]]+Dataset[[#This Row],[2025/26 From - Spending review Topic 4]]+Dataset[[#This Row],[2025/26 From - Other reallocations]]","v":0},{"$f":"Dataset[[#This Row],[2026/27 From - Spending review Topic 1]]+Dataset[[#This Row],[2026/27 From - Spending review Topic 2]]+Dataset[[#This Row],[2026/27 From - Spending review Topic 3]]+Dataset[[#This Row],[2026/27 From - Spending review Topic 4]]+Dataset[[#This Row],[2026/27 From - Other reallocations]]","v":0},{"$f":"Dataset[[#This Row],[2027/28 From - Spending review Topic 1]]+Dataset[[#This Row],[2027/28 From - Spending review Topic 2]]+Dataset[[#This Row],[2027/28 From - Spending review Topic 3]]+Dataset[[#This Row],[2027/28 From - Spending review Topic 4]]+Dataset[[#This Row],[2027/28 From - Other reallocations]]","v":0},{"$f":"Dataset[[#This Row],[2025/26 To - Spending review Topic 1]]+Dataset[[#This Row],[2025/26 To - Spending review Topic 2]]+Dataset[[#This Row],[2025/26 To - Spending review Topic 3]]+Dataset[[#This Row],[2025/26 To - Spending review Topic 4]]+Dataset[[#This Row],[2025/26 To - Other reallocations]]","v":0},{"$f":"Dataset[[#This Row],[2026/27 To - Spending review Topic 1]]+Dataset[[#This Row],[2026/27 To - Spending review Topic 2]]+Dataset[[#This Row],[2026/27 To - Spending review Topic 3]]+Dataset[[#This Row],[2026/27 To - Spending review Topic 4]]+Dataset[[#This Row],[2026/27 To - Other reallocations]]","v":0},{"$f":"Dataset[[#This Row],[2027/28 To - Spending review Topic 1]]+Dataset[[#This Row],[2027/28 To - Spending review Topic 2]]+Dataset[[#This Row],[2027/28 To - Spending review Topic 3]]+Dataset[[#This Row],[2027/28 To - Spending review Topic 4]]+Dataset[[#This Row],[2027/28 To - Other reallocations]]","v":0},{"$f":"Dataset[[#This Row],[2025/26 Reduction]]+Dataset[[#This Row],[2025/26 From - Total]]","v":0},{"$f":"Dataset[[#This Row],[2026/27 Reduction]]+Dataset[[#This Row],[2026/27 From - Total]]","v":0},{"$f":"Dataset[[#This Row],[2027/28 Reduction]]+Dataset[[#This Row],[2027/28 From - Total]]","v":0},{"$f":"Dataset[[#This Row],[2024/25 Reduction]]","v":0},{"$f":"SUM(Dataset[[#This Row],[2025/26 Reduction]],Dataset[[#This Row],[2025/26 From - Total]],Dataset[[#This Row],[2025/26 To - Total]])","v":0},{"$f":"SUM(Dataset[[#This Row],[2026/27 Reduction]],Dataset[[#This Row],[2026/27 From - Total]],Dataset[[#This Row],[2026/27 To - Total]])","v":0},{"$f":"SUM(Dataset[[#This Row],[2027/28 Reduction]],Dataset[[#This Row],[2027/28 From - Total]],Dataset[[#This Row],[2027/28 To - Total]])","v":0},{"$f":"Dataset[[#This Row],[2024/25 Baseline]]+Dataset[[#This Row],[2024/25 Total change]]","v":0},{"$f":"Dataset[[#This Row],[2025/26 Baseline]]+Dataset[[#This Row],[2025/26 Total change]]","v":0},{"$f":"Dataset[[#This Row],[2026/27 Baseline]]+Dataset[[#This Row],[2026/27 Total change]]","v":0},{"$f":"Dataset[[#This Row],[2027/28 Baseline]]+Dataset[[#This Row],[2027/28 Total change]]","v":0}]
["NAT|Non-transfer item","40|Inventory: Other supplies","2025_26","MTEC2025",40,1,4,51465,193,"40","01","04","051465","000193","40|01|04|000193","01","01","02","30","30","01|01|02|30|30","National","Transport","Administration","Communications","Non-transfer item","Current","Current payments","Goods and services","Inventory: Other supplies","Inventory: Other supplies","Economic development","Economic regulation and infrastructure","NAT",0,0,0,0,0,0,null,0,0,0,0,null,null,null,null,null,null,null,null,null,null,null,null,null,null,null,null,null,null,null,null,null,null,null,null,null,null,null,null,null,null,null,null,null,null,{"$f":"Dataset[[#This Row],[2025/26 From - Spending review Topic 1]]+Dataset[[#This Row],[2025/26 From - Spending review Topic 2]]+Dataset[[#This Row],[2025/26 From - Spending review Topic 3]]+Dataset[[#This Row],[2025/26 From - Spending review Topic 4]]+Dataset[[#This Row],[2025/26 From - Other reallocations]]","v":0},{"$f":"Dataset[[#This Row],[2026/27 From - Spending review Topic 1]]+Dataset[[#This Row],[2026/27 From - Spending review Topic 2]]+Dataset[[#This Row],[2026/27 From - Spending review Topic 3]]+Dataset[[#This Row],[2026/27 From - Spending review Topic 4]]+Dataset[[#This Row],[2026/27 From - Other reallocations]]","v":0},{"$f":"Dataset[[#This Row],[2027/28 From - Spending review Topic 1]]+Dataset[[#This Row],[2027/28 From - Spending review Topic 2]]+Dataset[[#This Row],[2027/28 From - Spending review Topic 3]]+Dataset[[#This Row],[2027/28 From - Spending review Topic 4]]+Dataset[[#This Row],[2027/28 From - Other reallocations]]","v":0},{"$f":"Dataset[[#This Row],[2025/26 To - Spending review Topic 1]]+Dataset[[#This Row],[2025/26 To - Spending review Topic 2]]+Dataset[[#This Row],[2025/26 To - Spending review Topic 3]]+Dataset[[#This Row],[2025/26 To - Spending review Topic 4]]+Dataset[[#This Row],[2025/26 To - Other reallocations]]","v":0},{"$f":"Dataset[[#This Row],[2026/27 To - Spending review Topic 1]]+Dataset[[#This Row],[2026/27 To - Spending review Topic 2]]+Dataset[[#This Row],[2026/27 To - Spending review Topic 3]]+Dataset[[#This Row],[2026/27 To - Spending review Topic 4]]+Dataset[[#This Row],[2026/27 To - Other reallocations]]","v":0},{"$f":"Dataset[[#This Row],[2027/28 To - Spending review Topic 1]]+Dataset[[#This Row],[2027/28 To - Spending review Topic 2]]+Dataset[[#This Row],[2027/28 To - Spending review Topic 3]]+Dataset[[#This Row],[2027/28 To - Spending review Topic 4]]+Dataset[[#This Row],[2027/28 To - Other reallocations]]","v":0},{"$f":"Dataset[[#This Row],[2025/26 Reduction]]+Dataset[[#This Row],[2025/26 From - Total]]","v":0},{"$f":"Dataset[[#This Row],[2026/27 Reduction]]+Dataset[[#This Row],[2026/27 From - Total]]","v":0},{"$f":"Dataset[[#This Row],[2027/28 Reduction]]+Dataset[[#This Row],[2027/28 From - Total]]","v":0},{"$f":"Dataset[[#This Row],[2024/25 Reduction]]","v":0},{"$f":"SUM(Dataset[[#This Row],[2025/26 Reduction]],Dataset[[#This Row],[2025/26 From - Total]],Dataset[[#This Row],[2025/26 To - Total]])","v":0},{"$f":"SUM(Dataset[[#This Row],[2026/27 Reduction]],Dataset[[#This Row],[2026/27 From - Total]],Dataset[[#This Row],[2026/27 To - Total]])","v":0},{"$f":"SUM(Dataset[[#This Row],[2027/28 Reduction]],Dataset[[#This Row],[2027/28 From - Total]],Dataset[[#This Row],[2027/28 To - Total]])","v":0},{"$f":"Dataset[[#This Row],[2024/25 Baseline]]+Dataset[[#This Row],[2024/25 Total change]]","v":0},{"$f":"Dataset[[#This Row],[2025/26 Baseline]]+Dataset[[#This Row],[2025/26 Total change]]","v":0},{"$f":"Dataset[[#This Row],[2026/27 Baseline]]+Dataset[[#This Row],[2026/27 Total change]]","v":0},{"$f":"Dataset[[#This Row],[2027/28 Baseline]]+Dataset[[#This Row],[2027/28 Total change]]","v":0}]
["NAT|Non-transfer item","40|Consumable supplies","2025_26","MTEC2025",40,1,4,51466,194,"40","01","04","051466","000194","40|01|04|000194","01","01","02","31","31","01|01|02|31|31","National","Transport","Administration","Communications","Non-transfer item","Current","Current payments","Goods and services","Consumable supplies","Consumable supplies","Economic development","Economic regulation and infrastructure","NAT",190,0,2,28,28,28,1,0,0,0,0,null,null,null,null,null,null,null,null,null,null,null,null,null,null,null,null,null,null,null,null,null,null,null,null,null,null,null,null,null,null,null,null,null,null,{"$f":"Dataset[[#This Row],[2025/26 From - Spending review Topic 1]]+Dataset[[#This Row],[2025/26 From - Spending review Topic 2]]+Dataset[[#This Row],[2025/26 From - Spending review Topic 3]]+Dataset[[#This Row],[2025/26 From - Spending review Topic 4]]+Dataset[[#This Row],[2025/26 From - Other reallocations]]","v":0},{"$f":"Dataset[[#This Row],[2026/27 From - Spending review Topic 1]]+Dataset[[#This Row],[2026/27 From - Spending review Topic 2]]+Dataset[[#This Row],[2026/27 From - Spending review Topic 3]]+Dataset[[#This Row],[2026/27 From - Spending review Topic 4]]+Dataset[[#This Row],[2026/27 From - Other reallocations]]","v":0},{"$f":"Dataset[[#This Row],[2027/28 From - Spending review Topic 1]]+Dataset[[#This Row],[2027/28 From - Spending review Topic 2]]+Dataset[[#This Row],[2027/28 From - Spending review Topic 3]]+Dataset[[#This Row],[2027/28 From - Spending review Topic 4]]+Dataset[[#This Row],[2027/28 From - Other reallocations]]","v":0},{"$f":"Dataset[[#This Row],[2025/26 To - Spending review Topic 1]]+Dataset[[#This Row],[2025/26 To - Spending review Topic 2]]+Dataset[[#This Row],[2025/26 To - Spending review Topic 3]]+Dataset[[#This Row],[2025/26 To - Spending review Topic 4]]+Dataset[[#This Row],[2025/26 To - Other reallocations]]","v":0},{"$f":"Dataset[[#This Row],[2026/27 To - Spending review Topic 1]]+Dataset[[#This Row],[2026/27 To - Spending review Topic 2]]+Dataset[[#This Row],[2026/27 To - Spending review Topic 3]]+Dataset[[#This Row],[2026/27 To - Spending review Topic 4]]+Dataset[[#This Row],[2026/27 To - Other reallocations]]","v":0},{"$f":"Dataset[[#This Row],[2027/28 To - Spending review Topic 1]]+Dataset[[#This Row],[2027/28 To - Spending review Topic 2]]+Dataset[[#This Row],[2027/28 To - Spending review Topic 3]]+Dataset[[#This Row],[2027/28 To - Spending review Topic 4]]+Dataset[[#This Row],[2027/28 To - Other reallocations]]","v":0},{"$f":"Dataset[[#This Row],[2025/26 Reduction]]+Dataset[[#This Row],[2025/26 From - Total]]","v":0},{"$f":"Dataset[[#This Row],[2026/27 Reduction]]+Dataset[[#This Row],[2026/27 From - Total]]","v":0},{"$f":"Dataset[[#This Row],[2027/28 Reduction]]+Dataset[[#This Row],[2027/28 From - Total]]","v":0},{"$f":"Dataset[[#This Row],[2024/25 Reduction]]","v":0},{"$f":"SUM(Dataset[[#This Row],[2025/26 Reduction]],Dataset[[#This Row],[2025/26 From - Total]],Dataset[[#This Row],[2025/26 To - Total]])","v":0},{"$f":"SUM(Dataset[[#This Row],[2026/27 Reduction]],Dataset[[#This Row],[2026/27 From - Total]],Dataset[[#This Row],[2026/27 To - Total]])","v":0},{"$f":"SUM(Dataset[[#This Row],[2027/28 Reduction]],Dataset[[#This Row],[2027/28 From - Total]],Dataset[[#This Row],[2027/28 To - Total]])","v":0},{"$f":"Dataset[[#This Row],[2024/25 Baseline]]+Dataset[[#This Row],[2024/25 Total change]]","v":0},{"$f":"Dataset[[#This Row],[2025/26 Baseline]]+Dataset[[#This Row],[2025/26 Total change]]","v":0},{"$f":"Dataset[[#This Row],[2026/27 Baseline]]+Dataset[[#This Row],[2026/27 Total change]]","v":0},{"$f":"Dataset[[#This Row],[2027/28 Baseline]]+Dataset[[#This Row],[2027/28 Total change]]","v":0}]
["NAT|Non-transfer item","40|Consumables: Stationery, printing and office supplies","2025_26","MTEC2025",40,1,4,51467,195,"40","01","04","051467","000195","40|01|04|000195","01","01","02","32","32","01|01|02|32|32","National","Transport","Administration","Communications","Non-transfer item","Current","Current payments","Goods and services","Consumables: Stationery, printing and office supplies","Consumables: Stationery, printing and office supplies","Economic development","Economic regulation and infrastructure","NAT",109,23,0,653,571,571,214,571,619,650,679,null,null,null,null,null,null,null,null,null,null,null,null,null,null,null,null,null,null,null,null,null,null,null,null,null,null,null,null,null,null,null,null,null,null,{"$f":"Dataset[[#This Row],[2025/26 From - Spending review Topic 1]]+Dataset[[#This Row],[2025/26 From - Spending review Topic 2]]+Dataset[[#This Row],[2025/26 From - Spending review Topic 3]]+Dataset[[#This Row],[2025/26 From - Spending review Topic 4]]+Dataset[[#This Row],[2025/26 From - Other reallocations]]","v":0},{"$f":"Dataset[[#This Row],[2026/27 From - Spending review Topic 1]]+Dataset[[#This Row],[2026/27 From - Spending review Topic 2]]+Dataset[[#This Row],[2026/27 From - Spending review Topic 3]]+Dataset[[#This Row],[2026/27 From - Spending review Topic 4]]+Dataset[[#This Row],[2026/27 From - Other reallocations]]","v":0},{"$f":"Dataset[[#This Row],[2027/28 From - Spending review Topic 1]]+Dataset[[#This Row],[2027/28 From - Spending review Topic 2]]+Dataset[[#This Row],[2027/28 From - Spending review Topic 3]]+Dataset[[#This Row],[2027/28 From - Spending review Topic 4]]+Dataset[[#This Row],[2027/28 From - Other reallocations]]","v":0},{"$f":"Dataset[[#This Row],[2025/26 To - Spending review Topic 1]]+Dataset[[#This Row],[2025/26 To - Spending review Topic 2]]+Dataset[[#This Row],[2025/26 To - Spending review Topic 3]]+Dataset[[#This Row],[2025/26 To - Spending review Topic 4]]+Dataset[[#This Row],[2025/26 To - Other reallocations]]","v":0},{"$f":"Dataset[[#This Row],[2026/27 To - Spending review Topic 1]]+Dataset[[#This Row],[2026/27 To - Spending review Topic 2]]+Dataset[[#This Row],[2026/27 To - Spending review Topic 3]]+Dataset[[#This Row],[2026/27 To - Spending review Topic 4]]+Dataset[[#This Row],[2026/27 To - Other reallocations]]","v":0},{"$f":"Dataset[[#This Row],[2027/28 To - Spending review Topic 1]]+Dataset[[#This Row],[2027/28 To - Spending review Topic 2]]+Dataset[[#This Row],[2027/28 To - Spending review Topic 3]]+Dataset[[#This Row],[2027/28 To - Spending review Topic 4]]+Dataset[[#This Row],[2027/28 To - Other reallocations]]","v":0},{"$f":"Dataset[[#This Row],[2025/26 Reduction]]+Dataset[[#This Row],[2025/26 From - Total]]","v":0},{"$f":"Dataset[[#This Row],[2026/27 Reduction]]+Dataset[[#This Row],[2026/27 From - Total]]","v":0},{"$f":"Dataset[[#This Row],[2027/28 Reduction]]+Dataset[[#This Row],[2027/28 From - Total]]","v":0},{"$f":"Dataset[[#This Row],[2024/25 Reduction]]","v":0},{"$f":"SUM(Dataset[[#This Row],[2025/26 Reduction]],Dataset[[#This Row],[2025/26 From - Total]],Dataset[[#This Row],[2025/26 To - Total]])","v":0},{"$f":"SUM(Dataset[[#This Row],[2026/27 Reduction]],Dataset[[#This Row],[2026/27 From - Total]],Dataset[[#This Row],[2026/27 To - Total]])","v":0},{"$f":"SUM(Dataset[[#This Row],[2027/28 Reduction]],Dataset[[#This Row],[2027/28 From - Total]],Dataset[[#This Row],[2027/28 To - Total]])","v":0},{"$f":"Dataset[[#This Row],[2024/25 Baseline]]+Dataset[[#This Row],[2024/25 Total change]]","v":571},{"$f":"Dataset[[#This Row],[2025/26 Baseline]]+Dataset[[#This Row],[2025/26 Total change]]","v":619},{"$f":"Dataset[[#This Row],[2026/27 Baseline]]+Dataset[[#This Row],[2026/27 Total change]]","v":650},{"$f":"Dataset[[#This Row],[2027/28 Baseline]]+Dataset[[#This Row],[2027/28 Total change]]","v":679}]
["NAT|Non-transfer item","40|Operating leases","2025_26","MTEC2025",40,1,4,51468,196,"40","01","04","051468","000196","40|01|04|000196","01","01","02","33","33","01|01|02|33|33","National","Transport","Administration","Communications","Non-transfer item","Current","Current payments","Goods and services","Operating leases","Operating leases","Economic development","Economic regulation and infrastructure","NAT",0,0,0,0,0,0,null,0,0,0,0,null,null,null,null,null,null,null,null,null,null,null,null,null,null,null,null,null,null,null,null,null,null,null,null,null,null,null,null,null,null,null,null,null,null,{"$f":"Dataset[[#This Row],[2025/26 From - Spending review Topic 1]]+Dataset[[#This Row],[2025/26 From - Spending review Topic 2]]+Dataset[[#This Row],[2025/26 From - Spending review Topic 3]]+Dataset[[#This Row],[2025/26 From - Spending review Topic 4]]+Dataset[[#This Row],[2025/26 From - Other reallocations]]","v":0},{"$f":"Dataset[[#This Row],[2026/27 From - Spending review Topic 1]]+Dataset[[#This Row],[2026/27 From - Spending review Topic 2]]+Dataset[[#This Row],[2026/27 From - Spending review Topic 3]]+Dataset[[#This Row],[2026/27 From - Spending review Topic 4]]+Dataset[[#This Row],[2026/27 From - Other reallocations]]","v":0},{"$f":"Dataset[[#This Row],[2027/28 From - Spending review Topic 1]]+Dataset[[#This Row],[2027/28 From - Spending review Topic 2]]+Dataset[[#This Row],[2027/28 From - Spending review Topic 3]]+Dataset[[#This Row],[2027/28 From - Spending review Topic 4]]+Dataset[[#This Row],[2027/28 From - Other reallocations]]","v":0},{"$f":"Dataset[[#This Row],[2025/26 To - Spending review Topic 1]]+Dataset[[#This Row],[2025/26 To - Spending review Topic 2]]+Dataset[[#This Row],[2025/26 To - Spending review Topic 3]]+Dataset[[#This Row],[2025/26 To - Spending review Topic 4]]+Dataset[[#This Row],[2025/26 To - Other reallocations]]","v":0},{"$f":"Dataset[[#This Row],[2026/27 To - Spending review Topic 1]]+Dataset[[#This Row],[2026/27 To - Spending review Topic 2]]+Dataset[[#This Row],[2026/27 To - Spending review Topic 3]]+Dataset[[#This Row],[2026/27 To - Spending review Topic 4]]+Dataset[[#This Row],[2026/27 To - Other reallocations]]","v":0},{"$f":"Dataset[[#This Row],[2027/28 To - Spending review Topic 1]]+Dataset[[#This Row],[2027/28 To - Spending review Topic 2]]+Dataset[[#This Row],[2027/28 To - Spending review Topic 3]]+Dataset[[#This Row],[2027/28 To - Spending review Topic 4]]+Dataset[[#This Row],[2027/28 To - Other reallocations]]","v":0},{"$f":"Dataset[[#This Row],[2025/26 Reduction]]+Dataset[[#This Row],[2025/26 From - Total]]","v":0},{"$f":"Dataset[[#This Row],[2026/27 Reduction]]+Dataset[[#This Row],[2026/27 From - Total]]","v":0},{"$f":"Dataset[[#This Row],[2027/28 Reduction]]+Dataset[[#This Row],[2027/28 From - Total]]","v":0},{"$f":"Dataset[[#This Row],[2024/25 Reduction]]","v":0},{"$f":"SUM(Dataset[[#This Row],[2025/26 Reduction]],Dataset[[#This Row],[2025/26 From - Total]],Dataset[[#This Row],[2025/26 To - Total]])","v":0},{"$f":"SUM(Dataset[[#This Row],[2026/27 Reduction]],Dataset[[#This Row],[2026/27 From - Total]],Dataset[[#This Row],[2026/27 To - Total]])","v":0},{"$f":"SUM(Dataset[[#This Row],[2027/28 Reduction]],Dataset[[#This Row],[2027/28 From - Total]],Dataset[[#This Row],[2027/28 To - Total]])","v":0},{"$f":"Dataset[[#This Row],[2024/25 Baseline]]+Dataset[[#This Row],[2024/25 Total change]]","v":0},{"$f":"Dataset[[#This Row],[2025/26 Baseline]]+Dataset[[#This Row],[2025/26 Total change]]","v":0},{"$f":"Dataset[[#This Row],[2026/27 Baseline]]+Dataset[[#This Row],[2026/27 Total change]]","v":0},{"$f":"Dataset[[#This Row],[2027/28 Baseline]]+Dataset[[#This Row],[2027/28 Total change]]","v":0}]
["NAT|Non-transfer item","40|Rental and hiring","2025_26","MTEC2025",40,1,4,51469,197,"40","01","04","051469","000197","40|01|04|000197","01","01","02","34","34","01|01|02|34|34","National","Transport","Administration","Communications","Non-transfer item","Current","Current payments","Goods and services","Rental and hiring","Rental and hiring","Economic development","Economic regulation and infrastructure","NAT",0,0,0,0,0,0,null,0,0,0,0,null,null,null,null,null,null,null,null,null,null,null,null,null,null,null,null,null,null,null,null,null,null,null,null,null,null,null,null,null,null,null,null,null,null,{"$f":"Dataset[[#This Row],[2025/26 From - Spending review Topic 1]]+Dataset[[#This Row],[2025/26 From - Spending review Topic 2]]+Dataset[[#This Row],[2025/26 From - Spending review Topic 3]]+Dataset[[#This Row],[2025/26 From - Spending review Topic 4]]+Dataset[[#This Row],[2025/26 From - Other reallocations]]","v":0},{"$f":"Dataset[[#This Row],[2026/27 From - Spending review Topic 1]]+Dataset[[#This Row],[2026/27 From - Spending review Topic 2]]+Dataset[[#This Row],[2026/27 From - Spending review Topic 3]]+Dataset[[#This Row],[2026/27 From - Spending review Topic 4]]+Dataset[[#This Row],[2026/27 From - Other reallocations]]","v":0},{"$f":"Dataset[[#This Row],[2027/28 From - Spending review Topic 1]]+Dataset[[#This Row],[2027/28 From - Spending review Topic 2]]+Dataset[[#This Row],[2027/28 From - Spending review Topic 3]]+Dataset[[#This Row],[2027/28 From - Spending review Topic 4]]+Dataset[[#This Row],[2027/28 From - Other reallocations]]","v":0},{"$f":"Dataset[[#This Row],[2025/26 To - Spending review Topic 1]]+Dataset[[#This Row],[2025/26 To - Spending review Topic 2]]+Dataset[[#This Row],[2025/26 To - Spending review Topic 3]]+Dataset[[#This Row],[2025/26 To - Spending review Topic 4]]+Dataset[[#This Row],[2025/26 To - Other reallocations]]","v":0},{"$f":"Dataset[[#This Row],[2026/27 To - Spending review Topic 1]]+Dataset[[#This Row],[2026/27 To - Spending review Topic 2]]+Dataset[[#This Row],[2026/27 To - Spending review Topic 3]]+Dataset[[#This Row],[2026/27 To - Spending review Topic 4]]+Dataset[[#This Row],[2026/27 To - Other reallocations]]","v":0},{"$f":"Dataset[[#This Row],[2027/28 To - Spending review Topic 1]]+Dataset[[#This Row],[2027/28 To - Spending review Topic 2]]+Dataset[[#This Row],[2027/28 To - Spending review Topic 3]]+Dataset[[#This Row],[2027/28 To - Spending review Topic 4]]+Dataset[[#This Row],[2027/28 To - Other reallocations]]","v":0},{"$f":"Dataset[[#This Row],[2025/26 Reduction]]+Dataset[[#This Row],[2025/26 From - Total]]","v":0},{"$f":"Dataset[[#This Row],[2026/27 Reduction]]+Dataset[[#This Row],[2026/27 From - Total]]","v":0},{"$f":"Dataset[[#This Row],[2027/28 Reduction]]+Dataset[[#This Row],[2027/28 From - Total]]","v":0},{"$f":"Dataset[[#This Row],[2024/25 Reduction]]","v":0},{"$f":"SUM(Dataset[[#This Row],[2025/26 Reduction]],Dataset[[#This Row],[2025/26 From - Total]],Dataset[[#This Row],[2025/26 To - Total]])","v":0},{"$f":"SUM(Dataset[[#This Row],[2026/27 Reduction]],Dataset[[#This Row],[2026/27 From - Total]],Dataset[[#This Row],[2026/27 To - Total]])","v":0},{"$f":"SUM(Dataset[[#This Row],[2027/28 Reduction]],Dataset[[#This Row],[2027/28 From - Total]],Dataset[[#This Row],[2027/28 To - Total]])","v":0},{"$f":"Dataset[[#This Row],[2024/25 Baseline]]+Dataset[[#This Row],[2024/25 Total change]]","v":0},{"$f":"Dataset[[#This Row],[2025/26 Baseline]]+Dataset[[#This Row],[2025/26 Total change]]","v":0},{"$f":"Dataset[[#This Row],[2026/27 Baseline]]+Dataset[[#This Row],[2026/27 Total change]]","v":0},{"$f":"Dataset[[#This Row],[2027/28 Baseline]]+Dataset[[#This Row],[2027/28 Total change]]","v":0}]
["NAT|Non-transfer item","40|Property payments","2025_26","MTEC2025",40,1,4,51470,198,"40","01","04","051470","000198","40|01|04|000198","01","01","02","35","35","01|01|02|35|35","National","Transport","Administration","Communications","Non-transfer item","Current","Current payments","Goods and services","Property payments","Property payments","Economic development","Economic regulation and infrastructure","NAT",7,0,0,0,0,0,null,0,0,0,0,null,null,null,null,null,null,null,null,null,null,null,null,null,null,null,null,null,null,null,null,null,null,null,null,null,null,null,null,null,null,null,null,null,null,{"$f":"Dataset[[#This Row],[2025/26 From - Spending review Topic 1]]+Dataset[[#This Row],[2025/26 From - Spending review Topic 2]]+Dataset[[#This Row],[2025/26 From - Spending review Topic 3]]+Dataset[[#This Row],[2025/26 From - Spending review Topic 4]]+Dataset[[#This Row],[2025/26 From - Other reallocations]]","v":0},{"$f":"Dataset[[#This Row],[2026/27 From - Spending review Topic 1]]+Dataset[[#This Row],[2026/27 From - Spending review Topic 2]]+Dataset[[#This Row],[2026/27 From - Spending review Topic 3]]+Dataset[[#This Row],[2026/27 From - Spending review Topic 4]]+Dataset[[#This Row],[2026/27 From - Other reallocations]]","v":0},{"$f":"Dataset[[#This Row],[2027/28 From - Spending review Topic 1]]+Dataset[[#This Row],[2027/28 From - Spending review Topic 2]]+Dataset[[#This Row],[2027/28 From - Spending review Topic 3]]+Dataset[[#This Row],[2027/28 From - Spending review Topic 4]]+Dataset[[#This Row],[2027/28 From - Other reallocations]]","v":0},{"$f":"Dataset[[#This Row],[2025/26 To - Spending review Topic 1]]+Dataset[[#This Row],[2025/26 To - Spending review Topic 2]]+Dataset[[#This Row],[2025/26 To - Spending review Topic 3]]+Dataset[[#This Row],[2025/26 To - Spending review Topic 4]]+Dataset[[#This Row],[2025/26 To - Other reallocations]]","v":0},{"$f":"Dataset[[#This Row],[2026/27 To - Spending review Topic 1]]+Dataset[[#This Row],[2026/27 To - Spending review Topic 2]]+Dataset[[#This Row],[2026/27 To - Spending review Topic 3]]+Dataset[[#This Row],[2026/27 To - Spending review Topic 4]]+Dataset[[#This Row],[2026/27 To - Other reallocations]]","v":0},{"$f":"Dataset[[#This Row],[2027/28 To - Spending review Topic 1]]+Dataset[[#This Row],[2027/28 To - Spending review Topic 2]]+Dataset[[#This Row],[2027/28 To - Spending review Topic 3]]+Dataset[[#This Row],[2027/28 To - Spending review Topic 4]]+Dataset[[#This Row],[2027/28 To - Other reallocations]]","v":0},{"$f":"Dataset[[#This Row],[2025/26 Reduction]]+Dataset[[#This Row],[2025/26 From - Total]]","v":0},{"$f":"Dataset[[#This Row],[2026/27 Reduction]]+Dataset[[#This Row],[2026/27 From - Total]]","v":0},{"$f":"Dataset[[#This Row],[2027/28 Reduction]]+Dataset[[#This Row],[2027/28 From - Total]]","v":0},{"$f":"Dataset[[#This Row],[2024/25 Reduction]]","v":0},{"$f":"SUM(Dataset[[#This Row],[2025/26 Reduction]],Dataset[[#This Row],[2025/26 From - Total]],Dataset[[#This Row],[2025/26 To - Total]])","v":0},{"$f":"SUM(Dataset[[#This Row],[2026/27 Reduction]],Dataset[[#This Row],[2026/27 From - Total]],Dataset[[#This Row],[2026/27 To - Total]])","v":0},{"$f":"SUM(Dataset[[#This Row],[2027/28 Reduction]],Dataset[[#This Row],[2027/28 From - Total]],Dataset[[#This Row],[2027/28 To - Total]])","v":0},{"$f":"Dataset[[#This Row],[2024/25 Baseline]]+Dataset[[#This Row],[2024/25 Total change]]","v":0},{"$f":"Dataset[[#This Row],[2025/26 Baseline]]+Dataset[[#This Row],[2025/26 Total change]]","v":0},{"$f":"Dataset[[#This Row],[2026/27 Baseline]]+Dataset[[#This Row],[2026/27 Total change]]","v":0},{"$f":"Dataset[[#This Row],[2027/28 Baseline]]+Dataset[[#This Row],[2027/28 Total change]]","v":0}]
["NAT|Non-transfer item","40|Transport provided: Departmental activity","2025_26","MTEC2025",40,1,4,51471,199,"40","01","04","051471","000199","40|01|04|000199","01","01","02","36","36","01|01|02|36|36","National","Transport","Administration","Communications","Non-transfer item","Current","Current payments","Goods and services","Transport provided: Departmental activity","Transport provided: Departmental activity","Economic development","Economic regulation and infrastructure","NAT",0,0,0,0,0,0,null,0,0,0,0,null,null,null,null,null,null,null,null,null,null,null,null,null,null,null,null,null,null,null,null,null,null,null,null,null,null,null,null,null,null,null,null,null,null,{"$f":"Dataset[[#This Row],[2025/26 From - Spending review Topic 1]]+Dataset[[#This Row],[2025/26 From - Spending review Topic 2]]+Dataset[[#This Row],[2025/26 From - Spending review Topic 3]]+Dataset[[#This Row],[2025/26 From - Spending review Topic 4]]+Dataset[[#This Row],[2025/26 From - Other reallocations]]","v":0},{"$f":"Dataset[[#This Row],[2026/27 From - Spending review Topic 1]]+Dataset[[#This Row],[2026/27 From - Spending review Topic 2]]+Dataset[[#This Row],[2026/27 From - Spending review Topic 3]]+Dataset[[#This Row],[2026/27 From - Spending review Topic 4]]+Dataset[[#This Row],[2026/27 From - Other reallocations]]","v":0},{"$f":"Dataset[[#This Row],[2027/28 From - Spending review Topic 1]]+Dataset[[#This Row],[2027/28 From - Spending review Topic 2]]+Dataset[[#This Row],[2027/28 From - Spending review Topic 3]]+Dataset[[#This Row],[2027/28 From - Spending review Topic 4]]+Dataset[[#This Row],[2027/28 From - Other reallocations]]","v":0},{"$f":"Dataset[[#This Row],[2025/26 To - Spending review Topic 1]]+Dataset[[#This Row],[2025/26 To - Spending review Topic 2]]+Dataset[[#This Row],[2025/26 To - Spending review Topic 3]]+Dataset[[#This Row],[2025/26 To - Spending review Topic 4]]+Dataset[[#This Row],[2025/26 To - Other reallocations]]","v":0},{"$f":"Dataset[[#This Row],[2026/27 To - Spending review Topic 1]]+Dataset[[#This Row],[2026/27 To - Spending review Topic 2]]+Dataset[[#This Row],[2026/27 To - Spending review Topic 3]]+Dataset[[#This Row],[2026/27 To - Spending review Topic 4]]+Dataset[[#This Row],[2026/27 To - Other reallocations]]","v":0},{"$f":"Dataset[[#This Row],[2027/28 To - Spending review Topic 1]]+Dataset[[#This Row],[2027/28 To - Spending review Topic 2]]+Dataset[[#This Row],[2027/28 To - Spending review Topic 3]]+Dataset[[#This Row],[2027/28 To - Spending review Topic 4]]+Dataset[[#This Row],[2027/28 To - Other reallocations]]","v":0},{"$f":"Dataset[[#This Row],[2025/26 Reduction]]+Dataset[[#This Row],[2025/26 From - Total]]","v":0},{"$f":"Dataset[[#This Row],[2026/27 Reduction]]+Dataset[[#This Row],[2026/27 From - Total]]","v":0},{"$f":"Dataset[[#This Row],[2027/28 Reduction]]+Dataset[[#This Row],[2027/28 From - Total]]","v":0},{"$f":"Dataset[[#This Row],[2024/25 Reduction]]","v":0},{"$f":"SUM(Dataset[[#This Row],[2025/26 Reduction]],Dataset[[#This Row],[2025/26 From - Total]],Dataset[[#This Row],[2025/26 To - Total]])","v":0},{"$f":"SUM(Dataset[[#This Row],[2026/27 Reduction]],Dataset[[#This Row],[2026/27 From - Total]],Dataset[[#This Row],[2026/27 To - Total]])","v":0},{"$f":"SUM(Dataset[[#This Row],[2027/28 Reduction]],Dataset[[#This Row],[2027/28 From - Total]],Dataset[[#This Row],[2027/28 To - Total]])","v":0},{"$f":"Dataset[[#This Row],[2024/25 Baseline]]+Dataset[[#This Row],[2024/25 Total change]]","v":0},{"$f":"Dataset[[#This Row],[2025/26 Baseline]]+Dataset[[#This Row],[2025/26 Total change]]","v":0},{"$f":"Dataset[[#This Row],[2026/27 Baseline]]+Dataset[[#This Row],[2026/27 Total change]]","v":0},{"$f":"Dataset[[#This Row],[2027/28 Baseline]]+Dataset[[#This Row],[2027/28 Total change]]","v":0}]
["NAT|Non-transfer item","40|Travel and subsistence","2025_26","MTEC2025",40,1,4,51472,200,"40","01","04","051472","000200","40|01|04|000200","01","01","02","37","37","01|01|02|37|37","National","Transport","Administration","Communications","Non-transfer item","Current","Current payments","Goods and services","Travel and subsistence","Travel and subsistence","Economic development","Economic regulation and infrastructure","NAT",828,2014,2806,4295,4295,4295,4524,4350,4711,4953,5177,null,null,null,null,null,null,null,null,null,null,null,null,null,null,null,null,null,null,null,null,null,null,null,null,null,null,null,null,null,null,null,null,null,null,{"$f":"Dataset[[#This Row],[2025/26 From - Spending review Topic 1]]+Dataset[[#This Row],[2025/26 From - Spending review Topic 2]]+Dataset[[#This Row],[2025/26 From - Spending review Topic 3]]+Dataset[[#This Row],[2025/26 From - Spending review Topic 4]]+Dataset[[#This Row],[2025/26 From - Other reallocations]]","v":0},{"$f":"Dataset[[#This Row],[2026/27 From - Spending review Topic 1]]+Dataset[[#This Row],[2026/27 From - Spending review Topic 2]]+Dataset[[#This Row],[2026/27 From - Spending review Topic 3]]+Dataset[[#This Row],[2026/27 From - Spending review Topic 4]]+Dataset[[#This Row],[2026/27 From - Other reallocations]]","v":0},{"$f":"Dataset[[#This Row],[2027/28 From - Spending review Topic 1]]+Dataset[[#This Row],[2027/28 From - Spending review Topic 2]]+Dataset[[#This Row],[2027/28 From - Spending review Topic 3]]+Dataset[[#This Row],[2027/28 From - Spending review Topic 4]]+Dataset[[#This Row],[2027/28 From - Other reallocations]]","v":0},{"$f":"Dataset[[#This Row],[2025/26 To - Spending review Topic 1]]+Dataset[[#This Row],[2025/26 To - Spending review Topic 2]]+Dataset[[#This Row],[2025/26 To - Spending review Topic 3]]+Dataset[[#This Row],[2025/26 To - Spending review Topic 4]]+Dataset[[#This Row],[2025/26 To - Other reallocations]]","v":0},{"$f":"Dataset[[#This Row],[2026/27 To - Spending review Topic 1]]+Dataset[[#This Row],[2026/27 To - Spending review Topic 2]]+Dataset[[#This Row],[2026/27 To - Spending review Topic 3]]+Dataset[[#This Row],[2026/27 To - Spending review Topic 4]]+Dataset[[#This Row],[2026/27 To - Other reallocations]]","v":0},{"$f":"Dataset[[#This Row],[2027/28 To - Spending review Topic 1]]+Dataset[[#This Row],[2027/28 To - Spending review Topic 2]]+Dataset[[#This Row],[2027/28 To - Spending review Topic 3]]+Dataset[[#This Row],[2027/28 To - Spending review Topic 4]]+Dataset[[#This Row],[2027/28 To - Other reallocations]]","v":0},{"$f":"Dataset[[#This Row],[2025/26 Reduction]]+Dataset[[#This Row],[2025/26 From - Total]]","v":0},{"$f":"Dataset[[#This Row],[2026/27 Reduction]]+Dataset[[#This Row],[2026/27 From - Total]]","v":0},{"$f":"Dataset[[#This Row],[2027/28 Reduction]]+Dataset[[#This Row],[2027/28 From - Total]]","v":0},{"$f":"Dataset[[#This Row],[2024/25 Reduction]]","v":0},{"$f":"SUM(Dataset[[#This Row],[2025/26 Reduction]],Dataset[[#This Row],[2025/26 From - Total]],Dataset[[#This Row],[2025/26 To - Total]])","v":0},{"$f":"SUM(Dataset[[#This Row],[2026/27 Reduction]],Dataset[[#This Row],[2026/27 From - Total]],Dataset[[#This Row],[2026/27 To - Total]])","v":0},{"$f":"SUM(Dataset[[#This Row],[2027/28 Reduction]],Dataset[[#This Row],[2027/28 From - Total]],Dataset[[#This Row],[2027/28 To - Total]])","v":0},{"$f":"Dataset[[#This Row],[2024/25 Baseline]]+Dataset[[#This Row],[2024/25 Total change]]","v":4350},{"$f":"Dataset[[#This Row],[2025/26 Baseline]]+Dataset[[#This Row],[2025/26 Total change]]","v":4711},{"$f":"Dataset[[#This Row],[2026/27 Baseline]]+Dataset[[#This Row],[2026/27 Total change]]","v":4953},{"$f":"Dataset[[#This Row],[2027/28 Baseline]]+Dataset[[#This Row],[2027/28 Total change]]","v":5177}]
["NAT|Non-transfer item","40|Training and development","2025_26","MTEC2025",40,1,4,51473,201,"40","01","04","051473","000201","40|01|04|000201","01","01","02","38","38","01|01|02|38|38","National","Transport","Administration","Communications","Non-transfer item","Current","Current payments","Goods and services","Training and development","Training and development","Economic development","Economic regulation and infrastructure","NAT",0,0,0,0,0,0,null,0,0,0,0,null,null,null,null,null,null,null,null,null,null,null,null,null,null,null,null,null,null,null,null,null,null,null,null,null,null,null,null,null,null,null,null,null,null,{"$f":"Dataset[[#This Row],[2025/26 From - Spending review Topic 1]]+Dataset[[#This Row],[2025/26 From - Spending review Topic 2]]+Dataset[[#This Row],[2025/26 From - Spending review Topic 3]]+Dataset[[#This Row],[2025/26 From - Spending review Topic 4]]+Dataset[[#This Row],[2025/26 From - Other reallocations]]","v":0},{"$f":"Dataset[[#This Row],[2026/27 From - Spending review Topic 1]]+Dataset[[#This Row],[2026/27 From - Spending review Topic 2]]+Dataset[[#This Row],[2026/27 From - Spending review Topic 3]]+Dataset[[#This Row],[2026/27 From - Spending review Topic 4]]+Dataset[[#This Row],[2026/27 From - Other reallocations]]","v":0},{"$f":"Dataset[[#This Row],[2027/28 From - Spending review Topic 1]]+Dataset[[#This Row],[2027/28 From - Spending review Topic 2]]+Dataset[[#This Row],[2027/28 From - Spending review Topic 3]]+Dataset[[#This Row],[2027/28 From - Spending review Topic 4]]+Dataset[[#This Row],[2027/28 From - Other reallocations]]","v":0},{"$f":"Dataset[[#This Row],[2025/26 To - Spending review Topic 1]]+Dataset[[#This Row],[2025/26 To - Spending review Topic 2]]+Dataset[[#This Row],[2025/26 To - Spending review Topic 3]]+Dataset[[#This Row],[2025/26 To - Spending review Topic 4]]+Dataset[[#This Row],[2025/26 To - Other reallocations]]","v":0},{"$f":"Dataset[[#This Row],[2026/27 To - Spending review Topic 1]]+Dataset[[#This Row],[2026/27 To - Spending review Topic 2]]+Dataset[[#This Row],[2026/27 To - Spending review Topic 3]]+Dataset[[#This Row],[2026/27 To - Spending review Topic 4]]+Dataset[[#This Row],[2026/27 To - Other reallocations]]","v":0},{"$f":"Dataset[[#This Row],[2027/28 To - Spending review Topic 1]]+Dataset[[#This Row],[2027/28 To - Spending review Topic 2]]+Dataset[[#This Row],[2027/28 To - Spending review Topic 3]]+Dataset[[#This Row],[2027/28 To - Spending review Topic 4]]+Dataset[[#This Row],[2027/28 To - Other reallocations]]","v":0},{"$f":"Dataset[[#This Row],[2025/26 Reduction]]+Dataset[[#This Row],[2025/26 From - Total]]","v":0},{"$f":"Dataset[[#This Row],[2026/27 Reduction]]+Dataset[[#This Row],[2026/27 From - Total]]","v":0},{"$f":"Dataset[[#This Row],[2027/28 Reduction]]+Dataset[[#This Row],[2027/28 From - Total]]","v":0},{"$f":"Dataset[[#This Row],[2024/25 Reduction]]","v":0},{"$f":"SUM(Dataset[[#This Row],[2025/26 Reduction]],Dataset[[#This Row],[2025/26 From - Total]],Dataset[[#This Row],[2025/26 To - Total]])","v":0},{"$f":"SUM(Dataset[[#This Row],[2026/27 Reduction]],Dataset[[#This Row],[2026/27 From - Total]],Dataset[[#This Row],[2026/27 To - Total]])","v":0},{"$f":"SUM(Dataset[[#This Row],[2027/28 Reduction]],Dataset[[#This Row],[2027/28 From - Total]],Dataset[[#This Row],[2027/28 To - Total]])","v":0},{"$f":"Dataset[[#This Row],[2024/25 Baseline]]+Dataset[[#This Row],[2024/25 Total change]]","v":0},{"$f":"Dataset[[#This Row],[2025/26 Baseline]]+Dataset[[#This Row],[2025/26 Total change]]","v":0},{"$f":"Dataset[[#This Row],[2026/27 Baseline]]+Dataset[[#This Row],[2026/27 Total change]]","v":0},{"$f":"Dataset[[#This Row],[2027/28 Baseline]]+Dataset[[#This Row],[2027/28 Total change]]","v":0}]
["NAT|Non-transfer item","40|Operating payments","2025_26","MTEC2025",40,1,4,51474,202,"40","01","04","051474","000202","40|01|04|000202","01","01","02","39","39","01|01|02|39|39","National","Transport","Administration","Communications","Non-transfer item","Current","Current payments","Goods and services","Operating payments","Operating payments","Economic development","Economic regulation and infrastructure","NAT",75,70,45,540,40,40,110,40,43,46,48,null,null,null,null,null,null,null,null,null,null,null,null,null,null,null,null,null,null,null,null,null,null,null,null,null,null,null,null,null,null,null,null,null,null,{"$f":"Dataset[[#This Row],[2025/26 From - Spending review Topic 1]]+Dataset[[#This Row],[2025/26 From - Spending review Topic 2]]+Dataset[[#This Row],[2025/26 From - Spending review Topic 3]]+Dataset[[#This Row],[2025/26 From - Spending review Topic 4]]+Dataset[[#This Row],[2025/26 From - Other reallocations]]","v":0},{"$f":"Dataset[[#This Row],[2026/27 From - Spending review Topic 1]]+Dataset[[#This Row],[2026/27 From - Spending review Topic 2]]+Dataset[[#This Row],[2026/27 From - Spending review Topic 3]]+Dataset[[#This Row],[2026/27 From - Spending review Topic 4]]+Dataset[[#This Row],[2026/27 From - Other reallocations]]","v":0},{"$f":"Dataset[[#This Row],[2027/28 From - Spending review Topic 1]]+Dataset[[#This Row],[2027/28 From - Spending review Topic 2]]+Dataset[[#This Row],[2027/28 From - Spending review Topic 3]]+Dataset[[#This Row],[2027/28 From - Spending review Topic 4]]+Dataset[[#This Row],[2027/28 From - Other reallocations]]","v":0},{"$f":"Dataset[[#This Row],[2025/26 To - Spending review Topic 1]]+Dataset[[#This Row],[2025/26 To - Spending review Topic 2]]+Dataset[[#This Row],[2025/26 To - Spending review Topic 3]]+Dataset[[#This Row],[2025/26 To - Spending review Topic 4]]+Dataset[[#This Row],[2025/26 To - Other reallocations]]","v":0},{"$f":"Dataset[[#This Row],[2026/27 To - Spending review Topic 1]]+Dataset[[#This Row],[2026/27 To - Spending review Topic 2]]+Dataset[[#This Row],[2026/27 To - Spending review Topic 3]]+Dataset[[#This Row],[2026/27 To - Spending review Topic 4]]+Dataset[[#This Row],[2026/27 To - Other reallocations]]","v":0},{"$f":"Dataset[[#This Row],[2027/28 To - Spending review Topic 1]]+Dataset[[#This Row],[2027/28 To - Spending review Topic 2]]+Dataset[[#This Row],[2027/28 To - Spending review Topic 3]]+Dataset[[#This Row],[2027/28 To - Spending review Topic 4]]+Dataset[[#This Row],[2027/28 To - Other reallocations]]","v":0},{"$f":"Dataset[[#This Row],[2025/26 Reduction]]+Dataset[[#This Row],[2025/26 From - Total]]","v":0},{"$f":"Dataset[[#This Row],[2026/27 Reduction]]+Dataset[[#This Row],[2026/27 From - Total]]","v":0},{"$f":"Dataset[[#This Row],[2027/28 Reduction]]+Dataset[[#This Row],[2027/28 From - Total]]","v":0},{"$f":"Dataset[[#This Row],[2024/25 Reduction]]","v":0},{"$f":"SUM(Dataset[[#This Row],[2025/26 Reduction]],Dataset[[#This Row],[2025/26 From - Total]],Dataset[[#This Row],[2025/26 To - Total]])","v":0},{"$f":"SUM(Dataset[[#This Row],[2026/27 Reduction]],Dataset[[#This Row],[2026/27 From - Total]],Dataset[[#This Row],[2026/27 To - Total]])","v":0},{"$f":"SUM(Dataset[[#This Row],[2027/28 Reduction]],Dataset[[#This Row],[2027/28 From - Total]],Dataset[[#This Row],[2027/28 To - Total]])","v":0},{"$f":"Dataset[[#This Row],[2024/25 Baseline]]+Dataset[[#This Row],[2024/25 Total change]]","v":40},{"$f":"Dataset[[#This Row],[2025/26 Baseline]]+Dataset[[#This Row],[2025/26 Total change]]","v":43},{"$f":"Dataset[[#This Row],[2026/27 Baseline]]+Dataset[[#This Row],[2026/27 Total change]]","v":46},{"$f":"Dataset[[#This Row],[2027/28 Baseline]]+Dataset[[#This Row],[2027/28 Total change]]","v":48}]
["NAT|Non-transfer item","40|Venues and facilities","2025_26","MTEC2025",40,1,4,51475,203,"40","01","04","051475","000203","40|01|04|000203","01","01","02","40","40","01|01|02|40|40","National","Transport","Administration","Communications","Non-transfer item","Current","Current payments","Goods and services","Venues and facilities","Venues and facilities","Economic development","Economic regulation and infrastructure","NAT",0,289,0,1336,1336,1336,906,1125,1219,1281,1339,null,null,null,null,null,null,null,null,null,null,null,null,null,null,null,null,null,null,null,null,null,null,null,null,null,null,null,null,null,null,null,null,null,null,{"$f":"Dataset[[#This Row],[2025/26 From - Spending review Topic 1]]+Dataset[[#This Row],[2025/26 From - Spending review Topic 2]]+Dataset[[#This Row],[2025/26 From - Spending review Topic 3]]+Dataset[[#This Row],[2025/26 From - Spending review Topic 4]]+Dataset[[#This Row],[2025/26 From - Other reallocations]]","v":0},{"$f":"Dataset[[#This Row],[2026/27 From - Spending review Topic 1]]+Dataset[[#This Row],[2026/27 From - Spending review Topic 2]]+Dataset[[#This Row],[2026/27 From - Spending review Topic 3]]+Dataset[[#This Row],[2026/27 From - Spending review Topic 4]]+Dataset[[#This Row],[2026/27 From - Other reallocations]]","v":0},{"$f":"Dataset[[#This Row],[2027/28 From - Spending review Topic 1]]+Dataset[[#This Row],[2027/28 From - Spending review Topic 2]]+Dataset[[#This Row],[2027/28 From - Spending review Topic 3]]+Dataset[[#This Row],[2027/28 From - Spending review Topic 4]]+Dataset[[#This Row],[2027/28 From - Other reallocations]]","v":0},{"$f":"Dataset[[#This Row],[2025/26 To - Spending review Topic 1]]+Dataset[[#This Row],[2025/26 To - Spending review Topic 2]]+Dataset[[#This Row],[2025/26 To - Spending review Topic 3]]+Dataset[[#This Row],[2025/26 To - Spending review Topic 4]]+Dataset[[#This Row],[2025/26 To - Other reallocations]]","v":0},{"$f":"Dataset[[#This Row],[2026/27 To - Spending review Topic 1]]+Dataset[[#This Row],[2026/27 To - Spending review Topic 2]]+Dataset[[#This Row],[2026/27 To - Spending review Topic 3]]+Dataset[[#This Row],[2026/27 To - Spending review Topic 4]]+Dataset[[#This Row],[2026/27 To - Other reallocations]]","v":0},{"$f":"Dataset[[#This Row],[2027/28 To - Spending review Topic 1]]+Dataset[[#This Row],[2027/28 To - Spending review Topic 2]]+Dataset[[#This Row],[2027/28 To - Spending review Topic 3]]+Dataset[[#This Row],[2027/28 To - Spending review Topic 4]]+Dataset[[#This Row],[2027/28 To - Other reallocations]]","v":0},{"$f":"Dataset[[#This Row],[2025/26 Reduction]]+Dataset[[#This Row],[2025/26 From - Total]]","v":0},{"$f":"Dataset[[#This Row],[2026/27 Reduction]]+Dataset[[#This Row],[2026/27 From - Total]]","v":0},{"$f":"Dataset[[#This Row],[2027/28 Reduction]]+Dataset[[#This Row],[2027/28 From - Total]]","v":0},{"$f":"Dataset[[#This Row],[2024/25 Reduction]]","v":0},{"$f":"SUM(Dataset[[#This Row],[2025/26 Reduction]],Dataset[[#This Row],[2025/26 From - Total]],Dataset[[#This Row],[2025/26 To - Total]])","v":0},{"$f":"SUM(Dataset[[#This Row],[2026/27 Reduction]],Dataset[[#This Row],[2026/27 From - Total]],Dataset[[#This Row],[2026/27 To - Total]])","v":0},{"$f":"SUM(Dataset[[#This Row],[2027/28 Reduction]],Dataset[[#This Row],[2027/28 From - Total]],Dataset[[#This Row],[2027/28 To - Total]])","v":0},{"$f":"Dataset[[#This Row],[2024/25 Baseline]]+Dataset[[#This Row],[2024/25 Total change]]","v":1125},{"$f":"Dataset[[#This Row],[2025/26 Baseline]]+Dataset[[#This Row],[2025/26 Total change]]","v":1219},{"$f":"Dataset[[#This Row],[2026/27 Baseline]]+Dataset[[#This Row],[2026/27 Total change]]","v":1281},{"$f":"Dataset[[#This Row],[2027/28 Baseline]]+Dataset[[#This Row],[2027/28 Total change]]","v":1339}]
["NAT|Non-transfer item","40|Interest (Incl. interest on unitary payments (PPP))","2025_26","MTEC2025",40,1,4,51476,204,"40","01","04","051476","000204","40|01|04|000204","01","01","03","41","41","01|01|03|41|41","National","Transport","Administration","Communications","Non-transfer item","Current","Current payments","Interest and rent on land","Interest (Incl. interest on unitary payments (PPP))","Interest (Incl. interest on unitary payments (PPP))","Economic development","Economic regulation and infrastructure","NAT",0,0,0,0,0,0,null,0,0,0,0,null,null,null,null,null,null,null,null,null,null,null,null,null,null,null,null,null,null,null,null,null,null,null,null,null,null,null,null,null,null,null,null,null,null,{"$f":"Dataset[[#This Row],[2025/26 From - Spending review Topic 1]]+Dataset[[#This Row],[2025/26 From - Spending review Topic 2]]+Dataset[[#This Row],[2025/26 From - Spending review Topic 3]]+Dataset[[#This Row],[2025/26 From - Spending review Topic 4]]+Dataset[[#This Row],[2025/26 From - Other reallocations]]","v":0},{"$f":"Dataset[[#This Row],[2026/27 From - Spending review Topic 1]]+Dataset[[#This Row],[2026/27 From - Spending review Topic 2]]+Dataset[[#This Row],[2026/27 From - Spending review Topic 3]]+Dataset[[#This Row],[2026/27 From - Spending review Topic 4]]+Dataset[[#This Row],[2026/27 From - Other reallocations]]","v":0},{"$f":"Dataset[[#This Row],[2027/28 From - Spending review Topic 1]]+Dataset[[#This Row],[2027/28 From - Spending review Topic 2]]+Dataset[[#This Row],[2027/28 From - Spending review Topic 3]]+Dataset[[#This Row],[2027/28 From - Spending review Topic 4]]+Dataset[[#This Row],[2027/28 From - Other reallocations]]","v":0},{"$f":"Dataset[[#This Row],[2025/26 To - Spending review Topic 1]]+Dataset[[#This Row],[2025/26 To - Spending review Topic 2]]+Dataset[[#This Row],[2025/26 To - Spending review Topic 3]]+Dataset[[#This Row],[2025/26 To - Spending review Topic 4]]+Dataset[[#This Row],[2025/26 To - Other reallocations]]","v":0},{"$f":"Dataset[[#This Row],[2026/27 To - Spending review Topic 1]]+Dataset[[#This Row],[2026/27 To - Spending review Topic 2]]+Dataset[[#This Row],[2026/27 To - Spending review Topic 3]]+Dataset[[#This Row],[2026/27 To - Spending review Topic 4]]+Dataset[[#This Row],[2026/27 To - Other reallocations]]","v":0},{"$f":"Dataset[[#This Row],[2027/28 To - Spending review Topic 1]]+Dataset[[#This Row],[2027/28 To - Spending review Topic 2]]+Dataset[[#This Row],[2027/28 To - Spending review Topic 3]]+Dataset[[#This Row],[2027/28 To - Spending review Topic 4]]+Dataset[[#This Row],[2027/28 To - Other reallocations]]","v":0},{"$f":"Dataset[[#This Row],[2025/26 Reduction]]+Dataset[[#This Row],[2025/26 From - Total]]","v":0},{"$f":"Dataset[[#This Row],[2026/27 Reduction]]+Dataset[[#This Row],[2026/27 From - Total]]","v":0},{"$f":"Dataset[[#This Row],[2027/28 Reduction]]+Dataset[[#This Row],[2027/28 From - Total]]","v":0},{"$f":"Dataset[[#This Row],[2024/25 Reduction]]","v":0},{"$f":"SUM(Dataset[[#This Row],[2025/26 Reduction]],Dataset[[#This Row],[2025/26 From - Total]],Dataset[[#This Row],[2025/26 To - Total]])","v":0},{"$f":"SUM(Dataset[[#This Row],[2026/27 Reduction]],Dataset[[#This Row],[2026/27 From - Total]],Dataset[[#This Row],[2026/27 To - Total]])","v":0},{"$f":"SUM(Dataset[[#This Row],[2027/28 Reduction]],Dataset[[#This Row],[2027/28 From - Total]],Dataset[[#This Row],[2027/28 To - Total]])","v":0},{"$f":"Dataset[[#This Row],[2024/25 Baseline]]+Dataset[[#This Row],[2024/25 Total change]]","v":0},{"$f":"Dataset[[#This Row],[2025/26 Baseline]]+Dataset[[#This Row],[2025/26 Total change]]","v":0},{"$f":"Dataset[[#This Row],[2026/27 Baseline]]+Dataset[[#This Row],[2026/27 Total change]]","v":0},{"$f":"Dataset[[#This Row],[2027/28 Baseline]]+Dataset[[#This Row],[2027/28 Total change]]","v":0}]
["NAT|Non-transfer item","40|Rent on land","2025_26","MTEC2025",40,1,4,51477,205,"40","01","04","051477","000205","40|01|04|000205","01","01","03","42","42","01|01|03|42|42","National","Transport","Administration","Communications","Non-transfer item","Current","Current payments","Interest and rent on land","Rent on land","Rent on land","Economic development","Economic regulation and infrastructure","NAT",0,0,0,0,0,0,null,0,0,0,0,null,null,null,null,null,null,null,null,null,null,null,null,null,null,null,null,null,null,null,null,null,null,null,null,null,null,null,null,null,null,null,null,null,null,{"$f":"Dataset[[#This Row],[2025/26 From - Spending review Topic 1]]+Dataset[[#This Row],[2025/26 From - Spending review Topic 2]]+Dataset[[#This Row],[2025/26 From - Spending review Topic 3]]+Dataset[[#This Row],[2025/26 From - Spending review Topic 4]]+Dataset[[#This Row],[2025/26 From - Other reallocations]]","v":0},{"$f":"Dataset[[#This Row],[2026/27 From - Spending review Topic 1]]+Dataset[[#This Row],[2026/27 From - Spending review Topic 2]]+Dataset[[#This Row],[2026/27 From - Spending review Topic 3]]+Dataset[[#This Row],[2026/27 From - Spending review Topic 4]]+Dataset[[#This Row],[2026/27 From - Other reallocations]]","v":0},{"$f":"Dataset[[#This Row],[2027/28 From - Spending review Topic 1]]+Dataset[[#This Row],[2027/28 From - Spending review Topic 2]]+Dataset[[#This Row],[2027/28 From - Spending review Topic 3]]+Dataset[[#This Row],[2027/28 From - Spending review Topic 4]]+Dataset[[#This Row],[2027/28 From - Other reallocations]]","v":0},{"$f":"Dataset[[#This Row],[2025/26 To - Spending review Topic 1]]+Dataset[[#This Row],[2025/26 To - Spending review Topic 2]]+Dataset[[#This Row],[2025/26 To - Spending review Topic 3]]+Dataset[[#This Row],[2025/26 To - Spending review Topic 4]]+Dataset[[#This Row],[2025/26 To - Other reallocations]]","v":0},{"$f":"Dataset[[#This Row],[2026/27 To - Spending review Topic 1]]+Dataset[[#This Row],[2026/27 To - Spending review Topic 2]]+Dataset[[#This Row],[2026/27 To - Spending review Topic 3]]+Dataset[[#This Row],[2026/27 To - Spending review Topic 4]]+Dataset[[#This Row],[2026/27 To - Other reallocations]]","v":0},{"$f":"Dataset[[#This Row],[2027/28 To - Spending review Topic 1]]+Dataset[[#This Row],[2027/28 To - Spending review Topic 2]]+Dataset[[#This Row],[2027/28 To - Spending review Topic 3]]+Dataset[[#This Row],[2027/28 To - Spending review Topic 4]]+Dataset[[#This Row],[2027/28 To - Other reallocations]]","v":0},{"$f":"Dataset[[#This Row],[2025/26 Reduction]]+Dataset[[#This Row],[2025/26 From - Total]]","v":0},{"$f":"Dataset[[#This Row],[2026/27 Reduction]]+Dataset[[#This Row],[2026/27 From - Total]]","v":0},{"$f":"Dataset[[#This Row],[2027/28 Reduction]]+Dataset[[#This Row],[2027/28 From - Total]]","v":0},{"$f":"Dataset[[#This Row],[2024/25 Reduction]]","v":0},{"$f":"SUM(Dataset[[#This Row],[2025/26 Reduction]],Dataset[[#This Row],[2025/26 From - Total]],Dataset[[#This Row],[2025/26 To - Total]])","v":0},{"$f":"SUM(Dataset[[#This Row],[2026/27 Reduction]],Dataset[[#This Row],[2026/27 From - Total]],Dataset[[#This Row],[2026/27 To - Total]])","v":0},{"$f":"SUM(Dataset[[#This Row],[2027/28 Reduction]],Dataset[[#This Row],[2027/28 From - Total]],Dataset[[#This Row],[2027/28 To - Total]])","v":0},{"$f":"Dataset[[#This Row],[2024/25 Baseline]]+Dataset[[#This Row],[2024/25 Total change]]","v":0},{"$f":"Dataset[[#This Row],[2025/26 Baseline]]+Dataset[[#This Row],[2025/26 Total change]]","v":0},{"$f":"Dataset[[#This Row],[2026/27 Baseline]]+Dataset[[#This Row],[2026/27 Total change]]","v":0},{"$f":"Dataset[[#This Row],[2027/28 Baseline]]+Dataset[[#This Row],[2027/28 Total change]]","v":0}]
["NAT|Employee social benefits","40|Social benefits","2025_26","MTEC2025",40,1,4,51478,206,"40","01","04","051478","000206","40|01|04|000206","01","02","10","52","56","01|02|10|52|56","National","Transport","Administration","Communications","Employee social benefits","Current","Transfers and subsidies","Households","Social benefits","Social benefits","Economic development","Economic regulation and infrastructure","NAT",441,0,339,0,0,0,null,0,0,0,0,null,null,null,null,null,null,null,null,null,null,null,null,null,null,null,null,null,null,null,null,null,null,null,null,null,null,null,null,null,null,null,null,null,null,{"$f":"Dataset[[#This Row],[2025/26 From - Spending review Topic 1]]+Dataset[[#This Row],[2025/26 From - Spending review Topic 2]]+Dataset[[#This Row],[2025/26 From - Spending review Topic 3]]+Dataset[[#This Row],[2025/26 From - Spending review Topic 4]]+Dataset[[#This Row],[2025/26 From - Other reallocations]]","v":0},{"$f":"Dataset[[#This Row],[2026/27 From - Spending review Topic 1]]+Dataset[[#This Row],[2026/27 From - Spending review Topic 2]]+Dataset[[#This Row],[2026/27 From - Spending review Topic 3]]+Dataset[[#This Row],[2026/27 From - Spending review Topic 4]]+Dataset[[#This Row],[2026/27 From - Other reallocations]]","v":0},{"$f":"Dataset[[#This Row],[2027/28 From - Spending review Topic 1]]+Dataset[[#This Row],[2027/28 From - Spending review Topic 2]]+Dataset[[#This Row],[2027/28 From - Spending review Topic 3]]+Dataset[[#This Row],[2027/28 From - Spending review Topic 4]]+Dataset[[#This Row],[2027/28 From - Other reallocations]]","v":0},{"$f":"Dataset[[#This Row],[2025/26 To - Spending review Topic 1]]+Dataset[[#This Row],[2025/26 To - Spending review Topic 2]]+Dataset[[#This Row],[2025/26 To - Spending review Topic 3]]+Dataset[[#This Row],[2025/26 To - Spending review Topic 4]]+Dataset[[#This Row],[2025/26 To - Other reallocations]]","v":0},{"$f":"Dataset[[#This Row],[2026/27 To - Spending review Topic 1]]+Dataset[[#This Row],[2026/27 To - Spending review Topic 2]]+Dataset[[#This Row],[2026/27 To - Spending review Topic 3]]+Dataset[[#This Row],[2026/27 To - Spending review Topic 4]]+Dataset[[#This Row],[2026/27 To - Other reallocations]]","v":0},{"$f":"Dataset[[#This Row],[2027/28 To - Spending review Topic 1]]+Dataset[[#This Row],[2027/28 To - Spending review Topic 2]]+Dataset[[#This Row],[2027/28 To - Spending review Topic 3]]+Dataset[[#This Row],[2027/28 To - Spending review Topic 4]]+Dataset[[#This Row],[2027/28 To - Other reallocations]]","v":0},{"$f":"Dataset[[#This Row],[2025/26 Reduction]]+Dataset[[#This Row],[2025/26 From - Total]]","v":0},{"$f":"Dataset[[#This Row],[2026/27 Reduction]]+Dataset[[#This Row],[2026/27 From - Total]]","v":0},{"$f":"Dataset[[#This Row],[2027/28 Reduction]]+Dataset[[#This Row],[2027/28 From - Total]]","v":0},{"$f":"Dataset[[#This Row],[2024/25 Reduction]]","v":0},{"$f":"SUM(Dataset[[#This Row],[2025/26 Reduction]],Dataset[[#This Row],[2025/26 From - Total]],Dataset[[#This Row],[2025/26 To - Total]])","v":0},{"$f":"SUM(Dataset[[#This Row],[2026/27 Reduction]],Dataset[[#This Row],[2026/27 From - Total]],Dataset[[#This Row],[2026/27 To - Total]])","v":0},{"$f":"SUM(Dataset[[#This Row],[2027/28 Reduction]],Dataset[[#This Row],[2027/28 From - Total]],Dataset[[#This Row],[2027/28 To - Total]])","v":0},{"$f":"Dataset[[#This Row],[2024/25 Baseline]]+Dataset[[#This Row],[2024/25 Total change]]","v":0},{"$f":"Dataset[[#This Row],[2025/26 Baseline]]+Dataset[[#This Row],[2025/26 Total change]]","v":0},{"$f":"Dataset[[#This Row],[2026/27 Baseline]]+Dataset[[#This Row],[2026/27 Total change]]","v":0},{"$f":"Dataset[[#This Row],[2027/28 Baseline]]+Dataset[[#This Row],[2027/28 Total change]]","v":0}]
["NAT|Non-transfer item","40|Buildings","2025_26","MTEC2025",40,1,4,51479,207,"40","01","04","051479","000207","40|01|04|000207","02","03","11","54","58","02|03|11|54|58","National","Transport","Administration","Communications","Non-transfer item","Capital","Payments for capital assets","Buildings and other fixed structures","Buildings","Buildings","Economic development","Economic regulation and infrastructure","NAT",0,0,0,0,0,0,null,0,0,0,0,null,null,null,null,null,null,null,null,null,null,null,null,null,null,null,null,null,null,null,null,null,null,null,null,null,null,null,null,null,null,null,null,null,null,{"$f":"Dataset[[#This Row],[2025/26 From - Spending review Topic 1]]+Dataset[[#This Row],[2025/26 From - Spending review Topic 2]]+Dataset[[#This Row],[2025/26 From - Spending review Topic 3]]+Dataset[[#This Row],[2025/26 From - Spending review Topic 4]]+Dataset[[#This Row],[2025/26 From - Other reallocations]]","v":0},{"$f":"Dataset[[#This Row],[2026/27 From - Spending review Topic 1]]+Dataset[[#This Row],[2026/27 From - Spending review Topic 2]]+Dataset[[#This Row],[2026/27 From - Spending review Topic 3]]+Dataset[[#This Row],[2026/27 From - Spending review Topic 4]]+Dataset[[#This Row],[2026/27 From - Other reallocations]]","v":0},{"$f":"Dataset[[#This Row],[2027/28 From - Spending review Topic 1]]+Dataset[[#This Row],[2027/28 From - Spending review Topic 2]]+Dataset[[#This Row],[2027/28 From - Spending review Topic 3]]+Dataset[[#This Row],[2027/28 From - Spending review Topic 4]]+Dataset[[#This Row],[2027/28 From - Other reallocations]]","v":0},{"$f":"Dataset[[#This Row],[2025/26 To - Spending review Topic 1]]+Dataset[[#This Row],[2025/26 To - Spending review Topic 2]]+Dataset[[#This Row],[2025/26 To - Spending review Topic 3]]+Dataset[[#This Row],[2025/26 To - Spending review Topic 4]]+Dataset[[#This Row],[2025/26 To - Other reallocations]]","v":0},{"$f":"Dataset[[#This Row],[2026/27 To - Spending review Topic 1]]+Dataset[[#This Row],[2026/27 To - Spending review Topic 2]]+Dataset[[#This Row],[2026/27 To - Spending review Topic 3]]+Dataset[[#This Row],[2026/27 To - Spending review Topic 4]]+Dataset[[#This Row],[2026/27 To - Other reallocations]]","v":0},{"$f":"Dataset[[#This Row],[2027/28 To - Spending review Topic 1]]+Dataset[[#This Row],[2027/28 To - Spending review Topic 2]]+Dataset[[#This Row],[2027/28 To - Spending review Topic 3]]+Dataset[[#This Row],[2027/28 To - Spending review Topic 4]]+Dataset[[#This Row],[2027/28 To - Other reallocations]]","v":0},{"$f":"Dataset[[#This Row],[2025/26 Reduction]]+Dataset[[#This Row],[2025/26 From - Total]]","v":0},{"$f":"Dataset[[#This Row],[2026/27 Reduction]]+Dataset[[#This Row],[2026/27 From - Total]]","v":0},{"$f":"Dataset[[#This Row],[2027/28 Reduction]]+Dataset[[#This Row],[2027/28 From - Total]]","v":0},{"$f":"Dataset[[#This Row],[2024/25 Reduction]]","v":0},{"$f":"SUM(Dataset[[#This Row],[2025/26 Reduction]],Dataset[[#This Row],[2025/26 From - Total]],Dataset[[#This Row],[2025/26 To - Total]])","v":0},{"$f":"SUM(Dataset[[#This Row],[2026/27 Reduction]],Dataset[[#This Row],[2026/27 From - Total]],Dataset[[#This Row],[2026/27 To - Total]])","v":0},{"$f":"SUM(Dataset[[#This Row],[2027/28 Reduction]],Dataset[[#This Row],[2027/28 From - Total]],Dataset[[#This Row],[2027/28 To - Total]])","v":0},{"$f":"Dataset[[#This Row],[2024/25 Baseline]]+Dataset[[#This Row],[2024/25 Total change]]","v":0},{"$f":"Dataset[[#This Row],[2025/26 Baseline]]+Dataset[[#This Row],[2025/26 Total change]]","v":0},{"$f":"Dataset[[#This Row],[2026/27 Baseline]]+Dataset[[#This Row],[2026/27 Total change]]","v":0},{"$f":"Dataset[[#This Row],[2027/28 Baseline]]+Dataset[[#This Row],[2027/28 Total change]]","v":0}]
["NAT|Non-transfer item","40|Other fixed structures","2025_26","MTEC2025",40,1,4,51480,208,"40","01","04","051480","000208","40|01|04|000208","02","03","11","55","59","02|03|11|55|59","National","Transport","Administration","Communications","Non-transfer item","Capital","Payments for capital assets","Buildings and other fixed structures","Other fixed structures","Other fixed structures","Economic development","Economic regulation and infrastructure","NAT",0,0,0,0,0,0,null,0,0,0,0,null,null,null,null,null,null,null,null,null,null,null,null,null,null,null,null,null,null,null,null,null,null,null,null,null,null,null,null,null,null,null,null,null,null,{"$f":"Dataset[[#This Row],[2025/26 From - Spending review Topic 1]]+Dataset[[#This Row],[2025/26 From - Spending review Topic 2]]+Dataset[[#This Row],[2025/26 From - Spending review Topic 3]]+Dataset[[#This Row],[2025/26 From - Spending review Topic 4]]+Dataset[[#This Row],[2025/26 From - Other reallocations]]","v":0},{"$f":"Dataset[[#This Row],[2026/27 From - Spending review Topic 1]]+Dataset[[#This Row],[2026/27 From - Spending review Topic 2]]+Dataset[[#This Row],[2026/27 From - Spending review Topic 3]]+Dataset[[#This Row],[2026/27 From - Spending review Topic 4]]+Dataset[[#This Row],[2026/27 From - Other reallocations]]","v":0},{"$f":"Dataset[[#This Row],[2027/28 From - Spending review Topic 1]]+Dataset[[#This Row],[2027/28 From - Spending review Topic 2]]+Dataset[[#This Row],[2027/28 From - Spending review Topic 3]]+Dataset[[#This Row],[2027/28 From - Spending review Topic 4]]+Dataset[[#This Row],[2027/28 From - Other reallocations]]","v":0},{"$f":"Dataset[[#This Row],[2025/26 To - Spending review Topic 1]]+Dataset[[#This Row],[2025/26 To - Spending review Topic 2]]+Dataset[[#This Row],[2025/26 To - Spending review Topic 3]]+Dataset[[#This Row],[2025/26 To - Spending review Topic 4]]+Dataset[[#This Row],[2025/26 To - Other reallocations]]","v":0},{"$f":"Dataset[[#This Row],[2026/27 To - Spending review Topic 1]]+Dataset[[#This Row],[2026/27 To - Spending review Topic 2]]+Dataset[[#This Row],[2026/27 To - Spending review Topic 3]]+Dataset[[#This Row],[2026/27 To - Spending review Topic 4]]+Dataset[[#This Row],[2026/27 To - Other reallocations]]","v":0},{"$f":"Dataset[[#This Row],[2027/28 To - Spending review Topic 1]]+Dataset[[#This Row],[2027/28 To - Spending review Topic 2]]+Dataset[[#This Row],[2027/28 To - Spending review Topic 3]]+Dataset[[#This Row],[2027/28 To - Spending review Topic 4]]+Dataset[[#This Row],[2027/28 To - Other reallocations]]","v":0},{"$f":"Dataset[[#This Row],[2025/26 Reduction]]+Dataset[[#This Row],[2025/26 From - Total]]","v":0},{"$f":"Dataset[[#This Row],[2026/27 Reduction]]+Dataset[[#This Row],[2026/27 From - Total]]","v":0},{"$f":"Dataset[[#This Row],[2027/28 Reduction]]+Dataset[[#This Row],[2027/28 From - Total]]","v":0},{"$f":"Dataset[[#This Row],[2024/25 Reduction]]","v":0},{"$f":"SUM(Dataset[[#This Row],[2025/26 Reduction]],Dataset[[#This Row],[2025/26 From - Total]],Dataset[[#This Row],[2025/26 To - Total]])","v":0},{"$f":"SUM(Dataset[[#This Row],[2026/27 Reduction]],Dataset[[#This Row],[2026/27 From - Total]],Dataset[[#This Row],[2026/27 To - Total]])","v":0},{"$f":"SUM(Dataset[[#This Row],[2027/28 Reduction]],Dataset[[#This Row],[2027/28 From - Total]],Dataset[[#This Row],[2027/28 To - Total]])","v":0},{"$f":"Dataset[[#This Row],[2024/25 Baseline]]+Dataset[[#This Row],[2024/25 Total change]]","v":0},{"$f":"Dataset[[#This Row],[2025/26 Baseline]]+Dataset[[#This Row],[2025/26 Total change]]","v":0},{"$f":"Dataset[[#This Row],[2026/27 Baseline]]+Dataset[[#This Row],[2026/27 Total change]]","v":0},{"$f":"Dataset[[#This Row],[2027/28 Baseline]]+Dataset[[#This Row],[2027/28 Total change]]","v":0}]
["NAT|Non-transfer item","40|Transport equipment","2025_26","MTEC2025",40,1,4,51481,209,"40","01","04","051481","000209","40|01|04|000209","02","03","12","56","60","02|03|12|56|60","National","Transport","Administration","Communications","Non-transfer item","Capital","Payments for capital assets","Machinery and equipment","Transport equipment","Transport equipment","Economic development","Economic regulation and infrastructure","NAT",0,0,0,0,0,0,null,0,0,0,0,null,null,null,null,null,null,null,null,null,null,null,null,null,null,null,null,null,null,null,null,null,null,null,null,null,null,null,null,null,null,null,null,null,null,{"$f":"Dataset[[#This Row],[2025/26 From - Spending review Topic 1]]+Dataset[[#This Row],[2025/26 From - Spending review Topic 2]]+Dataset[[#This Row],[2025/26 From - Spending review Topic 3]]+Dataset[[#This Row],[2025/26 From - Spending review Topic 4]]+Dataset[[#This Row],[2025/26 From - Other reallocations]]","v":0},{"$f":"Dataset[[#This Row],[2026/27 From - Spending review Topic 1]]+Dataset[[#This Row],[2026/27 From - Spending review Topic 2]]+Dataset[[#This Row],[2026/27 From - Spending review Topic 3]]+Dataset[[#This Row],[2026/27 From - Spending review Topic 4]]+Dataset[[#This Row],[2026/27 From - Other reallocations]]","v":0},{"$f":"Dataset[[#This Row],[2027/28 From - Spending review Topic 1]]+Dataset[[#This Row],[2027/28 From - Spending review Topic 2]]+Dataset[[#This Row],[2027/28 From - Spending review Topic 3]]+Dataset[[#This Row],[2027/28 From - Spending review Topic 4]]+Dataset[[#This Row],[2027/28 From - Other reallocations]]","v":0},{"$f":"Dataset[[#This Row],[2025/26 To - Spending review Topic 1]]+Dataset[[#This Row],[2025/26 To - Spending review Topic 2]]+Dataset[[#This Row],[2025/26 To - Spending review Topic 3]]+Dataset[[#This Row],[2025/26 To - Spending review Topic 4]]+Dataset[[#This Row],[2025/26 To - Other reallocations]]","v":0},{"$f":"Dataset[[#This Row],[2026/27 To - Spending review Topic 1]]+Dataset[[#This Row],[2026/27 To - Spending review Topic 2]]+Dataset[[#This Row],[2026/27 To - Spending review Topic 3]]+Dataset[[#This Row],[2026/27 To - Spending review Topic 4]]+Dataset[[#This Row],[2026/27 To - Other reallocations]]","v":0},{"$f":"Dataset[[#This Row],[2027/28 To - Spending review Topic 1]]+Dataset[[#This Row],[2027/28 To - Spending review Topic 2]]+Dataset[[#This Row],[2027/28 To - Spending review Topic 3]]+Dataset[[#This Row],[2027/28 To - Spending review Topic 4]]+Dataset[[#This Row],[2027/28 To - Other reallocations]]","v":0},{"$f":"Dataset[[#This Row],[2025/26 Reduction]]+Dataset[[#This Row],[2025/26 From - Total]]","v":0},{"$f":"Dataset[[#This Row],[2026/27 Reduction]]+Dataset[[#This Row],[2026/27 From - Total]]","v":0},{"$f":"Dataset[[#This Row],[2027/28 Reduction]]+Dataset[[#This Row],[2027/28 From - Total]]","v":0},{"$f":"Dataset[[#This Row],[2024/25 Reduction]]","v":0},{"$f":"SUM(Dataset[[#This Row],[2025/26 Reduction]],Dataset[[#This Row],[2025/26 From - Total]],Dataset[[#This Row],[2025/26 To - Total]])","v":0},{"$f":"SUM(Dataset[[#This Row],[2026/27 Reduction]],Dataset[[#This Row],[2026/27 From - Total]],Dataset[[#This Row],[2026/27 To - Total]])","v":0},{"$f":"SUM(Dataset[[#This Row],[2027/28 Reduction]],Dataset[[#This Row],[2027/28 From - Total]],Dataset[[#This Row],[2027/28 To - Total]])","v":0},{"$f":"Dataset[[#This Row],[2024/25 Baseline]]+Dataset[[#This Row],[2024/25 Total change]]","v":0},{"$f":"Dataset[[#This Row],[2025/26 Baseline]]+Dataset[[#This Row],[2025/26 Total change]]","v":0},{"$f":"Dataset[[#This Row],[2026/27 Baseline]]+Dataset[[#This Row],[2026/27 Total change]]","v":0},{"$f":"Dataset[[#This Row],[2027/28 Baseline]]+Dataset[[#This Row],[2027/28 Total change]]","v":0}]
["NAT|Non-transfer item","40|Other machinery and equipment","2025_26","MTEC2025",40,1,4,51482,210,"40","01","04","051482","000210","40|01|04|000210","02","03","12","57","61","02|03|12|57|61","National","Transport","Administration","Communications","Non-transfer item","Capital","Payments for capital assets","Machinery and equipment","Other machinery and equipment","Other machinery and equipment","Economic development","Economic regulation and infrastructure","NAT",368,65,193,445,445,445,752,465,486,507,530,null,null,null,null,null,null,null,null,null,null,null,null,null,null,null,null,null,null,null,null,null,null,null,null,null,null,null,null,null,null,null,null,null,null,{"$f":"Dataset[[#This Row],[2025/26 From - Spending review Topic 1]]+Dataset[[#This Row],[2025/26 From - Spending review Topic 2]]+Dataset[[#This Row],[2025/26 From - Spending review Topic 3]]+Dataset[[#This Row],[2025/26 From - Spending review Topic 4]]+Dataset[[#This Row],[2025/26 From - Other reallocations]]","v":0},{"$f":"Dataset[[#This Row],[2026/27 From - Spending review Topic 1]]+Dataset[[#This Row],[2026/27 From - Spending review Topic 2]]+Dataset[[#This Row],[2026/27 From - Spending review Topic 3]]+Dataset[[#This Row],[2026/27 From - Spending review Topic 4]]+Dataset[[#This Row],[2026/27 From - Other reallocations]]","v":0},{"$f":"Dataset[[#This Row],[2027/28 From - Spending review Topic 1]]+Dataset[[#This Row],[2027/28 From - Spending review Topic 2]]+Dataset[[#This Row],[2027/28 From - Spending review Topic 3]]+Dataset[[#This Row],[2027/28 From - Spending review Topic 4]]+Dataset[[#This Row],[2027/28 From - Other reallocations]]","v":0},{"$f":"Dataset[[#This Row],[2025/26 To - Spending review Topic 1]]+Dataset[[#This Row],[2025/26 To - Spending review Topic 2]]+Dataset[[#This Row],[2025/26 To - Spending review Topic 3]]+Dataset[[#This Row],[2025/26 To - Spending review Topic 4]]+Dataset[[#This Row],[2025/26 To - Other reallocations]]","v":0},{"$f":"Dataset[[#This Row],[2026/27 To - Spending review Topic 1]]+Dataset[[#This Row],[2026/27 To - Spending review Topic 2]]+Dataset[[#This Row],[2026/27 To - Spending review Topic 3]]+Dataset[[#This Row],[2026/27 To - Spending review Topic 4]]+Dataset[[#This Row],[2026/27 To - Other reallocations]]","v":0},{"$f":"Dataset[[#This Row],[2027/28 To - Spending review Topic 1]]+Dataset[[#This Row],[2027/28 To - Spending review Topic 2]]+Dataset[[#This Row],[2027/28 To - Spending review Topic 3]]+Dataset[[#This Row],[2027/28 To - Spending review Topic 4]]+Dataset[[#This Row],[2027/28 To - Other reallocations]]","v":0},{"$f":"Dataset[[#This Row],[2025/26 Reduction]]+Dataset[[#This Row],[2025/26 From - Total]]","v":0},{"$f":"Dataset[[#This Row],[2026/27 Reduction]]+Dataset[[#This Row],[2026/27 From - Total]]","v":0},{"$f":"Dataset[[#This Row],[2027/28 Reduction]]+Dataset[[#This Row],[2027/28 From - Total]]","v":0},{"$f":"Dataset[[#This Row],[2024/25 Reduction]]","v":0},{"$f":"SUM(Dataset[[#This Row],[2025/26 Reduction]],Dataset[[#This Row],[2025/26 From - Total]],Dataset[[#This Row],[2025/26 To - Total]])","v":0},{"$f":"SUM(Dataset[[#This Row],[2026/27 Reduction]],Dataset[[#This Row],[2026/27 From - Total]],Dataset[[#This Row],[2026/27 To - Total]])","v":0},{"$f":"SUM(Dataset[[#This Row],[2027/28 Reduction]],Dataset[[#This Row],[2027/28 From - Total]],Dataset[[#This Row],[2027/28 To - Total]])","v":0},{"$f":"Dataset[[#This Row],[2024/25 Baseline]]+Dataset[[#This Row],[2024/25 Total change]]","v":465},{"$f":"Dataset[[#This Row],[2025/26 Baseline]]+Dataset[[#This Row],[2025/26 Total change]]","v":486},{"$f":"Dataset[[#This Row],[2026/27 Baseline]]+Dataset[[#This Row],[2026/27 Total change]]","v":507},{"$f":"Dataset[[#This Row],[2027/28 Baseline]]+Dataset[[#This Row],[2027/28 Total change]]","v":530}]
["NAT|Non-transfer item","40|Heritage assets","2025_26","MTEC2025",40,1,4,51483,211,"40","01","04","051483","000211","40|01|04|000211","02","03","13","58","62","02|03|13|58|62","National","Transport","Administration","Communications","Non-transfer item","Capital","Payments for capital assets","Heritage assets","Heritage assets","Heritage assets","Economic development","Economic regulation and infrastructure","NAT",0,0,0,0,0,0,null,0,0,0,0,null,null,null,null,null,null,null,null,null,null,null,null,null,null,null,null,null,null,null,null,null,null,null,null,null,null,null,null,null,null,null,null,null,null,{"$f":"Dataset[[#This Row],[2025/26 From - Spending review Topic 1]]+Dataset[[#This Row],[2025/26 From - Spending review Topic 2]]+Dataset[[#This Row],[2025/26 From - Spending review Topic 3]]+Dataset[[#This Row],[2025/26 From - Spending review Topic 4]]+Dataset[[#This Row],[2025/26 From - Other reallocations]]","v":0},{"$f":"Dataset[[#This Row],[2026/27 From - Spending review Topic 1]]+Dataset[[#This Row],[2026/27 From - Spending review Topic 2]]+Dataset[[#This Row],[2026/27 From - Spending review Topic 3]]+Dataset[[#This Row],[2026/27 From - Spending review Topic 4]]+Dataset[[#This Row],[2026/27 From - Other reallocations]]","v":0},{"$f":"Dataset[[#This Row],[2027/28 From - Spending review Topic 1]]+Dataset[[#This Row],[2027/28 From - Spending review Topic 2]]+Dataset[[#This Row],[2027/28 From - Spending review Topic 3]]+Dataset[[#This Row],[2027/28 From - Spending review Topic 4]]+Dataset[[#This Row],[2027/28 From - Other reallocations]]","v":0},{"$f":"Dataset[[#This Row],[2025/26 To - Spending review Topic 1]]+Dataset[[#This Row],[2025/26 To - Spending review Topic 2]]+Dataset[[#This Row],[2025/26 To - Spending review Topic 3]]+Dataset[[#This Row],[2025/26 To - Spending review Topic 4]]+Dataset[[#This Row],[2025/26 To - Other reallocations]]","v":0},{"$f":"Dataset[[#This Row],[2026/27 To - Spending review Topic 1]]+Dataset[[#This Row],[2026/27 To - Spending review Topic 2]]+Dataset[[#This Row],[2026/27 To - Spending review Topic 3]]+Dataset[[#This Row],[2026/27 To - Spending review Topic 4]]+Dataset[[#This Row],[2026/27 To - Other reallocations]]","v":0},{"$f":"Dataset[[#This Row],[2027/28 To - Spending review Topic 1]]+Dataset[[#This Row],[2027/28 To - Spending review Topic 2]]+Dataset[[#This Row],[2027/28 To - Spending review Topic 3]]+Dataset[[#This Row],[2027/28 To - Spending review Topic 4]]+Dataset[[#This Row],[2027/28 To - Other reallocations]]","v":0},{"$f":"Dataset[[#This Row],[2025/26 Reduction]]+Dataset[[#This Row],[2025/26 From - Total]]","v":0},{"$f":"Dataset[[#This Row],[2026/27 Reduction]]+Dataset[[#This Row],[2026/27 From - Total]]","v":0},{"$f":"Dataset[[#This Row],[2027/28 Reduction]]+Dataset[[#This Row],[2027/28 From - Total]]","v":0},{"$f":"Dataset[[#This Row],[2024/25 Reduction]]","v":0},{"$f":"SUM(Dataset[[#This Row],[2025/26 Reduction]],Dataset[[#This Row],[2025/26 From - Total]],Dataset[[#This Row],[2025/26 To - Total]])","v":0},{"$f":"SUM(Dataset[[#This Row],[2026/27 Reduction]],Dataset[[#This Row],[2026/27 From - Total]],Dataset[[#This Row],[2026/27 To - Total]])","v":0},{"$f":"SUM(Dataset[[#This Row],[2027/28 Reduction]],Dataset[[#This Row],[2027/28 From - Total]],Dataset[[#This Row],[2027/28 To - Total]])","v":0},{"$f":"Dataset[[#This Row],[2024/25 Baseline]]+Dataset[[#This Row],[2024/25 Total change]]","v":0},{"$f":"Dataset[[#This Row],[2025/26 Baseline]]+Dataset[[#This Row],[2025/26 Total change]]","v":0},{"$f":"Dataset[[#This Row],[2026/27 Baseline]]+Dataset[[#This Row],[2026/27 Total change]]","v":0},{"$f":"Dataset[[#This Row],[2027/28 Baseline]]+Dataset[[#This Row],[2027/28 Total change]]","v":0}]
["NAT|Non-transfer item","40|Specialised military assets","2025_26","MTEC2025",40,1,4,51484,212,"40","01","04","051484","000212","40|01|04|000212","02","03","14","59","63","02|03|14|59|63","National","Transport","Administration","Communications","Non-transfer item","Capital","Payments for capital assets","Specialised military assets","Specialised military assets","Specialised military assets","Economic development","Economic regulation and infrastructure","NAT",0,0,0,0,0,0,null,0,0,0,0,null,null,null,null,null,null,null,null,null,null,null,null,null,null,null,null,null,null,null,null,null,null,null,null,null,null,null,null,null,null,null,null,null,null,{"$f":"Dataset[[#This Row],[2025/26 From - Spending review Topic 1]]+Dataset[[#This Row],[2025/26 From - Spending review Topic 2]]+Dataset[[#This Row],[2025/26 From - Spending review Topic 3]]+Dataset[[#This Row],[2025/26 From - Spending review Topic 4]]+Dataset[[#This Row],[2025/26 From - Other reallocations]]","v":0},{"$f":"Dataset[[#This Row],[2026/27 From - Spending review Topic 1]]+Dataset[[#This Row],[2026/27 From - Spending review Topic 2]]+Dataset[[#This Row],[2026/27 From - Spending review Topic 3]]+Dataset[[#This Row],[2026/27 From - Spending review Topic 4]]+Dataset[[#This Row],[2026/27 From - Other reallocations]]","v":0},{"$f":"Dataset[[#This Row],[2027/28 From - Spending review Topic 1]]+Dataset[[#This Row],[2027/28 From - Spending review Topic 2]]+Dataset[[#This Row],[2027/28 From - Spending review Topic 3]]+Dataset[[#This Row],[2027/28 From - Spending review Topic 4]]+Dataset[[#This Row],[2027/28 From - Other reallocations]]","v":0},{"$f":"Dataset[[#This Row],[2025/26 To - Spending review Topic 1]]+Dataset[[#This Row],[2025/26 To - Spending review Topic 2]]+Dataset[[#This Row],[2025/26 To - Spending review Topic 3]]+Dataset[[#This Row],[2025/26 To - Spending review Topic 4]]+Dataset[[#This Row],[2025/26 To - Other reallocations]]","v":0},{"$f":"Dataset[[#This Row],[2026/27 To - Spending review Topic 1]]+Dataset[[#This Row],[2026/27 To - Spending review Topic 2]]+Dataset[[#This Row],[2026/27 To - Spending review Topic 3]]+Dataset[[#This Row],[2026/27 To - Spending review Topic 4]]+Dataset[[#This Row],[2026/27 To - Other reallocations]]","v":0},{"$f":"Dataset[[#This Row],[2027/28 To - Spending review Topic 1]]+Dataset[[#This Row],[2027/28 To - Spending review Topic 2]]+Dataset[[#This Row],[2027/28 To - Spending review Topic 3]]+Dataset[[#This Row],[2027/28 To - Spending review Topic 4]]+Dataset[[#This Row],[2027/28 To - Other reallocations]]","v":0},{"$f":"Dataset[[#This Row],[2025/26 Reduction]]+Dataset[[#This Row],[2025/26 From - Total]]","v":0},{"$f":"Dataset[[#This Row],[2026/27 Reduction]]+Dataset[[#This Row],[2026/27 From - Total]]","v":0},{"$f":"Dataset[[#This Row],[2027/28 Reduction]]+Dataset[[#This Row],[2027/28 From - Total]]","v":0},{"$f":"Dataset[[#This Row],[2024/25 Reduction]]","v":0},{"$f":"SUM(Dataset[[#This Row],[2025/26 Reduction]],Dataset[[#This Row],[2025/26 From - Total]],Dataset[[#This Row],[2025/26 To - Total]])","v":0},{"$f":"SUM(Dataset[[#This Row],[2026/27 Reduction]],Dataset[[#This Row],[2026/27 From - Total]],Dataset[[#This Row],[2026/27 To - Total]])","v":0},{"$f":"SUM(Dataset[[#This Row],[2027/28 Reduction]],Dataset[[#This Row],[2027/28 From - Total]],Dataset[[#This Row],[2027/28 To - Total]])","v":0},{"$f":"Dataset[[#This Row],[2024/25 Baseline]]+Dataset[[#This Row],[2024/25 Total change]]","v":0},{"$f":"Dataset[[#This Row],[2025/26 Baseline]]+Dataset[[#This Row],[2025/26 Total change]]","v":0},{"$f":"Dataset[[#This Row],[2026/27 Baseline]]+Dataset[[#This Row],[2026/27 Total change]]","v":0},{"$f":"Dataset[[#This Row],[2027/28 Baseline]]+Dataset[[#This Row],[2027/28 Total change]]","v":0}]
["NAT|Non-transfer item","40|Biological assets","2025_26","MTEC2025",40,1,4,51485,213,"40","01","04","051485","000213","40|01|04|000213","02","03","15","60","64","02|03|15|60|64","National","Transport","Administration","Communications","Non-transfer item","Capital","Payments for capital assets","Biological assets","Biological assets","Biological assets","Economic development","Economic regulation and infrastructure","NAT",0,0,0,0,0,0,null,0,0,0,0,null,null,null,null,null,null,null,null,null,null,null,null,null,null,null,null,null,null,null,null,null,null,null,null,null,null,null,null,null,null,null,null,null,null,{"$f":"Dataset[[#This Row],[2025/26 From - Spending review Topic 1]]+Dataset[[#This Row],[2025/26 From - Spending review Topic 2]]+Dataset[[#This Row],[2025/26 From - Spending review Topic 3]]+Dataset[[#This Row],[2025/26 From - Spending review Topic 4]]+Dataset[[#This Row],[2025/26 From - Other reallocations]]","v":0},{"$f":"Dataset[[#This Row],[2026/27 From - Spending review Topic 1]]+Dataset[[#This Row],[2026/27 From - Spending review Topic 2]]+Dataset[[#This Row],[2026/27 From - Spending review Topic 3]]+Dataset[[#This Row],[2026/27 From - Spending review Topic 4]]+Dataset[[#This Row],[2026/27 From - Other reallocations]]","v":0},{"$f":"Dataset[[#This Row],[2027/28 From - Spending review Topic 1]]+Dataset[[#This Row],[2027/28 From - Spending review Topic 2]]+Dataset[[#This Row],[2027/28 From - Spending review Topic 3]]+Dataset[[#This Row],[2027/28 From - Spending review Topic 4]]+Dataset[[#This Row],[2027/28 From - Other reallocations]]","v":0},{"$f":"Dataset[[#This Row],[2025/26 To - Spending review Topic 1]]+Dataset[[#This Row],[2025/26 To - Spending review Topic 2]]+Dataset[[#This Row],[2025/26 To - Spending review Topic 3]]+Dataset[[#This Row],[2025/26 To - Spending review Topic 4]]+Dataset[[#This Row],[2025/26 To - Other reallocations]]","v":0},{"$f":"Dataset[[#This Row],[2026/27 To - Spending review Topic 1]]+Dataset[[#This Row],[2026/27 To - Spending review Topic 2]]+Dataset[[#This Row],[2026/27 To - Spending review Topic 3]]+Dataset[[#This Row],[2026/27 To - Spending review Topic 4]]+Dataset[[#This Row],[2026/27 To - Other reallocations]]","v":0},{"$f":"Dataset[[#This Row],[2027/28 To - Spending review Topic 1]]+Dataset[[#This Row],[2027/28 To - Spending review Topic 2]]+Dataset[[#This Row],[2027/28 To - Spending review Topic 3]]+Dataset[[#This Row],[2027/28 To - Spending review Topic 4]]+Dataset[[#This Row],[2027/28 To - Other reallocations]]","v":0},{"$f":"Dataset[[#This Row],[2025/26 Reduction]]+Dataset[[#This Row],[2025/26 From - Total]]","v":0},{"$f":"Dataset[[#This Row],[2026/27 Reduction]]+Dataset[[#This Row],[2026/27 From - Total]]","v":0},{"$f":"Dataset[[#This Row],[2027/28 Reduction]]+Dataset[[#This Row],[2027/28 From - Total]]","v":0},{"$f":"Dataset[[#This Row],[2024/25 Reduction]]","v":0},{"$f":"SUM(Dataset[[#This Row],[2025/26 Reduction]],Dataset[[#This Row],[2025/26 From - Total]],Dataset[[#This Row],[2025/26 To - Total]])","v":0},{"$f":"SUM(Dataset[[#This Row],[2026/27 Reduction]],Dataset[[#This Row],[2026/27 From - Total]],Dataset[[#This Row],[2026/27 To - Total]])","v":0},{"$f":"SUM(Dataset[[#This Row],[2027/28 Reduction]],Dataset[[#This Row],[2027/28 From - Total]],Dataset[[#This Row],[2027/28 To - Total]])","v":0},{"$f":"Dataset[[#This Row],[2024/25 Baseline]]+Dataset[[#This Row],[2024/25 Total change]]","v":0},{"$f":"Dataset[[#This Row],[2025/26 Baseline]]+Dataset[[#This Row],[2025/26 Total change]]","v":0},{"$f":"Dataset[[#This Row],[2026/27 Baseline]]+Dataset[[#This Row],[2026/27 Total change]]","v":0},{"$f":"Dataset[[#This Row],[2027/28 Baseline]]+Dataset[[#This Row],[2027/28 Total change]]","v":0}]
["NAT|Non-transfer item","40|Land and sub-soil assets","2025_26","MTEC2025",40,1,4,51486,214,"40","01","04","051486","000214","40|01|04|000214","02","03","16","61","65","02|03|16|61|65","National","Transport","Administration","Communications","Non-transfer item","Capital","Payments for capital assets","Land and sub-soil assets","Land and sub-soil assets","Land and sub-soil assets","Economic development","Economic regulation and infrastructure","NAT",0,0,0,0,0,0,null,0,0,0,0,null,null,null,null,null,null,null,null,null,null,null,null,null,null,null,null,null,null,null,null,null,null,null,null,null,null,null,null,null,null,null,null,null,null,{"$f":"Dataset[[#This Row],[2025/26 From - Spending review Topic 1]]+Dataset[[#This Row],[2025/26 From - Spending review Topic 2]]+Dataset[[#This Row],[2025/26 From - Spending review Topic 3]]+Dataset[[#This Row],[2025/26 From - Spending review Topic 4]]+Dataset[[#This Row],[2025/26 From - Other reallocations]]","v":0},{"$f":"Dataset[[#This Row],[2026/27 From - Spending review Topic 1]]+Dataset[[#This Row],[2026/27 From - Spending review Topic 2]]+Dataset[[#This Row],[2026/27 From - Spending review Topic 3]]+Dataset[[#This Row],[2026/27 From - Spending review Topic 4]]+Dataset[[#This Row],[2026/27 From - Other reallocations]]","v":0},{"$f":"Dataset[[#This Row],[2027/28 From - Spending review Topic 1]]+Dataset[[#This Row],[2027/28 From - Spending review Topic 2]]+Dataset[[#This Row],[2027/28 From - Spending review Topic 3]]+Dataset[[#This Row],[2027/28 From - Spending review Topic 4]]+Dataset[[#This Row],[2027/28 From - Other reallocations]]","v":0},{"$f":"Dataset[[#This Row],[2025/26 To - Spending review Topic 1]]+Dataset[[#This Row],[2025/26 To - Spending review Topic 2]]+Dataset[[#This Row],[2025/26 To - Spending review Topic 3]]+Dataset[[#This Row],[2025/26 To - Spending review Topic 4]]+Dataset[[#This Row],[2025/26 To - Other reallocations]]","v":0},{"$f":"Dataset[[#This Row],[2026/27 To - Spending review Topic 1]]+Dataset[[#This Row],[2026/27 To - Spending review Topic 2]]+Dataset[[#This Row],[2026/27 To - Spending review Topic 3]]+Dataset[[#This Row],[2026/27 To - Spending review Topic 4]]+Dataset[[#This Row],[2026/27 To - Other reallocations]]","v":0},{"$f":"Dataset[[#This Row],[2027/28 To - Spending review Topic 1]]+Dataset[[#This Row],[2027/28 To - Spending review Topic 2]]+Dataset[[#This Row],[2027/28 To - Spending review Topic 3]]+Dataset[[#This Row],[2027/28 To - Spending review Topic 4]]+Dataset[[#This Row],[2027/28 To - Other reallocations]]","v":0},{"$f":"Dataset[[#This Row],[2025/26 Reduction]]+Dataset[[#This Row],[2025/26 From - Total]]","v":0},{"$f":"Dataset[[#This Row],[2026/27 Reduction]]+Dataset[[#This Row],[2026/27 From - Total]]","v":0},{"$f":"Dataset[[#This Row],[2027/28 Reduction]]+Dataset[[#This Row],[2027/28 From - Total]]","v":0},{"$f":"Dataset[[#This Row],[2024/25 Reduction]]","v":0},{"$f":"SUM(Dataset[[#This Row],[2025/26 Reduction]],Dataset[[#This Row],[2025/26 From - Total]],Dataset[[#This Row],[2025/26 To - Total]])","v":0},{"$f":"SUM(Dataset[[#This Row],[2026/27 Reduction]],Dataset[[#This Row],[2026/27 From - Total]],Dataset[[#This Row],[2026/27 To - Total]])","v":0},{"$f":"SUM(Dataset[[#This Row],[2027/28 Reduction]],Dataset[[#This Row],[2027/28 From - Total]],Dataset[[#This Row],[2027/28 To - Total]])","v":0},{"$f":"Dataset[[#This Row],[2024/25 Baseline]]+Dataset[[#This Row],[2024/25 Total change]]","v":0},{"$f":"Dataset[[#This Row],[2025/26 Baseline]]+Dataset[[#This Row],[2025/26 Total change]]","v":0},{"$f":"Dataset[[#This Row],[2026/27 Baseline]]+Dataset[[#This Row],[2026/27 Total change]]","v":0},{"$f":"Dataset[[#This Row],[2027/28 Baseline]]+Dataset[[#This Row],[2027/28 Total change]]","v":0}]
["NAT|Non-transfer item","40|Software and other intangible assets","2025_26","MTEC2025",40,1,4,51487,215,"40","01","04","051487","000215","40|01|04|000215","02","03","17","62","66","02|03|17|62|66","National","Transport","Administration","Communications","Non-transfer item","Capital","Payments for capital assets","Software and other intangible assets","Software and other intangible assets","Software and other intangible assets","Economic development","Economic regulation and infrastructure","NAT",0,0,0,0,0,0,null,0,0,0,0,null,null,null,null,null,null,null,null,null,null,null,null,null,null,null,null,null,null,null,null,null,null,null,null,null,null,null,null,null,null,null,null,null,null,{"$f":"Dataset[[#This Row],[2025/26 From - Spending review Topic 1]]+Dataset[[#This Row],[2025/26 From - Spending review Topic 2]]+Dataset[[#This Row],[2025/26 From - Spending review Topic 3]]+Dataset[[#This Row],[2025/26 From - Spending review Topic 4]]+Dataset[[#This Row],[2025/26 From - Other reallocations]]","v":0},{"$f":"Dataset[[#This Row],[2026/27 From - Spending review Topic 1]]+Dataset[[#This Row],[2026/27 From - Spending review Topic 2]]+Dataset[[#This Row],[2026/27 From - Spending review Topic 3]]+Dataset[[#This Row],[2026/27 From - Spending review Topic 4]]+Dataset[[#This Row],[2026/27 From - Other reallocations]]","v":0},{"$f":"Dataset[[#This Row],[2027/28 From - Spending review Topic 1]]+Dataset[[#This Row],[2027/28 From - Spending review Topic 2]]+Dataset[[#This Row],[2027/28 From - Spending review Topic 3]]+Dataset[[#This Row],[2027/28 From - Spending review Topic 4]]+Dataset[[#This Row],[2027/28 From - Other reallocations]]","v":0},{"$f":"Dataset[[#This Row],[2025/26 To - Spending review Topic 1]]+Dataset[[#This Row],[2025/26 To - Spending review Topic 2]]+Dataset[[#This Row],[2025/26 To - Spending review Topic 3]]+Dataset[[#This Row],[2025/26 To - Spending review Topic 4]]+Dataset[[#This Row],[2025/26 To - Other reallocations]]","v":0},{"$f":"Dataset[[#This Row],[2026/27 To - Spending review Topic 1]]+Dataset[[#This Row],[2026/27 To - Spending review Topic 2]]+Dataset[[#This Row],[2026/27 To - Spending review Topic 3]]+Dataset[[#This Row],[2026/27 To - Spending review Topic 4]]+Dataset[[#This Row],[2026/27 To - Other reallocations]]","v":0},{"$f":"Dataset[[#This Row],[2027/28 To - Spending review Topic 1]]+Dataset[[#This Row],[2027/28 To - Spending review Topic 2]]+Dataset[[#This Row],[2027/28 To - Spending review Topic 3]]+Dataset[[#This Row],[2027/28 To - Spending review Topic 4]]+Dataset[[#This Row],[2027/28 To - Other reallocations]]","v":0},{"$f":"Dataset[[#This Row],[2025/26 Reduction]]+Dataset[[#This Row],[2025/26 From - Total]]","v":0},{"$f":"Dataset[[#This Row],[2026/27 Reduction]]+Dataset[[#This Row],[2026/27 From - Total]]","v":0},{"$f":"Dataset[[#This Row],[2027/28 Reduction]]+Dataset[[#This Row],[2027/28 From - Total]]","v":0},{"$f":"Dataset[[#This Row],[2024/25 Reduction]]","v":0},{"$f":"SUM(Dataset[[#This Row],[2025/26 Reduction]],Dataset[[#This Row],[2025/26 From - Total]],Dataset[[#This Row],[2025/26 To - Total]])","v":0},{"$f":"SUM(Dataset[[#This Row],[2026/27 Reduction]],Dataset[[#This Row],[2026/27 From - Total]],Dataset[[#This Row],[2026/27 To - Total]])","v":0},{"$f":"SUM(Dataset[[#This Row],[2027/28 Reduction]],Dataset[[#This Row],[2027/28 From - Total]],Dataset[[#This Row],[2027/28 To - Total]])","v":0},{"$f":"Dataset[[#This Row],[2024/25 Baseline]]+Dataset[[#This Row],[2024/25 Total change]]","v":0},{"$f":"Dataset[[#This Row],[2025/26 Baseline]]+Dataset[[#This Row],[2025/26 Total change]]","v":0},{"$f":"Dataset[[#This Row],[2026/27 Baseline]]+Dataset[[#This Row],[2026/27 Total change]]","v":0},{"$f":"Dataset[[#This Row],[2027/28 Baseline]]+Dataset[[#This Row],[2027/28 Total change]]","v":0}]
["NAT|Thefts and losses","40|Payments for financial assets","2025_26","MTEC2025",40,1,4,51488,216,"40","01","04","051488","000216","40|01|04|000216","03","04","18","63","67","03|04|18|63|67","National","Transport","Administration","Communications","Thefts and losses","Payments for financial assets","Payments for financial assets","Payments for financial assets","Payments for financial assets","Payments for financial assets","Economic development","Economic regulation and infrastructure","NAT",631,1,12,0,0,0,null,0,0,0,0,null,null,null,null,null,null,null,null,null,null,null,null,null,null,null,null,null,null,null,null,null,null,null,null,null,null,null,null,null,null,null,null,null,null,{"$f":"Dataset[[#This Row],[2025/26 From - Spending review Topic 1]]+Dataset[[#This Row],[2025/26 From - Spending review Topic 2]]+Dataset[[#This Row],[2025/26 From - Spending review Topic 3]]+Dataset[[#This Row],[2025/26 From - Spending review Topic 4]]+Dataset[[#This Row],[2025/26 From - Other reallocations]]","v":0},{"$f":"Dataset[[#This Row],[2026/27 From - Spending review Topic 1]]+Dataset[[#This Row],[2026/27 From - Spending review Topic 2]]+Dataset[[#This Row],[2026/27 From - Spending review Topic 3]]+Dataset[[#This Row],[2026/27 From - Spending review Topic 4]]+Dataset[[#This Row],[2026/27 From - Other reallocations]]","v":0},{"$f":"Dataset[[#This Row],[2027/28 From - Spending review Topic 1]]+Dataset[[#This Row],[2027/28 From - Spending review Topic 2]]+Dataset[[#This Row],[2027/28 From - Spending review Topic 3]]+Dataset[[#This Row],[2027/28 From - Spending review Topic 4]]+Dataset[[#This Row],[2027/28 From - Other reallocations]]","v":0},{"$f":"Dataset[[#This Row],[2025/26 To - Spending review Topic 1]]+Dataset[[#This Row],[2025/26 To - Spending review Topic 2]]+Dataset[[#This Row],[2025/26 To - Spending review Topic 3]]+Dataset[[#This Row],[2025/26 To - Spending review Topic 4]]+Dataset[[#This Row],[2025/26 To - Other reallocations]]","v":0},{"$f":"Dataset[[#This Row],[2026/27 To - Spending review Topic 1]]+Dataset[[#This Row],[2026/27 To - Spending review Topic 2]]+Dataset[[#This Row],[2026/27 To - Spending review Topic 3]]+Dataset[[#This Row],[2026/27 To - Spending review Topic 4]]+Dataset[[#This Row],[2026/27 To - Other reallocations]]","v":0},{"$f":"Dataset[[#This Row],[2027/28 To - Spending review Topic 1]]+Dataset[[#This Row],[2027/28 To - Spending review Topic 2]]+Dataset[[#This Row],[2027/28 To - Spending review Topic 3]]+Dataset[[#This Row],[2027/28 To - Spending review Topic 4]]+Dataset[[#This Row],[2027/28 To - Other reallocations]]","v":0},{"$f":"Dataset[[#This Row],[2025/26 Reduction]]+Dataset[[#This Row],[2025/26 From - Total]]","v":0},{"$f":"Dataset[[#This Row],[2026/27 Reduction]]+Dataset[[#This Row],[2026/27 From - Total]]","v":0},{"$f":"Dataset[[#This Row],[2027/28 Reduction]]+Dataset[[#This Row],[2027/28 From - Total]]","v":0},{"$f":"Dataset[[#This Row],[2024/25 Reduction]]","v":0},{"$f":"SUM(Dataset[[#This Row],[2025/26 Reduction]],Dataset[[#This Row],[2025/26 From - Total]],Dataset[[#This Row],[2025/26 To - Total]])","v":0},{"$f":"SUM(Dataset[[#This Row],[2026/27 Reduction]],Dataset[[#This Row],[2026/27 From - Total]],Dataset[[#This Row],[2026/27 To - Total]])","v":0},{"$f":"SUM(Dataset[[#This Row],[2027/28 Reduction]],Dataset[[#This Row],[2027/28 From - Total]],Dataset[[#This Row],[2027/28 To - Total]])","v":0},{"$f":"Dataset[[#This Row],[2024/25 Baseline]]+Dataset[[#This Row],[2024/25 Total change]]","v":0},{"$f":"Dataset[[#This Row],[2025/26 Baseline]]+Dataset[[#This Row],[2025/26 Total change]]","v":0},{"$f":"Dataset[[#This Row],[2026/27 Baseline]]+Dataset[[#This Row],[2026/27 Total change]]","v":0},{"$f":"Dataset[[#This Row],[2027/28 Baseline]]+Dataset[[#This Row],[2027/28 Total change]]","v":0}]
["NAT|Non-transfer item","40|Salaries and wages","2025_26","MTEC2025",40,1,5,51489,217,"40","01","05","051489","000217","40|01|05|000217","01","01","01","01","01","01|01|01|01|01","National","Transport","Administration","Office Accommodation","Non-transfer item","Current","Current payments","Compensation of employees","Salaries and wages","Salaries and wages","Economic development","Economic regulation and infrastructure","NAT",0,0,0,0,0,0,null,0,0,0,0,null,null,null,null,null,null,null,null,null,null,null,null,null,null,null,null,null,null,null,null,null,null,null,null,null,null,null,null,null,null,null,null,null,null,{"$f":"Dataset[[#This Row],[2025/26 From - Spending review Topic 1]]+Dataset[[#This Row],[2025/26 From - Spending review Topic 2]]+Dataset[[#This Row],[2025/26 From - Spending review Topic 3]]+Dataset[[#This Row],[2025/26 From - Spending review Topic 4]]+Dataset[[#This Row],[2025/26 From - Other reallocations]]","v":0},{"$f":"Dataset[[#This Row],[2026/27 From - Spending review Topic 1]]+Dataset[[#This Row],[2026/27 From - Spending review Topic 2]]+Dataset[[#This Row],[2026/27 From - Spending review Topic 3]]+Dataset[[#This Row],[2026/27 From - Spending review Topic 4]]+Dataset[[#This Row],[2026/27 From - Other reallocations]]","v":0},{"$f":"Dataset[[#This Row],[2027/28 From - Spending review Topic 1]]+Dataset[[#This Row],[2027/28 From - Spending review Topic 2]]+Dataset[[#This Row],[2027/28 From - Spending review Topic 3]]+Dataset[[#This Row],[2027/28 From - Spending review Topic 4]]+Dataset[[#This Row],[2027/28 From - Other reallocations]]","v":0},{"$f":"Dataset[[#This Row],[2025/26 To - Spending review Topic 1]]+Dataset[[#This Row],[2025/26 To - Spending review Topic 2]]+Dataset[[#This Row],[2025/26 To - Spending review Topic 3]]+Dataset[[#This Row],[2025/26 To - Spending review Topic 4]]+Dataset[[#This Row],[2025/26 To - Other reallocations]]","v":0},{"$f":"Dataset[[#This Row],[2026/27 To - Spending review Topic 1]]+Dataset[[#This Row],[2026/27 To - Spending review Topic 2]]+Dataset[[#This Row],[2026/27 To - Spending review Topic 3]]+Dataset[[#This Row],[2026/27 To - Spending review Topic 4]]+Dataset[[#This Row],[2026/27 To - Other reallocations]]","v":0},{"$f":"Dataset[[#This Row],[2027/28 To - Spending review Topic 1]]+Dataset[[#This Row],[2027/28 To - Spending review Topic 2]]+Dataset[[#This Row],[2027/28 To - Spending review Topic 3]]+Dataset[[#This Row],[2027/28 To - Spending review Topic 4]]+Dataset[[#This Row],[2027/28 To - Other reallocations]]","v":0},{"$f":"Dataset[[#This Row],[2025/26 Reduction]]+Dataset[[#This Row],[2025/26 From - Total]]","v":0},{"$f":"Dataset[[#This Row],[2026/27 Reduction]]+Dataset[[#This Row],[2026/27 From - Total]]","v":0},{"$f":"Dataset[[#This Row],[2027/28 Reduction]]+Dataset[[#This Row],[2027/28 From - Total]]","v":0},{"$f":"Dataset[[#This Row],[2024/25 Reduction]]","v":0},{"$f":"SUM(Dataset[[#This Row],[2025/26 Reduction]],Dataset[[#This Row],[2025/26 From - Total]],Dataset[[#This Row],[2025/26 To - Total]])","v":0},{"$f":"SUM(Dataset[[#This Row],[2026/27 Reduction]],Dataset[[#This Row],[2026/27 From - Total]],Dataset[[#This Row],[2026/27 To - Total]])","v":0},{"$f":"SUM(Dataset[[#This Row],[2027/28 Reduction]],Dataset[[#This Row],[2027/28 From - Total]],Dataset[[#This Row],[2027/28 To - Total]])","v":0},{"$f":"Dataset[[#This Row],[2024/25 Baseline]]+Dataset[[#This Row],[2024/25 Total change]]","v":0},{"$f":"Dataset[[#This Row],[2025/26 Baseline]]+Dataset[[#This Row],[2025/26 Total change]]","v":0},{"$f":"Dataset[[#This Row],[2026/27 Baseline]]+Dataset[[#This Row],[2026/27 Total change]]","v":0},{"$f":"Dataset[[#This Row],[2027/28 Baseline]]+Dataset[[#This Row],[2027/28 Total change]]","v":0}]
["NAT|Non-transfer item","40|Social contributions","2025_26","MTEC2025",40,1,5,51490,218,"40","01","05","051490","000218","40|01|05|000218","01","01","01","02","02","01|01|01|02|02","National","Transport","Administration","Office Accommodation","Non-transfer item","Current","Current payments","Compensation of employees","Social contributions","Social contributions","Economic development","Economic regulation and infrastructure","NAT",0,0,0,0,0,0,null,0,0,0,0,null,null,null,null,null,null,null,null,null,null,null,null,null,null,null,null,null,null,null,null,null,null,null,null,null,null,null,null,null,null,null,null,null,null,{"$f":"Dataset[[#This Row],[2025/26 From - Spending review Topic 1]]+Dataset[[#This Row],[2025/26 From - Spending review Topic 2]]+Dataset[[#This Row],[2025/26 From - Spending review Topic 3]]+Dataset[[#This Row],[2025/26 From - Spending review Topic 4]]+Dataset[[#This Row],[2025/26 From - Other reallocations]]","v":0},{"$f":"Dataset[[#This Row],[2026/27 From - Spending review Topic 1]]+Dataset[[#This Row],[2026/27 From - Spending review Topic 2]]+Dataset[[#This Row],[2026/27 From - Spending review Topic 3]]+Dataset[[#This Row],[2026/27 From - Spending review Topic 4]]+Dataset[[#This Row],[2026/27 From - Other reallocations]]","v":0},{"$f":"Dataset[[#This Row],[2027/28 From - Spending review Topic 1]]+Dataset[[#This Row],[2027/28 From - Spending review Topic 2]]+Dataset[[#This Row],[2027/28 From - Spending review Topic 3]]+Dataset[[#This Row],[2027/28 From - Spending review Topic 4]]+Dataset[[#This Row],[2027/28 From - Other reallocations]]","v":0},{"$f":"Dataset[[#This Row],[2025/26 To - Spending review Topic 1]]+Dataset[[#This Row],[2025/26 To - Spending review Topic 2]]+Dataset[[#This Row],[2025/26 To - Spending review Topic 3]]+Dataset[[#This Row],[2025/26 To - Spending review Topic 4]]+Dataset[[#This Row],[2025/26 To - Other reallocations]]","v":0},{"$f":"Dataset[[#This Row],[2026/27 To - Spending review Topic 1]]+Dataset[[#This Row],[2026/27 To - Spending review Topic 2]]+Dataset[[#This Row],[2026/27 To - Spending review Topic 3]]+Dataset[[#This Row],[2026/27 To - Spending review Topic 4]]+Dataset[[#This Row],[2026/27 To - Other reallocations]]","v":0},{"$f":"Dataset[[#This Row],[2027/28 To - Spending review Topic 1]]+Dataset[[#This Row],[2027/28 To - Spending review Topic 2]]+Dataset[[#This Row],[2027/28 To - Spending review Topic 3]]+Dataset[[#This Row],[2027/28 To - Spending review Topic 4]]+Dataset[[#This Row],[2027/28 To - Other reallocations]]","v":0},{"$f":"Dataset[[#This Row],[2025/26 Reduction]]+Dataset[[#This Row],[2025/26 From - Total]]","v":0},{"$f":"Dataset[[#This Row],[2026/27 Reduction]]+Dataset[[#This Row],[2026/27 From - Total]]","v":0},{"$f":"Dataset[[#This Row],[2027/28 Reduction]]+Dataset[[#This Row],[2027/28 From - Total]]","v":0},{"$f":"Dataset[[#This Row],[2024/25 Reduction]]","v":0},{"$f":"SUM(Dataset[[#This Row],[2025/26 Reduction]],Dataset[[#This Row],[2025/26 From - Total]],Dataset[[#This Row],[2025/26 To - Total]])","v":0},{"$f":"SUM(Dataset[[#This Row],[2026/27 Reduction]],Dataset[[#This Row],[2026/27 From - Total]],Dataset[[#This Row],[2026/27 To - Total]])","v":0},{"$f":"SUM(Dataset[[#This Row],[2027/28 Reduction]],Dataset[[#This Row],[2027/28 From - Total]],Dataset[[#This Row],[2027/28 To - Total]])","v":0},{"$f":"Dataset[[#This Row],[2024/25 Baseline]]+Dataset[[#This Row],[2024/25 Total change]]","v":0},{"$f":"Dataset[[#This Row],[2025/26 Baseline]]+Dataset[[#This Row],[2025/26 Total change]]","v":0},{"$f":"Dataset[[#This Row],[2026/27 Baseline]]+Dataset[[#This Row],[2026/27 Total change]]","v":0},{"$f":"Dataset[[#This Row],[2027/28 Baseline]]+Dataset[[#This Row],[2027/28 Total change]]","v":0}]
["NAT|Non-transfer item","40|Administrative fees","2025_26","MTEC2025",40,1,5,51491,219,"40","01","05","051491","000219","40|01|05|000219","01","01","02","03","03","01|01|02|03|03","National","Transport","Administration","Office Accommodation","Non-transfer item","Current","Current payments","Goods and services","Administrative fees","Administrative fees","Economic development","Economic regulation and infrastructure","NAT",211,244,0,0,0,0,null,0,0,0,0,null,null,null,null,null,null,null,null,null,null,null,null,null,null,null,null,null,null,null,null,null,null,null,null,null,null,null,null,null,null,null,null,null,null,{"$f":"Dataset[[#This Row],[2025/26 From - Spending review Topic 1]]+Dataset[[#This Row],[2025/26 From - Spending review Topic 2]]+Dataset[[#This Row],[2025/26 From - Spending review Topic 3]]+Dataset[[#This Row],[2025/26 From - Spending review Topic 4]]+Dataset[[#This Row],[2025/26 From - Other reallocations]]","v":0},{"$f":"Dataset[[#This Row],[2026/27 From - Spending review Topic 1]]+Dataset[[#This Row],[2026/27 From - Spending review Topic 2]]+Dataset[[#This Row],[2026/27 From - Spending review Topic 3]]+Dataset[[#This Row],[2026/27 From - Spending review Topic 4]]+Dataset[[#This Row],[2026/27 From - Other reallocations]]","v":0},{"$f":"Dataset[[#This Row],[2027/28 From - Spending review Topic 1]]+Dataset[[#This Row],[2027/28 From - Spending review Topic 2]]+Dataset[[#This Row],[2027/28 From - Spending review Topic 3]]+Dataset[[#This Row],[2027/28 From - Spending review Topic 4]]+Dataset[[#This Row],[2027/28 From - Other reallocations]]","v":0},{"$f":"Dataset[[#This Row],[2025/26 To - Spending review Topic 1]]+Dataset[[#This Row],[2025/26 To - Spending review Topic 2]]+Dataset[[#This Row],[2025/26 To - Spending review Topic 3]]+Dataset[[#This Row],[2025/26 To - Spending review Topic 4]]+Dataset[[#This Row],[2025/26 To - Other reallocations]]","v":0},{"$f":"Dataset[[#This Row],[2026/27 To - Spending review Topic 1]]+Dataset[[#This Row],[2026/27 To - Spending review Topic 2]]+Dataset[[#This Row],[2026/27 To - Spending review Topic 3]]+Dataset[[#This Row],[2026/27 To - Spending review Topic 4]]+Dataset[[#This Row],[2026/27 To - Other reallocations]]","v":0},{"$f":"Dataset[[#This Row],[2027/28 To - Spending review Topic 1]]+Dataset[[#This Row],[2027/28 To - Spending review Topic 2]]+Dataset[[#This Row],[2027/28 To - Spending review Topic 3]]+Dataset[[#This Row],[2027/28 To - Spending review Topic 4]]+Dataset[[#This Row],[2027/28 To - Other reallocations]]","v":0},{"$f":"Dataset[[#This Row],[2025/26 Reduction]]+Dataset[[#This Row],[2025/26 From - Total]]","v":0},{"$f":"Dataset[[#This Row],[2026/27 Reduction]]+Dataset[[#This Row],[2026/27 From - Total]]","v":0},{"$f":"Dataset[[#This Row],[2027/28 Reduction]]+Dataset[[#This Row],[2027/28 From - Total]]","v":0},{"$f":"Dataset[[#This Row],[2024/25 Reduction]]","v":0},{"$f":"SUM(Dataset[[#This Row],[2025/26 Reduction]],Dataset[[#This Row],[2025/26 From - Total]],Dataset[[#This Row],[2025/26 To - Total]])","v":0},{"$f":"SUM(Dataset[[#This Row],[2026/27 Reduction]],Dataset[[#This Row],[2026/27 From - Total]],Dataset[[#This Row],[2026/27 To - Total]])","v":0},{"$f":"SUM(Dataset[[#This Row],[2027/28 Reduction]],Dataset[[#This Row],[2027/28 From - Total]],Dataset[[#This Row],[2027/28 To - Total]])","v":0},{"$f":"Dataset[[#This Row],[2024/25 Baseline]]+Dataset[[#This Row],[2024/25 Total change]]","v":0},{"$f":"Dataset[[#This Row],[2025/26 Baseline]]+Dataset[[#This Row],[2025/26 Total change]]","v":0},{"$f":"Dataset[[#This Row],[2026/27 Baseline]]+Dataset[[#This Row],[2026/27 Total change]]","v":0},{"$f":"Dataset[[#This Row],[2027/28 Baseline]]+Dataset[[#This Row],[2027/28 Total change]]","v":0}]
["NAT|Non-transfer item","40|Advertising","2025_26","MTEC2025",40,1,5,51492,220,"40","01","05","051492","000220","40|01|05|000220","01","01","02","04","04","01|01|02|04|04","National","Transport","Administration","Office Accommodation","Non-transfer item","Current","Current payments","Goods and services","Advertising","Advertising","Economic development","Economic regulation and infrastructure","NAT",0,0,0,0,0,0,null,0,0,0,0,null,null,null,null,null,null,null,null,null,null,null,null,null,null,null,null,null,null,null,null,null,null,null,null,null,null,null,null,null,null,null,null,null,null,{"$f":"Dataset[[#This Row],[2025/26 From - Spending review Topic 1]]+Dataset[[#This Row],[2025/26 From - Spending review Topic 2]]+Dataset[[#This Row],[2025/26 From - Spending review Topic 3]]+Dataset[[#This Row],[2025/26 From - Spending review Topic 4]]+Dataset[[#This Row],[2025/26 From - Other reallocations]]","v":0},{"$f":"Dataset[[#This Row],[2026/27 From - Spending review Topic 1]]+Dataset[[#This Row],[2026/27 From - Spending review Topic 2]]+Dataset[[#This Row],[2026/27 From - Spending review Topic 3]]+Dataset[[#This Row],[2026/27 From - Spending review Topic 4]]+Dataset[[#This Row],[2026/27 From - Other reallocations]]","v":0},{"$f":"Dataset[[#This Row],[2027/28 From - Spending review Topic 1]]+Dataset[[#This Row],[2027/28 From - Spending review Topic 2]]+Dataset[[#This Row],[2027/28 From - Spending review Topic 3]]+Dataset[[#This Row],[2027/28 From - Spending review Topic 4]]+Dataset[[#This Row],[2027/28 From - Other reallocations]]","v":0},{"$f":"Dataset[[#This Row],[2025/26 To - Spending review Topic 1]]+Dataset[[#This Row],[2025/26 To - Spending review Topic 2]]+Dataset[[#This Row],[2025/26 To - Spending review Topic 3]]+Dataset[[#This Row],[2025/26 To - Spending review Topic 4]]+Dataset[[#This Row],[2025/26 To - Other reallocations]]","v":0},{"$f":"Dataset[[#This Row],[2026/27 To - Spending review Topic 1]]+Dataset[[#This Row],[2026/27 To - Spending review Topic 2]]+Dataset[[#This Row],[2026/27 To - Spending review Topic 3]]+Dataset[[#This Row],[2026/27 To - Spending review Topic 4]]+Dataset[[#This Row],[2026/27 To - Other reallocations]]","v":0},{"$f":"Dataset[[#This Row],[2027/28 To - Spending review Topic 1]]+Dataset[[#This Row],[2027/28 To - Spending review Topic 2]]+Dataset[[#This Row],[2027/28 To - Spending review Topic 3]]+Dataset[[#This Row],[2027/28 To - Spending review Topic 4]]+Dataset[[#This Row],[2027/28 To - Other reallocations]]","v":0},{"$f":"Dataset[[#This Row],[2025/26 Reduction]]+Dataset[[#This Row],[2025/26 From - Total]]","v":0},{"$f":"Dataset[[#This Row],[2026/27 Reduction]]+Dataset[[#This Row],[2026/27 From - Total]]","v":0},{"$f":"Dataset[[#This Row],[2027/28 Reduction]]+Dataset[[#This Row],[2027/28 From - Total]]","v":0},{"$f":"Dataset[[#This Row],[2024/25 Reduction]]","v":0},{"$f":"SUM(Dataset[[#This Row],[2025/26 Reduction]],Dataset[[#This Row],[2025/26 From - Total]],Dataset[[#This Row],[2025/26 To - Total]])","v":0},{"$f":"SUM(Dataset[[#This Row],[2026/27 Reduction]],Dataset[[#This Row],[2026/27 From - Total]],Dataset[[#This Row],[2026/27 To - Total]])","v":0},{"$f":"SUM(Dataset[[#This Row],[2027/28 Reduction]],Dataset[[#This Row],[2027/28 From - Total]],Dataset[[#This Row],[2027/28 To - Total]])","v":0},{"$f":"Dataset[[#This Row],[2024/25 Baseline]]+Dataset[[#This Row],[2024/25 Total change]]","v":0},{"$f":"Dataset[[#This Row],[2025/26 Baseline]]+Dataset[[#This Row],[2025/26 Total change]]","v":0},{"$f":"Dataset[[#This Row],[2026/27 Baseline]]+Dataset[[#This Row],[2026/27 Total change]]","v":0},{"$f":"Dataset[[#This Row],[2027/28 Baseline]]+Dataset[[#This Row],[2027/28 Total change]]","v":0}]
["NAT|Non-transfer item","40|Minor assets","2025_26","MTEC2025",40,1,5,51493,221,"40","01","05","051493","000221","40|01|05|000221","01","01","02","05","05","01|01|02|05|05","National","Transport","Administration","Office Accommodation","Non-transfer item","Current","Current payments","Goods and services","Minor assets","Minor assets","Economic development","Economic regulation and infrastructure","NAT",0,0,0,0,0,0,null,0,0,0,0,null,null,null,null,null,null,null,null,null,null,null,null,null,null,null,null,null,null,null,null,null,null,null,null,null,null,null,null,null,null,null,null,null,null,{"$f":"Dataset[[#This Row],[2025/26 From - Spending review Topic 1]]+Dataset[[#This Row],[2025/26 From - Spending review Topic 2]]+Dataset[[#This Row],[2025/26 From - Spending review Topic 3]]+Dataset[[#This Row],[2025/26 From - Spending review Topic 4]]+Dataset[[#This Row],[2025/26 From - Other reallocations]]","v":0},{"$f":"Dataset[[#This Row],[2026/27 From - Spending review Topic 1]]+Dataset[[#This Row],[2026/27 From - Spending review Topic 2]]+Dataset[[#This Row],[2026/27 From - Spending review Topic 3]]+Dataset[[#This Row],[2026/27 From - Spending review Topic 4]]+Dataset[[#This Row],[2026/27 From - Other reallocations]]","v":0},{"$f":"Dataset[[#This Row],[2027/28 From - Spending review Topic 1]]+Dataset[[#This Row],[2027/28 From - Spending review Topic 2]]+Dataset[[#This Row],[2027/28 From - Spending review Topic 3]]+Dataset[[#This Row],[2027/28 From - Spending review Topic 4]]+Dataset[[#This Row],[2027/28 From - Other reallocations]]","v":0},{"$f":"Dataset[[#This Row],[2025/26 To - Spending review Topic 1]]+Dataset[[#This Row],[2025/26 To - Spending review Topic 2]]+Dataset[[#This Row],[2025/26 To - Spending review Topic 3]]+Dataset[[#This Row],[2025/26 To - Spending review Topic 4]]+Dataset[[#This Row],[2025/26 To - Other reallocations]]","v":0},{"$f":"Dataset[[#This Row],[2026/27 To - Spending review Topic 1]]+Dataset[[#This Row],[2026/27 To - Spending review Topic 2]]+Dataset[[#This Row],[2026/27 To - Spending review Topic 3]]+Dataset[[#This Row],[2026/27 To - Spending review Topic 4]]+Dataset[[#This Row],[2026/27 To - Other reallocations]]","v":0},{"$f":"Dataset[[#This Row],[2027/28 To - Spending review Topic 1]]+Dataset[[#This Row],[2027/28 To - Spending review Topic 2]]+Dataset[[#This Row],[2027/28 To - Spending review Topic 3]]+Dataset[[#This Row],[2027/28 To - Spending review Topic 4]]+Dataset[[#This Row],[2027/28 To - Other reallocations]]","v":0},{"$f":"Dataset[[#This Row],[2025/26 Reduction]]+Dataset[[#This Row],[2025/26 From - Total]]","v":0},{"$f":"Dataset[[#This Row],[2026/27 Reduction]]+Dataset[[#This Row],[2026/27 From - Total]]","v":0},{"$f":"Dataset[[#This Row],[2027/28 Reduction]]+Dataset[[#This Row],[2027/28 From - Total]]","v":0},{"$f":"Dataset[[#This Row],[2024/25 Reduction]]","v":0},{"$f":"SUM(Dataset[[#This Row],[2025/26 Reduction]],Dataset[[#This Row],[2025/26 From - Total]],Dataset[[#This Row],[2025/26 To - Total]])","v":0},{"$f":"SUM(Dataset[[#This Row],[2026/27 Reduction]],Dataset[[#This Row],[2026/27 From - Total]],Dataset[[#This Row],[2026/27 To - Total]])","v":0},{"$f":"SUM(Dataset[[#This Row],[2027/28 Reduction]],Dataset[[#This Row],[2027/28 From - Total]],Dataset[[#This Row],[2027/28 To - Total]])","v":0},{"$f":"Dataset[[#This Row],[2024/25 Baseline]]+Dataset[[#This Row],[2024/25 Total change]]","v":0},{"$f":"Dataset[[#This Row],[2025/26 Baseline]]+Dataset[[#This Row],[2025/26 Total change]]","v":0},{"$f":"Dataset[[#This Row],[2026/27 Baseline]]+Dataset[[#This Row],[2026/27 Total change]]","v":0},{"$f":"Dataset[[#This Row],[2027/28 Baseline]]+Dataset[[#This Row],[2027/28 Total change]]","v":0}]
["NAT|Non-transfer item","40|Audit costs: External","2025_26","MTEC2025",40,1,5,51494,222,"40","01","05","051494","000222","40|01|05|000222","01","01","02","06","06","01|01|02|06|06","National","Transport","Administration","Office Accommodation","Non-transfer item","Current","Current payments","Goods and services","Audit costs: External","Audit costs: External","Economic development","Economic regulation and infrastructure","NAT",0,0,0,0,0,0,null,0,0,0,0,null,null,null,null,null,null,null,null,null,null,null,null,null,null,null,null,null,null,null,null,null,null,null,null,null,null,null,null,null,null,null,null,null,null,{"$f":"Dataset[[#This Row],[2025/26 From - Spending review Topic 1]]+Dataset[[#This Row],[2025/26 From - Spending review Topic 2]]+Dataset[[#This Row],[2025/26 From - Spending review Topic 3]]+Dataset[[#This Row],[2025/26 From - Spending review Topic 4]]+Dataset[[#This Row],[2025/26 From - Other reallocations]]","v":0},{"$f":"Dataset[[#This Row],[2026/27 From - Spending review Topic 1]]+Dataset[[#This Row],[2026/27 From - Spending review Topic 2]]+Dataset[[#This Row],[2026/27 From - Spending review Topic 3]]+Dataset[[#This Row],[2026/27 From - Spending review Topic 4]]+Dataset[[#This Row],[2026/27 From - Other reallocations]]","v":0},{"$f":"Dataset[[#This Row],[2027/28 From - Spending review Topic 1]]+Dataset[[#This Row],[2027/28 From - Spending review Topic 2]]+Dataset[[#This Row],[2027/28 From - Spending review Topic 3]]+Dataset[[#This Row],[2027/28 From - Spending review Topic 4]]+Dataset[[#This Row],[2027/28 From - Other reallocations]]","v":0},{"$f":"Dataset[[#This Row],[2025/26 To - Spending review Topic 1]]+Dataset[[#This Row],[2025/26 To - Spending review Topic 2]]+Dataset[[#This Row],[2025/26 To - Spending review Topic 3]]+Dataset[[#This Row],[2025/26 To - Spending review Topic 4]]+Dataset[[#This Row],[2025/26 To - Other reallocations]]","v":0},{"$f":"Dataset[[#This Row],[2026/27 To - Spending review Topic 1]]+Dataset[[#This Row],[2026/27 To - Spending review Topic 2]]+Dataset[[#This Row],[2026/27 To - Spending review Topic 3]]+Dataset[[#This Row],[2026/27 To - Spending review Topic 4]]+Dataset[[#This Row],[2026/27 To - Other reallocations]]","v":0},{"$f":"Dataset[[#This Row],[2027/28 To - Spending review Topic 1]]+Dataset[[#This Row],[2027/28 To - Spending review Topic 2]]+Dataset[[#This Row],[2027/28 To - Spending review Topic 3]]+Dataset[[#This Row],[2027/28 To - Spending review Topic 4]]+Dataset[[#This Row],[2027/28 To - Other reallocations]]","v":0},{"$f":"Dataset[[#This Row],[2025/26 Reduction]]+Dataset[[#This Row],[2025/26 From - Total]]","v":0},{"$f":"Dataset[[#This Row],[2026/27 Reduction]]+Dataset[[#This Row],[2026/27 From - Total]]","v":0},{"$f":"Dataset[[#This Row],[2027/28 Reduction]]+Dataset[[#This Row],[2027/28 From - Total]]","v":0},{"$f":"Dataset[[#This Row],[2024/25 Reduction]]","v":0},{"$f":"SUM(Dataset[[#This Row],[2025/26 Reduction]],Dataset[[#This Row],[2025/26 From - Total]],Dataset[[#This Row],[2025/26 To - Total]])","v":0},{"$f":"SUM(Dataset[[#This Row],[2026/27 Reduction]],Dataset[[#This Row],[2026/27 From - Total]],Dataset[[#This Row],[2026/27 To - Total]])","v":0},{"$f":"SUM(Dataset[[#This Row],[2027/28 Reduction]],Dataset[[#This Row],[2027/28 From - Total]],Dataset[[#This Row],[2027/28 To - Total]])","v":0},{"$f":"Dataset[[#This Row],[2024/25 Baseline]]+Dataset[[#This Row],[2024/25 Total change]]","v":0},{"$f":"Dataset[[#This Row],[2025/26 Baseline]]+Dataset[[#This Row],[2025/26 Total change]]","v":0},{"$f":"Dataset[[#This Row],[2026/27 Baseline]]+Dataset[[#This Row],[2026/27 Total change]]","v":0},{"$f":"Dataset[[#This Row],[2027/28 Baseline]]+Dataset[[#This Row],[2027/28 Total change]]","v":0}]
["NAT|Non-transfer item","40|Bursaries: Employees","2025_26","MTEC2025",40,1,5,51495,223,"40","01","05","051495","000223","40|01|05|000223","01","01","02","07","07","01|01|02|07|07","National","Transport","Administration","Office Accommodation","Non-transfer item","Current","Current payments","Goods and services","Bursaries: Employees","Bursaries: Employees","Economic development","Economic regulation and infrastructure","NAT",0,0,0,0,0,0,null,0,0,0,0,null,null,null,null,null,null,null,null,null,null,null,null,null,null,null,null,null,null,null,null,null,null,null,null,null,null,null,null,null,null,null,null,null,null,{"$f":"Dataset[[#This Row],[2025/26 From - Spending review Topic 1]]+Dataset[[#This Row],[2025/26 From - Spending review Topic 2]]+Dataset[[#This Row],[2025/26 From - Spending review Topic 3]]+Dataset[[#This Row],[2025/26 From - Spending review Topic 4]]+Dataset[[#This Row],[2025/26 From - Other reallocations]]","v":0},{"$f":"Dataset[[#This Row],[2026/27 From - Spending review Topic 1]]+Dataset[[#This Row],[2026/27 From - Spending review Topic 2]]+Dataset[[#This Row],[2026/27 From - Spending review Topic 3]]+Dataset[[#This Row],[2026/27 From - Spending review Topic 4]]+Dataset[[#This Row],[2026/27 From - Other reallocations]]","v":0},{"$f":"Dataset[[#This Row],[2027/28 From - Spending review Topic 1]]+Dataset[[#This Row],[2027/28 From - Spending review Topic 2]]+Dataset[[#This Row],[2027/28 From - Spending review Topic 3]]+Dataset[[#This Row],[2027/28 From - Spending review Topic 4]]+Dataset[[#This Row],[2027/28 From - Other reallocations]]","v":0},{"$f":"Dataset[[#This Row],[2025/26 To - Spending review Topic 1]]+Dataset[[#This Row],[2025/26 To - Spending review Topic 2]]+Dataset[[#This Row],[2025/26 To - Spending review Topic 3]]+Dataset[[#This Row],[2025/26 To - Spending review Topic 4]]+Dataset[[#This Row],[2025/26 To - Other reallocations]]","v":0},{"$f":"Dataset[[#This Row],[2026/27 To - Spending review Topic 1]]+Dataset[[#This Row],[2026/27 To - Spending review Topic 2]]+Dataset[[#This Row],[2026/27 To - Spending review Topic 3]]+Dataset[[#This Row],[2026/27 To - Spending review Topic 4]]+Dataset[[#This Row],[2026/27 To - Other reallocations]]","v":0},{"$f":"Dataset[[#This Row],[2027/28 To - Spending review Topic 1]]+Dataset[[#This Row],[2027/28 To - Spending review Topic 2]]+Dataset[[#This Row],[2027/28 To - Spending review Topic 3]]+Dataset[[#This Row],[2027/28 To - Spending review Topic 4]]+Dataset[[#This Row],[2027/28 To - Other reallocations]]","v":0},{"$f":"Dataset[[#This Row],[2025/26 Reduction]]+Dataset[[#This Row],[2025/26 From - Total]]","v":0},{"$f":"Dataset[[#This Row],[2026/27 Reduction]]+Dataset[[#This Row],[2026/27 From - Total]]","v":0},{"$f":"Dataset[[#This Row],[2027/28 Reduction]]+Dataset[[#This Row],[2027/28 From - Total]]","v":0},{"$f":"Dataset[[#This Row],[2024/25 Reduction]]","v":0},{"$f":"SUM(Dataset[[#This Row],[2025/26 Reduction]],Dataset[[#This Row],[2025/26 From - Total]],Dataset[[#This Row],[2025/26 To - Total]])","v":0},{"$f":"SUM(Dataset[[#This Row],[2026/27 Reduction]],Dataset[[#This Row],[2026/27 From - Total]],Dataset[[#This Row],[2026/27 To - Total]])","v":0},{"$f":"SUM(Dataset[[#This Row],[2027/28 Reduction]],Dataset[[#This Row],[2027/28 From - Total]],Dataset[[#This Row],[2027/28 To - Total]])","v":0},{"$f":"Dataset[[#This Row],[2024/25 Baseline]]+Dataset[[#This Row],[2024/25 Total change]]","v":0},{"$f":"Dataset[[#This Row],[2025/26 Baseline]]+Dataset[[#This Row],[2025/26 Total change]]","v":0},{"$f":"Dataset[[#This Row],[2026/27 Baseline]]+Dataset[[#This Row],[2026/27 Total change]]","v":0},{"$f":"Dataset[[#This Row],[2027/28 Baseline]]+Dataset[[#This Row],[2027/28 Total change]]","v":0}]
["NAT|Non-transfer item","40|Catering: Departmental activities","2025_26","MTEC2025",40,1,5,51496,224,"40","01","05","051496","000224","40|01|05|000224","01","01","02","08","08","01|01|02|08|08","National","Transport","Administration","Office Accommodation","Non-transfer item","Current","Current payments","Goods and services","Catering: Departmental activities","Catering: Departmental activities","Economic development","Economic regulation and infrastructure","NAT",0,0,0,0,0,0,null,0,0,0,0,null,null,null,null,null,null,null,null,null,null,null,null,null,null,null,null,null,null,null,null,null,null,null,null,null,null,null,null,null,null,null,null,null,null,{"$f":"Dataset[[#This Row],[2025/26 From - Spending review Topic 1]]+Dataset[[#This Row],[2025/26 From - Spending review Topic 2]]+Dataset[[#This Row],[2025/26 From - Spending review Topic 3]]+Dataset[[#This Row],[2025/26 From - Spending review Topic 4]]+Dataset[[#This Row],[2025/26 From - Other reallocations]]","v":0},{"$f":"Dataset[[#This Row],[2026/27 From - Spending review Topic 1]]+Dataset[[#This Row],[2026/27 From - Spending review Topic 2]]+Dataset[[#This Row],[2026/27 From - Spending review Topic 3]]+Dataset[[#This Row],[2026/27 From - Spending review Topic 4]]+Dataset[[#This Row],[2026/27 From - Other reallocations]]","v":0},{"$f":"Dataset[[#This Row],[2027/28 From - Spending review Topic 1]]+Dataset[[#This Row],[2027/28 From - Spending review Topic 2]]+Dataset[[#This Row],[2027/28 From - Spending review Topic 3]]+Dataset[[#This Row],[2027/28 From - Spending review Topic 4]]+Dataset[[#This Row],[2027/28 From - Other reallocations]]","v":0},{"$f":"Dataset[[#This Row],[2025/26 To - Spending review Topic 1]]+Dataset[[#This Row],[2025/26 To - Spending review Topic 2]]+Dataset[[#This Row],[2025/26 To - Spending review Topic 3]]+Dataset[[#This Row],[2025/26 To - Spending review Topic 4]]+Dataset[[#This Row],[2025/26 To - Other reallocations]]","v":0},{"$f":"Dataset[[#This Row],[2026/27 To - Spending review Topic 1]]+Dataset[[#This Row],[2026/27 To - Spending review Topic 2]]+Dataset[[#This Row],[2026/27 To - Spending review Topic 3]]+Dataset[[#This Row],[2026/27 To - Spending review Topic 4]]+Dataset[[#This Row],[2026/27 To - Other reallocations]]","v":0},{"$f":"Dataset[[#This Row],[2027/28 To - Spending review Topic 1]]+Dataset[[#This Row],[2027/28 To - Spending review Topic 2]]+Dataset[[#This Row],[2027/28 To - Spending review Topic 3]]+Dataset[[#This Row],[2027/28 To - Spending review Topic 4]]+Dataset[[#This Row],[2027/28 To - Other reallocations]]","v":0},{"$f":"Dataset[[#This Row],[2025/26 Reduction]]+Dataset[[#This Row],[2025/26 From - Total]]","v":0},{"$f":"Dataset[[#This Row],[2026/27 Reduction]]+Dataset[[#This Row],[2026/27 From - Total]]","v":0},{"$f":"Dataset[[#This Row],[2027/28 Reduction]]+Dataset[[#This Row],[2027/28 From - Total]]","v":0},{"$f":"Dataset[[#This Row],[2024/25 Reduction]]","v":0},{"$f":"SUM(Dataset[[#This Row],[2025/26 Reduction]],Dataset[[#This Row],[2025/26 From - Total]],Dataset[[#This Row],[2025/26 To - Total]])","v":0},{"$f":"SUM(Dataset[[#This Row],[2026/27 Reduction]],Dataset[[#This Row],[2026/27 From - Total]],Dataset[[#This Row],[2026/27 To - Total]])","v":0},{"$f":"SUM(Dataset[[#This Row],[2027/28 Reduction]],Dataset[[#This Row],[2027/28 From - Total]],Dataset[[#This Row],[2027/28 To - Total]])","v":0},{"$f":"Dataset[[#This Row],[2024/25 Baseline]]+Dataset[[#This Row],[2024/25 Total change]]","v":0},{"$f":"Dataset[[#This Row],[2025/26 Baseline]]+Dataset[[#This Row],[2025/26 Total change]]","v":0},{"$f":"Dataset[[#This Row],[2026/27 Baseline]]+Dataset[[#This Row],[2026/27 Total change]]","v":0},{"$f":"Dataset[[#This Row],[2027/28 Baseline]]+Dataset[[#This Row],[2027/28 Total change]]","v":0}]
["NAT|Non-transfer item","40|Communication (G&S)","2025_26","MTEC2025",40,1,5,51497,225,"40","01","05","051497","000225","40|01|05|000225","01","01","02","09","09","01|01|02|09|09","National","Transport","Administration","Office Accommodation","Non-transfer item","Current","Current payments","Goods and services","Communication (G&S)","Communication (G&S)","Economic development","Economic regulation and infrastructure","NAT",0,0,0,0,0,0,null,0,0,0,0,null,null,null,null,null,null,null,null,null,null,null,null,null,null,null,null,null,null,null,null,null,null,null,null,null,null,null,null,null,null,null,null,null,null,{"$f":"Dataset[[#This Row],[2025/26 From - Spending review Topic 1]]+Dataset[[#This Row],[2025/26 From - Spending review Topic 2]]+Dataset[[#This Row],[2025/26 From - Spending review Topic 3]]+Dataset[[#This Row],[2025/26 From - Spending review Topic 4]]+Dataset[[#This Row],[2025/26 From - Other reallocations]]","v":0},{"$f":"Dataset[[#This Row],[2026/27 From - Spending review Topic 1]]+Dataset[[#This Row],[2026/27 From - Spending review Topic 2]]+Dataset[[#This Row],[2026/27 From - Spending review Topic 3]]+Dataset[[#This Row],[2026/27 From - Spending review Topic 4]]+Dataset[[#This Row],[2026/27 From - Other reallocations]]","v":0},{"$f":"Dataset[[#This Row],[2027/28 From - Spending review Topic 1]]+Dataset[[#This Row],[2027/28 From - Spending review Topic 2]]+Dataset[[#This Row],[2027/28 From - Spending review Topic 3]]+Dataset[[#This Row],[2027/28 From - Spending review Topic 4]]+Dataset[[#This Row],[2027/28 From - Other reallocations]]","v":0},{"$f":"Dataset[[#This Row],[2025/26 To - Spending review Topic 1]]+Dataset[[#This Row],[2025/26 To - Spending review Topic 2]]+Dataset[[#This Row],[2025/26 To - Spending review Topic 3]]+Dataset[[#This Row],[2025/26 To - Spending review Topic 4]]+Dataset[[#This Row],[2025/26 To - Other reallocations]]","v":0},{"$f":"Dataset[[#This Row],[2026/27 To - Spending review Topic 1]]+Dataset[[#This Row],[2026/27 To - Spending review Topic 2]]+Dataset[[#This Row],[2026/27 To - Spending review Topic 3]]+Dataset[[#This Row],[2026/27 To - Spending review Topic 4]]+Dataset[[#This Row],[2026/27 To - Other reallocations]]","v":0},{"$f":"Dataset[[#This Row],[2027/28 To - Spending review Topic 1]]+Dataset[[#This Row],[2027/28 To - Spending review Topic 2]]+Dataset[[#This Row],[2027/28 To - Spending review Topic 3]]+Dataset[[#This Row],[2027/28 To - Spending review Topic 4]]+Dataset[[#This Row],[2027/28 To - Other reallocations]]","v":0},{"$f":"Dataset[[#This Row],[2025/26 Reduction]]+Dataset[[#This Row],[2025/26 From - Total]]","v":0},{"$f":"Dataset[[#This Row],[2026/27 Reduction]]+Dataset[[#This Row],[2026/27 From - Total]]","v":0},{"$f":"Dataset[[#This Row],[2027/28 Reduction]]+Dataset[[#This Row],[2027/28 From - Total]]","v":0},{"$f":"Dataset[[#This Row],[2024/25 Reduction]]","v":0},{"$f":"SUM(Dataset[[#This Row],[2025/26 Reduction]],Dataset[[#This Row],[2025/26 From - Total]],Dataset[[#This Row],[2025/26 To - Total]])","v":0},{"$f":"SUM(Dataset[[#This Row],[2026/27 Reduction]],Dataset[[#This Row],[2026/27 From - Total]],Dataset[[#This Row],[2026/27 To - Total]])","v":0},{"$f":"SUM(Dataset[[#This Row],[2027/28 Reduction]],Dataset[[#This Row],[2027/28 From - Total]],Dataset[[#This Row],[2027/28 To - Total]])","v":0},{"$f":"Dataset[[#This Row],[2024/25 Baseline]]+Dataset[[#This Row],[2024/25 Total change]]","v":0},{"$f":"Dataset[[#This Row],[2025/26 Baseline]]+Dataset[[#This Row],[2025/26 Total change]]","v":0},{"$f":"Dataset[[#This Row],[2026/27 Baseline]]+Dataset[[#This Row],[2026/27 Total change]]","v":0},{"$f":"Dataset[[#This Row],[2027/28 Baseline]]+Dataset[[#This Row],[2027/28 Total change]]","v":0}]
["NAT|Non-transfer item","40|Computer services","2025_26","MTEC2025",40,1,5,51498,226,"40","01","05","051498","000226","40|01|05|000226","01","01","02","10","10","01|01|02|10|10","National","Transport","Administration","Office Accommodation","Non-transfer item","Current","Current payments","Goods and services","Computer services","Computer services","Economic development","Economic regulation and infrastructure","NAT",0,0,0,0,0,0,null,0,0,0,0,null,null,null,null,null,null,null,null,null,null,null,null,null,null,null,null,null,null,null,null,null,null,null,null,null,null,null,null,null,null,null,null,null,null,{"$f":"Dataset[[#This Row],[2025/26 From - Spending review Topic 1]]+Dataset[[#This Row],[2025/26 From - Spending review Topic 2]]+Dataset[[#This Row],[2025/26 From - Spending review Topic 3]]+Dataset[[#This Row],[2025/26 From - Spending review Topic 4]]+Dataset[[#This Row],[2025/26 From - Other reallocations]]","v":0},{"$f":"Dataset[[#This Row],[2026/27 From - Spending review Topic 1]]+Dataset[[#This Row],[2026/27 From - Spending review Topic 2]]+Dataset[[#This Row],[2026/27 From - Spending review Topic 3]]+Dataset[[#This Row],[2026/27 From - Spending review Topic 4]]+Dataset[[#This Row],[2026/27 From - Other reallocations]]","v":0},{"$f":"Dataset[[#This Row],[2027/28 From - Spending review Topic 1]]+Dataset[[#This Row],[2027/28 From - Spending review Topic 2]]+Dataset[[#This Row],[2027/28 From - Spending review Topic 3]]+Dataset[[#This Row],[2027/28 From - Spending review Topic 4]]+Dataset[[#This Row],[2027/28 From - Other reallocations]]","v":0},{"$f":"Dataset[[#This Row],[2025/26 To - Spending review Topic 1]]+Dataset[[#This Row],[2025/26 To - Spending review Topic 2]]+Dataset[[#This Row],[2025/26 To - Spending review Topic 3]]+Dataset[[#This Row],[2025/26 To - Spending review Topic 4]]+Dataset[[#This Row],[2025/26 To - Other reallocations]]","v":0},{"$f":"Dataset[[#This Row],[2026/27 To - Spending review Topic 1]]+Dataset[[#This Row],[2026/27 To - Spending review Topic 2]]+Dataset[[#This Row],[2026/27 To - Spending review Topic 3]]+Dataset[[#This Row],[2026/27 To - Spending review Topic 4]]+Dataset[[#This Row],[2026/27 To - Other reallocations]]","v":0},{"$f":"Dataset[[#This Row],[2027/28 To - Spending review Topic 1]]+Dataset[[#This Row],[2027/28 To - Spending review Topic 2]]+Dataset[[#This Row],[2027/28 To - Spending review Topic 3]]+Dataset[[#This Row],[2027/28 To - Spending review Topic 4]]+Dataset[[#This Row],[2027/28 To - Other reallocations]]","v":0},{"$f":"Dataset[[#This Row],[2025/26 Reduction]]+Dataset[[#This Row],[2025/26 From - Total]]","v":0},{"$f":"Dataset[[#This Row],[2026/27 Reduction]]+Dataset[[#This Row],[2026/27 From - Total]]","v":0},{"$f":"Dataset[[#This Row],[2027/28 Reduction]]+Dataset[[#This Row],[2027/28 From - Total]]","v":0},{"$f":"Dataset[[#This Row],[2024/25 Reduction]]","v":0},{"$f":"SUM(Dataset[[#This Row],[2025/26 Reduction]],Dataset[[#This Row],[2025/26 From - Total]],Dataset[[#This Row],[2025/26 To - Total]])","v":0},{"$f":"SUM(Dataset[[#This Row],[2026/27 Reduction]],Dataset[[#This Row],[2026/27 From - Total]],Dataset[[#This Row],[2026/27 To - Total]])","v":0},{"$f":"SUM(Dataset[[#This Row],[2027/28 Reduction]],Dataset[[#This Row],[2027/28 From - Total]],Dataset[[#This Row],[2027/28 To - Total]])","v":0},{"$f":"Dataset[[#This Row],[2024/25 Baseline]]+Dataset[[#This Row],[2024/25 Total change]]","v":0},{"$f":"Dataset[[#This Row],[2025/26 Baseline]]+Dataset[[#This Row],[2025/26 Total change]]","v":0},{"$f":"Dataset[[#This Row],[2026/27 Baseline]]+Dataset[[#This Row],[2026/27 Total change]]","v":0},{"$f":"Dataset[[#This Row],[2027/28 Baseline]]+Dataset[[#This Row],[2027/28 Total change]]","v":0}]
["NAT|Non-transfer item","40|Consultants: Business and advisory services","2025_26","MTEC2025",40,1,5,51499,227,"40","01","05","051499","000227","40|01|05|000227","01","01","02","11","11","01|01|02|11|11","National","Transport","Administration","Office Accommodation","Non-transfer item","Current","Current payments","Goods and services","Consultants: Business and advisory services","Consultants: Business and advisory services","Economic development","Economic regulation and infrastructure","NAT",0,0,0,5000,5000,5000,null,10000,10448,10927,11421,null,null,null,null,null,null,null,null,null,null,null,null,null,null,null,null,null,null,null,null,null,null,null,null,null,null,null,null,null,null,null,null,null,null,{"$f":"Dataset[[#This Row],[2025/26 From - Spending review Topic 1]]+Dataset[[#This Row],[2025/26 From - Spending review Topic 2]]+Dataset[[#This Row],[2025/26 From - Spending review Topic 3]]+Dataset[[#This Row],[2025/26 From - Spending review Topic 4]]+Dataset[[#This Row],[2025/26 From - Other reallocations]]","v":0},{"$f":"Dataset[[#This Row],[2026/27 From - Spending review Topic 1]]+Dataset[[#This Row],[2026/27 From - Spending review Topic 2]]+Dataset[[#This Row],[2026/27 From - Spending review Topic 3]]+Dataset[[#This Row],[2026/27 From - Spending review Topic 4]]+Dataset[[#This Row],[2026/27 From - Other reallocations]]","v":0},{"$f":"Dataset[[#This Row],[2027/28 From - Spending review Topic 1]]+Dataset[[#This Row],[2027/28 From - Spending review Topic 2]]+Dataset[[#This Row],[2027/28 From - Spending review Topic 3]]+Dataset[[#This Row],[2027/28 From - Spending review Topic 4]]+Dataset[[#This Row],[2027/28 From - Other reallocations]]","v":0},{"$f":"Dataset[[#This Row],[2025/26 To - Spending review Topic 1]]+Dataset[[#This Row],[2025/26 To - Spending review Topic 2]]+Dataset[[#This Row],[2025/26 To - Spending review Topic 3]]+Dataset[[#This Row],[2025/26 To - Spending review Topic 4]]+Dataset[[#This Row],[2025/26 To - Other reallocations]]","v":0},{"$f":"Dataset[[#This Row],[2026/27 To - Spending review Topic 1]]+Dataset[[#This Row],[2026/27 To - Spending review Topic 2]]+Dataset[[#This Row],[2026/27 To - Spending review Topic 3]]+Dataset[[#This Row],[2026/27 To - Spending review Topic 4]]+Dataset[[#This Row],[2026/27 To - Other reallocations]]","v":0},{"$f":"Dataset[[#This Row],[2027/28 To - Spending review Topic 1]]+Dataset[[#This Row],[2027/28 To - Spending review Topic 2]]+Dataset[[#This Row],[2027/28 To - Spending review Topic 3]]+Dataset[[#This Row],[2027/28 To - Spending review Topic 4]]+Dataset[[#This Row],[2027/28 To - Other reallocations]]","v":0},{"$f":"Dataset[[#This Row],[2025/26 Reduction]]+Dataset[[#This Row],[2025/26 From - Total]]","v":0},{"$f":"Dataset[[#This Row],[2026/27 Reduction]]+Dataset[[#This Row],[2026/27 From - Total]]","v":0},{"$f":"Dataset[[#This Row],[2027/28 Reduction]]+Dataset[[#This Row],[2027/28 From - Total]]","v":0},{"$f":"Dataset[[#This Row],[2024/25 Reduction]]","v":0},{"$f":"SUM(Dataset[[#This Row],[2025/26 Reduction]],Dataset[[#This Row],[2025/26 From - Total]],Dataset[[#This Row],[2025/26 To - Total]])","v":0},{"$f":"SUM(Dataset[[#This Row],[2026/27 Reduction]],Dataset[[#This Row],[2026/27 From - Total]],Dataset[[#This Row],[2026/27 To - Total]])","v":0},{"$f":"SUM(Dataset[[#This Row],[2027/28 Reduction]],Dataset[[#This Row],[2027/28 From - Total]],Dataset[[#This Row],[2027/28 To - Total]])","v":0},{"$f":"Dataset[[#This Row],[2024/25 Baseline]]+Dataset[[#This Row],[2024/25 Total change]]","v":10000},{"$f":"Dataset[[#This Row],[2025/26 Baseline]]+Dataset[[#This Row],[2025/26 Total change]]","v":10448},{"$f":"Dataset[[#This Row],[2026/27 Baseline]]+Dataset[[#This Row],[2026/27 Total change]]","v":10927},{"$f":"Dataset[[#This Row],[2027/28 Baseline]]+Dataset[[#This Row],[2027/28 Total change]]","v":11421}]
["NAT|Non-transfer item","40|Infrastructure and planning services","2025_26","MTEC2025",40,1,5,51500,228,"40","01","05","051500","000228","40|01|05|000228","01","01","02","12","12","01|01|02|12|12","National","Transport","Administration","Office Accommodation","Non-transfer item","Current","Current payments","Goods and services","Infrastructure and planning services","Infrastructure and planning services","Economic development","Economic regulation and infrastructure","NAT",0,0,0,0,0,0,null,0,0,0,0,null,null,null,null,null,null,null,null,null,null,null,null,null,null,null,null,null,null,null,null,null,null,null,null,null,null,null,null,null,null,null,null,null,null,{"$f":"Dataset[[#This Row],[2025/26 From - Spending review Topic 1]]+Dataset[[#This Row],[2025/26 From - Spending review Topic 2]]+Dataset[[#This Row],[2025/26 From - Spending review Topic 3]]+Dataset[[#This Row],[2025/26 From - Spending review Topic 4]]+Dataset[[#This Row],[2025/26 From - Other reallocations]]","v":0},{"$f":"Dataset[[#This Row],[2026/27 From - Spending review Topic 1]]+Dataset[[#This Row],[2026/27 From - Spending review Topic 2]]+Dataset[[#This Row],[2026/27 From - Spending review Topic 3]]+Dataset[[#This Row],[2026/27 From - Spending review Topic 4]]+Dataset[[#This Row],[2026/27 From - Other reallocations]]","v":0},{"$f":"Dataset[[#This Row],[2027/28 From - Spending review Topic 1]]+Dataset[[#This Row],[2027/28 From - Spending review Topic 2]]+Dataset[[#This Row],[2027/28 From - Spending review Topic 3]]+Dataset[[#This Row],[2027/28 From - Spending review Topic 4]]+Dataset[[#This Row],[2027/28 From - Other reallocations]]","v":0},{"$f":"Dataset[[#This Row],[2025/26 To - Spending review Topic 1]]+Dataset[[#This Row],[2025/26 To - Spending review Topic 2]]+Dataset[[#This Row],[2025/26 To - Spending review Topic 3]]+Dataset[[#This Row],[2025/26 To - Spending review Topic 4]]+Dataset[[#This Row],[2025/26 To - Other reallocations]]","v":0},{"$f":"Dataset[[#This Row],[2026/27 To - Spending review Topic 1]]+Dataset[[#This Row],[2026/27 To - Spending review Topic 2]]+Dataset[[#This Row],[2026/27 To - Spending review Topic 3]]+Dataset[[#This Row],[2026/27 To - Spending review Topic 4]]+Dataset[[#This Row],[2026/27 To - Other reallocations]]","v":0},{"$f":"Dataset[[#This Row],[2027/28 To - Spending review Topic 1]]+Dataset[[#This Row],[2027/28 To - Spending review Topic 2]]+Dataset[[#This Row],[2027/28 To - Spending review Topic 3]]+Dataset[[#This Row],[2027/28 To - Spending review Topic 4]]+Dataset[[#This Row],[2027/28 To - Other reallocations]]","v":0},{"$f":"Dataset[[#This Row],[2025/26 Reduction]]+Dataset[[#This Row],[2025/26 From - Total]]","v":0},{"$f":"Dataset[[#This Row],[2026/27 Reduction]]+Dataset[[#This Row],[2026/27 From - Total]]","v":0},{"$f":"Dataset[[#This Row],[2027/28 Reduction]]+Dataset[[#This Row],[2027/28 From - Total]]","v":0},{"$f":"Dataset[[#This Row],[2024/25 Reduction]]","v":0},{"$f":"SUM(Dataset[[#This Row],[2025/26 Reduction]],Dataset[[#This Row],[2025/26 From - Total]],Dataset[[#This Row],[2025/26 To - Total]])","v":0},{"$f":"SUM(Dataset[[#This Row],[2026/27 Reduction]],Dataset[[#This Row],[2026/27 From - Total]],Dataset[[#This Row],[2026/27 To - Total]])","v":0},{"$f":"SUM(Dataset[[#This Row],[2027/28 Reduction]],Dataset[[#This Row],[2027/28 From - Total]],Dataset[[#This Row],[2027/28 To - Total]])","v":0},{"$f":"Dataset[[#This Row],[2024/25 Baseline]]+Dataset[[#This Row],[2024/25 Total change]]","v":0},{"$f":"Dataset[[#This Row],[2025/26 Baseline]]+Dataset[[#This Row],[2025/26 Total change]]","v":0},{"$f":"Dataset[[#This Row],[2026/27 Baseline]]+Dataset[[#This Row],[2026/27 Total change]]","v":0},{"$f":"Dataset[[#This Row],[2027/28 Baseline]]+Dataset[[#This Row],[2027/28 Total change]]","v":0}]
["NAT|Non-transfer item","40|Laboratory services","2025_26","MTEC2025",40,1,5,51501,229,"40","01","05","051501","000229","40|01|05|000229","01","01","02","13","13","01|01|02|13|13","National","Transport","Administration","Office Accommodation","Non-transfer item","Current","Current payments","Goods and services","Laboratory services","Laboratory services","Economic development","Economic regulation and infrastructure","NAT",0,0,0,0,0,0,null,0,0,0,0,null,null,null,null,null,null,null,null,null,null,null,null,null,null,null,null,null,null,null,null,null,null,null,null,null,null,null,null,null,null,null,null,null,null,{"$f":"Dataset[[#This Row],[2025/26 From - Spending review Topic 1]]+Dataset[[#This Row],[2025/26 From - Spending review Topic 2]]+Dataset[[#This Row],[2025/26 From - Spending review Topic 3]]+Dataset[[#This Row],[2025/26 From - Spending review Topic 4]]+Dataset[[#This Row],[2025/26 From - Other reallocations]]","v":0},{"$f":"Dataset[[#This Row],[2026/27 From - Spending review Topic 1]]+Dataset[[#This Row],[2026/27 From - Spending review Topic 2]]+Dataset[[#This Row],[2026/27 From - Spending review Topic 3]]+Dataset[[#This Row],[2026/27 From - Spending review Topic 4]]+Dataset[[#This Row],[2026/27 From - Other reallocations]]","v":0},{"$f":"Dataset[[#This Row],[2027/28 From - Spending review Topic 1]]+Dataset[[#This Row],[2027/28 From - Spending review Topic 2]]+Dataset[[#This Row],[2027/28 From - Spending review Topic 3]]+Dataset[[#This Row],[2027/28 From - Spending review Topic 4]]+Dataset[[#This Row],[2027/28 From - Other reallocations]]","v":0},{"$f":"Dataset[[#This Row],[2025/26 To - Spending review Topic 1]]+Dataset[[#This Row],[2025/26 To - Spending review Topic 2]]+Dataset[[#This Row],[2025/26 To - Spending review Topic 3]]+Dataset[[#This Row],[2025/26 To - Spending review Topic 4]]+Dataset[[#This Row],[2025/26 To - Other reallocations]]","v":0},{"$f":"Dataset[[#This Row],[2026/27 To - Spending review Topic 1]]+Dataset[[#This Row],[2026/27 To - Spending review Topic 2]]+Dataset[[#This Row],[2026/27 To - Spending review Topic 3]]+Dataset[[#This Row],[2026/27 To - Spending review Topic 4]]+Dataset[[#This Row],[2026/27 To - Other reallocations]]","v":0},{"$f":"Dataset[[#This Row],[2027/28 To - Spending review Topic 1]]+Dataset[[#This Row],[2027/28 To - Spending review Topic 2]]+Dataset[[#This Row],[2027/28 To - Spending review Topic 3]]+Dataset[[#This Row],[2027/28 To - Spending review Topic 4]]+Dataset[[#This Row],[2027/28 To - Other reallocations]]","v":0},{"$f":"Dataset[[#This Row],[2025/26 Reduction]]+Dataset[[#This Row],[2025/26 From - Total]]","v":0},{"$f":"Dataset[[#This Row],[2026/27 Reduction]]+Dataset[[#This Row],[2026/27 From - Total]]","v":0},{"$f":"Dataset[[#This Row],[2027/28 Reduction]]+Dataset[[#This Row],[2027/28 From - Total]]","v":0},{"$f":"Dataset[[#This Row],[2024/25 Reduction]]","v":0},{"$f":"SUM(Dataset[[#This Row],[2025/26 Reduction]],Dataset[[#This Row],[2025/26 From - Total]],Dataset[[#This Row],[2025/26 To - Total]])","v":0},{"$f":"SUM(Dataset[[#This Row],[2026/27 Reduction]],Dataset[[#This Row],[2026/27 From - Total]],Dataset[[#This Row],[2026/27 To - Total]])","v":0},{"$f":"SUM(Dataset[[#This Row],[2027/28 Reduction]],Dataset[[#This Row],[2027/28 From - Total]],Dataset[[#This Row],[2027/28 To - Total]])","v":0},{"$f":"Dataset[[#This Row],[2024/25 Baseline]]+Dataset[[#This Row],[2024/25 Total change]]","v":0},{"$f":"Dataset[[#This Row],[2025/26 Baseline]]+Dataset[[#This Row],[2025/26 Total change]]","v":0},{"$f":"Dataset[[#This Row],[2026/27 Baseline]]+Dataset[[#This Row],[2026/27 Total change]]","v":0},{"$f":"Dataset[[#This Row],[2027/28 Baseline]]+Dataset[[#This Row],[2027/28 Total change]]","v":0}]
["NAT|Non-transfer item","40|Legal services (G&S)","2025_26","MTEC2025",40,1,5,51502,230,"40","01","05","051502","000230","40|01|05|000230","01","01","02","14","14","01|01|02|14|14","National","Transport","Administration","Office Accommodation","Non-transfer item","Current","Current payments","Goods and services","Legal services (G&S)","Legal services (G&S)","Economic development","Economic regulation and infrastructure","NAT",0,0,0,0,0,0,null,0,0,0,0,null,null,null,null,null,null,null,null,null,null,null,null,null,null,null,null,null,null,null,null,null,null,null,null,null,null,null,null,null,null,null,null,null,null,{"$f":"Dataset[[#This Row],[2025/26 From - Spending review Topic 1]]+Dataset[[#This Row],[2025/26 From - Spending review Topic 2]]+Dataset[[#This Row],[2025/26 From - Spending review Topic 3]]+Dataset[[#This Row],[2025/26 From - Spending review Topic 4]]+Dataset[[#This Row],[2025/26 From - Other reallocations]]","v":0},{"$f":"Dataset[[#This Row],[2026/27 From - Spending review Topic 1]]+Dataset[[#This Row],[2026/27 From - Spending review Topic 2]]+Dataset[[#This Row],[2026/27 From - Spending review Topic 3]]+Dataset[[#This Row],[2026/27 From - Spending review Topic 4]]+Dataset[[#This Row],[2026/27 From - Other reallocations]]","v":0},{"$f":"Dataset[[#This Row],[2027/28 From - Spending review Topic 1]]+Dataset[[#This Row],[2027/28 From - Spending review Topic 2]]+Dataset[[#This Row],[2027/28 From - Spending review Topic 3]]+Dataset[[#This Row],[2027/28 From - Spending review Topic 4]]+Dataset[[#This Row],[2027/28 From - Other reallocations]]","v":0},{"$f":"Dataset[[#This Row],[2025/26 To - Spending review Topic 1]]+Dataset[[#This Row],[2025/26 To - Spending review Topic 2]]+Dataset[[#This Row],[2025/26 To - Spending review Topic 3]]+Dataset[[#This Row],[2025/26 To - Spending review Topic 4]]+Dataset[[#This Row],[2025/26 To - Other reallocations]]","v":0},{"$f":"Dataset[[#This Row],[2026/27 To - Spending review Topic 1]]+Dataset[[#This Row],[2026/27 To - Spending review Topic 2]]+Dataset[[#This Row],[2026/27 To - Spending review Topic 3]]+Dataset[[#This Row],[2026/27 To - Spending review Topic 4]]+Dataset[[#This Row],[2026/27 To - Other reallocations]]","v":0},{"$f":"Dataset[[#This Row],[2027/28 To - Spending review Topic 1]]+Dataset[[#This Row],[2027/28 To - Spending review Topic 2]]+Dataset[[#This Row],[2027/28 To - Spending review Topic 3]]+Dataset[[#This Row],[2027/28 To - Spending review Topic 4]]+Dataset[[#This Row],[2027/28 To - Other reallocations]]","v":0},{"$f":"Dataset[[#This Row],[2025/26 Reduction]]+Dataset[[#This Row],[2025/26 From - Total]]","v":0},{"$f":"Dataset[[#This Row],[2026/27 Reduction]]+Dataset[[#This Row],[2026/27 From - Total]]","v":0},{"$f":"Dataset[[#This Row],[2027/28 Reduction]]+Dataset[[#This Row],[2027/28 From - Total]]","v":0},{"$f":"Dataset[[#This Row],[2024/25 Reduction]]","v":0},{"$f":"SUM(Dataset[[#This Row],[2025/26 Reduction]],Dataset[[#This Row],[2025/26 From - Total]],Dataset[[#This Row],[2025/26 To - Total]])","v":0},{"$f":"SUM(Dataset[[#This Row],[2026/27 Reduction]],Dataset[[#This Row],[2026/27 From - Total]],Dataset[[#This Row],[2026/27 To - Total]])","v":0},{"$f":"SUM(Dataset[[#This Row],[2027/28 Reduction]],Dataset[[#This Row],[2027/28 From - Total]],Dataset[[#This Row],[2027/28 To - Total]])","v":0},{"$f":"Dataset[[#This Row],[2024/25 Baseline]]+Dataset[[#This Row],[2024/25 Total change]]","v":0},{"$f":"Dataset[[#This Row],[2025/26 Baseline]]+Dataset[[#This Row],[2025/26 Total change]]","v":0},{"$f":"Dataset[[#This Row],[2026/27 Baseline]]+Dataset[[#This Row],[2026/27 Total change]]","v":0},{"$f":"Dataset[[#This Row],[2027/28 Baseline]]+Dataset[[#This Row],[2027/28 Total change]]","v":0}]
["NAT|Non-transfer item","40|Science and technological services","2025_26","MTEC2025",40,1,5,51503,231,"40","01","05","051503","000231","40|01|05|000231","01","01","02","15","15","01|01|02|15|15","National","Transport","Administration","Office Accommodation","Non-transfer item","Current","Current payments","Goods and services","Science and technological services","Science and technological services","Economic development","Economic regulation and infrastructure","NAT",0,0,0,0,0,0,null,0,0,0,0,null,null,null,null,null,null,null,null,null,null,null,null,null,null,null,null,null,null,null,null,null,null,null,null,null,null,null,null,null,null,null,null,null,null,{"$f":"Dataset[[#This Row],[2025/26 From - Spending review Topic 1]]+Dataset[[#This Row],[2025/26 From - Spending review Topic 2]]+Dataset[[#This Row],[2025/26 From - Spending review Topic 3]]+Dataset[[#This Row],[2025/26 From - Spending review Topic 4]]+Dataset[[#This Row],[2025/26 From - Other reallocations]]","v":0},{"$f":"Dataset[[#This Row],[2026/27 From - Spending review Topic 1]]+Dataset[[#This Row],[2026/27 From - Spending review Topic 2]]+Dataset[[#This Row],[2026/27 From - Spending review Topic 3]]+Dataset[[#This Row],[2026/27 From - Spending review Topic 4]]+Dataset[[#This Row],[2026/27 From - Other reallocations]]","v":0},{"$f":"Dataset[[#This Row],[2027/28 From - Spending review Topic 1]]+Dataset[[#This Row],[2027/28 From - Spending review Topic 2]]+Dataset[[#This Row],[2027/28 From - Spending review Topic 3]]+Dataset[[#This Row],[2027/28 From - Spending review Topic 4]]+Dataset[[#This Row],[2027/28 From - Other reallocations]]","v":0},{"$f":"Dataset[[#This Row],[2025/26 To - Spending review Topic 1]]+Dataset[[#This Row],[2025/26 To - Spending review Topic 2]]+Dataset[[#This Row],[2025/26 To - Spending review Topic 3]]+Dataset[[#This Row],[2025/26 To - Spending review Topic 4]]+Dataset[[#This Row],[2025/26 To - Other reallocations]]","v":0},{"$f":"Dataset[[#This Row],[2026/27 To - Spending review Topic 1]]+Dataset[[#This Row],[2026/27 To - Spending review Topic 2]]+Dataset[[#This Row],[2026/27 To - Spending review Topic 3]]+Dataset[[#This Row],[2026/27 To - Spending review Topic 4]]+Dataset[[#This Row],[2026/27 To - Other reallocations]]","v":0},{"$f":"Dataset[[#This Row],[2027/28 To - Spending review Topic 1]]+Dataset[[#This Row],[2027/28 To - Spending review Topic 2]]+Dataset[[#This Row],[2027/28 To - Spending review Topic 3]]+Dataset[[#This Row],[2027/28 To - Spending review Topic 4]]+Dataset[[#This Row],[2027/28 To - Other reallocations]]","v":0},{"$f":"Dataset[[#This Row],[2025/26 Reduction]]+Dataset[[#This Row],[2025/26 From - Total]]","v":0},{"$f":"Dataset[[#This Row],[2026/27 Reduction]]+Dataset[[#This Row],[2026/27 From - Total]]","v":0},{"$f":"Dataset[[#This Row],[2027/28 Reduction]]+Dataset[[#This Row],[2027/28 From - Total]]","v":0},{"$f":"Dataset[[#This Row],[2024/25 Reduction]]","v":0},{"$f":"SUM(Dataset[[#This Row],[2025/26 Reduction]],Dataset[[#This Row],[2025/26 From - Total]],Dataset[[#This Row],[2025/26 To - Total]])","v":0},{"$f":"SUM(Dataset[[#This Row],[2026/27 Reduction]],Dataset[[#This Row],[2026/27 From - Total]],Dataset[[#This Row],[2026/27 To - Total]])","v":0},{"$f":"SUM(Dataset[[#This Row],[2027/28 Reduction]],Dataset[[#This Row],[2027/28 From - Total]],Dataset[[#This Row],[2027/28 To - Total]])","v":0},{"$f":"Dataset[[#This Row],[2024/25 Baseline]]+Dataset[[#This Row],[2024/25 Total change]]","v":0},{"$f":"Dataset[[#This Row],[2025/26 Baseline]]+Dataset[[#This Row],[2025/26 Total change]]","v":0},{"$f":"Dataset[[#This Row],[2026/27 Baseline]]+Dataset[[#This Row],[2026/27 Total change]]","v":0},{"$f":"Dataset[[#This Row],[2027/28 Baseline]]+Dataset[[#This Row],[2027/28 Total change]]","v":0}]
["NAT|Non-transfer item","40|Contractors","2025_26","MTEC2025",40,1,5,51504,232,"40","01","05","051504","000232","40|01|05|000232","01","01","02","16","16","01|01|02|16|16","National","Transport","Administration","Office Accommodation","Non-transfer item","Current","Current payments","Goods and services","Contractors","Contractors","Economic development","Economic regulation and infrastructure","NAT",0,0,0,0,0,0,null,0,0,0,0,null,null,null,null,null,null,null,null,null,null,null,null,null,null,null,null,null,null,null,null,null,null,null,null,null,null,null,null,null,null,null,null,null,null,{"$f":"Dataset[[#This Row],[2025/26 From - Spending review Topic 1]]+Dataset[[#This Row],[2025/26 From - Spending review Topic 2]]+Dataset[[#This Row],[2025/26 From - Spending review Topic 3]]+Dataset[[#This Row],[2025/26 From - Spending review Topic 4]]+Dataset[[#This Row],[2025/26 From - Other reallocations]]","v":0},{"$f":"Dataset[[#This Row],[2026/27 From - Spending review Topic 1]]+Dataset[[#This Row],[2026/27 From - Spending review Topic 2]]+Dataset[[#This Row],[2026/27 From - Spending review Topic 3]]+Dataset[[#This Row],[2026/27 From - Spending review Topic 4]]+Dataset[[#This Row],[2026/27 From - Other reallocations]]","v":0},{"$f":"Dataset[[#This Row],[2027/28 From - Spending review Topic 1]]+Dataset[[#This Row],[2027/28 From - Spending review Topic 2]]+Dataset[[#This Row],[2027/28 From - Spending review Topic 3]]+Dataset[[#This Row],[2027/28 From - Spending review Topic 4]]+Dataset[[#This Row],[2027/28 From - Other reallocations]]","v":0},{"$f":"Dataset[[#This Row],[2025/26 To - Spending review Topic 1]]+Dataset[[#This Row],[2025/26 To - Spending review Topic 2]]+Dataset[[#This Row],[2025/26 To - Spending review Topic 3]]+Dataset[[#This Row],[2025/26 To - Spending review Topic 4]]+Dataset[[#This Row],[2025/26 To - Other reallocations]]","v":0},{"$f":"Dataset[[#This Row],[2026/27 To - Spending review Topic 1]]+Dataset[[#This Row],[2026/27 To - Spending review Topic 2]]+Dataset[[#This Row],[2026/27 To - Spending review Topic 3]]+Dataset[[#This Row],[2026/27 To - Spending review Topic 4]]+Dataset[[#This Row],[2026/27 To - Other reallocations]]","v":0},{"$f":"Dataset[[#This Row],[2027/28 To - Spending review Topic 1]]+Dataset[[#This Row],[2027/28 To - Spending review Topic 2]]+Dataset[[#This Row],[2027/28 To - Spending review Topic 3]]+Dataset[[#This Row],[2027/28 To - Spending review Topic 4]]+Dataset[[#This Row],[2027/28 To - Other reallocations]]","v":0},{"$f":"Dataset[[#This Row],[2025/26 Reduction]]+Dataset[[#This Row],[2025/26 From - Total]]","v":0},{"$f":"Dataset[[#This Row],[2026/27 Reduction]]+Dataset[[#This Row],[2026/27 From - Total]]","v":0},{"$f":"Dataset[[#This Row],[2027/28 Reduction]]+Dataset[[#This Row],[2027/28 From - Total]]","v":0},{"$f":"Dataset[[#This Row],[2024/25 Reduction]]","v":0},{"$f":"SUM(Dataset[[#This Row],[2025/26 Reduction]],Dataset[[#This Row],[2025/26 From - Total]],Dataset[[#This Row],[2025/26 To - Total]])","v":0},{"$f":"SUM(Dataset[[#This Row],[2026/27 Reduction]],Dataset[[#This Row],[2026/27 From - Total]],Dataset[[#This Row],[2026/27 To - Total]])","v":0},{"$f":"SUM(Dataset[[#This Row],[2027/28 Reduction]],Dataset[[#This Row],[2027/28 From - Total]],Dataset[[#This Row],[2027/28 To - Total]])","v":0},{"$f":"Dataset[[#This Row],[2024/25 Baseline]]+Dataset[[#This Row],[2024/25 Total change]]","v":0},{"$f":"Dataset[[#This Row],[2025/26 Baseline]]+Dataset[[#This Row],[2025/26 Total change]]","v":0},{"$f":"Dataset[[#This Row],[2026/27 Baseline]]+Dataset[[#This Row],[2026/27 Total change]]","v":0},{"$f":"Dataset[[#This Row],[2027/28 Baseline]]+Dataset[[#This Row],[2027/28 Total change]]","v":0}]
["NAT|Non-transfer item","40|Housing","2025_26","MTEC2025",40,1,5,51508,236,"40","01","05","051508","000236","40|01|05|000236","01","01","02","20","20","01|01|02|20|20","National","Transport","Administration","Office Accommodation","Non-transfer item","Current","Current payments","Goods and services","Housing","Housing","Economic development","Economic regulation and infrastructure","NAT",0,0,0,0,0,0,null,0,0,0,0,null,null,null,null,null,null,null,null,null,null,null,null,null,null,null,null,null,null,null,null,null,null,null,null,null,null,null,null,null,null,null,null,null,null,{"$f":"Dataset[[#This Row],[2025/26 From - Spending review Topic 1]]+Dataset[[#This Row],[2025/26 From - Spending review Topic 2]]+Dataset[[#This Row],[2025/26 From - Spending review Topic 3]]+Dataset[[#This Row],[2025/26 From - Spending review Topic 4]]+Dataset[[#This Row],[2025/26 From - Other reallocations]]","v":0},{"$f":"Dataset[[#This Row],[2026/27 From - Spending review Topic 1]]+Dataset[[#This Row],[2026/27 From - Spending review Topic 2]]+Dataset[[#This Row],[2026/27 From - Spending review Topic 3]]+Dataset[[#This Row],[2026/27 From - Spending review Topic 4]]+Dataset[[#This Row],[2026/27 From - Other reallocations]]","v":0},{"$f":"Dataset[[#This Row],[2027/28 From - Spending review Topic 1]]+Dataset[[#This Row],[2027/28 From - Spending review Topic 2]]+Dataset[[#This Row],[2027/28 From - Spending review Topic 3]]+Dataset[[#This Row],[2027/28 From - Spending review Topic 4]]+Dataset[[#This Row],[2027/28 From - Other reallocations]]","v":0},{"$f":"Dataset[[#This Row],[2025/26 To - Spending review Topic 1]]+Dataset[[#This Row],[2025/26 To - Spending review Topic 2]]+Dataset[[#This Row],[2025/26 To - Spending review Topic 3]]+Dataset[[#This Row],[2025/26 To - Spending review Topic 4]]+Dataset[[#This Row],[2025/26 To - Other reallocations]]","v":0},{"$f":"Dataset[[#This Row],[2026/27 To - Spending review Topic 1]]+Dataset[[#This Row],[2026/27 To - Spending review Topic 2]]+Dataset[[#This Row],[2026/27 To - Spending review Topic 3]]+Dataset[[#This Row],[2026/27 To - Spending review Topic 4]]+Dataset[[#This Row],[2026/27 To - Other reallocations]]","v":0},{"$f":"Dataset[[#This Row],[2027/28 To - Spending review Topic 1]]+Dataset[[#This Row],[2027/28 To - Spending review Topic 2]]+Dataset[[#This Row],[2027/28 To - Spending review Topic 3]]+Dataset[[#This Row],[2027/28 To - Spending review Topic 4]]+Dataset[[#This Row],[2027/28 To - Other reallocations]]","v":0},{"$f":"Dataset[[#This Row],[2025/26 Reduction]]+Dataset[[#This Row],[2025/26 From - Total]]","v":0},{"$f":"Dataset[[#This Row],[2026/27 Reduction]]+Dataset[[#This Row],[2026/27 From - Total]]","v":0},{"$f":"Dataset[[#This Row],[2027/28 Reduction]]+Dataset[[#This Row],[2027/28 From - Total]]","v":0},{"$f":"Dataset[[#This Row],[2024/25 Reduction]]","v":0},{"$f":"SUM(Dataset[[#This Row],[2025/26 Reduction]],Dataset[[#This Row],[2025/26 From - Total]],Dataset[[#This Row],[2025/26 To - Total]])","v":0},{"$f":"SUM(Dataset[[#This Row],[2026/27 Reduction]],Dataset[[#This Row],[2026/27 From - Total]],Dataset[[#This Row],[2026/27 To - Total]])","v":0},{"$f":"SUM(Dataset[[#This Row],[2027/28 Reduction]],Dataset[[#This Row],[2027/28 From - Total]],Dataset[[#This Row],[2027/28 To - Total]])","v":0},{"$f":"Dataset[[#This Row],[2024/25 Baseline]]+Dataset[[#This Row],[2024/25 Total change]]","v":0},{"$f":"Dataset[[#This Row],[2025/26 Baseline]]+Dataset[[#This Row],[2025/26 Total change]]","v":0},{"$f":"Dataset[[#This Row],[2026/27 Baseline]]+Dataset[[#This Row],[2026/27 Total change]]","v":0},{"$f":"Dataset[[#This Row],[2027/28 Baseline]]+Dataset[[#This Row],[2027/28 Total change]]","v":0}]
["NAT|Non-transfer item","40|Inventory: Learner and teacher support material","2025_26","MTEC2025",40,1,5,51513,241,"40","01","05","051513","000241","40|01|05|000241","01","01","02","25","25","01|01|02|25|25","National","Transport","Administration","Office Accommodation","Non-transfer item","Current","Current payments","Goods and services","Inventory: Learner and teacher support material","Inventory: Learner and teacher support material","Economic development","Economic regulation and infrastructure","NAT",0,0,0,0,0,0,null,0,0,0,0,null,null,null,null,null,null,null,null,null,null,null,null,null,null,null,null,null,null,null,null,null,null,null,null,null,null,null,null,null,null,null,null,null,null,{"$f":"Dataset[[#This Row],[2025/26 From - Spending review Topic 1]]+Dataset[[#This Row],[2025/26 From - Spending review Topic 2]]+Dataset[[#This Row],[2025/26 From - Spending review Topic 3]]+Dataset[[#This Row],[2025/26 From - Spending review Topic 4]]+Dataset[[#This Row],[2025/26 From - Other reallocations]]","v":0},{"$f":"Dataset[[#This Row],[2026/27 From - Spending review Topic 1]]+Dataset[[#This Row],[2026/27 From - Spending review Topic 2]]+Dataset[[#This Row],[2026/27 From - Spending review Topic 3]]+Dataset[[#This Row],[2026/27 From - Spending review Topic 4]]+Dataset[[#This Row],[2026/27 From - Other reallocations]]","v":0},{"$f":"Dataset[[#This Row],[2027/28 From - Spending review Topic 1]]+Dataset[[#This Row],[2027/28 From - Spending review Topic 2]]+Dataset[[#This Row],[2027/28 From - Spending review Topic 3]]+Dataset[[#This Row],[2027/28 From - Spending review Topic 4]]+Dataset[[#This Row],[2027/28 From - Other reallocations]]","v":0},{"$f":"Dataset[[#This Row],[2025/26 To - Spending review Topic 1]]+Dataset[[#This Row],[2025/26 To - Spending review Topic 2]]+Dataset[[#This Row],[2025/26 To - Spending review Topic 3]]+Dataset[[#This Row],[2025/26 To - Spending review Topic 4]]+Dataset[[#This Row],[2025/26 To - Other reallocations]]","v":0},{"$f":"Dataset[[#This Row],[2026/27 To - Spending review Topic 1]]+Dataset[[#This Row],[2026/27 To - Spending review Topic 2]]+Dataset[[#This Row],[2026/27 To - Spending review Topic 3]]+Dataset[[#This Row],[2026/27 To - Spending review Topic 4]]+Dataset[[#This Row],[2026/27 To - Other reallocations]]","v":0},{"$f":"Dataset[[#This Row],[2027/28 To - Spending review Topic 1]]+Dataset[[#This Row],[2027/28 To - Spending review Topic 2]]+Dataset[[#This Row],[2027/28 To - Spending review Topic 3]]+Dataset[[#This Row],[2027/28 To - Spending review Topic 4]]+Dataset[[#This Row],[2027/28 To - Other reallocations]]","v":0},{"$f":"Dataset[[#This Row],[2025/26 Reduction]]+Dataset[[#This Row],[2025/26 From - Total]]","v":0},{"$f":"Dataset[[#This Row],[2026/27 Reduction]]+Dataset[[#This Row],[2026/27 From - Total]]","v":0},{"$f":"Dataset[[#This Row],[2027/28 Reduction]]+Dataset[[#This Row],[2027/28 From - Total]]","v":0},{"$f":"Dataset[[#This Row],[2024/25 Reduction]]","v":0},{"$f":"SUM(Dataset[[#This Row],[2025/26 Reduction]],Dataset[[#This Row],[2025/26 From - Total]],Dataset[[#This Row],[2025/26 To - Total]])","v":0},{"$f":"SUM(Dataset[[#This Row],[2026/27 Reduction]],Dataset[[#This Row],[2026/27 From - Total]],Dataset[[#This Row],[2026/27 To - Total]])","v":0},{"$f":"SUM(Dataset[[#This Row],[2027/28 Reduction]],Dataset[[#This Row],[2027/28 From - Total]],Dataset[[#This Row],[2027/28 To - Total]])","v":0},{"$f":"Dataset[[#This Row],[2024/25 Baseline]]+Dataset[[#This Row],[2024/25 Total change]]","v":0},{"$f":"Dataset[[#This Row],[2025/26 Baseline]]+Dataset[[#This Row],[2025/26 Total change]]","v":0},{"$f":"Dataset[[#This Row],[2026/27 Baseline]]+Dataset[[#This Row],[2026/27 Total change]]","v":0},{"$f":"Dataset[[#This Row],[2027/28 Baseline]]+Dataset[[#This Row],[2027/28 Total change]]","v":0}]
["NAT|Non-transfer item","40|Operating leases","2025_26","MTEC2025",40,1,5,51521,249,"40","01","05","051521","000249","40|01|05|000249","01","01","02","33","33","01|01|02|33|33","National","Transport","Administration","Office Accommodation","Non-transfer item","Current","Current payments","Goods and services","Operating leases","Operating leases","Economic development","Economic regulation and infrastructure","NAT",88368,107599,107961,74458,67158,67158,92198,75632,79020,82641,86378,null,null,null,null,null,null,null,null,null,null,null,null,null,null,null,null,null,null,null,null,null,null,null,null,null,null,null,null,null,null,null,null,null,null,{"$f":"Dataset[[#This Row],[2025/26 From - Spending review Topic 1]]+Dataset[[#This Row],[2025/26 From - Spending review Topic 2]]+Dataset[[#This Row],[2025/26 From - Spending review Topic 3]]+Dataset[[#This Row],[2025/26 From - Spending review Topic 4]]+Dataset[[#This Row],[2025/26 From - Other reallocations]]","v":0},{"$f":"Dataset[[#This Row],[2026/27 From - Spending review Topic 1]]+Dataset[[#This Row],[2026/27 From - Spending review Topic 2]]+Dataset[[#This Row],[2026/27 From - Spending review Topic 3]]+Dataset[[#This Row],[2026/27 From - Spending review Topic 4]]+Dataset[[#This Row],[2026/27 From - Other reallocations]]","v":0},{"$f":"Dataset[[#This Row],[2027/28 From - Spending review Topic 1]]+Dataset[[#This Row],[2027/28 From - Spending review Topic 2]]+Dataset[[#This Row],[2027/28 From - Spending review Topic 3]]+Dataset[[#This Row],[2027/28 From - Spending review Topic 4]]+Dataset[[#This Row],[2027/28 From - Other reallocations]]","v":0},{"$f":"Dataset[[#This Row],[2025/26 To - Spending review Topic 1]]+Dataset[[#This Row],[2025/26 To - Spending review Topic 2]]+Dataset[[#This Row],[2025/26 To - Spending review Topic 3]]+Dataset[[#This Row],[2025/26 To - Spending review Topic 4]]+Dataset[[#This Row],[2025/26 To - Other reallocations]]","v":0},{"$f":"Dataset[[#This Row],[2026/27 To - Spending review Topic 1]]+Dataset[[#This Row],[2026/27 To - Spending review Topic 2]]+Dataset[[#This Row],[2026/27 To - Spending review Topic 3]]+Dataset[[#This Row],[2026/27 To - Spending review Topic 4]]+Dataset[[#This Row],[2026/27 To - Other reallocations]]","v":0},{"$f":"Dataset[[#This Row],[2027/28 To - Spending review Topic 1]]+Dataset[[#This Row],[2027/28 To - Spending review Topic 2]]+Dataset[[#This Row],[2027/28 To - Spending review Topic 3]]+Dataset[[#This Row],[2027/28 To - Spending review Topic 4]]+Dataset[[#This Row],[2027/28 To - Other reallocations]]","v":0},{"$f":"Dataset[[#This Row],[2025/26 Reduction]]+Dataset[[#This Row],[2025/26 From - Total]]","v":0},{"$f":"Dataset[[#This Row],[2026/27 Reduction]]+Dataset[[#This Row],[2026/27 From - Total]]","v":0},{"$f":"Dataset[[#This Row],[2027/28 Reduction]]+Dataset[[#This Row],[2027/28 From - Total]]","v":0},{"$f":"Dataset[[#This Row],[2024/25 Reduction]]","v":0},{"$f":"SUM(Dataset[[#This Row],[2025/26 Reduction]],Dataset[[#This Row],[2025/26 From - Total]],Dataset[[#This Row],[2025/26 To - Total]])","v":0},{"$f":"SUM(Dataset[[#This Row],[2026/27 Reduction]],Dataset[[#This Row],[2026/27 From - Total]],Dataset[[#This Row],[2026/27 To - Total]])","v":0},{"$f":"SUM(Dataset[[#This Row],[2027/28 Reduction]],Dataset[[#This Row],[2027/28 From - Total]],Dataset[[#This Row],[2027/28 To - Total]])","v":0},{"$f":"Dataset[[#This Row],[2024/25 Baseline]]+Dataset[[#This Row],[2024/25 Total change]]","v":75632},{"$f":"Dataset[[#This Row],[2025/26 Baseline]]+Dataset[[#This Row],[2025/26 Total change]]","v":79020},{"$f":"Dataset[[#This Row],[2026/27 Baseline]]+Dataset[[#This Row],[2026/27 Total change]]","v":82641},{"$f":"Dataset[[#This Row],[2027/28 Baseline]]+Dataset[[#This Row],[2027/28 Total change]]","v":86378}]
["NAT|Non-transfer item","40|Training and development","2025_26","MTEC2025",40,1,5,51526,254,"40","01","05","051526","000254","40|01|05|000254","01","01","02","38","38","01|01|02|38|38","National","Transport","Administration","Office Accommodation","Non-transfer item","Current","Current payments","Goods and services","Training and development","Training and development","Economic development","Economic regulation and infrastructure","NAT",0,0,0,0,0,0,null,0,0,0,0,null,null,null,null,null,null,null,null,null,null,null,null,null,null,null,null,null,null,null,null,null,null,null,null,null,null,null,null,null,null,null,null,null,null,{"$f":"Dataset[[#This Row],[2025/26 From - Spending review Topic 1]]+Dataset[[#This Row],[2025/26 From - Spending review Topic 2]]+Dataset[[#This Row],[2025/26 From - Spending review Topic 3]]+Dataset[[#This Row],[2025/26 From - Spending review Topic 4]]+Dataset[[#This Row],[2025/26 From - Other reallocations]]","v":0},{"$f":"Dataset[[#This Row],[2026/27 From - Spending review Topic 1]]+Dataset[[#This Row],[2026/27 From - Spending review Topic 2]]+Dataset[[#This Row],[2026/27 From - Spending review Topic 3]]+Dataset[[#This Row],[2026/27 From - Spending review Topic 4]]+Dataset[[#This Row],[2026/27 From - Other reallocations]]","v":0},{"$f":"Dataset[[#This Row],[2027/28 From - Spending review Topic 1]]+Dataset[[#This Row],[2027/28 From - Spending review Topic 2]]+Dataset[[#This Row],[2027/28 From - Spending review Topic 3]]+Dataset[[#This Row],[2027/28 From - Spending review Topic 4]]+Dataset[[#This Row],[2027/28 From - Other reallocations]]","v":0},{"$f":"Dataset[[#This Row],[2025/26 To - Spending review Topic 1]]+Dataset[[#This Row],[2025/26 To - Spending review Topic 2]]+Dataset[[#This Row],[2025/26 To - Spending review Topic 3]]+Dataset[[#This Row],[2025/26 To - Spending review Topic 4]]+Dataset[[#This Row],[2025/26 To - Other reallocations]]","v":0},{"$f":"Dataset[[#This Row],[2026/27 To - Spending review Topic 1]]+Dataset[[#This Row],[2026/27 To - Spending review Topic 2]]+Dataset[[#This Row],[2026/27 To - Spending review Topic 3]]+Dataset[[#This Row],[2026/27 To - Spending review Topic 4]]+Dataset[[#This Row],[2026/27 To - Other reallocations]]","v":0},{"$f":"Dataset[[#This Row],[2027/28 To - Spending review Topic 1]]+Dataset[[#This Row],[2027/28 To - Spending review Topic 2]]+Dataset[[#This Row],[2027/28 To - Spending review Topic 3]]+Dataset[[#This Row],[2027/28 To - Spending review Topic 4]]+Dataset[[#This Row],[2027/28 To - Other reallocations]]","v":0},{"$f":"Dataset[[#This Row],[2025/26 Reduction]]+Dataset[[#This Row],[2025/26 From - Total]]","v":0},{"$f":"Dataset[[#This Row],[2026/27 Reduction]]+Dataset[[#This Row],[2026/27 From - Total]]","v":0},{"$f":"Dataset[[#This Row],[2027/28 Reduction]]+Dataset[[#This Row],[2027/28 From - Total]]","v":0},{"$f":"Dataset[[#This Row],[2024/25 Reduction]]","v":0},{"$f":"SUM(Dataset[[#This Row],[2025/26 Reduction]],Dataset[[#This Row],[2025/26 From - Total]],Dataset[[#This Row],[2025/26 To - Total]])","v":0},{"$f":"SUM(Dataset[[#This Row],[2026/27 Reduction]],Dataset[[#This Row],[2026/27 From - Total]],Dataset[[#This Row],[2026/27 To - Total]])","v":0},{"$f":"SUM(Dataset[[#This Row],[2027/28 Reduction]],Dataset[[#This Row],[2027/28 From - Total]],Dataset[[#This Row],[2027/28 To - Total]])","v":0},{"$f":"Dataset[[#This Row],[2024/25 Baseline]]+Dataset[[#This Row],[2024/25 Total change]]","v":0},{"$f":"Dataset[[#This Row],[2025/26 Baseline]]+Dataset[[#This Row],[2025/26 Total change]]","v":0},{"$f":"Dataset[[#This Row],[2026/27 Baseline]]+Dataset[[#This Row],[2026/27 Total change]]","v":0},{"$f":"Dataset[[#This Row],[2027/28 Baseline]]+Dataset[[#This Row],[2027/28 Total change]]","v":0}]
["NAT|Non-transfer item","40|Other machinery and equipment","2025_26","MTEC2025",40,1,5,51534,262,"40","01","05","051534","000262","40|01|05|000262","02","03","12","57","61","02|03|12|57|61","National","Transport","Administration","Office Accommodation","Non-transfer item","Capital","Payments for capital assets","Machinery and equipment","Other machinery and equipment","Other machinery and equipment","Economic development","Economic regulation and infrastructure","NAT",0,0,0,0,0,0,null,0,0,0,0,null,null,null,null,null,null,null,null,null,null,null,null,null,null,null,null,null,null,null,null,null,null,null,null,null,null,null,null,null,null,null,null,null,null,{"$f":"Dataset[[#This Row],[2025/26 From - Spending review Topic 1]]+Dataset[[#This Row],[2025/26 From - Spending review Topic 2]]+Dataset[[#This Row],[2025/26 From - Spending review Topic 3]]+Dataset[[#This Row],[2025/26 From - Spending review Topic 4]]+Dataset[[#This Row],[2025/26 From - Other reallocations]]","v":0},{"$f":"Dataset[[#This Row],[2026/27 From - Spending review Topic 1]]+Dataset[[#This Row],[2026/27 From - Spending review Topic 2]]+Dataset[[#This Row],[2026/27 From - Spending review Topic 3]]+Dataset[[#This Row],[2026/27 From - Spending review Topic 4]]+Dataset[[#This Row],[2026/27 From - Other reallocations]]","v":0},{"$f":"Dataset[[#This Row],[2027/28 From - Spending review Topic 1]]+Dataset[[#This Row],[2027/28 From - Spending review Topic 2]]+Dataset[[#This Row],[2027/28 From - Spending review Topic 3]]+Dataset[[#This Row],[2027/28 From - Spending review Topic 4]]+Dataset[[#This Row],[2027/28 From - Other reallocations]]","v":0},{"$f":"Dataset[[#This Row],[2025/26 To - Spending review Topic 1]]+Dataset[[#This Row],[2025/26 To - Spending review Topic 2]]+Dataset[[#This Row],[2025/26 To - Spending review Topic 3]]+Dataset[[#This Row],[2025/26 To - Spending review Topic 4]]+Dataset[[#This Row],[2025/26 To - Other reallocations]]","v":0},{"$f":"Dataset[[#This Row],[2026/27 To - Spending review Topic 1]]+Dataset[[#This Row],[2026/27 To - Spending review Topic 2]]+Dataset[[#This Row],[2026/27 To - Spending review Topic 3]]+Dataset[[#This Row],[2026/27 To - Spending review Topic 4]]+Dataset[[#This Row],[2026/27 To - Other reallocations]]","v":0},{"$f":"Dataset[[#This Row],[2027/28 To - Spending review Topic 1]]+Dataset[[#This Row],[2027/28 To - Spending review Topic 2]]+Dataset[[#This Row],[2027/28 To - Spending review Topic 3]]+Dataset[[#This Row],[2027/28 To - Spending review Topic 4]]+Dataset[[#This Row],[2027/28 To - Other reallocations]]","v":0},{"$f":"Dataset[[#This Row],[2025/26 Reduction]]+Dataset[[#This Row],[2025/26 From - Total]]","v":0},{"$f":"Dataset[[#This Row],[2026/27 Reduction]]+Dataset[[#This Row],[2026/27 From - Total]]","v":0},{"$f":"Dataset[[#This Row],[2027/28 Reduction]]+Dataset[[#This Row],[2027/28 From - Total]]","v":0},{"$f":"Dataset[[#This Row],[2024/25 Reduction]]","v":0},{"$f":"SUM(Dataset[[#This Row],[2025/26 Reduction]],Dataset[[#This Row],[2025/26 From - Total]],Dataset[[#This Row],[2025/26 To - Total]])","v":0},{"$f":"SUM(Dataset[[#This Row],[2026/27 Reduction]],Dataset[[#This Row],[2026/27 From - Total]],Dataset[[#This Row],[2026/27 To - Total]])","v":0},{"$f":"SUM(Dataset[[#This Row],[2027/28 Reduction]],Dataset[[#This Row],[2027/28 From - Total]],Dataset[[#This Row],[2027/28 To - Total]])","v":0},{"$f":"Dataset[[#This Row],[2024/25 Baseline]]+Dataset[[#This Row],[2024/25 Total change]]","v":0},{"$f":"Dataset[[#This Row],[2025/26 Baseline]]+Dataset[[#This Row],[2025/26 Total change]]","v":0},{"$f":"Dataset[[#This Row],[2026/27 Baseline]]+Dataset[[#This Row],[2026/27 Total change]]","v":0},{"$f":"Dataset[[#This Row],[2027/28 Baseline]]+Dataset[[#This Row],[2027/28 Total change]]","v":0}]
["NAT|Non-transfer item","40|Administrative fees","2025_26","MTEC2025",40,2,1,51542,270,"40","02","01","051542","000270","40|02|01|000270","01","01","02","03","03","01|01|02|03|03","National","Transport","Integrated Transport Planning","Macro Sector Planning","Non-transfer item","Current","Current payments","Goods and services","Administrative fees","Administrative fees","Economic development","Economic regulation and infrastructure","NAT",0,1,0,0,0,0,0,0,0,0,0,null,null,null,null,null,null,null,null,null,null,null,null,null,null,null,null,null,null,null,null,null,null,null,null,null,null,null,null,null,null,null,null,null,null,{"$f":"Dataset[[#This Row],[2025/26 From - Spending review Topic 1]]+Dataset[[#This Row],[2025/26 From - Spending review Topic 2]]+Dataset[[#This Row],[2025/26 From - Spending review Topic 3]]+Dataset[[#This Row],[2025/26 From - Spending review Topic 4]]+Dataset[[#This Row],[2025/26 From - Other reallocations]]","v":0},{"$f":"Dataset[[#This Row],[2026/27 From - Spending review Topic 1]]+Dataset[[#This Row],[2026/27 From - Spending review Topic 2]]+Dataset[[#This Row],[2026/27 From - Spending review Topic 3]]+Dataset[[#This Row],[2026/27 From - Spending review Topic 4]]+Dataset[[#This Row],[2026/27 From - Other reallocations]]","v":0},{"$f":"Dataset[[#This Row],[2027/28 From - Spending review Topic 1]]+Dataset[[#This Row],[2027/28 From - Spending review Topic 2]]+Dataset[[#This Row],[2027/28 From - Spending review Topic 3]]+Dataset[[#This Row],[2027/28 From - Spending review Topic 4]]+Dataset[[#This Row],[2027/28 From - Other reallocations]]","v":0},{"$f":"Dataset[[#This Row],[2025/26 To - Spending review Topic 1]]+Dataset[[#This Row],[2025/26 To - Spending review Topic 2]]+Dataset[[#This Row],[2025/26 To - Spending review Topic 3]]+Dataset[[#This Row],[2025/26 To - Spending review Topic 4]]+Dataset[[#This Row],[2025/26 To - Other reallocations]]","v":0},{"$f":"Dataset[[#This Row],[2026/27 To - Spending review Topic 1]]+Dataset[[#This Row],[2026/27 To - Spending review Topic 2]]+Dataset[[#This Row],[2026/27 To - Spending review Topic 3]]+Dataset[[#This Row],[2026/27 To - Spending review Topic 4]]+Dataset[[#This Row],[2026/27 To - Other reallocations]]","v":0},{"$f":"Dataset[[#This Row],[2027/28 To - Spending review Topic 1]]+Dataset[[#This Row],[2027/28 To - Spending review Topic 2]]+Dataset[[#This Row],[2027/28 To - Spending review Topic 3]]+Dataset[[#This Row],[2027/28 To - Spending review Topic 4]]+Dataset[[#This Row],[2027/28 To - Other reallocations]]","v":0},{"$f":"Dataset[[#This Row],[2025/26 Reduction]]+Dataset[[#This Row],[2025/26 From - Total]]","v":0},{"$f":"Dataset[[#This Row],[2026/27 Reduction]]+Dataset[[#This Row],[2026/27 From - Total]]","v":0},{"$f":"Dataset[[#This Row],[2027/28 Reduction]]+Dataset[[#This Row],[2027/28 From - Total]]","v":0},{"$f":"Dataset[[#This Row],[2024/25 Reduction]]","v":0},{"$f":"SUM(Dataset[[#This Row],[2025/26 Reduction]],Dataset[[#This Row],[2025/26 From - Total]],Dataset[[#This Row],[2025/26 To - Total]])","v":0},{"$f":"SUM(Dataset[[#This Row],[2026/27 Reduction]],Dataset[[#This Row],[2026/27 From - Total]],Dataset[[#This Row],[2026/27 To - Total]])","v":0},{"$f":"SUM(Dataset[[#This Row],[2027/28 Reduction]],Dataset[[#This Row],[2027/28 From - Total]],Dataset[[#This Row],[2027/28 To - Total]])","v":0},{"$f":"Dataset[[#This Row],[2024/25 Baseline]]+Dataset[[#This Row],[2024/25 Total change]]","v":0},{"$f":"Dataset[[#This Row],[2025/26 Baseline]]+Dataset[[#This Row],[2025/26 Total change]]","v":0},{"$f":"Dataset[[#This Row],[2026/27 Baseline]]+Dataset[[#This Row],[2026/27 Total change]]","v":0},{"$f":"Dataset[[#This Row],[2027/28 Baseline]]+Dataset[[#This Row],[2027/28 Total change]]","v":0}]
["NAT|Non-transfer item","40|Catering: Departmental activities","2025_26","MTEC2025",40,2,1,51547,275,"40","02","01","051547","000275","40|02|01|000275","01","01","02","08","08","01|01|02|08|08","National","Transport","Integrated Transport Planning","Macro Sector Planning","Non-transfer item","Current","Current payments","Goods and services","Catering: Departmental activities","Catering: Departmental activities","Economic development","Economic regulation and infrastructure","NAT",0,0,7,0,250,250,168,250,260,271,283,null,null,null,null,null,null,null,null,null,null,null,null,null,null,null,null,null,null,null,null,null,null,null,null,null,null,null,null,null,null,null,null,null,null,{"$f":"Dataset[[#This Row],[2025/26 From - Spending review Topic 1]]+Dataset[[#This Row],[2025/26 From - Spending review Topic 2]]+Dataset[[#This Row],[2025/26 From - Spending review Topic 3]]+Dataset[[#This Row],[2025/26 From - Spending review Topic 4]]+Dataset[[#This Row],[2025/26 From - Other reallocations]]","v":0},{"$f":"Dataset[[#This Row],[2026/27 From - Spending review Topic 1]]+Dataset[[#This Row],[2026/27 From - Spending review Topic 2]]+Dataset[[#This Row],[2026/27 From - Spending review Topic 3]]+Dataset[[#This Row],[2026/27 From - Spending review Topic 4]]+Dataset[[#This Row],[2026/27 From - Other reallocations]]","v":0},{"$f":"Dataset[[#This Row],[2027/28 From - Spending review Topic 1]]+Dataset[[#This Row],[2027/28 From - Spending review Topic 2]]+Dataset[[#This Row],[2027/28 From - Spending review Topic 3]]+Dataset[[#This Row],[2027/28 From - Spending review Topic 4]]+Dataset[[#This Row],[2027/28 From - Other reallocations]]","v":0},{"$f":"Dataset[[#This Row],[2025/26 To - Spending review Topic 1]]+Dataset[[#This Row],[2025/26 To - Spending review Topic 2]]+Dataset[[#This Row],[2025/26 To - Spending review Topic 3]]+Dataset[[#This Row],[2025/26 To - Spending review Topic 4]]+Dataset[[#This Row],[2025/26 To - Other reallocations]]","v":0},{"$f":"Dataset[[#This Row],[2026/27 To - Spending review Topic 1]]+Dataset[[#This Row],[2026/27 To - Spending review Topic 2]]+Dataset[[#This Row],[2026/27 To - Spending review Topic 3]]+Dataset[[#This Row],[2026/27 To - Spending review Topic 4]]+Dataset[[#This Row],[2026/27 To - Other reallocations]]","v":0},{"$f":"Dataset[[#This Row],[2027/28 To - Spending review Topic 1]]+Dataset[[#This Row],[2027/28 To - Spending review Topic 2]]+Dataset[[#This Row],[2027/28 To - Spending review Topic 3]]+Dataset[[#This Row],[2027/28 To - Spending review Topic 4]]+Dataset[[#This Row],[2027/28 To - Other reallocations]]","v":0},{"$f":"Dataset[[#This Row],[2025/26 Reduction]]+Dataset[[#This Row],[2025/26 From - Total]]","v":0},{"$f":"Dataset[[#This Row],[2026/27 Reduction]]+Dataset[[#This Row],[2026/27 From - Total]]","v":0},{"$f":"Dataset[[#This Row],[2027/28 Reduction]]+Dataset[[#This Row],[2027/28 From - Total]]","v":0},{"$f":"Dataset[[#This Row],[2024/25 Reduction]]","v":0},{"$f":"SUM(Dataset[[#This Row],[2025/26 Reduction]],Dataset[[#This Row],[2025/26 From - Total]],Dataset[[#This Row],[2025/26 To - Total]])","v":0},{"$f":"SUM(Dataset[[#This Row],[2026/27 Reduction]],Dataset[[#This Row],[2026/27 From - Total]],Dataset[[#This Row],[2026/27 To - Total]])","v":0},{"$f":"SUM(Dataset[[#This Row],[2027/28 Reduction]],Dataset[[#This Row],[2027/28 From - Total]],Dataset[[#This Row],[2027/28 To - Total]])","v":0},{"$f":"Dataset[[#This Row],[2024/25 Baseline]]+Dataset[[#This Row],[2024/25 Total change]]","v":250},{"$f":"Dataset[[#This Row],[2025/26 Baseline]]+Dataset[[#This Row],[2025/26 Total change]]","v":260},{"$f":"Dataset[[#This Row],[2026/27 Baseline]]+Dataset[[#This Row],[2026/27 Total change]]","v":271},{"$f":"Dataset[[#This Row],[2027/28 Baseline]]+Dataset[[#This Row],[2027/28 Total change]]","v":283}]
["NAT|Non-transfer item","40|Contractors","2025_26","MTEC2025",40,2,1,51555,283,"40","02","01","051555","000283","40|02|01|000283","01","01","02","16","16","01|01|02|16|16","National","Transport","Integrated Transport Planning","Macro Sector Planning","Non-transfer item","Current","Current payments","Goods and services","Contractors","Contractors","Economic development","Economic regulation and infrastructure","NAT",0,0,2,0,0,0,76,0,0,0,0,null,null,null,null,null,null,null,null,null,null,null,null,null,null,null,null,null,null,null,null,null,null,null,null,null,null,null,null,null,null,null,null,null,null,{"$f":"Dataset[[#This Row],[2025/26 From - Spending review Topic 1]]+Dataset[[#This Row],[2025/26 From - Spending review Topic 2]]+Dataset[[#This Row],[2025/26 From - Spending review Topic 3]]+Dataset[[#This Row],[2025/26 From - Spending review Topic 4]]+Dataset[[#This Row],[2025/26 From - Other reallocations]]","v":0},{"$f":"Dataset[[#This Row],[2026/27 From - Spending review Topic 1]]+Dataset[[#This Row],[2026/27 From - Spending review Topic 2]]+Dataset[[#This Row],[2026/27 From - Spending review Topic 3]]+Dataset[[#This Row],[2026/27 From - Spending review Topic 4]]+Dataset[[#This Row],[2026/27 From - Other reallocations]]","v":0},{"$f":"Dataset[[#This Row],[2027/28 From - Spending review Topic 1]]+Dataset[[#This Row],[2027/28 From - Spending review Topic 2]]+Dataset[[#This Row],[2027/28 From - Spending review Topic 3]]+Dataset[[#This Row],[2027/28 From - Spending review Topic 4]]+Dataset[[#This Row],[2027/28 From - Other reallocations]]","v":0},{"$f":"Dataset[[#This Row],[2025/26 To - Spending review Topic 1]]+Dataset[[#This Row],[2025/26 To - Spending review Topic 2]]+Dataset[[#This Row],[2025/26 To - Spending review Topic 3]]+Dataset[[#This Row],[2025/26 To - Spending review Topic 4]]+Dataset[[#This Row],[2025/26 To - Other reallocations]]","v":0},{"$f":"Dataset[[#This Row],[2026/27 To - Spending review Topic 1]]+Dataset[[#This Row],[2026/27 To - Spending review Topic 2]]+Dataset[[#This Row],[2026/27 To - Spending review Topic 3]]+Dataset[[#This Row],[2026/27 To - Spending review Topic 4]]+Dataset[[#This Row],[2026/27 To - Other reallocations]]","v":0},{"$f":"Dataset[[#This Row],[2027/28 To - Spending review Topic 1]]+Dataset[[#This Row],[2027/28 To - Spending review Topic 2]]+Dataset[[#This Row],[2027/28 To - Spending review Topic 3]]+Dataset[[#This Row],[2027/28 To - Spending review Topic 4]]+Dataset[[#This Row],[2027/28 To - Other reallocations]]","v":0},{"$f":"Dataset[[#This Row],[2025/26 Reduction]]+Dataset[[#This Row],[2025/26 From - Total]]","v":0},{"$f":"Dataset[[#This Row],[2026/27 Reduction]]+Dataset[[#This Row],[2026/27 From - Total]]","v":0},{"$f":"Dataset[[#This Row],[2027/28 Reduction]]+Dataset[[#This Row],[2027/28 From - Total]]","v":0},{"$f":"Dataset[[#This Row],[2024/25 Reduction]]","v":0},{"$f":"SUM(Dataset[[#This Row],[2025/26 Reduction]],Dataset[[#This Row],[2025/26 From - Total]],Dataset[[#This Row],[2025/26 To - Total]])","v":0},{"$f":"SUM(Dataset[[#This Row],[2026/27 Reduction]],Dataset[[#This Row],[2026/27 From - Total]],Dataset[[#This Row],[2026/27 To - Total]])","v":0},{"$f":"SUM(Dataset[[#This Row],[2027/28 Reduction]],Dataset[[#This Row],[2027/28 From - Total]],Dataset[[#This Row],[2027/28 To - Total]])","v":0},{"$f":"Dataset[[#This Row],[2024/25 Baseline]]+Dataset[[#This Row],[2024/25 Total change]]","v":0},{"$f":"Dataset[[#This Row],[2025/26 Baseline]]+Dataset[[#This Row],[2025/26 Total change]]","v":0},{"$f":"Dataset[[#This Row],[2026/27 Baseline]]+Dataset[[#This Row],[2026/27 Total change]]","v":0},{"$f":"Dataset[[#This Row],[2027/28 Baseline]]+Dataset[[#This Row],[2027/28 Total change]]","v":0}]
["NAT|Non-transfer item","40|Inventory: Clothing material and accessories","2025_26","MTEC2025",40,2,1,51560,288,"40","02","01","051560","000288","40|02|01|000288","01","01","02","21","21","01|01|02|21|21","National","Transport","Integrated Transport Planning","Macro Sector Planning","Non-transfer item","Current","Current payments","Goods and services","Inventory: Clothing material and accessories","Inventory: Clothing material and accessories","Economic development","Economic regulation and infrastructure","NAT",0,0,0,0,0,0,null,0,0,0,0,null,null,null,null,null,null,null,null,null,null,null,null,null,null,null,null,null,null,null,null,null,null,null,null,null,null,null,null,null,null,null,null,null,null,{"$f":"Dataset[[#This Row],[2025/26 From - Spending review Topic 1]]+Dataset[[#This Row],[2025/26 From - Spending review Topic 2]]+Dataset[[#This Row],[2025/26 From - Spending review Topic 3]]+Dataset[[#This Row],[2025/26 From - Spending review Topic 4]]+Dataset[[#This Row],[2025/26 From - Other reallocations]]","v":0},{"$f":"Dataset[[#This Row],[2026/27 From - Spending review Topic 1]]+Dataset[[#This Row],[2026/27 From - Spending review Topic 2]]+Dataset[[#This Row],[2026/27 From - Spending review Topic 3]]+Dataset[[#This Row],[2026/27 From - Spending review Topic 4]]+Dataset[[#This Row],[2026/27 From - Other reallocations]]","v":0},{"$f":"Dataset[[#This Row],[2027/28 From - Spending review Topic 1]]+Dataset[[#This Row],[2027/28 From - Spending review Topic 2]]+Dataset[[#This Row],[2027/28 From - Spending review Topic 3]]+Dataset[[#This Row],[2027/28 From - Spending review Topic 4]]+Dataset[[#This Row],[2027/28 From - Other reallocations]]","v":0},{"$f":"Dataset[[#This Row],[2025/26 To - Spending review Topic 1]]+Dataset[[#This Row],[2025/26 To - Spending review Topic 2]]+Dataset[[#This Row],[2025/26 To - Spending review Topic 3]]+Dataset[[#This Row],[2025/26 To - Spending review Topic 4]]+Dataset[[#This Row],[2025/26 To - Other reallocations]]","v":0},{"$f":"Dataset[[#This Row],[2026/27 To - Spending review Topic 1]]+Dataset[[#This Row],[2026/27 To - Spending review Topic 2]]+Dataset[[#This Row],[2026/27 To - Spending review Topic 3]]+Dataset[[#This Row],[2026/27 To - Spending review Topic 4]]+Dataset[[#This Row],[2026/27 To - Other reallocations]]","v":0},{"$f":"Dataset[[#This Row],[2027/28 To - Spending review Topic 1]]+Dataset[[#This Row],[2027/28 To - Spending review Topic 2]]+Dataset[[#This Row],[2027/28 To - Spending review Topic 3]]+Dataset[[#This Row],[2027/28 To - Spending review Topic 4]]+Dataset[[#This Row],[2027/28 To - Other reallocations]]","v":0},{"$f":"Dataset[[#This Row],[2025/26 Reduction]]+Dataset[[#This Row],[2025/26 From - Total]]","v":0},{"$f":"Dataset[[#This Row],[2026/27 Reduction]]+Dataset[[#This Row],[2026/27 From - Total]]","v":0},{"$f":"Dataset[[#This Row],[2027/28 Reduction]]+Dataset[[#This Row],[2027/28 From - Total]]","v":0},{"$f":"Dataset[[#This Row],[2024/25 Reduction]]","v":0},{"$f":"SUM(Dataset[[#This Row],[2025/26 Reduction]],Dataset[[#This Row],[2025/26 From - Total]],Dataset[[#This Row],[2025/26 To - Total]])","v":0},{"$f":"SUM(Dataset[[#This Row],[2026/27 Reduction]],Dataset[[#This Row],[2026/27 From - Total]],Dataset[[#This Row],[2026/27 To - Total]])","v":0},{"$f":"SUM(Dataset[[#This Row],[2027/28 Reduction]],Dataset[[#This Row],[2027/28 From - Total]],Dataset[[#This Row],[2027/28 To - Total]])","v":0},{"$f":"Dataset[[#This Row],[2024/25 Baseline]]+Dataset[[#This Row],[2024/25 Total change]]","v":0},{"$f":"Dataset[[#This Row],[2025/26 Baseline]]+Dataset[[#This Row],[2025/26 Total change]]","v":0},{"$f":"Dataset[[#This Row],[2026/27 Baseline]]+Dataset[[#This Row],[2026/27 Total change]]","v":0},{"$f":"Dataset[[#This Row],[2027/28 Baseline]]+Dataset[[#This Row],[2027/28 Total change]]","v":0}]
["NAT|Non-transfer item","40|Medsas inventory interface","2025_26","MTEC2025",40,2,1,51568,296,"40","02","01","051568","000296","40|02|01|000296","01","01","02","29","29","01|01|02|29|29","National","Transport","Integrated Transport Planning","Macro Sector Planning","Non-transfer item","Current","Current payments","Goods and services","Medsas inventory interface","Medsas inventory interface","Economic development","Economic regulation and infrastructure","NAT",0,0,0,0,0,0,null,0,0,0,0,null,null,null,null,null,null,null,null,null,null,null,null,null,null,null,null,null,null,null,null,null,null,null,null,null,null,null,null,null,null,null,null,null,null,{"$f":"Dataset[[#This Row],[2025/26 From - Spending review Topic 1]]+Dataset[[#This Row],[2025/26 From - Spending review Topic 2]]+Dataset[[#This Row],[2025/26 From - Spending review Topic 3]]+Dataset[[#This Row],[2025/26 From - Spending review Topic 4]]+Dataset[[#This Row],[2025/26 From - Other reallocations]]","v":0},{"$f":"Dataset[[#This Row],[2026/27 From - Spending review Topic 1]]+Dataset[[#This Row],[2026/27 From - Spending review Topic 2]]+Dataset[[#This Row],[2026/27 From - Spending review Topic 3]]+Dataset[[#This Row],[2026/27 From - Spending review Topic 4]]+Dataset[[#This Row],[2026/27 From - Other reallocations]]","v":0},{"$f":"Dataset[[#This Row],[2027/28 From - Spending review Topic 1]]+Dataset[[#This Row],[2027/28 From - Spending review Topic 2]]+Dataset[[#This Row],[2027/28 From - Spending review Topic 3]]+Dataset[[#This Row],[2027/28 From - Spending review Topic 4]]+Dataset[[#This Row],[2027/28 From - Other reallocations]]","v":0},{"$f":"Dataset[[#This Row],[2025/26 To - Spending review Topic 1]]+Dataset[[#This Row],[2025/26 To - Spending review Topic 2]]+Dataset[[#This Row],[2025/26 To - Spending review Topic 3]]+Dataset[[#This Row],[2025/26 To - Spending review Topic 4]]+Dataset[[#This Row],[2025/26 To - Other reallocations]]","v":0},{"$f":"Dataset[[#This Row],[2026/27 To - Spending review Topic 1]]+Dataset[[#This Row],[2026/27 To - Spending review Topic 2]]+Dataset[[#This Row],[2026/27 To - Spending review Topic 3]]+Dataset[[#This Row],[2026/27 To - Spending review Topic 4]]+Dataset[[#This Row],[2026/27 To - Other reallocations]]","v":0},{"$f":"Dataset[[#This Row],[2027/28 To - Spending review Topic 1]]+Dataset[[#This Row],[2027/28 To - Spending review Topic 2]]+Dataset[[#This Row],[2027/28 To - Spending review Topic 3]]+Dataset[[#This Row],[2027/28 To - Spending review Topic 4]]+Dataset[[#This Row],[2027/28 To - Other reallocations]]","v":0},{"$f":"Dataset[[#This Row],[2025/26 Reduction]]+Dataset[[#This Row],[2025/26 From - Total]]","v":0},{"$f":"Dataset[[#This Row],[2026/27 Reduction]]+Dataset[[#This Row],[2026/27 From - Total]]","v":0},{"$f":"Dataset[[#This Row],[2027/28 Reduction]]+Dataset[[#This Row],[2027/28 From - Total]]","v":0},{"$f":"Dataset[[#This Row],[2024/25 Reduction]]","v":0},{"$f":"SUM(Dataset[[#This Row],[2025/26 Reduction]],Dataset[[#This Row],[2025/26 From - Total]],Dataset[[#This Row],[2025/26 To - Total]])","v":0},{"$f":"SUM(Dataset[[#This Row],[2026/27 Reduction]],Dataset[[#This Row],[2026/27 From - Total]],Dataset[[#This Row],[2026/27 To - Total]])","v":0},{"$f":"SUM(Dataset[[#This Row],[2027/28 Reduction]],Dataset[[#This Row],[2027/28 From - Total]],Dataset[[#This Row],[2027/28 To - Total]])","v":0},{"$f":"Dataset[[#This Row],[2024/25 Baseline]]+Dataset[[#This Row],[2024/25 Total change]]","v":0},{"$f":"Dataset[[#This Row],[2025/26 Baseline]]+Dataset[[#This Row],[2025/26 Total change]]","v":0},{"$f":"Dataset[[#This Row],[2026/27 Baseline]]+Dataset[[#This Row],[2026/27 Total change]]","v":0},{"$f":"Dataset[[#This Row],[2027/28 Baseline]]+Dataset[[#This Row],[2027/28 Total change]]","v":0}]
["NAT|Non-transfer item","40|Travel and subsistence","2025_26","MTEC2025",40,2,1,51576,304,"40","02","01","051576","000304","40|02|01|000304","01","01","02","37","37","01|01|02|37|37","National","Transport","Integrated Transport Planning","Macro Sector Planning","Non-transfer item","Current","Current payments","Goods and services","Travel and subsistence","Travel and subsistence","Economic development","Economic regulation and infrastructure","NAT",143,316,784,483,733,733,1667,733,764,794,830,null,null,null,null,null,null,null,null,null,null,null,null,null,null,null,null,null,null,null,null,null,null,null,null,null,null,null,null,null,null,null,null,null,null,{"$f":"Dataset[[#This Row],[2025/26 From - Spending review Topic 1]]+Dataset[[#This Row],[2025/26 From - Spending review Topic 2]]+Dataset[[#This Row],[2025/26 From - Spending review Topic 3]]+Dataset[[#This Row],[2025/26 From - Spending review Topic 4]]+Dataset[[#This Row],[2025/26 From - Other reallocations]]","v":0},{"$f":"Dataset[[#This Row],[2026/27 From - Spending review Topic 1]]+Dataset[[#This Row],[2026/27 From - Spending review Topic 2]]+Dataset[[#This Row],[2026/27 From - Spending review Topic 3]]+Dataset[[#This Row],[2026/27 From - Spending review Topic 4]]+Dataset[[#This Row],[2026/27 From - Other reallocations]]","v":0},{"$f":"Dataset[[#This Row],[2027/28 From - Spending review Topic 1]]+Dataset[[#This Row],[2027/28 From - Spending review Topic 2]]+Dataset[[#This Row],[2027/28 From - Spending review Topic 3]]+Dataset[[#This Row],[2027/28 From - Spending review Topic 4]]+Dataset[[#This Row],[2027/28 From - Other reallocations]]","v":0},{"$f":"Dataset[[#This Row],[2025/26 To - Spending review Topic 1]]+Dataset[[#This Row],[2025/26 To - Spending review Topic 2]]+Dataset[[#This Row],[2025/26 To - Spending review Topic 3]]+Dataset[[#This Row],[2025/26 To - Spending review Topic 4]]+Dataset[[#This Row],[2025/26 To - Other reallocations]]","v":0},{"$f":"Dataset[[#This Row],[2026/27 To - Spending review Topic 1]]+Dataset[[#This Row],[2026/27 To - Spending review Topic 2]]+Dataset[[#This Row],[2026/27 To - Spending review Topic 3]]+Dataset[[#This Row],[2026/27 To - Spending review Topic 4]]+Dataset[[#This Row],[2026/27 To - Other reallocations]]","v":0},{"$f":"Dataset[[#This Row],[2027/28 To - Spending review Topic 1]]+Dataset[[#This Row],[2027/28 To - Spending review Topic 2]]+Dataset[[#This Row],[2027/28 To - Spending review Topic 3]]+Dataset[[#This Row],[2027/28 To - Spending review Topic 4]]+Dataset[[#This Row],[2027/28 To - Other reallocations]]","v":0},{"$f":"Dataset[[#This Row],[2025/26 Reduction]]+Dataset[[#This Row],[2025/26 From - Total]]","v":0},{"$f":"Dataset[[#This Row],[2026/27 Reduction]]+Dataset[[#This Row],[2026/27 From - Total]]","v":0},{"$f":"Dataset[[#This Row],[2027/28 Reduction]]+Dataset[[#This Row],[2027/28 From - Total]]","v":0},{"$f":"Dataset[[#This Row],[2024/25 Reduction]]","v":0},{"$f":"SUM(Dataset[[#This Row],[2025/26 Reduction]],Dataset[[#This Row],[2025/26 From - Total]],Dataset[[#This Row],[2025/26 To - Total]])","v":0},{"$f":"SUM(Dataset[[#This Row],[2026/27 Reduction]],Dataset[[#This Row],[2026/27 From - Total]],Dataset[[#This Row],[2026/27 To - Total]])","v":0},{"$f":"SUM(Dataset[[#This Row],[2027/28 Reduction]],Dataset[[#This Row],[2027/28 From - Total]],Dataset[[#This Row],[2027/28 To - Total]])","v":0},{"$f":"Dataset[[#This Row],[2024/25 Baseline]]+Dataset[[#This Row],[2024/25 Total change]]","v":733},{"$f":"Dataset[[#This Row],[2025/26 Baseline]]+Dataset[[#This Row],[2025/26 Total change]]","v":764},{"$f":"Dataset[[#This Row],[2026/27 Baseline]]+Dataset[[#This Row],[2026/27 Total change]]","v":794},{"$f":"Dataset[[#This Row],[2027/28 Baseline]]+Dataset[[#This Row],[2027/28 Total change]]","v":830}]
["NAT|Non-transfer item","40|Rent on land","2025_26","MTEC2025",40,2,1,51581,309,"40","02","01","051581","000309","40|02|01|000309","01","01","03","42","42","01|01|03|42|42","National","Transport","Integrated Transport Planning","Macro Sector Planning","Non-transfer item","Current","Current payments","Interest and rent on land","Rent on land","Rent on land","Economic development","Economic regulation and infrastructure","NAT",0,0,0,0,0,0,null,0,0,0,0,null,null,null,null,null,null,null,null,null,null,null,null,null,null,null,null,null,null,null,null,null,null,null,null,null,null,null,null,null,null,null,null,null,null,{"$f":"Dataset[[#This Row],[2025/26 From - Spending review Topic 1]]+Dataset[[#This Row],[2025/26 From - Spending review Topic 2]]+Dataset[[#This Row],[2025/26 From - Spending review Topic 3]]+Dataset[[#This Row],[2025/26 From - Spending review Topic 4]]+Dataset[[#This Row],[2025/26 From - Other reallocations]]","v":0},{"$f":"Dataset[[#This Row],[2026/27 From - Spending review Topic 1]]+Dataset[[#This Row],[2026/27 From - Spending review Topic 2]]+Dataset[[#This Row],[2026/27 From - Spending review Topic 3]]+Dataset[[#This Row],[2026/27 From - Spending review Topic 4]]+Dataset[[#This Row],[2026/27 From - Other reallocations]]","v":0},{"$f":"Dataset[[#This Row],[2027/28 From - Spending review Topic 1]]+Dataset[[#This Row],[2027/28 From - Spending review Topic 2]]+Dataset[[#This Row],[2027/28 From - Spending review Topic 3]]+Dataset[[#This Row],[2027/28 From - Spending review Topic 4]]+Dataset[[#This Row],[2027/28 From - Other reallocations]]","v":0},{"$f":"Dataset[[#This Row],[2025/26 To - Spending review Topic 1]]+Dataset[[#This Row],[2025/26 To - Spending review Topic 2]]+Dataset[[#This Row],[2025/26 To - Spending review Topic 3]]+Dataset[[#This Row],[2025/26 To - Spending review Topic 4]]+Dataset[[#This Row],[2025/26 To - Other reallocations]]","v":0},{"$f":"Dataset[[#This Row],[2026/27 To - Spending review Topic 1]]+Dataset[[#This Row],[2026/27 To - Spending review Topic 2]]+Dataset[[#This Row],[2026/27 To - Spending review Topic 3]]+Dataset[[#This Row],[2026/27 To - Spending review Topic 4]]+Dataset[[#This Row],[2026/27 To - Other reallocations]]","v":0},{"$f":"Dataset[[#This Row],[2027/28 To - Spending review Topic 1]]+Dataset[[#This Row],[2027/28 To - Spending review Topic 2]]+Dataset[[#This Row],[2027/28 To - Spending review Topic 3]]+Dataset[[#This Row],[2027/28 To - Spending review Topic 4]]+Dataset[[#This Row],[2027/28 To - Other reallocations]]","v":0},{"$f":"Dataset[[#This Row],[2025/26 Reduction]]+Dataset[[#This Row],[2025/26 From - Total]]","v":0},{"$f":"Dataset[[#This Row],[2026/27 Reduction]]+Dataset[[#This Row],[2026/27 From - Total]]","v":0},{"$f":"Dataset[[#This Row],[2027/28 Reduction]]+Dataset[[#This Row],[2027/28 From - Total]]","v":0},{"$f":"Dataset[[#This Row],[2024/25 Reduction]]","v":0},{"$f":"SUM(Dataset[[#This Row],[2025/26 Reduction]],Dataset[[#This Row],[2025/26 From - Total]],Dataset[[#This Row],[2025/26 To - Total]])","v":0},{"$f":"SUM(Dataset[[#This Row],[2026/27 Reduction]],Dataset[[#This Row],[2026/27 From - Total]],Dataset[[#This Row],[2026/27 To - Total]])","v":0},{"$f":"SUM(Dataset[[#This Row],[2027/28 Reduction]],Dataset[[#This Row],[2027/28 From - Total]],Dataset[[#This Row],[2027/28 To - Total]])","v":0},{"$f":"Dataset[[#This Row],[2024/25 Baseline]]+Dataset[[#This Row],[2024/25 Total change]]","v":0},{"$f":"Dataset[[#This Row],[2025/26 Baseline]]+Dataset[[#This Row],[2025/26 Total change]]","v":0},{"$f":"Dataset[[#This Row],[2026/27 Baseline]]+Dataset[[#This Row],[2026/27 Total change]]","v":0},{"$f":"Dataset[[#This Row],[2027/28 Baseline]]+Dataset[[#This Row],[2027/28 Total change]]","v":0}]
["NAT|Non-transfer item","40|Biological assets","2025_26","MTEC2025",40,2,1,51589,317,"40","02","01","051589","000317","40|02|01|000317","02","03","15","60","64","02|03|15|60|64","National","Transport","Integrated Transport Planning","Macro Sector Planning","Non-transfer item","Capital","Payments for capital assets","Biological assets","Biological assets","Biological assets","Economic development","Economic regulation and infrastructure","NAT",0,0,0,0,0,0,null,0,0,0,0,null,null,null,null,null,null,null,null,null,null,null,null,null,null,null,null,null,null,null,null,null,null,null,null,null,null,null,null,null,null,null,null,null,null,{"$f":"Dataset[[#This Row],[2025/26 From - Spending review Topic 1]]+Dataset[[#This Row],[2025/26 From - Spending review Topic 2]]+Dataset[[#This Row],[2025/26 From - Spending review Topic 3]]+Dataset[[#This Row],[2025/26 From - Spending review Topic 4]]+Dataset[[#This Row],[2025/26 From - Other reallocations]]","v":0},{"$f":"Dataset[[#This Row],[2026/27 From - Spending review Topic 1]]+Dataset[[#This Row],[2026/27 From - Spending review Topic 2]]+Dataset[[#This Row],[2026/27 From - Spending review Topic 3]]+Dataset[[#This Row],[2026/27 From - Spending review Topic 4]]+Dataset[[#This Row],[2026/27 From - Other reallocations]]","v":0},{"$f":"Dataset[[#This Row],[2027/28 From - Spending review Topic 1]]+Dataset[[#This Row],[2027/28 From - Spending review Topic 2]]+Dataset[[#This Row],[2027/28 From - Spending review Topic 3]]+Dataset[[#This Row],[2027/28 From - Spending review Topic 4]]+Dataset[[#This Row],[2027/28 From - Other reallocations]]","v":0},{"$f":"Dataset[[#This Row],[2025/26 To - Spending review Topic 1]]+Dataset[[#This Row],[2025/26 To - Spending review Topic 2]]+Dataset[[#This Row],[2025/26 To - Spending review Topic 3]]+Dataset[[#This Row],[2025/26 To - Spending review Topic 4]]+Dataset[[#This Row],[2025/26 To - Other reallocations]]","v":0},{"$f":"Dataset[[#This Row],[2026/27 To - Spending review Topic 1]]+Dataset[[#This Row],[2026/27 To - Spending review Topic 2]]+Dataset[[#This Row],[2026/27 To - Spending review Topic 3]]+Dataset[[#This Row],[2026/27 To - Spending review Topic 4]]+Dataset[[#This Row],[2026/27 To - Other reallocations]]","v":0},{"$f":"Dataset[[#This Row],[2027/28 To - Spending review Topic 1]]+Dataset[[#This Row],[2027/28 To - Spending review Topic 2]]+Dataset[[#This Row],[2027/28 To - Spending review Topic 3]]+Dataset[[#This Row],[2027/28 To - Spending review Topic 4]]+Dataset[[#This Row],[2027/28 To - Other reallocations]]","v":0},{"$f":"Dataset[[#This Row],[2025/26 Reduction]]+Dataset[[#This Row],[2025/26 From - Total]]","v":0},{"$f":"Dataset[[#This Row],[2026/27 Reduction]]+Dataset[[#This Row],[2026/27 From - Total]]","v":0},{"$f":"Dataset[[#This Row],[2027/28 Reduction]]+Dataset[[#This Row],[2027/28 From - Total]]","v":0},{"$f":"Dataset[[#This Row],[2024/25 Reduction]]","v":0},{"$f":"SUM(Dataset[[#This Row],[2025/26 Reduction]],Dataset[[#This Row],[2025/26 From - Total]],Dataset[[#This Row],[2025/26 To - Total]])","v":0},{"$f":"SUM(Dataset[[#This Row],[2026/27 Reduction]],Dataset[[#This Row],[2026/27 From - Total]],Dataset[[#This Row],[2026/27 To - Total]])","v":0},{"$f":"SUM(Dataset[[#This Row],[2027/28 Reduction]],Dataset[[#This Row],[2027/28 From - Total]],Dataset[[#This Row],[2027/28 To - Total]])","v":0},{"$f":"Dataset[[#This Row],[2024/25 Baseline]]+Dataset[[#This Row],[2024/25 Total change]]","v":0},{"$f":"Dataset[[#This Row],[2025/26 Baseline]]+Dataset[[#This Row],[2025/26 Total change]]","v":0},{"$f":"Dataset[[#This Row],[2026/27 Baseline]]+Dataset[[#This Row],[2026/27 Total change]]","v":0},{"$f":"Dataset[[#This Row],[2027/28 Baseline]]+Dataset[[#This Row],[2027/28 Total change]]","v":0}]
["NAT|Non-transfer item","40|Minor assets","2025_26","MTEC2025",40,2,2,51597,325,"40","02","02","051597","000325","40|02|02|000325","01","01","02","05","05","01|01|02|05|05","National","Transport","Integrated Transport Planning","Freight Logistics","Non-transfer item","Current","Current payments","Goods and services","Minor assets","Minor assets","Economic development","Economic regulation and infrastructure","NAT",0,0,4,0,0,0,7,0,0,0,0,null,null,null,null,null,null,null,null,null,null,null,null,null,null,null,null,null,null,null,null,null,null,null,null,null,null,null,null,null,null,null,null,null,null,{"$f":"Dataset[[#This Row],[2025/26 From - Spending review Topic 1]]+Dataset[[#This Row],[2025/26 From - Spending review Topic 2]]+Dataset[[#This Row],[2025/26 From - Spending review Topic 3]]+Dataset[[#This Row],[2025/26 From - Spending review Topic 4]]+Dataset[[#This Row],[2025/26 From - Other reallocations]]","v":0},{"$f":"Dataset[[#This Row],[2026/27 From - Spending review Topic 1]]+Dataset[[#This Row],[2026/27 From - Spending review Topic 2]]+Dataset[[#This Row],[2026/27 From - Spending review Topic 3]]+Dataset[[#This Row],[2026/27 From - Spending review Topic 4]]+Dataset[[#This Row],[2026/27 From - Other reallocations]]","v":0},{"$f":"Dataset[[#This Row],[2027/28 From - Spending review Topic 1]]+Dataset[[#This Row],[2027/28 From - Spending review Topic 2]]+Dataset[[#This Row],[2027/28 From - Spending review Topic 3]]+Dataset[[#This Row],[2027/28 From - Spending review Topic 4]]+Dataset[[#This Row],[2027/28 From - Other reallocations]]","v":0},{"$f":"Dataset[[#This Row],[2025/26 To - Spending review Topic 1]]+Dataset[[#This Row],[2025/26 To - Spending review Topic 2]]+Dataset[[#This Row],[2025/26 To - Spending review Topic 3]]+Dataset[[#This Row],[2025/26 To - Spending review Topic 4]]+Dataset[[#This Row],[2025/26 To - Other reallocations]]","v":0},{"$f":"Dataset[[#This Row],[2026/27 To - Spending review Topic 1]]+Dataset[[#This Row],[2026/27 To - Spending review Topic 2]]+Dataset[[#This Row],[2026/27 To - Spending review Topic 3]]+Dataset[[#This Row],[2026/27 To - Spending review Topic 4]]+Dataset[[#This Row],[2026/27 To - Other reallocations]]","v":0},{"$f":"Dataset[[#This Row],[2027/28 To - Spending review Topic 1]]+Dataset[[#This Row],[2027/28 To - Spending review Topic 2]]+Dataset[[#This Row],[2027/28 To - Spending review Topic 3]]+Dataset[[#This Row],[2027/28 To - Spending review Topic 4]]+Dataset[[#This Row],[2027/28 To - Other reallocations]]","v":0},{"$f":"Dataset[[#This Row],[2025/26 Reduction]]+Dataset[[#This Row],[2025/26 From - Total]]","v":0},{"$f":"Dataset[[#This Row],[2026/27 Reduction]]+Dataset[[#This Row],[2026/27 From - Total]]","v":0},{"$f":"Dataset[[#This Row],[2027/28 Reduction]]+Dataset[[#This Row],[2027/28 From - Total]]","v":0},{"$f":"Dataset[[#This Row],[2024/25 Reduction]]","v":0},{"$f":"SUM(Dataset[[#This Row],[2025/26 Reduction]],Dataset[[#This Row],[2025/26 From - Total]],Dataset[[#This Row],[2025/26 To - Total]])","v":0},{"$f":"SUM(Dataset[[#This Row],[2026/27 Reduction]],Dataset[[#This Row],[2026/27 From - Total]],Dataset[[#This Row],[2026/27 To - Total]])","v":0},{"$f":"SUM(Dataset[[#This Row],[2027/28 Reduction]],Dataset[[#This Row],[2027/28 From - Total]],Dataset[[#This Row],[2027/28 To - Total]])","v":0},{"$f":"Dataset[[#This Row],[2024/25 Baseline]]+Dataset[[#This Row],[2024/25 Total change]]","v":0},{"$f":"Dataset[[#This Row],[2025/26 Baseline]]+Dataset[[#This Row],[2025/26 Total change]]","v":0},{"$f":"Dataset[[#This Row],[2026/27 Baseline]]+Dataset[[#This Row],[2026/27 Total change]]","v":0},{"$f":"Dataset[[#This Row],[2027/28 Baseline]]+Dataset[[#This Row],[2027/28 Total change]]","v":0}]
["NAT|Non-transfer item","40|Laboratory services","2025_26","MTEC2025",40,2,2,51605,333,"40","02","02","051605","000333","40|02|02|000333","01","01","02","13","13","01|01|02|13|13","National","Transport","Integrated Transport Planning","Freight Logistics","Non-transfer item","Current","Current payments","Goods and services","Laboratory services","Laboratory services","Economic development","Economic regulation and infrastructure","NAT",0,0,0,0,0,0,null,0,0,0,0,null,null,null,null,null,null,null,null,null,null,null,null,null,null,null,null,null,null,null,null,null,null,null,null,null,null,null,null,null,null,null,null,null,null,{"$f":"Dataset[[#This Row],[2025/26 From - Spending review Topic 1]]+Dataset[[#This Row],[2025/26 From - Spending review Topic 2]]+Dataset[[#This Row],[2025/26 From - Spending review Topic 3]]+Dataset[[#This Row],[2025/26 From - Spending review Topic 4]]+Dataset[[#This Row],[2025/26 From - Other reallocations]]","v":0},{"$f":"Dataset[[#This Row],[2026/27 From - Spending review Topic 1]]+Dataset[[#This Row],[2026/27 From - Spending review Topic 2]]+Dataset[[#This Row],[2026/27 From - Spending review Topic 3]]+Dataset[[#This Row],[2026/27 From - Spending review Topic 4]]+Dataset[[#This Row],[2026/27 From - Other reallocations]]","v":0},{"$f":"Dataset[[#This Row],[2027/28 From - Spending review Topic 1]]+Dataset[[#This Row],[2027/28 From - Spending review Topic 2]]+Dataset[[#This Row],[2027/28 From - Spending review Topic 3]]+Dataset[[#This Row],[2027/28 From - Spending review Topic 4]]+Dataset[[#This Row],[2027/28 From - Other reallocations]]","v":0},{"$f":"Dataset[[#This Row],[2025/26 To - Spending review Topic 1]]+Dataset[[#This Row],[2025/26 To - Spending review Topic 2]]+Dataset[[#This Row],[2025/26 To - Spending review Topic 3]]+Dataset[[#This Row],[2025/26 To - Spending review Topic 4]]+Dataset[[#This Row],[2025/26 To - Other reallocations]]","v":0},{"$f":"Dataset[[#This Row],[2026/27 To - Spending review Topic 1]]+Dataset[[#This Row],[2026/27 To - Spending review Topic 2]]+Dataset[[#This Row],[2026/27 To - Spending review Topic 3]]+Dataset[[#This Row],[2026/27 To - Spending review Topic 4]]+Dataset[[#This Row],[2026/27 To - Other reallocations]]","v":0},{"$f":"Dataset[[#This Row],[2027/28 To - Spending review Topic 1]]+Dataset[[#This Row],[2027/28 To - Spending review Topic 2]]+Dataset[[#This Row],[2027/28 To - Spending review Topic 3]]+Dataset[[#This Row],[2027/28 To - Spending review Topic 4]]+Dataset[[#This Row],[2027/28 To - Other reallocations]]","v":0},{"$f":"Dataset[[#This Row],[2025/26 Reduction]]+Dataset[[#This Row],[2025/26 From - Total]]","v":0},{"$f":"Dataset[[#This Row],[2026/27 Reduction]]+Dataset[[#This Row],[2026/27 From - Total]]","v":0},{"$f":"Dataset[[#This Row],[2027/28 Reduction]]+Dataset[[#This Row],[2027/28 From - Total]]","v":0},{"$f":"Dataset[[#This Row],[2024/25 Reduction]]","v":0},{"$f":"SUM(Dataset[[#This Row],[2025/26 Reduction]],Dataset[[#This Row],[2025/26 From - Total]],Dataset[[#This Row],[2025/26 To - Total]])","v":0},{"$f":"SUM(Dataset[[#This Row],[2026/27 Reduction]],Dataset[[#This Row],[2026/27 From - Total]],Dataset[[#This Row],[2026/27 To - Total]])","v":0},{"$f":"SUM(Dataset[[#This Row],[2027/28 Reduction]],Dataset[[#This Row],[2027/28 From - Total]],Dataset[[#This Row],[2027/28 To - Total]])","v":0},{"$f":"Dataset[[#This Row],[2024/25 Baseline]]+Dataset[[#This Row],[2024/25 Total change]]","v":0},{"$f":"Dataset[[#This Row],[2025/26 Baseline]]+Dataset[[#This Row],[2025/26 Total change]]","v":0},{"$f":"Dataset[[#This Row],[2026/27 Baseline]]+Dataset[[#This Row],[2026/27 Total change]]","v":0},{"$f":"Dataset[[#This Row],[2027/28 Baseline]]+Dataset[[#This Row],[2027/28 Total change]]","v":0}]
["NAT|Non-transfer item","40|Agency and support/outsourced services","2025_26","MTEC2025",40,2,2,51609,337,"40","02","02","051609","000337","40|02|02|000337","01","01","02","17","17","01|01|02|17|17","National","Transport","Integrated Transport Planning","Freight Logistics","Non-transfer item","Current","Current payments","Goods and services","Agency and support/outsourced services","Agency and support/outsourced services","Economic development","Economic regulation and infrastructure","NAT",0,0,0,0,0,0,null,0,0,0,0,null,null,null,null,null,null,null,null,null,null,null,null,null,null,null,null,null,null,null,null,null,null,null,null,null,null,null,null,null,null,null,null,null,null,{"$f":"Dataset[[#This Row],[2025/26 From - Spending review Topic 1]]+Dataset[[#This Row],[2025/26 From - Spending review Topic 2]]+Dataset[[#This Row],[2025/26 From - Spending review Topic 3]]+Dataset[[#This Row],[2025/26 From - Spending review Topic 4]]+Dataset[[#This Row],[2025/26 From - Other reallocations]]","v":0},{"$f":"Dataset[[#This Row],[2026/27 From - Spending review Topic 1]]+Dataset[[#This Row],[2026/27 From - Spending review Topic 2]]+Dataset[[#This Row],[2026/27 From - Spending review Topic 3]]+Dataset[[#This Row],[2026/27 From - Spending review Topic 4]]+Dataset[[#This Row],[2026/27 From - Other reallocations]]","v":0},{"$f":"Dataset[[#This Row],[2027/28 From - Spending review Topic 1]]+Dataset[[#This Row],[2027/28 From - Spending review Topic 2]]+Dataset[[#This Row],[2027/28 From - Spending review Topic 3]]+Dataset[[#This Row],[2027/28 From - Spending review Topic 4]]+Dataset[[#This Row],[2027/28 From - Other reallocations]]","v":0},{"$f":"Dataset[[#This Row],[2025/26 To - Spending review Topic 1]]+Dataset[[#This Row],[2025/26 To - Spending review Topic 2]]+Dataset[[#This Row],[2025/26 To - Spending review Topic 3]]+Dataset[[#This Row],[2025/26 To - Spending review Topic 4]]+Dataset[[#This Row],[2025/26 To - Other reallocations]]","v":0},{"$f":"Dataset[[#This Row],[2026/27 To - Spending review Topic 1]]+Dataset[[#This Row],[2026/27 To - Spending review Topic 2]]+Dataset[[#This Row],[2026/27 To - Spending review Topic 3]]+Dataset[[#This Row],[2026/27 To - Spending review Topic 4]]+Dataset[[#This Row],[2026/27 To - Other reallocations]]","v":0},{"$f":"Dataset[[#This Row],[2027/28 To - Spending review Topic 1]]+Dataset[[#This Row],[2027/28 To - Spending review Topic 2]]+Dataset[[#This Row],[2027/28 To - Spending review Topic 3]]+Dataset[[#This Row],[2027/28 To - Spending review Topic 4]]+Dataset[[#This Row],[2027/28 To - Other reallocations]]","v":0},{"$f":"Dataset[[#This Row],[2025/26 Reduction]]+Dataset[[#This Row],[2025/26 From - Total]]","v":0},{"$f":"Dataset[[#This Row],[2026/27 Reduction]]+Dataset[[#This Row],[2026/27 From - Total]]","v":0},{"$f":"Dataset[[#This Row],[2027/28 Reduction]]+Dataset[[#This Row],[2027/28 From - Total]]","v":0},{"$f":"Dataset[[#This Row],[2024/25 Reduction]]","v":0},{"$f":"SUM(Dataset[[#This Row],[2025/26 Reduction]],Dataset[[#This Row],[2025/26 From - Total]],Dataset[[#This Row],[2025/26 To - Total]])","v":0},{"$f":"SUM(Dataset[[#This Row],[2026/27 Reduction]],Dataset[[#This Row],[2026/27 From - Total]],Dataset[[#This Row],[2026/27 To - Total]])","v":0},{"$f":"SUM(Dataset[[#This Row],[2027/28 Reduction]],Dataset[[#This Row],[2027/28 From - Total]],Dataset[[#This Row],[2027/28 To - Total]])","v":0},{"$f":"Dataset[[#This Row],[2024/25 Baseline]]+Dataset[[#This Row],[2024/25 Total change]]","v":0},{"$f":"Dataset[[#This Row],[2025/26 Baseline]]+Dataset[[#This Row],[2025/26 Total change]]","v":0},{"$f":"Dataset[[#This Row],[2026/27 Baseline]]+Dataset[[#This Row],[2026/27 Total change]]","v":0},{"$f":"Dataset[[#This Row],[2027/28 Baseline]]+Dataset[[#This Row],[2027/28 Total change]]","v":0}]
["NAT|Non-transfer item","40|Medsas inventory interface","2025_26","MTEC2025",40,2,2,51621,349,"40","02","02","051621","000349","40|02|02|000349","01","01","02","29","29","01|01|02|29|29","National","Transport","Integrated Transport Planning","Freight Logistics","Non-transfer item","Current","Current payments","Goods and services","Medsas inventory interface","Medsas inventory interface","Economic development","Economic regulation and infrastructure","NAT",0,0,0,0,0,0,null,0,0,0,0,null,null,null,null,null,null,null,null,null,null,null,null,null,null,null,null,null,null,null,null,null,null,null,null,null,null,null,null,null,null,null,null,null,null,{"$f":"Dataset[[#This Row],[2025/26 From - Spending review Topic 1]]+Dataset[[#This Row],[2025/26 From - Spending review Topic 2]]+Dataset[[#This Row],[2025/26 From - Spending review Topic 3]]+Dataset[[#This Row],[2025/26 From - Spending review Topic 4]]+Dataset[[#This Row],[2025/26 From - Other reallocations]]","v":0},{"$f":"Dataset[[#This Row],[2026/27 From - Spending review Topic 1]]+Dataset[[#This Row],[2026/27 From - Spending review Topic 2]]+Dataset[[#This Row],[2026/27 From - Spending review Topic 3]]+Dataset[[#This Row],[2026/27 From - Spending review Topic 4]]+Dataset[[#This Row],[2026/27 From - Other reallocations]]","v":0},{"$f":"Dataset[[#This Row],[2027/28 From - Spending review Topic 1]]+Dataset[[#This Row],[2027/28 From - Spending review Topic 2]]+Dataset[[#This Row],[2027/28 From - Spending review Topic 3]]+Dataset[[#This Row],[2027/28 From - Spending review Topic 4]]+Dataset[[#This Row],[2027/28 From - Other reallocations]]","v":0},{"$f":"Dataset[[#This Row],[2025/26 To - Spending review Topic 1]]+Dataset[[#This Row],[2025/26 To - Spending review Topic 2]]+Dataset[[#This Row],[2025/26 To - Spending review Topic 3]]+Dataset[[#This Row],[2025/26 To - Spending review Topic 4]]+Dataset[[#This Row],[2025/26 To - Other reallocations]]","v":0},{"$f":"Dataset[[#This Row],[2026/27 To - Spending review Topic 1]]+Dataset[[#This Row],[2026/27 To - Spending review Topic 2]]+Dataset[[#This Row],[2026/27 To - Spending review Topic 3]]+Dataset[[#This Row],[2026/27 To - Spending review Topic 4]]+Dataset[[#This Row],[2026/27 To - Other reallocations]]","v":0},{"$f":"Dataset[[#This Row],[2027/28 To - Spending review Topic 1]]+Dataset[[#This Row],[2027/28 To - Spending review Topic 2]]+Dataset[[#This Row],[2027/28 To - Spending review Topic 3]]+Dataset[[#This Row],[2027/28 To - Spending review Topic 4]]+Dataset[[#This Row],[2027/28 To - Other reallocations]]","v":0},{"$f":"Dataset[[#This Row],[2025/26 Reduction]]+Dataset[[#This Row],[2025/26 From - Total]]","v":0},{"$f":"Dataset[[#This Row],[2026/27 Reduction]]+Dataset[[#This Row],[2026/27 From - Total]]","v":0},{"$f":"Dataset[[#This Row],[2027/28 Reduction]]+Dataset[[#This Row],[2027/28 From - Total]]","v":0},{"$f":"Dataset[[#This Row],[2024/25 Reduction]]","v":0},{"$f":"SUM(Dataset[[#This Row],[2025/26 Reduction]],Dataset[[#This Row],[2025/26 From - Total]],Dataset[[#This Row],[2025/26 To - Total]])","v":0},{"$f":"SUM(Dataset[[#This Row],[2026/27 Reduction]],Dataset[[#This Row],[2026/27 From - Total]],Dataset[[#This Row],[2026/27 To - Total]])","v":0},{"$f":"SUM(Dataset[[#This Row],[2027/28 Reduction]],Dataset[[#This Row],[2027/28 From - Total]],Dataset[[#This Row],[2027/28 To - Total]])","v":0},{"$f":"Dataset[[#This Row],[2024/25 Baseline]]+Dataset[[#This Row],[2024/25 Total change]]","v":0},{"$f":"Dataset[[#This Row],[2025/26 Baseline]]+Dataset[[#This Row],[2025/26 Total change]]","v":0},{"$f":"Dataset[[#This Row],[2026/27 Baseline]]+Dataset[[#This Row],[2026/27 Total change]]","v":0},{"$f":"Dataset[[#This Row],[2027/28 Baseline]]+Dataset[[#This Row],[2027/28 Total change]]","v":0}]
["NAT|Non-transfer item","40|Inventory: Other supplies","2025_26","MTEC2025",40,2,2,51622,350,"40","02","02","051622","000350","40|02|02|000350","01","01","02","30","30","01|01|02|30|30","National","Transport","Integrated Transport Planning","Freight Logistics","Non-transfer item","Current","Current payments","Goods and services","Inventory: Other supplies","Inventory: Other supplies","Economic development","Economic regulation and infrastructure","NAT",0,0,0,0,0,0,null,0,0,0,0,null,null,null,null,null,null,null,null,null,null,null,null,null,null,null,null,null,null,null,null,null,null,null,null,null,null,null,null,null,null,null,null,null,null,{"$f":"Dataset[[#This Row],[2025/26 From - Spending review Topic 1]]+Dataset[[#This Row],[2025/26 From - Spending review Topic 2]]+Dataset[[#This Row],[2025/26 From - Spending review Topic 3]]+Dataset[[#This Row],[2025/26 From - Spending review Topic 4]]+Dataset[[#This Row],[2025/26 From - Other reallocations]]","v":0},{"$f":"Dataset[[#This Row],[2026/27 From - Spending review Topic 1]]+Dataset[[#This Row],[2026/27 From - Spending review Topic 2]]+Dataset[[#This Row],[2026/27 From - Spending review Topic 3]]+Dataset[[#This Row],[2026/27 From - Spending review Topic 4]]+Dataset[[#This Row],[2026/27 From - Other reallocations]]","v":0},{"$f":"Dataset[[#This Row],[2027/28 From - Spending review Topic 1]]+Dataset[[#This Row],[2027/28 From - Spending review Topic 2]]+Dataset[[#This Row],[2027/28 From - Spending review Topic 3]]+Dataset[[#This Row],[2027/28 From - Spending review Topic 4]]+Dataset[[#This Row],[2027/28 From - Other reallocations]]","v":0},{"$f":"Dataset[[#This Row],[2025/26 To - Spending review Topic 1]]+Dataset[[#This Row],[2025/26 To - Spending review Topic 2]]+Dataset[[#This Row],[2025/26 To - Spending review Topic 3]]+Dataset[[#This Row],[2025/26 To - Spending review Topic 4]]+Dataset[[#This Row],[2025/26 To - Other reallocations]]","v":0},{"$f":"Dataset[[#This Row],[2026/27 To - Spending review Topic 1]]+Dataset[[#This Row],[2026/27 To - Spending review Topic 2]]+Dataset[[#This Row],[2026/27 To - Spending review Topic 3]]+Dataset[[#This Row],[2026/27 To - Spending review Topic 4]]+Dataset[[#This Row],[2026/27 To - Other reallocations]]","v":0},{"$f":"Dataset[[#This Row],[2027/28 To - Spending review Topic 1]]+Dataset[[#This Row],[2027/28 To - Spending review Topic 2]]+Dataset[[#This Row],[2027/28 To - Spending review Topic 3]]+Dataset[[#This Row],[2027/28 To - Spending review Topic 4]]+Dataset[[#This Row],[2027/28 To - Other reallocations]]","v":0},{"$f":"Dataset[[#This Row],[2025/26 Reduction]]+Dataset[[#This Row],[2025/26 From - Total]]","v":0},{"$f":"Dataset[[#This Row],[2026/27 Reduction]]+Dataset[[#This Row],[2026/27 From - Total]]","v":0},{"$f":"Dataset[[#This Row],[2027/28 Reduction]]+Dataset[[#This Row],[2027/28 From - Total]]","v":0},{"$f":"Dataset[[#This Row],[2024/25 Reduction]]","v":0},{"$f":"SUM(Dataset[[#This Row],[2025/26 Reduction]],Dataset[[#This Row],[2025/26 From - Total]],Dataset[[#This Row],[2025/26 To - Total]])","v":0},{"$f":"SUM(Dataset[[#This Row],[2026/27 Reduction]],Dataset[[#This Row],[2026/27 From - Total]],Dataset[[#This Row],[2026/27 To - Total]])","v":0},{"$f":"SUM(Dataset[[#This Row],[2027/28 Reduction]],Dataset[[#This Row],[2027/28 From - Total]],Dataset[[#This Row],[2027/28 To - Total]])","v":0},{"$f":"Dataset[[#This Row],[2024/25 Baseline]]+Dataset[[#This Row],[2024/25 Total change]]","v":0},{"$f":"Dataset[[#This Row],[2025/26 Baseline]]+Dataset[[#This Row],[2025/26 Total change]]","v":0},{"$f":"Dataset[[#This Row],[2026/27 Baseline]]+Dataset[[#This Row],[2026/27 Total change]]","v":0},{"$f":"Dataset[[#This Row],[2027/28 Baseline]]+Dataset[[#This Row],[2027/28 Total change]]","v":0}]
["NAT|Non-transfer item","40|Training and development","2025_26","MTEC2025",40,2,2,51630,358,"40","02","02","051630","000358","40|02|02|000358","01","01","02","38","38","01|01|02|38|38","National","Transport","Integrated Transport Planning","Freight Logistics","Non-transfer item","Current","Current payments","Goods and services","Training and development","Training and development","Economic development","Economic regulation and infrastructure","NAT",74,118,45,70,70,70,null,20,20,21,22,null,null,null,null,null,null,null,null,null,null,null,null,null,null,null,null,null,null,null,null,null,null,null,null,null,null,null,null,null,null,null,null,null,null,{"$f":"Dataset[[#This Row],[2025/26 From - Spending review Topic 1]]+Dataset[[#This Row],[2025/26 From - Spending review Topic 2]]+Dataset[[#This Row],[2025/26 From - Spending review Topic 3]]+Dataset[[#This Row],[2025/26 From - Spending review Topic 4]]+Dataset[[#This Row],[2025/26 From - Other reallocations]]","v":0},{"$f":"Dataset[[#This Row],[2026/27 From - Spending review Topic 1]]+Dataset[[#This Row],[2026/27 From - Spending review Topic 2]]+Dataset[[#This Row],[2026/27 From - Spending review Topic 3]]+Dataset[[#This Row],[2026/27 From - Spending review Topic 4]]+Dataset[[#This Row],[2026/27 From - Other reallocations]]","v":0},{"$f":"Dataset[[#This Row],[2027/28 From - Spending review Topic 1]]+Dataset[[#This Row],[2027/28 From - Spending review Topic 2]]+Dataset[[#This Row],[2027/28 From - Spending review Topic 3]]+Dataset[[#This Row],[2027/28 From - Spending review Topic 4]]+Dataset[[#This Row],[2027/28 From - Other reallocations]]","v":0},{"$f":"Dataset[[#This Row],[2025/26 To - Spending review Topic 1]]+Dataset[[#This Row],[2025/26 To - Spending review Topic 2]]+Dataset[[#This Row],[2025/26 To - Spending review Topic 3]]+Dataset[[#This Row],[2025/26 To - Spending review Topic 4]]+Dataset[[#This Row],[2025/26 To - Other reallocations]]","v":0},{"$f":"Dataset[[#This Row],[2026/27 To - Spending review Topic 1]]+Dataset[[#This Row],[2026/27 To - Spending review Topic 2]]+Dataset[[#This Row],[2026/27 To - Spending review Topic 3]]+Dataset[[#This Row],[2026/27 To - Spending review Topic 4]]+Dataset[[#This Row],[2026/27 To - Other reallocations]]","v":0},{"$f":"Dataset[[#This Row],[2027/28 To - Spending review Topic 1]]+Dataset[[#This Row],[2027/28 To - Spending review Topic 2]]+Dataset[[#This Row],[2027/28 To - Spending review Topic 3]]+Dataset[[#This Row],[2027/28 To - Spending review Topic 4]]+Dataset[[#This Row],[2027/28 To - Other reallocations]]","v":0},{"$f":"Dataset[[#This Row],[2025/26 Reduction]]+Dataset[[#This Row],[2025/26 From - Total]]","v":0},{"$f":"Dataset[[#This Row],[2026/27 Reduction]]+Dataset[[#This Row],[2026/27 From - Total]]","v":0},{"$f":"Dataset[[#This Row],[2027/28 Reduction]]+Dataset[[#This Row],[2027/28 From - Total]]","v":0},{"$f":"Dataset[[#This Row],[2024/25 Reduction]]","v":0},{"$f":"SUM(Dataset[[#This Row],[2025/26 Reduction]],Dataset[[#This Row],[2025/26 From - Total]],Dataset[[#This Row],[2025/26 To - Total]])","v":0},{"$f":"SUM(Dataset[[#This Row],[2026/27 Reduction]],Dataset[[#This Row],[2026/27 From - Total]],Dataset[[#This Row],[2026/27 To - Total]])","v":0},{"$f":"SUM(Dataset[[#This Row],[2027/28 Reduction]],Dataset[[#This Row],[2027/28 From - Total]],Dataset[[#This Row],[2027/28 To - Total]])","v":0},{"$f":"Dataset[[#This Row],[2024/25 Baseline]]+Dataset[[#This Row],[2024/25 Total change]]","v":20},{"$f":"Dataset[[#This Row],[2025/26 Baseline]]+Dataset[[#This Row],[2025/26 Total change]]","v":20},{"$f":"Dataset[[#This Row],[2026/27 Baseline]]+Dataset[[#This Row],[2026/27 Total change]]","v":21},{"$f":"Dataset[[#This Row],[2027/28 Baseline]]+Dataset[[#This Row],[2027/28 Total change]]","v":22}]
["NAT|Non-transfer item","40|Biological assets","2025_26","MTEC2025",40,2,2,51642,370,"40","02","02","051642","000370","40|02|02|000370","02","03","15","60","64","02|03|15|60|64","National","Transport","Integrated Transport Planning","Freight Logistics","Non-transfer item","Capital","Payments for capital assets","Biological assets","Biological assets","Biological assets","Economic development","Economic regulation and infrastructure","NAT",0,0,0,0,0,0,null,0,0,0,0,null,null,null,null,null,null,null,null,null,null,null,null,null,null,null,null,null,null,null,null,null,null,null,null,null,null,null,null,null,null,null,null,null,null,{"$f":"Dataset[[#This Row],[2025/26 From - Spending review Topic 1]]+Dataset[[#This Row],[2025/26 From - Spending review Topic 2]]+Dataset[[#This Row],[2025/26 From - Spending review Topic 3]]+Dataset[[#This Row],[2025/26 From - Spending review Topic 4]]+Dataset[[#This Row],[2025/26 From - Other reallocations]]","v":0},{"$f":"Dataset[[#This Row],[2026/27 From - Spending review Topic 1]]+Dataset[[#This Row],[2026/27 From - Spending review Topic 2]]+Dataset[[#This Row],[2026/27 From - Spending review Topic 3]]+Dataset[[#This Row],[2026/27 From - Spending review Topic 4]]+Dataset[[#This Row],[2026/27 From - Other reallocations]]","v":0},{"$f":"Dataset[[#This Row],[2027/28 From - Spending review Topic 1]]+Dataset[[#This Row],[2027/28 From - Spending review Topic 2]]+Dataset[[#This Row],[2027/28 From - Spending review Topic 3]]+Dataset[[#This Row],[2027/28 From - Spending review Topic 4]]+Dataset[[#This Row],[2027/28 From - Other reallocations]]","v":0},{"$f":"Dataset[[#This Row],[2025/26 To - Spending review Topic 1]]+Dataset[[#This Row],[2025/26 To - Spending review Topic 2]]+Dataset[[#This Row],[2025/26 To - Spending review Topic 3]]+Dataset[[#This Row],[2025/26 To - Spending review Topic 4]]+Dataset[[#This Row],[2025/26 To - Other reallocations]]","v":0},{"$f":"Dataset[[#This Row],[2026/27 To - Spending review Topic 1]]+Dataset[[#This Row],[2026/27 To - Spending review Topic 2]]+Dataset[[#This Row],[2026/27 To - Spending review Topic 3]]+Dataset[[#This Row],[2026/27 To - Spending review Topic 4]]+Dataset[[#This Row],[2026/27 To - Other reallocations]]","v":0},{"$f":"Dataset[[#This Row],[2027/28 To - Spending review Topic 1]]+Dataset[[#This Row],[2027/28 To - Spending review Topic 2]]+Dataset[[#This Row],[2027/28 To - Spending review Topic 3]]+Dataset[[#This Row],[2027/28 To - Spending review Topic 4]]+Dataset[[#This Row],[2027/28 To - Other reallocations]]","v":0},{"$f":"Dataset[[#This Row],[2025/26 Reduction]]+Dataset[[#This Row],[2025/26 From - Total]]","v":0},{"$f":"Dataset[[#This Row],[2026/27 Reduction]]+Dataset[[#This Row],[2026/27 From - Total]]","v":0},{"$f":"Dataset[[#This Row],[2027/28 Reduction]]+Dataset[[#This Row],[2027/28 From - Total]]","v":0},{"$f":"Dataset[[#This Row],[2024/25 Reduction]]","v":0},{"$f":"SUM(Dataset[[#This Row],[2025/26 Reduction]],Dataset[[#This Row],[2025/26 From - Total]],Dataset[[#This Row],[2025/26 To - Total]])","v":0},{"$f":"SUM(Dataset[[#This Row],[2026/27 Reduction]],Dataset[[#This Row],[2026/27 From - Total]],Dataset[[#This Row],[2026/27 To - Total]])","v":0},{"$f":"SUM(Dataset[[#This Row],[2027/28 Reduction]],Dataset[[#This Row],[2027/28 From - Total]],Dataset[[#This Row],[2027/28 To - Total]])","v":0},{"$f":"Dataset[[#This Row],[2024/25 Baseline]]+Dataset[[#This Row],[2024/25 Total change]]","v":0},{"$f":"Dataset[[#This Row],[2025/26 Baseline]]+Dataset[[#This Row],[2025/26 Total change]]","v":0},{"$f":"Dataset[[#This Row],[2026/27 Baseline]]+Dataset[[#This Row],[2026/27 Total change]]","v":0},{"$f":"Dataset[[#This Row],[2027/28 Baseline]]+Dataset[[#This Row],[2027/28 Total change]]","v":0}]
["NAT|Non-transfer item","40|Land and sub-soil assets","2025_26","MTEC2025",40,2,2,51643,371,"40","02","02","051643","000371","40|02|02|000371","02","03","16","61","65","02|03|16|61|65","National","Transport","Integrated Transport Planning","Freight Logistics","Non-transfer item","Capital","Payments for capital assets","Land and sub-soil assets","Land and sub-soil assets","Land and sub-soil assets","Economic development","Economic regulation and infrastructure","NAT",0,0,0,0,0,0,null,0,0,0,0,null,null,null,null,null,null,null,null,null,null,null,null,null,null,null,null,null,null,null,null,null,null,null,null,null,null,null,null,null,null,null,null,null,null,{"$f":"Dataset[[#This Row],[2025/26 From - Spending review Topic 1]]+Dataset[[#This Row],[2025/26 From - Spending review Topic 2]]+Dataset[[#This Row],[2025/26 From - Spending review Topic 3]]+Dataset[[#This Row],[2025/26 From - Spending review Topic 4]]+Dataset[[#This Row],[2025/26 From - Other reallocations]]","v":0},{"$f":"Dataset[[#This Row],[2026/27 From - Spending review Topic 1]]+Dataset[[#This Row],[2026/27 From - Spending review Topic 2]]+Dataset[[#This Row],[2026/27 From - Spending review Topic 3]]+Dataset[[#This Row],[2026/27 From - Spending review Topic 4]]+Dataset[[#This Row],[2026/27 From - Other reallocations]]","v":0},{"$f":"Dataset[[#This Row],[2027/28 From - Spending review Topic 1]]+Dataset[[#This Row],[2027/28 From - Spending review Topic 2]]+Dataset[[#This Row],[2027/28 From - Spending review Topic 3]]+Dataset[[#This Row],[2027/28 From - Spending review Topic 4]]+Dataset[[#This Row],[2027/28 From - Other reallocations]]","v":0},{"$f":"Dataset[[#This Row],[2025/26 To - Spending review Topic 1]]+Dataset[[#This Row],[2025/26 To - Spending review Topic 2]]+Dataset[[#This Row],[2025/26 To - Spending review Topic 3]]+Dataset[[#This Row],[2025/26 To - Spending review Topic 4]]+Dataset[[#This Row],[2025/26 To - Other reallocations]]","v":0},{"$f":"Dataset[[#This Row],[2026/27 To - Spending review Topic 1]]+Dataset[[#This Row],[2026/27 To - Spending review Topic 2]]+Dataset[[#This Row],[2026/27 To - Spending review Topic 3]]+Dataset[[#This Row],[2026/27 To - Spending review Topic 4]]+Dataset[[#This Row],[2026/27 To - Other reallocations]]","v":0},{"$f":"Dataset[[#This Row],[2027/28 To - Spending review Topic 1]]+Dataset[[#This Row],[2027/28 To - Spending review Topic 2]]+Dataset[[#This Row],[2027/28 To - Spending review Topic 3]]+Dataset[[#This Row],[2027/28 To - Spending review Topic 4]]+Dataset[[#This Row],[2027/28 To - Other reallocations]]","v":0},{"$f":"Dataset[[#This Row],[2025/26 Reduction]]+Dataset[[#This Row],[2025/26 From - Total]]","v":0},{"$f":"Dataset[[#This Row],[2026/27 Reduction]]+Dataset[[#This Row],[2026/27 From - Total]]","v":0},{"$f":"Dataset[[#This Row],[2027/28 Reduction]]+Dataset[[#This Row],[2027/28 From - Total]]","v":0},{"$f":"Dataset[[#This Row],[2024/25 Reduction]]","v":0},{"$f":"SUM(Dataset[[#This Row],[2025/26 Reduction]],Dataset[[#This Row],[2025/26 From - Total]],Dataset[[#This Row],[2025/26 To - Total]])","v":0},{"$f":"SUM(Dataset[[#This Row],[2026/27 Reduction]],Dataset[[#This Row],[2026/27 From - Total]],Dataset[[#This Row],[2026/27 To - Total]])","v":0},{"$f":"SUM(Dataset[[#This Row],[2027/28 Reduction]],Dataset[[#This Row],[2027/28 From - Total]],Dataset[[#This Row],[2027/28 To - Total]])","v":0},{"$f":"Dataset[[#This Row],[2024/25 Baseline]]+Dataset[[#This Row],[2024/25 Total change]]","v":0},{"$f":"Dataset[[#This Row],[2025/26 Baseline]]+Dataset[[#This Row],[2025/26 Total change]]","v":0},{"$f":"Dataset[[#This Row],[2026/27 Baseline]]+Dataset[[#This Row],[2026/27 Total change]]","v":0},{"$f":"Dataset[[#This Row],[2027/28 Baseline]]+Dataset[[#This Row],[2027/28 Total change]]","v":0}]
["NAT|Non-transfer item","40|Computer services","2025_26","MTEC2025",40,2,3,51655,383,"40","02","03","051655","000383","40|02|03|000383","01","01","02","10","10","01|01|02|10|10","National","Transport","Integrated Transport Planning","Modelling and Economic Analysis","Non-transfer item","Current","Current payments","Goods and services","Computer services","Computer services","Economic development","Economic regulation and infrastructure","NAT",0,0,0,0,0,0,null,0,0,0,0,null,null,null,null,null,null,null,null,null,null,null,null,null,null,null,null,null,null,null,null,null,null,null,null,null,null,null,null,null,null,null,null,null,null,{"$f":"Dataset[[#This Row],[2025/26 From - Spending review Topic 1]]+Dataset[[#This Row],[2025/26 From - Spending review Topic 2]]+Dataset[[#This Row],[2025/26 From - Spending review Topic 3]]+Dataset[[#This Row],[2025/26 From - Spending review Topic 4]]+Dataset[[#This Row],[2025/26 From - Other reallocations]]","v":0},{"$f":"Dataset[[#This Row],[2026/27 From - Spending review Topic 1]]+Dataset[[#This Row],[2026/27 From - Spending review Topic 2]]+Dataset[[#This Row],[2026/27 From - Spending review Topic 3]]+Dataset[[#This Row],[2026/27 From - Spending review Topic 4]]+Dataset[[#This Row],[2026/27 From - Other reallocations]]","v":0},{"$f":"Dataset[[#This Row],[2027/28 From - Spending review Topic 1]]+Dataset[[#This Row],[2027/28 From - Spending review Topic 2]]+Dataset[[#This Row],[2027/28 From - Spending review Topic 3]]+Dataset[[#This Row],[2027/28 From - Spending review Topic 4]]+Dataset[[#This Row],[2027/28 From - Other reallocations]]","v":0},{"$f":"Dataset[[#This Row],[2025/26 To - Spending review Topic 1]]+Dataset[[#This Row],[2025/26 To - Spending review Topic 2]]+Dataset[[#This Row],[2025/26 To - Spending review Topic 3]]+Dataset[[#This Row],[2025/26 To - Spending review Topic 4]]+Dataset[[#This Row],[2025/26 To - Other reallocations]]","v":0},{"$f":"Dataset[[#This Row],[2026/27 To - Spending review Topic 1]]+Dataset[[#This Row],[2026/27 To - Spending review Topic 2]]+Dataset[[#This Row],[2026/27 To - Spending review Topic 3]]+Dataset[[#This Row],[2026/27 To - Spending review Topic 4]]+Dataset[[#This Row],[2026/27 To - Other reallocations]]","v":0},{"$f":"Dataset[[#This Row],[2027/28 To - Spending review Topic 1]]+Dataset[[#This Row],[2027/28 To - Spending review Topic 2]]+Dataset[[#This Row],[2027/28 To - Spending review Topic 3]]+Dataset[[#This Row],[2027/28 To - Spending review Topic 4]]+Dataset[[#This Row],[2027/28 To - Other reallocations]]","v":0},{"$f":"Dataset[[#This Row],[2025/26 Reduction]]+Dataset[[#This Row],[2025/26 From - Total]]","v":0},{"$f":"Dataset[[#This Row],[2026/27 Reduction]]+Dataset[[#This Row],[2026/27 From - Total]]","v":0},{"$f":"Dataset[[#This Row],[2027/28 Reduction]]+Dataset[[#This Row],[2027/28 From - Total]]","v":0},{"$f":"Dataset[[#This Row],[2024/25 Reduction]]","v":0},{"$f":"SUM(Dataset[[#This Row],[2025/26 Reduction]],Dataset[[#This Row],[2025/26 From - Total]],Dataset[[#This Row],[2025/26 To - Total]])","v":0},{"$f":"SUM(Dataset[[#This Row],[2026/27 Reduction]],Dataset[[#This Row],[2026/27 From - Total]],Dataset[[#This Row],[2026/27 To - Total]])","v":0},{"$f":"SUM(Dataset[[#This Row],[2027/28 Reduction]],Dataset[[#This Row],[2027/28 From - Total]],Dataset[[#This Row],[2027/28 To - Total]])","v":0},{"$f":"Dataset[[#This Row],[2024/25 Baseline]]+Dataset[[#This Row],[2024/25 Total change]]","v":0},{"$f":"Dataset[[#This Row],[2025/26 Baseline]]+Dataset[[#This Row],[2025/26 Total change]]","v":0},{"$f":"Dataset[[#This Row],[2026/27 Baseline]]+Dataset[[#This Row],[2026/27 Total change]]","v":0},{"$f":"Dataset[[#This Row],[2027/28 Baseline]]+Dataset[[#This Row],[2027/28 Total change]]","v":0}]
["NAT|Non-transfer item","40|Entertainment","2025_26","MTEC2025",40,2,3,51663,391,"40","02","03","051663","000391","40|02|03|000391","01","01","02","18","18","01|01|02|18|18","National","Transport","Integrated Transport Planning","Modelling and Economic Analysis","Non-transfer item","Current","Current payments","Goods and services","Entertainment","Entertainment","Economic development","Economic regulation and infrastructure","NAT",0,0,1,0,0,0,0,0,0,0,0,null,null,null,null,null,null,null,null,null,null,null,null,null,null,null,null,null,null,null,null,null,null,null,null,null,null,null,null,null,null,null,null,null,null,{"$f":"Dataset[[#This Row],[2025/26 From - Spending review Topic 1]]+Dataset[[#This Row],[2025/26 From - Spending review Topic 2]]+Dataset[[#This Row],[2025/26 From - Spending review Topic 3]]+Dataset[[#This Row],[2025/26 From - Spending review Topic 4]]+Dataset[[#This Row],[2025/26 From - Other reallocations]]","v":0},{"$f":"Dataset[[#This Row],[2026/27 From - Spending review Topic 1]]+Dataset[[#This Row],[2026/27 From - Spending review Topic 2]]+Dataset[[#This Row],[2026/27 From - Spending review Topic 3]]+Dataset[[#This Row],[2026/27 From - Spending review Topic 4]]+Dataset[[#This Row],[2026/27 From - Other reallocations]]","v":0},{"$f":"Dataset[[#This Row],[2027/28 From - Spending review Topic 1]]+Dataset[[#This Row],[2027/28 From - Spending review Topic 2]]+Dataset[[#This Row],[2027/28 From - Spending review Topic 3]]+Dataset[[#This Row],[2027/28 From - Spending review Topic 4]]+Dataset[[#This Row],[2027/28 From - Other reallocations]]","v":0},{"$f":"Dataset[[#This Row],[2025/26 To - Spending review Topic 1]]+Dataset[[#This Row],[2025/26 To - Spending review Topic 2]]+Dataset[[#This Row],[2025/26 To - Spending review Topic 3]]+Dataset[[#This Row],[2025/26 To - Spending review Topic 4]]+Dataset[[#This Row],[2025/26 To - Other reallocations]]","v":0},{"$f":"Dataset[[#This Row],[2026/27 To - Spending review Topic 1]]+Dataset[[#This Row],[2026/27 To - Spending review Topic 2]]+Dataset[[#This Row],[2026/27 To - Spending review Topic 3]]+Dataset[[#This Row],[2026/27 To - Spending review Topic 4]]+Dataset[[#This Row],[2026/27 To - Other reallocations]]","v":0},{"$f":"Dataset[[#This Row],[2027/28 To - Spending review Topic 1]]+Dataset[[#This Row],[2027/28 To - Spending review Topic 2]]+Dataset[[#This Row],[2027/28 To - Spending review Topic 3]]+Dataset[[#This Row],[2027/28 To - Spending review Topic 4]]+Dataset[[#This Row],[2027/28 To - Other reallocations]]","v":0},{"$f":"Dataset[[#This Row],[2025/26 Reduction]]+Dataset[[#This Row],[2025/26 From - Total]]","v":0},{"$f":"Dataset[[#This Row],[2026/27 Reduction]]+Dataset[[#This Row],[2026/27 From - Total]]","v":0},{"$f":"Dataset[[#This Row],[2027/28 Reduction]]+Dataset[[#This Row],[2027/28 From - Total]]","v":0},{"$f":"Dataset[[#This Row],[2024/25 Reduction]]","v":0},{"$f":"SUM(Dataset[[#This Row],[2025/26 Reduction]],Dataset[[#This Row],[2025/26 From - Total]],Dataset[[#This Row],[2025/26 To - Total]])","v":0},{"$f":"SUM(Dataset[[#This Row],[2026/27 Reduction]],Dataset[[#This Row],[2026/27 From - Total]],Dataset[[#This Row],[2026/27 To - Total]])","v":0},{"$f":"SUM(Dataset[[#This Row],[2027/28 Reduction]],Dataset[[#This Row],[2027/28 From - Total]],Dataset[[#This Row],[2027/28 To - Total]])","v":0},{"$f":"Dataset[[#This Row],[2024/25 Baseline]]+Dataset[[#This Row],[2024/25 Total change]]","v":0},{"$f":"Dataset[[#This Row],[2025/26 Baseline]]+Dataset[[#This Row],[2025/26 Total change]]","v":0},{"$f":"Dataset[[#This Row],[2026/27 Baseline]]+Dataset[[#This Row],[2026/27 Total change]]","v":0},{"$f":"Dataset[[#This Row],[2027/28 Baseline]]+Dataset[[#This Row],[2027/28 Total change]]","v":0}]
["NAT|Non-transfer item","40|Fleet services (including government motor transport)","2025_26","MTEC2025",40,2,3,51664,392,"40","02","03","051664","000392","40|02|03|000392","01","01","02","19","19","01|01|02|19|19","National","Transport","Integrated Transport Planning","Modelling and Economic Analysis","Non-transfer item","Current","Current payments","Goods and services","Fleet services (including government motor transport)","Fleet services (including government motor transport)","Economic development","Economic regulation and infrastructure","NAT",0,0,0,0,0,0,null,0,0,0,0,null,null,null,null,null,null,null,null,null,null,null,null,null,null,null,null,null,null,null,null,null,null,null,null,null,null,null,null,null,null,null,null,null,null,{"$f":"Dataset[[#This Row],[2025/26 From - Spending review Topic 1]]+Dataset[[#This Row],[2025/26 From - Spending review Topic 2]]+Dataset[[#This Row],[2025/26 From - Spending review Topic 3]]+Dataset[[#This Row],[2025/26 From - Spending review Topic 4]]+Dataset[[#This Row],[2025/26 From - Other reallocations]]","v":0},{"$f":"Dataset[[#This Row],[2026/27 From - Spending review Topic 1]]+Dataset[[#This Row],[2026/27 From - Spending review Topic 2]]+Dataset[[#This Row],[2026/27 From - Spending review Topic 3]]+Dataset[[#This Row],[2026/27 From - Spending review Topic 4]]+Dataset[[#This Row],[2026/27 From - Other reallocations]]","v":0},{"$f":"Dataset[[#This Row],[2027/28 From - Spending review Topic 1]]+Dataset[[#This Row],[2027/28 From - Spending review Topic 2]]+Dataset[[#This Row],[2027/28 From - Spending review Topic 3]]+Dataset[[#This Row],[2027/28 From - Spending review Topic 4]]+Dataset[[#This Row],[2027/28 From - Other reallocations]]","v":0},{"$f":"Dataset[[#This Row],[2025/26 To - Spending review Topic 1]]+Dataset[[#This Row],[2025/26 To - Spending review Topic 2]]+Dataset[[#This Row],[2025/26 To - Spending review Topic 3]]+Dataset[[#This Row],[2025/26 To - Spending review Topic 4]]+Dataset[[#This Row],[2025/26 To - Other reallocations]]","v":0},{"$f":"Dataset[[#This Row],[2026/27 To - Spending review Topic 1]]+Dataset[[#This Row],[2026/27 To - Spending review Topic 2]]+Dataset[[#This Row],[2026/27 To - Spending review Topic 3]]+Dataset[[#This Row],[2026/27 To - Spending review Topic 4]]+Dataset[[#This Row],[2026/27 To - Other reallocations]]","v":0},{"$f":"Dataset[[#This Row],[2027/28 To - Spending review Topic 1]]+Dataset[[#This Row],[2027/28 To - Spending review Topic 2]]+Dataset[[#This Row],[2027/28 To - Spending review Topic 3]]+Dataset[[#This Row],[2027/28 To - Spending review Topic 4]]+Dataset[[#This Row],[2027/28 To - Other reallocations]]","v":0},{"$f":"Dataset[[#This Row],[2025/26 Reduction]]+Dataset[[#This Row],[2025/26 From - Total]]","v":0},{"$f":"Dataset[[#This Row],[2026/27 Reduction]]+Dataset[[#This Row],[2026/27 From - Total]]","v":0},{"$f":"Dataset[[#This Row],[2027/28 Reduction]]+Dataset[[#This Row],[2027/28 From - Total]]","v":0},{"$f":"Dataset[[#This Row],[2024/25 Reduction]]","v":0},{"$f":"SUM(Dataset[[#This Row],[2025/26 Reduction]],Dataset[[#This Row],[2025/26 From - Total]],Dataset[[#This Row],[2025/26 To - Total]])","v":0},{"$f":"SUM(Dataset[[#This Row],[2026/27 Reduction]],Dataset[[#This Row],[2026/27 From - Total]],Dataset[[#This Row],[2026/27 To - Total]])","v":0},{"$f":"SUM(Dataset[[#This Row],[2027/28 Reduction]],Dataset[[#This Row],[2027/28 From - Total]],Dataset[[#This Row],[2027/28 To - Total]])","v":0},{"$f":"Dataset[[#This Row],[2024/25 Baseline]]+Dataset[[#This Row],[2024/25 Total change]]","v":0},{"$f":"Dataset[[#This Row],[2025/26 Baseline]]+Dataset[[#This Row],[2025/26 Total change]]","v":0},{"$f":"Dataset[[#This Row],[2026/27 Baseline]]+Dataset[[#This Row],[2026/27 Total change]]","v":0},{"$f":"Dataset[[#This Row],[2027/28 Baseline]]+Dataset[[#This Row],[2027/28 Total change]]","v":0}]
["NAT|Non-transfer item","40|Consumable supplies","2025_26","MTEC2025",40,2,3,51676,404,"40","02","03","051676","000404","40|02|03|000404","01","01","02","31","31","01|01|02|31|31","National","Transport","Integrated Transport Planning","Modelling and Economic Analysis","Non-transfer item","Current","Current payments","Goods and services","Consumable supplies","Consumable supplies","Economic development","Economic regulation and infrastructure","NAT",1,0,0,0,0,0,null,0,0,0,0,null,null,null,null,null,null,null,null,null,null,null,null,null,null,null,null,null,null,null,null,null,null,null,null,null,null,null,null,null,null,null,null,null,null,{"$f":"Dataset[[#This Row],[2025/26 From - Spending review Topic 1]]+Dataset[[#This Row],[2025/26 From - Spending review Topic 2]]+Dataset[[#This Row],[2025/26 From - Spending review Topic 3]]+Dataset[[#This Row],[2025/26 From - Spending review Topic 4]]+Dataset[[#This Row],[2025/26 From - Other reallocations]]","v":0},{"$f":"Dataset[[#This Row],[2026/27 From - Spending review Topic 1]]+Dataset[[#This Row],[2026/27 From - Spending review Topic 2]]+Dataset[[#This Row],[2026/27 From - Spending review Topic 3]]+Dataset[[#This Row],[2026/27 From - Spending review Topic 4]]+Dataset[[#This Row],[2026/27 From - Other reallocations]]","v":0},{"$f":"Dataset[[#This Row],[2027/28 From - Spending review Topic 1]]+Dataset[[#This Row],[2027/28 From - Spending review Topic 2]]+Dataset[[#This Row],[2027/28 From - Spending review Topic 3]]+Dataset[[#This Row],[2027/28 From - Spending review Topic 4]]+Dataset[[#This Row],[2027/28 From - Other reallocations]]","v":0},{"$f":"Dataset[[#This Row],[2025/26 To - Spending review Topic 1]]+Dataset[[#This Row],[2025/26 To - Spending review Topic 2]]+Dataset[[#This Row],[2025/26 To - Spending review Topic 3]]+Dataset[[#This Row],[2025/26 To - Spending review Topic 4]]+Dataset[[#This Row],[2025/26 To - Other reallocations]]","v":0},{"$f":"Dataset[[#This Row],[2026/27 To - Spending review Topic 1]]+Dataset[[#This Row],[2026/27 To - Spending review Topic 2]]+Dataset[[#This Row],[2026/27 To - Spending review Topic 3]]+Dataset[[#This Row],[2026/27 To - Spending review Topic 4]]+Dataset[[#This Row],[2026/27 To - Other reallocations]]","v":0},{"$f":"Dataset[[#This Row],[2027/28 To - Spending review Topic 1]]+Dataset[[#This Row],[2027/28 To - Spending review Topic 2]]+Dataset[[#This Row],[2027/28 To - Spending review Topic 3]]+Dataset[[#This Row],[2027/28 To - Spending review Topic 4]]+Dataset[[#This Row],[2027/28 To - Other reallocations]]","v":0},{"$f":"Dataset[[#This Row],[2025/26 Reduction]]+Dataset[[#This Row],[2025/26 From - Total]]","v":0},{"$f":"Dataset[[#This Row],[2026/27 Reduction]]+Dataset[[#This Row],[2026/27 From - Total]]","v":0},{"$f":"Dataset[[#This Row],[2027/28 Reduction]]+Dataset[[#This Row],[2027/28 From - Total]]","v":0},{"$f":"Dataset[[#This Row],[2024/25 Reduction]]","v":0},{"$f":"SUM(Dataset[[#This Row],[2025/26 Reduction]],Dataset[[#This Row],[2025/26 From - Total]],Dataset[[#This Row],[2025/26 To - Total]])","v":0},{"$f":"SUM(Dataset[[#This Row],[2026/27 Reduction]],Dataset[[#This Row],[2026/27 From - Total]],Dataset[[#This Row],[2026/27 To - Total]])","v":0},{"$f":"SUM(Dataset[[#This Row],[2027/28 Reduction]],Dataset[[#This Row],[2027/28 From - Total]],Dataset[[#This Row],[2027/28 To - Total]])","v":0},{"$f":"Dataset[[#This Row],[2024/25 Baseline]]+Dataset[[#This Row],[2024/25 Total change]]","v":0},{"$f":"Dataset[[#This Row],[2025/26 Baseline]]+Dataset[[#This Row],[2025/26 Total change]]","v":0},{"$f":"Dataset[[#This Row],[2026/27 Baseline]]+Dataset[[#This Row],[2026/27 Total change]]","v":0},{"$f":"Dataset[[#This Row],[2027/28 Baseline]]+Dataset[[#This Row],[2027/28 Total change]]","v":0}]
["NAT|Non-transfer item","40|Operating payments","2025_26","MTEC2025",40,2,3,51684,412,"40","02","03","051684","000412","40|02|03|000412","01","01","02","39","39","01|01|02|39|39","National","Transport","Integrated Transport Planning","Modelling and Economic Analysis","Non-transfer item","Current","Current payments","Goods and services","Operating payments","Operating payments","Economic development","Economic regulation and infrastructure","NAT",0,0,5,0,0,0,0,0,0,0,0,null,null,null,null,null,null,null,null,null,null,null,null,null,null,null,null,null,null,null,null,null,null,null,null,null,null,null,null,null,null,null,null,null,null,{"$f":"Dataset[[#This Row],[2025/26 From - Spending review Topic 1]]+Dataset[[#This Row],[2025/26 From - Spending review Topic 2]]+Dataset[[#This Row],[2025/26 From - Spending review Topic 3]]+Dataset[[#This Row],[2025/26 From - Spending review Topic 4]]+Dataset[[#This Row],[2025/26 From - Other reallocations]]","v":0},{"$f":"Dataset[[#This Row],[2026/27 From - Spending review Topic 1]]+Dataset[[#This Row],[2026/27 From - Spending review Topic 2]]+Dataset[[#This Row],[2026/27 From - Spending review Topic 3]]+Dataset[[#This Row],[2026/27 From - Spending review Topic 4]]+Dataset[[#This Row],[2026/27 From - Other reallocations]]","v":0},{"$f":"Dataset[[#This Row],[2027/28 From - Spending review Topic 1]]+Dataset[[#This Row],[2027/28 From - Spending review Topic 2]]+Dataset[[#This Row],[2027/28 From - Spending review Topic 3]]+Dataset[[#This Row],[2027/28 From - Spending review Topic 4]]+Dataset[[#This Row],[2027/28 From - Other reallocations]]","v":0},{"$f":"Dataset[[#This Row],[2025/26 To - Spending review Topic 1]]+Dataset[[#This Row],[2025/26 To - Spending review Topic 2]]+Dataset[[#This Row],[2025/26 To - Spending review Topic 3]]+Dataset[[#This Row],[2025/26 To - Spending review Topic 4]]+Dataset[[#This Row],[2025/26 To - Other reallocations]]","v":0},{"$f":"Dataset[[#This Row],[2026/27 To - Spending review Topic 1]]+Dataset[[#This Row],[2026/27 To - Spending review Topic 2]]+Dataset[[#This Row],[2026/27 To - Spending review Topic 3]]+Dataset[[#This Row],[2026/27 To - Spending review Topic 4]]+Dataset[[#This Row],[2026/27 To - Other reallocations]]","v":0},{"$f":"Dataset[[#This Row],[2027/28 To - Spending review Topic 1]]+Dataset[[#This Row],[2027/28 To - Spending review Topic 2]]+Dataset[[#This Row],[2027/28 To - Spending review Topic 3]]+Dataset[[#This Row],[2027/28 To - Spending review Topic 4]]+Dataset[[#This Row],[2027/28 To - Other reallocations]]","v":0},{"$f":"Dataset[[#This Row],[2025/26 Reduction]]+Dataset[[#This Row],[2025/26 From - Total]]","v":0},{"$f":"Dataset[[#This Row],[2026/27 Reduction]]+Dataset[[#This Row],[2026/27 From - Total]]","v":0},{"$f":"Dataset[[#This Row],[2027/28 Reduction]]+Dataset[[#This Row],[2027/28 From - Total]]","v":0},{"$f":"Dataset[[#This Row],[2024/25 Reduction]]","v":0},{"$f":"SUM(Dataset[[#This Row],[2025/26 Reduction]],Dataset[[#This Row],[2025/26 From - Total]],Dataset[[#This Row],[2025/26 To - Total]])","v":0},{"$f":"SUM(Dataset[[#This Row],[2026/27 Reduction]],Dataset[[#This Row],[2026/27 From - Total]],Dataset[[#This Row],[2026/27 To - Total]])","v":0},{"$f":"SUM(Dataset[[#This Row],[2027/28 Reduction]],Dataset[[#This Row],[2027/28 From - Total]],Dataset[[#This Row],[2027/28 To - Total]])","v":0},{"$f":"Dataset[[#This Row],[2024/25 Baseline]]+Dataset[[#This Row],[2024/25 Total change]]","v":0},{"$f":"Dataset[[#This Row],[2025/26 Baseline]]+Dataset[[#This Row],[2025/26 Total change]]","v":0},{"$f":"Dataset[[#This Row],[2026/27 Baseline]]+Dataset[[#This Row],[2026/27 Total change]]","v":0},{"$f":"Dataset[[#This Row],[2027/28 Baseline]]+Dataset[[#This Row],[2027/28 Total change]]","v":0}]
["NAT|Non-transfer item","40|Venues and facilities","2025_26","MTEC2025",40,2,3,51685,413,"40","02","03","051685","000413","40|02|03|000413","01","01","02","40","40","01|01|02|40|40","National","Transport","Integrated Transport Planning","Modelling and Economic Analysis","Non-transfer item","Current","Current payments","Goods and services","Venues and facilities","Venues and facilities","Economic development","Economic regulation and infrastructure","NAT",0,77,267,0,2000,2000,3413,200,242,255,267,null,null,null,null,null,null,null,null,null,null,null,null,null,null,null,null,null,null,null,null,null,null,null,null,null,null,null,null,null,null,null,null,null,null,{"$f":"Dataset[[#This Row],[2025/26 From - Spending review Topic 1]]+Dataset[[#This Row],[2025/26 From - Spending review Topic 2]]+Dataset[[#This Row],[2025/26 From - Spending review Topic 3]]+Dataset[[#This Row],[2025/26 From - Spending review Topic 4]]+Dataset[[#This Row],[2025/26 From - Other reallocations]]","v":0},{"$f":"Dataset[[#This Row],[2026/27 From - Spending review Topic 1]]+Dataset[[#This Row],[2026/27 From - Spending review Topic 2]]+Dataset[[#This Row],[2026/27 From - Spending review Topic 3]]+Dataset[[#This Row],[2026/27 From - Spending review Topic 4]]+Dataset[[#This Row],[2026/27 From - Other reallocations]]","v":0},{"$f":"Dataset[[#This Row],[2027/28 From - Spending review Topic 1]]+Dataset[[#This Row],[2027/28 From - Spending review Topic 2]]+Dataset[[#This Row],[2027/28 From - Spending review Topic 3]]+Dataset[[#This Row],[2027/28 From - Spending review Topic 4]]+Dataset[[#This Row],[2027/28 From - Other reallocations]]","v":0},{"$f":"Dataset[[#This Row],[2025/26 To - Spending review Topic 1]]+Dataset[[#This Row],[2025/26 To - Spending review Topic 2]]+Dataset[[#This Row],[2025/26 To - Spending review Topic 3]]+Dataset[[#This Row],[2025/26 To - Spending review Topic 4]]+Dataset[[#This Row],[2025/26 To - Other reallocations]]","v":0},{"$f":"Dataset[[#This Row],[2026/27 To - Spending review Topic 1]]+Dataset[[#This Row],[2026/27 To - Spending review Topic 2]]+Dataset[[#This Row],[2026/27 To - Spending review Topic 3]]+Dataset[[#This Row],[2026/27 To - Spending review Topic 4]]+Dataset[[#This Row],[2026/27 To - Other reallocations]]","v":0},{"$f":"Dataset[[#This Row],[2027/28 To - Spending review Topic 1]]+Dataset[[#This Row],[2027/28 To - Spending review Topic 2]]+Dataset[[#This Row],[2027/28 To - Spending review Topic 3]]+Dataset[[#This Row],[2027/28 To - Spending review Topic 4]]+Dataset[[#This Row],[2027/28 To - Other reallocations]]","v":0},{"$f":"Dataset[[#This Row],[2025/26 Reduction]]+Dataset[[#This Row],[2025/26 From - Total]]","v":0},{"$f":"Dataset[[#This Row],[2026/27 Reduction]]+Dataset[[#This Row],[2026/27 From - Total]]","v":0},{"$f":"Dataset[[#This Row],[2027/28 Reduction]]+Dataset[[#This Row],[2027/28 From - Total]]","v":0},{"$f":"Dataset[[#This Row],[2024/25 Reduction]]","v":0},{"$f":"SUM(Dataset[[#This Row],[2025/26 Reduction]],Dataset[[#This Row],[2025/26 From - Total]],Dataset[[#This Row],[2025/26 To - Total]])","v":0},{"$f":"SUM(Dataset[[#This Row],[2026/27 Reduction]],Dataset[[#This Row],[2026/27 From - Total]],Dataset[[#This Row],[2026/27 To - Total]])","v":0},{"$f":"SUM(Dataset[[#This Row],[2027/28 Reduction]],Dataset[[#This Row],[2027/28 From - Total]],Dataset[[#This Row],[2027/28 To - Total]])","v":0},{"$f":"Dataset[[#This Row],[2024/25 Baseline]]+Dataset[[#This Row],[2024/25 Total change]]","v":200},{"$f":"Dataset[[#This Row],[2025/26 Baseline]]+Dataset[[#This Row],[2025/26 Total change]]","v":242},{"$f":"Dataset[[#This Row],[2026/27 Baseline]]+Dataset[[#This Row],[2026/27 Total change]]","v":255},{"$f":"Dataset[[#This Row],[2027/28 Baseline]]+Dataset[[#This Row],[2027/28 Total change]]","v":267}]
["NAT|Thefts and losses","40|Payments for financial assets","2025_26","MTEC2025",40,2,3,51697,425,"40","02","03","051697","000425","40|02|03|000425","03","04","18","63","67","03|04|18|63|67","National","Transport","Integrated Transport Planning","Modelling and Economic Analysis","Thefts and losses","Payments for financial assets","Payments for financial assets","Payments for financial assets","Payments for financial assets","Payments for financial assets","Economic development","Economic regulation and infrastructure","NAT",0,2,0,0,0,0,null,0,0,0,0,null,null,null,null,null,null,null,null,null,null,null,null,null,null,null,null,null,null,null,null,null,null,null,null,null,null,null,null,null,null,null,null,null,null,{"$f":"Dataset[[#This Row],[2025/26 From - Spending review Topic 1]]+Dataset[[#This Row],[2025/26 From - Spending review Topic 2]]+Dataset[[#This Row],[2025/26 From - Spending review Topic 3]]+Dataset[[#This Row],[2025/26 From - Spending review Topic 4]]+Dataset[[#This Row],[2025/26 From - Other reallocations]]","v":0},{"$f":"Dataset[[#This Row],[2026/27 From - Spending review Topic 1]]+Dataset[[#This Row],[2026/27 From - Spending review Topic 2]]+Dataset[[#This Row],[2026/27 From - Spending review Topic 3]]+Dataset[[#This Row],[2026/27 From - Spending review Topic 4]]+Dataset[[#This Row],[2026/27 From - Other reallocations]]","v":0},{"$f":"Dataset[[#This Row],[2027/28 From - Spending review Topic 1]]+Dataset[[#This Row],[2027/28 From - Spending review Topic 2]]+Dataset[[#This Row],[2027/28 From - Spending review Topic 3]]+Dataset[[#This Row],[2027/28 From - Spending review Topic 4]]+Dataset[[#This Row],[2027/28 From - Other reallocations]]","v":0},{"$f":"Dataset[[#This Row],[2025/26 To - Spending review Topic 1]]+Dataset[[#This Row],[2025/26 To - Spending review Topic 2]]+Dataset[[#This Row],[2025/26 To - Spending review Topic 3]]+Dataset[[#This Row],[2025/26 To - Spending review Topic 4]]+Dataset[[#This Row],[2025/26 To - Other reallocations]]","v":0},{"$f":"Dataset[[#This Row],[2026/27 To - Spending review Topic 1]]+Dataset[[#This Row],[2026/27 To - Spending review Topic 2]]+Dataset[[#This Row],[2026/27 To - Spending review Topic 3]]+Dataset[[#This Row],[2026/27 To - Spending review Topic 4]]+Dataset[[#This Row],[2026/27 To - Other reallocations]]","v":0},{"$f":"Dataset[[#This Row],[2027/28 To - Spending review Topic 1]]+Dataset[[#This Row],[2027/28 To - Spending review Topic 2]]+Dataset[[#This Row],[2027/28 To - Spending review Topic 3]]+Dataset[[#This Row],[2027/28 To - Spending review Topic 4]]+Dataset[[#This Row],[2027/28 To - Other reallocations]]","v":0},{"$f":"Dataset[[#This Row],[2025/26 Reduction]]+Dataset[[#This Row],[2025/26 From - Total]]","v":0},{"$f":"Dataset[[#This Row],[2026/27 Reduction]]+Dataset[[#This Row],[2026/27 From - Total]]","v":0},{"$f":"Dataset[[#This Row],[2027/28 Reduction]]+Dataset[[#This Row],[2027/28 From - Total]]","v":0},{"$f":"Dataset[[#This Row],[2024/25 Reduction]]","v":0},{"$f":"SUM(Dataset[[#This Row],[2025/26 Reduction]],Dataset[[#This Row],[2025/26 From - Total]],Dataset[[#This Row],[2025/26 To - Total]])","v":0},{"$f":"SUM(Dataset[[#This Row],[2026/27 Reduction]],Dataset[[#This Row],[2026/27 From - Total]],Dataset[[#This Row],[2026/27 To - Total]])","v":0},{"$f":"SUM(Dataset[[#This Row],[2027/28 Reduction]],Dataset[[#This Row],[2027/28 From - Total]],Dataset[[#This Row],[2027/28 To - Total]])","v":0},{"$f":"Dataset[[#This Row],[2024/25 Baseline]]+Dataset[[#This Row],[2024/25 Total change]]","v":0},{"$f":"Dataset[[#This Row],[2025/26 Baseline]]+Dataset[[#This Row],[2025/26 Total change]]","v":0},{"$f":"Dataset[[#This Row],[2026/27 Baseline]]+Dataset[[#This Row],[2026/27 Total change]]","v":0},{"$f":"Dataset[[#This Row],[2027/28 Baseline]]+Dataset[[#This Row],[2027/28 Total change]]","v":0}]
["NAT|Non-transfer item","40|Catering: Departmental activities","2025_26","MTEC2025",40,2,4,51705,433,"40","02","04","051705","000433","40|02|04|000433","01","01","02","08","08","01|01|02|08|08","National","Transport","Integrated Transport Planning","Regional Integration","Non-transfer item","Current","Current payments","Goods and services","Catering: Departmental activities","Catering: Departmental activities","Economic development","Economic regulation and infrastructure","NAT",0,64,584,0,0,0,299,544,579,616,644,null,null,null,null,null,null,null,null,null,null,null,null,null,null,null,null,null,null,null,null,null,null,null,null,null,null,null,null,null,null,null,null,null,null,{"$f":"Dataset[[#This Row],[2025/26 From - Spending review Topic 1]]+Dataset[[#This Row],[2025/26 From - Spending review Topic 2]]+Dataset[[#This Row],[2025/26 From - Spending review Topic 3]]+Dataset[[#This Row],[2025/26 From - Spending review Topic 4]]+Dataset[[#This Row],[2025/26 From - Other reallocations]]","v":0},{"$f":"Dataset[[#This Row],[2026/27 From - Spending review Topic 1]]+Dataset[[#This Row],[2026/27 From - Spending review Topic 2]]+Dataset[[#This Row],[2026/27 From - Spending review Topic 3]]+Dataset[[#This Row],[2026/27 From - Spending review Topic 4]]+Dataset[[#This Row],[2026/27 From - Other reallocations]]","v":0},{"$f":"Dataset[[#This Row],[2027/28 From - Spending review Topic 1]]+Dataset[[#This Row],[2027/28 From - Spending review Topic 2]]+Dataset[[#This Row],[2027/28 From - Spending review Topic 3]]+Dataset[[#This Row],[2027/28 From - Spending review Topic 4]]+Dataset[[#This Row],[2027/28 From - Other reallocations]]","v":0},{"$f":"Dataset[[#This Row],[2025/26 To - Spending review Topic 1]]+Dataset[[#This Row],[2025/26 To - Spending review Topic 2]]+Dataset[[#This Row],[2025/26 To - Spending review Topic 3]]+Dataset[[#This Row],[2025/26 To - Spending review Topic 4]]+Dataset[[#This Row],[2025/26 To - Other reallocations]]","v":0},{"$f":"Dataset[[#This Row],[2026/27 To - Spending review Topic 1]]+Dataset[[#This Row],[2026/27 To - Spending review Topic 2]]+Dataset[[#This Row],[2026/27 To - Spending review Topic 3]]+Dataset[[#This Row],[2026/27 To - Spending review Topic 4]]+Dataset[[#This Row],[2026/27 To - Other reallocations]]","v":0},{"$f":"Dataset[[#This Row],[2027/28 To - Spending review Topic 1]]+Dataset[[#This Row],[2027/28 To - Spending review Topic 2]]+Dataset[[#This Row],[2027/28 To - Spending review Topic 3]]+Dataset[[#This Row],[2027/28 To - Spending review Topic 4]]+Dataset[[#This Row],[2027/28 To - Other reallocations]]","v":0},{"$f":"Dataset[[#This Row],[2025/26 Reduction]]+Dataset[[#This Row],[2025/26 From - Total]]","v":0},{"$f":"Dataset[[#This Row],[2026/27 Reduction]]+Dataset[[#This Row],[2026/27 From - Total]]","v":0},{"$f":"Dataset[[#This Row],[2027/28 Reduction]]+Dataset[[#This Row],[2027/28 From - Total]]","v":0},{"$f":"Dataset[[#This Row],[2024/25 Reduction]]","v":0},{"$f":"SUM(Dataset[[#This Row],[2025/26 Reduction]],Dataset[[#This Row],[2025/26 From - Total]],Dataset[[#This Row],[2025/26 To - Total]])","v":0},{"$f":"SUM(Dataset[[#This Row],[2026/27 Reduction]],Dataset[[#This Row],[2026/27 From - Total]],Dataset[[#This Row],[2026/27 To - Total]])","v":0},{"$f":"SUM(Dataset[[#This Row],[2027/28 Reduction]],Dataset[[#This Row],[2027/28 From - Total]],Dataset[[#This Row],[2027/28 To - Total]])","v":0},{"$f":"Dataset[[#This Row],[2024/25 Baseline]]+Dataset[[#This Row],[2024/25 Total change]]","v":544},{"$f":"Dataset[[#This Row],[2025/26 Baseline]]+Dataset[[#This Row],[2025/26 Total change]]","v":579},{"$f":"Dataset[[#This Row],[2026/27 Baseline]]+Dataset[[#This Row],[2026/27 Total change]]","v":616},{"$f":"Dataset[[#This Row],[2027/28 Baseline]]+Dataset[[#This Row],[2027/28 Total change]]","v":644}]
["NAT|Non-transfer item","40|Communication (G&S)","2025_26","MTEC2025",40,2,4,51706,434,"40","02","04","051706","000434","40|02|04|000434","01","01","02","09","09","01|01|02|09|09","National","Transport","Integrated Transport Planning","Regional Integration","Non-transfer item","Current","Current payments","Goods and services","Communication (G&S)","Communication (G&S)","Economic development","Economic regulation and infrastructure","NAT",88,101,467,222,222,222,102,222,236,251,262,null,null,null,null,null,null,null,null,null,null,null,null,null,null,null,null,null,null,null,null,null,null,null,null,null,null,null,null,null,null,null,null,null,null,{"$f":"Dataset[[#This Row],[2025/26 From - Spending review Topic 1]]+Dataset[[#This Row],[2025/26 From - Spending review Topic 2]]+Dataset[[#This Row],[2025/26 From - Spending review Topic 3]]+Dataset[[#This Row],[2025/26 From - Spending review Topic 4]]+Dataset[[#This Row],[2025/26 From - Other reallocations]]","v":0},{"$f":"Dataset[[#This Row],[2026/27 From - Spending review Topic 1]]+Dataset[[#This Row],[2026/27 From - Spending review Topic 2]]+Dataset[[#This Row],[2026/27 From - Spending review Topic 3]]+Dataset[[#This Row],[2026/27 From - Spending review Topic 4]]+Dataset[[#This Row],[2026/27 From - Other reallocations]]","v":0},{"$f":"Dataset[[#This Row],[2027/28 From - Spending review Topic 1]]+Dataset[[#This Row],[2027/28 From - Spending review Topic 2]]+Dataset[[#This Row],[2027/28 From - Spending review Topic 3]]+Dataset[[#This Row],[2027/28 From - Spending review Topic 4]]+Dataset[[#This Row],[2027/28 From - Other reallocations]]","v":0},{"$f":"Dataset[[#This Row],[2025/26 To - Spending review Topic 1]]+Dataset[[#This Row],[2025/26 To - Spending review Topic 2]]+Dataset[[#This Row],[2025/26 To - Spending review Topic 3]]+Dataset[[#This Row],[2025/26 To - Spending review Topic 4]]+Dataset[[#This Row],[2025/26 To - Other reallocations]]","v":0},{"$f":"Dataset[[#This Row],[2026/27 To - Spending review Topic 1]]+Dataset[[#This Row],[2026/27 To - Spending review Topic 2]]+Dataset[[#This Row],[2026/27 To - Spending review Topic 3]]+Dataset[[#This Row],[2026/27 To - Spending review Topic 4]]+Dataset[[#This Row],[2026/27 To - Other reallocations]]","v":0},{"$f":"Dataset[[#This Row],[2027/28 To - Spending review Topic 1]]+Dataset[[#This Row],[2027/28 To - Spending review Topic 2]]+Dataset[[#This Row],[2027/28 To - Spending review Topic 3]]+Dataset[[#This Row],[2027/28 To - Spending review Topic 4]]+Dataset[[#This Row],[2027/28 To - Other reallocations]]","v":0},{"$f":"Dataset[[#This Row],[2025/26 Reduction]]+Dataset[[#This Row],[2025/26 From - Total]]","v":0},{"$f":"Dataset[[#This Row],[2026/27 Reduction]]+Dataset[[#This Row],[2026/27 From - Total]]","v":0},{"$f":"Dataset[[#This Row],[2027/28 Reduction]]+Dataset[[#This Row],[2027/28 From - Total]]","v":0},{"$f":"Dataset[[#This Row],[2024/25 Reduction]]","v":0},{"$f":"SUM(Dataset[[#This Row],[2025/26 Reduction]],Dataset[[#This Row],[2025/26 From - Total]],Dataset[[#This Row],[2025/26 To - Total]])","v":0},{"$f":"SUM(Dataset[[#This Row],[2026/27 Reduction]],Dataset[[#This Row],[2026/27 From - Total]],Dataset[[#This Row],[2026/27 To - Total]])","v":0},{"$f":"SUM(Dataset[[#This Row],[2027/28 Reduction]],Dataset[[#This Row],[2027/28 From - Total]],Dataset[[#This Row],[2027/28 To - Total]])","v":0},{"$f":"Dataset[[#This Row],[2024/25 Baseline]]+Dataset[[#This Row],[2024/25 Total change]]","v":222},{"$f":"Dataset[[#This Row],[2025/26 Baseline]]+Dataset[[#This Row],[2025/26 Total change]]","v":236},{"$f":"Dataset[[#This Row],[2026/27 Baseline]]+Dataset[[#This Row],[2026/27 Total change]]","v":251},{"$f":"Dataset[[#This Row],[2027/28 Baseline]]+Dataset[[#This Row],[2027/28 Total change]]","v":262}]
["NAT|Non-transfer item","40|Housing","2025_26","MTEC2025",40,2,4,51717,445,"40","02","04","051717","000445","40|02|04|000445","01","01","02","20","20","01|01|02|20|20","National","Transport","Integrated Transport Planning","Regional Integration","Non-transfer item","Current","Current payments","Goods and services","Housing","Housing","Economic development","Economic regulation and infrastructure","NAT",0,0,0,0,0,0,null,0,0,0,0,null,null,null,null,null,null,null,null,null,null,null,null,null,null,null,null,null,null,null,null,null,null,null,null,null,null,null,null,null,null,null,null,null,null,{"$f":"Dataset[[#This Row],[2025/26 From - Spending review Topic 1]]+Dataset[[#This Row],[2025/26 From - Spending review Topic 2]]+Dataset[[#This Row],[2025/26 From - Spending review Topic 3]]+Dataset[[#This Row],[2025/26 From - Spending review Topic 4]]+Dataset[[#This Row],[2025/26 From - Other reallocations]]","v":0},{"$f":"Dataset[[#This Row],[2026/27 From - Spending review Topic 1]]+Dataset[[#This Row],[2026/27 From - Spending review Topic 2]]+Dataset[[#This Row],[2026/27 From - Spending review Topic 3]]+Dataset[[#This Row],[2026/27 From - Spending review Topic 4]]+Dataset[[#This Row],[2026/27 From - Other reallocations]]","v":0},{"$f":"Dataset[[#This Row],[2027/28 From - Spending review Topic 1]]+Dataset[[#This Row],[2027/28 From - Spending review Topic 2]]+Dataset[[#This Row],[2027/28 From - Spending review Topic 3]]+Dataset[[#This Row],[2027/28 From - Spending review Topic 4]]+Dataset[[#This Row],[2027/28 From - Other reallocations]]","v":0},{"$f":"Dataset[[#This Row],[2025/26 To - Spending review Topic 1]]+Dataset[[#This Row],[2025/26 To - Spending review Topic 2]]+Dataset[[#This Row],[2025/26 To - Spending review Topic 3]]+Dataset[[#This Row],[2025/26 To - Spending review Topic 4]]+Dataset[[#This Row],[2025/26 To - Other reallocations]]","v":0},{"$f":"Dataset[[#This Row],[2026/27 To - Spending review Topic 1]]+Dataset[[#This Row],[2026/27 To - Spending review Topic 2]]+Dataset[[#This Row],[2026/27 To - Spending review Topic 3]]+Dataset[[#This Row],[2026/27 To - Spending review Topic 4]]+Dataset[[#This Row],[2026/27 To - Other reallocations]]","v":0},{"$f":"Dataset[[#This Row],[2027/28 To - Spending review Topic 1]]+Dataset[[#This Row],[2027/28 To - Spending review Topic 2]]+Dataset[[#This Row],[2027/28 To - Spending review Topic 3]]+Dataset[[#This Row],[2027/28 To - Spending review Topic 4]]+Dataset[[#This Row],[2027/28 To - Other reallocations]]","v":0},{"$f":"Dataset[[#This Row],[2025/26 Reduction]]+Dataset[[#This Row],[2025/26 From - Total]]","v":0},{"$f":"Dataset[[#This Row],[2026/27 Reduction]]+Dataset[[#This Row],[2026/27 From - Total]]","v":0},{"$f":"Dataset[[#This Row],[2027/28 Reduction]]+Dataset[[#This Row],[2027/28 From - Total]]","v":0},{"$f":"Dataset[[#This Row],[2024/25 Reduction]]","v":0},{"$f":"SUM(Dataset[[#This Row],[2025/26 Reduction]],Dataset[[#This Row],[2025/26 From - Total]],Dataset[[#This Row],[2025/26 To - Total]])","v":0},{"$f":"SUM(Dataset[[#This Row],[2026/27 Reduction]],Dataset[[#This Row],[2026/27 From - Total]],Dataset[[#This Row],[2026/27 To - Total]])","v":0},{"$f":"SUM(Dataset[[#This Row],[2027/28 Reduction]],Dataset[[#This Row],[2027/28 From - Total]],Dataset[[#This Row],[2027/28 To - Total]])","v":0},{"$f":"Dataset[[#This Row],[2024/25 Baseline]]+Dataset[[#This Row],[2024/25 Total change]]","v":0},{"$f":"Dataset[[#This Row],[2025/26 Baseline]]+Dataset[[#This Row],[2025/26 Total change]]","v":0},{"$f":"Dataset[[#This Row],[2026/27 Baseline]]+Dataset[[#This Row],[2026/27 Total change]]","v":0},{"$f":"Dataset[[#This Row],[2027/28 Baseline]]+Dataset[[#This Row],[2027/28 Total change]]","v":0}]
["NAT|Non-transfer item","40|Inventory: Medicine","2025_26","MTEC2025",40,2,4,51725,453,"40","02","04","051725","000453","40|02|04|000453","01","01","02","28","28","01|01|02|28|28","National","Transport","Integrated Transport Planning","Regional Integration","Non-transfer item","Current","Current payments","Goods and services","Inventory: Medicine","Inventory: Medicine","Economic development","Economic regulation and infrastructure","NAT",0,0,0,0,0,0,null,0,0,0,0,null,null,null,null,null,null,null,null,null,null,null,null,null,null,null,null,null,null,null,null,null,null,null,null,null,null,null,null,null,null,null,null,null,null,{"$f":"Dataset[[#This Row],[2025/26 From - Spending review Topic 1]]+Dataset[[#This Row],[2025/26 From - Spending review Topic 2]]+Dataset[[#This Row],[2025/26 From - Spending review Topic 3]]+Dataset[[#This Row],[2025/26 From - Spending review Topic 4]]+Dataset[[#This Row],[2025/26 From - Other reallocations]]","v":0},{"$f":"Dataset[[#This Row],[2026/27 From - Spending review Topic 1]]+Dataset[[#This Row],[2026/27 From - Spending review Topic 2]]+Dataset[[#This Row],[2026/27 From - Spending review Topic 3]]+Dataset[[#This Row],[2026/27 From - Spending review Topic 4]]+Dataset[[#This Row],[2026/27 From - Other reallocations]]","v":0},{"$f":"Dataset[[#This Row],[2027/28 From - Spending review Topic 1]]+Dataset[[#This Row],[2027/28 From - Spending review Topic 2]]+Dataset[[#This Row],[2027/28 From - Spending review Topic 3]]+Dataset[[#This Row],[2027/28 From - Spending review Topic 4]]+Dataset[[#This Row],[2027/28 From - Other reallocations]]","v":0},{"$f":"Dataset[[#This Row],[2025/26 To - Spending review Topic 1]]+Dataset[[#This Row],[2025/26 To - Spending review Topic 2]]+Dataset[[#This Row],[2025/26 To - Spending review Topic 3]]+Dataset[[#This Row],[2025/26 To - Spending review Topic 4]]+Dataset[[#This Row],[2025/26 To - Other reallocations]]","v":0},{"$f":"Dataset[[#This Row],[2026/27 To - Spending review Topic 1]]+Dataset[[#This Row],[2026/27 To - Spending review Topic 2]]+Dataset[[#This Row],[2026/27 To - Spending review Topic 3]]+Dataset[[#This Row],[2026/27 To - Spending review Topic 4]]+Dataset[[#This Row],[2026/27 To - Other reallocations]]","v":0},{"$f":"Dataset[[#This Row],[2027/28 To - Spending review Topic 1]]+Dataset[[#This Row],[2027/28 To - Spending review Topic 2]]+Dataset[[#This Row],[2027/28 To - Spending review Topic 3]]+Dataset[[#This Row],[2027/28 To - Spending review Topic 4]]+Dataset[[#This Row],[2027/28 To - Other reallocations]]","v":0},{"$f":"Dataset[[#This Row],[2025/26 Reduction]]+Dataset[[#This Row],[2025/26 From - Total]]","v":0},{"$f":"Dataset[[#This Row],[2026/27 Reduction]]+Dataset[[#This Row],[2026/27 From - Total]]","v":0},{"$f":"Dataset[[#This Row],[2027/28 Reduction]]+Dataset[[#This Row],[2027/28 From - Total]]","v":0},{"$f":"Dataset[[#This Row],[2024/25 Reduction]]","v":0},{"$f":"SUM(Dataset[[#This Row],[2025/26 Reduction]],Dataset[[#This Row],[2025/26 From - Total]],Dataset[[#This Row],[2025/26 To - Total]])","v":0},{"$f":"SUM(Dataset[[#This Row],[2026/27 Reduction]],Dataset[[#This Row],[2026/27 From - Total]],Dataset[[#This Row],[2026/27 To - Total]])","v":0},{"$f":"SUM(Dataset[[#This Row],[2027/28 Reduction]],Dataset[[#This Row],[2027/28 From - Total]],Dataset[[#This Row],[2027/28 To - Total]])","v":0},{"$f":"Dataset[[#This Row],[2024/25 Baseline]]+Dataset[[#This Row],[2024/25 Total change]]","v":0},{"$f":"Dataset[[#This Row],[2025/26 Baseline]]+Dataset[[#This Row],[2025/26 Total change]]","v":0},{"$f":"Dataset[[#This Row],[2026/27 Baseline]]+Dataset[[#This Row],[2026/27 Total change]]","v":0},{"$f":"Dataset[[#This Row],[2027/28 Baseline]]+Dataset[[#This Row],[2027/28 Total change]]","v":0}]
["NAT|Non-transfer item","40|Operating leases","2025_26","MTEC2025",40,2,4,51730,458,"40","02","04","051730","000458","40|02|04|000458","01","01","02","33","33","01|01|02|33|33","National","Transport","Integrated Transport Planning","Regional Integration","Non-transfer item","Current","Current payments","Goods and services","Operating leases","Operating leases","Economic development","Economic regulation and infrastructure","NAT",0,0,0,0,0,0,null,0,0,0,0,null,null,null,null,null,null,null,null,null,null,null,null,null,null,null,null,null,null,null,null,null,null,null,null,null,null,null,null,null,null,null,null,null,null,{"$f":"Dataset[[#This Row],[2025/26 From - Spending review Topic 1]]+Dataset[[#This Row],[2025/26 From - Spending review Topic 2]]+Dataset[[#This Row],[2025/26 From - Spending review Topic 3]]+Dataset[[#This Row],[2025/26 From - Spending review Topic 4]]+Dataset[[#This Row],[2025/26 From - Other reallocations]]","v":0},{"$f":"Dataset[[#This Row],[2026/27 From - Spending review Topic 1]]+Dataset[[#This Row],[2026/27 From - Spending review Topic 2]]+Dataset[[#This Row],[2026/27 From - Spending review Topic 3]]+Dataset[[#This Row],[2026/27 From - Spending review Topic 4]]+Dataset[[#This Row],[2026/27 From - Other reallocations]]","v":0},{"$f":"Dataset[[#This Row],[2027/28 From - Spending review Topic 1]]+Dataset[[#This Row],[2027/28 From - Spending review Topic 2]]+Dataset[[#This Row],[2027/28 From - Spending review Topic 3]]+Dataset[[#This Row],[2027/28 From - Spending review Topic 4]]+Dataset[[#This Row],[2027/28 From - Other reallocations]]","v":0},{"$f":"Dataset[[#This Row],[2025/26 To - Spending review Topic 1]]+Dataset[[#This Row],[2025/26 To - Spending review Topic 2]]+Dataset[[#This Row],[2025/26 To - Spending review Topic 3]]+Dataset[[#This Row],[2025/26 To - Spending review Topic 4]]+Dataset[[#This Row],[2025/26 To - Other reallocations]]","v":0},{"$f":"Dataset[[#This Row],[2026/27 To - Spending review Topic 1]]+Dataset[[#This Row],[2026/27 To - Spending review Topic 2]]+Dataset[[#This Row],[2026/27 To - Spending review Topic 3]]+Dataset[[#This Row],[2026/27 To - Spending review Topic 4]]+Dataset[[#This Row],[2026/27 To - Other reallocations]]","v":0},{"$f":"Dataset[[#This Row],[2027/28 To - Spending review Topic 1]]+Dataset[[#This Row],[2027/28 To - Spending review Topic 2]]+Dataset[[#This Row],[2027/28 To - Spending review Topic 3]]+Dataset[[#This Row],[2027/28 To - Spending review Topic 4]]+Dataset[[#This Row],[2027/28 To - Other reallocations]]","v":0},{"$f":"Dataset[[#This Row],[2025/26 Reduction]]+Dataset[[#This Row],[2025/26 From - Total]]","v":0},{"$f":"Dataset[[#This Row],[2026/27 Reduction]]+Dataset[[#This Row],[2026/27 From - Total]]","v":0},{"$f":"Dataset[[#This Row],[2027/28 Reduction]]+Dataset[[#This Row],[2027/28 From - Total]]","v":0},{"$f":"Dataset[[#This Row],[2024/25 Reduction]]","v":0},{"$f":"SUM(Dataset[[#This Row],[2025/26 Reduction]],Dataset[[#This Row],[2025/26 From - Total]],Dataset[[#This Row],[2025/26 To - Total]])","v":0},{"$f":"SUM(Dataset[[#This Row],[2026/27 Reduction]],Dataset[[#This Row],[2026/27 From - Total]],Dataset[[#This Row],[2026/27 To - Total]])","v":0},{"$f":"SUM(Dataset[[#This Row],[2027/28 Reduction]],Dataset[[#This Row],[2027/28 From - Total]],Dataset[[#This Row],[2027/28 To - Total]])","v":0},{"$f":"Dataset[[#This Row],[2024/25 Baseline]]+Dataset[[#This Row],[2024/25 Total change]]","v":0},{"$f":"Dataset[[#This Row],[2025/26 Baseline]]+Dataset[[#This Row],[2025/26 Total change]]","v":0},{"$f":"Dataset[[#This Row],[2026/27 Baseline]]+Dataset[[#This Row],[2026/27 Total change]]","v":0},{"$f":"Dataset[[#This Row],[2027/28 Baseline]]+Dataset[[#This Row],[2027/28 Total change]]","v":0}]
["NAT|Non-transfer item","40|Interest (Incl. interest on unitary payments (PPP))","2025_26","MTEC2025",40,2,4,51738,466,"40","02","04","051738","000466","40|02|04|000466","01","01","03","41","41","01|01|03|41|41","National","Transport","Integrated Transport Planning","Regional Integration","Non-transfer item","Current","Current payments","Interest and rent on land","Interest (Incl. interest on unitary payments (PPP))","Interest (Incl. interest on unitary payments (PPP))","Economic development","Economic regulation and infrastructure","NAT",0,0,0,0,0,0,null,0,0,0,0,null,null,null,null,null,null,null,null,null,null,null,null,null,null,null,null,null,null,null,null,null,null,null,null,null,null,null,null,null,null,null,null,null,null,{"$f":"Dataset[[#This Row],[2025/26 From - Spending review Topic 1]]+Dataset[[#This Row],[2025/26 From - Spending review Topic 2]]+Dataset[[#This Row],[2025/26 From - Spending review Topic 3]]+Dataset[[#This Row],[2025/26 From - Spending review Topic 4]]+Dataset[[#This Row],[2025/26 From - Other reallocations]]","v":0},{"$f":"Dataset[[#This Row],[2026/27 From - Spending review Topic 1]]+Dataset[[#This Row],[2026/27 From - Spending review Topic 2]]+Dataset[[#This Row],[2026/27 From - Spending review Topic 3]]+Dataset[[#This Row],[2026/27 From - Spending review Topic 4]]+Dataset[[#This Row],[2026/27 From - Other reallocations]]","v":0},{"$f":"Dataset[[#This Row],[2027/28 From - Spending review Topic 1]]+Dataset[[#This Row],[2027/28 From - Spending review Topic 2]]+Dataset[[#This Row],[2027/28 From - Spending review Topic 3]]+Dataset[[#This Row],[2027/28 From - Spending review Topic 4]]+Dataset[[#This Row],[2027/28 From - Other reallocations]]","v":0},{"$f":"Dataset[[#This Row],[2025/26 To - Spending review Topic 1]]+Dataset[[#This Row],[2025/26 To - Spending review Topic 2]]+Dataset[[#This Row],[2025/26 To - Spending review Topic 3]]+Dataset[[#This Row],[2025/26 To - Spending review Topic 4]]+Dataset[[#This Row],[2025/26 To - Other reallocations]]","v":0},{"$f":"Dataset[[#This Row],[2026/27 To - Spending review Topic 1]]+Dataset[[#This Row],[2026/27 To - Spending review Topic 2]]+Dataset[[#This Row],[2026/27 To - Spending review Topic 3]]+Dataset[[#This Row],[2026/27 To - Spending review Topic 4]]+Dataset[[#This Row],[2026/27 To - Other reallocations]]","v":0},{"$f":"Dataset[[#This Row],[2027/28 To - Spending review Topic 1]]+Dataset[[#This Row],[2027/28 To - Spending review Topic 2]]+Dataset[[#This Row],[2027/28 To - Spending review Topic 3]]+Dataset[[#This Row],[2027/28 To - Spending review Topic 4]]+Dataset[[#This Row],[2027/28 To - Other reallocations]]","v":0},{"$f":"Dataset[[#This Row],[2025/26 Reduction]]+Dataset[[#This Row],[2025/26 From - Total]]","v":0},{"$f":"Dataset[[#This Row],[2026/27 Reduction]]+Dataset[[#This Row],[2026/27 From - Total]]","v":0},{"$f":"Dataset[[#This Row],[2027/28 Reduction]]+Dataset[[#This Row],[2027/28 From - Total]]","v":0},{"$f":"Dataset[[#This Row],[2024/25 Reduction]]","v":0},{"$f":"SUM(Dataset[[#This Row],[2025/26 Reduction]],Dataset[[#This Row],[2025/26 From - Total]],Dataset[[#This Row],[2025/26 To - Total]])","v":0},{"$f":"SUM(Dataset[[#This Row],[2026/27 Reduction]],Dataset[[#This Row],[2026/27 From - Total]],Dataset[[#This Row],[2026/27 To - Total]])","v":0},{"$f":"SUM(Dataset[[#This Row],[2027/28 Reduction]],Dataset[[#This Row],[2027/28 From - Total]],Dataset[[#This Row],[2027/28 To - Total]])","v":0},{"$f":"Dataset[[#This Row],[2024/25 Baseline]]+Dataset[[#This Row],[2024/25 Total change]]","v":0},{"$f":"Dataset[[#This Row],[2025/26 Baseline]]+Dataset[[#This Row],[2025/26 Total change]]","v":0},{"$f":"Dataset[[#This Row],[2026/27 Baseline]]+Dataset[[#This Row],[2026/27 Total change]]","v":0},{"$f":"Dataset[[#This Row],[2027/28 Baseline]]+Dataset[[#This Row],[2027/28 Total change]]","v":0}]
["NAT|Non-transfer item","40|Specialised military assets","2025_26","MTEC2025",40,2,4,51746,474,"40","02","04","051746","000474","40|02|04|000474","02","03","14","59","63","02|03|14|59|63","National","Transport","Integrated Transport Planning","Regional Integration","Non-transfer item","Capital","Payments for capital assets","Specialised military assets","Specialised military assets","Specialised military assets","Economic development","Economic regulation and infrastructure","NAT",0,0,0,0,0,0,null,0,0,0,0,null,null,null,null,null,null,null,null,null,null,null,null,null,null,null,null,null,null,null,null,null,null,null,null,null,null,null,null,null,null,null,null,null,null,{"$f":"Dataset[[#This Row],[2025/26 From - Spending review Topic 1]]+Dataset[[#This Row],[2025/26 From - Spending review Topic 2]]+Dataset[[#This Row],[2025/26 From - Spending review Topic 3]]+Dataset[[#This Row],[2025/26 From - Spending review Topic 4]]+Dataset[[#This Row],[2025/26 From - Other reallocations]]","v":0},{"$f":"Dataset[[#This Row],[2026/27 From - Spending review Topic 1]]+Dataset[[#This Row],[2026/27 From - Spending review Topic 2]]+Dataset[[#This Row],[2026/27 From - Spending review Topic 3]]+Dataset[[#This Row],[2026/27 From - Spending review Topic 4]]+Dataset[[#This Row],[2026/27 From - Other reallocations]]","v":0},{"$f":"Dataset[[#This Row],[2027/28 From - Spending review Topic 1]]+Dataset[[#This Row],[2027/28 From - Spending review Topic 2]]+Dataset[[#This Row],[2027/28 From - Spending review Topic 3]]+Dataset[[#This Row],[2027/28 From - Spending review Topic 4]]+Dataset[[#This Row],[2027/28 From - Other reallocations]]","v":0},{"$f":"Dataset[[#This Row],[2025/26 To - Spending review Topic 1]]+Dataset[[#This Row],[2025/26 To - Spending review Topic 2]]+Dataset[[#This Row],[2025/26 To - Spending review Topic 3]]+Dataset[[#This Row],[2025/26 To - Spending review Topic 4]]+Dataset[[#This Row],[2025/26 To - Other reallocations]]","v":0},{"$f":"Dataset[[#This Row],[2026/27 To - Spending review Topic 1]]+Dataset[[#This Row],[2026/27 To - Spending review Topic 2]]+Dataset[[#This Row],[2026/27 To - Spending review Topic 3]]+Dataset[[#This Row],[2026/27 To - Spending review Topic 4]]+Dataset[[#This Row],[2026/27 To - Other reallocations]]","v":0},{"$f":"Dataset[[#This Row],[2027/28 To - Spending review Topic 1]]+Dataset[[#This Row],[2027/28 To - Spending review Topic 2]]+Dataset[[#This Row],[2027/28 To - Spending review Topic 3]]+Dataset[[#This Row],[2027/28 To - Spending review Topic 4]]+Dataset[[#This Row],[2027/28 To - Other reallocations]]","v":0},{"$f":"Dataset[[#This Row],[2025/26 Reduction]]+Dataset[[#This Row],[2025/26 From - Total]]","v":0},{"$f":"Dataset[[#This Row],[2026/27 Reduction]]+Dataset[[#This Row],[2026/27 From - Total]]","v":0},{"$f":"Dataset[[#This Row],[2027/28 Reduction]]+Dataset[[#This Row],[2027/28 From - Total]]","v":0},{"$f":"Dataset[[#This Row],[2024/25 Reduction]]","v":0},{"$f":"SUM(Dataset[[#This Row],[2025/26 Reduction]],Dataset[[#This Row],[2025/26 From - Total]],Dataset[[#This Row],[2025/26 To - Total]])","v":0},{"$f":"SUM(Dataset[[#This Row],[2026/27 Reduction]],Dataset[[#This Row],[2026/27 From - Total]],Dataset[[#This Row],[2026/27 To - Total]])","v":0},{"$f":"SUM(Dataset[[#This Row],[2027/28 Reduction]],Dataset[[#This Row],[2027/28 From - Total]],Dataset[[#This Row],[2027/28 To - Total]])","v":0},{"$f":"Dataset[[#This Row],[2024/25 Baseline]]+Dataset[[#This Row],[2024/25 Total change]]","v":0},{"$f":"Dataset[[#This Row],[2025/26 Baseline]]+Dataset[[#This Row],[2025/26 Total change]]","v":0},{"$f":"Dataset[[#This Row],[2026/27 Baseline]]+Dataset[[#This Row],[2026/27 Total change]]","v":0},{"$f":"Dataset[[#This Row],[2027/28 Baseline]]+Dataset[[#This Row],[2027/28 Total change]]","v":0}]
["NAT|Non-transfer item","40|Salaries and wages","2025_26","MTEC2025",40,2,5,51751,479,"40","02","05","051751","000479","40|02|05|000479","01","01","01","01","01","01|01|01|01|01","National","Transport","Integrated Transport Planning","Research and Innovation","Non-transfer item","Current","Current payments","Compensation of employees","Salaries and wages","Salaries and wages","Economic development","Economic regulation and infrastructure","NAT",10155,10450,10669,9454,9706,9706,11279,9920,10364,10839,11329,null,null,null,null,null,null,null,null,null,null,null,null,null,null,null,null,null,null,null,null,null,null,null,null,null,null,null,null,null,null,null,null,null,null,{"$f":"Dataset[[#This Row],[2025/26 From - Spending review Topic 1]]+Dataset[[#This Row],[2025/26 From - Spending review Topic 2]]+Dataset[[#This Row],[2025/26 From - Spending review Topic 3]]+Dataset[[#This Row],[2025/26 From - Spending review Topic 4]]+Dataset[[#This Row],[2025/26 From - Other reallocations]]","v":0},{"$f":"Dataset[[#This Row],[2026/27 From - Spending review Topic 1]]+Dataset[[#This Row],[2026/27 From - Spending review Topic 2]]+Dataset[[#This Row],[2026/27 From - Spending review Topic 3]]+Dataset[[#This Row],[2026/27 From - Spending review Topic 4]]+Dataset[[#This Row],[2026/27 From - Other reallocations]]","v":0},{"$f":"Dataset[[#This Row],[2027/28 From - Spending review Topic 1]]+Dataset[[#This Row],[2027/28 From - Spending review Topic 2]]+Dataset[[#This Row],[2027/28 From - Spending review Topic 3]]+Dataset[[#This Row],[2027/28 From - Spending review Topic 4]]+Dataset[[#This Row],[2027/28 From - Other reallocations]]","v":0},{"$f":"Dataset[[#This Row],[2025/26 To - Spending review Topic 1]]+Dataset[[#This Row],[2025/26 To - Spending review Topic 2]]+Dataset[[#This Row],[2025/26 To - Spending review Topic 3]]+Dataset[[#This Row],[2025/26 To - Spending review Topic 4]]+Dataset[[#This Row],[2025/26 To - Other reallocations]]","v":0},{"$f":"Dataset[[#This Row],[2026/27 To - Spending review Topic 1]]+Dataset[[#This Row],[2026/27 To - Spending review Topic 2]]+Dataset[[#This Row],[2026/27 To - Spending review Topic 3]]+Dataset[[#This Row],[2026/27 To - Spending review Topic 4]]+Dataset[[#This Row],[2026/27 To - Other reallocations]]","v":0},{"$f":"Dataset[[#This Row],[2027/28 To - Spending review Topic 1]]+Dataset[[#This Row],[2027/28 To - Spending review Topic 2]]+Dataset[[#This Row],[2027/28 To - Spending review Topic 3]]+Dataset[[#This Row],[2027/28 To - Spending review Topic 4]]+Dataset[[#This Row],[2027/28 To - Other reallocations]]","v":0},{"$f":"Dataset[[#This Row],[2025/26 Reduction]]+Dataset[[#This Row],[2025/26 From - Total]]","v":0},{"$f":"Dataset[[#This Row],[2026/27 Reduction]]+Dataset[[#This Row],[2026/27 From - Total]]","v":0},{"$f":"Dataset[[#This Row],[2027/28 Reduction]]+Dataset[[#This Row],[2027/28 From - Total]]","v":0},{"$f":"Dataset[[#This Row],[2024/25 Reduction]]","v":0},{"$f":"SUM(Dataset[[#This Row],[2025/26 Reduction]],Dataset[[#This Row],[2025/26 From - Total]],Dataset[[#This Row],[2025/26 To - Total]])","v":0},{"$f":"SUM(Dataset[[#This Row],[2026/27 Reduction]],Dataset[[#This Row],[2026/27 From - Total]],Dataset[[#This Row],[2026/27 To - Total]])","v":0},{"$f":"SUM(Dataset[[#This Row],[2027/28 Reduction]],Dataset[[#This Row],[2027/28 From - Total]],Dataset[[#This Row],[2027/28 To - Total]])","v":0},{"$f":"Dataset[[#This Row],[2024/25 Baseline]]+Dataset[[#This Row],[2024/25 Total change]]","v":9920},{"$f":"Dataset[[#This Row],[2025/26 Baseline]]+Dataset[[#This Row],[2025/26 Total change]]","v":10364},{"$f":"Dataset[[#This Row],[2026/27 Baseline]]+Dataset[[#This Row],[2026/27 Total change]]","v":10839},{"$f":"Dataset[[#This Row],[2027/28 Baseline]]+Dataset[[#This Row],[2027/28 Total change]]","v":11329}]
["NAT|Non-transfer item","40|Communication (G&S)","2025_26","MTEC2025",40,2,5,51759,487,"40","02","05","051759","000487","40|02|05|000487","01","01","02","09","09","01|01|02|09|09","National","Transport","Integrated Transport Planning","Research and Innovation","Non-transfer item","Current","Current payments","Goods and services","Communication (G&S)","Communication (G&S)","Economic development","Economic regulation and infrastructure","NAT",77,128,132,214,214,214,157,214,221,234,245,null,null,null,null,null,null,null,null,null,null,null,null,null,null,null,null,null,null,null,null,null,null,null,null,null,null,null,null,null,null,null,null,null,null,{"$f":"Dataset[[#This Row],[2025/26 From - Spending review Topic 1]]+Dataset[[#This Row],[2025/26 From - Spending review Topic 2]]+Dataset[[#This Row],[2025/26 From - Spending review Topic 3]]+Dataset[[#This Row],[2025/26 From - Spending review Topic 4]]+Dataset[[#This Row],[2025/26 From - Other reallocations]]","v":0},{"$f":"Dataset[[#This Row],[2026/27 From - Spending review Topic 1]]+Dataset[[#This Row],[2026/27 From - Spending review Topic 2]]+Dataset[[#This Row],[2026/27 From - Spending review Topic 3]]+Dataset[[#This Row],[2026/27 From - Spending review Topic 4]]+Dataset[[#This Row],[2026/27 From - Other reallocations]]","v":0},{"$f":"Dataset[[#This Row],[2027/28 From - Spending review Topic 1]]+Dataset[[#This Row],[2027/28 From - Spending review Topic 2]]+Dataset[[#This Row],[2027/28 From - Spending review Topic 3]]+Dataset[[#This Row],[2027/28 From - Spending review Topic 4]]+Dataset[[#This Row],[2027/28 From - Other reallocations]]","v":0},{"$f":"Dataset[[#This Row],[2025/26 To - Spending review Topic 1]]+Dataset[[#This Row],[2025/26 To - Spending review Topic 2]]+Dataset[[#This Row],[2025/26 To - Spending review Topic 3]]+Dataset[[#This Row],[2025/26 To - Spending review Topic 4]]+Dataset[[#This Row],[2025/26 To - Other reallocations]]","v":0},{"$f":"Dataset[[#This Row],[2026/27 To - Spending review Topic 1]]+Dataset[[#This Row],[2026/27 To - Spending review Topic 2]]+Dataset[[#This Row],[2026/27 To - Spending review Topic 3]]+Dataset[[#This Row],[2026/27 To - Spending review Topic 4]]+Dataset[[#This Row],[2026/27 To - Other reallocations]]","v":0},{"$f":"Dataset[[#This Row],[2027/28 To - Spending review Topic 1]]+Dataset[[#This Row],[2027/28 To - Spending review Topic 2]]+Dataset[[#This Row],[2027/28 To - Spending review Topic 3]]+Dataset[[#This Row],[2027/28 To - Spending review Topic 4]]+Dataset[[#This Row],[2027/28 To - Other reallocations]]","v":0},{"$f":"Dataset[[#This Row],[2025/26 Reduction]]+Dataset[[#This Row],[2025/26 From - Total]]","v":0},{"$f":"Dataset[[#This Row],[2026/27 Reduction]]+Dataset[[#This Row],[2026/27 From - Total]]","v":0},{"$f":"Dataset[[#This Row],[2027/28 Reduction]]+Dataset[[#This Row],[2027/28 From - Total]]","v":0},{"$f":"Dataset[[#This Row],[2024/25 Reduction]]","v":0},{"$f":"SUM(Dataset[[#This Row],[2025/26 Reduction]],Dataset[[#This Row],[2025/26 From - Total]],Dataset[[#This Row],[2025/26 To - Total]])","v":0},{"$f":"SUM(Dataset[[#This Row],[2026/27 Reduction]],Dataset[[#This Row],[2026/27 From - Total]],Dataset[[#This Row],[2026/27 To - Total]])","v":0},{"$f":"SUM(Dataset[[#This Row],[2027/28 Reduction]],Dataset[[#This Row],[2027/28 From - Total]],Dataset[[#This Row],[2027/28 To - Total]])","v":0},{"$f":"Dataset[[#This Row],[2024/25 Baseline]]+Dataset[[#This Row],[2024/25 Total change]]","v":214},{"$f":"Dataset[[#This Row],[2025/26 Baseline]]+Dataset[[#This Row],[2025/26 Total change]]","v":221},{"$f":"Dataset[[#This Row],[2026/27 Baseline]]+Dataset[[#This Row],[2026/27 Total change]]","v":234},{"$f":"Dataset[[#This Row],[2027/28 Baseline]]+Dataset[[#This Row],[2027/28 Total change]]","v":245}]
["NAT|Non-transfer item","40|Legal services (G&S)","2025_26","MTEC2025",40,2,5,51764,492,"40","02","05","051764","000492","40|02|05|000492","01","01","02","14","14","01|01|02|14|14","National","Transport","Integrated Transport Planning","Research and Innovation","Non-transfer item","Current","Current payments","Goods and services","Legal services (G&S)","Legal services (G&S)","Economic development","Economic regulation and infrastructure","NAT",0,0,0,0,0,0,null,0,0,0,0,null,null,null,null,null,null,null,null,null,null,null,null,null,null,null,null,null,null,null,null,null,null,null,null,null,null,null,null,null,null,null,null,null,null,{"$f":"Dataset[[#This Row],[2025/26 From - Spending review Topic 1]]+Dataset[[#This Row],[2025/26 From - Spending review Topic 2]]+Dataset[[#This Row],[2025/26 From - Spending review Topic 3]]+Dataset[[#This Row],[2025/26 From - Spending review Topic 4]]+Dataset[[#This Row],[2025/26 From - Other reallocations]]","v":0},{"$f":"Dataset[[#This Row],[2026/27 From - Spending review Topic 1]]+Dataset[[#This Row],[2026/27 From - Spending review Topic 2]]+Dataset[[#This Row],[2026/27 From - Spending review Topic 3]]+Dataset[[#This Row],[2026/27 From - Spending review Topic 4]]+Dataset[[#This Row],[2026/27 From - Other reallocations]]","v":0},{"$f":"Dataset[[#This Row],[2027/28 From - Spending review Topic 1]]+Dataset[[#This Row],[2027/28 From - Spending review Topic 2]]+Dataset[[#This Row],[2027/28 From - Spending review Topic 3]]+Dataset[[#This Row],[2027/28 From - Spending review Topic 4]]+Dataset[[#This Row],[2027/28 From - Other reallocations]]","v":0},{"$f":"Dataset[[#This Row],[2025/26 To - Spending review Topic 1]]+Dataset[[#This Row],[2025/26 To - Spending review Topic 2]]+Dataset[[#This Row],[2025/26 To - Spending review Topic 3]]+Dataset[[#This Row],[2025/26 To - Spending review Topic 4]]+Dataset[[#This Row],[2025/26 To - Other reallocations]]","v":0},{"$f":"Dataset[[#This Row],[2026/27 To - Spending review Topic 1]]+Dataset[[#This Row],[2026/27 To - Spending review Topic 2]]+Dataset[[#This Row],[2026/27 To - Spending review Topic 3]]+Dataset[[#This Row],[2026/27 To - Spending review Topic 4]]+Dataset[[#This Row],[2026/27 To - Other reallocations]]","v":0},{"$f":"Dataset[[#This Row],[2027/28 To - Spending review Topic 1]]+Dataset[[#This Row],[2027/28 To - Spending review Topic 2]]+Dataset[[#This Row],[2027/28 To - Spending review Topic 3]]+Dataset[[#This Row],[2027/28 To - Spending review Topic 4]]+Dataset[[#This Row],[2027/28 To - Other reallocations]]","v":0},{"$f":"Dataset[[#This Row],[2025/26 Reduction]]+Dataset[[#This Row],[2025/26 From - Total]]","v":0},{"$f":"Dataset[[#This Row],[2026/27 Reduction]]+Dataset[[#This Row],[2026/27 From - Total]]","v":0},{"$f":"Dataset[[#This Row],[2027/28 Reduction]]+Dataset[[#This Row],[2027/28 From - Total]]","v":0},{"$f":"Dataset[[#This Row],[2024/25 Reduction]]","v":0},{"$f":"SUM(Dataset[[#This Row],[2025/26 Reduction]],Dataset[[#This Row],[2025/26 From - Total]],Dataset[[#This Row],[2025/26 To - Total]])","v":0},{"$f":"SUM(Dataset[[#This Row],[2026/27 Reduction]],Dataset[[#This Row],[2026/27 From - Total]],Dataset[[#This Row],[2026/27 To - Total]])","v":0},{"$f":"SUM(Dataset[[#This Row],[2027/28 Reduction]],Dataset[[#This Row],[2027/28 From - Total]],Dataset[[#This Row],[2027/28 To - Total]])","v":0},{"$f":"Dataset[[#This Row],[2024/25 Baseline]]+Dataset[[#This Row],[2024/25 Total change]]","v":0},{"$f":"Dataset[[#This Row],[2025/26 Baseline]]+Dataset[[#This Row],[2025/26 Total change]]","v":0},{"$f":"Dataset[[#This Row],[2026/27 Baseline]]+Dataset[[#This Row],[2026/27 Total change]]","v":0},{"$f":"Dataset[[#This Row],[2027/28 Baseline]]+Dataset[[#This Row],[2027/28 Total change]]","v":0}]
["NAT|Non-transfer item","40|Inventory: Farming supplies","2025_26","MTEC2025",40,2,5,51772,500,"40","02","05","051772","000500","40|02|05|000500","01","01","02","22","22","01|01|02|22|22","National","Transport","Integrated Transport Planning","Research and Innovation","Non-transfer item","Current","Current payments","Goods and services","Inventory: Farming supplies","Inventory: Farming supplies","Economic development","Economic regulation and infrastructure","NAT",0,0,0,0,0,0,null,0,0,0,0,null,null,null,null,null,null,null,null,null,null,null,null,null,null,null,null,null,null,null,null,null,null,null,null,null,null,null,null,null,null,null,null,null,null,{"$f":"Dataset[[#This Row],[2025/26 From - Spending review Topic 1]]+Dataset[[#This Row],[2025/26 From - Spending review Topic 2]]+Dataset[[#This Row],[2025/26 From - Spending review Topic 3]]+Dataset[[#This Row],[2025/26 From - Spending review Topic 4]]+Dataset[[#This Row],[2025/26 From - Other reallocations]]","v":0},{"$f":"Dataset[[#This Row],[2026/27 From - Spending review Topic 1]]+Dataset[[#This Row],[2026/27 From - Spending review Topic 2]]+Dataset[[#This Row],[2026/27 From - Spending review Topic 3]]+Dataset[[#This Row],[2026/27 From - Spending review Topic 4]]+Dataset[[#This Row],[2026/27 From - Other reallocations]]","v":0},{"$f":"Dataset[[#This Row],[2027/28 From - Spending review Topic 1]]+Dataset[[#This Row],[2027/28 From - Spending review Topic 2]]+Dataset[[#This Row],[2027/28 From - Spending review Topic 3]]+Dataset[[#This Row],[2027/28 From - Spending review Topic 4]]+Dataset[[#This Row],[2027/28 From - Other reallocations]]","v":0},{"$f":"Dataset[[#This Row],[2025/26 To - Spending review Topic 1]]+Dataset[[#This Row],[2025/26 To - Spending review Topic 2]]+Dataset[[#This Row],[2025/26 To - Spending review Topic 3]]+Dataset[[#This Row],[2025/26 To - Spending review Topic 4]]+Dataset[[#This Row],[2025/26 To - Other reallocations]]","v":0},{"$f":"Dataset[[#This Row],[2026/27 To - Spending review Topic 1]]+Dataset[[#This Row],[2026/27 To - Spending review Topic 2]]+Dataset[[#This Row],[2026/27 To - Spending review Topic 3]]+Dataset[[#This Row],[2026/27 To - Spending review Topic 4]]+Dataset[[#This Row],[2026/27 To - Other reallocations]]","v":0},{"$f":"Dataset[[#This Row],[2027/28 To - Spending review Topic 1]]+Dataset[[#This Row],[2027/28 To - Spending review Topic 2]]+Dataset[[#This Row],[2027/28 To - Spending review Topic 3]]+Dataset[[#This Row],[2027/28 To - Spending review Topic 4]]+Dataset[[#This Row],[2027/28 To - Other reallocations]]","v":0},{"$f":"Dataset[[#This Row],[2025/26 Reduction]]+Dataset[[#This Row],[2025/26 From - Total]]","v":0},{"$f":"Dataset[[#This Row],[2026/27 Reduction]]+Dataset[[#This Row],[2026/27 From - Total]]","v":0},{"$f":"Dataset[[#This Row],[2027/28 Reduction]]+Dataset[[#This Row],[2027/28 From - Total]]","v":0},{"$f":"Dataset[[#This Row],[2024/25 Reduction]]","v":0},{"$f":"SUM(Dataset[[#This Row],[2025/26 Reduction]],Dataset[[#This Row],[2025/26 From - Total]],Dataset[[#This Row],[2025/26 To - Total]])","v":0},{"$f":"SUM(Dataset[[#This Row],[2026/27 Reduction]],Dataset[[#This Row],[2026/27 From - Total]],Dataset[[#This Row],[2026/27 To - Total]])","v":0},{"$f":"SUM(Dataset[[#This Row],[2027/28 Reduction]],Dataset[[#This Row],[2027/28 From - Total]],Dataset[[#This Row],[2027/28 To - Total]])","v":0},{"$f":"Dataset[[#This Row],[2024/25 Baseline]]+Dataset[[#This Row],[2024/25 Total change]]","v":0},{"$f":"Dataset[[#This Row],[2025/26 Baseline]]+Dataset[[#This Row],[2025/26 Total change]]","v":0},{"$f":"Dataset[[#This Row],[2026/27 Baseline]]+Dataset[[#This Row],[2026/27 Total change]]","v":0},{"$f":"Dataset[[#This Row],[2027/28 Baseline]]+Dataset[[#This Row],[2027/28 Total change]]","v":0}]
["NAT|Non-transfer item","40|Inventory: Other supplies","2025_26","MTEC2025",40,2,5,51780,508,"40","02","05","051780","000508","40|02|05|000508","01","01","02","30","30","01|01|02|30|30","National","Transport","Integrated Transport Planning","Research and Innovation","Non-transfer item","Current","Current payments","Goods and services","Inventory: Other supplies","Inventory: Other supplies","Economic development","Economic regulation and infrastructure","NAT",0,0,0,0,0,0,null,0,0,0,0,null,null,null,null,null,null,null,null,null,null,null,null,null,null,null,null,null,null,null,null,null,null,null,null,null,null,null,null,null,null,null,null,null,null,{"$f":"Dataset[[#This Row],[2025/26 From - Spending review Topic 1]]+Dataset[[#This Row],[2025/26 From - Spending review Topic 2]]+Dataset[[#This Row],[2025/26 From - Spending review Topic 3]]+Dataset[[#This Row],[2025/26 From - Spending review Topic 4]]+Dataset[[#This Row],[2025/26 From - Other reallocations]]","v":0},{"$f":"Dataset[[#This Row],[2026/27 From - Spending review Topic 1]]+Dataset[[#This Row],[2026/27 From - Spending review Topic 2]]+Dataset[[#This Row],[2026/27 From - Spending review Topic 3]]+Dataset[[#This Row],[2026/27 From - Spending review Topic 4]]+Dataset[[#This Row],[2026/27 From - Other reallocations]]","v":0},{"$f":"Dataset[[#This Row],[2027/28 From - Spending review Topic 1]]+Dataset[[#This Row],[2027/28 From - Spending review Topic 2]]+Dataset[[#This Row],[2027/28 From - Spending review Topic 3]]+Dataset[[#This Row],[2027/28 From - Spending review Topic 4]]+Dataset[[#This Row],[2027/28 From - Other reallocations]]","v":0},{"$f":"Dataset[[#This Row],[2025/26 To - Spending review Topic 1]]+Dataset[[#This Row],[2025/26 To - Spending review Topic 2]]+Dataset[[#This Row],[2025/26 To - Spending review Topic 3]]+Dataset[[#This Row],[2025/26 To - Spending review Topic 4]]+Dataset[[#This Row],[2025/26 To - Other reallocations]]","v":0},{"$f":"Dataset[[#This Row],[2026/27 To - Spending review Topic 1]]+Dataset[[#This Row],[2026/27 To - Spending review Topic 2]]+Dataset[[#This Row],[2026/27 To - Spending review Topic 3]]+Dataset[[#This Row],[2026/27 To - Spending review Topic 4]]+Dataset[[#This Row],[2026/27 To - Other reallocations]]","v":0},{"$f":"Dataset[[#This Row],[2027/28 To - Spending review Topic 1]]+Dataset[[#This Row],[2027/28 To - Spending review Topic 2]]+Dataset[[#This Row],[2027/28 To - Spending review Topic 3]]+Dataset[[#This Row],[2027/28 To - Spending review Topic 4]]+Dataset[[#This Row],[2027/28 To - Other reallocations]]","v":0},{"$f":"Dataset[[#This Row],[2025/26 Reduction]]+Dataset[[#This Row],[2025/26 From - Total]]","v":0},{"$f":"Dataset[[#This Row],[2026/27 Reduction]]+Dataset[[#This Row],[2026/27 From - Total]]","v":0},{"$f":"Dataset[[#This Row],[2027/28 Reduction]]+Dataset[[#This Row],[2027/28 From - Total]]","v":0},{"$f":"Dataset[[#This Row],[2024/25 Reduction]]","v":0},{"$f":"SUM(Dataset[[#This Row],[2025/26 Reduction]],Dataset[[#This Row],[2025/26 From - Total]],Dataset[[#This Row],[2025/26 To - Total]])","v":0},{"$f":"SUM(Dataset[[#This Row],[2026/27 Reduction]],Dataset[[#This Row],[2026/27 From - Total]],Dataset[[#This Row],[2026/27 To - Total]])","v":0},{"$f":"SUM(Dataset[[#This Row],[2027/28 Reduction]],Dataset[[#This Row],[2027/28 From - Total]],Dataset[[#This Row],[2027/28 To - Total]])","v":0},{"$f":"Dataset[[#This Row],[2024/25 Baseline]]+Dataset[[#This Row],[2024/25 Total change]]","v":0},{"$f":"Dataset[[#This Row],[2025/26 Baseline]]+Dataset[[#This Row],[2025/26 Total change]]","v":0},{"$f":"Dataset[[#This Row],[2026/27 Baseline]]+Dataset[[#This Row],[2026/27 Total change]]","v":0},{"$f":"Dataset[[#This Row],[2027/28 Baseline]]+Dataset[[#This Row],[2027/28 Total change]]","v":0}]
["NAT|Non-transfer item","40|Property payments","2025_26","MTEC2025",40,2,5,51785,513,"40","02","05","051785","000513","40|02|05|000513","01","01","02","35","35","01|01|02|35|35","National","Transport","Integrated Transport Planning","Research and Innovation","Non-transfer item","Current","Current payments","Goods and services","Property payments","Property payments","Economic development","Economic regulation and infrastructure","NAT",0,0,0,0,0,0,null,0,0,0,0,null,null,null,null,null,null,null,null,null,null,null,null,null,null,null,null,null,null,null,null,null,null,null,null,null,null,null,null,null,null,null,null,null,null,{"$f":"Dataset[[#This Row],[2025/26 From - Spending review Topic 1]]+Dataset[[#This Row],[2025/26 From - Spending review Topic 2]]+Dataset[[#This Row],[2025/26 From - Spending review Topic 3]]+Dataset[[#This Row],[2025/26 From - Spending review Topic 4]]+Dataset[[#This Row],[2025/26 From - Other reallocations]]","v":0},{"$f":"Dataset[[#This Row],[2026/27 From - Spending review Topic 1]]+Dataset[[#This Row],[2026/27 From - Spending review Topic 2]]+Dataset[[#This Row],[2026/27 From - Spending review Topic 3]]+Dataset[[#This Row],[2026/27 From - Spending review Topic 4]]+Dataset[[#This Row],[2026/27 From - Other reallocations]]","v":0},{"$f":"Dataset[[#This Row],[2027/28 From - Spending review Topic 1]]+Dataset[[#This Row],[2027/28 From - Spending review Topic 2]]+Dataset[[#This Row],[2027/28 From - Spending review Topic 3]]+Dataset[[#This Row],[2027/28 From - Spending review Topic 4]]+Dataset[[#This Row],[2027/28 From - Other reallocations]]","v":0},{"$f":"Dataset[[#This Row],[2025/26 To - Spending review Topic 1]]+Dataset[[#This Row],[2025/26 To - Spending review Topic 2]]+Dataset[[#This Row],[2025/26 To - Spending review Topic 3]]+Dataset[[#This Row],[2025/26 To - Spending review Topic 4]]+Dataset[[#This Row],[2025/26 To - Other reallocations]]","v":0},{"$f":"Dataset[[#This Row],[2026/27 To - Spending review Topic 1]]+Dataset[[#This Row],[2026/27 To - Spending review Topic 2]]+Dataset[[#This Row],[2026/27 To - Spending review Topic 3]]+Dataset[[#This Row],[2026/27 To - Spending review Topic 4]]+Dataset[[#This Row],[2026/27 To - Other reallocations]]","v":0},{"$f":"Dataset[[#This Row],[2027/28 To - Spending review Topic 1]]+Dataset[[#This Row],[2027/28 To - Spending review Topic 2]]+Dataset[[#This Row],[2027/28 To - Spending review Topic 3]]+Dataset[[#This Row],[2027/28 To - Spending review Topic 4]]+Dataset[[#This Row],[2027/28 To - Other reallocations]]","v":0},{"$f":"Dataset[[#This Row],[2025/26 Reduction]]+Dataset[[#This Row],[2025/26 From - Total]]","v":0},{"$f":"Dataset[[#This Row],[2026/27 Reduction]]+Dataset[[#This Row],[2026/27 From - Total]]","v":0},{"$f":"Dataset[[#This Row],[2027/28 Reduction]]+Dataset[[#This Row],[2027/28 From - Total]]","v":0},{"$f":"Dataset[[#This Row],[2024/25 Reduction]]","v":0},{"$f":"SUM(Dataset[[#This Row],[2025/26 Reduction]],Dataset[[#This Row],[2025/26 From - Total]],Dataset[[#This Row],[2025/26 To - Total]])","v":0},{"$f":"SUM(Dataset[[#This Row],[2026/27 Reduction]],Dataset[[#This Row],[2026/27 From - Total]],Dataset[[#This Row],[2026/27 To - Total]])","v":0},{"$f":"SUM(Dataset[[#This Row],[2027/28 Reduction]],Dataset[[#This Row],[2027/28 From - Total]],Dataset[[#This Row],[2027/28 To - Total]])","v":0},{"$f":"Dataset[[#This Row],[2024/25 Baseline]]+Dataset[[#This Row],[2024/25 Total change]]","v":0},{"$f":"Dataset[[#This Row],[2025/26 Baseline]]+Dataset[[#This Row],[2025/26 Total change]]","v":0},{"$f":"Dataset[[#This Row],[2026/27 Baseline]]+Dataset[[#This Row],[2026/27 Total change]]","v":0},{"$f":"Dataset[[#This Row],[2027/28 Baseline]]+Dataset[[#This Row],[2027/28 Total change]]","v":0}]
["NAT|Non-transfer item","40|Buildings","2025_26","MTEC2025",40,2,5,51793,521,"40","02","05","051793","000521","40|02|05|000521","02","03","11","54","58","02|03|11|54|58","National","Transport","Integrated Transport Planning","Research and Innovation","Non-transfer item","Capital","Payments for capital assets","Buildings and other fixed structures","Buildings","Buildings","Economic development","Economic regulation and infrastructure","NAT",0,0,0,0,0,0,null,0,0,0,0,null,null,null,null,null,null,null,null,null,null,null,null,null,null,null,null,null,null,null,null,null,null,null,null,null,null,null,null,null,null,null,null,null,null,{"$f":"Dataset[[#This Row],[2025/26 From - Spending review Topic 1]]+Dataset[[#This Row],[2025/26 From - Spending review Topic 2]]+Dataset[[#This Row],[2025/26 From - Spending review Topic 3]]+Dataset[[#This Row],[2025/26 From - Spending review Topic 4]]+Dataset[[#This Row],[2025/26 From - Other reallocations]]","v":0},{"$f":"Dataset[[#This Row],[2026/27 From - Spending review Topic 1]]+Dataset[[#This Row],[2026/27 From - Spending review Topic 2]]+Dataset[[#This Row],[2026/27 From - Spending review Topic 3]]+Dataset[[#This Row],[2026/27 From - Spending review Topic 4]]+Dataset[[#This Row],[2026/27 From - Other reallocations]]","v":0},{"$f":"Dataset[[#This Row],[2027/28 From - Spending review Topic 1]]+Dataset[[#This Row],[2027/28 From - Spending review Topic 2]]+Dataset[[#This Row],[2027/28 From - Spending review Topic 3]]+Dataset[[#This Row],[2027/28 From - Spending review Topic 4]]+Dataset[[#This Row],[2027/28 From - Other reallocations]]","v":0},{"$f":"Dataset[[#This Row],[2025/26 To - Spending review Topic 1]]+Dataset[[#This Row],[2025/26 To - Spending review Topic 2]]+Dataset[[#This Row],[2025/26 To - Spending review Topic 3]]+Dataset[[#This Row],[2025/26 To - Spending review Topic 4]]+Dataset[[#This Row],[2025/26 To - Other reallocations]]","v":0},{"$f":"Dataset[[#This Row],[2026/27 To - Spending review Topic 1]]+Dataset[[#This Row],[2026/27 To - Spending review Topic 2]]+Dataset[[#This Row],[2026/27 To - Spending review Topic 3]]+Dataset[[#This Row],[2026/27 To - Spending review Topic 4]]+Dataset[[#This Row],[2026/27 To - Other reallocations]]","v":0},{"$f":"Dataset[[#This Row],[2027/28 To - Spending review Topic 1]]+Dataset[[#This Row],[2027/28 To - Spending review Topic 2]]+Dataset[[#This Row],[2027/28 To - Spending review Topic 3]]+Dataset[[#This Row],[2027/28 To - Spending review Topic 4]]+Dataset[[#This Row],[2027/28 To - Other reallocations]]","v":0},{"$f":"Dataset[[#This Row],[2025/26 Reduction]]+Dataset[[#This Row],[2025/26 From - Total]]","v":0},{"$f":"Dataset[[#This Row],[2026/27 Reduction]]+Dataset[[#This Row],[2026/27 From - Total]]","v":0},{"$f":"Dataset[[#This Row],[2027/28 Reduction]]+Dataset[[#This Row],[2027/28 From - Total]]","v":0},{"$f":"Dataset[[#This Row],[2024/25 Reduction]]","v":0},{"$f":"SUM(Dataset[[#This Row],[2025/26 Reduction]],Dataset[[#This Row],[2025/26 From - Total]],Dataset[[#This Row],[2025/26 To - Total]])","v":0},{"$f":"SUM(Dataset[[#This Row],[2026/27 Reduction]],Dataset[[#This Row],[2026/27 From - Total]],Dataset[[#This Row],[2026/27 To - Total]])","v":0},{"$f":"SUM(Dataset[[#This Row],[2027/28 Reduction]],Dataset[[#This Row],[2027/28 From - Total]],Dataset[[#This Row],[2027/28 To - Total]])","v":0},{"$f":"Dataset[[#This Row],[2024/25 Baseline]]+Dataset[[#This Row],[2024/25 Total change]]","v":0},{"$f":"Dataset[[#This Row],[2025/26 Baseline]]+Dataset[[#This Row],[2025/26 Total change]]","v":0},{"$f":"Dataset[[#This Row],[2026/27 Baseline]]+Dataset[[#This Row],[2026/27 Total change]]","v":0},{"$f":"Dataset[[#This Row],[2027/28 Baseline]]+Dataset[[#This Row],[2027/28 Total change]]","v":0}]
["NAT|Non-transfer item","40|Specialised military assets","2025_26","MTEC2025",40,2,5,51798,526,"40","02","05","051798","000526","40|02|05|000526","02","03","14","59","63","02|03|14|59|63","National","Transport","Integrated Transport Planning","Research and Innovation","Non-transfer item","Capital","Payments for capital assets","Specialised military assets","Specialised military assets","Specialised military assets","Economic development","Economic regulation and infrastructure","NAT",0,0,0,0,0,0,null,0,0,0,0,null,null,null,null,null,null,null,null,null,null,null,null,null,null,null,null,null,null,null,null,null,null,null,null,null,null,null,null,null,null,null,null,null,null,{"$f":"Dataset[[#This Row],[2025/26 From - Spending review Topic 1]]+Dataset[[#This Row],[2025/26 From - Spending review Topic 2]]+Dataset[[#This Row],[2025/26 From - Spending review Topic 3]]+Dataset[[#This Row],[2025/26 From - Spending review Topic 4]]+Dataset[[#This Row],[2025/26 From - Other reallocations]]","v":0},{"$f":"Dataset[[#This Row],[2026/27 From - Spending review Topic 1]]+Dataset[[#This Row],[2026/27 From - Spending review Topic 2]]+Dataset[[#This Row],[2026/27 From - Spending review Topic 3]]+Dataset[[#This Row],[2026/27 From - Spending review Topic 4]]+Dataset[[#This Row],[2026/27 From - Other reallocations]]","v":0},{"$f":"Dataset[[#This Row],[2027/28 From - Spending review Topic 1]]+Dataset[[#This Row],[2027/28 From - Spending review Topic 2]]+Dataset[[#This Row],[2027/28 From - Spending review Topic 3]]+Dataset[[#This Row],[2027/28 From - Spending review Topic 4]]+Dataset[[#This Row],[2027/28 From - Other reallocations]]","v":0},{"$f":"Dataset[[#This Row],[2025/26 To - Spending review Topic 1]]+Dataset[[#This Row],[2025/26 To - Spending review Topic 2]]+Dataset[[#This Row],[2025/26 To - Spending review Topic 3]]+Dataset[[#This Row],[2025/26 To - Spending review Topic 4]]+Dataset[[#This Row],[2025/26 To - Other reallocations]]","v":0},{"$f":"Dataset[[#This Row],[2026/27 To - Spending review Topic 1]]+Dataset[[#This Row],[2026/27 To - Spending review Topic 2]]+Dataset[[#This Row],[2026/27 To - Spending review Topic 3]]+Dataset[[#This Row],[2026/27 To - Spending review Topic 4]]+Dataset[[#This Row],[2026/27 To - Other reallocations]]","v":0},{"$f":"Dataset[[#This Row],[2027/28 To - Spending review Topic 1]]+Dataset[[#This Row],[2027/28 To - Spending review Topic 2]]+Dataset[[#This Row],[2027/28 To - Spending review Topic 3]]+Dataset[[#This Row],[2027/28 To - Spending review Topic 4]]+Dataset[[#This Row],[2027/28 To - Other reallocations]]","v":0},{"$f":"Dataset[[#This Row],[2025/26 Reduction]]+Dataset[[#This Row],[2025/26 From - Total]]","v":0},{"$f":"Dataset[[#This Row],[2026/27 Reduction]]+Dataset[[#This Row],[2026/27 From - Total]]","v":0},{"$f":"Dataset[[#This Row],[2027/28 Reduction]]+Dataset[[#This Row],[2027/28 From - Total]]","v":0},{"$f":"Dataset[[#This Row],[2024/25 Reduction]]","v":0},{"$f":"SUM(Dataset[[#This Row],[2025/26 Reduction]],Dataset[[#This Row],[2025/26 From - Total]],Dataset[[#This Row],[2025/26 To - Total]])","v":0},{"$f":"SUM(Dataset[[#This Row],[2026/27 Reduction]],Dataset[[#This Row],[2026/27 From - Total]],Dataset[[#This Row],[2026/27 To - Total]])","v":0},{"$f":"SUM(Dataset[[#This Row],[2027/28 Reduction]],Dataset[[#This Row],[2027/28 From - Total]],Dataset[[#This Row],[2027/28 To - Total]])","v":0},{"$f":"Dataset[[#This Row],[2024/25 Baseline]]+Dataset[[#This Row],[2024/25 Total change]]","v":0},{"$f":"Dataset[[#This Row],[2025/26 Baseline]]+Dataset[[#This Row],[2025/26 Total change]]","v":0},{"$f":"Dataset[[#This Row],[2026/27 Baseline]]+Dataset[[#This Row],[2026/27 Total change]]","v":0},{"$f":"Dataset[[#This Row],[2027/28 Baseline]]+Dataset[[#This Row],[2027/28 Total change]]","v":0}]
["NAT|Non-transfer item","40|Minor assets","2025_26","MTEC2025",40,2,6,51806,534,"40","02","06","051806","000534","40|02|06|000534","01","01","02","05","05","01|01|02|05|05","National","Transport","Integrated Transport Planning","Integrated Transport Planning Administration Support","Non-transfer item","Current","Current payments","Goods and services","Minor assets","Minor assets","Economic development","Economic regulation and infrastructure","NAT",0,0,38,0,0,0,12,0,0,0,0,null,null,null,null,null,null,null,null,null,null,null,null,null,null,null,null,null,null,null,null,null,null,null,null,null,null,null,null,null,null,null,null,null,null,{"$f":"Dataset[[#This Row],[2025/26 From - Spending review Topic 1]]+Dataset[[#This Row],[2025/26 From - Spending review Topic 2]]+Dataset[[#This Row],[2025/26 From - Spending review Topic 3]]+Dataset[[#This Row],[2025/26 From - Spending review Topic 4]]+Dataset[[#This Row],[2025/26 From - Other reallocations]]","v":0},{"$f":"Dataset[[#This Row],[2026/27 From - Spending review Topic 1]]+Dataset[[#This Row],[2026/27 From - Spending review Topic 2]]+Dataset[[#This Row],[2026/27 From - Spending review Topic 3]]+Dataset[[#This Row],[2026/27 From - Spending review Topic 4]]+Dataset[[#This Row],[2026/27 From - Other reallocations]]","v":0},{"$f":"Dataset[[#This Row],[2027/28 From - Spending review Topic 1]]+Dataset[[#This Row],[2027/28 From - Spending review Topic 2]]+Dataset[[#This Row],[2027/28 From - Spending review Topic 3]]+Dataset[[#This Row],[2027/28 From - Spending review Topic 4]]+Dataset[[#This Row],[2027/28 From - Other reallocations]]","v":0},{"$f":"Dataset[[#This Row],[2025/26 To - Spending review Topic 1]]+Dataset[[#This Row],[2025/26 To - Spending review Topic 2]]+Dataset[[#This Row],[2025/26 To - Spending review Topic 3]]+Dataset[[#This Row],[2025/26 To - Spending review Topic 4]]+Dataset[[#This Row],[2025/26 To - Other reallocations]]","v":0},{"$f":"Dataset[[#This Row],[2026/27 To - Spending review Topic 1]]+Dataset[[#This Row],[2026/27 To - Spending review Topic 2]]+Dataset[[#This Row],[2026/27 To - Spending review Topic 3]]+Dataset[[#This Row],[2026/27 To - Spending review Topic 4]]+Dataset[[#This Row],[2026/27 To - Other reallocations]]","v":0},{"$f":"Dataset[[#This Row],[2027/28 To - Spending review Topic 1]]+Dataset[[#This Row],[2027/28 To - Spending review Topic 2]]+Dataset[[#This Row],[2027/28 To - Spending review Topic 3]]+Dataset[[#This Row],[2027/28 To - Spending review Topic 4]]+Dataset[[#This Row],[2027/28 To - Other reallocations]]","v":0},{"$f":"Dataset[[#This Row],[2025/26 Reduction]]+Dataset[[#This Row],[2025/26 From - Total]]","v":0},{"$f":"Dataset[[#This Row],[2026/27 Reduction]]+Dataset[[#This Row],[2026/27 From - Total]]","v":0},{"$f":"Dataset[[#This Row],[2027/28 Reduction]]+Dataset[[#This Row],[2027/28 From - Total]]","v":0},{"$f":"Dataset[[#This Row],[2024/25 Reduction]]","v":0},{"$f":"SUM(Dataset[[#This Row],[2025/26 Reduction]],Dataset[[#This Row],[2025/26 From - Total]],Dataset[[#This Row],[2025/26 To - Total]])","v":0},{"$f":"SUM(Dataset[[#This Row],[2026/27 Reduction]],Dataset[[#This Row],[2026/27 From - Total]],Dataset[[#This Row],[2026/27 To - Total]])","v":0},{"$f":"SUM(Dataset[[#This Row],[2027/28 Reduction]],Dataset[[#This Row],[2027/28 From - Total]],Dataset[[#This Row],[2027/28 To - Total]])","v":0},{"$f":"Dataset[[#This Row],[2024/25 Baseline]]+Dataset[[#This Row],[2024/25 Total change]]","v":0},{"$f":"Dataset[[#This Row],[2025/26 Baseline]]+Dataset[[#This Row],[2025/26 Total change]]","v":0},{"$f":"Dataset[[#This Row],[2026/27 Baseline]]+Dataset[[#This Row],[2026/27 Total change]]","v":0},{"$f":"Dataset[[#This Row],[2027/28 Baseline]]+Dataset[[#This Row],[2027/28 Total change]]","v":0}]
["NAT|Non-transfer item","40|Legal services (G&S)","2025_26","MTEC2025",40,2,6,51815,543,"40","02","06","051815","000543","40|02|06|000543","01","01","02","14","14","01|01|02|14|14","National","Transport","Integrated Transport Planning","Integrated Transport Planning Administration Support","Non-transfer item","Current","Current payments","Goods and services","Legal services (G&S)","Legal services (G&S)","Economic development","Economic regulation and infrastructure","NAT",0,0,0,0,0,0,null,0,0,0,0,null,null,null,null,null,null,null,null,null,null,null,null,null,null,null,null,null,null,null,null,null,null,null,null,null,null,null,null,null,null,null,null,null,null,{"$f":"Dataset[[#This Row],[2025/26 From - Spending review Topic 1]]+Dataset[[#This Row],[2025/26 From - Spending review Topic 2]]+Dataset[[#This Row],[2025/26 From - Spending review Topic 3]]+Dataset[[#This Row],[2025/26 From - Spending review Topic 4]]+Dataset[[#This Row],[2025/26 From - Other reallocations]]","v":0},{"$f":"Dataset[[#This Row],[2026/27 From - Spending review Topic 1]]+Dataset[[#This Row],[2026/27 From - Spending review Topic 2]]+Dataset[[#This Row],[2026/27 From - Spending review Topic 3]]+Dataset[[#This Row],[2026/27 From - Spending review Topic 4]]+Dataset[[#This Row],[2026/27 From - Other reallocations]]","v":0},{"$f":"Dataset[[#This Row],[2027/28 From - Spending review Topic 1]]+Dataset[[#This Row],[2027/28 From - Spending review Topic 2]]+Dataset[[#This Row],[2027/28 From - Spending review Topic 3]]+Dataset[[#This Row],[2027/28 From - Spending review Topic 4]]+Dataset[[#This Row],[2027/28 From - Other reallocations]]","v":0},{"$f":"Dataset[[#This Row],[2025/26 To - Spending review Topic 1]]+Dataset[[#This Row],[2025/26 To - Spending review Topic 2]]+Dataset[[#This Row],[2025/26 To - Spending review Topic 3]]+Dataset[[#This Row],[2025/26 To - Spending review Topic 4]]+Dataset[[#This Row],[2025/26 To - Other reallocations]]","v":0},{"$f":"Dataset[[#This Row],[2026/27 To - Spending review Topic 1]]+Dataset[[#This Row],[2026/27 To - Spending review Topic 2]]+Dataset[[#This Row],[2026/27 To - Spending review Topic 3]]+Dataset[[#This Row],[2026/27 To - Spending review Topic 4]]+Dataset[[#This Row],[2026/27 To - Other reallocations]]","v":0},{"$f":"Dataset[[#This Row],[2027/28 To - Spending review Topic 1]]+Dataset[[#This Row],[2027/28 To - Spending review Topic 2]]+Dataset[[#This Row],[2027/28 To - Spending review Topic 3]]+Dataset[[#This Row],[2027/28 To - Spending review Topic 4]]+Dataset[[#This Row],[2027/28 To - Other reallocations]]","v":0},{"$f":"Dataset[[#This Row],[2025/26 Reduction]]+Dataset[[#This Row],[2025/26 From - Total]]","v":0},{"$f":"Dataset[[#This Row],[2026/27 Reduction]]+Dataset[[#This Row],[2026/27 From - Total]]","v":0},{"$f":"Dataset[[#This Row],[2027/28 Reduction]]+Dataset[[#This Row],[2027/28 From - Total]]","v":0},{"$f":"Dataset[[#This Row],[2024/25 Reduction]]","v":0},{"$f":"SUM(Dataset[[#This Row],[2025/26 Reduction]],Dataset[[#This Row],[2025/26 From - Total]],Dataset[[#This Row],[2025/26 To - Total]])","v":0},{"$f":"SUM(Dataset[[#This Row],[2026/27 Reduction]],Dataset[[#This Row],[2026/27 From - Total]],Dataset[[#This Row],[2026/27 To - Total]])","v":0},{"$f":"SUM(Dataset[[#This Row],[2027/28 Reduction]],Dataset[[#This Row],[2027/28 From - Total]],Dataset[[#This Row],[2027/28 To - Total]])","v":0},{"$f":"Dataset[[#This Row],[2024/25 Baseline]]+Dataset[[#This Row],[2024/25 Total change]]","v":0},{"$f":"Dataset[[#This Row],[2025/26 Baseline]]+Dataset[[#This Row],[2025/26 Total change]]","v":0},{"$f":"Dataset[[#This Row],[2026/27 Baseline]]+Dataset[[#This Row],[2026/27 Total change]]","v":0},{"$f":"Dataset[[#This Row],[2027/28 Baseline]]+Dataset[[#This Row],[2027/28 Total change]]","v":0}]
["NAT|Non-transfer item","40|Agency and support/outsourced services","2025_26","MTEC2025",40,2,6,51818,546,"40","02","06","051818","000546","40|02|06|000546","01","01","02","17","17","01|01|02|17|17","National","Transport","Integrated Transport Planning","Integrated Transport Planning Administration Support","Non-transfer item","Current","Current payments","Goods and services","Agency and support/outsourced services","Agency and support/outsourced services","Economic development","Economic regulation and infrastructure","NAT",0,0,0,0,0,0,null,0,0,0,0,null,null,null,null,null,null,null,null,null,null,null,null,null,null,null,null,null,null,null,null,null,null,null,null,null,null,null,null,null,null,null,null,null,null,{"$f":"Dataset[[#This Row],[2025/26 From - Spending review Topic 1]]+Dataset[[#This Row],[2025/26 From - Spending review Topic 2]]+Dataset[[#This Row],[2025/26 From - Spending review Topic 3]]+Dataset[[#This Row],[2025/26 From - Spending review Topic 4]]+Dataset[[#This Row],[2025/26 From - Other reallocations]]","v":0},{"$f":"Dataset[[#This Row],[2026/27 From - Spending review Topic 1]]+Dataset[[#This Row],[2026/27 From - Spending review Topic 2]]+Dataset[[#This Row],[2026/27 From - Spending review Topic 3]]+Dataset[[#This Row],[2026/27 From - Spending review Topic 4]]+Dataset[[#This Row],[2026/27 From - Other reallocations]]","v":0},{"$f":"Dataset[[#This Row],[2027/28 From - Spending review Topic 1]]+Dataset[[#This Row],[2027/28 From - Spending review Topic 2]]+Dataset[[#This Row],[2027/28 From - Spending review Topic 3]]+Dataset[[#This Row],[2027/28 From - Spending review Topic 4]]+Dataset[[#This Row],[2027/28 From - Other reallocations]]","v":0},{"$f":"Dataset[[#This Row],[2025/26 To - Spending review Topic 1]]+Dataset[[#This Row],[2025/26 To - Spending review Topic 2]]+Dataset[[#This Row],[2025/26 To - Spending review Topic 3]]+Dataset[[#This Row],[2025/26 To - Spending review Topic 4]]+Dataset[[#This Row],[2025/26 To - Other reallocations]]","v":0},{"$f":"Dataset[[#This Row],[2026/27 To - Spending review Topic 1]]+Dataset[[#This Row],[2026/27 To - Spending review Topic 2]]+Dataset[[#This Row],[2026/27 To - Spending review Topic 3]]+Dataset[[#This Row],[2026/27 To - Spending review Topic 4]]+Dataset[[#This Row],[2026/27 To - Other reallocations]]","v":0},{"$f":"Dataset[[#This Row],[2027/28 To - Spending review Topic 1]]+Dataset[[#This Row],[2027/28 To - Spending review Topic 2]]+Dataset[[#This Row],[2027/28 To - Spending review Topic 3]]+Dataset[[#This Row],[2027/28 To - Spending review Topic 4]]+Dataset[[#This Row],[2027/28 To - Other reallocations]]","v":0},{"$f":"Dataset[[#This Row],[2025/26 Reduction]]+Dataset[[#This Row],[2025/26 From - Total]]","v":0},{"$f":"Dataset[[#This Row],[2026/27 Reduction]]+Dataset[[#This Row],[2026/27 From - Total]]","v":0},{"$f":"Dataset[[#This Row],[2027/28 Reduction]]+Dataset[[#This Row],[2027/28 From - Total]]","v":0},{"$f":"Dataset[[#This Row],[2024/25 Reduction]]","v":0},{"$f":"SUM(Dataset[[#This Row],[2025/26 Reduction]],Dataset[[#This Row],[2025/26 From - Total]],Dataset[[#This Row],[2025/26 To - Total]])","v":0},{"$f":"SUM(Dataset[[#This Row],[2026/27 Reduction]],Dataset[[#This Row],[2026/27 From - Total]],Dataset[[#This Row],[2026/27 To - Total]])","v":0},{"$f":"SUM(Dataset[[#This Row],[2027/28 Reduction]],Dataset[[#This Row],[2027/28 From - Total]],Dataset[[#This Row],[2027/28 To - Total]])","v":0},{"$f":"Dataset[[#This Row],[2024/25 Baseline]]+Dataset[[#This Row],[2024/25 Total change]]","v":0},{"$f":"Dataset[[#This Row],[2025/26 Baseline]]+Dataset[[#This Row],[2025/26 Total change]]","v":0},{"$f":"Dataset[[#This Row],[2026/27 Baseline]]+Dataset[[#This Row],[2026/27 Total change]]","v":0},{"$f":"Dataset[[#This Row],[2027/28 Baseline]]+Dataset[[#This Row],[2027/28 Total change]]","v":0}]
["NAT|Non-transfer item","40|Inventory: Learner and teacher support material","2025_26","MTEC2025",40,2,6,51826,554,"40","02","06","051826","000554","40|02|06|000554","01","01","02","25","25","01|01|02|25|25","National","Transport","Integrated Transport Planning","Integrated Transport Planning Administration Support","Non-transfer item","Current","Current payments","Goods and services","Inventory: Learner and teacher support material","Inventory: Learner and teacher support material","Economic development","Economic regulation and infrastructure","NAT",0,0,0,0,0,0,null,0,0,0,0,null,null,null,null,null,null,null,null,null,null,null,null,null,null,null,null,null,null,null,null,null,null,null,null,null,null,null,null,null,null,null,null,null,null,{"$f":"Dataset[[#This Row],[2025/26 From - Spending review Topic 1]]+Dataset[[#This Row],[2025/26 From - Spending review Topic 2]]+Dataset[[#This Row],[2025/26 From - Spending review Topic 3]]+Dataset[[#This Row],[2025/26 From - Spending review Topic 4]]+Dataset[[#This Row],[2025/26 From - Other reallocations]]","v":0},{"$f":"Dataset[[#This Row],[2026/27 From - Spending review Topic 1]]+Dataset[[#This Row],[2026/27 From - Spending review Topic 2]]+Dataset[[#This Row],[2026/27 From - Spending review Topic 3]]+Dataset[[#This Row],[2026/27 From - Spending review Topic 4]]+Dataset[[#This Row],[2026/27 From - Other reallocations]]","v":0},{"$f":"Dataset[[#This Row],[2027/28 From - Spending review Topic 1]]+Dataset[[#This Row],[2027/28 From - Spending review Topic 2]]+Dataset[[#This Row],[2027/28 From - Spending review Topic 3]]+Dataset[[#This Row],[2027/28 From - Spending review Topic 4]]+Dataset[[#This Row],[2027/28 From - Other reallocations]]","v":0},{"$f":"Dataset[[#This Row],[2025/26 To - Spending review Topic 1]]+Dataset[[#This Row],[2025/26 To - Spending review Topic 2]]+Dataset[[#This Row],[2025/26 To - Spending review Topic 3]]+Dataset[[#This Row],[2025/26 To - Spending review Topic 4]]+Dataset[[#This Row],[2025/26 To - Other reallocations]]","v":0},{"$f":"Dataset[[#This Row],[2026/27 To - Spending review Topic 1]]+Dataset[[#This Row],[2026/27 To - Spending review Topic 2]]+Dataset[[#This Row],[2026/27 To - Spending review Topic 3]]+Dataset[[#This Row],[2026/27 To - Spending review Topic 4]]+Dataset[[#This Row],[2026/27 To - Other reallocations]]","v":0},{"$f":"Dataset[[#This Row],[2027/28 To - Spending review Topic 1]]+Dataset[[#This Row],[2027/28 To - Spending review Topic 2]]+Dataset[[#This Row],[2027/28 To - Spending review Topic 3]]+Dataset[[#This Row],[2027/28 To - Spending review Topic 4]]+Dataset[[#This Row],[2027/28 To - Other reallocations]]","v":0},{"$f":"Dataset[[#This Row],[2025/26 Reduction]]+Dataset[[#This Row],[2025/26 From - Total]]","v":0},{"$f":"Dataset[[#This Row],[2026/27 Reduction]]+Dataset[[#This Row],[2026/27 From - Total]]","v":0},{"$f":"Dataset[[#This Row],[2027/28 Reduction]]+Dataset[[#This Row],[2027/28 From - Total]]","v":0},{"$f":"Dataset[[#This Row],[2024/25 Reduction]]","v":0},{"$f":"SUM(Dataset[[#This Row],[2025/26 Reduction]],Dataset[[#This Row],[2025/26 From - Total]],Dataset[[#This Row],[2025/26 To - Total]])","v":0},{"$f":"SUM(Dataset[[#This Row],[2026/27 Reduction]],Dataset[[#This Row],[2026/27 From - Total]],Dataset[[#This Row],[2026/27 To - Total]])","v":0},{"$f":"SUM(Dataset[[#This Row],[2027/28 Reduction]],Dataset[[#This Row],[2027/28 From - Total]],Dataset[[#This Row],[2027/28 To - Total]])","v":0},{"$f":"Dataset[[#This Row],[2024/25 Baseline]]+Dataset[[#This Row],[2024/25 Total change]]","v":0},{"$f":"Dataset[[#This Row],[2025/26 Baseline]]+Dataset[[#This Row],[2025/26 Total change]]","v":0},{"$f":"Dataset[[#This Row],[2026/27 Baseline]]+Dataset[[#This Row],[2026/27 Total change]]","v":0},{"$f":"Dataset[[#This Row],[2027/28 Baseline]]+Dataset[[#This Row],[2027/28 Total change]]","v":0}]
["NAT|Non-transfer item","40|Operating leases","2025_26","MTEC2025",40,2,6,51834,562,"40","02","06","051834","000562","40|02|06|000562","01","01","02","33","33","01|01|02|33|33","National","Transport","Integrated Transport Planning","Integrated Transport Planning Administration Support","Non-transfer item","Current","Current payments","Goods and services","Operating leases","Operating leases","Economic development","Economic regulation and infrastructure","NAT",0,0,0,0,0,0,null,0,0,0,0,null,null,null,null,null,null,null,null,null,null,null,null,null,null,null,null,null,null,null,null,null,null,null,null,null,null,null,null,null,null,null,null,null,null,{"$f":"Dataset[[#This Row],[2025/26 From - Spending review Topic 1]]+Dataset[[#This Row],[2025/26 From - Spending review Topic 2]]+Dataset[[#This Row],[2025/26 From - Spending review Topic 3]]+Dataset[[#This Row],[2025/26 From - Spending review Topic 4]]+Dataset[[#This Row],[2025/26 From - Other reallocations]]","v":0},{"$f":"Dataset[[#This Row],[2026/27 From - Spending review Topic 1]]+Dataset[[#This Row],[2026/27 From - Spending review Topic 2]]+Dataset[[#This Row],[2026/27 From - Spending review Topic 3]]+Dataset[[#This Row],[2026/27 From - Spending review Topic 4]]+Dataset[[#This Row],[2026/27 From - Other reallocations]]","v":0},{"$f":"Dataset[[#This Row],[2027/28 From - Spending review Topic 1]]+Dataset[[#This Row],[2027/28 From - Spending review Topic 2]]+Dataset[[#This Row],[2027/28 From - Spending review Topic 3]]+Dataset[[#This Row],[2027/28 From - Spending review Topic 4]]+Dataset[[#This Row],[2027/28 From - Other reallocations]]","v":0},{"$f":"Dataset[[#This Row],[2025/26 To - Spending review Topic 1]]+Dataset[[#This Row],[2025/26 To - Spending review Topic 2]]+Dataset[[#This Row],[2025/26 To - Spending review Topic 3]]+Dataset[[#This Row],[2025/26 To - Spending review Topic 4]]+Dataset[[#This Row],[2025/26 To - Other reallocations]]","v":0},{"$f":"Dataset[[#This Row],[2026/27 To - Spending review Topic 1]]+Dataset[[#This Row],[2026/27 To - Spending review Topic 2]]+Dataset[[#This Row],[2026/27 To - Spending review Topic 3]]+Dataset[[#This Row],[2026/27 To - Spending review Topic 4]]+Dataset[[#This Row],[2026/27 To - Other reallocations]]","v":0},{"$f":"Dataset[[#This Row],[2027/28 To - Spending review Topic 1]]+Dataset[[#This Row],[2027/28 To - Spending review Topic 2]]+Dataset[[#This Row],[2027/28 To - Spending review Topic 3]]+Dataset[[#This Row],[2027/28 To - Spending review Topic 4]]+Dataset[[#This Row],[2027/28 To - Other reallocations]]","v":0},{"$f":"Dataset[[#This Row],[2025/26 Reduction]]+Dataset[[#This Row],[2025/26 From - Total]]","v":0},{"$f":"Dataset[[#This Row],[2026/27 Reduction]]+Dataset[[#This Row],[2026/27 From - Total]]","v":0},{"$f":"Dataset[[#This Row],[2027/28 Reduction]]+Dataset[[#This Row],[2027/28 From - Total]]","v":0},{"$f":"Dataset[[#This Row],[2024/25 Reduction]]","v":0},{"$f":"SUM(Dataset[[#This Row],[2025/26 Reduction]],Dataset[[#This Row],[2025/26 From - Total]],Dataset[[#This Row],[2025/26 To - Total]])","v":0},{"$f":"SUM(Dataset[[#This Row],[2026/27 Reduction]],Dataset[[#This Row],[2026/27 From - Total]],Dataset[[#This Row],[2026/27 To - Total]])","v":0},{"$f":"SUM(Dataset[[#This Row],[2027/28 Reduction]],Dataset[[#This Row],[2027/28 From - Total]],Dataset[[#This Row],[2027/28 To - Total]])","v":0},{"$f":"Dataset[[#This Row],[2024/25 Baseline]]+Dataset[[#This Row],[2024/25 Total change]]","v":0},{"$f":"Dataset[[#This Row],[2025/26 Baseline]]+Dataset[[#This Row],[2025/26 Total change]]","v":0},{"$f":"Dataset[[#This Row],[2026/27 Baseline]]+Dataset[[#This Row],[2026/27 Total change]]","v":0},{"$f":"Dataset[[#This Row],[2027/28 Baseline]]+Dataset[[#This Row],[2027/28 Total change]]","v":0}]
["NAT|Non-transfer item","40|Training and development","2025_26","MTEC2025",40,2,6,51839,567,"40","02","06","051839","000567","40|02|06|000567","01","01","02","38","38","01|01|02|38|38","National","Transport","Integrated Transport Planning","Integrated Transport Planning Administration Support","Non-transfer item","Current","Current payments","Goods and services","Training and development","Training and development","Economic development","Economic regulation and infrastructure","NAT",173,295,136,100,100,100,null,100,105,108,113,null,null,null,null,null,null,null,null,null,null,null,null,null,null,null,null,null,null,null,null,null,null,null,null,null,null,null,null,null,null,null,null,null,null,{"$f":"Dataset[[#This Row],[2025/26 From - Spending review Topic 1]]+Dataset[[#This Row],[2025/26 From - Spending review Topic 2]]+Dataset[[#This Row],[2025/26 From - Spending review Topic 3]]+Dataset[[#This Row],[2025/26 From - Spending review Topic 4]]+Dataset[[#This Row],[2025/26 From - Other reallocations]]","v":0},{"$f":"Dataset[[#This Row],[2026/27 From - Spending review Topic 1]]+Dataset[[#This Row],[2026/27 From - Spending review Topic 2]]+Dataset[[#This Row],[2026/27 From - Spending review Topic 3]]+Dataset[[#This Row],[2026/27 From - Spending review Topic 4]]+Dataset[[#This Row],[2026/27 From - Other reallocations]]","v":0},{"$f":"Dataset[[#This Row],[2027/28 From - Spending review Topic 1]]+Dataset[[#This Row],[2027/28 From - Spending review Topic 2]]+Dataset[[#This Row],[2027/28 From - Spending review Topic 3]]+Dataset[[#This Row],[2027/28 From - Spending review Topic 4]]+Dataset[[#This Row],[2027/28 From - Other reallocations]]","v":0},{"$f":"Dataset[[#This Row],[2025/26 To - Spending review Topic 1]]+Dataset[[#This Row],[2025/26 To - Spending review Topic 2]]+Dataset[[#This Row],[2025/26 To - Spending review Topic 3]]+Dataset[[#This Row],[2025/26 To - Spending review Topic 4]]+Dataset[[#This Row],[2025/26 To - Other reallocations]]","v":0},{"$f":"Dataset[[#This Row],[2026/27 To - Spending review Topic 1]]+Dataset[[#This Row],[2026/27 To - Spending review Topic 2]]+Dataset[[#This Row],[2026/27 To - Spending review Topic 3]]+Dataset[[#This Row],[2026/27 To - Spending review Topic 4]]+Dataset[[#This Row],[2026/27 To - Other reallocations]]","v":0},{"$f":"Dataset[[#This Row],[2027/28 To - Spending review Topic 1]]+Dataset[[#This Row],[2027/28 To - Spending review Topic 2]]+Dataset[[#This Row],[2027/28 To - Spending review Topic 3]]+Dataset[[#This Row],[2027/28 To - Spending review Topic 4]]+Dataset[[#This Row],[2027/28 To - Other reallocations]]","v":0},{"$f":"Dataset[[#This Row],[2025/26 Reduction]]+Dataset[[#This Row],[2025/26 From - Total]]","v":0},{"$f":"Dataset[[#This Row],[2026/27 Reduction]]+Dataset[[#This Row],[2026/27 From - Total]]","v":0},{"$f":"Dataset[[#This Row],[2027/28 Reduction]]+Dataset[[#This Row],[2027/28 From - Total]]","v":0},{"$f":"Dataset[[#This Row],[2024/25 Reduction]]","v":0},{"$f":"SUM(Dataset[[#This Row],[2025/26 Reduction]],Dataset[[#This Row],[2025/26 From - Total]],Dataset[[#This Row],[2025/26 To - Total]])","v":0},{"$f":"SUM(Dataset[[#This Row],[2026/27 Reduction]],Dataset[[#This Row],[2026/27 From - Total]],Dataset[[#This Row],[2026/27 To - Total]])","v":0},{"$f":"SUM(Dataset[[#This Row],[2027/28 Reduction]],Dataset[[#This Row],[2027/28 From - Total]],Dataset[[#This Row],[2027/28 To - Total]])","v":0},{"$f":"Dataset[[#This Row],[2024/25 Baseline]]+Dataset[[#This Row],[2024/25 Total change]]","v":100},{"$f":"Dataset[[#This Row],[2025/26 Baseline]]+Dataset[[#This Row],[2025/26 Total change]]","v":105},{"$f":"Dataset[[#This Row],[2026/27 Baseline]]+Dataset[[#This Row],[2026/27 Total change]]","v":108},{"$f":"Dataset[[#This Row],[2027/28 Baseline]]+Dataset[[#This Row],[2027/28 Total change]]","v":113}]
["NAT|Non-transfer item","40|Other machinery and equipment","2025_26","MTEC2025",40,2,6,51847,575,"40","02","06","051847","000575","40|02|06|000575","02","03","12","57","61","02|03|12|57|61","National","Transport","Integrated Transport Planning","Integrated Transport Planning Administration Support","Non-transfer item","Capital","Payments for capital assets","Machinery and equipment","Other machinery and equipment","Other machinery and equipment","Economic development","Economic regulation and infrastructure","NAT",487,486,245,255,255,255,339,266,278,291,304,null,null,null,null,null,null,null,null,null,null,null,null,null,null,null,null,null,null,null,null,null,null,null,null,null,null,null,null,null,null,null,null,null,null,{"$f":"Dataset[[#This Row],[2025/26 From - Spending review Topic 1]]+Dataset[[#This Row],[2025/26 From - Spending review Topic 2]]+Dataset[[#This Row],[2025/26 From - Spending review Topic 3]]+Dataset[[#This Row],[2025/26 From - Spending review Topic 4]]+Dataset[[#This Row],[2025/26 From - Other reallocations]]","v":0},{"$f":"Dataset[[#This Row],[2026/27 From - Spending review Topic 1]]+Dataset[[#This Row],[2026/27 From - Spending review Topic 2]]+Dataset[[#This Row],[2026/27 From - Spending review Topic 3]]+Dataset[[#This Row],[2026/27 From - Spending review Topic 4]]+Dataset[[#This Row],[2026/27 From - Other reallocations]]","v":0},{"$f":"Dataset[[#This Row],[2027/28 From - Spending review Topic 1]]+Dataset[[#This Row],[2027/28 From - Spending review Topic 2]]+Dataset[[#This Row],[2027/28 From - Spending review Topic 3]]+Dataset[[#This Row],[2027/28 From - Spending review Topic 4]]+Dataset[[#This Row],[2027/28 From - Other reallocations]]","v":0},{"$f":"Dataset[[#This Row],[2025/26 To - Spending review Topic 1]]+Dataset[[#This Row],[2025/26 To - Spending review Topic 2]]+Dataset[[#This Row],[2025/26 To - Spending review Topic 3]]+Dataset[[#This Row],[2025/26 To - Spending review Topic 4]]+Dataset[[#This Row],[2025/26 To - Other reallocations]]","v":0},{"$f":"Dataset[[#This Row],[2026/27 To - Spending review Topic 1]]+Dataset[[#This Row],[2026/27 To - Spending review Topic 2]]+Dataset[[#This Row],[2026/27 To - Spending review Topic 3]]+Dataset[[#This Row],[2026/27 To - Spending review Topic 4]]+Dataset[[#This Row],[2026/27 To - Other reallocations]]","v":0},{"$f":"Dataset[[#This Row],[2027/28 To - Spending review Topic 1]]+Dataset[[#This Row],[2027/28 To - Spending review Topic 2]]+Dataset[[#This Row],[2027/28 To - Spending review Topic 3]]+Dataset[[#This Row],[2027/28 To - Spending review Topic 4]]+Dataset[[#This Row],[2027/28 To - Other reallocations]]","v":0},{"$f":"Dataset[[#This Row],[2025/26 Reduction]]+Dataset[[#This Row],[2025/26 From - Total]]","v":0},{"$f":"Dataset[[#This Row],[2026/27 Reduction]]+Dataset[[#This Row],[2026/27 From - Total]]","v":0},{"$f":"Dataset[[#This Row],[2027/28 Reduction]]+Dataset[[#This Row],[2027/28 From - Total]]","v":0},{"$f":"Dataset[[#This Row],[2024/25 Reduction]]","v":0},{"$f":"SUM(Dataset[[#This Row],[2025/26 Reduction]],Dataset[[#This Row],[2025/26 From - Total]],Dataset[[#This Row],[2025/26 To - Total]])","v":0},{"$f":"SUM(Dataset[[#This Row],[2026/27 Reduction]],Dataset[[#This Row],[2026/27 From - Total]],Dataset[[#This Row],[2026/27 To - Total]])","v":0},{"$f":"SUM(Dataset[[#This Row],[2027/28 Reduction]],Dataset[[#This Row],[2027/28 From - Total]],Dataset[[#This Row],[2027/28 To - Total]])","v":0},{"$f":"Dataset[[#This Row],[2024/25 Baseline]]+Dataset[[#This Row],[2024/25 Total change]]","v":266},{"$f":"Dataset[[#This Row],[2025/26 Baseline]]+Dataset[[#This Row],[2025/26 Total change]]","v":278},{"$f":"Dataset[[#This Row],[2026/27 Baseline]]+Dataset[[#This Row],[2026/27 Total change]]","v":291},{"$f":"Dataset[[#This Row],[2027/28 Baseline]]+Dataset[[#This Row],[2027/28 Total change]]","v":304}]
["NAT|Non-transfer item","40|Software and other intangible assets","2025_26","MTEC2025",40,2,6,51852,580,"40","02","06","051852","000580","40|02|06|000580","02","03","17","62","66","02|03|17|62|66","National","Transport","Integrated Transport Planning","Integrated Transport Planning Administration Support","Non-transfer item","Capital","Payments for capital assets","Software and other intangible assets","Software and other intangible assets","Software and other intangible assets","Economic development","Economic regulation and infrastructure","NAT",0,0,0,0,0,0,null,0,0,0,0,null,null,null,null,null,null,null,null,null,null,null,null,null,null,null,null,null,null,null,null,null,null,null,null,null,null,null,null,null,null,null,null,null,null,{"$f":"Dataset[[#This Row],[2025/26 From - Spending review Topic 1]]+Dataset[[#This Row],[2025/26 From - Spending review Topic 2]]+Dataset[[#This Row],[2025/26 From - Spending review Topic 3]]+Dataset[[#This Row],[2025/26 From - Spending review Topic 4]]+Dataset[[#This Row],[2025/26 From - Other reallocations]]","v":0},{"$f":"Dataset[[#This Row],[2026/27 From - Spending review Topic 1]]+Dataset[[#This Row],[2026/27 From - Spending review Topic 2]]+Dataset[[#This Row],[2026/27 From - Spending review Topic 3]]+Dataset[[#This Row],[2026/27 From - Spending review Topic 4]]+Dataset[[#This Row],[2026/27 From - Other reallocations]]","v":0},{"$f":"Dataset[[#This Row],[2027/28 From - Spending review Topic 1]]+Dataset[[#This Row],[2027/28 From - Spending review Topic 2]]+Dataset[[#This Row],[2027/28 From - Spending review Topic 3]]+Dataset[[#This Row],[2027/28 From - Spending review Topic 4]]+Dataset[[#This Row],[2027/28 From - Other reallocations]]","v":0},{"$f":"Dataset[[#This Row],[2025/26 To - Spending review Topic 1]]+Dataset[[#This Row],[2025/26 To - Spending review Topic 2]]+Dataset[[#This Row],[2025/26 To - Spending review Topic 3]]+Dataset[[#This Row],[2025/26 To - Spending review Topic 4]]+Dataset[[#This Row],[2025/26 To - Other reallocations]]","v":0},{"$f":"Dataset[[#This Row],[2026/27 To - Spending review Topic 1]]+Dataset[[#This Row],[2026/27 To - Spending review Topic 2]]+Dataset[[#This Row],[2026/27 To - Spending review Topic 3]]+Dataset[[#This Row],[2026/27 To - Spending review Topic 4]]+Dataset[[#This Row],[2026/27 To - Other reallocations]]","v":0},{"$f":"Dataset[[#This Row],[2027/28 To - Spending review Topic 1]]+Dataset[[#This Row],[2027/28 To - Spending review Topic 2]]+Dataset[[#This Row],[2027/28 To - Spending review Topic 3]]+Dataset[[#This Row],[2027/28 To - Spending review Topic 4]]+Dataset[[#This Row],[2027/28 To - Other reallocations]]","v":0},{"$f":"Dataset[[#This Row],[2025/26 Reduction]]+Dataset[[#This Row],[2025/26 From - Total]]","v":0},{"$f":"Dataset[[#This Row],[2026/27 Reduction]]+Dataset[[#This Row],[2026/27 From - Total]]","v":0},{"$f":"Dataset[[#This Row],[2027/28 Reduction]]+Dataset[[#This Row],[2027/28 From - Total]]","v":0},{"$f":"Dataset[[#This Row],[2024/25 Reduction]]","v":0},{"$f":"SUM(Dataset[[#This Row],[2025/26 Reduction]],Dataset[[#This Row],[2025/26 From - Total]],Dataset[[#This Row],[2025/26 To - Total]])","v":0},{"$f":"SUM(Dataset[[#This Row],[2026/27 Reduction]],Dataset[[#This Row],[2026/27 From - Total]],Dataset[[#This Row],[2026/27 To - Total]])","v":0},{"$f":"SUM(Dataset[[#This Row],[2027/28 Reduction]],Dataset[[#This Row],[2027/28 From - Total]],Dataset[[#This Row],[2027/28 To - Total]])","v":0},{"$f":"Dataset[[#This Row],[2024/25 Baseline]]+Dataset[[#This Row],[2024/25 Total change]]","v":0},{"$f":"Dataset[[#This Row],[2025/26 Baseline]]+Dataset[[#This Row],[2025/26 Total change]]","v":0},{"$f":"Dataset[[#This Row],[2026/27 Baseline]]+Dataset[[#This Row],[2026/27 Total change]]","v":0},{"$f":"Dataset[[#This Row],[2027/28 Baseline]]+Dataset[[#This Row],[2027/28 Total change]]","v":0}]
["NAT|Non-transfer item","40|Catering: Departmental activities","2025_26","MTEC2025",40,3,1,51860,588,"40","03","01","051860","000588","40|03|01|000588","01","01","02","08","08","01|01|02|08|08","National","Transport","Rail Transport","Rail Regulation","Non-transfer item","Current","Current payments","Goods and services","Catering: Departmental activities","Catering: Departmental activities","Economic development","Economic regulation and infrastructure","NAT",0,0,136,19,19,19,12,0,0,0,0,null,null,null,null,null,null,null,null,null,null,null,null,null,null,null,null,null,null,null,null,null,null,null,null,null,null,null,null,null,null,null,null,null,null,{"$f":"Dataset[[#This Row],[2025/26 From - Spending review Topic 1]]+Dataset[[#This Row],[2025/26 From - Spending review Topic 2]]+Dataset[[#This Row],[2025/26 From - Spending review Topic 3]]+Dataset[[#This Row],[2025/26 From - Spending review Topic 4]]+Dataset[[#This Row],[2025/26 From - Other reallocations]]","v":0},{"$f":"Dataset[[#This Row],[2026/27 From - Spending review Topic 1]]+Dataset[[#This Row],[2026/27 From - Spending review Topic 2]]+Dataset[[#This Row],[2026/27 From - Spending review Topic 3]]+Dataset[[#This Row],[2026/27 From - Spending review Topic 4]]+Dataset[[#This Row],[2026/27 From - Other reallocations]]","v":0},{"$f":"Dataset[[#This Row],[2027/28 From - Spending review Topic 1]]+Dataset[[#This Row],[2027/28 From - Spending review Topic 2]]+Dataset[[#This Row],[2027/28 From - Spending review Topic 3]]+Dataset[[#This Row],[2027/28 From - Spending review Topic 4]]+Dataset[[#This Row],[2027/28 From - Other reallocations]]","v":0},{"$f":"Dataset[[#This Row],[2025/26 To - Spending review Topic 1]]+Dataset[[#This Row],[2025/26 To - Spending review Topic 2]]+Dataset[[#This Row],[2025/26 To - Spending review Topic 3]]+Dataset[[#This Row],[2025/26 To - Spending review Topic 4]]+Dataset[[#This Row],[2025/26 To - Other reallocations]]","v":0},{"$f":"Dataset[[#This Row],[2026/27 To - Spending review Topic 1]]+Dataset[[#This Row],[2026/27 To - Spending review Topic 2]]+Dataset[[#This Row],[2026/27 To - Spending review Topic 3]]+Dataset[[#This Row],[2026/27 To - Spending review Topic 4]]+Dataset[[#This Row],[2026/27 To - Other reallocations]]","v":0},{"$f":"Dataset[[#This Row],[2027/28 To - Spending review Topic 1]]+Dataset[[#This Row],[2027/28 To - Spending review Topic 2]]+Dataset[[#This Row],[2027/28 To - Spending review Topic 3]]+Dataset[[#This Row],[2027/28 To - Spending review Topic 4]]+Dataset[[#This Row],[2027/28 To - Other reallocations]]","v":0},{"$f":"Dataset[[#This Row],[2025/26 Reduction]]+Dataset[[#This Row],[2025/26 From - Total]]","v":0},{"$f":"Dataset[[#This Row],[2026/27 Reduction]]+Dataset[[#This Row],[2026/27 From - Total]]","v":0},{"$f":"Dataset[[#This Row],[2027/28 Reduction]]+Dataset[[#This Row],[2027/28 From - Total]]","v":0},{"$f":"Dataset[[#This Row],[2024/25 Reduction]]","v":0},{"$f":"SUM(Dataset[[#This Row],[2025/26 Reduction]],Dataset[[#This Row],[2025/26 From - Total]],Dataset[[#This Row],[2025/26 To - Total]])","v":0},{"$f":"SUM(Dataset[[#This Row],[2026/27 Reduction]],Dataset[[#This Row],[2026/27 From - Total]],Dataset[[#This Row],[2026/27 To - Total]])","v":0},{"$f":"SUM(Dataset[[#This Row],[2027/28 Reduction]],Dataset[[#This Row],[2027/28 From - Total]],Dataset[[#This Row],[2027/28 To - Total]])","v":0},{"$f":"Dataset[[#This Row],[2024/25 Baseline]]+Dataset[[#This Row],[2024/25 Total change]]","v":0},{"$f":"Dataset[[#This Row],[2025/26 Baseline]]+Dataset[[#This Row],[2025/26 Total change]]","v":0},{"$f":"Dataset[[#This Row],[2026/27 Baseline]]+Dataset[[#This Row],[2026/27 Total change]]","v":0},{"$f":"Dataset[[#This Row],[2027/28 Baseline]]+Dataset[[#This Row],[2027/28 Total change]]","v":0}]
["NAT|Non-transfer item","40|Contractors","2025_26","MTEC2025",40,3,1,51868,596,"40","03","01","051868","000596","40|03|01|000596","01","01","02","16","16","01|01|02|16|16","National","Transport","Rail Transport","Rail Regulation","Non-transfer item","Current","Current payments","Goods and services","Contractors","Contractors","Economic development","Economic regulation and infrastructure","NAT",0,0,0,0,0,0,null,0,0,0,0,null,null,null,null,null,null,null,null,null,null,null,null,null,null,null,null,null,null,null,null,null,null,null,null,null,null,null,null,null,null,null,null,null,null,{"$f":"Dataset[[#This Row],[2025/26 From - Spending review Topic 1]]+Dataset[[#This Row],[2025/26 From - Spending review Topic 2]]+Dataset[[#This Row],[2025/26 From - Spending review Topic 3]]+Dataset[[#This Row],[2025/26 From - Spending review Topic 4]]+Dataset[[#This Row],[2025/26 From - Other reallocations]]","v":0},{"$f":"Dataset[[#This Row],[2026/27 From - Spending review Topic 1]]+Dataset[[#This Row],[2026/27 From - Spending review Topic 2]]+Dataset[[#This Row],[2026/27 From - Spending review Topic 3]]+Dataset[[#This Row],[2026/27 From - Spending review Topic 4]]+Dataset[[#This Row],[2026/27 From - Other reallocations]]","v":0},{"$f":"Dataset[[#This Row],[2027/28 From - Spending review Topic 1]]+Dataset[[#This Row],[2027/28 From - Spending review Topic 2]]+Dataset[[#This Row],[2027/28 From - Spending review Topic 3]]+Dataset[[#This Row],[2027/28 From - Spending review Topic 4]]+Dataset[[#This Row],[2027/28 From - Other reallocations]]","v":0},{"$f":"Dataset[[#This Row],[2025/26 To - Spending review Topic 1]]+Dataset[[#This Row],[2025/26 To - Spending review Topic 2]]+Dataset[[#This Row],[2025/26 To - Spending review Topic 3]]+Dataset[[#This Row],[2025/26 To - Spending review Topic 4]]+Dataset[[#This Row],[2025/26 To - Other reallocations]]","v":0},{"$f":"Dataset[[#This Row],[2026/27 To - Spending review Topic 1]]+Dataset[[#This Row],[2026/27 To - Spending review Topic 2]]+Dataset[[#This Row],[2026/27 To - Spending review Topic 3]]+Dataset[[#This Row],[2026/27 To - Spending review Topic 4]]+Dataset[[#This Row],[2026/27 To - Other reallocations]]","v":0},{"$f":"Dataset[[#This Row],[2027/28 To - Spending review Topic 1]]+Dataset[[#This Row],[2027/28 To - Spending review Topic 2]]+Dataset[[#This Row],[2027/28 To - Spending review Topic 3]]+Dataset[[#This Row],[2027/28 To - Spending review Topic 4]]+Dataset[[#This Row],[2027/28 To - Other reallocations]]","v":0},{"$f":"Dataset[[#This Row],[2025/26 Reduction]]+Dataset[[#This Row],[2025/26 From - Total]]","v":0},{"$f":"Dataset[[#This Row],[2026/27 Reduction]]+Dataset[[#This Row],[2026/27 From - Total]]","v":0},{"$f":"Dataset[[#This Row],[2027/28 Reduction]]+Dataset[[#This Row],[2027/28 From - Total]]","v":0},{"$f":"Dataset[[#This Row],[2024/25 Reduction]]","v":0},{"$f":"SUM(Dataset[[#This Row],[2025/26 Reduction]],Dataset[[#This Row],[2025/26 From - Total]],Dataset[[#This Row],[2025/26 To - Total]])","v":0},{"$f":"SUM(Dataset[[#This Row],[2026/27 Reduction]],Dataset[[#This Row],[2026/27 From - Total]],Dataset[[#This Row],[2026/27 To - Total]])","v":0},{"$f":"SUM(Dataset[[#This Row],[2027/28 Reduction]],Dataset[[#This Row],[2027/28 From - Total]],Dataset[[#This Row],[2027/28 To - Total]])","v":0},{"$f":"Dataset[[#This Row],[2024/25 Baseline]]+Dataset[[#This Row],[2024/25 Total change]]","v":0},{"$f":"Dataset[[#This Row],[2025/26 Baseline]]+Dataset[[#This Row],[2025/26 Total change]]","v":0},{"$f":"Dataset[[#This Row],[2026/27 Baseline]]+Dataset[[#This Row],[2026/27 Total change]]","v":0},{"$f":"Dataset[[#This Row],[2027/28 Baseline]]+Dataset[[#This Row],[2027/28 Total change]]","v":0}]
["NAT|Non-transfer item","40|Inventory: Clothing material and accessories","2025_26","MTEC2025",40,3,1,51873,601,"40","03","01","051873","000601","40|03|01|000601","01","01","02","21","21","01|01|02|21|21","National","Transport","Rail Transport","Rail Regulation","Non-transfer item","Current","Current payments","Goods and services","Inventory: Clothing material and accessories","Inventory: Clothing material and accessories","Economic development","Economic regulation and infrastructure","NAT",0,0,0,0,0,0,null,0,0,0,0,null,null,null,null,null,null,null,null,null,null,null,null,null,null,null,null,null,null,null,null,null,null,null,null,null,null,null,null,null,null,null,null,null,null,{"$f":"Dataset[[#This Row],[2025/26 From - Spending review Topic 1]]+Dataset[[#This Row],[2025/26 From - Spending review Topic 2]]+Dataset[[#This Row],[2025/26 From - Spending review Topic 3]]+Dataset[[#This Row],[2025/26 From - Spending review Topic 4]]+Dataset[[#This Row],[2025/26 From - Other reallocations]]","v":0},{"$f":"Dataset[[#This Row],[2026/27 From - Spending review Topic 1]]+Dataset[[#This Row],[2026/27 From - Spending review Topic 2]]+Dataset[[#This Row],[2026/27 From - Spending review Topic 3]]+Dataset[[#This Row],[2026/27 From - Spending review Topic 4]]+Dataset[[#This Row],[2026/27 From - Other reallocations]]","v":0},{"$f":"Dataset[[#This Row],[2027/28 From - Spending review Topic 1]]+Dataset[[#This Row],[2027/28 From - Spending review Topic 2]]+Dataset[[#This Row],[2027/28 From - Spending review Topic 3]]+Dataset[[#This Row],[2027/28 From - Spending review Topic 4]]+Dataset[[#This Row],[2027/28 From - Other reallocations]]","v":0},{"$f":"Dataset[[#This Row],[2025/26 To - Spending review Topic 1]]+Dataset[[#This Row],[2025/26 To - Spending review Topic 2]]+Dataset[[#This Row],[2025/26 To - Spending review Topic 3]]+Dataset[[#This Row],[2025/26 To - Spending review Topic 4]]+Dataset[[#This Row],[2025/26 To - Other reallocations]]","v":0},{"$f":"Dataset[[#This Row],[2026/27 To - Spending review Topic 1]]+Dataset[[#This Row],[2026/27 To - Spending review Topic 2]]+Dataset[[#This Row],[2026/27 To - Spending review Topic 3]]+Dataset[[#This Row],[2026/27 To - Spending review Topic 4]]+Dataset[[#This Row],[2026/27 To - Other reallocations]]","v":0},{"$f":"Dataset[[#This Row],[2027/28 To - Spending review Topic 1]]+Dataset[[#This Row],[2027/28 To - Spending review Topic 2]]+Dataset[[#This Row],[2027/28 To - Spending review Topic 3]]+Dataset[[#This Row],[2027/28 To - Spending review Topic 4]]+Dataset[[#This Row],[2027/28 To - Other reallocations]]","v":0},{"$f":"Dataset[[#This Row],[2025/26 Reduction]]+Dataset[[#This Row],[2025/26 From - Total]]","v":0},{"$f":"Dataset[[#This Row],[2026/27 Reduction]]+Dataset[[#This Row],[2026/27 From - Total]]","v":0},{"$f":"Dataset[[#This Row],[2027/28 Reduction]]+Dataset[[#This Row],[2027/28 From - Total]]","v":0},{"$f":"Dataset[[#This Row],[2024/25 Reduction]]","v":0},{"$f":"SUM(Dataset[[#This Row],[2025/26 Reduction]],Dataset[[#This Row],[2025/26 From - Total]],Dataset[[#This Row],[2025/26 To - Total]])","v":0},{"$f":"SUM(Dataset[[#This Row],[2026/27 Reduction]],Dataset[[#This Row],[2026/27 From - Total]],Dataset[[#This Row],[2026/27 To - Total]])","v":0},{"$f":"SUM(Dataset[[#This Row],[2027/28 Reduction]],Dataset[[#This Row],[2027/28 From - Total]],Dataset[[#This Row],[2027/28 To - Total]])","v":0},{"$f":"Dataset[[#This Row],[2024/25 Baseline]]+Dataset[[#This Row],[2024/25 Total change]]","v":0},{"$f":"Dataset[[#This Row],[2025/26 Baseline]]+Dataset[[#This Row],[2025/26 Total change]]","v":0},{"$f":"Dataset[[#This Row],[2026/27 Baseline]]+Dataset[[#This Row],[2026/27 Total change]]","v":0},{"$f":"Dataset[[#This Row],[2027/28 Baseline]]+Dataset[[#This Row],[2027/28 Total change]]","v":0}]
["NAT|Non-transfer item","40|Medsas inventory interface","2025_26","MTEC2025",40,3,1,51881,609,"40","03","01","051881","000609","40|03|01|000609","01","01","02","29","29","01|01|02|29|29","National","Transport","Rail Transport","Rail Regulation","Non-transfer item","Current","Current payments","Goods and services","Medsas inventory interface","Medsas inventory interface","Economic development","Economic regulation and infrastructure","NAT",0,0,0,0,0,0,null,0,0,0,0,null,null,null,null,null,null,null,null,null,null,null,null,null,null,null,null,null,null,null,null,null,null,null,null,null,null,null,null,null,null,null,null,null,null,{"$f":"Dataset[[#This Row],[2025/26 From - Spending review Topic 1]]+Dataset[[#This Row],[2025/26 From - Spending review Topic 2]]+Dataset[[#This Row],[2025/26 From - Spending review Topic 3]]+Dataset[[#This Row],[2025/26 From - Spending review Topic 4]]+Dataset[[#This Row],[2025/26 From - Other reallocations]]","v":0},{"$f":"Dataset[[#This Row],[2026/27 From - Spending review Topic 1]]+Dataset[[#This Row],[2026/27 From - Spending review Topic 2]]+Dataset[[#This Row],[2026/27 From - Spending review Topic 3]]+Dataset[[#This Row],[2026/27 From - Spending review Topic 4]]+Dataset[[#This Row],[2026/27 From - Other reallocations]]","v":0},{"$f":"Dataset[[#This Row],[2027/28 From - Spending review Topic 1]]+Dataset[[#This Row],[2027/28 From - Spending review Topic 2]]+Dataset[[#This Row],[2027/28 From - Spending review Topic 3]]+Dataset[[#This Row],[2027/28 From - Spending review Topic 4]]+Dataset[[#This Row],[2027/28 From - Other reallocations]]","v":0},{"$f":"Dataset[[#This Row],[2025/26 To - Spending review Topic 1]]+Dataset[[#This Row],[2025/26 To - Spending review Topic 2]]+Dataset[[#This Row],[2025/26 To - Spending review Topic 3]]+Dataset[[#This Row],[2025/26 To - Spending review Topic 4]]+Dataset[[#This Row],[2025/26 To - Other reallocations]]","v":0},{"$f":"Dataset[[#This Row],[2026/27 To - Spending review Topic 1]]+Dataset[[#This Row],[2026/27 To - Spending review Topic 2]]+Dataset[[#This Row],[2026/27 To - Spending review Topic 3]]+Dataset[[#This Row],[2026/27 To - Spending review Topic 4]]+Dataset[[#This Row],[2026/27 To - Other reallocations]]","v":0},{"$f":"Dataset[[#This Row],[2027/28 To - Spending review Topic 1]]+Dataset[[#This Row],[2027/28 To - Spending review Topic 2]]+Dataset[[#This Row],[2027/28 To - Spending review Topic 3]]+Dataset[[#This Row],[2027/28 To - Spending review Topic 4]]+Dataset[[#This Row],[2027/28 To - Other reallocations]]","v":0},{"$f":"Dataset[[#This Row],[2025/26 Reduction]]+Dataset[[#This Row],[2025/26 From - Total]]","v":0},{"$f":"Dataset[[#This Row],[2026/27 Reduction]]+Dataset[[#This Row],[2026/27 From - Total]]","v":0},{"$f":"Dataset[[#This Row],[2027/28 Reduction]]+Dataset[[#This Row],[2027/28 From - Total]]","v":0},{"$f":"Dataset[[#This Row],[2024/25 Reduction]]","v":0},{"$f":"SUM(Dataset[[#This Row],[2025/26 Reduction]],Dataset[[#This Row],[2025/26 From - Total]],Dataset[[#This Row],[2025/26 To - Total]])","v":0},{"$f":"SUM(Dataset[[#This Row],[2026/27 Reduction]],Dataset[[#This Row],[2026/27 From - Total]],Dataset[[#This Row],[2026/27 To - Total]])","v":0},{"$f":"SUM(Dataset[[#This Row],[2027/28 Reduction]],Dataset[[#This Row],[2027/28 From - Total]],Dataset[[#This Row],[2027/28 To - Total]])","v":0},{"$f":"Dataset[[#This Row],[2024/25 Baseline]]+Dataset[[#This Row],[2024/25 Total change]]","v":0},{"$f":"Dataset[[#This Row],[2025/26 Baseline]]+Dataset[[#This Row],[2025/26 Total change]]","v":0},{"$f":"Dataset[[#This Row],[2026/27 Baseline]]+Dataset[[#This Row],[2026/27 Total change]]","v":0},{"$f":"Dataset[[#This Row],[2027/28 Baseline]]+Dataset[[#This Row],[2027/28 Total change]]","v":0}]
["NAT|Non-transfer item","40|Rental and hiring","2025_26","MTEC2025",40,3,1,51886,614,"40","03","01","051886","000614","40|03|01|000614","01","01","02","34","34","01|01|02|34|34","National","Transport","Rail Transport","Rail Regulation","Non-transfer item","Current","Current payments","Goods and services","Rental and hiring","Rental and hiring","Economic development","Economic regulation and infrastructure","NAT",0,0,0,0,0,0,null,0,0,0,0,null,null,null,null,null,null,null,null,null,null,null,null,null,null,null,null,null,null,null,null,null,null,null,null,null,null,null,null,null,null,null,null,null,null,{"$f":"Dataset[[#This Row],[2025/26 From - Spending review Topic 1]]+Dataset[[#This Row],[2025/26 From - Spending review Topic 2]]+Dataset[[#This Row],[2025/26 From - Spending review Topic 3]]+Dataset[[#This Row],[2025/26 From - Spending review Topic 4]]+Dataset[[#This Row],[2025/26 From - Other reallocations]]","v":0},{"$f":"Dataset[[#This Row],[2026/27 From - Spending review Topic 1]]+Dataset[[#This Row],[2026/27 From - Spending review Topic 2]]+Dataset[[#This Row],[2026/27 From - Spending review Topic 3]]+Dataset[[#This Row],[2026/27 From - Spending review Topic 4]]+Dataset[[#This Row],[2026/27 From - Other reallocations]]","v":0},{"$f":"Dataset[[#This Row],[2027/28 From - Spending review Topic 1]]+Dataset[[#This Row],[2027/28 From - Spending review Topic 2]]+Dataset[[#This Row],[2027/28 From - Spending review Topic 3]]+Dataset[[#This Row],[2027/28 From - Spending review Topic 4]]+Dataset[[#This Row],[2027/28 From - Other reallocations]]","v":0},{"$f":"Dataset[[#This Row],[2025/26 To - Spending review Topic 1]]+Dataset[[#This Row],[2025/26 To - Spending review Topic 2]]+Dataset[[#This Row],[2025/26 To - Spending review Topic 3]]+Dataset[[#This Row],[2025/26 To - Spending review Topic 4]]+Dataset[[#This Row],[2025/26 To - Other reallocations]]","v":0},{"$f":"Dataset[[#This Row],[2026/27 To - Spending review Topic 1]]+Dataset[[#This Row],[2026/27 To - Spending review Topic 2]]+Dataset[[#This Row],[2026/27 To - Spending review Topic 3]]+Dataset[[#This Row],[2026/27 To - Spending review Topic 4]]+Dataset[[#This Row],[2026/27 To - Other reallocations]]","v":0},{"$f":"Dataset[[#This Row],[2027/28 To - Spending review Topic 1]]+Dataset[[#This Row],[2027/28 To - Spending review Topic 2]]+Dataset[[#This Row],[2027/28 To - Spending review Topic 3]]+Dataset[[#This Row],[2027/28 To - Spending review Topic 4]]+Dataset[[#This Row],[2027/28 To - Other reallocations]]","v":0},{"$f":"Dataset[[#This Row],[2025/26 Reduction]]+Dataset[[#This Row],[2025/26 From - Total]]","v":0},{"$f":"Dataset[[#This Row],[2026/27 Reduction]]+Dataset[[#This Row],[2026/27 From - Total]]","v":0},{"$f":"Dataset[[#This Row],[2027/28 Reduction]]+Dataset[[#This Row],[2027/28 From - Total]]","v":0},{"$f":"Dataset[[#This Row],[2024/25 Reduction]]","v":0},{"$f":"SUM(Dataset[[#This Row],[2025/26 Reduction]],Dataset[[#This Row],[2025/26 From - Total]],Dataset[[#This Row],[2025/26 To - Total]])","v":0},{"$f":"SUM(Dataset[[#This Row],[2026/27 Reduction]],Dataset[[#This Row],[2026/27 From - Total]],Dataset[[#This Row],[2026/27 To - Total]])","v":0},{"$f":"SUM(Dataset[[#This Row],[2027/28 Reduction]],Dataset[[#This Row],[2027/28 From - Total]],Dataset[[#This Row],[2027/28 To - Total]])","v":0},{"$f":"Dataset[[#This Row],[2024/25 Baseline]]+Dataset[[#This Row],[2024/25 Total change]]","v":0},{"$f":"Dataset[[#This Row],[2025/26 Baseline]]+Dataset[[#This Row],[2025/26 Total change]]","v":0},{"$f":"Dataset[[#This Row],[2026/27 Baseline]]+Dataset[[#This Row],[2026/27 Total change]]","v":0},{"$f":"Dataset[[#This Row],[2027/28 Baseline]]+Dataset[[#This Row],[2027/28 Total change]]","v":0}]
["NAT|Non-transfer item","40|Rent on land","2025_26","MTEC2025",40,3,1,51894,622,"40","03","01","051894","000622","40|03|01|000622","01","01","03","42","42","01|01|03|42|42","National","Transport","Rail Transport","Rail Regulation","Non-transfer item","Current","Current payments","Interest and rent on land","Rent on land","Rent on land","Economic development","Economic regulation and infrastructure","NAT",0,0,0,0,0,0,null,0,0,0,0,null,null,null,null,null,null,null,null,null,null,null,null,null,null,null,null,null,null,null,null,null,null,null,null,null,null,null,null,null,null,null,null,null,null,{"$f":"Dataset[[#This Row],[2025/26 From - Spending review Topic 1]]+Dataset[[#This Row],[2025/26 From - Spending review Topic 2]]+Dataset[[#This Row],[2025/26 From - Spending review Topic 3]]+Dataset[[#This Row],[2025/26 From - Spending review Topic 4]]+Dataset[[#This Row],[2025/26 From - Other reallocations]]","v":0},{"$f":"Dataset[[#This Row],[2026/27 From - Spending review Topic 1]]+Dataset[[#This Row],[2026/27 From - Spending review Topic 2]]+Dataset[[#This Row],[2026/27 From - Spending review Topic 3]]+Dataset[[#This Row],[2026/27 From - Spending review Topic 4]]+Dataset[[#This Row],[2026/27 From - Other reallocations]]","v":0},{"$f":"Dataset[[#This Row],[2027/28 From - Spending review Topic 1]]+Dataset[[#This Row],[2027/28 From - Spending review Topic 2]]+Dataset[[#This Row],[2027/28 From - Spending review Topic 3]]+Dataset[[#This Row],[2027/28 From - Spending review Topic 4]]+Dataset[[#This Row],[2027/28 From - Other reallocations]]","v":0},{"$f":"Dataset[[#This Row],[2025/26 To - Spending review Topic 1]]+Dataset[[#This Row],[2025/26 To - Spending review Topic 2]]+Dataset[[#This Row],[2025/26 To - Spending review Topic 3]]+Dataset[[#This Row],[2025/26 To - Spending review Topic 4]]+Dataset[[#This Row],[2025/26 To - Other reallocations]]","v":0},{"$f":"Dataset[[#This Row],[2026/27 To - Spending review Topic 1]]+Dataset[[#This Row],[2026/27 To - Spending review Topic 2]]+Dataset[[#This Row],[2026/27 To - Spending review Topic 3]]+Dataset[[#This Row],[2026/27 To - Spending review Topic 4]]+Dataset[[#This Row],[2026/27 To - Other reallocations]]","v":0},{"$f":"Dataset[[#This Row],[2027/28 To - Spending review Topic 1]]+Dataset[[#This Row],[2027/28 To - Spending review Topic 2]]+Dataset[[#This Row],[2027/28 To - Spending review Topic 3]]+Dataset[[#This Row],[2027/28 To - Spending review Topic 4]]+Dataset[[#This Row],[2027/28 To - Other reallocations]]","v":0},{"$f":"Dataset[[#This Row],[2025/26 Reduction]]+Dataset[[#This Row],[2025/26 From - Total]]","v":0},{"$f":"Dataset[[#This Row],[2026/27 Reduction]]+Dataset[[#This Row],[2026/27 From - Total]]","v":0},{"$f":"Dataset[[#This Row],[2027/28 Reduction]]+Dataset[[#This Row],[2027/28 From - Total]]","v":0},{"$f":"Dataset[[#This Row],[2024/25 Reduction]]","v":0},{"$f":"SUM(Dataset[[#This Row],[2025/26 Reduction]],Dataset[[#This Row],[2025/26 From - Total]],Dataset[[#This Row],[2025/26 To - Total]])","v":0},{"$f":"SUM(Dataset[[#This Row],[2026/27 Reduction]],Dataset[[#This Row],[2026/27 From - Total]],Dataset[[#This Row],[2026/27 To - Total]])","v":0},{"$f":"SUM(Dataset[[#This Row],[2027/28 Reduction]],Dataset[[#This Row],[2027/28 From - Total]],Dataset[[#This Row],[2027/28 To - Total]])","v":0},{"$f":"Dataset[[#This Row],[2024/25 Baseline]]+Dataset[[#This Row],[2024/25 Total change]]","v":0},{"$f":"Dataset[[#This Row],[2025/26 Baseline]]+Dataset[[#This Row],[2025/26 Total change]]","v":0},{"$f":"Dataset[[#This Row],[2026/27 Baseline]]+Dataset[[#This Row],[2026/27 Total change]]","v":0},{"$f":"Dataset[[#This Row],[2027/28 Baseline]]+Dataset[[#This Row],[2027/28 Total change]]","v":0}]
["NAT|Non-transfer item","40|Biological assets","2025_26","MTEC2025",40,3,1,51902,630,"40","03","01","051902","000630","40|03|01|000630","02","03","15","60","64","02|03|15|60|64","National","Transport","Rail Transport","Rail Regulation","Non-transfer item","Capital","Payments for capital assets","Biological assets","Biological assets","Biological assets","Economic development","Economic regulation and infrastructure","NAT",0,0,0,0,0,0,null,0,0,0,0,null,null,null,null,null,null,null,null,null,null,null,null,null,null,null,null,null,null,null,null,null,null,null,null,null,null,null,null,null,null,null,null,null,null,{"$f":"Dataset[[#This Row],[2025/26 From - Spending review Topic 1]]+Dataset[[#This Row],[2025/26 From - Spending review Topic 2]]+Dataset[[#This Row],[2025/26 From - Spending review Topic 3]]+Dataset[[#This Row],[2025/26 From - Spending review Topic 4]]+Dataset[[#This Row],[2025/26 From - Other reallocations]]","v":0},{"$f":"Dataset[[#This Row],[2026/27 From - Spending review Topic 1]]+Dataset[[#This Row],[2026/27 From - Spending review Topic 2]]+Dataset[[#This Row],[2026/27 From - Spending review Topic 3]]+Dataset[[#This Row],[2026/27 From - Spending review Topic 4]]+Dataset[[#This Row],[2026/27 From - Other reallocations]]","v":0},{"$f":"Dataset[[#This Row],[2027/28 From - Spending review Topic 1]]+Dataset[[#This Row],[2027/28 From - Spending review Topic 2]]+Dataset[[#This Row],[2027/28 From - Spending review Topic 3]]+Dataset[[#This Row],[2027/28 From - Spending review Topic 4]]+Dataset[[#This Row],[2027/28 From - Other reallocations]]","v":0},{"$f":"Dataset[[#This Row],[2025/26 To - Spending review Topic 1]]+Dataset[[#This Row],[2025/26 To - Spending review Topic 2]]+Dataset[[#This Row],[2025/26 To - Spending review Topic 3]]+Dataset[[#This Row],[2025/26 To - Spending review Topic 4]]+Dataset[[#This Row],[2025/26 To - Other reallocations]]","v":0},{"$f":"Dataset[[#This Row],[2026/27 To - Spending review Topic 1]]+Dataset[[#This Row],[2026/27 To - Spending review Topic 2]]+Dataset[[#This Row],[2026/27 To - Spending review Topic 3]]+Dataset[[#This Row],[2026/27 To - Spending review Topic 4]]+Dataset[[#This Row],[2026/27 To - Other reallocations]]","v":0},{"$f":"Dataset[[#This Row],[2027/28 To - Spending review Topic 1]]+Dataset[[#This Row],[2027/28 To - Spending review Topic 2]]+Dataset[[#This Row],[2027/28 To - Spending review Topic 3]]+Dataset[[#This Row],[2027/28 To - Spending review Topic 4]]+Dataset[[#This Row],[2027/28 To - Other reallocations]]","v":0},{"$f":"Dataset[[#This Row],[2025/26 Reduction]]+Dataset[[#This Row],[2025/26 From - Total]]","v":0},{"$f":"Dataset[[#This Row],[2026/27 Reduction]]+Dataset[[#This Row],[2026/27 From - Total]]","v":0},{"$f":"Dataset[[#This Row],[2027/28 Reduction]]+Dataset[[#This Row],[2027/28 From - Total]]","v":0},{"$f":"Dataset[[#This Row],[2024/25 Reduction]]","v":0},{"$f":"SUM(Dataset[[#This Row],[2025/26 Reduction]],Dataset[[#This Row],[2025/26 From - Total]],Dataset[[#This Row],[2025/26 To - Total]])","v":0},{"$f":"SUM(Dataset[[#This Row],[2026/27 Reduction]],Dataset[[#This Row],[2026/27 From - Total]],Dataset[[#This Row],[2026/27 To - Total]])","v":0},{"$f":"SUM(Dataset[[#This Row],[2027/28 Reduction]],Dataset[[#This Row],[2027/28 From - Total]],Dataset[[#This Row],[2027/28 To - Total]])","v":0},{"$f":"Dataset[[#This Row],[2024/25 Baseline]]+Dataset[[#This Row],[2024/25 Total change]]","v":0},{"$f":"Dataset[[#This Row],[2025/26 Baseline]]+Dataset[[#This Row],[2025/26 Total change]]","v":0},{"$f":"Dataset[[#This Row],[2026/27 Baseline]]+Dataset[[#This Row],[2026/27 Total change]]","v":0},{"$f":"Dataset[[#This Row],[2027/28 Baseline]]+Dataset[[#This Row],[2027/28 Total change]]","v":0}]
["NAT|Non-transfer item","40|Catering: Departmental activities","2025_26","MTEC2025",40,3,2,51912,640,"40","03","02","051912","000640","40|03|02|000640","01","01","02","08","08","01|01|02|08|08","National","Transport","Rail Transport","Rail Infrastructure and Industry Development","Non-transfer item","Current","Current payments","Goods and services","Catering: Departmental activities","Catering: Departmental activities","Economic development","Economic regulation and infrastructure","NAT",0,0,0,0,0,0,null,0,0,0,0,null,null,null,null,null,null,null,null,null,null,null,null,null,null,null,null,null,null,null,null,null,null,null,null,null,null,null,null,null,null,null,null,null,null,{"$f":"Dataset[[#This Row],[2025/26 From - Spending review Topic 1]]+Dataset[[#This Row],[2025/26 From - Spending review Topic 2]]+Dataset[[#This Row],[2025/26 From - Spending review Topic 3]]+Dataset[[#This Row],[2025/26 From - Spending review Topic 4]]+Dataset[[#This Row],[2025/26 From - Other reallocations]]","v":0},{"$f":"Dataset[[#This Row],[2026/27 From - Spending review Topic 1]]+Dataset[[#This Row],[2026/27 From - Spending review Topic 2]]+Dataset[[#This Row],[2026/27 From - Spending review Topic 3]]+Dataset[[#This Row],[2026/27 From - Spending review Topic 4]]+Dataset[[#This Row],[2026/27 From - Other reallocations]]","v":0},{"$f":"Dataset[[#This Row],[2027/28 From - Spending review Topic 1]]+Dataset[[#This Row],[2027/28 From - Spending review Topic 2]]+Dataset[[#This Row],[2027/28 From - Spending review Topic 3]]+Dataset[[#This Row],[2027/28 From - Spending review Topic 4]]+Dataset[[#This Row],[2027/28 From - Other reallocations]]","v":0},{"$f":"Dataset[[#This Row],[2025/26 To - Spending review Topic 1]]+Dataset[[#This Row],[2025/26 To - Spending review Topic 2]]+Dataset[[#This Row],[2025/26 To - Spending review Topic 3]]+Dataset[[#This Row],[2025/26 To - Spending review Topic 4]]+Dataset[[#This Row],[2025/26 To - Other reallocations]]","v":0},{"$f":"Dataset[[#This Row],[2026/27 To - Spending review Topic 1]]+Dataset[[#This Row],[2026/27 To - Spending review Topic 2]]+Dataset[[#This Row],[2026/27 To - Spending review Topic 3]]+Dataset[[#This Row],[2026/27 To - Spending review Topic 4]]+Dataset[[#This Row],[2026/27 To - Other reallocations]]","v":0},{"$f":"Dataset[[#This Row],[2027/28 To - Spending review Topic 1]]+Dataset[[#This Row],[2027/28 To - Spending review Topic 2]]+Dataset[[#This Row],[2027/28 To - Spending review Topic 3]]+Dataset[[#This Row],[2027/28 To - Spending review Topic 4]]+Dataset[[#This Row],[2027/28 To - Other reallocations]]","v":0},{"$f":"Dataset[[#This Row],[2025/26 Reduction]]+Dataset[[#This Row],[2025/26 From - Total]]","v":0},{"$f":"Dataset[[#This Row],[2026/27 Reduction]]+Dataset[[#This Row],[2026/27 From - Total]]","v":0},{"$f":"Dataset[[#This Row],[2027/28 Reduction]]+Dataset[[#This Row],[2027/28 From - Total]]","v":0},{"$f":"Dataset[[#This Row],[2024/25 Reduction]]","v":0},{"$f":"SUM(Dataset[[#This Row],[2025/26 Reduction]],Dataset[[#This Row],[2025/26 From - Total]],Dataset[[#This Row],[2025/26 To - Total]])","v":0},{"$f":"SUM(Dataset[[#This Row],[2026/27 Reduction]],Dataset[[#This Row],[2026/27 From - Total]],Dataset[[#This Row],[2026/27 To - Total]])","v":0},{"$f":"SUM(Dataset[[#This Row],[2027/28 Reduction]],Dataset[[#This Row],[2027/28 From - Total]],Dataset[[#This Row],[2027/28 To - Total]])","v":0},{"$f":"Dataset[[#This Row],[2024/25 Baseline]]+Dataset[[#This Row],[2024/25 Total change]]","v":0},{"$f":"Dataset[[#This Row],[2025/26 Baseline]]+Dataset[[#This Row],[2025/26 Total change]]","v":0},{"$f":"Dataset[[#This Row],[2026/27 Baseline]]+Dataset[[#This Row],[2026/27 Total change]]","v":0},{"$f":"Dataset[[#This Row],[2027/28 Baseline]]+Dataset[[#This Row],[2027/28 Total change]]","v":0}]
["NAT|Non-transfer item","40|Computer services","2025_26","MTEC2025",40,3,2,51914,642,"40","03","02","051914","000642","40|03|02|000642","01","01","02","10","10","01|01|02|10|10","National","Transport","Rail Transport","Rail Infrastructure and Industry Development","Non-transfer item","Current","Current payments","Goods and services","Computer services","Computer services","Economic development","Economic regulation and infrastructure","NAT",0,0,0,0,0,0,null,0,0,0,0,null,null,null,null,null,null,null,null,null,null,null,null,null,null,null,null,null,null,null,null,null,null,null,null,null,null,null,null,null,null,null,null,null,null,{"$f":"Dataset[[#This Row],[2025/26 From - Spending review Topic 1]]+Dataset[[#This Row],[2025/26 From - Spending review Topic 2]]+Dataset[[#This Row],[2025/26 From - Spending review Topic 3]]+Dataset[[#This Row],[2025/26 From - Spending review Topic 4]]+Dataset[[#This Row],[2025/26 From - Other reallocations]]","v":0},{"$f":"Dataset[[#This Row],[2026/27 From - Spending review Topic 1]]+Dataset[[#This Row],[2026/27 From - Spending review Topic 2]]+Dataset[[#This Row],[2026/27 From - Spending review Topic 3]]+Dataset[[#This Row],[2026/27 From - Spending review Topic 4]]+Dataset[[#This Row],[2026/27 From - Other reallocations]]","v":0},{"$f":"Dataset[[#This Row],[2027/28 From - Spending review Topic 1]]+Dataset[[#This Row],[2027/28 From - Spending review Topic 2]]+Dataset[[#This Row],[2027/28 From - Spending review Topic 3]]+Dataset[[#This Row],[2027/28 From - Spending review Topic 4]]+Dataset[[#This Row],[2027/28 From - Other reallocations]]","v":0},{"$f":"Dataset[[#This Row],[2025/26 To - Spending review Topic 1]]+Dataset[[#This Row],[2025/26 To - Spending review Topic 2]]+Dataset[[#This Row],[2025/26 To - Spending review Topic 3]]+Dataset[[#This Row],[2025/26 To - Spending review Topic 4]]+Dataset[[#This Row],[2025/26 To - Other reallocations]]","v":0},{"$f":"Dataset[[#This Row],[2026/27 To - Spending review Topic 1]]+Dataset[[#This Row],[2026/27 To - Spending review Topic 2]]+Dataset[[#This Row],[2026/27 To - Spending review Topic 3]]+Dataset[[#This Row],[2026/27 To - Spending review Topic 4]]+Dataset[[#This Row],[2026/27 To - Other reallocations]]","v":0},{"$f":"Dataset[[#This Row],[2027/28 To - Spending review Topic 1]]+Dataset[[#This Row],[2027/28 To - Spending review Topic 2]]+Dataset[[#This Row],[2027/28 To - Spending review Topic 3]]+Dataset[[#This Row],[2027/28 To - Spending review Topic 4]]+Dataset[[#This Row],[2027/28 To - Other reallocations]]","v":0},{"$f":"Dataset[[#This Row],[2025/26 Reduction]]+Dataset[[#This Row],[2025/26 From - Total]]","v":0},{"$f":"Dataset[[#This Row],[2026/27 Reduction]]+Dataset[[#This Row],[2026/27 From - Total]]","v":0},{"$f":"Dataset[[#This Row],[2027/28 Reduction]]+Dataset[[#This Row],[2027/28 From - Total]]","v":0},{"$f":"Dataset[[#This Row],[2024/25 Reduction]]","v":0},{"$f":"SUM(Dataset[[#This Row],[2025/26 Reduction]],Dataset[[#This Row],[2025/26 From - Total]],Dataset[[#This Row],[2025/26 To - Total]])","v":0},{"$f":"SUM(Dataset[[#This Row],[2026/27 Reduction]],Dataset[[#This Row],[2026/27 From - Total]],Dataset[[#This Row],[2026/27 To - Total]])","v":0},{"$f":"SUM(Dataset[[#This Row],[2027/28 Reduction]],Dataset[[#This Row],[2027/28 From - Total]],Dataset[[#This Row],[2027/28 To - Total]])","v":0},{"$f":"Dataset[[#This Row],[2024/25 Baseline]]+Dataset[[#This Row],[2024/25 Total change]]","v":0},{"$f":"Dataset[[#This Row],[2025/26 Baseline]]+Dataset[[#This Row],[2025/26 Total change]]","v":0},{"$f":"Dataset[[#This Row],[2026/27 Baseline]]+Dataset[[#This Row],[2026/27 Total change]]","v":0},{"$f":"Dataset[[#This Row],[2027/28 Baseline]]+Dataset[[#This Row],[2027/28 Total change]]","v":0}]
["NAT|Non-transfer item","40|Entertainment","2025_26","MTEC2025",40,3,2,51922,650,"40","03","02","051922","000650","40|03|02|000650","01","01","02","18","18","01|01|02|18|18","National","Transport","Rail Transport","Rail Infrastructure and Industry Development","Non-transfer item","Current","Current payments","Goods and services","Entertainment","Entertainment","Economic development","Economic regulation and infrastructure","NAT",0,0,0,0,0,0,null,0,0,0,0,null,null,null,null,null,null,null,null,null,null,null,null,null,null,null,null,null,null,null,null,null,null,null,null,null,null,null,null,null,null,null,null,null,null,{"$f":"Dataset[[#This Row],[2025/26 From - Spending review Topic 1]]+Dataset[[#This Row],[2025/26 From - Spending review Topic 2]]+Dataset[[#This Row],[2025/26 From - Spending review Topic 3]]+Dataset[[#This Row],[2025/26 From - Spending review Topic 4]]+Dataset[[#This Row],[2025/26 From - Other reallocations]]","v":0},{"$f":"Dataset[[#This Row],[2026/27 From - Spending review Topic 1]]+Dataset[[#This Row],[2026/27 From - Spending review Topic 2]]+Dataset[[#This Row],[2026/27 From - Spending review Topic 3]]+Dataset[[#This Row],[2026/27 From - Spending review Topic 4]]+Dataset[[#This Row],[2026/27 From - Other reallocations]]","v":0},{"$f":"Dataset[[#This Row],[2027/28 From - Spending review Topic 1]]+Dataset[[#This Row],[2027/28 From - Spending review Topic 2]]+Dataset[[#This Row],[2027/28 From - Spending review Topic 3]]+Dataset[[#This Row],[2027/28 From - Spending review Topic 4]]+Dataset[[#This Row],[2027/28 From - Other reallocations]]","v":0},{"$f":"Dataset[[#This Row],[2025/26 To - Spending review Topic 1]]+Dataset[[#This Row],[2025/26 To - Spending review Topic 2]]+Dataset[[#This Row],[2025/26 To - Spending review Topic 3]]+Dataset[[#This Row],[2025/26 To - Spending review Topic 4]]+Dataset[[#This Row],[2025/26 To - Other reallocations]]","v":0},{"$f":"Dataset[[#This Row],[2026/27 To - Spending review Topic 1]]+Dataset[[#This Row],[2026/27 To - Spending review Topic 2]]+Dataset[[#This Row],[2026/27 To - Spending review Topic 3]]+Dataset[[#This Row],[2026/27 To - Spending review Topic 4]]+Dataset[[#This Row],[2026/27 To - Other reallocations]]","v":0},{"$f":"Dataset[[#This Row],[2027/28 To - Spending review Topic 1]]+Dataset[[#This Row],[2027/28 To - Spending review Topic 2]]+Dataset[[#This Row],[2027/28 To - Spending review Topic 3]]+Dataset[[#This Row],[2027/28 To - Spending review Topic 4]]+Dataset[[#This Row],[2027/28 To - Other reallocations]]","v":0},{"$f":"Dataset[[#This Row],[2025/26 Reduction]]+Dataset[[#This Row],[2025/26 From - Total]]","v":0},{"$f":"Dataset[[#This Row],[2026/27 Reduction]]+Dataset[[#This Row],[2026/27 From - Total]]","v":0},{"$f":"Dataset[[#This Row],[2027/28 Reduction]]+Dataset[[#This Row],[2027/28 From - Total]]","v":0},{"$f":"Dataset[[#This Row],[2024/25 Reduction]]","v":0},{"$f":"SUM(Dataset[[#This Row],[2025/26 Reduction]],Dataset[[#This Row],[2025/26 From - Total]],Dataset[[#This Row],[2025/26 To - Total]])","v":0},{"$f":"SUM(Dataset[[#This Row],[2026/27 Reduction]],Dataset[[#This Row],[2026/27 From - Total]],Dataset[[#This Row],[2026/27 To - Total]])","v":0},{"$f":"SUM(Dataset[[#This Row],[2027/28 Reduction]],Dataset[[#This Row],[2027/28 From - Total]],Dataset[[#This Row],[2027/28 To - Total]])","v":0},{"$f":"Dataset[[#This Row],[2024/25 Baseline]]+Dataset[[#This Row],[2024/25 Total change]]","v":0},{"$f":"Dataset[[#This Row],[2025/26 Baseline]]+Dataset[[#This Row],[2025/26 Total change]]","v":0},{"$f":"Dataset[[#This Row],[2026/27 Baseline]]+Dataset[[#This Row],[2026/27 Total change]]","v":0},{"$f":"Dataset[[#This Row],[2027/28 Baseline]]+Dataset[[#This Row],[2027/28 Total change]]","v":0}]
["NAT|Non-transfer item","40|Inventory: Food and food supplies","2025_26","MTEC2025",40,3,2,51927,655,"40","03","02","051927","000655","40|03|02|000655","01","01","02","23","23","01|01|02|23|23","National","Transport","Rail Transport","Rail Infrastructure and Industry Development","Non-transfer item","Current","Current payments","Goods and services","Inventory: Food and food supplies","Inventory: Food and food supplies","Economic development","Economic regulation and infrastructure","NAT",0,0,0,0,0,0,null,0,0,0,0,null,null,null,null,null,null,null,null,null,null,null,null,null,null,null,null,null,null,null,null,null,null,null,null,null,null,null,null,null,null,null,null,null,null,{"$f":"Dataset[[#This Row],[2025/26 From - Spending review Topic 1]]+Dataset[[#This Row],[2025/26 From - Spending review Topic 2]]+Dataset[[#This Row],[2025/26 From - Spending review Topic 3]]+Dataset[[#This Row],[2025/26 From - Spending review Topic 4]]+Dataset[[#This Row],[2025/26 From - Other reallocations]]","v":0},{"$f":"Dataset[[#This Row],[2026/27 From - Spending review Topic 1]]+Dataset[[#This Row],[2026/27 From - Spending review Topic 2]]+Dataset[[#This Row],[2026/27 From - Spending review Topic 3]]+Dataset[[#This Row],[2026/27 From - Spending review Topic 4]]+Dataset[[#This Row],[2026/27 From - Other reallocations]]","v":0},{"$f":"Dataset[[#This Row],[2027/28 From - Spending review Topic 1]]+Dataset[[#This Row],[2027/28 From - Spending review Topic 2]]+Dataset[[#This Row],[2027/28 From - Spending review Topic 3]]+Dataset[[#This Row],[2027/28 From - Spending review Topic 4]]+Dataset[[#This Row],[2027/28 From - Other reallocations]]","v":0},{"$f":"Dataset[[#This Row],[2025/26 To - Spending review Topic 1]]+Dataset[[#This Row],[2025/26 To - Spending review Topic 2]]+Dataset[[#This Row],[2025/26 To - Spending review Topic 3]]+Dataset[[#This Row],[2025/26 To - Spending review Topic 4]]+Dataset[[#This Row],[2025/26 To - Other reallocations]]","v":0},{"$f":"Dataset[[#This Row],[2026/27 To - Spending review Topic 1]]+Dataset[[#This Row],[2026/27 To - Spending review Topic 2]]+Dataset[[#This Row],[2026/27 To - Spending review Topic 3]]+Dataset[[#This Row],[2026/27 To - Spending review Topic 4]]+Dataset[[#This Row],[2026/27 To - Other reallocations]]","v":0},{"$f":"Dataset[[#This Row],[2027/28 To - Spending review Topic 1]]+Dataset[[#This Row],[2027/28 To - Spending review Topic 2]]+Dataset[[#This Row],[2027/28 To - Spending review Topic 3]]+Dataset[[#This Row],[2027/28 To - Spending review Topic 4]]+Dataset[[#This Row],[2027/28 To - Other reallocations]]","v":0},{"$f":"Dataset[[#This Row],[2025/26 Reduction]]+Dataset[[#This Row],[2025/26 From - Total]]","v":0},{"$f":"Dataset[[#This Row],[2026/27 Reduction]]+Dataset[[#This Row],[2026/27 From - Total]]","v":0},{"$f":"Dataset[[#This Row],[2027/28 Reduction]]+Dataset[[#This Row],[2027/28 From - Total]]","v":0},{"$f":"Dataset[[#This Row],[2024/25 Reduction]]","v":0},{"$f":"SUM(Dataset[[#This Row],[2025/26 Reduction]],Dataset[[#This Row],[2025/26 From - Total]],Dataset[[#This Row],[2025/26 To - Total]])","v":0},{"$f":"SUM(Dataset[[#This Row],[2026/27 Reduction]],Dataset[[#This Row],[2026/27 From - Total]],Dataset[[#This Row],[2026/27 To - Total]])","v":0},{"$f":"SUM(Dataset[[#This Row],[2027/28 Reduction]],Dataset[[#This Row],[2027/28 From - Total]],Dataset[[#This Row],[2027/28 To - Total]])","v":0},{"$f":"Dataset[[#This Row],[2024/25 Baseline]]+Dataset[[#This Row],[2024/25 Total change]]","v":0},{"$f":"Dataset[[#This Row],[2025/26 Baseline]]+Dataset[[#This Row],[2025/26 Total change]]","v":0},{"$f":"Dataset[[#This Row],[2026/27 Baseline]]+Dataset[[#This Row],[2026/27 Total change]]","v":0},{"$f":"Dataset[[#This Row],[2027/28 Baseline]]+Dataset[[#This Row],[2027/28 Total change]]","v":0}]
["NAT|Non-transfer item","40|Consumable supplies","2025_26","MTEC2025",40,3,2,51935,663,"40","03","02","051935","000663","40|03|02|000663","01","01","02","31","31","01|01|02|31|31","National","Transport","Rail Transport","Rail Infrastructure and Industry Development","Non-transfer item","Current","Current payments","Goods and services","Consumable supplies","Consumable supplies","Economic development","Economic regulation and infrastructure","NAT",0,0,0,0,0,0,null,0,0,0,0,null,null,null,null,null,null,null,null,null,null,null,null,null,null,null,null,null,null,null,null,null,null,null,null,null,null,null,null,null,null,null,null,null,null,{"$f":"Dataset[[#This Row],[2025/26 From - Spending review Topic 1]]+Dataset[[#This Row],[2025/26 From - Spending review Topic 2]]+Dataset[[#This Row],[2025/26 From - Spending review Topic 3]]+Dataset[[#This Row],[2025/26 From - Spending review Topic 4]]+Dataset[[#This Row],[2025/26 From - Other reallocations]]","v":0},{"$f":"Dataset[[#This Row],[2026/27 From - Spending review Topic 1]]+Dataset[[#This Row],[2026/27 From - Spending review Topic 2]]+Dataset[[#This Row],[2026/27 From - Spending review Topic 3]]+Dataset[[#This Row],[2026/27 From - Spending review Topic 4]]+Dataset[[#This Row],[2026/27 From - Other reallocations]]","v":0},{"$f":"Dataset[[#This Row],[2027/28 From - Spending review Topic 1]]+Dataset[[#This Row],[2027/28 From - Spending review Topic 2]]+Dataset[[#This Row],[2027/28 From - Spending review Topic 3]]+Dataset[[#This Row],[2027/28 From - Spending review Topic 4]]+Dataset[[#This Row],[2027/28 From - Other reallocations]]","v":0},{"$f":"Dataset[[#This Row],[2025/26 To - Spending review Topic 1]]+Dataset[[#This Row],[2025/26 To - Spending review Topic 2]]+Dataset[[#This Row],[2025/26 To - Spending review Topic 3]]+Dataset[[#This Row],[2025/26 To - Spending review Topic 4]]+Dataset[[#This Row],[2025/26 To - Other reallocations]]","v":0},{"$f":"Dataset[[#This Row],[2026/27 To - Spending review Topic 1]]+Dataset[[#This Row],[2026/27 To - Spending review Topic 2]]+Dataset[[#This Row],[2026/27 To - Spending review Topic 3]]+Dataset[[#This Row],[2026/27 To - Spending review Topic 4]]+Dataset[[#This Row],[2026/27 To - Other reallocations]]","v":0},{"$f":"Dataset[[#This Row],[2027/28 To - Spending review Topic 1]]+Dataset[[#This Row],[2027/28 To - Spending review Topic 2]]+Dataset[[#This Row],[2027/28 To - Spending review Topic 3]]+Dataset[[#This Row],[2027/28 To - Spending review Topic 4]]+Dataset[[#This Row],[2027/28 To - Other reallocations]]","v":0},{"$f":"Dataset[[#This Row],[2025/26 Reduction]]+Dataset[[#This Row],[2025/26 From - Total]]","v":0},{"$f":"Dataset[[#This Row],[2026/27 Reduction]]+Dataset[[#This Row],[2026/27 From - Total]]","v":0},{"$f":"Dataset[[#This Row],[2027/28 Reduction]]+Dataset[[#This Row],[2027/28 From - Total]]","v":0},{"$f":"Dataset[[#This Row],[2024/25 Reduction]]","v":0},{"$f":"SUM(Dataset[[#This Row],[2025/26 Reduction]],Dataset[[#This Row],[2025/26 From - Total]],Dataset[[#This Row],[2025/26 To - Total]])","v":0},{"$f":"SUM(Dataset[[#This Row],[2026/27 Reduction]],Dataset[[#This Row],[2026/27 From - Total]],Dataset[[#This Row],[2026/27 To - Total]])","v":0},{"$f":"SUM(Dataset[[#This Row],[2027/28 Reduction]],Dataset[[#This Row],[2027/28 From - Total]],Dataset[[#This Row],[2027/28 To - Total]])","v":0},{"$f":"Dataset[[#This Row],[2024/25 Baseline]]+Dataset[[#This Row],[2024/25 Total change]]","v":0},{"$f":"Dataset[[#This Row],[2025/26 Baseline]]+Dataset[[#This Row],[2025/26 Total change]]","v":0},{"$f":"Dataset[[#This Row],[2026/27 Baseline]]+Dataset[[#This Row],[2026/27 Total change]]","v":0},{"$f":"Dataset[[#This Row],[2027/28 Baseline]]+Dataset[[#This Row],[2027/28 Total change]]","v":0}]
["NAT|Non-transfer item","40|Buildings","2025_26","MTEC2025",40,3,2,51947,675,"40","03","02","051947","000675","40|03|02|000675","02","03","11","54","58","02|03|11|54|58","National","Transport","Rail Transport","Rail Infrastructure and Industry Development","Non-transfer item","Capital","Payments for capital assets","Buildings and other fixed structures","Buildings","Buildings","Economic development","Economic regulation and infrastructure","NAT",0,0,0,0,0,0,null,0,0,0,0,null,null,null,null,null,null,null,null,null,null,null,null,null,null,null,null,null,null,null,null,null,null,null,null,null,null,null,null,null,null,null,null,null,null,{"$f":"Dataset[[#This Row],[2025/26 From - Spending review Topic 1]]+Dataset[[#This Row],[2025/26 From - Spending review Topic 2]]+Dataset[[#This Row],[2025/26 From - Spending review Topic 3]]+Dataset[[#This Row],[2025/26 From - Spending review Topic 4]]+Dataset[[#This Row],[2025/26 From - Other reallocations]]","v":0},{"$f":"Dataset[[#This Row],[2026/27 From - Spending review Topic 1]]+Dataset[[#This Row],[2026/27 From - Spending review Topic 2]]+Dataset[[#This Row],[2026/27 From - Spending review Topic 3]]+Dataset[[#This Row],[2026/27 From - Spending review Topic 4]]+Dataset[[#This Row],[2026/27 From - Other reallocations]]","v":0},{"$f":"Dataset[[#This Row],[2027/28 From - Spending review Topic 1]]+Dataset[[#This Row],[2027/28 From - Spending review Topic 2]]+Dataset[[#This Row],[2027/28 From - Spending review Topic 3]]+Dataset[[#This Row],[2027/28 From - Spending review Topic 4]]+Dataset[[#This Row],[2027/28 From - Other reallocations]]","v":0},{"$f":"Dataset[[#This Row],[2025/26 To - Spending review Topic 1]]+Dataset[[#This Row],[2025/26 To - Spending review Topic 2]]+Dataset[[#This Row],[2025/26 To - Spending review Topic 3]]+Dataset[[#This Row],[2025/26 To - Spending review Topic 4]]+Dataset[[#This Row],[2025/26 To - Other reallocations]]","v":0},{"$f":"Dataset[[#This Row],[2026/27 To - Spending review Topic 1]]+Dataset[[#This Row],[2026/27 To - Spending review Topic 2]]+Dataset[[#This Row],[2026/27 To - Spending review Topic 3]]+Dataset[[#This Row],[2026/27 To - Spending review Topic 4]]+Dataset[[#This Row],[2026/27 To - Other reallocations]]","v":0},{"$f":"Dataset[[#This Row],[2027/28 To - Spending review Topic 1]]+Dataset[[#This Row],[2027/28 To - Spending review Topic 2]]+Dataset[[#This Row],[2027/28 To - Spending review Topic 3]]+Dataset[[#This Row],[2027/28 To - Spending review Topic 4]]+Dataset[[#This Row],[2027/28 To - Other reallocations]]","v":0},{"$f":"Dataset[[#This Row],[2025/26 Reduction]]+Dataset[[#This Row],[2025/26 From - Total]]","v":0},{"$f":"Dataset[[#This Row],[2026/27 Reduction]]+Dataset[[#This Row],[2026/27 From - Total]]","v":0},{"$f":"Dataset[[#This Row],[2027/28 Reduction]]+Dataset[[#This Row],[2027/28 From - Total]]","v":0},{"$f":"Dataset[[#This Row],[2024/25 Reduction]]","v":0},{"$f":"SUM(Dataset[[#This Row],[2025/26 Reduction]],Dataset[[#This Row],[2025/26 From - Total]],Dataset[[#This Row],[2025/26 To - Total]])","v":0},{"$f":"SUM(Dataset[[#This Row],[2026/27 Reduction]],Dataset[[#This Row],[2026/27 From - Total]],Dataset[[#This Row],[2026/27 To - Total]])","v":0},{"$f":"SUM(Dataset[[#This Row],[2027/28 Reduction]],Dataset[[#This Row],[2027/28 From - Total]],Dataset[[#This Row],[2027/28 To - Total]])","v":0},{"$f":"Dataset[[#This Row],[2024/25 Baseline]]+Dataset[[#This Row],[2024/25 Total change]]","v":0},{"$f":"Dataset[[#This Row],[2025/26 Baseline]]+Dataset[[#This Row],[2025/26 Total change]]","v":0},{"$f":"Dataset[[#This Row],[2026/27 Baseline]]+Dataset[[#This Row],[2026/27 Total change]]","v":0},{"$f":"Dataset[[#This Row],[2027/28 Baseline]]+Dataset[[#This Row],[2027/28 Total change]]","v":0}]
["NAT|Non-transfer item","40|Other fixed structures","2025_26","MTEC2025",40,3,2,51948,676,"40","03","02","051948","000676","40|03|02|000676","02","03","11","55","59","02|03|11|55|59","National","Transport","Rail Transport","Rail Infrastructure and Industry Development","Non-transfer item","Capital","Payments for capital assets","Buildings and other fixed structures","Other fixed structures","Other fixed structures","Economic development","Economic regulation and infrastructure","NAT",0,0,0,0,0,0,null,0,0,0,0,null,null,null,null,null,null,null,null,null,null,null,null,null,null,null,null,null,null,null,null,null,null,null,null,null,null,null,null,null,null,null,null,null,null,{"$f":"Dataset[[#This Row],[2025/26 From - Spending review Topic 1]]+Dataset[[#This Row],[2025/26 From - Spending review Topic 2]]+Dataset[[#This Row],[2025/26 From - Spending review Topic 3]]+Dataset[[#This Row],[2025/26 From - Spending review Topic 4]]+Dataset[[#This Row],[2025/26 From - Other reallocations]]","v":0},{"$f":"Dataset[[#This Row],[2026/27 From - Spending review Topic 1]]+Dataset[[#This Row],[2026/27 From - Spending review Topic 2]]+Dataset[[#This Row],[2026/27 From - Spending review Topic 3]]+Dataset[[#This Row],[2026/27 From - Spending review Topic 4]]+Dataset[[#This Row],[2026/27 From - Other reallocations]]","v":0},{"$f":"Dataset[[#This Row],[2027/28 From - Spending review Topic 1]]+Dataset[[#This Row],[2027/28 From - Spending review Topic 2]]+Dataset[[#This Row],[2027/28 From - Spending review Topic 3]]+Dataset[[#This Row],[2027/28 From - Spending review Topic 4]]+Dataset[[#This Row],[2027/28 From - Other reallocations]]","v":0},{"$f":"Dataset[[#This Row],[2025/26 To - Spending review Topic 1]]+Dataset[[#This Row],[2025/26 To - Spending review Topic 2]]+Dataset[[#This Row],[2025/26 To - Spending review Topic 3]]+Dataset[[#This Row],[2025/26 To - Spending review Topic 4]]+Dataset[[#This Row],[2025/26 To - Other reallocations]]","v":0},{"$f":"Dataset[[#This Row],[2026/27 To - Spending review Topic 1]]+Dataset[[#This Row],[2026/27 To - Spending review Topic 2]]+Dataset[[#This Row],[2026/27 To - Spending review Topic 3]]+Dataset[[#This Row],[2026/27 To - Spending review Topic 4]]+Dataset[[#This Row],[2026/27 To - Other reallocations]]","v":0},{"$f":"Dataset[[#This Row],[2027/28 To - Spending review Topic 1]]+Dataset[[#This Row],[2027/28 To - Spending review Topic 2]]+Dataset[[#This Row],[2027/28 To - Spending review Topic 3]]+Dataset[[#This Row],[2027/28 To - Spending review Topic 4]]+Dataset[[#This Row],[2027/28 To - Other reallocations]]","v":0},{"$f":"Dataset[[#This Row],[2025/26 Reduction]]+Dataset[[#This Row],[2025/26 From - Total]]","v":0},{"$f":"Dataset[[#This Row],[2026/27 Reduction]]+Dataset[[#This Row],[2026/27 From - Total]]","v":0},{"$f":"Dataset[[#This Row],[2027/28 Reduction]]+Dataset[[#This Row],[2027/28 From - Total]]","v":0},{"$f":"Dataset[[#This Row],[2024/25 Reduction]]","v":0},{"$f":"SUM(Dataset[[#This Row],[2025/26 Reduction]],Dataset[[#This Row],[2025/26 From - Total]],Dataset[[#This Row],[2025/26 To - Total]])","v":0},{"$f":"SUM(Dataset[[#This Row],[2026/27 Reduction]],Dataset[[#This Row],[2026/27 From - Total]],Dataset[[#This Row],[2026/27 To - Total]])","v":0},{"$f":"SUM(Dataset[[#This Row],[2027/28 Reduction]],Dataset[[#This Row],[2027/28 From - Total]],Dataset[[#This Row],[2027/28 To - Total]])","v":0},{"$f":"Dataset[[#This Row],[2024/25 Baseline]]+Dataset[[#This Row],[2024/25 Total change]]","v":0},{"$f":"Dataset[[#This Row],[2025/26 Baseline]]+Dataset[[#This Row],[2025/26 Total change]]","v":0},{"$f":"Dataset[[#This Row],[2026/27 Baseline]]+Dataset[[#This Row],[2026/27 Total change]]","v":0},{"$f":"Dataset[[#This Row],[2027/28 Baseline]]+Dataset[[#This Row],[2027/28 Total change]]","v":0}]
["NAT|Non-transfer item","40|Salaries and wages","2025_26","MTEC2025",40,3,3,51956,684,"40","03","03","051956","000684","40|03|03|000684","01","01","01","01","01","01|01|01|01|01","National","Transport","Rail Transport","Rail Operations","Non-transfer item","Current","Current payments","Compensation of employees","Salaries and wages","Salaries and wages","Economic development","Economic regulation and infrastructure","NAT",8832,9077,5562,6827,6827,6827,5811,7180,7502,7846,8201,null,null,null,null,null,null,null,null,null,null,null,null,null,null,null,null,null,null,null,null,null,null,null,null,null,null,null,null,null,null,null,null,null,null,{"$f":"Dataset[[#This Row],[2025/26 From - Spending review Topic 1]]+Dataset[[#This Row],[2025/26 From - Spending review Topic 2]]+Dataset[[#This Row],[2025/26 From - Spending review Topic 3]]+Dataset[[#This Row],[2025/26 From - Spending review Topic 4]]+Dataset[[#This Row],[2025/26 From - Other reallocations]]","v":0},{"$f":"Dataset[[#This Row],[2026/27 From - Spending review Topic 1]]+Dataset[[#This Row],[2026/27 From - Spending review Topic 2]]+Dataset[[#This Row],[2026/27 From - Spending review Topic 3]]+Dataset[[#This Row],[2026/27 From - Spending review Topic 4]]+Dataset[[#This Row],[2026/27 From - Other reallocations]]","v":0},{"$f":"Dataset[[#This Row],[2027/28 From - Spending review Topic 1]]+Dataset[[#This Row],[2027/28 From - Spending review Topic 2]]+Dataset[[#This Row],[2027/28 From - Spending review Topic 3]]+Dataset[[#This Row],[2027/28 From - Spending review Topic 4]]+Dataset[[#This Row],[2027/28 From - Other reallocations]]","v":0},{"$f":"Dataset[[#This Row],[2025/26 To - Spending review Topic 1]]+Dataset[[#This Row],[2025/26 To - Spending review Topic 2]]+Dataset[[#This Row],[2025/26 To - Spending review Topic 3]]+Dataset[[#This Row],[2025/26 To - Spending review Topic 4]]+Dataset[[#This Row],[2025/26 To - Other reallocations]]","v":0},{"$f":"Dataset[[#This Row],[2026/27 To - Spending review Topic 1]]+Dataset[[#This Row],[2026/27 To - Spending review Topic 2]]+Dataset[[#This Row],[2026/27 To - Spending review Topic 3]]+Dataset[[#This Row],[2026/27 To - Spending review Topic 4]]+Dataset[[#This Row],[2026/27 To - Other reallocations]]","v":0},{"$f":"Dataset[[#This Row],[2027/28 To - Spending review Topic 1]]+Dataset[[#This Row],[2027/28 To - Spending review Topic 2]]+Dataset[[#This Row],[2027/28 To - Spending review Topic 3]]+Dataset[[#This Row],[2027/28 To - Spending review Topic 4]]+Dataset[[#This Row],[2027/28 To - Other reallocations]]","v":0},{"$f":"Dataset[[#This Row],[2025/26 Reduction]]+Dataset[[#This Row],[2025/26 From - Total]]","v":0},{"$f":"Dataset[[#This Row],[2026/27 Reduction]]+Dataset[[#This Row],[2026/27 From - Total]]","v":0},{"$f":"Dataset[[#This Row],[2027/28 Reduction]]+Dataset[[#This Row],[2027/28 From - Total]]","v":0},{"$f":"Dataset[[#This Row],[2024/25 Reduction]]","v":0},{"$f":"SUM(Dataset[[#This Row],[2025/26 Reduction]],Dataset[[#This Row],[2025/26 From - Total]],Dataset[[#This Row],[2025/26 To - Total]])","v":0},{"$f":"SUM(Dataset[[#This Row],[2026/27 Reduction]],Dataset[[#This Row],[2026/27 From - Total]],Dataset[[#This Row],[2026/27 To - Total]])","v":0},{"$f":"SUM(Dataset[[#This Row],[2027/28 Reduction]],Dataset[[#This Row],[2027/28 From - Total]],Dataset[[#This Row],[2027/28 To - Total]])","v":0},{"$f":"Dataset[[#This Row],[2024/25 Baseline]]+Dataset[[#This Row],[2024/25 Total change]]","v":7180},{"$f":"Dataset[[#This Row],[2025/26 Baseline]]+Dataset[[#This Row],[2025/26 Total change]]","v":7502},{"$f":"Dataset[[#This Row],[2026/27 Baseline]]+Dataset[[#This Row],[2026/27 Total change]]","v":7846},{"$f":"Dataset[[#This Row],[2027/28 Baseline]]+Dataset[[#This Row],[2027/28 Total change]]","v":8201}]
["NAT|Non-transfer item","40|Laboratory services","2025_26","MTEC2025",40,3,3,51968,696,"40","03","03","051968","000696","40|03|03|000696","01","01","02","13","13","01|01|02|13|13","National","Transport","Rail Transport","Rail Operations","Non-transfer item","Current","Current payments","Goods and services","Laboratory services","Laboratory services","Economic development","Economic regulation and infrastructure","NAT",0,0,0,0,0,0,null,0,0,0,0,null,null,null,null,null,null,null,null,null,null,null,null,null,null,null,null,null,null,null,null,null,null,null,null,null,null,null,null,null,null,null,null,null,null,{"$f":"Dataset[[#This Row],[2025/26 From - Spending review Topic 1]]+Dataset[[#This Row],[2025/26 From - Spending review Topic 2]]+Dataset[[#This Row],[2025/26 From - Spending review Topic 3]]+Dataset[[#This Row],[2025/26 From - Spending review Topic 4]]+Dataset[[#This Row],[2025/26 From - Other reallocations]]","v":0},{"$f":"Dataset[[#This Row],[2026/27 From - Spending review Topic 1]]+Dataset[[#This Row],[2026/27 From - Spending review Topic 2]]+Dataset[[#This Row],[2026/27 From - Spending review Topic 3]]+Dataset[[#This Row],[2026/27 From - Spending review Topic 4]]+Dataset[[#This Row],[2026/27 From - Other reallocations]]","v":0},{"$f":"Dataset[[#This Row],[2027/28 From - Spending review Topic 1]]+Dataset[[#This Row],[2027/28 From - Spending review Topic 2]]+Dataset[[#This Row],[2027/28 From - Spending review Topic 3]]+Dataset[[#This Row],[2027/28 From - Spending review Topic 4]]+Dataset[[#This Row],[2027/28 From - Other reallocations]]","v":0},{"$f":"Dataset[[#This Row],[2025/26 To - Spending review Topic 1]]+Dataset[[#This Row],[2025/26 To - Spending review Topic 2]]+Dataset[[#This Row],[2025/26 To - Spending review Topic 3]]+Dataset[[#This Row],[2025/26 To - Spending review Topic 4]]+Dataset[[#This Row],[2025/26 To - Other reallocations]]","v":0},{"$f":"Dataset[[#This Row],[2026/27 To - Spending review Topic 1]]+Dataset[[#This Row],[2026/27 To - Spending review Topic 2]]+Dataset[[#This Row],[2026/27 To - Spending review Topic 3]]+Dataset[[#This Row],[2026/27 To - Spending review Topic 4]]+Dataset[[#This Row],[2026/27 To - Other reallocations]]","v":0},{"$f":"Dataset[[#This Row],[2027/28 To - Spending review Topic 1]]+Dataset[[#This Row],[2027/28 To - Spending review Topic 2]]+Dataset[[#This Row],[2027/28 To - Spending review Topic 3]]+Dataset[[#This Row],[2027/28 To - Spending review Topic 4]]+Dataset[[#This Row],[2027/28 To - Other reallocations]]","v":0},{"$f":"Dataset[[#This Row],[2025/26 Reduction]]+Dataset[[#This Row],[2025/26 From - Total]]","v":0},{"$f":"Dataset[[#This Row],[2026/27 Reduction]]+Dataset[[#This Row],[2026/27 From - Total]]","v":0},{"$f":"Dataset[[#This Row],[2027/28 Reduction]]+Dataset[[#This Row],[2027/28 From - Total]]","v":0},{"$f":"Dataset[[#This Row],[2024/25 Reduction]]","v":0},{"$f":"SUM(Dataset[[#This Row],[2025/26 Reduction]],Dataset[[#This Row],[2025/26 From - Total]],Dataset[[#This Row],[2025/26 To - Total]])","v":0},{"$f":"SUM(Dataset[[#This Row],[2026/27 Reduction]],Dataset[[#This Row],[2026/27 From - Total]],Dataset[[#This Row],[2026/27 To - Total]])","v":0},{"$f":"SUM(Dataset[[#This Row],[2027/28 Reduction]],Dataset[[#This Row],[2027/28 From - Total]],Dataset[[#This Row],[2027/28 To - Total]])","v":0},{"$f":"Dataset[[#This Row],[2024/25 Baseline]]+Dataset[[#This Row],[2024/25 Total change]]","v":0},{"$f":"Dataset[[#This Row],[2025/26 Baseline]]+Dataset[[#This Row],[2025/26 Total change]]","v":0},{"$f":"Dataset[[#This Row],[2026/27 Baseline]]+Dataset[[#This Row],[2026/27 Total change]]","v":0},{"$f":"Dataset[[#This Row],[2027/28 Baseline]]+Dataset[[#This Row],[2027/28 Total change]]","v":0}]
["NAT|Non-transfer item","40|Legal services (G&S)","2025_26","MTEC2025",40,3,3,51969,697,"40","03","03","051969","000697","40|03|03|000697","01","01","02","14","14","01|01|02|14|14","National","Transport","Rail Transport","Rail Operations","Non-transfer item","Current","Current payments","Goods and services","Legal services (G&S)","Legal services (G&S)","Economic development","Economic regulation and infrastructure","NAT",0,0,0,0,0,0,null,0,0,0,0,null,null,null,null,null,null,null,null,null,null,null,null,null,null,null,null,null,null,null,null,null,null,null,null,null,null,null,null,null,null,null,null,null,null,{"$f":"Dataset[[#This Row],[2025/26 From - Spending review Topic 1]]+Dataset[[#This Row],[2025/26 From - Spending review Topic 2]]+Dataset[[#This Row],[2025/26 From - Spending review Topic 3]]+Dataset[[#This Row],[2025/26 From - Spending review Topic 4]]+Dataset[[#This Row],[2025/26 From - Other reallocations]]","v":0},{"$f":"Dataset[[#This Row],[2026/27 From - Spending review Topic 1]]+Dataset[[#This Row],[2026/27 From - Spending review Topic 2]]+Dataset[[#This Row],[2026/27 From - Spending review Topic 3]]+Dataset[[#This Row],[2026/27 From - Spending review Topic 4]]+Dataset[[#This Row],[2026/27 From - Other reallocations]]","v":0},{"$f":"Dataset[[#This Row],[2027/28 From - Spending review Topic 1]]+Dataset[[#This Row],[2027/28 From - Spending review Topic 2]]+Dataset[[#This Row],[2027/28 From - Spending review Topic 3]]+Dataset[[#This Row],[2027/28 From - Spending review Topic 4]]+Dataset[[#This Row],[2027/28 From - Other reallocations]]","v":0},{"$f":"Dataset[[#This Row],[2025/26 To - Spending review Topic 1]]+Dataset[[#This Row],[2025/26 To - Spending review Topic 2]]+Dataset[[#This Row],[2025/26 To - Spending review Topic 3]]+Dataset[[#This Row],[2025/26 To - Spending review Topic 4]]+Dataset[[#This Row],[2025/26 To - Other reallocations]]","v":0},{"$f":"Dataset[[#This Row],[2026/27 To - Spending review Topic 1]]+Dataset[[#This Row],[2026/27 To - Spending review Topic 2]]+Dataset[[#This Row],[2026/27 To - Spending review Topic 3]]+Dataset[[#This Row],[2026/27 To - Spending review Topic 4]]+Dataset[[#This Row],[2026/27 To - Other reallocations]]","v":0},{"$f":"Dataset[[#This Row],[2027/28 To - Spending review Topic 1]]+Dataset[[#This Row],[2027/28 To - Spending review Topic 2]]+Dataset[[#This Row],[2027/28 To - Spending review Topic 3]]+Dataset[[#This Row],[2027/28 To - Spending review Topic 4]]+Dataset[[#This Row],[2027/28 To - Other reallocations]]","v":0},{"$f":"Dataset[[#This Row],[2025/26 Reduction]]+Dataset[[#This Row],[2025/26 From - Total]]","v":0},{"$f":"Dataset[[#This Row],[2026/27 Reduction]]+Dataset[[#This Row],[2026/27 From - Total]]","v":0},{"$f":"Dataset[[#This Row],[2027/28 Reduction]]+Dataset[[#This Row],[2027/28 From - Total]]","v":0},{"$f":"Dataset[[#This Row],[2024/25 Reduction]]","v":0},{"$f":"SUM(Dataset[[#This Row],[2025/26 Reduction]],Dataset[[#This Row],[2025/26 From - Total]],Dataset[[#This Row],[2025/26 To - Total]])","v":0},{"$f":"SUM(Dataset[[#This Row],[2026/27 Reduction]],Dataset[[#This Row],[2026/27 From - Total]],Dataset[[#This Row],[2026/27 To - Total]])","v":0},{"$f":"SUM(Dataset[[#This Row],[2027/28 Reduction]],Dataset[[#This Row],[2027/28 From - Total]],Dataset[[#This Row],[2027/28 To - Total]])","v":0},{"$f":"Dataset[[#This Row],[2024/25 Baseline]]+Dataset[[#This Row],[2024/25 Total change]]","v":0},{"$f":"Dataset[[#This Row],[2025/26 Baseline]]+Dataset[[#This Row],[2025/26 Total change]]","v":0},{"$f":"Dataset[[#This Row],[2026/27 Baseline]]+Dataset[[#This Row],[2026/27 Total change]]","v":0},{"$f":"Dataset[[#This Row],[2027/28 Baseline]]+Dataset[[#This Row],[2027/28 Total change]]","v":0}]
["NAT|Non-transfer item","40|Inventory: Farming supplies","2025_26","MTEC2025",40,3,3,51977,705,"40","03","03","051977","000705","40|03|03|000705","01","01","02","22","22","01|01|02|22|22","National","Transport","Rail Transport","Rail Operations","Non-transfer item","Current","Current payments","Goods and services","Inventory: Farming supplies","Inventory: Farming supplies","Economic development","Economic regulation and infrastructure","NAT",0,0,0,0,0,0,null,0,0,0,0,null,null,null,null,null,null,null,null,null,null,null,null,null,null,null,null,null,null,null,null,null,null,null,null,null,null,null,null,null,null,null,null,null,null,{"$f":"Dataset[[#This Row],[2025/26 From - Spending review Topic 1]]+Dataset[[#This Row],[2025/26 From - Spending review Topic 2]]+Dataset[[#This Row],[2025/26 From - Spending review Topic 3]]+Dataset[[#This Row],[2025/26 From - Spending review Topic 4]]+Dataset[[#This Row],[2025/26 From - Other reallocations]]","v":0},{"$f":"Dataset[[#This Row],[2026/27 From - Spending review Topic 1]]+Dataset[[#This Row],[2026/27 From - Spending review Topic 2]]+Dataset[[#This Row],[2026/27 From - Spending review Topic 3]]+Dataset[[#This Row],[2026/27 From - Spending review Topic 4]]+Dataset[[#This Row],[2026/27 From - Other reallocations]]","v":0},{"$f":"Dataset[[#This Row],[2027/28 From - Spending review Topic 1]]+Dataset[[#This Row],[2027/28 From - Spending review Topic 2]]+Dataset[[#This Row],[2027/28 From - Spending review Topic 3]]+Dataset[[#This Row],[2027/28 From - Spending review Topic 4]]+Dataset[[#This Row],[2027/28 From - Other reallocations]]","v":0},{"$f":"Dataset[[#This Row],[2025/26 To - Spending review Topic 1]]+Dataset[[#This Row],[2025/26 To - Spending review Topic 2]]+Dataset[[#This Row],[2025/26 To - Spending review Topic 3]]+Dataset[[#This Row],[2025/26 To - Spending review Topic 4]]+Dataset[[#This Row],[2025/26 To - Other reallocations]]","v":0},{"$f":"Dataset[[#This Row],[2026/27 To - Spending review Topic 1]]+Dataset[[#This Row],[2026/27 To - Spending review Topic 2]]+Dataset[[#This Row],[2026/27 To - Spending review Topic 3]]+Dataset[[#This Row],[2026/27 To - Spending review Topic 4]]+Dataset[[#This Row],[2026/27 To - Other reallocations]]","v":0},{"$f":"Dataset[[#This Row],[2027/28 To - Spending review Topic 1]]+Dataset[[#This Row],[2027/28 To - Spending review Topic 2]]+Dataset[[#This Row],[2027/28 To - Spending review Topic 3]]+Dataset[[#This Row],[2027/28 To - Spending review Topic 4]]+Dataset[[#This Row],[2027/28 To - Other reallocations]]","v":0},{"$f":"Dataset[[#This Row],[2025/26 Reduction]]+Dataset[[#This Row],[2025/26 From - Total]]","v":0},{"$f":"Dataset[[#This Row],[2026/27 Reduction]]+Dataset[[#This Row],[2026/27 From - Total]]","v":0},{"$f":"Dataset[[#This Row],[2027/28 Reduction]]+Dataset[[#This Row],[2027/28 From - Total]]","v":0},{"$f":"Dataset[[#This Row],[2024/25 Reduction]]","v":0},{"$f":"SUM(Dataset[[#This Row],[2025/26 Reduction]],Dataset[[#This Row],[2025/26 From - Total]],Dataset[[#This Row],[2025/26 To - Total]])","v":0},{"$f":"SUM(Dataset[[#This Row],[2026/27 Reduction]],Dataset[[#This Row],[2026/27 From - Total]],Dataset[[#This Row],[2026/27 To - Total]])","v":0},{"$f":"SUM(Dataset[[#This Row],[2027/28 Reduction]],Dataset[[#This Row],[2027/28 From - Total]],Dataset[[#This Row],[2027/28 To - Total]])","v":0},{"$f":"Dataset[[#This Row],[2024/25 Baseline]]+Dataset[[#This Row],[2024/25 Total change]]","v":0},{"$f":"Dataset[[#This Row],[2025/26 Baseline]]+Dataset[[#This Row],[2025/26 Total change]]","v":0},{"$f":"Dataset[[#This Row],[2026/27 Baseline]]+Dataset[[#This Row],[2026/27 Total change]]","v":0},{"$f":"Dataset[[#This Row],[2027/28 Baseline]]+Dataset[[#This Row],[2027/28 Total change]]","v":0}]
["NAT|Non-transfer item","40|Rental and hiring","2025_26","MTEC2025",40,3,3,51989,717,"40","03","03","051989","000717","40|03|03|000717","01","01","02","34","34","01|01|02|34|34","National","Transport","Rail Transport","Rail Operations","Non-transfer item","Current","Current payments","Goods and services","Rental and hiring","Rental and hiring","Economic development","Economic regulation and infrastructure","NAT",0,0,0,0,0,0,null,0,0,0,0,null,null,null,null,null,null,null,null,null,null,null,null,null,null,null,null,null,null,null,null,null,null,null,null,null,null,null,null,null,null,null,null,null,null,{"$f":"Dataset[[#This Row],[2025/26 From - Spending review Topic 1]]+Dataset[[#This Row],[2025/26 From - Spending review Topic 2]]+Dataset[[#This Row],[2025/26 From - Spending review Topic 3]]+Dataset[[#This Row],[2025/26 From - Spending review Topic 4]]+Dataset[[#This Row],[2025/26 From - Other reallocations]]","v":0},{"$f":"Dataset[[#This Row],[2026/27 From - Spending review Topic 1]]+Dataset[[#This Row],[2026/27 From - Spending review Topic 2]]+Dataset[[#This Row],[2026/27 From - Spending review Topic 3]]+Dataset[[#This Row],[2026/27 From - Spending review Topic 4]]+Dataset[[#This Row],[2026/27 From - Other reallocations]]","v":0},{"$f":"Dataset[[#This Row],[2027/28 From - Spending review Topic 1]]+Dataset[[#This Row],[2027/28 From - Spending review Topic 2]]+Dataset[[#This Row],[2027/28 From - Spending review Topic 3]]+Dataset[[#This Row],[2027/28 From - Spending review Topic 4]]+Dataset[[#This Row],[2027/28 From - Other reallocations]]","v":0},{"$f":"Dataset[[#This Row],[2025/26 To - Spending review Topic 1]]+Dataset[[#This Row],[2025/26 To - Spending review Topic 2]]+Dataset[[#This Row],[2025/26 To - Spending review Topic 3]]+Dataset[[#This Row],[2025/26 To - Spending review Topic 4]]+Dataset[[#This Row],[2025/26 To - Other reallocations]]","v":0},{"$f":"Dataset[[#This Row],[2026/27 To - Spending review Topic 1]]+Dataset[[#This Row],[2026/27 To - Spending review Topic 2]]+Dataset[[#This Row],[2026/27 To - Spending review Topic 3]]+Dataset[[#This Row],[2026/27 To - Spending review Topic 4]]+Dataset[[#This Row],[2026/27 To - Other reallocations]]","v":0},{"$f":"Dataset[[#This Row],[2027/28 To - Spending review Topic 1]]+Dataset[[#This Row],[2027/28 To - Spending review Topic 2]]+Dataset[[#This Row],[2027/28 To - Spending review Topic 3]]+Dataset[[#This Row],[2027/28 To - Spending review Topic 4]]+Dataset[[#This Row],[2027/28 To - Other reallocations]]","v":0},{"$f":"Dataset[[#This Row],[2025/26 Reduction]]+Dataset[[#This Row],[2025/26 From - Total]]","v":0},{"$f":"Dataset[[#This Row],[2026/27 Reduction]]+Dataset[[#This Row],[2026/27 From - Total]]","v":0},{"$f":"Dataset[[#This Row],[2027/28 Reduction]]+Dataset[[#This Row],[2027/28 From - Total]]","v":0},{"$f":"Dataset[[#This Row],[2024/25 Reduction]]","v":0},{"$f":"SUM(Dataset[[#This Row],[2025/26 Reduction]],Dataset[[#This Row],[2025/26 From - Total]],Dataset[[#This Row],[2025/26 To - Total]])","v":0},{"$f":"SUM(Dataset[[#This Row],[2026/27 Reduction]],Dataset[[#This Row],[2026/27 From - Total]],Dataset[[#This Row],[2026/27 To - Total]])","v":0},{"$f":"SUM(Dataset[[#This Row],[2027/28 Reduction]],Dataset[[#This Row],[2027/28 From - Total]],Dataset[[#This Row],[2027/28 To - Total]])","v":0},{"$f":"Dataset[[#This Row],[2024/25 Baseline]]+Dataset[[#This Row],[2024/25 Total change]]","v":0},{"$f":"Dataset[[#This Row],[2025/26 Baseline]]+Dataset[[#This Row],[2025/26 Total change]]","v":0},{"$f":"Dataset[[#This Row],[2026/27 Baseline]]+Dataset[[#This Row],[2026/27 Total change]]","v":0},{"$f":"Dataset[[#This Row],[2027/28 Baseline]]+Dataset[[#This Row],[2027/28 Total change]]","v":0}]
["NAT|Non-transfer item","40|Property payments","2025_26","MTEC2025",40,3,3,51990,718,"40","03","03","051990","000718","40|03|03|000718","01","01","02","35","35","01|01|02|35|35","National","Transport","Rail Transport","Rail Operations","Non-transfer item","Current","Current payments","Goods and services","Property payments","Property payments","Economic development","Economic regulation and infrastructure","NAT",0,0,0,0,0,0,null,0,0,0,0,null,null,null,null,null,null,null,null,null,null,null,null,null,null,null,null,null,null,null,null,null,null,null,null,null,null,null,null,null,null,null,null,null,null,{"$f":"Dataset[[#This Row],[2025/26 From - Spending review Topic 1]]+Dataset[[#This Row],[2025/26 From - Spending review Topic 2]]+Dataset[[#This Row],[2025/26 From - Spending review Topic 3]]+Dataset[[#This Row],[2025/26 From - Spending review Topic 4]]+Dataset[[#This Row],[2025/26 From - Other reallocations]]","v":0},{"$f":"Dataset[[#This Row],[2026/27 From - Spending review Topic 1]]+Dataset[[#This Row],[2026/27 From - Spending review Topic 2]]+Dataset[[#This Row],[2026/27 From - Spending review Topic 3]]+Dataset[[#This Row],[2026/27 From - Spending review Topic 4]]+Dataset[[#This Row],[2026/27 From - Other reallocations]]","v":0},{"$f":"Dataset[[#This Row],[2027/28 From - Spending review Topic 1]]+Dataset[[#This Row],[2027/28 From - Spending review Topic 2]]+Dataset[[#This Row],[2027/28 From - Spending review Topic 3]]+Dataset[[#This Row],[2027/28 From - Spending review Topic 4]]+Dataset[[#This Row],[2027/28 From - Other reallocations]]","v":0},{"$f":"Dataset[[#This Row],[2025/26 To - Spending review Topic 1]]+Dataset[[#This Row],[2025/26 To - Spending review Topic 2]]+Dataset[[#This Row],[2025/26 To - Spending review Topic 3]]+Dataset[[#This Row],[2025/26 To - Spending review Topic 4]]+Dataset[[#This Row],[2025/26 To - Other reallocations]]","v":0},{"$f":"Dataset[[#This Row],[2026/27 To - Spending review Topic 1]]+Dataset[[#This Row],[2026/27 To - Spending review Topic 2]]+Dataset[[#This Row],[2026/27 To - Spending review Topic 3]]+Dataset[[#This Row],[2026/27 To - Spending review Topic 4]]+Dataset[[#This Row],[2026/27 To - Other reallocations]]","v":0},{"$f":"Dataset[[#This Row],[2027/28 To - Spending review Topic 1]]+Dataset[[#This Row],[2027/28 To - Spending review Topic 2]]+Dataset[[#This Row],[2027/28 To - Spending review Topic 3]]+Dataset[[#This Row],[2027/28 To - Spending review Topic 4]]+Dataset[[#This Row],[2027/28 To - Other reallocations]]","v":0},{"$f":"Dataset[[#This Row],[2025/26 Reduction]]+Dataset[[#This Row],[2025/26 From - Total]]","v":0},{"$f":"Dataset[[#This Row],[2026/27 Reduction]]+Dataset[[#This Row],[2026/27 From - Total]]","v":0},{"$f":"Dataset[[#This Row],[2027/28 Reduction]]+Dataset[[#This Row],[2027/28 From - Total]]","v":0},{"$f":"Dataset[[#This Row],[2024/25 Reduction]]","v":0},{"$f":"SUM(Dataset[[#This Row],[2025/26 Reduction]],Dataset[[#This Row],[2025/26 From - Total]],Dataset[[#This Row],[2025/26 To - Total]])","v":0},{"$f":"SUM(Dataset[[#This Row],[2026/27 Reduction]],Dataset[[#This Row],[2026/27 From - Total]],Dataset[[#This Row],[2026/27 To - Total]])","v":0},{"$f":"SUM(Dataset[[#This Row],[2027/28 Reduction]],Dataset[[#This Row],[2027/28 From - Total]],Dataset[[#This Row],[2027/28 To - Total]])","v":0},{"$f":"Dataset[[#This Row],[2024/25 Baseline]]+Dataset[[#This Row],[2024/25 Total change]]","v":0},{"$f":"Dataset[[#This Row],[2025/26 Baseline]]+Dataset[[#This Row],[2025/26 Total change]]","v":0},{"$f":"Dataset[[#This Row],[2026/27 Baseline]]+Dataset[[#This Row],[2026/27 Total change]]","v":0},{"$f":"Dataset[[#This Row],[2027/28 Baseline]]+Dataset[[#This Row],[2027/28 Total change]]","v":0}]
["NAT|Non-transfer item","40|Heritage assets","2025_26","MTEC2025",40,3,3,52002,730,"40","03","03","052002","000730","40|03|03|000730","02","03","13","58","62","02|03|13|58|62","National","Transport","Rail Transport","Rail Operations","Non-transfer item","Capital","Payments for capital assets","Heritage assets","Heritage assets","Heritage assets","Economic development","Economic regulation and infrastructure","NAT",0,0,0,0,0,0,null,0,0,0,0,null,null,null,null,null,null,null,null,null,null,null,null,null,null,null,null,null,null,null,null,null,null,null,null,null,null,null,null,null,null,null,null,null,null,{"$f":"Dataset[[#This Row],[2025/26 From - Spending review Topic 1]]+Dataset[[#This Row],[2025/26 From - Spending review Topic 2]]+Dataset[[#This Row],[2025/26 From - Spending review Topic 3]]+Dataset[[#This Row],[2025/26 From - Spending review Topic 4]]+Dataset[[#This Row],[2025/26 From - Other reallocations]]","v":0},{"$f":"Dataset[[#This Row],[2026/27 From - Spending review Topic 1]]+Dataset[[#This Row],[2026/27 From - Spending review Topic 2]]+Dataset[[#This Row],[2026/27 From - Spending review Topic 3]]+Dataset[[#This Row],[2026/27 From - Spending review Topic 4]]+Dataset[[#This Row],[2026/27 From - Other reallocations]]","v":0},{"$f":"Dataset[[#This Row],[2027/28 From - Spending review Topic 1]]+Dataset[[#This Row],[2027/28 From - Spending review Topic 2]]+Dataset[[#This Row],[2027/28 From - Spending review Topic 3]]+Dataset[[#This Row],[2027/28 From - Spending review Topic 4]]+Dataset[[#This Row],[2027/28 From - Other reallocations]]","v":0},{"$f":"Dataset[[#This Row],[2025/26 To - Spending review Topic 1]]+Dataset[[#This Row],[2025/26 To - Spending review Topic 2]]+Dataset[[#This Row],[2025/26 To - Spending review Topic 3]]+Dataset[[#This Row],[2025/26 To - Spending review Topic 4]]+Dataset[[#This Row],[2025/26 To - Other reallocations]]","v":0},{"$f":"Dataset[[#This Row],[2026/27 To - Spending review Topic 1]]+Dataset[[#This Row],[2026/27 To - Spending review Topic 2]]+Dataset[[#This Row],[2026/27 To - Spending review Topic 3]]+Dataset[[#This Row],[2026/27 To - Spending review Topic 4]]+Dataset[[#This Row],[2026/27 To - Other reallocations]]","v":0},{"$f":"Dataset[[#This Row],[2027/28 To - Spending review Topic 1]]+Dataset[[#This Row],[2027/28 To - Spending review Topic 2]]+Dataset[[#This Row],[2027/28 To - Spending review Topic 3]]+Dataset[[#This Row],[2027/28 To - Spending review Topic 4]]+Dataset[[#This Row],[2027/28 To - Other reallocations]]","v":0},{"$f":"Dataset[[#This Row],[2025/26 Reduction]]+Dataset[[#This Row],[2025/26 From - Total]]","v":0},{"$f":"Dataset[[#This Row],[2026/27 Reduction]]+Dataset[[#This Row],[2026/27 From - Total]]","v":0},{"$f":"Dataset[[#This Row],[2027/28 Reduction]]+Dataset[[#This Row],[2027/28 From - Total]]","v":0},{"$f":"Dataset[[#This Row],[2024/25 Reduction]]","v":0},{"$f":"SUM(Dataset[[#This Row],[2025/26 Reduction]],Dataset[[#This Row],[2025/26 From - Total]],Dataset[[#This Row],[2025/26 To - Total]])","v":0},{"$f":"SUM(Dataset[[#This Row],[2026/27 Reduction]],Dataset[[#This Row],[2026/27 From - Total]],Dataset[[#This Row],[2026/27 To - Total]])","v":0},{"$f":"SUM(Dataset[[#This Row],[2027/28 Reduction]],Dataset[[#This Row],[2027/28 From - Total]],Dataset[[#This Row],[2027/28 To - Total]])","v":0},{"$f":"Dataset[[#This Row],[2024/25 Baseline]]+Dataset[[#This Row],[2024/25 Total change]]","v":0},{"$f":"Dataset[[#This Row],[2025/26 Baseline]]+Dataset[[#This Row],[2025/26 Total change]]","v":0},{"$f":"Dataset[[#This Row],[2026/27 Baseline]]+Dataset[[#This Row],[2026/27 Total change]]","v":0},{"$f":"Dataset[[#This Row],[2027/28 Baseline]]+Dataset[[#This Row],[2027/28 Total change]]","v":0}]
["NAT|Non-transfer item","40|Advertising","2025_26","MTEC2025",40,3,4,52010,738,"40","03","04","052010","000738","40|03|04|000738","01","01","02","04","04","01|01|02|04|04","National","Transport","Rail Transport","Rail Oversight","Non-transfer item","Current","Current payments","Goods and services","Advertising","Advertising","Community development","Community development","NAT",0,0,0,0,0,0,null,0,0,0,0,null,null,null,null,null,null,null,null,null,null,null,null,null,null,null,null,null,null,null,null,null,null,null,null,null,null,null,null,null,null,null,null,null,null,{"$f":"Dataset[[#This Row],[2025/26 From - Spending review Topic 1]]+Dataset[[#This Row],[2025/26 From - Spending review Topic 2]]+Dataset[[#This Row],[2025/26 From - Spending review Topic 3]]+Dataset[[#This Row],[2025/26 From - Spending review Topic 4]]+Dataset[[#This Row],[2025/26 From - Other reallocations]]","v":0},{"$f":"Dataset[[#This Row],[2026/27 From - Spending review Topic 1]]+Dataset[[#This Row],[2026/27 From - Spending review Topic 2]]+Dataset[[#This Row],[2026/27 From - Spending review Topic 3]]+Dataset[[#This Row],[2026/27 From - Spending review Topic 4]]+Dataset[[#This Row],[2026/27 From - Other reallocations]]","v":0},{"$f":"Dataset[[#This Row],[2027/28 From - Spending review Topic 1]]+Dataset[[#This Row],[2027/28 From - Spending review Topic 2]]+Dataset[[#This Row],[2027/28 From - Spending review Topic 3]]+Dataset[[#This Row],[2027/28 From - Spending review Topic 4]]+Dataset[[#This Row],[2027/28 From - Other reallocations]]","v":0},{"$f":"Dataset[[#This Row],[2025/26 To - Spending review Topic 1]]+Dataset[[#This Row],[2025/26 To - Spending review Topic 2]]+Dataset[[#This Row],[2025/26 To - Spending review Topic 3]]+Dataset[[#This Row],[2025/26 To - Spending review Topic 4]]+Dataset[[#This Row],[2025/26 To - Other reallocations]]","v":0},{"$f":"Dataset[[#This Row],[2026/27 To - Spending review Topic 1]]+Dataset[[#This Row],[2026/27 To - Spending review Topic 2]]+Dataset[[#This Row],[2026/27 To - Spending review Topic 3]]+Dataset[[#This Row],[2026/27 To - Spending review Topic 4]]+Dataset[[#This Row],[2026/27 To - Other reallocations]]","v":0},{"$f":"Dataset[[#This Row],[2027/28 To - Spending review Topic 1]]+Dataset[[#This Row],[2027/28 To - Spending review Topic 2]]+Dataset[[#This Row],[2027/28 To - Spending review Topic 3]]+Dataset[[#This Row],[2027/28 To - Spending review Topic 4]]+Dataset[[#This Row],[2027/28 To - Other reallocations]]","v":0},{"$f":"Dataset[[#This Row],[2025/26 Reduction]]+Dataset[[#This Row],[2025/26 From - Total]]","v":0},{"$f":"Dataset[[#This Row],[2026/27 Reduction]]+Dataset[[#This Row],[2026/27 From - Total]]","v":0},{"$f":"Dataset[[#This Row],[2027/28 Reduction]]+Dataset[[#This Row],[2027/28 From - Total]]","v":0},{"$f":"Dataset[[#This Row],[2024/25 Reduction]]","v":0},{"$f":"SUM(Dataset[[#This Row],[2025/26 Reduction]],Dataset[[#This Row],[2025/26 From - Total]],Dataset[[#This Row],[2025/26 To - Total]])","v":0},{"$f":"SUM(Dataset[[#This Row],[2026/27 Reduction]],Dataset[[#This Row],[2026/27 From - Total]],Dataset[[#This Row],[2026/27 To - Total]])","v":0},{"$f":"SUM(Dataset[[#This Row],[2027/28 Reduction]],Dataset[[#This Row],[2027/28 From - Total]],Dataset[[#This Row],[2027/28 To - Total]])","v":0},{"$f":"Dataset[[#This Row],[2024/25 Baseline]]+Dataset[[#This Row],[2024/25 Total change]]","v":0},{"$f":"Dataset[[#This Row],[2025/26 Baseline]]+Dataset[[#This Row],[2025/26 Total change]]","v":0},{"$f":"Dataset[[#This Row],[2026/27 Baseline]]+Dataset[[#This Row],[2026/27 Total change]]","v":0},{"$f":"Dataset[[#This Row],[2027/28 Baseline]]+Dataset[[#This Row],[2027/28 Total change]]","v":0}]
["NAT|Non-transfer item","40|Communication (G&S)","2025_26","MTEC2025",40,3,4,52015,743,"40","03","04","052015","000743","40|03|04|000743","01","01","02","09","09","01|01|02|09|09","National","Transport","Rail Transport","Rail Oversight","Non-transfer item","Current","Current payments","Goods and services","Communication (G&S)","Communication (G&S)","Community development","Community development","NAT",0,1,0,0,0,0,null,0,0,0,0,null,null,null,null,null,null,null,null,null,null,null,null,null,null,null,null,null,null,null,null,null,null,null,null,null,null,null,null,null,null,null,null,null,null,{"$f":"Dataset[[#This Row],[2025/26 From - Spending review Topic 1]]+Dataset[[#This Row],[2025/26 From - Spending review Topic 2]]+Dataset[[#This Row],[2025/26 From - Spending review Topic 3]]+Dataset[[#This Row],[2025/26 From - Spending review Topic 4]]+Dataset[[#This Row],[2025/26 From - Other reallocations]]","v":0},{"$f":"Dataset[[#This Row],[2026/27 From - Spending review Topic 1]]+Dataset[[#This Row],[2026/27 From - Spending review Topic 2]]+Dataset[[#This Row],[2026/27 From - Spending review Topic 3]]+Dataset[[#This Row],[2026/27 From - Spending review Topic 4]]+Dataset[[#This Row],[2026/27 From - Other reallocations]]","v":0},{"$f":"Dataset[[#This Row],[2027/28 From - Spending review Topic 1]]+Dataset[[#This Row],[2027/28 From - Spending review Topic 2]]+Dataset[[#This Row],[2027/28 From - Spending review Topic 3]]+Dataset[[#This Row],[2027/28 From - Spending review Topic 4]]+Dataset[[#This Row],[2027/28 From - Other reallocations]]","v":0},{"$f":"Dataset[[#This Row],[2025/26 To - Spending review Topic 1]]+Dataset[[#This Row],[2025/26 To - Spending review Topic 2]]+Dataset[[#This Row],[2025/26 To - Spending review Topic 3]]+Dataset[[#This Row],[2025/26 To - Spending review Topic 4]]+Dataset[[#This Row],[2025/26 To - Other reallocations]]","v":0},{"$f":"Dataset[[#This Row],[2026/27 To - Spending review Topic 1]]+Dataset[[#This Row],[2026/27 To - Spending review Topic 2]]+Dataset[[#This Row],[2026/27 To - Spending review Topic 3]]+Dataset[[#This Row],[2026/27 To - Spending review Topic 4]]+Dataset[[#This Row],[2026/27 To - Other reallocations]]","v":0},{"$f":"Dataset[[#This Row],[2027/28 To - Spending review Topic 1]]+Dataset[[#This Row],[2027/28 To - Spending review Topic 2]]+Dataset[[#This Row],[2027/28 To - Spending review Topic 3]]+Dataset[[#This Row],[2027/28 To - Spending review Topic 4]]+Dataset[[#This Row],[2027/28 To - Other reallocations]]","v":0},{"$f":"Dataset[[#This Row],[2025/26 Reduction]]+Dataset[[#This Row],[2025/26 From - Total]]","v":0},{"$f":"Dataset[[#This Row],[2026/27 Reduction]]+Dataset[[#This Row],[2026/27 From - Total]]","v":0},{"$f":"Dataset[[#This Row],[2027/28 Reduction]]+Dataset[[#This Row],[2027/28 From - Total]]","v":0},{"$f":"Dataset[[#This Row],[2024/25 Reduction]]","v":0},{"$f":"SUM(Dataset[[#This Row],[2025/26 Reduction]],Dataset[[#This Row],[2025/26 From - Total]],Dataset[[#This Row],[2025/26 To - Total]])","v":0},{"$f":"SUM(Dataset[[#This Row],[2026/27 Reduction]],Dataset[[#This Row],[2026/27 From - Total]],Dataset[[#This Row],[2026/27 To - Total]])","v":0},{"$f":"SUM(Dataset[[#This Row],[2027/28 Reduction]],Dataset[[#This Row],[2027/28 From - Total]],Dataset[[#This Row],[2027/28 To - Total]])","v":0},{"$f":"Dataset[[#This Row],[2024/25 Baseline]]+Dataset[[#This Row],[2024/25 Total change]]","v":0},{"$f":"Dataset[[#This Row],[2025/26 Baseline]]+Dataset[[#This Row],[2025/26 Total change]]","v":0},{"$f":"Dataset[[#This Row],[2026/27 Baseline]]+Dataset[[#This Row],[2026/27 Total change]]","v":0},{"$f":"Dataset[[#This Row],[2027/28 Baseline]]+Dataset[[#This Row],[2027/28 Total change]]","v":0}]
["NAT|Non-transfer item","40|Contractors","2025_26","MTEC2025",40,3,4,52022,750,"40","03","04","052022","000750","40|03|04|000750","01","01","02","16","16","01|01|02|16|16","National","Transport","Rail Transport","Rail Oversight","Non-transfer item","Current","Current payments","Goods and services","Contractors","Contractors","Community development","Community development","NAT",0,0,0,0,0,0,null,0,0,0,0,null,null,null,null,null,null,null,null,null,null,null,null,null,null,null,null,null,null,null,null,null,null,null,null,null,null,null,null,null,null,null,null,null,null,{"$f":"Dataset[[#This Row],[2025/26 From - Spending review Topic 1]]+Dataset[[#This Row],[2025/26 From - Spending review Topic 2]]+Dataset[[#This Row],[2025/26 From - Spending review Topic 3]]+Dataset[[#This Row],[2025/26 From - Spending review Topic 4]]+Dataset[[#This Row],[2025/26 From - Other reallocations]]","v":0},{"$f":"Dataset[[#This Row],[2026/27 From - Spending review Topic 1]]+Dataset[[#This Row],[2026/27 From - Spending review Topic 2]]+Dataset[[#This Row],[2026/27 From - Spending review Topic 3]]+Dataset[[#This Row],[2026/27 From - Spending review Topic 4]]+Dataset[[#This Row],[2026/27 From - Other reallocations]]","v":0},{"$f":"Dataset[[#This Row],[2027/28 From - Spending review Topic 1]]+Dataset[[#This Row],[2027/28 From - Spending review Topic 2]]+Dataset[[#This Row],[2027/28 From - Spending review Topic 3]]+Dataset[[#This Row],[2027/28 From - Spending review Topic 4]]+Dataset[[#This Row],[2027/28 From - Other reallocations]]","v":0},{"$f":"Dataset[[#This Row],[2025/26 To - Spending review Topic 1]]+Dataset[[#This Row],[2025/26 To - Spending review Topic 2]]+Dataset[[#This Row],[2025/26 To - Spending review Topic 3]]+Dataset[[#This Row],[2025/26 To - Spending review Topic 4]]+Dataset[[#This Row],[2025/26 To - Other reallocations]]","v":0},{"$f":"Dataset[[#This Row],[2026/27 To - Spending review Topic 1]]+Dataset[[#This Row],[2026/27 To - Spending review Topic 2]]+Dataset[[#This Row],[2026/27 To - Spending review Topic 3]]+Dataset[[#This Row],[2026/27 To - Spending review Topic 4]]+Dataset[[#This Row],[2026/27 To - Other reallocations]]","v":0},{"$f":"Dataset[[#This Row],[2027/28 To - Spending review Topic 1]]+Dataset[[#This Row],[2027/28 To - Spending review Topic 2]]+Dataset[[#This Row],[2027/28 To - Spending review Topic 3]]+Dataset[[#This Row],[2027/28 To - Spending review Topic 4]]+Dataset[[#This Row],[2027/28 To - Other reallocations]]","v":0},{"$f":"Dataset[[#This Row],[2025/26 Reduction]]+Dataset[[#This Row],[2025/26 From - Total]]","v":0},{"$f":"Dataset[[#This Row],[2026/27 Reduction]]+Dataset[[#This Row],[2026/27 From - Total]]","v":0},{"$f":"Dataset[[#This Row],[2027/28 Reduction]]+Dataset[[#This Row],[2027/28 From - Total]]","v":0},{"$f":"Dataset[[#This Row],[2024/25 Reduction]]","v":0},{"$f":"SUM(Dataset[[#This Row],[2025/26 Reduction]],Dataset[[#This Row],[2025/26 From - Total]],Dataset[[#This Row],[2025/26 To - Total]])","v":0},{"$f":"SUM(Dataset[[#This Row],[2026/27 Reduction]],Dataset[[#This Row],[2026/27 From - Total]],Dataset[[#This Row],[2026/27 To - Total]])","v":0},{"$f":"SUM(Dataset[[#This Row],[2027/28 Reduction]],Dataset[[#This Row],[2027/28 From - Total]],Dataset[[#This Row],[2027/28 To - Total]])","v":0},{"$f":"Dataset[[#This Row],[2024/25 Baseline]]+Dataset[[#This Row],[2024/25 Total change]]","v":0},{"$f":"Dataset[[#This Row],[2025/26 Baseline]]+Dataset[[#This Row],[2025/26 Total change]]","v":0},{"$f":"Dataset[[#This Row],[2026/27 Baseline]]+Dataset[[#This Row],[2026/27 Total change]]","v":0},{"$f":"Dataset[[#This Row],[2027/28 Baseline]]+Dataset[[#This Row],[2027/28 Total change]]","v":0}]
["NAT|Non-transfer item","40|Inventory: Fuel, oil and gas","2025_26","MTEC2025",40,3,4,52030,758,"40","03","04","052030","000758","40|03|04|000758","01","01","02","24","24","01|01|02|24|24","National","Transport","Rail Transport","Rail Oversight","Non-transfer item","Current","Current payments","Goods and services","Inventory: Fuel, oil and gas","Inventory: Fuel, oil and gas","Community development","Community development","NAT",0,0,0,0,0,0,null,0,0,0,0,null,null,null,null,null,null,null,null,null,null,null,null,null,null,null,null,null,null,null,null,null,null,null,null,null,null,null,null,null,null,null,null,null,null,{"$f":"Dataset[[#This Row],[2025/26 From - Spending review Topic 1]]+Dataset[[#This Row],[2025/26 From - Spending review Topic 2]]+Dataset[[#This Row],[2025/26 From - Spending review Topic 3]]+Dataset[[#This Row],[2025/26 From - Spending review Topic 4]]+Dataset[[#This Row],[2025/26 From - Other reallocations]]","v":0},{"$f":"Dataset[[#This Row],[2026/27 From - Spending review Topic 1]]+Dataset[[#This Row],[2026/27 From - Spending review Topic 2]]+Dataset[[#This Row],[2026/27 From - Spending review Topic 3]]+Dataset[[#This Row],[2026/27 From - Spending review Topic 4]]+Dataset[[#This Row],[2026/27 From - Other reallocations]]","v":0},{"$f":"Dataset[[#This Row],[2027/28 From - Spending review Topic 1]]+Dataset[[#This Row],[2027/28 From - Spending review Topic 2]]+Dataset[[#This Row],[2027/28 From - Spending review Topic 3]]+Dataset[[#This Row],[2027/28 From - Spending review Topic 4]]+Dataset[[#This Row],[2027/28 From - Other reallocations]]","v":0},{"$f":"Dataset[[#This Row],[2025/26 To - Spending review Topic 1]]+Dataset[[#This Row],[2025/26 To - Spending review Topic 2]]+Dataset[[#This Row],[2025/26 To - Spending review Topic 3]]+Dataset[[#This Row],[2025/26 To - Spending review Topic 4]]+Dataset[[#This Row],[2025/26 To - Other reallocations]]","v":0},{"$f":"Dataset[[#This Row],[2026/27 To - Spending review Topic 1]]+Dataset[[#This Row],[2026/27 To - Spending review Topic 2]]+Dataset[[#This Row],[2026/27 To - Spending review Topic 3]]+Dataset[[#This Row],[2026/27 To - Spending review Topic 4]]+Dataset[[#This Row],[2026/27 To - Other reallocations]]","v":0},{"$f":"Dataset[[#This Row],[2027/28 To - Spending review Topic 1]]+Dataset[[#This Row],[2027/28 To - Spending review Topic 2]]+Dataset[[#This Row],[2027/28 To - Spending review Topic 3]]+Dataset[[#This Row],[2027/28 To - Spending review Topic 4]]+Dataset[[#This Row],[2027/28 To - Other reallocations]]","v":0},{"$f":"Dataset[[#This Row],[2025/26 Reduction]]+Dataset[[#This Row],[2025/26 From - Total]]","v":0},{"$f":"Dataset[[#This Row],[2026/27 Reduction]]+Dataset[[#This Row],[2026/27 From - Total]]","v":0},{"$f":"Dataset[[#This Row],[2027/28 Reduction]]+Dataset[[#This Row],[2027/28 From - Total]]","v":0},{"$f":"Dataset[[#This Row],[2024/25 Reduction]]","v":0},{"$f":"SUM(Dataset[[#This Row],[2025/26 Reduction]],Dataset[[#This Row],[2025/26 From - Total]],Dataset[[#This Row],[2025/26 To - Total]])","v":0},{"$f":"SUM(Dataset[[#This Row],[2026/27 Reduction]],Dataset[[#This Row],[2026/27 From - Total]],Dataset[[#This Row],[2026/27 To - Total]])","v":0},{"$f":"SUM(Dataset[[#This Row],[2027/28 Reduction]],Dataset[[#This Row],[2027/28 From - Total]],Dataset[[#This Row],[2027/28 To - Total]])","v":0},{"$f":"Dataset[[#This Row],[2024/25 Baseline]]+Dataset[[#This Row],[2024/25 Total change]]","v":0},{"$f":"Dataset[[#This Row],[2025/26 Baseline]]+Dataset[[#This Row],[2025/26 Total change]]","v":0},{"$f":"Dataset[[#This Row],[2026/27 Baseline]]+Dataset[[#This Row],[2026/27 Total change]]","v":0},{"$f":"Dataset[[#This Row],[2027/28 Baseline]]+Dataset[[#This Row],[2027/28 Total change]]","v":0}]
["NAT|Non-transfer item","40|Medsas inventory interface","2025_26","MTEC2025",40,3,4,52035,763,"40","03","04","052035","000763","40|03|04|000763","01","01","02","29","29","01|01|02|29|29","National","Transport","Rail Transport","Rail Oversight","Non-transfer item","Current","Current payments","Goods and services","Medsas inventory interface","Medsas inventory interface","Community development","Community development","NAT",0,0,0,0,0,0,null,0,0,0,0,null,null,null,null,null,null,null,null,null,null,null,null,null,null,null,null,null,null,null,null,null,null,null,null,null,null,null,null,null,null,null,null,null,null,{"$f":"Dataset[[#This Row],[2025/26 From - Spending review Topic 1]]+Dataset[[#This Row],[2025/26 From - Spending review Topic 2]]+Dataset[[#This Row],[2025/26 From - Spending review Topic 3]]+Dataset[[#This Row],[2025/26 From - Spending review Topic 4]]+Dataset[[#This Row],[2025/26 From - Other reallocations]]","v":0},{"$f":"Dataset[[#This Row],[2026/27 From - Spending review Topic 1]]+Dataset[[#This Row],[2026/27 From - Spending review Topic 2]]+Dataset[[#This Row],[2026/27 From - Spending review Topic 3]]+Dataset[[#This Row],[2026/27 From - Spending review Topic 4]]+Dataset[[#This Row],[2026/27 From - Other reallocations]]","v":0},{"$f":"Dataset[[#This Row],[2027/28 From - Spending review Topic 1]]+Dataset[[#This Row],[2027/28 From - Spending review Topic 2]]+Dataset[[#This Row],[2027/28 From - Spending review Topic 3]]+Dataset[[#This Row],[2027/28 From - Spending review Topic 4]]+Dataset[[#This Row],[2027/28 From - Other reallocations]]","v":0},{"$f":"Dataset[[#This Row],[2025/26 To - Spending review Topic 1]]+Dataset[[#This Row],[2025/26 To - Spending review Topic 2]]+Dataset[[#This Row],[2025/26 To - Spending review Topic 3]]+Dataset[[#This Row],[2025/26 To - Spending review Topic 4]]+Dataset[[#This Row],[2025/26 To - Other reallocations]]","v":0},{"$f":"Dataset[[#This Row],[2026/27 To - Spending review Topic 1]]+Dataset[[#This Row],[2026/27 To - Spending review Topic 2]]+Dataset[[#This Row],[2026/27 To - Spending review Topic 3]]+Dataset[[#This Row],[2026/27 To - Spending review Topic 4]]+Dataset[[#This Row],[2026/27 To - Other reallocations]]","v":0},{"$f":"Dataset[[#This Row],[2027/28 To - Spending review Topic 1]]+Dataset[[#This Row],[2027/28 To - Spending review Topic 2]]+Dataset[[#This Row],[2027/28 To - Spending review Topic 3]]+Dataset[[#This Row],[2027/28 To - Spending review Topic 4]]+Dataset[[#This Row],[2027/28 To - Other reallocations]]","v":0},{"$f":"Dataset[[#This Row],[2025/26 Reduction]]+Dataset[[#This Row],[2025/26 From - Total]]","v":0},{"$f":"Dataset[[#This Row],[2026/27 Reduction]]+Dataset[[#This Row],[2026/27 From - Total]]","v":0},{"$f":"Dataset[[#This Row],[2027/28 Reduction]]+Dataset[[#This Row],[2027/28 From - Total]]","v":0},{"$f":"Dataset[[#This Row],[2024/25 Reduction]]","v":0},{"$f":"SUM(Dataset[[#This Row],[2025/26 Reduction]],Dataset[[#This Row],[2025/26 From - Total]],Dataset[[#This Row],[2025/26 To - Total]])","v":0},{"$f":"SUM(Dataset[[#This Row],[2026/27 Reduction]],Dataset[[#This Row],[2026/27 From - Total]],Dataset[[#This Row],[2026/27 To - Total]])","v":0},{"$f":"SUM(Dataset[[#This Row],[2027/28 Reduction]],Dataset[[#This Row],[2027/28 From - Total]],Dataset[[#This Row],[2027/28 To - Total]])","v":0},{"$f":"Dataset[[#This Row],[2024/25 Baseline]]+Dataset[[#This Row],[2024/25 Total change]]","v":0},{"$f":"Dataset[[#This Row],[2025/26 Baseline]]+Dataset[[#This Row],[2025/26 Total change]]","v":0},{"$f":"Dataset[[#This Row],[2026/27 Baseline]]+Dataset[[#This Row],[2026/27 Total change]]","v":0},{"$f":"Dataset[[#This Row],[2027/28 Baseline]]+Dataset[[#This Row],[2027/28 Total change]]","v":0}]
["NAT|Non-transfer item","40|Travel and subsistence","2025_26","MTEC2025",40,3,4,52043,771,"40","03","04","052043","000771","40|03|04|000771","01","01","02","37","37","01|01|02|37|37","National","Transport","Rail Transport","Rail Oversight","Non-transfer item","Current","Current payments","Goods and services","Travel and subsistence","Travel and subsistence","Community development","Community development","NAT",0,0,0,0,0,0,null,0,0,0,0,null,null,null,null,null,null,null,null,null,null,null,null,null,null,null,null,null,null,null,null,null,null,null,null,null,null,null,null,null,null,null,null,null,null,{"$f":"Dataset[[#This Row],[2025/26 From - Spending review Topic 1]]+Dataset[[#This Row],[2025/26 From - Spending review Topic 2]]+Dataset[[#This Row],[2025/26 From - Spending review Topic 3]]+Dataset[[#This Row],[2025/26 From - Spending review Topic 4]]+Dataset[[#This Row],[2025/26 From - Other reallocations]]","v":0},{"$f":"Dataset[[#This Row],[2026/27 From - Spending review Topic 1]]+Dataset[[#This Row],[2026/27 From - Spending review Topic 2]]+Dataset[[#This Row],[2026/27 From - Spending review Topic 3]]+Dataset[[#This Row],[2026/27 From - Spending review Topic 4]]+Dataset[[#This Row],[2026/27 From - Other reallocations]]","v":0},{"$f":"Dataset[[#This Row],[2027/28 From - Spending review Topic 1]]+Dataset[[#This Row],[2027/28 From - Spending review Topic 2]]+Dataset[[#This Row],[2027/28 From - Spending review Topic 3]]+Dataset[[#This Row],[2027/28 From - Spending review Topic 4]]+Dataset[[#This Row],[2027/28 From - Other reallocations]]","v":0},{"$f":"Dataset[[#This Row],[2025/26 To - Spending review Topic 1]]+Dataset[[#This Row],[2025/26 To - Spending review Topic 2]]+Dataset[[#This Row],[2025/26 To - Spending review Topic 3]]+Dataset[[#This Row],[2025/26 To - Spending review Topic 4]]+Dataset[[#This Row],[2025/26 To - Other reallocations]]","v":0},{"$f":"Dataset[[#This Row],[2026/27 To - Spending review Topic 1]]+Dataset[[#This Row],[2026/27 To - Spending review Topic 2]]+Dataset[[#This Row],[2026/27 To - Spending review Topic 3]]+Dataset[[#This Row],[2026/27 To - Spending review Topic 4]]+Dataset[[#This Row],[2026/27 To - Other reallocations]]","v":0},{"$f":"Dataset[[#This Row],[2027/28 To - Spending review Topic 1]]+Dataset[[#This Row],[2027/28 To - Spending review Topic 2]]+Dataset[[#This Row],[2027/28 To - Spending review Topic 3]]+Dataset[[#This Row],[2027/28 To - Spending review Topic 4]]+Dataset[[#This Row],[2027/28 To - Other reallocations]]","v":0},{"$f":"Dataset[[#This Row],[2025/26 Reduction]]+Dataset[[#This Row],[2025/26 From - Total]]","v":0},{"$f":"Dataset[[#This Row],[2026/27 Reduction]]+Dataset[[#This Row],[2026/27 From - Total]]","v":0},{"$f":"Dataset[[#This Row],[2027/28 Reduction]]+Dataset[[#This Row],[2027/28 From - Total]]","v":0},{"$f":"Dataset[[#This Row],[2024/25 Reduction]]","v":0},{"$f":"SUM(Dataset[[#This Row],[2025/26 Reduction]],Dataset[[#This Row],[2025/26 From - Total]],Dataset[[#This Row],[2025/26 To - Total]])","v":0},{"$f":"SUM(Dataset[[#This Row],[2026/27 Reduction]],Dataset[[#This Row],[2026/27 From - Total]],Dataset[[#This Row],[2026/27 To - Total]])","v":0},{"$f":"SUM(Dataset[[#This Row],[2027/28 Reduction]],Dataset[[#This Row],[2027/28 From - Total]],Dataset[[#This Row],[2027/28 To - Total]])","v":0},{"$f":"Dataset[[#This Row],[2024/25 Baseline]]+Dataset[[#This Row],[2024/25 Total change]]","v":0},{"$f":"Dataset[[#This Row],[2025/26 Baseline]]+Dataset[[#This Row],[2025/26 Total change]]","v":0},{"$f":"Dataset[[#This Row],[2026/27 Baseline]]+Dataset[[#This Row],[2026/27 Total change]]","v":0},{"$f":"Dataset[[#This Row],[2027/28 Baseline]]+Dataset[[#This Row],[2027/28 Total change]]","v":0}]
["NAT|Passenger Rail Agency of South Africa: Mainline passenger services (operations)","40|Subsidies on products and production (pc)","2025_26","MTEC2025",40,3,4,52051,779,"40","03","04","052051","000779","40|03|04|000779","01","02","08","49","51","01|02|08|49|51","National","Transport","Rail Transport","Rail Oversight","Passenger Rail Agency of South Africa: Mainline passenger services (operations)","Current","Transfers and subsidies","Public corporations and private enterprises","Public corporations","Subsidies on products and production (pc)","Community development","Community development","NAT",1164206,1210332,1257646,1263858,1263858,1263858,null,1320617,1379781,1442994,1508247,null,null,null,null,null,null,null,null,null,null,null,null,null,null,null,null,null,null,null,null,null,null,null,null,null,null,null,null,null,null,null,null,null,null,{"$f":"Dataset[[#This Row],[2025/26 From - Spending review Topic 1]]+Dataset[[#This Row],[2025/26 From - Spending review Topic 2]]+Dataset[[#This Row],[2025/26 From - Spending review Topic 3]]+Dataset[[#This Row],[2025/26 From - Spending review Topic 4]]+Dataset[[#This Row],[2025/26 From - Other reallocations]]","v":0},{"$f":"Dataset[[#This Row],[2026/27 From - Spending review Topic 1]]+Dataset[[#This Row],[2026/27 From - Spending review Topic 2]]+Dataset[[#This Row],[2026/27 From - Spending review Topic 3]]+Dataset[[#This Row],[2026/27 From - Spending review Topic 4]]+Dataset[[#This Row],[2026/27 From - Other reallocations]]","v":0},{"$f":"Dataset[[#This Row],[2027/28 From - Spending review Topic 1]]+Dataset[[#This Row],[2027/28 From - Spending review Topic 2]]+Dataset[[#This Row],[2027/28 From - Spending review Topic 3]]+Dataset[[#This Row],[2027/28 From - Spending review Topic 4]]+Dataset[[#This Row],[2027/28 From - Other reallocations]]","v":0},{"$f":"Dataset[[#This Row],[2025/26 To - Spending review Topic 1]]+Dataset[[#This Row],[2025/26 To - Spending review Topic 2]]+Dataset[[#This Row],[2025/26 To - Spending review Topic 3]]+Dataset[[#This Row],[2025/26 To - Spending review Topic 4]]+Dataset[[#This Row],[2025/26 To - Other reallocations]]","v":0},{"$f":"Dataset[[#This Row],[2026/27 To - Spending review Topic 1]]+Dataset[[#This Row],[2026/27 To - Spending review Topic 2]]+Dataset[[#This Row],[2026/27 To - Spending review Topic 3]]+Dataset[[#This Row],[2026/27 To - Spending review Topic 4]]+Dataset[[#This Row],[2026/27 To - Other reallocations]]","v":0},{"$f":"Dataset[[#This Row],[2027/28 To - Spending review Topic 1]]+Dataset[[#This Row],[2027/28 To - Spending review Topic 2]]+Dataset[[#This Row],[2027/28 To - Spending review Topic 3]]+Dataset[[#This Row],[2027/28 To - Spending review Topic 4]]+Dataset[[#This Row],[2027/28 To - Other reallocations]]","v":0},{"$f":"Dataset[[#This Row],[2025/26 Reduction]]+Dataset[[#This Row],[2025/26 From - Total]]","v":0},{"$f":"Dataset[[#This Row],[2026/27 Reduction]]+Dataset[[#This Row],[2026/27 From - Total]]","v":0},{"$f":"Dataset[[#This Row],[2027/28 Reduction]]+Dataset[[#This Row],[2027/28 From - Total]]","v":0},{"$f":"Dataset[[#This Row],[2024/25 Reduction]]","v":0},{"$f":"SUM(Dataset[[#This Row],[2025/26 Reduction]],Dataset[[#This Row],[2025/26 From - Total]],Dataset[[#This Row],[2025/26 To - Total]])","v":0},{"$f":"SUM(Dataset[[#This Row],[2026/27 Reduction]],Dataset[[#This Row],[2026/27 From - Total]],Dataset[[#This Row],[2026/27 To - Total]])","v":0},{"$f":"SUM(Dataset[[#This Row],[2027/28 Reduction]],Dataset[[#This Row],[2027/28 From - Total]],Dataset[[#This Row],[2027/28 To - Total]])","v":0},{"$f":"Dataset[[#This Row],[2024/25 Baseline]]+Dataset[[#This Row],[2024/25 Total change]]","v":1320617},{"$f":"Dataset[[#This Row],[2025/26 Baseline]]+Dataset[[#This Row],[2025/26 Total change]]","v":1379781},{"$f":"Dataset[[#This Row],[2026/27 Baseline]]+Dataset[[#This Row],[2026/27 Total change]]","v":1442994},{"$f":"Dataset[[#This Row],[2027/28 Baseline]]+Dataset[[#This Row],[2027/28 Total change]]","v":1508247}]
["NAT|Passenger Rail Agency of South Africa: Mainline passenger services (refurbishment of coaches)","40|Subsidies on products and production (pc)","2025_26","MTEC2025",40,3,4,52056,784,"40","03","04","052056","000784","40|03|04|000784","02","02","08","49","51","02|02|08|49|51","National","Transport","Rail Transport","Rail Oversight","Passenger Rail Agency of South Africa: Mainline passenger services (refurbishment of coaches)","Capital","Transfers and subsidies","Public corporations and private enterprises","Public corporations","Subsidies on products and production (pc)","Community development","Community development","NAT",104975,247954,78974,190620,620,620,null,199181,208104,217638,227480,null,null,null,null,null,null,null,null,null,null,null,null,null,null,null,null,null,null,null,null,null,null,null,null,null,null,null,null,null,null,null,null,null,null,{"$f":"Dataset[[#This Row],[2025/26 From - Spending review Topic 1]]+Dataset[[#This Row],[2025/26 From - Spending review Topic 2]]+Dataset[[#This Row],[2025/26 From - Spending review Topic 3]]+Dataset[[#This Row],[2025/26 From - Spending review Topic 4]]+Dataset[[#This Row],[2025/26 From - Other reallocations]]","v":0},{"$f":"Dataset[[#This Row],[2026/27 From - Spending review Topic 1]]+Dataset[[#This Row],[2026/27 From - Spending review Topic 2]]+Dataset[[#This Row],[2026/27 From - Spending review Topic 3]]+Dataset[[#This Row],[2026/27 From - Spending review Topic 4]]+Dataset[[#This Row],[2026/27 From - Other reallocations]]","v":0},{"$f":"Dataset[[#This Row],[2027/28 From - Spending review Topic 1]]+Dataset[[#This Row],[2027/28 From - Spending review Topic 2]]+Dataset[[#This Row],[2027/28 From - Spending review Topic 3]]+Dataset[[#This Row],[2027/28 From - Spending review Topic 4]]+Dataset[[#This Row],[2027/28 From - Other reallocations]]","v":0},{"$f":"Dataset[[#This Row],[2025/26 To - Spending review Topic 1]]+Dataset[[#This Row],[2025/26 To - Spending review Topic 2]]+Dataset[[#This Row],[2025/26 To - Spending review Topic 3]]+Dataset[[#This Row],[2025/26 To - Spending review Topic 4]]+Dataset[[#This Row],[2025/26 To - Other reallocations]]","v":0},{"$f":"Dataset[[#This Row],[2026/27 To - Spending review Topic 1]]+Dataset[[#This Row],[2026/27 To - Spending review Topic 2]]+Dataset[[#This Row],[2026/27 To - Spending review Topic 3]]+Dataset[[#This Row],[2026/27 To - Spending review Topic 4]]+Dataset[[#This Row],[2026/27 To - Other reallocations]]","v":0},{"$f":"Dataset[[#This Row],[2027/28 To - Spending review Topic 1]]+Dataset[[#This Row],[2027/28 To - Spending review Topic 2]]+Dataset[[#This Row],[2027/28 To - Spending review Topic 3]]+Dataset[[#This Row],[2027/28 To - Spending review Topic 4]]+Dataset[[#This Row],[2027/28 To - Other reallocations]]","v":0},{"$f":"Dataset[[#This Row],[2025/26 Reduction]]+Dataset[[#This Row],[2025/26 From - Total]]","v":0},{"$f":"Dataset[[#This Row],[2026/27 Reduction]]+Dataset[[#This Row],[2026/27 From - Total]]","v":0},{"$f":"Dataset[[#This Row],[2027/28 Reduction]]+Dataset[[#This Row],[2027/28 From - Total]]","v":0},{"$f":"Dataset[[#This Row],[2024/25 Reduction]]","v":0},{"$f":"SUM(Dataset[[#This Row],[2025/26 Reduction]],Dataset[[#This Row],[2025/26 From - Total]],Dataset[[#This Row],[2025/26 To - Total]])","v":0},{"$f":"SUM(Dataset[[#This Row],[2026/27 Reduction]],Dataset[[#This Row],[2026/27 From - Total]],Dataset[[#This Row],[2026/27 To - Total]])","v":0},{"$f":"SUM(Dataset[[#This Row],[2027/28 Reduction]],Dataset[[#This Row],[2027/28 From - Total]],Dataset[[#This Row],[2027/28 To - Total]])","v":0},{"$f":"Dataset[[#This Row],[2024/25 Baseline]]+Dataset[[#This Row],[2024/25 Total change]]","v":199181},{"$f":"Dataset[[#This Row],[2025/26 Baseline]]+Dataset[[#This Row],[2025/26 Total change]]","v":208104},{"$f":"Dataset[[#This Row],[2026/27 Baseline]]+Dataset[[#This Row],[2026/27 Total change]]","v":217638},{"$f":"Dataset[[#This Row],[2027/28 Baseline]]+Dataset[[#This Row],[2027/28 Total change]]","v":227480}]
["NAT|Non-transfer item","40|Biological assets","2025_26","MTEC2025",40,3,4,52064,792,"40","03","04","052064","000792","40|03|04|000792","02","03","15","60","64","02|03|15|60|64","National","Transport","Rail Transport","Rail Oversight","Non-transfer item","Capital","Payments for capital assets","Biological assets","Biological assets","Biological assets","Community development","Community development","NAT",0,0,0,0,0,0,null,0,0,0,0,null,null,null,null,null,null,null,null,null,null,null,null,null,null,null,null,null,null,null,null,null,null,null,null,null,null,null,null,null,null,null,null,null,null,{"$f":"Dataset[[#This Row],[2025/26 From - Spending review Topic 1]]+Dataset[[#This Row],[2025/26 From - Spending review Topic 2]]+Dataset[[#This Row],[2025/26 From - Spending review Topic 3]]+Dataset[[#This Row],[2025/26 From - Spending review Topic 4]]+Dataset[[#This Row],[2025/26 From - Other reallocations]]","v":0},{"$f":"Dataset[[#This Row],[2026/27 From - Spending review Topic 1]]+Dataset[[#This Row],[2026/27 From - Spending review Topic 2]]+Dataset[[#This Row],[2026/27 From - Spending review Topic 3]]+Dataset[[#This Row],[2026/27 From - Spending review Topic 4]]+Dataset[[#This Row],[2026/27 From - Other reallocations]]","v":0},{"$f":"Dataset[[#This Row],[2027/28 From - Spending review Topic 1]]+Dataset[[#This Row],[2027/28 From - Spending review Topic 2]]+Dataset[[#This Row],[2027/28 From - Spending review Topic 3]]+Dataset[[#This Row],[2027/28 From - Spending review Topic 4]]+Dataset[[#This Row],[2027/28 From - Other reallocations]]","v":0},{"$f":"Dataset[[#This Row],[2025/26 To - Spending review Topic 1]]+Dataset[[#This Row],[2025/26 To - Spending review Topic 2]]+Dataset[[#This Row],[2025/26 To - Spending review Topic 3]]+Dataset[[#This Row],[2025/26 To - Spending review Topic 4]]+Dataset[[#This Row],[2025/26 To - Other reallocations]]","v":0},{"$f":"Dataset[[#This Row],[2026/27 To - Spending review Topic 1]]+Dataset[[#This Row],[2026/27 To - Spending review Topic 2]]+Dataset[[#This Row],[2026/27 To - Spending review Topic 3]]+Dataset[[#This Row],[2026/27 To - Spending review Topic 4]]+Dataset[[#This Row],[2026/27 To - Other reallocations]]","v":0},{"$f":"Dataset[[#This Row],[2027/28 To - Spending review Topic 1]]+Dataset[[#This Row],[2027/28 To - Spending review Topic 2]]+Dataset[[#This Row],[2027/28 To - Spending review Topic 3]]+Dataset[[#This Row],[2027/28 To - Spending review Topic 4]]+Dataset[[#This Row],[2027/28 To - Other reallocations]]","v":0},{"$f":"Dataset[[#This Row],[2025/26 Reduction]]+Dataset[[#This Row],[2025/26 From - Total]]","v":0},{"$f":"Dataset[[#This Row],[2026/27 Reduction]]+Dataset[[#This Row],[2026/27 From - Total]]","v":0},{"$f":"Dataset[[#This Row],[2027/28 Reduction]]+Dataset[[#This Row],[2027/28 From - Total]]","v":0},{"$f":"Dataset[[#This Row],[2024/25 Reduction]]","v":0},{"$f":"SUM(Dataset[[#This Row],[2025/26 Reduction]],Dataset[[#This Row],[2025/26 From - Total]],Dataset[[#This Row],[2025/26 To - Total]])","v":0},{"$f":"SUM(Dataset[[#This Row],[2026/27 Reduction]],Dataset[[#This Row],[2026/27 From - Total]],Dataset[[#This Row],[2026/27 To - Total]])","v":0},{"$f":"SUM(Dataset[[#This Row],[2027/28 Reduction]],Dataset[[#This Row],[2027/28 From - Total]],Dataset[[#This Row],[2027/28 To - Total]])","v":0},{"$f":"Dataset[[#This Row],[2024/25 Baseline]]+Dataset[[#This Row],[2024/25 Total change]]","v":0},{"$f":"Dataset[[#This Row],[2025/26 Baseline]]+Dataset[[#This Row],[2025/26 Total change]]","v":0},{"$f":"Dataset[[#This Row],[2026/27 Baseline]]+Dataset[[#This Row],[2026/27 Total change]]","v":0},{"$f":"Dataset[[#This Row],[2027/28 Baseline]]+Dataset[[#This Row],[2027/28 Total change]]","v":0}]
["NAT|Non-transfer item","40|Audit costs: External","2025_26","MTEC2025",40,3,5,52072,800,"40","03","05","052072","000800","40|03|05|000800","01","01","02","06","06","01|01|02|06|06","National","Transport","Rail Transport","Rail Administration Support","Non-transfer item","Current","Current payments","Goods and services","Audit costs: External","Audit costs: External","Economic development","Economic regulation and infrastructure","NAT",0,0,0,0,0,0,null,0,0,0,0,null,null,null,null,null,null,null,null,null,null,null,null,null,null,null,null,null,null,null,null,null,null,null,null,null,null,null,null,null,null,null,null,null,null,{"$f":"Dataset[[#This Row],[2025/26 From - Spending review Topic 1]]+Dataset[[#This Row],[2025/26 From - Spending review Topic 2]]+Dataset[[#This Row],[2025/26 From - Spending review Topic 3]]+Dataset[[#This Row],[2025/26 From - Spending review Topic 4]]+Dataset[[#This Row],[2025/26 From - Other reallocations]]","v":0},{"$f":"Dataset[[#This Row],[2026/27 From - Spending review Topic 1]]+Dataset[[#This Row],[2026/27 From - Spending review Topic 2]]+Dataset[[#This Row],[2026/27 From - Spending review Topic 3]]+Dataset[[#This Row],[2026/27 From - Spending review Topic 4]]+Dataset[[#This Row],[2026/27 From - Other reallocations]]","v":0},{"$f":"Dataset[[#This Row],[2027/28 From - Spending review Topic 1]]+Dataset[[#This Row],[2027/28 From - Spending review Topic 2]]+Dataset[[#This Row],[2027/28 From - Spending review Topic 3]]+Dataset[[#This Row],[2027/28 From - Spending review Topic 4]]+Dataset[[#This Row],[2027/28 From - Other reallocations]]","v":0},{"$f":"Dataset[[#This Row],[2025/26 To - Spending review Topic 1]]+Dataset[[#This Row],[2025/26 To - Spending review Topic 2]]+Dataset[[#This Row],[2025/26 To - Spending review Topic 3]]+Dataset[[#This Row],[2025/26 To - Spending review Topic 4]]+Dataset[[#This Row],[2025/26 To - Other reallocations]]","v":0},{"$f":"Dataset[[#This Row],[2026/27 To - Spending review Topic 1]]+Dataset[[#This Row],[2026/27 To - Spending review Topic 2]]+Dataset[[#This Row],[2026/27 To - Spending review Topic 3]]+Dataset[[#This Row],[2026/27 To - Spending review Topic 4]]+Dataset[[#This Row],[2026/27 To - Other reallocations]]","v":0},{"$f":"Dataset[[#This Row],[2027/28 To - Spending review Topic 1]]+Dataset[[#This Row],[2027/28 To - Spending review Topic 2]]+Dataset[[#This Row],[2027/28 To - Spending review Topic 3]]+Dataset[[#This Row],[2027/28 To - Spending review Topic 4]]+Dataset[[#This Row],[2027/28 To - Other reallocations]]","v":0},{"$f":"Dataset[[#This Row],[2025/26 Reduction]]+Dataset[[#This Row],[2025/26 From - Total]]","v":0},{"$f":"Dataset[[#This Row],[2026/27 Reduction]]+Dataset[[#This Row],[2026/27 From - Total]]","v":0},{"$f":"Dataset[[#This Row],[2027/28 Reduction]]+Dataset[[#This Row],[2027/28 From - Total]]","v":0},{"$f":"Dataset[[#This Row],[2024/25 Reduction]]","v":0},{"$f":"SUM(Dataset[[#This Row],[2025/26 Reduction]],Dataset[[#This Row],[2025/26 From - Total]],Dataset[[#This Row],[2025/26 To - Total]])","v":0},{"$f":"SUM(Dataset[[#This Row],[2026/27 Reduction]],Dataset[[#This Row],[2026/27 From - Total]],Dataset[[#This Row],[2026/27 To - Total]])","v":0},{"$f":"SUM(Dataset[[#This Row],[2027/28 Reduction]],Dataset[[#This Row],[2027/28 From - Total]],Dataset[[#This Row],[2027/28 To - Total]])","v":0},{"$f":"Dataset[[#This Row],[2024/25 Baseline]]+Dataset[[#This Row],[2024/25 Total change]]","v":0},{"$f":"Dataset[[#This Row],[2025/26 Baseline]]+Dataset[[#This Row],[2025/26 Total change]]","v":0},{"$f":"Dataset[[#This Row],[2026/27 Baseline]]+Dataset[[#This Row],[2026/27 Total change]]","v":0},{"$f":"Dataset[[#This Row],[2027/28 Baseline]]+Dataset[[#This Row],[2027/28 Total change]]","v":0}]
["NAT|Non-transfer item","40|Consultants: Business and advisory services","2025_26","MTEC2025",40,3,5,52077,805,"40","03","05","052077","000805","40|03|05|000805","01","01","02","11","11","01|01|02|11|11","National","Transport","Rail Transport","Rail Administration Support","Non-transfer item","Current","Current payments","Goods and services","Consultants: Business and advisory services","Consultants: Business and advisory services","Economic development","Economic regulation and infrastructure","NAT",0,0,0,0,0,0,null,0,0,0,0,null,null,null,null,null,null,null,null,null,null,null,null,null,null,null,null,null,null,null,null,null,null,null,null,null,null,null,null,null,null,null,null,null,null,{"$f":"Dataset[[#This Row],[2025/26 From - Spending review Topic 1]]+Dataset[[#This Row],[2025/26 From - Spending review Topic 2]]+Dataset[[#This Row],[2025/26 From - Spending review Topic 3]]+Dataset[[#This Row],[2025/26 From - Spending review Topic 4]]+Dataset[[#This Row],[2025/26 From - Other reallocations]]","v":0},{"$f":"Dataset[[#This Row],[2026/27 From - Spending review Topic 1]]+Dataset[[#This Row],[2026/27 From - Spending review Topic 2]]+Dataset[[#This Row],[2026/27 From - Spending review Topic 3]]+Dataset[[#This Row],[2026/27 From - Spending review Topic 4]]+Dataset[[#This Row],[2026/27 From - Other reallocations]]","v":0},{"$f":"Dataset[[#This Row],[2027/28 From - Spending review Topic 1]]+Dataset[[#This Row],[2027/28 From - Spending review Topic 2]]+Dataset[[#This Row],[2027/28 From - Spending review Topic 3]]+Dataset[[#This Row],[2027/28 From - Spending review Topic 4]]+Dataset[[#This Row],[2027/28 From - Other reallocations]]","v":0},{"$f":"Dataset[[#This Row],[2025/26 To - Spending review Topic 1]]+Dataset[[#This Row],[2025/26 To - Spending review Topic 2]]+Dataset[[#This Row],[2025/26 To - Spending review Topic 3]]+Dataset[[#This Row],[2025/26 To - Spending review Topic 4]]+Dataset[[#This Row],[2025/26 To - Other reallocations]]","v":0},{"$f":"Dataset[[#This Row],[2026/27 To - Spending review Topic 1]]+Dataset[[#This Row],[2026/27 To - Spending review Topic 2]]+Dataset[[#This Row],[2026/27 To - Spending review Topic 3]]+Dataset[[#This Row],[2026/27 To - Spending review Topic 4]]+Dataset[[#This Row],[2026/27 To - Other reallocations]]","v":0},{"$f":"Dataset[[#This Row],[2027/28 To - Spending review Topic 1]]+Dataset[[#This Row],[2027/28 To - Spending review Topic 2]]+Dataset[[#This Row],[2027/28 To - Spending review Topic 3]]+Dataset[[#This Row],[2027/28 To - Spending review Topic 4]]+Dataset[[#This Row],[2027/28 To - Other reallocations]]","v":0},{"$f":"Dataset[[#This Row],[2025/26 Reduction]]+Dataset[[#This Row],[2025/26 From - Total]]","v":0},{"$f":"Dataset[[#This Row],[2026/27 Reduction]]+Dataset[[#This Row],[2026/27 From - Total]]","v":0},{"$f":"Dataset[[#This Row],[2027/28 Reduction]]+Dataset[[#This Row],[2027/28 From - Total]]","v":0},{"$f":"Dataset[[#This Row],[2024/25 Reduction]]","v":0},{"$f":"SUM(Dataset[[#This Row],[2025/26 Reduction]],Dataset[[#This Row],[2025/26 From - Total]],Dataset[[#This Row],[2025/26 To - Total]])","v":0},{"$f":"SUM(Dataset[[#This Row],[2026/27 Reduction]],Dataset[[#This Row],[2026/27 From - Total]],Dataset[[#This Row],[2026/27 To - Total]])","v":0},{"$f":"SUM(Dataset[[#This Row],[2027/28 Reduction]],Dataset[[#This Row],[2027/28 From - Total]],Dataset[[#This Row],[2027/28 To - Total]])","v":0},{"$f":"Dataset[[#This Row],[2024/25 Baseline]]+Dataset[[#This Row],[2024/25 Total change]]","v":0},{"$f":"Dataset[[#This Row],[2025/26 Baseline]]+Dataset[[#This Row],[2025/26 Total change]]","v":0},{"$f":"Dataset[[#This Row],[2026/27 Baseline]]+Dataset[[#This Row],[2026/27 Total change]]","v":0},{"$f":"Dataset[[#This Row],[2027/28 Baseline]]+Dataset[[#This Row],[2027/28 Total change]]","v":0}]
["NAT|Non-transfer item","40|Fleet services (including government motor transport)","2025_26","MTEC2025",40,3,5,52085,813,"40","03","05","052085","000813","40|03|05|000813","01","01","02","19","19","01|01|02|19|19","National","Transport","Rail Transport","Rail Administration Support","Non-transfer item","Current","Current payments","Goods and services","Fleet services (including government motor transport)","Fleet services (including government motor transport)","Economic development","Economic regulation and infrastructure","NAT",0,0,0,0,0,0,null,0,0,0,0,null,null,null,null,null,null,null,null,null,null,null,null,null,null,null,null,null,null,null,null,null,null,null,null,null,null,null,null,null,null,null,null,null,null,{"$f":"Dataset[[#This Row],[2025/26 From - Spending review Topic 1]]+Dataset[[#This Row],[2025/26 From - Spending review Topic 2]]+Dataset[[#This Row],[2025/26 From - Spending review Topic 3]]+Dataset[[#This Row],[2025/26 From - Spending review Topic 4]]+Dataset[[#This Row],[2025/26 From - Other reallocations]]","v":0},{"$f":"Dataset[[#This Row],[2026/27 From - Spending review Topic 1]]+Dataset[[#This Row],[2026/27 From - Spending review Topic 2]]+Dataset[[#This Row],[2026/27 From - Spending review Topic 3]]+Dataset[[#This Row],[2026/27 From - Spending review Topic 4]]+Dataset[[#This Row],[2026/27 From - Other reallocations]]","v":0},{"$f":"Dataset[[#This Row],[2027/28 From - Spending review Topic 1]]+Dataset[[#This Row],[2027/28 From - Spending review Topic 2]]+Dataset[[#This Row],[2027/28 From - Spending review Topic 3]]+Dataset[[#This Row],[2027/28 From - Spending review Topic 4]]+Dataset[[#This Row],[2027/28 From - Other reallocations]]","v":0},{"$f":"Dataset[[#This Row],[2025/26 To - Spending review Topic 1]]+Dataset[[#This Row],[2025/26 To - Spending review Topic 2]]+Dataset[[#This Row],[2025/26 To - Spending review Topic 3]]+Dataset[[#This Row],[2025/26 To - Spending review Topic 4]]+Dataset[[#This Row],[2025/26 To - Other reallocations]]","v":0},{"$f":"Dataset[[#This Row],[2026/27 To - Spending review Topic 1]]+Dataset[[#This Row],[2026/27 To - Spending review Topic 2]]+Dataset[[#This Row],[2026/27 To - Spending review Topic 3]]+Dataset[[#This Row],[2026/27 To - Spending review Topic 4]]+Dataset[[#This Row],[2026/27 To - Other reallocations]]","v":0},{"$f":"Dataset[[#This Row],[2027/28 To - Spending review Topic 1]]+Dataset[[#This Row],[2027/28 To - Spending review Topic 2]]+Dataset[[#This Row],[2027/28 To - Spending review Topic 3]]+Dataset[[#This Row],[2027/28 To - Spending review Topic 4]]+Dataset[[#This Row],[2027/28 To - Other reallocations]]","v":0},{"$f":"Dataset[[#This Row],[2025/26 Reduction]]+Dataset[[#This Row],[2025/26 From - Total]]","v":0},{"$f":"Dataset[[#This Row],[2026/27 Reduction]]+Dataset[[#This Row],[2026/27 From - Total]]","v":0},{"$f":"Dataset[[#This Row],[2027/28 Reduction]]+Dataset[[#This Row],[2027/28 From - Total]]","v":0},{"$f":"Dataset[[#This Row],[2024/25 Reduction]]","v":0},{"$f":"SUM(Dataset[[#This Row],[2025/26 Reduction]],Dataset[[#This Row],[2025/26 From - Total]],Dataset[[#This Row],[2025/26 To - Total]])","v":0},{"$f":"SUM(Dataset[[#This Row],[2026/27 Reduction]],Dataset[[#This Row],[2026/27 From - Total]],Dataset[[#This Row],[2026/27 To - Total]])","v":0},{"$f":"SUM(Dataset[[#This Row],[2027/28 Reduction]],Dataset[[#This Row],[2027/28 From - Total]],Dataset[[#This Row],[2027/28 To - Total]])","v":0},{"$f":"Dataset[[#This Row],[2024/25 Baseline]]+Dataset[[#This Row],[2024/25 Total change]]","v":0},{"$f":"Dataset[[#This Row],[2025/26 Baseline]]+Dataset[[#This Row],[2025/26 Total change]]","v":0},{"$f":"Dataset[[#This Row],[2026/27 Baseline]]+Dataset[[#This Row],[2026/27 Total change]]","v":0},{"$f":"Dataset[[#This Row],[2027/28 Baseline]]+Dataset[[#This Row],[2027/28 Total change]]","v":0}]
["NAT|Non-transfer item","40|Inventory: Fuel, oil and gas","2025_26","MTEC2025",40,3,5,52090,818,"40","03","05","052090","000818","40|03|05|000818","01","01","02","24","24","01|01|02|24|24","National","Transport","Rail Transport","Rail Administration Support","Non-transfer item","Current","Current payments","Goods and services","Inventory: Fuel, oil and gas","Inventory: Fuel, oil and gas","Economic development","Economic regulation and infrastructure","NAT",0,0,0,0,0,0,null,0,0,0,0,null,null,null,null,null,null,null,null,null,null,null,null,null,null,null,null,null,null,null,null,null,null,null,null,null,null,null,null,null,null,null,null,null,null,{"$f":"Dataset[[#This Row],[2025/26 From - Spending review Topic 1]]+Dataset[[#This Row],[2025/26 From - Spending review Topic 2]]+Dataset[[#This Row],[2025/26 From - Spending review Topic 3]]+Dataset[[#This Row],[2025/26 From - Spending review Topic 4]]+Dataset[[#This Row],[2025/26 From - Other reallocations]]","v":0},{"$f":"Dataset[[#This Row],[2026/27 From - Spending review Topic 1]]+Dataset[[#This Row],[2026/27 From - Spending review Topic 2]]+Dataset[[#This Row],[2026/27 From - Spending review Topic 3]]+Dataset[[#This Row],[2026/27 From - Spending review Topic 4]]+Dataset[[#This Row],[2026/27 From - Other reallocations]]","v":0},{"$f":"Dataset[[#This Row],[2027/28 From - Spending review Topic 1]]+Dataset[[#This Row],[2027/28 From - Spending review Topic 2]]+Dataset[[#This Row],[2027/28 From - Spending review Topic 3]]+Dataset[[#This Row],[2027/28 From - Spending review Topic 4]]+Dataset[[#This Row],[2027/28 From - Other reallocations]]","v":0},{"$f":"Dataset[[#This Row],[2025/26 To - Spending review Topic 1]]+Dataset[[#This Row],[2025/26 To - Spending review Topic 2]]+Dataset[[#This Row],[2025/26 To - Spending review Topic 3]]+Dataset[[#This Row],[2025/26 To - Spending review Topic 4]]+Dataset[[#This Row],[2025/26 To - Other reallocations]]","v":0},{"$f":"Dataset[[#This Row],[2026/27 To - Spending review Topic 1]]+Dataset[[#This Row],[2026/27 To - Spending review Topic 2]]+Dataset[[#This Row],[2026/27 To - Spending review Topic 3]]+Dataset[[#This Row],[2026/27 To - Spending review Topic 4]]+Dataset[[#This Row],[2026/27 To - Other reallocations]]","v":0},{"$f":"Dataset[[#This Row],[2027/28 To - Spending review Topic 1]]+Dataset[[#This Row],[2027/28 To - Spending review Topic 2]]+Dataset[[#This Row],[2027/28 To - Spending review Topic 3]]+Dataset[[#This Row],[2027/28 To - Spending review Topic 4]]+Dataset[[#This Row],[2027/28 To - Other reallocations]]","v":0},{"$f":"Dataset[[#This Row],[2025/26 Reduction]]+Dataset[[#This Row],[2025/26 From - Total]]","v":0},{"$f":"Dataset[[#This Row],[2026/27 Reduction]]+Dataset[[#This Row],[2026/27 From - Total]]","v":0},{"$f":"Dataset[[#This Row],[2027/28 Reduction]]+Dataset[[#This Row],[2027/28 From - Total]]","v":0},{"$f":"Dataset[[#This Row],[2024/25 Reduction]]","v":0},{"$f":"SUM(Dataset[[#This Row],[2025/26 Reduction]],Dataset[[#This Row],[2025/26 From - Total]],Dataset[[#This Row],[2025/26 To - Total]])","v":0},{"$f":"SUM(Dataset[[#This Row],[2026/27 Reduction]],Dataset[[#This Row],[2026/27 From - Total]],Dataset[[#This Row],[2026/27 To - Total]])","v":0},{"$f":"SUM(Dataset[[#This Row],[2027/28 Reduction]],Dataset[[#This Row],[2027/28 From - Total]],Dataset[[#This Row],[2027/28 To - Total]])","v":0},{"$f":"Dataset[[#This Row],[2024/25 Baseline]]+Dataset[[#This Row],[2024/25 Total change]]","v":0},{"$f":"Dataset[[#This Row],[2025/26 Baseline]]+Dataset[[#This Row],[2025/26 Total change]]","v":0},{"$f":"Dataset[[#This Row],[2026/27 Baseline]]+Dataset[[#This Row],[2026/27 Total change]]","v":0},{"$f":"Dataset[[#This Row],[2027/28 Baseline]]+Dataset[[#This Row],[2027/28 Total change]]","v":0}]
["NAT|Non-transfer item","40|Consumables: Stationery, printing and office supplies","2025_26","MTEC2025",40,3,5,52098,826,"40","03","05","052098","000826","40|03|05|000826","01","01","02","32","32","01|01|02|32|32","National","Transport","Rail Transport","Rail Administration Support","Non-transfer item","Current","Current payments","Goods and services","Consumables: Stationery, printing and office supplies","Consumables: Stationery, printing and office supplies","Economic development","Economic regulation and infrastructure","NAT",32,19,163,195,195,195,99,145,152,159,166,null,null,null,null,null,null,null,null,null,null,null,null,null,null,null,null,null,null,null,null,null,null,null,null,null,null,null,null,null,null,null,null,null,null,{"$f":"Dataset[[#This Row],[2025/26 From - Spending review Topic 1]]+Dataset[[#This Row],[2025/26 From - Spending review Topic 2]]+Dataset[[#This Row],[2025/26 From - Spending review Topic 3]]+Dataset[[#This Row],[2025/26 From - Spending review Topic 4]]+Dataset[[#This Row],[2025/26 From - Other reallocations]]","v":0},{"$f":"Dataset[[#This Row],[2026/27 From - Spending review Topic 1]]+Dataset[[#This Row],[2026/27 From - Spending review Topic 2]]+Dataset[[#This Row],[2026/27 From - Spending review Topic 3]]+Dataset[[#This Row],[2026/27 From - Spending review Topic 4]]+Dataset[[#This Row],[2026/27 From - Other reallocations]]","v":0},{"$f":"Dataset[[#This Row],[2027/28 From - Spending review Topic 1]]+Dataset[[#This Row],[2027/28 From - Spending review Topic 2]]+Dataset[[#This Row],[2027/28 From - Spending review Topic 3]]+Dataset[[#This Row],[2027/28 From - Spending review Topic 4]]+Dataset[[#This Row],[2027/28 From - Other reallocations]]","v":0},{"$f":"Dataset[[#This Row],[2025/26 To - Spending review Topic 1]]+Dataset[[#This Row],[2025/26 To - Spending review Topic 2]]+Dataset[[#This Row],[2025/26 To - Spending review Topic 3]]+Dataset[[#This Row],[2025/26 To - Spending review Topic 4]]+Dataset[[#This Row],[2025/26 To - Other reallocations]]","v":0},{"$f":"Dataset[[#This Row],[2026/27 To - Spending review Topic 1]]+Dataset[[#This Row],[2026/27 To - Spending review Topic 2]]+Dataset[[#This Row],[2026/27 To - Spending review Topic 3]]+Dataset[[#This Row],[2026/27 To - Spending review Topic 4]]+Dataset[[#This Row],[2026/27 To - Other reallocations]]","v":0},{"$f":"Dataset[[#This Row],[2027/28 To - Spending review Topic 1]]+Dataset[[#This Row],[2027/28 To - Spending review Topic 2]]+Dataset[[#This Row],[2027/28 To - Spending review Topic 3]]+Dataset[[#This Row],[2027/28 To - Spending review Topic 4]]+Dataset[[#This Row],[2027/28 To - Other reallocations]]","v":0},{"$f":"Dataset[[#This Row],[2025/26 Reduction]]+Dataset[[#This Row],[2025/26 From - Total]]","v":0},{"$f":"Dataset[[#This Row],[2026/27 Reduction]]+Dataset[[#This Row],[2026/27 From - Total]]","v":0},{"$f":"Dataset[[#This Row],[2027/28 Reduction]]+Dataset[[#This Row],[2027/28 From - Total]]","v":0},{"$f":"Dataset[[#This Row],[2024/25 Reduction]]","v":0},{"$f":"SUM(Dataset[[#This Row],[2025/26 Reduction]],Dataset[[#This Row],[2025/26 From - Total]],Dataset[[#This Row],[2025/26 To - Total]])","v":0},{"$f":"SUM(Dataset[[#This Row],[2026/27 Reduction]],Dataset[[#This Row],[2026/27 From - Total]],Dataset[[#This Row],[2026/27 To - Total]])","v":0},{"$f":"SUM(Dataset[[#This Row],[2027/28 Reduction]],Dataset[[#This Row],[2027/28 From - Total]],Dataset[[#This Row],[2027/28 To - Total]])","v":0},{"$f":"Dataset[[#This Row],[2024/25 Baseline]]+Dataset[[#This Row],[2024/25 Total change]]","v":145},{"$f":"Dataset[[#This Row],[2025/26 Baseline]]+Dataset[[#This Row],[2025/26 Total change]]","v":152},{"$f":"Dataset[[#This Row],[2026/27 Baseline]]+Dataset[[#This Row],[2026/27 Total change]]","v":159},{"$f":"Dataset[[#This Row],[2027/28 Baseline]]+Dataset[[#This Row],[2027/28 Total change]]","v":166}]
["NAT|Non-transfer item","40|Venues and facilities","2025_26","MTEC2025",40,3,5,52106,834,"40","03","05","052106","000834","40|03|05|000834","01","01","02","40","40","01|01|02|40|40","National","Transport","Rail Transport","Rail Administration Support","Non-transfer item","Current","Current payments","Goods and services","Venues and facilities","Venues and facilities","Economic development","Economic regulation and infrastructure","NAT",0,0,0,64,64,64,null,64,67,70,73,null,null,null,null,null,null,null,null,null,null,null,null,null,null,null,null,null,null,null,null,null,null,null,null,null,null,null,null,null,null,null,null,null,null,{"$f":"Dataset[[#This Row],[2025/26 From - Spending review Topic 1]]+Dataset[[#This Row],[2025/26 From - Spending review Topic 2]]+Dataset[[#This Row],[2025/26 From - Spending review Topic 3]]+Dataset[[#This Row],[2025/26 From - Spending review Topic 4]]+Dataset[[#This Row],[2025/26 From - Other reallocations]]","v":0},{"$f":"Dataset[[#This Row],[2026/27 From - Spending review Topic 1]]+Dataset[[#This Row],[2026/27 From - Spending review Topic 2]]+Dataset[[#This Row],[2026/27 From - Spending review Topic 3]]+Dataset[[#This Row],[2026/27 From - Spending review Topic 4]]+Dataset[[#This Row],[2026/27 From - Other reallocations]]","v":0},{"$f":"Dataset[[#This Row],[2027/28 From - Spending review Topic 1]]+Dataset[[#This Row],[2027/28 From - Spending review Topic 2]]+Dataset[[#This Row],[2027/28 From - Spending review Topic 3]]+Dataset[[#This Row],[2027/28 From - Spending review Topic 4]]+Dataset[[#This Row],[2027/28 From - Other reallocations]]","v":0},{"$f":"Dataset[[#This Row],[2025/26 To - Spending review Topic 1]]+Dataset[[#This Row],[2025/26 To - Spending review Topic 2]]+Dataset[[#This Row],[2025/26 To - Spending review Topic 3]]+Dataset[[#This Row],[2025/26 To - Spending review Topic 4]]+Dataset[[#This Row],[2025/26 To - Other reallocations]]","v":0},{"$f":"Dataset[[#This Row],[2026/27 To - Spending review Topic 1]]+Dataset[[#This Row],[2026/27 To - Spending review Topic 2]]+Dataset[[#This Row],[2026/27 To - Spending review Topic 3]]+Dataset[[#This Row],[2026/27 To - Spending review Topic 4]]+Dataset[[#This Row],[2026/27 To - Other reallocations]]","v":0},{"$f":"Dataset[[#This Row],[2027/28 To - Spending review Topic 1]]+Dataset[[#This Row],[2027/28 To - Spending review Topic 2]]+Dataset[[#This Row],[2027/28 To - Spending review Topic 3]]+Dataset[[#This Row],[2027/28 To - Spending review Topic 4]]+Dataset[[#This Row],[2027/28 To - Other reallocations]]","v":0},{"$f":"Dataset[[#This Row],[2025/26 Reduction]]+Dataset[[#This Row],[2025/26 From - Total]]","v":0},{"$f":"Dataset[[#This Row],[2026/27 Reduction]]+Dataset[[#This Row],[2026/27 From - Total]]","v":0},{"$f":"Dataset[[#This Row],[2027/28 Reduction]]+Dataset[[#This Row],[2027/28 From - Total]]","v":0},{"$f":"Dataset[[#This Row],[2024/25 Reduction]]","v":0},{"$f":"SUM(Dataset[[#This Row],[2025/26 Reduction]],Dataset[[#This Row],[2025/26 From - Total]],Dataset[[#This Row],[2025/26 To - Total]])","v":0},{"$f":"SUM(Dataset[[#This Row],[2026/27 Reduction]],Dataset[[#This Row],[2026/27 From - Total]],Dataset[[#This Row],[2026/27 To - Total]])","v":0},{"$f":"SUM(Dataset[[#This Row],[2027/28 Reduction]],Dataset[[#This Row],[2027/28 From - Total]],Dataset[[#This Row],[2027/28 To - Total]])","v":0},{"$f":"Dataset[[#This Row],[2024/25 Baseline]]+Dataset[[#This Row],[2024/25 Total change]]","v":64},{"$f":"Dataset[[#This Row],[2025/26 Baseline]]+Dataset[[#This Row],[2025/26 Total change]]","v":67},{"$f":"Dataset[[#This Row],[2026/27 Baseline]]+Dataset[[#This Row],[2026/27 Total change]]","v":70},{"$f":"Dataset[[#This Row],[2027/28 Baseline]]+Dataset[[#This Row],[2027/28 Total change]]","v":73}]
["NAT|Non-transfer item","40|Other fixed structures","2025_26","MTEC2025",40,3,5,52111,839,"40","03","05","052111","000839","40|03|05|000839","02","03","11","55","59","02|03|11|55|59","National","Transport","Rail Transport","Rail Administration Support","Non-transfer item","Capital","Payments for capital assets","Buildings and other fixed structures","Other fixed structures","Other fixed structures","Economic development","Economic regulation and infrastructure","NAT",0,0,0,0,0,0,null,0,0,0,0,null,null,null,null,null,null,null,null,null,null,null,null,null,null,null,null,null,null,null,null,null,null,null,null,null,null,null,null,null,null,null,null,null,null,{"$f":"Dataset[[#This Row],[2025/26 From - Spending review Topic 1]]+Dataset[[#This Row],[2025/26 From - Spending review Topic 2]]+Dataset[[#This Row],[2025/26 From - Spending review Topic 3]]+Dataset[[#This Row],[2025/26 From - Spending review Topic 4]]+Dataset[[#This Row],[2025/26 From - Other reallocations]]","v":0},{"$f":"Dataset[[#This Row],[2026/27 From - Spending review Topic 1]]+Dataset[[#This Row],[2026/27 From - Spending review Topic 2]]+Dataset[[#This Row],[2026/27 From - Spending review Topic 3]]+Dataset[[#This Row],[2026/27 From - Spending review Topic 4]]+Dataset[[#This Row],[2026/27 From - Other reallocations]]","v":0},{"$f":"Dataset[[#This Row],[2027/28 From - Spending review Topic 1]]+Dataset[[#This Row],[2027/28 From - Spending review Topic 2]]+Dataset[[#This Row],[2027/28 From - Spending review Topic 3]]+Dataset[[#This Row],[2027/28 From - Spending review Topic 4]]+Dataset[[#This Row],[2027/28 From - Other reallocations]]","v":0},{"$f":"Dataset[[#This Row],[2025/26 To - Spending review Topic 1]]+Dataset[[#This Row],[2025/26 To - Spending review Topic 2]]+Dataset[[#This Row],[2025/26 To - Spending review Topic 3]]+Dataset[[#This Row],[2025/26 To - Spending review Topic 4]]+Dataset[[#This Row],[2025/26 To - Other reallocations]]","v":0},{"$f":"Dataset[[#This Row],[2026/27 To - Spending review Topic 1]]+Dataset[[#This Row],[2026/27 To - Spending review Topic 2]]+Dataset[[#This Row],[2026/27 To - Spending review Topic 3]]+Dataset[[#This Row],[2026/27 To - Spending review Topic 4]]+Dataset[[#This Row],[2026/27 To - Other reallocations]]","v":0},{"$f":"Dataset[[#This Row],[2027/28 To - Spending review Topic 1]]+Dataset[[#This Row],[2027/28 To - Spending review Topic 2]]+Dataset[[#This Row],[2027/28 To - Spending review Topic 3]]+Dataset[[#This Row],[2027/28 To - Spending review Topic 4]]+Dataset[[#This Row],[2027/28 To - Other reallocations]]","v":0},{"$f":"Dataset[[#This Row],[2025/26 Reduction]]+Dataset[[#This Row],[2025/26 From - Total]]","v":0},{"$f":"Dataset[[#This Row],[2026/27 Reduction]]+Dataset[[#This Row],[2026/27 From - Total]]","v":0},{"$f":"Dataset[[#This Row],[2027/28 Reduction]]+Dataset[[#This Row],[2027/28 From - Total]]","v":0},{"$f":"Dataset[[#This Row],[2024/25 Reduction]]","v":0},{"$f":"SUM(Dataset[[#This Row],[2025/26 Reduction]],Dataset[[#This Row],[2025/26 From - Total]],Dataset[[#This Row],[2025/26 To - Total]])","v":0},{"$f":"SUM(Dataset[[#This Row],[2026/27 Reduction]],Dataset[[#This Row],[2026/27 From - Total]],Dataset[[#This Row],[2026/27 To - Total]])","v":0},{"$f":"SUM(Dataset[[#This Row],[2027/28 Reduction]],Dataset[[#This Row],[2027/28 From - Total]],Dataset[[#This Row],[2027/28 To - Total]])","v":0},{"$f":"Dataset[[#This Row],[2024/25 Baseline]]+Dataset[[#This Row],[2024/25 Total change]]","v":0},{"$f":"Dataset[[#This Row],[2025/26 Baseline]]+Dataset[[#This Row],[2025/26 Total change]]","v":0},{"$f":"Dataset[[#This Row],[2026/27 Baseline]]+Dataset[[#This Row],[2026/27 Total change]]","v":0},{"$f":"Dataset[[#This Row],[2027/28 Baseline]]+Dataset[[#This Row],[2027/28 Total change]]","v":0}]
["NAT|Non-transfer item","40|Biological assets","2025_26","MTEC2025",40,3,5,52116,844,"40","03","05","052116","000844","40|03|05|000844","02","03","15","60","64","02|03|15|60|64","National","Transport","Rail Transport","Rail Administration Support","Non-transfer item","Capital","Payments for capital assets","Biological assets","Biological assets","Biological assets","Economic development","Economic regulation and infrastructure","NAT",0,0,0,0,0,0,null,0,0,0,0,null,null,null,null,null,null,null,null,null,null,null,null,null,null,null,null,null,null,null,null,null,null,null,null,null,null,null,null,null,null,null,null,null,null,{"$f":"Dataset[[#This Row],[2025/26 From - Spending review Topic 1]]+Dataset[[#This Row],[2025/26 From - Spending review Topic 2]]+Dataset[[#This Row],[2025/26 From - Spending review Topic 3]]+Dataset[[#This Row],[2025/26 From - Spending review Topic 4]]+Dataset[[#This Row],[2025/26 From - Other reallocations]]","v":0},{"$f":"Dataset[[#This Row],[2026/27 From - Spending review Topic 1]]+Dataset[[#This Row],[2026/27 From - Spending review Topic 2]]+Dataset[[#This Row],[2026/27 From - Spending review Topic 3]]+Dataset[[#This Row],[2026/27 From - Spending review Topic 4]]+Dataset[[#This Row],[2026/27 From - Other reallocations]]","v":0},{"$f":"Dataset[[#This Row],[2027/28 From - Spending review Topic 1]]+Dataset[[#This Row],[2027/28 From - Spending review Topic 2]]+Dataset[[#This Row],[2027/28 From - Spending review Topic 3]]+Dataset[[#This Row],[2027/28 From - Spending review Topic 4]]+Dataset[[#This Row],[2027/28 From - Other reallocations]]","v":0},{"$f":"Dataset[[#This Row],[2025/26 To - Spending review Topic 1]]+Dataset[[#This Row],[2025/26 To - Spending review Topic 2]]+Dataset[[#This Row],[2025/26 To - Spending review Topic 3]]+Dataset[[#This Row],[2025/26 To - Spending review Topic 4]]+Dataset[[#This Row],[2025/26 To - Other reallocations]]","v":0},{"$f":"Dataset[[#This Row],[2026/27 To - Spending review Topic 1]]+Dataset[[#This Row],[2026/27 To - Spending review Topic 2]]+Dataset[[#This Row],[2026/27 To - Spending review Topic 3]]+Dataset[[#This Row],[2026/27 To - Spending review Topic 4]]+Dataset[[#This Row],[2026/27 To - Other reallocations]]","v":0},{"$f":"Dataset[[#This Row],[2027/28 To - Spending review Topic 1]]+Dataset[[#This Row],[2027/28 To - Spending review Topic 2]]+Dataset[[#This Row],[2027/28 To - Spending review Topic 3]]+Dataset[[#This Row],[2027/28 To - Spending review Topic 4]]+Dataset[[#This Row],[2027/28 To - Other reallocations]]","v":0},{"$f":"Dataset[[#This Row],[2025/26 Reduction]]+Dataset[[#This Row],[2025/26 From - Total]]","v":0},{"$f":"Dataset[[#This Row],[2026/27 Reduction]]+Dataset[[#This Row],[2026/27 From - Total]]","v":0},{"$f":"Dataset[[#This Row],[2027/28 Reduction]]+Dataset[[#This Row],[2027/28 From - Total]]","v":0},{"$f":"Dataset[[#This Row],[2024/25 Reduction]]","v":0},{"$f":"SUM(Dataset[[#This Row],[2025/26 Reduction]],Dataset[[#This Row],[2025/26 From - Total]],Dataset[[#This Row],[2025/26 To - Total]])","v":0},{"$f":"SUM(Dataset[[#This Row],[2026/27 Reduction]],Dataset[[#This Row],[2026/27 From - Total]],Dataset[[#This Row],[2026/27 To - Total]])","v":0},{"$f":"SUM(Dataset[[#This Row],[2027/28 Reduction]],Dataset[[#This Row],[2027/28 From - Total]],Dataset[[#This Row],[2027/28 To - Total]])","v":0},{"$f":"Dataset[[#This Row],[2024/25 Baseline]]+Dataset[[#This Row],[2024/25 Total change]]","v":0},{"$f":"Dataset[[#This Row],[2025/26 Baseline]]+Dataset[[#This Row],[2025/26 Total change]]","v":0},{"$f":"Dataset[[#This Row],[2026/27 Baseline]]+Dataset[[#This Row],[2026/27 Total change]]","v":0},{"$f":"Dataset[[#This Row],[2027/28 Baseline]]+Dataset[[#This Row],[2027/28 Total change]]","v":0}]
["NAT|Non-transfer item","40|Bursaries: Employees","2025_26","MTEC2025",40,4,1,52126,854,"40","04","01","052126","000854","40|04|01|000854","01","01","02","07","07","01|01|02|07|07","National","Transport","Road Transport","Road Regulation","Non-transfer item","Current","Current payments","Goods and services","Bursaries: Employees","Bursaries: Employees","Economic development","Economic regulation and infrastructure","NAT",0,0,0,0,0,0,null,0,0,0,0,null,null,null,null,null,null,null,null,null,null,null,null,null,null,null,null,null,null,null,null,null,null,null,null,null,null,null,null,null,null,null,null,null,null,{"$f":"Dataset[[#This Row],[2025/26 From - Spending review Topic 1]]+Dataset[[#This Row],[2025/26 From - Spending review Topic 2]]+Dataset[[#This Row],[2025/26 From - Spending review Topic 3]]+Dataset[[#This Row],[2025/26 From - Spending review Topic 4]]+Dataset[[#This Row],[2025/26 From - Other reallocations]]","v":0},{"$f":"Dataset[[#This Row],[2026/27 From - Spending review Topic 1]]+Dataset[[#This Row],[2026/27 From - Spending review Topic 2]]+Dataset[[#This Row],[2026/27 From - Spending review Topic 3]]+Dataset[[#This Row],[2026/27 From - Spending review Topic 4]]+Dataset[[#This Row],[2026/27 From - Other reallocations]]","v":0},{"$f":"Dataset[[#This Row],[2027/28 From - Spending review Topic 1]]+Dataset[[#This Row],[2027/28 From - Spending review Topic 2]]+Dataset[[#This Row],[2027/28 From - Spending review Topic 3]]+Dataset[[#This Row],[2027/28 From - Spending review Topic 4]]+Dataset[[#This Row],[2027/28 From - Other reallocations]]","v":0},{"$f":"Dataset[[#This Row],[2025/26 To - Spending review Topic 1]]+Dataset[[#This Row],[2025/26 To - Spending review Topic 2]]+Dataset[[#This Row],[2025/26 To - Spending review Topic 3]]+Dataset[[#This Row],[2025/26 To - Spending review Topic 4]]+Dataset[[#This Row],[2025/26 To - Other reallocations]]","v":0},{"$f":"Dataset[[#This Row],[2026/27 To - Spending review Topic 1]]+Dataset[[#This Row],[2026/27 To - Spending review Topic 2]]+Dataset[[#This Row],[2026/27 To - Spending review Topic 3]]+Dataset[[#This Row],[2026/27 To - Spending review Topic 4]]+Dataset[[#This Row],[2026/27 To - Other reallocations]]","v":0},{"$f":"Dataset[[#This Row],[2027/28 To - Spending review Topic 1]]+Dataset[[#This Row],[2027/28 To - Spending review Topic 2]]+Dataset[[#This Row],[2027/28 To - Spending review Topic 3]]+Dataset[[#This Row],[2027/28 To - Spending review Topic 4]]+Dataset[[#This Row],[2027/28 To - Other reallocations]]","v":0},{"$f":"Dataset[[#This Row],[2025/26 Reduction]]+Dataset[[#This Row],[2025/26 From - Total]]","v":0},{"$f":"Dataset[[#This Row],[2026/27 Reduction]]+Dataset[[#This Row],[2026/27 From - Total]]","v":0},{"$f":"Dataset[[#This Row],[2027/28 Reduction]]+Dataset[[#This Row],[2027/28 From - Total]]","v":0},{"$f":"Dataset[[#This Row],[2024/25 Reduction]]","v":0},{"$f":"SUM(Dataset[[#This Row],[2025/26 Reduction]],Dataset[[#This Row],[2025/26 From - Total]],Dataset[[#This Row],[2025/26 To - Total]])","v":0},{"$f":"SUM(Dataset[[#This Row],[2026/27 Reduction]],Dataset[[#This Row],[2026/27 From - Total]],Dataset[[#This Row],[2026/27 To - Total]])","v":0},{"$f":"SUM(Dataset[[#This Row],[2027/28 Reduction]],Dataset[[#This Row],[2027/28 From - Total]],Dataset[[#This Row],[2027/28 To - Total]])","v":0},{"$f":"Dataset[[#This Row],[2024/25 Baseline]]+Dataset[[#This Row],[2024/25 Total change]]","v":0},{"$f":"Dataset[[#This Row],[2025/26 Baseline]]+Dataset[[#This Row],[2025/26 Total change]]","v":0},{"$f":"Dataset[[#This Row],[2026/27 Baseline]]+Dataset[[#This Row],[2026/27 Total change]]","v":0},{"$f":"Dataset[[#This Row],[2027/28 Baseline]]+Dataset[[#This Row],[2027/28 Total change]]","v":0}]
["NAT|Non-transfer item","40|Infrastructure and planning services","2025_26","MTEC2025",40,4,1,52131,859,"40","04","01","052131","000859","40|04|01|000859","01","01","02","12","12","01|01|02|12|12","National","Transport","Road Transport","Road Regulation","Non-transfer item","Current","Current payments","Goods and services","Infrastructure and planning services","Infrastructure and planning services","Economic development","Economic regulation and infrastructure","NAT",0,0,0,0,0,0,null,0,0,0,0,null,null,null,null,null,null,null,null,null,null,null,null,null,null,null,null,null,null,null,null,null,null,null,null,null,null,null,null,null,null,null,null,null,null,{"$f":"Dataset[[#This Row],[2025/26 From - Spending review Topic 1]]+Dataset[[#This Row],[2025/26 From - Spending review Topic 2]]+Dataset[[#This Row],[2025/26 From - Spending review Topic 3]]+Dataset[[#This Row],[2025/26 From - Spending review Topic 4]]+Dataset[[#This Row],[2025/26 From - Other reallocations]]","v":0},{"$f":"Dataset[[#This Row],[2026/27 From - Spending review Topic 1]]+Dataset[[#This Row],[2026/27 From - Spending review Topic 2]]+Dataset[[#This Row],[2026/27 From - Spending review Topic 3]]+Dataset[[#This Row],[2026/27 From - Spending review Topic 4]]+Dataset[[#This Row],[2026/27 From - Other reallocations]]","v":0},{"$f":"Dataset[[#This Row],[2027/28 From - Spending review Topic 1]]+Dataset[[#This Row],[2027/28 From - Spending review Topic 2]]+Dataset[[#This Row],[2027/28 From - Spending review Topic 3]]+Dataset[[#This Row],[2027/28 From - Spending review Topic 4]]+Dataset[[#This Row],[2027/28 From - Other reallocations]]","v":0},{"$f":"Dataset[[#This Row],[2025/26 To - Spending review Topic 1]]+Dataset[[#This Row],[2025/26 To - Spending review Topic 2]]+Dataset[[#This Row],[2025/26 To - Spending review Topic 3]]+Dataset[[#This Row],[2025/26 To - Spending review Topic 4]]+Dataset[[#This Row],[2025/26 To - Other reallocations]]","v":0},{"$f":"Dataset[[#This Row],[2026/27 To - Spending review Topic 1]]+Dataset[[#This Row],[2026/27 To - Spending review Topic 2]]+Dataset[[#This Row],[2026/27 To - Spending review Topic 3]]+Dataset[[#This Row],[2026/27 To - Spending review Topic 4]]+Dataset[[#This Row],[2026/27 To - Other reallocations]]","v":0},{"$f":"Dataset[[#This Row],[2027/28 To - Spending review Topic 1]]+Dataset[[#This Row],[2027/28 To - Spending review Topic 2]]+Dataset[[#This Row],[2027/28 To - Spending review Topic 3]]+Dataset[[#This Row],[2027/28 To - Spending review Topic 4]]+Dataset[[#This Row],[2027/28 To - Other reallocations]]","v":0},{"$f":"Dataset[[#This Row],[2025/26 Reduction]]+Dataset[[#This Row],[2025/26 From - Total]]","v":0},{"$f":"Dataset[[#This Row],[2026/27 Reduction]]+Dataset[[#This Row],[2026/27 From - Total]]","v":0},{"$f":"Dataset[[#This Row],[2027/28 Reduction]]+Dataset[[#This Row],[2027/28 From - Total]]","v":0},{"$f":"Dataset[[#This Row],[2024/25 Reduction]]","v":0},{"$f":"SUM(Dataset[[#This Row],[2025/26 Reduction]],Dataset[[#This Row],[2025/26 From - Total]],Dataset[[#This Row],[2025/26 To - Total]])","v":0},{"$f":"SUM(Dataset[[#This Row],[2026/27 Reduction]],Dataset[[#This Row],[2026/27 From - Total]],Dataset[[#This Row],[2026/27 To - Total]])","v":0},{"$f":"SUM(Dataset[[#This Row],[2027/28 Reduction]],Dataset[[#This Row],[2027/28 From - Total]],Dataset[[#This Row],[2027/28 To - Total]])","v":0},{"$f":"Dataset[[#This Row],[2024/25 Baseline]]+Dataset[[#This Row],[2024/25 Total change]]","v":0},{"$f":"Dataset[[#This Row],[2025/26 Baseline]]+Dataset[[#This Row],[2025/26 Total change]]","v":0},{"$f":"Dataset[[#This Row],[2026/27 Baseline]]+Dataset[[#This Row],[2026/27 Total change]]","v":0},{"$f":"Dataset[[#This Row],[2027/28 Baseline]]+Dataset[[#This Row],[2027/28 Total change]]","v":0}]
["NAT|Non-transfer item","40|Housing","2025_26","MTEC2025",40,4,1,52139,867,"40","04","01","052139","000867","40|04|01|000867","01","01","02","20","20","01|01|02|20|20","National","Transport","Road Transport","Road Regulation","Non-transfer item","Current","Current payments","Goods and services","Housing","Housing","Economic development","Economic regulation and infrastructure","NAT",0,0,0,0,0,0,null,0,0,0,0,null,null,null,null,null,null,null,null,null,null,null,null,null,null,null,null,null,null,null,null,null,null,null,null,null,null,null,null,null,null,null,null,null,null,{"$f":"Dataset[[#This Row],[2025/26 From - Spending review Topic 1]]+Dataset[[#This Row],[2025/26 From - Spending review Topic 2]]+Dataset[[#This Row],[2025/26 From - Spending review Topic 3]]+Dataset[[#This Row],[2025/26 From - Spending review Topic 4]]+Dataset[[#This Row],[2025/26 From - Other reallocations]]","v":0},{"$f":"Dataset[[#This Row],[2026/27 From - Spending review Topic 1]]+Dataset[[#This Row],[2026/27 From - Spending review Topic 2]]+Dataset[[#This Row],[2026/27 From - Spending review Topic 3]]+Dataset[[#This Row],[2026/27 From - Spending review Topic 4]]+Dataset[[#This Row],[2026/27 From - Other reallocations]]","v":0},{"$f":"Dataset[[#This Row],[2027/28 From - Spending review Topic 1]]+Dataset[[#This Row],[2027/28 From - Spending review Topic 2]]+Dataset[[#This Row],[2027/28 From - Spending review Topic 3]]+Dataset[[#This Row],[2027/28 From - Spending review Topic 4]]+Dataset[[#This Row],[2027/28 From - Other reallocations]]","v":0},{"$f":"Dataset[[#This Row],[2025/26 To - Spending review Topic 1]]+Dataset[[#This Row],[2025/26 To - Spending review Topic 2]]+Dataset[[#This Row],[2025/26 To - Spending review Topic 3]]+Dataset[[#This Row],[2025/26 To - Spending review Topic 4]]+Dataset[[#This Row],[2025/26 To - Other reallocations]]","v":0},{"$f":"Dataset[[#This Row],[2026/27 To - Spending review Topic 1]]+Dataset[[#This Row],[2026/27 To - Spending review Topic 2]]+Dataset[[#This Row],[2026/27 To - Spending review Topic 3]]+Dataset[[#This Row],[2026/27 To - Spending review Topic 4]]+Dataset[[#This Row],[2026/27 To - Other reallocations]]","v":0},{"$f":"Dataset[[#This Row],[2027/28 To - Spending review Topic 1]]+Dataset[[#This Row],[2027/28 To - Spending review Topic 2]]+Dataset[[#This Row],[2027/28 To - Spending review Topic 3]]+Dataset[[#This Row],[2027/28 To - Spending review Topic 4]]+Dataset[[#This Row],[2027/28 To - Other reallocations]]","v":0},{"$f":"Dataset[[#This Row],[2025/26 Reduction]]+Dataset[[#This Row],[2025/26 From - Total]]","v":0},{"$f":"Dataset[[#This Row],[2026/27 Reduction]]+Dataset[[#This Row],[2026/27 From - Total]]","v":0},{"$f":"Dataset[[#This Row],[2027/28 Reduction]]+Dataset[[#This Row],[2027/28 From - Total]]","v":0},{"$f":"Dataset[[#This Row],[2024/25 Reduction]]","v":0},{"$f":"SUM(Dataset[[#This Row],[2025/26 Reduction]],Dataset[[#This Row],[2025/26 From - Total]],Dataset[[#This Row],[2025/26 To - Total]])","v":0},{"$f":"SUM(Dataset[[#This Row],[2026/27 Reduction]],Dataset[[#This Row],[2026/27 From - Total]],Dataset[[#This Row],[2026/27 To - Total]])","v":0},{"$f":"SUM(Dataset[[#This Row],[2027/28 Reduction]],Dataset[[#This Row],[2027/28 From - Total]],Dataset[[#This Row],[2027/28 To - Total]])","v":0},{"$f":"Dataset[[#This Row],[2024/25 Baseline]]+Dataset[[#This Row],[2024/25 Total change]]","v":0},{"$f":"Dataset[[#This Row],[2025/26 Baseline]]+Dataset[[#This Row],[2025/26 Total change]]","v":0},{"$f":"Dataset[[#This Row],[2026/27 Baseline]]+Dataset[[#This Row],[2026/27 Total change]]","v":0},{"$f":"Dataset[[#This Row],[2027/28 Baseline]]+Dataset[[#This Row],[2027/28 Total change]]","v":0}]
["NAT|Non-transfer item","40|Inventory: Learner and teacher support material","2025_26","MTEC2025",40,4,1,52144,872,"40","04","01","052144","000872","40|04|01|000872","01","01","02","25","25","01|01|02|25|25","National","Transport","Road Transport","Road Regulation","Non-transfer item","Current","Current payments","Goods and services","Inventory: Learner and teacher support material","Inventory: Learner and teacher support material","Economic development","Economic regulation and infrastructure","NAT",0,0,0,0,0,0,null,0,0,0,0,null,null,null,null,null,null,null,null,null,null,null,null,null,null,null,null,null,null,null,null,null,null,null,null,null,null,null,null,null,null,null,null,null,null,{"$f":"Dataset[[#This Row],[2025/26 From - Spending review Topic 1]]+Dataset[[#This Row],[2025/26 From - Spending review Topic 2]]+Dataset[[#This Row],[2025/26 From - Spending review Topic 3]]+Dataset[[#This Row],[2025/26 From - Spending review Topic 4]]+Dataset[[#This Row],[2025/26 From - Other reallocations]]","v":0},{"$f":"Dataset[[#This Row],[2026/27 From - Spending review Topic 1]]+Dataset[[#This Row],[2026/27 From - Spending review Topic 2]]+Dataset[[#This Row],[2026/27 From - Spending review Topic 3]]+Dataset[[#This Row],[2026/27 From - Spending review Topic 4]]+Dataset[[#This Row],[2026/27 From - Other reallocations]]","v":0},{"$f":"Dataset[[#This Row],[2027/28 From - Spending review Topic 1]]+Dataset[[#This Row],[2027/28 From - Spending review Topic 2]]+Dataset[[#This Row],[2027/28 From - Spending review Topic 3]]+Dataset[[#This Row],[2027/28 From - Spending review Topic 4]]+Dataset[[#This Row],[2027/28 From - Other reallocations]]","v":0},{"$f":"Dataset[[#This Row],[2025/26 To - Spending review Topic 1]]+Dataset[[#This Row],[2025/26 To - Spending review Topic 2]]+Dataset[[#This Row],[2025/26 To - Spending review Topic 3]]+Dataset[[#This Row],[2025/26 To - Spending review Topic 4]]+Dataset[[#This Row],[2025/26 To - Other reallocations]]","v":0},{"$f":"Dataset[[#This Row],[2026/27 To - Spending review Topic 1]]+Dataset[[#This Row],[2026/27 To - Spending review Topic 2]]+Dataset[[#This Row],[2026/27 To - Spending review Topic 3]]+Dataset[[#This Row],[2026/27 To - Spending review Topic 4]]+Dataset[[#This Row],[2026/27 To - Other reallocations]]","v":0},{"$f":"Dataset[[#This Row],[2027/28 To - Spending review Topic 1]]+Dataset[[#This Row],[2027/28 To - Spending review Topic 2]]+Dataset[[#This Row],[2027/28 To - Spending review Topic 3]]+Dataset[[#This Row],[2027/28 To - Spending review Topic 4]]+Dataset[[#This Row],[2027/28 To - Other reallocations]]","v":0},{"$f":"Dataset[[#This Row],[2025/26 Reduction]]+Dataset[[#This Row],[2025/26 From - Total]]","v":0},{"$f":"Dataset[[#This Row],[2026/27 Reduction]]+Dataset[[#This Row],[2026/27 From - Total]]","v":0},{"$f":"Dataset[[#This Row],[2027/28 Reduction]]+Dataset[[#This Row],[2027/28 From - Total]]","v":0},{"$f":"Dataset[[#This Row],[2024/25 Reduction]]","v":0},{"$f":"SUM(Dataset[[#This Row],[2025/26 Reduction]],Dataset[[#This Row],[2025/26 From - Total]],Dataset[[#This Row],[2025/26 To - Total]])","v":0},{"$f":"SUM(Dataset[[#This Row],[2026/27 Reduction]],Dataset[[#This Row],[2026/27 From - Total]],Dataset[[#This Row],[2026/27 To - Total]])","v":0},{"$f":"SUM(Dataset[[#This Row],[2027/28 Reduction]],Dataset[[#This Row],[2027/28 From - Total]],Dataset[[#This Row],[2027/28 To - Total]])","v":0},{"$f":"Dataset[[#This Row],[2024/25 Baseline]]+Dataset[[#This Row],[2024/25 Total change]]","v":0},{"$f":"Dataset[[#This Row],[2025/26 Baseline]]+Dataset[[#This Row],[2025/26 Total change]]","v":0},{"$f":"Dataset[[#This Row],[2026/27 Baseline]]+Dataset[[#This Row],[2026/27 Total change]]","v":0},{"$f":"Dataset[[#This Row],[2027/28 Baseline]]+Dataset[[#This Row],[2027/28 Total change]]","v":0}]
["NAT|Non-transfer item","40|Operating leases","2025_26","MTEC2025",40,4,1,52152,880,"40","04","01","052152","000880","40|04|01|000880","01","01","02","33","33","01|01|02|33|33","National","Transport","Road Transport","Road Regulation","Non-transfer item","Current","Current payments","Goods and services","Operating leases","Operating leases","Economic development","Economic regulation and infrastructure","NAT",0,0,0,0,0,0,null,0,0,0,0,null,null,null,null,null,null,null,null,null,null,null,null,null,null,null,null,null,null,null,null,null,null,null,null,null,null,null,null,null,null,null,null,null,null,{"$f":"Dataset[[#This Row],[2025/26 From - Spending review Topic 1]]+Dataset[[#This Row],[2025/26 From - Spending review Topic 2]]+Dataset[[#This Row],[2025/26 From - Spending review Topic 3]]+Dataset[[#This Row],[2025/26 From - Spending review Topic 4]]+Dataset[[#This Row],[2025/26 From - Other reallocations]]","v":0},{"$f":"Dataset[[#This Row],[2026/27 From - Spending review Topic 1]]+Dataset[[#This Row],[2026/27 From - Spending review Topic 2]]+Dataset[[#This Row],[2026/27 From - Spending review Topic 3]]+Dataset[[#This Row],[2026/27 From - Spending review Topic 4]]+Dataset[[#This Row],[2026/27 From - Other reallocations]]","v":0},{"$f":"Dataset[[#This Row],[2027/28 From - Spending review Topic 1]]+Dataset[[#This Row],[2027/28 From - Spending review Topic 2]]+Dataset[[#This Row],[2027/28 From - Spending review Topic 3]]+Dataset[[#This Row],[2027/28 From - Spending review Topic 4]]+Dataset[[#This Row],[2027/28 From - Other reallocations]]","v":0},{"$f":"Dataset[[#This Row],[2025/26 To - Spending review Topic 1]]+Dataset[[#This Row],[2025/26 To - Spending review Topic 2]]+Dataset[[#This Row],[2025/26 To - Spending review Topic 3]]+Dataset[[#This Row],[2025/26 To - Spending review Topic 4]]+Dataset[[#This Row],[2025/26 To - Other reallocations]]","v":0},{"$f":"Dataset[[#This Row],[2026/27 To - Spending review Topic 1]]+Dataset[[#This Row],[2026/27 To - Spending review Topic 2]]+Dataset[[#This Row],[2026/27 To - Spending review Topic 3]]+Dataset[[#This Row],[2026/27 To - Spending review Topic 4]]+Dataset[[#This Row],[2026/27 To - Other reallocations]]","v":0},{"$f":"Dataset[[#This Row],[2027/28 To - Spending review Topic 1]]+Dataset[[#This Row],[2027/28 To - Spending review Topic 2]]+Dataset[[#This Row],[2027/28 To - Spending review Topic 3]]+Dataset[[#This Row],[2027/28 To - Spending review Topic 4]]+Dataset[[#This Row],[2027/28 To - Other reallocations]]","v":0},{"$f":"Dataset[[#This Row],[2025/26 Reduction]]+Dataset[[#This Row],[2025/26 From - Total]]","v":0},{"$f":"Dataset[[#This Row],[2026/27 Reduction]]+Dataset[[#This Row],[2026/27 From - Total]]","v":0},{"$f":"Dataset[[#This Row],[2027/28 Reduction]]+Dataset[[#This Row],[2027/28 From - Total]]","v":0},{"$f":"Dataset[[#This Row],[2024/25 Reduction]]","v":0},{"$f":"SUM(Dataset[[#This Row],[2025/26 Reduction]],Dataset[[#This Row],[2025/26 From - Total]],Dataset[[#This Row],[2025/26 To - Total]])","v":0},{"$f":"SUM(Dataset[[#This Row],[2026/27 Reduction]],Dataset[[#This Row],[2026/27 From - Total]],Dataset[[#This Row],[2026/27 To - Total]])","v":0},{"$f":"SUM(Dataset[[#This Row],[2027/28 Reduction]],Dataset[[#This Row],[2027/28 From - Total]],Dataset[[#This Row],[2027/28 To - Total]])","v":0},{"$f":"Dataset[[#This Row],[2024/25 Baseline]]+Dataset[[#This Row],[2024/25 Total change]]","v":0},{"$f":"Dataset[[#This Row],[2025/26 Baseline]]+Dataset[[#This Row],[2025/26 Total change]]","v":0},{"$f":"Dataset[[#This Row],[2026/27 Baseline]]+Dataset[[#This Row],[2026/27 Total change]]","v":0},{"$f":"Dataset[[#This Row],[2027/28 Baseline]]+Dataset[[#This Row],[2027/28 Total change]]","v":0}]
["NAT|Non-transfer item","40|Interest (Incl. interest on unitary payments (PPP))","2025_26","MTEC2025",40,4,1,52160,888,"40","04","01","052160","000888","40|04|01|000888","01","01","03","41","41","01|01|03|41|41","National","Transport","Road Transport","Road Regulation","Non-transfer item","Current","Current payments","Interest and rent on land","Interest (Incl. interest on unitary payments (PPP))","Interest (Incl. interest on unitary payments (PPP))","Economic development","Economic regulation and infrastructure","NAT",0,0,0,0,0,0,null,0,0,0,0,null,null,null,null,null,null,null,null,null,null,null,null,null,null,null,null,null,null,null,null,null,null,null,null,null,null,null,null,null,null,null,null,null,null,{"$f":"Dataset[[#This Row],[2025/26 From - Spending review Topic 1]]+Dataset[[#This Row],[2025/26 From - Spending review Topic 2]]+Dataset[[#This Row],[2025/26 From - Spending review Topic 3]]+Dataset[[#This Row],[2025/26 From - Spending review Topic 4]]+Dataset[[#This Row],[2025/26 From - Other reallocations]]","v":0},{"$f":"Dataset[[#This Row],[2026/27 From - Spending review Topic 1]]+Dataset[[#This Row],[2026/27 From - Spending review Topic 2]]+Dataset[[#This Row],[2026/27 From - Spending review Topic 3]]+Dataset[[#This Row],[2026/27 From - Spending review Topic 4]]+Dataset[[#This Row],[2026/27 From - Other reallocations]]","v":0},{"$f":"Dataset[[#This Row],[2027/28 From - Spending review Topic 1]]+Dataset[[#This Row],[2027/28 From - Spending review Topic 2]]+Dataset[[#This Row],[2027/28 From - Spending review Topic 3]]+Dataset[[#This Row],[2027/28 From - Spending review Topic 4]]+Dataset[[#This Row],[2027/28 From - Other reallocations]]","v":0},{"$f":"Dataset[[#This Row],[2025/26 To - Spending review Topic 1]]+Dataset[[#This Row],[2025/26 To - Spending review Topic 2]]+Dataset[[#This Row],[2025/26 To - Spending review Topic 3]]+Dataset[[#This Row],[2025/26 To - Spending review Topic 4]]+Dataset[[#This Row],[2025/26 To - Other reallocations]]","v":0},{"$f":"Dataset[[#This Row],[2026/27 To - Spending review Topic 1]]+Dataset[[#This Row],[2026/27 To - Spending review Topic 2]]+Dataset[[#This Row],[2026/27 To - Spending review Topic 3]]+Dataset[[#This Row],[2026/27 To - Spending review Topic 4]]+Dataset[[#This Row],[2026/27 To - Other reallocations]]","v":0},{"$f":"Dataset[[#This Row],[2027/28 To - Spending review Topic 1]]+Dataset[[#This Row],[2027/28 To - Spending review Topic 2]]+Dataset[[#This Row],[2027/28 To - Spending review Topic 3]]+Dataset[[#This Row],[2027/28 To - Spending review Topic 4]]+Dataset[[#This Row],[2027/28 To - Other reallocations]]","v":0},{"$f":"Dataset[[#This Row],[2025/26 Reduction]]+Dataset[[#This Row],[2025/26 From - Total]]","v":0},{"$f":"Dataset[[#This Row],[2026/27 Reduction]]+Dataset[[#This Row],[2026/27 From - Total]]","v":0},{"$f":"Dataset[[#This Row],[2027/28 Reduction]]+Dataset[[#This Row],[2027/28 From - Total]]","v":0},{"$f":"Dataset[[#This Row],[2024/25 Reduction]]","v":0},{"$f":"SUM(Dataset[[#This Row],[2025/26 Reduction]],Dataset[[#This Row],[2025/26 From - Total]],Dataset[[#This Row],[2025/26 To - Total]])","v":0},{"$f":"SUM(Dataset[[#This Row],[2026/27 Reduction]],Dataset[[#This Row],[2026/27 From - Total]],Dataset[[#This Row],[2026/27 To - Total]])","v":0},{"$f":"SUM(Dataset[[#This Row],[2027/28 Reduction]],Dataset[[#This Row],[2027/28 From - Total]],Dataset[[#This Row],[2027/28 To - Total]])","v":0},{"$f":"Dataset[[#This Row],[2024/25 Baseline]]+Dataset[[#This Row],[2024/25 Total change]]","v":0},{"$f":"Dataset[[#This Row],[2025/26 Baseline]]+Dataset[[#This Row],[2025/26 Total change]]","v":0},{"$f":"Dataset[[#This Row],[2026/27 Baseline]]+Dataset[[#This Row],[2026/27 Total change]]","v":0},{"$f":"Dataset[[#This Row],[2027/28 Baseline]]+Dataset[[#This Row],[2027/28 Total change]]","v":0}]
["NAT|Non-transfer item","40|Transport equipment","2025_26","MTEC2025",40,4,1,52165,893,"40","04","01","052165","000893","40|04|01|000893","02","03","12","56","60","02|03|12|56|60","National","Transport","Road Transport","Road Regulation","Non-transfer item","Capital","Payments for capital assets","Machinery and equipment","Transport equipment","Transport equipment","Economic development","Economic regulation and infrastructure","NAT",0,0,0,0,0,0,null,0,0,0,0,null,null,null,null,null,null,null,null,null,null,null,null,null,null,null,null,null,null,null,null,null,null,null,null,null,null,null,null,null,null,null,null,null,null,{"$f":"Dataset[[#This Row],[2025/26 From - Spending review Topic 1]]+Dataset[[#This Row],[2025/26 From - Spending review Topic 2]]+Dataset[[#This Row],[2025/26 From - Spending review Topic 3]]+Dataset[[#This Row],[2025/26 From - Spending review Topic 4]]+Dataset[[#This Row],[2025/26 From - Other reallocations]]","v":0},{"$f":"Dataset[[#This Row],[2026/27 From - Spending review Topic 1]]+Dataset[[#This Row],[2026/27 From - Spending review Topic 2]]+Dataset[[#This Row],[2026/27 From - Spending review Topic 3]]+Dataset[[#This Row],[2026/27 From - Spending review Topic 4]]+Dataset[[#This Row],[2026/27 From - Other reallocations]]","v":0},{"$f":"Dataset[[#This Row],[2027/28 From - Spending review Topic 1]]+Dataset[[#This Row],[2027/28 From - Spending review Topic 2]]+Dataset[[#This Row],[2027/28 From - Spending review Topic 3]]+Dataset[[#This Row],[2027/28 From - Spending review Topic 4]]+Dataset[[#This Row],[2027/28 From - Other reallocations]]","v":0},{"$f":"Dataset[[#This Row],[2025/26 To - Spending review Topic 1]]+Dataset[[#This Row],[2025/26 To - Spending review Topic 2]]+Dataset[[#This Row],[2025/26 To - Spending review Topic 3]]+Dataset[[#This Row],[2025/26 To - Spending review Topic 4]]+Dataset[[#This Row],[2025/26 To - Other reallocations]]","v":0},{"$f":"Dataset[[#This Row],[2026/27 To - Spending review Topic 1]]+Dataset[[#This Row],[2026/27 To - Spending review Topic 2]]+Dataset[[#This Row],[2026/27 To - Spending review Topic 3]]+Dataset[[#This Row],[2026/27 To - Spending review Topic 4]]+Dataset[[#This Row],[2026/27 To - Other reallocations]]","v":0},{"$f":"Dataset[[#This Row],[2027/28 To - Spending review Topic 1]]+Dataset[[#This Row],[2027/28 To - Spending review Topic 2]]+Dataset[[#This Row],[2027/28 To - Spending review Topic 3]]+Dataset[[#This Row],[2027/28 To - Spending review Topic 4]]+Dataset[[#This Row],[2027/28 To - Other reallocations]]","v":0},{"$f":"Dataset[[#This Row],[2025/26 Reduction]]+Dataset[[#This Row],[2025/26 From - Total]]","v":0},{"$f":"Dataset[[#This Row],[2026/27 Reduction]]+Dataset[[#This Row],[2026/27 From - Total]]","v":0},{"$f":"Dataset[[#This Row],[2027/28 Reduction]]+Dataset[[#This Row],[2027/28 From - Total]]","v":0},{"$f":"Dataset[[#This Row],[2024/25 Reduction]]","v":0},{"$f":"SUM(Dataset[[#This Row],[2025/26 Reduction]],Dataset[[#This Row],[2025/26 From - Total]],Dataset[[#This Row],[2025/26 To - Total]])","v":0},{"$f":"SUM(Dataset[[#This Row],[2026/27 Reduction]],Dataset[[#This Row],[2026/27 From - Total]],Dataset[[#This Row],[2026/27 To - Total]])","v":0},{"$f":"SUM(Dataset[[#This Row],[2027/28 Reduction]],Dataset[[#This Row],[2027/28 From - Total]],Dataset[[#This Row],[2027/28 To - Total]])","v":0},{"$f":"Dataset[[#This Row],[2024/25 Baseline]]+Dataset[[#This Row],[2024/25 Total change]]","v":0},{"$f":"Dataset[[#This Row],[2025/26 Baseline]]+Dataset[[#This Row],[2025/26 Total change]]","v":0},{"$f":"Dataset[[#This Row],[2026/27 Baseline]]+Dataset[[#This Row],[2026/27 Total change]]","v":0},{"$f":"Dataset[[#This Row],[2027/28 Baseline]]+Dataset[[#This Row],[2027/28 Total change]]","v":0}]
["NAT|Non-transfer item","40|Salaries and wages","2025_26","MTEC2025",40,4,2,52173,901,"40","04","02","052173","000901","40|04|02|000901","01","01","01","01","01","01|01|01|01|01","National","Transport","Road Transport","Road Infrastructure and Industry Development","Non-transfer item","Current","Current payments","Compensation of employees","Salaries and wages","Salaries and wages","Economic development","Economic regulation and infrastructure","NAT",11563,13317,14517,17502,17502,17502,15476,18012,18819,19681,20571,null,null,null,null,null,null,null,null,null,null,null,null,null,null,null,null,null,null,null,null,null,null,null,null,null,null,null,null,null,null,null,null,null,null,{"$f":"Dataset[[#This Row],[2025/26 From - Spending review Topic 1]]+Dataset[[#This Row],[2025/26 From - Spending review Topic 2]]+Dataset[[#This Row],[2025/26 From - Spending review Topic 3]]+Dataset[[#This Row],[2025/26 From - Spending review Topic 4]]+Dataset[[#This Row],[2025/26 From - Other reallocations]]","v":0},{"$f":"Dataset[[#This Row],[2026/27 From - Spending review Topic 1]]+Dataset[[#This Row],[2026/27 From - Spending review Topic 2]]+Dataset[[#This Row],[2026/27 From - Spending review Topic 3]]+Dataset[[#This Row],[2026/27 From - Spending review Topic 4]]+Dataset[[#This Row],[2026/27 From - Other reallocations]]","v":0},{"$f":"Dataset[[#This Row],[2027/28 From - Spending review Topic 1]]+Dataset[[#This Row],[2027/28 From - Spending review Topic 2]]+Dataset[[#This Row],[2027/28 From - Spending review Topic 3]]+Dataset[[#This Row],[2027/28 From - Spending review Topic 4]]+Dataset[[#This Row],[2027/28 From - Other reallocations]]","v":0},{"$f":"Dataset[[#This Row],[2025/26 To - Spending review Topic 1]]+Dataset[[#This Row],[2025/26 To - Spending review Topic 2]]+Dataset[[#This Row],[2025/26 To - Spending review Topic 3]]+Dataset[[#This Row],[2025/26 To - Spending review Topic 4]]+Dataset[[#This Row],[2025/26 To - Other reallocations]]","v":0},{"$f":"Dataset[[#This Row],[2026/27 To - Spending review Topic 1]]+Dataset[[#This Row],[2026/27 To - Spending review Topic 2]]+Dataset[[#This Row],[2026/27 To - Spending review Topic 3]]+Dataset[[#This Row],[2026/27 To - Spending review Topic 4]]+Dataset[[#This Row],[2026/27 To - Other reallocations]]","v":0},{"$f":"Dataset[[#This Row],[2027/28 To - Spending review Topic 1]]+Dataset[[#This Row],[2027/28 To - Spending review Topic 2]]+Dataset[[#This Row],[2027/28 To - Spending review Topic 3]]+Dataset[[#This Row],[2027/28 To - Spending review Topic 4]]+Dataset[[#This Row],[2027/28 To - Other reallocations]]","v":0},{"$f":"Dataset[[#This Row],[2025/26 Reduction]]+Dataset[[#This Row],[2025/26 From - Total]]","v":0},{"$f":"Dataset[[#This Row],[2026/27 Reduction]]+Dataset[[#This Row],[2026/27 From - Total]]","v":0},{"$f":"Dataset[[#This Row],[2027/28 Reduction]]+Dataset[[#This Row],[2027/28 From - Total]]","v":0},{"$f":"Dataset[[#This Row],[2024/25 Reduction]]","v":0},{"$f":"SUM(Dataset[[#This Row],[2025/26 Reduction]],Dataset[[#This Row],[2025/26 From - Total]],Dataset[[#This Row],[2025/26 To - Total]])","v":0},{"$f":"SUM(Dataset[[#This Row],[2026/27 Reduction]],Dataset[[#This Row],[2026/27 From - Total]],Dataset[[#This Row],[2026/27 To - Total]])","v":0},{"$f":"SUM(Dataset[[#This Row],[2027/28 Reduction]],Dataset[[#This Row],[2027/28 From - Total]],Dataset[[#This Row],[2027/28 To - Total]])","v":0},{"$f":"Dataset[[#This Row],[2024/25 Baseline]]+Dataset[[#This Row],[2024/25 Total change]]","v":18012},{"$f":"Dataset[[#This Row],[2025/26 Baseline]]+Dataset[[#This Row],[2025/26 Total change]]","v":18819},{"$f":"Dataset[[#This Row],[2026/27 Baseline]]+Dataset[[#This Row],[2026/27 Total change]]","v":19681},{"$f":"Dataset[[#This Row],[2027/28 Baseline]]+Dataset[[#This Row],[2027/28 Total change]]","v":20571}]
["NAT|Non-transfer item","40|Audit costs: External","2025_26","MTEC2025",40,4,2,52178,906,"40","04","02","052178","000906","40|04|02|000906","01","01","02","06","06","01|01|02|06|06","National","Transport","Road Transport","Road Infrastructure and Industry Development","Non-transfer item","Current","Current payments","Goods and services","Audit costs: External","Audit costs: External","Economic development","Economic regulation and infrastructure","NAT",0,0,0,0,0,0,null,0,0,0,0,null,null,null,null,null,null,null,null,null,null,null,null,null,null,null,null,null,null,null,null,null,null,null,null,null,null,null,null,null,null,null,null,null,null,{"$f":"Dataset[[#This Row],[2025/26 From - Spending review Topic 1]]+Dataset[[#This Row],[2025/26 From - Spending review Topic 2]]+Dataset[[#This Row],[2025/26 From - Spending review Topic 3]]+Dataset[[#This Row],[2025/26 From - Spending review Topic 4]]+Dataset[[#This Row],[2025/26 From - Other reallocations]]","v":0},{"$f":"Dataset[[#This Row],[2026/27 From - Spending review Topic 1]]+Dataset[[#This Row],[2026/27 From - Spending review Topic 2]]+Dataset[[#This Row],[2026/27 From - Spending review Topic 3]]+Dataset[[#This Row],[2026/27 From - Spending review Topic 4]]+Dataset[[#This Row],[2026/27 From - Other reallocations]]","v":0},{"$f":"Dataset[[#This Row],[2027/28 From - Spending review Topic 1]]+Dataset[[#This Row],[2027/28 From - Spending review Topic 2]]+Dataset[[#This Row],[2027/28 From - Spending review Topic 3]]+Dataset[[#This Row],[2027/28 From - Spending review Topic 4]]+Dataset[[#This Row],[2027/28 From - Other reallocations]]","v":0},{"$f":"Dataset[[#This Row],[2025/26 To - Spending review Topic 1]]+Dataset[[#This Row],[2025/26 To - Spending review Topic 2]]+Dataset[[#This Row],[2025/26 To - Spending review Topic 3]]+Dataset[[#This Row],[2025/26 To - Spending review Topic 4]]+Dataset[[#This Row],[2025/26 To - Other reallocations]]","v":0},{"$f":"Dataset[[#This Row],[2026/27 To - Spending review Topic 1]]+Dataset[[#This Row],[2026/27 To - Spending review Topic 2]]+Dataset[[#This Row],[2026/27 To - Spending review Topic 3]]+Dataset[[#This Row],[2026/27 To - Spending review Topic 4]]+Dataset[[#This Row],[2026/27 To - Other reallocations]]","v":0},{"$f":"Dataset[[#This Row],[2027/28 To - Spending review Topic 1]]+Dataset[[#This Row],[2027/28 To - Spending review Topic 2]]+Dataset[[#This Row],[2027/28 To - Spending review Topic 3]]+Dataset[[#This Row],[2027/28 To - Spending review Topic 4]]+Dataset[[#This Row],[2027/28 To - Other reallocations]]","v":0},{"$f":"Dataset[[#This Row],[2025/26 Reduction]]+Dataset[[#This Row],[2025/26 From - Total]]","v":0},{"$f":"Dataset[[#This Row],[2026/27 Reduction]]+Dataset[[#This Row],[2026/27 From - Total]]","v":0},{"$f":"Dataset[[#This Row],[2027/28 Reduction]]+Dataset[[#This Row],[2027/28 From - Total]]","v":0},{"$f":"Dataset[[#This Row],[2024/25 Reduction]]","v":0},{"$f":"SUM(Dataset[[#This Row],[2025/26 Reduction]],Dataset[[#This Row],[2025/26 From - Total]],Dataset[[#This Row],[2025/26 To - Total]])","v":0},{"$f":"SUM(Dataset[[#This Row],[2026/27 Reduction]],Dataset[[#This Row],[2026/27 From - Total]],Dataset[[#This Row],[2026/27 To - Total]])","v":0},{"$f":"SUM(Dataset[[#This Row],[2027/28 Reduction]],Dataset[[#This Row],[2027/28 From - Total]],Dataset[[#This Row],[2027/28 To - Total]])","v":0},{"$f":"Dataset[[#This Row],[2024/25 Baseline]]+Dataset[[#This Row],[2024/25 Total change]]","v":0},{"$f":"Dataset[[#This Row],[2025/26 Baseline]]+Dataset[[#This Row],[2025/26 Total change]]","v":0},{"$f":"Dataset[[#This Row],[2026/27 Baseline]]+Dataset[[#This Row],[2026/27 Total change]]","v":0},{"$f":"Dataset[[#This Row],[2027/28 Baseline]]+Dataset[[#This Row],[2027/28 Total change]]","v":0}]
["NAT|Non-transfer item","40|Legal services (G&S)","2025_26","MTEC2025",40,4,2,52186,914,"40","04","02","052186","000914","40|04|02|000914","01","01","02","14","14","01|01|02|14|14","National","Transport","Road Transport","Road Infrastructure and Industry Development","Non-transfer item","Current","Current payments","Goods and services","Legal services (G&S)","Legal services (G&S)","Economic development","Economic regulation and infrastructure","NAT",0,0,0,0,0,0,null,0,0,0,0,null,null,null,null,null,null,null,null,null,null,null,null,null,null,null,null,null,null,null,null,null,null,null,null,null,null,null,null,null,null,null,null,null,null,{"$f":"Dataset[[#This Row],[2025/26 From - Spending review Topic 1]]+Dataset[[#This Row],[2025/26 From - Spending review Topic 2]]+Dataset[[#This Row],[2025/26 From - Spending review Topic 3]]+Dataset[[#This Row],[2025/26 From - Spending review Topic 4]]+Dataset[[#This Row],[2025/26 From - Other reallocations]]","v":0},{"$f":"Dataset[[#This Row],[2026/27 From - Spending review Topic 1]]+Dataset[[#This Row],[2026/27 From - Spending review Topic 2]]+Dataset[[#This Row],[2026/27 From - Spending review Topic 3]]+Dataset[[#This Row],[2026/27 From - Spending review Topic 4]]+Dataset[[#This Row],[2026/27 From - Other reallocations]]","v":0},{"$f":"Dataset[[#This Row],[2027/28 From - Spending review Topic 1]]+Dataset[[#This Row],[2027/28 From - Spending review Topic 2]]+Dataset[[#This Row],[2027/28 From - Spending review Topic 3]]+Dataset[[#This Row],[2027/28 From - Spending review Topic 4]]+Dataset[[#This Row],[2027/28 From - Other reallocations]]","v":0},{"$f":"Dataset[[#This Row],[2025/26 To - Spending review Topic 1]]+Dataset[[#This Row],[2025/26 To - Spending review Topic 2]]+Dataset[[#This Row],[2025/26 To - Spending review Topic 3]]+Dataset[[#This Row],[2025/26 To - Spending review Topic 4]]+Dataset[[#This Row],[2025/26 To - Other reallocations]]","v":0},{"$f":"Dataset[[#This Row],[2026/27 To - Spending review Topic 1]]+Dataset[[#This Row],[2026/27 To - Spending review Topic 2]]+Dataset[[#This Row],[2026/27 To - Spending review Topic 3]]+Dataset[[#This Row],[2026/27 To - Spending review Topic 4]]+Dataset[[#This Row],[2026/27 To - Other reallocations]]","v":0},{"$f":"Dataset[[#This Row],[2027/28 To - Spending review Topic 1]]+Dataset[[#This Row],[2027/28 To - Spending review Topic 2]]+Dataset[[#This Row],[2027/28 To - Spending review Topic 3]]+Dataset[[#This Row],[2027/28 To - Spending review Topic 4]]+Dataset[[#This Row],[2027/28 To - Other reallocations]]","v":0},{"$f":"Dataset[[#This Row],[2025/26 Reduction]]+Dataset[[#This Row],[2025/26 From - Total]]","v":0},{"$f":"Dataset[[#This Row],[2026/27 Reduction]]+Dataset[[#This Row],[2026/27 From - Total]]","v":0},{"$f":"Dataset[[#This Row],[2027/28 Reduction]]+Dataset[[#This Row],[2027/28 From - Total]]","v":0},{"$f":"Dataset[[#This Row],[2024/25 Reduction]]","v":0},{"$f":"SUM(Dataset[[#This Row],[2025/26 Reduction]],Dataset[[#This Row],[2025/26 From - Total]],Dataset[[#This Row],[2025/26 To - Total]])","v":0},{"$f":"SUM(Dataset[[#This Row],[2026/27 Reduction]],Dataset[[#This Row],[2026/27 From - Total]],Dataset[[#This Row],[2026/27 To - Total]])","v":0},{"$f":"SUM(Dataset[[#This Row],[2027/28 Reduction]],Dataset[[#This Row],[2027/28 From - Total]],Dataset[[#This Row],[2027/28 To - Total]])","v":0},{"$f":"Dataset[[#This Row],[2024/25 Baseline]]+Dataset[[#This Row],[2024/25 Total change]]","v":0},{"$f":"Dataset[[#This Row],[2025/26 Baseline]]+Dataset[[#This Row],[2025/26 Total change]]","v":0},{"$f":"Dataset[[#This Row],[2026/27 Baseline]]+Dataset[[#This Row],[2026/27 Total change]]","v":0},{"$f":"Dataset[[#This Row],[2027/28 Baseline]]+Dataset[[#This Row],[2027/28 Total change]]","v":0}]
["NAT|Non-transfer item","40|Inventory: Farming supplies","2025_26","MTEC2025",40,4,2,52194,922,"40","04","02","052194","000922","40|04|02|000922","01","01","02","22","22","01|01|02|22|22","National","Transport","Road Transport","Road Infrastructure and Industry Development","Non-transfer item","Current","Current payments","Goods and services","Inventory: Farming supplies","Inventory: Farming supplies","Economic development","Economic regulation and infrastructure","NAT",0,0,0,0,0,0,null,0,0,0,0,null,null,null,null,null,null,null,null,null,null,null,null,null,null,null,null,null,null,null,null,null,null,null,null,null,null,null,null,null,null,null,null,null,null,{"$f":"Dataset[[#This Row],[2025/26 From - Spending review Topic 1]]+Dataset[[#This Row],[2025/26 From - Spending review Topic 2]]+Dataset[[#This Row],[2025/26 From - Spending review Topic 3]]+Dataset[[#This Row],[2025/26 From - Spending review Topic 4]]+Dataset[[#This Row],[2025/26 From - Other reallocations]]","v":0},{"$f":"Dataset[[#This Row],[2026/27 From - Spending review Topic 1]]+Dataset[[#This Row],[2026/27 From - Spending review Topic 2]]+Dataset[[#This Row],[2026/27 From - Spending review Topic 3]]+Dataset[[#This Row],[2026/27 From - Spending review Topic 4]]+Dataset[[#This Row],[2026/27 From - Other reallocations]]","v":0},{"$f":"Dataset[[#This Row],[2027/28 From - Spending review Topic 1]]+Dataset[[#This Row],[2027/28 From - Spending review Topic 2]]+Dataset[[#This Row],[2027/28 From - Spending review Topic 3]]+Dataset[[#This Row],[2027/28 From - Spending review Topic 4]]+Dataset[[#This Row],[2027/28 From - Other reallocations]]","v":0},{"$f":"Dataset[[#This Row],[2025/26 To - Spending review Topic 1]]+Dataset[[#This Row],[2025/26 To - Spending review Topic 2]]+Dataset[[#This Row],[2025/26 To - Spending review Topic 3]]+Dataset[[#This Row],[2025/26 To - Spending review Topic 4]]+Dataset[[#This Row],[2025/26 To - Other reallocations]]","v":0},{"$f":"Dataset[[#This Row],[2026/27 To - Spending review Topic 1]]+Dataset[[#This Row],[2026/27 To - Spending review Topic 2]]+Dataset[[#This Row],[2026/27 To - Spending review Topic 3]]+Dataset[[#This Row],[2026/27 To - Spending review Topic 4]]+Dataset[[#This Row],[2026/27 To - Other reallocations]]","v":0},{"$f":"Dataset[[#This Row],[2027/28 To - Spending review Topic 1]]+Dataset[[#This Row],[2027/28 To - Spending review Topic 2]]+Dataset[[#This Row],[2027/28 To - Spending review Topic 3]]+Dataset[[#This Row],[2027/28 To - Spending review Topic 4]]+Dataset[[#This Row],[2027/28 To - Other reallocations]]","v":0},{"$f":"Dataset[[#This Row],[2025/26 Reduction]]+Dataset[[#This Row],[2025/26 From - Total]]","v":0},{"$f":"Dataset[[#This Row],[2026/27 Reduction]]+Dataset[[#This Row],[2026/27 From - Total]]","v":0},{"$f":"Dataset[[#This Row],[2027/28 Reduction]]+Dataset[[#This Row],[2027/28 From - Total]]","v":0},{"$f":"Dataset[[#This Row],[2024/25 Reduction]]","v":0},{"$f":"SUM(Dataset[[#This Row],[2025/26 Reduction]],Dataset[[#This Row],[2025/26 From - Total]],Dataset[[#This Row],[2025/26 To - Total]])","v":0},{"$f":"SUM(Dataset[[#This Row],[2026/27 Reduction]],Dataset[[#This Row],[2026/27 From - Total]],Dataset[[#This Row],[2026/27 To - Total]])","v":0},{"$f":"SUM(Dataset[[#This Row],[2027/28 Reduction]],Dataset[[#This Row],[2027/28 From - Total]],Dataset[[#This Row],[2027/28 To - Total]])","v":0},{"$f":"Dataset[[#This Row],[2024/25 Baseline]]+Dataset[[#This Row],[2024/25 Total change]]","v":0},{"$f":"Dataset[[#This Row],[2025/26 Baseline]]+Dataset[[#This Row],[2025/26 Total change]]","v":0},{"$f":"Dataset[[#This Row],[2026/27 Baseline]]+Dataset[[#This Row],[2026/27 Total change]]","v":0},{"$f":"Dataset[[#This Row],[2027/28 Baseline]]+Dataset[[#This Row],[2027/28 Total change]]","v":0}]
["NAT|Non-transfer item","40|Inventory: Medical supplies","2025_26","MTEC2025",40,4,2,52199,927,"40","04","02","052199","000927","40|04|02|000927","01","01","02","27","27","01|01|02|27|27","National","Transport","Road Transport","Road Infrastructure and Industry Development","Non-transfer item","Current","Current payments","Goods and services","Inventory: Medical supplies","Inventory: Medical supplies","Economic development","Economic regulation and infrastructure","NAT",0,0,0,0,0,0,null,0,0,0,0,null,null,null,null,null,null,null,null,null,null,null,null,null,null,null,null,null,null,null,null,null,null,null,null,null,null,null,null,null,null,null,null,null,null,{"$f":"Dataset[[#This Row],[2025/26 From - Spending review Topic 1]]+Dataset[[#This Row],[2025/26 From - Spending review Topic 2]]+Dataset[[#This Row],[2025/26 From - Spending review Topic 3]]+Dataset[[#This Row],[2025/26 From - Spending review Topic 4]]+Dataset[[#This Row],[2025/26 From - Other reallocations]]","v":0},{"$f":"Dataset[[#This Row],[2026/27 From - Spending review Topic 1]]+Dataset[[#This Row],[2026/27 From - Spending review Topic 2]]+Dataset[[#This Row],[2026/27 From - Spending review Topic 3]]+Dataset[[#This Row],[2026/27 From - Spending review Topic 4]]+Dataset[[#This Row],[2026/27 From - Other reallocations]]","v":0},{"$f":"Dataset[[#This Row],[2027/28 From - Spending review Topic 1]]+Dataset[[#This Row],[2027/28 From - Spending review Topic 2]]+Dataset[[#This Row],[2027/28 From - Spending review Topic 3]]+Dataset[[#This Row],[2027/28 From - Spending review Topic 4]]+Dataset[[#This Row],[2027/28 From - Other reallocations]]","v":0},{"$f":"Dataset[[#This Row],[2025/26 To - Spending review Topic 1]]+Dataset[[#This Row],[2025/26 To - Spending review Topic 2]]+Dataset[[#This Row],[2025/26 To - Spending review Topic 3]]+Dataset[[#This Row],[2025/26 To - Spending review Topic 4]]+Dataset[[#This Row],[2025/26 To - Other reallocations]]","v":0},{"$f":"Dataset[[#This Row],[2026/27 To - Spending review Topic 1]]+Dataset[[#This Row],[2026/27 To - Spending review Topic 2]]+Dataset[[#This Row],[2026/27 To - Spending review Topic 3]]+Dataset[[#This Row],[2026/27 To - Spending review Topic 4]]+Dataset[[#This Row],[2026/27 To - Other reallocations]]","v":0},{"$f":"Dataset[[#This Row],[2027/28 To - Spending review Topic 1]]+Dataset[[#This Row],[2027/28 To - Spending review Topic 2]]+Dataset[[#This Row],[2027/28 To - Spending review Topic 3]]+Dataset[[#This Row],[2027/28 To - Spending review Topic 4]]+Dataset[[#This Row],[2027/28 To - Other reallocations]]","v":0},{"$f":"Dataset[[#This Row],[2025/26 Reduction]]+Dataset[[#This Row],[2025/26 From - Total]]","v":0},{"$f":"Dataset[[#This Row],[2026/27 Reduction]]+Dataset[[#This Row],[2026/27 From - Total]]","v":0},{"$f":"Dataset[[#This Row],[2027/28 Reduction]]+Dataset[[#This Row],[2027/28 From - Total]]","v":0},{"$f":"Dataset[[#This Row],[2024/25 Reduction]]","v":0},{"$f":"SUM(Dataset[[#This Row],[2025/26 Reduction]],Dataset[[#This Row],[2025/26 From - Total]],Dataset[[#This Row],[2025/26 To - Total]])","v":0},{"$f":"SUM(Dataset[[#This Row],[2026/27 Reduction]],Dataset[[#This Row],[2026/27 From - Total]],Dataset[[#This Row],[2026/27 To - Total]])","v":0},{"$f":"SUM(Dataset[[#This Row],[2027/28 Reduction]],Dataset[[#This Row],[2027/28 From - Total]],Dataset[[#This Row],[2027/28 To - Total]])","v":0},{"$f":"Dataset[[#This Row],[2024/25 Baseline]]+Dataset[[#This Row],[2024/25 Total change]]","v":0},{"$f":"Dataset[[#This Row],[2025/26 Baseline]]+Dataset[[#This Row],[2025/26 Total change]]","v":0},{"$f":"Dataset[[#This Row],[2026/27 Baseline]]+Dataset[[#This Row],[2026/27 Total change]]","v":0},{"$f":"Dataset[[#This Row],[2027/28 Baseline]]+Dataset[[#This Row],[2027/28 Total change]]","v":0}]
["NAT|Non-transfer item","40|Property payments","2025_26","MTEC2025",40,4,2,52207,935,"40","04","02","052207","000935","40|04|02|000935","01","01","02","35","35","01|01|02|35|35","National","Transport","Road Transport","Road Infrastructure and Industry Development","Non-transfer item","Current","Current payments","Goods and services","Property payments","Property payments","Economic development","Economic regulation and infrastructure","NAT",0,0,0,0,0,0,null,0,0,0,0,null,null,null,null,null,null,null,null,null,null,null,null,null,null,null,null,null,null,null,null,null,null,null,null,null,null,null,null,null,null,null,null,null,null,{"$f":"Dataset[[#This Row],[2025/26 From - Spending review Topic 1]]+Dataset[[#This Row],[2025/26 From - Spending review Topic 2]]+Dataset[[#This Row],[2025/26 From - Spending review Topic 3]]+Dataset[[#This Row],[2025/26 From - Spending review Topic 4]]+Dataset[[#This Row],[2025/26 From - Other reallocations]]","v":0},{"$f":"Dataset[[#This Row],[2026/27 From - Spending review Topic 1]]+Dataset[[#This Row],[2026/27 From - Spending review Topic 2]]+Dataset[[#This Row],[2026/27 From - Spending review Topic 3]]+Dataset[[#This Row],[2026/27 From - Spending review Topic 4]]+Dataset[[#This Row],[2026/27 From - Other reallocations]]","v":0},{"$f":"Dataset[[#This Row],[2027/28 From - Spending review Topic 1]]+Dataset[[#This Row],[2027/28 From - Spending review Topic 2]]+Dataset[[#This Row],[2027/28 From - Spending review Topic 3]]+Dataset[[#This Row],[2027/28 From - Spending review Topic 4]]+Dataset[[#This Row],[2027/28 From - Other reallocations]]","v":0},{"$f":"Dataset[[#This Row],[2025/26 To - Spending review Topic 1]]+Dataset[[#This Row],[2025/26 To - Spending review Topic 2]]+Dataset[[#This Row],[2025/26 To - Spending review Topic 3]]+Dataset[[#This Row],[2025/26 To - Spending review Topic 4]]+Dataset[[#This Row],[2025/26 To - Other reallocations]]","v":0},{"$f":"Dataset[[#This Row],[2026/27 To - Spending review Topic 1]]+Dataset[[#This Row],[2026/27 To - Spending review Topic 2]]+Dataset[[#This Row],[2026/27 To - Spending review Topic 3]]+Dataset[[#This Row],[2026/27 To - Spending review Topic 4]]+Dataset[[#This Row],[2026/27 To - Other reallocations]]","v":0},{"$f":"Dataset[[#This Row],[2027/28 To - Spending review Topic 1]]+Dataset[[#This Row],[2027/28 To - Spending review Topic 2]]+Dataset[[#This Row],[2027/28 To - Spending review Topic 3]]+Dataset[[#This Row],[2027/28 To - Spending review Topic 4]]+Dataset[[#This Row],[2027/28 To - Other reallocations]]","v":0},{"$f":"Dataset[[#This Row],[2025/26 Reduction]]+Dataset[[#This Row],[2025/26 From - Total]]","v":0},{"$f":"Dataset[[#This Row],[2026/27 Reduction]]+Dataset[[#This Row],[2026/27 From - Total]]","v":0},{"$f":"Dataset[[#This Row],[2027/28 Reduction]]+Dataset[[#This Row],[2027/28 From - Total]]","v":0},{"$f":"Dataset[[#This Row],[2024/25 Reduction]]","v":0},{"$f":"SUM(Dataset[[#This Row],[2025/26 Reduction]],Dataset[[#This Row],[2025/26 From - Total]],Dataset[[#This Row],[2025/26 To - Total]])","v":0},{"$f":"SUM(Dataset[[#This Row],[2026/27 Reduction]],Dataset[[#This Row],[2026/27 From - Total]],Dataset[[#This Row],[2026/27 To - Total]])","v":0},{"$f":"SUM(Dataset[[#This Row],[2027/28 Reduction]],Dataset[[#This Row],[2027/28 From - Total]],Dataset[[#This Row],[2027/28 To - Total]])","v":0},{"$f":"Dataset[[#This Row],[2024/25 Baseline]]+Dataset[[#This Row],[2024/25 Total change]]","v":0},{"$f":"Dataset[[#This Row],[2025/26 Baseline]]+Dataset[[#This Row],[2025/26 Total change]]","v":0},{"$f":"Dataset[[#This Row],[2026/27 Baseline]]+Dataset[[#This Row],[2026/27 Total change]]","v":0},{"$f":"Dataset[[#This Row],[2027/28 Baseline]]+Dataset[[#This Row],[2027/28 Total change]]","v":0}]
["NAT|Employee social benefits","40|Social benefits","2025_26","MTEC2025",40,4,2,52215,943,"40","04","02","052215","000943","40|04|02|000943","01","02","10","52","56","01|02|10|52|56","National","Transport","Road Transport","Road Infrastructure and Industry Development","Employee social benefits","Current","Transfers and subsidies","Households","Social benefits","Social benefits","Economic development","Economic regulation and infrastructure","NAT",115,103,76,0,0,0,null,0,0,0,0,null,null,null,null,null,null,null,null,null,null,null,null,null,null,null,null,null,null,null,null,null,null,null,null,null,null,null,null,null,null,null,null,null,null,{"$f":"Dataset[[#This Row],[2025/26 From - Spending review Topic 1]]+Dataset[[#This Row],[2025/26 From - Spending review Topic 2]]+Dataset[[#This Row],[2025/26 From - Spending review Topic 3]]+Dataset[[#This Row],[2025/26 From - Spending review Topic 4]]+Dataset[[#This Row],[2025/26 From - Other reallocations]]","v":0},{"$f":"Dataset[[#This Row],[2026/27 From - Spending review Topic 1]]+Dataset[[#This Row],[2026/27 From - Spending review Topic 2]]+Dataset[[#This Row],[2026/27 From - Spending review Topic 3]]+Dataset[[#This Row],[2026/27 From - Spending review Topic 4]]+Dataset[[#This Row],[2026/27 From - Other reallocations]]","v":0},{"$f":"Dataset[[#This Row],[2027/28 From - Spending review Topic 1]]+Dataset[[#This Row],[2027/28 From - Spending review Topic 2]]+Dataset[[#This Row],[2027/28 From - Spending review Topic 3]]+Dataset[[#This Row],[2027/28 From - Spending review Topic 4]]+Dataset[[#This Row],[2027/28 From - Other reallocations]]","v":0},{"$f":"Dataset[[#This Row],[2025/26 To - Spending review Topic 1]]+Dataset[[#This Row],[2025/26 To - Spending review Topic 2]]+Dataset[[#This Row],[2025/26 To - Spending review Topic 3]]+Dataset[[#This Row],[2025/26 To - Spending review Topic 4]]+Dataset[[#This Row],[2025/26 To - Other reallocations]]","v":0},{"$f":"Dataset[[#This Row],[2026/27 To - Spending review Topic 1]]+Dataset[[#This Row],[2026/27 To - Spending review Topic 2]]+Dataset[[#This Row],[2026/27 To - Spending review Topic 3]]+Dataset[[#This Row],[2026/27 To - Spending review Topic 4]]+Dataset[[#This Row],[2026/27 To - Other reallocations]]","v":0},{"$f":"Dataset[[#This Row],[2027/28 To - Spending review Topic 1]]+Dataset[[#This Row],[2027/28 To - Spending review Topic 2]]+Dataset[[#This Row],[2027/28 To - Spending review Topic 3]]+Dataset[[#This Row],[2027/28 To - Spending review Topic 4]]+Dataset[[#This Row],[2027/28 To - Other reallocations]]","v":0},{"$f":"Dataset[[#This Row],[2025/26 Reduction]]+Dataset[[#This Row],[2025/26 From - Total]]","v":0},{"$f":"Dataset[[#This Row],[2026/27 Reduction]]+Dataset[[#This Row],[2026/27 From - Total]]","v":0},{"$f":"Dataset[[#This Row],[2027/28 Reduction]]+Dataset[[#This Row],[2027/28 From - Total]]","v":0},{"$f":"Dataset[[#This Row],[2024/25 Reduction]]","v":0},{"$f":"SUM(Dataset[[#This Row],[2025/26 Reduction]],Dataset[[#This Row],[2025/26 From - Total]],Dataset[[#This Row],[2025/26 To - Total]])","v":0},{"$f":"SUM(Dataset[[#This Row],[2026/27 Reduction]],Dataset[[#This Row],[2026/27 From - Total]],Dataset[[#This Row],[2026/27 To - Total]])","v":0},{"$f":"SUM(Dataset[[#This Row],[2027/28 Reduction]],Dataset[[#This Row],[2027/28 From - Total]],Dataset[[#This Row],[2027/28 To - Total]])","v":0},{"$f":"Dataset[[#This Row],[2024/25 Baseline]]+Dataset[[#This Row],[2024/25 Total change]]","v":0},{"$f":"Dataset[[#This Row],[2025/26 Baseline]]+Dataset[[#This Row],[2025/26 Total change]]","v":0},{"$f":"Dataset[[#This Row],[2026/27 Baseline]]+Dataset[[#This Row],[2026/27 Total change]]","v":0},{"$f":"Dataset[[#This Row],[2027/28 Baseline]]+Dataset[[#This Row],[2027/28 Total change]]","v":0}]
["NAT|Non-transfer item","40|Other machinery and equipment","2025_26","MTEC2025",40,4,2,52219,947,"40","04","02","052219","000947","40|04|02|000947","02","03","12","57","61","02|03|12|57|61","National","Transport","Road Transport","Road Infrastructure and Industry Development","Non-transfer item","Capital","Payments for capital assets","Machinery and equipment","Other machinery and equipment","Other machinery and equipment","Economic development","Economic regulation and infrastructure","NAT",43,0,0,0,0,0,null,0,0,0,0,null,null,null,null,null,null,null,null,null,null,null,null,null,null,null,null,null,null,null,null,null,null,null,null,null,null,null,null,null,null,null,null,null,null,{"$f":"Dataset[[#This Row],[2025/26 From - Spending review Topic 1]]+Dataset[[#This Row],[2025/26 From - Spending review Topic 2]]+Dataset[[#This Row],[2025/26 From - Spending review Topic 3]]+Dataset[[#This Row],[2025/26 From - Spending review Topic 4]]+Dataset[[#This Row],[2025/26 From - Other reallocations]]","v":0},{"$f":"Dataset[[#This Row],[2026/27 From - Spending review Topic 1]]+Dataset[[#This Row],[2026/27 From - Spending review Topic 2]]+Dataset[[#This Row],[2026/27 From - Spending review Topic 3]]+Dataset[[#This Row],[2026/27 From - Spending review Topic 4]]+Dataset[[#This Row],[2026/27 From - Other reallocations]]","v":0},{"$f":"Dataset[[#This Row],[2027/28 From - Spending review Topic 1]]+Dataset[[#This Row],[2027/28 From - Spending review Topic 2]]+Dataset[[#This Row],[2027/28 From - Spending review Topic 3]]+Dataset[[#This Row],[2027/28 From - Spending review Topic 4]]+Dataset[[#This Row],[2027/28 From - Other reallocations]]","v":0},{"$f":"Dataset[[#This Row],[2025/26 To - Spending review Topic 1]]+Dataset[[#This Row],[2025/26 To - Spending review Topic 2]]+Dataset[[#This Row],[2025/26 To - Spending review Topic 3]]+Dataset[[#This Row],[2025/26 To - Spending review Topic 4]]+Dataset[[#This Row],[2025/26 To - Other reallocations]]","v":0},{"$f":"Dataset[[#This Row],[2026/27 To - Spending review Topic 1]]+Dataset[[#This Row],[2026/27 To - Spending review Topic 2]]+Dataset[[#This Row],[2026/27 To - Spending review Topic 3]]+Dataset[[#This Row],[2026/27 To - Spending review Topic 4]]+Dataset[[#This Row],[2026/27 To - Other reallocations]]","v":0},{"$f":"Dataset[[#This Row],[2027/28 To - Spending review Topic 1]]+Dataset[[#This Row],[2027/28 To - Spending review Topic 2]]+Dataset[[#This Row],[2027/28 To - Spending review Topic 3]]+Dataset[[#This Row],[2027/28 To - Spending review Topic 4]]+Dataset[[#This Row],[2027/28 To - Other reallocations]]","v":0},{"$f":"Dataset[[#This Row],[2025/26 Reduction]]+Dataset[[#This Row],[2025/26 From - Total]]","v":0},{"$f":"Dataset[[#This Row],[2026/27 Reduction]]+Dataset[[#This Row],[2026/27 From - Total]]","v":0},{"$f":"Dataset[[#This Row],[2027/28 Reduction]]+Dataset[[#This Row],[2027/28 From - Total]]","v":0},{"$f":"Dataset[[#This Row],[2024/25 Reduction]]","v":0},{"$f":"SUM(Dataset[[#This Row],[2025/26 Reduction]],Dataset[[#This Row],[2025/26 From - Total]],Dataset[[#This Row],[2025/26 To - Total]])","v":0},{"$f":"SUM(Dataset[[#This Row],[2026/27 Reduction]],Dataset[[#This Row],[2026/27 From - Total]],Dataset[[#This Row],[2026/27 To - Total]])","v":0},{"$f":"SUM(Dataset[[#This Row],[2027/28 Reduction]],Dataset[[#This Row],[2027/28 From - Total]],Dataset[[#This Row],[2027/28 To - Total]])","v":0},{"$f":"Dataset[[#This Row],[2024/25 Baseline]]+Dataset[[#This Row],[2024/25 Total change]]","v":0},{"$f":"Dataset[[#This Row],[2025/26 Baseline]]+Dataset[[#This Row],[2025/26 Total change]]","v":0},{"$f":"Dataset[[#This Row],[2026/27 Baseline]]+Dataset[[#This Row],[2026/27 Total change]]","v":0},{"$f":"Dataset[[#This Row],[2027/28 Baseline]]+Dataset[[#This Row],[2027/28 Total change]]","v":0}]
["NAT|Non-transfer item","40|Administrative fees","2025_26","MTEC2025",40,4,3,52227,955,"40","04","03","052227","000955","40|04|03|000955","01","01","02","03","03","01|01|02|03|03","National","Transport","Road Transport","Road Oversight","Non-transfer item","Current","Current payments","Goods and services","Administrative fees","Administrative fees","Economic development","Economic regulation and infrastructure","NAT",0,0,0,0,0,0,null,0,0,0,0,null,null,null,null,null,null,null,null,null,null,null,null,null,null,null,null,null,null,null,null,null,null,null,null,null,null,null,null,null,null,null,null,null,null,{"$f":"Dataset[[#This Row],[2025/26 From - Spending review Topic 1]]+Dataset[[#This Row],[2025/26 From - Spending review Topic 2]]+Dataset[[#This Row],[2025/26 From - Spending review Topic 3]]+Dataset[[#This Row],[2025/26 From - Spending review Topic 4]]+Dataset[[#This Row],[2025/26 From - Other reallocations]]","v":0},{"$f":"Dataset[[#This Row],[2026/27 From - Spending review Topic 1]]+Dataset[[#This Row],[2026/27 From - Spending review Topic 2]]+Dataset[[#This Row],[2026/27 From - Spending review Topic 3]]+Dataset[[#This Row],[2026/27 From - Spending review Topic 4]]+Dataset[[#This Row],[2026/27 From - Other reallocations]]","v":0},{"$f":"Dataset[[#This Row],[2027/28 From - Spending review Topic 1]]+Dataset[[#This Row],[2027/28 From - Spending review Topic 2]]+Dataset[[#This Row],[2027/28 From - Spending review Topic 3]]+Dataset[[#This Row],[2027/28 From - Spending review Topic 4]]+Dataset[[#This Row],[2027/28 From - Other reallocations]]","v":0},{"$f":"Dataset[[#This Row],[2025/26 To - Spending review Topic 1]]+Dataset[[#This Row],[2025/26 To - Spending review Topic 2]]+Dataset[[#This Row],[2025/26 To - Spending review Topic 3]]+Dataset[[#This Row],[2025/26 To - Spending review Topic 4]]+Dataset[[#This Row],[2025/26 To - Other reallocations]]","v":0},{"$f":"Dataset[[#This Row],[2026/27 To - Spending review Topic 1]]+Dataset[[#This Row],[2026/27 To - Spending review Topic 2]]+Dataset[[#This Row],[2026/27 To - Spending review Topic 3]]+Dataset[[#This Row],[2026/27 To - Spending review Topic 4]]+Dataset[[#This Row],[2026/27 To - Other reallocations]]","v":0},{"$f":"Dataset[[#This Row],[2027/28 To - Spending review Topic 1]]+Dataset[[#This Row],[2027/28 To - Spending review Topic 2]]+Dataset[[#This Row],[2027/28 To - Spending review Topic 3]]+Dataset[[#This Row],[2027/28 To - Spending review Topic 4]]+Dataset[[#This Row],[2027/28 To - Other reallocations]]","v":0},{"$f":"Dataset[[#This Row],[2025/26 Reduction]]+Dataset[[#This Row],[2025/26 From - Total]]","v":0},{"$f":"Dataset[[#This Row],[2026/27 Reduction]]+Dataset[[#This Row],[2026/27 From - Total]]","v":0},{"$f":"Dataset[[#This Row],[2027/28 Reduction]]+Dataset[[#This Row],[2027/28 From - Total]]","v":0},{"$f":"Dataset[[#This Row],[2024/25 Reduction]]","v":0},{"$f":"SUM(Dataset[[#This Row],[2025/26 Reduction]],Dataset[[#This Row],[2025/26 From - Total]],Dataset[[#This Row],[2025/26 To - Total]])","v":0},{"$f":"SUM(Dataset[[#This Row],[2026/27 Reduction]],Dataset[[#This Row],[2026/27 From - Total]],Dataset[[#This Row],[2026/27 To - Total]])","v":0},{"$f":"SUM(Dataset[[#This Row],[2027/28 Reduction]],Dataset[[#This Row],[2027/28 From - Total]],Dataset[[#This Row],[2027/28 To - Total]])","v":0},{"$f":"Dataset[[#This Row],[2024/25 Baseline]]+Dataset[[#This Row],[2024/25 Total change]]","v":0},{"$f":"Dataset[[#This Row],[2025/26 Baseline]]+Dataset[[#This Row],[2025/26 Total change]]","v":0},{"$f":"Dataset[[#This Row],[2026/27 Baseline]]+Dataset[[#This Row],[2026/27 Total change]]","v":0},{"$f":"Dataset[[#This Row],[2027/28 Baseline]]+Dataset[[#This Row],[2027/28 Total change]]","v":0}]
["NAT|Non-transfer item","40|Catering: Departmental activities","2025_26","MTEC2025",40,4,3,52232,960,"40","04","03","052232","000960","40|04|03|000960","01","01","02","08","08","01|01|02|08|08","National","Transport","Road Transport","Road Oversight","Non-transfer item","Current","Current payments","Goods and services","Catering: Departmental activities","Catering: Departmental activities","Economic development","Economic regulation and infrastructure","NAT",0,0,0,0,0,0,null,0,0,0,0,null,null,null,null,null,null,null,null,null,null,null,null,null,null,null,null,null,null,null,null,null,null,null,null,null,null,null,null,null,null,null,null,null,null,{"$f":"Dataset[[#This Row],[2025/26 From - Spending review Topic 1]]+Dataset[[#This Row],[2025/26 From - Spending review Topic 2]]+Dataset[[#This Row],[2025/26 From - Spending review Topic 3]]+Dataset[[#This Row],[2025/26 From - Spending review Topic 4]]+Dataset[[#This Row],[2025/26 From - Other reallocations]]","v":0},{"$f":"Dataset[[#This Row],[2026/27 From - Spending review Topic 1]]+Dataset[[#This Row],[2026/27 From - Spending review Topic 2]]+Dataset[[#This Row],[2026/27 From - Spending review Topic 3]]+Dataset[[#This Row],[2026/27 From - Spending review Topic 4]]+Dataset[[#This Row],[2026/27 From - Other reallocations]]","v":0},{"$f":"Dataset[[#This Row],[2027/28 From - Spending review Topic 1]]+Dataset[[#This Row],[2027/28 From - Spending review Topic 2]]+Dataset[[#This Row],[2027/28 From - Spending review Topic 3]]+Dataset[[#This Row],[2027/28 From - Spending review Topic 4]]+Dataset[[#This Row],[2027/28 From - Other reallocations]]","v":0},{"$f":"Dataset[[#This Row],[2025/26 To - Spending review Topic 1]]+Dataset[[#This Row],[2025/26 To - Spending review Topic 2]]+Dataset[[#This Row],[2025/26 To - Spending review Topic 3]]+Dataset[[#This Row],[2025/26 To - Spending review Topic 4]]+Dataset[[#This Row],[2025/26 To - Other reallocations]]","v":0},{"$f":"Dataset[[#This Row],[2026/27 To - Spending review Topic 1]]+Dataset[[#This Row],[2026/27 To - Spending review Topic 2]]+Dataset[[#This Row],[2026/27 To - Spending review Topic 3]]+Dataset[[#This Row],[2026/27 To - Spending review Topic 4]]+Dataset[[#This Row],[2026/27 To - Other reallocations]]","v":0},{"$f":"Dataset[[#This Row],[2027/28 To - Spending review Topic 1]]+Dataset[[#This Row],[2027/28 To - Spending review Topic 2]]+Dataset[[#This Row],[2027/28 To - Spending review Topic 3]]+Dataset[[#This Row],[2027/28 To - Spending review Topic 4]]+Dataset[[#This Row],[2027/28 To - Other reallocations]]","v":0},{"$f":"Dataset[[#This Row],[2025/26 Reduction]]+Dataset[[#This Row],[2025/26 From - Total]]","v":0},{"$f":"Dataset[[#This Row],[2026/27 Reduction]]+Dataset[[#This Row],[2026/27 From - Total]]","v":0},{"$f":"Dataset[[#This Row],[2027/28 Reduction]]+Dataset[[#This Row],[2027/28 From - Total]]","v":0},{"$f":"Dataset[[#This Row],[2024/25 Reduction]]","v":0},{"$f":"SUM(Dataset[[#This Row],[2025/26 Reduction]],Dataset[[#This Row],[2025/26 From - Total]],Dataset[[#This Row],[2025/26 To - Total]])","v":0},{"$f":"SUM(Dataset[[#This Row],[2026/27 Reduction]],Dataset[[#This Row],[2026/27 From - Total]],Dataset[[#This Row],[2026/27 To - Total]])","v":0},{"$f":"SUM(Dataset[[#This Row],[2027/28 Reduction]],Dataset[[#This Row],[2027/28 From - Total]],Dataset[[#This Row],[2027/28 To - Total]])","v":0},{"$f":"Dataset[[#This Row],[2024/25 Baseline]]+Dataset[[#This Row],[2024/25 Total change]]","v":0},{"$f":"Dataset[[#This Row],[2025/26 Baseline]]+Dataset[[#This Row],[2025/26 Total change]]","v":0},{"$f":"Dataset[[#This Row],[2026/27 Baseline]]+Dataset[[#This Row],[2026/27 Total change]]","v":0},{"$f":"Dataset[[#This Row],[2027/28 Baseline]]+Dataset[[#This Row],[2027/28 Total change]]","v":0}]
["NAT|Non-transfer item","40|Contractors","2025_26","MTEC2025",40,4,3,52240,968,"40","04","03","052240","000968","40|04|03|000968","01","01","02","16","16","01|01|02|16|16","National","Transport","Road Transport","Road Oversight","Non-transfer item","Current","Current payments","Goods and services","Contractors","Contractors","Economic development","Economic regulation and infrastructure","NAT",0,0,0,0,0,0,null,0,0,0,0,null,null,null,null,null,null,null,null,null,null,null,null,null,null,null,null,null,null,null,null,null,null,null,null,null,null,null,null,null,null,null,null,null,null,{"$f":"Dataset[[#This Row],[2025/26 From - Spending review Topic 1]]+Dataset[[#This Row],[2025/26 From - Spending review Topic 2]]+Dataset[[#This Row],[2025/26 From - Spending review Topic 3]]+Dataset[[#This Row],[2025/26 From - Spending review Topic 4]]+Dataset[[#This Row],[2025/26 From - Other reallocations]]","v":0},{"$f":"Dataset[[#This Row],[2026/27 From - Spending review Topic 1]]+Dataset[[#This Row],[2026/27 From - Spending review Topic 2]]+Dataset[[#This Row],[2026/27 From - Spending review Topic 3]]+Dataset[[#This Row],[2026/27 From - Spending review Topic 4]]+Dataset[[#This Row],[2026/27 From - Other reallocations]]","v":0},{"$f":"Dataset[[#This Row],[2027/28 From - Spending review Topic 1]]+Dataset[[#This Row],[2027/28 From - Spending review Topic 2]]+Dataset[[#This Row],[2027/28 From - Spending review Topic 3]]+Dataset[[#This Row],[2027/28 From - Spending review Topic 4]]+Dataset[[#This Row],[2027/28 From - Other reallocations]]","v":0},{"$f":"Dataset[[#This Row],[2025/26 To - Spending review Topic 1]]+Dataset[[#This Row],[2025/26 To - Spending review Topic 2]]+Dataset[[#This Row],[2025/26 To - Spending review Topic 3]]+Dataset[[#This Row],[2025/26 To - Spending review Topic 4]]+Dataset[[#This Row],[2025/26 To - Other reallocations]]","v":0},{"$f":"Dataset[[#This Row],[2026/27 To - Spending review Topic 1]]+Dataset[[#This Row],[2026/27 To - Spending review Topic 2]]+Dataset[[#This Row],[2026/27 To - Spending review Topic 3]]+Dataset[[#This Row],[2026/27 To - Spending review Topic 4]]+Dataset[[#This Row],[2026/27 To - Other reallocations]]","v":0},{"$f":"Dataset[[#This Row],[2027/28 To - Spending review Topic 1]]+Dataset[[#This Row],[2027/28 To - Spending review Topic 2]]+Dataset[[#This Row],[2027/28 To - Spending review Topic 3]]+Dataset[[#This Row],[2027/28 To - Spending review Topic 4]]+Dataset[[#This Row],[2027/28 To - Other reallocations]]","v":0},{"$f":"Dataset[[#This Row],[2025/26 Reduction]]+Dataset[[#This Row],[2025/26 From - Total]]","v":0},{"$f":"Dataset[[#This Row],[2026/27 Reduction]]+Dataset[[#This Row],[2026/27 From - Total]]","v":0},{"$f":"Dataset[[#This Row],[2027/28 Reduction]]+Dataset[[#This Row],[2027/28 From - Total]]","v":0},{"$f":"Dataset[[#This Row],[2024/25 Reduction]]","v":0},{"$f":"SUM(Dataset[[#This Row],[2025/26 Reduction]],Dataset[[#This Row],[2025/26 From - Total]],Dataset[[#This Row],[2025/26 To - Total]])","v":0},{"$f":"SUM(Dataset[[#This Row],[2026/27 Reduction]],Dataset[[#This Row],[2026/27 From - Total]],Dataset[[#This Row],[2026/27 To - Total]])","v":0},{"$f":"SUM(Dataset[[#This Row],[2027/28 Reduction]],Dataset[[#This Row],[2027/28 From - Total]],Dataset[[#This Row],[2027/28 To - Total]])","v":0},{"$f":"Dataset[[#This Row],[2024/25 Baseline]]+Dataset[[#This Row],[2024/25 Total change]]","v":0},{"$f":"Dataset[[#This Row],[2025/26 Baseline]]+Dataset[[#This Row],[2025/26 Total change]]","v":0},{"$f":"Dataset[[#This Row],[2026/27 Baseline]]+Dataset[[#This Row],[2026/27 Total change]]","v":0},{"$f":"Dataset[[#This Row],[2027/28 Baseline]]+Dataset[[#This Row],[2027/28 Total change]]","v":0}]
["NAT|Non-transfer item","40|Inventory: Fuel, oil and gas","2025_26","MTEC2025",40,4,3,52248,976,"40","04","03","052248","000976","40|04|03|000976","01","01","02","24","24","01|01|02|24|24","National","Transport","Road Transport","Road Oversight","Non-transfer item","Current","Current payments","Goods and services","Inventory: Fuel, oil and gas","Inventory: Fuel, oil and gas","Economic development","Economic regulation and infrastructure","NAT",0,0,0,0,0,0,null,0,0,0,0,null,null,null,null,null,null,null,null,null,null,null,null,null,null,null,null,null,null,null,null,null,null,null,null,null,null,null,null,null,null,null,null,null,null,{"$f":"Dataset[[#This Row],[2025/26 From - Spending review Topic 1]]+Dataset[[#This Row],[2025/26 From - Spending review Topic 2]]+Dataset[[#This Row],[2025/26 From - Spending review Topic 3]]+Dataset[[#This Row],[2025/26 From - Spending review Topic 4]]+Dataset[[#This Row],[2025/26 From - Other reallocations]]","v":0},{"$f":"Dataset[[#This Row],[2026/27 From - Spending review Topic 1]]+Dataset[[#This Row],[2026/27 From - Spending review Topic 2]]+Dataset[[#This Row],[2026/27 From - Spending review Topic 3]]+Dataset[[#This Row],[2026/27 From - Spending review Topic 4]]+Dataset[[#This Row],[2026/27 From - Other reallocations]]","v":0},{"$f":"Dataset[[#This Row],[2027/28 From - Spending review Topic 1]]+Dataset[[#This Row],[2027/28 From - Spending review Topic 2]]+Dataset[[#This Row],[2027/28 From - Spending review Topic 3]]+Dataset[[#This Row],[2027/28 From - Spending review Topic 4]]+Dataset[[#This Row],[2027/28 From - Other reallocations]]","v":0},{"$f":"Dataset[[#This Row],[2025/26 To - Spending review Topic 1]]+Dataset[[#This Row],[2025/26 To - Spending review Topic 2]]+Dataset[[#This Row],[2025/26 To - Spending review Topic 3]]+Dataset[[#This Row],[2025/26 To - Spending review Topic 4]]+Dataset[[#This Row],[2025/26 To - Other reallocations]]","v":0},{"$f":"Dataset[[#This Row],[2026/27 To - Spending review Topic 1]]+Dataset[[#This Row],[2026/27 To - Spending review Topic 2]]+Dataset[[#This Row],[2026/27 To - Spending review Topic 3]]+Dataset[[#This Row],[2026/27 To - Spending review Topic 4]]+Dataset[[#This Row],[2026/27 To - Other reallocations]]","v":0},{"$f":"Dataset[[#This Row],[2027/28 To - Spending review Topic 1]]+Dataset[[#This Row],[2027/28 To - Spending review Topic 2]]+Dataset[[#This Row],[2027/28 To - Spending review Topic 3]]+Dataset[[#This Row],[2027/28 To - Spending review Topic 4]]+Dataset[[#This Row],[2027/28 To - Other reallocations]]","v":0},{"$f":"Dataset[[#This Row],[2025/26 Reduction]]+Dataset[[#This Row],[2025/26 From - Total]]","v":0},{"$f":"Dataset[[#This Row],[2026/27 Reduction]]+Dataset[[#This Row],[2026/27 From - Total]]","v":0},{"$f":"Dataset[[#This Row],[2027/28 Reduction]]+Dataset[[#This Row],[2027/28 From - Total]]","v":0},{"$f":"Dataset[[#This Row],[2024/25 Reduction]]","v":0},{"$f":"SUM(Dataset[[#This Row],[2025/26 Reduction]],Dataset[[#This Row],[2025/26 From - Total]],Dataset[[#This Row],[2025/26 To - Total]])","v":0},{"$f":"SUM(Dataset[[#This Row],[2026/27 Reduction]],Dataset[[#This Row],[2026/27 From - Total]],Dataset[[#This Row],[2026/27 To - Total]])","v":0},{"$f":"SUM(Dataset[[#This Row],[2027/28 Reduction]],Dataset[[#This Row],[2027/28 From - Total]],Dataset[[#This Row],[2027/28 To - Total]])","v":0},{"$f":"Dataset[[#This Row],[2024/25 Baseline]]+Dataset[[#This Row],[2024/25 Total change]]","v":0},{"$f":"Dataset[[#This Row],[2025/26 Baseline]]+Dataset[[#This Row],[2025/26 Total change]]","v":0},{"$f":"Dataset[[#This Row],[2026/27 Baseline]]+Dataset[[#This Row],[2026/27 Total change]]","v":0},{"$f":"Dataset[[#This Row],[2027/28 Baseline]]+Dataset[[#This Row],[2027/28 Total change]]","v":0}]
["NAT|Non-transfer item","40|Medsas inventory interface","2025_26","MTEC2025",40,4,3,52253,981,"40","04","03","052253","000981","40|04|03|000981","01","01","02","29","29","01|01|02|29|29","National","Transport","Road Transport","Road Oversight","Non-transfer item","Current","Current payments","Goods and services","Medsas inventory interface","Medsas inventory interface","Economic development","Economic regulation and infrastructure","NAT",0,0,0,0,0,0,null,0,0,0,0,null,null,null,null,null,null,null,null,null,null,null,null,null,null,null,null,null,null,null,null,null,null,null,null,null,null,null,null,null,null,null,null,null,null,{"$f":"Dataset[[#This Row],[2025/26 From - Spending review Topic 1]]+Dataset[[#This Row],[2025/26 From - Spending review Topic 2]]+Dataset[[#This Row],[2025/26 From - Spending review Topic 3]]+Dataset[[#This Row],[2025/26 From - Spending review Topic 4]]+Dataset[[#This Row],[2025/26 From - Other reallocations]]","v":0},{"$f":"Dataset[[#This Row],[2026/27 From - Spending review Topic 1]]+Dataset[[#This Row],[2026/27 From - Spending review Topic 2]]+Dataset[[#This Row],[2026/27 From - Spending review Topic 3]]+Dataset[[#This Row],[2026/27 From - Spending review Topic 4]]+Dataset[[#This Row],[2026/27 From - Other reallocations]]","v":0},{"$f":"Dataset[[#This Row],[2027/28 From - Spending review Topic 1]]+Dataset[[#This Row],[2027/28 From - Spending review Topic 2]]+Dataset[[#This Row],[2027/28 From - Spending review Topic 3]]+Dataset[[#This Row],[2027/28 From - Spending review Topic 4]]+Dataset[[#This Row],[2027/28 From - Other reallocations]]","v":0},{"$f":"Dataset[[#This Row],[2025/26 To - Spending review Topic 1]]+Dataset[[#This Row],[2025/26 To - Spending review Topic 2]]+Dataset[[#This Row],[2025/26 To - Spending review Topic 3]]+Dataset[[#This Row],[2025/26 To - Spending review Topic 4]]+Dataset[[#This Row],[2025/26 To - Other reallocations]]","v":0},{"$f":"Dataset[[#This Row],[2026/27 To - Spending review Topic 1]]+Dataset[[#This Row],[2026/27 To - Spending review Topic 2]]+Dataset[[#This Row],[2026/27 To - Spending review Topic 3]]+Dataset[[#This Row],[2026/27 To - Spending review Topic 4]]+Dataset[[#This Row],[2026/27 To - Other reallocations]]","v":0},{"$f":"Dataset[[#This Row],[2027/28 To - Spending review Topic 1]]+Dataset[[#This Row],[2027/28 To - Spending review Topic 2]]+Dataset[[#This Row],[2027/28 To - Spending review Topic 3]]+Dataset[[#This Row],[2027/28 To - Spending review Topic 4]]+Dataset[[#This Row],[2027/28 To - Other reallocations]]","v":0},{"$f":"Dataset[[#This Row],[2025/26 Reduction]]+Dataset[[#This Row],[2025/26 From - Total]]","v":0},{"$f":"Dataset[[#This Row],[2026/27 Reduction]]+Dataset[[#This Row],[2026/27 From - Total]]","v":0},{"$f":"Dataset[[#This Row],[2027/28 Reduction]]+Dataset[[#This Row],[2027/28 From - Total]]","v":0},{"$f":"Dataset[[#This Row],[2024/25 Reduction]]","v":0},{"$f":"SUM(Dataset[[#This Row],[2025/26 Reduction]],Dataset[[#This Row],[2025/26 From - Total]],Dataset[[#This Row],[2025/26 To - Total]])","v":0},{"$f":"SUM(Dataset[[#This Row],[2026/27 Reduction]],Dataset[[#This Row],[2026/27 From - Total]],Dataset[[#This Row],[2026/27 To - Total]])","v":0},{"$f":"SUM(Dataset[[#This Row],[2027/28 Reduction]],Dataset[[#This Row],[2027/28 From - Total]],Dataset[[#This Row],[2027/28 To - Total]])","v":0},{"$f":"Dataset[[#This Row],[2024/25 Baseline]]+Dataset[[#This Row],[2024/25 Total change]]","v":0},{"$f":"Dataset[[#This Row],[2025/26 Baseline]]+Dataset[[#This Row],[2025/26 Total change]]","v":0},{"$f":"Dataset[[#This Row],[2026/27 Baseline]]+Dataset[[#This Row],[2026/27 Total change]]","v":0},{"$f":"Dataset[[#This Row],[2027/28 Baseline]]+Dataset[[#This Row],[2027/28 Total change]]","v":0}]
["NAT|Non-transfer item","40|Travel and subsistence","2025_26","MTEC2025",40,4,3,52261,989,"40","04","03","052261","000989","40|04|03|000989","01","01","02","37","37","01|01|02|37|37","National","Transport","Road Transport","Road Oversight","Non-transfer item","Current","Current payments","Goods and services","Travel and subsistence","Travel and subsistence","Economic development","Economic regulation and infrastructure","NAT",0,0,0,0,0,0,null,0,0,0,0,null,null,null,null,null,null,null,null,null,null,null,null,null,null,null,null,null,null,null,null,null,null,null,null,null,null,null,null,null,null,null,null,null,null,{"$f":"Dataset[[#This Row],[2025/26 From - Spending review Topic 1]]+Dataset[[#This Row],[2025/26 From - Spending review Topic 2]]+Dataset[[#This Row],[2025/26 From - Spending review Topic 3]]+Dataset[[#This Row],[2025/26 From - Spending review Topic 4]]+Dataset[[#This Row],[2025/26 From - Other reallocations]]","v":0},{"$f":"Dataset[[#This Row],[2026/27 From - Spending review Topic 1]]+Dataset[[#This Row],[2026/27 From - Spending review Topic 2]]+Dataset[[#This Row],[2026/27 From - Spending review Topic 3]]+Dataset[[#This Row],[2026/27 From - Spending review Topic 4]]+Dataset[[#This Row],[2026/27 From - Other reallocations]]","v":0},{"$f":"Dataset[[#This Row],[2027/28 From - Spending review Topic 1]]+Dataset[[#This Row],[2027/28 From - Spending review Topic 2]]+Dataset[[#This Row],[2027/28 From - Spending review Topic 3]]+Dataset[[#This Row],[2027/28 From - Spending review Topic 4]]+Dataset[[#This Row],[2027/28 From - Other reallocations]]","v":0},{"$f":"Dataset[[#This Row],[2025/26 To - Spending review Topic 1]]+Dataset[[#This Row],[2025/26 To - Spending review Topic 2]]+Dataset[[#This Row],[2025/26 To - Spending review Topic 3]]+Dataset[[#This Row],[2025/26 To - Spending review Topic 4]]+Dataset[[#This Row],[2025/26 To - Other reallocations]]","v":0},{"$f":"Dataset[[#This Row],[2026/27 To - Spending review Topic 1]]+Dataset[[#This Row],[2026/27 To - Spending review Topic 2]]+Dataset[[#This Row],[2026/27 To - Spending review Topic 3]]+Dataset[[#This Row],[2026/27 To - Spending review Topic 4]]+Dataset[[#This Row],[2026/27 To - Other reallocations]]","v":0},{"$f":"Dataset[[#This Row],[2027/28 To - Spending review Topic 1]]+Dataset[[#This Row],[2027/28 To - Spending review Topic 2]]+Dataset[[#This Row],[2027/28 To - Spending review Topic 3]]+Dataset[[#This Row],[2027/28 To - Spending review Topic 4]]+Dataset[[#This Row],[2027/28 To - Other reallocations]]","v":0},{"$f":"Dataset[[#This Row],[2025/26 Reduction]]+Dataset[[#This Row],[2025/26 From - Total]]","v":0},{"$f":"Dataset[[#This Row],[2026/27 Reduction]]+Dataset[[#This Row],[2026/27 From - Total]]","v":0},{"$f":"Dataset[[#This Row],[2027/28 Reduction]]+Dataset[[#This Row],[2027/28 From - Total]]","v":0},{"$f":"Dataset[[#This Row],[2024/25 Reduction]]","v":0},{"$f":"SUM(Dataset[[#This Row],[2025/26 Reduction]],Dataset[[#This Row],[2025/26 From - Total]],Dataset[[#This Row],[2025/26 To - Total]])","v":0},{"$f":"SUM(Dataset[[#This Row],[2026/27 Reduction]],Dataset[[#This Row],[2026/27 From - Total]],Dataset[[#This Row],[2026/27 To - Total]])","v":0},{"$f":"SUM(Dataset[[#This Row],[2027/28 Reduction]],Dataset[[#This Row],[2027/28 From - Total]],Dataset[[#This Row],[2027/28 To - Total]])","v":0},{"$f":"Dataset[[#This Row],[2024/25 Baseline]]+Dataset[[#This Row],[2024/25 Total change]]","v":0},{"$f":"Dataset[[#This Row],[2025/26 Baseline]]+Dataset[[#This Row],[2025/26 Total change]]","v":0},{"$f":"Dataset[[#This Row],[2026/27 Baseline]]+Dataset[[#This Row],[2026/27 Total change]]","v":0},{"$f":"Dataset[[#This Row],[2027/28 Baseline]]+Dataset[[#This Row],[2027/28 Total change]]","v":0}]
["NAT|Cross-Border Road Transport Agency","40|Departmental agencies (non-business entities)","2025_26","MTEC2025",40,4,3,52273,1001,"40","04","03","052273","001001","40|04|03|001001","01","02","05","46","48","01|02|05|46|48","National","Transport","Road Transport","Road Oversight","Cross-Border Road Transport Agency","Current","Transfers and subsidies","Departmental agencies and accounts","Departmental agencies (non-business entities)","Departmental agencies (non-business entities)","Economic development","Economic regulation and infrastructure","NAT",38500,0,0,0,0,0,null,0,0,0,0,null,null,null,null,null,null,null,null,null,null,null,null,null,null,null,null,null,null,null,null,null,null,null,null,null,null,null,null,null,null,null,null,null,null,{"$f":"Dataset[[#This Row],[2025/26 From - Spending review Topic 1]]+Dataset[[#This Row],[2025/26 From - Spending review Topic 2]]+Dataset[[#This Row],[2025/26 From - Spending review Topic 3]]+Dataset[[#This Row],[2025/26 From - Spending review Topic 4]]+Dataset[[#This Row],[2025/26 From - Other reallocations]]","v":0},{"$f":"Dataset[[#This Row],[2026/27 From - Spending review Topic 1]]+Dataset[[#This Row],[2026/27 From - Spending review Topic 2]]+Dataset[[#This Row],[2026/27 From - Spending review Topic 3]]+Dataset[[#This Row],[2026/27 From - Spending review Topic 4]]+Dataset[[#This Row],[2026/27 From - Other reallocations]]","v":0},{"$f":"Dataset[[#This Row],[2027/28 From - Spending review Topic 1]]+Dataset[[#This Row],[2027/28 From - Spending review Topic 2]]+Dataset[[#This Row],[2027/28 From - Spending review Topic 3]]+Dataset[[#This Row],[2027/28 From - Spending review Topic 4]]+Dataset[[#This Row],[2027/28 From - Other reallocations]]","v":0},{"$f":"Dataset[[#This Row],[2025/26 To - Spending review Topic 1]]+Dataset[[#This Row],[2025/26 To - Spending review Topic 2]]+Dataset[[#This Row],[2025/26 To - Spending review Topic 3]]+Dataset[[#This Row],[2025/26 To - Spending review Topic 4]]+Dataset[[#This Row],[2025/26 To - Other reallocations]]","v":0},{"$f":"Dataset[[#This Row],[2026/27 To - Spending review Topic 1]]+Dataset[[#This Row],[2026/27 To - Spending review Topic 2]]+Dataset[[#This Row],[2026/27 To - Spending review Topic 3]]+Dataset[[#This Row],[2026/27 To - Spending review Topic 4]]+Dataset[[#This Row],[2026/27 To - Other reallocations]]","v":0},{"$f":"Dataset[[#This Row],[2027/28 To - Spending review Topic 1]]+Dataset[[#This Row],[2027/28 To - Spending review Topic 2]]+Dataset[[#This Row],[2027/28 To - Spending review Topic 3]]+Dataset[[#This Row],[2027/28 To - Spending review Topic 4]]+Dataset[[#This Row],[2027/28 To - Other reallocations]]","v":0},{"$f":"Dataset[[#This Row],[2025/26 Reduction]]+Dataset[[#This Row],[2025/26 From - Total]]","v":0},{"$f":"Dataset[[#This Row],[2026/27 Reduction]]+Dataset[[#This Row],[2026/27 From - Total]]","v":0},{"$f":"Dataset[[#This Row],[2027/28 Reduction]]+Dataset[[#This Row],[2027/28 From - Total]]","v":0},{"$f":"Dataset[[#This Row],[2024/25 Reduction]]","v":0},{"$f":"SUM(Dataset[[#This Row],[2025/26 Reduction]],Dataset[[#This Row],[2025/26 From - Total]],Dataset[[#This Row],[2025/26 To - Total]])","v":0},{"$f":"SUM(Dataset[[#This Row],[2026/27 Reduction]],Dataset[[#This Row],[2026/27 From - Total]],Dataset[[#This Row],[2026/27 To - Total]])","v":0},{"$f":"SUM(Dataset[[#This Row],[2027/28 Reduction]],Dataset[[#This Row],[2027/28 From - Total]],Dataset[[#This Row],[2027/28 To - Total]])","v":0},{"$f":"Dataset[[#This Row],[2024/25 Baseline]]+Dataset[[#This Row],[2024/25 Total change]]","v":0},{"$f":"Dataset[[#This Row],[2025/26 Baseline]]+Dataset[[#This Row],[2025/26 Total change]]","v":0},{"$f":"Dataset[[#This Row],[2026/27 Baseline]]+Dataset[[#This Row],[2026/27 Total change]]","v":0},{"$f":"Dataset[[#This Row],[2027/28 Baseline]]+Dataset[[#This Row],[2027/28 Total change]]","v":0}]
["NAT|South African National Roads Agency","40|Departmental agencies (non-business entities)","2025_26","MTEC2025",40,4,3,52274,1002,"40","04","03","052274","001002","40|04|03|001002","01","02","05","46","48","01|02|05|46|48","National","Transport","Road Transport","Road Oversight","South African National Roads Agency","Current","Transfers and subsidies","Departmental agencies and accounts","Departmental agencies (non-business entities)","Departmental agencies (non-business entities)","Economic development","Economic regulation and infrastructure","NAT",7204024,7285029,7186139,7494490,7494490,7494490,null,7689510,7992801,8358905,8736900,null,null,null,null,null,null,null,null,null,null,null,null,null,null,null,null,null,null,null,null,null,null,null,null,null,null,null,null,null,null,null,null,null,null,{"$f":"Dataset[[#This Row],[2025/26 From - Spending review Topic 1]]+Dataset[[#This Row],[2025/26 From - Spending review Topic 2]]+Dataset[[#This Row],[2025/26 From - Spending review Topic 3]]+Dataset[[#This Row],[2025/26 From - Spending review Topic 4]]+Dataset[[#This Row],[2025/26 From - Other reallocations]]","v":0},{"$f":"Dataset[[#This Row],[2026/27 From - Spending review Topic 1]]+Dataset[[#This Row],[2026/27 From - Spending review Topic 2]]+Dataset[[#This Row],[2026/27 From - Spending review Topic 3]]+Dataset[[#This Row],[2026/27 From - Spending review Topic 4]]+Dataset[[#This Row],[2026/27 From - Other reallocations]]","v":0},{"$f":"Dataset[[#This Row],[2027/28 From - Spending review Topic 1]]+Dataset[[#This Row],[2027/28 From - Spending review Topic 2]]+Dataset[[#This Row],[2027/28 From - Spending review Topic 3]]+Dataset[[#This Row],[2027/28 From - Spending review Topic 4]]+Dataset[[#This Row],[2027/28 From - Other reallocations]]","v":0},{"$f":"Dataset[[#This Row],[2025/26 To - Spending review Topic 1]]+Dataset[[#This Row],[2025/26 To - Spending review Topic 2]]+Dataset[[#This Row],[2025/26 To - Spending review Topic 3]]+Dataset[[#This Row],[2025/26 To - Spending review Topic 4]]+Dataset[[#This Row],[2025/26 To - Other reallocations]]","v":0},{"$f":"Dataset[[#This Row],[2026/27 To - Spending review Topic 1]]+Dataset[[#This Row],[2026/27 To - Spending review Topic 2]]+Dataset[[#This Row],[2026/27 To - Spending review Topic 3]]+Dataset[[#This Row],[2026/27 To - Spending review Topic 4]]+Dataset[[#This Row],[2026/27 To - Other reallocations]]","v":0},{"$f":"Dataset[[#This Row],[2027/28 To - Spending review Topic 1]]+Dataset[[#This Row],[2027/28 To - Spending review Topic 2]]+Dataset[[#This Row],[2027/28 To - Spending review Topic 3]]+Dataset[[#This Row],[2027/28 To - Spending review Topic 4]]+Dataset[[#This Row],[2027/28 To - Other reallocations]]","v":0},{"$f":"Dataset[[#This Row],[2025/26 Reduction]]+Dataset[[#This Row],[2025/26 From - Total]]","v":0},{"$f":"Dataset[[#This Row],[2026/27 Reduction]]+Dataset[[#This Row],[2026/27 From - Total]]","v":0},{"$f":"Dataset[[#This Row],[2027/28 Reduction]]+Dataset[[#This Row],[2027/28 From - Total]]","v":0},{"$f":"Dataset[[#This Row],[2024/25 Reduction]]","v":0},{"$f":"SUM(Dataset[[#This Row],[2025/26 Reduction]],Dataset[[#This Row],[2025/26 From - Total]],Dataset[[#This Row],[2025/26 To - Total]])","v":0},{"$f":"SUM(Dataset[[#This Row],[2026/27 Reduction]],Dataset[[#This Row],[2026/27 From - Total]],Dataset[[#This Row],[2026/27 To - Total]])","v":0},{"$f":"SUM(Dataset[[#This Row],[2027/28 Reduction]],Dataset[[#This Row],[2027/28 From - Total]],Dataset[[#This Row],[2027/28 To - Total]])","v":0},{"$f":"Dataset[[#This Row],[2024/25 Baseline]]+Dataset[[#This Row],[2024/25 Total change]]","v":7689510},{"$f":"Dataset[[#This Row],[2025/26 Baseline]]+Dataset[[#This Row],[2025/26 Total change]]","v":7992801},{"$f":"Dataset[[#This Row],[2026/27 Baseline]]+Dataset[[#This Row],[2026/27 Total change]]","v":8358905},{"$f":"Dataset[[#This Row],[2027/28 Baseline]]+Dataset[[#This Row],[2027/28 Total change]]","v":8736900}]
["NAT|South African National Roads Agency: KwaZulu-Natal flood damage to toll roads","40|Departmental agencies (non-business entities)","2025_26","MTEC2025",40,4,3,52282,1010,"40","04","03","052282","001010","40|04|03|001010","02","02","05","46","48","02|02|05|46|48","National","Transport","Road Transport","Road Oversight","South African National Roads Agency: KwaZulu-Natal flood damage to toll roads","Capital","Transfers and subsidies","Departmental agencies and accounts","Departmental agencies (non-business entities)","Departmental agencies (non-business entities)","Economic development","Economic regulation and infrastructure","NAT",0,0,365000,0,0,0,null,0,0,0,0,null,null,null,null,null,null,null,null,null,null,null,null,null,null,null,null,null,null,null,null,null,null,null,null,null,null,null,null,null,null,null,null,null,null,{"$f":"Dataset[[#This Row],[2025/26 From - Spending review Topic 1]]+Dataset[[#This Row],[2025/26 From - Spending review Topic 2]]+Dataset[[#This Row],[2025/26 From - Spending review Topic 3]]+Dataset[[#This Row],[2025/26 From - Spending review Topic 4]]+Dataset[[#This Row],[2025/26 From - Other reallocations]]","v":0},{"$f":"Dataset[[#This Row],[2026/27 From - Spending review Topic 1]]+Dataset[[#This Row],[2026/27 From - Spending review Topic 2]]+Dataset[[#This Row],[2026/27 From - Spending review Topic 3]]+Dataset[[#This Row],[2026/27 From - Spending review Topic 4]]+Dataset[[#This Row],[2026/27 From - Other reallocations]]","v":0},{"$f":"Dataset[[#This Row],[2027/28 From - Spending review Topic 1]]+Dataset[[#This Row],[2027/28 From - Spending review Topic 2]]+Dataset[[#This Row],[2027/28 From - Spending review Topic 3]]+Dataset[[#This Row],[2027/28 From - Spending review Topic 4]]+Dataset[[#This Row],[2027/28 From - Other reallocations]]","v":0},{"$f":"Dataset[[#This Row],[2025/26 To - Spending review Topic 1]]+Dataset[[#This Row],[2025/26 To - Spending review Topic 2]]+Dataset[[#This Row],[2025/26 To - Spending review Topic 3]]+Dataset[[#This Row],[2025/26 To - Spending review Topic 4]]+Dataset[[#This Row],[2025/26 To - Other reallocations]]","v":0},{"$f":"Dataset[[#This Row],[2026/27 To - Spending review Topic 1]]+Dataset[[#This Row],[2026/27 To - Spending review Topic 2]]+Dataset[[#This Row],[2026/27 To - Spending review Topic 3]]+Dataset[[#This Row],[2026/27 To - Spending review Topic 4]]+Dataset[[#This Row],[2026/27 To - Other reallocations]]","v":0},{"$f":"Dataset[[#This Row],[2027/28 To - Spending review Topic 1]]+Dataset[[#This Row],[2027/28 To - Spending review Topic 2]]+Dataset[[#This Row],[2027/28 To - Spending review Topic 3]]+Dataset[[#This Row],[2027/28 To - Spending review Topic 4]]+Dataset[[#This Row],[2027/28 To - Other reallocations]]","v":0},{"$f":"Dataset[[#This Row],[2025/26 Reduction]]+Dataset[[#This Row],[2025/26 From - Total]]","v":0},{"$f":"Dataset[[#This Row],[2026/27 Reduction]]+Dataset[[#This Row],[2026/27 From - Total]]","v":0},{"$f":"Dataset[[#This Row],[2027/28 Reduction]]+Dataset[[#This Row],[2027/28 From - Total]]","v":0},{"$f":"Dataset[[#This Row],[2024/25 Reduction]]","v":0},{"$f":"SUM(Dataset[[#This Row],[2025/26 Reduction]],Dataset[[#This Row],[2025/26 From - Total]],Dataset[[#This Row],[2025/26 To - Total]])","v":0},{"$f":"SUM(Dataset[[#This Row],[2026/27 Reduction]],Dataset[[#This Row],[2026/27 From - Total]],Dataset[[#This Row],[2026/27 To - Total]])","v":0},{"$f":"SUM(Dataset[[#This Row],[2027/28 Reduction]],Dataset[[#This Row],[2027/28 From - Total]],Dataset[[#This Row],[2027/28 To - Total]])","v":0},{"$f":"Dataset[[#This Row],[2024/25 Baseline]]+Dataset[[#This Row],[2024/25 Total change]]","v":0},{"$f":"Dataset[[#This Row],[2025/26 Baseline]]+Dataset[[#This Row],[2025/26 Total change]]","v":0},{"$f":"Dataset[[#This Row],[2026/27 Baseline]]+Dataset[[#This Row],[2026/27 Total change]]","v":0},{"$f":"Dataset[[#This Row],[2027/28 Baseline]]+Dataset[[#This Row],[2027/28 Total change]]","v":0}]
["NAT|Non-transfer item","40|Social contributions","2025_26","MTEC2025",40,4,4,52294,1022,"40","04","04","052294","001022","40|04|04|001022","01","01","01","02","02","01|01|01|02|02","National","Transport","Road Transport","Road Administration Support","Non-transfer item","Current","Current payments","Compensation of employees","Social contributions","Social contributions","Economic development","Economic regulation and infrastructure","NAT",806,870,909,1103,1103,1103,1001,1356,1409,1473,1540,null,null,null,null,null,null,null,null,null,null,null,null,null,null,null,null,null,null,null,null,null,null,null,null,null,null,null,null,null,null,null,null,null,null,{"$f":"Dataset[[#This Row],[2025/26 From - Spending review Topic 1]]+Dataset[[#This Row],[2025/26 From - Spending review Topic 2]]+Dataset[[#This Row],[2025/26 From - Spending review Topic 3]]+Dataset[[#This Row],[2025/26 From - Spending review Topic 4]]+Dataset[[#This Row],[2025/26 From - Other reallocations]]","v":0},{"$f":"Dataset[[#This Row],[2026/27 From - Spending review Topic 1]]+Dataset[[#This Row],[2026/27 From - Spending review Topic 2]]+Dataset[[#This Row],[2026/27 From - Spending review Topic 3]]+Dataset[[#This Row],[2026/27 From - Spending review Topic 4]]+Dataset[[#This Row],[2026/27 From - Other reallocations]]","v":0},{"$f":"Dataset[[#This Row],[2027/28 From - Spending review Topic 1]]+Dataset[[#This Row],[2027/28 From - Spending review Topic 2]]+Dataset[[#This Row],[2027/28 From - Spending review Topic 3]]+Dataset[[#This Row],[2027/28 From - Spending review Topic 4]]+Dataset[[#This Row],[2027/28 From - Other reallocations]]","v":0},{"$f":"Dataset[[#This Row],[2025/26 To - Spending review Topic 1]]+Dataset[[#This Row],[2025/26 To - Spending review Topic 2]]+Dataset[[#This Row],[2025/26 To - Spending review Topic 3]]+Dataset[[#This Row],[2025/26 To - Spending review Topic 4]]+Dataset[[#This Row],[2025/26 To - Other reallocations]]","v":0},{"$f":"Dataset[[#This Row],[2026/27 To - Spending review Topic 1]]+Dataset[[#This Row],[2026/27 To - Spending review Topic 2]]+Dataset[[#This Row],[2026/27 To - Spending review Topic 3]]+Dataset[[#This Row],[2026/27 To - Spending review Topic 4]]+Dataset[[#This Row],[2026/27 To - Other reallocations]]","v":0},{"$f":"Dataset[[#This Row],[2027/28 To - Spending review Topic 1]]+Dataset[[#This Row],[2027/28 To - Spending review Topic 2]]+Dataset[[#This Row],[2027/28 To - Spending review Topic 3]]+Dataset[[#This Row],[2027/28 To - Spending review Topic 4]]+Dataset[[#This Row],[2027/28 To - Other reallocations]]","v":0},{"$f":"Dataset[[#This Row],[2025/26 Reduction]]+Dataset[[#This Row],[2025/26 From - Total]]","v":0},{"$f":"Dataset[[#This Row],[2026/27 Reduction]]+Dataset[[#This Row],[2026/27 From - Total]]","v":0},{"$f":"Dataset[[#This Row],[2027/28 Reduction]]+Dataset[[#This Row],[2027/28 From - Total]]","v":0},{"$f":"Dataset[[#This Row],[2024/25 Reduction]]","v":0},{"$f":"SUM(Dataset[[#This Row],[2025/26 Reduction]],Dataset[[#This Row],[2025/26 From - Total]],Dataset[[#This Row],[2025/26 To - Total]])","v":0},{"$f":"SUM(Dataset[[#This Row],[2026/27 Reduction]],Dataset[[#This Row],[2026/27 From - Total]],Dataset[[#This Row],[2026/27 To - Total]])","v":0},{"$f":"SUM(Dataset[[#This Row],[2027/28 Reduction]],Dataset[[#This Row],[2027/28 From - Total]],Dataset[[#This Row],[2027/28 To - Total]])","v":0},{"$f":"Dataset[[#This Row],[2024/25 Baseline]]+Dataset[[#This Row],[2024/25 Total change]]","v":1356},{"$f":"Dataset[[#This Row],[2025/26 Baseline]]+Dataset[[#This Row],[2025/26 Total change]]","v":1409},{"$f":"Dataset[[#This Row],[2026/27 Baseline]]+Dataset[[#This Row],[2026/27 Total change]]","v":1473},{"$f":"Dataset[[#This Row],[2027/28 Baseline]]+Dataset[[#This Row],[2027/28 Total change]]","v":1540}]
["NAT|Non-transfer item","40|Administrative fees","2025_26","MTEC2025",40,4,4,52295,1023,"40","04","04","052295","001023","40|04|04|001023","01","01","02","03","03","01|01|02|03|03","National","Transport","Road Transport","Road Administration Support","Non-transfer item","Current","Current payments","Goods and services","Administrative fees","Administrative fees","Economic development","Economic regulation and infrastructure","NAT",0,1,0,2,2,2,null,2,2,2,2,null,null,null,null,null,null,null,null,null,null,null,null,null,null,null,null,null,null,null,null,null,null,null,null,null,null,null,null,null,null,null,null,null,null,{"$f":"Dataset[[#This Row],[2025/26 From - Spending review Topic 1]]+Dataset[[#This Row],[2025/26 From - Spending review Topic 2]]+Dataset[[#This Row],[2025/26 From - Spending review Topic 3]]+Dataset[[#This Row],[2025/26 From - Spending review Topic 4]]+Dataset[[#This Row],[2025/26 From - Other reallocations]]","v":0},{"$f":"Dataset[[#This Row],[2026/27 From - Spending review Topic 1]]+Dataset[[#This Row],[2026/27 From - Spending review Topic 2]]+Dataset[[#This Row],[2026/27 From - Spending review Topic 3]]+Dataset[[#This Row],[2026/27 From - Spending review Topic 4]]+Dataset[[#This Row],[2026/27 From - Other reallocations]]","v":0},{"$f":"Dataset[[#This Row],[2027/28 From - Spending review Topic 1]]+Dataset[[#This Row],[2027/28 From - Spending review Topic 2]]+Dataset[[#This Row],[2027/28 From - Spending review Topic 3]]+Dataset[[#This Row],[2027/28 From - Spending review Topic 4]]+Dataset[[#This Row],[2027/28 From - Other reallocations]]","v":0},{"$f":"Dataset[[#This Row],[2025/26 To - Spending review Topic 1]]+Dataset[[#This Row],[2025/26 To - Spending review Topic 2]]+Dataset[[#This Row],[2025/26 To - Spending review Topic 3]]+Dataset[[#This Row],[2025/26 To - Spending review Topic 4]]+Dataset[[#This Row],[2025/26 To - Other reallocations]]","v":0},{"$f":"Dataset[[#This Row],[2026/27 To - Spending review Topic 1]]+Dataset[[#This Row],[2026/27 To - Spending review Topic 2]]+Dataset[[#This Row],[2026/27 To - Spending review Topic 3]]+Dataset[[#This Row],[2026/27 To - Spending review Topic 4]]+Dataset[[#This Row],[2026/27 To - Other reallocations]]","v":0},{"$f":"Dataset[[#This Row],[2027/28 To - Spending review Topic 1]]+Dataset[[#This Row],[2027/28 To - Spending review Topic 2]]+Dataset[[#This Row],[2027/28 To - Spending review Topic 3]]+Dataset[[#This Row],[2027/28 To - Spending review Topic 4]]+Dataset[[#This Row],[2027/28 To - Other reallocations]]","v":0},{"$f":"Dataset[[#This Row],[2025/26 Reduction]]+Dataset[[#This Row],[2025/26 From - Total]]","v":0},{"$f":"Dataset[[#This Row],[2026/27 Reduction]]+Dataset[[#This Row],[2026/27 From - Total]]","v":0},{"$f":"Dataset[[#This Row],[2027/28 Reduction]]+Dataset[[#This Row],[2027/28 From - Total]]","v":0},{"$f":"Dataset[[#This Row],[2024/25 Reduction]]","v":0},{"$f":"SUM(Dataset[[#This Row],[2025/26 Reduction]],Dataset[[#This Row],[2025/26 From - Total]],Dataset[[#This Row],[2025/26 To - Total]])","v":0},{"$f":"SUM(Dataset[[#This Row],[2026/27 Reduction]],Dataset[[#This Row],[2026/27 From - Total]],Dataset[[#This Row],[2026/27 To - Total]])","v":0},{"$f":"SUM(Dataset[[#This Row],[2027/28 Reduction]],Dataset[[#This Row],[2027/28 From - Total]],Dataset[[#This Row],[2027/28 To - Total]])","v":0},{"$f":"Dataset[[#This Row],[2024/25 Baseline]]+Dataset[[#This Row],[2024/25 Total change]]","v":2},{"$f":"Dataset[[#This Row],[2025/26 Baseline]]+Dataset[[#This Row],[2025/26 Total change]]","v":2},{"$f":"Dataset[[#This Row],[2026/27 Baseline]]+Dataset[[#This Row],[2026/27 Total change]]","v":2},{"$f":"Dataset[[#This Row],[2027/28 Baseline]]+Dataset[[#This Row],[2027/28 Total change]]","v":2}]
["NAT|Non-transfer item","40|Consultants: Business and advisory services","2025_26","MTEC2025",40,4,4,52303,1031,"40","04","04","052303","001031","40|04|04|001031","01","01","02","11","11","01|01|02|11|11","National","Transport","Road Transport","Road Administration Support","Non-transfer item","Current","Current payments","Goods and services","Consultants: Business and advisory services","Consultants: Business and advisory services","Economic development","Economic regulation and infrastructure","NAT",0,0,0,0,0,0,null,0,0,0,0,null,null,null,null,null,null,null,null,null,null,null,null,null,null,null,null,null,null,null,null,null,null,null,null,null,null,null,null,null,null,null,null,null,null,{"$f":"Dataset[[#This Row],[2025/26 From - Spending review Topic 1]]+Dataset[[#This Row],[2025/26 From - Spending review Topic 2]]+Dataset[[#This Row],[2025/26 From - Spending review Topic 3]]+Dataset[[#This Row],[2025/26 From - Spending review Topic 4]]+Dataset[[#This Row],[2025/26 From - Other reallocations]]","v":0},{"$f":"Dataset[[#This Row],[2026/27 From - Spending review Topic 1]]+Dataset[[#This Row],[2026/27 From - Spending review Topic 2]]+Dataset[[#This Row],[2026/27 From - Spending review Topic 3]]+Dataset[[#This Row],[2026/27 From - Spending review Topic 4]]+Dataset[[#This Row],[2026/27 From - Other reallocations]]","v":0},{"$f":"Dataset[[#This Row],[2027/28 From - Spending review Topic 1]]+Dataset[[#This Row],[2027/28 From - Spending review Topic 2]]+Dataset[[#This Row],[2027/28 From - Spending review Topic 3]]+Dataset[[#This Row],[2027/28 From - Spending review Topic 4]]+Dataset[[#This Row],[2027/28 From - Other reallocations]]","v":0},{"$f":"Dataset[[#This Row],[2025/26 To - Spending review Topic 1]]+Dataset[[#This Row],[2025/26 To - Spending review Topic 2]]+Dataset[[#This Row],[2025/26 To - Spending review Topic 3]]+Dataset[[#This Row],[2025/26 To - Spending review Topic 4]]+Dataset[[#This Row],[2025/26 To - Other reallocations]]","v":0},{"$f":"Dataset[[#This Row],[2026/27 To - Spending review Topic 1]]+Dataset[[#This Row],[2026/27 To - Spending review Topic 2]]+Dataset[[#This Row],[2026/27 To - Spending review Topic 3]]+Dataset[[#This Row],[2026/27 To - Spending review Topic 4]]+Dataset[[#This Row],[2026/27 To - Other reallocations]]","v":0},{"$f":"Dataset[[#This Row],[2027/28 To - Spending review Topic 1]]+Dataset[[#This Row],[2027/28 To - Spending review Topic 2]]+Dataset[[#This Row],[2027/28 To - Spending review Topic 3]]+Dataset[[#This Row],[2027/28 To - Spending review Topic 4]]+Dataset[[#This Row],[2027/28 To - Other reallocations]]","v":0},{"$f":"Dataset[[#This Row],[2025/26 Reduction]]+Dataset[[#This Row],[2025/26 From - Total]]","v":0},{"$f":"Dataset[[#This Row],[2026/27 Reduction]]+Dataset[[#This Row],[2026/27 From - Total]]","v":0},{"$f":"Dataset[[#This Row],[2027/28 Reduction]]+Dataset[[#This Row],[2027/28 From - Total]]","v":0},{"$f":"Dataset[[#This Row],[2024/25 Reduction]]","v":0},{"$f":"SUM(Dataset[[#This Row],[2025/26 Reduction]],Dataset[[#This Row],[2025/26 From - Total]],Dataset[[#This Row],[2025/26 To - Total]])","v":0},{"$f":"SUM(Dataset[[#This Row],[2026/27 Reduction]],Dataset[[#This Row],[2026/27 From - Total]],Dataset[[#This Row],[2026/27 To - Total]])","v":0},{"$f":"SUM(Dataset[[#This Row],[2027/28 Reduction]],Dataset[[#This Row],[2027/28 From - Total]],Dataset[[#This Row],[2027/28 To - Total]])","v":0},{"$f":"Dataset[[#This Row],[2024/25 Baseline]]+Dataset[[#This Row],[2024/25 Total change]]","v":0},{"$f":"Dataset[[#This Row],[2025/26 Baseline]]+Dataset[[#This Row],[2025/26 Total change]]","v":0},{"$f":"Dataset[[#This Row],[2026/27 Baseline]]+Dataset[[#This Row],[2026/27 Total change]]","v":0},{"$f":"Dataset[[#This Row],[2027/28 Baseline]]+Dataset[[#This Row],[2027/28 Total change]]","v":0}]
["NAT|Non-transfer item","40|Inventory: Food and food supplies","2025_26","MTEC2025",40,4,4,52315,1043,"40","04","04","052315","001043","40|04|04|001043","01","01","02","23","23","01|01|02|23|23","National","Transport","Road Transport","Road Administration Support","Non-transfer item","Current","Current payments","Goods and services","Inventory: Food and food supplies","Inventory: Food and food supplies","Economic development","Economic regulation and infrastructure","NAT",0,0,0,0,0,0,null,0,0,0,0,null,null,null,null,null,null,null,null,null,null,null,null,null,null,null,null,null,null,null,null,null,null,null,null,null,null,null,null,null,null,null,null,null,null,{"$f":"Dataset[[#This Row],[2025/26 From - Spending review Topic 1]]+Dataset[[#This Row],[2025/26 From - Spending review Topic 2]]+Dataset[[#This Row],[2025/26 From - Spending review Topic 3]]+Dataset[[#This Row],[2025/26 From - Spending review Topic 4]]+Dataset[[#This Row],[2025/26 From - Other reallocations]]","v":0},{"$f":"Dataset[[#This Row],[2026/27 From - Spending review Topic 1]]+Dataset[[#This Row],[2026/27 From - Spending review Topic 2]]+Dataset[[#This Row],[2026/27 From - Spending review Topic 3]]+Dataset[[#This Row],[2026/27 From - Spending review Topic 4]]+Dataset[[#This Row],[2026/27 From - Other reallocations]]","v":0},{"$f":"Dataset[[#This Row],[2027/28 From - Spending review Topic 1]]+Dataset[[#This Row],[2027/28 From - Spending review Topic 2]]+Dataset[[#This Row],[2027/28 From - Spending review Topic 3]]+Dataset[[#This Row],[2027/28 From - Spending review Topic 4]]+Dataset[[#This Row],[2027/28 From - Other reallocations]]","v":0},{"$f":"Dataset[[#This Row],[2025/26 To - Spending review Topic 1]]+Dataset[[#This Row],[2025/26 To - Spending review Topic 2]]+Dataset[[#This Row],[2025/26 To - Spending review Topic 3]]+Dataset[[#This Row],[2025/26 To - Spending review Topic 4]]+Dataset[[#This Row],[2025/26 To - Other reallocations]]","v":0},{"$f":"Dataset[[#This Row],[2026/27 To - Spending review Topic 1]]+Dataset[[#This Row],[2026/27 To - Spending review Topic 2]]+Dataset[[#This Row],[2026/27 To - Spending review Topic 3]]+Dataset[[#This Row],[2026/27 To - Spending review Topic 4]]+Dataset[[#This Row],[2026/27 To - Other reallocations]]","v":0},{"$f":"Dataset[[#This Row],[2027/28 To - Spending review Topic 1]]+Dataset[[#This Row],[2027/28 To - Spending review Topic 2]]+Dataset[[#This Row],[2027/28 To - Spending review Topic 3]]+Dataset[[#This Row],[2027/28 To - Spending review Topic 4]]+Dataset[[#This Row],[2027/28 To - Other reallocations]]","v":0},{"$f":"Dataset[[#This Row],[2025/26 Reduction]]+Dataset[[#This Row],[2025/26 From - Total]]","v":0},{"$f":"Dataset[[#This Row],[2026/27 Reduction]]+Dataset[[#This Row],[2026/27 From - Total]]","v":0},{"$f":"Dataset[[#This Row],[2027/28 Reduction]]+Dataset[[#This Row],[2027/28 From - Total]]","v":0},{"$f":"Dataset[[#This Row],[2024/25 Reduction]]","v":0},{"$f":"SUM(Dataset[[#This Row],[2025/26 Reduction]],Dataset[[#This Row],[2025/26 From - Total]],Dataset[[#This Row],[2025/26 To - Total]])","v":0},{"$f":"SUM(Dataset[[#This Row],[2026/27 Reduction]],Dataset[[#This Row],[2026/27 From - Total]],Dataset[[#This Row],[2026/27 To - Total]])","v":0},{"$f":"SUM(Dataset[[#This Row],[2027/28 Reduction]],Dataset[[#This Row],[2027/28 From - Total]],Dataset[[#This Row],[2027/28 To - Total]])","v":0},{"$f":"Dataset[[#This Row],[2024/25 Baseline]]+Dataset[[#This Row],[2024/25 Total change]]","v":0},{"$f":"Dataset[[#This Row],[2025/26 Baseline]]+Dataset[[#This Row],[2025/26 Total change]]","v":0},{"$f":"Dataset[[#This Row],[2026/27 Baseline]]+Dataset[[#This Row],[2026/27 Total change]]","v":0},{"$f":"Dataset[[#This Row],[2027/28 Baseline]]+Dataset[[#This Row],[2027/28 Total change]]","v":0}]
["NAT|Non-transfer item","40|Inventory: Fuel, oil and gas","2025_26","MTEC2025",40,4,4,52316,1044,"40","04","04","052316","001044","40|04|04|001044","01","01","02","24","24","01|01|02|24|24","National","Transport","Road Transport","Road Administration Support","Non-transfer item","Current","Current payments","Goods and services","Inventory: Fuel, oil and gas","Inventory: Fuel, oil and gas","Economic development","Economic regulation and infrastructure","NAT",0,0,0,0,0,0,null,0,0,0,0,null,null,null,null,null,null,null,null,null,null,null,null,null,null,null,null,null,null,null,null,null,null,null,null,null,null,null,null,null,null,null,null,null,null,{"$f":"Dataset[[#This Row],[2025/26 From - Spending review Topic 1]]+Dataset[[#This Row],[2025/26 From - Spending review Topic 2]]+Dataset[[#This Row],[2025/26 From - Spending review Topic 3]]+Dataset[[#This Row],[2025/26 From - Spending review Topic 4]]+Dataset[[#This Row],[2025/26 From - Other reallocations]]","v":0},{"$f":"Dataset[[#This Row],[2026/27 From - Spending review Topic 1]]+Dataset[[#This Row],[2026/27 From - Spending review Topic 2]]+Dataset[[#This Row],[2026/27 From - Spending review Topic 3]]+Dataset[[#This Row],[2026/27 From - Spending review Topic 4]]+Dataset[[#This Row],[2026/27 From - Other reallocations]]","v":0},{"$f":"Dataset[[#This Row],[2027/28 From - Spending review Topic 1]]+Dataset[[#This Row],[2027/28 From - Spending review Topic 2]]+Dataset[[#This Row],[2027/28 From - Spending review Topic 3]]+Dataset[[#This Row],[2027/28 From - Spending review Topic 4]]+Dataset[[#This Row],[2027/28 From - Other reallocations]]","v":0},{"$f":"Dataset[[#This Row],[2025/26 To - Spending review Topic 1]]+Dataset[[#This Row],[2025/26 To - Spending review Topic 2]]+Dataset[[#This Row],[2025/26 To - Spending review Topic 3]]+Dataset[[#This Row],[2025/26 To - Spending review Topic 4]]+Dataset[[#This Row],[2025/26 To - Other reallocations]]","v":0},{"$f":"Dataset[[#This Row],[2026/27 To - Spending review Topic 1]]+Dataset[[#This Row],[2026/27 To - Spending review Topic 2]]+Dataset[[#This Row],[2026/27 To - Spending review Topic 3]]+Dataset[[#This Row],[2026/27 To - Spending review Topic 4]]+Dataset[[#This Row],[2026/27 To - Other reallocations]]","v":0},{"$f":"Dataset[[#This Row],[2027/28 To - Spending review Topic 1]]+Dataset[[#This Row],[2027/28 To - Spending review Topic 2]]+Dataset[[#This Row],[2027/28 To - Spending review Topic 3]]+Dataset[[#This Row],[2027/28 To - Spending review Topic 4]]+Dataset[[#This Row],[2027/28 To - Other reallocations]]","v":0},{"$f":"Dataset[[#This Row],[2025/26 Reduction]]+Dataset[[#This Row],[2025/26 From - Total]]","v":0},{"$f":"Dataset[[#This Row],[2026/27 Reduction]]+Dataset[[#This Row],[2026/27 From - Total]]","v":0},{"$f":"Dataset[[#This Row],[2027/28 Reduction]]+Dataset[[#This Row],[2027/28 From - Total]]","v":0},{"$f":"Dataset[[#This Row],[2024/25 Reduction]]","v":0},{"$f":"SUM(Dataset[[#This Row],[2025/26 Reduction]],Dataset[[#This Row],[2025/26 From - Total]],Dataset[[#This Row],[2025/26 To - Total]])","v":0},{"$f":"SUM(Dataset[[#This Row],[2026/27 Reduction]],Dataset[[#This Row],[2026/27 From - Total]],Dataset[[#This Row],[2026/27 To - Total]])","v":0},{"$f":"SUM(Dataset[[#This Row],[2027/28 Reduction]],Dataset[[#This Row],[2027/28 From - Total]],Dataset[[#This Row],[2027/28 To - Total]])","v":0},{"$f":"Dataset[[#This Row],[2024/25 Baseline]]+Dataset[[#This Row],[2024/25 Total change]]","v":0},{"$f":"Dataset[[#This Row],[2025/26 Baseline]]+Dataset[[#This Row],[2025/26 Total change]]","v":0},{"$f":"Dataset[[#This Row],[2026/27 Baseline]]+Dataset[[#This Row],[2026/27 Total change]]","v":0},{"$f":"Dataset[[#This Row],[2027/28 Baseline]]+Dataset[[#This Row],[2027/28 Total change]]","v":0}]
["NAT|Non-transfer item","40|Property payments","2025_26","MTEC2025",40,4,4,52327,1055,"40","04","04","052327","001055","40|04|04|001055","01","01","02","35","35","01|01|02|35|35","National","Transport","Road Transport","Road Administration Support","Non-transfer item","Current","Current payments","Goods and services","Property payments","Property payments","Economic development","Economic regulation and infrastructure","NAT",0,0,0,0,0,0,null,0,0,0,0,null,null,null,null,null,null,null,null,null,null,null,null,null,null,null,null,null,null,null,null,null,null,null,null,null,null,null,null,null,null,null,null,null,null,{"$f":"Dataset[[#This Row],[2025/26 From - Spending review Topic 1]]+Dataset[[#This Row],[2025/26 From - Spending review Topic 2]]+Dataset[[#This Row],[2025/26 From - Spending review Topic 3]]+Dataset[[#This Row],[2025/26 From - Spending review Topic 4]]+Dataset[[#This Row],[2025/26 From - Other reallocations]]","v":0},{"$f":"Dataset[[#This Row],[2026/27 From - Spending review Topic 1]]+Dataset[[#This Row],[2026/27 From - Spending review Topic 2]]+Dataset[[#This Row],[2026/27 From - Spending review Topic 3]]+Dataset[[#This Row],[2026/27 From - Spending review Topic 4]]+Dataset[[#This Row],[2026/27 From - Other reallocations]]","v":0},{"$f":"Dataset[[#This Row],[2027/28 From - Spending review Topic 1]]+Dataset[[#This Row],[2027/28 From - Spending review Topic 2]]+Dataset[[#This Row],[2027/28 From - Spending review Topic 3]]+Dataset[[#This Row],[2027/28 From - Spending review Topic 4]]+Dataset[[#This Row],[2027/28 From - Other reallocations]]","v":0},{"$f":"Dataset[[#This Row],[2025/26 To - Spending review Topic 1]]+Dataset[[#This Row],[2025/26 To - Spending review Topic 2]]+Dataset[[#This Row],[2025/26 To - Spending review Topic 3]]+Dataset[[#This Row],[2025/26 To - Spending review Topic 4]]+Dataset[[#This Row],[2025/26 To - Other reallocations]]","v":0},{"$f":"Dataset[[#This Row],[2026/27 To - Spending review Topic 1]]+Dataset[[#This Row],[2026/27 To - Spending review Topic 2]]+Dataset[[#This Row],[2026/27 To - Spending review Topic 3]]+Dataset[[#This Row],[2026/27 To - Spending review Topic 4]]+Dataset[[#This Row],[2026/27 To - Other reallocations]]","v":0},{"$f":"Dataset[[#This Row],[2027/28 To - Spending review Topic 1]]+Dataset[[#This Row],[2027/28 To - Spending review Topic 2]]+Dataset[[#This Row],[2027/28 To - Spending review Topic 3]]+Dataset[[#This Row],[2027/28 To - Spending review Topic 4]]+Dataset[[#This Row],[2027/28 To - Other reallocations]]","v":0},{"$f":"Dataset[[#This Row],[2025/26 Reduction]]+Dataset[[#This Row],[2025/26 From - Total]]","v":0},{"$f":"Dataset[[#This Row],[2026/27 Reduction]]+Dataset[[#This Row],[2026/27 From - Total]]","v":0},{"$f":"Dataset[[#This Row],[2027/28 Reduction]]+Dataset[[#This Row],[2027/28 From - Total]]","v":0},{"$f":"Dataset[[#This Row],[2024/25 Reduction]]","v":0},{"$f":"SUM(Dataset[[#This Row],[2025/26 Reduction]],Dataset[[#This Row],[2025/26 From - Total]],Dataset[[#This Row],[2025/26 To - Total]])","v":0},{"$f":"SUM(Dataset[[#This Row],[2026/27 Reduction]],Dataset[[#This Row],[2026/27 From - Total]],Dataset[[#This Row],[2026/27 To - Total]])","v":0},{"$f":"SUM(Dataset[[#This Row],[2027/28 Reduction]],Dataset[[#This Row],[2027/28 From - Total]],Dataset[[#This Row],[2027/28 To - Total]])","v":0},{"$f":"Dataset[[#This Row],[2024/25 Baseline]]+Dataset[[#This Row],[2024/25 Total change]]","v":0},{"$f":"Dataset[[#This Row],[2025/26 Baseline]]+Dataset[[#This Row],[2025/26 Total change]]","v":0},{"$f":"Dataset[[#This Row],[2026/27 Baseline]]+Dataset[[#This Row],[2026/27 Total change]]","v":0},{"$f":"Dataset[[#This Row],[2027/28 Baseline]]+Dataset[[#This Row],[2027/28 Total change]]","v":0}]
["NAT|Non-transfer item","40|Buildings","2025_26","MTEC2025",40,4,4,52335,1063,"40","04","04","052335","001063","40|04|04|001063","02","03","11","54","58","02|03|11|54|58","National","Transport","Road Transport","Road Administration Support","Non-transfer item","Capital","Payments for capital assets","Buildings and other fixed structures","Buildings","Buildings","Economic development","Economic regulation and infrastructure","NAT",0,0,0,0,0,0,null,0,0,0,0,null,null,null,null,null,null,null,null,null,null,null,null,null,null,null,null,null,null,null,null,null,null,null,null,null,null,null,null,null,null,null,null,null,null,{"$f":"Dataset[[#This Row],[2025/26 From - Spending review Topic 1]]+Dataset[[#This Row],[2025/26 From - Spending review Topic 2]]+Dataset[[#This Row],[2025/26 From - Spending review Topic 3]]+Dataset[[#This Row],[2025/26 From - Spending review Topic 4]]+Dataset[[#This Row],[2025/26 From - Other reallocations]]","v":0},{"$f":"Dataset[[#This Row],[2026/27 From - Spending review Topic 1]]+Dataset[[#This Row],[2026/27 From - Spending review Topic 2]]+Dataset[[#This Row],[2026/27 From - Spending review Topic 3]]+Dataset[[#This Row],[2026/27 From - Spending review Topic 4]]+Dataset[[#This Row],[2026/27 From - Other reallocations]]","v":0},{"$f":"Dataset[[#This Row],[2027/28 From - Spending review Topic 1]]+Dataset[[#This Row],[2027/28 From - Spending review Topic 2]]+Dataset[[#This Row],[2027/28 From - Spending review Topic 3]]+Dataset[[#This Row],[2027/28 From - Spending review Topic 4]]+Dataset[[#This Row],[2027/28 From - Other reallocations]]","v":0},{"$f":"Dataset[[#This Row],[2025/26 To - Spending review Topic 1]]+Dataset[[#This Row],[2025/26 To - Spending review Topic 2]]+Dataset[[#This Row],[2025/26 To - Spending review Topic 3]]+Dataset[[#This Row],[2025/26 To - Spending review Topic 4]]+Dataset[[#This Row],[2025/26 To - Other reallocations]]","v":0},{"$f":"Dataset[[#This Row],[2026/27 To - Spending review Topic 1]]+Dataset[[#This Row],[2026/27 To - Spending review Topic 2]]+Dataset[[#This Row],[2026/27 To - Spending review Topic 3]]+Dataset[[#This Row],[2026/27 To - Spending review Topic 4]]+Dataset[[#This Row],[2026/27 To - Other reallocations]]","v":0},{"$f":"Dataset[[#This Row],[2027/28 To - Spending review Topic 1]]+Dataset[[#This Row],[2027/28 To - Spending review Topic 2]]+Dataset[[#This Row],[2027/28 To - Spending review Topic 3]]+Dataset[[#This Row],[2027/28 To - Spending review Topic 4]]+Dataset[[#This Row],[2027/28 To - Other reallocations]]","v":0},{"$f":"Dataset[[#This Row],[2025/26 Reduction]]+Dataset[[#This Row],[2025/26 From - Total]]","v":0},{"$f":"Dataset[[#This Row],[2026/27 Reduction]]+Dataset[[#This Row],[2026/27 From - Total]]","v":0},{"$f":"Dataset[[#This Row],[2027/28 Reduction]]+Dataset[[#This Row],[2027/28 From - Total]]","v":0},{"$f":"Dataset[[#This Row],[2024/25 Reduction]]","v":0},{"$f":"SUM(Dataset[[#This Row],[2025/26 Reduction]],Dataset[[#This Row],[2025/26 From - Total]],Dataset[[#This Row],[2025/26 To - Total]])","v":0},{"$f":"SUM(Dataset[[#This Row],[2026/27 Reduction]],Dataset[[#This Row],[2026/27 From - Total]],Dataset[[#This Row],[2026/27 To - Total]])","v":0},{"$f":"SUM(Dataset[[#This Row],[2027/28 Reduction]],Dataset[[#This Row],[2027/28 From - Total]],Dataset[[#This Row],[2027/28 To - Total]])","v":0},{"$f":"Dataset[[#This Row],[2024/25 Baseline]]+Dataset[[#This Row],[2024/25 Total change]]","v":0},{"$f":"Dataset[[#This Row],[2025/26 Baseline]]+Dataset[[#This Row],[2025/26 Total change]]","v":0},{"$f":"Dataset[[#This Row],[2026/27 Baseline]]+Dataset[[#This Row],[2026/27 Total change]]","v":0},{"$f":"Dataset[[#This Row],[2027/28 Baseline]]+Dataset[[#This Row],[2027/28 Total change]]","v":0}]
["NAT|Non-transfer item","40|Other fixed structures","2025_26","MTEC2025",40,4,4,52336,1064,"40","04","04","052336","001064","40|04|04|001064","02","03","11","55","59","02|03|11|55|59","National","Transport","Road Transport","Road Administration Support","Non-transfer item","Capital","Payments for capital assets","Buildings and other fixed structures","Other fixed structures","Other fixed structures","Economic development","Economic regulation and infrastructure","NAT",0,0,0,0,0,0,null,0,0,0,0,null,null,null,null,null,null,null,null,null,null,null,null,null,null,null,null,null,null,null,null,null,null,null,null,null,null,null,null,null,null,null,null,null,null,{"$f":"Dataset[[#This Row],[2025/26 From - Spending review Topic 1]]+Dataset[[#This Row],[2025/26 From - Spending review Topic 2]]+Dataset[[#This Row],[2025/26 From - Spending review Topic 3]]+Dataset[[#This Row],[2025/26 From - Spending review Topic 4]]+Dataset[[#This Row],[2025/26 From - Other reallocations]]","v":0},{"$f":"Dataset[[#This Row],[2026/27 From - Spending review Topic 1]]+Dataset[[#This Row],[2026/27 From - Spending review Topic 2]]+Dataset[[#This Row],[2026/27 From - Spending review Topic 3]]+Dataset[[#This Row],[2026/27 From - Spending review Topic 4]]+Dataset[[#This Row],[2026/27 From - Other reallocations]]","v":0},{"$f":"Dataset[[#This Row],[2027/28 From - Spending review Topic 1]]+Dataset[[#This Row],[2027/28 From - Spending review Topic 2]]+Dataset[[#This Row],[2027/28 From - Spending review Topic 3]]+Dataset[[#This Row],[2027/28 From - Spending review Topic 4]]+Dataset[[#This Row],[2027/28 From - Other reallocations]]","v":0},{"$f":"Dataset[[#This Row],[2025/26 To - Spending review Topic 1]]+Dataset[[#This Row],[2025/26 To - Spending review Topic 2]]+Dataset[[#This Row],[2025/26 To - Spending review Topic 3]]+Dataset[[#This Row],[2025/26 To - Spending review Topic 4]]+Dataset[[#This Row],[2025/26 To - Other reallocations]]","v":0},{"$f":"Dataset[[#This Row],[2026/27 To - Spending review Topic 1]]+Dataset[[#This Row],[2026/27 To - Spending review Topic 2]]+Dataset[[#This Row],[2026/27 To - Spending review Topic 3]]+Dataset[[#This Row],[2026/27 To - Spending review Topic 4]]+Dataset[[#This Row],[2026/27 To - Other reallocations]]","v":0},{"$f":"Dataset[[#This Row],[2027/28 To - Spending review Topic 1]]+Dataset[[#This Row],[2027/28 To - Spending review Topic 2]]+Dataset[[#This Row],[2027/28 To - Spending review Topic 3]]+Dataset[[#This Row],[2027/28 To - Spending review Topic 4]]+Dataset[[#This Row],[2027/28 To - Other reallocations]]","v":0},{"$f":"Dataset[[#This Row],[2025/26 Reduction]]+Dataset[[#This Row],[2025/26 From - Total]]","v":0},{"$f":"Dataset[[#This Row],[2026/27 Reduction]]+Dataset[[#This Row],[2026/27 From - Total]]","v":0},{"$f":"Dataset[[#This Row],[2027/28 Reduction]]+Dataset[[#This Row],[2027/28 From - Total]]","v":0},{"$f":"Dataset[[#This Row],[2024/25 Reduction]]","v":0},{"$f":"SUM(Dataset[[#This Row],[2025/26 Reduction]],Dataset[[#This Row],[2025/26 From - Total]],Dataset[[#This Row],[2025/26 To - Total]])","v":0},{"$f":"SUM(Dataset[[#This Row],[2026/27 Reduction]],Dataset[[#This Row],[2026/27 From - Total]],Dataset[[#This Row],[2026/27 To - Total]])","v":0},{"$f":"SUM(Dataset[[#This Row],[2027/28 Reduction]],Dataset[[#This Row],[2027/28 From - Total]],Dataset[[#This Row],[2027/28 To - Total]])","v":0},{"$f":"Dataset[[#This Row],[2024/25 Baseline]]+Dataset[[#This Row],[2024/25 Total change]]","v":0},{"$f":"Dataset[[#This Row],[2025/26 Baseline]]+Dataset[[#This Row],[2025/26 Total change]]","v":0},{"$f":"Dataset[[#This Row],[2026/27 Baseline]]+Dataset[[#This Row],[2026/27 Total change]]","v":0},{"$f":"Dataset[[#This Row],[2027/28 Baseline]]+Dataset[[#This Row],[2027/28 Total change]]","v":0}]
["NAT|Non-transfer item","40|Minor assets","2025_26","MTEC2025",40,4,5,52348,1076,"40","04","05","052348","001076","40|04|05|001076","01","01","02","05","05","01|01|02|05|05","National","Transport","Road Transport","Road Engineering Standards","Non-transfer item","Current","Current payments","Goods and services","Minor assets","Minor assets","Economic development","Economic regulation and infrastructure","NAT",0,0,0,30,30,30,null,30,31,32,33,null,null,null,null,null,null,null,null,null,null,null,null,null,null,null,null,null,null,null,null,null,null,null,null,null,null,null,null,null,null,null,null,null,null,{"$f":"Dataset[[#This Row],[2025/26 From - Spending review Topic 1]]+Dataset[[#This Row],[2025/26 From - Spending review Topic 2]]+Dataset[[#This Row],[2025/26 From - Spending review Topic 3]]+Dataset[[#This Row],[2025/26 From - Spending review Topic 4]]+Dataset[[#This Row],[2025/26 From - Other reallocations]]","v":0},{"$f":"Dataset[[#This Row],[2026/27 From - Spending review Topic 1]]+Dataset[[#This Row],[2026/27 From - Spending review Topic 2]]+Dataset[[#This Row],[2026/27 From - Spending review Topic 3]]+Dataset[[#This Row],[2026/27 From - Spending review Topic 4]]+Dataset[[#This Row],[2026/27 From - Other reallocations]]","v":0},{"$f":"Dataset[[#This Row],[2027/28 From - Spending review Topic 1]]+Dataset[[#This Row],[2027/28 From - Spending review Topic 2]]+Dataset[[#This Row],[2027/28 From - Spending review Topic 3]]+Dataset[[#This Row],[2027/28 From - Spending review Topic 4]]+Dataset[[#This Row],[2027/28 From - Other reallocations]]","v":0},{"$f":"Dataset[[#This Row],[2025/26 To - Spending review Topic 1]]+Dataset[[#This Row],[2025/26 To - Spending review Topic 2]]+Dataset[[#This Row],[2025/26 To - Spending review Topic 3]]+Dataset[[#This Row],[2025/26 To - Spending review Topic 4]]+Dataset[[#This Row],[2025/26 To - Other reallocations]]","v":0},{"$f":"Dataset[[#This Row],[2026/27 To - Spending review Topic 1]]+Dataset[[#This Row],[2026/27 To - Spending review Topic 2]]+Dataset[[#This Row],[2026/27 To - Spending review Topic 3]]+Dataset[[#This Row],[2026/27 To - Spending review Topic 4]]+Dataset[[#This Row],[2026/27 To - Other reallocations]]","v":0},{"$f":"Dataset[[#This Row],[2027/28 To - Spending review Topic 1]]+Dataset[[#This Row],[2027/28 To - Spending review Topic 2]]+Dataset[[#This Row],[2027/28 To - Spending review Topic 3]]+Dataset[[#This Row],[2027/28 To - Spending review Topic 4]]+Dataset[[#This Row],[2027/28 To - Other reallocations]]","v":0},{"$f":"Dataset[[#This Row],[2025/26 Reduction]]+Dataset[[#This Row],[2025/26 From - Total]]","v":0},{"$f":"Dataset[[#This Row],[2026/27 Reduction]]+Dataset[[#This Row],[2026/27 From - Total]]","v":0},{"$f":"Dataset[[#This Row],[2027/28 Reduction]]+Dataset[[#This Row],[2027/28 From - Total]]","v":0},{"$f":"Dataset[[#This Row],[2024/25 Reduction]]","v":0},{"$f":"SUM(Dataset[[#This Row],[2025/26 Reduction]],Dataset[[#This Row],[2025/26 From - Total]],Dataset[[#This Row],[2025/26 To - Total]])","v":0},{"$f":"SUM(Dataset[[#This Row],[2026/27 Reduction]],Dataset[[#This Row],[2026/27 From - Total]],Dataset[[#This Row],[2026/27 To - Total]])","v":0},{"$f":"SUM(Dataset[[#This Row],[2027/28 Reduction]],Dataset[[#This Row],[2027/28 From - Total]],Dataset[[#This Row],[2027/28 To - Total]])","v":0},{"$f":"Dataset[[#This Row],[2024/25 Baseline]]+Dataset[[#This Row],[2024/25 Total change]]","v":30},{"$f":"Dataset[[#This Row],[2025/26 Baseline]]+Dataset[[#This Row],[2025/26 Total change]]","v":31},{"$f":"Dataset[[#This Row],[2026/27 Baseline]]+Dataset[[#This Row],[2026/27 Total change]]","v":32},{"$f":"Dataset[[#This Row],[2027/28 Baseline]]+Dataset[[#This Row],[2027/28 Total change]]","v":33}]
["NAT|Non-transfer item","40|Laboratory services","2025_26","MTEC2025",40,4,5,52356,1084,"40","04","05","052356","001084","40|04|05|001084","01","01","02","13","13","01|01|02|13|13","National","Transport","Road Transport","Road Engineering Standards","Non-transfer item","Current","Current payments","Goods and services","Laboratory services","Laboratory services","Economic development","Economic regulation and infrastructure","NAT",0,0,0,0,0,0,null,0,0,0,0,null,null,null,null,null,null,null,null,null,null,null,null,null,null,null,null,null,null,null,null,null,null,null,null,null,null,null,null,null,null,null,null,null,null,{"$f":"Dataset[[#This Row],[2025/26 From - Spending review Topic 1]]+Dataset[[#This Row],[2025/26 From - Spending review Topic 2]]+Dataset[[#This Row],[2025/26 From - Spending review Topic 3]]+Dataset[[#This Row],[2025/26 From - Spending review Topic 4]]+Dataset[[#This Row],[2025/26 From - Other reallocations]]","v":0},{"$f":"Dataset[[#This Row],[2026/27 From - Spending review Topic 1]]+Dataset[[#This Row],[2026/27 From - Spending review Topic 2]]+Dataset[[#This Row],[2026/27 From - Spending review Topic 3]]+Dataset[[#This Row],[2026/27 From - Spending review Topic 4]]+Dataset[[#This Row],[2026/27 From - Other reallocations]]","v":0},{"$f":"Dataset[[#This Row],[2027/28 From - Spending review Topic 1]]+Dataset[[#This Row],[2027/28 From - Spending review Topic 2]]+Dataset[[#This Row],[2027/28 From - Spending review Topic 3]]+Dataset[[#This Row],[2027/28 From - Spending review Topic 4]]+Dataset[[#This Row],[2027/28 From - Other reallocations]]","v":0},{"$f":"Dataset[[#This Row],[2025/26 To - Spending review Topic 1]]+Dataset[[#This Row],[2025/26 To - Spending review Topic 2]]+Dataset[[#This Row],[2025/26 To - Spending review Topic 3]]+Dataset[[#This Row],[2025/26 To - Spending review Topic 4]]+Dataset[[#This Row],[2025/26 To - Other reallocations]]","v":0},{"$f":"Dataset[[#This Row],[2026/27 To - Spending review Topic 1]]+Dataset[[#This Row],[2026/27 To - Spending review Topic 2]]+Dataset[[#This Row],[2026/27 To - Spending review Topic 3]]+Dataset[[#This Row],[2026/27 To - Spending review Topic 4]]+Dataset[[#This Row],[2026/27 To - Other reallocations]]","v":0},{"$f":"Dataset[[#This Row],[2027/28 To - Spending review Topic 1]]+Dataset[[#This Row],[2027/28 To - Spending review Topic 2]]+Dataset[[#This Row],[2027/28 To - Spending review Topic 3]]+Dataset[[#This Row],[2027/28 To - Spending review Topic 4]]+Dataset[[#This Row],[2027/28 To - Other reallocations]]","v":0},{"$f":"Dataset[[#This Row],[2025/26 Reduction]]+Dataset[[#This Row],[2025/26 From - Total]]","v":0},{"$f":"Dataset[[#This Row],[2026/27 Reduction]]+Dataset[[#This Row],[2026/27 From - Total]]","v":0},{"$f":"Dataset[[#This Row],[2027/28 Reduction]]+Dataset[[#This Row],[2027/28 From - Total]]","v":0},{"$f":"Dataset[[#This Row],[2024/25 Reduction]]","v":0},{"$f":"SUM(Dataset[[#This Row],[2025/26 Reduction]],Dataset[[#This Row],[2025/26 From - Total]],Dataset[[#This Row],[2025/26 To - Total]])","v":0},{"$f":"SUM(Dataset[[#This Row],[2026/27 Reduction]],Dataset[[#This Row],[2026/27 From - Total]],Dataset[[#This Row],[2026/27 To - Total]])","v":0},{"$f":"SUM(Dataset[[#This Row],[2027/28 Reduction]],Dataset[[#This Row],[2027/28 From - Total]],Dataset[[#This Row],[2027/28 To - Total]])","v":0},{"$f":"Dataset[[#This Row],[2024/25 Baseline]]+Dataset[[#This Row],[2024/25 Total change]]","v":0},{"$f":"Dataset[[#This Row],[2025/26 Baseline]]+Dataset[[#This Row],[2025/26 Total change]]","v":0},{"$f":"Dataset[[#This Row],[2026/27 Baseline]]+Dataset[[#This Row],[2026/27 Total change]]","v":0},{"$f":"Dataset[[#This Row],[2027/28 Baseline]]+Dataset[[#This Row],[2027/28 Total change]]","v":0}]
["NAT|Non-transfer item","40|Legal services (G&S)","2025_26","MTEC2025",40,4,5,52357,1085,"40","04","05","052357","001085","40|04|05|001085","01","01","02","14","14","01|01|02|14|14","National","Transport","Road Transport","Road Engineering Standards","Non-transfer item","Current","Current payments","Goods and services","Legal services (G&S)","Legal services (G&S)","Economic development","Economic regulation and infrastructure","NAT",0,0,0,0,0,0,null,0,0,0,0,null,null,null,null,null,null,null,null,null,null,null,null,null,null,null,null,null,null,null,null,null,null,null,null,null,null,null,null,null,null,null,null,null,null,{"$f":"Dataset[[#This Row],[2025/26 From - Spending review Topic 1]]+Dataset[[#This Row],[2025/26 From - Spending review Topic 2]]+Dataset[[#This Row],[2025/26 From - Spending review Topic 3]]+Dataset[[#This Row],[2025/26 From - Spending review Topic 4]]+Dataset[[#This Row],[2025/26 From - Other reallocations]]","v":0},{"$f":"Dataset[[#This Row],[2026/27 From - Spending review Topic 1]]+Dataset[[#This Row],[2026/27 From - Spending review Topic 2]]+Dataset[[#This Row],[2026/27 From - Spending review Topic 3]]+Dataset[[#This Row],[2026/27 From - Spending review Topic 4]]+Dataset[[#This Row],[2026/27 From - Other reallocations]]","v":0},{"$f":"Dataset[[#This Row],[2027/28 From - Spending review Topic 1]]+Dataset[[#This Row],[2027/28 From - Spending review Topic 2]]+Dataset[[#This Row],[2027/28 From - Spending review Topic 3]]+Dataset[[#This Row],[2027/28 From - Spending review Topic 4]]+Dataset[[#This Row],[2027/28 From - Other reallocations]]","v":0},{"$f":"Dataset[[#This Row],[2025/26 To - Spending review Topic 1]]+Dataset[[#This Row],[2025/26 To - Spending review Topic 2]]+Dataset[[#This Row],[2025/26 To - Spending review Topic 3]]+Dataset[[#This Row],[2025/26 To - Spending review Topic 4]]+Dataset[[#This Row],[2025/26 To - Other reallocations]]","v":0},{"$f":"Dataset[[#This Row],[2026/27 To - Spending review Topic 1]]+Dataset[[#This Row],[2026/27 To - Spending review Topic 2]]+Dataset[[#This Row],[2026/27 To - Spending review Topic 3]]+Dataset[[#This Row],[2026/27 To - Spending review Topic 4]]+Dataset[[#This Row],[2026/27 To - Other reallocations]]","v":0},{"$f":"Dataset[[#This Row],[2027/28 To - Spending review Topic 1]]+Dataset[[#This Row],[2027/28 To - Spending review Topic 2]]+Dataset[[#This Row],[2027/28 To - Spending review Topic 3]]+Dataset[[#This Row],[2027/28 To - Spending review Topic 4]]+Dataset[[#This Row],[2027/28 To - Other reallocations]]","v":0},{"$f":"Dataset[[#This Row],[2025/26 Reduction]]+Dataset[[#This Row],[2025/26 From - Total]]","v":0},{"$f":"Dataset[[#This Row],[2026/27 Reduction]]+Dataset[[#This Row],[2026/27 From - Total]]","v":0},{"$f":"Dataset[[#This Row],[2027/28 Reduction]]+Dataset[[#This Row],[2027/28 From - Total]]","v":0},{"$f":"Dataset[[#This Row],[2024/25 Reduction]]","v":0},{"$f":"SUM(Dataset[[#This Row],[2025/26 Reduction]],Dataset[[#This Row],[2025/26 From - Total]],Dataset[[#This Row],[2025/26 To - Total]])","v":0},{"$f":"SUM(Dataset[[#This Row],[2026/27 Reduction]],Dataset[[#This Row],[2026/27 From - Total]],Dataset[[#This Row],[2026/27 To - Total]])","v":0},{"$f":"SUM(Dataset[[#This Row],[2027/28 Reduction]],Dataset[[#This Row],[2027/28 From - Total]],Dataset[[#This Row],[2027/28 To - Total]])","v":0},{"$f":"Dataset[[#This Row],[2024/25 Baseline]]+Dataset[[#This Row],[2024/25 Total change]]","v":0},{"$f":"Dataset[[#This Row],[2025/26 Baseline]]+Dataset[[#This Row],[2025/26 Total change]]","v":0},{"$f":"Dataset[[#This Row],[2026/27 Baseline]]+Dataset[[#This Row],[2026/27 Total change]]","v":0},{"$f":"Dataset[[#This Row],[2027/28 Baseline]]+Dataset[[#This Row],[2027/28 Total change]]","v":0}]
["NAT|Non-transfer item","40|Inventory: Materials and supplies","2025_26","MTEC2025",40,4,5,52369,1097,"40","04","05","052369","001097","40|04|05|001097","01","01","02","26","26","01|01|02|26|26","National","Transport","Road Transport","Road Engineering Standards","Non-transfer item","Current","Current payments","Goods and services","Inventory: Materials and supplies","Inventory: Materials and supplies","Economic development","Economic regulation and infrastructure","NAT",0,0,0,0,0,0,null,0,0,0,0,null,null,null,null,null,null,null,null,null,null,null,null,null,null,null,null,null,null,null,null,null,null,null,null,null,null,null,null,null,null,null,null,null,null,{"$f":"Dataset[[#This Row],[2025/26 From - Spending review Topic 1]]+Dataset[[#This Row],[2025/26 From - Spending review Topic 2]]+Dataset[[#This Row],[2025/26 From - Spending review Topic 3]]+Dataset[[#This Row],[2025/26 From - Spending review Topic 4]]+Dataset[[#This Row],[2025/26 From - Other reallocations]]","v":0},{"$f":"Dataset[[#This Row],[2026/27 From - Spending review Topic 1]]+Dataset[[#This Row],[2026/27 From - Spending review Topic 2]]+Dataset[[#This Row],[2026/27 From - Spending review Topic 3]]+Dataset[[#This Row],[2026/27 From - Spending review Topic 4]]+Dataset[[#This Row],[2026/27 From - Other reallocations]]","v":0},{"$f":"Dataset[[#This Row],[2027/28 From - Spending review Topic 1]]+Dataset[[#This Row],[2027/28 From - Spending review Topic 2]]+Dataset[[#This Row],[2027/28 From - Spending review Topic 3]]+Dataset[[#This Row],[2027/28 From - Spending review Topic 4]]+Dataset[[#This Row],[2027/28 From - Other reallocations]]","v":0},{"$f":"Dataset[[#This Row],[2025/26 To - Spending review Topic 1]]+Dataset[[#This Row],[2025/26 To - Spending review Topic 2]]+Dataset[[#This Row],[2025/26 To - Spending review Topic 3]]+Dataset[[#This Row],[2025/26 To - Spending review Topic 4]]+Dataset[[#This Row],[2025/26 To - Other reallocations]]","v":0},{"$f":"Dataset[[#This Row],[2026/27 To - Spending review Topic 1]]+Dataset[[#This Row],[2026/27 To - Spending review Topic 2]]+Dataset[[#This Row],[2026/27 To - Spending review Topic 3]]+Dataset[[#This Row],[2026/27 To - Spending review Topic 4]]+Dataset[[#This Row],[2026/27 To - Other reallocations]]","v":0},{"$f":"Dataset[[#This Row],[2027/28 To - Spending review Topic 1]]+Dataset[[#This Row],[2027/28 To - Spending review Topic 2]]+Dataset[[#This Row],[2027/28 To - Spending review Topic 3]]+Dataset[[#This Row],[2027/28 To - Spending review Topic 4]]+Dataset[[#This Row],[2027/28 To - Other reallocations]]","v":0},{"$f":"Dataset[[#This Row],[2025/26 Reduction]]+Dataset[[#This Row],[2025/26 From - Total]]","v":0},{"$f":"Dataset[[#This Row],[2026/27 Reduction]]+Dataset[[#This Row],[2026/27 From - Total]]","v":0},{"$f":"Dataset[[#This Row],[2027/28 Reduction]]+Dataset[[#This Row],[2027/28 From - Total]]","v":0},{"$f":"Dataset[[#This Row],[2024/25 Reduction]]","v":0},{"$f":"SUM(Dataset[[#This Row],[2025/26 Reduction]],Dataset[[#This Row],[2025/26 From - Total]],Dataset[[#This Row],[2025/26 To - Total]])","v":0},{"$f":"SUM(Dataset[[#This Row],[2026/27 Reduction]],Dataset[[#This Row],[2026/27 From - Total]],Dataset[[#This Row],[2026/27 To - Total]])","v":0},{"$f":"SUM(Dataset[[#This Row],[2027/28 Reduction]],Dataset[[#This Row],[2027/28 From - Total]],Dataset[[#This Row],[2027/28 To - Total]])","v":0},{"$f":"Dataset[[#This Row],[2024/25 Baseline]]+Dataset[[#This Row],[2024/25 Total change]]","v":0},{"$f":"Dataset[[#This Row],[2025/26 Baseline]]+Dataset[[#This Row],[2025/26 Total change]]","v":0},{"$f":"Dataset[[#This Row],[2026/27 Baseline]]+Dataset[[#This Row],[2026/27 Total change]]","v":0},{"$f":"Dataset[[#This Row],[2027/28 Baseline]]+Dataset[[#This Row],[2027/28 Total change]]","v":0}]
["NAT|Non-transfer item","40|Rental and hiring","2025_26","MTEC2025",40,4,5,52377,1105,"40","04","05","052377","001105","40|04|05|001105","01","01","02","34","34","01|01|02|34|34","National","Transport","Road Transport","Road Engineering Standards","Non-transfer item","Current","Current payments","Goods and services","Rental and hiring","Rental and hiring","Economic development","Economic regulation and infrastructure","NAT",0,0,0,0,0,0,null,0,0,0,0,null,null,null,null,null,null,null,null,null,null,null,null,null,null,null,null,null,null,null,null,null,null,null,null,null,null,null,null,null,null,null,null,null,null,{"$f":"Dataset[[#This Row],[2025/26 From - Spending review Topic 1]]+Dataset[[#This Row],[2025/26 From - Spending review Topic 2]]+Dataset[[#This Row],[2025/26 From - Spending review Topic 3]]+Dataset[[#This Row],[2025/26 From - Spending review Topic 4]]+Dataset[[#This Row],[2025/26 From - Other reallocations]]","v":0},{"$f":"Dataset[[#This Row],[2026/27 From - Spending review Topic 1]]+Dataset[[#This Row],[2026/27 From - Spending review Topic 2]]+Dataset[[#This Row],[2026/27 From - Spending review Topic 3]]+Dataset[[#This Row],[2026/27 From - Spending review Topic 4]]+Dataset[[#This Row],[2026/27 From - Other reallocations]]","v":0},{"$f":"Dataset[[#This Row],[2027/28 From - Spending review Topic 1]]+Dataset[[#This Row],[2027/28 From - Spending review Topic 2]]+Dataset[[#This Row],[2027/28 From - Spending review Topic 3]]+Dataset[[#This Row],[2027/28 From - Spending review Topic 4]]+Dataset[[#This Row],[2027/28 From - Other reallocations]]","v":0},{"$f":"Dataset[[#This Row],[2025/26 To - Spending review Topic 1]]+Dataset[[#This Row],[2025/26 To - Spending review Topic 2]]+Dataset[[#This Row],[2025/26 To - Spending review Topic 3]]+Dataset[[#This Row],[2025/26 To - Spending review Topic 4]]+Dataset[[#This Row],[2025/26 To - Other reallocations]]","v":0},{"$f":"Dataset[[#This Row],[2026/27 To - Spending review Topic 1]]+Dataset[[#This Row],[2026/27 To - Spending review Topic 2]]+Dataset[[#This Row],[2026/27 To - Spending review Topic 3]]+Dataset[[#This Row],[2026/27 To - Spending review Topic 4]]+Dataset[[#This Row],[2026/27 To - Other reallocations]]","v":0},{"$f":"Dataset[[#This Row],[2027/28 To - Spending review Topic 1]]+Dataset[[#This Row],[2027/28 To - Spending review Topic 2]]+Dataset[[#This Row],[2027/28 To - Spending review Topic 3]]+Dataset[[#This Row],[2027/28 To - Spending review Topic 4]]+Dataset[[#This Row],[2027/28 To - Other reallocations]]","v":0},{"$f":"Dataset[[#This Row],[2025/26 Reduction]]+Dataset[[#This Row],[2025/26 From - Total]]","v":0},{"$f":"Dataset[[#This Row],[2026/27 Reduction]]+Dataset[[#This Row],[2026/27 From - Total]]","v":0},{"$f":"Dataset[[#This Row],[2027/28 Reduction]]+Dataset[[#This Row],[2027/28 From - Total]]","v":0},{"$f":"Dataset[[#This Row],[2024/25 Reduction]]","v":0},{"$f":"SUM(Dataset[[#This Row],[2025/26 Reduction]],Dataset[[#This Row],[2025/26 From - Total]],Dataset[[#This Row],[2025/26 To - Total]])","v":0},{"$f":"SUM(Dataset[[#This Row],[2026/27 Reduction]],Dataset[[#This Row],[2026/27 From - Total]],Dataset[[#This Row],[2026/27 To - Total]])","v":0},{"$f":"SUM(Dataset[[#This Row],[2027/28 Reduction]],Dataset[[#This Row],[2027/28 From - Total]],Dataset[[#This Row],[2027/28 To - Total]])","v":0},{"$f":"Dataset[[#This Row],[2024/25 Baseline]]+Dataset[[#This Row],[2024/25 Total change]]","v":0},{"$f":"Dataset[[#This Row],[2025/26 Baseline]]+Dataset[[#This Row],[2025/26 Total change]]","v":0},{"$f":"Dataset[[#This Row],[2026/27 Baseline]]+Dataset[[#This Row],[2026/27 Total change]]","v":0},{"$f":"Dataset[[#This Row],[2027/28 Baseline]]+Dataset[[#This Row],[2027/28 Total change]]","v":0}]
["NAT|Non-transfer item","40|Operating payments","2025_26","MTEC2025",40,4,5,52382,1110,"40","04","05","052382","001110","40|04|05|001110","01","01","02","39","39","01|01|02|39|39","National","Transport","Road Transport","Road Engineering Standards","Non-transfer item","Current","Current payments","Goods and services","Operating payments","Operating payments","Economic development","Economic regulation and infrastructure","NAT",0,12,0,0,0,0,38,0,0,0,0,null,null,null,null,null,null,null,null,null,null,null,null,null,null,null,null,null,null,null,null,null,null,null,null,null,null,null,null,null,null,null,null,null,null,{"$f":"Dataset[[#This Row],[2025/26 From - Spending review Topic 1]]+Dataset[[#This Row],[2025/26 From - Spending review Topic 2]]+Dataset[[#This Row],[2025/26 From - Spending review Topic 3]]+Dataset[[#This Row],[2025/26 From - Spending review Topic 4]]+Dataset[[#This Row],[2025/26 From - Other reallocations]]","v":0},{"$f":"Dataset[[#This Row],[2026/27 From - Spending review Topic 1]]+Dataset[[#This Row],[2026/27 From - Spending review Topic 2]]+Dataset[[#This Row],[2026/27 From - Spending review Topic 3]]+Dataset[[#This Row],[2026/27 From - Spending review Topic 4]]+Dataset[[#This Row],[2026/27 From - Other reallocations]]","v":0},{"$f":"Dataset[[#This Row],[2027/28 From - Spending review Topic 1]]+Dataset[[#This Row],[2027/28 From - Spending review Topic 2]]+Dataset[[#This Row],[2027/28 From - Spending review Topic 3]]+Dataset[[#This Row],[2027/28 From - Spending review Topic 4]]+Dataset[[#This Row],[2027/28 From - Other reallocations]]","v":0},{"$f":"Dataset[[#This Row],[2025/26 To - Spending review Topic 1]]+Dataset[[#This Row],[2025/26 To - Spending review Topic 2]]+Dataset[[#This Row],[2025/26 To - Spending review Topic 3]]+Dataset[[#This Row],[2025/26 To - Spending review Topic 4]]+Dataset[[#This Row],[2025/26 To - Other reallocations]]","v":0},{"$f":"Dataset[[#This Row],[2026/27 To - Spending review Topic 1]]+Dataset[[#This Row],[2026/27 To - Spending review Topic 2]]+Dataset[[#This Row],[2026/27 To - Spending review Topic 3]]+Dataset[[#This Row],[2026/27 To - Spending review Topic 4]]+Dataset[[#This Row],[2026/27 To - Other reallocations]]","v":0},{"$f":"Dataset[[#This Row],[2027/28 To - Spending review Topic 1]]+Dataset[[#This Row],[2027/28 To - Spending review Topic 2]]+Dataset[[#This Row],[2027/28 To - Spending review Topic 3]]+Dataset[[#This Row],[2027/28 To - Spending review Topic 4]]+Dataset[[#This Row],[2027/28 To - Other reallocations]]","v":0},{"$f":"Dataset[[#This Row],[2025/26 Reduction]]+Dataset[[#This Row],[2025/26 From - Total]]","v":0},{"$f":"Dataset[[#This Row],[2026/27 Reduction]]+Dataset[[#This Row],[2026/27 From - Total]]","v":0},{"$f":"Dataset[[#This Row],[2027/28 Reduction]]+Dataset[[#This Row],[2027/28 From - Total]]","v":0},{"$f":"Dataset[[#This Row],[2024/25 Reduction]]","v":0},{"$f":"SUM(Dataset[[#This Row],[2025/26 Reduction]],Dataset[[#This Row],[2025/26 From - Total]],Dataset[[#This Row],[2025/26 To - Total]])","v":0},{"$f":"SUM(Dataset[[#This Row],[2026/27 Reduction]],Dataset[[#This Row],[2026/27 From - Total]],Dataset[[#This Row],[2026/27 To - Total]])","v":0},{"$f":"SUM(Dataset[[#This Row],[2027/28 Reduction]],Dataset[[#This Row],[2027/28 From - Total]],Dataset[[#This Row],[2027/28 To - Total]])","v":0},{"$f":"Dataset[[#This Row],[2024/25 Baseline]]+Dataset[[#This Row],[2024/25 Total change]]","v":0},{"$f":"Dataset[[#This Row],[2025/26 Baseline]]+Dataset[[#This Row],[2025/26 Total change]]","v":0},{"$f":"Dataset[[#This Row],[2026/27 Baseline]]+Dataset[[#This Row],[2026/27 Total change]]","v":0},{"$f":"Dataset[[#This Row],[2027/28 Baseline]]+Dataset[[#This Row],[2027/28 Total change]]","v":0}]
["NAT|Non-transfer item","40|Heritage assets","2025_26","MTEC2025",40,4,5,52390,1118,"40","04","05","052390","001118","40|04|05|001118","02","03","13","58","62","02|03|13|58|62","National","Transport","Road Transport","Road Engineering Standards","Non-transfer item","Capital","Payments for capital assets","Heritage assets","Heritage assets","Heritage assets","Economic development","Economic regulation and infrastructure","NAT",0,0,0,0,0,0,null,0,0,0,0,null,null,null,null,null,null,null,null,null,null,null,null,null,null,null,null,null,null,null,null,null,null,null,null,null,null,null,null,null,null,null,null,null,null,{"$f":"Dataset[[#This Row],[2025/26 From - Spending review Topic 1]]+Dataset[[#This Row],[2025/26 From - Spending review Topic 2]]+Dataset[[#This Row],[2025/26 From - Spending review Topic 3]]+Dataset[[#This Row],[2025/26 From - Spending review Topic 4]]+Dataset[[#This Row],[2025/26 From - Other reallocations]]","v":0},{"$f":"Dataset[[#This Row],[2026/27 From - Spending review Topic 1]]+Dataset[[#This Row],[2026/27 From - Spending review Topic 2]]+Dataset[[#This Row],[2026/27 From - Spending review Topic 3]]+Dataset[[#This Row],[2026/27 From - Spending review Topic 4]]+Dataset[[#This Row],[2026/27 From - Other reallocations]]","v":0},{"$f":"Dataset[[#This Row],[2027/28 From - Spending review Topic 1]]+Dataset[[#This Row],[2027/28 From - Spending review Topic 2]]+Dataset[[#This Row],[2027/28 From - Spending review Topic 3]]+Dataset[[#This Row],[2027/28 From - Spending review Topic 4]]+Dataset[[#This Row],[2027/28 From - Other reallocations]]","v":0},{"$f":"Dataset[[#This Row],[2025/26 To - Spending review Topic 1]]+Dataset[[#This Row],[2025/26 To - Spending review Topic 2]]+Dataset[[#This Row],[2025/26 To - Spending review Topic 3]]+Dataset[[#This Row],[2025/26 To - Spending review Topic 4]]+Dataset[[#This Row],[2025/26 To - Other reallocations]]","v":0},{"$f":"Dataset[[#This Row],[2026/27 To - Spending review Topic 1]]+Dataset[[#This Row],[2026/27 To - Spending review Topic 2]]+Dataset[[#This Row],[2026/27 To - Spending review Topic 3]]+Dataset[[#This Row],[2026/27 To - Spending review Topic 4]]+Dataset[[#This Row],[2026/27 To - Other reallocations]]","v":0},{"$f":"Dataset[[#This Row],[2027/28 To - Spending review Topic 1]]+Dataset[[#This Row],[2027/28 To - Spending review Topic 2]]+Dataset[[#This Row],[2027/28 To - Spending review Topic 3]]+Dataset[[#This Row],[2027/28 To - Spending review Topic 4]]+Dataset[[#This Row],[2027/28 To - Other reallocations]]","v":0},{"$f":"Dataset[[#This Row],[2025/26 Reduction]]+Dataset[[#This Row],[2025/26 From - Total]]","v":0},{"$f":"Dataset[[#This Row],[2026/27 Reduction]]+Dataset[[#This Row],[2026/27 From - Total]]","v":0},{"$f":"Dataset[[#This Row],[2027/28 Reduction]]+Dataset[[#This Row],[2027/28 From - Total]]","v":0},{"$f":"Dataset[[#This Row],[2024/25 Reduction]]","v":0},{"$f":"SUM(Dataset[[#This Row],[2025/26 Reduction]],Dataset[[#This Row],[2025/26 From - Total]],Dataset[[#This Row],[2025/26 To - Total]])","v":0},{"$f":"SUM(Dataset[[#This Row],[2026/27 Reduction]],Dataset[[#This Row],[2026/27 From - Total]],Dataset[[#This Row],[2026/27 To - Total]])","v":0},{"$f":"SUM(Dataset[[#This Row],[2027/28 Reduction]],Dataset[[#This Row],[2027/28 From - Total]],Dataset[[#This Row],[2027/28 To - Total]])","v":0},{"$f":"Dataset[[#This Row],[2024/25 Baseline]]+Dataset[[#This Row],[2024/25 Total change]]","v":0},{"$f":"Dataset[[#This Row],[2025/26 Baseline]]+Dataset[[#This Row],[2025/26 Total change]]","v":0},{"$f":"Dataset[[#This Row],[2026/27 Baseline]]+Dataset[[#This Row],[2026/27 Total change]]","v":0},{"$f":"Dataset[[#This Row],[2027/28 Baseline]]+Dataset[[#This Row],[2027/28 Total change]]","v":0}]
["NAT|Non-transfer item","40|Administrative fees","2025_26","MTEC2025",40,5,1,52398,1126,"40","05","01","052398","001126","40|05|01|001126","01","01","02","03","03","01|01|02|03|03","National","Transport","Civil Aviation","Aviation Policy and Regulations","Non-transfer item","Current","Current payments","Goods and services","Administrative fees","Administrative fees","Economic development","Economic regulation and infrastructure","NAT",0,1,1,0,0,0,0,0,0,0,0,null,null,null,null,null,null,null,null,null,null,null,null,null,null,null,null,null,null,null,null,null,null,null,null,null,null,null,null,null,null,null,null,null,null,{"$f":"Dataset[[#This Row],[2025/26 From - Spending review Topic 1]]+Dataset[[#This Row],[2025/26 From - Spending review Topic 2]]+Dataset[[#This Row],[2025/26 From - Spending review Topic 3]]+Dataset[[#This Row],[2025/26 From - Spending review Topic 4]]+Dataset[[#This Row],[2025/26 From - Other reallocations]]","v":0},{"$f":"Dataset[[#This Row],[2026/27 From - Spending review Topic 1]]+Dataset[[#This Row],[2026/27 From - Spending review Topic 2]]+Dataset[[#This Row],[2026/27 From - Spending review Topic 3]]+Dataset[[#This Row],[2026/27 From - Spending review Topic 4]]+Dataset[[#This Row],[2026/27 From - Other reallocations]]","v":0},{"$f":"Dataset[[#This Row],[2027/28 From - Spending review Topic 1]]+Dataset[[#This Row],[2027/28 From - Spending review Topic 2]]+Dataset[[#This Row],[2027/28 From - Spending review Topic 3]]+Dataset[[#This Row],[2027/28 From - Spending review Topic 4]]+Dataset[[#This Row],[2027/28 From - Other reallocations]]","v":0},{"$f":"Dataset[[#This Row],[2025/26 To - Spending review Topic 1]]+Dataset[[#This Row],[2025/26 To - Spending review Topic 2]]+Dataset[[#This Row],[2025/26 To - Spending review Topic 3]]+Dataset[[#This Row],[2025/26 To - Spending review Topic 4]]+Dataset[[#This Row],[2025/26 To - Other reallocations]]","v":0},{"$f":"Dataset[[#This Row],[2026/27 To - Spending review Topic 1]]+Dataset[[#This Row],[2026/27 To - Spending review Topic 2]]+Dataset[[#This Row],[2026/27 To - Spending review Topic 3]]+Dataset[[#This Row],[2026/27 To - Spending review Topic 4]]+Dataset[[#This Row],[2026/27 To - Other reallocations]]","v":0},{"$f":"Dataset[[#This Row],[2027/28 To - Spending review Topic 1]]+Dataset[[#This Row],[2027/28 To - Spending review Topic 2]]+Dataset[[#This Row],[2027/28 To - Spending review Topic 3]]+Dataset[[#This Row],[2027/28 To - Spending review Topic 4]]+Dataset[[#This Row],[2027/28 To - Other reallocations]]","v":0},{"$f":"Dataset[[#This Row],[2025/26 Reduction]]+Dataset[[#This Row],[2025/26 From - Total]]","v":0},{"$f":"Dataset[[#This Row],[2026/27 Reduction]]+Dataset[[#This Row],[2026/27 From - Total]]","v":0},{"$f":"Dataset[[#This Row],[2027/28 Reduction]]+Dataset[[#This Row],[2027/28 From - Total]]","v":0},{"$f":"Dataset[[#This Row],[2024/25 Reduction]]","v":0},{"$f":"SUM(Dataset[[#This Row],[2025/26 Reduction]],Dataset[[#This Row],[2025/26 From - Total]],Dataset[[#This Row],[2025/26 To - Total]])","v":0},{"$f":"SUM(Dataset[[#This Row],[2026/27 Reduction]],Dataset[[#This Row],[2026/27 From - Total]],Dataset[[#This Row],[2026/27 To - Total]])","v":0},{"$f":"SUM(Dataset[[#This Row],[2027/28 Reduction]],Dataset[[#This Row],[2027/28 From - Total]],Dataset[[#This Row],[2027/28 To - Total]])","v":0},{"$f":"Dataset[[#This Row],[2024/25 Baseline]]+Dataset[[#This Row],[2024/25 Total change]]","v":0},{"$f":"Dataset[[#This Row],[2025/26 Baseline]]+Dataset[[#This Row],[2025/26 Total change]]","v":0},{"$f":"Dataset[[#This Row],[2026/27 Baseline]]+Dataset[[#This Row],[2026/27 Total change]]","v":0},{"$f":"Dataset[[#This Row],[2027/28 Baseline]]+Dataset[[#This Row],[2027/28 Total change]]","v":0}]
["NAT|Non-transfer item","40|Catering: Departmental activities","2025_26","MTEC2025",40,5,1,52403,1131,"40","05","01","052403","001131","40|05|01|001131","01","01","02","08","08","01|01|02|08|08","National","Transport","Civil Aviation","Aviation Policy and Regulations","Non-transfer item","Current","Current payments","Goods and services","Catering: Departmental activities","Catering: Departmental activities","Economic development","Economic regulation and infrastructure","NAT",272,0,322,0,500,500,282,0,64,67,70,null,null,null,null,null,null,null,null,null,null,null,null,null,null,null,null,null,null,null,null,null,null,null,null,null,null,null,null,null,null,null,null,null,null,{"$f":"Dataset[[#This Row],[2025/26 From - Spending review Topic 1]]+Dataset[[#This Row],[2025/26 From - Spending review Topic 2]]+Dataset[[#This Row],[2025/26 From - Spending review Topic 3]]+Dataset[[#This Row],[2025/26 From - Spending review Topic 4]]+Dataset[[#This Row],[2025/26 From - Other reallocations]]","v":0},{"$f":"Dataset[[#This Row],[2026/27 From - Spending review Topic 1]]+Dataset[[#This Row],[2026/27 From - Spending review Topic 2]]+Dataset[[#This Row],[2026/27 From - Spending review Topic 3]]+Dataset[[#This Row],[2026/27 From - Spending review Topic 4]]+Dataset[[#This Row],[2026/27 From - Other reallocations]]","v":0},{"$f":"Dataset[[#This Row],[2027/28 From - Spending review Topic 1]]+Dataset[[#This Row],[2027/28 From - Spending review Topic 2]]+Dataset[[#This Row],[2027/28 From - Spending review Topic 3]]+Dataset[[#This Row],[2027/28 From - Spending review Topic 4]]+Dataset[[#This Row],[2027/28 From - Other reallocations]]","v":0},{"$f":"Dataset[[#This Row],[2025/26 To - Spending review Topic 1]]+Dataset[[#This Row],[2025/26 To - Spending review Topic 2]]+Dataset[[#This Row],[2025/26 To - Spending review Topic 3]]+Dataset[[#This Row],[2025/26 To - Spending review Topic 4]]+Dataset[[#This Row],[2025/26 To - Other reallocations]]","v":0},{"$f":"Dataset[[#This Row],[2026/27 To - Spending review Topic 1]]+Dataset[[#This Row],[2026/27 To - Spending review Topic 2]]+Dataset[[#This Row],[2026/27 To - Spending review Topic 3]]+Dataset[[#This Row],[2026/27 To - Spending review Topic 4]]+Dataset[[#This Row],[2026/27 To - Other reallocations]]","v":0},{"$f":"Dataset[[#This Row],[2027/28 To - Spending review Topic 1]]+Dataset[[#This Row],[2027/28 To - Spending review Topic 2]]+Dataset[[#This Row],[2027/28 To - Spending review Topic 3]]+Dataset[[#This Row],[2027/28 To - Spending review Topic 4]]+Dataset[[#This Row],[2027/28 To - Other reallocations]]","v":0},{"$f":"Dataset[[#This Row],[2025/26 Reduction]]+Dataset[[#This Row],[2025/26 From - Total]]","v":0},{"$f":"Dataset[[#This Row],[2026/27 Reduction]]+Dataset[[#This Row],[2026/27 From - Total]]","v":0},{"$f":"Dataset[[#This Row],[2027/28 Reduction]]+Dataset[[#This Row],[2027/28 From - Total]]","v":0},{"$f":"Dataset[[#This Row],[2024/25 Reduction]]","v":0},{"$f":"SUM(Dataset[[#This Row],[2025/26 Reduction]],Dataset[[#This Row],[2025/26 From - Total]],Dataset[[#This Row],[2025/26 To - Total]])","v":0},{"$f":"SUM(Dataset[[#This Row],[2026/27 Reduction]],Dataset[[#This Row],[2026/27 From - Total]],Dataset[[#This Row],[2026/27 To - Total]])","v":0},{"$f":"SUM(Dataset[[#This Row],[2027/28 Reduction]],Dataset[[#This Row],[2027/28 From - Total]],Dataset[[#This Row],[2027/28 To - Total]])","v":0},{"$f":"Dataset[[#This Row],[2024/25 Baseline]]+Dataset[[#This Row],[2024/25 Total change]]","v":0},{"$f":"Dataset[[#This Row],[2025/26 Baseline]]+Dataset[[#This Row],[2025/26 Total change]]","v":64},{"$f":"Dataset[[#This Row],[2026/27 Baseline]]+Dataset[[#This Row],[2026/27 Total change]]","v":67},{"$f":"Dataset[[#This Row],[2027/28 Baseline]]+Dataset[[#This Row],[2027/28 Total change]]","v":70}]
["NAT|Non-transfer item","40|Contractors","2025_26","MTEC2025",40,5,1,52411,1139,"40","05","01","052411","001139","40|05|01|001139","01","01","02","16","16","01|01|02|16|16","National","Transport","Civil Aviation","Aviation Policy and Regulations","Non-transfer item","Current","Current payments","Goods and services","Contractors","Contractors","Economic development","Economic regulation and infrastructure","NAT",325,422,413,207,154,154,904,207,220,233,244,null,null,null,null,null,null,null,null,null,null,null,null,null,null,null,null,null,null,null,null,null,null,null,null,null,null,null,null,null,null,null,null,null,null,{"$f":"Dataset[[#This Row],[2025/26 From - Spending review Topic 1]]+Dataset[[#This Row],[2025/26 From - Spending review Topic 2]]+Dataset[[#This Row],[2025/26 From - Spending review Topic 3]]+Dataset[[#This Row],[2025/26 From - Spending review Topic 4]]+Dataset[[#This Row],[2025/26 From - Other reallocations]]","v":0},{"$f":"Dataset[[#This Row],[2026/27 From - Spending review Topic 1]]+Dataset[[#This Row],[2026/27 From - Spending review Topic 2]]+Dataset[[#This Row],[2026/27 From - Spending review Topic 3]]+Dataset[[#This Row],[2026/27 From - Spending review Topic 4]]+Dataset[[#This Row],[2026/27 From - Other reallocations]]","v":0},{"$f":"Dataset[[#This Row],[2027/28 From - Spending review Topic 1]]+Dataset[[#This Row],[2027/28 From - Spending review Topic 2]]+Dataset[[#This Row],[2027/28 From - Spending review Topic 3]]+Dataset[[#This Row],[2027/28 From - Spending review Topic 4]]+Dataset[[#This Row],[2027/28 From - Other reallocations]]","v":0},{"$f":"Dataset[[#This Row],[2025/26 To - Spending review Topic 1]]+Dataset[[#This Row],[2025/26 To - Spending review Topic 2]]+Dataset[[#This Row],[2025/26 To - Spending review Topic 3]]+Dataset[[#This Row],[2025/26 To - Spending review Topic 4]]+Dataset[[#This Row],[2025/26 To - Other reallocations]]","v":0},{"$f":"Dataset[[#This Row],[2026/27 To - Spending review Topic 1]]+Dataset[[#This Row],[2026/27 To - Spending review Topic 2]]+Dataset[[#This Row],[2026/27 To - Spending review Topic 3]]+Dataset[[#This Row],[2026/27 To - Spending review Topic 4]]+Dataset[[#This Row],[2026/27 To - Other reallocations]]","v":0},{"$f":"Dataset[[#This Row],[2027/28 To - Spending review Topic 1]]+Dataset[[#This Row],[2027/28 To - Spending review Topic 2]]+Dataset[[#This Row],[2027/28 To - Spending review Topic 3]]+Dataset[[#This Row],[2027/28 To - Spending review Topic 4]]+Dataset[[#This Row],[2027/28 To - Other reallocations]]","v":0},{"$f":"Dataset[[#This Row],[2025/26 Reduction]]+Dataset[[#This Row],[2025/26 From - Total]]","v":0},{"$f":"Dataset[[#This Row],[2026/27 Reduction]]+Dataset[[#This Row],[2026/27 From - Total]]","v":0},{"$f":"Dataset[[#This Row],[2027/28 Reduction]]+Dataset[[#This Row],[2027/28 From - Total]]","v":0},{"$f":"Dataset[[#This Row],[2024/25 Reduction]]","v":0},{"$f":"SUM(Dataset[[#This Row],[2025/26 Reduction]],Dataset[[#This Row],[2025/26 From - Total]],Dataset[[#This Row],[2025/26 To - Total]])","v":0},{"$f":"SUM(Dataset[[#This Row],[2026/27 Reduction]],Dataset[[#This Row],[2026/27 From - Total]],Dataset[[#This Row],[2026/27 To - Total]])","v":0},{"$f":"SUM(Dataset[[#This Row],[2027/28 Reduction]],Dataset[[#This Row],[2027/28 From - Total]],Dataset[[#This Row],[2027/28 To - Total]])","v":0},{"$f":"Dataset[[#This Row],[2024/25 Baseline]]+Dataset[[#This Row],[2024/25 Total change]]","v":207},{"$f":"Dataset[[#This Row],[2025/26 Baseline]]+Dataset[[#This Row],[2025/26 Total change]]","v":220},{"$f":"Dataset[[#This Row],[2026/27 Baseline]]+Dataset[[#This Row],[2026/27 Total change]]","v":233},{"$f":"Dataset[[#This Row],[2027/28 Baseline]]+Dataset[[#This Row],[2027/28 Total change]]","v":244}]
["NAT|Non-transfer item","40|Inventory: Clothing material and accessories","2025_26","MTEC2025",40,5,1,52416,1144,"40","05","01","052416","001144","40|05|01|001144","01","01","02","21","21","01|01|02|21|21","National","Transport","Civil Aviation","Aviation Policy and Regulations","Non-transfer item","Current","Current payments","Goods and services","Inventory: Clothing material and accessories","Inventory: Clothing material and accessories","Economic development","Economic regulation and infrastructure","NAT",0,0,0,0,0,0,null,0,0,0,0,null,null,null,null,null,null,null,null,null,null,null,null,null,null,null,null,null,null,null,null,null,null,null,null,null,null,null,null,null,null,null,null,null,null,{"$f":"Dataset[[#This Row],[2025/26 From - Spending review Topic 1]]+Dataset[[#This Row],[2025/26 From - Spending review Topic 2]]+Dataset[[#This Row],[2025/26 From - Spending review Topic 3]]+Dataset[[#This Row],[2025/26 From - Spending review Topic 4]]+Dataset[[#This Row],[2025/26 From - Other reallocations]]","v":0},{"$f":"Dataset[[#This Row],[2026/27 From - Spending review Topic 1]]+Dataset[[#This Row],[2026/27 From - Spending review Topic 2]]+Dataset[[#This Row],[2026/27 From - Spending review Topic 3]]+Dataset[[#This Row],[2026/27 From - Spending review Topic 4]]+Dataset[[#This Row],[2026/27 From - Other reallocations]]","v":0},{"$f":"Dataset[[#This Row],[2027/28 From - Spending review Topic 1]]+Dataset[[#This Row],[2027/28 From - Spending review Topic 2]]+Dataset[[#This Row],[2027/28 From - Spending review Topic 3]]+Dataset[[#This Row],[2027/28 From - Spending review Topic 4]]+Dataset[[#This Row],[2027/28 From - Other reallocations]]","v":0},{"$f":"Dataset[[#This Row],[2025/26 To - Spending review Topic 1]]+Dataset[[#This Row],[2025/26 To - Spending review Topic 2]]+Dataset[[#This Row],[2025/26 To - Spending review Topic 3]]+Dataset[[#This Row],[2025/26 To - Spending review Topic 4]]+Dataset[[#This Row],[2025/26 To - Other reallocations]]","v":0},{"$f":"Dataset[[#This Row],[2026/27 To - Spending review Topic 1]]+Dataset[[#This Row],[2026/27 To - Spending review Topic 2]]+Dataset[[#This Row],[2026/27 To - Spending review Topic 3]]+Dataset[[#This Row],[2026/27 To - Spending review Topic 4]]+Dataset[[#This Row],[2026/27 To - Other reallocations]]","v":0},{"$f":"Dataset[[#This Row],[2027/28 To - Spending review Topic 1]]+Dataset[[#This Row],[2027/28 To - Spending review Topic 2]]+Dataset[[#This Row],[2027/28 To - Spending review Topic 3]]+Dataset[[#This Row],[2027/28 To - Spending review Topic 4]]+Dataset[[#This Row],[2027/28 To - Other reallocations]]","v":0},{"$f":"Dataset[[#This Row],[2025/26 Reduction]]+Dataset[[#This Row],[2025/26 From - Total]]","v":0},{"$f":"Dataset[[#This Row],[2026/27 Reduction]]+Dataset[[#This Row],[2026/27 From - Total]]","v":0},{"$f":"Dataset[[#This Row],[2027/28 Reduction]]+Dataset[[#This Row],[2027/28 From - Total]]","v":0},{"$f":"Dataset[[#This Row],[2024/25 Reduction]]","v":0},{"$f":"SUM(Dataset[[#This Row],[2025/26 Reduction]],Dataset[[#This Row],[2025/26 From - Total]],Dataset[[#This Row],[2025/26 To - Total]])","v":0},{"$f":"SUM(Dataset[[#This Row],[2026/27 Reduction]],Dataset[[#This Row],[2026/27 From - Total]],Dataset[[#This Row],[2026/27 To - Total]])","v":0},{"$f":"SUM(Dataset[[#This Row],[2027/28 Reduction]],Dataset[[#This Row],[2027/28 From - Total]],Dataset[[#This Row],[2027/28 To - Total]])","v":0},{"$f":"Dataset[[#This Row],[2024/25 Baseline]]+Dataset[[#This Row],[2024/25 Total change]]","v":0},{"$f":"Dataset[[#This Row],[2025/26 Baseline]]+Dataset[[#This Row],[2025/26 Total change]]","v":0},{"$f":"Dataset[[#This Row],[2026/27 Baseline]]+Dataset[[#This Row],[2026/27 Total change]]","v":0},{"$f":"Dataset[[#This Row],[2027/28 Baseline]]+Dataset[[#This Row],[2027/28 Total change]]","v":0}]
["NAT|Non-transfer item","40|Inventory: Medicine","2025_26","MTEC2025",40,5,1,52423,1151,"40","05","01","052423","001151","40|05|01|001151","01","01","02","28","28","01|01|02|28|28","National","Transport","Civil Aviation","Aviation Policy and Regulations","Non-transfer item","Current","Current payments","Goods and services","Inventory: Medicine","Inventory: Medicine","Economic development","Economic regulation and infrastructure","NAT",0,0,0,0,0,0,null,0,0,0,0,null,null,null,null,null,null,null,null,null,null,null,null,null,null,null,null,null,null,null,null,null,null,null,null,null,null,null,null,null,null,null,null,null,null,{"$f":"Dataset[[#This Row],[2025/26 From - Spending review Topic 1]]+Dataset[[#This Row],[2025/26 From - Spending review Topic 2]]+Dataset[[#This Row],[2025/26 From - Spending review Topic 3]]+Dataset[[#This Row],[2025/26 From - Spending review Topic 4]]+Dataset[[#This Row],[2025/26 From - Other reallocations]]","v":0},{"$f":"Dataset[[#This Row],[2026/27 From - Spending review Topic 1]]+Dataset[[#This Row],[2026/27 From - Spending review Topic 2]]+Dataset[[#This Row],[2026/27 From - Spending review Topic 3]]+Dataset[[#This Row],[2026/27 From - Spending review Topic 4]]+Dataset[[#This Row],[2026/27 From - Other reallocations]]","v":0},{"$f":"Dataset[[#This Row],[2027/28 From - Spending review Topic 1]]+Dataset[[#This Row],[2027/28 From - Spending review Topic 2]]+Dataset[[#This Row],[2027/28 From - Spending review Topic 3]]+Dataset[[#This Row],[2027/28 From - Spending review Topic 4]]+Dataset[[#This Row],[2027/28 From - Other reallocations]]","v":0},{"$f":"Dataset[[#This Row],[2025/26 To - Spending review Topic 1]]+Dataset[[#This Row],[2025/26 To - Spending review Topic 2]]+Dataset[[#This Row],[2025/26 To - Spending review Topic 3]]+Dataset[[#This Row],[2025/26 To - Spending review Topic 4]]+Dataset[[#This Row],[2025/26 To - Other reallocations]]","v":0},{"$f":"Dataset[[#This Row],[2026/27 To - Spending review Topic 1]]+Dataset[[#This Row],[2026/27 To - Spending review Topic 2]]+Dataset[[#This Row],[2026/27 To - Spending review Topic 3]]+Dataset[[#This Row],[2026/27 To - Spending review Topic 4]]+Dataset[[#This Row],[2026/27 To - Other reallocations]]","v":0},{"$f":"Dataset[[#This Row],[2027/28 To - Spending review Topic 1]]+Dataset[[#This Row],[2027/28 To - Spending review Topic 2]]+Dataset[[#This Row],[2027/28 To - Spending review Topic 3]]+Dataset[[#This Row],[2027/28 To - Spending review Topic 4]]+Dataset[[#This Row],[2027/28 To - Other reallocations]]","v":0},{"$f":"Dataset[[#This Row],[2025/26 Reduction]]+Dataset[[#This Row],[2025/26 From - Total]]","v":0},{"$f":"Dataset[[#This Row],[2026/27 Reduction]]+Dataset[[#This Row],[2026/27 From - Total]]","v":0},{"$f":"Dataset[[#This Row],[2027/28 Reduction]]+Dataset[[#This Row],[2027/28 From - Total]]","v":0},{"$f":"Dataset[[#This Row],[2024/25 Reduction]]","v":0},{"$f":"SUM(Dataset[[#This Row],[2025/26 Reduction]],Dataset[[#This Row],[2025/26 From - Total]],Dataset[[#This Row],[2025/26 To - Total]])","v":0},{"$f":"SUM(Dataset[[#This Row],[2026/27 Reduction]],Dataset[[#This Row],[2026/27 From - Total]],Dataset[[#This Row],[2026/27 To - Total]])","v":0},{"$f":"SUM(Dataset[[#This Row],[2027/28 Reduction]],Dataset[[#This Row],[2027/28 From - Total]],Dataset[[#This Row],[2027/28 To - Total]])","v":0},{"$f":"Dataset[[#This Row],[2024/25 Baseline]]+Dataset[[#This Row],[2024/25 Total change]]","v":0},{"$f":"Dataset[[#This Row],[2025/26 Baseline]]+Dataset[[#This Row],[2025/26 Total change]]","v":0},{"$f":"Dataset[[#This Row],[2026/27 Baseline]]+Dataset[[#This Row],[2026/27 Total change]]","v":0},{"$f":"Dataset[[#This Row],[2027/28 Baseline]]+Dataset[[#This Row],[2027/28 Total change]]","v":0}]
["NAT|Non-transfer item","40|Transport provided: Departmental activity","2025_26","MTEC2025",40,5,1,52431,1159,"40","05","01","052431","001159","40|05|01|001159","01","01","02","36","36","01|01|02|36|36","National","Transport","Civil Aviation","Aviation Policy and Regulations","Non-transfer item","Current","Current payments","Goods and services","Transport provided: Departmental activity","Transport provided: Departmental activity","Economic development","Economic regulation and infrastructure","NAT",0,0,0,0,0,0,null,0,0,0,0,null,null,null,null,null,null,null,null,null,null,null,null,null,null,null,null,null,null,null,null,null,null,null,null,null,null,null,null,null,null,null,null,null,null,{"$f":"Dataset[[#This Row],[2025/26 From - Spending review Topic 1]]+Dataset[[#This Row],[2025/26 From - Spending review Topic 2]]+Dataset[[#This Row],[2025/26 From - Spending review Topic 3]]+Dataset[[#This Row],[2025/26 From - Spending review Topic 4]]+Dataset[[#This Row],[2025/26 From - Other reallocations]]","v":0},{"$f":"Dataset[[#This Row],[2026/27 From - Spending review Topic 1]]+Dataset[[#This Row],[2026/27 From - Spending review Topic 2]]+Dataset[[#This Row],[2026/27 From - Spending review Topic 3]]+Dataset[[#This Row],[2026/27 From - Spending review Topic 4]]+Dataset[[#This Row],[2026/27 From - Other reallocations]]","v":0},{"$f":"Dataset[[#This Row],[2027/28 From - Spending review Topic 1]]+Dataset[[#This Row],[2027/28 From - Spending review Topic 2]]+Dataset[[#This Row],[2027/28 From - Spending review Topic 3]]+Dataset[[#This Row],[2027/28 From - Spending review Topic 4]]+Dataset[[#This Row],[2027/28 From - Other reallocations]]","v":0},{"$f":"Dataset[[#This Row],[2025/26 To - Spending review Topic 1]]+Dataset[[#This Row],[2025/26 To - Spending review Topic 2]]+Dataset[[#This Row],[2025/26 To - Spending review Topic 3]]+Dataset[[#This Row],[2025/26 To - Spending review Topic 4]]+Dataset[[#This Row],[2025/26 To - Other reallocations]]","v":0},{"$f":"Dataset[[#This Row],[2026/27 To - Spending review Topic 1]]+Dataset[[#This Row],[2026/27 To - Spending review Topic 2]]+Dataset[[#This Row],[2026/27 To - Spending review Topic 3]]+Dataset[[#This Row],[2026/27 To - Spending review Topic 4]]+Dataset[[#This Row],[2026/27 To - Other reallocations]]","v":0},{"$f":"Dataset[[#This Row],[2027/28 To - Spending review Topic 1]]+Dataset[[#This Row],[2027/28 To - Spending review Topic 2]]+Dataset[[#This Row],[2027/28 To - Spending review Topic 3]]+Dataset[[#This Row],[2027/28 To - Spending review Topic 4]]+Dataset[[#This Row],[2027/28 To - Other reallocations]]","v":0},{"$f":"Dataset[[#This Row],[2025/26 Reduction]]+Dataset[[#This Row],[2025/26 From - Total]]","v":0},{"$f":"Dataset[[#This Row],[2026/27 Reduction]]+Dataset[[#This Row],[2026/27 From - Total]]","v":0},{"$f":"Dataset[[#This Row],[2027/28 Reduction]]+Dataset[[#This Row],[2027/28 From - Total]]","v":0},{"$f":"Dataset[[#This Row],[2024/25 Reduction]]","v":0},{"$f":"SUM(Dataset[[#This Row],[2025/26 Reduction]],Dataset[[#This Row],[2025/26 From - Total]],Dataset[[#This Row],[2025/26 To - Total]])","v":0},{"$f":"SUM(Dataset[[#This Row],[2026/27 Reduction]],Dataset[[#This Row],[2026/27 From - Total]],Dataset[[#This Row],[2026/27 To - Total]])","v":0},{"$f":"SUM(Dataset[[#This Row],[2027/28 Reduction]],Dataset[[#This Row],[2027/28 From - Total]],Dataset[[#This Row],[2027/28 To - Total]])","v":0},{"$f":"Dataset[[#This Row],[2024/25 Baseline]]+Dataset[[#This Row],[2024/25 Total change]]","v":0},{"$f":"Dataset[[#This Row],[2025/26 Baseline]]+Dataset[[#This Row],[2025/26 Total change]]","v":0},{"$f":"Dataset[[#This Row],[2026/27 Baseline]]+Dataset[[#This Row],[2026/27 Total change]]","v":0},{"$f":"Dataset[[#This Row],[2027/28 Baseline]]+Dataset[[#This Row],[2027/28 Total change]]","v":0}]
["NAT|Non-transfer item","40|Interest (Incl. interest on unitary payments (PPP))","2025_26","MTEC2025",40,5,1,52436,1164,"40","05","01","052436","001164","40|05|01|001164","01","01","03","41","41","01|01|03|41|41","National","Transport","Civil Aviation","Aviation Policy and Regulations","Non-transfer item","Current","Current payments","Interest and rent on land","Interest (Incl. interest on unitary payments (PPP))","Interest (Incl. interest on unitary payments (PPP))","Economic development","Economic regulation and infrastructure","NAT",0,61414,0,0,0,0,null,0,0,0,0,null,null,null,null,null,null,null,null,null,null,null,null,null,null,null,null,null,null,null,null,null,null,null,null,null,null,null,null,null,null,null,null,null,null,{"$f":"Dataset[[#This Row],[2025/26 From - Spending review Topic 1]]+Dataset[[#This Row],[2025/26 From - Spending review Topic 2]]+Dataset[[#This Row],[2025/26 From - Spending review Topic 3]]+Dataset[[#This Row],[2025/26 From - Spending review Topic 4]]+Dataset[[#This Row],[2025/26 From - Other reallocations]]","v":0},{"$f":"Dataset[[#This Row],[2026/27 From - Spending review Topic 1]]+Dataset[[#This Row],[2026/27 From - Spending review Topic 2]]+Dataset[[#This Row],[2026/27 From - Spending review Topic 3]]+Dataset[[#This Row],[2026/27 From - Spending review Topic 4]]+Dataset[[#This Row],[2026/27 From - Other reallocations]]","v":0},{"$f":"Dataset[[#This Row],[2027/28 From - Spending review Topic 1]]+Dataset[[#This Row],[2027/28 From - Spending review Topic 2]]+Dataset[[#This Row],[2027/28 From - Spending review Topic 3]]+Dataset[[#This Row],[2027/28 From - Spending review Topic 4]]+Dataset[[#This Row],[2027/28 From - Other reallocations]]","v":0},{"$f":"Dataset[[#This Row],[2025/26 To - Spending review Topic 1]]+Dataset[[#This Row],[2025/26 To - Spending review Topic 2]]+Dataset[[#This Row],[2025/26 To - Spending review Topic 3]]+Dataset[[#This Row],[2025/26 To - Spending review Topic 4]]+Dataset[[#This Row],[2025/26 To - Other reallocations]]","v":0},{"$f":"Dataset[[#This Row],[2026/27 To - Spending review Topic 1]]+Dataset[[#This Row],[2026/27 To - Spending review Topic 2]]+Dataset[[#This Row],[2026/27 To - Spending review Topic 3]]+Dataset[[#This Row],[2026/27 To - Spending review Topic 4]]+Dataset[[#This Row],[2026/27 To - Other reallocations]]","v":0},{"$f":"Dataset[[#This Row],[2027/28 To - Spending review Topic 1]]+Dataset[[#This Row],[2027/28 To - Spending review Topic 2]]+Dataset[[#This Row],[2027/28 To - Spending review Topic 3]]+Dataset[[#This Row],[2027/28 To - Spending review Topic 4]]+Dataset[[#This Row],[2027/28 To - Other reallocations]]","v":0},{"$f":"Dataset[[#This Row],[2025/26 Reduction]]+Dataset[[#This Row],[2025/26 From - Total]]","v":0},{"$f":"Dataset[[#This Row],[2026/27 Reduction]]+Dataset[[#This Row],[2026/27 From - Total]]","v":0},{"$f":"Dataset[[#This Row],[2027/28 Reduction]]+Dataset[[#This Row],[2027/28 From - Total]]","v":0},{"$f":"Dataset[[#This Row],[2024/25 Reduction]]","v":0},{"$f":"SUM(Dataset[[#This Row],[2025/26 Reduction]],Dataset[[#This Row],[2025/26 From - Total]],Dataset[[#This Row],[2025/26 To - Total]])","v":0},{"$f":"SUM(Dataset[[#This Row],[2026/27 Reduction]],Dataset[[#This Row],[2026/27 From - Total]],Dataset[[#This Row],[2026/27 To - Total]])","v":0},{"$f":"SUM(Dataset[[#This Row],[2027/28 Reduction]],Dataset[[#This Row],[2027/28 From - Total]],Dataset[[#This Row],[2027/28 To - Total]])","v":0},{"$f":"Dataset[[#This Row],[2024/25 Baseline]]+Dataset[[#This Row],[2024/25 Total change]]","v":0},{"$f":"Dataset[[#This Row],[2025/26 Baseline]]+Dataset[[#This Row],[2025/26 Total change]]","v":0},{"$f":"Dataset[[#This Row],[2026/27 Baseline]]+Dataset[[#This Row],[2026/27 Total change]]","v":0},{"$f":"Dataset[[#This Row],[2027/28 Baseline]]+Dataset[[#This Row],[2027/28 Total change]]","v":0}]
["NAT|Non-transfer item","40|Specialised military assets","2025_26","MTEC2025",40,5,1,52444,1172,"40","05","01","052444","001172","40|05|01|001172","02","03","14","59","63","02|03|14|59|63","National","Transport","Civil Aviation","Aviation Policy and Regulations","Non-transfer item","Capital","Payments for capital assets","Specialised military assets","Specialised military assets","Specialised military assets","Economic development","Economic regulation and infrastructure","NAT",0,0,0,0,0,0,null,0,0,0,0,null,null,null,null,null,null,null,null,null,null,null,null,null,null,null,null,null,null,null,null,null,null,null,null,null,null,null,null,null,null,null,null,null,null,{"$f":"Dataset[[#This Row],[2025/26 From - Spending review Topic 1]]+Dataset[[#This Row],[2025/26 From - Spending review Topic 2]]+Dataset[[#This Row],[2025/26 From - Spending review Topic 3]]+Dataset[[#This Row],[2025/26 From - Spending review Topic 4]]+Dataset[[#This Row],[2025/26 From - Other reallocations]]","v":0},{"$f":"Dataset[[#This Row],[2026/27 From - Spending review Topic 1]]+Dataset[[#This Row],[2026/27 From - Spending review Topic 2]]+Dataset[[#This Row],[2026/27 From - Spending review Topic 3]]+Dataset[[#This Row],[2026/27 From - Spending review Topic 4]]+Dataset[[#This Row],[2026/27 From - Other reallocations]]","v":0},{"$f":"Dataset[[#This Row],[2027/28 From - Spending review Topic 1]]+Dataset[[#This Row],[2027/28 From - Spending review Topic 2]]+Dataset[[#This Row],[2027/28 From - Spending review Topic 3]]+Dataset[[#This Row],[2027/28 From - Spending review Topic 4]]+Dataset[[#This Row],[2027/28 From - Other reallocations]]","v":0},{"$f":"Dataset[[#This Row],[2025/26 To - Spending review Topic 1]]+Dataset[[#This Row],[2025/26 To - Spending review Topic 2]]+Dataset[[#This Row],[2025/26 To - Spending review Topic 3]]+Dataset[[#This Row],[2025/26 To - Spending review Topic 4]]+Dataset[[#This Row],[2025/26 To - Other reallocations]]","v":0},{"$f":"Dataset[[#This Row],[2026/27 To - Spending review Topic 1]]+Dataset[[#This Row],[2026/27 To - Spending review Topic 2]]+Dataset[[#This Row],[2026/27 To - Spending review Topic 3]]+Dataset[[#This Row],[2026/27 To - Spending review Topic 4]]+Dataset[[#This Row],[2026/27 To - Other reallocations]]","v":0},{"$f":"Dataset[[#This Row],[2027/28 To - Spending review Topic 1]]+Dataset[[#This Row],[2027/28 To - Spending review Topic 2]]+Dataset[[#This Row],[2027/28 To - Spending review Topic 3]]+Dataset[[#This Row],[2027/28 To - Spending review Topic 4]]+Dataset[[#This Row],[2027/28 To - Other reallocations]]","v":0},{"$f":"Dataset[[#This Row],[2025/26 Reduction]]+Dataset[[#This Row],[2025/26 From - Total]]","v":0},{"$f":"Dataset[[#This Row],[2026/27 Reduction]]+Dataset[[#This Row],[2026/27 From - Total]]","v":0},{"$f":"Dataset[[#This Row],[2027/28 Reduction]]+Dataset[[#This Row],[2027/28 From - Total]]","v":0},{"$f":"Dataset[[#This Row],[2024/25 Reduction]]","v":0},{"$f":"SUM(Dataset[[#This Row],[2025/26 Reduction]],Dataset[[#This Row],[2025/26 From - Total]],Dataset[[#This Row],[2025/26 To - Total]])","v":0},{"$f":"SUM(Dataset[[#This Row],[2026/27 Reduction]],Dataset[[#This Row],[2026/27 From - Total]],Dataset[[#This Row],[2026/27 To - Total]])","v":0},{"$f":"SUM(Dataset[[#This Row],[2027/28 Reduction]],Dataset[[#This Row],[2027/28 From - Total]],Dataset[[#This Row],[2027/28 To - Total]])","v":0},{"$f":"Dataset[[#This Row],[2024/25 Baseline]]+Dataset[[#This Row],[2024/25 Total change]]","v":0},{"$f":"Dataset[[#This Row],[2025/26 Baseline]]+Dataset[[#This Row],[2025/26 Total change]]","v":0},{"$f":"Dataset[[#This Row],[2026/27 Baseline]]+Dataset[[#This Row],[2026/27 Total change]]","v":0},{"$f":"Dataset[[#This Row],[2027/28 Baseline]]+Dataset[[#This Row],[2027/28 Total change]]","v":0}]
["NAT|Non-transfer item","40|Advertising","2025_26","MTEC2025",40,5,2,52452,1180,"40","05","02","052452","001180","40|05|02|001180","01","01","02","04","04","01|01|02|04|04","National","Transport","Civil Aviation","Aviation Economic Analysis and Industry Development","Non-transfer item","Current","Current payments","Goods and services","Advertising","Advertising","Economic development","Economic regulation and infrastructure","NAT",0,142,99,0,0,0,1648,161,167,172,180,null,null,null,null,null,null,null,null,null,null,null,null,null,null,null,null,null,null,null,null,null,null,null,null,null,null,null,null,null,null,null,null,null,null,{"$f":"Dataset[[#This Row],[2025/26 From - Spending review Topic 1]]+Dataset[[#This Row],[2025/26 From - Spending review Topic 2]]+Dataset[[#This Row],[2025/26 From - Spending review Topic 3]]+Dataset[[#This Row],[2025/26 From - Spending review Topic 4]]+Dataset[[#This Row],[2025/26 From - Other reallocations]]","v":0},{"$f":"Dataset[[#This Row],[2026/27 From - Spending review Topic 1]]+Dataset[[#This Row],[2026/27 From - Spending review Topic 2]]+Dataset[[#This Row],[2026/27 From - Spending review Topic 3]]+Dataset[[#This Row],[2026/27 From - Spending review Topic 4]]+Dataset[[#This Row],[2026/27 From - Other reallocations]]","v":0},{"$f":"Dataset[[#This Row],[2027/28 From - Spending review Topic 1]]+Dataset[[#This Row],[2027/28 From - Spending review Topic 2]]+Dataset[[#This Row],[2027/28 From - Spending review Topic 3]]+Dataset[[#This Row],[2027/28 From - Spending review Topic 4]]+Dataset[[#This Row],[2027/28 From - Other reallocations]]","v":0},{"$f":"Dataset[[#This Row],[2025/26 To - Spending review Topic 1]]+Dataset[[#This Row],[2025/26 To - Spending review Topic 2]]+Dataset[[#This Row],[2025/26 To - Spending review Topic 3]]+Dataset[[#This Row],[2025/26 To - Spending review Topic 4]]+Dataset[[#This Row],[2025/26 To - Other reallocations]]","v":0},{"$f":"Dataset[[#This Row],[2026/27 To - Spending review Topic 1]]+Dataset[[#This Row],[2026/27 To - Spending review Topic 2]]+Dataset[[#This Row],[2026/27 To - Spending review Topic 3]]+Dataset[[#This Row],[2026/27 To - Spending review Topic 4]]+Dataset[[#This Row],[2026/27 To - Other reallocations]]","v":0},{"$f":"Dataset[[#This Row],[2027/28 To - Spending review Topic 1]]+Dataset[[#This Row],[2027/28 To - Spending review Topic 2]]+Dataset[[#This Row],[2027/28 To - Spending review Topic 3]]+Dataset[[#This Row],[2027/28 To - Spending review Topic 4]]+Dataset[[#This Row],[2027/28 To - Other reallocations]]","v":0},{"$f":"Dataset[[#This Row],[2025/26 Reduction]]+Dataset[[#This Row],[2025/26 From - Total]]","v":0},{"$f":"Dataset[[#This Row],[2026/27 Reduction]]+Dataset[[#This Row],[2026/27 From - Total]]","v":0},{"$f":"Dataset[[#This Row],[2027/28 Reduction]]+Dataset[[#This Row],[2027/28 From - Total]]","v":0},{"$f":"Dataset[[#This Row],[2024/25 Reduction]]","v":0},{"$f":"SUM(Dataset[[#This Row],[2025/26 Reduction]],Dataset[[#This Row],[2025/26 From - Total]],Dataset[[#This Row],[2025/26 To - Total]])","v":0},{"$f":"SUM(Dataset[[#This Row],[2026/27 Reduction]],Dataset[[#This Row],[2026/27 From - Total]],Dataset[[#This Row],[2026/27 To - Total]])","v":0},{"$f":"SUM(Dataset[[#This Row],[2027/28 Reduction]],Dataset[[#This Row],[2027/28 From - Total]],Dataset[[#This Row],[2027/28 To - Total]])","v":0},{"$f":"Dataset[[#This Row],[2024/25 Baseline]]+Dataset[[#This Row],[2024/25 Total change]]","v":161},{"$f":"Dataset[[#This Row],[2025/26 Baseline]]+Dataset[[#This Row],[2025/26 Total change]]","v":167},{"$f":"Dataset[[#This Row],[2026/27 Baseline]]+Dataset[[#This Row],[2026/27 Total change]]","v":172},{"$f":"Dataset[[#This Row],[2027/28 Baseline]]+Dataset[[#This Row],[2027/28 Total change]]","v":180}]
["NAT|Non-transfer item","40|Communication (G&S)","2025_26","MTEC2025",40,5,2,52457,1185,"40","05","02","052457","001185","40|05|02|001185","01","01","02","09","09","01|01|02|09|09","National","Transport","Civil Aviation","Aviation Economic Analysis and Industry Development","Non-transfer item","Current","Current payments","Goods and services","Communication (G&S)","Communication (G&S)","Economic development","Economic regulation and infrastructure","NAT",72,115,123,89,89,89,966,89,92,95,99,null,null,null,null,null,null,null,null,null,null,null,null,null,null,null,null,null,null,null,null,null,null,null,null,null,null,null,null,null,null,null,null,null,null,{"$f":"Dataset[[#This Row],[2025/26 From - Spending review Topic 1]]+Dataset[[#This Row],[2025/26 From - Spending review Topic 2]]+Dataset[[#This Row],[2025/26 From - Spending review Topic 3]]+Dataset[[#This Row],[2025/26 From - Spending review Topic 4]]+Dataset[[#This Row],[2025/26 From - Other reallocations]]","v":0},{"$f":"Dataset[[#This Row],[2026/27 From - Spending review Topic 1]]+Dataset[[#This Row],[2026/27 From - Spending review Topic 2]]+Dataset[[#This Row],[2026/27 From - Spending review Topic 3]]+Dataset[[#This Row],[2026/27 From - Spending review Topic 4]]+Dataset[[#This Row],[2026/27 From - Other reallocations]]","v":0},{"$f":"Dataset[[#This Row],[2027/28 From - Spending review Topic 1]]+Dataset[[#This Row],[2027/28 From - Spending review Topic 2]]+Dataset[[#This Row],[2027/28 From - Spending review Topic 3]]+Dataset[[#This Row],[2027/28 From - Spending review Topic 4]]+Dataset[[#This Row],[2027/28 From - Other reallocations]]","v":0},{"$f":"Dataset[[#This Row],[2025/26 To - Spending review Topic 1]]+Dataset[[#This Row],[2025/26 To - Spending review Topic 2]]+Dataset[[#This Row],[2025/26 To - Spending review Topic 3]]+Dataset[[#This Row],[2025/26 To - Spending review Topic 4]]+Dataset[[#This Row],[2025/26 To - Other reallocations]]","v":0},{"$f":"Dataset[[#This Row],[2026/27 To - Spending review Topic 1]]+Dataset[[#This Row],[2026/27 To - Spending review Topic 2]]+Dataset[[#This Row],[2026/27 To - Spending review Topic 3]]+Dataset[[#This Row],[2026/27 To - Spending review Topic 4]]+Dataset[[#This Row],[2026/27 To - Other reallocations]]","v":0},{"$f":"Dataset[[#This Row],[2027/28 To - Spending review Topic 1]]+Dataset[[#This Row],[2027/28 To - Spending review Topic 2]]+Dataset[[#This Row],[2027/28 To - Spending review Topic 3]]+Dataset[[#This Row],[2027/28 To - Spending review Topic 4]]+Dataset[[#This Row],[2027/28 To - Other reallocations]]","v":0},{"$f":"Dataset[[#This Row],[2025/26 Reduction]]+Dataset[[#This Row],[2025/26 From - Total]]","v":0},{"$f":"Dataset[[#This Row],[2026/27 Reduction]]+Dataset[[#This Row],[2026/27 From - Total]]","v":0},{"$f":"Dataset[[#This Row],[2027/28 Reduction]]+Dataset[[#This Row],[2027/28 From - Total]]","v":0},{"$f":"Dataset[[#This Row],[2024/25 Reduction]]","v":0},{"$f":"SUM(Dataset[[#This Row],[2025/26 Reduction]],Dataset[[#This Row],[2025/26 From - Total]],Dataset[[#This Row],[2025/26 To - Total]])","v":0},{"$f":"SUM(Dataset[[#This Row],[2026/27 Reduction]],Dataset[[#This Row],[2026/27 From - Total]],Dataset[[#This Row],[2026/27 To - Total]])","v":0},{"$f":"SUM(Dataset[[#This Row],[2027/28 Reduction]],Dataset[[#This Row],[2027/28 From - Total]],Dataset[[#This Row],[2027/28 To - Total]])","v":0},{"$f":"Dataset[[#This Row],[2024/25 Baseline]]+Dataset[[#This Row],[2024/25 Total change]]","v":89},{"$f":"Dataset[[#This Row],[2025/26 Baseline]]+Dataset[[#This Row],[2025/26 Total change]]","v":92},{"$f":"Dataset[[#This Row],[2026/27 Baseline]]+Dataset[[#This Row],[2026/27 Total change]]","v":95},{"$f":"Dataset[[#This Row],[2027/28 Baseline]]+Dataset[[#This Row],[2027/28 Total change]]","v":99}]
["NAT|Non-transfer item","40|Agency and support/outsourced services","2025_26","MTEC2025",40,5,2,52465,1193,"40","05","02","052465","001193","40|05|02|001193","01","01","02","17","17","01|01|02|17|17","National","Transport","Civil Aviation","Aviation Economic Analysis and Industry Development","Non-transfer item","Current","Current payments","Goods and services","Agency and support/outsourced services","Agency and support/outsourced services","Economic development","Economic regulation and infrastructure","NAT",0,0,0,0,0,0,null,0,0,0,0,null,null,null,null,null,null,null,null,null,null,null,null,null,null,null,null,null,null,null,null,null,null,null,null,null,null,null,null,null,null,null,null,null,null,{"$f":"Dataset[[#This Row],[2025/26 From - Spending review Topic 1]]+Dataset[[#This Row],[2025/26 From - Spending review Topic 2]]+Dataset[[#This Row],[2025/26 From - Spending review Topic 3]]+Dataset[[#This Row],[2025/26 From - Spending review Topic 4]]+Dataset[[#This Row],[2025/26 From - Other reallocations]]","v":0},{"$f":"Dataset[[#This Row],[2026/27 From - Spending review Topic 1]]+Dataset[[#This Row],[2026/27 From - Spending review Topic 2]]+Dataset[[#This Row],[2026/27 From - Spending review Topic 3]]+Dataset[[#This Row],[2026/27 From - Spending review Topic 4]]+Dataset[[#This Row],[2026/27 From - Other reallocations]]","v":0},{"$f":"Dataset[[#This Row],[2027/28 From - Spending review Topic 1]]+Dataset[[#This Row],[2027/28 From - Spending review Topic 2]]+Dataset[[#This Row],[2027/28 From - Spending review Topic 3]]+Dataset[[#This Row],[2027/28 From - Spending review Topic 4]]+Dataset[[#This Row],[2027/28 From - Other reallocations]]","v":0},{"$f":"Dataset[[#This Row],[2025/26 To - Spending review Topic 1]]+Dataset[[#This Row],[2025/26 To - Spending review Topic 2]]+Dataset[[#This Row],[2025/26 To - Spending review Topic 3]]+Dataset[[#This Row],[2025/26 To - Spending review Topic 4]]+Dataset[[#This Row],[2025/26 To - Other reallocations]]","v":0},{"$f":"Dataset[[#This Row],[2026/27 To - Spending review Topic 1]]+Dataset[[#This Row],[2026/27 To - Spending review Topic 2]]+Dataset[[#This Row],[2026/27 To - Spending review Topic 3]]+Dataset[[#This Row],[2026/27 To - Spending review Topic 4]]+Dataset[[#This Row],[2026/27 To - Other reallocations]]","v":0},{"$f":"Dataset[[#This Row],[2027/28 To - Spending review Topic 1]]+Dataset[[#This Row],[2027/28 To - Spending review Topic 2]]+Dataset[[#This Row],[2027/28 To - Spending review Topic 3]]+Dataset[[#This Row],[2027/28 To - Spending review Topic 4]]+Dataset[[#This Row],[2027/28 To - Other reallocations]]","v":0},{"$f":"Dataset[[#This Row],[2025/26 Reduction]]+Dataset[[#This Row],[2025/26 From - Total]]","v":0},{"$f":"Dataset[[#This Row],[2026/27 Reduction]]+Dataset[[#This Row],[2026/27 From - Total]]","v":0},{"$f":"Dataset[[#This Row],[2027/28 Reduction]]+Dataset[[#This Row],[2027/28 From - Total]]","v":0},{"$f":"Dataset[[#This Row],[2024/25 Reduction]]","v":0},{"$f":"SUM(Dataset[[#This Row],[2025/26 Reduction]],Dataset[[#This Row],[2025/26 From - Total]],Dataset[[#This Row],[2025/26 To - Total]])","v":0},{"$f":"SUM(Dataset[[#This Row],[2026/27 Reduction]],Dataset[[#This Row],[2026/27 From - Total]],Dataset[[#This Row],[2026/27 To - Total]])","v":0},{"$f":"SUM(Dataset[[#This Row],[2027/28 Reduction]],Dataset[[#This Row],[2027/28 From - Total]],Dataset[[#This Row],[2027/28 To - Total]])","v":0},{"$f":"Dataset[[#This Row],[2024/25 Baseline]]+Dataset[[#This Row],[2024/25 Total change]]","v":0},{"$f":"Dataset[[#This Row],[2025/26 Baseline]]+Dataset[[#This Row],[2025/26 Total change]]","v":0},{"$f":"Dataset[[#This Row],[2026/27 Baseline]]+Dataset[[#This Row],[2026/27 Total change]]","v":0},{"$f":"Dataset[[#This Row],[2027/28 Baseline]]+Dataset[[#This Row],[2027/28 Total change]]","v":0}]
["NAT|Non-transfer item","40|Inventory: Farming supplies","2025_26","MTEC2025",40,5,2,52470,1198,"40","05","02","052470","001198","40|05|02|001198","01","01","02","22","22","01|01|02|22|22","National","Transport","Civil Aviation","Aviation Economic Analysis and Industry Development","Non-transfer item","Current","Current payments","Goods and services","Inventory: Farming supplies","Inventory: Farming supplies","Economic development","Economic regulation and infrastructure","NAT",0,0,0,0,0,0,null,0,0,0,0,null,null,null,null,null,null,null,null,null,null,null,null,null,null,null,null,null,null,null,null,null,null,null,null,null,null,null,null,null,null,null,null,null,null,{"$f":"Dataset[[#This Row],[2025/26 From - Spending review Topic 1]]+Dataset[[#This Row],[2025/26 From - Spending review Topic 2]]+Dataset[[#This Row],[2025/26 From - Spending review Topic 3]]+Dataset[[#This Row],[2025/26 From - Spending review Topic 4]]+Dataset[[#This Row],[2025/26 From - Other reallocations]]","v":0},{"$f":"Dataset[[#This Row],[2026/27 From - Spending review Topic 1]]+Dataset[[#This Row],[2026/27 From - Spending review Topic 2]]+Dataset[[#This Row],[2026/27 From - Spending review Topic 3]]+Dataset[[#This Row],[2026/27 From - Spending review Topic 4]]+Dataset[[#This Row],[2026/27 From - Other reallocations]]","v":0},{"$f":"Dataset[[#This Row],[2027/28 From - Spending review Topic 1]]+Dataset[[#This Row],[2027/28 From - Spending review Topic 2]]+Dataset[[#This Row],[2027/28 From - Spending review Topic 3]]+Dataset[[#This Row],[2027/28 From - Spending review Topic 4]]+Dataset[[#This Row],[2027/28 From - Other reallocations]]","v":0},{"$f":"Dataset[[#This Row],[2025/26 To - Spending review Topic 1]]+Dataset[[#This Row],[2025/26 To - Spending review Topic 2]]+Dataset[[#This Row],[2025/26 To - Spending review Topic 3]]+Dataset[[#This Row],[2025/26 To - Spending review Topic 4]]+Dataset[[#This Row],[2025/26 To - Other reallocations]]","v":0},{"$f":"Dataset[[#This Row],[2026/27 To - Spending review Topic 1]]+Dataset[[#This Row],[2026/27 To - Spending review Topic 2]]+Dataset[[#This Row],[2026/27 To - Spending review Topic 3]]+Dataset[[#This Row],[2026/27 To - Spending review Topic 4]]+Dataset[[#This Row],[2026/27 To - Other reallocations]]","v":0},{"$f":"Dataset[[#This Row],[2027/28 To - Spending review Topic 1]]+Dataset[[#This Row],[2027/28 To - Spending review Topic 2]]+Dataset[[#This Row],[2027/28 To - Spending review Topic 3]]+Dataset[[#This Row],[2027/28 To - Spending review Topic 4]]+Dataset[[#This Row],[2027/28 To - Other reallocations]]","v":0},{"$f":"Dataset[[#This Row],[2025/26 Reduction]]+Dataset[[#This Row],[2025/26 From - Total]]","v":0},{"$f":"Dataset[[#This Row],[2026/27 Reduction]]+Dataset[[#This Row],[2026/27 From - Total]]","v":0},{"$f":"Dataset[[#This Row],[2027/28 Reduction]]+Dataset[[#This Row],[2027/28 From - Total]]","v":0},{"$f":"Dataset[[#This Row],[2024/25 Reduction]]","v":0},{"$f":"SUM(Dataset[[#This Row],[2025/26 Reduction]],Dataset[[#This Row],[2025/26 From - Total]],Dataset[[#This Row],[2025/26 To - Total]])","v":0},{"$f":"SUM(Dataset[[#This Row],[2026/27 Reduction]],Dataset[[#This Row],[2026/27 From - Total]],Dataset[[#This Row],[2026/27 To - Total]])","v":0},{"$f":"SUM(Dataset[[#This Row],[2027/28 Reduction]],Dataset[[#This Row],[2027/28 From - Total]],Dataset[[#This Row],[2027/28 To - Total]])","v":0},{"$f":"Dataset[[#This Row],[2024/25 Baseline]]+Dataset[[#This Row],[2024/25 Total change]]","v":0},{"$f":"Dataset[[#This Row],[2025/26 Baseline]]+Dataset[[#This Row],[2025/26 Total change]]","v":0},{"$f":"Dataset[[#This Row],[2026/27 Baseline]]+Dataset[[#This Row],[2026/27 Total change]]","v":0},{"$f":"Dataset[[#This Row],[2027/28 Baseline]]+Dataset[[#This Row],[2027/28 Total change]]","v":0}]
["NAT|Non-transfer item","40|Inventory: Other supplies","2025_26","MTEC2025",40,5,2,52478,1206,"40","05","02","052478","001206","40|05|02|001206","01","01","02","30","30","01|01|02|30|30","National","Transport","Civil Aviation","Aviation Economic Analysis and Industry Development","Non-transfer item","Current","Current payments","Goods and services","Inventory: Other supplies","Inventory: Other supplies","Economic development","Economic regulation and infrastructure","NAT",0,0,0,0,0,0,null,0,0,0,0,null,null,null,null,null,null,null,null,null,null,null,null,null,null,null,null,null,null,null,null,null,null,null,null,null,null,null,null,null,null,null,null,null,null,{"$f":"Dataset[[#This Row],[2025/26 From - Spending review Topic 1]]+Dataset[[#This Row],[2025/26 From - Spending review Topic 2]]+Dataset[[#This Row],[2025/26 From - Spending review Topic 3]]+Dataset[[#This Row],[2025/26 From - Spending review Topic 4]]+Dataset[[#This Row],[2025/26 From - Other reallocations]]","v":0},{"$f":"Dataset[[#This Row],[2026/27 From - Spending review Topic 1]]+Dataset[[#This Row],[2026/27 From - Spending review Topic 2]]+Dataset[[#This Row],[2026/27 From - Spending review Topic 3]]+Dataset[[#This Row],[2026/27 From - Spending review Topic 4]]+Dataset[[#This Row],[2026/27 From - Other reallocations]]","v":0},{"$f":"Dataset[[#This Row],[2027/28 From - Spending review Topic 1]]+Dataset[[#This Row],[2027/28 From - Spending review Topic 2]]+Dataset[[#This Row],[2027/28 From - Spending review Topic 3]]+Dataset[[#This Row],[2027/28 From - Spending review Topic 4]]+Dataset[[#This Row],[2027/28 From - Other reallocations]]","v":0},{"$f":"Dataset[[#This Row],[2025/26 To - Spending review Topic 1]]+Dataset[[#This Row],[2025/26 To - Spending review Topic 2]]+Dataset[[#This Row],[2025/26 To - Spending review Topic 3]]+Dataset[[#This Row],[2025/26 To - Spending review Topic 4]]+Dataset[[#This Row],[2025/26 To - Other reallocations]]","v":0},{"$f":"Dataset[[#This Row],[2026/27 To - Spending review Topic 1]]+Dataset[[#This Row],[2026/27 To - Spending review Topic 2]]+Dataset[[#This Row],[2026/27 To - Spending review Topic 3]]+Dataset[[#This Row],[2026/27 To - Spending review Topic 4]]+Dataset[[#This Row],[2026/27 To - Other reallocations]]","v":0},{"$f":"Dataset[[#This Row],[2027/28 To - Spending review Topic 1]]+Dataset[[#This Row],[2027/28 To - Spending review Topic 2]]+Dataset[[#This Row],[2027/28 To - Spending review Topic 3]]+Dataset[[#This Row],[2027/28 To - Spending review Topic 4]]+Dataset[[#This Row],[2027/28 To - Other reallocations]]","v":0},{"$f":"Dataset[[#This Row],[2025/26 Reduction]]+Dataset[[#This Row],[2025/26 From - Total]]","v":0},{"$f":"Dataset[[#This Row],[2026/27 Reduction]]+Dataset[[#This Row],[2026/27 From - Total]]","v":0},{"$f":"Dataset[[#This Row],[2027/28 Reduction]]+Dataset[[#This Row],[2027/28 From - Total]]","v":0},{"$f":"Dataset[[#This Row],[2024/25 Reduction]]","v":0},{"$f":"SUM(Dataset[[#This Row],[2025/26 Reduction]],Dataset[[#This Row],[2025/26 From - Total]],Dataset[[#This Row],[2025/26 To - Total]])","v":0},{"$f":"SUM(Dataset[[#This Row],[2026/27 Reduction]],Dataset[[#This Row],[2026/27 From - Total]],Dataset[[#This Row],[2026/27 To - Total]])","v":0},{"$f":"SUM(Dataset[[#This Row],[2027/28 Reduction]],Dataset[[#This Row],[2027/28 From - Total]],Dataset[[#This Row],[2027/28 To - Total]])","v":0},{"$f":"Dataset[[#This Row],[2024/25 Baseline]]+Dataset[[#This Row],[2024/25 Total change]]","v":0},{"$f":"Dataset[[#This Row],[2025/26 Baseline]]+Dataset[[#This Row],[2025/26 Total change]]","v":0},{"$f":"Dataset[[#This Row],[2026/27 Baseline]]+Dataset[[#This Row],[2026/27 Total change]]","v":0},{"$f":"Dataset[[#This Row],[2027/28 Baseline]]+Dataset[[#This Row],[2027/28 Total change]]","v":0}]
["NAT|Non-transfer item","40|Training and development","2025_26","MTEC2025",40,5,2,52486,1214,"40","05","02","052486","001214","40|05|02|001214","01","01","02","38","38","01|01|02|38|38","National","Transport","Civil Aviation","Aviation Economic Analysis and Industry Development","Non-transfer item","Current","Current payments","Goods and services","Training and development","Training and development","Economic development","Economic regulation and infrastructure","NAT",0,27,0,0,0,0,null,0,0,0,0,null,null,null,null,null,null,null,null,null,null,null,null,null,null,null,null,null,null,null,null,null,null,null,null,null,null,null,null,null,null,null,null,null,null,{"$f":"Dataset[[#This Row],[2025/26 From - Spending review Topic 1]]+Dataset[[#This Row],[2025/26 From - Spending review Topic 2]]+Dataset[[#This Row],[2025/26 From - Spending review Topic 3]]+Dataset[[#This Row],[2025/26 From - Spending review Topic 4]]+Dataset[[#This Row],[2025/26 From - Other reallocations]]","v":0},{"$f":"Dataset[[#This Row],[2026/27 From - Spending review Topic 1]]+Dataset[[#This Row],[2026/27 From - Spending review Topic 2]]+Dataset[[#This Row],[2026/27 From - Spending review Topic 3]]+Dataset[[#This Row],[2026/27 From - Spending review Topic 4]]+Dataset[[#This Row],[2026/27 From - Other reallocations]]","v":0},{"$f":"Dataset[[#This Row],[2027/28 From - Spending review Topic 1]]+Dataset[[#This Row],[2027/28 From - Spending review Topic 2]]+Dataset[[#This Row],[2027/28 From - Spending review Topic 3]]+Dataset[[#This Row],[2027/28 From - Spending review Topic 4]]+Dataset[[#This Row],[2027/28 From - Other reallocations]]","v":0},{"$f":"Dataset[[#This Row],[2025/26 To - Spending review Topic 1]]+Dataset[[#This Row],[2025/26 To - Spending review Topic 2]]+Dataset[[#This Row],[2025/26 To - Spending review Topic 3]]+Dataset[[#This Row],[2025/26 To - Spending review Topic 4]]+Dataset[[#This Row],[2025/26 To - Other reallocations]]","v":0},{"$f":"Dataset[[#This Row],[2026/27 To - Spending review Topic 1]]+Dataset[[#This Row],[2026/27 To - Spending review Topic 2]]+Dataset[[#This Row],[2026/27 To - Spending review Topic 3]]+Dataset[[#This Row],[2026/27 To - Spending review Topic 4]]+Dataset[[#This Row],[2026/27 To - Other reallocations]]","v":0},{"$f":"Dataset[[#This Row],[2027/28 To - Spending review Topic 1]]+Dataset[[#This Row],[2027/28 To - Spending review Topic 2]]+Dataset[[#This Row],[2027/28 To - Spending review Topic 3]]+Dataset[[#This Row],[2027/28 To - Spending review Topic 4]]+Dataset[[#This Row],[2027/28 To - Other reallocations]]","v":0},{"$f":"Dataset[[#This Row],[2025/26 Reduction]]+Dataset[[#This Row],[2025/26 From - Total]]","v":0},{"$f":"Dataset[[#This Row],[2026/27 Reduction]]+Dataset[[#This Row],[2026/27 From - Total]]","v":0},{"$f":"Dataset[[#This Row],[2027/28 Reduction]]+Dataset[[#This Row],[2027/28 From - Total]]","v":0},{"$f":"Dataset[[#This Row],[2024/25 Reduction]]","v":0},{"$f":"SUM(Dataset[[#This Row],[2025/26 Reduction]],Dataset[[#This Row],[2025/26 From - Total]],Dataset[[#This Row],[2025/26 To - Total]])","v":0},{"$f":"SUM(Dataset[[#This Row],[2026/27 Reduction]],Dataset[[#This Row],[2026/27 From - Total]],Dataset[[#This Row],[2026/27 To - Total]])","v":0},{"$f":"SUM(Dataset[[#This Row],[2027/28 Reduction]],Dataset[[#This Row],[2027/28 From - Total]],Dataset[[#This Row],[2027/28 To - Total]])","v":0},{"$f":"Dataset[[#This Row],[2024/25 Baseline]]+Dataset[[#This Row],[2024/25 Total change]]","v":0},{"$f":"Dataset[[#This Row],[2025/26 Baseline]]+Dataset[[#This Row],[2025/26 Total change]]","v":0},{"$f":"Dataset[[#This Row],[2026/27 Baseline]]+Dataset[[#This Row],[2026/27 Total change]]","v":0},{"$f":"Dataset[[#This Row],[2027/28 Baseline]]+Dataset[[#This Row],[2027/28 Total change]]","v":0}]
["NAT|Non-transfer item","40|Buildings","2025_26","MTEC2025",40,5,2,52491,1219,"40","05","02","052491","001219","40|05|02|001219","02","03","11","54","58","02|03|11|54|58","National","Transport","Civil Aviation","Aviation Economic Analysis and Industry Development","Non-transfer item","Capital","Payments for capital assets","Buildings and other fixed structures","Buildings","Buildings","Economic development","Economic regulation and infrastructure","NAT",0,0,0,0,0,0,null,0,0,0,0,null,null,null,null,null,null,null,null,null,null,null,null,null,null,null,null,null,null,null,null,null,null,null,null,null,null,null,null,null,null,null,null,null,null,{"$f":"Dataset[[#This Row],[2025/26 From - Spending review Topic 1]]+Dataset[[#This Row],[2025/26 From - Spending review Topic 2]]+Dataset[[#This Row],[2025/26 From - Spending review Topic 3]]+Dataset[[#This Row],[2025/26 From - Spending review Topic 4]]+Dataset[[#This Row],[2025/26 From - Other reallocations]]","v":0},{"$f":"Dataset[[#This Row],[2026/27 From - Spending review Topic 1]]+Dataset[[#This Row],[2026/27 From - Spending review Topic 2]]+Dataset[[#This Row],[2026/27 From - Spending review Topic 3]]+Dataset[[#This Row],[2026/27 From - Spending review Topic 4]]+Dataset[[#This Row],[2026/27 From - Other reallocations]]","v":0},{"$f":"Dataset[[#This Row],[2027/28 From - Spending review Topic 1]]+Dataset[[#This Row],[2027/28 From - Spending review Topic 2]]+Dataset[[#This Row],[2027/28 From - Spending review Topic 3]]+Dataset[[#This Row],[2027/28 From - Spending review Topic 4]]+Dataset[[#This Row],[2027/28 From - Other reallocations]]","v":0},{"$f":"Dataset[[#This Row],[2025/26 To - Spending review Topic 1]]+Dataset[[#This Row],[2025/26 To - Spending review Topic 2]]+Dataset[[#This Row],[2025/26 To - Spending review Topic 3]]+Dataset[[#This Row],[2025/26 To - Spending review Topic 4]]+Dataset[[#This Row],[2025/26 To - Other reallocations]]","v":0},{"$f":"Dataset[[#This Row],[2026/27 To - Spending review Topic 1]]+Dataset[[#This Row],[2026/27 To - Spending review Topic 2]]+Dataset[[#This Row],[2026/27 To - Spending review Topic 3]]+Dataset[[#This Row],[2026/27 To - Spending review Topic 4]]+Dataset[[#This Row],[2026/27 To - Other reallocations]]","v":0},{"$f":"Dataset[[#This Row],[2027/28 To - Spending review Topic 1]]+Dataset[[#This Row],[2027/28 To - Spending review Topic 2]]+Dataset[[#This Row],[2027/28 To - Spending review Topic 3]]+Dataset[[#This Row],[2027/28 To - Spending review Topic 4]]+Dataset[[#This Row],[2027/28 To - Other reallocations]]","v":0},{"$f":"Dataset[[#This Row],[2025/26 Reduction]]+Dataset[[#This Row],[2025/26 From - Total]]","v":0},{"$f":"Dataset[[#This Row],[2026/27 Reduction]]+Dataset[[#This Row],[2026/27 From - Total]]","v":0},{"$f":"Dataset[[#This Row],[2027/28 Reduction]]+Dataset[[#This Row],[2027/28 From - Total]]","v":0},{"$f":"Dataset[[#This Row],[2024/25 Reduction]]","v":0},{"$f":"SUM(Dataset[[#This Row],[2025/26 Reduction]],Dataset[[#This Row],[2025/26 From - Total]],Dataset[[#This Row],[2025/26 To - Total]])","v":0},{"$f":"SUM(Dataset[[#This Row],[2026/27 Reduction]],Dataset[[#This Row],[2026/27 From - Total]],Dataset[[#This Row],[2026/27 To - Total]])","v":0},{"$f":"SUM(Dataset[[#This Row],[2027/28 Reduction]],Dataset[[#This Row],[2027/28 From - Total]],Dataset[[#This Row],[2027/28 To - Total]])","v":0},{"$f":"Dataset[[#This Row],[2024/25 Baseline]]+Dataset[[#This Row],[2024/25 Total change]]","v":0},{"$f":"Dataset[[#This Row],[2025/26 Baseline]]+Dataset[[#This Row],[2025/26 Total change]]","v":0},{"$f":"Dataset[[#This Row],[2026/27 Baseline]]+Dataset[[#This Row],[2026/27 Total change]]","v":0},{"$f":"Dataset[[#This Row],[2027/28 Baseline]]+Dataset[[#This Row],[2027/28 Total change]]","v":0}]
["NAT|Non-transfer item","40|Software and other intangible assets","2025_26","MTEC2025",40,5,2,52499,1227,"40","05","02","052499","001227","40|05|02|001227","02","03","17","62","66","02|03|17|62|66","National","Transport","Civil Aviation","Aviation Economic Analysis and Industry Development","Non-transfer item","Capital","Payments for capital assets","Software and other intangible assets","Software and other intangible assets","Software and other intangible assets","Economic development","Economic regulation and infrastructure","NAT",0,0,0,0,0,0,null,0,0,0,0,null,null,null,null,null,null,null,null,null,null,null,null,null,null,null,null,null,null,null,null,null,null,null,null,null,null,null,null,null,null,null,null,null,null,{"$f":"Dataset[[#This Row],[2025/26 From - Spending review Topic 1]]+Dataset[[#This Row],[2025/26 From - Spending review Topic 2]]+Dataset[[#This Row],[2025/26 From - Spending review Topic 3]]+Dataset[[#This Row],[2025/26 From - Spending review Topic 4]]+Dataset[[#This Row],[2025/26 From - Other reallocations]]","v":0},{"$f":"Dataset[[#This Row],[2026/27 From - Spending review Topic 1]]+Dataset[[#This Row],[2026/27 From - Spending review Topic 2]]+Dataset[[#This Row],[2026/27 From - Spending review Topic 3]]+Dataset[[#This Row],[2026/27 From - Spending review Topic 4]]+Dataset[[#This Row],[2026/27 From - Other reallocations]]","v":0},{"$f":"Dataset[[#This Row],[2027/28 From - Spending review Topic 1]]+Dataset[[#This Row],[2027/28 From - Spending review Topic 2]]+Dataset[[#This Row],[2027/28 From - Spending review Topic 3]]+Dataset[[#This Row],[2027/28 From - Spending review Topic 4]]+Dataset[[#This Row],[2027/28 From - Other reallocations]]","v":0},{"$f":"Dataset[[#This Row],[2025/26 To - Spending review Topic 1]]+Dataset[[#This Row],[2025/26 To - Spending review Topic 2]]+Dataset[[#This Row],[2025/26 To - Spending review Topic 3]]+Dataset[[#This Row],[2025/26 To - Spending review Topic 4]]+Dataset[[#This Row],[2025/26 To - Other reallocations]]","v":0},{"$f":"Dataset[[#This Row],[2026/27 To - Spending review Topic 1]]+Dataset[[#This Row],[2026/27 To - Spending review Topic 2]]+Dataset[[#This Row],[2026/27 To - Spending review Topic 3]]+Dataset[[#This Row],[2026/27 To - Spending review Topic 4]]+Dataset[[#This Row],[2026/27 To - Other reallocations]]","v":0},{"$f":"Dataset[[#This Row],[2027/28 To - Spending review Topic 1]]+Dataset[[#This Row],[2027/28 To - Spending review Topic 2]]+Dataset[[#This Row],[2027/28 To - Spending review Topic 3]]+Dataset[[#This Row],[2027/28 To - Spending review Topic 4]]+Dataset[[#This Row],[2027/28 To - Other reallocations]]","v":0},{"$f":"Dataset[[#This Row],[2025/26 Reduction]]+Dataset[[#This Row],[2025/26 From - Total]]","v":0},{"$f":"Dataset[[#This Row],[2026/27 Reduction]]+Dataset[[#This Row],[2026/27 From - Total]]","v":0},{"$f":"Dataset[[#This Row],[2027/28 Reduction]]+Dataset[[#This Row],[2027/28 From - Total]]","v":0},{"$f":"Dataset[[#This Row],[2024/25 Reduction]]","v":0},{"$f":"SUM(Dataset[[#This Row],[2025/26 Reduction]],Dataset[[#This Row],[2025/26 From - Total]],Dataset[[#This Row],[2025/26 To - Total]])","v":0},{"$f":"SUM(Dataset[[#This Row],[2026/27 Reduction]],Dataset[[#This Row],[2026/27 From - Total]],Dataset[[#This Row],[2026/27 To - Total]])","v":0},{"$f":"SUM(Dataset[[#This Row],[2027/28 Reduction]],Dataset[[#This Row],[2027/28 From - Total]],Dataset[[#This Row],[2027/28 To - Total]])","v":0},{"$f":"Dataset[[#This Row],[2024/25 Baseline]]+Dataset[[#This Row],[2024/25 Total change]]","v":0},{"$f":"Dataset[[#This Row],[2025/26 Baseline]]+Dataset[[#This Row],[2025/26 Total change]]","v":0},{"$f":"Dataset[[#This Row],[2026/27 Baseline]]+Dataset[[#This Row],[2026/27 Total change]]","v":0},{"$f":"Dataset[[#This Row],[2027/28 Baseline]]+Dataset[[#This Row],[2027/28 Total change]]","v":0}]
["NAT|Non-transfer item","40|Minor assets","2025_26","MTEC2025",40,5,3,52504,1232,"40","05","03","052504","001232","40|05|03|001232","01","01","02","05","05","01|01|02|05|05","National","Transport","Civil Aviation","Aviation Safety, Security, Environment, and Search and Rescue","Non-transfer item","Current","Current payments","Goods and services","Minor assets","Minor assets","Economic development","Economic regulation and infrastructure","NAT",0,48,25,133,133,133,89,210,220,230,240,null,null,null,null,null,null,null,null,null,null,null,null,null,null,null,null,null,null,null,null,null,null,null,null,null,null,null,null,null,null,null,null,null,null,{"$f":"Dataset[[#This Row],[2025/26 From - Spending review Topic 1]]+Dataset[[#This Row],[2025/26 From - Spending review Topic 2]]+Dataset[[#This Row],[2025/26 From - Spending review Topic 3]]+Dataset[[#This Row],[2025/26 From - Spending review Topic 4]]+Dataset[[#This Row],[2025/26 From - Other reallocations]]","v":0},{"$f":"Dataset[[#This Row],[2026/27 From - Spending review Topic 1]]+Dataset[[#This Row],[2026/27 From - Spending review Topic 2]]+Dataset[[#This Row],[2026/27 From - Spending review Topic 3]]+Dataset[[#This Row],[2026/27 From - Spending review Topic 4]]+Dataset[[#This Row],[2026/27 From - Other reallocations]]","v":0},{"$f":"Dataset[[#This Row],[2027/28 From - Spending review Topic 1]]+Dataset[[#This Row],[2027/28 From - Spending review Topic 2]]+Dataset[[#This Row],[2027/28 From - Spending review Topic 3]]+Dataset[[#This Row],[2027/28 From - Spending review Topic 4]]+Dataset[[#This Row],[2027/28 From - Other reallocations]]","v":0},{"$f":"Dataset[[#This Row],[2025/26 To - Spending review Topic 1]]+Dataset[[#This Row],[2025/26 To - Spending review Topic 2]]+Dataset[[#This Row],[2025/26 To - Spending review Topic 3]]+Dataset[[#This Row],[2025/26 To - Spending review Topic 4]]+Dataset[[#This Row],[2025/26 To - Other reallocations]]","v":0},{"$f":"Dataset[[#This Row],[2026/27 To - Spending review Topic 1]]+Dataset[[#This Row],[2026/27 To - Spending review Topic 2]]+Dataset[[#This Row],[2026/27 To - Spending review Topic 3]]+Dataset[[#This Row],[2026/27 To - Spending review Topic 4]]+Dataset[[#This Row],[2026/27 To - Other reallocations]]","v":0},{"$f":"Dataset[[#This Row],[2027/28 To - Spending review Topic 1]]+Dataset[[#This Row],[2027/28 To - Spending review Topic 2]]+Dataset[[#This Row],[2027/28 To - Spending review Topic 3]]+Dataset[[#This Row],[2027/28 To - Spending review Topic 4]]+Dataset[[#This Row],[2027/28 To - Other reallocations]]","v":0},{"$f":"Dataset[[#This Row],[2025/26 Reduction]]+Dataset[[#This Row],[2025/26 From - Total]]","v":0},{"$f":"Dataset[[#This Row],[2026/27 Reduction]]+Dataset[[#This Row],[2026/27 From - Total]]","v":0},{"$f":"Dataset[[#This Row],[2027/28 Reduction]]+Dataset[[#This Row],[2027/28 From - Total]]","v":0},{"$f":"Dataset[[#This Row],[2024/25 Reduction]]","v":0},{"$f":"SUM(Dataset[[#This Row],[2025/26 Reduction]],Dataset[[#This Row],[2025/26 From - Total]],Dataset[[#This Row],[2025/26 To - Total]])","v":0},{"$f":"SUM(Dataset[[#This Row],[2026/27 Reduction]],Dataset[[#This Row],[2026/27 From - Total]],Dataset[[#This Row],[2026/27 To - Total]])","v":0},{"$f":"SUM(Dataset[[#This Row],[2027/28 Reduction]],Dataset[[#This Row],[2027/28 From - Total]],Dataset[[#This Row],[2027/28 To - Total]])","v":0},{"$f":"Dataset[[#This Row],[2024/25 Baseline]]+Dataset[[#This Row],[2024/25 Total change]]","v":210},{"$f":"Dataset[[#This Row],[2025/26 Baseline]]+Dataset[[#This Row],[2025/26 Total change]]","v":220},{"$f":"Dataset[[#This Row],[2026/27 Baseline]]+Dataset[[#This Row],[2026/27 Total change]]","v":230},{"$f":"Dataset[[#This Row],[2027/28 Baseline]]+Dataset[[#This Row],[2027/28 Total change]]","v":240}]
["NAT|Non-transfer item","40|Laboratory services","2025_26","MTEC2025",40,5,3,52512,1240,"40","05","03","052512","001240","40|05|03|001240","01","01","02","13","13","01|01|02|13|13","National","Transport","Civil Aviation","Aviation Safety, Security, Environment, and Search and Rescue","Non-transfer item","Current","Current payments","Goods and services","Laboratory services","Laboratory services","Economic development","Economic regulation and infrastructure","NAT",0,0,0,0,0,0,null,0,0,0,0,null,null,null,null,null,null,null,null,null,null,null,null,null,null,null,null,null,null,null,null,null,null,null,null,null,null,null,null,null,null,null,null,null,null,{"$f":"Dataset[[#This Row],[2025/26 From - Spending review Topic 1]]+Dataset[[#This Row],[2025/26 From - Spending review Topic 2]]+Dataset[[#This Row],[2025/26 From - Spending review Topic 3]]+Dataset[[#This Row],[2025/26 From - Spending review Topic 4]]+Dataset[[#This Row],[2025/26 From - Other reallocations]]","v":0},{"$f":"Dataset[[#This Row],[2026/27 From - Spending review Topic 1]]+Dataset[[#This Row],[2026/27 From - Spending review Topic 2]]+Dataset[[#This Row],[2026/27 From - Spending review Topic 3]]+Dataset[[#This Row],[2026/27 From - Spending review Topic 4]]+Dataset[[#This Row],[2026/27 From - Other reallocations]]","v":0},{"$f":"Dataset[[#This Row],[2027/28 From - Spending review Topic 1]]+Dataset[[#This Row],[2027/28 From - Spending review Topic 2]]+Dataset[[#This Row],[2027/28 From - Spending review Topic 3]]+Dataset[[#This Row],[2027/28 From - Spending review Topic 4]]+Dataset[[#This Row],[2027/28 From - Other reallocations]]","v":0},{"$f":"Dataset[[#This Row],[2025/26 To - Spending review Topic 1]]+Dataset[[#This Row],[2025/26 To - Spending review Topic 2]]+Dataset[[#This Row],[2025/26 To - Spending review Topic 3]]+Dataset[[#This Row],[2025/26 To - Spending review Topic 4]]+Dataset[[#This Row],[2025/26 To - Other reallocations]]","v":0},{"$f":"Dataset[[#This Row],[2026/27 To - Spending review Topic 1]]+Dataset[[#This Row],[2026/27 To - Spending review Topic 2]]+Dataset[[#This Row],[2026/27 To - Spending review Topic 3]]+Dataset[[#This Row],[2026/27 To - Spending review Topic 4]]+Dataset[[#This Row],[2026/27 To - Other reallocations]]","v":0},{"$f":"Dataset[[#This Row],[2027/28 To - Spending review Topic 1]]+Dataset[[#This Row],[2027/28 To - Spending review Topic 2]]+Dataset[[#This Row],[2027/28 To - Spending review Topic 3]]+Dataset[[#This Row],[2027/28 To - Spending review Topic 4]]+Dataset[[#This Row],[2027/28 To - Other reallocations]]","v":0},{"$f":"Dataset[[#This Row],[2025/26 Reduction]]+Dataset[[#This Row],[2025/26 From - Total]]","v":0},{"$f":"Dataset[[#This Row],[2026/27 Reduction]]+Dataset[[#This Row],[2026/27 From - Total]]","v":0},{"$f":"Dataset[[#This Row],[2027/28 Reduction]]+Dataset[[#This Row],[2027/28 From - Total]]","v":0},{"$f":"Dataset[[#This Row],[2024/25 Reduction]]","v":0},{"$f":"SUM(Dataset[[#This Row],[2025/26 Reduction]],Dataset[[#This Row],[2025/26 From - Total]],Dataset[[#This Row],[2025/26 To - Total]])","v":0},{"$f":"SUM(Dataset[[#This Row],[2026/27 Reduction]],Dataset[[#This Row],[2026/27 From - Total]],Dataset[[#This Row],[2026/27 To - Total]])","v":0},{"$f":"SUM(Dataset[[#This Row],[2027/28 Reduction]],Dataset[[#This Row],[2027/28 From - Total]],Dataset[[#This Row],[2027/28 To - Total]])","v":0},{"$f":"Dataset[[#This Row],[2024/25 Baseline]]+Dataset[[#This Row],[2024/25 Total change]]","v":0},{"$f":"Dataset[[#This Row],[2025/26 Baseline]]+Dataset[[#This Row],[2025/26 Total change]]","v":0},{"$f":"Dataset[[#This Row],[2026/27 Baseline]]+Dataset[[#This Row],[2026/27 Total change]]","v":0},{"$f":"Dataset[[#This Row],[2027/28 Baseline]]+Dataset[[#This Row],[2027/28 Total change]]","v":0}]
["NAT|Non-transfer item","40|Inventory: Clothing material and accessories","2025_26","MTEC2025",40,5,3,52520,1248,"40","05","03","052520","001248","40|05|03|001248","01","01","02","21","21","01|01|02|21|21","National","Transport","Civil Aviation","Aviation Safety, Security, Environment, and Search and Rescue","Non-transfer item","Current","Current payments","Goods and services","Inventory: Clothing material and accessories","Inventory: Clothing material and accessories","Economic development","Economic regulation and infrastructure","NAT",0,0,0,0,0,0,null,0,0,0,0,null,null,null,null,null,null,null,null,null,null,null,null,null,null,null,null,null,null,null,null,null,null,null,null,null,null,null,null,null,null,null,null,null,null,{"$f":"Dataset[[#This Row],[2025/26 From - Spending review Topic 1]]+Dataset[[#This Row],[2025/26 From - Spending review Topic 2]]+Dataset[[#This Row],[2025/26 From - Spending review Topic 3]]+Dataset[[#This Row],[2025/26 From - Spending review Topic 4]]+Dataset[[#This Row],[2025/26 From - Other reallocations]]","v":0},{"$f":"Dataset[[#This Row],[2026/27 From - Spending review Topic 1]]+Dataset[[#This Row],[2026/27 From - Spending review Topic 2]]+Dataset[[#This Row],[2026/27 From - Spending review Topic 3]]+Dataset[[#This Row],[2026/27 From - Spending review Topic 4]]+Dataset[[#This Row],[2026/27 From - Other reallocations]]","v":0},{"$f":"Dataset[[#This Row],[2027/28 From - Spending review Topic 1]]+Dataset[[#This Row],[2027/28 From - Spending review Topic 2]]+Dataset[[#This Row],[2027/28 From - Spending review Topic 3]]+Dataset[[#This Row],[2027/28 From - Spending review Topic 4]]+Dataset[[#This Row],[2027/28 From - Other reallocations]]","v":0},{"$f":"Dataset[[#This Row],[2025/26 To - Spending review Topic 1]]+Dataset[[#This Row],[2025/26 To - Spending review Topic 2]]+Dataset[[#This Row],[2025/26 To - Spending review Topic 3]]+Dataset[[#This Row],[2025/26 To - Spending review Topic 4]]+Dataset[[#This Row],[2025/26 To - Other reallocations]]","v":0},{"$f":"Dataset[[#This Row],[2026/27 To - Spending review Topic 1]]+Dataset[[#This Row],[2026/27 To - Spending review Topic 2]]+Dataset[[#This Row],[2026/27 To - Spending review Topic 3]]+Dataset[[#This Row],[2026/27 To - Spending review Topic 4]]+Dataset[[#This Row],[2026/27 To - Other reallocations]]","v":0},{"$f":"Dataset[[#This Row],[2027/28 To - Spending review Topic 1]]+Dataset[[#This Row],[2027/28 To - Spending review Topic 2]]+Dataset[[#This Row],[2027/28 To - Spending review Topic 3]]+Dataset[[#This Row],[2027/28 To - Spending review Topic 4]]+Dataset[[#This Row],[2027/28 To - Other reallocations]]","v":0},{"$f":"Dataset[[#This Row],[2025/26 Reduction]]+Dataset[[#This Row],[2025/26 From - Total]]","v":0},{"$f":"Dataset[[#This Row],[2026/27 Reduction]]+Dataset[[#This Row],[2026/27 From - Total]]","v":0},{"$f":"Dataset[[#This Row],[2027/28 Reduction]]+Dataset[[#This Row],[2027/28 From - Total]]","v":0},{"$f":"Dataset[[#This Row],[2024/25 Reduction]]","v":0},{"$f":"SUM(Dataset[[#This Row],[2025/26 Reduction]],Dataset[[#This Row],[2025/26 From - Total]],Dataset[[#This Row],[2025/26 To - Total]])","v":0},{"$f":"SUM(Dataset[[#This Row],[2026/27 Reduction]],Dataset[[#This Row],[2026/27 From - Total]],Dataset[[#This Row],[2026/27 To - Total]])","v":0},{"$f":"SUM(Dataset[[#This Row],[2027/28 Reduction]],Dataset[[#This Row],[2027/28 From - Total]],Dataset[[#This Row],[2027/28 To - Total]])","v":0},{"$f":"Dataset[[#This Row],[2024/25 Baseline]]+Dataset[[#This Row],[2024/25 Total change]]","v":0},{"$f":"Dataset[[#This Row],[2025/26 Baseline]]+Dataset[[#This Row],[2025/26 Total change]]","v":0},{"$f":"Dataset[[#This Row],[2026/27 Baseline]]+Dataset[[#This Row],[2026/27 Total change]]","v":0},{"$f":"Dataset[[#This Row],[2027/28 Baseline]]+Dataset[[#This Row],[2027/28 Total change]]","v":0}]
["NAT|Non-transfer item","40|Inventory: Learner and teacher support material","2025_26","MTEC2025",40,5,3,52524,1252,"40","05","03","052524","001252","40|05|03|001252","01","01","02","25","25","01|01|02|25|25","National","Transport","Civil Aviation","Aviation Safety, Security, Environment, and Search and Rescue","Non-transfer item","Current","Current payments","Goods and services","Inventory: Learner and teacher support material","Inventory: Learner and teacher support material","Economic development","Economic regulation and infrastructure","NAT",0,0,0,0,0,0,null,0,0,0,0,null,null,null,null,null,null,null,null,null,null,null,null,null,null,null,null,null,null,null,null,null,null,null,null,null,null,null,null,null,null,null,null,null,null,{"$f":"Dataset[[#This Row],[2025/26 From - Spending review Topic 1]]+Dataset[[#This Row],[2025/26 From - Spending review Topic 2]]+Dataset[[#This Row],[2025/26 From - Spending review Topic 3]]+Dataset[[#This Row],[2025/26 From - Spending review Topic 4]]+Dataset[[#This Row],[2025/26 From - Other reallocations]]","v":0},{"$f":"Dataset[[#This Row],[2026/27 From - Spending review Topic 1]]+Dataset[[#This Row],[2026/27 From - Spending review Topic 2]]+Dataset[[#This Row],[2026/27 From - Spending review Topic 3]]+Dataset[[#This Row],[2026/27 From - Spending review Topic 4]]+Dataset[[#This Row],[2026/27 From - Other reallocations]]","v":0},{"$f":"Dataset[[#This Row],[2027/28 From - Spending review Topic 1]]+Dataset[[#This Row],[2027/28 From - Spending review Topic 2]]+Dataset[[#This Row],[2027/28 From - Spending review Topic 3]]+Dataset[[#This Row],[2027/28 From - Spending review Topic 4]]+Dataset[[#This Row],[2027/28 From - Other reallocations]]","v":0},{"$f":"Dataset[[#This Row],[2025/26 To - Spending review Topic 1]]+Dataset[[#This Row],[2025/26 To - Spending review Topic 2]]+Dataset[[#This Row],[2025/26 To - Spending review Topic 3]]+Dataset[[#This Row],[2025/26 To - Spending review Topic 4]]+Dataset[[#This Row],[2025/26 To - Other reallocations]]","v":0},{"$f":"Dataset[[#This Row],[2026/27 To - Spending review Topic 1]]+Dataset[[#This Row],[2026/27 To - Spending review Topic 2]]+Dataset[[#This Row],[2026/27 To - Spending review Topic 3]]+Dataset[[#This Row],[2026/27 To - Spending review Topic 4]]+Dataset[[#This Row],[2026/27 To - Other reallocations]]","v":0},{"$f":"Dataset[[#This Row],[2027/28 To - Spending review Topic 1]]+Dataset[[#This Row],[2027/28 To - Spending review Topic 2]]+Dataset[[#This Row],[2027/28 To - Spending review Topic 3]]+Dataset[[#This Row],[2027/28 To - Spending review Topic 4]]+Dataset[[#This Row],[2027/28 To - Other reallocations]]","v":0},{"$f":"Dataset[[#This Row],[2025/26 Reduction]]+Dataset[[#This Row],[2025/26 From - Total]]","v":0},{"$f":"Dataset[[#This Row],[2026/27 Reduction]]+Dataset[[#This Row],[2026/27 From - Total]]","v":0},{"$f":"Dataset[[#This Row],[2027/28 Reduction]]+Dataset[[#This Row],[2027/28 From - Total]]","v":0},{"$f":"Dataset[[#This Row],[2024/25 Reduction]]","v":0},{"$f":"SUM(Dataset[[#This Row],[2025/26 Reduction]],Dataset[[#This Row],[2025/26 From - Total]],Dataset[[#This Row],[2025/26 To - Total]])","v":0},{"$f":"SUM(Dataset[[#This Row],[2026/27 Reduction]],Dataset[[#This Row],[2026/27 From - Total]],Dataset[[#This Row],[2026/27 To - Total]])","v":0},{"$f":"SUM(Dataset[[#This Row],[2027/28 Reduction]],Dataset[[#This Row],[2027/28 From - Total]],Dataset[[#This Row],[2027/28 To - Total]])","v":0},{"$f":"Dataset[[#This Row],[2024/25 Baseline]]+Dataset[[#This Row],[2024/25 Total change]]","v":0},{"$f":"Dataset[[#This Row],[2025/26 Baseline]]+Dataset[[#This Row],[2025/26 Total change]]","v":0},{"$f":"Dataset[[#This Row],[2026/27 Baseline]]+Dataset[[#This Row],[2026/27 Total change]]","v":0},{"$f":"Dataset[[#This Row],[2027/28 Baseline]]+Dataset[[#This Row],[2027/28 Total change]]","v":0}]
["NAT|Non-transfer item","40|Operating leases","2025_26","MTEC2025",40,5,3,52532,1260,"40","05","03","052532","001260","40|05|03|001260","01","01","02","33","33","01|01|02|33|33","National","Transport","Civil Aviation","Aviation Safety, Security, Environment, and Search and Rescue","Non-transfer item","Current","Current payments","Goods and services","Operating leases","Operating leases","Economic development","Economic regulation and infrastructure","NAT",0,0,4,0,0,0,null,0,0,0,0,null,null,null,null,null,null,null,null,null,null,null,null,null,null,null,null,null,null,null,null,null,null,null,null,null,null,null,null,null,null,null,null,null,null,{"$f":"Dataset[[#This Row],[2025/26 From - Spending review Topic 1]]+Dataset[[#This Row],[2025/26 From - Spending review Topic 2]]+Dataset[[#This Row],[2025/26 From - Spending review Topic 3]]+Dataset[[#This Row],[2025/26 From - Spending review Topic 4]]+Dataset[[#This Row],[2025/26 From - Other reallocations]]","v":0},{"$f":"Dataset[[#This Row],[2026/27 From - Spending review Topic 1]]+Dataset[[#This Row],[2026/27 From - Spending review Topic 2]]+Dataset[[#This Row],[2026/27 From - Spending review Topic 3]]+Dataset[[#This Row],[2026/27 From - Spending review Topic 4]]+Dataset[[#This Row],[2026/27 From - Other reallocations]]","v":0},{"$f":"Dataset[[#This Row],[2027/28 From - Spending review Topic 1]]+Dataset[[#This Row],[2027/28 From - Spending review Topic 2]]+Dataset[[#This Row],[2027/28 From - Spending review Topic 3]]+Dataset[[#This Row],[2027/28 From - Spending review Topic 4]]+Dataset[[#This Row],[2027/28 From - Other reallocations]]","v":0},{"$f":"Dataset[[#This Row],[2025/26 To - Spending review Topic 1]]+Dataset[[#This Row],[2025/26 To - Spending review Topic 2]]+Dataset[[#This Row],[2025/26 To - Spending review Topic 3]]+Dataset[[#This Row],[2025/26 To - Spending review Topic 4]]+Dataset[[#This Row],[2025/26 To - Other reallocations]]","v":0},{"$f":"Dataset[[#This Row],[2026/27 To - Spending review Topic 1]]+Dataset[[#This Row],[2026/27 To - Spending review Topic 2]]+Dataset[[#This Row],[2026/27 To - Spending review Topic 3]]+Dataset[[#This Row],[2026/27 To - Spending review Topic 4]]+Dataset[[#This Row],[2026/27 To - Other reallocations]]","v":0},{"$f":"Dataset[[#This Row],[2027/28 To - Spending review Topic 1]]+Dataset[[#This Row],[2027/28 To - Spending review Topic 2]]+Dataset[[#This Row],[2027/28 To - Spending review Topic 3]]+Dataset[[#This Row],[2027/28 To - Spending review Topic 4]]+Dataset[[#This Row],[2027/28 To - Other reallocations]]","v":0},{"$f":"Dataset[[#This Row],[2025/26 Reduction]]+Dataset[[#This Row],[2025/26 From - Total]]","v":0},{"$f":"Dataset[[#This Row],[2026/27 Reduction]]+Dataset[[#This Row],[2026/27 From - Total]]","v":0},{"$f":"Dataset[[#This Row],[2027/28 Reduction]]+Dataset[[#This Row],[2027/28 From - Total]]","v":0},{"$f":"Dataset[[#This Row],[2024/25 Reduction]]","v":0},{"$f":"SUM(Dataset[[#This Row],[2025/26 Reduction]],Dataset[[#This Row],[2025/26 From - Total]],Dataset[[#This Row],[2025/26 To - Total]])","v":0},{"$f":"SUM(Dataset[[#This Row],[2026/27 Reduction]],Dataset[[#This Row],[2026/27 From - Total]],Dataset[[#This Row],[2026/27 To - Total]])","v":0},{"$f":"SUM(Dataset[[#This Row],[2027/28 Reduction]],Dataset[[#This Row],[2027/28 From - Total]],Dataset[[#This Row],[2027/28 To - Total]])","v":0},{"$f":"Dataset[[#This Row],[2024/25 Baseline]]+Dataset[[#This Row],[2024/25 Total change]]","v":0},{"$f":"Dataset[[#This Row],[2025/26 Baseline]]+Dataset[[#This Row],[2025/26 Total change]]","v":0},{"$f":"Dataset[[#This Row],[2026/27 Baseline]]+Dataset[[#This Row],[2026/27 Total change]]","v":0},{"$f":"Dataset[[#This Row],[2027/28 Baseline]]+Dataset[[#This Row],[2027/28 Total change]]","v":0}]
["NAT|Non-transfer item","40|Interest (Incl. interest on unitary payments (PPP))","2025_26","MTEC2025",40,5,3,52540,1268,"40","05","03","052540","001268","40|05|03|001268","01","01","03","41","41","01|01|03|41|41","National","Transport","Civil Aviation","Aviation Safety, Security, Environment, and Search and Rescue","Non-transfer item","Current","Current payments","Interest and rent on land","Interest (Incl. interest on unitary payments (PPP))","Interest (Incl. interest on unitary payments (PPP))","Economic development","Economic regulation and infrastructure","NAT",0,0,0,0,0,0,null,0,0,0,0,null,null,null,null,null,null,null,null,null,null,null,null,null,null,null,null,null,null,null,null,null,null,null,null,null,null,null,null,null,null,null,null,null,null,{"$f":"Dataset[[#This Row],[2025/26 From - Spending review Topic 1]]+Dataset[[#This Row],[2025/26 From - Spending review Topic 2]]+Dataset[[#This Row],[2025/26 From - Spending review Topic 3]]+Dataset[[#This Row],[2025/26 From - Spending review Topic 4]]+Dataset[[#This Row],[2025/26 From - Other reallocations]]","v":0},{"$f":"Dataset[[#This Row],[2026/27 From - Spending review Topic 1]]+Dataset[[#This Row],[2026/27 From - Spending review Topic 2]]+Dataset[[#This Row],[2026/27 From - Spending review Topic 3]]+Dataset[[#This Row],[2026/27 From - Spending review Topic 4]]+Dataset[[#This Row],[2026/27 From - Other reallocations]]","v":0},{"$f":"Dataset[[#This Row],[2027/28 From - Spending review Topic 1]]+Dataset[[#This Row],[2027/28 From - Spending review Topic 2]]+Dataset[[#This Row],[2027/28 From - Spending review Topic 3]]+Dataset[[#This Row],[2027/28 From - Spending review Topic 4]]+Dataset[[#This Row],[2027/28 From - Other reallocations]]","v":0},{"$f":"Dataset[[#This Row],[2025/26 To - Spending review Topic 1]]+Dataset[[#This Row],[2025/26 To - Spending review Topic 2]]+Dataset[[#This Row],[2025/26 To - Spending review Topic 3]]+Dataset[[#This Row],[2025/26 To - Spending review Topic 4]]+Dataset[[#This Row],[2025/26 To - Other reallocations]]","v":0},{"$f":"Dataset[[#This Row],[2026/27 To - Spending review Topic 1]]+Dataset[[#This Row],[2026/27 To - Spending review Topic 2]]+Dataset[[#This Row],[2026/27 To - Spending review Topic 3]]+Dataset[[#This Row],[2026/27 To - Spending review Topic 4]]+Dataset[[#This Row],[2026/27 To - Other reallocations]]","v":0},{"$f":"Dataset[[#This Row],[2027/28 To - Spending review Topic 1]]+Dataset[[#This Row],[2027/28 To - Spending review Topic 2]]+Dataset[[#This Row],[2027/28 To - Spending review Topic 3]]+Dataset[[#This Row],[2027/28 To - Spending review Topic 4]]+Dataset[[#This Row],[2027/28 To - Other reallocations]]","v":0},{"$f":"Dataset[[#This Row],[2025/26 Reduction]]+Dataset[[#This Row],[2025/26 From - Total]]","v":0},{"$f":"Dataset[[#This Row],[2026/27 Reduction]]+Dataset[[#This Row],[2026/27 From - Total]]","v":0},{"$f":"Dataset[[#This Row],[2027/28 Reduction]]+Dataset[[#This Row],[2027/28 From - Total]]","v":0},{"$f":"Dataset[[#This Row],[2024/25 Reduction]]","v":0},{"$f":"SUM(Dataset[[#This Row],[2025/26 Reduction]],Dataset[[#This Row],[2025/26 From - Total]],Dataset[[#This Row],[2025/26 To - Total]])","v":0},{"$f":"SUM(Dataset[[#This Row],[2026/27 Reduction]],Dataset[[#This Row],[2026/27 From - Total]],Dataset[[#This Row],[2026/27 To - Total]])","v":0},{"$f":"SUM(Dataset[[#This Row],[2027/28 Reduction]],Dataset[[#This Row],[2027/28 From - Total]],Dataset[[#This Row],[2027/28 To - Total]])","v":0},{"$f":"Dataset[[#This Row],[2024/25 Baseline]]+Dataset[[#This Row],[2024/25 Total change]]","v":0},{"$f":"Dataset[[#This Row],[2025/26 Baseline]]+Dataset[[#This Row],[2025/26 Total change]]","v":0},{"$f":"Dataset[[#This Row],[2026/27 Baseline]]+Dataset[[#This Row],[2026/27 Total change]]","v":0},{"$f":"Dataset[[#This Row],[2027/28 Baseline]]+Dataset[[#This Row],[2027/28 Total change]]","v":0}]
["NAT|Non-transfer item","40|Transport equipment","2025_26","MTEC2025",40,5,3,52545,1273,"40","05","03","052545","001273","40|05|03|001273","02","03","12","56","60","02|03|12|56|60","National","Transport","Civil Aviation","Aviation Safety, Security, Environment, and Search and Rescue","Non-transfer item","Capital","Payments for capital assets","Machinery and equipment","Transport equipment","Transport equipment","Economic development","Economic regulation and infrastructure","NAT",0,0,0,0,0,0,null,0,0,0,0,null,null,null,null,null,null,null,null,null,null,null,null,null,null,null,null,null,null,null,null,null,null,null,null,null,null,null,null,null,null,null,null,null,null,{"$f":"Dataset[[#This Row],[2025/26 From - Spending review Topic 1]]+Dataset[[#This Row],[2025/26 From - Spending review Topic 2]]+Dataset[[#This Row],[2025/26 From - Spending review Topic 3]]+Dataset[[#This Row],[2025/26 From - Spending review Topic 4]]+Dataset[[#This Row],[2025/26 From - Other reallocations]]","v":0},{"$f":"Dataset[[#This Row],[2026/27 From - Spending review Topic 1]]+Dataset[[#This Row],[2026/27 From - Spending review Topic 2]]+Dataset[[#This Row],[2026/27 From - Spending review Topic 3]]+Dataset[[#This Row],[2026/27 From - Spending review Topic 4]]+Dataset[[#This Row],[2026/27 From - Other reallocations]]","v":0},{"$f":"Dataset[[#This Row],[2027/28 From - Spending review Topic 1]]+Dataset[[#This Row],[2027/28 From - Spending review Topic 2]]+Dataset[[#This Row],[2027/28 From - Spending review Topic 3]]+Dataset[[#This Row],[2027/28 From - Spending review Topic 4]]+Dataset[[#This Row],[2027/28 From - Other reallocations]]","v":0},{"$f":"Dataset[[#This Row],[2025/26 To - Spending review Topic 1]]+Dataset[[#This Row],[2025/26 To - Spending review Topic 2]]+Dataset[[#This Row],[2025/26 To - Spending review Topic 3]]+Dataset[[#This Row],[2025/26 To - Spending review Topic 4]]+Dataset[[#This Row],[2025/26 To - Other reallocations]]","v":0},{"$f":"Dataset[[#This Row],[2026/27 To - Spending review Topic 1]]+Dataset[[#This Row],[2026/27 To - Spending review Topic 2]]+Dataset[[#This Row],[2026/27 To - Spending review Topic 3]]+Dataset[[#This Row],[2026/27 To - Spending review Topic 4]]+Dataset[[#This Row],[2026/27 To - Other reallocations]]","v":0},{"$f":"Dataset[[#This Row],[2027/28 To - Spending review Topic 1]]+Dataset[[#This Row],[2027/28 To - Spending review Topic 2]]+Dataset[[#This Row],[2027/28 To - Spending review Topic 3]]+Dataset[[#This Row],[2027/28 To - Spending review Topic 4]]+Dataset[[#This Row],[2027/28 To - Other reallocations]]","v":0},{"$f":"Dataset[[#This Row],[2025/26 Reduction]]+Dataset[[#This Row],[2025/26 From - Total]]","v":0},{"$f":"Dataset[[#This Row],[2026/27 Reduction]]+Dataset[[#This Row],[2026/27 From - Total]]","v":0},{"$f":"Dataset[[#This Row],[2027/28 Reduction]]+Dataset[[#This Row],[2027/28 From - Total]]","v":0},{"$f":"Dataset[[#This Row],[2024/25 Reduction]]","v":0},{"$f":"SUM(Dataset[[#This Row],[2025/26 Reduction]],Dataset[[#This Row],[2025/26 From - Total]],Dataset[[#This Row],[2025/26 To - Total]])","v":0},{"$f":"SUM(Dataset[[#This Row],[2026/27 Reduction]],Dataset[[#This Row],[2026/27 From - Total]],Dataset[[#This Row],[2026/27 To - Total]])","v":0},{"$f":"SUM(Dataset[[#This Row],[2027/28 Reduction]],Dataset[[#This Row],[2027/28 From - Total]],Dataset[[#This Row],[2027/28 To - Total]])","v":0},{"$f":"Dataset[[#This Row],[2024/25 Baseline]]+Dataset[[#This Row],[2024/25 Total change]]","v":0},{"$f":"Dataset[[#This Row],[2025/26 Baseline]]+Dataset[[#This Row],[2025/26 Total change]]","v":0},{"$f":"Dataset[[#This Row],[2026/27 Baseline]]+Dataset[[#This Row],[2026/27 Total change]]","v":0},{"$f":"Dataset[[#This Row],[2027/28 Baseline]]+Dataset[[#This Row],[2027/28 Total change]]","v":0}]
["NAT|Non-transfer item","40|Salaries and wages","2025_26","MTEC2025",40,5,4,52553,1281,"40","05","04","052553","001281","40|05|04|001281","01","01","01","01","01","01|01|01|01|01","National","Transport","Civil Aviation","Aviation Oversight","Non-transfer item","Current","Current payments","Compensation of employees","Salaries and wages","Salaries and wages","Economic development","Economic regulation and infrastructure","NAT",1423,0,0,0,0,0,null,0,0,0,0,null,null,null,null,null,null,null,null,null,null,null,null,null,null,null,null,null,null,null,null,null,null,null,null,null,null,null,null,null,null,null,null,null,null,{"$f":"Dataset[[#This Row],[2025/26 From - Spending review Topic 1]]+Dataset[[#This Row],[2025/26 From - Spending review Topic 2]]+Dataset[[#This Row],[2025/26 From - Spending review Topic 3]]+Dataset[[#This Row],[2025/26 From - Spending review Topic 4]]+Dataset[[#This Row],[2025/26 From - Other reallocations]]","v":0},{"$f":"Dataset[[#This Row],[2026/27 From - Spending review Topic 1]]+Dataset[[#This Row],[2026/27 From - Spending review Topic 2]]+Dataset[[#This Row],[2026/27 From - Spending review Topic 3]]+Dataset[[#This Row],[2026/27 From - Spending review Topic 4]]+Dataset[[#This Row],[2026/27 From - Other reallocations]]","v":0},{"$f":"Dataset[[#This Row],[2027/28 From - Spending review Topic 1]]+Dataset[[#This Row],[2027/28 From - Spending review Topic 2]]+Dataset[[#This Row],[2027/28 From - Spending review Topic 3]]+Dataset[[#This Row],[2027/28 From - Spending review Topic 4]]+Dataset[[#This Row],[2027/28 From - Other reallocations]]","v":0},{"$f":"Dataset[[#This Row],[2025/26 To - Spending review Topic 1]]+Dataset[[#This Row],[2025/26 To - Spending review Topic 2]]+Dataset[[#This Row],[2025/26 To - Spending review Topic 3]]+Dataset[[#This Row],[2025/26 To - Spending review Topic 4]]+Dataset[[#This Row],[2025/26 To - Other reallocations]]","v":0},{"$f":"Dataset[[#This Row],[2026/27 To - Spending review Topic 1]]+Dataset[[#This Row],[2026/27 To - Spending review Topic 2]]+Dataset[[#This Row],[2026/27 To - Spending review Topic 3]]+Dataset[[#This Row],[2026/27 To - Spending review Topic 4]]+Dataset[[#This Row],[2026/27 To - Other reallocations]]","v":0},{"$f":"Dataset[[#This Row],[2027/28 To - Spending review Topic 1]]+Dataset[[#This Row],[2027/28 To - Spending review Topic 2]]+Dataset[[#This Row],[2027/28 To - Spending review Topic 3]]+Dataset[[#This Row],[2027/28 To - Spending review Topic 4]]+Dataset[[#This Row],[2027/28 To - Other reallocations]]","v":0},{"$f":"Dataset[[#This Row],[2025/26 Reduction]]+Dataset[[#This Row],[2025/26 From - Total]]","v":0},{"$f":"Dataset[[#This Row],[2026/27 Reduction]]+Dataset[[#This Row],[2026/27 From - Total]]","v":0},{"$f":"Dataset[[#This Row],[2027/28 Reduction]]+Dataset[[#This Row],[2027/28 From - Total]]","v":0},{"$f":"Dataset[[#This Row],[2024/25 Reduction]]","v":0},{"$f":"SUM(Dataset[[#This Row],[2025/26 Reduction]],Dataset[[#This Row],[2025/26 From - Total]],Dataset[[#This Row],[2025/26 To - Total]])","v":0},{"$f":"SUM(Dataset[[#This Row],[2026/27 Reduction]],Dataset[[#This Row],[2026/27 From - Total]],Dataset[[#This Row],[2026/27 To - Total]])","v":0},{"$f":"SUM(Dataset[[#This Row],[2027/28 Reduction]],Dataset[[#This Row],[2027/28 From - Total]],Dataset[[#This Row],[2027/28 To - Total]])","v":0},{"$f":"Dataset[[#This Row],[2024/25 Baseline]]+Dataset[[#This Row],[2024/25 Total change]]","v":0},{"$f":"Dataset[[#This Row],[2025/26 Baseline]]+Dataset[[#This Row],[2025/26 Total change]]","v":0},{"$f":"Dataset[[#This Row],[2026/27 Baseline]]+Dataset[[#This Row],[2026/27 Total change]]","v":0},{"$f":"Dataset[[#This Row],[2027/28 Baseline]]+Dataset[[#This Row],[2027/28 Total change]]","v":0}]
["NAT|Non-transfer item","40|Audit costs: External","2025_26","MTEC2025",40,5,4,52558,1286,"40","05","04","052558","001286","40|05|04|001286","01","01","02","06","06","01|01|02|06|06","National","Transport","Civil Aviation","Aviation Oversight","Non-transfer item","Current","Current payments","Goods and services","Audit costs: External","Audit costs: External","Economic development","Economic regulation and infrastructure","NAT",0,0,0,0,0,0,null,0,0,0,0,null,null,null,null,null,null,null,null,null,null,null,null,null,null,null,null,null,null,null,null,null,null,null,null,null,null,null,null,null,null,null,null,null,null,{"$f":"Dataset[[#This Row],[2025/26 From - Spending review Topic 1]]+Dataset[[#This Row],[2025/26 From - Spending review Topic 2]]+Dataset[[#This Row],[2025/26 From - Spending review Topic 3]]+Dataset[[#This Row],[2025/26 From - Spending review Topic 4]]+Dataset[[#This Row],[2025/26 From - Other reallocations]]","v":0},{"$f":"Dataset[[#This Row],[2026/27 From - Spending review Topic 1]]+Dataset[[#This Row],[2026/27 From - Spending review Topic 2]]+Dataset[[#This Row],[2026/27 From - Spending review Topic 3]]+Dataset[[#This Row],[2026/27 From - Spending review Topic 4]]+Dataset[[#This Row],[2026/27 From - Other reallocations]]","v":0},{"$f":"Dataset[[#This Row],[2027/28 From - Spending review Topic 1]]+Dataset[[#This Row],[2027/28 From - Spending review Topic 2]]+Dataset[[#This Row],[2027/28 From - Spending review Topic 3]]+Dataset[[#This Row],[2027/28 From - Spending review Topic 4]]+Dataset[[#This Row],[2027/28 From - Other reallocations]]","v":0},{"$f":"Dataset[[#This Row],[2025/26 To - Spending review Topic 1]]+Dataset[[#This Row],[2025/26 To - Spending review Topic 2]]+Dataset[[#This Row],[2025/26 To - Spending review Topic 3]]+Dataset[[#This Row],[2025/26 To - Spending review Topic 4]]+Dataset[[#This Row],[2025/26 To - Other reallocations]]","v":0},{"$f":"Dataset[[#This Row],[2026/27 To - Spending review Topic 1]]+Dataset[[#This Row],[2026/27 To - Spending review Topic 2]]+Dataset[[#This Row],[2026/27 To - Spending review Topic 3]]+Dataset[[#This Row],[2026/27 To - Spending review Topic 4]]+Dataset[[#This Row],[2026/27 To - Other reallocations]]","v":0},{"$f":"Dataset[[#This Row],[2027/28 To - Spending review Topic 1]]+Dataset[[#This Row],[2027/28 To - Spending review Topic 2]]+Dataset[[#This Row],[2027/28 To - Spending review Topic 3]]+Dataset[[#This Row],[2027/28 To - Spending review Topic 4]]+Dataset[[#This Row],[2027/28 To - Other reallocations]]","v":0},{"$f":"Dataset[[#This Row],[2025/26 Reduction]]+Dataset[[#This Row],[2025/26 From - Total]]","v":0},{"$f":"Dataset[[#This Row],[2026/27 Reduction]]+Dataset[[#This Row],[2026/27 From - Total]]","v":0},{"$f":"Dataset[[#This Row],[2027/28 Reduction]]+Dataset[[#This Row],[2027/28 From - Total]]","v":0},{"$f":"Dataset[[#This Row],[2024/25 Reduction]]","v":0},{"$f":"SUM(Dataset[[#This Row],[2025/26 Reduction]],Dataset[[#This Row],[2025/26 From - Total]],Dataset[[#This Row],[2025/26 To - Total]])","v":0},{"$f":"SUM(Dataset[[#This Row],[2026/27 Reduction]],Dataset[[#This Row],[2026/27 From - Total]],Dataset[[#This Row],[2026/27 To - Total]])","v":0},{"$f":"SUM(Dataset[[#This Row],[2027/28 Reduction]],Dataset[[#This Row],[2027/28 From - Total]],Dataset[[#This Row],[2027/28 To - Total]])","v":0},{"$f":"Dataset[[#This Row],[2024/25 Baseline]]+Dataset[[#This Row],[2024/25 Total change]]","v":0},{"$f":"Dataset[[#This Row],[2025/26 Baseline]]+Dataset[[#This Row],[2025/26 Total change]]","v":0},{"$f":"Dataset[[#This Row],[2026/27 Baseline]]+Dataset[[#This Row],[2026/27 Total change]]","v":0},{"$f":"Dataset[[#This Row],[2027/28 Baseline]]+Dataset[[#This Row],[2027/28 Total change]]","v":0}]
["NAT|Non-transfer item","40|Legal services (G&S)","2025_26","MTEC2025",40,5,4,52566,1294,"40","05","04","052566","001294","40|05|04|001294","01","01","02","14","14","01|01|02|14|14","National","Transport","Civil Aviation","Aviation Oversight","Non-transfer item","Current","Current payments","Goods and services","Legal services (G&S)","Legal services (G&S)","Economic development","Economic regulation and infrastructure","NAT",0,0,0,0,0,0,null,0,0,0,0,null,null,null,null,null,null,null,null,null,null,null,null,null,null,null,null,null,null,null,null,null,null,null,null,null,null,null,null,null,null,null,null,null,null,{"$f":"Dataset[[#This Row],[2025/26 From - Spending review Topic 1]]+Dataset[[#This Row],[2025/26 From - Spending review Topic 2]]+Dataset[[#This Row],[2025/26 From - Spending review Topic 3]]+Dataset[[#This Row],[2025/26 From - Spending review Topic 4]]+Dataset[[#This Row],[2025/26 From - Other reallocations]]","v":0},{"$f":"Dataset[[#This Row],[2026/27 From - Spending review Topic 1]]+Dataset[[#This Row],[2026/27 From - Spending review Topic 2]]+Dataset[[#This Row],[2026/27 From - Spending review Topic 3]]+Dataset[[#This Row],[2026/27 From - Spending review Topic 4]]+Dataset[[#This Row],[2026/27 From - Other reallocations]]","v":0},{"$f":"Dataset[[#This Row],[2027/28 From - Spending review Topic 1]]+Dataset[[#This Row],[2027/28 From - Spending review Topic 2]]+Dataset[[#This Row],[2027/28 From - Spending review Topic 3]]+Dataset[[#This Row],[2027/28 From - Spending review Topic 4]]+Dataset[[#This Row],[2027/28 From - Other reallocations]]","v":0},{"$f":"Dataset[[#This Row],[2025/26 To - Spending review Topic 1]]+Dataset[[#This Row],[2025/26 To - Spending review Topic 2]]+Dataset[[#This Row],[2025/26 To - Spending review Topic 3]]+Dataset[[#This Row],[2025/26 To - Spending review Topic 4]]+Dataset[[#This Row],[2025/26 To - Other reallocations]]","v":0},{"$f":"Dataset[[#This Row],[2026/27 To - Spending review Topic 1]]+Dataset[[#This Row],[2026/27 To - Spending review Topic 2]]+Dataset[[#This Row],[2026/27 To - Spending review Topic 3]]+Dataset[[#This Row],[2026/27 To - Spending review Topic 4]]+Dataset[[#This Row],[2026/27 To - Other reallocations]]","v":0},{"$f":"Dataset[[#This Row],[2027/28 To - Spending review Topic 1]]+Dataset[[#This Row],[2027/28 To - Spending review Topic 2]]+Dataset[[#This Row],[2027/28 To - Spending review Topic 3]]+Dataset[[#This Row],[2027/28 To - Spending review Topic 4]]+Dataset[[#This Row],[2027/28 To - Other reallocations]]","v":0},{"$f":"Dataset[[#This Row],[2025/26 Reduction]]+Dataset[[#This Row],[2025/26 From - Total]]","v":0},{"$f":"Dataset[[#This Row],[2026/27 Reduction]]+Dataset[[#This Row],[2026/27 From - Total]]","v":0},{"$f":"Dataset[[#This Row],[2027/28 Reduction]]+Dataset[[#This Row],[2027/28 From - Total]]","v":0},{"$f":"Dataset[[#This Row],[2024/25 Reduction]]","v":0},{"$f":"SUM(Dataset[[#This Row],[2025/26 Reduction]],Dataset[[#This Row],[2025/26 From - Total]],Dataset[[#This Row],[2025/26 To - Total]])","v":0},{"$f":"SUM(Dataset[[#This Row],[2026/27 Reduction]],Dataset[[#This Row],[2026/27 From - Total]],Dataset[[#This Row],[2026/27 To - Total]])","v":0},{"$f":"SUM(Dataset[[#This Row],[2027/28 Reduction]],Dataset[[#This Row],[2027/28 From - Total]],Dataset[[#This Row],[2027/28 To - Total]])","v":0},{"$f":"Dataset[[#This Row],[2024/25 Baseline]]+Dataset[[#This Row],[2024/25 Total change]]","v":0},{"$f":"Dataset[[#This Row],[2025/26 Baseline]]+Dataset[[#This Row],[2025/26 Total change]]","v":0},{"$f":"Dataset[[#This Row],[2026/27 Baseline]]+Dataset[[#This Row],[2026/27 Total change]]","v":0},{"$f":"Dataset[[#This Row],[2027/28 Baseline]]+Dataset[[#This Row],[2027/28 Total change]]","v":0}]
["NAT|Non-transfer item","40|Inventory: Farming supplies","2025_26","MTEC2025",40,5,4,52574,1302,"40","05","04","052574","001302","40|05|04|001302","01","01","02","22","22","01|01|02|22|22","National","Transport","Civil Aviation","Aviation Oversight","Non-transfer item","Current","Current payments","Goods and services","Inventory: Farming supplies","Inventory: Farming supplies","Economic development","Economic regulation and infrastructure","NAT",0,0,0,0,0,0,null,0,0,0,0,null,null,null,null,null,null,null,null,null,null,null,null,null,null,null,null,null,null,null,null,null,null,null,null,null,null,null,null,null,null,null,null,null,null,{"$f":"Dataset[[#This Row],[2025/26 From - Spending review Topic 1]]+Dataset[[#This Row],[2025/26 From - Spending review Topic 2]]+Dataset[[#This Row],[2025/26 From - Spending review Topic 3]]+Dataset[[#This Row],[2025/26 From - Spending review Topic 4]]+Dataset[[#This Row],[2025/26 From - Other reallocations]]","v":0},{"$f":"Dataset[[#This Row],[2026/27 From - Spending review Topic 1]]+Dataset[[#This Row],[2026/27 From - Spending review Topic 2]]+Dataset[[#This Row],[2026/27 From - Spending review Topic 3]]+Dataset[[#This Row],[2026/27 From - Spending review Topic 4]]+Dataset[[#This Row],[2026/27 From - Other reallocations]]","v":0},{"$f":"Dataset[[#This Row],[2027/28 From - Spending review Topic 1]]+Dataset[[#This Row],[2027/28 From - Spending review Topic 2]]+Dataset[[#This Row],[2027/28 From - Spending review Topic 3]]+Dataset[[#This Row],[2027/28 From - Spending review Topic 4]]+Dataset[[#This Row],[2027/28 From - Other reallocations]]","v":0},{"$f":"Dataset[[#This Row],[2025/26 To - Spending review Topic 1]]+Dataset[[#This Row],[2025/26 To - Spending review Topic 2]]+Dataset[[#This Row],[2025/26 To - Spending review Topic 3]]+Dataset[[#This Row],[2025/26 To - Spending review Topic 4]]+Dataset[[#This Row],[2025/26 To - Other reallocations]]","v":0},{"$f":"Dataset[[#This Row],[2026/27 To - Spending review Topic 1]]+Dataset[[#This Row],[2026/27 To - Spending review Topic 2]]+Dataset[[#This Row],[2026/27 To - Spending review Topic 3]]+Dataset[[#This Row],[2026/27 To - Spending review Topic 4]]+Dataset[[#This Row],[2026/27 To - Other reallocations]]","v":0},{"$f":"Dataset[[#This Row],[2027/28 To - Spending review Topic 1]]+Dataset[[#This Row],[2027/28 To - Spending review Topic 2]]+Dataset[[#This Row],[2027/28 To - Spending review Topic 3]]+Dataset[[#This Row],[2027/28 To - Spending review Topic 4]]+Dataset[[#This Row],[2027/28 To - Other reallocations]]","v":0},{"$f":"Dataset[[#This Row],[2025/26 Reduction]]+Dataset[[#This Row],[2025/26 From - Total]]","v":0},{"$f":"Dataset[[#This Row],[2026/27 Reduction]]+Dataset[[#This Row],[2026/27 From - Total]]","v":0},{"$f":"Dataset[[#This Row],[2027/28 Reduction]]+Dataset[[#This Row],[2027/28 From - Total]]","v":0},{"$f":"Dataset[[#This Row],[2024/25 Reduction]]","v":0},{"$f":"SUM(Dataset[[#This Row],[2025/26 Reduction]],Dataset[[#This Row],[2025/26 From - Total]],Dataset[[#This Row],[2025/26 To - Total]])","v":0},{"$f":"SUM(Dataset[[#This Row],[2026/27 Reduction]],Dataset[[#This Row],[2026/27 From - Total]],Dataset[[#This Row],[2026/27 To - Total]])","v":0},{"$f":"SUM(Dataset[[#This Row],[2027/28 Reduction]],Dataset[[#This Row],[2027/28 From - Total]],Dataset[[#This Row],[2027/28 To - Total]])","v":0},{"$f":"Dataset[[#This Row],[2024/25 Baseline]]+Dataset[[#This Row],[2024/25 Total change]]","v":0},{"$f":"Dataset[[#This Row],[2025/26 Baseline]]+Dataset[[#This Row],[2025/26 Total change]]","v":0},{"$f":"Dataset[[#This Row],[2026/27 Baseline]]+Dataset[[#This Row],[2026/27 Total change]]","v":0},{"$f":"Dataset[[#This Row],[2027/28 Baseline]]+Dataset[[#This Row],[2027/28 Total change]]","v":0}]
["NAT|Non-transfer item","40|Inventory: Medical supplies","2025_26","MTEC2025",40,5,4,52579,1307,"40","05","04","052579","001307","40|05|04|001307","01","01","02","27","27","01|01|02|27|27","National","Transport","Civil Aviation","Aviation Oversight","Non-transfer item","Current","Current payments","Goods and services","Inventory: Medical supplies","Inventory: Medical supplies","Economic development","Economic regulation and infrastructure","NAT",0,0,0,0,0,0,null,0,0,0,0,null,null,null,null,null,null,null,null,null,null,null,null,null,null,null,null,null,null,null,null,null,null,null,null,null,null,null,null,null,null,null,null,null,null,{"$f":"Dataset[[#This Row],[2025/26 From - Spending review Topic 1]]+Dataset[[#This Row],[2025/26 From - Spending review Topic 2]]+Dataset[[#This Row],[2025/26 From - Spending review Topic 3]]+Dataset[[#This Row],[2025/26 From - Spending review Topic 4]]+Dataset[[#This Row],[2025/26 From - Other reallocations]]","v":0},{"$f":"Dataset[[#This Row],[2026/27 From - Spending review Topic 1]]+Dataset[[#This Row],[2026/27 From - Spending review Topic 2]]+Dataset[[#This Row],[2026/27 From - Spending review Topic 3]]+Dataset[[#This Row],[2026/27 From - Spending review Topic 4]]+Dataset[[#This Row],[2026/27 From - Other reallocations]]","v":0},{"$f":"Dataset[[#This Row],[2027/28 From - Spending review Topic 1]]+Dataset[[#This Row],[2027/28 From - Spending review Topic 2]]+Dataset[[#This Row],[2027/28 From - Spending review Topic 3]]+Dataset[[#This Row],[2027/28 From - Spending review Topic 4]]+Dataset[[#This Row],[2027/28 From - Other reallocations]]","v":0},{"$f":"Dataset[[#This Row],[2025/26 To - Spending review Topic 1]]+Dataset[[#This Row],[2025/26 To - Spending review Topic 2]]+Dataset[[#This Row],[2025/26 To - Spending review Topic 3]]+Dataset[[#This Row],[2025/26 To - Spending review Topic 4]]+Dataset[[#This Row],[2025/26 To - Other reallocations]]","v":0},{"$f":"Dataset[[#This Row],[2026/27 To - Spending review Topic 1]]+Dataset[[#This Row],[2026/27 To - Spending review Topic 2]]+Dataset[[#This Row],[2026/27 To - Spending review Topic 3]]+Dataset[[#This Row],[2026/27 To - Spending review Topic 4]]+Dataset[[#This Row],[2026/27 To - Other reallocations]]","v":0},{"$f":"Dataset[[#This Row],[2027/28 To - Spending review Topic 1]]+Dataset[[#This Row],[2027/28 To - Spending review Topic 2]]+Dataset[[#This Row],[2027/28 To - Spending review Topic 3]]+Dataset[[#This Row],[2027/28 To - Spending review Topic 4]]+Dataset[[#This Row],[2027/28 To - Other reallocations]]","v":0},{"$f":"Dataset[[#This Row],[2025/26 Reduction]]+Dataset[[#This Row],[2025/26 From - Total]]","v":0},{"$f":"Dataset[[#This Row],[2026/27 Reduction]]+Dataset[[#This Row],[2026/27 From - Total]]","v":0},{"$f":"Dataset[[#This Row],[2027/28 Reduction]]+Dataset[[#This Row],[2027/28 From - Total]]","v":0},{"$f":"Dataset[[#This Row],[2024/25 Reduction]]","v":0},{"$f":"SUM(Dataset[[#This Row],[2025/26 Reduction]],Dataset[[#This Row],[2025/26 From - Total]],Dataset[[#This Row],[2025/26 To - Total]])","v":0},{"$f":"SUM(Dataset[[#This Row],[2026/27 Reduction]],Dataset[[#This Row],[2026/27 From - Total]],Dataset[[#This Row],[2026/27 To - Total]])","v":0},{"$f":"SUM(Dataset[[#This Row],[2027/28 Reduction]],Dataset[[#This Row],[2027/28 From - Total]],Dataset[[#This Row],[2027/28 To - Total]])","v":0},{"$f":"Dataset[[#This Row],[2024/25 Baseline]]+Dataset[[#This Row],[2024/25 Total change]]","v":0},{"$f":"Dataset[[#This Row],[2025/26 Baseline]]+Dataset[[#This Row],[2025/26 Total change]]","v":0},{"$f":"Dataset[[#This Row],[2026/27 Baseline]]+Dataset[[#This Row],[2026/27 Total change]]","v":0},{"$f":"Dataset[[#This Row],[2027/28 Baseline]]+Dataset[[#This Row],[2027/28 Total change]]","v":0}]
["NAT|Non-transfer item","40|Property payments","2025_26","MTEC2025",40,5,4,52587,1315,"40","05","04","052587","001315","40|05|04|001315","01","01","02","35","35","01|01|02|35|35","National","Transport","Civil Aviation","Aviation Oversight","Non-transfer item","Current","Current payments","Goods and services","Property payments","Property payments","Economic development","Economic regulation and infrastructure","NAT",0,0,0,0,0,0,null,0,0,0,0,null,null,null,null,null,null,null,null,null,null,null,null,null,null,null,null,null,null,null,null,null,null,null,null,null,null,null,null,null,null,null,null,null,null,{"$f":"Dataset[[#This Row],[2025/26 From - Spending review Topic 1]]+Dataset[[#This Row],[2025/26 From - Spending review Topic 2]]+Dataset[[#This Row],[2025/26 From - Spending review Topic 3]]+Dataset[[#This Row],[2025/26 From - Spending review Topic 4]]+Dataset[[#This Row],[2025/26 From - Other reallocations]]","v":0},{"$f":"Dataset[[#This Row],[2026/27 From - Spending review Topic 1]]+Dataset[[#This Row],[2026/27 From - Spending review Topic 2]]+Dataset[[#This Row],[2026/27 From - Spending review Topic 3]]+Dataset[[#This Row],[2026/27 From - Spending review Topic 4]]+Dataset[[#This Row],[2026/27 From - Other reallocations]]","v":0},{"$f":"Dataset[[#This Row],[2027/28 From - Spending review Topic 1]]+Dataset[[#This Row],[2027/28 From - Spending review Topic 2]]+Dataset[[#This Row],[2027/28 From - Spending review Topic 3]]+Dataset[[#This Row],[2027/28 From - Spending review Topic 4]]+Dataset[[#This Row],[2027/28 From - Other reallocations]]","v":0},{"$f":"Dataset[[#This Row],[2025/26 To - Spending review Topic 1]]+Dataset[[#This Row],[2025/26 To - Spending review Topic 2]]+Dataset[[#This Row],[2025/26 To - Spending review Topic 3]]+Dataset[[#This Row],[2025/26 To - Spending review Topic 4]]+Dataset[[#This Row],[2025/26 To - Other reallocations]]","v":0},{"$f":"Dataset[[#This Row],[2026/27 To - Spending review Topic 1]]+Dataset[[#This Row],[2026/27 To - Spending review Topic 2]]+Dataset[[#This Row],[2026/27 To - Spending review Topic 3]]+Dataset[[#This Row],[2026/27 To - Spending review Topic 4]]+Dataset[[#This Row],[2026/27 To - Other reallocations]]","v":0},{"$f":"Dataset[[#This Row],[2027/28 To - Spending review Topic 1]]+Dataset[[#This Row],[2027/28 To - Spending review Topic 2]]+Dataset[[#This Row],[2027/28 To - Spending review Topic 3]]+Dataset[[#This Row],[2027/28 To - Spending review Topic 4]]+Dataset[[#This Row],[2027/28 To - Other reallocations]]","v":0},{"$f":"Dataset[[#This Row],[2025/26 Reduction]]+Dataset[[#This Row],[2025/26 From - Total]]","v":0},{"$f":"Dataset[[#This Row],[2026/27 Reduction]]+Dataset[[#This Row],[2026/27 From - Total]]","v":0},{"$f":"Dataset[[#This Row],[2027/28 Reduction]]+Dataset[[#This Row],[2027/28 From - Total]]","v":0},{"$f":"Dataset[[#This Row],[2024/25 Reduction]]","v":0},{"$f":"SUM(Dataset[[#This Row],[2025/26 Reduction]],Dataset[[#This Row],[2025/26 From - Total]],Dataset[[#This Row],[2025/26 To - Total]])","v":0},{"$f":"SUM(Dataset[[#This Row],[2026/27 Reduction]],Dataset[[#This Row],[2026/27 From - Total]],Dataset[[#This Row],[2026/27 To - Total]])","v":0},{"$f":"SUM(Dataset[[#This Row],[2027/28 Reduction]],Dataset[[#This Row],[2027/28 From - Total]],Dataset[[#This Row],[2027/28 To - Total]])","v":0},{"$f":"Dataset[[#This Row],[2024/25 Baseline]]+Dataset[[#This Row],[2024/25 Total change]]","v":0},{"$f":"Dataset[[#This Row],[2025/26 Baseline]]+Dataset[[#This Row],[2025/26 Total change]]","v":0},{"$f":"Dataset[[#This Row],[2026/27 Baseline]]+Dataset[[#This Row],[2026/27 Total change]]","v":0},{"$f":"Dataset[[#This Row],[2027/28 Baseline]]+Dataset[[#This Row],[2027/28 Total change]]","v":0}]
["NAT|South African Civil Aviation Authority","40|Departmental agencies (non-business entities)","2025_26","MTEC2025",40,5,4,52595,1323,"40","05","04","052595","001323","40|05|04|001323","01","02","05","46","48","01|02|05|46|48","National","Transport","Civil Aviation","Aviation Oversight","South African Civil Aviation Authority","Current","Transfers and subsidies","Departmental agencies and accounts","Departmental agencies (non-business entities)","Departmental agencies (non-business entities)","Economic development","Economic regulation and infrastructure","NAT",145079,0,0,0,0,0,null,0,0,0,0,null,null,null,null,null,null,null,null,null,null,null,null,null,null,null,null,null,null,null,null,null,null,null,null,null,null,null,null,null,null,null,null,null,null,{"$f":"Dataset[[#This Row],[2025/26 From - Spending review Topic 1]]+Dataset[[#This Row],[2025/26 From - Spending review Topic 2]]+Dataset[[#This Row],[2025/26 From - Spending review Topic 3]]+Dataset[[#This Row],[2025/26 From - Spending review Topic 4]]+Dataset[[#This Row],[2025/26 From - Other reallocations]]","v":0},{"$f":"Dataset[[#This Row],[2026/27 From - Spending review Topic 1]]+Dataset[[#This Row],[2026/27 From - Spending review Topic 2]]+Dataset[[#This Row],[2026/27 From - Spending review Topic 3]]+Dataset[[#This Row],[2026/27 From - Spending review Topic 4]]+Dataset[[#This Row],[2026/27 From - Other reallocations]]","v":0},{"$f":"Dataset[[#This Row],[2027/28 From - Spending review Topic 1]]+Dataset[[#This Row],[2027/28 From - Spending review Topic 2]]+Dataset[[#This Row],[2027/28 From - Spending review Topic 3]]+Dataset[[#This Row],[2027/28 From - Spending review Topic 4]]+Dataset[[#This Row],[2027/28 From - Other reallocations]]","v":0},{"$f":"Dataset[[#This Row],[2025/26 To - Spending review Topic 1]]+Dataset[[#This Row],[2025/26 To - Spending review Topic 2]]+Dataset[[#This Row],[2025/26 To - Spending review Topic 3]]+Dataset[[#This Row],[2025/26 To - Spending review Topic 4]]+Dataset[[#This Row],[2025/26 To - Other reallocations]]","v":0},{"$f":"Dataset[[#This Row],[2026/27 To - Spending review Topic 1]]+Dataset[[#This Row],[2026/27 To - Spending review Topic 2]]+Dataset[[#This Row],[2026/27 To - Spending review Topic 3]]+Dataset[[#This Row],[2026/27 To - Spending review Topic 4]]+Dataset[[#This Row],[2026/27 To - Other reallocations]]","v":0},{"$f":"Dataset[[#This Row],[2027/28 To - Spending review Topic 1]]+Dataset[[#This Row],[2027/28 To - Spending review Topic 2]]+Dataset[[#This Row],[2027/28 To - Spending review Topic 3]]+Dataset[[#This Row],[2027/28 To - Spending review Topic 4]]+Dataset[[#This Row],[2027/28 To - Other reallocations]]","v":0},{"$f":"Dataset[[#This Row],[2025/26 Reduction]]+Dataset[[#This Row],[2025/26 From - Total]]","v":0},{"$f":"Dataset[[#This Row],[2026/27 Reduction]]+Dataset[[#This Row],[2026/27 From - Total]]","v":0},{"$f":"Dataset[[#This Row],[2027/28 Reduction]]+Dataset[[#This Row],[2027/28 From - Total]]","v":0},{"$f":"Dataset[[#This Row],[2024/25 Reduction]]","v":0},{"$f":"SUM(Dataset[[#This Row],[2025/26 Reduction]],Dataset[[#This Row],[2025/26 From - Total]],Dataset[[#This Row],[2025/26 To - Total]])","v":0},{"$f":"SUM(Dataset[[#This Row],[2026/27 Reduction]],Dataset[[#This Row],[2026/27 From - Total]],Dataset[[#This Row],[2026/27 To - Total]])","v":0},{"$f":"SUM(Dataset[[#This Row],[2027/28 Reduction]],Dataset[[#This Row],[2027/28 From - Total]],Dataset[[#This Row],[2027/28 To - Total]])","v":0},{"$f":"Dataset[[#This Row],[2024/25 Baseline]]+Dataset[[#This Row],[2024/25 Total change]]","v":0},{"$f":"Dataset[[#This Row],[2025/26 Baseline]]+Dataset[[#This Row],[2025/26 Total change]]","v":0},{"$f":"Dataset[[#This Row],[2026/27 Baseline]]+Dataset[[#This Row],[2026/27 Total change]]","v":0},{"$f":"Dataset[[#This Row],[2027/28 Baseline]]+Dataset[[#This Row],[2027/28 Total change]]","v":0}]
["NAT|African Civil Aviation Commission","40|Foreign governments and international organisations","2025_26","MTEC2025",40,5,4,52600,1328,"40","05","04","052600","001328","40|05|04|001328","01","02","07","48","50","01|02|07|48|50","National","Transport","Civil Aviation","Aviation Oversight","African Civil Aviation Commission","Current","Transfers and subsidies","Foreign governments and international organisations","Foreign governments and international organisations","Foreign governments and international organisations","Economic development","Economic regulation and infrastructure","NAT",4043,3097,3661,6707,6707,6707,null,7008,7322,7657,8003,null,null,null,null,null,null,null,null,null,null,null,null,null,null,null,null,null,null,null,null,null,null,null,null,null,null,null,null,null,null,null,null,null,null,{"$f":"Dataset[[#This Row],[2025/26 From - Spending review Topic 1]]+Dataset[[#This Row],[2025/26 From - Spending review Topic 2]]+Dataset[[#This Row],[2025/26 From - Spending review Topic 3]]+Dataset[[#This Row],[2025/26 From - Spending review Topic 4]]+Dataset[[#This Row],[2025/26 From - Other reallocations]]","v":0},{"$f":"Dataset[[#This Row],[2026/27 From - Spending review Topic 1]]+Dataset[[#This Row],[2026/27 From - Spending review Topic 2]]+Dataset[[#This Row],[2026/27 From - Spending review Topic 3]]+Dataset[[#This Row],[2026/27 From - Spending review Topic 4]]+Dataset[[#This Row],[2026/27 From - Other reallocations]]","v":0},{"$f":"Dataset[[#This Row],[2027/28 From - Spending review Topic 1]]+Dataset[[#This Row],[2027/28 From - Spending review Topic 2]]+Dataset[[#This Row],[2027/28 From - Spending review Topic 3]]+Dataset[[#This Row],[2027/28 From - Spending review Topic 4]]+Dataset[[#This Row],[2027/28 From - Other reallocations]]","v":0},{"$f":"Dataset[[#This Row],[2025/26 To - Spending review Topic 1]]+Dataset[[#This Row],[2025/26 To - Spending review Topic 2]]+Dataset[[#This Row],[2025/26 To - Spending review Topic 3]]+Dataset[[#This Row],[2025/26 To - Spending review Topic 4]]+Dataset[[#This Row],[2025/26 To - Other reallocations]]","v":0},{"$f":"Dataset[[#This Row],[2026/27 To - Spending review Topic 1]]+Dataset[[#This Row],[2026/27 To - Spending review Topic 2]]+Dataset[[#This Row],[2026/27 To - Spending review Topic 3]]+Dataset[[#This Row],[2026/27 To - Spending review Topic 4]]+Dataset[[#This Row],[2026/27 To - Other reallocations]]","v":0},{"$f":"Dataset[[#This Row],[2027/28 To - Spending review Topic 1]]+Dataset[[#This Row],[2027/28 To - Spending review Topic 2]]+Dataset[[#This Row],[2027/28 To - Spending review Topic 3]]+Dataset[[#This Row],[2027/28 To - Spending review Topic 4]]+Dataset[[#This Row],[2027/28 To - Other reallocations]]","v":0},{"$f":"Dataset[[#This Row],[2025/26 Reduction]]+Dataset[[#This Row],[2025/26 From - Total]]","v":0},{"$f":"Dataset[[#This Row],[2026/27 Reduction]]+Dataset[[#This Row],[2026/27 From - Total]]","v":0},{"$f":"Dataset[[#This Row],[2027/28 Reduction]]+Dataset[[#This Row],[2027/28 From - Total]]","v":0},{"$f":"Dataset[[#This Row],[2024/25 Reduction]]","v":0},{"$f":"SUM(Dataset[[#This Row],[2025/26 Reduction]],Dataset[[#This Row],[2025/26 From - Total]],Dataset[[#This Row],[2025/26 To - Total]])","v":0},{"$f":"SUM(Dataset[[#This Row],[2026/27 Reduction]],Dataset[[#This Row],[2026/27 From - Total]],Dataset[[#This Row],[2026/27 To - Total]])","v":0},{"$f":"SUM(Dataset[[#This Row],[2027/28 Reduction]],Dataset[[#This Row],[2027/28 From - Total]],Dataset[[#This Row],[2027/28 To - Total]])","v":0},{"$f":"Dataset[[#This Row],[2024/25 Baseline]]+Dataset[[#This Row],[2024/25 Total change]]","v":7008},{"$f":"Dataset[[#This Row],[2025/26 Baseline]]+Dataset[[#This Row],[2025/26 Total change]]","v":7322},{"$f":"Dataset[[#This Row],[2026/27 Baseline]]+Dataset[[#This Row],[2026/27 Total change]]","v":7657},{"$f":"Dataset[[#This Row],[2027/28 Baseline]]+Dataset[[#This Row],[2027/28 Total change]]","v":8003}]
["NAT|Non-transfer item","40|Buildings","2025_26","MTEC2025",40,5,4,52608,1336,"40","05","04","052608","001336","40|05|04|001336","02","03","11","54","58","02|03|11|54|58","National","Transport","Civil Aviation","Aviation Oversight","Non-transfer item","Capital","Payments for capital assets","Buildings and other fixed structures","Buildings","Buildings","Economic development","Economic regulation and infrastructure","NAT",0,0,0,0,0,0,null,0,0,0,0,null,null,null,null,null,null,null,null,null,null,null,null,null,null,null,null,null,null,null,null,null,null,null,null,null,null,null,null,null,null,null,null,null,null,{"$f":"Dataset[[#This Row],[2025/26 From - Spending review Topic 1]]+Dataset[[#This Row],[2025/26 From - Spending review Topic 2]]+Dataset[[#This Row],[2025/26 From - Spending review Topic 3]]+Dataset[[#This Row],[2025/26 From - Spending review Topic 4]]+Dataset[[#This Row],[2025/26 From - Other reallocations]]","v":0},{"$f":"Dataset[[#This Row],[2026/27 From - Spending review Topic 1]]+Dataset[[#This Row],[2026/27 From - Spending review Topic 2]]+Dataset[[#This Row],[2026/27 From - Spending review Topic 3]]+Dataset[[#This Row],[2026/27 From - Spending review Topic 4]]+Dataset[[#This Row],[2026/27 From - Other reallocations]]","v":0},{"$f":"Dataset[[#This Row],[2027/28 From - Spending review Topic 1]]+Dataset[[#This Row],[2027/28 From - Spending review Topic 2]]+Dataset[[#This Row],[2027/28 From - Spending review Topic 3]]+Dataset[[#This Row],[2027/28 From - Spending review Topic 4]]+Dataset[[#This Row],[2027/28 From - Other reallocations]]","v":0},{"$f":"Dataset[[#This Row],[2025/26 To - Spending review Topic 1]]+Dataset[[#This Row],[2025/26 To - Spending review Topic 2]]+Dataset[[#This Row],[2025/26 To - Spending review Topic 3]]+Dataset[[#This Row],[2025/26 To - Spending review Topic 4]]+Dataset[[#This Row],[2025/26 To - Other reallocations]]","v":0},{"$f":"Dataset[[#This Row],[2026/27 To - Spending review Topic 1]]+Dataset[[#This Row],[2026/27 To - Spending review Topic 2]]+Dataset[[#This Row],[2026/27 To - Spending review Topic 3]]+Dataset[[#This Row],[2026/27 To - Spending review Topic 4]]+Dataset[[#This Row],[2026/27 To - Other reallocations]]","v":0},{"$f":"Dataset[[#This Row],[2027/28 To - Spending review Topic 1]]+Dataset[[#This Row],[2027/28 To - Spending review Topic 2]]+Dataset[[#This Row],[2027/28 To - Spending review Topic 3]]+Dataset[[#This Row],[2027/28 To - Spending review Topic 4]]+Dataset[[#This Row],[2027/28 To - Other reallocations]]","v":0},{"$f":"Dataset[[#This Row],[2025/26 Reduction]]+Dataset[[#This Row],[2025/26 From - Total]]","v":0},{"$f":"Dataset[[#This Row],[2026/27 Reduction]]+Dataset[[#This Row],[2026/27 From - Total]]","v":0},{"$f":"Dataset[[#This Row],[2027/28 Reduction]]+Dataset[[#This Row],[2027/28 From - Total]]","v":0},{"$f":"Dataset[[#This Row],[2024/25 Reduction]]","v":0},{"$f":"SUM(Dataset[[#This Row],[2025/26 Reduction]],Dataset[[#This Row],[2025/26 From - Total]],Dataset[[#This Row],[2025/26 To - Total]])","v":0},{"$f":"SUM(Dataset[[#This Row],[2026/27 Reduction]],Dataset[[#This Row],[2026/27 From - Total]],Dataset[[#This Row],[2026/27 To - Total]])","v":0},{"$f":"SUM(Dataset[[#This Row],[2027/28 Reduction]],Dataset[[#This Row],[2027/28 From - Total]],Dataset[[#This Row],[2027/28 To - Total]])","v":0},{"$f":"Dataset[[#This Row],[2024/25 Baseline]]+Dataset[[#This Row],[2024/25 Total change]]","v":0},{"$f":"Dataset[[#This Row],[2025/26 Baseline]]+Dataset[[#This Row],[2025/26 Total change]]","v":0},{"$f":"Dataset[[#This Row],[2026/27 Baseline]]+Dataset[[#This Row],[2026/27 Total change]]","v":0},{"$f":"Dataset[[#This Row],[2027/28 Baseline]]+Dataset[[#This Row],[2027/28 Total change]]","v":0}]
["NAT|Non-transfer item","40|Social contributions","2025_26","MTEC2025",40,5,5,52620,1348,"40","05","05","052620","001348","40|05|05|001348","01","01","01","02","02","01|01|01|02|02","National","Transport","Civil Aviation","Aviation Administration Support","Non-transfer item","Current","Current payments","Compensation of employees","Social contributions","Social contributions","Economic development","Economic regulation and infrastructure","NAT",643,544,745,555,555,555,801,555,578,605,632,null,null,null,null,null,null,null,null,null,null,null,null,null,null,null,null,null,null,null,null,null,null,null,null,null,null,null,null,null,null,null,null,null,null,{"$f":"Dataset[[#This Row],[2025/26 From - Spending review Topic 1]]+Dataset[[#This Row],[2025/26 From - Spending review Topic 2]]+Dataset[[#This Row],[2025/26 From - Spending review Topic 3]]+Dataset[[#This Row],[2025/26 From - Spending review Topic 4]]+Dataset[[#This Row],[2025/26 From - Other reallocations]]","v":0},{"$f":"Dataset[[#This Row],[2026/27 From - Spending review Topic 1]]+Dataset[[#This Row],[2026/27 From - Spending review Topic 2]]+Dataset[[#This Row],[2026/27 From - Spending review Topic 3]]+Dataset[[#This Row],[2026/27 From - Spending review Topic 4]]+Dataset[[#This Row],[2026/27 From - Other reallocations]]","v":0},{"$f":"Dataset[[#This Row],[2027/28 From - Spending review Topic 1]]+Dataset[[#This Row],[2027/28 From - Spending review Topic 2]]+Dataset[[#This Row],[2027/28 From - Spending review Topic 3]]+Dataset[[#This Row],[2027/28 From - Spending review Topic 4]]+Dataset[[#This Row],[2027/28 From - Other reallocations]]","v":0},{"$f":"Dataset[[#This Row],[2025/26 To - Spending review Topic 1]]+Dataset[[#This Row],[2025/26 To - Spending review Topic 2]]+Dataset[[#This Row],[2025/26 To - Spending review Topic 3]]+Dataset[[#This Row],[2025/26 To - Spending review Topic 4]]+Dataset[[#This Row],[2025/26 To - Other reallocations]]","v":0},{"$f":"Dataset[[#This Row],[2026/27 To - Spending review Topic 1]]+Dataset[[#This Row],[2026/27 To - Spending review Topic 2]]+Dataset[[#This Row],[2026/27 To - Spending review Topic 3]]+Dataset[[#This Row],[2026/27 To - Spending review Topic 4]]+Dataset[[#This Row],[2026/27 To - Other reallocations]]","v":0},{"$f":"Dataset[[#This Row],[2027/28 To - Spending review Topic 1]]+Dataset[[#This Row],[2027/28 To - Spending review Topic 2]]+Dataset[[#This Row],[2027/28 To - Spending review Topic 3]]+Dataset[[#This Row],[2027/28 To - Spending review Topic 4]]+Dataset[[#This Row],[2027/28 To - Other reallocations]]","v":0},{"$f":"Dataset[[#This Row],[2025/26 Reduction]]+Dataset[[#This Row],[2025/26 From - Total]]","v":0},{"$f":"Dataset[[#This Row],[2026/27 Reduction]]+Dataset[[#This Row],[2026/27 From - Total]]","v":0},{"$f":"Dataset[[#This Row],[2027/28 Reduction]]+Dataset[[#This Row],[2027/28 From - Total]]","v":0},{"$f":"Dataset[[#This Row],[2024/25 Reduction]]","v":0},{"$f":"SUM(Dataset[[#This Row],[2025/26 Reduction]],Dataset[[#This Row],[2025/26 From - Total]],Dataset[[#This Row],[2025/26 To - Total]])","v":0},{"$f":"SUM(Dataset[[#This Row],[2026/27 Reduction]],Dataset[[#This Row],[2026/27 From - Total]],Dataset[[#This Row],[2026/27 To - Total]])","v":0},{"$f":"SUM(Dataset[[#This Row],[2027/28 Reduction]],Dataset[[#This Row],[2027/28 From - Total]],Dataset[[#This Row],[2027/28 To - Total]])","v":0},{"$f":"Dataset[[#This Row],[2024/25 Baseline]]+Dataset[[#This Row],[2024/25 Total change]]","v":555},{"$f":"Dataset[[#This Row],[2025/26 Baseline]]+Dataset[[#This Row],[2025/26 Total change]]","v":578},{"$f":"Dataset[[#This Row],[2026/27 Baseline]]+Dataset[[#This Row],[2026/27 Total change]]","v":605},{"$f":"Dataset[[#This Row],[2027/28 Baseline]]+Dataset[[#This Row],[2027/28 Total change]]","v":632}]
["NAT|Non-transfer item","40|Minor assets","2025_26","MTEC2025",40,5,5,52623,1351,"40","05","05","052623","001351","40|05|05|001351","01","01","02","05","05","01|01|02|05|05","National","Transport","Civil Aviation","Aviation Administration Support","Non-transfer item","Current","Current payments","Goods and services","Minor assets","Minor assets","Economic development","Economic regulation and infrastructure","NAT",0,10,30,17,17,17,30,17,17,18,19,null,null,null,null,null,null,null,null,null,null,null,null,null,null,null,null,null,null,null,null,null,null,null,null,null,null,null,null,null,null,null,null,null,null,{"$f":"Dataset[[#This Row],[2025/26 From - Spending review Topic 1]]+Dataset[[#This Row],[2025/26 From - Spending review Topic 2]]+Dataset[[#This Row],[2025/26 From - Spending review Topic 3]]+Dataset[[#This Row],[2025/26 From - Spending review Topic 4]]+Dataset[[#This Row],[2025/26 From - Other reallocations]]","v":0},{"$f":"Dataset[[#This Row],[2026/27 From - Spending review Topic 1]]+Dataset[[#This Row],[2026/27 From - Spending review Topic 2]]+Dataset[[#This Row],[2026/27 From - Spending review Topic 3]]+Dataset[[#This Row],[2026/27 From - Spending review Topic 4]]+Dataset[[#This Row],[2026/27 From - Other reallocations]]","v":0},{"$f":"Dataset[[#This Row],[2027/28 From - Spending review Topic 1]]+Dataset[[#This Row],[2027/28 From - Spending review Topic 2]]+Dataset[[#This Row],[2027/28 From - Spending review Topic 3]]+Dataset[[#This Row],[2027/28 From - Spending review Topic 4]]+Dataset[[#This Row],[2027/28 From - Other reallocations]]","v":0},{"$f":"Dataset[[#This Row],[2025/26 To - Spending review Topic 1]]+Dataset[[#This Row],[2025/26 To - Spending review Topic 2]]+Dataset[[#This Row],[2025/26 To - Spending review Topic 3]]+Dataset[[#This Row],[2025/26 To - Spending review Topic 4]]+Dataset[[#This Row],[2025/26 To - Other reallocations]]","v":0},{"$f":"Dataset[[#This Row],[2026/27 To - Spending review Topic 1]]+Dataset[[#This Row],[2026/27 To - Spending review Topic 2]]+Dataset[[#This Row],[2026/27 To - Spending review Topic 3]]+Dataset[[#This Row],[2026/27 To - Spending review Topic 4]]+Dataset[[#This Row],[2026/27 To - Other reallocations]]","v":0},{"$f":"Dataset[[#This Row],[2027/28 To - Spending review Topic 1]]+Dataset[[#This Row],[2027/28 To - Spending review Topic 2]]+Dataset[[#This Row],[2027/28 To - Spending review Topic 3]]+Dataset[[#This Row],[2027/28 To - Spending review Topic 4]]+Dataset[[#This Row],[2027/28 To - Other reallocations]]","v":0},{"$f":"Dataset[[#This Row],[2025/26 Reduction]]+Dataset[[#This Row],[2025/26 From - Total]]","v":0},{"$f":"Dataset[[#This Row],[2026/27 Reduction]]+Dataset[[#This Row],[2026/27 From - Total]]","v":0},{"$f":"Dataset[[#This Row],[2027/28 Reduction]]+Dataset[[#This Row],[2027/28 From - Total]]","v":0},{"$f":"Dataset[[#This Row],[2024/25 Reduction]]","v":0},{"$f":"SUM(Dataset[[#This Row],[2025/26 Reduction]],Dataset[[#This Row],[2025/26 From - Total]],Dataset[[#This Row],[2025/26 To - Total]])","v":0},{"$f":"SUM(Dataset[[#This Row],[2026/27 Reduction]],Dataset[[#This Row],[2026/27 From - Total]],Dataset[[#This Row],[2026/27 To - Total]])","v":0},{"$f":"SUM(Dataset[[#This Row],[2027/28 Reduction]],Dataset[[#This Row],[2027/28 From - Total]],Dataset[[#This Row],[2027/28 To - Total]])","v":0},{"$f":"Dataset[[#This Row],[2024/25 Baseline]]+Dataset[[#This Row],[2024/25 Total change]]","v":17},{"$f":"Dataset[[#This Row],[2025/26 Baseline]]+Dataset[[#This Row],[2025/26 Total change]]","v":17},{"$f":"Dataset[[#This Row],[2026/27 Baseline]]+Dataset[[#This Row],[2026/27 Total change]]","v":18},{"$f":"Dataset[[#This Row],[2027/28 Baseline]]+Dataset[[#This Row],[2027/28 Total change]]","v":19}]
["NAT|Non-transfer item","40|Computer services","2025_26","MTEC2025",40,5,5,52628,1356,"40","05","05","052628","001356","40|05|05|001356","01","01","02","10","10","01|01|02|10|10","National","Transport","Civil Aviation","Aviation Administration Support","Non-transfer item","Current","Current payments","Goods and services","Computer services","Computer services","Economic development","Economic regulation and infrastructure","NAT",0,0,0,0,0,0,1,0,0,0,0,null,null,null,null,null,null,null,null,null,null,null,null,null,null,null,null,null,null,null,null,null,null,null,null,null,null,null,null,null,null,null,null,null,null,{"$f":"Dataset[[#This Row],[2025/26 From - Spending review Topic 1]]+Dataset[[#This Row],[2025/26 From - Spending review Topic 2]]+Dataset[[#This Row],[2025/26 From - Spending review Topic 3]]+Dataset[[#This Row],[2025/26 From - Spending review Topic 4]]+Dataset[[#This Row],[2025/26 From - Other reallocations]]","v":0},{"$f":"Dataset[[#This Row],[2026/27 From - Spending review Topic 1]]+Dataset[[#This Row],[2026/27 From - Spending review Topic 2]]+Dataset[[#This Row],[2026/27 From - Spending review Topic 3]]+Dataset[[#This Row],[2026/27 From - Spending review Topic 4]]+Dataset[[#This Row],[2026/27 From - Other reallocations]]","v":0},{"$f":"Dataset[[#This Row],[2027/28 From - Spending review Topic 1]]+Dataset[[#This Row],[2027/28 From - Spending review Topic 2]]+Dataset[[#This Row],[2027/28 From - Spending review Topic 3]]+Dataset[[#This Row],[2027/28 From - Spending review Topic 4]]+Dataset[[#This Row],[2027/28 From - Other reallocations]]","v":0},{"$f":"Dataset[[#This Row],[2025/26 To - Spending review Topic 1]]+Dataset[[#This Row],[2025/26 To - Spending review Topic 2]]+Dataset[[#This Row],[2025/26 To - Spending review Topic 3]]+Dataset[[#This Row],[2025/26 To - Spending review Topic 4]]+Dataset[[#This Row],[2025/26 To - Other reallocations]]","v":0},{"$f":"Dataset[[#This Row],[2026/27 To - Spending review Topic 1]]+Dataset[[#This Row],[2026/27 To - Spending review Topic 2]]+Dataset[[#This Row],[2026/27 To - Spending review Topic 3]]+Dataset[[#This Row],[2026/27 To - Spending review Topic 4]]+Dataset[[#This Row],[2026/27 To - Other reallocations]]","v":0},{"$f":"Dataset[[#This Row],[2027/28 To - Spending review Topic 1]]+Dataset[[#This Row],[2027/28 To - Spending review Topic 2]]+Dataset[[#This Row],[2027/28 To - Spending review Topic 3]]+Dataset[[#This Row],[2027/28 To - Spending review Topic 4]]+Dataset[[#This Row],[2027/28 To - Other reallocations]]","v":0},{"$f":"Dataset[[#This Row],[2025/26 Reduction]]+Dataset[[#This Row],[2025/26 From - Total]]","v":0},{"$f":"Dataset[[#This Row],[2026/27 Reduction]]+Dataset[[#This Row],[2026/27 From - Total]]","v":0},{"$f":"Dataset[[#This Row],[2027/28 Reduction]]+Dataset[[#This Row],[2027/28 From - Total]]","v":0},{"$f":"Dataset[[#This Row],[2024/25 Reduction]]","v":0},{"$f":"SUM(Dataset[[#This Row],[2025/26 Reduction]],Dataset[[#This Row],[2025/26 From - Total]],Dataset[[#This Row],[2025/26 To - Total]])","v":0},{"$f":"SUM(Dataset[[#This Row],[2026/27 Reduction]],Dataset[[#This Row],[2026/27 From - Total]],Dataset[[#This Row],[2026/27 To - Total]])","v":0},{"$f":"SUM(Dataset[[#This Row],[2027/28 Reduction]],Dataset[[#This Row],[2027/28 From - Total]],Dataset[[#This Row],[2027/28 To - Total]])","v":0},{"$f":"Dataset[[#This Row],[2024/25 Baseline]]+Dataset[[#This Row],[2024/25 Total change]]","v":0},{"$f":"Dataset[[#This Row],[2025/26 Baseline]]+Dataset[[#This Row],[2025/26 Total change]]","v":0},{"$f":"Dataset[[#This Row],[2026/27 Baseline]]+Dataset[[#This Row],[2026/27 Total change]]","v":0},{"$f":"Dataset[[#This Row],[2027/28 Baseline]]+Dataset[[#This Row],[2027/28 Total change]]","v":0}]
["NAT|Non-transfer item","40|Inventory: Farming supplies","2025_26","MTEC2025",40,5,5,52640,1368,"40","05","05","052640","001368","40|05|05|001368","01","01","02","22","22","01|01|02|22|22","National","Transport","Civil Aviation","Aviation Administration Support","Non-transfer item","Current","Current payments","Goods and services","Inventory: Farming supplies","Inventory: Farming supplies","Economic development","Economic regulation and infrastructure","NAT",0,0,0,0,0,0,null,0,0,0,0,null,null,null,null,null,null,null,null,null,null,null,null,null,null,null,null,null,null,null,null,null,null,null,null,null,null,null,null,null,null,null,null,null,null,{"$f":"Dataset[[#This Row],[2025/26 From - Spending review Topic 1]]+Dataset[[#This Row],[2025/26 From - Spending review Topic 2]]+Dataset[[#This Row],[2025/26 From - Spending review Topic 3]]+Dataset[[#This Row],[2025/26 From - Spending review Topic 4]]+Dataset[[#This Row],[2025/26 From - Other reallocations]]","v":0},{"$f":"Dataset[[#This Row],[2026/27 From - Spending review Topic 1]]+Dataset[[#This Row],[2026/27 From - Spending review Topic 2]]+Dataset[[#This Row],[2026/27 From - Spending review Topic 3]]+Dataset[[#This Row],[2026/27 From - Spending review Topic 4]]+Dataset[[#This Row],[2026/27 From - Other reallocations]]","v":0},{"$f":"Dataset[[#This Row],[2027/28 From - Spending review Topic 1]]+Dataset[[#This Row],[2027/28 From - Spending review Topic 2]]+Dataset[[#This Row],[2027/28 From - Spending review Topic 3]]+Dataset[[#This Row],[2027/28 From - Spending review Topic 4]]+Dataset[[#This Row],[2027/28 From - Other reallocations]]","v":0},{"$f":"Dataset[[#This Row],[2025/26 To - Spending review Topic 1]]+Dataset[[#This Row],[2025/26 To - Spending review Topic 2]]+Dataset[[#This Row],[2025/26 To - Spending review Topic 3]]+Dataset[[#This Row],[2025/26 To - Spending review Topic 4]]+Dataset[[#This Row],[2025/26 To - Other reallocations]]","v":0},{"$f":"Dataset[[#This Row],[2026/27 To - Spending review Topic 1]]+Dataset[[#This Row],[2026/27 To - Spending review Topic 2]]+Dataset[[#This Row],[2026/27 To - Spending review Topic 3]]+Dataset[[#This Row],[2026/27 To - Spending review Topic 4]]+Dataset[[#This Row],[2026/27 To - Other reallocations]]","v":0},{"$f":"Dataset[[#This Row],[2027/28 To - Spending review Topic 1]]+Dataset[[#This Row],[2027/28 To - Spending review Topic 2]]+Dataset[[#This Row],[2027/28 To - Spending review Topic 3]]+Dataset[[#This Row],[2027/28 To - Spending review Topic 4]]+Dataset[[#This Row],[2027/28 To - Other reallocations]]","v":0},{"$f":"Dataset[[#This Row],[2025/26 Reduction]]+Dataset[[#This Row],[2025/26 From - Total]]","v":0},{"$f":"Dataset[[#This Row],[2026/27 Reduction]]+Dataset[[#This Row],[2026/27 From - Total]]","v":0},{"$f":"Dataset[[#This Row],[2027/28 Reduction]]+Dataset[[#This Row],[2027/28 From - Total]]","v":0},{"$f":"Dataset[[#This Row],[2024/25 Reduction]]","v":0},{"$f":"SUM(Dataset[[#This Row],[2025/26 Reduction]],Dataset[[#This Row],[2025/26 From - Total]],Dataset[[#This Row],[2025/26 To - Total]])","v":0},{"$f":"SUM(Dataset[[#This Row],[2026/27 Reduction]],Dataset[[#This Row],[2026/27 From - Total]],Dataset[[#This Row],[2026/27 To - Total]])","v":0},{"$f":"SUM(Dataset[[#This Row],[2027/28 Reduction]],Dataset[[#This Row],[2027/28 From - Total]],Dataset[[#This Row],[2027/28 To - Total]])","v":0},{"$f":"Dataset[[#This Row],[2024/25 Baseline]]+Dataset[[#This Row],[2024/25 Total change]]","v":0},{"$f":"Dataset[[#This Row],[2025/26 Baseline]]+Dataset[[#This Row],[2025/26 Total change]]","v":0},{"$f":"Dataset[[#This Row],[2026/27 Baseline]]+Dataset[[#This Row],[2026/27 Total change]]","v":0},{"$f":"Dataset[[#This Row],[2027/28 Baseline]]+Dataset[[#This Row],[2027/28 Total change]]","v":0}]
["NAT|Non-transfer item","40|Inventory: Food and food supplies","2025_26","MTEC2025",40,5,5,52641,1369,"40","05","05","052641","001369","40|05|05|001369","01","01","02","23","23","01|01|02|23|23","National","Transport","Civil Aviation","Aviation Administration Support","Non-transfer item","Current","Current payments","Goods and services","Inventory: Food and food supplies","Inventory: Food and food supplies","Economic development","Economic regulation and infrastructure","NAT",0,0,0,0,0,0,null,0,0,0,0,null,null,null,null,null,null,null,null,null,null,null,null,null,null,null,null,null,null,null,null,null,null,null,null,null,null,null,null,null,null,null,null,null,null,{"$f":"Dataset[[#This Row],[2025/26 From - Spending review Topic 1]]+Dataset[[#This Row],[2025/26 From - Spending review Topic 2]]+Dataset[[#This Row],[2025/26 From - Spending review Topic 3]]+Dataset[[#This Row],[2025/26 From - Spending review Topic 4]]+Dataset[[#This Row],[2025/26 From - Other reallocations]]","v":0},{"$f":"Dataset[[#This Row],[2026/27 From - Spending review Topic 1]]+Dataset[[#This Row],[2026/27 From - Spending review Topic 2]]+Dataset[[#This Row],[2026/27 From - Spending review Topic 3]]+Dataset[[#This Row],[2026/27 From - Spending review Topic 4]]+Dataset[[#This Row],[2026/27 From - Other reallocations]]","v":0},{"$f":"Dataset[[#This Row],[2027/28 From - Spending review Topic 1]]+Dataset[[#This Row],[2027/28 From - Spending review Topic 2]]+Dataset[[#This Row],[2027/28 From - Spending review Topic 3]]+Dataset[[#This Row],[2027/28 From - Spending review Topic 4]]+Dataset[[#This Row],[2027/28 From - Other reallocations]]","v":0},{"$f":"Dataset[[#This Row],[2025/26 To - Spending review Topic 1]]+Dataset[[#This Row],[2025/26 To - Spending review Topic 2]]+Dataset[[#This Row],[2025/26 To - Spending review Topic 3]]+Dataset[[#This Row],[2025/26 To - Spending review Topic 4]]+Dataset[[#This Row],[2025/26 To - Other reallocations]]","v":0},{"$f":"Dataset[[#This Row],[2026/27 To - Spending review Topic 1]]+Dataset[[#This Row],[2026/27 To - Spending review Topic 2]]+Dataset[[#This Row],[2026/27 To - Spending review Topic 3]]+Dataset[[#This Row],[2026/27 To - Spending review Topic 4]]+Dataset[[#This Row],[2026/27 To - Other reallocations]]","v":0},{"$f":"Dataset[[#This Row],[2027/28 To - Spending review Topic 1]]+Dataset[[#This Row],[2027/28 To - Spending review Topic 2]]+Dataset[[#This Row],[2027/28 To - Spending review Topic 3]]+Dataset[[#This Row],[2027/28 To - Spending review Topic 4]]+Dataset[[#This Row],[2027/28 To - Other reallocations]]","v":0},{"$f":"Dataset[[#This Row],[2025/26 Reduction]]+Dataset[[#This Row],[2025/26 From - Total]]","v":0},{"$f":"Dataset[[#This Row],[2026/27 Reduction]]+Dataset[[#This Row],[2026/27 From - Total]]","v":0},{"$f":"Dataset[[#This Row],[2027/28 Reduction]]+Dataset[[#This Row],[2027/28 From - Total]]","v":0},{"$f":"Dataset[[#This Row],[2024/25 Reduction]]","v":0},{"$f":"SUM(Dataset[[#This Row],[2025/26 Reduction]],Dataset[[#This Row],[2025/26 From - Total]],Dataset[[#This Row],[2025/26 To - Total]])","v":0},{"$f":"SUM(Dataset[[#This Row],[2026/27 Reduction]],Dataset[[#This Row],[2026/27 From - Total]],Dataset[[#This Row],[2026/27 To - Total]])","v":0},{"$f":"SUM(Dataset[[#This Row],[2027/28 Reduction]],Dataset[[#This Row],[2027/28 From - Total]],Dataset[[#This Row],[2027/28 To - Total]])","v":0},{"$f":"Dataset[[#This Row],[2024/25 Baseline]]+Dataset[[#This Row],[2024/25 Total change]]","v":0},{"$f":"Dataset[[#This Row],[2025/26 Baseline]]+Dataset[[#This Row],[2025/26 Total change]]","v":0},{"$f":"Dataset[[#This Row],[2026/27 Baseline]]+Dataset[[#This Row],[2026/27 Total change]]","v":0},{"$f":"Dataset[[#This Row],[2027/28 Baseline]]+Dataset[[#This Row],[2027/28 Total change]]","v":0}]
["NAT|Non-transfer item","40|Property payments","2025_26","MTEC2025",40,5,5,52653,1381,"40","05","05","052653","001381","40|05|05|001381","01","01","02","35","35","01|01|02|35|35","National","Transport","Civil Aviation","Aviation Administration Support","Non-transfer item","Current","Current payments","Goods and services","Property payments","Property payments","Economic development","Economic regulation and infrastructure","NAT",0,12,0,0,0,0,null,0,0,0,0,null,null,null,null,null,null,null,null,null,null,null,null,null,null,null,null,null,null,null,null,null,null,null,null,null,null,null,null,null,null,null,null,null,null,{"$f":"Dataset[[#This Row],[2025/26 From - Spending review Topic 1]]+Dataset[[#This Row],[2025/26 From - Spending review Topic 2]]+Dataset[[#This Row],[2025/26 From - Spending review Topic 3]]+Dataset[[#This Row],[2025/26 From - Spending review Topic 4]]+Dataset[[#This Row],[2025/26 From - Other reallocations]]","v":0},{"$f":"Dataset[[#This Row],[2026/27 From - Spending review Topic 1]]+Dataset[[#This Row],[2026/27 From - Spending review Topic 2]]+Dataset[[#This Row],[2026/27 From - Spending review Topic 3]]+Dataset[[#This Row],[2026/27 From - Spending review Topic 4]]+Dataset[[#This Row],[2026/27 From - Other reallocations]]","v":0},{"$f":"Dataset[[#This Row],[2027/28 From - Spending review Topic 1]]+Dataset[[#This Row],[2027/28 From - Spending review Topic 2]]+Dataset[[#This Row],[2027/28 From - Spending review Topic 3]]+Dataset[[#This Row],[2027/28 From - Spending review Topic 4]]+Dataset[[#This Row],[2027/28 From - Other reallocations]]","v":0},{"$f":"Dataset[[#This Row],[2025/26 To - Spending review Topic 1]]+Dataset[[#This Row],[2025/26 To - Spending review Topic 2]]+Dataset[[#This Row],[2025/26 To - Spending review Topic 3]]+Dataset[[#This Row],[2025/26 To - Spending review Topic 4]]+Dataset[[#This Row],[2025/26 To - Other reallocations]]","v":0},{"$f":"Dataset[[#This Row],[2026/27 To - Spending review Topic 1]]+Dataset[[#This Row],[2026/27 To - Spending review Topic 2]]+Dataset[[#This Row],[2026/27 To - Spending review Topic 3]]+Dataset[[#This Row],[2026/27 To - Spending review Topic 4]]+Dataset[[#This Row],[2026/27 To - Other reallocations]]","v":0},{"$f":"Dataset[[#This Row],[2027/28 To - Spending review Topic 1]]+Dataset[[#This Row],[2027/28 To - Spending review Topic 2]]+Dataset[[#This Row],[2027/28 To - Spending review Topic 3]]+Dataset[[#This Row],[2027/28 To - Spending review Topic 4]]+Dataset[[#This Row],[2027/28 To - Other reallocations]]","v":0},{"$f":"Dataset[[#This Row],[2025/26 Reduction]]+Dataset[[#This Row],[2025/26 From - Total]]","v":0},{"$f":"Dataset[[#This Row],[2026/27 Reduction]]+Dataset[[#This Row],[2026/27 From - Total]]","v":0},{"$f":"Dataset[[#This Row],[2027/28 Reduction]]+Dataset[[#This Row],[2027/28 From - Total]]","v":0},{"$f":"Dataset[[#This Row],[2024/25 Reduction]]","v":0},{"$f":"SUM(Dataset[[#This Row],[2025/26 Reduction]],Dataset[[#This Row],[2025/26 From - Total]],Dataset[[#This Row],[2025/26 To - Total]])","v":0},{"$f":"SUM(Dataset[[#This Row],[2026/27 Reduction]],Dataset[[#This Row],[2026/27 From - Total]],Dataset[[#This Row],[2026/27 To - Total]])","v":0},{"$f":"SUM(Dataset[[#This Row],[2027/28 Reduction]],Dataset[[#This Row],[2027/28 From - Total]],Dataset[[#This Row],[2027/28 To - Total]])","v":0},{"$f":"Dataset[[#This Row],[2024/25 Baseline]]+Dataset[[#This Row],[2024/25 Total change]]","v":0},{"$f":"Dataset[[#This Row],[2025/26 Baseline]]+Dataset[[#This Row],[2025/26 Total change]]","v":0},{"$f":"Dataset[[#This Row],[2026/27 Baseline]]+Dataset[[#This Row],[2026/27 Total change]]","v":0},{"$f":"Dataset[[#This Row],[2027/28 Baseline]]+Dataset[[#This Row],[2027/28 Total change]]","v":0}]
["NAT|Employee social benefits","40|Social benefits","2025_26","MTEC2025",40,5,5,52661,1389,"40","05","05","052661","001389","40|05|05|001389","01","02","10","52","56","01|02|10|52|56","National","Transport","Civil Aviation","Aviation Administration Support","Employee social benefits","Current","Transfers and subsidies","Households","Social benefits","Social benefits","Economic development","Economic regulation and infrastructure","NAT",104,21,0,0,0,0,null,0,0,0,0,null,null,null,null,null,null,null,null,null,null,null,null,null,null,null,null,null,null,null,null,null,null,null,null,null,null,null,null,null,null,null,null,null,null,{"$f":"Dataset[[#This Row],[2025/26 From - Spending review Topic 1]]+Dataset[[#This Row],[2025/26 From - Spending review Topic 2]]+Dataset[[#This Row],[2025/26 From - Spending review Topic 3]]+Dataset[[#This Row],[2025/26 From - Spending review Topic 4]]+Dataset[[#This Row],[2025/26 From - Other reallocations]]","v":0},{"$f":"Dataset[[#This Row],[2026/27 From - Spending review Topic 1]]+Dataset[[#This Row],[2026/27 From - Spending review Topic 2]]+Dataset[[#This Row],[2026/27 From - Spending review Topic 3]]+Dataset[[#This Row],[2026/27 From - Spending review Topic 4]]+Dataset[[#This Row],[2026/27 From - Other reallocations]]","v":0},{"$f":"Dataset[[#This Row],[2027/28 From - Spending review Topic 1]]+Dataset[[#This Row],[2027/28 From - Spending review Topic 2]]+Dataset[[#This Row],[2027/28 From - Spending review Topic 3]]+Dataset[[#This Row],[2027/28 From - Spending review Topic 4]]+Dataset[[#This Row],[2027/28 From - Other reallocations]]","v":0},{"$f":"Dataset[[#This Row],[2025/26 To - Spending review Topic 1]]+Dataset[[#This Row],[2025/26 To - Spending review Topic 2]]+Dataset[[#This Row],[2025/26 To - Spending review Topic 3]]+Dataset[[#This Row],[2025/26 To - Spending review Topic 4]]+Dataset[[#This Row],[2025/26 To - Other reallocations]]","v":0},{"$f":"Dataset[[#This Row],[2026/27 To - Spending review Topic 1]]+Dataset[[#This Row],[2026/27 To - Spending review Topic 2]]+Dataset[[#This Row],[2026/27 To - Spending review Topic 3]]+Dataset[[#This Row],[2026/27 To - Spending review Topic 4]]+Dataset[[#This Row],[2026/27 To - Other reallocations]]","v":0},{"$f":"Dataset[[#This Row],[2027/28 To - Spending review Topic 1]]+Dataset[[#This Row],[2027/28 To - Spending review Topic 2]]+Dataset[[#This Row],[2027/28 To - Spending review Topic 3]]+Dataset[[#This Row],[2027/28 To - Spending review Topic 4]]+Dataset[[#This Row],[2027/28 To - Other reallocations]]","v":0},{"$f":"Dataset[[#This Row],[2025/26 Reduction]]+Dataset[[#This Row],[2025/26 From - Total]]","v":0},{"$f":"Dataset[[#This Row],[2026/27 Reduction]]+Dataset[[#This Row],[2026/27 From - Total]]","v":0},{"$f":"Dataset[[#This Row],[2027/28 Reduction]]+Dataset[[#This Row],[2027/28 From - Total]]","v":0},{"$f":"Dataset[[#This Row],[2024/25 Reduction]]","v":0},{"$f":"SUM(Dataset[[#This Row],[2025/26 Reduction]],Dataset[[#This Row],[2025/26 From - Total]],Dataset[[#This Row],[2025/26 To - Total]])","v":0},{"$f":"SUM(Dataset[[#This Row],[2026/27 Reduction]],Dataset[[#This Row],[2026/27 From - Total]],Dataset[[#This Row],[2026/27 To - Total]])","v":0},{"$f":"SUM(Dataset[[#This Row],[2027/28 Reduction]],Dataset[[#This Row],[2027/28 From - Total]],Dataset[[#This Row],[2027/28 To - Total]])","v":0},{"$f":"Dataset[[#This Row],[2024/25 Baseline]]+Dataset[[#This Row],[2024/25 Total change]]","v":0},{"$f":"Dataset[[#This Row],[2025/26 Baseline]]+Dataset[[#This Row],[2025/26 Total change]]","v":0},{"$f":"Dataset[[#This Row],[2026/27 Baseline]]+Dataset[[#This Row],[2026/27 Total change]]","v":0},{"$f":"Dataset[[#This Row],[2027/28 Baseline]]+Dataset[[#This Row],[2027/28 Total change]]","v":0}]
["NAT|Non-transfer item","40|Buildings","2025_26","MTEC2025",40,5,5,52662,1390,"40","05","05","052662","001390","40|05|05|001390","02","03","11","54","58","02|03|11|54|58","National","Transport","Civil Aviation","Aviation Administration Support","Non-transfer item","Capital","Payments for capital assets","Buildings and other fixed structures","Buildings","Buildings","Economic development","Economic regulation and infrastructure","NAT",0,0,0,0,0,0,null,0,0,0,0,null,null,null,null,null,null,null,null,null,null,null,null,null,null,null,null,null,null,null,null,null,null,null,null,null,null,null,null,null,null,null,null,null,null,{"$f":"Dataset[[#This Row],[2025/26 From - Spending review Topic 1]]+Dataset[[#This Row],[2025/26 From - Spending review Topic 2]]+Dataset[[#This Row],[2025/26 From - Spending review Topic 3]]+Dataset[[#This Row],[2025/26 From - Spending review Topic 4]]+Dataset[[#This Row],[2025/26 From - Other reallocations]]","v":0},{"$f":"Dataset[[#This Row],[2026/27 From - Spending review Topic 1]]+Dataset[[#This Row],[2026/27 From - Spending review Topic 2]]+Dataset[[#This Row],[2026/27 From - Spending review Topic 3]]+Dataset[[#This Row],[2026/27 From - Spending review Topic 4]]+Dataset[[#This Row],[2026/27 From - Other reallocations]]","v":0},{"$f":"Dataset[[#This Row],[2027/28 From - Spending review Topic 1]]+Dataset[[#This Row],[2027/28 From - Spending review Topic 2]]+Dataset[[#This Row],[2027/28 From - Spending review Topic 3]]+Dataset[[#This Row],[2027/28 From - Spending review Topic 4]]+Dataset[[#This Row],[2027/28 From - Other reallocations]]","v":0},{"$f":"Dataset[[#This Row],[2025/26 To - Spending review Topic 1]]+Dataset[[#This Row],[2025/26 To - Spending review Topic 2]]+Dataset[[#This Row],[2025/26 To - Spending review Topic 3]]+Dataset[[#This Row],[2025/26 To - Spending review Topic 4]]+Dataset[[#This Row],[2025/26 To - Other reallocations]]","v":0},{"$f":"Dataset[[#This Row],[2026/27 To - Spending review Topic 1]]+Dataset[[#This Row],[2026/27 To - Spending review Topic 2]]+Dataset[[#This Row],[2026/27 To - Spending review Topic 3]]+Dataset[[#This Row],[2026/27 To - Spending review Topic 4]]+Dataset[[#This Row],[2026/27 To - Other reallocations]]","v":0},{"$f":"Dataset[[#This Row],[2027/28 To - Spending review Topic 1]]+Dataset[[#This Row],[2027/28 To - Spending review Topic 2]]+Dataset[[#This Row],[2027/28 To - Spending review Topic 3]]+Dataset[[#This Row],[2027/28 To - Spending review Topic 4]]+Dataset[[#This Row],[2027/28 To - Other reallocations]]","v":0},{"$f":"Dataset[[#This Row],[2025/26 Reduction]]+Dataset[[#This Row],[2025/26 From - Total]]","v":0},{"$f":"Dataset[[#This Row],[2026/27 Reduction]]+Dataset[[#This Row],[2026/27 From - Total]]","v":0},{"$f":"Dataset[[#This Row],[2027/28 Reduction]]+Dataset[[#This Row],[2027/28 From - Total]]","v":0},{"$f":"Dataset[[#This Row],[2024/25 Reduction]]","v":0},{"$f":"SUM(Dataset[[#This Row],[2025/26 Reduction]],Dataset[[#This Row],[2025/26 From - Total]],Dataset[[#This Row],[2025/26 To - Total]])","v":0},{"$f":"SUM(Dataset[[#This Row],[2026/27 Reduction]],Dataset[[#This Row],[2026/27 From - Total]],Dataset[[#This Row],[2026/27 To - Total]])","v":0},{"$f":"SUM(Dataset[[#This Row],[2027/28 Reduction]],Dataset[[#This Row],[2027/28 From - Total]],Dataset[[#This Row],[2027/28 To - Total]])","v":0},{"$f":"Dataset[[#This Row],[2024/25 Baseline]]+Dataset[[#This Row],[2024/25 Total change]]","v":0},{"$f":"Dataset[[#This Row],[2025/26 Baseline]]+Dataset[[#This Row],[2025/26 Total change]]","v":0},{"$f":"Dataset[[#This Row],[2026/27 Baseline]]+Dataset[[#This Row],[2026/27 Total change]]","v":0},{"$f":"Dataset[[#This Row],[2027/28 Baseline]]+Dataset[[#This Row],[2027/28 Total change]]","v":0}]
["NAT|Non-transfer item","40|Advertising","2025_26","MTEC2025",40,6,1,52674,1402,"40","06","01","052674","001402","40|06|01|001402","01","01","02","04","04","01|01|02|04|04","National","Transport","Maritime Transport","Maritime Policy Development","Non-transfer item","Current","Current payments","Goods and services","Advertising","Advertising","Economic development","Economic regulation and infrastructure","NAT",160,0,1,0,401,401,88,80,84,89,93,null,null,null,null,null,null,null,null,null,null,null,null,null,null,null,null,null,null,null,null,null,null,null,null,null,null,null,null,null,null,null,null,null,null,{"$f":"Dataset[[#This Row],[2025/26 From - Spending review Topic 1]]+Dataset[[#This Row],[2025/26 From - Spending review Topic 2]]+Dataset[[#This Row],[2025/26 From - Spending review Topic 3]]+Dataset[[#This Row],[2025/26 From - Spending review Topic 4]]+Dataset[[#This Row],[2025/26 From - Other reallocations]]","v":0},{"$f":"Dataset[[#This Row],[2026/27 From - Spending review Topic 1]]+Dataset[[#This Row],[2026/27 From - Spending review Topic 2]]+Dataset[[#This Row],[2026/27 From - Spending review Topic 3]]+Dataset[[#This Row],[2026/27 From - Spending review Topic 4]]+Dataset[[#This Row],[2026/27 From - Other reallocations]]","v":0},{"$f":"Dataset[[#This Row],[2027/28 From - Spending review Topic 1]]+Dataset[[#This Row],[2027/28 From - Spending review Topic 2]]+Dataset[[#This Row],[2027/28 From - Spending review Topic 3]]+Dataset[[#This Row],[2027/28 From - Spending review Topic 4]]+Dataset[[#This Row],[2027/28 From - Other reallocations]]","v":0},{"$f":"Dataset[[#This Row],[2025/26 To - Spending review Topic 1]]+Dataset[[#This Row],[2025/26 To - Spending review Topic 2]]+Dataset[[#This Row],[2025/26 To - Spending review Topic 3]]+Dataset[[#This Row],[2025/26 To - Spending review Topic 4]]+Dataset[[#This Row],[2025/26 To - Other reallocations]]","v":0},{"$f":"Dataset[[#This Row],[2026/27 To - Spending review Topic 1]]+Dataset[[#This Row],[2026/27 To - Spending review Topic 2]]+Dataset[[#This Row],[2026/27 To - Spending review Topic 3]]+Dataset[[#This Row],[2026/27 To - Spending review Topic 4]]+Dataset[[#This Row],[2026/27 To - Other reallocations]]","v":0},{"$f":"Dataset[[#This Row],[2027/28 To - Spending review Topic 1]]+Dataset[[#This Row],[2027/28 To - Spending review Topic 2]]+Dataset[[#This Row],[2027/28 To - Spending review Topic 3]]+Dataset[[#This Row],[2027/28 To - Spending review Topic 4]]+Dataset[[#This Row],[2027/28 To - Other reallocations]]","v":0},{"$f":"Dataset[[#This Row],[2025/26 Reduction]]+Dataset[[#This Row],[2025/26 From - Total]]","v":0},{"$f":"Dataset[[#This Row],[2026/27 Reduction]]+Dataset[[#This Row],[2026/27 From - Total]]","v":0},{"$f":"Dataset[[#This Row],[2027/28 Reduction]]+Dataset[[#This Row],[2027/28 From - Total]]","v":0},{"$f":"Dataset[[#This Row],[2024/25 Reduction]]","v":0},{"$f":"SUM(Dataset[[#This Row],[2025/26 Reduction]],Dataset[[#This Row],[2025/26 From - Total]],Dataset[[#This Row],[2025/26 To - Total]])","v":0},{"$f":"SUM(Dataset[[#This Row],[2026/27 Reduction]],Dataset[[#This Row],[2026/27 From - Total]],Dataset[[#This Row],[2026/27 To - Total]])","v":0},{"$f":"SUM(Dataset[[#This Row],[2027/28 Reduction]],Dataset[[#This Row],[2027/28 From - Total]],Dataset[[#This Row],[2027/28 To - Total]])","v":0},{"$f":"Dataset[[#This Row],[2024/25 Baseline]]+Dataset[[#This Row],[2024/25 Total change]]","v":80},{"$f":"Dataset[[#This Row],[2025/26 Baseline]]+Dataset[[#This Row],[2025/26 Total change]]","v":84},{"$f":"Dataset[[#This Row],[2026/27 Baseline]]+Dataset[[#This Row],[2026/27 Total change]]","v":89},{"$f":"Dataset[[#This Row],[2027/28 Baseline]]+Dataset[[#This Row],[2027/28 Total change]]","v":93}]
["NAT|Non-transfer item","40|Infrastructure and planning services","2025_26","MTEC2025",40,6,1,52682,1410,"40","06","01","052682","001410","40|06|01|001410","01","01","02","12","12","01|01|02|12|12","National","Transport","Maritime Transport","Maritime Policy Development","Non-transfer item","Current","Current payments","Goods and services","Infrastructure and planning services","Infrastructure and planning services","Economic development","Economic regulation and infrastructure","NAT",0,0,0,0,0,0,null,0,0,0,0,null,null,null,null,null,null,null,null,null,null,null,null,null,null,null,null,null,null,null,null,null,null,null,null,null,null,null,null,null,null,null,null,null,null,{"$f":"Dataset[[#This Row],[2025/26 From - Spending review Topic 1]]+Dataset[[#This Row],[2025/26 From - Spending review Topic 2]]+Dataset[[#This Row],[2025/26 From - Spending review Topic 3]]+Dataset[[#This Row],[2025/26 From - Spending review Topic 4]]+Dataset[[#This Row],[2025/26 From - Other reallocations]]","v":0},{"$f":"Dataset[[#This Row],[2026/27 From - Spending review Topic 1]]+Dataset[[#This Row],[2026/27 From - Spending review Topic 2]]+Dataset[[#This Row],[2026/27 From - Spending review Topic 3]]+Dataset[[#This Row],[2026/27 From - Spending review Topic 4]]+Dataset[[#This Row],[2026/27 From - Other reallocations]]","v":0},{"$f":"Dataset[[#This Row],[2027/28 From - Spending review Topic 1]]+Dataset[[#This Row],[2027/28 From - Spending review Topic 2]]+Dataset[[#This Row],[2027/28 From - Spending review Topic 3]]+Dataset[[#This Row],[2027/28 From - Spending review Topic 4]]+Dataset[[#This Row],[2027/28 From - Other reallocations]]","v":0},{"$f":"Dataset[[#This Row],[2025/26 To - Spending review Topic 1]]+Dataset[[#This Row],[2025/26 To - Spending review Topic 2]]+Dataset[[#This Row],[2025/26 To - Spending review Topic 3]]+Dataset[[#This Row],[2025/26 To - Spending review Topic 4]]+Dataset[[#This Row],[2025/26 To - Other reallocations]]","v":0},{"$f":"Dataset[[#This Row],[2026/27 To - Spending review Topic 1]]+Dataset[[#This Row],[2026/27 To - Spending review Topic 2]]+Dataset[[#This Row],[2026/27 To - Spending review Topic 3]]+Dataset[[#This Row],[2026/27 To - Spending review Topic 4]]+Dataset[[#This Row],[2026/27 To - Other reallocations]]","v":0},{"$f":"Dataset[[#This Row],[2027/28 To - Spending review Topic 1]]+Dataset[[#This Row],[2027/28 To - Spending review Topic 2]]+Dataset[[#This Row],[2027/28 To - Spending review Topic 3]]+Dataset[[#This Row],[2027/28 To - Spending review Topic 4]]+Dataset[[#This Row],[2027/28 To - Other reallocations]]","v":0},{"$f":"Dataset[[#This Row],[2025/26 Reduction]]+Dataset[[#This Row],[2025/26 From - Total]]","v":0},{"$f":"Dataset[[#This Row],[2026/27 Reduction]]+Dataset[[#This Row],[2026/27 From - Total]]","v":0},{"$f":"Dataset[[#This Row],[2027/28 Reduction]]+Dataset[[#This Row],[2027/28 From - Total]]","v":0},{"$f":"Dataset[[#This Row],[2024/25 Reduction]]","v":0},{"$f":"SUM(Dataset[[#This Row],[2025/26 Reduction]],Dataset[[#This Row],[2025/26 From - Total]],Dataset[[#This Row],[2025/26 To - Total]])","v":0},{"$f":"SUM(Dataset[[#This Row],[2026/27 Reduction]],Dataset[[#This Row],[2026/27 From - Total]],Dataset[[#This Row],[2026/27 To - Total]])","v":0},{"$f":"SUM(Dataset[[#This Row],[2027/28 Reduction]],Dataset[[#This Row],[2027/28 From - Total]],Dataset[[#This Row],[2027/28 To - Total]])","v":0},{"$f":"Dataset[[#This Row],[2024/25 Baseline]]+Dataset[[#This Row],[2024/25 Total change]]","v":0},{"$f":"Dataset[[#This Row],[2025/26 Baseline]]+Dataset[[#This Row],[2025/26 Total change]]","v":0},{"$f":"Dataset[[#This Row],[2026/27 Baseline]]+Dataset[[#This Row],[2026/27 Total change]]","v":0},{"$f":"Dataset[[#This Row],[2027/28 Baseline]]+Dataset[[#This Row],[2027/28 Total change]]","v":0}]
["NAT|Non-transfer item","40|Laboratory services","2025_26","MTEC2025",40,6,1,52683,1411,"40","06","01","052683","001411","40|06|01|001411","01","01","02","13","13","01|01|02|13|13","National","Transport","Maritime Transport","Maritime Policy Development","Non-transfer item","Current","Current payments","Goods and services","Laboratory services","Laboratory services","Economic development","Economic regulation and infrastructure","NAT",0,0,0,0,0,0,null,0,0,0,0,null,null,null,null,null,null,null,null,null,null,null,null,null,null,null,null,null,null,null,null,null,null,null,null,null,null,null,null,null,null,null,null,null,null,{"$f":"Dataset[[#This Row],[2025/26 From - Spending review Topic 1]]+Dataset[[#This Row],[2025/26 From - Spending review Topic 2]]+Dataset[[#This Row],[2025/26 From - Spending review Topic 3]]+Dataset[[#This Row],[2025/26 From - Spending review Topic 4]]+Dataset[[#This Row],[2025/26 From - Other reallocations]]","v":0},{"$f":"Dataset[[#This Row],[2026/27 From - Spending review Topic 1]]+Dataset[[#This Row],[2026/27 From - Spending review Topic 2]]+Dataset[[#This Row],[2026/27 From - Spending review Topic 3]]+Dataset[[#This Row],[2026/27 From - Spending review Topic 4]]+Dataset[[#This Row],[2026/27 From - Other reallocations]]","v":0},{"$f":"Dataset[[#This Row],[2027/28 From - Spending review Topic 1]]+Dataset[[#This Row],[2027/28 From - Spending review Topic 2]]+Dataset[[#This Row],[2027/28 From - Spending review Topic 3]]+Dataset[[#This Row],[2027/28 From - Spending review Topic 4]]+Dataset[[#This Row],[2027/28 From - Other reallocations]]","v":0},{"$f":"Dataset[[#This Row],[2025/26 To - Spending review Topic 1]]+Dataset[[#This Row],[2025/26 To - Spending review Topic 2]]+Dataset[[#This Row],[2025/26 To - Spending review Topic 3]]+Dataset[[#This Row],[2025/26 To - Spending review Topic 4]]+Dataset[[#This Row],[2025/26 To - Other reallocations]]","v":0},{"$f":"Dataset[[#This Row],[2026/27 To - Spending review Topic 1]]+Dataset[[#This Row],[2026/27 To - Spending review Topic 2]]+Dataset[[#This Row],[2026/27 To - Spending review Topic 3]]+Dataset[[#This Row],[2026/27 To - Spending review Topic 4]]+Dataset[[#This Row],[2026/27 To - Other reallocations]]","v":0},{"$f":"Dataset[[#This Row],[2027/28 To - Spending review Topic 1]]+Dataset[[#This Row],[2027/28 To - Spending review Topic 2]]+Dataset[[#This Row],[2027/28 To - Spending review Topic 3]]+Dataset[[#This Row],[2027/28 To - Spending review Topic 4]]+Dataset[[#This Row],[2027/28 To - Other reallocations]]","v":0},{"$f":"Dataset[[#This Row],[2025/26 Reduction]]+Dataset[[#This Row],[2025/26 From - Total]]","v":0},{"$f":"Dataset[[#This Row],[2026/27 Reduction]]+Dataset[[#This Row],[2026/27 From - Total]]","v":0},{"$f":"Dataset[[#This Row],[2027/28 Reduction]]+Dataset[[#This Row],[2027/28 From - Total]]","v":0},{"$f":"Dataset[[#This Row],[2024/25 Reduction]]","v":0},{"$f":"SUM(Dataset[[#This Row],[2025/26 Reduction]],Dataset[[#This Row],[2025/26 From - Total]],Dataset[[#This Row],[2025/26 To - Total]])","v":0},{"$f":"SUM(Dataset[[#This Row],[2026/27 Reduction]],Dataset[[#This Row],[2026/27 From - Total]],Dataset[[#This Row],[2026/27 To - Total]])","v":0},{"$f":"SUM(Dataset[[#This Row],[2027/28 Reduction]],Dataset[[#This Row],[2027/28 From - Total]],Dataset[[#This Row],[2027/28 To - Total]])","v":0},{"$f":"Dataset[[#This Row],[2024/25 Baseline]]+Dataset[[#This Row],[2024/25 Total change]]","v":0},{"$f":"Dataset[[#This Row],[2025/26 Baseline]]+Dataset[[#This Row],[2025/26 Total change]]","v":0},{"$f":"Dataset[[#This Row],[2026/27 Baseline]]+Dataset[[#This Row],[2026/27 Total change]]","v":0},{"$f":"Dataset[[#This Row],[2027/28 Baseline]]+Dataset[[#This Row],[2027/28 Total change]]","v":0}]
["NAT|Non-transfer item","40|Inventory: Learner and teacher support material","2025_26","MTEC2025",40,6,1,52695,1423,"40","06","01","052695","001423","40|06|01|001423","01","01","02","25","25","01|01|02|25|25","National","Transport","Maritime Transport","Maritime Policy Development","Non-transfer item","Current","Current payments","Goods and services","Inventory: Learner and teacher support material","Inventory: Learner and teacher support material","Economic development","Economic regulation and infrastructure","NAT",0,0,0,0,0,0,null,0,0,0,0,null,null,null,null,null,null,null,null,null,null,null,null,null,null,null,null,null,null,null,null,null,null,null,null,null,null,null,null,null,null,null,null,null,null,{"$f":"Dataset[[#This Row],[2025/26 From - Spending review Topic 1]]+Dataset[[#This Row],[2025/26 From - Spending review Topic 2]]+Dataset[[#This Row],[2025/26 From - Spending review Topic 3]]+Dataset[[#This Row],[2025/26 From - Spending review Topic 4]]+Dataset[[#This Row],[2025/26 From - Other reallocations]]","v":0},{"$f":"Dataset[[#This Row],[2026/27 From - Spending review Topic 1]]+Dataset[[#This Row],[2026/27 From - Spending review Topic 2]]+Dataset[[#This Row],[2026/27 From - Spending review Topic 3]]+Dataset[[#This Row],[2026/27 From - Spending review Topic 4]]+Dataset[[#This Row],[2026/27 From - Other reallocations]]","v":0},{"$f":"Dataset[[#This Row],[2027/28 From - Spending review Topic 1]]+Dataset[[#This Row],[2027/28 From - Spending review Topic 2]]+Dataset[[#This Row],[2027/28 From - Spending review Topic 3]]+Dataset[[#This Row],[2027/28 From - Spending review Topic 4]]+Dataset[[#This Row],[2027/28 From - Other reallocations]]","v":0},{"$f":"Dataset[[#This Row],[2025/26 To - Spending review Topic 1]]+Dataset[[#This Row],[2025/26 To - Spending review Topic 2]]+Dataset[[#This Row],[2025/26 To - Spending review Topic 3]]+Dataset[[#This Row],[2025/26 To - Spending review Topic 4]]+Dataset[[#This Row],[2025/26 To - Other reallocations]]","v":0},{"$f":"Dataset[[#This Row],[2026/27 To - Spending review Topic 1]]+Dataset[[#This Row],[2026/27 To - Spending review Topic 2]]+Dataset[[#This Row],[2026/27 To - Spending review Topic 3]]+Dataset[[#This Row],[2026/27 To - Spending review Topic 4]]+Dataset[[#This Row],[2026/27 To - Other reallocations]]","v":0},{"$f":"Dataset[[#This Row],[2027/28 To - Spending review Topic 1]]+Dataset[[#This Row],[2027/28 To - Spending review Topic 2]]+Dataset[[#This Row],[2027/28 To - Spending review Topic 3]]+Dataset[[#This Row],[2027/28 To - Spending review Topic 4]]+Dataset[[#This Row],[2027/28 To - Other reallocations]]","v":0},{"$f":"Dataset[[#This Row],[2025/26 Reduction]]+Dataset[[#This Row],[2025/26 From - Total]]","v":0},{"$f":"Dataset[[#This Row],[2026/27 Reduction]]+Dataset[[#This Row],[2026/27 From - Total]]","v":0},{"$f":"Dataset[[#This Row],[2027/28 Reduction]]+Dataset[[#This Row],[2027/28 From - Total]]","v":0},{"$f":"Dataset[[#This Row],[2024/25 Reduction]]","v":0},{"$f":"SUM(Dataset[[#This Row],[2025/26 Reduction]],Dataset[[#This Row],[2025/26 From - Total]],Dataset[[#This Row],[2025/26 To - Total]])","v":0},{"$f":"SUM(Dataset[[#This Row],[2026/27 Reduction]],Dataset[[#This Row],[2026/27 From - Total]],Dataset[[#This Row],[2026/27 To - Total]])","v":0},{"$f":"SUM(Dataset[[#This Row],[2027/28 Reduction]],Dataset[[#This Row],[2027/28 From - Total]],Dataset[[#This Row],[2027/28 To - Total]])","v":0},{"$f":"Dataset[[#This Row],[2024/25 Baseline]]+Dataset[[#This Row],[2024/25 Total change]]","v":0},{"$f":"Dataset[[#This Row],[2025/26 Baseline]]+Dataset[[#This Row],[2025/26 Total change]]","v":0},{"$f":"Dataset[[#This Row],[2026/27 Baseline]]+Dataset[[#This Row],[2026/27 Total change]]","v":0},{"$f":"Dataset[[#This Row],[2027/28 Baseline]]+Dataset[[#This Row],[2027/28 Total change]]","v":0}]
["NAT|Non-transfer item","40|Operating leases","2025_26","MTEC2025",40,6,1,52703,1431,"40","06","01","052703","001431","40|06|01|001431","01","01","02","33","33","01|01|02|33|33","National","Transport","Maritime Transport","Maritime Policy Development","Non-transfer item","Current","Current payments","Goods and services","Operating leases","Operating leases","Economic development","Economic regulation and infrastructure","NAT",0,1450,1118,300,300,300,1273,461,486,513,536,null,null,null,null,null,null,null,null,null,null,null,null,null,null,null,null,null,null,null,null,null,null,null,null,null,null,null,null,null,null,null,null,null,null,{"$f":"Dataset[[#This Row],[2025/26 From - Spending review Topic 1]]+Dataset[[#This Row],[2025/26 From - Spending review Topic 2]]+Dataset[[#This Row],[2025/26 From - Spending review Topic 3]]+Dataset[[#This Row],[2025/26 From - Spending review Topic 4]]+Dataset[[#This Row],[2025/26 From - Other reallocations]]","v":0},{"$f":"Dataset[[#This Row],[2026/27 From - Spending review Topic 1]]+Dataset[[#This Row],[2026/27 From - Spending review Topic 2]]+Dataset[[#This Row],[2026/27 From - Spending review Topic 3]]+Dataset[[#This Row],[2026/27 From - Spending review Topic 4]]+Dataset[[#This Row],[2026/27 From - Other reallocations]]","v":0},{"$f":"Dataset[[#This Row],[2027/28 From - Spending review Topic 1]]+Dataset[[#This Row],[2027/28 From - Spending review Topic 2]]+Dataset[[#This Row],[2027/28 From - Spending review Topic 3]]+Dataset[[#This Row],[2027/28 From - Spending review Topic 4]]+Dataset[[#This Row],[2027/28 From - Other reallocations]]","v":0},{"$f":"Dataset[[#This Row],[2025/26 To - Spending review Topic 1]]+Dataset[[#This Row],[2025/26 To - Spending review Topic 2]]+Dataset[[#This Row],[2025/26 To - Spending review Topic 3]]+Dataset[[#This Row],[2025/26 To - Spending review Topic 4]]+Dataset[[#This Row],[2025/26 To - Other reallocations]]","v":0},{"$f":"Dataset[[#This Row],[2026/27 To - Spending review Topic 1]]+Dataset[[#This Row],[2026/27 To - Spending review Topic 2]]+Dataset[[#This Row],[2026/27 To - Spending review Topic 3]]+Dataset[[#This Row],[2026/27 To - Spending review Topic 4]]+Dataset[[#This Row],[2026/27 To - Other reallocations]]","v":0},{"$f":"Dataset[[#This Row],[2027/28 To - Spending review Topic 1]]+Dataset[[#This Row],[2027/28 To - Spending review Topic 2]]+Dataset[[#This Row],[2027/28 To - Spending review Topic 3]]+Dataset[[#This Row],[2027/28 To - Spending review Topic 4]]+Dataset[[#This Row],[2027/28 To - Other reallocations]]","v":0},{"$f":"Dataset[[#This Row],[2025/26 Reduction]]+Dataset[[#This Row],[2025/26 From - Total]]","v":0},{"$f":"Dataset[[#This Row],[2026/27 Reduction]]+Dataset[[#This Row],[2026/27 From - Total]]","v":0},{"$f":"Dataset[[#This Row],[2027/28 Reduction]]+Dataset[[#This Row],[2027/28 From - Total]]","v":0},{"$f":"Dataset[[#This Row],[2024/25 Reduction]]","v":0},{"$f":"SUM(Dataset[[#This Row],[2025/26 Reduction]],Dataset[[#This Row],[2025/26 From - Total]],Dataset[[#This Row],[2025/26 To - Total]])","v":0},{"$f":"SUM(Dataset[[#This Row],[2026/27 Reduction]],Dataset[[#This Row],[2026/27 From - Total]],Dataset[[#This Row],[2026/27 To - Total]])","v":0},{"$f":"SUM(Dataset[[#This Row],[2027/28 Reduction]],Dataset[[#This Row],[2027/28 From - Total]],Dataset[[#This Row],[2027/28 To - Total]])","v":0},{"$f":"Dataset[[#This Row],[2024/25 Baseline]]+Dataset[[#This Row],[2024/25 Total change]]","v":461},{"$f":"Dataset[[#This Row],[2025/26 Baseline]]+Dataset[[#This Row],[2025/26 Total change]]","v":486},{"$f":"Dataset[[#This Row],[2026/27 Baseline]]+Dataset[[#This Row],[2026/27 Total change]]","v":513},{"$f":"Dataset[[#This Row],[2027/28 Baseline]]+Dataset[[#This Row],[2027/28 Total change]]","v":536}]
["NAT|Non-transfer item","40|Training and development","2025_26","MTEC2025",40,6,1,52708,1436,"40","06","01","052708","001436","40|06|01|001436","01","01","02","38","38","01|01|02|38|38","National","Transport","Maritime Transport","Maritime Policy Development","Non-transfer item","Current","Current payments","Goods and services","Training and development","Training and development","Economic development","Economic regulation and infrastructure","NAT",0,0,0,0,0,0,null,0,0,0,0,null,null,null,null,null,null,null,null,null,null,null,null,null,null,null,null,null,null,null,null,null,null,null,null,null,null,null,null,null,null,null,null,null,null,{"$f":"Dataset[[#This Row],[2025/26 From - Spending review Topic 1]]+Dataset[[#This Row],[2025/26 From - Spending review Topic 2]]+Dataset[[#This Row],[2025/26 From - Spending review Topic 3]]+Dataset[[#This Row],[2025/26 From - Spending review Topic 4]]+Dataset[[#This Row],[2025/26 From - Other reallocations]]","v":0},{"$f":"Dataset[[#This Row],[2026/27 From - Spending review Topic 1]]+Dataset[[#This Row],[2026/27 From - Spending review Topic 2]]+Dataset[[#This Row],[2026/27 From - Spending review Topic 3]]+Dataset[[#This Row],[2026/27 From - Spending review Topic 4]]+Dataset[[#This Row],[2026/27 From - Other reallocations]]","v":0},{"$f":"Dataset[[#This Row],[2027/28 From - Spending review Topic 1]]+Dataset[[#This Row],[2027/28 From - Spending review Topic 2]]+Dataset[[#This Row],[2027/28 From - Spending review Topic 3]]+Dataset[[#This Row],[2027/28 From - Spending review Topic 4]]+Dataset[[#This Row],[2027/28 From - Other reallocations]]","v":0},{"$f":"Dataset[[#This Row],[2025/26 To - Spending review Topic 1]]+Dataset[[#This Row],[2025/26 To - Spending review Topic 2]]+Dataset[[#This Row],[2025/26 To - Spending review Topic 3]]+Dataset[[#This Row],[2025/26 To - Spending review Topic 4]]+Dataset[[#This Row],[2025/26 To - Other reallocations]]","v":0},{"$f":"Dataset[[#This Row],[2026/27 To - Spending review Topic 1]]+Dataset[[#This Row],[2026/27 To - Spending review Topic 2]]+Dataset[[#This Row],[2026/27 To - Spending review Topic 3]]+Dataset[[#This Row],[2026/27 To - Spending review Topic 4]]+Dataset[[#This Row],[2026/27 To - Other reallocations]]","v":0},{"$f":"Dataset[[#This Row],[2027/28 To - Spending review Topic 1]]+Dataset[[#This Row],[2027/28 To - Spending review Topic 2]]+Dataset[[#This Row],[2027/28 To - Spending review Topic 3]]+Dataset[[#This Row],[2027/28 To - Spending review Topic 4]]+Dataset[[#This Row],[2027/28 To - Other reallocations]]","v":0},{"$f":"Dataset[[#This Row],[2025/26 Reduction]]+Dataset[[#This Row],[2025/26 From - Total]]","v":0},{"$f":"Dataset[[#This Row],[2026/27 Reduction]]+Dataset[[#This Row],[2026/27 From - Total]]","v":0},{"$f":"Dataset[[#This Row],[2027/28 Reduction]]+Dataset[[#This Row],[2027/28 From - Total]]","v":0},{"$f":"Dataset[[#This Row],[2024/25 Reduction]]","v":0},{"$f":"SUM(Dataset[[#This Row],[2025/26 Reduction]],Dataset[[#This Row],[2025/26 From - Total]],Dataset[[#This Row],[2025/26 To - Total]])","v":0},{"$f":"SUM(Dataset[[#This Row],[2026/27 Reduction]],Dataset[[#This Row],[2026/27 From - Total]],Dataset[[#This Row],[2026/27 To - Total]])","v":0},{"$f":"SUM(Dataset[[#This Row],[2027/28 Reduction]],Dataset[[#This Row],[2027/28 From - Total]],Dataset[[#This Row],[2027/28 To - Total]])","v":0},{"$f":"Dataset[[#This Row],[2024/25 Baseline]]+Dataset[[#This Row],[2024/25 Total change]]","v":0},{"$f":"Dataset[[#This Row],[2025/26 Baseline]]+Dataset[[#This Row],[2025/26 Total change]]","v":0},{"$f":"Dataset[[#This Row],[2026/27 Baseline]]+Dataset[[#This Row],[2026/27 Total change]]","v":0},{"$f":"Dataset[[#This Row],[2027/28 Baseline]]+Dataset[[#This Row],[2027/28 Total change]]","v":0}]
["NAT|Non-transfer item","40|Other machinery and equipment","2025_26","MTEC2025",40,6,1,52716,1444,"40","06","01","052716","001444","40|06|01|001444","02","03","12","57","61","02|03|12|57|61","National","Transport","Maritime Transport","Maritime Policy Development","Non-transfer item","Capital","Payments for capital assets","Machinery and equipment","Other machinery and equipment","Other machinery and equipment","Economic development","Economic regulation and infrastructure","NAT",17,4,12,0,0,0,null,0,0,0,0,null,null,null,null,null,null,null,null,null,null,null,null,null,null,null,null,null,null,null,null,null,null,null,null,null,null,null,null,null,null,null,null,null,null,{"$f":"Dataset[[#This Row],[2025/26 From - Spending review Topic 1]]+Dataset[[#This Row],[2025/26 From - Spending review Topic 2]]+Dataset[[#This Row],[2025/26 From - Spending review Topic 3]]+Dataset[[#This Row],[2025/26 From - Spending review Topic 4]]+Dataset[[#This Row],[2025/26 From - Other reallocations]]","v":0},{"$f":"Dataset[[#This Row],[2026/27 From - Spending review Topic 1]]+Dataset[[#This Row],[2026/27 From - Spending review Topic 2]]+Dataset[[#This Row],[2026/27 From - Spending review Topic 3]]+Dataset[[#This Row],[2026/27 From - Spending review Topic 4]]+Dataset[[#This Row],[2026/27 From - Other reallocations]]","v":0},{"$f":"Dataset[[#This Row],[2027/28 From - Spending review Topic 1]]+Dataset[[#This Row],[2027/28 From - Spending review Topic 2]]+Dataset[[#This Row],[2027/28 From - Spending review Topic 3]]+Dataset[[#This Row],[2027/28 From - Spending review Topic 4]]+Dataset[[#This Row],[2027/28 From - Other reallocations]]","v":0},{"$f":"Dataset[[#This Row],[2025/26 To - Spending review Topic 1]]+Dataset[[#This Row],[2025/26 To - Spending review Topic 2]]+Dataset[[#This Row],[2025/26 To - Spending review Topic 3]]+Dataset[[#This Row],[2025/26 To - Spending review Topic 4]]+Dataset[[#This Row],[2025/26 To - Other reallocations]]","v":0},{"$f":"Dataset[[#This Row],[2026/27 To - Spending review Topic 1]]+Dataset[[#This Row],[2026/27 To - Spending review Topic 2]]+Dataset[[#This Row],[2026/27 To - Spending review Topic 3]]+Dataset[[#This Row],[2026/27 To - Spending review Topic 4]]+Dataset[[#This Row],[2026/27 To - Other reallocations]]","v":0},{"$f":"Dataset[[#This Row],[2027/28 To - Spending review Topic 1]]+Dataset[[#This Row],[2027/28 To - Spending review Topic 2]]+Dataset[[#This Row],[2027/28 To - Spending review Topic 3]]+Dataset[[#This Row],[2027/28 To - Spending review Topic 4]]+Dataset[[#This Row],[2027/28 To - Other reallocations]]","v":0},{"$f":"Dataset[[#This Row],[2025/26 Reduction]]+Dataset[[#This Row],[2025/26 From - Total]]","v":0},{"$f":"Dataset[[#This Row],[2026/27 Reduction]]+Dataset[[#This Row],[2026/27 From - Total]]","v":0},{"$f":"Dataset[[#This Row],[2027/28 Reduction]]+Dataset[[#This Row],[2027/28 From - Total]]","v":0},{"$f":"Dataset[[#This Row],[2024/25 Reduction]]","v":0},{"$f":"SUM(Dataset[[#This Row],[2025/26 Reduction]],Dataset[[#This Row],[2025/26 From - Total]],Dataset[[#This Row],[2025/26 To - Total]])","v":0},{"$f":"SUM(Dataset[[#This Row],[2026/27 Reduction]],Dataset[[#This Row],[2026/27 From - Total]],Dataset[[#This Row],[2026/27 To - Total]])","v":0},{"$f":"SUM(Dataset[[#This Row],[2027/28 Reduction]],Dataset[[#This Row],[2027/28 From - Total]],Dataset[[#This Row],[2027/28 To - Total]])","v":0},{"$f":"Dataset[[#This Row],[2024/25 Baseline]]+Dataset[[#This Row],[2024/25 Total change]]","v":0},{"$f":"Dataset[[#This Row],[2025/26 Baseline]]+Dataset[[#This Row],[2025/26 Total change]]","v":0},{"$f":"Dataset[[#This Row],[2026/27 Baseline]]+Dataset[[#This Row],[2026/27 Total change]]","v":0},{"$f":"Dataset[[#This Row],[2027/28 Baseline]]+Dataset[[#This Row],[2027/28 Total change]]","v":0}]
["NAT|Non-transfer item","40|Administrative fees","2025_26","MTEC2025",40,6,2,52724,1452,"40","06","02","052724","001452","40|06|02|001452","01","01","02","03","03","01|01|02|03|03","National","Transport","Maritime Transport","Maritime Infrastructure and Industry Development","Non-transfer item","Current","Current payments","Goods and services","Administrative fees","Administrative fees","Economic development","Economic regulation and infrastructure","NAT",1,3,1,0,0,0,0,0,0,0,0,null,null,null,null,null,null,null,null,null,null,null,null,null,null,null,null,null,null,null,null,null,null,null,null,null,null,null,null,null,null,null,null,null,null,{"$f":"Dataset[[#This Row],[2025/26 From - Spending review Topic 1]]+Dataset[[#This Row],[2025/26 From - Spending review Topic 2]]+Dataset[[#This Row],[2025/26 From - Spending review Topic 3]]+Dataset[[#This Row],[2025/26 From - Spending review Topic 4]]+Dataset[[#This Row],[2025/26 From - Other reallocations]]","v":0},{"$f":"Dataset[[#This Row],[2026/27 From - Spending review Topic 1]]+Dataset[[#This Row],[2026/27 From - Spending review Topic 2]]+Dataset[[#This Row],[2026/27 From - Spending review Topic 3]]+Dataset[[#This Row],[2026/27 From - Spending review Topic 4]]+Dataset[[#This Row],[2026/27 From - Other reallocations]]","v":0},{"$f":"Dataset[[#This Row],[2027/28 From - Spending review Topic 1]]+Dataset[[#This Row],[2027/28 From - Spending review Topic 2]]+Dataset[[#This Row],[2027/28 From - Spending review Topic 3]]+Dataset[[#This Row],[2027/28 From - Spending review Topic 4]]+Dataset[[#This Row],[2027/28 From - Other reallocations]]","v":0},{"$f":"Dataset[[#This Row],[2025/26 To - Spending review Topic 1]]+Dataset[[#This Row],[2025/26 To - Spending review Topic 2]]+Dataset[[#This Row],[2025/26 To - Spending review Topic 3]]+Dataset[[#This Row],[2025/26 To - Spending review Topic 4]]+Dataset[[#This Row],[2025/26 To - Other reallocations]]","v":0},{"$f":"Dataset[[#This Row],[2026/27 To - Spending review Topic 1]]+Dataset[[#This Row],[2026/27 To - Spending review Topic 2]]+Dataset[[#This Row],[2026/27 To - Spending review Topic 3]]+Dataset[[#This Row],[2026/27 To - Spending review Topic 4]]+Dataset[[#This Row],[2026/27 To - Other reallocations]]","v":0},{"$f":"Dataset[[#This Row],[2027/28 To - Spending review Topic 1]]+Dataset[[#This Row],[2027/28 To - Spending review Topic 2]]+Dataset[[#This Row],[2027/28 To - Spending review Topic 3]]+Dataset[[#This Row],[2027/28 To - Spending review Topic 4]]+Dataset[[#This Row],[2027/28 To - Other reallocations]]","v":0},{"$f":"Dataset[[#This Row],[2025/26 Reduction]]+Dataset[[#This Row],[2025/26 From - Total]]","v":0},{"$f":"Dataset[[#This Row],[2026/27 Reduction]]+Dataset[[#This Row],[2026/27 From - Total]]","v":0},{"$f":"Dataset[[#This Row],[2027/28 Reduction]]+Dataset[[#This Row],[2027/28 From - Total]]","v":0},{"$f":"Dataset[[#This Row],[2024/25 Reduction]]","v":0},{"$f":"SUM(Dataset[[#This Row],[2025/26 Reduction]],Dataset[[#This Row],[2025/26 From - Total]],Dataset[[#This Row],[2025/26 To - Total]])","v":0},{"$f":"SUM(Dataset[[#This Row],[2026/27 Reduction]],Dataset[[#This Row],[2026/27 From - Total]],Dataset[[#This Row],[2026/27 To - Total]])","v":0},{"$f":"SUM(Dataset[[#This Row],[2027/28 Reduction]],Dataset[[#This Row],[2027/28 From - Total]],Dataset[[#This Row],[2027/28 To - Total]])","v":0},{"$f":"Dataset[[#This Row],[2024/25 Baseline]]+Dataset[[#This Row],[2024/25 Total change]]","v":0},{"$f":"Dataset[[#This Row],[2025/26 Baseline]]+Dataset[[#This Row],[2025/26 Total change]]","v":0},{"$f":"Dataset[[#This Row],[2026/27 Baseline]]+Dataset[[#This Row],[2026/27 Total change]]","v":0},{"$f":"Dataset[[#This Row],[2027/28 Baseline]]+Dataset[[#This Row],[2027/28 Total change]]","v":0}]
["NAT|Non-transfer item","40|Communication (G&S)","2025_26","MTEC2025",40,6,2,52730,1458,"40","06","02","052730","001458","40|06|02|001458","01","01","02","09","09","01|01|02|09|09","National","Transport","Maritime Transport","Maritime Infrastructure and Industry Development","Non-transfer item","Current","Current payments","Goods and services","Communication (G&S)","Communication (G&S)","Economic development","Economic regulation and infrastructure","NAT",73,104,71,181,181,181,75,331,347,363,379,null,null,null,null,null,null,null,null,null,null,null,null,null,null,null,null,null,null,null,null,null,null,null,null,null,null,null,null,null,null,null,null,null,null,{"$f":"Dataset[[#This Row],[2025/26 From - Spending review Topic 1]]+Dataset[[#This Row],[2025/26 From - Spending review Topic 2]]+Dataset[[#This Row],[2025/26 From - Spending review Topic 3]]+Dataset[[#This Row],[2025/26 From - Spending review Topic 4]]+Dataset[[#This Row],[2025/26 From - Other reallocations]]","v":0},{"$f":"Dataset[[#This Row],[2026/27 From - Spending review Topic 1]]+Dataset[[#This Row],[2026/27 From - Spending review Topic 2]]+Dataset[[#This Row],[2026/27 From - Spending review Topic 3]]+Dataset[[#This Row],[2026/27 From - Spending review Topic 4]]+Dataset[[#This Row],[2026/27 From - Other reallocations]]","v":0},{"$f":"Dataset[[#This Row],[2027/28 From - Spending review Topic 1]]+Dataset[[#This Row],[2027/28 From - Spending review Topic 2]]+Dataset[[#This Row],[2027/28 From - Spending review Topic 3]]+Dataset[[#This Row],[2027/28 From - Spending review Topic 4]]+Dataset[[#This Row],[2027/28 From - Other reallocations]]","v":0},{"$f":"Dataset[[#This Row],[2025/26 To - Spending review Topic 1]]+Dataset[[#This Row],[2025/26 To - Spending review Topic 2]]+Dataset[[#This Row],[2025/26 To - Spending review Topic 3]]+Dataset[[#This Row],[2025/26 To - Spending review Topic 4]]+Dataset[[#This Row],[2025/26 To - Other reallocations]]","v":0},{"$f":"Dataset[[#This Row],[2026/27 To - Spending review Topic 1]]+Dataset[[#This Row],[2026/27 To - Spending review Topic 2]]+Dataset[[#This Row],[2026/27 To - Spending review Topic 3]]+Dataset[[#This Row],[2026/27 To - Spending review Topic 4]]+Dataset[[#This Row],[2026/27 To - Other reallocations]]","v":0},{"$f":"Dataset[[#This Row],[2027/28 To - Spending review Topic 1]]+Dataset[[#This Row],[2027/28 To - Spending review Topic 2]]+Dataset[[#This Row],[2027/28 To - Spending review Topic 3]]+Dataset[[#This Row],[2027/28 To - Spending review Topic 4]]+Dataset[[#This Row],[2027/28 To - Other reallocations]]","v":0},{"$f":"Dataset[[#This Row],[2025/26 Reduction]]+Dataset[[#This Row],[2025/26 From - Total]]","v":0},{"$f":"Dataset[[#This Row],[2026/27 Reduction]]+Dataset[[#This Row],[2026/27 From - Total]]","v":0},{"$f":"Dataset[[#This Row],[2027/28 Reduction]]+Dataset[[#This Row],[2027/28 From - Total]]","v":0},{"$f":"Dataset[[#This Row],[2024/25 Reduction]]","v":0},{"$f":"SUM(Dataset[[#This Row],[2025/26 Reduction]],Dataset[[#This Row],[2025/26 From - Total]],Dataset[[#This Row],[2025/26 To - Total]])","v":0},{"$f":"SUM(Dataset[[#This Row],[2026/27 Reduction]],Dataset[[#This Row],[2026/27 From - Total]],Dataset[[#This Row],[2026/27 To - Total]])","v":0},{"$f":"SUM(Dataset[[#This Row],[2027/28 Reduction]],Dataset[[#This Row],[2027/28 From - Total]],Dataset[[#This Row],[2027/28 To - Total]])","v":0},{"$f":"Dataset[[#This Row],[2024/25 Baseline]]+Dataset[[#This Row],[2024/25 Total change]]","v":331},{"$f":"Dataset[[#This Row],[2025/26 Baseline]]+Dataset[[#This Row],[2025/26 Total change]]","v":347},{"$f":"Dataset[[#This Row],[2026/27 Baseline]]+Dataset[[#This Row],[2026/27 Total change]]","v":363},{"$f":"Dataset[[#This Row],[2027/28 Baseline]]+Dataset[[#This Row],[2027/28 Total change]]","v":379}]
["NAT|Non-transfer item","40|Science and technological services","2025_26","MTEC2025",40,6,2,52736,1464,"40","06","02","052736","001464","40|06|02|001464","01","01","02","15","15","01|01|02|15|15","National","Transport","Maritime Transport","Maritime Infrastructure and Industry Development","Non-transfer item","Current","Current payments","Goods and services","Science and technological services","Science and technological services","Economic development","Economic regulation and infrastructure","NAT",0,0,0,0,0,0,null,0,0,0,0,null,null,null,null,null,null,null,null,null,null,null,null,null,null,null,null,null,null,null,null,null,null,null,null,null,null,null,null,null,null,null,null,null,null,{"$f":"Dataset[[#This Row],[2025/26 From - Spending review Topic 1]]+Dataset[[#This Row],[2025/26 From - Spending review Topic 2]]+Dataset[[#This Row],[2025/26 From - Spending review Topic 3]]+Dataset[[#This Row],[2025/26 From - Spending review Topic 4]]+Dataset[[#This Row],[2025/26 From - Other reallocations]]","v":0},{"$f":"Dataset[[#This Row],[2026/27 From - Spending review Topic 1]]+Dataset[[#This Row],[2026/27 From - Spending review Topic 2]]+Dataset[[#This Row],[2026/27 From - Spending review Topic 3]]+Dataset[[#This Row],[2026/27 From - Spending review Topic 4]]+Dataset[[#This Row],[2026/27 From - Other reallocations]]","v":0},{"$f":"Dataset[[#This Row],[2027/28 From - Spending review Topic 1]]+Dataset[[#This Row],[2027/28 From - Spending review Topic 2]]+Dataset[[#This Row],[2027/28 From - Spending review Topic 3]]+Dataset[[#This Row],[2027/28 From - Spending review Topic 4]]+Dataset[[#This Row],[2027/28 From - Other reallocations]]","v":0},{"$f":"Dataset[[#This Row],[2025/26 To - Spending review Topic 1]]+Dataset[[#This Row],[2025/26 To - Spending review Topic 2]]+Dataset[[#This Row],[2025/26 To - Spending review Topic 3]]+Dataset[[#This Row],[2025/26 To - Spending review Topic 4]]+Dataset[[#This Row],[2025/26 To - Other reallocations]]","v":0},{"$f":"Dataset[[#This Row],[2026/27 To - Spending review Topic 1]]+Dataset[[#This Row],[2026/27 To - Spending review Topic 2]]+Dataset[[#This Row],[2026/27 To - Spending review Topic 3]]+Dataset[[#This Row],[2026/27 To - Spending review Topic 4]]+Dataset[[#This Row],[2026/27 To - Other reallocations]]","v":0},{"$f":"Dataset[[#This Row],[2027/28 To - Spending review Topic 1]]+Dataset[[#This Row],[2027/28 To - Spending review Topic 2]]+Dataset[[#This Row],[2027/28 To - Spending review Topic 3]]+Dataset[[#This Row],[2027/28 To - Spending review Topic 4]]+Dataset[[#This Row],[2027/28 To - Other reallocations]]","v":0},{"$f":"Dataset[[#This Row],[2025/26 Reduction]]+Dataset[[#This Row],[2025/26 From - Total]]","v":0},{"$f":"Dataset[[#This Row],[2026/27 Reduction]]+Dataset[[#This Row],[2026/27 From - Total]]","v":0},{"$f":"Dataset[[#This Row],[2027/28 Reduction]]+Dataset[[#This Row],[2027/28 From - Total]]","v":0},{"$f":"Dataset[[#This Row],[2024/25 Reduction]]","v":0},{"$f":"SUM(Dataset[[#This Row],[2025/26 Reduction]],Dataset[[#This Row],[2025/26 From - Total]],Dataset[[#This Row],[2025/26 To - Total]])","v":0},{"$f":"SUM(Dataset[[#This Row],[2026/27 Reduction]],Dataset[[#This Row],[2026/27 From - Total]],Dataset[[#This Row],[2026/27 To - Total]])","v":0},{"$f":"SUM(Dataset[[#This Row],[2027/28 Reduction]],Dataset[[#This Row],[2027/28 From - Total]],Dataset[[#This Row],[2027/28 To - Total]])","v":0},{"$f":"Dataset[[#This Row],[2024/25 Baseline]]+Dataset[[#This Row],[2024/25 Total change]]","v":0},{"$f":"Dataset[[#This Row],[2025/26 Baseline]]+Dataset[[#This Row],[2025/26 Total change]]","v":0},{"$f":"Dataset[[#This Row],[2026/27 Baseline]]+Dataset[[#This Row],[2026/27 Total change]]","v":0},{"$f":"Dataset[[#This Row],[2027/28 Baseline]]+Dataset[[#This Row],[2027/28 Total change]]","v":0}]
["NAT|Non-transfer item","40|Inventory: Food and food supplies","2025_26","MTEC2025",40,6,2,52744,1472,"40","06","02","052744","001472","40|06|02|001472","01","01","02","23","23","01|01|02|23|23","National","Transport","Maritime Transport","Maritime Infrastructure and Industry Development","Non-transfer item","Current","Current payments","Goods and services","Inventory: Food and food supplies","Inventory: Food and food supplies","Economic development","Economic regulation and infrastructure","NAT",0,0,0,0,0,0,null,0,0,0,0,null,null,null,null,null,null,null,null,null,null,null,null,null,null,null,null,null,null,null,null,null,null,null,null,null,null,null,null,null,null,null,null,null,null,{"$f":"Dataset[[#This Row],[2025/26 From - Spending review Topic 1]]+Dataset[[#This Row],[2025/26 From - Spending review Topic 2]]+Dataset[[#This Row],[2025/26 From - Spending review Topic 3]]+Dataset[[#This Row],[2025/26 From - Spending review Topic 4]]+Dataset[[#This Row],[2025/26 From - Other reallocations]]","v":0},{"$f":"Dataset[[#This Row],[2026/27 From - Spending review Topic 1]]+Dataset[[#This Row],[2026/27 From - Spending review Topic 2]]+Dataset[[#This Row],[2026/27 From - Spending review Topic 3]]+Dataset[[#This Row],[2026/27 From - Spending review Topic 4]]+Dataset[[#This Row],[2026/27 From - Other reallocations]]","v":0},{"$f":"Dataset[[#This Row],[2027/28 From - Spending review Topic 1]]+Dataset[[#This Row],[2027/28 From - Spending review Topic 2]]+Dataset[[#This Row],[2027/28 From - Spending review Topic 3]]+Dataset[[#This Row],[2027/28 From - Spending review Topic 4]]+Dataset[[#This Row],[2027/28 From - Other reallocations]]","v":0},{"$f":"Dataset[[#This Row],[2025/26 To - Spending review Topic 1]]+Dataset[[#This Row],[2025/26 To - Spending review Topic 2]]+Dataset[[#This Row],[2025/26 To - Spending review Topic 3]]+Dataset[[#This Row],[2025/26 To - Spending review Topic 4]]+Dataset[[#This Row],[2025/26 To - Other reallocations]]","v":0},{"$f":"Dataset[[#This Row],[2026/27 To - Spending review Topic 1]]+Dataset[[#This Row],[2026/27 To - Spending review Topic 2]]+Dataset[[#This Row],[2026/27 To - Spending review Topic 3]]+Dataset[[#This Row],[2026/27 To - Spending review Topic 4]]+Dataset[[#This Row],[2026/27 To - Other reallocations]]","v":0},{"$f":"Dataset[[#This Row],[2027/28 To - Spending review Topic 1]]+Dataset[[#This Row],[2027/28 To - Spending review Topic 2]]+Dataset[[#This Row],[2027/28 To - Spending review Topic 3]]+Dataset[[#This Row],[2027/28 To - Spending review Topic 4]]+Dataset[[#This Row],[2027/28 To - Other reallocations]]","v":0},{"$f":"Dataset[[#This Row],[2025/26 Reduction]]+Dataset[[#This Row],[2025/26 From - Total]]","v":0},{"$f":"Dataset[[#This Row],[2026/27 Reduction]]+Dataset[[#This Row],[2026/27 From - Total]]","v":0},{"$f":"Dataset[[#This Row],[2027/28 Reduction]]+Dataset[[#This Row],[2027/28 From - Total]]","v":0},{"$f":"Dataset[[#This Row],[2024/25 Reduction]]","v":0},{"$f":"SUM(Dataset[[#This Row],[2025/26 Reduction]],Dataset[[#This Row],[2025/26 From - Total]],Dataset[[#This Row],[2025/26 To - Total]])","v":0},{"$f":"SUM(Dataset[[#This Row],[2026/27 Reduction]],Dataset[[#This Row],[2026/27 From - Total]],Dataset[[#This Row],[2026/27 To - Total]])","v":0},{"$f":"SUM(Dataset[[#This Row],[2027/28 Reduction]],Dataset[[#This Row],[2027/28 From - Total]],Dataset[[#This Row],[2027/28 To - Total]])","v":0},{"$f":"Dataset[[#This Row],[2024/25 Baseline]]+Dataset[[#This Row],[2024/25 Total change]]","v":0},{"$f":"Dataset[[#This Row],[2025/26 Baseline]]+Dataset[[#This Row],[2025/26 Total change]]","v":0},{"$f":"Dataset[[#This Row],[2026/27 Baseline]]+Dataset[[#This Row],[2026/27 Total change]]","v":0},{"$f":"Dataset[[#This Row],[2027/28 Baseline]]+Dataset[[#This Row],[2027/28 Total change]]","v":0}]
["NAT|Non-transfer item","40|Inventory: Medicine","2025_26","MTEC2025",40,6,2,52749,1477,"40","06","02","052749","001477","40|06|02|001477","01","01","02","28","28","01|01|02|28|28","National","Transport","Maritime Transport","Maritime Infrastructure and Industry Development","Non-transfer item","Current","Current payments","Goods and services","Inventory: Medicine","Inventory: Medicine","Economic development","Economic regulation and infrastructure","NAT",0,0,0,0,0,0,null,0,0,0,0,null,null,null,null,null,null,null,null,null,null,null,null,null,null,null,null,null,null,null,null,null,null,null,null,null,null,null,null,null,null,null,null,null,null,{"$f":"Dataset[[#This Row],[2025/26 From - Spending review Topic 1]]+Dataset[[#This Row],[2025/26 From - Spending review Topic 2]]+Dataset[[#This Row],[2025/26 From - Spending review Topic 3]]+Dataset[[#This Row],[2025/26 From - Spending review Topic 4]]+Dataset[[#This Row],[2025/26 From - Other reallocations]]","v":0},{"$f":"Dataset[[#This Row],[2026/27 From - Spending review Topic 1]]+Dataset[[#This Row],[2026/27 From - Spending review Topic 2]]+Dataset[[#This Row],[2026/27 From - Spending review Topic 3]]+Dataset[[#This Row],[2026/27 From - Spending review Topic 4]]+Dataset[[#This Row],[2026/27 From - Other reallocations]]","v":0},{"$f":"Dataset[[#This Row],[2027/28 From - Spending review Topic 1]]+Dataset[[#This Row],[2027/28 From - Spending review Topic 2]]+Dataset[[#This Row],[2027/28 From - Spending review Topic 3]]+Dataset[[#This Row],[2027/28 From - Spending review Topic 4]]+Dataset[[#This Row],[2027/28 From - Other reallocations]]","v":0},{"$f":"Dataset[[#This Row],[2025/26 To - Spending review Topic 1]]+Dataset[[#This Row],[2025/26 To - Spending review Topic 2]]+Dataset[[#This Row],[2025/26 To - Spending review Topic 3]]+Dataset[[#This Row],[2025/26 To - Spending review Topic 4]]+Dataset[[#This Row],[2025/26 To - Other reallocations]]","v":0},{"$f":"Dataset[[#This Row],[2026/27 To - Spending review Topic 1]]+Dataset[[#This Row],[2026/27 To - Spending review Topic 2]]+Dataset[[#This Row],[2026/27 To - Spending review Topic 3]]+Dataset[[#This Row],[2026/27 To - Spending review Topic 4]]+Dataset[[#This Row],[2026/27 To - Other reallocations]]","v":0},{"$f":"Dataset[[#This Row],[2027/28 To - Spending review Topic 1]]+Dataset[[#This Row],[2027/28 To - Spending review Topic 2]]+Dataset[[#This Row],[2027/28 To - Spending review Topic 3]]+Dataset[[#This Row],[2027/28 To - Spending review Topic 4]]+Dataset[[#This Row],[2027/28 To - Other reallocations]]","v":0},{"$f":"Dataset[[#This Row],[2025/26 Reduction]]+Dataset[[#This Row],[2025/26 From - Total]]","v":0},{"$f":"Dataset[[#This Row],[2026/27 Reduction]]+Dataset[[#This Row],[2026/27 From - Total]]","v":0},{"$f":"Dataset[[#This Row],[2027/28 Reduction]]+Dataset[[#This Row],[2027/28 From - Total]]","v":0},{"$f":"Dataset[[#This Row],[2024/25 Reduction]]","v":0},{"$f":"SUM(Dataset[[#This Row],[2025/26 Reduction]],Dataset[[#This Row],[2025/26 From - Total]],Dataset[[#This Row],[2025/26 To - Total]])","v":0},{"$f":"SUM(Dataset[[#This Row],[2026/27 Reduction]],Dataset[[#This Row],[2026/27 From - Total]],Dataset[[#This Row],[2026/27 To - Total]])","v":0},{"$f":"SUM(Dataset[[#This Row],[2027/28 Reduction]],Dataset[[#This Row],[2027/28 From - Total]],Dataset[[#This Row],[2027/28 To - Total]])","v":0},{"$f":"Dataset[[#This Row],[2024/25 Baseline]]+Dataset[[#This Row],[2024/25 Total change]]","v":0},{"$f":"Dataset[[#This Row],[2025/26 Baseline]]+Dataset[[#This Row],[2025/26 Total change]]","v":0},{"$f":"Dataset[[#This Row],[2026/27 Baseline]]+Dataset[[#This Row],[2026/27 Total change]]","v":0},{"$f":"Dataset[[#This Row],[2027/28 Baseline]]+Dataset[[#This Row],[2027/28 Total change]]","v":0}]
["NAT|Non-transfer item","40|Transport provided: Departmental activity","2025_26","MTEC2025",40,6,2,52757,1485,"40","06","02","052757","001485","40|06|02|001485","01","01","02","36","36","01|01|02|36|36","National","Transport","Maritime Transport","Maritime Infrastructure and Industry Development","Non-transfer item","Current","Current payments","Goods and services","Transport provided: Departmental activity","Transport provided: Departmental activity","Economic development","Economic regulation and infrastructure","NAT",0,0,0,0,0,0,null,0,0,0,0,null,null,null,null,null,null,null,null,null,null,null,null,null,null,null,null,null,null,null,null,null,null,null,null,null,null,null,null,null,null,null,null,null,null,{"$f":"Dataset[[#This Row],[2025/26 From - Spending review Topic 1]]+Dataset[[#This Row],[2025/26 From - Spending review Topic 2]]+Dataset[[#This Row],[2025/26 From - Spending review Topic 3]]+Dataset[[#This Row],[2025/26 From - Spending review Topic 4]]+Dataset[[#This Row],[2025/26 From - Other reallocations]]","v":0},{"$f":"Dataset[[#This Row],[2026/27 From - Spending review Topic 1]]+Dataset[[#This Row],[2026/27 From - Spending review Topic 2]]+Dataset[[#This Row],[2026/27 From - Spending review Topic 3]]+Dataset[[#This Row],[2026/27 From - Spending review Topic 4]]+Dataset[[#This Row],[2026/27 From - Other reallocations]]","v":0},{"$f":"Dataset[[#This Row],[2027/28 From - Spending review Topic 1]]+Dataset[[#This Row],[2027/28 From - Spending review Topic 2]]+Dataset[[#This Row],[2027/28 From - Spending review Topic 3]]+Dataset[[#This Row],[2027/28 From - Spending review Topic 4]]+Dataset[[#This Row],[2027/28 From - Other reallocations]]","v":0},{"$f":"Dataset[[#This Row],[2025/26 To - Spending review Topic 1]]+Dataset[[#This Row],[2025/26 To - Spending review Topic 2]]+Dataset[[#This Row],[2025/26 To - Spending review Topic 3]]+Dataset[[#This Row],[2025/26 To - Spending review Topic 4]]+Dataset[[#This Row],[2025/26 To - Other reallocations]]","v":0},{"$f":"Dataset[[#This Row],[2026/27 To - Spending review Topic 1]]+Dataset[[#This Row],[2026/27 To - Spending review Topic 2]]+Dataset[[#This Row],[2026/27 To - Spending review Topic 3]]+Dataset[[#This Row],[2026/27 To - Spending review Topic 4]]+Dataset[[#This Row],[2026/27 To - Other reallocations]]","v":0},{"$f":"Dataset[[#This Row],[2027/28 To - Spending review Topic 1]]+Dataset[[#This Row],[2027/28 To - Spending review Topic 2]]+Dataset[[#This Row],[2027/28 To - Spending review Topic 3]]+Dataset[[#This Row],[2027/28 To - Spending review Topic 4]]+Dataset[[#This Row],[2027/28 To - Other reallocations]]","v":0},{"$f":"Dataset[[#This Row],[2025/26 Reduction]]+Dataset[[#This Row],[2025/26 From - Total]]","v":0},{"$f":"Dataset[[#This Row],[2026/27 Reduction]]+Dataset[[#This Row],[2026/27 From - Total]]","v":0},{"$f":"Dataset[[#This Row],[2027/28 Reduction]]+Dataset[[#This Row],[2027/28 From - Total]]","v":0},{"$f":"Dataset[[#This Row],[2024/25 Reduction]]","v":0},{"$f":"SUM(Dataset[[#This Row],[2025/26 Reduction]],Dataset[[#This Row],[2025/26 From - Total]],Dataset[[#This Row],[2025/26 To - Total]])","v":0},{"$f":"SUM(Dataset[[#This Row],[2026/27 Reduction]],Dataset[[#This Row],[2026/27 From - Total]],Dataset[[#This Row],[2026/27 To - Total]])","v":0},{"$f":"SUM(Dataset[[#This Row],[2027/28 Reduction]],Dataset[[#This Row],[2027/28 From - Total]],Dataset[[#This Row],[2027/28 To - Total]])","v":0},{"$f":"Dataset[[#This Row],[2024/25 Baseline]]+Dataset[[#This Row],[2024/25 Total change]]","v":0},{"$f":"Dataset[[#This Row],[2025/26 Baseline]]+Dataset[[#This Row],[2025/26 Total change]]","v":0},{"$f":"Dataset[[#This Row],[2026/27 Baseline]]+Dataset[[#This Row],[2026/27 Total change]]","v":0},{"$f":"Dataset[[#This Row],[2027/28 Baseline]]+Dataset[[#This Row],[2027/28 Total change]]","v":0}]
["NAT|Non-transfer item","40|Interest (Incl. interest on unitary payments (PPP))","2025_26","MTEC2025",40,6,2,52762,1490,"40","06","02","052762","001490","40|06|02|001490","01","01","03","41","41","01|01|03|41|41","National","Transport","Maritime Transport","Maritime Infrastructure and Industry Development","Non-transfer item","Current","Current payments","Interest and rent on land","Interest (Incl. interest on unitary payments (PPP))","Interest (Incl. interest on unitary payments (PPP))","Economic development","Economic regulation and infrastructure","NAT",0,0,0,0,0,0,null,0,0,0,0,null,null,null,null,null,null,null,null,null,null,null,null,null,null,null,null,null,null,null,null,null,null,null,null,null,null,null,null,null,null,null,null,null,null,{"$f":"Dataset[[#This Row],[2025/26 From - Spending review Topic 1]]+Dataset[[#This Row],[2025/26 From - Spending review Topic 2]]+Dataset[[#This Row],[2025/26 From - Spending review Topic 3]]+Dataset[[#This Row],[2025/26 From - Spending review Topic 4]]+Dataset[[#This Row],[2025/26 From - Other reallocations]]","v":0},{"$f":"Dataset[[#This Row],[2026/27 From - Spending review Topic 1]]+Dataset[[#This Row],[2026/27 From - Spending review Topic 2]]+Dataset[[#This Row],[2026/27 From - Spending review Topic 3]]+Dataset[[#This Row],[2026/27 From - Spending review Topic 4]]+Dataset[[#This Row],[2026/27 From - Other reallocations]]","v":0},{"$f":"Dataset[[#This Row],[2027/28 From - Spending review Topic 1]]+Dataset[[#This Row],[2027/28 From - Spending review Topic 2]]+Dataset[[#This Row],[2027/28 From - Spending review Topic 3]]+Dataset[[#This Row],[2027/28 From - Spending review Topic 4]]+Dataset[[#This Row],[2027/28 From - Other reallocations]]","v":0},{"$f":"Dataset[[#This Row],[2025/26 To - Spending review Topic 1]]+Dataset[[#This Row],[2025/26 To - Spending review Topic 2]]+Dataset[[#This Row],[2025/26 To - Spending review Topic 3]]+Dataset[[#This Row],[2025/26 To - Spending review Topic 4]]+Dataset[[#This Row],[2025/26 To - Other reallocations]]","v":0},{"$f":"Dataset[[#This Row],[2026/27 To - Spending review Topic 1]]+Dataset[[#This Row],[2026/27 To - Spending review Topic 2]]+Dataset[[#This Row],[2026/27 To - Spending review Topic 3]]+Dataset[[#This Row],[2026/27 To - Spending review Topic 4]]+Dataset[[#This Row],[2026/27 To - Other reallocations]]","v":0},{"$f":"Dataset[[#This Row],[2027/28 To - Spending review Topic 1]]+Dataset[[#This Row],[2027/28 To - Spending review Topic 2]]+Dataset[[#This Row],[2027/28 To - Spending review Topic 3]]+Dataset[[#This Row],[2027/28 To - Spending review Topic 4]]+Dataset[[#This Row],[2027/28 To - Other reallocations]]","v":0},{"$f":"Dataset[[#This Row],[2025/26 Reduction]]+Dataset[[#This Row],[2025/26 From - Total]]","v":0},{"$f":"Dataset[[#This Row],[2026/27 Reduction]]+Dataset[[#This Row],[2026/27 From - Total]]","v":0},{"$f":"Dataset[[#This Row],[2027/28 Reduction]]+Dataset[[#This Row],[2027/28 From - Total]]","v":0},{"$f":"Dataset[[#This Row],[2024/25 Reduction]]","v":0},{"$f":"SUM(Dataset[[#This Row],[2025/26 Reduction]],Dataset[[#This Row],[2025/26 From - Total]],Dataset[[#This Row],[2025/26 To - Total]])","v":0},{"$f":"SUM(Dataset[[#This Row],[2026/27 Reduction]],Dataset[[#This Row],[2026/27 From - Total]],Dataset[[#This Row],[2026/27 To - Total]])","v":0},{"$f":"SUM(Dataset[[#This Row],[2027/28 Reduction]],Dataset[[#This Row],[2027/28 From - Total]],Dataset[[#This Row],[2027/28 To - Total]])","v":0},{"$f":"Dataset[[#This Row],[2024/25 Baseline]]+Dataset[[#This Row],[2024/25 Total change]]","v":0},{"$f":"Dataset[[#This Row],[2025/26 Baseline]]+Dataset[[#This Row],[2025/26 Total change]]","v":0},{"$f":"Dataset[[#This Row],[2026/27 Baseline]]+Dataset[[#This Row],[2026/27 Total change]]","v":0},{"$f":"Dataset[[#This Row],[2027/28 Baseline]]+Dataset[[#This Row],[2027/28 Total change]]","v":0}]
["NAT|Non-transfer item","40|Biological assets","2025_26","MTEC2025",40,6,2,52770,1498,"40","06","02","052770","001498","40|06|02|001498","02","03","15","60","64","02|03|15|60|64","National","Transport","Maritime Transport","Maritime Infrastructure and Industry Development","Non-transfer item","Capital","Payments for capital assets","Biological assets","Biological assets","Biological assets","Economic development","Economic regulation and infrastructure","NAT",0,0,0,0,0,0,null,0,0,0,0,null,null,null,null,null,null,null,null,null,null,null,null,null,null,null,null,null,null,null,null,null,null,null,null,null,null,null,null,null,null,null,null,null,null,{"$f":"Dataset[[#This Row],[2025/26 From - Spending review Topic 1]]+Dataset[[#This Row],[2025/26 From - Spending review Topic 2]]+Dataset[[#This Row],[2025/26 From - Spending review Topic 3]]+Dataset[[#This Row],[2025/26 From - Spending review Topic 4]]+Dataset[[#This Row],[2025/26 From - Other reallocations]]","v":0},{"$f":"Dataset[[#This Row],[2026/27 From - Spending review Topic 1]]+Dataset[[#This Row],[2026/27 From - Spending review Topic 2]]+Dataset[[#This Row],[2026/27 From - Spending review Topic 3]]+Dataset[[#This Row],[2026/27 From - Spending review Topic 4]]+Dataset[[#This Row],[2026/27 From - Other reallocations]]","v":0},{"$f":"Dataset[[#This Row],[2027/28 From - Spending review Topic 1]]+Dataset[[#This Row],[2027/28 From - Spending review Topic 2]]+Dataset[[#This Row],[2027/28 From - Spending review Topic 3]]+Dataset[[#This Row],[2027/28 From - Spending review Topic 4]]+Dataset[[#This Row],[2027/28 From - Other reallocations]]","v":0},{"$f":"Dataset[[#This Row],[2025/26 To - Spending review Topic 1]]+Dataset[[#This Row],[2025/26 To - Spending review Topic 2]]+Dataset[[#This Row],[2025/26 To - Spending review Topic 3]]+Dataset[[#This Row],[2025/26 To - Spending review Topic 4]]+Dataset[[#This Row],[2025/26 To - Other reallocations]]","v":0},{"$f":"Dataset[[#This Row],[2026/27 To - Spending review Topic 1]]+Dataset[[#This Row],[2026/27 To - Spending review Topic 2]]+Dataset[[#This Row],[2026/27 To - Spending review Topic 3]]+Dataset[[#This Row],[2026/27 To - Spending review Topic 4]]+Dataset[[#This Row],[2026/27 To - Other reallocations]]","v":0},{"$f":"Dataset[[#This Row],[2027/28 To - Spending review Topic 1]]+Dataset[[#This Row],[2027/28 To - Spending review Topic 2]]+Dataset[[#This Row],[2027/28 To - Spending review Topic 3]]+Dataset[[#This Row],[2027/28 To - Spending review Topic 4]]+Dataset[[#This Row],[2027/28 To - Other reallocations]]","v":0},{"$f":"Dataset[[#This Row],[2025/26 Reduction]]+Dataset[[#This Row],[2025/26 From - Total]]","v":0},{"$f":"Dataset[[#This Row],[2026/27 Reduction]]+Dataset[[#This Row],[2026/27 From - Total]]","v":0},{"$f":"Dataset[[#This Row],[2027/28 Reduction]]+Dataset[[#This Row],[2027/28 From - Total]]","v":0},{"$f":"Dataset[[#This Row],[2024/25 Reduction]]","v":0},{"$f":"SUM(Dataset[[#This Row],[2025/26 Reduction]],Dataset[[#This Row],[2025/26 From - Total]],Dataset[[#This Row],[2025/26 To - Total]])","v":0},{"$f":"SUM(Dataset[[#This Row],[2026/27 Reduction]],Dataset[[#This Row],[2026/27 From - Total]],Dataset[[#This Row],[2026/27 To - Total]])","v":0},{"$f":"SUM(Dataset[[#This Row],[2027/28 Reduction]],Dataset[[#This Row],[2027/28 From - Total]],Dataset[[#This Row],[2027/28 To - Total]])","v":0},{"$f":"Dataset[[#This Row],[2024/25 Baseline]]+Dataset[[#This Row],[2024/25 Total change]]","v":0},{"$f":"Dataset[[#This Row],[2025/26 Baseline]]+Dataset[[#This Row],[2025/26 Total change]]","v":0},{"$f":"Dataset[[#This Row],[2026/27 Baseline]]+Dataset[[#This Row],[2026/27 Total change]]","v":0},{"$f":"Dataset[[#This Row],[2027/28 Baseline]]+Dataset[[#This Row],[2027/28 Total change]]","v":0}]
["NAT|Non-transfer item","40|Minor assets","2025_26","MTEC2025",40,6,3,52778,1506,"40","06","03","052778","001506","40|06|03|001506","01","01","02","05","05","01|01|02|05|05","National","Transport","Maritime Transport","Implementation, Monitoring and Evaluation","Non-transfer item","Current","Current payments","Goods and services","Minor assets","Minor assets","Economic development","Economic regulation and infrastructure","NAT",0,0,0,0,0,0,null,0,0,0,0,null,null,null,null,null,null,null,null,null,null,null,null,null,null,null,null,null,null,null,null,null,null,null,null,null,null,null,null,null,null,null,null,null,null,{"$f":"Dataset[[#This Row],[2025/26 From - Spending review Topic 1]]+Dataset[[#This Row],[2025/26 From - Spending review Topic 2]]+Dataset[[#This Row],[2025/26 From - Spending review Topic 3]]+Dataset[[#This Row],[2025/26 From - Spending review Topic 4]]+Dataset[[#This Row],[2025/26 From - Other reallocations]]","v":0},{"$f":"Dataset[[#This Row],[2026/27 From - Spending review Topic 1]]+Dataset[[#This Row],[2026/27 From - Spending review Topic 2]]+Dataset[[#This Row],[2026/27 From - Spending review Topic 3]]+Dataset[[#This Row],[2026/27 From - Spending review Topic 4]]+Dataset[[#This Row],[2026/27 From - Other reallocations]]","v":0},{"$f":"Dataset[[#This Row],[2027/28 From - Spending review Topic 1]]+Dataset[[#This Row],[2027/28 From - Spending review Topic 2]]+Dataset[[#This Row],[2027/28 From - Spending review Topic 3]]+Dataset[[#This Row],[2027/28 From - Spending review Topic 4]]+Dataset[[#This Row],[2027/28 From - Other reallocations]]","v":0},{"$f":"Dataset[[#This Row],[2025/26 To - Spending review Topic 1]]+Dataset[[#This Row],[2025/26 To - Spending review Topic 2]]+Dataset[[#This Row],[2025/26 To - Spending review Topic 3]]+Dataset[[#This Row],[2025/26 To - Spending review Topic 4]]+Dataset[[#This Row],[2025/26 To - Other reallocations]]","v":0},{"$f":"Dataset[[#This Row],[2026/27 To - Spending review Topic 1]]+Dataset[[#This Row],[2026/27 To - Spending review Topic 2]]+Dataset[[#This Row],[2026/27 To - Spending review Topic 3]]+Dataset[[#This Row],[2026/27 To - Spending review Topic 4]]+Dataset[[#This Row],[2026/27 To - Other reallocations]]","v":0},{"$f":"Dataset[[#This Row],[2027/28 To - Spending review Topic 1]]+Dataset[[#This Row],[2027/28 To - Spending review Topic 2]]+Dataset[[#This Row],[2027/28 To - Spending review Topic 3]]+Dataset[[#This Row],[2027/28 To - Spending review Topic 4]]+Dataset[[#This Row],[2027/28 To - Other reallocations]]","v":0},{"$f":"Dataset[[#This Row],[2025/26 Reduction]]+Dataset[[#This Row],[2025/26 From - Total]]","v":0},{"$f":"Dataset[[#This Row],[2026/27 Reduction]]+Dataset[[#This Row],[2026/27 From - Total]]","v":0},{"$f":"Dataset[[#This Row],[2027/28 Reduction]]+Dataset[[#This Row],[2027/28 From - Total]]","v":0},{"$f":"Dataset[[#This Row],[2024/25 Reduction]]","v":0},{"$f":"SUM(Dataset[[#This Row],[2025/26 Reduction]],Dataset[[#This Row],[2025/26 From - Total]],Dataset[[#This Row],[2025/26 To - Total]])","v":0},{"$f":"SUM(Dataset[[#This Row],[2026/27 Reduction]],Dataset[[#This Row],[2026/27 From - Total]],Dataset[[#This Row],[2026/27 To - Total]])","v":0},{"$f":"SUM(Dataset[[#This Row],[2027/28 Reduction]],Dataset[[#This Row],[2027/28 From - Total]],Dataset[[#This Row],[2027/28 To - Total]])","v":0},{"$f":"Dataset[[#This Row],[2024/25 Baseline]]+Dataset[[#This Row],[2024/25 Total change]]","v":0},{"$f":"Dataset[[#This Row],[2025/26 Baseline]]+Dataset[[#This Row],[2025/26 Total change]]","v":0},{"$f":"Dataset[[#This Row],[2026/27 Baseline]]+Dataset[[#This Row],[2026/27 Total change]]","v":0},{"$f":"Dataset[[#This Row],[2027/28 Baseline]]+Dataset[[#This Row],[2027/28 Total change]]","v":0}]
["NAT|Non-transfer item","40|Computer services","2025_26","MTEC2025",40,6,3,52783,1511,"40","06","03","052783","001511","40|06|03|001511","01","01","02","10","10","01|01|02|10|10","National","Transport","Maritime Transport","Implementation, Monitoring and Evaluation","Non-transfer item","Current","Current payments","Goods and services","Computer services","Computer services","Economic development","Economic regulation and infrastructure","NAT",0,0,0,0,0,0,346,0,0,0,0,null,null,null,null,null,null,null,null,null,null,null,null,null,null,null,null,null,null,null,null,null,null,null,null,null,null,null,null,null,null,null,null,null,null,{"$f":"Dataset[[#This Row],[2025/26 From - Spending review Topic 1]]+Dataset[[#This Row],[2025/26 From - Spending review Topic 2]]+Dataset[[#This Row],[2025/26 From - Spending review Topic 3]]+Dataset[[#This Row],[2025/26 From - Spending review Topic 4]]+Dataset[[#This Row],[2025/26 From - Other reallocations]]","v":0},{"$f":"Dataset[[#This Row],[2026/27 From - Spending review Topic 1]]+Dataset[[#This Row],[2026/27 From - Spending review Topic 2]]+Dataset[[#This Row],[2026/27 From - Spending review Topic 3]]+Dataset[[#This Row],[2026/27 From - Spending review Topic 4]]+Dataset[[#This Row],[2026/27 From - Other reallocations]]","v":0},{"$f":"Dataset[[#This Row],[2027/28 From - Spending review Topic 1]]+Dataset[[#This Row],[2027/28 From - Spending review Topic 2]]+Dataset[[#This Row],[2027/28 From - Spending review Topic 3]]+Dataset[[#This Row],[2027/28 From - Spending review Topic 4]]+Dataset[[#This Row],[2027/28 From - Other reallocations]]","v":0},{"$f":"Dataset[[#This Row],[2025/26 To - Spending review Topic 1]]+Dataset[[#This Row],[2025/26 To - Spending review Topic 2]]+Dataset[[#This Row],[2025/26 To - Spending review Topic 3]]+Dataset[[#This Row],[2025/26 To - Spending review Topic 4]]+Dataset[[#This Row],[2025/26 To - Other reallocations]]","v":0},{"$f":"Dataset[[#This Row],[2026/27 To - Spending review Topic 1]]+Dataset[[#This Row],[2026/27 To - Spending review Topic 2]]+Dataset[[#This Row],[2026/27 To - Spending review Topic 3]]+Dataset[[#This Row],[2026/27 To - Spending review Topic 4]]+Dataset[[#This Row],[2026/27 To - Other reallocations]]","v":0},{"$f":"Dataset[[#This Row],[2027/28 To - Spending review Topic 1]]+Dataset[[#This Row],[2027/28 To - Spending review Topic 2]]+Dataset[[#This Row],[2027/28 To - Spending review Topic 3]]+Dataset[[#This Row],[2027/28 To - Spending review Topic 4]]+Dataset[[#This Row],[2027/28 To - Other reallocations]]","v":0},{"$f":"Dataset[[#This Row],[2025/26 Reduction]]+Dataset[[#This Row],[2025/26 From - Total]]","v":0},{"$f":"Dataset[[#This Row],[2026/27 Reduction]]+Dataset[[#This Row],[2026/27 From - Total]]","v":0},{"$f":"Dataset[[#This Row],[2027/28 Reduction]]+Dataset[[#This Row],[2027/28 From - Total]]","v":0},{"$f":"Dataset[[#This Row],[2024/25 Reduction]]","v":0},{"$f":"SUM(Dataset[[#This Row],[2025/26 Reduction]],Dataset[[#This Row],[2025/26 From - Total]],Dataset[[#This Row],[2025/26 To - Total]])","v":0},{"$f":"SUM(Dataset[[#This Row],[2026/27 Reduction]],Dataset[[#This Row],[2026/27 From - Total]],Dataset[[#This Row],[2026/27 To - Total]])","v":0},{"$f":"SUM(Dataset[[#This Row],[2027/28 Reduction]],Dataset[[#This Row],[2027/28 From - Total]],Dataset[[#This Row],[2027/28 To - Total]])","v":0},{"$f":"Dataset[[#This Row],[2024/25 Baseline]]+Dataset[[#This Row],[2024/25 Total change]]","v":0},{"$f":"Dataset[[#This Row],[2025/26 Baseline]]+Dataset[[#This Row],[2025/26 Total change]]","v":0},{"$f":"Dataset[[#This Row],[2026/27 Baseline]]+Dataset[[#This Row],[2026/27 Total change]]","v":0},{"$f":"Dataset[[#This Row],[2027/28 Baseline]]+Dataset[[#This Row],[2027/28 Total change]]","v":0}]
["NAT|Non-transfer item","40|Entertainment","2025_26","MTEC2025",40,6,3,52791,1519,"40","06","03","052791","001519","40|06|03|001519","01","01","02","18","18","01|01|02|18|18","National","Transport","Maritime Transport","Implementation, Monitoring and Evaluation","Non-transfer item","Current","Current payments","Goods and services","Entertainment","Entertainment","Economic development","Economic regulation and infrastructure","NAT",0,0,0,0,0,0,null,0,0,0,0,null,null,null,null,null,null,null,null,null,null,null,null,null,null,null,null,null,null,null,null,null,null,null,null,null,null,null,null,null,null,null,null,null,null,{"$f":"Dataset[[#This Row],[2025/26 From - Spending review Topic 1]]+Dataset[[#This Row],[2025/26 From - Spending review Topic 2]]+Dataset[[#This Row],[2025/26 From - Spending review Topic 3]]+Dataset[[#This Row],[2025/26 From - Spending review Topic 4]]+Dataset[[#This Row],[2025/26 From - Other reallocations]]","v":0},{"$f":"Dataset[[#This Row],[2026/27 From - Spending review Topic 1]]+Dataset[[#This Row],[2026/27 From - Spending review Topic 2]]+Dataset[[#This Row],[2026/27 From - Spending review Topic 3]]+Dataset[[#This Row],[2026/27 From - Spending review Topic 4]]+Dataset[[#This Row],[2026/27 From - Other reallocations]]","v":0},{"$f":"Dataset[[#This Row],[2027/28 From - Spending review Topic 1]]+Dataset[[#This Row],[2027/28 From - Spending review Topic 2]]+Dataset[[#This Row],[2027/28 From - Spending review Topic 3]]+Dataset[[#This Row],[2027/28 From - Spending review Topic 4]]+Dataset[[#This Row],[2027/28 From - Other reallocations]]","v":0},{"$f":"Dataset[[#This Row],[2025/26 To - Spending review Topic 1]]+Dataset[[#This Row],[2025/26 To - Spending review Topic 2]]+Dataset[[#This Row],[2025/26 To - Spending review Topic 3]]+Dataset[[#This Row],[2025/26 To - Spending review Topic 4]]+Dataset[[#This Row],[2025/26 To - Other reallocations]]","v":0},{"$f":"Dataset[[#This Row],[2026/27 To - Spending review Topic 1]]+Dataset[[#This Row],[2026/27 To - Spending review Topic 2]]+Dataset[[#This Row],[2026/27 To - Spending review Topic 3]]+Dataset[[#This Row],[2026/27 To - Spending review Topic 4]]+Dataset[[#This Row],[2026/27 To - Other reallocations]]","v":0},{"$f":"Dataset[[#This Row],[2027/28 To - Spending review Topic 1]]+Dataset[[#This Row],[2027/28 To - Spending review Topic 2]]+Dataset[[#This Row],[2027/28 To - Spending review Topic 3]]+Dataset[[#This Row],[2027/28 To - Spending review Topic 4]]+Dataset[[#This Row],[2027/28 To - Other reallocations]]","v":0},{"$f":"Dataset[[#This Row],[2025/26 Reduction]]+Dataset[[#This Row],[2025/26 From - Total]]","v":0},{"$f":"Dataset[[#This Row],[2026/27 Reduction]]+Dataset[[#This Row],[2026/27 From - Total]]","v":0},{"$f":"Dataset[[#This Row],[2027/28 Reduction]]+Dataset[[#This Row],[2027/28 From - Total]]","v":0},{"$f":"Dataset[[#This Row],[2024/25 Reduction]]","v":0},{"$f":"SUM(Dataset[[#This Row],[2025/26 Reduction]],Dataset[[#This Row],[2025/26 From - Total]],Dataset[[#This Row],[2025/26 To - Total]])","v":0},{"$f":"SUM(Dataset[[#This Row],[2026/27 Reduction]],Dataset[[#This Row],[2026/27 From - Total]],Dataset[[#This Row],[2026/27 To - Total]])","v":0},{"$f":"SUM(Dataset[[#This Row],[2027/28 Reduction]],Dataset[[#This Row],[2027/28 From - Total]],Dataset[[#This Row],[2027/28 To - Total]])","v":0},{"$f":"Dataset[[#This Row],[2024/25 Baseline]]+Dataset[[#This Row],[2024/25 Total change]]","v":0},{"$f":"Dataset[[#This Row],[2025/26 Baseline]]+Dataset[[#This Row],[2025/26 Total change]]","v":0},{"$f":"Dataset[[#This Row],[2026/27 Baseline]]+Dataset[[#This Row],[2026/27 Total change]]","v":0},{"$f":"Dataset[[#This Row],[2027/28 Baseline]]+Dataset[[#This Row],[2027/28 Total change]]","v":0}]
["NAT|Non-transfer item","40|Inventory: Food and food supplies","2025_26","MTEC2025",40,6,3,52796,1524,"40","06","03","052796","001524","40|06|03|001524","01","01","02","23","23","01|01|02|23|23","National","Transport","Maritime Transport","Implementation, Monitoring and Evaluation","Non-transfer item","Current","Current payments","Goods and services","Inventory: Food and food supplies","Inventory: Food and food supplies","Economic development","Economic regulation and infrastructure","NAT",0,0,0,0,0,0,null,0,0,0,0,null,null,null,null,null,null,null,null,null,null,null,null,null,null,null,null,null,null,null,null,null,null,null,null,null,null,null,null,null,null,null,null,null,null,{"$f":"Dataset[[#This Row],[2025/26 From - Spending review Topic 1]]+Dataset[[#This Row],[2025/26 From - Spending review Topic 2]]+Dataset[[#This Row],[2025/26 From - Spending review Topic 3]]+Dataset[[#This Row],[2025/26 From - Spending review Topic 4]]+Dataset[[#This Row],[2025/26 From - Other reallocations]]","v":0},{"$f":"Dataset[[#This Row],[2026/27 From - Spending review Topic 1]]+Dataset[[#This Row],[2026/27 From - Spending review Topic 2]]+Dataset[[#This Row],[2026/27 From - Spending review Topic 3]]+Dataset[[#This Row],[2026/27 From - Spending review Topic 4]]+Dataset[[#This Row],[2026/27 From - Other reallocations]]","v":0},{"$f":"Dataset[[#This Row],[2027/28 From - Spending review Topic 1]]+Dataset[[#This Row],[2027/28 From - Spending review Topic 2]]+Dataset[[#This Row],[2027/28 From - Spending review Topic 3]]+Dataset[[#This Row],[2027/28 From - Spending review Topic 4]]+Dataset[[#This Row],[2027/28 From - Other reallocations]]","v":0},{"$f":"Dataset[[#This Row],[2025/26 To - Spending review Topic 1]]+Dataset[[#This Row],[2025/26 To - Spending review Topic 2]]+Dataset[[#This Row],[2025/26 To - Spending review Topic 3]]+Dataset[[#This Row],[2025/26 To - Spending review Topic 4]]+Dataset[[#This Row],[2025/26 To - Other reallocations]]","v":0},{"$f":"Dataset[[#This Row],[2026/27 To - Spending review Topic 1]]+Dataset[[#This Row],[2026/27 To - Spending review Topic 2]]+Dataset[[#This Row],[2026/27 To - Spending review Topic 3]]+Dataset[[#This Row],[2026/27 To - Spending review Topic 4]]+Dataset[[#This Row],[2026/27 To - Other reallocations]]","v":0},{"$f":"Dataset[[#This Row],[2027/28 To - Spending review Topic 1]]+Dataset[[#This Row],[2027/28 To - Spending review Topic 2]]+Dataset[[#This Row],[2027/28 To - Spending review Topic 3]]+Dataset[[#This Row],[2027/28 To - Spending review Topic 4]]+Dataset[[#This Row],[2027/28 To - Other reallocations]]","v":0},{"$f":"Dataset[[#This Row],[2025/26 Reduction]]+Dataset[[#This Row],[2025/26 From - Total]]","v":0},{"$f":"Dataset[[#This Row],[2026/27 Reduction]]+Dataset[[#This Row],[2026/27 From - Total]]","v":0},{"$f":"Dataset[[#This Row],[2027/28 Reduction]]+Dataset[[#This Row],[2027/28 From - Total]]","v":0},{"$f":"Dataset[[#This Row],[2024/25 Reduction]]","v":0},{"$f":"SUM(Dataset[[#This Row],[2025/26 Reduction]],Dataset[[#This Row],[2025/26 From - Total]],Dataset[[#This Row],[2025/26 To - Total]])","v":0},{"$f":"SUM(Dataset[[#This Row],[2026/27 Reduction]],Dataset[[#This Row],[2026/27 From - Total]],Dataset[[#This Row],[2026/27 To - Total]])","v":0},{"$f":"SUM(Dataset[[#This Row],[2027/28 Reduction]],Dataset[[#This Row],[2027/28 From - Total]],Dataset[[#This Row],[2027/28 To - Total]])","v":0},{"$f":"Dataset[[#This Row],[2024/25 Baseline]]+Dataset[[#This Row],[2024/25 Total change]]","v":0},{"$f":"Dataset[[#This Row],[2025/26 Baseline]]+Dataset[[#This Row],[2025/26 Total change]]","v":0},{"$f":"Dataset[[#This Row],[2026/27 Baseline]]+Dataset[[#This Row],[2026/27 Total change]]","v":0},{"$f":"Dataset[[#This Row],[2027/28 Baseline]]+Dataset[[#This Row],[2027/28 Total change]]","v":0}]
["NAT|Non-transfer item","40|Consumable supplies","2025_26","MTEC2025",40,6,3,52804,1532,"40","06","03","052804","001532","40|06|03|001532","01","01","02","31","31","01|01|02|31|31","National","Transport","Maritime Transport","Implementation, Monitoring and Evaluation","Non-transfer item","Current","Current payments","Goods and services","Consumable supplies","Consumable supplies","Economic development","Economic regulation and infrastructure","NAT",0,0,0,0,0,0,null,0,0,0,0,null,null,null,null,null,null,null,null,null,null,null,null,null,null,null,null,null,null,null,null,null,null,null,null,null,null,null,null,null,null,null,null,null,null,{"$f":"Dataset[[#This Row],[2025/26 From - Spending review Topic 1]]+Dataset[[#This Row],[2025/26 From - Spending review Topic 2]]+Dataset[[#This Row],[2025/26 From - Spending review Topic 3]]+Dataset[[#This Row],[2025/26 From - Spending review Topic 4]]+Dataset[[#This Row],[2025/26 From - Other reallocations]]","v":0},{"$f":"Dataset[[#This Row],[2026/27 From - Spending review Topic 1]]+Dataset[[#This Row],[2026/27 From - Spending review Topic 2]]+Dataset[[#This Row],[2026/27 From - Spending review Topic 3]]+Dataset[[#This Row],[2026/27 From - Spending review Topic 4]]+Dataset[[#This Row],[2026/27 From - Other reallocations]]","v":0},{"$f":"Dataset[[#This Row],[2027/28 From - Spending review Topic 1]]+Dataset[[#This Row],[2027/28 From - Spending review Topic 2]]+Dataset[[#This Row],[2027/28 From - Spending review Topic 3]]+Dataset[[#This Row],[2027/28 From - Spending review Topic 4]]+Dataset[[#This Row],[2027/28 From - Other reallocations]]","v":0},{"$f":"Dataset[[#This Row],[2025/26 To - Spending review Topic 1]]+Dataset[[#This Row],[2025/26 To - Spending review Topic 2]]+Dataset[[#This Row],[2025/26 To - Spending review Topic 3]]+Dataset[[#This Row],[2025/26 To - Spending review Topic 4]]+Dataset[[#This Row],[2025/26 To - Other reallocations]]","v":0},{"$f":"Dataset[[#This Row],[2026/27 To - Spending review Topic 1]]+Dataset[[#This Row],[2026/27 To - Spending review Topic 2]]+Dataset[[#This Row],[2026/27 To - Spending review Topic 3]]+Dataset[[#This Row],[2026/27 To - Spending review Topic 4]]+Dataset[[#This Row],[2026/27 To - Other reallocations]]","v":0},{"$f":"Dataset[[#This Row],[2027/28 To - Spending review Topic 1]]+Dataset[[#This Row],[2027/28 To - Spending review Topic 2]]+Dataset[[#This Row],[2027/28 To - Spending review Topic 3]]+Dataset[[#This Row],[2027/28 To - Spending review Topic 4]]+Dataset[[#This Row],[2027/28 To - Other reallocations]]","v":0},{"$f":"Dataset[[#This Row],[2025/26 Reduction]]+Dataset[[#This Row],[2025/26 From - Total]]","v":0},{"$f":"Dataset[[#This Row],[2026/27 Reduction]]+Dataset[[#This Row],[2026/27 From - Total]]","v":0},{"$f":"Dataset[[#This Row],[2027/28 Reduction]]+Dataset[[#This Row],[2027/28 From - Total]]","v":0},{"$f":"Dataset[[#This Row],[2024/25 Reduction]]","v":0},{"$f":"SUM(Dataset[[#This Row],[2025/26 Reduction]],Dataset[[#This Row],[2025/26 From - Total]],Dataset[[#This Row],[2025/26 To - Total]])","v":0},{"$f":"SUM(Dataset[[#This Row],[2026/27 Reduction]],Dataset[[#This Row],[2026/27 From - Total]],Dataset[[#This Row],[2026/27 To - Total]])","v":0},{"$f":"SUM(Dataset[[#This Row],[2027/28 Reduction]],Dataset[[#This Row],[2027/28 From - Total]],Dataset[[#This Row],[2027/28 To - Total]])","v":0},{"$f":"Dataset[[#This Row],[2024/25 Baseline]]+Dataset[[#This Row],[2024/25 Total change]]","v":0},{"$f":"Dataset[[#This Row],[2025/26 Baseline]]+Dataset[[#This Row],[2025/26 Total change]]","v":0},{"$f":"Dataset[[#This Row],[2026/27 Baseline]]+Dataset[[#This Row],[2026/27 Total change]]","v":0},{"$f":"Dataset[[#This Row],[2027/28 Baseline]]+Dataset[[#This Row],[2027/28 Total change]]","v":0}]
["NAT|Non-transfer item","40|Operating payments","2025_26","MTEC2025",40,6,3,52812,1540,"40","06","03","052812","001540","40|06|03|001540","01","01","02","39","39","01|01|02|39|39","National","Transport","Maritime Transport","Implementation, Monitoring and Evaluation","Non-transfer item","Current","Current payments","Goods and services","Operating payments","Operating payments","Economic development","Economic regulation and infrastructure","NAT",0,1,311,0,0,0,37,0,0,0,0,null,null,null,null,null,null,null,null,null,null,null,null,null,null,null,null,null,null,null,null,null,null,null,null,null,null,null,null,null,null,null,null,null,null,{"$f":"Dataset[[#This Row],[2025/26 From - Spending review Topic 1]]+Dataset[[#This Row],[2025/26 From - Spending review Topic 2]]+Dataset[[#This Row],[2025/26 From - Spending review Topic 3]]+Dataset[[#This Row],[2025/26 From - Spending review Topic 4]]+Dataset[[#This Row],[2025/26 From - Other reallocations]]","v":0},{"$f":"Dataset[[#This Row],[2026/27 From - Spending review Topic 1]]+Dataset[[#This Row],[2026/27 From - Spending review Topic 2]]+Dataset[[#This Row],[2026/27 From - Spending review Topic 3]]+Dataset[[#This Row],[2026/27 From - Spending review Topic 4]]+Dataset[[#This Row],[2026/27 From - Other reallocations]]","v":0},{"$f":"Dataset[[#This Row],[2027/28 From - Spending review Topic 1]]+Dataset[[#This Row],[2027/28 From - Spending review Topic 2]]+Dataset[[#This Row],[2027/28 From - Spending review Topic 3]]+Dataset[[#This Row],[2027/28 From - Spending review Topic 4]]+Dataset[[#This Row],[2027/28 From - Other reallocations]]","v":0},{"$f":"Dataset[[#This Row],[2025/26 To - Spending review Topic 1]]+Dataset[[#This Row],[2025/26 To - Spending review Topic 2]]+Dataset[[#This Row],[2025/26 To - Spending review Topic 3]]+Dataset[[#This Row],[2025/26 To - Spending review Topic 4]]+Dataset[[#This Row],[2025/26 To - Other reallocations]]","v":0},{"$f":"Dataset[[#This Row],[2026/27 To - Spending review Topic 1]]+Dataset[[#This Row],[2026/27 To - Spending review Topic 2]]+Dataset[[#This Row],[2026/27 To - Spending review Topic 3]]+Dataset[[#This Row],[2026/27 To - Spending review Topic 4]]+Dataset[[#This Row],[2026/27 To - Other reallocations]]","v":0},{"$f":"Dataset[[#This Row],[2027/28 To - Spending review Topic 1]]+Dataset[[#This Row],[2027/28 To - Spending review Topic 2]]+Dataset[[#This Row],[2027/28 To - Spending review Topic 3]]+Dataset[[#This Row],[2027/28 To - Spending review Topic 4]]+Dataset[[#This Row],[2027/28 To - Other reallocations]]","v":0},{"$f":"Dataset[[#This Row],[2025/26 Reduction]]+Dataset[[#This Row],[2025/26 From - Total]]","v":0},{"$f":"Dataset[[#This Row],[2026/27 Reduction]]+Dataset[[#This Row],[2026/27 From - Total]]","v":0},{"$f":"Dataset[[#This Row],[2027/28 Reduction]]+Dataset[[#This Row],[2027/28 From - Total]]","v":0},{"$f":"Dataset[[#This Row],[2024/25 Reduction]]","v":0},{"$f":"SUM(Dataset[[#This Row],[2025/26 Reduction]],Dataset[[#This Row],[2025/26 From - Total]],Dataset[[#This Row],[2025/26 To - Total]])","v":0},{"$f":"SUM(Dataset[[#This Row],[2026/27 Reduction]],Dataset[[#This Row],[2026/27 From - Total]],Dataset[[#This Row],[2026/27 To - Total]])","v":0},{"$f":"SUM(Dataset[[#This Row],[2027/28 Reduction]],Dataset[[#This Row],[2027/28 From - Total]],Dataset[[#This Row],[2027/28 To - Total]])","v":0},{"$f":"Dataset[[#This Row],[2024/25 Baseline]]+Dataset[[#This Row],[2024/25 Total change]]","v":0},{"$f":"Dataset[[#This Row],[2025/26 Baseline]]+Dataset[[#This Row],[2025/26 Total change]]","v":0},{"$f":"Dataset[[#This Row],[2026/27 Baseline]]+Dataset[[#This Row],[2026/27 Total change]]","v":0},{"$f":"Dataset[[#This Row],[2027/28 Baseline]]+Dataset[[#This Row],[2027/28 Total change]]","v":0}]
["NAT|Non-transfer item","40|Other fixed structures","2025_26","MTEC2025",40,6,3,52817,1545,"40","06","03","052817","001545","40|06|03|001545","02","03","11","55","59","02|03|11|55|59","National","Transport","Maritime Transport","Implementation, Monitoring and Evaluation","Non-transfer item","Capital","Payments for capital assets","Buildings and other fixed structures","Other fixed structures","Other fixed structures","Economic development","Economic regulation and infrastructure","NAT",0,0,0,0,0,0,null,0,0,0,0,null,null,null,null,null,null,null,null,null,null,null,null,null,null,null,null,null,null,null,null,null,null,null,null,null,null,null,null,null,null,null,null,null,null,{"$f":"Dataset[[#This Row],[2025/26 From - Spending review Topic 1]]+Dataset[[#This Row],[2025/26 From - Spending review Topic 2]]+Dataset[[#This Row],[2025/26 From - Spending review Topic 3]]+Dataset[[#This Row],[2025/26 From - Spending review Topic 4]]+Dataset[[#This Row],[2025/26 From - Other reallocations]]","v":0},{"$f":"Dataset[[#This Row],[2026/27 From - Spending review Topic 1]]+Dataset[[#This Row],[2026/27 From - Spending review Topic 2]]+Dataset[[#This Row],[2026/27 From - Spending review Topic 3]]+Dataset[[#This Row],[2026/27 From - Spending review Topic 4]]+Dataset[[#This Row],[2026/27 From - Other reallocations]]","v":0},{"$f":"Dataset[[#This Row],[2027/28 From - Spending review Topic 1]]+Dataset[[#This Row],[2027/28 From - Spending review Topic 2]]+Dataset[[#This Row],[2027/28 From - Spending review Topic 3]]+Dataset[[#This Row],[2027/28 From - Spending review Topic 4]]+Dataset[[#This Row],[2027/28 From - Other reallocations]]","v":0},{"$f":"Dataset[[#This Row],[2025/26 To - Spending review Topic 1]]+Dataset[[#This Row],[2025/26 To - Spending review Topic 2]]+Dataset[[#This Row],[2025/26 To - Spending review Topic 3]]+Dataset[[#This Row],[2025/26 To - Spending review Topic 4]]+Dataset[[#This Row],[2025/26 To - Other reallocations]]","v":0},{"$f":"Dataset[[#This Row],[2026/27 To - Spending review Topic 1]]+Dataset[[#This Row],[2026/27 To - Spending review Topic 2]]+Dataset[[#This Row],[2026/27 To - Spending review Topic 3]]+Dataset[[#This Row],[2026/27 To - Spending review Topic 4]]+Dataset[[#This Row],[2026/27 To - Other reallocations]]","v":0},{"$f":"Dataset[[#This Row],[2027/28 To - Spending review Topic 1]]+Dataset[[#This Row],[2027/28 To - Spending review Topic 2]]+Dataset[[#This Row],[2027/28 To - Spending review Topic 3]]+Dataset[[#This Row],[2027/28 To - Spending review Topic 4]]+Dataset[[#This Row],[2027/28 To - Other reallocations]]","v":0},{"$f":"Dataset[[#This Row],[2025/26 Reduction]]+Dataset[[#This Row],[2025/26 From - Total]]","v":0},{"$f":"Dataset[[#This Row],[2026/27 Reduction]]+Dataset[[#This Row],[2026/27 From - Total]]","v":0},{"$f":"Dataset[[#This Row],[2027/28 Reduction]]+Dataset[[#This Row],[2027/28 From - Total]]","v":0},{"$f":"Dataset[[#This Row],[2024/25 Reduction]]","v":0},{"$f":"SUM(Dataset[[#This Row],[2025/26 Reduction]],Dataset[[#This Row],[2025/26 From - Total]],Dataset[[#This Row],[2025/26 To - Total]])","v":0},{"$f":"SUM(Dataset[[#This Row],[2026/27 Reduction]],Dataset[[#This Row],[2026/27 From - Total]],Dataset[[#This Row],[2026/27 To - Total]])","v":0},{"$f":"SUM(Dataset[[#This Row],[2027/28 Reduction]],Dataset[[#This Row],[2027/28 From - Total]],Dataset[[#This Row],[2027/28 To - Total]])","v":0},{"$f":"Dataset[[#This Row],[2024/25 Baseline]]+Dataset[[#This Row],[2024/25 Total change]]","v":0},{"$f":"Dataset[[#This Row],[2025/26 Baseline]]+Dataset[[#This Row],[2025/26 Total change]]","v":0},{"$f":"Dataset[[#This Row],[2026/27 Baseline]]+Dataset[[#This Row],[2026/27 Total change]]","v":0},{"$f":"Dataset[[#This Row],[2027/28 Baseline]]+Dataset[[#This Row],[2027/28 Total change]]","v":0}]
["NAT|Non-transfer item","40|Salaries and wages","2025_26","MTEC2025",40,6,4,52825,1553,"40","06","04","052825","001553","40|06|04|001553","01","01","01","01","01","01|01|01|01|01","National","Transport","Maritime Transport","Maritime Oversight","Non-transfer item","Current","Current payments","Compensation of employees","Salaries and wages","Salaries and wages","Economic development","Economic regulation and infrastructure","NAT",1803,0,0,0,0,0,null,0,0,0,0,null,null,null,null,null,null,null,null,null,null,null,null,null,null,null,null,null,null,null,null,null,null,null,null,null,null,null,null,null,null,null,null,null,null,{"$f":"Dataset[[#This Row],[2025/26 From - Spending review Topic 1]]+Dataset[[#This Row],[2025/26 From - Spending review Topic 2]]+Dataset[[#This Row],[2025/26 From - Spending review Topic 3]]+Dataset[[#This Row],[2025/26 From - Spending review Topic 4]]+Dataset[[#This Row],[2025/26 From - Other reallocations]]","v":0},{"$f":"Dataset[[#This Row],[2026/27 From - Spending review Topic 1]]+Dataset[[#This Row],[2026/27 From - Spending review Topic 2]]+Dataset[[#This Row],[2026/27 From - Spending review Topic 3]]+Dataset[[#This Row],[2026/27 From - Spending review Topic 4]]+Dataset[[#This Row],[2026/27 From - Other reallocations]]","v":0},{"$f":"Dataset[[#This Row],[2027/28 From - Spending review Topic 1]]+Dataset[[#This Row],[2027/28 From - Spending review Topic 2]]+Dataset[[#This Row],[2027/28 From - Spending review Topic 3]]+Dataset[[#This Row],[2027/28 From - Spending review Topic 4]]+Dataset[[#This Row],[2027/28 From - Other reallocations]]","v":0},{"$f":"Dataset[[#This Row],[2025/26 To - Spending review Topic 1]]+Dataset[[#This Row],[2025/26 To - Spending review Topic 2]]+Dataset[[#This Row],[2025/26 To - Spending review Topic 3]]+Dataset[[#This Row],[2025/26 To - Spending review Topic 4]]+Dataset[[#This Row],[2025/26 To - Other reallocations]]","v":0},{"$f":"Dataset[[#This Row],[2026/27 To - Spending review Topic 1]]+Dataset[[#This Row],[2026/27 To - Spending review Topic 2]]+Dataset[[#This Row],[2026/27 To - Spending review Topic 3]]+Dataset[[#This Row],[2026/27 To - Spending review Topic 4]]+Dataset[[#This Row],[2026/27 To - Other reallocations]]","v":0},{"$f":"Dataset[[#This Row],[2027/28 To - Spending review Topic 1]]+Dataset[[#This Row],[2027/28 To - Spending review Topic 2]]+Dataset[[#This Row],[2027/28 To - Spending review Topic 3]]+Dataset[[#This Row],[2027/28 To - Spending review Topic 4]]+Dataset[[#This Row],[2027/28 To - Other reallocations]]","v":0},{"$f":"Dataset[[#This Row],[2025/26 Reduction]]+Dataset[[#This Row],[2025/26 From - Total]]","v":0},{"$f":"Dataset[[#This Row],[2026/27 Reduction]]+Dataset[[#This Row],[2026/27 From - Total]]","v":0},{"$f":"Dataset[[#This Row],[2027/28 Reduction]]+Dataset[[#This Row],[2027/28 From - Total]]","v":0},{"$f":"Dataset[[#This Row],[2024/25 Reduction]]","v":0},{"$f":"SUM(Dataset[[#This Row],[2025/26 Reduction]],Dataset[[#This Row],[2025/26 From - Total]],Dataset[[#This Row],[2025/26 To - Total]])","v":0},{"$f":"SUM(Dataset[[#This Row],[2026/27 Reduction]],Dataset[[#This Row],[2026/27 From - Total]],Dataset[[#This Row],[2026/27 To - Total]])","v":0},{"$f":"SUM(Dataset[[#This Row],[2027/28 Reduction]],Dataset[[#This Row],[2027/28 From - Total]],Dataset[[#This Row],[2027/28 To - Total]])","v":0},{"$f":"Dataset[[#This Row],[2024/25 Baseline]]+Dataset[[#This Row],[2024/25 Total change]]","v":0},{"$f":"Dataset[[#This Row],[2025/26 Baseline]]+Dataset[[#This Row],[2025/26 Total change]]","v":0},{"$f":"Dataset[[#This Row],[2026/27 Baseline]]+Dataset[[#This Row],[2026/27 Total change]]","v":0},{"$f":"Dataset[[#This Row],[2027/28 Baseline]]+Dataset[[#This Row],[2027/28 Total change]]","v":0}]
["NAT|Non-transfer item","40|Communication (G&S)","2025_26","MTEC2025",40,6,4,52833,1561,"40","06","04","052833","001561","40|06|04|001561","01","01","02","09","09","01|01|02|09|09","National","Transport","Maritime Transport","Maritime Oversight","Non-transfer item","Current","Current payments","Goods and services","Communication (G&S)","Communication (G&S)","Economic development","Economic regulation and infrastructure","NAT",24,0,0,0,0,0,null,0,0,0,0,null,null,null,null,null,null,null,null,null,null,null,null,null,null,null,null,null,null,null,null,null,null,null,null,null,null,null,null,null,null,null,null,null,null,{"$f":"Dataset[[#This Row],[2025/26 From - Spending review Topic 1]]+Dataset[[#This Row],[2025/26 From - Spending review Topic 2]]+Dataset[[#This Row],[2025/26 From - Spending review Topic 3]]+Dataset[[#This Row],[2025/26 From - Spending review Topic 4]]+Dataset[[#This Row],[2025/26 From - Other reallocations]]","v":0},{"$f":"Dataset[[#This Row],[2026/27 From - Spending review Topic 1]]+Dataset[[#This Row],[2026/27 From - Spending review Topic 2]]+Dataset[[#This Row],[2026/27 From - Spending review Topic 3]]+Dataset[[#This Row],[2026/27 From - Spending review Topic 4]]+Dataset[[#This Row],[2026/27 From - Other reallocations]]","v":0},{"$f":"Dataset[[#This Row],[2027/28 From - Spending review Topic 1]]+Dataset[[#This Row],[2027/28 From - Spending review Topic 2]]+Dataset[[#This Row],[2027/28 From - Spending review Topic 3]]+Dataset[[#This Row],[2027/28 From - Spending review Topic 4]]+Dataset[[#This Row],[2027/28 From - Other reallocations]]","v":0},{"$f":"Dataset[[#This Row],[2025/26 To - Spending review Topic 1]]+Dataset[[#This Row],[2025/26 To - Spending review Topic 2]]+Dataset[[#This Row],[2025/26 To - Spending review Topic 3]]+Dataset[[#This Row],[2025/26 To - Spending review Topic 4]]+Dataset[[#This Row],[2025/26 To - Other reallocations]]","v":0},{"$f":"Dataset[[#This Row],[2026/27 To - Spending review Topic 1]]+Dataset[[#This Row],[2026/27 To - Spending review Topic 2]]+Dataset[[#This Row],[2026/27 To - Spending review Topic 3]]+Dataset[[#This Row],[2026/27 To - Spending review Topic 4]]+Dataset[[#This Row],[2026/27 To - Other reallocations]]","v":0},{"$f":"Dataset[[#This Row],[2027/28 To - Spending review Topic 1]]+Dataset[[#This Row],[2027/28 To - Spending review Topic 2]]+Dataset[[#This Row],[2027/28 To - Spending review Topic 3]]+Dataset[[#This Row],[2027/28 To - Spending review Topic 4]]+Dataset[[#This Row],[2027/28 To - Other reallocations]]","v":0},{"$f":"Dataset[[#This Row],[2025/26 Reduction]]+Dataset[[#This Row],[2025/26 From - Total]]","v":0},{"$f":"Dataset[[#This Row],[2026/27 Reduction]]+Dataset[[#This Row],[2026/27 From - Total]]","v":0},{"$f":"Dataset[[#This Row],[2027/28 Reduction]]+Dataset[[#This Row],[2027/28 From - Total]]","v":0},{"$f":"Dataset[[#This Row],[2024/25 Reduction]]","v":0},{"$f":"SUM(Dataset[[#This Row],[2025/26 Reduction]],Dataset[[#This Row],[2025/26 From - Total]],Dataset[[#This Row],[2025/26 To - Total]])","v":0},{"$f":"SUM(Dataset[[#This Row],[2026/27 Reduction]],Dataset[[#This Row],[2026/27 From - Total]],Dataset[[#This Row],[2026/27 To - Total]])","v":0},{"$f":"SUM(Dataset[[#This Row],[2027/28 Reduction]],Dataset[[#This Row],[2027/28 From - Total]],Dataset[[#This Row],[2027/28 To - Total]])","v":0},{"$f":"Dataset[[#This Row],[2024/25 Baseline]]+Dataset[[#This Row],[2024/25 Total change]]","v":0},{"$f":"Dataset[[#This Row],[2025/26 Baseline]]+Dataset[[#This Row],[2025/26 Total change]]","v":0},{"$f":"Dataset[[#This Row],[2026/27 Baseline]]+Dataset[[#This Row],[2026/27 Total change]]","v":0},{"$f":"Dataset[[#This Row],[2027/28 Baseline]]+Dataset[[#This Row],[2027/28 Total change]]","v":0}]
["NAT|Non-transfer item","40|Laboratory services","2025_26","MTEC2025",40,6,4,52837,1565,"40","06","04","052837","001565","40|06|04|001565","01","01","02","13","13","01|01|02|13|13","National","Transport","Maritime Transport","Maritime Oversight","Non-transfer item","Current","Current payments","Goods and services","Laboratory services","Laboratory services","Economic development","Economic regulation and infrastructure","NAT",0,0,0,0,0,0,null,0,0,0,0,null,null,null,null,null,null,null,null,null,null,null,null,null,null,null,null,null,null,null,null,null,null,null,null,null,null,null,null,null,null,null,null,null,null,{"$f":"Dataset[[#This Row],[2025/26 From - Spending review Topic 1]]+Dataset[[#This Row],[2025/26 From - Spending review Topic 2]]+Dataset[[#This Row],[2025/26 From - Spending review Topic 3]]+Dataset[[#This Row],[2025/26 From - Spending review Topic 4]]+Dataset[[#This Row],[2025/26 From - Other reallocations]]","v":0},{"$f":"Dataset[[#This Row],[2026/27 From - Spending review Topic 1]]+Dataset[[#This Row],[2026/27 From - Spending review Topic 2]]+Dataset[[#This Row],[2026/27 From - Spending review Topic 3]]+Dataset[[#This Row],[2026/27 From - Spending review Topic 4]]+Dataset[[#This Row],[2026/27 From - Other reallocations]]","v":0},{"$f":"Dataset[[#This Row],[2027/28 From - Spending review Topic 1]]+Dataset[[#This Row],[2027/28 From - Spending review Topic 2]]+Dataset[[#This Row],[2027/28 From - Spending review Topic 3]]+Dataset[[#This Row],[2027/28 From - Spending review Topic 4]]+Dataset[[#This Row],[2027/28 From - Other reallocations]]","v":0},{"$f":"Dataset[[#This Row],[2025/26 To - Spending review Topic 1]]+Dataset[[#This Row],[2025/26 To - Spending review Topic 2]]+Dataset[[#This Row],[2025/26 To - Spending review Topic 3]]+Dataset[[#This Row],[2025/26 To - Spending review Topic 4]]+Dataset[[#This Row],[2025/26 To - Other reallocations]]","v":0},{"$f":"Dataset[[#This Row],[2026/27 To - Spending review Topic 1]]+Dataset[[#This Row],[2026/27 To - Spending review Topic 2]]+Dataset[[#This Row],[2026/27 To - Spending review Topic 3]]+Dataset[[#This Row],[2026/27 To - Spending review Topic 4]]+Dataset[[#This Row],[2026/27 To - Other reallocations]]","v":0},{"$f":"Dataset[[#This Row],[2027/28 To - Spending review Topic 1]]+Dataset[[#This Row],[2027/28 To - Spending review Topic 2]]+Dataset[[#This Row],[2027/28 To - Spending review Topic 3]]+Dataset[[#This Row],[2027/28 To - Spending review Topic 4]]+Dataset[[#This Row],[2027/28 To - Other reallocations]]","v":0},{"$f":"Dataset[[#This Row],[2025/26 Reduction]]+Dataset[[#This Row],[2025/26 From - Total]]","v":0},{"$f":"Dataset[[#This Row],[2026/27 Reduction]]+Dataset[[#This Row],[2026/27 From - Total]]","v":0},{"$f":"Dataset[[#This Row],[2027/28 Reduction]]+Dataset[[#This Row],[2027/28 From - Total]]","v":0},{"$f":"Dataset[[#This Row],[2024/25 Reduction]]","v":0},{"$f":"SUM(Dataset[[#This Row],[2025/26 Reduction]],Dataset[[#This Row],[2025/26 From - Total]],Dataset[[#This Row],[2025/26 To - Total]])","v":0},{"$f":"SUM(Dataset[[#This Row],[2026/27 Reduction]],Dataset[[#This Row],[2026/27 From - Total]],Dataset[[#This Row],[2026/27 To - Total]])","v":0},{"$f":"SUM(Dataset[[#This Row],[2027/28 Reduction]],Dataset[[#This Row],[2027/28 From - Total]],Dataset[[#This Row],[2027/28 To - Total]])","v":0},{"$f":"Dataset[[#This Row],[2024/25 Baseline]]+Dataset[[#This Row],[2024/25 Total change]]","v":0},{"$f":"Dataset[[#This Row],[2025/26 Baseline]]+Dataset[[#This Row],[2025/26 Total change]]","v":0},{"$f":"Dataset[[#This Row],[2026/27 Baseline]]+Dataset[[#This Row],[2026/27 Total change]]","v":0},{"$f":"Dataset[[#This Row],[2027/28 Baseline]]+Dataset[[#This Row],[2027/28 Total change]]","v":0}]
["NAT|Non-transfer item","40|Inventory: Clothing material and accessories","2025_26","MTEC2025",40,6,4,52845,1573,"40","06","04","052845","001573","40|06|04|001573","01","01","02","21","21","01|01|02|21|21","National","Transport","Maritime Transport","Maritime Oversight","Non-transfer item","Current","Current payments","Goods and services","Inventory: Clothing material and accessories","Inventory: Clothing material and accessories","Economic development","Economic regulation and infrastructure","NAT",0,0,0,0,0,0,null,0,0,0,0,null,null,null,null,null,null,null,null,null,null,null,null,null,null,null,null,null,null,null,null,null,null,null,null,null,null,null,null,null,null,null,null,null,null,{"$f":"Dataset[[#This Row],[2025/26 From - Spending review Topic 1]]+Dataset[[#This Row],[2025/26 From - Spending review Topic 2]]+Dataset[[#This Row],[2025/26 From - Spending review Topic 3]]+Dataset[[#This Row],[2025/26 From - Spending review Topic 4]]+Dataset[[#This Row],[2025/26 From - Other reallocations]]","v":0},{"$f":"Dataset[[#This Row],[2026/27 From - Spending review Topic 1]]+Dataset[[#This Row],[2026/27 From - Spending review Topic 2]]+Dataset[[#This Row],[2026/27 From - Spending review Topic 3]]+Dataset[[#This Row],[2026/27 From - Spending review Topic 4]]+Dataset[[#This Row],[2026/27 From - Other reallocations]]","v":0},{"$f":"Dataset[[#This Row],[2027/28 From - Spending review Topic 1]]+Dataset[[#This Row],[2027/28 From - Spending review Topic 2]]+Dataset[[#This Row],[2027/28 From - Spending review Topic 3]]+Dataset[[#This Row],[2027/28 From - Spending review Topic 4]]+Dataset[[#This Row],[2027/28 From - Other reallocations]]","v":0},{"$f":"Dataset[[#This Row],[2025/26 To - Spending review Topic 1]]+Dataset[[#This Row],[2025/26 To - Spending review Topic 2]]+Dataset[[#This Row],[2025/26 To - Spending review Topic 3]]+Dataset[[#This Row],[2025/26 To - Spending review Topic 4]]+Dataset[[#This Row],[2025/26 To - Other reallocations]]","v":0},{"$f":"Dataset[[#This Row],[2026/27 To - Spending review Topic 1]]+Dataset[[#This Row],[2026/27 To - Spending review Topic 2]]+Dataset[[#This Row],[2026/27 To - Spending review Topic 3]]+Dataset[[#This Row],[2026/27 To - Spending review Topic 4]]+Dataset[[#This Row],[2026/27 To - Other reallocations]]","v":0},{"$f":"Dataset[[#This Row],[2027/28 To - Spending review Topic 1]]+Dataset[[#This Row],[2027/28 To - Spending review Topic 2]]+Dataset[[#This Row],[2027/28 To - Spending review Topic 3]]+Dataset[[#This Row],[2027/28 To - Spending review Topic 4]]+Dataset[[#This Row],[2027/28 To - Other reallocations]]","v":0},{"$f":"Dataset[[#This Row],[2025/26 Reduction]]+Dataset[[#This Row],[2025/26 From - Total]]","v":0},{"$f":"Dataset[[#This Row],[2026/27 Reduction]]+Dataset[[#This Row],[2026/27 From - Total]]","v":0},{"$f":"Dataset[[#This Row],[2027/28 Reduction]]+Dataset[[#This Row],[2027/28 From - Total]]","v":0},{"$f":"Dataset[[#This Row],[2024/25 Reduction]]","v":0},{"$f":"SUM(Dataset[[#This Row],[2025/26 Reduction]],Dataset[[#This Row],[2025/26 From - Total]],Dataset[[#This Row],[2025/26 To - Total]])","v":0},{"$f":"SUM(Dataset[[#This Row],[2026/27 Reduction]],Dataset[[#This Row],[2026/27 From - Total]],Dataset[[#This Row],[2026/27 To - Total]])","v":0},{"$f":"SUM(Dataset[[#This Row],[2027/28 Reduction]],Dataset[[#This Row],[2027/28 From - Total]],Dataset[[#This Row],[2027/28 To - Total]])","v":0},{"$f":"Dataset[[#This Row],[2024/25 Baseline]]+Dataset[[#This Row],[2024/25 Total change]]","v":0},{"$f":"Dataset[[#This Row],[2025/26 Baseline]]+Dataset[[#This Row],[2025/26 Total change]]","v":0},{"$f":"Dataset[[#This Row],[2026/27 Baseline]]+Dataset[[#This Row],[2026/27 Total change]]","v":0},{"$f":"Dataset[[#This Row],[2027/28 Baseline]]+Dataset[[#This Row],[2027/28 Total change]]","v":0}]
["NAT|Non-transfer item","40|Inventory: Materials and supplies","2025_26","MTEC2025",40,6,4,52850,1578,"40","06","04","052850","001578","40|06|04|001578","01","01","02","26","26","01|01|02|26|26","National","Transport","Maritime Transport","Maritime Oversight","Non-transfer item","Current","Current payments","Goods and services","Inventory: Materials and supplies","Inventory: Materials and supplies","Economic development","Economic regulation and infrastructure","NAT",0,0,0,0,0,0,null,0,0,0,0,null,null,null,null,null,null,null,null,null,null,null,null,null,null,null,null,null,null,null,null,null,null,null,null,null,null,null,null,null,null,null,null,null,null,{"$f":"Dataset[[#This Row],[2025/26 From - Spending review Topic 1]]+Dataset[[#This Row],[2025/26 From - Spending review Topic 2]]+Dataset[[#This Row],[2025/26 From - Spending review Topic 3]]+Dataset[[#This Row],[2025/26 From - Spending review Topic 4]]+Dataset[[#This Row],[2025/26 From - Other reallocations]]","v":0},{"$f":"Dataset[[#This Row],[2026/27 From - Spending review Topic 1]]+Dataset[[#This Row],[2026/27 From - Spending review Topic 2]]+Dataset[[#This Row],[2026/27 From - Spending review Topic 3]]+Dataset[[#This Row],[2026/27 From - Spending review Topic 4]]+Dataset[[#This Row],[2026/27 From - Other reallocations]]","v":0},{"$f":"Dataset[[#This Row],[2027/28 From - Spending review Topic 1]]+Dataset[[#This Row],[2027/28 From - Spending review Topic 2]]+Dataset[[#This Row],[2027/28 From - Spending review Topic 3]]+Dataset[[#This Row],[2027/28 From - Spending review Topic 4]]+Dataset[[#This Row],[2027/28 From - Other reallocations]]","v":0},{"$f":"Dataset[[#This Row],[2025/26 To - Spending review Topic 1]]+Dataset[[#This Row],[2025/26 To - Spending review Topic 2]]+Dataset[[#This Row],[2025/26 To - Spending review Topic 3]]+Dataset[[#This Row],[2025/26 To - Spending review Topic 4]]+Dataset[[#This Row],[2025/26 To - Other reallocations]]","v":0},{"$f":"Dataset[[#This Row],[2026/27 To - Spending review Topic 1]]+Dataset[[#This Row],[2026/27 To - Spending review Topic 2]]+Dataset[[#This Row],[2026/27 To - Spending review Topic 3]]+Dataset[[#This Row],[2026/27 To - Spending review Topic 4]]+Dataset[[#This Row],[2026/27 To - Other reallocations]]","v":0},{"$f":"Dataset[[#This Row],[2027/28 To - Spending review Topic 1]]+Dataset[[#This Row],[2027/28 To - Spending review Topic 2]]+Dataset[[#This Row],[2027/28 To - Spending review Topic 3]]+Dataset[[#This Row],[2027/28 To - Spending review Topic 4]]+Dataset[[#This Row],[2027/28 To - Other reallocations]]","v":0},{"$f":"Dataset[[#This Row],[2025/26 Reduction]]+Dataset[[#This Row],[2025/26 From - Total]]","v":0},{"$f":"Dataset[[#This Row],[2026/27 Reduction]]+Dataset[[#This Row],[2026/27 From - Total]]","v":0},{"$f":"Dataset[[#This Row],[2027/28 Reduction]]+Dataset[[#This Row],[2027/28 From - Total]]","v":0},{"$f":"Dataset[[#This Row],[2024/25 Reduction]]","v":0},{"$f":"SUM(Dataset[[#This Row],[2025/26 Reduction]],Dataset[[#This Row],[2025/26 From - Total]],Dataset[[#This Row],[2025/26 To - Total]])","v":0},{"$f":"SUM(Dataset[[#This Row],[2026/27 Reduction]],Dataset[[#This Row],[2026/27 From - Total]],Dataset[[#This Row],[2026/27 To - Total]])","v":0},{"$f":"SUM(Dataset[[#This Row],[2027/28 Reduction]],Dataset[[#This Row],[2027/28 From - Total]],Dataset[[#This Row],[2027/28 To - Total]])","v":0},{"$f":"Dataset[[#This Row],[2024/25 Baseline]]+Dataset[[#This Row],[2024/25 Total change]]","v":0},{"$f":"Dataset[[#This Row],[2025/26 Baseline]]+Dataset[[#This Row],[2025/26 Total change]]","v":0},{"$f":"Dataset[[#This Row],[2026/27 Baseline]]+Dataset[[#This Row],[2026/27 Total change]]","v":0},{"$f":"Dataset[[#This Row],[2027/28 Baseline]]+Dataset[[#This Row],[2027/28 Total change]]","v":0}]
["NAT|Non-transfer item","40|Rental and hiring","2025_26","MTEC2025",40,6,4,52858,1586,"40","06","04","052858","001586","40|06|04|001586","01","01","02","34","34","01|01|02|34|34","National","Transport","Maritime Transport","Maritime Oversight","Non-transfer item","Current","Current payments","Goods and services","Rental and hiring","Rental and hiring","Economic development","Economic regulation and infrastructure","NAT",0,0,0,0,0,0,null,0,0,0,0,null,null,null,null,null,null,null,null,null,null,null,null,null,null,null,null,null,null,null,null,null,null,null,null,null,null,null,null,null,null,null,null,null,null,{"$f":"Dataset[[#This Row],[2025/26 From - Spending review Topic 1]]+Dataset[[#This Row],[2025/26 From - Spending review Topic 2]]+Dataset[[#This Row],[2025/26 From - Spending review Topic 3]]+Dataset[[#This Row],[2025/26 From - Spending review Topic 4]]+Dataset[[#This Row],[2025/26 From - Other reallocations]]","v":0},{"$f":"Dataset[[#This Row],[2026/27 From - Spending review Topic 1]]+Dataset[[#This Row],[2026/27 From - Spending review Topic 2]]+Dataset[[#This Row],[2026/27 From - Spending review Topic 3]]+Dataset[[#This Row],[2026/27 From - Spending review Topic 4]]+Dataset[[#This Row],[2026/27 From - Other reallocations]]","v":0},{"$f":"Dataset[[#This Row],[2027/28 From - Spending review Topic 1]]+Dataset[[#This Row],[2027/28 From - Spending review Topic 2]]+Dataset[[#This Row],[2027/28 From - Spending review Topic 3]]+Dataset[[#This Row],[2027/28 From - Spending review Topic 4]]+Dataset[[#This Row],[2027/28 From - Other reallocations]]","v":0},{"$f":"Dataset[[#This Row],[2025/26 To - Spending review Topic 1]]+Dataset[[#This Row],[2025/26 To - Spending review Topic 2]]+Dataset[[#This Row],[2025/26 To - Spending review Topic 3]]+Dataset[[#This Row],[2025/26 To - Spending review Topic 4]]+Dataset[[#This Row],[2025/26 To - Other reallocations]]","v":0},{"$f":"Dataset[[#This Row],[2026/27 To - Spending review Topic 1]]+Dataset[[#This Row],[2026/27 To - Spending review Topic 2]]+Dataset[[#This Row],[2026/27 To - Spending review Topic 3]]+Dataset[[#This Row],[2026/27 To - Spending review Topic 4]]+Dataset[[#This Row],[2026/27 To - Other reallocations]]","v":0},{"$f":"Dataset[[#This Row],[2027/28 To - Spending review Topic 1]]+Dataset[[#This Row],[2027/28 To - Spending review Topic 2]]+Dataset[[#This Row],[2027/28 To - Spending review Topic 3]]+Dataset[[#This Row],[2027/28 To - Spending review Topic 4]]+Dataset[[#This Row],[2027/28 To - Other reallocations]]","v":0},{"$f":"Dataset[[#This Row],[2025/26 Reduction]]+Dataset[[#This Row],[2025/26 From - Total]]","v":0},{"$f":"Dataset[[#This Row],[2026/27 Reduction]]+Dataset[[#This Row],[2026/27 From - Total]]","v":0},{"$f":"Dataset[[#This Row],[2027/28 Reduction]]+Dataset[[#This Row],[2027/28 From - Total]]","v":0},{"$f":"Dataset[[#This Row],[2024/25 Reduction]]","v":0},{"$f":"SUM(Dataset[[#This Row],[2025/26 Reduction]],Dataset[[#This Row],[2025/26 From - Total]],Dataset[[#This Row],[2025/26 To - Total]])","v":0},{"$f":"SUM(Dataset[[#This Row],[2026/27 Reduction]],Dataset[[#This Row],[2026/27 From - Total]],Dataset[[#This Row],[2026/27 To - Total]])","v":0},{"$f":"SUM(Dataset[[#This Row],[2027/28 Reduction]],Dataset[[#This Row],[2027/28 From - Total]],Dataset[[#This Row],[2027/28 To - Total]])","v":0},{"$f":"Dataset[[#This Row],[2024/25 Baseline]]+Dataset[[#This Row],[2024/25 Total change]]","v":0},{"$f":"Dataset[[#This Row],[2025/26 Baseline]]+Dataset[[#This Row],[2025/26 Total change]]","v":0},{"$f":"Dataset[[#This Row],[2026/27 Baseline]]+Dataset[[#This Row],[2026/27 Total change]]","v":0},{"$f":"Dataset[[#This Row],[2027/28 Baseline]]+Dataset[[#This Row],[2027/28 Total change]]","v":0}]
["NAT|Non-transfer item","40|Rent on land","2025_26","MTEC2025",40,6,4,52866,1594,"40","06","04","052866","001594","40|06|04|001594","01","01","03","42","42","01|01|03|42|42","National","Transport","Maritime Transport","Maritime Oversight","Non-transfer item","Current","Current payments","Interest and rent on land","Rent on land","Rent on land","Economic development","Economic regulation and infrastructure","NAT",0,0,0,0,0,0,null,0,0,0,0,null,null,null,null,null,null,null,null,null,null,null,null,null,null,null,null,null,null,null,null,null,null,null,null,null,null,null,null,null,null,null,null,null,null,{"$f":"Dataset[[#This Row],[2025/26 From - Spending review Topic 1]]+Dataset[[#This Row],[2025/26 From - Spending review Topic 2]]+Dataset[[#This Row],[2025/26 From - Spending review Topic 3]]+Dataset[[#This Row],[2025/26 From - Spending review Topic 4]]+Dataset[[#This Row],[2025/26 From - Other reallocations]]","v":0},{"$f":"Dataset[[#This Row],[2026/27 From - Spending review Topic 1]]+Dataset[[#This Row],[2026/27 From - Spending review Topic 2]]+Dataset[[#This Row],[2026/27 From - Spending review Topic 3]]+Dataset[[#This Row],[2026/27 From - Spending review Topic 4]]+Dataset[[#This Row],[2026/27 From - Other reallocations]]","v":0},{"$f":"Dataset[[#This Row],[2027/28 From - Spending review Topic 1]]+Dataset[[#This Row],[2027/28 From - Spending review Topic 2]]+Dataset[[#This Row],[2027/28 From - Spending review Topic 3]]+Dataset[[#This Row],[2027/28 From - Spending review Topic 4]]+Dataset[[#This Row],[2027/28 From - Other reallocations]]","v":0},{"$f":"Dataset[[#This Row],[2025/26 To - Spending review Topic 1]]+Dataset[[#This Row],[2025/26 To - Spending review Topic 2]]+Dataset[[#This Row],[2025/26 To - Spending review Topic 3]]+Dataset[[#This Row],[2025/26 To - Spending review Topic 4]]+Dataset[[#This Row],[2025/26 To - Other reallocations]]","v":0},{"$f":"Dataset[[#This Row],[2026/27 To - Spending review Topic 1]]+Dataset[[#This Row],[2026/27 To - Spending review Topic 2]]+Dataset[[#This Row],[2026/27 To - Spending review Topic 3]]+Dataset[[#This Row],[2026/27 To - Spending review Topic 4]]+Dataset[[#This Row],[2026/27 To - Other reallocations]]","v":0},{"$f":"Dataset[[#This Row],[2027/28 To - Spending review Topic 1]]+Dataset[[#This Row],[2027/28 To - Spending review Topic 2]]+Dataset[[#This Row],[2027/28 To - Spending review Topic 3]]+Dataset[[#This Row],[2027/28 To - Spending review Topic 4]]+Dataset[[#This Row],[2027/28 To - Other reallocations]]","v":0},{"$f":"Dataset[[#This Row],[2025/26 Reduction]]+Dataset[[#This Row],[2025/26 From - Total]]","v":0},{"$f":"Dataset[[#This Row],[2026/27 Reduction]]+Dataset[[#This Row],[2026/27 From - Total]]","v":0},{"$f":"Dataset[[#This Row],[2027/28 Reduction]]+Dataset[[#This Row],[2027/28 From - Total]]","v":0},{"$f":"Dataset[[#This Row],[2024/25 Reduction]]","v":0},{"$f":"SUM(Dataset[[#This Row],[2025/26 Reduction]],Dataset[[#This Row],[2025/26 From - Total]],Dataset[[#This Row],[2025/26 To - Total]])","v":0},{"$f":"SUM(Dataset[[#This Row],[2026/27 Reduction]],Dataset[[#This Row],[2026/27 From - Total]],Dataset[[#This Row],[2026/27 To - Total]])","v":0},{"$f":"SUM(Dataset[[#This Row],[2027/28 Reduction]],Dataset[[#This Row],[2027/28 From - Total]],Dataset[[#This Row],[2027/28 To - Total]])","v":0},{"$f":"Dataset[[#This Row],[2024/25 Baseline]]+Dataset[[#This Row],[2024/25 Total change]]","v":0},{"$f":"Dataset[[#This Row],[2025/26 Baseline]]+Dataset[[#This Row],[2025/26 Total change]]","v":0},{"$f":"Dataset[[#This Row],[2026/27 Baseline]]+Dataset[[#This Row],[2026/27 Total change]]","v":0},{"$f":"Dataset[[#This Row],[2027/28 Baseline]]+Dataset[[#This Row],[2027/28 Total change]]","v":0}]
["NAT|Non-transfer item","40|Other fixed structures","2025_26","MTEC2025",40,6,4,52871,1599,"40","06","04","052871","001599","40|06|04|001599","02","03","11","55","59","02|03|11|55|59","National","Transport","Maritime Transport","Maritime Oversight","Non-transfer item","Capital","Payments for capital assets","Buildings and other fixed structures","Other fixed structures","Other fixed structures","Economic development","Economic regulation and infrastructure","NAT",0,0,0,0,0,0,null,0,0,0,0,null,null,null,null,null,null,null,null,null,null,null,null,null,null,null,null,null,null,null,null,null,null,null,null,null,null,null,null,null,null,null,null,null,null,{"$f":"Dataset[[#This Row],[2025/26 From - Spending review Topic 1]]+Dataset[[#This Row],[2025/26 From - Spending review Topic 2]]+Dataset[[#This Row],[2025/26 From - Spending review Topic 3]]+Dataset[[#This Row],[2025/26 From - Spending review Topic 4]]+Dataset[[#This Row],[2025/26 From - Other reallocations]]","v":0},{"$f":"Dataset[[#This Row],[2026/27 From - Spending review Topic 1]]+Dataset[[#This Row],[2026/27 From - Spending review Topic 2]]+Dataset[[#This Row],[2026/27 From - Spending review Topic 3]]+Dataset[[#This Row],[2026/27 From - Spending review Topic 4]]+Dataset[[#This Row],[2026/27 From - Other reallocations]]","v":0},{"$f":"Dataset[[#This Row],[2027/28 From - Spending review Topic 1]]+Dataset[[#This Row],[2027/28 From - Spending review Topic 2]]+Dataset[[#This Row],[2027/28 From - Spending review Topic 3]]+Dataset[[#This Row],[2027/28 From - Spending review Topic 4]]+Dataset[[#This Row],[2027/28 From - Other reallocations]]","v":0},{"$f":"Dataset[[#This Row],[2025/26 To - Spending review Topic 1]]+Dataset[[#This Row],[2025/26 To - Spending review Topic 2]]+Dataset[[#This Row],[2025/26 To - Spending review Topic 3]]+Dataset[[#This Row],[2025/26 To - Spending review Topic 4]]+Dataset[[#This Row],[2025/26 To - Other reallocations]]","v":0},{"$f":"Dataset[[#This Row],[2026/27 To - Spending review Topic 1]]+Dataset[[#This Row],[2026/27 To - Spending review Topic 2]]+Dataset[[#This Row],[2026/27 To - Spending review Topic 3]]+Dataset[[#This Row],[2026/27 To - Spending review Topic 4]]+Dataset[[#This Row],[2026/27 To - Other reallocations]]","v":0},{"$f":"Dataset[[#This Row],[2027/28 To - Spending review Topic 1]]+Dataset[[#This Row],[2027/28 To - Spending review Topic 2]]+Dataset[[#This Row],[2027/28 To - Spending review Topic 3]]+Dataset[[#This Row],[2027/28 To - Spending review Topic 4]]+Dataset[[#This Row],[2027/28 To - Other reallocations]]","v":0},{"$f":"Dataset[[#This Row],[2025/26 Reduction]]+Dataset[[#This Row],[2025/26 From - Total]]","v":0},{"$f":"Dataset[[#This Row],[2026/27 Reduction]]+Dataset[[#This Row],[2026/27 From - Total]]","v":0},{"$f":"Dataset[[#This Row],[2027/28 Reduction]]+Dataset[[#This Row],[2027/28 From - Total]]","v":0},{"$f":"Dataset[[#This Row],[2024/25 Reduction]]","v":0},{"$f":"SUM(Dataset[[#This Row],[2025/26 Reduction]],Dataset[[#This Row],[2025/26 From - Total]],Dataset[[#This Row],[2025/26 To - Total]])","v":0},{"$f":"SUM(Dataset[[#This Row],[2026/27 Reduction]],Dataset[[#This Row],[2026/27 From - Total]],Dataset[[#This Row],[2026/27 To - Total]])","v":0},{"$f":"SUM(Dataset[[#This Row],[2027/28 Reduction]],Dataset[[#This Row],[2027/28 From - Total]],Dataset[[#This Row],[2027/28 To - Total]])","v":0},{"$f":"Dataset[[#This Row],[2024/25 Baseline]]+Dataset[[#This Row],[2024/25 Total change]]","v":0},{"$f":"Dataset[[#This Row],[2025/26 Baseline]]+Dataset[[#This Row],[2025/26 Total change]]","v":0},{"$f":"Dataset[[#This Row],[2026/27 Baseline]]+Dataset[[#This Row],[2026/27 Total change]]","v":0},{"$f":"Dataset[[#This Row],[2027/28 Baseline]]+Dataset[[#This Row],[2027/28 Total change]]","v":0}]
["NAT|Non-transfer item","40|Salaries and wages","2025_26","MTEC2025",40,6,5,52879,1607,"40","06","05","052879","001607","40|06|05|001607","01","01","01","01","01","01|01|01|01|01","National","Transport","Maritime Transport","Maritime Administration Support","Non-transfer item","Current","Current payments","Compensation of employees","Salaries and wages","Salaries and wages","Economic development","Economic regulation and infrastructure","NAT",1306,2403,3442,3580,3736,3736,3453,3736,3872,4050,4233,null,null,null,null,null,null,null,null,null,null,null,null,null,null,null,null,null,null,null,null,null,null,null,null,null,null,null,null,null,null,null,null,null,null,{"$f":"Dataset[[#This Row],[2025/26 From - Spending review Topic 1]]+Dataset[[#This Row],[2025/26 From - Spending review Topic 2]]+Dataset[[#This Row],[2025/26 From - Spending review Topic 3]]+Dataset[[#This Row],[2025/26 From - Spending review Topic 4]]+Dataset[[#This Row],[2025/26 From - Other reallocations]]","v":0},{"$f":"Dataset[[#This Row],[2026/27 From - Spending review Topic 1]]+Dataset[[#This Row],[2026/27 From - Spending review Topic 2]]+Dataset[[#This Row],[2026/27 From - Spending review Topic 3]]+Dataset[[#This Row],[2026/27 From - Spending review Topic 4]]+Dataset[[#This Row],[2026/27 From - Other reallocations]]","v":0},{"$f":"Dataset[[#This Row],[2027/28 From - Spending review Topic 1]]+Dataset[[#This Row],[2027/28 From - Spending review Topic 2]]+Dataset[[#This Row],[2027/28 From - Spending review Topic 3]]+Dataset[[#This Row],[2027/28 From - Spending review Topic 4]]+Dataset[[#This Row],[2027/28 From - Other reallocations]]","v":0},{"$f":"Dataset[[#This Row],[2025/26 To - Spending review Topic 1]]+Dataset[[#This Row],[2025/26 To - Spending review Topic 2]]+Dataset[[#This Row],[2025/26 To - Spending review Topic 3]]+Dataset[[#This Row],[2025/26 To - Spending review Topic 4]]+Dataset[[#This Row],[2025/26 To - Other reallocations]]","v":0},{"$f":"Dataset[[#This Row],[2026/27 To - Spending review Topic 1]]+Dataset[[#This Row],[2026/27 To - Spending review Topic 2]]+Dataset[[#This Row],[2026/27 To - Spending review Topic 3]]+Dataset[[#This Row],[2026/27 To - Spending review Topic 4]]+Dataset[[#This Row],[2026/27 To - Other reallocations]]","v":0},{"$f":"Dataset[[#This Row],[2027/28 To - Spending review Topic 1]]+Dataset[[#This Row],[2027/28 To - Spending review Topic 2]]+Dataset[[#This Row],[2027/28 To - Spending review Topic 3]]+Dataset[[#This Row],[2027/28 To - Spending review Topic 4]]+Dataset[[#This Row],[2027/28 To - Other reallocations]]","v":0},{"$f":"Dataset[[#This Row],[2025/26 Reduction]]+Dataset[[#This Row],[2025/26 From - Total]]","v":0},{"$f":"Dataset[[#This Row],[2026/27 Reduction]]+Dataset[[#This Row],[2026/27 From - Total]]","v":0},{"$f":"Dataset[[#This Row],[2027/28 Reduction]]+Dataset[[#This Row],[2027/28 From - Total]]","v":0},{"$f":"Dataset[[#This Row],[2024/25 Reduction]]","v":0},{"$f":"SUM(Dataset[[#This Row],[2025/26 Reduction]],Dataset[[#This Row],[2025/26 From - Total]],Dataset[[#This Row],[2025/26 To - Total]])","v":0},{"$f":"SUM(Dataset[[#This Row],[2026/27 Reduction]],Dataset[[#This Row],[2026/27 From - Total]],Dataset[[#This Row],[2026/27 To - Total]])","v":0},{"$f":"SUM(Dataset[[#This Row],[2027/28 Reduction]],Dataset[[#This Row],[2027/28 From - Total]],Dataset[[#This Row],[2027/28 To - Total]])","v":0},{"$f":"Dataset[[#This Row],[2024/25 Baseline]]+Dataset[[#This Row],[2024/25 Total change]]","v":3736},{"$f":"Dataset[[#This Row],[2025/26 Baseline]]+Dataset[[#This Row],[2025/26 Total change]]","v":3872},{"$f":"Dataset[[#This Row],[2026/27 Baseline]]+Dataset[[#This Row],[2026/27 Total change]]","v":4050},{"$f":"Dataset[[#This Row],[2027/28 Baseline]]+Dataset[[#This Row],[2027/28 Total change]]","v":4233}]
["NAT|Non-transfer item","40|Audit costs: External","2025_26","MTEC2025",40,6,5,52884,1612,"40","06","05","052884","001612","40|06|05|001612","01","01","02","06","06","01|01|02|06|06","National","Transport","Maritime Transport","Maritime Administration Support","Non-transfer item","Current","Current payments","Goods and services","Audit costs: External","Audit costs: External","Economic development","Economic regulation and infrastructure","NAT",0,0,0,0,0,0,null,0,0,0,0,null,null,null,null,null,null,null,null,null,null,null,null,null,null,null,null,null,null,null,null,null,null,null,null,null,null,null,null,null,null,null,null,null,null,{"$f":"Dataset[[#This Row],[2025/26 From - Spending review Topic 1]]+Dataset[[#This Row],[2025/26 From - Spending review Topic 2]]+Dataset[[#This Row],[2025/26 From - Spending review Topic 3]]+Dataset[[#This Row],[2025/26 From - Spending review Topic 4]]+Dataset[[#This Row],[2025/26 From - Other reallocations]]","v":0},{"$f":"Dataset[[#This Row],[2026/27 From - Spending review Topic 1]]+Dataset[[#This Row],[2026/27 From - Spending review Topic 2]]+Dataset[[#This Row],[2026/27 From - Spending review Topic 3]]+Dataset[[#This Row],[2026/27 From - Spending review Topic 4]]+Dataset[[#This Row],[2026/27 From - Other reallocations]]","v":0},{"$f":"Dataset[[#This Row],[2027/28 From - Spending review Topic 1]]+Dataset[[#This Row],[2027/28 From - Spending review Topic 2]]+Dataset[[#This Row],[2027/28 From - Spending review Topic 3]]+Dataset[[#This Row],[2027/28 From - Spending review Topic 4]]+Dataset[[#This Row],[2027/28 From - Other reallocations]]","v":0},{"$f":"Dataset[[#This Row],[2025/26 To - Spending review Topic 1]]+Dataset[[#This Row],[2025/26 To - Spending review Topic 2]]+Dataset[[#This Row],[2025/26 To - Spending review Topic 3]]+Dataset[[#This Row],[2025/26 To - Spending review Topic 4]]+Dataset[[#This Row],[2025/26 To - Other reallocations]]","v":0},{"$f":"Dataset[[#This Row],[2026/27 To - Spending review Topic 1]]+Dataset[[#This Row],[2026/27 To - Spending review Topic 2]]+Dataset[[#This Row],[2026/27 To - Spending review Topic 3]]+Dataset[[#This Row],[2026/27 To - Spending review Topic 4]]+Dataset[[#This Row],[2026/27 To - Other reallocations]]","v":0},{"$f":"Dataset[[#This Row],[2027/28 To - Spending review Topic 1]]+Dataset[[#This Row],[2027/28 To - Spending review Topic 2]]+Dataset[[#This Row],[2027/28 To - Spending review Topic 3]]+Dataset[[#This Row],[2027/28 To - Spending review Topic 4]]+Dataset[[#This Row],[2027/28 To - Other reallocations]]","v":0},{"$f":"Dataset[[#This Row],[2025/26 Reduction]]+Dataset[[#This Row],[2025/26 From - Total]]","v":0},{"$f":"Dataset[[#This Row],[2026/27 Reduction]]+Dataset[[#This Row],[2026/27 From - Total]]","v":0},{"$f":"Dataset[[#This Row],[2027/28 Reduction]]+Dataset[[#This Row],[2027/28 From - Total]]","v":0},{"$f":"Dataset[[#This Row],[2024/25 Reduction]]","v":0},{"$f":"SUM(Dataset[[#This Row],[2025/26 Reduction]],Dataset[[#This Row],[2025/26 From - Total]],Dataset[[#This Row],[2025/26 To - Total]])","v":0},{"$f":"SUM(Dataset[[#This Row],[2026/27 Reduction]],Dataset[[#This Row],[2026/27 From - Total]],Dataset[[#This Row],[2026/27 To - Total]])","v":0},{"$f":"SUM(Dataset[[#This Row],[2027/28 Reduction]],Dataset[[#This Row],[2027/28 From - Total]],Dataset[[#This Row],[2027/28 To - Total]])","v":0},{"$f":"Dataset[[#This Row],[2024/25 Baseline]]+Dataset[[#This Row],[2024/25 Total change]]","v":0},{"$f":"Dataset[[#This Row],[2025/26 Baseline]]+Dataset[[#This Row],[2025/26 Total change]]","v":0},{"$f":"Dataset[[#This Row],[2026/27 Baseline]]+Dataset[[#This Row],[2026/27 Total change]]","v":0},{"$f":"Dataset[[#This Row],[2027/28 Baseline]]+Dataset[[#This Row],[2027/28 Total change]]","v":0}]
["NAT|Non-transfer item","40|Legal services (G&S)","2025_26","MTEC2025",40,6,5,52892,1620,"40","06","05","052892","001620","40|06|05|001620","01","01","02","14","14","01|01|02|14|14","National","Transport","Maritime Transport","Maritime Administration Support","Non-transfer item","Current","Current payments","Goods and services","Legal services (G&S)","Legal services (G&S)","Economic development","Economic regulation and infrastructure","NAT",0,0,0,0,0,0,null,0,0,0,0,null,null,null,null,null,null,null,null,null,null,null,null,null,null,null,null,null,null,null,null,null,null,null,null,null,null,null,null,null,null,null,null,null,null,{"$f":"Dataset[[#This Row],[2025/26 From - Spending review Topic 1]]+Dataset[[#This Row],[2025/26 From - Spending review Topic 2]]+Dataset[[#This Row],[2025/26 From - Spending review Topic 3]]+Dataset[[#This Row],[2025/26 From - Spending review Topic 4]]+Dataset[[#This Row],[2025/26 From - Other reallocations]]","v":0},{"$f":"Dataset[[#This Row],[2026/27 From - Spending review Topic 1]]+Dataset[[#This Row],[2026/27 From - Spending review Topic 2]]+Dataset[[#This Row],[2026/27 From - Spending review Topic 3]]+Dataset[[#This Row],[2026/27 From - Spending review Topic 4]]+Dataset[[#This Row],[2026/27 From - Other reallocations]]","v":0},{"$f":"Dataset[[#This Row],[2027/28 From - Spending review Topic 1]]+Dataset[[#This Row],[2027/28 From - Spending review Topic 2]]+Dataset[[#This Row],[2027/28 From - Spending review Topic 3]]+Dataset[[#This Row],[2027/28 From - Spending review Topic 4]]+Dataset[[#This Row],[2027/28 From - Other reallocations]]","v":0},{"$f":"Dataset[[#This Row],[2025/26 To - Spending review Topic 1]]+Dataset[[#This Row],[2025/26 To - Spending review Topic 2]]+Dataset[[#This Row],[2025/26 To - Spending review Topic 3]]+Dataset[[#This Row],[2025/26 To - Spending review Topic 4]]+Dataset[[#This Row],[2025/26 To - Other reallocations]]","v":0},{"$f":"Dataset[[#This Row],[2026/27 To - Spending review Topic 1]]+Dataset[[#This Row],[2026/27 To - Spending review Topic 2]]+Dataset[[#This Row],[2026/27 To - Spending review Topic 3]]+Dataset[[#This Row],[2026/27 To - Spending review Topic 4]]+Dataset[[#This Row],[2026/27 To - Other reallocations]]","v":0},{"$f":"Dataset[[#This Row],[2027/28 To - Spending review Topic 1]]+Dataset[[#This Row],[2027/28 To - Spending review Topic 2]]+Dataset[[#This Row],[2027/28 To - Spending review Topic 3]]+Dataset[[#This Row],[2027/28 To - Spending review Topic 4]]+Dataset[[#This Row],[2027/28 To - Other reallocations]]","v":0},{"$f":"Dataset[[#This Row],[2025/26 Reduction]]+Dataset[[#This Row],[2025/26 From - Total]]","v":0},{"$f":"Dataset[[#This Row],[2026/27 Reduction]]+Dataset[[#This Row],[2026/27 From - Total]]","v":0},{"$f":"Dataset[[#This Row],[2027/28 Reduction]]+Dataset[[#This Row],[2027/28 From - Total]]","v":0},{"$f":"Dataset[[#This Row],[2024/25 Reduction]]","v":0},{"$f":"SUM(Dataset[[#This Row],[2025/26 Reduction]],Dataset[[#This Row],[2025/26 From - Total]],Dataset[[#This Row],[2025/26 To - Total]])","v":0},{"$f":"SUM(Dataset[[#This Row],[2026/27 Reduction]],Dataset[[#This Row],[2026/27 From - Total]],Dataset[[#This Row],[2026/27 To - Total]])","v":0},{"$f":"SUM(Dataset[[#This Row],[2027/28 Reduction]],Dataset[[#This Row],[2027/28 From - Total]],Dataset[[#This Row],[2027/28 To - Total]])","v":0},{"$f":"Dataset[[#This Row],[2024/25 Baseline]]+Dataset[[#This Row],[2024/25 Total change]]","v":0},{"$f":"Dataset[[#This Row],[2025/26 Baseline]]+Dataset[[#This Row],[2025/26 Total change]]","v":0},{"$f":"Dataset[[#This Row],[2026/27 Baseline]]+Dataset[[#This Row],[2026/27 Total change]]","v":0},{"$f":"Dataset[[#This Row],[2027/28 Baseline]]+Dataset[[#This Row],[2027/28 Total change]]","v":0}]
["NAT|Non-transfer item","40|Inventory: Farming supplies","2025_26","MTEC2025",40,6,5,52900,1628,"40","06","05","052900","001628","40|06|05|001628","01","01","02","22","22","01|01|02|22|22","National","Transport","Maritime Transport","Maritime Administration Support","Non-transfer item","Current","Current payments","Goods and services","Inventory: Farming supplies","Inventory: Farming supplies","Economic development","Economic regulation and infrastructure","NAT",0,0,0,0,0,0,null,0,0,0,0,null,null,null,null,null,null,null,null,null,null,null,null,null,null,null,null,null,null,null,null,null,null,null,null,null,null,null,null,null,null,null,null,null,null,{"$f":"Dataset[[#This Row],[2025/26 From - Spending review Topic 1]]+Dataset[[#This Row],[2025/26 From - Spending review Topic 2]]+Dataset[[#This Row],[2025/26 From - Spending review Topic 3]]+Dataset[[#This Row],[2025/26 From - Spending review Topic 4]]+Dataset[[#This Row],[2025/26 From - Other reallocations]]","v":0},{"$f":"Dataset[[#This Row],[2026/27 From - Spending review Topic 1]]+Dataset[[#This Row],[2026/27 From - Spending review Topic 2]]+Dataset[[#This Row],[2026/27 From - Spending review Topic 3]]+Dataset[[#This Row],[2026/27 From - Spending review Topic 4]]+Dataset[[#This Row],[2026/27 From - Other reallocations]]","v":0},{"$f":"Dataset[[#This Row],[2027/28 From - Spending review Topic 1]]+Dataset[[#This Row],[2027/28 From - Spending review Topic 2]]+Dataset[[#This Row],[2027/28 From - Spending review Topic 3]]+Dataset[[#This Row],[2027/28 From - Spending review Topic 4]]+Dataset[[#This Row],[2027/28 From - Other reallocations]]","v":0},{"$f":"Dataset[[#This Row],[2025/26 To - Spending review Topic 1]]+Dataset[[#This Row],[2025/26 To - Spending review Topic 2]]+Dataset[[#This Row],[2025/26 To - Spending review Topic 3]]+Dataset[[#This Row],[2025/26 To - Spending review Topic 4]]+Dataset[[#This Row],[2025/26 To - Other reallocations]]","v":0},{"$f":"Dataset[[#This Row],[2026/27 To - Spending review Topic 1]]+Dataset[[#This Row],[2026/27 To - Spending review Topic 2]]+Dataset[[#This Row],[2026/27 To - Spending review Topic 3]]+Dataset[[#This Row],[2026/27 To - Spending review Topic 4]]+Dataset[[#This Row],[2026/27 To - Other reallocations]]","v":0},{"$f":"Dataset[[#This Row],[2027/28 To - Spending review Topic 1]]+Dataset[[#This Row],[2027/28 To - Spending review Topic 2]]+Dataset[[#This Row],[2027/28 To - Spending review Topic 3]]+Dataset[[#This Row],[2027/28 To - Spending review Topic 4]]+Dataset[[#This Row],[2027/28 To - Other reallocations]]","v":0},{"$f":"Dataset[[#This Row],[2025/26 Reduction]]+Dataset[[#This Row],[2025/26 From - Total]]","v":0},{"$f":"Dataset[[#This Row],[2026/27 Reduction]]+Dataset[[#This Row],[2026/27 From - Total]]","v":0},{"$f":"Dataset[[#This Row],[2027/28 Reduction]]+Dataset[[#This Row],[2027/28 From - Total]]","v":0},{"$f":"Dataset[[#This Row],[2024/25 Reduction]]","v":0},{"$f":"SUM(Dataset[[#This Row],[2025/26 Reduction]],Dataset[[#This Row],[2025/26 From - Total]],Dataset[[#This Row],[2025/26 To - Total]])","v":0},{"$f":"SUM(Dataset[[#This Row],[2026/27 Reduction]],Dataset[[#This Row],[2026/27 From - Total]],Dataset[[#This Row],[2026/27 To - Total]])","v":0},{"$f":"SUM(Dataset[[#This Row],[2027/28 Reduction]],Dataset[[#This Row],[2027/28 From - Total]],Dataset[[#This Row],[2027/28 To - Total]])","v":0},{"$f":"Dataset[[#This Row],[2024/25 Baseline]]+Dataset[[#This Row],[2024/25 Total change]]","v":0},{"$f":"Dataset[[#This Row],[2025/26 Baseline]]+Dataset[[#This Row],[2025/26 Total change]]","v":0},{"$f":"Dataset[[#This Row],[2026/27 Baseline]]+Dataset[[#This Row],[2026/27 Total change]]","v":0},{"$f":"Dataset[[#This Row],[2027/28 Baseline]]+Dataset[[#This Row],[2027/28 Total change]]","v":0}]
["NAT|Non-transfer item","40|Inventory: Medical supplies","2025_26","MTEC2025",40,6,5,52905,1633,"40","06","05","052905","001633","40|06|05|001633","01","01","02","27","27","01|01|02|27|27","National","Transport","Maritime Transport","Maritime Administration Support","Non-transfer item","Current","Current payments","Goods and services","Inventory: Medical supplies","Inventory: Medical supplies","Economic development","Economic regulation and infrastructure","NAT",0,0,0,0,0,0,null,0,0,0,0,null,null,null,null,null,null,null,null,null,null,null,null,null,null,null,null,null,null,null,null,null,null,null,null,null,null,null,null,null,null,null,null,null,null,{"$f":"Dataset[[#This Row],[2025/26 From - Spending review Topic 1]]+Dataset[[#This Row],[2025/26 From - Spending review Topic 2]]+Dataset[[#This Row],[2025/26 From - Spending review Topic 3]]+Dataset[[#This Row],[2025/26 From - Spending review Topic 4]]+Dataset[[#This Row],[2025/26 From - Other reallocations]]","v":0},{"$f":"Dataset[[#This Row],[2026/27 From - Spending review Topic 1]]+Dataset[[#This Row],[2026/27 From - Spending review Topic 2]]+Dataset[[#This Row],[2026/27 From - Spending review Topic 3]]+Dataset[[#This Row],[2026/27 From - Spending review Topic 4]]+Dataset[[#This Row],[2026/27 From - Other reallocations]]","v":0},{"$f":"Dataset[[#This Row],[2027/28 From - Spending review Topic 1]]+Dataset[[#This Row],[2027/28 From - Spending review Topic 2]]+Dataset[[#This Row],[2027/28 From - Spending review Topic 3]]+Dataset[[#This Row],[2027/28 From - Spending review Topic 4]]+Dataset[[#This Row],[2027/28 From - Other reallocations]]","v":0},{"$f":"Dataset[[#This Row],[2025/26 To - Spending review Topic 1]]+Dataset[[#This Row],[2025/26 To - Spending review Topic 2]]+Dataset[[#This Row],[2025/26 To - Spending review Topic 3]]+Dataset[[#This Row],[2025/26 To - Spending review Topic 4]]+Dataset[[#This Row],[2025/26 To - Other reallocations]]","v":0},{"$f":"Dataset[[#This Row],[2026/27 To - Spending review Topic 1]]+Dataset[[#This Row],[2026/27 To - Spending review Topic 2]]+Dataset[[#This Row],[2026/27 To - Spending review Topic 3]]+Dataset[[#This Row],[2026/27 To - Spending review Topic 4]]+Dataset[[#This Row],[2026/27 To - Other reallocations]]","v":0},{"$f":"Dataset[[#This Row],[2027/28 To - Spending review Topic 1]]+Dataset[[#This Row],[2027/28 To - Spending review Topic 2]]+Dataset[[#This Row],[2027/28 To - Spending review Topic 3]]+Dataset[[#This Row],[2027/28 To - Spending review Topic 4]]+Dataset[[#This Row],[2027/28 To - Other reallocations]]","v":0},{"$f":"Dataset[[#This Row],[2025/26 Reduction]]+Dataset[[#This Row],[2025/26 From - Total]]","v":0},{"$f":"Dataset[[#This Row],[2026/27 Reduction]]+Dataset[[#This Row],[2026/27 From - Total]]","v":0},{"$f":"Dataset[[#This Row],[2027/28 Reduction]]+Dataset[[#This Row],[2027/28 From - Total]]","v":0},{"$f":"Dataset[[#This Row],[2024/25 Reduction]]","v":0},{"$f":"SUM(Dataset[[#This Row],[2025/26 Reduction]],Dataset[[#This Row],[2025/26 From - Total]],Dataset[[#This Row],[2025/26 To - Total]])","v":0},{"$f":"SUM(Dataset[[#This Row],[2026/27 Reduction]],Dataset[[#This Row],[2026/27 From - Total]],Dataset[[#This Row],[2026/27 To - Total]])","v":0},{"$f":"SUM(Dataset[[#This Row],[2027/28 Reduction]],Dataset[[#This Row],[2027/28 From - Total]],Dataset[[#This Row],[2027/28 To - Total]])","v":0},{"$f":"Dataset[[#This Row],[2024/25 Baseline]]+Dataset[[#This Row],[2024/25 Total change]]","v":0},{"$f":"Dataset[[#This Row],[2025/26 Baseline]]+Dataset[[#This Row],[2025/26 Total change]]","v":0},{"$f":"Dataset[[#This Row],[2026/27 Baseline]]+Dataset[[#This Row],[2026/27 Total change]]","v":0},{"$f":"Dataset[[#This Row],[2027/28 Baseline]]+Dataset[[#This Row],[2027/28 Total change]]","v":0}]
["NAT|Non-transfer item","40|Property payments","2025_26","MTEC2025",40,6,5,52913,1641,"40","06","05","052913","001641","40|06|05|001641","01","01","02","35","35","01|01|02|35|35","National","Transport","Maritime Transport","Maritime Administration Support","Non-transfer item","Current","Current payments","Goods and services","Property payments","Property payments","Economic development","Economic regulation and infrastructure","NAT",0,0,271,0,0,0,null,0,0,0,0,null,null,null,null,null,null,null,null,null,null,null,null,null,null,null,null,null,null,null,null,null,null,null,null,null,null,null,null,null,null,null,null,null,null,{"$f":"Dataset[[#This Row],[2025/26 From - Spending review Topic 1]]+Dataset[[#This Row],[2025/26 From - Spending review Topic 2]]+Dataset[[#This Row],[2025/26 From - Spending review Topic 3]]+Dataset[[#This Row],[2025/26 From - Spending review Topic 4]]+Dataset[[#This Row],[2025/26 From - Other reallocations]]","v":0},{"$f":"Dataset[[#This Row],[2026/27 From - Spending review Topic 1]]+Dataset[[#This Row],[2026/27 From - Spending review Topic 2]]+Dataset[[#This Row],[2026/27 From - Spending review Topic 3]]+Dataset[[#This Row],[2026/27 From - Spending review Topic 4]]+Dataset[[#This Row],[2026/27 From - Other reallocations]]","v":0},{"$f":"Dataset[[#This Row],[2027/28 From - Spending review Topic 1]]+Dataset[[#This Row],[2027/28 From - Spending review Topic 2]]+Dataset[[#This Row],[2027/28 From - Spending review Topic 3]]+Dataset[[#This Row],[2027/28 From - Spending review Topic 4]]+Dataset[[#This Row],[2027/28 From - Other reallocations]]","v":0},{"$f":"Dataset[[#This Row],[2025/26 To - Spending review Topic 1]]+Dataset[[#This Row],[2025/26 To - Spending review Topic 2]]+Dataset[[#This Row],[2025/26 To - Spending review Topic 3]]+Dataset[[#This Row],[2025/26 To - Spending review Topic 4]]+Dataset[[#This Row],[2025/26 To - Other reallocations]]","v":0},{"$f":"Dataset[[#This Row],[2026/27 To - Spending review Topic 1]]+Dataset[[#This Row],[2026/27 To - Spending review Topic 2]]+Dataset[[#This Row],[2026/27 To - Spending review Topic 3]]+Dataset[[#This Row],[2026/27 To - Spending review Topic 4]]+Dataset[[#This Row],[2026/27 To - Other reallocations]]","v":0},{"$f":"Dataset[[#This Row],[2027/28 To - Spending review Topic 1]]+Dataset[[#This Row],[2027/28 To - Spending review Topic 2]]+Dataset[[#This Row],[2027/28 To - Spending review Topic 3]]+Dataset[[#This Row],[2027/28 To - Spending review Topic 4]]+Dataset[[#This Row],[2027/28 To - Other reallocations]]","v":0},{"$f":"Dataset[[#This Row],[2025/26 Reduction]]+Dataset[[#This Row],[2025/26 From - Total]]","v":0},{"$f":"Dataset[[#This Row],[2026/27 Reduction]]+Dataset[[#This Row],[2026/27 From - Total]]","v":0},{"$f":"Dataset[[#This Row],[2027/28 Reduction]]+Dataset[[#This Row],[2027/28 From - Total]]","v":0},{"$f":"Dataset[[#This Row],[2024/25 Reduction]]","v":0},{"$f":"SUM(Dataset[[#This Row],[2025/26 Reduction]],Dataset[[#This Row],[2025/26 From - Total]],Dataset[[#This Row],[2025/26 To - Total]])","v":0},{"$f":"SUM(Dataset[[#This Row],[2026/27 Reduction]],Dataset[[#This Row],[2026/27 From - Total]],Dataset[[#This Row],[2026/27 To - Total]])","v":0},{"$f":"SUM(Dataset[[#This Row],[2027/28 Reduction]],Dataset[[#This Row],[2027/28 From - Total]],Dataset[[#This Row],[2027/28 To - Total]])","v":0},{"$f":"Dataset[[#This Row],[2024/25 Baseline]]+Dataset[[#This Row],[2024/25 Total change]]","v":0},{"$f":"Dataset[[#This Row],[2025/26 Baseline]]+Dataset[[#This Row],[2025/26 Total change]]","v":0},{"$f":"Dataset[[#This Row],[2026/27 Baseline]]+Dataset[[#This Row],[2026/27 Total change]]","v":0},{"$f":"Dataset[[#This Row],[2027/28 Baseline]]+Dataset[[#This Row],[2027/28 Total change]]","v":0}]
["NAT|Non-transfer item","40|Buildings","2025_26","MTEC2025",40,6,5,52921,1649,"40","06","05","052921","001649","40|06|05|001649","02","03","11","54","58","02|03|11|54|58","National","Transport","Maritime Transport","Maritime Administration Support","Non-transfer item","Capital","Payments for capital assets","Buildings and other fixed structures","Buildings","Buildings","Economic development","Economic regulation and infrastructure","NAT",0,0,0,0,0,0,null,0,0,0,0,null,null,null,null,null,null,null,null,null,null,null,null,null,null,null,null,null,null,null,null,null,null,null,null,null,null,null,null,null,null,null,null,null,null,{"$f":"Dataset[[#This Row],[2025/26 From - Spending review Topic 1]]+Dataset[[#This Row],[2025/26 From - Spending review Topic 2]]+Dataset[[#This Row],[2025/26 From - Spending review Topic 3]]+Dataset[[#This Row],[2025/26 From - Spending review Topic 4]]+Dataset[[#This Row],[2025/26 From - Other reallocations]]","v":0},{"$f":"Dataset[[#This Row],[2026/27 From - Spending review Topic 1]]+Dataset[[#This Row],[2026/27 From - Spending review Topic 2]]+Dataset[[#This Row],[2026/27 From - Spending review Topic 3]]+Dataset[[#This Row],[2026/27 From - Spending review Topic 4]]+Dataset[[#This Row],[2026/27 From - Other reallocations]]","v":0},{"$f":"Dataset[[#This Row],[2027/28 From - Spending review Topic 1]]+Dataset[[#This Row],[2027/28 From - Spending review Topic 2]]+Dataset[[#This Row],[2027/28 From - Spending review Topic 3]]+Dataset[[#This Row],[2027/28 From - Spending review Topic 4]]+Dataset[[#This Row],[2027/28 From - Other reallocations]]","v":0},{"$f":"Dataset[[#This Row],[2025/26 To - Spending review Topic 1]]+Dataset[[#This Row],[2025/26 To - Spending review Topic 2]]+Dataset[[#This Row],[2025/26 To - Spending review Topic 3]]+Dataset[[#This Row],[2025/26 To - Spending review Topic 4]]+Dataset[[#This Row],[2025/26 To - Other reallocations]]","v":0},{"$f":"Dataset[[#This Row],[2026/27 To - Spending review Topic 1]]+Dataset[[#This Row],[2026/27 To - Spending review Topic 2]]+Dataset[[#This Row],[2026/27 To - Spending review Topic 3]]+Dataset[[#This Row],[2026/27 To - Spending review Topic 4]]+Dataset[[#This Row],[2026/27 To - Other reallocations]]","v":0},{"$f":"Dataset[[#This Row],[2027/28 To - Spending review Topic 1]]+Dataset[[#This Row],[2027/28 To - Spending review Topic 2]]+Dataset[[#This Row],[2027/28 To - Spending review Topic 3]]+Dataset[[#This Row],[2027/28 To - Spending review Topic 4]]+Dataset[[#This Row],[2027/28 To - Other reallocations]]","v":0},{"$f":"Dataset[[#This Row],[2025/26 Reduction]]+Dataset[[#This Row],[2025/26 From - Total]]","v":0},{"$f":"Dataset[[#This Row],[2026/27 Reduction]]+Dataset[[#This Row],[2026/27 From - Total]]","v":0},{"$f":"Dataset[[#This Row],[2027/28 Reduction]]+Dataset[[#This Row],[2027/28 From - Total]]","v":0},{"$f":"Dataset[[#This Row],[2024/25 Reduction]]","v":0},{"$f":"SUM(Dataset[[#This Row],[2025/26 Reduction]],Dataset[[#This Row],[2025/26 From - Total]],Dataset[[#This Row],[2025/26 To - Total]])","v":0},{"$f":"SUM(Dataset[[#This Row],[2026/27 Reduction]],Dataset[[#This Row],[2026/27 From - Total]],Dataset[[#This Row],[2026/27 To - Total]])","v":0},{"$f":"SUM(Dataset[[#This Row],[2027/28 Reduction]],Dataset[[#This Row],[2027/28 From - Total]],Dataset[[#This Row],[2027/28 To - Total]])","v":0},{"$f":"Dataset[[#This Row],[2024/25 Baseline]]+Dataset[[#This Row],[2024/25 Total change]]","v":0},{"$f":"Dataset[[#This Row],[2025/26 Baseline]]+Dataset[[#This Row],[2025/26 Total change]]","v":0},{"$f":"Dataset[[#This Row],[2026/27 Baseline]]+Dataset[[#This Row],[2026/27 Total change]]","v":0},{"$f":"Dataset[[#This Row],[2027/28 Baseline]]+Dataset[[#This Row],[2027/28 Total change]]","v":0}]
["NAT|Non-transfer item","40|Salaries and wages","2025_26","MTEC2025",40,7,1,52930,1658,"40","07","01","052930","001658","40|07|01|001658","01","01","01","01","01","01|01|01|01|01","National","Transport","Public Transport","Public Transport Regulation","Non-transfer item","Current","Current payments","Compensation of employees","Salaries and wages","Salaries and wages","Community development","Community development","NAT",18384,19183,22778,23407,24520,24520,23104,24424,25428,26593,27796,null,null,null,null,null,null,null,null,null,null,null,null,null,null,null,null,null,null,null,null,null,null,null,null,null,null,null,null,null,null,null,null,null,null,{"$f":"Dataset[[#This Row],[2025/26 From - Spending review Topic 1]]+Dataset[[#This Row],[2025/26 From - Spending review Topic 2]]+Dataset[[#This Row],[2025/26 From - Spending review Topic 3]]+Dataset[[#This Row],[2025/26 From - Spending review Topic 4]]+Dataset[[#This Row],[2025/26 From - Other reallocations]]","v":0},{"$f":"Dataset[[#This Row],[2026/27 From - Spending review Topic 1]]+Dataset[[#This Row],[2026/27 From - Spending review Topic 2]]+Dataset[[#This Row],[2026/27 From - Spending review Topic 3]]+Dataset[[#This Row],[2026/27 From - Spending review Topic 4]]+Dataset[[#This Row],[2026/27 From - Other reallocations]]","v":0},{"$f":"Dataset[[#This Row],[2027/28 From - Spending review Topic 1]]+Dataset[[#This Row],[2027/28 From - Spending review Topic 2]]+Dataset[[#This Row],[2027/28 From - Spending review Topic 3]]+Dataset[[#This Row],[2027/28 From - Spending review Topic 4]]+Dataset[[#This Row],[2027/28 From - Other reallocations]]","v":0},{"$f":"Dataset[[#This Row],[2025/26 To - Spending review Topic 1]]+Dataset[[#This Row],[2025/26 To - Spending review Topic 2]]+Dataset[[#This Row],[2025/26 To - Spending review Topic 3]]+Dataset[[#This Row],[2025/26 To - Spending review Topic 4]]+Dataset[[#This Row],[2025/26 To - Other reallocations]]","v":0},{"$f":"Dataset[[#This Row],[2026/27 To - Spending review Topic 1]]+Dataset[[#This Row],[2026/27 To - Spending review Topic 2]]+Dataset[[#This Row],[2026/27 To - Spending review Topic 3]]+Dataset[[#This Row],[2026/27 To - Spending review Topic 4]]+Dataset[[#This Row],[2026/27 To - Other reallocations]]","v":0},{"$f":"Dataset[[#This Row],[2027/28 To - Spending review Topic 1]]+Dataset[[#This Row],[2027/28 To - Spending review Topic 2]]+Dataset[[#This Row],[2027/28 To - Spending review Topic 3]]+Dataset[[#This Row],[2027/28 To - Spending review Topic 4]]+Dataset[[#This Row],[2027/28 To - Other reallocations]]","v":0},{"$f":"Dataset[[#This Row],[2025/26 Reduction]]+Dataset[[#This Row],[2025/26 From - Total]]","v":0},{"$f":"Dataset[[#This Row],[2026/27 Reduction]]+Dataset[[#This Row],[2026/27 From - Total]]","v":0},{"$f":"Dataset[[#This Row],[2027/28 Reduction]]+Dataset[[#This Row],[2027/28 From - Total]]","v":0},{"$f":"Dataset[[#This Row],[2024/25 Reduction]]","v":0},{"$f":"SUM(Dataset[[#This Row],[2025/26 Reduction]],Dataset[[#This Row],[2025/26 From - Total]],Dataset[[#This Row],[2025/26 To - Total]])","v":0},{"$f":"SUM(Dataset[[#This Row],[2026/27 Reduction]],Dataset[[#This Row],[2026/27 From - Total]],Dataset[[#This Row],[2026/27 To - Total]])","v":0},{"$f":"SUM(Dataset[[#This Row],[2027/28 Reduction]],Dataset[[#This Row],[2027/28 From - Total]],Dataset[[#This Row],[2027/28 To - Total]])","v":0},{"$f":"Dataset[[#This Row],[2024/25 Baseline]]+Dataset[[#This Row],[2024/25 Total change]]","v":24424},{"$f":"Dataset[[#This Row],[2025/26 Baseline]]+Dataset[[#This Row],[2025/26 Total change]]","v":25428},{"$f":"Dataset[[#This Row],[2026/27 Baseline]]+Dataset[[#This Row],[2026/27 Total change]]","v":26593},{"$f":"Dataset[[#This Row],[2027/28 Baseline]]+Dataset[[#This Row],[2027/28 Total change]]","v":27796}]
["NAT|Non-transfer item","40|Advertising","2025_26","MTEC2025",40,7,1,52933,1661,"40","07","01","052933","001661","40|07|01|001661","01","01","02","04","04","01|01|02|04|04","National","Transport","Public Transport","Public Transport Regulation","Non-transfer item","Current","Current payments","Goods and services","Advertising","Advertising","Community development","Community development","NAT",0,79,93,195,195,195,54,135,181,188,197,null,null,null,null,null,null,null,null,null,null,null,null,null,null,null,null,null,null,null,null,null,null,null,null,null,null,null,null,null,null,null,null,null,null,{"$f":"Dataset[[#This Row],[2025/26 From - Spending review Topic 1]]+Dataset[[#This Row],[2025/26 From - Spending review Topic 2]]+Dataset[[#This Row],[2025/26 From - Spending review Topic 3]]+Dataset[[#This Row],[2025/26 From - Spending review Topic 4]]+Dataset[[#This Row],[2025/26 From - Other reallocations]]","v":0},{"$f":"Dataset[[#This Row],[2026/27 From - Spending review Topic 1]]+Dataset[[#This Row],[2026/27 From - Spending review Topic 2]]+Dataset[[#This Row],[2026/27 From - Spending review Topic 3]]+Dataset[[#This Row],[2026/27 From - Spending review Topic 4]]+Dataset[[#This Row],[2026/27 From - Other reallocations]]","v":0},{"$f":"Dataset[[#This Row],[2027/28 From - Spending review Topic 1]]+Dataset[[#This Row],[2027/28 From - Spending review Topic 2]]+Dataset[[#This Row],[2027/28 From - Spending review Topic 3]]+Dataset[[#This Row],[2027/28 From - Spending review Topic 4]]+Dataset[[#This Row],[2027/28 From - Other reallocations]]","v":0},{"$f":"Dataset[[#This Row],[2025/26 To - Spending review Topic 1]]+Dataset[[#This Row],[2025/26 To - Spending review Topic 2]]+Dataset[[#This Row],[2025/26 To - Spending review Topic 3]]+Dataset[[#This Row],[2025/26 To - Spending review Topic 4]]+Dataset[[#This Row],[2025/26 To - Other reallocations]]","v":0},{"$f":"Dataset[[#This Row],[2026/27 To - Spending review Topic 1]]+Dataset[[#This Row],[2026/27 To - Spending review Topic 2]]+Dataset[[#This Row],[2026/27 To - Spending review Topic 3]]+Dataset[[#This Row],[2026/27 To - Spending review Topic 4]]+Dataset[[#This Row],[2026/27 To - Other reallocations]]","v":0},{"$f":"Dataset[[#This Row],[2027/28 To - Spending review Topic 1]]+Dataset[[#This Row],[2027/28 To - Spending review Topic 2]]+Dataset[[#This Row],[2027/28 To - Spending review Topic 3]]+Dataset[[#This Row],[2027/28 To - Spending review Topic 4]]+Dataset[[#This Row],[2027/28 To - Other reallocations]]","v":0},{"$f":"Dataset[[#This Row],[2025/26 Reduction]]+Dataset[[#This Row],[2025/26 From - Total]]","v":0},{"$f":"Dataset[[#This Row],[2026/27 Reduction]]+Dataset[[#This Row],[2026/27 From - Total]]","v":0},{"$f":"Dataset[[#This Row],[2027/28 Reduction]]+Dataset[[#This Row],[2027/28 From - Total]]","v":0},{"$f":"Dataset[[#This Row],[2024/25 Reduction]]","v":0},{"$f":"SUM(Dataset[[#This Row],[2025/26 Reduction]],Dataset[[#This Row],[2025/26 From - Total]],Dataset[[#This Row],[2025/26 To - Total]])","v":0},{"$f":"SUM(Dataset[[#This Row],[2026/27 Reduction]],Dataset[[#This Row],[2026/27 From - Total]],Dataset[[#This Row],[2026/27 To - Total]])","v":0},{"$f":"SUM(Dataset[[#This Row],[2027/28 Reduction]],Dataset[[#This Row],[2027/28 From - Total]],Dataset[[#This Row],[2027/28 To - Total]])","v":0},{"$f":"Dataset[[#This Row],[2024/25 Baseline]]+Dataset[[#This Row],[2024/25 Total change]]","v":135},{"$f":"Dataset[[#This Row],[2025/26 Baseline]]+Dataset[[#This Row],[2025/26 Total change]]","v":181},{"$f":"Dataset[[#This Row],[2026/27 Baseline]]+Dataset[[#This Row],[2026/27 Total change]]","v":188},{"$f":"Dataset[[#This Row],[2027/28 Baseline]]+Dataset[[#This Row],[2027/28 Total change]]","v":197}]
["NAT|Non-transfer item","40|Contractors","2025_26","MTEC2025",40,7,1,52945,1673,"40","07","01","052945","001673","40|07|01|001673","01","01","02","16","16","01|01|02|16|16","National","Transport","Public Transport","Public Transport Regulation","Non-transfer item","Current","Current payments","Goods and services","Contractors","Contractors","Community development","Community development","NAT",0,0,0,0,0,0,null,0,0,0,0,null,null,null,null,null,null,null,null,null,null,null,null,null,null,null,null,null,null,null,null,null,null,null,null,null,null,null,null,null,null,null,null,null,null,{"$f":"Dataset[[#This Row],[2025/26 From - Spending review Topic 1]]+Dataset[[#This Row],[2025/26 From - Spending review Topic 2]]+Dataset[[#This Row],[2025/26 From - Spending review Topic 3]]+Dataset[[#This Row],[2025/26 From - Spending review Topic 4]]+Dataset[[#This Row],[2025/26 From - Other reallocations]]","v":0},{"$f":"Dataset[[#This Row],[2026/27 From - Spending review Topic 1]]+Dataset[[#This Row],[2026/27 From - Spending review Topic 2]]+Dataset[[#This Row],[2026/27 From - Spending review Topic 3]]+Dataset[[#This Row],[2026/27 From - Spending review Topic 4]]+Dataset[[#This Row],[2026/27 From - Other reallocations]]","v":0},{"$f":"Dataset[[#This Row],[2027/28 From - Spending review Topic 1]]+Dataset[[#This Row],[2027/28 From - Spending review Topic 2]]+Dataset[[#This Row],[2027/28 From - Spending review Topic 3]]+Dataset[[#This Row],[2027/28 From - Spending review Topic 4]]+Dataset[[#This Row],[2027/28 From - Other reallocations]]","v":0},{"$f":"Dataset[[#This Row],[2025/26 To - Spending review Topic 1]]+Dataset[[#This Row],[2025/26 To - Spending review Topic 2]]+Dataset[[#This Row],[2025/26 To - Spending review Topic 3]]+Dataset[[#This Row],[2025/26 To - Spending review Topic 4]]+Dataset[[#This Row],[2025/26 To - Other reallocations]]","v":0},{"$f":"Dataset[[#This Row],[2026/27 To - Spending review Topic 1]]+Dataset[[#This Row],[2026/27 To - Spending review Topic 2]]+Dataset[[#This Row],[2026/27 To - Spending review Topic 3]]+Dataset[[#This Row],[2026/27 To - Spending review Topic 4]]+Dataset[[#This Row],[2026/27 To - Other reallocations]]","v":0},{"$f":"Dataset[[#This Row],[2027/28 To - Spending review Topic 1]]+Dataset[[#This Row],[2027/28 To - Spending review Topic 2]]+Dataset[[#This Row],[2027/28 To - Spending review Topic 3]]+Dataset[[#This Row],[2027/28 To - Spending review Topic 4]]+Dataset[[#This Row],[2027/28 To - Other reallocations]]","v":0},{"$f":"Dataset[[#This Row],[2025/26 Reduction]]+Dataset[[#This Row],[2025/26 From - Total]]","v":0},{"$f":"Dataset[[#This Row],[2026/27 Reduction]]+Dataset[[#This Row],[2026/27 From - Total]]","v":0},{"$f":"Dataset[[#This Row],[2027/28 Reduction]]+Dataset[[#This Row],[2027/28 From - Total]]","v":0},{"$f":"Dataset[[#This Row],[2024/25 Reduction]]","v":0},{"$f":"SUM(Dataset[[#This Row],[2025/26 Reduction]],Dataset[[#This Row],[2025/26 From - Total]],Dataset[[#This Row],[2025/26 To - Total]])","v":0},{"$f":"SUM(Dataset[[#This Row],[2026/27 Reduction]],Dataset[[#This Row],[2026/27 From - Total]],Dataset[[#This Row],[2026/27 To - Total]])","v":0},{"$f":"SUM(Dataset[[#This Row],[2027/28 Reduction]],Dataset[[#This Row],[2027/28 From - Total]],Dataset[[#This Row],[2027/28 To - Total]])","v":0},{"$f":"Dataset[[#This Row],[2024/25 Baseline]]+Dataset[[#This Row],[2024/25 Total change]]","v":0},{"$f":"Dataset[[#This Row],[2025/26 Baseline]]+Dataset[[#This Row],[2025/26 Total change]]","v":0},{"$f":"Dataset[[#This Row],[2026/27 Baseline]]+Dataset[[#This Row],[2026/27 Total change]]","v":0},{"$f":"Dataset[[#This Row],[2027/28 Baseline]]+Dataset[[#This Row],[2027/28 Total change]]","v":0}]
["NAT|Non-transfer item","40|Agency and support/outsourced services","2025_26","MTEC2025",40,7,1,52946,1674,"40","07","01","052946","001674","40|07|01|001674","01","01","02","17","17","01|01|02|17|17","National","Transport","Public Transport","Public Transport Regulation","Non-transfer item","Current","Current payments","Goods and services","Agency and support/outsourced services","Agency and support/outsourced services","Community development","Community development","NAT",0,0,0,0,0,0,null,0,0,0,0,null,null,null,null,null,null,null,null,null,null,null,null,null,null,null,null,null,null,null,null,null,null,null,null,null,null,null,null,null,null,null,null,null,null,{"$f":"Dataset[[#This Row],[2025/26 From - Spending review Topic 1]]+Dataset[[#This Row],[2025/26 From - Spending review Topic 2]]+Dataset[[#This Row],[2025/26 From - Spending review Topic 3]]+Dataset[[#This Row],[2025/26 From - Spending review Topic 4]]+Dataset[[#This Row],[2025/26 From - Other reallocations]]","v":0},{"$f":"Dataset[[#This Row],[2026/27 From - Spending review Topic 1]]+Dataset[[#This Row],[2026/27 From - Spending review Topic 2]]+Dataset[[#This Row],[2026/27 From - Spending review Topic 3]]+Dataset[[#This Row],[2026/27 From - Spending review Topic 4]]+Dataset[[#This Row],[2026/27 From - Other reallocations]]","v":0},{"$f":"Dataset[[#This Row],[2027/28 From - Spending review Topic 1]]+Dataset[[#This Row],[2027/28 From - Spending review Topic 2]]+Dataset[[#This Row],[2027/28 From - Spending review Topic 3]]+Dataset[[#This Row],[2027/28 From - Spending review Topic 4]]+Dataset[[#This Row],[2027/28 From - Other reallocations]]","v":0},{"$f":"Dataset[[#This Row],[2025/26 To - Spending review Topic 1]]+Dataset[[#This Row],[2025/26 To - Spending review Topic 2]]+Dataset[[#This Row],[2025/26 To - Spending review Topic 3]]+Dataset[[#This Row],[2025/26 To - Spending review Topic 4]]+Dataset[[#This Row],[2025/26 To - Other reallocations]]","v":0},{"$f":"Dataset[[#This Row],[2026/27 To - Spending review Topic 1]]+Dataset[[#This Row],[2026/27 To - Spending review Topic 2]]+Dataset[[#This Row],[2026/27 To - Spending review Topic 3]]+Dataset[[#This Row],[2026/27 To - Spending review Topic 4]]+Dataset[[#This Row],[2026/27 To - Other reallocations]]","v":0},{"$f":"Dataset[[#This Row],[2027/28 To - Spending review Topic 1]]+Dataset[[#This Row],[2027/28 To - Spending review Topic 2]]+Dataset[[#This Row],[2027/28 To - Spending review Topic 3]]+Dataset[[#This Row],[2027/28 To - Spending review Topic 4]]+Dataset[[#This Row],[2027/28 To - Other reallocations]]","v":0},{"$f":"Dataset[[#This Row],[2025/26 Reduction]]+Dataset[[#This Row],[2025/26 From - Total]]","v":0},{"$f":"Dataset[[#This Row],[2026/27 Reduction]]+Dataset[[#This Row],[2026/27 From - Total]]","v":0},{"$f":"Dataset[[#This Row],[2027/28 Reduction]]+Dataset[[#This Row],[2027/28 From - Total]]","v":0},{"$f":"Dataset[[#This Row],[2024/25 Reduction]]","v":0},{"$f":"SUM(Dataset[[#This Row],[2025/26 Reduction]],Dataset[[#This Row],[2025/26 From - Total]],Dataset[[#This Row],[2025/26 To - Total]])","v":0},{"$f":"SUM(Dataset[[#This Row],[2026/27 Reduction]],Dataset[[#This Row],[2026/27 From - Total]],Dataset[[#This Row],[2026/27 To - Total]])","v":0},{"$f":"SUM(Dataset[[#This Row],[2027/28 Reduction]],Dataset[[#This Row],[2027/28 From - Total]],Dataset[[#This Row],[2027/28 To - Total]])","v":0},{"$f":"Dataset[[#This Row],[2024/25 Baseline]]+Dataset[[#This Row],[2024/25 Total change]]","v":0},{"$f":"Dataset[[#This Row],[2025/26 Baseline]]+Dataset[[#This Row],[2025/26 Total change]]","v":0},{"$f":"Dataset[[#This Row],[2026/27 Baseline]]+Dataset[[#This Row],[2026/27 Total change]]","v":0},{"$f":"Dataset[[#This Row],[2027/28 Baseline]]+Dataset[[#This Row],[2027/28 Total change]]","v":0}]
["NAT|Non-transfer item","40|Inventory: Learner and teacher support material","2025_26","MTEC2025",40,7,1,52954,1682,"40","07","01","052954","001682","40|07|01|001682","01","01","02","25","25","01|01|02|25|25","National","Transport","Public Transport","Public Transport Regulation","Non-transfer item","Current","Current payments","Goods and services","Inventory: Learner and teacher support material","Inventory: Learner and teacher support material","Community development","Community development","NAT",0,0,0,0,0,0,null,0,0,0,0,null,null,null,null,null,null,null,null,null,null,null,null,null,null,null,null,null,null,null,null,null,null,null,null,null,null,null,null,null,null,null,null,null,null,{"$f":"Dataset[[#This Row],[2025/26 From - Spending review Topic 1]]+Dataset[[#This Row],[2025/26 From - Spending review Topic 2]]+Dataset[[#This Row],[2025/26 From - Spending review Topic 3]]+Dataset[[#This Row],[2025/26 From - Spending review Topic 4]]+Dataset[[#This Row],[2025/26 From - Other reallocations]]","v":0},{"$f":"Dataset[[#This Row],[2026/27 From - Spending review Topic 1]]+Dataset[[#This Row],[2026/27 From - Spending review Topic 2]]+Dataset[[#This Row],[2026/27 From - Spending review Topic 3]]+Dataset[[#This Row],[2026/27 From - Spending review Topic 4]]+Dataset[[#This Row],[2026/27 From - Other reallocations]]","v":0},{"$f":"Dataset[[#This Row],[2027/28 From - Spending review Topic 1]]+Dataset[[#This Row],[2027/28 From - Spending review Topic 2]]+Dataset[[#This Row],[2027/28 From - Spending review Topic 3]]+Dataset[[#This Row],[2027/28 From - Spending review Topic 4]]+Dataset[[#This Row],[2027/28 From - Other reallocations]]","v":0},{"$f":"Dataset[[#This Row],[2025/26 To - Spending review Topic 1]]+Dataset[[#This Row],[2025/26 To - Spending review Topic 2]]+Dataset[[#This Row],[2025/26 To - Spending review Topic 3]]+Dataset[[#This Row],[2025/26 To - Spending review Topic 4]]+Dataset[[#This Row],[2025/26 To - Other reallocations]]","v":0},{"$f":"Dataset[[#This Row],[2026/27 To - Spending review Topic 1]]+Dataset[[#This Row],[2026/27 To - Spending review Topic 2]]+Dataset[[#This Row],[2026/27 To - Spending review Topic 3]]+Dataset[[#This Row],[2026/27 To - Spending review Topic 4]]+Dataset[[#This Row],[2026/27 To - Other reallocations]]","v":0},{"$f":"Dataset[[#This Row],[2027/28 To - Spending review Topic 1]]+Dataset[[#This Row],[2027/28 To - Spending review Topic 2]]+Dataset[[#This Row],[2027/28 To - Spending review Topic 3]]+Dataset[[#This Row],[2027/28 To - Spending review Topic 4]]+Dataset[[#This Row],[2027/28 To - Other reallocations]]","v":0},{"$f":"Dataset[[#This Row],[2025/26 Reduction]]+Dataset[[#This Row],[2025/26 From - Total]]","v":0},{"$f":"Dataset[[#This Row],[2026/27 Reduction]]+Dataset[[#This Row],[2026/27 From - Total]]","v":0},{"$f":"Dataset[[#This Row],[2027/28 Reduction]]+Dataset[[#This Row],[2027/28 From - Total]]","v":0},{"$f":"Dataset[[#This Row],[2024/25 Reduction]]","v":0},{"$f":"SUM(Dataset[[#This Row],[2025/26 Reduction]],Dataset[[#This Row],[2025/26 From - Total]],Dataset[[#This Row],[2025/26 To - Total]])","v":0},{"$f":"SUM(Dataset[[#This Row],[2026/27 Reduction]],Dataset[[#This Row],[2026/27 From - Total]],Dataset[[#This Row],[2026/27 To - Total]])","v":0},{"$f":"SUM(Dataset[[#This Row],[2027/28 Reduction]],Dataset[[#This Row],[2027/28 From - Total]],Dataset[[#This Row],[2027/28 To - Total]])","v":0},{"$f":"Dataset[[#This Row],[2024/25 Baseline]]+Dataset[[#This Row],[2024/25 Total change]]","v":0},{"$f":"Dataset[[#This Row],[2025/26 Baseline]]+Dataset[[#This Row],[2025/26 Total change]]","v":0},{"$f":"Dataset[[#This Row],[2026/27 Baseline]]+Dataset[[#This Row],[2026/27 Total change]]","v":0},{"$f":"Dataset[[#This Row],[2027/28 Baseline]]+Dataset[[#This Row],[2027/28 Total change]]","v":0}]
["NAT|Non-transfer item","40|Travel and subsistence","2025_26","MTEC2025",40,7,1,52966,1694,"40","07","01","052966","001694","40|07|01|001694","01","01","02","37","37","01|01|02|37|37","National","Transport","Public Transport","Public Transport Regulation","Non-transfer item","Current","Current payments","Goods and services","Travel and subsistence","Travel and subsistence","Community development","Community development","NAT",173,522,872,1379,1379,1379,1525,1380,1850,1918,2005,null,null,null,null,null,null,null,null,null,null,null,null,null,null,null,null,null,null,null,null,null,null,null,null,null,null,null,null,null,null,null,null,null,null,{"$f":"Dataset[[#This Row],[2025/26 From - Spending review Topic 1]]+Dataset[[#This Row],[2025/26 From - Spending review Topic 2]]+Dataset[[#This Row],[2025/26 From - Spending review Topic 3]]+Dataset[[#This Row],[2025/26 From - Spending review Topic 4]]+Dataset[[#This Row],[2025/26 From - Other reallocations]]","v":0},{"$f":"Dataset[[#This Row],[2026/27 From - Spending review Topic 1]]+Dataset[[#This Row],[2026/27 From - Spending review Topic 2]]+Dataset[[#This Row],[2026/27 From - Spending review Topic 3]]+Dataset[[#This Row],[2026/27 From - Spending review Topic 4]]+Dataset[[#This Row],[2026/27 From - Other reallocations]]","v":0},{"$f":"Dataset[[#This Row],[2027/28 From - Spending review Topic 1]]+Dataset[[#This Row],[2027/28 From - Spending review Topic 2]]+Dataset[[#This Row],[2027/28 From - Spending review Topic 3]]+Dataset[[#This Row],[2027/28 From - Spending review Topic 4]]+Dataset[[#This Row],[2027/28 From - Other reallocations]]","v":0},{"$f":"Dataset[[#This Row],[2025/26 To - Spending review Topic 1]]+Dataset[[#This Row],[2025/26 To - Spending review Topic 2]]+Dataset[[#This Row],[2025/26 To - Spending review Topic 3]]+Dataset[[#This Row],[2025/26 To - Spending review Topic 4]]+Dataset[[#This Row],[2025/26 To - Other reallocations]]","v":0},{"$f":"Dataset[[#This Row],[2026/27 To - Spending review Topic 1]]+Dataset[[#This Row],[2026/27 To - Spending review Topic 2]]+Dataset[[#This Row],[2026/27 To - Spending review Topic 3]]+Dataset[[#This Row],[2026/27 To - Spending review Topic 4]]+Dataset[[#This Row],[2026/27 To - Other reallocations]]","v":0},{"$f":"Dataset[[#This Row],[2027/28 To - Spending review Topic 1]]+Dataset[[#This Row],[2027/28 To - Spending review Topic 2]]+Dataset[[#This Row],[2027/28 To - Spending review Topic 3]]+Dataset[[#This Row],[2027/28 To - Spending review Topic 4]]+Dataset[[#This Row],[2027/28 To - Other reallocations]]","v":0},{"$f":"Dataset[[#This Row],[2025/26 Reduction]]+Dataset[[#This Row],[2025/26 From - Total]]","v":0},{"$f":"Dataset[[#This Row],[2026/27 Reduction]]+Dataset[[#This Row],[2026/27 From - Total]]","v":0},{"$f":"Dataset[[#This Row],[2027/28 Reduction]]+Dataset[[#This Row],[2027/28 From - Total]]","v":0},{"$f":"Dataset[[#This Row],[2024/25 Reduction]]","v":0},{"$f":"SUM(Dataset[[#This Row],[2025/26 Reduction]],Dataset[[#This Row],[2025/26 From - Total]],Dataset[[#This Row],[2025/26 To - Total]])","v":0},{"$f":"SUM(Dataset[[#This Row],[2026/27 Reduction]],Dataset[[#This Row],[2026/27 From - Total]],Dataset[[#This Row],[2026/27 To - Total]])","v":0},{"$f":"SUM(Dataset[[#This Row],[2027/28 Reduction]],Dataset[[#This Row],[2027/28 From - Total]],Dataset[[#This Row],[2027/28 To - Total]])","v":0},{"$f":"Dataset[[#This Row],[2024/25 Baseline]]+Dataset[[#This Row],[2024/25 Total change]]","v":1380},{"$f":"Dataset[[#This Row],[2025/26 Baseline]]+Dataset[[#This Row],[2025/26 Total change]]","v":1850},{"$f":"Dataset[[#This Row],[2026/27 Baseline]]+Dataset[[#This Row],[2026/27 Total change]]","v":1918},{"$f":"Dataset[[#This Row],[2027/28 Baseline]]+Dataset[[#This Row],[2027/28 Total change]]","v":2005}]
["NAT|Non-transfer item","40|Training and development","2025_26","MTEC2025",40,7,1,52967,1695,"40","07","01","052967","001695","40|07|01|001695","01","01","02","38","38","01|01|02|38|38","National","Transport","Public Transport","Public Transport Regulation","Non-transfer item","Current","Current payments","Goods and services","Training and development","Training and development","Community development","Community development","NAT",0,0,0,0,0,0,null,1603,2148,2228,2329,null,null,null,null,null,null,null,null,null,null,null,null,null,null,null,null,null,null,null,null,null,null,null,null,null,null,null,null,null,null,null,null,null,null,{"$f":"Dataset[[#This Row],[2025/26 From - Spending review Topic 1]]+Dataset[[#This Row],[2025/26 From - Spending review Topic 2]]+Dataset[[#This Row],[2025/26 From - Spending review Topic 3]]+Dataset[[#This Row],[2025/26 From - Spending review Topic 4]]+Dataset[[#This Row],[2025/26 From - Other reallocations]]","v":0},{"$f":"Dataset[[#This Row],[2026/27 From - Spending review Topic 1]]+Dataset[[#This Row],[2026/27 From - Spending review Topic 2]]+Dataset[[#This Row],[2026/27 From - Spending review Topic 3]]+Dataset[[#This Row],[2026/27 From - Spending review Topic 4]]+Dataset[[#This Row],[2026/27 From - Other reallocations]]","v":0},{"$f":"Dataset[[#This Row],[2027/28 From - Spending review Topic 1]]+Dataset[[#This Row],[2027/28 From - Spending review Topic 2]]+Dataset[[#This Row],[2027/28 From - Spending review Topic 3]]+Dataset[[#This Row],[2027/28 From - Spending review Topic 4]]+Dataset[[#This Row],[2027/28 From - Other reallocations]]","v":0},{"$f":"Dataset[[#This Row],[2025/26 To - Spending review Topic 1]]+Dataset[[#This Row],[2025/26 To - Spending review Topic 2]]+Dataset[[#This Row],[2025/26 To - Spending review Topic 3]]+Dataset[[#This Row],[2025/26 To - Spending review Topic 4]]+Dataset[[#This Row],[2025/26 To - Other reallocations]]","v":0},{"$f":"Dataset[[#This Row],[2026/27 To - Spending review Topic 1]]+Dataset[[#This Row],[2026/27 To - Spending review Topic 2]]+Dataset[[#This Row],[2026/27 To - Spending review Topic 3]]+Dataset[[#This Row],[2026/27 To - Spending review Topic 4]]+Dataset[[#This Row],[2026/27 To - Other reallocations]]","v":0},{"$f":"Dataset[[#This Row],[2027/28 To - Spending review Topic 1]]+Dataset[[#This Row],[2027/28 To - Spending review Topic 2]]+Dataset[[#This Row],[2027/28 To - Spending review Topic 3]]+Dataset[[#This Row],[2027/28 To - Spending review Topic 4]]+Dataset[[#This Row],[2027/28 To - Other reallocations]]","v":0},{"$f":"Dataset[[#This Row],[2025/26 Reduction]]+Dataset[[#This Row],[2025/26 From - Total]]","v":0},{"$f":"Dataset[[#This Row],[2026/27 Reduction]]+Dataset[[#This Row],[2026/27 From - Total]]","v":0},{"$f":"Dataset[[#This Row],[2027/28 Reduction]]+Dataset[[#This Row],[2027/28 From - Total]]","v":0},{"$f":"Dataset[[#This Row],[2024/25 Reduction]]","v":0},{"$f":"SUM(Dataset[[#This Row],[2025/26 Reduction]],Dataset[[#This Row],[2025/26 From - Total]],Dataset[[#This Row],[2025/26 To - Total]])","v":0},{"$f":"SUM(Dataset[[#This Row],[2026/27 Reduction]],Dataset[[#This Row],[2026/27 From - Total]],Dataset[[#This Row],[2026/27 To - Total]])","v":0},{"$f":"SUM(Dataset[[#This Row],[2027/28 Reduction]],Dataset[[#This Row],[2027/28 From - Total]],Dataset[[#This Row],[2027/28 To - Total]])","v":0},{"$f":"Dataset[[#This Row],[2024/25 Baseline]]+Dataset[[#This Row],[2024/25 Total change]]","v":1603},{"$f":"Dataset[[#This Row],[2025/26 Baseline]]+Dataset[[#This Row],[2025/26 Total change]]","v":2148},{"$f":"Dataset[[#This Row],[2026/27 Baseline]]+Dataset[[#This Row],[2026/27 Total change]]","v":2228},{"$f":"Dataset[[#This Row],[2027/28 Baseline]]+Dataset[[#This Row],[2027/28 Total change]]","v":2329}]
["NAT|Non-transfer item","40|Transport equipment","2025_26","MTEC2025",40,7,1,52975,1703,"40","07","01","052975","001703","40|07|01|001703","02","03","12","56","60","02|03|12|56|60","National","Transport","Public Transport","Public Transport Regulation","Non-transfer item","Capital","Payments for capital assets","Machinery and equipment","Transport equipment","Transport equipment","Community development","Community development","NAT",0,0,0,0,0,0,null,0,0,0,0,null,null,null,null,null,null,null,null,null,null,null,null,null,null,null,null,null,null,null,null,null,null,null,null,null,null,null,null,null,null,null,null,null,null,{"$f":"Dataset[[#This Row],[2025/26 From - Spending review Topic 1]]+Dataset[[#This Row],[2025/26 From - Spending review Topic 2]]+Dataset[[#This Row],[2025/26 From - Spending review Topic 3]]+Dataset[[#This Row],[2025/26 From - Spending review Topic 4]]+Dataset[[#This Row],[2025/26 From - Other reallocations]]","v":0},{"$f":"Dataset[[#This Row],[2026/27 From - Spending review Topic 1]]+Dataset[[#This Row],[2026/27 From - Spending review Topic 2]]+Dataset[[#This Row],[2026/27 From - Spending review Topic 3]]+Dataset[[#This Row],[2026/27 From - Spending review Topic 4]]+Dataset[[#This Row],[2026/27 From - Other reallocations]]","v":0},{"$f":"Dataset[[#This Row],[2027/28 From - Spending review Topic 1]]+Dataset[[#This Row],[2027/28 From - Spending review Topic 2]]+Dataset[[#This Row],[2027/28 From - Spending review Topic 3]]+Dataset[[#This Row],[2027/28 From - Spending review Topic 4]]+Dataset[[#This Row],[2027/28 From - Other reallocations]]","v":0},{"$f":"Dataset[[#This Row],[2025/26 To - Spending review Topic 1]]+Dataset[[#This Row],[2025/26 To - Spending review Topic 2]]+Dataset[[#This Row],[2025/26 To - Spending review Topic 3]]+Dataset[[#This Row],[2025/26 To - Spending review Topic 4]]+Dataset[[#This Row],[2025/26 To - Other reallocations]]","v":0},{"$f":"Dataset[[#This Row],[2026/27 To - Spending review Topic 1]]+Dataset[[#This Row],[2026/27 To - Spending review Topic 2]]+Dataset[[#This Row],[2026/27 To - Spending review Topic 3]]+Dataset[[#This Row],[2026/27 To - Spending review Topic 4]]+Dataset[[#This Row],[2026/27 To - Other reallocations]]","v":0},{"$f":"Dataset[[#This Row],[2027/28 To - Spending review Topic 1]]+Dataset[[#This Row],[2027/28 To - Spending review Topic 2]]+Dataset[[#This Row],[2027/28 To - Spending review Topic 3]]+Dataset[[#This Row],[2027/28 To - Spending review Topic 4]]+Dataset[[#This Row],[2027/28 To - Other reallocations]]","v":0},{"$f":"Dataset[[#This Row],[2025/26 Reduction]]+Dataset[[#This Row],[2025/26 From - Total]]","v":0},{"$f":"Dataset[[#This Row],[2026/27 Reduction]]+Dataset[[#This Row],[2026/27 From - Total]]","v":0},{"$f":"Dataset[[#This Row],[2027/28 Reduction]]+Dataset[[#This Row],[2027/28 From - Total]]","v":0},{"$f":"Dataset[[#This Row],[2024/25 Reduction]]","v":0},{"$f":"SUM(Dataset[[#This Row],[2025/26 Reduction]],Dataset[[#This Row],[2025/26 From - Total]],Dataset[[#This Row],[2025/26 To - Total]])","v":0},{"$f":"SUM(Dataset[[#This Row],[2026/27 Reduction]],Dataset[[#This Row],[2026/27 From - Total]],Dataset[[#This Row],[2026/27 To - Total]])","v":0},{"$f":"SUM(Dataset[[#This Row],[2027/28 Reduction]],Dataset[[#This Row],[2027/28 From - Total]],Dataset[[#This Row],[2027/28 To - Total]])","v":0},{"$f":"Dataset[[#This Row],[2024/25 Baseline]]+Dataset[[#This Row],[2024/25 Total change]]","v":0},{"$f":"Dataset[[#This Row],[2025/26 Baseline]]+Dataset[[#This Row],[2025/26 Total change]]","v":0},{"$f":"Dataset[[#This Row],[2026/27 Baseline]]+Dataset[[#This Row],[2026/27 Total change]]","v":0},{"$f":"Dataset[[#This Row],[2027/28 Baseline]]+Dataset[[#This Row],[2027/28 Total change]]","v":0}]
["NAT|Non-transfer item","40|Minor assets","2025_26","MTEC2025",40,7,2,52987,1715,"40","07","02","052987","001715","40|07|02|001715","01","01","02","05","05","01|01|02|05|05","National","Transport","Public Transport","Rural and Scholar Transport","Non-transfer item","Current","Current payments","Goods and services","Minor assets","Minor assets","Community development","Community development","NAT",0,0,0,81,81,81,null,81,82,84,88,null,null,null,null,null,null,null,null,null,null,null,null,null,null,null,null,null,null,null,null,null,null,null,null,null,null,null,null,null,null,null,null,null,null,{"$f":"Dataset[[#This Row],[2025/26 From - Spending review Topic 1]]+Dataset[[#This Row],[2025/26 From - Spending review Topic 2]]+Dataset[[#This Row],[2025/26 From - Spending review Topic 3]]+Dataset[[#This Row],[2025/26 From - Spending review Topic 4]]+Dataset[[#This Row],[2025/26 From - Other reallocations]]","v":0},{"$f":"Dataset[[#This Row],[2026/27 From - Spending review Topic 1]]+Dataset[[#This Row],[2026/27 From - Spending review Topic 2]]+Dataset[[#This Row],[2026/27 From - Spending review Topic 3]]+Dataset[[#This Row],[2026/27 From - Spending review Topic 4]]+Dataset[[#This Row],[2026/27 From - Other reallocations]]","v":0},{"$f":"Dataset[[#This Row],[2027/28 From - Spending review Topic 1]]+Dataset[[#This Row],[2027/28 From - Spending review Topic 2]]+Dataset[[#This Row],[2027/28 From - Spending review Topic 3]]+Dataset[[#This Row],[2027/28 From - Spending review Topic 4]]+Dataset[[#This Row],[2027/28 From - Other reallocations]]","v":0},{"$f":"Dataset[[#This Row],[2025/26 To - Spending review Topic 1]]+Dataset[[#This Row],[2025/26 To - Spending review Topic 2]]+Dataset[[#This Row],[2025/26 To - Spending review Topic 3]]+Dataset[[#This Row],[2025/26 To - Spending review Topic 4]]+Dataset[[#This Row],[2025/26 To - Other reallocations]]","v":0},{"$f":"Dataset[[#This Row],[2026/27 To - Spending review Topic 1]]+Dataset[[#This Row],[2026/27 To - Spending review Topic 2]]+Dataset[[#This Row],[2026/27 To - Spending review Topic 3]]+Dataset[[#This Row],[2026/27 To - Spending review Topic 4]]+Dataset[[#This Row],[2026/27 To - Other reallocations]]","v":0},{"$f":"Dataset[[#This Row],[2027/28 To - Spending review Topic 1]]+Dataset[[#This Row],[2027/28 To - Spending review Topic 2]]+Dataset[[#This Row],[2027/28 To - Spending review Topic 3]]+Dataset[[#This Row],[2027/28 To - Spending review Topic 4]]+Dataset[[#This Row],[2027/28 To - Other reallocations]]","v":0},{"$f":"Dataset[[#This Row],[2025/26 Reduction]]+Dataset[[#This Row],[2025/26 From - Total]]","v":0},{"$f":"Dataset[[#This Row],[2026/27 Reduction]]+Dataset[[#This Row],[2026/27 From - Total]]","v":0},{"$f":"Dataset[[#This Row],[2027/28 Reduction]]+Dataset[[#This Row],[2027/28 From - Total]]","v":0},{"$f":"Dataset[[#This Row],[2024/25 Reduction]]","v":0},{"$f":"SUM(Dataset[[#This Row],[2025/26 Reduction]],Dataset[[#This Row],[2025/26 From - Total]],Dataset[[#This Row],[2025/26 To - Total]])","v":0},{"$f":"SUM(Dataset[[#This Row],[2026/27 Reduction]],Dataset[[#This Row],[2026/27 From - Total]],Dataset[[#This Row],[2026/27 To - Total]])","v":0},{"$f":"SUM(Dataset[[#This Row],[2027/28 Reduction]],Dataset[[#This Row],[2027/28 From - Total]],Dataset[[#This Row],[2027/28 To - Total]])","v":0},{"$f":"Dataset[[#This Row],[2024/25 Baseline]]+Dataset[[#This Row],[2024/25 Total change]]","v":81},{"$f":"Dataset[[#This Row],[2025/26 Baseline]]+Dataset[[#This Row],[2025/26 Total change]]","v":82},{"$f":"Dataset[[#This Row],[2026/27 Baseline]]+Dataset[[#This Row],[2026/27 Total change]]","v":84},{"$f":"Dataset[[#This Row],[2027/28 Baseline]]+Dataset[[#This Row],[2027/28 Total change]]","v":88}]
["NAT|Non-transfer item","40|Audit costs: External","2025_26","MTEC2025",40,7,2,52988,1716,"40","07","02","052988","001716","40|07|02|001716","01","01","02","06","06","01|01|02|06|06","National","Transport","Public Transport","Rural and Scholar Transport","Non-transfer item","Current","Current payments","Goods and services","Audit costs: External","Audit costs: External","Community development","Community development","NAT",0,0,0,0,0,0,null,0,0,0,0,null,null,null,null,null,null,null,null,null,null,null,null,null,null,null,null,null,null,null,null,null,null,null,null,null,null,null,null,null,null,null,null,null,null,{"$f":"Dataset[[#This Row],[2025/26 From - Spending review Topic 1]]+Dataset[[#This Row],[2025/26 From - Spending review Topic 2]]+Dataset[[#This Row],[2025/26 From - Spending review Topic 3]]+Dataset[[#This Row],[2025/26 From - Spending review Topic 4]]+Dataset[[#This Row],[2025/26 From - Other reallocations]]","v":0},{"$f":"Dataset[[#This Row],[2026/27 From - Spending review Topic 1]]+Dataset[[#This Row],[2026/27 From - Spending review Topic 2]]+Dataset[[#This Row],[2026/27 From - Spending review Topic 3]]+Dataset[[#This Row],[2026/27 From - Spending review Topic 4]]+Dataset[[#This Row],[2026/27 From - Other reallocations]]","v":0},{"$f":"Dataset[[#This Row],[2027/28 From - Spending review Topic 1]]+Dataset[[#This Row],[2027/28 From - Spending review Topic 2]]+Dataset[[#This Row],[2027/28 From - Spending review Topic 3]]+Dataset[[#This Row],[2027/28 From - Spending review Topic 4]]+Dataset[[#This Row],[2027/28 From - Other reallocations]]","v":0},{"$f":"Dataset[[#This Row],[2025/26 To - Spending review Topic 1]]+Dataset[[#This Row],[2025/26 To - Spending review Topic 2]]+Dataset[[#This Row],[2025/26 To - Spending review Topic 3]]+Dataset[[#This Row],[2025/26 To - Spending review Topic 4]]+Dataset[[#This Row],[2025/26 To - Other reallocations]]","v":0},{"$f":"Dataset[[#This Row],[2026/27 To - Spending review Topic 1]]+Dataset[[#This Row],[2026/27 To - Spending review Topic 2]]+Dataset[[#This Row],[2026/27 To - Spending review Topic 3]]+Dataset[[#This Row],[2026/27 To - Spending review Topic 4]]+Dataset[[#This Row],[2026/27 To - Other reallocations]]","v":0},{"$f":"Dataset[[#This Row],[2027/28 To - Spending review Topic 1]]+Dataset[[#This Row],[2027/28 To - Spending review Topic 2]]+Dataset[[#This Row],[2027/28 To - Spending review Topic 3]]+Dataset[[#This Row],[2027/28 To - Spending review Topic 4]]+Dataset[[#This Row],[2027/28 To - Other reallocations]]","v":0},{"$f":"Dataset[[#This Row],[2025/26 Reduction]]+Dataset[[#This Row],[2025/26 From - Total]]","v":0},{"$f":"Dataset[[#This Row],[2026/27 Reduction]]+Dataset[[#This Row],[2026/27 From - Total]]","v":0},{"$f":"Dataset[[#This Row],[2027/28 Reduction]]+Dataset[[#This Row],[2027/28 From - Total]]","v":0},{"$f":"Dataset[[#This Row],[2024/25 Reduction]]","v":0},{"$f":"SUM(Dataset[[#This Row],[2025/26 Reduction]],Dataset[[#This Row],[2025/26 From - Total]],Dataset[[#This Row],[2025/26 To - Total]])","v":0},{"$f":"SUM(Dataset[[#This Row],[2026/27 Reduction]],Dataset[[#This Row],[2026/27 From - Total]],Dataset[[#This Row],[2026/27 To - Total]])","v":0},{"$f":"SUM(Dataset[[#This Row],[2027/28 Reduction]],Dataset[[#This Row],[2027/28 From - Total]],Dataset[[#This Row],[2027/28 To - Total]])","v":0},{"$f":"Dataset[[#This Row],[2024/25 Baseline]]+Dataset[[#This Row],[2024/25 Total change]]","v":0},{"$f":"Dataset[[#This Row],[2025/26 Baseline]]+Dataset[[#This Row],[2025/26 Total change]]","v":0},{"$f":"Dataset[[#This Row],[2026/27 Baseline]]+Dataset[[#This Row],[2026/27 Total change]]","v":0},{"$f":"Dataset[[#This Row],[2027/28 Baseline]]+Dataset[[#This Row],[2027/28 Total change]]","v":0}]
["NAT|Non-transfer item","40|Entertainment","2025_26","MTEC2025",40,7,2,53000,1728,"40","07","02","053000","001728","40|07|02|001728","01","01","02","18","18","01|01|02|18|18","National","Transport","Public Transport","Rural and Scholar Transport","Non-transfer item","Current","Current payments","Goods and services","Entertainment","Entertainment","Community development","Community development","NAT",0,0,0,0,0,0,null,0,0,0,0,null,null,null,null,null,null,null,null,null,null,null,null,null,null,null,null,null,null,null,null,null,null,null,null,null,null,null,null,null,null,null,null,null,null,{"$f":"Dataset[[#This Row],[2025/26 From - Spending review Topic 1]]+Dataset[[#This Row],[2025/26 From - Spending review Topic 2]]+Dataset[[#This Row],[2025/26 From - Spending review Topic 3]]+Dataset[[#This Row],[2025/26 From - Spending review Topic 4]]+Dataset[[#This Row],[2025/26 From - Other reallocations]]","v":0},{"$f":"Dataset[[#This Row],[2026/27 From - Spending review Topic 1]]+Dataset[[#This Row],[2026/27 From - Spending review Topic 2]]+Dataset[[#This Row],[2026/27 From - Spending review Topic 3]]+Dataset[[#This Row],[2026/27 From - Spending review Topic 4]]+Dataset[[#This Row],[2026/27 From - Other reallocations]]","v":0},{"$f":"Dataset[[#This Row],[2027/28 From - Spending review Topic 1]]+Dataset[[#This Row],[2027/28 From - Spending review Topic 2]]+Dataset[[#This Row],[2027/28 From - Spending review Topic 3]]+Dataset[[#This Row],[2027/28 From - Spending review Topic 4]]+Dataset[[#This Row],[2027/28 From - Other reallocations]]","v":0},{"$f":"Dataset[[#This Row],[2025/26 To - Spending review Topic 1]]+Dataset[[#This Row],[2025/26 To - Spending review Topic 2]]+Dataset[[#This Row],[2025/26 To - Spending review Topic 3]]+Dataset[[#This Row],[2025/26 To - Spending review Topic 4]]+Dataset[[#This Row],[2025/26 To - Other reallocations]]","v":0},{"$f":"Dataset[[#This Row],[2026/27 To - Spending review Topic 1]]+Dataset[[#This Row],[2026/27 To - Spending review Topic 2]]+Dataset[[#This Row],[2026/27 To - Spending review Topic 3]]+Dataset[[#This Row],[2026/27 To - Spending review Topic 4]]+Dataset[[#This Row],[2026/27 To - Other reallocations]]","v":0},{"$f":"Dataset[[#This Row],[2027/28 To - Spending review Topic 1]]+Dataset[[#This Row],[2027/28 To - Spending review Topic 2]]+Dataset[[#This Row],[2027/28 To - Spending review Topic 3]]+Dataset[[#This Row],[2027/28 To - Spending review Topic 4]]+Dataset[[#This Row],[2027/28 To - Other reallocations]]","v":0},{"$f":"Dataset[[#This Row],[2025/26 Reduction]]+Dataset[[#This Row],[2025/26 From - Total]]","v":0},{"$f":"Dataset[[#This Row],[2026/27 Reduction]]+Dataset[[#This Row],[2026/27 From - Total]]","v":0},{"$f":"Dataset[[#This Row],[2027/28 Reduction]]+Dataset[[#This Row],[2027/28 From - Total]]","v":0},{"$f":"Dataset[[#This Row],[2024/25 Reduction]]","v":0},{"$f":"SUM(Dataset[[#This Row],[2025/26 Reduction]],Dataset[[#This Row],[2025/26 From - Total]],Dataset[[#This Row],[2025/26 To - Total]])","v":0},{"$f":"SUM(Dataset[[#This Row],[2026/27 Reduction]],Dataset[[#This Row],[2026/27 From - Total]],Dataset[[#This Row],[2026/27 To - Total]])","v":0},{"$f":"SUM(Dataset[[#This Row],[2027/28 Reduction]],Dataset[[#This Row],[2027/28 From - Total]],Dataset[[#This Row],[2027/28 To - Total]])","v":0},{"$f":"Dataset[[#This Row],[2024/25 Baseline]]+Dataset[[#This Row],[2024/25 Total change]]","v":0},{"$f":"Dataset[[#This Row],[2025/26 Baseline]]+Dataset[[#This Row],[2025/26 Total change]]","v":0},{"$f":"Dataset[[#This Row],[2026/27 Baseline]]+Dataset[[#This Row],[2026/27 Total change]]","v":0},{"$f":"Dataset[[#This Row],[2027/28 Baseline]]+Dataset[[#This Row],[2027/28 Total change]]","v":0}]
["NAT|Non-transfer item","40|Inventory: Materials and supplies","2025_26","MTEC2025",40,7,2,53008,1736,"40","07","02","053008","001736","40|07|02|001736","01","01","02","26","26","01|01|02|26|26","National","Transport","Public Transport","Rural and Scholar Transport","Non-transfer item","Current","Current payments","Goods and services","Inventory: Materials and supplies","Inventory: Materials and supplies","Community development","Community development","NAT",0,0,0,0,0,0,null,0,0,0,0,null,null,null,null,null,null,null,null,null,null,null,null,null,null,null,null,null,null,null,null,null,null,null,null,null,null,null,null,null,null,null,null,null,null,{"$f":"Dataset[[#This Row],[2025/26 From - Spending review Topic 1]]+Dataset[[#This Row],[2025/26 From - Spending review Topic 2]]+Dataset[[#This Row],[2025/26 From - Spending review Topic 3]]+Dataset[[#This Row],[2025/26 From - Spending review Topic 4]]+Dataset[[#This Row],[2025/26 From - Other reallocations]]","v":0},{"$f":"Dataset[[#This Row],[2026/27 From - Spending review Topic 1]]+Dataset[[#This Row],[2026/27 From - Spending review Topic 2]]+Dataset[[#This Row],[2026/27 From - Spending review Topic 3]]+Dataset[[#This Row],[2026/27 From - Spending review Topic 4]]+Dataset[[#This Row],[2026/27 From - Other reallocations]]","v":0},{"$f":"Dataset[[#This Row],[2027/28 From - Spending review Topic 1]]+Dataset[[#This Row],[2027/28 From - Spending review Topic 2]]+Dataset[[#This Row],[2027/28 From - Spending review Topic 3]]+Dataset[[#This Row],[2027/28 From - Spending review Topic 4]]+Dataset[[#This Row],[2027/28 From - Other reallocations]]","v":0},{"$f":"Dataset[[#This Row],[2025/26 To - Spending review Topic 1]]+Dataset[[#This Row],[2025/26 To - Spending review Topic 2]]+Dataset[[#This Row],[2025/26 To - Spending review Topic 3]]+Dataset[[#This Row],[2025/26 To - Spending review Topic 4]]+Dataset[[#This Row],[2025/26 To - Other reallocations]]","v":0},{"$f":"Dataset[[#This Row],[2026/27 To - Spending review Topic 1]]+Dataset[[#This Row],[2026/27 To - Spending review Topic 2]]+Dataset[[#This Row],[2026/27 To - Spending review Topic 3]]+Dataset[[#This Row],[2026/27 To - Spending review Topic 4]]+Dataset[[#This Row],[2026/27 To - Other reallocations]]","v":0},{"$f":"Dataset[[#This Row],[2027/28 To - Spending review Topic 1]]+Dataset[[#This Row],[2027/28 To - Spending review Topic 2]]+Dataset[[#This Row],[2027/28 To - Spending review Topic 3]]+Dataset[[#This Row],[2027/28 To - Spending review Topic 4]]+Dataset[[#This Row],[2027/28 To - Other reallocations]]","v":0},{"$f":"Dataset[[#This Row],[2025/26 Reduction]]+Dataset[[#This Row],[2025/26 From - Total]]","v":0},{"$f":"Dataset[[#This Row],[2026/27 Reduction]]+Dataset[[#This Row],[2026/27 From - Total]]","v":0},{"$f":"Dataset[[#This Row],[2027/28 Reduction]]+Dataset[[#This Row],[2027/28 From - Total]]","v":0},{"$f":"Dataset[[#This Row],[2024/25 Reduction]]","v":0},{"$f":"SUM(Dataset[[#This Row],[2025/26 Reduction]],Dataset[[#This Row],[2025/26 From - Total]],Dataset[[#This Row],[2025/26 To - Total]])","v":0},{"$f":"SUM(Dataset[[#This Row],[2026/27 Reduction]],Dataset[[#This Row],[2026/27 From - Total]],Dataset[[#This Row],[2026/27 To - Total]])","v":0},{"$f":"SUM(Dataset[[#This Row],[2027/28 Reduction]],Dataset[[#This Row],[2027/28 From - Total]],Dataset[[#This Row],[2027/28 To - Total]])","v":0},{"$f":"Dataset[[#This Row],[2024/25 Baseline]]+Dataset[[#This Row],[2024/25 Total change]]","v":0},{"$f":"Dataset[[#This Row],[2025/26 Baseline]]+Dataset[[#This Row],[2025/26 Total change]]","v":0},{"$f":"Dataset[[#This Row],[2026/27 Baseline]]+Dataset[[#This Row],[2026/27 Total change]]","v":0},{"$f":"Dataset[[#This Row],[2027/28 Baseline]]+Dataset[[#This Row],[2027/28 Total change]]","v":0}]
["NAT|Non-transfer item","40|Inventory: Medical supplies","2025_26","MTEC2025",40,7,2,53009,1737,"40","07","02","053009","001737","40|07|02|001737","01","01","02","27","27","01|01|02|27|27","National","Transport","Public Transport","Rural and Scholar Transport","Non-transfer item","Current","Current payments","Goods and services","Inventory: Medical supplies","Inventory: Medical supplies","Community development","Community development","NAT",0,0,0,0,0,0,null,0,0,0,0,null,null,null,null,null,null,null,null,null,null,null,null,null,null,null,null,null,null,null,null,null,null,null,null,null,null,null,null,null,null,null,null,null,null,{"$f":"Dataset[[#This Row],[2025/26 From - Spending review Topic 1]]+Dataset[[#This Row],[2025/26 From - Spending review Topic 2]]+Dataset[[#This Row],[2025/26 From - Spending review Topic 3]]+Dataset[[#This Row],[2025/26 From - Spending review Topic 4]]+Dataset[[#This Row],[2025/26 From - Other reallocations]]","v":0},{"$f":"Dataset[[#This Row],[2026/27 From - Spending review Topic 1]]+Dataset[[#This Row],[2026/27 From - Spending review Topic 2]]+Dataset[[#This Row],[2026/27 From - Spending review Topic 3]]+Dataset[[#This Row],[2026/27 From - Spending review Topic 4]]+Dataset[[#This Row],[2026/27 From - Other reallocations]]","v":0},{"$f":"Dataset[[#This Row],[2027/28 From - Spending review Topic 1]]+Dataset[[#This Row],[2027/28 From - Spending review Topic 2]]+Dataset[[#This Row],[2027/28 From - Spending review Topic 3]]+Dataset[[#This Row],[2027/28 From - Spending review Topic 4]]+Dataset[[#This Row],[2027/28 From - Other reallocations]]","v":0},{"$f":"Dataset[[#This Row],[2025/26 To - Spending review Topic 1]]+Dataset[[#This Row],[2025/26 To - Spending review Topic 2]]+Dataset[[#This Row],[2025/26 To - Spending review Topic 3]]+Dataset[[#This Row],[2025/26 To - Spending review Topic 4]]+Dataset[[#This Row],[2025/26 To - Other reallocations]]","v":0},{"$f":"Dataset[[#This Row],[2026/27 To - Spending review Topic 1]]+Dataset[[#This Row],[2026/27 To - Spending review Topic 2]]+Dataset[[#This Row],[2026/27 To - Spending review Topic 3]]+Dataset[[#This Row],[2026/27 To - Spending review Topic 4]]+Dataset[[#This Row],[2026/27 To - Other reallocations]]","v":0},{"$f":"Dataset[[#This Row],[2027/28 To - Spending review Topic 1]]+Dataset[[#This Row],[2027/28 To - Spending review Topic 2]]+Dataset[[#This Row],[2027/28 To - Spending review Topic 3]]+Dataset[[#This Row],[2027/28 To - Spending review Topic 4]]+Dataset[[#This Row],[2027/28 To - Other reallocations]]","v":0},{"$f":"Dataset[[#This Row],[2025/26 Reduction]]+Dataset[[#This Row],[2025/26 From - Total]]","v":0},{"$f":"Dataset[[#This Row],[2026/27 Reduction]]+Dataset[[#This Row],[2026/27 From - Total]]","v":0},{"$f":"Dataset[[#This Row],[2027/28 Reduction]]+Dataset[[#This Row],[2027/28 From - Total]]","v":0},{"$f":"Dataset[[#This Row],[2024/25 Reduction]]","v":0},{"$f":"SUM(Dataset[[#This Row],[2025/26 Reduction]],Dataset[[#This Row],[2025/26 From - Total]],Dataset[[#This Row],[2025/26 To - Total]])","v":0},{"$f":"SUM(Dataset[[#This Row],[2026/27 Reduction]],Dataset[[#This Row],[2026/27 From - Total]],Dataset[[#This Row],[2026/27 To - Total]])","v":0},{"$f":"SUM(Dataset[[#This Row],[2027/28 Reduction]],Dataset[[#This Row],[2027/28 From - Total]],Dataset[[#This Row],[2027/28 To - Total]])","v":0},{"$f":"Dataset[[#This Row],[2024/25 Baseline]]+Dataset[[#This Row],[2024/25 Total change]]","v":0},{"$f":"Dataset[[#This Row],[2025/26 Baseline]]+Dataset[[#This Row],[2025/26 Total change]]","v":0},{"$f":"Dataset[[#This Row],[2026/27 Baseline]]+Dataset[[#This Row],[2026/27 Total change]]","v":0},{"$f":"Dataset[[#This Row],[2027/28 Baseline]]+Dataset[[#This Row],[2027/28 Total change]]","v":0}]
["NAT|Non-transfer item","40|Operating payments","2025_26","MTEC2025",40,7,2,53021,1749,"40","07","02","053021","001749","40|07|02|001749","01","01","02","39","39","01|01|02|39|39","National","Transport","Public Transport","Rural and Scholar Transport","Non-transfer item","Current","Current payments","Goods and services","Operating payments","Operating payments","Community development","Community development","NAT",0,1,0,0,0,0,12,0,0,0,0,null,null,null,null,null,null,null,null,null,null,null,null,null,null,null,null,null,null,null,null,null,null,null,null,null,null,null,null,null,null,null,null,null,null,{"$f":"Dataset[[#This Row],[2025/26 From - Spending review Topic 1]]+Dataset[[#This Row],[2025/26 From - Spending review Topic 2]]+Dataset[[#This Row],[2025/26 From - Spending review Topic 3]]+Dataset[[#This Row],[2025/26 From - Spending review Topic 4]]+Dataset[[#This Row],[2025/26 From - Other reallocations]]","v":0},{"$f":"Dataset[[#This Row],[2026/27 From - Spending review Topic 1]]+Dataset[[#This Row],[2026/27 From - Spending review Topic 2]]+Dataset[[#This Row],[2026/27 From - Spending review Topic 3]]+Dataset[[#This Row],[2026/27 From - Spending review Topic 4]]+Dataset[[#This Row],[2026/27 From - Other reallocations]]","v":0},{"$f":"Dataset[[#This Row],[2027/28 From - Spending review Topic 1]]+Dataset[[#This Row],[2027/28 From - Spending review Topic 2]]+Dataset[[#This Row],[2027/28 From - Spending review Topic 3]]+Dataset[[#This Row],[2027/28 From - Spending review Topic 4]]+Dataset[[#This Row],[2027/28 From - Other reallocations]]","v":0},{"$f":"Dataset[[#This Row],[2025/26 To - Spending review Topic 1]]+Dataset[[#This Row],[2025/26 To - Spending review Topic 2]]+Dataset[[#This Row],[2025/26 To - Spending review Topic 3]]+Dataset[[#This Row],[2025/26 To - Spending review Topic 4]]+Dataset[[#This Row],[2025/26 To - Other reallocations]]","v":0},{"$f":"Dataset[[#This Row],[2026/27 To - Spending review Topic 1]]+Dataset[[#This Row],[2026/27 To - Spending review Topic 2]]+Dataset[[#This Row],[2026/27 To - Spending review Topic 3]]+Dataset[[#This Row],[2026/27 To - Spending review Topic 4]]+Dataset[[#This Row],[2026/27 To - Other reallocations]]","v":0},{"$f":"Dataset[[#This Row],[2027/28 To - Spending review Topic 1]]+Dataset[[#This Row],[2027/28 To - Spending review Topic 2]]+Dataset[[#This Row],[2027/28 To - Spending review Topic 3]]+Dataset[[#This Row],[2027/28 To - Spending review Topic 4]]+Dataset[[#This Row],[2027/28 To - Other reallocations]]","v":0},{"$f":"Dataset[[#This Row],[2025/26 Reduction]]+Dataset[[#This Row],[2025/26 From - Total]]","v":0},{"$f":"Dataset[[#This Row],[2026/27 Reduction]]+Dataset[[#This Row],[2026/27 From - Total]]","v":0},{"$f":"Dataset[[#This Row],[2027/28 Reduction]]+Dataset[[#This Row],[2027/28 From - Total]]","v":0},{"$f":"Dataset[[#This Row],[2024/25 Reduction]]","v":0},{"$f":"SUM(Dataset[[#This Row],[2025/26 Reduction]],Dataset[[#This Row],[2025/26 From - Total]],Dataset[[#This Row],[2025/26 To - Total]])","v":0},{"$f":"SUM(Dataset[[#This Row],[2026/27 Reduction]],Dataset[[#This Row],[2026/27 From - Total]],Dataset[[#This Row],[2026/27 To - Total]])","v":0},{"$f":"SUM(Dataset[[#This Row],[2027/28 Reduction]],Dataset[[#This Row],[2027/28 From - Total]],Dataset[[#This Row],[2027/28 To - Total]])","v":0},{"$f":"Dataset[[#This Row],[2024/25 Baseline]]+Dataset[[#This Row],[2024/25 Total change]]","v":0},{"$f":"Dataset[[#This Row],[2025/26 Baseline]]+Dataset[[#This Row],[2025/26 Total change]]","v":0},{"$f":"Dataset[[#This Row],[2026/27 Baseline]]+Dataset[[#This Row],[2026/27 Total change]]","v":0},{"$f":"Dataset[[#This Row],[2027/28 Baseline]]+Dataset[[#This Row],[2027/28 Total change]]","v":0}]
["NAT|Non-transfer item","40|Other machinery and equipment","2025_26","MTEC2025",40,7,2,53029,1757,"40","07","02","053029","001757","40|07|02|001757","02","03","12","57","61","02|03|12|57|61","National","Transport","Public Transport","Rural and Scholar Transport","Non-transfer item","Capital","Payments for capital assets","Machinery and equipment","Other machinery and equipment","Other machinery and equipment","Community development","Community development","NAT",34,0,31,0,0,0,4,0,0,0,0,null,null,null,null,null,null,null,null,null,null,null,null,null,null,null,null,null,null,null,null,null,null,null,null,null,null,null,null,null,null,null,null,null,null,{"$f":"Dataset[[#This Row],[2025/26 From - Spending review Topic 1]]+Dataset[[#This Row],[2025/26 From - Spending review Topic 2]]+Dataset[[#This Row],[2025/26 From - Spending review Topic 3]]+Dataset[[#This Row],[2025/26 From - Spending review Topic 4]]+Dataset[[#This Row],[2025/26 From - Other reallocations]]","v":0},{"$f":"Dataset[[#This Row],[2026/27 From - Spending review Topic 1]]+Dataset[[#This Row],[2026/27 From - Spending review Topic 2]]+Dataset[[#This Row],[2026/27 From - Spending review Topic 3]]+Dataset[[#This Row],[2026/27 From - Spending review Topic 4]]+Dataset[[#This Row],[2026/27 From - Other reallocations]]","v":0},{"$f":"Dataset[[#This Row],[2027/28 From - Spending review Topic 1]]+Dataset[[#This Row],[2027/28 From - Spending review Topic 2]]+Dataset[[#This Row],[2027/28 From - Spending review Topic 3]]+Dataset[[#This Row],[2027/28 From - Spending review Topic 4]]+Dataset[[#This Row],[2027/28 From - Other reallocations]]","v":0},{"$f":"Dataset[[#This Row],[2025/26 To - Spending review Topic 1]]+Dataset[[#This Row],[2025/26 To - Spending review Topic 2]]+Dataset[[#This Row],[2025/26 To - Spending review Topic 3]]+Dataset[[#This Row],[2025/26 To - Spending review Topic 4]]+Dataset[[#This Row],[2025/26 To - Other reallocations]]","v":0},{"$f":"Dataset[[#This Row],[2026/27 To - Spending review Topic 1]]+Dataset[[#This Row],[2026/27 To - Spending review Topic 2]]+Dataset[[#This Row],[2026/27 To - Spending review Topic 3]]+Dataset[[#This Row],[2026/27 To - Spending review Topic 4]]+Dataset[[#This Row],[2026/27 To - Other reallocations]]","v":0},{"$f":"Dataset[[#This Row],[2027/28 To - Spending review Topic 1]]+Dataset[[#This Row],[2027/28 To - Spending review Topic 2]]+Dataset[[#This Row],[2027/28 To - Spending review Topic 3]]+Dataset[[#This Row],[2027/28 To - Spending review Topic 4]]+Dataset[[#This Row],[2027/28 To - Other reallocations]]","v":0},{"$f":"Dataset[[#This Row],[2025/26 Reduction]]+Dataset[[#This Row],[2025/26 From - Total]]","v":0},{"$f":"Dataset[[#This Row],[2026/27 Reduction]]+Dataset[[#This Row],[2026/27 From - Total]]","v":0},{"$f":"Dataset[[#This Row],[2027/28 Reduction]]+Dataset[[#This Row],[2027/28 From - Total]]","v":0},{"$f":"Dataset[[#This Row],[2024/25 Reduction]]","v":0},{"$f":"SUM(Dataset[[#This Row],[2025/26 Reduction]],Dataset[[#This Row],[2025/26 From - Total]],Dataset[[#This Row],[2025/26 To - Total]])","v":0},{"$f":"SUM(Dataset[[#This Row],[2026/27 Reduction]],Dataset[[#This Row],[2026/27 From - Total]],Dataset[[#This Row],[2026/27 To - Total]])","v":0},{"$f":"SUM(Dataset[[#This Row],[2027/28 Reduction]],Dataset[[#This Row],[2027/28 From - Total]],Dataset[[#This Row],[2027/28 To - Total]])","v":0},{"$f":"Dataset[[#This Row],[2024/25 Baseline]]+Dataset[[#This Row],[2024/25 Total change]]","v":0},{"$f":"Dataset[[#This Row],[2025/26 Baseline]]+Dataset[[#This Row],[2025/26 Total change]]","v":0},{"$f":"Dataset[[#This Row],[2026/27 Baseline]]+Dataset[[#This Row],[2026/27 Total change]]","v":0},{"$f":"Dataset[[#This Row],[2027/28 Baseline]]+Dataset[[#This Row],[2027/28 Total change]]","v":0}]
["NAT|Non-transfer item","40|Specialised military assets","2025_26","MTEC2025",40,7,2,53031,1759,"40","07","02","053031","001759","40|07|02|001759","02","03","14","59","63","02|03|14|59|63","National","Transport","Public Transport","Rural and Scholar Transport","Non-transfer item","Capital","Payments for capital assets","Specialised military assets","Specialised military assets","Specialised military assets","Community development","Community development","NAT",0,0,0,0,0,0,null,0,0,0,0,null,null,null,null,null,null,null,null,null,null,null,null,null,null,null,null,null,null,null,null,null,null,null,null,null,null,null,null,null,null,null,null,null,null,{"$f":"Dataset[[#This Row],[2025/26 From - Spending review Topic 1]]+Dataset[[#This Row],[2025/26 From - Spending review Topic 2]]+Dataset[[#This Row],[2025/26 From - Spending review Topic 3]]+Dataset[[#This Row],[2025/26 From - Spending review Topic 4]]+Dataset[[#This Row],[2025/26 From - Other reallocations]]","v":0},{"$f":"Dataset[[#This Row],[2026/27 From - Spending review Topic 1]]+Dataset[[#This Row],[2026/27 From - Spending review Topic 2]]+Dataset[[#This Row],[2026/27 From - Spending review Topic 3]]+Dataset[[#This Row],[2026/27 From - Spending review Topic 4]]+Dataset[[#This Row],[2026/27 From - Other reallocations]]","v":0},{"$f":"Dataset[[#This Row],[2027/28 From - Spending review Topic 1]]+Dataset[[#This Row],[2027/28 From - Spending review Topic 2]]+Dataset[[#This Row],[2027/28 From - Spending review Topic 3]]+Dataset[[#This Row],[2027/28 From - Spending review Topic 4]]+Dataset[[#This Row],[2027/28 From - Other reallocations]]","v":0},{"$f":"Dataset[[#This Row],[2025/26 To - Spending review Topic 1]]+Dataset[[#This Row],[2025/26 To - Spending review Topic 2]]+Dataset[[#This Row],[2025/26 To - Spending review Topic 3]]+Dataset[[#This Row],[2025/26 To - Spending review Topic 4]]+Dataset[[#This Row],[2025/26 To - Other reallocations]]","v":0},{"$f":"Dataset[[#This Row],[2026/27 To - Spending review Topic 1]]+Dataset[[#This Row],[2026/27 To - Spending review Topic 2]]+Dataset[[#This Row],[2026/27 To - Spending review Topic 3]]+Dataset[[#This Row],[2026/27 To - Spending review Topic 4]]+Dataset[[#This Row],[2026/27 To - Other reallocations]]","v":0},{"$f":"Dataset[[#This Row],[2027/28 To - Spending review Topic 1]]+Dataset[[#This Row],[2027/28 To - Spending review Topic 2]]+Dataset[[#This Row],[2027/28 To - Spending review Topic 3]]+Dataset[[#This Row],[2027/28 To - Spending review Topic 4]]+Dataset[[#This Row],[2027/28 To - Other reallocations]]","v":0},{"$f":"Dataset[[#This Row],[2025/26 Reduction]]+Dataset[[#This Row],[2025/26 From - Total]]","v":0},{"$f":"Dataset[[#This Row],[2026/27 Reduction]]+Dataset[[#This Row],[2026/27 From - Total]]","v":0},{"$f":"Dataset[[#This Row],[2027/28 Reduction]]+Dataset[[#This Row],[2027/28 From - Total]]","v":0},{"$f":"Dataset[[#This Row],[2024/25 Reduction]]","v":0},{"$f":"SUM(Dataset[[#This Row],[2025/26 Reduction]],Dataset[[#This Row],[2025/26 From - Total]],Dataset[[#This Row],[2025/26 To - Total]])","v":0},{"$f":"SUM(Dataset[[#This Row],[2026/27 Reduction]],Dataset[[#This Row],[2026/27 From - Total]],Dataset[[#This Row],[2026/27 To - Total]])","v":0},{"$f":"SUM(Dataset[[#This Row],[2027/28 Reduction]],Dataset[[#This Row],[2027/28 From - Total]],Dataset[[#This Row],[2027/28 To - Total]])","v":0},{"$f":"Dataset[[#This Row],[2024/25 Baseline]]+Dataset[[#This Row],[2024/25 Total change]]","v":0},{"$f":"Dataset[[#This Row],[2025/26 Baseline]]+Dataset[[#This Row],[2025/26 Total change]]","v":0},{"$f":"Dataset[[#This Row],[2026/27 Baseline]]+Dataset[[#This Row],[2026/27 Total change]]","v":0},{"$f":"Dataset[[#This Row],[2027/28 Baseline]]+Dataset[[#This Row],[2027/28 Total change]]","v":0}]
["NAT|Non-transfer item","40|Audit costs: External","2025_26","MTEC2025",40,7,3,53041,1769,"40","07","03","053041","001769","40|07|03|001769","01","01","02","06","06","01|01|02|06|06","National","Transport","Public Transport","Public Transport Industry Development","Non-transfer item","Current","Current payments","Goods and services","Audit costs: External","Audit costs: External","Community development","Community development","NAT",0,0,0,0,0,0,null,0,0,0,0,null,null,null,null,null,null,null,null,null,null,null,null,null,null,null,null,null,null,null,null,null,null,null,null,null,null,null,null,null,null,null,null,null,null,{"$f":"Dataset[[#This Row],[2025/26 From - Spending review Topic 1]]+Dataset[[#This Row],[2025/26 From - Spending review Topic 2]]+Dataset[[#This Row],[2025/26 From - Spending review Topic 3]]+Dataset[[#This Row],[2025/26 From - Spending review Topic 4]]+Dataset[[#This Row],[2025/26 From - Other reallocations]]","v":0},{"$f":"Dataset[[#This Row],[2026/27 From - Spending review Topic 1]]+Dataset[[#This Row],[2026/27 From - Spending review Topic 2]]+Dataset[[#This Row],[2026/27 From - Spending review Topic 3]]+Dataset[[#This Row],[2026/27 From - Spending review Topic 4]]+Dataset[[#This Row],[2026/27 From - Other reallocations]]","v":0},{"$f":"Dataset[[#This Row],[2027/28 From - Spending review Topic 1]]+Dataset[[#This Row],[2027/28 From - Spending review Topic 2]]+Dataset[[#This Row],[2027/28 From - Spending review Topic 3]]+Dataset[[#This Row],[2027/28 From - Spending review Topic 4]]+Dataset[[#This Row],[2027/28 From - Other reallocations]]","v":0},{"$f":"Dataset[[#This Row],[2025/26 To - Spending review Topic 1]]+Dataset[[#This Row],[2025/26 To - Spending review Topic 2]]+Dataset[[#This Row],[2025/26 To - Spending review Topic 3]]+Dataset[[#This Row],[2025/26 To - Spending review Topic 4]]+Dataset[[#This Row],[2025/26 To - Other reallocations]]","v":0},{"$f":"Dataset[[#This Row],[2026/27 To - Spending review Topic 1]]+Dataset[[#This Row],[2026/27 To - Spending review Topic 2]]+Dataset[[#This Row],[2026/27 To - Spending review Topic 3]]+Dataset[[#This Row],[2026/27 To - Spending review Topic 4]]+Dataset[[#This Row],[2026/27 To - Other reallocations]]","v":0},{"$f":"Dataset[[#This Row],[2027/28 To - Spending review Topic 1]]+Dataset[[#This Row],[2027/28 To - Spending review Topic 2]]+Dataset[[#This Row],[2027/28 To - Spending review Topic 3]]+Dataset[[#This Row],[2027/28 To - Spending review Topic 4]]+Dataset[[#This Row],[2027/28 To - Other reallocations]]","v":0},{"$f":"Dataset[[#This Row],[2025/26 Reduction]]+Dataset[[#This Row],[2025/26 From - Total]]","v":0},{"$f":"Dataset[[#This Row],[2026/27 Reduction]]+Dataset[[#This Row],[2026/27 From - Total]]","v":0},{"$f":"Dataset[[#This Row],[2027/28 Reduction]]+Dataset[[#This Row],[2027/28 From - Total]]","v":0},{"$f":"Dataset[[#This Row],[2024/25 Reduction]]","v":0},{"$f":"SUM(Dataset[[#This Row],[2025/26 Reduction]],Dataset[[#This Row],[2025/26 From - Total]],Dataset[[#This Row],[2025/26 To - Total]])","v":0},{"$f":"SUM(Dataset[[#This Row],[2026/27 Reduction]],Dataset[[#This Row],[2026/27 From - Total]],Dataset[[#This Row],[2026/27 To - Total]])","v":0},{"$f":"SUM(Dataset[[#This Row],[2027/28 Reduction]],Dataset[[#This Row],[2027/28 From - Total]],Dataset[[#This Row],[2027/28 To - Total]])","v":0},{"$f":"Dataset[[#This Row],[2024/25 Baseline]]+Dataset[[#This Row],[2024/25 Total change]]","v":0},{"$f":"Dataset[[#This Row],[2025/26 Baseline]]+Dataset[[#This Row],[2025/26 Total change]]","v":0},{"$f":"Dataset[[#This Row],[2026/27 Baseline]]+Dataset[[#This Row],[2026/27 Total change]]","v":0},{"$f":"Dataset[[#This Row],[2027/28 Baseline]]+Dataset[[#This Row],[2027/28 Total change]]","v":0}]
["NAT|Non-transfer item","40|Legal services (G&S)","2025_26","MTEC2025",40,7,3,53049,1777,"40","07","03","053049","001777","40|07|03|001777","01","01","02","14","14","01|01|02|14|14","National","Transport","Public Transport","Public Transport Industry Development","Non-transfer item","Current","Current payments","Goods and services","Legal services (G&S)","Legal services (G&S)","Community development","Community development","NAT",0,0,0,0,0,0,null,0,0,0,0,null,null,null,null,null,null,null,null,null,null,null,null,null,null,null,null,null,null,null,null,null,null,null,null,null,null,null,null,null,null,null,null,null,null,{"$f":"Dataset[[#This Row],[2025/26 From - Spending review Topic 1]]+Dataset[[#This Row],[2025/26 From - Spending review Topic 2]]+Dataset[[#This Row],[2025/26 From - Spending review Topic 3]]+Dataset[[#This Row],[2025/26 From - Spending review Topic 4]]+Dataset[[#This Row],[2025/26 From - Other reallocations]]","v":0},{"$f":"Dataset[[#This Row],[2026/27 From - Spending review Topic 1]]+Dataset[[#This Row],[2026/27 From - Spending review Topic 2]]+Dataset[[#This Row],[2026/27 From - Spending review Topic 3]]+Dataset[[#This Row],[2026/27 From - Spending review Topic 4]]+Dataset[[#This Row],[2026/27 From - Other reallocations]]","v":0},{"$f":"Dataset[[#This Row],[2027/28 From - Spending review Topic 1]]+Dataset[[#This Row],[2027/28 From - Spending review Topic 2]]+Dataset[[#This Row],[2027/28 From - Spending review Topic 3]]+Dataset[[#This Row],[2027/28 From - Spending review Topic 4]]+Dataset[[#This Row],[2027/28 From - Other reallocations]]","v":0},{"$f":"Dataset[[#This Row],[2025/26 To - Spending review Topic 1]]+Dataset[[#This Row],[2025/26 To - Spending review Topic 2]]+Dataset[[#This Row],[2025/26 To - Spending review Topic 3]]+Dataset[[#This Row],[2025/26 To - Spending review Topic 4]]+Dataset[[#This Row],[2025/26 To - Other reallocations]]","v":0},{"$f":"Dataset[[#This Row],[2026/27 To - Spending review Topic 1]]+Dataset[[#This Row],[2026/27 To - Spending review Topic 2]]+Dataset[[#This Row],[2026/27 To - Spending review Topic 3]]+Dataset[[#This Row],[2026/27 To - Spending review Topic 4]]+Dataset[[#This Row],[2026/27 To - Other reallocations]]","v":0},{"$f":"Dataset[[#This Row],[2027/28 To - Spending review Topic 1]]+Dataset[[#This Row],[2027/28 To - Spending review Topic 2]]+Dataset[[#This Row],[2027/28 To - Spending review Topic 3]]+Dataset[[#This Row],[2027/28 To - Spending review Topic 4]]+Dataset[[#This Row],[2027/28 To - Other reallocations]]","v":0},{"$f":"Dataset[[#This Row],[2025/26 Reduction]]+Dataset[[#This Row],[2025/26 From - Total]]","v":0},{"$f":"Dataset[[#This Row],[2026/27 Reduction]]+Dataset[[#This Row],[2026/27 From - Total]]","v":0},{"$f":"Dataset[[#This Row],[2027/28 Reduction]]+Dataset[[#This Row],[2027/28 From - Total]]","v":0},{"$f":"Dataset[[#This Row],[2024/25 Reduction]]","v":0},{"$f":"SUM(Dataset[[#This Row],[2025/26 Reduction]],Dataset[[#This Row],[2025/26 From - Total]],Dataset[[#This Row],[2025/26 To - Total]])","v":0},{"$f":"SUM(Dataset[[#This Row],[2026/27 Reduction]],Dataset[[#This Row],[2026/27 From - Total]],Dataset[[#This Row],[2026/27 To - Total]])","v":0},{"$f":"SUM(Dataset[[#This Row],[2027/28 Reduction]],Dataset[[#This Row],[2027/28 From - Total]],Dataset[[#This Row],[2027/28 To - Total]])","v":0},{"$f":"Dataset[[#This Row],[2024/25 Baseline]]+Dataset[[#This Row],[2024/25 Total change]]","v":0},{"$f":"Dataset[[#This Row],[2025/26 Baseline]]+Dataset[[#This Row],[2025/26 Total change]]","v":0},{"$f":"Dataset[[#This Row],[2026/27 Baseline]]+Dataset[[#This Row],[2026/27 Total change]]","v":0},{"$f":"Dataset[[#This Row],[2027/28 Baseline]]+Dataset[[#This Row],[2027/28 Total change]]","v":0}]
["NAT|Non-transfer item","40|Fleet services (including government motor transport)","2025_26","MTEC2025",40,7,3,53054,1782,"40","07","03","053054","001782","40|07|03|001782","01","01","02","19","19","01|01|02|19|19","National","Transport","Public Transport","Public Transport Industry Development","Non-transfer item","Current","Current payments","Goods and services","Fleet services (including government motor transport)","Fleet services (including government motor transport)","Community development","Community development","NAT",0,0,0,0,0,0,null,0,0,0,0,null,null,null,null,null,null,null,null,null,null,null,null,null,null,null,null,null,null,null,null,null,null,null,null,null,null,null,null,null,null,null,null,null,null,{"$f":"Dataset[[#This Row],[2025/26 From - Spending review Topic 1]]+Dataset[[#This Row],[2025/26 From - Spending review Topic 2]]+Dataset[[#This Row],[2025/26 From - Spending review Topic 3]]+Dataset[[#This Row],[2025/26 From - Spending review Topic 4]]+Dataset[[#This Row],[2025/26 From - Other reallocations]]","v":0},{"$f":"Dataset[[#This Row],[2026/27 From - Spending review Topic 1]]+Dataset[[#This Row],[2026/27 From - Spending review Topic 2]]+Dataset[[#This Row],[2026/27 From - Spending review Topic 3]]+Dataset[[#This Row],[2026/27 From - Spending review Topic 4]]+Dataset[[#This Row],[2026/27 From - Other reallocations]]","v":0},{"$f":"Dataset[[#This Row],[2027/28 From - Spending review Topic 1]]+Dataset[[#This Row],[2027/28 From - Spending review Topic 2]]+Dataset[[#This Row],[2027/28 From - Spending review Topic 3]]+Dataset[[#This Row],[2027/28 From - Spending review Topic 4]]+Dataset[[#This Row],[2027/28 From - Other reallocations]]","v":0},{"$f":"Dataset[[#This Row],[2025/26 To - Spending review Topic 1]]+Dataset[[#This Row],[2025/26 To - Spending review Topic 2]]+Dataset[[#This Row],[2025/26 To - Spending review Topic 3]]+Dataset[[#This Row],[2025/26 To - Spending review Topic 4]]+Dataset[[#This Row],[2025/26 To - Other reallocations]]","v":0},{"$f":"Dataset[[#This Row],[2026/27 To - Spending review Topic 1]]+Dataset[[#This Row],[2026/27 To - Spending review Topic 2]]+Dataset[[#This Row],[2026/27 To - Spending review Topic 3]]+Dataset[[#This Row],[2026/27 To - Spending review Topic 4]]+Dataset[[#This Row],[2026/27 To - Other reallocations]]","v":0},{"$f":"Dataset[[#This Row],[2027/28 To - Spending review Topic 1]]+Dataset[[#This Row],[2027/28 To - Spending review Topic 2]]+Dataset[[#This Row],[2027/28 To - Spending review Topic 3]]+Dataset[[#This Row],[2027/28 To - Spending review Topic 4]]+Dataset[[#This Row],[2027/28 To - Other reallocations]]","v":0},{"$f":"Dataset[[#This Row],[2025/26 Reduction]]+Dataset[[#This Row],[2025/26 From - Total]]","v":0},{"$f":"Dataset[[#This Row],[2026/27 Reduction]]+Dataset[[#This Row],[2026/27 From - Total]]","v":0},{"$f":"Dataset[[#This Row],[2027/28 Reduction]]+Dataset[[#This Row],[2027/28 From - Total]]","v":0},{"$f":"Dataset[[#This Row],[2024/25 Reduction]]","v":0},{"$f":"SUM(Dataset[[#This Row],[2025/26 Reduction]],Dataset[[#This Row],[2025/26 From - Total]],Dataset[[#This Row],[2025/26 To - Total]])","v":0},{"$f":"SUM(Dataset[[#This Row],[2026/27 Reduction]],Dataset[[#This Row],[2026/27 From - Total]],Dataset[[#This Row],[2026/27 To - Total]])","v":0},{"$f":"SUM(Dataset[[#This Row],[2027/28 Reduction]],Dataset[[#This Row],[2027/28 From - Total]],Dataset[[#This Row],[2027/28 To - Total]])","v":0},{"$f":"Dataset[[#This Row],[2024/25 Baseline]]+Dataset[[#This Row],[2024/25 Total change]]","v":0},{"$f":"Dataset[[#This Row],[2025/26 Baseline]]+Dataset[[#This Row],[2025/26 Total change]]","v":0},{"$f":"Dataset[[#This Row],[2026/27 Baseline]]+Dataset[[#This Row],[2026/27 Total change]]","v":0},{"$f":"Dataset[[#This Row],[2027/28 Baseline]]+Dataset[[#This Row],[2027/28 Total change]]","v":0}]
["NAT|Non-transfer item","40|Inventory: Medical supplies","2025_26","MTEC2025",40,7,3,53062,1790,"40","07","03","053062","001790","40|07|03|001790","01","01","02","27","27","01|01|02|27|27","National","Transport","Public Transport","Public Transport Industry Development","Non-transfer item","Current","Current payments","Goods and services","Inventory: Medical supplies","Inventory: Medical supplies","Community development","Community development","NAT",0,0,0,0,0,0,null,0,0,0,0,null,null,null,null,null,null,null,null,null,null,null,null,null,null,null,null,null,null,null,null,null,null,null,null,null,null,null,null,null,null,null,null,null,null,{"$f":"Dataset[[#This Row],[2025/26 From - Spending review Topic 1]]+Dataset[[#This Row],[2025/26 From - Spending review Topic 2]]+Dataset[[#This Row],[2025/26 From - Spending review Topic 3]]+Dataset[[#This Row],[2025/26 From - Spending review Topic 4]]+Dataset[[#This Row],[2025/26 From - Other reallocations]]","v":0},{"$f":"Dataset[[#This Row],[2026/27 From - Spending review Topic 1]]+Dataset[[#This Row],[2026/27 From - Spending review Topic 2]]+Dataset[[#This Row],[2026/27 From - Spending review Topic 3]]+Dataset[[#This Row],[2026/27 From - Spending review Topic 4]]+Dataset[[#This Row],[2026/27 From - Other reallocations]]","v":0},{"$f":"Dataset[[#This Row],[2027/28 From - Spending review Topic 1]]+Dataset[[#This Row],[2027/28 From - Spending review Topic 2]]+Dataset[[#This Row],[2027/28 From - Spending review Topic 3]]+Dataset[[#This Row],[2027/28 From - Spending review Topic 4]]+Dataset[[#This Row],[2027/28 From - Other reallocations]]","v":0},{"$f":"Dataset[[#This Row],[2025/26 To - Spending review Topic 1]]+Dataset[[#This Row],[2025/26 To - Spending review Topic 2]]+Dataset[[#This Row],[2025/26 To - Spending review Topic 3]]+Dataset[[#This Row],[2025/26 To - Spending review Topic 4]]+Dataset[[#This Row],[2025/26 To - Other reallocations]]","v":0},{"$f":"Dataset[[#This Row],[2026/27 To - Spending review Topic 1]]+Dataset[[#This Row],[2026/27 To - Spending review Topic 2]]+Dataset[[#This Row],[2026/27 To - Spending review Topic 3]]+Dataset[[#This Row],[2026/27 To - Spending review Topic 4]]+Dataset[[#This Row],[2026/27 To - Other reallocations]]","v":0},{"$f":"Dataset[[#This Row],[2027/28 To - Spending review Topic 1]]+Dataset[[#This Row],[2027/28 To - Spending review Topic 2]]+Dataset[[#This Row],[2027/28 To - Spending review Topic 3]]+Dataset[[#This Row],[2027/28 To - Spending review Topic 4]]+Dataset[[#This Row],[2027/28 To - Other reallocations]]","v":0},{"$f":"Dataset[[#This Row],[2025/26 Reduction]]+Dataset[[#This Row],[2025/26 From - Total]]","v":0},{"$f":"Dataset[[#This Row],[2026/27 Reduction]]+Dataset[[#This Row],[2026/27 From - Total]]","v":0},{"$f":"Dataset[[#This Row],[2027/28 Reduction]]+Dataset[[#This Row],[2027/28 From - Total]]","v":0},{"$f":"Dataset[[#This Row],[2024/25 Reduction]]","v":0},{"$f":"SUM(Dataset[[#This Row],[2025/26 Reduction]],Dataset[[#This Row],[2025/26 From - Total]],Dataset[[#This Row],[2025/26 To - Total]])","v":0},{"$f":"SUM(Dataset[[#This Row],[2026/27 Reduction]],Dataset[[#This Row],[2026/27 From - Total]],Dataset[[#This Row],[2026/27 To - Total]])","v":0},{"$f":"SUM(Dataset[[#This Row],[2027/28 Reduction]],Dataset[[#This Row],[2027/28 From - Total]],Dataset[[#This Row],[2027/28 To - Total]])","v":0},{"$f":"Dataset[[#This Row],[2024/25 Baseline]]+Dataset[[#This Row],[2024/25 Total change]]","v":0},{"$f":"Dataset[[#This Row],[2025/26 Baseline]]+Dataset[[#This Row],[2025/26 Total change]]","v":0},{"$f":"Dataset[[#This Row],[2026/27 Baseline]]+Dataset[[#This Row],[2026/27 Total change]]","v":0},{"$f":"Dataset[[#This Row],[2027/28 Baseline]]+Dataset[[#This Row],[2027/28 Total change]]","v":0}]
["NAT|Non-transfer item","40|Property payments","2025_26","MTEC2025",40,7,3,53070,1798,"40","07","03","053070","001798","40|07|03|001798","01","01","02","35","35","01|01|02|35|35","National","Transport","Public Transport","Public Transport Industry Development","Non-transfer item","Current","Current payments","Goods and services","Property payments","Property payments","Community development","Community development","NAT",0,0,0,0,0,0,null,0,0,0,0,null,null,null,null,null,null,null,null,null,null,null,null,null,null,null,null,null,null,null,null,null,null,null,null,null,null,null,null,null,null,null,null,null,null,{"$f":"Dataset[[#This Row],[2025/26 From - Spending review Topic 1]]+Dataset[[#This Row],[2025/26 From - Spending review Topic 2]]+Dataset[[#This Row],[2025/26 From - Spending review Topic 3]]+Dataset[[#This Row],[2025/26 From - Spending review Topic 4]]+Dataset[[#This Row],[2025/26 From - Other reallocations]]","v":0},{"$f":"Dataset[[#This Row],[2026/27 From - Spending review Topic 1]]+Dataset[[#This Row],[2026/27 From - Spending review Topic 2]]+Dataset[[#This Row],[2026/27 From - Spending review Topic 3]]+Dataset[[#This Row],[2026/27 From - Spending review Topic 4]]+Dataset[[#This Row],[2026/27 From - Other reallocations]]","v":0},{"$f":"Dataset[[#This Row],[2027/28 From - Spending review Topic 1]]+Dataset[[#This Row],[2027/28 From - Spending review Topic 2]]+Dataset[[#This Row],[2027/28 From - Spending review Topic 3]]+Dataset[[#This Row],[2027/28 From - Spending review Topic 4]]+Dataset[[#This Row],[2027/28 From - Other reallocations]]","v":0},{"$f":"Dataset[[#This Row],[2025/26 To - Spending review Topic 1]]+Dataset[[#This Row],[2025/26 To - Spending review Topic 2]]+Dataset[[#This Row],[2025/26 To - Spending review Topic 3]]+Dataset[[#This Row],[2025/26 To - Spending review Topic 4]]+Dataset[[#This Row],[2025/26 To - Other reallocations]]","v":0},{"$f":"Dataset[[#This Row],[2026/27 To - Spending review Topic 1]]+Dataset[[#This Row],[2026/27 To - Spending review Topic 2]]+Dataset[[#This Row],[2026/27 To - Spending review Topic 3]]+Dataset[[#This Row],[2026/27 To - Spending review Topic 4]]+Dataset[[#This Row],[2026/27 To - Other reallocations]]","v":0},{"$f":"Dataset[[#This Row],[2027/28 To - Spending review Topic 1]]+Dataset[[#This Row],[2027/28 To - Spending review Topic 2]]+Dataset[[#This Row],[2027/28 To - Spending review Topic 3]]+Dataset[[#This Row],[2027/28 To - Spending review Topic 4]]+Dataset[[#This Row],[2027/28 To - Other reallocations]]","v":0},{"$f":"Dataset[[#This Row],[2025/26 Reduction]]+Dataset[[#This Row],[2025/26 From - Total]]","v":0},{"$f":"Dataset[[#This Row],[2026/27 Reduction]]+Dataset[[#This Row],[2026/27 From - Total]]","v":0},{"$f":"Dataset[[#This Row],[2027/28 Reduction]]+Dataset[[#This Row],[2027/28 From - Total]]","v":0},{"$f":"Dataset[[#This Row],[2024/25 Reduction]]","v":0},{"$f":"SUM(Dataset[[#This Row],[2025/26 Reduction]],Dataset[[#This Row],[2025/26 From - Total]],Dataset[[#This Row],[2025/26 To - Total]])","v":0},{"$f":"SUM(Dataset[[#This Row],[2026/27 Reduction]],Dataset[[#This Row],[2026/27 From - Total]],Dataset[[#This Row],[2026/27 To - Total]])","v":0},{"$f":"SUM(Dataset[[#This Row],[2027/28 Reduction]],Dataset[[#This Row],[2027/28 From - Total]],Dataset[[#This Row],[2027/28 To - Total]])","v":0},{"$f":"Dataset[[#This Row],[2024/25 Baseline]]+Dataset[[#This Row],[2024/25 Total change]]","v":0},{"$f":"Dataset[[#This Row],[2025/26 Baseline]]+Dataset[[#This Row],[2025/26 Total change]]","v":0},{"$f":"Dataset[[#This Row],[2026/27 Baseline]]+Dataset[[#This Row],[2026/27 Total change]]","v":0},{"$f":"Dataset[[#This Row],[2027/28 Baseline]]+Dataset[[#This Row],[2027/28 Total change]]","v":0}]
["NAT|Non-transfer item","40|Venues and facilities","2025_26","MTEC2025",40,7,3,53075,1803,"40","07","03","053075","001803","40|07|03|001803","01","01","02","40","40","01|01|02|40|40","National","Transport","Public Transport","Public Transport Industry Development","Non-transfer item","Current","Current payments","Goods and services","Venues and facilities","Venues and facilities","Community development","Community development","NAT",2761,582,64,0,0,0,613,0,0,0,0,null,null,null,null,null,null,null,null,null,null,null,null,null,null,null,null,null,null,null,null,null,null,null,null,null,null,null,null,null,null,null,null,null,null,{"$f":"Dataset[[#This Row],[2025/26 From - Spending review Topic 1]]+Dataset[[#This Row],[2025/26 From - Spending review Topic 2]]+Dataset[[#This Row],[2025/26 From - Spending review Topic 3]]+Dataset[[#This Row],[2025/26 From - Spending review Topic 4]]+Dataset[[#This Row],[2025/26 From - Other reallocations]]","v":0},{"$f":"Dataset[[#This Row],[2026/27 From - Spending review Topic 1]]+Dataset[[#This Row],[2026/27 From - Spending review Topic 2]]+Dataset[[#This Row],[2026/27 From - Spending review Topic 3]]+Dataset[[#This Row],[2026/27 From - Spending review Topic 4]]+Dataset[[#This Row],[2026/27 From - Other reallocations]]","v":0},{"$f":"Dataset[[#This Row],[2027/28 From - Spending review Topic 1]]+Dataset[[#This Row],[2027/28 From - Spending review Topic 2]]+Dataset[[#This Row],[2027/28 From - Spending review Topic 3]]+Dataset[[#This Row],[2027/28 From - Spending review Topic 4]]+Dataset[[#This Row],[2027/28 From - Other reallocations]]","v":0},{"$f":"Dataset[[#This Row],[2025/26 To - Spending review Topic 1]]+Dataset[[#This Row],[2025/26 To - Spending review Topic 2]]+Dataset[[#This Row],[2025/26 To - Spending review Topic 3]]+Dataset[[#This Row],[2025/26 To - Spending review Topic 4]]+Dataset[[#This Row],[2025/26 To - Other reallocations]]","v":0},{"$f":"Dataset[[#This Row],[2026/27 To - Spending review Topic 1]]+Dataset[[#This Row],[2026/27 To - Spending review Topic 2]]+Dataset[[#This Row],[2026/27 To - Spending review Topic 3]]+Dataset[[#This Row],[2026/27 To - Spending review Topic 4]]+Dataset[[#This Row],[2026/27 To - Other reallocations]]","v":0},{"$f":"Dataset[[#This Row],[2027/28 To - Spending review Topic 1]]+Dataset[[#This Row],[2027/28 To - Spending review Topic 2]]+Dataset[[#This Row],[2027/28 To - Spending review Topic 3]]+Dataset[[#This Row],[2027/28 To - Spending review Topic 4]]+Dataset[[#This Row],[2027/28 To - Other reallocations]]","v":0},{"$f":"Dataset[[#This Row],[2025/26 Reduction]]+Dataset[[#This Row],[2025/26 From - Total]]","v":0},{"$f":"Dataset[[#This Row],[2026/27 Reduction]]+Dataset[[#This Row],[2026/27 From - Total]]","v":0},{"$f":"Dataset[[#This Row],[2027/28 Reduction]]+Dataset[[#This Row],[2027/28 From - Total]]","v":0},{"$f":"Dataset[[#This Row],[2024/25 Reduction]]","v":0},{"$f":"SUM(Dataset[[#This Row],[2025/26 Reduction]],Dataset[[#This Row],[2025/26 From - Total]],Dataset[[#This Row],[2025/26 To - Total]])","v":0},{"$f":"SUM(Dataset[[#This Row],[2026/27 Reduction]],Dataset[[#This Row],[2026/27 From - Total]],Dataset[[#This Row],[2026/27 To - Total]])","v":0},{"$f":"SUM(Dataset[[#This Row],[2027/28 Reduction]],Dataset[[#This Row],[2027/28 From - Total]],Dataset[[#This Row],[2027/28 To - Total]])","v":0},{"$f":"Dataset[[#This Row],[2024/25 Baseline]]+Dataset[[#This Row],[2024/25 Total change]]","v":0},{"$f":"Dataset[[#This Row],[2025/26 Baseline]]+Dataset[[#This Row],[2025/26 Total change]]","v":0},{"$f":"Dataset[[#This Row],[2026/27 Baseline]]+Dataset[[#This Row],[2026/27 Total change]]","v":0},{"$f":"Dataset[[#This Row],[2027/28 Baseline]]+Dataset[[#This Row],[2027/28 Total change]]","v":0}]
["NAT|Non-transfer item","40|Heritage assets","2025_26","MTEC2025",40,7,3,53083,1811,"40","07","03","053083","001811","40|07|03|001811","02","03","13","58","62","02|03|13|58|62","National","Transport","Public Transport","Public Transport Industry Development","Non-transfer item","Capital","Payments for capital assets","Heritage assets","Heritage assets","Heritage assets","Community development","Community development","NAT",0,0,0,0,0,0,null,0,0,0,0,null,null,null,null,null,null,null,null,null,null,null,null,null,null,null,null,null,null,null,null,null,null,null,null,null,null,null,null,null,null,null,null,null,null,{"$f":"Dataset[[#This Row],[2025/26 From - Spending review Topic 1]]+Dataset[[#This Row],[2025/26 From - Spending review Topic 2]]+Dataset[[#This Row],[2025/26 From - Spending review Topic 3]]+Dataset[[#This Row],[2025/26 From - Spending review Topic 4]]+Dataset[[#This Row],[2025/26 From - Other reallocations]]","v":0},{"$f":"Dataset[[#This Row],[2026/27 From - Spending review Topic 1]]+Dataset[[#This Row],[2026/27 From - Spending review Topic 2]]+Dataset[[#This Row],[2026/27 From - Spending review Topic 3]]+Dataset[[#This Row],[2026/27 From - Spending review Topic 4]]+Dataset[[#This Row],[2026/27 From - Other reallocations]]","v":0},{"$f":"Dataset[[#This Row],[2027/28 From - Spending review Topic 1]]+Dataset[[#This Row],[2027/28 From - Spending review Topic 2]]+Dataset[[#This Row],[2027/28 From - Spending review Topic 3]]+Dataset[[#This Row],[2027/28 From - Spending review Topic 4]]+Dataset[[#This Row],[2027/28 From - Other reallocations]]","v":0},{"$f":"Dataset[[#This Row],[2025/26 To - Spending review Topic 1]]+Dataset[[#This Row],[2025/26 To - Spending review Topic 2]]+Dataset[[#This Row],[2025/26 To - Spending review Topic 3]]+Dataset[[#This Row],[2025/26 To - Spending review Topic 4]]+Dataset[[#This Row],[2025/26 To - Other reallocations]]","v":0},{"$f":"Dataset[[#This Row],[2026/27 To - Spending review Topic 1]]+Dataset[[#This Row],[2026/27 To - Spending review Topic 2]]+Dataset[[#This Row],[2026/27 To - Spending review Topic 3]]+Dataset[[#This Row],[2026/27 To - Spending review Topic 4]]+Dataset[[#This Row],[2026/27 To - Other reallocations]]","v":0},{"$f":"Dataset[[#This Row],[2027/28 To - Spending review Topic 1]]+Dataset[[#This Row],[2027/28 To - Spending review Topic 2]]+Dataset[[#This Row],[2027/28 To - Spending review Topic 3]]+Dataset[[#This Row],[2027/28 To - Spending review Topic 4]]+Dataset[[#This Row],[2027/28 To - Other reallocations]]","v":0},{"$f":"Dataset[[#This Row],[2025/26 Reduction]]+Dataset[[#This Row],[2025/26 From - Total]]","v":0},{"$f":"Dataset[[#This Row],[2026/27 Reduction]]+Dataset[[#This Row],[2026/27 From - Total]]","v":0},{"$f":"Dataset[[#This Row],[2027/28 Reduction]]+Dataset[[#This Row],[2027/28 From - Total]]","v":0},{"$f":"Dataset[[#This Row],[2024/25 Reduction]]","v":0},{"$f":"SUM(Dataset[[#This Row],[2025/26 Reduction]],Dataset[[#This Row],[2025/26 From - Total]],Dataset[[#This Row],[2025/26 To - Total]])","v":0},{"$f":"SUM(Dataset[[#This Row],[2026/27 Reduction]],Dataset[[#This Row],[2026/27 From - Total]],Dataset[[#This Row],[2026/27 To - Total]])","v":0},{"$f":"SUM(Dataset[[#This Row],[2027/28 Reduction]],Dataset[[#This Row],[2027/28 From - Total]],Dataset[[#This Row],[2027/28 To - Total]])","v":0},{"$f":"Dataset[[#This Row],[2024/25 Baseline]]+Dataset[[#This Row],[2024/25 Total change]]","v":0},{"$f":"Dataset[[#This Row],[2025/26 Baseline]]+Dataset[[#This Row],[2025/26 Total change]]","v":0},{"$f":"Dataset[[#This Row],[2026/27 Baseline]]+Dataset[[#This Row],[2026/27 Total change]]","v":0},{"$f":"Dataset[[#This Row],[2027/28 Baseline]]+Dataset[[#This Row],[2027/28 Total change]]","v":0}]
["NAT|Thefts and losses","40|Payments for financial assets","2025_26","MTEC2025",40,7,3,53088,1816,"40","07","03","053088","001816","40|07|03|001816","03","04","18","63","67","03|04|18|63|67","National","Transport","Public Transport","Public Transport Industry Development","Thefts and losses","Payments for financial assets","Payments for financial assets","Payments for financial assets","Payments for financial assets","Payments for financial assets","Community development","Community development","NAT",0,3,0,0,0,0,null,0,0,0,0,null,null,null,null,null,null,null,null,null,null,null,null,null,null,null,null,null,null,null,null,null,null,null,null,null,null,null,null,null,null,null,null,null,null,{"$f":"Dataset[[#This Row],[2025/26 From - Spending review Topic 1]]+Dataset[[#This Row],[2025/26 From - Spending review Topic 2]]+Dataset[[#This Row],[2025/26 From - Spending review Topic 3]]+Dataset[[#This Row],[2025/26 From - Spending review Topic 4]]+Dataset[[#This Row],[2025/26 From - Other reallocations]]","v":0},{"$f":"Dataset[[#This Row],[2026/27 From - Spending review Topic 1]]+Dataset[[#This Row],[2026/27 From - Spending review Topic 2]]+Dataset[[#This Row],[2026/27 From - Spending review Topic 3]]+Dataset[[#This Row],[2026/27 From - Spending review Topic 4]]+Dataset[[#This Row],[2026/27 From - Other reallocations]]","v":0},{"$f":"Dataset[[#This Row],[2027/28 From - Spending review Topic 1]]+Dataset[[#This Row],[2027/28 From - Spending review Topic 2]]+Dataset[[#This Row],[2027/28 From - Spending review Topic 3]]+Dataset[[#This Row],[2027/28 From - Spending review Topic 4]]+Dataset[[#This Row],[2027/28 From - Other reallocations]]","v":0},{"$f":"Dataset[[#This Row],[2025/26 To - Spending review Topic 1]]+Dataset[[#This Row],[2025/26 To - Spending review Topic 2]]+Dataset[[#This Row],[2025/26 To - Spending review Topic 3]]+Dataset[[#This Row],[2025/26 To - Spending review Topic 4]]+Dataset[[#This Row],[2025/26 To - Other reallocations]]","v":0},{"$f":"Dataset[[#This Row],[2026/27 To - Spending review Topic 1]]+Dataset[[#This Row],[2026/27 To - Spending review Topic 2]]+Dataset[[#This Row],[2026/27 To - Spending review Topic 3]]+Dataset[[#This Row],[2026/27 To - Spending review Topic 4]]+Dataset[[#This Row],[2026/27 To - Other reallocations]]","v":0},{"$f":"Dataset[[#This Row],[2027/28 To - Spending review Topic 1]]+Dataset[[#This Row],[2027/28 To - Spending review Topic 2]]+Dataset[[#This Row],[2027/28 To - Spending review Topic 3]]+Dataset[[#This Row],[2027/28 To - Spending review Topic 4]]+Dataset[[#This Row],[2027/28 To - Other reallocations]]","v":0},{"$f":"Dataset[[#This Row],[2025/26 Reduction]]+Dataset[[#This Row],[2025/26 From - Total]]","v":0},{"$f":"Dataset[[#This Row],[2026/27 Reduction]]+Dataset[[#This Row],[2026/27 From - Total]]","v":0},{"$f":"Dataset[[#This Row],[2027/28 Reduction]]+Dataset[[#This Row],[2027/28 From - Total]]","v":0},{"$f":"Dataset[[#This Row],[2024/25 Reduction]]","v":0},{"$f":"SUM(Dataset[[#This Row],[2025/26 Reduction]],Dataset[[#This Row],[2025/26 From - Total]],Dataset[[#This Row],[2025/26 To - Total]])","v":0},{"$f":"SUM(Dataset[[#This Row],[2026/27 Reduction]],Dataset[[#This Row],[2026/27 From - Total]],Dataset[[#This Row],[2026/27 To - Total]])","v":0},{"$f":"SUM(Dataset[[#This Row],[2027/28 Reduction]],Dataset[[#This Row],[2027/28 From - Total]],Dataset[[#This Row],[2027/28 To - Total]])","v":0},{"$f":"Dataset[[#This Row],[2024/25 Baseline]]+Dataset[[#This Row],[2024/25 Total change]]","v":0},{"$f":"Dataset[[#This Row],[2025/26 Baseline]]+Dataset[[#This Row],[2025/26 Total change]]","v":0},{"$f":"Dataset[[#This Row],[2026/27 Baseline]]+Dataset[[#This Row],[2026/27 Total change]]","v":0},{"$f":"Dataset[[#This Row],[2027/28 Baseline]]+Dataset[[#This Row],[2027/28 Total change]]","v":0}]
["NAT|Non-transfer item","40|Catering: Departmental activities","2025_26","MTEC2025",40,7,4,53096,1824,"40","07","04","053096","001824","40|07|04|001824","01","01","02","08","08","01|01|02|08|08","National","Transport","Public Transport","Public Transport Oversight","Non-transfer item","Current","Current payments","Goods and services","Catering: Departmental activities","Catering: Departmental activities","Community development","Community development","NAT",0,0,0,0,0,0,null,0,0,0,0,null,null,null,null,null,null,null,null,null,null,null,null,null,null,null,null,null,null,null,null,null,null,null,null,null,null,null,null,null,null,null,null,null,null,{"$f":"Dataset[[#This Row],[2025/26 From - Spending review Topic 1]]+Dataset[[#This Row],[2025/26 From - Spending review Topic 2]]+Dataset[[#This Row],[2025/26 From - Spending review Topic 3]]+Dataset[[#This Row],[2025/26 From - Spending review Topic 4]]+Dataset[[#This Row],[2025/26 From - Other reallocations]]","v":0},{"$f":"Dataset[[#This Row],[2026/27 From - Spending review Topic 1]]+Dataset[[#This Row],[2026/27 From - Spending review Topic 2]]+Dataset[[#This Row],[2026/27 From - Spending review Topic 3]]+Dataset[[#This Row],[2026/27 From - Spending review Topic 4]]+Dataset[[#This Row],[2026/27 From - Other reallocations]]","v":0},{"$f":"Dataset[[#This Row],[2027/28 From - Spending review Topic 1]]+Dataset[[#This Row],[2027/28 From - Spending review Topic 2]]+Dataset[[#This Row],[2027/28 From - Spending review Topic 3]]+Dataset[[#This Row],[2027/28 From - Spending review Topic 4]]+Dataset[[#This Row],[2027/28 From - Other reallocations]]","v":0},{"$f":"Dataset[[#This Row],[2025/26 To - Spending review Topic 1]]+Dataset[[#This Row],[2025/26 To - Spending review Topic 2]]+Dataset[[#This Row],[2025/26 To - Spending review Topic 3]]+Dataset[[#This Row],[2025/26 To - Spending review Topic 4]]+Dataset[[#This Row],[2025/26 To - Other reallocations]]","v":0},{"$f":"Dataset[[#This Row],[2026/27 To - Spending review Topic 1]]+Dataset[[#This Row],[2026/27 To - Spending review Topic 2]]+Dataset[[#This Row],[2026/27 To - Spending review Topic 3]]+Dataset[[#This Row],[2026/27 To - Spending review Topic 4]]+Dataset[[#This Row],[2026/27 To - Other reallocations]]","v":0},{"$f":"Dataset[[#This Row],[2027/28 To - Spending review Topic 1]]+Dataset[[#This Row],[2027/28 To - Spending review Topic 2]]+Dataset[[#This Row],[2027/28 To - Spending review Topic 3]]+Dataset[[#This Row],[2027/28 To - Spending review Topic 4]]+Dataset[[#This Row],[2027/28 To - Other reallocations]]","v":0},{"$f":"Dataset[[#This Row],[2025/26 Reduction]]+Dataset[[#This Row],[2025/26 From - Total]]","v":0},{"$f":"Dataset[[#This Row],[2026/27 Reduction]]+Dataset[[#This Row],[2026/27 From - Total]]","v":0},{"$f":"Dataset[[#This Row],[2027/28 Reduction]]+Dataset[[#This Row],[2027/28 From - Total]]","v":0},{"$f":"Dataset[[#This Row],[2024/25 Reduction]]","v":0},{"$f":"SUM(Dataset[[#This Row],[2025/26 Reduction]],Dataset[[#This Row],[2025/26 From - Total]],Dataset[[#This Row],[2025/26 To - Total]])","v":0},{"$f":"SUM(Dataset[[#This Row],[2026/27 Reduction]],Dataset[[#This Row],[2026/27 From - Total]],Dataset[[#This Row],[2026/27 To - Total]])","v":0},{"$f":"SUM(Dataset[[#This Row],[2027/28 Reduction]],Dataset[[#This Row],[2027/28 From - Total]],Dataset[[#This Row],[2027/28 To - Total]])","v":0},{"$f":"Dataset[[#This Row],[2024/25 Baseline]]+Dataset[[#This Row],[2024/25 Total change]]","v":0},{"$f":"Dataset[[#This Row],[2025/26 Baseline]]+Dataset[[#This Row],[2025/26 Total change]]","v":0},{"$f":"Dataset[[#This Row],[2026/27 Baseline]]+Dataset[[#This Row],[2026/27 Total change]]","v":0},{"$f":"Dataset[[#This Row],[2027/28 Baseline]]+Dataset[[#This Row],[2027/28 Total change]]","v":0}]
["NAT|Non-transfer item","40|Contractors","2025_26","MTEC2025",40,7,4,53104,1832,"40","07","04","053104","001832","40|07|04|001832","01","01","02","16","16","01|01|02|16|16","National","Transport","Public Transport","Public Transport Oversight","Non-transfer item","Current","Current payments","Goods and services","Contractors","Contractors","Community development","Community development","NAT",0,0,0,0,0,0,null,0,0,0,0,null,null,null,null,null,null,null,null,null,null,null,null,null,null,null,null,null,null,null,null,null,null,null,null,null,null,null,null,null,null,null,null,null,null,{"$f":"Dataset[[#This Row],[2025/26 From - Spending review Topic 1]]+Dataset[[#This Row],[2025/26 From - Spending review Topic 2]]+Dataset[[#This Row],[2025/26 From - Spending review Topic 3]]+Dataset[[#This Row],[2025/26 From - Spending review Topic 4]]+Dataset[[#This Row],[2025/26 From - Other reallocations]]","v":0},{"$f":"Dataset[[#This Row],[2026/27 From - Spending review Topic 1]]+Dataset[[#This Row],[2026/27 From - Spending review Topic 2]]+Dataset[[#This Row],[2026/27 From - Spending review Topic 3]]+Dataset[[#This Row],[2026/27 From - Spending review Topic 4]]+Dataset[[#This Row],[2026/27 From - Other reallocations]]","v":0},{"$f":"Dataset[[#This Row],[2027/28 From - Spending review Topic 1]]+Dataset[[#This Row],[2027/28 From - Spending review Topic 2]]+Dataset[[#This Row],[2027/28 From - Spending review Topic 3]]+Dataset[[#This Row],[2027/28 From - Spending review Topic 4]]+Dataset[[#This Row],[2027/28 From - Other reallocations]]","v":0},{"$f":"Dataset[[#This Row],[2025/26 To - Spending review Topic 1]]+Dataset[[#This Row],[2025/26 To - Spending review Topic 2]]+Dataset[[#This Row],[2025/26 To - Spending review Topic 3]]+Dataset[[#This Row],[2025/26 To - Spending review Topic 4]]+Dataset[[#This Row],[2025/26 To - Other reallocations]]","v":0},{"$f":"Dataset[[#This Row],[2026/27 To - Spending review Topic 1]]+Dataset[[#This Row],[2026/27 To - Spending review Topic 2]]+Dataset[[#This Row],[2026/27 To - Spending review Topic 3]]+Dataset[[#This Row],[2026/27 To - Spending review Topic 4]]+Dataset[[#This Row],[2026/27 To - Other reallocations]]","v":0},{"$f":"Dataset[[#This Row],[2027/28 To - Spending review Topic 1]]+Dataset[[#This Row],[2027/28 To - Spending review Topic 2]]+Dataset[[#This Row],[2027/28 To - Spending review Topic 3]]+Dataset[[#This Row],[2027/28 To - Spending review Topic 4]]+Dataset[[#This Row],[2027/28 To - Other reallocations]]","v":0},{"$f":"Dataset[[#This Row],[2025/26 Reduction]]+Dataset[[#This Row],[2025/26 From - Total]]","v":0},{"$f":"Dataset[[#This Row],[2026/27 Reduction]]+Dataset[[#This Row],[2026/27 From - Total]]","v":0},{"$f":"Dataset[[#This Row],[2027/28 Reduction]]+Dataset[[#This Row],[2027/28 From - Total]]","v":0},{"$f":"Dataset[[#This Row],[2024/25 Reduction]]","v":0},{"$f":"SUM(Dataset[[#This Row],[2025/26 Reduction]],Dataset[[#This Row],[2025/26 From - Total]],Dataset[[#This Row],[2025/26 To - Total]])","v":0},{"$f":"SUM(Dataset[[#This Row],[2026/27 Reduction]],Dataset[[#This Row],[2026/27 From - Total]],Dataset[[#This Row],[2026/27 To - Total]])","v":0},{"$f":"SUM(Dataset[[#This Row],[2027/28 Reduction]],Dataset[[#This Row],[2027/28 From - Total]],Dataset[[#This Row],[2027/28 To - Total]])","v":0},{"$f":"Dataset[[#This Row],[2024/25 Baseline]]+Dataset[[#This Row],[2024/25 Total change]]","v":0},{"$f":"Dataset[[#This Row],[2025/26 Baseline]]+Dataset[[#This Row],[2025/26 Total change]]","v":0},{"$f":"Dataset[[#This Row],[2026/27 Baseline]]+Dataset[[#This Row],[2026/27 Total change]]","v":0},{"$f":"Dataset[[#This Row],[2027/28 Baseline]]+Dataset[[#This Row],[2027/28 Total change]]","v":0}]
["NAT|Non-transfer item","40|Inventory: Clothing material and accessories","2025_26","MTEC2025",40,7,4,53109,1837,"40","07","04","053109","001837","40|07|04|001837","01","01","02","21","21","01|01|02|21|21","National","Transport","Public Transport","Public Transport Oversight","Non-transfer item","Current","Current payments","Goods and services","Inventory: Clothing material and accessories","Inventory: Clothing material and accessories","Community development","Community development","NAT",0,0,0,0,0,0,null,0,0,0,0,null,null,null,null,null,null,null,null,null,null,null,null,null,null,null,null,null,null,null,null,null,null,null,null,null,null,null,null,null,null,null,null,null,null,{"$f":"Dataset[[#This Row],[2025/26 From - Spending review Topic 1]]+Dataset[[#This Row],[2025/26 From - Spending review Topic 2]]+Dataset[[#This Row],[2025/26 From - Spending review Topic 3]]+Dataset[[#This Row],[2025/26 From - Spending review Topic 4]]+Dataset[[#This Row],[2025/26 From - Other reallocations]]","v":0},{"$f":"Dataset[[#This Row],[2026/27 From - Spending review Topic 1]]+Dataset[[#This Row],[2026/27 From - Spending review Topic 2]]+Dataset[[#This Row],[2026/27 From - Spending review Topic 3]]+Dataset[[#This Row],[2026/27 From - Spending review Topic 4]]+Dataset[[#This Row],[2026/27 From - Other reallocations]]","v":0},{"$f":"Dataset[[#This Row],[2027/28 From - Spending review Topic 1]]+Dataset[[#This Row],[2027/28 From - Spending review Topic 2]]+Dataset[[#This Row],[2027/28 From - Spending review Topic 3]]+Dataset[[#This Row],[2027/28 From - Spending review Topic 4]]+Dataset[[#This Row],[2027/28 From - Other reallocations]]","v":0},{"$f":"Dataset[[#This Row],[2025/26 To - Spending review Topic 1]]+Dataset[[#This Row],[2025/26 To - Spending review Topic 2]]+Dataset[[#This Row],[2025/26 To - Spending review Topic 3]]+Dataset[[#This Row],[2025/26 To - Spending review Topic 4]]+Dataset[[#This Row],[2025/26 To - Other reallocations]]","v":0},{"$f":"Dataset[[#This Row],[2026/27 To - Spending review Topic 1]]+Dataset[[#This Row],[2026/27 To - Spending review Topic 2]]+Dataset[[#This Row],[2026/27 To - Spending review Topic 3]]+Dataset[[#This Row],[2026/27 To - Spending review Topic 4]]+Dataset[[#This Row],[2026/27 To - Other reallocations]]","v":0},{"$f":"Dataset[[#This Row],[2027/28 To - Spending review Topic 1]]+Dataset[[#This Row],[2027/28 To - Spending review Topic 2]]+Dataset[[#This Row],[2027/28 To - Spending review Topic 3]]+Dataset[[#This Row],[2027/28 To - Spending review Topic 4]]+Dataset[[#This Row],[2027/28 To - Other reallocations]]","v":0},{"$f":"Dataset[[#This Row],[2025/26 Reduction]]+Dataset[[#This Row],[2025/26 From - Total]]","v":0},{"$f":"Dataset[[#This Row],[2026/27 Reduction]]+Dataset[[#This Row],[2026/27 From - Total]]","v":0},{"$f":"Dataset[[#This Row],[2027/28 Reduction]]+Dataset[[#This Row],[2027/28 From - Total]]","v":0},{"$f":"Dataset[[#This Row],[2024/25 Reduction]]","v":0},{"$f":"SUM(Dataset[[#This Row],[2025/26 Reduction]],Dataset[[#This Row],[2025/26 From - Total]],Dataset[[#This Row],[2025/26 To - Total]])","v":0},{"$f":"SUM(Dataset[[#This Row],[2026/27 Reduction]],Dataset[[#This Row],[2026/27 From - Total]],Dataset[[#This Row],[2026/27 To - Total]])","v":0},{"$f":"SUM(Dataset[[#This Row],[2027/28 Reduction]],Dataset[[#This Row],[2027/28 From - Total]],Dataset[[#This Row],[2027/28 To - Total]])","v":0},{"$f":"Dataset[[#This Row],[2024/25 Baseline]]+Dataset[[#This Row],[2024/25 Total change]]","v":0},{"$f":"Dataset[[#This Row],[2025/26 Baseline]]+Dataset[[#This Row],[2025/26 Total change]]","v":0},{"$f":"Dataset[[#This Row],[2026/27 Baseline]]+Dataset[[#This Row],[2026/27 Total change]]","v":0},{"$f":"Dataset[[#This Row],[2027/28 Baseline]]+Dataset[[#This Row],[2027/28 Total change]]","v":0}]
["NAT|Non-transfer item","40|Medsas inventory interface","2025_26","MTEC2025",40,7,4,53117,1845,"40","07","04","053117","001845","40|07|04|001845","01","01","02","29","29","01|01|02|29|29","National","Transport","Public Transport","Public Transport Oversight","Non-transfer item","Current","Current payments","Goods and services","Medsas inventory interface","Medsas inventory interface","Community development","Community development","NAT",0,0,0,0,0,0,null,0,0,0,0,null,null,null,null,null,null,null,null,null,null,null,null,null,null,null,null,null,null,null,null,null,null,null,null,null,null,null,null,null,null,null,null,null,null,{"$f":"Dataset[[#This Row],[2025/26 From - Spending review Topic 1]]+Dataset[[#This Row],[2025/26 From - Spending review Topic 2]]+Dataset[[#This Row],[2025/26 From - Spending review Topic 3]]+Dataset[[#This Row],[2025/26 From - Spending review Topic 4]]+Dataset[[#This Row],[2025/26 From - Other reallocations]]","v":0},{"$f":"Dataset[[#This Row],[2026/27 From - Spending review Topic 1]]+Dataset[[#This Row],[2026/27 From - Spending review Topic 2]]+Dataset[[#This Row],[2026/27 From - Spending review Topic 3]]+Dataset[[#This Row],[2026/27 From - Spending review Topic 4]]+Dataset[[#This Row],[2026/27 From - Other reallocations]]","v":0},{"$f":"Dataset[[#This Row],[2027/28 From - Spending review Topic 1]]+Dataset[[#This Row],[2027/28 From - Spending review Topic 2]]+Dataset[[#This Row],[2027/28 From - Spending review Topic 3]]+Dataset[[#This Row],[2027/28 From - Spending review Topic 4]]+Dataset[[#This Row],[2027/28 From - Other reallocations]]","v":0},{"$f":"Dataset[[#This Row],[2025/26 To - Spending review Topic 1]]+Dataset[[#This Row],[2025/26 To - Spending review Topic 2]]+Dataset[[#This Row],[2025/26 To - Spending review Topic 3]]+Dataset[[#This Row],[2025/26 To - Spending review Topic 4]]+Dataset[[#This Row],[2025/26 To - Other reallocations]]","v":0},{"$f":"Dataset[[#This Row],[2026/27 To - Spending review Topic 1]]+Dataset[[#This Row],[2026/27 To - Spending review Topic 2]]+Dataset[[#This Row],[2026/27 To - Spending review Topic 3]]+Dataset[[#This Row],[2026/27 To - Spending review Topic 4]]+Dataset[[#This Row],[2026/27 To - Other reallocations]]","v":0},{"$f":"Dataset[[#This Row],[2027/28 To - Spending review Topic 1]]+Dataset[[#This Row],[2027/28 To - Spending review Topic 2]]+Dataset[[#This Row],[2027/28 To - Spending review Topic 3]]+Dataset[[#This Row],[2027/28 To - Spending review Topic 4]]+Dataset[[#This Row],[2027/28 To - Other reallocations]]","v":0},{"$f":"Dataset[[#This Row],[2025/26 Reduction]]+Dataset[[#This Row],[2025/26 From - Total]]","v":0},{"$f":"Dataset[[#This Row],[2026/27 Reduction]]+Dataset[[#This Row],[2026/27 From - Total]]","v":0},{"$f":"Dataset[[#This Row],[2027/28 Reduction]]+Dataset[[#This Row],[2027/28 From - Total]]","v":0},{"$f":"Dataset[[#This Row],[2024/25 Reduction]]","v":0},{"$f":"SUM(Dataset[[#This Row],[2025/26 Reduction]],Dataset[[#This Row],[2025/26 From - Total]],Dataset[[#This Row],[2025/26 To - Total]])","v":0},{"$f":"SUM(Dataset[[#This Row],[2026/27 Reduction]],Dataset[[#This Row],[2026/27 From - Total]],Dataset[[#This Row],[2026/27 To - Total]])","v":0},{"$f":"SUM(Dataset[[#This Row],[2027/28 Reduction]],Dataset[[#This Row],[2027/28 From - Total]],Dataset[[#This Row],[2027/28 To - Total]])","v":0},{"$f":"Dataset[[#This Row],[2024/25 Baseline]]+Dataset[[#This Row],[2024/25 Total change]]","v":0},{"$f":"Dataset[[#This Row],[2025/26 Baseline]]+Dataset[[#This Row],[2025/26 Total change]]","v":0},{"$f":"Dataset[[#This Row],[2026/27 Baseline]]+Dataset[[#This Row],[2026/27 Total change]]","v":0},{"$f":"Dataset[[#This Row],[2027/28 Baseline]]+Dataset[[#This Row],[2027/28 Total change]]","v":0}]
["NAT|Non-transfer item","40|Travel and subsistence","2025_26","MTEC2025",40,7,4,53125,1853,"40","07","04","053125","001853","40|07|04|001853","01","01","02","37","37","01|01|02|37|37","National","Transport","Public Transport","Public Transport Oversight","Non-transfer item","Current","Current payments","Goods and services","Travel and subsistence","Travel and subsistence","Community development","Community development","NAT",3,0,0,0,0,0,null,0,0,0,0,null,null,null,null,null,null,null,null,null,null,null,null,null,null,null,null,null,null,null,null,null,null,null,null,null,null,null,null,null,null,null,null,null,null,{"$f":"Dataset[[#This Row],[2025/26 From - Spending review Topic 1]]+Dataset[[#This Row],[2025/26 From - Spending review Topic 2]]+Dataset[[#This Row],[2025/26 From - Spending review Topic 3]]+Dataset[[#This Row],[2025/26 From - Spending review Topic 4]]+Dataset[[#This Row],[2025/26 From - Other reallocations]]","v":0},{"$f":"Dataset[[#This Row],[2026/27 From - Spending review Topic 1]]+Dataset[[#This Row],[2026/27 From - Spending review Topic 2]]+Dataset[[#This Row],[2026/27 From - Spending review Topic 3]]+Dataset[[#This Row],[2026/27 From - Spending review Topic 4]]+Dataset[[#This Row],[2026/27 From - Other reallocations]]","v":0},{"$f":"Dataset[[#This Row],[2027/28 From - Spending review Topic 1]]+Dataset[[#This Row],[2027/28 From - Spending review Topic 2]]+Dataset[[#This Row],[2027/28 From - Spending review Topic 3]]+Dataset[[#This Row],[2027/28 From - Spending review Topic 4]]+Dataset[[#This Row],[2027/28 From - Other reallocations]]","v":0},{"$f":"Dataset[[#This Row],[2025/26 To - Spending review Topic 1]]+Dataset[[#This Row],[2025/26 To - Spending review Topic 2]]+Dataset[[#This Row],[2025/26 To - Spending review Topic 3]]+Dataset[[#This Row],[2025/26 To - Spending review Topic 4]]+Dataset[[#This Row],[2025/26 To - Other reallocations]]","v":0},{"$f":"Dataset[[#This Row],[2026/27 To - Spending review Topic 1]]+Dataset[[#This Row],[2026/27 To - Spending review Topic 2]]+Dataset[[#This Row],[2026/27 To - Spending review Topic 3]]+Dataset[[#This Row],[2026/27 To - Spending review Topic 4]]+Dataset[[#This Row],[2026/27 To - Other reallocations]]","v":0},{"$f":"Dataset[[#This Row],[2027/28 To - Spending review Topic 1]]+Dataset[[#This Row],[2027/28 To - Spending review Topic 2]]+Dataset[[#This Row],[2027/28 To - Spending review Topic 3]]+Dataset[[#This Row],[2027/28 To - Spending review Topic 4]]+Dataset[[#This Row],[2027/28 To - Other reallocations]]","v":0},{"$f":"Dataset[[#This Row],[2025/26 Reduction]]+Dataset[[#This Row],[2025/26 From - Total]]","v":0},{"$f":"Dataset[[#This Row],[2026/27 Reduction]]+Dataset[[#This Row],[2026/27 From - Total]]","v":0},{"$f":"Dataset[[#This Row],[2027/28 Reduction]]+Dataset[[#This Row],[2027/28 From - Total]]","v":0},{"$f":"Dataset[[#This Row],[2024/25 Reduction]]","v":0},{"$f":"SUM(Dataset[[#This Row],[2025/26 Reduction]],Dataset[[#This Row],[2025/26 From - Total]],Dataset[[#This Row],[2025/26 To - Total]])","v":0},{"$f":"SUM(Dataset[[#This Row],[2026/27 Reduction]],Dataset[[#This Row],[2026/27 From - Total]],Dataset[[#This Row],[2026/27 To - Total]])","v":0},{"$f":"SUM(Dataset[[#This Row],[2027/28 Reduction]],Dataset[[#This Row],[2027/28 From - Total]],Dataset[[#This Row],[2027/28 To - Total]])","v":0},{"$f":"Dataset[[#This Row],[2024/25 Baseline]]+Dataset[[#This Row],[2024/25 Total change]]","v":0},{"$f":"Dataset[[#This Row],[2025/26 Baseline]]+Dataset[[#This Row],[2025/26 Total change]]","v":0},{"$f":"Dataset[[#This Row],[2026/27 Baseline]]+Dataset[[#This Row],[2026/27 Total change]]","v":0},{"$f":"Dataset[[#This Row],[2027/28 Baseline]]+Dataset[[#This Row],[2027/28 Total change]]","v":0}]
["NAT|Non-transfer item","40|Rent on land","2025_26","MTEC2025",40,7,4,53130,1858,"40","07","04","053130","001858","40|07|04|001858","01","01","03","42","42","01|01|03|42|42","National","Transport","Public Transport","Public Transport Oversight","Non-transfer item","Current","Current payments","Interest and rent on land","Rent on land","Rent on land","Community development","Community development","NAT",0,0,0,0,0,0,null,0,0,0,0,null,null,null,null,null,null,null,null,null,null,null,null,null,null,null,null,null,null,null,null,null,null,null,null,null,null,null,null,null,null,null,null,null,null,{"$f":"Dataset[[#This Row],[2025/26 From - Spending review Topic 1]]+Dataset[[#This Row],[2025/26 From - Spending review Topic 2]]+Dataset[[#This Row],[2025/26 From - Spending review Topic 3]]+Dataset[[#This Row],[2025/26 From - Spending review Topic 4]]+Dataset[[#This Row],[2025/26 From - Other reallocations]]","v":0},{"$f":"Dataset[[#This Row],[2026/27 From - Spending review Topic 1]]+Dataset[[#This Row],[2026/27 From - Spending review Topic 2]]+Dataset[[#This Row],[2026/27 From - Spending review Topic 3]]+Dataset[[#This Row],[2026/27 From - Spending review Topic 4]]+Dataset[[#This Row],[2026/27 From - Other reallocations]]","v":0},{"$f":"Dataset[[#This Row],[2027/28 From - Spending review Topic 1]]+Dataset[[#This Row],[2027/28 From - Spending review Topic 2]]+Dataset[[#This Row],[2027/28 From - Spending review Topic 3]]+Dataset[[#This Row],[2027/28 From - Spending review Topic 4]]+Dataset[[#This Row],[2027/28 From - Other reallocations]]","v":0},{"$f":"Dataset[[#This Row],[2025/26 To - Spending review Topic 1]]+Dataset[[#This Row],[2025/26 To - Spending review Topic 2]]+Dataset[[#This Row],[2025/26 To - Spending review Topic 3]]+Dataset[[#This Row],[2025/26 To - Spending review Topic 4]]+Dataset[[#This Row],[2025/26 To - Other reallocations]]","v":0},{"$f":"Dataset[[#This Row],[2026/27 To - Spending review Topic 1]]+Dataset[[#This Row],[2026/27 To - Spending review Topic 2]]+Dataset[[#This Row],[2026/27 To - Spending review Topic 3]]+Dataset[[#This Row],[2026/27 To - Spending review Topic 4]]+Dataset[[#This Row],[2026/27 To - Other reallocations]]","v":0},{"$f":"Dataset[[#This Row],[2027/28 To - Spending review Topic 1]]+Dataset[[#This Row],[2027/28 To - Spending review Topic 2]]+Dataset[[#This Row],[2027/28 To - Spending review Topic 3]]+Dataset[[#This Row],[2027/28 To - Spending review Topic 4]]+Dataset[[#This Row],[2027/28 To - Other reallocations]]","v":0},{"$f":"Dataset[[#This Row],[2025/26 Reduction]]+Dataset[[#This Row],[2025/26 From - Total]]","v":0},{"$f":"Dataset[[#This Row],[2026/27 Reduction]]+Dataset[[#This Row],[2026/27 From - Total]]","v":0},{"$f":"Dataset[[#This Row],[2027/28 Reduction]]+Dataset[[#This Row],[2027/28 From - Total]]","v":0},{"$f":"Dataset[[#This Row],[2024/25 Reduction]]","v":0},{"$f":"SUM(Dataset[[#This Row],[2025/26 Reduction]],Dataset[[#This Row],[2025/26 From - Total]],Dataset[[#This Row],[2025/26 To - Total]])","v":0},{"$f":"SUM(Dataset[[#This Row],[2026/27 Reduction]],Dataset[[#This Row],[2026/27 From - Total]],Dataset[[#This Row],[2026/27 To - Total]])","v":0},{"$f":"SUM(Dataset[[#This Row],[2027/28 Reduction]],Dataset[[#This Row],[2027/28 From - Total]],Dataset[[#This Row],[2027/28 To - Total]])","v":0},{"$f":"Dataset[[#This Row],[2024/25 Baseline]]+Dataset[[#This Row],[2024/25 Total change]]","v":0},{"$f":"Dataset[[#This Row],[2025/26 Baseline]]+Dataset[[#This Row],[2025/26 Total change]]","v":0},{"$f":"Dataset[[#This Row],[2026/27 Baseline]]+Dataset[[#This Row],[2026/27 Total change]]","v":0},{"$f":"Dataset[[#This Row],[2027/28 Baseline]]+Dataset[[#This Row],[2027/28 Total change]]","v":0}]
["NAT|Taxi recapitalisation","40|Other transfers to households","2025_26","MTEC2025",40,7,4,53134,1862,"40","07","04","053134","001862","40|07|04|001862","01","02","10","53","57","01|02|10|53|57","National","Transport","Public Transport","Public Transport Oversight","Taxi recapitalisation","Current","Transfers and subsidies","Households","Other transfers to households","Other transfers to households","Community development","Community development","NAT",233979,308385,378148,478667,478667,478667,null,447656,468042,489516,511652,null,null,null,null,null,null,null,null,null,null,null,null,null,null,null,null,null,null,null,null,null,null,null,null,null,null,null,null,null,null,null,null,null,null,{"$f":"Dataset[[#This Row],[2025/26 From - Spending review Topic 1]]+Dataset[[#This Row],[2025/26 From - Spending review Topic 2]]+Dataset[[#This Row],[2025/26 From - Spending review Topic 3]]+Dataset[[#This Row],[2025/26 From - Spending review Topic 4]]+Dataset[[#This Row],[2025/26 From - Other reallocations]]","v":0},{"$f":"Dataset[[#This Row],[2026/27 From - Spending review Topic 1]]+Dataset[[#This Row],[2026/27 From - Spending review Topic 2]]+Dataset[[#This Row],[2026/27 From - Spending review Topic 3]]+Dataset[[#This Row],[2026/27 From - Spending review Topic 4]]+Dataset[[#This Row],[2026/27 From - Other reallocations]]","v":0},{"$f":"Dataset[[#This Row],[2027/28 From - Spending review Topic 1]]+Dataset[[#This Row],[2027/28 From - Spending review Topic 2]]+Dataset[[#This Row],[2027/28 From - Spending review Topic 3]]+Dataset[[#This Row],[2027/28 From - Spending review Topic 4]]+Dataset[[#This Row],[2027/28 From - Other reallocations]]","v":0},{"$f":"Dataset[[#This Row],[2025/26 To - Spending review Topic 1]]+Dataset[[#This Row],[2025/26 To - Spending review Topic 2]]+Dataset[[#This Row],[2025/26 To - Spending review Topic 3]]+Dataset[[#This Row],[2025/26 To - Spending review Topic 4]]+Dataset[[#This Row],[2025/26 To - Other reallocations]]","v":0},{"$f":"Dataset[[#This Row],[2026/27 To - Spending review Topic 1]]+Dataset[[#This Row],[2026/27 To - Spending review Topic 2]]+Dataset[[#This Row],[2026/27 To - Spending review Topic 3]]+Dataset[[#This Row],[2026/27 To - Spending review Topic 4]]+Dataset[[#This Row],[2026/27 To - Other reallocations]]","v":0},{"$f":"Dataset[[#This Row],[2027/28 To - Spending review Topic 1]]+Dataset[[#This Row],[2027/28 To - Spending review Topic 2]]+Dataset[[#This Row],[2027/28 To - Spending review Topic 3]]+Dataset[[#This Row],[2027/28 To - Spending review Topic 4]]+Dataset[[#This Row],[2027/28 To - Other reallocations]]","v":0},{"$f":"Dataset[[#This Row],[2025/26 Reduction]]+Dataset[[#This Row],[2025/26 From - Total]]","v":0},{"$f":"Dataset[[#This Row],[2026/27 Reduction]]+Dataset[[#This Row],[2026/27 From - Total]]","v":0},{"$f":"Dataset[[#This Row],[2027/28 Reduction]]+Dataset[[#This Row],[2027/28 From - Total]]","v":0},{"$f":"Dataset[[#This Row],[2024/25 Reduction]]","v":0},{"$f":"SUM(Dataset[[#This Row],[2025/26 Reduction]],Dataset[[#This Row],[2025/26 From - Total]],Dataset[[#This Row],[2025/26 To - Total]])","v":0},{"$f":"SUM(Dataset[[#This Row],[2026/27 Reduction]],Dataset[[#This Row],[2026/27 From - Total]],Dataset[[#This Row],[2026/27 To - Total]])","v":0},{"$f":"SUM(Dataset[[#This Row],[2027/28 Reduction]],Dataset[[#This Row],[2027/28 From - Total]],Dataset[[#This Row],[2027/28 To - Total]])","v":0},{"$f":"Dataset[[#This Row],[2024/25 Baseline]]+Dataset[[#This Row],[2024/25 Total change]]","v":447656},{"$f":"Dataset[[#This Row],[2025/26 Baseline]]+Dataset[[#This Row],[2025/26 Total change]]","v":468042},{"$f":"Dataset[[#This Row],[2026/27 Baseline]]+Dataset[[#This Row],[2026/27 Total change]]","v":489516},{"$f":"Dataset[[#This Row],[2027/28 Baseline]]+Dataset[[#This Row],[2027/28 Total change]]","v":511652}]
["NAT|Non-transfer item","40|Biological assets","2025_26","MTEC2025",40,7,4,53142,1870,"40","07","04","053142","001870","40|07|04|001870","02","03","15","60","64","02|03|15|60|64","National","Transport","Public Transport","Public Transport Oversight","Non-transfer item","Capital","Payments for capital assets","Biological assets","Biological assets","Biological assets","Community development","Community development","NAT",0,0,0,0,0,0,null,0,0,0,0,null,null,null,null,null,null,null,null,null,null,null,null,null,null,null,null,null,null,null,null,null,null,null,null,null,null,null,null,null,null,null,null,null,null,{"$f":"Dataset[[#This Row],[2025/26 From - Spending review Topic 1]]+Dataset[[#This Row],[2025/26 From - Spending review Topic 2]]+Dataset[[#This Row],[2025/26 From - Spending review Topic 3]]+Dataset[[#This Row],[2025/26 From - Spending review Topic 4]]+Dataset[[#This Row],[2025/26 From - Other reallocations]]","v":0},{"$f":"Dataset[[#This Row],[2026/27 From - Spending review Topic 1]]+Dataset[[#This Row],[2026/27 From - Spending review Topic 2]]+Dataset[[#This Row],[2026/27 From - Spending review Topic 3]]+Dataset[[#This Row],[2026/27 From - Spending review Topic 4]]+Dataset[[#This Row],[2026/27 From - Other reallocations]]","v":0},{"$f":"Dataset[[#This Row],[2027/28 From - Spending review Topic 1]]+Dataset[[#This Row],[2027/28 From - Spending review Topic 2]]+Dataset[[#This Row],[2027/28 From - Spending review Topic 3]]+Dataset[[#This Row],[2027/28 From - Spending review Topic 4]]+Dataset[[#This Row],[2027/28 From - Other reallocations]]","v":0},{"$f":"Dataset[[#This Row],[2025/26 To - Spending review Topic 1]]+Dataset[[#This Row],[2025/26 To - Spending review Topic 2]]+Dataset[[#This Row],[2025/26 To - Spending review Topic 3]]+Dataset[[#This Row],[2025/26 To - Spending review Topic 4]]+Dataset[[#This Row],[2025/26 To - Other reallocations]]","v":0},{"$f":"Dataset[[#This Row],[2026/27 To - Spending review Topic 1]]+Dataset[[#This Row],[2026/27 To - Spending review Topic 2]]+Dataset[[#This Row],[2026/27 To - Spending review Topic 3]]+Dataset[[#This Row],[2026/27 To - Spending review Topic 4]]+Dataset[[#This Row],[2026/27 To - Other reallocations]]","v":0},{"$f":"Dataset[[#This Row],[2027/28 To - Spending review Topic 1]]+Dataset[[#This Row],[2027/28 To - Spending review Topic 2]]+Dataset[[#This Row],[2027/28 To - Spending review Topic 3]]+Dataset[[#This Row],[2027/28 To - Spending review Topic 4]]+Dataset[[#This Row],[2027/28 To - Other reallocations]]","v":0},{"$f":"Dataset[[#This Row],[2025/26 Reduction]]+Dataset[[#This Row],[2025/26 From - Total]]","v":0},{"$f":"Dataset[[#This Row],[2026/27 Reduction]]+Dataset[[#This Row],[2026/27 From - Total]]","v":0},{"$f":"Dataset[[#This Row],[2027/28 Reduction]]+Dataset[[#This Row],[2027/28 From - Total]]","v":0},{"$f":"Dataset[[#This Row],[2024/25 Reduction]]","v":0},{"$f":"SUM(Dataset[[#This Row],[2025/26 Reduction]],Dataset[[#This Row],[2025/26 From - Total]],Dataset[[#This Row],[2025/26 To - Total]])","v":0},{"$f":"SUM(Dataset[[#This Row],[2026/27 Reduction]],Dataset[[#This Row],[2026/27 From - Total]],Dataset[[#This Row],[2026/27 To - Total]])","v":0},{"$f":"SUM(Dataset[[#This Row],[2027/28 Reduction]],Dataset[[#This Row],[2027/28 From - Total]],Dataset[[#This Row],[2027/28 To - Total]])","v":0},{"$f":"Dataset[[#This Row],[2024/25 Baseline]]+Dataset[[#This Row],[2024/25 Total change]]","v":0},{"$f":"Dataset[[#This Row],[2025/26 Baseline]]+Dataset[[#This Row],[2025/26 Total change]]","v":0},{"$f":"Dataset[[#This Row],[2026/27 Baseline]]+Dataset[[#This Row],[2026/27 Total change]]","v":0},{"$f":"Dataset[[#This Row],[2027/28 Baseline]]+Dataset[[#This Row],[2027/28 Total change]]","v":0}]
["NAT|Non-transfer item","40|Audit costs: External","2025_26","MTEC2025",40,7,5,53150,1878,"40","07","05","053150","001878","40|07|05|001878","01","01","02","06","06","01|01|02|06|06","National","Transport","Public Transport","Public Transport Administration Support","Non-transfer item","Current","Current payments","Goods and services","Audit costs: External","Audit costs: External","Community development","Community development","NAT",0,0,0,0,0,0,null,0,0,0,0,null,null,null,null,null,null,null,null,null,null,null,null,null,null,null,null,null,null,null,null,null,null,null,null,null,null,null,null,null,null,null,null,null,null,{"$f":"Dataset[[#This Row],[2025/26 From - Spending review Topic 1]]+Dataset[[#This Row],[2025/26 From - Spending review Topic 2]]+Dataset[[#This Row],[2025/26 From - Spending review Topic 3]]+Dataset[[#This Row],[2025/26 From - Spending review Topic 4]]+Dataset[[#This Row],[2025/26 From - Other reallocations]]","v":0},{"$f":"Dataset[[#This Row],[2026/27 From - Spending review Topic 1]]+Dataset[[#This Row],[2026/27 From - Spending review Topic 2]]+Dataset[[#This Row],[2026/27 From - Spending review Topic 3]]+Dataset[[#This Row],[2026/27 From - Spending review Topic 4]]+Dataset[[#This Row],[2026/27 From - Other reallocations]]","v":0},{"$f":"Dataset[[#This Row],[2027/28 From - Spending review Topic 1]]+Dataset[[#This Row],[2027/28 From - Spending review Topic 2]]+Dataset[[#This Row],[2027/28 From - Spending review Topic 3]]+Dataset[[#This Row],[2027/28 From - Spending review Topic 4]]+Dataset[[#This Row],[2027/28 From - Other reallocations]]","v":0},{"$f":"Dataset[[#This Row],[2025/26 To - Spending review Topic 1]]+Dataset[[#This Row],[2025/26 To - Spending review Topic 2]]+Dataset[[#This Row],[2025/26 To - Spending review Topic 3]]+Dataset[[#This Row],[2025/26 To - Spending review Topic 4]]+Dataset[[#This Row],[2025/26 To - Other reallocations]]","v":0},{"$f":"Dataset[[#This Row],[2026/27 To - Spending review Topic 1]]+Dataset[[#This Row],[2026/27 To - Spending review Topic 2]]+Dataset[[#This Row],[2026/27 To - Spending review Topic 3]]+Dataset[[#This Row],[2026/27 To - Spending review Topic 4]]+Dataset[[#This Row],[2026/27 To - Other reallocations]]","v":0},{"$f":"Dataset[[#This Row],[2027/28 To - Spending review Topic 1]]+Dataset[[#This Row],[2027/28 To - Spending review Topic 2]]+Dataset[[#This Row],[2027/28 To - Spending review Topic 3]]+Dataset[[#This Row],[2027/28 To - Spending review Topic 4]]+Dataset[[#This Row],[2027/28 To - Other reallocations]]","v":0},{"$f":"Dataset[[#This Row],[2025/26 Reduction]]+Dataset[[#This Row],[2025/26 From - Total]]","v":0},{"$f":"Dataset[[#This Row],[2026/27 Reduction]]+Dataset[[#This Row],[2026/27 From - Total]]","v":0},{"$f":"Dataset[[#This Row],[2027/28 Reduction]]+Dataset[[#This Row],[2027/28 From - Total]]","v":0},{"$f":"Dataset[[#This Row],[2024/25 Reduction]]","v":0},{"$f":"SUM(Dataset[[#This Row],[2025/26 Reduction]],Dataset[[#This Row],[2025/26 From - Total]],Dataset[[#This Row],[2025/26 To - Total]])","v":0},{"$f":"SUM(Dataset[[#This Row],[2026/27 Reduction]],Dataset[[#This Row],[2026/27 From - Total]],Dataset[[#This Row],[2026/27 To - Total]])","v":0},{"$f":"SUM(Dataset[[#This Row],[2027/28 Reduction]],Dataset[[#This Row],[2027/28 From - Total]],Dataset[[#This Row],[2027/28 To - Total]])","v":0},{"$f":"Dataset[[#This Row],[2024/25 Baseline]]+Dataset[[#This Row],[2024/25 Total change]]","v":0},{"$f":"Dataset[[#This Row],[2025/26 Baseline]]+Dataset[[#This Row],[2025/26 Total change]]","v":0},{"$f":"Dataset[[#This Row],[2026/27 Baseline]]+Dataset[[#This Row],[2026/27 Total change]]","v":0},{"$f":"Dataset[[#This Row],[2027/28 Baseline]]+Dataset[[#This Row],[2027/28 Total change]]","v":0}]
["NAT|Non-transfer item","40|Legal services (G&S)","2025_26","MTEC2025",40,7,5,53158,1886,"40","07","05","053158","001886","40|07|05|001886","01","01","02","14","14","01|01|02|14|14","National","Transport","Public Transport","Public Transport Administration Support","Non-transfer item","Current","Current payments","Goods and services","Legal services (G&S)","Legal services (G&S)","Community development","Community development","NAT",0,0,0,0,0,0,null,0,0,0,0,null,null,null,null,null,null,null,null,null,null,null,null,null,null,null,null,null,null,null,null,null,null,null,null,null,null,null,null,null,null,null,null,null,null,{"$f":"Dataset[[#This Row],[2025/26 From - Spending review Topic 1]]+Dataset[[#This Row],[2025/26 From - Spending review Topic 2]]+Dataset[[#This Row],[2025/26 From - Spending review Topic 3]]+Dataset[[#This Row],[2025/26 From - Spending review Topic 4]]+Dataset[[#This Row],[2025/26 From - Other reallocations]]","v":0},{"$f":"Dataset[[#This Row],[2026/27 From - Spending review Topic 1]]+Dataset[[#This Row],[2026/27 From - Spending review Topic 2]]+Dataset[[#This Row],[2026/27 From - Spending review Topic 3]]+Dataset[[#This Row],[2026/27 From - Spending review Topic 4]]+Dataset[[#This Row],[2026/27 From - Other reallocations]]","v":0},{"$f":"Dataset[[#This Row],[2027/28 From - Spending review Topic 1]]+Dataset[[#This Row],[2027/28 From - Spending review Topic 2]]+Dataset[[#This Row],[2027/28 From - Spending review Topic 3]]+Dataset[[#This Row],[2027/28 From - Spending review Topic 4]]+Dataset[[#This Row],[2027/28 From - Other reallocations]]","v":0},{"$f":"Dataset[[#This Row],[2025/26 To - Spending review Topic 1]]+Dataset[[#This Row],[2025/26 To - Spending review Topic 2]]+Dataset[[#This Row],[2025/26 To - Spending review Topic 3]]+Dataset[[#This Row],[2025/26 To - Spending review Topic 4]]+Dataset[[#This Row],[2025/26 To - Other reallocations]]","v":0},{"$f":"Dataset[[#This Row],[2026/27 To - Spending review Topic 1]]+Dataset[[#This Row],[2026/27 To - Spending review Topic 2]]+Dataset[[#This Row],[2026/27 To - Spending review Topic 3]]+Dataset[[#This Row],[2026/27 To - Spending review Topic 4]]+Dataset[[#This Row],[2026/27 To - Other reallocations]]","v":0},{"$f":"Dataset[[#This Row],[2027/28 To - Spending review Topic 1]]+Dataset[[#This Row],[2027/28 To - Spending review Topic 2]]+Dataset[[#This Row],[2027/28 To - Spending review Topic 3]]+Dataset[[#This Row],[2027/28 To - Spending review Topic 4]]+Dataset[[#This Row],[2027/28 To - Other reallocations]]","v":0},{"$f":"Dataset[[#This Row],[2025/26 Reduction]]+Dataset[[#This Row],[2025/26 From - Total]]","v":0},{"$f":"Dataset[[#This Row],[2026/27 Reduction]]+Dataset[[#This Row],[2026/27 From - Total]]","v":0},{"$f":"Dataset[[#This Row],[2027/28 Reduction]]+Dataset[[#This Row],[2027/28 From - Total]]","v":0},{"$f":"Dataset[[#This Row],[2024/25 Reduction]]","v":0},{"$f":"SUM(Dataset[[#This Row],[2025/26 Reduction]],Dataset[[#This Row],[2025/26 From - Total]],Dataset[[#This Row],[2025/26 To - Total]])","v":0},{"$f":"SUM(Dataset[[#This Row],[2026/27 Reduction]],Dataset[[#This Row],[2026/27 From - Total]],Dataset[[#This Row],[2026/27 To - Total]])","v":0},{"$f":"SUM(Dataset[[#This Row],[2027/28 Reduction]],Dataset[[#This Row],[2027/28 From - Total]],Dataset[[#This Row],[2027/28 To - Total]])","v":0},{"$f":"Dataset[[#This Row],[2024/25 Baseline]]+Dataset[[#This Row],[2024/25 Total change]]","v":0},{"$f":"Dataset[[#This Row],[2025/26 Baseline]]+Dataset[[#This Row],[2025/26 Total change]]","v":0},{"$f":"Dataset[[#This Row],[2026/27 Baseline]]+Dataset[[#This Row],[2026/27 Total change]]","v":0},{"$f":"Dataset[[#This Row],[2027/28 Baseline]]+Dataset[[#This Row],[2027/28 Total change]]","v":0}]
["NAT|Non-transfer item","40|Fleet services (including government motor transport)","2025_26","MTEC2025",40,7,5,53163,1891,"40","07","05","053163","001891","40|07|05|001891","01","01","02","19","19","01|01|02|19|19","National","Transport","Public Transport","Public Transport Administration Support","Non-transfer item","Current","Current payments","Goods and services","Fleet services (including government motor transport)","Fleet services (including government motor transport)","Community development","Community development","NAT",0,0,0,0,0,0,null,0,0,0,0,null,null,null,null,null,null,null,null,null,null,null,null,null,null,null,null,null,null,null,null,null,null,null,null,null,null,null,null,null,null,null,null,null,null,{"$f":"Dataset[[#This Row],[2025/26 From - Spending review Topic 1]]+Dataset[[#This Row],[2025/26 From - Spending review Topic 2]]+Dataset[[#This Row],[2025/26 From - Spending review Topic 3]]+Dataset[[#This Row],[2025/26 From - Spending review Topic 4]]+Dataset[[#This Row],[2025/26 From - Other reallocations]]","v":0},{"$f":"Dataset[[#This Row],[2026/27 From - Spending review Topic 1]]+Dataset[[#This Row],[2026/27 From - Spending review Topic 2]]+Dataset[[#This Row],[2026/27 From - Spending review Topic 3]]+Dataset[[#This Row],[2026/27 From - Spending review Topic 4]]+Dataset[[#This Row],[2026/27 From - Other reallocations]]","v":0},{"$f":"Dataset[[#This Row],[2027/28 From - Spending review Topic 1]]+Dataset[[#This Row],[2027/28 From - Spending review Topic 2]]+Dataset[[#This Row],[2027/28 From - Spending review Topic 3]]+Dataset[[#This Row],[2027/28 From - Spending review Topic 4]]+Dataset[[#This Row],[2027/28 From - Other reallocations]]","v":0},{"$f":"Dataset[[#This Row],[2025/26 To - Spending review Topic 1]]+Dataset[[#This Row],[2025/26 To - Spending review Topic 2]]+Dataset[[#This Row],[2025/26 To - Spending review Topic 3]]+Dataset[[#This Row],[2025/26 To - Spending review Topic 4]]+Dataset[[#This Row],[2025/26 To - Other reallocations]]","v":0},{"$f":"Dataset[[#This Row],[2026/27 To - Spending review Topic 1]]+Dataset[[#This Row],[2026/27 To - Spending review Topic 2]]+Dataset[[#This Row],[2026/27 To - Spending review Topic 3]]+Dataset[[#This Row],[2026/27 To - Spending review Topic 4]]+Dataset[[#This Row],[2026/27 To - Other reallocations]]","v":0},{"$f":"Dataset[[#This Row],[2027/28 To - Spending review Topic 1]]+Dataset[[#This Row],[2027/28 To - Spending review Topic 2]]+Dataset[[#This Row],[2027/28 To - Spending review Topic 3]]+Dataset[[#This Row],[2027/28 To - Spending review Topic 4]]+Dataset[[#This Row],[2027/28 To - Other reallocations]]","v":0},{"$f":"Dataset[[#This Row],[2025/26 Reduction]]+Dataset[[#This Row],[2025/26 From - Total]]","v":0},{"$f":"Dataset[[#This Row],[2026/27 Reduction]]+Dataset[[#This Row],[2026/27 From - Total]]","v":0},{"$f":"Dataset[[#This Row],[2027/28 Reduction]]+Dataset[[#This Row],[2027/28 From - Total]]","v":0},{"$f":"Dataset[[#This Row],[2024/25 Reduction]]","v":0},{"$f":"SUM(Dataset[[#This Row],[2025/26 Reduction]],Dataset[[#This Row],[2025/26 From - Total]],Dataset[[#This Row],[2025/26 To - Total]])","v":0},{"$f":"SUM(Dataset[[#This Row],[2026/27 Reduction]],Dataset[[#This Row],[2026/27 From - Total]],Dataset[[#This Row],[2026/27 To - Total]])","v":0},{"$f":"SUM(Dataset[[#This Row],[2027/28 Reduction]],Dataset[[#This Row],[2027/28 From - Total]],Dataset[[#This Row],[2027/28 To - Total]])","v":0},{"$f":"Dataset[[#This Row],[2024/25 Baseline]]+Dataset[[#This Row],[2024/25 Total change]]","v":0},{"$f":"Dataset[[#This Row],[2025/26 Baseline]]+Dataset[[#This Row],[2025/26 Total change]]","v":0},{"$f":"Dataset[[#This Row],[2026/27 Baseline]]+Dataset[[#This Row],[2026/27 Total change]]","v":0},{"$f":"Dataset[[#This Row],[2027/28 Baseline]]+Dataset[[#This Row],[2027/28 Total change]]","v":0}]
["NAT|Non-transfer item","40|Inventory: Medical supplies","2025_26","MTEC2025",40,7,5,53171,1899,"40","07","05","053171","001899","40|07|05|001899","01","01","02","27","27","01|01|02|27|27","National","Transport","Public Transport","Public Transport Administration Support","Non-transfer item","Current","Current payments","Goods and services","Inventory: Medical supplies","Inventory: Medical supplies","Community development","Community development","NAT",0,0,0,0,0,0,null,0,0,0,0,null,null,null,null,null,null,null,null,null,null,null,null,null,null,null,null,null,null,null,null,null,null,null,null,null,null,null,null,null,null,null,null,null,null,{"$f":"Dataset[[#This Row],[2025/26 From - Spending review Topic 1]]+Dataset[[#This Row],[2025/26 From - Spending review Topic 2]]+Dataset[[#This Row],[2025/26 From - Spending review Topic 3]]+Dataset[[#This Row],[2025/26 From - Spending review Topic 4]]+Dataset[[#This Row],[2025/26 From - Other reallocations]]","v":0},{"$f":"Dataset[[#This Row],[2026/27 From - Spending review Topic 1]]+Dataset[[#This Row],[2026/27 From - Spending review Topic 2]]+Dataset[[#This Row],[2026/27 From - Spending review Topic 3]]+Dataset[[#This Row],[2026/27 From - Spending review Topic 4]]+Dataset[[#This Row],[2026/27 From - Other reallocations]]","v":0},{"$f":"Dataset[[#This Row],[2027/28 From - Spending review Topic 1]]+Dataset[[#This Row],[2027/28 From - Spending review Topic 2]]+Dataset[[#This Row],[2027/28 From - Spending review Topic 3]]+Dataset[[#This Row],[2027/28 From - Spending review Topic 4]]+Dataset[[#This Row],[2027/28 From - Other reallocations]]","v":0},{"$f":"Dataset[[#This Row],[2025/26 To - Spending review Topic 1]]+Dataset[[#This Row],[2025/26 To - Spending review Topic 2]]+Dataset[[#This Row],[2025/26 To - Spending review Topic 3]]+Dataset[[#This Row],[2025/26 To - Spending review Topic 4]]+Dataset[[#This Row],[2025/26 To - Other reallocations]]","v":0},{"$f":"Dataset[[#This Row],[2026/27 To - Spending review Topic 1]]+Dataset[[#This Row],[2026/27 To - Spending review Topic 2]]+Dataset[[#This Row],[2026/27 To - Spending review Topic 3]]+Dataset[[#This Row],[2026/27 To - Spending review Topic 4]]+Dataset[[#This Row],[2026/27 To - Other reallocations]]","v":0},{"$f":"Dataset[[#This Row],[2027/28 To - Spending review Topic 1]]+Dataset[[#This Row],[2027/28 To - Spending review Topic 2]]+Dataset[[#This Row],[2027/28 To - Spending review Topic 3]]+Dataset[[#This Row],[2027/28 To - Spending review Topic 4]]+Dataset[[#This Row],[2027/28 To - Other reallocations]]","v":0},{"$f":"Dataset[[#This Row],[2025/26 Reduction]]+Dataset[[#This Row],[2025/26 From - Total]]","v":0},{"$f":"Dataset[[#This Row],[2026/27 Reduction]]+Dataset[[#This Row],[2026/27 From - Total]]","v":0},{"$f":"Dataset[[#This Row],[2027/28 Reduction]]+Dataset[[#This Row],[2027/28 From - Total]]","v":0},{"$f":"Dataset[[#This Row],[2024/25 Reduction]]","v":0},{"$f":"SUM(Dataset[[#This Row],[2025/26 Reduction]],Dataset[[#This Row],[2025/26 From - Total]],Dataset[[#This Row],[2025/26 To - Total]])","v":0},{"$f":"SUM(Dataset[[#This Row],[2026/27 Reduction]],Dataset[[#This Row],[2026/27 From - Total]],Dataset[[#This Row],[2026/27 To - Total]])","v":0},{"$f":"SUM(Dataset[[#This Row],[2027/28 Reduction]],Dataset[[#This Row],[2027/28 From - Total]],Dataset[[#This Row],[2027/28 To - Total]])","v":0},{"$f":"Dataset[[#This Row],[2024/25 Baseline]]+Dataset[[#This Row],[2024/25 Total change]]","v":0},{"$f":"Dataset[[#This Row],[2025/26 Baseline]]+Dataset[[#This Row],[2025/26 Total change]]","v":0},{"$f":"Dataset[[#This Row],[2026/27 Baseline]]+Dataset[[#This Row],[2026/27 Total change]]","v":0},{"$f":"Dataset[[#This Row],[2027/28 Baseline]]+Dataset[[#This Row],[2027/28 Total change]]","v":0}]
["NAT|Non-transfer item","40|Consumables: Stationery, printing and office supplies","2025_26","MTEC2025",40,7,5,53176,1904,"40","07","05","053176","001904","40|07|05|001904","01","01","02","32","32","01|01|02|32|32","National","Transport","Public Transport","Public Transport Administration Support","Non-transfer item","Current","Current payments","Goods and services","Consumables: Stationery, printing and office supplies","Consumables: Stationery, printing and office supplies","Community development","Community development","NAT",455,105,87,250,250,250,154,295,309,323,338,null,null,null,null,null,null,null,null,null,null,null,null,null,null,null,null,null,null,null,null,null,null,null,null,null,null,null,null,null,null,null,null,null,null,{"$f":"Dataset[[#This Row],[2025/26 From - Spending review Topic 1]]+Dataset[[#This Row],[2025/26 From - Spending review Topic 2]]+Dataset[[#This Row],[2025/26 From - Spending review Topic 3]]+Dataset[[#This Row],[2025/26 From - Spending review Topic 4]]+Dataset[[#This Row],[2025/26 From - Other reallocations]]","v":0},{"$f":"Dataset[[#This Row],[2026/27 From - Spending review Topic 1]]+Dataset[[#This Row],[2026/27 From - Spending review Topic 2]]+Dataset[[#This Row],[2026/27 From - Spending review Topic 3]]+Dataset[[#This Row],[2026/27 From - Spending review Topic 4]]+Dataset[[#This Row],[2026/27 From - Other reallocations]]","v":0},{"$f":"Dataset[[#This Row],[2027/28 From - Spending review Topic 1]]+Dataset[[#This Row],[2027/28 From - Spending review Topic 2]]+Dataset[[#This Row],[2027/28 From - Spending review Topic 3]]+Dataset[[#This Row],[2027/28 From - Spending review Topic 4]]+Dataset[[#This Row],[2027/28 From - Other reallocations]]","v":0},{"$f":"Dataset[[#This Row],[2025/26 To - Spending review Topic 1]]+Dataset[[#This Row],[2025/26 To - Spending review Topic 2]]+Dataset[[#This Row],[2025/26 To - Spending review Topic 3]]+Dataset[[#This Row],[2025/26 To - Spending review Topic 4]]+Dataset[[#This Row],[2025/26 To - Other reallocations]]","v":0},{"$f":"Dataset[[#This Row],[2026/27 To - Spending review Topic 1]]+Dataset[[#This Row],[2026/27 To - Spending review Topic 2]]+Dataset[[#This Row],[2026/27 To - Spending review Topic 3]]+Dataset[[#This Row],[2026/27 To - Spending review Topic 4]]+Dataset[[#This Row],[2026/27 To - Other reallocations]]","v":0},{"$f":"Dataset[[#This Row],[2027/28 To - Spending review Topic 1]]+Dataset[[#This Row],[2027/28 To - Spending review Topic 2]]+Dataset[[#This Row],[2027/28 To - Spending review Topic 3]]+Dataset[[#This Row],[2027/28 To - Spending review Topic 4]]+Dataset[[#This Row],[2027/28 To - Other reallocations]]","v":0},{"$f":"Dataset[[#This Row],[2025/26 Reduction]]+Dataset[[#This Row],[2025/26 From - Total]]","v":0},{"$f":"Dataset[[#This Row],[2026/27 Reduction]]+Dataset[[#This Row],[2026/27 From - Total]]","v":0},{"$f":"Dataset[[#This Row],[2027/28 Reduction]]+Dataset[[#This Row],[2027/28 From - Total]]","v":0},{"$f":"Dataset[[#This Row],[2024/25 Reduction]]","v":0},{"$f":"SUM(Dataset[[#This Row],[2025/26 Reduction]],Dataset[[#This Row],[2025/26 From - Total]],Dataset[[#This Row],[2025/26 To - Total]])","v":0},{"$f":"SUM(Dataset[[#This Row],[2026/27 Reduction]],Dataset[[#This Row],[2026/27 From - Total]],Dataset[[#This Row],[2026/27 To - Total]])","v":0},{"$f":"SUM(Dataset[[#This Row],[2027/28 Reduction]],Dataset[[#This Row],[2027/28 From - Total]],Dataset[[#This Row],[2027/28 To - Total]])","v":0},{"$f":"Dataset[[#This Row],[2024/25 Baseline]]+Dataset[[#This Row],[2024/25 Total change]]","v":295},{"$f":"Dataset[[#This Row],[2025/26 Baseline]]+Dataset[[#This Row],[2025/26 Total change]]","v":309},{"$f":"Dataset[[#This Row],[2026/27 Baseline]]+Dataset[[#This Row],[2026/27 Total change]]","v":323},{"$f":"Dataset[[#This Row],[2027/28 Baseline]]+Dataset[[#This Row],[2027/28 Total change]]","v":338}]
["NAT|Non-transfer item","40|Venues and facilities","2025_26","MTEC2025",40,7,5,53184,1912,"40","07","05","053184","001912","40|07|05|001912","01","01","02","40","40","01|01|02|40|40","National","Transport","Public Transport","Public Transport Administration Support","Non-transfer item","Current","Current payments","Goods and services","Venues and facilities","Venues and facilities","Community development","Community development","NAT",341,30,0,0,0,0,373,0,0,0,0,null,null,null,null,null,null,null,null,null,null,null,null,null,null,null,null,null,null,null,null,null,null,null,null,null,null,null,null,null,null,null,null,null,null,{"$f":"Dataset[[#This Row],[2025/26 From - Spending review Topic 1]]+Dataset[[#This Row],[2025/26 From - Spending review Topic 2]]+Dataset[[#This Row],[2025/26 From - Spending review Topic 3]]+Dataset[[#This Row],[2025/26 From - Spending review Topic 4]]+Dataset[[#This Row],[2025/26 From - Other reallocations]]","v":0},{"$f":"Dataset[[#This Row],[2026/27 From - Spending review Topic 1]]+Dataset[[#This Row],[2026/27 From - Spending review Topic 2]]+Dataset[[#This Row],[2026/27 From - Spending review Topic 3]]+Dataset[[#This Row],[2026/27 From - Spending review Topic 4]]+Dataset[[#This Row],[2026/27 From - Other reallocations]]","v":0},{"$f":"Dataset[[#This Row],[2027/28 From - Spending review Topic 1]]+Dataset[[#This Row],[2027/28 From - Spending review Topic 2]]+Dataset[[#This Row],[2027/28 From - Spending review Topic 3]]+Dataset[[#This Row],[2027/28 From - Spending review Topic 4]]+Dataset[[#This Row],[2027/28 From - Other reallocations]]","v":0},{"$f":"Dataset[[#This Row],[2025/26 To - Spending review Topic 1]]+Dataset[[#This Row],[2025/26 To - Spending review Topic 2]]+Dataset[[#This Row],[2025/26 To - Spending review Topic 3]]+Dataset[[#This Row],[2025/26 To - Spending review Topic 4]]+Dataset[[#This Row],[2025/26 To - Other reallocations]]","v":0},{"$f":"Dataset[[#This Row],[2026/27 To - Spending review Topic 1]]+Dataset[[#This Row],[2026/27 To - Spending review Topic 2]]+Dataset[[#This Row],[2026/27 To - Spending review Topic 3]]+Dataset[[#This Row],[2026/27 To - Spending review Topic 4]]+Dataset[[#This Row],[2026/27 To - Other reallocations]]","v":0},{"$f":"Dataset[[#This Row],[2027/28 To - Spending review Topic 1]]+Dataset[[#This Row],[2027/28 To - Spending review Topic 2]]+Dataset[[#This Row],[2027/28 To - Spending review Topic 3]]+Dataset[[#This Row],[2027/28 To - Spending review Topic 4]]+Dataset[[#This Row],[2027/28 To - Other reallocations]]","v":0},{"$f":"Dataset[[#This Row],[2025/26 Reduction]]+Dataset[[#This Row],[2025/26 From - Total]]","v":0},{"$f":"Dataset[[#This Row],[2026/27 Reduction]]+Dataset[[#This Row],[2026/27 From - Total]]","v":0},{"$f":"Dataset[[#This Row],[2027/28 Reduction]]+Dataset[[#This Row],[2027/28 From - Total]]","v":0},{"$f":"Dataset[[#This Row],[2024/25 Reduction]]","v":0},{"$f":"SUM(Dataset[[#This Row],[2025/26 Reduction]],Dataset[[#This Row],[2025/26 From - Total]],Dataset[[#This Row],[2025/26 To - Total]])","v":0},{"$f":"SUM(Dataset[[#This Row],[2026/27 Reduction]],Dataset[[#This Row],[2026/27 From - Total]],Dataset[[#This Row],[2026/27 To - Total]])","v":0},{"$f":"SUM(Dataset[[#This Row],[2027/28 Reduction]],Dataset[[#This Row],[2027/28 From - Total]],Dataset[[#This Row],[2027/28 To - Total]])","v":0},{"$f":"Dataset[[#This Row],[2024/25 Baseline]]+Dataset[[#This Row],[2024/25 Total change]]","v":0},{"$f":"Dataset[[#This Row],[2025/26 Baseline]]+Dataset[[#This Row],[2025/26 Total change]]","v":0},{"$f":"Dataset[[#This Row],[2026/27 Baseline]]+Dataset[[#This Row],[2026/27 Total change]]","v":0},{"$f":"Dataset[[#This Row],[2027/28 Baseline]]+Dataset[[#This Row],[2027/28 Total change]]","v":0}]
["NAT|Non-transfer item","40|Heritage assets","2025_26","MTEC2025",40,7,5,53192,1920,"40","07","05","053192","001920","40|07|05|001920","02","03","13","58","62","02|03|13|58|62","National","Transport","Public Transport","Public Transport Administration Support","Non-transfer item","Capital","Payments for capital assets","Heritage assets","Heritage assets","Heritage assets","Community development","Community development","NAT",0,0,0,0,0,0,null,0,0,0,0,null,null,null,null,null,null,null,null,null,null,null,null,null,null,null,null,null,null,null,null,null,null,null,null,null,null,null,null,null,null,null,null,null,null,{"$f":"Dataset[[#This Row],[2025/26 From - Spending review Topic 1]]+Dataset[[#This Row],[2025/26 From - Spending review Topic 2]]+Dataset[[#This Row],[2025/26 From - Spending review Topic 3]]+Dataset[[#This Row],[2025/26 From - Spending review Topic 4]]+Dataset[[#This Row],[2025/26 From - Other reallocations]]","v":0},{"$f":"Dataset[[#This Row],[2026/27 From - Spending review Topic 1]]+Dataset[[#This Row],[2026/27 From - Spending review Topic 2]]+Dataset[[#This Row],[2026/27 From - Spending review Topic 3]]+Dataset[[#This Row],[2026/27 From - Spending review Topic 4]]+Dataset[[#This Row],[2026/27 From - Other reallocations]]","v":0},{"$f":"Dataset[[#This Row],[2027/28 From - Spending review Topic 1]]+Dataset[[#This Row],[2027/28 From - Spending review Topic 2]]+Dataset[[#This Row],[2027/28 From - Spending review Topic 3]]+Dataset[[#This Row],[2027/28 From - Spending review Topic 4]]+Dataset[[#This Row],[2027/28 From - Other reallocations]]","v":0},{"$f":"Dataset[[#This Row],[2025/26 To - Spending review Topic 1]]+Dataset[[#This Row],[2025/26 To - Spending review Topic 2]]+Dataset[[#This Row],[2025/26 To - Spending review Topic 3]]+Dataset[[#This Row],[2025/26 To - Spending review Topic 4]]+Dataset[[#This Row],[2025/26 To - Other reallocations]]","v":0},{"$f":"Dataset[[#This Row],[2026/27 To - Spending review Topic 1]]+Dataset[[#This Row],[2026/27 To - Spending review Topic 2]]+Dataset[[#This Row],[2026/27 To - Spending review Topic 3]]+Dataset[[#This Row],[2026/27 To - Spending review Topic 4]]+Dataset[[#This Row],[2026/27 To - Other reallocations]]","v":0},{"$f":"Dataset[[#This Row],[2027/28 To - Spending review Topic 1]]+Dataset[[#This Row],[2027/28 To - Spending review Topic 2]]+Dataset[[#This Row],[2027/28 To - Spending review Topic 3]]+Dataset[[#This Row],[2027/28 To - Spending review Topic 4]]+Dataset[[#This Row],[2027/28 To - Other reallocations]]","v":0},{"$f":"Dataset[[#This Row],[2025/26 Reduction]]+Dataset[[#This Row],[2025/26 From - Total]]","v":0},{"$f":"Dataset[[#This Row],[2026/27 Reduction]]+Dataset[[#This Row],[2026/27 From - Total]]","v":0},{"$f":"Dataset[[#This Row],[2027/28 Reduction]]+Dataset[[#This Row],[2027/28 From - Total]]","v":0},{"$f":"Dataset[[#This Row],[2024/25 Reduction]]","v":0},{"$f":"SUM(Dataset[[#This Row],[2025/26 Reduction]],Dataset[[#This Row],[2025/26 From - Total]],Dataset[[#This Row],[2025/26 To - Total]])","v":0},{"$f":"SUM(Dataset[[#This Row],[2026/27 Reduction]],Dataset[[#This Row],[2026/27 From - Total]],Dataset[[#This Row],[2026/27 To - Total]])","v":0},{"$f":"SUM(Dataset[[#This Row],[2027/28 Reduction]],Dataset[[#This Row],[2027/28 From - Total]],Dataset[[#This Row],[2027/28 To - Total]])","v":0},{"$f":"Dataset[[#This Row],[2024/25 Baseline]]+Dataset[[#This Row],[2024/25 Total change]]","v":0},{"$f":"Dataset[[#This Row],[2025/26 Baseline]]+Dataset[[#This Row],[2025/26 Total change]]","v":0},{"$f":"Dataset[[#This Row],[2026/27 Baseline]]+Dataset[[#This Row],[2026/27 Total change]]","v":0},{"$f":"Dataset[[#This Row],[2027/28 Baseline]]+Dataset[[#This Row],[2027/28 Total change]]","v":0}]
["NAT|Non-transfer item","40|Salaries and wages","2025_26","MTEC2025",40,7,6,53197,1925,"40","07","06","053197","001925","40|07|06|001925","01","01","01","01","01","01|01|01|01|01","National","Transport","Public Transport","Public Transport Network Development","Non-transfer item","Current","Current payments","Compensation of employees","Salaries and wages","Salaries and wages","Community development","Community development","NAT",7077,7418,7750,7620,7620,7620,8144,8009,8368,8752,9148,null,null,null,null,null,null,null,null,null,null,null,null,null,null,null,null,null,null,null,null,null,null,null,null,null,null,null,null,null,null,null,null,null,null,{"$f":"Dataset[[#This Row],[2025/26 From - Spending review Topic 1]]+Dataset[[#This Row],[2025/26 From - Spending review Topic 2]]+Dataset[[#This Row],[2025/26 From - Spending review Topic 3]]+Dataset[[#This Row],[2025/26 From - Spending review Topic 4]]+Dataset[[#This Row],[2025/26 From - Other reallocations]]","v":0},{"$f":"Dataset[[#This Row],[2026/27 From - Spending review Topic 1]]+Dataset[[#This Row],[2026/27 From - Spending review Topic 2]]+Dataset[[#This Row],[2026/27 From - Spending review Topic 3]]+Dataset[[#This Row],[2026/27 From - Spending review Topic 4]]+Dataset[[#This Row],[2026/27 From - Other reallocations]]","v":0},{"$f":"Dataset[[#This Row],[2027/28 From - Spending review Topic 1]]+Dataset[[#This Row],[2027/28 From - Spending review Topic 2]]+Dataset[[#This Row],[2027/28 From - Spending review Topic 3]]+Dataset[[#This Row],[2027/28 From - Spending review Topic 4]]+Dataset[[#This Row],[2027/28 From - Other reallocations]]","v":0},{"$f":"Dataset[[#This Row],[2025/26 To - Spending review Topic 1]]+Dataset[[#This Row],[2025/26 To - Spending review Topic 2]]+Dataset[[#This Row],[2025/26 To - Spending review Topic 3]]+Dataset[[#This Row],[2025/26 To - Spending review Topic 4]]+Dataset[[#This Row],[2025/26 To - Other reallocations]]","v":0},{"$f":"Dataset[[#This Row],[2026/27 To - Spending review Topic 1]]+Dataset[[#This Row],[2026/27 To - Spending review Topic 2]]+Dataset[[#This Row],[2026/27 To - Spending review Topic 3]]+Dataset[[#This Row],[2026/27 To - Spending review Topic 4]]+Dataset[[#This Row],[2026/27 To - Other reallocations]]","v":0},{"$f":"Dataset[[#This Row],[2027/28 To - Spending review Topic 1]]+Dataset[[#This Row],[2027/28 To - Spending review Topic 2]]+Dataset[[#This Row],[2027/28 To - Spending review Topic 3]]+Dataset[[#This Row],[2027/28 To - Spending review Topic 4]]+Dataset[[#This Row],[2027/28 To - Other reallocations]]","v":0},{"$f":"Dataset[[#This Row],[2025/26 Reduction]]+Dataset[[#This Row],[2025/26 From - Total]]","v":0},{"$f":"Dataset[[#This Row],[2026/27 Reduction]]+Dataset[[#This Row],[2026/27 From - Total]]","v":0},{"$f":"Dataset[[#This Row],[2027/28 Reduction]]+Dataset[[#This Row],[2027/28 From - Total]]","v":0},{"$f":"Dataset[[#This Row],[2024/25 Reduction]]","v":0},{"$f":"SUM(Dataset[[#This Row],[2025/26 Reduction]],Dataset[[#This Row],[2025/26 From - Total]],Dataset[[#This Row],[2025/26 To - Total]])","v":0},{"$f":"SUM(Dataset[[#This Row],[2026/27 Reduction]],Dataset[[#This Row],[2026/27 From - Total]],Dataset[[#This Row],[2026/27 To - Total]])","v":0},{"$f":"SUM(Dataset[[#This Row],[2027/28 Reduction]],Dataset[[#This Row],[2027/28 From - Total]],Dataset[[#This Row],[2027/28 To - Total]])","v":0},{"$f":"Dataset[[#This Row],[2024/25 Baseline]]+Dataset[[#This Row],[2024/25 Total change]]","v":8009},{"$f":"Dataset[[#This Row],[2025/26 Baseline]]+Dataset[[#This Row],[2025/26 Total change]]","v":8368},{"$f":"Dataset[[#This Row],[2026/27 Baseline]]+Dataset[[#This Row],[2026/27 Total change]]","v":8752},{"$f":"Dataset[[#This Row],[2027/28 Baseline]]+Dataset[[#This Row],[2027/28 Total change]]","v":9148}]
["NAT|Non-transfer item","40|Communication (G&S)","2025_26","MTEC2025",40,7,6,53205,1933,"40","07","06","053205","001933","40|07|06|001933","01","01","02","09","09","01|01|02|09|09","National","Transport","Public Transport","Public Transport Network Development","Non-transfer item","Current","Current payments","Goods and services","Communication (G&S)","Communication (G&S)","Community development","Community development","NAT",87,127,156,322,322,322,129,322,335,350,366,null,null,null,null,null,null,null,null,null,null,null,null,null,null,null,null,null,null,null,null,null,null,null,null,null,null,null,null,null,null,null,null,null,null,{"$f":"Dataset[[#This Row],[2025/26 From - Spending review Topic 1]]+Dataset[[#This Row],[2025/26 From - Spending review Topic 2]]+Dataset[[#This Row],[2025/26 From - Spending review Topic 3]]+Dataset[[#This Row],[2025/26 From - Spending review Topic 4]]+Dataset[[#This Row],[2025/26 From - Other reallocations]]","v":0},{"$f":"Dataset[[#This Row],[2026/27 From - Spending review Topic 1]]+Dataset[[#This Row],[2026/27 From - Spending review Topic 2]]+Dataset[[#This Row],[2026/27 From - Spending review Topic 3]]+Dataset[[#This Row],[2026/27 From - Spending review Topic 4]]+Dataset[[#This Row],[2026/27 From - Other reallocations]]","v":0},{"$f":"Dataset[[#This Row],[2027/28 From - Spending review Topic 1]]+Dataset[[#This Row],[2027/28 From - Spending review Topic 2]]+Dataset[[#This Row],[2027/28 From - Spending review Topic 3]]+Dataset[[#This Row],[2027/28 From - Spending review Topic 4]]+Dataset[[#This Row],[2027/28 From - Other reallocations]]","v":0},{"$f":"Dataset[[#This Row],[2025/26 To - Spending review Topic 1]]+Dataset[[#This Row],[2025/26 To - Spending review Topic 2]]+Dataset[[#This Row],[2025/26 To - Spending review Topic 3]]+Dataset[[#This Row],[2025/26 To - Spending review Topic 4]]+Dataset[[#This Row],[2025/26 To - Other reallocations]]","v":0},{"$f":"Dataset[[#This Row],[2026/27 To - Spending review Topic 1]]+Dataset[[#This Row],[2026/27 To - Spending review Topic 2]]+Dataset[[#This Row],[2026/27 To - Spending review Topic 3]]+Dataset[[#This Row],[2026/27 To - Spending review Topic 4]]+Dataset[[#This Row],[2026/27 To - Other reallocations]]","v":0},{"$f":"Dataset[[#This Row],[2027/28 To - Spending review Topic 1]]+Dataset[[#This Row],[2027/28 To - Spending review Topic 2]]+Dataset[[#This Row],[2027/28 To - Spending review Topic 3]]+Dataset[[#This Row],[2027/28 To - Spending review Topic 4]]+Dataset[[#This Row],[2027/28 To - Other reallocations]]","v":0},{"$f":"Dataset[[#This Row],[2025/26 Reduction]]+Dataset[[#This Row],[2025/26 From - Total]]","v":0},{"$f":"Dataset[[#This Row],[2026/27 Reduction]]+Dataset[[#This Row],[2026/27 From - Total]]","v":0},{"$f":"Dataset[[#This Row],[2027/28 Reduction]]+Dataset[[#This Row],[2027/28 From - Total]]","v":0},{"$f":"Dataset[[#This Row],[2024/25 Reduction]]","v":0},{"$f":"SUM(Dataset[[#This Row],[2025/26 Reduction]],Dataset[[#This Row],[2025/26 From - Total]],Dataset[[#This Row],[2025/26 To - Total]])","v":0},{"$f":"SUM(Dataset[[#This Row],[2026/27 Reduction]],Dataset[[#This Row],[2026/27 From - Total]],Dataset[[#This Row],[2026/27 To - Total]])","v":0},{"$f":"SUM(Dataset[[#This Row],[2027/28 Reduction]],Dataset[[#This Row],[2027/28 From - Total]],Dataset[[#This Row],[2027/28 To - Total]])","v":0},{"$f":"Dataset[[#This Row],[2024/25 Baseline]]+Dataset[[#This Row],[2024/25 Total change]]","v":322},{"$f":"Dataset[[#This Row],[2025/26 Baseline]]+Dataset[[#This Row],[2025/26 Total change]]","v":335},{"$f":"Dataset[[#This Row],[2026/27 Baseline]]+Dataset[[#This Row],[2026/27 Total change]]","v":350},{"$f":"Dataset[[#This Row],[2027/28 Baseline]]+Dataset[[#This Row],[2027/28 Total change]]","v":366}]
["NAT|Non-transfer item","40|Agency and support/outsourced services","2025_26","MTEC2025",40,7,6,53213,1941,"40","07","06","053213","001941","40|07|06|001941","01","01","02","17","17","01|01|02|17|17","National","Transport","Public Transport","Public Transport Network Development","Non-transfer item","Current","Current payments","Goods and services","Agency and support/outsourced services","Agency and support/outsourced services","Community development","Community development","NAT",0,0,0,0,0,0,null,0,0,0,0,null,null,null,null,null,null,null,null,null,null,null,null,null,null,null,null,null,null,null,null,null,null,null,null,null,null,null,null,null,null,null,null,null,null,{"$f":"Dataset[[#This Row],[2025/26 From - Spending review Topic 1]]+Dataset[[#This Row],[2025/26 From - Spending review Topic 2]]+Dataset[[#This Row],[2025/26 From - Spending review Topic 3]]+Dataset[[#This Row],[2025/26 From - Spending review Topic 4]]+Dataset[[#This Row],[2025/26 From - Other reallocations]]","v":0},{"$f":"Dataset[[#This Row],[2026/27 From - Spending review Topic 1]]+Dataset[[#This Row],[2026/27 From - Spending review Topic 2]]+Dataset[[#This Row],[2026/27 From - Spending review Topic 3]]+Dataset[[#This Row],[2026/27 From - Spending review Topic 4]]+Dataset[[#This Row],[2026/27 From - Other reallocations]]","v":0},{"$f":"Dataset[[#This Row],[2027/28 From - Spending review Topic 1]]+Dataset[[#This Row],[2027/28 From - Spending review Topic 2]]+Dataset[[#This Row],[2027/28 From - Spending review Topic 3]]+Dataset[[#This Row],[2027/28 From - Spending review Topic 4]]+Dataset[[#This Row],[2027/28 From - Other reallocations]]","v":0},{"$f":"Dataset[[#This Row],[2025/26 To - Spending review Topic 1]]+Dataset[[#This Row],[2025/26 To - Spending review Topic 2]]+Dataset[[#This Row],[2025/26 To - Spending review Topic 3]]+Dataset[[#This Row],[2025/26 To - Spending review Topic 4]]+Dataset[[#This Row],[2025/26 To - Other reallocations]]","v":0},{"$f":"Dataset[[#This Row],[2026/27 To - Spending review Topic 1]]+Dataset[[#This Row],[2026/27 To - Spending review Topic 2]]+Dataset[[#This Row],[2026/27 To - Spending review Topic 3]]+Dataset[[#This Row],[2026/27 To - Spending review Topic 4]]+Dataset[[#This Row],[2026/27 To - Other reallocations]]","v":0},{"$f":"Dataset[[#This Row],[2027/28 To - Spending review Topic 1]]+Dataset[[#This Row],[2027/28 To - Spending review Topic 2]]+Dataset[[#This Row],[2027/28 To - Spending review Topic 3]]+Dataset[[#This Row],[2027/28 To - Spending review Topic 4]]+Dataset[[#This Row],[2027/28 To - Other reallocations]]","v":0},{"$f":"Dataset[[#This Row],[2025/26 Reduction]]+Dataset[[#This Row],[2025/26 From - Total]]","v":0},{"$f":"Dataset[[#This Row],[2026/27 Reduction]]+Dataset[[#This Row],[2026/27 From - Total]]","v":0},{"$f":"Dataset[[#This Row],[2027/28 Reduction]]+Dataset[[#This Row],[2027/28 From - Total]]","v":0},{"$f":"Dataset[[#This Row],[2024/25 Reduction]]","v":0},{"$f":"SUM(Dataset[[#This Row],[2025/26 Reduction]],Dataset[[#This Row],[2025/26 From - Total]],Dataset[[#This Row],[2025/26 To - Total]])","v":0},{"$f":"SUM(Dataset[[#This Row],[2026/27 Reduction]],Dataset[[#This Row],[2026/27 From - Total]],Dataset[[#This Row],[2026/27 To - Total]])","v":0},{"$f":"SUM(Dataset[[#This Row],[2027/28 Reduction]],Dataset[[#This Row],[2027/28 From - Total]],Dataset[[#This Row],[2027/28 To - Total]])","v":0},{"$f":"Dataset[[#This Row],[2024/25 Baseline]]+Dataset[[#This Row],[2024/25 Total change]]","v":0},{"$f":"Dataset[[#This Row],[2025/26 Baseline]]+Dataset[[#This Row],[2025/26 Total change]]","v":0},{"$f":"Dataset[[#This Row],[2026/27 Baseline]]+Dataset[[#This Row],[2026/27 Total change]]","v":0},{"$f":"Dataset[[#This Row],[2027/28 Baseline]]+Dataset[[#This Row],[2027/28 Total change]]","v":0}]
["NAT|Non-transfer item","40|Inventory: Farming supplies","2025_26","MTEC2025",40,7,6,53218,1946,"40","07","06","053218","001946","40|07|06|001946","01","01","02","22","22","01|01|02|22|22","National","Transport","Public Transport","Public Transport Network Development","Non-transfer item","Current","Current payments","Goods and services","Inventory: Farming supplies","Inventory: Farming supplies","Community development","Community development","NAT",0,0,0,0,0,0,null,0,0,0,0,null,null,null,null,null,null,null,null,null,null,null,null,null,null,null,null,null,null,null,null,null,null,null,null,null,null,null,null,null,null,null,null,null,null,{"$f":"Dataset[[#This Row],[2025/26 From - Spending review Topic 1]]+Dataset[[#This Row],[2025/26 From - Spending review Topic 2]]+Dataset[[#This Row],[2025/26 From - Spending review Topic 3]]+Dataset[[#This Row],[2025/26 From - Spending review Topic 4]]+Dataset[[#This Row],[2025/26 From - Other reallocations]]","v":0},{"$f":"Dataset[[#This Row],[2026/27 From - Spending review Topic 1]]+Dataset[[#This Row],[2026/27 From - Spending review Topic 2]]+Dataset[[#This Row],[2026/27 From - Spending review Topic 3]]+Dataset[[#This Row],[2026/27 From - Spending review Topic 4]]+Dataset[[#This Row],[2026/27 From - Other reallocations]]","v":0},{"$f":"Dataset[[#This Row],[2027/28 From - Spending review Topic 1]]+Dataset[[#This Row],[2027/28 From - Spending review Topic 2]]+Dataset[[#This Row],[2027/28 From - Spending review Topic 3]]+Dataset[[#This Row],[2027/28 From - Spending review Topic 4]]+Dataset[[#This Row],[2027/28 From - Other reallocations]]","v":0},{"$f":"Dataset[[#This Row],[2025/26 To - Spending review Topic 1]]+Dataset[[#This Row],[2025/26 To - Spending review Topic 2]]+Dataset[[#This Row],[2025/26 To - Spending review Topic 3]]+Dataset[[#This Row],[2025/26 To - Spending review Topic 4]]+Dataset[[#This Row],[2025/26 To - Other reallocations]]","v":0},{"$f":"Dataset[[#This Row],[2026/27 To - Spending review Topic 1]]+Dataset[[#This Row],[2026/27 To - Spending review Topic 2]]+Dataset[[#This Row],[2026/27 To - Spending review Topic 3]]+Dataset[[#This Row],[2026/27 To - Spending review Topic 4]]+Dataset[[#This Row],[2026/27 To - Other reallocations]]","v":0},{"$f":"Dataset[[#This Row],[2027/28 To - Spending review Topic 1]]+Dataset[[#This Row],[2027/28 To - Spending review Topic 2]]+Dataset[[#This Row],[2027/28 To - Spending review Topic 3]]+Dataset[[#This Row],[2027/28 To - Spending review Topic 4]]+Dataset[[#This Row],[2027/28 To - Other reallocations]]","v":0},{"$f":"Dataset[[#This Row],[2025/26 Reduction]]+Dataset[[#This Row],[2025/26 From - Total]]","v":0},{"$f":"Dataset[[#This Row],[2026/27 Reduction]]+Dataset[[#This Row],[2026/27 From - Total]]","v":0},{"$f":"Dataset[[#This Row],[2027/28 Reduction]]+Dataset[[#This Row],[2027/28 From - Total]]","v":0},{"$f":"Dataset[[#This Row],[2024/25 Reduction]]","v":0},{"$f":"SUM(Dataset[[#This Row],[2025/26 Reduction]],Dataset[[#This Row],[2025/26 From - Total]],Dataset[[#This Row],[2025/26 To - Total]])","v":0},{"$f":"SUM(Dataset[[#This Row],[2026/27 Reduction]],Dataset[[#This Row],[2026/27 From - Total]],Dataset[[#This Row],[2026/27 To - Total]])","v":0},{"$f":"SUM(Dataset[[#This Row],[2027/28 Reduction]],Dataset[[#This Row],[2027/28 From - Total]],Dataset[[#This Row],[2027/28 To - Total]])","v":0},{"$f":"Dataset[[#This Row],[2024/25 Baseline]]+Dataset[[#This Row],[2024/25 Total change]]","v":0},{"$f":"Dataset[[#This Row],[2025/26 Baseline]]+Dataset[[#This Row],[2025/26 Total change]]","v":0},{"$f":"Dataset[[#This Row],[2026/27 Baseline]]+Dataset[[#This Row],[2026/27 Total change]]","v":0},{"$f":"Dataset[[#This Row],[2027/28 Baseline]]+Dataset[[#This Row],[2027/28 Total change]]","v":0}]
["NAT|Non-transfer item","40|Inventory: Other supplies","2025_26","MTEC2025",40,7,6,53226,1954,"40","07","06","053226","001954","40|07|06|001954","01","01","02","30","30","01|01|02|30|30","National","Transport","Public Transport","Public Transport Network Development","Non-transfer item","Current","Current payments","Goods and services","Inventory: Other supplies","Inventory: Other supplies","Community development","Community development","NAT",0,0,0,0,0,0,null,0,0,0,0,null,null,null,null,null,null,null,null,null,null,null,null,null,null,null,null,null,null,null,null,null,null,null,null,null,null,null,null,null,null,null,null,null,null,{"$f":"Dataset[[#This Row],[2025/26 From - Spending review Topic 1]]+Dataset[[#This Row],[2025/26 From - Spending review Topic 2]]+Dataset[[#This Row],[2025/26 From - Spending review Topic 3]]+Dataset[[#This Row],[2025/26 From - Spending review Topic 4]]+Dataset[[#This Row],[2025/26 From - Other reallocations]]","v":0},{"$f":"Dataset[[#This Row],[2026/27 From - Spending review Topic 1]]+Dataset[[#This Row],[2026/27 From - Spending review Topic 2]]+Dataset[[#This Row],[2026/27 From - Spending review Topic 3]]+Dataset[[#This Row],[2026/27 From - Spending review Topic 4]]+Dataset[[#This Row],[2026/27 From - Other reallocations]]","v":0},{"$f":"Dataset[[#This Row],[2027/28 From - Spending review Topic 1]]+Dataset[[#This Row],[2027/28 From - Spending review Topic 2]]+Dataset[[#This Row],[2027/28 From - Spending review Topic 3]]+Dataset[[#This Row],[2027/28 From - Spending review Topic 4]]+Dataset[[#This Row],[2027/28 From - Other reallocations]]","v":0},{"$f":"Dataset[[#This Row],[2025/26 To - Spending review Topic 1]]+Dataset[[#This Row],[2025/26 To - Spending review Topic 2]]+Dataset[[#This Row],[2025/26 To - Spending review Topic 3]]+Dataset[[#This Row],[2025/26 To - Spending review Topic 4]]+Dataset[[#This Row],[2025/26 To - Other reallocations]]","v":0},{"$f":"Dataset[[#This Row],[2026/27 To - Spending review Topic 1]]+Dataset[[#This Row],[2026/27 To - Spending review Topic 2]]+Dataset[[#This Row],[2026/27 To - Spending review Topic 3]]+Dataset[[#This Row],[2026/27 To - Spending review Topic 4]]+Dataset[[#This Row],[2026/27 To - Other reallocations]]","v":0},{"$f":"Dataset[[#This Row],[2027/28 To - Spending review Topic 1]]+Dataset[[#This Row],[2027/28 To - Spending review Topic 2]]+Dataset[[#This Row],[2027/28 To - Spending review Topic 3]]+Dataset[[#This Row],[2027/28 To - Spending review Topic 4]]+Dataset[[#This Row],[2027/28 To - Other reallocations]]","v":0},{"$f":"Dataset[[#This Row],[2025/26 Reduction]]+Dataset[[#This Row],[2025/26 From - Total]]","v":0},{"$f":"Dataset[[#This Row],[2026/27 Reduction]]+Dataset[[#This Row],[2026/27 From - Total]]","v":0},{"$f":"Dataset[[#This Row],[2027/28 Reduction]]+Dataset[[#This Row],[2027/28 From - Total]]","v":0},{"$f":"Dataset[[#This Row],[2024/25 Reduction]]","v":0},{"$f":"SUM(Dataset[[#This Row],[2025/26 Reduction]],Dataset[[#This Row],[2025/26 From - Total]],Dataset[[#This Row],[2025/26 To - Total]])","v":0},{"$f":"SUM(Dataset[[#This Row],[2026/27 Reduction]],Dataset[[#This Row],[2026/27 From - Total]],Dataset[[#This Row],[2026/27 To - Total]])","v":0},{"$f":"SUM(Dataset[[#This Row],[2027/28 Reduction]],Dataset[[#This Row],[2027/28 From - Total]],Dataset[[#This Row],[2027/28 To - Total]])","v":0},{"$f":"Dataset[[#This Row],[2024/25 Baseline]]+Dataset[[#This Row],[2024/25 Total change]]","v":0},{"$f":"Dataset[[#This Row],[2025/26 Baseline]]+Dataset[[#This Row],[2025/26 Total change]]","v":0},{"$f":"Dataset[[#This Row],[2026/27 Baseline]]+Dataset[[#This Row],[2026/27 Total change]]","v":0},{"$f":"Dataset[[#This Row],[2027/28 Baseline]]+Dataset[[#This Row],[2027/28 Total change]]","v":0}]
["NAT|Non-transfer item","40|Property payments","2025_26","MTEC2025",40,7,6,53231,1959,"40","07","06","053231","001959","40|07|06|001959","01","01","02","35","35","01|01|02|35|35","National","Transport","Public Transport","Public Transport Network Development","Non-transfer item","Current","Current payments","Goods and services","Property payments","Property payments","Community development","Community development","NAT",0,0,0,0,0,0,null,0,0,0,0,null,null,null,null,null,null,null,null,null,null,null,null,null,null,null,null,null,null,null,null,null,null,null,null,null,null,null,null,null,null,null,null,null,null,{"$f":"Dataset[[#This Row],[2025/26 From - Spending review Topic 1]]+Dataset[[#This Row],[2025/26 From - Spending review Topic 2]]+Dataset[[#This Row],[2025/26 From - Spending review Topic 3]]+Dataset[[#This Row],[2025/26 From - Spending review Topic 4]]+Dataset[[#This Row],[2025/26 From - Other reallocations]]","v":0},{"$f":"Dataset[[#This Row],[2026/27 From - Spending review Topic 1]]+Dataset[[#This Row],[2026/27 From - Spending review Topic 2]]+Dataset[[#This Row],[2026/27 From - Spending review Topic 3]]+Dataset[[#This Row],[2026/27 From - Spending review Topic 4]]+Dataset[[#This Row],[2026/27 From - Other reallocations]]","v":0},{"$f":"Dataset[[#This Row],[2027/28 From - Spending review Topic 1]]+Dataset[[#This Row],[2027/28 From - Spending review Topic 2]]+Dataset[[#This Row],[2027/28 From - Spending review Topic 3]]+Dataset[[#This Row],[2027/28 From - Spending review Topic 4]]+Dataset[[#This Row],[2027/28 From - Other reallocations]]","v":0},{"$f":"Dataset[[#This Row],[2025/26 To - Spending review Topic 1]]+Dataset[[#This Row],[2025/26 To - Spending review Topic 2]]+Dataset[[#This Row],[2025/26 To - Spending review Topic 3]]+Dataset[[#This Row],[2025/26 To - Spending review Topic 4]]+Dataset[[#This Row],[2025/26 To - Other reallocations]]","v":0},{"$f":"Dataset[[#This Row],[2026/27 To - Spending review Topic 1]]+Dataset[[#This Row],[2026/27 To - Spending review Topic 2]]+Dataset[[#This Row],[2026/27 To - Spending review Topic 3]]+Dataset[[#This Row],[2026/27 To - Spending review Topic 4]]+Dataset[[#This Row],[2026/27 To - Other reallocations]]","v":0},{"$f":"Dataset[[#This Row],[2027/28 To - Spending review Topic 1]]+Dataset[[#This Row],[2027/28 To - Spending review Topic 2]]+Dataset[[#This Row],[2027/28 To - Spending review Topic 3]]+Dataset[[#This Row],[2027/28 To - Spending review Topic 4]]+Dataset[[#This Row],[2027/28 To - Other reallocations]]","v":0},{"$f":"Dataset[[#This Row],[2025/26 Reduction]]+Dataset[[#This Row],[2025/26 From - Total]]","v":0},{"$f":"Dataset[[#This Row],[2026/27 Reduction]]+Dataset[[#This Row],[2026/27 From - Total]]","v":0},{"$f":"Dataset[[#This Row],[2027/28 Reduction]]+Dataset[[#This Row],[2027/28 From - Total]]","v":0},{"$f":"Dataset[[#This Row],[2024/25 Reduction]]","v":0},{"$f":"SUM(Dataset[[#This Row],[2025/26 Reduction]],Dataset[[#This Row],[2025/26 From - Total]],Dataset[[#This Row],[2025/26 To - Total]])","v":0},{"$f":"SUM(Dataset[[#This Row],[2026/27 Reduction]],Dataset[[#This Row],[2026/27 From - Total]],Dataset[[#This Row],[2026/27 To - Total]])","v":0},{"$f":"SUM(Dataset[[#This Row],[2027/28 Reduction]],Dataset[[#This Row],[2027/28 From - Total]],Dataset[[#This Row],[2027/28 To - Total]])","v":0},{"$f":"Dataset[[#This Row],[2024/25 Baseline]]+Dataset[[#This Row],[2024/25 Total change]]","v":0},{"$f":"Dataset[[#This Row],[2025/26 Baseline]]+Dataset[[#This Row],[2025/26 Total change]]","v":0},{"$f":"Dataset[[#This Row],[2026/27 Baseline]]+Dataset[[#This Row],[2026/27 Total change]]","v":0},{"$f":"Dataset[[#This Row],[2027/28 Baseline]]+Dataset[[#This Row],[2027/28 Total change]]","v":0}]
["NAT|Non-transfer item","40|Rent on land","2025_26","MTEC2025",40,7,6,53238,1966,"40","07","06","053238","001966","40|07|06|001966","01","01","03","42","42","01|01|03|42|42","National","Transport","Public Transport","Public Transport Network Development","Non-transfer item","Current","Current payments","Interest and rent on land","Rent on land","Rent on land","Community development","Community development","NAT",0,0,0,0,0,0,null,0,0,0,0,null,null,null,null,null,null,null,null,null,null,null,null,null,null,null,null,null,null,null,null,null,null,null,null,null,null,null,null,null,null,null,null,null,null,{"$f":"Dataset[[#This Row],[2025/26 From - Spending review Topic 1]]+Dataset[[#This Row],[2025/26 From - Spending review Topic 2]]+Dataset[[#This Row],[2025/26 From - Spending review Topic 3]]+Dataset[[#This Row],[2025/26 From - Spending review Topic 4]]+Dataset[[#This Row],[2025/26 From - Other reallocations]]","v":0},{"$f":"Dataset[[#This Row],[2026/27 From - Spending review Topic 1]]+Dataset[[#This Row],[2026/27 From - Spending review Topic 2]]+Dataset[[#This Row],[2026/27 From - Spending review Topic 3]]+Dataset[[#This Row],[2026/27 From - Spending review Topic 4]]+Dataset[[#This Row],[2026/27 From - Other reallocations]]","v":0},{"$f":"Dataset[[#This Row],[2027/28 From - Spending review Topic 1]]+Dataset[[#This Row],[2027/28 From - Spending review Topic 2]]+Dataset[[#This Row],[2027/28 From - Spending review Topic 3]]+Dataset[[#This Row],[2027/28 From - Spending review Topic 4]]+Dataset[[#This Row],[2027/28 From - Other reallocations]]","v":0},{"$f":"Dataset[[#This Row],[2025/26 To - Spending review Topic 1]]+Dataset[[#This Row],[2025/26 To - Spending review Topic 2]]+Dataset[[#This Row],[2025/26 To - Spending review Topic 3]]+Dataset[[#This Row],[2025/26 To - Spending review Topic 4]]+Dataset[[#This Row],[2025/26 To - Other reallocations]]","v":0},{"$f":"Dataset[[#This Row],[2026/27 To - Spending review Topic 1]]+Dataset[[#This Row],[2026/27 To - Spending review Topic 2]]+Dataset[[#This Row],[2026/27 To - Spending review Topic 3]]+Dataset[[#This Row],[2026/27 To - Spending review Topic 4]]+Dataset[[#This Row],[2026/27 To - Other reallocations]]","v":0},{"$f":"Dataset[[#This Row],[2027/28 To - Spending review Topic 1]]+Dataset[[#This Row],[2027/28 To - Spending review Topic 2]]+Dataset[[#This Row],[2027/28 To - Spending review Topic 3]]+Dataset[[#This Row],[2027/28 To - Spending review Topic 4]]+Dataset[[#This Row],[2027/28 To - Other reallocations]]","v":0},{"$f":"Dataset[[#This Row],[2025/26 Reduction]]+Dataset[[#This Row],[2025/26 From - Total]]","v":0},{"$f":"Dataset[[#This Row],[2026/27 Reduction]]+Dataset[[#This Row],[2026/27 From - Total]]","v":0},{"$f":"Dataset[[#This Row],[2027/28 Reduction]]+Dataset[[#This Row],[2027/28 From - Total]]","v":0},{"$f":"Dataset[[#This Row],[2024/25 Reduction]]","v":0},{"$f":"SUM(Dataset[[#This Row],[2025/26 Reduction]],Dataset[[#This Row],[2025/26 From - Total]],Dataset[[#This Row],[2025/26 To - Total]])","v":0},{"$f":"SUM(Dataset[[#This Row],[2026/27 Reduction]],Dataset[[#This Row],[2026/27 From - Total]],Dataset[[#This Row],[2026/27 To - Total]])","v":0},{"$f":"SUM(Dataset[[#This Row],[2027/28 Reduction]],Dataset[[#This Row],[2027/28 From - Total]],Dataset[[#This Row],[2027/28 To - Total]])","v":0},{"$f":"Dataset[[#This Row],[2024/25 Baseline]]+Dataset[[#This Row],[2024/25 Total change]]","v":0},{"$f":"Dataset[[#This Row],[2025/26 Baseline]]+Dataset[[#This Row],[2025/26 Total change]]","v":0},{"$f":"Dataset[[#This Row],[2026/27 Baseline]]+Dataset[[#This Row],[2026/27 Total change]]","v":0},{"$f":"Dataset[[#This Row],[2027/28 Baseline]]+Dataset[[#This Row],[2027/28 Total change]]","v":0}]
["NAT|Non-transfer item","40|Buildings","2025_26","MTEC2025",40,7,6,53239,1967,"40","07","06","053239","001967","40|07|06|001967","02","03","11","54","58","02|03|11|54|58","National","Transport","Public Transport","Public Transport Network Development","Non-transfer item","Capital","Payments for capital assets","Buildings and other fixed structures","Buildings","Buildings","Community development","Community development","NAT",0,0,0,0,0,0,null,0,0,0,0,null,null,null,null,null,null,null,null,null,null,null,null,null,null,null,null,null,null,null,null,null,null,null,null,null,null,null,null,null,null,null,null,null,null,{"$f":"Dataset[[#This Row],[2025/26 From - Spending review Topic 1]]+Dataset[[#This Row],[2025/26 From - Spending review Topic 2]]+Dataset[[#This Row],[2025/26 From - Spending review Topic 3]]+Dataset[[#This Row],[2025/26 From - Spending review Topic 4]]+Dataset[[#This Row],[2025/26 From - Other reallocations]]","v":0},{"$f":"Dataset[[#This Row],[2026/27 From - Spending review Topic 1]]+Dataset[[#This Row],[2026/27 From - Spending review Topic 2]]+Dataset[[#This Row],[2026/27 From - Spending review Topic 3]]+Dataset[[#This Row],[2026/27 From - Spending review Topic 4]]+Dataset[[#This Row],[2026/27 From - Other reallocations]]","v":0},{"$f":"Dataset[[#This Row],[2027/28 From - Spending review Topic 1]]+Dataset[[#This Row],[2027/28 From - Spending review Topic 2]]+Dataset[[#This Row],[2027/28 From - Spending review Topic 3]]+Dataset[[#This Row],[2027/28 From - Spending review Topic 4]]+Dataset[[#This Row],[2027/28 From - Other reallocations]]","v":0},{"$f":"Dataset[[#This Row],[2025/26 To - Spending review Topic 1]]+Dataset[[#This Row],[2025/26 To - Spending review Topic 2]]+Dataset[[#This Row],[2025/26 To - Spending review Topic 3]]+Dataset[[#This Row],[2025/26 To - Spending review Topic 4]]+Dataset[[#This Row],[2025/26 To - Other reallocations]]","v":0},{"$f":"Dataset[[#This Row],[2026/27 To - Spending review Topic 1]]+Dataset[[#This Row],[2026/27 To - Spending review Topic 2]]+Dataset[[#This Row],[2026/27 To - Spending review Topic 3]]+Dataset[[#This Row],[2026/27 To - Spending review Topic 4]]+Dataset[[#This Row],[2026/27 To - Other reallocations]]","v":0},{"$f":"Dataset[[#This Row],[2027/28 To - Spending review Topic 1]]+Dataset[[#This Row],[2027/28 To - Spending review Topic 2]]+Dataset[[#This Row],[2027/28 To - Spending review Topic 3]]+Dataset[[#This Row],[2027/28 To - Spending review Topic 4]]+Dataset[[#This Row],[2027/28 To - Other reallocations]]","v":0},{"$f":"Dataset[[#This Row],[2025/26 Reduction]]+Dataset[[#This Row],[2025/26 From - Total]]","v":0},{"$f":"Dataset[[#This Row],[2026/27 Reduction]]+Dataset[[#This Row],[2026/27 From - Total]]","v":0},{"$f":"Dataset[[#This Row],[2027/28 Reduction]]+Dataset[[#This Row],[2027/28 From - Total]]","v":0},{"$f":"Dataset[[#This Row],[2024/25 Reduction]]","v":0},{"$f":"SUM(Dataset[[#This Row],[2025/26 Reduction]],Dataset[[#This Row],[2025/26 From - Total]],Dataset[[#This Row],[2025/26 To - Total]])","v":0},{"$f":"SUM(Dataset[[#This Row],[2026/27 Reduction]],Dataset[[#This Row],[2026/27 From - Total]],Dataset[[#This Row],[2026/27 To - Total]])","v":0},{"$f":"SUM(Dataset[[#This Row],[2027/28 Reduction]],Dataset[[#This Row],[2027/28 From - Total]],Dataset[[#This Row],[2027/28 To - Total]])","v":0},{"$f":"Dataset[[#This Row],[2024/25 Baseline]]+Dataset[[#This Row],[2024/25 Total change]]","v":0},{"$f":"Dataset[[#This Row],[2025/26 Baseline]]+Dataset[[#This Row],[2025/26 Total change]]","v":0},{"$f":"Dataset[[#This Row],[2026/27 Baseline]]+Dataset[[#This Row],[2026/27 Total change]]","v":0},{"$f":"Dataset[[#This Row],[2027/28 Baseline]]+Dataset[[#This Row],[2027/28 Total change]]","v":0}]
["NAT|Non-transfer item","40|Other fixed structures","2025_26","MTEC2025",40,7,6,53240,1968,"40","07","06","053240","001968","40|07|06|001968","02","03","11","55","59","02|03|11|55|59","National","Transport","Public Transport","Public Transport Network Development","Non-transfer item","Capital","Payments for capital assets","Buildings and other fixed structures","Other fixed structures","Other fixed structures","Community development","Community development","NAT",0,0,0,0,0,0,null,0,0,0,0,null,null,null,null,null,null,null,null,null,null,null,null,null,null,null,null,null,null,null,null,null,null,null,null,null,null,null,null,null,null,null,null,null,null,{"$f":"Dataset[[#This Row],[2025/26 From - Spending review Topic 1]]+Dataset[[#This Row],[2025/26 From - Spending review Topic 2]]+Dataset[[#This Row],[2025/26 From - Spending review Topic 3]]+Dataset[[#This Row],[2025/26 From - Spending review Topic 4]]+Dataset[[#This Row],[2025/26 From - Other reallocations]]","v":0},{"$f":"Dataset[[#This Row],[2026/27 From - Spending review Topic 1]]+Dataset[[#This Row],[2026/27 From - Spending review Topic 2]]+Dataset[[#This Row],[2026/27 From - Spending review Topic 3]]+Dataset[[#This Row],[2026/27 From - Spending review Topic 4]]+Dataset[[#This Row],[2026/27 From - Other reallocations]]","v":0},{"$f":"Dataset[[#This Row],[2027/28 From - Spending review Topic 1]]+Dataset[[#This Row],[2027/28 From - Spending review Topic 2]]+Dataset[[#This Row],[2027/28 From - Spending review Topic 3]]+Dataset[[#This Row],[2027/28 From - Spending review Topic 4]]+Dataset[[#This Row],[2027/28 From - Other reallocations]]","v":0},{"$f":"Dataset[[#This Row],[2025/26 To - Spending review Topic 1]]+Dataset[[#This Row],[2025/26 To - Spending review Topic 2]]+Dataset[[#This Row],[2025/26 To - Spending review Topic 3]]+Dataset[[#This Row],[2025/26 To - Spending review Topic 4]]+Dataset[[#This Row],[2025/26 To - Other reallocations]]","v":0},{"$f":"Dataset[[#This Row],[2026/27 To - Spending review Topic 1]]+Dataset[[#This Row],[2026/27 To - Spending review Topic 2]]+Dataset[[#This Row],[2026/27 To - Spending review Topic 3]]+Dataset[[#This Row],[2026/27 To - Spending review Topic 4]]+Dataset[[#This Row],[2026/27 To - Other reallocations]]","v":0},{"$f":"Dataset[[#This Row],[2027/28 To - Spending review Topic 1]]+Dataset[[#This Row],[2027/28 To - Spending review Topic 2]]+Dataset[[#This Row],[2027/28 To - Spending review Topic 3]]+Dataset[[#This Row],[2027/28 To - Spending review Topic 4]]+Dataset[[#This Row],[2027/28 To - Other reallocations]]","v":0},{"$f":"Dataset[[#This Row],[2025/26 Reduction]]+Dataset[[#This Row],[2025/26 From - Total]]","v":0},{"$f":"Dataset[[#This Row],[2026/27 Reduction]]+Dataset[[#This Row],[2026/27 From - Total]]","v":0},{"$f":"Dataset[[#This Row],[2027/28 Reduction]]+Dataset[[#This Row],[2027/28 From - Total]]","v":0},{"$f":"Dataset[[#This Row],[2024/25 Reduction]]","v":0},{"$f":"SUM(Dataset[[#This Row],[2025/26 Reduction]],Dataset[[#This Row],[2025/26 From - Total]],Dataset[[#This Row],[2025/26 To - Total]])","v":0},{"$f":"SUM(Dataset[[#This Row],[2026/27 Reduction]],Dataset[[#This Row],[2026/27 From - Total]],Dataset[[#This Row],[2026/27 To - Total]])","v":0},{"$f":"SUM(Dataset[[#This Row],[2027/28 Reduction]],Dataset[[#This Row],[2027/28 From - Total]],Dataset[[#This Row],[2027/28 To - Total]])","v":0},{"$f":"Dataset[[#This Row],[2024/25 Baseline]]+Dataset[[#This Row],[2024/25 Total change]]","v":0},{"$f":"Dataset[[#This Row],[2025/26 Baseline]]+Dataset[[#This Row],[2025/26 Total change]]","v":0},{"$f":"Dataset[[#This Row],[2026/27 Baseline]]+Dataset[[#This Row],[2026/27 Total change]]","v":0},{"$f":"Dataset[[#This Row],[2027/28 Baseline]]+Dataset[[#This Row],[2027/28 Total change]]","v":0}]
["NAT|Non-transfer item","40|Transport equipment","2025_26","MTEC2025",40,7,6,53241,1969,"40","07","06","053241","001969","40|07|06|001969","02","03","12","56","60","02|03|12|56|60","National","Transport","Public Transport","Public Transport Network Development","Non-transfer item","Capital","Payments for capital assets","Machinery and equipment","Transport equipment","Transport equipment","Community development","Community development","NAT",0,0,0,0,0,0,null,0,0,0,0,null,null,null,null,null,null,null,null,null,null,null,null,null,null,null,null,null,null,null,null,null,null,null,null,null,null,null,null,null,null,null,null,null,null,{"$f":"Dataset[[#This Row],[2025/26 From - Spending review Topic 1]]+Dataset[[#This Row],[2025/26 From - Spending review Topic 2]]+Dataset[[#This Row],[2025/26 From - Spending review Topic 3]]+Dataset[[#This Row],[2025/26 From - Spending review Topic 4]]+Dataset[[#This Row],[2025/26 From - Other reallocations]]","v":0},{"$f":"Dataset[[#This Row],[2026/27 From - Spending review Topic 1]]+Dataset[[#This Row],[2026/27 From - Spending review Topic 2]]+Dataset[[#This Row],[2026/27 From - Spending review Topic 3]]+Dataset[[#This Row],[2026/27 From - Spending review Topic 4]]+Dataset[[#This Row],[2026/27 From - Other reallocations]]","v":0},{"$f":"Dataset[[#This Row],[2027/28 From - Spending review Topic 1]]+Dataset[[#This Row],[2027/28 From - Spending review Topic 2]]+Dataset[[#This Row],[2027/28 From - Spending review Topic 3]]+Dataset[[#This Row],[2027/28 From - Spending review Topic 4]]+Dataset[[#This Row],[2027/28 From - Other reallocations]]","v":0},{"$f":"Dataset[[#This Row],[2025/26 To - Spending review Topic 1]]+Dataset[[#This Row],[2025/26 To - Spending review Topic 2]]+Dataset[[#This Row],[2025/26 To - Spending review Topic 3]]+Dataset[[#This Row],[2025/26 To - Spending review Topic 4]]+Dataset[[#This Row],[2025/26 To - Other reallocations]]","v":0},{"$f":"Dataset[[#This Row],[2026/27 To - Spending review Topic 1]]+Dataset[[#This Row],[2026/27 To - Spending review Topic 2]]+Dataset[[#This Row],[2026/27 To - Spending review Topic 3]]+Dataset[[#This Row],[2026/27 To - Spending review Topic 4]]+Dataset[[#This Row],[2026/27 To - Other reallocations]]","v":0},{"$f":"Dataset[[#This Row],[2027/28 To - Spending review Topic 1]]+Dataset[[#This Row],[2027/28 To - Spending review Topic 2]]+Dataset[[#This Row],[2027/28 To - Spending review Topic 3]]+Dataset[[#This Row],[2027/28 To - Spending review Topic 4]]+Dataset[[#This Row],[2027/28 To - Other reallocations]]","v":0},{"$f":"Dataset[[#This Row],[2025/26 Reduction]]+Dataset[[#This Row],[2025/26 From - Total]]","v":0},{"$f":"Dataset[[#This Row],[2026/27 Reduction]]+Dataset[[#This Row],[2026/27 From - Total]]","v":0},{"$f":"Dataset[[#This Row],[2027/28 Reduction]]+Dataset[[#This Row],[2027/28 From - Total]]","v":0},{"$f":"Dataset[[#This Row],[2024/25 Reduction]]","v":0},{"$f":"SUM(Dataset[[#This Row],[2025/26 Reduction]],Dataset[[#This Row],[2025/26 From - Total]],Dataset[[#This Row],[2025/26 To - Total]])","v":0},{"$f":"SUM(Dataset[[#This Row],[2026/27 Reduction]],Dataset[[#This Row],[2026/27 From - Total]],Dataset[[#This Row],[2026/27 To - Total]])","v":0},{"$f":"SUM(Dataset[[#This Row],[2027/28 Reduction]],Dataset[[#This Row],[2027/28 From - Total]],Dataset[[#This Row],[2027/28 To - Total]])","v":0},{"$f":"Dataset[[#This Row],[2024/25 Baseline]]+Dataset[[#This Row],[2024/25 Total change]]","v":0},{"$f":"Dataset[[#This Row],[2025/26 Baseline]]+Dataset[[#This Row],[2025/26 Total change]]","v":0},{"$f":"Dataset[[#This Row],[2026/27 Baseline]]+Dataset[[#This Row],[2026/27 Total change]]","v":0},{"$f":"Dataset[[#This Row],[2027/28 Baseline]]+Dataset[[#This Row],[2027/28 Total change]]","v":0}]
["NAT|Non-transfer item","40|Other machinery and equipment","2025_26","MTEC2025",40,7,6,53242,1970,"40","07","06","053242","001970","40|07|06|001970","02","03","12","57","61","02|03|12|57|61","National","Transport","Public Transport","Public Transport Network Development","Non-transfer item","Capital","Payments for capital assets","Machinery and equipment","Other machinery and equipment","Other machinery and equipment","Community development","Community development","NAT",5,0,23,0,0,0,38,0,0,0,0,null,null,null,null,null,null,null,null,null,null,null,null,null,null,null,null,null,null,null,null,null,null,null,null,null,null,null,null,null,null,null,null,null,null,{"$f":"Dataset[[#This Row],[2025/26 From - Spending review Topic 1]]+Dataset[[#This Row],[2025/26 From - Spending review Topic 2]]+Dataset[[#This Row],[2025/26 From - Spending review Topic 3]]+Dataset[[#This Row],[2025/26 From - Spending review Topic 4]]+Dataset[[#This Row],[2025/26 From - Other reallocations]]","v":0},{"$f":"Dataset[[#This Row],[2026/27 From - Spending review Topic 1]]+Dataset[[#This Row],[2026/27 From - Spending review Topic 2]]+Dataset[[#This Row],[2026/27 From - Spending review Topic 3]]+Dataset[[#This Row],[2026/27 From - Spending review Topic 4]]+Dataset[[#This Row],[2026/27 From - Other reallocations]]","v":0},{"$f":"Dataset[[#This Row],[2027/28 From - Spending review Topic 1]]+Dataset[[#This Row],[2027/28 From - Spending review Topic 2]]+Dataset[[#This Row],[2027/28 From - Spending review Topic 3]]+Dataset[[#This Row],[2027/28 From - Spending review Topic 4]]+Dataset[[#This Row],[2027/28 From - Other reallocations]]","v":0},{"$f":"Dataset[[#This Row],[2025/26 To - Spending review Topic 1]]+Dataset[[#This Row],[2025/26 To - Spending review Topic 2]]+Dataset[[#This Row],[2025/26 To - Spending review Topic 3]]+Dataset[[#This Row],[2025/26 To - Spending review Topic 4]]+Dataset[[#This Row],[2025/26 To - Other reallocations]]","v":0},{"$f":"Dataset[[#This Row],[2026/27 To - Spending review Topic 1]]+Dataset[[#This Row],[2026/27 To - Spending review Topic 2]]+Dataset[[#This Row],[2026/27 To - Spending review Topic 3]]+Dataset[[#This Row],[2026/27 To - Spending review Topic 4]]+Dataset[[#This Row],[2026/27 To - Other reallocations]]","v":0},{"$f":"Dataset[[#This Row],[2027/28 To - Spending review Topic 1]]+Dataset[[#This Row],[2027/28 To - Spending review Topic 2]]+Dataset[[#This Row],[2027/28 To - Spending review Topic 3]]+Dataset[[#This Row],[2027/28 To - Spending review Topic 4]]+Dataset[[#This Row],[2027/28 To - Other reallocations]]","v":0},{"$f":"Dataset[[#This Row],[2025/26 Reduction]]+Dataset[[#This Row],[2025/26 From - Total]]","v":0},{"$f":"Dataset[[#This Row],[2026/27 Reduction]]+Dataset[[#This Row],[2026/27 From - Total]]","v":0},{"$f":"Dataset[[#This Row],[2027/28 Reduction]]+Dataset[[#This Row],[2027/28 From - Total]]","v":0},{"$f":"Dataset[[#This Row],[2024/25 Reduction]]","v":0},{"$f":"SUM(Dataset[[#This Row],[2025/26 Reduction]],Dataset[[#This Row],[2025/26 From - Total]],Dataset[[#This Row],[2025/26 To - Total]])","v":0},{"$f":"SUM(Dataset[[#This Row],[2026/27 Reduction]],Dataset[[#This Row],[2026/27 From - Total]],Dataset[[#This Row],[2026/27 To - Total]])","v":0},{"$f":"SUM(Dataset[[#This Row],[2027/28 Reduction]],Dataset[[#This Row],[2027/28 From - Total]],Dataset[[#This Row],[2027/28 To - Total]])","v":0},{"$f":"Dataset[[#This Row],[2024/25 Baseline]]+Dataset[[#This Row],[2024/25 Total change]]","v":0},{"$f":"Dataset[[#This Row],[2025/26 Baseline]]+Dataset[[#This Row],[2025/26 Total change]]","v":0},{"$f":"Dataset[[#This Row],[2026/27 Baseline]]+Dataset[[#This Row],[2026/27 Total change]]","v":0},{"$f":"Dataset[[#This Row],[2027/28 Baseline]]+Dataset[[#This Row],[2027/28 Total change]]","v":0}]
["NAT|Non-transfer item","40|Heritage assets","2025_26","MTEC2025",40,7,6,53243,1971,"40","07","06","053243","001971","40|07|06|001971","02","03","13","58","62","02|03|13|58|62","National","Transport","Public Transport","Public Transport Network Development","Non-transfer item","Capital","Payments for capital assets","Heritage assets","Heritage assets","Heritage assets","Community development","Community development","NAT",0,0,0,0,0,0,null,0,0,0,0,null,null,null,null,null,null,null,null,null,null,null,null,null,null,null,null,null,null,null,null,null,null,null,null,null,null,null,null,null,null,null,null,null,null,{"$f":"Dataset[[#This Row],[2025/26 From - Spending review Topic 1]]+Dataset[[#This Row],[2025/26 From - Spending review Topic 2]]+Dataset[[#This Row],[2025/26 From - Spending review Topic 3]]+Dataset[[#This Row],[2025/26 From - Spending review Topic 4]]+Dataset[[#This Row],[2025/26 From - Other reallocations]]","v":0},{"$f":"Dataset[[#This Row],[2026/27 From - Spending review Topic 1]]+Dataset[[#This Row],[2026/27 From - Spending review Topic 2]]+Dataset[[#This Row],[2026/27 From - Spending review Topic 3]]+Dataset[[#This Row],[2026/27 From - Spending review Topic 4]]+Dataset[[#This Row],[2026/27 From - Other reallocations]]","v":0},{"$f":"Dataset[[#This Row],[2027/28 From - Spending review Topic 1]]+Dataset[[#This Row],[2027/28 From - Spending review Topic 2]]+Dataset[[#This Row],[2027/28 From - Spending review Topic 3]]+Dataset[[#This Row],[2027/28 From - Spending review Topic 4]]+Dataset[[#This Row],[2027/28 From - Other reallocations]]","v":0},{"$f":"Dataset[[#This Row],[2025/26 To - Spending review Topic 1]]+Dataset[[#This Row],[2025/26 To - Spending review Topic 2]]+Dataset[[#This Row],[2025/26 To - Spending review Topic 3]]+Dataset[[#This Row],[2025/26 To - Spending review Topic 4]]+Dataset[[#This Row],[2025/26 To - Other reallocations]]","v":0},{"$f":"Dataset[[#This Row],[2026/27 To - Spending review Topic 1]]+Dataset[[#This Row],[2026/27 To - Spending review Topic 2]]+Dataset[[#This Row],[2026/27 To - Spending review Topic 3]]+Dataset[[#This Row],[2026/27 To - Spending review Topic 4]]+Dataset[[#This Row],[2026/27 To - Other reallocations]]","v":0},{"$f":"Dataset[[#This Row],[2027/28 To - Spending review Topic 1]]+Dataset[[#This Row],[2027/28 To - Spending review Topic 2]]+Dataset[[#This Row],[2027/28 To - Spending review Topic 3]]+Dataset[[#This Row],[2027/28 To - Spending review Topic 4]]+Dataset[[#This Row],[2027/28 To - Other reallocations]]","v":0},{"$f":"Dataset[[#This Row],[2025/26 Reduction]]+Dataset[[#This Row],[2025/26 From - Total]]","v":0},{"$f":"Dataset[[#This Row],[2026/27 Reduction]]+Dataset[[#This Row],[2026/27 From - Total]]","v":0},{"$f":"Dataset[[#This Row],[2027/28 Reduction]]+Dataset[[#This Row],[2027/28 From - Total]]","v":0},{"$f":"Dataset[[#This Row],[2024/25 Reduction]]","v":0},{"$f":"SUM(Dataset[[#This Row],[2025/26 Reduction]],Dataset[[#This Row],[2025/26 From - Total]],Dataset[[#This Row],[2025/26 To - Total]])","v":0},{"$f":"SUM(Dataset[[#This Row],[2026/27 Reduction]],Dataset[[#This Row],[2026/27 From - Total]],Dataset[[#This Row],[2026/27 To - Total]])","v":0},{"$f":"SUM(Dataset[[#This Row],[2027/28 Reduction]],Dataset[[#This Row],[2027/28 From - Total]],Dataset[[#This Row],[2027/28 To - Total]])","v":0},{"$f":"Dataset[[#This Row],[2024/25 Baseline]]+Dataset[[#This Row],[2024/25 Total change]]","v":0},{"$f":"Dataset[[#This Row],[2025/26 Baseline]]+Dataset[[#This Row],[2025/26 Total change]]","v":0},{"$f":"Dataset[[#This Row],[2026/27 Baseline]]+Dataset[[#This Row],[2026/27 Total change]]","v":0},{"$f":"Dataset[[#This Row],[2027/28 Baseline]]+Dataset[[#This Row],[2027/28 Total change]]","v":0}]
["NAT|Non-transfer item","40|Specialised military assets","2025_26","MTEC2025",40,7,6,53244,1972,"40","07","06","053244","001972","40|07|06|001972","02","03","14","59","63","02|03|14|59|63","National","Transport","Public Transport","Public Transport Network Development","Non-transfer item","Capital","Payments for capital assets","Specialised military assets","Specialised military assets","Specialised military assets","Community development","Community development","NAT",0,0,0,0,0,0,null,0,0,0,0,null,null,null,null,null,null,null,null,null,null,null,null,null,null,null,null,null,null,null,null,null,null,null,null,null,null,null,null,null,null,null,null,null,null,{"$f":"Dataset[[#This Row],[2025/26 From - Spending review Topic 1]]+Dataset[[#This Row],[2025/26 From - Spending review Topic 2]]+Dataset[[#This Row],[2025/26 From - Spending review Topic 3]]+Dataset[[#This Row],[2025/26 From - Spending review Topic 4]]+Dataset[[#This Row],[2025/26 From - Other reallocations]]","v":0},{"$f":"Dataset[[#This Row],[2026/27 From - Spending review Topic 1]]+Dataset[[#This Row],[2026/27 From - Spending review Topic 2]]+Dataset[[#This Row],[2026/27 From - Spending review Topic 3]]+Dataset[[#This Row],[2026/27 From - Spending review Topic 4]]+Dataset[[#This Row],[2026/27 From - Other reallocations]]","v":0},{"$f":"Dataset[[#This Row],[2027/28 From - Spending review Topic 1]]+Dataset[[#This Row],[2027/28 From - Spending review Topic 2]]+Dataset[[#This Row],[2027/28 From - Spending review Topic 3]]+Dataset[[#This Row],[2027/28 From - Spending review Topic 4]]+Dataset[[#This Row],[2027/28 From - Other reallocations]]","v":0},{"$f":"Dataset[[#This Row],[2025/26 To - Spending review Topic 1]]+Dataset[[#This Row],[2025/26 To - Spending review Topic 2]]+Dataset[[#This Row],[2025/26 To - Spending review Topic 3]]+Dataset[[#This Row],[2025/26 To - Spending review Topic 4]]+Dataset[[#This Row],[2025/26 To - Other reallocations]]","v":0},{"$f":"Dataset[[#This Row],[2026/27 To - Spending review Topic 1]]+Dataset[[#This Row],[2026/27 To - Spending review Topic 2]]+Dataset[[#This Row],[2026/27 To - Spending review Topic 3]]+Dataset[[#This Row],[2026/27 To - Spending review Topic 4]]+Dataset[[#This Row],[2026/27 To - Other reallocations]]","v":0},{"$f":"Dataset[[#This Row],[2027/28 To - Spending review Topic 1]]+Dataset[[#This Row],[2027/28 To - Spending review Topic 2]]+Dataset[[#This Row],[2027/28 To - Spending review Topic 3]]+Dataset[[#This Row],[2027/28 To - Spending review Topic 4]]+Dataset[[#This Row],[2027/28 To - Other reallocations]]","v":0},{"$f":"Dataset[[#This Row],[2025/26 Reduction]]+Dataset[[#This Row],[2025/26 From - Total]]","v":0},{"$f":"Dataset[[#This Row],[2026/27 Reduction]]+Dataset[[#This Row],[2026/27 From - Total]]","v":0},{"$f":"Dataset[[#This Row],[2027/28 Reduction]]+Dataset[[#This Row],[2027/28 From - Total]]","v":0},{"$f":"Dataset[[#This Row],[2024/25 Reduction]]","v":0},{"$f":"SUM(Dataset[[#This Row],[2025/26 Reduction]],Dataset[[#This Row],[2025/26 From - Total]],Dataset[[#This Row],[2025/26 To - Total]])","v":0},{"$f":"SUM(Dataset[[#This Row],[2026/27 Reduction]],Dataset[[#This Row],[2026/27 From - Total]],Dataset[[#This Row],[2026/27 To - Total]])","v":0},{"$f":"SUM(Dataset[[#This Row],[2027/28 Reduction]],Dataset[[#This Row],[2027/28 From - Total]],Dataset[[#This Row],[2027/28 To - Total]])","v":0},{"$f":"Dataset[[#This Row],[2024/25 Baseline]]+Dataset[[#This Row],[2024/25 Total change]]","v":0},{"$f":"Dataset[[#This Row],[2025/26 Baseline]]+Dataset[[#This Row],[2025/26 Total change]]","v":0},{"$f":"Dataset[[#This Row],[2026/27 Baseline]]+Dataset[[#This Row],[2026/27 Total change]]","v":0},{"$f":"Dataset[[#This Row],[2027/28 Baseline]]+Dataset[[#This Row],[2027/28 Total change]]","v":0}]
["NAT|Non-transfer item","40|Biological assets","2025_26","MTEC2025",40,7,6,53245,1973,"40","07","06","053245","001973","40|07|06|001973","02","03","15","60","64","02|03|15|60|64","National","Transport","Public Transport","Public Transport Network Development","Non-transfer item","Capital","Payments for capital assets","Biological assets","Biological assets","Biological assets","Community development","Community development","NAT",0,0,0,0,0,0,null,0,0,0,0,null,null,null,null,null,null,null,null,null,null,null,null,null,null,null,null,null,null,null,null,null,null,null,null,null,null,null,null,null,null,null,null,null,null,{"$f":"Dataset[[#This Row],[2025/26 From - Spending review Topic 1]]+Dataset[[#This Row],[2025/26 From - Spending review Topic 2]]+Dataset[[#This Row],[2025/26 From - Spending review Topic 3]]+Dataset[[#This Row],[2025/26 From - Spending review Topic 4]]+Dataset[[#This Row],[2025/26 From - Other reallocations]]","v":0},{"$f":"Dataset[[#This Row],[2026/27 From - Spending review Topic 1]]+Dataset[[#This Row],[2026/27 From - Spending review Topic 2]]+Dataset[[#This Row],[2026/27 From - Spending review Topic 3]]+Dataset[[#This Row],[2026/27 From - Spending review Topic 4]]+Dataset[[#This Row],[2026/27 From - Other reallocations]]","v":0},{"$f":"Dataset[[#This Row],[2027/28 From - Spending review Topic 1]]+Dataset[[#This Row],[2027/28 From - Spending review Topic 2]]+Dataset[[#This Row],[2027/28 From - Spending review Topic 3]]+Dataset[[#This Row],[2027/28 From - Spending review Topic 4]]+Dataset[[#This Row],[2027/28 From - Other reallocations]]","v":0},{"$f":"Dataset[[#This Row],[2025/26 To - Spending review Topic 1]]+Dataset[[#This Row],[2025/26 To - Spending review Topic 2]]+Dataset[[#This Row],[2025/26 To - Spending review Topic 3]]+Dataset[[#This Row],[2025/26 To - Spending review Topic 4]]+Dataset[[#This Row],[2025/26 To - Other reallocations]]","v":0},{"$f":"Dataset[[#This Row],[2026/27 To - Spending review Topic 1]]+Dataset[[#This Row],[2026/27 To - Spending review Topic 2]]+Dataset[[#This Row],[2026/27 To - Spending review Topic 3]]+Dataset[[#This Row],[2026/27 To - Spending review Topic 4]]+Dataset[[#This Row],[2026/27 To - Other reallocations]]","v":0},{"$f":"Dataset[[#This Row],[2027/28 To - Spending review Topic 1]]+Dataset[[#This Row],[2027/28 To - Spending review Topic 2]]+Dataset[[#This Row],[2027/28 To - Spending review Topic 3]]+Dataset[[#This Row],[2027/28 To - Spending review Topic 4]]+Dataset[[#This Row],[2027/28 To - Other reallocations]]","v":0},{"$f":"Dataset[[#This Row],[2025/26 Reduction]]+Dataset[[#This Row],[2025/26 From - Total]]","v":0},{"$f":"Dataset[[#This Row],[2026/27 Reduction]]+Dataset[[#This Row],[2026/27 From - Total]]","v":0},{"$f":"Dataset[[#This Row],[2027/28 Reduction]]+Dataset[[#This Row],[2027/28 From - Total]]","v":0},{"$f":"Dataset[[#This Row],[2024/25 Reduction]]","v":0},{"$f":"SUM(Dataset[[#This Row],[2025/26 Reduction]],Dataset[[#This Row],[2025/26 From - Total]],Dataset[[#This Row],[2025/26 To - Total]])","v":0},{"$f":"SUM(Dataset[[#This Row],[2026/27 Reduction]],Dataset[[#This Row],[2026/27 From - Total]],Dataset[[#This Row],[2026/27 To - Total]])","v":0},{"$f":"SUM(Dataset[[#This Row],[2027/28 Reduction]],Dataset[[#This Row],[2027/28 From - Total]],Dataset[[#This Row],[2027/28 To - Total]])","v":0},{"$f":"Dataset[[#This Row],[2024/25 Baseline]]+Dataset[[#This Row],[2024/25 Total change]]","v":0},{"$f":"Dataset[[#This Row],[2025/26 Baseline]]+Dataset[[#This Row],[2025/26 Total change]]","v":0},{"$f":"Dataset[[#This Row],[2026/27 Baseline]]+Dataset[[#This Row],[2026/27 Total change]]","v":0},{"$f":"Dataset[[#This Row],[2027/28 Baseline]]+Dataset[[#This Row],[2027/28 Total change]]","v":0}]
["NAT|Non-transfer item","40|Land and sub-soil assets","2025_26","MTEC2025",40,7,6,53246,1974,"40","07","06","053246","001974","40|07|06|001974","02","03","16","61","65","02|03|16|61|65","National","Transport","Public Transport","Public Transport Network Development","Non-transfer item","Capital","Payments for capital assets","Land and sub-soil assets","Land and sub-soil assets","Land and sub-soil assets","Community development","Community development","NAT",0,0,0,0,0,0,null,0,0,0,0,null,null,null,null,null,null,null,null,null,null,null,null,null,null,null,null,null,null,null,null,null,null,null,null,null,null,null,null,null,null,null,null,null,null,{"$f":"Dataset[[#This Row],[2025/26 From - Spending review Topic 1]]+Dataset[[#This Row],[2025/26 From - Spending review Topic 2]]+Dataset[[#This Row],[2025/26 From - Spending review Topic 3]]+Dataset[[#This Row],[2025/26 From - Spending review Topic 4]]+Dataset[[#This Row],[2025/26 From - Other reallocations]]","v":0},{"$f":"Dataset[[#This Row],[2026/27 From - Spending review Topic 1]]+Dataset[[#This Row],[2026/27 From - Spending review Topic 2]]+Dataset[[#This Row],[2026/27 From - Spending review Topic 3]]+Dataset[[#This Row],[2026/27 From - Spending review Topic 4]]+Dataset[[#This Row],[2026/27 From - Other reallocations]]","v":0},{"$f":"Dataset[[#This Row],[2027/28 From - Spending review Topic 1]]+Dataset[[#This Row],[2027/28 From - Spending review Topic 2]]+Dataset[[#This Row],[2027/28 From - Spending review Topic 3]]+Dataset[[#This Row],[2027/28 From - Spending review Topic 4]]+Dataset[[#This Row],[2027/28 From - Other reallocations]]","v":0},{"$f":"Dataset[[#This Row],[2025/26 To - Spending review Topic 1]]+Dataset[[#This Row],[2025/26 To - Spending review Topic 2]]+Dataset[[#This Row],[2025/26 To - Spending review Topic 3]]+Dataset[[#This Row],[2025/26 To - Spending review Topic 4]]+Dataset[[#This Row],[2025/26 To - Other reallocations]]","v":0},{"$f":"Dataset[[#This Row],[2026/27 To - Spending review Topic 1]]+Dataset[[#This Row],[2026/27 To - Spending review Topic 2]]+Dataset[[#This Row],[2026/27 To - Spending review Topic 3]]+Dataset[[#This Row],[2026/27 To - Spending review Topic 4]]+Dataset[[#This Row],[2026/27 To - Other reallocations]]","v":0},{"$f":"Dataset[[#This Row],[2027/28 To - Spending review Topic 1]]+Dataset[[#This Row],[2027/28 To - Spending review Topic 2]]+Dataset[[#This Row],[2027/28 To - Spending review Topic 3]]+Dataset[[#This Row],[2027/28 To - Spending review Topic 4]]+Dataset[[#This Row],[2027/28 To - Other reallocations]]","v":0},{"$f":"Dataset[[#This Row],[2025/26 Reduction]]+Dataset[[#This Row],[2025/26 From - Total]]","v":0},{"$f":"Dataset[[#This Row],[2026/27 Reduction]]+Dataset[[#This Row],[2026/27 From - Total]]","v":0},{"$f":"Dataset[[#This Row],[2027/28 Reduction]]+Dataset[[#This Row],[2027/28 From - Total]]","v":0},{"$f":"Dataset[[#This Row],[2024/25 Reduction]]","v":0},{"$f":"SUM(Dataset[[#This Row],[2025/26 Reduction]],Dataset[[#This Row],[2025/26 From - Total]],Dataset[[#This Row],[2025/26 To - Total]])","v":0},{"$f":"SUM(Dataset[[#This Row],[2026/27 Reduction]],Dataset[[#This Row],[2026/27 From - Total]],Dataset[[#This Row],[2026/27 To - Total]])","v":0},{"$f":"SUM(Dataset[[#This Row],[2027/28 Reduction]],Dataset[[#This Row],[2027/28 From - Total]],Dataset[[#This Row],[2027/28 To - Total]])","v":0},{"$f":"Dataset[[#This Row],[2024/25 Baseline]]+Dataset[[#This Row],[2024/25 Total change]]","v":0},{"$f":"Dataset[[#This Row],[2025/26 Baseline]]+Dataset[[#This Row],[2025/26 Total change]]","v":0},{"$f":"Dataset[[#This Row],[2026/27 Baseline]]+Dataset[[#This Row],[2026/27 Total change]]","v":0},{"$f":"Dataset[[#This Row],[2027/28 Baseline]]+Dataset[[#This Row],[2027/28 Total change]]","v":0}]
["NAT|Non-transfer item","40|Software and other intangible assets","2025_26","MTEC2025",40,7,6,53247,1975,"40","07","06","053247","001975","40|07|06|001975","02","03","17","62","66","02|03|17|62|66","National","Transport","Public Transport","Public Transport Network Development","Non-transfer item","Capital","Payments for capital assets","Software and other intangible assets","Software and other intangible assets","Software and other intangible assets","Community development","Community development","NAT",0,0,0,0,0,0,null,0,0,0,0,null,null,null,null,null,null,null,null,null,null,null,null,null,null,null,null,null,null,null,null,null,null,null,null,null,null,null,null,null,null,null,null,null,null,{"$f":"Dataset[[#This Row],[2025/26 From - Spending review Topic 1]]+Dataset[[#This Row],[2025/26 From - Spending review Topic 2]]+Dataset[[#This Row],[2025/26 From - Spending review Topic 3]]+Dataset[[#This Row],[2025/26 From - Spending review Topic 4]]+Dataset[[#This Row],[2025/26 From - Other reallocations]]","v":0},{"$f":"Dataset[[#This Row],[2026/27 From - Spending review Topic 1]]+Dataset[[#This Row],[2026/27 From - Spending review Topic 2]]+Dataset[[#This Row],[2026/27 From - Spending review Topic 3]]+Dataset[[#This Row],[2026/27 From - Spending review Topic 4]]+Dataset[[#This Row],[2026/27 From - Other reallocations]]","v":0},{"$f":"Dataset[[#This Row],[2027/28 From - Spending review Topic 1]]+Dataset[[#This Row],[2027/28 From - Spending review Topic 2]]+Dataset[[#This Row],[2027/28 From - Spending review Topic 3]]+Dataset[[#This Row],[2027/28 From - Spending review Topic 4]]+Dataset[[#This Row],[2027/28 From - Other reallocations]]","v":0},{"$f":"Dataset[[#This Row],[2025/26 To - Spending review Topic 1]]+Dataset[[#This Row],[2025/26 To - Spending review Topic 2]]+Dataset[[#This Row],[2025/26 To - Spending review Topic 3]]+Dataset[[#This Row],[2025/26 To - Spending review Topic 4]]+Dataset[[#This Row],[2025/26 To - Other reallocations]]","v":0},{"$f":"Dataset[[#This Row],[2026/27 To - Spending review Topic 1]]+Dataset[[#This Row],[2026/27 To - Spending review Topic 2]]+Dataset[[#This Row],[2026/27 To - Spending review Topic 3]]+Dataset[[#This Row],[2026/27 To - Spending review Topic 4]]+Dataset[[#This Row],[2026/27 To - Other reallocations]]","v":0},{"$f":"Dataset[[#This Row],[2027/28 To - Spending review Topic 1]]+Dataset[[#This Row],[2027/28 To - Spending review Topic 2]]+Dataset[[#This Row],[2027/28 To - Spending review Topic 3]]+Dataset[[#This Row],[2027/28 To - Spending review Topic 4]]+Dataset[[#This Row],[2027/28 To - Other reallocations]]","v":0},{"$f":"Dataset[[#This Row],[2025/26 Reduction]]+Dataset[[#This Row],[2025/26 From - Total]]","v":0},{"$f":"Dataset[[#This Row],[2026/27 Reduction]]+Dataset[[#This Row],[2026/27 From - Total]]","v":0},{"$f":"Dataset[[#This Row],[2027/28 Reduction]]+Dataset[[#This Row],[2027/28 From - Total]]","v":0},{"$f":"Dataset[[#This Row],[2024/25 Reduction]]","v":0},{"$f":"SUM(Dataset[[#This Row],[2025/26 Reduction]],Dataset[[#This Row],[2025/26 From - Total]],Dataset[[#This Row],[2025/26 To - Total]])","v":0},{"$f":"SUM(Dataset[[#This Row],[2026/27 Reduction]],Dataset[[#This Row],[2026/27 From - Total]],Dataset[[#This Row],[2026/27 To - Total]])","v":0},{"$f":"SUM(Dataset[[#This Row],[2027/28 Reduction]],Dataset[[#This Row],[2027/28 From - Total]],Dataset[[#This Row],[2027/28 To - Total]])","v":0},{"$f":"Dataset[[#This Row],[2024/25 Baseline]]+Dataset[[#This Row],[2024/25 Total change]]","v":0},{"$f":"Dataset[[#This Row],[2025/26 Baseline]]+Dataset[[#This Row],[2025/26 Total change]]","v":0},{"$f":"Dataset[[#This Row],[2026/27 Baseline]]+Dataset[[#This Row],[2026/27 Total change]]","v":0},{"$f":"Dataset[[#This Row],[2027/28 Baseline]]+Dataset[[#This Row],[2027/28 Total change]]","v":0}]
["NAT|Non-transfer item","40|Salaries and wages","2025_26","MTEC2025",40,16,1,53248,1976,"40","16","01","053248","001976","40|16|01|001976","01","01","01","01","01","01|01|01|01|01","National","Transport","Direct charge against the National Revenue Fund","International Oil Pollution Compensation Funds","Non-transfer item","Current","Current payments","Compensation of employees","Salaries and wages","Salaries and wages","Economic development","Economic regulation and infrastructure","NAT",0,0,0,0,0,0,null,0,0,0,0,null,null,null,null,null,null,null,null,null,null,null,null,null,null,null,null,null,null,null,null,null,null,null,null,null,null,null,null,null,null,null,null,null,null,{"$f":"Dataset[[#This Row],[2025/26 From - Spending review Topic 1]]+Dataset[[#This Row],[2025/26 From - Spending review Topic 2]]+Dataset[[#This Row],[2025/26 From - Spending review Topic 3]]+Dataset[[#This Row],[2025/26 From - Spending review Topic 4]]+Dataset[[#This Row],[2025/26 From - Other reallocations]]","v":0},{"$f":"Dataset[[#This Row],[2026/27 From - Spending review Topic 1]]+Dataset[[#This Row],[2026/27 From - Spending review Topic 2]]+Dataset[[#This Row],[2026/27 From - Spending review Topic 3]]+Dataset[[#This Row],[2026/27 From - Spending review Topic 4]]+Dataset[[#This Row],[2026/27 From - Other reallocations]]","v":0},{"$f":"Dataset[[#This Row],[2027/28 From - Spending review Topic 1]]+Dataset[[#This Row],[2027/28 From - Spending review Topic 2]]+Dataset[[#This Row],[2027/28 From - Spending review Topic 3]]+Dataset[[#This Row],[2027/28 From - Spending review Topic 4]]+Dataset[[#This Row],[2027/28 From - Other reallocations]]","v":0},{"$f":"Dataset[[#This Row],[2025/26 To - Spending review Topic 1]]+Dataset[[#This Row],[2025/26 To - Spending review Topic 2]]+Dataset[[#This Row],[2025/26 To - Spending review Topic 3]]+Dataset[[#This Row],[2025/26 To - Spending review Topic 4]]+Dataset[[#This Row],[2025/26 To - Other reallocations]]","v":0},{"$f":"Dataset[[#This Row],[2026/27 To - Spending review Topic 1]]+Dataset[[#This Row],[2026/27 To - Spending review Topic 2]]+Dataset[[#This Row],[2026/27 To - Spending review Topic 3]]+Dataset[[#This Row],[2026/27 To - Spending review Topic 4]]+Dataset[[#This Row],[2026/27 To - Other reallocations]]","v":0},{"$f":"Dataset[[#This Row],[2027/28 To - Spending review Topic 1]]+Dataset[[#This Row],[2027/28 To - Spending review Topic 2]]+Dataset[[#This Row],[2027/28 To - Spending review Topic 3]]+Dataset[[#This Row],[2027/28 To - Spending review Topic 4]]+Dataset[[#This Row],[2027/28 To - Other reallocations]]","v":0},{"$f":"Dataset[[#This Row],[2025/26 Reduction]]+Dataset[[#This Row],[2025/26 From - Total]]","v":0},{"$f":"Dataset[[#This Row],[2026/27 Reduction]]+Dataset[[#This Row],[2026/27 From - Total]]","v":0},{"$f":"Dataset[[#This Row],[2027/28 Reduction]]+Dataset[[#This Row],[2027/28 From - Total]]","v":0},{"$f":"Dataset[[#This Row],[2024/25 Reduction]]","v":0},{"$f":"SUM(Dataset[[#This Row],[2025/26 Reduction]],Dataset[[#This Row],[2025/26 From - Total]],Dataset[[#This Row],[2025/26 To - Total]])","v":0},{"$f":"SUM(Dataset[[#This Row],[2026/27 Reduction]],Dataset[[#This Row],[2026/27 From - Total]],Dataset[[#This Row],[2026/27 To - Total]])","v":0},{"$f":"SUM(Dataset[[#This Row],[2027/28 Reduction]],Dataset[[#This Row],[2027/28 From - Total]],Dataset[[#This Row],[2027/28 To - Total]])","v":0},{"$f":"Dataset[[#This Row],[2024/25 Baseline]]+Dataset[[#This Row],[2024/25 Total change]]","v":0},{"$f":"Dataset[[#This Row],[2025/26 Baseline]]+Dataset[[#This Row],[2025/26 Total change]]","v":0},{"$f":"Dataset[[#This Row],[2026/27 Baseline]]+Dataset[[#This Row],[2026/27 Total change]]","v":0},{"$f":"Dataset[[#This Row],[2027/28 Baseline]]+Dataset[[#This Row],[2027/28 Total change]]","v":0}]
["NAT|Non-transfer item","40|Social contributions","2025_26","MTEC2025",40,16,1,53249,1977,"40","16","01","053249","001977","40|16|01|001977","01","01","01","02","02","01|01|01|02|02","National","Transport","Direct charge against the National Revenue Fund","International Oil Pollution Compensation Funds","Non-transfer item","Current","Current payments","Compensation of employees","Social contributions","Social contributions","Economic development","Economic regulation and infrastructure","NAT",0,0,0,0,0,0,null,0,0,0,0,null,null,null,null,null,null,null,null,null,null,null,null,null,null,null,null,null,null,null,null,null,null,null,null,null,null,null,null,null,null,null,null,null,null,{"$f":"Dataset[[#This Row],[2025/26 From - Spending review Topic 1]]+Dataset[[#This Row],[2025/26 From - Spending review Topic 2]]+Dataset[[#This Row],[2025/26 From - Spending review Topic 3]]+Dataset[[#This Row],[2025/26 From - Spending review Topic 4]]+Dataset[[#This Row],[2025/26 From - Other reallocations]]","v":0},{"$f":"Dataset[[#This Row],[2026/27 From - Spending review Topic 1]]+Dataset[[#This Row],[2026/27 From - Spending review Topic 2]]+Dataset[[#This Row],[2026/27 From - Spending review Topic 3]]+Dataset[[#This Row],[2026/27 From - Spending review Topic 4]]+Dataset[[#This Row],[2026/27 From - Other reallocations]]","v":0},{"$f":"Dataset[[#This Row],[2027/28 From - Spending review Topic 1]]+Dataset[[#This Row],[2027/28 From - Spending review Topic 2]]+Dataset[[#This Row],[2027/28 From - Spending review Topic 3]]+Dataset[[#This Row],[2027/28 From - Spending review Topic 4]]+Dataset[[#This Row],[2027/28 From - Other reallocations]]","v":0},{"$f":"Dataset[[#This Row],[2025/26 To - Spending review Topic 1]]+Dataset[[#This Row],[2025/26 To - Spending review Topic 2]]+Dataset[[#This Row],[2025/26 To - Spending review Topic 3]]+Dataset[[#This Row],[2025/26 To - Spending review Topic 4]]+Dataset[[#This Row],[2025/26 To - Other reallocations]]","v":0},{"$f":"Dataset[[#This Row],[2026/27 To - Spending review Topic 1]]+Dataset[[#This Row],[2026/27 To - Spending review Topic 2]]+Dataset[[#This Row],[2026/27 To - Spending review Topic 3]]+Dataset[[#This Row],[2026/27 To - Spending review Topic 4]]+Dataset[[#This Row],[2026/27 To - Other reallocations]]","v":0},{"$f":"Dataset[[#This Row],[2027/28 To - Spending review Topic 1]]+Dataset[[#This Row],[2027/28 To - Spending review Topic 2]]+Dataset[[#This Row],[2027/28 To - Spending review Topic 3]]+Dataset[[#This Row],[2027/28 To - Spending review Topic 4]]+Dataset[[#This Row],[2027/28 To - Other reallocations]]","v":0},{"$f":"Dataset[[#This Row],[2025/26 Reduction]]+Dataset[[#This Row],[2025/26 From - Total]]","v":0},{"$f":"Dataset[[#This Row],[2026/27 Reduction]]+Dataset[[#This Row],[2026/27 From - Total]]","v":0},{"$f":"Dataset[[#This Row],[2027/28 Reduction]]+Dataset[[#This Row],[2027/28 From - Total]]","v":0},{"$f":"Dataset[[#This Row],[2024/25 Reduction]]","v":0},{"$f":"SUM(Dataset[[#This Row],[2025/26 Reduction]],Dataset[[#This Row],[2025/26 From - Total]],Dataset[[#This Row],[2025/26 To - Total]])","v":0},{"$f":"SUM(Dataset[[#This Row],[2026/27 Reduction]],Dataset[[#This Row],[2026/27 From - Total]],Dataset[[#This Row],[2026/27 To - Total]])","v":0},{"$f":"SUM(Dataset[[#This Row],[2027/28 Reduction]],Dataset[[#This Row],[2027/28 From - Total]],Dataset[[#This Row],[2027/28 To - Total]])","v":0},{"$f":"Dataset[[#This Row],[2024/25 Baseline]]+Dataset[[#This Row],[2024/25 Total change]]","v":0},{"$f":"Dataset[[#This Row],[2025/26 Baseline]]+Dataset[[#This Row],[2025/26 Total change]]","v":0},{"$f":"Dataset[[#This Row],[2026/27 Baseline]]+Dataset[[#This Row],[2026/27 Total change]]","v":0},{"$f":"Dataset[[#This Row],[2027/28 Baseline]]+Dataset[[#This Row],[2027/28 Total change]]","v":0}]
["NAT|Non-transfer item","40|Administrative fees","2025_26","MTEC2025",40,16,1,53250,1978,"40","16","01","053250","001978","40|16|01|001978","01","01","02","03","03","01|01|02|03|03","National","Transport","Direct charge against the National Revenue Fund","International Oil Pollution Compensation Funds","Non-transfer item","Current","Current payments","Goods and services","Administrative fees","Administrative fees","Economic development","Economic regulation and infrastructure","NAT",0,0,0,0,0,0,null,0,0,0,0,null,null,null,null,null,null,null,null,null,null,null,null,null,null,null,null,null,null,null,null,null,null,null,null,null,null,null,null,null,null,null,null,null,null,{"$f":"Dataset[[#This Row],[2025/26 From - Spending review Topic 1]]+Dataset[[#This Row],[2025/26 From - Spending review Topic 2]]+Dataset[[#This Row],[2025/26 From - Spending review Topic 3]]+Dataset[[#This Row],[2025/26 From - Spending review Topic 4]]+Dataset[[#This Row],[2025/26 From - Other reallocations]]","v":0},{"$f":"Dataset[[#This Row],[2026/27 From - Spending review Topic 1]]+Dataset[[#This Row],[2026/27 From - Spending review Topic 2]]+Dataset[[#This Row],[2026/27 From - Spending review Topic 3]]+Dataset[[#This Row],[2026/27 From - Spending review Topic 4]]+Dataset[[#This Row],[2026/27 From - Other reallocations]]","v":0},{"$f":"Dataset[[#This Row],[2027/28 From - Spending review Topic 1]]+Dataset[[#This Row],[2027/28 From - Spending review Topic 2]]+Dataset[[#This Row],[2027/28 From - Spending review Topic 3]]+Dataset[[#This Row],[2027/28 From - Spending review Topic 4]]+Dataset[[#This Row],[2027/28 From - Other reallocations]]","v":0},{"$f":"Dataset[[#This Row],[2025/26 To - Spending review Topic 1]]+Dataset[[#This Row],[2025/26 To - Spending review Topic 2]]+Dataset[[#This Row],[2025/26 To - Spending review Topic 3]]+Dataset[[#This Row],[2025/26 To - Spending review Topic 4]]+Dataset[[#This Row],[2025/26 To - Other reallocations]]","v":0},{"$f":"Dataset[[#This Row],[2026/27 To - Spending review Topic 1]]+Dataset[[#This Row],[2026/27 To - Spending review Topic 2]]+Dataset[[#This Row],[2026/27 To - Spending review Topic 3]]+Dataset[[#This Row],[2026/27 To - Spending review Topic 4]]+Dataset[[#This Row],[2026/27 To - Other reallocations]]","v":0},{"$f":"Dataset[[#This Row],[2027/28 To - Spending review Topic 1]]+Dataset[[#This Row],[2027/28 To - Spending review Topic 2]]+Dataset[[#This Row],[2027/28 To - Spending review Topic 3]]+Dataset[[#This Row],[2027/28 To - Spending review Topic 4]]+Dataset[[#This Row],[2027/28 To - Other reallocations]]","v":0},{"$f":"Dataset[[#This Row],[2025/26 Reduction]]+Dataset[[#This Row],[2025/26 From - Total]]","v":0},{"$f":"Dataset[[#This Row],[2026/27 Reduction]]+Dataset[[#This Row],[2026/27 From - Total]]","v":0},{"$f":"Dataset[[#This Row],[2027/28 Reduction]]+Dataset[[#This Row],[2027/28 From - Total]]","v":0},{"$f":"Dataset[[#This Row],[2024/25 Reduction]]","v":0},{"$f":"SUM(Dataset[[#This Row],[2025/26 Reduction]],Dataset[[#This Row],[2025/26 From - Total]],Dataset[[#This Row],[2025/26 To - Total]])","v":0},{"$f":"SUM(Dataset[[#This Row],[2026/27 Reduction]],Dataset[[#This Row],[2026/27 From - Total]],Dataset[[#This Row],[2026/27 To - Total]])","v":0},{"$f":"SUM(Dataset[[#This Row],[2027/28 Reduction]],Dataset[[#This Row],[2027/28 From - Total]],Dataset[[#This Row],[2027/28 To - Total]])","v":0},{"$f":"Dataset[[#This Row],[2024/25 Baseline]]+Dataset[[#This Row],[2024/25 Total change]]","v":0},{"$f":"Dataset[[#This Row],[2025/26 Baseline]]+Dataset[[#This Row],[2025/26 Total change]]","v":0},{"$f":"Dataset[[#This Row],[2026/27 Baseline]]+Dataset[[#This Row],[2026/27 Total change]]","v":0},{"$f":"Dataset[[#This Row],[2027/28 Baseline]]+Dataset[[#This Row],[2027/28 Total change]]","v":0}]
["NAT|Non-transfer item","40|Advertising","2025_26","MTEC2025",40,16,1,53251,1979,"40","16","01","053251","001979","40|16|01|001979","01","01","02","04","04","01|01|02|04|04","National","Transport","Direct charge against the National Revenue Fund","International Oil Pollution Compensation Funds","Non-transfer item","Current","Current payments","Goods and services","Advertising","Advertising","Economic development","Economic regulation and infrastructure","NAT",0,0,0,0,0,0,null,0,0,0,0,null,null,null,null,null,null,null,null,null,null,null,null,null,null,null,null,null,null,null,null,null,null,null,null,null,null,null,null,null,null,null,null,null,null,{"$f":"Dataset[[#This Row],[2025/26 From - Spending review Topic 1]]+Dataset[[#This Row],[2025/26 From - Spending review Topic 2]]+Dataset[[#This Row],[2025/26 From - Spending review Topic 3]]+Dataset[[#This Row],[2025/26 From - Spending review Topic 4]]+Dataset[[#This Row],[2025/26 From - Other reallocations]]","v":0},{"$f":"Dataset[[#This Row],[2026/27 From - Spending review Topic 1]]+Dataset[[#This Row],[2026/27 From - Spending review Topic 2]]+Dataset[[#This Row],[2026/27 From - Spending review Topic 3]]+Dataset[[#This Row],[2026/27 From - Spending review Topic 4]]+Dataset[[#This Row],[2026/27 From - Other reallocations]]","v":0},{"$f":"Dataset[[#This Row],[2027/28 From - Spending review Topic 1]]+Dataset[[#This Row],[2027/28 From - Spending review Topic 2]]+Dataset[[#This Row],[2027/28 From - Spending review Topic 3]]+Dataset[[#This Row],[2027/28 From - Spending review Topic 4]]+Dataset[[#This Row],[2027/28 From - Other reallocations]]","v":0},{"$f":"Dataset[[#This Row],[2025/26 To - Spending review Topic 1]]+Dataset[[#This Row],[2025/26 To - Spending review Topic 2]]+Dataset[[#This Row],[2025/26 To - Spending review Topic 3]]+Dataset[[#This Row],[2025/26 To - Spending review Topic 4]]+Dataset[[#This Row],[2025/26 To - Other reallocations]]","v":0},{"$f":"Dataset[[#This Row],[2026/27 To - Spending review Topic 1]]+Dataset[[#This Row],[2026/27 To - Spending review Topic 2]]+Dataset[[#This Row],[2026/27 To - Spending review Topic 3]]+Dataset[[#This Row],[2026/27 To - Spending review Topic 4]]+Dataset[[#This Row],[2026/27 To - Other reallocations]]","v":0},{"$f":"Dataset[[#This Row],[2027/28 To - Spending review Topic 1]]+Dataset[[#This Row],[2027/28 To - Spending review Topic 2]]+Dataset[[#This Row],[2027/28 To - Spending review Topic 3]]+Dataset[[#This Row],[2027/28 To - Spending review Topic 4]]+Dataset[[#This Row],[2027/28 To - Other reallocations]]","v":0},{"$f":"Dataset[[#This Row],[2025/26 Reduction]]+Dataset[[#This Row],[2025/26 From - Total]]","v":0},{"$f":"Dataset[[#This Row],[2026/27 Reduction]]+Dataset[[#This Row],[2026/27 From - Total]]","v":0},{"$f":"Dataset[[#This Row],[2027/28 Reduction]]+Dataset[[#This Row],[2027/28 From - Total]]","v":0},{"$f":"Dataset[[#This Row],[2024/25 Reduction]]","v":0},{"$f":"SUM(Dataset[[#This Row],[2025/26 Reduction]],Dataset[[#This Row],[2025/26 From - Total]],Dataset[[#This Row],[2025/26 To - Total]])","v":0},{"$f":"SUM(Dataset[[#This Row],[2026/27 Reduction]],Dataset[[#This Row],[2026/27 From - Total]],Dataset[[#This Row],[2026/27 To - Total]])","v":0},{"$f":"SUM(Dataset[[#This Row],[2027/28 Reduction]],Dataset[[#This Row],[2027/28 From - Total]],Dataset[[#This Row],[2027/28 To - Total]])","v":0},{"$f":"Dataset[[#This Row],[2024/25 Baseline]]+Dataset[[#This Row],[2024/25 Total change]]","v":0},{"$f":"Dataset[[#This Row],[2025/26 Baseline]]+Dataset[[#This Row],[2025/26 Total change]]","v":0},{"$f":"Dataset[[#This Row],[2026/27 Baseline]]+Dataset[[#This Row],[2026/27 Total change]]","v":0},{"$f":"Dataset[[#This Row],[2027/28 Baseline]]+Dataset[[#This Row],[2027/28 Total change]]","v":0}]
["NAT|Non-transfer item","40|Minor assets","2025_26","MTEC2025",40,16,1,53252,1980,"40","16","01","053252","001980","40|16|01|001980","01","01","02","05","05","01|01|02|05|05","National","Transport","Direct charge against the National Revenue Fund","International Oil Pollution Compensation Funds","Non-transfer item","Current","Current payments","Goods and services","Minor assets","Minor assets","Economic development","Economic regulation and infrastructure","NAT",0,0,0,0,0,0,null,0,0,0,0,null,null,null,null,null,null,null,null,null,null,null,null,null,null,null,null,null,null,null,null,null,null,null,null,null,null,null,null,null,null,null,null,null,null,{"$f":"Dataset[[#This Row],[2025/26 From - Spending review Topic 1]]+Dataset[[#This Row],[2025/26 From - Spending review Topic 2]]+Dataset[[#This Row],[2025/26 From - Spending review Topic 3]]+Dataset[[#This Row],[2025/26 From - Spending review Topic 4]]+Dataset[[#This Row],[2025/26 From - Other reallocations]]","v":0},{"$f":"Dataset[[#This Row],[2026/27 From - Spending review Topic 1]]+Dataset[[#This Row],[2026/27 From - Spending review Topic 2]]+Dataset[[#This Row],[2026/27 From - Spending review Topic 3]]+Dataset[[#This Row],[2026/27 From - Spending review Topic 4]]+Dataset[[#This Row],[2026/27 From - Other reallocations]]","v":0},{"$f":"Dataset[[#This Row],[2027/28 From - Spending review Topic 1]]+Dataset[[#This Row],[2027/28 From - Spending review Topic 2]]+Dataset[[#This Row],[2027/28 From - Spending review Topic 3]]+Dataset[[#This Row],[2027/28 From - Spending review Topic 4]]+Dataset[[#This Row],[2027/28 From - Other reallocations]]","v":0},{"$f":"Dataset[[#This Row],[2025/26 To - Spending review Topic 1]]+Dataset[[#This Row],[2025/26 To - Spending review Topic 2]]+Dataset[[#This Row],[2025/26 To - Spending review Topic 3]]+Dataset[[#This Row],[2025/26 To - Spending review Topic 4]]+Dataset[[#This Row],[2025/26 To - Other reallocations]]","v":0},{"$f":"Dataset[[#This Row],[2026/27 To - Spending review Topic 1]]+Dataset[[#This Row],[2026/27 To - Spending review Topic 2]]+Dataset[[#This Row],[2026/27 To - Spending review Topic 3]]+Dataset[[#This Row],[2026/27 To - Spending review Topic 4]]+Dataset[[#This Row],[2026/27 To - Other reallocations]]","v":0},{"$f":"Dataset[[#This Row],[2027/28 To - Spending review Topic 1]]+Dataset[[#This Row],[2027/28 To - Spending review Topic 2]]+Dataset[[#This Row],[2027/28 To - Spending review Topic 3]]+Dataset[[#This Row],[2027/28 To - Spending review Topic 4]]+Dataset[[#This Row],[2027/28 To - Other reallocations]]","v":0},{"$f":"Dataset[[#This Row],[2025/26 Reduction]]+Dataset[[#This Row],[2025/26 From - Total]]","v":0},{"$f":"Dataset[[#This Row],[2026/27 Reduction]]+Dataset[[#This Row],[2026/27 From - Total]]","v":0},{"$f":"Dataset[[#This Row],[2027/28 Reduction]]+Dataset[[#This Row],[2027/28 From - Total]]","v":0},{"$f":"Dataset[[#This Row],[2024/25 Reduction]]","v":0},{"$f":"SUM(Dataset[[#This Row],[2025/26 Reduction]],Dataset[[#This Row],[2025/26 From - Total]],Dataset[[#This Row],[2025/26 To - Total]])","v":0},{"$f":"SUM(Dataset[[#This Row],[2026/27 Reduction]],Dataset[[#This Row],[2026/27 From - Total]],Dataset[[#This Row],[2026/27 To - Total]])","v":0},{"$f":"SUM(Dataset[[#This Row],[2027/28 Reduction]],Dataset[[#This Row],[2027/28 From - Total]],Dataset[[#This Row],[2027/28 To - Total]])","v":0},{"$f":"Dataset[[#This Row],[2024/25 Baseline]]+Dataset[[#This Row],[2024/25 Total change]]","v":0},{"$f":"Dataset[[#This Row],[2025/26 Baseline]]+Dataset[[#This Row],[2025/26 Total change]]","v":0},{"$f":"Dataset[[#This Row],[2026/27 Baseline]]+Dataset[[#This Row],[2026/27 Total change]]","v":0},{"$f":"Dataset[[#This Row],[2027/28 Baseline]]+Dataset[[#This Row],[2027/28 Total change]]","v":0}]
["NAT|Non-transfer item","40|Audit costs: External","2025_26","MTEC2025",40,16,1,53253,1981,"40","16","01","053253","001981","40|16|01|001981","01","01","02","06","06","01|01|02|06|06","National","Transport","Direct charge against the National Revenue Fund","International Oil Pollution Compensation Funds","Non-transfer item","Current","Current payments","Goods and services","Audit costs: External","Audit costs: External","Economic development","Economic regulation and infrastructure","NAT",0,0,0,0,0,0,null,0,0,0,0,null,null,null,null,null,null,null,null,null,null,null,null,null,null,null,null,null,null,null,null,null,null,null,null,null,null,null,null,null,null,null,null,null,null,{"$f":"Dataset[[#This Row],[2025/26 From - Spending review Topic 1]]+Dataset[[#This Row],[2025/26 From - Spending review Topic 2]]+Dataset[[#This Row],[2025/26 From - Spending review Topic 3]]+Dataset[[#This Row],[2025/26 From - Spending review Topic 4]]+Dataset[[#This Row],[2025/26 From - Other reallocations]]","v":0},{"$f":"Dataset[[#This Row],[2026/27 From - Spending review Topic 1]]+Dataset[[#This Row],[2026/27 From - Spending review Topic 2]]+Dataset[[#This Row],[2026/27 From - Spending review Topic 3]]+Dataset[[#This Row],[2026/27 From - Spending review Topic 4]]+Dataset[[#This Row],[2026/27 From - Other reallocations]]","v":0},{"$f":"Dataset[[#This Row],[2027/28 From - Spending review Topic 1]]+Dataset[[#This Row],[2027/28 From - Spending review Topic 2]]+Dataset[[#This Row],[2027/28 From - Spending review Topic 3]]+Dataset[[#This Row],[2027/28 From - Spending review Topic 4]]+Dataset[[#This Row],[2027/28 From - Other reallocations]]","v":0},{"$f":"Dataset[[#This Row],[2025/26 To - Spending review Topic 1]]+Dataset[[#This Row],[2025/26 To - Spending review Topic 2]]+Dataset[[#This Row],[2025/26 To - Spending review Topic 3]]+Dataset[[#This Row],[2025/26 To - Spending review Topic 4]]+Dataset[[#This Row],[2025/26 To - Other reallocations]]","v":0},{"$f":"Dataset[[#This Row],[2026/27 To - Spending review Topic 1]]+Dataset[[#This Row],[2026/27 To - Spending review Topic 2]]+Dataset[[#This Row],[2026/27 To - Spending review Topic 3]]+Dataset[[#This Row],[2026/27 To - Spending review Topic 4]]+Dataset[[#This Row],[2026/27 To - Other reallocations]]","v":0},{"$f":"Dataset[[#This Row],[2027/28 To - Spending review Topic 1]]+Dataset[[#This Row],[2027/28 To - Spending review Topic 2]]+Dataset[[#This Row],[2027/28 To - Spending review Topic 3]]+Dataset[[#This Row],[2027/28 To - Spending review Topic 4]]+Dataset[[#This Row],[2027/28 To - Other reallocations]]","v":0},{"$f":"Dataset[[#This Row],[2025/26 Reduction]]+Dataset[[#This Row],[2025/26 From - Total]]","v":0},{"$f":"Dataset[[#This Row],[2026/27 Reduction]]+Dataset[[#This Row],[2026/27 From - Total]]","v":0},{"$f":"Dataset[[#This Row],[2027/28 Reduction]]+Dataset[[#This Row],[2027/28 From - Total]]","v":0},{"$f":"Dataset[[#This Row],[2024/25 Reduction]]","v":0},{"$f":"SUM(Dataset[[#This Row],[2025/26 Reduction]],Dataset[[#This Row],[2025/26 From - Total]],Dataset[[#This Row],[2025/26 To - Total]])","v":0},{"$f":"SUM(Dataset[[#This Row],[2026/27 Reduction]],Dataset[[#This Row],[2026/27 From - Total]],Dataset[[#This Row],[2026/27 To - Total]])","v":0},{"$f":"SUM(Dataset[[#This Row],[2027/28 Reduction]],Dataset[[#This Row],[2027/28 From - Total]],Dataset[[#This Row],[2027/28 To - Total]])","v":0},{"$f":"Dataset[[#This Row],[2024/25 Baseline]]+Dataset[[#This Row],[2024/25 Total change]]","v":0},{"$f":"Dataset[[#This Row],[2025/26 Baseline]]+Dataset[[#This Row],[2025/26 Total change]]","v":0},{"$f":"Dataset[[#This Row],[2026/27 Baseline]]+Dataset[[#This Row],[2026/27 Total change]]","v":0},{"$f":"Dataset[[#This Row],[2027/28 Baseline]]+Dataset[[#This Row],[2027/28 Total change]]","v":0}]
["NAT|Non-transfer item","40|Bursaries: Employees","2025_26","MTEC2025",40,16,1,53254,1982,"40","16","01","053254","001982","40|16|01|001982","01","01","02","07","07","01|01|02|07|07","National","Transport","Direct charge against the National Revenue Fund","International Oil Pollution Compensation Funds","Non-transfer item","Current","Current payments","Goods and services","Bursaries: Employees","Bursaries: Employees","Economic development","Economic regulation and infrastructure","NAT",0,0,0,0,0,0,null,0,0,0,0,null,null,null,null,null,null,null,null,null,null,null,null,null,null,null,null,null,null,null,null,null,null,null,null,null,null,null,null,null,null,null,null,null,null,{"$f":"Dataset[[#This Row],[2025/26 From - Spending review Topic 1]]+Dataset[[#This Row],[2025/26 From - Spending review Topic 2]]+Dataset[[#This Row],[2025/26 From - Spending review Topic 3]]+Dataset[[#This Row],[2025/26 From - Spending review Topic 4]]+Dataset[[#This Row],[2025/26 From - Other reallocations]]","v":0},{"$f":"Dataset[[#This Row],[2026/27 From - Spending review Topic 1]]+Dataset[[#This Row],[2026/27 From - Spending review Topic 2]]+Dataset[[#This Row],[2026/27 From - Spending review Topic 3]]+Dataset[[#This Row],[2026/27 From - Spending review Topic 4]]+Dataset[[#This Row],[2026/27 From - Other reallocations]]","v":0},{"$f":"Dataset[[#This Row],[2027/28 From - Spending review Topic 1]]+Dataset[[#This Row],[2027/28 From - Spending review Topic 2]]+Dataset[[#This Row],[2027/28 From - Spending review Topic 3]]+Dataset[[#This Row],[2027/28 From - Spending review Topic 4]]+Dataset[[#This Row],[2027/28 From - Other reallocations]]","v":0},{"$f":"Dataset[[#This Row],[2025/26 To - Spending review Topic 1]]+Dataset[[#This Row],[2025/26 To - Spending review Topic 2]]+Dataset[[#This Row],[2025/26 To - Spending review Topic 3]]+Dataset[[#This Row],[2025/26 To - Spending review Topic 4]]+Dataset[[#This Row],[2025/26 To - Other reallocations]]","v":0},{"$f":"Dataset[[#This Row],[2026/27 To - Spending review Topic 1]]+Dataset[[#This Row],[2026/27 To - Spending review Topic 2]]+Dataset[[#This Row],[2026/27 To - Spending review Topic 3]]+Dataset[[#This Row],[2026/27 To - Spending review Topic 4]]+Dataset[[#This Row],[2026/27 To - Other reallocations]]","v":0},{"$f":"Dataset[[#This Row],[2027/28 To - Spending review Topic 1]]+Dataset[[#This Row],[2027/28 To - Spending review Topic 2]]+Dataset[[#This Row],[2027/28 To - Spending review Topic 3]]+Dataset[[#This Row],[2027/28 To - Spending review Topic 4]]+Dataset[[#This Row],[2027/28 To - Other reallocations]]","v":0},{"$f":"Dataset[[#This Row],[2025/26 Reduction]]+Dataset[[#This Row],[2025/26 From - Total]]","v":0},{"$f":"Dataset[[#This Row],[2026/27 Reduction]]+Dataset[[#This Row],[2026/27 From - Total]]","v":0},{"$f":"Dataset[[#This Row],[2027/28 Reduction]]+Dataset[[#This Row],[2027/28 From - Total]]","v":0},{"$f":"Dataset[[#This Row],[2024/25 Reduction]]","v":0},{"$f":"SUM(Dataset[[#This Row],[2025/26 Reduction]],Dataset[[#This Row],[2025/26 From - Total]],Dataset[[#This Row],[2025/26 To - Total]])","v":0},{"$f":"SUM(Dataset[[#This Row],[2026/27 Reduction]],Dataset[[#This Row],[2026/27 From - Total]],Dataset[[#This Row],[2026/27 To - Total]])","v":0},{"$f":"SUM(Dataset[[#This Row],[2027/28 Reduction]],Dataset[[#This Row],[2027/28 From - Total]],Dataset[[#This Row],[2027/28 To - Total]])","v":0},{"$f":"Dataset[[#This Row],[2024/25 Baseline]]+Dataset[[#This Row],[2024/25 Total change]]","v":0},{"$f":"Dataset[[#This Row],[2025/26 Baseline]]+Dataset[[#This Row],[2025/26 Total change]]","v":0},{"$f":"Dataset[[#This Row],[2026/27 Baseline]]+Dataset[[#This Row],[2026/27 Total change]]","v":0},{"$f":"Dataset[[#This Row],[2027/28 Baseline]]+Dataset[[#This Row],[2027/28 Total change]]","v":0}]
["NAT|Non-transfer item","40|Catering: Departmental activities","2025_26","MTEC2025",40,16,1,53255,1983,"40","16","01","053255","001983","40|16|01|001983","01","01","02","08","08","01|01|02|08|08","National","Transport","Direct charge against the National Revenue Fund","International Oil Pollution Compensation Funds","Non-transfer item","Current","Current payments","Goods and services","Catering: Departmental activities","Catering: Departmental activities","Economic development","Economic regulation and infrastructure","NAT",0,0,0,0,0,0,null,0,0,0,0,null,null,null,null,null,null,null,null,null,null,null,null,null,null,null,null,null,null,null,null,null,null,null,null,null,null,null,null,null,null,null,null,null,null,{"$f":"Dataset[[#This Row],[2025/26 From - Spending review Topic 1]]+Dataset[[#This Row],[2025/26 From - Spending review Topic 2]]+Dataset[[#This Row],[2025/26 From - Spending review Topic 3]]+Dataset[[#This Row],[2025/26 From - Spending review Topic 4]]+Dataset[[#This Row],[2025/26 From - Other reallocations]]","v":0},{"$f":"Dataset[[#This Row],[2026/27 From - Spending review Topic 1]]+Dataset[[#This Row],[2026/27 From - Spending review Topic 2]]+Dataset[[#This Row],[2026/27 From - Spending review Topic 3]]+Dataset[[#This Row],[2026/27 From - Spending review Topic 4]]+Dataset[[#This Row],[2026/27 From - Other reallocations]]","v":0},{"$f":"Dataset[[#This Row],[2027/28 From - Spending review Topic 1]]+Dataset[[#This Row],[2027/28 From - Spending review Topic 2]]+Dataset[[#This Row],[2027/28 From - Spending review Topic 3]]+Dataset[[#This Row],[2027/28 From - Spending review Topic 4]]+Dataset[[#This Row],[2027/28 From - Other reallocations]]","v":0},{"$f":"Dataset[[#This Row],[2025/26 To - Spending review Topic 1]]+Dataset[[#This Row],[2025/26 To - Spending review Topic 2]]+Dataset[[#This Row],[2025/26 To - Spending review Topic 3]]+Dataset[[#This Row],[2025/26 To - Spending review Topic 4]]+Dataset[[#This Row],[2025/26 To - Other reallocations]]","v":0},{"$f":"Dataset[[#This Row],[2026/27 To - Spending review Topic 1]]+Dataset[[#This Row],[2026/27 To - Spending review Topic 2]]+Dataset[[#This Row],[2026/27 To - Spending review Topic 3]]+Dataset[[#This Row],[2026/27 To - Spending review Topic 4]]+Dataset[[#This Row],[2026/27 To - Other reallocations]]","v":0},{"$f":"Dataset[[#This Row],[2027/28 To - Spending review Topic 1]]+Dataset[[#This Row],[2027/28 To - Spending review Topic 2]]+Dataset[[#This Row],[2027/28 To - Spending review Topic 3]]+Dataset[[#This Row],[2027/28 To - Spending review Topic 4]]+Dataset[[#This Row],[2027/28 To - Other reallocations]]","v":0},{"$f":"Dataset[[#This Row],[2025/26 Reduction]]+Dataset[[#This Row],[2025/26 From - Total]]","v":0},{"$f":"Dataset[[#This Row],[2026/27 Reduction]]+Dataset[[#This Row],[2026/27 From - Total]]","v":0},{"$f":"Dataset[[#This Row],[2027/28 Reduction]]+Dataset[[#This Row],[2027/28 From - Total]]","v":0},{"$f":"Dataset[[#This Row],[2024/25 Reduction]]","v":0},{"$f":"SUM(Dataset[[#This Row],[2025/26 Reduction]],Dataset[[#This Row],[2025/26 From - Total]],Dataset[[#This Row],[2025/26 To - Total]])","v":0},{"$f":"SUM(Dataset[[#This Row],[2026/27 Reduction]],Dataset[[#This Row],[2026/27 From - Total]],Dataset[[#This Row],[2026/27 To - Total]])","v":0},{"$f":"SUM(Dataset[[#This Row],[2027/28 Reduction]],Dataset[[#This Row],[2027/28 From - Total]],Dataset[[#This Row],[2027/28 To - Total]])","v":0},{"$f":"Dataset[[#This Row],[2024/25 Baseline]]+Dataset[[#This Row],[2024/25 Total change]]","v":0},{"$f":"Dataset[[#This Row],[2025/26 Baseline]]+Dataset[[#This Row],[2025/26 Total change]]","v":0},{"$f":"Dataset[[#This Row],[2026/27 Baseline]]+Dataset[[#This Row],[2026/27 Total change]]","v":0},{"$f":"Dataset[[#This Row],[2027/28 Baseline]]+Dataset[[#This Row],[2027/28 Total change]]","v":0}]
["NAT|Non-transfer item","40|Communication (G&S)","2025_26","MTEC2025",40,16,1,53256,1984,"40","16","01","053256","001984","40|16|01|001984","01","01","02","09","09","01|01|02|09|09","National","Transport","Direct charge against the National Revenue Fund","International Oil Pollution Compensation Funds","Non-transfer item","Current","Current payments","Goods and services","Communication (G&S)","Communication (G&S)","Economic development","Economic regulation and infrastructure","NAT",0,0,0,0,0,0,null,0,0,0,0,null,null,null,null,null,null,null,null,null,null,null,null,null,null,null,null,null,null,null,null,null,null,null,null,null,null,null,null,null,null,null,null,null,null,{"$f":"Dataset[[#This Row],[2025/26 From - Spending review Topic 1]]+Dataset[[#This Row],[2025/26 From - Spending review Topic 2]]+Dataset[[#This Row],[2025/26 From - Spending review Topic 3]]+Dataset[[#This Row],[2025/26 From - Spending review Topic 4]]+Dataset[[#This Row],[2025/26 From - Other reallocations]]","v":0},{"$f":"Dataset[[#This Row],[2026/27 From - Spending review Topic 1]]+Dataset[[#This Row],[2026/27 From - Spending review Topic 2]]+Dataset[[#This Row],[2026/27 From - Spending review Topic 3]]+Dataset[[#This Row],[2026/27 From - Spending review Topic 4]]+Dataset[[#This Row],[2026/27 From - Other reallocations]]","v":0},{"$f":"Dataset[[#This Row],[2027/28 From - Spending review Topic 1]]+Dataset[[#This Row],[2027/28 From - Spending review Topic 2]]+Dataset[[#This Row],[2027/28 From - Spending review Topic 3]]+Dataset[[#This Row],[2027/28 From - Spending review Topic 4]]+Dataset[[#This Row],[2027/28 From - Other reallocations]]","v":0},{"$f":"Dataset[[#This Row],[2025/26 To - Spending review Topic 1]]+Dataset[[#This Row],[2025/26 To - Spending review Topic 2]]+Dataset[[#This Row],[2025/26 To - Spending review Topic 3]]+Dataset[[#This Row],[2025/26 To - Spending review Topic 4]]+Dataset[[#This Row],[2025/26 To - Other reallocations]]","v":0},{"$f":"Dataset[[#This Row],[2026/27 To - Spending review Topic 1]]+Dataset[[#This Row],[2026/27 To - Spending review Topic 2]]+Dataset[[#This Row],[2026/27 To - Spending review Topic 3]]+Dataset[[#This Row],[2026/27 To - Spending review Topic 4]]+Dataset[[#This Row],[2026/27 To - Other reallocations]]","v":0},{"$f":"Dataset[[#This Row],[2027/28 To - Spending review Topic 1]]+Dataset[[#This Row],[2027/28 To - Spending review Topic 2]]+Dataset[[#This Row],[2027/28 To - Spending review Topic 3]]+Dataset[[#This Row],[2027/28 To - Spending review Topic 4]]+Dataset[[#This Row],[2027/28 To - Other reallocations]]","v":0},{"$f":"Dataset[[#This Row],[2025/26 Reduction]]+Dataset[[#This Row],[2025/26 From - Total]]","v":0},{"$f":"Dataset[[#This Row],[2026/27 Reduction]]+Dataset[[#This Row],[2026/27 From - Total]]","v":0},{"$f":"Dataset[[#This Row],[2027/28 Reduction]]+Dataset[[#This Row],[2027/28 From - Total]]","v":0},{"$f":"Dataset[[#This Row],[2024/25 Reduction]]","v":0},{"$f":"SUM(Dataset[[#This Row],[2025/26 Reduction]],Dataset[[#This Row],[2025/26 From - Total]],Dataset[[#This Row],[2025/26 To - Total]])","v":0},{"$f":"SUM(Dataset[[#This Row],[2026/27 Reduction]],Dataset[[#This Row],[2026/27 From - Total]],Dataset[[#This Row],[2026/27 To - Total]])","v":0},{"$f":"SUM(Dataset[[#This Row],[2027/28 Reduction]],Dataset[[#This Row],[2027/28 From - Total]],Dataset[[#This Row],[2027/28 To - Total]])","v":0},{"$f":"Dataset[[#This Row],[2024/25 Baseline]]+Dataset[[#This Row],[2024/25 Total change]]","v":0},{"$f":"Dataset[[#This Row],[2025/26 Baseline]]+Dataset[[#This Row],[2025/26 Total change]]","v":0},{"$f":"Dataset[[#This Row],[2026/27 Baseline]]+Dataset[[#This Row],[2026/27 Total change]]","v":0},{"$f":"Dataset[[#This Row],[2027/28 Baseline]]+Dataset[[#This Row],[2027/28 Total change]]","v":0}]
["NAT|Non-transfer item","40|Computer services","2025_26","MTEC2025",40,16,1,53257,1985,"40","16","01","053257","001985","40|16|01|001985","01","01","02","10","10","01|01|02|10|10","National","Transport","Direct charge against the National Revenue Fund","International Oil Pollution Compensation Funds","Non-transfer item","Current","Current payments","Goods and services","Computer services","Computer services","Economic development","Economic regulation and infrastructure","NAT",0,0,0,0,0,0,null,0,0,0,0,null,null,null,null,null,null,null,null,null,null,null,null,null,null,null,null,null,null,null,null,null,null,null,null,null,null,null,null,null,null,null,null,null,null,{"$f":"Dataset[[#This Row],[2025/26 From - Spending review Topic 1]]+Dataset[[#This Row],[2025/26 From - Spending review Topic 2]]+Dataset[[#This Row],[2025/26 From - Spending review Topic 3]]+Dataset[[#This Row],[2025/26 From - Spending review Topic 4]]+Dataset[[#This Row],[2025/26 From - Other reallocations]]","v":0},{"$f":"Dataset[[#This Row],[2026/27 From - Spending review Topic 1]]+Dataset[[#This Row],[2026/27 From - Spending review Topic 2]]+Dataset[[#This Row],[2026/27 From - Spending review Topic 3]]+Dataset[[#This Row],[2026/27 From - Spending review Topic 4]]+Dataset[[#This Row],[2026/27 From - Other reallocations]]","v":0},{"$f":"Dataset[[#This Row],[2027/28 From - Spending review Topic 1]]+Dataset[[#This Row],[2027/28 From - Spending review Topic 2]]+Dataset[[#This Row],[2027/28 From - Spending review Topic 3]]+Dataset[[#This Row],[2027/28 From - Spending review Topic 4]]+Dataset[[#This Row],[2027/28 From - Other reallocations]]","v":0},{"$f":"Dataset[[#This Row],[2025/26 To - Spending review Topic 1]]+Dataset[[#This Row],[2025/26 To - Spending review Topic 2]]+Dataset[[#This Row],[2025/26 To - Spending review Topic 3]]+Dataset[[#This Row],[2025/26 To - Spending review Topic 4]]+Dataset[[#This Row],[2025/26 To - Other reallocations]]","v":0},{"$f":"Dataset[[#This Row],[2026/27 To - Spending review Topic 1]]+Dataset[[#This Row],[2026/27 To - Spending review Topic 2]]+Dataset[[#This Row],[2026/27 To - Spending review Topic 3]]+Dataset[[#This Row],[2026/27 To - Spending review Topic 4]]+Dataset[[#This Row],[2026/27 To - Other reallocations]]","v":0},{"$f":"Dataset[[#This Row],[2027/28 To - Spending review Topic 1]]+Dataset[[#This Row],[2027/28 To - Spending review Topic 2]]+Dataset[[#This Row],[2027/28 To - Spending review Topic 3]]+Dataset[[#This Row],[2027/28 To - Spending review Topic 4]]+Dataset[[#This Row],[2027/28 To - Other reallocations]]","v":0},{"$f":"Dataset[[#This Row],[2025/26 Reduction]]+Dataset[[#This Row],[2025/26 From - Total]]","v":0},{"$f":"Dataset[[#This Row],[2026/27 Reduction]]+Dataset[[#This Row],[2026/27 From - Total]]","v":0},{"$f":"Dataset[[#This Row],[2027/28 Reduction]]+Dataset[[#This Row],[2027/28 From - Total]]","v":0},{"$f":"Dataset[[#This Row],[2024/25 Reduction]]","v":0},{"$f":"SUM(Dataset[[#This Row],[2025/26 Reduction]],Dataset[[#This Row],[2025/26 From - Total]],Dataset[[#This Row],[2025/26 To - Total]])","v":0},{"$f":"SUM(Dataset[[#This Row],[2026/27 Reduction]],Dataset[[#This Row],[2026/27 From - Total]],Dataset[[#This Row],[2026/27 To - Total]])","v":0},{"$f":"SUM(Dataset[[#This Row],[2027/28 Reduction]],Dataset[[#This Row],[2027/28 From - Total]],Dataset[[#This Row],[2027/28 To - Total]])","v":0},{"$f":"Dataset[[#This Row],[2024/25 Baseline]]+Dataset[[#This Row],[2024/25 Total change]]","v":0},{"$f":"Dataset[[#This Row],[2025/26 Baseline]]+Dataset[[#This Row],[2025/26 Total change]]","v":0},{"$f":"Dataset[[#This Row],[2026/27 Baseline]]+Dataset[[#This Row],[2026/27 Total change]]","v":0},{"$f":"Dataset[[#This Row],[2027/28 Baseline]]+Dataset[[#This Row],[2027/28 Total change]]","v":0}]
["NAT|Non-transfer item","40|Consultants: Business and advisory services","2025_26","MTEC2025",40,16,1,53258,1986,"40","16","01","053258","001986","40|16|01|001986","01","01","02","11","11","01|01|02|11|11","National","Transport","Direct charge against the National Revenue Fund","International Oil Pollution Compensation Funds","Non-transfer item","Current","Current payments","Goods and services","Consultants: Business and advisory services","Consultants: Business and advisory services","Economic development","Economic regulation and infrastructure","NAT",0,0,0,0,0,0,null,0,0,0,0,null,null,null,null,null,null,null,null,null,null,null,null,null,null,null,null,null,null,null,null,null,null,null,null,null,null,null,null,null,null,null,null,null,null,{"$f":"Dataset[[#This Row],[2025/26 From - Spending review Topic 1]]+Dataset[[#This Row],[2025/26 From - Spending review Topic 2]]+Dataset[[#This Row],[2025/26 From - Spending review Topic 3]]+Dataset[[#This Row],[2025/26 From - Spending review Topic 4]]+Dataset[[#This Row],[2025/26 From - Other reallocations]]","v":0},{"$f":"Dataset[[#This Row],[2026/27 From - Spending review Topic 1]]+Dataset[[#This Row],[2026/27 From - Spending review Topic 2]]+Dataset[[#This Row],[2026/27 From - Spending review Topic 3]]+Dataset[[#This Row],[2026/27 From - Spending review Topic 4]]+Dataset[[#This Row],[2026/27 From - Other reallocations]]","v":0},{"$f":"Dataset[[#This Row],[2027/28 From - Spending review Topic 1]]+Dataset[[#This Row],[2027/28 From - Spending review Topic 2]]+Dataset[[#This Row],[2027/28 From - Spending review Topic 3]]+Dataset[[#This Row],[2027/28 From - Spending review Topic 4]]+Dataset[[#This Row],[2027/28 From - Other reallocations]]","v":0},{"$f":"Dataset[[#This Row],[2025/26 To - Spending review Topic 1]]+Dataset[[#This Row],[2025/26 To - Spending review Topic 2]]+Dataset[[#This Row],[2025/26 To - Spending review Topic 3]]+Dataset[[#This Row],[2025/26 To - Spending review Topic 4]]+Dataset[[#This Row],[2025/26 To - Other reallocations]]","v":0},{"$f":"Dataset[[#This Row],[2026/27 To - Spending review Topic 1]]+Dataset[[#This Row],[2026/27 To - Spending review Topic 2]]+Dataset[[#This Row],[2026/27 To - Spending review Topic 3]]+Dataset[[#This Row],[2026/27 To - Spending review Topic 4]]+Dataset[[#This Row],[2026/27 To - Other reallocations]]","v":0},{"$f":"Dataset[[#This Row],[2027/28 To - Spending review Topic 1]]+Dataset[[#This Row],[2027/28 To - Spending review Topic 2]]+Dataset[[#This Row],[2027/28 To - Spending review Topic 3]]+Dataset[[#This Row],[2027/28 To - Spending review Topic 4]]+Dataset[[#This Row],[2027/28 To - Other reallocations]]","v":0},{"$f":"Dataset[[#This Row],[2025/26 Reduction]]+Dataset[[#This Row],[2025/26 From - Total]]","v":0},{"$f":"Dataset[[#This Row],[2026/27 Reduction]]+Dataset[[#This Row],[2026/27 From - Total]]","v":0},{"$f":"Dataset[[#This Row],[2027/28 Reduction]]+Dataset[[#This Row],[2027/28 From - Total]]","v":0},{"$f":"Dataset[[#This Row],[2024/25 Reduction]]","v":0},{"$f":"SUM(Dataset[[#This Row],[2025/26 Reduction]],Dataset[[#This Row],[2025/26 From - Total]],Dataset[[#This Row],[2025/26 To - Total]])","v":0},{"$f":"SUM(Dataset[[#This Row],[2026/27 Reduction]],Dataset[[#This Row],[2026/27 From - Total]],Dataset[[#This Row],[2026/27 To - Total]])","v":0},{"$f":"SUM(Dataset[[#This Row],[2027/28 Reduction]],Dataset[[#This Row],[2027/28 From - Total]],Dataset[[#This Row],[2027/28 To - Total]])","v":0},{"$f":"Dataset[[#This Row],[2024/25 Baseline]]+Dataset[[#This Row],[2024/25 Total change]]","v":0},{"$f":"Dataset[[#This Row],[2025/26 Baseline]]+Dataset[[#This Row],[2025/26 Total change]]","v":0},{"$f":"Dataset[[#This Row],[2026/27 Baseline]]+Dataset[[#This Row],[2026/27 Total change]]","v":0},{"$f":"Dataset[[#This Row],[2027/28 Baseline]]+Dataset[[#This Row],[2027/28 Total change]]","v":0}]
["NAT|Non-transfer item","40|Infrastructure and planning services","2025_26","MTEC2025",40,16,1,53259,1987,"40","16","01","053259","001987","40|16|01|001987","01","01","02","12","12","01|01|02|12|12","National","Transport","Direct charge against the National Revenue Fund","International Oil Pollution Compensation Funds","Non-transfer item","Current","Current payments","Goods and services","Infrastructure and planning services","Infrastructure and planning services","Economic development","Economic regulation and infrastructure","NAT",0,0,0,0,0,0,null,0,0,0,0,null,null,null,null,null,null,null,null,null,null,null,null,null,null,null,null,null,null,null,null,null,null,null,null,null,null,null,null,null,null,null,null,null,null,{"$f":"Dataset[[#This Row],[2025/26 From - Spending review Topic 1]]+Dataset[[#This Row],[2025/26 From - Spending review Topic 2]]+Dataset[[#This Row],[2025/26 From - Spending review Topic 3]]+Dataset[[#This Row],[2025/26 From - Spending review Topic 4]]+Dataset[[#This Row],[2025/26 From - Other reallocations]]","v":0},{"$f":"Dataset[[#This Row],[2026/27 From - Spending review Topic 1]]+Dataset[[#This Row],[2026/27 From - Spending review Topic 2]]+Dataset[[#This Row],[2026/27 From - Spending review Topic 3]]+Dataset[[#This Row],[2026/27 From - Spending review Topic 4]]+Dataset[[#This Row],[2026/27 From - Other reallocations]]","v":0},{"$f":"Dataset[[#This Row],[2027/28 From - Spending review Topic 1]]+Dataset[[#This Row],[2027/28 From - Spending review Topic 2]]+Dataset[[#This Row],[2027/28 From - Spending review Topic 3]]+Dataset[[#This Row],[2027/28 From - Spending review Topic 4]]+Dataset[[#This Row],[2027/28 From - Other reallocations]]","v":0},{"$f":"Dataset[[#This Row],[2025/26 To - Spending review Topic 1]]+Dataset[[#This Row],[2025/26 To - Spending review Topic 2]]+Dataset[[#This Row],[2025/26 To - Spending review Topic 3]]+Dataset[[#This Row],[2025/26 To - Spending review Topic 4]]+Dataset[[#This Row],[2025/26 To - Other reallocations]]","v":0},{"$f":"Dataset[[#This Row],[2026/27 To - Spending review Topic 1]]+Dataset[[#This Row],[2026/27 To - Spending review Topic 2]]+Dataset[[#This Row],[2026/27 To - Spending review Topic 3]]+Dataset[[#This Row],[2026/27 To - Spending review Topic 4]]+Dataset[[#This Row],[2026/27 To - Other reallocations]]","v":0},{"$f":"Dataset[[#This Row],[2027/28 To - Spending review Topic 1]]+Dataset[[#This Row],[2027/28 To - Spending review Topic 2]]+Dataset[[#This Row],[2027/28 To - Spending review Topic 3]]+Dataset[[#This Row],[2027/28 To - Spending review Topic 4]]+Dataset[[#This Row],[2027/28 To - Other reallocations]]","v":0},{"$f":"Dataset[[#This Row],[2025/26 Reduction]]+Dataset[[#This Row],[2025/26 From - Total]]","v":0},{"$f":"Dataset[[#This Row],[2026/27 Reduction]]+Dataset[[#This Row],[2026/27 From - Total]]","v":0},{"$f":"Dataset[[#This Row],[2027/28 Reduction]]+Dataset[[#This Row],[2027/28 From - Total]]","v":0},{"$f":"Dataset[[#This Row],[2024/25 Reduction]]","v":0},{"$f":"SUM(Dataset[[#This Row],[2025/26 Reduction]],Dataset[[#This Row],[2025/26 From - Total]],Dataset[[#This Row],[2025/26 To - Total]])","v":0},{"$f":"SUM(Dataset[[#This Row],[2026/27 Reduction]],Dataset[[#This Row],[2026/27 From - Total]],Dataset[[#This Row],[2026/27 To - Total]])","v":0},{"$f":"SUM(Dataset[[#This Row],[2027/28 Reduction]],Dataset[[#This Row],[2027/28 From - Total]],Dataset[[#This Row],[2027/28 To - Total]])","v":0},{"$f":"Dataset[[#This Row],[2024/25 Baseline]]+Dataset[[#This Row],[2024/25 Total change]]","v":0},{"$f":"Dataset[[#This Row],[2025/26 Baseline]]+Dataset[[#This Row],[2025/26 Total change]]","v":0},{"$f":"Dataset[[#This Row],[2026/27 Baseline]]+Dataset[[#This Row],[2026/27 Total change]]","v":0},{"$f":"Dataset[[#This Row],[2027/28 Baseline]]+Dataset[[#This Row],[2027/28 Total change]]","v":0}]
["NAT|Non-transfer item","40|Laboratory services","2025_26","MTEC2025",40,16,1,53260,1988,"40","16","01","053260","001988","40|16|01|001988","01","01","02","13","13","01|01|02|13|13","National","Transport","Direct charge against the National Revenue Fund","International Oil Pollution Compensation Funds","Non-transfer item","Current","Current payments","Goods and services","Laboratory services","Laboratory services","Economic development","Economic regulation and infrastructure","NAT",0,0,0,0,0,0,null,0,0,0,0,null,null,null,null,null,null,null,null,null,null,null,null,null,null,null,null,null,null,null,null,null,null,null,null,null,null,null,null,null,null,null,null,null,null,{"$f":"Dataset[[#This Row],[2025/26 From - Spending review Topic 1]]+Dataset[[#This Row],[2025/26 From - Spending review Topic 2]]+Dataset[[#This Row],[2025/26 From - Spending review Topic 3]]+Dataset[[#This Row],[2025/26 From - Spending review Topic 4]]+Dataset[[#This Row],[2025/26 From - Other reallocations]]","v":0},{"$f":"Dataset[[#This Row],[2026/27 From - Spending review Topic 1]]+Dataset[[#This Row],[2026/27 From - Spending review Topic 2]]+Dataset[[#This Row],[2026/27 From - Spending review Topic 3]]+Dataset[[#This Row],[2026/27 From - Spending review Topic 4]]+Dataset[[#This Row],[2026/27 From - Other reallocations]]","v":0},{"$f":"Dataset[[#This Row],[2027/28 From - Spending review Topic 1]]+Dataset[[#This Row],[2027/28 From - Spending review Topic 2]]+Dataset[[#This Row],[2027/28 From - Spending review Topic 3]]+Dataset[[#This Row],[2027/28 From - Spending review Topic 4]]+Dataset[[#This Row],[2027/28 From - Other reallocations]]","v":0},{"$f":"Dataset[[#This Row],[2025/26 To - Spending review Topic 1]]+Dataset[[#This Row],[2025/26 To - Spending review Topic 2]]+Dataset[[#This Row],[2025/26 To - Spending review Topic 3]]+Dataset[[#This Row],[2025/26 To - Spending review Topic 4]]+Dataset[[#This Row],[2025/26 To - Other reallocations]]","v":0},{"$f":"Dataset[[#This Row],[2026/27 To - Spending review Topic 1]]+Dataset[[#This Row],[2026/27 To - Spending review Topic 2]]+Dataset[[#This Row],[2026/27 To - Spending review Topic 3]]+Dataset[[#This Row],[2026/27 To - Spending review Topic 4]]+Dataset[[#This Row],[2026/27 To - Other reallocations]]","v":0},{"$f":"Dataset[[#This Row],[2027/28 To - Spending review Topic 1]]+Dataset[[#This Row],[2027/28 To - Spending review Topic 2]]+Dataset[[#This Row],[2027/28 To - Spending review Topic 3]]+Dataset[[#This Row],[2027/28 To - Spending review Topic 4]]+Dataset[[#This Row],[2027/28 To - Other reallocations]]","v":0},{"$f":"Dataset[[#This Row],[2025/26 Reduction]]+Dataset[[#This Row],[2025/26 From - Total]]","v":0},{"$f":"Dataset[[#This Row],[2026/27 Reduction]]+Dataset[[#This Row],[2026/27 From - Total]]","v":0},{"$f":"Dataset[[#This Row],[2027/28 Reduction]]+Dataset[[#This Row],[2027/28 From - Total]]","v":0},{"$f":"Dataset[[#This Row],[2024/25 Reduction]]","v":0},{"$f":"SUM(Dataset[[#This Row],[2025/26 Reduction]],Dataset[[#This Row],[2025/26 From - Total]],Dataset[[#This Row],[2025/26 To - Total]])","v":0},{"$f":"SUM(Dataset[[#This Row],[2026/27 Reduction]],Dataset[[#This Row],[2026/27 From - Total]],Dataset[[#This Row],[2026/27 To - Total]])","v":0},{"$f":"SUM(Dataset[[#This Row],[2027/28 Reduction]],Dataset[[#This Row],[2027/28 From - Total]],Dataset[[#This Row],[2027/28 To - Total]])","v":0},{"$f":"Dataset[[#This Row],[2024/25 Baseline]]+Dataset[[#This Row],[2024/25 Total change]]","v":0},{"$f":"Dataset[[#This Row],[2025/26 Baseline]]+Dataset[[#This Row],[2025/26 Total change]]","v":0},{"$f":"Dataset[[#This Row],[2026/27 Baseline]]+Dataset[[#This Row],[2026/27 Total change]]","v":0},{"$f":"Dataset[[#This Row],[2027/28 Baseline]]+Dataset[[#This Row],[2027/28 Total change]]","v":0}]
["NAT|Non-transfer item","40|Legal services (G&S)","2025_26","MTEC2025",40,16,1,53261,1989,"40","16","01","053261","001989","40|16|01|001989","01","01","02","14","14","01|01|02|14|14","National","Transport","Direct charge against the National Revenue Fund","International Oil Pollution Compensation Funds","Non-transfer item","Current","Current payments","Goods and services","Legal services (G&S)","Legal services (G&S)","Economic development","Economic regulation and infrastructure","NAT",0,0,0,0,0,0,null,0,0,0,0,null,null,null,null,null,null,null,null,null,null,null,null,null,null,null,null,null,null,null,null,null,null,null,null,null,null,null,null,null,null,null,null,null,null,{"$f":"Dataset[[#This Row],[2025/26 From - Spending review Topic 1]]+Dataset[[#This Row],[2025/26 From - Spending review Topic 2]]+Dataset[[#This Row],[2025/26 From - Spending review Topic 3]]+Dataset[[#This Row],[2025/26 From - Spending review Topic 4]]+Dataset[[#This Row],[2025/26 From - Other reallocations]]","v":0},{"$f":"Dataset[[#This Row],[2026/27 From - Spending review Topic 1]]+Dataset[[#This Row],[2026/27 From - Spending review Topic 2]]+Dataset[[#This Row],[2026/27 From - Spending review Topic 3]]+Dataset[[#This Row],[2026/27 From - Spending review Topic 4]]+Dataset[[#This Row],[2026/27 From - Other reallocations]]","v":0},{"$f":"Dataset[[#This Row],[2027/28 From - Spending review Topic 1]]+Dataset[[#This Row],[2027/28 From - Spending review Topic 2]]+Dataset[[#This Row],[2027/28 From - Spending review Topic 3]]+Dataset[[#This Row],[2027/28 From - Spending review Topic 4]]+Dataset[[#This Row],[2027/28 From - Other reallocations]]","v":0},{"$f":"Dataset[[#This Row],[2025/26 To - Spending review Topic 1]]+Dataset[[#This Row],[2025/26 To - Spending review Topic 2]]+Dataset[[#This Row],[2025/26 To - Spending review Topic 3]]+Dataset[[#This Row],[2025/26 To - Spending review Topic 4]]+Dataset[[#This Row],[2025/26 To - Other reallocations]]","v":0},{"$f":"Dataset[[#This Row],[2026/27 To - Spending review Topic 1]]+Dataset[[#This Row],[2026/27 To - Spending review Topic 2]]+Dataset[[#This Row],[2026/27 To - Spending review Topic 3]]+Dataset[[#This Row],[2026/27 To - Spending review Topic 4]]+Dataset[[#This Row],[2026/27 To - Other reallocations]]","v":0},{"$f":"Dataset[[#This Row],[2027/28 To - Spending review Topic 1]]+Dataset[[#This Row],[2027/28 To - Spending review Topic 2]]+Dataset[[#This Row],[2027/28 To - Spending review Topic 3]]+Dataset[[#This Row],[2027/28 To - Spending review Topic 4]]+Dataset[[#This Row],[2027/28 To - Other reallocations]]","v":0},{"$f":"Dataset[[#This Row],[2025/26 Reduction]]+Dataset[[#This Row],[2025/26 From - Total]]","v":0},{"$f":"Dataset[[#This Row],[2026/27 Reduction]]+Dataset[[#This Row],[2026/27 From - Total]]","v":0},{"$f":"Dataset[[#This Row],[2027/28 Reduction]]+Dataset[[#This Row],[2027/28 From - Total]]","v":0},{"$f":"Dataset[[#This Row],[2024/25 Reduction]]","v":0},{"$f":"SUM(Dataset[[#This Row],[2025/26 Reduction]],Dataset[[#This Row],[2025/26 From - Total]],Dataset[[#This Row],[2025/26 To - Total]])","v":0},{"$f":"SUM(Dataset[[#This Row],[2026/27 Reduction]],Dataset[[#This Row],[2026/27 From - Total]],Dataset[[#This Row],[2026/27 To - Total]])","v":0},{"$f":"SUM(Dataset[[#This Row],[2027/28 Reduction]],Dataset[[#This Row],[2027/28 From - Total]],Dataset[[#This Row],[2027/28 To - Total]])","v":0},{"$f":"Dataset[[#This Row],[2024/25 Baseline]]+Dataset[[#This Row],[2024/25 Total change]]","v":0},{"$f":"Dataset[[#This Row],[2025/26 Baseline]]+Dataset[[#This Row],[2025/26 Total change]]","v":0},{"$f":"Dataset[[#This Row],[2026/27 Baseline]]+Dataset[[#This Row],[2026/27 Total change]]","v":0},{"$f":"Dataset[[#This Row],[2027/28 Baseline]]+Dataset[[#This Row],[2027/28 Total change]]","v":0}]
["NAT|Non-transfer item","40|Science and technological services","2025_26","MTEC2025",40,16,1,53262,1990,"40","16","01","053262","001990","40|16|01|001990","01","01","02","15","15","01|01|02|15|15","National","Transport","Direct charge against the National Revenue Fund","International Oil Pollution Compensation Funds","Non-transfer item","Current","Current payments","Goods and services","Science and technological services","Science and technological services","Economic development","Economic regulation and infrastructure","NAT",0,0,0,0,0,0,null,0,0,0,0,null,null,null,null,null,null,null,null,null,null,null,null,null,null,null,null,null,null,null,null,null,null,null,null,null,null,null,null,null,null,null,null,null,null,{"$f":"Dataset[[#This Row],[2025/26 From - Spending review Topic 1]]+Dataset[[#This Row],[2025/26 From - Spending review Topic 2]]+Dataset[[#This Row],[2025/26 From - Spending review Topic 3]]+Dataset[[#This Row],[2025/26 From - Spending review Topic 4]]+Dataset[[#This Row],[2025/26 From - Other reallocations]]","v":0},{"$f":"Dataset[[#This Row],[2026/27 From - Spending review Topic 1]]+Dataset[[#This Row],[2026/27 From - Spending review Topic 2]]+Dataset[[#This Row],[2026/27 From - Spending review Topic 3]]+Dataset[[#This Row],[2026/27 From - Spending review Topic 4]]+Dataset[[#This Row],[2026/27 From - Other reallocations]]","v":0},{"$f":"Dataset[[#This Row],[2027/28 From - Spending review Topic 1]]+Dataset[[#This Row],[2027/28 From - Spending review Topic 2]]+Dataset[[#This Row],[2027/28 From - Spending review Topic 3]]+Dataset[[#This Row],[2027/28 From - Spending review Topic 4]]+Dataset[[#This Row],[2027/28 From - Other reallocations]]","v":0},{"$f":"Dataset[[#This Row],[2025/26 To - Spending review Topic 1]]+Dataset[[#This Row],[2025/26 To - Spending review Topic 2]]+Dataset[[#This Row],[2025/26 To - Spending review Topic 3]]+Dataset[[#This Row],[2025/26 To - Spending review Topic 4]]+Dataset[[#This Row],[2025/26 To - Other reallocations]]","v":0},{"$f":"Dataset[[#This Row],[2026/27 To - Spending review Topic 1]]+Dataset[[#This Row],[2026/27 To - Spending review Topic 2]]+Dataset[[#This Row],[2026/27 To - Spending review Topic 3]]+Dataset[[#This Row],[2026/27 To - Spending review Topic 4]]+Dataset[[#This Row],[2026/27 To - Other reallocations]]","v":0},{"$f":"Dataset[[#This Row],[2027/28 To - Spending review Topic 1]]+Dataset[[#This Row],[2027/28 To - Spending review Topic 2]]+Dataset[[#This Row],[2027/28 To - Spending review Topic 3]]+Dataset[[#This Row],[2027/28 To - Spending review Topic 4]]+Dataset[[#This Row],[2027/28 To - Other reallocations]]","v":0},{"$f":"Dataset[[#This Row],[2025/26 Reduction]]+Dataset[[#This Row],[2025/26 From - Total]]","v":0},{"$f":"Dataset[[#This Row],[2026/27 Reduction]]+Dataset[[#This Row],[2026/27 From - Total]]","v":0},{"$f":"Dataset[[#This Row],[2027/28 Reduction]]+Dataset[[#This Row],[2027/28 From - Total]]","v":0},{"$f":"Dataset[[#This Row],[2024/25 Reduction]]","v":0},{"$f":"SUM(Dataset[[#This Row],[2025/26 Reduction]],Dataset[[#This Row],[2025/26 From - Total]],Dataset[[#This Row],[2025/26 To - Total]])","v":0},{"$f":"SUM(Dataset[[#This Row],[2026/27 Reduction]],Dataset[[#This Row],[2026/27 From - Total]],Dataset[[#This Row],[2026/27 To - Total]])","v":0},{"$f":"SUM(Dataset[[#This Row],[2027/28 Reduction]],Dataset[[#This Row],[2027/28 From - Total]],Dataset[[#This Row],[2027/28 To - Total]])","v":0},{"$f":"Dataset[[#This Row],[2024/25 Baseline]]+Dataset[[#This Row],[2024/25 Total change]]","v":0},{"$f":"Dataset[[#This Row],[2025/26 Baseline]]+Dataset[[#This Row],[2025/26 Total change]]","v":0},{"$f":"Dataset[[#This Row],[2026/27 Baseline]]+Dataset[[#This Row],[2026/27 Total change]]","v":0},{"$f":"Dataset[[#This Row],[2027/28 Baseline]]+Dataset[[#This Row],[2027/28 Total change]]","v":0}]
["NAT|Non-transfer item","40|Contractors","2025_26","MTEC2025",40,16,1,53263,1991,"40","16","01","053263","001991","40|16|01|001991","01","01","02","16","16","01|01|02|16|16","National","Transport","Direct charge against the National Revenue Fund","International Oil Pollution Compensation Funds","Non-transfer item","Current","Current payments","Goods and services","Contractors","Contractors","Economic development","Economic regulation and infrastructure","NAT",0,0,0,0,0,0,null,0,0,0,0,null,null,null,null,null,null,null,null,null,null,null,null,null,null,null,null,null,null,null,null,null,null,null,null,null,null,null,null,null,null,null,null,null,null,{"$f":"Dataset[[#This Row],[2025/26 From - Spending review Topic 1]]+Dataset[[#This Row],[2025/26 From - Spending review Topic 2]]+Dataset[[#This Row],[2025/26 From - Spending review Topic 3]]+Dataset[[#This Row],[2025/26 From - Spending review Topic 4]]+Dataset[[#This Row],[2025/26 From - Other reallocations]]","v":0},{"$f":"Dataset[[#This Row],[2026/27 From - Spending review Topic 1]]+Dataset[[#This Row],[2026/27 From - Spending review Topic 2]]+Dataset[[#This Row],[2026/27 From - Spending review Topic 3]]+Dataset[[#This Row],[2026/27 From - Spending review Topic 4]]+Dataset[[#This Row],[2026/27 From - Other reallocations]]","v":0},{"$f":"Dataset[[#This Row],[2027/28 From - Spending review Topic 1]]+Dataset[[#This Row],[2027/28 From - Spending review Topic 2]]+Dataset[[#This Row],[2027/28 From - Spending review Topic 3]]+Dataset[[#This Row],[2027/28 From - Spending review Topic 4]]+Dataset[[#This Row],[2027/28 From - Other reallocations]]","v":0},{"$f":"Dataset[[#This Row],[2025/26 To - Spending review Topic 1]]+Dataset[[#This Row],[2025/26 To - Spending review Topic 2]]+Dataset[[#This Row],[2025/26 To - Spending review Topic 3]]+Dataset[[#This Row],[2025/26 To - Spending review Topic 4]]+Dataset[[#This Row],[2025/26 To - Other reallocations]]","v":0},{"$f":"Dataset[[#This Row],[2026/27 To - Spending review Topic 1]]+Dataset[[#This Row],[2026/27 To - Spending review Topic 2]]+Dataset[[#This Row],[2026/27 To - Spending review Topic 3]]+Dataset[[#This Row],[2026/27 To - Spending review Topic 4]]+Dataset[[#This Row],[2026/27 To - Other reallocations]]","v":0},{"$f":"Dataset[[#This Row],[2027/28 To - Spending review Topic 1]]+Dataset[[#This Row],[2027/28 To - Spending review Topic 2]]+Dataset[[#This Row],[2027/28 To - Spending review Topic 3]]+Dataset[[#This Row],[2027/28 To - Spending review Topic 4]]+Dataset[[#This Row],[2027/28 To - Other reallocations]]","v":0},{"$f":"Dataset[[#This Row],[2025/26 Reduction]]+Dataset[[#This Row],[2025/26 From - Total]]","v":0},{"$f":"Dataset[[#This Row],[2026/27 Reduction]]+Dataset[[#This Row],[2026/27 From - Total]]","v":0},{"$f":"Dataset[[#This Row],[2027/28 Reduction]]+Dataset[[#This Row],[2027/28 From - Total]]","v":0},{"$f":"Dataset[[#This Row],[2024/25 Reduction]]","v":0},{"$f":"SUM(Dataset[[#This Row],[2025/26 Reduction]],Dataset[[#This Row],[2025/26 From - Total]],Dataset[[#This Row],[2025/26 To - Total]])","v":0},{"$f":"SUM(Dataset[[#This Row],[2026/27 Reduction]],Dataset[[#This Row],[2026/27 From - Total]],Dataset[[#This Row],[2026/27 To - Total]])","v":0},{"$f":"SUM(Dataset[[#This Row],[2027/28 Reduction]],Dataset[[#This Row],[2027/28 From - Total]],Dataset[[#This Row],[2027/28 To - Total]])","v":0},{"$f":"Dataset[[#This Row],[2024/25 Baseline]]+Dataset[[#This Row],[2024/25 Total change]]","v":0},{"$f":"Dataset[[#This Row],[2025/26 Baseline]]+Dataset[[#This Row],[2025/26 Total change]]","v":0},{"$f":"Dataset[[#This Row],[2026/27 Baseline]]+Dataset[[#This Row],[2026/27 Total change]]","v":0},{"$f":"Dataset[[#This Row],[2027/28 Baseline]]+Dataset[[#This Row],[2027/28 Total change]]","v":0}]
["NAT|Non-transfer item","40|Agency and support/outsourced services","2025_26","MTEC2025",40,16,1,53264,1992,"40","16","01","053264","001992","40|16|01|001992","01","01","02","17","17","01|01|02|17|17","National","Transport","Direct charge against the National Revenue Fund","International Oil Pollution Compensation Funds","Non-transfer item","Current","Current payments","Goods and services","Agency and support/outsourced services","Agency and support/outsourced services","Economic development","Economic regulation and infrastructure","NAT",0,0,0,0,0,0,null,0,0,0,0,null,null,null,null,null,null,null,null,null,null,null,null,null,null,null,null,null,null,null,null,null,null,null,null,null,null,null,null,null,null,null,null,null,null,{"$f":"Dataset[[#This Row],[2025/26 From - Spending review Topic 1]]+Dataset[[#This Row],[2025/26 From - Spending review Topic 2]]+Dataset[[#This Row],[2025/26 From - Spending review Topic 3]]+Dataset[[#This Row],[2025/26 From - Spending review Topic 4]]+Dataset[[#This Row],[2025/26 From - Other reallocations]]","v":0},{"$f":"Dataset[[#This Row],[2026/27 From - Spending review Topic 1]]+Dataset[[#This Row],[2026/27 From - Spending review Topic 2]]+Dataset[[#This Row],[2026/27 From - Spending review Topic 3]]+Dataset[[#This Row],[2026/27 From - Spending review Topic 4]]+Dataset[[#This Row],[2026/27 From - Other reallocations]]","v":0},{"$f":"Dataset[[#This Row],[2027/28 From - Spending review Topic 1]]+Dataset[[#This Row],[2027/28 From - Spending review Topic 2]]+Dataset[[#This Row],[2027/28 From - Spending review Topic 3]]+Dataset[[#This Row],[2027/28 From - Spending review Topic 4]]+Dataset[[#This Row],[2027/28 From - Other reallocations]]","v":0},{"$f":"Dataset[[#This Row],[2025/26 To - Spending review Topic 1]]+Dataset[[#This Row],[2025/26 To - Spending review Topic 2]]+Dataset[[#This Row],[2025/26 To - Spending review Topic 3]]+Dataset[[#This Row],[2025/26 To - Spending review Topic 4]]+Dataset[[#This Row],[2025/26 To - Other reallocations]]","v":0},{"$f":"Dataset[[#This Row],[2026/27 To - Spending review Topic 1]]+Dataset[[#This Row],[2026/27 To - Spending review Topic 2]]+Dataset[[#This Row],[2026/27 To - Spending review Topic 3]]+Dataset[[#This Row],[2026/27 To - Spending review Topic 4]]+Dataset[[#This Row],[2026/27 To - Other reallocations]]","v":0},{"$f":"Dataset[[#This Row],[2027/28 To - Spending review Topic 1]]+Dataset[[#This Row],[2027/28 To - Spending review Topic 2]]+Dataset[[#This Row],[2027/28 To - Spending review Topic 3]]+Dataset[[#This Row],[2027/28 To - Spending review Topic 4]]+Dataset[[#This Row],[2027/28 To - Other reallocations]]","v":0},{"$f":"Dataset[[#This Row],[2025/26 Reduction]]+Dataset[[#This Row],[2025/26 From - Total]]","v":0},{"$f":"Dataset[[#This Row],[2026/27 Reduction]]+Dataset[[#This Row],[2026/27 From - Total]]","v":0},{"$f":"Dataset[[#This Row],[2027/28 Reduction]]+Dataset[[#This Row],[2027/28 From - Total]]","v":0},{"$f":"Dataset[[#This Row],[2024/25 Reduction]]","v":0},{"$f":"SUM(Dataset[[#This Row],[2025/26 Reduction]],Dataset[[#This Row],[2025/26 From - Total]],Dataset[[#This Row],[2025/26 To - Total]])","v":0},{"$f":"SUM(Dataset[[#This Row],[2026/27 Reduction]],Dataset[[#This Row],[2026/27 From - Total]],Dataset[[#This Row],[2026/27 To - Total]])","v":0},{"$f":"SUM(Dataset[[#This Row],[2027/28 Reduction]],Dataset[[#This Row],[2027/28 From - Total]],Dataset[[#This Row],[2027/28 To - Total]])","v":0},{"$f":"Dataset[[#This Row],[2024/25 Baseline]]+Dataset[[#This Row],[2024/25 Total change]]","v":0},{"$f":"Dataset[[#This Row],[2025/26 Baseline]]+Dataset[[#This Row],[2025/26 Total change]]","v":0},{"$f":"Dataset[[#This Row],[2026/27 Baseline]]+Dataset[[#This Row],[2026/27 Total change]]","v":0},{"$f":"Dataset[[#This Row],[2027/28 Baseline]]+Dataset[[#This Row],[2027/28 Total change]]","v":0}]
["NAT|Non-transfer item","40|Entertainment","2025_26","MTEC2025",40,16,1,53265,1993,"40","16","01","053265","001993","40|16|01|001993","01","01","02","18","18","01|01|02|18|18","National","Transport","Direct charge against the National Revenue Fund","International Oil Pollution Compensation Funds","Non-transfer item","Current","Current payments","Goods and services","Entertainment","Entertainment","Economic development","Economic regulation and infrastructure","NAT",0,0,0,0,0,0,null,0,0,0,0,null,null,null,null,null,null,null,null,null,null,null,null,null,null,null,null,null,null,null,null,null,null,null,null,null,null,null,null,null,null,null,null,null,null,{"$f":"Dataset[[#This Row],[2025/26 From - Spending review Topic 1]]+Dataset[[#This Row],[2025/26 From - Spending review Topic 2]]+Dataset[[#This Row],[2025/26 From - Spending review Topic 3]]+Dataset[[#This Row],[2025/26 From - Spending review Topic 4]]+Dataset[[#This Row],[2025/26 From - Other reallocations]]","v":0},{"$f":"Dataset[[#This Row],[2026/27 From - Spending review Topic 1]]+Dataset[[#This Row],[2026/27 From - Spending review Topic 2]]+Dataset[[#This Row],[2026/27 From - Spending review Topic 3]]+Dataset[[#This Row],[2026/27 From - Spending review Topic 4]]+Dataset[[#This Row],[2026/27 From - Other reallocations]]","v":0},{"$f":"Dataset[[#This Row],[2027/28 From - Spending review Topic 1]]+Dataset[[#This Row],[2027/28 From - Spending review Topic 2]]+Dataset[[#This Row],[2027/28 From - Spending review Topic 3]]+Dataset[[#This Row],[2027/28 From - Spending review Topic 4]]+Dataset[[#This Row],[2027/28 From - Other reallocations]]","v":0},{"$f":"Dataset[[#This Row],[2025/26 To - Spending review Topic 1]]+Dataset[[#This Row],[2025/26 To - Spending review Topic 2]]+Dataset[[#This Row],[2025/26 To - Spending review Topic 3]]+Dataset[[#This Row],[2025/26 To - Spending review Topic 4]]+Dataset[[#This Row],[2025/26 To - Other reallocations]]","v":0},{"$f":"Dataset[[#This Row],[2026/27 To - Spending review Topic 1]]+Dataset[[#This Row],[2026/27 To - Spending review Topic 2]]+Dataset[[#This Row],[2026/27 To - Spending review Topic 3]]+Dataset[[#This Row],[2026/27 To - Spending review Topic 4]]+Dataset[[#This Row],[2026/27 To - Other reallocations]]","v":0},{"$f":"Dataset[[#This Row],[2027/28 To - Spending review Topic 1]]+Dataset[[#This Row],[2027/28 To - Spending review Topic 2]]+Dataset[[#This Row],[2027/28 To - Spending review Topic 3]]+Dataset[[#This Row],[2027/28 To - Spending review Topic 4]]+Dataset[[#This Row],[2027/28 To - Other reallocations]]","v":0},{"$f":"Dataset[[#This Row],[2025/26 Reduction]]+Dataset[[#This Row],[2025/26 From - Total]]","v":0},{"$f":"Dataset[[#This Row],[2026/27 Reduction]]+Dataset[[#This Row],[2026/27 From - Total]]","v":0},{"$f":"Dataset[[#This Row],[2027/28 Reduction]]+Dataset[[#This Row],[2027/28 From - Total]]","v":0},{"$f":"Dataset[[#This Row],[2024/25 Reduction]]","v":0},{"$f":"SUM(Dataset[[#This Row],[2025/26 Reduction]],Dataset[[#This Row],[2025/26 From - Total]],Dataset[[#This Row],[2025/26 To - Total]])","v":0},{"$f":"SUM(Dataset[[#This Row],[2026/27 Reduction]],Dataset[[#This Row],[2026/27 From - Total]],Dataset[[#This Row],[2026/27 To - Total]])","v":0},{"$f":"SUM(Dataset[[#This Row],[2027/28 Reduction]],Dataset[[#This Row],[2027/28 From - Total]],Dataset[[#This Row],[2027/28 To - Total]])","v":0},{"$f":"Dataset[[#This Row],[2024/25 Baseline]]+Dataset[[#This Row],[2024/25 Total change]]","v":0},{"$f":"Dataset[[#This Row],[2025/26 Baseline]]+Dataset[[#This Row],[2025/26 Total change]]","v":0},{"$f":"Dataset[[#This Row],[2026/27 Baseline]]+Dataset[[#This Row],[2026/27 Total change]]","v":0},{"$f":"Dataset[[#This Row],[2027/28 Baseline]]+Dataset[[#This Row],[2027/28 Total change]]","v":0}]
["NAT|Non-transfer item","40|Fleet services (including government motor transport)","2025_26","MTEC2025",40,16,1,53266,1994,"40","16","01","053266","001994","40|16|01|001994","01","01","02","19","19","01|01|02|19|19","National","Transport","Direct charge against the National Revenue Fund","International Oil Pollution Compensation Funds","Non-transfer item","Current","Current payments","Goods and services","Fleet services (including government motor transport)","Fleet services (including government motor transport)","Economic development","Economic regulation and infrastructure","NAT",0,0,0,0,0,0,null,0,0,0,0,null,null,null,null,null,null,null,null,null,null,null,null,null,null,null,null,null,null,null,null,null,null,null,null,null,null,null,null,null,null,null,null,null,null,{"$f":"Dataset[[#This Row],[2025/26 From - Spending review Topic 1]]+Dataset[[#This Row],[2025/26 From - Spending review Topic 2]]+Dataset[[#This Row],[2025/26 From - Spending review Topic 3]]+Dataset[[#This Row],[2025/26 From - Spending review Topic 4]]+Dataset[[#This Row],[2025/26 From - Other reallocations]]","v":0},{"$f":"Dataset[[#This Row],[2026/27 From - Spending review Topic 1]]+Dataset[[#This Row],[2026/27 From - Spending review Topic 2]]+Dataset[[#This Row],[2026/27 From - Spending review Topic 3]]+Dataset[[#This Row],[2026/27 From - Spending review Topic 4]]+Dataset[[#This Row],[2026/27 From - Other reallocations]]","v":0},{"$f":"Dataset[[#This Row],[2027/28 From - Spending review Topic 1]]+Dataset[[#This Row],[2027/28 From - Spending review Topic 2]]+Dataset[[#This Row],[2027/28 From - Spending review Topic 3]]+Dataset[[#This Row],[2027/28 From - Spending review Topic 4]]+Dataset[[#This Row],[2027/28 From - Other reallocations]]","v":0},{"$f":"Dataset[[#This Row],[2025/26 To - Spending review Topic 1]]+Dataset[[#This Row],[2025/26 To - Spending review Topic 2]]+Dataset[[#This Row],[2025/26 To - Spending review Topic 3]]+Dataset[[#This Row],[2025/26 To - Spending review Topic 4]]+Dataset[[#This Row],[2025/26 To - Other reallocations]]","v":0},{"$f":"Dataset[[#This Row],[2026/27 To - Spending review Topic 1]]+Dataset[[#This Row],[2026/27 To - Spending review Topic 2]]+Dataset[[#This Row],[2026/27 To - Spending review Topic 3]]+Dataset[[#This Row],[2026/27 To - Spending review Topic 4]]+Dataset[[#This Row],[2026/27 To - Other reallocations]]","v":0},{"$f":"Dataset[[#This Row],[2027/28 To - Spending review Topic 1]]+Dataset[[#This Row],[2027/28 To - Spending review Topic 2]]+Dataset[[#This Row],[2027/28 To - Spending review Topic 3]]+Dataset[[#This Row],[2027/28 To - Spending review Topic 4]]+Dataset[[#This Row],[2027/28 To - Other reallocations]]","v":0},{"$f":"Dataset[[#This Row],[2025/26 Reduction]]+Dataset[[#This Row],[2025/26 From - Total]]","v":0},{"$f":"Dataset[[#This Row],[2026/27 Reduction]]+Dataset[[#This Row],[2026/27 From - Total]]","v":0},{"$f":"Dataset[[#This Row],[2027/28 Reduction]]+Dataset[[#This Row],[2027/28 From - Total]]","v":0},{"$f":"Dataset[[#This Row],[2024/25 Reduction]]","v":0},{"$f":"SUM(Dataset[[#This Row],[2025/26 Reduction]],Dataset[[#This Row],[2025/26 From - Total]],Dataset[[#This Row],[2025/26 To - Total]])","v":0},{"$f":"SUM(Dataset[[#This Row],[2026/27 Reduction]],Dataset[[#This Row],[2026/27 From - Total]],Dataset[[#This Row],[2026/27 To - Total]])","v":0},{"$f":"SUM(Dataset[[#This Row],[2027/28 Reduction]],Dataset[[#This Row],[2027/28 From - Total]],Dataset[[#This Row],[2027/28 To - Total]])","v":0},{"$f":"Dataset[[#This Row],[2024/25 Baseline]]+Dataset[[#This Row],[2024/25 Total change]]","v":0},{"$f":"Dataset[[#This Row],[2025/26 Baseline]]+Dataset[[#This Row],[2025/26 Total change]]","v":0},{"$f":"Dataset[[#This Row],[2026/27 Baseline]]+Dataset[[#This Row],[2026/27 Total change]]","v":0},{"$f":"Dataset[[#This Row],[2027/28 Baseline]]+Dataset[[#This Row],[2027/28 Total change]]","v":0}]
["NAT|Non-transfer item","40|Housing","2025_26","MTEC2025",40,16,1,53267,1995,"40","16","01","053267","001995","40|16|01|001995","01","01","02","20","20","01|01|02|20|20","National","Transport","Direct charge against the National Revenue Fund","International Oil Pollution Compensation Funds","Non-transfer item","Current","Current payments","Goods and services","Housing","Housing","Economic development","Economic regulation and infrastructure","NAT",0,0,0,0,0,0,null,0,0,0,0,null,null,null,null,null,null,null,null,null,null,null,null,null,null,null,null,null,null,null,null,null,null,null,null,null,null,null,null,null,null,null,null,null,null,{"$f":"Dataset[[#This Row],[2025/26 From - Spending review Topic 1]]+Dataset[[#This Row],[2025/26 From - Spending review Topic 2]]+Dataset[[#This Row],[2025/26 From - Spending review Topic 3]]+Dataset[[#This Row],[2025/26 From - Spending review Topic 4]]+Dataset[[#This Row],[2025/26 From - Other reallocations]]","v":0},{"$f":"Dataset[[#This Row],[2026/27 From - Spending review Topic 1]]+Dataset[[#This Row],[2026/27 From - Spending review Topic 2]]+Dataset[[#This Row],[2026/27 From - Spending review Topic 3]]+Dataset[[#This Row],[2026/27 From - Spending review Topic 4]]+Dataset[[#This Row],[2026/27 From - Other reallocations]]","v":0},{"$f":"Dataset[[#This Row],[2027/28 From - Spending review Topic 1]]+Dataset[[#This Row],[2027/28 From - Spending review Topic 2]]+Dataset[[#This Row],[2027/28 From - Spending review Topic 3]]+Dataset[[#This Row],[2027/28 From - Spending review Topic 4]]+Dataset[[#This Row],[2027/28 From - Other reallocations]]","v":0},{"$f":"Dataset[[#This Row],[2025/26 To - Spending review Topic 1]]+Dataset[[#This Row],[2025/26 To - Spending review Topic 2]]+Dataset[[#This Row],[2025/26 To - Spending review Topic 3]]+Dataset[[#This Row],[2025/26 To - Spending review Topic 4]]+Dataset[[#This Row],[2025/26 To - Other reallocations]]","v":0},{"$f":"Dataset[[#This Row],[2026/27 To - Spending review Topic 1]]+Dataset[[#This Row],[2026/27 To - Spending review Topic 2]]+Dataset[[#This Row],[2026/27 To - Spending review Topic 3]]+Dataset[[#This Row],[2026/27 To - Spending review Topic 4]]+Dataset[[#This Row],[2026/27 To - Other reallocations]]","v":0},{"$f":"Dataset[[#This Row],[2027/28 To - Spending review Topic 1]]+Dataset[[#This Row],[2027/28 To - Spending review Topic 2]]+Dataset[[#This Row],[2027/28 To - Spending review Topic 3]]+Dataset[[#This Row],[2027/28 To - Spending review Topic 4]]+Dataset[[#This Row],[2027/28 To - Other reallocations]]","v":0},{"$f":"Dataset[[#This Row],[2025/26 Reduction]]+Dataset[[#This Row],[2025/26 From - Total]]","v":0},{"$f":"Dataset[[#This Row],[2026/27 Reduction]]+Dataset[[#This Row],[2026/27 From - Total]]","v":0},{"$f":"Dataset[[#This Row],[2027/28 Reduction]]+Dataset[[#This Row],[2027/28 From - Total]]","v":0},{"$f":"Dataset[[#This Row],[2024/25 Reduction]]","v":0},{"$f":"SUM(Dataset[[#This Row],[2025/26 Reduction]],Dataset[[#This Row],[2025/26 From - Total]],Dataset[[#This Row],[2025/26 To - Total]])","v":0},{"$f":"SUM(Dataset[[#This Row],[2026/27 Reduction]],Dataset[[#This Row],[2026/27 From - Total]],Dataset[[#This Row],[2026/27 To - Total]])","v":0},{"$f":"SUM(Dataset[[#This Row],[2027/28 Reduction]],Dataset[[#This Row],[2027/28 From - Total]],Dataset[[#This Row],[2027/28 To - Total]])","v":0},{"$f":"Dataset[[#This Row],[2024/25 Baseline]]+Dataset[[#This Row],[2024/25 Total change]]","v":0},{"$f":"Dataset[[#This Row],[2025/26 Baseline]]+Dataset[[#This Row],[2025/26 Total change]]","v":0},{"$f":"Dataset[[#This Row],[2026/27 Baseline]]+Dataset[[#This Row],[2026/27 Total change]]","v":0},{"$f":"Dataset[[#This Row],[2027/28 Baseline]]+Dataset[[#This Row],[2027/28 Total change]]","v":0}]
["NAT|Non-transfer item","40|Inventory: Clothing material and accessories","2025_26","MTEC2025",40,16,1,53268,1996,"40","16","01","053268","001996","40|16|01|001996","01","01","02","21","21","01|01|02|21|21","National","Transport","Direct charge against the National Revenue Fund","International Oil Pollution Compensation Funds","Non-transfer item","Current","Current payments","Goods and services","Inventory: Clothing material and accessories","Inventory: Clothing material and accessories","Economic development","Economic regulation and infrastructure","NAT",0,0,0,0,0,0,null,0,0,0,0,null,null,null,null,null,null,null,null,null,null,null,null,null,null,null,null,null,null,null,null,null,null,null,null,null,null,null,null,null,null,null,null,null,null,{"$f":"Dataset[[#This Row],[2025/26 From - Spending review Topic 1]]+Dataset[[#This Row],[2025/26 From - Spending review Topic 2]]+Dataset[[#This Row],[2025/26 From - Spending review Topic 3]]+Dataset[[#This Row],[2025/26 From - Spending review Topic 4]]+Dataset[[#This Row],[2025/26 From - Other reallocations]]","v":0},{"$f":"Dataset[[#This Row],[2026/27 From - Spending review Topic 1]]+Dataset[[#This Row],[2026/27 From - Spending review Topic 2]]+Dataset[[#This Row],[2026/27 From - Spending review Topic 3]]+Dataset[[#This Row],[2026/27 From - Spending review Topic 4]]+Dataset[[#This Row],[2026/27 From - Other reallocations]]","v":0},{"$f":"Dataset[[#This Row],[2027/28 From - Spending review Topic 1]]+Dataset[[#This Row],[2027/28 From - Spending review Topic 2]]+Dataset[[#This Row],[2027/28 From - Spending review Topic 3]]+Dataset[[#This Row],[2027/28 From - Spending review Topic 4]]+Dataset[[#This Row],[2027/28 From - Other reallocations]]","v":0},{"$f":"Dataset[[#This Row],[2025/26 To - Spending review Topic 1]]+Dataset[[#This Row],[2025/26 To - Spending review Topic 2]]+Dataset[[#This Row],[2025/26 To - Spending review Topic 3]]+Dataset[[#This Row],[2025/26 To - Spending review Topic 4]]+Dataset[[#This Row],[2025/26 To - Other reallocations]]","v":0},{"$f":"Dataset[[#This Row],[2026/27 To - Spending review Topic 1]]+Dataset[[#This Row],[2026/27 To - Spending review Topic 2]]+Dataset[[#This Row],[2026/27 To - Spending review Topic 3]]+Dataset[[#This Row],[2026/27 To - Spending review Topic 4]]+Dataset[[#This Row],[2026/27 To - Other reallocations]]","v":0},{"$f":"Dataset[[#This Row],[2027/28 To - Spending review Topic 1]]+Dataset[[#This Row],[2027/28 To - Spending review Topic 2]]+Dataset[[#This Row],[2027/28 To - Spending review Topic 3]]+Dataset[[#This Row],[2027/28 To - Spending review Topic 4]]+Dataset[[#This Row],[2027/28 To - Other reallocations]]","v":0},{"$f":"Dataset[[#This Row],[2025/26 Reduction]]+Dataset[[#This Row],[2025/26 From - Total]]","v":0},{"$f":"Dataset[[#This Row],[2026/27 Reduction]]+Dataset[[#This Row],[2026/27 From - Total]]","v":0},{"$f":"Dataset[[#This Row],[2027/28 Reduction]]+Dataset[[#This Row],[2027/28 From - Total]]","v":0},{"$f":"Dataset[[#This Row],[2024/25 Reduction]]","v":0},{"$f":"SUM(Dataset[[#This Row],[2025/26 Reduction]],Dataset[[#This Row],[2025/26 From - Total]],Dataset[[#This Row],[2025/26 To - Total]])","v":0},{"$f":"SUM(Dataset[[#This Row],[2026/27 Reduction]],Dataset[[#This Row],[2026/27 From - Total]],Dataset[[#This Row],[2026/27 To - Total]])","v":0},{"$f":"SUM(Dataset[[#This Row],[2027/28 Reduction]],Dataset[[#This Row],[2027/28 From - Total]],Dataset[[#This Row],[2027/28 To - Total]])","v":0},{"$f":"Dataset[[#This Row],[2024/25 Baseline]]+Dataset[[#This Row],[2024/25 Total change]]","v":0},{"$f":"Dataset[[#This Row],[2025/26 Baseline]]+Dataset[[#This Row],[2025/26 Total change]]","v":0},{"$f":"Dataset[[#This Row],[2026/27 Baseline]]+Dataset[[#This Row],[2026/27 Total change]]","v":0},{"$f":"Dataset[[#This Row],[2027/28 Baseline]]+Dataset[[#This Row],[2027/28 Total change]]","v":0}]
["NAT|Non-transfer item","40|Inventory: Farming supplies","2025_26","MTEC2025",40,16,1,53269,1997,"40","16","01","053269","001997","40|16|01|001997","01","01","02","22","22","01|01|02|22|22","National","Transport","Direct charge against the National Revenue Fund","International Oil Pollution Compensation Funds","Non-transfer item","Current","Current payments","Goods and services","Inventory: Farming supplies","Inventory: Farming supplies","Economic development","Economic regulation and infrastructure","NAT",0,0,0,0,0,0,null,0,0,0,0,null,null,null,null,null,null,null,null,null,null,null,null,null,null,null,null,null,null,null,null,null,null,null,null,null,null,null,null,null,null,null,null,null,null,{"$f":"Dataset[[#This Row],[2025/26 From - Spending review Topic 1]]+Dataset[[#This Row],[2025/26 From - Spending review Topic 2]]+Dataset[[#This Row],[2025/26 From - Spending review Topic 3]]+Dataset[[#This Row],[2025/26 From - Spending review Topic 4]]+Dataset[[#This Row],[2025/26 From - Other reallocations]]","v":0},{"$f":"Dataset[[#This Row],[2026/27 From - Spending review Topic 1]]+Dataset[[#This Row],[2026/27 From - Spending review Topic 2]]+Dataset[[#This Row],[2026/27 From - Spending review Topic 3]]+Dataset[[#This Row],[2026/27 From - Spending review Topic 4]]+Dataset[[#This Row],[2026/27 From - Other reallocations]]","v":0},{"$f":"Dataset[[#This Row],[2027/28 From - Spending review Topic 1]]+Dataset[[#This Row],[2027/28 From - Spending review Topic 2]]+Dataset[[#This Row],[2027/28 From - Spending review Topic 3]]+Dataset[[#This Row],[2027/28 From - Spending review Topic 4]]+Dataset[[#This Row],[2027/28 From - Other reallocations]]","v":0},{"$f":"Dataset[[#This Row],[2025/26 To - Spending review Topic 1]]+Dataset[[#This Row],[2025/26 To - Spending review Topic 2]]+Dataset[[#This Row],[2025/26 To - Spending review Topic 3]]+Dataset[[#This Row],[2025/26 To - Spending review Topic 4]]+Dataset[[#This Row],[2025/26 To - Other reallocations]]","v":0},{"$f":"Dataset[[#This Row],[2026/27 To - Spending review Topic 1]]+Dataset[[#This Row],[2026/27 To - Spending review Topic 2]]+Dataset[[#This Row],[2026/27 To - Spending review Topic 3]]+Dataset[[#This Row],[2026/27 To - Spending review Topic 4]]+Dataset[[#This Row],[2026/27 To - Other reallocations]]","v":0},{"$f":"Dataset[[#This Row],[2027/28 To - Spending review Topic 1]]+Dataset[[#This Row],[2027/28 To - Spending review Topic 2]]+Dataset[[#This Row],[2027/28 To - Spending review Topic 3]]+Dataset[[#This Row],[2027/28 To - Spending review Topic 4]]+Dataset[[#This Row],[2027/28 To - Other reallocations]]","v":0},{"$f":"Dataset[[#This Row],[2025/26 Reduction]]+Dataset[[#This Row],[2025/26 From - Total]]","v":0},{"$f":"Dataset[[#This Row],[2026/27 Reduction]]+Dataset[[#This Row],[2026/27 From - Total]]","v":0},{"$f":"Dataset[[#This Row],[2027/28 Reduction]]+Dataset[[#This Row],[2027/28 From - Total]]","v":0},{"$f":"Dataset[[#This Row],[2024/25 Reduction]]","v":0},{"$f":"SUM(Dataset[[#This Row],[2025/26 Reduction]],Dataset[[#This Row],[2025/26 From - Total]],Dataset[[#This Row],[2025/26 To - Total]])","v":0},{"$f":"SUM(Dataset[[#This Row],[2026/27 Reduction]],Dataset[[#This Row],[2026/27 From - Total]],Dataset[[#This Row],[2026/27 To - Total]])","v":0},{"$f":"SUM(Dataset[[#This Row],[2027/28 Reduction]],Dataset[[#This Row],[2027/28 From - Total]],Dataset[[#This Row],[2027/28 To - Total]])","v":0},{"$f":"Dataset[[#This Row],[2024/25 Baseline]]+Dataset[[#This Row],[2024/25 Total change]]","v":0},{"$f":"Dataset[[#This Row],[2025/26 Baseline]]+Dataset[[#This Row],[2025/26 Total change]]","v":0},{"$f":"Dataset[[#This Row],[2026/27 Baseline]]+Dataset[[#This Row],[2026/27 Total change]]","v":0},{"$f":"Dataset[[#This Row],[2027/28 Baseline]]+Dataset[[#This Row],[2027/28 Total change]]","v":0}]
["NAT|Non-transfer item","40|Inventory: Food and food supplies","2025_26","MTEC2025",40,16,1,53270,1998,"40","16","01","053270","001998","40|16|01|001998","01","01","02","23","23","01|01|02|23|23","National","Transport","Direct charge against the National Revenue Fund","International Oil Pollution Compensation Funds","Non-transfer item","Current","Current payments","Goods and services","Inventory: Food and food supplies","Inventory: Food and food supplies","Economic development","Economic regulation and infrastructure","NAT",0,0,0,0,0,0,null,0,0,0,0,null,null,null,null,null,null,null,null,null,null,null,null,null,null,null,null,null,null,null,null,null,null,null,null,null,null,null,null,null,null,null,null,null,null,{"$f":"Dataset[[#This Row],[2025/26 From - Spending review Topic 1]]+Dataset[[#This Row],[2025/26 From - Spending review Topic 2]]+Dataset[[#This Row],[2025/26 From - Spending review Topic 3]]+Dataset[[#This Row],[2025/26 From - Spending review Topic 4]]+Dataset[[#This Row],[2025/26 From - Other reallocations]]","v":0},{"$f":"Dataset[[#This Row],[2026/27 From - Spending review Topic 1]]+Dataset[[#This Row],[2026/27 From - Spending review Topic 2]]+Dataset[[#This Row],[2026/27 From - Spending review Topic 3]]+Dataset[[#This Row],[2026/27 From - Spending review Topic 4]]+Dataset[[#This Row],[2026/27 From - Other reallocations]]","v":0},{"$f":"Dataset[[#This Row],[2027/28 From - Spending review Topic 1]]+Dataset[[#This Row],[2027/28 From - Spending review Topic 2]]+Dataset[[#This Row],[2027/28 From - Spending review Topic 3]]+Dataset[[#This Row],[2027/28 From - Spending review Topic 4]]+Dataset[[#This Row],[2027/28 From - Other reallocations]]","v":0},{"$f":"Dataset[[#This Row],[2025/26 To - Spending review Topic 1]]+Dataset[[#This Row],[2025/26 To - Spending review Topic 2]]+Dataset[[#This Row],[2025/26 To - Spending review Topic 3]]+Dataset[[#This Row],[2025/26 To - Spending review Topic 4]]+Dataset[[#This Row],[2025/26 To - Other reallocations]]","v":0},{"$f":"Dataset[[#This Row],[2026/27 To - Spending review Topic 1]]+Dataset[[#This Row],[2026/27 To - Spending review Topic 2]]+Dataset[[#This Row],[2026/27 To - Spending review Topic 3]]+Dataset[[#This Row],[2026/27 To - Spending review Topic 4]]+Dataset[[#This Row],[2026/27 To - Other reallocations]]","v":0},{"$f":"Dataset[[#This Row],[2027/28 To - Spending review Topic 1]]+Dataset[[#This Row],[2027/28 To - Spending review Topic 2]]+Dataset[[#This Row],[2027/28 To - Spending review Topic 3]]+Dataset[[#This Row],[2027/28 To - Spending review Topic 4]]+Dataset[[#This Row],[2027/28 To - Other reallocations]]","v":0},{"$f":"Dataset[[#This Row],[2025/26 Reduction]]+Dataset[[#This Row],[2025/26 From - Total]]","v":0},{"$f":"Dataset[[#This Row],[2026/27 Reduction]]+Dataset[[#This Row],[2026/27 From - Total]]","v":0},{"$f":"Dataset[[#This Row],[2027/28 Reduction]]+Dataset[[#This Row],[2027/28 From - Total]]","v":0},{"$f":"Dataset[[#This Row],[2024/25 Reduction]]","v":0},{"$f":"SUM(Dataset[[#This Row],[2025/26 Reduction]],Dataset[[#This Row],[2025/26 From - Total]],Dataset[[#This Row],[2025/26 To - Total]])","v":0},{"$f":"SUM(Dataset[[#This Row],[2026/27 Reduction]],Dataset[[#This Row],[2026/27 From - Total]],Dataset[[#This Row],[2026/27 To - Total]])","v":0},{"$f":"SUM(Dataset[[#This Row],[2027/28 Reduction]],Dataset[[#This Row],[2027/28 From - Total]],Dataset[[#This Row],[2027/28 To - Total]])","v":0},{"$f":"Dataset[[#This Row],[2024/25 Baseline]]+Dataset[[#This Row],[2024/25 Total change]]","v":0},{"$f":"Dataset[[#This Row],[2025/26 Baseline]]+Dataset[[#This Row],[2025/26 Total change]]","v":0},{"$f":"Dataset[[#This Row],[2026/27 Baseline]]+Dataset[[#This Row],[2026/27 Total change]]","v":0},{"$f":"Dataset[[#This Row],[2027/28 Baseline]]+Dataset[[#This Row],[2027/28 Total change]]","v":0}]
["NAT|Non-transfer item","40|Inventory: Fuel, oil and gas","2025_26","MTEC2025",40,16,1,53271,1999,"40","16","01","053271","001999","40|16|01|001999","01","01","02","24","24","01|01|02|24|24","National","Transport","Direct charge against the National Revenue Fund","International Oil Pollution Compensation Funds","Non-transfer item","Current","Current payments","Goods and services","Inventory: Fuel, oil and gas","Inventory: Fuel, oil and gas","Economic development","Economic regulation and infrastructure","NAT",0,0,0,0,0,0,null,0,0,0,0,null,null,null,null,null,null,null,null,null,null,null,null,null,null,null,null,null,null,null,null,null,null,null,null,null,null,null,null,null,null,null,null,null,null,{"$f":"Dataset[[#This Row],[2025/26 From - Spending review Topic 1]]+Dataset[[#This Row],[2025/26 From - Spending review Topic 2]]+Dataset[[#This Row],[2025/26 From - Spending review Topic 3]]+Dataset[[#This Row],[2025/26 From - Spending review Topic 4]]+Dataset[[#This Row],[2025/26 From - Other reallocations]]","v":0},{"$f":"Dataset[[#This Row],[2026/27 From - Spending review Topic 1]]+Dataset[[#This Row],[2026/27 From - Spending review Topic 2]]+Dataset[[#This Row],[2026/27 From - Spending review Topic 3]]+Dataset[[#This Row],[2026/27 From - Spending review Topic 4]]+Dataset[[#This Row],[2026/27 From - Other reallocations]]","v":0},{"$f":"Dataset[[#This Row],[2027/28 From - Spending review Topic 1]]+Dataset[[#This Row],[2027/28 From - Spending review Topic 2]]+Dataset[[#This Row],[2027/28 From - Spending review Topic 3]]+Dataset[[#This Row],[2027/28 From - Spending review Topic 4]]+Dataset[[#This Row],[2027/28 From - Other reallocations]]","v":0},{"$f":"Dataset[[#This Row],[2025/26 To - Spending review Topic 1]]+Dataset[[#This Row],[2025/26 To - Spending review Topic 2]]+Dataset[[#This Row],[2025/26 To - Spending review Topic 3]]+Dataset[[#This Row],[2025/26 To - Spending review Topic 4]]+Dataset[[#This Row],[2025/26 To - Other reallocations]]","v":0},{"$f":"Dataset[[#This Row],[2026/27 To - Spending review Topic 1]]+Dataset[[#This Row],[2026/27 To - Spending review Topic 2]]+Dataset[[#This Row],[2026/27 To - Spending review Topic 3]]+Dataset[[#This Row],[2026/27 To - Spending review Topic 4]]+Dataset[[#This Row],[2026/27 To - Other reallocations]]","v":0},{"$f":"Dataset[[#This Row],[2027/28 To - Spending review Topic 1]]+Dataset[[#This Row],[2027/28 To - Spending review Topic 2]]+Dataset[[#This Row],[2027/28 To - Spending review Topic 3]]+Dataset[[#This Row],[2027/28 To - Spending review Topic 4]]+Dataset[[#This Row],[2027/28 To - Other reallocations]]","v":0},{"$f":"Dataset[[#This Row],[2025/26 Reduction]]+Dataset[[#This Row],[2025/26 From - Total]]","v":0},{"$f":"Dataset[[#This Row],[2026/27 Reduction]]+Dataset[[#This Row],[2026/27 From - Total]]","v":0},{"$f":"Dataset[[#This Row],[2027/28 Reduction]]+Dataset[[#This Row],[2027/28 From - Total]]","v":0},{"$f":"Dataset[[#This Row],[2024/25 Reduction]]","v":0},{"$f":"SUM(Dataset[[#This Row],[2025/26 Reduction]],Dataset[[#This Row],[2025/26 From - Total]],Dataset[[#This Row],[2025/26 To - Total]])","v":0},{"$f":"SUM(Dataset[[#This Row],[2026/27 Reduction]],Dataset[[#This Row],[2026/27 From - Total]],Dataset[[#This Row],[2026/27 To - Total]])","v":0},{"$f":"SUM(Dataset[[#This Row],[2027/28 Reduction]],Dataset[[#This Row],[2027/28 From - Total]],Dataset[[#This Row],[2027/28 To - Total]])","v":0},{"$f":"Dataset[[#This Row],[2024/25 Baseline]]+Dataset[[#This Row],[2024/25 Total change]]","v":0},{"$f":"Dataset[[#This Row],[2025/26 Baseline]]+Dataset[[#This Row],[2025/26 Total change]]","v":0},{"$f":"Dataset[[#This Row],[2026/27 Baseline]]+Dataset[[#This Row],[2026/27 Total change]]","v":0},{"$f":"Dataset[[#This Row],[2027/28 Baseline]]+Dataset[[#This Row],[2027/28 Total change]]","v":0}]
["NAT|Non-transfer item","40|Inventory: Learner and teacher support material","2025_26","MTEC2025",40,16,1,53272,2000,"40","16","01","053272","002000","40|16|01|002000","01","01","02","25","25","01|01|02|25|25","National","Transport","Direct charge against the National Revenue Fund","International Oil Pollution Compensation Funds","Non-transfer item","Current","Current payments","Goods and services","Inventory: Learner and teacher support material","Inventory: Learner and teacher support material","Economic development","Economic regulation and infrastructure","NAT",0,0,0,0,0,0,null,0,0,0,0,null,null,null,null,null,null,null,null,null,null,null,null,null,null,null,null,null,null,null,null,null,null,null,null,null,null,null,null,null,null,null,null,null,null,{"$f":"Dataset[[#This Row],[2025/26 From - Spending review Topic 1]]+Dataset[[#This Row],[2025/26 From - Spending review Topic 2]]+Dataset[[#This Row],[2025/26 From - Spending review Topic 3]]+Dataset[[#This Row],[2025/26 From - Spending review Topic 4]]+Dataset[[#This Row],[2025/26 From - Other reallocations]]","v":0},{"$f":"Dataset[[#This Row],[2026/27 From - Spending review Topic 1]]+Dataset[[#This Row],[2026/27 From - Spending review Topic 2]]+Dataset[[#This Row],[2026/27 From - Spending review Topic 3]]+Dataset[[#This Row],[2026/27 From - Spending review Topic 4]]+Dataset[[#This Row],[2026/27 From - Other reallocations]]","v":0},{"$f":"Dataset[[#This Row],[2027/28 From - Spending review Topic 1]]+Dataset[[#This Row],[2027/28 From - Spending review Topic 2]]+Dataset[[#This Row],[2027/28 From - Spending review Topic 3]]+Dataset[[#This Row],[2027/28 From - Spending review Topic 4]]+Dataset[[#This Row],[2027/28 From - Other reallocations]]","v":0},{"$f":"Dataset[[#This Row],[2025/26 To - Spending review Topic 1]]+Dataset[[#This Row],[2025/26 To - Spending review Topic 2]]+Dataset[[#This Row],[2025/26 To - Spending review Topic 3]]+Dataset[[#This Row],[2025/26 To - Spending review Topic 4]]+Dataset[[#This Row],[2025/26 To - Other reallocations]]","v":0},{"$f":"Dataset[[#This Row],[2026/27 To - Spending review Topic 1]]+Dataset[[#This Row],[2026/27 To - Spending review Topic 2]]+Dataset[[#This Row],[2026/27 To - Spending review Topic 3]]+Dataset[[#This Row],[2026/27 To - Spending review Topic 4]]+Dataset[[#This Row],[2026/27 To - Other reallocations]]","v":0},{"$f":"Dataset[[#This Row],[2027/28 To - Spending review Topic 1]]+Dataset[[#This Row],[2027/28 To - Spending review Topic 2]]+Dataset[[#This Row],[2027/28 To - Spending review Topic 3]]+Dataset[[#This Row],[2027/28 To - Spending review Topic 4]]+Dataset[[#This Row],[2027/28 To - Other reallocations]]","v":0},{"$f":"Dataset[[#This Row],[2025/26 Reduction]]+Dataset[[#This Row],[2025/26 From - Total]]","v":0},{"$f":"Dataset[[#This Row],[2026/27 Reduction]]+Dataset[[#This Row],[2026/27 From - Total]]","v":0},{"$f":"Dataset[[#This Row],[2027/28 Reduction]]+Dataset[[#This Row],[2027/28 From - Total]]","v":0},{"$f":"Dataset[[#This Row],[2024/25 Reduction]]","v":0},{"$f":"SUM(Dataset[[#This Row],[2025/26 Reduction]],Dataset[[#This Row],[2025/26 From - Total]],Dataset[[#This Row],[2025/26 To - Total]])","v":0},{"$f":"SUM(Dataset[[#This Row],[2026/27 Reduction]],Dataset[[#This Row],[2026/27 From - Total]],Dataset[[#This Row],[2026/27 To - Total]])","v":0},{"$f":"SUM(Dataset[[#This Row],[2027/28 Reduction]],Dataset[[#This Row],[2027/28 From - Total]],Dataset[[#This Row],[2027/28 To - Total]])","v":0},{"$f":"Dataset[[#This Row],[2024/25 Baseline]]+Dataset[[#This Row],[2024/25 Total change]]","v":0},{"$f":"Dataset[[#This Row],[2025/26 Baseline]]+Dataset[[#This Row],[2025/26 Total change]]","v":0},{"$f":"Dataset[[#This Row],[2026/27 Baseline]]+Dataset[[#This Row],[2026/27 Total change]]","v":0},{"$f":"Dataset[[#This Row],[2027/28 Baseline]]+Dataset[[#This Row],[2027/28 Total change]]","v":0}]
["NAT|Non-transfer item","40|Inventory: Materials and supplies","2025_26","MTEC2025",40,16,1,53273,2001,"40","16","01","053273","002001","40|16|01|002001","01","01","02","26","26","01|01|02|26|26","National","Transport","Direct charge against the National Revenue Fund","International Oil Pollution Compensation Funds","Non-transfer item","Current","Current payments","Goods and services","Inventory: Materials and supplies","Inventory: Materials and supplies","Economic development","Economic regulation and infrastructure","NAT",0,0,0,0,0,0,null,0,0,0,0,null,null,null,null,null,null,null,null,null,null,null,null,null,null,null,null,null,null,null,null,null,null,null,null,null,null,null,null,null,null,null,null,null,null,{"$f":"Dataset[[#This Row],[2025/26 From - Spending review Topic 1]]+Dataset[[#This Row],[2025/26 From - Spending review Topic 2]]+Dataset[[#This Row],[2025/26 From - Spending review Topic 3]]+Dataset[[#This Row],[2025/26 From - Spending review Topic 4]]+Dataset[[#This Row],[2025/26 From - Other reallocations]]","v":0},{"$f":"Dataset[[#This Row],[2026/27 From - Spending review Topic 1]]+Dataset[[#This Row],[2026/27 From - Spending review Topic 2]]+Dataset[[#This Row],[2026/27 From - Spending review Topic 3]]+Dataset[[#This Row],[2026/27 From - Spending review Topic 4]]+Dataset[[#This Row],[2026/27 From - Other reallocations]]","v":0},{"$f":"Dataset[[#This Row],[2027/28 From - Spending review Topic 1]]+Dataset[[#This Row],[2027/28 From - Spending review Topic 2]]+Dataset[[#This Row],[2027/28 From - Spending review Topic 3]]+Dataset[[#This Row],[2027/28 From - Spending review Topic 4]]+Dataset[[#This Row],[2027/28 From - Other reallocations]]","v":0},{"$f":"Dataset[[#This Row],[2025/26 To - Spending review Topic 1]]+Dataset[[#This Row],[2025/26 To - Spending review Topic 2]]+Dataset[[#This Row],[2025/26 To - Spending review Topic 3]]+Dataset[[#This Row],[2025/26 To - Spending review Topic 4]]+Dataset[[#This Row],[2025/26 To - Other reallocations]]","v":0},{"$f":"Dataset[[#This Row],[2026/27 To - Spending review Topic 1]]+Dataset[[#This Row],[2026/27 To - Spending review Topic 2]]+Dataset[[#This Row],[2026/27 To - Spending review Topic 3]]+Dataset[[#This Row],[2026/27 To - Spending review Topic 4]]+Dataset[[#This Row],[2026/27 To - Other reallocations]]","v":0},{"$f":"Dataset[[#This Row],[2027/28 To - Spending review Topic 1]]+Dataset[[#This Row],[2027/28 To - Spending review Topic 2]]+Dataset[[#This Row],[2027/28 To - Spending review Topic 3]]+Dataset[[#This Row],[2027/28 To - Spending review Topic 4]]+Dataset[[#This Row],[2027/28 To - Other reallocations]]","v":0},{"$f":"Dataset[[#This Row],[2025/26 Reduction]]+Dataset[[#This Row],[2025/26 From - Total]]","v":0},{"$f":"Dataset[[#This Row],[2026/27 Reduction]]+Dataset[[#This Row],[2026/27 From - Total]]","v":0},{"$f":"Dataset[[#This Row],[2027/28 Reduction]]+Dataset[[#This Row],[2027/28 From - Total]]","v":0},{"$f":"Dataset[[#This Row],[2024/25 Reduction]]","v":0},{"$f":"SUM(Dataset[[#This Row],[2025/26 Reduction]],Dataset[[#This Row],[2025/26 From - Total]],Dataset[[#This Row],[2025/26 To - Total]])","v":0},{"$f":"SUM(Dataset[[#This Row],[2026/27 Reduction]],Dataset[[#This Row],[2026/27 From - Total]],Dataset[[#This Row],[2026/27 To - Total]])","v":0},{"$f":"SUM(Dataset[[#This Row],[2027/28 Reduction]],Dataset[[#This Row],[2027/28 From - Total]],Dataset[[#This Row],[2027/28 To - Total]])","v":0},{"$f":"Dataset[[#This Row],[2024/25 Baseline]]+Dataset[[#This Row],[2024/25 Total change]]","v":0},{"$f":"Dataset[[#This Row],[2025/26 Baseline]]+Dataset[[#This Row],[2025/26 Total change]]","v":0},{"$f":"Dataset[[#This Row],[2026/27 Baseline]]+Dataset[[#This Row],[2026/27 Total change]]","v":0},{"$f":"Dataset[[#This Row],[2027/28 Baseline]]+Dataset[[#This Row],[2027/28 Total change]]","v":0}]
["NAT|Non-transfer item","40|Inventory: Medical supplies","2025_26","MTEC2025",40,16,1,53274,2002,"40","16","01","053274","002002","40|16|01|002002","01","01","02","27","27","01|01|02|27|27","National","Transport","Direct charge against the National Revenue Fund","International Oil Pollution Compensation Funds","Non-transfer item","Current","Current payments","Goods and services","Inventory: Medical supplies","Inventory: Medical supplies","Economic development","Economic regulation and infrastructure","NAT",0,0,0,0,0,0,null,0,0,0,0,null,null,null,null,null,null,null,null,null,null,null,null,null,null,null,null,null,null,null,null,null,null,null,null,null,null,null,null,null,null,null,null,null,null,{"$f":"Dataset[[#This Row],[2025/26 From - Spending review Topic 1]]+Dataset[[#This Row],[2025/26 From - Spending review Topic 2]]+Dataset[[#This Row],[2025/26 From - Spending review Topic 3]]+Dataset[[#This Row],[2025/26 From - Spending review Topic 4]]+Dataset[[#This Row],[2025/26 From - Other reallocations]]","v":0},{"$f":"Dataset[[#This Row],[2026/27 From - Spending review Topic 1]]+Dataset[[#This Row],[2026/27 From - Spending review Topic 2]]+Dataset[[#This Row],[2026/27 From - Spending review Topic 3]]+Dataset[[#This Row],[2026/27 From - Spending review Topic 4]]+Dataset[[#This Row],[2026/27 From - Other reallocations]]","v":0},{"$f":"Dataset[[#This Row],[2027/28 From - Spending review Topic 1]]+Dataset[[#This Row],[2027/28 From - Spending review Topic 2]]+Dataset[[#This Row],[2027/28 From - Spending review Topic 3]]+Dataset[[#This Row],[2027/28 From - Spending review Topic 4]]+Dataset[[#This Row],[2027/28 From - Other reallocations]]","v":0},{"$f":"Dataset[[#This Row],[2025/26 To - Spending review Topic 1]]+Dataset[[#This Row],[2025/26 To - Spending review Topic 2]]+Dataset[[#This Row],[2025/26 To - Spending review Topic 3]]+Dataset[[#This Row],[2025/26 To - Spending review Topic 4]]+Dataset[[#This Row],[2025/26 To - Other reallocations]]","v":0},{"$f":"Dataset[[#This Row],[2026/27 To - Spending review Topic 1]]+Dataset[[#This Row],[2026/27 To - Spending review Topic 2]]+Dataset[[#This Row],[2026/27 To - Spending review Topic 3]]+Dataset[[#This Row],[2026/27 To - Spending review Topic 4]]+Dataset[[#This Row],[2026/27 To - Other reallocations]]","v":0},{"$f":"Dataset[[#This Row],[2027/28 To - Spending review Topic 1]]+Dataset[[#This Row],[2027/28 To - Spending review Topic 2]]+Dataset[[#This Row],[2027/28 To - Spending review Topic 3]]+Dataset[[#This Row],[2027/28 To - Spending review Topic 4]]+Dataset[[#This Row],[2027/28 To - Other reallocations]]","v":0},{"$f":"Dataset[[#This Row],[2025/26 Reduction]]+Dataset[[#This Row],[2025/26 From - Total]]","v":0},{"$f":"Dataset[[#This Row],[2026/27 Reduction]]+Dataset[[#This Row],[2026/27 From - Total]]","v":0},{"$f":"Dataset[[#This Row],[2027/28 Reduction]]+Dataset[[#This Row],[2027/28 From - Total]]","v":0},{"$f":"Dataset[[#This Row],[2024/25 Reduction]]","v":0},{"$f":"SUM(Dataset[[#This Row],[2025/26 Reduction]],Dataset[[#This Row],[2025/26 From - Total]],Dataset[[#This Row],[2025/26 To - Total]])","v":0},{"$f":"SUM(Dataset[[#This Row],[2026/27 Reduction]],Dataset[[#This Row],[2026/27 From - Total]],Dataset[[#This Row],[2026/27 To - Total]])","v":0},{"$f":"SUM(Dataset[[#This Row],[2027/28 Reduction]],Dataset[[#This Row],[2027/28 From - Total]],Dataset[[#This Row],[2027/28 To - Total]])","v":0},{"$f":"Dataset[[#This Row],[2024/25 Baseline]]+Dataset[[#This Row],[2024/25 Total change]]","v":0},{"$f":"Dataset[[#This Row],[2025/26 Baseline]]+Dataset[[#This Row],[2025/26 Total change]]","v":0},{"$f":"Dataset[[#This Row],[2026/27 Baseline]]+Dataset[[#This Row],[2026/27 Total change]]","v":0},{"$f":"Dataset[[#This Row],[2027/28 Baseline]]+Dataset[[#This Row],[2027/28 Total change]]","v":0}]
["NAT|Non-transfer item","40|Inventory: Medicine","2025_26","MTEC2025",40,16,1,53275,2003,"40","16","01","053275","002003","40|16|01|002003","01","01","02","28","28","01|01|02|28|28","National","Transport","Direct charge against the National Revenue Fund","International Oil Pollution Compensation Funds","Non-transfer item","Current","Current payments","Goods and services","Inventory: Medicine","Inventory: Medicine","Economic development","Economic regulation and infrastructure","NAT",0,0,0,0,0,0,null,0,0,0,0,null,null,null,null,null,null,null,null,null,null,null,null,null,null,null,null,null,null,null,null,null,null,null,null,null,null,null,null,null,null,null,null,null,null,{"$f":"Dataset[[#This Row],[2025/26 From - Spending review Topic 1]]+Dataset[[#This Row],[2025/26 From - Spending review Topic 2]]+Dataset[[#This Row],[2025/26 From - Spending review Topic 3]]+Dataset[[#This Row],[2025/26 From - Spending review Topic 4]]+Dataset[[#This Row],[2025/26 From - Other reallocations]]","v":0},{"$f":"Dataset[[#This Row],[2026/27 From - Spending review Topic 1]]+Dataset[[#This Row],[2026/27 From - Spending review Topic 2]]+Dataset[[#This Row],[2026/27 From - Spending review Topic 3]]+Dataset[[#This Row],[2026/27 From - Spending review Topic 4]]+Dataset[[#This Row],[2026/27 From - Other reallocations]]","v":0},{"$f":"Dataset[[#This Row],[2027/28 From - Spending review Topic 1]]+Dataset[[#This Row],[2027/28 From - Spending review Topic 2]]+Dataset[[#This Row],[2027/28 From - Spending review Topic 3]]+Dataset[[#This Row],[2027/28 From - Spending review Topic 4]]+Dataset[[#This Row],[2027/28 From - Other reallocations]]","v":0},{"$f":"Dataset[[#This Row],[2025/26 To - Spending review Topic 1]]+Dataset[[#This Row],[2025/26 To - Spending review Topic 2]]+Dataset[[#This Row],[2025/26 To - Spending review Topic 3]]+Dataset[[#This Row],[2025/26 To - Spending review Topic 4]]+Dataset[[#This Row],[2025/26 To - Other reallocations]]","v":0},{"$f":"Dataset[[#This Row],[2026/27 To - Spending review Topic 1]]+Dataset[[#This Row],[2026/27 To - Spending review Topic 2]]+Dataset[[#This Row],[2026/27 To - Spending review Topic 3]]+Dataset[[#This Row],[2026/27 To - Spending review Topic 4]]+Dataset[[#This Row],[2026/27 To - Other reallocations]]","v":0},{"$f":"Dataset[[#This Row],[2027/28 To - Spending review Topic 1]]+Dataset[[#This Row],[2027/28 To - Spending review Topic 2]]+Dataset[[#This Row],[2027/28 To - Spending review Topic 3]]+Dataset[[#This Row],[2027/28 To - Spending review Topic 4]]+Dataset[[#This Row],[2027/28 To - Other reallocations]]","v":0},{"$f":"Dataset[[#This Row],[2025/26 Reduction]]+Dataset[[#This Row],[2025/26 From - Total]]","v":0},{"$f":"Dataset[[#This Row],[2026/27 Reduction]]+Dataset[[#This Row],[2026/27 From - Total]]","v":0},{"$f":"Dataset[[#This Row],[2027/28 Reduction]]+Dataset[[#This Row],[2027/28 From - Total]]","v":0},{"$f":"Dataset[[#This Row],[2024/25 Reduction]]","v":0},{"$f":"SUM(Dataset[[#This Row],[2025/26 Reduction]],Dataset[[#This Row],[2025/26 From - Total]],Dataset[[#This Row],[2025/26 To - Total]])","v":0},{"$f":"SUM(Dataset[[#This Row],[2026/27 Reduction]],Dataset[[#This Row],[2026/27 From - Total]],Dataset[[#This Row],[2026/27 To - Total]])","v":0},{"$f":"SUM(Dataset[[#This Row],[2027/28 Reduction]],Dataset[[#This Row],[2027/28 From - Total]],Dataset[[#This Row],[2027/28 To - Total]])","v":0},{"$f":"Dataset[[#This Row],[2024/25 Baseline]]+Dataset[[#This Row],[2024/25 Total change]]","v":0},{"$f":"Dataset[[#This Row],[2025/26 Baseline]]+Dataset[[#This Row],[2025/26 Total change]]","v":0},{"$f":"Dataset[[#This Row],[2026/27 Baseline]]+Dataset[[#This Row],[2026/27 Total change]]","v":0},{"$f":"Dataset[[#This Row],[2027/28 Baseline]]+Dataset[[#This Row],[2027/28 Total change]]","v":0}]
["NAT|Non-transfer item","40|Medsas inventory interface","2025_26","MTEC2025",40,16,1,53276,2004,"40","16","01","053276","002004","40|16|01|002004","01","01","02","29","29","01|01|02|29|29","National","Transport","Direct charge against the National Revenue Fund","International Oil Pollution Compensation Funds","Non-transfer item","Current","Current payments","Goods and services","Medsas inventory interface","Medsas inventory interface","Economic development","Economic regulation and infrastructure","NAT",0,0,0,0,0,0,null,0,0,0,0,null,null,null,null,null,null,null,null,null,null,null,null,null,null,null,null,null,null,null,null,null,null,null,null,null,null,null,null,null,null,null,null,null,null,{"$f":"Dataset[[#This Row],[2025/26 From - Spending review Topic 1]]+Dataset[[#This Row],[2025/26 From - Spending review Topic 2]]+Dataset[[#This Row],[2025/26 From - Spending review Topic 3]]+Dataset[[#This Row],[2025/26 From - Spending review Topic 4]]+Dataset[[#This Row],[2025/26 From - Other reallocations]]","v":0},{"$f":"Dataset[[#This Row],[2026/27 From - Spending review Topic 1]]+Dataset[[#This Row],[2026/27 From - Spending review Topic 2]]+Dataset[[#This Row],[2026/27 From - Spending review Topic 3]]+Dataset[[#This Row],[2026/27 From - Spending review Topic 4]]+Dataset[[#This Row],[2026/27 From - Other reallocations]]","v":0},{"$f":"Dataset[[#This Row],[2027/28 From - Spending review Topic 1]]+Dataset[[#This Row],[2027/28 From - Spending review Topic 2]]+Dataset[[#This Row],[2027/28 From - Spending review Topic 3]]+Dataset[[#This Row],[2027/28 From - Spending review Topic 4]]+Dataset[[#This Row],[2027/28 From - Other reallocations]]","v":0},{"$f":"Dataset[[#This Row],[2025/26 To - Spending review Topic 1]]+Dataset[[#This Row],[2025/26 To - Spending review Topic 2]]+Dataset[[#This Row],[2025/26 To - Spending review Topic 3]]+Dataset[[#This Row],[2025/26 To - Spending review Topic 4]]+Dataset[[#This Row],[2025/26 To - Other reallocations]]","v":0},{"$f":"Dataset[[#This Row],[2026/27 To - Spending review Topic 1]]+Dataset[[#This Row],[2026/27 To - Spending review Topic 2]]+Dataset[[#This Row],[2026/27 To - Spending review Topic 3]]+Dataset[[#This Row],[2026/27 To - Spending review Topic 4]]+Dataset[[#This Row],[2026/27 To - Other reallocations]]","v":0},{"$f":"Dataset[[#This Row],[2027/28 To - Spending review Topic 1]]+Dataset[[#This Row],[2027/28 To - Spending review Topic 2]]+Dataset[[#This Row],[2027/28 To - Spending review Topic 3]]+Dataset[[#This Row],[2027/28 To - Spending review Topic 4]]+Dataset[[#This Row],[2027/28 To - Other reallocations]]","v":0},{"$f":"Dataset[[#This Row],[2025/26 Reduction]]+Dataset[[#This Row],[2025/26 From - Total]]","v":0},{"$f":"Dataset[[#This Row],[2026/27 Reduction]]+Dataset[[#This Row],[2026/27 From - Total]]","v":0},{"$f":"Dataset[[#This Row],[2027/28 Reduction]]+Dataset[[#This Row],[2027/28 From - Total]]","v":0},{"$f":"Dataset[[#This Row],[2024/25 Reduction]]","v":0},{"$f":"SUM(Dataset[[#This Row],[2025/26 Reduction]],Dataset[[#This Row],[2025/26 From - Total]],Dataset[[#This Row],[2025/26 To - Total]])","v":0},{"$f":"SUM(Dataset[[#This Row],[2026/27 Reduction]],Dataset[[#This Row],[2026/27 From - Total]],Dataset[[#This Row],[2026/27 To - Total]])","v":0},{"$f":"SUM(Dataset[[#This Row],[2027/28 Reduction]],Dataset[[#This Row],[2027/28 From - Total]],Dataset[[#This Row],[2027/28 To - Total]])","v":0},{"$f":"Dataset[[#This Row],[2024/25 Baseline]]+Dataset[[#This Row],[2024/25 Total change]]","v":0},{"$f":"Dataset[[#This Row],[2025/26 Baseline]]+Dataset[[#This Row],[2025/26 Total change]]","v":0},{"$f":"Dataset[[#This Row],[2026/27 Baseline]]+Dataset[[#This Row],[2026/27 Total change]]","v":0},{"$f":"Dataset[[#This Row],[2027/28 Baseline]]+Dataset[[#This Row],[2027/28 Total change]]","v":0}]
["NAT|Non-transfer item","40|Inventory: Other supplies","2025_26","MTEC2025",40,16,1,53277,2005,"40","16","01","053277","002005","40|16|01|002005","01","01","02","30","30","01|01|02|30|30","National","Transport","Direct charge against the National Revenue Fund","International Oil Pollution Compensation Funds","Non-transfer item","Current","Current payments","Goods and services","Inventory: Other supplies","Inventory: Other supplies","Economic development","Economic regulation and infrastructure","NAT",0,0,0,0,0,0,null,0,0,0,0,null,null,null,null,null,null,null,null,null,null,null,null,null,null,null,null,null,null,null,null,null,null,null,null,null,null,null,null,null,null,null,null,null,null,{"$f":"Dataset[[#This Row],[2025/26 From - Spending review Topic 1]]+Dataset[[#This Row],[2025/26 From - Spending review Topic 2]]+Dataset[[#This Row],[2025/26 From - Spending review Topic 3]]+Dataset[[#This Row],[2025/26 From - Spending review Topic 4]]+Dataset[[#This Row],[2025/26 From - Other reallocations]]","v":0},{"$f":"Dataset[[#This Row],[2026/27 From - Spending review Topic 1]]+Dataset[[#This Row],[2026/27 From - Spending review Topic 2]]+Dataset[[#This Row],[2026/27 From - Spending review Topic 3]]+Dataset[[#This Row],[2026/27 From - Spending review Topic 4]]+Dataset[[#This Row],[2026/27 From - Other reallocations]]","v":0},{"$f":"Dataset[[#This Row],[2027/28 From - Spending review Topic 1]]+Dataset[[#This Row],[2027/28 From - Spending review Topic 2]]+Dataset[[#This Row],[2027/28 From - Spending review Topic 3]]+Dataset[[#This Row],[2027/28 From - Spending review Topic 4]]+Dataset[[#This Row],[2027/28 From - Other reallocations]]","v":0},{"$f":"Dataset[[#This Row],[2025/26 To - Spending review Topic 1]]+Dataset[[#This Row],[2025/26 To - Spending review Topic 2]]+Dataset[[#This Row],[2025/26 To - Spending review Topic 3]]+Dataset[[#This Row],[2025/26 To - Spending review Topic 4]]+Dataset[[#This Row],[2025/26 To - Other reallocations]]","v":0},{"$f":"Dataset[[#This Row],[2026/27 To - Spending review Topic 1]]+Dataset[[#This Row],[2026/27 To - Spending review Topic 2]]+Dataset[[#This Row],[2026/27 To - Spending review Topic 3]]+Dataset[[#This Row],[2026/27 To - Spending review Topic 4]]+Dataset[[#This Row],[2026/27 To - Other reallocations]]","v":0},{"$f":"Dataset[[#This Row],[2027/28 To - Spending review Topic 1]]+Dataset[[#This Row],[2027/28 To - Spending review Topic 2]]+Dataset[[#This Row],[2027/28 To - Spending review Topic 3]]+Dataset[[#This Row],[2027/28 To - Spending review Topic 4]]+Dataset[[#This Row],[2027/28 To - Other reallocations]]","v":0},{"$f":"Dataset[[#This Row],[2025/26 Reduction]]+Dataset[[#This Row],[2025/26 From - Total]]","v":0},{"$f":"Dataset[[#This Row],[2026/27 Reduction]]+Dataset[[#This Row],[2026/27 From - Total]]","v":0},{"$f":"Dataset[[#This Row],[2027/28 Reduction]]+Dataset[[#This Row],[2027/28 From - Total]]","v":0},{"$f":"Dataset[[#This Row],[2024/25 Reduction]]","v":0},{"$f":"SUM(Dataset[[#This Row],[2025/26 Reduction]],Dataset[[#This Row],[2025/26 From - Total]],Dataset[[#This Row],[2025/26 To - Total]])","v":0},{"$f":"SUM(Dataset[[#This Row],[2026/27 Reduction]],Dataset[[#This Row],[2026/27 From - Total]],Dataset[[#This Row],[2026/27 To - Total]])","v":0},{"$f":"SUM(Dataset[[#This Row],[2027/28 Reduction]],Dataset[[#This Row],[2027/28 From - Total]],Dataset[[#This Row],[2027/28 To - Total]])","v":0},{"$f":"Dataset[[#This Row],[2024/25 Baseline]]+Dataset[[#This Row],[2024/25 Total change]]","v":0},{"$f":"Dataset[[#This Row],[2025/26 Baseline]]+Dataset[[#This Row],[2025/26 Total change]]","v":0},{"$f":"Dataset[[#This Row],[2026/27 Baseline]]+Dataset[[#This Row],[2026/27 Total change]]","v":0},{"$f":"Dataset[[#This Row],[2027/28 Baseline]]+Dataset[[#This Row],[2027/28 Total change]]","v":0}]
["NAT|Non-transfer item","40|Consumable supplies","2025_26","MTEC2025",40,16,1,53278,2006,"40","16","01","053278","002006","40|16|01|002006","01","01","02","31","31","01|01|02|31|31","National","Transport","Direct charge against the National Revenue Fund","International Oil Pollution Compensation Funds","Non-transfer item","Current","Current payments","Goods and services","Consumable supplies","Consumable supplies","Economic development","Economic regulation and infrastructure","NAT",0,0,0,0,0,0,null,0,0,0,0,null,null,null,null,null,null,null,null,null,null,null,null,null,null,null,null,null,null,null,null,null,null,null,null,null,null,null,null,null,null,null,null,null,null,{"$f":"Dataset[[#This Row],[2025/26 From - Spending review Topic 1]]+Dataset[[#This Row],[2025/26 From - Spending review Topic 2]]+Dataset[[#This Row],[2025/26 From - Spending review Topic 3]]+Dataset[[#This Row],[2025/26 From - Spending review Topic 4]]+Dataset[[#This Row],[2025/26 From - Other reallocations]]","v":0},{"$f":"Dataset[[#This Row],[2026/27 From - Spending review Topic 1]]+Dataset[[#This Row],[2026/27 From - Spending review Topic 2]]+Dataset[[#This Row],[2026/27 From - Spending review Topic 3]]+Dataset[[#This Row],[2026/27 From - Spending review Topic 4]]+Dataset[[#This Row],[2026/27 From - Other reallocations]]","v":0},{"$f":"Dataset[[#This Row],[2027/28 From - Spending review Topic 1]]+Dataset[[#This Row],[2027/28 From - Spending review Topic 2]]+Dataset[[#This Row],[2027/28 From - Spending review Topic 3]]+Dataset[[#This Row],[2027/28 From - Spending review Topic 4]]+Dataset[[#This Row],[2027/28 From - Other reallocations]]","v":0},{"$f":"Dataset[[#This Row],[2025/26 To - Spending review Topic 1]]+Dataset[[#This Row],[2025/26 To - Spending review Topic 2]]+Dataset[[#This Row],[2025/26 To - Spending review Topic 3]]+Dataset[[#This Row],[2025/26 To - Spending review Topic 4]]+Dataset[[#This Row],[2025/26 To - Other reallocations]]","v":0},{"$f":"Dataset[[#This Row],[2026/27 To - Spending review Topic 1]]+Dataset[[#This Row],[2026/27 To - Spending review Topic 2]]+Dataset[[#This Row],[2026/27 To - Spending review Topic 3]]+Dataset[[#This Row],[2026/27 To - Spending review Topic 4]]+Dataset[[#This Row],[2026/27 To - Other reallocations]]","v":0},{"$f":"Dataset[[#This Row],[2027/28 To - Spending review Topic 1]]+Dataset[[#This Row],[2027/28 To - Spending review Topic 2]]+Dataset[[#This Row],[2027/28 To - Spending review Topic 3]]+Dataset[[#This Row],[2027/28 To - Spending review Topic 4]]+Dataset[[#This Row],[2027/28 To - Other reallocations]]","v":0},{"$f":"Dataset[[#This Row],[2025/26 Reduction]]+Dataset[[#This Row],[2025/26 From - Total]]","v":0},{"$f":"Dataset[[#This Row],[2026/27 Reduction]]+Dataset[[#This Row],[2026/27 From - Total]]","v":0},{"$f":"Dataset[[#This Row],[2027/28 Reduction]]+Dataset[[#This Row],[2027/28 From - Total]]","v":0},{"$f":"Dataset[[#This Row],[2024/25 Reduction]]","v":0},{"$f":"SUM(Dataset[[#This Row],[2025/26 Reduction]],Dataset[[#This Row],[2025/26 From - Total]],Dataset[[#This Row],[2025/26 To - Total]])","v":0},{"$f":"SUM(Dataset[[#This Row],[2026/27 Reduction]],Dataset[[#This Row],[2026/27 From - Total]],Dataset[[#This Row],[2026/27 To - Total]])","v":0},{"$f":"SUM(Dataset[[#This Row],[2027/28 Reduction]],Dataset[[#This Row],[2027/28 From - Total]],Dataset[[#This Row],[2027/28 To - Total]])","v":0},{"$f":"Dataset[[#This Row],[2024/25 Baseline]]+Dataset[[#This Row],[2024/25 Total change]]","v":0},{"$f":"Dataset[[#This Row],[2025/26 Baseline]]+Dataset[[#This Row],[2025/26 Total change]]","v":0},{"$f":"Dataset[[#This Row],[2026/27 Baseline]]+Dataset[[#This Row],[2026/27 Total change]]","v":0},{"$f":"Dataset[[#This Row],[2027/28 Baseline]]+Dataset[[#This Row],[2027/28 Total change]]","v":0}]
["NAT|Non-transfer item","40|Consumables: Stationery, printing and office supplies","2025_26","MTEC2025",40,16,1,53279,2007,"40","16","01","053279","002007","40|16|01|002007","01","01","02","32","32","01|01|02|32|32","National","Transport","Direct charge against the National Revenue Fund","International Oil Pollution Compensation Funds","Non-transfer item","Current","Current payments","Goods and services","Consumables: Stationery, printing and office supplies","Consumables: Stationery, printing and office supplies","Economic development","Economic regulation and infrastructure","NAT",0,0,0,0,0,0,null,0,0,0,0,null,null,null,null,null,null,null,null,null,null,null,null,null,null,null,null,null,null,null,null,null,null,null,null,null,null,null,null,null,null,null,null,null,null,{"$f":"Dataset[[#This Row],[2025/26 From - Spending review Topic 1]]+Dataset[[#This Row],[2025/26 From - Spending review Topic 2]]+Dataset[[#This Row],[2025/26 From - Spending review Topic 3]]+Dataset[[#This Row],[2025/26 From - Spending review Topic 4]]+Dataset[[#This Row],[2025/26 From - Other reallocations]]","v":0},{"$f":"Dataset[[#This Row],[2026/27 From - Spending review Topic 1]]+Dataset[[#This Row],[2026/27 From - Spending review Topic 2]]+Dataset[[#This Row],[2026/27 From - Spending review Topic 3]]+Dataset[[#This Row],[2026/27 From - Spending review Topic 4]]+Dataset[[#This Row],[2026/27 From - Other reallocations]]","v":0},{"$f":"Dataset[[#This Row],[2027/28 From - Spending review Topic 1]]+Dataset[[#This Row],[2027/28 From - Spending review Topic 2]]+Dataset[[#This Row],[2027/28 From - Spending review Topic 3]]+Dataset[[#This Row],[2027/28 From - Spending review Topic 4]]+Dataset[[#This Row],[2027/28 From - Other reallocations]]","v":0},{"$f":"Dataset[[#This Row],[2025/26 To - Spending review Topic 1]]+Dataset[[#This Row],[2025/26 To - Spending review Topic 2]]+Dataset[[#This Row],[2025/26 To - Spending review Topic 3]]+Dataset[[#This Row],[2025/26 To - Spending review Topic 4]]+Dataset[[#This Row],[2025/26 To - Other reallocations]]","v":0},{"$f":"Dataset[[#This Row],[2026/27 To - Spending review Topic 1]]+Dataset[[#This Row],[2026/27 To - Spending review Topic 2]]+Dataset[[#This Row],[2026/27 To - Spending review Topic 3]]+Dataset[[#This Row],[2026/27 To - Spending review Topic 4]]+Dataset[[#This Row],[2026/27 To - Other reallocations]]","v":0},{"$f":"Dataset[[#This Row],[2027/28 To - Spending review Topic 1]]+Dataset[[#This Row],[2027/28 To - Spending review Topic 2]]+Dataset[[#This Row],[2027/28 To - Spending review Topic 3]]+Dataset[[#This Row],[2027/28 To - Spending review Topic 4]]+Dataset[[#This Row],[2027/28 To - Other reallocations]]","v":0},{"$f":"Dataset[[#This Row],[2025/26 Reduction]]+Dataset[[#This Row],[2025/26 From - Total]]","v":0},{"$f":"Dataset[[#This Row],[2026/27 Reduction]]+Dataset[[#This Row],[2026/27 From - Total]]","v":0},{"$f":"Dataset[[#This Row],[2027/28 Reduction]]+Dataset[[#This Row],[2027/28 From - Total]]","v":0},{"$f":"Dataset[[#This Row],[2024/25 Reduction]]","v":0},{"$f":"SUM(Dataset[[#This Row],[2025/26 Reduction]],Dataset[[#This Row],[2025/26 From - Total]],Dataset[[#This Row],[2025/26 To - Total]])","v":0},{"$f":"SUM(Dataset[[#This Row],[2026/27 Reduction]],Dataset[[#This Row],[2026/27 From - Total]],Dataset[[#This Row],[2026/27 To - Total]])","v":0},{"$f":"SUM(Dataset[[#This Row],[2027/28 Reduction]],Dataset[[#This Row],[2027/28 From - Total]],Dataset[[#This Row],[2027/28 To - Total]])","v":0},{"$f":"Dataset[[#This Row],[2024/25 Baseline]]+Dataset[[#This Row],[2024/25 Total change]]","v":0},{"$f":"Dataset[[#This Row],[2025/26 Baseline]]+Dataset[[#This Row],[2025/26 Total change]]","v":0},{"$f":"Dataset[[#This Row],[2026/27 Baseline]]+Dataset[[#This Row],[2026/27 Total change]]","v":0},{"$f":"Dataset[[#This Row],[2027/28 Baseline]]+Dataset[[#This Row],[2027/28 Total change]]","v":0}]
["NAT|Non-transfer item","40|Operating leases","2025_26","MTEC2025",40,16,1,53280,2008,"40","16","01","053280","002008","40|16|01|002008","01","01","02","33","33","01|01|02|33|33","National","Transport","Direct charge against the National Revenue Fund","International Oil Pollution Compensation Funds","Non-transfer item","Current","Current payments","Goods and services","Operating leases","Operating leases","Economic development","Economic regulation and infrastructure","NAT",0,0,0,0,0,0,null,0,0,0,0,null,null,null,null,null,null,null,null,null,null,null,null,null,null,null,null,null,null,null,null,null,null,null,null,null,null,null,null,null,null,null,null,null,null,{"$f":"Dataset[[#This Row],[2025/26 From - Spending review Topic 1]]+Dataset[[#This Row],[2025/26 From - Spending review Topic 2]]+Dataset[[#This Row],[2025/26 From - Spending review Topic 3]]+Dataset[[#This Row],[2025/26 From - Spending review Topic 4]]+Dataset[[#This Row],[2025/26 From - Other reallocations]]","v":0},{"$f":"Dataset[[#This Row],[2026/27 From - Spending review Topic 1]]+Dataset[[#This Row],[2026/27 From - Spending review Topic 2]]+Dataset[[#This Row],[2026/27 From - Spending review Topic 3]]+Dataset[[#This Row],[2026/27 From - Spending review Topic 4]]+Dataset[[#This Row],[2026/27 From - Other reallocations]]","v":0},{"$f":"Dataset[[#This Row],[2027/28 From - Spending review Topic 1]]+Dataset[[#This Row],[2027/28 From - Spending review Topic 2]]+Dataset[[#This Row],[2027/28 From - Spending review Topic 3]]+Dataset[[#This Row],[2027/28 From - Spending review Topic 4]]+Dataset[[#This Row],[2027/28 From - Other reallocations]]","v":0},{"$f":"Dataset[[#This Row],[2025/26 To - Spending review Topic 1]]+Dataset[[#This Row],[2025/26 To - Spending review Topic 2]]+Dataset[[#This Row],[2025/26 To - Spending review Topic 3]]+Dataset[[#This Row],[2025/26 To - Spending review Topic 4]]+Dataset[[#This Row],[2025/26 To - Other reallocations]]","v":0},{"$f":"Dataset[[#This Row],[2026/27 To - Spending review Topic 1]]+Dataset[[#This Row],[2026/27 To - Spending review Topic 2]]+Dataset[[#This Row],[2026/27 To - Spending review Topic 3]]+Dataset[[#This Row],[2026/27 To - Spending review Topic 4]]+Dataset[[#This Row],[2026/27 To - Other reallocations]]","v":0},{"$f":"Dataset[[#This Row],[2027/28 To - Spending review Topic 1]]+Dataset[[#This Row],[2027/28 To - Spending review Topic 2]]+Dataset[[#This Row],[2027/28 To - Spending review Topic 3]]+Dataset[[#This Row],[2027/28 To - Spending review Topic 4]]+Dataset[[#This Row],[2027/28 To - Other reallocations]]","v":0},{"$f":"Dataset[[#This Row],[2025/26 Reduction]]+Dataset[[#This Row],[2025/26 From - Total]]","v":0},{"$f":"Dataset[[#This Row],[2026/27 Reduction]]+Dataset[[#This Row],[2026/27 From - Total]]","v":0},{"$f":"Dataset[[#This Row],[2027/28 Reduction]]+Dataset[[#This Row],[2027/28 From - Total]]","v":0},{"$f":"Dataset[[#This Row],[2024/25 Reduction]]","v":0},{"$f":"SUM(Dataset[[#This Row],[2025/26 Reduction]],Dataset[[#This Row],[2025/26 From - Total]],Dataset[[#This Row],[2025/26 To - Total]])","v":0},{"$f":"SUM(Dataset[[#This Row],[2026/27 Reduction]],Dataset[[#This Row],[2026/27 From - Total]],Dataset[[#This Row],[2026/27 To - Total]])","v":0},{"$f":"SUM(Dataset[[#This Row],[2027/28 Reduction]],Dataset[[#This Row],[2027/28 From - Total]],Dataset[[#This Row],[2027/28 To - Total]])","v":0},{"$f":"Dataset[[#This Row],[2024/25 Baseline]]+Dataset[[#This Row],[2024/25 Total change]]","v":0},{"$f":"Dataset[[#This Row],[2025/26 Baseline]]+Dataset[[#This Row],[2025/26 Total change]]","v":0},{"$f":"Dataset[[#This Row],[2026/27 Baseline]]+Dataset[[#This Row],[2026/27 Total change]]","v":0},{"$f":"Dataset[[#This Row],[2027/28 Baseline]]+Dataset[[#This Row],[2027/28 Total change]]","v":0}]
["NAT|Non-transfer item","40|Rental and hiring","2025_26","MTEC2025",40,16,1,53281,2009,"40","16","01","053281","002009","40|16|01|002009","01","01","02","34","34","01|01|02|34|34","National","Transport","Direct charge against the National Revenue Fund","International Oil Pollution Compensation Funds","Non-transfer item","Current","Current payments","Goods and services","Rental and hiring","Rental and hiring","Economic development","Economic regulation and infrastructure","NAT",0,0,0,0,0,0,null,0,0,0,0,null,null,null,null,null,null,null,null,null,null,null,null,null,null,null,null,null,null,null,null,null,null,null,null,null,null,null,null,null,null,null,null,null,null,{"$f":"Dataset[[#This Row],[2025/26 From - Spending review Topic 1]]+Dataset[[#This Row],[2025/26 From - Spending review Topic 2]]+Dataset[[#This Row],[2025/26 From - Spending review Topic 3]]+Dataset[[#This Row],[2025/26 From - Spending review Topic 4]]+Dataset[[#This Row],[2025/26 From - Other reallocations]]","v":0},{"$f":"Dataset[[#This Row],[2026/27 From - Spending review Topic 1]]+Dataset[[#This Row],[2026/27 From - Spending review Topic 2]]+Dataset[[#This Row],[2026/27 From - Spending review Topic 3]]+Dataset[[#This Row],[2026/27 From - Spending review Topic 4]]+Dataset[[#This Row],[2026/27 From - Other reallocations]]","v":0},{"$f":"Dataset[[#This Row],[2027/28 From - Spending review Topic 1]]+Dataset[[#This Row],[2027/28 From - Spending review Topic 2]]+Dataset[[#This Row],[2027/28 From - Spending review Topic 3]]+Dataset[[#This Row],[2027/28 From - Spending review Topic 4]]+Dataset[[#This Row],[2027/28 From - Other reallocations]]","v":0},{"$f":"Dataset[[#This Row],[2025/26 To - Spending review Topic 1]]+Dataset[[#This Row],[2025/26 To - Spending review Topic 2]]+Dataset[[#This Row],[2025/26 To - Spending review Topic 3]]+Dataset[[#This Row],[2025/26 To - Spending review Topic 4]]+Dataset[[#This Row],[2025/26 To - Other reallocations]]","v":0},{"$f":"Dataset[[#This Row],[2026/27 To - Spending review Topic 1]]+Dataset[[#This Row],[2026/27 To - Spending review Topic 2]]+Dataset[[#This Row],[2026/27 To - Spending review Topic 3]]+Dataset[[#This Row],[2026/27 To - Spending review Topic 4]]+Dataset[[#This Row],[2026/27 To - Other reallocations]]","v":0},{"$f":"Dataset[[#This Row],[2027/28 To - Spending review Topic 1]]+Dataset[[#This Row],[2027/28 To - Spending review Topic 2]]+Dataset[[#This Row],[2027/28 To - Spending review Topic 3]]+Dataset[[#This Row],[2027/28 To - Spending review Topic 4]]+Dataset[[#This Row],[2027/28 To - Other reallocations]]","v":0},{"$f":"Dataset[[#This Row],[2025/26 Reduction]]+Dataset[[#This Row],[2025/26 From - Total]]","v":0},{"$f":"Dataset[[#This Row],[2026/27 Reduction]]+Dataset[[#This Row],[2026/27 From - Total]]","v":0},{"$f":"Dataset[[#This Row],[2027/28 Reduction]]+Dataset[[#This Row],[2027/28 From - Total]]","v":0},{"$f":"Dataset[[#This Row],[2024/25 Reduction]]","v":0},{"$f":"SUM(Dataset[[#This Row],[2025/26 Reduction]],Dataset[[#This Row],[2025/26 From - Total]],Dataset[[#This Row],[2025/26 To - Total]])","v":0},{"$f":"SUM(Dataset[[#This Row],[2026/27 Reduction]],Dataset[[#This Row],[2026/27 From - Total]],Dataset[[#This Row],[2026/27 To - Total]])","v":0},{"$f":"SUM(Dataset[[#This Row],[2027/28 Reduction]],Dataset[[#This Row],[2027/28 From - Total]],Dataset[[#This Row],[2027/28 To - Total]])","v":0},{"$f":"Dataset[[#This Row],[2024/25 Baseline]]+Dataset[[#This Row],[2024/25 Total change]]","v":0},{"$f":"Dataset[[#This Row],[2025/26 Baseline]]+Dataset[[#This Row],[2025/26 Total change]]","v":0},{"$f":"Dataset[[#This Row],[2026/27 Baseline]]+Dataset[[#This Row],[2026/27 Total change]]","v":0},{"$f":"Dataset[[#This Row],[2027/28 Baseline]]+Dataset[[#This Row],[2027/28 Total change]]","v":0}]
["NAT|Non-transfer item","40|Property payments","2025_26","MTEC2025",40,16,1,53282,2010,"40","16","01","053282","002010","40|16|01|002010","01","01","02","35","35","01|01|02|35|35","National","Transport","Direct charge against the National Revenue Fund","International Oil Pollution Compensation Funds","Non-transfer item","Current","Current payments","Goods and services","Property payments","Property payments","Economic development","Economic regulation and infrastructure","NAT",0,0,0,0,0,0,null,0,0,0,0,null,null,null,null,null,null,null,null,null,null,null,null,null,null,null,null,null,null,null,null,null,null,null,null,null,null,null,null,null,null,null,null,null,null,{"$f":"Dataset[[#This Row],[2025/26 From - Spending review Topic 1]]+Dataset[[#This Row],[2025/26 From - Spending review Topic 2]]+Dataset[[#This Row],[2025/26 From - Spending review Topic 3]]+Dataset[[#This Row],[2025/26 From - Spending review Topic 4]]+Dataset[[#This Row],[2025/26 From - Other reallocations]]","v":0},{"$f":"Dataset[[#This Row],[2026/27 From - Spending review Topic 1]]+Dataset[[#This Row],[2026/27 From - Spending review Topic 2]]+Dataset[[#This Row],[2026/27 From - Spending review Topic 3]]+Dataset[[#This Row],[2026/27 From - Spending review Topic 4]]+Dataset[[#This Row],[2026/27 From - Other reallocations]]","v":0},{"$f":"Dataset[[#This Row],[2027/28 From - Spending review Topic 1]]+Dataset[[#This Row],[2027/28 From - Spending review Topic 2]]+Dataset[[#This Row],[2027/28 From - Spending review Topic 3]]+Dataset[[#This Row],[2027/28 From - Spending review Topic 4]]+Dataset[[#This Row],[2027/28 From - Other reallocations]]","v":0},{"$f":"Dataset[[#This Row],[2025/26 To - Spending review Topic 1]]+Dataset[[#This Row],[2025/26 To - Spending review Topic 2]]+Dataset[[#This Row],[2025/26 To - Spending review Topic 3]]+Dataset[[#This Row],[2025/26 To - Spending review Topic 4]]+Dataset[[#This Row],[2025/26 To - Other reallocations]]","v":0},{"$f":"Dataset[[#This Row],[2026/27 To - Spending review Topic 1]]+Dataset[[#This Row],[2026/27 To - Spending review Topic 2]]+Dataset[[#This Row],[2026/27 To - Spending review Topic 3]]+Dataset[[#This Row],[2026/27 To - Spending review Topic 4]]+Dataset[[#This Row],[2026/27 To - Other reallocations]]","v":0},{"$f":"Dataset[[#This Row],[2027/28 To - Spending review Topic 1]]+Dataset[[#This Row],[2027/28 To - Spending review Topic 2]]+Dataset[[#This Row],[2027/28 To - Spending review Topic 3]]+Dataset[[#This Row],[2027/28 To - Spending review Topic 4]]+Dataset[[#This Row],[2027/28 To - Other reallocations]]","v":0},{"$f":"Dataset[[#This Row],[2025/26 Reduction]]+Dataset[[#This Row],[2025/26 From - Total]]","v":0},{"$f":"Dataset[[#This Row],[2026/27 Reduction]]+Dataset[[#This Row],[2026/27 From - Total]]","v":0},{"$f":"Dataset[[#This Row],[2027/28 Reduction]]+Dataset[[#This Row],[2027/28 From - Total]]","v":0},{"$f":"Dataset[[#This Row],[2024/25 Reduction]]","v":0},{"$f":"SUM(Dataset[[#This Row],[2025/26 Reduction]],Dataset[[#This Row],[2025/26 From - Total]],Dataset[[#This Row],[2025/26 To - Total]])","v":0},{"$f":"SUM(Dataset[[#This Row],[2026/27 Reduction]],Dataset[[#This Row],[2026/27 From - Total]],Dataset[[#This Row],[2026/27 To - Total]])","v":0},{"$f":"SUM(Dataset[[#This Row],[2027/28 Reduction]],Dataset[[#This Row],[2027/28 From - Total]],Dataset[[#This Row],[2027/28 To - Total]])","v":0},{"$f":"Dataset[[#This Row],[2024/25 Baseline]]+Dataset[[#This Row],[2024/25 Total change]]","v":0},{"$f":"Dataset[[#This Row],[2025/26 Baseline]]+Dataset[[#This Row],[2025/26 Total change]]","v":0},{"$f":"Dataset[[#This Row],[2026/27 Baseline]]+Dataset[[#This Row],[2026/27 Total change]]","v":0},{"$f":"Dataset[[#This Row],[2027/28 Baseline]]+Dataset[[#This Row],[2027/28 Total change]]","v":0}]
["NAT|Non-transfer item","40|Transport provided: Departmental activity","2025_26","MTEC2025",40,16,1,53283,2011,"40","16","01","053283","002011","40|16|01|002011","01","01","02","36","36","01|01|02|36|36","National","Transport","Direct charge against the National Revenue Fund","International Oil Pollution Compensation Funds","Non-transfer item","Current","Current payments","Goods and services","Transport provided: Departmental activity","Transport provided: Departmental activity","Economic development","Economic regulation and infrastructure","NAT",0,0,0,0,0,0,null,0,0,0,0,null,null,null,null,null,null,null,null,null,null,null,null,null,null,null,null,null,null,null,null,null,null,null,null,null,null,null,null,null,null,null,null,null,null,{"$f":"Dataset[[#This Row],[2025/26 From - Spending review Topic 1]]+Dataset[[#This Row],[2025/26 From - Spending review Topic 2]]+Dataset[[#This Row],[2025/26 From - Spending review Topic 3]]+Dataset[[#This Row],[2025/26 From - Spending review Topic 4]]+Dataset[[#This Row],[2025/26 From - Other reallocations]]","v":0},{"$f":"Dataset[[#This Row],[2026/27 From - Spending review Topic 1]]+Dataset[[#This Row],[2026/27 From - Spending review Topic 2]]+Dataset[[#This Row],[2026/27 From - Spending review Topic 3]]+Dataset[[#This Row],[2026/27 From - Spending review Topic 4]]+Dataset[[#This Row],[2026/27 From - Other reallocations]]","v":0},{"$f":"Dataset[[#This Row],[2027/28 From - Spending review Topic 1]]+Dataset[[#This Row],[2027/28 From - Spending review Topic 2]]+Dataset[[#This Row],[2027/28 From - Spending review Topic 3]]+Dataset[[#This Row],[2027/28 From - Spending review Topic 4]]+Dataset[[#This Row],[2027/28 From - Other reallocations]]","v":0},{"$f":"Dataset[[#This Row],[2025/26 To - Spending review Topic 1]]+Dataset[[#This Row],[2025/26 To - Spending review Topic 2]]+Dataset[[#This Row],[2025/26 To - Spending review Topic 3]]+Dataset[[#This Row],[2025/26 To - Spending review Topic 4]]+Dataset[[#This Row],[2025/26 To - Other reallocations]]","v":0},{"$f":"Dataset[[#This Row],[2026/27 To - Spending review Topic 1]]+Dataset[[#This Row],[2026/27 To - Spending review Topic 2]]+Dataset[[#This Row],[2026/27 To - Spending review Topic 3]]+Dataset[[#This Row],[2026/27 To - Spending review Topic 4]]+Dataset[[#This Row],[2026/27 To - Other reallocations]]","v":0},{"$f":"Dataset[[#This Row],[2027/28 To - Spending review Topic 1]]+Dataset[[#This Row],[2027/28 To - Spending review Topic 2]]+Dataset[[#This Row],[2027/28 To - Spending review Topic 3]]+Dataset[[#This Row],[2027/28 To - Spending review Topic 4]]+Dataset[[#This Row],[2027/28 To - Other reallocations]]","v":0},{"$f":"Dataset[[#This Row],[2025/26 Reduction]]+Dataset[[#This Row],[2025/26 From - Total]]","v":0},{"$f":"Dataset[[#This Row],[2026/27 Reduction]]+Dataset[[#This Row],[2026/27 From - Total]]","v":0},{"$f":"Dataset[[#This Row],[2027/28 Reduction]]+Dataset[[#This Row],[2027/28 From - Total]]","v":0},{"$f":"Dataset[[#This Row],[2024/25 Reduction]]","v":0},{"$f":"SUM(Dataset[[#This Row],[2025/26 Reduction]],Dataset[[#This Row],[2025/26 From - Total]],Dataset[[#This Row],[2025/26 To - Total]])","v":0},{"$f":"SUM(Dataset[[#This Row],[2026/27 Reduction]],Dataset[[#This Row],[2026/27 From - Total]],Dataset[[#This Row],[2026/27 To - Total]])","v":0},{"$f":"SUM(Dataset[[#This Row],[2027/28 Reduction]],Dataset[[#This Row],[2027/28 From - Total]],Dataset[[#This Row],[2027/28 To - Total]])","v":0},{"$f":"Dataset[[#This Row],[2024/25 Baseline]]+Dataset[[#This Row],[2024/25 Total change]]","v":0},{"$f":"Dataset[[#This Row],[2025/26 Baseline]]+Dataset[[#This Row],[2025/26 Total change]]","v":0},{"$f":"Dataset[[#This Row],[2026/27 Baseline]]+Dataset[[#This Row],[2026/27 Total change]]","v":0},{"$f":"Dataset[[#This Row],[2027/28 Baseline]]+Dataset[[#This Row],[2027/28 Total change]]","v":0}]
["NAT|Non-transfer item","40|Travel and subsistence","2025_26","MTEC2025",40,16,1,53284,2012,"40","16","01","053284","002012","40|16|01|002012","01","01","02","37","37","01|01|02|37|37","National","Transport","Direct charge against the National Revenue Fund","International Oil Pollution Compensation Funds","Non-transfer item","Current","Current payments","Goods and services","Travel and subsistence","Travel and subsistence","Economic development","Economic regulation and infrastructure","NAT",0,0,0,0,0,0,null,0,0,0,0,null,null,null,null,null,null,null,null,null,null,null,null,null,null,null,null,null,null,null,null,null,null,null,null,null,null,null,null,null,null,null,null,null,null,{"$f":"Dataset[[#This Row],[2025/26 From - Spending review Topic 1]]+Dataset[[#This Row],[2025/26 From - Spending review Topic 2]]+Dataset[[#This Row],[2025/26 From - Spending review Topic 3]]+Dataset[[#This Row],[2025/26 From - Spending review Topic 4]]+Dataset[[#This Row],[2025/26 From - Other reallocations]]","v":0},{"$f":"Dataset[[#This Row],[2026/27 From - Spending review Topic 1]]+Dataset[[#This Row],[2026/27 From - Spending review Topic 2]]+Dataset[[#This Row],[2026/27 From - Spending review Topic 3]]+Dataset[[#This Row],[2026/27 From - Spending review Topic 4]]+Dataset[[#This Row],[2026/27 From - Other reallocations]]","v":0},{"$f":"Dataset[[#This Row],[2027/28 From - Spending review Topic 1]]+Dataset[[#This Row],[2027/28 From - Spending review Topic 2]]+Dataset[[#This Row],[2027/28 From - Spending review Topic 3]]+Dataset[[#This Row],[2027/28 From - Spending review Topic 4]]+Dataset[[#This Row],[2027/28 From - Other reallocations]]","v":0},{"$f":"Dataset[[#This Row],[2025/26 To - Spending review Topic 1]]+Dataset[[#This Row],[2025/26 To - Spending review Topic 2]]+Dataset[[#This Row],[2025/26 To - Spending review Topic 3]]+Dataset[[#This Row],[2025/26 To - Spending review Topic 4]]+Dataset[[#This Row],[2025/26 To - Other reallocations]]","v":0},{"$f":"Dataset[[#This Row],[2026/27 To - Spending review Topic 1]]+Dataset[[#This Row],[2026/27 To - Spending review Topic 2]]+Dataset[[#This Row],[2026/27 To - Spending review Topic 3]]+Dataset[[#This Row],[2026/27 To - Spending review Topic 4]]+Dataset[[#This Row],[2026/27 To - Other reallocations]]","v":0},{"$f":"Dataset[[#This Row],[2027/28 To - Spending review Topic 1]]+Dataset[[#This Row],[2027/28 To - Spending review Topic 2]]+Dataset[[#This Row],[2027/28 To - Spending review Topic 3]]+Dataset[[#This Row],[2027/28 To - Spending review Topic 4]]+Dataset[[#This Row],[2027/28 To - Other reallocations]]","v":0},{"$f":"Dataset[[#This Row],[2025/26 Reduction]]+Dataset[[#This Row],[2025/26 From - Total]]","v":0},{"$f":"Dataset[[#This Row],[2026/27 Reduction]]+Dataset[[#This Row],[2026/27 From - Total]]","v":0},{"$f":"Dataset[[#This Row],[2027/28 Reduction]]+Dataset[[#This Row],[2027/28 From - Total]]","v":0},{"$f":"Dataset[[#This Row],[2024/25 Reduction]]","v":0},{"$f":"SUM(Dataset[[#This Row],[2025/26 Reduction]],Dataset[[#This Row],[2025/26 From - Total]],Dataset[[#This Row],[2025/26 To - Total]])","v":0},{"$f":"SUM(Dataset[[#This Row],[2026/27 Reduction]],Dataset[[#This Row],[2026/27 From - Total]],Dataset[[#This Row],[2026/27 To - Total]])","v":0},{"$f":"SUM(Dataset[[#This Row],[2027/28 Reduction]],Dataset[[#This Row],[2027/28 From - Total]],Dataset[[#This Row],[2027/28 To - Total]])","v":0},{"$f":"Dataset[[#This Row],[2024/25 Baseline]]+Dataset[[#This Row],[2024/25 Total change]]","v":0},{"$f":"Dataset[[#This Row],[2025/26 Baseline]]+Dataset[[#This Row],[2025/26 Total change]]","v":0},{"$f":"Dataset[[#This Row],[2026/27 Baseline]]+Dataset[[#This Row],[2026/27 Total change]]","v":0},{"$f":"Dataset[[#This Row],[2027/28 Baseline]]+Dataset[[#This Row],[2027/28 Total change]]","v":0}]
["NAT|Non-transfer item","40|Training and development","2025_26","MTEC2025",40,16,1,53285,2013,"40","16","01","053285","002013","40|16|01|002013","01","01","02","38","38","01|01|02|38|38","National","Transport","Direct charge against the National Revenue Fund","International Oil Pollution Compensation Funds","Non-transfer item","Current","Current payments","Goods and services","Training and development","Training and development","Economic development","Economic regulation and infrastructure","NAT",0,0,0,0,0,0,null,0,0,0,0,null,null,null,null,null,null,null,null,null,null,null,null,null,null,null,null,null,null,null,null,null,null,null,null,null,null,null,null,null,null,null,null,null,null,{"$f":"Dataset[[#This Row],[2025/26 From - Spending review Topic 1]]+Dataset[[#This Row],[2025/26 From - Spending review Topic 2]]+Dataset[[#This Row],[2025/26 From - Spending review Topic 3]]+Dataset[[#This Row],[2025/26 From - Spending review Topic 4]]+Dataset[[#This Row],[2025/26 From - Other reallocations]]","v":0},{"$f":"Dataset[[#This Row],[2026/27 From - Spending review Topic 1]]+Dataset[[#This Row],[2026/27 From - Spending review Topic 2]]+Dataset[[#This Row],[2026/27 From - Spending review Topic 3]]+Dataset[[#This Row],[2026/27 From - Spending review Topic 4]]+Dataset[[#This Row],[2026/27 From - Other reallocations]]","v":0},{"$f":"Dataset[[#This Row],[2027/28 From - Spending review Topic 1]]+Dataset[[#This Row],[2027/28 From - Spending review Topic 2]]+Dataset[[#This Row],[2027/28 From - Spending review Topic 3]]+Dataset[[#This Row],[2027/28 From - Spending review Topic 4]]+Dataset[[#This Row],[2027/28 From - Other reallocations]]","v":0},{"$f":"Dataset[[#This Row],[2025/26 To - Spending review Topic 1]]+Dataset[[#This Row],[2025/26 To - Spending review Topic 2]]+Dataset[[#This Row],[2025/26 To - Spending review Topic 3]]+Dataset[[#This Row],[2025/26 To - Spending review Topic 4]]+Dataset[[#This Row],[2025/26 To - Other reallocations]]","v":0},{"$f":"Dataset[[#This Row],[2026/27 To - Spending review Topic 1]]+Dataset[[#This Row],[2026/27 To - Spending review Topic 2]]+Dataset[[#This Row],[2026/27 To - Spending review Topic 3]]+Dataset[[#This Row],[2026/27 To - Spending review Topic 4]]+Dataset[[#This Row],[2026/27 To - Other reallocations]]","v":0},{"$f":"Dataset[[#This Row],[2027/28 To - Spending review Topic 1]]+Dataset[[#This Row],[2027/28 To - Spending review Topic 2]]+Dataset[[#This Row],[2027/28 To - Spending review Topic 3]]+Dataset[[#This Row],[2027/28 To - Spending review Topic 4]]+Dataset[[#This Row],[2027/28 To - Other reallocations]]","v":0},{"$f":"Dataset[[#This Row],[2025/26 Reduction]]+Dataset[[#This Row],[2025/26 From - Total]]","v":0},{"$f":"Dataset[[#This Row],[2026/27 Reduction]]+Dataset[[#This Row],[2026/27 From - Total]]","v":0},{"$f":"Dataset[[#This Row],[2027/28 Reduction]]+Dataset[[#This Row],[2027/28 From - Total]]","v":0},{"$f":"Dataset[[#This Row],[2024/25 Reduction]]","v":0},{"$f":"SUM(Dataset[[#This Row],[2025/26 Reduction]],Dataset[[#This Row],[2025/26 From - Total]],Dataset[[#This Row],[2025/26 To - Total]])","v":0},{"$f":"SUM(Dataset[[#This Row],[2026/27 Reduction]],Dataset[[#This Row],[2026/27 From - Total]],Dataset[[#This Row],[2026/27 To - Total]])","v":0},{"$f":"SUM(Dataset[[#This Row],[2027/28 Reduction]],Dataset[[#This Row],[2027/28 From - Total]],Dataset[[#This Row],[2027/28 To - Total]])","v":0},{"$f":"Dataset[[#This Row],[2024/25 Baseline]]+Dataset[[#This Row],[2024/25 Total change]]","v":0},{"$f":"Dataset[[#This Row],[2025/26 Baseline]]+Dataset[[#This Row],[2025/26 Total change]]","v":0},{"$f":"Dataset[[#This Row],[2026/27 Baseline]]+Dataset[[#This Row],[2026/27 Total change]]","v":0},{"$f":"Dataset[[#This Row],[2027/28 Baseline]]+Dataset[[#This Row],[2027/28 Total change]]","v":0}]
["NAT|Non-transfer item","40|Operating payments","2025_26","MTEC2025",40,16,1,53286,2014,"40","16","01","053286","002014","40|16|01|002014","01","01","02","39","39","01|01|02|39|39","National","Transport","Direct charge against the National Revenue Fund","International Oil Pollution Compensation Funds","Non-transfer item","Current","Current payments","Goods and services","Operating payments","Operating payments","Economic development","Economic regulation and infrastructure","NAT",0,0,0,0,0,0,null,0,0,0,0,null,null,null,null,null,null,null,null,null,null,null,null,null,null,null,null,null,null,null,null,null,null,null,null,null,null,null,null,null,null,null,null,null,null,{"$f":"Dataset[[#This Row],[2025/26 From - Spending review Topic 1]]+Dataset[[#This Row],[2025/26 From - Spending review Topic 2]]+Dataset[[#This Row],[2025/26 From - Spending review Topic 3]]+Dataset[[#This Row],[2025/26 From - Spending review Topic 4]]+Dataset[[#This Row],[2025/26 From - Other reallocations]]","v":0},{"$f":"Dataset[[#This Row],[2026/27 From - Spending review Topic 1]]+Dataset[[#This Row],[2026/27 From - Spending review Topic 2]]+Dataset[[#This Row],[2026/27 From - Spending review Topic 3]]+Dataset[[#This Row],[2026/27 From - Spending review Topic 4]]+Dataset[[#This Row],[2026/27 From - Other reallocations]]","v":0},{"$f":"Dataset[[#This Row],[2027/28 From - Spending review Topic 1]]+Dataset[[#This Row],[2027/28 From - Spending review Topic 2]]+Dataset[[#This Row],[2027/28 From - Spending review Topic 3]]+Dataset[[#This Row],[2027/28 From - Spending review Topic 4]]+Dataset[[#This Row],[2027/28 From - Other reallocations]]","v":0},{"$f":"Dataset[[#This Row],[2025/26 To - Spending review Topic 1]]+Dataset[[#This Row],[2025/26 To - Spending review Topic 2]]+Dataset[[#This Row],[2025/26 To - Spending review Topic 3]]+Dataset[[#This Row],[2025/26 To - Spending review Topic 4]]+Dataset[[#This Row],[2025/26 To - Other reallocations]]","v":0},{"$f":"Dataset[[#This Row],[2026/27 To - Spending review Topic 1]]+Dataset[[#This Row],[2026/27 To - Spending review Topic 2]]+Dataset[[#This Row],[2026/27 To - Spending review Topic 3]]+Dataset[[#This Row],[2026/27 To - Spending review Topic 4]]+Dataset[[#This Row],[2026/27 To - Other reallocations]]","v":0},{"$f":"Dataset[[#This Row],[2027/28 To - Spending review Topic 1]]+Dataset[[#This Row],[2027/28 To - Spending review Topic 2]]+Dataset[[#This Row],[2027/28 To - Spending review Topic 3]]+Dataset[[#This Row],[2027/28 To - Spending review Topic 4]]+Dataset[[#This Row],[2027/28 To - Other reallocations]]","v":0},{"$f":"Dataset[[#This Row],[2025/26 Reduction]]+Dataset[[#This Row],[2025/26 From - Total]]","v":0},{"$f":"Dataset[[#This Row],[2026/27 Reduction]]+Dataset[[#This Row],[2026/27 From - Total]]","v":0},{"$f":"Dataset[[#This Row],[2027/28 Reduction]]+Dataset[[#This Row],[2027/28 From - Total]]","v":0},{"$f":"Dataset[[#This Row],[2024/25 Reduction]]","v":0},{"$f":"SUM(Dataset[[#This Row],[2025/26 Reduction]],Dataset[[#This Row],[2025/26 From - Total]],Dataset[[#This Row],[2025/26 To - Total]])","v":0},{"$f":"SUM(Dataset[[#This Row],[2026/27 Reduction]],Dataset[[#This Row],[2026/27 From - Total]],Dataset[[#This Row],[2026/27 To - Total]])","v":0},{"$f":"SUM(Dataset[[#This Row],[2027/28 Reduction]],Dataset[[#This Row],[2027/28 From - Total]],Dataset[[#This Row],[2027/28 To - Total]])","v":0},{"$f":"Dataset[[#This Row],[2024/25 Baseline]]+Dataset[[#This Row],[2024/25 Total change]]","v":0},{"$f":"Dataset[[#This Row],[2025/26 Baseline]]+Dataset[[#This Row],[2025/26 Total change]]","v":0},{"$f":"Dataset[[#This Row],[2026/27 Baseline]]+Dataset[[#This Row],[2026/27 Total change]]","v":0},{"$f":"Dataset[[#This Row],[2027/28 Baseline]]+Dataset[[#This Row],[2027/28 Total change]]","v":0}]
["NAT|Non-transfer item","40|Venues and facilities","2025_26","MTEC2025",40,16,1,53287,2015,"40","16","01","053287","002015","40|16|01|002015","01","01","02","40","40","01|01|02|40|40","National","Transport","Direct charge against the National Revenue Fund","International Oil Pollution Compensation Funds","Non-transfer item","Current","Current payments","Goods and services","Venues and facilities","Venues and facilities","Economic development","Economic regulation and infrastructure","NAT",0,0,0,0,0,0,null,0,0,0,0,null,null,null,null,null,null,null,null,null,null,null,null,null,null,null,null,null,null,null,null,null,null,null,null,null,null,null,null,null,null,null,null,null,null,{"$f":"Dataset[[#This Row],[2025/26 From - Spending review Topic 1]]+Dataset[[#This Row],[2025/26 From - Spending review Topic 2]]+Dataset[[#This Row],[2025/26 From - Spending review Topic 3]]+Dataset[[#This Row],[2025/26 From - Spending review Topic 4]]+Dataset[[#This Row],[2025/26 From - Other reallocations]]","v":0},{"$f":"Dataset[[#This Row],[2026/27 From - Spending review Topic 1]]+Dataset[[#This Row],[2026/27 From - Spending review Topic 2]]+Dataset[[#This Row],[2026/27 From - Spending review Topic 3]]+Dataset[[#This Row],[2026/27 From - Spending review Topic 4]]+Dataset[[#This Row],[2026/27 From - Other reallocations]]","v":0},{"$f":"Dataset[[#This Row],[2027/28 From - Spending review Topic 1]]+Dataset[[#This Row],[2027/28 From - Spending review Topic 2]]+Dataset[[#This Row],[2027/28 From - Spending review Topic 3]]+Dataset[[#This Row],[2027/28 From - Spending review Topic 4]]+Dataset[[#This Row],[2027/28 From - Other reallocations]]","v":0},{"$f":"Dataset[[#This Row],[2025/26 To - Spending review Topic 1]]+Dataset[[#This Row],[2025/26 To - Spending review Topic 2]]+Dataset[[#This Row],[2025/26 To - Spending review Topic 3]]+Dataset[[#This Row],[2025/26 To - Spending review Topic 4]]+Dataset[[#This Row],[2025/26 To - Other reallocations]]","v":0},{"$f":"Dataset[[#This Row],[2026/27 To - Spending review Topic 1]]+Dataset[[#This Row],[2026/27 To - Spending review Topic 2]]+Dataset[[#This Row],[2026/27 To - Spending review Topic 3]]+Dataset[[#This Row],[2026/27 To - Spending review Topic 4]]+Dataset[[#This Row],[2026/27 To - Other reallocations]]","v":0},{"$f":"Dataset[[#This Row],[2027/28 To - Spending review Topic 1]]+Dataset[[#This Row],[2027/28 To - Spending review Topic 2]]+Dataset[[#This Row],[2027/28 To - Spending review Topic 3]]+Dataset[[#This Row],[2027/28 To - Spending review Topic 4]]+Dataset[[#This Row],[2027/28 To - Other reallocations]]","v":0},{"$f":"Dataset[[#This Row],[2025/26 Reduction]]+Dataset[[#This Row],[2025/26 From - Total]]","v":0},{"$f":"Dataset[[#This Row],[2026/27 Reduction]]+Dataset[[#This Row],[2026/27 From - Total]]","v":0},{"$f":"Dataset[[#This Row],[2027/28 Reduction]]+Dataset[[#This Row],[2027/28 From - Total]]","v":0},{"$f":"Dataset[[#This Row],[2024/25 Reduction]]","v":0},{"$f":"SUM(Dataset[[#This Row],[2025/26 Reduction]],Dataset[[#This Row],[2025/26 From - Total]],Dataset[[#This Row],[2025/26 To - Total]])","v":0},{"$f":"SUM(Dataset[[#This Row],[2026/27 Reduction]],Dataset[[#This Row],[2026/27 From - Total]],Dataset[[#This Row],[2026/27 To - Total]])","v":0},{"$f":"SUM(Dataset[[#This Row],[2027/28 Reduction]],Dataset[[#This Row],[2027/28 From - Total]],Dataset[[#This Row],[2027/28 To - Total]])","v":0},{"$f":"Dataset[[#This Row],[2024/25 Baseline]]+Dataset[[#This Row],[2024/25 Total change]]","v":0},{"$f":"Dataset[[#This Row],[2025/26 Baseline]]+Dataset[[#This Row],[2025/26 Total change]]","v":0},{"$f":"Dataset[[#This Row],[2026/27 Baseline]]+Dataset[[#This Row],[2026/27 Total change]]","v":0},{"$f":"Dataset[[#This Row],[2027/28 Baseline]]+Dataset[[#This Row],[2027/28 Total change]]","v":0}]
["NAT|Non-transfer item","40|Interest (Incl. interest on unitary payments (PPP))","2025_26","MTEC2025",40,16,1,53288,2016,"40","16","01","053288","002016","40|16|01|002016","01","01","03","41","41","01|01|03|41|41","National","Transport","Direct charge against the National Revenue Fund","International Oil Pollution Compensation Funds","Non-transfer item","Current","Current payments","Interest and rent on land","Interest (Incl. interest on unitary payments (PPP))","Interest (Incl. interest on unitary payments (PPP))","Economic development","Economic regulation and infrastructure","NAT",0,0,0,0,0,0,null,0,0,0,0,null,null,null,null,null,null,null,null,null,null,null,null,null,null,null,null,null,null,null,null,null,null,null,null,null,null,null,null,null,null,null,null,null,null,{"$f":"Dataset[[#This Row],[2025/26 From - Spending review Topic 1]]+Dataset[[#This Row],[2025/26 From - Spending review Topic 2]]+Dataset[[#This Row],[2025/26 From - Spending review Topic 3]]+Dataset[[#This Row],[2025/26 From - Spending review Topic 4]]+Dataset[[#This Row],[2025/26 From - Other reallocations]]","v":0},{"$f":"Dataset[[#This Row],[2026/27 From - Spending review Topic 1]]+Dataset[[#This Row],[2026/27 From - Spending review Topic 2]]+Dataset[[#This Row],[2026/27 From - Spending review Topic 3]]+Dataset[[#This Row],[2026/27 From - Spending review Topic 4]]+Dataset[[#This Row],[2026/27 From - Other reallocations]]","v":0},{"$f":"Dataset[[#This Row],[2027/28 From - Spending review Topic 1]]+Dataset[[#This Row],[2027/28 From - Spending review Topic 2]]+Dataset[[#This Row],[2027/28 From - Spending review Topic 3]]+Dataset[[#This Row],[2027/28 From - Spending review Topic 4]]+Dataset[[#This Row],[2027/28 From - Other reallocations]]","v":0},{"$f":"Dataset[[#This Row],[2025/26 To - Spending review Topic 1]]+Dataset[[#This Row],[2025/26 To - Spending review Topic 2]]+Dataset[[#This Row],[2025/26 To - Spending review Topic 3]]+Dataset[[#This Row],[2025/26 To - Spending review Topic 4]]+Dataset[[#This Row],[2025/26 To - Other reallocations]]","v":0},{"$f":"Dataset[[#This Row],[2026/27 To - Spending review Topic 1]]+Dataset[[#This Row],[2026/27 To - Spending review Topic 2]]+Dataset[[#This Row],[2026/27 To - Spending review Topic 3]]+Dataset[[#This Row],[2026/27 To - Spending review Topic 4]]+Dataset[[#This Row],[2026/27 To - Other reallocations]]","v":0},{"$f":"Dataset[[#This Row],[2027/28 To - Spending review Topic 1]]+Dataset[[#This Row],[2027/28 To - Spending review Topic 2]]+Dataset[[#This Row],[2027/28 To - Spending review Topic 3]]+Dataset[[#This Row],[2027/28 To - Spending review Topic 4]]+Dataset[[#This Row],[2027/28 To - Other reallocations]]","v":0},{"$f":"Dataset[[#This Row],[2025/26 Reduction]]+Dataset[[#This Row],[2025/26 From - Total]]","v":0},{"$f":"Dataset[[#This Row],[2026/27 Reduction]]+Dataset[[#This Row],[2026/27 From - Total]]","v":0},{"$f":"Dataset[[#This Row],[2027/28 Reduction]]+Dataset[[#This Row],[2027/28 From - Total]]","v":0},{"$f":"Dataset[[#This Row],[2024/25 Reduction]]","v":0},{"$f":"SUM(Dataset[[#This Row],[2025/26 Reduction]],Dataset[[#This Row],[2025/26 From - Total]],Dataset[[#This Row],[2025/26 To - Total]])","v":0},{"$f":"SUM(Dataset[[#This Row],[2026/27 Reduction]],Dataset[[#This Row],[2026/27 From - Total]],Dataset[[#This Row],[2026/27 To - Total]])","v":0},{"$f":"SUM(Dataset[[#This Row],[2027/28 Reduction]],Dataset[[#This Row],[2027/28 From - Total]],Dataset[[#This Row],[2027/28 To - Total]])","v":0},{"$f":"Dataset[[#This Row],[2024/25 Baseline]]+Dataset[[#This Row],[2024/25 Total change]]","v":0},{"$f":"Dataset[[#This Row],[2025/26 Baseline]]+Dataset[[#This Row],[2025/26 Total change]]","v":0},{"$f":"Dataset[[#This Row],[2026/27 Baseline]]+Dataset[[#This Row],[2026/27 Total change]]","v":0},{"$f":"Dataset[[#This Row],[2027/28 Baseline]]+Dataset[[#This Row],[2027/28 Total change]]","v":0}]
["NAT|Non-transfer item","40|Rent on land","2025_26","MTEC2025",40,16,1,53289,2017,"40","16","01","053289","002017","40|16|01|002017","01","01","03","42","42","01|01|03|42|42","National","Transport","Direct charge against the National Revenue Fund","International Oil Pollution Compensation Funds","Non-transfer item","Current","Current payments","Interest and rent on land","Rent on land","Rent on land","Economic development","Economic regulation and infrastructure","NAT",0,0,0,0,0,0,null,0,0,0,0,null,null,null,null,null,null,null,null,null,null,null,null,null,null,null,null,null,null,null,null,null,null,null,null,null,null,null,null,null,null,null,null,null,null,{"$f":"Dataset[[#This Row],[2025/26 From - Spending review Topic 1]]+Dataset[[#This Row],[2025/26 From - Spending review Topic 2]]+Dataset[[#This Row],[2025/26 From - Spending review Topic 3]]+Dataset[[#This Row],[2025/26 From - Spending review Topic 4]]+Dataset[[#This Row],[2025/26 From - Other reallocations]]","v":0},{"$f":"Dataset[[#This Row],[2026/27 From - Spending review Topic 1]]+Dataset[[#This Row],[2026/27 From - Spending review Topic 2]]+Dataset[[#This Row],[2026/27 From - Spending review Topic 3]]+Dataset[[#This Row],[2026/27 From - Spending review Topic 4]]+Dataset[[#This Row],[2026/27 From - Other reallocations]]","v":0},{"$f":"Dataset[[#This Row],[2027/28 From - Spending review Topic 1]]+Dataset[[#This Row],[2027/28 From - Spending review Topic 2]]+Dataset[[#This Row],[2027/28 From - Spending review Topic 3]]+Dataset[[#This Row],[2027/28 From - Spending review Topic 4]]+Dataset[[#This Row],[2027/28 From - Other reallocations]]","v":0},{"$f":"Dataset[[#This Row],[2025/26 To - Spending review Topic 1]]+Dataset[[#This Row],[2025/26 To - Spending review Topic 2]]+Dataset[[#This Row],[2025/26 To - Spending review Topic 3]]+Dataset[[#This Row],[2025/26 To - Spending review Topic 4]]+Dataset[[#This Row],[2025/26 To - Other reallocations]]","v":0},{"$f":"Dataset[[#This Row],[2026/27 To - Spending review Topic 1]]+Dataset[[#This Row],[2026/27 To - Spending review Topic 2]]+Dataset[[#This Row],[2026/27 To - Spending review Topic 3]]+Dataset[[#This Row],[2026/27 To - Spending review Topic 4]]+Dataset[[#This Row],[2026/27 To - Other reallocations]]","v":0},{"$f":"Dataset[[#This Row],[2027/28 To - Spending review Topic 1]]+Dataset[[#This Row],[2027/28 To - Spending review Topic 2]]+Dataset[[#This Row],[2027/28 To - Spending review Topic 3]]+Dataset[[#This Row],[2027/28 To - Spending review Topic 4]]+Dataset[[#This Row],[2027/28 To - Other reallocations]]","v":0},{"$f":"Dataset[[#This Row],[2025/26 Reduction]]+Dataset[[#This Row],[2025/26 From - Total]]","v":0},{"$f":"Dataset[[#This Row],[2026/27 Reduction]]+Dataset[[#This Row],[2026/27 From - Total]]","v":0},{"$f":"Dataset[[#This Row],[2027/28 Reduction]]+Dataset[[#This Row],[2027/28 From - Total]]","v":0},{"$f":"Dataset[[#This Row],[2024/25 Reduction]]","v":0},{"$f":"SUM(Dataset[[#This Row],[2025/26 Reduction]],Dataset[[#This Row],[2025/26 From - Total]],Dataset[[#This Row],[2025/26 To - Total]])","v":0},{"$f":"SUM(Dataset[[#This Row],[2026/27 Reduction]],Dataset[[#This Row],[2026/27 From - Total]],Dataset[[#This Row],[2026/27 To - Total]])","v":0},{"$f":"SUM(Dataset[[#This Row],[2027/28 Reduction]],Dataset[[#This Row],[2027/28 From - Total]],Dataset[[#This Row],[2027/28 To - Total]])","v":0},{"$f":"Dataset[[#This Row],[2024/25 Baseline]]+Dataset[[#This Row],[2024/25 Total change]]","v":0},{"$f":"Dataset[[#This Row],[2025/26 Baseline]]+Dataset[[#This Row],[2025/26 Total change]]","v":0},{"$f":"Dataset[[#This Row],[2026/27 Baseline]]+Dataset[[#This Row],[2026/27 Total change]]","v":0},{"$f":"Dataset[[#This Row],[2027/28 Baseline]]+Dataset[[#This Row],[2027/28 Total change]]","v":0}]
["NAT|International Oil Pollution Compensation fund","40|Foreign governments and international organisations","2025_26","MTEC2025",40,16,1,53290,2018,"40","16","01","053290","002018","40|16|01|002018","01","02","07","48","50","01|02|07|48|50","National","Transport","Direct charge against the National Revenue Fund","International Oil Pollution Compensation Funds","International Oil Pollution Compensation fund","Current","Transfers and subsidies","Foreign governments and international organisations","Foreign governments and international organisations","Foreign governments and international organisations","Economic development","Economic regulation and infrastructure","NAT",0,3372,1542,12564,12564,12564,null,13128,13716,14344,14993,null,null,null,null,null,null,null,null,null,null,null,null,null,null,null,null,null,null,null,null,null,null,null,null,null,null,null,null,null,null,null,null,null,null,{"$f":"Dataset[[#This Row],[2025/26 From - Spending review Topic 1]]+Dataset[[#This Row],[2025/26 From - Spending review Topic 2]]+Dataset[[#This Row],[2025/26 From - Spending review Topic 3]]+Dataset[[#This Row],[2025/26 From - Spending review Topic 4]]+Dataset[[#This Row],[2025/26 From - Other reallocations]]","v":0},{"$f":"Dataset[[#This Row],[2026/27 From - Spending review Topic 1]]+Dataset[[#This Row],[2026/27 From - Spending review Topic 2]]+Dataset[[#This Row],[2026/27 From - Spending review Topic 3]]+Dataset[[#This Row],[2026/27 From - Spending review Topic 4]]+Dataset[[#This Row],[2026/27 From - Other reallocations]]","v":0},{"$f":"Dataset[[#This Row],[2027/28 From - Spending review Topic 1]]+Dataset[[#This Row],[2027/28 From - Spending review Topic 2]]+Dataset[[#This Row],[2027/28 From - Spending review Topic 3]]+Dataset[[#This Row],[2027/28 From - Spending review Topic 4]]+Dataset[[#This Row],[2027/28 From - Other reallocations]]","v":0},{"$f":"Dataset[[#This Row],[2025/26 To - Spending review Topic 1]]+Dataset[[#This Row],[2025/26 To - Spending review Topic 2]]+Dataset[[#This Row],[2025/26 To - Spending review Topic 3]]+Dataset[[#This Row],[2025/26 To - Spending review Topic 4]]+Dataset[[#This Row],[2025/26 To - Other reallocations]]","v":0},{"$f":"Dataset[[#This Row],[2026/27 To - Spending review Topic 1]]+Dataset[[#This Row],[2026/27 To - Spending review Topic 2]]+Dataset[[#This Row],[2026/27 To - Spending review Topic 3]]+Dataset[[#This Row],[2026/27 To - Spending review Topic 4]]+Dataset[[#This Row],[2026/27 To - Other reallocations]]","v":0},{"$f":"Dataset[[#This Row],[2027/28 To - Spending review Topic 1]]+Dataset[[#This Row],[2027/28 To - Spending review Topic 2]]+Dataset[[#This Row],[2027/28 To - Spending review Topic 3]]+Dataset[[#This Row],[2027/28 To - Spending review Topic 4]]+Dataset[[#This Row],[2027/28 To - Other reallocations]]","v":0},{"$f":"Dataset[[#This Row],[2025/26 Reduction]]+Dataset[[#This Row],[2025/26 From - Total]]","v":0},{"$f":"Dataset[[#This Row],[2026/27 Reduction]]+Dataset[[#This Row],[2026/27 From - Total]]","v":0},{"$f":"Dataset[[#This Row],[2027/28 Reduction]]+Dataset[[#This Row],[2027/28 From - Total]]","v":0},{"$f":"Dataset[[#This Row],[2024/25 Reduction]]","v":0},{"$f":"SUM(Dataset[[#This Row],[2025/26 Reduction]],Dataset[[#This Row],[2025/26 From - Total]],Dataset[[#This Row],[2025/26 To - Total]])","v":0},{"$f":"SUM(Dataset[[#This Row],[2026/27 Reduction]],Dataset[[#This Row],[2026/27 From - Total]],Dataset[[#This Row],[2026/27 To - Total]])","v":0},{"$f":"SUM(Dataset[[#This Row],[2027/28 Reduction]],Dataset[[#This Row],[2027/28 From - Total]],Dataset[[#This Row],[2027/28 To - Total]])","v":0},{"$f":"Dataset[[#This Row],[2024/25 Baseline]]+Dataset[[#This Row],[2024/25 Total change]]","v":13128},{"$f":"Dataset[[#This Row],[2025/26 Baseline]]+Dataset[[#This Row],[2025/26 Total change]]","v":13716},{"$f":"Dataset[[#This Row],[2026/27 Baseline]]+Dataset[[#This Row],[2026/27 Total change]]","v":14344},{"$f":"Dataset[[#This Row],[2027/28 Baseline]]+Dataset[[#This Row],[2027/28 Total change]]","v":14993}]
["NAT|Non-transfer item","40|Buildings","2025_26","MTEC2025",40,16,1,53291,2019,"40","16","01","053291","002019","40|16|01|002019","02","03","11","54","58","02|03|11|54|58","National","Transport","Direct charge against the National Revenue Fund","International Oil Pollution Compensation Funds","Non-transfer item","Capital","Payments for capital assets","Buildings and other fixed structures","Buildings","Buildings","Economic development","Economic regulation and infrastructure","NAT",0,0,0,0,0,0,null,0,0,0,0,null,null,null,null,null,null,null,null,null,null,null,null,null,null,null,null,null,null,null,null,null,null,null,null,null,null,null,null,null,null,null,null,null,null,{"$f":"Dataset[[#This Row],[2025/26 From - Spending review Topic 1]]+Dataset[[#This Row],[2025/26 From - Spending review Topic 2]]+Dataset[[#This Row],[2025/26 From - Spending review Topic 3]]+Dataset[[#This Row],[2025/26 From - Spending review Topic 4]]+Dataset[[#This Row],[2025/26 From - Other reallocations]]","v":0},{"$f":"Dataset[[#This Row],[2026/27 From - Spending review Topic 1]]+Dataset[[#This Row],[2026/27 From - Spending review Topic 2]]+Dataset[[#This Row],[2026/27 From - Spending review Topic 3]]+Dataset[[#This Row],[2026/27 From - Spending review Topic 4]]+Dataset[[#This Row],[2026/27 From - Other reallocations]]","v":0},{"$f":"Dataset[[#This Row],[2027/28 From - Spending review Topic 1]]+Dataset[[#This Row],[2027/28 From - Spending review Topic 2]]+Dataset[[#This Row],[2027/28 From - Spending review Topic 3]]+Dataset[[#This Row],[2027/28 From - Spending review Topic 4]]+Dataset[[#This Row],[2027/28 From - Other reallocations]]","v":0},{"$f":"Dataset[[#This Row],[2025/26 To - Spending review Topic 1]]+Dataset[[#This Row],[2025/26 To - Spending review Topic 2]]+Dataset[[#This Row],[2025/26 To - Spending review Topic 3]]+Dataset[[#This Row],[2025/26 To - Spending review Topic 4]]+Dataset[[#This Row],[2025/26 To - Other reallocations]]","v":0},{"$f":"Dataset[[#This Row],[2026/27 To - Spending review Topic 1]]+Dataset[[#This Row],[2026/27 To - Spending review Topic 2]]+Dataset[[#This Row],[2026/27 To - Spending review Topic 3]]+Dataset[[#This Row],[2026/27 To - Spending review Topic 4]]+Dataset[[#This Row],[2026/27 To - Other reallocations]]","v":0},{"$f":"Dataset[[#This Row],[2027/28 To - Spending review Topic 1]]+Dataset[[#This Row],[2027/28 To - Spending review Topic 2]]+Dataset[[#This Row],[2027/28 To - Spending review Topic 3]]+Dataset[[#This Row],[2027/28 To - Spending review Topic 4]]+Dataset[[#This Row],[2027/28 To - Other reallocations]]","v":0},{"$f":"Dataset[[#This Row],[2025/26 Reduction]]+Dataset[[#This Row],[2025/26 From - Total]]","v":0},{"$f":"Dataset[[#This Row],[2026/27 Reduction]]+Dataset[[#This Row],[2026/27 From - Total]]","v":0},{"$f":"Dataset[[#This Row],[2027/28 Reduction]]+Dataset[[#This Row],[2027/28 From - Total]]","v":0},{"$f":"Dataset[[#This Row],[2024/25 Reduction]]","v":0},{"$f":"SUM(Dataset[[#This Row],[2025/26 Reduction]],Dataset[[#This Row],[2025/26 From - Total]],Dataset[[#This Row],[2025/26 To - Total]])","v":0},{"$f":"SUM(Dataset[[#This Row],[2026/27 Reduction]],Dataset[[#This Row],[2026/27 From - Total]],Dataset[[#This Row],[2026/27 To - Total]])","v":0},{"$f":"SUM(Dataset[[#This Row],[2027/28 Reduction]],Dataset[[#This Row],[2027/28 From - Total]],Dataset[[#This Row],[2027/28 To - Total]])","v":0},{"$f":"Dataset[[#This Row],[2024/25 Baseline]]+Dataset[[#This Row],[2024/25 Total change]]","v":0},{"$f":"Dataset[[#This Row],[2025/26 Baseline]]+Dataset[[#This Row],[2025/26 Total change]]","v":0},{"$f":"Dataset[[#This Row],[2026/27 Baseline]]+Dataset[[#This Row],[2026/27 Total change]]","v":0},{"$f":"Dataset[[#This Row],[2027/28 Baseline]]+Dataset[[#This Row],[2027/28 Total change]]","v":0}]
["NAT|Non-transfer item","40|Other fixed structures","2025_26","MTEC2025",40,16,1,53292,2020,"40","16","01","053292","002020","40|16|01|002020","02","03","11","55","59","02|03|11|55|59","National","Transport","Direct charge against the National Revenue Fund","International Oil Pollution Compensation Funds","Non-transfer item","Capital","Payments for capital assets","Buildings and other fixed structures","Other fixed structures","Other fixed structures","Economic development","Economic regulation and infrastructure","NAT",0,0,0,0,0,0,null,0,0,0,0,null,null,null,null,null,null,null,null,null,null,null,null,null,null,null,null,null,null,null,null,null,null,null,null,null,null,null,null,null,null,null,null,null,null,{"$f":"Dataset[[#This Row],[2025/26 From - Spending review Topic 1]]+Dataset[[#This Row],[2025/26 From - Spending review Topic 2]]+Dataset[[#This Row],[2025/26 From - Spending review Topic 3]]+Dataset[[#This Row],[2025/26 From - Spending review Topic 4]]+Dataset[[#This Row],[2025/26 From - Other reallocations]]","v":0},{"$f":"Dataset[[#This Row],[2026/27 From - Spending review Topic 1]]+Dataset[[#This Row],[2026/27 From - Spending review Topic 2]]+Dataset[[#This Row],[2026/27 From - Spending review Topic 3]]+Dataset[[#This Row],[2026/27 From - Spending review Topic 4]]+Dataset[[#This Row],[2026/27 From - Other reallocations]]","v":0},{"$f":"Dataset[[#This Row],[2027/28 From - Spending review Topic 1]]+Dataset[[#This Row],[2027/28 From - Spending review Topic 2]]+Dataset[[#This Row],[2027/28 From - Spending review Topic 3]]+Dataset[[#This Row],[2027/28 From - Spending review Topic 4]]+Dataset[[#This Row],[2027/28 From - Other reallocations]]","v":0},{"$f":"Dataset[[#This Row],[2025/26 To - Spending review Topic 1]]+Dataset[[#This Row],[2025/26 To - Spending review Topic 2]]+Dataset[[#This Row],[2025/26 To - Spending review Topic 3]]+Dataset[[#This Row],[2025/26 To - Spending review Topic 4]]+Dataset[[#This Row],[2025/26 To - Other reallocations]]","v":0},{"$f":"Dataset[[#This Row],[2026/27 To - Spending review Topic 1]]+Dataset[[#This Row],[2026/27 To - Spending review Topic 2]]+Dataset[[#This Row],[2026/27 To - Spending review Topic 3]]+Dataset[[#This Row],[2026/27 To - Spending review Topic 4]]+Dataset[[#This Row],[2026/27 To - Other reallocations]]","v":0},{"$f":"Dataset[[#This Row],[2027/28 To - Spending review Topic 1]]+Dataset[[#This Row],[2027/28 To - Spending review Topic 2]]+Dataset[[#This Row],[2027/28 To - Spending review Topic 3]]+Dataset[[#This Row],[2027/28 To - Spending review Topic 4]]+Dataset[[#This Row],[2027/28 To - Other reallocations]]","v":0},{"$f":"Dataset[[#This Row],[2025/26 Reduction]]+Dataset[[#This Row],[2025/26 From - Total]]","v":0},{"$f":"Dataset[[#This Row],[2026/27 Reduction]]+Dataset[[#This Row],[2026/27 From - Total]]","v":0},{"$f":"Dataset[[#This Row],[2027/28 Reduction]]+Dataset[[#This Row],[2027/28 From - Total]]","v":0},{"$f":"Dataset[[#This Row],[2024/25 Reduction]]","v":0},{"$f":"SUM(Dataset[[#This Row],[2025/26 Reduction]],Dataset[[#This Row],[2025/26 From - Total]],Dataset[[#This Row],[2025/26 To - Total]])","v":0},{"$f":"SUM(Dataset[[#This Row],[2026/27 Reduction]],Dataset[[#This Row],[2026/27 From - Total]],Dataset[[#This Row],[2026/27 To - Total]])","v":0},{"$f":"SUM(Dataset[[#This Row],[2027/28 Reduction]],Dataset[[#This Row],[2027/28 From - Total]],Dataset[[#This Row],[2027/28 To - Total]])","v":0},{"$f":"Dataset[[#This Row],[2024/25 Baseline]]+Dataset[[#This Row],[2024/25 Total change]]","v":0},{"$f":"Dataset[[#This Row],[2025/26 Baseline]]+Dataset[[#This Row],[2025/26 Total change]]","v":0},{"$f":"Dataset[[#This Row],[2026/27 Baseline]]+Dataset[[#This Row],[2026/27 Total change]]","v":0},{"$f":"Dataset[[#This Row],[2027/28 Baseline]]+Dataset[[#This Row],[2027/28 Total change]]","v":0}]
["NAT|Non-transfer item","40|Transport equipment","2025_26","MTEC2025",40,16,1,53293,2021,"40","16","01","053293","002021","40|16|01|002021","02","03","12","56","60","02|03|12|56|60","National","Transport","Direct charge against the National Revenue Fund","International Oil Pollution Compensation Funds","Non-transfer item","Capital","Payments for capital assets","Machinery and equipment","Transport equipment","Transport equipment","Economic development","Economic regulation and infrastructure","NAT",0,0,0,0,0,0,null,0,0,0,0,null,null,null,null,null,null,null,null,null,null,null,null,null,null,null,null,null,null,null,null,null,null,null,null,null,null,null,null,null,null,null,null,null,null,{"$f":"Dataset[[#This Row],[2025/26 From - Spending review Topic 1]]+Dataset[[#This Row],[2025/26 From - Spending review Topic 2]]+Dataset[[#This Row],[2025/26 From - Spending review Topic 3]]+Dataset[[#This Row],[2025/26 From - Spending review Topic 4]]+Dataset[[#This Row],[2025/26 From - Other reallocations]]","v":0},{"$f":"Dataset[[#This Row],[2026/27 From - Spending review Topic 1]]+Dataset[[#This Row],[2026/27 From - Spending review Topic 2]]+Dataset[[#This Row],[2026/27 From - Spending review Topic 3]]+Dataset[[#This Row],[2026/27 From - Spending review Topic 4]]+Dataset[[#This Row],[2026/27 From - Other reallocations]]","v":0},{"$f":"Dataset[[#This Row],[2027/28 From - Spending review Topic 1]]+Dataset[[#This Row],[2027/28 From - Spending review Topic 2]]+Dataset[[#This Row],[2027/28 From - Spending review Topic 3]]+Dataset[[#This Row],[2027/28 From - Spending review Topic 4]]+Dataset[[#This Row],[2027/28 From - Other reallocations]]","v":0},{"$f":"Dataset[[#This Row],[2025/26 To - Spending review Topic 1]]+Dataset[[#This Row],[2025/26 To - Spending review Topic 2]]+Dataset[[#This Row],[2025/26 To - Spending review Topic 3]]+Dataset[[#This Row],[2025/26 To - Spending review Topic 4]]+Dataset[[#This Row],[2025/26 To - Other reallocations]]","v":0},{"$f":"Dataset[[#This Row],[2026/27 To - Spending review Topic 1]]+Dataset[[#This Row],[2026/27 To - Spending review Topic 2]]+Dataset[[#This Row],[2026/27 To - Spending review Topic 3]]+Dataset[[#This Row],[2026/27 To - Spending review Topic 4]]+Dataset[[#This Row],[2026/27 To - Other reallocations]]","v":0},{"$f":"Dataset[[#This Row],[2027/28 To - Spending review Topic 1]]+Dataset[[#This Row],[2027/28 To - Spending review Topic 2]]+Dataset[[#This Row],[2027/28 To - Spending review Topic 3]]+Dataset[[#This Row],[2027/28 To - Spending review Topic 4]]+Dataset[[#This Row],[2027/28 To - Other reallocations]]","v":0},{"$f":"Dataset[[#This Row],[2025/26 Reduction]]+Dataset[[#This Row],[2025/26 From - Total]]","v":0},{"$f":"Dataset[[#This Row],[2026/27 Reduction]]+Dataset[[#This Row],[2026/27 From - Total]]","v":0},{"$f":"Dataset[[#This Row],[2027/28 Reduction]]+Dataset[[#This Row],[2027/28 From - Total]]","v":0},{"$f":"Dataset[[#This Row],[2024/25 Reduction]]","v":0},{"$f":"SUM(Dataset[[#This Row],[2025/26 Reduction]],Dataset[[#This Row],[2025/26 From - Total]],Dataset[[#This Row],[2025/26 To - Total]])","v":0},{"$f":"SUM(Dataset[[#This Row],[2026/27 Reduction]],Dataset[[#This Row],[2026/27 From - Total]],Dataset[[#This Row],[2026/27 To - Total]])","v":0},{"$f":"SUM(Dataset[[#This Row],[2027/28 Reduction]],Dataset[[#This Row],[2027/28 From - Total]],Dataset[[#This Row],[2027/28 To - Total]])","v":0},{"$f":"Dataset[[#This Row],[2024/25 Baseline]]+Dataset[[#This Row],[2024/25 Total change]]","v":0},{"$f":"Dataset[[#This Row],[2025/26 Baseline]]+Dataset[[#This Row],[2025/26 Total change]]","v":0},{"$f":"Dataset[[#This Row],[2026/27 Baseline]]+Dataset[[#This Row],[2026/27 Total change]]","v":0},{"$f":"Dataset[[#This Row],[2027/28 Baseline]]+Dataset[[#This Row],[2027/28 Total change]]","v":0}]
["NAT|Non-transfer item","40|Other machinery and equipment","2025_26","MTEC2025",40,16,1,53294,2022,"40","16","01","053294","002022","40|16|01|002022","02","03","12","57","61","02|03|12|57|61","National","Transport","Direct charge against the National Revenue Fund","International Oil Pollution Compensation Funds","Non-transfer item","Capital","Payments for capital assets","Machinery and equipment","Other machinery and equipment","Other machinery and equipment","Economic development","Economic regulation and infrastructure","NAT",0,0,0,0,0,0,null,0,0,0,0,null,null,null,null,null,null,null,null,null,null,null,null,null,null,null,null,null,null,null,null,null,null,null,null,null,null,null,null,null,null,null,null,null,null,{"$f":"Dataset[[#This Row],[2025/26 From - Spending review Topic 1]]+Dataset[[#This Row],[2025/26 From - Spending review Topic 2]]+Dataset[[#This Row],[2025/26 From - Spending review Topic 3]]+Dataset[[#This Row],[2025/26 From - Spending review Topic 4]]+Dataset[[#This Row],[2025/26 From - Other reallocations]]","v":0},{"$f":"Dataset[[#This Row],[2026/27 From - Spending review Topic 1]]+Dataset[[#This Row],[2026/27 From - Spending review Topic 2]]+Dataset[[#This Row],[2026/27 From - Spending review Topic 3]]+Dataset[[#This Row],[2026/27 From - Spending review Topic 4]]+Dataset[[#This Row],[2026/27 From - Other reallocations]]","v":0},{"$f":"Dataset[[#This Row],[2027/28 From - Spending review Topic 1]]+Dataset[[#This Row],[2027/28 From - Spending review Topic 2]]+Dataset[[#This Row],[2027/28 From - Spending review Topic 3]]+Dataset[[#This Row],[2027/28 From - Spending review Topic 4]]+Dataset[[#This Row],[2027/28 From - Other reallocations]]","v":0},{"$f":"Dataset[[#This Row],[2025/26 To - Spending review Topic 1]]+Dataset[[#This Row],[2025/26 To - Spending review Topic 2]]+Dataset[[#This Row],[2025/26 To - Spending review Topic 3]]+Dataset[[#This Row],[2025/26 To - Spending review Topic 4]]+Dataset[[#This Row],[2025/26 To - Other reallocations]]","v":0},{"$f":"Dataset[[#This Row],[2026/27 To - Spending review Topic 1]]+Dataset[[#This Row],[2026/27 To - Spending review Topic 2]]+Dataset[[#This Row],[2026/27 To - Spending review Topic 3]]+Dataset[[#This Row],[2026/27 To - Spending review Topic 4]]+Dataset[[#This Row],[2026/27 To - Other reallocations]]","v":0},{"$f":"Dataset[[#This Row],[2027/28 To - Spending review Topic 1]]+Dataset[[#This Row],[2027/28 To - Spending review Topic 2]]+Dataset[[#This Row],[2027/28 To - Spending review Topic 3]]+Dataset[[#This Row],[2027/28 To - Spending review Topic 4]]+Dataset[[#This Row],[2027/28 To - Other reallocations]]","v":0},{"$f":"Dataset[[#This Row],[2025/26 Reduction]]+Dataset[[#This Row],[2025/26 From - Total]]","v":0},{"$f":"Dataset[[#This Row],[2026/27 Reduction]]+Dataset[[#This Row],[2026/27 From - Total]]","v":0},{"$f":"Dataset[[#This Row],[2027/28 Reduction]]+Dataset[[#This Row],[2027/28 From - Total]]","v":0},{"$f":"Dataset[[#This Row],[2024/25 Reduction]]","v":0},{"$f":"SUM(Dataset[[#This Row],[2025/26 Reduction]],Dataset[[#This Row],[2025/26 From - Total]],Dataset[[#This Row],[2025/26 To - Total]])","v":0},{"$f":"SUM(Dataset[[#This Row],[2026/27 Reduction]],Dataset[[#This Row],[2026/27 From - Total]],Dataset[[#This Row],[2026/27 To - Total]])","v":0},{"$f":"SUM(Dataset[[#This Row],[2027/28 Reduction]],Dataset[[#This Row],[2027/28 From - Total]],Dataset[[#This Row],[2027/28 To - Total]])","v":0},{"$f":"Dataset[[#This Row],[2024/25 Baseline]]+Dataset[[#This Row],[2024/25 Total change]]","v":0},{"$f":"Dataset[[#This Row],[2025/26 Baseline]]+Dataset[[#This Row],[2025/26 Total change]]","v":0},{"$f":"Dataset[[#This Row],[2026/27 Baseline]]+Dataset[[#This Row],[2026/27 Total change]]","v":0},{"$f":"Dataset[[#This Row],[2027/28 Baseline]]+Dataset[[#This Row],[2027/28 Total change]]","v":0}]
["NAT|Non-transfer item","40|Heritage assets","2025_26","MTEC2025",40,16,1,53295,2023,"40","16","01","053295","002023","40|16|01|002023","02","03","13","58","62","02|03|13|58|62","National","Transport","Direct charge against the National Revenue Fund","International Oil Pollution Compensation Funds","Non-transfer item","Capital","Payments for capital assets","Heritage assets","Heritage assets","Heritage assets","Economic development","Economic regulation and infrastructure","NAT",0,0,0,0,0,0,null,0,0,0,0,null,null,null,null,null,null,null,null,null,null,null,null,null,null,null,null,null,null,null,null,null,null,null,null,null,null,null,null,null,null,null,null,null,null,{"$f":"Dataset[[#This Row],[2025/26 From - Spending review Topic 1]]+Dataset[[#This Row],[2025/26 From - Spending review Topic 2]]+Dataset[[#This Row],[2025/26 From - Spending review Topic 3]]+Dataset[[#This Row],[2025/26 From - Spending review Topic 4]]+Dataset[[#This Row],[2025/26 From - Other reallocations]]","v":0},{"$f":"Dataset[[#This Row],[2026/27 From - Spending review Topic 1]]+Dataset[[#This Row],[2026/27 From - Spending review Topic 2]]+Dataset[[#This Row],[2026/27 From - Spending review Topic 3]]+Dataset[[#This Row],[2026/27 From - Spending review Topic 4]]+Dataset[[#This Row],[2026/27 From - Other reallocations]]","v":0},{"$f":"Dataset[[#This Row],[2027/28 From - Spending review Topic 1]]+Dataset[[#This Row],[2027/28 From - Spending review Topic 2]]+Dataset[[#This Row],[2027/28 From - Spending review Topic 3]]+Dataset[[#This Row],[2027/28 From - Spending review Topic 4]]+Dataset[[#This Row],[2027/28 From - Other reallocations]]","v":0},{"$f":"Dataset[[#This Row],[2025/26 To - Spending review Topic 1]]+Dataset[[#This Row],[2025/26 To - Spending review Topic 2]]+Dataset[[#This Row],[2025/26 To - Spending review Topic 3]]+Dataset[[#This Row],[2025/26 To - Spending review Topic 4]]+Dataset[[#This Row],[2025/26 To - Other reallocations]]","v":0},{"$f":"Dataset[[#This Row],[2026/27 To - Spending review Topic 1]]+Dataset[[#This Row],[2026/27 To - Spending review Topic 2]]+Dataset[[#This Row],[2026/27 To - Spending review Topic 3]]+Dataset[[#This Row],[2026/27 To - Spending review Topic 4]]+Dataset[[#This Row],[2026/27 To - Other reallocations]]","v":0},{"$f":"Dataset[[#This Row],[2027/28 To - Spending review Topic 1]]+Dataset[[#This Row],[2027/28 To - Spending review Topic 2]]+Dataset[[#This Row],[2027/28 To - Spending review Topic 3]]+Dataset[[#This Row],[2027/28 To - Spending review Topic 4]]+Dataset[[#This Row],[2027/28 To - Other reallocations]]","v":0},{"$f":"Dataset[[#This Row],[2025/26 Reduction]]+Dataset[[#This Row],[2025/26 From - Total]]","v":0},{"$f":"Dataset[[#This Row],[2026/27 Reduction]]+Dataset[[#This Row],[2026/27 From - Total]]","v":0},{"$f":"Dataset[[#This Row],[2027/28 Reduction]]+Dataset[[#This Row],[2027/28 From - Total]]","v":0},{"$f":"Dataset[[#This Row],[2024/25 Reduction]]","v":0},{"$f":"SUM(Dataset[[#This Row],[2025/26 Reduction]],Dataset[[#This Row],[2025/26 From - Total]],Dataset[[#This Row],[2025/26 To - Total]])","v":0},{"$f":"SUM(Dataset[[#This Row],[2026/27 Reduction]],Dataset[[#This Row],[2026/27 From - Total]],Dataset[[#This Row],[2026/27 To - Total]])","v":0},{"$f":"SUM(Dataset[[#This Row],[2027/28 Reduction]],Dataset[[#This Row],[2027/28 From - Total]],Dataset[[#This Row],[2027/28 To - Total]])","v":0},{"$f":"Dataset[[#This Row],[2024/25 Baseline]]+Dataset[[#This Row],[2024/25 Total change]]","v":0},{"$f":"Dataset[[#This Row],[2025/26 Baseline]]+Dataset[[#This Row],[2025/26 Total change]]","v":0},{"$f":"Dataset[[#This Row],[2026/27 Baseline]]+Dataset[[#This Row],[2026/27 Total change]]","v":0},{"$f":"Dataset[[#This Row],[2027/28 Baseline]]+Dataset[[#This Row],[2027/28 Total change]]","v":0}]
["NAT|Non-transfer item","40|Specialised military assets","2025_26","MTEC2025",40,16,1,53296,2024,"40","16","01","053296","002024","40|16|01|002024","02","03","14","59","63","02|03|14|59|63","National","Transport","Direct charge against the National Revenue Fund","International Oil Pollution Compensation Funds","Non-transfer item","Capital","Payments for capital assets","Specialised military assets","Specialised military assets","Specialised military assets","Economic development","Economic regulation and infrastructure","NAT",0,0,0,0,0,0,null,0,0,0,0,null,null,null,null,null,null,null,null,null,null,null,null,null,null,null,null,null,null,null,null,null,null,null,null,null,null,null,null,null,null,null,null,null,null,{"$f":"Dataset[[#This Row],[2025/26 From - Spending review Topic 1]]+Dataset[[#This Row],[2025/26 From - Spending review Topic 2]]+Dataset[[#This Row],[2025/26 From - Spending review Topic 3]]+Dataset[[#This Row],[2025/26 From - Spending review Topic 4]]+Dataset[[#This Row],[2025/26 From - Other reallocations]]","v":0},{"$f":"Dataset[[#This Row],[2026/27 From - Spending review Topic 1]]+Dataset[[#This Row],[2026/27 From - Spending review Topic 2]]+Dataset[[#This Row],[2026/27 From - Spending review Topic 3]]+Dataset[[#This Row],[2026/27 From - Spending review Topic 4]]+Dataset[[#This Row],[2026/27 From - Other reallocations]]","v":0},{"$f":"Dataset[[#This Row],[2027/28 From - Spending review Topic 1]]+Dataset[[#This Row],[2027/28 From - Spending review Topic 2]]+Dataset[[#This Row],[2027/28 From - Spending review Topic 3]]+Dataset[[#This Row],[2027/28 From - Spending review Topic 4]]+Dataset[[#This Row],[2027/28 From - Other reallocations]]","v":0},{"$f":"Dataset[[#This Row],[2025/26 To - Spending review Topic 1]]+Dataset[[#This Row],[2025/26 To - Spending review Topic 2]]+Dataset[[#This Row],[2025/26 To - Spending review Topic 3]]+Dataset[[#This Row],[2025/26 To - Spending review Topic 4]]+Dataset[[#This Row],[2025/26 To - Other reallocations]]","v":0},{"$f":"Dataset[[#This Row],[2026/27 To - Spending review Topic 1]]+Dataset[[#This Row],[2026/27 To - Spending review Topic 2]]+Dataset[[#This Row],[2026/27 To - Spending review Topic 3]]+Dataset[[#This Row],[2026/27 To - Spending review Topic 4]]+Dataset[[#This Row],[2026/27 To - Other reallocations]]","v":0},{"$f":"Dataset[[#This Row],[2027/28 To - Spending review Topic 1]]+Dataset[[#This Row],[2027/28 To - Spending review Topic 2]]+Dataset[[#This Row],[2027/28 To - Spending review Topic 3]]+Dataset[[#This Row],[2027/28 To - Spending review Topic 4]]+Dataset[[#This Row],[2027/28 To - Other reallocations]]","v":0},{"$f":"Dataset[[#This Row],[2025/26 Reduction]]+Dataset[[#This Row],[2025/26 From - Total]]","v":0},{"$f":"Dataset[[#This Row],[2026/27 Reduction]]+Dataset[[#This Row],[2026/27 From - Total]]","v":0},{"$f":"Dataset[[#This Row],[2027/28 Reduction]]+Dataset[[#This Row],[2027/28 From - Total]]","v":0},{"$f":"Dataset[[#This Row],[2024/25 Reduction]]","v":0},{"$f":"SUM(Dataset[[#This Row],[2025/26 Reduction]],Dataset[[#This Row],[2025/26 From - Total]],Dataset[[#This Row],[2025/26 To - Total]])","v":0},{"$f":"SUM(Dataset[[#This Row],[2026/27 Reduction]],Dataset[[#This Row],[2026/27 From - Total]],Dataset[[#This Row],[2026/27 To - Total]])","v":0},{"$f":"SUM(Dataset[[#This Row],[2027/28 Reduction]],Dataset[[#This Row],[2027/28 From - Total]],Dataset[[#This Row],[2027/28 To - Total]])","v":0},{"$f":"Dataset[[#This Row],[2024/25 Baseline]]+Dataset[[#This Row],[2024/25 Total change]]","v":0},{"$f":"Dataset[[#This Row],[2025/26 Baseline]]+Dataset[[#This Row],[2025/26 Total change]]","v":0},{"$f":"Dataset[[#This Row],[2026/27 Baseline]]+Dataset[[#This Row],[2026/27 Total change]]","v":0},{"$f":"Dataset[[#This Row],[2027/28 Baseline]]+Dataset[[#This Row],[2027/28 Total change]]","v":0}]
["NAT|Non-transfer item","40|Biological assets","2025_26","MTEC2025",40,16,1,53297,2025,"40","16","01","053297","002025","40|16|01|002025","02","03","15","60","64","02|03|15|60|64","National","Transport","Direct charge against the National Revenue Fund","International Oil Pollution Compensation Funds","Non-transfer item","Capital","Payments for capital assets","Biological assets","Biological assets","Biological assets","Economic development","Economic regulation and infrastructure","NAT",0,0,0,0,0,0,null,0,0,0,0,null,null,null,null,null,null,null,null,null,null,null,null,null,null,null,null,null,null,null,null,null,null,null,null,null,null,null,null,null,null,null,null,null,null,{"$f":"Dataset[[#This Row],[2025/26 From - Spending review Topic 1]]+Dataset[[#This Row],[2025/26 From - Spending review Topic 2]]+Dataset[[#This Row],[2025/26 From - Spending review Topic 3]]+Dataset[[#This Row],[2025/26 From - Spending review Topic 4]]+Dataset[[#This Row],[2025/26 From - Other reallocations]]","v":0},{"$f":"Dataset[[#This Row],[2026/27 From - Spending review Topic 1]]+Dataset[[#This Row],[2026/27 From - Spending review Topic 2]]+Dataset[[#This Row],[2026/27 From - Spending review Topic 3]]+Dataset[[#This Row],[2026/27 From - Spending review Topic 4]]+Dataset[[#This Row],[2026/27 From - Other reallocations]]","v":0},{"$f":"Dataset[[#This Row],[2027/28 From - Spending review Topic 1]]+Dataset[[#This Row],[2027/28 From - Spending review Topic 2]]+Dataset[[#This Row],[2027/28 From - Spending review Topic 3]]+Dataset[[#This Row],[2027/28 From - Spending review Topic 4]]+Dataset[[#This Row],[2027/28 From - Other reallocations]]","v":0},{"$f":"Dataset[[#This Row],[2025/26 To - Spending review Topic 1]]+Dataset[[#This Row],[2025/26 To - Spending review Topic 2]]+Dataset[[#This Row],[2025/26 To - Spending review Topic 3]]+Dataset[[#This Row],[2025/26 To - Spending review Topic 4]]+Dataset[[#This Row],[2025/26 To - Other reallocations]]","v":0},{"$f":"Dataset[[#This Row],[2026/27 To - Spending review Topic 1]]+Dataset[[#This Row],[2026/27 To - Spending review Topic 2]]+Dataset[[#This Row],[2026/27 To - Spending review Topic 3]]+Dataset[[#This Row],[2026/27 To - Spending review Topic 4]]+Dataset[[#This Row],[2026/27 To - Other reallocations]]","v":0},{"$f":"Dataset[[#This Row],[2027/28 To - Spending review Topic 1]]+Dataset[[#This Row],[2027/28 To - Spending review Topic 2]]+Dataset[[#This Row],[2027/28 To - Spending review Topic 3]]+Dataset[[#This Row],[2027/28 To - Spending review Topic 4]]+Dataset[[#This Row],[2027/28 To - Other reallocations]]","v":0},{"$f":"Dataset[[#This Row],[2025/26 Reduction]]+Dataset[[#This Row],[2025/26 From - Total]]","v":0},{"$f":"Dataset[[#This Row],[2026/27 Reduction]]+Dataset[[#This Row],[2026/27 From - Total]]","v":0},{"$f":"Dataset[[#This Row],[2027/28 Reduction]]+Dataset[[#This Row],[2027/28 From - Total]]","v":0},{"$f":"Dataset[[#This Row],[2024/25 Reduction]]","v":0},{"$f":"SUM(Dataset[[#This Row],[2025/26 Reduction]],Dataset[[#This Row],[2025/26 From - Total]],Dataset[[#This Row],[2025/26 To - Total]])","v":0},{"$f":"SUM(Dataset[[#This Row],[2026/27 Reduction]],Dataset[[#This Row],[2026/27 From - Total]],Dataset[[#This Row],[2026/27 To - Total]])","v":0},{"$f":"SUM(Dataset[[#This Row],[2027/28 Reduction]],Dataset[[#This Row],[2027/28 From - Total]],Dataset[[#This Row],[2027/28 To - Total]])","v":0},{"$f":"Dataset[[#This Row],[2024/25 Baseline]]+Dataset[[#This Row],[2024/25 Total change]]","v":0},{"$f":"Dataset[[#This Row],[2025/26 Baseline]]+Dataset[[#This Row],[2025/26 Total change]]","v":0},{"$f":"Dataset[[#This Row],[2026/27 Baseline]]+Dataset[[#This Row],[2026/27 Total change]]","v":0},{"$f":"Dataset[[#This Row],[2027/28 Baseline]]+Dataset[[#This Row],[2027/28 Total change]]","v":0}]
["NAT|Non-transfer item","40|Land and sub-soil assets","2025_26","MTEC2025",40,16,1,53298,2026,"40","16","01","053298","002026","40|16|01|002026","02","03","16","61","65","02|03|16|61|65","National","Transport","Direct charge against the National Revenue Fund","International Oil Pollution Compensation Funds","Non-transfer item","Capital","Payments for capital assets","Land and sub-soil assets","Land and sub-soil assets","Land and sub-soil assets","Economic development","Economic regulation and infrastructure","NAT",0,0,0,0,0,0,null,0,0,0,0,null,null,null,null,null,null,null,null,null,null,null,null,null,null,null,null,null,null,null,null,null,null,null,null,null,null,null,null,null,null,null,null,null,null,{"$f":"Dataset[[#This Row],[2025/26 From - Spending review Topic 1]]+Dataset[[#This Row],[2025/26 From - Spending review Topic 2]]+Dataset[[#This Row],[2025/26 From - Spending review Topic 3]]+Dataset[[#This Row],[2025/26 From - Spending review Topic 4]]+Dataset[[#This Row],[2025/26 From - Other reallocations]]","v":0},{"$f":"Dataset[[#This Row],[2026/27 From - Spending review Topic 1]]+Dataset[[#This Row],[2026/27 From - Spending review Topic 2]]+Dataset[[#This Row],[2026/27 From - Spending review Topic 3]]+Dataset[[#This Row],[2026/27 From - Spending review Topic 4]]+Dataset[[#This Row],[2026/27 From - Other reallocations]]","v":0},{"$f":"Dataset[[#This Row],[2027/28 From - Spending review Topic 1]]+Dataset[[#This Row],[2027/28 From - Spending review Topic 2]]+Dataset[[#This Row],[2027/28 From - Spending review Topic 3]]+Dataset[[#This Row],[2027/28 From - Spending review Topic 4]]+Dataset[[#This Row],[2027/28 From - Other reallocations]]","v":0},{"$f":"Dataset[[#This Row],[2025/26 To - Spending review Topic 1]]+Dataset[[#This Row],[2025/26 To - Spending review Topic 2]]+Dataset[[#This Row],[2025/26 To - Spending review Topic 3]]+Dataset[[#This Row],[2025/26 To - Spending review Topic 4]]+Dataset[[#This Row],[2025/26 To - Other reallocations]]","v":0},{"$f":"Dataset[[#This Row],[2026/27 To - Spending review Topic 1]]+Dataset[[#This Row],[2026/27 To - Spending review Topic 2]]+Dataset[[#This Row],[2026/27 To - Spending review Topic 3]]+Dataset[[#This Row],[2026/27 To - Spending review Topic 4]]+Dataset[[#This Row],[2026/27 To - Other reallocations]]","v":0},{"$f":"Dataset[[#This Row],[2027/28 To - Spending review Topic 1]]+Dataset[[#This Row],[2027/28 To - Spending review Topic 2]]+Dataset[[#This Row],[2027/28 To - Spending review Topic 3]]+Dataset[[#This Row],[2027/28 To - Spending review Topic 4]]+Dataset[[#This Row],[2027/28 To - Other reallocations]]","v":0},{"$f":"Dataset[[#This Row],[2025/26 Reduction]]+Dataset[[#This Row],[2025/26 From - Total]]","v":0},{"$f":"Dataset[[#This Row],[2026/27 Reduction]]+Dataset[[#This Row],[2026/27 From - Total]]","v":0},{"$f":"Dataset[[#This Row],[2027/28 Reduction]]+Dataset[[#This Row],[2027/28 From - Total]]","v":0},{"$f":"Dataset[[#This Row],[2024/25 Reduction]]","v":0},{"$f":"SUM(Dataset[[#This Row],[2025/26 Reduction]],Dataset[[#This Row],[2025/26 From - Total]],Dataset[[#This Row],[2025/26 To - Total]])","v":0},{"$f":"SUM(Dataset[[#This Row],[2026/27 Reduction]],Dataset[[#This Row],[2026/27 From - Total]],Dataset[[#This Row],[2026/27 To - Total]])","v":0},{"$f":"SUM(Dataset[[#This Row],[2027/28 Reduction]],Dataset[[#This Row],[2027/28 From - Total]],Dataset[[#This Row],[2027/28 To - Total]])","v":0},{"$f":"Dataset[[#This Row],[2024/25 Baseline]]+Dataset[[#This Row],[2024/25 Total change]]","v":0},{"$f":"Dataset[[#This Row],[2025/26 Baseline]]+Dataset[[#This Row],[2025/26 Total change]]","v":0},{"$f":"Dataset[[#This Row],[2026/27 Baseline]]+Dataset[[#This Row],[2026/27 Total change]]","v":0},{"$f":"Dataset[[#This Row],[2027/28 Baseline]]+Dataset[[#This Row],[2027/28 Total change]]","v":0}]
["NAT|Non-transfer item","40|Software and other intangible assets","2025_26","MTEC2025",40,16,1,53299,2027,"40","16","01","053299","002027","40|16|01|002027","02","03","17","62","66","02|03|17|62|66","National","Transport","Direct charge against the National Revenue Fund","International Oil Pollution Compensation Funds","Non-transfer item","Capital","Payments for capital assets","Software and other intangible assets","Software and other intangible assets","Software and other intangible assets","Economic development","Economic regulation and infrastructure","NAT",0,0,0,0,0,0,null,0,0,0,0,null,null,null,null,null,null,null,null,null,null,null,null,null,null,null,null,null,null,null,null,null,null,null,null,null,null,null,null,null,null,null,null,null,null,{"$f":"Dataset[[#This Row],[2025/26 From - Spending review Topic 1]]+Dataset[[#This Row],[2025/26 From - Spending review Topic 2]]+Dataset[[#This Row],[2025/26 From - Spending review Topic 3]]+Dataset[[#This Row],[2025/26 From - Spending review Topic 4]]+Dataset[[#This Row],[2025/26 From - Other reallocations]]","v":0},{"$f":"Dataset[[#This Row],[2026/27 From - Spending review Topic 1]]+Dataset[[#This Row],[2026/27 From - Spending review Topic 2]]+Dataset[[#This Row],[2026/27 From - Spending review Topic 3]]+Dataset[[#This Row],[2026/27 From - Spending review Topic 4]]+Dataset[[#This Row],[2026/27 From - Other reallocations]]","v":0},{"$f":"Dataset[[#This Row],[2027/28 From - Spending review Topic 1]]+Dataset[[#This Row],[2027/28 From - Spending review Topic 2]]+Dataset[[#This Row],[2027/28 From - Spending review Topic 3]]+Dataset[[#This Row],[2027/28 From - Spending review Topic 4]]+Dataset[[#This Row],[2027/28 From - Other reallocations]]","v":0},{"$f":"Dataset[[#This Row],[2025/26 To - Spending review Topic 1]]+Dataset[[#This Row],[2025/26 To - Spending review Topic 2]]+Dataset[[#This Row],[2025/26 To - Spending review Topic 3]]+Dataset[[#This Row],[2025/26 To - Spending review Topic 4]]+Dataset[[#This Row],[2025/26 To - Other reallocations]]","v":0},{"$f":"Dataset[[#This Row],[2026/27 To - Spending review Topic 1]]+Dataset[[#This Row],[2026/27 To - Spending review Topic 2]]+Dataset[[#This Row],[2026/27 To - Spending review Topic 3]]+Dataset[[#This Row],[2026/27 To - Spending review Topic 4]]+Dataset[[#This Row],[2026/27 To - Other reallocations]]","v":0},{"$f":"Dataset[[#This Row],[2027/28 To - Spending review Topic 1]]+Dataset[[#This Row],[2027/28 To - Spending review Topic 2]]+Dataset[[#This Row],[2027/28 To - Spending review Topic 3]]+Dataset[[#This Row],[2027/28 To - Spending review Topic 4]]+Dataset[[#This Row],[2027/28 To - Other reallocations]]","v":0},{"$f":"Dataset[[#This Row],[2025/26 Reduction]]+Dataset[[#This Row],[2025/26 From - Total]]","v":0},{"$f":"Dataset[[#This Row],[2026/27 Reduction]]+Dataset[[#This Row],[2026/27 From - Total]]","v":0},{"$f":"Dataset[[#This Row],[2027/28 Reduction]]+Dataset[[#This Row],[2027/28 From - Total]]","v":0},{"$f":"Dataset[[#This Row],[2024/25 Reduction]]","v":0},{"$f":"SUM(Dataset[[#This Row],[2025/26 Reduction]],Dataset[[#This Row],[2025/26 From - Total]],Dataset[[#This Row],[2025/26 To - Total]])","v":0},{"$f":"SUM(Dataset[[#This Row],[2026/27 Reduction]],Dataset[[#This Row],[2026/27 From - Total]],Dataset[[#This Row],[2026/27 To - Total]])","v":0},{"$f":"SUM(Dataset[[#This Row],[2027/28 Reduction]],Dataset[[#This Row],[2027/28 From - Total]],Dataset[[#This Row],[2027/28 To - Total]])","v":0},{"$f":"Dataset[[#This Row],[2024/25 Baseline]]+Dataset[[#This Row],[2024/25 Total change]]","v":0},{"$f":"Dataset[[#This Row],[2025/26 Baseline]]+Dataset[[#This Row],[2025/26 Total change]]","v":0},{"$f":"Dataset[[#This Row],[2026/27 Baseline]]+Dataset[[#This Row],[2026/27 Total change]]","v":0},{"$f":"Dataset[[#This Row],[2027/28 Baseline]]+Dataset[[#This Row],[2027/28 Total change]]","v":0}]

{"sheet":"Summary","index":10,"n_rows":104,"n_cols":26,"rows_kept":104,"cut":false,"hidden":false,"merged":[]}
[]
[]
[null,null,null,null,null,null,{"$f":"Welcome!$B$7&\" \"& MyDeptName","v":"VOTE 40:  Transport"}]
[null,null,null,null,null,null,null,null,null,null,null,null,"Growth"]
[null,null,null,null,null,null,"Quick view",{"$f":"MyYear4","v":"2024/25"},{"$f":"MyYear5","v":"2025/26"},{"$f":"MyYear6","v":"2026/27"},{"$f":"MyYear7","v":"2027/28"},"Trend",{"$f":"MyYear5","v":"2025/26"},{"$f":"MyYear6","v":"2026/27"},{"$f":"MyYear7","v":"2027/28"},"Ave Ann"]
[null,null,null,null,null,null,"Compensation of employees",{"$f":"SUMPRODUCT(($G$56:$G$89=$G6)*($M$56:$M$89))","v":571639},{"$f":"SUMPRODUCT(($G$56:$G$89=$G6)*($Q$56:$Q$89))","v":596765},{"$f":"SUMPRODUCT(($G$56:$G$89=$G6)*($U$56:$U$89))","v":624104},{"$f":"SUMPRODUCT(($G$56:$G$89=$G6)*($Y$56:$Y$89))","v":652327},null,{"$f":"IFERROR(I6/H6-1,0)","v":4.3954313823934443E-2},4.5812003049776617E-2,4.522162972837851E-2,{"$f":"IFERROR(((K6/H6)^(1/3)-1),0)","v":4.4995694759810023E-2}]
[null,null,null,null,null,null,"Goods and services",{"$f":"SUMPRODUCT(($G$56:$G$89=$G7)*($M$56:$M$89))","v":948619},{"$f":"SUMPRODUCT(($G$56:$G$89=$G7)*($Q$56:$Q$89))","v":981360},{"$f":"SUMPRODUCT(($G$56:$G$89=$G7)*($U$56:$U$89))","v":1253753},{"$f":"SUMPRODUCT(($G$56:$G$89=$G7)*($Y$56:$Y$89))","v":1310438},null,3.4514383540704907E-2,0.27756684600961923,4.5212254726409329E-2,0.11371709633445026,null,null,{"$f":"X8","v":"2025/26"},{"$f":"Y8","v":"2026/27"},{"$f":"Z8","v":"2027/28"}]
[null,null,null,null,null,null,"Transfers and subsidies",{"$f":"SUMPRODUCT(($G$56:$G$89=$G8)*($M$56:$M$89))","v":78903693},{"$f":"SUMPRODUCT(($G$56:$G$89=$G8)*($Q$56:$Q$89))","v":85064895},{"$f":"SUMPRODUCT(($G$56:$G$89=$G8)*($U$56:$U$89))","v":86706729},{"$f":"SUMPRODUCT(($G$56:$G$89=$G8)*($Y$56:$Y$89))","v":89102683},null,7.8085090389875766E-2,1.9300958403581259E-2,2.7632849579644514E-2,4.1352627158607547E-2,"CoE","Compensation of employees",{"$f":"SUMIF($G$56:$G$89,$R8,$O$56:$O$89)+SUMIF($G$56:$G$89,$R8,$P$56:$P$89)","v":0},{"$f":"SUMIF($G$56:$G$89,$R8,$S$56:$S$89)+SUMIF($G$56:$G$89,$R8,$T$56:$T$89)","v":0},{"$f":"SUMIF($G$56:$G$89,$R8,$W$56:$W$89)+SUMIF($G$56:$G$89,$R8,$X$56:$X$89)","v":0},null,{"$f":"MyYear4","v":"2024/25"},{"$f":"MyYear5","v":"2025/26"},{"$f":"MyYear6","v":"2026/27"},{"$f":"MyYear7","v":"2027/28"}]
[null,null,null,null,null,null,"Payments for capital assets",{"$f":"SUMPRODUCT(($G$56:$G$89=$G9)*($M$56:$M$89))","v":6318},{"$f":"SUMPRODUCT(($G$56:$G$89=$G9)*($Q$56:$Q$89))","v":6600},{"$f":"SUMPRODUCT(($G$56:$G$89=$G9)*($U$56:$U$89))","v":6902},{"$f":"SUMPRODUCT(($G$56:$G$89=$G9)*($Y$56:$Y$89))","v":7212},null,4.4634377967711192E-2,4.5757575757575664E-2,4.49145175311505E-2,4.5102048086641755E-2,"G&S","Goods and services",{"$f":"SUMIF($G$56:$G$89,$R9,$O$56:$O$89)+SUMIF($G$56:$G$89,$R9,$P$56:$P$89)","v":0},{"$f":"SUMIF($G$56:$G$89,$R9,$S$56:$S$89)+SUMIF($G$56:$G$89,$R9,$T$56:$T$89)","v":0},{"$f":"SUMIF($G$56:$G$89,$R9,$W$56:$W$89)+SUMIF($G$56:$G$89,$R9,$X$56:$X$89)","v":0}]
[null,null,null,null,null,null,"Total",{"$f":"SUMPRODUCT(($G$56:$G$89=$G10)*($M$56:$M$89))","v":80634269},{"$f":"SUMPRODUCT(($G$56:$G$89=$G10)*($Q$56:$Q$89))","v":86868222},{"$f":"SUMPRODUCT(($G$56:$G$89=$G10)*($U$56:$U$89))","v":88591488},{"$f":"SUMPRODUCT(($G$56:$G$89=$G10)*($Y$56:$Y$89))","v":91072660},null,7.7311459225853474E-2,1.9837703136136531E-2,2.8006889330044915E-2,4.1412507763076034E-2,"T&S","Transfers and subsidies",{"$f":"SUMIF($G$56:$G$89,$R10,$O$56:$O$89)+SUMIF($G$56:$G$89,$R10,$P$56:$P$89)","v":0},{"$f":"SUMIF($G$56:$G$89,$R10,$S$56:$S$89)+SUMIF($G$56:$G$89,$R10,$T$56:$T$89)","v":0},{"$f":"SUMIF($G$56:$G$89,$R10,$W$56:$W$89)+SUMIF($G$56:$G$89,$R10,$X$56:$X$89)","v":0}]
[null,null,null,null,null,null,"Composition of spending (% of Total)",null,null,null,null,null,null,null,null,null,"Capital","Payments for capital assets",{"$f":"SUMIF($G$56:$G$89,$R11,$O$56:$O$89)+SUMIF($G$56:$G$89,$R11,$P$56:$P$89)","v":0},{"$f":"SUMIF($G$56:$G$89,$R11,$S$56:$S$89)+SUMIF($G$56:$G$89,$R11,$T$56:$T$89)","v":0},{"$f":"SUMIF($G$56:$G$89,$R11,$W$56:$W$89)+SUMIF($G$56:$G$89,$R11,$X$56:$X$89)","v":0}]
[null,null,null,null,null,null,"Compensation of employees",{"$f":"H6/H$10","v":7.0892811094994861E-3},6.8697733907803473E-3,7.0447400093336283E-3,7.1627094234427762E-3,null,null,null,null,null,"Total","Total",{"$f":"SUMIF($G$56:$G$89,$R12,$O$56:$O$89)+SUMIF($G$56:$G$89,$R12,$P$56:$P$89)","v":0},{"$f":"SUMIF($G$56:$G$89,$R12,$S$56:$S$89)+SUMIF($G$56:$G$89,$R12,$T$56:$T$89)","v":0},{"$f":"SUMIF($G$56:$G$89,$R12,$W$56:$W$89)+SUMIF($G$56:$G$89,$R12,$X$56:$X$89)","v":0}]
[null,null,null,null,null,null,"Goods and services",1.1764464560347165E-2,1.1297111618101267E-2,1.4152070682005025E-2,1.4388928576369682E-2]
[null,null,null,null,null,null,"Transfers and subsidies",0.97853795884228822,0.97924065948995709,0.97872528114664925,0.97836917248271871]
[null,null,null,null,null,null,"Payments for capital assets",7.8353782806662509E-5,7.5977150769817754E-5,7.7908162012133716E-5,7.9189517468799083E-5,null,null,null,null,null,null,null,null,null,null,null,{"$f":"IF(H12>0.0595,H12,\"\")","v":""},"","",""]
[null,null,null,null,null,null,null,null,null,null,null,null,null,null,null,null,null,null,null,null,null,null,"","","",""]
[null,null,null,null,null,null,"Division of Revenue",{"$f":"MyYear4","v":"2024/25"},{"$f":"MyYear5","v":"2025/26"},{"$f":"MyYear6","v":"2026/27"},{"$f":"MyYear7","v":"2027/28"},"Trend",{"$f":"MyYear5","v":"2025/26"},{"$f":"MyYear6","v":"2026/27"},{"$f":"MyYear7","v":"2027/28"},"Ave Ann",null,null,null,null,null,null,0.97853795884228822,0.97924065948995709,0.97872528114664925,0.97836917248271871]
[null,null,null,null,null,null,"National",{"$f":"SUM(H19:H21)","v":48632303},{"$f":"SUM(I19:I21)","v":52693376},55109482,57601554,null,{"$f":"IFERROR(I18/H18-1,0)","v":8.350566906115886E-2},{"$f":"IFERROR(J18/I18-1,0)","v":4.5852176941557188E-2},{"$f":"IFERROR(K18/J18-1,0)","v":4.5220385123561968E-2},{"$f":"IFERROR(((K18/H18)^(1/3)-1),0)","v":5.8042520218179572E-2},null,null,null,null,null,null,"","","",""]
[null,"NAT",null,null,null,null,"National (excl. indirect grants)",{"$f":"SUMPRODUCT(((Dataset[DOR]=$B19))*Dataset[2024/25 Revised baseline])","v":48632303},{"$f":"SUMPRODUCT(((Dataset[DOR]=$B19))*Dataset[2025/26 Revised baseline])","v":52693376},{"$f":"SUMPRODUCT(((Dataset[DOR]=$B19))*Dataset[2026/27 Revised baseline])","v":55109482},{"$f":"SUMPRODUCT(((Dataset[DOR]=$B19))*Dataset[2027/28 Revised baseline])","v":57601554},null,8.350566906115886E-2,4.5852176941557188E-2,4.5220385123561968E-2,5.8042520218179572E-2]
[null,"IGP",null,null,null,null,"Provincial indirect grants",{"$f":"SUMPRODUCT(((Dataset[DOR]=$B20))*Dataset[2024/25 Revised baseline])","v":0},{"$f":"SUMPRODUCT(((Dataset[DOR]=$B20))*Dataset[2025/26 Revised baseline])","v":0},{"$f":"SUMPRODUCT(((Dataset[DOR]=$B20))*Dataset[2026/27 Revised baseline])","v":0},{"$f":"SUMPRODUCT(((Dataset[DOR]=$B20))*Dataset[2027/28 Revised baseline])","v":0},null,{"$f":"IFERROR(I20/H20-1,0)","v":0},{"$f":"IFERROR(J20/I20-1,0)","v":0},{"$f":"IFERROR(K20/J20-1,0)","v":0},{"$f":"IFERROR(((K20/H20)^(1/3)-1),0)","v":0}]
[null,"IGM",null,null,null,null,"Local indirect grants",{"$f":"SUMPRODUCT(((Dataset[DOR]=$B21))*Dataset[2024/25 Revised baseline])","v":0},{"$f":"SUMPRODUCT(((Dataset[DOR]=$B21))*Dataset[2025/26 Revised baseline])","v":0},{"$f":"SUMPRODUCT(((Dataset[DOR]=$B21))*Dataset[2026/27 Revised baseline])","v":0},{"$f":"SUMPRODUCT(((Dataset[DOR]=$B21))*Dataset[2027/28 Revised baseline])","v":0},null,{"$f":"IFERROR(I21/H21-1,0)","v":0},{"$f":"IFERROR(J21/I21-1,0)","v":0},{"$f":"IFERROR(K21/J21-1,0)","v":0},{"$f":"IFERROR(((K21/H21)^(1/3)-1),0)","v":0}]
[null,null,null,null,null,null,"Provincial",{"$f":"SUM(H23:H24)","v":24407886},{"$f":"SUM(I23:I24)","v":25964721},25730899,26894466,null,6.3784098303310666E-2,-9.0053730983667979E-3,4.5220611996494853E-2,3.2866646008289147E-2]
[null,"PES",null,null,null,null,"Provincial equitable share",{"$f":"SUMPRODUCT(((Dataset[DOR]=$B23))*Dataset[2024/25 Revised baseline])","v":0},{"$f":"SUMPRODUCT(((Dataset[DOR]=$B23))*Dataset[2025/26 Revised baseline])","v":0},{"$f":"SUMPRODUCT(((Dataset[DOR]=$B23))*Dataset[2026/27 Revised baseline])","v":0},{"$f":"SUMPRODUCT(((Dataset[DOR]=$B23))*Dataset[2027/28 Revised baseline])","v":0},null,{"$f":"IFERROR(I23/H23-1,0)","v":0},0,0,{"$f":"IFERROR(((K23/H23)^(1/3)-1),0)","v":0}]
[null,"PCG",null,null,null,null,"Provincial conditional grants",{"$f":"SUMPRODUCT(((Dataset[DOR]=$B24))*Dataset[2024/25 Revised baseline])","v":24407886},{"$f":"SUMPRODUCT(((Dataset[DOR]=$B24))*Dataset[2025/26 Revised baseline])","v":25964721},{"$f":"SUMPRODUCT(((Dataset[DOR]=$B24))*Dataset[2026/27 Revised baseline])","v":25730899},{"$f":"SUMPRODUCT(((Dataset[DOR]=$B24))*Dataset[2027/28 Revised baseline])","v":26894466},null,6.3784098303310666E-2,-9.0053730983667979E-3,4.5220611996494853E-2,3.2866646008289147E-2]
[null,null,null,null,null,null,"Local government",{"$f":"SUM(H26:H28)","v":7594080},{"$f":"SUM(I26:I28)","v":8210125},7751107,6576640,null,{"$f":"IFERROR(I25/H25-1,0)","v":8.1121742199186775E-2},{"$f":"IFERROR(J25/I25-1,0)","v":-5.5908771181924721E-2},{"$f":"IFERROR(K25/J25-1,0)","v":-0.15152248575590554},{"$f":"IFERROR(((K25/H25)^(1/3)-1),0)","v":-4.6816972685323477E-2}]
[null,"LES",null,null,null,null,"Local equitable share",{"$f":"SUMPRODUCT(((Dataset[DOR]=$B26))*Dataset[2024/25 Revised baseline])","v":0},{"$f":"SUMPRODUCT(((Dataset[DOR]=$B26))*Dataset[2025/26 Revised baseline])","v":0},{"$f":"SUMPRODUCT(((Dataset[DOR]=$B26))*Dataset[2026/27 Revised baseline])","v":0},{"$f":"SUMPRODUCT(((Dataset[DOR]=$B26))*Dataset[2027/28 Revised baseline])","v":0},null,{"$f":"IFERROR(I26/H26-1,0)","v":0},0,0,{"$f":"IFERROR(((K26/H26)^(1/3)-1),0)","v":0}]
[null,"LCG",null,null,null,null,"Local conditional grants",{"$f":"SUMPRODUCT(((Dataset[DOR]=$B27))*Dataset[2024/25 Revised baseline])","v":7594080},{"$f":"SUMPRODUCT(((Dataset[DOR]=$B27))*Dataset[2025/26 Revised baseline])","v":8210125},{"$f":"SUMPRODUCT(((Dataset[DOR]=$B27))*Dataset[2026/27 Revised baseline])","v":7751107},{"$f":"SUMPRODUCT(((Dataset[DOR]=$B27))*Dataset[2027/28 Revised baseline])","v":6576640},null,8.1121742199186775E-2,-5.5908771181924721E-2,-0.15152248575590554,-4.6816972685323477E-2]
[null,"GFL",null,null,null,null,"General fuel levy ",{"$f":"SUMPRODUCT(((Dataset[DOR]=$B28))*Dataset[2024/25 Revised baseline])","v":0},{"$f":"SUMPRODUCT(((Dataset[DOR]=$B28))*Dataset[2025/26 Revised baseline])","v":0},{"$f":"SUMPRODUCT(((Dataset[DOR]=$B28))*Dataset[2026/27 Revised baseline])","v":0},{"$f":"SUMPRODUCT(((Dataset[DOR]=$B28))*Dataset[2027/28 Revised baseline])","v":0},null,0,0,0,0]
[]
[null,null,null,null,null,null,"Personnel numbers (HRBP)",{"$f":"MyYear4","v":"2024/25"},{"$f":"MyYear5","v":"2025/26"},{"$f":"MyYear6","v":"2026/27"},{"$f":"MyYear7","v":"2027/28"}]
[null,null,null,null,null,null,"Initial headcount",{"$f":"SUM(t_HRBP[2024/25 Initial Headcount])","v":0},{"$f":"SUM(t_HRBP[2025/26 Initial Headcount])","v":0},{"$f":"SUM(t_HRBP[2026/27 Initial Headcount])","v":0},{"$f":"SUM(t_HRBP[2027/28 Initial Headcount])","v":0},null,null,null,null,null,null,{"$f":"W8","v":"2024/25"},"2025/26","2026/27","2027/28"]
[null,null,null,null,null,null,"Vacant funded posts to be filled",{"$f":"SUM(t_HRBP[2024/25 Vacant funded posts to be filled])","v":0},{"$f":"SUM(t_HRBP[2025/26 Vacant funded posts to be filled])","v":0},{"$f":"SUM(t_HRBP[2026/27 Vacant funded posts to be filled])","v":0},{"$f":"SUM(t_HRBP[2027/28 Vacant funded posts to be filled])","v":0},null,null,null,null,null,"Revised head count",{"$f":"IF(H34=0,\"\",H34)","v":""},"","",""]
[null,null,null,null,null,null,"Headcount reductions to be made",{"$f":"SUM(t_HRBP[2024/25 Headcount reductions to be made])","v":0},{"$f":"SUM(t_HRBP[2025/26 Headcount reductions to be made])","v":0},{"$f":"SUM(t_HRBP[2026/27 Headcount reductions to be made])","v":0},{"$f":"SUM(t_HRBP[2027/28 Headcount reductions to be made])","v":0},null,null,null,null,null,"Additions",{"$f":"IF(H32=0,\"\",H32)","v":""},{"$f":"IF(I32=0,\"\",I32)","v":""},{"$f":"IF(J32=0,\"\",J32)","v":""},{"$f":"IF(K32=0,\"\",K32)","v":""}]
[null,null,null,null,null,null,"Revised headcount",{"$f":"SUM(t_HRBP[2024/25 Revised Headcount])","v":0},{"$f":"SUM(t_HRBP[2025/26 Revised Headcount])","v":0},{"$f":"SUM(t_HRBP[2026/27 Revised Headcount])","v":0},{"$f":"SUM(t_HRBP[2027/28 Revised Headcount])","v":0},null,null,null,null,null,"Reductions","","","",""]
[null,null,null,null,null,null,"Change in headcount",{"$f":"H34-H31","v":0},{"$f":"I34-I31","v":0},{"$f":"J34-J31","v":0},{"$f":"K34-K31","v":0}]
[null,null,null,null,null,null,"Cost of vacant posts to be filled",{"$f":"SUM(t_HRBP[2024/25 Cost of vacant posts to be filled])","v":0},{"$f":"SUM(t_HRBP[2025/26 Cost of vacant posts to be filled])","v":0},{"$f":"SUM(t_HRBP[2026/27 Cost of vacant posts to be filled])","v":0},{"$f":"SUM(t_HRBP[2027/28 Cost of vacant posts to be filled])","v":0}]
[null,null,null,null,null,null,"Savings from headcount reductions",{"$f":"SUM(t_HRBP[2024/25 Savings from headcount reductions])","v":0},{"$f":"SUM(t_HRBP[2025/26 Savings from headcount reductions])","v":0},{"$f":"SUM(t_HRBP[2026/27 Savings from headcount reductions])","v":0},{"$f":"SUM(t_HRBP[2027/28 Savings from headcount reductions])","v":0}]
[]
[null,null,null,null,null,null,"Check: CoE (economic) less HRBP annual cost",{"$f":"SUMIFS(Dataset[2024/25 Baseline],Dataset[Econ3],\"Compensation of employees\")-SUM(t_HRBP[2024/25 Revised Estimate])","v":571639},{"$f":"SUMIFS(Dataset[2025/26 Baseline],Dataset[Econ3],\"Compensation of employees\")-SUM(t_HRBP[2025/26 MTEF Estimate])","v":596765},{"$f":"SUMIFS(Dataset[2026/27 Baseline],Dataset[Econ3],\"Compensation of employees\")-SUM(t_HRBP[2026/27 MTEF Estimate])","v":624104},{"$f":"SUMIFS(Dataset[2027/28 Baseline],Dataset[Econ3],\"Compensation of employees\")-SUM(t_HRBP[2027/28 MTEF Estimate])","v":652327}]
[]
[null,null,null,null,null,null,"Strategies to reduce headcounts (Indicators)",{"$f":"MyYear4","v":"2024/25"},{"$f":"MyYear5","v":"2025/26"},{"$f":"MyYear6","v":"2026/27"},{"$f":"MyYear7","v":"2027/28"},null,null,null,null,null,null,{"$f":"W8 & \" to \" & Z8","v":"2024/25 to 2027/28"}]
[null,null,null,null,null,null,"1. Employee initiated severance package",{"$f":"HRBP_Data!BA3","v":0},{"$f":"HRBP_Data!BB3","v":0},{"$f":"HRBP_Data!BC3","v":0},{"$f":"HRBP_Data!BD3","v":0},null,null,null,null,null,"Severance",{"$f":"IF(SUM(H42:K42)=0,\"\",SUM(H42:K42))","v":""}]
[null,null,null,null,null,null,"2. Early retirement",{"$f":"HRBP_Data!BA4","v":0},{"$f":"HRBP_Data!BB4","v":0},{"$f":"HRBP_Data!BC4","v":0},{"$f":"HRBP_Data!BD4","v":0},null,null,null,null,null,"Early retirement",""]
[null,null,null,null,null,null,"3. Natural attrition",{"$f":"HRBP_Data!BA5","v":0},{"$f":"HRBP_Data!BB5","v":0},{"$f":"HRBP_Data!BC5","v":0},{"$f":"HRBP_Data!BD5","v":0},null,null,null,null,null,"Natural attrition",""]
[null,null,null,null,null,null,"4. Retirement",{"$f":"HRBP_Data!BA6","v":0},{"$f":"HRBP_Data!BB6","v":0},{"$f":"HRBP_Data!BC6","v":0},{"$f":"HRBP_Data!BD6","v":0},null,null,null,null,null,"Retirement",""]
[null,null,null,null,null,null,"5. Contract termination",{"$f":"HRBP_Data!BA7","v":0},{"$f":"HRBP_Data!BB7","v":0},{"$f":"HRBP_Data!BC7","v":0},{"$f":"HRBP_Data!BD7","v":0},null,null,null,null,null,"Contract termination",""]
[null,null,null,null,null,null,"6. Redeployments (transfers to other departments)",{"$f":"HRBP_Data!BA8","v":0},{"$f":"HRBP_Data!BB8","v":0},{"$f":"HRBP_Data!BC8","v":0},{"$f":"HRBP_Data!BD8","v":0},null,null,null,null,null,"Redeployments",""]
[null,null,null,null,null,null,"Total",{"$f":"SUM(H42:H47)","v":0},0,0,0]
[]
[]
[]
[null,null,null,null,null,null,{"$f":"G3","v":"VOTE 40:  Transport"}]
[null,null,null,null,null,null,null,{"$f":"MyYear1","v":"2021/22"},{"$f":"MyYear2","v":"2022/23"},{"$f":"MyYear3","v":"2023/24"},{"$f":"MyYear4","v":"2024/25"},null,null,{"$f":"MyYear5","v":"2025/26"},null,null,null,{"$f":"MyYear6","v":"2026/27"},null,null,null,{"$f":"MyYear7","v":"2027/28"}]
[null,null,null,null,null,null,"Rand thousand","Audited outcome","Audited outcome","Pre-audited outcome","Budget","Reduction","Revised","Baseline","Decrease","Increase","Revised baseline","Baseline","Decrease","Increase","Revised baseline","Baseline","Decrease","Increase","Revised baseline"]
[null,null,null,null,null,null,"Economic classification"]
[null,null,null,null,null,null,"Current payments",{"$f":"SUM(H57:H59)","v":1099490},{"$f":"SUM(I57:I59)","v":1179797},{"$f":"SUM(J57:J59)","v":1363845},1520258,{"$f":"SUM(L57:L59)","v":0},1520258,1578125,0,0,1578125,{"$f":"SUM(R57:R59)","v":1877857},{"$f":"SUM(S57:S59)","v":0},0,1877857,1962765,0,0,1962765]
[null,null,null,null,null,null,"Compensation of employees",{"$f":"SUMPRODUCT(((Dataset[Econ3]=$G57))*Dataset[2021/22])","v":479990},{"$f":"SUMPRODUCT(((Dataset[Econ3]=$G57))*Dataset[2022/23])","v":505337},{"$f":"SUMPRODUCT(((Dataset[Econ3]=$G57))*Dataset[2023/24 Preliminary outcome])","v":533309},{"$f":"SUMPRODUCT(((Dataset[Econ3]=$G57))*Dataset[2024/25 Baseline])","v":571639},{"$f":"SUMPRODUCT(((Dataset[Econ3]=$G57))*Dataset[2024/25 Reduction])","v":0},{"$f":"K57+L57","v":571639},{"$f":"SUMPRODUCT(((Dataset[Econ3]=$G57))*Dataset[2025/26 Baseline])","v":596765},{"$f":"SUMPRODUCT(((Dataset[Econ3]=$G57))*Dataset[2025/26 Total decrease])","v":0},{"$f":"SUMPRODUCT(((Dataset[Econ3]=$G57))*Dataset[2025/26 To - Total])","v":0},{"$f":"N57+O57+P57","v":596765},{"$f":"SUMPRODUCT(((Dataset[Econ3]=$G57))*Dataset[2026/27 Baseline])","v":624104},{"$f":"SUMPRODUCT(((Dataset[Econ3]=$G57))*Dataset[2026/27 Total decrease])","v":0},{"$f":"SUMPRODUCT(((Dataset[Econ3]=$G57))*Dataset[2026/27 To - Total])","v":0},{"$f":"R57+S57+T57","v":624104},{"$f":"SUMPRODUCT(((Dataset[Econ3]=$G57))*Dataset[2027/28 Baseline])","v":652327},{"$f":"SUMPRODUCT(((Dataset[Econ3]=$G57))*Dataset[2027/28 Total decrease])","v":0},{"$f":"SUMPRODUCT(((Dataset[Econ3]=$G57))*Dataset[2027/28 To - Total])","v":0},{"$f":"V57+W57+X57","v":652327}]
[null,null,null,null,null,null,"Goods and services",{"$f":"SUMPRODUCT(((Dataset[Econ3]=$G58))*Dataset[2021/22])","v":558086},{"$f":"SUMPRODUCT(((Dataset[Econ3]=$G58))*Dataset[2022/23])","v":674460},{"$f":"SUMPRODUCT(((Dataset[Econ3]=$G58))*Dataset[2023/24 Preliminary outcome])","v":830536},{"$f":"SUMPRODUCT(((Dataset[Econ3]=$G58))*Dataset[2024/25 Baseline])","v":948619},{"$f":"SUMPRODUCT(((Dataset[Econ3]=$G58))*Dataset[2024/25 Reduction])","v":0},{"$f":"K58+L58","v":948619},{"$f":"SUMPRODUCT(((Dataset[Econ3]=$G58))*Dataset[2025/26 Baseline])","v":981360},{"$f":"SUMPRODUCT(((Dataset[Econ3]=$G58))*Dataset[2025/26 Total decrease])","v":0},{"$f":"SUMPRODUCT(((Dataset[Econ3]=$G58))*Dataset[2025/26 To - Total])","v":0},{"$f":"N58+O58+P58","v":981360},{"$f":"SUMPRODUCT(((Dataset[Econ3]=$G58))*Dataset[2026/27 Baseline])","v":1253753},{"$f":"SUMPRODUCT(((Dataset[Econ3]=$G58))*Dataset[2026/27 Total decrease])","v":0},{"$f":"SUMPRODUCT(((Dataset[Econ3]=$G58))*Dataset[2026/27 To - Total])","v":0},{"$f":"R58+S58+T58","v":1253753},{"$f":"SUMPRODUCT(((Dataset[Econ3]=$G58))*Dataset[2027/28 Baseline])","v":1310438},{"$f":"SUMPRODUCT(((Dataset[Econ3]=$G58))*Dataset[2027/28 Total decrease])","v":0},{"$f":"SUMPRODUCT(((Dataset[Econ3]=$G58))*Dataset[2027/28 To - Total])","v":0},{"$f":"V58+W58+X58","v":1310438}]
[null,null,null,null,null,null,"Interest and rent on land",{"$f":"SUMPRODUCT(((Dataset[Econ3]=$G59))*Dataset[2021/22])","v":61414},{"$f":"SUMPRODUCT(((Dataset[Econ3]=$G59))*Dataset[2022/23])","v":0},{"$f":"SUMPRODUCT(((Dataset[Econ3]=$G59))*Dataset[2023/24 Preliminary outcome])","v":0},{"$f":"SUMPRODUCT(((Dataset[Econ3]=$G59))*Dataset[2024/25 Baseline])","v":0},{"$f":"SUMPRODUCT(((Dataset[Econ3]=$G59))*Dataset[2024/25 Reduction])","v":0},{"$f":"K59+L59","v":0},{"$f":"SUMPRODUCT(((Dataset[Econ3]=$G59))*Dataset[2025/26 Baseline])","v":0},{"$f":"SUMPRODUCT(((Dataset[Econ3]=$G59))*Dataset[2025/26 Total decrease])","v":0},{"$f":"SUMPRODUCT(((Dataset[Econ3]=$G59))*Dataset[2025/26 To - Total])","v":0},0,{"$f":"SUMPRODUCT(((Dataset[Econ3]=$G59))*Dataset[2026/27 Baseline])","v":0},{"$f":"SUMPRODUCT(((Dataset[Econ3]=$G59))*Dataset[2026/27 Total decrease])","v":0},{"$f":"SUMPRODUCT(((Dataset[Econ3]=$G59))*Dataset[2026/27 To - Total])","v":0},0,{"$f":"SUMPRODUCT(((Dataset[Econ3]=$G59))*Dataset[2027/28 Baseline])","v":0},{"$f":"SUMPRODUCT(((Dataset[Econ3]=$G59))*Dataset[2027/28 Total decrease])","v":0},{"$f":"SUMPRODUCT(((Dataset[Econ3]=$G59))*Dataset[2027/28 To - Total])","v":0},0]
[null,null,null,null,null,null,"Transfers and subsidies",{"$f":"SUM(H61,H64,H67:H69,H72:H73)","v":63763313},{"$f":"SUM(I61,I64,I67:I69,I72:I73)","v":69617318},{"$f":"SUM(J61,J64,J67:J69,J72:J73)","v":0},78903693,{"$f":"SUM(L61,L64,L67:L69,L72:L73)","v":0},78903693,85064895,0,0,85064895,{"$f":"SUM(R61,R64,R67:R69,R72:R73)","v":86706729},{"$f":"SUM(S61,S64,S67:S69,S72:S73)","v":0},0,86706729,89102683,0,0,89102683]
[null,null,null,null,null,null,"Provinces and municipalities",{"$f":"SUM(H62:H63)","v":24341785},{"$f":"SUM(I62:I63)","v":25883787},{"$f":"SUM(J62:J63)","v":0},32001966,{"$f":"SUM(L62:L63)","v":0},32001966,34174846,0,0,34174846,{"$f":"SUM(R62:R63)","v":33482006},{"$f":"SUM(S62:S63)","v":0},0,33482006,33471106,0,0,33471106]
[null,null,null,null,null,null,"Provinces",{"$f":"SUMPRODUCT(((Dataset[Econ4]=$G62))*Dataset[2021/22])","v":19057367},{"$f":"SUMPRODUCT(((Dataset[Econ4]=$G62))*Dataset[2022/23])","v":19755873},{"$f":"SUMPRODUCT(((Dataset[Econ4]=$G62))*Dataset[2023/24 Preliminary outcome])","v":0},{"$f":"SUMPRODUCT(((Dataset[Econ4]=$G62))*Dataset[2024/25 Baseline])","v":24407886},{"$f":"SUMPRODUCT(((Dataset[Econ4]=$G62))*Dataset[2024/25 Reduction])","v":0},{"$f":"K62+L62","v":24407886},{"$f":"SUMPRODUCT(((Dataset[Econ4]=$G62))*Dataset[2025/26 Baseline])","v":25964721},{"$f":"SUMPRODUCT(((Dataset[Econ4]=$G62))*Dataset[2025/26 Total decrease])","v":0},{"$f":"SUMPRODUCT(((Dataset[Econ4]=$G62))*Dataset[2025/26 To - Total])","v":0},{"$f":"N62+O62+P62","v":25964721},{"$f":"SUMPRODUCT(((Dataset[Econ4]=$G62))*Dataset[2026/27 Baseline])","v":25730899},{"$f":"SUMPRODUCT(((Dataset[Econ4]=$G62))*Dataset[2026/27 Total decrease])","v":0},{"$f":"SUMPRODUCT(((Dataset[Econ4]=$G62))*Dataset[2026/27 To - Total])","v":0},{"$f":"R62+S62+T62","v":25730899},{"$f":"SUMPRODUCT(((Dataset[Econ4]=$G62))*Dataset[2027/28 Baseline])","v":26894466},{"$f":"SUMPRODUCT(((Dataset[Econ4]=$G62))*Dataset[2027/28 Total decrease])","v":0},{"$f":"SUMPRODUCT(((Dataset[Econ4]=$G62))*Dataset[2027/28 To - Total])","v":0},{"$f":"V62+W62+X62","v":26894466}]
[null,null,null,null,null,null,"Municipalities",{"$f":"SUMPRODUCT(((Dataset[Econ4]=$G63))*Dataset[2021/22])","v":5284418},{"$f":"SUMPRODUCT(((Dataset[Econ4]=$G63))*Dataset[2022/23])","v":6127914},{"$f":"SUMPRODUCT(((Dataset[Econ4]=$G63))*Dataset[2023/24 Preliminary outcome])","v":0},{"$f":"SUMPRODUCT(((Dataset[Econ4]=$G63))*Dataset[2024/25 Baseline])","v":7594080},{"$f":"SUMPRODUCT(((Dataset[Econ4]=$G63))*Dataset[2024/25 Reduction])","v":0},{"$f":"K63+L63","v":7594080},{"$f":"SUMPRODUCT(((Dataset[Econ4]=$G63))*Dataset[2025/26 Baseline])","v":8210125},{"$f":"SUMPRODUCT(((Dataset[Econ4]=$G63))*Dataset[2025/26 Total decrease])","v":0},{"$f":"SUMPRODUCT(((Dataset[Econ4]=$G63))*Dataset[2025/26 To - Total])","v":0},8210125,{"$f":"SUMPRODUCT(((Dataset[Econ4]=$G63))*Dataset[2026/27 Baseline])","v":7751107},{"$f":"SUMPRODUCT(((Dataset[Econ4]=$G63))*Dataset[2026/27 Total decrease])","v":0},{"$f":"SUMPRODUCT(((Dataset[Econ4]=$G63))*Dataset[2026/27 To - Total])","v":0},7751107,{"$f":"SUMPRODUCT(((Dataset[Econ4]=$G63))*Dataset[2027/28 Baseline])","v":6576640},{"$f":"SUMPRODUCT(((Dataset[Econ4]=$G63))*Dataset[2027/28 Total decrease])","v":0},{"$f":"SUMPRODUCT(((Dataset[Econ4]=$G63))*Dataset[2027/28 To - Total])","v":0},6576640]
[null,null,null,null,null,null,"Departmental agencies and accounts",{"$f":"SUM(H65:H66)","v":22387536},{"$f":"SUM(I65:I66)","v":23433506},{"$f":"SUM(J65:J66)","v":0},27014249,{"$f":"SUM(L65:L66)","v":0},27014249,30111708,0,0,30111708,{"$f":"SUM(R65:R66)","v":31493372},{"$f":"SUM(S65:S66)","v":0},0,31493372,32917522,0,0,32917522]
[null,null,null,null,null,null,"Social security funds",{"$f":"SUMPRODUCT(((Dataset[Econ4]=$G65))*Dataset[2021/22])","v":0},{"$f":"SUMPRODUCT(((Dataset[Econ4]=$G65))*Dataset[2022/23])","v":0},{"$f":"SUMPRODUCT(((Dataset[Econ4]=$G65))*Dataset[2023/24 Preliminary outcome])","v":0},{"$f":"SUMPRODUCT(((Dataset[Econ4]=$G65))*Dataset[2024/25 Baseline])","v":0},{"$f":"SUMPRODUCT(((Dataset[Econ4]=$G65))*Dataset[2024/25 Reduction])","v":0},{"$f":"K65+L65","v":0},{"$f":"SUMPRODUCT(((Dataset[Econ4]=$G65))*Dataset[2025/26 Baseline])","v":0},{"$f":"SUMPRODUCT(((Dataset[Econ4]=$G65))*Dataset[2025/26 Total decrease])","v":0},{"$f":"SUMPRODUCT(((Dataset[Econ4]=$G65))*Dataset[2025/26 To - Total])","v":0},{"$f":"N65+O65+P65","v":0},{"$f":"SUMPRODUCT(((Dataset[Econ4]=$G65))*Dataset[2026/27 Baseline])","v":0},{"$f":"SUMPRODUCT(((Dataset[Econ4]=$G65))*Dataset[2026/27 Total decrease])","v":0},{"$f":"SUMPRODUCT(((Dataset[Econ4]=$G65))*Dataset[2026/27 To - Total])","v":0},{"$f":"R65+S65+T65","v":0},{"$f":"SUMPRODUCT(((Dataset[Econ4]=$G65))*Dataset[2027/28 Baseline])","v":0},{"$f":"SUMPRODUCT(((Dataset[Econ4]=$G65))*Dataset[2027/28 Total decrease])","v":0},{"$f":"SUMPRODUCT(((Dataset[Econ4]=$G65))*Dataset[2027/28 To - Total])","v":0},{"$f":"V65+W65+X65","v":0}]
[null,null,null,null,null,null,"Departmental agencies (non-business entities)",{"$f":"SUMPRODUCT(((Dataset[Econ4]=$G66))*Dataset[2021/22])","v":22387536},{"$f":"SUMPRODUCT(((Dataset[Econ4]=$G66))*Dataset[2022/23])","v":23433506},{"$f":"SUMPRODUCT(((Dataset[Econ4]=$G66))*Dataset[2023/24 Preliminary outcome])","v":0},{"$f":"SUMPRODUCT(((Dataset[Econ4]=$G66))*Dataset[2024/25 Baseline])","v":27014249},{"$f":"SUMPRODUCT(((Dataset[Econ4]=$G66))*Dataset[2024/25 Reduction])","v":0},{"$f":"K66+L66","v":27014249},{"$f":"SUMPRODUCT(((Dataset[Econ4]=$G66))*Dataset[2025/26 Baseline])","v":30111708},{"$f":"SUMPRODUCT(((Dataset[Econ4]=$G66))*Dataset[2025/26 Total decrease])","v":0},{"$f":"SUMPRODUCT(((Dataset[Econ4]=$G66))*Dataset[2025/26 To - Total])","v":0},30111708,{"$f":"SUMPRODUCT(((Dataset[Econ4]=$G66))*Dataset[2026/27 Baseline])","v":31493372},{"$f":"SUMPRODUCT(((Dataset[Econ4]=$G66))*Dataset[2026/27 Total decrease])","v":0},{"$f":"SUMPRODUCT(((Dataset[Econ4]=$G66))*Dataset[2026/27 To - Total])","v":0},31493372,{"$f":"SUMPRODUCT(((Dataset[Econ4]=$G66))*Dataset[2027/28 Baseline])","v":32917522},{"$f":"SUMPRODUCT(((Dataset[Econ4]=$G66))*Dataset[2027/28 Total decrease])","v":0},{"$f":"SUMPRODUCT(((Dataset[Econ4]=$G66))*Dataset[2027/28 To - Total])","v":0},32917522]
[null,null,null,null,null,null,"Higher education institutions",{"$f":"SUMPRODUCT(((Dataset[Econ3]=$G67))*Dataset[2021/22])","v":0},{"$f":"SUMPRODUCT(((Dataset[Econ3]=$G67))*Dataset[2022/23])","v":0},{"$f":"SUMPRODUCT(((Dataset[Econ3]=$G67))*Dataset[2023/24 Preliminary outcome])","v":0},{"$f":"SUMPRODUCT(((Dataset[Econ3]=$G67))*Dataset[2024/25 Baseline])","v":0},{"$f":"SUMPRODUCT(((Dataset[Econ3]=$G67))*Dataset[2024/25 Reduction])","v":0},{"$f":"K67+L67","v":0},{"$f":"SUMPRODUCT(((Dataset[Econ3]=$G67))*Dataset[2025/26 Baseline])","v":0},{"$f":"SUMPRODUCT(((Dataset[Econ3]=$G67))*Dataset[2025/26 Total decrease])","v":0},{"$f":"SUMPRODUCT(((Dataset[Econ3]=$G67))*Dataset[2025/26 To - Total])","v":0},0,{"$f":"SUMPRODUCT(((Dataset[Econ3]=$G67))*Dataset[2026/27 Baseline])","v":0},{"$f":"SUMPRODUCT(((Dataset[Econ3]=$G67))*Dataset[2026/27 Total decrease])","v":0},{"$f":"SUMPRODUCT(((Dataset[Econ3]=$G67))*Dataset[2026/27 To - Total])","v":0},0,{"$f":"SUMPRODUCT(((Dataset[Econ3]=$G67))*Dataset[2027/28 Baseline])","v":0},{"$f":"SUMPRODUCT(((Dataset[Econ3]=$G67))*Dataset[2027/28 Total decrease])","v":0},{"$f":"SUMPRODUCT(((Dataset[Econ3]=$G67))*Dataset[2027/28 To - Total])","v":0},0]
[null,null,null,null,null,null,"Foreign governments and international organisations",{"$f":"SUMPRODUCT(((Dataset[Econ3]=$G68))*Dataset[2021/22])","v":14752},{"$f":"SUMPRODUCT(((Dataset[Econ3]=$G68))*Dataset[2022/23])","v":17943},{"$f":"SUMPRODUCT(((Dataset[Econ3]=$G68))*Dataset[2023/24 Preliminary outcome])","v":0},{"$f":"SUMPRODUCT(((Dataset[Econ3]=$G68))*Dataset[2024/25 Baseline])","v":37175},{"$f":"SUMPRODUCT(((Dataset[Econ3]=$G68))*Dataset[2024/25 Reduction])","v":0},{"$f":"K68+L68","v":37175},{"$f":"SUMPRODUCT(((Dataset[Econ3]=$G68))*Dataset[2025/26 Baseline])","v":38840},{"$f":"SUMPRODUCT(((Dataset[Econ3]=$G68))*Dataset[2025/26 Total decrease])","v":0},{"$f":"SUMPRODUCT(((Dataset[Econ3]=$G68))*Dataset[2025/26 To - Total])","v":0},38840,{"$f":"SUMPRODUCT(((Dataset[Econ3]=$G68))*Dataset[2026/27 Baseline])","v":40619},{"$f":"SUMPRODUCT(((Dataset[Econ3]=$G68))*Dataset[2026/27 Total decrease])","v":0},{"$f":"SUMPRODUCT(((Dataset[Econ3]=$G68))*Dataset[2026/27 To - Total])","v":0},40619,{"$f":"SUMPRODUCT(((Dataset[Econ3]=$G68))*Dataset[2027/28 Baseline])","v":42455},{"$f":"SUMPRODUCT(((Dataset[Econ3]=$G68))*Dataset[2027/28 Total decrease])","v":0},{"$f":"SUMPRODUCT(((Dataset[Econ3]=$G68))*Dataset[2027/28 To - Total])","v":0},42455]
[null,null,null,null,null,null,"Public corporations and private enterprises",{"$f":"SUM(H70:H71)","v":16669462},{"$f":"SUM(I70:I71)","v":19858541},{"$f":"SUM(J70:J71)","v":0},19354021,{"$f":"SUM(L70:L71)","v":0},19354021,20220656,0,0,20220656,{"$f":"SUM(R70:R71)","v":21148084},{"$f":"SUM(S70:S71)","v":0},0,21148084,22104413,0,0,22104413]
[null,null,null,null,null,null,"Public corporations",{"$f":"SUMPRODUCT(((Dataset[Econ4]=$G70))*Dataset[2021/22])","v":16669462},{"$f":"SUMPRODUCT(((Dataset[Econ4]=$G70))*Dataset[2022/23])","v":19858541},{"$f":"SUMPRODUCT(((Dataset[Econ4]=$G70))*Dataset[2023/24 Preliminary outcome])","v":0},{"$f":"SUMPRODUCT(((Dataset[Econ4]=$G70))*Dataset[2024/25 Baseline])","v":19354021},{"$f":"SUMPRODUCT(((Dataset[Econ4]=$G70))*Dataset[2024/25 Reduction])","v":0},{"$f":"K70+L70","v":19354021},{"$f":"SUMPRODUCT(((Dataset[Econ4]=$G70))*Dataset[2025/26 Baseline])","v":20220656},{"$f":"SUMPRODUCT(((Dataset[Econ4]=$G70))*Dataset[2025/26 Total decrease])","v":0},{"$f":"SUMPRODUCT(((Dataset[Econ4]=$G70))*Dataset[2025/26 To - Total])","v":0},{"$f":"N70+O70+P70","v":20220656},{"$f":"SUMPRODUCT(((Dataset[Econ4]=$G70))*Dataset[2026/27 Baseline])","v":21148084},{"$f":"SUMPRODUCT(((Dataset[Econ4]=$G70))*Dataset[2026/27 Total decrease])","v":0},{"$f":"SUMPRODUCT(((Dataset[Econ4]=$G70))*Dataset[2026/27 To - Total])","v":0},{"$f":"R70+S70+T70","v":21148084},{"$f":"SUMPRODUCT(((Dataset[Econ4]=$G70))*Dataset[2027/28 Baseline])","v":22104413},{"$f":"SUMPRODUCT(((Dataset[Econ4]=$G70))*Dataset[2027/28 Total decrease])","v":0},{"$f":"SUMPRODUCT(((Dataset[Econ4]=$G70))*Dataset[2027/28 To - Total])","v":0},{"$f":"V70+W70+X70","v":22104413}]
[null,null,null,null,null,null,"Private enterprises",{"$f":"SUMPRODUCT(((Dataset[Econ4]=$G71))*Dataset[2021/22])","v":0},{"$f":"SUMPRODUCT(((Dataset[Econ4]=$G71))*Dataset[2022/23])","v":0},{"$f":"SUMPRODUCT(((Dataset[Econ4]=$G71))*Dataset[2023/24 Preliminary outcome])","v":0},{"$f":"SUMPRODUCT(((Dataset[Econ4]=$G71))*Dataset[2024/25 Baseline])","v":0},{"$f":"SUMPRODUCT(((Dataset[Econ4]=$G71))*Dataset[2024/25 Reduction])","v":0},{"$f":"K71+L71","v":0},{"$f":"SUMPRODUCT(((Dataset[Econ4]=$G71))*Dataset[2025/26 Baseline])","v":0},{"$f":"SUMPRODUCT(((Dataset[Econ4]=$G71))*Dataset[2025/26 Total decrease])","v":0},{"$f":"SUMPRODUCT(((Dataset[Econ4]=$G71))*Dataset[2025/26 To - Total])","v":0},0,{"$f":"SUMPRODUCT(((Dataset[Econ4]=$G71))*Dataset[2026/27 Baseline])","v":0},{"$f":"SUMPRODUCT(((Dataset[Econ4]=$G71))*Dataset[2026/27 Total decrease])","v":0},{"$f":"SUMPRODUCT(((Dataset[Econ4]=$G71))*Dataset[2026/27 To - Total])","v":0},0,{"$f":"SUMPRODUCT(((Dataset[Econ4]=$G71))*Dataset[2027/28 Baseline])","v":0},{"$f":"SUMPRODUCT(((Dataset[Econ4]=$G71))*Dataset[2027/28 Total decrease])","v":0},{"$f":"SUMPRODUCT(((Dataset[Econ4]=$G71))*Dataset[2027/28 To - Total])","v":0},0]
[null,null,null,null,null,null,"Non-profit institutions",{"$f":"SUMPRODUCT(((Dataset[Econ3]=$G72))*Dataset[2021/22])","v":29784},{"$f":"SUMPRODUCT(((Dataset[Econ3]=$G72))*Dataset[2022/23])","v":32053},{"$f":"SUMPRODUCT(((Dataset[Econ3]=$G72))*Dataset[2023/24 Preliminary outcome])","v":0},{"$f":"SUMPRODUCT(((Dataset[Econ3]=$G72))*Dataset[2024/25 Baseline])","v":34968},{"$f":"SUMPRODUCT(((Dataset[Econ3]=$G72))*Dataset[2024/25 Reduction])","v":0},{"$f":"K72+L72","v":34968},{"$f":"SUMPRODUCT(((Dataset[Econ3]=$G72))*Dataset[2025/26 Baseline])","v":36533},{"$f":"SUMPRODUCT(((Dataset[Econ3]=$G72))*Dataset[2025/26 Total decrease])","v":0},{"$f":"SUMPRODUCT(((Dataset[Econ3]=$G72))*Dataset[2025/26 To - Total])","v":0},36533,{"$f":"SUMPRODUCT(((Dataset[Econ3]=$G72))*Dataset[2026/27 Baseline])","v":38208},{"$f":"SUMPRODUCT(((Dataset[Econ3]=$G72))*Dataset[2026/27 Total decrease])","v":0},{"$f":"SUMPRODUCT(((Dataset[Econ3]=$G72))*Dataset[2026/27 To - Total])","v":0},38208,{"$f":"SUMPRODUCT(((Dataset[Econ3]=$G72))*Dataset[2027/28 Baseline])","v":39936},{"$f":"SUMPRODUCT(((Dataset[Econ3]=$G72))*Dataset[2027/28 Total decrease])","v":0},{"$f":"SUMPRODUCT(((Dataset[Econ3]=$G72))*Dataset[2027/28 To - Total])","v":0},39936]
[null,null,null,null,null,null,"Households",{"$f":"SUM(H74:H75)","v":319994},{"$f":"SUM(I74:I75)","v":391488},{"$f":"SUM(J74:J75)","v":0},461314,{"$f":"SUM(L74:L75)","v":0},461314,482312,0,0,482312,{"$f":"SUM(R74:R75)","v":504440},{"$f":"SUM(S74:S75)","v":0},0,504440,527251,0,0,527251]
[null,null,null,null,null,null,"Social benefits",{"$f":"SUMPRODUCT(((Dataset[Econ4]=$G74))*Dataset[2021/22])","v":2067},{"$f":"SUMPRODUCT(((Dataset[Econ4]=$G74))*Dataset[2022/23])","v":2205},{"$f":"SUMPRODUCT(((Dataset[Econ4]=$G74))*Dataset[2023/24 Preliminary outcome])","v":0},{"$f":"SUMPRODUCT(((Dataset[Econ4]=$G74))*Dataset[2024/25 Baseline])","v":267},{"$f":"SUMPRODUCT(((Dataset[Econ4]=$G74))*Dataset[2024/25 Reduction])","v":0},{"$f":"K74+L74","v":267},{"$f":"SUMPRODUCT(((Dataset[Econ4]=$G74))*Dataset[2025/26 Baseline])","v":279},{"$f":"SUMPRODUCT(((Dataset[Econ4]=$G74))*Dataset[2025/26 Total decrease])","v":0},{"$f":"SUMPRODUCT(((Dataset[Econ4]=$G74))*Dataset[2025/26 To - Total])","v":0},{"$f":"N74+O74+P74","v":279},{"$f":"SUMPRODUCT(((Dataset[Econ4]=$G74))*Dataset[2026/27 Baseline])","v":292},{"$f":"SUMPRODUCT(((Dataset[Econ4]=$G74))*Dataset[2026/27 Total decrease])","v":0},{"$f":"SUMPRODUCT(((Dataset[Econ4]=$G74))*Dataset[2026/27 To - Total])","v":0},{"$f":"R74+S74+T74","v":292},{"$f":"SUMPRODUCT(((Dataset[Econ4]=$G74))*Dataset[2027/28 Baseline])","v":305},{"$f":"SUMPRODUCT(((Dataset[Econ4]=$G74))*Dataset[2027/28 Total decrease])","v":0},{"$f":"SUMPRODUCT(((Dataset[Econ4]=$G74))*Dataset[2027/28 To - Total])","v":0},{"$f":"V74+W74+X74","v":305}]
[null,null,null,null,null,null,"Other transfers to households",{"$f":"SUMPRODUCT(((Dataset[Econ4]=$G75))*Dataset[2021/22])","v":317927},{"$f":"SUMPRODUCT(((Dataset[Econ4]=$G75))*Dataset[2022/23])","v":389283},{"$f":"SUMPRODUCT(((Dataset[Econ4]=$G75))*Dataset[2023/24 Preliminary outcome])","v":0},{"$f":"SUMPRODUCT(((Dataset[Econ4]=$G75))*Dataset[2024/25 Baseline])","v":461047},{"$f":"SUMPRODUCT(((Dataset[Econ4]=$G75))*Dataset[2024/25 Reduction])","v":0},{"$f":"K75+L75","v":461047},{"$f":"SUMPRODUCT(((Dataset[Econ4]=$G75))*Dataset[2025/26 Baseline])","v":482033},{"$f":"SUMPRODUCT(((Dataset[Econ4]=$G75))*Dataset[2025/26 Total decrease])","v":0},{"$f":"SUMPRODUCT(((Dataset[Econ4]=$G75))*Dataset[2025/26 To - Total])","v":0},482033,{"$f":"SUMPRODUCT(((Dataset[Econ4]=$G75))*Dataset[2026/27 Baseline])","v":504148},{"$f":"SUMPRODUCT(((Dataset[Econ4]=$G75))*Dataset[2026/27 Total decrease])","v":0},{"$f":"SUMPRODUCT(((Dataset[Econ4]=$G75))*Dataset[2026/27 To - Total])","v":0},504148,{"$f":"SUMPRODUCT(((Dataset[Econ4]=$G75))*Dataset[2027/28 Baseline])","v":526946},{"$f":"SUMPRODUCT(((Dataset[Econ4]=$G75))*Dataset[2027/28 Total decrease])","v":0},{"$f":"SUMPRODUCT(((Dataset[Econ4]=$G75))*Dataset[2027/28 To - Total])","v":0},526946]
[null,null,null,null,null,null,"Payments for capital assets",{"$f":"SUM(H77,H80,H83:H87)","v":43704},{"$f":"SUM(I77,I80,I83:I87)","v":11029},{"$f":"SUM(J77,J80,J83:J87)","v":20151},6318,{"$f":"SUM(L77,L80,L83:L87)","v":0},6318,6600,0,0,6600,{"$f":"SUM(R77,R80,R83:R87)","v":6902},{"$f":"SUM(S77,S80,S83:S87)","v":0},0,6902,7212,0,0,7212]
[null,null,null,null,null,null,"Buildings and other fixed structures",{"$f":"SUM(H78:H79)","v":38410},{"$f":"SUM(I78:I79)","v":99},{"$f":"SUM(J78:J79)","v":0},0,{"$f":"SUM(L78:L79)","v":0},0,0,0,0,0,{"$f":"SUM(R78:R79)","v":0},{"$f":"SUM(S78:S79)","v":0},0,0,0,0,0,0]
[null,null,null,null,null,null,"Buildings",{"$f":"SUMPRODUCT(((Dataset[Econ4]=$G78))*Dataset[2021/22])","v":38410},{"$f":"SUMPRODUCT(((Dataset[Econ4]=$G78))*Dataset[2022/23])","v":0},{"$f":"SUMPRODUCT(((Dataset[Econ4]=$G78))*Dataset[2023/24 Preliminary outcome])","v":0},{"$f":"SUMPRODUCT(((Dataset[Econ4]=$G78))*Dataset[2024/25 Baseline])","v":0},{"$f":"SUMPRODUCT(((Dataset[Econ4]=$G78))*Dataset[2024/25 Reduction])","v":0},{"$f":"K78+L78","v":0},{"$f":"SUMPRODUCT(((Dataset[Econ4]=$G78))*Dataset[2025/26 Baseline])","v":0},{"$f":"SUMPRODUCT(((Dataset[Econ4]=$G78))*Dataset[2025/26 Total decrease])","v":0},{"$f":"SUMPRODUCT(((Dataset[Econ4]=$G78))*Dataset[2025/26 To - Total])","v":0},{"$f":"N78+O78+P78","v":0},{"$f":"SUMPRODUCT(((Dataset[Econ4]=$G78))*Dataset[2026/27 Baseline])","v":0},{"$f":"SUMPRODUCT(((Dataset[Econ4]=$G78))*Dataset[2026/27 Total decrease])","v":0},{"$f":"SUMPRODUCT(((Dataset[Econ4]=$G78))*Dataset[2026/27 To - Total])","v":0},{"$f":"R78+S78+T78","v":0},{"$f":"SUMPRODUCT(((Dataset[Econ4]=$G78))*Dataset[2027/28 Baseline])","v":0},{"$f":"SUMPRODUCT(((Dataset[Econ4]=$G78))*Dataset[2027/28 Total decrease])","v":0},{"$f":"SUMPRODUCT(((Dataset[Econ4]=$G78))*Dataset[2027/28 To - Total])","v":0},{"$f":"V78+W78+X78","v":0}]
[null,null,null,null,null,null,"Other fixed structures",{"$f":"SUMPRODUCT(((Dataset[Econ4]=$G79))*Dataset[2021/22])","v":0},{"$f":"SUMPRODUCT(((Dataset[Econ4]=$G79))*Dataset[2022/23])","v":99},{"$f":"SUMPRODUCT(((Dataset[Econ4]=$G79))*Dataset[2023/24 Preliminary outcome])","v":0},{"$f":"SUMPRODUCT(((Dataset[Econ4]=$G79))*Dataset[2024/25 Baseline])","v":0},{"$f":"SUMPRODUCT(((Dataset[Econ4]=$G79))*Dataset[2024/25 Reduction])","v":0},{"$f":"K79+L79","v":0},{"$f":"SUMPRODUCT(((Dataset[Econ4]=$G79))*Dataset[2025/26 Baseline])","v":0},{"$f":"SUMPRODUCT(((Dataset[Econ4]=$G79))*Dataset[2025/26 Total decrease])","v":0},{"$f":"SUMPRODUCT(((Dataset[Econ4]=$G79))*Dataset[2025/26 To - Total])","v":0},0,{"$f":"SUMPRODUCT(((Dataset[Econ4]=$G79))*Dataset[2026/27 Baseline])","v":0},{"$f":"SUMPRODUCT(((Dataset[Econ4]=$G79))*Dataset[2026/27 Total decrease])","v":0},{"$f":"SUMPRODUCT(((Dataset[Econ4]=$G79))*Dataset[2026/27 To - Total])","v":0},0,{"$f":"SUMPRODUCT(((Dataset[Econ4]=$G79))*Dataset[2027/28 Baseline])","v":0},{"$f":"SUMPRODUCT(((Dataset[Econ4]=$G79))*Dataset[2027/28 Total decrease])","v":0},{"$f":"SUMPRODUCT(((Dataset[Econ4]=$G79))*Dataset[2027/28 To - Total])","v":0},0]
[null,null,null,null,null,null,"Machinery and equipment",{"$f":"SUM(H81:H82)","v":5294},{"$f":"SUM(I81:I82)","v":10930},{"$f":"SUM(J81:J82)","v":20151},6318,{"$f":"SUM(L81:L82)","v":0},6318,6600,0,0,6600,{"$f":"SUM(R81:R82)","v":6902},{"$f":"SUM(S81:S82)","v":0},0,6902,7212,0,0,7212]
[null,null,null,null,null,null,"Transport equipment",{"$f":"SUMPRODUCT(((Dataset[Econ4]=$G81))*Dataset[2021/22])","v":749},{"$f":"SUMPRODUCT(((Dataset[Econ4]=$G81))*Dataset[2022/23])","v":0},{"$f":"SUMPRODUCT(((Dataset[Econ4]=$G81))*Dataset[2023/24 Preliminary outcome])","v":0},{"$f":"SUMPRODUCT(((Dataset[Econ4]=$G81))*Dataset[2024/25 Baseline])","v":0},{"$f":"SUMPRODUCT(((Dataset[Econ4]=$G81))*Dataset[2024/25 Reduction])","v":0},{"$f":"K81+L81","v":0},{"$f":"SUMPRODUCT(((Dataset[Econ4]=$G81))*Dataset[2025/26 Baseline])","v":0},{"$f":"SUMPRODUCT(((Dataset[Econ4]=$G81))*Dataset[2025/26 Total decrease])","v":0},{"$f":"SUMPRODUCT(((Dataset[Econ4]=$G81))*Dataset[2025/26 To - Total])","v":0},{"$f":"N81+O81+P81","v":0},{"$f":"SUMPRODUCT(((Dataset[Econ4]=$G81))*Dataset[2026/27 Baseline])","v":0},{"$f":"SUMPRODUCT(((Dataset[Econ4]=$G81))*Dataset[2026/27 Total decrease])","v":0},{"$f":"SUMPRODUCT(((Dataset[Econ4]=$G81))*Dataset[2026/27 To - Total])","v":0},{"$f":"R81+S81+T81","v":0},{"$f":"SUMPRODUCT(((Dataset[Econ4]=$G81))*Dataset[2027/28 Baseline])","v":0},{"$f":"SUMPRODUCT(((Dataset[Econ4]=$G81))*Dataset[2027/28 Total decrease])","v":0},{"$f":"SUMPRODUCT(((Dataset[Econ4]=$G81))*Dataset[2027/28 To - Total])","v":0},{"$f":"V81+W81+X81","v":0}]
[null,null,null,null,null,null,"Other machinery and equipment",{"$f":"SUMPRODUCT(((Dataset[Econ4]=$G82))*Dataset[2021/22])","v":4545},{"$f":"SUMPRODUCT(((Dataset[Econ4]=$G82))*Dataset[2022/23])","v":10930},{"$f":"SUMPRODUCT(((Dataset[Econ4]=$G82))*Dataset[2023/24 Preliminary outcome])","v":20151},{"$f":"SUMPRODUCT(((Dataset[Econ4]=$G82))*Dataset[2024/25 Baseline])","v":6318},{"$f":"SUMPRODUCT(((Dataset[Econ4]=$G82))*Dataset[2024/25 Reduction])","v":0},6318,{"$f":"SUMPRODUCT(((Dataset[Econ4]=$G82))*Dataset[2025/26 Baseline])","v":6600},{"$f":"SUMPRODUCT(((Dataset[Econ4]=$G82))*Dataset[2025/26 Total decrease])","v":0},{"$f":"SUMPRODUCT(((Dataset[Econ4]=$G82))*Dataset[2025/26 To - Total])","v":0},6600,{"$f":"SUMPRODUCT(((Dataset[Econ4]=$G82))*Dataset[2026/27 Baseline])","v":6902},{"$f":"SUMPRODUCT(((Dataset[Econ4]=$G82))*Dataset[2026/27 Total decrease])","v":0},{"$f":"SUMPRODUCT(((Dataset[Econ4]=$G82))*Dataset[2026/27 To - Total])","v":0},6902,{"$f":"SUMPRODUCT(((Dataset[Econ4]=$G82))*Dataset[2027/28 Baseline])","v":7212},{"$f":"SUMPRODUCT(((Dataset[Econ4]=$G82))*Dataset[2027/28 Total decrease])","v":0},{"$f":"SUMPRODUCT(((Dataset[Econ4]=$G82))*Dataset[2027/28 To - Total])","v":0},7212]
[null,null,null,null,null,null,"Heritage assets",{"$f":"SUMPRODUCT(((Dataset[Econ3]=$G83))*Dataset[2021/22])","v":0},{"$f":"SUMPRODUCT(((Dataset[Econ3]=$G83))*Dataset[2022/23])","v":0},{"$f":"SUMPRODUCT(((Dataset[Econ3]=$G83))*Dataset[2023/24 Preliminary outcome])","v":0},{"$f":"SUMPRODUCT(((Dataset[Econ3]=$G83))*Dataset[2024/25 Baseline])","v":0},{"$f":"SUMPRODUCT(((Dataset[Econ3]=$G83))*Dataset[2024/25 Reduction])","v":0},0,{"$f":"SUMPRODUCT(((Dataset[Econ3]=$G83))*Dataset[2025/26 Baseline])","v":0},{"$f":"SUMPRODUCT(((Dataset[Econ3]=$G83))*Dataset[2025/26 Total decrease])","v":0},{"$f":"SUMPRODUCT(((Dataset[Econ3]=$G83))*Dataset[2025/26 To - Total])","v":0},0,{"$f":"SUMPRODUCT(((Dataset[Econ3]=$G83))*Dataset[2026/27 Baseline])","v":0},{"$f":"SUMPRODUCT(((Dataset[Econ3]=$G83))*Dataset[2026/27 Total decrease])","v":0},{"$f":"SUMPRODUCT(((Dataset[Econ3]=$G83))*Dataset[2026/27 To - Total])","v":0},0,{"$f":"SUMPRODUCT(((Dataset[Econ3]=$G83))*Dataset[2027/28 Baseline])","v":0},{"$f":"SUMPRODUCT(((Dataset[Econ3]=$G83))*Dataset[2027/28 Total decrease])","v":0},{"$f":"SUMPRODUCT(((Dataset[Econ3]=$G83))*Dataset[2027/28 To - Total])","v":0},0]
[null,null,null,null,null,null,"Specialised military assets",{"$f":"SUMPRODUCT(((Dataset[Econ3]=$G84))*Dataset[2021/22])","v":0},{"$f":"SUMPRODUCT(((Dataset[Econ3]=$G84))*Dataset[2022/23])","v":0},{"$f":"SUMPRODUCT(((Dataset[Econ3]=$G84))*Dataset[2023/24 Preliminary outcome])","v":0},{"$f":"SUMPRODUCT(((Dataset[Econ3]=$G84))*Dataset[2024/25 Baseline])","v":0},{"$f":"SUMPRODUCT(((Dataset[Econ3]=$G84))*Dataset[2024/25 Reduction])","v":0},0,{"$f":"SUMPRODUCT(((Dataset[Econ3]=$G84))*Dataset[2025/26 Baseline])","v":0},{"$f":"SUMPRODUCT(((Dataset[Econ3]=$G84))*Dataset[2025/26 Total decrease])","v":0},{"$f":"SUMPRODUCT(((Dataset[Econ3]=$G84))*Dataset[2025/26 To - Total])","v":0},0,{"$f":"SUMPRODUCT(((Dataset[Econ3]=$G84))*Dataset[2026/27 Baseline])","v":0},{"$f":"SUMPRODUCT(((Dataset[Econ3]=$G84))*Dataset[2026/27 Total decrease])","v":0},{"$f":"SUMPRODUCT(((Dataset[Econ3]=$G84))*Dataset[2026/27 To - Total])","v":0},0,{"$f":"SUMPRODUCT(((Dataset[Econ3]=$G84))*Dataset[2027/28 Baseline])","v":0},{"$f":"SUMPRODUCT(((Dataset[Econ3]=$G84))*Dataset[2027/28 Total decrease])","v":0},{"$f":"SUMPRODUCT(((Dataset[Econ3]=$G84))*Dataset[2027/28 To - Total])","v":0},0]
[null,null,null,null,null,null,"Biological assets",{"$f":"SUMPRODUCT(((Dataset[Econ3]=$G85))*Dataset[2021/22])","v":0},{"$f":"SUMPRODUCT(((Dataset[Econ3]=$G85))*Dataset[2022/23])","v":0},{"$f":"SUMPRODUCT(((Dataset[Econ3]=$G85))*Dataset[2023/24 Preliminary outcome])","v":0},{"$f":"SUMPRODUCT(((Dataset[Econ3]=$G85))*Dataset[2024/25 Baseline])","v":0},{"$f":"SUMPRODUCT(((Dataset[Econ3]=$G85))*Dataset[2024/25 Reduction])","v":0},0,{"$f":"SUMPRODUCT(((Dataset[Econ3]=$G85))*Dataset[2025/26 Baseline])","v":0},{"$f":"SUMPRODUCT(((Dataset[Econ3]=$G85))*Dataset[2025/26 Total decrease])","v":0},{"$f":"SUMPRODUCT(((Dataset[Econ3]=$G85))*Dataset[2025/26 To - Total])","v":0},0,{"$f":"SUMPRODUCT(((Dataset[Econ3]=$G85))*Dataset[2026/27 Baseline])","v":0},{"$f":"SUMPRODUCT(((Dataset[Econ3]=$G85))*Dataset[2026/27 Total decrease])","v":0},{"$f":"SUMPRODUCT(((Dataset[Econ3]=$G85))*Dataset[2026/27 To - Total])","v":0},0,{"$f":"SUMPRODUCT(((Dataset[Econ3]=$G85))*Dataset[2027/28 Baseline])","v":0},{"$f":"SUMPRODUCT(((Dataset[Econ3]=$G85))*Dataset[2027/28 Total decrease])","v":0},{"$f":"SUMPRODUCT(((Dataset[Econ3]=$G85))*Dataset[2027/28 To - Total])","v":0},0]
[null,null,null,null,null,null,"Land and sub-soil assets",{"$f":"SUMPRODUCT(((Dataset[Econ3]=$G86))*Dataset[2021/22])","v":0},{"$f":"SUMPRODUCT(((Dataset[Econ3]=$G86))*Dataset[2022/23])","v":0},{"$f":"SUMPRODUCT(((Dataset[Econ3]=$G86))*Dataset[2023/24 Preliminary outcome])","v":0},{"$f":"SUMPRODUCT(((Dataset[Econ3]=$G86))*Dataset[2024/25 Baseline])","v":0},{"$f":"SUMPRODUCT(((Dataset[Econ3]=$G86))*Dataset[2024/25 Reduction])","v":0},0,{"$f":"SUMPRODUCT(((Dataset[Econ3]=$G86))*Dataset[2025/26 Baseline])","v":0},{"$f":"SUMPRODUCT(((Dataset[Econ3]=$G86))*Dataset[2025/26 Total decrease])","v":0},{"$f":"SUMPRODUCT(((Dataset[Econ3]=$G86))*Dataset[2025/26 To - Total])","v":0},0,{"$f":"SUMPRODUCT(((Dataset[Econ3]=$G86))*Dataset[2026/27 Baseline])","v":0},{"$f":"SUMPRODUCT(((Dataset[Econ3]=$G86))*Dataset[2026/27 Total decrease])","v":0},{"$f":"SUMPRODUCT(((Dataset[Econ3]=$G86))*Dataset[2026/27 To - Total])","v":0},0,{"$f":"SUMPRODUCT(((Dataset[Econ3]=$G86))*Dataset[2027/28 Baseline])","v":0},{"$f":"SUMPRODUCT(((Dataset[Econ3]=$G86))*Dataset[2027/28 Total decrease])","v":0},{"$f":"SUMPRODUCT(((Dataset[Econ3]=$G86))*Dataset[2027/28 To - Total])","v":0},0]
[null,null,null,null,null,null,"Software and other intangible assets",{"$f":"SUMPRODUCT(((Dataset[Econ3]=$G87))*Dataset[2021/22])","v":0},{"$f":"SUMPRODUCT(((Dataset[Econ3]=$G87))*Dataset[2022/23])","v":0},{"$f":"SUMPRODUCT(((Dataset[Econ3]=$G87))*Dataset[2023/24 Preliminary outcome])","v":0},{"$f":"SUMPRODUCT(((Dataset[Econ3]=$G87))*Dataset[2024/25 Baseline])","v":0},{"$f":"SUMPRODUCT(((Dataset[Econ3]=$G87))*Dataset[2024/25 Reduction])","v":0},0,{"$f":"SUMPRODUCT(((Dataset[Econ3]=$G87))*Dataset[2025/26 Baseline])","v":0},{"$f":"SUMPRODUCT(((Dataset[Econ3]=$G87))*Dataset[2025/26 Total decrease])","v":0},{"$f":"SUMPRODUCT(((Dataset[Econ3]=$G87))*Dataset[2025/26 To - Total])","v":0},0,{"$f":"SUMPRODUCT(((Dataset[Econ3]=$G87))*Dataset[2026/27 Baseline])","v":0},{"$f":"SUMPRODUCT(((Dataset[Econ3]=$G87))*Dataset[2026/27 Total decrease])","v":0},{"$f":"SUMPRODUCT(((Dataset[Econ3]=$G87))*Dataset[2026/27 To - Total])","v":0},0,{"$f":"SUMPRODUCT(((Dataset[Econ3]=$G87))*Dataset[2027/28 Baseline])","v":0},{"$f":"SUMPRODUCT(((Dataset[Econ3]=$G87))*Dataset[2027/28 Total decrease])","v":0},{"$f":"SUMPRODUCT(((Dataset[Econ3]=$G87))*Dataset[2027/28 To - Total])","v":0},0]
[null,null,null,null,null,null,"Payments for financial assets",{"$f":"SUMPRODUCT(((Dataset[Econ3]=$G88))*Dataset[2021/22])","v":142},{"$f":"SUMPRODUCT(((Dataset[Econ3]=$G88))*Dataset[2022/23])","v":23736609},{"$f":"SUMPRODUCT(((Dataset[Econ3]=$G88))*Dataset[2023/24 Preliminary outcome])","v":0},{"$f":"SUMPRODUCT(((Dataset[Econ3]=$G88))*Dataset[2024/25 Baseline])","v":204000},{"$f":"SUMPRODUCT(((Dataset[Econ3]=$G88))*Dataset[2024/25 Reduction])","v":0},204000,{"$f":"SUMPRODUCT(((Dataset[Econ3]=$G88))*Dataset[2025/26 Baseline])","v":218602},{"$f":"SUMPRODUCT(((Dataset[Econ3]=$G88))*Dataset[2025/26 Total decrease])","v":0},{"$f":"SUMPRODUCT(((Dataset[Econ3]=$G88))*Dataset[2025/26 To - Total])","v":0},218602,{"$f":"SUMPRODUCT(((Dataset[Econ3]=$G88))*Dataset[2026/27 Baseline])","v":0},{"$f":"SUMPRODUCT(((Dataset[Econ3]=$G88))*Dataset[2026/27 Total decrease])","v":0},{"$f":"SUMPRODUCT(((Dataset[Econ3]=$G88))*Dataset[2026/27 To - Total])","v":0},0,{"$f":"SUMPRODUCT(((Dataset[Econ3]=$G88))*Dataset[2027/28 Baseline])","v":0},{"$f":"SUMPRODUCT(((Dataset[Econ3]=$G88))*Dataset[2027/28 Total decrease])","v":0},{"$f":"SUMPRODUCT(((Dataset[Econ3]=$G88))*Dataset[2027/28 To - Total])","v":0},0]
[null,null,null,null,null,null,"Total",{"$f":"SUM(H56,H60,H76,H88)","v":64906649},{"$f":"SUM(I56,I60,I76,I88)","v":94544753},{"$f":"SUM(J56,J60,J76,J88)","v":1383996},80634269,{"$f":"SUM(L56,L60,L76,L88)","v":0},80634269,86868222,0,0,86868222,{"$f":"SUM(R56,R60,R76,R88)","v":88591488},{"$f":"SUM(S56,S60,S76,S88)","v":0},0,88591488,91072660,0,0,91072660]
[]
[]
[]
[]
[]
[]
[null,null,null,null,null,null,"I, ……………………………………………………..………………………………………., certify that the information in this template is complete, true and accurate, and has been compiled in line with the requirements in the 2025 MTEF Technical Guidelines."]
[]
[]
[]
[]
[null,null,null,null,null,null,"……………….………………………….."]
[null,null,null,null,null,null,{"$f":"\"Chief Financial Officer\"","v":"Chief Financial Officer"}]
[]
[null,null,null,null,null,null,"…………......./……........….../……...….....…..."]

{"sheet":"SRT1","index":11,"n_rows":210,"n_cols":25,"rows_kept":210,"cut":false,"hidden":false,"merged":[[191,19,191,23],[192,19,192,23],[193,19,193,23],[184,19,184,23],[185,19,185,23],[186,19,186,23],[187,19,187,23],[190,19,190,23],[179,19,179,23],[180,19,180,23],[181,19,181,23],[182,19,182,23],[183,19,183,23],[72,6,72,18],[161,19,161,23],[177,19,177,23],[188,19,188,23],[189,19,189,23],[162,19,162,23],[163,19,163,23],[164,19,164,23],[165,19,165,23],[166,19,166,23],[167,19,167,23],[168,19,168,23],[169,19,169,23],[170,19,170,23],[171,19,171,23],[172,19,172,23],[114,19,114,23],[106,19,106,23],[157,19,157,23],[158,19,158,23],[115,19,115,23],[116,19,116,23],[117,19,117,23],[118,19,118,23],[119,19,119,23],[110,19,110,23],[111,19,111,23],[112,19,112,23],[113,19,113,23],[130,19,149,23],[84,6,98,18],[194,19,194,23],[128,19,128,23],[129,19,129,23],[204,19,204,23],[159,19,159,23],[160,19,160,23],[196,19,196,23],[107,19,107,23],[108,19,108,23],[109,19,109,23],[197,19,197,23],[198,19,198,23],[120,19,120,23],[121,19,121,23],[105,19,105,23],[118,24,118,26],[205,19,205,23],[206,19,206,23],[207,19,207,23],[208,19,208,23],[199,19,199,23],[200,19,200,23],[201,19,201,23],[202,19,202,23],[203,19,203,23],[173,19,173,23],[174,19,174,23],[175,19,175,23],[176,19,176,23],[195,19,195,23],[178,19,178,23],[119,24,119,26],[120,24,120,26],[121,24,121,26],[105,24,105,26],[106,24,106,26],[107,24,107,26],[108,24,108,26],[109,24,109,26],[110,24,110,26],[111,24,111,26],[112,24,112,26],[113,24,113,26],[114,24,114,26],[115,24,115,26],[116,24,116,26],[117,24,117,26]]}
[]
[null,null,null,null,null,null,"Spending review topic…"]
[null,{"$f":"IF(G3=\"\",0,1)","v":1},null,null,null,1,{"$f":"SRTopic1","v":"Spending review topic 1"}]
[]
[null,null,null,null,null,null,"Quick view…(Total change)",{"$f":"MyYear5","v":"2025/26"},{"$f":"MyYear6","v":"2026/27"},{"$f":"MyYear7","v":"2027/28"},"MTEF total","Trend"]
[null,null,null,null,null,null,"Compensation of employees",{"$f":"SUMPRODUCT(($G$35:$G$68=$G6)*($J$35:$J$68))","v":0},{"$f":"SUMPRODUCT(($G$35:$G$68=$G6)*($M$35:$M$68))","v":0},{"$f":"SUMPRODUCT(($G$35:$G$68=$G6)*($P$35:$P$68))","v":0},{"$f":"SUM(H6:J6)","v":0},null,null,"CoE"]
[null,null,null,null,null,null,"Goods and services",{"$f":"SUMPRODUCT(($G$35:$G$68=$G7)*($J$35:$J$68))","v":0},{"$f":"SUMPRODUCT(($G$35:$G$68=$G7)*($M$35:$M$68))","v":0},{"$f":"SUMPRODUCT(($G$35:$G$68=$G7)*($P$35:$P$68))","v":0},0,null,null,"G&S"]
[null,null,null,null,null,null,"Transfers and subsidies",{"$f":"SUMPRODUCT(($G$35:$G$68=$G8)*($J$35:$J$68))","v":0},{"$f":"SUMPRODUCT(($G$35:$G$68=$G8)*($M$35:$M$68))","v":0},{"$f":"SUMPRODUCT(($G$35:$G$68=$G8)*($P$35:$P$68))","v":0},0,null,null,"T&S"]
[null,null,null,null,null,null,"Payments for capital assets",{"$f":"SUMPRODUCT(($G$35:$G$68=$G9)*($J$35:$J$68))","v":0},{"$f":"SUMPRODUCT(($G$35:$G$68=$G9)*($M$35:$M$68))","v":0},{"$f":"SUMPRODUCT(($G$35:$G$68=$G9)*($P$35:$P$68))","v":0},0,null,null,"Capital"]
[null,null,null,null,null,null,"Total",{"$f":"SUMPRODUCT(($G$35:$G$68=$G10)*($J$35:$J$68))","v":0},{"$f":"SUMPRODUCT(($G$35:$G$68=$G10)*($M$35:$M$68))","v":0},{"$f":"SUMPRODUCT(($G$35:$G$68=$G10)*($P$35:$P$68))","v":0},0,null,null,"Total"]
[null,null,null,null,null,null,"% of MTEF total",null,null,null,null,null,null,null,null,null,null,null,{"$f":"MyYear5","v":"2025/26"},{"$f":"MyYear6","v":"2026/27"},{"$f":"MyYear7","v":"2027/28"}]
[null,null,null,null,null,null,"Compensation of employees",{"$f":"IFERROR(H6/$K6,\"\")","v":""},"","",null,null,null,null,null,null,null,{"$f":"G12","v":"Compensation of employees"},{"$f":"IF(H12>0.0595,H12,\"\")","v":""},"",""]
[null,null,null,null,null,null,"Goods and services","","","",null,null,null,null,null,null,null,{"$f":"G13","v":"Goods and services"},"","",""]
[null,null,null,null,null,null,"Transfers and subsidies","","","",null,null,null,null,null,null,null,{"$f":"G14","v":"Transfers and subsidies"},"","",""]
[null,null,null,null,null,null,"Payments for capital assets","","","",null,null,null,null,null,null,null,{"$f":"G15","v":"Payments for capital assets"},"","",""]
[]
[null,null,null,null,null,null,"Division of Revenue",{"$f":"MyYear5","v":"2025/26"},{"$f":"MyYear6","v":"2026/27"},{"$f":"MyYear7","v":"2027/28"},"MTEF total","Trend"]
[null,null,null,null,null,null,"National",{"$f":"SUM(H19:H21)","v":0},0,0,{"$f":"SUM(H18:J18)","v":0}]
[{"$f":"$G$3","v":"Spending review topic 1"},"NAT",null,null,null,null,"National (excl. indirect grants)",{"$f":"SUMPRODUCT(((Dataset[DOR]=$B19))*Dataset[2025/26 From - Spending review Topic 1])+SUMPRODUCT(((Dataset[DOR]=$B19))*Dataset[2025/26 To - Spending review Topic 1])","v":0},{"$f":"SUMPRODUCT(((Dataset[DOR]=$B19))*Dataset[2026/27 From - Spending review Topic 1])+SUMPRODUCT(((Dataset[DOR]=$B19))*Dataset[2026/27 To - Spending review Topic 1])","v":0},{"$f":"SUMPRODUCT(((Dataset[DOR]=$B19))*Dataset[2027/28 From - Spending review Topic 1])+SUMPRODUCT(((Dataset[DOR]=$B19))*Dataset[2027/28 To - Spending review Topic 1])","v":0},0]
["Spending review topic 1","IGP",null,null,null,null,"Provincial indirect grants",{"$f":"SUMPRODUCT(((Dataset[DOR]=$B20))*Dataset[2025/26 From - Spending review Topic 1])+SUMPRODUCT(((Dataset[DOR]=$B20))*Dataset[2025/26 To - Spending review Topic 1])","v":0},{"$f":"SUMPRODUCT(((Dataset[DOR]=$B20))*Dataset[2026/27 From - Spending review Topic 1])+SUMPRODUCT(((Dataset[DOR]=$B20))*Dataset[2026/27 To - Spending review Topic 1])","v":0},{"$f":"SUMPRODUCT(((Dataset[DOR]=$B20))*Dataset[2027/28 From - Spending review Topic 1])+SUMPRODUCT(((Dataset[DOR]=$B20))*Dataset[2027/28 To - Spending review Topic 1])","v":0},{"$f":"SUM(H20:J20)","v":0}]
["Spending review topic 1","IGM",null,null,null,null,"Local indirect grants",{"$f":"SUMPRODUCT(((Dataset[DOR]=$B21))*Dataset[2025/26 From - Spending review Topic 1])+SUMPRODUCT(((Dataset[DOR]=$B21))*Dataset[2025/26 To - Spending review Topic 1])","v":0},{"$f":"SUMPRODUCT(((Dataset[DOR]=$B21))*Dataset[2026/27 From - Spending review Topic 1])+SUMPRODUCT(((Dataset[DOR]=$B21))*Dataset[2026/27 To - Spending review Topic 1])","v":0},{"$f":"SUMPRODUCT(((Dataset[DOR]=$B21))*Dataset[2027/28 From - Spending review Topic 1])+SUMPRODUCT(((Dataset[DOR]=$B21))*Dataset[2027/28 To - Spending review Topic 1])","v":0},0]
["Spending review topic 1",null,null,null,null,null,"Provincial",{"$f":"SUMPRODUCT(((Dataset[DOR]=$B22))*Dataset[2025/26 From - Spending review Topic 1])+SUMPRODUCT(((Dataset[DOR]=$B22))*Dataset[2025/26 To - Spending review Topic 1])","v":0},{"$f":"SUMPRODUCT(((Dataset[DOR]=$B22))*Dataset[2026/27 From - Spending review Topic 1])+SUMPRODUCT(((Dataset[DOR]=$B22))*Dataset[2026/27 To - Spending review Topic 1])","v":0},{"$f":"SUMPRODUCT(((Dataset[DOR]=$B22))*Dataset[2027/28 From - Spending review Topic 1])+SUMPRODUCT(((Dataset[DOR]=$B22))*Dataset[2027/28 To - Spending review Topic 1])","v":0},0]
["Spending review topic 1","PES",null,null,null,null,"Provincial equitable share",{"$f":"SUMPRODUCT(((Dataset[DOR]=$B23))*Dataset[2025/26 From - Spending review Topic 1])+SUMPRODUCT(((Dataset[DOR]=$B23))*Dataset[2025/26 To - Spending review Topic 1])","v":0},{"$f":"SUMPRODUCT(((Dataset[DOR]=$B23))*Dataset[2026/27 From - Spending review Topic 1])+SUMPRODUCT(((Dataset[DOR]=$B23))*Dataset[2026/27 To - Spending review Topic 1])","v":0},{"$f":"SUMPRODUCT(((Dataset[DOR]=$B23))*Dataset[2027/28 From - Spending review Topic 1])+SUMPRODUCT(((Dataset[DOR]=$B23))*Dataset[2027/28 To - Spending review Topic 1])","v":0},0]
[{"$f":"$G$3","v":"Spending review topic 1"},"PCG",null,null,null,null,"Provincial conditional grants",{"$f":"SUMPRODUCT(((Dataset[DOR]=$B24))*Dataset[2025/26 From - Spending review Topic 1])+SUMPRODUCT(((Dataset[DOR]=$B24))*Dataset[2025/26 To - Spending review Topic 1])","v":0},{"$f":"SUMPRODUCT(((Dataset[DOR]=$B24))*Dataset[2026/27 From - Spending review Topic 1])+SUMPRODUCT(((Dataset[DOR]=$B24))*Dataset[2026/27 To - Spending review Topic 1])","v":0},{"$f":"SUMPRODUCT(((Dataset[DOR]=$B24))*Dataset[2027/28 From - Spending review Topic 1])+SUMPRODUCT(((Dataset[DOR]=$B24))*Dataset[2027/28 To - Spending review Topic 1])","v":0},0]
["Spending review topic 1",null,null,null,null,null,"Local government",{"$f":"SUMPRODUCT(((Dataset[DOR]=$B25))*Dataset[2025/26 From - Spending review Topic 1])+SUMPRODUCT(((Dataset[DOR]=$B25))*Dataset[2025/26 To - Spending review Topic 1])","v":0},{"$f":"SUMPRODUCT(((Dataset[DOR]=$B25))*Dataset[2026/27 From - Spending review Topic 1])+SUMPRODUCT(((Dataset[DOR]=$B25))*Dataset[2026/27 To - Spending review Topic 1])","v":0},{"$f":"SUMPRODUCT(((Dataset[DOR]=$B25))*Dataset[2027/28 From - Spending review Topic 1])+SUMPRODUCT(((Dataset[DOR]=$B25))*Dataset[2027/28 To - Spending review Topic 1])","v":0},0]
["Spending review topic 1","LES",null,null,null,null,"Local equitable share",{"$f":"SUMPRODUCT(((Dataset[DOR]=$B26))*Dataset[2025/26 From - Spending review Topic 1])+SUMPRODUCT(((Dataset[DOR]=$B26))*Dataset[2025/26 To - Spending review Topic 1])","v":0},{"$f":"SUMPRODUCT(((Dataset[DOR]=$B26))*Dataset[2026/27 From - Spending review Topic 1])+SUMPRODUCT(((Dataset[DOR]=$B26))*Dataset[2026/27 To - Spending review Topic 1])","v":0},{"$f":"SUMPRODUCT(((Dataset[DOR]=$B26))*Dataset[2027/28 From - Spending review Topic 1])+SUMPRODUCT(((Dataset[DOR]=$B26))*Dataset[2027/28 To - Spending review Topic 1])","v":0},0]
["Spending review topic 1","LCG",null,null,null,null,"Local conditional grants",{"$f":"SUMPRODUCT(((Dataset[DOR]=$B27))*Dataset[2025/26 From - Spending review Topic 1])+SUMPRODUCT(((Dataset[DOR]=$B27))*Dataset[2025/26 To - Spending review Topic 1])","v":0},{"$f":"SUMPRODUCT(((Dataset[DOR]=$B27))*Dataset[2026/27 From - Spending review Topic 1])+SUMPRODUCT(((Dataset[DOR]=$B27))*Dataset[2026/27 To - Spending review Topic 1])","v":0},{"$f":"SUMPRODUCT(((Dataset[DOR]=$B27))*Dataset[2027/28 From - Spending review Topic 1])+SUMPRODUCT(((Dataset[DOR]=$B27))*Dataset[2027/28 To - Spending review Topic 1])","v":0},0]
["Spending review topic 1","GFL",null,null,null,null,"General fuel levy ",{"$f":"SUMPRODUCT(((Dataset[DOR]=$B28))*Dataset[2025/26 From - Spending review Topic 1])+SUMPRODUCT(((Dataset[DOR]=$B28))*Dataset[2025/26 To - Spending review Topic 1])","v":0},{"$f":"SUMPRODUCT(((Dataset[DOR]=$B28))*Dataset[2026/27 From - Spending review Topic 1])+SUMPRODUCT(((Dataset[DOR]=$B28))*Dataset[2026/27 To - Spending review Topic 1])","v":0},{"$f":"SUMPRODUCT(((Dataset[DOR]=$B28))*Dataset[2027/28 From - Spending review Topic 1])+SUMPRODUCT(((Dataset[DOR]=$B28))*Dataset[2027/28 To - Spending review Topic 1])","v":0},0]
[]
[]
[null,null,null,null,null,null,{"$f":"G3","v":"Spending review topic 1"}]
[{"$f":"$G$3","v":"Spending review topic 1"},0,null,null,null,null,null,{"$f":"MyYear5","v":"2025/26"},null,null,{"$f":"MyYear6","v":"2026/27"},null,null,{"$f":"MyYear7","v":"2027/28"},null,null,"Total over MTEF"]
[{"$f":"$G$3","v":"Spending review topic 1"},0,null,null,null,null,"Rand thousand","From","To","Total change","From","To","Total change","From","To","Total change","From","To","Total change"]
["Spending review topic 1",0,null,null,null,null,"Economic classification"]
["Spending review topic 1",0,null,null,null,null,"Current payments",{"$f":"SUM(H36:H38)","v":0},{"$f":"SUM(I36:I38)","v":0},0,0,0,{"$f":"SUM(M36:M38)","v":0},0,0,{"$f":"SUM(P36:P38)","v":0},0,0,{"$f":"SUM(S36:S38)","v":0}]
["Spending review topic 1",0,null,null,null,null,"Compensation of employees",{"$f":"SUMPRODUCT(((Dataset[Econ3]=$G36))*Dataset[2025/26 From - Spending review Topic 1]*$B$3)","v":0},{"$f":"SUMPRODUCT(((Dataset[Econ3]=$G36))*Dataset[2025/26 To - Spending review Topic 1]*$B$3)","v":0},{"$f":"H36+I36","v":0},{"$f":"SUMPRODUCT(((Dataset[Econ3]=$G36))*Dataset[2026/27 From - Spending review Topic 1]*$B$3)","v":0},{"$f":"SUMPRODUCT(((Dataset[Econ3]=$G36))*Dataset[2026/27 To - Spending review Topic 1]*$B$3)","v":0},{"$f":"K36+L36","v":0},{"$f":"SUMPRODUCT(((Dataset[Econ3]=$G36))*Dataset[2027/28 From - Spending review Topic 1]*$B$3)","v":0},{"$f":"SUMPRODUCT(((Dataset[Econ3]=$G36))*Dataset[2027/28 To - Spending review Topic 1]*$B$3)","v":0},{"$f":"N36+O36","v":0},{"$f":"SUM(H36,K36,N36)","v":0},0,0]
["Spending review topic 1",0,null,null,null,null,"Goods and services",{"$f":"SUMPRODUCT(((Dataset[Econ3]=$G37))*Dataset[2025/26 From - Spending review Topic 1]*$B$3)","v":0},{"$f":"SUMPRODUCT(((Dataset[Econ3]=$G37))*Dataset[2025/26 To - Spending review Topic 1]*$B$3)","v":0},0,{"$f":"SUMPRODUCT(((Dataset[Econ3]=$G37))*Dataset[2026/27 From - Spending review Topic 1]*$B$3)","v":0},{"$f":"SUMPRODUCT(((Dataset[Econ3]=$G37))*Dataset[2026/27 To - Spending review Topic 1]*$B$3)","v":0},0,{"$f":"SUMPRODUCT(((Dataset[Econ3]=$G37))*Dataset[2027/28 From - Spending review Topic 1]*$B$3)","v":0},{"$f":"SUMPRODUCT(((Dataset[Econ3]=$G37))*Dataset[2027/28 To - Spending review Topic 1]*$B$3)","v":0},0,{"$f":"SUM(H37,K37,N37)","v":0},{"$f":"SUM(I37,L37,O37)","v":0},{"$f":"SUM(J37,M37,P37)","v":0}]
["Spending review topic 1",0,null,null,null,null,"Interest and rent on land",{"$f":"SUMPRODUCT(((Dataset[Econ3]=$G38))*Dataset[2025/26 From - Spending review Topic 1]*$B$3)","v":0},{"$f":"SUMPRODUCT(((Dataset[Econ3]=$G38))*Dataset[2025/26 To - Spending review Topic 1]*$B$3)","v":0},0,{"$f":"SUMPRODUCT(((Dataset[Econ3]=$G38))*Dataset[2026/27 From - Spending review Topic 1]*$B$3)","v":0},{"$f":"SUMPRODUCT(((Dataset[Econ3]=$G38))*Dataset[2026/27 To - Spending review Topic 1]*$B$3)","v":0},0,{"$f":"SUMPRODUCT(((Dataset[Econ3]=$G38))*Dataset[2027/28 From - Spending review Topic 1]*$B$3)","v":0},{"$f":"SUMPRODUCT(((Dataset[Econ3]=$G38))*Dataset[2027/28 To - Spending review Topic 1]*$B$3)","v":0},0,0,0,0]
["Spending review topic 1",0,null,null,null,null,"Transfers and subsidies",{"$f":"SUM(H40,H43,H46:H48,H51:H52)","v":0},{"$f":"SUM(I40,I43,I46:I48,I51:I52)","v":0},0,{"$f":"SUM(K40,K43,K46:K48,K51:K52)","v":0},0,0,0,0,{"$f":"SUM(P40,P43,P46:P48,P51:P52)","v":0},0,0,{"$f":"SUM(S40,S43,S46:S48,S51:S52)","v":0}]
["Spending review topic 1",0,null,null,null,null,"Provinces and municipalities",{"$f":"SUM(H41:H42)","v":0},{"$f":"SUM(I41:I42)","v":0},0,{"$f":"SUM(K41:K42)","v":0},0,0,0,0,{"$f":"SUM(P41:P42)","v":0},0,0,{"$f":"SUM(S41:S42)","v":0}]
["Spending review topic 1",0,null,null,null,null,"Provinces",{"$f":"SUMPRODUCT(((Dataset[Econ4]=$G41))*Dataset[2025/26 From - Spending review Topic 1]*$B$3)","v":0},{"$f":"SUMPRODUCT(((Dataset[Econ4]=$G41))*Dataset[2025/26 To - Spending review Topic 1]*$B$3)","v":0},{"$f":"H41+I41","v":0},{"$f":"SUMPRODUCT(((Dataset[Econ4]=$G41))*Dataset[2026/27 From - Spending review Topic 1]*$B$3)","v":0},{"$f":"SUMPRODUCT(((Dataset[Econ4]=$G41))*Dataset[2026/27 To - Spending review Topic 1]*$B$3)","v":0},{"$f":"K41+L41","v":0},{"$f":"SUMPRODUCT(((Dataset[Econ4]=$G41))*Dataset[2027/28 From - Spending review Topic 1]*$B$3)","v":0},{"$f":"SUMPRODUCT(((Dataset[Econ4]=$G41))*Dataset[2027/28 To - Spending review Topic 1]*$B$3)","v":0},{"$f":"N41+O41","v":0},{"$f":"SUM(H41,K41,N41)","v":0},{"$f":"SUM(I41,L41,O41)","v":0},{"$f":"SUM(J41,M41,P41)","v":0}]
["Spending review topic 1",0,null,null,null,null,"Municipalities",{"$f":"SUMPRODUCT(((Dataset[Econ4]=$G42))*Dataset[2025/26 From - Spending review Topic 1]*$B$3)","v":0},{"$f":"SUMPRODUCT(((Dataset[Econ4]=$G42))*Dataset[2025/26 To - Spending review Topic 1]*$B$3)","v":0},0,{"$f":"SUMPRODUCT(((Dataset[Econ4]=$G42))*Dataset[2026/27 From - Spending review Topic 1]*$B$3)","v":0},{"$f":"SUMPRODUCT(((Dataset[Econ4]=$G42))*Dataset[2026/27 To - Spending review Topic 1]*$B$3)","v":0},0,{"$f":"SUMPRODUCT(((Dataset[Econ4]=$G42))*Dataset[2027/28 From - Spending review Topic 1]*$B$3)","v":0},{"$f":"SUMPRODUCT(((Dataset[Econ4]=$G42))*Dataset[2027/28 To - Spending review Topic 1]*$B$3)","v":0},0,0,0,0]
["Spending review topic 1",0,null,null,null,null,"Departmental agencies and accounts",{"$f":"SUM(H44:H45)","v":0},{"$f":"SUM(I44:I45)","v":0},0,{"$f":"SUM(K44:K45)","v":0},0,0,0,0,{"$f":"SUM(P44:P45)","v":0},0,0,{"$f":"SUM(S44:S45)","v":0}]
["Spending review topic 1",0,null,null,null,null,"Social security funds",{"$f":"SUMPRODUCT(((Dataset[Econ4]=$G44))*Dataset[2025/26 From - Spending review Topic 1]*$B$3)","v":0},{"$f":"SUMPRODUCT(((Dataset[Econ4]=$G44))*Dataset[2025/26 To - Spending review Topic 1]*$B$3)","v":0},{"$f":"H44+I44","v":0},{"$f":"SUMPRODUCT(((Dataset[Econ4]=$G44))*Dataset[2026/27 From - Spending review Topic 1]*$B$3)","v":0},{"$f":"SUMPRODUCT(((Dataset[Econ4]=$G44))*Dataset[2026/27 To - Spending review Topic 1]*$B$3)","v":0},{"$f":"K44+L44","v":0},{"$f":"SUMPRODUCT(((Dataset[Econ4]=$G44))*Dataset[2027/28 From - Spending review Topic 1]*$B$3)","v":0},{"$f":"SUMPRODUCT(((Dataset[Econ4]=$G44))*Dataset[2027/28 To - Spending review Topic 1]*$B$3)","v":0},{"$f":"N44+O44","v":0},{"$f":"SUM(H44,K44,N44)","v":0},{"$f":"SUM(I44,L44,O44)","v":0},{"$f":"SUM(J44,M44,P44)","v":0}]
["Spending review topic 1",0,null,null,null,null,"Departmental agencies (non-business entities)",{"$f":"SUMPRODUCT(((Dataset[Econ4]=$G45))*Dataset[2025/26 From - Spending review Topic 1]*$B$3)","v":0},{"$f":"SUMPRODUCT(((Dataset[Econ4]=$G45))*Dataset[2025/26 To - Spending review Topic 1]*$B$3)","v":0},0,{"$f":"SUMPRODUCT(((Dataset[Econ4]=$G45))*Dataset[2026/27 From - Spending review Topic 1]*$B$3)","v":0},{"$f":"SUMPRODUCT(((Dataset[Econ4]=$G45))*Dataset[2026/27 To - Spending review Topic 1]*$B$3)","v":0},0,{"$f":"SUMPRODUCT(((Dataset[Econ4]=$G45))*Dataset[2027/28 From - Spending review Topic 1]*$B$3)","v":0},{"$f":"SUMPRODUCT(((Dataset[Econ4]=$G45))*Dataset[2027/28 To - Spending review Topic 1]*$B$3)","v":0},0,0,0,0]
["Spending review topic 1",0,null,null,null,null,"Higher education institutions",{"$f":"SUMPRODUCT(((Dataset[Econ3]=$G46))*Dataset[2025/26 From - Spending review Topic 1]*$B$3)","v":0},{"$f":"SUMPRODUCT(((Dataset[Econ3]=$G46))*Dataset[2025/26 To - Spending review Topic 1]*$B$3)","v":0},0,{"$f":"SUMPRODUCT(((Dataset[Econ3]=$G46))*Dataset[2026/27 From - Spending review Topic 1]*$B$3)","v":0},{"$f":"SUMPRODUCT(((Dataset[Econ3]=$G46))*Dataset[2026/27 To - Spending review Topic 1]*$B$3)","v":0},0,{"$f":"SUMPRODUCT(((Dataset[Econ3]=$G46))*Dataset[2027/28 From - Spending review Topic 1]*$B$3)","v":0},{"$f":"SUMPRODUCT(((Dataset[Econ3]=$G46))*Dataset[2027/28 To - Spending review Topic 1]*$B$3)","v":0},0,0,0,0]
["Spending review topic 1",0,null,null,null,null,"Foreign governments and international organisations",{"$f":"SUMPRODUCT(((Dataset[Econ3]=$G47))*Dataset[2025/26 From - Spending review Topic 1]*$B$3)","v":0},{"$f":"SUMPRODUCT(((Dataset[Econ3]=$G47))*Dataset[2025/26 To - Spending review Topic 1]*$B$3)","v":0},0,{"$f":"SUMPRODUCT(((Dataset[Econ3]=$G47))*Dataset[2026/27 From - Spending review Topic 1]*$B$3)","v":0},{"$f":"SUMPRODUCT(((Dataset[Econ3]=$G47))*Dataset[2026/27 To - Spending review Topic 1]*$B$3)","v":0},0,{"$f":"SUMPRODUCT(((Dataset[Econ3]=$G47))*Dataset[2027/28 From - Spending review Topic 1]*$B$3)","v":0},{"$f":"SUMPRODUCT(((Dataset[Econ3]=$G47))*Dataset[2027/28 To - Spending review Topic 1]*$B$3)","v":0},0,0,0,0]
["Spending review topic 1",0,null,null,null,null,"Public corporations and private enterprises",{"$f":"SUM(H49:H50)","v":0},{"$f":"SUM(I49:I50)","v":0},0,{"$f":"SUM(K49:K50)","v":0},0,0,0,0,{"$f":"SUM(P49:P50)","v":0},0,0,{"$f":"SUM(S49:S50)","v":0}]
["Spending review topic 1",0,null,null,null,null,"Public corporations",{"$f":"SUMPRODUCT(((Dataset[Econ4]=$G49))*Dataset[2025/26 From - Spending review Topic 1]*$B$3)","v":0},{"$f":"SUMPRODUCT(((Dataset[Econ4]=$G49))*Dataset[2025/26 To - Spending review Topic 1]*$B$3)","v":0},{"$f":"H49+I49","v":0},{"$f":"SUMPRODUCT(((Dataset[Econ4]=$G49))*Dataset[2026/27 From - Spending review Topic 1]*$B$3)","v":0},{"$f":"SUMPRODUCT(((Dataset[Econ4]=$G49))*Dataset[2026/27 To - Spending review Topic 1]*$B$3)","v":0},{"$f":"K49+L49","v":0},{"$f":"SUMPRODUCT(((Dataset[Econ4]=$G49))*Dataset[2027/28 From - Spending review Topic 1]*$B$3)","v":0},{"$f":"SUMPRODUCT(((Dataset[Econ4]=$G49))*Dataset[2027/28 To - Spending review Topic 1]*$B$3)","v":0},{"$f":"N49+O49","v":0},{"$f":"SUM(H49,K49,N49)","v":0},{"$f":"SUM(I49,L49,O49)","v":0},{"$f":"SUM(J49,M49,P49)","v":0}]
["Spending review topic 1",0,null,null,null,null,"Private enterprises",{"$f":"SUMPRODUCT(((Dataset[Econ4]=$G50))*Dataset[2025/26 From - Spending review Topic 1]*$B$3)","v":0},{"$f":"SUMPRODUCT(((Dataset[Econ4]=$G50))*Dataset[2025/26 To - Spending review Topic 1]*$B$3)","v":0},0,{"$f":"SUMPRODUCT(((Dataset[Econ4]=$G50))*Dataset[2026/27 From - Spending review Topic 1]*$B$3)","v":0},{"$f":"SUMPRODUCT(((Dataset[Econ4]=$G50))*Dataset[2026/27 To - Spending review Topic 1]*$B$3)","v":0},0,{"$f":"SUMPRODUCT(((Dataset[Econ4]=$G50))*Dataset[2027/28 From - Spending review Topic 1]*$B$3)","v":0},{"$f":"SUMPRODUCT(((Dataset[Econ4]=$G50))*Dataset[2027/28 To - Spending review Topic 1]*$B$3)","v":0},0,0,0,0]
["Spending review topic 1",0,null,null,null,null,"Non-profit institutions",{"$f":"SUMPRODUCT(((Dataset[Econ3]=$G51))*Dataset[2025/26 From - Spending review Topic 1]*$B$3)","v":0},{"$f":"SUMPRODUCT(((Dataset[Econ3]=$G51))*Dataset[2025/26 To - Spending review Topic 1]*$B$3)","v":0},0,{"$f":"SUMPRODUCT(((Dataset[Econ3]=$G51))*Dataset[2026/27 From - Spending review Topic 1]*$B$3)","v":0},{"$f":"SUMPRODUCT(((Dataset[Econ3]=$G51))*Dataset[2026/27 To - Spending review Topic 1]*$B$3)","v":0},0,{"$f":"SUMPRODUCT(((Dataset[Econ3]=$G51))*Dataset[2027/28 From - Spending review Topic 1]*$B$3)","v":0},{"$f":"SUMPRODUCT(((Dataset[Econ3]=$G51))*Dataset[2027/28 To - Spending review Topic 1]*$B$3)","v":0},0,0,0,0]
["Spending review topic 1",0,null,null,null,null,"Households",{"$f":"SUM(H53:H54)","v":0},{"$f":"SUM(I53:I54)","v":0},0,{"$f":"SUM(K53:K54)","v":0},0,0,0,0,{"$f":"SUM(P53:P54)","v":0},0,0,{"$f":"SUM(S53:S54)","v":0}]
["Spending review topic 1",0,null,null,null,null,"Social benefits",{"$f":"SUMPRODUCT(((Dataset[Econ4]=$G53))*Dataset[2025/26 From - Spending review Topic 1]*$B$3)","v":0},{"$f":"SUMPRODUCT(((Dataset[Econ4]=$G53))*Dataset[2025/26 To - Spending review Topic 1]*$B$3)","v":0},{"$f":"H53+I53","v":0},{"$f":"SUMPRODUCT(((Dataset[Econ4]=$G53))*Dataset[2026/27 From - Spending review Topic 1]*$B$3)","v":0},{"$f":"SUMPRODUCT(((Dataset[Econ4]=$G53))*Dataset[2026/27 To - Spending review Topic 1]*$B$3)","v":0},{"$f":"K53+L53","v":0},{"$f":"SUMPRODUCT(((Dataset[Econ4]=$G53))*Dataset[2027/28 From - Spending review Topic 1]*$B$3)","v":0},{"$f":"SUMPRODUCT(((Dataset[Econ4]=$G53))*Dataset[2027/28 To - Spending review Topic 1]*$B$3)","v":0},{"$f":"N53+O53","v":0},{"$f":"SUM(H53,K53,N53)","v":0},{"$f":"SUM(I53,L53,O53)","v":0},{"$f":"SUM(J53,M53,P53)","v":0}]
["Spending review topic 1",0,null,null,null,null,"Other transfers to households",{"$f":"SUMPRODUCT(((Dataset[Econ4]=$G54))*Dataset[2025/26 From - Spending review Topic 1]*$B$3)","v":0},{"$f":"SUMPRODUCT(((Dataset[Econ4]=$G54))*Dataset[2025/26 To - Spending review Topic 1]*$B$3)","v":0},0,{"$f":"SUMPRODUCT(((Dataset[Econ4]=$G54))*Dataset[2026/27 From - Spending review Topic 1]*$B$3)","v":0},{"$f":"SUMPRODUCT(((Dataset[Econ4]=$G54))*Dataset[2026/27 To - Spending review Topic 1]*$B$3)","v":0},0,{"$f":"SUMPRODUCT(((Dataset[Econ4]=$G54))*Dataset[2027/28 From - Spending review Topic 1]*$B$3)","v":0},{"$f":"SUMPRODUCT(((Dataset[Econ4]=$G54))*Dataset[2027/28 To - Spending review Topic 1]*$B$3)","v":0},0,0,0,0]
["Spending review topic 1",0,null,null,null,null,"Payments for capital assets",{"$f":"SUM(H56,H59,H62:H66)","v":0},{"$f":"SUM(I56,I59,I62:I66)","v":0},0,{"$f":"SUM(K56,K59,K62:K66)","v":0},0,0,0,0,{"$f":"SUM(P56,P59,P62:P66)","v":0},0,0,{"$f":"SUM(S56,S59,S62:S66)","v":0}]
["Spending review topic 1",0,null,null,null,null,"Buildings and other fixed structures",{"$f":"SUM(H57:H58)","v":0},{"$f":"SUM(I57:I58)","v":0},0,{"$f":"SUM(K57:K58)","v":0},0,0,0,0,{"$f":"SUM(P57:P58)","v":0},0,0,{"$f":"SUM(S57:S58)","v":0}]
["Spending review topic 1",0,null,null,null,null,"Buildings",{"$f":"SUMPRODUCT(((Dataset[Econ4]=$G57))*Dataset[2025/26 From - Spending review Topic 1]*$B$3)","v":0},{"$f":"SUMPRODUCT(((Dataset[Econ4]=$G57))*Dataset[2025/26 To - Spending review Topic 1]*$B$3)","v":0},{"$f":"H57+I57","v":0},{"$f":"SUMPRODUCT(((Dataset[Econ4]=$G57))*Dataset[2026/27 From - Spending review Topic 1]*$B$3)","v":0},{"$f":"SUMPRODUCT(((Dataset[Econ4]=$G57))*Dataset[2026/27 To - Spending review Topic 1]*$B$3)","v":0},{"$f":"K57+L57","v":0},{"$f":"SUMPRODUCT(((Dataset[Econ4]=$G57))*Dataset[2027/28 From - Spending review Topic 1]*$B$3)","v":0},{"$f":"SUMPRODUCT(((Dataset[Econ4]=$G57))*Dataset[2027/28 To - Spending review Topic 1]*$B$3)","v":0},{"$f":"N57+O57","v":0},{"$f":"SUM(H57,K57,N57)","v":0},{"$f":"SUM(I57,L57,O57)","v":0},{"$f":"SUM(J57,M57,P57)","v":0}]
["Spending review topic 1",0,null,null,null,null,"Other fixed structures",{"$f":"SUMPRODUCT(((Dataset[Econ4]=$G58))*Dataset[2025/26 From - Spending review Topic 1]*$B$3)","v":0},{"$f":"SUMPRODUCT(((Dataset[Econ4]=$G58))*Dataset[2025/26 To - Spending review Topic 1]*$B$3)","v":0},0,{"$f":"SUMPRODUCT(((Dataset[Econ4]=$G58))*Dataset[2026/27 From - Spending review Topic 1]*$B$3)","v":0},{"$f":"SUMPRODUCT(((Dataset[Econ4]=$G58))*Dataset[2026/27 To - Spending review Topic 1]*$B$3)","v":0},0,{"$f":"SUMPRODUCT(((Dataset[Econ4]=$G58))*Dataset[2027/28 From - Spending review Topic 1]*$B$3)","v":0},{"$f":"SUMPRODUCT(((Dataset[Econ4]=$G58))*Dataset[2027/28 To - Spending review Topic 1]*$B$3)","v":0},0,0,0,0]
["Spending review topic 1",0,null,null,null,null,"Machinery and equipment",{"$f":"SUM(H60:H61)","v":0},{"$f":"SUM(I60:I61)","v":0},0,{"$f":"SUM(K60:K61)","v":0},0,0,0,0,{"$f":"SUM(P60:P61)","v":0},0,0,{"$f":"SUM(S60:S61)","v":0}]
["Spending review topic 1",0,null,null,null,null,"Transport equipment",{"$f":"SUMPRODUCT(((Dataset[Econ4]=$G60))*Dataset[2025/26 From - Spending review Topic 1]*$B$3)","v":0},{"$f":"SUMPRODUCT(((Dataset[Econ4]=$G60))*Dataset[2025/26 To - Spending review Topic 1]*$B$3)","v":0},{"$f":"H60+I60","v":0},{"$f":"SUMPRODUCT(((Dataset[Econ4]=$G60))*Dataset[2026/27 From - Spending review Topic 1]*$B$3)","v":0},{"$f":"SUMPRODUCT(((Dataset[Econ4]=$G60))*Dataset[2026/27 To - Spending review Topic 1]*$B$3)","v":0},{"$f":"K60+L60","v":0},{"$f":"SUMPRODUCT(((Dataset[Econ4]=$G60))*Dataset[2027/28 From - Spending review Topic 1]*$B$3)","v":0},{"$f":"SUMPRODUCT(((Dataset[Econ4]=$G60))*Dataset[2027/28 To - Spending review Topic 1]*$B$3)","v":0},{"$f":"N60+O60","v":0},{"$f":"SUM(H60,K60,N60)","v":0},{"$f":"SUM(I60,L60,O60)","v":0},{"$f":"SUM(J60,M60,P60)","v":0}]
["Spending review topic 1",0,null,null,null,null,"Other machinery and equipment",{"$f":"SUMPRODUCT(((Dataset[Econ4]=$G61))*Dataset[2025/26 From - Spending review Topic 1]*$B$3)","v":0},{"$f":"SUMPRODUCT(((Dataset[Econ4]=$G61))*Dataset[2025/26 To - Spending review Topic 1]*$B$3)","v":0},0,{"$f":"SUMPRODUCT(((Dataset[Econ4]=$G61))*Dataset[2026/27 From - Spending review Topic 1]*$B$3)","v":0},{"$f":"SUMPRODUCT(((Dataset[Econ4]=$G61))*Dataset[2026/27 To - Spending review Topic 1]*$B$3)","v":0},0,{"$f":"SUMPRODUCT(((Dataset[Econ4]=$G61))*Dataset[2027/28 From - Spending review Topic 1]*$B$3)","v":0},{"$f":"SUMPRODUCT(((Dataset[Econ4]=$G61))*Dataset[2027/28 To - Spending review Topic 1]*$B$3)","v":0},0,0,0,0]
["Spending review topic 1",0,null,null,null,null,"Heritage assets",{"$f":"SUMPRODUCT(((Dataset[Econ3]=$G62))*Dataset[2025/26 From - Spending review Topic 1]*$B$3)","v":0},{"$f":"SUMPRODUCT(((Dataset[Econ3]=$G62))*Dataset[2025/26 To - Spending review Topic 1]*$B$3)","v":0},0,{"$f":"SUMPRODUCT(((Dataset[Econ3]=$G62))*Dataset[2026/27 From - Spending review Topic 1]*$B$3)","v":0},{"$f":"SUMPRODUCT(((Dataset[Econ3]=$G62))*Dataset[2026/27 To - Spending review Topic 1]*$B$3)","v":0},0,{"$f":"SUMPRODUCT(((Dataset[Econ3]=$G62))*Dataset[2027/28 From - Spending review Topic 1]*$B$3)","v":0},{"$f":"SUMPRODUCT(((Dataset[Econ3]=$G62))*Dataset[2027/28 To - Spending review Topic 1]*$B$3)","v":0},0,0,0,0]
["Spending review topic 1",0,null,null,null,null,"Specialised military assets",{"$f":"SUMPRODUCT(((Dataset[Econ3]=$G63))*Dataset[2025/26 From - Spending review Topic 1]*$B$3)","v":0},{"$f":"SUMPRODUCT(((Dataset[Econ3]=$G63))*Dataset[2025/26 To - Spending review Topic 1]*$B$3)","v":0},0,{"$f":"SUMPRODUCT(((Dataset[Econ3]=$G63))*Dataset[2026/27 From - Spending review Topic 1]*$B$3)","v":0},{"$f":"SUMPRODUCT(((Dataset[Econ3]=$G63))*Dataset[2026/27 To - Spending review Topic 1]*$B$3)","v":0},0,{"$f":"SUMPRODUCT(((Dataset[Econ3]=$G63))*Dataset[2027/28 From - Spending review Topic 1]*$B$3)","v":0},{"$f":"SUMPRODUCT(((Dataset[Econ3]=$G63))*Dataset[2027/28 To - Spending review Topic 1]*$B$3)","v":0},0,0,0,0]
["Spending review topic 1",0,null,null,null,null,"Biological assets",{"$f":"SUMPRODUCT(((Dataset[Econ3]=$G64))*Dataset[2025/26 From - Spending review Topic 1]*$B$3)","v":0},{"$f":"SUMPRODUCT(((Dataset[Econ3]=$G64))*Dataset[2025/26 To - Spending review Topic 1]*$B$3)","v":0},0,{"$f":"SUMPRODUCT(((Dataset[Econ3]=$G64))*Dataset[2026/27 From - Spending review Topic 1]*$B$3)","v":0},{"$f":"SUMPRODUCT(((Dataset[Econ3]=$G64))*Dataset[2026/27 To - Spending review Topic 1]*$B$3)","v":0},0,{"$f":"SUMPRODUCT(((Dataset[Econ3]=$G64))*Dataset[2027/28 From - Spending review Topic 1]*$B$3)","v":0},{"$f":"SUMPRODUCT(((Dataset[Econ3]=$G64))*Dataset[2027/28 To - Spending review Topic 1]*$B$3)","v":0},0,0,0,0]
["Spending review topic 1",0,null,null,null,null,"Land and sub-soil assets",{"$f":"SUMPRODUCT(((Dataset[Econ3]=$G65))*Dataset[2025/26 From - Spending review Topic 1]*$B$3)","v":0},{"$f":"SUMPRODUCT(((Dataset[Econ3]=$G65))*Dataset[2025/26 To - Spending review Topic 1]*$B$3)","v":0},0,{"$f":"SUMPRODUCT(((Dataset[Econ3]=$G65))*Dataset[2026/27 From - Spending review Topic 1]*$B$3)","v":0},{"$f":"SUMPRODUCT(((Dataset[Econ3]=$G65))*Dataset[2026/27 To - Spending review Topic 1]*$B$3)","v":0},0,{"$f":"SUMPRODUCT(((Dataset[Econ3]=$G65))*Dataset[2027/28 From - Spending review Topic 1]*$B$3)","v":0},{"$f":"SUMPRODUCT(((Dataset[Econ3]=$G65))*Dataset[2027/28 To - Spending review Topic 1]*$B$3)","v":0},0,0,0,0]
["Spending review topic 1",0,null,null,null,null,"Software and other intangible assets",{"$f":"SUMPRODUCT(((Dataset[Econ3]=$G66))*Dataset[2025/26 From - Spending review Topic 1]*$B$3)","v":0},{"$f":"SUMPRODUCT(((Dataset[Econ3]=$G66))*Dataset[2025/26 To - Spending review Topic 1]*$B$3)","v":0},0,{"$f":"SUMPRODUCT(((Dataset[Econ3]=$G66))*Dataset[2026/27 From - Spending review Topic 1]*$B$3)","v":0},{"$f":"SUMPRODUCT(((Dataset[Econ3]=$G66))*Dataset[2026/27 To - Spending review Topic 1]*$B$3)","v":0},0,{"$f":"SUMPRODUCT(((Dataset[Econ3]=$G66))*Dataset[2027/28 From - Spending review Topic 1]*$B$3)","v":0},{"$f":"SUMPRODUCT(((Dataset[Econ3]=$G66))*Dataset[2027/28 To - Spending review Topic 1]*$B$3)","v":0},0,0,0,0]
["Spending review topic 1",0,null,null,null,null,"Payments for financial assets",{"$f":"SUMPRODUCT(((Dataset[Econ3]=$G67))*Dataset[2025/26 From - Spending review Topic 1]*$B$3)","v":0},{"$f":"SUMPRODUCT(((Dataset[Econ3]=$G67))*Dataset[2025/26 To - Spending review Topic 1]*$B$3)","v":0},0,{"$f":"SUMPRODUCT(((Dataset[Econ3]=$G67))*Dataset[2026/27 From - Spending review Topic 1]*$B$3)","v":0},{"$f":"SUMPRODUCT(((Dataset[Econ3]=$G67))*Dataset[2026/27 To - Spending review Topic 1]*$B$3)","v":0},0,{"$f":"SUMPRODUCT(((Dataset[Econ3]=$G67))*Dataset[2027/28 From - Spending review Topic 1]*$B$3)","v":0},{"$f":"SUMPRODUCT(((Dataset[Econ3]=$G67))*Dataset[2027/28 To - Spending review Topic 1]*$B$3)","v":0},0,0,0,0]
["Spending review topic 1",0,null,null,null,null,"Total",{"$f":"SUM(H35,H39,H55,H67)","v":0},{"$f":"SUM(I35,I39,I55,I67)","v":0},0,0,0,{"$f":"SUM(M35,M39,M55,M67)","v":0},0,0,{"$f":"SUM(P35,P39,P55,P67)","v":0},0,0,{"$f":"SUM(S35,S39,S55,S67)","v":0}]
[]
[]
[]
[]
[null,null,null,null,null,null,{"$f":"\"IMPACT OF ADJUSTMENTS: \" &UPPER($G$3)","v":"IMPACT OF ADJUSTMENTS: SPENDING REVIEW TOPIC 1"}]
[]
[null,null,null,null,null,1,"Impact of adjustments on expenditure"]
[{"$f":"$G$3","v":"Spending review topic 1"},5,null,null,null,null,null,{"$f":"MyYear4","v":"2024/25"},null,null,{"$f":"MyYear5","v":"2025/26"},null,null,{"$f":"MyYear6","v":"2026/27"},null,null,{"$f":"MyYear7","v":"2027/28"}]
["Spending review topic 1",5,null,null,null,null,null,"Current expenditure","Potential expenditure @ benchmark level","% Savings if benchmark is achieved","Original number","Change in expenditure","Saving as % of original number","Original number","Change in expenditure","Saving as % of original number","Original number","Change in expenditure","Saving as % of original number"]
["Spending review topic 1",5,null,null,null,null,"Total",null,null,{"$f":"IFERROR((H78-I78)/-H78,\"\")","v":""},null,null,{"$f":"IFERROR((K78-L78)/-K78,\"\")","v":""},null,null,{"$f":"IFERROR((N78-O78)/-N78,\"\")","v":""},null,null,{"$f":"IFERROR((Q78-R78)/-Q78,\"\")","v":""}]
[]
[]
[]
[]
[]
[null,null,null,null,null,2,"Summary of impact on service delivery/policy area due to adjustments"]
[{"$f":"$G$3","v":"Spending review topic 1"},1]
["Spending review topic 1",1]
["Spending review topic 1",1]
["Spending review topic 1",1]
["Spending review topic 1",1]
["Spending review topic 1",1]
["Spending review topic 1",1]
["Spending review topic 1",1]
["Spending review topic 1",1]
["Spending review topic 1",1]
["Spending review topic 1",1]
["Spending review topic 1",1]
["Spending review topic 1",1]
["Spending review topic 1",1]
["Spending review topic 1",1]
[]
[]
[]
[]
[]
[null,null,null,null,null,3,"Impact of adjustments on performance indicators"]
[{"$f":"$G$3","v":"Spending review topic 1"},2,null,null,null,null,null,{"$f":"MyYear4","v":"2024/25"},null,null,{"$f":"MyYear5","v":"2025/26"},null,null,{"$f":"MyYear6","v":"2026/27"},null,null,{"$f":"MyYear7","v":"2027/28"},null,null," Comment",null,null,null,null,"Related MTSF Priority"]
["Spending review topic 1",2,null,null,null,null,"Performance indicator","Current performance","Performance @ benchmark level","Change","Original target","Revised target","Change","Original target","Revised target","Change","Original target","Revised target","Change"]
["Spending review topic 1",2]
["Spending review topic 1",2]
["Spending review topic 1",2]
["Spending review topic 1",2]
["Spending review topic 1",2]
["Spending review topic 1",2]
["Spending review topic 1",2]
["Spending review topic 1",2]
["Spending review topic 1",2]
["Spending review topic 1",2]
["Spending review topic 1",2]
["Spending review topic 1",2]
["Spending review topic 1",2]
["Spending review topic 1",2]
["Spending review topic 1",2]
[]
[]
[]
[]
[]
[null,null,null,null,null,4,"Impact of adjustments on personnel headcount numbers"]
[{"$f":"$G$3","v":"Spending review topic 1"},4,null,null,null,null,null,{"$f":"MyYear4","v":"2024/25"},null,null,{"$f":"MyYear5","v":"2025/26"},null,null,{"$f":"MyYear6","v":"2026/27"},null,null,{"$f":"MyYear7","v":"2027/28"},null,null," Comment"]
["Spending review topic 1",4,null,null,null,null,"Salary level","Current number","Potential number if benchmark is achieved","Change in number","Original number","Revised number","Change in number","Original number","Revised number","Change in number","Original number","Revised number","Change in number"]
["Spending review topic 1",4,null,null,null,null,1,null,null,{"$f":"I131-H131","v":0},null,null,{"$f":"L131-K131","v":0},null,null,{"$f":"O131-N131","v":0},null,null,{"$f":"R131-Q131","v":0}]
["Spending review topic 1",4,null,null,null,null,2,null,null,0,null,null,0,null,null,0,null,null,0]
["Spending review topic 1",4,null,null,null,null,3,null,null,0,null,null,0,null,null,0,null,null,0]
["Spending review topic 1",4,null,null,null,null,4,null,null,0,null,null,0,null,null,0,null,null,0]
["Spending review topic 1",4,null,null,null,null,5,null,null,0,null,null,0,null,null,0,null,null,0]
["Spending review topic 1",4,null,null,null,null,6,null,null,0,null,null,0,null,null,0,null,null,0]
["Spending review topic 1",4,null,null,null,null,7,null,null,0,null,null,0,null,null,0,null,null,0]
["Spending review topic 1",4,null,null,null,null,8,null,null,0,null,null,0,null,null,0,null,null,0]
["Spending review topic 1",4,null,null,null,null,9,null,null,0,null,null,0,null,null,0,null,null,0]
["Spending review topic 1",4,null,null,null,null,10,null,null,0,null,null,0,null,null,0,null,null,0]
["Spending review topic 1",4,null,null,null,null,11,null,null,0,null,null,0,null,null,0,null,null,0]
["Spending review topic 1",4,null,null,null,null,12,null,null,0,null,null,0,null,null,0,null,null,0]
["Spending review topic 1",4,null,null,null,null,13,null,null,0,null,null,0,null,null,0,null,null,0]
["Spending review topic 1",4,null,null,null,null,14,null,null,0,null,null,0,null,null,0,null,null,0]
["Spending review topic 1",4,null,null,null,null,15,null,null,0,null,null,0,null,null,0,null,null,0]
["Spending review topic 1",4,null,null,null,null,16,null,null,0,null,null,0,null,null,0,null,null,0]
["Spending review topic 1",4,null,null,null,null,"Other",null,null,0,null,null,0,null,null,0,null,null,0]
["Spending review topic 1",4,null,null,null,null,"Other",null,null,0,null,null,0,null,null,0,null,null,0]
["Spending review topic 1",4,null,null,null,null,"Other",null,null,0,null,null,0,null,null,0,null,null,0]
["Spending review topic 1",4,null,null,null,null,"Other",null,null,0,null,null,0,null,null,0,null,null,0]
["Spending review topic 1",4,null,null,null,null,"Total",{"$f":"SUM(H131:H150)","v":0},0,0,{"$f":"SUM(K131:K150)","v":0},0,0,0,0,0,0,0,0]
[]
[]
[]
[]
[]
[null,null,null,null,null,5,"Impact of adjustments on infrastructure projects"]
[{"$f":"$G$3","v":"Spending review topic 1"},3,null,null,null,null,null,{"$f":"MyYear4","v":"2024/25"},null,null,{"$f":"MyYear5","v":"2025/26"},null,null,{"$f":"MyYear6","v":"2026/27"},null,null,{"$f":"MyYear7","v":"2027/28"},null,null," Comment"]
["Spending review topic 1",3,null,null,null,null,"Project name","Current number","Market or best in class benchmark","Change","Original amount","Revised amount","Change","Original amount","Revised amount","Change","Original amount","Revised amount","Change"]
["Spending review topic 1",3,null,null,null,null,null,null,null,{"$f":"I160-H160","v":0},null,null,{"$f":"L160-K160","v":0},null,null,{"$f":"O160-N160","v":0},null,null,{"$f":"R160-Q160","v":0}]
["Spending review topic 1",3,null,null,null,null,null,null,null,0,null,null,0,null,null,0,null,null,0]
["Spending review topic 1",3,null,null,null,null,null,null,null,{"$f":"I162-H162","v":0},null,null,{"$f":"L162-K162","v":0},null,null,{"$f":"O162-N162","v":0},null,null,{"$f":"R162-Q162","v":0}]
["Spending review topic 1",3,null,null,null,null,null,null,null,0,null,null,0,null,null,0,null,null,0]
["Spending review topic 1",3,null,null,null,null,null,null,null,0,null,null,0,null,null,0,null,null,0]
["Spending review topic 1",3,null,null,null,null,null,null,null,0,null,null,0,null,null,0,null,null,0]
["Spending review topic 1",3,null,null,null,null,null,null,null,0,null,null,0,null,null,0,null,null,0]
["Spending review topic 1",3,null,null,null,null,null,null,null,0,null,null,0,null,null,0,null,null,0]
["Spending review topic 1",3,null,null,null,null,null,null,null,0,null,null,0,null,null,0,null,null,0]
["Spending review topic 1",3,null,null,null,null,null,null,null,0,null,null,0,null,null,0,null,null,0]
["Spending review topic 1",3,null,null,null,null,null,null,null,0,null,null,0,null,null,0,null,null,0]
["Spending review topic 1",3,null,null,null,null,null,null,null,0,null,null,0,null,null,0,null,null,0]
["Spending review topic 1",3,null,null,null,null,null,null,null,0,null,null,0,null,null,0,null,null,0]
["Spending review topic 1",3,null,null,null,null,null,null,null,{"$f":"I173-H173","v":0},null,null,{"$f":"L173-K173","v":0},null,null,{"$f":"O173-N173","v":0},null,null,{"$f":"R173-Q173","v":0}]
["Spending review topic 1",3,null,null,null,null,null,null,null,0,null,null,0,null,null,0,null,null,0]
["Spending review topic 1",3,null,null,null,null,null,null,null,0,null,null,0,null,null,0,null,null,0]
["Spending review topic 1",3,null,null,null,null,null,null,null,0,null,null,0,null,null,0,null,null,0]
["Spending review topic 1",3,null,null,null,null,null,null,null,0,null,null,0,null,null,0,null,null,0]
["Spending review topic 1",3,null,null,null,null,null,null,null,0,null,null,0,null,null,0,null,null,0]
["Spending review topic 1",3,null,null,null,null,null,null,null,{"$f":"I179-H179","v":0},null,null,{"$f":"L179-K179","v":0},null,null,{"$f":"O179-N179","v":0},null,null,{"$f":"R179-Q179","v":0}]
["Spending review topic 1",3,null,null,null,null,null,null,null,0,null,null,0,null,null,0,null,null,0]
["Spending review topic 1",3,null,null,null,null,null,null,null,0,null,null,0,null,null,0,null,null,0]
["Spending review topic 1",3,null,null,null,null,null,null,null,0,null,null,0,null,null,0,null,null,0]
["Spending review topic 1",3,null,null,null,null,null,null,null,0,null,null,0,null,null,0,null,null,0]
["Spending review topic 1",3,null,null,null,null,null,null,null,0,null,null,0,null,null,0,null,null,0]
["Spending review topic 1",3,null,null,null,null,null,null,null,0,null,null,0,null,null,0,null,null,0]
["Spending review topic 1",3,null,null,null,null,null,null,null,0,null,null,0,null,null,0,null,null,0]
["Spending review topic 1",3,null,null,null,null,null,null,null,0,null,null,0,null,null,0,null,null,0]
["Spending review topic 1",3,null,null,null,null,null,null,null,0,null,null,0,null,null,0,null,null,0]
["Spending review topic 1",3,null,null,null,null,null,null,null,0,null,null,0,null,null,0,null,null,0]
["Spending review topic 1",3,null,null,null,null,null,null,null,0,null,null,0,null,null,0,null,null,0]
["Spending review topic 1",3,null,null,null,null,null,null,null,0,null,null,0,null,null,0,null,null,0]
["Spending review topic 1",3,null,null,null,null,null,null,null,0,null,null,0,null,null,0,null,null,0]
["Spending review topic 1",3,null,null,null,null,null,null,null,0,null,null,0,null,null,0,null,null,0]
["Spending review topic 1",3,null,null,null,null,null,null,null,0,null,null,0,null,null,0,null,null,0]
["Spending review topic 1",3,null,null,null,null,null,null,null,0,null,null,0,null,null,0,null,null,0]
["Spending review topic 1",3,null,null,null,null,null,null,null,0,null,null,0,null,null,0,null,null,0]
["Spending review topic 1",3,null,null,null,null,null,null,null,0,null,null,0,null,null,0,null,null,0]
["Spending review topic 1",3,null,null,null,null,null,null,null,0,null,null,0,null,null,0,null,null,0]
["Spending review topic 1",3,null,null,null,null,null,null,null,0,null,null,0,null,null,0,null,null,0]
["Spending review topic 1",3,null,null,null,null,null,null,null,0,null,null,0,null,null,0,null,null,0]
["Spending review topic 1",3,null,null,null,null,null,null,null,0,null,null,0,null,null,0,null,null,0]
["Spending review topic 1",3,null,null,null,null,null,null,null,0,null,null,0,null,null,0,null,null,0]
["Spending review topic 1",3,null,null,null,null,null,null,null,0,null,null,0,null,null,0,null,null,0]
["Spending review topic 1",3,null,null,null,null,null,null,null,0,null,null,0,null,null,0,null,null,0]
["Spending review topic 1",3,null,null,null,null,null,null,null,0,null,null,0,null,null,0,null,null,0]
["Spending review topic 1",3,null,null,null,null,null,null,null,0,null,null,0,null,null,0,null,null,0]
["Spending review topic 1",3,null,null,null,null,null,null,null,0,null,null,0,null,null,0,null,null,0]
["Spending review topic 1",3,null,null,null,null,null,null,null,0,null,null,0,null,null,0,null,null,0]
["Spending review topic 1",3,null,null,null,null,null,null,null,0,null,null,0,null,null,0,null,null,0]
["Spending review topic 1",3,null,null,null,null,"Total",{"$f":"SUM(H160:H209)","v":0},0,0,{"$f":"SUM(K160:K209)","v":0},0,0,0,0,0,0,0,0]

{"sheet":"SRT2","index":12,"n_rows":210,"n_cols":25,"rows_kept":210,"cut":false,"hidden":false,"merged":[[208,19,208,23],[202,19,202,23],[203,19,203,23],[204,19,204,23],[205,19,205,23],[206,19,206,23],[207,19,207,23],[201,19,201,23],[190,19,190,23],[191,19,191,23],[192,19,192,23],[193,19,193,23],[194,19,194,23],[195,19,195,23],[196,19,196,23],[197,19,197,23],[198,19,198,23],[199,19,199,23],[200,19,200,23],[189,19,189,23],[178,19,178,23],[179,19,179,23],[180,19,180,23],[181,19,181,23],[182,19,182,23],[183,19,183,23],[184,19,184,23],[185,19,185,23],[186,19,186,23],[187,19,187,23],[188,19,188,23],[177,19,177,23],[166,19,166,23],[167,19,167,23],[168,19,168,23],[169,19,169,23],[170,19,170,23],[171,19,171,23],[172,19,172,23],[173,19,173,23],[174,19,174,23],[175,19,175,23],[176,19,176,23],[165,19,165,23],[128,19,128,23],[129,19,129,23],[130,19,149,23],[157,19,157,23],[158,19,158,23],[159,19,159,23],[160,19,160,23],[161,19,161,23],[162,19,162,23],[163,19,163,23],[164,19,164,23],[119,19,119,23],[119,24,119,26],[120,19,120,23],[120,24,120,26],[121,19,121,23],[121,24,121,26],[116,19,116,23],[116,24,116,26],[117,19,117,23],[117,24,117,26],[118,19,118,23],[118,24,118,26],[113,19,113,23],[113,24,113,26],[114,19,114,23],[114,24,114,26],[115,19,115,23],[115,24,115,26],[110,19,110,23],[110,24,110,26],[111,19,111,23],[111,24,111,26],[112,19,112,23],[112,24,112,26],[107,19,107,23],[107,24,107,26],[108,19,108,23],[108,24,108,26],[109,19,109,23],[109,24,109,26],[72,6,72,18],[84,6,98,18],[105,19,105,23],[105,24,105,26],[106,19,106,23],[106,24,106,26]]}
[]
[null,null,null,null,null,null,"Spending review topic…"]
[null,{"$f":"IF(G3=\"\",0,1)","v":1},null,null,null,2,{"$f":"SRTopic2","v":"Spending review topic 2"}]
[]
[null,null,null,null,null,null,"Quick view…(Total change)",{"$f":"MyYear5","v":"2025/26"},{"$f":"MyYear6","v":"2026/27"},{"$f":"MyYear7","v":"2027/28"},"MTEF total","Trend"]
[null,null,null,null,null,null,"Compensation of employees",{"$f":"SUMPRODUCT(($G$35:$G$68=$G6)*($J$35:$J$68))","v":0},{"$f":"SUMPRODUCT(($G$35:$G$68=$G6)*($M$35:$M$68))","v":0},{"$f":"SUMPRODUCT(($G$35:$G$68=$G6)*($P$35:$P$68))","v":0},{"$f":"SUM(H6:J6)","v":0},null,null,"CoE"]
[null,null,null,null,null,null,"Goods and services",{"$f":"SUMPRODUCT(($G$35:$G$68=$G7)*($J$35:$J$68))","v":0},{"$f":"SUMPRODUCT(($G$35:$G$68=$G7)*($M$35:$M$68))","v":0},{"$f":"SUMPRODUCT(($G$35:$G$68=$G7)*($P$35:$P$68))","v":0},0,null,null,"G&S"]
[null,null,null,null,null,null,"Transfers and subsidies",{"$f":"SUMPRODUCT(($G$35:$G$68=$G8)*($J$35:$J$68))","v":0},{"$f":"SUMPRODUCT(($G$35:$G$68=$G8)*($M$35:$M$68))","v":0},{"$f":"SUMPRODUCT(($G$35:$G$68=$G8)*($P$35:$P$68))","v":0},0,null,null,"T&S"]
[null,null,null,null,null,null,"Payments for capital assets",{"$f":"SUMPRODUCT(($G$35:$G$68=$G9)*($J$35:$J$68))","v":0},{"$f":"SUMPRODUCT(($G$35:$G$68=$G9)*($M$35:$M$68))","v":0},{"$f":"SUMPRODUCT(($G$35:$G$68=$G9)*($P$35:$P$68))","v":0},0,null,null,"Capital"]
[null,null,null,null,null,null,"Total",{"$f":"SUMPRODUCT(($G$35:$G$68=$G10)*($J$35:$J$68))","v":0},{"$f":"SUMPRODUCT(($G$35:$G$68=$G10)*($M$35:$M$68))","v":0},{"$f":"SUMPRODUCT(($G$35:$G$68=$G10)*($P$35:$P$68))","v":0},0,null,null,"Total"]
[null,null,null,null,null,null,"% of MTEF total",null,null,null,null,null,null,null,null,null,null,null,{"$f":"MyYear5","v":"2025/26"},{"$f":"MyYear6","v":"2026/27"},{"$f":"MyYear7","v":"2027/28"}]
[null,null,null,null,null,null,"Compensation of employees",{"$f":"IFERROR(H6/$K6,\"\")","v":""},"","",null,null,null,null,null,null,null,{"$f":"G12","v":"Compensation of employees"},{"$f":"IF(H12>0.0595,H12,\"\")","v":""},"",""]
[null,null,null,null,null,null,"Goods and services","","","",null,null,null,null,null,null,null,{"$f":"G13","v":"Goods and services"},"","",""]
[null,null,null,null,null,null,"Transfers and subsidies","","","",null,null,null,null,null,null,null,{"$f":"G14","v":"Transfers and subsidies"},"","",""]
[null,null,null,null,null,null,"Payments for capital assets","","","",null,null,null,null,null,null,null,{"$f":"G15","v":"Payments for capital assets"},"","",""]
[]
[null,null,null,null,null,null,"Division of Revenue",{"$f":"MyYear5","v":"2025/26"},{"$f":"MyYear6","v":"2026/27"},{"$f":"MyYear7","v":"2027/28"},"MTEF total","Trend"]
[null,null,null,null,null,null,"National",{"$f":"SUM(H19:H21)","v":0},0,0,{"$f":"SUM(H18:J18)","v":0}]
[{"$f":"$G$3","v":"Spending review topic 2"},"NAT",null,null,null,null,"National (excl. indirect grants)",{"$f":"SUMPRODUCT(((Dataset[DOR]=$B19))*Dataset[2025/26 From - Spending review Topic 2])+SUMPRODUCT(((Dataset[DOR]=$B19))*Dataset[2025/26 To - Spending review Topic 2])","v":0},{"$f":"SUMPRODUCT(((Dataset[DOR]=$B19))*Dataset[2026/27 From - Spending review Topic 2])+SUMPRODUCT(((Dataset[DOR]=$B19))*Dataset[2026/27 To - Spending review Topic 2])","v":0},{"$f":"SUMPRODUCT(((Dataset[DOR]=$B19))*Dataset[2027/28 From - Spending review Topic 2])+SUMPRODUCT(((Dataset[DOR]=$B19))*Dataset[2027/28 To - Spending review Topic 2])","v":0},0]
["Spending review topic 2","IGP",null,null,null,null,"Provincial indirect grants",{"$f":"SUMPRODUCT(((Dataset[DOR]=$B20))*Dataset[2025/26 From - Spending review Topic 2])+SUMPRODUCT(((Dataset[DOR]=$B20))*Dataset[2025/26 To - Spending review Topic 2])","v":0},{"$f":"SUMPRODUCT(((Dataset[DOR]=$B20))*Dataset[2026/27 From - Spending review Topic 2])+SUMPRODUCT(((Dataset[DOR]=$B20))*Dataset[2026/27 To - Spending review Topic 2])","v":0},{"$f":"SUMPRODUCT(((Dataset[DOR]=$B20))*Dataset[2027/28 From - Spending review Topic 2])+SUMPRODUCT(((Dataset[DOR]=$B20))*Dataset[2027/28 To - Spending review Topic 2])","v":0},0]
["Spending review topic 2","IGM",null,null,null,null,"Local indirect grants",{"$f":"SUMPRODUCT(((Dataset[DOR]=$B21))*Dataset[2025/26 From - Spending review Topic 2])+SUMPRODUCT(((Dataset[DOR]=$B21))*Dataset[2025/26 To - Spending review Topic 2])","v":0},{"$f":"SUMPRODUCT(((Dataset[DOR]=$B21))*Dataset[2026/27 From - Spending review Topic 2])+SUMPRODUCT(((Dataset[DOR]=$B21))*Dataset[2026/27 To - Spending review Topic 2])","v":0},{"$f":"SUMPRODUCT(((Dataset[DOR]=$B21))*Dataset[2027/28 From - Spending review Topic 2])+SUMPRODUCT(((Dataset[DOR]=$B21))*Dataset[2027/28 To - Spending review Topic 2])","v":0},0]
["Spending review topic 2",null,null,null,null,null,"Provincial",{"$f":"SUMPRODUCT(((Dataset[DOR]=$B22))*Dataset[2025/26 From - Spending review Topic 2])+SUMPRODUCT(((Dataset[DOR]=$B22))*Dataset[2025/26 To - Spending review Topic 2])","v":0},{"$f":"SUMPRODUCT(((Dataset[DOR]=$B22))*Dataset[2026/27 From - Spending review Topic 2])+SUMPRODUCT(((Dataset[DOR]=$B22))*Dataset[2026/27 To - Spending review Topic 2])","v":0},{"$f":"SUMPRODUCT(((Dataset[DOR]=$B22))*Dataset[2027/28 From - Spending review Topic 2])+SUMPRODUCT(((Dataset[DOR]=$B22))*Dataset[2027/28 To - Spending review Topic 2])","v":0},0]
["Spending review topic 2","PES",null,null,null,null,"Provincial equitable share",{"$f":"SUMPRODUCT(((Dataset[DOR]=$B23))*Dataset[2025/26 From - Spending review Topic 2])+SUMPRODUCT(((Dataset[DOR]=$B23))*Dataset[2025/26 To - Spending review Topic 2])","v":0},{"$f":"SUMPRODUCT(((Dataset[DOR]=$B23))*Dataset[2026/27 From - Spending review Topic 2])+SUMPRODUCT(((Dataset[DOR]=$B23))*Dataset[2026/27 To - Spending review Topic 2])","v":0},{"$f":"SUMPRODUCT(((Dataset[DOR]=$B23))*Dataset[2027/28 From - Spending review Topic 2])+SUMPRODUCT(((Dataset[DOR]=$B23))*Dataset[2027/28 To - Spending review Topic 2])","v":0},0]
["Spending review topic 2","PCG",null,null,null,null,"Provincial conditional grants",{"$f":"SUMPRODUCT(((Dataset[DOR]=$B24))*Dataset[2025/26 From - Spending review Topic 2])+SUMPRODUCT(((Dataset[DOR]=$B24))*Dataset[2025/26 To - Spending review Topic 2])","v":0},{"$f":"SUMPRODUCT(((Dataset[DOR]=$B24))*Dataset[2026/27 From - Spending review Topic 2])+SUMPRODUCT(((Dataset[DOR]=$B24))*Dataset[2026/27 To - Spending review Topic 2])","v":0},{"$f":"SUMPRODUCT(((Dataset[DOR]=$B24))*Dataset[2027/28 From - Spending review Topic 2])+SUMPRODUCT(((Dataset[DOR]=$B24))*Dataset[2027/28 To - Spending review Topic 2])","v":0},0]
["Spending review topic 2",null,null,null,null,null,"Local government",{"$f":"SUMPRODUCT(((Dataset[DOR]=$B25))*Dataset[2025/26 From - Spending review Topic 2])+SUMPRODUCT(((Dataset[DOR]=$B25))*Dataset[2025/26 To - Spending review Topic 2])","v":0},{"$f":"SUMPRODUCT(((Dataset[DOR]=$B25))*Dataset[2026/27 From - Spending review Topic 2])+SUMPRODUCT(((Dataset[DOR]=$B25))*Dataset[2026/27 To - Spending review Topic 2])","v":0},{"$f":"SUMPRODUCT(((Dataset[DOR]=$B25))*Dataset[2027/28 From - Spending review Topic 2])+SUMPRODUCT(((Dataset[DOR]=$B25))*Dataset[2027/28 To - Spending review Topic 2])","v":0},0]
["Spending review topic 2","LES",null,null,null,null,"Local equitable share",{"$f":"SUMPRODUCT(((Dataset[DOR]=$B26))*Dataset[2025/26 From - Spending review Topic 2])+SUMPRODUCT(((Dataset[DOR]=$B26))*Dataset[2025/26 To - Spending review Topic 2])","v":0},{"$f":"SUMPRODUCT(((Dataset[DOR]=$B26))*Dataset[2026/27 From - Spending review Topic 2])+SUMPRODUCT(((Dataset[DOR]=$B26))*Dataset[2026/27 To - Spending review Topic 2])","v":0},{"$f":"SUMPRODUCT(((Dataset[DOR]=$B26))*Dataset[2027/28 From - Spending review Topic 2])+SUMPRODUCT(((Dataset[DOR]=$B26))*Dataset[2027/28 To - Spending review Topic 2])","v":0},0]
["Spending review topic 2","LCG",null,null,null,null,"Local conditional grants",{"$f":"SUMPRODUCT(((Dataset[DOR]=$B27))*Dataset[2025/26 From - Spending review Topic 2])+SUMPRODUCT(((Dataset[DOR]=$B27))*Dataset[2025/26 To - Spending review Topic 2])","v":0},{"$f":"SUMPRODUCT(((Dataset[DOR]=$B27))*Dataset[2026/27 From - Spending review Topic 2])+SUMPRODUCT(((Dataset[DOR]=$B27))*Dataset[2026/27 To - Spending review Topic 2])","v":0},{"$f":"SUMPRODUCT(((Dataset[DOR]=$B27))*Dataset[2027/28 From - Spending review Topic 2])+SUMPRODUCT(((Dataset[DOR]=$B27))*Dataset[2027/28 To - Spending review Topic 2])","v":0},0]
["Spending review topic 2","GFL",null,null,null,null,"General fuel levy ",{"$f":"SUMPRODUCT(((Dataset[DOR]=$B28))*Dataset[2025/26 From - Spending review Topic 2])+SUMPRODUCT(((Dataset[DOR]=$B28))*Dataset[2025/26 To - Spending review Topic 2])","v":0},{"$f":"SUMPRODUCT(((Dataset[DOR]=$B28))*Dataset[2026/27 From - Spending review Topic 2])+SUMPRODUCT(((Dataset[DOR]=$B28))*Dataset[2026/27 To - Spending review Topic 2])","v":0},{"$f":"SUMPRODUCT(((Dataset[DOR]=$B28))*Dataset[2027/28 From - Spending review Topic 2])+SUMPRODUCT(((Dataset[DOR]=$B28))*Dataset[2027/28 To - Spending review Topic 2])","v":0},0]
[]
[]
[null,null,null,null,null,null,{"$f":"G3","v":"Spending review topic 2"}]
[{"$f":"$G$3","v":"Spending review topic 2"},0,null,null,null,null,null,{"$f":"MyYear5","v":"2025/26"},null,null,{"$f":"MyYear6","v":"2026/27"},null,null,{"$f":"MyYear7","v":"2027/28"},null,null,"Total over MTEF"]
[{"$f":"$G$3","v":"Spending review topic 2"},0,null,null,null,null,"Rand thousand","From","To","Total change","From","To","Total change","From","To","Total change","From","To","Total change"]
["Spending review topic 2",0,null,null,null,null,"Economic classification"]
["Spending review topic 2",0,null,null,null,null,"Current payments",{"$f":"SUM(H36:H38)","v":0},0,0,0,0,0,0,0,0,0,0,0]
["Spending review topic 2",0,null,null,null,null,"Compensation of employees",{"$f":"SUMPRODUCT(((Dataset[Econ3]=$G36))*Dataset[2025/26 From - Spending review Topic 2]*$B$3)","v":0},{"$f":"SUMPRODUCT(((Dataset[Econ3]=$G36))*Dataset[2025/26 To - Spending review Topic 2]*$B$3)","v":0},{"$f":"H36+I36","v":0},{"$f":"SUMPRODUCT(((Dataset[Econ3]=$G36))*Dataset[2026/27 From - Spending review Topic 2]*$B$3)","v":0},{"$f":"SUMPRODUCT(((Dataset[Econ3]=$G36))*Dataset[2026/27 To - Spending review Topic 2]*$B$3)","v":0},{"$f":"K36+L36","v":0},{"$f":"SUMPRODUCT(((Dataset[Econ3]=$G36))*Dataset[2027/28 From - Spending review Topic 2]*$B$3)","v":0},{"$f":"SUMPRODUCT(((Dataset[Econ3]=$G36))*Dataset[2027/28 To - Spending review Topic 2]*$B$3)","v":0},{"$f":"N36+O36","v":0},{"$f":"SUM(H36,K36,N36)","v":0},0,0]
["Spending review topic 2",0,null,null,null,null,"Goods and services",{"$f":"SUMPRODUCT(((Dataset[Econ3]=$G37))*Dataset[2025/26 From - Spending review Topic 2]*$B$3)","v":0},{"$f":"SUMPRODUCT(((Dataset[Econ3]=$G37))*Dataset[2025/26 To - Spending review Topic 2]*$B$3)","v":0},0,{"$f":"SUMPRODUCT(((Dataset[Econ3]=$G37))*Dataset[2026/27 From - Spending review Topic 2]*$B$3)","v":0},{"$f":"SUMPRODUCT(((Dataset[Econ3]=$G37))*Dataset[2026/27 To - Spending review Topic 2]*$B$3)","v":0},0,{"$f":"SUMPRODUCT(((Dataset[Econ3]=$G37))*Dataset[2027/28 From - Spending review Topic 2]*$B$3)","v":0},{"$f":"SUMPRODUCT(((Dataset[Econ3]=$G37))*Dataset[2027/28 To - Spending review Topic 2]*$B$3)","v":0},0,0,0,0]
["Spending review topic 2",0,null,null,null,null,"Interest and rent on land",{"$f":"SUMPRODUCT(((Dataset[Econ3]=$G38))*Dataset[2025/26 From - Spending review Topic 2]*$B$3)","v":0},{"$f":"SUMPRODUCT(((Dataset[Econ3]=$G38))*Dataset[2025/26 To - Spending review Topic 2]*$B$3)","v":0},0,{"$f":"SUMPRODUCT(((Dataset[Econ3]=$G38))*Dataset[2026/27 From - Spending review Topic 2]*$B$3)","v":0},{"$f":"SUMPRODUCT(((Dataset[Econ3]=$G38))*Dataset[2026/27 To - Spending review Topic 2]*$B$3)","v":0},0,{"$f":"SUMPRODUCT(((Dataset[Econ3]=$G38))*Dataset[2027/28 From - Spending review Topic 2]*$B$3)","v":0},{"$f":"SUMPRODUCT(((Dataset[Econ3]=$G38))*Dataset[2027/28 To - Spending review Topic 2]*$B$3)","v":0},0,0,0,0]
["Spending review topic 2",0,null,null,null,null,"Transfers and subsidies",{"$f":"SUM(H40,H43,H46:H48,H51:H52)","v":0},0,0,0,0,0,0,0,0,0,0,0]
["Spending review topic 2",0,null,null,null,null,"Provinces and municipalities",{"$f":"SUM(H41:H42)","v":0},0,0,0,0,0,0,0,0,0,0,0]
["Spending review topic 2",0,null,null,null,null,"Provinces",{"$f":"SUMPRODUCT(((Dataset[Econ4]=$G41))*Dataset[2025/26 From - Spending review Topic 2]*$B$3)","v":0},{"$f":"SUMPRODUCT(((Dataset[Econ4]=$G41))*Dataset[2025/26 To - Spending review Topic 2]*$B$3)","v":0},{"$f":"H41+I41","v":0},{"$f":"SUMPRODUCT(((Dataset[Econ4]=$G41))*Dataset[2026/27 From - Spending review Topic 2]*$B$3)","v":0},{"$f":"SUMPRODUCT(((Dataset[Econ4]=$G41))*Dataset[2026/27 To - Spending review Topic 2]*$B$3)","v":0},{"$f":"K41+L41","v":0},{"$f":"SUMPRODUCT(((Dataset[Econ4]=$G41))*Dataset[2027/28 From - Spending review Topic 2]*$B$3)","v":0},{"$f":"SUMPRODUCT(((Dataset[Econ4]=$G41))*Dataset[2027/28 To - Spending review Topic 2]*$B$3)","v":0},{"$f":"N41+O41","v":0},{"$f":"SUM(H41,K41,N41)","v":0},0,0]
["Spending review topic 2",0,null,null,null,null,"Municipalities",{"$f":"SUMPRODUCT(((Dataset[Econ4]=$G42))*Dataset[2025/26 From - Spending review Topic 2]*$B$3)","v":0},{"$f":"SUMPRODUCT(((Dataset[Econ4]=$G42))*Dataset[2025/26 To - Spending review Topic 2]*$B$3)","v":0},0,{"$f":"SUMPRODUCT(((Dataset[Econ4]=$G42))*Dataset[2026/27 From - Spending review Topic 2]*$B$3)","v":0},{"$f":"SUMPRODUCT(((Dataset[Econ4]=$G42))*Dataset[2026/27 To - Spending review Topic 2]*$B$3)","v":0},0,{"$f":"SUMPRODUCT(((Dataset[Econ4]=$G42))*Dataset[2027/28 From - Spending review Topic 2]*$B$3)","v":0},{"$f":"SUMPRODUCT(((Dataset[Econ4]=$G42))*Dataset[2027/28 To - Spending review Topic 2]*$B$3)","v":0},0,0,0,0]
["Spending review topic 2",0,null,null,null,null,"Departmental agencies and accounts",{"$f":"SUM(H44:H45)","v":0},0,0,0,0,0,0,0,0,0,0,0]
["Spending review topic 2",0,null,null,null,null,"Social security funds",{"$f":"SUMPRODUCT(((Dataset[Econ4]=$G44))*Dataset[2025/26 From - Spending review Topic 2]*$B$3)","v":0},{"$f":"SUMPRODUCT(((Dataset[Econ4]=$G44))*Dataset[2025/26 To - Spending review Topic 2]*$B$3)","v":0},{"$f":"H44+I44","v":0},{"$f":"SUMPRODUCT(((Dataset[Econ4]=$G44))*Dataset[2026/27 From - Spending review Topic 2]*$B$3)","v":0},{"$f":"SUMPRODUCT(((Dataset[Econ4]=$G44))*Dataset[2026/27 To - Spending review Topic 2]*$B$3)","v":0},{"$f":"K44+L44","v":0},{"$f":"SUMPRODUCT(((Dataset[Econ4]=$G44))*Dataset[2027/28 From - Spending review Topic 2]*$B$3)","v":0},{"$f":"SUMPRODUCT(((Dataset[Econ4]=$G44))*Dataset[2027/28 To - Spending review Topic 2]*$B$3)","v":0},{"$f":"N44+O44","v":0},{"$f":"SUM(H44,K44,N44)","v":0},0,0]
["Spending review topic 2",0,null,null,null,null,"Departmental agencies (non-business entities)",{"$f":"SUMPRODUCT(((Dataset[Econ4]=$G45))*Dataset[2025/26 From - Spending review Topic 2]*$B$3)","v":0},{"$f":"SUMPRODUCT(((Dataset[Econ4]=$G45))*Dataset[2025/26 To - Spending review Topic 2]*$B$3)","v":0},0,{"$f":"SUMPRODUCT(((Dataset[Econ4]=$G45))*Dataset[2026/27 From - Spending review Topic 2]*$B$3)","v":0},{"$f":"SUMPRODUCT(((Dataset[Econ4]=$G45))*Dataset[2026/27 To - Spending review Topic 2]*$B$3)","v":0},0,{"$f":"SUMPRODUCT(((Dataset[Econ4]=$G45))*Dataset[2027/28 From - Spending review Topic 2]*$B$3)","v":0},{"$f":"SUMPRODUCT(((Dataset[Econ4]=$G45))*Dataset[2027/28 To - Spending review Topic 2]*$B$3)","v":0},0,0,0,0]
["Spending review topic 2",0,null,null,null,null,"Higher education institutions",{"$f":"SUMPRODUCT(((Dataset[Econ3]=$G46))*Dataset[2025/26 From - Spending review Topic 2]*$B$3)","v":0},{"$f":"SUMPRODUCT(((Dataset[Econ3]=$G46))*Dataset[2025/26 To - Spending review Topic 2]*$B$3)","v":0},0,{"$f":"SUMPRODUCT(((Dataset[Econ3]=$G46))*Dataset[2026/27 From - Spending review Topic 2]*$B$3)","v":0},{"$f":"SUMPRODUCT(((Dataset[Econ3]=$G46))*Dataset[2026/27 To - Spending review Topic 2]*$B$3)","v":0},0,{"$f":"SUMPRODUCT(((Dataset[Econ3]=$G46))*Dataset[2027/28 From - Spending review Topic 2]*$B$3)","v":0},{"$f":"SUMPRODUCT(((Dataset[Econ3]=$G46))*Dataset[2027/28 To - Spending review Topic 2]*$B$3)","v":0},0,0,0,0]
["Spending review topic 2",0,null,null,null,null,"Foreign governments and international organisations",{"$f":"SUMPRODUCT(((Dataset[Econ3]=$G47))*Dataset[2025/26 From - Spending review Topic 2]*$B$3)","v":0},{"$f":"SUMPRODUCT(((Dataset[Econ3]=$G47))*Dataset[2025/26 To - Spending review Topic 2]*$B$3)","v":0},0,{"$f":"SUMPRODUCT(((Dataset[Econ3]=$G47))*Dataset[2026/27 From - Spending review Topic 2]*$B$3)","v":0},{"$f":"SUMPRODUCT(((Dataset[Econ3]=$G47))*Dataset[2026/27 To - Spending review Topic 2]*$B$3)","v":0},0,{"$f":"SUMPRODUCT(((Dataset[Econ3]=$G47))*Dataset[2027/28 From - Spending review Topic 2]*$B$3)","v":0},{"$f":"SUMPRODUCT(((Dataset[Econ3]=$G47))*Dataset[2027/28 To - Spending review Topic 2]*$B$3)","v":0},0,0,0,0]
["Spending review topic 2",0,null,null,null,null,"Public corporations and private enterprises",{"$f":"SUM(H49:H50)","v":0},0,0,0,0,0,0,0,0,0,0,0]
["Spending review topic 2",0,null,null,null,null,"Public corporations",{"$f":"SUMPRODUCT(((Dataset[Econ4]=$G49))*Dataset[2025/26 From - Spending review Topic 2]*$B$3)","v":0},{"$f":"SUMPRODUCT(((Dataset[Econ4]=$G49))*Dataset[2025/26 To - Spending review Topic 2]*$B$3)","v":0},{"$f":"H49+I49","v":0},{"$f":"SUMPRODUCT(((Dataset[Econ4]=$G49))*Dataset[2026/27 From - Spending review Topic 2]*$B$3)","v":0},{"$f":"SUMPRODUCT(((Dataset[Econ4]=$G49))*Dataset[2026/27 To - Spending review Topic 2]*$B$3)","v":0},{"$f":"K49+L49","v":0},{"$f":"SUMPRODUCT(((Dataset[Econ4]=$G49))*Dataset[2027/28 From - Spending review Topic 2]*$B$3)","v":0},{"$f":"SUMPRODUCT(((Dataset[Econ4]=$G49))*Dataset[2027/28 To - Spending review Topic 2]*$B$3)","v":0},{"$f":"N49+O49","v":0},{"$f":"SUM(H49,K49,N49)","v":0},0,0]
["Spending review topic 2",0,null,null,null,null,"Private enterprises",{"$f":"SUMPRODUCT(((Dataset[Econ4]=$G50))*Dataset[2025/26 From - Spending review Topic 2]*$B$3)","v":0},{"$f":"SUMPRODUCT(((Dataset[Econ4]=$G50))*Dataset[2025/26 To - Spending review Topic 2]*$B$3)","v":0},0,{"$f":"SUMPRODUCT(((Dataset[Econ4]=$G50))*Dataset[2026/27 From - Spending review Topic 2]*$B$3)","v":0},{"$f":"SUMPRODUCT(((Dataset[Econ4]=$G50))*Dataset[2026/27 To - Spending review Topic 2]*$B$3)","v":0},0,{"$f":"SUMPRODUCT(((Dataset[Econ4]=$G50))*Dataset[2027/28 From - Spending review Topic 2]*$B$3)","v":0},{"$f":"SUMPRODUCT(((Dataset[Econ4]=$G50))*Dataset[2027/28 To - Spending review Topic 2]*$B$3)","v":0},0,0,0,0]
["Spending review topic 2",0,null,null,null,null,"Non-profit institutions",{"$f":"SUMPRODUCT(((Dataset[Econ3]=$G51))*Dataset[2025/26 From - Spending review Topic 2]*$B$3)","v":0},{"$f":"SUMPRODUCT(((Dataset[Econ3]=$G51))*Dataset[2025/26 To - Spending review Topic 2]*$B$3)","v":0},0,{"$f":"SUMPRODUCT(((Dataset[Econ3]=$G51))*Dataset[2026/27 From - Spending review Topic 2]*$B$3)","v":0},{"$f":"SUMPRODUCT(((Dataset[Econ3]=$G51))*Dataset[2026/27 To - Spending review Topic 2]*$B$3)","v":0},0,{"$f":"SUMPRODUCT(((Dataset[Econ3]=$G51))*Dataset[2027/28 From - Spending review Topic 2]*$B$3)","v":0},{"$f":"SUMPRODUCT(((Dataset[Econ3]=$G51))*Dataset[2027/28 To - Spending review Topic 2]*$B$3)","v":0},0,0,0,0]
["Spending review topic 2",0,null,null,null,null,"Households",{"$f":"SUM(H53:H54)","v":0},0,0,0,0,0,0,0,0,0,0,0]
["Spending review topic 2",0,null,null,null,null,"Social benefits",{"$f":"SUMPRODUCT(((Dataset[Econ4]=$G53))*Dataset[2025/26 From - Spending review Topic 2]*$B$3)","v":0},{"$f":"SUMPRODUCT(((Dataset[Econ4]=$G53))*Dataset[2025/26 To - Spending review Topic 2]*$B$3)","v":0},{"$f":"H53+I53","v":0},{"$f":"SUMPRODUCT(((Dataset[Econ4]=$G53))*Dataset[2026/27 From - Spending review Topic 2]*$B$3)","v":0},{"$f":"SUMPRODUCT(((Dataset[Econ4]=$G53))*Dataset[2026/27 To - Spending review Topic 2]*$B$3)","v":0},{"$f":"K53+L53","v":0},{"$f":"SUMPRODUCT(((Dataset[Econ4]=$G53))*Dataset[2027/28 From - Spending review Topic 2]*$B$3)","v":0},{"$f":"SUMPRODUCT(((Dataset[Econ4]=$G53))*Dataset[2027/28 To - Spending review Topic 2]*$B$3)","v":0},{"$f":"N53+O53","v":0},{"$f":"SUM(H53,K53,N53)","v":0},0,0]
["Spending review topic 2",0,null,null,null,null,"Other transfers to households",{"$f":"SUMPRODUCT(((Dataset[Econ4]=$G54))*Dataset[2025/26 From - Spending review Topic 2]*$B$3)","v":0},{"$f":"SUMPRODUCT(((Dataset[Econ4]=$G54))*Dataset[2025/26 To - Spending review Topic 2]*$B$3)","v":0},0,{"$f":"SUMPRODUCT(((Dataset[Econ4]=$G54))*Dataset[2026/27 From - Spending review Topic 2]*$B$3)","v":0},{"$f":"SUMPRODUCT(((Dataset[Econ4]=$G54))*Dataset[2026/27 To - Spending review Topic 2]*$B$3)","v":0},0,{"$f":"SUMPRODUCT(((Dataset[Econ4]=$G54))*Dataset[2027/28 From - Spending review Topic 2]*$B$3)","v":0},{"$f":"SUMPRODUCT(((Dataset[Econ4]=$G54))*Dataset[2027/28 To - Spending review Topic 2]*$B$3)","v":0},0,0,0,0]
["Spending review topic 2",0,null,null,null,null,"Payments for capital assets",{"$f":"SUM(H56,H59,H62:H66)","v":0},0,0,0,0,0,0,0,0,0,0,0]
["Spending review topic 2",0,null,null,null,null,"Buildings and other fixed structures",{"$f":"SUM(H57:H58)","v":0},0,0,0,0,0,0,0,0,0,0,0]
["Spending review topic 2",0,null,null,null,null,"Buildings",{"$f":"SUMPRODUCT(((Dataset[Econ4]=$G57))*Dataset[2025/26 From - Spending review Topic 2]*$B$3)","v":0},{"$f":"SUMPRODUCT(((Dataset[Econ4]=$G57))*Dataset[2025/26 To - Spending review Topic 2]*$B$3)","v":0},{"$f":"H57+I57","v":0},{"$f":"SUMPRODUCT(((Dataset[Econ4]=$G57))*Dataset[2026/27 From - Spending review Topic 2]*$B$3)","v":0},{"$f":"SUMPRODUCT(((Dataset[Econ4]=$G57))*Dataset[2026/27 To - Spending review Topic 2]*$B$3)","v":0},{"$f":"K57+L57","v":0},{"$f":"SUMPRODUCT(((Dataset[Econ4]=$G57))*Dataset[2027/28 From - Spending review Topic 2]*$B$3)","v":0},{"$f":"SUMPRODUCT(((Dataset[Econ4]=$G57))*Dataset[2027/28 To - Spending review Topic 2]*$B$3)","v":0},{"$f":"N57+O57","v":0},{"$f":"SUM(H57,K57,N57)","v":0},0,0]
["Spending review topic 2",0,null,null,null,null,"Other fixed structures",{"$f":"SUMPRODUCT(((Dataset[Econ4]=$G58))*Dataset[2025/26 From - Spending review Topic 2]*$B$3)","v":0},{"$f":"SUMPRODUCT(((Dataset[Econ4]=$G58))*Dataset[2025/26 To - Spending review Topic 2]*$B$3)","v":0},0,{"$f":"SUMPRODUCT(((Dataset[Econ4]=$G58))*Dataset[2026/27 From - Spending review Topic 2]*$B$3)","v":0},{"$f":"SUMPRODUCT(((Dataset[Econ4]=$G58))*Dataset[2026/27 To - Spending review Topic 2]*$B$3)","v":0},0,{"$f":"SUMPRODUCT(((Dataset[Econ4]=$G58))*Dataset[2027/28 From - Spending review Topic 2]*$B$3)","v":0},{"$f":"SUMPRODUCT(((Dataset[Econ4]=$G58))*Dataset[2027/28 To - Spending review Topic 2]*$B$3)","v":0},0,0,0,0]
["Spending review topic 2",0,null,null,null,null,"Machinery and equipment",{"$f":"SUM(H60:H61)","v":0},0,0,0,0,0,0,0,0,0,0,0]
["Spending review topic 2",0,null,null,null,null,"Transport equipment",{"$f":"SUMPRODUCT(((Dataset[Econ4]=$G60))*Dataset[2025/26 From - Spending review Topic 2]*$B$3)","v":0},{"$f":"SUMPRODUCT(((Dataset[Econ4]=$G60))*Dataset[2025/26 To - Spending review Topic 2]*$B$3)","v":0},{"$f":"H60+I60","v":0},{"$f":"SUMPRODUCT(((Dataset[Econ4]=$G60))*Dataset[2026/27 From - Spending review Topic 2]*$B$3)","v":0},{"$f":"SUMPRODUCT(((Dataset[Econ4]=$G60))*Dataset[2026/27 To - Spending review Topic 2]*$B$3)","v":0},{"$f":"K60+L60","v":0},{"$f":"SUMPRODUCT(((Dataset[Econ4]=$G60))*Dataset[2027/28 From - Spending review Topic 2]*$B$3)","v":0},{"$f":"SUMPRODUCT(((Dataset[Econ4]=$G60))*Dataset[2027/28 To - Spending review Topic 2]*$B$3)","v":0},{"$f":"N60+O60","v":0},{"$f":"SUM(H60,K60,N60)","v":0},0,0]
["Spending review topic 2",0,null,null,null,null,"Other machinery and equipment",{"$f":"SUMPRODUCT(((Dataset[Econ4]=$G61))*Dataset[2025/26 From - Spending review Topic 2]*$B$3)","v":0},{"$f":"SUMPRODUCT(((Dataset[Econ4]=$G61))*Dataset[2025/26 To - Spending review Topic 2]*$B$3)","v":0},0,{"$f":"SUMPRODUCT(((Dataset[Econ4]=$G61))*Dataset[2026/27 From - Spending review Topic 2]*$B$3)","v":0},{"$f":"SUMPRODUCT(((Dataset[Econ4]=$G61))*Dataset[2026/27 To - Spending review Topic 2]*$B$3)","v":0},0,{"$f":"SUMPRODUCT(((Dataset[Econ4]=$G61))*Dataset[2027/28 From - Spending review Topic 2]*$B$3)","v":0},{"$f":"SUMPRODUCT(((Dataset[Econ4]=$G61))*Dataset[2027/28 To - Spending review Topic 2]*$B$3)","v":0},0,0,0,0]
["Spending review topic 2",0,null,null,null,null,"Heritage assets",{"$f":"SUMPRODUCT(((Dataset[Econ3]=$G62))*Dataset[2025/26 From - Spending review Topic 2]*$B$3)","v":0},{"$f":"SUMPRODUCT(((Dataset[Econ3]=$G62))*Dataset[2025/26 To - Spending review Topic 2]*$B$3)","v":0},0,{"$f":"SUMPRODUCT(((Dataset[Econ3]=$G62))*Dataset[2026/27 From - Spending review Topic 2]*$B$3)","v":0},{"$f":"SUMPRODUCT(((Dataset[Econ3]=$G62))*Dataset[2026/27 To - Spending review Topic 2]*$B$3)","v":0},0,{"$f":"SUMPRODUCT(((Dataset[Econ3]=$G62))*Dataset[2027/28 From - Spending review Topic 2]*$B$3)","v":0},{"$f":"SUMPRODUCT(((Dataset[Econ3]=$G62))*Dataset[2027/28 To - Spending review Topic 2]*$B$3)","v":0},0,0,0,0]
["Spending review topic 2",0,null,null,null,null,"Specialised military assets",{"$f":"SUMPRODUCT(((Dataset[Econ3]=$G63))*Dataset[2025/26 From - Spending review Topic 2]*$B$3)","v":0},{"$f":"SUMPRODUCT(((Dataset[Econ3]=$G63))*Dataset[2025/26 To - Spending review Topic 2]*$B$3)","v":0},0,{"$f":"SUMPRODUCT(((Dataset[Econ3]=$G63))*Dataset[2026/27 From - Spending review Topic 2]*$B$3)","v":0},{"$f":"SUMPRODUCT(((Dataset[Econ3]=$G63))*Dataset[2026/27 To - Spending review Topic 2]*$B$3)","v":0},0,{"$f":"SUMPRODUCT(((Dataset[Econ3]=$G63))*Dataset[2027/28 From - Spending review Topic 2]*$B$3)","v":0},{"$f":"SUMPRODUCT(((Dataset[Econ3]=$G63))*Dataset[2027/28 To - Spending review Topic 2]*$B$3)","v":0},0,0,0,0]
["Spending review topic 2",0,null,null,null,null,"Biological assets",{"$f":"SUMPRODUCT(((Dataset[Econ3]=$G64))*Dataset[2025/26 From - Spending review Topic 2]*$B$3)","v":0},{"$f":"SUMPRODUCT(((Dataset[Econ3]=$G64))*Dataset[2025/26 To - Spending review Topic 2]*$B$3)","v":0},0,{"$f":"SUMPRODUCT(((Dataset[Econ3]=$G64))*Dataset[2026/27 From - Spending review Topic 2]*$B$3)","v":0},{"$f":"SUMPRODUCT(((Dataset[Econ3]=$G64))*Dataset[2026/27 To - Spending review Topic 2]*$B$3)","v":0},0,{"$f":"SUMPRODUCT(((Dataset[Econ3]=$G64))*Dataset[2027/28 From - Spending review Topic 2]*$B$3)","v":0},{"$f":"SUMPRODUCT(((Dataset[Econ3]=$G64))*Dataset[2027/28 To - Spending review Topic 2]*$B$3)","v":0},0,0,0,0]
["Spending review topic 2",0,null,null,null,null,"Land and sub-soil assets",{"$f":"SUMPRODUCT(((Dataset[Econ3]=$G65))*Dataset[2025/26 From - Spending review Topic 2]*$B$3)","v":0},{"$f":"SUMPRODUCT(((Dataset[Econ3]=$G65))*Dataset[2025/26 To - Spending review Topic 2]*$B$3)","v":0},0,{"$f":"SUMPRODUCT(((Dataset[Econ3]=$G65))*Dataset[2026/27 From - Spending review Topic 2]*$B$3)","v":0},{"$f":"SUMPRODUCT(((Dataset[Econ3]=$G65))*Dataset[2026/27 To - Spending review Topic 2]*$B$3)","v":0},0,{"$f":"SUMPRODUCT(((Dataset[Econ3]=$G65))*Dataset[2027/28 From - Spending review Topic 2]*$B$3)","v":0},{"$f":"SUMPRODUCT(((Dataset[Econ3]=$G65))*Dataset[2027/28 To - Spending review Topic 2]*$B$3)","v":0},0,0,0,0]
["Spending review topic 2",0,null,null,null,null,"Software and other intangible assets",{"$f":"SUMPRODUCT(((Dataset[Econ3]=$G66))*Dataset[2025/26 From - Spending review Topic 2]*$B$3)","v":0},{"$f":"SUMPRODUCT(((Dataset[Econ3]=$G66))*Dataset[2025/26 To - Spending review Topic 2]*$B$3)","v":0},0,{"$f":"SUMPRODUCT(((Dataset[Econ3]=$G66))*Dataset[2026/27 From - Spending review Topic 2]*$B$3)","v":0},{"$f":"SUMPRODUCT(((Dataset[Econ3]=$G66))*Dataset[2026/27 To - Spending review Topic 2]*$B$3)","v":0},0,{"$f":"SUMPRODUCT(((Dataset[Econ3]=$G66))*Dataset[2027/28 From - Spending review Topic 2]*$B$3)","v":0},{"$f":"SUMPRODUCT(((Dataset[Econ3]=$G66))*Dataset[2027/28 To - Spending review Topic 2]*$B$3)","v":0},0,0,0,0]
["Spending review topic 2",0,null,null,null,null,"Payments for financial assets",{"$f":"SUMPRODUCT(((Dataset[Econ3]=$G67))*Dataset[2025/26 From - Spending review Topic 2]*$B$3)","v":0},{"$f":"SUMPRODUCT(((Dataset[Econ3]=$G67))*Dataset[2025/26 To - Spending review Topic 2]*$B$3)","v":0},0,{"$f":"SUMPRODUCT(((Dataset[Econ3]=$G67))*Dataset[2026/27 From - Spending review Topic 2]*$B$3)","v":0},{"$f":"SUMPRODUCT(((Dataset[Econ3]=$G67))*Dataset[2026/27 To - Spending review Topic 2]*$B$3)","v":0},0,{"$f":"SUMPRODUCT(((Dataset[Econ3]=$G67))*Dataset[2027/28 From - Spending review Topic 2]*$B$3)","v":0},{"$f":"SUMPRODUCT(((Dataset[Econ3]=$G67))*Dataset[2027/28 To - Spending review Topic 2]*$B$3)","v":0},0,0,0,0]
["Spending review topic 2",0,null,null,null,null,"Total",{"$f":"SUM(H35,H39,H55,H67)","v":0},0,0,0,0,0,0,0,0,0,0,0]
[]
[]
[]
[]
[null,null,null,null,null,null,{"$f":"\"IMPACT OF ADJUSTMENTS: \" &UPPER($G$3)","v":"IMPACT OF ADJUSTMENTS: SPENDING REVIEW TOPIC 2"}]
[]
[null,null,null,null,null,1,"Impact of adjustments on expenditure"]
[{"$f":"$G$3","v":"Spending review topic 2"},5,null,null,null,null,null,{"$f":"MyYear4","v":"2024/25"},null,null,{"$f":"MyYear5","v":"2025/26"},null,null,{"$f":"MyYear6","v":"2026/27"},null,null,{"$f":"MyYear7","v":"2027/28"}]
["Spending review topic 2",5,null,null,null,null,null,"Current expenditure","Potential expenditure @ benchmark level","% Savings if benchmark is achieved","Original number","Change in expenditure","Saving as % of original number","Original number","Change in expenditure","Saving as % of original number","Original number","Change in expenditure","Saving as % of original number"]
["Spending review topic 2",5,null,null,null,null,"Total",null,null,{"$f":"IFERROR((H78-I78)/-H78,\"\")","v":""},null,null,{"$f":"IFERROR((K78-L78)/-K78,\"\")","v":""},null,null,{"$f":"IFERROR((N78-O78)/-N78,\"\")","v":""},null,null,{"$f":"IFERROR((Q78-R78)/-Q78,\"\")","v":""}]
[]
[]
[]
[]
[]
[null,null,null,null,null,2,"Summary of impact on service delivery/policy area due to adjustments"]
[{"$f":"$G$3","v":"Spending review topic 2"},1]
["Spending review topic 2",1]
["Spending review topic 2",1]
["Spending review topic 2",1]
["Spending review topic 2",1]
["Spending review topic 2",1]
["Spending review topic 2",1]
["Spending review topic 2",1]
["Spending review topic 2",1]
["Spending review topic 2",1]
["Spending review topic 2",1]
["Spending review topic 2",1]
["Spending review topic 2",1]
["Spending review topic 2",1]
["Spending review topic 2",1]
[]
[]
[]
[]
[]
[null,null,null,null,null,3,"Impact of adjustments on performance indicators"]
[{"$f":"$G$3","v":"Spending review topic 2"},2,null,null,null,null,null,{"$f":"MyYear4","v":"2024/25"},null,null,{"$f":"MyYear5","v":"2025/26"},null,null,{"$f":"MyYear6","v":"2026/27"},null,null,{"$f":"MyYear7","v":"2027/28"},null,null," Comment",null,null,null,null,"Related MTSF Priority"]
["Spending review topic 2",2,null,null,null,null,"Performance indicator","Current performance","Performance @ benchmark level","Change","Original target","Revised target","Change","Original target","Revised target","Change","Original target","Revised target","Change"]
["Spending review topic 2",2]
["Spending review topic 2",2]
["Spending review topic 2",2]
["Spending review topic 2",2]
["Spending review topic 2",2]
["Spending review topic 2",2]
["Spending review topic 2",2]
["Spending review topic 2",2]
["Spending review topic 2",2]
["Spending review topic 2",2]
["Spending review topic 2",2]
["Spending review topic 2",2]
["Spending review topic 2",2]
["Spending review topic 2",2]
["Spending review topic 2",2]
[]
[]
[]
[]
[]
[null,null,null,null,null,4,"Impact of adjustments on personnel headcount numbers"]
[{"$f":"$G$3","v":"Spending review topic 2"},4,null,null,null,null,null,{"$f":"MyYear4","v":"2024/25"},null,null,{"$f":"MyYear5","v":"2025/26"},null,null,{"$f":"MyYear6","v":"2026/27"},null,null,{"$f":"MyYear7","v":"2027/28"},null,null," Comment"]
["Spending review topic 2",4,null,null,null,null,"Salary level","Current number","Potential number if benchmark is achieved","Change in number","Original number","Revised number","Change in number","Original number","Revised number","Change in number","Original number","Revised number","Change in number"]
["Spending review topic 2",4,null,null,null,null,1,null,null,{"$f":"I131-H131","v":0},null,null,{"$f":"L131-K131","v":0},null,null,{"$f":"O131-N131","v":0},null,null,{"$f":"R131-Q131","v":0}]
["Spending review topic 2",4,null,null,null,null,2,null,null,0,null,null,0,null,null,0,null,null,0]
["Spending review topic 2",4,null,null,null,null,3,null,null,0,null,null,0,null,null,0,null,null,0]
["Spending review topic 2",4,null,null,null,null,4,null,null,0,null,null,0,null,null,0,null,null,0]
["Spending review topic 2",4,null,null,null,null,5,null,null,0,null,null,0,null,null,0,null,null,0]
["Spending review topic 2",4,null,null,null,null,6,null,null,0,null,null,0,null,null,0,null,null,0]
["Spending review topic 2",4,null,null,null,null,7,null,null,0,null,null,0,null,null,0,null,null,0]
["Spending review topic 2",4,null,null,null,null,8,null,null,0,null,null,0,null,null,0,null,null,0]
["Spending review topic 2",4,null,null,null,null,9,null,null,0,null,null,0,null,null,0,null,null,0]
["Spending review topic 2",4,null,null,null,null,10,null,null,0,null,null,0,null,null,0,null,null,0]
["Spending review topic 2",4,null,null,null,null,11,null,null,0,null,null,0,null,null,0,null,null,0]
["Spending review topic 2",4,null,null,null,null,12,null,null,0,null,null,0,null,null,0,null,null,0]
["Spending review topic 2",4,null,null,null,null,13,null,null,0,null,null,0,null,null,0,null,null,0]
["Spending review topic 2",4,null,null,null,null,14,null,null,0,null,null,0,null,null,0,null,null,0]
["Spending review topic 2",4,null,null,null,null,15,null,null,0,null,null,0,null,null,0,null,null,0]
["Spending review topic 2",4,null,null,null,null,16,null,null,0,null,null,0,null,null,0,null,null,0]
["Spending review topic 2",4,null,null,null,null,"Other",null,null,0,null,null,0,null,null,0,null,null,0]
["Spending review topic 2",4,null,null,null,null,"Other",null,null,0,null,null,0,null,null,0,null,null,0]
["Spending review topic 2",4,null,null,null,null,"Other",null,null,0,null,null,0,null,null,0,null,null,0]
["Spending review topic 2",4,null,null,null,null,"Other",null,null,0,null,null,0,null,null,0,null,null,0]
["Spending review topic 2",4,null,null,null,null,"Total",{"$f":"SUM(H131:H150)","v":0},0,0,{"$f":"SUM(K131:K150)","v":0},0,0,0,0,0,0,0,0]
[]
[]
[]
[]
[]
[null,null,null,null,null,5,"Impact of adjustments on infrastructure projects"]
[{"$f":"$G$3","v":"Spending review topic 2"},3,null,null,null,null,null,{"$f":"MyYear4","v":"2024/25"},null,null,{"$f":"MyYear5","v":"2025/26"},null,null,{"$f":"MyYear6","v":"2026/27"},null,null,{"$f":"MyYear7","v":"2027/28"},null,null," Comment"]
["Spending review topic 2",3,null,null,null,null,"Project name","Current number","Market or best in class benchmark","Change","Original amount","Revised amount","Change","Original amount","Revised amount","Change","Original amount","Revised amount","Change"]
["Spending review topic 2",3,null,null,null,null,null,null,null,{"$f":"I160-H160","v":0},null,null,{"$f":"L160-K160","v":0},null,null,{"$f":"O160-N160","v":0},null,null,{"$f":"R160-Q160","v":0}]
["Spending review topic 2",3,null,null,null,null,null,null,null,0,null,null,0,null,null,0,null,null,0]
["Spending review topic 2",3,null,null,null,null,null,null,null,0,null,null,0,null,null,0,null,null,0]
["Spending review topic 2",3,null,null,null,null,null,null,null,0,null,null,0,null,null,0,null,null,0]
["Spending review topic 2",3,null,null,null,null,null,null,null,0,null,null,0,null,null,0,null,null,0]
["Spending review topic 2",3,null,null,null,null,null,null,null,0,null,null,0,null,null,0,null,null,0]
["Spending review topic 2",3,null,null,null,null,null,null,null,0,null,null,0,null,null,0,null,null,0]
["Spending review topic 2",3,null,null,null,null,null,null,null,0,null,null,0,null,null,0,null,null,0]
["Spending review topic 2",3,null,null,null,null,null,null,null,0,null,null,0,null,null,0,null,null,0]
["Spending review topic 2",3,null,null,null,null,null,null,null,0,null,null,0,null,null,0,null,null,0]
["Spending review topic 2",3,null,null,null,null,null,null,null,0,null,null,0,null,null,0,null,null,0]
["Spending review topic 2",3,null,null,null,null,null,null,null,0,null,null,0,null,null,0,null,null,0]
["Spending review topic 2",3,null,null,null,null,null,null,null,0,null,null,0,null,null,0,null,null,0]
["Spending review topic 2",3,null,null,null,null,null,null,null,0,null,null,0,null,null,0,null,null,0]
["Spending review topic 2",3,null,null,null,null,null,null,null,0,null,null,0,null,null,0,null,null,0]
["Spending review topic 2",3,null,null,null,null,null,null,null,0,null,null,0,null,null,0,null,null,0]
["Spending review topic 2",3,null,null,null,null,null,null,null,0,null,null,0,null,null,0,null,null,0]
["Spending review topic 2",3,null,null,null,null,null,null,null,0,null,null,0,null,null,0,null,null,0]
["Spending review topic 2",3,null,null,null,null,null,null,null,0,null,null,0,null,null,0,null,null,0]
["Spending review topic 2",3,null,null,null,null,null,null,null,0,null,null,0,null,null,0,null,null,0]
["Spending review topic 2",3,null,null,null,null,null,null,null,0,null,null,0,null,null,0,null,null,0]
["Spending review topic 2",3,null,null,null,null,null,null,null,0,null,null,0,null,null,0,null,null,0]
["Spending review topic 2",3,null,null,null,null,null,null,null,0,null,null,0,null,null,0,null,null,0]
["Spending review topic 2",3,null,null,null,null,null,null,null,0,null,null,0,null,null,0,null,null,0]
["Spending review topic 2",3,null,null,null,null,null,null,null,0,null,null,0,null,null,0,null,null,0]
["Spending review topic 2",3,null,null,null,null,null,null,null,0,null,null,0,null,null,0,null,null,0]
["Spending review topic 2",3,null,null,null,null,null,null,null,0,null,null,0,null,null,0,null,null,0]
["Spending review topic 2",3,null,null,null,null,null,null,null,0,null,null,0,null,null,0,null,null,0]
["Spending review topic 2",3,null,null,null,null,null,null,null,0,null,null,0,null,null,0,null,null,0]
["Spending review topic 2",3,null,null,null,null,null,null,null,0,null,null,0,null,null,0,null,null,0]
["Spending review topic 2",3,null,null,null,null,null,null,null,0,null,null,0,null,null,0,null,null,0]
["Spending review topic 2",3,null,null,null,null,null,null,null,0,null,null,0,null,null,0,null,null,0]
["Spending review topic 2",3,null,null,null,null,null,null,null,0,null,null,0,null,null,0,null,null,0]
["Spending review topic 2",3,null,null,null,null,null,null,null,0,null,null,0,null,null,0,null,null,0]
["Spending review topic 2",3,null,null,null,null,null,null,null,0,null,null,0,null,null,0,null,null,0]
["Spending review topic 2",3,null,null,null,null,null,null,null,0,null,null,0,null,null,0,null,null,0]
["Spending review topic 2",3,null,null,null,null,null,null,null,0,null,null,0,null,null,0,null,null,0]
["Spending review topic 2",3,null,null,null,null,null,null,null,0,null,null,0,null,null,0,null,null,0]
["Spending review topic 2",3,null,null,null,null,null,null,null,0,null,null,0,null,null,0,null,null,0]
["Spending review topic 2",3,null,null,null,null,null,null,null,0,null,null,0,null,null,0,null,null,0]
["Spending review topic 2",3,null,null,null,null,null,null,null,0,null,null,0,null,null,0,null,null,0]
["Spending review topic 2",3,null,null,null,null,null,null,null,0,null,null,0,null,null,0,null,null,0]
["Spending review topic 2",3,null,null,null,null,null,null,null,0,null,null,0,null,null,0,null,null,0]
["Spending review topic 2",3,null,null,null,null,null,null,null,0,null,null,0,null,null,0,null,null,0]
["Spending review topic 2",3,null,null,null,null,null,null,null,0,null,null,0,null,null,0,null,null,0]
["Spending review topic 2",3,null,null,null,null,null,null,null,0,null,null,0,null,null,0,null,null,0]
["Spending review topic 2",3,null,null,null,null,null,null,null,0,null,null,0,null,null,0,null,null,0]
["Spending review topic 2",3,null,null,null,null,null,null,null,0,null,null,0,null,null,0,null,null,0]
["Spending review topic 2",3,null,null,null,null,null,null,null,0,null,null,0,null,null,0,null,null,0]
["Spending review topic 2",3,null,null,null,null,null,null,null,0,null,null,0,null,null,0,null,null,0]
["Spending review topic 2",3,null,null,null,null,"Total",{"$f":"SUM(H160:H209)","v":0},0,0,0,0,0,0,0,0,0,0,0]

{"sheet":"SRT3","index":13,"n_rows":210,"n_cols":25,"rows_kept":210,"cut":false,"hidden":false,"merged":[[208,19,208,23],[202,19,202,23],[203,19,203,23],[204,19,204,23],[205,19,205,23],[206,19,206,23],[207,19,207,23],[201,19,201,23],[190,19,190,23],[191,19,191,23],[192,19,192,23],[193,19,193,23],[194,19,194,23],[195,19,195,23],[196,19,196,23],[197,19,197,23],[198,19,198,23],[199,19,199,23],[200,19,200,23],[189,19,189,23],[178,19,178,23],[179,19,179,23],[180,19,180,23],[181,19,181,23],[182,19,182,23],[183,19,183,23],[184,19,184,23],[185,19,185,23],[186,19,186,23],[187,19,187,23],[188,19,188,23],[177,19,177,23],[166,19,166,23],[167,19,167,23],[168,19,168,23],[169,19,169,23],[170,19,170,23],[171,19,171,23],[172,19,172,23],[173,19,173,23],[174,19,174,23],[175,19,175,23],[176,19,176,23],[165,19,165,23],[128,19,128,23],[129,19,129,23],[130,19,149,23],[157,19,157,23],[158,19,158,23],[159,19,159,23],[160,19,160,23],[161,19,161,23],[162,19,162,23],[163,19,163,23],[164,19,164,23],[119,19,119,23],[119,24,119,26],[120,19,120,23],[120,24,120,26],[121,19,121,23],[121,24,121,26],[116,19,116,23],[116,24,116,26],[117,19,117,23],[117,24,117,26],[118,19,118,23],[118,24,118,26],[113,19,113,23],[113,24,113,26],[114,19,114,23],[114,24,114,26],[115,19,115,23],[115,24,115,26],[110,19,110,23],[110,24,110,26],[111,19,111,23],[111,24,111,26],[112,19,112,23],[112,24,112,26],[107,19,107,23],[107,24,107,26],[108,19,108,23],[108,24,108,26],[109,19,109,23],[109,24,109,26],[72,6,72,18],[84,6,98,18],[105,19,105,23],[105,24,105,26],[106,19,106,23],[106,24,106,26]]}
[]
[null,null,null,null,null,null,"Spending review topic…"]
[null,{"$f":"IF(G3=\"\",0,1)","v":1},null,null,null,3,{"$f":"SRTopic3","v":"Spending review topic 3"}]
[]
[null,null,null,null,null,null,"Quick view…(Total change)",{"$f":"MyYear5","v":"2025/26"},{"$f":"MyYear6","v":"2026/27"},{"$f":"MyYear7","v":"2027/28"},"MTEF total","Trend"]
[null,null,null,null,null,null,"Compensation of employees",{"$f":"SUMPRODUCT(($G$35:$G$68=$G6)*($J$35:$J$68))","v":0},{"$f":"SUMPRODUCT(($G$35:$G$68=$G6)*($M$35:$M$68))","v":0},{"$f":"SUMPRODUCT(($G$35:$G$68=$G6)*($P$35:$P$68))","v":0},{"$f":"SUM(H6:J6)","v":0},null,null,"CoE"]
[null,null,null,null,null,null,"Goods and services",{"$f":"SUMPRODUCT(($G$35:$G$68=$G7)*($J$35:$J$68))","v":0},{"$f":"SUMPRODUCT(($G$35:$G$68=$G7)*($M$35:$M$68))","v":0},{"$f":"SUMPRODUCT(($G$35:$G$68=$G7)*($P$35:$P$68))","v":0},0,null,null,"G&S"]
[null,null,null,null,null,null,"Transfers and subsidies",{"$f":"SUMPRODUCT(($G$35:$G$68=$G8)*($J$35:$J$68))","v":0},{"$f":"SUMPRODUCT(($G$35:$G$68=$G8)*($M$35:$M$68))","v":0},{"$f":"SUMPRODUCT(($G$35:$G$68=$G8)*($P$35:$P$68))","v":0},0,null,null,"T&S"]
[null,null,null,null,null,null,"Payments for capital assets",{"$f":"SUMPRODUCT(($G$35:$G$68=$G9)*($J$35:$J$68))","v":0},{"$f":"SUMPRODUCT(($G$35:$G$68=$G9)*($M$35:$M$68))","v":0},{"$f":"SUMPRODUCT(($G$35:$G$68=$G9)*($P$35:$P$68))","v":0},0,null,null,"Capital"]
[null,null,null,null,null,null,"Total",{"$f":"SUMPRODUCT(($G$35:$G$68=$G10)*($J$35:$J$68))","v":0},{"$f":"SUMPRODUCT(($G$35:$G$68=$G10)*($M$35:$M$68))","v":0},{"$f":"SUMPRODUCT(($G$35:$G$68=$G10)*($P$35:$P$68))","v":0},0,null,null,"Total"]
[null,null,null,null,null,null,"% of MTEF total",null,null,null,null,null,null,null,null,null,null,null,{"$f":"MyYear5","v":"2025/26"},{"$f":"MyYear6","v":"2026/27"},{"$f":"MyYear7","v":"2027/28"}]
[null,null,null,null,null,null,"Compensation of employees",{"$f":"IFERROR(H6/$K6,\"\")","v":""},"","",null,null,null,null,null,null,null,{"$f":"G12","v":"Compensation of employees"},{"$f":"IF(H12>0.0595,H12,\"\")","v":""},"",""]
[null,null,null,null,null,null,"Goods and services","","","",null,null,null,null,null,null,null,{"$f":"G13","v":"Goods and services"},"","",""]
[null,null,null,null,null,null,"Transfers and subsidies","","","",null,null,null,null,null,null,null,{"$f":"G14","v":"Transfers and subsidies"},"","",""]
[null,null,null,null,null,null,"Payments for capital assets","","","",null,null,null,null,null,null,null,{"$f":"G15","v":"Payments for capital assets"},"","",""]
[]
[null,null,null,null,null,null,"Division of Revenue",{"$f":"MyYear5","v":"2025/26"},{"$f":"MyYear6","v":"2026/27"},{"$f":"MyYear7","v":"2027/28"},"MTEF total","Trend"]
[null,null,null,null,null,null,"National",{"$f":"SUM(H19:H21)","v":0},0,0,{"$f":"SUM(H18:J18)","v":0}]
[{"$f":"$G$3","v":"Spending review topic 3"},"NAT",null,null,null,null,"National (excl. indirect grants)",{"$f":"SUMPRODUCT(((Dataset[DOR]=$B19))*Dataset[2025/26 From - Spending review Topic 3])+SUMPRODUCT(((Dataset[DOR]=$B19))*Dataset[2025/26 To - Spending review Topic 3])","v":0},{"$f":"SUMPRODUCT(((Dataset[DOR]=$B19))*Dataset[2026/27 From - Spending review Topic 3])+SUMPRODUCT(((Dataset[DOR]=$B19))*Dataset[2026/27 To - Spending review Topic 3])","v":0},{"$f":"SUMPRODUCT(((Dataset[DOR]=$B19))*Dataset[2027/28 From - Spending review Topic 3])+SUMPRODUCT(((Dataset[DOR]=$B19))*Dataset[2027/28 To - Spending review Topic 3])","v":0},0]
["Spending review topic 3","IGP",null,null,null,null,"Provincial indirect grants",{"$f":"SUMPRODUCT(((Dataset[DOR]=$B20))*Dataset[2025/26 From - Spending review Topic 3])+SUMPRODUCT(((Dataset[DOR]=$B20))*Dataset[2025/26 To - Spending review Topic 3])","v":0},{"$f":"SUMPRODUCT(((Dataset[DOR]=$B20))*Dataset[2026/27 From - Spending review Topic 3])+SUMPRODUCT(((Dataset[DOR]=$B20))*Dataset[2026/27 To - Spending review Topic 3])","v":0},{"$f":"SUMPRODUCT(((Dataset[DOR]=$B20))*Dataset[2027/28 From - Spending review Topic 3])+SUMPRODUCT(((Dataset[DOR]=$B20))*Dataset[2027/28 To - Spending review Topic 3])","v":0},0]
["Spending review topic 3","IGM",null,null,null,null,"Local indirect grants",{"$f":"SUMPRODUCT(((Dataset[DOR]=$B21))*Dataset[2025/26 From - Spending review Topic 3])+SUMPRODUCT(((Dataset[DOR]=$B21))*Dataset[2025/26 To - Spending review Topic 3])","v":0},{"$f":"SUMPRODUCT(((Dataset[DOR]=$B21))*Dataset[2026/27 From - Spending review Topic 3])+SUMPRODUCT(((Dataset[DOR]=$B21))*Dataset[2026/27 To - Spending review Topic 3])","v":0},{"$f":"SUMPRODUCT(((Dataset[DOR]=$B21))*Dataset[2027/28 From - Spending review Topic 3])+SUMPRODUCT(((Dataset[DOR]=$B21))*Dataset[2027/28 To - Spending review Topic 3])","v":0},0]
["Spending review topic 3",null,null,null,null,null,"Provincial",{"$f":"SUMPRODUCT(((Dataset[DOR]=$B22))*Dataset[2025/26 From - Spending review Topic 3])+SUMPRODUCT(((Dataset[DOR]=$B22))*Dataset[2025/26 To - Spending review Topic 3])","v":0},{"$f":"SUMPRODUCT(((Dataset[DOR]=$B22))*Dataset[2026/27 From - Spending review Topic 3])+SUMPRODUCT(((Dataset[DOR]=$B22))*Dataset[2026/27 To - Spending review Topic 3])","v":0},{"$f":"SUMPRODUCT(((Dataset[DOR]=$B22))*Dataset[2027/28 From - Spending review Topic 3])+SUMPRODUCT(((Dataset[DOR]=$B22))*Dataset[2027/28 To - Spending review Topic 3])","v":0},0]
["Spending review topic 3","PES",null,null,null,null,"Provincial equitable share",{"$f":"SUMPRODUCT(((Dataset[DOR]=$B23))*Dataset[2025/26 From - Spending review Topic 3])+SUMPRODUCT(((Dataset[DOR]=$B23))*Dataset[2025/26 To - Spending review Topic 3])","v":0},{"$f":"SUMPRODUCT(((Dataset[DOR]=$B23))*Dataset[2026/27 From - Spending review Topic 3])+SUMPRODUCT(((Dataset[DOR]=$B23))*Dataset[2026/27 To - Spending review Topic 3])","v":0},{"$f":"SUMPRODUCT(((Dataset[DOR]=$B23))*Dataset[2027/28 From - Spending review Topic 3])+SUMPRODUCT(((Dataset[DOR]=$B23))*Dataset[2027/28 To - Spending review Topic 3])","v":0},0]
["Spending review topic 3","PCG",null,null,null,null,"Provincial conditional grants",{"$f":"SUMPRODUCT(((Dataset[DOR]=$B24))*Dataset[2025/26 From - Spending review Topic 3])+SUMPRODUCT(((Dataset[DOR]=$B24))*Dataset[2025/26 To - Spending review Topic 3])","v":0},{"$f":"SUMPRODUCT(((Dataset[DOR]=$B24))*Dataset[2026/27 From - Spending review Topic 3])+SUMPRODUCT(((Dataset[DOR]=$B24))*Dataset[2026/27 To - Spending review Topic 3])","v":0},{"$f":"SUMPRODUCT(((Dataset[DOR]=$B24))*Dataset[2027/28 From - Spending review Topic 3])+SUMPRODUCT(((Dataset[DOR]=$B24))*Dataset[2027/28 To - Spending review Topic 3])","v":0},0]
["Spending review topic 3",null,null,null,null,null,"Local government",{"$f":"SUMPRODUCT(((Dataset[DOR]=$B25))*Dataset[2025/26 From - Spending review Topic 3])+SUMPRODUCT(((Dataset[DOR]=$B25))*Dataset[2025/26 To - Spending review Topic 3])","v":0},{"$f":"SUMPRODUCT(((Dataset[DOR]=$B25))*Dataset[2026/27 From - Spending review Topic 3])+SUMPRODUCT(((Dataset[DOR]=$B25))*Dataset[2026/27 To - Spending review Topic 3])","v":0},{"$f":"SUMPRODUCT(((Dataset[DOR]=$B25))*Dataset[2027/28 From - Spending review Topic 3])+SUMPRODUCT(((Dataset[DOR]=$B25))*Dataset[2027/28 To - Spending review Topic 3])","v":0},0]
["Spending review topic 3","LES",null,null,null,null,"Local equitable share",{"$f":"SUMPRODUCT(((Dataset[DOR]=$B26))*Dataset[2025/26 From - Spending review Topic 3])+SUMPRODUCT(((Dataset[DOR]=$B26))*Dataset[2025/26 To - Spending review Topic 3])","v":0},{"$f":"SUMPRODUCT(((Dataset[DOR]=$B26))*Dataset[2026/27 From - Spending review Topic 3])+SUMPRODUCT(((Dataset[DOR]=$B26))*Dataset[2026/27 To - Spending review Topic 3])","v":0},{"$f":"SUMPRODUCT(((Dataset[DOR]=$B26))*Dataset[2027/28 From - Spending review Topic 3])+SUMPRODUCT(((Dataset[DOR]=$B26))*Dataset[2027/28 To - Spending review Topic 3])","v":0},0]
["Spending review topic 3","LCG",null,null,null,null,"Local conditional grants",{"$f":"SUMPRODUCT(((Dataset[DOR]=$B27))*Dataset[2025/26 From - Spending review Topic 3])+SUMPRODUCT(((Dataset[DOR]=$B27))*Dataset[2025/26 To - Spending review Topic 3])","v":0},{"$f":"SUMPRODUCT(((Dataset[DOR]=$B27))*Dataset[2026/27 From - Spending review Topic 3])+SUMPRODUCT(((Dataset[DOR]=$B27))*Dataset[2026/27 To - Spending review Topic 3])","v":0},{"$f":"SUMPRODUCT(((Dataset[DOR]=$B27))*Dataset[2027/28 From - Spending review Topic 3])+SUMPRODUCT(((Dataset[DOR]=$B27))*Dataset[2027/28 To - Spending review Topic 3])","v":0},0]
["Spending review topic 3","GFL",null,null,null,null,"General fuel levy ",{"$f":"SUMPRODUCT(((Dataset[DOR]=$B28))*Dataset[2025/26 From - Spending review Topic 3])+SUMPRODUCT(((Dataset[DOR]=$B28))*Dataset[2025/26 To - Spending review Topic 3])","v":0},{"$f":"SUMPRODUCT(((Dataset[DOR]=$B28))*Dataset[2026/27 From - Spending review Topic 3])+SUMPRODUCT(((Dataset[DOR]=$B28))*Dataset[2026/27 To - Spending review Topic 3])","v":0},{"$f":"SUMPRODUCT(((Dataset[DOR]=$B28))*Dataset[2027/28 From - Spending review Topic 3])+SUMPRODUCT(((Dataset[DOR]=$B28))*Dataset[2027/28 To - Spending review Topic 3])","v":0},0]
[]
[]
[null,null,null,null,null,null,{"$f":"G3","v":"Spending review topic 3"}]
[{"$f":"$G$3","v":"Spending review topic 3"},0,null,null,null,null,null,{"$f":"MyYear5","v":"2025/26"},null,null,{"$f":"MyYear6","v":"2026/27"},null,null,{"$f":"MyYear7","v":"2027/28"},null,null,"Total over MTEF"]
[{"$f":"$G$3","v":"Spending review topic 3"},0,null,null,null,null,"Rand thousand","From","To","Total change","From","To","Total change","From","To","Total change","From","To","Total change"]
["Spending review topic 3",0,null,null,null,null,"Economic classification"]
["Spending review topic 3",0,null,null,null,null,"Current payments",{"$f":"SUM(H36:H38)","v":0},0,0,0,0,0,0,0,0,0,0,0]
["Spending review topic 3",0,null,null,null,null,"Compensation of employees",{"$f":"SUMPRODUCT(((Dataset[Econ3]=$G36))*Dataset[2025/26 From - Spending review Topic 3]*$B$3)","v":0},{"$f":"SUMPRODUCT(((Dataset[Econ3]=$G36))*Dataset[2025/26 To - Spending review Topic 3]*$B$3)","v":0},{"$f":"H36+I36","v":0},{"$f":"SUMPRODUCT(((Dataset[Econ3]=$G36))*Dataset[2026/27 From - Spending review Topic 3]*$B$3)","v":0},{"$f":"SUMPRODUCT(((Dataset[Econ3]=$G36))*Dataset[2026/27 To - Spending review Topic 3]*$B$3)","v":0},{"$f":"K36+L36","v":0},{"$f":"SUMPRODUCT(((Dataset[Econ3]=$G36))*Dataset[2027/28 From - Spending review Topic 3]*$B$3)","v":0},{"$f":"SUMPRODUCT(((Dataset[Econ3]=$G36))*Dataset[2027/28 To - Spending review Topic 3]*$B$3)","v":0},{"$f":"N36+O36","v":0},{"$f":"SUM(H36,K36,N36)","v":0},0,0]
["Spending review topic 3",0,null,null,null,null,"Goods and services",{"$f":"SUMPRODUCT(((Dataset[Econ3]=$G37))*Dataset[2025/26 From - Spending review Topic 3]*$B$3)","v":0},{"$f":"SUMPRODUCT(((Dataset[Econ3]=$G37))*Dataset[2025/26 To - Spending review Topic 3]*$B$3)","v":0},0,{"$f":"SUMPRODUCT(((Dataset[Econ3]=$G37))*Dataset[2026/27 From - Spending review Topic 3]*$B$3)","v":0},{"$f":"SUMPRODUCT(((Dataset[Econ3]=$G37))*Dataset[2026/27 To - Spending review Topic 3]*$B$3)","v":0},0,{"$f":"SUMPRODUCT(((Dataset[Econ3]=$G37))*Dataset[2027/28 From - Spending review Topic 3]*$B$3)","v":0},{"$f":"SUMPRODUCT(((Dataset[Econ3]=$G37))*Dataset[2027/28 To - Spending review Topic 3]*$B$3)","v":0},0,0,0,0]
["Spending review topic 3",0,null,null,null,null,"Interest and rent on land",{"$f":"SUMPRODUCT(((Dataset[Econ3]=$G38))*Dataset[2025/26 From - Spending review Topic 3]*$B$3)","v":0},{"$f":"SUMPRODUCT(((Dataset[Econ3]=$G38))*Dataset[2025/26 To - Spending review Topic 3]*$B$3)","v":0},0,{"$f":"SUMPRODUCT(((Dataset[Econ3]=$G38))*Dataset[2026/27 From - Spending review Topic 3]*$B$3)","v":0},{"$f":"SUMPRODUCT(((Dataset[Econ3]=$G38))*Dataset[2026/27 To - Spending review Topic 3]*$B$3)","v":0},0,{"$f":"SUMPRODUCT(((Dataset[Econ3]=$G38))*Dataset[2027/28 From - Spending review Topic 3]*$B$3)","v":0},{"$f":"SUMPRODUCT(((Dataset[Econ3]=$G38))*Dataset[2027/28 To - Spending review Topic 3]*$B$3)","v":0},0,0,0,0]
["Spending review topic 3",0,null,null,null,null,"Transfers and subsidies",{"$f":"SUM(H40,H43,H46:H48,H51:H52)","v":0},0,0,0,0,0,0,0,0,0,0,0]
["Spending review topic 3",0,null,null,null,null,"Provinces and municipalities",{"$f":"SUM(H41:H42)","v":0},0,0,0,0,0,0,0,0,0,0,0]
["Spending review topic 3",0,null,null,null,null,"Provinces",{"$f":"SUMPRODUCT(((Dataset[Econ4]=$G41))*Dataset[2025/26 From - Spending review Topic 3]*$B$3)","v":0},{"$f":"SUMPRODUCT(((Dataset[Econ4]=$G41))*Dataset[2025/26 To - Spending review Topic 3]*$B$3)","v":0},{"$f":"H41+I41","v":0},{"$f":"SUMPRODUCT(((Dataset[Econ4]=$G41))*Dataset[2026/27 From - Spending review Topic 3]*$B$3)","v":0},{"$f":"SUMPRODUCT(((Dataset[Econ4]=$G41))*Dataset[2026/27 To - Spending review Topic 3]*$B$3)","v":0},{"$f":"K41+L41","v":0},{"$f":"SUMPRODUCT(((Dataset[Econ4]=$G41))*Dataset[2027/28 From - Spending review Topic 3]*$B$3)","v":0},{"$f":"SUMPRODUCT(((Dataset[Econ4]=$G41))*Dataset[2027/28 To - Spending review Topic 3]*$B$3)","v":0},{"$f":"N41+O41","v":0},{"$f":"SUM(H41,K41,N41)","v":0},0,0]
["Spending review topic 3",0,null,null,null,null,"Municipalities",{"$f":"SUMPRODUCT(((Dataset[Econ4]=$G42))*Dataset[2025/26 From - Spending review Topic 3]*$B$3)","v":0},{"$f":"SUMPRODUCT(((Dataset[Econ4]=$G42))*Dataset[2025/26 To - Spending review Topic 3]*$B$3)","v":0},0,{"$f":"SUMPRODUCT(((Dataset[Econ4]=$G42))*Dataset[2026/27 From - Spending review Topic 3]*$B$3)","v":0},{"$f":"SUMPRODUCT(((Dataset[Econ4]=$G42))*Dataset[2026/27 To - Spending review Topic 3]*$B$3)","v":0},0,{"$f":"SUMPRODUCT(((Dataset[Econ4]=$G42))*Dataset[2027/28 From - Spending review Topic 3]*$B$3)","v":0},{"$f":"SUMPRODUCT(((Dataset[Econ4]=$G42))*Dataset[2027/28 To - Spending review Topic 3]*$B$3)","v":0},0,0,0,0]
["Spending review topic 3",0,null,null,null,null,"Departmental agencies and accounts",{"$f":"SUM(H44:H45)","v":0},0,0,0,0,0,0,0,0,0,0,0]
["Spending review topic 3",0,null,null,null,null,"Social security funds",{"$f":"SUMPRODUCT(((Dataset[Econ4]=$G44))*Dataset[2025/26 From - Spending review Topic 3]*$B$3)","v":0},{"$f":"SUMPRODUCT(((Dataset[Econ4]=$G44))*Dataset[2025/26 To - Spending review Topic 3]*$B$3)","v":0},{"$f":"H44+I44","v":0},{"$f":"SUMPRODUCT(((Dataset[Econ4]=$G44))*Dataset[2026/27 From - Spending review Topic 3]*$B$3)","v":0},{"$f":"SUMPRODUCT(((Dataset[Econ4]=$G44))*Dataset[2026/27 To - Spending review Topic 3]*$B$3)","v":0},{"$f":"K44+L44","v":0},{"$f":"SUMPRODUCT(((Dataset[Econ4]=$G44))*Dataset[2027/28 From - Spending review Topic 3]*$B$3)","v":0},{"$f":"SUMPRODUCT(((Dataset[Econ4]=$G44))*Dataset[2027/28 To - Spending review Topic 3]*$B$3)","v":0},{"$f":"N44+O44","v":0},{"$f":"SUM(H44,K44,N44)","v":0},0,0]
["Spending review topic 3",0,null,null,null,null,"Departmental agencies (non-business entities)",{"$f":"SUMPRODUCT(((Dataset[Econ4]=$G45))*Dataset[2025/26 From - Spending review Topic 3]*$B$3)","v":0},{"$f":"SUMPRODUCT(((Dataset[Econ4]=$G45))*Dataset[2025/26 To - Spending review Topic 3]*$B$3)","v":0},0,{"$f":"SUMPRODUCT(((Dataset[Econ4]=$G45))*Dataset[2026/27 From - Spending review Topic 3]*$B$3)","v":0},{"$f":"SUMPRODUCT(((Dataset[Econ4]=$G45))*Dataset[2026/27 To - Spending review Topic 3]*$B$3)","v":0},0,{"$f":"SUMPRODUCT(((Dataset[Econ4]=$G45))*Dataset[2027/28 From - Spending review Topic 3]*$B$3)","v":0},{"$f":"SUMPRODUCT(((Dataset[Econ4]=$G45))*Dataset[2027/28 To - Spending review Topic 3]*$B$3)","v":0},0,0,0,0]
["Spending review topic 3",0,null,null,null,null,"Higher education institutions",{"$f":"SUMPRODUCT(((Dataset[Econ3]=$G46))*Dataset[2025/26 From - Spending review Topic 3]*$B$3)","v":0},{"$f":"SUMPRODUCT(((Dataset[Econ3]=$G46))*Dataset[2025/26 To - Spending review Topic 3]*$B$3)","v":0},0,{"$f":"SUMPRODUCT(((Dataset[Econ3]=$G46))*Dataset[2026/27 From - Spending review Topic 3]*$B$3)","v":0},{"$f":"SUMPRODUCT(((Dataset[Econ3]=$G46))*Dataset[2026/27 To - Spending review Topic 3]*$B$3)","v":0},0,{"$f":"SUMPRODUCT(((Dataset[Econ3]=$G46))*Dataset[2027/28 From - Spending review Topic 3]*$B$3)","v":0},{"$f":"SUMPRODUCT(((Dataset[Econ3]=$G46))*Dataset[2027/28 To - Spending review Topic 3]*$B$3)","v":0},0,0,0,0]
["Spending review topic 3",0,null,null,null,null,"Foreign governments and international organisations",{"$f":"SUMPRODUCT(((Dataset[Econ3]=$G47))*Dataset[2025/26 From - Spending review Topic 3]*$B$3)","v":0},{"$f":"SUMPRODUCT(((Dataset[Econ3]=$G47))*Dataset[2025/26 To - Spending review Topic 3]*$B$3)","v":0},0,{"$f":"SUMPRODUCT(((Dataset[Econ3]=$G47))*Dataset[2026/27 From - Spending review Topic 3]*$B$3)","v":0},{"$f":"SUMPRODUCT(((Dataset[Econ3]=$G47))*Dataset[2026/27 To - Spending review Topic 3]*$B$3)","v":0},0,{"$f":"SUMPRODUCT(((Dataset[Econ3]=$G47))*Dataset[2027/28 From - Spending review Topic 3]*$B$3)","v":0},{"$f":"SUMPRODUCT(((Dataset[Econ3]=$G47))*Dataset[2027/28 To - Spending review Topic 3]*$B$3)","v":0},0,0,0,0]
["Spending review topic 3",0,null,null,null,null,"Public corporations and private enterprises",{"$f":"SUM(H49:H50)","v":0},0,0,0,0,0,0,0,0,0,0,0]
["Spending review topic 3",0,null,null,null,null,"Public corporations",{"$f":"SUMPRODUCT(((Dataset[Econ4]=$G49))*Dataset[2025/26 From - Spending review Topic 3]*$B$3)","v":0},{"$f":"SUMPRODUCT(((Dataset[Econ4]=$G49))*Dataset[2025/26 To - Spending review Topic 3]*$B$3)","v":0},{"$f":"H49+I49","v":0},{"$f":"SUMPRODUCT(((Dataset[Econ4]=$G49))*Dataset[2026/27 From - Spending review Topic 3]*$B$3)","v":0},{"$f":"SUMPRODUCT(((Dataset[Econ4]=$G49))*Dataset[2026/27 To - Spending review Topic 3]*$B$3)","v":0},{"$f":"K49+L49","v":0},{"$f":"SUMPRODUCT(((Dataset[Econ4]=$G49))*Dataset[2027/28 From - Spending review Topic 3]*$B$3)","v":0},{"$f":"SUMPRODUCT(((Dataset[Econ4]=$G49))*Dataset[2027/28 To - Spending review Topic 3]*$B$3)","v":0},{"$f":"N49+O49","v":0},{"$f":"SUM(H49,K49,N49)","v":0},0,0]
["Spending review topic 3",0,null,null,null,null,"Private enterprises",{"$f":"SUMPRODUCT(((Dataset[Econ4]=$G50))*Dataset[2025/26 From - Spending review Topic 3]*$B$3)","v":0},{"$f":"SUMPRODUCT(((Dataset[Econ4]=$G50))*Dataset[2025/26 To - Spending review Topic 3]*$B$3)","v":0},0,{"$f":"SUMPRODUCT(((Dataset[Econ4]=$G50))*Dataset[2026/27 From - Spending review Topic 3]*$B$3)","v":0},{"$f":"SUMPRODUCT(((Dataset[Econ4]=$G50))*Dataset[2026/27 To - Spending review Topic 3]*$B$3)","v":0},0,{"$f":"SUMPRODUCT(((Dataset[Econ4]=$G50))*Dataset[2027/28 From - Spending review Topic 3]*$B$3)","v":0},{"$f":"SUMPRODUCT(((Dataset[Econ4]=$G50))*Dataset[2027/28 To - Spending review Topic 3]*$B$3)","v":0},0,0,0,0]
["Spending review topic 3",0,null,null,null,null,"Non-profit institutions",{"$f":"SUMPRODUCT(((Dataset[Econ3]=$G51))*Dataset[2025/26 From - Spending review Topic 3]*$B$3)","v":0},{"$f":"SUMPRODUCT(((Dataset[Econ3]=$G51))*Dataset[2025/26 To - Spending review Topic 3]*$B$3)","v":0},0,{"$f":"SUMPRODUCT(((Dataset[Econ3]=$G51))*Dataset[2026/27 From - Spending review Topic 3]*$B$3)","v":0},{"$f":"SUMPRODUCT(((Dataset[Econ3]=$G51))*Dataset[2026/27 To - Spending review Topic 3]*$B$3)","v":0},0,{"$f":"SUMPRODUCT(((Dataset[Econ3]=$G51))*Dataset[2027/28 From - Spending review Topic 3]*$B$3)","v":0},{"$f":"SUMPRODUCT(((Dataset[Econ3]=$G51))*Dataset[2027/28 To - Spending review Topic 3]*$B$3)","v":0},0,0,0,0]
["Spending review topic 3",0,null,null,null,null,"Households",{"$f":"SUM(H53:H54)","v":0},0,0,0,0,0,0,0,0,0,0,0]
["Spending review topic 3",0,null,null,null,null,"Social benefits",{"$f":"SUMPRODUCT(((Dataset[Econ4]=$G53))*Dataset[2025/26 From - Spending review Topic 3]*$B$3)","v":0},{"$f":"SUMPRODUCT(((Dataset[Econ4]=$G53))*Dataset[2025/26 To - Spending review Topic 3]*$B$3)","v":0},{"$f":"H53+I53","v":0},{"$f":"SUMPRODUCT(((Dataset[Econ4]=$G53))*Dataset[2026/27 From - Spending review Topic 3]*$B$3)","v":0},{"$f":"SUMPRODUCT(((Dataset[Econ4]=$G53))*Dataset[2026/27 To - Spending review Topic 3]*$B$3)","v":0},{"$f":"K53+L53","v":0},{"$f":"SUMPRODUCT(((Dataset[Econ4]=$G53))*Dataset[2027/28 From - Spending review Topic 3]*$B$3)","v":0},{"$f":"SUMPRODUCT(((Dataset[Econ4]=$G53))*Dataset[2027/28 To - Spending review Topic 3]*$B$3)","v":0},{"$f":"N53+O53","v":0},{"$f":"SUM(H53,K53,N53)","v":0},0,0]
["Spending review topic 3",0,null,null,null,null,"Other transfers to households",{"$f":"SUMPRODUCT(((Dataset[Econ4]=$G54))*Dataset[2025/26 From - Spending review Topic 3]*$B$3)","v":0},{"$f":"SUMPRODUCT(((Dataset[Econ4]=$G54))*Dataset[2025/26 To - Spending review Topic 3]*$B$3)","v":0},0,{"$f":"SUMPRODUCT(((Dataset[Econ4]=$G54))*Dataset[2026/27 From - Spending review Topic 3]*$B$3)","v":0},{"$f":"SUMPRODUCT(((Dataset[Econ4]=$G54))*Dataset[2026/27 To - Spending review Topic 3]*$B$3)","v":0},0,{"$f":"SUMPRODUCT(((Dataset[Econ4]=$G54))*Dataset[2027/28 From - Spending review Topic 3]*$B$3)","v":0},{"$f":"SUMPRODUCT(((Dataset[Econ4]=$G54))*Dataset[2027/28 To - Spending review Topic 3]*$B$3)","v":0},0,0,0,0]
["Spending review topic 3",0,null,null,null,null,"Payments for capital assets",{"$f":"SUM(H56,H59,H62:H66)","v":0},0,0,0,0,0,0,0,0,0,0,0]
["Spending review topic 3",0,null,null,null,null,"Buildings and other fixed structures",{"$f":"SUM(H57:H58)","v":0},0,0,0,0,0,0,0,0,0,0,0]
["Spending review topic 3",0,null,null,null,null,"Buildings",{"$f":"SUMPRODUCT(((Dataset[Econ4]=$G57))*Dataset[2025/26 From - Spending review Topic 3]*$B$3)","v":0},{"$f":"SUMPRODUCT(((Dataset[Econ4]=$G57))*Dataset[2025/26 To - Spending review Topic 3]*$B$3)","v":0},{"$f":"H57+I57","v":0},{"$f":"SUMPRODUCT(((Dataset[Econ4]=$G57))*Dataset[2026/27 From - Spending review Topic 3]*$B$3)","v":0},{"$f":"SUMPRODUCT(((Dataset[Econ4]=$G57))*Dataset[2026/27 To - Spending review Topic 3]*$B$3)","v":0},{"$f":"K57+L57","v":0},{"$f":"SUMPRODUCT(((Dataset[Econ4]=$G57))*Dataset[2027/28 From - Spending review Topic 3]*$B$3)","v":0},{"$f":"SUMPRODUCT(((Dataset[Econ4]=$G57))*Dataset[2027/28 To - Spending review Topic 3]*$B$3)","v":0},{"$f":"N57+O57","v":0},{"$f":"SUM(H57,K57,N57)","v":0},0,0]
["Spending review topic 3",0,null,null,null,null,"Other fixed structures",{"$f":"SUMPRODUCT(((Dataset[Econ4]=$G58))*Dataset[2025/26 From - Spending review Topic 3]*$B$3)","v":0},{"$f":"SUMPRODUCT(((Dataset[Econ4]=$G58))*Dataset[2025/26 To - Spending review Topic 3]*$B$3)","v":0},0,{"$f":"SUMPRODUCT(((Dataset[Econ4]=$G58))*Dataset[2026/27 From - Spending review Topic 3]*$B$3)","v":0},{"$f":"SUMPRODUCT(((Dataset[Econ4]=$G58))*Dataset[2026/27 To - Spending review Topic 3]*$B$3)","v":0},0,{"$f":"SUMPRODUCT(((Dataset[Econ4]=$G58))*Dataset[2027/28 From - Spending review Topic 3]*$B$3)","v":0},{"$f":"SUMPRODUCT(((Dataset[Econ4]=$G58))*Dataset[2027/28 To - Spending review Topic 3]*$B$3)","v":0},0,0,0,0]
["Spending review topic 3",0,null,null,null,null,"Machinery and equipment",{"$f":"SUM(H60:H61)","v":0},0,0,0,0,0,0,0,0,0,0,0]
["Spending review topic 3",0,null,null,null,null,"Transport equipment",{"$f":"SUMPRODUCT(((Dataset[Econ4]=$G60))*Dataset[2025/26 From - Spending review Topic 3]*$B$3)","v":0},{"$f":"SUMPRODUCT(((Dataset[Econ4]=$G60))*Dataset[2025/26 To - Spending review Topic 3]*$B$3)","v":0},{"$f":"H60+I60","v":0},{"$f":"SUMPRODUCT(((Dataset[Econ4]=$G60))*Dataset[2026/27 From - Spending review Topic 3]*$B$3)","v":0},{"$f":"SUMPRODUCT(((Dataset[Econ4]=$G60))*Dataset[2026/27 To - Spending review Topic 3]*$B$3)","v":0},{"$f":"K60+L60","v":0},{"$f":"SUMPRODUCT(((Dataset[Econ4]=$G60))*Dataset[2027/28 From - Spending review Topic 3]*$B$3)","v":0},{"$f":"SUMPRODUCT(((Dataset[Econ4]=$G60))*Dataset[2027/28 To - Spending review Topic 3]*$B$3)","v":0},{"$f":"N60+O60","v":0},{"$f":"SUM(H60,K60,N60)","v":0},0,0]
["Spending review topic 3",0,null,null,null,null,"Other machinery and equipment",{"$f":"SUMPRODUCT(((Dataset[Econ4]=$G61))*Dataset[2025/26 From - Spending review Topic 3]*$B$3)","v":0},{"$f":"SUMPRODUCT(((Dataset[Econ4]=$G61))*Dataset[2025/26 To - Spending review Topic 3]*$B$3)","v":0},0,{"$f":"SUMPRODUCT(((Dataset[Econ4]=$G61))*Dataset[2026/27 From - Spending review Topic 3]*$B$3)","v":0},{"$f":"SUMPRODUCT(((Dataset[Econ4]=$G61))*Dataset[2026/27 To - Spending review Topic 3]*$B$3)","v":0},0,{"$f":"SUMPRODUCT(((Dataset[Econ4]=$G61))*Dataset[2027/28 From - Spending review Topic 3]*$B$3)","v":0},{"$f":"SUMPRODUCT(((Dataset[Econ4]=$G61))*Dataset[2027/28 To - Spending review Topic 3]*$B$3)","v":0},0,0,0,0]
["Spending review topic 3",0,null,null,null,null,"Heritage assets",{"$f":"SUMPRODUCT(((Dataset[Econ3]=$G62))*Dataset[2025/26 From - Spending review Topic 3]*$B$3)","v":0},{"$f":"SUMPRODUCT(((Dataset[Econ3]=$G62))*Dataset[2025/26 To - Spending review Topic 3]*$B$3)","v":0},0,{"$f":"SUMPRODUCT(((Dataset[Econ3]=$G62))*Dataset[2026/27 From - Spending review Topic 3]*$B$3)","v":0},{"$f":"SUMPRODUCT(((Dataset[Econ3]=$G62))*Dataset[2026/27 To - Spending review Topic 3]*$B$3)","v":0},0,{"$f":"SUMPRODUCT(((Dataset[Econ3]=$G62))*Dataset[2027/28 From - Spending review Topic 3]*$B$3)","v":0},{"$f":"SUMPRODUCT(((Dataset[Econ3]=$G62))*Dataset[2027/28 To - Spending review Topic 3]*$B$3)","v":0},0,0,0,0]
["Spending review topic 3",0,null,null,null,null,"Specialised military assets",{"$f":"SUMPRODUCT(((Dataset[Econ3]=$G63))*Dataset[2025/26 From - Spending review Topic 3]*$B$3)","v":0},{"$f":"SUMPRODUCT(((Dataset[Econ3]=$G63))*Dataset[2025/26 To - Spending review Topic 3]*$B$3)","v":0},0,{"$f":"SUMPRODUCT(((Dataset[Econ3]=$G63))*Dataset[2026/27 From - Spending review Topic 3]*$B$3)","v":0},{"$f":"SUMPRODUCT(((Dataset[Econ3]=$G63))*Dataset[2026/27 To - Spending review Topic 3]*$B$3)","v":0},0,{"$f":"SUMPRODUCT(((Dataset[Econ3]=$G63))*Dataset[2027/28 From - Spending review Topic 3]*$B$3)","v":0},{"$f":"SUMPRODUCT(((Dataset[Econ3]=$G63))*Dataset[2027/28 To - Spending review Topic 3]*$B$3)","v":0},0,0,0,0]
["Spending review topic 3",0,null,null,null,null,"Biological assets",{"$f":"SUMPRODUCT(((Dataset[Econ3]=$G64))*Dataset[2025/26 From - Spending review Topic 3]*$B$3)","v":0},{"$f":"SUMPRODUCT(((Dataset[Econ3]=$G64))*Dataset[2025/26 To - Spending review Topic 3]*$B$3)","v":0},0,{"$f":"SUMPRODUCT(((Dataset[Econ3]=$G64))*Dataset[2026/27 From - Spending review Topic 3]*$B$3)","v":0},{"$f":"SUMPRODUCT(((Dataset[Econ3]=$G64))*Dataset[2026/27 To - Spending review Topic 3]*$B$3)","v":0},0,{"$f":"SUMPRODUCT(((Dataset[Econ3]=$G64))*Dataset[2027/28 From - Spending review Topic 3]*$B$3)","v":0},{"$f":"SUMPRODUCT(((Dataset[Econ3]=$G64))*Dataset[2027/28 To - Spending review Topic 3]*$B$3)","v":0},0,0,0,0]
["Spending review topic 3",0,null,null,null,null,"Land and sub-soil assets",{"$f":"SUMPRODUCT(((Dataset[Econ3]=$G65))*Dataset[2025/26 From - Spending review Topic 3]*$B$3)","v":0},{"$f":"SUMPRODUCT(((Dataset[Econ3]=$G65))*Dataset[2025/26 To - Spending review Topic 3]*$B$3)","v":0},0,{"$f":"SUMPRODUCT(((Dataset[Econ3]=$G65))*Dataset[2026/27 From - Spending review Topic 3]*$B$3)","v":0},{"$f":"SUMPRODUCT(((Dataset[Econ3]=$G65))*Dataset[2026/27 To - Spending review Topic 3]*$B$3)","v":0},0,{"$f":"SUMPRODUCT(((Dataset[Econ3]=$G65))*Dataset[2027/28 From - Spending review Topic 3]*$B$3)","v":0},{"$f":"SUMPRODUCT(((Dataset[Econ3]=$G65))*Dataset[2027/28 To - Spending review Topic 3]*$B$3)","v":0},0,0,0,0]
["Spending review topic 3",0,null,null,null,null,"Software and other intangible assets",{"$f":"SUMPRODUCT(((Dataset[Econ3]=$G66))*Dataset[2025/26 From - Spending review Topic 3]*$B$3)","v":0},{"$f":"SUMPRODUCT(((Dataset[Econ3]=$G66))*Dataset[2025/26 To - Spending review Topic 3]*$B$3)","v":0},0,{"$f":"SUMPRODUCT(((Dataset[Econ3]=$G66))*Dataset[2026/27 From - Spending review Topic 3]*$B$3)","v":0},{"$f":"SUMPRODUCT(((Dataset[Econ3]=$G66))*Dataset[2026/27 To - Spending review Topic 3]*$B$3)","v":0},0,{"$f":"SUMPRODUCT(((Dataset[Econ3]=$G66))*Dataset[2027/28 From - Spending review Topic 3]*$B$3)","v":0},{"$f":"SUMPRODUCT(((Dataset[Econ3]=$G66))*Dataset[2027/28 To - Spending review Topic 3]*$B$3)","v":0},0,0,0,0]
["Spending review topic 3",0,null,null,null,null,"Payments for financial assets",{"$f":"SUMPRODUCT(((Dataset[Econ3]=$G67))*Dataset[2025/26 From - Spending review Topic 3]*$B$3)","v":0},{"$f":"SUMPRODUCT(((Dataset[Econ3]=$G67))*Dataset[2025/26 To - Spending review Topic 3]*$B$3)","v":0},0,{"$f":"SUMPRODUCT(((Dataset[Econ3]=$G67))*Dataset[2026/27 From - Spending review Topic 3]*$B$3)","v":0},{"$f":"SUMPRODUCT(((Dataset[Econ3]=$G67))*Dataset[2026/27 To - Spending review Topic 3]*$B$3)","v":0},0,{"$f":"SUMPRODUCT(((Dataset[Econ3]=$G67))*Dataset[2027/28 From - Spending review Topic 3]*$B$3)","v":0},{"$f":"SUMPRODUCT(((Dataset[Econ3]=$G67))*Dataset[2027/28 To - Spending review Topic 3]*$B$3)","v":0},0,0,0,0]
["Spending review topic 3",0,null,null,null,null,"Total",{"$f":"SUM(H35,H39,H55,H67)","v":0},0,0,0,0,0,0,0,0,0,0,0]
[]
[]
[]
[]
[null,null,null,null,null,null,{"$f":"\"IMPACT OF ADJUSTMENTS: \" &UPPER($G$3)","v":"IMPACT OF ADJUSTMENTS: SPENDING REVIEW TOPIC 3"}]
[]
[null,null,null,null,null,1,"Impact of adjustments on expenditure"]
[{"$f":"$G$3","v":"Spending review topic 3"},5,null,null,null,null,null,{"$f":"MyYear4","v":"2024/25"},null,null,{"$f":"MyYear5","v":"2025/26"},null,null,{"$f":"MyYear6","v":"2026/27"},null,null,{"$f":"MyYear7","v":"2027/28"}]
["Spending review topic 3",5,null,null,null,null,null,"Current expenditure","Potential expenditure @ benchmark level","% Savings if benchmark is achieved","Original number","Change in expenditure","Saving as % of original number","Original number","Change in expenditure","Saving as % of original number","Original number","Change in expenditure","Saving as % of original number"]
["Spending review topic 3",5,null,null,null,null,"Total",null,null,{"$f":"IFERROR((H78-I78)/-H78,\"\")","v":""},null,null,{"$f":"IFERROR((K78-L78)/-K78,\"\")","v":""},null,null,{"$f":"IFERROR((N78-O78)/-N78,\"\")","v":""},null,null,{"$f":"IFERROR((Q78-R78)/-Q78,\"\")","v":""}]
[]
[]
[]
[]
[]
[null,null,null,null,null,2,"Summary of impact on service delivery/policy area due to adjustments"]
[{"$f":"$G$3","v":"Spending review topic 3"},1]
["Spending review topic 3",1]
["Spending review topic 3",1]
["Spending review topic 3",1]
["Spending review topic 3",1]
["Spending review topic 3",1]
["Spending review topic 3",1]
["Spending review topic 3",1]
["Spending review topic 3",1]
["Spending review topic 3",1]
["Spending review topic 3",1]
["Spending review topic 3",1]
["Spending review topic 3",1]
["Spending review topic 3",1]
["Spending review topic 3",1]
[]
[]
[]
[]
[]
[null,null,null,null,null,3,"Impact of adjustments on performance indicators"]
[{"$f":"$G$3","v":"Spending review topic 3"},2,null,null,null,null,null,{"$f":"MyYear4","v":"2024/25"},null,null,{"$f":"MyYear5","v":"2025/26"},null,null,{"$f":"MyYear6","v":"2026/27"},null,null,{"$f":"MyYear7","v":"2027/28"},null,null," Comment",null,null,null,null,"Related MTSF Priority"]
["Spending review topic 3",2,null,null,null,null,"Performance indicator","Current performance","Performance @ benchmark level","Change","Original target","Revised target","Change","Original target","Revised target","Change","Original target","Revised target","Change"]
["Spending review topic 3",2]
["Spending review topic 3",2]
["Spending review topic 3",2]
["Spending review topic 3",2]
["Spending review topic 3",2]
["Spending review topic 3",2]
["Spending review topic 3",2]
["Spending review topic 3",2]
["Spending review topic 3",2]
["Spending review topic 3",2]
["Spending review topic 3",2]
["Spending review topic 3",2]
["Spending review topic 3",2]
["Spending review topic 3",2]
["Spending review topic 3",2]
[]
[]
[]
[]
[]
[null,null,null,null,null,4,"Impact of adjustments on personnel headcount numbers"]
[{"$f":"$G$3","v":"Spending review topic 3"},4,null,null,null,null,null,{"$f":"MyYear4","v":"2024/25"},null,null,{"$f":"MyYear5","v":"2025/26"},null,null,{"$f":"MyYear6","v":"2026/27"},null,null,{"$f":"MyYear7","v":"2027/28"},null,null," Comment"]
["Spending review topic 3",4,null,null,null,null,"Salary level","Current number","Potential number if benchmark is achieved","Change in number","Original number","Revised number","Change in number","Original number","Revised number","Change in number","Original number","Revised number","Change in number"]
["Spending review topic 3",4,null,null,null,null,1,null,null,{"$f":"I131-H131","v":0},null,null,{"$f":"L131-K131","v":0},null,null,{"$f":"O131-N131","v":0},null,null,{"$f":"R131-Q131","v":0}]
["Spending review topic 3",4,null,null,null,null,2,null,null,0,null,null,0,null,null,0,null,null,0]
["Spending review topic 3",4,null,null,null,null,3,null,null,0,null,null,0,null,null,0,null,null,0]
["Spending review topic 3",4,null,null,null,null,4,null,null,0,null,null,0,null,null,0,null,null,0]
["Spending review topic 3",4,null,null,null,null,5,null,null,0,null,null,0,null,null,0,null,null,0]
["Spending review topic 3",4,null,null,null,null,6,null,null,0,null,null,0,null,null,0,null,null,0]
["Spending review topic 3",4,null,null,null,null,7,null,null,0,null,null,0,null,null,0,null,null,0]
["Spending review topic 3",4,null,null,null,null,8,null,null,0,null,null,0,null,null,0,null,null,0]
["Spending review topic 3",4,null,null,null,null,9,null,null,0,null,null,0,null,null,0,null,null,0]
["Spending review topic 3",4,null,null,null,null,10,null,null,0,null,null,0,null,null,0,null,null,0]
["Spending review topic 3",4,null,null,null,null,11,null,null,0,null,null,0,null,null,0,null,null,0]
["Spending review topic 3",4,null,null,null,null,12,null,null,0,null,null,0,null,null,0,null,null,0]
["Spending review topic 3",4,null,null,null,null,13,null,null,0,null,null,0,null,null,0,null,null,0]
["Spending review topic 3",4,null,null,null,null,14,null,null,0,null,null,0,null,null,0,null,null,0]
["Spending review topic 3",4,null,null,null,null,15,null,null,0,null,null,0,null,null,0,null,null,0]
["Spending review topic 3",4,null,null,null,null,16,null,null,0,null,null,0,null,null,0,null,null,0]
["Spending review topic 3",4,null,null,null,null,"Other",null,null,0,null,null,0,null,null,0,null,null,0]
["Spending review topic 3",4,null,null,null,null,"Other",null,null,0,null,null,0,null,null,0,null,null,0]
["Spending review topic 3",4,null,null,null,null,"Other",null,null,0,null,null,0,null,null,0,null,null,0]
["Spending review topic 3",4,null,null,null,null,"Other",null,null,0,null,null,0,null,null,0,null,null,0]
["Spending review topic 3",4,null,null,null,null,"Total",{"$f":"SUM(H131:H150)","v":0},0,0,{"$f":"SUM(K131:K150)","v":0},0,0,0,0,0,0,0,0]
[]
[]
[]
[]
[]
[null,null,null,null,null,5,"Impact of adjustments on infrastructure projects"]
[{"$f":"$G$3","v":"Spending review topic 3"},3,null,null,null,null,null,{"$f":"MyYear4","v":"2024/25"},null,null,{"$f":"MyYear5","v":"2025/26"},null,null,{"$f":"MyYear6","v":"2026/27"},null,null,{"$f":"MyYear7","v":"2027/28"},null,null," Comment"]
["Spending review topic 3",3,null,null,null,null,"Project name","Current number","Market or best in class benchmark","Change","Original amount","Revised amount","Change","Original amount","Revised amount","Change","Original amount","Revised amount","Change"]
["Spending review topic 3",3,null,null,null,null,null,null,null,{"$f":"I160-H160","v":0},null,null,{"$f":"L160-K160","v":0},null,null,{"$f":"O160-N160","v":0},null,null,{"$f":"R160-Q160","v":0}]
["Spending review topic 3",3,null,null,null,null,null,null,null,0,null,null,0,null,null,0,null,null,0]
["Spending review topic 3",3,null,null,null,null,null,null,null,0,null,null,0,null,null,0,null,null,0]
["Spending review topic 3",3,null,null,null,null,null,null,null,0,null,null,0,null,null,0,null,null,0]
["Spending review topic 3",3,null,null,null,null,null,null,null,0,null,null,0,null,null,0,null,null,0]
["Spending review topic 3",3,null,null,null,null,null,null,null,0,null,null,0,null,null,0,null,null,0]
["Spending review topic 3",3,null,null,null,null,null,null,null,0,null,null,0,null,null,0,null,null,0]
["Spending review topic 3",3,null,null,null,null,null,null,null,0,null,null,0,null,null,0,null,null,0]
["Spending review topic 3",3,null,null,null,null,null,null,null,0,null,null,0,null,null,0,null,null,0]
["Spending review topic 3",3,null,null,null,null,null,null,null,0,null,null,0,null,null,0,null,null,0]
["Spending review topic 3",3,null,null,null,null,null,null,null,0,null,null,0,null,null,0,null,null,0]
["Spending review topic 3",3,null,null,null,null,null,null,null,0,null,null,0,null,null,0,null,null,0]
["Spending review topic 3",3,null,null,null,null,null,null,null,0,null,null,0,null,null,0,null,null,0]
["Spending review topic 3",3,null,null,null,null,null,null,null,0,null,null,0,null,null,0,null,null,0]
["Spending review topic 3",3,null,null,null,null,null,null,null,0,null,null,0,null,null,0,null,null,0]
["Spending review topic 3",3,null,null,null,null,null,null,null,0,null,null,0,null,null,0,null,null,0]
["Spending review topic 3",3,null,null,null,null,null,null,null,0,null,null,0,null,null,0,null,null,0]
["Spending review topic 3",3,null,null,null,null,null,null,null,0,null,null,0,null,null,0,null,null,0]
["Spending review topic 3",3,null,null,null,null,null,null,null,0,null,null,0,null,null,0,null,null,0]
["Spending review topic 3",3,null,null,null,null,null,null,null,0,null,null,0,null,null,0,null,null,0]
["Spending review topic 3",3,null,null,null,null,null,null,null,0,null,null,0,null,null,0,null,null,0]
["Spending review topic 3",3,null,null,null,null,null,null,null,0,null,null,0,null,null,0,null,null,0]
["Spending review topic 3",3,null,null,null,null,null,null,null,0,null,null,0,null,null,0,null,null,0]
["Spending review topic 3",3,null,null,null,null,null,null,null,0,null,null,0,null,null,0,null,null,0]
["Spending review topic 3",3,null,null,null,null,null,null,null,0,null,null,0,null,null,0,null,null,0]
["Spending review topic 3",3,null,null,null,null,null,null,null,0,null,null,0,null,null,0,null,null,0]
["Spending review topic 3",3,null,null,null,null,null,null,null,0,null,null,0,null,null,0,null,null,0]
["Spending review topic 3",3,null,null,null,null,null,null,null,0,null,null,0,null,null,0,null,null,0]
["Spending review topic 3",3,null,null,null,null,null,null,null,0,null,null,0,null,null,0,null,null,0]
["Spending review topic 3",3,null,null,null,null,null,null,null,0,null,null,0,null,null,0,null,null,0]
["Spending review topic 3",3,null,null,null,null,null,null,null,0,null,null,0,null,null,0,null,null,0]
["Spending review topic 3",3,null,null,null,null,null,null,null,0,null,null,0,null,null,0,null,null,0]
["Spending review topic 3",3,null,null,null,null,null,null,null,0,null,null,0,null,null,0,null,null,0]
["Spending review topic 3",3,null,null,null,null,null,null,null,0,null,null,0,null,null,0,null,null,0]
["Spending review topic 3",3,null,null,null,null,null,null,null,0,null,null,0,null,null,0,null,null,0]
["Spending review topic 3",3,null,null,null,null,null,null,null,0,null,null,0,null,null,0,null,null,0]
["Spending review topic 3",3,null,null,null,null,null,null,null,0,null,null,0,null,null,0,null,null,0]
["Spending review topic 3",3,null,null,null,null,null,null,null,0,null,null,0,null,null,0,null,null,0]
["Spending review topic 3",3,null,null,null,null,null,null,null,0,null,null,0,null,null,0,null,null,0]
["Spending review topic 3",3,null,null,null,null,null,null,null,0,null,null,0,null,null,0,null,null,0]
["Spending review topic 3",3,null,null,null,null,null,null,null,0,null,null,0,null,null,0,null,null,0]
["Spending review topic 3",3,null,null,null,null,null,null,null,0,null,null,0,null,null,0,null,null,0]
["Spending review topic 3",3,null,null,null,null,null,null,null,0,null,null,0,null,null,0,null,null,0]
["Spending review topic 3",3,null,null,null,null,null,null,null,0,null,null,0,null,null,0,null,null,0]
["Spending review topic 3",3,null,null,null,null,null,null,null,0,null,null,0,null,null,0,null,null,0]
["Spending review topic 3",3,null,null,null,null,null,null,null,0,null,null,0,null,null,0,null,null,0]
["Spending review topic 3",3,null,null,null,null,null,null,null,0,null,null,0,null,null,0,null,null,0]
["Spending review topic 3",3,null,null,null,null,null,null,null,0,null,null,0,null,null,0,null,null,0]
["Spending review topic 3",3,null,null,null,null,null,null,null,0,null,null,0,null,null,0,null,null,0]
["Spending review topic 3",3,null,null,null,null,null,null,null,0,null,null,0,null,null,0,null,null,0]
["Spending review topic 3",3,null,null,null,null,"Total",{"$f":"SUM(H160:H209)","v":0},0,0,0,0,0,0,0,0,0,0,0]

{"sheet":"SRT4","index":14,"n_rows":210,"n_cols":25,"rows_kept":210,"cut":false,"hidden":false,"merged":[[208,19,208,23],[202,19,202,23],[203,19,203,23],[204,19,204,23],[205,19,205,23],[206,19,206,23],[207,19,207,23],[201,19,201,23],[190,19,190,23],[191,19,191,23],[192,19,192,23],[193,19,193,23],[194,19,194,23],[195,19,195,23],[196,19,196,23],[197,19,197,23],[198,19,198,23],[199,19,199,23],[200,19,200,23],[189,19,189,23],[178,19,178,23],[179,19,179,23],[180,19,180,23],[181,19,181,23],[182,19,182,23],[183,19,183,23],[184,19,184,23],[185,19,185,23],[186,19,186,23],[187,19,187,23],[188,19,188,23],[177,19,177,23],[166,19,166,23],[167,19,167,23],[168,19,168,23],[169,19,169,23],[170,19,170,23],[171,19,171,23],[172,19,172,23],[173,19,173,23],[174,19,174,23],[175,19,175,23],[176,19,176,23],[165,19,165,23],[128,19,128,23],[129,19,129,23],[130,19,149,23],[157,19,157,23],[158,19,158,23],[159,19,159,23],[160,19,160,23],[161,19,161,23],[162,19,162,23],[163,19,163,23],[164,19,164,23],[119,19,119,23],[119,24,119,26],[120,19,120,23],[120,24,120,26],[121,19,121,23],[121,24,121,26],[116,19,116,23],[116,24,116,26],[117,19,117,23],[117,24,117,26],[118,19,118,23],[118,24,118,26],[113,19,113,23],[113,24,113,26],[114,19,114,23],[114,24,114,26],[115,19,115,23],[115,24,115,26],[110,19,110,23],[110,24,110,26],[111,19,111,23],[111,24,111,26],[112,19,112,23],[112,24,112,26],[107,19,107,23],[107,24,107,26],[108,19,108,23],[108,24,108,26],[109,19,109,23],[109,24,109,26],[72,6,72,18],[84,6,98,18],[105,19,105,23],[105,24,105,26],[106,19,106,23],[106,24,106,26]]}
[]
[null,null,null,null,null,null,"Spending review topic…"]
[null,{"$f":"IF(G3=\"\",0,1)","v":1},null,null,null,4,{"$f":"SRTopic4","v":"Spending review topic 4"}]
[]
[null,null,null,null,null,null,"Quick view…(Total change)",{"$f":"MyYear5","v":"2025/26"},{"$f":"MyYear6","v":"2026/27"},{"$f":"MyYear7","v":"2027/28"},"MTEF total","Trend"]
[null,null,null,null,null,null,"Compensation of employees",{"$f":"SUMPRODUCT(($G$35:$G$68=$G6)*($J$35:$J$68))","v":0},{"$f":"SUMPRODUCT(($G$35:$G$68=$G6)*($M$35:$M$68))","v":0},{"$f":"SUMPRODUCT(($G$35:$G$68=$G6)*($P$35:$P$68))","v":0},{"$f":"SUM(H6:J6)","v":0},null,null,"CoE"]
[null,null,null,null,null,null,"Goods and services",{"$f":"SUMPRODUCT(($G$35:$G$68=$G7)*($J$35:$J$68))","v":0},{"$f":"SUMPRODUCT(($G$35:$G$68=$G7)*($M$35:$M$68))","v":0},{"$f":"SUMPRODUCT(($G$35:$G$68=$G7)*($P$35:$P$68))","v":0},0,null,null,"G&S"]
[null,null,null,null,null,null,"Transfers and subsidies",{"$f":"SUMPRODUCT(($G$35:$G$68=$G8)*($J$35:$J$68))","v":0},{"$f":"SUMPRODUCT(($G$35:$G$68=$G8)*($M$35:$M$68))","v":0},{"$f":"SUMPRODUCT(($G$35:$G$68=$G8)*($P$35:$P$68))","v":0},0,null,null,"T&S"]
[null,null,null,null,null,null,"Payments for capital assets",{"$f":"SUMPRODUCT(($G$35:$G$68=$G9)*($J$35:$J$68))","v":0},{"$f":"SUMPRODUCT(($G$35:$G$68=$G9)*($M$35:$M$68))","v":0},{"$f":"SUMPRODUCT(($G$35:$G$68=$G9)*($P$35:$P$68))","v":0},0,null,null,"Capital"]
[null,null,null,null,null,null,"Total",{"$f":"SUMPRODUCT(($G$35:$G$68=$G10)*($J$35:$J$68))","v":0},{"$f":"SUMPRODUCT(($G$35:$G$68=$G10)*($M$35:$M$68))","v":0},{"$f":"SUMPRODUCT(($G$35:$G$68=$G10)*($P$35:$P$68))","v":0},0,null,null,"Total"]
[null,null,null,null,null,null,"% of MTEF total",null,null,null,null,null,null,null,null,null,null,null,{"$f":"MyYear5","v":"2025/26"},{"$f":"MyYear6","v":"2026/27"},{"$f":"MyYear7","v":"2027/28"}]
[null,null,null,null,null,null,"Compensation of employees",{"$f":"IFERROR(H6/$K6,\"\")","v":""},"","",null,null,null,null,null,null,null,{"$f":"G12","v":"Compensation of employees"},{"$f":"IF(H12>0.0595,H12,\"\")","v":""},"",""]
[null,null,null,null,null,null,"Goods and services","","","",null,null,null,null,null,null,null,{"$f":"G13","v":"Goods and services"},"","",""]
[null,null,null,null,null,null,"Transfers and subsidies","","","",null,null,null,null,null,null,null,{"$f":"G14","v":"Transfers and subsidies"},"","",""]
[null,null,null,null,null,null,"Payments for capital assets","","","",null,null,null,null,null,null,null,{"$f":"G15","v":"Payments for capital assets"},"","",""]
[]
[null,null,null,null,null,null,"Division of Revenue",{"$f":"MyYear5","v":"2025/26"},{"$f":"MyYear6","v":"2026/27"},{"$f":"MyYear7","v":"2027/28"},"MTEF total","Trend"]
[null,null,null,null,null,null,"National",{"$f":"SUM(H19:H21)","v":0},0,0,{"$f":"SUM(H18:J18)","v":0}]
[{"$f":"$G$3","v":"Spending review topic 4"},"NAT",null,null,null,null,"National (excl. indirect grants)",{"$f":"SUMPRODUCT(((Dataset[DOR]=$B19))*Dataset[2025/26 From - Spending review Topic 4])+SUMPRODUCT(((Dataset[DOR]=$B19))*Dataset[2025/26 To - Spending review Topic 4])","v":0},{"$f":"SUMPRODUCT(((Dataset[DOR]=$B19))*Dataset[2026/27 From - Spending review Topic 4])+SUMPRODUCT(((Dataset[DOR]=$B19))*Dataset[2026/27 To - Spending review Topic 4])","v":0},{"$f":"SUMPRODUCT(((Dataset[DOR]=$B19))*Dataset[2027/28 From - Spending review Topic 4])+SUMPRODUCT(((Dataset[DOR]=$B19))*Dataset[2027/28 To - Spending review Topic 4])","v":0},0]
["Spending review topic 4","IGP",null,null,null,null,"Provincial indirect grants",{"$f":"SUMPRODUCT(((Dataset[DOR]=$B20))*Dataset[2025/26 From - Spending review Topic 4])+SUMPRODUCT(((Dataset[DOR]=$B20))*Dataset[2025/26 To - Spending review Topic 4])","v":0},{"$f":"SUMPRODUCT(((Dataset[DOR]=$B20))*Dataset[2026/27 From - Spending review Topic 4])+SUMPRODUCT(((Dataset[DOR]=$B20))*Dataset[2026/27 To - Spending review Topic 4])","v":0},{"$f":"SUMPRODUCT(((Dataset[DOR]=$B20))*Dataset[2027/28 From - Spending review Topic 4])+SUMPRODUCT(((Dataset[DOR]=$B20))*Dataset[2027/28 To - Spending review Topic 4])","v":0},0]
["Spending review topic 4","IGM",null,null,null,null,"Local indirect grants",{"$f":"SUMPRODUCT(((Dataset[DOR]=$B21))*Dataset[2025/26 From - Spending review Topic 4])+SUMPRODUCT(((Dataset[DOR]=$B21))*Dataset[2025/26 To - Spending review Topic 4])","v":0},{"$f":"SUMPRODUCT(((Dataset[DOR]=$B21))*Dataset[2026/27 From - Spending review Topic 4])+SUMPRODUCT(((Dataset[DOR]=$B21))*Dataset[2026/27 To - Spending review Topic 4])","v":0},{"$f":"SUMPRODUCT(((Dataset[DOR]=$B21))*Dataset[2027/28 From - Spending review Topic 4])+SUMPRODUCT(((Dataset[DOR]=$B21))*Dataset[2027/28 To - Spending review Topic 4])","v":0},0]
["Spending review topic 4",null,null,null,null,null,"Provincial",{"$f":"SUMPRODUCT(((Dataset[DOR]=$B22))*Dataset[2025/26 From - Spending review Topic 4])+SUMPRODUCT(((Dataset[DOR]=$B22))*Dataset[2025/26 To - Spending review Topic 4])","v":0},{"$f":"SUMPRODUCT(((Dataset[DOR]=$B22))*Dataset[2026/27 From - Spending review Topic 4])+SUMPRODUCT(((Dataset[DOR]=$B22))*Dataset[2026/27 To - Spending review Topic 4])","v":0},{"$f":"SUMPRODUCT(((Dataset[DOR]=$B22))*Dataset[2027/28 From - Spending review Topic 4])+SUMPRODUCT(((Dataset[DOR]=$B22))*Dataset[2027/28 To - Spending review Topic 4])","v":0},0]
["Spending review topic 4","PES",null,null,null,null,"Provincial equitable share",{"$f":"SUMPRODUCT(((Dataset[DOR]=$B23))*Dataset[2025/26 From - Spending review Topic 4])+SUMPRODUCT(((Dataset[DOR]=$B23))*Dataset[2025/26 To - Spending review Topic 4])","v":0},{"$f":"SUMPRODUCT(((Dataset[DOR]=$B23))*Dataset[2026/27 From - Spending review Topic 4])+SUMPRODUCT(((Dataset[DOR]=$B23))*Dataset[2026/27 To - Spending review Topic 4])","v":0},{"$f":"SUMPRODUCT(((Dataset[DOR]=$B23))*Dataset[2027/28 From - Spending review Topic 4])+SUMPRODUCT(((Dataset[DOR]=$B23))*Dataset[2027/28 To - Spending review Topic 4])","v":0},0]
["Spending review topic 4","PCG",null,null,null,null,"Provincial conditional grants",{"$f":"SUMPRODUCT(((Dataset[DOR]=$B24))*Dataset[2025/26 From - Spending review Topic 4])+SUMPRODUCT(((Dataset[DOR]=$B24))*Dataset[2025/26 To - Spending review Topic 4])","v":0},{"$f":"SUMPRODUCT(((Dataset[DOR]=$B24))*Dataset[2026/27 From - Spending review Topic 4])+SUMPRODUCT(((Dataset[DOR]=$B24))*Dataset[2026/27 To - Spending review Topic 4])","v":0},{"$f":"SUMPRODUCT(((Dataset[DOR]=$B24))*Dataset[2027/28 From - Spending review Topic 4])+SUMPRODUCT(((Dataset[DOR]=$B24))*Dataset[2027/28 To - Spending review Topic 4])","v":0},0]
["Spending review topic 4",null,null,null,null,null,"Local government",{"$f":"SUMPRODUCT(((Dataset[DOR]=$B25))*Dataset[2025/26 From - Spending review Topic 4])+SUMPRODUCT(((Dataset[DOR]=$B25))*Dataset[2025/26 To - Spending review Topic 4])","v":0},{"$f":"SUMPRODUCT(((Dataset[DOR]=$B25))*Dataset[2026/27 From - Spending review Topic 4])+SUMPRODUCT(((Dataset[DOR]=$B25))*Dataset[2026/27 To - Spending review Topic 4])","v":0},{"$f":"SUMPRODUCT(((Dataset[DOR]=$B25))*Dataset[2027/28 From - Spending review Topic 4])+SUMPRODUCT(((Dataset[DOR]=$B25))*Dataset[2027/28 To - Spending review Topic 4])","v":0},0]
["Spending review topic 4","LES",null,null,null,null,"Local equitable share",{"$f":"SUMPRODUCT(((Dataset[DOR]=$B26))*Dataset[2025/26 From - Spending review Topic 4])+SUMPRODUCT(((Dataset[DOR]=$B26))*Dataset[2025/26 To - Spending review Topic 4])","v":0},{"$f":"SUMPRODUCT(((Dataset[DOR]=$B26))*Dataset[2026/27 From - Spending review Topic 4])+SUMPRODUCT(((Dataset[DOR]=$B26))*Dataset[2026/27 To - Spending review Topic 4])","v":0},{"$f":"SUMPRODUCT(((Dataset[DOR]=$B26))*Dataset[2027/28 From - Spending review Topic 4])+SUMPRODUCT(((Dataset[DOR]=$B26))*Dataset[2027/28 To - Spending review Topic 4])","v":0},0]
["Spending review topic 4","LCG",null,null,null,null,"Local conditional grants",{"$f":"SUMPRODUCT(((Dataset[DOR]=$B27))*Dataset[2025/26 From - Spending review Topic 4])+SUMPRODUCT(((Dataset[DOR]=$B27))*Dataset[2025/26 To - Spending review Topic 4])","v":0},{"$f":"SUMPRODUCT(((Dataset[DOR]=$B27))*Dataset[2026/27 From - Spending review Topic 4])+SUMPRODUCT(((Dataset[DOR]=$B27))*Dataset[2026/27 To - Spending review Topic 4])","v":0},{"$f":"SUMPRODUCT(((Dataset[DOR]=$B27))*Dataset[2027/28 From - Spending review Topic 4])+SUMPRODUCT(((Dataset[DOR]=$B27))*Dataset[2027/28 To - Spending review Topic 4])","v":0},0]
["Spending review topic 4","GFL",null,null,null,null,"General fuel levy ",{"$f":"SUMPRODUCT(((Dataset[DOR]=$B28))*Dataset[2025/26 From - Spending review Topic 4])+SUMPRODUCT(((Dataset[DOR]=$B28))*Dataset[2025/26 To - Spending review Topic 4])","v":0},{"$f":"SUMPRODUCT(((Dataset[DOR]=$B28))*Dataset[2026/27 From - Spending review Topic 4])+SUMPRODUCT(((Dataset[DOR]=$B28))*Dataset[2026/27 To - Spending review Topic 4])","v":0},{"$f":"SUMPRODUCT(((Dataset[DOR]=$B28))*Dataset[2027/28 From - Spending review Topic 4])+SUMPRODUCT(((Dataset[DOR]=$B28))*Dataset[2027/28 To - Spending review Topic 4])","v":0},0]
[]
[]
[null,null,null,null,null,null,{"$f":"G3","v":"Spending review topic 4"}]
[{"$f":"$G$3","v":"Spending review topic 4"},0,null,null,null,null,null,{"$f":"MyYear5","v":"2025/26"},null,null,{"$f":"MyYear6","v":"2026/27"},null,null,{"$f":"MyYear7","v":"2027/28"},null,null,"Total over MTEF"]
[{"$f":"$G$3","v":"Spending review topic 4"},0,null,null,null,null,"Rand thousand","From","To","Total change","From","To","Total change","From","To","Total change","From","To","Total change"]
["Spending review topic 4",0,null,null,null,null,"Economic classification"]
["Spending review topic 4",0,null,null,null,null,"Current payments",{"$f":"SUM(H36:H38)","v":0},0,0,0,0,0,0,0,0,0,0,0]
["Spending review topic 4",0,null,null,null,null,"Compensation of employees",{"$f":"SUMPRODUCT(((Dataset[Econ3]=$G36))*Dataset[2025/26 From - Spending review Topic 4]*$B$3)","v":0},{"$f":"SUMPRODUCT(((Dataset[Econ3]=$G36))*Dataset[2025/26 To - Spending review Topic 4]*$B$3)","v":0},{"$f":"H36+I36","v":0},{"$f":"SUMPRODUCT(((Dataset[Econ3]=$G36))*Dataset[2026/27 From - Spending review Topic 4]*$B$3)","v":0},{"$f":"SUMPRODUCT(((Dataset[Econ3]=$G36))*Dataset[2026/27 To - Spending review Topic 4]*$B$3)","v":0},{"$f":"K36+L36","v":0},{"$f":"SUMPRODUCT(((Dataset[Econ3]=$G36))*Dataset[2027/28 From - Spending review Topic 4]*$B$3)","v":0},{"$f":"SUMPRODUCT(((Dataset[Econ3]=$G36))*Dataset[2027/28 To - Spending review Topic 4]*$B$3)","v":0},{"$f":"N36+O36","v":0},{"$f":"SUM(H36,K36,N36)","v":0},0,0]
["Spending review topic 4",0,null,null,null,null,"Goods and services",{"$f":"SUMPRODUCT(((Dataset[Econ3]=$G37))*Dataset[2025/26 From - Spending review Topic 4]*$B$3)","v":0},{"$f":"SUMPRODUCT(((Dataset[Econ3]=$G37))*Dataset[2025/26 To - Spending review Topic 4]*$B$3)","v":0},0,{"$f":"SUMPRODUCT(((Dataset[Econ3]=$G37))*Dataset[2026/27 From - Spending review Topic 4]*$B$3)","v":0},{"$f":"SUMPRODUCT(((Dataset[Econ3]=$G37))*Dataset[2026/27 To - Spending review Topic 4]*$B$3)","v":0},0,{"$f":"SUMPRODUCT(((Dataset[Econ3]=$G37))*Dataset[2027/28 From - Spending review Topic 4]*$B$3)","v":0},{"$f":"SUMPRODUCT(((Dataset[Econ3]=$G37))*Dataset[2027/28 To - Spending review Topic 4]*$B$3)","v":0},0,0,0,0]
["Spending review topic 4",0,null,null,null,null,"Interest and rent on land",{"$f":"SUMPRODUCT(((Dataset[Econ3]=$G38))*Dataset[2025/26 From - Spending review Topic 4]*$B$3)","v":0},{"$f":"SUMPRODUCT(((Dataset[Econ3]=$G38))*Dataset[2025/26 To - Spending review Topic 4]*$B$3)","v":0},0,{"$f":"SUMPRODUCT(((Dataset[Econ3]=$G38))*Dataset[2026/27 From - Spending review Topic 4]*$B$3)","v":0},{"$f":"SUMPRODUCT(((Dataset[Econ3]=$G38))*Dataset[2026/27 To - Spending review Topic 4]*$B$3)","v":0},0,{"$f":"SUMPRODUCT(((Dataset[Econ3]=$G38))*Dataset[2027/28 From - Spending review Topic 4]*$B$3)","v":0},{"$f":"SUMPRODUCT(((Dataset[Econ3]=$G38))*Dataset[2027/28 To - Spending review Topic 4]*$B$3)","v":0},0,0,0,0]
["Spending review topic 4",0,null,null,null,null,"Transfers and subsidies",{"$f":"SUM(H40,H43,H46:H48,H51:H52)","v":0},0,0,0,0,0,0,0,0,0,0,0]
["Spending review topic 4",0,null,null,null,null,"Provinces and municipalities",{"$f":"SUM(H41:H42)","v":0},0,0,0,0,0,0,0,0,0,0,0]
["Spending review topic 4",0,null,null,null,null,"Provinces",{"$f":"SUMPRODUCT(((Dataset[Econ4]=$G41))*Dataset[2025/26 From - Spending review Topic 4]*$B$3)","v":0},{"$f":"SUMPRODUCT(((Dataset[Econ4]=$G41))*Dataset[2025/26 To - Spending review Topic 4]*$B$3)","v":0},{"$f":"H41+I41","v":0},{"$f":"SUMPRODUCT(((Dataset[Econ4]=$G41))*Dataset[2026/27 From - Spending review Topic 4]*$B$3)","v":0},{"$f":"SUMPRODUCT(((Dataset[Econ4]=$G41))*Dataset[2026/27 To - Spending review Topic 4]*$B$3)","v":0},{"$f":"K41+L41","v":0},{"$f":"SUMPRODUCT(((Dataset[Econ4]=$G41))*Dataset[2027/28 From - Spending review Topic 4]*$B$3)","v":0},{"$f":"SUMPRODUCT(((Dataset[Econ4]=$G41))*Dataset[2027/28 To - Spending review Topic 4]*$B$3)","v":0},{"$f":"N41+O41","v":0},{"$f":"SUM(H41,K41,N41)","v":0},0,0]
["Spending review topic 4",0,null,null,null,null,"Municipalities",{"$f":"SUMPRODUCT(((Dataset[Econ4]=$G42))*Dataset[2025/26 From - Spending review Topic 4]*$B$3)","v":0},{"$f":"SUMPRODUCT(((Dataset[Econ4]=$G42))*Dataset[2025/26 To - Spending review Topic 4]*$B$3)","v":0},0,{"$f":"SUMPRODUCT(((Dataset[Econ4]=$G42))*Dataset[2026/27 From - Spending review Topic 4]*$B$3)","v":0},{"$f":"SUMPRODUCT(((Dataset[Econ4]=$G42))*Dataset[2026/27 To - Spending review Topic 4]*$B$3)","v":0},0,{"$f":"SUMPRODUCT(((Dataset[Econ4]=$G42))*Dataset[2027/28 From - Spending review Topic 4]*$B$3)","v":0},{"$f":"SUMPRODUCT(((Dataset[Econ4]=$G42))*Dataset[2027/28 To - Spending review Topic 4]*$B$3)","v":0},0,0,0,0]
["Spending review topic 4",0,null,null,null,null,"Departmental agencies and accounts",{"$f":"SUM(H44:H45)","v":0},0,0,0,0,0,0,0,0,0,0,0]
["Spending review topic 4",0,null,null,null,null,"Social security funds",{"$f":"SUMPRODUCT(((Dataset[Econ4]=$G44))*Dataset[2025/26 From - Spending review Topic 4]*$B$3)","v":0},{"$f":"SUMPRODUCT(((Dataset[Econ4]=$G44))*Dataset[2025/26 To - Spending review Topic 4]*$B$3)","v":0},{"$f":"H44+I44","v":0},{"$f":"SUMPRODUCT(((Dataset[Econ4]=$G44))*Dataset[2026/27 From - Spending review Topic 4]*$B$3)","v":0},{"$f":"SUMPRODUCT(((Dataset[Econ4]=$G44))*Dataset[2026/27 To - Spending review Topic 4]*$B$3)","v":0},{"$f":"K44+L44","v":0},{"$f":"SUMPRODUCT(((Dataset[Econ4]=$G44))*Dataset[2027/28 From - Spending review Topic 4]*$B$3)","v":0},{"$f":"SUMPRODUCT(((Dataset[Econ4]=$G44))*Dataset[2027/28 To - Spending review Topic 4]*$B$3)","v":0},{"$f":"N44+O44","v":0},{"$f":"SUM(H44,K44,N44)","v":0},0,0]
["Spending review topic 4",0,null,null,null,null,"Departmental agencies (non-business entities)",{"$f":"SUMPRODUCT(((Dataset[Econ4]=$G45))*Dataset[2025/26 From - Spending review Topic 4]*$B$3)","v":0},{"$f":"SUMPRODUCT(((Dataset[Econ4]=$G45))*Dataset[2025/26 To - Spending review Topic 4]*$B$3)","v":0},0,{"$f":"SUMPRODUCT(((Dataset[Econ4]=$G45))*Dataset[2026/27 From - Spending review Topic 4]*$B$3)","v":0},{"$f":"SUMPRODUCT(((Dataset[Econ4]=$G45))*Dataset[2026/27 To - Spending review Topic 4]*$B$3)","v":0},0,{"$f":"SUMPRODUCT(((Dataset[Econ4]=$G45))*Dataset[2027/28 From - Spending review Topic 4]*$B$3)","v":0},{"$f":"SUMPRODUCT(((Dataset[Econ4]=$G45))*Dataset[2027/28 To - Spending review Topic 4]*$B$3)","v":0},0,0,0,0]
["Spending review topic 4",0,null,null,null,null,"Higher education institutions",{"$f":"SUMPRODUCT(((Dataset[Econ3]=$G46))*Dataset[2025/26 From - Spending review Topic 4]*$B$3)","v":0},{"$f":"SUMPRODUCT(((Dataset[Econ3]=$G46))*Dataset[2025/26 To - Spending review Topic 4]*$B$3)","v":0},0,{"$f":"SUMPRODUCT(((Dataset[Econ3]=$G46))*Dataset[2026/27 From - Spending review Topic 4]*$B$3)","v":0},{"$f":"SUMPRODUCT(((Dataset[Econ3]=$G46))*Dataset[2026/27 To - Spending review Topic 4]*$B$3)","v":0},0,{"$f":"SUMPRODUCT(((Dataset[Econ3]=$G46))*Dataset[2027/28 From - Spending review Topic 4]*$B$3)","v":0},{"$f":"SUMPRODUCT(((Dataset[Econ3]=$G46))*Dataset[2027/28 To - Spending review Topic 4]*$B$3)","v":0},0,0,0,0]
["Spending review topic 4",0,null,null,null,null,"Foreign governments and international organisations",{"$f":"SUMPRODUCT(((Dataset[Econ3]=$G47))*Dataset[2025/26 From - Spending review Topic 4]*$B$3)","v":0},{"$f":"SUMPRODUCT(((Dataset[Econ3]=$G47))*Dataset[2025/26 To - Spending review Topic 4]*$B$3)","v":0},0,{"$f":"SUMPRODUCT(((Dataset[Econ3]=$G47))*Dataset[2026/27 From - Spending review Topic 4]*$B$3)","v":0},{"$f":"SUMPRODUCT(((Dataset[Econ3]=$G47))*Dataset[2026/27 To - Spending review Topic 4]*$B$3)","v":0},0,{"$f":"SUMPRODUCT(((Dataset[Econ3]=$G47))*Dataset[2027/28 From - Spending review Topic 4]*$B$3)","v":0},{"$f":"SUMPRODUCT(((Dataset[Econ3]=$G47))*Dataset[2027/28 To - Spending review Topic 4]*$B$3)","v":0},0,0,0,0]
["Spending review topic 4",0,null,null,null,null,"Public corporations and private enterprises",{"$f":"SUM(H49:H50)","v":0},0,0,0,0,0,0,0,0,0,0,0]
["Spending review topic 4",0,null,null,null,null,"Public corporations",{"$f":"SUMPRODUCT(((Dataset[Econ4]=$G49))*Dataset[2025/26 From - Spending review Topic 4]*$B$3)","v":0},{"$f":"SUMPRODUCT(((Dataset[Econ4]=$G49))*Dataset[2025/26 To - Spending review Topic 4]*$B$3)","v":0},{"$f":"H49+I49","v":0},{"$f":"SUMPRODUCT(((Dataset[Econ4]=$G49))*Dataset[2026/27 From - Spending review Topic 4]*$B$3)","v":0},{"$f":"SUMPRODUCT(((Dataset[Econ4]=$G49))*Dataset[2026/27 To - Spending review Topic 4]*$B$3)","v":0},{"$f":"K49+L49","v":0},{"$f":"SUMPRODUCT(((Dataset[Econ4]=$G49))*Dataset[2027/28 From - Spending review Topic 4]*$B$3)","v":0},{"$f":"SUMPRODUCT(((Dataset[Econ4]=$G49))*Dataset[2027/28 To - Spending review Topic 4]*$B$3)","v":0},{"$f":"N49+O49","v":0},{"$f":"SUM(H49,K49,N49)","v":0},0,0]
["Spending review topic 4",0,null,null,null,null,"Private enterprises",{"$f":"SUMPRODUCT(((Dataset[Econ4]=$G50))*Dataset[2025/26 From - Spending review Topic 4]*$B$3)","v":0},{"$f":"SUMPRODUCT(((Dataset[Econ4]=$G50))*Dataset[2025/26 To - Spending review Topic 4]*$B$3)","v":0},0,{"$f":"SUMPRODUCT(((Dataset[Econ4]=$G50))*Dataset[2026/27 From - Spending review Topic 4]*$B$3)","v":0},{"$f":"SUMPRODUCT(((Dataset[Econ4]=$G50))*Dataset[2026/27 To - Spending review Topic 4]*$B$3)","v":0},0,{"$f":"SUMPRODUCT(((Dataset[Econ4]=$G50))*Dataset[2027/28 From - Spending review Topic 4]*$B$3)","v":0},{"$f":"SUMPRODUCT(((Dataset[Econ4]=$G50))*Dataset[2027/28 To - Spending review Topic 4]*$B$3)","v":0},0,0,0,0]
["Spending review topic 4",0,null,null,null,null,"Non-profit institutions",{"$f":"SUMPRODUCT(((Dataset[Econ3]=$G51))*Dataset[2025/26 From - Spending review Topic 4]*$B$3)","v":0},{"$f":"SUMPRODUCT(((Dataset[Econ3]=$G51))*Dataset[2025/26 To - Spending review Topic 4]*$B$3)","v":0},0,{"$f":"SUMPRODUCT(((Dataset[Econ3]=$G51))*Dataset[2026/27 From - Spending review Topic 4]*$B$3)","v":0},{"$f":"SUMPRODUCT(((Dataset[Econ3]=$G51))*Dataset[2026/27 To - Spending review Topic 4]*$B$3)","v":0},0,{"$f":"SUMPRODUCT(((Dataset[Econ3]=$G51))*Dataset[2027/28 From - Spending review Topic 4]*$B$3)","v":0},{"$f":"SUMPRODUCT(((Dataset[Econ3]=$G51))*Dataset[2027/28 To - Spending review Topic 4]*$B$3)","v":0},0,0,0,0]
["Spending review topic 4",0,null,null,null,null,"Households",{"$f":"SUM(H53:H54)","v":0},0,0,0,0,0,0,0,0,0,0,0]
["Spending review topic 4",0,null,null,null,null,"Social benefits",{"$f":"SUMPRODUCT(((Dataset[Econ4]=$G53))*Dataset[2025/26 From - Spending review Topic 4]*$B$3)","v":0},{"$f":"SUMPRODUCT(((Dataset[Econ4]=$G53))*Dataset[2025/26 To - Spending review Topic 4]*$B$3)","v":0},{"$f":"H53+I53","v":0},{"$f":"SUMPRODUCT(((Dataset[Econ4]=$G53))*Dataset[2026/27 From - Spending review Topic 4]*$B$3)","v":0},{"$f":"SUMPRODUCT(((Dataset[Econ4]=$G53))*Dataset[2026/27 To - Spending review Topic 4]*$B$3)","v":0},{"$f":"K53+L53","v":0},{"$f":"SUMPRODUCT(((Dataset[Econ4]=$G53))*Dataset[2027/28 From - Spending review Topic 4]*$B$3)","v":0},{"$f":"SUMPRODUCT(((Dataset[Econ4]=$G53))*Dataset[2027/28 To - Spending review Topic 4]*$B$3)","v":0},{"$f":"N53+O53","v":0},{"$f":"SUM(H53,K53,N53)","v":0},0,0]
["Spending review topic 4",0,null,null,null,null,"Other transfers to households",{"$f":"SUMPRODUCT(((Dataset[Econ4]=$G54))*Dataset[2025/26 From - Spending review Topic 4]*$B$3)","v":0},{"$f":"SUMPRODUCT(((Dataset[Econ4]=$G54))*Dataset[2025/26 To - Spending review Topic 4]*$B$3)","v":0},0,{"$f":"SUMPRODUCT(((Dataset[Econ4]=$G54))*Dataset[2026/27 From - Spending review Topic 4]*$B$3)","v":0},{"$f":"SUMPRODUCT(((Dataset[Econ4]=$G54))*Dataset[2026/27 To - Spending review Topic 4]*$B$3)","v":0},0,{"$f":"SUMPRODUCT(((Dataset[Econ4]=$G54))*Dataset[2027/28 From - Spending review Topic 4]*$B$3)","v":0},{"$f":"SUMPRODUCT(((Dataset[Econ4]=$G54))*Dataset[2027/28 To - Spending review Topic 4]*$B$3)","v":0},0,0,0,0]
["Spending review topic 4",0,null,null,null,null,"Payments for capital assets",{"$f":"SUM(H56,H59,H62:H66)","v":0},0,0,0,0,0,0,0,0,0,0,0]
["Spending review topic 4",0,null,null,null,null,"Buildings and other fixed structures",{"$f":"SUM(H57:H58)","v":0},0,0,0,0,0,0,0,0,0,0,0]
["Spending review topic 4",0,null,null,null,null,"Buildings",{"$f":"SUMPRODUCT(((Dataset[Econ4]=$G57))*Dataset[2025/26 From - Spending review Topic 4]*$B$3)","v":0},{"$f":"SUMPRODUCT(((Dataset[Econ4]=$G57))*Dataset[2025/26 To - Spending review Topic 4]*$B$3)","v":0},{"$f":"H57+I57","v":0},{"$f":"SUMPRODUCT(((Dataset[Econ4]=$G57))*Dataset[2026/27 From - Spending review Topic 4]*$B$3)","v":0},{"$f":"SUMPRODUCT(((Dataset[Econ4]=$G57))*Dataset[2026/27 To - Spending review Topic 4]*$B$3)","v":0},{"$f":"K57+L57","v":0},{"$f":"SUMPRODUCT(((Dataset[Econ4]=$G57))*Dataset[2027/28 From - Spending review Topic 4]*$B$3)","v":0},{"$f":"SUMPRODUCT(((Dataset[Econ4]=$G57))*Dataset[2027/28 To - Spending review Topic 4]*$B$3)","v":0},{"$f":"N57+O57","v":0},{"$f":"SUM(H57,K57,N57)","v":0},0,0]
["Spending review topic 4",0,null,null,null,null,"Other fixed structures",{"$f":"SUMPRODUCT(((Dataset[Econ4]=$G58))*Dataset[2025/26 From - Spending review Topic 4]*$B$3)","v":0},{"$f":"SUMPRODUCT(((Dataset[Econ4]=$G58))*Dataset[2025/26 To - Spending review Topic 4]*$B$3)","v":0},0,{"$f":"SUMPRODUCT(((Dataset[Econ4]=$G58))*Dataset[2026/27 From - Spending review Topic 4]*$B$3)","v":0},{"$f":"SUMPRODUCT(((Dataset[Econ4]=$G58))*Dataset[2026/27 To - Spending review Topic 4]*$B$3)","v":0},0,{"$f":"SUMPRODUCT(((Dataset[Econ4]=$G58))*Dataset[2027/28 From - Spending review Topic 4]*$B$3)","v":0},{"$f":"SUMPRODUCT(((Dataset[Econ4]=$G58))*Dataset[2027/28 To - Spending review Topic 4]*$B$3)","v":0},0,0,0,0]
["Spending review topic 4",0,null,null,null,null,"Machinery and equipment",{"$f":"SUM(H60:H61)","v":0},0,0,0,0,0,0,0,0,0,0,0]
["Spending review topic 4",0,null,null,null,null,"Transport equipment",{"$f":"SUMPRODUCT(((Dataset[Econ4]=$G60))*Dataset[2025/26 From - Spending review Topic 4]*$B$3)","v":0},{"$f":"SUMPRODUCT(((Dataset[Econ4]=$G60))*Dataset[2025/26 To - Spending review Topic 4]*$B$3)","v":0},{"$f":"H60+I60","v":0},{"$f":"SUMPRODUCT(((Dataset[Econ4]=$G60))*Dataset[2026/27 From - Spending review Topic 4]*$B$3)","v":0},{"$f":"SUMPRODUCT(((Dataset[Econ4]=$G60))*Dataset[2026/27 To - Spending review Topic 4]*$B$3)","v":0},{"$f":"K60+L60","v":0},{"$f":"SUMPRODUCT(((Dataset[Econ4]=$G60))*Dataset[2027/28 From - Spending review Topic 4]*$B$3)","v":0},{"$f":"SUMPRODUCT(((Dataset[Econ4]=$G60))*Dataset[2027/28 To - Spending review Topic 4]*$B$3)","v":0},{"$f":"N60+O60","v":0},{"$f":"SUM(H60,K60,N60)","v":0},0,0]
["Spending review topic 4",0,null,null,null,null,"Other machinery and equipment",{"$f":"SUMPRODUCT(((Dataset[Econ4]=$G61))*Dataset[2025/26 From - Spending review Topic 4]*$B$3)","v":0},{"$f":"SUMPRODUCT(((Dataset[Econ4]=$G61))*Dataset[2025/26 To - Spending review Topic 4]*$B$3)","v":0},0,{"$f":"SUMPRODUCT(((Dataset[Econ4]=$G61))*Dataset[2026/27 From - Spending review Topic 4]*$B$3)","v":0},{"$f":"SUMPRODUCT(((Dataset[Econ4]=$G61))*Dataset[2026/27 To - Spending review Topic 4]*$B$3)","v":0},0,{"$f":"SUMPRODUCT(((Dataset[Econ4]=$G61))*Dataset[2027/28 From - Spending review Topic 4]*$B$3)","v":0},{"$f":"SUMPRODUCT(((Dataset[Econ4]=$G61))*Dataset[2027/28 To - Spending review Topic 4]*$B$3)","v":0},0,0,0,0]
["Spending review topic 4",0,null,null,null,null,"Heritage assets",{"$f":"SUMPRODUCT(((Dataset[Econ3]=$G62))*Dataset[2025/26 From - Spending review Topic 4]*$B$3)","v":0},{"$f":"SUMPRODUCT(((Dataset[Econ3]=$G62))*Dataset[2025/26 To - Spending review Topic 4]*$B$3)","v":0},0,{"$f":"SUMPRODUCT(((Dataset[Econ3]=$G62))*Dataset[2026/27 From - Spending review Topic 4]*$B$3)","v":0},{"$f":"SUMPRODUCT(((Dataset[Econ3]=$G62))*Dataset[2026/27 To - Spending review Topic 4]*$B$3)","v":0},0,{"$f":"SUMPRODUCT(((Dataset[Econ3]=$G62))*Dataset[2027/28 From - Spending review Topic 4]*$B$3)","v":0},{"$f":"SUMPRODUCT(((Dataset[Econ3]=$G62))*Dataset[2027/28 To - Spending review Topic 4]*$B$3)","v":0},0,0,0,0]
["Spending review topic 4",0,null,null,null,null,"Specialised military assets",{"$f":"SUMPRODUCT(((Dataset[Econ3]=$G63))*Dataset[2025/26 From - Spending review Topic 4]*$B$3)","v":0},{"$f":"SUMPRODUCT(((Dataset[Econ3]=$G63))*Dataset[2025/26 To - Spending review Topic 4]*$B$3)","v":0},0,{"$f":"SUMPRODUCT(((Dataset[Econ3]=$G63))*Dataset[2026/27 From - Spending review Topic 4]*$B$3)","v":0},{"$f":"SUMPRODUCT(((Dataset[Econ3]=$G63))*Dataset[2026/27 To - Spending review Topic 4]*$B$3)","v":0},0,{"$f":"SUMPRODUCT(((Dataset[Econ3]=$G63))*Dataset[2027/28 From - Spending review Topic 4]*$B$3)","v":0},{"$f":"SUMPRODUCT(((Dataset[Econ3]=$G63))*Dataset[2027/28 To - Spending review Topic 4]*$B$3)","v":0},0,0,0,0]
["Spending review topic 4",0,null,null,null,null,"Biological assets",{"$f":"SUMPRODUCT(((Dataset[Econ3]=$G64))*Dataset[2025/26 From - Spending review Topic 4]*$B$3)","v":0},{"$f":"SUMPRODUCT(((Dataset[Econ3]=$G64))*Dataset[2025/26 To - Spending review Topic 4]*$B$3)","v":0},0,{"$f":"SUMPRODUCT(((Dataset[Econ3]=$G64))*Dataset[2026/27 From - Spending review Topic 4]*$B$3)","v":0},{"$f":"SUMPRODUCT(((Dataset[Econ3]=$G64))*Dataset[2026/27 To - Spending review Topic 4]*$B$3)","v":0},0,{"$f":"SUMPRODUCT(((Dataset[Econ3]=$G64))*Dataset[2027/28 From - Spending review Topic 4]*$B$3)","v":0},{"$f":"SUMPRODUCT(((Dataset[Econ3]=$G64))*Dataset[2027/28 To - Spending review Topic 4]*$B$3)","v":0},0,0,0,0]
["Spending review topic 4",0,null,null,null,null,"Land and sub-soil assets",{"$f":"SUMPRODUCT(((Dataset[Econ3]=$G65))*Dataset[2025/26 From - Spending review Topic 4]*$B$3)","v":0},{"$f":"SUMPRODUCT(((Dataset[Econ3]=$G65))*Dataset[2025/26 To - Spending review Topic 4]*$B$3)","v":0},0,{"$f":"SUMPRODUCT(((Dataset[Econ3]=$G65))*Dataset[2026/27 From - Spending review Topic 4]*$B$3)","v":0},{"$f":"SUMPRODUCT(((Dataset[Econ3]=$G65))*Dataset[2026/27 To - Spending review Topic 4]*$B$3)","v":0},0,{"$f":"SUMPRODUCT(((Dataset[Econ3]=$G65))*Dataset[2027/28 From - Spending review Topic 4]*$B$3)","v":0},{"$f":"SUMPRODUCT(((Dataset[Econ3]=$G65))*Dataset[2027/28 To - Spending review Topic 4]*$B$3)","v":0},0,0,0,0]
["Spending review topic 4",0,null,null,null,null,"Software and other intangible assets",{"$f":"SUMPRODUCT(((Dataset[Econ3]=$G66))*Dataset[2025/26 From - Spending review Topic 4]*$B$3)","v":0},{"$f":"SUMPRODUCT(((Dataset[Econ3]=$G66))*Dataset[2025/26 To - Spending review Topic 4]*$B$3)","v":0},0,{"$f":"SUMPRODUCT(((Dataset[Econ3]=$G66))*Dataset[2026/27 From - Spending review Topic 4]*$B$3)","v":0},{"$f":"SUMPRODUCT(((Dataset[Econ3]=$G66))*Dataset[2026/27 To - Spending review Topic 4]*$B$3)","v":0},0,{"$f":"SUMPRODUCT(((Dataset[Econ3]=$G66))*Dataset[2027/28 From - Spending review Topic 4]*$B$3)","v":0},{"$f":"SUMPRODUCT(((Dataset[Econ3]=$G66))*Dataset[2027/28 To - Spending review Topic 4]*$B$3)","v":0},0,0,0,0]
["Spending review topic 4",0,null,null,null,null,"Payments for financial assets",{"$f":"SUMPRODUCT(((Dataset[Econ3]=$G67))*Dataset[2025/26 From - Spending review Topic 4]*$B$3)","v":0},{"$f":"SUMPRODUCT(((Dataset[Econ3]=$G67))*Dataset[2025/26 To - Spending review Topic 4]*$B$3)","v":0},0,{"$f":"SUMPRODUCT(((Dataset[Econ3]=$G67))*Dataset[2026/27 From - Spending review Topic 4]*$B$3)","v":0},{"$f":"SUMPRODUCT(((Dataset[Econ3]=$G67))*Dataset[2026/27 To - Spending review Topic 4]*$B$3)","v":0},0,{"$f":"SUMPRODUCT(((Dataset[Econ3]=$G67))*Dataset[2027/28 From - Spending review Topic 4]*$B$3)","v":0},{"$f":"SUMPRODUCT(((Dataset[Econ3]=$G67))*Dataset[2027/28 To - Spending review Topic 4]*$B$3)","v":0},0,0,0,0]
["Spending review topic 4",0,null,null,null,null,"Total",{"$f":"SUM(H35,H39,H55,H67)","v":0},0,0,0,0,0,0,0,0,0,0,0]
[]
[]
[]
[]
[null,null,null,null,null,null,{"$f":"\"IMPACT OF ADJUSTMENTS: \" &UPPER($G$3)","v":"IMPACT OF ADJUSTMENTS: SPENDING REVIEW TOPIC 4"}]
[]
[null,null,null,null,null,1,"Impact of adjustments on expenditure"]
[{"$f":"$G$3","v":"Spending review topic 4"},5,null,null,null,null,null,{"$f":"MyYear4","v":"2024/25"},null,null,{"$f":"MyYear5","v":"2025/26"},null,null,{"$f":"MyYear6","v":"2026/27"},null,null,{"$f":"MyYear7","v":"2027/28"}]
["Spending review topic 4",5,null,null,null,null,null,"Current expenditure","Potential expenditure @ benchmark level","% Savings if benchmark is achieved","Original number","Change in expenditure","Saving as % of original number","Original number","Change in expenditure","Saving as % of original number","Original number","Change in expenditure","Saving as % of original number"]
["Spending review topic 4",5,null,null,null,null,"Total",null,null,{"$f":"IFERROR((H78-I78)/-H78,\"\")","v":""},null,null,{"$f":"IFERROR((K78-L78)/-K78,\"\")","v":""},null,null,{"$f":"IFERROR((N78-O78)/-N78,\"\")","v":""},null,null,{"$f":"IFERROR((Q78-R78)/-Q78,\"\")","v":""}]
[]
[]
[]
[]
[]
[null,null,null,null,null,2,"Summary of impact on service delivery/policy area due to adjustments"]
[{"$f":"$G$3","v":"Spending review topic 4"},1]
["Spending review topic 4",1]
["Spending review topic 4",1]
["Spending review topic 4",1]
["Spending review topic 4",1]
["Spending review topic 4",1]
["Spending review topic 4",1]
["Spending review topic 4",1]
["Spending review topic 4",1]
["Spending review topic 4",1]
["Spending review topic 4",1]
["Spending review topic 4",1]
["Spending review topic 4",1]
["Spending review topic 4",1]
["Spending review topic 4",1]
[]
[]
[]
[]
[]
[null,null,null,null,null,3,"Impact of adjustments on performance indicators"]
[{"$f":"$G$3","v":"Spending review topic 4"},2,null,null,null,null,null,{"$f":"MyYear4","v":"2024/25"},null,null,{"$f":"MyYear5","v":"2025/26"},null,null,{"$f":"MyYear6","v":"2026/27"},null,null,{"$f":"MyYear7","v":"2027/28"},null,null," Comment",null,null,null,null,"Related MTSF Priority"]
["Spending review topic 4",2,null,null,null,null,"Performance indicator","Current performance","Performance @ benchmark level","Change","Original target","Revised target","Change","Original target","Revised target","Change","Original target","Revised target","Change"]
["Spending review topic 4",2]
["Spending review topic 4",2]
["Spending review topic 4",2]
["Spending review topic 4",2]
["Spending review topic 4",2]
["Spending review topic 4",2]
["Spending review topic 4",2]
["Spending review topic 4",2]
["Spending review topic 4",2]
["Spending review topic 4",2]
["Spending review topic 4",2]
["Spending review topic 4",2]
["Spending review topic 4",2]
["Spending review topic 4",2]
["Spending review topic 4",2]
[]
[]
[]
[]
[]
[null,null,null,null,null,4,"Impact of adjustments on personnel headcount numbers"]
[{"$f":"$G$3","v":"Spending review topic 4"},4,null,null,null,null,null,{"$f":"MyYear4","v":"2024/25"},null,null,{"$f":"MyYear5","v":"2025/26"},null,null,{"$f":"MyYear6","v":"2026/27"},null,null,{"$f":"MyYear7","v":"2027/28"},null,null," Comment"]
["Spending review topic 4",4,null,null,null,null,"Salary level","Current number","Potential number if benchmark is achieved","Change in number","Original number","Revised number","Change in number","Original number","Revised number","Change in number","Original number","Revised number","Change in number"]
["Spending review topic 4",4,null,null,null,null,1,null,null,{"$f":"I131-H131","v":0},null,null,{"$f":"L131-K131","v":0},null,null,{"$f":"O131-N131","v":0},null,null,{"$f":"R131-Q131","v":0}]
["Spending review topic 4",4,null,null,null,null,2,null,null,0,null,null,0,null,null,0,null,null,0]
["Spending review topic 4",4,null,null,null,null,3,null,null,0,null,null,0,null,null,0,null,null,0]
["Spending review topic 4",4,null,null,null,null,4,null,null,0,null,null,0,null,null,0,null,null,0]
["Spending review topic 4",4,null,null,null,null,5,null,null,0,null,null,0,null,null,0,null,null,0]
["Spending review topic 4",4,null,null,null,null,6,null,null,0,null,null,0,null,null,0,null,null,0]
["Spending review topic 4",4,null,null,null,null,7,null,null,0,null,null,0,null,null,0,null,null,0]
["Spending review topic 4",4,null,null,null,null,8,null,null,0,null,null,0,null,null,0,null,null,0]
["Spending review topic 4",4,null,null,null,null,9,null,null,0,null,null,0,null,null,0,null,null,0]
["Spending review topic 4",4,null,null,null,null,10,null,null,0,null,null,0,null,null,0,null,null,0]
["Spending review topic 4",4,null,null,null,null,11,null,null,0,null,null,0,null,null,0,null,null,0]
["Spending review topic 4",4,null,null,null,null,12,null,null,0,null,null,0,null,null,0,null,null,0]
["Spending review topic 4",4,null,null,null,null,13,null,null,0,null,null,0,null,null,0,null,null,0]
["Spending review topic 4",4,null,null,null,null,14,null,null,0,null,null,0,null,null,0,null,null,0]
["Spending review topic 4",4,null,null,null,null,15,null,null,0,null,null,0,null,null,0,null,null,0]
["Spending review topic 4",4,null,null,null,null,16,null,null,0,null,null,0,null,null,0,null,null,0]
["Spending review topic 4",4,null,null,null,null,"Other",null,null,0,null,null,0,null,null,0,null,null,0]
["Spending review topic 4",4,null,null,null,null,"Other",null,null,0,null,null,0,null,null,0,null,null,0]
["Spending review topic 4",4,null,null,null,null,"Other",null,null,0,null,null,0,null,null,0,null,null,0]
["Spending review topic 4",4,null,null,null,null,"Other",null,null,0,null,null,0,null,null,0,null,null,0]
["Spending review topic 4",4,null,null,null,null,"Total",{"$f":"SUM(H131:H150)","v":0},0,0,{"$f":"SUM(K131:K150)","v":0},0,0,0,0,0,0,0,0]
[]
[]
[]
[]
[]
[null,null,null,null,null,5,"Impact of adjustments on infrastructure projects"]
[{"$f":"$G$3","v":"Spending review topic 4"},3,null,null,null,null,null,{"$f":"MyYear4","v":"2024/25"},null,null,{"$f":"MyYear5","v":"2025/26"},null,null,{"$f":"MyYear6","v":"2026/27"},null,null,{"$f":"MyYear7","v":"2027/28"},null,null," Comment"]
["Spending review topic 4",3,null,null,null,null,"Project name","Current number","Market or best in class benchmark","Change","Original amount","Revised amount","Change","Original amount","Revised amount","Change","Original amount","Revised amount","Change"]
["Spending review topic 4",3,null,null,null,null,null,null,null,{"$f":"I160-H160","v":0},null,null,{"$f":"L160-K160","v":0},null,null,{"$f":"O160-N160","v":0},null,null,{"$f":"R160-Q160","v":0}]
["Spending review topic 4",3,null,null,null,null,null,null,null,0,null,null,0,null,null,0,null,null,0]
["Spending review topic 4",3,null,null,null,null,null,null,null,0,null,null,0,null,null,0,null,null,0]
["Spending review topic 4",3,null,null,null,null,null,null,null,0,null,null,0,null,null,0,null,null,0]
["Spending review topic 4",3,null,null,null,null,null,null,null,0,null,null,0,null,null,0,null,null,0]
["Spending review topic 4",3,null,null,null,null,null,null,null,0,null,null,0,null,null,0,null,null,0]
["Spending review topic 4",3,null,null,null,null,null,null,null,0,null,null,0,null,null,0,null,null,0]
["Spending review topic 4",3,null,null,null,null,null,null,null,0,null,null,0,null,null,0,null,null,0]
["Spending review topic 4",3,null,null,null,null,null,null,null,0,null,null,0,null,null,0,null,null,0]
["Spending review topic 4",3,null,null,null,null,null,null,null,0,null,null,0,null,null,0,null,null,0]
["Spending review topic 4",3,null,null,null,null,null,null,null,0,null,null,0,null,null,0,null,null,0]
["Spending review topic 4",3,null,null,null,null,null,null,null,0,null,null,0,null,null,0,null,null,0]
["Spending review topic 4",3,null,null,null,null,null,null,null,0,null,null,0,null,null,0,null,null,0]
["Spending review topic 4",3,null,null,null,null,null,null,null,0,null,null,0,null,null,0,null,null,0]
["Spending review topic 4",3,null,null,null,null,null,null,null,0,null,null,0,null,null,0,null,null,0]
["Spending review topic 4",3,null,null,null,null,null,null,null,0,null,null,0,null,null,0,null,null,0]
["Spending review topic 4",3,null,null,null,null,null,null,null,0,null,null,0,null,null,0,null,null,0]
["Spending review topic 4",3,null,null,null,null,null,null,null,0,null,null,0,null,null,0,null,null,0]
["Spending review topic 4",3,null,null,null,null,null,null,null,0,null,null,0,null,null,0,null,null,0]
["Spending review topic 4",3,null,null,null,null,null,null,null,0,null,null,0,null,null,0,null,null,0]
["Spending review topic 4",3,null,null,null,null,null,null,null,0,null,null,0,null,null,0,null,null,0]
["Spending review topic 4",3,null,null,null,null,null,null,null,0,null,null,0,null,null,0,null,null,0]
["Spending review topic 4",3,null,null,null,null,null,null,null,0,null,null,0,null,null,0,null,null,0]
["Spending review topic 4",3,null,null,null,null,null,null,null,0,null,null,0,null,null,0,null,null,0]
["Spending review topic 4",3,null,null,null,null,null,null,null,0,null,null,0,null,null,0,null,null,0]
["Spending review topic 4",3,null,null,null,null,null,null,null,0,null,null,0,null,null,0,null,null,0]
["Spending review topic 4",3,null,null,null,null,null,null,null,0,null,null,0,null,null,0,null,null,0]
["Spending review topic 4",3,null,null,null,null,null,null,null,0,null,null,0,null,null,0,null,null,0]
["Spending review topic 4",3,null,null,null,null,null,null,null,0,null,null,0,null,null,0,null,null,0]
["Spending review topic 4",3,null,null,null,null,null,null,null,0,null,null,0,null,null,0,null,null,0]
["Spending review topic 4",3,null,null,null,null,null,null,null,0,null,null,0,null,null,0,null,null,0]
["Spending review topic 4",3,null,null,null,null,null,null,null,0,null,null,0,null,null,0,null,null,0]
["Spending review topic 4",3,null,null,null,null,null,null,null,0,null,null,0,null,null,0,null,null,0]
["Spending review topic 4",3,null,null,null,null,null,null,null,0,null,null,0,null,null,0,null,null,0]
["Spending review topic 4",3,null,null,null,null,null,null,null,0,null,null,0,null,null,0,null,null,0]
["Spending review topic 4",3,null,null,null,null,null,null,null,0,null,null,0,null,null,0,null,null,0]
["Spending review topic 4",3,null,null,null,null,null,null,null,0,null,null,0,null,null,0,null,null,0]
["Spending review topic 4",3,null,null,null,null,null,null,null,0,null,null,0,null,null,0,null,null,0]
["Spending review topic 4",3,null,null,null,null,null,null,null,0,null,null,0,null,null,0,null,null,0]
["Spending review topic 4",3,null,null,null,null,null,null,null,0,null,null,0,null,null,0,null,null,0]
["Spending review topic 4",3,null,null,null,null,null,null,null,0,null,null,0,null,null,0,null,null,0]
["Spending review topic 4",3,null,null,null,null,null,null,null,0,null,null,0,null,null,0,null,null,0]
["Spending review topic 4",3,null,null,null,null,null,null,null,0,null,null,0,null,null,0,null,null,0]
["Spending review topic 4",3,null,null,null,null,null,null,null,0,null,null,0,null,null,0,null,null,0]
["Spending review topic 4",3,null,null,null,null,null,null,null,0,null,null,0,null,null,0,null,null,0]
["Spending review topic 4",3,null,null,null,null,null,null,null,0,null,null,0,null,null,0,null,null,0]
["Spending review topic 4",3,null,null,null,null,null,null,null,0,null,null,0,null,null,0,null,null,0]
["Spending review topic 4",3,null,null,null,null,null,null,null,0,null,null,0,null,null,0,null,null,0]
["Spending review topic 4",3,null,null,null,null,null,null,null,0,null,null,0,null,null,0,null,null,0]
["Spending review topic 4",3,null,null,null,null,null,null,null,0,null,null,0,null,null,0,null,null,0]
["Spending review topic 4",3,null,null,null,null,"Total",{"$f":"SUM(H160:H209)","v":0},0,0,0,0,0,0,0,0,0,0,0]

{"sheet":"Other reallocations","index":15,"n_rows":210,"n_cols":25,"rows_kept":210,"cut":false,"hidden":false,"merged":[[208,19,208,23],[202,19,202,23],[203,19,203,23],[204,19,204,23],[205,19,205,23],[206,19,206,23],[207,19,207,23],[201,19,201,23],[190,19,190,23],[191,19,191,23],[192,19,192,23],[193,19,193,23],[194,19,194,23],[195,19,195,23],[196,19,196,23],[197,19,197,23],[198,19,198,23],[199,19,199,23],[200,19,200,23],[189,19,189,23],[178,19,178,23],[179,19,179,23],[180,19,180,23],[181,19,181,23],[182,19,182,23],[183,19,183,23],[184,19,184,23],[185,19,185,23],[186,19,186,23],[187,19,187,23],[188,19,188,23],[177,19,177,23],[166,19,166,23],[167,19,167,23],[168,19,168,23],[169,19,169,23],[170,19,170,23],[171,19,171,23],[172,19,172,23],[173,19,173,23],[174,19,174,23],[175,19,175,23],[176,19,176,23],[165,19,165,23],[128,19,128,23],[129,19,129,23],[130,19,149,23],[157,19,157,23],[158,19,158,23],[159,19,159,23],[160,19,160,23],[161,19,161,23],[162,19,162,23],[163,19,163,23],[164,19,164,23],[119,19,119,23],[119,24,119,26],[120,19,120,23],[120,24,120,26],[121,19,121,23],[121,24,121,26],[116,19,116,23],[116,24,116,26],[117,19,117,23],[117,24,117,26],[118,19,118,23],[118,24,118,26],[113,19,113,23],[113,24,113,26],[114,19,114,23],[114,24,114,26],[115,19,115,23],[115,24,115,26],[110,19,110,23],[110,24,110,26],[111,19,111,23],[111,24,111,26],[112,19,112,23],[112,24,112,26],[107,19,107,23],[107,24,107,26],[108,19,108,23],[108,24,108,26],[109,19,109,23],[109,24,109,26],[72,6,72,18],[84,6,98,18],[105,19,105,23],[105,24,105,26],[106,19,106,23],[106,24,106,26]]}
[]
[]
[null,{"$f":"IF(G3=\"\",0,1)","v":1},null,null,null,5,{"$f":"\"Other reallocations\"","v":"Other reallocations"}]
[]
[null,null,null,null,null,null,"Quick view…(Total change)",{"$f":"MyYear5","v":"2025/26"},{"$f":"MyYear6","v":"2026/27"},{"$f":"MyYear7","v":"2027/28"},"MTEF total","Trend"]
[null,null,null,null,null,null,"Compensation of employees",{"$f":"SUMPRODUCT(($G$35:$G$68=$G6)*($J$35:$J$68))","v":0},{"$f":"SUMPRODUCT(($G$35:$G$68=$G6)*($M$35:$M$68))","v":0},{"$f":"SUMPRODUCT(($G$35:$G$68=$G6)*($P$35:$P$68))","v":0},{"$f":"SUM(H6:J6)","v":0},null,null,"CoE"]
[null,null,null,null,null,null,"Goods and services",{"$f":"SUMPRODUCT(($G$35:$G$68=$G7)*($J$35:$J$68))","v":0},{"$f":"SUMPRODUCT(($G$35:$G$68=$G7)*($M$35:$M$68))","v":0},{"$f":"SUMPRODUCT(($G$35:$G$68=$G7)*($P$35:$P$68))","v":0},0,null,null,"G&S"]
[null,null,null,null,null,null,"Transfers and subsidies",{"$f":"SUMPRODUCT(($G$35:$G$68=$G8)*($J$35:$J$68))","v":0},{"$f":"SUMPRODUCT(($G$35:$G$68=$G8)*($M$35:$M$68))","v":0},{"$f":"SUMPRODUCT(($G$35:$G$68=$G8)*($P$35:$P$68))","v":0},0,null,null,"T&S"]
[null,null,null,null,null,null,"Payments for capital assets",{"$f":"SUMPRODUCT(($G$35:$G$68=$G9)*($J$35:$J$68))","v":0},{"$f":"SUMPRODUCT(($G$35:$G$68=$G9)*($M$35:$M$68))","v":0},{"$f":"SUMPRODUCT(($G$35:$G$68=$G9)*($P$35:$P$68))","v":0},0,null,null,"Capital"]
[null,null,null,null,null,null,"Total",{"$f":"SUMPRODUCT(($G$35:$G$68=$G10)*($J$35:$J$68))","v":0},{"$f":"SUMPRODUCT(($G$35:$G$68=$G10)*($M$35:$M$68))","v":0},{"$f":"SUMPRODUCT(($G$35:$G$68=$G10)*($P$35:$P$68))","v":0},0,null,null,"Total"]
[null,null,null,null,null,null,"% of MTEF total",null,null,null,null,null,null,null,null,null,null,null,{"$f":"MyYear5","v":"2025/26"},{"$f":"MyYear6","v":"2026/27"},{"$f":"MyYear7","v":"2027/28"}]
[null,null,null,null,null,null,"Compensation of employees",{"$f":"IFERROR(H6/$K6,\"\")","v":""},"","",null,null,null,null,null,null,null,{"$f":"G12","v":"Compensation of employees"},{"$f":"IF(H12>0.0595,H12,\"\")","v":""},"",""]
[null,null,null,null,null,null,"Goods and services","","","",null,null,null,null,null,null,null,{"$f":"G13","v":"Goods and services"},"","",""]
[null,null,null,null,null,null,"Transfers and subsidies","","","",null,null,null,null,null,null,null,{"$f":"G14","v":"Transfers and subsidies"},"","",""]
[null,null,null,null,null,null,"Payments for capital assets","","","",null,null,null,null,null,null,null,{"$f":"G15","v":"Payments for capital assets"},"","",""]
[]
[null,null,null,null,null,null,"Division of Revenue",{"$f":"MyYear5","v":"2025/26"},{"$f":"MyYear6","v":"2026/27"},{"$f":"MyYear7","v":"2027/28"},"MTEF total","Trend"]
[null,null,null,null,null,null,"National",{"$f":"SUM(H19:H21)","v":0},0,0,{"$f":"SUM(H18:J18)","v":0}]
[{"$f":"$G$3","v":"Other reallocations"},"NAT",null,null,null,null,"National (excl. indirect grants)",{"$f":"SUMPRODUCT(((Dataset[DOR]=$B19))*Dataset[2025/26 From - Other reallocations])+SUMPRODUCT(((Dataset[DOR]=$B19))*Dataset[2025/26 To - Other reallocations])","v":0},{"$f":"SUMPRODUCT(((Dataset[DOR]=$B19))*Dataset[2026/27 From - Other reallocations])+SUMPRODUCT(((Dataset[DOR]=$B19))*Dataset[2026/27 To - Other reallocations])","v":0},{"$f":"SUMPRODUCT(((Dataset[DOR]=$B19))*Dataset[2027/28 From - Other reallocations])+SUMPRODUCT(((Dataset[DOR]=$B19))*Dataset[2027/28 To - Other reallocations])","v":0},0]
["Other reallocations","IGP",null,null,null,null,"Provincial indirect grants",{"$f":"SUMPRODUCT(((Dataset[DOR]=$B20))*Dataset[2025/26 From - Other reallocations])+SUMPRODUCT(((Dataset[DOR]=$B20))*Dataset[2025/26 To - Other reallocations])","v":0},{"$f":"SUMPRODUCT(((Dataset[DOR]=$B20))*Dataset[2026/27 From - Other reallocations])+SUMPRODUCT(((Dataset[DOR]=$B20))*Dataset[2026/27 To - Other reallocations])","v":0},{"$f":"SUMPRODUCT(((Dataset[DOR]=$B20))*Dataset[2027/28 From - Other reallocations])+SUMPRODUCT(((Dataset[DOR]=$B20))*Dataset[2027/28 To - Other reallocations])","v":0},0]
["Other reallocations","IGM",null,null,null,null,"Local indirect grants",{"$f":"SUMPRODUCT(((Dataset[DOR]=$B21))*Dataset[2025/26 From - Other reallocations])+SUMPRODUCT(((Dataset[DOR]=$B21))*Dataset[2025/26 To - Other reallocations])","v":0},{"$f":"SUMPRODUCT(((Dataset[DOR]=$B21))*Dataset[2026/27 From - Other reallocations])+SUMPRODUCT(((Dataset[DOR]=$B21))*Dataset[2026/27 To - Other reallocations])","v":0},{"$f":"SUMPRODUCT(((Dataset[DOR]=$B21))*Dataset[2027/28 From - Other reallocations])+SUMPRODUCT(((Dataset[DOR]=$B21))*Dataset[2027/28 To - Other reallocations])","v":0},0]
["Other reallocations",null,null,null,null,null,"Provincial",{"$f":"SUMPRODUCT(((Dataset[DOR]=$B22))*Dataset[2025/26 From - Other reallocations])+SUMPRODUCT(((Dataset[DOR]=$B22))*Dataset[2025/26 To - Other reallocations])","v":0},{"$f":"SUMPRODUCT(((Dataset[DOR]=$B22))*Dataset[2026/27 From - Other reallocations])+SUMPRODUCT(((Dataset[DOR]=$B22))*Dataset[2026/27 To - Other reallocations])","v":0},{"$f":"SUMPRODUCT(((Dataset[DOR]=$B22))*Dataset[2027/28 From - Other reallocations])+SUMPRODUCT(((Dataset[DOR]=$B22))*Dataset[2027/28 To - Other reallocations])","v":0},0]
["Other reallocations","PES",null,null,null,null,"Provincial equitable share",{"$f":"SUMPRODUCT(((Dataset[DOR]=$B23))*Dataset[2025/26 From - Other reallocations])+SUMPRODUCT(((Dataset[DOR]=$B23))*Dataset[2025/26 To - Other reallocations])","v":0},{"$f":"SUMPRODUCT(((Dataset[DOR]=$B23))*Dataset[2026/27 From - Other reallocations])+SUMPRODUCT(((Dataset[DOR]=$B23))*Dataset[2026/27 To - Other reallocations])","v":0},{"$f":"SUMPRODUCT(((Dataset[DOR]=$B23))*Dataset[2027/28 From - Other reallocations])+SUMPRODUCT(((Dataset[DOR]=$B23))*Dataset[2027/28 To - Other reallocations])","v":0},0]
["Other reallocations","PCG",null,null,null,null,"Provincial conditional grants",{"$f":"SUMPRODUCT(((Dataset[DOR]=$B24))*Dataset[2025/26 From - Other reallocations])+SUMPRODUCT(((Dataset[DOR]=$B24))*Dataset[2025/26 To - Other reallocations])","v":0},{"$f":"SUMPRODUCT(((Dataset[DOR]=$B24))*Dataset[2026/27 From - Other reallocations])+SUMPRODUCT(((Dataset[DOR]=$B24))*Dataset[2026/27 To - Other reallocations])","v":0},{"$f":"SUMPRODUCT(((Dataset[DOR]=$B24))*Dataset[2027/28 From - Other reallocations])+SUMPRODUCT(((Dataset[DOR]=$B24))*Dataset[2027/28 To - Other reallocations])","v":0},0]
["Other reallocations",null,null,null,null,null,"Local government",{"$f":"SUMPRODUCT(((Dataset[DOR]=$B25))*Dataset[2025/26 From - Other reallocations])+SUMPRODUCT(((Dataset[DOR]=$B25))*Dataset[2025/26 To - Other reallocations])","v":0},{"$f":"SUMPRODUCT(((Dataset[DOR]=$B25))*Dataset[2026/27 From - Other reallocations])+SUMPRODUCT(((Dataset[DOR]=$B25))*Dataset[2026/27 To - Other reallocations])","v":0},{"$f":"SUMPRODUCT(((Dataset[DOR]=$B25))*Dataset[2027/28 From - Other reallocations])+SUMPRODUCT(((Dataset[DOR]=$B25))*Dataset[2027/28 To - Other reallocations])","v":0},0]
["Other reallocations","LES",null,null,null,null,"Local equitable share",{"$f":"SUMPRODUCT(((Dataset[DOR]=$B26))*Dataset[2025/26 From - Other reallocations])+SUMPRODUCT(((Dataset[DOR]=$B26))*Dataset[2025/26 To - Other reallocations])","v":0},{"$f":"SUMPRODUCT(((Dataset[DOR]=$B26))*Dataset[2026/27 From - Other reallocations])+SUMPRODUCT(((Dataset[DOR]=$B26))*Dataset[2026/27 To - Other reallocations])","v":0},{"$f":"SUMPRODUCT(((Dataset[DOR]=$B26))*Dataset[2027/28 From - Other reallocations])+SUMPRODUCT(((Dataset[DOR]=$B26))*Dataset[2027/28 To - Other reallocations])","v":0},0]
["Other reallocations","LCG",null,null,null,null,"Local conditional grants",{"$f":"SUMPRODUCT(((Dataset[DOR]=$B27))*Dataset[2025/26 From - Other reallocations])+SUMPRODUCT(((Dataset[DOR]=$B27))*Dataset[2025/26 To - Other reallocations])","v":0},{"$f":"SUMPRODUCT(((Dataset[DOR]=$B27))*Dataset[2026/27 From - Other reallocations])+SUMPRODUCT(((Dataset[DOR]=$B27))*Dataset[2026/27 To - Other reallocations])","v":0},{"$f":"SUMPRODUCT(((Dataset[DOR]=$B27))*Dataset[2027/28 From - Other reallocations])+SUMPRODUCT(((Dataset[DOR]=$B27))*Dataset[2027/28 To - Other reallocations])","v":0},0]
["Other reallocations","GFL",null,null,null,null,"General fuel levy ",{"$f":"SUMPRODUCT(((Dataset[DOR]=$B28))*Dataset[2025/26 From - Other reallocations])+SUMPRODUCT(((Dataset[DOR]=$B28))*Dataset[2025/26 To - Other reallocations])","v":0},{"$f":"SUMPRODUCT(((Dataset[DOR]=$B28))*Dataset[2026/27 From - Other reallocations])+SUMPRODUCT(((Dataset[DOR]=$B28))*Dataset[2026/27 To - Other reallocations])","v":0},{"$f":"SUMPRODUCT(((Dataset[DOR]=$B28))*Dataset[2027/28 From - Other reallocations])+SUMPRODUCT(((Dataset[DOR]=$B28))*Dataset[2027/28 To - Other reallocations])","v":0},0]
[]
[]
[null,null,null,null,null,null,{"$f":"G3","v":"Other reallocations"}]
[{"$f":"$G$3","v":"Other reallocations"},0,null,null,null,null,null,{"$f":"MyYear5","v":"2025/26"},null,null,{"$f":"MyYear6","v":"2026/27"},null,null,{"$f":"MyYear7","v":"2027/28"},null,null,"Total over MTEF"]
[{"$f":"$G$3","v":"Other reallocations"},0,null,null,null,null,"Rand thousand","From","To","Total change","From","To","Total change","From","To","Total change","From","To","Total change"]
["Other reallocations",0,null,null,null,null,"Economic classification"]
["Other reallocations",0,null,null,null,null,"Current payments",{"$f":"SUM(H36:H38)","v":0},0,0,0,0,0,0,0,0,0,0,0]
["Other reallocations",0,null,null,null,null,"Compensation of employees",{"$f":"SUMPRODUCT(((Dataset[Econ3]=$G36))*Dataset[2025/26 From - Other reallocations]*$B$3)","v":0},{"$f":"SUMPRODUCT(((Dataset[Econ3]=$G36))*Dataset[2025/26 To - Other reallocations]*$B$3)","v":0},{"$f":"H36+I36","v":0},{"$f":"SUMPRODUCT(((Dataset[Econ3]=$G36))*Dataset[2026/27 From - Other reallocations]*$B$3)","v":0},{"$f":"SUMPRODUCT(((Dataset[Econ3]=$G36))*Dataset[2026/27 To - Other reallocations]*$B$3)","v":0},{"$f":"K36+L36","v":0},{"$f":"SUMPRODUCT(((Dataset[Econ3]=$G36))*Dataset[2027/28 From - Other reallocations]*$B$3)","v":0},{"$f":"SUMPRODUCT(((Dataset[Econ3]=$G36))*Dataset[2027/28 To - Other reallocations]*$B$3)","v":0},{"$f":"N36+O36","v":0},{"$f":"SUM(H36,K36,N36)","v":0},0,0]
["Other reallocations",0,null,null,null,null,"Goods and services",{"$f":"SUMPRODUCT(((Dataset[Econ3]=$G37))*Dataset[2025/26 From - Other reallocations]*$B$3)","v":0},{"$f":"SUMPRODUCT(((Dataset[Econ3]=$G37))*Dataset[2025/26 To - Other reallocations]*$B$3)","v":0},0,{"$f":"SUMPRODUCT(((Dataset[Econ3]=$G37))*Dataset[2026/27 From - Other reallocations]*$B$3)","v":0},{"$f":"SUMPRODUCT(((Dataset[Econ3]=$G37))*Dataset[2026/27 To - Other reallocations]*$B$3)","v":0},0,{"$f":"SUMPRODUCT(((Dataset[Econ3]=$G37))*Dataset[2027/28 From - Other reallocations]*$B$3)","v":0},{"$f":"SUMPRODUCT(((Dataset[Econ3]=$G37))*Dataset[2027/28 To - Other reallocations]*$B$3)","v":0},0,0,0,0]
["Other reallocations",0,null,null,null,null,"Interest and rent on land",{"$f":"SUMPRODUCT(((Dataset[Econ3]=$G38))*Dataset[2025/26 From - Other reallocations]*$B$3)","v":0},{"$f":"SUMPRODUCT(((Dataset[Econ3]=$G38))*Dataset[2025/26 To - Other reallocations]*$B$3)","v":0},0,{"$f":"SUMPRODUCT(((Dataset[Econ3]=$G38))*Dataset[2026/27 From - Other reallocations]*$B$3)","v":0},{"$f":"SUMPRODUCT(((Dataset[Econ3]=$G38))*Dataset[2026/27 To - Other reallocations]*$B$3)","v":0},0,{"$f":"SUMPRODUCT(((Dataset[Econ3]=$G38))*Dataset[2027/28 From - Other reallocations]*$B$3)","v":0},{"$f":"SUMPRODUCT(((Dataset[Econ3]=$G38))*Dataset[2027/28 To - Other reallocations]*$B$3)","v":0},0,0,0,0]
["Other reallocations",0,null,null,null,null,"Transfers and subsidies",{"$f":"SUM(H40,H43,H46:H48,H51:H52)","v":0},0,0,0,0,0,0,0,0,0,0,0]
["Other reallocations",0,null,null,null,null,"Provinces and municipalities",{"$f":"SUM(H41:H42)","v":0},0,0,0,0,0,0,0,0,0,0,0]
["Other reallocations",0,null,null,null,null,"Provinces",{"$f":"SUMPRODUCT(((Dataset[Econ4]=$G41))*Dataset[2025/26 From - Other reallocations]*$B$3)","v":0},{"$f":"SUMPRODUCT(((Dataset[Econ4]=$G41))*Dataset[2025/26 To - Other reallocations]*$B$3)","v":0},{"$f":"H41+I41","v":0},{"$f":"SUMPRODUCT(((Dataset[Econ4]=$G41))*Dataset[2026/27 From - Other reallocations]*$B$3)","v":0},{"$f":"SUMPRODUCT(((Dataset[Econ4]=$G41))*Dataset[2026/27 To - Other reallocations]*$B$3)","v":0},{"$f":"K41+L41","v":0},{"$f":"SUMPRODUCT(((Dataset[Econ4]=$G41))*Dataset[2027/28 From - Other reallocations]*$B$3)","v":0},{"$f":"SUMPRODUCT(((Dataset[Econ4]=$G41))*Dataset[2027/28 To - Other reallocations]*$B$3)","v":0},{"$f":"N41+O41","v":0},{"$f":"SUM(H41,K41,N41)","v":0},0,0]
["Other reallocations",0,null,null,null,null,"Municipalities",{"$f":"SUMPRODUCT(((Dataset[Econ4]=$G42))*Dataset[2025/26 From - Other reallocations]*$B$3)","v":0},{"$f":"SUMPRODUCT(((Dataset[Econ4]=$G42))*Dataset[2025/26 To - Other reallocations]*$B$3)","v":0},0,{"$f":"SUMPRODUCT(((Dataset[Econ4]=$G42))*Dataset[2026/27 From - Other reallocations]*$B$3)","v":0},{"$f":"SUMPRODUCT(((Dataset[Econ4]=$G42))*Dataset[2026/27 To - Other reallocations]*$B$3)","v":0},0,{"$f":"SUMPRODUCT(((Dataset[Econ4]=$G42))*Dataset[2027/28 From - Other reallocations]*$B$3)","v":0},{"$f":"SUMPRODUCT(((Dataset[Econ4]=$G42))*Dataset[2027/28 To - Other reallocations]*$B$3)","v":0},0,0,0,0]
["Other reallocations",0,null,null,null,null,"Departmental agencies and accounts",{"$f":"SUM(H44:H45)","v":0},0,0,0,0,0,0,0,0,0,0,0]
["Other reallocations",0,null,null,null,null,"Social security funds",{"$f":"SUMPRODUCT(((Dataset[Econ4]=$G44))*Dataset[2025/26 From - Other reallocations]*$B$3)","v":0},{"$f":"SUMPRODUCT(((Dataset[Econ4]=$G44))*Dataset[2025/26 To - Other reallocations]*$B$3)","v":0},{"$f":"H44+I44","v":0},{"$f":"SUMPRODUCT(((Dataset[Econ4]=$G44))*Dataset[2026/27 From - Other reallocations]*$B$3)","v":0},{"$f":"SUMPRODUCT(((Dataset[Econ4]=$G44))*Dataset[2026/27 To - Other reallocations]*$B$3)","v":0},{"$f":"K44+L44","v":0},{"$f":"SUMPRODUCT(((Dataset[Econ4]=$G44))*Dataset[2027/28 From - Other reallocations]*$B$3)","v":0},{"$f":"SUMPRODUCT(((Dataset[Econ4]=$G44))*Dataset[2027/28 To - Other reallocations]*$B$3)","v":0},{"$f":"N44+O44","v":0},{"$f":"SUM(H44,K44,N44)","v":0},0,0]
["Other reallocations",0,null,null,null,null,"Departmental agencies (non-business entities)",{"$f":"SUMPRODUCT(((Dataset[Econ4]=$G45))*Dataset[2025/26 From - Other reallocations]*$B$3)","v":0},{"$f":"SUMPRODUCT(((Dataset[Econ4]=$G45))*Dataset[2025/26 To - Other reallocations]*$B$3)","v":0},0,{"$f":"SUMPRODUCT(((Dataset[Econ4]=$G45))*Dataset[2026/27 From - Other reallocations]*$B$3)","v":0},{"$f":"SUMPRODUCT(((Dataset[Econ4]=$G45))*Dataset[2026/27 To - Other reallocations]*$B$3)","v":0},0,{"$f":"SUMPRODUCT(((Dataset[Econ4]=$G45))*Dataset[2027/28 From - Other reallocations]*$B$3)","v":0},{"$f":"SUMPRODUCT(((Dataset[Econ4]=$G45))*Dataset[2027/28 To - Other reallocations]*$B$3)","v":0},0,0,0,0]
["Other reallocations",0,null,null,null,null,"Higher education institutions",{"$f":"SUMPRODUCT(((Dataset[Econ3]=$G46))*Dataset[2025/26 From - Other reallocations]*$B$3)","v":0},{"$f":"SUMPRODUCT(((Dataset[Econ3]=$G46))*Dataset[2025/26 To - Other reallocations]*$B$3)","v":0},0,{"$f":"SUMPRODUCT(((Dataset[Econ3]=$G46))*Dataset[2026/27 From - Other reallocations]*$B$3)","v":0},{"$f":"SUMPRODUCT(((Dataset[Econ3]=$G46))*Dataset[2026/27 To - Other reallocations]*$B$3)","v":0},0,{"$f":"SUMPRODUCT(((Dataset[Econ3]=$G46))*Dataset[2027/28 From - Other reallocations]*$B$3)","v":0},{"$f":"SUMPRODUCT(((Dataset[Econ3]=$G46))*Dataset[2027/28 To - Other reallocations]*$B$3)","v":0},0,0,0,0]
["Other reallocations",0,null,null,null,null,"Foreign governments and international organisations",{"$f":"SUMPRODUCT(((Dataset[Econ3]=$G47))*Dataset[2025/26 From - Other reallocations]*$B$3)","v":0},{"$f":"SUMPRODUCT(((Dataset[Econ3]=$G47))*Dataset[2025/26 To - Other reallocations]*$B$3)","v":0},0,{"$f":"SUMPRODUCT(((Dataset[Econ3]=$G47))*Dataset[2026/27 From - Other reallocations]*$B$3)","v":0},{"$f":"SUMPRODUCT(((Dataset[Econ3]=$G47))*Dataset[2026/27 To - Other reallocations]*$B$3)","v":0},0,{"$f":"SUMPRODUCT(((Dataset[Econ3]=$G47))*Dataset[2027/28 From - Other reallocations]*$B$3)","v":0},{"$f":"SUMPRODUCT(((Dataset[Econ3]=$G47))*Dataset[2027/28 To - Other reallocations]*$B$3)","v":0},0,0,0,0]
["Other reallocations",0,null,null,null,null,"Public corporations and private enterprises",{"$f":"SUM(H49:H50)","v":0},0,0,0,0,0,0,0,0,0,0,0]
["Other reallocations",0,null,null,null,null,"Public corporations",{"$f":"SUMPRODUCT(((Dataset[Econ4]=$G49))*Dataset[2025/26 From - Other reallocations]*$B$3)","v":0},{"$f":"SUMPRODUCT(((Dataset[Econ4]=$G49))*Dataset[2025/26 To - Other reallocations]*$B$3)","v":0},{"$f":"H49+I49","v":0},{"$f":"SUMPRODUCT(((Dataset[Econ4]=$G49))*Dataset[2026/27 From - Other reallocations]*$B$3)","v":0},{"$f":"SUMPRODUCT(((Dataset[Econ4]=$G49))*Dataset[2026/27 To - Other reallocations]*$B$3)","v":0},{"$f":"K49+L49","v":0},{"$f":"SUMPRODUCT(((Dataset[Econ4]=$G49))*Dataset[2027/28 From - Other reallocations]*$B$3)","v":0},{"$f":"SUMPRODUCT(((Dataset[Econ4]=$G49))*Dataset[2027/28 To - Other reallocations]*$B$3)","v":0},{"$f":"N49+O49","v":0},{"$f":"SUM(H49,K49,N49)","v":0},0,0]
["Other reallocations",0,null,null,null,null,"Private enterprises",{"$f":"SUMPRODUCT(((Dataset[Econ4]=$G50))*Dataset[2025/26 From - Other reallocations]*$B$3)","v":0},{"$f":"SUMPRODUCT(((Dataset[Econ4]=$G50))*Dataset[2025/26 To - Other reallocations]*$B$3)","v":0},0,{"$f":"SUMPRODUCT(((Dataset[Econ4]=$G50))*Dataset[2026/27 From - Other reallocations]*$B$3)","v":0},{"$f":"SUMPRODUCT(((Dataset[Econ4]=$G50))*Dataset[2026/27 To - Other reallocations]*$B$3)","v":0},0,{"$f":"SUMPRODUCT(((Dataset[Econ4]=$G50))*Dataset[2027/28 From - Other reallocations]*$B$3)","v":0},{"$f":"SUMPRODUCT(((Dataset[Econ4]=$G50))*Dataset[2027/28 To - Other reallocations]*$B$3)","v":0},0,0,0,0]
["Other reallocations",0,null,null,null,null,"Non-profit institutions",{"$f":"SUMPRODUCT(((Dataset[Econ3]=$G51))*Dataset[2025/26 From - Other reallocations]*$B$3)","v":0},{"$f":"SUMPRODUCT(((Dataset[Econ3]=$G51))*Dataset[2025/26 To - Other reallocations]*$B$3)","v":0},0,{"$f":"SUMPRODUCT(((Dataset[Econ3]=$G51))*Dataset[2026/27 From - Other reallocations]*$B$3)","v":0},{"$f":"SUMPRODUCT(((Dataset[Econ3]=$G51))*Dataset[2026/27 To - Other reallocations]*$B$3)","v":0},0,{"$f":"SUMPRODUCT(((Dataset[Econ3]=$G51))*Dataset[2027/28 From - Other reallocations]*$B$3)","v":0},{"$f":"SUMPRODUCT(((Dataset[Econ3]=$G51))*Dataset[2027/28 To - Other reallocations]*$B$3)","v":0},0,0,0,0]
["Other reallocations",0,null,null,null,null,"Households",{"$f":"SUM(H53:H54)","v":0},0,0,0,0,0,0,0,0,0,0,0]
["Other reallocations",0,null,null,null,null,"Social benefits",{"$f":"SUMPRODUCT(((Dataset[Econ4]=$G53))*Dataset[2025/26 From - Other reallocations]*$B$3)","v":0},{"$f":"SUMPRODUCT(((Dataset[Econ4]=$G53))*Dataset[2025/26 To - Other reallocations]*$B$3)","v":0},{"$f":"H53+I53","v":0},{"$f":"SUMPRODUCT(((Dataset[Econ4]=$G53))*Dataset[2026/27 From - Other reallocations]*$B$3)","v":0},{"$f":"SUMPRODUCT(((Dataset[Econ4]=$G53))*Dataset[2026/27 To - Other reallocations]*$B$3)","v":0},{"$f":"K53+L53","v":0},{"$f":"SUMPRODUCT(((Dataset[Econ4]=$G53))*Dataset[2027/28 From - Other reallocations]*$B$3)","v":0},{"$f":"SUMPRODUCT(((Dataset[Econ4]=$G53))*Dataset[2027/28 To - Other reallocations]*$B$3)","v":0},{"$f":"N53+O53","v":0},{"$f":"SUM(H53,K53,N53)","v":0},0,0]
["Other reallocations",0,null,null,null,null,"Other transfers to households",{"$f":"SUMPRODUCT(((Dataset[Econ4]=$G54))*Dataset[2025/26 From - Other reallocations]*$B$3)","v":0},{"$f":"SUMPRODUCT(((Dataset[Econ4]=$G54))*Dataset[2025/26 To - Other reallocations]*$B$3)","v":0},0,{"$f":"SUMPRODUCT(((Dataset[Econ4]=$G54))*Dataset[2026/27 From - Other reallocations]*$B$3)","v":0},{"$f":"SUMPRODUCT(((Dataset[Econ4]=$G54))*Dataset[2026/27 To - Other reallocations]*$B$3)","v":0},0,{"$f":"SUMPRODUCT(((Dataset[Econ4]=$G54))*Dataset[2027/28 From - Other reallocations]*$B$3)","v":0},{"$f":"SUMPRODUCT(((Dataset[Econ4]=$G54))*Dataset[2027/28 To - Other reallocations]*$B$3)","v":0},0,0,0,0]
["Other reallocations",0,null,null,null,null,"Payments for capital assets",{"$f":"SUM(H56,H59,H62:H66)","v":0},0,0,0,0,0,0,0,0,0,0,0]
["Other reallocations",0,null,null,null,null,"Buildings and other fixed structures",{"$f":"SUM(H57:H58)","v":0},0,0,0,0,0,0,0,0,0,0,0]
["Other reallocations",0,null,null,null,null,"Buildings",{"$f":"SUMPRODUCT(((Dataset[Econ4]=$G57))*Dataset[2025/26 From - Other reallocations]*$B$3)","v":0},{"$f":"SUMPRODUCT(((Dataset[Econ4]=$G57))*Dataset[2025/26 To - Other reallocations]*$B$3)","v":0},{"$f":"H57+I57","v":0},{"$f":"SUMPRODUCT(((Dataset[Econ4]=$G57))*Dataset[2026/27 From - Other reallocations]*$B$3)","v":0},{"$f":"SUMPRODUCT(((Dataset[Econ4]=$G57))*Dataset[2026/27 To - Other reallocations]*$B$3)","v":0},{"$f":"K57+L57","v":0},{"$f":"SUMPRODUCT(((Dataset[Econ4]=$G57))*Dataset[2027/28 From - Other reallocations]*$B$3)","v":0},{"$f":"SUMPRODUCT(((Dataset[Econ4]=$G57))*Dataset[2027/28 To - Other reallocations]*$B$3)","v":0},{"$f":"N57+O57","v":0},{"$f":"SUM(H57,K57,N57)","v":0},0,0]
["Other reallocations",0,null,null,null,null,"Other fixed structures",{"$f":"SUMPRODUCT(((Dataset[Econ4]=$G58))*Dataset[2025/26 From - Other reallocations]*$B$3)","v":0},{"$f":"SUMPRODUCT(((Dataset[Econ4]=$G58))*Dataset[2025/26 To - Other reallocations]*$B$3)","v":0},0,{"$f":"SUMPRODUCT(((Dataset[Econ4]=$G58))*Dataset[2026/27 From - Other reallocations]*$B$3)","v":0},{"$f":"SUMPRODUCT(((Dataset[Econ4]=$G58))*Dataset[2026/27 To - Other reallocations]*$B$3)","v":0},0,{"$f":"SUMPRODUCT(((Dataset[Econ4]=$G58))*Dataset[2027/28 From - Other reallocations]*$B$3)","v":0},{"$f":"SUMPRODUCT(((Dataset[Econ4]=$G58))*Dataset[2027/28 To - Other reallocations]*$B$3)","v":0},0,0,0,0]
["Other reallocations",0,null,null,null,null,"Machinery and equipment",{"$f":"SUM(H60:H61)","v":0},0,0,0,0,0,0,0,0,0,0,0]
["Other reallocations",0,null,null,null,null,"Transport equipment",{"$f":"SUMPRODUCT(((Dataset[Econ4]=$G60))*Dataset[2025/26 From - Other reallocations]*$B$3)","v":0},{"$f":"SUMPRODUCT(((Dataset[Econ4]=$G60))*Dataset[2025/26 To - Other reallocations]*$B$3)","v":0},{"$f":"H60+I60","v":0},{"$f":"SUMPRODUCT(((Dataset[Econ4]=$G60))*Dataset[2026/27 From - Other reallocations]*$B$3)","v":0},{"$f":"SUMPRODUCT(((Dataset[Econ4]=$G60))*Dataset[2026/27 To - Other reallocations]*$B$3)","v":0},{"$f":"K60+L60","v":0},{"$f":"SUMPRODUCT(((Dataset[Econ4]=$G60))*Dataset[2027/28 From - Other reallocations]*$B$3)","v":0},{"$f":"SUMPRODUCT(((Dataset[Econ4]=$G60))*Dataset[2027/28 To - Other reallocations]*$B$3)","v":0},{"$f":"N60+O60","v":0},{"$f":"SUM(H60,K60,N60)","v":0},0,0]
["Other reallocations",0,null,null,null,null,"Other machinery and equipment",{"$f":"SUMPRODUCT(((Dataset[Econ4]=$G61))*Dataset[2025/26 From - Other reallocations]*$B$3)","v":0},{"$f":"SUMPRODUCT(((Dataset[Econ4]=$G61))*Dataset[2025/26 To - Other reallocations]*$B$3)","v":0},0,{"$f":"SUMPRODUCT(((Dataset[Econ4]=$G61))*Dataset[2026/27 From - Other reallocations]*$B$3)","v":0},{"$f":"SUMPRODUCT(((Dataset[Econ4]=$G61))*Dataset[2026/27 To - Other reallocations]*$B$3)","v":0},0,{"$f":"SUMPRODUCT(((Dataset[Econ4]=$G61))*Dataset[2027/28 From - Other reallocations]*$B$3)","v":0},{"$f":"SUMPRODUCT(((Dataset[Econ4]=$G61))*Dataset[2027/28 To - Other reallocations]*$B$3)","v":0},0,0,0,0]
["Other reallocations",0,null,null,null,null,"Heritage assets",{"$f":"SUMPRODUCT(((Dataset[Econ3]=$G62))*Dataset[2025/26 From - Other reallocations]*$B$3)","v":0},{"$f":"SUMPRODUCT(((Dataset[Econ3]=$G62))*Dataset[2025/26 To - Other reallocations]*$B$3)","v":0},0,{"$f":"SUMPRODUCT(((Dataset[Econ3]=$G62))*Dataset[2026/27 From - Other reallocations]*$B$3)","v":0},{"$f":"SUMPRODUCT(((Dataset[Econ3]=$G62))*Dataset[2026/27 To - Other reallocations]*$B$3)","v":0},0,{"$f":"SUMPRODUCT(((Dataset[Econ3]=$G62))*Dataset[2027/28 From - Other reallocations]*$B$3)","v":0},{"$f":"SUMPRODUCT(((Dataset[Econ3]=$G62))*Dataset[2027/28 To - Other reallocations]*$B$3)","v":0},0,0,0,0]
["Other reallocations",0,null,null,null,null,"Specialised military assets",{"$f":"SUMPRODUCT(((Dataset[Econ3]=$G63))*Dataset[2025/26 From - Other reallocations]*$B$3)","v":0},{"$f":"SUMPRODUCT(((Dataset[Econ3]=$G63))*Dataset[2025/26 To - Other reallocations]*$B$3)","v":0},0,{"$f":"SUMPRODUCT(((Dataset[Econ3]=$G63))*Dataset[2026/27 From - Other reallocations]*$B$3)","v":0},{"$f":"SUMPRODUCT(((Dataset[Econ3]=$G63))*Dataset[2026/27 To - Other reallocations]*$B$3)","v":0},0,{"$f":"SUMPRODUCT(((Dataset[Econ3]=$G63))*Dataset[2027/28 From - Other reallocations]*$B$3)","v":0},{"$f":"SUMPRODUCT(((Dataset[Econ3]=$G63))*Dataset[2027/28 To - Other reallocations]*$B$3)","v":0},0,0,0,0]
["Other reallocations",0,null,null,null,null,"Biological assets",{"$f":"SUMPRODUCT(((Dataset[Econ3]=$G64))*Dataset[2025/26 From - Other reallocations]*$B$3)","v":0},{"$f":"SUMPRODUCT(((Dataset[Econ3]=$G64))*Dataset[2025/26 To - Other reallocations]*$B$3)","v":0},0,{"$f":"SUMPRODUCT(((Dataset[Econ3]=$G64))*Dataset[2026/27 From - Other reallocations]*$B$3)","v":0},{"$f":"SUMPRODUCT(((Dataset[Econ3]=$G64))*Dataset[2026/27 To - Other reallocations]*$B$3)","v":0},0,{"$f":"SUMPRODUCT(((Dataset[Econ3]=$G64))*Dataset[2027/28 From - Other reallocations]*$B$3)","v":0},{"$f":"SUMPRODUCT(((Dataset[Econ3]=$G64))*Dataset[2027/28 To - Other reallocations]*$B$3)","v":0},0,0,0,0]
["Other reallocations",0,null,null,null,null,"Land and sub-soil assets",{"$f":"SUMPRODUCT(((Dataset[Econ3]=$G65))*Dataset[2025/26 From - Other reallocations]*$B$3)","v":0},{"$f":"SUMPRODUCT(((Dataset[Econ3]=$G65))*Dataset[2025/26 To - Other reallocations]*$B$3)","v":0},0,{"$f":"SUMPRODUCT(((Dataset[Econ3]=$G65))*Dataset[2026/27 From - Other reallocations]*$B$3)","v":0},{"$f":"SUMPRODUCT(((Dataset[Econ3]=$G65))*Dataset[2026/27 To - Other reallocations]*$B$3)","v":0},0,{"$f":"SUMPRODUCT(((Dataset[Econ3]=$G65))*Dataset[2027/28 From - Other reallocations]*$B$3)","v":0},{"$f":"SUMPRODUCT(((Dataset[Econ3]=$G65))*Dataset[2027/28 To - Other reallocations]*$B$3)","v":0},0,0,0,0]
["Other reallocations",0,null,null,null,null,"Software and other intangible assets",{"$f":"SUMPRODUCT(((Dataset[Econ3]=$G66))*Dataset[2025/26 From - Other reallocations]*$B$3)","v":0},{"$f":"SUMPRODUCT(((Dataset[Econ3]=$G66))*Dataset[2025/26 To - Other reallocations]*$B$3)","v":0},0,{"$f":"SUMPRODUCT(((Dataset[Econ3]=$G66))*Dataset[2026/27 From - Other reallocations]*$B$3)","v":0},{"$f":"SUMPRODUCT(((Dataset[Econ3]=$G66))*Dataset[2026/27 To - Other reallocations]*$B$3)","v":0},0,{"$f":"SUMPRODUCT(((Dataset[Econ3]=$G66))*Dataset[2027/28 From - Other reallocations]*$B$3)","v":0},{"$f":"SUMPRODUCT(((Dataset[Econ3]=$G66))*Dataset[2027/28 To - Other reallocations]*$B$3)","v":0},0,0,0,0]
["Other reallocations",0,null,null,null,null,"Payments for financial assets",{"$f":"SUMPRODUCT(((Dataset[Econ3]=$G67))*Dataset[2025/26 From - Other reallocations]*$B$3)","v":0},{"$f":"SUMPRODUCT(((Dataset[Econ3]=$G67))*Dataset[2025/26 To - Other reallocations]*$B$3)","v":0},0,{"$f":"SUMPRODUCT(((Dataset[Econ3]=$G67))*Dataset[2026/27 From - Other reallocations]*$B$3)","v":0},{"$f":"SUMPRODUCT(((Dataset[Econ3]=$G67))*Dataset[2026/27 To - Other reallocations]*$B$3)","v":0},0,{"$f":"SUMPRODUCT(((Dataset[Econ3]=$G67))*Dataset[2027/28 From - Other reallocations]*$B$3)","v":0},{"$f":"SUMPRODUCT(((Dataset[Econ3]=$G67))*Dataset[2027/28 To - Other reallocations]*$B$3)","v":0},0,0,0,0]
["Other reallocations",0,null,null,null,null,"Total",{"$f":"SUM(H35,H39,H55,H67)","v":0},0,0,0,0,0,0,0,0,0,0,0]
[]
[]
[]
[]
[null,null,null,null,null,null,{"$f":"\"IMPACT OF ADJUSTMENTS: \" &UPPER($G$3)","v":"IMPACT OF ADJUSTMENTS: OTHER REALLOCATIONS"}]
[]
[null,null,null,null,null,1,"Impact of adjustments on expenditure"]
[{"$f":"$G$3","v":"Other reallocations"},5,null,null,null,null,null,{"$f":"MyYear4","v":"2024/25"},null,null,{"$f":"MyYear5","v":"2025/26"},null,null,{"$f":"MyYear6","v":"2026/27"},null,null,{"$f":"MyYear7","v":"2027/28"}]
["Other reallocations",5,null,null,null,null,null,"Current expenditure","Potential expenditure @ benchmark level","% Savings if benchmark is achieved","Original number","Change in expenditure","Saving as % of original number","Original number","Change in expenditure","Saving as % of original number","Original number","Change in expenditure","Saving as % of original number"]
["Other reallocations",5,null,null,null,null,"Total",null,null,{"$f":"IFERROR((H78-I78)/H78,\"\")","v":""},null,null,{"$f":"IFERROR(L78/K78,\"\")","v":""},null,null,{"$f":"IFERROR(O78/N78,\"\")","v":""},null,null,{"$f":"IFERROR(R78/Q78,\"\")","v":""}]
[]
[]
[]
[]
[]
[null,null,null,null,null,2,"Summary of impact on service delivery/policy area due to adjustments"]
[{"$f":"$G$3","v":"Other reallocations"},1]
["Other reallocations",1]
["Other reallocations",1]
["Other reallocations",1]
["Other reallocations",1]
["Other reallocations",1]
["Other reallocations",1]
["Other reallocations",1]
["Other reallocations",1]
["Other reallocations",1]
["Other reallocations",1]
["Other reallocations",1]
["Other reallocations",1]
["Other reallocations",1]
["Other reallocations",1]
[]
[]
[]
[]
[]
[null,null,null,null,null,3,"Impact of adjustments on performance indicators"]
[{"$f":"$G$3","v":"Other reallocations"},2,null,null,null,null,null,{"$f":"MyYear4","v":"2024/25"},null,null,{"$f":"MyYear5","v":"2025/26"},null,null,{"$f":"MyYear6","v":"2026/27"},null,null,{"$f":"MyYear7","v":"2027/28"},null,null," Comment",null,null,null,null,"Related MTSF Priority"]
["Other reallocations",2,null,null,null,null,"Performance indicator","Current performance","Performance @ benchmark level","Change","Original target","Revised target","Change","Original target","Revised target","Change","Original target","Revised target","Change"]
["Other reallocations",2]
["Other reallocations",2]
["Other reallocations",2]
["Other reallocations",2]
["Other reallocations",2]
["Other reallocations",2]
["Other reallocations",2]
["Other reallocations",2]
["Other reallocations",2]
["Other reallocations",2]
["Other reallocations",2]
["Other reallocations",2]
["Other reallocations",2]
["Other reallocations",2]
["Other reallocations",2]
[]
[]
[]
[]
[]
[null,null,null,null,null,4,"Impact of adjustments on personnel headcount numbers"]
[{"$f":"$G$3","v":"Other reallocations"},4,null,null,null,null,null,{"$f":"MyYear4","v":"2024/25"},null,null,{"$f":"MyYear5","v":"2025/26"},null,null,{"$f":"MyYear6","v":"2026/27"},null,null,{"$f":"MyYear7","v":"2027/28"},null,null," Comment"]
["Other reallocations",4,null,null,null,null,"Salary level","Current number","Potential number if benchmark is achieved","Change in number","Original number","Revised number","Change in number","Original number","Revised number","Change in number","Original number","Revised number","Change in number"]
["Other reallocations",4,null,null,null,null,1,null,null,{"$f":"I131-H131","v":0},null,null,{"$f":"L131-K131","v":0},null,null,{"$f":"O131-N131","v":0},null,null,{"$f":"R131-Q131","v":0}]
["Other reallocations",4,null,null,null,null,2,null,null,0,null,null,0,null,null,0,null,null,0]
["Other reallocations",4,null,null,null,null,3,null,null,0,null,null,0,null,null,0,null,null,0]
["Other reallocations",4,null,null,null,null,4,null,null,0,null,null,0,null,null,0,null,null,0]
["Other reallocations",4,null,null,null,null,5,null,null,0,null,null,0,null,null,0,null,null,0]
["Other reallocations",4,null,null,null,null,6,null,null,0,null,null,0,null,null,0,null,null,0]
["Other reallocations",4,null,null,null,null,7,null,null,0,null,null,0,null,null,0,null,null,0]
["Other reallocations",4,null,null,null,null,8,null,null,0,null,null,0,null,null,0,null,null,0]
["Other reallocations",4,null,null,null,null,9,null,null,0,null,null,0,null,null,0,null,null,0]
["Other reallocations",4,null,null,null,null,10,null,null,0,null,null,0,null,null,0,null,null,0]
["Other reallocations",4,null,null,null,null,11,null,null,0,null,null,0,null,null,0,null,null,0]
["Other reallocations",4,null,null,null,null,12,null,null,0,null,null,0,null,null,0,null,null,0]
["Other reallocations",4,null,null,null,null,13,null,null,0,null,null,0,null,null,0,null,null,0]
["Other reallocations",4,null,null,null,null,14,null,null,0,null,null,0,null,null,0,null,null,0]
["Other reallocations",4,null,null,null,null,15,null,null,0,null,null,0,null,null,0,null,null,0]
["Other reallocations",4,null,null,null,null,16,null,null,0,null,null,0,null,null,0,null,null,0]
["Other reallocations",4,null,null,null,null,"Other",null,null,0,null,null,0,null,null,0,null,null,0]
["Other reallocations",4,null,null,null,null,"Other",null,null,0,null,null,0,null,null,0,null,null,0]
["Other reallocations",4,null,null,null,null,"Other",null,null,0,null,null,0,null,null,0,null,null,0]
["Other reallocations",4,null,null,null,null,"Other",null,null,0,null,null,0,null,null,0,null,null,0]
["Other reallocations",4,null,null,null,null,"Total",{"$f":"SUM(H131:H150)","v":0},0,0,{"$f":"SUM(K131:K150)","v":0},0,0,0,0,0,0,0,0]
[]
[]
[]
[]
[]
[null,null,null,null,null,5,"Impact of adjustments on infrastructure projects"]
[{"$f":"$G$3","v":"Other reallocations"},3,null,null,null,null,null,{"$f":"MyYear4","v":"2024/25"},null,null,{"$f":"MyYear5","v":"2025/26"},null,null,{"$f":"MyYear6","v":"2026/27"},null,null,{"$f":"MyYear7","v":"2027/28"},null,null," Comment"]
["Other reallocations",3,null,null,null,null,"Project name","Current number","Market or best in class benchmark","Change","Original amount","Revised amount","Change","Original amount","Revised amount","Change","Original amount","Revised amount","Change"]
["Other reallocations",3,null,null,null,null,null,null,null,{"$f":"I160-H160","v":0},null,null,{"$f":"L160-K160","v":0},null,null,{"$f":"O160-N160","v":0},null,null,{"$f":"R160-Q160","v":0}]
["Other reallocations",3,null,null,null,null,null,null,null,0,null,null,0,null,null,0,null,null,0]
["Other reallocations",3,null,null,null,null,null,null,null,0,null,null,0,null,null,0,null,null,0]
["Other reallocations",3,null,null,null,null,null,null,null,0,null,null,0,null,null,0,null,null,0]
["Other reallocations",3,null,null,null,null,null,null,null,0,null,null,0,null,null,0,null,null,0]
["Other reallocations",3,null,null,null,null,null,null,null,0,null,null,0,null,null,0,null,null,0]
["Other reallocations",3,null,null,null,null,null,null,null,0,null,null,0,null,null,0,null,null,0]
["Other reallocations",3,null,null,null,null,null,null,null,0,null,null,0,null,null,0,null,null,0]
["Other reallocations",3,null,null,null,null,null,null,null,0,null,null,0,null,null,0,null,null,0]
["Other reallocations",3,null,null,null,null,null,null,null,0,null,null,0,null,null,0,null,null,0]
["Other reallocations",3,null,null,null,null,null,null,null,0,null,null,0,null,null,0,null,null,0]
["Other reallocations",3,null,null,null,null,null,null,null,0,null,null,0,null,null,0,null,null,0]
["Other reallocations",3,null,null,null,null,null,null,null,0,null,null,0,null,null,0,null,null,0]
["Other reallocations",3,null,null,null,null,null,null,null,0,null,null,0,null,null,0,null,null,0]
["Other reallocations",3,null,null,null,null,null,null,null,0,null,null,0,null,null,0,null,null,0]
["Other reallocations",3,null,null,null,null,null,null,null,0,null,null,0,null,null,0,null,null,0]
["Other reallocations",3,null,null,null,null,null,null,null,0,null,null,0,null,null,0,null,null,0]
["Other reallocations",3,null,null,null,null,null,null,null,0,null,null,0,null,null,0,null,null,0]
["Other reallocations",3,null,null,null,null,null,null,null,0,null,null,0,null,null,0,null,null,0]
["Other reallocations",3,null,null,null,null,null,null,null,0,null,null,0,null,null,0,null,null,0]
["Other reallocations",3,null,null,null,null,null,null,null,0,null,null,0,null,null,0,null,null,0]
["Other reallocations",3,null,null,null,null,null,null,null,0,null,null,0,null,null,0,null,null,0]
["Other reallocations",3,null,null,null,null,null,null,null,0,null,null,0,null,null,0,null,null,0]
["Other reallocations",3,null,null,null,null,null,null,null,0,null,null,0,null,null,0,null,null,0]
["Other reallocations",3,null,null,null,null,null,null,null,0,null,null,0,null,null,0,null,null,0]
["Other reallocations",3,null,null,null,null,null,null,null,0,null,null,0,null,null,0,null,null,0]
["Other reallocations",3,null,null,null,null,null,null,null,0,null,null,0,null,null,0,null,null,0]
["Other reallocations",3,null,null,null,null,null,null,null,0,null,null,0,null,null,0,null,null,0]
["Other reallocations",3,null,null,null,null,null,null,null,0,null,null,0,null,null,0,null,null,0]
["Other reallocations",3,null,null,null,null,null,null,null,0,null,null,0,null,null,0,null,null,0]
["Other reallocations",3,null,null,null,null,null,null,null,0,null,null,0,null,null,0,null,null,0]
["Other reallocations",3,null,null,null,null,null,null,null,0,null,null,0,null,null,0,null,null,0]
["Other reallocations",3,null,null,null,null,null,null,null,0,null,null,0,null,null,0,null,null,0]
["Other reallocations",3,null,null,null,null,null,null,null,0,null,null,0,null,null,0,null,null,0]
["Other reallocations",3,null,null,null,null,null,null,null,0,null,null,0,null,null,0,null,null,0]
["Other reallocations",3,null,null,null,null,null,null,null,0,null,null,0,null,null,0,null,null,0]
["Other reallocations",3,null,null,null,null,null,null,null,0,null,null,0,null,null,0,null,null,0]
["Other reallocations",3,null,null,null,null,null,null,null,0,null,null,0,null,null,0,null,null,0]
["Other reallocations",3,null,null,null,null,null,null,null,0,null,null,0,null,null,0,null,null,0]
["Other reallocations",3,null,null,null,null,null,null,null,0,null,null,0,null,null,0,null,null,0]
["Other reallocations",3,null,null,null,null,null,null,null,0,null,null,0,null,null,0,null,null,0]
["Other reallocations",3,null,null,null,null,null,null,null,0,null,null,0,null,null,0,null,null,0]
["Other reallocations",3,null,null,null,null,null,null,null,0,null,null,0,null,null,0,null,null,0]
["Other reallocations",3,null,null,null,null,null,null,null,0,null,null,0,null,null,0,null,null,0]
["Other reallocations",3,null,null,null,null,null,null,null,0,null,null,0,null,null,0,null,null,0]
["Other reallocations",3,null,null,null,null,null,null,null,0,null,null,0,null,null,0,null,null,0]
["Other reallocations",3,null,null,null,null,null,null,null,0,null,null,0,null,null,0,null,null,0]
["Other reallocations",3,null,null,null,null,null,null,null,0,null,null,0,null,null,0,null,null,0]
["Other reallocations",3,null,null,null,null,null,null,null,0,null,null,0,null,null,0,null,null,0]
["Other reallocations",3,null,null,null,null,null,null,null,0,null,null,0,null,null,0,null,null,0]
["Other reallocations",3,null,null,null,null,"Total",{"$f":"SUM(H160:H209)","v":0},0,0,0,0,0,0,0,0,0,0,0]

{"sheet":"Reductions","index":16,"n_rows":210,"n_cols":25,"rows_kept":210,"cut":false,"hidden":false,"merged":[[72,6,72,18],[84,6,98,18],[105,19,105,23],[105,24,105,26],[106,19,106,23],[106,24,106,26],[107,19,107,23],[107,24,107,26],[108,19,108,23],[108,24,108,26],[109,19,109,23],[109,24,109,26],[110,19,110,23],[110,24,110,26],[111,19,111,23],[111,24,111,26],[112,19,112,23],[112,24,112,26],[113,19,113,23],[113,24,113,26],[114,19,114,23],[114,24,114,26],[115,19,115,23],[115,24,115,26],[116,19,116,23],[116,24,116,26],[117,19,117,23],[117,24,117,26],[118,19,118,23],[118,24,118,26],[119,19,119,23],[119,24,119,26],[120,19,120,23],[120,24,120,26],[121,19,121,23],[121,24,121,26],[165,19,165,23],[128,19,128,23],[129,19,129,23],[130,19,149,23],[157,19,157,23],[158,19,158,23],[159,19,159,23],[160,19,160,23],[161,19,161,23],[162,19,162,23],[163,19,163,23],[164,19,164,23],[177,19,177,23],[166,19,166,23],[167,19,167,23],[168,19,168,23],[169,19,169,23],[170,19,170,23],[171,19,171,23],[172,19,172,23],[173,19,173,23],[174,19,174,23],[175,19,175,23],[176,19,176,23],[189,19,189,23],[178,19,178,23],[179,19,179,23],[180,19,180,23],[181,19,181,23],[182,19,182,23],[183,19,183,23],[184,19,184,23],[185,19,185,23],[186,19,186,23],[187,19,187,23],[188,19,188,23],[201,19,201,23],[190,19,190,23],[191,19,191,23],[192,19,192,23],[193,19,193,23],[194,19,194,23],[195,19,195,23],[196,19,196,23],[197,19,197,23],[198,19,198,23],[199,19,199,23],[200,19,200,23],[208,19,208,23],[202,19,202,23],[203,19,203,23],[204,19,204,23],[205,19,205,23],[206,19,206,23],[207,19,207,23]]}
[]
[]
[null,{"$f":"IF(G3=\"\",0,1)","v":1},null,null,null,6,{"$f":"\"Reductions\"","v":"Reductions"}]
[]
[null,null,null,null,null,null,"Quick view…(Total change)",{"$f":"MyYear5","v":"2025/26"},{"$f":"MyYear6","v":"2026/27"},{"$f":"MyYear7","v":"2027/28"},"MTEF total","Trend"]
[null,null,null,null,null,null,"Compensation of employees",{"$f":"SUMPRODUCT(($G$35:$G$68=$G6)*(I$35:I$68))","v":0},{"$f":"SUMPRODUCT(($G$35:$G$68=$G6)*(J$35:J$68))","v":0},{"$f":"SUMPRODUCT(($G$35:$G$68=$G6)*(K$35:K$68))","v":0},{"$f":"SUM(H6:J6)","v":0},null,null,"CoE"]
[null,null,null,null,null,null,"Goods and services",{"$f":"SUMPRODUCT(($G$35:$G$68=$G7)*(I$35:I$68))","v":0},{"$f":"SUMPRODUCT(($G$35:$G$68=$G7)*(J$35:J$68))","v":0},{"$f":"SUMPRODUCT(($G$35:$G$68=$G7)*(K$35:K$68))","v":0},0,null,null,"G&S"]
[null,null,null,null,null,null,"Transfers and subsidies",{"$f":"SUMPRODUCT(($G$35:$G$68=$G8)*(I$35:I$68))","v":0},{"$f":"SUMPRODUCT(($G$35:$G$68=$G8)*(J$35:J$68))","v":0},{"$f":"SUMPRODUCT(($G$35:$G$68=$G8)*(K$35:K$68))","v":0},0,null,null,"T&S"]
[null,null,null,null,null,null,"Payments for capital assets",{"$f":"SUMPRODUCT(($G$35:$G$68=$G9)*(I$35:I$68))","v":0},{"$f":"SUMPRODUCT(($G$35:$G$68=$G9)*(J$35:J$68))","v":0},{"$f":"SUMPRODUCT(($G$35:$G$68=$G9)*(K$35:K$68))","v":0},0,null,null,"Capital"]
[null,null,null,null,null,null,"Total",{"$f":"SUMPRODUCT(($G$35:$G$68=$G10)*(I$35:I$68))","v":0},{"$f":"SUMPRODUCT(($G$35:$G$68=$G10)*(J$35:J$68))","v":0},{"$f":"SUMPRODUCT(($G$35:$G$68=$G10)*(K$35:K$68))","v":0},0,null,null,"Total"]
[null,null,null,null,null,null,"% of MTEF total",null,null,null,null,null,null,null,null,null,null,null,{"$f":"MyYear5","v":"2025/26"},{"$f":"MyYear6","v":"2026/27"},{"$f":"MyYear7","v":"2027/28"}]
[null,null,null,null,null,null,"Compensation of employees",{"$f":"IFERROR(H6/$K6,\"\")","v":""},"","",null,null,null,null,null,null,null,{"$f":"G12","v":"Compensation of employees"},{"$f":"IF(H12>0.0595,H12,\"\")","v":""},"",""]
[null,null,null,null,null,null,"Goods and services","","","",null,null,null,null,null,null,null,{"$f":"G13","v":"Goods and services"},"","",""]
[null,null,null,null,null,null,"Transfers and subsidies","","","",null,null,null,null,null,null,null,{"$f":"G14","v":"Transfers and subsidies"},"","",""]
[null,null,null,null,null,null,"Payments for capital assets","","","",null,null,null,null,null,null,null,{"$f":"G15","v":"Payments for capital assets"},"","",""]
[]
[null,null,null,null,null,null,"Division of Revenue",{"$f":"MyYear5","v":"2025/26"},{"$f":"MyYear6","v":"2026/27"},{"$f":"MyYear7","v":"2027/28"},"MTEF total","Trend"]
[null,null,null,null,null,null,"National",{"$f":"SUM(H19:H21)","v":0},0,0,{"$f":"SUM(H18:J18)","v":0}]
[{"$f":"$G$3","v":"Reductions"},"NAT",null,null,null,null,"National (excl. indirect grants)",{"$f":"SUMPRODUCT(((Dataset[DOR]=$B19))*Dataset[2025/26 Reduction])","v":0},{"$f":"SUMPRODUCT(((Dataset[DOR]=$B19))*Dataset[2026/27 Reduction])","v":0},{"$f":"SUMPRODUCT(((Dataset[DOR]=$B19))*Dataset[2027/28 Reduction])","v":0},0]
["Reductions","IGP",null,null,null,null,"Provincial indirect grants",{"$f":"SUMPRODUCT(((Dataset[DOR]=$B20))*Dataset[2025/26 Reduction])","v":0},{"$f":"SUMPRODUCT(((Dataset[DOR]=$B20))*Dataset[2026/27 Reduction])","v":0},{"$f":"SUMPRODUCT(((Dataset[DOR]=$B20))*Dataset[2027/28 Reduction])","v":0},0]
["Reductions","IGM",null,null,null,null,"Local indirect grants",{"$f":"SUMPRODUCT(((Dataset[DOR]=$B21))*Dataset[2025/26 Reduction])","v":0},{"$f":"SUMPRODUCT(((Dataset[DOR]=$B21))*Dataset[2026/27 Reduction])","v":0},{"$f":"SUMPRODUCT(((Dataset[DOR]=$B21))*Dataset[2027/28 Reduction])","v":0},0]
["Reductions",null,null,null,null,null,"Provincial",{"$f":"SUMPRODUCT(((Dataset[DOR]=$B22))*Dataset[2025/26 Reduction])","v":0},{"$f":"SUMPRODUCT(((Dataset[DOR]=$B22))*Dataset[2026/27 Reduction])","v":0},{"$f":"SUMPRODUCT(((Dataset[DOR]=$B22))*Dataset[2027/28 Reduction])","v":0},0]
["Reductions","PES",null,null,null,null,"Provincial equitable share",{"$f":"SUMPRODUCT(((Dataset[DOR]=$B23))*Dataset[2025/26 Reduction])","v":0},{"$f":"SUMPRODUCT(((Dataset[DOR]=$B23))*Dataset[2026/27 Reduction])","v":0},{"$f":"SUMPRODUCT(((Dataset[DOR]=$B23))*Dataset[2027/28 Reduction])","v":0},0]
["Reductions","PCG",null,null,null,null,"Provincial conditional grants",{"$f":"SUMPRODUCT(((Dataset[DOR]=$B24))*Dataset[2025/26 Reduction])","v":0},{"$f":"SUMPRODUCT(((Dataset[DOR]=$B24))*Dataset[2026/27 Reduction])","v":0},{"$f":"SUMPRODUCT(((Dataset[DOR]=$B24))*Dataset[2027/28 Reduction])","v":0},0]
["Reductions",null,null,null,null,null,"Local government",{"$f":"SUMPRODUCT(((Dataset[DOR]=$B25))*Dataset[2025/26 Reduction])","v":0},{"$f":"SUMPRODUCT(((Dataset[DOR]=$B25))*Dataset[2026/27 Reduction])","v":0},{"$f":"SUMPRODUCT(((Dataset[DOR]=$B25))*Dataset[2027/28 Reduction])","v":0},0]
["Reductions","LES",null,null,null,null,"Local equitable share",{"$f":"SUMPRODUCT(((Dataset[DOR]=$B26))*Dataset[2025/26 Reduction])","v":0},{"$f":"SUMPRODUCT(((Dataset[DOR]=$B26))*Dataset[2026/27 Reduction])","v":0},{"$f":"SUMPRODUCT(((Dataset[DOR]=$B26))*Dataset[2027/28 Reduction])","v":0},0]
["Reductions","LCG",null,null,null,null,"Local conditional grants",{"$f":"SUMPRODUCT(((Dataset[DOR]=$B27))*Dataset[2025/26 Reduction])","v":0},{"$f":"SUMPRODUCT(((Dataset[DOR]=$B27))*Dataset[2026/27 Reduction])","v":0},{"$f":"SUMPRODUCT(((Dataset[DOR]=$B27))*Dataset[2027/28 Reduction])","v":0},0]
["Reductions","GFL",null,null,null,null,"General fuel levy ",{"$f":"SUMPRODUCT(((Dataset[DOR]=$B28))*Dataset[2025/26 Reduction])","v":0},{"$f":"SUMPRODUCT(((Dataset[DOR]=$B28))*Dataset[2026/27 Reduction])","v":0},{"$f":"SUMPRODUCT(((Dataset[DOR]=$B28))*Dataset[2027/28 Reduction])","v":0},0]
[]
[]
[null,null,null,null,null,null,{"$f":"G3","v":"Reductions"}]
[{"$f":"$G$3","v":"Reductions"},0,null,null,null,null,null,{"$f":"MyYear4","v":"2024/25"},{"$f":"MyYear5","v":"2025/26"},{"$f":"MyYear6","v":"2026/27"},{"$f":"MyYear7","v":"2027/28"},"Total over MTEF"]
[{"$f":"$G$3","v":"Reductions"},0,null,null,null,null,"Rand thousand","Reduction","Reduction","Reduction","Reduction","Reduction"]
["Reductions",0,null,null,null,null,"Economic classification"]
["Reductions",0,null,null,null,null,"Current payments",{"$f":"SUM(H36:H38)","v":0},{"$f":"SUM(I36:I38)","v":0},0,0,0]
["Reductions",0,null,null,null,null,"Compensation of employees",{"$f":"SUMPRODUCT(((Dataset[Econ3]=$G36))*Dataset[2024/25 Reduction]*$B$3)","v":0},{"$f":"SUMPRODUCT(((Dataset[Econ3]=$G36))*Dataset[2025/26 Reduction]*$B$3)","v":0},{"$f":"SUMPRODUCT(((Dataset[Econ3]=$G36))*Dataset[2026/27 Reduction]*$B$3)","v":0},{"$f":"SUMPRODUCT(((Dataset[Econ3]=$G36))*Dataset[2027/28 Reduction]*$B$3)","v":0},{"$f":"SUM(I36,J36,K36)","v":0}]
["Reductions",0,null,null,null,null,"Goods and services",{"$f":"SUMPRODUCT(((Dataset[Econ3]=$G37))*Dataset[2024/25 Reduction]*$B$3)","v":0},{"$f":"SUMPRODUCT(((Dataset[Econ3]=$G37))*Dataset[2025/26 Reduction]*$B$3)","v":0},{"$f":"SUMPRODUCT(((Dataset[Econ3]=$G37))*Dataset[2026/27 Reduction]*$B$3)","v":0},{"$f":"SUMPRODUCT(((Dataset[Econ3]=$G37))*Dataset[2027/28 Reduction]*$B$3)","v":0},{"$f":"SUM(I37,J37,K37)","v":0}]
["Reductions",0,null,null,null,null,"Interest and rent on land",{"$f":"SUMPRODUCT(((Dataset[Econ3]=$G38))*Dataset[2024/25 Reduction]*$B$3)","v":0},{"$f":"SUMPRODUCT(((Dataset[Econ3]=$G38))*Dataset[2025/26 Reduction]*$B$3)","v":0},{"$f":"SUMPRODUCT(((Dataset[Econ3]=$G38))*Dataset[2026/27 Reduction]*$B$3)","v":0},{"$f":"SUMPRODUCT(((Dataset[Econ3]=$G38))*Dataset[2027/28 Reduction]*$B$3)","v":0},{"$f":"SUM(I38,J38,K38)","v":0}]
["Reductions",0,null,null,null,null,"Transfers and subsidies",{"$f":"SUM(H40,H43,H46:H48,H51:H52)","v":0},{"$f":"SUM(I40,I43,I46:I48,I51:I52)","v":0},0,0,0]
["Reductions",0,null,null,null,null,"Provinces and municipalities",{"$f":"SUM(H41:H42)","v":0},{"$f":"SUM(I41:I42)","v":0},0,0,0]
["Reductions",0,null,null,null,null,"Provinces",{"$f":"SUMPRODUCT(((Dataset[Econ4]=$G41))*Dataset[2024/25 Reduction]*$B$3)","v":0},{"$f":"SUMPRODUCT(((Dataset[Econ4]=$G41))*Dataset[2025/26 Reduction]*$B$3)","v":0},{"$f":"SUMPRODUCT(((Dataset[Econ4]=$G41))*Dataset[2026/27 Reduction]*$B$3)","v":0},{"$f":"SUMPRODUCT(((Dataset[Econ4]=$G41))*Dataset[2027/28 Reduction]*$B$3)","v":0},{"$f":"SUM(I41,J41,K41)","v":0}]
["Reductions",0,null,null,null,null,"Municipalities",{"$f":"SUMPRODUCT(((Dataset[Econ4]=$G42))*Dataset[2024/25 Reduction]*$B$3)","v":0},{"$f":"SUMPRODUCT(((Dataset[Econ4]=$G42))*Dataset[2025/26 Reduction]*$B$3)","v":0},{"$f":"SUMPRODUCT(((Dataset[Econ4]=$G42))*Dataset[2026/27 Reduction]*$B$3)","v":0},{"$f":"SUMPRODUCT(((Dataset[Econ4]=$G42))*Dataset[2027/28 Reduction]*$B$3)","v":0},{"$f":"SUM(I42,J42,K42)","v":0}]
["Reductions",0,null,null,null,null,"Departmental agencies and accounts",{"$f":"SUM(H44:H45)","v":0},{"$f":"SUM(I44:I45)","v":0},0,0,0]
["Reductions",0,null,null,null,null,"Social security funds",{"$f":"SUMPRODUCT(((Dataset[Econ4]=$G44))*Dataset[2024/25 Reduction]*$B$3)","v":0},{"$f":"SUMPRODUCT(((Dataset[Econ4]=$G44))*Dataset[2025/26 Reduction]*$B$3)","v":0},{"$f":"SUMPRODUCT(((Dataset[Econ4]=$G44))*Dataset[2026/27 Reduction]*$B$3)","v":0},{"$f":"SUMPRODUCT(((Dataset[Econ4]=$G44))*Dataset[2027/28 Reduction]*$B$3)","v":0},{"$f":"SUM(I44,J44,K44)","v":0}]
["Reductions",0,null,null,null,null,"Departmental agencies (non-business entities)",{"$f":"SUMPRODUCT(((Dataset[Econ4]=$G45))*Dataset[2024/25 Reduction]*$B$3)","v":0},{"$f":"SUMPRODUCT(((Dataset[Econ4]=$G45))*Dataset[2025/26 Reduction]*$B$3)","v":0},{"$f":"SUMPRODUCT(((Dataset[Econ4]=$G45))*Dataset[2026/27 Reduction]*$B$3)","v":0},{"$f":"SUMPRODUCT(((Dataset[Econ4]=$G45))*Dataset[2027/28 Reduction]*$B$3)","v":0},{"$f":"SUM(I45,J45,K45)","v":0}]
["Reductions",0,null,null,null,null,"Higher education institutions",{"$f":"SUMPRODUCT(((Dataset[Econ3]=$G46))*Dataset[2024/25 Reduction]*$B$3)","v":0},{"$f":"SUMPRODUCT(((Dataset[Econ3]=$G46))*Dataset[2025/26 Reduction]*$B$3)","v":0},{"$f":"SUMPRODUCT(((Dataset[Econ3]=$G46))*Dataset[2026/27 Reduction]*$B$3)","v":0},{"$f":"SUMPRODUCT(((Dataset[Econ3]=$G46))*Dataset[2027/28 Reduction]*$B$3)","v":0},{"$f":"SUM(I46,J46,K46)","v":0}]
["Reductions",0,null,null,null,null,"Foreign governments and international organisations",{"$f":"SUMPRODUCT(((Dataset[Econ3]=$G47))*Dataset[2024/25 Reduction]*$B$3)","v":0},{"$f":"SUMPRODUCT(((Dataset[Econ3]=$G47))*Dataset[2025/26 Reduction]*$B$3)","v":0},{"$f":"SUMPRODUCT(((Dataset[Econ3]=$G47))*Dataset[2026/27 Reduction]*$B$3)","v":0},{"$f":"SUMPRODUCT(((Dataset[Econ3]=$G47))*Dataset[2027/28 Reduction]*$B$3)","v":0},{"$f":"SUM(I47,J47,K47)","v":0}]
["Reductions",0,null,null,null,null,"Public corporations and private enterprises",{"$f":"SUM(H49:H50)","v":0},{"$f":"SUM(I49:I50)","v":0},0,0,0]
["Reductions",0,null,null,null,null,"Public corporations",{"$f":"SUMPRODUCT(((Dataset[Econ4]=$G49))*Dataset[2024/25 Reduction]*$B$3)","v":0},{"$f":"SUMPRODUCT(((Dataset[Econ4]=$G49))*Dataset[2025/26 Reduction]*$B$3)","v":0},{"$f":"SUMPRODUCT(((Dataset[Econ4]=$G49))*Dataset[2026/27 Reduction]*$B$3)","v":0},{"$f":"SUMPRODUCT(((Dataset[Econ4]=$G49))*Dataset[2027/28 Reduction]*$B$3)","v":0},{"$f":"SUM(I49,J49,K49)","v":0}]
["Reductions",0,null,null,null,null,"Private enterprises",{"$f":"SUMPRODUCT(((Dataset[Econ4]=$G50))*Dataset[2024/25 Reduction]*$B$3)","v":0},{"$f":"SUMPRODUCT(((Dataset[Econ4]=$G50))*Dataset[2025/26 Reduction]*$B$3)","v":0},{"$f":"SUMPRODUCT(((Dataset[Econ4]=$G50))*Dataset[2026/27 Reduction]*$B$3)","v":0},{"$f":"SUMPRODUCT(((Dataset[Econ4]=$G50))*Dataset[2027/28 Reduction]*$B$3)","v":0},{"$f":"SUM(I50,J50,K50)","v":0}]
["Reductions",0,null,null,null,null,"Non-profit institutions",{"$f":"SUMPRODUCT(((Dataset[Econ3]=$G51))*Dataset[2024/25 Reduction]*$B$3)","v":0},{"$f":"SUMPRODUCT(((Dataset[Econ3]=$G51))*Dataset[2025/26 Reduction]*$B$3)","v":0},{"$f":"SUMPRODUCT(((Dataset[Econ3]=$G51))*Dataset[2026/27 Reduction]*$B$3)","v":0},{"$f":"SUMPRODUCT(((Dataset[Econ3]=$G51))*Dataset[2027/28 Reduction]*$B$3)","v":0},{"$f":"SUM(I51,J51,K51)","v":0}]
["Reductions",0,null,null,null,null,"Households",{"$f":"SUM(H53:H54)","v":0},{"$f":"SUM(I53:I54)","v":0},0,0,0]
["Reductions",0,null,null,null,null,"Social benefits",{"$f":"SUMPRODUCT(((Dataset[Econ4]=$G53))*Dataset[2024/25 Reduction]*$B$3)","v":0},{"$f":"SUMPRODUCT(((Dataset[Econ4]=$G53))*Dataset[2025/26 Reduction]*$B$3)","v":0},{"$f":"SUMPRODUCT(((Dataset[Econ4]=$G53))*Dataset[2026/27 Reduction]*$B$3)","v":0},{"$f":"SUMPRODUCT(((Dataset[Econ4]=$G53))*Dataset[2027/28 Reduction]*$B$3)","v":0},{"$f":"SUM(I53,J53,K53)","v":0}]
["Reductions",0,null,null,null,null,"Other transfers to households",{"$f":"SUMPRODUCT(((Dataset[Econ4]=$G54))*Dataset[2024/25 Reduction]*$B$3)","v":0},{"$f":"SUMPRODUCT(((Dataset[Econ4]=$G54))*Dataset[2025/26 Reduction]*$B$3)","v":0},{"$f":"SUMPRODUCT(((Dataset[Econ4]=$G54))*Dataset[2026/27 Reduction]*$B$3)","v":0},{"$f":"SUMPRODUCT(((Dataset[Econ4]=$G54))*Dataset[2027/28 Reduction]*$B$3)","v":0},{"$f":"SUM(I54,J54,K54)","v":0}]
["Reductions",0,null,null,null,null,"Payments for capital assets",{"$f":"SUM(H56,H59,H62:H66)","v":0},{"$f":"SUM(I56,I59,I62:I66)","v":0},0,0,0]
["Reductions",0,null,null,null,null,"Buildings and other fixed structures",{"$f":"SUM(H57:H58)","v":0},{"$f":"SUM(I57:I58)","v":0},0,0,0]
["Reductions",0,null,null,null,null,"Buildings",{"$f":"SUMPRODUCT(((Dataset[Econ4]=$G57))*Dataset[2024/25 Reduction]*$B$3)","v":0},{"$f":"SUMPRODUCT(((Dataset[Econ4]=$G57))*Dataset[2025/26 Reduction]*$B$3)","v":0},{"$f":"SUMPRODUCT(((Dataset[Econ4]=$G57))*Dataset[2026/27 Reduction]*$B$3)","v":0},{"$f":"SUMPRODUCT(((Dataset[Econ4]=$G57))*Dataset[2027/28 Reduction]*$B$3)","v":0},{"$f":"SUM(I57,J57,K57)","v":0}]
["Reductions",0,null,null,null,null,"Other fixed structures",{"$f":"SUMPRODUCT(((Dataset[Econ4]=$G58))*Dataset[2024/25 Reduction]*$B$3)","v":0},{"$f":"SUMPRODUCT(((Dataset[Econ4]=$G58))*Dataset[2025/26 Reduction]*$B$3)","v":0},{"$f":"SUMPRODUCT(((Dataset[Econ4]=$G58))*Dataset[2026/27 Reduction]*$B$3)","v":0},{"$f":"SUMPRODUCT(((Dataset[Econ4]=$G58))*Dataset[2027/28 Reduction]*$B$3)","v":0},{"$f":"SUM(I58,J58,K58)","v":0}]
["Reductions",0,null,null,null,null,"Machinery and equipment",{"$f":"SUM(H60:H61)","v":0},{"$f":"SUM(I60:I61)","v":0},0,0,0]
["Reductions",0,null,null,null,null,"Transport equipment",{"$f":"SUMPRODUCT(((Dataset[Econ4]=$G60))*Dataset[2024/25 Reduction]*$B$3)","v":0},{"$f":"SUMPRODUCT(((Dataset[Econ4]=$G60))*Dataset[2025/26 Reduction]*$B$3)","v":0},{"$f":"SUMPRODUCT(((Dataset[Econ4]=$G60))*Dataset[2026/27 Reduction]*$B$3)","v":0},{"$f":"SUMPRODUCT(((Dataset[Econ4]=$G60))*Dataset[2027/28 Reduction]*$B$3)","v":0},{"$f":"SUM(I60,J60,K60)","v":0}]
["Reductions",0,null,null,null,null,"Other machinery and equipment",{"$f":"SUMPRODUCT(((Dataset[Econ4]=$G61))*Dataset[2024/25 Reduction]*$B$3)","v":0},{"$f":"SUMPRODUCT(((Dataset[Econ4]=$G61))*Dataset[2025/26 Reduction]*$B$3)","v":0},{"$f":"SUMPRODUCT(((Dataset[Econ4]=$G61))*Dataset[2026/27 Reduction]*$B$3)","v":0},{"$f":"SUMPRODUCT(((Dataset[Econ4]=$G61))*Dataset[2027/28 Reduction]*$B$3)","v":0},0]
["Reductions",0,null,null,null,null,"Heritage assets",{"$f":"SUMPRODUCT(((Dataset[Econ3]=$G62))*Dataset[2024/25 Reduction]*$B$3)","v":0},{"$f":"SUMPRODUCT(((Dataset[Econ3]=$G62))*Dataset[2025/26 Reduction]*$B$3)","v":0},{"$f":"SUMPRODUCT(((Dataset[Econ3]=$G62))*Dataset[2026/27 Reduction]*$B$3)","v":0},{"$f":"SUMPRODUCT(((Dataset[Econ3]=$G62))*Dataset[2027/28 Reduction]*$B$3)","v":0},0]
["Reductions",0,null,null,null,null,"Specialised military assets",{"$f":"SUMPRODUCT(((Dataset[Econ3]=$G63))*Dataset[2024/25 Reduction]*$B$3)","v":0},{"$f":"SUMPRODUCT(((Dataset[Econ3]=$G63))*Dataset[2025/26 Reduction]*$B$3)","v":0},{"$f":"SUMPRODUCT(((Dataset[Econ3]=$G63))*Dataset[2026/27 Reduction]*$B$3)","v":0},{"$f":"SUMPRODUCT(((Dataset[Econ3]=$G63))*Dataset[2027/28 Reduction]*$B$3)","v":0},0]
["Reductions",0,null,null,null,null,"Biological assets",{"$f":"SUMPRODUCT(((Dataset[Econ3]=$G64))*Dataset[2024/25 Reduction]*$B$3)","v":0},{"$f":"SUMPRODUCT(((Dataset[Econ3]=$G64))*Dataset[2025/26 Reduction]*$B$3)","v":0},{"$f":"SUMPRODUCT(((Dataset[Econ3]=$G64))*Dataset[2026/27 Reduction]*$B$3)","v":0},{"$f":"SUMPRODUCT(((Dataset[Econ3]=$G64))*Dataset[2027/28 Reduction]*$B$3)","v":0},0]
["Reductions",0,null,null,null,null,"Land and sub-soil assets",{"$f":"SUMPRODUCT(((Dataset[Econ3]=$G65))*Dataset[2024/25 Reduction]*$B$3)","v":0},{"$f":"SUMPRODUCT(((Dataset[Econ3]=$G65))*Dataset[2025/26 Reduction]*$B$3)","v":0},{"$f":"SUMPRODUCT(((Dataset[Econ3]=$G65))*Dataset[2026/27 Reduction]*$B$3)","v":0},{"$f":"SUMPRODUCT(((Dataset[Econ3]=$G65))*Dataset[2027/28 Reduction]*$B$3)","v":0},0]
["Reductions",0,null,null,null,null,"Software and other intangible assets",{"$f":"SUMPRODUCT(((Dataset[Econ3]=$G66))*Dataset[2024/25 Reduction]*$B$3)","v":0},{"$f":"SUMPRODUCT(((Dataset[Econ3]=$G66))*Dataset[2025/26 Reduction]*$B$3)","v":0},{"$f":"SUMPRODUCT(((Dataset[Econ3]=$G66))*Dataset[2026/27 Reduction]*$B$3)","v":0},{"$f":"SUMPRODUCT(((Dataset[Econ3]=$G66))*Dataset[2027/28 Reduction]*$B$3)","v":0},0]
["Reductions",0,null,null,null,null,"Payments for financial assets",{"$f":"SUMPRODUCT(((Dataset[Econ3]=$G67))*Dataset[2024/25 Reduction]*$B$3)","v":0},{"$f":"SUMPRODUCT(((Dataset[Econ3]=$G67))*Dataset[2025/26 Reduction]*$B$3)","v":0},{"$f":"SUMPRODUCT(((Dataset[Econ3]=$G67))*Dataset[2026/27 Reduction]*$B$3)","v":0},{"$f":"SUMPRODUCT(((Dataset[Econ3]=$G67))*Dataset[2027/28 Reduction]*$B$3)","v":0},0]
["Reductions",0,null,null,null,null,"Total",{"$f":"SUM(H35,H39,H55,H67)","v":0},{"$f":"SUM(I35,I39,I55,I67)","v":0},0,0,0]
[]
[]
[]
[]
[null,null,null,null,null,null,{"$f":"\"IMPACT OF ADJUSTMENTS: \" &UPPER($G$3)","v":"IMPACT OF ADJUSTMENTS: REDUCTIONS"}]
[]
[null,null,null,null,null,1,"Impact of adjustments on expenditure"]
[{"$f":"$G$3","v":"Reductions"},5,null,null,null,null,null,{"$f":"MyYear4","v":"2024/25"},null,null,{"$f":"MyYear5","v":"2025/26"},null,null,{"$f":"MyYear6","v":"2026/27"},null,null,{"$f":"MyYear7","v":"2027/28"}]
["Reductions",5,null,null,null,null,null,"Current expenditure","Potential expenditure @ benchmark level","% Savings if benchmark is achieved","Original number","Change in expenditure","Saving as % of original number","Original number","Change in expenditure","Saving as % of original number","Original number","Change in expenditure","Saving as % of original number"]
["Reductions",5,null,null,null,null,"Total",null,null,{"$f":"IFERROR((H78-I78)/H78,\"\")","v":""},null,null,{"$f":"IFERROR(L78/K78,\"\")","v":""},null,null,{"$f":"IFERROR(O78/N78,\"\")","v":""},null,null,{"$f":"IFERROR(R78/Q78,\"\")","v":""}]
[]
[]
[]
[]
[]
[null,null,null,null,null,2,"Summary of impact on service delivery/policy area due to adjustments"]
[{"$f":"$G$3","v":"Reductions"},1]
["Reductions",1]
["Reductions",1]
["Reductions",1]
["Reductions",1]
["Reductions",1]
["Reductions",1]
["Reductions",1]
["Reductions",1]
["Reductions",1]
["Reductions",1]
["Reductions",1]
["Reductions",1]
["Reductions",1]
["Reductions",1]
[]
[]
[]
[]
[]
[null,null,null,null,null,3,"Impact of adjustments on performance indicators"]
[{"$f":"$G$3","v":"Reductions"},2,null,null,null,null,null,{"$f":"MyYear4","v":"2024/25"},null,null,{"$f":"MyYear5","v":"2025/26"},null,null,{"$f":"MyYear6","v":"2026/27"},null,null,{"$f":"MyYear7","v":"2027/28"},null,null," Comment",null,null,null,null,"Related MTSF Priority"]
["Reductions",2,null,null,null,null,"Performance indicator","Current performance","Performance @ benchmark level","Change","Original target","Revised target","Change","Original target","Revised target","Change","Original target","Revised target","Change"]
["Reductions",2]
["Reductions",2]
["Reductions",2]
["Reductions",2]
["Reductions",2]
["Reductions",2]
["Reductions",2]
["Reductions",2]
["Reductions",2]
["Reductions",2]
["Reductions",2]
["Reductions",2]
["Reductions",2]
["Reductions",2]
["Reductions",2]
[]
[]
[]
[]
[]
[null,null,null,null,null,4,"Impact of adjustments on personnel headcount numbers"]
[{"$f":"$G$3","v":"Reductions"},4,null,null,null,null,null,{"$f":"MyYear4","v":"2024/25"},null,null,{"$f":"MyYear5","v":"2025/26"},null,null,{"$f":"MyYear6","v":"2026/27"},null,null,{"$f":"MyYear7","v":"2027/28"},null,null," Comment"]
["Reductions",4,null,null,null,null,"Salary level","Current number","Potential number if benchmark is achieved","Change in number","Original number","Revised number","Change in number","Original number","Revised number","Change in number","Original number","Revised number","Change in number"]
["Reductions",4,null,null,null,null,1,null,null,{"$f":"I131-H131","v":0},null,null,{"$f":"L131-K131","v":0},null,null,{"$f":"O131-N131","v":0},null,null,{"$f":"R131-Q131","v":0}]
["Reductions",4,null,null,null,null,2,null,null,0,null,null,0,null,null,0,null,null,0]
["Reductions",4,null,null,null,null,3,null,null,0,null,null,0,null,null,0,null,null,0]
["Reductions",4,null,null,null,null,4,null,null,0,null,null,0,null,null,0,null,null,0]
["Reductions",4,null,null,null,null,5,null,null,0,null,null,0,null,null,0,null,null,0]
["Reductions",4,null,null,null,null,6,null,null,0,null,null,0,null,null,0,null,null,0]
["Reductions",4,null,null,null,null,7,null,null,0,null,null,0,null,null,0,null,null,0]
["Reductions",4,null,null,null,null,8,null,null,0,null,null,0,null,null,0,null,null,0]
["Reductions",4,null,null,null,null,9,null,null,0,null,null,0,null,null,0,null,null,0]
["Reductions",4,null,null,null,null,10,null,null,0,null,null,0,null,null,0,null,null,0]
["Reductions",4,null,null,null,null,11,null,null,0,null,null,0,null,null,0,null,null,0]
["Reductions",4,null,null,null,null,12,null,null,0,null,null,0,null,null,0,null,null,0]
["Reductions",4,null,null,null,null,13,null,null,0,null,null,0,null,null,0,null,null,0]
["Reductions",4,null,null,null,null,14,null,null,0,null,null,0,null,null,0,null,null,0]
["Reductions",4,null,null,null,null,15,null,null,0,null,null,0,null,null,0,null,null,0]
["Reductions",4,null,null,null,null,16,null,null,0,null,null,0,null,null,0,null,null,0]
["Reductions",4,null,null,null,null,"Other",null,null,0,null,null,0,null,null,0,null,null,0]
["Reductions",4,null,null,null,null,"Other",null,null,0,null,null,0,null,null,0,null,null,0]
["Reductions",4,null,null,null,null,"Other",null,null,0,null,null,0,null,null,0,null,null,0]
["Reductions",4,null,null,null,null,"Other",null,null,0,null,null,0,null,null,0,null,null,0]
["Reductions",4,null,null,null,null,"Total",{"$f":"SUM(H131:H150)","v":0},0,0,{"$f":"SUM(K131:K150)","v":0},0,0,0,0,0,0,0,0]
[]
[]
[]
[]
[]
[null,null,null,null,null,5,"Impact of adjustments on infrastructure projects"]
[{"$f":"$G$3","v":"Reductions"},3,null,null,null,null,null,{"$f":"MyYear4","v":"2024/25"},null,null,{"$f":"MyYear5","v":"2025/26"},null,null,{"$f":"MyYear6","v":"2026/27"},null,null,{"$f":"MyYear7","v":"2027/28"},null,null," Comment"]
["Reductions",3,null,null,null,null,"Project name","Current number","Market or best in class benchmark","Change","Original amount","Revised amount","Change","Original amount","Revised amount","Change","Original amount","Revised amount","Change"]
["Reductions",3,null,null,null,null,null,null,null,{"$f":"I160-H160","v":0},null,null,{"$f":"L160-K160","v":0},null,null,{"$f":"O160-N160","v":0},null,null,{"$f":"R160-Q160","v":0}]
["Reductions",3,null,null,null,null,null,null,null,0,null,null,0,null,null,0,null,null,0]
["Reductions",3,null,null,null,null,null,null,null,0,null,null,0,null,null,0,null,null,0]
["Reductions",3,null,null,null,null,null,null,null,0,null,null,0,null,null,0,null,null,0]
["Reductions",3,null,null,null,null,null,null,null,0,null,null,0,null,null,0,null,null,0]
["Reductions",3,null,null,null,null,null,null,null,0,null,null,0,null,null,0,null,null,0]
["Reductions",3,null,null,null,null,null,null,null,0,null,null,0,null,null,0,null,null,0]
["Reductions",3,null,null,null,null,null,null,null,0,null,null,0,null,null,0,null,null,0]
["Reductions",3,null,null,null,null,null,null,null,0,null,null,0,null,null,0,null,null,0]
["Reductions",3,null,null,null,null,null,null,null,0,null,null,0,null,null,0,null,null,0]
["Reductions",3,null,null,null,null,null,null,null,0,null,null,0,null,null,0,null,null,0]
["Reductions",3,null,null,null,null,null,null,null,0,null,null,0,null,null,0,null,null,0]
["Reductions",3,null,null,null,null,null,null,null,0,null,null,0,null,null,0,null,null,0]
["Reductions",3,null,null,null,null,null,null,null,0,null,null,0,null,null,0,null,null,0]
["Reductions",3,null,null,null,null,null,null,null,0,null,null,0,null,null,0,null,null,0]
["Reductions",3,null,null,null,null,null,null,null,0,null,null,0,null,null,0,null,null,0]
["Reductions",3,null,null,null,null,null,null,null,0,null,null,0,null,null,0,null,null,0]
["Reductions",3,null,null,null,null,null,null,null,0,null,null,0,null,null,0,null,null,0]
["Reductions",3,null,null,null,null,null,null,null,0,null,null,0,null,null,0,null,null,0]
["Reductions",3,null,null,null,null,null,null,null,0,null,null,0,null,null,0,null,null,0]
["Reductions",3,null,null,null,null,null,null,null,0,null,null,0,null,null,0,null,null,0]
["Reductions",3,null,null,null,null,null,null,null,0,null,null,0,null,null,0,null,null,0]
["Reductions",3,null,null,null,null,null,null,null,0,null,null,0,null,null,0,null,null,0]
["Reductions",3,null,null,null,null,null,null,null,0,null,null,0,null,null,0,null,null,0]
["Reductions",3,null,null,null,null,null,null,null,0,null,null,0,null,null,0,null,null,0]
["Reductions",3,null,null,null,null,null,null,null,0,null,null,0,null,null,0,null,null,0]
["Reductions",3,null,null,null,null,null,null,null,0,null,null,0,null,null,0,null,null,0]
["Reductions",3,null,null,null,null,null,null,null,0,null,null,0,null,null,0,null,null,0]
["Reductions",3,null,null,null,null,null,null,null,0,null,null,0,null,null,0,null,null,0]
["Reductions",3,null,null,null,null,null,null,null,0,null,null,0,null,null,0,null,null,0]
["Reductions",3,null,null,null,null,null,null,null,0,null,null,0,null,null,0,null,null,0]
["Reductions",3,null,null,null,null,null,null,null,0,null,null,0,null,null,0,null,null,0]
["Reductions",3,null,null,null,null,null,null,null,0,null,null,0,null,null,0,null,null,0]
["Reductions",3,null,null,null,null,null,null,null,0,null,null,0,null,null,0,null,null,0]
["Reductions",3,null,null,null,null,null,null,null,0,null,null,0,null,null,0,null,null,0]
["Reductions",3,null,null,null,null,null,null,null,0,null,null,0,null,null,0,null,null,0]
["Reductions",3,null,null,null,null,null,null,null,0,null,null,0,null,null,0,null,null,0]
["Reductions",3,null,null,null,null,null,null,null,0,null,null,0,null,null,0,null,null,0]
["Reductions",3,null,null,null,null,null,null,null,0,null,null,0,null,null,0,null,null,0]
["Reductions",3,null,null,null,null,null,null,null,0,null,null,0,null,null,0,null,null,0]
["Reductions",3,null,null,null,null,null,null,null,0,null,null,0,null,null,0,null,null,0]
["Reductions",3,null,null,null,null,null,null,null,0,null,null,0,null,null,0,null,null,0]
["Reductions",3,null,null,null,null,null,null,null,0,null,null,0,null,null,0,null,null,0]
["Reductions",3,null,null,null,null,null,null,null,0,null,null,0,null,null,0,null,null,0]
["Reductions",3,null,null,null,null,null,null,null,0,null,null,0,null,null,0,null,null,0]
["Reductions",3,null,null,null,null,null,null,null,0,null,null,0,null,null,0,null,null,0]
["Reductions",3,null,null,null,null,null,null,null,0,null,null,0,null,null,0,null,null,0]
["Reductions",3,null,null,null,null,null,null,null,0,null,null,0,null,null,0,null,null,0]
["Reductions",3,null,null,null,null,null,null,null,0,null,null,0,null,null,0,null,null,0]
["Reductions",3,null,null,null,null,null,null,null,0,null,null,0,null,null,0,null,null,0]
["Reductions",3,null,null,null,null,"Total",{"$f":"SUM(H160:H209)","v":0},0,0,0,0,0,0,0,0,0,0,0]

{"sheet":"Metadata","index":17,"n_rows":26,"n_cols":4,"rows_kept":26,"cut":false,"hidden":true,"merged":[]}
[]
[null,"Metadata"]
[null,"ContextData","ProcessActivity","NAT_MTEC"]
[null,null,"Province","National"]
[null,null,"Department",{"$f":"MyDeptName","v":"Transport"}]
[null,null,"Month"]
[null,null,"Fin Year","2025/26"]
[null,null,"VoteNo",{"$f":"MyVoteNo","v":40}]
[null,null,"Identifier"]
[null,null,"ProgSectionCount"]
[null,null,"SubprogSectionCount"]
[null,"SourceRef","name",{"$f":"Welcome!G11","v":0}]
[null,null,"email",{"$f":"Welcome!G12","v":0}]
[null,null,"telephone",{"$f":"Welcome!G13","v":0}]
[null,null,"mobile",{"$f":"Welcome!G14","v":0}]
[null,"Platform","file modified",{"$f":"NOW()","v":45469.466939351849}]
[null,null,"OS version",{"$f":"INFO(\"OSVERSION\")","v":"Windows (64-bit) NT 10.00"}]
[null,null,"Excel version",{"$f":"INFO(\"RELEASE\")","v":"16.0"}]
[null,"SourceControl","SourceIdentifier",{"$f":"CONCATENATE(D3,\"_\",D9,\"_\",D16)","v":"NAT_MTEC__45469.4669393518"}]
[null,null,"Filename",{"$f":"MID(CELL(\"filename\",A1),FIND(\"[\",CELL(\"filename\",A1))+1,FIND(\"]\",CELL(\"filename\",A1))-FIND(\"[\",CELL(\"filename\",A1))-1)","v":"MTEF2025-Vote40.xlsm"}]
[null,null,"FilePath",{"$f":"LEFT(CELL(\"filename\",A1),FIND(\"[\",CELL(\"filename\",A1),1)-1)","v":"https://zatreasury.sharepoint.com/sites/MTEC/Shared Documents/2025/01. Departments/01. Workbook submissions/01. Data workbooks/"}]
[null,null,"template_versionDate",{"$f":"DATE(2015,6,26)","v":42181}]
[null,null,"LockDate1",{"$f":"DATE(2015,2,8)","v":42043}]
[null,null,"lockDate2",{"$f":"DATE(2015,2,8)","v":42043}]
[null,null,"LockStatus1",1]
[null,null,"LockStatus2",1]

{"sheet":"Sheet1","index":18,"n_rows":50,"n_cols":45,"rows_kept":50,"cut":false,"hidden":true,"merged":[]}
[]
[null,"Department:","Cooperative Governance"]
[null,null,null,null,null,null,null,null,null,null,null,null,null,null,null,null,null,null,null,null,null,null,null,null,null,null,null,null,null,null,null,null,null,"Ceiling Dept",null,null,null,null,null,null,"Ceiling CoE"]
[null,null,null,null,null,null,null,null,null,null,null,null,null,null,null,null,null,null,null,null,"Check Ceilings"]
[null,null,null,null,null,null,null,null,{"$f":"20-COUNTIF(J7:J26,\"\")","v":0},null,null,null,null,null,null,null,null,null,null,null,{"$f":"MyYear5","v":"2025/26"},{"$f":"MyYear6","v":"2026/27"},{"$f":"MyYear7","v":"2027/28"},"Check","Message",null,null,"ShtNames","Lock","Hide",null,null,null,"Vote No. - N","Department","2024/25","2025/26","2026/27",null,null,"Vote No. - N","Department","2024/25","2025/26","2026/27"]
[null,"UID_Org","Department","Programme","Subprogramme","Implementation programme","IP No",null,"IP No","Implementation programme",null,null,"ShtName",null,null,null,"Gov_Priority",null,null,"Dept",{"$f":"Data!CP9","v":0},{"$f":"Data!CQ9","v":0},{"$f":"Data!CR9+1","v":1},{"$f":"IF(OR(U6<0,V6<0,W6<0),1,0)","v":0},{"$f":"IF(X6=1,\"Departmental baseline ceiling exceeded!\")","v":false},null,null,"Welcome",1,0,null,null,null,29,"Agriculture, Land Reform and Rural Development",17387702,18168574,18982512,null,null,29,"Agriculture, Land Reform and Rural Development",3856499,4029693,4210223]
[null,"03|01|01","Cooperative Governance","Administration","Ministry",null,null,null,1,{"$f":"IFERROR(INDEX(#REF!,MATCH(0,COUNTIF(Sheet1!$J$6:J6,#REF!),0)),\"\")","v":""},null,null,"IP1",null,{"$f":"IFERROR(INDEX((t_PolicyMap[Implementation programme]),MATCH(I7,t_PolicyMap[IP No],0)),\"\")","v":""},null,"Priority 1: A Capable, Ethical and Developmental State",null,null,"CoE",{"$f":"Data!CP12","v":0},{"$f":"Data!CQ12","v":0},{"$f":"Data!CR12","v":0},{"$f":"IF(OR(U7<0,V7<0,W7<0),1,0)","v":0},{"$f":"IF(X7=1,\"Compensation baseline ceiling exceeded!\")","v":false},null,null,"Notes",1,0,null,null,null,16,"Basic Education",30388009,31406684,32813705,null,null,16,"Basic Education",541065,565363,590690]
[null,"03|01|02","Cooperative Governance","Administration","Management",null,null,null,2,{"$f":"IFERROR(INDEX(#REF!,MATCH(0,COUNTIF(Sheet1!$J$6:J7,#REF!),0)),\"\")","v":""},null,null,"IP2",null,{"$f":"IFERROR(INDEX((t_PolicyMap[Implementation programme]),MATCH(I8,t_PolicyMap[IP No],0)),\"\")","v":""},null,"Priority 2: Economic Transformation and Job Creation",null,null,null,null,null,null,{"$f":"CeilingCheckDept","v":0},null,null,null,"Pivot % growth",0,0,null,null,null,42,"Centre for Public Service Innovation",45363,47400,49526,null,null,42,"Centre for Public Service Innovation",24869,25985,27150]
[null,"03|01|03","Cooperative Governance","Administration","Corporate Services",null,null,null,3,{"$f":"IFERROR(INDEX(#REF!,MATCH(0,COUNTIF(Sheet1!$J$6:J8,#REF!),0)),\"\")","v":""},null,null,"IP3",null,{"$f":"IFERROR(INDEX((t_PolicyMap[Implementation programme]),MATCH(I9,t_PolicyMap[IP No],0)),\"\")","v":""},null,"Priority 3: Education, Skills and Health",null,null,null,null,null,null,null,null,null,null,"Pivot_T",0,0,null,null,null,21,"Civilian Secretariat for the Police Service",150489,157245,164284,null,null,21,"Civilian Secretariat for the Police Service",105189,109906,114831]
[null,"03|01|04","Cooperative Governance","Administration","Financial Services",null,null,null,4,{"$f":"IFERROR(INDEX(#REF!,MATCH(0,COUNTIF(Sheet1!$J$6:J9,#REF!),0)),\"\")","v":""},null,null,null,null,{"$f":"IFERROR(INDEX((t_PolicyMap[Implementation programme]),MATCH(I10,t_PolicyMap[IP No],0)),\"\")","v":""},null,"Priority 4: Consolidating the Social Wage through Reliable and Quality Basic Services",null,null,null,null,null,null,null,null,null,null,"Service delivery impact",0,0,null,null,null,30,"Communications and Digital Technologies",2426409,2535360,2583461,null,null,30,"Communications and Digital Technologies",291288,304366,318003]
[null,"03|01|05","Cooperative Governance","Administration","Internal Audit and Risk Management",null,null,null,5,{"$f":"IFERROR(INDEX(#REF!,MATCH(0,COUNTIF(Sheet1!$J$6:J10,#REF!),0)),\"\")","v":""},null,null,null,null,{"$f":"IFERROR(INDEX((t_PolicyMap[Implementation programme]),MATCH(I11,t_PolicyMap[IP No],0)),\"\")","v":""},null,"Priority 5: Spatial Integration, Human Settlements and Local Government",null,null,null,null,null,null,null,null,null,null,"Performance impact",0,0,null,null,null,3,"Cooperative Governance",119225831,127419419,133127805,null,null,3,"Cooperative Governance",333973,348968,364600]
[null,"03|01|06","Cooperative Governance","Administration","Office Accommodation",null,null,null,6,{"$f":"IFERROR(INDEX(#REF!,MATCH(0,COUNTIF(Sheet1!$J$6:J11,#REF!),0)),\"\")","v":""},null,null,null,null,{"$f":"IFERROR(INDEX((t_PolicyMap[Implementation programme]),MATCH(I12,t_PolicyMap[IP No],0)),\"\")","v":""},null,"Priority 6: Social Cohesion and Safer Communities",null,null,null,null,null,null,null,null,null,null,"Pivot Infra impact",0,0,null,null,null,22,"Correctional Services",25593909,26743311,27941397,null,null,22,"Correctional Services",16928739,17689000,18481466]
[null,"03|02|01","Cooperative Governance","Regional and Urban Development and Legislative Support","Management: Regional and Urban Development and Legislative Support",null,null,null,7,{"$f":"IFERROR(INDEX(#REF!,MATCH(0,COUNTIF(Sheet1!$J$6:J12,#REF!),0)),\"\")","v":""},null,null,null,null,{"$f":"IFERROR(INDEX((t_PolicyMap[Implementation programme]),MATCH(I13,t_PolicyMap[IP No],0)),\"\")","v":""},null,"Priority 7: A Better Africa and World",null,null,null,null,null,null,null,null,null,null,"Pivot Personnel impact",0,0,null,null,null,23,"Defence",47959805,49277735,51485360,null,null,23,"Defence",29649010,30980536,32368468]
[null,"03|02|02","Cooperative Governance","Regional and Urban Development and Legislative Support","Local Government Legislative Support and Institutional Establishment",null,null,null,8,{"$f":"IFERROR(INDEX(#REF!,MATCH(0,COUNTIF(Sheet1!$J$6:J13,#REF!),0)),\"\")","v":""},null,null,null,null,{"$f":"IFERROR(INDEX((t_PolicyMap[Implementation programme]),MATCH(I14,t_PolicyMap[IP No],0)),\"\")","v":""},null,"Departmental mandate",null,null,null,null,null,null,null,null,null,null,"Pivot HRBP",0,0,null,null,null,31,"Employment and Labour",3983468,3772616,3941622,null,null,31,"Employment and Labour",1378647,1440561,1505099]
[null,"03|02|03","Cooperative Governance","Regional and Urban Development and Legislative Support","Urban Development Planning",null,null,null,9,{"$f":"IFERROR(INDEX(#REF!,MATCH(0,COUNTIF(Sheet1!$J$6:J14,#REF!),0)),\"\")","v":""},null,null,null,null,{"$f":"IFERROR(INDEX((t_PolicyMap[Implementation programme]),MATCH(I15,t_PolicyMap[IP No],0)),\"\")","v":""},null,null,null,null,null,null,null,null,null,null,null,null,"Data",1,0,null,null,null,32,"Forestry, Fisheries and the Environment",8947150,9348937,9767746,null,null,32,"Forestry, Fisheries and the Environment",1889993,1974872,2063344]
[null,"03|02|04","Cooperative Governance","Regional and Urban Development and Legislative Support","Spatial Planning Districts and Regions",null,null,null,10,{"$f":"IFERROR(INDEX(#REF!,MATCH(0,COUNTIF(Sheet1!$J$6:J15,#REF!),0)),\"\")","v":""},null,null,null,null,{"$f":"IFERROR(INDEX((t_PolicyMap[Implementation programme]),MATCH(I16,t_PolicyMap[IP No],0)),\"\")","v":""},null,null,null,null,null,null,null,null,null,null,null,null,"Summary",1,0,null,null,null,4,"Government Communication and Information System",714862,746830,780277,null,null,4,"Government Communication and Information System",275218,287579,300460]
[null,"03|02|05","Cooperative Governance","Regional and Urban Development and Legislative Support","Intergovernmental Policy and Practice",null,null,null,11,{"$f":"IFERROR(INDEX(#REF!,MATCH(0,COUNTIF(Sheet1!$J$6:J16,#REF!),0)),\"\")","v":""},null,null,null,null,{"$f":"IFERROR(INDEX((t_PolicyMap[Implementation programme]),MATCH(I17,t_PolicyMap[IP No],0)),\"\")","v":""},null,null,null,null,null,null,null,null,null,null,null,null,"SRT1",1,0,null,null,null,18,"Health",60620455,62157612,64942267,null,null,18,"Health",760135,794290,829876]
[null,"03|02|06","Cooperative Governance","Regional and Urban Development and Legislative Support","Municipal Demarcation Transition Grant",null,null,null,12,{"$f":"IFERROR(INDEX(#REF!,MATCH(0,COUNTIF(Sheet1!$J$6:J17,#REF!),0)),\"\")","v":""},null,null,null,null,{"$f":"IFERROR(INDEX((t_PolicyMap[Implementation programme]),MATCH(I18,t_PolicyMap[IP No],0)),\"\")","v":""},null,null,null,null,null,null,null,null,null,null,null,null,"SRT2",1,0,null,null,null,17,"Higher Education and Training",136190371,144509123,151981819,null,null,17,"Higher Education and Training",10962604,11454929,11968107]
[null,"03|02|07","Cooperative Governance","Regional and Urban Development and Legislative Support","Municipal Demarcation Board",null,null,null,13,{"$f":"IFERROR(INDEX(#REF!,MATCH(0,COUNTIF(Sheet1!$J$6:J18,#REF!),0)),\"\")","v":""},null,null,null,null,{"$f":"IFERROR(INDEX((t_PolicyMap[Implementation programme]),MATCH(I19,t_PolicyMap[IP No],0)),\"\")","v":""},null,null,null,null,null,null,null,null,null,null,null,null,"SRT3",1,0,null,null,null,5,"Home Affairs",9332567,9751680,10188556,null,null,5,"Home Affairs",3781770,3951607,4128639]
[null,"03|02|08","Cooperative Governance","Regional and Urban Development and Legislative Support","South African Cities Network",null,null,null,14,{"$f":"IFERROR(INDEX(#REF!,MATCH(0,COUNTIF(Sheet1!$J$6:J19,#REF!),0)),\"\")","v":""},null,null,null,null,{"$f":"IFERROR(INDEX((t_PolicyMap[Implementation programme]),MATCH(I20,t_PolicyMap[IP No],0)),\"\")","v":""},null,null,null,null,null,null,null,null,null,null,null,null,"SRT4",1,0,null,null,null,33,"Human Settlements",34457574,35508742,37099532,null,null,33,"Human Settlements",403176,421283,440156]
[null,"03|02|09","Cooperative Governance","Regional and Urban Development and Legislative Support","Integrated Urban Development Grant",null,null,null,15,{"$f":"IFERROR(INDEX(#REF!,MATCH(0,COUNTIF(Sheet1!$J$6:J20,#REF!),0)),\"\")","v":""},null,null,null,null,{"$f":"IFERROR(INDEX((t_PolicyMap[Implementation programme]),MATCH(I21,t_PolicyMap[IP No],0)),\"\")","v":""},null,null,null,null,null,null,null,null,null,null,null,null,"Other reallocations",1,0,null,null,null,24,"Independent Police Investigative Directorate",357989,374064,390822,null,null,24,"Independent Police Investigative Directorate",239613,250376,261591]
[null,"03|03|01","Cooperative Governance","Institutional Development","Management: Institutional Development",null,null,null,16,{"$f":"IFERROR(INDEX(#REF!,MATCH(0,COUNTIF(Sheet1!$J$6:J21,#REF!),0)),\"\")","v":""},null,null,null,null,{"$f":"IFERROR(INDEX((t_PolicyMap[Implementation programme]),MATCH(I22,t_PolicyMap[IP No],0)),\"\")","v":""},null,null,null,null,null,null,null,null,null,null,null,null,"Reductions",1,0,null,null,null,6,"International Relations and Cooperation",6611037,6907933,7217415,null,null,6,"International Relations and Cooperation",2839854,2967390,3100331]
[null,"03|03|02","Cooperative Governance","Institutional Development","Municipal Human Resources Management Systems",null,null,null,17,{"$f":"IFERROR(INDEX(#REF!,MATCH(0,COUNTIF(Sheet1!$J$6:J22,#REF!),0)),\"\")","v":""},null,null,null,null,{"$f":"IFERROR(INDEX((t_PolicyMap[Implementation programme]),MATCH(I23,t_PolicyMap[IP No],0)),\"\")","v":""},null,null,null,null,null,null,null,null,null,null,null,null,"Metadata",1,1,null,null,null,25,"Justice and Constitutional Development",22210993,23209291,24249060,null,null,25,"Justice and Constitutional Development",12522222,13086101,13672358]
[null,"03|03|03","Cooperative Governance","Institutional Development","Municipal Finance",null,null,null,18,{"$f":"IFERROR(INDEX(#REF!,MATCH(0,COUNTIF(Sheet1!$J$6:J23,#REF!),0)),\"\")","v":""},null,null,null,null,{"$f":"IFERROR(INDEX((t_PolicyMap[Implementation programme]),MATCH(I24,t_PolicyMap[IP No],0)),\"\")","v":""},null,null,null,null,null,null,null,null,null,null,null,null,"Sheet1",0,1,null,null,null,26,"Military Veterans",662993,692764,723793,null,null,26,"Military Veterans",130736,136607,142727]
[null,"03|03|04","Cooperative Governance","Institutional Development","Citizen Engagement",null,null,null,19,{"$f":"IFERROR(INDEX(#REF!,MATCH(0,COUNTIF(Sheet1!$J$6:J24,#REF!),0)),\"\")","v":""},null,null,null,null,{"$f":"IFERROR(INDEX((t_PolicyMap[Implementation programme]),MATCH(I25,t_PolicyMap[IP No],0)),\"\")","v":""},null,null,null,null,null,null,null,null,null,null,null,null,"HRBP_Data",1,1,null,null,null,34,"Mineral Resources and Energy",10653456,11205147,11707142,null,null,34,"Mineral Resources and Energy",1037131,1083709,1132261]
[null,"03|03|05","Cooperative Governance","Institutional Development","Anti-Corruption and Good Governance",null,null,null,20,{"$f":"IFERROR(INDEX(#REF!,MATCH(0,COUNTIF(Sheet1!$J$6:J25,#REF!),0)),\"\")","v":""},null,null,null,null,{"$f":"IFERROR(INDEX((t_PolicyMap[Implementation programme]),MATCH(I26,t_PolicyMap[IP No],0)),\"\")","v":""},null,null,null,null,null,null,null,null,null,null,null,null,"Tables",0,1,null,null,null,7,"National School of Government",225944,235642,246196,null,null,7,"National School of Government",59309,61974,64750]
[null,"03|03|06","Cooperative Governance","Institutional Development","Municipal Property Rates",null,null,null,null,null,null,null,null,null,null,null,null,null,null,null,null,null,null,null,null,null,null,null,null,null,null,null,null,8,"National Treasury",930737811,977634759,1039728978,null,null,8,"National Treasury",890023,902007,942414]
[null,"03|03|07","Cooperative Governance","Institutional Development","Local Government Equitable Share ",null,null,null,null,null,null,null,null,null,null,null,null,null,null,null,null,null,null,null,null,null,null,null,null,null,null,null,null,27,"Office of the Chief Justice",2357611,2463491,2573851,null,null,27,"Office of the Chief Justice",1740705,1818880,1900371]
[null,"03|03|08","Cooperative Governance","Institutional Development","South African Local Government Association",null,null,null,null,null,null,null,null,null,null,null,null,null,null,null,null,null,null,null,null,null,null,null,null,null,null,null,null,2,"Parliament",2657570,2776916,2901323,null,null,2,"Parliament",1399164,1461998,1527497]
[null,"03|03|09","Cooperative Governance","Institutional Development","Municipal Systems Improvement Grant ",null,null,null,null,null,null,null,null,null,null,null,null,null,null,null,null,null,null,null,null,null,null,null,null,null,null,null,null,9,"Planning, Monitoring and Evaluation",466812,487769,509615,null,null,9,"Planning, Monitoring and Evaluation",311990,326003,340607]
[null,"03|03|11","Cooperative Governance","Institutional Development","United Cities and Local Government of Africa",null,null,null,null,null,null,null,null,null,null,null,null,null,null,null,null,null,null,null,null,null,null,null,null,null,null,null,null,28,"Police",99018831,104373725,109049663,null,null,28,"Police",77232311,81608782,85264855]
[null,"03|04|01","Cooperative Governance","National Disaster Management Centre","Management: Head of the National Disaster Management Centre",null,null,null,null,null,null,null,null,null,null,null,null,null,null,null,null,null,null,null,null,null,null,null,null,null,null,null,null,10,"Public Enterprises",297553,310915,324839,null,null,10,"Public Enterprises",179974,188057,196481]
[null,"03|04|02","Cooperative Governance","National Disaster Management Centre","Disaster Risk Reduction, Capacity Building and Intervention",null,null,null,null,null,null,null,null,null,null,null,null,null,null,null,null,null,null,null,null,null,null,null,null,null,null,null,null,12,"Public Service Commission",284921,297715,311054,null,null,12,"Public Service Commission",212877,222437,232403]
[null,"03|04|03","Cooperative Governance","National Disaster Management Centre","Legislation and Policy Management",null,null,null,null,null,null,null,null,null,null,null,null,null,null,null,null,null,null,null,null,null,null,null,null,null,null,null,null,11,"Public Service and Administration",543462,567875,593307,null,null,11,"Public Service and Administration",290747,303804,317415]
[null,"03|04|04","Cooperative Governance","National Disaster Management Centre","Integrated Provincial Disaster Management Support, Monitoring and Evaluation Systems",null,null,null,null,null,null,null,null,null,null,null,null,null,null,null,null,null,null,null,null,null,null,null,null,null,null,null,null,13,"Public Works and Infrastructure",8568946,8954214,9355359,null,null,13,"Public Works and Infrastructure",571442,597104,623854]
[null,"03|04|05","Cooperative Governance","National Disaster Management Centre","Fire Services",null,null,null,null,null,null,null,null,null,null,null,null,null,null,null,null,null,null,null,null,null,null,null,null,null,null,null,null,35,"Science and Innovation",9244581,9659756,10092514,null,null,35,"Science and Innovation",358376,374470,391249]
[null,"03|04|06","Cooperative Governance","National Disaster Management Centre","Information Technology, Intelligence and Information Management Systems",null,null,null,null,null,null,null,null,null,null,null,null,null,null,null,null,null,null,null,null,null,null,null,null,null,null,null,null,36,"Small Business Development",2569927,2685340,2805646,null,null,36,"Small Business Development",220264,246706,257760]
[null,"03|04|07","Cooperative Governance","National Disaster Management Centre","Disaster Relief Grant",null,null,null,null,null,null,null,null,null,null,null,null,null,null,null,null,null,null,null,null,null,null,null,null,null,null,null,null,19,"Social Development",221041972,232974986,243412261,null,null,19,"Social Development",498009,520374,543688]
[null,"03|04|08","Cooperative Governance","National Disaster Management Centre","Municipal Disaster Recovery Grant",null,null,null,null,null,null,null,null,null,null,null,null,null,null,null,null,null,null,null,null,null,null,null,null,null,null,null,null,37,"Sport, Arts and Culture",6347204,6149504,6425006,null,null,37,"Sport, Arts and Culture",376422,393325,410947]
[null,"03|04|09","Cooperative Governance","National Disaster Management Centre","Provincial Disaster Recovery Grant",null,null,null,null,null,null,null,null,null,null,null,null,null,null,null,null,null,null,null,null,null,null,null,null,null,null,null,null,14,"Statistics South Africa",2644134,2774713,2899018,null,null,14,"Statistics South Africa",1600931,1684662,1760135]
[null,"03|05|01","Cooperative Governance","Local Government Support and Intervention Management","Management: Local Government Support and Interventions",null,null,null,null,null,null,null,null,null,null,null,null,null,null,null,null,null,null,null,null,null,null,null,null,null,null,null,null,1,"The Presidency",610485,637903,666479,null,null,1,"The Presidency",376377,393280,410898]
[null,"03|05|02","Cooperative Governance","Local Government Support and Intervention Management","Municipal Performance Monitoring",null,null,null,null,null,null,null,null,null,null,null,null,null,null,null,null,null,null,null,null,null,null,null,null,null,null,null,null,38,"Tourism",2492307,2604237,2720908,null,null,38,"Tourism",363524,379846,396864]
[null,"03|05|03","Cooperative Governance","Local Government Support and Intervention Management","Local Government Improvement Programme",null,null,null,null,null,null,null,null,null,null,null,null,null,null,null,null,null,null,null,null,null,null,null,null,null,null,null,null,39,"Trade, Industry and Competition",10887653,10553269,11026040,null,null,39,"Trade, Industry and Competition",1031246,1045762,1092612]
[null,"03|05|04","Cooperative Governance","Local Government Support and Intervention Management","Litigations and Interventions",null,null,null,null,null,null,null,null,null,null,null,null,null,null,null,null,null,null,null,null,null,null,null,null,null,null,null,null,15,"Traditional Affairs",179962,188044,196465,null,null,15,"Traditional Affairs",89020,93018,97185]
[null,"03|05|05","Cooperative Governance","Local Government Support and Intervention Management","Municipal Infrastructure Administration",null,null,null,null,null,null,null,null,null,null,null,null,null,null,null,null,null,null,null,null,null,null,null,null,null,null,null,null,40,"Transport",76907174,81658177,85316464,null,null,40,"Transport",531457,555328,580210]
[null,"03|05|06","Cooperative Governance","Local Government Support and Intervention Management","Municipal Infrastructure Grant",null,null,null,null,null,null,null,null,null,null,null,null,null,null,null,null,null,null,null,null,null,null,null,null,null,null,null,null,41,"Water and Sanitation",20155237,20913287,19624487,null,null,41,"Water and Sanitation",1741701,1819924,1901455]
[null,"03|05|07","Cooperative Governance","Local Government Support and Intervention Management","Municipal Infrastructure Support Agent",null,null,null,null,null,null,null,null,null,null,null,null,null,null,null,null,null,null,null,null,null,null,null,null,null,null,null,null,20,"Women, Youth and Persons with Disabilities",1031916,817034,853637,null,null,20,"Women, Youth and Persons with Disabilities",111943,116976,122218]
[null,"03|06|01","Cooperative Governance","Community Work Programme","Management: Community Work Programme"]
[null,"03|06|02","Cooperative Governance","Community Work Programme","Programme Coordination"]
[null,"03|06|03","Cooperative Governance","Community Work Programme","Partnerships, Norms, Standards and Innovation"]

{"sheet":"HRBP_Data","index":19,"n_rows":321,"n_cols":56,"rows_kept":321,"cut":false,"hidden":true,"merged":[]}
["VoteNo","Department","Programme No","Salary level","2023/24 Establishment: Number of funded posts as at 31 March 2024","2023/24 Establishment: Number of funded posts additional to the establishment","2023/24 FTE\nHeadcount","2023/24 Unit Costs","2023/24 \nOnce-off Payments per person","2023/24 Estimated Outcome","2024/25 Initial Headcount","2024/25 Unit Costs","2024/25 \nOnce-off Payments per person","2024/25 Vacant funded posts to be filled","2024/25 Headcount reductions to be made","2024/25 Revised Headcount","2024/25 Cost of vacant posts to be filled","2024/25 Savings from headcount reductions","2024/25 Revised Estimate","2025/26 Initial Headcount","2025/26 Unit Costs","2025/26 \nOnce-off Payments per person","2025/26 Vacant funded posts to be filled","2025/26 Headcount reductions to be made","2025/26 Revised Headcount","2025/26 Cost of vacant posts to be filled","2025/26 Savings from headcount reductions","2025/26 MTEF Estimate","2026/27 Initial Headcount","2026/27 Unit Costs","2026/27 \nOnce-off Payments per person","2026/27 Vacant funded posts to be filled","2026/27 Headcount reductions to be made","2026/27 Revised Headcount","2026/27 Cost of vacant posts to be filled","2026/27 Savings from headcount reductions","2026/27 MTEF Estimate","2027/28 Initial Headcount","2027/28 Unit Costs","2027/28 \nOnce-off Payments per person","2027/28 Vacant funded posts to be filled","2027/28 Headcount reductions to be made","2027/28 Revised Headcount","2027/28 Cost of vacant posts to be filled","2027/28 Savings from headcount reductions","2027/28 MTEF Estimate","ValueIndi",null,null,null,null,"Strategies to Reduce Headcounts"]
["Vote 01","The Presidency",1,1,0,0,0,0,0,0,0,0,0,0,0,0,0,0,0,0,0,0,0,0,0,0,0,0,0,0,0,0,0,0,0,0,0,0,0,0,0,0,0,0,0,0,0,null,null,null,null,"Indicators","2024/25","2025/26","2026/27","2027/28"]
["Vote 01","The Presidency",1,2,0,0,0,0,0,0,0,0,0,0,0,0,0,0,0,0,0,0,0,0,0,0,0,0,0,0,0,0,0,0,0,0,0,0,0,0,0,0,0,0,0,0,0,null,null,null,null,"1. Employee initiated severance package"]
["Vote 01","The Presidency",1,3,0,0,0,0,0,0,0,0,0,0,0,0,0,0,0,0,0,0,0,0,0,0,0,0,0,0,0,0,0,0,0,0,0,0,0,0,0,0,0,0,0,0,0,null,null,null,null,"2. Early retirement"]
["Vote 01","The Presidency",1,4,0,0,0,0,0,0,0,0,0,0,0,0,0,0,0,0,0,0,0,0,0,0,0,0,0,0,0,0,0,0,0,0,0,0,0,0,0,0,0,0,0,0,0,null,null,null,null,"3. Natural attrition"]
["Vote 01","The Presidency",1,5,0,0,0,0,0,0,0,0,0,0,0,0,0,0,0,0,0,0,0,0,0,0,0,0,0,0,0,0,0,0,0,0,0,0,0,0,0,0,0,0,0,0,0,null,null,null,null,"4. Retirement"]
["Vote 01","The Presidency",1,6,0,0,0,0,0,0,0,0,0,0,0,0,0,0,0,0,0,0,0,0,0,0,0,0,0,0,0,0,0,0,0,0,0,0,0,0,0,0,0,0,0,0,0,null,null,null,null,"5. Contract termination"]
["Vote 01","The Presidency",1,7,0,0,0,0,0,0,0,0,0,0,0,0,0,0,0,0,0,0,0,0,0,0,0,0,0,0,0,0,0,0,0,0,0,0,0,0,0,0,0,0,0,0,0,null,null,null,null,"6. Redeployments (transfers to other departments)"]
["Vote 01","The Presidency",1,8,0,0,0,0,0,0,0,0,0,0,0,0,0,0,0,0,0,0,0,0,0,0,0,0,0,0,0,0,0,0,0,0,0,0,0,0,0,0,0,0,0,0,0,null,null,null,null,"Total",0,0,0,0]
["Vote 01","The Presidency",1,9,0,0,0,0,0,0,0,0,0,0,0,0,0,0,0,0,0,0,0,0,0,0,0,0,0,0,0,0,0,0,0,0,0,0,0,0,0,0,0,0,0,0,0]
["Vote 01","The Presidency",1,10,0,0,0,0,0,0,0,0,0,0,0,0,0,0,0,0,0,0,0,0,0,0,0,0,0,0,0,0,0,0,0,0,0,0,0,0,0,0,0,0,0,0,0]
["Vote 01","The Presidency",1,11,0,0,0,0,0,0,0,0,0,0,0,0,0,0,0,0,0,0,0,0,0,0,0,0,0,0,0,0,0,0,0,0,0,0,0,0,0,0,0,0,0,0,0]
["Vote 01","The Presidency",1,12,0,0,0,0,0,0,0,0,0,0,0,0,0,0,0,0,0,0,0,0,0,0,0,0,0,0,0,0,0,0,0,0,0,0,0,0,0,0,0,0,0,0,0]
["Vote 01","The Presidency",1,13,0,0,0,0,0,0,0,0,0,0,0,0,0,0,0,0,0,0,0,0,0,0,0,0,0,0,0,0,0,0,0,0,0,0,0,0,0,0,0,0,0,0,0]
["Vote 01","The Presidency",1,14,0,0,0,0,0,0,0,0,0,0,0,0,0,0,0,0,0,0,0,0,0,0,0,0,0,0,0,0,0,0,0,0,0,0,0,0,0,0,0,0,0,0,0]
["Vote 01","The Presidency",1,15,0,0,0,0,0,0,0,0,0,0,0,0,0,0,0,0,0,0,0,0,0,0,0,0,0,0,0,0,0,0,0,0,0,0,0,0,0,0,0,0,0,0,0]
["Vote 01","The Presidency",1,16,0,0,0,0,0,0,0,0,0,0,0,0,0,0,0,0,0,0,0,0,0,0,0,0,0,0,0,0,0,0,0,0,0,0,0,0,0,0,0,0,0,0,0]
["Vote 01","The Presidency",1,"Deputy Minister",0,0,0,0,0,0,0,0,0,0,0,0,0,0,0,0,0,0,0,0,0,0,0,0,0,0,0,0,0,0,0,0,0,0,0,0,0,0,0,0,0,0,0]
["Vote 01","The Presidency",1,"Minister",0,0,0,0,0,0,0,0,0,0,0,0,0,0,0,0,0,0,0,0,0,0,0,0,0,0,0,0,0,0,0,0,0,0,0,0,0,0,0,0,0,0,0]
["Vote 01","The Presidency",1,"Intern",0,0,0,0,0,0,0,0,0,0,0,0,0,0,0,0,0,0,0,0,0,0,0,0,0,0,0,0,0,0,0,0,0,0,0,0,0,0,0,0,0,0,0]
["Vote 01","The Presidency",1,"Other",0,0,0,0,0,0,0,0,0,0,0,0,0,0,0,0,0,0,0,0,0,0,0,0,0,0,0,0,0,0,0,0,0,0,0,0,0,0,0,0,0,0,0]
["Vote 01","The Presidency",2,1,0,0,0,0,0,0,0,0,0,0,0,0,0,0,0,0,0,0,0,0,0,0,0,0,0,0,0,0,0,0,0,0,0,0,0,0,0,0,0,0,0,0,0]
["Vote 01","The Presidency",2,2,0,0,0,0,0,0,0,0,0,0,0,0,0,0,0,0,0,0,0,0,0,0,0,0,0,0,0,0,0,0,0,0,0,0,0,0,0,0,0,0,0,0,0]
["Vote 01","The Presidency",2,3,0,0,0,0,0,0,0,0,0,0,0,0,0,0,0,0,0,0,0,0,0,0,0,0,0,0,0,0,0,0,0,0,0,0,0,0,0,0,0,0,0,0,0]
["Vote 01","The Presidency",2,4,0,0,0,0,0,0,0,0,0,0,0,0,0,0,0,0,0,0,0,0,0,0,0,0,0,0,0,0,0,0,0,0,0,0,0,0,0,0,0,0,0,0,0]
["Vote 01","The Presidency",2,5,0,0,0,0,0,0,0,0,0,0,0,0,0,0,0,0,0,0,0,0,0,0,0,0,0,0,0,0,0,0,0,0,0,0,0,0,0,0,0,0,0,0,0]
["Vote 01","The Presidency",2,6,0,0,0,0,0,0,0,0,0,0,0,0,0,0,0,0,0,0,0,0,0,0,0,0,0,0,0,0,0,0,0,0,0,0,0,0,0,0,0,0,0,0,0]
["Vote 01","The Presidency",2,7,0,0,0,0,0,0,0,0,0,0,0,0,0,0,0,0,0,0,0,0,0,0,0,0,0,0,0,0,0,0,0,0,0,0,0,0,0,0,0,0,0,0,0]
["Vote 01","The Presidency",2,8,0,0,0,0,0,0,0,0,0,0,0,0,0,0,0,0,0,0,0,0,0,0,0,0,0,0,0,0,0,0,0,0,0,0,0,0,0,0,0,0,0,0,0]
["Vote 01","The Presidency",2,9,0,0,0,0,0,0,0,0,0,0,0,0,0,0,0,0,0,0,0,0,0,0,0,0,0,0,0,0,0,0,0,0,0,0,0,0,0,0,0,0,0,0,0]
["Vote 01","The Presidency",2,10,0,0,0,0,0,0,0,0,0,0,0,0,0,0,0,0,0,0,0,0,0,0,0,0,0,0,0,0,0,0,0,0,0,0,0,0,0,0,0,0,0,0,0]
["Vote 01","The Presidency",2,11,0,0,0,0,0,0,0,0,0,0,0,0,0,0,0,0,0,0,0,0,0,0,0,0,0,0,0,0,0,0,0,0,0,0,0,0,0,0,0,0,0,0,0]
["Vote 01","The Presidency",2,12,0,0,0,0,0,0,0,0,0,0,0,0,0,0,0,0,0,0,0,0,0,0,0,0,0,0,0,0,0,0,0,0,0,0,0,0,0,0,0,0,0,0,0]
["Vote 01","The Presidency",2,13,0,0,0,0,0,0,0,0,0,0,0,0,0,0,0,0,0,0,0,0,0,0,0,0,0,0,0,0,0,0,0,0,0,0,0,0,0,0,0,0,0,0,0]
["Vote 01","The Presidency",2,14,0,0,0,0,0,0,0,0,0,0,0,0,0,0,0,0,0,0,0,0,0,0,0,0,0,0,0,0,0,0,0,0,0,0,0,0,0,0,0,0,0,0,0]
["Vote 01","The Presidency",2,15,0,0,0,0,0,0,0,0,0,0,0,0,0,0,0,0,0,0,0,0,0,0,0,0,0,0,0,0,0,0,0,0,0,0,0,0,0,0,0,0,0,0,0]
["Vote 01","The Presidency",2,16,0,0,0,0,0,0,0,0,0,0,0,0,0,0,0,0,0,0,0,0,0,0,0,0,0,0,0,0,0,0,0,0,0,0,0,0,0,0,0,0,0,0,0]
["Vote 01","The Presidency",2,"Deputy Minister",0,0,0,0,0,0,0,0,0,0,0,0,0,0,0,0,0,0,0,0,0,0,0,0,0,0,0,0,0,0,0,0,0,0,0,0,0,0,0,0,0,0,0]
["Vote 01","The Presidency",2,"Minister",0,0,0,0,0,0,0,0,0,0,0,0,0,0,0,0,0,0,0,0,0,0,0,0,0,0,0,0,0,0,0,0,0,0,0,0,0,0,0,0,0,0,0]
["Vote 01","The Presidency",2,"Intern",0,0,0,0,0,0,0,0,0,0,0,0,0,0,0,0,0,0,0,0,0,0,0,0,0,0,0,0,0,0,0,0,0,0,0,0,0,0,0,0,0,0,0]
["Vote 01","The Presidency",2,"Other",0,0,0,0,0,0,0,0,0,0,0,0,0,0,0,0,0,0,0,0,0,0,0,0,0,0,0,0,0,0,0,0,0,0,0,0,0,0,0,0,0,0,0]
["Vote 01","The Presidency",3,1,0,0,0,0,0,0,0,0,0,0,0,0,0,0,0,0,0,0,0,0,0,0,0,0,0,0,0,0,0,0,0,0,0,0,0,0,0,0,0,0,0,0,0]
["Vote 01","The Presidency",3,2,0,0,0,0,0,0,0,0,0,0,0,0,0,0,0,0,0,0,0,0,0,0,0,0,0,0,0,0,0,0,0,0,0,0,0,0,0,0,0,0,0,0,0]
["Vote 01","The Presidency",3,3,0,0,0,0,0,0,0,0,0,0,0,0,0,0,0,0,0,0,0,0,0,0,0,0,0,0,0,0,0,0,0,0,0,0,0,0,0,0,0,0,0,0,0]
["Vote 01","The Presidency",3,4,0,0,0,0,0,0,0,0,0,0,0,0,0,0,0,0,0,0,0,0,0,0,0,0,0,0,0,0,0,0,0,0,0,0,0,0,0,0,0,0,0,0,0]
["Vote 01","The Presidency",3,5,0,0,0,0,0,0,0,0,0,0,0,0,0,0,0,0,0,0,0,0,0,0,0,0,0,0,0,0,0,0,0,0,0,0,0,0,0,0,0,0,0,0,0]
["Vote 01","The Presidency",3,6,0,0,0,0,0,0,0,0,0,0,0,0,0,0,0,0,0,0,0,0,0,0,0,0,0,0,0,0,0,0,0,0,0,0,0,0,0,0,0,0,0,0,0]
["Vote 01","The Presidency",3,7,0,0,0,0,0,0,0,0,0,0,0,0,0,0,0,0,0,0,0,0,0,0,0,0,0,0,0,0,0,0,0,0,0,0,0,0,0,0,0,0,0,0,0]
["Vote 01","The Presidency",3,8,0,0,0,0,0,0,0,0,0,0,0,0,0,0,0,0,0,0,0,0,0,0,0,0,0,0,0,0,0,0,0,0,0,0,0,0,0,0,0,0,0,0,0]
["Vote 01","The Presidency",3,9,0,0,0,0,0,0,0,0,0,0,0,0,0,0,0,0,0,0,0,0,0,0,0,0,0,0,0,0,0,0,0,0,0,0,0,0,0,0,0,0,0,0,0]
["Vote 01","The Presidency",3,10,0,0,0,0,0,0,0,0,0,0,0,0,0,0,0,0,0,0,0,0,0,0,0,0,0,0,0,0,0,0,0,0,0,0,0,0,0,0,0,0,0,0,0]
["Vote 01","The Presidency",3,11,0,0,0,0,0,0,0,0,0,0,0,0,0,0,0,0,0,0,0,0,0,0,0,0,0,0,0,0,0,0,0,0,0,0,0,0,0,0,0,0,0,0,0]
["Vote 01","The Presidency",3,12,0,0,0,0,0,0,0,0,0,0,0,0,0,0,0,0,0,0,0,0,0,0,0,0,0,0,0,0,0,0,0,0,0,0,0,0,0,0,0,0,0,0,0]
["Vote 01","The Presidency",3,13,0,0,0,0,0,0,0,0,0,0,0,0,0,0,0,0,0,0,0,0,0,0,0,0,0,0,0,0,0,0,0,0,0,0,0,0,0,0,0,0,0,0,0]
["Vote 01","The Presidency",3,14,0,0,0,0,0,0,0,0,0,0,0,0,0,0,0,0,0,0,0,0,0,0,0,0,0,0,0,0,0,0,0,0,0,0,0,0,0,0,0,0,0,0,0]
["Vote 01","The Presidency",3,15,0,0,0,0,0,0,0,0,0,0,0,0,0,0,0,0,0,0,0,0,0,0,0,0,0,0,0,0,0,0,0,0,0,0,0,0,0,0,0,0,0,0,0]
["Vote 01","The Presidency",3,16,0,0,0,0,0,0,0,0,0,0,0,0,0,0,0,0,0,0,0,0,0,0,0,0,0,0,0,0,0,0,0,0,0,0,0,0,0,0,0,0,0,0,0]
["Vote 01","The Presidency",3,"Deputy Minister",0,0,0,0,0,0,0,0,0,0,0,0,0,0,0,0,0,0,0,0,0,0,0,0,0,0,0,0,0,0,0,0,0,0,0,0,0,0,0,0,0,0,0]
["Vote 01","The Presidency",3,"Minister",0,0,0,0,0,0,0,0,0,0,0,0,0,0,0,0,0,0,0,0,0,0,0,0,0,0,0,0,0,0,0,0,0,0,0,0,0,0,0,0,0,0,0]
["Vote 01","The Presidency",3,"Intern",0,0,0,0,0,0,0,0,0,0,0,0,0,0,0,0,0,0,0,0,0,0,0,0,0,0,0,0,0,0,0,0,0,0,0,0,0,0,0,0,0,0,0]
["Vote 01","The Presidency",3,"Other",0,0,0,0,0,0,0,0,0,0,0,0,0,0,0,0,0,0,0,0,0,0,0,0,0,0,0,0,0,0,0,0,0,0,0,0,0,0,0,0,0,0,0]
["Vote 01","The Presidency",4,1,0,0,0,0,0,0,0,0,0,0,0,0,0,0,0,0,0,0,0,0,0,0,0,0,0,0,0,0,0,0,0,0,0,0,0,0,0,0,0,0,0,0,0]
["Vote 01","The Presidency",4,2,0,0,0,0,0,0,0,0,0,0,0,0,0,0,0,0,0,0,0,0,0,0,0,0,0,0,0,0,0,0,0,0,0,0,0,0,0,0,0,0,0,0,0]
["Vote 01","The Presidency",4,3,0,0,0,0,0,0,0,0,0,0,0,0,0,0,0,0,0,0,0,0,0,0,0,0,0,0,0,0,0,0,0,0,0,0,0,0,0,0,0,0,0,0,0]
["Vote 01","The Presidency",4,4,0,0,0,0,0,0,0,0,0,0,0,0,0,0,0,0,0,0,0,0,0,0,0,0,0,0,0,0,0,0,0,0,0,0,0,0,0,0,0,0,0,0,0]
["Vote 01","The Presidency",4,5,0,0,0,0,0,0,0,0,0,0,0,0,0,0,0,0,0,0,0,0,0,0,0,0,0,0,0,0,0,0,0,0,0,0,0,0,0,0,0,0,0,0,0]
["Vote 01","The Presidency",4,6,0,0,0,0,0,0,0,0,0,0,0,0,0,0,0,0,0,0,0,0,0,0,0,0,0,0,0,0,0,0,0,0,0,0,0,0,0,0,0,0,0,0,0]
["Vote 01","The Presidency",4,7,0,0,0,0,0,0,0,0,0,0,0,0,0,0,0,0,0,0,0,0,0,0,0,0,0,0,0,0,0,0,0,0,0,0,0,0,0,0,0,0,0,0,0]
["Vote 01","The Presidency",4,8,0,0,0,0,0,0,0,0,0,0,0,0,0,0,0,0,0,0,0,0,0,0,0,0,0,0,0,0,0,0,0,0,0,0,0,0,0,0,0,0,0,0,0]
["Vote 01","The Presidency",4,9,0,0,0,0,0,0,0,0,0,0,0,0,0,0,0,0,0,0,0,0,0,0,0,0,0,0,0,0,0,0,0,0,0,0,0,0,0,0,0,0,0,0,0]
["Vote 01","The Presidency",4,10,0,0,0,0,0,0,0,0,0,0,0,0,0,0,0,0,0,0,0,0,0,0,0,0,0,0,0,0,0,0,0,0,0,0,0,0,0,0,0,0,0,0,0]
["Vote 01","The Presidency",4,11,0,0,0,0,0,0,0,0,0,0,0,0,0,0,0,0,0,0,0,0,0,0,0,0,0,0,0,0,0,0,0,0,0,0,0,0,0,0,0,0,0,0,0]
["Vote 01","The Presidency",4,12,0,0,0,0,0,0,0,0,0,0,0,0,0,0,0,0,0,0,0,0,0,0,0,0,0,0,0,0,0,0,0,0,0,0,0,0,0,0,0,0,0,0,0]
["Vote 01","The Presidency",4,13,0,0,0,0,0,0,0,0,0,0,0,0,0,0,0,0,0,0,0,0,0,0,0,0,0,0,0,0,0,0,0,0,0,0,0,0,0,0,0,0,0,0,0]
["Vote 01","The Presidency",4,14,0,0,0,0,0,0,0,0,0,0,0,0,0,0,0,0,0,0,0,0,0,0,0,0,0,0,0,0,0,0,0,0,0,0,0,0,0,0,0,0,0,0,0]
["Vote 01","The Presidency",4,15,0,0,0,0,0,0,0,0,0,0,0,0,0,0,0,0,0,0,0,0,0,0,0,0,0,0,0,0,0,0,0,0,0,0,0,0,0,0,0,0,0,0,0]
["Vote 01","The Presidency",4,16,0,0,0,0,0,0,0,0,0,0,0,0,0,0,0,0,0,0,0,0,0,0,0,0,0,0,0,0,0,0,0,0,0,0,0,0,0,0,0,0,0,0,0]
["Vote 01","The Presidency",4,"Deputy Minister",0,0,0,0,0,0,0,0,0,0,0,0,0,0,0,0,0,0,0,0,0,0,0,0,0,0,0,0,0,0,0,0,0,0,0,0,0,0,0,0,0,0,0]
["Vote 01","The Presidency",4,"Minister",0,0,0,0,0,0,0,0,0,0,0,0,0,0,0,0,0,0,0,0,0,0,0,0,0,0,0,0,0,0,0,0,0,0,0,0,0,0,0,0,0,0,0]
["Vote 01","The Presidency",4,"Intern",0,0,0,0,0,0,0,0,0,0,0,0,0,0,0,0,0,0,0,0,0,0,0,0,0,0,0,0,0,0,0,0,0,0,0,0,0,0,0,0,0,0,0]
["Vote 01","The Presidency",4,"Other",0,0,0,0,0,0,0,0,0,0,0,0,0,0,0,0,0,0,0,0,0,0,0,0,0,0,0,0,0,0,0,0,0,0,0,0,0,0,0,0,0,0,0]
["Vote 01","The Presidency",5,1,0,0,0,0,0,0,0,0,0,0,0,0,0,0,0,0,0,0,0,0,0,0,0,0,0,0,0,0,0,0,0,0,0,0,0,0,0,0,0,0,0,0,0]
["Vote 01","The Presidency",5,2,0,0,0,0,0,0,0,0,0,0,0,0,0,0,0,0,0,0,0,0,0,0,0,0,0,0,0,0,0,0,0,0,0,0,0,0,0,0,0,0,0,0,0]
["Vote 01","The Presidency",5,3,0,0,0,0,0,0,0,0,0,0,0,0,0,0,0,0,0,0,0,0,0,0,0,0,0,0,0,0,0,0,0,0,0,0,0,0,0,0,0,0,0,0,0]
["Vote 01","The Presidency",5,4,0,0,0,0,0,0,0,0,0,0,0,0,0,0,0,0,0,0,0,0,0,0,0,0,0,0,0,0,0,0,0,0,0,0,0,0,0,0,0,0,0,0,0]
["Vote 01","The Presidency",5,5,0,0,0,0,0,0,0,0,0,0,0,0,0,0,0,0,0,0,0,0,0,0,0,0,0,0,0,0,0,0,0,0,0,0,0,0,0,0,0,0,0,0,0]
["Vote 01","The Presidency",5,6,0,0,0,0,0,0,0,0,0,0,0,0,0,0,0,0,0,0,0,0,0,0,0,0,0,0,0,0,0,0,0,0,0,0,0,0,0,0,0,0,0,0,0]
["Vote 01","The Presidency",5,7,0,0,0,0,0,0,0,0,0,0,0,0,0,0,0,0,0,0,0,0,0,0,0,0,0,0,0,0,0,0,0,0,0,0,0,0,0,0,0,0,0,0,0]
["Vote 01","The Presidency",5,8,0,0,0,0,0,0,0,0,0,0,0,0,0,0,0,0,0,0,0,0,0,0,0,0,0,0,0,0,0,0,0,0,0,0,0,0,0,0,0,0,0,0,0]
["Vote 01","The Presidency",5,9,0,0,0,0,0,0,0,0,0,0,0,0,0,0,0,0,0,0,0,0,0,0,0,0,0,0,0,0,0,0,0,0,0,0,0,0,0,0,0,0,0,0,0]
["Vote 01","The Presidency",5,10,0,0,0,0,0,0,0,0,0,0,0,0,0,0,0,0,0,0,0,0,0,0,0,0,0,0,0,0,0,0,0,0,0,0,0,0,0,0,0,0,0,0,0]
["Vote 01","The Presidency",5,11,0,0,0,0,0,0,0,0,0,0,0,0,0,0,0,0,0,0,0,0,0,0,0,0,0,0,0,0,0,0,0,0,0,0,0,0,0,0,0,0,0,0,0]
["Vote 01","The Presidency",5,12,0,0,0,0,0,0,0,0,0,0,0,0,0,0,0,0,0,0,0,0,0,0,0,0,0,0,0,0,0,0,0,0,0,0,0,0,0,0,0,0,0,0,0]
["Vote 01","The Presidency",5,13,0,0,0,0,0,0,0,0,0,0,0,0,0,0,0,0,0,0,0,0,0,0,0,0,0,0,0,0,0,0,0,0,0,0,0,0,0,0,0,0,0,0,0]
["Vote 01","The Presidency",5,14,0,0,0,0,0,0,0,0,0,0,0,0,0,0,0,0,0,0,0,0,0,0,0,0,0,0,0,0,0,0,0,0,0,0,0,0,0,0,0,0,0,0,0]
["Vote 01","The Presidency",5,15,0,0,0,0,0,0,0,0,0,0,0,0,0,0,0,0,0,0,0,0,0,0,0,0,0,0,0,0,0,0,0,0,0,0,0,0,0,0,0,0,0,0,0]
["Vote 01","The Presidency",5,16,0,0,0,0,0,0,0,0,0,0,0,0,0,0,0,0,0,0,0,0,0,0,0,0,0,0,0,0,0,0,0,0,0,0,0,0,0,0,0,0,0,0,0]
["Vote 01","The Presidency",5,"Deputy Minister",0,0,0,0,0,0,0,0,0,0,0,0,0,0,0,0,0,0,0,0,0,0,0,0,0,0,0,0,0,0,0,0,0,0,0,0,0,0,0,0,0,0,0]
["Vote 01","The Presidency",5,"Minister",0,0,0,0,0,0,0,0,0,0,0,0,0,0,0,0,0,0,0,0,0,0,0,0,0,0,0,0,0,0,0,0,0,0,0,0,0,0,0,0,0,0,0]
["Vote 01","The Presidency",5,"Intern",0,0,0,0,0,0,0,0,0,0,0,0,0,0,0,0,0,0,0,0,0,0,0,0,0,0,0,0,0,0,0,0,0,0,0,0,0,0,0,0,0,0,0]
["Vote 01","The Presidency",5,"Other",0,0,0,0,0,0,0,0,0,0,0,0,0,0,0,0,0,0,0,0,0,0,0,0,0,0,0,0,0,0,0,0,0,0,0,0,0,0,0,0,0,0,0]
["Vote 01","The Presidency",6,1,0,0,0,0,0,0,0,0,0,0,0,0,0,0,0,0,0,0,0,0,0,0,0,0,0,0,0,0,0,0,0,0,0,0,0,0,0,0,0,0,0,0,0]
["Vote 01","The Presidency",6,2,0,0,0,0,0,0,0,0,0,0,0,0,0,0,0,0,0,0,0,0,0,0,0,0,0,0,0,0,0,0,0,0,0,0,0,0,0,0,0,0,0,0,0]
["Vote 01","The Presidency",6,3,0,0,0,0,0,0,0,0,0,0,0,0,0,0,0,0,0,0,0,0,0,0,0,0,0,0,0,0,0,0,0,0,0,0,0,0,0,0,0,0,0,0,0]
["Vote 01","The Presidency",6,4,0,0,0,0,0,0,0,0,0,0,0,0,0,0,0,0,0,0,0,0,0,0,0,0,0,0,0,0,0,0,0,0,0,0,0,0,0,0,0,0,0,0,0]
["Vote 01","The Presidency",6,5,0,0,0,0,0,0,0,0,0,0,0,0,0,0,0,0,0,0,0,0,0,0,0,0,0,0,0,0,0,0,0,0,0,0,0,0,0,0,0,0,0,0,0]
["Vote 01","The Presidency",6,6,0,0,0,0,0,0,0,0,0,0,0,0,0,0,0,0,0,0,0,0,0,0,0,0,0,0,0,0,0,0,0,0,0,0,0,0,0,0,0,0,0,0,0]
["Vote 01","The Presidency",6,7,0,0,0,0,0,0,0,0,0,0,0,0,0,0,0,0,0,0,0,0,0,0,0,0,0,0,0,0,0,0,0,0,0,0,0,0,0,0,0,0,0,0,0]
["Vote 01","The Presidency",6,8,0,0,0,0,0,0,0,0,0,0,0,0,0,0,0,0,0,0,0,0,0,0,0,0,0,0,0,0,0,0,0,0,0,0,0,0,0,0,0,0,0,0,0]
["Vote 01","The Presidency",6,9,0,0,0,0,0,0,0,0,0,0,0,0,0,0,0,0,0,0,0,0,0,0,0,0,0,0,0,0,0,0,0,0,0,0,0,0,0,0,0,0,0,0,0]
["Vote 01","The Presidency",6,10,0,0,0,0,0,0,0,0,0,0,0,0,0,0,0,0,0,0,0,0,0,0,0,0,0,0,0,0,0,0,0,0,0,0,0,0,0,0,0,0,0,0,0]
["Vote 01","The Presidency",6,11,0,0,0,0,0,0,0,0,0,0,0,0,0,0,0,0,0,0,0,0,0,0,0,0,0,0,0,0,0,0,0,0,0,0,0,0,0,0,0,0,0,0,0]
["Vote 01","The Presidency",6,12,0,0,0,0,0,0,0,0,0,0,0,0,0,0,0,0,0,0,0,0,0,0,0,0,0,0,0,0,0,0,0,0,0,0,0,0,0,0,0,0,0,0,0]
["Vote 01","The Presidency",6,13,0,0,0,0,0,0,0,0,0,0,0,0,0,0,0,0,0,0,0,0,0,0,0,0,0,0,0,0,0,0,0,0,0,0,0,0,0,0,0,0,0,0,0]
["Vote 01","The Presidency",6,14,0,0,0,0,0,0,0,0,0,0,0,0,0,0,0,0,0,0,0,0,0,0,0,0,0,0,0,0,0,0,0,0,0,0,0,0,0,0,0,0,0,0,0]
["Vote 01","The Presidency",6,15,0,0,0,0,0,0,0,0,0,0,0,0,0,0,0,0,0,0,0,0,0,0,0,0,0,0,0,0,0,0,0,0,0,0,0,0,0,0,0,0,0,0,0]
["Vote 01","The Presidency",6,16,0,0,0,0,0,0,0,0,0,0,0,0,0,0,0,0,0,0,0,0,0,0,0,0,0,0,0,0,0,0,0,0,0,0,0,0,0,0,0,0,0,0,0]
["Vote 01","The Presidency",6,"Deputy Minister",0,0,0,0,0,0,0,0,0,0,0,0,0,0,0,0,0,0,0,0,0,0,0,0,0,0,0,0,0,0,0,0,0,0,0,0,0,0,0,0,0,0,0]
["Vote 01","The Presidency",6,"Minister",0,0,0,0,0,0,0,0,0,0,0,0,0,0,0,0,0,0,0,0,0,0,0,0,0,0,0,0,0,0,0,0,0,0,0,0,0,0,0,0,0,0,0]
["Vote 01","The Presidency",6,"Intern",0,0,0,0,0,0,0,0,0,0,0,0,0,0,0,0,0,0,0,0,0,0,0,0,0,0,0,0,0,0,0,0,0,0,0,0,0,0,0,0,0,0,0]
["Vote 01","The Presidency",6,"Other",0,0,0,0,0,0,0,0,0,0,0,0,0,0,0,0,0,0,0,0,0,0,0,0,0,0,0,0,0,0,0,0,0,0,0,0,0,0,0,0,0,0,0]
["Vote 01","The Presidency",7,1,0,0,0,0,0,0,0,0,0,0,0,0,0,0,0,0,0,0,0,0,0,0,0,0,0,0,0,0,0,0,0,0,0,0,0,0,0,0,0,0,0,0,0]
["Vote 01","The Presidency",7,2,0,0,0,0,0,0,0,0,0,0,0,0,0,0,0,0,0,0,0,0,0,0,0,0,0,0,0,0,0,0,0,0,0,0,0,0,0,0,0,0,0,0,0]
["Vote 01","The Presidency",7,3,0,0,0,0,0,0,0,0,0,0,0,0,0,0,0,0,0,0,0,0,0,0,0,0,0,0,0,0,0,0,0,0,0,0,0,0,0,0,0,0,0,0,0]
["Vote 01","The Presidency",7,4,0,0,0,0,0,0,0,0,0,0,0,0,0,0,0,0,0,0,0,0,0,0,0,0,0,0,0,0,0,0,0,0,0,0,0,0,0,0,0,0,0,0,0]
["Vote 01","The Presidency",7,5,0,0,0,0,0,0,0,0,0,0,0,0,0,0,0,0,0,0,0,0,0,0,0,0,0,0,0,0,0,0,0,0,0,0,0,0,0,0,0,0,0,0,0]
["Vote 01","The Presidency",7,6,0,0,0,0,0,0,0,0,0,0,0,0,0,0,0,0,0,0,0,0,0,0,0,0,0,0,0,0,0,0,0,0,0,0,0,0,0,0,0,0,0,0,0]
["Vote 01","The Presidency",7,7,0,0,0,0,0,0,0,0,0,0,0,0,0,0,0,0,0,0,0,0,0,0,0,0,0,0,0,0,0,0,0,0,0,0,0,0,0,0,0,0,0,0,0]
["Vote 01","The Presidency",7,8,0,0,0,0,0,0,0,0,0,0,0,0,0,0,0,0,0,0,0,0,0,0,0,0,0,0,0,0,0,0,0,0,0,0,0,0,0,0,0,0,0,0,0]
["Vote 01","The Presidency",7,9,0,0,0,0,0,0,0,0,0,0,0,0,0,0,0,0,0,0,0,0,0,0,0,0,0,0,0,0,0,0,0,0,0,0,0,0,0,0,0,0,0,0,0]
["Vote 01","The Presidency",7,10,0,0,0,0,0,0,0,0,0,0,0,0,0,0,0,0,0,0,0,0,0,0,0,0,0,0,0,0,0,0,0,0,0,0,0,0,0,0,0,0,0,0,0]
["Vote 01","The Presidency",7,11,0,0,0,0,0,0,0,0,0,0,0,0,0,0,0,0,0,0,0,0,0,0,0,0,0,0,0,0,0,0,0,0,0,0,0,0,0,0,0,0,0,0,0]
["Vote 01","The Presidency",7,12,0,0,0,0,0,0,0,0,0,0,0,0,0,0,0,0,0,0,0,0,0,0,0,0,0,0,0,0,0,0,0,0,0,0,0,0,0,0,0,0,0,0,0]
["Vote 01","The Presidency",7,13,0,0,0,0,0,0,0,0,0,0,0,0,0,0,0,0,0,0,0,0,0,0,0,0,0,0,0,0,0,0,0,0,0,0,0,0,0,0,0,0,0,0,0]
["Vote 01","The Presidency",7,14,0,0,0,0,0,0,0,0,0,0,0,0,0,0,0,0,0,0,0,0,0,0,0,0,0,0,0,0,0,0,0,0,0,0,0,0,0,0,0,0,0,0,0]
["Vote 01","The Presidency",7,15,0,0,0,0,0,0,0,0,0,0,0,0,0,0,0,0,0,0,0,0,0,0,0,0,0,0,0,0,0,0,0,0,0,0,0,0,0,0,0,0,0,0,0]
["Vote 01","The Presidency",7,16,0,0,0,0,0,0,0,0,0,0,0,0,0,0,0,0,0,0,0,0,0,0,0,0,0,0,0,0,0,0,0,0,0,0,0,0,0,0,0,0,0,0,0]
["Vote 01","The Presidency",7,"Deputy Minister",0,0,0,0,0,0,0,0,0,0,0,0,0,0,0,0,0,0,0,0,0,0,0,0,0,0,0,0,0,0,0,0,0,0,0,0,0,0,0,0,0,0,0]
["Vote 01","The Presidency",7,"Minister",0,0,0,0,0,0,0,0,0,0,0,0,0,0,0,0,0,0,0,0,0,0,0,0,0,0,0,0,0,0,0,0,0,0,0,0,0,0,0,0,0,0,0]
["Vote 01","The Presidency",7,"Intern",0,0,0,0,0,0,0,0,0,0,0,0,0,0,0,0,0,0,0,0,0,0,0,0,0,0,0,0,0,0,0,0,0,0,0,0,0,0,0,0,0,0,0]
["Vote 01","The Presidency",7,"Other",0,0,0,0,0,0,0,0,0,0,0,0,0,0,0,0,0,0,0,0,0,0,0,0,0,0,0,0,0,0,0,0,0,0,0,0,0,0,0,0,0,0,0]
["Vote 01","The Presidency",8,1,0,0,0,0,0,0,0,0,0,0,0,0,0,0,0,0,0,0,0,0,0,0,0,0,0,0,0,0,0,0,0,0,0,0,0,0,0,0,0,0,0,0,0]
["Vote 01","The Presidency",8,2,0,0,0,0,0,0,0,0,0,0,0,0,0,0,0,0,0,0,0,0,0,0,0,0,0,0,0,0,0,0,0,0,0,0,0,0,0,0,0,0,0,0,0]
["Vote 01","The Presidency",8,3,0,0,0,0,0,0,0,0,0,0,0,0,0,0,0,0,0,0,0,0,0,0,0,0,0,0,0,0,0,0,0,0,0,0,0,0,0,0,0,0,0,0,0]
["Vote 01","The Presidency",8,4,0,0,0,0,0,0,0,0,0,0,0,0,0,0,0,0,0,0,0,0,0,0,0,0,0,0,0,0,0,0,0,0,0,0,0,0,0,0,0,0,0,0,0]
["Vote 01","The Presidency",8,5,0,0,0,0,0,0,0,0,0,0,0,0,0,0,0,0,0,0,0,0,0,0,0,0,0,0,0,0,0,0,0,0,0,0,0,0,0,0,0,0,0,0,0]
["Vote 01","The Presidency",8,6,0,0,0,0,0,0,0,0,0,0,0,0,0,0,0,0,0,0,0,0,0,0,0,0,0,0,0,0,0,0,0,0,0,0,0,0,0,0,0,0,0,0,0]
["Vote 01","The Presidency",8,7,0,0,0,0,0,0,0,0,0,0,0,0,0,0,0,0,0,0,0,0,0,0,0,0,0,0,0,0,0,0,0,0,0,0,0,0,0,0,0,0,0,0,0]
["Vote 01","The Presidency",8,8,0,0,0,0,0,0,0,0,0,0,0,0,0,0,0,0,0,0,0,0,0,0,0,0,0,0,0,0,0,0,0,0,0,0,0,0,0,0,0,0,0,0,0]
["Vote 01","The Presidency",8,9,0,0,0,0,0,0,0,0,0,0,0,0,0,0,0,0,0,0,0,0,0,0,0,0,0,0,0,0,0,0,0,0,0,0,0,0,0,0,0,0,0,0,0]
["Vote 01","The Presidency",8,10,0,0,0,0,0,0,0,0,0,0,0,0,0,0,0,0,0,0,0,0,0,0,0,0,0,0,0,0,0,0,0,0,0,0,0,0,0,0,0,0,0,0,0]
["Vote 01","The Presidency",8,11,0,0,0,0,0,0,0,0,0,0,0,0,0,0,0,0,0,0,0,0,0,0,0,0,0,0,0,0,0,0,0,0,0,0,0,0,0,0,0,0,0,0,0]
["Vote 01","The Presidency",8,12,0,0,0,0,0,0,0,0,0,0,0,0,0,0,0,0,0,0,0,0,0,0,0,0,0,0,0,0,0,0,0,0,0,0,0,0,0,0,0,0,0,0,0]
["Vote 01","The Presidency",8,13,0,0,0,0,0,0,0,0,0,0,0,0,0,0,0,0,0,0,0,0,0,0,0,0,0,0,0,0,0,0,0,0,0,0,0,0,0,0,0,0,0,0,0]
["Vote 01","The Presidency",8,14,0,0,0,0,0,0,0,0,0,0,0,0,0,0,0,0,0,0,0,0,0,0,0,0,0,0,0,0,0,0,0,0,0,0,0,0,0,0,0,0,0,0,0]
["Vote 01","The Presidency",8,15,0,0,0,0,0,0,0,0,0,0,0,0,0,0,0,0,0,0,0,0,0,0,0,0,0,0,0,0,0,0,0,0,0,0,0,0,0,0,0,0,0,0,0]
["Vote 01","The Presidency",8,16,0,0,0,0,0,0,0,0,0,0,0,0,0,0,0,0,0,0,0,0,0,0,0,0,0,0,0,0,0,0,0,0,0,0,0,0,0,0,0,0,0,0,0]
["Vote 01","The Presidency",8,"Deputy Minister",0,0,0,0,0,0,0,0,0,0,0,0,0,0,0,0,0,0,0,0,0,0,0,0,0,0,0,0,0,0,0,0,0,0,0,0,0,0,0,0,0,0,0]
["Vote 01","The Presidency",8,"Minister",0,0,0,0,0,0,0,0,0,0,0,0,0,0,0,0,0,0,0,0,0,0,0,0,0,0,0,0,0,0,0,0,0,0,0,0,0,0,0,0,0,0,0]
["Vote 01","The Presidency",8,"Intern",0,0,0,0,0,0,0,0,0,0,0,0,0,0,0,0,0,0,0,0,0,0,0,0,0,0,0,0,0,0,0,0,0,0,0,0,0,0,0,0,0,0,0]
["Vote 01","The Presidency",8,"Other",0,0,0,0,0,0,0,0,0,0,0,0,0,0,0,0,0,0,0,0,0,0,0,0,0,0,0,0,0,0,0,0,0,0,0,0,0,0,0,0,0,0,0]
["Vote 01","The Presidency",9,1,0,0,0,0,0,0,0,0,0,0,0,0,0,0,0,0,0,0,0,0,0,0,0,0,0,0,0,0,0,0,0,0,0,0,0,0,0,0,0,0,0,0,0]
["Vote 01","The Presidency",9,2,0,0,0,0,0,0,0,0,0,0,0,0,0,0,0,0,0,0,0,0,0,0,0,0,0,0,0,0,0,0,0,0,0,0,0,0,0,0,0,0,0,0,0]
["Vote 01","The Presidency",9,3,0,0,0,0,0,0,0,0,0,0,0,0,0,0,0,0,0,0,0,0,0,0,0,0,0,0,0,0,0,0,0,0,0,0,0,0,0,0,0,0,0,0,0]
["Vote 01","The Presidency",9,4,0,0,0,0,0,0,0,0,0,0,0,0,0,0,0,0,0,0,0,0,0,0,0,0,0,0,0,0,0,0,0,0,0,0,0,0,0,0,0,0,0,0,0]
["Vote 01","The Presidency",9,5,0,0,0,0,0,0,0,0,0,0,0,0,0,0,0,0,0,0,0,0,0,0,0,0,0,0,0,0,0,0,0,0,0,0,0,0,0,0,0,0,0,0,0]
["Vote 01","The Presidency",9,6,0,0,0,0,0,0,0,0,0,0,0,0,0,0,0,0,0,0,0,0,0,0,0,0,0,0,0,0,0,0,0,0,0,0,0,0,0,0,0,0,0,0,0]
["Vote 01","The Presidency",9,7,0,0,0,0,0,0,0,0,0,0,0,0,0,0,0,0,0,0,0,0,0,0,0,0,0,0,0,0,0,0,0,0,0,0,0,0,0,0,0,0,0,0,0]
["Vote 01","The Presidency",9,8,0,0,0,0,0,0,0,0,0,0,0,0,0,0,0,0,0,0,0,0,0,0,0,0,0,0,0,0,0,0,0,0,0,0,0,0,0,0,0,0,0,0,0]
["Vote 01","The Presidency",9,9,0,0,0,0,0,0,0,0,0,0,0,0,0,0,0,0,0,0,0,0,0,0,0,0,0,0,0,0,0,0,0,0,0,0,0,0,0,0,0,0,0,0,0]
["Vote 01","The Presidency",9,10,0,0,0,0,0,0,0,0,0,0,0,0,0,0,0,0,0,0,0,0,0,0,0,0,0,0,0,0,0,0,0,0,0,0,0,0,0,0,0,0,0,0,0]
["Vote 01","The Presidency",9,11,0,0,0,0,0,0,0,0,0,0,0,0,0,0,0,0,0,0,0,0,0,0,0,0,0,0,0,0,0,0,0,0,0,0,0,0,0,0,0,0,0,0,0]
["Vote 01","The Presidency",9,12,0,0,0,0,0,0,0,0,0,0,0,0,0,0,0,0,0,0,0,0,0,0,0,0,0,0,0,0,0,0,0,0,0,0,0,0,0,0,0,0,0,0,0]
["Vote 01","The Presidency",9,13,0,0,0,0,0,0,0,0,0,0,0,0,0,0,0,0,0,0,0,0,0,0,0,0,0,0,0,0,0,0,0,0,0,0,0,0,0,0,0,0,0,0,0]
["Vote 01","The Presidency",9,14,0,0,0,0,0,0,0,0,0,0,0,0,0,0,0,0,0,0,0,0,0,0,0,0,0,0,0,0,0,0,0,0,0,0,0,0,0,0,0,0,0,0,0]
["Vote 01","The Presidency",9,15,0,0,0,0,0,0,0,0,0,0,0,0,0,0,0,0,0,0,0,0,0,0,0,0,0,0,0,0,0,0,0,0,0,0,0,0,0,0,0,0,0,0,0]
["Vote 01","The Presidency",9,16,0,0,0,0,0,0,0,0,0,0,0,0,0,0,0,0,0,0,0,0,0,0,0,0,0,0,0,0,0,0,0,0,0,0,0,0,0,0,0,0,0,0,0]
["Vote 01","The Presidency",9,"Deputy Minister",0,0,0,0,0,0,0,0,0,0,0,0,0,0,0,0,0,0,0,0,0,0,0,0,0,0,0,0,0,0,0,0,0,0,0,0,0,0,0,0,0,0,0]
["Vote 01","The Presidency",9,"Minister",0,0,0,0,0,0,0,0,0,0,0,0,0,0,0,0,0,0,0,0,0,0,0,0,0,0,0,0,0,0,0,0,0,0,0,0,0,0,0,0,0,0,0]
["Vote 01","The Presidency",9,"Intern",0,0,0,0,0,0,0,0,0,0,0,0,0,0,0,0,0,0,0,0,0,0,0,0,0,0,0,0,0,0,0,0,0,0,0,0,0,0,0,0,0,0,0]
["Vote 01","The Presidency",9,"Other",0,0,0,0,0,0,0,0,0,0,0,0,0,0,0,0,0,0,0,0,0,0,0,0,0,0,0,0,0,0,0,0,0,0,0,0,0,0,0,0,0,0,0]
["Vote 01","The Presidency",10,1,0,0,0,0,0,0,0,0,0,0,0,0,0,0,0,0,0,0,0,0,0,0,0,0,0,0,0,0,0,0,0,0,0,0,0,0,0,0,0,0,0,0,0]
["Vote 01","The Presidency",10,2,0,0,0,0,0,0,0,0,0,0,0,0,0,0,0,0,0,0,0,0,0,0,0,0,0,0,0,0,0,0,0,0,0,0,0,0,0,0,0,0,0,0,0]
["Vote 01","The Presidency",10,3,0,0,0,0,0,0,0,0,0,0,0,0,0,0,0,0,0,0,0,0,0,0,0,0,0,0,0,0,0,0,0,0,0,0,0,0,0,0,0,0,0,0,0]
["Vote 01","The Presidency",10,4,0,0,0,0,0,0,0,0,0,0,0,0,0,0,0,0,0,0,0,0,0,0,0,0,0,0,0,0,0,0,0,0,0,0,0,0,0,0,0,0,0,0,0]
["Vote 01","The Presidency",10,5,0,0,0,0,0,0,0,0,0,0,0,0,0,0,0,0,0,0,0,0,0,0,0,0,0,0,0,0,0,0,0,0,0,0,0,0,0,0,0,0,0,0,0]
["Vote 01","The Presidency",10,6,0,0,0,0,0,0,0,0,0,0,0,0,0,0,0,0,0,0,0,0,0,0,0,0,0,0,0,0,0,0,0,0,0,0,0,0,0,0,0,0,0,0,0]
["Vote 01","The Presidency",10,7,0,0,0,0,0,0,0,0,0,0,0,0,0,0,0,0,0,0,0,0,0,0,0,0,0,0,0,0,0,0,0,0,0,0,0,0,0,0,0,0,0,0,0]
["Vote 01","The Presidency",10,8,0,0,0,0,0,0,0,0,0,0,0,0,0,0,0,0,0,0,0,0,0,0,0,0,0,0,0,0,0,0,0,0,0,0,0,0,0,0,0,0,0,0,0]
["Vote 01","The Presidency",10,9,0,0,0,0,0,0,0,0,0,0,0,0,0,0,0,0,0,0,0,0,0,0,0,0,0,0,0,0,0,0,0,0,0,0,0,0,0,0,0,0,0,0,0]
["Vote 01","The Presidency",10,10,0,0,0,0,0,0,0,0,0,0,0,0,0,0,0,0,0,0,0,0,0,0,0,0,0,0,0,0,0,0,0,0,0,0,0,0,0,0,0,0,0,0,0]
["Vote 01","The Presidency",10,11,0,0,0,0,0,0,0,0,0,0,0,0,0,0,0,0,0,0,0,0,0,0,0,0,0,0,0,0,0,0,0,0,0,0,0,0,0,0,0,0,0,0,0]
["Vote 01","The Presidency",10,12,0,0,0,0,0,0,0,0,0,0,0,0,0,0,0,0,0,0,0,0,0,0,0,0,0,0,0,0,0,0,0,0,0,0,0,0,0,0,0,0,0,0,0]
["Vote 01","The Presidency",10,13,0,0,0,0,0,0,0,0,0,0,0,0,0,0,0,0,0,0,0,0,0,0,0,0,0,0,0,0,0,0,0,0,0,0,0,0,0,0,0,0,0,0,0]
["Vote 01","The Presidency",10,14,0,0,0,0,0,0,0,0,0,0,0,0,0,0,0,0,0,0,0,0,0,0,0,0,0,0,0,0,0,0,0,0,0,0,0,0,0,0,0,0,0,0,0]
["Vote 01","The Presidency",10,15,0,0,0,0,0,0,0,0,0,0,0,0,0,0,0,0,0,0,0,0,0,0,0,0,0,0,0,0,0,0,0,0,0,0,0,0,0,0,0,0,0,0,0]
["Vote 01","The Presidency",10,16,0,0,0,0,0,0,0,0,0,0,0,0,0,0,0,0,0,0,0,0,0,0,0,0,0,0,0,0,0,0,0,0,0,0,0,0,0,0,0,0,0,0,0]
["Vote 01","The Presidency",10,"Deputy Minister",0,0,0,0,0,0,0,0,0,0,0,0,0,0,0,0,0,0,0,0,0,0,0,0,0,0,0,0,0,0,0,0,0,0,0,0,0,0,0,0,0,0,0]
["Vote 01","The Presidency",10,"Minister",0,0,0,0,0,0,0,0,0,0,0,0,0,0,0,0,0,0,0,0,0,0,0,0,0,0,0,0,0,0,0,0,0,0,0,0,0,0,0,0,0,0,0]
["Vote 01","The Presidency",10,"Intern",0,0,0,0,0,0,0,0,0,0,0,0,0,0,0,0,0,0,0,0,0,0,0,0,0,0,0,0,0,0,0,0,0,0,0,0,0,0,0,0,0,0,0]
["Vote 01","The Presidency",10,"Other",0,0,0,0,0,0,0,0,0,0,0,0,0,0,0,0,0,0,0,0,0,0,0,0,0,0,0,0,0,0,0,0,0,0,0,0,0,0,0,0,0,0,0]
["Vote 01","The Presidency",11,1,0,0,0,0,0,0,0,0,0,0,0,0,0,0,0,0,0,0,0,0,0,0,0,0,0,0,0,0,0,0,0,0,0,0,0,0,0,0,0,0,0,0,0]
["Vote 01","The Presidency",11,2,0,0,0,0,0,0,0,0,0,0,0,0,0,0,0,0,0,0,0,0,0,0,0,0,0,0,0,0,0,0,0,0,0,0,0,0,0,0,0,0,0,0,0]
["Vote 01","The Presidency",11,3,0,0,0,0,0,0,0,0,0,0,0,0,0,0,0,0,0,0,0,0,0,0,0,0,0,0,0,0,0,0,0,0,0,0,0,0,0,0,0,0,0,0,0]
["Vote 01","The Presidency",11,4,0,0,0,0,0,0,0,0,0,0,0,0,0,0,0,0,0,0,0,0,0,0,0,0,0,0,0,0,0,0,0,0,0,0,0,0,0,0,0,0,0,0,0]
["Vote 01","The Presidency",11,5,0,0,0,0,0,0,0,0,0,0,0,0,0,0,0,0,0,0,0,0,0,0,0,0,0,0,0,0,0,0,0,0,0,0,0,0,0,0,0,0,0,0,0]
["Vote 01","The Presidency",11,6,0,0,0,0,0,0,0,0,0,0,0,0,0,0,0,0,0,0,0,0,0,0,0,0,0,0,0,0,0,0,0,0,0,0,0,0,0,0,0,0,0,0,0]
["Vote 01","The Presidency",11,7,0,0,0,0,0,0,0,0,0,0,0,0,0,0,0,0,0,0,0,0,0,0,0,0,0,0,0,0,0,0,0,0,0,0,0,0,0,0,0,0,0,0,0]
["Vote 01","The Presidency",11,8,0,0,0,0,0,0,0,0,0,0,0,0,0,0,0,0,0,0,0,0,0,0,0,0,0,0,0,0,0,0,0,0,0,0,0,0,0,0,0,0,0,0,0]
["Vote 01","The Presidency",11,9,0,0,0,0,0,0,0,0,0,0,0,0,0,0,0,0,0,0,0,0,0,0,0,0,0,0,0,0,0,0,0,0,0,0,0,0,0,0,0,0,0,0,0]
["Vote 01","The Presidency",11,10,0,0,0,0,0,0,0,0,0,0,0,0,0,0,0,0,0,0,0,0,0,0,0,0,0,0,0,0,0,0,0,0,0,0,0,0,0,0,0,0,0,0,0]
["Vote 01","The Presidency",11,11,0,0,0,0,0,0,0,0,0,0,0,0,0,0,0,0,0,0,0,0,0,0,0,0,0,0,0,0,0,0,0,0,0,0,0,0,0,0,0,0,0,0,0]
["Vote 01","The Presidency",11,12,0,0,0,0,0,0,0,0,0,0,0,0,0,0,0,0,0,0,0,0,0,0,0,0,0,0,0,0,0,0,0,0,0,0,0,0,0,0,0,0,0,0,0]
["Vote 01","The Presidency",11,13,0,0,0,0,0,0,0,0,0,0,0,0,0,0,0,0,0,0,0,0,0,0,0,0,0,0,0,0,0,0,0,0,0,0,0,0,0,0,0,0,0,0,0]
["Vote 01","The Presidency",11,14,0,0,0,0,0,0,0,0,0,0,0,0,0,0,0,0,0,0,0,0,0,0,0,0,0,0,0,0,0,0,0,0,0,0,0,0,0,0,0,0,0,0,0]
["Vote 01","The Presidency",11,15,0,0,0,0,0,0,0,0,0,0,0,0,0,0,0,0,0,0,0,0,0,0,0,0,0,0,0,0,0,0,0,0,0,0,0,0,0,0,0,0,0,0,0]
["Vote 01","The Presidency",11,16,0,0,0,0,0,0,0,0,0,0,0,0,0,0,0,0,0,0,0,0,0,0,0,0,0,0,0,0,0,0,0,0,0,0,0,0,0,0,0,0,0,0,0]
["Vote 01","The Presidency",11,"Deputy Minister",0,0,0,0,0,0,0,0,0,0,0,0,0,0,0,0,0,0,0,0,0,0,0,0,0,0,0,0,0,0,0,0,0,0,0,0,0,0,0,0,0,0,0]
["Vote 01","The Presidency",11,"Minister",0,0,0,0,0,0,0,0,0,0,0,0,0,0,0,0,0,0,0,0,0,0,0,0,0,0,0,0,0,0,0,0,0,0,0,0,0,0,0,0,0,0,0]
["Vote 01","The Presidency",11,"Intern",0,0,0,0,0,0,0,0,0,0,0,0,0,0,0,0,0,0,0,0,0,0,0,0,0,0,0,0,0,0,0,0,0,0,0,0,0,0,0,0,0,0,0]
["Vote 01","The Presidency",11,"Other",0,0,0,0,0,0,0,0,0,0,0,0,0,0,0,0,0,0,0,0,0,0,0,0,0,0,0,0,0,0,0,0,0,0,0,0,0,0,0,0,0,0,0]
["Vote 01","The Presidency",12,1,0,0,0,0,0,0,0,0,0,0,0,0,0,0,0,0,0,0,0,0,0,0,0,0,0,0,0,0,0,0,0,0,0,0,0,0,0,0,0,0,0,0,0]
["Vote 01","The Presidency",12,2,0,0,0,0,0,0,0,0,0,0,0,0,0,0,0,0,0,0,0,0,0,0,0,0,0,0,0,0,0,0,0,0,0,0,0,0,0,0,0,0,0,0,0]
["Vote 01","The Presidency",12,3,0,0,0,0,0,0,0,0,0,0,0,0,0,0,0,0,0,0,0,0,0,0,0,0,0,0,0,0,0,0,0,0,0,0,0,0,0,0,0,0,0,0,0]
["Vote 01","The Presidency",12,4,0,0,0,0,0,0,0,0,0,0,0,0,0,0,0,0,0,0,0,0,0,0,0,0,0,0,0,0,0,0,0,0,0,0,0,0,0,0,0,0,0,0,0]
["Vote 01","The Presidency",12,5,0,0,0,0,0,0,0,0,0,0,0,0,0,0,0,0,0,0,0,0,0,0,0,0,0,0,0,0,0,0,0,0,0,0,0,0,0,0,0,0,0,0,0]
["Vote 01","The Presidency",12,6,0,0,0,0,0,0,0,0,0,0,0,0,0,0,0,0,0,0,0,0,0,0,0,0,0,0,0,0,0,0,0,0,0,0,0,0,0,0,0,0,0,0,0]
["Vote 01","The Presidency",12,7,0,0,0,0,0,0,0,0,0,0,0,0,0,0,0,0,0,0,0,0,0,0,0,0,0,0,0,0,0,0,0,0,0,0,0,0,0,0,0,0,0,0,0]
["Vote 01","The Presidency",12,8,0,0,0,0,0,0,0,0,0,0,0,0,0,0,0,0,0,0,0,0,0,0,0,0,0,0,0,0,0,0,0,0,0,0,0,0,0,0,0,0,0,0,0]
["Vote 01","The Presidency",12,9,0,0,0,0,0,0,0,0,0,0,0,0,0,0,0,0,0,0,0,0,0,0,0,0,0,0,0,0,0,0,0,0,0,0,0,0,0,0,0,0,0,0,0]
["Vote 01","The Presidency",12,10,0,0,0,0,0,0,0,0,0,0,0,0,0,0,0,0,0,0,0,0,0,0,0,0,0,0,0,0,0,0,0,0,0,0,0,0,0,0,0,0,0,0,0]
["Vote 01","The Presidency",12,11,0,0,0,0,0,0,0,0,0,0,0,0,0,0,0,0,0,0,0,0,0,0,0,0,0,0,0,0,0,0,0,0,0,0,0,0,0,0,0,0,0,0,0]
["Vote 01","The Presidency",12,12,0,0,0,0,0,0,0,0,0,0,0,0,0,0,0,0,0,0,0,0,0,0,0,0,0,0,0,0,0,0,0,0,0,0,0,0,0,0,0,0,0,0,0]
["Vote 01","The Presidency",12,13,0,0,0,0,0,0,0,0,0,0,0,0,0,0,0,0,0,0,0,0,0,0,0,0,0,0,0,0,0,0,0,0,0,0,0,0,0,0,0,0,0,0,0]
["Vote 01","The Presidency",12,14,0,0,0,0,0,0,0,0,0,0,0,0,0,0,0,0,0,0,0,0,0,0,0,0,0,0,0,0,0,0,0,0,0,0,0,0,0,0,0,0,0,0,0]
["Vote 01","The Presidency",12,15,0,0,0,0,0,0,0,0,0,0,0,0,0,0,0,0,0,0,0,0,0,0,0,0,0,0,0,0,0,0,0,0,0,0,0,0,0,0,0,0,0,0,0]
["Vote 01","The Presidency",12,16,0,0,0,0,0,0,0,0,0,0,0,0,0,0,0,0,0,0,0,0,0,0,0,0,0,0,0,0,0,0,0,0,0,0,0,0,0,0,0,0,0,0,0]
["Vote 01","The Presidency",12,"Deputy Minister",0,0,0,0,0,0,0,0,0,0,0,0,0,0,0,0,0,0,0,0,0,0,0,0,0,0,0,0,0,0,0,0,0,0,0,0,0,0,0,0,0,0,0]
["Vote 01","The Presidency",12,"Minister",0,0,0,0,0,0,0,0,0,0,0,0,0,0,0,0,0,0,0,0,0,0,0,0,0,0,0,0,0,0,0,0,0,0,0,0,0,0,0,0,0,0,0]
["Vote 01","The Presidency",12,"Intern",0,0,0,0,0,0,0,0,0,0,0,0,0,0,0,0,0,0,0,0,0,0,0,0,0,0,0,0,0,0,0,0,0,0,0,0,0,0,0,0,0,0,0]
["Vote 01","The Presidency",12,"Other",0,0,0,0,0,0,0,0,0,0,0,0,0,0,0,0,0,0,0,0,0,0,0,0,0,0,0,0,0,0,0,0,0,0,0,0,0,0,0,0,0,0,0]
["Vote 01","The Presidency",13,1,0,0,0,0,0,0,0,0,0,0,0,0,0,0,0,0,0,0,0,0,0,0,0,0,0,0,0,0,0,0,0,0,0,0,0,0,0,0,0,0,0,0,0]
["Vote 01","The Presidency",13,2,0,0,0,0,0,0,0,0,0,0,0,0,0,0,0,0,0,0,0,0,0,0,0,0,0,0,0,0,0,0,0,0,0,0,0,0,0,0,0,0,0,0,0]
["Vote 01","The Presidency",13,3,0,0,0,0,0,0,0,0,0,0,0,0,0,0,0,0,0,0,0,0,0,0,0,0,0,0,0,0,0,0,0,0,0,0,0,0,0,0,0,0,0,0,0]
["Vote 01","The Presidency",13,4,0,0,0,0,0,0,0,0,0,0,0,0,0,0,0,0,0,0,0,0,0,0,0,0,0,0,0,0,0,0,0,0,0,0,0,0,0,0,0,0,0,0,0]
["Vote 01","The Presidency",13,5,0,0,0,0,0,0,0,0,0,0,0,0,0,0,0,0,0,0,0,0,0,0,0,0,0,0,0,0,0,0,0,0,0,0,0,0,0,0,0,0,0,0,0]
["Vote 01","The Presidency",13,6,0,0,0,0,0,0,0,0,0,0,0,0,0,0,0,0,0,0,0,0,0,0,0,0,0,0,0,0,0,0,0,0,0,0,0,0,0,0,0,0,0,0,0]
["Vote 01","The Presidency",13,7,0,0,0,0,0,0,0,0,0,0,0,0,0,0,0,0,0,0,0,0,0,0,0,0,0,0,0,0,0,0,0,0,0,0,0,0,0,0,0,0,0,0,0]
["Vote 01","The Presidency",13,8,0,0,0,0,0,0,0,0,0,0,0,0,0,0,0,0,0,0,0,0,0,0,0,0,0,0,0,0,0,0,0,0,0,0,0,0,0,0,0,0,0,0,0]
["Vote 01","The Presidency",13,9,0,0,0,0,0,0,0,0,0,0,0,0,0,0,0,0,0,0,0,0,0,0,0,0,0,0,0,0,0,0,0,0,0,0,0,0,0,0,0,0,0,0,0]
["Vote 01","The Presidency",13,10,0,0,0,0,0,0,0,0,0,0,0,0,0,0,0,0,0,0,0,0,0,0,0,0,0,0,0,0,0,0,0,0,0,0,0,0,0,0,0,0,0,0,0]
["Vote 01","The Presidency",13,11,0,0,0,0,0,0,0,0,0,0,0,0,0,0,0,0,0,0,0,0,0,0,0,0,0,0,0,0,0,0,0,0,0,0,0,0,0,0,0,0,0,0,0]
["Vote 01","The Presidency",13,12,0,0,0,0,0,0,0,0,0,0,0,0,0,0,0,0,0,0,0,0,0,0,0,0,0,0,0,0,0,0,0,0,0,0,0,0,0,0,0,0,0,0,0]
["Vote 01","The Presidency",13,13,0,0,0,0,0,0,0,0,0,0,0,0,0,0,0,0,0,0,0,0,0,0,0,0,0,0,0,0,0,0,0,0,0,0,0,0,0,0,0,0,0,0,0]
["Vote 01","The Presidency",13,14,0,0,0,0,0,0,0,0,0,0,0,0,0,0,0,0,0,0,0,0,0,0,0,0,0,0,0,0,0,0,0,0,0,0,0,0,0,0,0,0,0,0,0]
["Vote 01","The Presidency",13,15,0,0,0,0,0,0,0,0,0,0,0,0,0,0,0,0,0,0,0,0,0,0,0,0,0,0,0,0,0,0,0,0,0,0,0,0,0,0,0,0,0,0,0]
["Vote 01","The Presidency",13,16,0,0,0,0,0,0,0,0,0,0,0,0,0,0,0,0,0,0,0,0,0,0,0,0,0,0,0,0,0,0,0,0,0,0,0,0,0,0,0,0,0,0,0]
["Vote 01","The Presidency",13,"Deputy Minister",0,0,0,0,0,0,0,0,0,0,0,0,0,0,0,0,0,0,0,0,0,0,0,0,0,0,0,0,0,0,0,0,0,0,0,0,0,0,0,0,0,0,0]
["Vote 01","The Presidency",13,"Minister",0,0,0,0,0,0,0,0,0,0,0,0,0,0,0,0,0,0,0,0,0,0,0,0,0,0,0,0,0,0,0,0,0,0,0,0,0,0,0,0,0,0,0]
["Vote 01","The Presidency",13,"Intern",0,0,0,0,0,0,0,0,0,0,0,0,0,0,0,0,0,0,0,0,0,0,0,0,0,0,0,0,0,0,0,0,0,0,0,0,0,0,0,0,0,0,0]
["Vote 01","The Presidency",13,"Other",0,0,0,0,0,0,0,0,0,0,0,0,0,0,0,0,0,0,0,0,0,0,0,0,0,0,0,0,0,0,0,0,0,0,0,0,0,0,0,0,0,0,0]
["Vote 01","The Presidency",14,1,0,0,0,0,0,0,0,0,0,0,0,0,0,0,0,0,0,0,0,0,0,0,0,0,0,0,0,0,0,0,0,0,0,0,0,0,0,0,0,0,0,0,0]
["Vote 01","The Presidency",14,2,0,0,0,0,0,0,0,0,0,0,0,0,0,0,0,0,0,0,0,0,0,0,0,0,0,0,0,0,0,0,0,0,0,0,0,0,0,0,0,0,0,0,0]
["Vote 01","The Presidency",14,3,0,0,0,0,0,0,0,0,0,0,0,0,0,0,0,0,0,0,0,0,0,0,0,0,0,0,0,0,0,0,0,0,0,0,0,0,0,0,0,0,0,0,0]
["Vote 01","The Presidency",14,4,0,0,0,0,0,0,0,0,0,0,0,0,0,0,0,0,0,0,0,0,0,0,0,0,0,0,0,0,0,0,0,0,0,0,0,0,0,0,0,0,0,0,0]
["Vote 01","The Presidency",14,5,0,0,0,0,0,0,0,0,0,0,0,0,0,0,0,0,0,0,0,0,0,0,0,0,0,0,0,0,0,0,0,0,0,0,0,0,0,0,0,0,0,0,0]
["Vote 01","The Presidency",14,6,0,0,0,0,0,0,0,0,0,0,0,0,0,0,0,0,0,0,0,0,0,0,0,0,0,0,0,0,0,0,0,0,0,0,0,0,0,0,0,0,0,0,0]
["Vote 01","The Presidency",14,7,0,0,0,0,0,0,0,0,0,0,0,0,0,0,0,0,0,0,0,0,0,0,0,0,0,0,0,0,0,0,0,0,0,0,0,0,0,0,0,0,0,0,0]
["Vote 01","The Presidency",14,8,0,0,0,0,0,0,0,0,0,0,0,0,0,0,0,0,0,0,0,0,0,0,0,0,0,0,0,0,0,0,0,0,0,0,0,0,0,0,0,0,0,0,0]
["Vote 01","The Presidency",14,9,0,0,0,0,0,0,0,0,0,0,0,0,0,0,0,0,0,0,0,0,0,0,0,0,0,0,0,0,0,0,0,0,0,0,0,0,0,0,0,0,0,0,0]
["Vote 01","The Presidency",14,10,0,0,0,0,0,0,0,0,0,0,0,0,0,0,0,0,0,0,0,0,0,0,0,0,0,0,0,0,0,0,0,0,0,0,0,0,0,0,0,0,0,0,0]
["Vote 01","The Presidency",14,11,0,0,0,0,0,0,0,0,0,0,0,0,0,0,0,0,0,0,0,0,0,0,0,0,0,0,0,0,0,0,0,0,0,0,0,0,0,0,0,0,0,0,0]
["Vote 01","The Presidency",14,12,0,0,0,0,0,0,0,0,0,0,0,0,0,0,0,0,0,0,0,0,0,0,0,0,0,0,0,0,0,0,0,0,0,0,0,0,0,0,0,0,0,0,0]
["Vote 01","The Presidency",14,13,0,0,0,0,0,0,0,0,0,0,0,0,0,0,0,0,0,0,0,0,0,0,0,0,0,0,0,0,0,0,0,0,0,0,0,0,0,0,0,0,0,0,0]
["Vote 01","The Presidency",14,14,0,0,0,0,0,0,0,0,0,0,0,0,0,0,0,0,0,0,0,0,0,0,0,0,0,0,0,0,0,0,0,0,0,0,0,0,0,0,0,0,0,0,0]
["Vote 01","The Presidency",14,15,0,0,0,0,0,0,0,0,0,0,0,0,0,0,0,0,0,0,0,0,0,0,0,0,0,0,0,0,0,0,0,0,0,0,0,0,0,0,0,0,0,0,0]
["Vote 01","The Presidency",14,16,0,0,0,0,0,0,0,0,0,0,0,0,0,0,0,0,0,0,0,0,0,0,0,0,0,0,0,0,0,0,0,0,0,0,0,0,0,0,0,0,0,0,0]
["Vote 01","The Presidency",14,"Deputy Minister",0,0,0,0,0,0,0,0,0,0,0,0,0,0,0,0,0,0,0,0,0,0,0,0,0,0,0,0,0,0,0,0,0,0,0,0,0,0,0,0,0,0,0]
["Vote 01","The Presidency",14,"Minister",0,0,0,0,0,0,0,0,0,0,0,0,0,0,0,0,0,0,0,0,0,0,0,0,0,0,0,0,0,0,0,0,0,0,0,0,0,0,0,0,0,0,0]
["Vote 01","The Presidency",14,"Intern",0,0,0,0,0,0,0,0,0,0,0,0,0,0,0,0,0,0,0,0,0,0,0,0,0,0,0,0,0,0,0,0,0,0,0,0,0,0,0,0,0,0,0]
["Vote 01","The Presidency",14,"Other",0,0,0,0,0,0,0,0,0,0,0,0,0,0,0,0,0,0,0,0,0,0,0,0,0,0,0,0,0,0,0,0,0,0,0,0,0,0,0,0,0,0,0]
["Vote 01","The Presidency",15,1,0,0,0,0,0,0,0,0,0,0,0,0,0,0,0,0,0,0,0,0,0,0,0,0,0,0,0,0,0,0,0,0,0,0,0,0,0,0,0,0,0,0,0]
["Vote 01","The Presidency",15,2,0,0,0,0,0,0,0,0,0,0,0,0,0,0,0,0,0,0,0,0,0,0,0,0,0,0,0,0,0,0,0,0,0,0,0,0,0,0,0,0,0,0,0]
["Vote 01","The Presidency",15,3,0,0,0,0,0,0,0,0,0,0,0,0,0,0,0,0,0,0,0,0,0,0,0,0,0,0,0,0,0,0,0,0,0,0,0,0,0,0,0,0,0,0,0]
["Vote 01","The Presidency",15,4,0,0,0,0,0,0,0,0,0,0,0,0,0,0,0,0,0,0,0,0,0,0,0,0,0,0,0,0,0,0,0,0,0,0,0,0,0,0,0,0,0,0,0]
["Vote 01","The Presidency",15,5,0,0,0,0,0,0,0,0,0,0,0,0,0,0,0,0,0,0,0,0,0,0,0,0,0,0,0,0,0,0,0,0,0,0,0,0,0,0,0,0,0,0,0]
["Vote 01","The Presidency",15,6,0,0,0,0,0,0,0,0,0,0,0,0,0,0,0,0,0,0,0,0,0,0,0,0,0,0,0,0,0,0,0,0,0,0,0,0,0,0,0,0,0,0,0]
["Vote 01","The Presidency",15,7,0,0,0,0,0,0,0,0,0,0,0,0,0,0,0,0,0,0,0,0,0,0,0,0,0,0,0,0,0,0,0,0,0,0,0,0,0,0,0,0,0,0,0]
["Vote 01","The Presidency",15,8,0,0,0,0,0,0,0,0,0,0,0,0,0,0,0,0,0,0,0,0,0,0,0,0,0,0,0,0,0,0,0,0,0,0,0,0,0,0,0,0,0,0,0]
["Vote 01","The Presidency",15,9,0,0,0,0,0,0,0,0,0,0,0,0,0,0,0,0,0,0,0,0,0,0,0,0,0,0,0,0,0,0,0,0,0,0,0,0,0,0,0,0,0,0,0]
["Vote 01","The Presidency",15,10,0,0,0,0,0,0,0,0,0,0,0,0,0,0,0,0,0,0,0,0,0,0,0,0,0,0,0,0,0,0,0,0,0,0,0,0,0,0,0,0,0,0,0]
["Vote 01","The Presidency",15,11,0,0,0,0,0,0,0,0,0,0,0,0,0,0,0,0,0,0,0,0,0,0,0,0,0,0,0,0,0,0,0,0,0,0,0,0,0,0,0,0,0,0,0]
["Vote 01","The Presidency",15,12,0,0,0,0,0,0,0,0,0,0,0,0,0,0,0,0,0,0,0,0,0,0,0,0,0,0,0,0,0,0,0,0,0,0,0,0,0,0,0,0,0,0,0]
["Vote 01","The Presidency",15,13,0,0,0,0,0,0,0,0,0,0,0,0,0,0,0,0,0,0,0,0,0,0,0,0,0,0,0,0,0,0,0,0,0,0,0,0,0,0,0,0,0,0,0]
["Vote 01","The Presidency",15,14,0,0,0,0,0,0,0,0,0,0,0,0,0,0,0,0,0,0,0,0,0,0,0,0,0,0,0,0,0,0,0,0,0,0,0,0,0,0,0,0,0,0,0]
["Vote 01","The Presidency",15,15,0,0,0,0,0,0,0,0,0,0,0,0,0,0,0,0,0,0,0,0,0,0,0,0,0,0,0,0,0,0,0,0,0,0,0,0,0,0,0,0,0,0,0]
["Vote 01","The Presidency",15,16,0,0,0,0,0,0,0,0,0,0,0,0,0,0,0,0,0,0,0,0,0,0,0,0,0,0,0,0,0,0,0,0,0,0,0,0,0,0,0,0,0,0,0]
["Vote 01","The Presidency",15,"Deputy Minister",0,0,0,0,0,0,0,0,0,0,0,0,0,0,0,0,0,0,0,0,0,0,0,0,0,0,0,0,0,0,0,0,0,0,0,0,0,0,0,0,0,0,0]
["Vote 01","The Presidency",15,"Minister",0,0,0,0,0,0,0,0,0,0,0,0,0,0,0,0,0,0,0,0,0,0,0,0,0,0,0,0,0,0,0,0,0,0,0,0,0,0,0,0,0,0,0]
["Vote 01","The Presidency",15,"Intern",0,0,0,0,0,0,0,0,0,0,0,0,0,0,0,0,0,0,0,0,0,0,0,0,0,0,0,0,0,0,0,0,0,0,0,0,0,0,0,0,0,0,0]
["Vote 01","The Presidency",15,"Other",0,0,0,0,0,0,0,0,0,0,0,0,0,0,0,0,0,0,0,0,0,0,0,0,0,0,0,0,0,0,0,0,0,0,0,0,0,0,0,0,0,0,0]
["Vote 01","The Presidency",16,1,0,0,0,0,0,0,0,0,0,0,0,0,0,0,0,0,0,0,0,0,0,0,0,0,0,0,0,0,0,0,0,0,0,0,0,0,0,0,0,0,0,0,0]
["Vote 01","The Presidency",16,2,0,0,0,0,0,0,0,0,0,0,0,0,0,0,0,0,0,0,0,0,0,0,0,0,0,0,0,0,0,0,0,0,0,0,0,0,0,0,0,0,0,0,0]
["Vote 01","The Presidency",16,3,0,0,0,0,0,0,0,0,0,0,0,0,0,0,0,0,0,0,0,0,0,0,0,0,0,0,0,0,0,0,0,0,0,0,0,0,0,0,0,0,0,0,0]
["Vote 01","The Presidency",16,4,0,0,0,0,0,0,0,0,0,0,0,0,0,0,0,0,0,0,0,0,0,0,0,0,0,0,0,0,0,0,0,0,0,0,0,0,0,0,0,0,0,0,0]
["Vote 01","The Presidency",16,5,0,0,0,0,0,0,0,0,0,0,0,0,0,0,0,0,0,0,0,0,0,0,0,0,0,0,0,0,0,0,0,0,0,0,0,0,0,0,0,0,0,0,0]
["Vote 01","The Presidency",16,6,0,0,0,0,0,0,0,0,0,0,0,0,0,0,0,0,0,0,0,0,0,0,0,0,0,0,0,0,0,0,0,0,0,0,0,0,0,0,0,0,0,0,0]
["Vote 01","The Presidency",16,7,0,0,0,0,0,0,0,0,0,0,0,0,0,0,0,0,0,0,0,0,0,0,0,0,0,0,0,0,0,0,0,0,0,0,0,0,0,0,0,0,0,0,0]
["Vote 01","The Presidency",16,8,0,0,0,0,0,0,0,0,0,0,0,0,0,0,0,0,0,0,0,0,0,0,0,0,0,0,0,0,0,0,0,0,0,0,0,0,0,0,0,0,0,0,0]
["Vote 01","The Presidency",16,9,0,0,0,0,0,0,0,0,0,0,0,0,0,0,0,0,0,0,0,0,0,0,0,0,0,0,0,0,0,0,0,0,0,0,0,0,0,0,0,0,0,0,0]
["Vote 01","The Presidency",16,10,0,0,0,0,0,0,0,0,0,0,0,0,0,0,0,0,0,0,0,0,0,0,0,0,0,0,0,0,0,0,0,0,0,0,0,0,0,0,0,0,0,0,0]
["Vote 01","The Presidency",16,11,0,0,0,0,0,0,0,0,0,0,0,0,0,0,0,0,0,0,0,0,0,0,0,0,0,0,0,0,0,0,0,0,0,0,0,0,0,0,0,0,0,0,0]
["Vote 01","The Presidency",16,12,0,0,0,0,0,0,0,0,0,0,0,0,0,0,0,0,0,0,0,0,0,0,0,0,0,0,0,0,0,0,0,0,0,0,0,0,0,0,0,0,0,0,0]
["Vote 01","The Presidency",16,13,0,0,0,0,0,0,0,0,0,0,0,0,0,0,0,0,0,0,0,0,0,0,0,0,0,0,0,0,0,0,0,0,0,0,0,0,0,0,0,0,0,0,0]
["Vote 01","The Presidency",16,14,0,0,0,0,0,0,0,0,0,0,0,0,0,0,0,0,0,0,0,0,0,0,0,0,0,0,0,0,0,0,0,0,0,0,0,0,0,0,0,0,0,0,0]
["Vote 01","The Presidency",16,15,0,0,0,0,0,0,0,0,0,0,0,0,0,0,0,0,0,0,0,0,0,0,0,0,0,0,0,0,0,0,0,0,0,0,0,0,0,0,0,0,0,0,0]
["Vote 01","The Presidency",16,16,0,0,0,0,0,0,0,0,0,0,0,0,0,0,0,0,0,0,0,0,0,0,0,0,0,0,0,0,0,0,0,0,0,0,0,0,0,0,0,0,0,0,0]
["Vote 01","The Presidency",16,"Deputy Minister",0,0,0,0,0,0,0,0,0,0,0,0,0,0,0,0,0,0,0,0,0,0,0,0,0,0,0,0,0,0,0,0,0,0,0,0,0,0,0,0,0,0,0]
["Vote 01","The Presidency",16,"Minister",0,0,0,0,0,0,0,0,0,0,0,0,0,0,0,0,0,0,0,0,0,0,0,0,0,0,0,0,0,0,0,0,0,0,0,0,0,0,0,0,0,0,0]
["Vote 01","The Presidency",16,"Intern",0,0,0,0,0,0,0,0,0,0,0,0,0,0,0,0,0,0,0,0,0,0,0,0,0,0,0,0,0,0,0,0,0,0,0,0,0,0,0,0,0,0,0]
["Vote 01","The Presidency",16,"Other",0,0,0,0,0,0,0,0,0,0,0,0,0,0,0,0,0,0,0,0,0,0,0,0,0,0,0,0,0,0,0,0,0,0,0,0,0,0,0,0,0,0,0]

{"sheet":"Tables","index":20,"n_rows":1031,"n_cols":48,"rows_kept":1031,"cut":false,"hidden":true,"merged":[]}
[null,null,null,null,null,null,null,null,null,null,null,null,null,null,null,null,null,"Headers: Performance",null,null,null,"Headers: Infrastructure",null,null,null,"Headers: Personnel",null,null,null,"Headers: Dataset",null,null,null,null,null,null,null,null,"Reporting level Indi"]
["Vote No. - N","Vote No.","Department",null,null,"Vote No. - N","Programme No. - N","Subprogramme No. - N","Vote No.","Programme No.","Subprogramme No.","UID_Org","Department","Programme","Subprogramme",null,null,"CurCol","NewCol",null,null,"CurCol","NewCol",null,null,"CurCol","NewCol",null,null,"OldCol","GenCol","NewCol",null,null,"YearNo","Year",null,null,"Econ2","Econ3","Econ4","Level 3","Level 4",null,null,"Salary level","Salary level2","Salary level grouping"]
[1,"01","The Presidency",null,null,1,1,1,"01","01","01","01|01|01","The Presidency","Administration","Management",null,null,"Column1","Unit no",null,null,"Column1","Unit no",null,null,"Column1","Unit no",null,null,"Department","Department","Department",null,null,1,"2021/22",null,null,"Current payments","Compensation of employees","Compensation of employees",1,0,null,null,1,"01","Levels 01 - 06"]
[2,"02","Parliament",null,null,1,1,2,"01","01","02","01|01|02","The Presidency","Administration","Support Services to the President",null,null,"Column2","Impact area",null,null,"Column2","Impact area",null,null,"Column2","Impact area",null,null,"Programme","Programme","Programme",null,null,2,"2022/23",null,null,"Current payments","Compensation of employees","Salaries and wages",0,1,null,null,2,"02","Levels 01 - 06"]
[3,"03","Cooperative Governance",null,null,1,1,3,"01","01","03","01|01|03","The Presidency","Administration","Support Services to the Deputy President",null,null,"Column3","Unit name",null,null,"Column3","Unit name",null,null,"Column3","Unit name",null,null,"Subprogramme","Subprogramme","Subprogramme",null,null,3,"2023/24",null,null,"Current payments","Compensation of employees","Social contributions",0,1,null,null,3,"03","Levels 01 - 06"]
[4,"04","Government Communication and Information System",null,null,1,2,1,"01","02","01","01|02|01","The Presidency","Executive Support","Cabinet Services",null,null,"Column4","Performance indicator",null,null,"Column4","Project",null,null,"Column4","Salary level",null,null,"Transfers and subsidies / Payments for financial assets detail","Transfers and subsidies / Payments for financial assets detail","Transfers and subsidies / Payments for financial assets detail",null,null,4,"2024/25",null,null,"Current payments","Goods and services","Goods and services",1,0,null,null,4,"04","Levels 01 - 06"]
[5,"05","Home Affairs",null,null,1,3,1,"01","03","01","01|03|01","The Presidency","Policy and Research Services","Economy, Trade and Investment",null,null,"Column5","2024/25 Current performance",null,null,"Column5","2024/25 Current Number",null,null,"Column5","2024/25 Original number",null,null,"Econ1","Econ1","Econ1",null,null,5,"2025/26",null,null,"Current payments","Goods and services","Administrative fees",0,1,null,null,5,"05","Levels 01 - 06"]
[6,"06","International Relations and Cooperation",null,null,1,3,2,"01","03","02","01|03|02","The Presidency","Policy and Research Services","Socioeconomic Impact Assessment System",null,null,"Column6","2024/25 Performance @ benchmark level",null,null,"Column6","2024/25 Market or best in class benchmark",null,null,"Column6","2024/25 Revised number",null,null,"Econ2","Econ2","Econ2",null,null,6,"2026/27",null,null,"Current payments","Goods and services","Advertising",0,1,null,null,6,"06","Levels 01 - 06"]
[7,"07","National School of Government",null,null,1,16,1,"01","16","01","01|16|01","The Presidency","Direct charge against the National Revenue Fund","Salary of the president",null,null,"Column7","2024/25 Change",null,null,"Column7","2024/25 Change",null,null,"Column7","2024/25 Change in number",null,null,"Econ3","Econ3","Econ3",null,null,7,"2027/28",null,null,"Current payments","Goods and services","Agency and support/outsourced services",0,1,null,null,7,"07","Levels 07 - 12"]
[8,"08","National Treasury",null,null,1,16,2,"01","16","02","01|16|02","The Presidency","Direct charge against the National Revenue Fund","Salary of the deputy president",null,null,"Column8","2025/26 Original target",null,null,"Column8","2025/26 Original amount",null,null,"Column8","2025/26 Original number",null,null,"Econ4","Econ4","Econ4",null,null,null,null,null,null,"Current payments","Goods and services","Audit costs: External",0,1,null,null,8,"08","Levels 07 - 12"]
[9,"09","Planning, Monitoring and Evaluation",null,null,2,1,1,"02","01","01","02|01|01","Parliament","Administration","Executive Authority",null,null,"Column9","2025/26 Revised target",null,null,"Column9","2025/26 Revised amount",null,null,"Column9","2025/26 Revised number",null,null,"Econ5","Econ5","Econ5",null,null,null,null,null,null,"Current payments","Goods and services","Bursaries: Employees",0,1,null,null,9,"09","Levels 07 - 12"]
[10,"10","Public Enterprises",null,null,2,1,2,"02","01","02","02|01|02","Parliament","Administration","Office of the Secretary",null,null,"Column10","2025/26 Change",null,null,"Column10","2025/26 Change",null,null,"Column10","2025/26 Change in number",null,null,"Function group","Function group","Function group",null,null,null,null,null,null,"Current payments","Goods and services","Catering: Departmental activities",0,1,null,null,10,"10","Levels 07 - 12"]
[11,"11","Public Service and Administration",null,null,2,1,3,"02","01","03","02|01|03","Parliament","Administration","Corporate and Support Services",null,null,"Column11","2026/27 Original target",null,null,"Column11","2026/27 Original amount",null,null,"Column11","2026/27 Original number",null,null,"Technical group","Technical group","Technical group",null,null,null,null,null,null,"Current payments","Goods and services","Communication (G&S)",0,1,null,null,11,"11","Levels 07 - 12"]
[12,"12","Public Service Commission",null,null,2,2,1,"02","02","01","02|02|01","Parliament","Legislation and Oversight","National Assembly",null,null,"Column12","2026/27 Revised target",null,null,"Column12","2026/27 Revised amount",null,null,"Column12","2026/27 Revised number",null,null,"DOR","DOR","DOR",null,null,null,null,null,null,"Current payments","Goods and services","Computer services",0,1,null,null,12,"12","Levels 07 - 12"]
[13,"13","Public Works and Infrastructure",null,null,2,2,2,"02","02","02","02|02|02","Parliament","Legislation and Oversight","National Council of Provinces",null,null,"Column13","2026/27 Change",null,null,"Column13","2026/27 Change",null,null,"Column13","2026/27 Change in number",null,null,"2019/20","Column13","2020/21",null,null,null,null,null,null,"Current payments","Goods and services","Consultants: Business and advisory services",0,1,null,null,13,"13","Levels 13 - 16"]
[14,"14","Statistics South Africa",null,null,2,2,3,"02","02","03","02|02|03","Parliament","Legislation and Oversight","Public Participation and external relations: Shared Services",null,null,"Column14","2027/28 Original target",null,null,"Column14","2027/28 Original amount",null,null,"Column14","2027/28 Original number",null,null,"2020/21","Column14","2021/22",null,null,null,null,null,null,"Current payments","Goods and services","Consumable supplies",0,1,null,null,14,"14","Levels 13 - 16"]
[15,"15","Traditional Affairs",null,null,2,3,1,"02","03","01","02|03|01","Parliament","Associated Services","Members Facilities",null,null,"Column15","2027/28 Revised target",null,null,"Column15","2027/28 Revised amount",null,null,"Column15","2027/28 Revised number",null,null,"2021/22","Column15","2022/23",null,null,null,null,null,null,"Current payments","Goods and services","Consumables: Stationery, printing and office supplies",0,1,null,null,15,"15","Levels 13 - 16"]
[16,"16","Basic Education",null,null,2,3,2,"02","03","02","02|03|02","Parliament","Associated Services","Transfer to Political Party Allowances",null,null,"Column16","2027/28 Change",null,null,"Column16","2027/28 Change",null,null,"Column16","2027/28 Change in number",null,null,"2022/23 Main appropriation","Column16","2023/24 Main appropriation",null,null,null,null,null,null,"Current payments","Goods and services","Contractors",0,1,null,null,16,"16","Levels 13 - 16"]
[17,"17","Higher Education and Training",null,null,2,3,3,"02","03","03","02|03|03","Parliament","Associated Services","Transfer: Parliamentary Budget Office",null,null,"Column17","Comment",null,null,"Column17","Comment",null,null,"Column17","Comment",null,null,"2022/23 Adjusted appropriation","Column17","2023/24 Adjusted appropriation",null,null,null,null,null,null,"Current payments","Goods and services","Entertainment",0,1,null,null,"Deputy Minister","Deputy Minister","Other"]
[18,"18","Health",null,null,2,16,1,"02","16","01","02|16|01","Parliament","Direct charge against the National Revenue Fund","Members' remuneration",null,null,"Column18","Gov Priority",null,null,null,null,null,null,null,null,null,null,"2022/23 Revised estimate","Column18","2023/24 Revised estimate",null,null,null,null,null,null,"Current payments","Goods and services","Fleet services (including government motor transport)",0,1,null,null,"Minister","Minister","Other"]
[19,"19","Social Development",null,null,3,1,1,"03","01","01","03|01|01","Cooperative Governance","Administration","Ministry",null,null,null,null,null,null,null,null,null,null,null,null,null,null,"2022/23 Preliminary outcome","Column19","2023/24 Preliminary outcome",null,null,null,null,null,null,"Current payments","Goods and services","Housing",0,1,null,null,"Intern","Intern","Other"]
[20,"20","Women, Youth and Persons with Disabilities",null,null,3,1,2,"03","01","02","03|01|02","Cooperative Governance","Administration","Management",null,null,null,null,null,null,null,null,null,null,null,null,null,null,"2023/24 Baseline","Column20","2024/25 Baseline",null,null,null,null,null,null,"Current payments","Goods and services","Infrastructure and planning services",0,1,null,null,"Other","Other","Other"]
[21,"21","Civilian Secretariat for the Police Service",null,null,3,1,3,"03","01","03","03|01|03","Cooperative Governance","Administration","Corporate Services",null,null,null,null,null,null,null,null,null,null,null,null,null,null,"2024/25 Baseline","Column21","2025/26 Baseline",null,null,null,null,null,null,"Current payments","Goods and services","Inventory: Clothing material and accessories",0,1]
[22,"22","Correctional Services",null,null,3,1,4,"03","01","04","03|01|04","Cooperative Governance","Administration","Financial Services",null,null,null,null,null,null,null,null,null,null,null,null,null,null,"2025/26 Baseline","Column22","2026/27 Baseline",null,null,null,null,null,null,"Current payments","Goods and services","Inventory: Farming supplies",0,1]
[23,"23","Defence",null,null,3,1,5,"03","01","05","03|01|05","Cooperative Governance","Administration","Internal Audit and Risk management",null,null,null,null,null,null,null,null,null,null,null,null,null,null,"2026/27 Baseline","Column23","2027/28 Baseline",null,null,null,null,null,null,"Current payments","Goods and services","Inventory: Food and food supplies",0,1]
[24,"24","Independent Police Investigative Directorate",null,null,3,1,6,"03","01","06","03|01|06","Cooperative Governance","Administration","Office Accommodation",null,null,null,null,null,null,null,null,null,null,null,null,null,null,"2024/25 From - Spending review Topic 1","Column24","2025/26 From - Spending review Topic 1",null,null,null,null,null,null,"Current payments","Goods and services","Inventory: Fuel, oil and gas",0,1]
[25,"25","Justice and Constitutional Development",null,null,3,2,1,"03","02","01","03|02|01","Cooperative Governance","Intergovernmental Support","Management: Intergovernmental Support",null,null,null,null,null,null,null,null,null,null,null,null,null,null,"2025/26 From - Spending review Topic 1","Column25","2026/27 From - Spending review Topic 1",null,null,null,null,null,null,"Current payments","Goods and services","Inventory: Learner and teacher support material",0,1]
[26,"26","Military Veterans",null,null,3,2,2,"03","02","02","03|02|02","Cooperative Governance","Intergovernmental Support","Municipal and Provincial Governance Support and Capacity Building",null,null,null,null,null,null,null,null,null,null,null,null,null,null,"2026/27 From - Spending review Topic 1","Column26","2027/28 From - Spending review Topic 1",null,null,null,null,null,null,"Current payments","Goods and services","Inventory: Materials and supplies",0,1]
[27,"27","Office of the Chief Justice",null,null,3,2,4,"03","02","04","03|02|04","Cooperative Governance","Intergovernmental Support","Municipal Infrastructure Grant",null,null,null,null,null,null,null,null,null,null,null,null,null,null,"2024/25 To - Spending review Topic 1","Column27","2025/26 To - Spending review Topic 1",null,null,null,null,null,null,"Current payments","Goods and services","Inventory: Medical supplies",0,1]
[28,"28","Police",null,null,3,2,5,"03","02","05","03|02|05","Cooperative Governance","Intergovernmental Support","Integrated urban development grant",null,null,null,null,null,null,null,null,null,null,null,null,null,null,"2025/26 To - Spending review Topic 1","Column28","2026/27 To - Spending review Topic 1",null,null,null,null,null,null,"Current payments","Goods and services","Inventory: Medicine",0,1]
[29,"29","Agriculture, Land Reform and Rural Development",null,null,3,2,6,"03","02","06","03|02|06","Cooperative Governance","Intergovernmental Support","Municipal Infrastructure Support Agent",null,null,null,null,null,null,null,null,null,null,null,null,null,null,"2026/27 To - Spending review Topic 1","Column29","2027/28 To - Spending review Topic 1",null,null,null,null,null,null,"Current payments","Goods and services","Inventory: Other supplies",0,1]
[30,"30","Communications and Digital Technologies",null,null,3,3,1,"03","03","01","03|03|01","Cooperative Governance","Intergovernmental Policy and Governance","Management: Intergovernmental Policy and Governance",null,null,null,null,null,null,null,null,null,null,null,null,null,null,"2024/25 From - Spending review Topic 2","Column30","2025/26 From - Spending review Topic 2",null,null,null,null,null,null,"Current payments","Goods and services","Laboratory services",0,1]
[31,"31","Employment and Labour",null,null,3,3,2,"03","03","02","03|03|02","Cooperative Governance","Intergovernmental Policy and Governance","Municipal Administration and Capacity",null,null,null,null,null,null,null,null,null,null,null,null,null,null,"2025/26 From - Spending review Topic 2","Column31","2026/27 From - Spending review Topic 2",null,null,null,null,null,null,"Current payments","Goods and services","Legal services (G&S)",0,1]
[32,"32","Forestry, Fisheries and the Environment",null,null,3,3,3,"03","03","03","03|03|03","Cooperative Governance","Intergovernmental Policy and Governance","Municipal Funding and Revenue Support",null,null,null,null,null,null,null,null,null,null,null,null,null,null,"2026/27 From - Spending review Topic 2","Column32","2027/28 From - Spending review Topic 2",null,null,null,null,null,null,"Current payments","Goods and services","Medsas inventory interface",0,1]
[33,"33","Human Settlements",null,null,3,3,4,"03","03","04","03|03|04","Cooperative Governance","Intergovernmental Policy and Governance","Development Planning",null,null,null,null,null,null,null,null,null,null,null,null,null,null,"2024/25 To - Spending review Topic 2","Column33","2025/26 To - Spending review Topic 2",null,null,null,null,null,null,"Current payments","Goods and services","Minor assets",0,1]
[34,"34","Mineral Resources and Energy",null,null,3,3,5,"03","03","05","03|03|05","Cooperative Governance","Intergovernmental Policy and Governance","Municipal Demarcation Board",null,null,null,null,null,null,null,null,null,null,null,null,null,null,"2025/26 To - Spending review Topic 2","Column34","2026/27 To - Spending review Topic 2",null,null,null,null,null,null,"Current payments","Goods and services","Operating leases",0,1]
[35,"35","Science and Innovation",null,null,3,3,6,"03","03","06","03|03|06","Cooperative Governance","Intergovernmental Policy and Governance","South African Cities Network",null,null,null,null,null,null,null,null,null,null,null,null,null,null,"2026/27 To - Spending review Topic 2","Column35","2027/28 To - Spending review Topic 2",null,null,null,null,null,null,"Current payments","Goods and services","Operating payments",0,1]
[36,"36","Small Business Development",null,null,3,3,7,"03","03","07","03|03|07","Cooperative Governance","Intergovernmental Policy and Governance","Municipal Governance",null,null,null,null,null,null,null,null,null,null,null,null,null,null,"2024/25 From - Spending review Topic 3","Column36","2025/26 From - Spending review Topic 3",null,null,null,null,null,null,"Current payments","Goods and services","Property payments",0,1]
[37,"37","Sport, Arts and Culture",null,null,3,3,8,"03","03","08","03|03|08","Cooperative Governance","Intergovernmental Policy and Governance","Research and Knowledge Management",null,null,null,null,null,null,null,null,null,null,null,null,null,null,"2025/26 From - Spending review Topic 3","Column37","2026/27 From - Spending review Topic 3",null,null,null,null,null,null,"Current payments","Goods and services","Rental and hiring",0,1]
[38,"38","Tourism",null,null,3,3,9,"03","03","09","03|03|09","Cooperative Governance","Intergovernmental Policy and Governance","South African Local Government Association",null,null,null,null,null,null,null,null,null,null,null,null,null,null,"2026/27 From - Spending review Topic 3","Column38","2027/28 From - Spending review Topic 3",null,null,null,null,null,null,"Current payments","Goods and services","Science and technological services",0,1]
[39,"39","Trade, Industry and Competition",null,null,3,3,10,"03","03","10","03|03|10","Cooperative Governance","Intergovernmental Policy and Governance","United Cities and Local Governments of Africa",null,null,null,null,null,null,null,null,null,null,null,null,null,null,"2024/25 To - Spending review Topic 3","Column39","2025/26 To - Spending review Topic 3",null,null,null,null,null,null,"Current payments","Goods and services","Training and development",0,1]
[40,"40","Transport",null,null,3,3,11,"03","03","11","03|03|11","Cooperative Governance","Intergovernmental Policy and Governance","Local Government Equitable Share",null,null,null,null,null,null,null,null,null,null,null,null,null,null,"2025/26 To - Spending review Topic 3","Column40","2026/27 To - Spending review Topic 3",null,null,null,null,null,null,"Current payments","Goods and services","Transport provided: Departmental activity",0,1]
[41,"41","Water and Sanitation",null,null,3,3,12,"03","03","12","03|03|12","Cooperative Governance","Intergovernmental Policy and Governance","Municipal Systems Improvement Grant",null,null,null,null,null,null,null,null,null,null,null,null,null,null,"2026/27 To - Spending review Topic 3","Column41","2027/28 To - Spending review Topic 3",null,null,null,null,null,null,"Current payments","Goods and services","Travel and subsistence",0,1]
[42,"42","Centre for Public Service Innovation",null,null,3,4,1,"03","04","01","03|04|01","Cooperative Governance","National Disaster Management Centre","Management: Head National Disaster Management Centre",null,null,null,null,null,null,null,null,null,null,null,null,null,null,"2024/25 From - Spending review Topic 4","Column42","2025/26 From - Spending review Topic 4",null,null,null,null,null,null,"Current payments","Goods and services","Venues and facilities",0,1]
[50,"50","Below the line items",null,null,3,4,2,"03","04","02","03|04|02","Cooperative Governance","National Disaster Management Centre","Disaster Policy, Institutional Development and Compliance",null,null,null,null,null,null,null,null,null,null,null,null,null,null,"2025/26 From - Spending review Topic 4","Column43","2026/27 From - Spending review Topic 4",null,null,null,null,null,null,"Current payments","Interest and rent on land","Interest (Incl. interest on unitary payments (PPP))",1,1]
[null,null,null,null,null,3,4,3,"03","04","03","03|04|03","Cooperative Governance","National Disaster Management Centre","Disaster Risk Reduction and Capacity Development",null,null,null,null,null,null,null,null,null,null,null,null,null,null,"2026/27 From - Spending review Topic 4","Column44","2027/28 From - Spending review Topic 4",null,null,null,null,null,null,"Current payments","Interest and rent on land","Rent on land",1,1]
[null,null,null,null,null,3,4,4,"03","04","04","03|04|04","Cooperative Governance","National Disaster Management Centre","Disaster Preparedness, Response and Recovery Coordination",null,null,null,null,null,null,null,null,null,null,null,null,null,null,"2024/25 To - Spending review Topic 4","Column45","2025/26 To - Spending review Topic 4",null,null,null,null,null,null,"Transfers and subsidies","Provinces and municipalities","Municipalities",1,1]
[null,null,null,null,null,3,4,5,"03","04","05","03|04|05","Cooperative Governance","National Disaster Management Centre","Municipal Disaster Recovery Grant",null,null,null,null,null,null,null,null,null,null,null,null,null,null,"2025/26 To - Spending review Topic 4","Column46","2026/27 To - Spending review Topic 4",null,null,null,null,null,null,"Transfers and subsidies","Provinces and municipalities","Provinces",1,1]
[null,null,null,null,null,3,4,6,"03","04","06","03|04|06","Cooperative Governance","National Disaster Management Centre","Disaster Response Grant",null,null,null,null,null,null,null,null,null,null,null,null,null,null,"2026/27 To - Spending review Topic 4","Column47","2027/28 To - Spending review Topic 4",null,null,null,null,null,null,"Transfers and subsidies","Departmental agencies and accounts","Social security funds",1,1]
[null,null,null,null,null,3,5,1,"03","05","01","03|05|01","Cooperative Governance","Community Work Programme","Coordination, Partnerships and Implementation",null,null,null,null,null,null,null,null,null,null,null,null,null,null,"2024/25 From - Other reallocations","Column48","2025/26 From - Other reallocations",null,null,null,null,null,null,"Transfers and subsidies","Departmental agencies and accounts","Departmental agencies (non-business entities)",1,1]
[null,null,null,null,null,3,5,2,"03","05","02","03|05|02","Cooperative Governance","Community Work Programme","Monitoring and Evaluation",null,null,null,null,null,null,null,null,null,null,null,null,null,null,"2025/26 From - Other reallocations","Column49","2026/27 From - Other reallocations",null,null,null,null,null,null,"Transfers and subsidies","Higher education institutions","Higher education institutions",1,1]
[null,null,null,null,null,4,1,1,"04","01","01","04|01|01","Government Communication and Information System","Administration","Departmental Management",null,null,null,null,null,null,null,null,null,null,null,null,null,null,"2026/27 From - Other reallocations","Column50","2027/28 From - Other reallocations",null,null,null,null,null,null,"Transfers and subsidies","Foreign governments and international organisations","Foreign governments and international organisations",1,1]
[null,null,null,null,null,4,1,2,"04","01","02","04|01|02","Government Communication and Information System","Administration","Corporate Services",null,null,null,null,null,null,null,null,null,null,null,null,null,null,"2024/25 To - Other reallocations","Column51","2025/26 To - Other reallocations",null,null,null,null,null,null,"Transfers and subsidies","Public corporations and private enterprises","Private enterprises",1,1]
[null,null,null,null,null,4,1,3,"04","01","03","04|01|03","Government Communication and Information System","Administration","Financial Administration",null,null,null,null,null,null,null,null,null,null,null,null,null,null,"2025/26 To - Other reallocations","Column52","2026/27 To - Other reallocations",null,null,null,null,null,null,"Transfers and subsidies","Public corporations and private enterprises","Public corporations",1,1]
[null,null,null,null,null,4,1,4,"04","01","04","04|01|04","Government Communication and Information System","Administration","Internal Audit",null,null,null,null,null,null,null,null,null,null,null,null,null,null,"2026/27 To - Other reallocations","Column53","2027/28 To - Other reallocations",null,null,null,null,null,null,"Transfers and subsidies","Non-profit institutions","Non-profit institutions",1,1]
[null,null,null,null,null,4,1,5,"04","01","05","04|01|05","Government Communication and Information System","Administration","Office Accommodation",null,null,null,null,null,null,null,null,null,null,null,null,null,null,"2023/24 Reduction","Column54","2024/25 Reduction",null,null,null,null,null,null,"Transfers and subsidies","Households","Other transfers to households",1,1]
[null,null,null,null,null,4,2,1,"04","02","01","04|02|01","Government Communication and Information System","Content Processing and Dissemination","Programme Management for Content Processing and Dissemination",null,null,null,null,null,null,null,null,null,null,null,null,null,null,"2024/25 Reduction","Column55","2025/26 Reduction",null,null,null,null,null,null,"Transfers and subsidies","Households","Social benefits",1,1]
[null,null,null,null,null,4,2,2,"04","02","02","04|02|02","Government Communication and Information System","Content Processing and Dissemination","Policy and Research",null,null,null,null,null,null,null,null,null,null,null,null,null,null,"2025/26 Reduction","Column56","2026/27 Reduction",null,null,null,null,null,null,"Payments for capital assets","Buildings and other fixed structures","Buildings",1,1]
[null,null,null,null,null,4,2,3,"04","02","03","04|02|03","Government Communication and Information System","Content Processing and Dissemination","Products and Platforms",null,null,null,null,null,null,null,null,null,null,null,null,null,null,"2026/27 Reduction","Column57","2027/28 Reduction",null,null,null,null,null,null,"Payments for capital assets","Buildings and other fixed structures","Other fixed structures",1,1]
[null,null,null,null,null,4,2,4,"04","02","04","04|02|04","Government Communication and Information System","Content Processing and Dissemination","Communication Service Agency",null,null,null,null,null,null,null,null,null,null,null,null,null,null,"2024/25 From - Total","Column58","2025/26 From - Total",null,null,null,null,null,null,"Payments for capital assets","Machinery and equipment","Other machinery and equipment",1,1]
[null,null,null,null,null,4,2,5,"04","02","05","04|02|05","Government Communication and Information System","Content Processing and Dissemination","Entity Oversight",null,null,null,null,null,null,null,null,null,null,null,null,null,null,"2025/26 From - Total","Column59","2026/27 From - Total",null,null,null,null,null,null,"Payments for capital assets","Machinery and equipment","Transport equipment",1,1]
[null,null,null,null,null,4,2,6,"04","02","06","04|02|06","Government Communication and Information System","Content Processing and Dissemination","Media Policy",null,null,null,null,null,null,null,null,null,null,null,null,null,null,"2026/27 From - Total","Column60","2027/28 From - Total",null,null,null,null,null,null,"Payments for capital assets","Heritage assets","Heritage assets",1,1]
[null,null,null,null,null,4,3,1,"04","03","01","04|03|01","Government Communication and Information System","Intergovernmental Coordination and Stakeholder Management","Programme Management for Intergovernmental Coordination and Stakeholder Management",null,null,null,null,null,null,null,null,null,null,null,null,null,null,"2024/25 To - Total","Column61","2025/26 To - Total",null,null,null,null,null,null,"Payments for capital assets","Specialised military assets","Specialised military assets",1,1]
[null,null,null,null,null,4,3,2,"04","03","02","04|03|02","Government Communication and Information System","Intergovernmental Coordination and Stakeholder Management","Provincial and Local Liaison",null,null,null,null,null,null,null,null,null,null,null,null,null,null,"2025/26 To - Total","Column62","2026/27 To - Total",null,null,null,null,null,null,"Payments for capital assets","Biological assets","Biological assets",1,1]
[null,null,null,null,null,4,3,3,"04","03","03","04|03|03","Government Communication and Information System","Intergovernmental Coordination and Stakeholder Management","Media Engagement",null,null,null,null,null,null,null,null,null,null,null,null,null,null,"2026/27 To - Total","Column63","2027/28 To - Total",null,null,null,null,null,null,"Payments for capital assets","Land and sub-soil assets","Land and sub-soil assets",1,1]
[null,null,null,null,null,4,3,4,"04","03","04","04|03|04","Government Communication and Information System","Intergovernmental Coordination and Stakeholder Management","Cluster Supervision (Human Development, Social Protection, and Governance and Administration)",null,null,null,null,null,null,null,null,null,null,null,null,null,null,"2024/25 Total decrease","Column64","2025/26 Total decrease",null,null,null,null,null,null,"Payments for capital assets","Software and other intangible assets","Software and other intangible assets",1,1]
[null,null,null,null,null,4,3,5,"04","03","05","04|03|05","Government Communication and Information System","Intergovernmental Coordination and Stakeholder Management","Cluster Supervision (Economic and Infrastructure, Justice and International)",null,null,null,null,null,null,null,null,null,null,null,null,null,null,"2025/26 Total decrease","Column65","2026/27 Total decrease",null,null,null,null,null,null,"Payments for financial assets","Payments for financial assets","Payments for financial assets",1,1]
[null,null,null,null,null,5,1,1,"05","01","01","05|01|01","Home Affairs","Administration","Ministry",null,null,null,null,null,null,null,null,null,null,null,null,null,null,"2026/27 Total decrease","Column66","2027/28 Total decrease"]
[null,null,null,null,null,5,1,2,"05","01","02","05|01|02","Home Affairs","Administration","Management Support Services",null,null,null,null,null,null,null,null,null,null,null,null,null,null,"2023/24 Total change","Column67","2024/25 Total change"]
[null,null,null,null,null,5,1,3,"05","01","03","05|01|03","Home Affairs","Administration","Corporate Services",null,null,null,null,null,null,null,null,null,null,null,null,null,null,"2024/25 Total change","Column68","2025/26 Total change"]
[null,null,null,null,null,5,1,4,"05","01","04","05|01|04","Home Affairs","Administration","Transversal Information Technology Management",null,null,null,null,null,null,null,null,null,null,null,null,null,null,"2025/26 Total change","Column69","2026/27 Total change"]
[null,null,null,null,null,5,1,5,"05","01","05","05|01|05","Home Affairs","Administration","Office Accommodation",null,null,null,null,null,null,null,null,null,null,null,null,null,null,"2026/27 Total change","Column70","2027/28 Total change"]
[null,null,null,null,null,5,2,1,"05","02","01","05|02|01","Home Affairs","Citizen Affairs","Citizen Affairs Management",null,null,null,null,null,null,null,null,null,null,null,null,null,null,"2023/24 Revised baseline","Column71","2024/25 Revised baseline"]
[null,null,null,null,null,5,2,2,"05","02","02","05|02|02","Home Affairs","Citizen Affairs","Status Services",null,null,null,null,null,null,null,null,null,null,null,null,null,null,"2024/25 Revised baseline","Column72","2025/26 Revised baseline"]
[null,null,null,null,null,5,2,3,"05","02","03","05|02|03","Home Affairs","Citizen Affairs","Identification Services",null,null,null,null,null,null,null,null,null,null,null,null,null,null,"2025/26 Revised baseline","Column73","2026/27 Revised baseline"]
[null,null,null,null,null,5,2,4,"05","02","04","05|02|04","Home Affairs","Citizen Affairs","Service Delivery to Provinces",null,null,null,null,null,null,null,null,null,null,null,null,null,null,"2026/27 Revised baseline","Column74","2027/28 Revised baseline"]
[null,null,null,null,null,5,3,1,"05","03","01","05|03|01","Home Affairs","Immigration Affairs","Immigration Affairs Management"]
[null,null,null,null,null,5,3,2,"05","03","02","05|03|02","Home Affairs","Immigration Affairs","Admission Services"]
[null,null,null,null,null,5,3,3,"05","03","03","05|03|03","Home Affairs","Immigration Affairs","Immigration Services"]
[null,null,null,null,null,5,3,4,"05","03","04","05|03|04","Home Affairs","Immigration Affairs","Asylum Seekers"]
[null,null,null,null,null,5,4,1,"05","04","01","05|04|01","Home Affairs","Institutional Support and Transfers","Border Management Authority"]
[null,null,null,null,null,5,4,2,"05","04","02","05|04|02","Home Affairs","Institutional Support and Transfers","Electoral Commission"]
[null,null,null,null,null,5,4,3,"05","04","03","05|04|03","Home Affairs","Institutional Support and Transfers","Represented Political Parties' Fund"]
[null,null,null,null,null,6,1,1,"06","01","01","06|01|01","International Relations and Cooperation","Administration","Ministry"]
[null,null,null,null,null,6,1,2,"06","01","02","06|01|02","International Relations and Cooperation","Administration","Departmental Management"]
[null,null,null,null,null,6,1,3,"06","01","03","06|01|03","International Relations and Cooperation","Administration","Audit Services"]
[null,null,null,null,null,6,1,4,"06","01","04","06|01|04","International Relations and Cooperation","Administration","Financial Management"]
[null,null,null,null,null,6,1,5,"06","01","05","06|01|05","International Relations and Cooperation","Administration","Corporate Services"]
[null,null,null,null,null,6,1,6,"06","01","06","06|01|06","International Relations and Cooperation","Administration","Diplomatic Training, Research and Development"]
[null,null,null,null,null,6,1,7,"06","01","07","06|01|07","International Relations and Cooperation","Administration","Foreign Fixed Assets Management"]
[null,null,null,null,null,6,1,8,"06","01","08","06|01|08","International Relations and Cooperation","Administration","Office Accommodation"]
[null,null,null,null,null,6,1,9,"06","01","09","06|01|09","International Relations and Cooperation","Administration","African Renaissance and International Cooperation Fund Secretariat"]
[null,null,null,null,null,6,2,1,"06","02","01","06|02|01","International Relations and Cooperation","International Relations","Africa"]
[null,null,null,null,null,6,2,2,"06","02","02","06|02|02","International Relations and Cooperation","International Relations","Asia and Middle East"]
[null,null,null,null,null,6,2,3,"06","02","03","06|02|03","International Relations and Cooperation","International Relations","Americas and Caribbean"]
[null,null,null,null,null,6,2,4,"06","02","04","06|02|04","International Relations and Cooperation","International Relations","Europe"]
[null,null,null,null,null,6,3,1,"06","03","01","06|03|01","International Relations and Cooperation","International Cooperation","Global System of Governance"]
[null,null,null,null,null,6,3,2,"06","03","02","06|03|02","International Relations and Cooperation","International Cooperation","Continental Cooperation"]
[null,null,null,null,null,6,3,3,"06","03","03","06|03|03","International Relations and Cooperation","International Cooperation","South-South Cooperation"]
[null,null,null,null,null,6,3,4,"06","03","04","06|03|04","International Relations and Cooperation","International Cooperation","North-South Dialogue"]
[null,null,null,null,null,6,4,1,"06","04","01","06|04|01","International Relations and Cooperation","Public Diplomacy and Protocol Services","Public Diplomacy"]
[null,null,null,null,null,6,4,2,"06","04","02","06|04|02","International Relations and Cooperation","Public Diplomacy and Protocol Services","Protocol Services"]
[null,null,null,null,null,6,5,1,"06","05","01","06|05|01","International Relations and Cooperation","International Transfers","Departmental Agencies"]
[null,null,null,null,null,6,5,2,"06","05","02","06|05|02","International Relations and Cooperation","International Transfers","Membership contribution"]
[null,null,null,null,null,7,1,1,"07","01","01","07|01|01","National School of Government","Administration","Management"]
[null,null,null,null,null,7,1,2,"07","01","02","07|01|02","National School of Government","Administration","Corporate Services"]
[null,null,null,null,null,7,1,3,"07","01","03","07|01|03","National School of Government","Administration","Property Management"]
[null,null,null,null,null,7,2,1,"07","02","01","07|02|01","National School of Government","Public Sector Organisational and Staff Development","National School of Government Training Trading Account"]
[null,null,null,null,null,8,1,1,"08","01","01","08|01|01","National Treasury","Administration","Ministry"]
[null,null,null,null,null,8,1,2,"08","01","02","08|01|02","National Treasury","Administration","Departmental Management"]
[null,null,null,null,null,8,1,3,"08","01","03","08|01|03","National Treasury","Administration","Corporate Services"]
[null,null,null,null,null,8,1,4,"08","01","04","08|01|04","National Treasury","Administration","Enterprise-wide Risk Management"]
[null,null,null,null,null,8,1,5,"08","01","05","08|01|05","National Treasury","Administration","Financial Administration"]
[null,null,null,null,null,8,1,6,"08","01","06","08|01|06","National Treasury","Administration","Legal Services"]
[null,null,null,null,null,8,1,7,"08","01","07","08|01|07","National Treasury","Administration","Internal Audit"]
[null,null,null,null,null,8,1,8,"08","01","08","08|01|08","National Treasury","Administration","Communications"]
[null,null,null,null,null,8,1,9,"08","01","09","08|01|09","National Treasury","Administration","Office Accommodation"]
[null,null,null,null,null,8,2,1,"08","02","01","08|02|01","National Treasury","Economic Policy, Tax, Financial Regulation and Research","Programme Management for Economic Policy, Tax, Financial Regulation and Research"]
[null,null,null,null,null,8,2,2,"08","02","02","08|02|02","National Treasury","Economic Policy, Tax, Financial Regulation and Research","Financial Sector Policy"]
[null,null,null,null,null,8,2,3,"08","02","03","08|02|03","National Treasury","Economic Policy, Tax, Financial Regulation and Research","Tax Policy"]
[null,null,null,null,null,8,2,4,"08","02","04","08|02|04","National Treasury","Economic Policy, Tax, Financial Regulation and Research","Economic Policy"]
[null,null,null,null,null,8,2,5,"08","02","05","08|02|05","National Treasury","Economic Policy, Tax, Financial Regulation and Research","Cooperative Banks Development Agency"]
[null,null,null,null,null,8,3,1,"08","03","01","08|03|01","National Treasury","Public Finance and Budget Management","Programme Management for Public Finance and Budget Management"]
[null,null,null,null,null,8,3,2,"08","03","02","08|03|02","National Treasury","Public Finance and Budget Management","Public Finance"]
[null,null,null,null,null,8,3,3,"08","03","03","08|03|03","National Treasury","Public Finance and Budget Management","Budget Office and Coordination"]
[null,null,null,null,null,8,3,4,"08","03","04","08|03|04","National Treasury","Public Finance and Budget Management","Intergovernmental Relations"]
[null,null,null,null,null,8,3,5,"08","03","05","08|03|05","National Treasury","Public Finance and Budget Management","Financial and Fiscal Commission"]
[null,null,null,null,null,8,3,6,"08","03","06","08|03|06","National Treasury","Public Finance and Budget Management","Facilitation of Conditional Grants"]
[null,null,null,null,null,8,3,7,"08","03","07","08|03|07","National Treasury","Public Finance and Budget Management","Catalytic Infrastructure and Development Support Programme"]
[null,null,null,null,null,8,3,8,"08","03","08","08|03|08","National Treasury","Public Finance and Budget Management","Government Technical Advisory Centre"]
[null,null,null,null,null,8,4,1,"08","04","01","08|04|01","National Treasury","Asset and Liability Management","Programme Management for Asset and Liability Management"]
[null,null,null,null,null,8,4,2,"08","04","02","08|04|02","National Treasury","Asset and Liability Management","State-owned Entity Financial Management and Governance"]
[null,null,null,null,null,8,4,3,"08","04","03","08|04|03","National Treasury","Asset and Liability Management","Government Debt Management"]
[null,null,null,null,null,8,4,4,"08","04","04","08|04|04","National Treasury","Asset and Liability Management","Financial Operations"]
[null,null,null,null,null,8,4,5,"08","04","05","08|04|05","National Treasury","Asset and Liability Management","Strategy and Risk Management"]
[null,null,null,null,null,8,5,1,"08","05","01","08|05|01","National Treasury","Financial Accounting and Supply Chain Management Systems","Programme Management for Financial Accounting and Supply Chain Management Systems"]
[null,null,null,null,null,8,5,2,"08","05","02","08|05|02","National Treasury","Financial Accounting and Supply Chain Management Systems","Office of the Chief Procurement Officer"]
[null,null,null,null,null,8,5,3,"08","05","03","08|05|03","National Treasury","Financial Accounting and Supply Chain Management Systems","Financial Systems"]
[null,null,null,null,null,8,5,4,"08","05","04","08|05|04","National Treasury","Financial Accounting and Supply Chain Management Systems","Financial Reporting for National Accounts"]
[null,null,null,null,null,8,5,5,"08","05","05","08|05|05","National Treasury","Financial Accounting and Supply Chain Management Systems","Financial Management Policy and Compliance Improvement"]
[null,null,null,null,null,8,5,6,"08","05","06","08|05|06","National Treasury","Financial Accounting and Supply Chain Management Systems","Audit Statutory Bodies"]
[null,null,null,null,null,8,5,7,"08","05","07","08|05|07","National Treasury","Financial Accounting and Supply Chain Management Systems","Service Charges: Commercial Banks"]
[null,null,null,null,null,8,6,1,"08","06","01","08|06|01","National Treasury","International Financial Relations","Programme Management for International Financial Relations"]
[null,null,null,null,null,8,6,2,"08","06","02","08|06|02","National Treasury","International Financial Relations","International Economic Cooperation"]
[null,null,null,null,null,8,6,3,"08","06","03","08|06|03","National Treasury","International Financial Relations","African Integration and Support"]
[null,null,null,null,null,8,6,4,"08","06","04","08|06|04","National Treasury","International Financial Relations","International Development Funding Institutions"]
[null,null,null,null,null,8,6,5,"08","06","05","08|06|05","National Treasury","International Financial Relations","International Projects"]
[null,null,null,null,null,8,7,1,"08","07","01","08|07|01","National Treasury","Civil and Military Pensions, Contributions to Funds and Other Benefits","Government Pensions Administration Agency"]
[null,null,null,null,null,8,7,2,"08","07","02","08|07|02","National Treasury","Civil and Military Pensions, Contributions to Funds and Other Benefits","Civil Pensions and Contributions to Funds"]
[null,null,null,null,null,8,7,3,"08","07","03","08|07|03","National Treasury","Civil and Military Pensions, Contributions to Funds and Other Benefits","Military Pensions and Other Benefits"]
[null,null,null,null,null,8,8,1,"08","08","01","08|08|01","National Treasury","Revenue Administration","South African Revenue Service"]
[null,null,null,null,null,8,9,1,"08","09","01","08|09|01","National Treasury","Financial Intelligence and State Security","Financial Intelligence Centre"]
[null,null,null,null,null,8,9,2,"08","09","02","08|09|02","National Treasury","Financial Intelligence and State Security","Secret Services"]
[null,null,null,null,null,8,16,1,"08","16","01","08|16|01","National Treasury","Direct charge against the National Revenue Fund","Provincial Equitable Share"]
[null,null,null,null,null,8,16,2,"08","16","02","08|16|02","National Treasury","Direct charge against the National Revenue Fund","Debt-service costs"]
[null,null,null,null,null,8,16,3,"08","16","03","08|16|03","National Treasury","Direct charge against the National Revenue Fund","General Fuel Levy Sharing with Metropolitan Municipalities"]
[null,null,null,null,null,8,16,4,"08","16","04","08|16|04","National Treasury","Direct charge against the National Revenue Fund","National Revenue Fund payments"]
[null,null,null,null,null,8,16,5,"08","16","05","08|16|05","National Treasury","Direct charge against the National Revenue Fund","Auditor-General of South Africa"]
[null,null,null,null,null,8,16,6,"08","16","06","08|16|06","National Treasury","Direct charge against the National Revenue Fund","Public Finance Management Act (1999) section 70 payment: Land and Agricultural Development Bank of South Africa"]
[null,null,null,null,null,9,1,1,"09","01","01","09|01|01","Planning, Monitoring and Evaluation","Administration","Ministerial Support"]
[null,null,null,null,null,9,1,2,"09","01","02","09|01|02","Planning, Monitoring and Evaluation","Administration","Departmental Management"]
[null,null,null,null,null,9,1,3,"09","01","03","09|01|03","Planning, Monitoring and Evaluation","Administration","Corporate and Financial Services"]
[null,null,null,null,null,9,2,1,"09","02","01","09|02|01","Planning, Monitoring and Evaluation","National Planning Coordination","Management: National Planning Coordination"]
[null,null,null,null,null,9,2,2,"09","02","02","09|02|02","Planning, Monitoring and Evaluation","National Planning Coordination","National Planning Coordination"]
[null,null,null,null,null,9,2,3,"09","02","03","09|02|03","Planning, Monitoring and Evaluation","National Planning Coordination","National Planning Commission Secretariat"]
[null,null,null,null,null,9,3,1,"09","03","01","09|03|01","Planning, Monitoring and Evaluation","Sector Monitoring Services","Management: Sector Monitoring Services"]
[null,null,null,null,null,9,3,2,"09","03","02","09|03|02","Planning, Monitoring and Evaluation","Sector Monitoring Services","Outcomes Monitoring and Support"]
[null,null,null,null,null,9,3,3,"09","03","03","09|03|03","Planning, Monitoring and Evaluation","Sector Monitoring Services","Intervention Support"]
[null,null,null,null,null,9,4,1,"09","04","01","09|04|01","Planning, Monitoring and Evaluation","Public Sector Monitoring and Capacity Development","Management: Public Sector Monitoring and Capacity Development"]
[null,null,null,null,null,9,4,2,"09","04","02","09|04|02","Planning, Monitoring and Evaluation","Public Sector Monitoring and Capacity Development","Public Service Monitoring and Capacity Development"]
[null,null,null,null,null,9,5,1,"09","05","01","09|05|01","Planning, Monitoring and Evaluation","Evidence and Knowledge Systems","Management: Evidence and Knowledge Systems"]
[null,null,null,null,null,9,5,2,"09","05","02","09|05|02","Planning, Monitoring and Evaluation","Evidence and Knowledge Systems","Evaluation, Research, Knowledge and Data Systems"]
[null,null,null,null,null,10,1,1,"10","01","01","10|01|01","Public Enterprises","Administration","Ministry"]
[null,null,null,null,null,10,1,2,"10","01","02","10|01|02","Public Enterprises","Administration","Management"]
[null,null,null,null,null,10,1,3,"10","01","03","10|01|03","Public Enterprises","Administration","Communications"]
[null,null,null,null,null,10,1,4,"10","01","04","10|01|04","Public Enterprises","Administration","Chief Financial Officer"]
[null,null,null,null,null,10,1,5,"10","01","05","10|01|05","Public Enterprises","Administration","Human Resources"]
[null,null,null,null,null,10,1,6,"10","01","06","10|01|06","Public Enterprises","Administration","Internal Audit"]
[null,null,null,null,null,10,1,7,"10","01","07","10|01|07","Public Enterprises","Administration","Corporate Services"]
[null,null,null,null,null,10,1,8,"10","01","08","10|01|08","Public Enterprises","Administration","Office Accommodation"]
[null,null,null,null,null,10,2,1,"10","02","01","10|02|01","Public Enterprises","State-owned Companies Governance Assurance and Performance","Management"]
[null,null,null,null,null,10,2,2,"10","02","02","10|02|02","Public Enterprises","State-owned Companies Governance Assurance and Performance","Legal"]
[null,null,null,null,null,10,2,3,"10","02","03","10|02|03","Public Enterprises","State-owned Companies Governance Assurance and Performance","Governance"]
[null,null,null,null,null,10,2,4,"10","02","04","10|02|04","Public Enterprises","State-owned Companies Governance Assurance and Performance","Financial Assessment and Investment Support"]
[null,null,null,null,null,10,3,1,"10","03","01","10|03|01","Public Enterprises","Business Enhancement, Transformation and Industrialisation","Energy Resources"]
[null,null,null,null,null,10,3,2,"10","03","02","10|03|02","Public Enterprises","Business Enhancement, Transformation and Industrialisation","Research and Economic Modelling"]
[null,null,null,null,null,10,3,3,"10","03","03","10|03|03","Public Enterprises","Business Enhancement, Transformation and Industrialisation","Transport and Defence"]
[null,null,null,null,null,10,3,4,"10","03","04","10|03|04","Public Enterprises","Business Enhancement, Transformation and Industrialisation","Business Enhancement Services"]
[null,null,null,null,null,10,16,1,"10","16","01","10|16|01","Public Enterprises","Direct charge against the National Revenue Fund","Section 70 of the Public Finance Management Act (1999) payment: South African Express Airways SOC Ltd"]
[null,null,null,null,null,10,16,2,"10","16","02","10|16|02","Public Enterprises","Direct charge against the National Revenue Fund","Section 70 of the Public Finance Management Act (1999) payment: South African Airways SOC Ltd"]
[null,null,null,null,null,10,16,3,"10","16","03","10|16|03","Public Enterprises","Direct charge against the National Revenue Fund","Section 70 of the Public Finance Management Act (1999) payment: Denel SOC Ltd"]
[null,null,null,null,null,11,1,1,"11","01","01","11|01|01","Public Service and Administration","Administration","Ministry"]
[null,null,null,null,null,11,1,2,"11","01","02","11|01|02","Public Service and Administration","Administration","Departmental Management"]
[null,null,null,null,null,11,1,3,"11","01","03","11|01|03","Public Service and Administration","Administration","Corporate Services"]
[null,null,null,null,null,11,1,4,"11","01","04","11|01|04","Public Service and Administration","Administration","Finance Administration"]
[null,null,null,null,null,11,1,5,"11","01","05","11|01|05","Public Service and Administration","Administration","Internal Audit"]
[null,null,null,null,null,11,1,6,"11","01","06","11|01|06","Public Service and Administration","Administration","Legal Services"]
[null,null,null,null,null,11,1,7,"11","01","07","11|01|07","Public Service and Administration","Administration","International Relations and Donor Funding"]
[null,null,null,null,null,11,1,8,"11","01","08","11|01|08","Public Service and Administration","Administration","Office Accommodation"]
[null,null,null,null,null,11,2,1,"11","02","01","11|02|01","Public Service and Administration","Human Resource Management and Development","Management: Human Resource Management and Development"]
[null,null,null,null,null,11,2,2,"11","02","02","11|02|02","Public Service and Administration","Human Resource Management and Development","Office of Standards and Compliance"]
[null,null,null,null,null,11,2,3,"11","02","03","11|02|03","Public Service and Administration","Human Resource Management and Development","Human Resource Planning, Employment and Performance Management"]
[null,null,null,null,null,11,2,4,"11","02","04","11|02|04","Public Service and Administration","Human Resource Management and Development","Human Resource Development"]
[null,null,null,null,null,11,2,5,"11","02","05","11|02|05","Public Service and Administration","Human Resource Management and Development","Transformation and Workplace Environment Management"]
[null,null,null,null,null,11,3,1,"11","03","01","11|03|01","Public Service and Administration","Negotiations, Labour Relations and Remuneration Management","Management: Negotiations, Labour Relations and Remuneration Management"]
[null,null,null,null,null,11,3,2,"11","03","02","11|03|02","Public Service and Administration","Negotiations, Labour Relations and Remuneration Management","Negotiations, Labour Relations and Dispute Management"]
[null,null,null,null,null,11,3,3,"11","03","03","11|03|03","Public Service and Administration","Negotiations, Labour Relations and Remuneration Management","Remuneration, Employment Conditions and Human Resource Systems"]
[null,null,null,null,null,11,3,4,"11","03","04","11|03|04","Public Service and Administration","Negotiations, Labour Relations and Remuneration Management","Macro Benefits and Government Employees Housing Scheme"]
[null,null,null,null,null,11,3,5,"11","03","05","11|03|05","Public Service and Administration","Negotiations, Labour Relations and Remuneration Management","Organisational Development, Job Grading and Macro Organisation of the State"]
[null,null,null,null,null,11,3,6,"11","03","06","11|03|06","Public Service and Administration","Negotiations, Labour Relations and Remuneration Management","Public Administration Ethics, Integrity and Disciplinary Technical Assistance Unit"]
[null,null,null,null,null,11,4,1,"11","04","01","11|04|01","Public Service and Administration","e-Government Services and Information Management","Management: e-Government Services and Information Management"]
[null,null,null,null,null,11,4,2,"11","04","02","11|04|02","Public Service and Administration","e-Government Services and Information Management","e-Enablement and ICT Service Infrastructure Management"]
[null,null,null,null,null,11,4,3,"11","04","03","11|04|03","Public Service and Administration","e-Government Services and Information Management","Information and Stakeholder Management"]
[null,null,null,null,null,11,4,4,"11","04","04","11|04|04","Public Service and Administration","e-Government Services and Information Management","ICT Governance and Management"]
[null,null,null,null,null,11,4,5,"11","04","05","11|04|05","Public Service and Administration","e-Government Services and Information Management","Knowledge Management and Innovation"]
[null,null,null,null,null,11,5,1,"11","05","01","11|05|01","Public Service and Administration","Government Service Access and Improvement","Management: Government Service Access and Improvement"]
[null,null,null,null,null,11,5,2,"11","05","02","11|05|02","Public Service and Administration","Government Service Access and Improvement","Operations Management"]
[null,null,null,null,null,11,5,3,"11","05","03","11|05|03","Public Service and Administration","Government Service Access and Improvement","Service Delivery Improvement, Citizen Relations and Public Participation"]
[null,null,null,null,null,11,5,4,"11","05","04","11|05|04","Public Service and Administration","Government Service Access and Improvement","Service Access"]
[null,null,null,null,null,11,5,5,"11","05","05","11|05|05","Public Service and Administration","Government Service Access and Improvement","International Cooperation and Stakeholder Relations"]
[null,null,null,null,null,11,5,6,"11","05","06","11|05|06","Public Service and Administration","Government Service Access and Improvement","Centre for Public Service Innovation"]
[null,null,null,null,null,12,1,1,"12","01","01","12|01|01","Public Service Commission","Administration","Public Service Commission"]
[null,null,null,null,null,12,1,2,"12","01","02","12|01|02","Public Service Commission","Administration","Management"]
[null,null,null,null,null,12,1,3,"12","01","03","12|01|03","Public Service Commission","Administration","Corporate Services"]
[null,null,null,null,null,12,1,4,"12","01","04","12|01|04","Public Service Commission","Administration","Property Management"]
[null,null,null,null,null,12,1,5,"12","01","05","12|01|05","Public Service Commission","Administration","Chief Financial Officer"]
[null,null,null,null,null,12,2,1,"12","02","01","12|02|01","Public Service Commission","Leadership and Management Practices","Labour Relations Improvement"]
[null,null,null,null,null,12,2,2,"12","02","02","12|02|02","Public Service Commission","Leadership and Management Practices","Leadership and Human Resource Reviews"]
[null,null,null,null,null,12,2,3,"12","02","03","12|02|03","Public Service Commission","Leadership and Management Practices","Programme Management: Leadership and Management Practices"]
[null,null,null,null,null,12,3,1,"12","03","01","12|03|01","Public Service Commission","Monitoring and Evaluation","Governance Monitoring"]
[null,null,null,null,null,12,3,2,"12","03","02","12|03|02","Public Service Commission","Monitoring and Evaluation","Service Delivery and Compliance Evaluations"]
[null,null,null,null,null,12,3,3,"12","03","03","12|03|03","Public Service Commission","Monitoring and Evaluation","Programme Management: Monitoring and Evaluation"]
[null,null,null,null,null,12,4,1,"12","04","01","12|04|01","Public Service Commission","Integrity and Anti-corruption","Public Administration Investigations"]
[null,null,null,null,null,12,4,2,"12","04","02","12|04|02","Public Service Commission","Integrity and Anti-corruption","Professional Ethics"]
[null,null,null,null,null,12,4,3,"12","04","03","12|04|03","Public Service Commission","Integrity and Anti-corruption","Programme Management: Integrity and Anti-corruption"]
[null,null,null,null,null,12,5,1,"12","05","01","12|05|01","Public Service Commission","Provincial Coordination","Provincial Operations"]
[null,null,null,null,null,13,1,1,"13","01","01","13|01|01","Public Works and Infrastructure","Administration","Ministry"]
[null,null,null,null,null,13,1,2,"13","01","02","13|01|02","Public Works and Infrastructure","Administration","Management"]
[null,null,null,null,null,13,1,3,"13","01","03","13|01|03","Public Works and Infrastructure","Administration","Corporate Services"]
[null,null,null,null,null,13,1,4,"13","01","04","13|01|04","Public Works and Infrastructure","Administration","Finance and Supply Chain Management"]
[null,null,null,null,null,13,1,5,"13","01","05","13|01|05","Public Works and Infrastructure","Administration","Office Accommodation"]
[null,null,null,null,null,13,2,1,"13","02","01","13|02|01","Public Works and Infrastructure","Intergovernmental Coordination","Monitoring, Evaluation and Reporting"]
[null,null,null,null,null,13,2,2,"13","02","02","13|02|02","Public Works and Infrastructure","Intergovernmental Coordination","Intergovernmental Relations and Coordination"]
[null,null,null,null,null,13,2,3,"13","02","03","13|02|03","Public Works and Infrastructure","Intergovernmental Coordination","Professional Services"]
[null,null,null,null,null,13,3,1,"13","03","01","13|03|01","Public Works and Infrastructure","Expanded Public Works Programme","Expanded Public Works Programme: Monitoring and Evaluation"]
[null,null,null,null,null,13,3,2,"13","03","02","13|03|02","Public Works and Infrastructure","Expanded Public Works Programme","Expanded Public Works Programme: Infrastructure"]
[null,null,null,null,null,13,3,3,"13","03","03","13|03|03","Public Works and Infrastructure","Expanded Public Works Programme","Expanded Public Works Programme: Operations"]
[null,null,null,null,null,13,3,4,"13","03","04","13|03|04","Public Works and Infrastructure","Expanded Public Works Programme","Expanded Public Works Programme: Partnership Support"]
[null,null,null,null,null,13,3,5,"13","03","05","13|03|05","Public Works and Infrastructure","Expanded Public Works Programme","Expanded Public Works Programme: Public Employment Coordinating Commission"]
[null,null,null,null,null,13,4,1,"13","04","01","13|04|01","Public Works and Infrastructure","Property and Construction Industry Policy and Research","Construction Policy Development Programme"]
[null,null,null,null,null,13,4,2,"13","04","02","13|04|02","Public Works and Infrastructure","Property and Construction Industry Policy and Research","Property Policy Development Programme"]
[null,null,null,null,null,13,4,3,"13","04","03","13|04|03","Public Works and Infrastructure","Property and Construction Industry Policy and Research","Construction Industry Development Board"]
[null,null,null,null,null,13,4,4,"13","04","04","13|04|04","Public Works and Infrastructure","Property and Construction Industry Policy and Research","Council for the Built Environment"]
[null,null,null,null,null,13,4,5,"13","04","05","13|04|05","Public Works and Infrastructure","Property and Construction Industry Policy and Research","Independent Development Trust"]
[null,null,null,null,null,13,4,6,"13","04","06","13|04|06","Public Works and Infrastructure","Property and Construction Industry Policy and Research","Construction Education and Training Authority"]
[null,null,null,null,null,13,4,7,"13","04","07","13|04|07","Public Works and Infrastructure","Property and Construction Industry Policy and Research","Property Management Trading Entity"]
[null,null,null,null,null,13,4,8,"13","04","08","13|04|08","Public Works and Infrastructure","Property and Construction Industry Policy and Research","Assistance to Organisations for the Preservation of National Memorials"]
[null,null,null,null,null,13,4,9,"13","04","09","13|04|09","Public Works and Infrastructure","Property and Construction Industry Policy and Research","Infrastructure Development Coordination"]
[null,null,null,null,null,13,5,1,"13","05","01","13|05|01","Public Works and Infrastructure","Prestige Policy","Prestige Accommodation and State Functions"]
[null,null,null,null,null,13,5,2,"13","05","02","13|05|02","Public Works and Infrastructure","Prestige Policy","Parliamentary Villages Management Board"]
[null,null,null,null,null,14,1,1,"14","01","01","14|01|01","Statistics South Africa","Administration","Departmental Management"]
[null,null,null,null,null,14,1,2,"14","01","02","14|01|02","Statistics South Africa","Administration","Corporate Services"]
[null,null,null,null,null,14,1,3,"14","01","03","14|01|03","Statistics South Africa","Administration","Financial Administration"]
[null,null,null,null,null,14,1,4,"14","01","04","14|01|04","Statistics South Africa","Administration","Internal Audit"]
[null,null,null,null,null,14,1,5,"14","01","05","14|01|05","Statistics South Africa","Administration","Office Accommodation"]
[null,null,null,null,null,14,2,1,"14","02","01","14|02|01","Statistics South Africa","Economic Statistics","Programme Management for Economic Statistics"]
[null,null,null,null,null,14,2,2,"14","02","02","14|02|02","Statistics South Africa","Economic Statistics","Business Cycle Indicators"]
[null,null,null,null,null,14,2,3,"14","02","03","14|02|03","Statistics South Africa","Economic Statistics","Structural Industry Statistics"]
[null,null,null,null,null,14,2,4,"14","02","04","14|02|04","Statistics South Africa","Economic Statistics","Price Statistics"]
[null,null,null,null,null,14,2,5,"14","02","05","14|02|05","Statistics South Africa","Economic Statistics","Private Sector Finance Statistics"]
[null,null,null,null,null,14,2,6,"14","02","06","14|02|06","Statistics South Africa","Economic Statistics","Government Finance Statistics"]
[null,null,null,null,null,14,2,7,"14","02","07","14|02|07","Statistics South Africa","Economic Statistics","National Accounts"]
[null,null,null,null,null,14,3,1,"14","03","01","14|03|01","Statistics South Africa","Population and Social Statistics","Programme Management for Population and Social Statistics"]
[null,null,null,null,null,14,3,2,"14","03","02","14|03|02","Statistics South Africa","Population and Social Statistics","Demographic and Population Statistics"]
[null,null,null,null,null,14,3,3,"14","03","03","14|03|03","Statistics South Africa","Population and Social Statistics","Health and Vital Statistics"]
[null,null,null,null,null,14,3,4,"14","03","04","14|03|04","Statistics South Africa","Population and Social Statistics","Social Statistics"]
[null,null,null,null,null,14,3,5,"14","03","05","14|03|05","Statistics South Africa","Population and Social Statistics","Labour Statistics"]
[null,null,null,null,null,14,3,6,"14","03","06","14|03|06","Statistics South Africa","Population and Social Statistics","Poverty and Inequality Statistics"]
[null,null,null,null,null,14,4,1,"14","04","01","14|04|01","Statistics South Africa","Methodology and Statistical Infrastructure","Programme Management for Methodology and Statistical Infrastructure"]
[null,null,null,null,null,14,4,2,"14","04","02","14|04|02","Statistics South Africa","Methodology and Statistical Infrastructure","Statistical Methods"]
[null,null,null,null,null,14,4,3,"14","04","03","14|04|03","Statistics South Africa","Methodology and Statistical Infrastructure","Statistical Standards"]
[null,null,null,null,null,14,4,4,"14","04","04","14|04|04","Statistics South Africa","Methodology and Statistical Infrastructure","Business Register"]
[null,null,null,null,null,14,4,5,"14","04","05","14|04|05","Statistics South Africa","Methodology and Statistical Infrastructure","Geography"]
[null,null,null,null,null,14,4,6,"14","04","06","14|04|06","Statistics South Africa","Methodology and Statistical Infrastructure","Survey Monitoring and Evaluation"]
[null,null,null,null,null,14,4,7,"14","04","07","14|04|07","Statistics South Africa","Methodology and Statistical Infrastructure","Innovation and Research"]
[null,null,null,null,null,14,5,1,"14","05","01","14|05|01","Statistics South Africa","Statistical Support and Informatics","Programme Management for Statistical Support and Informatics"]
[null,null,null,null,null,14,5,2,"14","05","02","14|05|02","Statistics South Africa","Statistical Support and Informatics","Advocacy and Dissemination"]
[null,null,null,null,null,14,5,3,"14","05","03","14|05|03","Statistics South Africa","Statistical Support and Informatics","Business Modernisation"]
[null,null,null,null,null,14,5,4,"14","05","04","14|05|04","Statistics South Africa","Statistical Support and Informatics","Publication Services"]
[null,null,null,null,null,14,5,5,"14","05","05","14|05|05","Statistics South Africa","Statistical Support and Informatics","Information, Communication and Technology"]
[null,null,null,null,null,14,5,6,"14","05","06","14|05|06","Statistics South Africa","Statistical Support and Informatics","Analytical Studies"]
[null,null,null,null,null,14,6,1,"14","06","01","14|06|01","Statistics South Africa","Statistical Operations and Provincial Coordination","Programme Management for Statistical Operations and Provincial Coordination"]
[null,null,null,null,null,14,6,2,"14","06","02","14|06|02","Statistics South Africa","Statistical Operations and Provincial Coordination","Provincial and District Offices"]
[null,null,null,null,null,14,6,3,"14","06","03","14|06|03","Statistics South Africa","Statistical Operations and Provincial Coordination","Data Operations"]
[null,null,null,null,null,14,6,4,"14","06","04","14|06|04","Statistics South Africa","Statistical Operations and Provincial Coordination","Household Survey and Censuses"]
[null,null,null,null,null,14,7,1,"14","07","01","14|07|01","Statistics South Africa","South African National Statistics System","Programme Management for the South African National Statistics System"]
[null,null,null,null,null,14,7,2,"14","07","02","14|07|02","Statistics South Africa","South African National Statistics System","Economic Subsystem"]
[null,null,null,null,null,14,7,3,"14","07","03","14|07|03","Statistics South Africa","South African National Statistics System","Social Subsystem"]
[null,null,null,null,null,14,7,4,"14","07","04","14|07|04","Statistics South Africa","South African National Statistics System","Independent Quality Assessment"]
[null,null,null,null,null,14,7,5,"14","07","05","14|07|05","Statistics South Africa","South African National Statistics System","Statistical Reporting"]
[null,null,null,null,null,14,7,6,"14","07","06","14|07|06","Statistics South Africa","South African National Statistics System","Data and Information Management"]
[null,null,null,null,null,15,1,1,"15","01","01","15|01|01","Traditional Affairs","Administration","Ministry"]
[null,null,null,null,null,15,1,2,"15","01","02","15|01|02","Traditional Affairs","Administration","Management of Traditional Affairs"]
[null,null,null,null,null,15,1,3,"15","01","03","15|01|03","Traditional Affairs","Administration","Corporate Services"]
[null,null,null,null,null,15,1,4,"15","01","04","15|01|04","Traditional Affairs","Administration","Internal Audit"]
[null,null,null,null,null,15,2,1,"15","02","01","15|02|01","Traditional Affairs","Research, Policy and Legislation","Management"]
[null,null,null,null,null,15,2,2,"15","02","02","15|02|02","Traditional Affairs","Research, Policy and Legislation","Policy and Legislation"]
[null,null,null,null,null,15,2,3,"15","02","03","15|02|03","Traditional Affairs","Research, Policy and Legislation","Research and Information Management"]
[null,null,null,null,null,15,3,1,"15","03","01","15|03|01","Traditional Affairs","Institutional Support and Coordination","Management"]
[null,null,null,null,null,15,3,2,"15","03","02","15|03|02","Traditional Affairs","Institutional Support and Coordination","Institutional Development and Capacity Building"]
[null,null,null,null,null,15,3,3,"15","03","03","15|03|03","Traditional Affairs","Institutional Support and Coordination","Intergovernmental Relations and Partnerships"]
[null,null,null,null,null,15,3,4,"15","03","04","15|03|04","Traditional Affairs","Institutional Support and Coordination","National House of Traditional Leaders"]
[null,null,null,null,null,15,3,5,"15","03","05","15|03|05","Traditional Affairs","Institutional Support and Coordination","Commission for the Promotion and Protection of the Rights of Cultural, Religious and Linguistic Communities"]
[null,null,null,null,null,15,3,6,"15","03","06","15|03|06","Traditional Affairs","Institutional Support and Coordination","Disputes and Claims Resolution"]
[null,null,null,null,null,16,1,1,"16","01","01","16|01|01","Basic Education","Administration","Ministry"]
[null,null,null,null,null,16,1,2,"16","01","02","16|01|02","Basic Education","Administration","Department Management"]
[null,null,null,null,null,16,1,3,"16","01","03","16|01|03","Basic Education","Administration","Corporate Services"]
[null,null,null,null,null,16,1,4,"16","01","04","16|01|04","Basic Education","Administration","Office of the Chief Financial Officer"]
[null,null,null,null,null,16,1,5,"16","01","05","16|01|05","Basic Education","Administration","Internal Audit"]
[null,null,null,null,null,16,1,6,"16","01","06","16|01|06","Basic Education","Administration","Office Accommodation"]
[null,null,null,null,null,16,2,1,"16","02","01","16|02|01","Basic Education","Curriculum Policy, Support and Monitoring","Programme Management: Curriculum Policy, Support and Monitoring"]
[null,null,null,null,null,16,2,2,"16","02","02","16|02|02","Basic Education","Curriculum Policy, Support and Monitoring","Curriculum Implementation and Monitoring"]
[null,null,null,null,null,16,2,3,"16","02","03","16|02|03","Basic Education","Curriculum Policy, Support and Monitoring","Curriculum and Quality Enhancement Programmes"]
[null,null,null,null,null,16,2,4,"16","02","04","16|02|04","Basic Education","Curriculum Policy, Support and Monitoring","Early Childhood Development"]
[null,null,null,null,null,16,3,1,"16","03","01","16|03|01","Basic Education","Teachers, Education Human Resources and Institutional Development","Programme Management: Teachers, Education Human Resources and Institutional Development"]
[null,null,null,null,null,16,3,2,"16","03","02","16|03|02","Basic Education","Teachers, Education Human Resources and Institutional Development","Education Human Resources Management"]
[null,null,null,null,null,16,3,3,"16","03","03","16|03|03","Basic Education","Teachers, Education Human Resources and Institutional Development","Education Human Resources Development"]
[null,null,null,null,null,16,3,4,"16","03","04","16|03|04","Basic Education","Teachers, Education Human Resources and Institutional Development","Curriculum and Professional Development Unit"]
[null,null,null,null,null,16,4,1,"16","04","01","16|04|01","Basic Education","Planning, Information and Assessment","Programme Management: Planning, Information and Assessment"]
[null,null,null,null,null,16,4,2,"16","04","02","16|04|02","Basic Education","Planning, Information and Assessment","Financial Planning, Information and Management Systems"]
[null,null,null,null,null,16,4,3,"16","04","03","16|04|03","Basic Education","Planning, Information and Assessment","School Infrastructure"]
[null,null,null,null,null,16,4,4,"16","04","04","16|04|04","Basic Education","Planning, Information and Assessment","National Assessments and Public Examinations"]
[null,null,null,null,null,16,4,5,"16","04","05","16|04|05","Basic Education","Planning, Information and Assessment","National Education Evaluation and Development Unit"]
[null,null,null,null,null,16,4,6,"16","04","06","16|04|06","Basic Education","Planning, Information and Assessment","Planning and Delivery Oversight Unit"]
[null,null,null,null,null,16,5,1,"16","05","01","16|05|01","Basic Education","Educational Enrichment Services","Programme Management: Educational Enrichment Services"]
[null,null,null,null,null,16,5,2,"16","05","02","16|05|02","Basic Education","Educational Enrichment Services","Partnerships in Education"]
[null,null,null,null,null,16,5,3,"16","05","03","16|05|03","Basic Education","Educational Enrichment Services","Care and Support in Schools"]
[null,null,null,null,null,17,1,1,"17","01","01","17|01|01","Higher Education and Training","Administration","Department Management"]
[null,null,null,null,null,17,1,2,"17","01","02","17|01|02","Higher Education and Training","Administration","Corporate Management Services"]
[null,null,null,null,null,17,1,3,"17","01","03","17|01|03","Higher Education and Training","Administration","Office of the Chief Financial Officer"]
[null,null,null,null,null,17,1,4,"17","01","04","17|01|04","Higher Education and Training","Administration","Internal Audit"]
[null,null,null,null,null,17,1,5,"17","01","05","17|01|05","Higher Education and Training","Administration","Office Accommodation"]
[null,null,null,null,null,17,2,1,"17","02","01","17|02|01","Higher Education and Training","Planning, Policy and Strategy","Programme Management: Planning, Policy and Strategy"]
[null,null,null,null,null,17,2,2,"17","02","02","17|02|02","Higher Education and Training","Planning, Policy and Strategy","Human Resource Development Council of South Africa"]
[null,null,null,null,null,17,2,3,"17","02","03","17|02|03","Higher Education and Training","Planning, Policy and Strategy","Policy, Planning, Monitoring and Evaluation"]
[null,null,null,null,null,17,2,4,"17","02","04","17|02|04","Higher Education and Training","Planning, Policy and Strategy","International Relations"]
[null,null,null,null,null,17,2,5,"17","02","05","17|02|05","Higher Education and Training","Planning, Policy and Strategy","Legal and Legislative Services"]
[null,null,null,null,null,17,2,6,"17","02","06","17|02|06","Higher Education and Training","Planning, Policy and Strategy","Social Inclusion and Quality"]
[null,null,null,null,null,17,3,1,"17","03","01","17|03|01","Higher Education and Training","University Education","Programme Management: University Education"]
[null,null,null,null,null,17,3,2,"17","03","02","17|03|02","Higher Education and Training","University Education","University Planning and Institutional Funding"]
[null,null,null,null,null,17,3,3,"17","03","03","17|03|03","Higher Education and Training","University Education","Institutional Governance and Management Support"]
[null,null,null,null,null,17,3,4,"17","03","04","17|03|04","Higher Education and Training","University Education","Higher Education Policy Development and Research"]
[null,null,null,null,null,17,3,5,"17","03","05","17|03|05","Higher Education and Training","University Education","Teaching, Learning and Research Development"]
[null,null,null,null,null,17,3,6,"17","03","06","17|03|06","Higher Education and Training","University Education","University Subsidies"]
[null,null,null,null,null,17,4,1,"17","04","01","17|04|01","Higher Education and Training","Technical and Vocational Education and Training","Programme Management: Technical and Vocational Education and Training"]
[null,null,null,null,null,17,4,2,"17","04","02","17|04|02","Higher Education and Training","Technical and Vocational Education and Training","Technical and Vocational Education and Training System Planning and Institutional Support"]
[null,null,null,null,null,17,4,3,"17","04","03","17|04|03","Higher Education and Training","Technical and Vocational Education and Training","Programmes and Qualifications"]
[null,null,null,null,null,17,4,4,"17","04","04","17|04|04","Higher Education and Training","Technical and Vocational Education and Training","National Examinations and Assessment"]
[null,null,null,null,null,17,4,5,"17","04","05","17|04|05","Higher Education and Training","Technical and Vocational Education and Training","Technical and Vocational Education and Training Financial Planning"]
[null,null,null,null,null,17,4,6,"17","04","06","17|04|06","Higher Education and Training","Technical and Vocational Education and Training","Regional Offices"]
[null,null,null,null,null,17,5,1,"17","05","01","17|05|01","Higher Education and Training","Skills Development","Programme Management: Skills Development"]
[null,null,null,null,null,17,5,2,"17","05","02","17|05|02","Higher Education and Training","Skills Development","Sector Education and Training Authority Coordination"]
[null,null,null,null,null,17,5,3,"17","05","03","17|05|03","Higher Education and Training","Skills Development","National Skills Authority Secretariat"]
[null,null,null,null,null,17,5,4,"17","05","04","17|05|04","Higher Education and Training","Skills Development","Quality Development and Promotion"]
[null,null,null,null,null,17,5,5,"17","05","05","17|05|05","Higher Education and Training","Skills Development","National Artisan Development"]
[null,null,null,null,null,17,6,1,"17","06","01","17|06|01","Higher Education and Training","Community Education and Training","Programme Management: Community Education and Training"]
[null,null,null,null,null,17,6,2,"17","06","02","17|06|02","Higher Education and Training","Community Education and Training","Community Education and Training System Planning, Institutional Development and Support"]
[null,null,null,null,null,17,6,3,"17","06","03","17|06|03","Higher Education and Training","Community Education and Training","Community Education and Training Colleges Financial Planning and Management"]
[null,null,null,null,null,17,6,4,"17","06","04","17|06|04","Higher Education and Training","Community Education and Training","Education, Training and Development Assessment"]
[null,null,null,null,null,17,16,1,"17","16","01","17|16|01","Higher Education and Training","Direct charge against the National Revenue Fund","Sector education and training authorities"]
[null,null,null,null,null,17,16,2,"17","16","02","17|16|02","Higher Education and Training","Direct charge against the National Revenue Fund","National Skills Fund"]
[null,null,null,null,null,18,1,1,"18","01","01","18|01|01","Health","Administration","Ministry"]
[null,null,null,null,null,18,1,2,"18","01","02","18|01|02","Health","Administration","Management"]
[null,null,null,null,null,18,1,3,"18","01","03","18|01|03","Health","Administration","Corporate Services"]
[null,null,null,null,null,18,1,4,"18","01","04","18|01|04","Health","Administration","Property Management"]
[null,null,null,null,null,18,1,5,"18","01","05","18|01|05","Health","Administration","Financial Management"]
[null,null,null,null,null,18,2,1,"18","02","01","18|02|01","Health","National Health Insurance","Programme Management"]
[null,null,null,null,null,18,2,2,"18","02","02","18|02|02","Health","National Health Insurance","Affordable Medicine"]
[null,null,null,null,null,18,2,3,"18","02","03","18|02|03","Health","National Health Insurance","Health Financing and National Health Insurance"]
[null,null,null,null,null,18,3,1,"18","03","01","18|03|01","Health","Communicable and Non-communicable Diseases","Programme Management"]
[null,null,null,null,null,18,3,2,"18","03","02","18|03|02","Health","Communicable and Non-communicable Diseases","HIV, AIDS and STIs"]
[null,null,null,null,null,18,3,3,"18","03","03","18|03|03","Health","Communicable and Non-communicable Diseases","Tuberculosis Management"]
[null,null,null,null,null,18,3,4,"18","03","04","18|03|04","Health","Communicable and Non-communicable Diseases","Women's Maternal and Reproductive Health"]
[null,null,null,null,null,18,3,5,"18","03","05","18|03|05","Health","Communicable and Non-communicable Diseases","Child, Youth and School Health"]
[null,null,null,null,null,18,3,6,"18","03","06","18|03|06","Health","Communicable and Non-communicable Diseases","Communicable Diseases"]
[null,null,null,null,null,18,3,7,"18","03","07","18|03|07","Health","Communicable and Non-communicable Diseases","Non-communicable Diseases"]
[null,null,null,null,null,18,3,8,"18","03","08","18|03|08","Health","Communicable and Non-communicable Diseases","Health Promotion and Nutrition"]
[null,null,null,null,null,18,4,1,"18","04","01","18|04|01","Health","Primary Health Care","Programme Management"]
[null,null,null,null,null,18,4,2,"18","04","02","18|04|02","Health","Primary Health Care","District Health Services"]
[null,null,null,null,null,18,4,3,"18","04","03","18|04|03","Health","Primary Health Care","Environmental and Port Health Services"]
[null,null,null,null,null,18,4,4,"18","04","04","18|04|04","Health","Primary Health Care","Emergency Medical Services and Trauma"]
[null,null,null,null,null,18,5,1,"18","05","01","18|05|01","Health","Hospital Systems","Programme Management"]
[null,null,null,null,null,18,5,2,"18","05","02","18|05|02","Health","Hospital Systems","Health Facilities Infrastructure Management"]
[null,null,null,null,null,18,5,3,"18","05","03","18|05|03","Health","Hospital Systems","Hospital Systems"]
[null,null,null,null,null,18,6,1,"18","06","01","18|06|01","Health","Health System Governance and Human Resources","Programme Management"]
[null,null,null,null,null,18,6,2,"18","06","02","18|06|02","Health","Health System Governance and Human Resources","Policy and Planning"]
[null,null,null,null,null,18,6,3,"18","06","03","18|06|03","Health","Health System Governance and Human Resources","Public Entities Management and Laboratories"]
[null,null,null,null,null,18,6,4,"18","06","04","18|06|04","Health","Health System Governance and Human Resources","Nursing Services"]
[null,null,null,null,null,18,6,5,"18","06","05","18|06|05","Health","Health System Governance and Human Resources","Health Information, Monitoring and Evaluation"]
[null,null,null,null,null,18,6,6,"18","06","06","18|06|06","Health","Health System Governance and Human Resources","Human Resources for Health"]
[null,null,null,null,null,19,1,1,"19","01","01","19|01|01","Social Development","Administration","Ministry"]
[null,null,null,null,null,19,1,2,"19","01","02","19|01|02","Social Development","Administration","Department Management"]
[null,null,null,null,null,19,1,3,"19","01","03","19|01|03","Social Development","Administration","Corporate Management"]
[null,null,null,null,null,19,1,4,"19","01","04","19|01|04","Social Development","Administration","Finance"]
[null,null,null,null,null,19,1,5,"19","01","05","19|01|05","Social Development","Administration","Internal Audit"]
[null,null,null,null,null,19,1,6,"19","01","06","19|01|06","Social Development","Administration","Office Accommodation"]
[null,null,null,null,null,19,2,1,"19","02","01","19|02|01","Social Development","Social Assistance","Old Age"]
[null,null,null,null,null,19,2,2,"19","02","02","19|02|02","Social Development","Social Assistance","War Veterans"]
[null,null,null,null,null,19,2,3,"19","02","03","19|02|03","Social Development","Social Assistance","Disability"]
[null,null,null,null,null,19,2,4,"19","02","04","19|02|04","Social Development","Social Assistance","Foster Care"]
[null,null,null,null,null,19,2,5,"19","02","05","19|02|05","Social Development","Social Assistance","Care Dependency"]
[null,null,null,null,null,19,2,6,"19","02","06","19|02|06","Social Development","Social Assistance","Child Support"]
[null,null,null,null,null,19,2,7,"19","02","07","19|02|07","Social Development","Social Assistance","Grant-in-aid"]
[null,null,null,null,null,19,2,8,"19","02","08","19|02|08","Social Development","Social Assistance","Social Relief of Distress"]
[null,null,null,null,null,19,3,1,"19","03","01","19|03|01","Social Development","Social Security Policy and Administration","Social Security Policy Development"]
[null,null,null,null,null,19,3,2,"19","03","02","19|03|02","Social Development","Social Security Policy and Administration","Appeals Adjudication"]
[null,null,null,null,null,19,3,3,"19","03","03","19|03|03","Social Development","Social Security Policy and Administration","Social Grants Administration"]
[null,null,null,null,null,19,3,4,"19","03","04","19|03|04","Social Development","Social Security Policy and Administration","Social Grants Fraud Investigations"]
[null,null,null,null,null,19,3,5,"19","03","05","19|03|05","Social Development","Social Security Policy and Administration","Programme Management"]
[null,null,null,null,null,19,4,1,"19","04","01","19|04|01","Social Development","Welfare Services Policy Development and Implementation Support","Service Standards"]
[null,null,null,null,null,19,4,2,"19","04","02","19|04|02","Social Development","Welfare Services Policy Development and Implementation Support","Substance Abuse"]
[null,null,null,null,null,19,4,3,"19","04","03","19|04|03","Social Development","Welfare Services Policy Development and Implementation Support","Older Persons"]
[null,null,null,null,null,19,4,4,"19","04","04","19|04|04","Social Development","Welfare Services Policy Development and Implementation Support","People with Disabilities"]
[null,null,null,null,null,19,4,5,"19","04","05","19|04|05","Social Development","Welfare Services Policy Development and Implementation Support","Children"]
[null,null,null,null,null,19,4,6,"19","04","06","19|04|06","Social Development","Welfare Services Policy Development and Implementation Support","Families"]
[null,null,null,null,null,19,4,7,"19","04","07","19|04|07","Social Development","Welfare Services Policy Development and Implementation Support","Social Crime Prevention and Victim Empowerment"]
[null,null,null,null,null,19,4,8,"19","04","08","19|04|08","Social Development","Welfare Services Policy Development and Implementation Support","Youth"]
[null,null,null,null,null,19,4,9,"19","04","09","19|04|09","Social Development","Welfare Services Policy Development and Implementation Support","HIV and AIDS"]
[null,null,null,null,null,19,4,10,"19","04","10","19|04|10","Social Development","Welfare Services Policy Development and Implementation Support","Social Worker Scholarships"]
[null,null,null,null,null,19,4,11,"19","04","11","19|04|11","Social Development","Welfare Services Policy Development and Implementation Support","Programme Management"]
[null,null,null,null,null,19,5,1,"19","05","01","19|05|01","Social Development","Social Policy and Integrated Service Delivery","Social Policy Research and Development"]
[null,null,null,null,null,19,5,2,"19","05","02","19|05|02","Social Development","Social Policy and Integrated Service Delivery","Special Projects and Innovation"]
[null,null,null,null,null,19,5,3,"19","05","03","19|05|03","Social Development","Social Policy and Integrated Service Delivery","Population Policy Promotion"]
[null,null,null,null,null,19,5,4,"19","05","04","19|05|04","Social Development","Social Policy and Integrated Service Delivery","Registration and Monitoring of Non-profit Organisations"]
[null,null,null,null,null,19,5,5,"19","05","05","19|05|05","Social Development","Social Policy and Integrated Service Delivery","Substance Abuse Advisory Services and Oversight"]
[null,null,null,null,null,19,5,6,"19","05","06","19|05|06","Social Development","Social Policy and Integrated Service Delivery","Community Development"]
[null,null,null,null,null,19,5,7,"19","05","07","19|05|07","Social Development","Social Policy and Integrated Service Delivery","National Development Agency"]
[null,null,null,null,null,19,5,8,"19","05","08","19|05|08","Social Development","Social Policy and Integrated Service Delivery","Programme Management"]
[null,null,null,null,null,20,1,1,"20","01","01","20|01|01","Women, Youth and Persons with Disabilities","Administration","Ministry"]
[null,null,null,null,null,20,1,2,"20","01","02","20|01|02","Women, Youth and Persons with Disabilities","Administration","Departmental Management"]
[null,null,null,null,null,20,1,3,"20","01","03","20|01|03","Women, Youth and Persons with Disabilities","Administration","Corporate Services"]
[null,null,null,null,null,20,1,4,"20","01","04","20|01|04","Women, Youth and Persons with Disabilities","Administration","Financial Management"]
[null,null,null,null,null,20,1,5,"20","01","05","20|01|05","Women, Youth and Persons with Disabilities","Administration","Office Accommodation"]
[null,null,null,null,null,20,2,1,"20","02","01","20|02|01","Women, Youth and Persons with Disabilities","Advocacy and Mainstreaming for the Rights of Women","Management: Advocacy and Mainstreaming for the Rights of Women"]
[null,null,null,null,null,20,2,2,"20","02","02","20|02|02","Women, Youth and Persons with Disabilities","Advocacy and Mainstreaming for the Rights of Women","Social Empowerment of Women"]
[null,null,null,null,null,20,2,3,"20","02","03","20|02|03","Women, Youth and Persons with Disabilities","Advocacy and Mainstreaming for the Rights of Women","Economic Empowerment of Women"]
[null,null,null,null,null,20,2,4,"20","02","04","20|02|04","Women, Youth and Persons with Disabilities","Advocacy and Mainstreaming for the Rights of Women","Commission for Gender Equality"]
[null,null,null,null,null,20,3,1,"20","03","01","20|03|01","Women, Youth and Persons with Disabilities","Monitoring, Evaluation, Research and Coordination","Management: Monitoring, Evaluation, Research and Coordination"]
[null,null,null,null,null,20,3,2,"20","03","02","20|03|02","Women, Youth and Persons with Disabilities","Monitoring, Evaluation, Research and Coordination","Research and Knowledge Management"]
[null,null,null,null,null,20,3,3,"20","03","03","20|03|03","Women, Youth and Persons with Disabilities","Monitoring, Evaluation, Research and Coordination","International Relations, Stakeholder Management and Capacity Building"]
[null,null,null,null,null,20,3,4,"20","03","04","20|03|04","Women, Youth and Persons with Disabilities","Monitoring, Evaluation, Research and Coordination","Monitoring and Evaluation: Women,Youth and Persons with Disabilities"]
[null,null,null,null,null,20,4,1,"20","04","01","20|04|01","Women, Youth and Persons with Disabilities","Rights of Persons with Disabilities","Management: Advocacy and Mainstreaming for the Rights of Persons with Disabilities"]
[null,null,null,null,null,20,4,2,"20","04","02","20|04|02","Women, Youth and Persons with Disabilities","Rights of Persons with Disabilities","Advocacy and Mainstreaming for the Rights of Persons with Disabilities"]
[null,null,null,null,null,20,5,1,"20","05","01","20|05|01","Women, Youth and Persons with Disabilities","Rights of Youth","Management: Advocacy and Mainstreaming for the Rights of Youth"]
[null,null,null,null,null,20,5,2,"20","05","02","20|05|02","Women, Youth and Persons with Disabilities","Rights of Youth","Advocacy and Mainstreaming for the Rights of Youth"]
[null,null,null,null,null,20,5,3,"20","05","03","20|05|03","Women, Youth and Persons with Disabilities","Rights of Youth","National Youth Development Agency"]
[null,null,null,null,null,21,1,1,"21","01","01","21|01|01","Civilian Secretariat for the Police Service","Administration","Department Management"]
[null,null,null,null,null,21,1,2,"21","01","02","21|01|02","Civilian Secretariat for the Police Service","Administration","Corporate Services"]
[null,null,null,null,null,21,1,3,"21","01","03","21|01|03","Civilian Secretariat for the Police Service","Administration","Finance Administration"]
[null,null,null,null,null,21,1,4,"21","01","04","21|01|04","Civilian Secretariat for the Police Service","Administration","Office Accommodation"]
[null,null,null,null,null,21,1,5,"21","01","05","21|01|05","Civilian Secretariat for the Police Service","Administration","Internal Audit"]
[null,null,null,null,null,21,2,1,"21","02","01","21|02|01","Civilian Secretariat for the Police Service","Intersectoral Coordination and Strategic Partnerships","Intergovernmental, Civil Society and Public-Private Partnerships"]
[null,null,null,null,null,21,2,2,"21","02","02","21|02|02","Civilian Secretariat for the Police Service","Intersectoral Coordination and Strategic Partnerships","Community Outreach"]
[null,null,null,null,null,21,3,1,"21","03","01","21|03|01","Civilian Secretariat for the Police Service","Legislation and Policy Development","Policy Development and Research"]
[null,null,null,null,null,21,3,2,"21","03","02","21|03|02","Civilian Secretariat for the Police Service","Legislation and Policy Development","Legislation"]
[null,null,null,null,null,21,4,1,"21","04","01","21|04|01","Civilian Secretariat for the Police Service","Civilian Oversight, Monitoring and Evaluations","Police Performance, Conduct and Compliance"]
[null,null,null,null,null,21,4,2,"21","04","02","21|04|02","Civilian Secretariat for the Police Service","Civilian Oversight, Monitoring and Evaluations","Policy and Programme Evaluations"]
[null,null,null,null,null,21,4,3,"21","04","03","21|04|03","Civilian Secretariat for the Police Service","Civilian Oversight, Monitoring and Evaluations","Office of the Directorate for Priority Crime Investigation Judge"]
[null,null,null,null,null,21,4,4,"21","04","04","21|04|04","Civilian Secretariat for the Police Service","Civilian Oversight, Monitoring and Evaluations","National Forensic Oversight and Ethics Board"]
[null,null,null,null,null,22,1,1,"22","01","01","22|01|01","Correctional Services","Administration","Ministry"]
[null,null,null,null,null,22,1,2,"22","01","02","22|01|02","Correctional Services","Administration","Management"]
[null,null,null,null,null,22,1,3,"22","01","03","22|01|03","Correctional Services","Administration","Human Resources"]
[null,null,null,null,null,22,1,4,"22","01","04","22|01|04","Correctional Services","Administration","Finance"]
[null,null,null,null,null,22,1,5,"22","01","05","22|01|05","Correctional Services","Administration","Assurance Services"]
[null,null,null,null,null,22,1,6,"22","01","06","22|01|06","Correctional Services","Administration","Information Technology"]
[null,null,null,null,null,22,1,7,"22","01","07","22|01|07","Correctional Services","Administration","Office Accommodation"]
[null,null,null,null,null,22,2,1,"22","02","01","22|02|01","Correctional Services","Incarceration","Security Operations"]
[null,null,null,null,null,22,2,2,"22","02","02","22|02|02","Correctional Services","Incarceration","Facilities"]
[null,null,null,null,null,22,2,3,"22","02","03","22|02|03","Correctional Services","Incarceration","Remand Detention"]
[null,null,null,null,null,22,2,4,"22","02","04","22|02|04","Correctional Services","Incarceration","Offender Management"]
[null,null,null,null,null,22,2,5,"22","02","05","22|02|05","Correctional Services","Incarceration","Judicial Inspectorate for Correctional Services"]
[null,null,null,null,null,22,3,1,"22","03","01","22|03|01","Correctional Services","Rehabilitation","Correctional Programmes"]
[null,null,null,null,null,22,3,2,"22","03","02","22|03|02","Correctional Services","Rehabilitation","Offender Development"]
[null,null,null,null,null,22,3,3,"22","03","03","22|03|03","Correctional Services","Rehabilitation","Psychological, Social and Spiritual Services"]
[null,null,null,null,null,22,4,1,"22","04","01","22|04|01","Correctional Services","Care","Nutritional Services"]
[null,null,null,null,null,22,4,2,"22","04","02","22|04|02","Correctional Services","Care","Health and Hygiene Services"]
[null,null,null,null,null,22,5,1,"22","05","01","22|05|01","Correctional Services","Social Reintegration","Supervision"]
[null,null,null,null,null,22,5,2,"22","05","02","22|05|02","Correctional Services","Social Reintegration","Community Reintegration"]
[null,null,null,null,null,22,5,3,"22","05","03","22|05|03","Correctional Services","Social Reintegration","Office Accommodation: Community Corrections"]
[null,null,null,null,null,23,1,1,"23","01","01","23|01|01","Defence","Administration","Ministry"]
[null,null,null,null,null,23,1,2,"23","01","02","23|01|02","Defence","Administration","Departmental Direction"]
[null,null,null,null,null,23,1,3,"23","01","03","23|01|03","Defence","Administration","Policy and Planning"]
[null,null,null,null,null,23,1,4,"23","01","04","23|01|04","Defence","Administration","Financial Services"]
[null,null,null,null,null,23,1,5,"23","01","05","23|01|05","Defence","Administration","Human Resources Support Services"]
[null,null,null,null,null,23,1,6,"23","01","06","23|01|06","Defence","Administration","Legal Services"]
[null,null,null,null,null,23,1,7,"23","01","07","23|01|07","Defence","Administration","Inspection and Audit Services"]
[null,null,null,null,null,23,1,8,"23","01","08","23|01|08","Defence","Administration","Acquisition Services"]
[null,null,null,null,null,23,1,9,"23","01","09","23|01|09","Defence","Administration","Communication Services"]
[null,null,null,null,null,23,1,10,"23","01","10","23|01|10","Defence","Administration","South African National Defence Force Command and Control"]
[null,null,null,null,null,23,1,11,"23","01","11","23|01|11","Defence","Administration","Religious Services"]
[null,null,null,null,null,23,1,12,"23","01","12","23|01|12","Defence","Administration","Defence Reserve Direction"]
[null,null,null,null,null,23,1,13,"23","01","13","23|01|13","Defence","Administration","Defence Foreign Relations"]
[null,null,null,null,null,23,1,14,"23","01","14","23|01|14","Defence","Administration","Office Accommodation"]
[null,null,null,null,null,23,2,1,"23","02","01","23|02|01","Defence","Force Employment","Strategic Direction"]
[null,null,null,null,null,23,2,2,"23","02","02","23|02|02","Defence","Force Employment","Operational Direction"]
[null,null,null,null,null,23,2,3,"23","02","03","23|02|03","Defence","Force Employment","Special Operations"]
[null,null,null,null,null,23,2,4,"23","02","04","23|02|04","Defence","Force Employment","Regional Security"]
[null,null,null,null,null,23,2,5,"23","02","05","23|02|05","Defence","Force Employment","Support to the People"]
[null,null,null,null,null,23,3,1,"23","03","01","23|03|01","Defence","Landward Defence","Strategic Direction"]
[null,null,null,null,null,23,3,2,"23","03","02","23|03|02","Defence","Landward Defence","Infantry Capability"]
[null,null,null,null,null,23,3,3,"23","03","03","23|03|03","Defence","Landward Defence","Armour Capability"]
[null,null,null,null,null,23,3,4,"23","03","04","23|03|04","Defence","Landward Defence","Artillery Capability"]
[null,null,null,null,null,23,3,5,"23","03","05","23|03|05","Defence","Landward Defence","Air Defence Artillery Capability"]
[null,null,null,null,null,23,3,6,"23","03","06","23|03|06","Defence","Landward Defence","Engineering Capability"]
[null,null,null,null,null,23,3,7,"23","03","07","23|03|07","Defence","Landward Defence","Operational Intelligence"]
[null,null,null,null,null,23,3,8,"23","03","08","23|03|08","Defence","Landward Defence","Command and Control Capability"]
[null,null,null,null,null,23,3,9,"23","03","09","23|03|09","Defence","Landward Defence","Support Capability"]
[null,null,null,null,null,23,3,10,"23","03","10","23|03|10","Defence","Landward Defence","General Training Capability"]
[null,null,null,null,null,23,3,11,"23","03","11","23|03|11","Defence","Landward Defence","Signal Capability"]
[null,null,null,null,null,23,4,1,"23","04","01","23|04|01","Defence","Air Defence","Strategic Direction"]
[null,null,null,null,null,23,4,2,"23","04","02","23|04|02","Defence","Air Defence","Operational Direction"]
[null,null,null,null,null,23,4,3,"23","04","03","23|04|03","Defence","Air Defence","Helicopter Capability"]
[null,null,null,null,null,23,4,4,"23","04","04","23|04|04","Defence","Air Defence","Transport and Maritime Capability"]
[null,null,null,null,null,23,4,5,"23","04","05","23|04|05","Defence","Air Defence","Air Combat Capability"]
[null,null,null,null,null,23,4,6,"23","04","06","23|04|06","Defence","Air Defence","Operational Support and Intelligence Capability"]
[null,null,null,null,null,23,4,7,"23","04","07","23|04|07","Defence","Air Defence","Command and Control Capability"]
[null,null,null,null,null,23,4,8,"23","04","08","23|04|08","Defence","Air Defence","Base Support Capability"]
[null,null,null,null,null,23,4,9,"23","04","09","23|04|09","Defence","Air Defence","Command Post"]
[null,null,null,null,null,23,4,10,"23","04","10","23|04|10","Defence","Air Defence","Training Capability"]
[null,null,null,null,null,23,4,11,"23","04","11","23|04|11","Defence","Air Defence","Technical Support Services"]
[null,null,null,null,null,23,5,1,"23","05","01","23|05|01","Defence","Maritime Defence","Maritime Direction"]
[null,null,null,null,null,23,5,2,"23","05","02","23|05|02","Defence","Maritime Defence","Maritime Combat Capability"]
[null,null,null,null,null,23,5,3,"23","05","03","23|05|03","Defence","Maritime Defence","Maritime Logistic Support Capability"]
[null,null,null,null,null,23,5,4,"23","05","04","23|05|04","Defence","Maritime Defence","Maritime Human Resources and Training Capability"]
[null,null,null,null,null,23,5,5,"23","05","05","23|05|05","Defence","Maritime Defence","Base Support Capability"]
[null,null,null,null,null,23,6,1,"23","06","01","23|06|01","Defence","Military Health Support","Strategic Direction"]
[null,null,null,null,null,23,6,2,"23","06","02","23|06|02","Defence","Military Health Support","Mobile Military Health Support"]
[null,null,null,null,null,23,6,3,"23","06","03","23|06|03","Defence","Military Health Support","Area Military Health Service"]
[null,null,null,null,null,23,6,4,"23","06","04","23|06|04","Defence","Military Health Support","Specialist/Tertiary Health Service"]
[null,null,null,null,null,23,6,5,"23","06","05","23|06|05","Defence","Military Health Support","Military Health Product Support Capability"]
[null,null,null,null,null,23,6,6,"23","06","06","23|06|06","Defence","Military Health Support","Military Health Maintenance Capability"]
[null,null,null,null,null,23,6,7,"23","06","07","23|06|07","Defence","Military Health Support","Military Health Training Capability"]
[null,null,null,null,null,23,7,1,"23","07","01","23|07|01","Defence","Defence Intelligence","Operations"]
[null,null,null,null,null,23,7,2,"23","07","02","23|07|02","Defence","Defence Intelligence","Defence Intelligence Support Services"]
[null,null,null,null,null,23,8,1,"23","08","01","23|08|01","Defence","General Support","Joint Logistic Services"]
[null,null,null,null,null,23,8,2,"23","08","02","23|08|02","Defence","General Support","Command and Management Information Systems"]
[null,null,null,null,null,23,8,3,"23","08","03","23|08|03","Defence","General Support","Military Police"]
[null,null,null,null,null,23,8,4,"23","08","04","23|08|04","Defence","General Support","Technology Development"]
[null,null,null,null,null,23,8,5,"23","08","05","23|08|05","Defence","General Support","Departmental Support"]
[null,null,null,null,null,24,1,1,"24","01","01","24|01|01","Independent Police Investigative Directorate","Administration","Department Management"]
[null,null,null,null,null,24,1,2,"24","01","02","24|01|02","Independent Police Investigative Directorate","Administration","Corporate Services"]
[null,null,null,null,null,24,1,3,"24","01","03","24|01|03","Independent Police Investigative Directorate","Administration","Office Accommodation"]
[null,null,null,null,null,24,1,4,"24","01","04","24|01|04","Independent Police Investigative Directorate","Administration","Internal Audit"]
[null,null,null,null,null,24,1,5,"24","01","05","24|01|05","Independent Police Investigative Directorate","Administration","Finance Services"]
[null,null,null,null,null,24,2,1,"24","02","01","24|02|01","Independent Police Investigative Directorate","Investigation and Information Management","Investigation Management"]
[null,null,null,null,null,24,2,2,"24","02","02","24|02|02","Independent Police Investigative Directorate","Investigation and Information Management","Investigation Services"]
[null,null,null,null,null,24,2,3,"24","02","03","24|02|03","Independent Police Investigative Directorate","Investigation and Information Management","Information Management"]
[null,null,null,null,null,24,3,1,"24","03","01","24|03|01","Independent Police Investigative Directorate","Legal and Investigation Advisory Services","Legal Support and Administration"]
[null,null,null,null,null,24,3,2,"24","03","02","24|03|02","Independent Police Investigative Directorate","Legal and Investigation Advisory Services","Litigation Advisory Services"]
[null,null,null,null,null,24,3,3,"24","03","03","24|03|03","Independent Police Investigative Directorate","Legal and Investigation Advisory Services","Investigation Advisory Services"]
[null,null,null,null,null,24,4,1,"24","04","01","24|04|01","Independent Police Investigative Directorate","Compliance Monitoring and Stakeholder Management","Compliance Monitoring"]
[null,null,null,null,null,24,4,2,"24","04","02","24|04|02","Independent Police Investigative Directorate","Compliance Monitoring and Stakeholder Management","Stakeholder Management"]
[null,null,null,null,null,25,1,1,"25","01","01","25|01|01","Justice and Constitutional Development","Administration","Ministry"]
[null,null,null,null,null,25,1,2,"25","01","02","25|01|02","Justice and Constitutional Development","Administration","Management"]
[null,null,null,null,null,25,1,3,"25","01","03","25|01|03","Justice and Constitutional Development","Administration","Corporate Services"]
[null,null,null,null,null,25,1,4,"25","01","04","25|01|04","Justice and Constitutional Development","Administration","Financial Administration"]
[null,null,null,null,null,25,1,5,"25","01","05","25|01|05","Justice and Constitutional Development","Administration","Internal Audit"]
[null,null,null,null,null,25,1,6,"25","01","06","25|01|06","Justice and Constitutional Development","Administration","Office Accommodation"]
[null,null,null,null,null,25,2,1,"25","02","01","25|02|01","Justice and Constitutional Development","Lower Court Services","Lower Courts"]
[null,null,null,null,null,25,2,2,"25","02","02","25|02|02","Justice and Constitutional Development","Lower Court Services","Magistrate's Commission"]
[null,null,null,null,null,25,2,3,"25","02","03","25|02|03","Justice and Constitutional Development","Lower Court Services","Facilities Management"]
[null,null,null,null,null,25,2,4,"25","02","04","25|02|04","Justice and Constitutional Development","Lower Court Services","Administration of Lower Courts"]
[null,null,null,null,null,25,3,1,"25","03","01","25|03|01","Justice and Constitutional Development","State Legal Services","State Law Advisers"]
[null,null,null,null,null,25,3,2,"25","03","02","25|03|02","Justice and Constitutional Development","State Legal Services","Litigation and Legal Services"]
[null,null,null,null,null,25,3,3,"25","03","03","25|03|03","Justice and Constitutional Development","State Legal Services","Legislative Development and Law Reform"]
[null,null,null,null,null,25,3,4,"25","03","04","25|03|04","Justice and Constitutional Development","State Legal Services","Master of the High Court"]
[null,null,null,null,null,25,3,5,"25","03","05","25|03|05","Justice and Constitutional Development","State Legal Services","Constitutional Development"]
[null,null,null,null,null,25,3,6,"25","03","06","25|03|06","Justice and Constitutional Development","State Legal Services","Family Advocate"]
[null,null,null,null,null,25,4,1,"25","04","01","25|04|01","Justice and Constitutional Development","National Prosecuting Authority","National Prosecutions Service"]
[null,null,null,null,null,25,4,2,"25","04","02","25|04|02","Justice and Constitutional Development","National Prosecuting Authority","Investigating Directorate"]
[null,null,null,null,null,25,4,3,"25","04","03","25|04|03","Justice and Constitutional Development","National Prosecuting Authority","Asset Forfeiture Unit"]
[null,null,null,null,null,25,4,4,"25","04","04","25|04|04","Justice and Constitutional Development","National Prosecuting Authority","Office for Witness Protection"]
[null,null,null,null,null,25,4,5,"25","04","05","25|04|05","Justice and Constitutional Development","National Prosecuting Authority","Strategy, Operations and Compliance"]
[null,null,null,null,null,25,5,1,"25","05","01","25|05|01","Justice and Constitutional Development","Auxiliary and Associated Services","Legal Aid South Africa"]
[null,null,null,null,null,25,5,2,"25","05","02","25|05|02","Justice and Constitutional Development","Auxiliary and Associated Services","Special Investigating Unit"]
[null,null,null,null,null,25,5,3,"25","05","03","25|05|03","Justice and Constitutional Development","Auxiliary and Associated Services","Public Protector of South Africa"]
[null,null,null,null,null,25,5,4,"25","05","04","25|05|04","Justice and Constitutional Development","Auxiliary and Associated Services","South African Human Rights Commission"]
[null,null,null,null,null,25,5,5,"25","05","05","25|05|05","Justice and Constitutional Development","Auxiliary and Associated Services","Justice Modernisation"]
[null,null,null,null,null,25,5,6,"25","05","06","25|05|06","Justice and Constitutional Development","Auxiliary and Associated Services","Information Regulator"]
[null,null,null,null,null,25,5,7,"25","05","07","25|05|07","Justice and Constitutional Development","Auxiliary and Associated Services","Office of the Legal Services Ombud"]
[null,null,null,null,null,25,5,8,"25","05","08","25|05|08","Justice and Constitutional Development","Auxiliary and Associated Services","President's Fund"]
[null,null,null,null,null,25,16,1,"25","16","01","25|16|01","Justice and Constitutional Development","Direct charge against the National Revenue Fund","Magistrates' salaries"]
[null,null,null,null,null,26,1,1,"26","01","01","26|01|01","Military Veterans","Administration","Management"]
[null,null,null,null,null,26,1,2,"26","01","02","26|01|02","Military Veterans","Administration","Corporate Services"]
[null,null,null,null,null,26,1,3,"26","01","03","26|01|03","Military Veterans","Administration","Financial Administration"]
[null,null,null,null,null,26,1,4,"26","01","04","26|01|04","Military Veterans","Administration","Internal Audit"]
[null,null,null,null,null,26,1,5,"26","01","05","26|01|05","Military Veterans","Administration","Strategic Planning, Policy Development, and Monitoring and Evaluation"]
[null,null,null,null,null,26,1,6,"26","01","06","26|01|06","Military Veterans","Administration","Office Accommodation"]
[null,null,null,null,null,26,2,1,"26","02","01","26|02|01","Military Veterans","Socioeconomic Support","Database and Benefits Management"]
[null,null,null,null,null,26,2,2,"26","02","02","26|02|02","Military Veterans","Socioeconomic Support","Health Care and Wellbeing Support"]
[null,null,null,null,null,26,2,3,"26","02","03","26|02|03","Military Veterans","Socioeconomic Support","Socioeconomic Support Management"]
[null,null,null,null,null,26,3,1,"26","03","01","26|03|01","Military Veterans","Empowerment and Stakeholder Management","Provincial Offices and Stakeholder Relations"]
[null,null,null,null,null,26,3,2,"26","03","02","26|03|02","Military Veterans","Empowerment and Stakeholder Management","Empowerment and Skills Development"]
[null,null,null,null,null,26,3,3,"26","03","03","26|03|03","Military Veterans","Empowerment and Stakeholder Management","Heritage, Memorials, Burials and Honours"]
[null,null,null,null,null,27,1,1,"27","01","01","27|01|01","Office of the Chief Justice","Administration","Management"]
[null,null,null,null,null,27,1,2,"27","01","02","27|01|02","Office of the Chief Justice","Administration","Corporate Services"]
[null,null,null,null,null,27,1,3,"27","01","03","27|01|03","Office of the Chief Justice","Administration","Financial Administration"]
[null,null,null,null,null,27,1,4,"27","01","04","27|01|04","Office of the Chief Justice","Administration","Internal Audit"]
[null,null,null,null,null,27,2,1,"27","02","01","27|02|01","Office of the Chief Justice","Superior Court Services","Administration of Superior Courts"]
[null,null,null,null,null,27,2,2,"27","02","02","27|02|02","Office of the Chief Justice","Superior Court Services","Constitutional Court"]
[null,null,null,null,null,27,2,3,"27","02","03","27|02|03","Office of the Chief Justice","Superior Court Services","Supreme Court of Appeal"]
[null,null,null,null,null,27,2,4,"27","02","04","27|02|04","Office of the Chief Justice","Superior Court Services","High Courts"]
[null,null,null,null,null,27,2,5,"27","02","05","27|02|05","Office of the Chief Justice","Superior Court Services","Specialised Courts"]
[null,null,null,null,null,27,3,1,"27","03","01","27|03|01","Office of the Chief Justice","Judicial Education and Support","South African Judicial Education Institute"]
[null,null,null,null,null,27,3,2,"27","03","02","27|03|02","Office of the Chief Justice","Judicial Education and Support","Judicial Policy, Research and Support"]
[null,null,null,null,null,27,3,3,"27","03","03","27|03|03","Office of the Chief Justice","Judicial Education and Support","Judicial Service Commission"]
[null,null,null,null,null,27,16,1,"27","16","01","27|16|01","Office of the Chief Justice","Direct charge against the National Revenue Fund","Judges' salaries"]
[null,null,null,null,null,28,1,1,"28","01","01","28|01|01","Police","Administration","Ministry"]
[null,null,null,null,null,28,1,2,"28","01","02","28|01|02","Police","Administration","Management"]
[null,null,null,null,null,28,1,3,"28","01","03","28|01|03","Police","Administration","Corporate Services"]
[null,null,null,null,null,28,2,1,"28","02","01","28|02|01","Police","Visible Policing","Crime Prevention"]
[null,null,null,null,null,28,2,2,"28","02","02","28|02|02","Police","Visible Policing","Border Security"]
[null,null,null,null,null,28,2,3,"28","02","03","28|02|03","Police","Visible Policing","Specialised Interventions"]
[null,null,null,null,null,28,2,4,"28","02","04","28|02|04","Police","Visible Policing","Facilities"]
[null,null,null,null,null,28,3,1,"28","03","01","28|03|01","Police","Detective Services","Crime Investigations"]
[null,null,null,null,null,28,3,2,"28","03","02","28|03|02","Police","Detective Services","Criminal Record Centre"]
[null,null,null,null,null,28,3,3,"28","03","03","28|03|03","Police","Detective Services","Forensic Science Laboratory"]
[null,null,null,null,null,28,3,4,"28","03","04","28|03|04","Police","Detective Services","Specialised Investigations"]
[null,null,null,null,null,28,4,1,"28","04","01","28|04|01","Police","Crime Intelligence","Crime Intelligence Operations"]
[null,null,null,null,null,28,4,2,"28","04","02","28|04|02","Police","Crime Intelligence","Intelligence and Information Management"]
[null,null,null,null,null,28,5,1,"28","05","01","28|05|01","Police","Protection and Security Services","VIP Protection Services"]
[null,null,null,null,null,28,5,2,"28","05","02","28|05|02","Police","Protection and Security Services","Static Protection"]
[null,null,null,null,null,28,5,3,"28","05","03","28|05|03","Police","Protection and Security Services","Government Security Regulator"]
[null,null,null,null,null,28,5,4,"28","05","04","28|05|04","Police","Protection and Security Services","Operational Support"]
[null,null,null,null,null,29,1,1,"29","01","01","29|01|01","Agriculture, Land Reform and Rural Development","Administration","Ministry"]
[null,null,null,null,null,29,1,2,"29","01","02","29|01|02","Agriculture, Land Reform and Rural Development","Administration","Department Management"]
[null,null,null,null,null,29,1,3,"29","01","03","29|01|03","Agriculture, Land Reform and Rural Development","Administration","Internal Audit"]
[null,null,null,null,null,29,1,4,"29","01","04","29|01|04","Agriculture, Land Reform and Rural Development","Administration","Financial Management Services"]
[null,null,null,null,null,29,1,5,"29","01","05","29|01|05","Agriculture, Land Reform and Rural Development","Administration","Corporate Support Services"]
[null,null,null,null,null,29,1,6,"29","01","06","29|01|06","Agriculture, Land Reform and Rural Development","Administration","Provincial Operations"]
[null,null,null,null,null,29,1,7,"29","01","07","29|01|07","Agriculture, Land Reform and Rural Development","Administration","Office Accommodation"]
[null,null,null,null,null,29,2,1,"29","02","01","29|02|01","Agriculture, Land Reform and Rural Development","Agricultural Production, Biosecurity and Natural Resources Management","Inspection and Quarantine Services"]
[null,null,null,null,null,29,2,2,"29","02","02","29|02|02","Agriculture, Land Reform and Rural Development","Agricultural Production, Biosecurity and Natural Resources Management","Plant Production and Health"]
[null,null,null,null,null,29,2,3,"29","02","03","29|02|03","Agriculture, Land Reform and Rural Development","Agricultural Production, Biosecurity and Natural Resources Management","Animal Production and Health"]
[null,null,null,null,null,29,2,4,"29","02","04","29|02|04","Agriculture, Land Reform and Rural Development","Agricultural Production, Biosecurity and Natural Resources Management","Natural Resources and Disaster Management"]
[null,null,null,null,null,29,2,5,"29","02","05","29|02|05","Agriculture, Land Reform and Rural Development","Agricultural Production, Biosecurity and Natural Resources Management","Biosecurity"]
[null,null,null,null,null,29,2,6,"29","02","06","29|02|06","Agriculture, Land Reform and Rural Development","Agricultural Production, Biosecurity and Natural Resources Management","Agricultural Research Council"]
[null,null,null,null,null,29,2,7,"29","02","07","29|02|07","Agriculture, Land Reform and Rural Development","Agricultural Production, Biosecurity and Natural Resources Management","Onderstepoort Biological Products"]
[null,null,null,null,null,29,3,1,"29","03","01","29|03|01","Agriculture, Land Reform and Rural Development","Food Security, Land Reform and Restitution","Food Security and Agrarian Reform"]
[null,null,null,null,null,29,3,2,"29","03","02","29|03|02","Agriculture, Land Reform and Rural Development","Food Security, Land Reform and Restitution","Land Redistribution and Tenure Reform"]
[null,null,null,null,null,29,3,3,"29","03","03","29|03|03","Agriculture, Land Reform and Rural Development","Food Security, Land Reform and Restitution","National Extension Support Services and Sector Capacity Development"]
[null,null,null,null,null,29,3,4,"29","03","04","29|03|04","Agriculture, Land Reform and Rural Development","Food Security, Land Reform and Restitution","Land Development and Post-settlement Support"]
[null,null,null,null,null,29,3,5,"29","03","05","29|03|05","Agriculture, Land Reform and Rural Development","Food Security, Land Reform and Restitution","Commission on the Restitution of Land Rights"]
[null,null,null,null,null,29,3,6,"29","03","06","29|03|06","Agriculture, Land Reform and Rural Development","Food Security, Land Reform and Restitution","Restitution"]
[null,null,null,null,null,29,3,7,"29","03","07","29|03|07","Agriculture, Land Reform and Rural Development","Food Security, Land Reform and Restitution","Agricultural Land Holding Account"]
[null,null,null,null,null,29,3,8,"29","03","08","29|03|08","Agriculture, Land Reform and Rural Development","Food Security, Land Reform and Restitution","Ingonyama Trust Board"]
[null,null,null,null,null,29,3,9,"29","03","09","29|03|09","Agriculture, Land Reform and Rural Development","Food Security, Land Reform and Restitution","Office of the Valuer-General"]
[null,null,null,null,null,29,4,1,"29","04","01","29|04|01","Agriculture, Land Reform and Rural Development","Rural Development","National Rural Youth Service Corps"]
[null,null,null,null,null,29,4,2,"29","04","02","29|04|02","Agriculture, Land Reform and Rural Development","Rural Development","Rural Infrastructure Development"]
[null,null,null,null,null,29,4,3,"29","04","03","29|04|03","Agriculture, Land Reform and Rural Development","Rural Development","Technology Research and Development"]
[null,null,null,null,null,29,5,1,"29","05","01","29|05|01","Agriculture, Land Reform and Rural Development","Economic Development, Trade and Marketing","International Relations and Trade"]
[null,null,null,null,null,29,5,2,"29","05","02","29|05|02","Agriculture, Land Reform and Rural Development","Economic Development, Trade and Marketing","Cooperatives Development"]
[null,null,null,null,null,29,5,3,"29","05","03","29|05|03","Agriculture, Land Reform and Rural Development","Economic Development, Trade and Marketing","Agro-Processing, Marketing and Rural Industrial Development"]
[null,null,null,null,null,29,5,4,"29","05","04","29|05|04","Agriculture, Land Reform and Rural Development","Economic Development, Trade and Marketing","National Agricultural Marketing Council"]
[null,null,null,null,null,29,6,1,"29","06","01","29|06|01","Agriculture, Land Reform and Rural Development","Land Administration","National Geomatics Management Services"]
[null,null,null,null,null,29,6,2,"29","06","02","29|06|02","Agriculture, Land Reform and Rural Development","Land Administration","Spatial Planning and Land Use"]
[null,null,null,null,null,29,6,3,"29","06","03","29|06|03","Agriculture, Land Reform and Rural Development","Land Administration","Deeds Registration"]
[null,null,null,null,null,29,6,4,"29","06","04","29|06|04","Agriculture, Land Reform and Rural Development","Land Administration","South African Council of Planners"]
[null,null,null,null,null,29,6,5,"29","06","05","29|06|05","Agriculture, Land Reform and Rural Development","Land Administration","South African Geomatics Council"]
[null,null,null,null,null,29,6,6,"29","06","06","29|06|06","Agriculture, Land Reform and Rural Development","Land Administration","Integrated Land Administration"]
[null,null,null,null,null,30,1,1,"30","01","01","30|01|01","Communications and Digital Technologies","Administration","Ministry"]
[null,null,null,null,null,30,1,2,"30","01","02","30|01|02","Communications and Digital Technologies","Administration","Departmental Management"]
[null,null,null,null,null,30,1,3,"30","01","03","30|01|03","Communications and Digital Technologies","Administration","Internal Audit"]
[null,null,null,null,null,30,1,4,"30","01","04","30|01|04","Communications and Digital Technologies","Administration","Corporate Services"]
[null,null,null,null,null,30,1,5,"30","01","05","30|01|05","Communications and Digital Technologies","Administration","Financial Management"]
[null,null,null,null,null,30,1,6,"30","01","06","30|01|06","Communications and Digital Technologies","Administration","Office Accommodation"]
[null,null,null,null,null,30,2,1,"30","02","01","30|02|01","Communications and Digital Technologies","ICT International Relations and Affairs","Programme Management for ICT International Relations and Affairs"]
[null,null,null,null,null,30,2,2,"30","02","02","30|02|02","Communications and Digital Technologies","ICT International Relations and Affairs","International Affairs"]
[null,null,null,null,null,30,2,3,"30","02","03","30|02|03","Communications and Digital Technologies","ICT International Relations and Affairs","ICT Trade/Partnership"]
[null,null,null,null,null,30,3,1,"30","03","01","30|03|01","Communications and Digital Technologies","ICT Policy Development and Research","Programme Management for ICT Policy Development and Research"]
[null,null,null,null,null,30,3,2,"30","03","02","30|03|02","Communications and Digital Technologies","ICT Policy Development and Research","ICT Policy Development"]
[null,null,null,null,null,30,3,3,"30","03","03","30|03|03","Communications and Digital Technologies","ICT Policy Development and Research","Economic and Market Analysis"]
[null,null,null,null,null,30,3,4,"30","03","04","30|03|04","Communications and Digital Technologies","ICT Policy Development and Research","Research"]
[null,null,null,null,null,30,3,5,"30","03","05","30|03|05","Communications and Digital Technologies","ICT Policy Development and Research","Small, Medium and Micro Enterprise"]
[null,null,null,null,null,30,3,6,"30","03","06","30|03|06","Communications and Digital Technologies","ICT Policy Development and Research","Broadcasting Policy"]
[null,null,null,null,null,30,3,7,"30","03","07","30|03|07","Communications and Digital Technologies","ICT Policy Development and Research","Presidential Commission on 4IR"]
[null,null,null,null,null,30,4,1,"30","04","01","30|04|01","Communications and Digital Technologies","ICT Enterprise and Public Entity Oversight","Programme Management for ICT Enterprise and Public Entity Oversight"]
[null,null,null,null,null,30,4,2,"30","04","02","30|04|02","Communications and Digital Technologies","ICT Enterprise and Public Entity Oversight","Regulatory Institutions"]
[null,null,null,null,null,30,4,3,"30","04","03","30|04|03","Communications and Digital Technologies","ICT Enterprise and Public Entity Oversight","Universal Service and Access"]
[null,null,null,null,null,30,4,4,"30","04","04","30|04|04","Communications and Digital Technologies","ICT Enterprise and Public Entity Oversight","ICT Skills Development"]
[null,null,null,null,null,30,4,5,"30","04","05","30|04|05","Communications and Digital Technologies","ICT Enterprise and Public Entity Oversight","State-owned Enterprise Governance and Support"]
[null,null,null,null,null,30,5,1,"30","05","01","30|05|01","Communications and Digital Technologies","ICT Infrastructure Development and Support","Programme Management for ICT Infrastructure Development and Support"]
[null,null,null,null,null,30,5,2,"30","05","02","30|05|02","Communications and Digital Technologies","ICT Infrastructure Development and Support","Broadband"]
[null,null,null,null,null,30,5,3,"30","05","03","30|05|03","Communications and Digital Technologies","ICT Infrastructure Development and Support","ICT Support"]
[null,null,null,null,null,30,5,4,"30","05","04","30|05|04","Communications and Digital Technologies","ICT Infrastructure Development and Support","Broadcasting Digital Migration"]
[null,null,null,null,null,30,6,1,"30","06","01","30|06|01","Communications and Digital Technologies","ICT Information Society and Capacity Development","Programme Management for ICT Information Society and Capacity Development"]
[null,null,null,null,null,30,6,2,"30","06","02","30|06|02","Communications and Digital Technologies","ICT Information Society and Capacity Development","Information Society Development"]
[null,null,null,null,null,30,6,3,"30","06","03","30|06|03","Communications and Digital Technologies","ICT Information Society and Capacity Development","Capacity Development"]
[null,null,null,null,null,31,1,1,"31","01","01","31|01|01","Employment and Labour","Administration","Ministry"]
[null,null,null,null,null,31,1,2,"31","01","02","31|01|02","Employment and Labour","Administration","Management"]
[null,null,null,null,null,31,1,3,"31","01","03","31|01|03","Employment and Labour","Administration","Corporate Services"]
[null,null,null,null,null,31,1,4,"31","01","04","31|01|04","Employment and Labour","Administration","Office of the Chief Financial Officer"]
[null,null,null,null,null,31,1,5,"31","01","05","31|01|05","Employment and Labour","Administration","Office Accommodation"]
[null,null,null,null,null,31,2,1,"31","02","01","31|02|01","Employment and Labour","Inspection and Enforcement Services","Management and Support Services: Inspection and Enforcement Services"]
[null,null,null,null,null,31,2,2,"31","02","02","31|02|02","Employment and Labour","Inspection and Enforcement Services","Occupational Health and Safety"]
[null,null,null,null,null,31,2,3,"31","02","03","31|02|03","Employment and Labour","Inspection and Enforcement Services","Registration: Inspection and Enforcement Services"]
[null,null,null,null,null,31,2,4,"31","02","04","31|02|04","Employment and Labour","Inspection and Enforcement Services","Compliance, Monitoring and Enforcement Services"]
[null,null,null,null,null,31,2,5,"31","02","05","31|02|05","Employment and Labour","Inspection and Enforcement Services","Training of Staff: Inspection and Enforcement Services"]
[null,null,null,null,null,31,2,6,"31","02","06","31|02|06","Employment and Labour","Inspection and Enforcement Services","Statutory and Advocacy Services"]
[null,null,null,null,null,31,3,1,"31","03","01","31|03|01","Employment and Labour","Public Employment Services","Management and Support Services: Public Employment Services"]
[null,null,null,null,null,31,3,2,"31","03","02","31|03|02","Employment and Labour","Public Employment Services","Employer Services"]
[null,null,null,null,null,31,3,3,"31","03","03","31|03|03","Employment and Labour","Public Employment Services","Work Seeker Services"]
[null,null,null,null,null,31,3,4,"31","03","04","31|03|04","Employment and Labour","Public Employment Services","Designated groups special services"]
[null,null,null,null,null,31,3,5,"31","03","05","31|03|05","Employment and Labour","Public Employment Services","Supported Employment Enterprises"]
[null,null,null,null,null,31,3,6,"31","03","06","31|03|06","Employment and Labour","Public Employment Services","Productivity South Africa"]
[null,null,null,null,null,31,3,7,"31","03","07","31|03|07","Employment and Labour","Public Employment Services","Unemployment Insurance Fund"]
[null,null,null,null,null,31,3,8,"31","03","08","31|03|08","Employment and Labour","Public Employment Services","Compensation Fund"]
[null,null,null,null,null,31,3,9,"31","03","09","31|03|09","Employment and Labour","Public Employment Services","Training of Staff: Public Employment Services"]
[null,null,null,null,null,31,4,1,"31","04","01","31|04|01","Employment and Labour","Labour Policy and Industrial Relations","Management and Support Services: Labour Policy and Industrial Relations"]
[null,null,null,null,null,31,4,2,"31","04","02","31|04|02","Employment and Labour","Labour Policy and Industrial Relations","Strengthen Civil Society"]
[null,null,null,null,null,31,4,3,"31","04","03","31|04|03","Employment and Labour","Labour Policy and Industrial Relations","Collective Bargaining"]
[null,null,null,null,null,31,4,4,"31","04","04","31|04|04","Employment and Labour","Labour Policy and Industrial Relations","Employment Equity"]
[null,null,null,null,null,31,4,5,"31","04","05","31|04|05","Employment and Labour","Labour Policy and Industrial Relations","Employment Standards"]
[null,null,null,null,null,31,4,6,"31","04","06","31|04|06","Employment and Labour","Labour Policy and Industrial Relations","Commission for Conciliation, Mediation and Arbitration"]
[null,null,null,null,null,31,4,7,"31","04","07","31|04|07","Employment and Labour","Labour Policy and Industrial Relations","Research, Policy and Planning"]
[null,null,null,null,null,31,4,8,"31","04","08","31|04|08","Employment and Labour","Labour Policy and Industrial Relations","Labour Market Information and Statistics"]
[null,null,null,null,null,31,4,9,"31","04","09","31|04|09","Employment and Labour","Labour Policy and Industrial Relations","International Labour Matters"]
[null,null,null,null,null,31,4,10,"31","04","10","31|04|10","Employment and Labour","Labour Policy and Industrial Relations","National Economic Development and Labour Council"]
[null,null,null,null,null,32,1,1,"32","01","01","32|01|01","Forestry, Fisheries and the Environment","Administration","Ministry"]
[null,null,null,null,null,32,1,2,"32","01","02","32|01|02","Forestry, Fisheries and the Environment","Administration","Departmental Management"]
[null,null,null,null,null,32,1,3,"32","01","03","32|01|03","Forestry, Fisheries and the Environment","Administration","Corporate Management Services"]
[null,null,null,null,null,32,1,4,"32","01","04","32|01|04","Forestry, Fisheries and the Environment","Administration","Financial Management Services"]
[null,null,null,null,null,32,1,5,"32","01","05","32|01|05","Forestry, Fisheries and the Environment","Administration","Office Accommodation"]
[null,null,null,null,null,32,1,6,"32","01","06","32|01|06","Forestry, Fisheries and the Environment","Administration","Internal Audit"]
[null,null,null,null,null,32,2,1,"32","02","01","32|02|01","Forestry, Fisheries and the Environment","Regulatory Compliance and Monitoring","Regulatory Compliance and Monitoring Management"]
[null,null,null,null,null,32,2,2,"32","02","02","32|02|02","Forestry, Fisheries and the Environment","Regulatory Compliance and Monitoring","Corporate Legal Support and Litigations"]
[null,null,null,null,null,32,2,3,"32","02","03","32|02|03","Forestry, Fisheries and the Environment","Regulatory Compliance and Monitoring","Law Reform and Policy Coordination"]
[null,null,null,null,null,32,2,4,"32","02","04","32|02|04","Forestry, Fisheries and the Environment","Regulatory Compliance and Monitoring","Integrated Environmental Authorisations"]
[null,null,null,null,null,32,2,5,"32","02","05","32|02|05","Forestry, Fisheries and the Environment","Regulatory Compliance and Monitoring","Compliance"]
[null,null,null,null,null,32,2,6,"32","02","06","32|02|06","Forestry, Fisheries and the Environment","Regulatory Compliance and Monitoring","Enforcement"]
[null,null,null,null,null,32,2,7,"32","02","07","32|02|07","Forestry, Fisheries and the Environment","Regulatory Compliance and Monitoring","Appeals and Strategic Environmental Instruments"]
[null,null,null,null,null,32,2,8,"32","02","08","32|02|08","Forestry, Fisheries and the Environment","Regulatory Compliance and Monitoring","Sector Knowledge and Information Management"]
[null,null,null,null,null,32,3,1,"32","03","01","32|03|01","Forestry, Fisheries and the Environment","Oceans and Coasts","Oceans and Coasts Management"]
[null,null,null,null,null,32,3,2,"32","03","02","32|03|02","Forestry, Fisheries and the Environment","Oceans and Coasts","Integrated Coastal Management and Coastal Conservation"]
[null,null,null,null,null,32,3,3,"32","03","03","32|03|03","Forestry, Fisheries and the Environment","Oceans and Coasts","Oceans and Coastal Research"]
[null,null,null,null,null,32,3,4,"32","03","04","32|03|04","Forestry, Fisheries and the Environment","Oceans and Coasts","Oceans Economy and Project Management"]
[null,null,null,null,null,32,3,5,"32","03","05","32|03|05","Forestry, Fisheries and the Environment","Oceans and Coasts","Specialist Monitoring Services"]
[null,null,null,null,null,32,4,1,"32","04","01","32|04|01","Forestry, Fisheries and the Environment","Climate Change and Air Quality","Climate Change and Air Quality Management"]
[null,null,null,null,null,32,4,2,"32","04","02","32|04|02","Forestry, Fisheries and the Environment","Climate Change and Air Quality","Climate Change Mitigation and Specialist Monitoring Services"]
[null,null,null,null,null,32,4,3,"32","04","03","32|04|03","Forestry, Fisheries and the Environment","Climate Change and Air Quality","Climate Change Adaptation"]
[null,null,null,null,null,32,4,4,"32","04","04","32|04|04","Forestry, Fisheries and the Environment","Climate Change and Air Quality","Air Quality Management"]
[null,null,null,null,null,32,4,5,"32","04","05","32|04|05","Forestry, Fisheries and the Environment","Climate Change and Air Quality","International Climate Change Relations and Reporting"]
[null,null,null,null,null,32,4,6,"32","04","06","32|04|06","Forestry, Fisheries and the Environment","Climate Change and Air Quality","International Governance and Resource Mobilisation"]
[null,null,null,null,null,32,4,7,"32","04","07","32|04|07","Forestry, Fisheries and the Environment","Climate Change and Air Quality","South African Weather Service"]
[null,null,null,null,null,32,5,1,"32","05","01","32|05|01","Forestry, Fisheries and the Environment","Biodiversity and Conservation","Biodiversity and Conservation Management"]
[null,null,null,null,null,32,5,2,"32","05","02","32|05|02","Forestry, Fisheries and the Environment","Biodiversity and Conservation","Biodiversity Management and Permitting"]
[null,null,null,null,null,32,5,3,"32","05","03","32|05|03","Forestry, Fisheries and the Environment","Biodiversity and Conservation","Protected Areas Systems Management"]
[null,null,null,null,null,32,5,4,"32","05","04","32|05|04","Forestry, Fisheries and the Environment","Biodiversity and Conservation","Biodiversity Monitoring Specialist Services"]
[null,null,null,null,null,32,5,5,"32","05","05","32|05|05","Forestry, Fisheries and the Environment","Biodiversity and Conservation","Biodiversity Economy and Sustainable Use"]
[null,null,null,null,null,32,5,6,"32","05","06","32|05|06","Forestry, Fisheries and the Environment","Biodiversity and Conservation","iSimangaliso Wetland Park Authority"]
[null,null,null,null,null,32,5,7,"32","05","07","32|05|07","Forestry, Fisheries and the Environment","Biodiversity and Conservation","South African National Parks"]
[null,null,null,null,null,32,5,8,"32","05","08","32|05|08","Forestry, Fisheries and the Environment","Biodiversity and Conservation","South African National Biodiversity Institute"]
[null,null,null,null,null,32,6,1,"32","06","01","32|06|01","Forestry, Fisheries and the Environment","Environmental Programmes","Environmental Programmes Management"]
[null,null,null,null,null,32,6,2,"32","06","02","32|06|02","Forestry, Fisheries and the Environment","Environmental Programmes","Environmental Programme Region 1"]
[null,null,null,null,null,32,6,3,"32","06","03","32|06|03","Forestry, Fisheries and the Environment","Environmental Programmes","Environmental Programme Region 2"]
[null,null,null,null,null,32,6,4,"32","06","04","32|06|04","Forestry, Fisheries and the Environment","Environmental Programmes","Environmental Programme Region 3"]
[null,null,null,null,null,32,6,5,"32","06","05","32|06|05","Forestry, Fisheries and the Environment","Environmental Programmes","Sector Coordination and Quality Management"]
[null,null,null,null,null,32,7,1,"32","07","01","32|07|01","Forestry, Fisheries and the Environment","Chemicals and Waste Management","Chemicals and Waste Management"]
[null,null,null,null,null,32,7,2,"32","07","02","32|07|02","Forestry, Fisheries and the Environment","Chemicals and Waste Management","Hazardous Waste Management and Licensing"]
[null,null,null,null,null,32,7,3,"32","07","03","32|07|03","Forestry, Fisheries and the Environment","Chemicals and Waste Management","Integrated Waste Management"]
[null,null,null,null,null,32,7,4,"32","07","04","32|07|04","Forestry, Fisheries and the Environment","Chemicals and Waste Management","Chemicals and Waste Management Policy and Specialist Monitoring Services"]
[null,null,null,null,null,32,7,5,"32","07","05","32|07|05","Forestry, Fisheries and the Environment","Chemicals and Waste Management","Chemicals and Waste Economy Programme Coordination"]
[null,null,null,null,null,32,7,6,"32","07","06","32|07|06","Forestry, Fisheries and the Environment","Chemicals and Waste Management","Chemicals Management"]
[null,null,null,null,null,32,7,7,"32","07","07","32|07|07","Forestry, Fisheries and the Environment","Chemicals and Waste Management","Waste Bureau"]
[null,null,null,null,null,32,8,1,"32","08","01","32|08|01","Forestry, Fisheries and the Environment","Forestry Management","Forestry Management"]
[null,null,null,null,null,32,8,2,"32","08","02","32|08|02","Forestry, Fisheries and the Environment","Forestry Management","Forest Land Management and Post Settlement Support"]
[null,null,null,null,null,32,8,3,"32","08","03","32|08|03","Forestry, Fisheries and the Environment","Forestry Management","Forestry Development"]
[null,null,null,null,null,32,8,4,"32","08","04","32|08|04","Forestry, Fisheries and the Environment","Forestry Management","Forestry Policy Management"]
[null,null,null,null,null,32,9,1,"32","09","01","32|09|01","Forestry, Fisheries and the Environment","Fisheries Management","Fisheries Management"]
[null,null,null,null,null,32,9,2,"32","09","02","32|09|02","Forestry, Fisheries and the Environment","Fisheries Management","Aquaculture Development and Fresh Water Fisheries"]
[null,null,null,null,null,32,9,3,"32","09","03","32|09|03","Forestry, Fisheries and the Environment","Fisheries Management","Monitoring, Control and Surveillance"]
[null,null,null,null,null,32,9,4,"32","09","04","32|09|04","Forestry, Fisheries and the Environment","Fisheries Management","Marine Resources Management"]
[null,null,null,null,null,32,9,5,"32","09","05","32|09|05","Forestry, Fisheries and the Environment","Fisheries Management","Fisheries Research and Development"]
[null,null,null,null,null,32,9,6,"32","09","06","32|09|06","Forestry, Fisheries and the Environment","Fisheries Management","Marine Living Resources Fund"]
[null,null,null,null,null,33,1,1,"33","01","01","33|01|01","Human Settlements","Administration","Ministry"]
[null,null,null,null,null,33,1,2,"33","01","02","33|01|02","Human Settlements","Administration","Departmental Management"]
[null,null,null,null,null,33,1,3,"33","01","03","33|01|03","Human Settlements","Administration","Corporate Services"]
[null,null,null,null,null,33,1,4,"33","01","04","33|01|04","Human Settlements","Administration","Property Management"]
[null,null,null,null,null,33,1,5,"33","01","05","33|01|05","Human Settlements","Administration","Financial Management"]
[null,null,null,null,null,33,2,1,"33","02","01","33|02|01","Human Settlements","Integrated Human Settlements Planning and Development","Management for Integrated Human Settlements Planning and Development"]
[null,null,null,null,null,33,2,2,"33","02","02","33|02|02","Human Settlements","Integrated Human Settlements Planning and Development","Macro Sector Planning"]
[null,null,null,null,null,33,2,3,"33","02","03","33|02|03","Human Settlements","Integrated Human Settlements Planning and Development","Macro Policy and Research"]
[null,null,null,null,null,33,2,4,"33","02","04","33|02|04","Human Settlements","Integrated Human Settlements Planning and Development","Monitoring and Evaluation"]
[null,null,null,null,null,33,2,5,"33","02","05","33|02|05","Human Settlements","Integrated Human Settlements Planning and Development","Public Entity Oversight"]
[null,null,null,null,null,33,2,6,"33","02","06","33|02|06","Human Settlements","Integrated Human Settlements Planning and Development","Grant Management"]
[null,null,null,null,null,33,2,7,"33","02","07","33|02|07","Human Settlements","Integrated Human Settlements Planning and Development","Capacity Building and Sector Support"]
[null,null,null,null,null,33,3,1,"33","03","01","33|03|01","Human Settlements","Informal Settlements","Management for Informal Settlements"]
[null,null,null,null,null,33,3,2,"33","03","02","33|03|02","Human Settlements","Informal Settlements","Grant Management"]
[null,null,null,null,null,33,3,3,"33","03","03","33|03|03","Human Settlements","Informal Settlements","Capacity Building and Sector Support"]
[null,null,null,null,null,33,4,1,"33","04","01","33|04|01","Human Settlements","Rental and Social Housing","Management for Rental and Social Housing"]
[null,null,null,null,null,33,4,2,"33","04","02","33|04|02","Human Settlements","Rental and Social Housing","Public Entity Oversight"]
[null,null,null,null,null,33,4,3,"33","04","03","33|04|03","Human Settlements","Rental and Social Housing","Capacity Building and Sector Support"]
[null,null,null,null,null,33,5,1,"33","05","01","33|05|01","Human Settlements","Affordable Housing","Management for Affordable Housing"]
[null,null,null,null,null,33,5,2,"33","05","02","33|05|02","Human Settlements","Affordable Housing","Public Entity Oversight"]
[null,null,null,null,null,33,5,3,"33","05","03","33|05|03","Human Settlements","Affordable Housing","Capacity Building and Sector Support"]
[null,null,null,null,null,34,1,1,"34","01","01","34|01|01","Mineral Resources and Energy","Administration","Ministry"]
[null,null,null,null,null,34,1,2,"34","01","02","34|01|02","Mineral Resources and Energy","Administration","Departmental Management"]
[null,null,null,null,null,34,1,3,"34","01","03","34|01|03","Mineral Resources and Energy","Administration","Audit Services"]
[null,null,null,null,null,34,1,4,"34","01","04","34|01|04","Mineral Resources and Energy","Administration","Financial Administration"]
[null,null,null,null,null,34,1,5,"34","01","05","34|01|05","Mineral Resources and Energy","Administration","Corporate Services"]
[null,null,null,null,null,34,1,6,"34","01","06","34|01|06","Mineral Resources and Energy","Administration","Office Accommodation"]
[null,null,null,null,null,34,2,1,"34","02","01","34|02|01","Mineral Resources and Energy","Minerals and Petroleum Regulation","Minerals and Petroleum Management"]
[null,null,null,null,null,34,2,2,"34","02","02","34|02|02","Mineral Resources and Energy","Minerals and Petroleum Regulation","Mineral Regulation and Administration"]
[null,null,null,null,null,34,2,3,"34","02","03","34|02|03","Mineral Resources and Energy","Minerals and Petroleum Regulation","Environmental Enforcement and Compliance"]
[null,null,null,null,null,34,2,4,"34","02","04","34|02|04","Mineral Resources and Energy","Minerals and Petroleum Regulation","Petroleum Compliance Monitoring, Enforcement and Fuel Pricing"]
[null,null,null,null,null,34,2,5,"34","02","05","34|02|05","Mineral Resources and Energy","Minerals and Petroleum Regulation","Petroleum Licensing and Fuel Supply"]
[null,null,null,null,null,34,3,1,"34","03","01","34|03|01","Mineral Resources and Energy","Mining, Minerals and Energy Policy Development","Mining, Minerals and Energy Policy Development Management"]
[null,null,null,null,null,34,3,2,"34","03","02","34|03|02","Mineral Resources and Energy","Mining, Minerals and Energy Policy Development","Minerals and Petroleum Policy"]
[null,null,null,null,null,34,3,3,"34","03","03","34|03|03","Mineral Resources and Energy","Mining, Minerals and Energy Policy Development","Nuclear, Electricity and Gas Policy"]
[null,null,null,null,null,34,3,4,"34","03","04","34|03|04","Mineral Resources and Energy","Mining, Minerals and Energy Policy Development","Economic Analysis and Statistics"]
[null,null,null,null,null,34,3,5,"34","03","05","34|03|05","Mineral Resources and Energy","Mining, Minerals and Energy Policy Development","Economic Growth, Promotion and Global Relations"]
[null,null,null,null,null,34,3,6,"34","03","06","34|03|06","Mineral Resources and Energy","Mining, Minerals and Energy Policy Development","Mineral and Energy Planning"]
[null,null,null,null,null,34,4,1,"34","04","01","34|04|01","Mineral Resources and Energy","Mine Health and Safety Inspectorate","Mine Health and Safety Management"]
[null,null,null,null,null,34,4,2,"34","04","02","34|04|02","Mineral Resources and Energy","Mine Health and Safety Inspectorate","Mine Health and Safety Regions"]
[null,null,null,null,null,34,4,3,"34","04","03","34|04|03","Mineral Resources and Energy","Mine Health and Safety Inspectorate","Occupational Health"]
[null,null,null,null,null,34,5,1,"34","05","01","34|05|01","Mineral Resources and Energy","Mineral and Energy Resources Programmes and Projects","Programmes and Projects Management"]
[null,null,null,null,null,34,5,2,"34","05","02","34|05|02","Mineral Resources and Energy","Mineral and Energy Resources Programmes and Projects","Integrated National Electrification Programme"]
[null,null,null,null,null,34,5,3,"34","05","03","34|05|03","Mineral Resources and Energy","Mineral and Energy Resources Programmes and Projects","Programmes and Projects Management Office"]
[null,null,null,null,null,34,5,4,"34","05","04","34|05|04","Mineral Resources and Energy","Mineral and Energy Resources Programmes and Projects","Regional Programmes and Projects Management Office"]
[null,null,null,null,null,34,5,5,"34","05","05","34|05|05","Mineral Resources and Energy","Mineral and Energy Resources Programmes and Projects","Electricity Infrastructure and Industry Transformation"]
[null,null,null,null,null,34,5,6,"34","05","06","34|05|06","Mineral Resources and Energy","Mineral and Energy Resources Programmes and Projects","Energy Efficiency Projects"]
[null,null,null,null,null,34,5,7,"34","05","07","34|05|07","Mineral Resources and Energy","Mineral and Energy Resources Programmes and Projects","Renewable Energy Projects"]
[null,null,null,null,null,34,5,8,"34","05","08","34|05|08","Mineral Resources and Energy","Mineral and Energy Resources Programmes and Projects","Environmental Management Projects"]
[null,null,null,null,null,34,6,1,"34","06","01","34|06|01","Mineral Resources and Energy","Nuclear Energy Regulation and Management","Nuclear Energy Management"]
[null,null,null,null,null,34,6,2,"34","06","02","34|06|02","Mineral Resources and Energy","Nuclear Energy Regulation and Management","Nuclear Safety and Technology"]
[null,null,null,null,null,34,6,3,"34","06","03","34|06|03","Mineral Resources and Energy","Nuclear Energy Regulation and Management","Nuclear Non-proliferation and Radiation Security"]
[null,null,null,null,null,35,1,1,"35","01","01","35|01|01","Science and Innovation","Administration","Ministry"]
[null,null,null,null,null,35,1,2,"35","01","02","35|01|02","Science and Innovation","Administration","Institutional Planning and Support"]
[null,null,null,null,null,35,1,3,"35","01","03","35|01|03","Science and Innovation","Administration","Corporate Services"]
[null,null,null,null,null,35,1,4,"35","01","04","35|01|04","Science and Innovation","Administration","Office Accommodation"]
[null,null,null,null,null,35,2,1,"35","02","01","35|02|01","Science and Innovation","Technology Innovation","Space Science"]
[null,null,null,null,null,35,2,2,"35","02","02","35|02|02","Science and Innovation","Technology Innovation","Hydrogen and Energy"]
[null,null,null,null,null,35,2,3,"35","02","03","35|02|03","Science and Innovation","Technology Innovation","Bio-innovation"]
[null,null,null,null,null,35,2,4,"35","02","04","35|02|04","Science and Innovation","Technology Innovation","Innovation Priorities and Instruments"]
[null,null,null,null,null,35,2,5,"35","02","05","35|02|05","Science and Innovation","Technology Innovation","National Intellectual Property Management Office"]
[null,null,null,null,null,35,2,6,"35","02","06","35|02|06","Science and Innovation","Technology Innovation","Office of the Deputy Director-General: Technology Innovation"]
[null,null,null,null,null,35,3,1,"35","03","01","35|03|01","Science and Innovation","International Cooperation and Resources","Multilateral Cooperation and Africa"]
[null,null,null,null,null,35,3,2,"35","03","02","35|03|02","Science and Innovation","International Cooperation and Resources","International Resources"]
[null,null,null,null,null,35,3,3,"35","03","03","35|03|03","Science and Innovation","International Cooperation and Resources","Overseas Bilateral Cooperation"]
[null,null,null,null,null,35,3,4,"35","03","04","35|03|04","Science and Innovation","International Cooperation and Resources","Office of the Deputy Director-General: International Cooperation and Resources"]
[null,null,null,null,null,35,4,1,"35","04","01","35|04|01","Science and Innovation","Research Development and Support","Human Capital and Science Promotions"]
[null,null,null,null,null,35,4,2,"35","04","02","35|04|02","Science and Innovation","Research Development and Support","Science Missions"]
[null,null,null,null,null,35,4,3,"35","04","03","35|04|03","Science and Innovation","Research Development and Support","Basic Science and Infrastructure"]
[null,null,null,null,null,35,4,4,"35","04","04","35|04|04","Science and Innovation","Research Development and Support","Astronomy"]
[null,null,null,null,null,35,4,5,"35","04","05","35|04|05","Science and Innovation","Research Development and Support","Office of the Deputy Director-General: Research, Development and Support"]
[null,null,null,null,null,35,5,1,"35","05","01","35|05|01","Science and Innovation","Socioeconomic Innovation Partnerships","Sector Innovation and Green Economy"]
[null,null,null,null,null,35,5,2,"35","05","02","35|05|02","Science and Innovation","Socioeconomic Innovation Partnerships","Innovation for Inclusive Development"]
[null,null,null,null,null,35,5,3,"35","05","03","35|05|03","Science and Innovation","Socioeconomic Innovation Partnerships","Science and Technology Investment"]
[null,null,null,null,null,35,5,4,"35","05","04","35|05|04","Science and Innovation","Socioeconomic Innovation Partnerships","Technology Localisation, Beneficiation and Advanced Manufacturing"]
[null,null,null,null,null,35,5,5,"35","05","05","35|05|05","Science and Innovation","Socioeconomic Innovation Partnerships","Office of the Deputy Director-General: Socioeconomic Innovation Partnership"]
[null,null,null,null,null,36,1,1,"36","01","01","36|01|01","Small Business Development","Administration","Ministry"]
[null,null,null,null,null,36,1,2,"36","01","02","36|01|02","Small Business Development","Administration","Departmental Management"]
[null,null,null,null,null,36,1,3,"36","01","03","36|01|03","Small Business Development","Administration","Corporate Management Services"]
[null,null,null,null,null,36,1,4,"36","01","04","36|01|04","Small Business Development","Administration","Financial Management"]
[null,null,null,null,null,36,2,1,"36","02","01","36|02|01","Small Business Development","Sector Policy and Research","Business Intelligence and Sector-Wide Monitoring and Evaluation"]
[null,null,null,null,null,36,2,2,"36","02","02","36|02|02","Small Business Development","Sector Policy and Research","Intergovernmental Relations and Business Efficiency"]
[null,null,null,null,null,36,2,3,"36","02","03","36|02|03","Small Business Development","Sector Policy and Research","Sector Specific Support"]
[null,null,null,null,null,36,3,1,"36","03","01","36|03|01","Small Business Development","Integrated Cooperatives and Micro Enterprise Development","Integrated Co-operatives and Micro Enterprise Development"]
[null,null,null,null,null,36,3,2,"36","03","02","36|03|02","Small Business Development","Integrated Cooperatives and Micro Enterprise Development","Economic Transformation Initiatives"]
[null,null,null,null,null,36,3,3,"36","03","03","36|03|03","Small Business Development","Integrated Cooperatives and Micro Enterprise Development","Value Chain and Market Access Support"]
[null,null,null,null,null,36,4,1,"36","04","01","36|04|01","Small Business Development","Enterprise Development, Innovation and Entrepreneurship","Enterprise Development, Innovation and Entrepreneurship"]
[null,null,null,null,null,36,4,2,"36","04","02","36|04|02","Small Business Development","Enterprise Development, Innovation and Entrepreneurship","Entrepreneurship and Enterprise Development"]
[null,null,null,null,null,36,4,3,"36","04","03","36|04|03","Small Business Development","Enterprise Development, Innovation and Entrepreneurship","Funding Support and Coordination"]
[null,null,null,null,null,37,1,1,"37","01","01","37|01|01","Sport, Arts and Culture","Administration","Ministry"]
[null,null,null,null,null,37,1,2,"37","01","02","37|01|02","Sport, Arts and Culture","Administration","Management"]
[null,null,null,null,null,37,1,3,"37","01","03","37|01|03","Sport, Arts and Culture","Administration","Strategic Management and Planning"]
[null,null,null,null,null,37,1,4,"37","01","04","37|01|04","Sport, Arts and Culture","Administration","Corporate Services"]
[null,null,null,null,null,37,1,5,"37","01","05","37|01|05","Sport, Arts and Culture","Administration","Office of the Chief Financial Officer"]
[null,null,null,null,null,37,1,6,"37","01","06","37|01|06","Sport, Arts and Culture","Administration","Office Accommodation"]
[null,null,null,null,null,37,2,1,"37","02","01","37|02|01","Sport, Arts and Culture","Recreation Development and Sport Promotion","Winning Nation"]
[null,null,null,null,null,37,2,2,"37","02","02","37|02|02","Sport, Arts and Culture","Recreation Development and Sport Promotion","Active Nation"]
[null,null,null,null,null,37,2,3,"37","02","03","37|02|03","Sport, Arts and Culture","Recreation Development and Sport Promotion","Infrastructure Support"]
[null,null,null,null,null,37,3,1,"37","03","01","37|03|01","Sport, Arts and Culture","Arts and Culture Promotion and Development","National Language Services"]
[null,null,null,null,null,37,3,2,"37","03","02","37|03|02","Sport, Arts and Culture","Arts and Culture Promotion and Development","Pan South African Language Board"]
[null,null,null,null,null,37,3,3,"37","03","03","37|03|03","Sport, Arts and Culture","Arts and Culture Promotion and Development","Cultural and Creative Industries Development"]
[null,null,null,null,null,37,3,4,"37","03","04","37|03|04","Sport, Arts and Culture","Arts and Culture Promotion and Development","International Cooperation"]
[null,null,null,null,null,37,3,5,"37","03","05","37|03|05","Sport, Arts and Culture","Arts and Culture Promotion and Development","Social Cohesion and Nation Building"]
[null,null,null,null,null,37,3,6,"37","03","06","37|03|06","Sport, Arts and Culture","Arts and Culture Promotion and Development","Mzansi Golden Economy"]
[null,null,null,null,null,37,3,7,"37","03","07","37|03|07","Sport, Arts and Culture","Arts and Culture Promotion and Development","Performing Arts Institutions"]
[null,null,null,null,null,37,3,8,"37","03","08","37|03|08","Sport, Arts and Culture","Arts and Culture Promotion and Development","National Film and Video Foundation"]
[null,null,null,null,null,37,3,9,"37","03","09","37|03|09","Sport, Arts and Culture","Arts and Culture Promotion and Development","National Arts Council"]
[null,null,null,null,null,37,4,1,"37","04","01","37|04|01","Sport, Arts and Culture","Heritage Promotion and Preservation","Heritage Promotion"]
[null,null,null,null,null,37,4,2,"37","04","02","37|04|02","Sport, Arts and Culture","Heritage Promotion and Preservation","National Archive Services"]
[null,null,null,null,null,37,4,3,"37","04","03","37|04|03","Sport, Arts and Culture","Heritage Promotion and Preservation","Heritage Institutions"]
[null,null,null,null,null,37,4,4,"37","04","04","37|04|04","Sport, Arts and Culture","Heritage Promotion and Preservation","National Library Services"]
[null,null,null,null,null,37,4,5,"37","04","05","37|04|05","Sport, Arts and Culture","Heritage Promotion and Preservation","Public Library Services"]
[null,null,null,null,null,37,4,6,"37","04","06","37|04|06","Sport, Arts and Culture","Heritage Promotion and Preservation","South African Heritage Resources Agency"]
[null,null,null,null,null,37,4,7,"37","04","07","37|04|07","Sport, Arts and Culture","Heritage Promotion and Preservation","South African Geographical Council"]
[null,null,null,null,null,37,4,8,"37","04","08","37|04|08","Sport, Arts and Culture","Heritage Promotion and Preservation","National Heritage Council"]
[null,null,null,null,null,38,1,1,"38","01","01","38|01|01","Tourism","Administration","Ministry"]
[null,null,null,null,null,38,1,2,"38","01","02","38|01|02","Tourism","Administration","Management"]
[null,null,null,null,null,38,1,3,"38","01","03","38|01|03","Tourism","Administration","Corporate Management"]
[null,null,null,null,null,38,1,4,"38","01","04","38|01|04","Tourism","Administration","Financial Management"]
[null,null,null,null,null,38,1,5,"38","01","05","38|01|05","Tourism","Administration","Office Accommodation"]
[null,null,null,null,null,38,2,1,"38","02","01","38|02|01","Tourism","Tourism Research, Policy and International Relations","Tourism Research, Policy and International Relations Management"]
[null,null,null,null,null,38,2,2,"38","02","02","38|02|02","Tourism","Tourism Research, Policy and International Relations","Research and Knowledge Management"]
[null,null,null,null,null,38,2,3,"38","02","03","38|02|03","Tourism","Tourism Research, Policy and International Relations","Policy Planning and Strategy"]
[null,null,null,null,null,38,2,4,"38","02","04","38|02|04","Tourism","Tourism Research, Policy and International Relations","South African Tourism"]
[null,null,null,null,null,38,2,5,"38","02","05","38|02|05","Tourism","Tourism Research, Policy and International Relations","International Relations and Cooperation"]
[null,null,null,null,null,38,3,1,"38","03","01","38|03|01","Tourism","Destination Development","Destination Development Management"]
[null,null,null,null,null,38,3,2,"38","03","02","38|03|02","Tourism","Destination Development","Tourism Enhancement"]
[null,null,null,null,null,38,3,3,"38","03","03","38|03|03","Tourism","Destination Development","Destination Planning and Investment Coordination"]
[null,null,null,null,null,38,3,4,"38","03","04","38|03|04","Tourism","Destination Development","Working for Tourism"]
[null,null,null,null,null,38,4,1,"38","04","01","38|04|01","Tourism","Tourism Sector Support Services","Tourism Sector Support Services Management"]
[null,null,null,null,null,38,4,2,"38","04","02","38|04|02","Tourism","Tourism Sector Support Services","Tourism Human Resource Development"]
[null,null,null,null,null,38,4,3,"38","04","03","38|04|03","Tourism","Tourism Sector Support Services","Enterprise Development and Transformation"]
[null,null,null,null,null,38,4,4,"38","04","04","38|04|04","Tourism","Tourism Sector Support Services","Tourism Visitor Services"]
[null,null,null,null,null,38,4,5,"38","04","05","38|04|05","Tourism","Tourism Sector Support Services","Tourism incentive programme"]
[null,null,null,null,null,39,1,1,"39","01","01","39|01|01","Trade, Industry and Competition","Administration","Ministry"]
[null,null,null,null,null,39,1,2,"39","01","02","39|01|02","Trade, Industry and Competition","Administration","Office of the Director-General"]
[null,null,null,null,null,39,1,3,"39","01","03","39|01|03","Trade, Industry and Competition","Administration","Corporate Management Services"]
[null,null,null,null,null,39,1,4,"39","01","04","39|01|04","Trade, Industry and Competition","Administration","Office Accommodation"]
[null,null,null,null,null,39,1,5,"39","01","05","39|01|05","Trade, Industry and Competition","Administration","Financial Management"]
[null,null,null,null,null,39,1,6,"39","01","06","39|01|06","Trade, Industry and Competition","Administration","Marketing Communication and Media Relations"]
[null,null,null,null,null,39,2,1,"39","02","01","39|02|01","Trade, Industry and Competition","Trade","International Trade Development"]
[null,null,null,null,null,39,2,2,"39","02","02","39|02|02","Trade, Industry and Competition","Trade","African Multilateral Economic Development"]
[null,null,null,null,null,39,3,1,"39","03","01","39|03|01","Trade, Industry and Competition","Investment and Spatial Industrial Development","Investment Promotion"]
[null,null,null,null,null,39,3,2,"39","03","02","39|03|02","Trade, Industry and Competition","Investment and Spatial Industrial Development","Investment and Interdepartmental Clearing House"]
[null,null,null,null,null,39,3,3,"39","03","03","39|03|03","Trade, Industry and Competition","Investment and Spatial Industrial Development","Investor Support and Aftercare"]
[null,null,null,null,null,39,3,4,"39","03","04","39|03|04","Trade, Industry and Competition","Investment and Spatial Industrial Development","Spatial Industrial Development"]
[null,null,null,null,null,39,4,1,"39","04","01","39|04|01","Trade, Industry and Competition","Sectors","Industrial Competitiveness"]
[null,null,null,null,null,39,4,2,"39","04","02","39|04|02","Trade, Industry and Competition","Sectors","Customised Sector Programmes"]
[null,null,null,null,null,39,5,1,"39","05","01","39|05|01","Trade, Industry and Competition","Regulation","Policy and Legislative Development"]
[null,null,null,null,null,39,5,2,"39","05","02","39|05|02","Trade, Industry and Competition","Regulation","Enforcement and Compliance"]
[null,null,null,null,null,39,5,3,"39","05","03","39|05|03","Trade, Industry and Competition","Regulation","Regulatory Services"]
[null,null,null,null,null,39,6,1,"39","06","01","39|06|01","Trade, Industry and Competition","Incentives","Broadening Participation and Industrial Incentives"]
[null,null,null,null,null,39,6,2,"39","06","02","39|06|02","Trade, Industry and Competition","Incentives","Manufacturing Incentives"]
[null,null,null,null,null,39,6,3,"39","06","03","39|06|03","Trade, Industry and Competition","Incentives","Services Investment Incentives"]
[null,null,null,null,null,39,6,4,"39","06","04","39|06|04","Trade, Industry and Competition","Incentives","Infrastructure Investment Support"]
[null,null,null,null,null,39,6,5,"39","06","05","39|06|05","Trade, Industry and Competition","Incentives","Product and Systems Development"]
[null,null,null,null,null,39,6,6,"39","06","06","39|06|06","Trade, Industry and Competition","Incentives","Strategic Partnership and Customer Care"]
[null,null,null,null,null,39,7,1,"39","07","01","39|07|01","Trade, Industry and Competition","Export","African Bilateral Economic Relations"]
[null,null,null,null,null,39,7,2,"39","07","02","39|07|02","Trade, Industry and Competition","Export","Export Promotion and Marketing"]
[null,null,null,null,null,39,7,3,"39","07","03","39|07|03","Trade, Industry and Competition","Export","Trade and Investment Foreign Services Management Unit"]
[null,null,null,null,null,39,7,4,"39","07","04","39|07|04","Trade, Industry and Competition","Export","Export Development and Support"]
[null,null,null,null,null,39,8,1,"39","08","01","39|08|01","Trade, Industry and Competition","Transformation and Competition","Economic Planning and Advisory"]
[null,null,null,null,null,39,8,2,"39","08","02","39|08|02","Trade, Industry and Competition","Transformation and Competition","Implementation Coordination and Competition Oversight"]
[null,null,null,null,null,39,8,3,"39","08","03","39|08|03","Trade, Industry and Competition","Transformation and Competition","Investment and Development"]
[null,null,null,null,null,39,8,4,"39","08","04","39|08|04","Trade, Industry and Competition","Transformation and Competition","Equity and Empowerment"]
[null,null,null,null,null,39,9,1,"39","09","01","39|09|01","Trade, Industry and Competition","Research","Economic Research and Policy Coordination"]
[null,null,null,null,null,39,9,2,"39","09","02","39|09|02","Trade, Industry and Competition","Research","Macroeconomic and Microeconomic Policy"]
[null,null,null,null,null,39,9,3,"39","09","03","39|09|03","Trade, Industry and Competition","Research","Growth Path and Decent Work"]
[null,null,null,null,null,40,1,1,"40","01","01","40|01|01","Transport","Administration","Ministry"]
[null,null,null,null,null,40,1,2,"40","01","02","40|01|02","Transport","Administration","Management"]
[null,null,null,null,null,40,1,3,"40","01","03","40|01|03","Transport","Administration","Corporate Services"]
[null,null,null,null,null,40,1,4,"40","01","04","40|01|04","Transport","Administration","Communications"]
[null,null,null,null,null,40,1,5,"40","01","05","40|01|05","Transport","Administration","Office Accommodation"]
[null,null,null,null,null,40,2,1,"40","02","01","40|02|01","Transport","Integrated Transport Planning","Macro Sector Planning"]
[null,null,null,null,null,40,2,2,"40","02","02","40|02|02","Transport","Integrated Transport Planning","Freight Logistics"]
[null,null,null,null,null,40,2,3,"40","02","03","40|02|03","Transport","Integrated Transport Planning","Modelling and Economic Analysis"]
[null,null,null,null,null,40,2,4,"40","02","04","40|02|04","Transport","Integrated Transport Planning","Regional Integration"]
[null,null,null,null,null,40,2,5,"40","02","05","40|02|05","Transport","Integrated Transport Planning","Research and Innovation"]
[null,null,null,null,null,40,2,6,"40","02","06","40|02|06","Transport","Integrated Transport Planning","Integrated Transport Planning Administration Support"]
[null,null,null,null,null,40,3,1,"40","03","01","40|03|01","Transport","Rail Transport","Rail Regulation"]
[null,null,null,null,null,40,3,2,"40","03","02","40|03|02","Transport","Rail Transport","Rail Infrastructure and Industry Development"]
[null,null,null,null,null,40,3,3,"40","03","03","40|03|03","Transport","Rail Transport","Rail Operations"]
[null,null,null,null,null,40,3,4,"40","03","04","40|03|04","Transport","Rail Transport","Rail Oversight"]
[null,null,null,null,null,40,3,5,"40","03","05","40|03|05","Transport","Rail Transport","Rail Administration Support"]
[null,null,null,null,null,40,4,1,"40","04","01","40|04|01","Transport","Road Transport","Road Regulation"]
[null,null,null,null,null,40,4,2,"40","04","02","40|04|02","Transport","Road Transport","Road Infrastructure and Industry Development"]
[null,null,null,null,null,40,4,3,"40","04","03","40|04|03","Transport","Road Transport","Road Oversight"]
[null,null,null,null,null,40,4,4,"40","04","04","40|04|04","Transport","Road Transport","Road Administration Support"]
[null,null,null,null,null,40,4,5,"40","04","05","40|04|05","Transport","Road Transport","Road Engineering Standards"]
[null,null,null,null,null,40,5,1,"40","05","01","40|05|01","Transport","Civil Aviation","Aviation Policy and Regulations"]
[null,null,null,null,null,40,5,2,"40","05","02","40|05|02","Transport","Civil Aviation","Aviation Economic Analysis and Industry Development"]
[null,null,null,null,null,40,5,3,"40","05","03","40|05|03","Transport","Civil Aviation","Aviation Safety, Security, Environment, and Search and Rescue"]
[null,null,null,null,null,40,5,4,"40","05","04","40|05|04","Transport","Civil Aviation","Aviation Oversight"]
[null,null,null,null,null,40,5,5,"40","05","05","40|05|05","Transport","Civil Aviation","Aviation Administration Support"]
[null,null,null,null,null,40,6,1,"40","06","01","40|06|01","Transport","Maritime Transport","Maritime Policy Development"]
[null,null,null,null,null,40,6,2,"40","06","02","40|06|02","Transport","Maritime Transport","Maritime Infrastructure and Industry Development"]
[null,null,null,null,null,40,6,3,"40","06","03","40|06|03","Transport","Maritime Transport","Implementation, Monitoring and Evaluation"]
[null,null,null,null,null,40,6,4,"40","06","04","40|06|04","Transport","Maritime Transport","Maritime Oversight"]
[null,null,null,null,null,40,6,5,"40","06","05","40|06|05","Transport","Maritime Transport","Maritime Administration Support"]
[null,null,null,null,null,40,7,1,"40","07","01","40|07|01","Transport","Public Transport","Public Transport Regulation"]
[null,null,null,null,null,40,7,2,"40","07","02","40|07|02","Transport","Public Transport","Rural and Scholar Transport"]
[null,null,null,null,null,40,7,3,"40","07","03","40|07|03","Transport","Public Transport","Public Transport Industry Development"]
[null,null,null,null,null,40,7,4,"40","07","04","40|07|04","Transport","Public Transport","Public Transport Oversight"]
[null,null,null,null,null,40,7,5,"40","07","05","40|07|05","Transport","Public Transport","Public Transport Administration Support"]
[null,null,null,null,null,40,7,6,"40","07","06","40|07|06","Transport","Public Transport","Public Transport Network Development"]
[null,null,null,null,null,40,16,1,"40","16","01","40|16|01","Transport","Direct charge against the National Revenue Fund","International Oil Pollution Compensation Funds"]
[null,null,null,null,null,41,1,1,"41","01","01","41|01|01","Water and Sanitation","Administration","Ministry"]
[null,null,null,null,null,41,1,2,"41","01","02","41|01|02","Water and Sanitation","Administration","Departmental Management"]
[null,null,null,null,null,41,1,3,"41","01","03","41|01|03","Water and Sanitation","Administration","Corporate Services"]
[null,null,null,null,null,41,1,4,"41","01","04","41|01|04","Water and Sanitation","Administration","Financial Management"]
[null,null,null,null,null,41,1,5,"41","01","05","41|01|05","Water and Sanitation","Administration","Office Accommodation"]
[null,null,null,null,null,41,1,6,"41","01","06","41|01|06","Water and Sanitation","Administration","Provincial and International Coordination"]
[null,null,null,null,null,41,2,1,"41","02","01","41|02|01","Water and Sanitation","Water Resources Management","Water Resources Management Support"]
[null,null,null,null,null,41,2,2,"41","02","02","41|02|02","Water and Sanitation","Water Resources Management","Integrated Water Resources Planning"]
[null,null,null,null,null,41,2,3,"41","02","03","41|02|03","Water and Sanitation","Water Resources Management","Water Ecosystems Management"]
[null,null,null,null,null,41,2,4,"41","02","04","41|02|04","Water and Sanitation","Water Resources Management","Water Resources Information and Management"]
[null,null,null,null,null,41,2,5,"41","02","05","41|02|05","Water and Sanitation","Water Resources Management","Water Resources Infrastructure Management"]
[null,null,null,null,null,41,2,6,"41","02","06","41|02|06","Water and Sanitation","Water Resources Management","Water Resources Policy and Strategy"]
[null,null,null,null,null,41,2,7,"41","02","07","41|02|07","Water and Sanitation","Water Resources Management","Water Resources Regulation"]
[null,null,null,null,null,41,2,8,"41","02","08","41|02|08","Water and Sanitation","Water Resources Management","Water Resources Institutional Oversight"]
[null,null,null,null,null,41,3,1,"41","03","01","41|03|01","Water and Sanitation","Water Services Management","Water Services Management Support"]
[null,null,null,null,null,41,3,2,"41","03","02","41|03|02","Water and Sanitation","Water Services Management","Water Services and Local Management"]
[null,null,null,null,null,41,3,3,"41","03","03","41|03|03","Water and Sanitation","Water Services Management","Regional Bulk Infrastructure Grant"]
[null,null,null,null,null,41,3,4,"41","03","04","41|03|04","Water and Sanitation","Water Services Management","Water Services Regulation"]
[null,null,null,null,null,41,3,5,"41","03","05","41|03|05","Water and Sanitation","Water Services Management","Water Services Policy and Strategy"]
[null,null,null,null,null,41,3,6,"41","03","06","41|03|06","Water and Sanitation","Water Services Management","Water Services Infrastructure Grant"]
[null,null,null,null,null,41,3,7,"41","03","07","41|03|07","Water and Sanitation","Water Services Management","Water Services Institutional Oversight"]
[null,null,null,null,null,42,1,1,"42","01","01","42|01|01","Centre for Public Service Innovation","Administration","Executive Support"]
[null,null,null,null,null,42,1,2,"42","01","02","42|01|02","Centre for Public Service Innovation","Administration","Corporate Services"]
[null,null,null,null,null,42,1,3,"42","01","03","42|01|03","Centre for Public Service Innovation","Administration","Office of the Chief Financial Officer"]
[null,null,null,null,null,42,2,1,"42","02","01","42|02|01","Centre for Public Service Innovation","Public Sector Innovation","Research and Development"]
[null,null,null,null,null,42,2,2,"42","02","02","42|02|02","Centre for Public Service Innovation","Public Sector Innovation","Institutional Support and Replication"]
[null,null,null,null,null,42,2,3,"42","02","03","42|02|03","Centre for Public Service Innovation","Public Sector Innovation","Enabling Environment and Stakeholder Management"]
[null,null,null,null,null,50,0,0,"50","00","00","50|00|00","Below the line items","Contingency reserve","Contingency reserve"]
[null,null,null,null,null,50,0,0,"50","00","00","50|00|00","Below the line items","Infrastructure fund","Lufhereng Mixed Use Development - V33: Urban Settlements Development Grant (LCG)"]
[null,null,null,null,null,50,0,0,"50","00","00","50|00|00","Below the line items","Provisional allocations","BFI - Klipfontein Hospital"]
[null,null,null,null,null,50,0,0,"50","00","00","50|00|00","Below the line items","Provisional allocations","Provisional - Employment programmes"]
[null,null,null,null,null,50,0,0,"50","00","00","50|00|00","Below the line items","Provisional allocations","Western Cape Rapid Schools Build Programme (BFI)"]
[null,null,null,null,null,50,0,0,"50","00","00","50|00|00","Below the line items","Infrastructure fund","CDC Return Water Effluent and Basic Infrastructure Projects"]
[null,null,null,null,null,50,0,0,"50","00","00","50|00|00","Below the line items","Provisional allocations","SRD grant"]
[null,null,null,null,null,50,0,0,"50","00","00","50|00|00","Below the line items","Infrastructure fund","SPLM Integrated Bulk Supply System Intervention- V41: Regional Bulk Infrastructure Grant (LCG) : Programme 3: sub prog: Regional Bulk Infrastructure Grant"]
[null,null,null,null,null,50,0,0,"50","00","00","50|00|00","Below the line items","Infrastructure fund","Unallocated"]
[null,null,null,null,null,50,0,0,"50","00","00","50|00|00","Below the line items","Provisional allocations","BFI - Tygerberg Hospital"]
[null,null,null,null,null,50,0,0,"50","00","00","50|00|00","Below the line items","Infrastructure fund","Western Cape Rapid Schools Build Programme"]
[null,null,null,null,null,50,0,0,"50","00","00","50|00|00","Below the line items","Provisional allocations","One free ATM withdrawal per beneficiary"]
[null,null,null,null,null,50,0,0,"50","00","00","50|00|00","Below the line items","Infrastructure fund","uMkhomazi Water Project - Raw Water Component (uMWP-1) - Water Trading Entity: Programme 2: sub prog: Water Resources Infrastructure Management"]
[null,null,null,null,null,50,0,0,"50","00","00","50|00|00","Below the line items","Provisional allocations","General buffer funds"]